{"text_format":"1","workbook":"xlsx","n_sheets":19,"sheets":["Title","Inputs","Machinery","Crop 1","Crop 2","Crop 3","Output Comparison","Carbon","Defaults","Implements","Cotton","Corn","Sorghum","Soybean","Rice","Peanut","Wheat","Pasture","Product Information"],"not_rendered":{"charts":6,"images":16,"macros":1,"external_links":1,"defined_names":169,"comments":4,"pivot_tables":0},"unopened":[],"bounds":{"document_bytes":16777216,"sheet_cells":100000,"rows_first":2000,"rows_last":500,"rows_between":2000,"halvings":0,"cell_chars":16384,"cell_head_chars":4096},"cells_cut":0,"cells_raw":0,"read":"whole","date_system":"1900"}

{"sheet":"Title","index":0,"n_rows":26,"n_cols":2,"rows_kept":26,"cut":false,"hidden":false,"merged":[[24,1,24,20],[25,1,31,20],[12,1,12,20],[8,1,10,20],[22,1,22,20]]}
[]
[]
[]
[]
[]
[]
[]
[]
[null,"Tractor Guidance Analysis"]
[]
[]
[]
[null,"Written and developed by Karen Lindsay and Dr. Michael Popp"]
[]
[]
[]
[]
[]
[]
[]
[]
[]
[null,"© Copyright Reserved."]
[]
[null,"Acknowledgement: This work was an interdisciplinary effort with experimental data provided by the Dale Bumpers Small Farms Research Center \nand expert opinion provided by Dr. Phillip Owens and Dr. Amanda Ashworth"]
[null,"Disclaimer: The information provided within represents estimates that are a result of a set of complex calculations that are described in more detail in the user manual. Changes in parameter values and its implications on returns are estimates and the user should use their own reasonable judgment to reflect whether the direction of change in returns is appropriate before acting on the results. As such, this software is provided ‘as is’ and without warranties as to performance of merchantability. Further, statements may have been made to you about this software. Any such statements do not constitute warranties and shall not be relied on by the user in deciding whether to use the program or act on its results. This program is provided without any expressed or implied warranties whatsoever. Because the diversity of conditions and hardware under which this program may be used, no warranty of merchantability or warranty of fitness for a particular purpose is offered. The user is advised to test the program thoroughly before relying on it. The user assumes the entire risk of using the program. The University of Arkansas will not be liable for any claim or damage brought against the user by any third party, nor will the University of Arkansas be liable for any consequential, indirect or special damages suffered by the user as a result of the software."]

{"sheet":"Inputs","index":1,"n_rows":39,"n_cols":37,"rows_kept":39,"cut":false,"hidden":false,"merged":[[7,1,7,23],[16,26,16,27],[8,19,8,27],[38,1,38,28],[10,21,10,22],[14,21,14,22],[8,15,8,17],[10,5,10,6],[10,10,10,11],[8,1,8,13],[10,26,10,27],[0,0,2,28],[3,1,5,5],[3,19,4,25],[3,26,4,27],[4,9,4,13]]}
[{"$f":"CONCATENATE(\"Operation Parameters and Expenses for \",J5)","v":"Operation Parameters and Expenses for Circle C Farms"},null,null,null,null,null,null,null,null,null,null,null,null,null,null,null,null,null,null,null,null,null,null,null,null,null,null,null,null,null,true]
[null,null,null,null,null,null,null,null,null,null,null,null,null,null,null,null,null,null,null,null,null,null,null,null,null,null,null,null,null,null,true]
[null,null,null,null,null,null,null,null,null,null,null,null,null,null,null,null,null,null,null,null,null,null,null,null,null,null,null,null,null,null,true]
[null,{"$f":"IF($AE$1=TRUE,\"Enter operation parameters\nand expenses using the\ngreen cells provided\",\"\")","v":"Enter operation parameters\nand expenses using the\ngreen cells provided"},null,null,null,null,null,null,null,null,null,null,null,null,null,null,null,null,null,{"$f":"\" Estimated Profitability of Guidance Equipment:\"","v":" Estimated Profitability of Guidance Equipment:"},null,null,null,null,null,null,{"$f":"'Output Comparison'!Q6","v":29895.33}]
[null,null,null,null,null,null,null,null,"Operation Name:","Circle C Farms"]
[]
[]
[null,{"$f":"IF(Z4=FALSE,\"\",\"Modify Green Cells Below\")","v":""}]
[null,"Operation Parameters",null,null,null,null,null,null,null,null,null,null,null,null,null,"Field Characteristics by Crop",null,null,null,"Operating Expenses"]
[]
[null,"Field Crop Planted",null,"Acres",null,"Exp. Yield units/acre",null,null,"unit",null,"Expected Price ($/unit)",null,null,"$/acre",null,"Slope (%)",null,"Irregularity",null,"Fuel",null,"$/gal",null,null,"Labor",null,"$/hour",null,null,null,null,null,{"$f":"SUM(AG13:AG17)","v":3},null,{"$f":"SUM(AI13:AI17)","v":1},null,{"$f":"SUM(AK13:AK17)","v":1}]
[null,null,null,null,null,null,"Default",null,null,null,null,"Default",null,null,null,null,null,null,null,null,null,null,"Default",null,null,null,null,"Default",null,null,null,"Count IF Blank",null,"Count IF Pasture",null,"Count IF Cotton"]
[null,"Cotton",null,300,null,1200,{"$f":"IF($B$13=Defaults!$M$12,\"\",IF($B$13=\"\",\"\",VLOOKUP($B$13,Defaults!$M$5:$N$12,2,FALSE)))","v":1200},null,{"$f":"IF($B$13=Defaults!$M$12,\"\",IF($B$13=\"\",\"\",VLOOKUP($B$13,Defaults!$M$5:$O$12,3,FALSE)))","v":"lb"},null,0.68,{"$f":"IF($B$13=Defaults!$M$12,\"\",IF($B$13=\"\",\"\",VLOOKUP($B$13,Defaults!$M$5:$P$12,4,FALSE)))","v":0.68},null,{"$f":"IF($B$13=Defaults!$M$12,\"\",IF($B$13=\"\",\"\",$F$13*$K$13))","v":816.00000000000011},null,"0-1%",null,"low",null,{"$f":"Defaults!$M$15","v":"Diesel"},null,1.75,{"$f":"Defaults!$N$15","v":1.75},null,{"$f":"Defaults!$M$22","v":"Operator Labor"},null,13.14,{"$f":"Defaults!$N$22","v":13.14},null,null,"Cotton",{"$f":"IF(AND(B13<>\"\",OR(D13=\"\",D13=0)),TRUE,FALSE)","v":false},{"$f":"IF(B13=\"\",0,1)","v":1},{"$f":"IF(B13=Defaults!M12,TRUE,FALSE)","v":false},{"$f":"IF(AH13=TRUE,1,0)","v":0},{"$f":"IF(B13=Defaults!M5,TRUE,FALSE)","v":true},{"$f":"IF(AJ13=TRUE,1,0)","v":1}]
[]
[null,"Soybean",null,200,null,60,{"$f":"IF($B$15=Defaults!$M$12,\"\",IF($B$15=\"\",\"\",VLOOKUP($B$15,Defaults!$M$5:$N$12,2,FALSE)))","v":60},null,{"$f":"IF($B$15=Defaults!$M$12,\"\",IF($B$15=\"\",\"\",VLOOKUP($B$15,Defaults!$M$5:$O$12,3,FALSE)))","v":"bu"},null,10,{"$f":"IF($B$15=Defaults!$M$12,\"\",IF($B$15=\"\",\"\",VLOOKUP($B$15,Defaults!$M$5:$P$12,4,FALSE)))","v":10},null,{"$f":"IF($B$15=Defaults!$M$12,\"\",IF($B$15=\"\",\"\",$F$15*$K$15))","v":600},null,"0-1%",null,"low",null,"Interest Rates",null,"(percent)",null,null,{"$f":"Defaults!$M$23","v":"Hired Labor"},null,9.06,{"$f":"Defaults!$N$23","v":9.06},null,null,"Soybean",{"$f":"IF(AND(B15<>\"\",OR(D15=\"\",D15=0)),TRUE,FALSE)","v":false},{"$f":"IF(B15=\"\",0,1)","v":1},{"$f":"IF(B15=Defaults!M12,TRUE,FALSE)","v":false},{"$f":"IF(AH15=TRUE,1,0)","v":0},{"$f":"IF(B15=Defaults!M5,TRUE,FALSE)","v":false},{"$f":"IF(AJ15=TRUE,1,0)","v":0}]
[]
[null,"Est. Pasture or Hay",null,100,null,null,{"$f":"IF($B$17=Defaults!$M$12,\"\",IF($B$17=\"\",\"\",VLOOKUP($B$17,Defaults!$M$5:$N$12,2,FALSE)))","v":""},null,{"$f":"IF($B$17=Defaults!$M$12,\"\",IF(B17=\"\",\"\",VLOOKUP($B$17,Defaults!$M$5:$O$12,3,FALSE)))","v":""},null,null,{"$f":"IF($B$17=Defaults!$M$12,\"\",IF($B$17=\"\",\"\",VLOOKUP($B$17,Defaults!$M$5:$P$12,4,FALSE)))","v":""},null,{"$f":"IF($B$17=Defaults!$M$12,\"\",IF($B$17=\"\",\"\",$F$17*$K$17))","v":""},null,"0-1%",null,"low",null,{"$f":"Defaults!$M$18","v":"Operating Interest"},null,4.7500000000000001E-2,{"$f":"Defaults!$N$18","v":4.7500000000000001E-2},null,"Custom Applications",null,"$/acre",null,null,null,"Est. Pasture or Hay",{"$f":"IF(AND(B17<>\"\",OR(D17=\"\",D17=0)),TRUE,FALSE)","v":false},{"$f":"IF(B17=\"\",0,1)","v":1},{"$f":"IF(B17=Defaults!M12,TRUE,FALSE)","v":true},{"$f":"IF(AH17=TRUE,1,0)","v":1},{"$f":"IF(B17=Defaults!M5,TRUE,FALSE)","v":false},{"$f":"IF(AJ17=TRUE,1,0)","v":0}]
[]
[null,"Total Acres Planted",null,{"$f":"IF(D13+D15+D17=0,1,D13+D15+D17)","v":600},null,null,null,null,null,null,null,null,null,null,null,null,null,null,null,{"$f":"Defaults!$M$19","v":"Discount Factor"},null,0.06,{"$f":"Defaults!$N$19","v":0.06},null,{"$f":"Defaults!$M$32","v":"Ground Fertilizer"},null,7,{"$f":"Defaults!$N$32","v":7}]
[]
[null,null,null,null,null,null,null,null,null,null,null,null,null,null,null,null,null,null,null,null,null,null,null,null,{"$f":"Defaults!$M$33","v":"Air Herbicide"},null,7,{"$f":"Defaults!$N$33","v":7}]
[]
[null,null,null,null,null,null,null,null,null,null,null,null,null,null,null,null,null,null,null,null,null,null,null,null,{"$f":"Defaults!$M$34","v":"Ground Herbicide"},null,7,{"$f":"Defaults!$N$34","v":7}]
[]
[null,null,null,null,null,null,null,null,null,null,null,null,null,null,null,null,null,null,null,null,null,null,null,null,{"$f":"Defaults!$M$35","v":"Ground Insecticide"},null,7,{"$f":"Defaults!$N$35","v":7}]
[]
[null,null,null,null,null,null,null,null,null,null,null,null,null,null,null,null,null,null,null,null,null,null,null,null,{"$f":"Defaults!$M$36","v":"Ground Seeding"},null,7,{"$f":"Defaults!$N$36","v":7}]
[]
[null,null,null,null,null,null,null,null,null,null,null,null,null,null,null,null,null,null,null,null,null,null,null,null,{"$f":"Defaults!$M$37","v":"Air Seeding"},null,7,{"$f":"Defaults!$N$37","v":7}]
[]
[]
[]
[]
[]
[]
[]
[]
[]
[null,"Disclaimer: The information provided within represents estimates that are a result of a set of complex calculations that are described in more detail in the user manual. Changes in parameter values and its implications on returns are estimates and the user should use their own reasonable judgment to reflect whether the direction of change in returns is appropriate before acting on the results. As such, this software is provided ‘as is’ and without warranties as to performance of merchantability. Further, statements may have been made to you about this software. Any such statements do not constitute warranties and shall not be relied on by the user in deciding whether to use the program or act on its results. This program is provided without any expressed or implied warranties whatsoever. Because the diversity of conditions and hardware under which this program may be used, no warranty of merchantability or warranty of fitness for a particular purpose is offered. The user is advised to test the program thoroughly before relying on it. The user assumes the entire risk of using the program. The University of Arkansas will not be liable for any claim or damage brought against the user by any third party, nor will the University of Arkansas be liable for any consequential, indirect or special damages suffered by the user as a result of the software."]

{"sheet":"Machinery","index":2,"n_rows":34,"n_cols":39,"rows_kept":34,"cut":false,"hidden":false,"merged":[[15,20,16,20],[8,6,8,8],[15,6,15,8],[4,6,4,8],[4,4,4,5],[5,4,5,5],[6,4,6,5],[0,0,2,17],[4,11,5,14],[4,15,6,16],[33,1,37,16],[15,19,16,19],[3,1,6,1]]}
[{"$f":"CONCATENATE(\"Machinery Selection for \",Inputs!$J$5)","v":"Machinery Selection for Circle C Farms"},null,null,null,null,null,null,null,null,null,null,null,null,null,null,null,null,null,null,true,null,null,null,null,null,null,null,null,null,null,null,null,null,null,null,null,null,null,true]
[null,null,null,null,null,null,null,null,null,null,null,null,null,null,null,null,null,null,null,false]
[]
[null,{"$f":"IF(T1=TRUE,\"Click green buttons to select technology and machine options\",\"\")","v":"Click green buttons to select technology and machine options"},null,null,null,null,{"$f":"IF(Inputs!$B$13=Defaults!$M$12,\"Pasture\",Inputs!$B$13)","v":"Cotton"},{"$f":"IF(Inputs!$B$15=Defaults!$M$12,\"Pasture\",Inputs!$B$15)","v":"Soybean"},{"$f":"IF(Inputs!$B$17=Defaults!$M$12,\"Pasture\",Inputs!$B$17)","v":"Pasture"}]
[null,null,null,null,"Tractor Guidance (TG)\nTechnology",null,"Annual Use\nby Crop",null,null,"Annual Use for \nSpecified Field Operations",null,{"$f":"\" Estimated Profitability\nof Guidance Equipment:\"","v":" Estimated Profitability\nof Guidance Equipment:"},null,null,null,{"$f":"'Output Comparison'!Q6","v":29895.33}]
[null,null,null,null,{"$f":"IF((Implements!AA215+Implements!AB215+Implements!AC215)=0,$U$11,Defaults!F9)","v":"Sub-meter Receiver 1"},null,{"$f":"IF($E$6=$U$11,\"\",Implements!P221)","v":133.14655071122846},{"$f":"IF($E$6=$U$11,\"\",Implements!Q221)","v":40.366504288552306},{"$f":"IF($E$6=$U$11,\"\",Implements!R221)","v":44.457305566463504},{"$f":"IF($E$6=$U$11,\"\",Implements!S221)","v":217.97036056624427}]
[null,null,null,null,{"$f":"IF(Implements!E142>=2,IF((Implements!AA216+Implements!AB216+Implements!AC216)=0,$U$11,Defaults!F10),\"\")","v":""},null,{"$f":"IF(OR($E$7=\"\",$E$7=$U$11),\"\",Implements!P222)","v":""},{"$f":"IF(OR($E$7=\"\",$E$7=$U$11),\"\",Implements!Q222)","v":""},{"$f":"IF(OR($E$7=\"\",$E$7=$U$11),\"\",Implements!R222)","v":""},{"$f":"IF(OR($E$7=\"\",$E$7=$U$11),\"\",Implements!S222)","v":""}]
[]
[null,null,null,"Tractor Name","Tractor Size","Specified\nUse Hours","Annual Use\nby Crop\nwith Guidance",null,null,"Annual Use for \nSpecified Field Operations \nwith Guidance",null,"Weighted Avg.\nOperating Cost\n$/hr","Capital\nRecovery\n$/hr",null,null,null,null,null,null,"Show/Hide Tractor Columns in Output Comparsion"]
[]
[null,{"$f":"IF($T$1=FALSE,Implements!$B$4,\"\")","v":""},null,{"$f":"Implements!C130","v":"Tractor 1"},{"$f":"Implements!D130","v":"MFWD 190"},{"$f":"IF(J11=0,0,Implements!G216)","v":217.97036056624427},{"$f":"Implements!C216","v":133.14655071122846},{"$f":"Implements!D216","v":40.366504288552306},{"$f":"Implements!E216","v":44.457305566463504},{"$f":"Implements!F216","v":217.97036056624427},null,{"$f":"Implements!H216","v":25.297278924324534},{"$f":"Implements!I216","v":60.902484261351596},null,null,null,null,null,null,true,"Not in use"]
[null,null,null,{"$f":"IF(Implements!E130>=2,Implements!C131,\"No Tractor\")","v":"No Tractor"},{"$f":"IF(D12=\"No Tractor\",\" \",Implements!D131)","v":" "},{"$f":"IF(J12=0,0,IF(D12=\"No Tractor\",\"\",Implements!G217))","v":""},{"$f":"IF(D12=\"No Tractor\",\"\",Implements!C217)","v":""},{"$f":"IF(D12=\"No Tractor\",\"\",Implements!D217)","v":""},{"$f":"IF(D12=\"No Tractor\",\"\",Implements!E217)","v":""},{"$f":"IF(D12=\"No Tractor\",\"\",Implements!F217)","v":""},null,{"$f":"IF(J12=0,0,IF(D12=\"No Tractor\",\"\",Implements!H217))","v":""},{"$f":"IF(J12=0,0,IF(D12=\"No Tractor\",\"\",Implements!I217))","v":""}]
[null,null,null,{"$f":"IF(Implements!E130>=3,Implements!C132,\"No Tractor\")","v":"No Tractor"},{"$f":"IF(D13=\"No Tractor\",\" \",Implements!D132)","v":" "},{"$f":"IF(J13=0,0,IF(D13=\"No Tractor\",\"\",Implements!G218))","v":""},{"$f":"IF(D13=\"No Tractor\",\"\",Implements!C218)","v":""},{"$f":"IF(D13=\"No Tractor\",\"\",Implements!D218)","v":""},{"$f":"IF(D13=\"No Tractor\",\"\",Implements!E218)","v":""},{"$f":"IF(D13=\"No Tractor\",\"\",Implements!F218)","v":""},null,{"$f":"IF(J13=0,0,IF(D13=\"No Tractor\",\"\",Implements!H218))","v":""},{"$f":"IF(J13=0,0,IF(D13=\"No Tractor\",\"\",Implements!I218))","v":""}]
[null,null,null,{"$f":"IF(Implements!E130>=4,Implements!C133,\"No Tractor\")","v":"No Tractor"},{"$f":"IF(D14=\"No Tractor\",\" \",Implements!D133)","v":" "},{"$f":"IF(J14=0,0,IF(D14=\"No Tractor\",\"\",Implements!G219))","v":""},{"$f":"IF(D14=\"No Tractor\",\"\",Implements!C219)","v":""},{"$f":"IF(D14=\"No Tractor\",\"\",Implements!D219)","v":""},{"$f":"IF(D14=\"No Tractor\",\"\",Implements!E219)","v":""},{"$f":"IF(D14=\"No Tractor\",\"\",Implements!F219)","v":""},null,{"$f":"IF(J14=0,0,IF(D14=\"No Tractor\",\"\",Implements!H219))","v":""},{"$f":"IF(J14=0,0,IF(D14=\"No Tractor\",\"\",Implements!I219))","v":""}]
[]
[null,null,null,"Implement— Size — TG Selection","Tractor Selection","Benchmark\nEstimated\nAnnual Use","Annual Use\nby Crop\nwith Guidance",null,null,"Annual\nUse Hours\nwith Guidance",null,"Fuel Cost \n$/hr","Repair &\nMaintenance\n$/hr","Capital\nRecovery\n$/hr","\nTotal Cost\n$/hr","Acres\nper hour","Total Cost \n$/acre",null,null,"Tractor Match \nError Checking:\nIf ≥ Req'd HP, True","Tractor Match \nError Checking:\nIf ≤ Req'd HP, True"]
[]
[null,{"$f":"IF($T$1=FALSE,CONCATENATE(Implements!$B$29,\"s\"),\"\")","v":""},null,{"$f":"IF((Implements!M207+Implements!N207+Implements!O207)=0,$U$11,CONCATENATE(Implements!B134,\" 1 — \",Implements!F134,\" — \",Implements!Z134))","v":"Row Planter 1 — 8R-30 — Sub-meter Receiver 1"},{"$f":"IF(D18=$U$11,\"\",Implements!D134)","v":"Tractor 1"},{"$f":"IF(D18=$U$11,\"\",IF(E18=\"No Tractor\",\" \",Implements!S226))","v":57.692307692307679},{"$f":"IF($D$18=$U$11,\"\",IF($E$18=\"No Tractor\",\" \",Implements!P207))","v":33.86692556049762},{"$f":"IF($D$18=$U$11,\"\",IF($E$18=\"No Tractor\",\" \",Implements!Q207))","v":22.577950373665079},{"$f":"IF($D$18=$U$11,\"\",IF($E$18=\"No Tractor\",\" \",Implements!R207))","v":0},{"$f":"IF($D$18=$U$11,\"\",IF($E$18=\"No Tractor\",\" \",Implements!S207))","v":56.444875934162695},null,{"$f":"IF(D18=$U$11,\"\",IF(E18=\"No Tractor\",\" \",Implements!AP170))","v":14.629999999999999},{"$f":"IF(D18=$U$11,\"\",IF(E18=\"No Tractor\",\" \",Implements!AQ170))","v":43.466666666666669},{"$f":"IF(D18=$U$11,\"\",IF(E18=\"No Tractor\",\" \",Implements!AR170))","v":119.31065726286383},{"$f":"IF(D18=$U$11,\"\",IF(E18=\"No Tractor\",\" \",SUM(Implements!AO170:AR170)))","v":195.07732392953051},{"$f":"IF(D18=$U$11,\"\",IF(E18=\"No Tractor\",\" \",Implements!W170))","v":8.8582000000000001},{"$f":"IF(D18=$U$11,\"\",IF(E18=\"No Tractor\",\" \",O18/P18))","v":22.022230693541633},null,null,{"$f":"Implements!X134","v":false},{"$f":"Implements!Y134","v":false}]
[null,null,null,{"$f":"IF((Implements!M208+Implements!N208+Implements!O208)=0,$U$11,CONCATENATE(Implements!B135,\" 2 — \",Implements!F135,\" — \",Implements!Z135))","v":"Not in use"},{"$f":"IF(D19=$U$11,\"\",Implements!D135)","v":""},{"$f":"IF(D19=$U$11,\"\",IF(E19=\"No Tractor\",\" \",Implements!S227))","v":""},{"$f":"IF($D$19=$U$11,\"\",IF($E$19=\"No Tractor\",\" \",Implements!P208))","v":""},{"$f":"IF($D$19=$U$11,\"\",IF($E$19=\"No Tractor\",\" \",Implements!Q208))","v":""},{"$f":"IF($D$19=$U$11,\"\",IF($E$19=\"No Tractor\",\" \",Implements!R208))","v":""},{"$f":"IF($D$19=$U$11,\"\",IF($E$19=\"No Tractor\",\" \",Implements!S208))","v":""},null,{"$f":"IF(D19=$U$11,\"\",IF(E19=\"No Tractor\",\" \",Implements!AP171))","v":""},{"$f":"IF(D19=$U$11,\"\",IF(E19=\"No Tractor\",\" \",Implements!AQ171))","v":""},{"$f":"IF(D19=$U$11,\"\",IF(E19=\"No Tractor\",\" \",Implements!AR171))","v":""},{"$f":"IF(D19=$U$11,\"\",IF(E19=\"No Tractor\",\" \",SUM(Implements!AO171:AR171)))","v":""},{"$f":"IF(D19=$U$11,\"\",IF(E19=\"No Tractor\",\" \",Implements!W171))","v":""},{"$f":"IF(D19=$U$11,\"\",IF(E19=\"No Tractor\",\" \",O19/P19))","v":""},null,null,{"$f":"Implements!X135","v":false},{"$f":"Implements!Y135","v":false}]
[]
[null,{"$f":"IF($T$1=FALSE,\"Grain Drills\",\"\")","v":""},null,{"$f":"IF((Implements!M209+Implements!N209+Implements!O209)=0,$U$11,CONCATENATE(Implements!B136,\" — \",Implements!F136,\" ft\",\" — \",Implements!Z136))","v":"No-Till Grain Drill — 12 ft — Sub-meter Receiver 1"},{"$f":"IF(D21=$U$11,\"\",Implements!D136)","v":"Tractor 1"},{"$f":"IF(D21=$U$11,\"\",IF(E21=\"No Tractor\",\" \",Implements!S228))","v":19.642857142857142},{"$f":"IF($D$21=$U$11,\"\",IF($E$21=\"No Tractor\",\" \",Implements!P209))","v":0},{"$f":"IF($D$21=$U$11,\"\",IF($E$21=\"No Tractor\",\" \",Implements!Q209))","v":0},{"$f":"IF($D$21=$U$11,\"\",IF($E$21=\"No Tractor\",\" \",Implements!R209))","v":19.218136329964921},{"$f":"IF($D$21=$U$11,\"\",IF($E$21=\"No Tractor\",\" \",Implements!S209))","v":19.218136329964921},null,{"$f":"IF(D21=$U$11,\"\",IF(E21=\"No Tractor\",\" \",Implements!AP172))","v":14.629999999999999},{"$f":"IF(D21=$U$11,\"\",IF(E21=\"No Tractor\",\" \",Implements!AQ172))","v":30.2},{"$f":"IF(D21=$U$11,\"\",IF(E21=\"No Tractor\",\" \",Implements!AR172))","v":207.77558397783059},{"$f":"IF(D21=$U$11,\"\",IF(E21=\"No Tractor\",\" \",SUM(Implements!AO172:AR172)))","v":270.27558397783059},{"$f":"IF(D21=$U$11,\"\",IF(E21=\"No Tractor\",\" \",Implements!W172))","v":5.2034181818181819},{"$f":"IF(D21=$U$11,\"\",IF(E21=\"No Tractor\",\" \",O21/P21))","v":51.941930195468302},null,null,{"$f":"Implements!X136","v":true},{"$f":"Implements!Y136","v":false}]
[null,null,null,{"$f":"IF((Implements!M210+Implements!N210+Implements!O210)=0,$U$11,CONCATENATE(Implements!B137,\" — \",Implements!F137,\" ft\",\" — \",Implements!Z137))","v":"Not in use"},{"$f":"IF(D22=$U$11,\"\",Implements!D137)","v":""},{"$f":"IF(D22=$U$11,\"\",IF(E22=\"No Tractor\",\" \",Implements!S229))","v":""},{"$f":"IF($D$22=$U$11,\"\",IF($E$22=\"No Tractor\",\" \",Implements!P210))","v":""},{"$f":"IF($D$22=$U$11,\"\",IF($E$22=\"No Tractor\",\" \",Implements!Q210))","v":""},{"$f":"IF($D$22=$U$11,\"\",IF($E$22=\"No Tractor\",\" \",Implements!R210))","v":""},{"$f":"IF($D$22=$U$11,\"\",IF($E$22=\"No Tractor\",\" \",Implements!S210))","v":""},null,{"$f":"IF(D22=$U$11,\"\",IF(E22=\"No Tractor\",\" \",Implements!AP173))","v":""},{"$f":"IF(D22=$U$11,\"\",IF(E22=\"No Tractor\",\" \",Implements!AQ173))","v":""},{"$f":"IF(D22=$U$11,\"\",IF(E22=\"No Tractor\",\" \",Implements!AR173))","v":""},{"$f":"IF(D22=$U$11,\"\",IF(E22=\"No Tractor\",\" \",SUM(Implements!AO173:AR173)))","v":""},{"$f":"IF(D22=$U$11,\"\",IF(E22=\"No Tractor\",\" \",Implements!W173))","v":""},{"$f":"IF(D22=$U$11,\"\",IF(E22=\"No Tractor\",\" \",O22/P22))","v":""},null,null,{"$f":"Implements!X137","v":true},{"$f":"Implements!Y137","v":false}]
[]
[null,{"$f":"IF($T$1=FALSE,CONCATENATE(Implements!$B$36,\"s\"),\"\")","v":""},null,{"$f":"IF((Implements!M211+Implements!N211+Implements!O211)=0,$U$11,CONCATENATE(Implements!B138,\" 1 — \",Implements!F138,\" ft\",\" — \",Implements!Z138))","v":"Over-the-Top Sprayer 1 — 120 ft — Sub-meter Receiver 1"},{"$f":"IF(D24=$U$11,\"\",Implements!D138)","v":"Tractor 1"},{"$f":"IF(D24=$U$11,\"\",IF(E24=\"No Tractor\",\" \",Implements!S230))","v":76.479289940828409},{"$f":"IF($D$24=$U$11,\"\",IF($E$24=\"No Tractor\",\" \",Implements!P211))","v":62.089363527578953},{"$f":"IF($D$24=$U$11,\"\",IF($E$24=\"No Tractor\",\" \",Implements!Q211))","v":9.5522097734736846},{"$f":"IF($D$24=$U$11,\"\",IF($E$24=\"No Tractor\",\" \",Implements!R211))","v":3.1840699244912285},{"$f":"IF($D$24=$U$11,\"\",IF($E$24=\"No Tractor\",\" \",Implements!S211))","v":74.825643225543857},null,{"$f":"IF(D24=$U$11,\"\",IF(E24=\"No Tractor\",\" \",Implements!AP174))","v":14.629999999999999},{"$f":"IF(D24=$U$11,\"\",IF(E24=\"No Tractor\",\" \",Implements!AQ174))","v":45.046666666666667},{"$f":"IF(D24=$U$11,\"\",IF(E24=\"No Tractor\",\" \",Implements!AR174))","v":138.7259236950801},{"$f":"IF(D24=$U$11,\"\",IF(E24=\"No Tractor\",\" \",SUM(Implements!AO174:AR174)))","v":216.07259036174676},{"$f":"IF(D24=$U$11,\"\",IF(E24=\"No Tractor\",\" \",Implements!W174))","v":62.812690909090918},{"$f":"IF(D24=$U$11,\"\",IF(E24=\"No Tractor\",\" \",O24/P24))","v":3.4399511823887559},null,null,{"$f":"Implements!X138","v":false},{"$f":"Implements!Y138","v":true}]
[null,null,null,{"$f":"IF((Implements!M212+Implements!N212+Implements!O212)=0,$U$11,CONCATENATE(Implements!B139,\" 2 — \",Implements!F139,\" ft\",\" — \",Implements!Z139))","v":"Post-Directed Sprayer 2 — 8R-30 ft — Sub-meter Receiver 1"},{"$f":"IF(D25=$U$11,\"\",Implements!D139)","v":"Tractor 1"},{"$f":"IF(D25=$U$11,\"\",IF(E25=\"No Tractor\",\" \",Implements!S231))","v":25.384615384615383},{"$f":"IF($D$25=$U$11,\"\",IF($E$25=\"No Tractor\",\" \",Implements!P212))","v":24.835745411031581},{"$f":"IF($D$25=$U$11,\"\",IF($E$25=\"No Tractor\",\" \",Implements!Q212))","v":0},{"$f":"IF($D$25=$U$11,\"\",IF($E$25=\"No Tractor\",\" \",Implements!R212))","v":0},{"$f":"IF($D$25=$U$11,\"\",IF($E$25=\"No Tractor\",\" \",Implements!S212))","v":24.835745411031581},null,{"$f":"IF(D25=$U$11,\"\",IF(E25=\"No Tractor\",\" \",Implements!AP175))","v":14.629999999999999},{"$f":"IF(D25=$U$11,\"\",IF(E25=\"No Tractor\",\" \",Implements!AQ175))","v":15.253125000000001},{"$f":"IF(D25=$U$11,\"\",IF(E25=\"No Tractor\",\" \",Implements!AR175))","v":95.492787646628898},{"$f":"IF(D25=$U$11,\"\",IF(E25=\"No Tractor\",\" \",SUM(Implements!AO175:AR175)))","v":143.04591264662889},{"$f":"IF(D25=$U$11,\"\",IF(E25=\"No Tractor\",\" \",Implements!W175))","v":12.079363636363638},{"$f":"IF(D25=$U$11,\"\",IF(E25=\"No Tractor\",\" \",O25/P25))","v":11.842172895267794},null,null,{"$f":"Implements!X139","v":true},{"$f":"Implements!Y139","v":false}]
[]
[null,{"$f":"IF($T$1=FALSE,Implements!$B$41,\"\")","v":""},null,{"$f":"IF((Implements!M213+Implements!N213+Implements!O213)=0,$U$11,CONCATENATE(Implements!B140,\" — \",Implements!F140,\" ft\",\" — \",Implements!Z140))","v":"Fertilizer Spreader — 40 ft — Sub-meter Receiver 1"},{"$f":"IF(D27=$U$11,\"\",Implements!D140)","v":"Tractor 1"},{"$f":"IF(D27=$U$11,\"\",IF(E27=\"No Tractor\",\" \",Implements!S232))","v":25.255102040816332},{"$f":"IF($D$27=$U$11,\"\",IF($E$27=\"No Tractor\",\" \",Implements!P213))","v":12.354516212120306},{"$f":"IF($D$27=$U$11,\"\",IF($E$27=\"No Tractor\",\" \",Implements!Q213))","v":8.2363441414135377},{"$f":"IF($D$27=$U$11,\"\",IF($E$27=\"No Tractor\",\" \",Implements!R213))","v":4.1181720707067688},{"$f":"IF($D$27=$U$11,\"\",IF($E$27=\"No Tractor\",\" \",Implements!S213))","v":24.709032424240611},null,{"$f":"IF(D27=$U$11,\"\",IF(E27=\"No Tractor\",\" \",Implements!AP176))","v":14.629999999999999},{"$f":"IF(D27=$U$11,\"\",IF(E27=\"No Tractor\",\" \",Implements!AQ176))","v":17.166666666666668},{"$f":"IF(D27=$U$11,\"\",IF(E27=\"No Tractor\",\" \",Implements!AR176))","v":93.712473576284623},{"$f":"IF(D27=$U$11,\"\",IF(E27=\"No Tractor\",\" \",SUM(Implements!AO176:AR176)))","v":143.17914024295129},{"$f":"IF(D27=$U$11,\"\",IF(E27=\"No Tractor\",\" \",Implements!W176))","v":24.282618181818179},{"$f":"IF(D27=$U$11,\"\",IF(E27=\"No Tractor\",\" \",O27/P27))","v":5.8963633645632951},null,null,{"$f":"Implements!X140","v":true},{"$f":"Implements!Y140","v":false}]
[]
[null,{"$f":"IF(T1=FALSE,Implements!$B$42,\"\")","v":""},null,{"$f":"IF((Implements!M214+Implements!N214+Implements!O214)=0,$U$11,CONCATENATE(Implements!B141,\" — \",Implements!F141,\" ft\",\" — \",Implements!Z141))","v":"Manure Spreader — 15 ft — Sub-meter Receiver 1"},{"$f":"IF(D29=$U$11,\"\",Implements!D141)","v":"Tractor 1"},{"$f":"IF(D29=$U$11,\"\",IF(E29=\"No Tractor\",\" \",Implements!S233))","v":18.333333333333332},{"$f":"IF($D$29=$U$11,\"\",IF($E$29=\"No Tractor\",\" \",Implements!P214))","v":0},{"$f":"IF($D$29=$U$11,\"\",IF($E$29=\"No Tractor\",\" \",Implements!Q214))","v":0},{"$f":"IF($D$29=$U$11,\"\",IF($E$29=\"No Tractor\",\" \",Implements!R214))","v":17.936927241300587},{"$f":"IF($D$29=$U$11,\"\",IF($E$29=\"No Tractor\",\" \",Implements!S214))","v":17.936927241300587},null,{"$f":"IF(D29=$U$11,\"\",IF(E29=\"No Tractor\",\" \",Implements!AP177))","v":14.629999999999999},{"$f":"IF(D29=$U$11,\"\",IF(E29=\"No Tractor\",\" \",Implements!AQ177))","v":12.906975000000001},{"$f":"IF(D29=$U$11,\"\",IF(E29=\"No Tractor\",\" \",Implements!AR177))","v":117.30974743138157},{"$f":"IF(D29=$U$11,\"\",IF(E29=\"No Tractor\",\" \",SUM(Implements!AO177:AR177)))","v":162.51672243138157},{"$f":"IF(D29=$U$11,\"\",IF(E29=\"No Tractor\",\" \",Implements!W177))","v":5.5750909090909095},{"$f":"IF(D29=$U$11,\"\",IF(E29=\"No Tractor\",\" \",O29/P29))","v":29.150506257463345},null,null,{"$f":"Implements!X141","v":true},{"$f":"Implements!Y141","v":false}]
[]
[]
[]
[]
[null,"Disclaimer: The information provided within represents estimates that are a result of a set of complex calculations that are described in more detail in the user manual. Changes in parameter values and its implications on returns are estimates and the user should use their own reasonable judgment to reflect whether the direction of change in returns is appropriate before acting on the results. As such, this software is provided ‘as is’ and without warranties as to performance of merchantability. Further, statements may have been made to you about this software. Any such statements do not constitute warranties and shall not be relied on by the user in deciding whether to use the program or act on its results. This program is provided without any expressed or implied warranties whatsoever. Because the diversity of conditions and hardware under which this program may be used, no warranty of merchantability or warranty of fitness for a particular purpose is offered. The user is advised to test the program thoroughly before relying on it. The user assumes the entire risk of using the program. The University of Arkansas will not be liable for any claim or damage brought against the user by any third party, nor will the University of Arkansas be liable for any consequential, indirect or special damages suffered by the user as a result of the software."]

{"sheet":"Crop 1","index":3,"n_rows":74,"n_cols":79,"rows_kept":74,"cut":false,"hidden":false,"merged":[[0,44,0,46],[0,26,0,43],[73,1,73,23],[5,2,9,2],[9,15,9,23],[4,1,4,23],[9,5,9,14],[4,33,5,34],[0,0,2,24]]}
[{"$f":"CONCATENATE($Z$2,\" Production Practices \",\"for \",Inputs!$J$5)","v":"Cotton Production Practices for Circle C Farms"},null,null,null,null,null,null,null,null,null,null,null,null,null,null,null,null,null,null,null,null,null,null,null,null,true,"Conversion Factors",null,null,null,null,null,null,null,null,null,null,null,null,null,null,null,null,null,"Data Validation Lookups",null,null,"Planting Operation Check"]
[null,null,null,null,null,null,null,null,null,null,null,null,null,null,null,null,null,null,null,null,null,null,null,null,null,"Cotton",{"$f":"Defaults!Q15","v":"qt"},0.25,{"$f":"Defaults!Q19","v":"gal"},{"$f":"Defaults!Q17","v":"oz"},6.25E-2,{"$f":"Defaults!Q20","v":"lb"},{"$f":"Defaults!Q20","v":"lb"},112,{"$f":"Defaults!Q18","v":"cwt"},{"$f":"Defaults!Q15","v":"qt"},0.5,{"$f":"Defaults!Q16","v":"pt"},{"$f":"Defaults!Q20","v":"lb"},2000,{"$f":"Defaults!Q21","v":"ton"},{"$f":"Defaults!Q15","v":"qt"},3.125E-2,{"$f":"Defaults!Q17","v":"oz"},"Operations","Planter\nOperations","Herbicides",{"$f":"IF($AT$3=Defaults!$I$3,Defaults!$I$7,IF($AT$3=Defaults!$I$11,Defaults!$I$15,IF($AT$3=Defaults!$I$17,Defaults!$I$21,\"\")))","v":"Row Planter 1"}]
[null,null,null,null,null,null,null,null,null,null,null,null,null,null,null,null,null,null,null,null,null,null,null,null,null,false,{"$f":"Defaults!Q16","v":"pt"},0.125,null,{"$f":"Defaults!Q18","v":"cwt"},8.9285700000000003E-3,null,null,null,null,null,null,null,null,null,null,{"$f":"Defaults!Q16","v":"pt"},6.25E-2,null,{"$f":"IF(OR($Z$2=Defaults!$M$5,$Z$2=Defaults!$M$6,$Z$2=Defaults!$M$7,$Z$2=Defaults!$M$8,$Z$2=Defaults!$M$9,$Z$2=Defaults!$M$10)=TRUE,Defaults!$I$38,FALSE)","v":"BudgetInsect"},{"$f":"IF(OR($Z$2=Defaults!$M$5,$Z$2=Defaults!$M$6,$Z$2=Defaults!$M$7,$Z$2=Defaults!$M$10)=TRUE,Defaults!$I$17,IF(OR($Z$2=Defaults!$M$9,$Z$2=Defaults!$M$11,$Z$2=Defaults!$M$12)=TRUE,Defaults!$I$11,Defaults!$I$3))","v":"BudgetPlantOther"},{"$f":"IF(OR(C13=\"\",L13=\"\",L13=0)=TRUE,FALSE,IF($Z$2=Defaults!$M$5,Defaults!$AL$2,IF($Z$2=Defaults!$M$6,Defaults!$AS$2,IF($Z$2=Defaults!$M$7,Defaults!$AZ$2,IF($Z$2=Defaults!$M$8,Defaults!$BG$2,IF($Z$2=Defaults!$M$9,Defaults!$BN$2,IF($Z$2=Defaults!$M$12,Defaults!$CI$2,FALSE)))))))","v":"CottonBD"},{"$f":"IF($AT$3=Defaults!$I$3,Defaults!$I$8,IF($AT$3=Defaults!$I$11,Defaults!$I$16,IF($AT$3=Defaults!$I$17,Defaults!$I$22,\"\")))","v":""}]
[null,null,null,null,null,null,null,null,null,null,null,null,null,null,null,null,null,null,null,null,null,null,null,null,null,"Benchmark\n(No Tractor Guidance)",{"$f":"Defaults!Q17","v":"oz"},7.8125E-3,null,null,null,null,null,null,null,null,null,null,null,null,null,null,null,null,{"$f":"IF(OR(C33=\"\",L33=\"\",L33=0)=TRUE,FALSE,IF($AS$3=FALSE,FALSE,IF(OR($Z$2=Defaults!$M$5,$Z$2=Defaults!$M$6,$Z$2=Defaults!$M$7,$Z$2=Defaults!$M$8,$Z$2=Defaults!$M$9,$Z$2=Defaults!$M$10)=TRUE,Defaults!$T$20)))","v":"Insecticide"},{"$f":"IF($C$31=\"\",\"\",IF($AT$3=Defaults!$I$3,VLOOKUP($C$31,Defaults!$I$4:$K$10,3,FALSE),IF($AT$3=Defaults!$I$11,VLOOKUP($C$31,Defaults!$I$12:$K$16,3,FALSE),IF($AT$3=Defaults!$I$17,VLOOKUP($C$31,Defaults!$I$18:$K$22,3,FALSE)))))","v":""},{"$f":"IF(OR(C18=\"\",L18=\"\",L18=0)=TRUE,FALSE,IF($Z$2=Defaults!$M$5,Defaults!$AL$18,IF($Z$2=Defaults!$M$7,Defaults!$AZ$18,IF($Z$2=Defaults!$M$8,Defaults!$BG$18,IF($Z$2=Defaults!$M$9,Defaults!$BN$18,IF($Z$2=Defaults!$M$10,Defaults!$BU$18,IF($Z$2=Defaults!$M$12,Defaults!$CI$2,FALSE)))))))","v":"CottonPP"},{"$f":"IF($AT$3=Defaults!$I$3,Defaults!$I$7,IF($AT$3=Defaults!$I$11,Defaults!$I$15,\"\"))","v":""}]
[null,{"$f":"IF(Z1=FALSE,\"\",\"Modify Green Cells Below\")","v":"Modify Green Cells Below"},null,null,null,null,null,null,null,null,null,null,null,null,null,null,null,null,null,null,null,null,null,null,null,"Adjusted for\nTractor Guidance","Partial Returns ($/acre):",null,null,null,null,null,null,{"$f":"Defaults!M25","v":"Labor Multiplier by Operation"},null,null,null,null,null,null,null,null,null,null,{"$f":"IF($Z$2=Defaults!$M$5,Defaults!$I$52,IF($Z$2=Defaults!$M$10,Defaults!$I$43,IF($Z$2=Defaults!$M$12,Defaults!$I$48,FALSE)))","v":"BudgetDefol"},null,{"$f":"IF(OR(C48=\"\",L48=\"\",L48=0)=TRUE,FALSE,IF($Z$2=Defaults!$M$5,Defaults!$AL$36,IF($Z$2=Defaults!$M$6,Defaults!$AS$36,IF($Z$2=Defaults!$M$7,Defaults!$AZ$36,IF($Z$2=Defaults!$M$8,Defaults!$BG$36,IF($Z$2=Defaults!$M$9,Defaults!$BN$36,IF($Z$2=Defaults!$M$10,Defaults!$BU$36,IF($Z$2=Defaults!$M$11,Defaults!$CB$36,FALSE))))))))","v":"CottonPRE"},{"$f":"IF($AT$3=Defaults!$I$3,Defaults!$I$8,IF($AT$3=Defaults!$I$11,Defaults!$I$16,\"\"))","v":""}]
[null,null,{"$f":"IF($Z$1=TRUE,\"Modify budget specifications\nusing the green\ncells provided\",\"\")","v":"Modify budget specifications\nusing the green\ncells provided"},null,null,null,null,null,null,null,null,null,null,null,null,null,null,null,null,null,{"$f":"F10","v":"Benchmark without Tractor Guidance"},null,null,"Adjusted for \nTractor Guidance",null,"Cost Savings ($/acre):",{"$f":"\"/acre\"","v":"/acre"},null,null,null,null,null,null,null,null,null,null,null,null,null,null,null,null,null,{"$f":"IF(OR(C39=\"\",L39=\"\",L39=0)=TRUE,FALSE,IF($Z$2=Defaults!$M$5,Defaults!$T$37,IF($Z$2=Defaults!$M$10,Defaults!$T$32,IF($Z$2=Defaults!$M$12,Defaults!$T$16,FALSE))))","v":"Defoliant"},null,{"$f":"IF(OR(C55=\"\",L55=\"\",L55=0)=TRUE,FALSE,IF($Z$2=Defaults!$M$5,Defaults!$AL$64,IF($Z$2=Defaults!$M$6,Defaults!$AS$64,IF($Z$2=Defaults!$M$7,Defaults!$AZ$64,IF($Z$2=Defaults!$M$8,Defaults!$BG$64,IF($Z$2=Defaults!$M$9,Defaults!$BN$64,IF($Z$2=Defaults!$M$10,Defaults!$BU$64,FALSE)))))))","v":"CottonPOST"},{"$f":"IF($AT$3=Defaults!$I$3,Defaults!$I$9,\"\")","v":""}]
[null,null,null,null,null,null,null,null,null,null,null,null,null,null,null,null,{"$f":"IF($Z$2=Defaults!$M$12,\"Efficiency Gains ($/acre):\",AA5)","v":"Partial Returns ($/acre):"},null,null,null,{"$f":"IF($Z$2=Defaults!$M$12,\"\",IFERROR(+IF($Z$2=Defaults!$M$12,\"\",U8*Inputs!$K$13)-N68,0))","v":311.50130847883548},null,null,{"$f":"IF($Z$2=Defaults!$M$12,-AO68,IFERROR(+X8*Inputs!$K$13-W68,0))","v":396.82180223730984},null,{"$f":"CONCATENATE(Implements!$B$36,\" Trips\")","v":"Over-the-Top Sprayer Trips"},{"$f":"(IF(C13=Defaults!$I$27,L13,0)+IF(C18=Defaults!$I$27,L18,0)+IF(C33=Defaults!$I$41,L33,0)+IF(OR(C39=Defaults!$I$46,C39=Defaults!$I$55)=TRUE,L39,0)+IF(OR(C44=Defaults!$I$60,C44=Defaults!$I$65)=TRUE,L44,0)+IF(C48=Defaults!$I$27,L48,0)+IF(C55=Defaults!$I$27,L55,0))","v":13},{"$f":"CONCATENATE(Implements!$B$39,\" Trips\")","v":"Post-Directed Sprayer Trips"},{"$f":"IF(C61=Defaults!$I$33,L61,0)","v":1},{"$f":"CONCATENATE(Implements!$B$41,\" Trips\")","v":"Fertilizer Spreader Trips"},{"$f":"IF(C23=Defaults!$I$37,L23,0)+IF(C39=Defaults!$I$37,L39,0)","v":1},{"$f":"CONCATENATE(Implements!$B$42,\" Trips\")","v":"Manure Spreader Trips"},{"$f":"IF(C39=Defaults!$I$51,L39,0)","v":0},{"$f":"Defaults!M26","v":"Field Preparation"},{"$f":"Defaults!N26","v":1.5},null,null,null,null,null,null,null,null,null,{"$f":"IF($Z$2=Defaults!$M$5,Defaults!$I$57,IF($Z$2=Defaults!$M$8,Defaults!$I$62,FALSE))","v":"BudgetGrowthReg"},null,{"$f":"IF(OR(C61=\"\",L61=\"\",L61=0)=TRUE,FALSE,IF($Z$2=Defaults!$M$5,Defaults!$AL$84,FALSE))","v":"CottonLAY"},{"$f":"IF($AT$3=Defaults!$I$3,Defaults!$I$10,\"\")","v":""}]
[null,null,null,null,null,null,null,null,null,null,null,null,null,null,null,null,{"$f":"IF($Z$2=Defaults!M12,$Z$6,\"Yield (units/acre):\")","v":"Yield (units/acre):"},null,null,null,{"$f":"IF($Z$2=Defaults!$M$12,\"\",ROUND(VLOOKUP($Z$2,Inputs!$B$13:$F$17,5,FALSE),IF($Z$2=Defaults!$M$10,2,0)))","v":1200},null,null,{"$f":"IF($Z$2=Defaults!$M$12,-AK68,ROUND(VLOOKUP(Z2,Inputs!$B$13:$F$17,5,FALSE)*(1+Implements!$E$159+Implements!$E$160+Implements!$E$161+Implements!$E$162+Implements!$E$163+Implements!$E$164+Implements!$E$165),IF($Z$2=Defaults!$M$10,2,0)))","v":1248},null,{"$f":"CONCATENATE(Implements!$B$36,\" Trips\")","v":"Over-the-Top Sprayer Trips"},{"$f":"(IF(C13=Defaults!$I$27,V13,0)+IF(C18=Defaults!$I$27,V18,0)+IF(C33=Defaults!$I$41,V33,0)+IF(OR(C39=Defaults!$I$46,C39=Defaults!$I$55)=TRUE,V39,0)+IF(OR(C44=Defaults!$I$60,C44=Defaults!$I$65)=TRUE,V44,0)+IF(C48=Defaults!$I$27,V48,0)+IF(C55=Defaults!$I$27,V55,0))","v":13},{"$f":"CONCATENATE(Implements!$B$39,\" Trips\")","v":"Post-Directed Sprayer Trips"},{"$f":"IF(C61=Defaults!$I$33,V61,0)","v":1},{"$f":"CONCATENATE(Implements!$B$41,\" Trips\")","v":"Fertilizer Spreader Trips"},{"$f":"IF(C23=Defaults!$I$37,V23,0)+IF(C39=Defaults!$I$37,V39,0)","v":1},{"$f":"CONCATENATE(Implements!$B$42,\" Trips\")","v":"Manure Spreader Trips"},{"$f":"IF(C39=Defaults!$I$51,V39,0)","v":0},{"$f":"Defaults!M27","v":"Planting"},{"$f":"Defaults!N27","v":1.5},null,null,null,null,null,null,null,null,null,{"$f":"IF(OR(C44=\"\",L44=\"\",L44=0)=TRUE,FALSE,IF($Z$2=Defaults!$M$5,Defaults!$T$44,IF($Z$2=Defaults!$M$8,Defaults!$T$49,FALSE)))","v":"GrowthRegulator"},null,null,{"$f":"Defaults!$I$5","v":"Custom Ground Seeding"}]
[null,null,null,null,null,null,null,null,null,null,null,null,null,null,null,null,null,null,null,null,null,null,null,null,null,{"$f":"IF($Z$2=Defaults!$M$5,5,IF($Z$2=Defaults!$M$6,6,IF($Z$2=Defaults!$M$7,7,IF($Z$2=Defaults!$M$8,8,IF($Z$2=Defaults!$M$9,9,IF($Z$2=Defaults!$M$10,10,IF($Z$2=Defaults!$M$11,11,IF($Z$2=Defaults!$M$12,12))))))))","v":5},null,null,null,null,null,null,null,{"$f":"Defaults!M28","v":"Fertilizer"},{"$f":"Defaults!N28","v":1.5},null,null,null,null,null,null,null,null,null,null,null,null,{"$f":"Defaults!$I$6","v":"Custom Air Seeding"}]
[null,null,null,null,null,"Benchmark without Tractor Guidance",null,null,null,null,null,null,null,null,null,"Adjusted for Tractor Guidance",null,null,null,null,null,null,null,null,null,true,null,null,null,null,null,null,null,{"$f":"Defaults!M29","v":"Post-Plant Field Work"},{"$f":"Defaults!N29","v":1.5},null,{"$f":"ROUND(SUM(IFERROR(1/F13*G13*L13,0)+IFERROR(1/F18*G18*L18,0)+IFERROR(1/F23*G23*L23,0)+IFERROR(1/F31*G31*L31,0)+IFERROR(1/F33*G33*L33,0)+IFERROR(1/F39*G39*L39,0)+IFERROR(1/F44*G44*L44,0)+IFERROR(1/F48*G48*L48,0)+IFERROR(1/F55*G55*L55,0)+IFERROR(1/F61*G61*L61,0)),2)","v":3.79},"gallons/acre for all non-custom done field work tracked",null,null,null,null,null,{"$f":"ROUND(SUM(IFERROR(1/Q13*R13*V13,0)+IFERROR(1/Q18*R18*V18,0)+IFERROR(1/Q23*R23*V23,0)+IFERROR(1/Q31*R31*V31,0)+IFERROR(1/Q33*R33*V33,0)+IFERROR(1/Q39*R39*V39,0)+IFERROR(1/Q44*R44*V44,0)+IFERROR(1/Q48*R48*V48,0)+IFERROR(1/Q55*R55*V55,0)+IFERROR(1/Q61*R61*V61,0)),2)","v":3.71},"gallons/acre for all non-custom done field work tracked"]
[null,null,"Operation/\n   Operating Input","Timing","Unit","Performance Rate\n(acres/hour)","Fuel\n(gal/hr)","R&M\n($/hr)","Capital Recovery\n($/hr)","\nCost/Unit\n($/acre)","Default\nCost/Unit\n($/acre)","Quantity of\nTrips/Inputs","Default\nQuantity of Trips/Inputs","Total Cost\n($/acre)",null,null,"Performance Rate (acres/hour)\nChange in Quantity (units/acre)","Fuel\n(gal/hr)","R&M\n($/hr)","Capital Recovery\n($/hr)","Cost ($/acre)\nCost ($/unit)","Quantity of\nTrips/Inputs","Total Cost\n($/acre)","Change in Cost\n($/acre)",null,"Operation\nQuantity","Application\nUnit","Application\nQuantity","Application\nMIN","Application\nMAX","Default\nPurchase\nUnit","Default\nInput Price\nLookup","Adjusted\nInput Quantity","Benchmark\nOperation\nCost\n($/acre)","Benchmark\nLabor\nCost\n($/acre)","Benchmark\nFuel\nCost\n($/acre)","Benchmark\nR&M\nCost\n($/acre)","Benchmark\nCapital Recovery\nCost\n($/acre)","Benchmark\nOperation\nInput\nCost\n($/acre)","Benchmark\nSeed\nCost\n($/acre)","Benchmark\nChemical \nCost ($/acre)","Operation\nCost\n($/acre)","Labor\nCost\n($/acre)","Fuel\nCost\n($/acre)","R&M\nCost\n($/acre)","Capital Recovery\nCost\n($/acre)","Operation\nInput\nCost\n($/acre)","Seed\nCost\n($/acre)","Chemical \nCost ($/acre)",null,"Application\nUnit",{"$f":"Defaults!$M$5","v":"Cotton"},{"$f":"Defaults!$M$6","v":"Corn"},{"$f":"Defaults!$M$7","v":"Sorghum"},{"$f":"Defaults!$M$8","v":"Soybean"},{"$f":"Defaults!$M$9","v":"Rice"},{"$f":"Defaults!$M$10","v":"Peanut"},{"$f":"Defaults!$M$11","v":"Wheat"},{"$f":"Defaults!$M$12","v":"Est. Pasture or Hay"},null,"Application\nQuantity",{"$f":"Defaults!$M$5","v":"Cotton"},{"$f":"Defaults!$M$6","v":"Corn"},{"$f":"Defaults!$M$7","v":"Sorghum"},{"$f":"Defaults!$M$8","v":"Soybean"},{"$f":"Defaults!$M$9","v":"Rice"},{"$f":"Defaults!$M$10","v":"Peanut"},{"$f":"Defaults!$M$11","v":"Wheat"},{"$f":"Defaults!$M$12","v":"Est. Pasture or Hay"},null,"Application MAX",{"$f":"Defaults!$M$5","v":"Cotton"},{"$f":"Defaults!$M$6","v":"Corn"},{"$f":"Defaults!$M$7","v":"Sorghum"},{"$f":"Defaults!$M$8","v":"Soybean"},{"$f":"Defaults!$M$9","v":"Rice"},{"$f":"Defaults!$M$10","v":"Peanut"},{"$f":"Defaults!$M$11","v":"Wheat"},{"$f":"Defaults!$M$12","v":"Est. Pasture or Hay"}]
[null,null,"Burndown Weed Control",{"$f":"IF($Z$2=Defaults!$M$5,Cotton!D12,IF($Z$2=Defaults!$M$6,Corn!D12,IF($Z$2=Defaults!$M$7,Sorghum!D12,IF($Z$2=Defaults!$M$8,Soybean!D12,IF($Z$2=Defaults!$M$9,Rice!D12,IF($Z$2=Defaults!$M$10,Peanut!D12,IF($Z$2=Defaults!$M$11,Wheat!D12,IF($Z$2=Defaults!$M$12,Pasture!D12,FALSE))))))))","v":"Spring"},null,null,null,null,null,null,null,null,null,null,null,null,null,null,null,null,null,null,null,null,null,{"$f":"IF($Z$2=Defaults!$M$5,Cotton!B12,IF($Z$2=Defaults!$M$6,Corn!B12,IF($Z$2=Defaults!$M$7,Sorghum!B12,IF($Z$2=Defaults!$M$8,Soybean!B12,IF($Z$2=Defaults!$M$9,Rice!B12,IF($Z$2=Defaults!$M$10,Peanut!B12,IF($Z$2=Defaults!$M$11,Wheat!B12,IF($Z$2=Defaults!$M$12,Pasture!B12,\"\"))))))))","v":"Burndown Weed Control"},null,null,null,null,null,null,null,null,null,null,null,null,null,null,null,null,null,null,null,null,null,null,null,null,"BD",null,null,null,null,null,null,null,null,null,"BD",null,null,null,null,null,null,null,null,null,"BD"]
[null,null,"Over-the-Top Sprayer 1",null,null,{"$f":"IF(L13=0,0,IF(C13=Defaults!$I$27,Implements!$AK$185,IF(C13=Defaults!$I$28,Implements!$AK$186,0)))","v":61.454545454545453},{"$f":"IF($L13=0,0,IFERROR(VLOOKUP($C13,Implements!$X$181:$AN$188,15,FALSE),0))","v":8.36},{"$f":"IF($L13=0,0,IFERROR(VLOOKUP($C13,Implements!$X$181:$AN$188,16,FALSE),0))","v":45.046666666666667},{"$f":"IF($L13=0,0,IFERROR(VLOOKUP($C13,Implements!$X$181:$AN$188,17,FALSE),0))","v":137.64582520078542},{"$f":"IF(OR(C13=\"\",L13=\"\",L13=0)=TRUE,\"\",IF(OR(C13=Defaults!$I$25,C13=Defaults!$I$26)=TRUE,VLOOKUP(C13,Defaults!$I$24:$K$27,3,FALSE),ROUND(1/F13*(1*Inputs!$AA$13+($AI$7-1)*Inputs!$AA$15),2)+ROUND(G13*Inputs!$V$13/F13,2)+ROUND(H13/F13,2)+ROUND(I13/F13,2)))","v":3.5},{"$f":"IF(OR(C13=\"\",L13=\"\",L13=0)=TRUE,\"\",IF(OR(C13=Defaults!$I$25,C13=Defaults!$I$26)=TRUE,VLOOKUP(C13,Defaults!$I$24:$K$27,3,FALSE),ROUND(1/F13*(1*Inputs!$AA$13+($AI$7-1)*Inputs!$AA$15),2)+ROUND(G13*Inputs!$V$13/F13,2)+ROUND(H13/F13,2)+ROUND(I13/F13,2)))","v":3.5},1,{"$f":"AB13","v":1},{"$f":"IF(C13=\"\",0,IF(L13=0,0,IF(L13=\"\",\"\",J13*L13)))","v":3.5},null,null,{"$f":"IF(V13=0,0,IF(C13=Defaults!$I$27,Implements!$AK$174,IF(C13=Defaults!$I$28,Implements!$AK$175,0)))","v":62.812690909090918},{"$f":"IF($V13=0,0,IFERROR(VLOOKUP($C13,Implements!$X$170:$AN$177,15,FALSE),0))","v":8.36},{"$f":"IF($V13=0,0,IFERROR(VLOOKUP($C13,Implements!$X$170:$AN$177,16,FALSE),0))","v":45.046666666666667},{"$f":"IF($V13=0,0,IFERROR(VLOOKUP($C13,Implements!$X$170:$AN$177,17,FALSE),0))","v":138.7259236950801},{"$f":"IF(OR(C13=\"\",V13=\"\",V13=0)=TRUE,\"\",IF(LEFT(C13,6)=\"Custom\",J13,ROUND(1/Q13*(1*Inputs!$AA$13+($AI$7-1)*Inputs!$AA$15),2)+ROUND(R13*Inputs!$V$13/Q13,2)+ROUND(S13/Q13,2)+ROUND(T13/Q13,2)))","v":3.44},{"$f":"+L13","v":1},{"$f":"IF(C13=\"\",\"\",IF(V13=0,0,IF(V13=\"\",\"\",U13*V13)))","v":3.44},{"$f":"IF(C13=\"\",\"\",W13-N13)","v":-6.0000000000000053E-2},null,{"$f":"IF($Z$2=Defaults!$M$5,Cotton!B13,IF($Z$2=Defaults!$M$6,Corn!B13,IF($Z$2=Defaults!$M$7,Sorghum!B13,IF($Z$2=Defaults!$M$8,Soybean!B13,IF($Z$2=Defaults!$M$9,Rice!B13,IF($Z$2=Defaults!$M$10,Peanut!B13,IF($Z$2=Defaults!$M$11,Wheat!B13,IF($Z$2=Defaults!$M$12,Pasture!B13,\"\"))))))))","v":"Over-the-Top Sprayer 1"},null,{"$f":"IF(C13=\"\",\"\",VLOOKUP(C13,Defaults!$I$24:$K$28,2,FALSE))","v":1},0,{"$f":"IF(AB13=\"\",\"\",AB13*2)","v":2},null,null,{"$f":"+AB13","v":1},{"$f":"N13","v":3.5},{"$f":"ROUND(IFERROR(1/F13*(1*Inputs!$AA$13+($AI$7-1)*Inputs!$AA$15),0),2)*L13","v":0.28999999999999998},{"$f":"ROUND(IFERROR(1/F13*G13*Inputs!$V$13,0),2)*L13","v":0.24},{"$f":"ROUND(IFERROR(1/F13*H13,0),2)*L13","v":0.73},{"$f":"ROUND(IFERROR(1/F13*I13,0),2)*L13","v":2.2400000000000002},null,null,null,{"$f":"W13","v":3.44},{"$f":"ROUND(IFERROR(1/Q13*(1*Inputs!$AA$13+($AI$7-1)*Inputs!$AA$15),0),2)*V13","v":0.28000000000000003},{"$f":"ROUND(IFERROR(1/Q13*R13*Inputs!$V$13,0),2)*V13","v":0.23},{"$f":"ROUND(IFERROR(1/Q13*S13,0),2)*V13","v":0.72},{"$f":"ROUND(IFERROR(1/Q13*T13,0),2)*V13","v":2.21},null,null,null,null,null,{"$f":"AZ11","v":"Cotton"},{"$f":"BA11","v":"Corn"},"Sorghum","Soybean","Rice","Peanut","Wheat","Est. Pasture or Hay",null,null,{"$f":"BJ11","v":"Cotton"},{"$f":"BK11","v":"Corn"},"Sorghum","Soybean","Rice","Peanut","Wheat","Est. Pasture or Hay",null,null,{"$f":"BT11","v":"Cotton"},{"$f":"BU11","v":"Corn"},"Sorghum","Soybean","Rice","Peanut","Wheat","Est. Pasture or Hay"]
[null,null,"Glyphosate",null,"pt",null,null,null,null,4.75,{"$f":"IF(C14=\"\",\"\",ROUND(IF(E14=AE14,AF14,IF(AE14=$AC$2,AF14*VLOOKUP(E14,$AA$2:$AB$4,2,FALSE),IF(AE14=$AF$2,AF14*VLOOKUP(E14,$AD$2:$AE$3,2,FALSE),IF(AE14=$AI$2,AF14/VLOOKUP(E14,$AG$2:$AH$2,2,FALSE),IF(AE14=$AL$2,AF14*VLOOKUP(E14,$AJ$2:$AK$2,2,FALSE),IF(AE14=$AO$2,AF14/VLOOKUP(E14,$AM$2:$AN$2,2,FALSE),IF(AE14=$AR$2,AF14*VLOOKUP(E14,$AP$2:$AQ$3,2,FALSE)))))))),2))","v":4.75},2,{"$f":"AB14","v":2},{"$f":"IF(C14=\"\",0,IF(L14=0,0,IF(L14=\"\",\"\",J14*L14)))","v":9.5},null,null,{"$f":"IF(L14>0,ABS(V14-L14),\"\")","v":0.44159999999999999},null,null,null,{"$f":"J14","v":4.75},{"$f":"IF(AG14=0,0,AG14)","v":1.5584},{"$f":"IF(C14=\"\",\"\",IF(V14=0,0,IF(V14=\"\",\"\",U14*V14)))","v":7.4024000000000001},{"$f":"IF(C14=\"\",\"\",W14-N14)","v":-2.0975999999999999},null,{"$f":"IF($Z$2=Defaults!$M$5,Cotton!B14,IF($Z$2=Defaults!$M$6,Corn!B14,IF($Z$2=Defaults!$M$7,Sorghum!B14,IF($Z$2=Defaults!$M$8,Soybean!B14,IF($Z$2=Defaults!$M$9,Rice!B14,IF($Z$2=Defaults!$M$10,Peanut!B14,IF($Z$2=Defaults!$M$11,Wheat!B14,IF($Z$2=Defaults!$M$12,Pasture!B14,\"\"))))))))","v":"Glyphosate"},{"$f":"IF($C14=\"\",\"\",HLOOKUP($Z$2,$AZ$13:$BG$16,2,FALSE))","v":"pt"},{"$f":"IF($C14=\"\",\"\",HLOOKUP($Z$2,$BJ$13:$BQ$16,2,FALSE))","v":2},0,{"$f":"IF($C14=\"\",\"\",HLOOKUP($Z$2,$BT$13:$CA$16,2,FALSE))","v":2},{"$f":"IF(C14=\"\",\"\",VLOOKUP(C14,Defaults!$AH:$AJ,2,FALSE))","v":"gal"},{"$f":"IF(C14=\"\",\"\",ROUND(VLOOKUP(C14,Defaults!$AH:$AJ,3,FALSE),2))","v":38},{"$f":"IFERROR(IF(LEFT($C$13,6)=\"Custom\",L14,L14*(1-VLOOKUP($C$13,Implements!$A$159:$D$166,4,FALSE))),\"\")","v":1.5584},null,null,null,null,null,{"$f":"N14","v":9.5},null,{"$f":"N14","v":9.5},null,null,null,null,null,{"$f":"W14","v":7.4024000000000001},null,{"$f":"W14","v":7.4024000000000001},null,{"$f":"IF($C14=\"\",\"\",$C14)","v":"Glyphosate"},{"$f":"IF($C14=\"\",\"\",VLOOKUP($C14,Defaults!$AL$3:$AQ$17,4,FALSE))","v":"pt"},{"$f":"IF($C14=\"\",\"\",VLOOKUP($C14,Defaults!$AS$3:$AX$17,4,FALSE))","v":"pt"},{"$f":"IF($C14=\"\",\"\",VLOOKUP($C14,Defaults!$AZ$3:$BE$17,4,FALSE))","v":"pt"},{"$f":"IF($C14=\"\",\"\",VLOOKUP($C14,Defaults!$BG$3:$BL$16,4,FALSE))","v":"pt"},{"$f":"IF($C14=\"\",\"\",VLOOKUP($C14,Defaults!$BN$3:$BS$17,4,FALSE))","v":"oz"},{"$f":"\"\"","v":""},{"$f":"\"\"","v":""},{"$f":"IF($C14=\"\",\"\",VLOOKUP($C14,Defaults!$CI:$CN,4,FALSE))","v":"oz"},null,{"$f":"IF($C14=\"\",\"\",$C14)","v":"Glyphosate"},{"$f":"IF($C14=\"\",\"\",IFERROR(VLOOKUP($C14,Defaults!$AL$3:$AQ$17,5,FALSE),\"\"))","v":2},{"$f":"IF($C14=\"\",\"\",IFERROR(VLOOKUP($C14,Defaults!$AS$3:$AX$17,5,FALSE),\"\"))","v":2},{"$f":"IF($C14=\"\",\"\",IFERROR(VLOOKUP($C14,Defaults!$AZ$3:$BE$17,5,FALSE),\"\"))","v":2},{"$f":"IF($C14=\"\",\"\",IFERROR(VLOOKUP($C14,Defaults!$BG$3:$BL$16,5,FALSE),\"\"))","v":2},{"$f":"IF($C14=\"\",\"\",IFERROR(VLOOKUP($C14,Defaults!$BN$3:$BS$17,5,FALSE),\"\"))","v":32},{"$f":"\"\"","v":""},{"$f":"\"\"","v":""},{"$f":"IF($C14=\"\",\"\",IFERROR(VLOOKUP($C14,Defaults!$CI:$CN,5,FALSE),\"\"))","v":16},null,{"$f":"IF($C14=\"\",\"\",$C14)","v":"Glyphosate"},{"$f":"IF($C14=\"\",\"\",IFERROR(VLOOKUP($C14,Defaults!$AL$3:$AQ$17,6,FALSE),\"\"))","v":2},{"$f":"IF($C14=\"\",\"\",IFERROR(VLOOKUP($C14,Defaults!$AS$3:$AX$17,6,FALSE),\"\"))","v":2},{"$f":"IF($C14=\"\",\"\",IFERROR(VLOOKUP($C14,Defaults!$AZ$3:$BE$17,6,FALSE),\"\"))","v":2},{"$f":"IF($C14=\"\",\"\",IFERROR(VLOOKUP($C14,Defaults!$BG$3:$BL$16,6,FALSE),\"\"))","v":2},{"$f":"IF($C14=\"\",\"\",IFERROR(VLOOKUP($C14,Defaults!$BN$3:$BS$17,6,FALSE),\"\"))","v":32},{"$f":"\"\"","v":""},{"$f":"\"\"","v":""},{"$f":"IF($C14=\"\",\"\",IFERROR(VLOOKUP($C14,Defaults!$CI:$CN,6,FALSE),\"\"))","v":16}]
[null,null,"Banvel",null,"oz",null,null,null,null,0.51,{"$f":"IF(C15=\"\",\"\",ROUND(IF(E15=AE15,AF15,IF(AE15=$AC$2,AF15*VLOOKUP(E15,$AA$2:$AB$4,2,FALSE),IF(AE15=$AF$2,AF15*VLOOKUP(E15,$AD$2:$AE$3,2,FALSE),IF(AE15=$AI$2,AF15/VLOOKUP(E15,$AG$2:$AH$2,2,FALSE),IF(AE15=$AL$2,AF15*VLOOKUP(E15,$AJ$2:$AK$2,2,FALSE),IF(AE15=$AO$2,AF15/VLOOKUP(E15,$AM$2:$AN$2,2,FALSE),IF(AE15=$AR$2,AF15*VLOOKUP(E15,$AP$2:$AQ$3,2,FALSE)))))))),2))","v":0.51},8,{"$f":"AB15","v":8},{"$f":"IF(C15=\"\",0,IF(L15=0,0,IF(L15=\"\",\"\",J15*L15)))","v":4.08},null,null,{"$f":"IF(L15>0,ABS(V15-L15),\"\")","v":1.7664},null,null,null,{"$f":"J15","v":0.51},{"$f":"IF(AG15=0,0,AG15)","v":6.2336},{"$f":"IF(C15=\"\",\"\",IF(V15=0,0,IF(V15=\"\",\"\",U15*V15)))","v":3.1791360000000002},{"$f":"IF(C15=\"\",\"\",W15-N15)","v":-0.90086399999999989},null,{"$f":"IF($Z$2=Defaults!$M$5,Cotton!B15,IF($Z$2=Defaults!$M$6,Corn!B15,IF($Z$2=Defaults!$M$7,Sorghum!B15,IF($Z$2=Defaults!$M$8,Soybean!B15,IF($Z$2=Defaults!$M$9,Rice!B15,IF($Z$2=Defaults!$M$10,Peanut!B15,IF($Z$2=Defaults!$M$11,Wheat!B15,IF($Z$2=Defaults!$M$12,Pasture!B15,\"\"))))))))","v":"Banvel"},{"$f":"IF($C15=\"\",\"\",HLOOKUP($Z$2,$AZ$13:$BG$16,3,FALSE))","v":"oz"},{"$f":"IF($C15=\"\",\"\",HLOOKUP($Z$2,$BJ$13:$BQ$16,3,FALSE))","v":8},0,{"$f":"IF($C15=\"\",\"\",HLOOKUP($Z$2,$BT$13:$CA$16,3,FALSE))","v":8},{"$f":"IF(C15=\"\",\"\",VLOOKUP(C15,Defaults!$AH:$AJ,2,FALSE))","v":"gal"},{"$f":"IF(C15=\"\",\"\",ROUND(VLOOKUP(C15,Defaults!$AH:$AJ,3,FALSE),2))","v":65},{"$f":"IFERROR(IF(LEFT($C$13,6)=\"Custom\",L15,L15*(1-VLOOKUP($C$13,Implements!$A$159:$D$166,4,FALSE))),\"\")","v":6.2336},null,null,null,null,null,{"$f":"N15","v":4.08},null,{"$f":"N15","v":4.08},null,null,null,null,null,{"$f":"W15","v":3.1791360000000002},null,{"$f":"W15","v":3.1791360000000002},null,{"$f":"IF($C15=\"\",\"\",$C15)","v":"Banvel"},{"$f":"IF($C15=\"\",\"\",VLOOKUP($C15,Defaults!$AL$3:$AQ$17,4,FALSE))","v":"oz"},{"$f":"IF($C15=\"\",\"\",VLOOKUP($C15,Defaults!$AS$3:$AX$17,4,FALSE))","v":{"$error":"#N/A"}},{"$f":"IF($C15=\"\",\"\",VLOOKUP($C15,Defaults!$AZ$3:$BE$17,4,FALSE))","v":{"$error":"#N/A"}},{"$f":"IF($C15=\"\",\"\",VLOOKUP($C15,Defaults!$BG$3:$BL$16,4,FALSE))","v":{"$error":"#N/A"}},{"$f":"IF($C15=\"\",\"\",VLOOKUP($C15,Defaults!$BN$3:$BS$17,4,FALSE))","v":{"$error":"#N/A"}},{"$f":"\"\"","v":""},{"$f":"\"\"","v":""},{"$f":"IF($C15=\"\",\"\",VLOOKUP($C15,Defaults!$CI:$CN,4,FALSE))","v":"pt"},null,{"$f":"IF($C15=\"\",\"\",$C15)","v":"Banvel"},{"$f":"IF($C15=\"\",\"\",IFERROR(VLOOKUP($C15,Defaults!$AL$3:$AQ$17,5,FALSE),\"\"))","v":8},{"$f":"IF($C15=\"\",\"\",IFERROR(VLOOKUP($C15,Defaults!$AS$3:$AX$17,5,FALSE),\"\"))","v":""},{"$f":"IF($C15=\"\",\"\",IFERROR(VLOOKUP($C15,Defaults!$AZ$3:$BE$17,5,FALSE),\"\"))","v":""},{"$f":"IF($C15=\"\",\"\",IFERROR(VLOOKUP($C15,Defaults!$BG$3:$BL$16,5,FALSE),\"\"))","v":""},{"$f":"IF($C15=\"\",\"\",IFERROR(VLOOKUP($C15,Defaults!$BN$3:$BS$17,5,FALSE),\"\"))","v":""},{"$f":"\"\"","v":""},{"$f":"\"\"","v":""},{"$f":"IF($C15=\"\",\"\",IFERROR(VLOOKUP($C15,Defaults!$CI:$CN,5,FALSE),\"\"))","v":1},null,{"$f":"IF($C15=\"\",\"\",$C15)","v":"Banvel"},{"$f":"IF($C15=\"\",\"\",IFERROR(VLOOKUP($C15,Defaults!$AL$3:$AQ$17,6,FALSE),\"\"))","v":8},{"$f":"IF($C15=\"\",\"\",IFERROR(VLOOKUP($C15,Defaults!$AS$3:$AX$17,6,FALSE),\"\"))","v":""},{"$f":"IF($C15=\"\",\"\",IFERROR(VLOOKUP($C15,Defaults!$AZ$3:$BE$17,6,FALSE),\"\"))","v":""},{"$f":"IF($C15=\"\",\"\",IFERROR(VLOOKUP($C15,Defaults!$BG$3:$BL$16,6,FALSE),\"\"))","v":""},{"$f":"IF($C15=\"\",\"\",IFERROR(VLOOKUP($C15,Defaults!$BN$3:$BS$17,6,FALSE),\"\"))","v":""},{"$f":"\"\"","v":""},{"$f":"\"\"","v":""},{"$f":"IF($C15=\"\",\"\",IFERROR(VLOOKUP($C15,Defaults!$CI:$CN,6,FALSE),\"\"))","v":8}]
[null,null,null,null,null,null,null,null,null,null,{"$f":"IF(C16=\"\",\"\",ROUND(IF(E16=AE16,AF16,IF(AE16=$AC$2,AF16*VLOOKUP(E16,$AA$2:$AB$4,2,FALSE),IF(AE16=$AF$2,AF16*VLOOKUP(E16,$AD$2:$AE$3,2,FALSE),IF(AE16=$AI$2,AF16/VLOOKUP(E16,$AG$2:$AH$2,2,FALSE),IF(AE16=$AL$2,AF16*VLOOKUP(E16,$AJ$2:$AK$2,2,FALSE),IF(AE16=$AO$2,AF16/VLOOKUP(E16,$AM$2:$AN$2,2,FALSE),IF(AE16=$AR$2,AF16*VLOOKUP(E16,$AP$2:$AQ$3,2,FALSE)))))))),2))","v":""},null,{"$f":"AB16","v":""},{"$f":"IF(C16=\"\",0,IF(L16=0,0,IF(L16=\"\",\"\",J16*L16)))","v":0},null,null,{"$f":"IF(L16>0,ABS(V16-L16),\"\")","v":""},null,null,null,{"$f":"J16","v":0},{"$f":"IF(AG16=0,0,AG16)","v":0},{"$f":"IF(C16=\"\",\"\",IF(V16=0,0,IF(V16=\"\",\"\",U16*V16)))","v":""},{"$f":"IF(C16=\"\",\"\",W16-N16)","v":""},null,{"$f":"IF($Z$2=Defaults!$M$5,Cotton!B16,IF($Z$2=Defaults!$M$6,Corn!B16,IF($Z$2=Defaults!$M$7,Sorghum!B16,IF($Z$2=Defaults!$M$8,Soybean!B16,IF($Z$2=Defaults!$M$9,Rice!B16,IF($Z$2=Defaults!$M$10,Peanut!B16,IF($Z$2=Defaults!$M$11,Wheat!B16,IF($Z$2=Defaults!$M$12,Pasture!B16,\"\"))))))))","v":""},{"$f":"IF($C16=\"\",\"\",HLOOKUP($Z$2,$AZ$13:$BG$16,4,FALSE))","v":""},{"$f":"IF($C16=\"\",\"\",HLOOKUP($Z$2,$BJ$13:$BQ$16,4,FALSE))","v":""},0,{"$f":"IF($C16=\"\",\"\",HLOOKUP($Z$2,$BT$13:$CA$16,4,FALSE))","v":""},{"$f":"IF(C16=\"\",\"\",VLOOKUP(C16,Defaults!$AH:$AJ,2,FALSE))","v":""},{"$f":"IF(C16=\"\",\"\",ROUND(VLOOKUP(C16,Defaults!$AH:$AJ,3,FALSE),2))","v":""},{"$f":"IFERROR(IF(LEFT($C$13,6)=\"Custom\",L16,L16*(1-VLOOKUP($C$13,Implements!$A$159:$D$166,4,FALSE))),\"\")","v":0},null,null,null,null,null,{"$f":"N16","v":0},null,{"$f":"N16","v":0},null,null,null,null,null,{"$f":"W16","v":""},null,{"$f":"W16","v":""},null,{"$f":"IF($C16=\"\",\"\",$C16)","v":""},{"$f":"IF($C16=\"\",\"\",VLOOKUP($C16,Defaults!$AL$3:$AQ$17,4,FALSE))","v":""},{"$f":"IF($C16=\"\",\"\",VLOOKUP($C16,Defaults!$AS$3:$AX$17,4,FALSE))","v":""},{"$f":"IF($C16=\"\",\"\",VLOOKUP($C16,Defaults!$AZ$3:$BE$17,4,FALSE))","v":""},{"$f":"IF($C16=\"\",\"\",VLOOKUP($C16,Defaults!$BG$3:$BL$16,4,FALSE))","v":""},{"$f":"IF($C16=\"\",\"\",VLOOKUP($C16,Defaults!$BN$3:$BS$17,4,FALSE))","v":""},{"$f":"\"\"","v":""},{"$f":"\"\"","v":""},{"$f":"IF($C16=\"\",\"\",VLOOKUP($C16,Defaults!$CI:$CN,4,FALSE))","v":""},null,{"$f":"IF($C16=\"\",\"\",$C16)","v":""},{"$f":"IF($C16=\"\",\"\",IFERROR(VLOOKUP($C16,Defaults!$AL$3:$AQ$17,5,FALSE),\"\"))","v":""},{"$f":"IF($C16=\"\",\"\",IFERROR(VLOOKUP($C16,Defaults!$AS$3:$AX$17,5,FALSE),\"\"))","v":""},{"$f":"IF($C16=\"\",\"\",IFERROR(VLOOKUP($C16,Defaults!$AZ$3:$BE$17,5,FALSE),\"\"))","v":""},{"$f":"IF($C16=\"\",\"\",IFERROR(VLOOKUP($C16,Defaults!$BG$3:$BL$16,5,FALSE),\"\"))","v":""},{"$f":"IF($C16=\"\",\"\",IFERROR(VLOOKUP($C16,Defaults!$BN$3:$BS$17,5,FALSE),\"\"))","v":""},{"$f":"\"\"","v":""},{"$f":"\"\"","v":""},{"$f":"IF($C16=\"\",\"\",IFERROR(VLOOKUP($C16,Defaults!$CI:$CN,5,FALSE),\"\"))","v":""},null,{"$f":"IF($C16=\"\",\"\",$C16)","v":""},{"$f":"IF($C16=\"\",\"\",IFERROR(VLOOKUP($C16,Defaults!$AL$3:$AQ$17,6,FALSE),\"\"))","v":""},{"$f":"IF($C16=\"\",\"\",IFERROR(VLOOKUP($C16,Defaults!$AS$3:$AX$17,6,FALSE),\"\"))","v":""},{"$f":"IF($C16=\"\",\"\",IFERROR(VLOOKUP($C16,Defaults!$AZ$3:$BE$17,6,FALSE),\"\"))","v":""},{"$f":"IF($C16=\"\",\"\",IFERROR(VLOOKUP($C16,Defaults!$BG$3:$BL$16,6,FALSE),\"\"))","v":""},{"$f":"IF($C16=\"\",\"\",IFERROR(VLOOKUP($C16,Defaults!$BN$3:$BS$17,6,FALSE),\"\"))","v":""},{"$f":"\"\"","v":""},{"$f":"\"\"","v":""},{"$f":"IF($C16=\"\",\"\",IFERROR(VLOOKUP($C16,Defaults!$CI:$CN,6,FALSE),\"\"))","v":""}]
[null,null,"Preplant Weed Control",{"$f":"IF($Z$2=Defaults!$M$5,Cotton!D17,IF($Z$2=Defaults!$M$6,Corn!D17,IF($Z$2=Defaults!$M$7,Sorghum!D17,IF($Z$2=Defaults!$M$8,Soybean!D17,IF($Z$2=Defaults!$M$9,Rice!D17,IF($Z$2=Defaults!$M$10,Peanut!D17,IF($Z$2=Defaults!$M$11,Wheat!D17,IF($Z$2=Defaults!$M$12,Pasture!D17,FALSE))))))))","v":"Spring"},null,null,null,null,null,null,null,null,null,null,null,null,null,null,null,null,null,null,null,null,null,{"$f":"IF($Z$2=Defaults!$M$5,Cotton!B17,IF($Z$2=Defaults!$M$6,Corn!B17,IF($Z$2=Defaults!$M$7,Sorghum!B17,IF($Z$2=Defaults!$M$8,Soybean!B17,IF($Z$2=Defaults!$M$9,Rice!B17,IF($Z$2=Defaults!$M$10,Peanut!B17,IF($Z$2=Defaults!$M$11,Wheat!B17,IF($Z$2=Defaults!$M$12,Pasture!B17,\"\"))))))))","v":"Preplant Weed Control"},null,null,null,null,null,null,null,null,null,null,null,null,null,null,null,null,null,null,null,null,null,null,null,null,"PP",null,null,null,null,null,null,null,null,null,"PP",null,null,null,null,null,null,null,null,null,"PP"]
[null,null,"Over-the-Top Sprayer 1",null,null,{"$f":"IF(L18=0,0,IF(C18=Defaults!$I$27,Implements!$AK$185,IF(C18=Defaults!$I$28,Implements!$AK$186,0)))","v":61.454545454545453},{"$f":"IF($L18=0,0,IFERROR(VLOOKUP($C18,Implements!$X$181:$AN$188,15,FALSE),0))","v":8.36},{"$f":"IF($L18=0,0,IFERROR(VLOOKUP($C18,Implements!$X$181:$AN$188,16,FALSE),0))","v":45.046666666666667},{"$f":"IF($L18=0,0,IFERROR(VLOOKUP($C18,Implements!$X$181:$AN$188,17,FALSE),0))","v":137.64582520078542},{"$f":"IF(OR(C18=\"\",L18=\"\",L18=0)=TRUE,\"\",IF(OR(C18=Defaults!$I$25,C18=Defaults!$I$26)=TRUE,VLOOKUP(C18,Defaults!$I$24:$K$27,3,FALSE),ROUND(1/F18*(1*Inputs!$AA$13+($AI$7-1)*Inputs!$AA$15),2)+ROUND(G18*Inputs!$V$13/F18,2)+ROUND(H18/F18,2)+ROUND(I18/F18,2)))","v":3.5},{"$f":"IF(OR(C18=\"\",L18=\"\",L18=0)=TRUE,\"\",IF(OR(C18=Defaults!$I$25,C18=Defaults!$I$26)=TRUE,VLOOKUP(C18,Defaults!$I$24:$K$27,3,FALSE),ROUND(1/F18*(1*Inputs!$AA$13+($AI$7-1)*Inputs!$AA$15),2)+ROUND(G18*Inputs!$V$13/F18,2)+ROUND(H18/F18,2)+ROUND(I18/F18,2)))","v":3.5},1,{"$f":"AB18","v":1},{"$f":"IF(C18=\"\",0,IF(L18=0,0,IF(L18=\"\",\"\",J18*L18)))","v":3.5},null,null,{"$f":"IF(V18=0,0,IF(C18=Defaults!$I$27,Implements!$AK$174,IF(C18=Defaults!$I$28,Implements!$AK$175,0)))","v":62.812690909090918},{"$f":"IF($V18=0,0,IFERROR(VLOOKUP($C18,Implements!$X$170:$AN$177,15,FALSE),0))","v":8.36},{"$f":"IF($V18=0,0,IFERROR(VLOOKUP($C18,Implements!$X$170:$AN$177,16,FALSE),0))","v":45.046666666666667},{"$f":"IF($V18=0,0,IFERROR(VLOOKUP($C18,Implements!$X$170:$AN$177,17,FALSE),0))","v":138.7259236950801},{"$f":"IF(OR(C18=\"\",V18=\"\",V18=0)=TRUE,\"\",IF(LEFT(C18,6)=\"Custom\",J18,ROUND(1/Q18*(1*Inputs!$AA$13+($AI$7-1)*Inputs!$AA$15),2)+ROUND(R18*Inputs!$V$13/Q18,2)+ROUND(S18/Q18,2)+ROUND(T18/Q18,2)))","v":3.44},{"$f":"+L18","v":1},{"$f":"IF(C18=\"\",\"\",IF(V18=0,0,IF(V18=\"\",\"\",U18*V18)))","v":3.44},{"$f":"IF(C18=\"\",\"\",W18-N18)","v":-6.0000000000000053E-2},null,{"$f":"IF($Z$2=Defaults!$M$5,Cotton!B18,IF($Z$2=Defaults!$M$6,Corn!B18,IF($Z$2=Defaults!$M$7,Sorghum!B18,IF($Z$2=Defaults!$M$8,Soybean!B18,IF($Z$2=Defaults!$M$9,Rice!B18,IF($Z$2=Defaults!$M$10,Peanut!B18,IF($Z$2=Defaults!$M$11,Wheat!B18,IF($Z$2=Defaults!$M$12,Pasture!B18,\"\"))))))))","v":"Over-the-Top Sprayer 1"},null,{"$f":"IF(C18=\"\",\"\",VLOOKUP(C18,Defaults!$I$24:$K$28,2,FALSE))","v":1},0,{"$f":"IF(AB18=\"\",\"\",AB18*2)","v":2},null,null,{"$f":"+AB18","v":1},{"$f":"N18","v":3.5},{"$f":"ROUND(IFERROR(1/F18*(1*Inputs!$AA$13+($AI$7-1)*Inputs!$AA$15),0),2)*L18","v":0.28999999999999998},{"$f":"ROUND(IFERROR(1/F18*G18*Inputs!$V$13,0),2)*L18","v":0.24},{"$f":"ROUND(IFERROR(1/F18*H18,0),2)*L18","v":0.73},{"$f":"ROUND(IFERROR(1/F18*I18,0),2)*L18","v":2.2400000000000002},null,null,null,{"$f":"W18","v":3.44},{"$f":"ROUND(IFERROR(1/Q18*(1*Inputs!$AA$13+($AI$7-1)*Inputs!$AA$15),0),2)*V18","v":0.28000000000000003},{"$f":"ROUND(IFERROR(1/Q18*R18*Inputs!$V$13,0),2)*V18","v":0.23},{"$f":"ROUND(IFERROR(1/Q18*S18,0),2)*V18","v":0.72},{"$f":"ROUND(IFERROR(1/Q18*T18,0),2)*V18","v":2.21},null,null,null,null,null,{"$f":"AZ11","v":"Cotton"},{"$f":"BA11","v":"Corn"},"Sorghum","Soybean","Rice","Peanut","Wheat","Est. Pasture or Hay",null,null,{"$f":"BJ11","v":"Cotton"},{"$f":"BK11","v":"Corn"},"Sorghum","Soybean","Rice","Peanut","Wheat","Est. Pasture or Hay",null,null,{"$f":"BT11","v":"Cotton"},{"$f":"BU11","v":"Corn"},"Sorghum","Soybean","Rice","Peanut","Wheat","Est. Pasture or Hay"]
[null,null,"Glyphosate",null,"pt",null,null,null,null,4.75,{"$f":"IF(C19=\"\",\"\",ROUND(IF(E19=AE19,AF19,IF(AE19=$AC$2,AF19*VLOOKUP(E19,$AA$2:$AB$4,2,FALSE),IF(AE19=$AF$2,AF19*VLOOKUP(E19,$AD$2:$AE$3,2,FALSE),IF(AE19=$AI$2,AF19/VLOOKUP(E19,$AG$2:$AH$2,2,FALSE),IF(AE19=$AL$2,AF19*VLOOKUP(E19,$AJ$2:$AK$2,2,FALSE),IF(AE19=$AO$2,AF19/VLOOKUP(E19,$AM$2:$AN$2,2,FALSE),IF(AE19=$AR$2,AF19*VLOOKUP(E19,$AP$2:$AQ$3,2,FALSE)))))))),2))","v":4.75},2,{"$f":"AB19","v":2},{"$f":"IF(C19=\"\",0,IF(L19=0,0,IF(L19=\"\",\"\",J19*L19)))","v":9.5},null,null,{"$f":"IF(L19>0,ABS(V19-L19),\"\")","v":0.44159999999999999},null,null,null,{"$f":"J19","v":4.75},{"$f":"IF(AG19=0,0,AG19)","v":1.5584},{"$f":"IF(C19=\"\",\"\",IF(V19=0,0,IF(V19=\"\",\"\",U19*V19)))","v":7.4024000000000001},{"$f":"IF(C19=\"\",\"\",W19-N19)","v":-2.0975999999999999},null,{"$f":"IF($Z$2=Defaults!$M$5,Cotton!B19,IF($Z$2=Defaults!$M$6,Corn!B19,IF($Z$2=Defaults!$M$7,Sorghum!B19,IF($Z$2=Defaults!$M$8,Soybean!B19,IF($Z$2=Defaults!$M$9,Rice!B19,IF($Z$2=Defaults!$M$10,Peanut!B19,IF($Z$2=Defaults!$M$11,Wheat!B19,IF($Z$2=Defaults!$M$12,Pasture!B19,\"\"))))))))","v":"Glyphosate"},{"$f":"IF($C19=\"\",\"\",HLOOKUP($Z$2,$AZ$18:$BG$21,2,FALSE))","v":"pt"},{"$f":"IF($C19=\"\",\"\",HLOOKUP($Z$2,$BJ$18:$BQ$21,2,FALSE))","v":2},0,{"$f":"IF($C19=\"\",\"\",HLOOKUP($Z$2,$BT$18:$CA$21,2,FALSE))","v":2},{"$f":"IF(C19=\"\",\"\",VLOOKUP(C19,Defaults!$AH:$AJ,2,FALSE))","v":"gal"},{"$f":"IF(C19=\"\",\"\",ROUND(VLOOKUP(C19,Defaults!$AH:$AJ,3,FALSE),2))","v":38},{"$f":"IFERROR(IF(LEFT($C$18,6)=\"Custom\",L19,L19*(1-VLOOKUP($C$18,Implements!$A$159:$D$166,4,FALSE))),\"\")","v":1.5584},null,null,null,null,null,{"$f":"N19","v":9.5},null,{"$f":"N19","v":9.5},null,null,null,null,null,{"$f":"W19","v":7.4024000000000001},null,{"$f":"W19","v":7.4024000000000001},null,{"$f":"IF($C19=\"\",\"\",$C19)","v":"Glyphosate"},{"$f":"IF($C19=\"\",\"\",VLOOKUP($C19,Defaults!$AL$19:$AQ$35,4,FALSE))","v":"pt"},{"$f":"IF($C19=\"\",\"\",VLOOKUP($C19,Defaults!$AS$19:$AX$35,4,FALSE))","v":{"$error":"#N/A"}},{"$f":"IF($C19=\"\",\"\",VLOOKUP($C19,Defaults!$AZ$19:$BE$35,4,FALSE))","v":"oz"},{"$f":"IF($C19=\"\",\"\",VLOOKUP($C19,Defaults!$BG$19:$BL$35,4,FALSE))","v":{"$error":"#N/A"}},{"$f":"IF($C19=\"\",\"\",VLOOKUP($C19,Defaults!$BN$19:$BS$35,4,FALSE))","v":"oz"},{"$f":"IF($C19=\"\",\"\",VLOOKUP($C19,Defaults!$BU$19:$BZ$35,4,FALSE))","v":{"$error":"#N/A"}},{"$f":"\"\"","v":""},{"$f":"IF($C19=\"\",\"\",VLOOKUP($C19,Defaults!$CI:$CN,4,FALSE))","v":"oz"},null,{"$f":"IF($C19=\"\",\"\",$C19)","v":"Glyphosate"},{"$f":"IF($C19=\"\",\"\",IFERROR(VLOOKUP($C19,Defaults!$AL$19:$AQ$35,5,FALSE),\"\"))","v":2},{"$f":"IF($C19=\"\",\"\",IFERROR(VLOOKUP($C19,Defaults!$AS$19:$AX$35,5,FALSE),\"\"))","v":""},{"$f":"IF($C19=\"\",\"\",IFERROR(VLOOKUP($C19,Defaults!$AZ$19:$BE$35,5,FALSE),\"\"))","v":32},{"$f":"IF($C19=\"\",\"\",IFERROR(VLOOKUP($C19,Defaults!$BG$19:$BL$35,5,FALSE),\"\"))","v":""},{"$f":"IF($C19=\"\",\"\",IFERROR(VLOOKUP($C19,Defaults!$BN$19:$BS$35,5,FALSE),\"\"))","v":32},{"$f":"IF($C19=\"\",\"\",IFERROR(VLOOKUP($C19,Defaults!$BU$19:$BZ$35,5,FALSE),\"\"))","v":""},{"$f":"\"\"","v":""},{"$f":"IF($C19=\"\",\"\",IFERROR(VLOOKUP($C19,Defaults!$CI:$CN,5,FALSE),\"\"))","v":16},null,{"$f":"IF($C19=\"\",\"\",$C19)","v":"Glyphosate"},{"$f":"IF($C19=\"\",\"\",IFERROR(VLOOKUP($C19,Defaults!$AL$19:$AQ$35,6,FALSE),\"\"))","v":2},{"$f":"IF($C19=\"\",\"\",IFERROR(VLOOKUP($C19,Defaults!$AS$19:$AX$35,6,FALSE),\"\"))","v":""},{"$f":"IF($C19=\"\",\"\",IFERROR(VLOOKUP($C19,Defaults!$AZ$19:$BE$35,6,FALSE),\"\"))","v":32},{"$f":"IF($C19=\"\",\"\",IFERROR(VLOOKUP($C19,Defaults!$BG$19:$BL$35,6,FALSE),\"\"))","v":""},{"$f":"IF($C19=\"\",\"\",IFERROR(VLOOKUP($C19,Defaults!$BN$19:$BS$35,6,FALSE),\"\"))","v":32},{"$f":"IF($C19=\"\",\"\",IFERROR(VLOOKUP($C19,Defaults!$BU$19:$BZ$35,6,FALSE),\"\"))","v":""},{"$f":"\"\"","v":""},{"$f":"IF($C19=\"\",\"\",IFERROR(VLOOKUP($C19,Defaults!$CI:$CN,6,FALSE),\"\"))","v":16}]
[null,null,"Reflex",null,"pt",null,null,null,null,12.88,{"$f":"IF(C20=\"\",\"\",ROUND(IF(E20=AE20,AF20,IF(AE20=$AC$2,AF20*VLOOKUP(E20,$AA$2:$AB$4,2,FALSE),IF(AE20=$AF$2,AF20*VLOOKUP(E20,$AD$2:$AE$3,2,FALSE),IF(AE20=$AI$2,AF20/VLOOKUP(E20,$AG$2:$AH$2,2,FALSE),IF(AE20=$AL$2,AF20*VLOOKUP(E20,$AJ$2:$AK$2,2,FALSE),IF(AE20=$AO$2,AF20/VLOOKUP(E20,$AM$2:$AN$2,2,FALSE),IF(AE20=$AR$2,AF20*VLOOKUP(E20,$AP$2:$AQ$3,2,FALSE)))))))),2))","v":12.88},1,{"$f":"AB20","v":1},{"$f":"IF(C20=\"\",0,IF(L20=0,0,IF(L20=\"\",\"\",J20*L20)))","v":12.88},null,null,{"$f":"IF(L20>0,ABS(V20-L20),\"\")","v":0.2208},null,null,null,{"$f":"J20","v":12.88},{"$f":"IF(AG20=0,0,AG20)","v":0.7792},{"$f":"IF(C20=\"\",\"\",IF(V20=0,0,IF(V20=\"\",\"\",U20*V20)))","v":10.036096000000001},{"$f":"IF(C20=\"\",\"\",W20-N20)","v":-2.8439040000000002},null,{"$f":"IF($Z$2=Defaults!$M$5,Cotton!B20,IF($Z$2=Defaults!$M$6,Corn!B20,IF($Z$2=Defaults!$M$7,Sorghum!B20,IF($Z$2=Defaults!$M$8,Soybean!B20,IF($Z$2=Defaults!$M$9,Rice!B20,IF($Z$2=Defaults!$M$10,Peanut!B20,IF($Z$2=Defaults!$M$11,Wheat!B20,IF($Z$2=Defaults!$M$12,Pasture!B20,\"\"))))))))","v":"Reflex"},{"$f":"IF($C20=\"\",\"\",HLOOKUP($Z$2,$AZ$18:$BG$21,3,FALSE))","v":"pt"},{"$f":"IF($C20=\"\",\"\",HLOOKUP($Z$2,$BJ$18:$BQ$21,3,FALSE))","v":1},0,{"$f":"IF($C20=\"\",\"\",HLOOKUP($Z$2,$BT$18:$CA$21,3,FALSE))","v":1},{"$f":"IF(C20=\"\",\"\",VLOOKUP(C20,Defaults!$AH:$AJ,2,FALSE))","v":"gal"},{"$f":"IF(C20=\"\",\"\",ROUND(VLOOKUP(C20,Defaults!$AH:$AJ,3,FALSE),2))","v":103},{"$f":"IFERROR(IF(LEFT($C$18,6)=\"Custom\",L20,L20*(1-VLOOKUP($C$18,Implements!$A$159:$D$166,4,FALSE))),\"\")","v":0.7792},null,null,null,null,null,{"$f":"N20","v":12.88},null,{"$f":"N20","v":12.88},null,null,null,null,null,{"$f":"W20","v":10.036096000000001},null,{"$f":"W20","v":10.036096000000001},null,{"$f":"IF($C20=\"\",\"\",$C20)","v":"Reflex"},{"$f":"IF($C20=\"\",\"\",VLOOKUP($C20,Defaults!$AL$19:$AQ$35,4,FALSE))","v":"pt"},{"$f":"IF($C20=\"\",\"\",VLOOKUP($C20,Defaults!$AS$19:$AX$35,4,FALSE))","v":{"$error":"#N/A"}},{"$f":"IF($C20=\"\",\"\",VLOOKUP($C20,Defaults!$AZ$19:$BE$35,4,FALSE))","v":{"$error":"#N/A"}},{"$f":"IF($C20=\"\",\"\",VLOOKUP($C20,Defaults!$BG$19:$BL$35,4,FALSE))","v":{"$error":"#N/A"}},{"$f":"IF($C20=\"\",\"\",VLOOKUP($C20,Defaults!$BN$19:$BS$35,4,FALSE))","v":{"$error":"#N/A"}},{"$f":"IF($C20=\"\",\"\",VLOOKUP($C20,Defaults!$BU$19:$BZ$35,4,FALSE))","v":{"$error":"#N/A"}},{"$f":"\"\"","v":""},{"$f":"IF($C20=\"\",\"\",VLOOKUP($C20,Defaults!$CI:$CN,4,FALSE))","v":{"$error":"#N/A"}},null,{"$f":"IF($C20=\"\",\"\",$C20)","v":"Reflex"},{"$f":"IF($C20=\"\",\"\",IFERROR(VLOOKUP($C20,Defaults!$AL$19:$AQ$35,5,FALSE),\"\"))","v":1},{"$f":"IF($C20=\"\",\"\",IFERROR(VLOOKUP($C20,Defaults!$AS$19:$AX$35,5,FALSE),\"\"))","v":""},{"$f":"IF($C20=\"\",\"\",IFERROR(VLOOKUP($C20,Defaults!$AZ$19:$BE$35,5,FALSE),\"\"))","v":""},{"$f":"IF($C20=\"\",\"\",IFERROR(VLOOKUP($C20,Defaults!$BG$19:$BL$35,5,FALSE),\"\"))","v":""},{"$f":"IF($C20=\"\",\"\",IFERROR(VLOOKUP($C20,Defaults!$BN$19:$BS$35,5,FALSE),\"\"))","v":""},{"$f":"IF($C20=\"\",\"\",IFERROR(VLOOKUP($C20,Defaults!$BU$19:$BZ$35,5,FALSE),\"\"))","v":""},{"$f":"\"\"","v":""},{"$f":"IF($C20=\"\",\"\",IFERROR(VLOOKUP($C20,Defaults!$CI:$CN,5,FALSE),\"\"))","v":""},null,{"$f":"IF($C20=\"\",\"\",$C20)","v":"Reflex"},{"$f":"IF($C20=\"\",\"\",IFERROR(VLOOKUP($C20,Defaults!$AL$19:$AQ$35,6,FALSE),\"\"))","v":1},{"$f":"IF($C20=\"\",\"\",IFERROR(VLOOKUP($C20,Defaults!$AS$19:$AX$35,6,FALSE),\"\"))","v":""},{"$f":"IF($C20=\"\",\"\",IFERROR(VLOOKUP($C20,Defaults!$AZ$19:$BE$35,6,FALSE),\"\"))","v":""},{"$f":"IF($C20=\"\",\"\",IFERROR(VLOOKUP($C20,Defaults!$BG$19:$BL$35,6,FALSE),\"\"))","v":""},{"$f":"IF($C20=\"\",\"\",IFERROR(VLOOKUP($C20,Defaults!$BN$19:$BS$35,6,FALSE),\"\"))","v":""},{"$f":"IF($C20=\"\",\"\",IFERROR(VLOOKUP($C20,Defaults!$BU$19:$BZ$35,6,FALSE),\"\"))","v":""},{"$f":"\"\"","v":""},{"$f":"IF($C20=\"\",\"\",IFERROR(VLOOKUP($C20,Defaults!$CI:$CN,6,FALSE),\"\"))","v":""}]
[null,null,null,null,null,null,null,null,null,null,{"$f":"IF(C21=\"\",\"\",ROUND(IF(E21=AE21,AF21,IF(AE21=$AC$2,AF21*VLOOKUP(E21,$AA$2:$AB$4,2,FALSE),IF(AE21=$AF$2,AF21*VLOOKUP(E21,$AD$2:$AE$3,2,FALSE),IF(AE21=$AI$2,AF21/VLOOKUP(E21,$AG$2:$AH$2,2,FALSE),IF(AE21=$AL$2,AF21*VLOOKUP(E21,$AJ$2:$AK$2,2,FALSE),IF(AE21=$AO$2,AF21/VLOOKUP(E21,$AM$2:$AN$2,2,FALSE),IF(AE21=$AR$2,AF21*VLOOKUP(E21,$AP$2:$AQ$3,2,FALSE)))))))),2))","v":""},null,{"$f":"AB21","v":""},{"$f":"IF(C21=\"\",0,IF(L21=0,0,IF(L21=\"\",\"\",J21*L21)))","v":0},null,null,{"$f":"IF(L21>0,ABS(V21-L21),\"\")","v":""},null,null,null,{"$f":"J21","v":0},{"$f":"IF(AG21=0,0,AG21)","v":0},{"$f":"IF(C21=\"\",\"\",IF(V21=0,0,IF(V21=\"\",\"\",U21*V21)))","v":""},{"$f":"IF(C21=\"\",\"\",W21-N21)","v":""},null,{"$f":"IF($Z$2=Defaults!$M$5,Cotton!B21,IF($Z$2=Defaults!$M$6,Corn!B21,IF($Z$2=Defaults!$M$7,Sorghum!B21,IF($Z$2=Defaults!$M$8,Soybean!B21,IF($Z$2=Defaults!$M$9,Rice!B21,IF($Z$2=Defaults!$M$10,Peanut!B21,IF($Z$2=Defaults!$M$11,Wheat!B21,IF($Z$2=Defaults!$M$12,Pasture!B21,\"\"))))))))","v":""},{"$f":"IF($C21=\"\",\"\",HLOOKUP($Z$2,$AZ$18:$BG$21,4,FALSE))","v":""},{"$f":"IF($C21=\"\",\"\",HLOOKUP($Z$2,$BJ$18:$BQ$21,4,FALSE))","v":""},0,{"$f":"IF($C21=\"\",\"\",HLOOKUP($Z$2,$BT$18:$CA$21,4,FALSE))","v":""},{"$f":"IF(C21=\"\",\"\",VLOOKUP(C21,Defaults!$AH:$AJ,2,FALSE))","v":""},{"$f":"IF(C21=\"\",\"\",ROUND(VLOOKUP(C21,Defaults!$AH:$AJ,3,FALSE),2))","v":""},{"$f":"IFERROR(IF(LEFT($C$18,6)=\"Custom\",L21,L21*(1-VLOOKUP($C$18,Implements!$A$159:$D$166,4,FALSE))),\"\")","v":0},null,null,null,null,null,{"$f":"N21","v":0},null,{"$f":"N21","v":0},null,null,null,null,null,{"$f":"W21","v":""},null,{"$f":"W21","v":""},null,{"$f":"IF($C21=\"\",\"\",$C21)","v":""},{"$f":"IF($C21=\"\",\"\",VLOOKUP($C21,Defaults!$AL$19:$AQ$35,4,FALSE))","v":""},{"$f":"IF($C21=\"\",\"\",VLOOKUP($C21,Defaults!$AS$19:$AX$35,4,FALSE))","v":""},{"$f":"IF($C21=\"\",\"\",VLOOKUP($C21,Defaults!$AZ$19:$BE$35,4,FALSE))","v":""},{"$f":"IF($C21=\"\",\"\",VLOOKUP($C21,Defaults!$BG$19:$BL$35,4,FALSE))","v":""},{"$f":"IF($C21=\"\",\"\",VLOOKUP($C21,Defaults!$BN$19:$BS$35,4,FALSE))","v":""},{"$f":"IF($C21=\"\",\"\",VLOOKUP($C21,Defaults!$BU$19:$BZ$35,4,FALSE))","v":""},{"$f":"\"\"","v":""},{"$f":"IF($C21=\"\",\"\",VLOOKUP($C21,Defaults!$CI:$CN,4,FALSE))","v":""},null,{"$f":"IF($C21=\"\",\"\",$C21)","v":""},{"$f":"IF($C21=\"\",\"\",IFERROR(VLOOKUP($C21,Defaults!$AL$19:$AQ$35,5,FALSE),\"\"))","v":""},{"$f":"IF($C21=\"\",\"\",IFERROR(VLOOKUP($C21,Defaults!$AS$19:$AX$35,5,FALSE),\"\"))","v":""},{"$f":"IF($C21=\"\",\"\",IFERROR(VLOOKUP($C21,Defaults!$AZ$19:$BE$35,5,FALSE),\"\"))","v":""},{"$f":"IF($C21=\"\",\"\",IFERROR(VLOOKUP($C21,Defaults!$BG$19:$BL$35,5,FALSE),\"\"))","v":""},{"$f":"IF($C21=\"\",\"\",IFERROR(VLOOKUP($C21,Defaults!$BN$19:$BS$35,5,FALSE),\"\"))","v":""},{"$f":"IF($C21=\"\",\"\",IFERROR(VLOOKUP($C21,Defaults!$BU$19:$BZ$35,5,FALSE),\"\"))","v":""},{"$f":"\"\"","v":""},{"$f":"IF($C21=\"\",\"\",IFERROR(VLOOKUP($C21,Defaults!$CI:$CN,5,FALSE),\"\"))","v":""},null,{"$f":"IF($C21=\"\",\"\",$C21)","v":""},{"$f":"IF($C21=\"\",\"\",IFERROR(VLOOKUP($C21,Defaults!$AL$19:$AQ$35,6,FALSE),\"\"))","v":""},{"$f":"IF($C21=\"\",\"\",IFERROR(VLOOKUP($C21,Defaults!$AS$19:$AX$35,6,FALSE),\"\"))","v":""},{"$f":"IF($C21=\"\",\"\",IFERROR(VLOOKUP($C21,Defaults!$AZ$19:$BE$35,6,FALSE),\"\"))","v":""},{"$f":"IF($C21=\"\",\"\",IFERROR(VLOOKUP($C21,Defaults!$BG$19:$BL$35,6,FALSE),\"\"))","v":""},{"$f":"IF($C21=\"\",\"\",IFERROR(VLOOKUP($C21,Defaults!$BN$19:$BS$35,6,FALSE),\"\"))","v":""},{"$f":"IF($C21=\"\",\"\",IFERROR(VLOOKUP($C21,Defaults!$BU$19:$BZ$35,6,FALSE),\"\"))","v":""},{"$f":"\"\"","v":""},{"$f":"IF($C21=\"\",\"\",IFERROR(VLOOKUP($C21,Defaults!$CI:$CN,6,FALSE),\"\"))","v":""}]
[null,null,"Field Preparation",{"$f":"IF($Z$2=Defaults!$M$5,Cotton!D22,IF($Z$2=Defaults!$M$6,Corn!D22,IF($Z$2=Defaults!$M$7,Sorghum!D22,IF($Z$2=Defaults!$M$8,Soybean!D22,IF($Z$2=Defaults!$M$9,Rice!D22,IF($Z$2=Defaults!$M$10,Peanut!D22,IF($Z$2=Defaults!$M$11,Wheat!D22,IF($Z$2=Defaults!$M$12,Pasture!D22,FALSE))))))))","v":"Spring"},null,null,null,null,null,null,null,null,null,null,null,null,null,null,null,null,null,null,null,null,null,{"$f":"IF($Z$2=Defaults!$M$5,Cotton!B22,IF($Z$2=Defaults!$M$6,Corn!B22,IF($Z$2=Defaults!$M$7,Sorghum!B22,IF($Z$2=Defaults!$M$8,Soybean!B22,IF($Z$2=Defaults!$M$9,Rice!B22,IF($Z$2=Defaults!$M$10,Peanut!B22,IF($Z$2=Defaults!$M$11,Wheat!B22,IF($Z$2=Defaults!$M$12,Pasture!B22,\"\"))))))))","v":"Field Preparation"}]
[null,null,"Fertilizer Spreader",null,null,{"$f":"IF(L23=0,0,IF(C23=Defaults!$I$37,Implements!$AK$187,0))","v":23.757575757575754},{"$f":"IF($L23=0,0,IFERROR(VLOOKUP($C23,Implements!$X$181:$AN$188,15,FALSE),0))","v":8.36},{"$f":"IF($L23=0,0,IFERROR(VLOOKUP($C23,Implements!$X$181:$AN$188,16,FALSE),0))","v":17.166666666666668},{"$f":"IF($L23=0,0,IFERROR(VLOOKUP($C23,Implements!$X$181:$AN$188,17,FALSE),0))","v":93.003051050249965},{"$f":"IF(OR(C23=\"\",L23=\"\",L23=0)=TRUE,\"\",IF(C23=Defaults!$I$36,VLOOKUP(C23,Defaults!$I$35:$K$37,3,FALSE),ROUND(1/F23*(1*Inputs!$AA$13+($AI$9-1)*Inputs!$AA$15),2)+ROUND(G23*Inputs!$V$13/F23,2)+ROUND(H23/F23,2)+ROUND(I23/F23,2)))","v":5.99},{"$f":"IF(OR(C23=\"\",L23=\"\",L23=0)=TRUE,\"\",IF(C23=Defaults!$I$36,VLOOKUP(C23,Defaults!$I$35:$K$37,3,FALSE),ROUND(1/F23*(1*Inputs!$AA$13+($AI$9-1)*Inputs!$AA$15),2)+ROUND(G23*Inputs!$V$13/F23,2)+ROUND(H23/F23,2)+ROUND(I23/F23,2)))","v":5.99},1,{"$f":"AB23","v":1},{"$f":"IF(C23=\"\",0,IF(L23=0,0,IF(L23=\"\",\"\",J23*L23)))","v":5.99},null,null,{"$f":"IF(V23=0,0,IF(C23=Defaults!$I$37,Implements!$AK$176,0))","v":24.282618181818179},{"$f":"IF($V23=0,0,IFERROR(VLOOKUP($C23,Implements!$X$170:$AN$177,15,FALSE),0))","v":8.36},{"$f":"IF($V23=0,0,IFERROR(VLOOKUP($C23,Implements!$X$170:$AN$177,16,FALSE),0))","v":17.166666666666668},{"$f":"IF($V23=0,0,IFERROR(VLOOKUP($C23,Implements!$X$170:$AN$177,17,FALSE),0))","v":93.712473576284623},{"$f":"IF(OR(C23=\"\",V23=\"\",V23=0)=TRUE,\"\",IF(LEFT(C23,6)=\"Custom\",J23,ROUND(1/Q23*(1*Inputs!$AA$13+($AI$9-1)*Inputs!$AA$15),2)+ROUND(R23*Inputs!$V$13/Q23,2)+ROUND(S23/Q23,2)+ROUND(T23/Q23,2)))","v":5.9},{"$f":"+L23","v":1},{"$f":"IF(C23=\"\",\"\",IF(V23=0,0,IF(V23=\"\",\"\",U23*V23)))","v":5.9},{"$f":"IF(C23=\"\",\"\",W23-N23)","v":-8.9999999999999858E-2},null,{"$f":"IF($Z$2=Defaults!$M$5,Cotton!B23,IF($Z$2=Defaults!$M$6,Corn!B23,IF($Z$2=Defaults!$M$7,Sorghum!B23,IF($Z$2=Defaults!$M$8,Soybean!B23,IF($Z$2=Defaults!$M$9,Rice!B23,IF($Z$2=Defaults!$M$10,Peanut!B23,IF($Z$2=Defaults!$M$11,Wheat!B23,IF($Z$2=Defaults!$M$12,Pasture!B23,\"\"))))))))","v":"Fertilizer Spreader"},null,{"$f":"IF(C23=\"\",\"\",HLOOKUP(Z2,Defaults!$X$2:$AE$14,13,FALSE))","v":1},0,{"$f":"IF(AB23=\"\",\"\",AB23*2)","v":2},null,null,{"$f":"+AB23","v":1},{"$f":"N23","v":5.99},{"$f":"ROUND(IFERROR(1/F23*(1*Inputs!$AA$13+($AI$7-1)*Inputs!$AA$15),0),2)*L23","v":0.74},{"$f":"ROUND(IFERROR(1/F23*G23*Inputs!$V$13,0),2)*L23","v":0.62},{"$f":"ROUND(IFERROR(1/F23*H23,0),2)*L23","v":0.72},{"$f":"ROUND(IFERROR(1/F23*I23,0),2)*L23","v":3.91},null,null,null,{"$f":"W23","v":5.9},{"$f":"ROUND(IFERROR(1/Q23*(1*Inputs!$AA$13+($AI$7-1)*Inputs!$AA$15),0),2)*V23","v":0.73},{"$f":"ROUND(IFERROR(1/Q23*R23*Inputs!$V$13,0),2)*V23","v":0.6},{"$f":"ROUND(IFERROR(1/Q23*S23,0),2)*V23","v":0.71},{"$f":"ROUND(IFERROR(1/Q23*T23,0),2)*V23","v":3.86}]
[null,null,"Urea [46-0-0]",null,"lb",null,null,null,null,0.15,{"$f":"IF(C24=\"\",\"\",ROUND(IF(E24=AE24,AF24,IF(AE24=$AC$2,AF24*VLOOKUP(E24,$AA$2:$AB$4,2,FALSE),IF(AE24=$AF$2,AF24*VLOOKUP(E24,$AD$2:$AE$3,2,FALSE),IF(AE24=$AI$2,AF24/VLOOKUP(E24,$AG$2:$AH$2,2,FALSE),IF(AE24=$AL$2,AF24*VLOOKUP(E24,$AJ$2:$AK$2,2,FALSE),IF(AE24=$AO$2,AF24/VLOOKUP(E24,$AM$2:$AN$2,2,FALSE),IF(AE24=$AR$2,AF24*VLOOKUP(E24,$AP$2:$AQ$3,2,FALSE)))))))),2))","v":0.15},122,122,{"$f":"IF(C24=\"\",0,IF(L24=0,0,IF(L24=\"\",\"\",J24*L24)))","v":18.3},null,null,{"$f":"IF(L24>0,ABS(V24-L24),\"\")","v":2.7327999999999975},null,null,null,{"$f":"J24","v":0.15},{"$f":"IF(AG24=0,0,AG24)","v":119.2672},17.890080000000001,-0.40991999999999962,null,{"$f":"IF($Z$2=Defaults!$M$5,Cotton!B24,IF($Z$2=Defaults!$M$6,Corn!B24,IF($Z$2=Defaults!$M$7,Sorghum!B24,IF($Z$2=Defaults!$M$8,Soybean!B24,IF($Z$2=Defaults!$M$9,Rice!B24,IF($Z$2=Defaults!$M$10,Peanut!B24,IF($Z$2=Defaults!$M$11,Wheat!B24,IF($Z$2=Defaults!$M$12,Pasture!B24,\"\"))))))))","v":"Urea [46-0-0]"},{"$f":"IF(C24=\"\",\"\",VLOOKUP(C24,Defaults!$T$3:$AE$13,4,FALSE))","v":"lb"},{"$f":"IF(C24=\"\",\"\",IFERROR(VLOOKUP(C24,Defaults!$T$3:$AE$13,$Z$9,FALSE),\"\"))","v":122},0,null,{"$f":"IF(C24=\"\",\"\",VLOOKUP(C24,Defaults!$T$3:$V$13,2,FALSE))","v":"cwt"},{"$f":"IF(C24=\"\",\"\",ROUND(VLOOKUP(C24,Defaults!$T$3:$V$13,3,FALSE),2))","v":16.78},{"$f":"IFERROR(IF(LEFT($C$23,6)=\"Custom\",L24,L24*(1-VLOOKUP($C$23,Implements!$A$159:$D$166,4,FALSE))),\"\")","v":119.2672},null,null,null,null,null,{"$f":"N24","v":18.3},null,{"$f":"N24","v":18.3},null,null,null,null,null,{"$f":"W24","v":17.890080000000001},null,{"$f":"W24","v":17.890080000000001}]
[null,null,"Diammonium Phosphate [18-46-0]",null,"lb",null,null,null,null,0.22,{"$f":"IF(C25=\"\",\"\",ROUND(IF(E25=AE25,AF25,IF(AE25=$AC$2,AF25*VLOOKUP(E25,$AA$2:$AB$4,2,FALSE),IF(AE25=$AF$2,AF25*VLOOKUP(E25,$AD$2:$AE$3,2,FALSE),IF(AE25=$AI$2,AF25/VLOOKUP(E25,$AG$2:$AH$2,2,FALSE),IF(AE25=$AL$2,AF25*VLOOKUP(E25,$AJ$2:$AK$2,2,FALSE),IF(AE25=$AO$2,AF25/VLOOKUP(E25,$AM$2:$AN$2,2,FALSE),IF(AE25=$AR$2,AF25*VLOOKUP(E25,$AP$2:$AQ$3,2,FALSE)))))))),2))","v":0.22},65,65,14.3,null,null,1.455999999999996,null,null,null,0.22,63.544000000000004,13.97968,-0.3203200000000006,null,{"$f":"IF($Z$2=Defaults!$M$5,Cotton!B25,IF($Z$2=Defaults!$M$6,Corn!B25,IF($Z$2=Defaults!$M$7,Sorghum!B25,IF($Z$2=Defaults!$M$8,Soybean!B25,IF($Z$2=Defaults!$M$9,Rice!B25,IF($Z$2=Defaults!$M$10,Peanut!B25,IF($Z$2=Defaults!$M$11,Wheat!B25,IF($Z$2=Defaults!$M$12,Pasture!B25,\"\"))))))))","v":"Diammonium Phosphate [18-46-0]"},{"$f":"IF(C25=\"\",\"\",VLOOKUP(C25,Defaults!$T$3:$AE$13,4,FALSE))","v":"lb"},{"$f":"IF(C25=\"\",\"\",IFERROR(VLOOKUP(C25,Defaults!$T$3:$AE$13,$Z$9,FALSE),\"\"))","v":65},0,null,{"$f":"IF(C25=\"\",\"\",VLOOKUP(C25,Defaults!$T$3:$V$13,2,FALSE))","v":"cwt"},{"$f":"IF(C25=\"\",\"\",ROUND(VLOOKUP(C25,Defaults!$T$3:$V$13,3,FALSE),2))","v":24.82},{"$f":"IFERROR(IF(LEFT($C$23,6)=\"Custom\",L25,L25*(1-VLOOKUP($C$23,Implements!$A$159:$D$166,4,FALSE))),\"\")","v":63.544000000000004},null,null,null,null,null,14.3,null,14.3,null,null,null,null,null,13.97968,null,13.97968]
[null,null,"Potash [0-0-60]",null,"lb",null,null,null,null,0.15,0.15,100,100,15,null,null,2.2399999999999949,null,null,null,0.15,97.76,14.664,-0.3360000000000003,null,{"$f":"IF($Z$2=Defaults!$M$5,Cotton!B26,IF($Z$2=Defaults!$M$6,Corn!B26,IF($Z$2=Defaults!$M$7,Sorghum!B26,IF($Z$2=Defaults!$M$8,Soybean!B26,IF($Z$2=Defaults!$M$9,Rice!B26,IF($Z$2=Defaults!$M$10,Peanut!B26,IF($Z$2=Defaults!$M$11,Wheat!B26,IF($Z$2=Defaults!$M$12,Pasture!B26,\"\"))))))))","v":"Potash [0-0-60]"},{"$f":"IF(C26=\"\",\"\",VLOOKUP(C26,Defaults!$T$3:$AE$13,4,FALSE))","v":"lb"},{"$f":"IF(C26=\"\",\"\",IFERROR(VLOOKUP(C26,Defaults!$T$3:$AE$13,$Z$9,FALSE),\"\"))","v":100},0,null,{"$f":"IF(C26=\"\",\"\",VLOOKUP(C26,Defaults!$T$3:$V$13,2,FALSE))","v":"cwt"},{"$f":"IF(C26=\"\",\"\",ROUND(VLOOKUP(C26,Defaults!$T$3:$V$13,3,FALSE),2))","v":16.97},{"$f":"IFERROR(IF(LEFT($C$23,6)=\"Custom\",L26,L26*(1-VLOOKUP($C$23,Implements!$A$159:$D$166,4,FALSE))),\"\")","v":97.76},null,null,null,null,null,15,null,15,null,null,null,null,null,14.664,null,14.664]
[null,null,"Amm. Sulfate [21-0-0](24% Sulfate)",null,"lb",null,null,null,null,0.15,0.15,125,125,18.75,null,null,2.7999999999999972,null,null,null,0.15,122.2,18.329999999999998,-0.42000000000000171,null,{"$f":"IF($Z$2=Defaults!$M$5,Cotton!B27,IF($Z$2=Defaults!$M$6,Corn!B27,IF($Z$2=Defaults!$M$7,Sorghum!B27,IF($Z$2=Defaults!$M$8,Soybean!B27,IF($Z$2=Defaults!$M$9,Rice!B27,IF($Z$2=Defaults!$M$10,Peanut!B27,IF($Z$2=Defaults!$M$11,Wheat!B27,IF($Z$2=Defaults!$M$12,Pasture!B27,\"\"))))))))","v":"Amm. Sulfate [21-0-0](24% Sulfate)"},{"$f":"IF(C27=\"\",\"\",VLOOKUP(C27,Defaults!$T$3:$AE$13,4,FALSE))","v":"lb"},{"$f":"IF(C27=\"\",\"\",IFERROR(VLOOKUP(C27,Defaults!$T$3:$AE$13,$Z$9,FALSE),\"\"))","v":125},0,null,{"$f":"IF(C27=\"\",\"\",VLOOKUP(C27,Defaults!$T$3:$V$13,2,FALSE))","v":"cwt"},{"$f":"IF(C27=\"\",\"\",ROUND(VLOOKUP(C27,Defaults!$T$3:$V$13,3,FALSE),2))","v":17.23},{"$f":"IFERROR(IF(LEFT($C$23,6)=\"Custom\",L27,L27*(1-VLOOKUP($C$23,Implements!$A$159:$D$166,4,FALSE))),\"\")","v":122.2},null,null,null,null,null,18.75,null,18.75,null,null,null,null,null,18.329999999999998,null,18.329999999999998]
[null,null,"Sodium Borate (15% Boron)",null,"lb",null,null,null,null,0.75,0.75,7,7,5.25,null,null,0.15679999999999961,null,null,null,0.75,6.8432000000000004,5.1324000000000005,-0.11759999999999948,null,{"$f":"IF($Z$2=Defaults!$M$5,Cotton!B28,IF($Z$2=Defaults!$M$6,Corn!B28,IF($Z$2=Defaults!$M$7,Sorghum!B28,IF($Z$2=Defaults!$M$8,Soybean!B28,IF($Z$2=Defaults!$M$9,Rice!B28,IF($Z$2=Defaults!$M$10,Peanut!B28,IF($Z$2=Defaults!$M$11,Wheat!B28,IF($Z$2=Defaults!$M$12,Pasture!B28,\"\"))))))))","v":"Sodium Borate (15% Boron)"},{"$f":"IF(C28=\"\",\"\",VLOOKUP(C28,Defaults!$T$3:$AE$13,4,FALSE))","v":"lb"},{"$f":"IF(C28=\"\",\"\",IFERROR(VLOOKUP(C28,Defaults!$T$3:$AE$13,$Z$9,FALSE),\"\"))","v":7},0,null,{"$f":"IF(C28=\"\",\"\",VLOOKUP(C28,Defaults!$T$3:$V$13,2,FALSE))","v":"lb"},{"$f":"IF(C28=\"\",\"\",ROUND(VLOOKUP(C28,Defaults!$T$3:$V$13,3,FALSE),2))","v":0.75},{"$f":"IFERROR(IF(LEFT($C$23,6)=\"Custom\",L28,L28*(1-VLOOKUP($C$23,Implements!$A$159:$D$166,4,FALSE))),\"\")","v":6.8432000000000004},null,null,null,null,null,5.25,null,5.25,null,null,null,null,null,5.1324000000000005,null,5.1324000000000005]
[null,null,null,null,null,null,null,null,null,null,"",null,"",0,null,null,"",null,null,null,0,0,"","",null,{"$f":"IF($Z$2=Defaults!$M$5,Cotton!B29,IF($Z$2=Defaults!$M$6,Corn!B29,IF($Z$2=Defaults!$M$7,Sorghum!B29,IF($Z$2=Defaults!$M$8,Soybean!B29,IF($Z$2=Defaults!$M$9,Rice!B29,IF($Z$2=Defaults!$M$10,Peanut!B29,IF($Z$2=Defaults!$M$11,Wheat!B29,IF($Z$2=Defaults!$M$12,Pasture!B29,\"\"))))))))","v":""},{"$f":"IF(C29=\"\",\"\",VLOOKUP(C29,Defaults!$T$3:$AE$13,4,FALSE))","v":""},{"$f":"IF(C29=\"\",\"\",IFERROR(VLOOKUP(C29,Defaults!$T$3:$AE$13,$Z$9,FALSE),\"\"))","v":""},1,null,{"$f":"IF(C29=\"\",\"\",VLOOKUP(C29,Defaults!$T$3:$V$13,2,FALSE))","v":""},{"$f":"IF(C29=\"\",\"\",ROUND(VLOOKUP(C29,Defaults!$T$3:$V$13,3,FALSE),2))","v":""},{"$f":"IFERROR(IF(LEFT($C$23,6)=\"Custom\",L29,L29*(1-VLOOKUP($C$23,Implements!$A$159:$D$166,4,FALSE))),\"\")","v":0},null,null,null,null,null,0,null,0,null,null,null,null,null,"",null,""]
[null,null,"Planting, Insecticide, Defoliant, and Growth Regulator Application",null,null,null,null,null,null,null,null,null,null,null,null,null,null,null,null,null,null,null,null,null,null,{"$f":"IF($Z$2=Defaults!$M$5,Cotton!B30,IF($Z$2=Defaults!$M$6,Corn!B30,IF($Z$2=Defaults!$M$7,Sorghum!B30,IF($Z$2=Defaults!$M$8,Soybean!B30,IF($Z$2=Defaults!$M$9,Rice!B30,IF($Z$2=Defaults!$M$10,Peanut!B30,IF($Z$2=Defaults!$M$11,Wheat!B30,IF($Z$2=Defaults!$M$12,Pasture!B30,\"\"))))))))","v":"Planting, Insecticide, Defoliant, and Growth Regulator Application"},null,null,null,null,null,null,null,null,null,null,null,null,null,null,null,null,null,null,null,null,null,null,null,null,"Insecticide - Defoliant/Fertilizer/Innoculant/Litter - Fungicide/Growth Regulator",null,null,null,null,null,null,null,null,null,"Insecticide - Defoliant/Fertilizer/Innoculant/Litter - Fungicide/Growth Regulator"]
[null,null,"Row Planter 1",null,null,{"$f":"IF($L31=0,0,IF($C31=Defaults!$I$9,Implements!$AK$181,IF(C31=Defaults!$I$10,Implements!$AK$182,IF($C31=Defaults!$I$7,Implements!$AK$183,IF(C31=Defaults!$I$8,Implements!$AK$184,0)))))","v":8.6666666666666679},{"$f":"IF($L31=0,0,IFERROR(VLOOKUP($C31,Implements!$X$181:$AN$188,15,FALSE),0))","v":8.36},{"$f":"IF($L31=0,0,IFERROR(VLOOKUP($C31,Implements!$X$181:$AN$188,16,FALSE),0))","v":43.466666666666669},{"$f":"IF($L31=0,0,IFERROR(VLOOKUP($C31,Implements!$X$181:$AN$188,17,FALSE),0))","v":118.54071967402078},{"$f":"IF(OR(C31=\"\",L31=\"\",L31=0)=TRUE,\"\",IF(OR(C31=Defaults!$I$5,C31=Defaults!$I$6)=TRUE,$AT$4,IF(OR(C31=AV2,C31=AV3,C31=AV4,C31=AV5,C31=AV6,C31=AV7)=TRUE,ROUND(1/F31*(1*Inputs!$AA$13+($AI$8-1)*Inputs!$AA$15),2)+ROUND(G31*Inputs!$V$13/F31,2)+ROUND(H31*1/F31,2)+ROUND(I31/F31,2))))","v":22.43},{"$f":"IF(OR(C31=\"\",L31=\"\",L31=0)=TRUE,\"\",IF(OR(C31=Defaults!$I$5,C31=Defaults!$I$6)=TRUE,$AT$4,IF(OR(C31=AV2,C31=AV3,C31=AV4,C31=AV5,C31=AV6,C31=AV7)=TRUE,ROUND(1/F31*(1*Inputs!$AA$13+($AI$8-1)*Inputs!$AA$15),2)+ROUND(G31*Inputs!$V$13/F31,2)+ROUND(H31*1/F31,2)+ROUND(I31/F31,2))))","v":22.43},1,{"$f":"AB31","v":1},{"$f":"IF(C31=\"\",0,IF(L31=0,0,IF(L31=\"\",\"\",J31*L31)))","v":22.43},null,null,{"$f":"IF($V31=0,0,IF($C31=Defaults!$I$9,Implements!$AK$170,IF(C31=Defaults!$I$10,Implements!$AK$171,IF($C31=Defaults!$I$7,Implements!$AK$172,IF(C31=Defaults!$I$8,Implements!$AK$173,0)))))","v":8.8582000000000001},{"$f":"IF($V31=0,0,IFERROR(VLOOKUP($C31,Implements!$X$170:$AN$177,15,FALSE),0))","v":8.36},{"$f":"IF($V31=0,0,IFERROR(VLOOKUP($C31,Implements!$X$170:$AN$177,16,FALSE),0))","v":43.466666666666669},{"$f":"IF($V31=0,0,IFERROR(VLOOKUP($C31,Implements!$X$170:$AN$177,17,FALSE),0))","v":119.31065726286383},{"$f":"IF(OR(C31=\"\",V31=\"\",V31=0)=TRUE,\"\",IF(LEFT(C31,6)=\"Custom\",J31,ROUND(1/Q31*(1*Inputs!$AA$13+($AI$8-1)*Inputs!$AA$15),2)+ROUND(R31*Inputs!$V$13/Q31,2)+ROUND(S31*1/Q31,2)+ROUND(T31/Q31,2)))","v":22.020000000000003},{"$f":"+L31","v":1},{"$f":"IF(C31=\"\",\"\",IF(V31=0,0,IF(V31=\"\",\"\",U31*V31)))","v":22.020000000000003},{"$f":"IF(C31=\"\",\"\",W31-N31)","v":-0.40999999999999659},null,{"$f":"IF($Z$2=Defaults!$M$5,Cotton!B31,IF($Z$2=Defaults!$M$6,Corn!B31,IF($Z$2=Defaults!$M$7,Sorghum!B31,IF($Z$2=Defaults!$M$8,Soybean!B31,IF($Z$2=Defaults!$M$9,Rice!B31,IF($Z$2=Defaults!$M$10,Peanut!B31,IF($Z$2=Defaults!$M$11,Wheat!B31,IF($Z$2=Defaults!$M$12,Pasture!B31,\"\"))))))))","v":"Row Planter 1"},null,{"$f":"IF(C31=\"\",\"\",IF($Z$2=Defaults!$M$8,VLOOKUP(C31,Defaults!$I$4:$J$10,2,FALSE),IF(OR($Z$2=Defaults!$M$9,$Z$2=Defaults!$M$11,$Z$2=Defaults!$M$12),VLOOKUP(C31,Defaults!$I$12:$J$16,2,FALSE),VLOOKUP(C31,Defaults!$I$18:$J$22,2,FALSE))))","v":1},0,{"$f":"IF(AB31=\"\",\"\",AB31*2)","v":2},null,null,{"$f":"+AB31","v":1},{"$f":"N31","v":22.43},{"$f":"ROUND(IFERROR(1/F31*(1*Inputs!$AA$13+($AI$7-1)*Inputs!$AA$15),0),2)*L31","v":2.04},{"$f":"ROUND(IFERROR(1/F31*G31*Inputs!$V$13,0),2)*L31","v":1.69},{"$f":"ROUND(IFERROR(1/F31*H31,0),2)*L31","v":5.0199999999999996},{"$f":"ROUND(IFERROR(1/F31*I31,0),2)*L31","v":13.68},null,null,null,{"$f":"W31","v":22.020000000000003},{"$f":"ROUND(IFERROR(1/Q31*(1*Inputs!$AA$13+($AI$7-1)*Inputs!$AA$15),0),2)*V31","v":1.99},{"$f":"ROUND(IFERROR(1/Q31*R31*Inputs!$V$13,0),2)*V31","v":1.65},{"$f":"ROUND(IFERROR(1/Q31*S31,0),2)*V31","v":4.91},{"$f":"ROUND(IFERROR(1/Q31*T31,0),2)*V31","v":13.47},null,null,null,null,null,{"$f":"AZ11","v":"Cotton"},{"$f":"BA11","v":"Corn"},"Sorghum","Soybean","Rice","Peanut","Wheat","Est. Pasture or Hay",null,null,{"$f":"BJ11","v":"Cotton"},{"$f":"BK11","v":"Corn"},"Sorghum","Soybean","Rice","Peanut","Wheat","Est. Pasture or Hay"]
[null,null,"Seed",null,{"$f":"IF(C31=\"\",\"\",\"acre\")","v":"acre"},null,null,null,null,120.03,{"$f":"IF(OR(C32=\"\",L32=\"\",L32=0)=TRUE,\"\",IF(VLOOKUP($Z$2,Defaults!$M$4:$R$12,6,FALSE)=\"\",\"\",VLOOKUP($Z$2,Defaults!$M$4:$R$12,6,FALSE)))","v":120.03},1,1,{"$f":"IF(C32=\"\",0,IF(L32=0,0,IF(L32=\"\",\"\",J32*L32)))","v":120.03},null,null,{"$f":"IF(L32>0,ABS(V32-L32),\"\")","v":2.3499999999999965E-2},null,null,null,{"$f":"J32","v":120.03},{"$f":"IF(AG32=0,0,AG32)","v":0.97650000000000003},{"$f":"IF(C32=\"\",0,IF(V32=0,0,IF(V32=\"\",\"\",U32*V32)))","v":117.20929500000001},-2.8207049999999896,null,{"$f":"IF($Z$2=Defaults!$M$5,Cotton!B32,IF($Z$2=Defaults!$M$6,Corn!B32,IF($Z$2=Defaults!$M$7,Sorghum!B32,IF($Z$2=Defaults!$M$8,Soybean!B32,IF($Z$2=Defaults!$M$9,Rice!B32,IF($Z$2=Defaults!$M$10,Peanut!B32,IF($Z$2=Defaults!$M$11,Wheat!B32,IF($Z$2=Defaults!$M$12,Pasture!B32,\"\"))))))))","v":"Seed"},{"$f":"VLOOKUP(Z2,Defaults!$M$5:$R$12,6,FALSE)","v":120.03},{"$f":"IF($C$31=\"\",\"\",1)","v":1},0,null,null,null,{"$f":"IFERROR(IF(LEFT($C$31,6)=\"Custom\",L32,L32*(1-VLOOKUP($C$31,Implements!$A$159:$D$166,4,FALSE))),\"\")","v":0.97650000000000003},null,null,null,null,null,{"$f":"N32","v":120.03},{"$f":"N32","v":120.03},null,null,null,null,null,null,{"$f":"W32","v":117.20929500000001},{"$f":"W32","v":117.20929500000001}]
[null,null,"Over-the-Top Sprayer 1",null,null,{"$f":"IF($L33=0,0,IF(C33=Defaults!$I$27,Implements!$AK$185,IF($C33=Defaults!$I$28,Implements!$AK$186,0)))","v":61.454545454545453},{"$f":"IF($L33=0,0,IFERROR(VLOOKUP($C33,Implements!$X$181:$AN$188,15,FALSE),0))","v":8.36},{"$f":"IF($L33=0,0,IFERROR(VLOOKUP($C33,Implements!$X$181:$AN$188,16,FALSE),0))","v":45.046666666666667},{"$f":"IF($L33=0,0,IFERROR(VLOOKUP($C33,Implements!$X$181:$AN$188,17,FALSE),0))","v":137.64582520078542},{"$f":"IF(OR(C33=\"\",L33=\"\",L33=0)=TRUE,\"\",IF(C33=Defaults!$I$40,VLOOKUP(C33,Defaults!$I$39:$K$41,3,FALSE),ROUND(1/F33*(1*Inputs!$AA$13+($AI$7-1)*Inputs!$AA$15),2)+ROUND(G33*Inputs!$V$13/F33,2)+ROUND(H33/F33,2)+ROUND(I33/F33,2)))","v":3.5},{"$f":"IF(OR(C33=\"\",L33=\"\",L33=0)=TRUE,\"\",IF(C33=Defaults!$I$40,VLOOKUP(C33,Defaults!$I$39:$K$41,3,FALSE),ROUND(1/F33*(1*Inputs!$AA$13+($AI$7-1)*Inputs!$AA$15),2)+ROUND(G33*Inputs!$V$13/F33,2)+ROUND(H33/F33,2)+ROUND(I33/F33,2)))","v":3.5},3,3,10.5,null,null,{"$f":"IF($V33=0,0,IF(C33=Defaults!$I$27,Implements!$AK$174,IF($C33=Defaults!$I$28,Implements!$AK$175,0)))","v":62.812690909090918},{"$f":"IF($V33=0,0,IFERROR(VLOOKUP($C33,Implements!$X$170:$AN$177,15,FALSE),0))","v":8.36},{"$f":"IF($V33=0,0,IFERROR(VLOOKUP($C33,Implements!$X$170:$AN$177,16,FALSE),0))","v":45.046666666666667},{"$f":"IF($V33=0,0,IFERROR(VLOOKUP($C33,Implements!$X$170:$AN$177,17,FALSE),0))","v":138.7259236950801},{"$f":"IF(OR(C33=\"\",V33=\"\",V33=0)=TRUE,\"\",IF(LEFT(C33,6)=\"Custom\",J33,ROUND(1/Q33*(1*Inputs!$AA$13+($AI$7-1)*Inputs!$AA$15),2)+ROUND(R33*Inputs!$V$13/Q33,2)+ROUND(S33/Q33,2)+ROUND(T33/Q33,2)))","v":3.44},{"$f":"+L33","v":3},10.32,-0.17999999999999972,null,{"$f":"IF($Z$2=Defaults!$M$5,Cotton!B33,IF($Z$2=Defaults!$M$6,Corn!B33,IF($Z$2=Defaults!$M$7,Sorghum!B33,IF($Z$2=Defaults!$M$8,Soybean!B33,IF($Z$2=Defaults!$M$9,Rice!B33,IF($Z$2=Defaults!$M$10,Peanut!B33,IF($Z$2=Defaults!$M$11,Wheat!B33,IF($Z$2=Defaults!$M$12,Pasture!B33,\"\"))))))))","v":"Over-the-Top Sprayer 1"},null,{"$f":"IF(C33=\"\",\"\",IF(OR($Z$2=Defaults!$M$5,$Z$2=Defaults!$M$6,$Z$2=Defaults!$M$7,$Z$2=Defaults!$M$8,$Z$2=Defaults!$M$9,$Z$2=Defaults!$M$10)=TRUE,HLOOKUP($Z$2,Defaults!X20:AE30,11,FALSE),\"\"))","v":3},0,{"$f":"IF(AB33=\"\",\"\",AB33*2)","v":6},null,null,{"$f":"+AB33","v":3},{"$f":"N33","v":10.5},{"$f":"ROUND(IFERROR(1/F33*(1*Inputs!$AA$13+($AI$7-1)*Inputs!$AA$15),0),2)*L33","v":0.86999999999999988},{"$f":"ROUND(IFERROR(1/F33*G33*Inputs!$V$13,0),2)*L33","v":0.72},{"$f":"ROUND(IFERROR(1/F33*H33,0),2)*L33","v":2.19},{"$f":"ROUND(IFERROR(1/F33*I33,0),2)*L33","v":6.7200000000000006},null,null,null,{"$f":"W33","v":10.32},{"$f":"ROUND(IFERROR(1/Q33*(1*Inputs!$AA$13+($AI$7-1)*Inputs!$AA$15),0),2)*V33","v":0.84000000000000008},{"$f":"ROUND(IFERROR(1/Q33*R33*Inputs!$V$13,0),2)*V33","v":0.69000000000000006},{"$f":"ROUND(IFERROR(1/Q33*S33,0),2)*V33","v":2.16},{"$f":"ROUND(IFERROR(1/Q33*T33,0),2)*V33","v":6.63},null,null,null,null,"Insecticide",null,null,null,null,null,null,null,null,null,"Insecticide"]
[null,null,"Centric",null,"oz",null,null,null,null,4.6399999999999997,{"$f":"IF(C34=\"\",\"\",ROUND(IF(E34=AE34,AF34,IF(AE34=$AC$2,AF34*VLOOKUP(E34,$AA$2:$AB$4,2,FALSE),IF(AE34=$AF$2,AF34*VLOOKUP(E34,$AD$2:$AE$3,2,FALSE),IF(AE34=$AI$2,AF34/VLOOKUP(E34,$AG$2:$AH$2,2,FALSE),IF(AE34=$AL$2,AF34*VLOOKUP(E34,$AJ$2:$AK$2,2,FALSE),IF(AE34=$AO$2,AF34/VLOOKUP(E34,$AM$2:$AN$2,2,FALSE),IF(AE34=$AR$2,AF34*VLOOKUP(E34,$AP$2:$AQ$3,2,FALSE)))))))),2))","v":4.6399999999999997},4,4,18.559999999999999,null,null,{"$f":"IF(L34>0,ABS(V34-L34),\"\")","v":0.88319999999999999},null,null,null,{"$f":"J34","v":4.6399999999999997},{"$f":"IF(AG34=0,0,AG34)","v":3.1168},14.461951999999998,-4.0980480000000004,null,{"$f":"IF($Z$2=Defaults!$M$5,Cotton!B34,IF($Z$2=Defaults!$M$6,Corn!B34,IF($Z$2=Defaults!$M$7,Sorghum!B34,IF($Z$2=Defaults!$M$8,Soybean!B34,IF($Z$2=Defaults!$M$9,Rice!B34,IF($Z$2=Defaults!$M$10,Peanut!B34,IF($Z$2=Defaults!$M$11,Wheat!B34,IF($Z$2=Defaults!$M$12,Pasture!B34,\"\"))))))))","v":"Centric"},{"$f":"IF(C34=\"\",\"\",HLOOKUP($Z$2,$AZ$31:$BG$42,4,FALSE))","v":"oz"},{"$f":"IF(C34=\"\",\"\",HLOOKUP($Z$2,$BJ$31:$BQ$42,4,FALSE))","v":4},0,null,{"$f":"IF(C34=\"\",\"\",IF(OR($Z$2=Defaults!$M$5,$Z$2=Defaults!$M$6,$Z$2=Defaults!$M$7,$Z$2=Defaults!$M$8,$Z$2=Defaults!$M$9,$Z$2=Defaults!$M$10)=TRUE,VLOOKUP(C34,Defaults!$T$21:$AE$29,2,FALSE),\"\"))","v":"oz"},{"$f":"IF(C34=\"\",\"\",IF(OR($Z$2=Defaults!$M$5,$Z$2=Defaults!$M$6,$Z$2=Defaults!$M$7,$Z$2=Defaults!$M$8,$Z$2=Defaults!$M$9,$Z$2=Defaults!$M$10)=TRUE,ROUND(VLOOKUP(C34,Defaults!$T$21:$AC$29,3,FALSE),2),\"\"))","v":4.6399999999999997},{"$f":"IFERROR(IF(LEFT($C$33,6)=\"Custom\",L34,L34*(1-VLOOKUP($C$33,Implements!$A$159:$D$166,4,FALSE))),\"\")","v":3.1168},null,null,null,null,null,{"$f":"N34","v":18.559999999999999},null,{"$f":"N34","v":18.559999999999999},null,null,null,null,null,{"$f":"W34","v":14.461951999999998},null,{"$f":"W34","v":14.461951999999998},null,{"$f":"IF($C34=\"\",\"\",$C34)","v":"Centric"},{"$f":"IF($C34=\"\",\"\",VLOOKUP(C34,Defaults!$T$21:$AE$29,4,FALSE))","v":"oz"},{"$f":"IF($C34=\"\",\"\",VLOOKUP(C34,Defaults!$T$21:$AE$29,4,FALSE))","v":"oz"},{"$f":"IF($C34=\"\",\"\",VLOOKUP(C34,Defaults!$T$21:$AE$29,4,FALSE))","v":"oz"},{"$f":"IF($C34=\"\",\"\",VLOOKUP(C34,Defaults!$T$21:$AE$29,4,FALSE))","v":"oz"},{"$f":"IF($C34=\"\",\"\",VLOOKUP(C34,Defaults!$T$21:$AE$29,4,FALSE))","v":"oz"},{"$f":"IF($C34=\"\",\"\",VLOOKUP(C34,Defaults!$T$21:$AE$29,4,FALSE))","v":"oz"},null,null,null,{"$f":"IF($C34=\"\",\"\",$C34)","v":"Centric"},{"$f":"IF($C34=\"\",\"\",IFERROR(VLOOKUP(C34,Defaults!$T$21:$AE$29,5,FALSE),\"\"))","v":4},{"$f":"IF($C34=\"\",\"\",IFERROR(VLOOKUP(C34,Defaults!$T$21:$AE$29,6,FALSE),\"\"))","v":""},{"$f":"IF($C34=\"\",\"\",IFERROR(VLOOKUP(C34,Defaults!$T$21:$AE$29,7,FALSE),\"\"))","v":""},{"$f":"IF($C34=\"\",\"\",IFERROR(VLOOKUP(C34,Defaults!$T$21:$AE$29,8,FALSE),\"\"))","v":""},{"$f":"IF($C34=\"\",\"\",IFERROR(VLOOKUP(C34,Defaults!$T$21:$AE$29,9,FALSE),\"\"))","v":""},{"$f":"IF($C34=\"\",\"\",IFERROR(VLOOKUP(C34,Defaults!$T$21:$AE$29,10,FALSE),\"\"))","v":""}]
[null,null,"Diamond",null,"oz",null,null,null,null,1.31,{"$f":"IF(C35=\"\",\"\",ROUND(IF(E35=AE35,AF35,IF(AE35=$AC$2,AF35*VLOOKUP(E35,$AA$2:$AB$4,2,FALSE),IF(AE35=$AF$2,AF35*VLOOKUP(E35,$AD$2:$AE$3,2,FALSE),IF(AE35=$AI$2,AF35/VLOOKUP(E35,$AG$2:$AH$2,2,FALSE),IF(AE35=$AL$2,AF35*VLOOKUP(E35,$AJ$2:$AK$2,2,FALSE),IF(AE35=$AO$2,AF35/VLOOKUP(E35,$AM$2:$AN$2,2,FALSE),IF(AE35=$AR$2,AF35*VLOOKUP(E35,$AP$2:$AQ$3,2,FALSE)))))))),2))","v":1.31},12,12,15.72,null,null,{"$f":"IF(L35>0,ABS(V35-L35),\"\")","v":2.6495999999999995},null,null,null,{"$f":"J35","v":1.31},{"$f":"IF(AG35=0,0,AG35)","v":9.3504000000000005},12.249024,-3.4709760000000003,null,{"$f":"IF($Z$2=Defaults!$M$5,Cotton!B35,IF($Z$2=Defaults!$M$6,Corn!B35,IF($Z$2=Defaults!$M$7,Sorghum!B35,IF($Z$2=Defaults!$M$8,Soybean!B35,IF($Z$2=Defaults!$M$9,Rice!B35,IF($Z$2=Defaults!$M$10,Peanut!B35,IF($Z$2=Defaults!$M$11,Wheat!B35,IF($Z$2=Defaults!$M$12,Pasture!B35,\"\"))))))))","v":"Diamond"},{"$f":"IF(C35=\"\",\"\",HLOOKUP($Z$2,$AZ$31:$BG$42,5,FALSE))","v":"oz"},{"$f":"IF(C35=\"\",\"\",HLOOKUP($Z$2,$BJ$31:$BQ$42,5,FALSE))","v":12},0,null,{"$f":"IF(C35=\"\",\"\",IF(OR($Z$2=Defaults!$M$5,$Z$2=Defaults!$M$6,$Z$2=Defaults!$M$7,$Z$2=Defaults!$M$8,$Z$2=Defaults!$M$9,$Z$2=Defaults!$M$10)=TRUE,VLOOKUP(C35,Defaults!$T$21:$AE$29,2,FALSE),\"\"))","v":"oz"},{"$f":"IF(C35=\"\",\"\",IF(OR($Z$2=Defaults!$M$5,$Z$2=Defaults!$M$6,$Z$2=Defaults!$M$7,$Z$2=Defaults!$M$8,$Z$2=Defaults!$M$9,$Z$2=Defaults!$M$10)=TRUE,ROUND(VLOOKUP(C35,Defaults!$T$21:$AC$29,3,FALSE),2),\"\"))","v":1.31},{"$f":"IFERROR(IF(LEFT($C$33,6)=\"Custom\",L35,L35*(1-VLOOKUP($C$33,Implements!$A$159:$D$166,4,FALSE))),\"\")","v":9.3504000000000005},null,null,null,null,null,{"$f":"N35","v":15.72},null,{"$f":"N35","v":15.72},null,null,null,null,null,{"$f":"W35","v":12.249024},null,{"$f":"W35","v":12.249024},null,"Diamond",{"$f":"IF($C35=\"\",\"\",VLOOKUP(C35,Defaults!$T$21:$AE$29,4,FALSE))","v":"oz"},{"$f":"IF($C35=\"\",\"\",VLOOKUP(C35,Defaults!$T$21:$AE$29,4,FALSE))","v":"oz"},{"$f":"IF($C35=\"\",\"\",VLOOKUP(C35,Defaults!$T$21:$AE$29,4,FALSE))","v":"oz"},{"$f":"IF($C35=\"\",\"\",VLOOKUP(C35,Defaults!$T$21:$AE$29,4,FALSE))","v":"oz"},{"$f":"IF($C35=\"\",\"\",VLOOKUP(C35,Defaults!$T$21:$AE$29,4,FALSE))","v":"oz"},{"$f":"IF($C35=\"\",\"\",VLOOKUP(C35,Defaults!$T$21:$AE$29,4,FALSE))","v":"oz"},null,null,null,{"$f":"IF($C35=\"\",\"\",$C35)","v":"Diamond"},{"$f":"IF($C35=\"\",\"\",IFERROR(VLOOKUP(C35,Defaults!$T$21:$AE$29,5,FALSE),\"\"))","v":12},{"$f":"IF($C35=\"\",\"\",IFERROR(VLOOKUP(C35,Defaults!$T$21:$AE$29,6,FALSE),\"\"))","v":""},{"$f":"IF($C35=\"\",\"\",IFERROR(VLOOKUP(C35,Defaults!$T$21:$AE$29,7,FALSE),\"\"))","v":""},{"$f":"IF($C35=\"\",\"\",IFERROR(VLOOKUP(C35,Defaults!$T$21:$AE$29,8,FALSE),\"\"))","v":""},{"$f":"IF($C35=\"\",\"\",IFERROR(VLOOKUP(C35,Defaults!$T$21:$AE$29,9,FALSE),\"\"))","v":""},{"$f":"IF($C35=\"\",\"\",IFERROR(VLOOKUP(C35,Defaults!$T$21:$AE$29,10,FALSE),\"\"))","v":""}]
[null,null,"Transform",null,"oz",null,null,null,null,6.88,{"$f":"IF(C36=\"\",\"\",ROUND(IF(E36=AE36,AF36,IF(AE36=$AC$2,AF36*VLOOKUP(E36,$AA$2:$AB$4,2,FALSE),IF(AE36=$AF$2,AF36*VLOOKUP(E36,$AD$2:$AE$3,2,FALSE),IF(AE36=$AI$2,AF36/VLOOKUP(E36,$AG$2:$AH$2,2,FALSE),IF(AE36=$AL$2,AF36*VLOOKUP(E36,$AJ$2:$AK$2,2,FALSE),IF(AE36=$AO$2,AF36/VLOOKUP(E36,$AM$2:$AN$2,2,FALSE),IF(AE36=$AR$2,AF36*VLOOKUP(E36,$AP$2:$AQ$3,2,FALSE)))))))),2))","v":6.88},4,4,27.52,null,null,{"$f":"IF(L36>0,ABS(V36-L36),\"\")","v":0.88319999999999999},null,null,null,{"$f":"J36","v":6.88},{"$f":"IF(AG36=0,0,AG36)","v":3.1168},21.443584000000001,-6.0764159999999983,null,{"$f":"IF($Z$2=Defaults!$M$5,Cotton!B36,IF($Z$2=Defaults!$M$6,Corn!B36,IF($Z$2=Defaults!$M$7,Sorghum!B36,IF($Z$2=Defaults!$M$8,Soybean!B36,IF($Z$2=Defaults!$M$9,Rice!B36,IF($Z$2=Defaults!$M$10,Peanut!B36,IF($Z$2=Defaults!$M$11,Wheat!B36,IF($Z$2=Defaults!$M$12,Pasture!B36,\"\"))))))))","v":"Transform"},{"$f":"IF(C36=\"\",\"\",HLOOKUP($Z$2,$AZ$31:$BG$42,6,FALSE))","v":"oz"},{"$f":"IF(C36=\"\",\"\",HLOOKUP($Z$2,$BJ$31:$BQ$42,6,FALSE))","v":4},0,null,{"$f":"IF(C36=\"\",\"\",IF(OR($Z$2=Defaults!$M$5,$Z$2=Defaults!$M$6,$Z$2=Defaults!$M$7,$Z$2=Defaults!$M$8,$Z$2=Defaults!$M$9,$Z$2=Defaults!$M$10)=TRUE,VLOOKUP(C36,Defaults!$T$21:$AE$29,2,FALSE),\"\"))","v":"oz"},{"$f":"IF(C36=\"\",\"\",IF(OR($Z$2=Defaults!$M$5,$Z$2=Defaults!$M$6,$Z$2=Defaults!$M$7,$Z$2=Defaults!$M$8,$Z$2=Defaults!$M$9,$Z$2=Defaults!$M$10)=TRUE,ROUND(VLOOKUP(C36,Defaults!$T$21:$AC$29,3,FALSE),2),\"\"))","v":6.88},{"$f":"IFERROR(IF(LEFT($C$33,6)=\"Custom\",L36,L36*(1-VLOOKUP($C$33,Implements!$A$159:$D$166,4,FALSE))),\"\")","v":3.1168},null,null,null,null,null,{"$f":"N36","v":27.52},null,{"$f":"N36","v":27.52},null,null,null,null,null,{"$f":"W36","v":21.443584000000001},null,{"$f":"W36","v":21.443584000000001},null,"Transform",{"$f":"IF($C36=\"\",\"\",VLOOKUP(C36,Defaults!$T$21:$AE$29,4,FALSE))","v":"oz"},{"$f":"IF($C36=\"\",\"\",VLOOKUP(C36,Defaults!$T$21:$AE$29,4,FALSE))","v":"oz"},{"$f":"IF($C36=\"\",\"\",VLOOKUP(C36,Defaults!$T$21:$AE$29,4,FALSE))","v":"oz"},{"$f":"IF($C36=\"\",\"\",VLOOKUP(C36,Defaults!$T$21:$AE$29,4,FALSE))","v":"oz"},{"$f":"IF($C36=\"\",\"\",VLOOKUP(C36,Defaults!$T$21:$AE$29,4,FALSE))","v":"oz"},{"$f":"IF($C36=\"\",\"\",VLOOKUP(C36,Defaults!$T$21:$AE$29,4,FALSE))","v":"oz"},null,null,null,{"$f":"IF($C36=\"\",\"\",$C36)","v":"Transform"},{"$f":"IF($C36=\"\",\"\",IFERROR(VLOOKUP(C36,Defaults!$T$21:$AE$29,5,FALSE),\"\"))","v":4},{"$f":"IF($C36=\"\",\"\",IFERROR(VLOOKUP(C36,Defaults!$T$21:$AE$29,6,FALSE),\"\"))","v":""},{"$f":"IF($C36=\"\",\"\",IFERROR(VLOOKUP(C36,Defaults!$T$21:$AE$29,7,FALSE),\"\"))","v":""},{"$f":"IF($C36=\"\",\"\",IFERROR(VLOOKUP(C36,Defaults!$T$21:$AE$29,8,FALSE),\"\"))","v":""},{"$f":"IF($C36=\"\",\"\",IFERROR(VLOOKUP(C36,Defaults!$T$21:$AE$29,9,FALSE),\"\"))","v":""},{"$f":"IF($C36=\"\",\"\",IFERROR(VLOOKUP(C36,Defaults!$T$21:$AE$29,10,FALSE),\"\"))","v":""}]
[null,null,"Prevathon",null,"oz",null,null,null,null,1.1599999999999999,{"$f":"IF(C37=\"\",\"\",ROUND(IF(E37=AE37,AF37,IF(AE37=$AC$2,AF37*VLOOKUP(E37,$AA$2:$AB$4,2,FALSE),IF(AE37=$AF$2,AF37*VLOOKUP(E37,$AD$2:$AE$3,2,FALSE),IF(AE37=$AI$2,AF37/VLOOKUP(E37,$AG$2:$AH$2,2,FALSE),IF(AE37=$AL$2,AF37*VLOOKUP(E37,$AJ$2:$AK$2,2,FALSE),IF(AE37=$AO$2,AF37/VLOOKUP(E37,$AM$2:$AN$2,2,FALSE),IF(AE37=$AR$2,AF37*VLOOKUP(E37,$AP$2:$AQ$3,2,FALSE)))))))),2))","v":1.1599999999999999},20,20,23.2,null,null,{"$f":"IF(L37>0,ABS(V37-L37),\"\")","v":4.4160000000000004},null,null,null,{"$f":"J37","v":1.1599999999999999},{"$f":"IF(AG37=0,0,AG37)","v":15.584},18.077439999999999,-5.12256,null,{"$f":"IF($Z$2=Defaults!$M$5,Cotton!B37,IF($Z$2=Defaults!$M$6,Corn!B37,IF($Z$2=Defaults!$M$7,Sorghum!B37,IF($Z$2=Defaults!$M$8,Soybean!B37,IF($Z$2=Defaults!$M$9,Rice!B37,IF($Z$2=Defaults!$M$10,Peanut!B37,IF($Z$2=Defaults!$M$11,Wheat!B37,IF($Z$2=Defaults!$M$12,Pasture!B37,\"\"))))))))","v":"Prevathon"},{"$f":"IF(C37=\"\",\"\",HLOOKUP($Z$2,$AZ$31:$BG$42,7,FALSE))","v":"oz"},{"$f":"IF(C37=\"\",\"\",HLOOKUP($Z$2,$BJ$31:$BQ$42,7,FALSE))","v":20},0,null,{"$f":"IF(C37=\"\",\"\",IF(OR($Z$2=Defaults!$M$5,$Z$2=Defaults!$M$6,$Z$2=Defaults!$M$7,$Z$2=Defaults!$M$8,$Z$2=Defaults!$M$9,$Z$2=Defaults!$M$10)=TRUE,VLOOKUP(C37,Defaults!$T$21:$AE$29,2,FALSE),\"\"))","v":"oz"},{"$f":"IF(C37=\"\",\"\",IF(OR($Z$2=Defaults!$M$5,$Z$2=Defaults!$M$6,$Z$2=Defaults!$M$7,$Z$2=Defaults!$M$8,$Z$2=Defaults!$M$9,$Z$2=Defaults!$M$10)=TRUE,ROUND(VLOOKUP(C37,Defaults!$T$21:$AC$29,3,FALSE),2),\"\"))","v":1.1599999999999999},{"$f":"IFERROR(IF(LEFT($C$33,6)=\"Custom\",L37,L37*(1-VLOOKUP($C$33,Implements!$A$159:$D$166,4,FALSE))),\"\")","v":15.584},null,null,null,null,null,{"$f":"N37","v":23.2},null,{"$f":"N37","v":23.2},null,null,null,null,null,{"$f":"W37","v":18.077439999999999},null,{"$f":"W37","v":18.077439999999999},null,"Prevathon",{"$f":"IF($C37=\"\",\"\",VLOOKUP(C37,Defaults!$T$21:$AE$29,4,FALSE))","v":"oz"},{"$f":"IF($C37=\"\",\"\",VLOOKUP(C37,Defaults!$T$21:$AE$29,4,FALSE))","v":"oz"},{"$f":"IF($C37=\"\",\"\",VLOOKUP(C37,Defaults!$T$21:$AE$29,4,FALSE))","v":"oz"},{"$f":"IF($C37=\"\",\"\",VLOOKUP(C37,Defaults!$T$21:$AE$29,4,FALSE))","v":"oz"},{"$f":"IF($C37=\"\",\"\",VLOOKUP(C37,Defaults!$T$21:$AE$29,4,FALSE))","v":"oz"},{"$f":"IF($C37=\"\",\"\",VLOOKUP(C37,Defaults!$T$21:$AE$29,4,FALSE))","v":"oz"},null,null,null,{"$f":"IF($C37=\"\",\"\",$C37)","v":"Prevathon"},{"$f":"IF($C37=\"\",\"\",IFERROR(VLOOKUP(C37,Defaults!$T$21:$AE$29,5,FALSE),\"\"))","v":20},{"$f":"IF($C37=\"\",\"\",IFERROR(VLOOKUP(C37,Defaults!$T$21:$AE$29,6,FALSE),\"\"))","v":14},{"$f":"IF($C37=\"\",\"\",IFERROR(VLOOKUP(C37,Defaults!$T$21:$AE$29,7,FALSE),\"\"))","v":""},{"$f":"IF($C37=\"\",\"\",IFERROR(VLOOKUP(C37,Defaults!$T$21:$AE$29,8,FALSE),\"\"))","v":""},{"$f":"IF($C37=\"\",\"\",IFERROR(VLOOKUP(C37,Defaults!$T$21:$AE$29,9,FALSE),\"\"))","v":""},{"$f":"IF($C37=\"\",\"\",IFERROR(VLOOKUP(C37,Defaults!$T$21:$AE$29,10,FALSE),\"\"))","v":""}]
[null,null,null,null,null,null,null,null,null,null,{"$f":"IF(C38=\"\",\"\",ROUND(IF(E38=AE38,AF38,IF(AE38=$AC$2,AF38*VLOOKUP(E38,$AA$2:$AB$4,2,FALSE),IF(AE38=$AF$2,AF38*VLOOKUP(E38,$AD$2:$AE$3,2,FALSE),IF(AE38=$AI$2,AF38/VLOOKUP(E38,$AG$2:$AH$2,2,FALSE),IF(AE38=$AL$2,AF38*VLOOKUP(E38,$AJ$2:$AK$2,2,FALSE),IF(AE38=$AO$2,AF38/VLOOKUP(E38,$AM$2:$AN$2,2,FALSE),IF(AE38=$AR$2,AF38*VLOOKUP(E38,$AP$2:$AQ$3,2,FALSE)))))))),2))","v":""},null,"",0,null,null,{"$f":"IF(L38>0,ABS(V38-L38),\"\")","v":""},null,null,null,{"$f":"J38","v":0},{"$f":"IF(AG38=0,0,AG38)","v":0},"","",null,{"$f":"IF($Z$2=Defaults!$M$5,Cotton!B38,IF($Z$2=Defaults!$M$6,Corn!B38,IF($Z$2=Defaults!$M$7,Sorghum!B38,IF($Z$2=Defaults!$M$8,Soybean!B38,IF($Z$2=Defaults!$M$9,Rice!B38,IF($Z$2=Defaults!$M$10,Peanut!B38,IF($Z$2=Defaults!$M$11,Wheat!B38,IF($Z$2=Defaults!$M$12,Pasture!B38,\"\"))))))))","v":""},{"$f":"IF(C38=\"\",\"\",HLOOKUP($Z$2,$AZ$31:$BG$42,8,FALSE))","v":""},{"$f":"IF(C38=\"\",\"\",HLOOKUP($Z$2,$BJ$31:$BQ$42,8,FALSE))","v":""},0,null,{"$f":"IF(C38=\"\",\"\",IF(OR($Z$2=Defaults!$M$5,$Z$2=Defaults!$M$6,$Z$2=Defaults!$M$7,$Z$2=Defaults!$M$8,$Z$2=Defaults!$M$9,$Z$2=Defaults!$M$10)=TRUE,VLOOKUP(C38,Defaults!$T$21:$AE$29,2,FALSE),\"\"))","v":""},{"$f":"IF(C38=\"\",\"\",IF(OR($Z$2=Defaults!$M$5,$Z$2=Defaults!$M$6,$Z$2=Defaults!$M$7,$Z$2=Defaults!$M$8,$Z$2=Defaults!$M$9,$Z$2=Defaults!$M$10)=TRUE,ROUND(VLOOKUP(C38,Defaults!$T$21:$AC$29,3,FALSE),2),\"\"))","v":""},{"$f":"IFERROR(IF(LEFT($C$33,6)=\"Custom\",L38,L38*(1-VLOOKUP($C$33,Implements!$A$159:$D$166,4,FALSE))),\"\")","v":0},null,null,null,null,null,{"$f":"N38","v":0},null,{"$f":"N38","v":0},null,null,null,null,null,{"$f":"W38","v":""},null,{"$f":"W38","v":""},null,"",{"$f":"IF($C38=\"\",\"\",VLOOKUP(C38,Defaults!$T$21:$AE$29,4,FALSE))","v":""},{"$f":"IF($C38=\"\",\"\",VLOOKUP(C38,Defaults!$T$21:$AE$29,4,FALSE))","v":""},{"$f":"IF($C38=\"\",\"\",VLOOKUP(C38,Defaults!$T$21:$AE$29,4,FALSE))","v":""},{"$f":"IF($C38=\"\",\"\",VLOOKUP(C38,Defaults!$T$21:$AE$29,4,FALSE))","v":""},{"$f":"IF($C38=\"\",\"\",VLOOKUP(C38,Defaults!$T$21:$AE$29,4,FALSE))","v":""},{"$f":"IF($C38=\"\",\"\",VLOOKUP(C38,Defaults!$T$21:$AE$29,4,FALSE))","v":""},null,null,null,{"$f":"IF($C38=\"\",\"\",$C38)","v":""},{"$f":"IF($C38=\"\",\"\",IFERROR(VLOOKUP(C38,Defaults!$T$21:$AE$29,5,FALSE),\"\"))","v":""},{"$f":"IF($C38=\"\",\"\",IFERROR(VLOOKUP(C38,Defaults!$T$21:$AE$29,6,FALSE),\"\"))","v":""},{"$f":"IF($C38=\"\",\"\",IFERROR(VLOOKUP(C38,Defaults!$T$21:$AE$29,7,FALSE),\"\"))","v":""},{"$f":"IF($C38=\"\",\"\",IFERROR(VLOOKUP(C38,Defaults!$T$21:$AE$29,8,FALSE),\"\"))","v":""},{"$f":"IF($C38=\"\",\"\",IFERROR(VLOOKUP(C38,Defaults!$T$21:$AE$29,9,FALSE),\"\"))","v":""},{"$f":"IF($C38=\"\",\"\",IFERROR(VLOOKUP(C38,Defaults!$T$21:$AE$29,10,FALSE),\"\"))","v":""}]
[null,null,"Over-the-Top Sprayer 1",null,null,{"$f":"IF($L39=0,0,IF(C39=Defaults!$I$27,Implements!$AK$185,IF($C39=Defaults!$I$28,Implements!$AK$186,IF($C39=Defaults!$I$37,Implements!$AK$187,IF($C39=Defaults!$I$51,Implements!$AK$188,0)))))","v":61.454545454545453},{"$f":"IF($L39=0,0,IFERROR(VLOOKUP($C39,Implements!$X$181:$AN$188,15,FALSE),0))","v":8.36},{"$f":"IF($L39=0,0,IFERROR(VLOOKUP($C39,Implements!$X$181:$AN$188,16,FALSE),0))","v":45.046666666666667},{"$f":"IF($L39=0,0,IFERROR(VLOOKUP($C39,Implements!$X$181:$AN$188,17,FALSE),0))","v":137.64582520078542},{"$f":"IF(OR(C39=\"\",L39=\"\",L39=0)=TRUE,\"\",IF(OR(C39=Defaults!$I$25,C39=Defaults!$I$26)=TRUE,VLOOKUP(C39,Defaults!$I$24:$K$28,3,FALSE),IF(C39=Defaults!$I$54,VLOOKUP(C39,Defaults!$I$53:$K$56,3,FALSE),IF(C39=Defaults!$I$45,VLOOKUP(C39,Defaults!$I$44:$K$47,3,FALSE),IF(C39=Defaults!$I$50,VLOOKUP(C39,Defaults!$I$49:$K$51,3,FALSE),ROUND(1/F39*(1*Inputs!$AA$13+($AI$7-1)*Inputs!$AA$15),2)+ROUND(G39*Inputs!$V$13/F39,2)+ROUND(H39/F39,2)+ROUND(I39/F39,2))))))","v":3.5},{"$f":"IF(OR(C39=\"\",L39=\"\",L39=0)=TRUE,\"\",IF(OR(C39=Defaults!$I$25,C39=Defaults!$I$26)=TRUE,VLOOKUP(C39,Defaults!$I$24:$K$28,3,FALSE),IF(C39=Defaults!$I$54,VLOOKUP(C39,Defaults!$I$53:$K$56,3,FALSE),IF(C39=Defaults!$I$45,VLOOKUP(C39,Defaults!$I$44:$K$47,3,FALSE),IF(C39=Defaults!$I$50,VLOOKUP(C39,Defaults!$I$49:$K$51,3,FALSE),ROUND(1/F39*(1*Inputs!$AA$13+($AI$7-1)*Inputs!$AA$15),2)+ROUND(G39*Inputs!$V$13/F39,2)+ROUND(H39/F39,2)+ROUND(I39/F39,2))))))","v":3.5},2,2,7,null,null,{"$f":"IF($V39=0,0,IF(C39=Defaults!$I$27,Implements!$AK$174,IF($C39=Defaults!$I$28,Implements!$AK$175,IF($C39=Defaults!$I$37,Implements!$AK$176,IF($C39=Defaults!$I$51,Implements!$AK$177,0)))))","v":62.812690909090918},{"$f":"IF($V39=0,0,IFERROR(VLOOKUP($C39,Implements!$X$170:$AN$177,15,FALSE),0))","v":8.36},{"$f":"IF($V39=0,0,IFERROR(VLOOKUP($C39,Implements!$X$170:$AN$177,16,FALSE),0))","v":45.046666666666667},{"$f":"IF($V39=0,0,IFERROR(VLOOKUP($C39,Implements!$X$170:$AN$177,17,FALSE),0))","v":138.7259236950801},{"$f":"IF(OR(C39=\"\",V39=\"\",V39=0)=TRUE,\"\",IF(LEFT(C39,6)=\"Custom\",J39,ROUND(1/Q39*(1*Inputs!$AA$13+($AI$7-1)*Inputs!$AA$15),2)+ROUND(R39*Inputs!$V$13/Q39,2)+ROUND(S39/Q39,2)+ROUND(T39/Q39,2)))","v":3.44},{"$f":"+L39","v":2},6.88,-0.12000000000000011,null,{"$f":"IF($Z$2=Defaults!$M$5,Cotton!B39,IF($Z$2=Defaults!$M$6,Corn!B39,IF($Z$2=Defaults!$M$7,Sorghum!B39,IF($Z$2=Defaults!$M$8,Soybean!B39,IF($Z$2=Defaults!$M$9,Rice!B39,IF($Z$2=Defaults!$M$10,Peanut!B39,IF($Z$2=Defaults!$M$11,Wheat!B39,IF($Z$2=Defaults!$M$12,Pasture!B39,\"\"))))))))","v":"Over-the-Top Sprayer 1"},null,{"$f":"IF(C39=\"\",\"\",IF($Z$2=Defaults!$M$5,VLOOKUP(C39,Defaults!$I$53:$J$56,2,FALSE),IF($Z$2=Defaults!$M$10,VLOOKUP(C39,Defaults!$I$44:$K$47,2,FALSE),IF($Z$2=Defaults!$M$12,VLOOKUP(C39,Defaults!$I$49:$K$51,2,FALSE),\"\"))))","v":2},0,{"$f":"IF(AB39=\"\",\"\",AB39*2)","v":4},null,null,{"$f":"+AB39","v":2},{"$f":"N39","v":7},{"$f":"ROUND(IFERROR(1/F39*(1*Inputs!$AA$13+($AI$7-1)*Inputs!$AA$15),0),2)*L39","v":0.57999999999999996},{"$f":"ROUND(IFERROR(1/F39*G39*Inputs!$V$13,0),2)*L39","v":0.48},{"$f":"ROUND(IFERROR(1/F39*H39,0),2)*L39","v":1.46},{"$f":"ROUND(IFERROR(1/F39*I39,0),2)*L39","v":4.4800000000000004},null,null,null,{"$f":"W39","v":6.88},{"$f":"ROUND(IFERROR(1/Q39*(1*Inputs!$AA$13+($AI$7-1)*Inputs!$AA$15),0),2)*V39","v":0.56000000000000005},{"$f":"ROUND(IFERROR(1/Q39*R39*Inputs!$V$13,0),2)*V39","v":0.46},{"$f":"ROUND(IFERROR(1/Q39*S39,0),2)*V39","v":1.44},{"$f":"ROUND(IFERROR(1/Q39*T39,0),2)*V39","v":4.42},null,null,null,null,"Other: Defoliant, Fertilizer, Innoculant or Litter"]
[null,null,"Dropp",null,"oz",null,null,null,null,1.6,{"$f":"IF(C40=\"\",\"\",ROUND(IF(E40=AE40,AF40,IF(AE40=$AC$2,AF40*VLOOKUP(E40,$AA$2:$AB$4,2,FALSE),IF(AE40=$AF$2,AF40*VLOOKUP(E40,$AD$2:$AE$3,2,FALSE),IF(AE40=$AI$2,AF40/VLOOKUP(E40,$AG$2:$AH$2,2,FALSE),IF(AE40=$AL$2,AF40*VLOOKUP(E40,$AJ$2:$AK$2,2,FALSE),IF(AE40=$AO$2,AF40/VLOOKUP(E40,$AM$2:$AN$2,2,FALSE),IF(AE40=$AR$2,AF40*VLOOKUP(E40,$AP$2:$AQ$3,2,FALSE)))))))),2))","v":1.6},2,2,3.2,null,null,{"$f":"IF(L40>0,ABS(V40-L40),\"\")","v":0.44159999999999999},null,null,null,{"$f":"J40","v":1.6},{"$f":"IF(AG40=0,0,AG40)","v":1.5584},2.4934400000000001,-0.70656000000000008,null,{"$f":"IF($Z$2=Defaults!$M$5,Cotton!B40,IF($Z$2=Defaults!$M$6,Corn!B40,IF($Z$2=Defaults!$M$7,Sorghum!B40,IF($Z$2=Defaults!$M$8,Soybean!B40,IF($Z$2=Defaults!$M$9,Rice!B40,IF($Z$2=Defaults!$M$10,Peanut!B40,IF($Z$2=Defaults!$M$11,Wheat!B40,IF($Z$2=Defaults!$M$12,Pasture!B40,\"\"))))))))","v":"Dropp"},{"$f":"IF(C40=\"\",\"\",HLOOKUP($Z$2,$AZ$31:$BG$43,10,FALSE))","v":"oz"},{"$f":"IF(C40=\"\",\"\",HLOOKUP($Z$2,$BJ$31:$BQ$43,10,FALSE))","v":2},0,null,{"$f":"IF(C40=\"\",\"\",IF($Z$2=Defaults!$M$5,VLOOKUP(C40,Defaults!$T$38:$AE$41,2,FALSE),IF(OR($Z$2=Defaults!$M$7,$Z$2=Defaults!$M$11)=TRUE,VLOOKUP(C40,Defaults!$T$3:$AE$13,2,FALSE),IF($Z$2=Defaults!$M$10,VLOOKUP(C40,Defaults!$T$33:$AE$34,2,FALSE),IF($Z$2=Defaults!$M$12,VLOOKUP(C40,Defaults!$T$3:$U$13,2,FALSE),\"\")))))","v":"oz"},{"$f":"IF(C40=\"\",\"\",IF($Z$2=Defaults!$M$5,ROUND(VLOOKUP(C40,Defaults!$T$38:$AE$41,3,FALSE),2),IF(OR($Z$2=Defaults!$M$7,$Z$2=Defaults!$M$11)=TRUE,ROUND(VLOOKUP(C40,Defaults!$T$3:$AE$13,3,FALSE),2),IF($Z$2=Defaults!$M$10,ROUND(VLOOKUP(C40,Defaults!$T$33:$AE$34,3,FALSE),2),IF($Z$2=Defaults!$M$12,ROUND(VLOOKUP(C40,Defaults!$T$17:$AE$18,3,FALSE),2),\"\")))))","v":1.6},{"$f":"IFERROR(IF(LEFT($C$39,6)=\"Custom\",L40,L40*(1-VLOOKUP($C$39,Implements!$A$159:$D$166,4,FALSE))),\"\")","v":1.5584},null,null,null,null,null,{"$f":"N40","v":3.2},null,{"$f":"N40","v":3.2},null,null,null,null,null,{"$f":"W40","v":2.4934400000000001},null,{"$f":"W40","v":2.4934400000000001},null,"Dropp",{"$f":"IF($C40=\"\",\"\",VLOOKUP(C40,Defaults!$T$38:$X$41,4,FALSE))","v":"oz"},null,{"$f":"IF($C40=\"\",\"\",VLOOKUP(C40,Defaults!$T$3:$X$13,4,FALSE))","v":{"$error":"#N/A"}},null,null,{"$f":"IF($C40=\"\",\"\",VLOOKUP(C40,Defaults!$T$33:$X$34,4,FALSE))","v":{"$error":"#N/A"}},{"$f":"IF($C40=\"\",\"\",VLOOKUP(C40,Defaults!$T$3:$X$13,4,FALSE))","v":{"$error":"#N/A"}},{"$f":"IF($C40=\"\",\"\",VLOOKUP(C40,Defaults!$T$17:$AE$18,4,FALSE))","v":{"$error":"#N/A"}},null,{"$f":"IF($C40=\"\",\"\",$C40)","v":"Dropp"},{"$f":"IF($C40=\"\",\"\",IFERROR(VLOOKUP(C40,Defaults!$T$38:$AE$41,5,FALSE),\"\"))","v":2},null,{"$f":"IF($C40=\"\",\"\",IFERROR(VLOOKUP(C40,Defaults!$T$3:$AE$13,7,FALSE),\"\"))","v":""},null,null,{"$f":"IF($C40=\"\",\"\",IFERROR(VLOOKUP(C40,Defaults!$T$33:$AE$34,10,FALSE),\"\"))","v":""},{"$f":"IF($C40=\"\",\"\",IFERROR(VLOOKUP(C40,Defaults!$T$3:$AE$13,11,FALSE),\"\"))","v":""},{"$f":"IF($C40=\"\",\"\",IFERROR(VLOOKUP(C40,Defaults!$T$17:$AE$18,12,FALSE),\"\"))","v":""}]
[null,null,"Folex",null,"oz",null,null,null,null,0.57999999999999996,{"$f":"IF(C41=\"\",\"\",ROUND(IF(E41=AE41,AF41,IF(AE41=$AC$2,AF41*VLOOKUP(E41,$AA$2:$AB$4,2,FALSE),IF(AE41=$AF$2,AF41*VLOOKUP(E41,$AD$2:$AE$3,2,FALSE),IF(AE41=$AI$2,AF41/VLOOKUP(E41,$AG$2:$AH$2,2,FALSE),IF(AE41=$AL$2,AF41*VLOOKUP(E41,$AJ$2:$AK$2,2,FALSE),IF(AE41=$AO$2,AF41/VLOOKUP(E41,$AM$2:$AN$2,2,FALSE),IF(AE41=$AR$2,AF41*VLOOKUP(E41,$AP$2:$AQ$3,2,FALSE)))))))),2))","v":0.57999999999999996},14,14,8.1199999999999992,null,null,{"$f":"IF(L41>0,ABS(V41-L41),\"\")","v":3.0912000000000006},null,null,null,{"$f":"J41","v":0.57999999999999996},{"$f":"IF(AG41=0,0,AG41)","v":10.908799999999999},6.3271039999999994,-1.7928959999999998,null,{"$f":"IF($Z$2=Defaults!$M$5,Cotton!B41,IF($Z$2=Defaults!$M$6,Corn!B41,IF($Z$2=Defaults!$M$7,Sorghum!B41,IF($Z$2=Defaults!$M$8,Soybean!B41,IF($Z$2=Defaults!$M$9,Rice!B41,IF($Z$2=Defaults!$M$10,Peanut!B41,IF($Z$2=Defaults!$M$11,Wheat!B41,IF($Z$2=Defaults!$M$12,Pasture!B41,\"\"))))))))","v":"Folex"},{"$f":"IF(C41=\"\",\"\",HLOOKUP($Z$2,$AZ$31:$BG$43,11,FALSE))","v":"oz"},{"$f":"IF(C41=\"\",\"\",HLOOKUP($Z$2,$BJ$31:$BQ$43,11,FALSE))","v":14},0,null,{"$f":"IF(C41=\"\",\"\",IF($Z$2=Defaults!$M$5,VLOOKUP(C41,Defaults!$T$38:$AE$41,2,FALSE),IF(OR($Z$2=Defaults!$M$7,$Z$2=Defaults!$M$11)=TRUE,VLOOKUP(C41,Defaults!$T$3:$AE$13,2,FALSE),IF($Z$2=Defaults!$M$10,VLOOKUP(C41,Defaults!$T$33:$AE$34,2,FALSE),IF($Z$2=Defaults!$M$12,VLOOKUP(C41,Defaults!$T$3:$U$13,2,FALSE),\"\")))))","v":"oz"},{"$f":"IF(C41=\"\",\"\",IF($Z$2=Defaults!$M$5,ROUND(VLOOKUP(C41,Defaults!$T$38:$AE$41,3,FALSE),2),IF(OR($Z$2=Defaults!$M$7,$Z$2=Defaults!$M$11)=TRUE,ROUND(VLOOKUP(C41,Defaults!$T$3:$AE$13,3,FALSE),2),IF($Z$2=Defaults!$M$10,ROUND(VLOOKUP(C41,Defaults!$T$33:$AE$34,3,FALSE),2),IF($Z$2=Defaults!$M$12,ROUND(VLOOKUP(C41,Defaults!$T$17:$AE$18,3,FALSE),2),\"\")))))","v":0.57999999999999996},{"$f":"IFERROR(IF(LEFT($C$39,6)=\"Custom\",L41,L41*(1-VLOOKUP($C$39,Implements!$A$159:$D$166,4,FALSE))),\"\")","v":10.908799999999999},null,null,null,null,null,{"$f":"N41","v":8.1199999999999992},null,{"$f":"N41","v":8.1199999999999992},null,null,null,null,null,{"$f":"W41","v":6.3271039999999994},null,{"$f":"W41","v":6.3271039999999994},null,"Folex",{"$f":"IF($C41=\"\",\"\",VLOOKUP(C41,Defaults!$T$38:$X$41,4,FALSE))","v":"oz"},null,{"$f":"IF($C41=\"\",\"\",VLOOKUP(C41,Defaults!$T$3:$X$13,4,FALSE))","v":{"$error":"#N/A"}},null,null,{"$f":"IF($C41=\"\",\"\",VLOOKUP(C41,Defaults!$T$33:$X$34,4,FALSE))","v":{"$error":"#N/A"}},{"$f":"IF($C41=\"\",\"\",VLOOKUP(C41,Defaults!$T$3:$X$13,4,FALSE))","v":{"$error":"#N/A"}},null,null,"Folex",{"$f":"IF($C41=\"\",\"\",IFERROR(VLOOKUP(C41,Defaults!$T$38:$AE$41,5,FALSE),\"\"))","v":14},null,{"$f":"IF($C41=\"\",\"\",IFERROR(VLOOKUP(C41,Defaults!$T$3:$AE$13,7,FALSE),\"\"))","v":""},null,null,{"$f":"IF($C41=\"\",\"\",IFERROR(VLOOKUP(C41,Defaults!$T$33:$AE$34,10,FALSE),\"\"))","v":""},{"$f":"IF($C41=\"\",\"\",IFERROR(VLOOKUP(C41,Defaults!$T$3:$AE$13,11,FALSE),\"\"))","v":""},{"$f":"IF($C41=\"\",\"\",IFERROR(VLOOKUP(C41,Defaults!$T$17:$AE$18,12,FALSE),\"\"))","v":""}]
[null,null,"Prep",null,"oz",null,null,null,null,0.21,{"$f":"IF(C42=\"\",\"\",ROUND(IF(E42=AE42,AF42,IF(AE42=$AC$2,AF42*VLOOKUP(E42,$AA$2:$AB$4,2,FALSE),IF(AE42=$AF$2,AF42*VLOOKUP(E42,$AD$2:$AE$3,2,FALSE),IF(AE42=$AI$2,AF42/VLOOKUP(E42,$AG$2:$AH$2,2,FALSE),IF(AE42=$AL$2,AF42*VLOOKUP(E42,$AJ$2:$AK$2,2,FALSE),IF(AE42=$AO$2,AF42/VLOOKUP(E42,$AM$2:$AN$2,2,FALSE),IF(AE42=$AR$2,AF42*VLOOKUP(E42,$AP$2:$AQ$3,2,FALSE)))))))),2))","v":0.21},38,38,7.9799999999999995,null,null,{"$f":"IF(L42>0,ABS(V42-L42),\"\")","v":8.3903999999999996},null,null,null,{"$f":"J42","v":0.21},{"$f":"IF(AG42=0,0,AG42)","v":29.6096},6.2180159999999995,-1.761984,null,{"$f":"IF($Z$2=Defaults!$M$5,Cotton!B42,IF($Z$2=Defaults!$M$6,Corn!B42,IF($Z$2=Defaults!$M$7,Sorghum!B42,IF($Z$2=Defaults!$M$8,Soybean!B42,IF($Z$2=Defaults!$M$9,Rice!B42,IF($Z$2=Defaults!$M$10,Peanut!B42,IF($Z$2=Defaults!$M$11,Wheat!B42,IF($Z$2=Defaults!$M$12,Pasture!B42,\"\"))))))))","v":"Prep"},{"$f":"IF(C42=\"\",\"\",HLOOKUP($Z$2,$AZ$31:$BG$43,12,FALSE))","v":"oz"},{"$f":"IF(C42=\"\",\"\",HLOOKUP($Z$2,$BJ$31:$BQ$43,12,FALSE))","v":38},0,null,{"$f":"IF(C42=\"\",\"\",IF($Z$2=Defaults!$M$5,VLOOKUP(C42,Defaults!$T$38:$AE$41,2,FALSE),IF(OR($Z$2=Defaults!$M$7,$Z$2=Defaults!$M$11)=TRUE,VLOOKUP(C42,Defaults!$T$3:$AE$13,2,FALSE),IF($Z$2=Defaults!$M$10,VLOOKUP(C42,Defaults!$T$33:$AE$34,2,FALSE),IF($Z$2=Defaults!$M$12,VLOOKUP(C42,Defaults!$T$3:$U$13,2,FALSE),\"\")))))","v":"oz"},{"$f":"IF(C42=\"\",\"\",IF($Z$2=Defaults!$M$5,ROUND(VLOOKUP(C42,Defaults!$T$38:$AE$41,3,FALSE),2),IF(OR($Z$2=Defaults!$M$7,$Z$2=Defaults!$M$11)=TRUE,ROUND(VLOOKUP(C42,Defaults!$T$3:$AE$13,3,FALSE),2),IF($Z$2=Defaults!$M$10,ROUND(VLOOKUP(C42,Defaults!$T$33:$AE$34,3,FALSE),2),IF($Z$2=Defaults!$M$12,ROUND(VLOOKUP(C42,Defaults!$T$17:$AE$18,3,FALSE),2),\"\")))))","v":0.21},{"$f":"IFERROR(IF(LEFT($C$39,6)=\"Custom\",L42,L42*(1-VLOOKUP($C$39,Implements!$A$159:$D$166,4,FALSE))),\"\")","v":29.6096},null,null,null,null,null,{"$f":"N42","v":7.9799999999999995},null,{"$f":"N42","v":7.9799999999999995},null,null,null,null,null,{"$f":"W42","v":6.2180159999999995},null,{"$f":"W42","v":6.2180159999999995},null,"Prep",{"$f":"IF($C42=\"\",\"\",VLOOKUP(C42,Defaults!$T$38:$X$41,4,FALSE))","v":"oz"},null,{"$f":"IF($C42=\"\",\"\",VLOOKUP(C42,Defaults!$T$3:$X$13,4,FALSE))","v":{"$error":"#N/A"}},null,null,{"$f":"IF($C42=\"\",\"\",VLOOKUP(C42,Defaults!$T$33:$X$34,4,FALSE))","v":{"$error":"#N/A"}},{"$f":"IF($C42=\"\",\"\",VLOOKUP(C42,Defaults!$T$3:$X$13,4,FALSE))","v":{"$error":"#N/A"}},null,null,"Prep",{"$f":"IF($C42=\"\",\"\",IFERROR(VLOOKUP(C42,Defaults!$T$38:$AE$41,5,FALSE),\"\"))","v":38},null,{"$f":"IF($C42=\"\",\"\",IFERROR(VLOOKUP(C42,Defaults!$T$3:$AE$13,7,FALSE),\"\"))","v":""},null,null,{"$f":"IF($C42=\"\",\"\",IFERROR(VLOOKUP(C42,Defaults!$T$33:$AE$34,10,FALSE),\"\"))","v":""},{"$f":"IF($C42=\"\",\"\",IFERROR(VLOOKUP(C42,Defaults!$T$3:$AE$13,11,FALSE),\"\"))","v":""},{"$f":"IF($C42=\"\",\"\",IFERROR(VLOOKUP(C42,Defaults!$T$17:$AE$18,12,FALSE),\"\"))","v":""}]
[null,null,null,null,null,null,null,null,null,null,{"$f":"IF(C43=\"\",\"\",ROUND(IF(E43=AE43,AF43,IF(AE43=$AC$2,AF43*VLOOKUP(E43,$AA$2:$AB$4,2,FALSE),IF(AE43=$AF$2,AF43*VLOOKUP(E43,$AD$2:$AE$3,2,FALSE),IF(AE43=$AI$2,AF43/VLOOKUP(E43,$AG$2:$AH$2,2,FALSE),IF(AE43=$AL$2,AF43*VLOOKUP(E43,$AJ$2:$AK$2,2,FALSE),IF(AE43=$AO$2,AF43/VLOOKUP(E43,$AM$2:$AN$2,2,FALSE),IF(AE43=$AR$2,AF43*VLOOKUP(E43,$AP$2:$AQ$3,2,FALSE)))))))),2))","v":""},null,"",0,null,null,{"$f":"IF(L43>0,ABS(V43-L43),\"\")","v":""},null,null,null,{"$f":"J43","v":0},{"$f":"IF(AG43=0,0,AG43)","v":0},"","",null,{"$f":"IF($Z$2=Defaults!$M$5,Cotton!B43,IF($Z$2=Defaults!$M$6,Corn!B43,IF($Z$2=Defaults!$M$7,Sorghum!B43,IF($Z$2=Defaults!$M$8,Soybean!B43,IF($Z$2=Defaults!$M$9,Rice!B43,IF($Z$2=Defaults!$M$10,Peanut!B43,IF($Z$2=Defaults!$M$11,Wheat!B43,IF($Z$2=Defaults!$M$12,Pasture!B43,\"\"))))))))","v":""},{"$f":"IF(C43=\"\",\"\",HLOOKUP($Z$2,$AZ$31:$BG$43,13,FALSE))","v":""},{"$f":"IF(C43=\"\",\"\",HLOOKUP($Z$2,$BJ$31:$BQ$43,13,FALSE))","v":""},1,null,{"$f":"IF(C43=\"\",\"\",IF($Z$2=Defaults!$M$5,VLOOKUP(C43,Defaults!$T$38:$AE$41,2,FALSE),IF(OR($Z$2=Defaults!$M$7,$Z$2=Defaults!$M$11)=TRUE,VLOOKUP(C43,Defaults!$T$3:$AE$13,2,FALSE),IF($Z$2=Defaults!$M$10,VLOOKUP(C43,Defaults!$T$33:$AE$34,2,FALSE),IF($Z$2=Defaults!$M$12,VLOOKUP(C43,Defaults!$T$3:$U$13,2,FALSE),\"\")))))","v":""},{"$f":"IF(C43=\"\",\"\",IF($Z$2=Defaults!$M$5,ROUND(VLOOKUP(C43,Defaults!$T$38:$AE$41,3,FALSE),2),IF(OR($Z$2=Defaults!$M$7,$Z$2=Defaults!$M$11)=TRUE,ROUND(VLOOKUP(C43,Defaults!$T$3:$AE$13,3,FALSE),2),IF($Z$2=Defaults!$M$10,ROUND(VLOOKUP(C43,Defaults!$T$33:$AE$34,3,FALSE),2),IF($Z$2=Defaults!$M$12,ROUND(VLOOKUP(C43,Defaults!$T$17:$AE$18,3,FALSE),2),\"\")))))","v":""},{"$f":"IFERROR(IF(LEFT($C$39,6)=\"Custom\",L43,L43*(1-VLOOKUP($C$39,Implements!$A$159:$D$166,4,FALSE))),\"\")","v":0},null,null,null,null,null,{"$f":"N43","v":0},null,{"$f":"N43","v":0},null,null,null,null,null,{"$f":"W43","v":""},null,{"$f":"W43","v":""},null,"",{"$f":"IF($C43=\"\",\"\",VLOOKUP(C43,Defaults!$T$38:$X$41,4,FALSE))","v":""},null,{"$f":"IF($C43=\"\",\"\",VLOOKUP(C43,Defaults!$T$3:$X$13,4,FALSE))","v":""},null,null,{"$f":"IF($C43=\"\",\"\",VLOOKUP(C43,Defaults!$T$33:$X$34,4,FALSE))","v":""},{"$f":"IF($C43=\"\",\"\",VLOOKUP(C43,Defaults!$T$3:$X$13,4,FALSE))","v":""},null,null,"",{"$f":"IF($C43=\"\",\"\",IFERROR(VLOOKUP(C43,Defaults!$T$38:$AE$41,5,FALSE),\"\"))","v":""},null,{"$f":"IF($C43=\"\",\"\",IFERROR(VLOOKUP(C43,Defaults!$T$3:$AE$13,7,FALSE),\"\"))","v":""},null,null,{"$f":"IF($C43=\"\",\"\",IFERROR(VLOOKUP(C43,Defaults!$T$33:$AE$34,10,FALSE),\"\"))","v":""},{"$f":"IF($C43=\"\",\"\",IFERROR(VLOOKUP(C43,Defaults!$T$3:$AE$13,11,FALSE),\"\"))","v":""},{"$f":"IF($C43=\"\",\"\",IFERROR(VLOOKUP(C43,Defaults!$T$17:$AE$18,12,FALSE),\"\"))","v":""}]
[null,null,"Over-the-Top Sprayer 1",null,null,{"$f":"IF($L44=0,0,IF($C44=Defaults!$I$27,Implements!$AK$185,IF($C44=Defaults!$I$28,Implements!$AK$186,0)))","v":61.454545454545453},{"$f":"IF($L44=0,0,IFERROR(VLOOKUP($C44,Implements!$X$181:$AN$188,15,FALSE),0))","v":8.36},{"$f":"IF($L44=0,0,IFERROR(VLOOKUP($C44,Implements!$X$181:$AN$188,16,FALSE),0))","v":45.046666666666667},{"$f":"IF($L44=0,0,IFERROR(VLOOKUP($C44,Implements!$X$181:$AN$188,17,FALSE),0))","v":137.64582520078542},{"$f":"IF(OR(C44=\"\",L44=\"\",L44=0)=TRUE,\"\",IF(OR(C44=Defaults!$I$25,C44=Defaults!$I$26)=TRUE,VLOOKUP(C44,Defaults!$I$24:$K$27,3,FALSE),IF(C44=Defaults!$I$59,VLOOKUP(C44,Defaults!$I$58:$K$61,3,FALSE),IF(C44=Defaults!$I$64,VLOOKUP(C44,Defaults!$I$63:$K$66,3,FALSE),ROUND(1/F44*(1*Inputs!$AA$13+($AI$7-1)*Inputs!$AA$15),2)+ROUND(G44*Inputs!$V$13/F44,2)+ROUND(H44/F44,2)+ROUND(I44/F44,2)))))","v":3.5},{"$f":"IF(OR(C44=\"\",L44=\"\",L44=0)=TRUE,\"\",IF(OR(C44=Defaults!$I$25,C44=Defaults!$I$26)=TRUE,VLOOKUP(C44,Defaults!$I$24:$K$27,3,FALSE),IF(C44=Defaults!$I$59,VLOOKUP(C44,Defaults!$I$58:$K$61,3,FALSE),IF(C44=Defaults!$I$64,VLOOKUP(C44,Defaults!$I$63:$K$66,3,FALSE),ROUND(1/F44*(1*Inputs!$AA$13+($AI$7-1)*Inputs!$AA$15),2)+ROUND(G44*Inputs!$V$13/F44,2)+ROUND(H44/F44,2)+ROUND(I44/F44,2)))))","v":3.5},4,4,{"$f":"IF(C44=\"\",0,IF(L44=0,0,IF(L44=\"\",\"\",J44*L44)))","v":14},null,null,{"$f":"IF($V44=0,0,IF($C44=Defaults!$I$27,Implements!$AK$174,IF($C44=Defaults!$I$28,Implements!$AK$175,0)))","v":62.812690909090918},{"$f":"IF($V44=0,0,IFERROR(VLOOKUP($C44,Implements!$X$170:$AN$177,15,FALSE),0))","v":8.36},{"$f":"IF($V44=0,0,IFERROR(VLOOKUP($C44,Implements!$X$170:$AN$177,16,FALSE),0))","v":45.046666666666667},{"$f":"IF($V44=0,0,IFERROR(VLOOKUP($C44,Implements!$X$170:$AN$177,17,FALSE),0))","v":138.7259236950801},{"$f":"IF(OR(C44=\"\",V44=\"\",V44=0)=TRUE,\"\",IF(LEFT(C44,6)=\"Custom\",J44,ROUND(1/Q44*(1*Inputs!$AA$13+($AI$7-1)*Inputs!$AA$15),2)+ROUND(R44*Inputs!$V$13/Q44,2)+ROUND(S44/Q44,2)+ROUND(T44/Q44,2)))","v":3.44},{"$f":"+L44","v":4},{"$f":"IF(C44=\"\",\"\",IF(V44=0,0,IF(V44=\"\",\"\",U44*V44)))","v":13.76},-0.24000000000000021,null,{"$f":"IF($Z$2=Defaults!$M$5,Cotton!B44,IF($Z$2=Defaults!$M$6,Corn!B44,IF($Z$2=Defaults!$M$7,Sorghum!B44,IF($Z$2=Defaults!$M$8,Soybean!B44,IF($Z$2=Defaults!$M$9,Rice!B44,IF($Z$2=Defaults!$M$10,Peanut!B44,IF($Z$2=Defaults!$M$11,Wheat!B44,IF($Z$2=Defaults!$M$12,Pasture!B44,\"\"))))))))","v":"Over-the-Top Sprayer 1"},null,{"$f":"IF(C44=\"\",\"\",IF($Z$2=Defaults!$M$5,VLOOKUP(C44,Defaults!$I$58:$K$61,2,FALSE),IF($Z$2=Defaults!$M$8,VLOOKUP(C44,Defaults!$I$63:$K$66,2,FALSE),\"\")))","v":4},0,{"$f":"IF(AB44=\"\",\"\",AB44*2)","v":8},null,null,{"$f":"+AB44","v":4},{"$f":"N44","v":14},{"$f":"ROUND(IFERROR(1/F44*(1*Inputs!$AA$13+($AI$7-1)*Inputs!$AA$15),0),2)*L44","v":1.1599999999999999},{"$f":"ROUND(IFERROR(1/F44*G44*Inputs!$V$13,0),2)*L44","v":0.96},{"$f":"ROUND(IFERROR(1/F44*H44,0),2)*L44","v":2.92},{"$f":"ROUND(IFERROR(1/F44*I44,0),2)*L44","v":8.9600000000000009},null,null,null,{"$f":"W44","v":13.76},{"$f":"ROUND(IFERROR(1/Q44*(1*Inputs!$AA$13+($AI$7-1)*Inputs!$AA$15),0),2)*V44","v":1.1200000000000001},{"$f":"ROUND(IFERROR(1/Q44*R44*Inputs!$V$13,0),2)*V44","v":0.92},{"$f":"ROUND(IFERROR(1/Q44*S44,0),2)*V44","v":2.88},{"$f":"ROUND(IFERROR(1/Q44*T44,0),2)*V44","v":8.84},null,null,null,null,"Other: Growth Regulator or Fungicide"]
[null,null,"Mepex",null,"oz",null,null,null,null,0.13,{"$f":"IF(C45=\"\",\"\",ROUND(IF(E45=AE45,AF45,IF(AE45=$AC$2,AF45*VLOOKUP(E45,$AA$2:$AB$4,2,FALSE),IF(AE45=$AF$2,AF45*VLOOKUP(E45,$AD$2:$AE$3,2,FALSE),IF(AE45=$AI$2,AF45/VLOOKUP(E45,$AG$2:$AH$2,2,FALSE),IF(AE45=$AL$2,AF45*VLOOKUP(E45,$AJ$2:$AK$2,2,FALSE),IF(AE45=$AO$2,AF45/VLOOKUP(E45,$AM$2:$AN$2,2,FALSE),IF(AE45=$AR$2,AF45*VLOOKUP(E45,$AP$2:$AQ$3,2,FALSE)))))))),2))","v":0.13},44,44,5.7200000000000006,null,null,{"$f":"IF(L45>0,ABS(V45-L45),\"\")","v":9.7152000000000029},null,null,null,{"$f":"J45","v":0.13},{"$f":"IF(AG45=0,0,AG45)","v":34.284799999999997},4.4570239999999997,-1.262976000000001,null,{"$f":"IF($Z$2=Defaults!$M$5,Cotton!B45,IF($Z$2=Defaults!$M$6,Corn!B45,IF($Z$2=Defaults!$M$7,Sorghum!B45,IF($Z$2=Defaults!$M$8,Soybean!B45,IF($Z$2=Defaults!$M$9,Rice!B45,IF($Z$2=Defaults!$M$10,Peanut!B45,IF($Z$2=Defaults!$M$11,Wheat!B45,IF($Z$2=Defaults!$M$12,Pasture!B45,\"\"))))))))","v":"Mepex"},{"$f":"IF(C45=\"\",\"\",HLOOKUP($Z$2,$AZ$31:$BG$46,15,FALSE))","v":"oz"},{"$f":"IF(C45=\"\",\"\",HLOOKUP($Z$2,$BJ$31:$BQ$46,15,FALSE))","v":44},0,null,{"$f":"IF(C45=\"\",\"\",IF($Z$2=Defaults!$M$5,VLOOKUP(C45,Defaults!$T$45:$AE$46,2,FALSE),IF($Z$2=Defaults!$M$8,VLOOKUP(C45,Defaults!$T$50:$AE$51,2,FALSE),\"\")))","v":"oz"},{"$f":"IF(C45=\"\",\"\",IF($Z$2=Defaults!$M$5,ROUND(VLOOKUP(C45,Defaults!$T$45:$AE$46,3,FALSE),2),IF($Z$2=Defaults!$M$8,ROUND(VLOOKUP(C45,Defaults!$T$50:$AE$51,3,FALSE),2),\"\")))","v":0.13},{"$f":"IFERROR(IF(LEFT($C$44,6)=\"Custom\",L45,L45*(1-VLOOKUP($C$44,Implements!$A$159:$D$166,4,FALSE))),\"\")","v":34.284799999999997},null,null,null,null,null,{"$f":"N45","v":5.7200000000000006},null,{"$f":"N45","v":5.7200000000000006},null,null,null,null,null,{"$f":"W45","v":4.4570239999999997},null,{"$f":"W45","v":4.4570239999999997},null,"Mepex",{"$f":"IF($C45=\"\",\"\",VLOOKUP(C45,Defaults!$T$45:$AE$46,4,FALSE))","v":"oz"},null,null,{"$f":"IF($C45=\"\",\"\",VLOOKUP(C45,Defaults!$T$50:$AE$51,4,FALSE))","v":{"$error":"#N/A"}},null,null,null,null,null,"Mepex",{"$f":"IF($C45=\"\",\"\",IFERROR(VLOOKUP(C45,Defaults!$T$45:$AE$46,5,FALSE),\"\"))","v":44},null,null,{"$f":"IF($C45=\"\",\"\",IFERROR(VLOOKUP(C45,Defaults!$T$50:$AE$51,8,FALSE),\"\"))","v":""}]
[null,null,null,null,null,null,null,null,null,null,{"$f":"IF(C46=\"\",\"\",ROUND(IF(E46=AE46,AF46,IF(AE46=$AC$2,AF46*VLOOKUP(E46,$AA$2:$AB$4,2,FALSE),IF(AE46=$AF$2,AF46*VLOOKUP(E46,$AD$2:$AE$3,2,FALSE),IF(AE46=$AI$2,AF46/VLOOKUP(E46,$AG$2:$AH$2,2,FALSE),IF(AE46=$AL$2,AF46*VLOOKUP(E46,$AJ$2:$AK$2,2,FALSE),IF(AE46=$AO$2,AF46/VLOOKUP(E46,$AM$2:$AN$2,2,FALSE),IF(AE46=$AR$2,AF46*VLOOKUP(E46,$AP$2:$AQ$3,2,FALSE)))))))),2))","v":""},null,"",0,null,null,{"$f":"IF(L46>0,ABS(V46-L46),\"\")","v":""},null,null,null,{"$f":"J46","v":0},{"$f":"IF(AG46=0,0,AG46)","v":0},"","",null,{"$f":"IF($Z$2=Defaults!$M$5,Cotton!B46,IF($Z$2=Defaults!$M$6,Corn!B46,IF($Z$2=Defaults!$M$7,Sorghum!B46,IF($Z$2=Defaults!$M$8,Soybean!B46,IF($Z$2=Defaults!$M$9,Rice!B46,IF($Z$2=Defaults!$M$10,Peanut!B46,IF($Z$2=Defaults!$M$11,Wheat!B46,IF($Z$2=Defaults!$M$12,Pasture!B46,\"\"))))))))","v":""},{"$f":"IF(C46=\"\",\"\",HLOOKUP($Z$2,$AZ$31:$BG$46,16,FALSE))","v":""},{"$f":"IF(C46=\"\",\"\",HLOOKUP($Z$2,$BJ$31:$BQ$46,16,FALSE))","v":""},0,null,{"$f":"IF(C46=\"\",\"\",IF($Z$2=Defaults!$M$5,VLOOKUP(C46,Defaults!$T$45:$AE$46,2,FALSE),IF($Z$2=Defaults!$M$8,VLOOKUP(C46,Defaults!$T$50:$AE$51,2,FALSE),\"\")))","v":""},{"$f":"IF(C46=\"\",\"\",IF($Z$2=Defaults!$M$5,ROUND(VLOOKUP(C46,Defaults!$T$45:$AE$46,3,FALSE),2),IF($Z$2=Defaults!$M$8,ROUND(VLOOKUP(C46,Defaults!$T$50:$AE$51,3,FALSE),2),\"\")))","v":""},{"$f":"IFERROR(IF(LEFT($C$44,6)=\"Custom\",L46,L46*(1-VLOOKUP($C$44,Implements!$A$159:$D$166,4,FALSE))),\"\")","v":0},null,null,null,null,null,{"$f":"N46","v":0},null,{"$f":"N46","v":0},null,null,null,null,null,{"$f":"W46","v":""},null,{"$f":"W46","v":""},null,"",{"$f":"IF($C46=\"\",\"\",VLOOKUP(C46,Defaults!$T$45:$AE$46,4,FALSE))","v":""},null,null,{"$f":"IF($C46=\"\",\"\",VLOOKUP(C46,Defaults!$T$50:$AE$51,4,FALSE))","v":""},null,null,null,null,null,"",{"$f":"IF($C46=\"\",\"\",IFERROR(VLOOKUP(C46,Defaults!$T$45:$AE$46,5,FALSE),\"\"))","v":""},null,null,{"$f":"IF($C46=\"\",\"\",IFERROR(VLOOKUP(C46,Defaults!$T$50:$AE$51,8,FALSE),\"\"))","v":""}]
[null,null,"Preemergence Weed Control",{"$f":"IF($Z$2=Defaults!$M$5,Cotton!D47,IF($Z$2=Defaults!$M$6,Corn!D47,IF($Z$2=Defaults!$M$7,Sorghum!D47,IF($Z$2=Defaults!$M$8,Soybean!D47,IF($Z$2=Defaults!$M$9,Rice!D47,IF($Z$2=Defaults!$M$10,Peanut!D47,IF($Z$2=Defaults!$M$11,Wheat!D47,IF($Z$2=Defaults!$M$12,Pasture!D48,FALSE))))))))","v":"At Planting"},null,null,null,null,null,null,null,null,null,null,null,null,null,null,null,null,null,null,null,null,null,{"$f":"IF($Z$2=Defaults!$M$5,Cotton!B47,IF($Z$2=Defaults!$M$6,Corn!B47,IF($Z$2=Defaults!$M$7,Sorghum!B47,IF($Z$2=Defaults!$M$8,Soybean!B47,IF($Z$2=Defaults!$M$9,Rice!B47,IF($Z$2=Defaults!$M$10,Peanut!B47,IF($Z$2=Defaults!$M$11,Wheat!B47,IF($Z$2=Defaults!$M$12,Pasture!B47,\"\"))))))))","v":"Preemergence Weed Control"},null,null,null,null,null,null,null,null,null,null,null,null,null,null,null,null,null,null,null,null,null,null,null,null,"PRE",null,null,null,null,null,null,null,null,null,"PRE",null,null,null,null,null,null,null,null,null,"PRE"]
[null,null,"Over-the-Top Sprayer 1",null,null,{"$f":"IF(L48=0,0,IF(C48=Defaults!$I$27,Implements!$AK$185,IF(C48=Defaults!$I$28,Implements!$AK$186,0)))","v":61.454545454545453},{"$f":"IF($L48=0,0,IFERROR(VLOOKUP($C48,Implements!$X$181:$AN$188,15,FALSE),0))","v":8.36},{"$f":"IF($L48=0,0,IFERROR(VLOOKUP($C48,Implements!$X$181:$AN$188,16,FALSE),0))","v":45.046666666666667},{"$f":"IF($L48=0,0,IFERROR(VLOOKUP($C48,Implements!$X$181:$AN$188,17,FALSE),0))","v":137.64582520078542},{"$f":"IF(OR(C48=\"\",L48=\"\",L48=0)=TRUE,\"\",IF(OR(C48=Defaults!$I$25,C48=Defaults!$I$26)=TRUE,VLOOKUP(C48,Defaults!$I$24:$K$27,3,FALSE),ROUND(1/F48*(1*Inputs!$AA$13+($AI$7-1)*Inputs!$AA$15),2)+ROUND(G48*Inputs!$V$13/F48,2)+ROUND(H48/F48,2)+ROUND(I48/F48,2)))","v":3.5},{"$f":"IF(OR(C48=\"\",L48=\"\",L48=0)=TRUE,\"\",IF(OR(C48=Defaults!$I$25,C48=Defaults!$I$26)=TRUE,VLOOKUP(C48,Defaults!$I$24:$K$27,3,FALSE),ROUND(1/F48*(1*Inputs!$AA$13+($AI$7-1)*Inputs!$AA$15),2)+ROUND(G48*Inputs!$V$13/F48,2)+ROUND(H48/F48,2)+ROUND(I48/F48,2)))","v":3.5},1,{"$f":"AB48","v":1},{"$f":"IF(C48=\"\",0,IF(L48=0,0,IF(L48=\"\",\"\",J48*L48)))","v":3.5},null,null,{"$f":"IF(V48=0,0,IF(C48=Defaults!$I$27,Implements!$AK$174,IF(C48=Defaults!$I$28,Implements!$AK$175,0)))","v":62.812690909090918},{"$f":"IF($V48=0,0,IFERROR(VLOOKUP($C48,Implements!$X$170:$AN$177,15,FALSE),0))","v":8.36},{"$f":"IF($V48=0,0,IFERROR(VLOOKUP($C48,Implements!$X$170:$AN$177,16,FALSE),0))","v":45.046666666666667},{"$f":"IF($V48=0,0,IFERROR(VLOOKUP($C48,Implements!$X$170:$AN$177,17,FALSE),0))","v":138.7259236950801},{"$f":"IF(OR(C48=\"\",V48=\"\",V48=0)=TRUE,\"\",IF(LEFT(C48,6)=\"Custom\",J48,ROUND(1/Q48*(1*Inputs!$AA$13+($AI$7-1)*Inputs!$AA$15),2)+ROUND(R48*Inputs!$V$13/Q48,2)+ROUND(S48/Q48,2)+ROUND(T48/Q48,2)))","v":3.44},{"$f":"+L48","v":1},{"$f":"IF(C48=\"\",\"\",IF(V48=0,0,IF(V48=\"\",\"\",U48*V48)))","v":3.44},{"$f":"IF(C48=\"\",\"\",W48-N48)","v":-6.0000000000000053E-2},null,{"$f":"IF($Z$2=Defaults!$M$5,Cotton!B48,IF($Z$2=Defaults!$M$6,Corn!B48,IF($Z$2=Defaults!$M$7,Sorghum!B48,IF($Z$2=Defaults!$M$8,Soybean!B48,IF($Z$2=Defaults!$M$9,Rice!B48,IF($Z$2=Defaults!$M$10,Peanut!B48,IF($Z$2=Defaults!$M$11,Wheat!B48,IF($Z$2=Defaults!$M$12,Pasture!B48,\"\"))))))))","v":"Over-the-Top Sprayer 1"},null,{"$f":"IF(C48=\"\",\"\",IF($Z$2=Defaults!$M$12,VLOOKUP(C48,Defaults!$I$35:$J$37,2,FALSE),VLOOKUP(C48,Defaults!$I$24:$J$28,2,FALSE)))","v":1},0,{"$f":"IF(AB48=\"\",\"\",AB48*2)","v":2},null,null,{"$f":"+AB48","v":1},{"$f":"N48","v":3.5},{"$f":"ROUND(IFERROR(1/F48*(1*Inputs!$AA$13+($AI$7-1)*Inputs!$AA$15),0),2)*L48","v":0.28999999999999998},{"$f":"ROUND(IFERROR(1/F48*G48*Inputs!$V$13,0),2)*L48","v":0.24},{"$f":"ROUND(IFERROR(1/F48*H48,0),2)*L48","v":0.73},{"$f":"ROUND(IFERROR(1/F48*I48,0),2)*L48","v":2.2400000000000002},null,null,null,{"$f":"W48","v":3.44},{"$f":"ROUND(IFERROR(1/Q48*(1*Inputs!$AA$13+($AI$7-1)*Inputs!$AA$15),0),2)*V48","v":0.28000000000000003},{"$f":"ROUND(IFERROR(1/Q48*R48*Inputs!$V$13,0),2)*V48","v":0.23},{"$f":"ROUND(IFERROR(1/Q48*S48,0),2)*V48","v":0.72},{"$f":"ROUND(IFERROR(1/Q48*T48,0),2)*V48","v":2.21},null,null,null,null,null,{"$f":"AZ11","v":"Cotton"},"Corn","Sorghum","Soybean","Rice","Peanut","Wheat","Est. Pasture or Hay",null,null,{"$f":"BJ11","v":"Cotton"},"Corn","Sorghum","Soybean","Rice","Peanut","Wheat","Est. Pasture or Hay",null,null,{"$f":"BT11","v":"Cotton"},"Corn","Sorghum","Soybean","Rice","Peanut","Wheat","Est. Pasture or Hay"]
[null,null,"Cotoran",null,"pt",null,null,null,null,5.25,{"$f":"IF(C49=\"\",\"\",ROUND(IF(E49=AE49,AF49,IF(AE49=$AC$2,AF49*VLOOKUP(E49,$AA$2:$AB$4,2,FALSE),IF(AE49=$AF$2,AF49*VLOOKUP(E49,$AD$2:$AE$3,2,FALSE),IF(AE49=$AI$2,AF49/VLOOKUP(E49,$AG$2:$AH$2,2,FALSE),IF(AE49=$AL$2,AF49*VLOOKUP(E49,$AJ$2:$AK$2,2,FALSE),IF(AE49=$AO$2,AF49/VLOOKUP(E49,$AM$2:$AN$2,2,FALSE),IF(AE49=$AR$2,AF49*VLOOKUP(E49,$AP$2:$AQ$3,2,FALSE)))))))),2))","v":5.25},1.6,1.6,8.4,null,null,{"$f":"IF(L49>0,ABS(V49-L49),\"\")","v":0.35328000000000004},null,null,null,{"$f":"J49","v":5.25},{"$f":"IF(AG49=0,0,AG49)","v":1.2467200000000001},6.54528,-1.8547200000000004,null,{"$f":"IF($Z$2=Defaults!$M$5,Cotton!B49,IF($Z$2=Defaults!$M$6,Corn!B49,IF($Z$2=Defaults!$M$7,Sorghum!B49,IF($Z$2=Defaults!$M$8,Soybean!B49,IF($Z$2=Defaults!$M$9,Rice!B49,IF($Z$2=Defaults!$M$10,Peanut!B49,IF($Z$2=Defaults!$M$11,Wheat!B49,IF($Z$2=Defaults!$M$12,Pasture!B49,\"\"))))))))","v":"Cotoran"},{"$f":"IF(C49=\"\",\"\",HLOOKUP($Z$2,$AZ$48:$BG$53,2,FALSE))","v":"pt"},{"$f":"IF(C49=\"\",\"\",HLOOKUP($Z$2,$BJ$48:$BQ$53,2,FALSE))","v":1.6},0,{"$f":"IF(C49=\"\",\"\",HLOOKUP($Z$2,$BT$48:$CA$53,2,FALSE))","v":2},{"$f":"IF(C49=\"\",\"\",VLOOKUP(C49,Defaults!$AH:$AJ,2,FALSE))","v":"gal"},{"$f":"IF(C49=\"\",\"\",ROUND(VLOOKUP(C49,Defaults!$AH:$AJ,3,FALSE),2))","v":42},{"$f":"IFERROR(IF(LEFT($C$48,6)=\"Custom\",L49,L49*(1-VLOOKUP($C$48,Implements!$A$159:$D$166,4,FALSE))),\"\")","v":1.2467200000000001},null,null,null,null,null,{"$f":"N49","v":8.4},null,{"$f":"N49","v":8.4},null,null,null,null,null,{"$f":"W49","v":6.54528},null,{"$f":"W49","v":6.54528},null,{"$f":"IF($C49=\"\",\"\",$C49)","v":"Cotoran"},{"$f":"IF($C49=\"\",\"\",VLOOKUP($C49,Defaults!$AL$37:$AQ$63,4,FALSE))","v":"pt"},{"$f":"IF($C49=\"\",\"\",VLOOKUP($C49,Defaults!$AS$37:$AX$63,4,FALSE))","v":{"$error":"#N/A"}},{"$f":"IF($C49=\"\",\"\",VLOOKUP($C49,Defaults!$AZ$37:$BE$63,4,FALSE))","v":{"$error":"#N/A"}},{"$f":"IF($C49=\"\",\"\",VLOOKUP($C49,Defaults!$BG$37:$BL$63,4,FALSE))","v":{"$error":"#N/A"}},{"$f":"IF($C49=\"\",\"\",VLOOKUP($C49,Defaults!$BN$37:$BS$63,4,FALSE))","v":{"$error":"#N/A"}},{"$f":"IF($C49=\"\",\"\",VLOOKUP($C49,Defaults!$BU$37:$BZ$63,4,FALSE))","v":{"$error":"#N/A"}},{"$f":"IF($C49=\"\",\"\",VLOOKUP($C49,Defaults!$CB$37:$CG$63,4,FALSE))","v":{"$error":"#N/A"}},{"$f":"IF($C49=\"\",\"\",VLOOKUP($C49,Defaults!$CI:$CN,4,FALSE))","v":{"$error":"#N/A"}},null,{"$f":"IF($C49=\"\",\"\",$C49)","v":"Cotoran"},{"$f":"IF($C49=\"\",\"\",IFERROR(VLOOKUP($C49,Defaults!$AL$37:$AQ$63,5,FALSE),\"\"))","v":1.6},{"$f":"IF($C49=\"\",\"\",IFERROR(VLOOKUP($C49,Defaults!$AS$37:$AX$63,5,FALSE),\"\"))","v":""},{"$f":"IF($C49=\"\",\"\",IFERROR(VLOOKUP($C49,Defaults!$AZ$37:$BE$63,5,FALSE),\"\"))","v":""},{"$f":"IF($C49=\"\",\"\",IFERROR(VLOOKUP($C49,Defaults!$BG$37:$BL$63,5,FALSE),\"\"))","v":""},{"$f":"IF($C49=\"\",\"\",IFERROR(VLOOKUP($C49,Defaults!$BN$37:$BS$63,5,FALSE),\"\"))","v":""},{"$f":"IF($C49=\"\",\"\",IFERROR(VLOOKUP($C49,Defaults!$BU$37:$BZ$63,5,FALSE),\"\"))","v":""},{"$f":"IF($C49=\"\",\"\",IFERROR(VLOOKUP($C49,Defaults!$CB$37:$CG$63,5,FALSE),\"\"))","v":""},{"$f":"IF($C49=\"\",\"\",IFERROR(VLOOKUP($C49,Defaults!$CI:$CN,5,FALSE),\"\"))","v":""},null,{"$f":"IF($C49=\"\",\"\",$C49)","v":"Cotoran"},{"$f":"IF($C49=\"\",\"\",IFERROR(VLOOKUP($C49,Defaults!$AL$37:$AQ$63,6,FALSE),\"\"))","v":2},{"$f":"IF($C49=\"\",\"\",IFERROR(VLOOKUP($C49,Defaults!$AS$37:$AX$63,6,FALSE),\"\"))","v":""},{"$f":"IF($C49=\"\",\"\",IFERROR(VLOOKUP($C49,Defaults!$AZ$37:$BE$63,6,FALSE),\"\"))","v":""},{"$f":"IF($C49=\"\",\"\",IFERROR(VLOOKUP($C49,Defaults!$BG$37:$BL$63,6,FALSE),\"\"))","v":""},{"$f":"IF($C49=\"\",\"\",IFERROR(VLOOKUP($C49,Defaults!$BN$37:$BS$63,6,FALSE),\"\"))","v":""},{"$f":"IF($C49=\"\",\"\",IFERROR(VLOOKUP($C49,Defaults!$BU$37:$BZ$63,6,FALSE),\"\"))","v":""},{"$f":"IF($C49=\"\",\"\",IFERROR(VLOOKUP($C49,Defaults!$CB$37:$CG$63,6,FALSE),\"\"))","v":""},{"$f":"IF($C49=\"\",\"\",IFERROR(VLOOKUP($C49,Defaults!$CI:$CN,6,FALSE),\"\"))","v":""}]
[null,null,"Gramoxone",null,"pt",null,null,null,null,4.13,{"$f":"IF(C50=\"\",\"\",ROUND(IF(E50=AE50,AF50,IF(AE50=$AC$2,AF50*VLOOKUP(E50,$AA$2:$AB$4,2,FALSE),IF(AE50=$AF$2,AF50*VLOOKUP(E50,$AD$2:$AE$3,2,FALSE),IF(AE50=$AI$2,AF50/VLOOKUP(E50,$AG$2:$AH$2,2,FALSE),IF(AE50=$AL$2,AF50*VLOOKUP(E50,$AJ$2:$AK$2,2,FALSE),IF(AE50=$AO$2,AF50/VLOOKUP(E50,$AM$2:$AN$2,2,FALSE),IF(AE50=$AR$2,AF50*VLOOKUP(E50,$AP$2:$AQ$3,2,FALSE)))))))),2))","v":4.13},2,2,8.26,null,null,{"$f":"IF(L50>0,ABS(V50-L50),\"\")","v":0.44159999999999999},null,null,null,{"$f":"J50","v":4.13},{"$f":"IF(AG50=0,0,AG50)","v":1.5584},6.4361920000000001,-1.8238079999999997,null,{"$f":"IF($Z$2=Defaults!$M$5,Cotton!B50,IF($Z$2=Defaults!$M$6,Corn!B50,IF($Z$2=Defaults!$M$7,Sorghum!B50,IF($Z$2=Defaults!$M$8,Soybean!B50,IF($Z$2=Defaults!$M$9,Rice!B50,IF($Z$2=Defaults!$M$10,Peanut!B50,IF($Z$2=Defaults!$M$11,Wheat!B50,IF($Z$2=Defaults!$M$12,Pasture!B50,\"\"))))))))","v":"Gramoxone"},{"$f":"IF(C50=\"\",\"\",HLOOKUP($Z$2,$AZ$48:$BG$53,3,FALSE))","v":"pt"},{"$f":"IF(C50=\"\",\"\",HLOOKUP($Z$2,$BJ$48:$BQ$53,3,FALSE))","v":2},0,{"$f":"IF(C50=\"\",\"\",HLOOKUP($Z$2,$BT$48:$CA$53,3,FALSE))","v":2},{"$f":"IF(C50=\"\",\"\",VLOOKUP(C50,Defaults!$AH:$AJ,2,FALSE))","v":"gal"},{"$f":"IF(C50=\"\",\"\",ROUND(VLOOKUP(C50,Defaults!$AH:$AJ,3,FALSE),2))","v":33},{"$f":"IFERROR(IF(LEFT($C$48,6)=\"Custom\",L50,L50*(1-VLOOKUP($C$48,Implements!$A$159:$D$166,4,FALSE))),\"\")","v":1.5584},null,null,null,null,null,{"$f":"N50","v":8.26},null,{"$f":"N50","v":8.26},null,null,null,null,null,{"$f":"W50","v":6.4361920000000001},null,{"$f":"W50","v":6.4361920000000001},null,{"$f":"IF($C50=\"\",\"\",$C50)","v":"Gramoxone"},{"$f":"IF($C50=\"\",\"\",VLOOKUP($C50,Defaults!$AL$37:$AQ$63,4,FALSE))","v":"pt"},{"$f":"IF($C50=\"\",\"\",VLOOKUP($C50,Defaults!$AS$37:$AX$63,4,FALSE))","v":{"$error":"#N/A"}},{"$f":"IF($C50=\"\",\"\",VLOOKUP($C50,Defaults!$AZ$37:$BE$63,4,FALSE))","v":{"$error":"#N/A"}},{"$f":"IF($C50=\"\",\"\",VLOOKUP($C50,Defaults!$BG$37:$BL$63,4,FALSE))","v":"oz"},{"$f":"IF($C50=\"\",\"\",VLOOKUP($C50,Defaults!$BN$37:$BS$63,4,FALSE))","v":{"$error":"#N/A"}},{"$f":"IF($C50=\"\",\"\",VLOOKUP($C50,Defaults!$BU$37:$BZ$63,4,FALSE))","v":{"$error":"#N/A"}},{"$f":"IF($C50=\"\",\"\",VLOOKUP($C50,Defaults!$CB$37:$CG$63,4,FALSE))","v":{"$error":"#N/A"}},{"$f":"IF($C50=\"\",\"\",VLOOKUP($C50,Defaults!$CI:$CN,4,FALSE))","v":"pt"},null,{"$f":"IF($C50=\"\",\"\",$C50)","v":"Gramoxone"},{"$f":"IF($C50=\"\",\"\",IFERROR(VLOOKUP($C50,Defaults!$AL$37:$AQ$63,5,FALSE),\"\"))","v":2},{"$f":"IF($C50=\"\",\"\",IFERROR(VLOOKUP($C50,Defaults!$AS$37:$AX$63,5,FALSE),\"\"))","v":""},{"$f":"IF($C50=\"\",\"\",IFERROR(VLOOKUP($C50,Defaults!$AZ$37:$BE$63,5,FALSE),\"\"))","v":""},{"$f":"IF($C50=\"\",\"\",IFERROR(VLOOKUP($C50,Defaults!$BG$37:$BL$63,5,FALSE),\"\"))","v":40},{"$f":"IF($C50=\"\",\"\",IFERROR(VLOOKUP($C50,Defaults!$BN$37:$BS$63,5,FALSE),\"\"))","v":""},{"$f":"IF($C50=\"\",\"\",IFERROR(VLOOKUP($C50,Defaults!$BU$37:$BZ$63,5,FALSE),\"\"))","v":""},{"$f":"IF($C50=\"\",\"\",IFERROR(VLOOKUP($C50,Defaults!$CB$37:$CG$63,5,FALSE),\"\"))","v":""},{"$f":"IF($C50=\"\",\"\",IFERROR(VLOOKUP($C50,Defaults!$CI:$CN,5,FALSE),\"\"))","v":0.7},null,{"$f":"IF($C50=\"\",\"\",$C50)","v":"Gramoxone"},{"$f":"IF($C50=\"\",\"\",IFERROR(VLOOKUP($C50,Defaults!$AL$37:$AQ$63,6,FALSE),\"\"))","v":2},{"$f":"IF($C50=\"\",\"\",IFERROR(VLOOKUP($C50,Defaults!$AS$37:$AX$63,6,FALSE),\"\"))","v":""},{"$f":"IF($C50=\"\",\"\",IFERROR(VLOOKUP($C50,Defaults!$AZ$37:$BE$63,6,FALSE),\"\"))","v":""},{"$f":"IF($C50=\"\",\"\",IFERROR(VLOOKUP($C50,Defaults!$BG$37:$BL$63,6,FALSE),\"\"))","v":40},{"$f":"IF($C50=\"\",\"\",IFERROR(VLOOKUP($C50,Defaults!$BN$37:$BS$63,6,FALSE),\"\"))","v":""},{"$f":"IF($C50=\"\",\"\",IFERROR(VLOOKUP($C50,Defaults!$BU$37:$BZ$63,6,FALSE),\"\"))","v":""},{"$f":"IF($C50=\"\",\"\",IFERROR(VLOOKUP($C50,Defaults!$CB$37:$CG$63,6,FALSE),\"\"))","v":""},{"$f":"IF($C50=\"\",\"\",IFERROR(VLOOKUP($C50,Defaults!$CI:$CN,6,FALSE),\"\"))","v":1.3}]
[null,null,"Liberty",null,"oz",null,null,null,null,0.42,{"$f":"IF(C51=\"\",\"\",ROUND(IF(E51=AE51,AF51,IF(AE51=$AC$2,AF51*VLOOKUP(E51,$AA$2:$AB$4,2,FALSE),IF(AE51=$AF$2,AF51*VLOOKUP(E51,$AD$2:$AE$3,2,FALSE),IF(AE51=$AI$2,AF51/VLOOKUP(E51,$AG$2:$AH$2,2,FALSE),IF(AE51=$AL$2,AF51*VLOOKUP(E51,$AJ$2:$AK$2,2,FALSE),IF(AE51=$AO$2,AF51/VLOOKUP(E51,$AM$2:$AN$2,2,FALSE),IF(AE51=$AR$2,AF51*VLOOKUP(E51,$AP$2:$AQ$3,2,FALSE)))))))),2))","v":0.42},32,32,13.44,null,null,{"$f":"IF(L51>0,ABS(V51-L51),\"\")","v":7.0655999999999999},null,null,null,{"$f":"J51","v":0.42},{"$f":"IF(AG51=0,0,AG51)","v":24.9344},10.472448,-2.9675519999999995,null,{"$f":"IF($Z$2=Defaults!$M$5,Cotton!B51,IF($Z$2=Defaults!$M$6,Corn!B51,IF($Z$2=Defaults!$M$7,Sorghum!B51,IF($Z$2=Defaults!$M$8,Soybean!B51,IF($Z$2=Defaults!$M$9,Rice!B51,IF($Z$2=Defaults!$M$10,Peanut!B51,IF($Z$2=Defaults!$M$11,Wheat!B51,IF($Z$2=Defaults!$M$12,Pasture!B51,\"\"))))))))","v":"Liberty"},{"$f":"IF(C51=\"\",\"\",HLOOKUP($Z$2,$AZ$48:$BG$53,4,FALSE))","v":"oz"},{"$f":"IF(C51=\"\",\"\",HLOOKUP($Z$2,$BJ$48:$BQ$53,4,FALSE))","v":32},0,{"$f":"IF(C51=\"\",\"\",HLOOKUP($Z$2,$BT$48:$CA$53,4,FALSE))","v":32},{"$f":"IF(C51=\"\",\"\",VLOOKUP(C51,Defaults!$AH:$AJ,2,FALSE))","v":"gal"},{"$f":"IF(C51=\"\",\"\",ROUND(VLOOKUP(C51,Defaults!$AH:$AJ,3,FALSE),2))","v":53.9},{"$f":"IFERROR(IF(LEFT($C$48,6)=\"Custom\",L51,L51*(1-VLOOKUP($C$48,Implements!$A$159:$D$166,4,FALSE))),\"\")","v":24.9344},null,null,null,null,null,{"$f":"N51","v":13.44},null,{"$f":"N51","v":13.44},null,null,null,null,null,{"$f":"W51","v":10.472448},null,{"$f":"W51","v":10.472448},null,{"$f":"IF($C51=\"\",\"\",$C51)","v":"Liberty"},{"$f":"IF($C51=\"\",\"\",VLOOKUP($C51,Defaults!$AL$37:$AQ$63,4,FALSE))","v":"oz"},{"$f":"IF($C51=\"\",\"\",VLOOKUP($C51,Defaults!$AS$37:$AX$63,4,FALSE))","v":{"$error":"#N/A"}},{"$f":"IF($C51=\"\",\"\",VLOOKUP($C51,Defaults!$AZ$37:$BE$63,4,FALSE))","v":{"$error":"#N/A"}},{"$f":"IF($C51=\"\",\"\",VLOOKUP($C51,Defaults!$BG$37:$BL$63,4,FALSE))","v":"oz"},{"$f":"IF($C51=\"\",\"\",VLOOKUP($C51,Defaults!$BN$37:$BS$63,4,FALSE))","v":{"$error":"#N/A"}},{"$f":"IF($C51=\"\",\"\",VLOOKUP($C51,Defaults!$BU$37:$BZ$63,4,FALSE))","v":{"$error":"#N/A"}},{"$f":"IF($C51=\"\",\"\",VLOOKUP($C51,Defaults!$CB$37:$CG$63,4,FALSE))","v":{"$error":"#N/A"}},{"$f":"IF($C51=\"\",\"\",VLOOKUP($C51,Defaults!$CI:$CN,4,FALSE))","v":{"$error":"#N/A"}},null,{"$f":"IF($C51=\"\",\"\",$C51)","v":"Liberty"},{"$f":"IF($C51=\"\",\"\",IFERROR(VLOOKUP($C51,Defaults!$AL$37:$AQ$63,5,FALSE),\"\"))","v":32},{"$f":"IF($C51=\"\",\"\",IFERROR(VLOOKUP($C51,Defaults!$AS$37:$AX$63,5,FALSE),\"\"))","v":""},{"$f":"IF($C51=\"\",\"\",IFERROR(VLOOKUP($C51,Defaults!$AZ$37:$BE$63,5,FALSE),\"\"))","v":""},{"$f":"IF($C51=\"\",\"\",IFERROR(VLOOKUP($C51,Defaults!$BG$37:$BL$63,5,FALSE),\"\"))","v":29},{"$f":"IF($C51=\"\",\"\",IFERROR(VLOOKUP($C51,Defaults!$BN$37:$BS$63,5,FALSE),\"\"))","v":""},{"$f":"IF($C51=\"\",\"\",IFERROR(VLOOKUP($C51,Defaults!$BU$37:$BZ$63,5,FALSE),\"\"))","v":""},{"$f":"IF($C51=\"\",\"\",IFERROR(VLOOKUP($C51,Defaults!$CB$37:$CG$63,5,FALSE),\"\"))","v":""},{"$f":"IF($C51=\"\",\"\",IFERROR(VLOOKUP($C51,Defaults!$CI:$CN,5,FALSE),\"\"))","v":""},null,{"$f":"IF($C51=\"\",\"\",$C51)","v":"Liberty"},{"$f":"IF($C51=\"\",\"\",IFERROR(VLOOKUP($C51,Defaults!$AL$37:$AQ$63,6,FALSE),\"\"))","v":32},{"$f":"IF($C51=\"\",\"\",IFERROR(VLOOKUP($C51,Defaults!$AS$37:$AX$63,6,FALSE),\"\"))","v":""},{"$f":"IF($C51=\"\",\"\",IFERROR(VLOOKUP($C51,Defaults!$AZ$37:$BE$63,6,FALSE),\"\"))","v":""},{"$f":"IF($C51=\"\",\"\",IFERROR(VLOOKUP($C51,Defaults!$BG$37:$BL$63,6,FALSE),\"\"))","v":29},{"$f":"IF($C51=\"\",\"\",IFERROR(VLOOKUP($C51,Defaults!$BN$37:$BS$63,6,FALSE),\"\"))","v":""},{"$f":"IF($C51=\"\",\"\",IFERROR(VLOOKUP($C51,Defaults!$BU$37:$BZ$63,6,FALSE),\"\"))","v":""},{"$f":"IF($C51=\"\",\"\",IFERROR(VLOOKUP($C51,Defaults!$CB$37:$CG$63,6,FALSE),\"\"))","v":""},{"$f":"IF($C51=\"\",\"\",IFERROR(VLOOKUP($C51,Defaults!$CI:$CN,6,FALSE),\"\"))","v":""}]
[null,null,"Dual Magnum",null,"pt",null,null,null,null,13.63,{"$f":"IF(C52=\"\",\"\",ROUND(IF(E52=AE52,AF52,IF(AE52=$AC$2,AF52*VLOOKUP(E52,$AA$2:$AB$4,2,FALSE),IF(AE52=$AF$2,AF52*VLOOKUP(E52,$AD$2:$AE$3,2,FALSE),IF(AE52=$AI$2,AF52/VLOOKUP(E52,$AG$2:$AH$2,2,FALSE),IF(AE52=$AL$2,AF52*VLOOKUP(E52,$AJ$2:$AK$2,2,FALSE),IF(AE52=$AO$2,AF52/VLOOKUP(E52,$AM$2:$AN$2,2,FALSE),IF(AE52=$AR$2,AF52*VLOOKUP(E52,$AP$2:$AQ$3,2,FALSE)))))))),2))","v":13.63},1,1,13.63,null,null,{"$f":"IF(L52>0,ABS(V52-L52),\"\")","v":0.2208},null,null,null,{"$f":"J52","v":13.63},{"$f":"IF(AG52=0,0,AG52)","v":0.7792},10.620496000000001,-3.0095039999999997,null,{"$f":"IF($Z$2=Defaults!$M$5,Cotton!B52,IF($Z$2=Defaults!$M$6,Corn!B52,IF($Z$2=Defaults!$M$7,Sorghum!B52,IF($Z$2=Defaults!$M$8,Soybean!B52,IF($Z$2=Defaults!$M$9,Rice!B52,IF($Z$2=Defaults!$M$10,Peanut!B52,IF($Z$2=Defaults!$M$11,Wheat!B52,IF($Z$2=Defaults!$M$12,Pasture!B52,\"\"))))))))","v":"Dual Magnum"},{"$f":"IF(C52=\"\",\"\",HLOOKUP($Z$2,$AZ$48:$BG$53,5,FALSE))","v":"pt"},{"$f":"IF(C52=\"\",\"\",HLOOKUP($Z$2,$BJ$48:$BQ$53,5,FALSE))","v":1},0,{"$f":"IF(C52=\"\",\"\",HLOOKUP($Z$2,$BT$48:$CA$53,5,FALSE))","v":1},{"$f":"IF(C52=\"\",\"\",VLOOKUP(C52,Defaults!$AH:$AJ,2,FALSE))","v":"gal"},{"$f":"IF(C52=\"\",\"\",ROUND(VLOOKUP(C52,Defaults!$AH:$AJ,3,FALSE),2))","v":109},{"$f":"IFERROR(IF(LEFT($C$48,6)=\"Custom\",L52,L52*(1-VLOOKUP($C$48,Implements!$A$159:$D$166,4,FALSE))),\"\")","v":0.7792},null,null,null,null,null,{"$f":"N52","v":13.63},null,{"$f":"N52","v":13.63},null,null,null,null,null,{"$f":"W52","v":10.620496000000001},null,{"$f":"W52","v":10.620496000000001},null,{"$f":"IF($C52=\"\",\"\",$C52)","v":"Dual Magnum"},{"$f":"IF($C52=\"\",\"\",VLOOKUP($C52,Defaults!$AL$37:$AQ$63,4,FALSE))","v":"pt"},{"$f":"IF($C52=\"\",\"\",VLOOKUP($C52,Defaults!$AS$37:$AX$63,4,FALSE))","v":{"$error":"#N/A"}},{"$f":"IF($C52=\"\",\"\",VLOOKUP($C52,Defaults!$AZ$37:$BE$63,4,FALSE))","v":"pt"},{"$f":"IF($C52=\"\",\"\",VLOOKUP($C52,Defaults!$BG$37:$BL$63,4,FALSE))","v":"pt"},{"$f":"IF($C52=\"\",\"\",VLOOKUP($C52,Defaults!$BN$37:$BS$63,4,FALSE))","v":{"$error":"#N/A"}},{"$f":"IF($C52=\"\",\"\",VLOOKUP($C52,Defaults!$BU$37:$BZ$63,4,FALSE))","v":"pt"},{"$f":"IF($C52=\"\",\"\",VLOOKUP($C52,Defaults!$CB$37:$CG$63,4,FALSE))","v":{"$error":"#N/A"}},{"$f":"IF($C52=\"\",\"\",VLOOKUP($C52,Defaults!$CI:$CN,4,FALSE))","v":{"$error":"#N/A"}},null,{"$f":"IF($C52=\"\",\"\",$C52)","v":"Dual Magnum"},{"$f":"IF($C52=\"\",\"\",IFERROR(VLOOKUP($C52,Defaults!$AL$37:$AQ$63,5,FALSE),\"\"))","v":1},{"$f":"IF($C52=\"\",\"\",IFERROR(VLOOKUP($C52,Defaults!$AS$37:$AX$63,5,FALSE),\"\"))","v":""},{"$f":"IF($C52=\"\",\"\",IFERROR(VLOOKUP($C52,Defaults!$AZ$37:$BE$63,5,FALSE),\"\"))","v":1},{"$f":"IF($C52=\"\",\"\",IFERROR(VLOOKUP($C52,Defaults!$BG$37:$BL$63,5,FALSE),\"\"))","v":1},{"$f":"IF($C52=\"\",\"\",IFERROR(VLOOKUP($C52,Defaults!$BN$37:$BS$63,5,FALSE),\"\"))","v":""},{"$f":"IF($C52=\"\",\"\",IFERROR(VLOOKUP($C52,Defaults!$BU$37:$BZ$63,5,FALSE),\"\"))","v":1},{"$f":"IF($C52=\"\",\"\",IFERROR(VLOOKUP($C52,Defaults!$CB$37:$CG$63,5,FALSE),\"\"))","v":""},{"$f":"IF($C52=\"\",\"\",IFERROR(VLOOKUP($C52,Defaults!$CI:$CN,5,FALSE),\"\"))","v":""},null,{"$f":"IF($C52=\"\",\"\",$C52)","v":"Dual Magnum"},{"$f":"IF($C52=\"\",\"\",IFERROR(VLOOKUP($C52,Defaults!$AL$37:$AQ$63,6,FALSE),\"\"))","v":1},{"$f":"IF($C52=\"\",\"\",IFERROR(VLOOKUP($C52,Defaults!$AS$37:$AX$63,6,FALSE),\"\"))","v":""},{"$f":"IF($C52=\"\",\"\",IFERROR(VLOOKUP($C52,Defaults!$AZ$37:$BE$63,6,FALSE),\"\"))","v":2},{"$f":"IF($C52=\"\",\"\",IFERROR(VLOOKUP($C52,Defaults!$BG$37:$BL$63,6,FALSE),\"\"))","v":1.67},{"$f":"IF($C52=\"\",\"\",IFERROR(VLOOKUP($C52,Defaults!$BN$37:$BS$63,6,FALSE),\"\"))","v":""},{"$f":"IF($C52=\"\",\"\",IFERROR(VLOOKUP($C52,Defaults!$BU$37:$BZ$63,6,FALSE),\"\"))","v":2},{"$f":"IF($C52=\"\",\"\",IFERROR(VLOOKUP($C52,Defaults!$CB$37:$CG$63,6,FALSE),\"\"))","v":""},{"$f":"IF($C52=\"\",\"\",IFERROR(VLOOKUP($C52,Defaults!$CI:$CN,6,FALSE),\"\"))","v":""}]
[null,null,null,null,null,null,null,null,null,null,{"$f":"IF(C53=\"\",\"\",ROUND(IF(E53=AE53,AF53,IF(AE53=$AC$2,AF53*VLOOKUP(E53,$AA$2:$AB$4,2,FALSE),IF(AE53=$AF$2,AF53*VLOOKUP(E53,$AD$2:$AE$3,2,FALSE),IF(AE53=$AI$2,AF53/VLOOKUP(E53,$AG$2:$AH$2,2,FALSE),IF(AE53=$AL$2,AF53*VLOOKUP(E53,$AJ$2:$AK$2,2,FALSE),IF(AE53=$AO$2,AF53/VLOOKUP(E53,$AM$2:$AN$2,2,FALSE),IF(AE53=$AR$2,AF53*VLOOKUP(E53,$AP$2:$AQ$3,2,FALSE)))))))),2))","v":""},null,"",0,null,null,{"$f":"IF(L53>0,ABS(V53-L53),\"\")","v":""},null,null,null,{"$f":"J53","v":0},{"$f":"IF(AG53=0,0,AG53)","v":0},"","",null,{"$f":"IF($Z$2=Defaults!$M$5,Cotton!B53,IF($Z$2=Defaults!$M$6,Corn!B53,IF($Z$2=Defaults!$M$7,Sorghum!B53,IF($Z$2=Defaults!$M$8,Soybean!B53,IF($Z$2=Defaults!$M$9,Rice!B53,IF($Z$2=Defaults!$M$10,Peanut!B53,IF($Z$2=Defaults!$M$11,Wheat!B53,IF($Z$2=Defaults!$M$12,Pasture!B53,\"\"))))))))","v":""},{"$f":"IF(C53=\"\",\"\",HLOOKUP($Z$2,$AZ$48:$BG$53,6,FALSE))","v":""},{"$f":"IF(C53=\"\",\"\",HLOOKUP($Z$2,$BJ$48:$BQ$53,6,FALSE))","v":""},0,{"$f":"IF(C53=\"\",\"\",HLOOKUP($Z$2,$BT$48:$CA$53,6,FALSE))","v":""},{"$f":"IF(C53=\"\",\"\",VLOOKUP(C53,Defaults!$AH:$AJ,2,FALSE))","v":""},{"$f":"IF(C53=\"\",\"\",ROUND(VLOOKUP(C53,Defaults!$AH:$AJ,3,FALSE),2))","v":""},{"$f":"IFERROR(IF(LEFT($C$48,6)=\"Custom\",L53,L53*(1-VLOOKUP($C$48,Implements!$A$159:$D$166,4,FALSE))),\"\")","v":0},null,null,null,null,null,{"$f":"N53","v":0},null,{"$f":"N53","v":0},null,null,null,null,null,{"$f":"W53","v":""},null,{"$f":"W53","v":""},null,{"$f":"IF($C53=\"\",\"\",$C53)","v":""},{"$f":"IF($C53=\"\",\"\",VLOOKUP($C53,Defaults!$AL$37:$AQ$63,4,FALSE))","v":""},{"$f":"IF($C53=\"\",\"\",VLOOKUP($C53,Defaults!$AS$37:$AX$63,4,FALSE))","v":""},{"$f":"IF($C53=\"\",\"\",VLOOKUP($C53,Defaults!$AZ$37:$BE$63,4,FALSE))","v":""},{"$f":"IF($C53=\"\",\"\",VLOOKUP($C53,Defaults!$BG$37:$BL$63,4,FALSE))","v":""},{"$f":"IF($C53=\"\",\"\",VLOOKUP($C53,Defaults!$BN$37:$BS$63,4,FALSE))","v":""},{"$f":"IF($C53=\"\",\"\",VLOOKUP($C53,Defaults!$BU$37:$BZ$63,4,FALSE))","v":""},{"$f":"IF($C53=\"\",\"\",VLOOKUP($C53,Defaults!$CB$37:$CG$63,4,FALSE))","v":""},{"$f":"IF($C53=\"\",\"\",VLOOKUP($C53,Defaults!$CI:$CN,4,FALSE))","v":""},null,{"$f":"IF($C53=\"\",\"\",$C53)","v":""},{"$f":"IF($C53=\"\",\"\",IFERROR(VLOOKUP($C53,Defaults!$AL$37:$AQ$63,5,FALSE),\"\"))","v":""},{"$f":"IF($C53=\"\",\"\",IFERROR(VLOOKUP($C53,Defaults!$AS$37:$AX$63,5,FALSE),\"\"))","v":""},{"$f":"IF($C53=\"\",\"\",IFERROR(VLOOKUP($C53,Defaults!$AZ$37:$BE$63,5,FALSE),\"\"))","v":""},{"$f":"IF($C53=\"\",\"\",IFERROR(VLOOKUP($C53,Defaults!$BG$37:$BL$63,5,FALSE),\"\"))","v":""},{"$f":"IF($C53=\"\",\"\",IFERROR(VLOOKUP($C53,Defaults!$BN$37:$BS$63,5,FALSE),\"\"))","v":""},{"$f":"IF($C53=\"\",\"\",IFERROR(VLOOKUP($C53,Defaults!$BU$37:$BZ$63,5,FALSE),\"\"))","v":""},{"$f":"IF($C53=\"\",\"\",IFERROR(VLOOKUP($C53,Defaults!$CB$37:$CG$63,5,FALSE),\"\"))","v":""},{"$f":"IF($C53=\"\",\"\",IFERROR(VLOOKUP($C53,Defaults!$CI:$CN,5,FALSE),\"\"))","v":""},null,{"$f":"IF($C53=\"\",\"\",$C53)","v":""},{"$f":"IF($C53=\"\",\"\",IFERROR(VLOOKUP($C53,Defaults!$AL$37:$AQ$63,6,FALSE),\"\"))","v":""},{"$f":"IF($C53=\"\",\"\",IFERROR(VLOOKUP($C53,Defaults!$AS$37:$AX$63,6,FALSE),\"\"))","v":""},{"$f":"IF($C53=\"\",\"\",IFERROR(VLOOKUP($C53,Defaults!$AZ$37:$BE$63,6,FALSE),\"\"))","v":""},{"$f":"IF($C53=\"\",\"\",IFERROR(VLOOKUP($C53,Defaults!$BG$37:$BL$63,6,FALSE),\"\"))","v":""},{"$f":"IF($C53=\"\",\"\",IFERROR(VLOOKUP($C53,Defaults!$BN$37:$BS$63,6,FALSE),\"\"))","v":""},{"$f":"IF($C53=\"\",\"\",IFERROR(VLOOKUP($C53,Defaults!$BU$37:$BZ$63,6,FALSE),\"\"))","v":""},{"$f":"IF($C53=\"\",\"\",IFERROR(VLOOKUP($C53,Defaults!$CB$37:$CG$63,6,FALSE),\"\"))","v":""},{"$f":"IF($C53=\"\",\"\",IFERROR(VLOOKUP($C53,Defaults!$CI:$CN,6,FALSE),\"\"))","v":""}]
[null,null,"Postemergence Weed Control",{"$f":"IF($Z$2=Defaults!$M$5,Cotton!D54,IF($Z$2=Defaults!$M$6,Corn!D54,IF($Z$2=Defaults!$M$7,Sorghum!D54,IF($Z$2=Defaults!$M$8,Soybean!D54,IF($Z$2=Defaults!$M$9,Rice!D54,IF($Z$2=Defaults!$M$10,Peanut!D54,IF($Z$2=Defaults!$M$11,Wheat!D54,IF($Z$2=Defaults!$M$12,Pasture!D54,FALSE))))))))","v":"Post Planting"},null,null,null,null,null,null,null,null,null,null,null,null,null,null,null,null,null,null,null,null,null,{"$f":"IF($Z$2=Defaults!$M$5,Cotton!B54,IF($Z$2=Defaults!$M$6,Corn!B54,IF($Z$2=Defaults!$M$7,Sorghum!B54,IF($Z$2=Defaults!$M$8,Soybean!B54,IF($Z$2=Defaults!$M$9,Rice!B54,IF($Z$2=Defaults!$M$10,Peanut!B54,IF($Z$2=Defaults!$M$11,Wheat!B54,IF($Z$2=Defaults!$M$12,Pasture!B54,\"\"))))))))","v":"Postemergence Weed Control"},null,null,null,null,null,null,null,null,null,null,null,null,null,null,null,null,null,null,null,null,null,null,null,null,"POST",null,null,null,null,null,null,null,null,null,"POST",null,null,null,null,null,null,null,null,null,"POST"]
[null,null,"Over-the-Top Sprayer 1",null,null,{"$f":"IF(L55=0,0,IF(C55=Defaults!$I$27,Implements!$AK$185,IF(C55=Defaults!$I$28,Implements!$AK$186,0)))","v":61.454545454545453},{"$f":"IF($L55=0,0,IFERROR(VLOOKUP($C55,Implements!$X$181:$AN$188,15,FALSE),0))","v":8.36},{"$f":"IF($L55=0,0,IFERROR(VLOOKUP($C55,Implements!$X$181:$AN$188,16,FALSE),0))","v":45.046666666666667},{"$f":"IF($L55=0,0,IFERROR(VLOOKUP($C55,Implements!$X$181:$AN$188,17,FALSE),0))","v":137.64582520078542},{"$f":"IF(OR(C55=\"\",L55=\"\",L55=0)=TRUE,\"\",IF(OR(C55=Defaults!$I$25,C55=Defaults!$I$26)=TRUE,VLOOKUP(C55,Defaults!$I$24:$K$27,3,FALSE),ROUND(1/F55*(1*Inputs!$AA$13+($AI$7-1)*Inputs!$AA$15),2)+ROUND(G55*Inputs!$V$13/F55,2)+ROUND(H55/F55,2)+ROUND(I55/F55,2)))","v":3.5},{"$f":"IF(OR(C55=\"\",L55=\"\",L55=0)=TRUE,\"\",IF(OR(C55=Defaults!$I$25,C55=Defaults!$I$26)=TRUE,VLOOKUP(C55,Defaults!$I$24:$K$27,3,FALSE),ROUND(1/F55*(1*Inputs!$AA$13+($AI$7-1)*Inputs!$AA$15),2)+ROUND(G55*Inputs!$V$13/F55,2)+ROUND(H55/F55,2)+ROUND(I55/F55,2)))","v":3.5},1,{"$f":"AB55","v":1},{"$f":"IF(C55=\"\",0,IF(L55=0,0,IF(L55=\"\",\"\",J55*L55)))","v":3.5},null,null,{"$f":"IF(V55=0,0,IF(C55=Defaults!$I$27,Implements!$AK$174,IF(C55=Defaults!$I$28,Implements!$AK$175,0)))","v":62.812690909090918},{"$f":"IF($V55=0,0,IFERROR(VLOOKUP($C55,Implements!$X$170:$AN$177,15,FALSE),0))","v":8.36},{"$f":"IF($V55=0,0,IFERROR(VLOOKUP($C55,Implements!$X$170:$AN$177,16,FALSE),0))","v":45.046666666666667},{"$f":"IF($V55=0,0,IFERROR(VLOOKUP($C55,Implements!$X$170:$AN$177,17,FALSE),0))","v":138.7259236950801},{"$f":"IF(OR(C55=\"\",V55=\"\",V55=0)=TRUE,\"\",IF(LEFT(C55,6)=\"Custom\",J55,ROUND(1/Q55*(1*Inputs!$AA$13+($AI$7-1)*Inputs!$AA$15),2)+ROUND(R55*Inputs!$V$13/Q55,2)+ROUND(S55/Q55,2)+ROUND(T55/Q55,2)))","v":3.44},{"$f":"+L55","v":1},{"$f":"IF(C55=\"\",\"\",IF(V55=0,0,IF(V55=\"\",\"\",U55*V55)))","v":3.44},{"$f":"IF(C55=\"\",\"\",W55-N55)","v":-6.0000000000000053E-2},null,{"$f":"IF($Z$2=Defaults!$M$5,Cotton!B55,IF($Z$2=Defaults!$M$6,Corn!B55,IF($Z$2=Defaults!$M$7,Sorghum!B55,IF($Z$2=Defaults!$M$8,Soybean!B55,IF($Z$2=Defaults!$M$9,Rice!B55,IF($Z$2=Defaults!$M$10,Peanut!B55,IF($Z$2=Defaults!$M$11,Wheat!B55,IF($Z$2=Defaults!$M$12,Pasture!B55,\"\"))))))))","v":"Over-the-Top Sprayer 1"},null,{"$f":"IF(C55=\"\",\"\",IF($Z$2=Defaults!$M$12,VLOOKUP(C55,Defaults!$I$35:$J$37,2,FALSE),VLOOKUP(C55,Defaults!$I$24:$J$28,2,FALSE)))","v":1},0,{"$f":"IF(AB55=\"\",\"\",AB55*2)","v":2},null,null,{"$f":"+AB55","v":1},{"$f":"N55","v":3.5},{"$f":"ROUND(IFERROR(1/F55*(1*Inputs!$AA$13+($AI$7-1)*Inputs!$AA$15),0),2)*L55","v":0.28999999999999998},{"$f":"ROUND(IFERROR(1/F55*G55*Inputs!$V$13,0),2)*L55","v":0.24},{"$f":"ROUND(IFERROR(1/F55*H55,0),2)*L55","v":0.73},{"$f":"ROUND(IFERROR(1/F55*I55,0),2)*L55","v":2.2400000000000002},null,null,null,{"$f":"W55","v":3.44},{"$f":"ROUND(IFERROR(1/Q55*(1*Inputs!$AA$13+($AI$7-1)*Inputs!$AA$15),0),2)*V55","v":0.28000000000000003},{"$f":"ROUND(IFERROR(1/Q55*R55*Inputs!$V$13,0),2)*V55","v":0.23},{"$f":"ROUND(IFERROR(1/Q55*S55,0),2)*V55","v":0.72},{"$f":"ROUND(IFERROR(1/Q55*T55,0),2)*V55","v":2.21},null,null,null,null,null,{"$f":"AZ11","v":"Cotton"},"Corn","Sorghum","Soybean","Rice","Peanut","Wheat","Est. Pasture or Hay",null,null,{"$f":"BJ11","v":"Cotton"},"Corn","Sorghum","Soybean","Rice","Peanut","Wheat","Est. Pasture or Hay",null,null,{"$f":"BT11","v":"Cotton"},"Corn","Sorghum","Soybean","Rice","Peanut","Wheat","Est. Pasture or Hay"]
[null,null,"Glyphosate",null,"pt",null,null,null,null,4.75,{"$f":"IF(C56=\"\",\"\",ROUND(IF(E56=AE56,AF56,IF(AE56=$AC$2,AF56*VLOOKUP(E56,$AA$2:$AB$4,2,FALSE),IF(AE56=$AF$2,AF56*VLOOKUP(E56,$AD$2:$AE$3,2,FALSE),IF(AE56=$AI$2,AF56/VLOOKUP(E56,$AG$2:$AH$2,2,FALSE),IF(AE56=$AL$2,AF56*VLOOKUP(E56,$AJ$2:$AK$2,2,FALSE),IF(AE56=$AO$2,AF56/VLOOKUP(E56,$AM$2:$AN$2,2,FALSE),IF(AE56=$AR$2,AF56*VLOOKUP(E56,$AP$2:$AQ$3,2,FALSE)))))))),2))","v":4.75},2,{"$f":"AB56","v":2},{"$f":"IF(C56=\"\",0,IF(L56=0,0,IF(L56=\"\",\"\",J56*L56)))","v":9.5},null,null,{"$f":"IF(L56>0,ABS(V56-L56),\"\")","v":0.44159999999999999},null,null,null,{"$f":"J56","v":4.75},{"$f":"IF(AG56=0,0,AG56)","v":1.5584},{"$f":"IF(C56=\"\",\"\",IF(V56=0,0,IF(V56=\"\",\"\",U56*V56)))","v":7.4024000000000001},-2.0975999999999999,null,{"$f":"IF($Z$2=Defaults!$M$5,Cotton!B56,IF($Z$2=Defaults!$M$6,Corn!B56,IF($Z$2=Defaults!$M$7,Sorghum!B56,IF($Z$2=Defaults!$M$8,Soybean!B56,IF($Z$2=Defaults!$M$9,Rice!B56,IF($Z$2=Defaults!$M$10,Peanut!B56,IF($Z$2=Defaults!$M$11,Wheat!B56,IF($Z$2=Defaults!$M$12,Pasture!B56,\"\"))))))))","v":"Glyphosate"},{"$f":"IF(C56=\"\",\"\",HLOOKUP($Z$2,$AZ$55:$BG$59,2,FALSE))","v":"pt"},{"$f":"IF(C56=\"\",\"\",HLOOKUP($Z$2,$BJ$55:$BQ$59,2,FALSE))","v":2},0,{"$f":"IF(C56=\"\",\"\",HLOOKUP($Z$2,$BT$55:$CA$59,2,FALSE))","v":2},{"$f":"IF(C56=\"\",\"\",VLOOKUP(C56,Defaults!$AH:$AJ,2,FALSE))","v":"gal"},{"$f":"IF(C56=\"\",\"\",ROUND(VLOOKUP(C56,Defaults!$AH:$AJ,3,FALSE),2))","v":38},{"$f":"IFERROR(IF(LEFT($C$55,6)=\"Custom\",L56,L56*(1-VLOOKUP($C$55,Implements!$A$159:$D$166,4,FALSE))),\"\")","v":1.5584},null,null,null,null,null,{"$f":"N56","v":9.5},null,{"$f":"N56","v":9.5},null,null,null,null,null,{"$f":"W56","v":7.4024000000000001},null,{"$f":"W56","v":7.4024000000000001},null,{"$f":"IF($C56=\"\",\"\",$C56)","v":"Glyphosate"},{"$f":"IF($C56=\"\",\"\",VLOOKUP($C56,Defaults!$AL$65:$AQ$82,4,FALSE))","v":"pt"},{"$f":"IF($C56=\"\",\"\",VLOOKUP($C56,Defaults!$AS$65:$AX$96,4,FALSE))","v":"pt"},{"$f":"IF($C56=\"\",\"\",VLOOKUP($C56,Defaults!$AZ$65:$BE$96,4,FALSE))","v":{"$error":"#N/A"}},{"$f":"IF($C56=\"\",\"\",VLOOKUP($C56,Defaults!$BG$65:$BL$96,4,FALSE))","v":"oz"},{"$f":"IF($C56=\"\",\"\",VLOOKUP($C56,Defaults!$BN$65:$BS$96,4,FALSE))","v":{"$error":"#N/A"}},{"$f":"IF($C56=\"\",\"\",VLOOKUP($C56,Defaults!$BU$65:$BZ$96,4,FALSE))","v":{"$error":"#N/A"}},{"$f":"IF($C56=\"\",\"\",VLOOKUP($C56,Defaults!$CB$65:$CG$96,4,FALSE))","v":{"$error":"#N/A"}},{"$f":"IF($C56=\"\",\"\",VLOOKUP($C56,Defaults!$CI:$CN,4,FALSE))","v":"oz"},null,{"$f":"IF($C56=\"\",\"\",$C56)","v":"Glyphosate"},{"$f":"IF($C56=\"\",\"\",IFERROR(VLOOKUP($C56,Defaults!$AL$65:$AQ$82,5,FALSE),\"\"))","v":2},{"$f":"IF($C56=\"\",\"\",IFERROR(VLOOKUP($C56,Defaults!$AS$65:$AX$96,5,FALSE),\"\"))","v":2},{"$f":"IF($C56=\"\",\"\",IFERROR(VLOOKUP($C56,Defaults!$AZ$65:$BE$96,5,FALSE),\"\"))","v":""},{"$f":"IF($C56=\"\",\"\",IFERROR(VLOOKUP($C56,Defaults!$BG$65:$BL$96,5,FALSE),\"\"))","v":32},{"$f":"IF($C56=\"\",\"\",IFERROR(VLOOKUP($C56,Defaults!$BN$65:$BS$96,5,FALSE),\"\"))","v":""},{"$f":"IF($C56=\"\",\"\",IFERROR(VLOOKUP($C56,Defaults!$BU$65:$BZ$96,5,FALSE),\"\"))","v":""},{"$f":"\"\"","v":""},{"$f":"IF($C56=\"\",\"\",IFERROR(VLOOKUP($C56,Defaults!$CI:$CN,5,FALSE),\"\"))","v":16},null,{"$f":"IF($C56=\"\",\"\",$C56)","v":"Glyphosate"},{"$f":"IF($C56=\"\",\"\",IFERROR(VLOOKUP($C56,Defaults!$AL$65:$AQ$82,6,FALSE),\"\"))","v":2},{"$f":"IF($C56=\"\",\"\",IFERROR(VLOOKUP($C56,Defaults!$AS$65:$AX$96,6,FALSE),\"\"))","v":2},{"$f":"IF($C56=\"\",\"\",IFERROR(VLOOKUP($C56,Defaults!$AZ$65:$BE$96,6,FALSE),\"\"))","v":""},{"$f":"IF($C56=\"\",\"\",IFERROR(VLOOKUP($C56,Defaults!$BG$65:$BL$96,6,FALSE),\"\"))","v":32},{"$f":"IF($C56=\"\",\"\",IFERROR(VLOOKUP($C56,Defaults!$BN$65:$BS$96,6,FALSE),\"\"))","v":""},{"$f":"IF($C56=\"\",\"\",IFERROR(VLOOKUP($C56,Defaults!$BU$65:$BZ$96,6,FALSE),\"\"))","v":""},{"$f":"\"\"","v":""},{"$f":"IF($C56=\"\",\"\",IFERROR(VLOOKUP($C56,Defaults!$CI:$CN,6,FALSE),\"\"))","v":16}]
[null,null,null,null,null,null,null,null,null,null,{"$f":"IF(C57=\"\",\"\",ROUND(IF(E57=AE57,AF57,IF(AE57=$AC$2,AF57*VLOOKUP(E57,$AA$2:$AB$4,2,FALSE),IF(AE57=$AF$2,AF57*VLOOKUP(E57,$AD$2:$AE$3,2,FALSE),IF(AE57=$AI$2,AF57/VLOOKUP(E57,$AG$2:$AH$2,2,FALSE),IF(AE57=$AL$2,AF57*VLOOKUP(E57,$AJ$2:$AK$2,2,FALSE),IF(AE57=$AO$2,AF57/VLOOKUP(E57,$AM$2:$AN$2,2,FALSE),IF(AE57=$AR$2,AF57*VLOOKUP(E57,$AP$2:$AQ$3,2,FALSE)))))))),2))","v":""},null,{"$f":"AB57","v":""},{"$f":"IF(C57=\"\",0,IF(L57=0,0,IF(L57=\"\",\"\",J57*L57)))","v":0},null,null,{"$f":"IF(L57>0,ABS(V57-L57),\"\")","v":""},null,null,null,{"$f":"J57","v":0},{"$f":"IF(AG57=0,0,AG57)","v":0},{"$f":"IF(C57=\"\",\"\",IF(V57=0,0,IF(V57=\"\",\"\",U57*V57)))","v":""},"",null,{"$f":"IF($Z$2=Defaults!$M$5,Cotton!B57,IF($Z$2=Defaults!$M$6,Corn!B57,IF($Z$2=Defaults!$M$7,Sorghum!B57,IF($Z$2=Defaults!$M$8,Soybean!B57,IF($Z$2=Defaults!$M$9,Rice!B57,IF($Z$2=Defaults!$M$10,Peanut!B57,IF($Z$2=Defaults!$M$11,Wheat!B57,IF($Z$2=Defaults!$M$12,Pasture!B57,\"\"))))))))","v":""},{"$f":"IF(C57=\"\",\"\",HLOOKUP($Z$2,$AZ$55:$BG$59,3,FALSE))","v":""},{"$f":"IF(C57=\"\",\"\",HLOOKUP($Z$2,$BJ$55:$BQ$59,3,FALSE))","v":""},0,{"$f":"IF(C57=\"\",\"\",HLOOKUP($Z$2,$BT$55:$CA$59,3,FALSE))","v":""},{"$f":"IF(C57=\"\",\"\",VLOOKUP(C57,Defaults!$AH:$AJ,2,FALSE))","v":""},{"$f":"IF(C57=\"\",\"\",ROUND(VLOOKUP(C57,Defaults!$AH:$AJ,3,FALSE),2))","v":""},{"$f":"IFERROR(IF(LEFT($C$55,6)=\"Custom\",L57,L57*(1-VLOOKUP($C$55,Implements!$A$159:$D$166,4,FALSE))),\"\")","v":0},null,null,null,null,null,{"$f":"N57","v":0},null,{"$f":"N57","v":0},null,null,null,null,null,{"$f":"W57","v":""},null,{"$f":"W57","v":""},null,{"$f":"IF($C57=\"\",\"\",$C57)","v":""},{"$f":"IF($C57=\"\",\"\",VLOOKUP($C57,Defaults!$AL$65:$AQ$82,4,FALSE))","v":""},{"$f":"IF($C57=\"\",\"\",VLOOKUP($C57,Defaults!$AS$65:$AX$96,4,FALSE))","v":""},{"$f":"IF($C57=\"\",\"\",VLOOKUP($C57,Defaults!$AZ$65:$BE$96,4,FALSE))","v":""},{"$f":"IF($C57=\"\",\"\",VLOOKUP($C57,Defaults!$BG$65:$BL$96,4,FALSE))","v":""},{"$f":"IF($C57=\"\",\"\",VLOOKUP($C57,Defaults!$BN$65:$BS$96,4,FALSE))","v":""},{"$f":"IF($C57=\"\",\"\",VLOOKUP($C57,Defaults!$BU$65:$BZ$96,4,FALSE))","v":""},{"$f":"IF($C57=\"\",\"\",VLOOKUP($C57,Defaults!$CB$65:$CG$96,4,FALSE))","v":""},{"$f":"IF($C57=\"\",\"\",VLOOKUP($C57,Defaults!$CI:$CN,4,FALSE))","v":""},null,{"$f":"IF($C57=\"\",\"\",$C57)","v":""},{"$f":"IF($C57=\"\",\"\",IFERROR(VLOOKUP($C57,Defaults!$AL$65:$AQ$82,5,FALSE),\"\"))","v":""},{"$f":"IF($C57=\"\",\"\",IFERROR(VLOOKUP($C57,Defaults!$AS$65:$AX$96,5,FALSE),\"\"))","v":""},{"$f":"IF($C57=\"\",\"\",IFERROR(VLOOKUP($C57,Defaults!$AZ$65:$BE$96,5,FALSE),\"\"))","v":""},{"$f":"IF($C57=\"\",\"\",IFERROR(VLOOKUP($C57,Defaults!$BG$65:$BL$96,5,FALSE),\"\"))","v":""},{"$f":"IF($C57=\"\",\"\",IFERROR(VLOOKUP($C57,Defaults!$BN$65:$BS$96,5,FALSE),\"\"))","v":""},{"$f":"IF($C57=\"\",\"\",IFERROR(VLOOKUP($C57,Defaults!$BU$65:$BZ$96,5,FALSE),\"\"))","v":""},{"$f":"\"\"","v":""},{"$f":"IF($C57=\"\",\"\",IFERROR(VLOOKUP($C57,Defaults!$CI:$CN,5,FALSE),\"\"))","v":""},null,{"$f":"IF($C57=\"\",\"\",$C57)","v":""},{"$f":"IF($C57=\"\",\"\",IFERROR(VLOOKUP($C57,Defaults!$AL$65:$AQ$82,6,FALSE),\"\"))","v":""},{"$f":"IF($C57=\"\",\"\",IFERROR(VLOOKUP($C57,Defaults!$AS$65:$AX$96,6,FALSE),\"\"))","v":""},{"$f":"IF($C57=\"\",\"\",IFERROR(VLOOKUP($C57,Defaults!$AZ$65:$BE$96,6,FALSE),\"\"))","v":""},{"$f":"IF($C57=\"\",\"\",IFERROR(VLOOKUP($C57,Defaults!$BG$65:$BL$96,6,FALSE),\"\"))","v":""},{"$f":"IF($C57=\"\",\"\",IFERROR(VLOOKUP($C57,Defaults!$BN$65:$BS$96,6,FALSE),\"\"))","v":""},{"$f":"IF($C57=\"\",\"\",IFERROR(VLOOKUP($C57,Defaults!$BU$65:$BZ$96,6,FALSE),\"\"))","v":""},{"$f":"\"\"","v":""},{"$f":"IF($C57=\"\",\"\",IFERROR(VLOOKUP($C57,Defaults!$CI:$CN,6,FALSE),\"\"))","v":""}]
[null,null,null,null,null,null,null,null,null,null,{"$f":"IF(C58=\"\",\"\",ROUND(IF(E58=AE58,AF58,IF(AE58=$AC$2,AF58*VLOOKUP(E58,$AA$2:$AB$4,2,FALSE),IF(AE58=$AF$2,AF58*VLOOKUP(E58,$AD$2:$AE$3,2,FALSE),IF(AE58=$AI$2,AF58/VLOOKUP(E58,$AG$2:$AH$2,2,FALSE),IF(AE58=$AL$2,AF58*VLOOKUP(E58,$AJ$2:$AK$2,2,FALSE),IF(AE58=$AO$2,AF58/VLOOKUP(E58,$AM$2:$AN$2,2,FALSE),IF(AE58=$AR$2,AF58*VLOOKUP(E58,$AP$2:$AQ$3,2,FALSE)))))))),2))","v":""},null,{"$f":"AB58","v":""},{"$f":"IF(C58=\"\",0,IF(L58=0,0,IF(L58=\"\",\"\",J58*L58)))","v":0},null,null,{"$f":"IF(L58>0,ABS(V58-L58),\"\")","v":""},null,null,null,{"$f":"J58","v":0},{"$f":"IF(AG58=0,0,AG58)","v":0},{"$f":"IF(C58=\"\",\"\",IF(V58=0,0,IF(V58=\"\",\"\",U58*V58)))","v":""},"",null,{"$f":"IF($Z$2=Defaults!$M$5,Cotton!B58,IF($Z$2=Defaults!$M$6,Corn!B58,IF($Z$2=Defaults!$M$7,Sorghum!B58,IF($Z$2=Defaults!$M$8,Soybean!B58,IF($Z$2=Defaults!$M$9,Rice!B58,IF($Z$2=Defaults!$M$10,Peanut!B58,IF($Z$2=Defaults!$M$11,Wheat!B58,IF($Z$2=Defaults!$M$12,Pasture!B58,\"\"))))))))","v":""},{"$f":"IF(C58=\"\",\"\",HLOOKUP($Z$2,$AZ$55:$BG$59,4,FALSE))","v":""},{"$f":"IF(C58=\"\",\"\",HLOOKUP($Z$2,$BJ$55:$BQ$59,4,FALSE))","v":""},0,{"$f":"IF(C58=\"\",\"\",HLOOKUP($Z$2,$BT$55:$CA$59,4,FALSE))","v":""},{"$f":"IF(C58=\"\",\"\",VLOOKUP(C58,Defaults!$AH:$AJ,2,FALSE))","v":""},{"$f":"IF(C58=\"\",\"\",ROUND(VLOOKUP(C58,Defaults!$AH:$AJ,3,FALSE),2))","v":""},{"$f":"IFERROR(IF(LEFT($C$55,6)=\"Custom\",L58,L58*(1-VLOOKUP($C$55,Implements!$A$159:$D$166,4,FALSE))),\"\")","v":0},null,null,null,null,null,{"$f":"N58","v":0},null,{"$f":"N58","v":0},null,null,null,null,null,{"$f":"W58","v":""},null,{"$f":"W58","v":""},null,{"$f":"IF($C58=\"\",\"\",$C58)","v":""},{"$f":"IF($C58=\"\",\"\",VLOOKUP($C58,Defaults!$AL$65:$AQ$82,4,FALSE))","v":""},{"$f":"IF($C58=\"\",\"\",VLOOKUP($C58,Defaults!$AS$65:$AX$96,4,FALSE))","v":""},{"$f":"IF($C58=\"\",\"\",VLOOKUP($C58,Defaults!$AZ$65:$BE$96,4,FALSE))","v":""},{"$f":"IF($C58=\"\",\"\",VLOOKUP($C58,Defaults!$BG$65:$BL$96,4,FALSE))","v":""},{"$f":"IF($C58=\"\",\"\",VLOOKUP($C58,Defaults!$BN$65:$BS$96,4,FALSE))","v":""},{"$f":"IF($C58=\"\",\"\",VLOOKUP($C58,Defaults!$BU$65:$BZ$96,4,FALSE))","v":""},{"$f":"IF($C58=\"\",\"\",VLOOKUP($C58,Defaults!$CB$65:$CG$96,4,FALSE))","v":""},{"$f":"IF($C58=\"\",\"\",VLOOKUP($C58,Defaults!$CI:$CN,4,FALSE))","v":""},null,{"$f":"IF($C58=\"\",\"\",$C58)","v":""},{"$f":"IF($C58=\"\",\"\",IFERROR(VLOOKUP($C58,Defaults!$AL$65:$AQ$82,5,FALSE),\"\"))","v":""},{"$f":"IF($C58=\"\",\"\",IFERROR(VLOOKUP($C58,Defaults!$AS$65:$AX$96,5,FALSE),\"\"))","v":""},{"$f":"IF($C58=\"\",\"\",IFERROR(VLOOKUP($C58,Defaults!$AZ$65:$BE$96,5,FALSE),\"\"))","v":""},{"$f":"IF($C58=\"\",\"\",IFERROR(VLOOKUP($C58,Defaults!$BG$65:$BL$96,5,FALSE),\"\"))","v":""},{"$f":"IF($C58=\"\",\"\",IFERROR(VLOOKUP($C58,Defaults!$BN$65:$BS$96,5,FALSE),\"\"))","v":""},{"$f":"IF($C58=\"\",\"\",IFERROR(VLOOKUP($C58,Defaults!$BU$65:$BZ$96,5,FALSE),\"\"))","v":""},{"$f":"\"\"","v":""},{"$f":"IF($C58=\"\",\"\",IFERROR(VLOOKUP($C58,Defaults!$CI:$CN,5,FALSE),\"\"))","v":""},null,{"$f":"IF($C58=\"\",\"\",$C58)","v":""},{"$f":"IF($C58=\"\",\"\",IFERROR(VLOOKUP($C58,Defaults!$AL$65:$AQ$82,6,FALSE),\"\"))","v":""},{"$f":"IF($C58=\"\",\"\",IFERROR(VLOOKUP($C58,Defaults!$AS$65:$AX$96,6,FALSE),\"\"))","v":""},{"$f":"IF($C58=\"\",\"\",IFERROR(VLOOKUP($C58,Defaults!$AZ$65:$BE$96,6,FALSE),\"\"))","v":""},{"$f":"IF($C58=\"\",\"\",IFERROR(VLOOKUP($C58,Defaults!$BG$65:$BL$96,6,FALSE),\"\"))","v":""},{"$f":"IF($C58=\"\",\"\",IFERROR(VLOOKUP($C58,Defaults!$BN$65:$BS$96,6,FALSE),\"\"))","v":""},{"$f":"IF($C58=\"\",\"\",IFERROR(VLOOKUP($C58,Defaults!$BU$65:$BZ$96,6,FALSE),\"\"))","v":""},{"$f":"\"\"","v":""},{"$f":"IF($C58=\"\",\"\",IFERROR(VLOOKUP($C58,Defaults!$CI:$CN,6,FALSE),\"\"))","v":""}]
[null,null,null,null,null,null,null,null,null,null,{"$f":"IF(C59=\"\",\"\",ROUND(IF(E59=AE59,AF59,IF(AE59=$AC$2,AF59*VLOOKUP(E59,$AA$2:$AB$4,2,FALSE),IF(AE59=$AF$2,AF59*VLOOKUP(E59,$AD$2:$AE$3,2,FALSE),IF(AE59=$AI$2,AF59/VLOOKUP(E59,$AG$2:$AH$2,2,FALSE),IF(AE59=$AL$2,AF59*VLOOKUP(E59,$AJ$2:$AK$2,2,FALSE),IF(AE59=$AO$2,AF59/VLOOKUP(E59,$AM$2:$AN$2,2,FALSE),IF(AE59=$AR$2,AF59*VLOOKUP(E59,$AP$2:$AQ$3,2,FALSE)))))))),2))","v":""},null,{"$f":"AB59","v":""},{"$f":"IF(C59=\"\",0,IF(L59=0,0,IF(L59=\"\",\"\",J59*L59)))","v":0},null,null,{"$f":"IF(L59>0,ABS(V59-L59),\"\")","v":""},null,null,null,{"$f":"J59","v":0},{"$f":"IF(AG59=0,0,AG59)","v":0},{"$f":"IF(C59=\"\",\"\",IF(V59=0,0,IF(V59=\"\",\"\",U59*V59)))","v":""},"",null,{"$f":"IF($Z$2=Defaults!$M$5,Cotton!B59,IF($Z$2=Defaults!$M$6,Corn!B59,IF($Z$2=Defaults!$M$7,Sorghum!B59,IF($Z$2=Defaults!$M$8,Soybean!B59,IF($Z$2=Defaults!$M$9,Rice!B59,IF($Z$2=Defaults!$M$10,Peanut!B59,IF($Z$2=Defaults!$M$11,Wheat!B59,IF($Z$2=Defaults!$M$12,Pasture!B59,\"\"))))))))","v":""},{"$f":"IF(C59=\"\",\"\",HLOOKUP($Z$2,$AZ$55:$BG$59,5,FALSE))","v":""},{"$f":"IF(C59=\"\",\"\",HLOOKUP($Z$2,$BJ$55:$BQ$59,5,FALSE))","v":""},0,{"$f":"IF(C59=\"\",\"\",HLOOKUP($Z$2,$BT$55:$CA$59,5,FALSE))","v":""},{"$f":"IF(C59=\"\",\"\",VLOOKUP(C59,Defaults!$AH:$AJ,2,FALSE))","v":""},{"$f":"IF(C59=\"\",\"\",ROUND(VLOOKUP(C59,Defaults!$AH:$AJ,3,FALSE),2))","v":""},{"$f":"IFERROR(IF(LEFT($C$55,6)=\"Custom\",L59,L59*(1-VLOOKUP($C$55,Implements!$A$159:$D$166,4,FALSE))),\"\")","v":0},null,null,null,null,null,null,null,null,null,null,null,null,null,{"$f":"W59","v":""},null,{"$f":"W59","v":""},null,{"$f":"IF($C59=\"\",\"\",$C59)","v":""},{"$f":"IF($C59=\"\",\"\",VLOOKUP($C59,Defaults!$AL$65:$AQ$82,4,FALSE))","v":""},{"$f":"IF($C59=\"\",\"\",VLOOKUP($C59,Defaults!$AS$65:$AX$96,4,FALSE))","v":""},{"$f":"IF($C59=\"\",\"\",VLOOKUP($C59,Defaults!$AZ$65:$BE$96,4,FALSE))","v":""},{"$f":"IF($C59=\"\",\"\",VLOOKUP($C59,Defaults!$BG$65:$BL$96,4,FALSE))","v":""},{"$f":"IF($C59=\"\",\"\",VLOOKUP($C59,Defaults!$BN$65:$BS$96,4,FALSE))","v":""},{"$f":"IF($C59=\"\",\"\",VLOOKUP($C59,Defaults!$BU$65:$BZ$96,4,FALSE))","v":""},{"$f":"IF($C59=\"\",\"\",VLOOKUP($C59,Defaults!$CB$65:$CG$96,4,FALSE))","v":""},{"$f":"IF($C59=\"\",\"\",VLOOKUP($C59,Defaults!$CI:$CN,4,FALSE))","v":""},null,{"$f":"IF($C59=\"\",\"\",$C59)","v":""},{"$f":"IF($C59=\"\",\"\",IFERROR(VLOOKUP($C59,Defaults!$AL$65:$AQ$82,5,FALSE),\"\"))","v":""},{"$f":"IF($C59=\"\",\"\",IFERROR(VLOOKUP($C59,Defaults!$AS$65:$AX$96,5,FALSE),\"\"))","v":""},{"$f":"IF($C59=\"\",\"\",IFERROR(VLOOKUP($C59,Defaults!$AZ$65:$BE$96,5,FALSE),\"\"))","v":""},{"$f":"IF($C59=\"\",\"\",IFERROR(VLOOKUP($C59,Defaults!$BG$65:$BL$96,5,FALSE),\"\"))","v":""},{"$f":"IF($C59=\"\",\"\",IFERROR(VLOOKUP($C59,Defaults!$BN$65:$BS$96,5,FALSE),\"\"))","v":""},{"$f":"IF($C59=\"\",\"\",IFERROR(VLOOKUP($C59,Defaults!$BU$65:$BZ$96,5,FALSE),\"\"))","v":""},{"$f":"\"\"","v":""},{"$f":"IF($C59=\"\",\"\",IFERROR(VLOOKUP($C59,Defaults!$CI:$CN,5,FALSE),\"\"))","v":""},null,{"$f":"IF($C59=\"\",\"\",$C59)","v":""},{"$f":"IF($C59=\"\",\"\",IFERROR(VLOOKUP($C59,Defaults!$AL$65:$AQ$82,6,FALSE),\"\"))","v":""},{"$f":"IF($C59=\"\",\"\",IFERROR(VLOOKUP($C59,Defaults!$AS$65:$AX$96,6,FALSE),\"\"))","v":""},{"$f":"IF($C59=\"\",\"\",IFERROR(VLOOKUP($C59,Defaults!$AZ$65:$BE$96,6,FALSE),\"\"))","v":""},{"$f":"IF($C59=\"\",\"\",IFERROR(VLOOKUP($C59,Defaults!$BG$65:$BL$96,6,FALSE),\"\"))","v":""},{"$f":"IF($C59=\"\",\"\",IFERROR(VLOOKUP($C59,Defaults!$BN$65:$BS$96,6,FALSE),\"\"))","v":""},{"$f":"IF($C59=\"\",\"\",IFERROR(VLOOKUP($C59,Defaults!$BU$65:$BZ$96,6,FALSE),\"\"))","v":""},{"$f":"\"\"","v":""},{"$f":"IF($C59=\"\",\"\",IFERROR(VLOOKUP($C59,Defaults!$CI:$CN,6,FALSE),\"\"))","v":""}]
[null,null,"Layby Weed Control",{"$f":"IF($Z$2=Defaults!$M$5,Cotton!D60,IF($Z$2=Defaults!$M$6,Corn!D60,IF($Z$2=Defaults!$M$7,Sorghum!D60,IF($Z$2=Defaults!$M$8,Soybean!D60,IF($Z$2=Defaults!$M$9,Rice!D60,IF($Z$2=Defaults!$M$10,Peanut!D60,IF($Z$2=Defaults!$M$11,Wheat!D60,IF($Z$2=Defaults!$M$12,Pasture!D60,FALSE))))))))","v":"Summer"},null,null,null,null,null,null,null,null,null,null,null,null,null,null,null,null,null,null,null,null,null,{"$f":"IF($Z$2=Defaults!$M$5,Cotton!B60,IF($Z$2=Defaults!$M$6,Corn!B60,IF($Z$2=Defaults!$M$7,Sorghum!B60,IF($Z$2=Defaults!$M$8,Soybean!B60,IF($Z$2=Defaults!$M$9,Rice!B60,IF($Z$2=Defaults!$M$10,Peanut!B60,IF($Z$2=Defaults!$M$11,Wheat!B60,IF($Z$2=Defaults!$M$12,Pasture!B60,\"\"))))))))","v":"Layby Weed Control"},null,null,null,null,null,null,null,null,null,null,null,null,null,null,null,null,null,null,null,null,null,null,null,null,"LAY",null,null,null,null,null,null,null,null,null,"LAY",null,null,null,null,null,null,null,null,null,"LAY"]
[null,null,"Post-Directed Sprayer 2",null,null,{"$f":"IF(L61=0,0,IF(C61=Defaults!$I$33,Implements!$AK$186,0))","v":11.81818181818182},{"$f":"IF($L61=0,0,IFERROR(VLOOKUP($C61,Implements!$X$181:$AN$188,15,FALSE),0))","v":8.36},{"$f":"IF($L61=0,0,IFERROR(VLOOKUP($C61,Implements!$X$181:$AN$188,16,FALSE),0))","v":15.253125000000001},{"$f":"IF($L61=0,0,IFERROR(VLOOKUP($C61,Implements!$X$181:$AN$188,17,FALSE),0))","v":94.744870901873355},{"$f":"IF(OR(C61=\"\",L61=\"\",L61=0)=TRUE,\"\",IF(OR(C61=Defaults!$I$25,C61=Defaults!$I$26)=TRUE,VLOOKUP(C61,Defaults!$I$24:$K$27,3,FALSE),ROUND(1/F61*(1*Inputs!$AA$13+($AI$7-1)*Inputs!$AA$15),2)+ROUND(G61*Inputs!$V$13/F61,2)+ROUND(H61/F61,2)+ROUND(I61/F61,2)))","v":12.05},{"$f":"IF(OR(C61=\"\",L61=\"\",L61=0)=TRUE,\"\",IF(OR(C61=Defaults!$I$25,C61=Defaults!$I$26)=TRUE,VLOOKUP(C61,Defaults!$I$24:$K$27,3,FALSE),ROUND(1/F61*(1*Inputs!$AA$13+($AI$7-1)*Inputs!$AA$15),2)+ROUND(G61*Inputs!$V$13/F61,2)+ROUND(H61/F61,2)+ROUND(I61/F61,2)))","v":12.05},1,{"$f":"AB61","v":1},{"$f":"IF(C61=\"\",0,IF(L61=0,0,IF(L61=\"\",\"\",J61*L61)))","v":12.05},null,null,{"$f":"IF(V61=0,0,IF(C61=Defaults!$I$33,Implements!$AK$175,0))","v":12.079363636363638},{"$f":"IF($V61=0,0,IFERROR(VLOOKUP($C61,Implements!$X$170:$AN$177,15,FALSE),0))","v":8.36},{"$f":"IF($V61=0,0,IFERROR(VLOOKUP($C61,Implements!$X$170:$AN$177,16,FALSE),0))","v":15.253125000000001},{"$f":"IF($V61=0,0,IFERROR(VLOOKUP($C61,Implements!$X$170:$AN$177,17,FALSE),0))","v":95.492787646628898},{"$f":"IF(OR(C61=\"\",V61=\"\",V61=0)=TRUE,\"\",IF(LEFT(C61,6)=\"Custom\",J61,ROUND(1/Q61*(1*Inputs!$AA$13+($AI$7-1)*Inputs!$AA$15),2)+ROUND(R61*Inputs!$V$13/Q61,2)+ROUND(S61/Q61,2)+ROUND(T61/Q61,2)))","v":11.84},{"$f":"+L61","v":1},{"$f":"IF(C61=\"\",\"\",IF(V61=0,0,IF(V61=\"\",\"\",U61*V61)))","v":11.84},-0.21000000000000085,null,{"$f":"IF($Z$2=Defaults!$M$5,Cotton!B61,IF($Z$2=Defaults!$M$6,Corn!B61,IF($Z$2=Defaults!$M$7,Sorghum!B61,IF($Z$2=Defaults!$M$8,Soybean!B61,IF($Z$2=Defaults!$M$9,Rice!B61,IF($Z$2=Defaults!$M$10,Peanut!B61,IF($Z$2=Defaults!$M$11,Wheat!B61,IF($Z$2=Defaults!$M$12,Pasture!B61,\"\"))))))))","v":"Post-Directed Sprayer 2"},null,{"$f":"IF(C61=\"\",\"\",IF($Z$2=Defaults!$M$12,VLOOKUP(C61,Defaults!$I$35:$J$37,2,FALSE),VLOOKUP(C61,Defaults!$I$30:$J$33,2,FALSE)))","v":1},0,{"$f":"IF(AB61=\"\",\"\",AB61*2)","v":2},null,null,{"$f":"+AB61","v":1},{"$f":"N61","v":12.05},{"$f":"ROUND(IFERROR(1/F61*(1*Inputs!$AA$13+($AI$7-1)*Inputs!$AA$15),0),2)*L61","v":1.5},{"$f":"ROUND(IFERROR(1/F61*G61*Inputs!$V$13,0),2)*L61","v":1.24},{"$f":"ROUND(IFERROR(1/F61*H61,0),2)*L61","v":1.29},{"$f":"ROUND(IFERROR(1/F61*I61,0),2)*L61","v":8.02},null,null,null,{"$f":"W61","v":11.84},{"$f":"ROUND(IFERROR(1/Q61*(1*Inputs!$AA$13+($AI$7-1)*Inputs!$AA$15),0),2)*V61","v":1.46},{"$f":"ROUND(IFERROR(1/Q61*R61*Inputs!$V$13,0),2)*V61","v":1.21},{"$f":"ROUND(IFERROR(1/Q61*S61,0),2)*V61","v":1.26},{"$f":"ROUND(IFERROR(1/Q61*T61,0),2)*V61","v":7.91},null,null,null,null,null,{"$f":"AZ11","v":"Cotton"},{"$f":"BA11","v":"Corn"},"Sorghum","Soybean","Rice","Peanut","Wheat","Est. Pasture or Hay",null,null,{"$f":"BJ11","v":"Cotton"},{"$f":"BK11","v":"Corn"},"Sorghum","Soybean","Rice","Peanut","Wheat","Est. Pasture or Hay",null,null,{"$f":"BT11","v":"Cotton"},{"$f":"BU11","v":"Corn"},"Sorghum","Soybean","Rice","Peanut","Wheat","Est. Pasture or Hay"]
[null,null,"Valor",null,"oz",null,null,null,null,4.38,{"$f":"IF(C62=\"\",\"\",ROUND(IF(E62=AE62,AF62,IF(AE62=$AC$2,AF62*VLOOKUP(E62,$AA$2:$AB$4,2,FALSE),IF(AE62=$AF$2,AF62*VLOOKUP(E62,$AD$2:$AE$3,2,FALSE),IF(AE62=$AI$2,AF62/VLOOKUP(E62,$AG$2:$AH$2,2,FALSE),IF(AE62=$AL$2,AF62*VLOOKUP(E62,$AJ$2:$AK$2,2,FALSE),IF(AE62=$AO$2,AF62/VLOOKUP(E62,$AM$2:$AN$2,2,FALSE),IF(AE62=$AR$2,AF62*VLOOKUP(E62,$AP$2:$AQ$3,2,FALSE)))))))),2))","v":4.38},2,{"$f":"AB62","v":2},{"$f":"IF(C62=\"\",0,IF(L62=0,0,IF(L62=\"\",\"\",J62*L62)))","v":8.76},null,null,{"$f":"IF(L62>0,ABS(V62-L62),\"\")","v":0.18199999999999994},null,null,null,{"$f":"J62","v":4.38},{"$f":"IF(AG62=0,0,AG62)","v":1.8180000000000001},{"$f":"IF(C62=\"\",\"\",IF(V62=0,0,IF(V62=\"\",\"\",U62*V62)))","v":7.9628399999999999},-0.79715999999999987,null,{"$f":"IF($Z$2=Defaults!$M$5,Cotton!B62,IF($Z$2=Defaults!$M$6,Corn!B62,IF($Z$2=Defaults!$M$7,Sorghum!B62,IF($Z$2=Defaults!$M$8,Soybean!B62,IF($Z$2=Defaults!$M$9,Rice!B62,IF($Z$2=Defaults!$M$10,Peanut!B62,IF($Z$2=Defaults!$M$11,Wheat!B62,IF($Z$2=Defaults!$M$12,Pasture!B62,\"\"))))))))","v":"Valor"},{"$f":"IF(C62=\"\",\"\",HLOOKUP($Z$2,$AZ$61:$BG$65,2,FALSE))","v":"oz"},{"$f":"IF(C62=\"\",\"\",HLOOKUP($Z$2,$BJ$61:$BQ$65,2,FALSE))","v":2},0,{"$f":"IF(C62=\"\",\"\",HLOOKUP($Z$2,$BT$61:$CA$65,2,FALSE))","v":2},{"$f":"IF(C62=\"\",\"\",VLOOKUP(C62,Defaults!$AH:$AJ,2,FALSE))","v":"oz"},{"$f":"IF(C62=\"\",\"\",ROUND(VLOOKUP(C62,Defaults!$AH:$AJ,3,FALSE),2))","v":4.38},{"$f":"IFERROR(IF(LEFT($C$61,6)=\"Custom\",L62,L62*(1-VLOOKUP($C$61,Implements!$A$159:$D$166,4,FALSE))),\"\")","v":1.8180000000000001},null,null,null,null,null,{"$f":"N62","v":8.76},null,{"$f":"N62","v":8.76},null,null,null,null,null,{"$f":"W62","v":7.9628399999999999},null,{"$f":"W62","v":7.9628399999999999},null,{"$f":"IF($C62=\"\",\"\",$C62)","v":"Valor"},{"$f":"IF($C62=\"\",\"\",VLOOKUP($C62,Defaults!$AL$85:$AQ$101,4,FALSE))","v":"oz"},{"$f":"\"\"","v":""},{"$f":"\"\"","v":""},{"$f":"\"\"","v":""},{"$f":"\"\"","v":""},{"$f":"\"\"","v":""},{"$f":"\"\"","v":""},{"$f":"\"\"","v":""},null,{"$f":"IF($C62=\"\",\"\",$C62)","v":"Valor"},{"$f":"IF($C62=\"\",\"\",IFERROR(VLOOKUP($C62,Defaults!$AL$85:$AQ$101,5,FALSE),\"\"))","v":2},{"$f":"\"\"","v":""},{"$f":"\"\"","v":""},{"$f":"\"\"","v":""},{"$f":"\"\"","v":""},{"$f":"\"\"","v":""},{"$f":"\"\"","v":""},{"$f":"\"\"","v":""},null,{"$f":"IF($C62=\"\",\"\",$C62)","v":"Valor"},{"$f":"IF($C62=\"\",\"\",IFERROR(VLOOKUP($C62,Defaults!$AL$85:$AQ$101,6,FALSE),\"\"))","v":2},{"$f":"\"\"","v":""},{"$f":"\"\"","v":""},{"$f":"\"\"","v":""},{"$f":"\"\"","v":""},{"$f":"\"\"","v":""},{"$f":"\"\"","v":""},{"$f":"\"\"","v":""}]
[null,null,"MSMA",null,"qt",null,null,null,null,6,{"$f":"IF(C63=\"\",\"\",ROUND(IF(E63=AE63,AF63,IF(AE63=$AC$2,AF63*VLOOKUP(E63,$AA$2:$AB$4,2,FALSE),IF(AE63=$AF$2,AF63*VLOOKUP(E63,$AD$2:$AE$3,2,FALSE),IF(AE63=$AI$2,AF63/VLOOKUP(E63,$AG$2:$AH$2,2,FALSE),IF(AE63=$AL$2,AF63*VLOOKUP(E63,$AJ$2:$AK$2,2,FALSE),IF(AE63=$AO$2,AF63/VLOOKUP(E63,$AM$2:$AN$2,2,FALSE),IF(AE63=$AR$2,AF63*VLOOKUP(E63,$AP$2:$AQ$3,2,FALSE)))))))),2))","v":6},1.5,{"$f":"AB63","v":1.5},{"$f":"IF(C63=\"\",0,IF(L63=0,0,IF(L63=\"\",\"\",J63*L63)))","v":9},null,null,{"$f":"IF(L63>0,ABS(V63-L63),\"\")","v":0.13649999999999984},null,null,null,{"$f":"J63","v":6},{"$f":"IF(AG63=0,0,AG63)","v":1.3635000000000002},{"$f":"IF(C63=\"\",\"\",IF(V63=0,0,IF(V63=\"\",\"\",U63*V63)))","v":8.1810000000000009},-0.81899999999999906,null,{"$f":"IF($Z$2=Defaults!$M$5,Cotton!B63,IF($Z$2=Defaults!$M$6,Corn!B63,IF($Z$2=Defaults!$M$7,Sorghum!B63,IF($Z$2=Defaults!$M$8,Soybean!B63,IF($Z$2=Defaults!$M$9,Rice!B63,IF($Z$2=Defaults!$M$10,Peanut!B63,IF($Z$2=Defaults!$M$11,Wheat!B63,IF($Z$2=Defaults!$M$12,Pasture!B63,\"\"))))))))","v":"MSMA"},{"$f":"IF(C63=\"\",\"\",HLOOKUP($Z$2,$AZ$61:$BG$65,3,FALSE))","v":"qt"},{"$f":"IF(C63=\"\",\"\",HLOOKUP($Z$2,$BJ$61:$BQ$65,3,FALSE))","v":1.5},0,{"$f":"IF(C63=\"\",\"\",HLOOKUP($Z$2,$BT$61:$CA$65,3,FALSE))","v":1.5},{"$f":"IF(C63=\"\",\"\",VLOOKUP(C63,Defaults!$AH:$AJ,2,FALSE))","v":"gal"},{"$f":"IF(C63=\"\",\"\",ROUND(VLOOKUP(C63,Defaults!$AH:$AJ,3,FALSE),2))","v":24},{"$f":"IFERROR(IF(LEFT($C$61,6)=\"Custom\",L63,L63*(1-VLOOKUP($C$61,Implements!$A$159:$D$166,4,FALSE))),\"\")","v":1.3635000000000002},null,null,null,null,null,{"$f":"N63","v":9},null,{"$f":"N63","v":9},null,null,null,null,null,{"$f":"W63","v":8.1810000000000009},null,{"$f":"W63","v":8.1810000000000009},null,{"$f":"IF($C63=\"\",\"\",$C63)","v":"MSMA"},{"$f":"IF($C63=\"\",\"\",VLOOKUP($C63,Defaults!$AL$85:$AQ$101,4,FALSE))","v":"qt"},{"$f":"\"\"","v":""},{"$f":"\"\"","v":""},{"$f":"\"\"","v":""},{"$f":"\"\"","v":""},{"$f":"\"\"","v":""},{"$f":"\"\"","v":""},{"$f":"\"\"","v":""},null,{"$f":"IF($C63=\"\",\"\",$C63)","v":"MSMA"},{"$f":"IF($C63=\"\",\"\",IFERROR(VLOOKUP($C63,Defaults!$AL$85:$AQ$101,5,FALSE),\"\"))","v":1.5},{"$f":"\"\"","v":""},{"$f":"\"\"","v":""},{"$f":"\"\"","v":""},{"$f":"\"\"","v":""},{"$f":"\"\"","v":""},{"$f":"\"\"","v":""},{"$f":"\"\"","v":""},null,{"$f":"IF($C63=\"\",\"\",$C63)","v":"MSMA"},{"$f":"IF($C63=\"\",\"\",IFERROR(VLOOKUP($C63,Defaults!$AL$85:$AQ$101,6,FALSE),\"\"))","v":1.5},{"$f":"\"\"","v":""},{"$f":"\"\"","v":""},{"$f":"\"\"","v":""},{"$f":"\"\"","v":""},{"$f":"\"\"","v":""},{"$f":"\"\"","v":""},{"$f":"\"\"","v":""}]
[null,null,null,null,null,null,null,null,null,null,{"$f":"IF(C64=\"\",\"\",ROUND(IF(E64=AE64,AF64,IF(AE64=$AC$2,AF64*VLOOKUP(E64,$AA$2:$AB$4,2,FALSE),IF(AE64=$AF$2,AF64*VLOOKUP(E64,$AD$2:$AE$3,2,FALSE),IF(AE64=$AI$2,AF64/VLOOKUP(E64,$AG$2:$AH$2,2,FALSE),IF(AE64=$AL$2,AF64*VLOOKUP(E64,$AJ$2:$AK$2,2,FALSE),IF(AE64=$AO$2,AF64/VLOOKUP(E64,$AM$2:$AN$2,2,FALSE),IF(AE64=$AR$2,AF64*VLOOKUP(E64,$AP$2:$AQ$3,2,FALSE)))))))),2))","v":""},null,{"$f":"AB64","v":""},{"$f":"IF(C64=\"\",0,IF(L64=0,0,IF(L64=\"\",\"\",J64*L64)))","v":0},null,null,{"$f":"IF(L64>0,ABS(V64-L64),\"\")","v":""},null,null,null,{"$f":"J64","v":0},{"$f":"IF(AG64=0,0,AG64)","v":0},{"$f":"IF(C64=\"\",\"\",IF(V64=0,0,IF(V64=\"\",\"\",U64*V64)))","v":""},"",null,{"$f":"IF($Z$2=Defaults!$M$5,Cotton!B64,IF($Z$2=Defaults!$M$6,Corn!B64,IF($Z$2=Defaults!$M$7,Sorghum!B64,IF($Z$2=Defaults!$M$8,Soybean!B64,IF($Z$2=Defaults!$M$9,Rice!B64,IF($Z$2=Defaults!$M$10,Peanut!B64,IF($Z$2=Defaults!$M$11,Wheat!B64,IF($Z$2=Defaults!$M$12,Pasture!B64,\"\"))))))))","v":""},{"$f":"IF(C64=\"\",\"\",HLOOKUP($Z$2,$AZ$61:$BG$65,4,FALSE))","v":""},{"$f":"IF(C64=\"\",\"\",HLOOKUP($Z$2,$BJ$61:$BQ$65,4,FALSE))","v":""},0,{"$f":"IF(C64=\"\",\"\",HLOOKUP($Z$2,$BT$61:$CA$65,4,FALSE))","v":""},{"$f":"IF(C64=\"\",\"\",VLOOKUP(C64,Defaults!$AH:$AJ,2,FALSE))","v":""},{"$f":"IF(C64=\"\",\"\",ROUND(VLOOKUP(C64,Defaults!$AH:$AJ,3,FALSE),2))","v":""},{"$f":"IFERROR(IF(LEFT($C$61,6)=\"Custom\",L64,L64*(1-VLOOKUP($C$61,Implements!$A$159:$D$166,4,FALSE))),\"\")","v":0},null,null,null,null,null,{"$f":"N64","v":0},null,{"$f":"N64","v":0},null,null,null,null,null,{"$f":"W64","v":""},null,{"$f":"W64","v":""},null,{"$f":"IF($C64=\"\",\"\",$C64)","v":""},{"$f":"IF($C64=\"\",\"\",VLOOKUP($C64,Defaults!$AL$85:$AQ$101,4,FALSE))","v":""},{"$f":"\"\"","v":""},{"$f":"\"\"","v":""},{"$f":"\"\"","v":""},{"$f":"\"\"","v":""},{"$f":"\"\"","v":""},{"$f":"\"\"","v":""},{"$f":"\"\"","v":""},null,{"$f":"IF($C64=\"\",\"\",$C64)","v":""},{"$f":"IF($C64=\"\",\"\",IFERROR(VLOOKUP($C64,Defaults!$AL$85:$AQ$101,5,FALSE),\"\"))","v":""},{"$f":"\"\"","v":""},{"$f":"\"\"","v":""},{"$f":"\"\"","v":""},{"$f":"\"\"","v":""},{"$f":"\"\"","v":""},{"$f":"\"\"","v":""},{"$f":"\"\"","v":""},null,{"$f":"IF($C64=\"\",\"\",$C64)","v":""},{"$f":"IF($C64=\"\",\"\",IFERROR(VLOOKUP($C64,Defaults!$AL$85:$AQ$101,6,FALSE),\"\"))","v":""},{"$f":"\"\"","v":""},{"$f":"\"\"","v":""},{"$f":"\"\"","v":""},{"$f":"\"\"","v":""},{"$f":"\"\"","v":""},{"$f":"\"\"","v":""},{"$f":"\"\"","v":""}]
[null,null,null,null,null,null,null,null,null,null,{"$f":"IF(C65=\"\",\"\",ROUND(IF(E65=AE65,AF65,IF(AE65=$AC$2,AF65*VLOOKUP(E65,$AA$2:$AB$4,2,FALSE),IF(AE65=$AF$2,AF65*VLOOKUP(E65,$AD$2:$AE$3,2,FALSE),IF(AE65=$AI$2,AF65/VLOOKUP(E65,$AG$2:$AH$2,2,FALSE),IF(AE65=$AL$2,AF65*VLOOKUP(E65,$AJ$2:$AK$2,2,FALSE),IF(AE65=$AO$2,AF65/VLOOKUP(E65,$AM$2:$AN$2,2,FALSE),IF(AE65=$AR$2,AF65*VLOOKUP(E65,$AP$2:$AQ$3,2,FALSE)))))))),2))","v":""},null,{"$f":"AB65","v":""},{"$f":"IF(C65=\"\",0,IF(L65=0,0,IF(L65=\"\",\"\",J65*L65)))","v":0},null,null,{"$f":"IF(L65>0,ABS(V65-L65),\"\")","v":""},null,null,null,{"$f":"J65","v":0},{"$f":"IF(AG65=0,0,AG65)","v":0},{"$f":"IF(C65=\"\",\"\",IF(V65=0,0,IF(V65=\"\",\"\",U65*V65)))","v":""},"",null,{"$f":"IF($Z$2=Defaults!$M$5,Cotton!B65,IF($Z$2=Defaults!$M$6,Corn!B65,IF($Z$2=Defaults!$M$7,Sorghum!B65,IF($Z$2=Defaults!$M$8,Soybean!B65,IF($Z$2=Defaults!$M$9,Rice!B65,IF($Z$2=Defaults!$M$10,Peanut!B65,IF($Z$2=Defaults!$M$11,Wheat!B65,IF($Z$2=Defaults!$M$12,Pasture!B65,\"\"))))))))","v":""},{"$f":"IF(C65=\"\",\"\",HLOOKUP($Z$2,$AZ$61:$BG$65,5,FALSE))","v":""},{"$f":"IF(C65=\"\",\"\",HLOOKUP($Z$2,$BJ$61:$BQ$65,5,FALSE))","v":""},0,{"$f":"IF(C65=\"\",\"\",HLOOKUP($Z$2,$BT$61:$CA$65,5,FALSE))","v":""},{"$f":"IF(C65=\"\",\"\",VLOOKUP(C65,Defaults!$AH:$AJ,2,FALSE))","v":""},{"$f":"IF(C65=\"\",\"\",ROUND(VLOOKUP(C65,Defaults!$AH:$AJ,3,FALSE),2))","v":""},{"$f":"IFERROR(IF(LEFT($C$61,6)=\"Custom\",L65,L65*(1-VLOOKUP($C$61,Implements!$A$159:$D$166,4,FALSE))),\"\")","v":0},null,null,null,null,null,null,null,null,null,null,null,null,null,{"$f":"W65","v":""},null,{"$f":"W65","v":""},null,{"$f":"IF($C65=\"\",\"\",$C65)","v":""},{"$f":"IF($C65=\"\",\"\",VLOOKUP($C65,Defaults!$AL$85:$AQ$101,4,FALSE))","v":""},{"$f":"\"\"","v":""},{"$f":"\"\"","v":""},{"$f":"\"\"","v":""},{"$f":"\"\"","v":""},{"$f":"\"\"","v":""},{"$f":"\"\"","v":""},{"$f":"\"\"","v":""},null,{"$f":"IF($C65=\"\",\"\",$C65)","v":""},{"$f":"IF($C65=\"\",\"\",IFERROR(VLOOKUP($C65,Defaults!$AL$85:$AQ$101,5,FALSE),\"\"))","v":""},{"$f":"\"\"","v":""},{"$f":"\"\"","v":""},{"$f":"\"\"","v":""},{"$f":"\"\"","v":""},{"$f":"\"\"","v":""},{"$f":"\"\"","v":""},{"$f":"\"\"","v":""},null,{"$f":"IF($C65=\"\",\"\",$C65)","v":""},{"$f":"IF($C65=\"\",\"\",IFERROR(VLOOKUP($C65,Defaults!$AL$85:$AQ$101,6,FALSE),\"\"))","v":""},{"$f":"\"\"","v":""},{"$f":"\"\"","v":""},{"$f":"\"\"","v":""},{"$f":"\"\"","v":""},{"$f":"\"\"","v":""},{"$f":"\"\"","v":""},{"$f":"\"\"","v":""}]
[]
[null,null,"Benchmark Operating Interest ($/acre):",null,null,null,null,null,null,null,null,null,null,{"$f":"((SUM(N13:N16)+SUM(N18:N21)+SUM(N23:N29)+SUM(N31:N32)+SUM(N33:N38)+SUM(N39:N43)+SUM(N44:N46)+SUM(N48:N53)+SUM(N55:N59))-(IFERROR(I13/F13,0)*L13+IFERROR(I18/F18,0)*L18+IFERROR(I23/F23,0)*L23+IFERROR(I31/F31,0)*L31+IFERROR(I33/F33,0)*L33+IFERROR(I39/F39,0)*L39+IFERROR(I44/F44,0)*L44+IFERROR(I48/F48,0)*L48+IFERROR(I55/F55,0)*L55))/2*Inputs!$V$17","v":9.9286915211646534},null,null,"Change in Operating Interest ($/acre):",null,null,null,null,null,{"$f":"((SUM(W13:W16)+SUM(W18:W21)+SUM(W23:W29)+SUM(W31:W32)+SUM(W33:W38)+SUM(W39:W43)+SUM(W44:W46)+SUM(W48:W53)+SUM(W55:W59))-(IFERROR(T13/Q13,0)*V13+IFERROR(T18/Q18,0)*V18+IFERROR(T23/Q23,0)*V23+IFERROR(T31/Q31,0)*V31+IFERROR(T33/Q33,0)*V33+IFERROR(T39/Q39,0)*V39+IFERROR(T44/Q44,0)*V44+IFERROR(T48/Q48,0)*V48+IFERROR(T55/Q55,0)*V55))/2*Inputs!$V$17","v":8.7644707626903458},{"$f":"IF(C67=\"\",\"\",W67-N67)","v":-1.1642207584743076},null,null,null,null,null,null,null,null,null,{"$f":"SUM(AH13:AH65)","v":85.97},{"$f":"SUM(AI13:AI65)","v":8.0500000000000007},{"$f":"SUM(AJ13:AJ65)","v":6.67},{"$f":"SUM(AK13:AK65)","v":16.52},{"$f":"SUM(AL13:AL65)","v":54.730000000000004},{"$f":"SUM(AM13:AM65)+N67","v":418.5286915211646},{"$f":"AN32","v":120.03},{"$f":"SUM(AO13:AO65)","v":288.57},84.48,7.82,6.4500000000000011,16.240000000000002,53.97,{"$f":"SUM(AU13:AU65)+W67","v":367.33819776269036},{"$f":"AV32","v":117.20929500000001},{"$f":"SUM(AW13:AW65)","v":241.36443199999997}]
[null,null,"Benchmark Total Specified Expenses ($/acre):",null,null,null,null,null,null,null,null,null,null,{"$f":"SUM(N13:N67)","v":504.49869152116463},null,null,"Change in Total Specified Expenses:",null,null,null,null,null,{"$f":"SUM(W13:W67)","v":451.81819776269026},{"$f":"IF(C68=\"\",\"\",W68-N68)","v":-52.68049375847437},null,null,null,null,null,null,null,null,null,{"$f":"'Output Comparison'!B47","v":"Input Use Savings ($/acre)"},null,null,{"$f":"(AU67)-(AM67)","v":-51.190493758474247},{"$f":"'Output Comparison'!B53","v":"Equipment Efficiency Change ($/acre)"},null,null,{"$f":"(AP67)-(AH67)","v":-1.4899999999999949}]
[null,null,null,null,null,null,null,null,null,null,null,null,null,null,null,null,null,null,null,null,null,null,null,null,null,null,null,null,null,null,null,null,null,{"$f":"'Output Comparison'!B50","v":"Seed Cost Change ($/acre)"},null,null,{"$f":"(AV67)-(AN67)","v":-2.8207049999999896},{"$f":"'Output Comparison'!B56","v":"Labor Cost Change ($/acre)"},null,null,{"$f":"(AQ67)-(AI67)","v":-0.23000000000000043}]
[null,null,null,null,null,null,null,null,null,null,null,null,null,null,null,null,null,null,null,null,null,null,null,null,null,null,null,null,null,null,null,null,null,{"$f":"'Output Comparison'!B51","v":"Chemical & Fertilizer Cost Change ($/acre)"},null,null,{"$f":"(AW67)-(AO67)","v":-47.205568000000028},{"$f":"'Output Comparison'!B57","v":"Fuel Cost Change ($/acre)"},null,null,{"$f":"(AR67)-(AJ67)","v":-0.21999999999999886}]
[null,null,null,null,null,null,null,null,null,null,null,null,null,null,null,null,null,null,null,null,null,null,null,null,null,null,null,null,null,null,null,null,null,null,null,null,null,{"$f":"'Output Comparison'!B58","v":"R&M Cost Change ($/acre)"},null,null,{"$f":"(AS67)-(AK67)","v":-0.27999999999999758}]
[null,null,null,null,null,null,null,null,null,null,null,null,null,null,null,null,null,null,null,null,null,null,null,null,null,null,null,null,null,null,null,null,null,null,null,null,null,{"$f":"'Output Comparison'!B59","v":"Capital Recovery Cost Change ($/acre)"},null,null,{"$f":"(AT67)-(AL67)","v":-0.76000000000000512}]
[]
[null,"Disclaimer: The information provided within represents estimates that are a result of a set of complex calculations that are described in more detail in the user manual. Changes in parameter values and its implications on returns are estimates and the user should use their own reasonable judgment to reflect whether the direction of change in returns is appropriate before acting on the results. As such, this software is provided ‘as is’ and without warranties as to performance of merchantability. Further, statements may have been made to you about this software. Any such statements do not constitute warranties and shall not be relied on by the user in deciding whether to use the program or act on its results. This program is provided without any expressed or implied warranties whatsoever. Because the diversity of conditions and hardware under which this program may be used, no warranty of merchantability or warranty of fitness for a particular purpose is offered. The user is advised to test the program thoroughly before relying on it. The user assumes the entire risk of using the program. The University of Arkansas will not be liable for any claim or damage brought against the user by any third party, nor will the University of Arkansas be liable for any consequential, indirect or special damages suffered by the user as a result of the software."]

{"sheet":"Crop 2","index":4,"n_rows":74,"n_cols":79,"rows_kept":74,"cut":false,"hidden":false,"merged":[[73,1,73,23],[5,2,9,2],[9,5,9,14],[0,26,0,43],[0,44,0,46],[4,1,4,23],[4,33,5,34],[0,0,2,24],[9,15,9,23]]}
[{"$f":"CONCATENATE($Z$2,\" Production Practices \",\"for \",Inputs!$J$5)","v":"Soybean Production Practices for Circle C Farms"},null,null,null,null,null,null,null,null,null,null,null,null,null,null,null,null,null,null,null,null,null,null,null,null,true,"Conversion Factors",null,null,null,null,null,null,null,null,null,null,null,null,null,null,null,null,null,"Data Validation Lookups",null,null,"Planting Operation Check"]
[null,null,null,null,null,null,null,null,null,null,null,null,null,null,null,null,null,null,null,null,null,null,null,null,null,"Soybean",{"$f":"Defaults!Q15","v":"qt"},0.25,{"$f":"Defaults!Q19","v":"gal"},{"$f":"Defaults!Q17","v":"oz"},6.25E-2,{"$f":"Defaults!Q20","v":"lb"},{"$f":"Defaults!Q20","v":"lb"},112,{"$f":"Defaults!Q18","v":"cwt"},{"$f":"Defaults!Q15","v":"qt"},0.5,{"$f":"Defaults!Q16","v":"pt"},{"$f":"Defaults!Q20","v":"lb"},2000,{"$f":"Defaults!Q21","v":"ton"},{"$f":"Defaults!Q15","v":"qt"},3.125E-2,{"$f":"Defaults!Q17","v":"oz"},"Operations","Planter\nOperations","Herbicides",{"$f":"IF($AT$3=Defaults!$I$3,Defaults!I7,IF($AT$3=Defaults!$I$11,Defaults!I15,IF($AT$3=Defaults!$I$17,Defaults!I21,\"\")))","v":"No-Till Grain Drill 1"}]
[null,null,null,null,null,null,null,null,null,null,null,null,null,null,null,null,null,null,null,null,null,null,null,null,null,false,{"$f":"Defaults!Q16","v":"pt"},0.125,null,false,8.9285700000000003E-3,null,null,null,null,null,null,null,null,null,null,{"$f":"Defaults!Q16","v":"pt"},6.25E-2,null,{"$f":"IF(OR($Z$2=Defaults!$M$5,$Z$2=Defaults!$M$6,$Z$2=Defaults!$M$7,$Z$2=Defaults!$M$8,$Z$2=Defaults!$M$9,$Z$2=Defaults!$M$10)=TRUE,Defaults!$I$38,FALSE)","v":"BudgetInsect"},{"$f":"IF(OR($Z$2=Defaults!$M$5,$Z$2=Defaults!$M$6,$Z$2=Defaults!$M$7,$Z$2=Defaults!$M$10)=TRUE,Defaults!$I$17,IF(OR($Z$2=Defaults!$M$9,$Z$2=Defaults!$M$11,$Z$2=Defaults!$M$12)=TRUE,Defaults!$I$11,Defaults!$I$3))","v":"BudgetPlantSoy"},{"$f":"IF(OR(C13=\"\",L13=\"\",L13=0)=TRUE,FALSE,IF($Z$2=Defaults!$M$5,Defaults!$AL$2,IF($Z$2=Defaults!$M$6,Defaults!$AS$2,IF($Z$2=Defaults!$M$7,Defaults!$AZ$2,IF($Z$2=Defaults!$M$8,Defaults!$BG$2,IF($Z$2=Defaults!$M$9,Defaults!$BN$2,IF($Z$2=Defaults!$M$12,Defaults!$CI$2,FALSE)))))))","v":"SoybeanBD"},{"$f":"IF($AT$3=Defaults!$I$3,Defaults!I8,IF($AT$3=Defaults!$I$11,Defaults!I16,IF($AT$3=Defaults!$I$17,Defaults!I22,\"\")))","v":""}]
[null,null,null,null,null,null,null,null,null,null,null,null,null,null,null,null,null,null,null,null,null,null,null,null,null,"Benchmark\n(No Tractor Guidance)",{"$f":"Defaults!Q17","v":"oz"},7.8125E-3,null,null,null,null,null,null,null,null,null,null,null,null,null,null,null,null,{"$f":"IF(OR(C33=\"\",L33=\"\",L33=0)=TRUE,FALSE,IF($AS$3=FALSE,FALSE,IF(OR($Z$2=Defaults!$M$5,$Z$2=Defaults!$M$6,$Z$2=Defaults!$M$7,$Z$2=Defaults!$M$8,$Z$2=Defaults!$M$9,$Z$2=Defaults!$M$10)=TRUE,Defaults!$T$20)))","v":"Insecticide"},{"$f":"IF($C$31=\"\",\"\",IF($AT$3=Defaults!$I$3,VLOOKUP($C$31,Defaults!$I$4:$K$10,3,FALSE),IF($AT$3=Defaults!$I$11,VLOOKUP($C$31,Defaults!$I$12:$K$16,3,FALSE),IF($AT$3=Defaults!$I$17,VLOOKUP($C$31,Defaults!$I$18:$K$22,3,FALSE)))))","v":""},{"$f":"IF(OR(C18=\"\",L18=\"\",L18=0)=TRUE,FALSE,IF($Z$2=Defaults!$M$5,Defaults!$AL$18,IF($Z$2=Defaults!$M$7,Defaults!$AZ$18,IF($Z$2=Defaults!$M$8,Defaults!$BG$18,IF($Z$2=Defaults!$M$9,Defaults!$BN$18,IF($Z$2=Defaults!$M$10,Defaults!$BU$18,IF($Z$2=Defaults!$M$12,Defaults!$CI$2,FALSE)))))))","v":false},{"$f":"IF($AT$3=Defaults!$I$3,Defaults!$I$7,IF($AT$3=Defaults!$I$11,Defaults!$I$15,\"\"))","v":"No-Till Grain Drill 1"}]
[null,{"$f":"IF(Z1=FALSE,\"\",\"Modify Green Cells Below\")","v":"Modify Green Cells Below"},null,null,null,null,null,null,null,null,null,null,null,null,null,null,null,null,null,null,null,null,null,null,null,"Adjusted for\nTractor Guidance","Partial Returns ($/acre):",null,null,null,null,null,null,{"$f":"Defaults!M25","v":"Labor Multiplier by Operation"},null,null,null,null,null,null,null,null,null,null,{"$f":"IF($Z$2=Defaults!$M$5,Defaults!$I$52,IF($Z$2=Defaults!$M$10,Defaults!$I$43,IF($Z$2=Defaults!$M$12,Defaults!$I$48,FALSE)))","v":false},null,{"$f":"IF(OR(C48=\"\",L48=\"\",L48=0)=TRUE,FALSE,IF($Z$2=Defaults!$M$5,Defaults!$AL$36,IF($Z$2=Defaults!$M$6,Defaults!$AS$36,IF($Z$2=Defaults!$M$7,Defaults!$AZ$36,IF($Z$2=Defaults!$M$8,Defaults!$BG$36,IF($Z$2=Defaults!$M$9,Defaults!$BN$36,IF($Z$2=Defaults!$M$10,Defaults!$BU$36,IF($Z$2=Defaults!$M$11,Defaults!$CB$36,FALSE))))))))","v":false},{"$f":"IF($AT$3=Defaults!$I$3,Defaults!$I$8,IF($AT$3=Defaults!$I$11,Defaults!$I$16,\"\"))","v":""}]
[null,null,{"$f":"IF($Z$1=TRUE,\"Modify budget specifications\nusing the green\ncells provided\",\"\")","v":"Modify budget specifications\nusing the green\ncells provided"},null,null,null,null,null,null,null,null,null,null,null,null,null,null,null,null,null,{"$f":"F10","v":"Benchmark without Tractor Guidance"},null,null,"Adjusted for \nTractor Guidance",null,"Cost Savings ($/acre):",{"$f":"\"/acre\"","v":"/acre"},null,null,null,null,null,null,null,null,null,null,null,null,null,null,null,null,null,{"$f":"IF(OR(C39=\"\",L39=\"\",L39=0)=TRUE,FALSE,IF($Z$2=Defaults!$M$5,Defaults!$T$37,IF($Z$2=Defaults!$M$10,Defaults!$T$32,IF($Z$2=Defaults!$M$12,Defaults!$T$16,FALSE))))","v":false},null,{"$f":"IF(OR(C55=\"\",L55=\"\",L55=0)=TRUE,FALSE,IF($Z$2=Defaults!$M$5,Defaults!$AL$64,IF($Z$2=Defaults!$M$6,Defaults!$AS$64,IF($Z$2=Defaults!$M$7,Defaults!$AZ$64,IF($Z$2=Defaults!$M$8,Defaults!$BG$64,IF($Z$2=Defaults!$M$9,Defaults!$BN$64,IF($Z$2=Defaults!$M$10,Defaults!$BU$64,FALSE)))))))","v":false},{"$f":"IF($AT$3=Defaults!$I$3,Defaults!$I$9,\"\")","v":"Row Planter 1"}]
[null,null,null,null,null,null,null,null,null,null,null,null,null,null,null,null,{"$f":"IF($Z$2=Defaults!$M$12,\"Efficiency Gains ($/acre):\",AA5)","v":"Partial Returns ($/acre):"},null,null,null,{"$f":"IF($Z$2=Defaults!$M$12,\"\",IFERROR(+IF($Z$2=Defaults!$M$12,\"\",U8*Inputs!$K$15)-N68,0))","v":398.31511873277464},null,null,{"$f":"IF($Z$2=Defaults!$M$12,-AO68,IFERROR(+X8*Inputs!$K$15-W68,0))","v":432.28586214191523},null,{"$f":"CONCATENATE(Implements!$B$36,\" Trips\")","v":"Over-the-Top Sprayer Trips"},{"$f":"(IF(C13=Defaults!$I$27,L13,0)+IF(C18=Defaults!$I$27,L18,0)+IF(C33=Defaults!$I$41,L33,0)+IF(OR(C39=Defaults!$I$46,C39=Defaults!$I$55)=TRUE,L39,0)+IF(OR(C44=Defaults!$I$60,C44=Defaults!$I$65)=TRUE,L44,0)+IF(C48=Defaults!$I$27,L48,0)+IF(C55=Defaults!$I$27,L55,0))","v":3},{"$f":"CONCATENATE(Implements!$B$39,\" Trips\")","v":"Post-Directed Sprayer Trips"},{"$f":"IF(C61=Defaults!$I$33,L61,0)","v":0},{"$f":"CONCATENATE(Implements!$B$41,\" Trips\")","v":"Fertilizer Spreader Trips"},{"$f":"IF(C23=Defaults!$I$37,L23,0)+IF(C39=Defaults!$I$37,L39,0)","v":1},{"$f":"CONCATENATE(Implements!$B$42,\" Trips\")","v":"Manure Spreader Trips"},{"$f":"IF(C39=Defaults!$I$51,L39,0)","v":0},{"$f":"Defaults!M26","v":"Field Preparation"},{"$f":"Defaults!N26","v":1.5},null,null,null,null,null,null,null,null,null,{"$f":"IF($Z$2=Defaults!$M$5,Defaults!$I$57,IF($Z$2=Defaults!$M$8,Defaults!$I$62,FALSE))","v":"BudgetFung"},null,{"$f":"IF(OR(C61=\"\",L61=\"\",L61=0)=TRUE,FALSE,IF($Z$2=Defaults!$M$5,Defaults!$AL$84,FALSE))","v":false},{"$f":"IF($AT$3=Defaults!$I$3,Defaults!$I$10,\"\")","v":""}]
[null,null,null,null,null,null,null,null,null,null,null,null,null,null,null,null,{"$f":"IF($Z$2=Defaults!M12,$Z$6,\"Yield (units/acre):\")","v":"Yield (units/acre):"},null,null,null,{"$f":"IF($Z$2=Defaults!$M$12,\"\",ROUND(VLOOKUP($Z$2,Inputs!$B$13:$F$17,5,FALSE),IF($Z$2=Defaults!$M$10,2,0)))","v":60},null,null,{"$f":"IF($Z$2=Defaults!$M$12,-AK68,ROUND(VLOOKUP(Z2,Inputs!$B$13:$F$17,5,FALSE)*(1+Implements!$F$159+Implements!$F$160+Implements!$F$161+Implements!$F$162+Implements!$F$163+Implements!$F$164+Implements!$F$165),IF($Z$2=Defaults!$M$10,2,0)))","v":62},null,{"$f":"CONCATENATE(Implements!$B$36,\" Trips\")","v":"Over-the-Top Sprayer Trips"},{"$f":"(IF(C13=Defaults!$I$27,V13,0)+IF(C18=Defaults!$I$27,V18,0)+IF(C33=Defaults!$I$41,V33,0)+IF(OR(C39=Defaults!$I$46,C39=Defaults!$I$55)=TRUE,V39,0)+IF(OR(C44=Defaults!$I$60,C44=Defaults!$I$65)=TRUE,V44,0)+IF(C48=Defaults!$I$27,V48,0)+IF(C55=Defaults!$I$27,V55,0))","v":3},{"$f":"CONCATENATE(Implements!$B$39,\" Trips\")","v":"Post-Directed Sprayer Trips"},{"$f":"IF(C61=Defaults!$I$33,V61,0)","v":0},{"$f":"CONCATENATE(Implements!$B$41,\" Trips\")","v":"Fertilizer Spreader Trips"},{"$f":"IF(C23=Defaults!$I$37,V23,0)+IF(C39=Defaults!$I$37,V39,0)","v":1},{"$f":"CONCATENATE(Implements!$B$42,\" Trips\")","v":"Manure Spreader Trips"},{"$f":"IF(C39=Defaults!$I$51,V39,0)","v":0},{"$f":"Defaults!M27","v":"Planting"},{"$f":"Defaults!N27","v":1.5},null,null,null,null,null,null,null,null,null,{"$f":"IF(OR(C44=\"\",L44=\"\",L44=0)=TRUE,FALSE,IF($Z$2=Defaults!$M$5,Defaults!$T$44,IF($Z$2=Defaults!$M$8,Defaults!$T$49,FALSE)))","v":"Fungicide"},null,null,{"$f":"Defaults!$I$5","v":"Custom Ground Seeding"}]
[null,null,null,null,null,null,null,null,null,null,null,null,null,null,null,null,null,null,null,null,null,null,null,null,null,{"$f":"IF($Z$2=Defaults!$M$5,5,IF($Z$2=Defaults!$M$6,6,IF($Z$2=Defaults!$M$7,7,IF($Z$2=Defaults!$M$8,8,IF($Z$2=Defaults!$M$9,9,IF($Z$2=Defaults!$M$10,10,IF($Z$2=Defaults!$M$11,11,IF($Z$2=Defaults!$M$12,12))))))))","v":8},null,null,null,null,null,null,null,{"$f":"Defaults!M28","v":"Fertilizer"},{"$f":"Defaults!N28","v":1.5},null,null,null,null,null,null,null,null,null,null,null,null,{"$f":"Defaults!$I$6","v":"Custom Air Seeding"}]
[null,null,null,null,null,"Benchmark without Tractor Guidance",null,null,null,null,null,null,null,null,null,"Adjusted for Tractor Guidance",null,null,null,null,null,null,null,null,null,true,null,null,null,null,null,null,null,{"$f":"Defaults!M29","v":"Post-Plant Field Work"},{"$f":"Defaults!N29","v":1.5},null,{"$f":"ROUND(SUM(IFERROR(1/F13*G13*L13,0)+IFERROR(1/F18*G18*L18,0)+IFERROR(1/F23*G23*L23,0)+IFERROR(1/F31*G31*L31,0)+IFERROR(1/F33*G33*L33,0)+IFERROR(1/F39*G39*L39,0)+IFERROR(1/F44*G44*L44,0)+IFERROR(1/F48*G48*L48,0)+IFERROR(1/F55*G55*L55,0)+IFERROR(1/F61*G61*L61,0)),2)","v":1.72},null,null,null,null,null,null,{"$f":"ROUND(SUM(IFERROR(1/Q13*R13*V13,0)+IFERROR(1/Q18*R18*V18,0)+IFERROR(1/Q23*R23*V23,0)+IFERROR(1/Q31*R31*V31,0)+IFERROR(1/Q33*R33*V33,0)+IFERROR(1/Q39*R39*V39,0)+IFERROR(1/Q44*R44*V44,0)+IFERROR(1/Q48*R48*V48,0)+IFERROR(1/Q55*R55*V55,0)+IFERROR(1/Q61*R61*V61,0)),2)","v":1.69}]
[null,null,"Operation/\n   Operating Input","Timing","Unit","Performance Rate\n(acres/hour)","Fuel\n(gal/hr)","R&M\n($/hr)","Capital Recovery\n($/hr)","\nCost/Unit\n($/acre)","Default\nCost/Unit\n($/acre)","Quantity of\nTrips/Inputs","Default\nQuantity of Trips/Inputs","Total Cost\n($/acre)",null,null,"Performance Rate (acres/hour)\nChange in Quantity (units/acre)","Fuel\n(gal/hr)","R&M\n($/hr)","Capital Recovery\n($/hr)","Cost ($/acre)\nCost ($/unit)","Quantity of\nTrips/Inputs","Total Cost\n($/acre)","Change in Cost\n($/acre)",null,"Operation\nQuantity","Application\nUnit","Application\nQuantity","Application\nMIN","Application\nMAX","Default\nPurchase\nUnit","Default\nInput Price\nLookup","Adjusted\nInput Quantity","Benchmark\nOperation\nCost\n($/acre)","Benchmark\nLabor\nCost\n($/acre)","Benchmark\nFuel\nCost\n($/acre)","Benchmark\nR&M\nCost\n($/acre)","Benchmark\nCapital Recovery\nCost\n($/acre)","Benchmark\nOperation\nInput\nCost\n($/acre)","Benchmark\nSeed\nCost\n($/acre)","Benchmark\nChemical \nCost ($/acre)","Operation\nCost\n($/acre)","Labor\nCost\n($/acre)","Fuel\nCost\n($/acre)","R&M\nCost\n($/acre)","Capital Recovery\nCost\n($/acre)","Operation\nInput\nCost\n($/acre)","Seed\nCost\n($/acre)","Chemical \nCost ($/acre)",null,"Application\nUnit",{"$f":"Defaults!$M$5","v":"Cotton"},{"$f":"Defaults!$M$6","v":"Corn"},{"$f":"Defaults!$M$7","v":"Sorghum"},{"$f":"Defaults!$M$8","v":"Soybean"},{"$f":"Defaults!$M$9","v":"Rice"},{"$f":"Defaults!$M$10","v":"Peanut"},{"$f":"Defaults!$M$11","v":"Wheat"},{"$f":"Defaults!$M$12","v":"Est. Pasture or Hay"},null,"Application\nQuantity",{"$f":"Defaults!$M$5","v":"Cotton"},{"$f":"Defaults!$M$6","v":"Corn"},{"$f":"Defaults!$M$7","v":"Sorghum"},{"$f":"Defaults!$M$8","v":"Soybean"},{"$f":"Defaults!$M$9","v":"Rice"},{"$f":"Defaults!$M$10","v":"Peanut"},{"$f":"Defaults!$M$11","v":"Wheat"},{"$f":"Defaults!$M$12","v":"Est. Pasture or Hay"},null,"Application MAX",{"$f":"Defaults!$M$5","v":"Cotton"},{"$f":"Defaults!$M$6","v":"Corn"},{"$f":"Defaults!$M$7","v":"Sorghum"},{"$f":"Defaults!$M$8","v":"Soybean"},{"$f":"Defaults!$M$9","v":"Rice"},{"$f":"Defaults!$M$10","v":"Peanut"},{"$f":"Defaults!$M$11","v":"Wheat"},{"$f":"Defaults!$M$12","v":"Est. Pasture or Hay"}]
[null,null,"Burndown Weed Control",{"$f":"IF($Z$2=Defaults!$M$5,Cotton!D12,IF($Z$2=Defaults!$M$6,Corn!D12,IF($Z$2=Defaults!$M$7,Sorghum!D12,IF($Z$2=Defaults!$M$8,Soybean!D12,IF($Z$2=Defaults!$M$9,Rice!D12,IF($Z$2=Defaults!$M$10,Peanut!D12,IF($Z$2=Defaults!$M$11,Wheat!D12,IF($Z$2=Defaults!$M$12,Pasture!D12,FALSE))))))))","v":"Spring"},null,null,null,null,null,null,null,null,null,null,null,null,null,null,null,null,null,null,null,null,null,{"$f":"IF($Z$2=Defaults!$M$5,Cotton!B12,IF($Z$2=Defaults!$M$6,Corn!B12,IF($Z$2=Defaults!$M$7,Sorghum!B12,IF($Z$2=Defaults!$M$8,Soybean!B12,IF($Z$2=Defaults!$M$9,Rice!B12,IF($Z$2=Defaults!$M$10,Peanut!B12,IF($Z$2=Defaults!$M$11,Wheat!B12,IF($Z$2=Defaults!$M$12,Pasture!B12,\"\"))))))))","v":"Burndown Weed Control"},null,null,null,null,null,null,null,null,null,null,null,null,null,null,null,null,null,null,null,null,null,null,null,null,"BD",null,null,null,null,null,null,null,null,null,"BD",null,null,null,null,null,null,null,null,null,"BD"]
[null,null,"Over-the-Top Sprayer 1",null,null,{"$f":"IF(L13=0,0,IF(C13=Defaults!$I$27,Implements!$AK$185,IF(C13=Defaults!$I$28,Implements!$AK$186,0)))","v":61.454545454545453},{"$f":"IF($L13=0,0,IFERROR(VLOOKUP($C13,Implements!$X$181:$AN$188,15,FALSE),0))","v":8.36},{"$f":"IF($L13=0,0,IFERROR(VLOOKUP($C13,Implements!$X$181:$AN$188,16,FALSE),0))","v":45.046666666666667},{"$f":"IF($L13=0,0,IFERROR(VLOOKUP($C13,Implements!$X$181:$AN$188,17,FALSE),0))","v":137.64582520078542},{"$f":"IF(OR(C13=\"\",L13=\"\",L13=0)=TRUE,\"\",IF(OR(C13=Defaults!$I$25,C13=Defaults!$I$26)=TRUE,VLOOKUP(C13,Defaults!$I$24:$K$27,3,FALSE),ROUND(1/F13*(1*Inputs!$AA$13+($AI$7-1)*Inputs!$AA$15),2)+ROUND(G13*Inputs!$V$13/F13,2)+ROUND(H13/F13,2)+ROUND(I13/F13,2)))","v":3.5},{"$f":"IF(OR(C13=\"\",L13=\"\",L13=0)=TRUE,\"\",IF(OR(C13=Defaults!$I$25,C13=Defaults!$I$26)=TRUE,VLOOKUP(C13,Defaults!$I$24:$K$27,3,FALSE),ROUND(1/F13*(1*Inputs!$AA$13+($AI$7-1)*Inputs!$AA$15),2)+ROUND(G13*Inputs!$V$13/F13,2)+ROUND(H13/F13,2)+ROUND(I13/F13,2)))","v":3.5},1,{"$f":"AB13","v":1},{"$f":"IF(C13=\"\",0,IF(L13=0,0,IF(L13=\"\",\"\",J13*L13)))","v":3.5},null,null,{"$f":"IF(V13=0,0,IF(C13=Defaults!$I$27,Implements!$AK$174,IF(C13=Defaults!$I$28,Implements!$AK$175,0)))","v":62.812690909090918},{"$f":"IF($V13=0,0,IFERROR(VLOOKUP($C13,Implements!$X$170:$AN$177,15,FALSE),0))","v":8.36},{"$f":"IF($V13=0,0,IFERROR(VLOOKUP($C13,Implements!$X$170:$AN$177,16,FALSE),0))","v":45.046666666666667},{"$f":"IF($V13=0,0,IFERROR(VLOOKUP($C13,Implements!$X$170:$AN$177,17,FALSE),0))","v":138.7259236950801},{"$f":"IF(OR(C13=\"\",V13=\"\",V13=0)=TRUE,\"\",IF(LEFT(C13,6)=\"Custom\",J13,ROUND(1/Q13*(1*Inputs!$AA$13+($AI$7-1)*Inputs!$AA$15),2)+ROUND(R13*Inputs!$V$13/Q13,2)+ROUND(S13/Q13,2)+ROUND(T13/Q13,2)))","v":3.44},{"$f":"+L13","v":1},{"$f":"IF(C13=\"\",\"\",IF(V13=0,0,IF(V13=\"\",\"\",U13*V13)))","v":3.44},{"$f":"IF(C13=\"\",\"\",W13-N13)","v":-6.0000000000000053E-2},null,{"$f":"IF($Z$2=Defaults!$M$5,Cotton!B13,IF($Z$2=Defaults!$M$6,Corn!B13,IF($Z$2=Defaults!$M$7,Sorghum!B13,IF($Z$2=Defaults!$M$8,Soybean!B13,IF($Z$2=Defaults!$M$9,Rice!B13,IF($Z$2=Defaults!$M$10,Peanut!B13,IF($Z$2=Defaults!$M$11,Wheat!B13,IF($Z$2=Defaults!$M$12,Pasture!B13,\"\"))))))))","v":"Over-the-Top Sprayer 1"},null,{"$f":"IF(C13=\"\",\"\",VLOOKUP(C13,Defaults!$I$24:$K$28,2,FALSE))","v":1},0,{"$f":"IF(AB13=\"\",\"\",AB13*2)","v":2},null,null,{"$f":"+AB13","v":1},{"$f":"N13","v":3.5},{"$f":"ROUND(IFERROR(1/F13*(1*Inputs!$AA$13+($AI$7-1)*Inputs!$AA$15),0),2)*L13","v":0.28999999999999998},{"$f":"ROUND(IFERROR(1/F13*G13*Inputs!$V$13,0),2)*L13","v":0.24},{"$f":"ROUND(IFERROR(1/F13*H13,0),2)*L13","v":0.73},{"$f":"ROUND(IFERROR(1/F13*I13,0),2)*L13","v":2.2400000000000002},null,null,null,{"$f":"W13","v":3.44},{"$f":"ROUND(IFERROR(1/Q13*(1*Inputs!$AA$13+($AI$7-1)*Inputs!$AA$15),0),2)*V13","v":0.28000000000000003},{"$f":"ROUND(IFERROR(1/Q13*R13*Inputs!$V$13,0),2)*V13","v":0.23},{"$f":"ROUND(IFERROR(1/Q13*S13,0),2)*V13","v":0.72},{"$f":"ROUND(IFERROR(1/Q13*T13,0),2)*V13","v":2.21},null,null,null,null,null,{"$f":"AZ11","v":"Cotton"},{"$f":"BA11","v":"Corn"},"Sorghum","Soybean","Rice","Peanut","Wheat","Est. Pasture or Hay",null,null,{"$f":"BJ11","v":"Cotton"},{"$f":"BK11","v":"Corn"},"Sorghum","Soybean","Rice","Peanut","Wheat","Est. Pasture or Hay",null,null,{"$f":"BT11","v":"Cotton"},{"$f":"BU11","v":"Corn"},"Sorghum","Soybean","Rice","Peanut","Wheat","Est. Pasture or Hay"]
[null,null,"Glyphosate",null,"pt",null,null,null,null,4.75,{"$f":"IF(C14=\"\",\"\",ROUND(IF(E14=AE14,AF14,IF(AE14=$AC$2,AF14*VLOOKUP(E14,$AA$2:$AB$4,2,FALSE),IF(AE14=$AF$2,AF14*VLOOKUP(E14,$AD$2:$AE$3,2,FALSE),IF(AE14=$AI$2,AF14/VLOOKUP(E14,$AG$2:$AH$2,2,FALSE),IF(AE14=$AL$2,AF14*VLOOKUP(E14,$AJ$2:$AK$2,2,FALSE),IF(AE14=$AO$2,AF14/VLOOKUP(E14,$AM$2:$AN$2,2,FALSE),IF(AE14=$AR$2,AF14*VLOOKUP(E14,$AP$2:$AQ$3,2,FALSE)))))))),2))","v":4.75},2,{"$f":"AB14","v":2},{"$f":"IF(C14=\"\",0,IF(L14=0,0,IF(L14=\"\",\"\",J14*L14)))","v":9.5},null,null,{"$f":"IF(L14>0,ABS(V14-L14),\"\")","v":0.44159999999999999},null,null,null,{"$f":"J14","v":4.75},{"$f":"IF(AG14=0,0,AG14)","v":1.5584},{"$f":"IF(C14=\"\",\"\",IF(V14=0,0,IF(V14=\"\",\"\",U14*V14)))","v":7.4024000000000001},{"$f":"IF(C14=\"\",\"\",W14-N14)","v":-2.0975999999999999},null,{"$f":"IF($Z$2=Defaults!$M$5,Cotton!B14,IF($Z$2=Defaults!$M$6,Corn!B14,IF($Z$2=Defaults!$M$7,Sorghum!B14,IF($Z$2=Defaults!$M$8,Soybean!B14,IF($Z$2=Defaults!$M$9,Rice!B14,IF($Z$2=Defaults!$M$10,Peanut!B14,IF($Z$2=Defaults!$M$11,Wheat!B14,IF($Z$2=Defaults!$M$12,Pasture!B14,\"\"))))))))","v":"Glyphosate"},{"$f":"IF($C14=\"\",\"\",HLOOKUP($Z$2,$AZ$13:$BG$16,2,FALSE))","v":"pt"},{"$f":"IF($C14=\"\",\"\",HLOOKUP($Z$2,$BJ$13:$BQ$16,2,FALSE))","v":2},0,{"$f":"IF($C14=\"\",\"\",HLOOKUP($Z$2,$BT$13:$CA$16,2,FALSE))","v":2},{"$f":"IF(C14=\"\",\"\",VLOOKUP(C14,Defaults!$AH:$AJ,2,FALSE))","v":"gal"},{"$f":"IF(C14=\"\",\"\",ROUND(VLOOKUP(C14,Defaults!$AH:$AJ,3,FALSE),2))","v":38},{"$f":"IFERROR(IF(LEFT($C$13,6)=\"Custom\",L14,L14*(1-VLOOKUP($C$13,Implements!$A$159:$D$166,4,FALSE))),\"\")","v":1.5584},null,null,null,null,null,{"$f":"N14","v":9.5},null,{"$f":"N14","v":9.5},null,null,null,null,null,{"$f":"W14","v":7.4024000000000001},null,{"$f":"W14","v":7.4024000000000001},null,{"$f":"IF($C14=\"\",\"\",$C14)","v":"Glyphosate"},{"$f":"IF($C14=\"\",\"\",VLOOKUP($C14,Defaults!$AL$3:$AQ$17,4,FALSE))","v":"pt"},{"$f":"IF($C14=\"\",\"\",VLOOKUP($C14,Defaults!$AS$3:$AX$17,4,FALSE))","v":"pt"},{"$f":"IF($C14=\"\",\"\",VLOOKUP($C14,Defaults!$AZ$3:$BE$17,4,FALSE))","v":"pt"},{"$f":"IF($C14=\"\",\"\",VLOOKUP($C14,Defaults!$BG$3:$BL$16,4,FALSE))","v":"pt"},{"$f":"IF($C14=\"\",\"\",VLOOKUP($C14,Defaults!$BN$3:$BS$17,4,FALSE))","v":"oz"},{"$f":"\"\"","v":""},{"$f":"\"\"","v":""},{"$f":"IF($C14=\"\",\"\",VLOOKUP($C14,Defaults!$CI:$CN,4,FALSE))","v":"oz"},null,{"$f":"IF($C14=\"\",\"\",$C14)","v":"Glyphosate"},{"$f":"IF($C14=\"\",\"\",IFERROR(VLOOKUP($C14,Defaults!$AL$3:$AQ$17,5,FALSE),\"\"))","v":2},{"$f":"IF($C14=\"\",\"\",IFERROR(VLOOKUP($C14,Defaults!$AS$3:$AX$17,5,FALSE),\"\"))","v":2},{"$f":"IF($C14=\"\",\"\",IFERROR(VLOOKUP($C14,Defaults!$AZ$3:$BE$17,5,FALSE),\"\"))","v":2},{"$f":"IF($C14=\"\",\"\",IFERROR(VLOOKUP($C14,Defaults!$BG$3:$BL$16,5,FALSE),\"\"))","v":2},{"$f":"IF($C14=\"\",\"\",IFERROR(VLOOKUP($C14,Defaults!$BN$3:$BS$17,5,FALSE),\"\"))","v":32},{"$f":"\"\"","v":""},{"$f":"\"\"","v":""},{"$f":"IF($C14=\"\",\"\",IFERROR(VLOOKUP($C14,Defaults!$CI:$CN,5,FALSE),\"\"))","v":16},null,{"$f":"IF($C14=\"\",\"\",$C14)","v":"Glyphosate"},{"$f":"IF($C14=\"\",\"\",IFERROR(VLOOKUP($C14,Defaults!$AL$3:$AQ$17,6,FALSE),\"\"))","v":2},{"$f":"IF($C14=\"\",\"\",IFERROR(VLOOKUP($C14,Defaults!$AS$3:$AX$17,6,FALSE),\"\"))","v":2},{"$f":"IF($C14=\"\",\"\",IFERROR(VLOOKUP($C14,Defaults!$AZ$3:$BE$17,6,FALSE),\"\"))","v":2},{"$f":"IF($C14=\"\",\"\",IFERROR(VLOOKUP($C14,Defaults!$BG$3:$BL$16,6,FALSE),\"\"))","v":2},{"$f":"IF($C14=\"\",\"\",IFERROR(VLOOKUP($C14,Defaults!$BN$3:$BS$17,6,FALSE),\"\"))","v":32},{"$f":"\"\"","v":""},{"$f":"\"\"","v":""},{"$f":"IF($C14=\"\",\"\",IFERROR(VLOOKUP($C14,Defaults!$CI:$CN,6,FALSE),\"\"))","v":16}]
[null,null,"2,4-D",null,"oz",null,null,null,null,0.12,{"$f":"IF(C15=\"\",\"\",ROUND(IF(E15=AE15,AF15,IF(AE15=$AC$2,AF15*VLOOKUP(E15,$AA$2:$AB$4,2,FALSE),IF(AE15=$AF$2,AF15*VLOOKUP(E15,$AD$2:$AE$3,2,FALSE),IF(AE15=$AI$2,AF15/VLOOKUP(E15,$AG$2:$AH$2,2,FALSE),IF(AE15=$AL$2,AF15*VLOOKUP(E15,$AJ$2:$AK$2,2,FALSE),IF(AE15=$AO$2,AF15/VLOOKUP(E15,$AM$2:$AN$2,2,FALSE),IF(AE15=$AR$2,AF15*VLOOKUP(E15,$AP$2:$AQ$3,2,FALSE)))))))),2))","v":0.12},32,{"$f":"AB15","v":32},{"$f":"IF(C15=\"\",0,IF(L15=0,0,IF(L15=\"\",\"\",J15*L15)))","v":3.84},null,null,{"$f":"IF(L15>0,ABS(V15-L15),\"\")","v":7.0655999999999999},null,null,null,{"$f":"J15","v":0.12},{"$f":"IF(AG15=0,0,AG15)","v":24.9344},{"$f":"IF(C15=\"\",\"\",IF(V15=0,0,IF(V15=\"\",\"\",U15*V15)))","v":2.9921280000000001},{"$f":"IF(C15=\"\",\"\",W15-N15)","v":-0.84787199999999974},null,{"$f":"IF($Z$2=Defaults!$M$5,Cotton!B15,IF($Z$2=Defaults!$M$6,Corn!B15,IF($Z$2=Defaults!$M$7,Sorghum!B15,IF($Z$2=Defaults!$M$8,Soybean!B15,IF($Z$2=Defaults!$M$9,Rice!B15,IF($Z$2=Defaults!$M$10,Peanut!B15,IF($Z$2=Defaults!$M$11,Wheat!B15,IF($Z$2=Defaults!$M$12,Pasture!B15,\"\"))))))))","v":"2,4-D"},{"$f":"IF($C15=\"\",\"\",HLOOKUP($Z$2,$AZ$13:$BG$16,3,FALSE))","v":"oz"},{"$f":"IF($C15=\"\",\"\",HLOOKUP($Z$2,$BJ$13:$BQ$16,3,FALSE))","v":32},0,{"$f":"IF($C15=\"\",\"\",HLOOKUP($Z$2,$BT$13:$CA$16,3,FALSE))","v":32},{"$f":"IF(C15=\"\",\"\",VLOOKUP(C15,Defaults!$AH:$AJ,2,FALSE))","v":"gal"},{"$f":"IF(C15=\"\",\"\",ROUND(VLOOKUP(C15,Defaults!$AH:$AJ,3,FALSE),2))","v":15.4},{"$f":"IFERROR(IF(LEFT($C$13,6)=\"Custom\",L15,L15*(1-VLOOKUP($C$13,Implements!$A$159:$D$166,4,FALSE))),\"\")","v":24.9344},null,null,null,null,null,{"$f":"N15","v":3.84},null,{"$f":"N15","v":3.84},null,null,null,null,null,{"$f":"W15","v":2.9921280000000001},null,{"$f":"W15","v":2.9921280000000001},null,{"$f":"IF($C15=\"\",\"\",$C15)","v":"2,4-D"},{"$f":"IF($C15=\"\",\"\",VLOOKUP($C15,Defaults!$AL$3:$AQ$17,4,FALSE))","v":"oz"},{"$f":"IF($C15=\"\",\"\",VLOOKUP($C15,Defaults!$AS$3:$AX$17,4,FALSE))","v":"oz"},{"$f":"IF($C15=\"\",\"\",VLOOKUP($C15,Defaults!$AZ$3:$BE$17,4,FALSE))","v":{"$error":"#N/A"}},{"$f":"IF($C15=\"\",\"\",VLOOKUP($C15,Defaults!$BG$3:$BL$16,4,FALSE))","v":"oz"},{"$f":"IF($C15=\"\",\"\",VLOOKUP($C15,Defaults!$BN$3:$BS$17,4,FALSE))","v":"pt"},{"$f":"\"\"","v":""},{"$f":"\"\"","v":""},{"$f":"IF($C15=\"\",\"\",VLOOKUP($C15,Defaults!$CI:$CN,4,FALSE))","v":"pt"},null,{"$f":"IF($C15=\"\",\"\",$C15)","v":"2,4-D"},{"$f":"IF($C15=\"\",\"\",IFERROR(VLOOKUP($C15,Defaults!$AL$3:$AQ$17,5,FALSE),\"\"))","v":32},{"$f":"IF($C15=\"\",\"\",IFERROR(VLOOKUP($C15,Defaults!$AS$3:$AX$17,5,FALSE),\"\"))","v":32},{"$f":"IF($C15=\"\",\"\",IFERROR(VLOOKUP($C15,Defaults!$AZ$3:$BE$17,5,FALSE),\"\"))","v":""},{"$f":"IF($C15=\"\",\"\",IFERROR(VLOOKUP($C15,Defaults!$BG$3:$BL$16,5,FALSE),\"\"))","v":32},{"$f":"IF($C15=\"\",\"\",IFERROR(VLOOKUP($C15,Defaults!$BN$3:$BS$17,5,FALSE),\"\"))","v":1},{"$f":"\"\"","v":""},{"$f":"\"\"","v":""},{"$f":"IF($C15=\"\",\"\",IFERROR(VLOOKUP($C15,Defaults!$CI:$CN,5,FALSE),\"\"))","v":1},null,{"$f":"IF($C15=\"\",\"\",$C15)","v":"2,4-D"},{"$f":"IF($C15=\"\",\"\",IFERROR(VLOOKUP($C15,Defaults!$AL$3:$AQ$17,6,FALSE),\"\"))","v":32},{"$f":"IF($C15=\"\",\"\",IFERROR(VLOOKUP($C15,Defaults!$AS$3:$AX$17,6,FALSE),\"\"))","v":32},{"$f":"IF($C15=\"\",\"\",IFERROR(VLOOKUP($C15,Defaults!$AZ$3:$BE$17,6,FALSE),\"\"))","v":""},{"$f":"IF($C15=\"\",\"\",IFERROR(VLOOKUP($C15,Defaults!$BG$3:$BL$16,6,FALSE),\"\"))","v":32},{"$f":"IF($C15=\"\",\"\",IFERROR(VLOOKUP($C15,Defaults!$BN$3:$BS$17,6,FALSE),\"\"))","v":2},{"$f":"\"\"","v":""},{"$f":"\"\"","v":""},{"$f":"IF($C15=\"\",\"\",IFERROR(VLOOKUP($C15,Defaults!$CI:$CN,6,FALSE),\"\"))","v":4}]
[null,null,null,null,null,null,null,null,null,null,{"$f":"IF(C16=\"\",\"\",ROUND(IF(E16=AE16,AF16,IF(AE16=$AC$2,AF16*VLOOKUP(E16,$AA$2:$AB$4,2,FALSE),IF(AE16=$AF$2,AF16*VLOOKUP(E16,$AD$2:$AE$3,2,FALSE),IF(AE16=$AI$2,AF16/VLOOKUP(E16,$AG$2:$AH$2,2,FALSE),IF(AE16=$AL$2,AF16*VLOOKUP(E16,$AJ$2:$AK$2,2,FALSE),IF(AE16=$AO$2,AF16/VLOOKUP(E16,$AM$2:$AN$2,2,FALSE),IF(AE16=$AR$2,AF16*VLOOKUP(E16,$AP$2:$AQ$3,2,FALSE)))))))),2))","v":""},null,{"$f":"AB16","v":""},{"$f":"IF(C16=\"\",0,IF(L16=0,0,IF(L16=\"\",\"\",J16*L16)))","v":0},null,null,{"$f":"IF(L16>0,ABS(V16-L16),\"\")","v":""},null,null,null,{"$f":"J16","v":0},{"$f":"IF(AG16=0,0,AG16)","v":0},{"$f":"IF(C16=\"\",\"\",IF(V16=0,0,IF(V16=\"\",\"\",U16*V16)))","v":""},{"$f":"IF(C16=\"\",\"\",W16-N16)","v":""},null,{"$f":"IF($Z$2=Defaults!$M$5,Cotton!B16,IF($Z$2=Defaults!$M$6,Corn!B16,IF($Z$2=Defaults!$M$7,Sorghum!B16,IF($Z$2=Defaults!$M$8,Soybean!B16,IF($Z$2=Defaults!$M$9,Rice!B16,IF($Z$2=Defaults!$M$10,Peanut!B16,IF($Z$2=Defaults!$M$11,Wheat!B16,IF($Z$2=Defaults!$M$12,Pasture!B16,\"\"))))))))","v":""},{"$f":"IF($C16=\"\",\"\",HLOOKUP($Z$2,$AZ$13:$BG$16,4,FALSE))","v":""},{"$f":"IF($C16=\"\",\"\",HLOOKUP($Z$2,$BJ$13:$BQ$16,4,FALSE))","v":""},0,{"$f":"IF($C16=\"\",\"\",HLOOKUP($Z$2,$BT$13:$CA$16,4,FALSE))","v":""},{"$f":"IF(C16=\"\",\"\",VLOOKUP(C16,Defaults!$AH:$AJ,2,FALSE))","v":""},{"$f":"IF(C16=\"\",\"\",ROUND(VLOOKUP(C16,Defaults!$AH:$AJ,3,FALSE),2))","v":""},{"$f":"IFERROR(IF(LEFT($C$13,6)=\"Custom\",L16,L16*(1-VLOOKUP($C$13,Implements!$A$159:$D$166,4,FALSE))),\"\")","v":0},null,null,null,null,null,{"$f":"N16","v":0},null,{"$f":"N16","v":0},null,null,null,null,null,{"$f":"W16","v":""},null,{"$f":"W16","v":""},null,{"$f":"IF($C16=\"\",\"\",$C16)","v":""},{"$f":"IF($C16=\"\",\"\",VLOOKUP($C16,Defaults!$AL$3:$AQ$17,4,FALSE))","v":""},{"$f":"IF($C16=\"\",\"\",VLOOKUP($C16,Defaults!$AS$3:$AX$17,4,FALSE))","v":""},{"$f":"IF($C16=\"\",\"\",VLOOKUP($C16,Defaults!$AZ$3:$BE$17,4,FALSE))","v":""},{"$f":"IF($C16=\"\",\"\",VLOOKUP($C16,Defaults!$BG$3:$BL$16,4,FALSE))","v":""},{"$f":"IF($C16=\"\",\"\",VLOOKUP($C16,Defaults!$BN$3:$BS$17,4,FALSE))","v":""},{"$f":"\"\"","v":""},{"$f":"\"\"","v":""},{"$f":"IF($C16=\"\",\"\",VLOOKUP($C16,Defaults!$CI:$CN,4,FALSE))","v":""},null,{"$f":"IF($C16=\"\",\"\",$C16)","v":""},{"$f":"IF($C16=\"\",\"\",IFERROR(VLOOKUP($C16,Defaults!$AL$3:$AQ$17,5,FALSE),\"\"))","v":""},{"$f":"IF($C16=\"\",\"\",IFERROR(VLOOKUP($C16,Defaults!$AS$3:$AX$17,5,FALSE),\"\"))","v":""},{"$f":"IF($C16=\"\",\"\",IFERROR(VLOOKUP($C16,Defaults!$AZ$3:$BE$17,5,FALSE),\"\"))","v":""},{"$f":"IF($C16=\"\",\"\",IFERROR(VLOOKUP($C16,Defaults!$BG$3:$BL$16,5,FALSE),\"\"))","v":""},{"$f":"IF($C16=\"\",\"\",IFERROR(VLOOKUP($C16,Defaults!$BN$3:$BS$17,5,FALSE),\"\"))","v":""},{"$f":"\"\"","v":""},{"$f":"\"\"","v":""},{"$f":"IF($C16=\"\",\"\",IFERROR(VLOOKUP($C16,Defaults!$CI:$CN,5,FALSE),\"\"))","v":""},null,{"$f":"IF($C16=\"\",\"\",$C16)","v":""},{"$f":"IF($C16=\"\",\"\",IFERROR(VLOOKUP($C16,Defaults!$AL$3:$AQ$17,6,FALSE),\"\"))","v":""},{"$f":"IF($C16=\"\",\"\",IFERROR(VLOOKUP($C16,Defaults!$AS$3:$AX$17,6,FALSE),\"\"))","v":""},{"$f":"IF($C16=\"\",\"\",IFERROR(VLOOKUP($C16,Defaults!$AZ$3:$BE$17,6,FALSE),\"\"))","v":""},{"$f":"IF($C16=\"\",\"\",IFERROR(VLOOKUP($C16,Defaults!$BG$3:$BL$16,6,FALSE),\"\"))","v":""},{"$f":"IF($C16=\"\",\"\",IFERROR(VLOOKUP($C16,Defaults!$BN$3:$BS$17,6,FALSE),\"\"))","v":""},{"$f":"\"\"","v":""},{"$f":"\"\"","v":""},{"$f":"IF($C16=\"\",\"\",IFERROR(VLOOKUP($C16,Defaults!$CI:$CN,6,FALSE),\"\"))","v":""}]
[null,null,"Preplant Weed Control",{"$f":"IF($Z$2=Defaults!$M$5,Cotton!D17,IF($Z$2=Defaults!$M$6,Corn!D17,IF($Z$2=Defaults!$M$7,Sorghum!D17,IF($Z$2=Defaults!$M$8,Soybean!D17,IF($Z$2=Defaults!$M$9,Rice!D17,IF($Z$2=Defaults!$M$10,Peanut!D17,IF($Z$2=Defaults!$M$11,Wheat!D17,IF($Z$2=Defaults!$M$12,Pasture!D17,FALSE))))))))","v":"Spring"},null,null,null,null,null,null,null,null,null,null,null,null,null,null,null,null,null,null,null,null,null,{"$f":"IF($Z$2=Defaults!$M$5,Cotton!B17,IF($Z$2=Defaults!$M$6,Corn!B17,IF($Z$2=Defaults!$M$7,Sorghum!B17,IF($Z$2=Defaults!$M$8,Soybean!B17,IF($Z$2=Defaults!$M$9,Rice!B17,IF($Z$2=Defaults!$M$10,Peanut!B17,IF($Z$2=Defaults!$M$11,Wheat!B17,IF($Z$2=Defaults!$M$12,Pasture!B17,\"\"))))))))","v":"Preplant Weed Control"},null,null,null,null,null,null,null,null,null,null,null,null,null,null,null,null,null,null,null,null,null,null,null,null,"PP",null,null,null,null,null,null,null,null,null,"PP",null,null,null,null,null,null,null,null,null,"PP"]
[null,null,null,null,null,{"$f":"IF(L18=0,0,IF(C18=Defaults!$I$27,Implements!$AK$185,IF(C18=Defaults!$I$28,Implements!$AK$186,0)))","v":0},{"$f":"IF($L18=0,0,IFERROR(VLOOKUP($C18,Implements!$X$181:$AN$188,15,FALSE),0))","v":0},{"$f":"IF($L18=0,0,IFERROR(VLOOKUP($C18,Implements!$X$181:$AN$188,16,FALSE),0))","v":0},{"$f":"IF($L18=0,0,IFERROR(VLOOKUP($C18,Implements!$X$181:$AN$188,17,FALSE),0))","v":0},{"$f":"IF(OR(C18=\"\",L18=\"\",L18=0)=TRUE,\"\",IF(OR(C18=Defaults!$I$25,C18=Defaults!$I$26)=TRUE,VLOOKUP(C18,Defaults!$I$24:$K$27,3,FALSE),ROUND(1/F18*(1*Inputs!$AA$13+($AI$7-1)*Inputs!$AA$15),2)+ROUND(G18*Inputs!$V$13/F18,2)+ROUND(H18/F18,2)+ROUND(I18/F18,2)))","v":""},{"$f":"IF(OR(C18=\"\",L18=\"\",L18=0)=TRUE,\"\",IF(OR(C18=Defaults!$I$25,C18=Defaults!$I$26)=TRUE,VLOOKUP(C18,Defaults!$I$24:$K$27,3,FALSE),ROUND(1/F18*(1*Inputs!$AA$13+($AI$7-1)*Inputs!$AA$15),2)+ROUND(G18*Inputs!$V$13/F18,2)+ROUND(H18/F18,2)+ROUND(I18/F18,2)))","v":""},null,{"$f":"AB18","v":""},{"$f":"IF(C18=\"\",0,IF(L18=0,0,IF(L18=\"\",\"\",J18*L18)))","v":0},null,null,{"$f":"IF(V18=0,0,IF(C18=Defaults!$I$27,Implements!$AK$174,IF(C18=Defaults!$I$28,Implements!$AK$175,0)))","v":0},{"$f":"IF($V18=0,0,IFERROR(VLOOKUP($C18,Implements!$X$170:$AN$177,15,FALSE),0))","v":0},{"$f":"IF($V18=0,0,IFERROR(VLOOKUP($C18,Implements!$X$170:$AN$177,16,FALSE),0))","v":0},{"$f":"IF($V18=0,0,IFERROR(VLOOKUP($C18,Implements!$X$170:$AN$177,17,FALSE),0))","v":0},{"$f":"IF(OR(C18=\"\",V18=\"\",V18=0)=TRUE,\"\",IF(LEFT(C18,6)=\"Custom\",J18,ROUND(1/Q18*(1*Inputs!$AA$13+($AI$7-1)*Inputs!$AA$15),2)+ROUND(R18*Inputs!$V$13/Q18,2)+ROUND(S18/Q18,2)+ROUND(T18/Q18,2)))","v":""},{"$f":"+L18","v":0},{"$f":"IF(C18=\"\",\"\",IF(V18=0,0,IF(V18=\"\",\"\",U18*V18)))","v":""},{"$f":"IF(C18=\"\",\"\",W18-N18)","v":""},null,{"$f":"IF($Z$2=Defaults!$M$5,Cotton!B18,IF($Z$2=Defaults!$M$6,Corn!B18,IF($Z$2=Defaults!$M$7,Sorghum!B18,IF($Z$2=Defaults!$M$8,Soybean!B18,IF($Z$2=Defaults!$M$9,Rice!B18,IF($Z$2=Defaults!$M$10,Peanut!B18,IF($Z$2=Defaults!$M$11,Wheat!B18,IF($Z$2=Defaults!$M$12,Pasture!B18,\"\"))))))))","v":""},null,{"$f":"IF(C18=\"\",\"\",VLOOKUP(C18,Defaults!$I$24:$K$28,2,FALSE))","v":""},0,{"$f":"IF(AB18=\"\",\"\",AB18*2)","v":""},null,null,{"$f":"+AB18","v":""},{"$f":"N18","v":0},{"$f":"ROUND(IFERROR(1/F18*(1*Inputs!$AA$13+($AI$7-1)*Inputs!$AA$15),0),2)*L18","v":0},{"$f":"ROUND(IFERROR(1/F18*G18*Inputs!$V$13,0),2)*L18","v":0},{"$f":"ROUND(IFERROR(1/F18*H18,0),2)*L18","v":0},{"$f":"ROUND(IFERROR(1/F18*I18,0),2)*L18","v":0},null,null,null,{"$f":"W18","v":""},{"$f":"ROUND(IFERROR(1/Q18*(1*Inputs!$AA$13+($AI$7-1)*Inputs!$AA$15),0),2)*V18","v":0},{"$f":"ROUND(IFERROR(1/Q18*R18*Inputs!$V$13,0),2)*V18","v":0},{"$f":"ROUND(IFERROR(1/Q18*S18,0),2)*V18","v":0},{"$f":"ROUND(IFERROR(1/Q18*T18,0),2)*V18","v":0},null,null,null,null,null,{"$f":"AZ11","v":"Cotton"},{"$f":"BA11","v":"Corn"},"Sorghum","Soybean","Rice","Peanut","Wheat","Est. Pasture or Hay",null,null,{"$f":"BJ11","v":"Cotton"},{"$f":"BK11","v":"Corn"},"Sorghum","Soybean","Rice","Peanut","Wheat","Est. Pasture or Hay",null,null,{"$f":"BT11","v":"Cotton"},{"$f":"BU11","v":"Corn"},"Sorghum","Soybean","Rice","Peanut","Wheat","Est. Pasture or Hay"]
[null,null,null,null,null,null,null,null,null,null,{"$f":"IF(C19=\"\",\"\",ROUND(IF(E19=AE19,AF19,IF(AE19=$AC$2,AF19*VLOOKUP(E19,$AA$2:$AB$4,2,FALSE),IF(AE19=$AF$2,AF19*VLOOKUP(E19,$AD$2:$AE$3,2,FALSE),IF(AE19=$AI$2,AF19/VLOOKUP(E19,$AG$2:$AH$2,2,FALSE),IF(AE19=$AL$2,AF19*VLOOKUP(E19,$AJ$2:$AK$2,2,FALSE),IF(AE19=$AO$2,AF19/VLOOKUP(E19,$AM$2:$AN$2,2,FALSE),IF(AE19=$AR$2,AF19*VLOOKUP(E19,$AP$2:$AQ$3,2,FALSE)))))))),2))","v":""},null,{"$f":"AB19","v":""},{"$f":"IF(C19=\"\",0,IF(L19=0,0,IF(L19=\"\",\"\",J19*L19)))","v":0},null,null,{"$f":"IF(L19>0,ABS(V19-L19),\"\")","v":""},null,null,null,{"$f":"J19","v":0},{"$f":"IF(AG19=0,0,AG19)","v":""},{"$f":"IF(C19=\"\",\"\",IF(V19=0,0,IF(V19=\"\",\"\",U19*V19)))","v":""},{"$f":"IF(C19=\"\",\"\",W19-N19)","v":""},null,{"$f":"IF($Z$2=Defaults!$M$5,Cotton!B19,IF($Z$2=Defaults!$M$6,Corn!B19,IF($Z$2=Defaults!$M$7,Sorghum!B19,IF($Z$2=Defaults!$M$8,Soybean!B19,IF($Z$2=Defaults!$M$9,Rice!B19,IF($Z$2=Defaults!$M$10,Peanut!B19,IF($Z$2=Defaults!$M$11,Wheat!B19,IF($Z$2=Defaults!$M$12,Pasture!B19,\"\"))))))))","v":""},{"$f":"IF($C19=\"\",\"\",HLOOKUP($Z$2,$AZ$18:$BG$21,2,FALSE))","v":""},{"$f":"IF($C19=\"\",\"\",HLOOKUP($Z$2,$BJ$18:$BQ$21,2,FALSE))","v":""},0,{"$f":"IF($C19=\"\",\"\",HLOOKUP($Z$2,$BT$18:$CA$21,2,FALSE))","v":""},{"$f":"IF(C19=\"\",\"\",VLOOKUP(C19,Defaults!$AH:$AJ,2,FALSE))","v":""},{"$f":"IF(C19=\"\",\"\",ROUND(VLOOKUP(C19,Defaults!$AH:$AJ,3,FALSE),2))","v":""},{"$f":"IFERROR(IF(LEFT($C$18,6)=\"Custom\",L19,L19*(1-VLOOKUP($C$18,Implements!$A$159:$D$166,4,FALSE))),\"\")","v":""},null,null,null,null,null,{"$f":"N19","v":0},null,{"$f":"N19","v":0},null,null,null,null,null,{"$f":"W19","v":""},null,{"$f":"W19","v":""},null,{"$f":"IF($C19=\"\",\"\",$C19)","v":""},{"$f":"IF($C19=\"\",\"\",VLOOKUP($C19,Defaults!$AL$19:$AQ$35,4,FALSE))","v":""},{"$f":"IF($C19=\"\",\"\",VLOOKUP($C19,Defaults!$AS$19:$AX$35,4,FALSE))","v":""},{"$f":"IF($C19=\"\",\"\",VLOOKUP($C19,Defaults!$AZ$19:$BE$35,4,FALSE))","v":""},{"$f":"IF($C19=\"\",\"\",VLOOKUP($C19,Defaults!$BG$19:$BL$35,4,FALSE))","v":""},{"$f":"IF($C19=\"\",\"\",VLOOKUP($C19,Defaults!$BN$19:$BS$35,4,FALSE))","v":""},{"$f":"IF($C19=\"\",\"\",VLOOKUP($C19,Defaults!$BU$19:$BZ$35,4,FALSE))","v":""},{"$f":"\"\"","v":""},{"$f":"IF($C19=\"\",\"\",VLOOKUP($C19,Defaults!$CI:$CN,4,FALSE))","v":""},null,{"$f":"IF($C19=\"\",\"\",$C19)","v":""},{"$f":"IF($C19=\"\",\"\",IFERROR(VLOOKUP($C19,Defaults!$AL$19:$AQ$35,5,FALSE),\"\"))","v":""},{"$f":"IF($C19=\"\",\"\",IFERROR(VLOOKUP($C19,Defaults!$AS$19:$AX$35,5,FALSE),\"\"))","v":""},{"$f":"IF($C19=\"\",\"\",IFERROR(VLOOKUP($C19,Defaults!$AZ$19:$BE$35,5,FALSE),\"\"))","v":""},{"$f":"IF($C19=\"\",\"\",IFERROR(VLOOKUP($C19,Defaults!$BG$19:$BL$35,5,FALSE),\"\"))","v":""},{"$f":"IF($C19=\"\",\"\",IFERROR(VLOOKUP($C19,Defaults!$BN$19:$BS$35,5,FALSE),\"\"))","v":""},{"$f":"IF($C19=\"\",\"\",IFERROR(VLOOKUP($C19,Defaults!$BU$19:$BZ$35,5,FALSE),\"\"))","v":""},{"$f":"\"\"","v":""},{"$f":"IF($C19=\"\",\"\",IFERROR(VLOOKUP($C19,Defaults!$CI:$CN,5,FALSE),\"\"))","v":""},null,{"$f":"IF($C19=\"\",\"\",$C19)","v":""},{"$f":"IF($C19=\"\",\"\",IFERROR(VLOOKUP($C19,Defaults!$AL$19:$AQ$35,6,FALSE),\"\"))","v":""},{"$f":"IF($C19=\"\",\"\",IFERROR(VLOOKUP($C19,Defaults!$AS$19:$AX$35,6,FALSE),\"\"))","v":""},{"$f":"IF($C19=\"\",\"\",IFERROR(VLOOKUP($C19,Defaults!$AZ$19:$BE$35,6,FALSE),\"\"))","v":""},{"$f":"IF($C19=\"\",\"\",IFERROR(VLOOKUP($C19,Defaults!$BG$19:$BL$35,6,FALSE),\"\"))","v":""},{"$f":"IF($C19=\"\",\"\",IFERROR(VLOOKUP($C19,Defaults!$BN$19:$BS$35,6,FALSE),\"\"))","v":""},{"$f":"IF($C19=\"\",\"\",IFERROR(VLOOKUP($C19,Defaults!$BU$19:$BZ$35,6,FALSE),\"\"))","v":""},{"$f":"\"\"","v":""},{"$f":"IF($C19=\"\",\"\",IFERROR(VLOOKUP($C19,Defaults!$CI:$CN,6,FALSE),\"\"))","v":""}]
[null,null,null,null,null,null,null,null,null,null,{"$f":"IF(C20=\"\",\"\",ROUND(IF(E20=AE20,AF20,IF(AE20=$AC$2,AF20*VLOOKUP(E20,$AA$2:$AB$4,2,FALSE),IF(AE20=$AF$2,AF20*VLOOKUP(E20,$AD$2:$AE$3,2,FALSE),IF(AE20=$AI$2,AF20/VLOOKUP(E20,$AG$2:$AH$2,2,FALSE),IF(AE20=$AL$2,AF20*VLOOKUP(E20,$AJ$2:$AK$2,2,FALSE),IF(AE20=$AO$2,AF20/VLOOKUP(E20,$AM$2:$AN$2,2,FALSE),IF(AE20=$AR$2,AF20*VLOOKUP(E20,$AP$2:$AQ$3,2,FALSE)))))))),2))","v":""},null,{"$f":"AB20","v":""},{"$f":"IF(C20=\"\",0,IF(L20=0,0,IF(L20=\"\",\"\",J20*L20)))","v":0},null,null,{"$f":"IF(L20>0,ABS(V20-L20),\"\")","v":""},null,null,null,{"$f":"J20","v":0},{"$f":"IF(AG20=0,0,AG20)","v":""},{"$f":"IF(C20=\"\",\"\",IF(V20=0,0,IF(V20=\"\",\"\",U20*V20)))","v":""},{"$f":"IF(C20=\"\",\"\",W20-N20)","v":""},null,{"$f":"IF($Z$2=Defaults!$M$5,Cotton!B20,IF($Z$2=Defaults!$M$6,Corn!B20,IF($Z$2=Defaults!$M$7,Sorghum!B20,IF($Z$2=Defaults!$M$8,Soybean!B20,IF($Z$2=Defaults!$M$9,Rice!B20,IF($Z$2=Defaults!$M$10,Peanut!B20,IF($Z$2=Defaults!$M$11,Wheat!B20,IF($Z$2=Defaults!$M$12,Pasture!B20,\"\"))))))))","v":""},{"$f":"IF($C20=\"\",\"\",HLOOKUP($Z$2,$AZ$18:$BG$21,3,FALSE))","v":""},{"$f":"IF($C20=\"\",\"\",HLOOKUP($Z$2,$BJ$18:$BQ$21,3,FALSE))","v":""},0,{"$f":"IF($C20=\"\",\"\",HLOOKUP($Z$2,$BT$18:$CA$21,3,FALSE))","v":""},{"$f":"IF(C20=\"\",\"\",VLOOKUP(C20,Defaults!$AH:$AJ,2,FALSE))","v":""},{"$f":"IF(C20=\"\",\"\",ROUND(VLOOKUP(C20,Defaults!$AH:$AJ,3,FALSE),2))","v":""},{"$f":"IFERROR(IF(LEFT($C$18,6)=\"Custom\",L20,L20*(1-VLOOKUP($C$18,Implements!$A$159:$D$166,4,FALSE))),\"\")","v":""},null,null,null,null,null,{"$f":"N20","v":0},null,{"$f":"N20","v":0},null,null,null,null,null,{"$f":"W20","v":""},null,{"$f":"W20","v":""},null,{"$f":"IF($C20=\"\",\"\",$C20)","v":""},{"$f":"IF($C20=\"\",\"\",VLOOKUP($C20,Defaults!$AL$19:$AQ$35,4,FALSE))","v":""},{"$f":"IF($C20=\"\",\"\",VLOOKUP($C20,Defaults!$AS$19:$AX$35,4,FALSE))","v":""},{"$f":"IF($C20=\"\",\"\",VLOOKUP($C20,Defaults!$AZ$19:$BE$35,4,FALSE))","v":""},{"$f":"IF($C20=\"\",\"\",VLOOKUP($C20,Defaults!$BG$19:$BL$35,4,FALSE))","v":""},{"$f":"IF($C20=\"\",\"\",VLOOKUP($C20,Defaults!$BN$19:$BS$35,4,FALSE))","v":""},{"$f":"IF($C20=\"\",\"\",VLOOKUP($C20,Defaults!$BU$19:$BZ$35,4,FALSE))","v":""},{"$f":"\"\"","v":""},{"$f":"IF($C20=\"\",\"\",VLOOKUP($C20,Defaults!$CI:$CN,4,FALSE))","v":""},null,{"$f":"IF($C20=\"\",\"\",$C20)","v":""},{"$f":"IF($C20=\"\",\"\",IFERROR(VLOOKUP($C20,Defaults!$AL$19:$AQ$35,5,FALSE),\"\"))","v":""},{"$f":"IF($C20=\"\",\"\",IFERROR(VLOOKUP($C20,Defaults!$AS$19:$AX$35,5,FALSE),\"\"))","v":""},{"$f":"IF($C20=\"\",\"\",IFERROR(VLOOKUP($C20,Defaults!$AZ$19:$BE$35,5,FALSE),\"\"))","v":""},{"$f":"IF($C20=\"\",\"\",IFERROR(VLOOKUP($C20,Defaults!$BG$19:$BL$35,5,FALSE),\"\"))","v":""},{"$f":"IF($C20=\"\",\"\",IFERROR(VLOOKUP($C20,Defaults!$BN$19:$BS$35,5,FALSE),\"\"))","v":""},{"$f":"IF($C20=\"\",\"\",IFERROR(VLOOKUP($C20,Defaults!$BU$19:$BZ$35,5,FALSE),\"\"))","v":""},{"$f":"\"\"","v":""},{"$f":"IF($C20=\"\",\"\",IFERROR(VLOOKUP($C20,Defaults!$CI:$CN,5,FALSE),\"\"))","v":""},null,{"$f":"IF($C20=\"\",\"\",$C20)","v":""},{"$f":"IF($C20=\"\",\"\",IFERROR(VLOOKUP($C20,Defaults!$AL$19:$AQ$35,6,FALSE),\"\"))","v":""},{"$f":"IF($C20=\"\",\"\",IFERROR(VLOOKUP($C20,Defaults!$AS$19:$AX$35,6,FALSE),\"\"))","v":""},{"$f":"IF($C20=\"\",\"\",IFERROR(VLOOKUP($C20,Defaults!$AZ$19:$BE$35,6,FALSE),\"\"))","v":""},{"$f":"IF($C20=\"\",\"\",IFERROR(VLOOKUP($C20,Defaults!$BG$19:$BL$35,6,FALSE),\"\"))","v":""},{"$f":"IF($C20=\"\",\"\",IFERROR(VLOOKUP($C20,Defaults!$BN$19:$BS$35,6,FALSE),\"\"))","v":""},{"$f":"IF($C20=\"\",\"\",IFERROR(VLOOKUP($C20,Defaults!$BU$19:$BZ$35,6,FALSE),\"\"))","v":""},{"$f":"\"\"","v":""},{"$f":"IF($C20=\"\",\"\",IFERROR(VLOOKUP($C20,Defaults!$CI:$CN,6,FALSE),\"\"))","v":""}]
[null,null,null,null,null,null,null,null,null,null,{"$f":"IF(C21=\"\",\"\",ROUND(IF(E21=AE21,AF21,IF(AE21=$AC$2,AF21*VLOOKUP(E21,$AA$2:$AB$4,2,FALSE),IF(AE21=$AF$2,AF21*VLOOKUP(E21,$AD$2:$AE$3,2,FALSE),IF(AE21=$AI$2,AF21/VLOOKUP(E21,$AG$2:$AH$2,2,FALSE),IF(AE21=$AL$2,AF21*VLOOKUP(E21,$AJ$2:$AK$2,2,FALSE),IF(AE21=$AO$2,AF21/VLOOKUP(E21,$AM$2:$AN$2,2,FALSE),IF(AE21=$AR$2,AF21*VLOOKUP(E21,$AP$2:$AQ$3,2,FALSE)))))))),2))","v":""},null,{"$f":"AB21","v":""},{"$f":"IF(C21=\"\",0,IF(L21=0,0,IF(L21=\"\",\"\",J21*L21)))","v":0},null,null,{"$f":"IF(L21>0,ABS(V21-L21),\"\")","v":""},null,null,null,{"$f":"J21","v":0},{"$f":"IF(AG21=0,0,AG21)","v":""},{"$f":"IF(C21=\"\",\"\",IF(V21=0,0,IF(V21=\"\",\"\",U21*V21)))","v":""},{"$f":"IF(C21=\"\",\"\",W21-N21)","v":""},null,{"$f":"IF($Z$2=Defaults!$M$5,Cotton!B21,IF($Z$2=Defaults!$M$6,Corn!B21,IF($Z$2=Defaults!$M$7,Sorghum!B21,IF($Z$2=Defaults!$M$8,Soybean!B21,IF($Z$2=Defaults!$M$9,Rice!B21,IF($Z$2=Defaults!$M$10,Peanut!B21,IF($Z$2=Defaults!$M$11,Wheat!B21,IF($Z$2=Defaults!$M$12,Pasture!B21,\"\"))))))))","v":""},{"$f":"IF($C21=\"\",\"\",HLOOKUP($Z$2,$AZ$18:$BG$21,4,FALSE))","v":""},{"$f":"IF($C21=\"\",\"\",HLOOKUP($Z$2,$BJ$18:$BQ$21,4,FALSE))","v":""},0,{"$f":"IF($C21=\"\",\"\",HLOOKUP($Z$2,$BT$18:$CA$21,4,FALSE))","v":""},{"$f":"IF(C21=\"\",\"\",VLOOKUP(C21,Defaults!$AH:$AJ,2,FALSE))","v":""},{"$f":"IF(C21=\"\",\"\",ROUND(VLOOKUP(C21,Defaults!$AH:$AJ,3,FALSE),2))","v":""},{"$f":"IFERROR(IF(LEFT($C$18,6)=\"Custom\",L21,L21*(1-VLOOKUP($C$18,Implements!$A$159:$D$166,4,FALSE))),\"\")","v":""},null,null,null,null,null,{"$f":"N21","v":0},null,{"$f":"N21","v":0},null,null,null,null,null,{"$f":"W21","v":""},null,{"$f":"W21","v":""},null,{"$f":"IF($C21=\"\",\"\",$C21)","v":""},{"$f":"IF($C21=\"\",\"\",VLOOKUP($C21,Defaults!$AL$19:$AQ$35,4,FALSE))","v":""},{"$f":"IF($C21=\"\",\"\",VLOOKUP($C21,Defaults!$AS$19:$AX$35,4,FALSE))","v":""},{"$f":"IF($C21=\"\",\"\",VLOOKUP($C21,Defaults!$AZ$19:$BE$35,4,FALSE))","v":""},{"$f":"IF($C21=\"\",\"\",VLOOKUP($C21,Defaults!$BG$19:$BL$35,4,FALSE))","v":""},{"$f":"IF($C21=\"\",\"\",VLOOKUP($C21,Defaults!$BN$19:$BS$35,4,FALSE))","v":""},{"$f":"IF($C21=\"\",\"\",VLOOKUP($C21,Defaults!$BU$19:$BZ$35,4,FALSE))","v":""},{"$f":"\"\"","v":""},{"$f":"IF($C21=\"\",\"\",VLOOKUP($C21,Defaults!$CI:$CN,4,FALSE))","v":""},null,{"$f":"IF($C21=\"\",\"\",$C21)","v":""},{"$f":"IF($C21=\"\",\"\",IFERROR(VLOOKUP($C21,Defaults!$AL$19:$AQ$35,5,FALSE),\"\"))","v":""},{"$f":"IF($C21=\"\",\"\",IFERROR(VLOOKUP($C21,Defaults!$AS$19:$AX$35,5,FALSE),\"\"))","v":""},{"$f":"IF($C21=\"\",\"\",IFERROR(VLOOKUP($C21,Defaults!$AZ$19:$BE$35,5,FALSE),\"\"))","v":""},{"$f":"IF($C21=\"\",\"\",IFERROR(VLOOKUP($C21,Defaults!$BG$19:$BL$35,5,FALSE),\"\"))","v":""},{"$f":"IF($C21=\"\",\"\",IFERROR(VLOOKUP($C21,Defaults!$BN$19:$BS$35,5,FALSE),\"\"))","v":""},{"$f":"IF($C21=\"\",\"\",IFERROR(VLOOKUP($C21,Defaults!$BU$19:$BZ$35,5,FALSE),\"\"))","v":""},{"$f":"\"\"","v":""},{"$f":"IF($C21=\"\",\"\",IFERROR(VLOOKUP($C21,Defaults!$CI:$CN,5,FALSE),\"\"))","v":""},null,{"$f":"IF($C21=\"\",\"\",$C21)","v":""},{"$f":"IF($C21=\"\",\"\",IFERROR(VLOOKUP($C21,Defaults!$AL$19:$AQ$35,6,FALSE),\"\"))","v":""},{"$f":"IF($C21=\"\",\"\",IFERROR(VLOOKUP($C21,Defaults!$AS$19:$AX$35,6,FALSE),\"\"))","v":""},{"$f":"IF($C21=\"\",\"\",IFERROR(VLOOKUP($C21,Defaults!$AZ$19:$BE$35,6,FALSE),\"\"))","v":""},{"$f":"IF($C21=\"\",\"\",IFERROR(VLOOKUP($C21,Defaults!$BG$19:$BL$35,6,FALSE),\"\"))","v":""},{"$f":"IF($C21=\"\",\"\",IFERROR(VLOOKUP($C21,Defaults!$BN$19:$BS$35,6,FALSE),\"\"))","v":""},{"$f":"IF($C21=\"\",\"\",IFERROR(VLOOKUP($C21,Defaults!$BU$19:$BZ$35,6,FALSE),\"\"))","v":""},{"$f":"\"\"","v":""},{"$f":"IF($C21=\"\",\"\",IFERROR(VLOOKUP($C21,Defaults!$CI:$CN,6,FALSE),\"\"))","v":""}]
[null,null,"Field Preparation",{"$f":"IF($Z$2=Defaults!$M$5,Cotton!D22,IF($Z$2=Defaults!$M$6,Corn!D22,IF($Z$2=Defaults!$M$7,Sorghum!D22,IF($Z$2=Defaults!$M$8,Soybean!D22,IF($Z$2=Defaults!$M$9,Rice!D22,IF($Z$2=Defaults!$M$10,Peanut!D22,IF($Z$2=Defaults!$M$11,Wheat!D22,IF($Z$2=Defaults!$M$12,Pasture!D22,FALSE))))))))","v":"Spring"},null,null,null,null,null,null,null,null,null,null,null,null,null,null,null,null,null,null,null,null,null,{"$f":"IF($Z$2=Defaults!$M$5,Cotton!B22,IF($Z$2=Defaults!$M$6,Corn!B22,IF($Z$2=Defaults!$M$7,Sorghum!B22,IF($Z$2=Defaults!$M$8,Soybean!B22,IF($Z$2=Defaults!$M$9,Rice!B22,IF($Z$2=Defaults!$M$10,Peanut!B22,IF($Z$2=Defaults!$M$11,Wheat!B22,IF($Z$2=Defaults!$M$12,Pasture!B22,\"\"))))))))","v":"Field Preparation"}]
[null,null,"Fertilizer Spreader",null,null,{"$f":"IF(L23=0,0,IF(C23=Defaults!$I$37,Implements!$AK$187,0))","v":23.757575757575754},{"$f":"IF($L23=0,0,IFERROR(VLOOKUP($C23,Implements!$X$181:$AN$188,15,FALSE),0))","v":8.36},{"$f":"IF($L23=0,0,IFERROR(VLOOKUP($C23,Implements!$X$181:$AN$188,16,FALSE),0))","v":17.166666666666668},{"$f":"IF($L23=0,0,IFERROR(VLOOKUP($C23,Implements!$X$181:$AN$188,17,FALSE),0))","v":93.003051050249965},{"$f":"IF(OR(C23=\"\",L23=\"\",L23=0)=TRUE,\"\",IF(C23=Defaults!$I$36,VLOOKUP(C23,Defaults!$I$35:$K$37,3,FALSE),ROUND(1/F23*(1*Inputs!$AA$13+($AI$9-1)*Inputs!$AA$15),2)+ROUND(G23*Inputs!$V$13/F23,2)+ROUND(H23/F23,2)+ROUND(I23/F23,2)))","v":5.99},{"$f":"IF(OR(C23=\"\",L23=\"\",L23=0)=TRUE,\"\",IF(C23=Defaults!$I$36,VLOOKUP(C23,Defaults!$I$35:$K$37,3,FALSE),ROUND(1/F23*(1*Inputs!$AA$13+($AI$9-1)*Inputs!$AA$15),2)+ROUND(G23*Inputs!$V$13/F23,2)+ROUND(H23/F23,2)+ROUND(I23/F23,2)))","v":5.99},1,{"$f":"AB23","v":1},{"$f":"IF(C23=\"\",0,IF(L23=0,0,IF(L23=\"\",\"\",J23*L23)))","v":5.99},null,null,{"$f":"IF(V23=0,0,IF(C23=Defaults!$I$37,Implements!$AK$176,0))","v":24.282618181818179},{"$f":"IF($V23=0,0,IFERROR(VLOOKUP($C23,Implements!$X$170:$AN$177,15,FALSE),0))","v":8.36},{"$f":"IF($V23=0,0,IFERROR(VLOOKUP($C23,Implements!$X$170:$AN$177,16,FALSE),0))","v":17.166666666666668},{"$f":"IF($V23=0,0,IFERROR(VLOOKUP($C23,Implements!$X$170:$AN$177,17,FALSE),0))","v":93.712473576284623},{"$f":"IF(OR(C23=\"\",V23=\"\",V23=0)=TRUE,\"\",IF(LEFT(C23,6)=\"Custom\",J23,ROUND(1/Q23*(1*Inputs!$AA$13+($AI$9-1)*Inputs!$AA$15),2)+ROUND(R23*Inputs!$V$13/Q23,2)+ROUND(S23/Q23,2)+ROUND(T23/Q23,2)))","v":5.9},{"$f":"+L23","v":1},{"$f":"IF(C23=\"\",\"\",IF(V23=0,0,IF(V23=\"\",\"\",U23*V23)))","v":5.9},{"$f":"IF(C23=\"\",\"\",W23-N23)","v":-8.9999999999999858E-2},null,{"$f":"IF($Z$2=Defaults!$M$5,Cotton!B23,IF($Z$2=Defaults!$M$6,Corn!B23,IF($Z$2=Defaults!$M$7,Sorghum!B23,IF($Z$2=Defaults!$M$8,Soybean!B23,IF($Z$2=Defaults!$M$9,Rice!B23,IF($Z$2=Defaults!$M$10,Peanut!B23,IF($Z$2=Defaults!$M$11,Wheat!B23,IF($Z$2=Defaults!$M$12,Pasture!B23,\"\"))))))))","v":"Fertilizer Spreader"},null,{"$f":"IF(C23=\"\",\"\",HLOOKUP(Z2,Defaults!$X$2:$AE$14,13,FALSE))","v":1},0,{"$f":"IF(AB23=\"\",\"\",AB23*2)","v":2},null,null,{"$f":"+AB23","v":1},{"$f":"N23","v":5.99},{"$f":"ROUND(IFERROR(1/F23*(1*Inputs!$AA$13+($AI$7-1)*Inputs!$AA$15),0),2)*L23","v":0.74},{"$f":"ROUND(IFERROR(1/F23*G23*Inputs!$V$13,0),2)*L23","v":0.62},{"$f":"ROUND(IFERROR(1/F23*H23,0),2)*L23","v":0.72},{"$f":"ROUND(IFERROR(1/F23*I23,0),2)*L23","v":3.91},null,null,null,{"$f":"W23","v":5.9},{"$f":"ROUND(IFERROR(1/Q23*(1*Inputs!$AA$13+($AI$7-1)*Inputs!$AA$15),0),2)*V23","v":0.73},{"$f":"ROUND(IFERROR(1/Q23*R23*Inputs!$V$13,0),2)*V23","v":0.6},{"$f":"ROUND(IFERROR(1/Q23*S23,0),2)*V23","v":0.71},{"$f":"ROUND(IFERROR(1/Q23*T23,0),2)*V23","v":3.86}]
[null,null,"Triple Superphosphate [0-45-0]",null,"lb",null,null,null,null,0.2,{"$f":"IF(C24=\"\",\"\",ROUND(IF(E24=AE24,AF24,IF(AE24=$AC$2,AF24*VLOOKUP(E24,$AA$2:$AB$4,2,FALSE),IF(AE24=$AF$2,AF24*VLOOKUP(E24,$AD$2:$AE$3,2,FALSE),IF(AE24=$AI$2,AF24/VLOOKUP(E24,$AG$2:$AH$2,2,FALSE),IF(AE24=$AL$2,AF24*VLOOKUP(E24,$AJ$2:$AK$2,2,FALSE),IF(AE24=$AO$2,AF24/VLOOKUP(E24,$AM$2:$AN$2,2,FALSE),IF(AE24=$AR$2,AF24*VLOOKUP(E24,$AP$2:$AQ$3,2,FALSE)))))))),2))","v":0.2},90,90,18,null,null,{"$f":"IF(L24>0,ABS(V24-L24),\"\")","v":2.0159999999999911},null,null,null,{"$f":"J24","v":0.2},{"$f":"IF(AG24=0,0,AG24)","v":87.984000000000009},17.596800000000002,-0.40319999999999823,null,{"$f":"IF($Z$2=Defaults!$M$5,Cotton!B24,IF($Z$2=Defaults!$M$6,Corn!B24,IF($Z$2=Defaults!$M$7,Sorghum!B24,IF($Z$2=Defaults!$M$8,Soybean!B24,IF($Z$2=Defaults!$M$9,Rice!B24,IF($Z$2=Defaults!$M$10,Peanut!B24,IF($Z$2=Defaults!$M$11,Wheat!B24,IF($Z$2=Defaults!$M$12,Pasture!B24,\"\"))))))))","v":"Triple Superphosphate [0-45-0]"},{"$f":"IF(C24=\"\",\"\",VLOOKUP(C24,Defaults!$T$3:$AE$13,4,FALSE))","v":"lb"},{"$f":"IF(C24=\"\",\"\",IFERROR(VLOOKUP(C24,Defaults!$T$3:$AE$13,$Z$9,FALSE),\"\"))","v":90},0,null,{"$f":"IF(C24=\"\",\"\",VLOOKUP(C24,Defaults!$T$3:$V$13,2,FALSE))","v":"cwt"},{"$f":"IF(C24=\"\",\"\",ROUND(VLOOKUP(C24,Defaults!$T$3:$V$13,3,FALSE),2))","v":21.88},{"$f":"IFERROR(IF(LEFT($C$23,6)=\"Custom\",L24,L24*(1-VLOOKUP($C$23,Implements!$A$159:$D$166,4,FALSE))),\"\")","v":87.984000000000009},null,null,null,null,null,{"$f":"N24","v":18},null,{"$f":"N24","v":18},null,null,null,null,null,{"$f":"W24","v":17.596800000000002},null,{"$f":"W24","v":17.596800000000002}]
[null,null,"Potash [0-0-60]",null,"lb",null,null,null,null,0.15,0.15,100,100,15,null,null,2.2399999999999949,null,null,null,0.15,97.76,14.664,-0.3360000000000003,null,{"$f":"IF($Z$2=Defaults!$M$5,Cotton!B25,IF($Z$2=Defaults!$M$6,Corn!B25,IF($Z$2=Defaults!$M$7,Sorghum!B25,IF($Z$2=Defaults!$M$8,Soybean!B25,IF($Z$2=Defaults!$M$9,Rice!B25,IF($Z$2=Defaults!$M$10,Peanut!B25,IF($Z$2=Defaults!$M$11,Wheat!B25,IF($Z$2=Defaults!$M$12,Pasture!B25,\"\"))))))))","v":"Potash [0-0-60]"},{"$f":"IF(C25=\"\",\"\",VLOOKUP(C25,Defaults!$T$3:$AE$13,4,FALSE))","v":"lb"},{"$f":"IF(C25=\"\",\"\",IFERROR(VLOOKUP(C25,Defaults!$T$3:$AE$13,$Z$9,FALSE),\"\"))","v":100},0,null,{"$f":"IF(C25=\"\",\"\",VLOOKUP(C25,Defaults!$T$3:$V$13,2,FALSE))","v":"cwt"},{"$f":"IF(C25=\"\",\"\",ROUND(VLOOKUP(C25,Defaults!$T$3:$V$13,3,FALSE),2))","v":16.97},{"$f":"IFERROR(IF(LEFT($C$23,6)=\"Custom\",L25,L25*(1-VLOOKUP($C$23,Implements!$A$159:$D$166,4,FALSE))),\"\")","v":97.76},null,null,null,null,null,15,null,15,null,null,null,null,null,14.664,null,14.664]
[null,null,null,null,null,null,null,null,null,null,"",null,"",0,null,null,"",null,null,null,0,0,"","",null,{"$f":"IF($Z$2=Defaults!$M$5,Cotton!B26,IF($Z$2=Defaults!$M$6,Corn!B26,IF($Z$2=Defaults!$M$7,Sorghum!B26,IF($Z$2=Defaults!$M$8,Soybean!B26,IF($Z$2=Defaults!$M$9,Rice!B26,IF($Z$2=Defaults!$M$10,Peanut!B26,IF($Z$2=Defaults!$M$11,Wheat!B26,IF($Z$2=Defaults!$M$12,Pasture!B26,\"\"))))))))","v":""},{"$f":"IF(C26=\"\",\"\",VLOOKUP(C26,Defaults!$T$3:$AE$13,4,FALSE))","v":""},{"$f":"IF(C26=\"\",\"\",IFERROR(VLOOKUP(C26,Defaults!$T$3:$AE$13,$Z$9,FALSE),\"\"))","v":""},0,null,{"$f":"IF(C26=\"\",\"\",VLOOKUP(C26,Defaults!$T$3:$V$13,2,FALSE))","v":""},{"$f":"IF(C26=\"\",\"\",ROUND(VLOOKUP(C26,Defaults!$T$3:$V$13,3,FALSE),2))","v":""},{"$f":"IFERROR(IF(LEFT($C$23,6)=\"Custom\",L26,L26*(1-VLOOKUP($C$23,Implements!$A$159:$D$166,4,FALSE))),\"\")","v":0},null,null,null,null,null,0,null,0,null,null,null,null,null,"",null,""]
[null,null,null,null,null,null,null,null,null,null,"",null,"",0,null,null,"",null,null,null,0,0,"","",null,{"$f":"IF($Z$2=Defaults!$M$5,Cotton!B27,IF($Z$2=Defaults!$M$6,Corn!B27,IF($Z$2=Defaults!$M$7,Sorghum!B27,IF($Z$2=Defaults!$M$8,Soybean!B27,IF($Z$2=Defaults!$M$9,Rice!B27,IF($Z$2=Defaults!$M$10,Peanut!B27,IF($Z$2=Defaults!$M$11,Wheat!B27,IF($Z$2=Defaults!$M$12,Pasture!B27,\"\"))))))))","v":""},{"$f":"IF(C27=\"\",\"\",VLOOKUP(C27,Defaults!$T$3:$AE$13,4,FALSE))","v":""},{"$f":"IF(C27=\"\",\"\",IFERROR(VLOOKUP(C27,Defaults!$T$3:$AE$13,$Z$9,FALSE),\"\"))","v":""},0,null,{"$f":"IF(C27=\"\",\"\",VLOOKUP(C27,Defaults!$T$3:$V$13,2,FALSE))","v":""},{"$f":"IF(C27=\"\",\"\",ROUND(VLOOKUP(C27,Defaults!$T$3:$V$13,3,FALSE),2))","v":""},{"$f":"IFERROR(IF(LEFT($C$23,6)=\"Custom\",L27,L27*(1-VLOOKUP($C$23,Implements!$A$159:$D$166,4,FALSE))),\"\")","v":0},null,null,null,null,null,0,null,0,null,null,null,null,null,"",null,""]
[null,null,null,null,null,null,null,null,null,null,"",null,"",0,null,null,"",null,null,null,0,0,"","",null,{"$f":"IF($Z$2=Defaults!$M$5,Cotton!B28,IF($Z$2=Defaults!$M$6,Corn!B28,IF($Z$2=Defaults!$M$7,Sorghum!B28,IF($Z$2=Defaults!$M$8,Soybean!B28,IF($Z$2=Defaults!$M$9,Rice!B28,IF($Z$2=Defaults!$M$10,Peanut!B28,IF($Z$2=Defaults!$M$11,Wheat!B28,IF($Z$2=Defaults!$M$12,Pasture!B28,\"\"))))))))","v":""},{"$f":"IF(C28=\"\",\"\",VLOOKUP(C28,Defaults!$T$3:$AE$13,4,FALSE))","v":""},{"$f":"IF(C28=\"\",\"\",IFERROR(VLOOKUP(C28,Defaults!$T$3:$AE$13,$Z$9,FALSE),\"\"))","v":""},0,null,{"$f":"IF(C28=\"\",\"\",VLOOKUP(C28,Defaults!$T$3:$V$13,2,FALSE))","v":""},{"$f":"IF(C28=\"\",\"\",ROUND(VLOOKUP(C28,Defaults!$T$3:$V$13,3,FALSE),2))","v":""},{"$f":"IFERROR(IF(LEFT($C$23,6)=\"Custom\",L28,L28*(1-VLOOKUP($C$23,Implements!$A$159:$D$166,4,FALSE))),\"\")","v":0},null,null,null,null,null,0,null,0,null,null,null,null,null,"",null,""]
[null,null,null,null,null,null,null,null,null,null,"",null,"",0,null,null,"",null,null,null,0,0,"","",null,{"$f":"IF($Z$2=Defaults!$M$5,Cotton!B29,IF($Z$2=Defaults!$M$6,Corn!B29,IF($Z$2=Defaults!$M$7,Sorghum!B29,IF($Z$2=Defaults!$M$8,Soybean!B29,IF($Z$2=Defaults!$M$9,Rice!B29,IF($Z$2=Defaults!$M$10,Peanut!B29,IF($Z$2=Defaults!$M$11,Wheat!B29,IF($Z$2=Defaults!$M$12,Pasture!B29,\"\"))))))))","v":""},{"$f":"IF(C29=\"\",\"\",VLOOKUP(C29,Defaults!$T$3:$AE$13,4,FALSE))","v":""},{"$f":"IF(C29=\"\",\"\",IFERROR(VLOOKUP(C29,Defaults!$T$3:$AE$13,$Z$9,FALSE),\"\"))","v":""},1,null,{"$f":"IF(C29=\"\",\"\",VLOOKUP(C29,Defaults!$T$3:$V$13,2,FALSE))","v":""},{"$f":"IF(C29=\"\",\"\",ROUND(VLOOKUP(C29,Defaults!$T$3:$V$13,3,FALSE),2))","v":""},{"$f":"IFERROR(IF(LEFT($C$23,6)=\"Custom\",L29,L29*(1-VLOOKUP($C$23,Implements!$A$159:$D$166,4,FALSE))),\"\")","v":0},null,null,null,null,null,0,null,0,null,null,null,null,null,"",null,""]
[null,null,"Planting, Insecticide and Fungicide Application",null,null,null,null,null,null,null,null,null,null,null,null,null,null,null,null,null,null,null,null,null,null,{"$f":"IF($Z$2=Defaults!$M$5,Cotton!B30,IF($Z$2=Defaults!$M$6,Corn!B30,IF($Z$2=Defaults!$M$7,Sorghum!B30,IF($Z$2=Defaults!$M$8,Soybean!B30,IF($Z$2=Defaults!$M$9,Rice!B30,IF($Z$2=Defaults!$M$10,Peanut!B30,IF($Z$2=Defaults!$M$11,Wheat!B30,IF($Z$2=Defaults!$M$12,Pasture!B30,\"\"))))))))","v":"Planting, Insecticide and Fungicide Application"},null,null,null,null,null,null,null,null,null,null,null,null,null,null,null,null,null,null,null,null,null,null,null,null,"Insecticide - Defoliant/Fertilizer/Innoculant/Litter - Fungicide/Growth Regulator",null,null,null,null,null,null,null,null,null,"Insecticide - Defoliant/Fertilizer/Innoculant/Litter - Fungicide/Growth Regulator"]
[null,null,"Row Planter 1",null,null,{"$f":"IF($L31=0,0,IF($C31=Defaults!$I$9,Implements!$AK$181,IF(C31=Defaults!$I$10,Implements!$AK$182,IF($C31=Defaults!$I$7,Implements!$AK$183,IF(C31=Defaults!$I$8,Implements!$AK$184,0)))))","v":8.6666666666666679},{"$f":"IF($L31=0,0,IFERROR(VLOOKUP($C31,Implements!$X$181:$AN$188,15,FALSE),0))","v":8.36},{"$f":"IF($L31=0,0,IFERROR(VLOOKUP($C31,Implements!$X$181:$AN$188,16,FALSE),0))","v":43.466666666666669},{"$f":"IF($L31=0,0,IFERROR(VLOOKUP($C31,Implements!$X$181:$AN$188,17,FALSE),0))","v":118.54071967402078},{"$f":"IF(OR(C31=\"\",L31=\"\",L31=0)=TRUE,\"\",IF(OR(C31=Defaults!$I$5,C31=Defaults!$I$6)=TRUE,$AT$4,IF(OR(C31=AV2,C31=AV3,C31=AV4,C31=AV5,C31=AV6,C31=AV7)=TRUE,ROUND(1/F31*(1*Inputs!$AA$13+($AI$8-1)*Inputs!$AA$15),2)+ROUND(G31*Inputs!$V$13/F31,2)+ROUND(H31*1/F31,2)+ROUND(I31/F31,2))))","v":22.43},{"$f":"IF(OR(C31=\"\",L31=\"\",L31=0)=TRUE,\"\",IF(OR(C31=Defaults!$I$5,C31=Defaults!$I$6)=TRUE,$AT$4,IF(OR(C31=AV2,C31=AV3,C31=AV4,C31=AV5,C31=AV6,C31=AV7)=TRUE,ROUND(1/F31*(1*Inputs!$AA$13+($AI$8-1)*Inputs!$AA$15),2)+ROUND(G31*Inputs!$V$13/F31,2)+ROUND(H31*1/F31,2)+ROUND(I31/F31,2))))","v":22.43},1,{"$f":"AB31","v":1},{"$f":"IF(C31=\"\",0,IF(L31=0,0,IF(L31=\"\",\"\",J31*L31)))","v":22.43},null,null,{"$f":"IF($V31=0,0,IF($C31=Defaults!$I$9,Implements!$AK$170,IF(C31=Defaults!$I$10,Implements!$AK$171,IF($C31=Defaults!$I$7,Implements!$AK$172,IF(C31=Defaults!$I$8,Implements!$AK$173,0)))))","v":8.8582000000000001},{"$f":"IF($V31=0,0,IFERROR(VLOOKUP($C31,Implements!$X$170:$AN$177,15,FALSE),0))","v":8.36},{"$f":"IF($V31=0,0,IFERROR(VLOOKUP($C31,Implements!$X$170:$AN$177,16,FALSE),0))","v":43.466666666666669},{"$f":"IF($V31=0,0,IFERROR(VLOOKUP($C31,Implements!$X$170:$AN$177,17,FALSE),0))","v":119.31065726286383},{"$f":"IF(OR(C31=\"\",V31=\"\",V31=0)=TRUE,\"\",IF(LEFT(C31,6)=\"Custom\",J31,ROUND(1/Q31*(1*Inputs!$AA$13+($AI$8-1)*Inputs!$AA$15),2)+ROUND(R31*Inputs!$V$13/Q31,2)+ROUND(S31*1/Q31,2)+ROUND(T31/Q31,2)))","v":22.020000000000003},{"$f":"+L31","v":1},{"$f":"IF(C31=\"\",\"\",IF(V31=0,0,IF(V31=\"\",\"\",U31*V31)))","v":22.020000000000003},{"$f":"IF(C31=\"\",\"\",W31-N31)","v":-0.40999999999999659},null,{"$f":"IF($Z$2=Defaults!$M$5,Cotton!B31,IF($Z$2=Defaults!$M$6,Corn!B31,IF($Z$2=Defaults!$M$7,Sorghum!B31,IF($Z$2=Defaults!$M$8,Soybean!B31,IF($Z$2=Defaults!$M$9,Rice!B31,IF($Z$2=Defaults!$M$10,Peanut!B31,IF($Z$2=Defaults!$M$11,Wheat!B31,IF($Z$2=Defaults!$M$12,Pasture!B31,\"\"))))))))","v":"Row Planter 1"},null,{"$f":"IF(C31=\"\",\"\",IF($Z$2=Defaults!$M$8,VLOOKUP(C31,Defaults!$I$4:$J$10,2,FALSE),IF(OR($Z$2=Defaults!$M$9,$Z$2=Defaults!$M$11,$Z$2=Defaults!$M$12),VLOOKUP(C31,Defaults!$I$12:$J$16,2,FALSE),VLOOKUP(C31,Defaults!$I$18:$J$22,2,FALSE))))","v":1},0,{"$f":"IF(AB31=\"\",\"\",AB31*2)","v":2},null,null,{"$f":"+AB31","v":1},{"$f":"N31","v":22.43},{"$f":"ROUND(IFERROR(1/F31*(1*Inputs!$AA$13+($AI$7-1)*Inputs!$AA$15),0),2)*L31","v":2.04},{"$f":"ROUND(IFERROR(1/F31*G31*Inputs!$V$13,0),2)*L31","v":1.69},{"$f":"ROUND(IFERROR(1/F31*H31,0),2)*L31","v":5.0199999999999996},{"$f":"ROUND(IFERROR(1/F31*I31,0),2)*L31","v":13.68},null,null,null,{"$f":"W31","v":22.020000000000003},{"$f":"ROUND(IFERROR(1/Q31*(1*Inputs!$AA$13+($AI$7-1)*Inputs!$AA$15),0),2)*V31","v":1.99},{"$f":"ROUND(IFERROR(1/Q31*R31*Inputs!$V$13,0),2)*V31","v":1.65},{"$f":"ROUND(IFERROR(1/Q31*S31,0),2)*V31","v":4.91},{"$f":"ROUND(IFERROR(1/Q31*T31,0),2)*V31","v":13.47},null,null,null,null,null,{"$f":"AZ11","v":"Cotton"},{"$f":"BA11","v":"Corn"},"Sorghum","Soybean","Rice","Peanut","Wheat","Est. Pasture or Hay",null,null,{"$f":"BJ11","v":"Cotton"},{"$f":"BK11","v":"Corn"},"Sorghum","Soybean","Rice","Peanut","Wheat","Est. Pasture or Hay"]
[null,null,"Seed",null,{"$f":"IF(C31=\"\",\"\",\"acre\")","v":"acre"},null,null,null,null,78.599999999999994,{"$f":"IF(OR(C32=\"\",L32=\"\",L32=0)=TRUE,\"\",IF(VLOOKUP($Z$2,Defaults!$M$4:$R$12,6,FALSE)=\"\",\"\",VLOOKUP($Z$2,Defaults!$M$4:$R$12,6,FALSE)))","v":78.599999999999994},1,1,{"$f":"IF(C32=\"\",0,IF(L32=0,0,IF(L32=\"\",\"\",J32*L32)))","v":78.599999999999994},null,null,{"$f":"IF(L32>0,ABS(V32-L32),\"\")","v":2.3499999999999965E-2},null,null,null,{"$f":"J32","v":78.599999999999994},{"$f":"IF(AG32=0,0,AG32)","v":0.97650000000000003},{"$f":"IF(C32=\"\",0,IF(V32=0,0,IF(V32=\"\",\"\",U32*V32)))","v":76.752899999999997},-1.8470999999999975,null,{"$f":"IF($Z$2=Defaults!$M$5,Cotton!B32,IF($Z$2=Defaults!$M$6,Corn!B32,IF($Z$2=Defaults!$M$7,Sorghum!B32,IF($Z$2=Defaults!$M$8,Soybean!B32,IF($Z$2=Defaults!$M$9,Rice!B32,IF($Z$2=Defaults!$M$10,Peanut!B32,IF($Z$2=Defaults!$M$11,Wheat!B32,IF($Z$2=Defaults!$M$12,Pasture!B32,\"\"))))))))","v":"Seed"},{"$f":"VLOOKUP(Z2,Defaults!$M$5:$R$12,6,FALSE)","v":78.599999999999994},{"$f":"IF($C$31=\"\",\"\",1)","v":1},0,null,null,null,{"$f":"IFERROR(IF(LEFT($C$31,6)=\"Custom\",L32,L32*(1-VLOOKUP($C$31,Implements!$A$159:$D$166,4,FALSE))),\"\")","v":0.97650000000000003},null,null,null,null,null,{"$f":"N32","v":78.599999999999994},{"$f":"N32","v":78.599999999999994},null,null,null,null,null,null,{"$f":"W32","v":76.752899999999997},{"$f":"W32","v":76.752899999999997}]
[null,null,"Over-the-Top Sprayer 1",null,null,{"$f":"IF($L33=0,0,IF(C33=Defaults!$I$27,Implements!$AK$185,IF($C33=Defaults!$I$28,Implements!$AK$186,0)))","v":61.454545454545453},{"$f":"IF($L33=0,0,IFERROR(VLOOKUP($C33,Implements!$X$181:$AN$188,15,FALSE),0))","v":8.36},{"$f":"IF($L33=0,0,IFERROR(VLOOKUP($C33,Implements!$X$181:$AN$188,16,FALSE),0))","v":45.046666666666667},{"$f":"IF($L33=0,0,IFERROR(VLOOKUP($C33,Implements!$X$181:$AN$188,17,FALSE),0))","v":137.64582520078542},{"$f":"IF(OR(C33=\"\",L33=\"\",L33=0)=TRUE,\"\",IF(C33=Defaults!$I$40,VLOOKUP(C33,Defaults!$I$39:$K$41,3,FALSE),ROUND(1/F33*(1*Inputs!$AA$13+($AI$7-1)*Inputs!$AA$15),2)+ROUND(G33*Inputs!$V$13/F33,2)+ROUND(H33/F33,2)+ROUND(I33/F33,2)))","v":3.5},{"$f":"IF(OR(C33=\"\",L33=\"\",L33=0)=TRUE,\"\",IF(C33=Defaults!$I$40,VLOOKUP(C33,Defaults!$I$39:$K$41,3,FALSE),ROUND(1/F33*(1*Inputs!$AA$13+($AI$7-1)*Inputs!$AA$15),2)+ROUND(G33*Inputs!$V$13/F33,2)+ROUND(H33/F33,2)+ROUND(I33/F33,2)))","v":3.5},1,1,3.5,null,null,{"$f":"IF($V33=0,0,IF(C33=Defaults!$I$27,Implements!$AK$174,IF($C33=Defaults!$I$28,Implements!$AK$175,0)))","v":62.812690909090918},{"$f":"IF($V33=0,0,IFERROR(VLOOKUP($C33,Implements!$X$170:$AN$177,15,FALSE),0))","v":8.36},{"$f":"IF($V33=0,0,IFERROR(VLOOKUP($C33,Implements!$X$170:$AN$177,16,FALSE),0))","v":45.046666666666667},{"$f":"IF($V33=0,0,IFERROR(VLOOKUP($C33,Implements!$X$170:$AN$177,17,FALSE),0))","v":138.7259236950801},{"$f":"IF(OR(C33=\"\",V33=\"\",V33=0)=TRUE,\"\",IF(LEFT(C33,6)=\"Custom\",J33,ROUND(1/Q33*(1*Inputs!$AA$13+($AI$7-1)*Inputs!$AA$15),2)+ROUND(R33*Inputs!$V$13/Q33,2)+ROUND(S33/Q33,2)+ROUND(T33/Q33,2)))","v":3.44},{"$f":"+L33","v":1},3.44,-6.0000000000000053E-2,null,{"$f":"IF($Z$2=Defaults!$M$5,Cotton!B33,IF($Z$2=Defaults!$M$6,Corn!B33,IF($Z$2=Defaults!$M$7,Sorghum!B33,IF($Z$2=Defaults!$M$8,Soybean!B33,IF($Z$2=Defaults!$M$9,Rice!B33,IF($Z$2=Defaults!$M$10,Peanut!B33,IF($Z$2=Defaults!$M$11,Wheat!B33,IF($Z$2=Defaults!$M$12,Pasture!B33,\"\"))))))))","v":"Over-the-Top Sprayer 1"},null,{"$f":"IF(C33=\"\",\"\",IF(OR($Z$2=Defaults!$M$5,$Z$2=Defaults!$M$6,$Z$2=Defaults!$M$7,$Z$2=Defaults!$M$8,$Z$2=Defaults!$M$9,$Z$2=Defaults!$M$10)=TRUE,HLOOKUP($Z$2,Defaults!X20:AE30,11,FALSE),\"\"))","v":1},0,{"$f":"IF(AB33=\"\",\"\",AB33*2)","v":2},null,null,{"$f":"+AB33","v":1},{"$f":"N33","v":3.5},{"$f":"ROUND(IFERROR(1/F33*(1*Inputs!$AA$13+($AI$7-1)*Inputs!$AA$15),0),2)*L33","v":0.28999999999999998},{"$f":"ROUND(IFERROR(1/F33*G33*Inputs!$V$13,0),2)*L33","v":0.24},{"$f":"ROUND(IFERROR(1/F33*H33,0),2)*L33","v":0.73},{"$f":"ROUND(IFERROR(1/F33*I33,0),2)*L33","v":2.2400000000000002},null,null,null,{"$f":"W33","v":3.44},{"$f":"ROUND(IFERROR(1/Q33*(1*Inputs!$AA$13+($AI$7-1)*Inputs!$AA$15),0),2)*V33","v":0.28000000000000003},{"$f":"ROUND(IFERROR(1/Q33*R33*Inputs!$V$13,0),2)*V33","v":0.23},{"$f":"ROUND(IFERROR(1/Q33*S33,0),2)*V33","v":0.72},{"$f":"ROUND(IFERROR(1/Q33*T33,0),2)*V33","v":2.21},null,null,null,null,"Insecticide",null,null,null,null,null,null,null,null,null,"Insecticide"]
[null,null,"Besiege",null,"oz",null,null,null,null,1.88,{"$f":"IF(C34=\"\",\"\",ROUND(IF(E34=AE34,AF34,IF(AE34=$AC$2,AF34*VLOOKUP(E34,$AA$2:$AB$4,2,FALSE),IF(AE34=$AF$2,AF34*VLOOKUP(E34,$AD$2:$AE$3,2,FALSE),IF(AE34=$AI$2,AF34/VLOOKUP(E34,$AG$2:$AH$2,2,FALSE),IF(AE34=$AL$2,AF34*VLOOKUP(E34,$AJ$2:$AK$2,2,FALSE),IF(AE34=$AO$2,AF34/VLOOKUP(E34,$AM$2:$AN$2,2,FALSE),IF(AE34=$AR$2,AF34*VLOOKUP(E34,$AP$2:$AQ$3,2,FALSE)))))))),2))","v":1.88},10,10,18.799999999999997,null,null,{"$f":"IF(L34>0,ABS(V34-L34),\"\")","v":2.2080000000000002},null,null,null,{"$f":"J34","v":1.88},{"$f":"IF(AG34=0,0,AG34)","v":7.7919999999999998},14.648959999999999,-4.1510399999999983,null,{"$f":"IF($Z$2=Defaults!$M$5,Cotton!B34,IF($Z$2=Defaults!$M$6,Corn!B34,IF($Z$2=Defaults!$M$7,Sorghum!B34,IF($Z$2=Defaults!$M$8,Soybean!B34,IF($Z$2=Defaults!$M$9,Rice!B34,IF($Z$2=Defaults!$M$10,Peanut!B34,IF($Z$2=Defaults!$M$11,Wheat!B34,IF($Z$2=Defaults!$M$12,Pasture!B34,\"\"))))))))","v":"Besiege"},{"$f":"IF(C34=\"\",\"\",HLOOKUP($Z$2,$AZ$31:$BG$42,4,FALSE))","v":"oz"},{"$f":"IF(C34=\"\",\"\",HLOOKUP($Z$2,$BJ$31:$BQ$42,4,FALSE))","v":10},0,null,{"$f":"IF(C34=\"\",\"\",IF(OR($Z$2=Defaults!$M$5,$Z$2=Defaults!$M$6,$Z$2=Defaults!$M$7,$Z$2=Defaults!$M$8,$Z$2=Defaults!$M$9,$Z$2=Defaults!$M$10)=TRUE,VLOOKUP(C34,Defaults!$T$21:$AE$29,2,FALSE),\"\"))","v":"oz"},{"$f":"IF(C34=\"\",\"\",IF(OR($Z$2=Defaults!$M$5,$Z$2=Defaults!$M$6,$Z$2=Defaults!$M$7,$Z$2=Defaults!$M$8,$Z$2=Defaults!$M$9,$Z$2=Defaults!$M$10)=TRUE,ROUND(VLOOKUP(C34,Defaults!$T$21:$AC$29,3,FALSE),2),\"\"))","v":1.88},{"$f":"IFERROR(IF(LEFT($C$33,6)=\"Custom\",L34,L34*(1-VLOOKUP($C$33,Implements!$A$159:$D$166,4,FALSE))),\"\")","v":7.7919999999999998},null,null,null,null,null,{"$f":"N34","v":18.799999999999997},null,{"$f":"N34","v":18.799999999999997},null,null,null,null,null,{"$f":"W34","v":14.648959999999999},null,{"$f":"W34","v":14.648959999999999},null,{"$f":"IF($C34=\"\",\"\",$C34)","v":"Besiege"},{"$f":"IF($C34=\"\",\"\",VLOOKUP(C34,Defaults!$T$21:$AE$29,4,FALSE))","v":"oz"},{"$f":"IF($C34=\"\",\"\",VLOOKUP(C34,Defaults!$T$21:$AE$29,4,FALSE))","v":"oz"},{"$f":"IF($C34=\"\",\"\",VLOOKUP(C34,Defaults!$T$21:$AE$29,4,FALSE))","v":"oz"},{"$f":"IF($C34=\"\",\"\",VLOOKUP(C34,Defaults!$T$21:$AE$29,4,FALSE))","v":"oz"},{"$f":"IF($C34=\"\",\"\",VLOOKUP(C34,Defaults!$T$21:$AE$29,4,FALSE))","v":"oz"},{"$f":"IF($C34=\"\",\"\",VLOOKUP(C34,Defaults!$T$21:$AE$29,4,FALSE))","v":"oz"},null,null,null,{"$f":"IF($C34=\"\",\"\",$C34)","v":"Besiege"},{"$f":"IF($C34=\"\",\"\",IFERROR(VLOOKUP(C34,Defaults!$T$21:$AE$29,5,FALSE),\"\"))","v":""},{"$f":"IF($C34=\"\",\"\",IFERROR(VLOOKUP(C34,Defaults!$T$21:$AE$29,6,FALSE),\"\"))","v":""},{"$f":"IF($C34=\"\",\"\",IFERROR(VLOOKUP(C34,Defaults!$T$21:$AE$29,7,FALSE),\"\"))","v":""},{"$f":"IF($C34=\"\",\"\",IFERROR(VLOOKUP(C34,Defaults!$T$21:$AE$29,8,FALSE),\"\"))","v":10},{"$f":"IF($C34=\"\",\"\",IFERROR(VLOOKUP(C34,Defaults!$T$21:$AE$29,9,FALSE),\"\"))","v":""},{"$f":"IF($C34=\"\",\"\",IFERROR(VLOOKUP(C34,Defaults!$T$21:$AE$29,10,FALSE),\"\"))","v":""}]
[null,null,null,null,null,null,null,null,null,null,{"$f":"IF(C35=\"\",\"\",ROUND(IF(E35=AE35,AF35,IF(AE35=$AC$2,AF35*VLOOKUP(E35,$AA$2:$AB$4,2,FALSE),IF(AE35=$AF$2,AF35*VLOOKUP(E35,$AD$2:$AE$3,2,FALSE),IF(AE35=$AI$2,AF35/VLOOKUP(E35,$AG$2:$AH$2,2,FALSE),IF(AE35=$AL$2,AF35*VLOOKUP(E35,$AJ$2:$AK$2,2,FALSE),IF(AE35=$AO$2,AF35/VLOOKUP(E35,$AM$2:$AN$2,2,FALSE),IF(AE35=$AR$2,AF35*VLOOKUP(E35,$AP$2:$AQ$3,2,FALSE)))))))),2))","v":""},null,"",0,null,null,{"$f":"IF(L35>0,ABS(V35-L35),\"\")","v":""},null,null,null,{"$f":"J35","v":0},{"$f":"IF(AG35=0,0,AG35)","v":0},"","",null,{"$f":"IF($Z$2=Defaults!$M$5,Cotton!B35,IF($Z$2=Defaults!$M$6,Corn!B35,IF($Z$2=Defaults!$M$7,Sorghum!B35,IF($Z$2=Defaults!$M$8,Soybean!B35,IF($Z$2=Defaults!$M$9,Rice!B35,IF($Z$2=Defaults!$M$10,Peanut!B35,IF($Z$2=Defaults!$M$11,Wheat!B35,IF($Z$2=Defaults!$M$12,Pasture!B35,\"\"))))))))","v":""},{"$f":"IF(C35=\"\",\"\",HLOOKUP($Z$2,$AZ$31:$BG$42,5,FALSE))","v":""},{"$f":"IF(C35=\"\",\"\",HLOOKUP($Z$2,$BJ$31:$BQ$42,5,FALSE))","v":""},0,null,{"$f":"IF(C35=\"\",\"\",IF(OR($Z$2=Defaults!$M$5,$Z$2=Defaults!$M$6,$Z$2=Defaults!$M$7,$Z$2=Defaults!$M$8,$Z$2=Defaults!$M$9,$Z$2=Defaults!$M$10)=TRUE,VLOOKUP(C35,Defaults!$T$21:$AE$29,2,FALSE),\"\"))","v":""},{"$f":"IF(C35=\"\",\"\",IF(OR($Z$2=Defaults!$M$5,$Z$2=Defaults!$M$6,$Z$2=Defaults!$M$7,$Z$2=Defaults!$M$8,$Z$2=Defaults!$M$9,$Z$2=Defaults!$M$10)=TRUE,ROUND(VLOOKUP(C35,Defaults!$T$21:$AC$29,3,FALSE),2),\"\"))","v":""},{"$f":"IFERROR(IF(LEFT($C$33,6)=\"Custom\",L35,L35*(1-VLOOKUP($C$33,Implements!$A$159:$D$166,4,FALSE))),\"\")","v":0},null,null,null,null,null,{"$f":"N35","v":0},null,{"$f":"N35","v":0},null,null,null,null,null,{"$f":"W35","v":""},null,{"$f":"W35","v":""},null,"",{"$f":"IF($C35=\"\",\"\",VLOOKUP(C35,Defaults!$T$21:$AE$29,4,FALSE))","v":""},{"$f":"IF($C35=\"\",\"\",VLOOKUP(C35,Defaults!$T$21:$AE$29,4,FALSE))","v":""},{"$f":"IF($C35=\"\",\"\",VLOOKUP(C35,Defaults!$T$21:$AE$29,4,FALSE))","v":""},{"$f":"IF($C35=\"\",\"\",VLOOKUP(C35,Defaults!$T$21:$AE$29,4,FALSE))","v":""},{"$f":"IF($C35=\"\",\"\",VLOOKUP(C35,Defaults!$T$21:$AE$29,4,FALSE))","v":""},{"$f":"IF($C35=\"\",\"\",VLOOKUP(C35,Defaults!$T$21:$AE$29,4,FALSE))","v":""},null,null,null,{"$f":"IF($C35=\"\",\"\",$C35)","v":""},{"$f":"IF($C35=\"\",\"\",IFERROR(VLOOKUP(C35,Defaults!$T$21:$AE$29,5,FALSE),\"\"))","v":""},{"$f":"IF($C35=\"\",\"\",IFERROR(VLOOKUP(C35,Defaults!$T$21:$AE$29,6,FALSE),\"\"))","v":""},{"$f":"IF($C35=\"\",\"\",IFERROR(VLOOKUP(C35,Defaults!$T$21:$AE$29,7,FALSE),\"\"))","v":""},{"$f":"IF($C35=\"\",\"\",IFERROR(VLOOKUP(C35,Defaults!$T$21:$AE$29,8,FALSE),\"\"))","v":""},{"$f":"IF($C35=\"\",\"\",IFERROR(VLOOKUP(C35,Defaults!$T$21:$AE$29,9,FALSE),\"\"))","v":""},{"$f":"IF($C35=\"\",\"\",IFERROR(VLOOKUP(C35,Defaults!$T$21:$AE$29,10,FALSE),\"\"))","v":""}]
[null,null,null,null,null,null,null,null,null,null,{"$f":"IF(C36=\"\",\"\",ROUND(IF(E36=AE36,AF36,IF(AE36=$AC$2,AF36*VLOOKUP(E36,$AA$2:$AB$4,2,FALSE),IF(AE36=$AF$2,AF36*VLOOKUP(E36,$AD$2:$AE$3,2,FALSE),IF(AE36=$AI$2,AF36/VLOOKUP(E36,$AG$2:$AH$2,2,FALSE),IF(AE36=$AL$2,AF36*VLOOKUP(E36,$AJ$2:$AK$2,2,FALSE),IF(AE36=$AO$2,AF36/VLOOKUP(E36,$AM$2:$AN$2,2,FALSE),IF(AE36=$AR$2,AF36*VLOOKUP(E36,$AP$2:$AQ$3,2,FALSE)))))))),2))","v":""},null,"",0,null,null,{"$f":"IF(L36>0,ABS(V36-L36),\"\")","v":""},null,null,null,{"$f":"J36","v":0},{"$f":"IF(AG36=0,0,AG36)","v":0},"","",null,{"$f":"IF($Z$2=Defaults!$M$5,Cotton!B36,IF($Z$2=Defaults!$M$6,Corn!B36,IF($Z$2=Defaults!$M$7,Sorghum!B36,IF($Z$2=Defaults!$M$8,Soybean!B36,IF($Z$2=Defaults!$M$9,Rice!B36,IF($Z$2=Defaults!$M$10,Peanut!B36,IF($Z$2=Defaults!$M$11,Wheat!B36,IF($Z$2=Defaults!$M$12,Pasture!B36,\"\"))))))))","v":""},{"$f":"IF(C36=\"\",\"\",HLOOKUP($Z$2,$AZ$31:$BG$42,6,FALSE))","v":""},{"$f":"IF(C36=\"\",\"\",HLOOKUP($Z$2,$BJ$31:$BQ$42,6,FALSE))","v":""},0,null,{"$f":"IF(C36=\"\",\"\",IF(OR($Z$2=Defaults!$M$5,$Z$2=Defaults!$M$6,$Z$2=Defaults!$M$7,$Z$2=Defaults!$M$8,$Z$2=Defaults!$M$9,$Z$2=Defaults!$M$10)=TRUE,VLOOKUP(C36,Defaults!$T$21:$AE$29,2,FALSE),\"\"))","v":""},{"$f":"IF(C36=\"\",\"\",IF(OR($Z$2=Defaults!$M$5,$Z$2=Defaults!$M$6,$Z$2=Defaults!$M$7,$Z$2=Defaults!$M$8,$Z$2=Defaults!$M$9,$Z$2=Defaults!$M$10)=TRUE,ROUND(VLOOKUP(C36,Defaults!$T$21:$AC$29,3,FALSE),2),\"\"))","v":""},{"$f":"IFERROR(IF(LEFT($C$33,6)=\"Custom\",L36,L36*(1-VLOOKUP($C$33,Implements!$A$159:$D$166,4,FALSE))),\"\")","v":0},null,null,null,null,null,{"$f":"N36","v":0},null,{"$f":"N36","v":0},null,null,null,null,null,{"$f":"W36","v":""},null,{"$f":"W36","v":""},null,"",{"$f":"IF($C36=\"\",\"\",VLOOKUP(C36,Defaults!$T$21:$AE$29,4,FALSE))","v":""},{"$f":"IF($C36=\"\",\"\",VLOOKUP(C36,Defaults!$T$21:$AE$29,4,FALSE))","v":""},{"$f":"IF($C36=\"\",\"\",VLOOKUP(C36,Defaults!$T$21:$AE$29,4,FALSE))","v":""},{"$f":"IF($C36=\"\",\"\",VLOOKUP(C36,Defaults!$T$21:$AE$29,4,FALSE))","v":""},{"$f":"IF($C36=\"\",\"\",VLOOKUP(C36,Defaults!$T$21:$AE$29,4,FALSE))","v":""},{"$f":"IF($C36=\"\",\"\",VLOOKUP(C36,Defaults!$T$21:$AE$29,4,FALSE))","v":""},null,null,null,{"$f":"IF($C36=\"\",\"\",$C36)","v":""},{"$f":"IF($C36=\"\",\"\",IFERROR(VLOOKUP(C36,Defaults!$T$21:$AE$29,5,FALSE),\"\"))","v":""},{"$f":"IF($C36=\"\",\"\",IFERROR(VLOOKUP(C36,Defaults!$T$21:$AE$29,6,FALSE),\"\"))","v":""},{"$f":"IF($C36=\"\",\"\",IFERROR(VLOOKUP(C36,Defaults!$T$21:$AE$29,7,FALSE),\"\"))","v":""},{"$f":"IF($C36=\"\",\"\",IFERROR(VLOOKUP(C36,Defaults!$T$21:$AE$29,8,FALSE),\"\"))","v":""},{"$f":"IF($C36=\"\",\"\",IFERROR(VLOOKUP(C36,Defaults!$T$21:$AE$29,9,FALSE),\"\"))","v":""},{"$f":"IF($C36=\"\",\"\",IFERROR(VLOOKUP(C36,Defaults!$T$21:$AE$29,10,FALSE),\"\"))","v":""}]
[null,null,null,null,null,null,null,null,null,null,{"$f":"IF(C37=\"\",\"\",ROUND(IF(E37=AE37,AF37,IF(AE37=$AC$2,AF37*VLOOKUP(E37,$AA$2:$AB$4,2,FALSE),IF(AE37=$AF$2,AF37*VLOOKUP(E37,$AD$2:$AE$3,2,FALSE),IF(AE37=$AI$2,AF37/VLOOKUP(E37,$AG$2:$AH$2,2,FALSE),IF(AE37=$AL$2,AF37*VLOOKUP(E37,$AJ$2:$AK$2,2,FALSE),IF(AE37=$AO$2,AF37/VLOOKUP(E37,$AM$2:$AN$2,2,FALSE),IF(AE37=$AR$2,AF37*VLOOKUP(E37,$AP$2:$AQ$3,2,FALSE)))))))),2))","v":""},null,"",0,null,null,{"$f":"IF(L37>0,ABS(V37-L37),\"\")","v":""},null,null,null,{"$f":"J37","v":0},{"$f":"IF(AG37=0,0,AG37)","v":0},"","",null,{"$f":"IF($Z$2=Defaults!$M$5,Cotton!B37,IF($Z$2=Defaults!$M$6,Corn!B37,IF($Z$2=Defaults!$M$7,Sorghum!B37,IF($Z$2=Defaults!$M$8,Soybean!B37,IF($Z$2=Defaults!$M$9,Rice!B37,IF($Z$2=Defaults!$M$10,Peanut!B37,IF($Z$2=Defaults!$M$11,Wheat!B37,IF($Z$2=Defaults!$M$12,Pasture!B37,\"\"))))))))","v":""},{"$f":"IF(C37=\"\",\"\",HLOOKUP($Z$2,$AZ$31:$BG$42,7,FALSE))","v":""},{"$f":"IF(C37=\"\",\"\",HLOOKUP($Z$2,$BJ$31:$BQ$42,7,FALSE))","v":""},0,null,{"$f":"IF(C37=\"\",\"\",IF(OR($Z$2=Defaults!$M$5,$Z$2=Defaults!$M$6,$Z$2=Defaults!$M$7,$Z$2=Defaults!$M$8,$Z$2=Defaults!$M$9,$Z$2=Defaults!$M$10)=TRUE,VLOOKUP(C37,Defaults!$T$21:$AE$29,2,FALSE),\"\"))","v":""},{"$f":"IF(C37=\"\",\"\",IF(OR($Z$2=Defaults!$M$5,$Z$2=Defaults!$M$6,$Z$2=Defaults!$M$7,$Z$2=Defaults!$M$8,$Z$2=Defaults!$M$9,$Z$2=Defaults!$M$10)=TRUE,ROUND(VLOOKUP(C37,Defaults!$T$21:$AC$29,3,FALSE),2),\"\"))","v":""},{"$f":"IFERROR(IF(LEFT($C$33,6)=\"Custom\",L37,L37*(1-VLOOKUP($C$33,Implements!$A$159:$D$166,4,FALSE))),\"\")","v":0},null,null,null,null,null,{"$f":"N37","v":0},null,{"$f":"N37","v":0},null,null,null,null,null,{"$f":"W37","v":""},null,{"$f":"W37","v":""},null,"",{"$f":"IF($C37=\"\",\"\",VLOOKUP(C37,Defaults!$T$21:$AE$29,4,FALSE))","v":""},{"$f":"IF($C37=\"\",\"\",VLOOKUP(C37,Defaults!$T$21:$AE$29,4,FALSE))","v":""},{"$f":"IF($C37=\"\",\"\",VLOOKUP(C37,Defaults!$T$21:$AE$29,4,FALSE))","v":""},{"$f":"IF($C37=\"\",\"\",VLOOKUP(C37,Defaults!$T$21:$AE$29,4,FALSE))","v":""},{"$f":"IF($C37=\"\",\"\",VLOOKUP(C37,Defaults!$T$21:$AE$29,4,FALSE))","v":""},{"$f":"IF($C37=\"\",\"\",VLOOKUP(C37,Defaults!$T$21:$AE$29,4,FALSE))","v":""},null,null,null,{"$f":"IF($C37=\"\",\"\",$C37)","v":""},{"$f":"IF($C37=\"\",\"\",IFERROR(VLOOKUP(C37,Defaults!$T$21:$AE$29,5,FALSE),\"\"))","v":""},{"$f":"IF($C37=\"\",\"\",IFERROR(VLOOKUP(C37,Defaults!$T$21:$AE$29,6,FALSE),\"\"))","v":""},{"$f":"IF($C37=\"\",\"\",IFERROR(VLOOKUP(C37,Defaults!$T$21:$AE$29,7,FALSE),\"\"))","v":""},{"$f":"IF($C37=\"\",\"\",IFERROR(VLOOKUP(C37,Defaults!$T$21:$AE$29,8,FALSE),\"\"))","v":""},{"$f":"IF($C37=\"\",\"\",IFERROR(VLOOKUP(C37,Defaults!$T$21:$AE$29,9,FALSE),\"\"))","v":""},{"$f":"IF($C37=\"\",\"\",IFERROR(VLOOKUP(C37,Defaults!$T$21:$AE$29,10,FALSE),\"\"))","v":""}]
[null,null,null,null,null,null,null,null,null,null,{"$f":"IF(C38=\"\",\"\",ROUND(IF(E38=AE38,AF38,IF(AE38=$AC$2,AF38*VLOOKUP(E38,$AA$2:$AB$4,2,FALSE),IF(AE38=$AF$2,AF38*VLOOKUP(E38,$AD$2:$AE$3,2,FALSE),IF(AE38=$AI$2,AF38/VLOOKUP(E38,$AG$2:$AH$2,2,FALSE),IF(AE38=$AL$2,AF38*VLOOKUP(E38,$AJ$2:$AK$2,2,FALSE),IF(AE38=$AO$2,AF38/VLOOKUP(E38,$AM$2:$AN$2,2,FALSE),IF(AE38=$AR$2,AF38*VLOOKUP(E38,$AP$2:$AQ$3,2,FALSE)))))))),2))","v":""},null,"",0,null,null,{"$f":"IF(L38>0,ABS(V38-L38),\"\")","v":""},null,null,null,{"$f":"J38","v":0},{"$f":"IF(AG38=0,0,AG38)","v":0},"","",null,{"$f":"IF($Z$2=Defaults!$M$5,Cotton!B38,IF($Z$2=Defaults!$M$6,Corn!B38,IF($Z$2=Defaults!$M$7,Sorghum!B38,IF($Z$2=Defaults!$M$8,Soybean!B38,IF($Z$2=Defaults!$M$9,Rice!B38,IF($Z$2=Defaults!$M$10,Peanut!B38,IF($Z$2=Defaults!$M$11,Wheat!B38,IF($Z$2=Defaults!$M$12,Pasture!B38,\"\"))))))))","v":""},{"$f":"IF(C38=\"\",\"\",HLOOKUP($Z$2,$AZ$31:$BG$42,8,FALSE))","v":""},{"$f":"IF(C38=\"\",\"\",HLOOKUP($Z$2,$BJ$31:$BQ$42,8,FALSE))","v":""},0,null,{"$f":"IF(C38=\"\",\"\",IF(OR($Z$2=Defaults!$M$5,$Z$2=Defaults!$M$6,$Z$2=Defaults!$M$7,$Z$2=Defaults!$M$8,$Z$2=Defaults!$M$9,$Z$2=Defaults!$M$10)=TRUE,VLOOKUP(C38,Defaults!$T$21:$AE$29,2,FALSE),\"\"))","v":""},{"$f":"IF(C38=\"\",\"\",IF(OR($Z$2=Defaults!$M$5,$Z$2=Defaults!$M$6,$Z$2=Defaults!$M$7,$Z$2=Defaults!$M$8,$Z$2=Defaults!$M$9,$Z$2=Defaults!$M$10)=TRUE,ROUND(VLOOKUP(C38,Defaults!$T$21:$AC$29,3,FALSE),2),\"\"))","v":""},{"$f":"IFERROR(IF(LEFT($C$33,6)=\"Custom\",L38,L38*(1-VLOOKUP($C$33,Implements!$A$159:$D$166,4,FALSE))),\"\")","v":0},null,null,null,null,null,{"$f":"N38","v":0},null,{"$f":"N38","v":0},null,null,null,null,null,{"$f":"W38","v":""},null,{"$f":"W38","v":""},null,"",{"$f":"IF($C38=\"\",\"\",VLOOKUP(C38,Defaults!$T$21:$AE$29,4,FALSE))","v":""},{"$f":"IF($C38=\"\",\"\",VLOOKUP(C38,Defaults!$T$21:$AE$29,4,FALSE))","v":""},{"$f":"IF($C38=\"\",\"\",VLOOKUP(C38,Defaults!$T$21:$AE$29,4,FALSE))","v":""},{"$f":"IF($C38=\"\",\"\",VLOOKUP(C38,Defaults!$T$21:$AE$29,4,FALSE))","v":""},{"$f":"IF($C38=\"\",\"\",VLOOKUP(C38,Defaults!$T$21:$AE$29,4,FALSE))","v":""},{"$f":"IF($C38=\"\",\"\",VLOOKUP(C38,Defaults!$T$21:$AE$29,4,FALSE))","v":""},null,null,null,{"$f":"IF($C38=\"\",\"\",$C38)","v":""},{"$f":"IF($C38=\"\",\"\",IFERROR(VLOOKUP(C38,Defaults!$T$21:$AE$29,5,FALSE),\"\"))","v":""},{"$f":"IF($C38=\"\",\"\",IFERROR(VLOOKUP(C38,Defaults!$T$21:$AE$29,6,FALSE),\"\"))","v":""},{"$f":"IF($C38=\"\",\"\",IFERROR(VLOOKUP(C38,Defaults!$T$21:$AE$29,7,FALSE),\"\"))","v":""},{"$f":"IF($C38=\"\",\"\",IFERROR(VLOOKUP(C38,Defaults!$T$21:$AE$29,8,FALSE),\"\"))","v":""},{"$f":"IF($C38=\"\",\"\",IFERROR(VLOOKUP(C38,Defaults!$T$21:$AE$29,9,FALSE),\"\"))","v":""},{"$f":"IF($C38=\"\",\"\",IFERROR(VLOOKUP(C38,Defaults!$T$21:$AE$29,10,FALSE),\"\"))","v":""}]
[null,null,null,null,null,{"$f":"IF($L39=0,0,IF(C39=Defaults!$I$27,Implements!$AK$185,IF($C39=Defaults!$I$28,Implements!$AK$186,IF($C39=Defaults!$I$37,Implements!$AK$187,IF($C39=Defaults!$I$51,Implements!$AK$188,0)))))","v":0},{"$f":"IF($L39=0,0,IFERROR(VLOOKUP($C39,Implements!$X$181:$AN$188,15,FALSE),0))","v":0},{"$f":"IF($L39=0,0,IFERROR(VLOOKUP($C39,Implements!$X$181:$AN$188,16,FALSE),0))","v":0},{"$f":"IF($L39=0,0,IFERROR(VLOOKUP($C39,Implements!$X$181:$AN$188,17,FALSE),0))","v":0},{"$f":"IF(OR(C39=\"\",L39=\"\",L39=0)=TRUE,\"\",IF(OR(C39=Defaults!$I$25,C39=Defaults!$I$26)=TRUE,VLOOKUP(C39,Defaults!$I$24:$K$28,3,FALSE),IF(C39=Defaults!$I$54,VLOOKUP(C39,Defaults!$I$53:$K$56,3,FALSE),IF(C39=Defaults!$I$45,VLOOKUP(C39,Defaults!$I$44:$K$47,3,FALSE),IF(C39=Defaults!$I$50,VLOOKUP(C39,Defaults!$I$49:$K$51,3,FALSE),ROUND(1/F39*(1*Inputs!$AA$13+($AI$7-1)*Inputs!$AA$15),2)+ROUND(G39*Inputs!$V$13/F39,2)+ROUND(H39/F39,2)+ROUND(I39/F39,2))))))","v":""},{"$f":"IF(OR(C39=\"\",L39=\"\",L39=0)=TRUE,\"\",IF(OR(C39=Defaults!$I$25,C39=Defaults!$I$26)=TRUE,VLOOKUP(C39,Defaults!$I$24:$K$28,3,FALSE),IF(C39=Defaults!$I$54,VLOOKUP(C39,Defaults!$I$53:$K$56,3,FALSE),IF(C39=Defaults!$I$45,VLOOKUP(C39,Defaults!$I$44:$K$47,3,FALSE),IF(C39=Defaults!$I$50,VLOOKUP(C39,Defaults!$I$49:$K$51,3,FALSE),ROUND(1/F39*(1*Inputs!$AA$13+($AI$7-1)*Inputs!$AA$15),2)+ROUND(G39*Inputs!$V$13/F39,2)+ROUND(H39/F39,2)+ROUND(I39/F39,2))))))","v":""},null,"",0,null,null,{"$f":"IF($V39=0,0,IF(C39=Defaults!$I$27,Implements!$AK$174,IF($C39=Defaults!$I$28,Implements!$AK$175,IF($C39=Defaults!$I$37,Implements!$AK$176,IF($C39=Defaults!$I$51,Implements!$AK$177,0)))))","v":0},{"$f":"IF($V39=0,0,IFERROR(VLOOKUP($C39,Implements!$X$170:$AN$177,15,FALSE),0))","v":0},{"$f":"IF($V39=0,0,IFERROR(VLOOKUP($C39,Implements!$X$170:$AN$177,16,FALSE),0))","v":0},{"$f":"IF($V39=0,0,IFERROR(VLOOKUP($C39,Implements!$X$170:$AN$177,17,FALSE),0))","v":0},{"$f":"IF(OR(C39=\"\",V39=\"\",V39=0)=TRUE,\"\",IF(LEFT(C39,6)=\"Custom\",J39,ROUND(1/Q39*(1*Inputs!$AA$13+($AI$7-1)*Inputs!$AA$15),2)+ROUND(R39*Inputs!$V$13/Q39,2)+ROUND(S39/Q39,2)+ROUND(T39/Q39,2)))","v":""},{"$f":"+L39","v":0},"","",null,{"$f":"IF($Z$2=Defaults!$M$5,Cotton!B39,IF($Z$2=Defaults!$M$6,Corn!B39,IF($Z$2=Defaults!$M$7,Sorghum!B39,IF($Z$2=Defaults!$M$8,Soybean!B39,IF($Z$2=Defaults!$M$9,Rice!B39,IF($Z$2=Defaults!$M$10,Peanut!B39,IF($Z$2=Defaults!$M$11,Wheat!B39,IF($Z$2=Defaults!$M$12,Pasture!B39,\"\"))))))))","v":""},null,{"$f":"IF(C39=\"\",\"\",IF($Z$2=Defaults!$M$5,VLOOKUP(C39,Defaults!$I$53:$J$56,2,FALSE),IF($Z$2=Defaults!$M$10,VLOOKUP(C39,Defaults!$I$44:$K$47,2,FALSE),IF($Z$2=Defaults!$M$12,VLOOKUP(C39,Defaults!$I$49:$K$51,2,FALSE),\"\"))))","v":""},0,{"$f":"IF(AB39=\"\",\"\",AB39*2)","v":""},null,null,{"$f":"+AB39","v":""},{"$f":"N39","v":0},{"$f":"ROUND(IFERROR(1/F39*(1*Inputs!$AA$13+($AI$7-1)*Inputs!$AA$15),0),2)*L39","v":0},{"$f":"ROUND(IFERROR(1/F39*G39*Inputs!$V$13,0),2)*L39","v":0},{"$f":"ROUND(IFERROR(1/F39*H39,0),2)*L39","v":0},{"$f":"ROUND(IFERROR(1/F39*I39,0),2)*L39","v":0},null,null,null,{"$f":"W39","v":""},{"$f":"ROUND(IFERROR(1/Q39*(1*Inputs!$AA$13+($AI$7-1)*Inputs!$AA$15),0),2)*V39","v":0},{"$f":"ROUND(IFERROR(1/Q39*R39*Inputs!$V$13,0),2)*V39","v":0},{"$f":"ROUND(IFERROR(1/Q39*S39,0),2)*V39","v":0},{"$f":"ROUND(IFERROR(1/Q39*T39,0),2)*V39","v":0},null,null,null,null,"Other: Defoliant, Fertilizer, Innoculant or Litter"]
[null,null,null,null,null,null,null,null,null,null,{"$f":"IF(C40=\"\",\"\",ROUND(IF(E40=AE40,AF40,IF(AE40=$AC$2,AF40*VLOOKUP(E40,$AA$2:$AB$4,2,FALSE),IF(AE40=$AF$2,AF40*VLOOKUP(E40,$AD$2:$AE$3,2,FALSE),IF(AE40=$AI$2,AF40/VLOOKUP(E40,$AG$2:$AH$2,2,FALSE),IF(AE40=$AL$2,AF40*VLOOKUP(E40,$AJ$2:$AK$2,2,FALSE),IF(AE40=$AO$2,AF40/VLOOKUP(E40,$AM$2:$AN$2,2,FALSE),IF(AE40=$AR$2,AF40*VLOOKUP(E40,$AP$2:$AQ$3,2,FALSE)))))))),2))","v":""},null,"",0,null,null,{"$f":"IF(L40>0,ABS(V40-L40),\"\")","v":""},null,null,null,{"$f":"J40","v":0},{"$f":"IF(AG40=0,0,AG40)","v":""},"","",null,{"$f":"IF($Z$2=Defaults!$M$5,Cotton!B40,IF($Z$2=Defaults!$M$6,Corn!B40,IF($Z$2=Defaults!$M$7,Sorghum!B40,IF($Z$2=Defaults!$M$8,Soybean!B40,IF($Z$2=Defaults!$M$9,Rice!B40,IF($Z$2=Defaults!$M$10,Peanut!B40,IF($Z$2=Defaults!$M$11,Wheat!B40,IF($Z$2=Defaults!$M$12,Pasture!B40,\"\"))))))))","v":""},{"$f":"IF(C40=\"\",\"\",HLOOKUP($Z$2,$AZ$31:$BG$43,10,FALSE))","v":""},{"$f":"IF(C40=\"\",\"\",HLOOKUP($Z$2,$BJ$31:$BQ$43,10,FALSE))","v":""},0,null,{"$f":"IF(C40=\"\",\"\",IF($Z$2=Defaults!$M$5,VLOOKUP(C40,Defaults!$T$38:$AE$41,2,FALSE),IF(OR($Z$2=Defaults!$M$7,$Z$2=Defaults!$M$11)=TRUE,VLOOKUP(C40,Defaults!$T$3:$AE$13,2,FALSE),IF($Z$2=Defaults!$M$10,VLOOKUP(C40,Defaults!$T$33:$AE$34,2,FALSE),IF($Z$2=Defaults!$M$12,VLOOKUP(C40,Defaults!$T$3:$U$13,2,FALSE),\"\")))))","v":""},{"$f":"IF(C40=\"\",\"\",IF($Z$2=Defaults!$M$5,ROUND(VLOOKUP(C40,Defaults!$T$38:$AE$41,3,FALSE),2),IF(OR($Z$2=Defaults!$M$7,$Z$2=Defaults!$M$11)=TRUE,ROUND(VLOOKUP(C40,Defaults!$T$3:$AE$13,3,FALSE),2),IF($Z$2=Defaults!$M$10,ROUND(VLOOKUP(C40,Defaults!$T$33:$AE$34,3,FALSE),2),IF($Z$2=Defaults!$M$12,ROUND(VLOOKUP(C40,Defaults!$T$17:$AE$18,3,FALSE),2),\"\")))))","v":""},{"$f":"IFERROR(IF(LEFT($C$39,6)=\"Custom\",L40,L40*(1-VLOOKUP($C$39,Implements!$A$159:$D$166,4,FALSE))),\"\")","v":""},null,null,null,null,null,{"$f":"N40","v":0},null,{"$f":"N40","v":0},null,null,null,null,null,{"$f":"W40","v":""},null,{"$f":"W40","v":""},null,"",{"$f":"IF($C40=\"\",\"\",VLOOKUP(C40,Defaults!$T$38:$X$41,4,FALSE))","v":""},null,{"$f":"IF($C40=\"\",\"\",VLOOKUP(C40,Defaults!$T$3:$X$13,4,FALSE))","v":""},null,null,{"$f":"IF($C40=\"\",\"\",VLOOKUP(C40,Defaults!$T$33:$X$34,4,FALSE))","v":""},{"$f":"IF($C40=\"\",\"\",VLOOKUP(C40,Defaults!$T$3:$X$13,4,FALSE))","v":""},{"$f":"IF($C40=\"\",\"\",VLOOKUP(C40,Defaults!$T$17:$AE$18,4,FALSE))","v":""},null,{"$f":"IF($C40=\"\",\"\",$C40)","v":""},{"$f":"IF($C40=\"\",\"\",IFERROR(VLOOKUP(C40,Defaults!$T$38:$AE$41,5,FALSE),\"\"))","v":""},null,{"$f":"IF($C40=\"\",\"\",IFERROR(VLOOKUP(C40,Defaults!$T$3:$AE$13,7,FALSE),\"\"))","v":""},null,null,{"$f":"IF($C40=\"\",\"\",IFERROR(VLOOKUP(C40,Defaults!$T$33:$AE$34,10,FALSE),\"\"))","v":""},{"$f":"IF($C40=\"\",\"\",IFERROR(VLOOKUP(C40,Defaults!$T$3:$AE$13,11,FALSE),\"\"))","v":""},{"$f":"IF($C40=\"\",\"\",IFERROR(VLOOKUP(C40,Defaults!$T$17:$AE$18,12,FALSE),\"\"))","v":""}]
[null,null,null,null,null,null,null,null,null,null,{"$f":"IF(C41=\"\",\"\",ROUND(IF(E41=AE41,AF41,IF(AE41=$AC$2,AF41*VLOOKUP(E41,$AA$2:$AB$4,2,FALSE),IF(AE41=$AF$2,AF41*VLOOKUP(E41,$AD$2:$AE$3,2,FALSE),IF(AE41=$AI$2,AF41/VLOOKUP(E41,$AG$2:$AH$2,2,FALSE),IF(AE41=$AL$2,AF41*VLOOKUP(E41,$AJ$2:$AK$2,2,FALSE),IF(AE41=$AO$2,AF41/VLOOKUP(E41,$AM$2:$AN$2,2,FALSE),IF(AE41=$AR$2,AF41*VLOOKUP(E41,$AP$2:$AQ$3,2,FALSE)))))))),2))","v":""},null,"",0,null,null,{"$f":"IF(L41>0,ABS(V41-L41),\"\")","v":""},null,null,null,{"$f":"J41","v":0},{"$f":"IF(AG41=0,0,AG41)","v":""},"","",null,{"$f":"IF($Z$2=Defaults!$M$5,Cotton!B41,IF($Z$2=Defaults!$M$6,Corn!B41,IF($Z$2=Defaults!$M$7,Sorghum!B41,IF($Z$2=Defaults!$M$8,Soybean!B41,IF($Z$2=Defaults!$M$9,Rice!B41,IF($Z$2=Defaults!$M$10,Peanut!B41,IF($Z$2=Defaults!$M$11,Wheat!B41,IF($Z$2=Defaults!$M$12,Pasture!B41,\"\"))))))))","v":""},{"$f":"IF(C41=\"\",\"\",HLOOKUP($Z$2,$AZ$31:$BG$43,11,FALSE))","v":""},{"$f":"IF(C41=\"\",\"\",HLOOKUP($Z$2,$BJ$31:$BQ$43,11,FALSE))","v":""},0,null,{"$f":"IF(C41=\"\",\"\",IF($Z$2=Defaults!$M$5,VLOOKUP(C41,Defaults!$T$38:$AE$41,2,FALSE),IF(OR($Z$2=Defaults!$M$7,$Z$2=Defaults!$M$11)=TRUE,VLOOKUP(C41,Defaults!$T$3:$AE$13,2,FALSE),IF($Z$2=Defaults!$M$10,VLOOKUP(C41,Defaults!$T$33:$AE$34,2,FALSE),IF($Z$2=Defaults!$M$12,VLOOKUP(C41,Defaults!$T$3:$U$13,2,FALSE),\"\")))))","v":""},{"$f":"IF(C41=\"\",\"\",IF($Z$2=Defaults!$M$5,ROUND(VLOOKUP(C41,Defaults!$T$38:$AE$41,3,FALSE),2),IF(OR($Z$2=Defaults!$M$7,$Z$2=Defaults!$M$11)=TRUE,ROUND(VLOOKUP(C41,Defaults!$T$3:$AE$13,3,FALSE),2),IF($Z$2=Defaults!$M$10,ROUND(VLOOKUP(C41,Defaults!$T$33:$AE$34,3,FALSE),2),IF($Z$2=Defaults!$M$12,ROUND(VLOOKUP(C41,Defaults!$T$17:$AE$18,3,FALSE),2),\"\")))))","v":""},{"$f":"IFERROR(IF(LEFT($C$39,6)=\"Custom\",L41,L41*(1-VLOOKUP($C$39,Implements!$A$159:$D$166,4,FALSE))),\"\")","v":""},null,null,null,null,null,{"$f":"N41","v":0},null,{"$f":"N41","v":0},null,null,null,null,null,{"$f":"W41","v":""},null,{"$f":"W41","v":""},null,"",{"$f":"IF($C41=\"\",\"\",VLOOKUP(C41,Defaults!$T$38:$X$41,4,FALSE))","v":""},null,{"$f":"IF($C41=\"\",\"\",VLOOKUP(C41,Defaults!$T$3:$X$13,4,FALSE))","v":""},null,null,{"$f":"IF($C41=\"\",\"\",VLOOKUP(C41,Defaults!$T$33:$X$34,4,FALSE))","v":""},{"$f":"IF($C41=\"\",\"\",VLOOKUP(C41,Defaults!$T$3:$X$13,4,FALSE))","v":""},null,null,"",{"$f":"IF($C41=\"\",\"\",IFERROR(VLOOKUP(C41,Defaults!$T$38:$AE$41,5,FALSE),\"\"))","v":""},null,{"$f":"IF($C41=\"\",\"\",IFERROR(VLOOKUP(C41,Defaults!$T$3:$AE$13,7,FALSE),\"\"))","v":""},null,null,{"$f":"IF($C41=\"\",\"\",IFERROR(VLOOKUP(C41,Defaults!$T$33:$AE$34,10,FALSE),\"\"))","v":""},{"$f":"IF($C41=\"\",\"\",IFERROR(VLOOKUP(C41,Defaults!$T$3:$AE$13,11,FALSE),\"\"))","v":""},{"$f":"IF($C41=\"\",\"\",IFERROR(VLOOKUP(C41,Defaults!$T$17:$AE$18,12,FALSE),\"\"))","v":""}]
[null,null,null,null,null,null,null,null,null,null,{"$f":"IF(C42=\"\",\"\",ROUND(IF(E42=AE42,AF42,IF(AE42=$AC$2,AF42*VLOOKUP(E42,$AA$2:$AB$4,2,FALSE),IF(AE42=$AF$2,AF42*VLOOKUP(E42,$AD$2:$AE$3,2,FALSE),IF(AE42=$AI$2,AF42/VLOOKUP(E42,$AG$2:$AH$2,2,FALSE),IF(AE42=$AL$2,AF42*VLOOKUP(E42,$AJ$2:$AK$2,2,FALSE),IF(AE42=$AO$2,AF42/VLOOKUP(E42,$AM$2:$AN$2,2,FALSE),IF(AE42=$AR$2,AF42*VLOOKUP(E42,$AP$2:$AQ$3,2,FALSE)))))))),2))","v":""},null,"",0,null,null,{"$f":"IF(L42>0,ABS(V42-L42),\"\")","v":""},null,null,null,{"$f":"J42","v":0},{"$f":"IF(AG42=0,0,AG42)","v":""},"","",null,{"$f":"IF($Z$2=Defaults!$M$5,Cotton!B42,IF($Z$2=Defaults!$M$6,Corn!B42,IF($Z$2=Defaults!$M$7,Sorghum!B42,IF($Z$2=Defaults!$M$8,Soybean!B42,IF($Z$2=Defaults!$M$9,Rice!B42,IF($Z$2=Defaults!$M$10,Peanut!B42,IF($Z$2=Defaults!$M$11,Wheat!B42,IF($Z$2=Defaults!$M$12,Pasture!B42,\"\"))))))))","v":""},{"$f":"IF(C42=\"\",\"\",HLOOKUP($Z$2,$AZ$31:$BG$43,12,FALSE))","v":""},{"$f":"IF(C42=\"\",\"\",HLOOKUP($Z$2,$BJ$31:$BQ$43,12,FALSE))","v":""},0,null,{"$f":"IF(C42=\"\",\"\",IF($Z$2=Defaults!$M$5,VLOOKUP(C42,Defaults!$T$38:$AE$41,2,FALSE),IF(OR($Z$2=Defaults!$M$7,$Z$2=Defaults!$M$11)=TRUE,VLOOKUP(C42,Defaults!$T$3:$AE$13,2,FALSE),IF($Z$2=Defaults!$M$10,VLOOKUP(C42,Defaults!$T$33:$AE$34,2,FALSE),IF($Z$2=Defaults!$M$12,VLOOKUP(C42,Defaults!$T$3:$U$13,2,FALSE),\"\")))))","v":""},{"$f":"IF(C42=\"\",\"\",IF($Z$2=Defaults!$M$5,ROUND(VLOOKUP(C42,Defaults!$T$38:$AE$41,3,FALSE),2),IF(OR($Z$2=Defaults!$M$7,$Z$2=Defaults!$M$11)=TRUE,ROUND(VLOOKUP(C42,Defaults!$T$3:$AE$13,3,FALSE),2),IF($Z$2=Defaults!$M$10,ROUND(VLOOKUP(C42,Defaults!$T$33:$AE$34,3,FALSE),2),IF($Z$2=Defaults!$M$12,ROUND(VLOOKUP(C42,Defaults!$T$17:$AE$18,3,FALSE),2),\"\")))))","v":""},{"$f":"IFERROR(IF(LEFT($C$39,6)=\"Custom\",L42,L42*(1-VLOOKUP($C$39,Implements!$A$159:$D$166,4,FALSE))),\"\")","v":""},null,null,null,null,null,{"$f":"N42","v":0},null,{"$f":"N42","v":0},null,null,null,null,null,{"$f":"W42","v":""},null,{"$f":"W42","v":""},null,"",{"$f":"IF($C42=\"\",\"\",VLOOKUP(C42,Defaults!$T$38:$X$41,4,FALSE))","v":""},null,{"$f":"IF($C42=\"\",\"\",VLOOKUP(C42,Defaults!$T$3:$X$13,4,FALSE))","v":""},null,null,{"$f":"IF($C42=\"\",\"\",VLOOKUP(C42,Defaults!$T$33:$X$34,4,FALSE))","v":""},{"$f":"IF($C42=\"\",\"\",VLOOKUP(C42,Defaults!$T$3:$X$13,4,FALSE))","v":""},null,null,"",{"$f":"IF($C42=\"\",\"\",IFERROR(VLOOKUP(C42,Defaults!$T$38:$AE$41,5,FALSE),\"\"))","v":""},null,{"$f":"IF($C42=\"\",\"\",IFERROR(VLOOKUP(C42,Defaults!$T$3:$AE$13,7,FALSE),\"\"))","v":""},null,null,{"$f":"IF($C42=\"\",\"\",IFERROR(VLOOKUP(C42,Defaults!$T$33:$AE$34,10,FALSE),\"\"))","v":""},{"$f":"IF($C42=\"\",\"\",IFERROR(VLOOKUP(C42,Defaults!$T$3:$AE$13,11,FALSE),\"\"))","v":""},{"$f":"IF($C42=\"\",\"\",IFERROR(VLOOKUP(C42,Defaults!$T$17:$AE$18,12,FALSE),\"\"))","v":""}]
[null,null,null,null,null,null,null,null,null,null,{"$f":"IF(C43=\"\",\"\",ROUND(IF(E43=AE43,AF43,IF(AE43=$AC$2,AF43*VLOOKUP(E43,$AA$2:$AB$4,2,FALSE),IF(AE43=$AF$2,AF43*VLOOKUP(E43,$AD$2:$AE$3,2,FALSE),IF(AE43=$AI$2,AF43/VLOOKUP(E43,$AG$2:$AH$2,2,FALSE),IF(AE43=$AL$2,AF43*VLOOKUP(E43,$AJ$2:$AK$2,2,FALSE),IF(AE43=$AO$2,AF43/VLOOKUP(E43,$AM$2:$AN$2,2,FALSE),IF(AE43=$AR$2,AF43*VLOOKUP(E43,$AP$2:$AQ$3,2,FALSE)))))))),2))","v":""},null,"",0,null,null,{"$f":"IF(L43>0,ABS(V43-L43),\"\")","v":""},null,null,null,{"$f":"J43","v":0},{"$f":"IF(AG43=0,0,AG43)","v":""},"","",null,{"$f":"IF($Z$2=Defaults!$M$5,Cotton!B43,IF($Z$2=Defaults!$M$6,Corn!B43,IF($Z$2=Defaults!$M$7,Sorghum!B43,IF($Z$2=Defaults!$M$8,Soybean!B43,IF($Z$2=Defaults!$M$9,Rice!B43,IF($Z$2=Defaults!$M$10,Peanut!B43,IF($Z$2=Defaults!$M$11,Wheat!B43,IF($Z$2=Defaults!$M$12,Pasture!B43,\"\"))))))))","v":""},{"$f":"IF(C43=\"\",\"\",HLOOKUP($Z$2,$AZ$31:$BG$43,13,FALSE))","v":""},{"$f":"IF(C43=\"\",\"\",HLOOKUP($Z$2,$BJ$31:$BQ$43,13,FALSE))","v":""},1,null,{"$f":"IF(C43=\"\",\"\",IF($Z$2=Defaults!$M$5,VLOOKUP(C43,Defaults!$T$38:$AE$41,2,FALSE),IF(OR($Z$2=Defaults!$M$7,$Z$2=Defaults!$M$11)=TRUE,VLOOKUP(C43,Defaults!$T$3:$AE$13,2,FALSE),IF($Z$2=Defaults!$M$10,VLOOKUP(C43,Defaults!$T$33:$AE$34,2,FALSE),IF($Z$2=Defaults!$M$12,VLOOKUP(C43,Defaults!$T$3:$U$13,2,FALSE),\"\")))))","v":""},{"$f":"IF(C43=\"\",\"\",IF($Z$2=Defaults!$M$5,ROUND(VLOOKUP(C43,Defaults!$T$38:$AE$41,3,FALSE),2),IF(OR($Z$2=Defaults!$M$7,$Z$2=Defaults!$M$11)=TRUE,ROUND(VLOOKUP(C43,Defaults!$T$3:$AE$13,3,FALSE),2),IF($Z$2=Defaults!$M$10,ROUND(VLOOKUP(C43,Defaults!$T$33:$AE$34,3,FALSE),2),IF($Z$2=Defaults!$M$12,ROUND(VLOOKUP(C43,Defaults!$T$17:$AE$18,3,FALSE),2),\"\")))))","v":""},{"$f":"IFERROR(IF(LEFT($C$39,6)=\"Custom\",L43,L43*(1-VLOOKUP($C$39,Implements!$A$159:$D$166,4,FALSE))),\"\")","v":""},null,null,null,null,null,{"$f":"N43","v":0},null,{"$f":"N43","v":0},null,null,null,null,null,{"$f":"W43","v":""},null,{"$f":"W43","v":""},null,"",{"$f":"IF($C43=\"\",\"\",VLOOKUP(C43,Defaults!$T$38:$X$41,4,FALSE))","v":""},null,{"$f":"IF($C43=\"\",\"\",VLOOKUP(C43,Defaults!$T$3:$X$13,4,FALSE))","v":""},null,null,{"$f":"IF($C43=\"\",\"\",VLOOKUP(C43,Defaults!$T$33:$X$34,4,FALSE))","v":""},{"$f":"IF($C43=\"\",\"\",VLOOKUP(C43,Defaults!$T$3:$X$13,4,FALSE))","v":""},null,null,"",{"$f":"IF($C43=\"\",\"\",IFERROR(VLOOKUP(C43,Defaults!$T$38:$AE$41,5,FALSE),\"\"))","v":""},null,{"$f":"IF($C43=\"\",\"\",IFERROR(VLOOKUP(C43,Defaults!$T$3:$AE$13,7,FALSE),\"\"))","v":""},null,null,{"$f":"IF($C43=\"\",\"\",IFERROR(VLOOKUP(C43,Defaults!$T$33:$AE$34,10,FALSE),\"\"))","v":""},{"$f":"IF($C43=\"\",\"\",IFERROR(VLOOKUP(C43,Defaults!$T$3:$AE$13,11,FALSE),\"\"))","v":""},{"$f":"IF($C43=\"\",\"\",IFERROR(VLOOKUP(C43,Defaults!$T$17:$AE$18,12,FALSE),\"\"))","v":""}]
[null,null,"Over-the-Top Sprayer 1",null,null,{"$f":"IF($L44=0,0,IF($C44=Defaults!$I$27,Implements!$AK$185,IF($C44=Defaults!$I$28,Implements!$AK$186,0)))","v":61.454545454545453},{"$f":"IF($L44=0,0,IFERROR(VLOOKUP($C44,Implements!$X$181:$AN$188,15,FALSE),0))","v":8.36},{"$f":"IF($L44=0,0,IFERROR(VLOOKUP($C44,Implements!$X$181:$AN$188,16,FALSE),0))","v":45.046666666666667},{"$f":"IF($L44=0,0,IFERROR(VLOOKUP($C44,Implements!$X$181:$AN$188,17,FALSE),0))","v":137.64582520078542},{"$f":"IF(OR(C44=\"\",L44=\"\",L44=0)=TRUE,\"\",IF(OR(C44=Defaults!$I$25,C44=Defaults!$I$26)=TRUE,VLOOKUP(C44,Defaults!$I$24:$K$27,3,FALSE),IF(C44=Defaults!$I$59,VLOOKUP(C44,Defaults!$I$58:$K$61,3,FALSE),IF(C44=Defaults!$I$64,VLOOKUP(C44,Defaults!$I$63:$K$66,3,FALSE),ROUND(1/F44*(1*Inputs!$AA$13+($AI$7-1)*Inputs!$AA$15),2)+ROUND(G44*Inputs!$V$13/F44,2)+ROUND(H44/F44,2)+ROUND(I44/F44,2)))))","v":3.5},{"$f":"IF(OR(C44=\"\",L44=\"\",L44=0)=TRUE,\"\",IF(OR(C44=Defaults!$I$25,C44=Defaults!$I$26)=TRUE,VLOOKUP(C44,Defaults!$I$24:$K$27,3,FALSE),IF(C44=Defaults!$I$59,VLOOKUP(C44,Defaults!$I$58:$K$61,3,FALSE),IF(C44=Defaults!$I$64,VLOOKUP(C44,Defaults!$I$63:$K$66,3,FALSE),ROUND(1/F44*(1*Inputs!$AA$13+($AI$7-1)*Inputs!$AA$15),2)+ROUND(G44*Inputs!$V$13/F44,2)+ROUND(H44/F44,2)+ROUND(I44/F44,2)))))","v":3.5},1,1,3.5,null,null,{"$f":"IF($V44=0,0,IF($C44=Defaults!$I$27,Implements!$AK$174,IF($C44=Defaults!$I$28,Implements!$AK$175,0)))","v":62.812690909090918},{"$f":"IF($V44=0,0,IFERROR(VLOOKUP($C44,Implements!$X$170:$AN$177,15,FALSE),0))","v":8.36},{"$f":"IF($V44=0,0,IFERROR(VLOOKUP($C44,Implements!$X$170:$AN$177,16,FALSE),0))","v":45.046666666666667},{"$f":"IF($V44=0,0,IFERROR(VLOOKUP($C44,Implements!$X$170:$AN$177,17,FALSE),0))","v":138.7259236950801},{"$f":"IF(OR(C44=\"\",V44=\"\",V44=0)=TRUE,\"\",IF(LEFT(C44,6)=\"Custom\",J44,ROUND(1/Q44*(1*Inputs!$AA$13+($AI$7-1)*Inputs!$AA$15),2)+ROUND(R44*Inputs!$V$13/Q44,2)+ROUND(S44/Q44,2)+ROUND(T44/Q44,2)))","v":3.44},{"$f":"+L44","v":1},3.44,-6.0000000000000053E-2,null,{"$f":"IF($Z$2=Defaults!$M$5,Cotton!B44,IF($Z$2=Defaults!$M$6,Corn!B44,IF($Z$2=Defaults!$M$7,Sorghum!B44,IF($Z$2=Defaults!$M$8,Soybean!B44,IF($Z$2=Defaults!$M$9,Rice!B44,IF($Z$2=Defaults!$M$10,Peanut!B44,IF($Z$2=Defaults!$M$11,Wheat!B44,IF($Z$2=Defaults!$M$12,Pasture!B44,\"\"))))))))","v":"Over-the-Top Sprayer 1"},null,{"$f":"IF(C44=\"\",\"\",IF($Z$2=Defaults!$M$5,VLOOKUP(C44,Defaults!$I$58:$K$61,2,FALSE),IF($Z$2=Defaults!$M$8,VLOOKUP(C44,Defaults!$I$63:$K$66,2,FALSE),\"\")))","v":1},0,{"$f":"IF(AB44=\"\",\"\",AB44*2)","v":2},null,null,{"$f":"+AB44","v":1},{"$f":"N44","v":3.5},{"$f":"ROUND(IFERROR(1/F44*(1*Inputs!$AA$13+($AI$7-1)*Inputs!$AA$15),0),2)*L44","v":0.28999999999999998},{"$f":"ROUND(IFERROR(1/F44*G44*Inputs!$V$13,0),2)*L44","v":0.24},{"$f":"ROUND(IFERROR(1/F44*H44,0),2)*L44","v":0.73},{"$f":"ROUND(IFERROR(1/F44*I44,0),2)*L44","v":2.2400000000000002},null,null,null,{"$f":"W44","v":3.44},{"$f":"ROUND(IFERROR(1/Q44*(1*Inputs!$AA$13+($AI$7-1)*Inputs!$AA$15),0),2)*V44","v":0.28000000000000003},{"$f":"ROUND(IFERROR(1/Q44*R44*Inputs!$V$13,0),2)*V44","v":0.23},{"$f":"ROUND(IFERROR(1/Q44*S44,0),2)*V44","v":0.72},{"$f":"ROUND(IFERROR(1/Q44*T44,0),2)*V44","v":2.21},null,null,null,null,"Other: Growth Regulator or Fungicide"]
[null,null,"Quadris Top",null,"oz",null,null,null,null,2.13,{"$f":"IF(C45=\"\",\"\",ROUND(IF(E45=AE45,AF45,IF(AE45=$AC$2,AF45*VLOOKUP(E45,$AA$2:$AB$4,2,FALSE),IF(AE45=$AF$2,AF45*VLOOKUP(E45,$AD$2:$AE$3,2,FALSE),IF(AE45=$AI$2,AF45/VLOOKUP(E45,$AG$2:$AH$2,2,FALSE),IF(AE45=$AL$2,AF45*VLOOKUP(E45,$AJ$2:$AK$2,2,FALSE),IF(AE45=$AO$2,AF45/VLOOKUP(E45,$AM$2:$AN$2,2,FALSE),IF(AE45=$AR$2,AF45*VLOOKUP(E45,$AP$2:$AQ$3,2,FALSE)))))))),2))","v":2.13},7,7,14.91,null,null,{"$f":"IF(L45>0,ABS(V45-L45),\"\")","v":1.5456000000000003},null,null,null,{"$f":"J45","v":2.13},{"$f":"IF(AG45=0,0,AG45)","v":5.4543999999999997},11.617871999999998,-3.2921280000000017,null,{"$f":"IF($Z$2=Defaults!$M$5,Cotton!B45,IF($Z$2=Defaults!$M$6,Corn!B45,IF($Z$2=Defaults!$M$7,Sorghum!B45,IF($Z$2=Defaults!$M$8,Soybean!B45,IF($Z$2=Defaults!$M$9,Rice!B45,IF($Z$2=Defaults!$M$10,Peanut!B45,IF($Z$2=Defaults!$M$11,Wheat!B45,IF($Z$2=Defaults!$M$12,Pasture!B45,\"\"))))))))","v":"Quadris Top"},{"$f":"IF(C45=\"\",\"\",HLOOKUP($Z$2,$AZ$31:$BG$46,15,FALSE))","v":"oz"},{"$f":"IF(C45=\"\",\"\",HLOOKUP($Z$2,$BJ$31:$BQ$46,15,FALSE))","v":7},0,null,{"$f":"IF(C45=\"\",\"\",IF($Z$2=Defaults!$M$5,VLOOKUP(C45,Defaults!$T$45:$AE$46,2,FALSE),IF($Z$2=Defaults!$M$8,VLOOKUP(C45,Defaults!$T$50:$AE$51,2,FALSE),\"\")))","v":"oz"},{"$f":"IF(C45=\"\",\"\",IF($Z$2=Defaults!$M$5,ROUND(VLOOKUP(C45,Defaults!$T$45:$AE$46,3,FALSE),2),IF($Z$2=Defaults!$M$8,ROUND(VLOOKUP(C45,Defaults!$T$50:$AE$51,3,FALSE),2),\"\")))","v":2.13},{"$f":"IFERROR(IF(LEFT($C$44,6)=\"Custom\",L45,L45*(1-VLOOKUP($C$44,Implements!$A$159:$D$166,4,FALSE))),\"\")","v":5.4543999999999997},null,null,null,null,null,{"$f":"N45","v":14.91},null,{"$f":"N45","v":14.91},null,null,null,null,null,{"$f":"W45","v":11.617871999999998},null,{"$f":"W45","v":11.617871999999998},null,"Quadris Top",{"$f":"IF($C45=\"\",\"\",VLOOKUP(C45,Defaults!$T$45:$AE$46,4,FALSE))","v":{"$error":"#N/A"}},null,null,{"$f":"IF($C45=\"\",\"\",VLOOKUP(C45,Defaults!$T$50:$AE$51,4,FALSE))","v":"oz"},null,null,null,null,null,"Quadris Top",{"$f":"IF($C45=\"\",\"\",IFERROR(VLOOKUP(C45,Defaults!$T$45:$AE$46,5,FALSE),\"\"))","v":""},null,null,{"$f":"IF($C45=\"\",\"\",IFERROR(VLOOKUP(C45,Defaults!$T$50:$AE$51,8,FALSE),\"\"))","v":7}]
[null,null,null,null,null,null,null,null,null,null,{"$f":"IF(C46=\"\",\"\",ROUND(IF(E46=AE46,AF46,IF(AE46=$AC$2,AF46*VLOOKUP(E46,$AA$2:$AB$4,2,FALSE),IF(AE46=$AF$2,AF46*VLOOKUP(E46,$AD$2:$AE$3,2,FALSE),IF(AE46=$AI$2,AF46/VLOOKUP(E46,$AG$2:$AH$2,2,FALSE),IF(AE46=$AL$2,AF46*VLOOKUP(E46,$AJ$2:$AK$2,2,FALSE),IF(AE46=$AO$2,AF46/VLOOKUP(E46,$AM$2:$AN$2,2,FALSE),IF(AE46=$AR$2,AF46*VLOOKUP(E46,$AP$2:$AQ$3,2,FALSE)))))))),2))","v":""},null,"",0,null,null,{"$f":"IF(L46>0,ABS(V46-L46),\"\")","v":""},null,null,null,{"$f":"J46","v":0},{"$f":"IF(AG46=0,0,AG46)","v":0},"","",null,{"$f":"IF($Z$2=Defaults!$M$5,Cotton!B46,IF($Z$2=Defaults!$M$6,Corn!B46,IF($Z$2=Defaults!$M$7,Sorghum!B46,IF($Z$2=Defaults!$M$8,Soybean!B46,IF($Z$2=Defaults!$M$9,Rice!B46,IF($Z$2=Defaults!$M$10,Peanut!B46,IF($Z$2=Defaults!$M$11,Wheat!B46,IF($Z$2=Defaults!$M$12,Pasture!B46,\"\"))))))))","v":""},{"$f":"IF(C46=\"\",\"\",HLOOKUP($Z$2,$AZ$31:$BG$46,16,FALSE))","v":""},{"$f":"IF(C46=\"\",\"\",HLOOKUP($Z$2,$BJ$31:$BQ$46,16,FALSE))","v":""},0,null,{"$f":"IF(C46=\"\",\"\",IF($Z$2=Defaults!$M$5,VLOOKUP(C46,Defaults!$T$45:$AE$46,2,FALSE),IF($Z$2=Defaults!$M$8,VLOOKUP(C46,Defaults!$T$50:$AE$51,2,FALSE),\"\")))","v":""},{"$f":"IF(C46=\"\",\"\",IF($Z$2=Defaults!$M$5,ROUND(VLOOKUP(C46,Defaults!$T$45:$AE$46,3,FALSE),2),IF($Z$2=Defaults!$M$8,ROUND(VLOOKUP(C46,Defaults!$T$50:$AE$51,3,FALSE),2),\"\")))","v":""},{"$f":"IFERROR(IF(LEFT($C$44,6)=\"Custom\",L46,L46*(1-VLOOKUP($C$44,Implements!$A$159:$D$166,4,FALSE))),\"\")","v":0},null,null,null,null,null,{"$f":"N46","v":0},null,{"$f":"N46","v":0},null,null,null,null,null,{"$f":"W46","v":""},null,{"$f":"W46","v":""},null,"",{"$f":"IF($C46=\"\",\"\",VLOOKUP(C46,Defaults!$T$45:$AE$46,4,FALSE))","v":""},null,null,{"$f":"IF($C46=\"\",\"\",VLOOKUP(C46,Defaults!$T$50:$AE$51,4,FALSE))","v":""},null,null,null,null,null,"",{"$f":"IF($C46=\"\",\"\",IFERROR(VLOOKUP(C46,Defaults!$T$45:$AE$46,5,FALSE),\"\"))","v":""},null,null,{"$f":"IF($C46=\"\",\"\",IFERROR(VLOOKUP(C46,Defaults!$T$50:$AE$51,8,FALSE),\"\"))","v":""}]
[null,null,"Preemergence Weed Control",{"$f":"IF($Z$2=Defaults!$M$5,Cotton!D47,IF($Z$2=Defaults!$M$6,Corn!D47,IF($Z$2=Defaults!$M$7,Sorghum!D47,IF($Z$2=Defaults!$M$8,Soybean!D47,IF($Z$2=Defaults!$M$9,Rice!D47,IF($Z$2=Defaults!$M$10,Peanut!D47,IF($Z$2=Defaults!$M$11,Wheat!D47,IF($Z$2=Defaults!$M$12,Pasture!D48,FALSE))))))))","v":"At Planting"},null,null,null,null,null,null,null,null,null,null,null,null,null,null,null,null,null,null,null,null,null,{"$f":"IF($Z$2=Defaults!$M$5,Cotton!B47,IF($Z$2=Defaults!$M$6,Corn!B47,IF($Z$2=Defaults!$M$7,Sorghum!B47,IF($Z$2=Defaults!$M$8,Soybean!B47,IF($Z$2=Defaults!$M$9,Rice!B47,IF($Z$2=Defaults!$M$10,Peanut!B47,IF($Z$2=Defaults!$M$11,Wheat!B47,IF($Z$2=Defaults!$M$12,Pasture!B47,\"\"))))))))","v":"Preemergence Weed Control"},null,null,null,null,null,null,null,null,null,null,null,null,null,null,null,null,null,null,null,null,null,null,null,null,"PRE",null,null,null,null,null,null,null,null,null,"PRE",null,null,null,null,null,null,null,null,null,"PRE"]
[null,null,null,null,null,{"$f":"IF(L48=0,0,IF(C48=Defaults!$I$27,Implements!$AK$185,IF(C48=Defaults!$I$28,Implements!$AK$186,0)))","v":0},{"$f":"IF($L48=0,0,IFERROR(VLOOKUP($C48,Implements!$X$181:$AN$188,15,FALSE),0))","v":0},{"$f":"IF($L48=0,0,IFERROR(VLOOKUP($C48,Implements!$X$181:$AN$188,16,FALSE),0))","v":0},{"$f":"IF($L48=0,0,IFERROR(VLOOKUP($C48,Implements!$X$181:$AN$188,17,FALSE),0))","v":0},{"$f":"IF(OR(C48=\"\",L48=\"\",L48=0)=TRUE,\"\",IF(OR(C48=Defaults!$I$25,C48=Defaults!$I$26)=TRUE,VLOOKUP(C48,Defaults!$I$24:$K$27,3,FALSE),ROUND(1/F48*(1*Inputs!$AA$13+($AI$7-1)*Inputs!$AA$15),2)+ROUND(G48*Inputs!$V$13/F48,2)+ROUND(H48/F48,2)+ROUND(I48/F48,2)))","v":""},{"$f":"IF(OR(C48=\"\",L48=\"\",L48=0)=TRUE,\"\",IF(OR(C48=Defaults!$I$25,C48=Defaults!$I$26)=TRUE,VLOOKUP(C48,Defaults!$I$24:$K$27,3,FALSE),ROUND(1/F48*(1*Inputs!$AA$13+($AI$7-1)*Inputs!$AA$15),2)+ROUND(G48*Inputs!$V$13/F48,2)+ROUND(H48/F48,2)+ROUND(I48/F48,2)))","v":""},null,{"$f":"AB48","v":""},{"$f":"IF(C48=\"\",0,IF(L48=0,0,IF(L48=\"\",\"\",J48*L48)))","v":0},null,null,{"$f":"IF(V48=0,0,IF(C48=Defaults!$I$27,Implements!$AK$174,IF(C48=Defaults!$I$28,Implements!$AK$175,0)))","v":0},{"$f":"IF($V48=0,0,IFERROR(VLOOKUP($C48,Implements!$X$170:$AN$177,15,FALSE),0))","v":0},{"$f":"IF($V48=0,0,IFERROR(VLOOKUP($C48,Implements!$X$170:$AN$177,16,FALSE),0))","v":0},{"$f":"IF($V48=0,0,IFERROR(VLOOKUP($C48,Implements!$X$170:$AN$177,17,FALSE),0))","v":0},{"$f":"IF(OR(C48=\"\",V48=\"\",V48=0)=TRUE,\"\",IF(LEFT(C48,6)=\"Custom\",J48,ROUND(1/Q48*(1*Inputs!$AA$13+($AI$7-1)*Inputs!$AA$15),2)+ROUND(R48*Inputs!$V$13/Q48,2)+ROUND(S48/Q48,2)+ROUND(T48/Q48,2)))","v":""},{"$f":"+L48","v":0},{"$f":"IF(C48=\"\",\"\",IF(V48=0,0,IF(V48=\"\",\"\",U48*V48)))","v":""},{"$f":"IF(C48=\"\",\"\",W48-N48)","v":""},null,{"$f":"IF($Z$2=Defaults!$M$5,Cotton!B48,IF($Z$2=Defaults!$M$6,Corn!B48,IF($Z$2=Defaults!$M$7,Sorghum!B48,IF($Z$2=Defaults!$M$8,Soybean!B48,IF($Z$2=Defaults!$M$9,Rice!B48,IF($Z$2=Defaults!$M$10,Peanut!B48,IF($Z$2=Defaults!$M$11,Wheat!B48,IF($Z$2=Defaults!$M$12,Pasture!B48,\"\"))))))))","v":""},null,{"$f":"IF(C48=\"\",\"\",IF($Z$2=Defaults!$M$12,VLOOKUP(C48,Defaults!$I$35:$J$37,2,FALSE),VLOOKUP(C48,Defaults!$I$24:$J$28,2,FALSE)))","v":""},0,{"$f":"IF(AB48=\"\",\"\",AB48*2)","v":""},null,null,{"$f":"+AB48","v":""},{"$f":"N48","v":0},{"$f":"ROUND(IFERROR(1/F48*(1*Inputs!$AA$13+($AI$7-1)*Inputs!$AA$15),0),2)*L48","v":0},{"$f":"ROUND(IFERROR(1/F48*G48*Inputs!$V$13,0),2)*L48","v":0},{"$f":"ROUND(IFERROR(1/F48*H48,0),2)*L48","v":0},{"$f":"ROUND(IFERROR(1/F48*I48,0),2)*L48","v":0},null,null,null,{"$f":"W48","v":""},{"$f":"ROUND(IFERROR(1/Q48*(1*Inputs!$AA$13+($AI$7-1)*Inputs!$AA$15),0),2)*V48","v":0},{"$f":"ROUND(IFERROR(1/Q48*R48*Inputs!$V$13,0),2)*V48","v":0},{"$f":"ROUND(IFERROR(1/Q48*S48,0),2)*V48","v":0},{"$f":"ROUND(IFERROR(1/Q48*T48,0),2)*V48","v":0},null,null,null,null,null,{"$f":"AZ11","v":"Cotton"},"Corn","Sorghum","Soybean","Rice","Peanut","Wheat","Est. Pasture or Hay",null,null,{"$f":"BJ11","v":"Cotton"},"Corn","Sorghum","Soybean","Rice","Peanut","Wheat","Est. Pasture or Hay",null,null,{"$f":"BT11","v":"Cotton"},"Corn","Sorghum","Soybean","Rice","Peanut","Wheat","Est. Pasture or Hay"]
[null,null,null,null,null,null,null,null,null,null,{"$f":"IF(C49=\"\",\"\",ROUND(IF(E49=AE49,AF49,IF(AE49=$AC$2,AF49*VLOOKUP(E49,$AA$2:$AB$4,2,FALSE),IF(AE49=$AF$2,AF49*VLOOKUP(E49,$AD$2:$AE$3,2,FALSE),IF(AE49=$AI$2,AF49/VLOOKUP(E49,$AG$2:$AH$2,2,FALSE),IF(AE49=$AL$2,AF49*VLOOKUP(E49,$AJ$2:$AK$2,2,FALSE),IF(AE49=$AO$2,AF49/VLOOKUP(E49,$AM$2:$AN$2,2,FALSE),IF(AE49=$AR$2,AF49*VLOOKUP(E49,$AP$2:$AQ$3,2,FALSE)))))))),2))","v":""},null,"",0,null,null,{"$f":"IF(L49>0,ABS(V49-L49),\"\")","v":""},null,null,null,{"$f":"J49","v":0},{"$f":"IF(AG49=0,0,AG49)","v":""},"","",null,{"$f":"IF($Z$2=Defaults!$M$5,Cotton!B49,IF($Z$2=Defaults!$M$6,Corn!B49,IF($Z$2=Defaults!$M$7,Sorghum!B49,IF($Z$2=Defaults!$M$8,Soybean!B49,IF($Z$2=Defaults!$M$9,Rice!B49,IF($Z$2=Defaults!$M$10,Peanut!B49,IF($Z$2=Defaults!$M$11,Wheat!B49,IF($Z$2=Defaults!$M$12,Pasture!B49,\"\"))))))))","v":""},{"$f":"IF(C49=\"\",\"\",HLOOKUP($Z$2,$AZ$48:$BG$53,2,FALSE))","v":""},{"$f":"IF(C49=\"\",\"\",HLOOKUP($Z$2,$BJ$48:$BQ$53,2,FALSE))","v":""},0,{"$f":"IF(C49=\"\",\"\",HLOOKUP($Z$2,$BT$48:$CA$53,2,FALSE))","v":""},{"$f":"IF(C49=\"\",\"\",VLOOKUP(C49,Defaults!$AH:$AJ,2,FALSE))","v":""},{"$f":"IF(C49=\"\",\"\",ROUND(VLOOKUP(C49,Defaults!$AH:$AJ,3,FALSE),2))","v":""},{"$f":"IFERROR(IF(LEFT($C$48,6)=\"Custom\",L49,L49*(1-VLOOKUP($C$48,Implements!$A$159:$D$166,4,FALSE))),\"\")","v":""},null,null,null,null,null,{"$f":"N49","v":0},null,{"$f":"N49","v":0},null,null,null,null,null,{"$f":"W49","v":""},null,{"$f":"W49","v":""},null,{"$f":"IF($C49=\"\",\"\",$C49)","v":""},{"$f":"IF($C49=\"\",\"\",VLOOKUP($C49,Defaults!$AL$37:$AQ$63,4,FALSE))","v":""},{"$f":"IF($C49=\"\",\"\",VLOOKUP($C49,Defaults!$AS$37:$AX$63,4,FALSE))","v":""},{"$f":"IF($C49=\"\",\"\",VLOOKUP($C49,Defaults!$AZ$37:$BE$63,4,FALSE))","v":""},{"$f":"IF($C49=\"\",\"\",VLOOKUP($C49,Defaults!$BG$37:$BL$63,4,FALSE))","v":""},{"$f":"IF($C49=\"\",\"\",VLOOKUP($C49,Defaults!$BN$37:$BS$63,4,FALSE))","v":""},{"$f":"IF($C49=\"\",\"\",VLOOKUP($C49,Defaults!$BU$37:$BZ$63,4,FALSE))","v":""},{"$f":"IF($C49=\"\",\"\",VLOOKUP($C49,Defaults!$CB$37:$CG$63,4,FALSE))","v":""},{"$f":"IF($C49=\"\",\"\",VLOOKUP($C49,Defaults!$CI:$CN,4,FALSE))","v":""},null,{"$f":"IF($C49=\"\",\"\",$C49)","v":""},{"$f":"IF($C49=\"\",\"\",IFERROR(VLOOKUP($C49,Defaults!$AL$37:$AQ$63,5,FALSE),\"\"))","v":""},{"$f":"IF($C49=\"\",\"\",IFERROR(VLOOKUP($C49,Defaults!$AS$37:$AX$63,5,FALSE),\"\"))","v":""},{"$f":"IF($C49=\"\",\"\",IFERROR(VLOOKUP($C49,Defaults!$AZ$37:$BE$63,5,FALSE),\"\"))","v":""},{"$f":"IF($C49=\"\",\"\",IFERROR(VLOOKUP($C49,Defaults!$BG$37:$BL$63,5,FALSE),\"\"))","v":""},{"$f":"IF($C49=\"\",\"\",IFERROR(VLOOKUP($C49,Defaults!$BN$37:$BS$63,5,FALSE),\"\"))","v":""},{"$f":"IF($C49=\"\",\"\",IFERROR(VLOOKUP($C49,Defaults!$BU$37:$BZ$63,5,FALSE),\"\"))","v":""},{"$f":"IF($C49=\"\",\"\",IFERROR(VLOOKUP($C49,Defaults!$CB$37:$CG$63,5,FALSE),\"\"))","v":""},{"$f":"IF($C49=\"\",\"\",IFERROR(VLOOKUP($C49,Defaults!$CI:$CN,5,FALSE),\"\"))","v":""},null,{"$f":"IF($C49=\"\",\"\",$C49)","v":""},{"$f":"IF($C49=\"\",\"\",IFERROR(VLOOKUP($C49,Defaults!$AL$37:$AQ$63,6,FALSE),\"\"))","v":""},{"$f":"IF($C49=\"\",\"\",IFERROR(VLOOKUP($C49,Defaults!$AS$37:$AX$63,6,FALSE),\"\"))","v":""},{"$f":"IF($C49=\"\",\"\",IFERROR(VLOOKUP($C49,Defaults!$AZ$37:$BE$63,6,FALSE),\"\"))","v":""},{"$f":"IF($C49=\"\",\"\",IFERROR(VLOOKUP($C49,Defaults!$BG$37:$BL$63,6,FALSE),\"\"))","v":""},{"$f":"IF($C49=\"\",\"\",IFERROR(VLOOKUP($C49,Defaults!$BN$37:$BS$63,6,FALSE),\"\"))","v":""},{"$f":"IF($C49=\"\",\"\",IFERROR(VLOOKUP($C49,Defaults!$BU$37:$BZ$63,6,FALSE),\"\"))","v":""},{"$f":"IF($C49=\"\",\"\",IFERROR(VLOOKUP($C49,Defaults!$CB$37:$CG$63,6,FALSE),\"\"))","v":""},{"$f":"IF($C49=\"\",\"\",IFERROR(VLOOKUP($C49,Defaults!$CI:$CN,6,FALSE),\"\"))","v":""}]
[null,null,null,null,null,null,null,null,null,null,{"$f":"IF(C50=\"\",\"\",ROUND(IF(E50=AE50,AF50,IF(AE50=$AC$2,AF50*VLOOKUP(E50,$AA$2:$AB$4,2,FALSE),IF(AE50=$AF$2,AF50*VLOOKUP(E50,$AD$2:$AE$3,2,FALSE),IF(AE50=$AI$2,AF50/VLOOKUP(E50,$AG$2:$AH$2,2,FALSE),IF(AE50=$AL$2,AF50*VLOOKUP(E50,$AJ$2:$AK$2,2,FALSE),IF(AE50=$AO$2,AF50/VLOOKUP(E50,$AM$2:$AN$2,2,FALSE),IF(AE50=$AR$2,AF50*VLOOKUP(E50,$AP$2:$AQ$3,2,FALSE)))))))),2))","v":""},null,"",0,null,null,{"$f":"IF(L50>0,ABS(V50-L50),\"\")","v":""},null,null,null,{"$f":"J50","v":0},{"$f":"IF(AG50=0,0,AG50)","v":""},"","",null,{"$f":"IF($Z$2=Defaults!$M$5,Cotton!B50,IF($Z$2=Defaults!$M$6,Corn!B50,IF($Z$2=Defaults!$M$7,Sorghum!B50,IF($Z$2=Defaults!$M$8,Soybean!B50,IF($Z$2=Defaults!$M$9,Rice!B50,IF($Z$2=Defaults!$M$10,Peanut!B50,IF($Z$2=Defaults!$M$11,Wheat!B50,IF($Z$2=Defaults!$M$12,Pasture!B50,\"\"))))))))","v":""},{"$f":"IF(C50=\"\",\"\",HLOOKUP($Z$2,$AZ$48:$BG$53,3,FALSE))","v":""},{"$f":"IF(C50=\"\",\"\",HLOOKUP($Z$2,$BJ$48:$BQ$53,3,FALSE))","v":""},0,{"$f":"IF(C50=\"\",\"\",HLOOKUP($Z$2,$BT$48:$CA$53,3,FALSE))","v":""},{"$f":"IF(C50=\"\",\"\",VLOOKUP(C50,Defaults!$AH:$AJ,2,FALSE))","v":""},{"$f":"IF(C50=\"\",\"\",ROUND(VLOOKUP(C50,Defaults!$AH:$AJ,3,FALSE),2))","v":""},{"$f":"IFERROR(IF(LEFT($C$48,6)=\"Custom\",L50,L50*(1-VLOOKUP($C$48,Implements!$A$159:$D$166,4,FALSE))),\"\")","v":""},null,null,null,null,null,{"$f":"N50","v":0},null,{"$f":"N50","v":0},null,null,null,null,null,{"$f":"W50","v":""},null,{"$f":"W50","v":""},null,{"$f":"IF($C50=\"\",\"\",$C50)","v":""},{"$f":"IF($C50=\"\",\"\",VLOOKUP($C50,Defaults!$AL$37:$AQ$63,4,FALSE))","v":""},{"$f":"IF($C50=\"\",\"\",VLOOKUP($C50,Defaults!$AS$37:$AX$63,4,FALSE))","v":""},{"$f":"IF($C50=\"\",\"\",VLOOKUP($C50,Defaults!$AZ$37:$BE$63,4,FALSE))","v":""},{"$f":"IF($C50=\"\",\"\",VLOOKUP($C50,Defaults!$BG$37:$BL$63,4,FALSE))","v":""},{"$f":"IF($C50=\"\",\"\",VLOOKUP($C50,Defaults!$BN$37:$BS$63,4,FALSE))","v":""},{"$f":"IF($C50=\"\",\"\",VLOOKUP($C50,Defaults!$BU$37:$BZ$63,4,FALSE))","v":""},{"$f":"IF($C50=\"\",\"\",VLOOKUP($C50,Defaults!$CB$37:$CG$63,4,FALSE))","v":""},{"$f":"IF($C50=\"\",\"\",VLOOKUP($C50,Defaults!$CI:$CN,4,FALSE))","v":""},null,{"$f":"IF($C50=\"\",\"\",$C50)","v":""},{"$f":"IF($C50=\"\",\"\",IFERROR(VLOOKUP($C50,Defaults!$AL$37:$AQ$63,5,FALSE),\"\"))","v":""},{"$f":"IF($C50=\"\",\"\",IFERROR(VLOOKUP($C50,Defaults!$AS$37:$AX$63,5,FALSE),\"\"))","v":""},{"$f":"IF($C50=\"\",\"\",IFERROR(VLOOKUP($C50,Defaults!$AZ$37:$BE$63,5,FALSE),\"\"))","v":""},{"$f":"IF($C50=\"\",\"\",IFERROR(VLOOKUP($C50,Defaults!$BG$37:$BL$63,5,FALSE),\"\"))","v":""},{"$f":"IF($C50=\"\",\"\",IFERROR(VLOOKUP($C50,Defaults!$BN$37:$BS$63,5,FALSE),\"\"))","v":""},{"$f":"IF($C50=\"\",\"\",IFERROR(VLOOKUP($C50,Defaults!$BU$37:$BZ$63,5,FALSE),\"\"))","v":""},{"$f":"IF($C50=\"\",\"\",IFERROR(VLOOKUP($C50,Defaults!$CB$37:$CG$63,5,FALSE),\"\"))","v":""},{"$f":"IF($C50=\"\",\"\",IFERROR(VLOOKUP($C50,Defaults!$CI:$CN,5,FALSE),\"\"))","v":""},null,{"$f":"IF($C50=\"\",\"\",$C50)","v":""},{"$f":"IF($C50=\"\",\"\",IFERROR(VLOOKUP($C50,Defaults!$AL$37:$AQ$63,6,FALSE),\"\"))","v":""},{"$f":"IF($C50=\"\",\"\",IFERROR(VLOOKUP($C50,Defaults!$AS$37:$AX$63,6,FALSE),\"\"))","v":""},{"$f":"IF($C50=\"\",\"\",IFERROR(VLOOKUP($C50,Defaults!$AZ$37:$BE$63,6,FALSE),\"\"))","v":""},{"$f":"IF($C50=\"\",\"\",IFERROR(VLOOKUP($C50,Defaults!$BG$37:$BL$63,6,FALSE),\"\"))","v":""},{"$f":"IF($C50=\"\",\"\",IFERROR(VLOOKUP($C50,Defaults!$BN$37:$BS$63,6,FALSE),\"\"))","v":""},{"$f":"IF($C50=\"\",\"\",IFERROR(VLOOKUP($C50,Defaults!$BU$37:$BZ$63,6,FALSE),\"\"))","v":""},{"$f":"IF($C50=\"\",\"\",IFERROR(VLOOKUP($C50,Defaults!$CB$37:$CG$63,6,FALSE),\"\"))","v":""},{"$f":"IF($C50=\"\",\"\",IFERROR(VLOOKUP($C50,Defaults!$CI:$CN,6,FALSE),\"\"))","v":""}]
[null,null,null,null,null,null,null,null,null,null,{"$f":"IF(C51=\"\",\"\",ROUND(IF(E51=AE51,AF51,IF(AE51=$AC$2,AF51*VLOOKUP(E51,$AA$2:$AB$4,2,FALSE),IF(AE51=$AF$2,AF51*VLOOKUP(E51,$AD$2:$AE$3,2,FALSE),IF(AE51=$AI$2,AF51/VLOOKUP(E51,$AG$2:$AH$2,2,FALSE),IF(AE51=$AL$2,AF51*VLOOKUP(E51,$AJ$2:$AK$2,2,FALSE),IF(AE51=$AO$2,AF51/VLOOKUP(E51,$AM$2:$AN$2,2,FALSE),IF(AE51=$AR$2,AF51*VLOOKUP(E51,$AP$2:$AQ$3,2,FALSE)))))))),2))","v":""},null,"",0,null,null,{"$f":"IF(L51>0,ABS(V51-L51),\"\")","v":""},null,null,null,{"$f":"J51","v":0},{"$f":"IF(AG51=0,0,AG51)","v":""},"","",null,{"$f":"IF($Z$2=Defaults!$M$5,Cotton!B51,IF($Z$2=Defaults!$M$6,Corn!B51,IF($Z$2=Defaults!$M$7,Sorghum!B51,IF($Z$2=Defaults!$M$8,Soybean!B51,IF($Z$2=Defaults!$M$9,Rice!B51,IF($Z$2=Defaults!$M$10,Peanut!B51,IF($Z$2=Defaults!$M$11,Wheat!B51,IF($Z$2=Defaults!$M$12,Pasture!B51,\"\"))))))))","v":""},{"$f":"IF(C51=\"\",\"\",HLOOKUP($Z$2,$AZ$48:$BG$53,4,FALSE))","v":""},{"$f":"IF(C51=\"\",\"\",HLOOKUP($Z$2,$BJ$48:$BQ$53,4,FALSE))","v":""},0,{"$f":"IF(C51=\"\",\"\",HLOOKUP($Z$2,$BT$48:$CA$53,4,FALSE))","v":""},{"$f":"IF(C51=\"\",\"\",VLOOKUP(C51,Defaults!$AH:$AJ,2,FALSE))","v":""},{"$f":"IF(C51=\"\",\"\",ROUND(VLOOKUP(C51,Defaults!$AH:$AJ,3,FALSE),2))","v":""},{"$f":"IFERROR(IF(LEFT($C$48,6)=\"Custom\",L51,L51*(1-VLOOKUP($C$48,Implements!$A$159:$D$166,4,FALSE))),\"\")","v":""},null,null,null,null,null,{"$f":"N51","v":0},null,{"$f":"N51","v":0},null,null,null,null,null,{"$f":"W51","v":""},null,{"$f":"W51","v":""},null,{"$f":"IF($C51=\"\",\"\",$C51)","v":""},{"$f":"IF($C51=\"\",\"\",VLOOKUP($C51,Defaults!$AL$37:$AQ$63,4,FALSE))","v":""},{"$f":"IF($C51=\"\",\"\",VLOOKUP($C51,Defaults!$AS$37:$AX$63,4,FALSE))","v":""},{"$f":"IF($C51=\"\",\"\",VLOOKUP($C51,Defaults!$AZ$37:$BE$63,4,FALSE))","v":""},{"$f":"IF($C51=\"\",\"\",VLOOKUP($C51,Defaults!$BG$37:$BL$63,4,FALSE))","v":""},{"$f":"IF($C51=\"\",\"\",VLOOKUP($C51,Defaults!$BN$37:$BS$63,4,FALSE))","v":""},{"$f":"IF($C51=\"\",\"\",VLOOKUP($C51,Defaults!$BU$37:$BZ$63,4,FALSE))","v":""},{"$f":"IF($C51=\"\",\"\",VLOOKUP($C51,Defaults!$CB$37:$CG$63,4,FALSE))","v":""},{"$f":"IF($C51=\"\",\"\",VLOOKUP($C51,Defaults!$CI:$CN,4,FALSE))","v":""},null,{"$f":"IF($C51=\"\",\"\",$C51)","v":""},{"$f":"IF($C51=\"\",\"\",IFERROR(VLOOKUP($C51,Defaults!$AL$37:$AQ$63,5,FALSE),\"\"))","v":""},{"$f":"IF($C51=\"\",\"\",IFERROR(VLOOKUP($C51,Defaults!$AS$37:$AX$63,5,FALSE),\"\"))","v":""},{"$f":"IF($C51=\"\",\"\",IFERROR(VLOOKUP($C51,Defaults!$AZ$37:$BE$63,5,FALSE),\"\"))","v":""},{"$f":"IF($C51=\"\",\"\",IFERROR(VLOOKUP($C51,Defaults!$BG$37:$BL$63,5,FALSE),\"\"))","v":""},{"$f":"IF($C51=\"\",\"\",IFERROR(VLOOKUP($C51,Defaults!$BN$37:$BS$63,5,FALSE),\"\"))","v":""},{"$f":"IF($C51=\"\",\"\",IFERROR(VLOOKUP($C51,Defaults!$BU$37:$BZ$63,5,FALSE),\"\"))","v":""},{"$f":"IF($C51=\"\",\"\",IFERROR(VLOOKUP($C51,Defaults!$CB$37:$CG$63,5,FALSE),\"\"))","v":""},{"$f":"IF($C51=\"\",\"\",IFERROR(VLOOKUP($C51,Defaults!$CI:$CN,5,FALSE),\"\"))","v":""},null,{"$f":"IF($C51=\"\",\"\",$C51)","v":""},{"$f":"IF($C51=\"\",\"\",IFERROR(VLOOKUP($C51,Defaults!$AL$37:$AQ$63,6,FALSE),\"\"))","v":""},{"$f":"IF($C51=\"\",\"\",IFERROR(VLOOKUP($C51,Defaults!$AS$37:$AX$63,6,FALSE),\"\"))","v":""},{"$f":"IF($C51=\"\",\"\",IFERROR(VLOOKUP($C51,Defaults!$AZ$37:$BE$63,6,FALSE),\"\"))","v":""},{"$f":"IF($C51=\"\",\"\",IFERROR(VLOOKUP($C51,Defaults!$BG$37:$BL$63,6,FALSE),\"\"))","v":""},{"$f":"IF($C51=\"\",\"\",IFERROR(VLOOKUP($C51,Defaults!$BN$37:$BS$63,6,FALSE),\"\"))","v":""},{"$f":"IF($C51=\"\",\"\",IFERROR(VLOOKUP($C51,Defaults!$BU$37:$BZ$63,6,FALSE),\"\"))","v":""},{"$f":"IF($C51=\"\",\"\",IFERROR(VLOOKUP($C51,Defaults!$CB$37:$CG$63,6,FALSE),\"\"))","v":""},{"$f":"IF($C51=\"\",\"\",IFERROR(VLOOKUP($C51,Defaults!$CI:$CN,6,FALSE),\"\"))","v":""}]
[null,null,null,null,null,null,null,null,null,null,{"$f":"IF(C52=\"\",\"\",ROUND(IF(E52=AE52,AF52,IF(AE52=$AC$2,AF52*VLOOKUP(E52,$AA$2:$AB$4,2,FALSE),IF(AE52=$AF$2,AF52*VLOOKUP(E52,$AD$2:$AE$3,2,FALSE),IF(AE52=$AI$2,AF52/VLOOKUP(E52,$AG$2:$AH$2,2,FALSE),IF(AE52=$AL$2,AF52*VLOOKUP(E52,$AJ$2:$AK$2,2,FALSE),IF(AE52=$AO$2,AF52/VLOOKUP(E52,$AM$2:$AN$2,2,FALSE),IF(AE52=$AR$2,AF52*VLOOKUP(E52,$AP$2:$AQ$3,2,FALSE)))))))),2))","v":""},null,"",0,null,null,{"$f":"IF(L52>0,ABS(V52-L52),\"\")","v":""},null,null,null,{"$f":"J52","v":0},{"$f":"IF(AG52=0,0,AG52)","v":""},"","",null,{"$f":"IF($Z$2=Defaults!$M$5,Cotton!B52,IF($Z$2=Defaults!$M$6,Corn!B52,IF($Z$2=Defaults!$M$7,Sorghum!B52,IF($Z$2=Defaults!$M$8,Soybean!B52,IF($Z$2=Defaults!$M$9,Rice!B52,IF($Z$2=Defaults!$M$10,Peanut!B52,IF($Z$2=Defaults!$M$11,Wheat!B52,IF($Z$2=Defaults!$M$12,Pasture!B52,\"\"))))))))","v":""},{"$f":"IF(C52=\"\",\"\",HLOOKUP($Z$2,$AZ$48:$BG$53,5,FALSE))","v":""},{"$f":"IF(C52=\"\",\"\",HLOOKUP($Z$2,$BJ$48:$BQ$53,5,FALSE))","v":""},0,{"$f":"IF(C52=\"\",\"\",HLOOKUP($Z$2,$BT$48:$CA$53,5,FALSE))","v":""},{"$f":"IF(C52=\"\",\"\",VLOOKUP(C52,Defaults!$AH:$AJ,2,FALSE))","v":""},{"$f":"IF(C52=\"\",\"\",ROUND(VLOOKUP(C52,Defaults!$AH:$AJ,3,FALSE),2))","v":""},{"$f":"IFERROR(IF(LEFT($C$48,6)=\"Custom\",L52,L52*(1-VLOOKUP($C$48,Implements!$A$159:$D$166,4,FALSE))),\"\")","v":""},null,null,null,null,null,{"$f":"N52","v":0},null,{"$f":"N52","v":0},null,null,null,null,null,{"$f":"W52","v":""},null,{"$f":"W52","v":""},null,{"$f":"IF($C52=\"\",\"\",$C52)","v":""},{"$f":"IF($C52=\"\",\"\",VLOOKUP($C52,Defaults!$AL$37:$AQ$63,4,FALSE))","v":""},{"$f":"IF($C52=\"\",\"\",VLOOKUP($C52,Defaults!$AS$37:$AX$63,4,FALSE))","v":""},{"$f":"IF($C52=\"\",\"\",VLOOKUP($C52,Defaults!$AZ$37:$BE$63,4,FALSE))","v":""},{"$f":"IF($C52=\"\",\"\",VLOOKUP($C52,Defaults!$BG$37:$BL$63,4,FALSE))","v":""},{"$f":"IF($C52=\"\",\"\",VLOOKUP($C52,Defaults!$BN$37:$BS$63,4,FALSE))","v":""},{"$f":"IF($C52=\"\",\"\",VLOOKUP($C52,Defaults!$BU$37:$BZ$63,4,FALSE))","v":""},{"$f":"IF($C52=\"\",\"\",VLOOKUP($C52,Defaults!$CB$37:$CG$63,4,FALSE))","v":""},{"$f":"IF($C52=\"\",\"\",VLOOKUP($C52,Defaults!$CI:$CN,4,FALSE))","v":""},null,{"$f":"IF($C52=\"\",\"\",$C52)","v":""},{"$f":"IF($C52=\"\",\"\",IFERROR(VLOOKUP($C52,Defaults!$AL$37:$AQ$63,5,FALSE),\"\"))","v":""},{"$f":"IF($C52=\"\",\"\",IFERROR(VLOOKUP($C52,Defaults!$AS$37:$AX$63,5,FALSE),\"\"))","v":""},{"$f":"IF($C52=\"\",\"\",IFERROR(VLOOKUP($C52,Defaults!$AZ$37:$BE$63,5,FALSE),\"\"))","v":""},{"$f":"IF($C52=\"\",\"\",IFERROR(VLOOKUP($C52,Defaults!$BG$37:$BL$63,5,FALSE),\"\"))","v":""},{"$f":"IF($C52=\"\",\"\",IFERROR(VLOOKUP($C52,Defaults!$BN$37:$BS$63,5,FALSE),\"\"))","v":""},{"$f":"IF($C52=\"\",\"\",IFERROR(VLOOKUP($C52,Defaults!$BU$37:$BZ$63,5,FALSE),\"\"))","v":""},{"$f":"IF($C52=\"\",\"\",IFERROR(VLOOKUP($C52,Defaults!$CB$37:$CG$63,5,FALSE),\"\"))","v":""},{"$f":"IF($C52=\"\",\"\",IFERROR(VLOOKUP($C52,Defaults!$CI:$CN,5,FALSE),\"\"))","v":""},null,{"$f":"IF($C52=\"\",\"\",$C52)","v":""},{"$f":"IF($C52=\"\",\"\",IFERROR(VLOOKUP($C52,Defaults!$AL$37:$AQ$63,6,FALSE),\"\"))","v":""},{"$f":"IF($C52=\"\",\"\",IFERROR(VLOOKUP($C52,Defaults!$AS$37:$AX$63,6,FALSE),\"\"))","v":""},{"$f":"IF($C52=\"\",\"\",IFERROR(VLOOKUP($C52,Defaults!$AZ$37:$BE$63,6,FALSE),\"\"))","v":""},{"$f":"IF($C52=\"\",\"\",IFERROR(VLOOKUP($C52,Defaults!$BG$37:$BL$63,6,FALSE),\"\"))","v":""},{"$f":"IF($C52=\"\",\"\",IFERROR(VLOOKUP($C52,Defaults!$BN$37:$BS$63,6,FALSE),\"\"))","v":""},{"$f":"IF($C52=\"\",\"\",IFERROR(VLOOKUP($C52,Defaults!$BU$37:$BZ$63,6,FALSE),\"\"))","v":""},{"$f":"IF($C52=\"\",\"\",IFERROR(VLOOKUP($C52,Defaults!$CB$37:$CG$63,6,FALSE),\"\"))","v":""},{"$f":"IF($C52=\"\",\"\",IFERROR(VLOOKUP($C52,Defaults!$CI:$CN,6,FALSE),\"\"))","v":""}]
[null,null,null,null,null,null,null,null,null,null,{"$f":"IF(C53=\"\",\"\",ROUND(IF(E53=AE53,AF53,IF(AE53=$AC$2,AF53*VLOOKUP(E53,$AA$2:$AB$4,2,FALSE),IF(AE53=$AF$2,AF53*VLOOKUP(E53,$AD$2:$AE$3,2,FALSE),IF(AE53=$AI$2,AF53/VLOOKUP(E53,$AG$2:$AH$2,2,FALSE),IF(AE53=$AL$2,AF53*VLOOKUP(E53,$AJ$2:$AK$2,2,FALSE),IF(AE53=$AO$2,AF53/VLOOKUP(E53,$AM$2:$AN$2,2,FALSE),IF(AE53=$AR$2,AF53*VLOOKUP(E53,$AP$2:$AQ$3,2,FALSE)))))))),2))","v":""},null,"",0,null,null,{"$f":"IF(L53>0,ABS(V53-L53),\"\")","v":""},null,null,null,{"$f":"J53","v":0},{"$f":"IF(AG53=0,0,AG53)","v":""},"","",null,{"$f":"IF($Z$2=Defaults!$M$5,Cotton!B53,IF($Z$2=Defaults!$M$6,Corn!B53,IF($Z$2=Defaults!$M$7,Sorghum!B53,IF($Z$2=Defaults!$M$8,Soybean!B53,IF($Z$2=Defaults!$M$9,Rice!B53,IF($Z$2=Defaults!$M$10,Peanut!B53,IF($Z$2=Defaults!$M$11,Wheat!B53,IF($Z$2=Defaults!$M$12,Pasture!B53,\"\"))))))))","v":""},{"$f":"IF(C53=\"\",\"\",HLOOKUP($Z$2,$AZ$48:$BG$53,6,FALSE))","v":""},{"$f":"IF(C53=\"\",\"\",HLOOKUP($Z$2,$BJ$48:$BQ$53,6,FALSE))","v":""},0,{"$f":"IF(C53=\"\",\"\",HLOOKUP($Z$2,$BT$48:$CA$53,6,FALSE))","v":""},{"$f":"IF(C53=\"\",\"\",VLOOKUP(C53,Defaults!$AH:$AJ,2,FALSE))","v":""},{"$f":"IF(C53=\"\",\"\",ROUND(VLOOKUP(C53,Defaults!$AH:$AJ,3,FALSE),2))","v":""},{"$f":"IFERROR(IF(LEFT($C$48,6)=\"Custom\",L53,L53*(1-VLOOKUP($C$48,Implements!$A$159:$D$166,4,FALSE))),\"\")","v":""},null,null,null,null,null,{"$f":"N53","v":0},null,{"$f":"N53","v":0},null,null,null,null,null,{"$f":"W53","v":""},null,{"$f":"W53","v":""},null,{"$f":"IF($C53=\"\",\"\",$C53)","v":""},{"$f":"IF($C53=\"\",\"\",VLOOKUP($C53,Defaults!$AL$37:$AQ$63,4,FALSE))","v":""},{"$f":"IF($C53=\"\",\"\",VLOOKUP($C53,Defaults!$AS$37:$AX$63,4,FALSE))","v":""},{"$f":"IF($C53=\"\",\"\",VLOOKUP($C53,Defaults!$AZ$37:$BE$63,4,FALSE))","v":""},{"$f":"IF($C53=\"\",\"\",VLOOKUP($C53,Defaults!$BG$37:$BL$63,4,FALSE))","v":""},{"$f":"IF($C53=\"\",\"\",VLOOKUP($C53,Defaults!$BN$37:$BS$63,4,FALSE))","v":""},{"$f":"IF($C53=\"\",\"\",VLOOKUP($C53,Defaults!$BU$37:$BZ$63,4,FALSE))","v":""},{"$f":"IF($C53=\"\",\"\",VLOOKUP($C53,Defaults!$CB$37:$CG$63,4,FALSE))","v":""},{"$f":"IF($C53=\"\",\"\",VLOOKUP($C53,Defaults!$CI:$CN,4,FALSE))","v":""},null,{"$f":"IF($C53=\"\",\"\",$C53)","v":""},{"$f":"IF($C53=\"\",\"\",IFERROR(VLOOKUP($C53,Defaults!$AL$37:$AQ$63,5,FALSE),\"\"))","v":""},{"$f":"IF($C53=\"\",\"\",IFERROR(VLOOKUP($C53,Defaults!$AS$37:$AX$63,5,FALSE),\"\"))","v":""},{"$f":"IF($C53=\"\",\"\",IFERROR(VLOOKUP($C53,Defaults!$AZ$37:$BE$63,5,FALSE),\"\"))","v":""},{"$f":"IF($C53=\"\",\"\",IFERROR(VLOOKUP($C53,Defaults!$BG$37:$BL$63,5,FALSE),\"\"))","v":""},{"$f":"IF($C53=\"\",\"\",IFERROR(VLOOKUP($C53,Defaults!$BN$37:$BS$63,5,FALSE),\"\"))","v":""},{"$f":"IF($C53=\"\",\"\",IFERROR(VLOOKUP($C53,Defaults!$BU$37:$BZ$63,5,FALSE),\"\"))","v":""},{"$f":"IF($C53=\"\",\"\",IFERROR(VLOOKUP($C53,Defaults!$CB$37:$CG$63,5,FALSE),\"\"))","v":""},{"$f":"IF($C53=\"\",\"\",IFERROR(VLOOKUP($C53,Defaults!$CI:$CN,5,FALSE),\"\"))","v":""},null,{"$f":"IF($C53=\"\",\"\",$C53)","v":""},{"$f":"IF($C53=\"\",\"\",IFERROR(VLOOKUP($C53,Defaults!$AL$37:$AQ$63,6,FALSE),\"\"))","v":""},{"$f":"IF($C53=\"\",\"\",IFERROR(VLOOKUP($C53,Defaults!$AS$37:$AX$63,6,FALSE),\"\"))","v":""},{"$f":"IF($C53=\"\",\"\",IFERROR(VLOOKUP($C53,Defaults!$AZ$37:$BE$63,6,FALSE),\"\"))","v":""},{"$f":"IF($C53=\"\",\"\",IFERROR(VLOOKUP($C53,Defaults!$BG$37:$BL$63,6,FALSE),\"\"))","v":""},{"$f":"IF($C53=\"\",\"\",IFERROR(VLOOKUP($C53,Defaults!$BN$37:$BS$63,6,FALSE),\"\"))","v":""},{"$f":"IF($C53=\"\",\"\",IFERROR(VLOOKUP($C53,Defaults!$BU$37:$BZ$63,6,FALSE),\"\"))","v":""},{"$f":"IF($C53=\"\",\"\",IFERROR(VLOOKUP($C53,Defaults!$CB$37:$CG$63,6,FALSE),\"\"))","v":""},{"$f":"IF($C53=\"\",\"\",IFERROR(VLOOKUP($C53,Defaults!$CI:$CN,6,FALSE),\"\"))","v":""}]
[null,null,"Postemergence Weed Control",{"$f":"IF($Z$2=Defaults!$M$5,Cotton!D54,IF($Z$2=Defaults!$M$6,Corn!D54,IF($Z$2=Defaults!$M$7,Sorghum!D54,IF($Z$2=Defaults!$M$8,Soybean!D54,IF($Z$2=Defaults!$M$9,Rice!D54,IF($Z$2=Defaults!$M$10,Peanut!D54,IF($Z$2=Defaults!$M$11,Wheat!D54,IF($Z$2=Defaults!$M$12,Pasture!D54,FALSE))))))))","v":"Post Planting"},null,null,null,null,null,null,null,null,null,null,null,null,null,null,null,null,null,null,null,null,null,{"$f":"IF($Z$2=Defaults!$M$5,Cotton!B54,IF($Z$2=Defaults!$M$6,Corn!B54,IF($Z$2=Defaults!$M$7,Sorghum!B54,IF($Z$2=Defaults!$M$8,Soybean!B54,IF($Z$2=Defaults!$M$9,Rice!B54,IF($Z$2=Defaults!$M$10,Peanut!B54,IF($Z$2=Defaults!$M$11,Wheat!B54,IF($Z$2=Defaults!$M$12,Pasture!B54,\"\"))))))))","v":"Postemergence Weed Control"},null,null,null,null,null,null,null,null,null,null,null,null,null,null,null,null,null,null,null,null,null,null,null,null,"POST",null,null,null,null,null,null,null,null,null,"POST",null,null,null,null,null,null,null,null,null,"POST"]
[null,null,null,null,null,{"$f":"IF(L55=0,0,IF(C55=Defaults!$I$27,Implements!$AK$185,IF(C55=Defaults!$I$28,Implements!$AK$186,0)))","v":0},{"$f":"IF($L55=0,0,IFERROR(VLOOKUP($C55,Implements!$X$181:$AN$188,15,FALSE),0))","v":0},{"$f":"IF($L55=0,0,IFERROR(VLOOKUP($C55,Implements!$X$181:$AN$188,16,FALSE),0))","v":0},{"$f":"IF($L55=0,0,IFERROR(VLOOKUP($C55,Implements!$X$181:$AN$188,17,FALSE),0))","v":0},{"$f":"IF(OR(C55=\"\",L55=\"\",L55=0)=TRUE,\"\",IF(OR(C55=Defaults!$I$25,C55=Defaults!$I$26)=TRUE,VLOOKUP(C55,Defaults!$I$24:$K$27,3,FALSE),ROUND(1/F55*(1*Inputs!$AA$13+($AI$7-1)*Inputs!$AA$15),2)+ROUND(G55*Inputs!$V$13/F55,2)+ROUND(H55/F55,2)+ROUND(I55/F55,2)))","v":""},{"$f":"IF(OR(C55=\"\",L55=\"\",L55=0)=TRUE,\"\",IF(OR(C55=Defaults!$I$25,C55=Defaults!$I$26)=TRUE,VLOOKUP(C55,Defaults!$I$24:$K$27,3,FALSE),ROUND(1/F55*(1*Inputs!$AA$13+($AI$7-1)*Inputs!$AA$15),2)+ROUND(G55*Inputs!$V$13/F55,2)+ROUND(H55/F55,2)+ROUND(I55/F55,2)))","v":""},null,{"$f":"AB55","v":""},{"$f":"IF(C55=\"\",0,IF(L55=0,0,IF(L55=\"\",\"\",J55*L55)))","v":0},null,null,{"$f":"IF(V55=0,0,IF(C55=Defaults!$I$27,Implements!$AK$174,IF(C55=Defaults!$I$28,Implements!$AK$175,0)))","v":0},{"$f":"IF($V55=0,0,IFERROR(VLOOKUP($C55,Implements!$X$170:$AN$177,15,FALSE),0))","v":0},{"$f":"IF($V55=0,0,IFERROR(VLOOKUP($C55,Implements!$X$170:$AN$177,16,FALSE),0))","v":0},{"$f":"IF($V55=0,0,IFERROR(VLOOKUP($C55,Implements!$X$170:$AN$177,17,FALSE),0))","v":0},{"$f":"IF(OR(C55=\"\",V55=\"\",V55=0)=TRUE,\"\",IF(LEFT(C55,6)=\"Custom\",J55,ROUND(1/Q55*(1*Inputs!$AA$13+($AI$7-1)*Inputs!$AA$15),2)+ROUND(R55*Inputs!$V$13/Q55,2)+ROUND(S55/Q55,2)+ROUND(T55/Q55,2)))","v":""},{"$f":"+L55","v":0},{"$f":"IF(C55=\"\",\"\",IF(V55=0,0,IF(V55=\"\",\"\",U55*V55)))","v":""},{"$f":"IF(C55=\"\",\"\",W55-N55)","v":""},null,{"$f":"IF($Z$2=Defaults!$M$5,Cotton!B55,IF($Z$2=Defaults!$M$6,Corn!B55,IF($Z$2=Defaults!$M$7,Sorghum!B55,IF($Z$2=Defaults!$M$8,Soybean!B55,IF($Z$2=Defaults!$M$9,Rice!B55,IF($Z$2=Defaults!$M$10,Peanut!B55,IF($Z$2=Defaults!$M$11,Wheat!B55,IF($Z$2=Defaults!$M$12,Pasture!B55,\"\"))))))))","v":""},null,{"$f":"IF(C55=\"\",\"\",IF($Z$2=Defaults!$M$12,VLOOKUP(C55,Defaults!$I$35:$J$37,2,FALSE),VLOOKUP(C55,Defaults!$I$24:$J$28,2,FALSE)))","v":""},0,{"$f":"IF(AB55=\"\",\"\",AB55*2)","v":""},null,null,{"$f":"+AB55","v":""},{"$f":"N55","v":0},{"$f":"ROUND(IFERROR(1/F55*(1*Inputs!$AA$13+($AI$7-1)*Inputs!$AA$15),0),2)*L55","v":0},{"$f":"ROUND(IFERROR(1/F55*G55*Inputs!$V$13,0),2)*L55","v":0},{"$f":"ROUND(IFERROR(1/F55*H55,0),2)*L55","v":0},{"$f":"ROUND(IFERROR(1/F55*I55,0),2)*L55","v":0},null,null,null,{"$f":"W55","v":""},{"$f":"ROUND(IFERROR(1/Q55*(1*Inputs!$AA$13+($AI$7-1)*Inputs!$AA$15),0),2)*V55","v":0},{"$f":"ROUND(IFERROR(1/Q55*R55*Inputs!$V$13,0),2)*V55","v":0},{"$f":"ROUND(IFERROR(1/Q55*S55,0),2)*V55","v":0},{"$f":"ROUND(IFERROR(1/Q55*T55,0),2)*V55","v":0},null,null,null,null,null,{"$f":"AZ11","v":"Cotton"},"Corn","Sorghum","Soybean","Rice","Peanut","Wheat","Est. Pasture or Hay",null,null,{"$f":"BJ11","v":"Cotton"},"Corn","Sorghum","Soybean","Rice","Peanut","Wheat","Est. Pasture or Hay",null,null,{"$f":"BT11","v":"Cotton"},"Corn","Sorghum","Soybean","Rice","Peanut","Wheat","Est. Pasture or Hay"]
[null,null,null,null,null,null,null,null,null,null,{"$f":"IF(C56=\"\",\"\",ROUND(IF(E56=AE56,AF56,IF(AE56=$AC$2,AF56*VLOOKUP(E56,$AA$2:$AB$4,2,FALSE),IF(AE56=$AF$2,AF56*VLOOKUP(E56,$AD$2:$AE$3,2,FALSE),IF(AE56=$AI$2,AF56/VLOOKUP(E56,$AG$2:$AH$2,2,FALSE),IF(AE56=$AL$2,AF56*VLOOKUP(E56,$AJ$2:$AK$2,2,FALSE),IF(AE56=$AO$2,AF56/VLOOKUP(E56,$AM$2:$AN$2,2,FALSE),IF(AE56=$AR$2,AF56*VLOOKUP(E56,$AP$2:$AQ$3,2,FALSE)))))))),2))","v":""},null,{"$f":"AB56","v":""},{"$f":"IF(C56=\"\",0,IF(L56=0,0,IF(L56=\"\",\"\",J56*L56)))","v":0},null,null,{"$f":"IF(L56>0,ABS(V56-L56),\"\")","v":""},null,null,null,{"$f":"J56","v":0},{"$f":"IF(AG56=0,0,AG56)","v":""},{"$f":"IF(C56=\"\",\"\",IF(V56=0,0,IF(V56=\"\",\"\",U56*V56)))","v":""},"",null,{"$f":"IF($Z$2=Defaults!$M$5,Cotton!B56,IF($Z$2=Defaults!$M$6,Corn!B56,IF($Z$2=Defaults!$M$7,Sorghum!B56,IF($Z$2=Defaults!$M$8,Soybean!B56,IF($Z$2=Defaults!$M$9,Rice!B56,IF($Z$2=Defaults!$M$10,Peanut!B56,IF($Z$2=Defaults!$M$11,Wheat!B56,IF($Z$2=Defaults!$M$12,Pasture!B56,\"\"))))))))","v":""},{"$f":"IF(C56=\"\",\"\",HLOOKUP($Z$2,$AZ$55:$BG$59,2,FALSE))","v":""},{"$f":"IF(C56=\"\",\"\",HLOOKUP($Z$2,$BJ$55:$BQ$59,2,FALSE))","v":""},0,{"$f":"IF(C56=\"\",\"\",HLOOKUP($Z$2,$BT$55:$CA$59,2,FALSE))","v":""},{"$f":"IF(C56=\"\",\"\",VLOOKUP(C56,Defaults!$AH:$AJ,2,FALSE))","v":""},{"$f":"IF(C56=\"\",\"\",ROUND(VLOOKUP(C56,Defaults!$AH:$AJ,3,FALSE),2))","v":""},{"$f":"IFERROR(IF(LEFT($C$55,6)=\"Custom\",L56,L56*(1-VLOOKUP($C$55,Implements!$A$159:$D$166,4,FALSE))),\"\")","v":""},null,null,null,null,null,{"$f":"N56","v":0},null,{"$f":"N56","v":0},null,null,null,null,null,{"$f":"W56","v":""},null,{"$f":"W56","v":""},null,{"$f":"IF($C56=\"\",\"\",$C56)","v":""},{"$f":"IF($C56=\"\",\"\",VLOOKUP($C56,Defaults!$AL$65:$AQ$82,4,FALSE))","v":""},{"$f":"IF($C56=\"\",\"\",VLOOKUP($C56,Defaults!$AS$65:$AX$96,4,FALSE))","v":""},{"$f":"IF($C56=\"\",\"\",VLOOKUP($C56,Defaults!$AZ$65:$BE$96,4,FALSE))","v":""},{"$f":"IF($C56=\"\",\"\",VLOOKUP($C56,Defaults!$BG$65:$BL$96,4,FALSE))","v":""},{"$f":"IF($C56=\"\",\"\",VLOOKUP($C56,Defaults!$BN$65:$BS$96,4,FALSE))","v":""},{"$f":"IF($C56=\"\",\"\",VLOOKUP($C56,Defaults!$BU$65:$BZ$96,4,FALSE))","v":""},{"$f":"IF($C56=\"\",\"\",VLOOKUP($C56,Defaults!$CB$65:$CG$96,4,FALSE))","v":""},{"$f":"IF($C56=\"\",\"\",VLOOKUP($C56,Defaults!$CI:$CN,4,FALSE))","v":""},null,{"$f":"IF($C56=\"\",\"\",$C56)","v":""},{"$f":"IF($C56=\"\",\"\",IFERROR(VLOOKUP($C56,Defaults!$AL$65:$AQ$82,5,FALSE),\"\"))","v":""},{"$f":"IF($C56=\"\",\"\",IFERROR(VLOOKUP($C56,Defaults!$AS$65:$AX$96,5,FALSE),\"\"))","v":""},{"$f":"IF($C56=\"\",\"\",IFERROR(VLOOKUP($C56,Defaults!$AZ$65:$BE$96,5,FALSE),\"\"))","v":""},{"$f":"IF($C56=\"\",\"\",IFERROR(VLOOKUP($C56,Defaults!$BG$65:$BL$96,5,FALSE),\"\"))","v":""},{"$f":"IF($C56=\"\",\"\",IFERROR(VLOOKUP($C56,Defaults!$BN$65:$BS$96,5,FALSE),\"\"))","v":""},{"$f":"IF($C56=\"\",\"\",IFERROR(VLOOKUP($C56,Defaults!$BU$65:$BZ$96,5,FALSE),\"\"))","v":""},{"$f":"\"\"","v":""},{"$f":"IF($C56=\"\",\"\",IFERROR(VLOOKUP($C56,Defaults!$CI:$CN,5,FALSE),\"\"))","v":""},null,{"$f":"IF($C56=\"\",\"\",$C56)","v":""},{"$f":"IF($C56=\"\",\"\",IFERROR(VLOOKUP($C56,Defaults!$AL$65:$AQ$82,6,FALSE),\"\"))","v":""},{"$f":"IF($C56=\"\",\"\",IFERROR(VLOOKUP($C56,Defaults!$AS$65:$AX$96,6,FALSE),\"\"))","v":""},{"$f":"IF($C56=\"\",\"\",IFERROR(VLOOKUP($C56,Defaults!$AZ$65:$BE$96,6,FALSE),\"\"))","v":""},{"$f":"IF($C56=\"\",\"\",IFERROR(VLOOKUP($C56,Defaults!$BG$65:$BL$96,6,FALSE),\"\"))","v":""},{"$f":"IF($C56=\"\",\"\",IFERROR(VLOOKUP($C56,Defaults!$BN$65:$BS$96,6,FALSE),\"\"))","v":""},{"$f":"IF($C56=\"\",\"\",IFERROR(VLOOKUP($C56,Defaults!$BU$65:$BZ$96,6,FALSE),\"\"))","v":""},{"$f":"\"\"","v":""},{"$f":"IF($C56=\"\",\"\",IFERROR(VLOOKUP($C56,Defaults!$CI:$CN,6,FALSE),\"\"))","v":""}]
[null,null,null,null,null,null,null,null,null,null,{"$f":"IF(C57=\"\",\"\",ROUND(IF(E57=AE57,AF57,IF(AE57=$AC$2,AF57*VLOOKUP(E57,$AA$2:$AB$4,2,FALSE),IF(AE57=$AF$2,AF57*VLOOKUP(E57,$AD$2:$AE$3,2,FALSE),IF(AE57=$AI$2,AF57/VLOOKUP(E57,$AG$2:$AH$2,2,FALSE),IF(AE57=$AL$2,AF57*VLOOKUP(E57,$AJ$2:$AK$2,2,FALSE),IF(AE57=$AO$2,AF57/VLOOKUP(E57,$AM$2:$AN$2,2,FALSE),IF(AE57=$AR$2,AF57*VLOOKUP(E57,$AP$2:$AQ$3,2,FALSE)))))))),2))","v":""},null,{"$f":"AB57","v":""},{"$f":"IF(C57=\"\",0,IF(L57=0,0,IF(L57=\"\",\"\",J57*L57)))","v":0},null,null,{"$f":"IF(L57>0,ABS(V57-L57),\"\")","v":""},null,null,null,{"$f":"J57","v":0},{"$f":"IF(AG57=0,0,AG57)","v":""},{"$f":"IF(C57=\"\",\"\",IF(V57=0,0,IF(V57=\"\",\"\",U57*V57)))","v":""},"",null,{"$f":"IF($Z$2=Defaults!$M$5,Cotton!B57,IF($Z$2=Defaults!$M$6,Corn!B57,IF($Z$2=Defaults!$M$7,Sorghum!B57,IF($Z$2=Defaults!$M$8,Soybean!B57,IF($Z$2=Defaults!$M$9,Rice!B57,IF($Z$2=Defaults!$M$10,Peanut!B57,IF($Z$2=Defaults!$M$11,Wheat!B57,IF($Z$2=Defaults!$M$12,Pasture!B57,\"\"))))))))","v":""},{"$f":"IF(C57=\"\",\"\",HLOOKUP($Z$2,$AZ$55:$BG$59,3,FALSE))","v":""},{"$f":"IF(C57=\"\",\"\",HLOOKUP($Z$2,$BJ$55:$BQ$59,3,FALSE))","v":""},0,{"$f":"IF(C57=\"\",\"\",HLOOKUP($Z$2,$BT$55:$CA$59,3,FALSE))","v":""},{"$f":"IF(C57=\"\",\"\",VLOOKUP(C57,Defaults!$AH:$AJ,2,FALSE))","v":""},{"$f":"IF(C57=\"\",\"\",ROUND(VLOOKUP(C57,Defaults!$AH:$AJ,3,FALSE),2))","v":""},{"$f":"IFERROR(IF(LEFT($C$55,6)=\"Custom\",L57,L57*(1-VLOOKUP($C$55,Implements!$A$159:$D$166,4,FALSE))),\"\")","v":""},null,null,null,null,null,{"$f":"N57","v":0},null,{"$f":"N57","v":0},null,null,null,null,null,{"$f":"W57","v":""},null,{"$f":"W57","v":""},null,{"$f":"IF($C57=\"\",\"\",$C57)","v":""},{"$f":"IF($C57=\"\",\"\",VLOOKUP($C57,Defaults!$AL$65:$AQ$82,4,FALSE))","v":""},{"$f":"IF($C57=\"\",\"\",VLOOKUP($C57,Defaults!$AS$65:$AX$96,4,FALSE))","v":""},{"$f":"IF($C57=\"\",\"\",VLOOKUP($C57,Defaults!$AZ$65:$BE$96,4,FALSE))","v":""},{"$f":"IF($C57=\"\",\"\",VLOOKUP($C57,Defaults!$BG$65:$BL$96,4,FALSE))","v":""},{"$f":"IF($C57=\"\",\"\",VLOOKUP($C57,Defaults!$BN$65:$BS$96,4,FALSE))","v":""},{"$f":"IF($C57=\"\",\"\",VLOOKUP($C57,Defaults!$BU$65:$BZ$96,4,FALSE))","v":""},{"$f":"IF($C57=\"\",\"\",VLOOKUP($C57,Defaults!$CB$65:$CG$96,4,FALSE))","v":""},{"$f":"IF($C57=\"\",\"\",VLOOKUP($C57,Defaults!$CI:$CN,4,FALSE))","v":""},null,{"$f":"IF($C57=\"\",\"\",$C57)","v":""},{"$f":"IF($C57=\"\",\"\",IFERROR(VLOOKUP($C57,Defaults!$AL$65:$AQ$82,5,FALSE),\"\"))","v":""},{"$f":"IF($C57=\"\",\"\",IFERROR(VLOOKUP($C57,Defaults!$AS$65:$AX$96,5,FALSE),\"\"))","v":""},{"$f":"IF($C57=\"\",\"\",IFERROR(VLOOKUP($C57,Defaults!$AZ$65:$BE$96,5,FALSE),\"\"))","v":""},{"$f":"IF($C57=\"\",\"\",IFERROR(VLOOKUP($C57,Defaults!$BG$65:$BL$96,5,FALSE),\"\"))","v":""},{"$f":"IF($C57=\"\",\"\",IFERROR(VLOOKUP($C57,Defaults!$BN$65:$BS$96,5,FALSE),\"\"))","v":""},{"$f":"IF($C57=\"\",\"\",IFERROR(VLOOKUP($C57,Defaults!$BU$65:$BZ$96,5,FALSE),\"\"))","v":""},{"$f":"\"\"","v":""},{"$f":"IF($C57=\"\",\"\",IFERROR(VLOOKUP($C57,Defaults!$CI:$CN,5,FALSE),\"\"))","v":""},null,{"$f":"IF($C57=\"\",\"\",$C57)","v":""},{"$f":"IF($C57=\"\",\"\",IFERROR(VLOOKUP($C57,Defaults!$AL$65:$AQ$82,6,FALSE),\"\"))","v":""},{"$f":"IF($C57=\"\",\"\",IFERROR(VLOOKUP($C57,Defaults!$AS$65:$AX$96,6,FALSE),\"\"))","v":""},{"$f":"IF($C57=\"\",\"\",IFERROR(VLOOKUP($C57,Defaults!$AZ$65:$BE$96,6,FALSE),\"\"))","v":""},{"$f":"IF($C57=\"\",\"\",IFERROR(VLOOKUP($C57,Defaults!$BG$65:$BL$96,6,FALSE),\"\"))","v":""},{"$f":"IF($C57=\"\",\"\",IFERROR(VLOOKUP($C57,Defaults!$BN$65:$BS$96,6,FALSE),\"\"))","v":""},{"$f":"IF($C57=\"\",\"\",IFERROR(VLOOKUP($C57,Defaults!$BU$65:$BZ$96,6,FALSE),\"\"))","v":""},{"$f":"\"\"","v":""},{"$f":"IF($C57=\"\",\"\",IFERROR(VLOOKUP($C57,Defaults!$CI:$CN,6,FALSE),\"\"))","v":""}]
[null,null,null,null,null,null,null,null,null,null,{"$f":"IF(C58=\"\",\"\",ROUND(IF(E58=AE58,AF58,IF(AE58=$AC$2,AF58*VLOOKUP(E58,$AA$2:$AB$4,2,FALSE),IF(AE58=$AF$2,AF58*VLOOKUP(E58,$AD$2:$AE$3,2,FALSE),IF(AE58=$AI$2,AF58/VLOOKUP(E58,$AG$2:$AH$2,2,FALSE),IF(AE58=$AL$2,AF58*VLOOKUP(E58,$AJ$2:$AK$2,2,FALSE),IF(AE58=$AO$2,AF58/VLOOKUP(E58,$AM$2:$AN$2,2,FALSE),IF(AE58=$AR$2,AF58*VLOOKUP(E58,$AP$2:$AQ$3,2,FALSE)))))))),2))","v":""},null,{"$f":"AB58","v":""},{"$f":"IF(C58=\"\",0,IF(L58=0,0,IF(L58=\"\",\"\",J58*L58)))","v":0},null,null,{"$f":"IF(L58>0,ABS(V58-L58),\"\")","v":""},null,null,null,{"$f":"J58","v":0},{"$f":"IF(AG58=0,0,AG58)","v":""},{"$f":"IF(C58=\"\",\"\",IF(V58=0,0,IF(V58=\"\",\"\",U58*V58)))","v":""},"",null,{"$f":"IF($Z$2=Defaults!$M$5,Cotton!B58,IF($Z$2=Defaults!$M$6,Corn!B58,IF($Z$2=Defaults!$M$7,Sorghum!B58,IF($Z$2=Defaults!$M$8,Soybean!B58,IF($Z$2=Defaults!$M$9,Rice!B58,IF($Z$2=Defaults!$M$10,Peanut!B58,IF($Z$2=Defaults!$M$11,Wheat!B58,IF($Z$2=Defaults!$M$12,Pasture!B58,\"\"))))))))","v":""},{"$f":"IF(C58=\"\",\"\",HLOOKUP($Z$2,$AZ$55:$BG$59,4,FALSE))","v":""},{"$f":"IF(C58=\"\",\"\",HLOOKUP($Z$2,$BJ$55:$BQ$59,4,FALSE))","v":""},0,{"$f":"IF(C58=\"\",\"\",HLOOKUP($Z$2,$BT$55:$CA$59,4,FALSE))","v":""},{"$f":"IF(C58=\"\",\"\",VLOOKUP(C58,Defaults!$AH:$AJ,2,FALSE))","v":""},{"$f":"IF(C58=\"\",\"\",ROUND(VLOOKUP(C58,Defaults!$AH:$AJ,3,FALSE),2))","v":""},{"$f":"IFERROR(IF(LEFT($C$55,6)=\"Custom\",L58,L58*(1-VLOOKUP($C$55,Implements!$A$159:$D$166,4,FALSE))),\"\")","v":""},null,null,null,null,null,{"$f":"N58","v":0},null,{"$f":"N58","v":0},null,null,null,null,null,{"$f":"W58","v":""},null,{"$f":"W58","v":""},null,{"$f":"IF($C58=\"\",\"\",$C58)","v":""},{"$f":"IF($C58=\"\",\"\",VLOOKUP($C58,Defaults!$AL$65:$AQ$82,4,FALSE))","v":""},{"$f":"IF($C58=\"\",\"\",VLOOKUP($C58,Defaults!$AS$65:$AX$96,4,FALSE))","v":""},{"$f":"IF($C58=\"\",\"\",VLOOKUP($C58,Defaults!$AZ$65:$BE$96,4,FALSE))","v":""},{"$f":"IF($C58=\"\",\"\",VLOOKUP($C58,Defaults!$BG$65:$BL$96,4,FALSE))","v":""},{"$f":"IF($C58=\"\",\"\",VLOOKUP($C58,Defaults!$BN$65:$BS$96,4,FALSE))","v":""},{"$f":"IF($C58=\"\",\"\",VLOOKUP($C58,Defaults!$BU$65:$BZ$96,4,FALSE))","v":""},{"$f":"IF($C58=\"\",\"\",VLOOKUP($C58,Defaults!$CB$65:$CG$96,4,FALSE))","v":""},{"$f":"IF($C58=\"\",\"\",VLOOKUP($C58,Defaults!$CI:$CN,4,FALSE))","v":""},null,{"$f":"IF($C58=\"\",\"\",$C58)","v":""},{"$f":"IF($C58=\"\",\"\",IFERROR(VLOOKUP($C58,Defaults!$AL$65:$AQ$82,5,FALSE),\"\"))","v":""},{"$f":"IF($C58=\"\",\"\",IFERROR(VLOOKUP($C58,Defaults!$AS$65:$AX$96,5,FALSE),\"\"))","v":""},{"$f":"IF($C58=\"\",\"\",IFERROR(VLOOKUP($C58,Defaults!$AZ$65:$BE$96,5,FALSE),\"\"))","v":""},{"$f":"IF($C58=\"\",\"\",IFERROR(VLOOKUP($C58,Defaults!$BG$65:$BL$96,5,FALSE),\"\"))","v":""},{"$f":"IF($C58=\"\",\"\",IFERROR(VLOOKUP($C58,Defaults!$BN$65:$BS$96,5,FALSE),\"\"))","v":""},{"$f":"IF($C58=\"\",\"\",IFERROR(VLOOKUP($C58,Defaults!$BU$65:$BZ$96,5,FALSE),\"\"))","v":""},{"$f":"\"\"","v":""},{"$f":"IF($C58=\"\",\"\",IFERROR(VLOOKUP($C58,Defaults!$CI:$CN,5,FALSE),\"\"))","v":""},null,{"$f":"IF($C58=\"\",\"\",$C58)","v":""},{"$f":"IF($C58=\"\",\"\",IFERROR(VLOOKUP($C58,Defaults!$AL$65:$AQ$82,6,FALSE),\"\"))","v":""},{"$f":"IF($C58=\"\",\"\",IFERROR(VLOOKUP($C58,Defaults!$AS$65:$AX$96,6,FALSE),\"\"))","v":""},{"$f":"IF($C58=\"\",\"\",IFERROR(VLOOKUP($C58,Defaults!$AZ$65:$BE$96,6,FALSE),\"\"))","v":""},{"$f":"IF($C58=\"\",\"\",IFERROR(VLOOKUP($C58,Defaults!$BG$65:$BL$96,6,FALSE),\"\"))","v":""},{"$f":"IF($C58=\"\",\"\",IFERROR(VLOOKUP($C58,Defaults!$BN$65:$BS$96,6,FALSE),\"\"))","v":""},{"$f":"IF($C58=\"\",\"\",IFERROR(VLOOKUP($C58,Defaults!$BU$65:$BZ$96,6,FALSE),\"\"))","v":""},{"$f":"\"\"","v":""},{"$f":"IF($C58=\"\",\"\",IFERROR(VLOOKUP($C58,Defaults!$CI:$CN,6,FALSE),\"\"))","v":""}]
[null,null,null,null,null,null,null,null,null,null,{"$f":"IF(C59=\"\",\"\",ROUND(IF(E59=AE59,AF59,IF(AE59=$AC$2,AF59*VLOOKUP(E59,$AA$2:$AB$4,2,FALSE),IF(AE59=$AF$2,AF59*VLOOKUP(E59,$AD$2:$AE$3,2,FALSE),IF(AE59=$AI$2,AF59/VLOOKUP(E59,$AG$2:$AH$2,2,FALSE),IF(AE59=$AL$2,AF59*VLOOKUP(E59,$AJ$2:$AK$2,2,FALSE),IF(AE59=$AO$2,AF59/VLOOKUP(E59,$AM$2:$AN$2,2,FALSE),IF(AE59=$AR$2,AF59*VLOOKUP(E59,$AP$2:$AQ$3,2,FALSE)))))))),2))","v":""},null,{"$f":"AB59","v":""},{"$f":"IF(C59=\"\",0,IF(L59=0,0,IF(L59=\"\",\"\",J59*L59)))","v":0},null,null,{"$f":"IF(L59>0,ABS(V59-L59),\"\")","v":""},null,null,null,{"$f":"J59","v":0},{"$f":"IF(AG59=0,0,AG59)","v":""},{"$f":"IF(C59=\"\",\"\",IF(V59=0,0,IF(V59=\"\",\"\",U59*V59)))","v":""},"",null,{"$f":"IF($Z$2=Defaults!$M$5,Cotton!B59,IF($Z$2=Defaults!$M$6,Corn!B59,IF($Z$2=Defaults!$M$7,Sorghum!B59,IF($Z$2=Defaults!$M$8,Soybean!B59,IF($Z$2=Defaults!$M$9,Rice!B59,IF($Z$2=Defaults!$M$10,Peanut!B59,IF($Z$2=Defaults!$M$11,Wheat!B59,IF($Z$2=Defaults!$M$12,Pasture!B59,\"\"))))))))","v":""},{"$f":"IF(C59=\"\",\"\",HLOOKUP($Z$2,$AZ$55:$BG$59,5,FALSE))","v":""},{"$f":"IF(C59=\"\",\"\",HLOOKUP($Z$2,$BJ$55:$BQ$59,5,FALSE))","v":""},0,{"$f":"IF(C59=\"\",\"\",HLOOKUP($Z$2,$BT$55:$CA$59,5,FALSE))","v":""},{"$f":"IF(C59=\"\",\"\",VLOOKUP(C59,Defaults!$AH:$AJ,2,FALSE))","v":""},{"$f":"IF(C59=\"\",\"\",ROUND(VLOOKUP(C59,Defaults!$AH:$AJ,3,FALSE),2))","v":""},{"$f":"IFERROR(IF(LEFT($C$55,6)=\"Custom\",L59,L59*(1-VLOOKUP($C$55,Implements!$A$159:$D$166,4,FALSE))),\"\")","v":""},null,null,null,null,null,null,null,null,null,null,null,null,null,{"$f":"W59","v":""},null,{"$f":"W59","v":""},null,{"$f":"IF($C59=\"\",\"\",$C59)","v":""},{"$f":"IF($C59=\"\",\"\",VLOOKUP($C59,Defaults!$AL$65:$AQ$82,4,FALSE))","v":""},{"$f":"IF($C59=\"\",\"\",VLOOKUP($C59,Defaults!$AS$65:$AX$96,4,FALSE))","v":""},{"$f":"IF($C59=\"\",\"\",VLOOKUP($C59,Defaults!$AZ$65:$BE$96,4,FALSE))","v":""},{"$f":"IF($C59=\"\",\"\",VLOOKUP($C59,Defaults!$BG$65:$BL$96,4,FALSE))","v":""},{"$f":"IF($C59=\"\",\"\",VLOOKUP($C59,Defaults!$BN$65:$BS$96,4,FALSE))","v":""},{"$f":"IF($C59=\"\",\"\",VLOOKUP($C59,Defaults!$BU$65:$BZ$96,4,FALSE))","v":""},{"$f":"IF($C59=\"\",\"\",VLOOKUP($C59,Defaults!$CB$65:$CG$96,4,FALSE))","v":""},{"$f":"IF($C59=\"\",\"\",VLOOKUP($C59,Defaults!$CI:$CN,4,FALSE))","v":""},null,{"$f":"IF($C59=\"\",\"\",$C59)","v":""},{"$f":"IF($C59=\"\",\"\",IFERROR(VLOOKUP($C59,Defaults!$AL$65:$AQ$82,5,FALSE),\"\"))","v":""},{"$f":"IF($C59=\"\",\"\",IFERROR(VLOOKUP($C59,Defaults!$AS$65:$AX$96,5,FALSE),\"\"))","v":""},{"$f":"IF($C59=\"\",\"\",IFERROR(VLOOKUP($C59,Defaults!$AZ$65:$BE$96,5,FALSE),\"\"))","v":""},{"$f":"IF($C59=\"\",\"\",IFERROR(VLOOKUP($C59,Defaults!$BG$65:$BL$96,5,FALSE),\"\"))","v":""},{"$f":"IF($C59=\"\",\"\",IFERROR(VLOOKUP($C59,Defaults!$BN$65:$BS$96,5,FALSE),\"\"))","v":""},{"$f":"IF($C59=\"\",\"\",IFERROR(VLOOKUP($C59,Defaults!$BU$65:$BZ$96,5,FALSE),\"\"))","v":""},{"$f":"\"\"","v":""},{"$f":"IF($C59=\"\",\"\",IFERROR(VLOOKUP($C59,Defaults!$CI:$CN,5,FALSE),\"\"))","v":""},null,{"$f":"IF($C59=\"\",\"\",$C59)","v":""},{"$f":"IF($C59=\"\",\"\",IFERROR(VLOOKUP($C59,Defaults!$AL$65:$AQ$82,6,FALSE),\"\"))","v":""},{"$f":"IF($C59=\"\",\"\",IFERROR(VLOOKUP($C59,Defaults!$AS$65:$AX$96,6,FALSE),\"\"))","v":""},{"$f":"IF($C59=\"\",\"\",IFERROR(VLOOKUP($C59,Defaults!$AZ$65:$BE$96,6,FALSE),\"\"))","v":""},{"$f":"IF($C59=\"\",\"\",IFERROR(VLOOKUP($C59,Defaults!$BG$65:$BL$96,6,FALSE),\"\"))","v":""},{"$f":"IF($C59=\"\",\"\",IFERROR(VLOOKUP($C59,Defaults!$BN$65:$BS$96,6,FALSE),\"\"))","v":""},{"$f":"IF($C59=\"\",\"\",IFERROR(VLOOKUP($C59,Defaults!$BU$65:$BZ$96,6,FALSE),\"\"))","v":""},{"$f":"\"\"","v":""},{"$f":"IF($C59=\"\",\"\",IFERROR(VLOOKUP($C59,Defaults!$CI:$CN,6,FALSE),\"\"))","v":""}]
[null,null,null,{"$f":"IF($Z$2=Defaults!$M$5,Cotton!D60,IF($Z$2=Defaults!$M$6,Corn!D60,IF($Z$2=Defaults!$M$7,Sorghum!D60,IF($Z$2=Defaults!$M$8,Soybean!D60,IF($Z$2=Defaults!$M$9,Rice!D60,IF($Z$2=Defaults!$M$10,Peanut!D60,IF($Z$2=Defaults!$M$11,Wheat!D60,IF($Z$2=Defaults!$M$12,Pasture!D60,FALSE))))))))","v":""},null,null,null,null,null,null,null,null,null,null,null,null,null,null,null,null,null,null,null,null,null,{"$f":"IF($Z$2=Defaults!$M$5,Cotton!B60,IF($Z$2=Defaults!$M$6,Corn!B60,IF($Z$2=Defaults!$M$7,Sorghum!B60,IF($Z$2=Defaults!$M$8,Soybean!B60,IF($Z$2=Defaults!$M$9,Rice!B60,IF($Z$2=Defaults!$M$10,Peanut!B60,IF($Z$2=Defaults!$M$11,Wheat!B60,IF($Z$2=Defaults!$M$12,Pasture!B60,\"\"))))))))","v":""},null,null,null,null,null,null,null,null,null,null,null,null,null,null,null,null,null,null,null,null,null,null,null,null,"LAY",null,null,null,null,null,null,null,null,null,"LAY",null,null,null,null,null,null,null,null,null,"LAY"]
[null,null,null,null,null,{"$f":"IF(L61=0,0,IF(C61=Defaults!$I$33,Implements!$AK$186,0))","v":0},{"$f":"IF($L61=0,0,IFERROR(VLOOKUP($C61,Implements!$X$181:$AN$188,15,FALSE),0))","v":0},{"$f":"IF($L61=0,0,IFERROR(VLOOKUP($C61,Implements!$X$181:$AN$188,16,FALSE),0))","v":0},{"$f":"IF($L61=0,0,IFERROR(VLOOKUP($C61,Implements!$X$181:$AN$188,17,FALSE),0))","v":0},{"$f":"IF(OR(C61=\"\",L61=\"\",L61=0)=TRUE,\"\",IF(OR(C61=Defaults!$I$25,C61=Defaults!$I$26)=TRUE,VLOOKUP(C61,Defaults!$I$24:$K$27,3,FALSE),ROUND(1/F61*(1*Inputs!$AA$13+($AI$7-1)*Inputs!$AA$15),2)+ROUND(G61*Inputs!$V$13/F61,2)+ROUND(H61/F61,2)+ROUND(I61/F61,2)))","v":""},{"$f":"IF(OR(C61=\"\",L61=\"\",L61=0)=TRUE,\"\",IF(OR(C61=Defaults!$I$25,C61=Defaults!$I$26)=TRUE,VLOOKUP(C61,Defaults!$I$24:$K$27,3,FALSE),ROUND(1/F61*(1*Inputs!$AA$13+($AI$7-1)*Inputs!$AA$15),2)+ROUND(G61*Inputs!$V$13/F61,2)+ROUND(H61/F61,2)+ROUND(I61/F61,2)))","v":""},null,{"$f":"AB61","v":""},{"$f":"IF(C61=\"\",0,IF(L61=0,0,IF(L61=\"\",\"\",J61*L61)))","v":0},null,null,{"$f":"IF(V61=0,0,IF(C61=Defaults!$I$33,Implements!$AK$175,0))","v":0},{"$f":"IF($V61=0,0,IFERROR(VLOOKUP($C61,Implements!$X$170:$AN$177,15,FALSE),0))","v":0},{"$f":"IF($V61=0,0,IFERROR(VLOOKUP($C61,Implements!$X$170:$AN$177,16,FALSE),0))","v":0},{"$f":"IF($V61=0,0,IFERROR(VLOOKUP($C61,Implements!$X$170:$AN$177,17,FALSE),0))","v":0},{"$f":"IF(OR(C61=\"\",V61=\"\",V61=0)=TRUE,\"\",IF(LEFT(C61,6)=\"Custom\",J61,ROUND(1/Q61*(1*Inputs!$AA$13+($AI$7-1)*Inputs!$AA$15),2)+ROUND(R61*Inputs!$V$13/Q61,2)+ROUND(S61/Q61,2)+ROUND(T61/Q61,2)))","v":""},{"$f":"+L61","v":0},{"$f":"IF(C61=\"\",\"\",IF(V61=0,0,IF(V61=\"\",\"\",U61*V61)))","v":""},"",null,{"$f":"IF($Z$2=Defaults!$M$5,Cotton!B61,IF($Z$2=Defaults!$M$6,Corn!B61,IF($Z$2=Defaults!$M$7,Sorghum!B61,IF($Z$2=Defaults!$M$8,Soybean!B61,IF($Z$2=Defaults!$M$9,Rice!B61,IF($Z$2=Defaults!$M$10,Peanut!B61,IF($Z$2=Defaults!$M$11,Wheat!B61,IF($Z$2=Defaults!$M$12,Pasture!B61,\"\"))))))))","v":""},null,{"$f":"IF(C61=\"\",\"\",IF($Z$2=Defaults!$M$12,VLOOKUP(C61,Defaults!$I$35:$J$37,2,FALSE),VLOOKUP(C61,Defaults!$I$30:$J$33,2,FALSE)))","v":""},0,{"$f":"IF(AB61=\"\",\"\",AB61*2)","v":""},null,null,{"$f":"+AB61","v":""},{"$f":"N61","v":0},{"$f":"ROUND(IFERROR(1/F61*(1*Inputs!$AA$13+($AI$7-1)*Inputs!$AA$15),0),2)*L61","v":0},{"$f":"ROUND(IFERROR(1/F61*G61*Inputs!$V$13,0),2)*L61","v":0},{"$f":"ROUND(IFERROR(1/F61*H61,0),2)*L61","v":0},{"$f":"ROUND(IFERROR(1/F61*I61,0),2)*L61","v":0},null,null,null,{"$f":"W61","v":""},{"$f":"ROUND(IFERROR(1/Q61*(1*Inputs!$AA$13+($AI$7-1)*Inputs!$AA$15),0),2)*V61","v":0},{"$f":"ROUND(IFERROR(1/Q61*R61*Inputs!$V$13,0),2)*V61","v":0},{"$f":"ROUND(IFERROR(1/Q61*S61,0),2)*V61","v":0},{"$f":"ROUND(IFERROR(1/Q61*T61,0),2)*V61","v":0},null,null,null,null,null,{"$f":"AZ11","v":"Cotton"},{"$f":"BA11","v":"Corn"},"Sorghum","Soybean","Rice","Peanut","Wheat","Est. Pasture or Hay",null,null,{"$f":"BJ11","v":"Cotton"},{"$f":"BK11","v":"Corn"},"Sorghum","Soybean","Rice","Peanut","Wheat","Est. Pasture or Hay",null,null,{"$f":"BT11","v":"Cotton"},{"$f":"BU11","v":"Corn"},"Sorghum","Soybean","Rice","Peanut","Wheat","Est. Pasture or Hay"]
[null,null,null,null,null,null,null,null,null,null,{"$f":"IF(C62=\"\",\"\",ROUND(IF(E62=AE62,AF62,IF(AE62=$AC$2,AF62*VLOOKUP(E62,$AA$2:$AB$4,2,FALSE),IF(AE62=$AF$2,AF62*VLOOKUP(E62,$AD$2:$AE$3,2,FALSE),IF(AE62=$AI$2,AF62/VLOOKUP(E62,$AG$2:$AH$2,2,FALSE),IF(AE62=$AL$2,AF62*VLOOKUP(E62,$AJ$2:$AK$2,2,FALSE),IF(AE62=$AO$2,AF62/VLOOKUP(E62,$AM$2:$AN$2,2,FALSE),IF(AE62=$AR$2,AF62*VLOOKUP(E62,$AP$2:$AQ$3,2,FALSE)))))))),2))","v":""},null,{"$f":"AB62","v":""},{"$f":"IF(C62=\"\",0,IF(L62=0,0,IF(L62=\"\",\"\",J62*L62)))","v":0},null,null,{"$f":"IF(L62>0,ABS(V62-L62),\"\")","v":""},null,null,null,{"$f":"J62","v":0},{"$f":"IF(AG62=0,0,AG62)","v":""},{"$f":"IF(C62=\"\",\"\",IF(V62=0,0,IF(V62=\"\",\"\",U62*V62)))","v":""},"",null,{"$f":"IF($Z$2=Defaults!$M$5,Cotton!B62,IF($Z$2=Defaults!$M$6,Corn!B62,IF($Z$2=Defaults!$M$7,Sorghum!B62,IF($Z$2=Defaults!$M$8,Soybean!B62,IF($Z$2=Defaults!$M$9,Rice!B62,IF($Z$2=Defaults!$M$10,Peanut!B62,IF($Z$2=Defaults!$M$11,Wheat!B62,IF($Z$2=Defaults!$M$12,Pasture!B62,\"\"))))))))","v":""},{"$f":"IF(C62=\"\",\"\",HLOOKUP($Z$2,$AZ$61:$BG$65,2,FALSE))","v":""},{"$f":"IF(C62=\"\",\"\",HLOOKUP($Z$2,$BJ$61:$BQ$65,2,FALSE))","v":""},0,{"$f":"IF(C62=\"\",\"\",HLOOKUP($Z$2,$BT$61:$CA$65,2,FALSE))","v":""},{"$f":"IF(C62=\"\",\"\",VLOOKUP(C62,Defaults!$AH:$AJ,2,FALSE))","v":""},{"$f":"IF(C62=\"\",\"\",ROUND(VLOOKUP(C62,Defaults!$AH:$AJ,3,FALSE),2))","v":""},{"$f":"IFERROR(IF(LEFT($C$61,6)=\"Custom\",L62,L62*(1-VLOOKUP($C$61,Implements!$A$159:$D$166,4,FALSE))),\"\")","v":""},null,null,null,null,null,{"$f":"N62","v":0},null,{"$f":"N62","v":0},null,null,null,null,null,{"$f":"W62","v":""},null,{"$f":"W62","v":""},null,{"$f":"IF($C62=\"\",\"\",$C62)","v":""},{"$f":"IF($C62=\"\",\"\",VLOOKUP($C62,Defaults!$AL$85:$AQ$101,4,FALSE))","v":""},{"$f":"\"\"","v":""},{"$f":"\"\"","v":""},{"$f":"\"\"","v":""},{"$f":"\"\"","v":""},{"$f":"\"\"","v":""},{"$f":"\"\"","v":""},{"$f":"\"\"","v":""},null,{"$f":"IF($C62=\"\",\"\",$C62)","v":""},{"$f":"IF($C62=\"\",\"\",IFERROR(VLOOKUP($C62,Defaults!$AL$85:$AQ$101,5,FALSE),\"\"))","v":""},{"$f":"\"\"","v":""},{"$f":"\"\"","v":""},{"$f":"\"\"","v":""},{"$f":"\"\"","v":""},{"$f":"\"\"","v":""},{"$f":"\"\"","v":""},{"$f":"\"\"","v":""},null,{"$f":"IF($C62=\"\",\"\",$C62)","v":""},{"$f":"IF($C62=\"\",\"\",IFERROR(VLOOKUP($C62,Defaults!$AL$85:$AQ$101,6,FALSE),\"\"))","v":""},{"$f":"\"\"","v":""},{"$f":"\"\"","v":""},{"$f":"\"\"","v":""},{"$f":"\"\"","v":""},{"$f":"\"\"","v":""},{"$f":"\"\"","v":""},{"$f":"\"\"","v":""}]
[null,null,null,null,null,null,null,null,null,null,{"$f":"IF(C63=\"\",\"\",ROUND(IF(E63=AE63,AF63,IF(AE63=$AC$2,AF63*VLOOKUP(E63,$AA$2:$AB$4,2,FALSE),IF(AE63=$AF$2,AF63*VLOOKUP(E63,$AD$2:$AE$3,2,FALSE),IF(AE63=$AI$2,AF63/VLOOKUP(E63,$AG$2:$AH$2,2,FALSE),IF(AE63=$AL$2,AF63*VLOOKUP(E63,$AJ$2:$AK$2,2,FALSE),IF(AE63=$AO$2,AF63/VLOOKUP(E63,$AM$2:$AN$2,2,FALSE),IF(AE63=$AR$2,AF63*VLOOKUP(E63,$AP$2:$AQ$3,2,FALSE)))))))),2))","v":""},null,{"$f":"AB63","v":""},{"$f":"IF(C63=\"\",0,IF(L63=0,0,IF(L63=\"\",\"\",J63*L63)))","v":0},null,null,{"$f":"IF(L63>0,ABS(V63-L63),\"\")","v":""},null,null,null,{"$f":"J63","v":0},{"$f":"IF(AG63=0,0,AG63)","v":""},{"$f":"IF(C63=\"\",\"\",IF(V63=0,0,IF(V63=\"\",\"\",U63*V63)))","v":""},"",null,{"$f":"IF($Z$2=Defaults!$M$5,Cotton!B63,IF($Z$2=Defaults!$M$6,Corn!B63,IF($Z$2=Defaults!$M$7,Sorghum!B63,IF($Z$2=Defaults!$M$8,Soybean!B63,IF($Z$2=Defaults!$M$9,Rice!B63,IF($Z$2=Defaults!$M$10,Peanut!B63,IF($Z$2=Defaults!$M$11,Wheat!B63,IF($Z$2=Defaults!$M$12,Pasture!B63,\"\"))))))))","v":""},{"$f":"IF(C63=\"\",\"\",HLOOKUP($Z$2,$AZ$61:$BG$65,3,FALSE))","v":""},{"$f":"IF(C63=\"\",\"\",HLOOKUP($Z$2,$BJ$61:$BQ$65,3,FALSE))","v":""},0,{"$f":"IF(C63=\"\",\"\",HLOOKUP($Z$2,$BT$61:$CA$65,3,FALSE))","v":""},{"$f":"IF(C63=\"\",\"\",VLOOKUP(C63,Defaults!$AH:$AJ,2,FALSE))","v":""},{"$f":"IF(C63=\"\",\"\",ROUND(VLOOKUP(C63,Defaults!$AH:$AJ,3,FALSE),2))","v":""},{"$f":"IFERROR(IF(LEFT($C$61,6)=\"Custom\",L63,L63*(1-VLOOKUP($C$61,Implements!$A$159:$D$166,4,FALSE))),\"\")","v":""},null,null,null,null,null,{"$f":"N63","v":0},null,{"$f":"N63","v":0},null,null,null,null,null,{"$f":"W63","v":""},null,{"$f":"W63","v":""},null,{"$f":"IF($C63=\"\",\"\",$C63)","v":""},{"$f":"IF($C63=\"\",\"\",VLOOKUP($C63,Defaults!$AL$85:$AQ$101,4,FALSE))","v":""},{"$f":"\"\"","v":""},{"$f":"\"\"","v":""},{"$f":"\"\"","v":""},{"$f":"\"\"","v":""},{"$f":"\"\"","v":""},{"$f":"\"\"","v":""},{"$f":"\"\"","v":""},null,{"$f":"IF($C63=\"\",\"\",$C63)","v":""},{"$f":"IF($C63=\"\",\"\",IFERROR(VLOOKUP($C63,Defaults!$AL$85:$AQ$101,5,FALSE),\"\"))","v":""},{"$f":"\"\"","v":""},{"$f":"\"\"","v":""},{"$f":"\"\"","v":""},{"$f":"\"\"","v":""},{"$f":"\"\"","v":""},{"$f":"\"\"","v":""},{"$f":"\"\"","v":""},null,{"$f":"IF($C63=\"\",\"\",$C63)","v":""},{"$f":"IF($C63=\"\",\"\",IFERROR(VLOOKUP($C63,Defaults!$AL$85:$AQ$101,6,FALSE),\"\"))","v":""},{"$f":"\"\"","v":""},{"$f":"\"\"","v":""},{"$f":"\"\"","v":""},{"$f":"\"\"","v":""},{"$f":"\"\"","v":""},{"$f":"\"\"","v":""},{"$f":"\"\"","v":""}]
[null,null,null,null,null,null,null,null,null,null,{"$f":"IF(C64=\"\",\"\",ROUND(IF(E64=AE64,AF64,IF(AE64=$AC$2,AF64*VLOOKUP(E64,$AA$2:$AB$4,2,FALSE),IF(AE64=$AF$2,AF64*VLOOKUP(E64,$AD$2:$AE$3,2,FALSE),IF(AE64=$AI$2,AF64/VLOOKUP(E64,$AG$2:$AH$2,2,FALSE),IF(AE64=$AL$2,AF64*VLOOKUP(E64,$AJ$2:$AK$2,2,FALSE),IF(AE64=$AO$2,AF64/VLOOKUP(E64,$AM$2:$AN$2,2,FALSE),IF(AE64=$AR$2,AF64*VLOOKUP(E64,$AP$2:$AQ$3,2,FALSE)))))))),2))","v":""},null,{"$f":"AB64","v":""},{"$f":"IF(C64=\"\",0,IF(L64=0,0,IF(L64=\"\",\"\",J64*L64)))","v":0},null,null,{"$f":"IF(L64>0,ABS(V64-L64),\"\")","v":""},null,null,null,{"$f":"J64","v":0},{"$f":"IF(AG64=0,0,AG64)","v":""},{"$f":"IF(C64=\"\",\"\",IF(V64=0,0,IF(V64=\"\",\"\",U64*V64)))","v":""},"",null,{"$f":"IF($Z$2=Defaults!$M$5,Cotton!B64,IF($Z$2=Defaults!$M$6,Corn!B64,IF($Z$2=Defaults!$M$7,Sorghum!B64,IF($Z$2=Defaults!$M$8,Soybean!B64,IF($Z$2=Defaults!$M$9,Rice!B64,IF($Z$2=Defaults!$M$10,Peanut!B64,IF($Z$2=Defaults!$M$11,Wheat!B64,IF($Z$2=Defaults!$M$12,Pasture!B64,\"\"))))))))","v":""},{"$f":"IF(C64=\"\",\"\",HLOOKUP($Z$2,$AZ$61:$BG$65,4,FALSE))","v":""},{"$f":"IF(C64=\"\",\"\",HLOOKUP($Z$2,$BJ$61:$BQ$65,4,FALSE))","v":""},0,{"$f":"IF(C64=\"\",\"\",HLOOKUP($Z$2,$BT$61:$CA$65,4,FALSE))","v":""},{"$f":"IF(C64=\"\",\"\",VLOOKUP(C64,Defaults!$AH:$AJ,2,FALSE))","v":""},{"$f":"IF(C64=\"\",\"\",ROUND(VLOOKUP(C64,Defaults!$AH:$AJ,3,FALSE),2))","v":""},{"$f":"IFERROR(IF(LEFT($C$61,6)=\"Custom\",L64,L64*(1-VLOOKUP($C$61,Implements!$A$159:$D$166,4,FALSE))),\"\")","v":""},null,null,null,null,null,{"$f":"N64","v":0},null,{"$f":"N64","v":0},null,null,null,null,null,{"$f":"W64","v":""},null,{"$f":"W64","v":""},null,{"$f":"IF($C64=\"\",\"\",$C64)","v":""},{"$f":"IF($C64=\"\",\"\",VLOOKUP($C64,Defaults!$AL$85:$AQ$101,4,FALSE))","v":""},{"$f":"\"\"","v":""},{"$f":"\"\"","v":""},{"$f":"\"\"","v":""},{"$f":"\"\"","v":""},{"$f":"\"\"","v":""},{"$f":"\"\"","v":""},{"$f":"\"\"","v":""},null,{"$f":"IF($C64=\"\",\"\",$C64)","v":""},{"$f":"IF($C64=\"\",\"\",IFERROR(VLOOKUP($C64,Defaults!$AL$85:$AQ$101,5,FALSE),\"\"))","v":""},{"$f":"\"\"","v":""},{"$f":"\"\"","v":""},{"$f":"\"\"","v":""},{"$f":"\"\"","v":""},{"$f":"\"\"","v":""},{"$f":"\"\"","v":""},{"$f":"\"\"","v":""},null,{"$f":"IF($C64=\"\",\"\",$C64)","v":""},{"$f":"IF($C64=\"\",\"\",IFERROR(VLOOKUP($C64,Defaults!$AL$85:$AQ$101,6,FALSE),\"\"))","v":""},{"$f":"\"\"","v":""},{"$f":"\"\"","v":""},{"$f":"\"\"","v":""},{"$f":"\"\"","v":""},{"$f":"\"\"","v":""},{"$f":"\"\"","v":""},{"$f":"\"\"","v":""}]
[null,null,null,null,null,null,null,null,null,null,{"$f":"IF(C65=\"\",\"\",ROUND(IF(E65=AE65,AF65,IF(AE65=$AC$2,AF65*VLOOKUP(E65,$AA$2:$AB$4,2,FALSE),IF(AE65=$AF$2,AF65*VLOOKUP(E65,$AD$2:$AE$3,2,FALSE),IF(AE65=$AI$2,AF65/VLOOKUP(E65,$AG$2:$AH$2,2,FALSE),IF(AE65=$AL$2,AF65*VLOOKUP(E65,$AJ$2:$AK$2,2,FALSE),IF(AE65=$AO$2,AF65/VLOOKUP(E65,$AM$2:$AN$2,2,FALSE),IF(AE65=$AR$2,AF65*VLOOKUP(E65,$AP$2:$AQ$3,2,FALSE)))))))),2))","v":""},null,{"$f":"AB65","v":""},{"$f":"IF(C65=\"\",0,IF(L65=0,0,IF(L65=\"\",\"\",J65*L65)))","v":0},null,null,{"$f":"IF(L65>0,ABS(V65-L65),\"\")","v":""},null,null,null,{"$f":"J65","v":0},{"$f":"IF(AG65=0,0,AG65)","v":""},{"$f":"IF(C65=\"\",\"\",IF(V65=0,0,IF(V65=\"\",\"\",U65*V65)))","v":""},"",null,{"$f":"IF($Z$2=Defaults!$M$5,Cotton!B65,IF($Z$2=Defaults!$M$6,Corn!B65,IF($Z$2=Defaults!$M$7,Sorghum!B65,IF($Z$2=Defaults!$M$8,Soybean!B65,IF($Z$2=Defaults!$M$9,Rice!B65,IF($Z$2=Defaults!$M$10,Peanut!B65,IF($Z$2=Defaults!$M$11,Wheat!B65,IF($Z$2=Defaults!$M$12,Pasture!B65,\"\"))))))))","v":""},{"$f":"IF(C65=\"\",\"\",HLOOKUP($Z$2,$AZ$61:$BG$65,5,FALSE))","v":""},{"$f":"IF(C65=\"\",\"\",HLOOKUP($Z$2,$BJ$61:$BQ$65,5,FALSE))","v":""},0,{"$f":"IF(C65=\"\",\"\",HLOOKUP($Z$2,$BT$61:$CA$65,5,FALSE))","v":""},{"$f":"IF(C65=\"\",\"\",VLOOKUP(C65,Defaults!$AH:$AJ,2,FALSE))","v":""},{"$f":"IF(C65=\"\",\"\",ROUND(VLOOKUP(C65,Defaults!$AH:$AJ,3,FALSE),2))","v":""},{"$f":"IFERROR(IF(LEFT($C$61,6)=\"Custom\",L65,L65*(1-VLOOKUP($C$61,Implements!$A$159:$D$166,4,FALSE))),\"\")","v":""},null,null,null,null,null,null,null,null,null,null,null,null,null,{"$f":"W65","v":""},null,{"$f":"W65","v":""},null,{"$f":"IF($C65=\"\",\"\",$C65)","v":""},{"$f":"IF($C65=\"\",\"\",VLOOKUP($C65,Defaults!$AL$85:$AQ$101,4,FALSE))","v":""},{"$f":"\"\"","v":""},{"$f":"\"\"","v":""},{"$f":"\"\"","v":""},{"$f":"\"\"","v":""},{"$f":"\"\"","v":""},{"$f":"\"\"","v":""},{"$f":"\"\"","v":""},null,{"$f":"IF($C65=\"\",\"\",$C65)","v":""},{"$f":"IF($C65=\"\",\"\",IFERROR(VLOOKUP($C65,Defaults!$AL$85:$AQ$101,5,FALSE),\"\"))","v":""},{"$f":"\"\"","v":""},{"$f":"\"\"","v":""},{"$f":"\"\"","v":""},{"$f":"\"\"","v":""},{"$f":"\"\"","v":""},{"$f":"\"\"","v":""},{"$f":"\"\"","v":""},null,{"$f":"IF($C65=\"\",\"\",$C65)","v":""},{"$f":"IF($C65=\"\",\"\",IFERROR(VLOOKUP($C65,Defaults!$AL$85:$AQ$101,6,FALSE),\"\"))","v":""},{"$f":"\"\"","v":""},{"$f":"\"\"","v":""},{"$f":"\"\"","v":""},{"$f":"\"\"","v":""},{"$f":"\"\"","v":""},{"$f":"\"\"","v":""},{"$f":"\"\"","v":""}]
[]
[null,null,"Benchmark Operating Interest:",null,null,null,null,null,null,null,null,null,null,{"$f":"((SUM(N13:N16)+SUM(N18:N21)+SUM(N23:N29)+SUM(N31:N32)+SUM(N33:N38)+SUM(N39:N43)+SUM(N44:N46)+SUM(N48:N53)+SUM(N55:N59))-(IFERROR(I13/F13,0)*L13+IFERROR(I18/F18,0)*L18+IFERROR(I23/F23,0)*L23+IFERROR(I31/F31,0)*L31+IFERROR(I33/F33,0)*L33+IFERROR(I39/F39,0)*L39+IFERROR(I44/F44,0)*L44+IFERROR(I48/F48,0)*L48+IFERROR(I55/F55,0)*L55))/2*Inputs!$V$17","v":4.1148812672253818},null,null,"Change in Operating Interest ($/acre):",null,null,null,null,null,{"$f":"((SUM(W13:W16)+SUM(W18:W21)+SUM(W23:W29)+SUM(W31:W32)+SUM(W33:W38)+SUM(W39:W43)+SUM(W44:W46)+SUM(W48:W53)+SUM(W55:W59))-(IFERROR(T13/Q13,0)*V13+IFERROR(T18/Q18,0)*V18+IFERROR(T23/Q23,0)*V23+IFERROR(T31/Q31,0)*V31+IFERROR(T33/Q33,0)*V33+IFERROR(T39/Q39,0)*V39+IFERROR(T44/Q44,0)*V44+IFERROR(T48/Q48,0)*V48+IFERROR(T55/Q55,0)*V55))/2*Inputs!$V$17","v":3.7990778580847615},{"$f":"IF(C67=\"\",\"\",W67-N67)","v":-0.31580340914062033},null,null,null,null,null,null,null,null,null,{"$f":"SUM(AH13:AH65)","v":38.92},{"$f":"SUM(AI13:AI65)","v":3.6500000000000004},{"$f":"SUM(AJ13:AJ65)","v":3.0300000000000002},{"$f":"SUM(AK13:AK65)","v":7.93},{"$f":"SUM(AL13:AL65)","v":24.310000000000002},{"$f":"SUM(AM13:AM65)+N67","v":162.76488126722538},{"$f":"AN32","v":78.599999999999994},{"$f":"SUM(AO13:AO65)","v":80.05},38.24,3.5600000000000005,2.94,7.7799999999999994,23.96,{"$f":"SUM(AU13:AU65)+W67","v":149.47413785808476},{"$f":"AV32","v":76.752899999999997},{"$f":"SUM(AW13:AW65)","v":68.922159999999991}]
[null,null,"Benchmark Total Specified Expenses ($/acre):",null,null,null,null,null,null,null,null,null,null,{"$f":"SUM(N13:N67)","v":201.68488126722534},null,null,"Change in Total Specified Expenses:",null,null,null,null,null,{"$f":"SUM(W13:W67)","v":187.71413785808477},{"$f":"IF(C68=\"\",\"\",W68-N68)","v":-13.970743409140567},null,null,null,null,null,null,null,null,null,{"$f":"'Output Comparison'!B47","v":"Input Use Savings ($/acre)"},null,null,{"$f":"(AU67)-(AM67)","v":-13.290743409140617},{"$f":"'Output Comparison'!B53","v":"Equipment Efficiency Change ($/acre)"},null,null,{"$f":"(AP67)-(AH67)","v":-0.67999999999999972}]
[null,null,null,null,null,null,null,null,null,null,null,null,null,null,null,null,null,null,null,null,null,null,null,null,null,null,null,null,null,null,null,null,null,{"$f":"'Output Comparison'!B50","v":"Seed Cost Change ($/acre)"},null,null,{"$f":"(AV67)-(AN67)","v":-1.8470999999999975},{"$f":"'Output Comparison'!B56","v":"Labor Cost Change ($/acre)"},null,null,{"$f":"(AQ67)-(AI67)","v":-8.9999999999999858E-2}]
[null,null,null,null,null,null,null,null,null,null,null,null,null,null,null,null,null,null,null,null,null,null,null,null,null,null,null,null,null,null,null,null,null,{"$f":"'Output Comparison'!B51","v":"Chemical & Fertilizer Cost Change ($/acre)"},null,null,{"$f":"(AW67)-(AO67)","v":-11.127840000000006},{"$f":"'Output Comparison'!B57","v":"Fuel Cost Change ($/acre)"},null,null,{"$f":"(AR67)-(AJ67)","v":-9.0000000000000302E-2}]
[null,null,null,null,null,null,null,null,null,null,null,null,null,null,null,null,null,null,null,null,null,null,null,null,null,null,null,null,null,null,null,null,null,null,null,null,null,{"$f":"'Output Comparison'!B58","v":"R&M Cost Change ($/acre)"},null,null,{"$f":"(AS67)-(AK67)","v":-0.15000000000000036}]
[null,null,null,null,null,null,null,null,null,null,null,null,null,null,null,null,null,null,null,null,null,null,null,null,null,null,null,null,null,null,null,null,null,null,null,null,null,{"$f":"'Output Comparison'!B59","v":"Capital Recovery Cost Change ($/acre)"},null,null,{"$f":"(AT67)-(AL67)","v":-0.35000000000000142}]
[]
[null,"Disclaimer: The information provided within represents estimates that are a result of a set of complex calculations that are described in more detail in the user manual. Changes in parameter values and its implications on returns are estimates and the user should use their own reasonable judgment to reflect whether the direction of change in returns is appropriate before acting on the results. As such, this software is provided ‘as is’ and without warranties as to performance of merchantability. Further, statements may have been made to you about this software. Any such statements do not constitute warranties and shall not be relied on by the user in deciding whether to use the program or act on its results. This program is provided without any expressed or implied warranties whatsoever. Because the diversity of conditions and hardware under which this program may be used, no warranty of merchantability or warranty of fitness for a particular purpose is offered. The user is advised to test the program thoroughly before relying on it. The user assumes the entire risk of using the program. The University of Arkansas will not be liable for any claim or damage brought against the user by any third party, nor will the University of Arkansas be liable for any consequential, indirect or special damages suffered by the user as a result of the software."]

{"sheet":"Crop 3","index":5,"n_rows":74,"n_cols":79,"rows_kept":74,"cut":false,"hidden":false,"merged":[[73,1,73,23],[5,2,9,2],[9,5,9,14],[0,26,0,43],[0,44,0,46],[4,1,4,23],[0,0,2,24],[9,15,9,23]]}
[{"$f":"CONCATENATE($Z$2,\" Production Practices \",\"for \",Inputs!$J$5)","v":"Est. Pasture or Hay Production Practices for Circle C Farms"},null,null,null,null,null,null,null,null,null,null,null,null,null,null,null,null,null,null,null,null,null,null,null,null,true,"Conversion Factors",null,null,null,null,null,null,null,null,null,null,null,null,null,null,null,null,null,"Data Validation Lookups",null,null,"Planting Operation Check"]
[null,null,null,null,null,null,null,null,null,null,null,null,null,null,null,null,null,null,null,null,null,null,null,null,null,"Est. Pasture or Hay",{"$f":"Defaults!Q15","v":"qt"},0.25,{"$f":"Defaults!Q19","v":"gal"},{"$f":"Defaults!Q17","v":"oz"},6.25E-2,{"$f":"Defaults!Q20","v":"lb"},{"$f":"Defaults!Q20","v":"lb"},112,{"$f":"Defaults!Q18","v":"cwt"},{"$f":"Defaults!Q15","v":"qt"},0.5,{"$f":"Defaults!Q16","v":"pt"},{"$f":"Defaults!Q20","v":"lb"},2000,{"$f":"Defaults!Q21","v":"ton"},{"$f":"Defaults!Q15","v":"qt"},3.125E-2,{"$f":"Defaults!Q17","v":"oz"},"Operations","Planter\nOperations","Herbicides",{"$f":"IF($AT$3=Defaults!$I$3,Defaults!$I$7,IF($AT$3=Defaults!$I$11,Defaults!$I$15,IF($AT$3=Defaults!$I$17,Defaults!$I$21,\"\")))","v":"No-Till Grain Drill 1"}]
[null,null,null,null,null,null,null,null,null,null,null,null,null,null,null,null,null,null,null,null,null,null,null,null,null,false,{"$f":"Defaults!Q16","v":"pt"},0.125,null,false,8.9285700000000003E-3,null,null,null,null,null,null,null,null,null,null,{"$f":"Defaults!Q16","v":"pt"},6.25E-2,null,{"$f":"IF(OR($Z$2=Defaults!$M$5,$Z$2=Defaults!$M$6,$Z$2=Defaults!$M$7,$Z$2=Defaults!$M$8,$Z$2=Defaults!$M$9,$Z$2=Defaults!$M$10)=TRUE,Defaults!$I$38,FALSE)","v":false},{"$f":"IF(OR($Z$2=Defaults!$M$5,$Z$2=Defaults!$M$6,$Z$2=Defaults!$M$7,$Z$2=Defaults!$M$10)=TRUE,Defaults!$I$17,IF(OR($Z$2=Defaults!$M$9,$Z$2=Defaults!$M$11,$Z$2=Defaults!$M$12)=TRUE,Defaults!$I$11,Defaults!$I$3))","v":"BudgetPlantGrain"},{"$f":"IF(OR(C13=\"\",L13=\"\",L13=0)=TRUE,FALSE,IF($Z$2=Defaults!$M$5,Defaults!$AL$2,IF($Z$2=Defaults!$M$6,Defaults!$AS$2,IF($Z$2=Defaults!$M$7,Defaults!$AZ$2,IF($Z$2=Defaults!$M$8,Defaults!$BG$2,IF($Z$2=Defaults!$M$9,Defaults!$BN$2,IF($Z$2=Defaults!$M$12,Defaults!$CI$2,FALSE)))))))","v":"Pasture"},{"$f":"IF($AT$3=Defaults!$I$3,Defaults!$I$8,IF($AT$3=Defaults!$I$11,Defaults!$I$16,IF($AT$3=Defaults!$I$17,Defaults!$I$22,\"\")))","v":""}]
[null,null,null,null,null,null,null,null,null,null,null,null,null,null,null,null,null,null,null,null,null,null,null,null,null,"Benchmark\n(No Tractor Guidance)",{"$f":"Defaults!Q17","v":"oz"},7.8125E-3,null,null,null,null,null,null,null,null,null,null,null,null,null,null,null,null,{"$f":"IF(OR(C33=\"\",L33=\"\",L33=0)=TRUE,FALSE,IF($AS$3=FALSE,FALSE,IF(OR($Z$2=Defaults!$M$5,$Z$2=Defaults!$M$6,$Z$2=Defaults!$M$7,$Z$2=Defaults!$M$8,$Z$2=Defaults!$M$9,$Z$2=Defaults!$M$10)=TRUE,Defaults!$T$20)))","v":false},{"$f":"IF($C$31=\"\",\"\",IF($AT$3=Defaults!$I$3,VLOOKUP($C$31,Defaults!$I$4:$K$10,3,FALSE),IF($AT$3=Defaults!$I$11,VLOOKUP($C$31,Defaults!$I$12:$K$16,3,FALSE),IF($AT$3=Defaults!$I$17,VLOOKUP($C$31,Defaults!$I$18:$K$22,3,FALSE)))))","v":""},{"$f":"IF(OR(C18=\"\",L18=\"\",L18=0)=TRUE,FALSE,IF($Z$2=Defaults!$M$5,Defaults!$AL$18,IF($Z$2=Defaults!$M$7,Defaults!$AZ$18,IF($Z$2=Defaults!$M$8,Defaults!$BG$18,IF($Z$2=Defaults!$M$9,Defaults!$BN$18,IF($Z$2=Defaults!$M$10,Defaults!$BU$18,IF($Z$2=Defaults!$M$12,Defaults!$CI$2,FALSE)))))))","v":"Pasture"},{"$f":"IF($AT$3=Defaults!$I$3,Defaults!$I$7,IF($AT$3=Defaults!$I$11,Defaults!$I$15,\"\"))","v":"No-Till Grain Drill 1"}]
[null,{"$f":"IF(Z1=FALSE,\"\",\"Modify Green Cells Below\")","v":"Modify Green Cells Below"},null,null,null,null,null,null,null,null,null,null,null,null,null,null,null,null,null,null,null,null,null,null,null,"Adjusted for\nTractor Guidance","Partial Returns ($/acre):",null,null,null,null,null,null,{"$f":"Defaults!M25","v":"Labor Multiplier by Operation"},null,null,null,null,null,null,null,null,null,null,{"$f":"IF($Z$2=Defaults!$M$5,Defaults!$I$52,IF($Z$2=Defaults!$M$10,Defaults!$I$43,IF($Z$2=Defaults!$M$12,Defaults!$I$48,FALSE)))","v":"BudgetLitt"},null,{"$f":"IF(OR(C48=\"\",L48=\"\",L48=0)=TRUE,FALSE,IF($Z$2=Defaults!$M$5,Defaults!$AL$36,IF($Z$2=Defaults!$M$6,Defaults!$AS$36,IF($Z$2=Defaults!$M$7,Defaults!$AZ$36,IF($Z$2=Defaults!$M$8,Defaults!$BG$36,IF($Z$2=Defaults!$M$9,Defaults!$BN$36,IF($Z$2=Defaults!$M$10,Defaults!$BU$36,IF($Z$2=Defaults!$M$11,Defaults!$CB$36,FALSE))))))))","v":false},{"$f":"IF($AT$3=Defaults!$I$3,Defaults!$I$8,IF($AT$3=Defaults!$I$11,Defaults!$I$16,\"\"))","v":""}]
[null,null,{"$f":"IF($Z$1=TRUE,\"Modify budget specifications\nusing the green\ncells provided\",\"\")","v":"Modify budget specifications\nusing the green\ncells provided"},null,null,null,null,null,null,null,null,null,null,null,null,null,null,null,null,null,{"$f":"F10","v":"Benchmark without Tractor Guidance"},null,null,"Adjusted for \nTractor Guidance",null,"Cost Savings ($/acre):",{"$f":"\"/acre\"","v":"/acre"},null,null,null,null,null,null,null,null,null,null,null,null,null,null,null,null,null,{"$f":"IF(OR(C39=\"\",L39=\"\",L39=0)=TRUE,FALSE,IF($Z$2=Defaults!$M$5,Defaults!$T$37,IF($Z$2=Defaults!$M$10,Defaults!$T$32,IF($Z$2=Defaults!$M$12,Defaults!$T$16,FALSE))))","v":"Litter"},null,{"$f":"IF(OR(C55=\"\",L55=\"\",L55=0)=TRUE,FALSE,IF($Z$2=Defaults!$M$5,Defaults!$AL$64,IF($Z$2=Defaults!$M$6,Defaults!$AS$64,IF($Z$2=Defaults!$M$7,Defaults!$AZ$64,IF($Z$2=Defaults!$M$8,Defaults!$BG$64,IF($Z$2=Defaults!$M$9,Defaults!$BN$64,IF($Z$2=Defaults!$M$10,Defaults!$BU$64,FALSE)))))))","v":false},{"$f":"IF($AT$3=Defaults!$I$3,Defaults!$I$9,\"\")","v":""}]
[null,null,null,null,null,null,null,null,null,null,null,null,null,null,null,null,{"$f":"IF($Z$2=Defaults!$M$12,\"Efficiency Gains ($/acre):\",AA5)","v":"Efficiency Gains ($/acre):"},null,null,null,{"$f":"IF($Z$2=Defaults!$M$12,\"\",IFERROR(+IF($Z$2=Defaults!$M$12,\"\",U8*Inputs!$K$17)-N68,0))","v":""},null,null,{"$f":"IF($Z$2=Defaults!$M$12,-AO68,IFERROR(+X8*Inputs!$K$17-W68,0))","v":1.1499999999999773},null,{"$f":"CONCATENATE(Implements!$B$36,\" Trips\")","v":"Over-the-Top Sprayer Trips"},{"$f":"(IF(C13=Defaults!$I$27,L13,0)+IF(C18=Defaults!$I$27,L18,0)+IF(C33=Defaults!$I$41,L33,0)+IF(OR(C39=Defaults!$I$46,C39=Defaults!$I$55)=TRUE,L39,0)+IF(OR(C44=Defaults!$I$60,C44=Defaults!$I$65)=TRUE,L44,0)+IF(C48=Defaults!$I$27,L48,0)+IF(C55=Defaults!$I$27,L55,0))","v":2},{"$f":"CONCATENATE(Implements!$B$39,\" Trips\")","v":"Post-Directed Sprayer Trips"},{"$f":"IF(C61=Defaults!$I$33,L61,0)","v":0},{"$f":"CONCATENATE(Implements!$B$41,\" Trips\")","v":"Fertilizer Spreader Trips"},{"$f":"IF(C23=Defaults!$I$37,L23,0)+IF(C39=Defaults!$I$37,L39,0)","v":1},{"$f":"CONCATENATE(Implements!$B$42,\" Trips\")","v":"Manure Spreader Trips"},{"$f":"IF(C39=Defaults!$I$51,L39,0)","v":1},{"$f":"Defaults!M26","v":"Field Preparation"},{"$f":"Defaults!N26","v":1.5},null,null,null,null,null,null,null,null,null,{"$f":"IF($Z$2=Defaults!$M$5,Defaults!$I$57,IF($Z$2=Defaults!$M$8,Defaults!$I$62,FALSE))","v":false},null,{"$f":"IF(OR(C61=\"\",L61=\"\",L61=0)=TRUE,FALSE,IF($Z$2=Defaults!$M$5,Defaults!$AL$84,FALSE))","v":false},{"$f":"IF($AT$3=Defaults!$I$3,Defaults!$I$10,\"\")","v":""}]
[null,null,null,null,null,null,null,null,null,null,null,null,null,null,null,null,{"$f":"IF($Z$2=Defaults!M12,$Z$6,\"Yield (units/acre):\")","v":"Cost Savings ($/acre):"},null,null,null,{"$f":"IF($Z$2=Defaults!$M$12,\"\",ROUND(VLOOKUP($Z$2,Inputs!$B$13:$F$17,5,FALSE),IF($Z$2=Defaults!$M$10,2,0)))","v":""},null,null,{"$f":"IF($Z$2=Defaults!$M$12,-AK68,ROUND(VLOOKUP(Z2,Inputs!$B$13:$F$17,5,FALSE)*(1+Implements!$G$159+Implements!$G$160+Implements!$G$161+Implements!$G$162+Implements!$G$163+Implements!$G$164+Implements!$G$165),IF($Z$2=Defaults!$M$10,2,0)))","v":6.6942339766034422},null,{"$f":"CONCATENATE(Implements!$B$36,\" Trips\")","v":"Over-the-Top Sprayer Trips"},{"$f":"(IF(C13=Defaults!$I$27,V13,0)+IF(C18=Defaults!$I$27,V18,0)+IF(C33=Defaults!$I$41,V33,0)+IF(OR(C39=Defaults!$I$46,C39=Defaults!$I$55)=TRUE,V39,0)+IF(OR(C44=Defaults!$I$60,C44=Defaults!$I$65)=TRUE,V44,0)+IF(C48=Defaults!$I$27,V48,0)+IF(C55=Defaults!$I$27,V55,0))","v":2},{"$f":"CONCATENATE(Implements!$B$39,\" Trips\")","v":"Post-Directed Sprayer Trips"},{"$f":"IF(C61=Defaults!$I$33,V61,0)","v":0},{"$f":"CONCATENATE(Implements!$B$41,\" Trips\")","v":"Fertilizer Spreader Trips"},{"$f":"IF(C23=Defaults!$I$37,V23,0)+IF(C39=Defaults!$I$37,V39,0)","v":1},{"$f":"CONCATENATE(Implements!$B$42,\" Trips\")","v":"Manure Spreader Trips"},{"$f":"IF(C39=Defaults!$I$51,V39,0)","v":1},{"$f":"Defaults!M27","v":"Planting"},{"$f":"Defaults!N27","v":1.5},null,null,null,null,null,null,null,null,null,{"$f":"IF(OR(C44=\"\",L44=\"\",L44=0)=TRUE,FALSE,IF($Z$2=Defaults!$M$5,Defaults!$T$44,IF($Z$2=Defaults!$M$8,Defaults!$T$49,FALSE)))","v":false},null,null,{"$f":"Defaults!$I$5","v":"Custom Ground Seeding"}]
[null,null,null,null,null,null,null,null,null,null,null,null,null,null,null,null,null,null,null,null,null,null,null,null,null,{"$f":"IF($Z$2=Defaults!$M$5,5,IF($Z$2=Defaults!$M$6,6,IF($Z$2=Defaults!$M$7,7,IF($Z$2=Defaults!$M$8,8,IF($Z$2=Defaults!$M$9,9,IF($Z$2=Defaults!$M$10,10,IF($Z$2=Defaults!$M$11,11,IF($Z$2=Defaults!$M$12,12))))))))","v":12},null,null,null,null,null,null,null,{"$f":"Defaults!M28","v":"Fertilizer"},{"$f":"Defaults!N28","v":1.5},null,null,null,null,null,null,null,null,null,null,null,null,{"$f":"Defaults!$I$6","v":"Custom Air Seeding"}]
[null,null,null,null,null,"Benchmark without Tractor Guidance",null,null,null,null,null,null,null,null,null,"Adjusted for Tractor Guidance",null,null,null,null,null,null,null,null,null,true,null,null,null,null,null,null,null,{"$f":"Defaults!M29","v":"Post-Plant Field Work"},{"$f":"Defaults!N29","v":1.5},null,{"$f":"ROUND(SUM(IFERROR(1/F13*G13*L13,0)+IFERROR(1/F18*G18*L18,0)+IFERROR(1/F23*G23*L23,0)+IFERROR(1/F31*G31*L31,0)+IFERROR(1/F33*G33*L33,0)+IFERROR(1/F39*G39*L39,0)+IFERROR(1/F44*G44*L44,0)+IFERROR(1/F48*G48*L48,0)+IFERROR(1/F55*G55*L55,0)+IFERROR(1/F61*G61*L61,0)),2)","v":3.8},null,null,null,null,null,null,{"$f":"ROUND(SUM(IFERROR(1/Q13*R13*V13,0)+IFERROR(1/Q18*R18*V18,0)+IFERROR(1/Q23*R23*V23,0)+IFERROR(1/Q31*R31*V31,0)+IFERROR(1/Q33*R33*V33,0)+IFERROR(1/Q39*R39*V39,0)+IFERROR(1/Q44*R44*V44,0)+IFERROR(1/Q48*R48*V48,0)+IFERROR(1/Q55*R55*V55,0)+IFERROR(1/Q61*R61*V61,0)),2)","v":3.72}]
[null,null,"Operation/\n   Operating Input","Timing","Unit","Performance Rate\n(acres/hour)","Fuel\n(gal/hr)","R&M\n($/hr)","Capital Recovery\n($/hr)","\nCost/Unit\n($/acre)","Default\nCost/Unit\n($/acre)","Quantity of\nTrips/Inputs","Default\nQuantity of Trips/Inputs","Total Cost\n($/acre)",null,null,"Performance Rate (acres/hour)\nChange in Quantity (units/acre)","Fuel\n(gal/hr)","R&M\n($/hr)","Capital Recovery\n($/hr)","Cost ($/acre)\nCost ($/unit)","Quantity of\nTrips/Inputs","Total Cost\n($/acre)","Change in Cost\n($/acre)",null,"Operation\nQuantity","Application\nUnit","Application\nQuantity","Application\nMIN","Application\nMAX","Default\nPurchase\nUnit","Default\nInput Price\nLookup","Adjusted\nInput Quantity","Benchmark\nOperation\nCost\n($/acre)","Benchmark\nLabor\nCost\n($/acre)","Benchmark\nFuel\nCost\n($/acre)","Benchmark\nR&M\nCost\n($/acre)","Benchmark\nCapital Recovery\nCost\n($/acre)","Benchmark\nOperation\nInput\nCost\n($/acre)","Benchmark\nSeed\nCost\n($/acre)","Benchmark\nChemical \nCost ($/acre)","Operation\nCost\n($/acre)","Labor\nCost\n($/acre)","Fuel\nCost\n($/acre)","R&M\nCost\n($/acre)","Capital Recovery\nCost\n($/acre)","Operation\nInput\nCost\n($/acre)","Seed\nCost\n($/acre)","Chemical \nCost ($/acre)",null,"Application\nUnit",{"$f":"Defaults!$M$5","v":"Cotton"},{"$f":"Defaults!$M$6","v":"Corn"},{"$f":"Defaults!$M$7","v":"Sorghum"},{"$f":"Defaults!$M$8","v":"Soybean"},{"$f":"Defaults!$M$9","v":"Rice"},{"$f":"Defaults!$M$10","v":"Peanut"},{"$f":"Defaults!$M$11","v":"Wheat"},{"$f":"Defaults!$M$12","v":"Est. Pasture or Hay"},null,"Application\nQuantity",{"$f":"Defaults!$M$5","v":"Cotton"},{"$f":"Defaults!$M$6","v":"Corn"},{"$f":"Defaults!$M$7","v":"Sorghum"},{"$f":"Defaults!$M$8","v":"Soybean"},{"$f":"Defaults!$M$9","v":"Rice"},{"$f":"Defaults!$M$10","v":"Peanut"},{"$f":"Defaults!$M$11","v":"Wheat"},{"$f":"Defaults!$M$12","v":"Est. Pasture or Hay"},null,"Application MAX",{"$f":"Defaults!$M$5","v":"Cotton"},{"$f":"Defaults!$M$6","v":"Corn"},{"$f":"Defaults!$M$7","v":"Sorghum"},{"$f":"Defaults!$M$8","v":"Soybean"},{"$f":"Defaults!$M$9","v":"Rice"},{"$f":"Defaults!$M$10","v":"Peanut"},{"$f":"Defaults!$M$11","v":"Wheat"},{"$f":"Defaults!$M$12","v":"Est. Pasture or Hay"}]
[null,null,"Weed Control",{"$f":"IF($Z$2=Defaults!$M$5,Cotton!D12,IF($Z$2=Defaults!$M$6,Corn!D12,IF($Z$2=Defaults!$M$7,Sorghum!D12,IF($Z$2=Defaults!$M$8,Soybean!D12,IF($Z$2=Defaults!$M$9,Rice!D12,IF($Z$2=Defaults!$M$10,Peanut!D12,IF($Z$2=Defaults!$M$11,Wheat!D12,IF($Z$2=Defaults!$M$12,Pasture!D12,FALSE))))))))","v":"User Determined"},null,null,null,null,null,null,null,null,null,null,null,null,null,null,null,null,null,null,null,null,null,{"$f":"IF($Z$2=Defaults!$M$5,Cotton!B12,IF($Z$2=Defaults!$M$6,Corn!B12,IF($Z$2=Defaults!$M$7,Sorghum!B12,IF($Z$2=Defaults!$M$8,Soybean!B12,IF($Z$2=Defaults!$M$9,Rice!B12,IF($Z$2=Defaults!$M$10,Peanut!B12,IF($Z$2=Defaults!$M$11,Wheat!B12,IF($Z$2=Defaults!$M$12,Pasture!B12,\"\"))))))))","v":"Weed Control"},null,null,null,null,null,null,null,null,null,null,null,null,null,null,null,null,null,null,null,null,null,null,null,null,"BD",null,null,null,null,null,null,null,null,null,"BD",null,null,null,null,null,null,null,null,null,"BD"]
[null,null,"Over-the-Top Sprayer 1",null,null,{"$f":"IF(L13=0,0,IF(C13=Defaults!$I$27,Implements!$AK$185,IF(C13=Defaults!$I$28,Implements!$AK$186,0)))","v":61.454545454545453},{"$f":"IF($L13=0,0,IFERROR(VLOOKUP($C13,Implements!$X$181:$AN$188,15,FALSE),0))","v":8.36},{"$f":"IF($L13=0,0,IFERROR(VLOOKUP($C13,Implements!$X$181:$AN$188,16,FALSE),0))","v":45.046666666666667},{"$f":"IF($L13=0,0,IFERROR(VLOOKUP($C13,Implements!$X$181:$AN$188,17,FALSE),0))","v":137.64582520078542},{"$f":"IF(OR(C13=\"\",L13=\"\",L13=0)=TRUE,\"\",IF(OR(C13=Defaults!$I$25,C13=Defaults!$I$26)=TRUE,VLOOKUP(C13,Defaults!$I$24:$K$27,3,FALSE),ROUND(1/F13*(1*Inputs!$AA$13+($AI$7-1)*Inputs!$AA$15),2)+ROUND(G13*Inputs!$V$13/F13,2)+ROUND(H13/F13,2)+ROUND(I13/F13,2)))","v":3.5},{"$f":"IF(OR(C13=\"\",L13=\"\",L13=0)=TRUE,\"\",IF(OR(C13=Defaults!$I$25,C13=Defaults!$I$26)=TRUE,VLOOKUP(C13,Defaults!$I$24:$K$27,3,FALSE),ROUND(1/F13*(1*Inputs!$AA$13+($AI$7-1)*Inputs!$AA$15),2)+ROUND(G13*Inputs!$V$13/F13,2)+ROUND(H13/F13,2)+ROUND(I13/F13,2)))","v":3.5},1,{"$f":"AB13","v":1},{"$f":"IF(C13=\"\",0,IF(L13=0,0,IF(L13=\"\",\"\",J13*L13)))","v":3.5},null,null,{"$f":"IF(V13=0,0,IF(C13=Defaults!$I$27,Implements!$AK$174,IF(C13=Defaults!$I$28,Implements!$AK$175,0)))","v":62.812690909090918},{"$f":"IF($V13=0,0,IFERROR(VLOOKUP($C13,Implements!$X$170:$AN$177,15,FALSE),0))","v":8.36},{"$f":"IF($V13=0,0,IFERROR(VLOOKUP($C13,Implements!$X$170:$AN$177,16,FALSE),0))","v":45.046666666666667},{"$f":"IF($V13=0,0,IFERROR(VLOOKUP($C13,Implements!$X$170:$AN$177,17,FALSE),0))","v":138.7259236950801},{"$f":"IF(OR(C13=\"\",V13=\"\",V13=0)=TRUE,\"\",IF(LEFT(C13,6)=\"Custom\",J13,ROUND(1/Q13*(1*Inputs!$AA$13+($AI$7-1)*Inputs!$AA$15),2)+ROUND(R13*Inputs!$V$13/Q13,2)+ROUND(S13/Q13,2)+ROUND(T13/Q13,2)))","v":3.44},{"$f":"+L13","v":1},{"$f":"IF(C13=\"\",\"\",IF(V13=0,0,IF(V13=\"\",\"\",U13*V13)))","v":3.44},{"$f":"IF(C13=\"\",\"\",W13-N13)","v":-6.0000000000000053E-2},null,{"$f":"IF($Z$2=Defaults!$M$5,Cotton!B13,IF($Z$2=Defaults!$M$6,Corn!B13,IF($Z$2=Defaults!$M$7,Sorghum!B13,IF($Z$2=Defaults!$M$8,Soybean!B13,IF($Z$2=Defaults!$M$9,Rice!B13,IF($Z$2=Defaults!$M$10,Peanut!B13,IF($Z$2=Defaults!$M$11,Wheat!B13,IF($Z$2=Defaults!$M$12,Pasture!B13,\"\"))))))))","v":"Over-the-Top Sprayer 1"},null,{"$f":"IF(C13=\"\",\"\",VLOOKUP(C13,Defaults!$I$24:$K$28,2,FALSE))","v":1},0,{"$f":"IF(AB13=\"\",\"\",AB13*2)","v":2},null,null,{"$f":"+AB13","v":1},{"$f":"N13","v":3.5},{"$f":"ROUND(IFERROR(1/F13*(1*Inputs!$AA$13+($AI$7-1)*Inputs!$AA$15),0),2)*L13","v":0.28999999999999998},{"$f":"ROUND(IFERROR(1/F13*G13*Inputs!$V$13,0),2)*L13","v":0.24},{"$f":"ROUND(IFERROR(1/F13*H13,0),2)*L13","v":0.73},{"$f":"ROUND(IFERROR(1/F13*I13,0),2)*L13","v":2.2400000000000002},null,null,null,{"$f":"W13","v":3.44},{"$f":"ROUND(IFERROR(1/Q13*(1*Inputs!$AA$13+($AI$7-1)*Inputs!$AA$15),0),2)*V13","v":0.28000000000000003},{"$f":"ROUND(IFERROR(1/Q13*R13*Inputs!$V$13,0),2)*V13","v":0.23},{"$f":"ROUND(IFERROR(1/Q13*S13,0),2)*V13","v":0.72},{"$f":"ROUND(IFERROR(1/Q13*T13,0),2)*V13","v":2.21},null,null,null,null,null,{"$f":"AZ11","v":"Cotton"},{"$f":"BA11","v":"Corn"},"Sorghum","Soybean","Rice","Peanut","Wheat","Est. Pasture or Hay",null,null,{"$f":"BJ11","v":"Cotton"},{"$f":"BK11","v":"Corn"},"Sorghum","Soybean","Rice","Peanut","Wheat","Est. Pasture or Hay",null,null,{"$f":"BT11","v":"Cotton"},{"$f":"BU11","v":"Corn"},"Sorghum","Soybean","Rice","Peanut","Wheat","Est. Pasture or Hay"]
[null,null,"2,4-D",null,"pt",null,null,null,null,1.93,{"$f":"IF(C14=\"\",\"\",ROUND(IF(E14=AE14,AF14,IF(AE14=$AC$2,AF14*VLOOKUP(E14,$AA$2:$AB$4,2,FALSE),IF(AE14=$AF$2,AF14*VLOOKUP(E14,$AD$2:$AE$3,2,FALSE),IF(AE14=$AI$2,AF14/VLOOKUP(E14,$AG$2:$AH$2,2,FALSE),IF(AE14=$AL$2,AF14*VLOOKUP(E14,$AJ$2:$AK$2,2,FALSE),IF(AE14=$AO$2,AF14/VLOOKUP(E14,$AM$2:$AN$2,2,FALSE),IF(AE14=$AR$2,AF14*VLOOKUP(E14,$AP$2:$AQ$3,2,FALSE)))))))),2))","v":1.93},1,{"$f":"AB14","v":1},{"$f":"IF(C14=\"\",0,IF(L14=0,0,IF(L14=\"\",\"\",J14*L14)))","v":1.93},null,null,{"$f":"IF(L14>0,ABS(V14-L14),\"\")","v":0.2208},null,null,null,{"$f":"J14","v":1.93},{"$f":"IF(AG14=0,0,AG14)","v":0.7792},{"$f":"IF(C14=\"\",\"\",IF(V14=0,0,IF(V14=\"\",\"\",U14*V14)))","v":1.5038559999999999},{"$f":"IF(C14=\"\",\"\",W14-N14)","v":-0.42614400000000008},null,{"$f":"IF($Z$2=Defaults!$M$5,Cotton!B14,IF($Z$2=Defaults!$M$6,Corn!B14,IF($Z$2=Defaults!$M$7,Sorghum!B14,IF($Z$2=Defaults!$M$8,Soybean!B14,IF($Z$2=Defaults!$M$9,Rice!B14,IF($Z$2=Defaults!$M$10,Peanut!B14,IF($Z$2=Defaults!$M$11,Wheat!B14,IF($Z$2=Defaults!$M$12,Pasture!B14,\"\"))))))))","v":"2,4-D"},{"$f":"IF($C14=\"\",\"\",HLOOKUP($Z$2,$AZ$13:$BG$16,2,FALSE))","v":"pt"},{"$f":"IF($C14=\"\",\"\",HLOOKUP($Z$2,$BJ$13:$BQ$16,2,FALSE))","v":1},0,{"$f":"IF($C14=\"\",\"\",HLOOKUP($Z$2,$BT$13:$CA$16,2,FALSE))","v":4},{"$f":"IF(C14=\"\",\"\",VLOOKUP(C14,Defaults!$AH:$AJ,2,FALSE))","v":"gal"},{"$f":"IF(C14=\"\",\"\",ROUND(VLOOKUP(C14,Defaults!$AH:$AJ,3,FALSE),2))","v":15.4},{"$f":"IFERROR(IF(LEFT($C$13,6)=\"Custom\",L14,L14*(1-VLOOKUP($C$13,Implements!$A$159:$D$166,4,FALSE))),\"\")","v":0.7792},null,null,null,null,null,{"$f":"N14","v":1.93},null,{"$f":"N14","v":1.93},null,null,null,null,null,{"$f":"W14","v":1.5038559999999999},null,{"$f":"W14","v":1.5038559999999999},null,{"$f":"IF($C14=\"\",\"\",$C14)","v":"2,4-D"},{"$f":"IF($C14=\"\",\"\",VLOOKUP($C14,Defaults!$AL$3:$AQ$17,4,FALSE))","v":"oz"},{"$f":"IF($C14=\"\",\"\",VLOOKUP($C14,Defaults!$AS$3:$AX$17,4,FALSE))","v":"oz"},{"$f":"IF($C14=\"\",\"\",VLOOKUP($C14,Defaults!$AZ$3:$BE$17,4,FALSE))","v":{"$error":"#N/A"}},{"$f":"IF($C14=\"\",\"\",VLOOKUP($C14,Defaults!$BG$3:$BL$16,4,FALSE))","v":"oz"},{"$f":"IF($C14=\"\",\"\",VLOOKUP($C14,Defaults!$BN$3:$BS$17,4,FALSE))","v":"pt"},{"$f":"\"\"","v":""},{"$f":"\"\"","v":""},{"$f":"IF($C14=\"\",\"\",VLOOKUP($C14,Defaults!$CI:$CN,4,FALSE))","v":"pt"},null,{"$f":"IF($C14=\"\",\"\",$C14)","v":"2,4-D"},{"$f":"IF($C14=\"\",\"\",IFERROR(VLOOKUP($C14,Defaults!$AL$3:$AQ$17,5,FALSE),\"\"))","v":32},{"$f":"IF($C14=\"\",\"\",IFERROR(VLOOKUP($C14,Defaults!$AS$3:$AX$17,5,FALSE),\"\"))","v":32},{"$f":"IF($C14=\"\",\"\",IFERROR(VLOOKUP($C14,Defaults!$AZ$3:$BE$17,5,FALSE),\"\"))","v":""},{"$f":"IF($C14=\"\",\"\",IFERROR(VLOOKUP($C14,Defaults!$BG$3:$BL$16,5,FALSE),\"\"))","v":32},{"$f":"IF($C14=\"\",\"\",IFERROR(VLOOKUP($C14,Defaults!$BN$3:$BS$17,5,FALSE),\"\"))","v":1},{"$f":"\"\"","v":""},{"$f":"\"\"","v":""},{"$f":"IF($C14=\"\",\"\",IFERROR(VLOOKUP($C14,Defaults!$CI:$CN,5,FALSE),\"\"))","v":1},null,{"$f":"IF($C14=\"\",\"\",$C14)","v":"2,4-D"},{"$f":"IF($C14=\"\",\"\",IFERROR(VLOOKUP($C14,Defaults!$AL$3:$AQ$17,6,FALSE),\"\"))","v":32},{"$f":"IF($C14=\"\",\"\",IFERROR(VLOOKUP($C14,Defaults!$AS$3:$AX$17,6,FALSE),\"\"))","v":32},{"$f":"IF($C14=\"\",\"\",IFERROR(VLOOKUP($C14,Defaults!$AZ$3:$BE$17,6,FALSE),\"\"))","v":""},{"$f":"IF($C14=\"\",\"\",IFERROR(VLOOKUP($C14,Defaults!$BG$3:$BL$16,6,FALSE),\"\"))","v":32},{"$f":"IF($C14=\"\",\"\",IFERROR(VLOOKUP($C14,Defaults!$BN$3:$BS$17,6,FALSE),\"\"))","v":2},{"$f":"\"\"","v":""},{"$f":"\"\"","v":""},{"$f":"IF($C14=\"\",\"\",IFERROR(VLOOKUP($C14,Defaults!$CI:$CN,6,FALSE),\"\"))","v":4}]
[null,null,"Banvel",null,"pt",null,null,null,null,8.1300000000000008,{"$f":"IF(C15=\"\",\"\",ROUND(IF(E15=AE15,AF15,IF(AE15=$AC$2,AF15*VLOOKUP(E15,$AA$2:$AB$4,2,FALSE),IF(AE15=$AF$2,AF15*VLOOKUP(E15,$AD$2:$AE$3,2,FALSE),IF(AE15=$AI$2,AF15/VLOOKUP(E15,$AG$2:$AH$2,2,FALSE),IF(AE15=$AL$2,AF15*VLOOKUP(E15,$AJ$2:$AK$2,2,FALSE),IF(AE15=$AO$2,AF15/VLOOKUP(E15,$AM$2:$AN$2,2,FALSE),IF(AE15=$AR$2,AF15*VLOOKUP(E15,$AP$2:$AQ$3,2,FALSE)))))))),2))","v":8.1300000000000008},1,{"$f":"AB15","v":1},{"$f":"IF(C15=\"\",0,IF(L15=0,0,IF(L15=\"\",\"\",J15*L15)))","v":8.1300000000000008},null,null,{"$f":"IF(L15>0,ABS(V15-L15),\"\")","v":0.2208},null,null,null,{"$f":"J15","v":8.1300000000000008},{"$f":"IF(AG15=0,0,AG15)","v":0.7792},{"$f":"IF(C15=\"\",\"\",IF(V15=0,0,IF(V15=\"\",\"\",U15*V15)))","v":6.3348960000000005},{"$f":"IF(C15=\"\",\"\",W15-N15)","v":-1.7951040000000003},null,{"$f":"IF($Z$2=Defaults!$M$5,Cotton!B15,IF($Z$2=Defaults!$M$6,Corn!B15,IF($Z$2=Defaults!$M$7,Sorghum!B15,IF($Z$2=Defaults!$M$8,Soybean!B15,IF($Z$2=Defaults!$M$9,Rice!B15,IF($Z$2=Defaults!$M$10,Peanut!B15,IF($Z$2=Defaults!$M$11,Wheat!B15,IF($Z$2=Defaults!$M$12,Pasture!B15,\"\"))))))))","v":"Banvel"},{"$f":"IF($C15=\"\",\"\",HLOOKUP($Z$2,$AZ$13:$BG$16,3,FALSE))","v":"pt"},{"$f":"IF($C15=\"\",\"\",HLOOKUP($Z$2,$BJ$13:$BQ$16,3,FALSE))","v":1},0,{"$f":"IF($C15=\"\",\"\",HLOOKUP($Z$2,$BT$13:$CA$16,3,FALSE))","v":8},{"$f":"IF(C15=\"\",\"\",VLOOKUP(C15,Defaults!$AH:$AJ,2,FALSE))","v":"gal"},{"$f":"IF(C15=\"\",\"\",ROUND(VLOOKUP(C15,Defaults!$AH:$AJ,3,FALSE),2))","v":65},{"$f":"IFERROR(IF(LEFT($C$13,6)=\"Custom\",L15,L15*(1-VLOOKUP($C$13,Implements!$A$159:$D$166,4,FALSE))),\"\")","v":0.7792},null,null,null,null,null,{"$f":"N15","v":8.1300000000000008},null,{"$f":"N15","v":8.1300000000000008},null,null,null,null,null,{"$f":"W15","v":6.3348960000000005},null,{"$f":"W15","v":6.3348960000000005},null,{"$f":"IF($C15=\"\",\"\",$C15)","v":"Banvel"},{"$f":"IF($C15=\"\",\"\",VLOOKUP($C15,Defaults!$AL$3:$AQ$17,4,FALSE))","v":"oz"},{"$f":"IF($C15=\"\",\"\",VLOOKUP($C15,Defaults!$AS$3:$AX$17,4,FALSE))","v":{"$error":"#N/A"}},{"$f":"IF($C15=\"\",\"\",VLOOKUP($C15,Defaults!$AZ$3:$BE$17,4,FALSE))","v":{"$error":"#N/A"}},{"$f":"IF($C15=\"\",\"\",VLOOKUP($C15,Defaults!$BG$3:$BL$16,4,FALSE))","v":{"$error":"#N/A"}},{"$f":"IF($C15=\"\",\"\",VLOOKUP($C15,Defaults!$BN$3:$BS$17,4,FALSE))","v":{"$error":"#N/A"}},{"$f":"\"\"","v":""},{"$f":"\"\"","v":""},{"$f":"IF($C15=\"\",\"\",VLOOKUP($C15,Defaults!$CI:$CN,4,FALSE))","v":"pt"},null,{"$f":"IF($C15=\"\",\"\",$C15)","v":"Banvel"},{"$f":"IF($C15=\"\",\"\",IFERROR(VLOOKUP($C15,Defaults!$AL$3:$AQ$17,5,FALSE),\"\"))","v":8},{"$f":"IF($C15=\"\",\"\",IFERROR(VLOOKUP($C15,Defaults!$AS$3:$AX$17,5,FALSE),\"\"))","v":""},{"$f":"IF($C15=\"\",\"\",IFERROR(VLOOKUP($C15,Defaults!$AZ$3:$BE$17,5,FALSE),\"\"))","v":""},{"$f":"IF($C15=\"\",\"\",IFERROR(VLOOKUP($C15,Defaults!$BG$3:$BL$16,5,FALSE),\"\"))","v":""},{"$f":"IF($C15=\"\",\"\",IFERROR(VLOOKUP($C15,Defaults!$BN$3:$BS$17,5,FALSE),\"\"))","v":""},{"$f":"\"\"","v":""},{"$f":"\"\"","v":""},{"$f":"IF($C15=\"\",\"\",IFERROR(VLOOKUP($C15,Defaults!$CI:$CN,5,FALSE),\"\"))","v":1},null,{"$f":"IF($C15=\"\",\"\",$C15)","v":"Banvel"},{"$f":"IF($C15=\"\",\"\",IFERROR(VLOOKUP($C15,Defaults!$AL$3:$AQ$17,6,FALSE),\"\"))","v":8},{"$f":"IF($C15=\"\",\"\",IFERROR(VLOOKUP($C15,Defaults!$AS$3:$AX$17,6,FALSE),\"\"))","v":""},{"$f":"IF($C15=\"\",\"\",IFERROR(VLOOKUP($C15,Defaults!$AZ$3:$BE$17,6,FALSE),\"\"))","v":""},{"$f":"IF($C15=\"\",\"\",IFERROR(VLOOKUP($C15,Defaults!$BG$3:$BL$16,6,FALSE),\"\"))","v":""},{"$f":"IF($C15=\"\",\"\",IFERROR(VLOOKUP($C15,Defaults!$BN$3:$BS$17,6,FALSE),\"\"))","v":""},{"$f":"\"\"","v":""},{"$f":"\"\"","v":""},{"$f":"IF($C15=\"\",\"\",IFERROR(VLOOKUP($C15,Defaults!$CI:$CN,6,FALSE),\"\"))","v":8}]
[null,null,null,null,null,null,null,null,null,null,{"$f":"IF(C16=\"\",\"\",ROUND(IF(E16=AE16,AF16,IF(AE16=$AC$2,AF16*VLOOKUP(E16,$AA$2:$AB$4,2,FALSE),IF(AE16=$AF$2,AF16*VLOOKUP(E16,$AD$2:$AE$3,2,FALSE),IF(AE16=$AI$2,AF16/VLOOKUP(E16,$AG$2:$AH$2,2,FALSE),IF(AE16=$AL$2,AF16*VLOOKUP(E16,$AJ$2:$AK$2,2,FALSE),IF(AE16=$AO$2,AF16/VLOOKUP(E16,$AM$2:$AN$2,2,FALSE),IF(AE16=$AR$2,AF16*VLOOKUP(E16,$AP$2:$AQ$3,2,FALSE)))))))),2))","v":""},null,{"$f":"AB16","v":""},{"$f":"IF(C16=\"\",0,IF(L16=0,0,IF(L16=\"\",\"\",J16*L16)))","v":0},null,null,{"$f":"IF(L16>0,ABS(V16-L16),\"\")","v":""},null,null,null,{"$f":"J16","v":0},{"$f":"IF(AG16=0,0,AG16)","v":0},{"$f":"IF(C16=\"\",\"\",IF(V16=0,0,IF(V16=\"\",\"\",U16*V16)))","v":""},{"$f":"IF(C16=\"\",\"\",W16-N16)","v":""},null,{"$f":"IF($Z$2=Defaults!$M$5,Cotton!B16,IF($Z$2=Defaults!$M$6,Corn!B16,IF($Z$2=Defaults!$M$7,Sorghum!B16,IF($Z$2=Defaults!$M$8,Soybean!B16,IF($Z$2=Defaults!$M$9,Rice!B16,IF($Z$2=Defaults!$M$10,Peanut!B16,IF($Z$2=Defaults!$M$11,Wheat!B16,IF($Z$2=Defaults!$M$12,Pasture!B16,\"\"))))))))","v":""},{"$f":"IF($C16=\"\",\"\",HLOOKUP($Z$2,$AZ$13:$BG$16,4,FALSE))","v":""},{"$f":"IF($C16=\"\",\"\",HLOOKUP($Z$2,$BJ$13:$BQ$16,4,FALSE))","v":""},0,{"$f":"IF($C16=\"\",\"\",HLOOKUP($Z$2,$BT$13:$CA$16,4,FALSE))","v":""},{"$f":"IF(C16=\"\",\"\",VLOOKUP(C16,Defaults!$AH:$AJ,2,FALSE))","v":""},{"$f":"IF(C16=\"\",\"\",ROUND(VLOOKUP(C16,Defaults!$AH:$AJ,3,FALSE),2))","v":""},{"$f":"IFERROR(IF(LEFT($C$13,6)=\"Custom\",L16,L16*(1-VLOOKUP($C$13,Implements!$A$159:$D$166,4,FALSE))),\"\")","v":0},null,null,null,null,null,{"$f":"N16","v":0},null,{"$f":"N16","v":0},null,null,null,null,null,{"$f":"W16","v":""},null,{"$f":"W16","v":""},null,{"$f":"IF($C16=\"\",\"\",$C16)","v":""},{"$f":"IF($C16=\"\",\"\",VLOOKUP($C16,Defaults!$AL$3:$AQ$17,4,FALSE))","v":""},{"$f":"IF($C16=\"\",\"\",VLOOKUP($C16,Defaults!$AS$3:$AX$17,4,FALSE))","v":""},{"$f":"IF($C16=\"\",\"\",VLOOKUP($C16,Defaults!$AZ$3:$BE$17,4,FALSE))","v":""},{"$f":"IF($C16=\"\",\"\",VLOOKUP($C16,Defaults!$BG$3:$BL$16,4,FALSE))","v":""},{"$f":"IF($C16=\"\",\"\",VLOOKUP($C16,Defaults!$BN$3:$BS$17,4,FALSE))","v":""},{"$f":"\"\"","v":""},{"$f":"\"\"","v":""},{"$f":"IF($C16=\"\",\"\",VLOOKUP($C16,Defaults!$CI:$CN,4,FALSE))","v":""},null,{"$f":"IF($C16=\"\",\"\",$C16)","v":""},{"$f":"IF($C16=\"\",\"\",IFERROR(VLOOKUP($C16,Defaults!$AL$3:$AQ$17,5,FALSE),\"\"))","v":""},{"$f":"IF($C16=\"\",\"\",IFERROR(VLOOKUP($C16,Defaults!$AS$3:$AX$17,5,FALSE),\"\"))","v":""},{"$f":"IF($C16=\"\",\"\",IFERROR(VLOOKUP($C16,Defaults!$AZ$3:$BE$17,5,FALSE),\"\"))","v":""},{"$f":"IF($C16=\"\",\"\",IFERROR(VLOOKUP($C16,Defaults!$BG$3:$BL$16,5,FALSE),\"\"))","v":""},{"$f":"IF($C16=\"\",\"\",IFERROR(VLOOKUP($C16,Defaults!$BN$3:$BS$17,5,FALSE),\"\"))","v":""},{"$f":"\"\"","v":""},{"$f":"\"\"","v":""},{"$f":"IF($C16=\"\",\"\",IFERROR(VLOOKUP($C16,Defaults!$CI:$CN,5,FALSE),\"\"))","v":""},null,{"$f":"IF($C16=\"\",\"\",$C16)","v":""},{"$f":"IF($C16=\"\",\"\",IFERROR(VLOOKUP($C16,Defaults!$AL$3:$AQ$17,6,FALSE),\"\"))","v":""},{"$f":"IF($C16=\"\",\"\",IFERROR(VLOOKUP($C16,Defaults!$AS$3:$AX$17,6,FALSE),\"\"))","v":""},{"$f":"IF($C16=\"\",\"\",IFERROR(VLOOKUP($C16,Defaults!$AZ$3:$BE$17,6,FALSE),\"\"))","v":""},{"$f":"IF($C16=\"\",\"\",IFERROR(VLOOKUP($C16,Defaults!$BG$3:$BL$16,6,FALSE),\"\"))","v":""},{"$f":"IF($C16=\"\",\"\",IFERROR(VLOOKUP($C16,Defaults!$BN$3:$BS$17,6,FALSE),\"\"))","v":""},{"$f":"\"\"","v":""},{"$f":"\"\"","v":""},{"$f":"IF($C16=\"\",\"\",IFERROR(VLOOKUP($C16,Defaults!$CI:$CN,6,FALSE),\"\"))","v":""}]
[null,null,"Weed Control",{"$f":"IF($Z$2=Defaults!$M$5,Cotton!D17,IF($Z$2=Defaults!$M$6,Corn!D17,IF($Z$2=Defaults!$M$7,Sorghum!D17,IF($Z$2=Defaults!$M$8,Soybean!D17,IF($Z$2=Defaults!$M$9,Rice!D17,IF($Z$2=Defaults!$M$10,Peanut!D17,IF($Z$2=Defaults!$M$11,Wheat!D17,IF($Z$2=Defaults!$M$12,Pasture!D17,FALSE))))))))","v":""},null,null,null,null,null,null,null,null,null,null,null,null,null,null,null,null,null,null,null,null,null,{"$f":"IF($Z$2=Defaults!$M$5,Cotton!B17,IF($Z$2=Defaults!$M$6,Corn!B17,IF($Z$2=Defaults!$M$7,Sorghum!B17,IF($Z$2=Defaults!$M$8,Soybean!B17,IF($Z$2=Defaults!$M$9,Rice!B17,IF($Z$2=Defaults!$M$10,Peanut!B17,IF($Z$2=Defaults!$M$11,Wheat!B17,IF($Z$2=Defaults!$M$12,Pasture!B17,\"\"))))))))","v":"Weed Control"},null,null,null,null,null,null,null,null,null,null,null,null,null,null,null,null,null,null,null,null,null,null,null,null,"PP",null,null,null,null,null,null,null,null,null,"PP",null,null,null,null,null,null,null,null,null,"PP"]
[null,null,"Over-the-Top Sprayer 1",null,null,{"$f":"IF(L18=0,0,IF(C18=Defaults!$I$27,Implements!$AK$185,IF(C18=Defaults!$I$28,Implements!$AK$186,0)))","v":61.454545454545453},{"$f":"IF($L18=0,0,IFERROR(VLOOKUP($C18,Implements!$X$181:$AN$188,15,FALSE),0))","v":8.36},{"$f":"IF($L18=0,0,IFERROR(VLOOKUP($C18,Implements!$X$181:$AN$188,16,FALSE),0))","v":45.046666666666667},{"$f":"IF($L18=0,0,IFERROR(VLOOKUP($C18,Implements!$X$181:$AN$188,17,FALSE),0))","v":137.64582520078542},{"$f":"IF(OR(C18=\"\",L18=\"\",L18=0)=TRUE,\"\",IF(OR(C18=Defaults!$I$25,C18=Defaults!$I$26)=TRUE,VLOOKUP(C18,Defaults!$I$24:$K$27,3,FALSE),ROUND(1/F18*(1*Inputs!$AA$13+($AI$7-1)*Inputs!$AA$15),2)+ROUND(G18*Inputs!$V$13/F18,2)+ROUND(H18/F18,2)+ROUND(I18/F18,2)))","v":3.5},{"$f":"IF(OR(C18=\"\",L18=\"\",L18=0)=TRUE,\"\",IF(OR(C18=Defaults!$I$25,C18=Defaults!$I$26)=TRUE,VLOOKUP(C18,Defaults!$I$24:$K$27,3,FALSE),ROUND(1/F18*(1*Inputs!$AA$13+($AI$7-1)*Inputs!$AA$15),2)+ROUND(G18*Inputs!$V$13/F18,2)+ROUND(H18/F18,2)+ROUND(I18/F18,2)))","v":3.5},1,{"$f":"AB18","v":1},{"$f":"IF(C18=\"\",0,IF(L18=0,0,IF(L18=\"\",\"\",J18*L18)))","v":3.5},null,null,{"$f":"IF(V18=0,0,IF(C18=Defaults!$I$27,Implements!$AK$174,IF(C18=Defaults!$I$28,Implements!$AK$175,0)))","v":62.812690909090918},{"$f":"IF($V18=0,0,IFERROR(VLOOKUP($C18,Implements!$X$170:$AN$177,15,FALSE),0))","v":8.36},{"$f":"IF($V18=0,0,IFERROR(VLOOKUP($C18,Implements!$X$170:$AN$177,16,FALSE),0))","v":45.046666666666667},{"$f":"IF($V18=0,0,IFERROR(VLOOKUP($C18,Implements!$X$170:$AN$177,17,FALSE),0))","v":138.7259236950801},{"$f":"IF(OR(C18=\"\",V18=\"\",V18=0)=TRUE,\"\",IF(LEFT(C18,6)=\"Custom\",J18,ROUND(1/Q18*(1*Inputs!$AA$13+($AI$7-1)*Inputs!$AA$15),2)+ROUND(R18*Inputs!$V$13/Q18,2)+ROUND(S18/Q18,2)+ROUND(T18/Q18,2)))","v":3.44},{"$f":"+L18","v":1},{"$f":"IF(C18=\"\",\"\",IF(V18=0,0,IF(V18=\"\",\"\",U18*V18)))","v":3.44},{"$f":"IF(C18=\"\",\"\",W18-N18)","v":-6.0000000000000053E-2},null,{"$f":"IF($Z$2=Defaults!$M$5,Cotton!B18,IF($Z$2=Defaults!$M$6,Corn!B18,IF($Z$2=Defaults!$M$7,Sorghum!B18,IF($Z$2=Defaults!$M$8,Soybean!B18,IF($Z$2=Defaults!$M$9,Rice!B18,IF($Z$2=Defaults!$M$10,Peanut!B18,IF($Z$2=Defaults!$M$11,Wheat!B18,IF($Z$2=Defaults!$M$12,Pasture!B18,\"\"))))))))","v":"Over-the-Top Sprayer 1"},null,{"$f":"IF(C18=\"\",\"\",VLOOKUP(C18,Defaults!$I$24:$K$28,2,FALSE))","v":1},0,{"$f":"IF(AB18=\"\",\"\",AB18*2)","v":2},null,null,{"$f":"+AB18","v":1},{"$f":"N18","v":3.5},{"$f":"ROUND(IFERROR(1/F18*(1*Inputs!$AA$13+($AI$7-1)*Inputs!$AA$15),0),2)*L18","v":0.28999999999999998},{"$f":"ROUND(IFERROR(1/F18*G18*Inputs!$V$13,0),2)*L18","v":0.24},{"$f":"ROUND(IFERROR(1/F18*H18,0),2)*L18","v":0.73},{"$f":"ROUND(IFERROR(1/F18*I18,0),2)*L18","v":2.2400000000000002},null,null,null,{"$f":"W18","v":3.44},{"$f":"ROUND(IFERROR(1/Q18*(1*Inputs!$AA$13+($AI$7-1)*Inputs!$AA$15),0),2)*V18","v":0.28000000000000003},{"$f":"ROUND(IFERROR(1/Q18*R18*Inputs!$V$13,0),2)*V18","v":0.23},{"$f":"ROUND(IFERROR(1/Q18*S18,0),2)*V18","v":0.72},{"$f":"ROUND(IFERROR(1/Q18*T18,0),2)*V18","v":2.21},null,null,null,null,null,{"$f":"AZ11","v":"Cotton"},{"$f":"BA11","v":"Corn"},"Sorghum","Soybean","Rice","Peanut","Wheat","Est. Pasture or Hay",null,null,{"$f":"BJ11","v":"Cotton"},{"$f":"BK11","v":"Corn"},"Sorghum","Soybean","Rice","Peanut","Wheat","Est. Pasture or Hay",null,null,{"$f":"BT11","v":"Cotton"},{"$f":"BU11","v":"Corn"},"Sorghum","Soybean","Rice","Peanut","Wheat","Est. Pasture or Hay"]
[null,null,"Grazon P + D",null,"pt",null,null,null,null,4.38,{"$f":"IF(C19=\"\",\"\",ROUND(IF(E19=AE19,AF19,IF(AE19=$AC$2,AF19*VLOOKUP(E19,$AA$2:$AB$4,2,FALSE),IF(AE19=$AF$2,AF19*VLOOKUP(E19,$AD$2:$AE$3,2,FALSE),IF(AE19=$AI$2,AF19/VLOOKUP(E19,$AG$2:$AH$2,2,FALSE),IF(AE19=$AL$2,AF19*VLOOKUP(E19,$AJ$2:$AK$2,2,FALSE),IF(AE19=$AO$2,AF19/VLOOKUP(E19,$AM$2:$AN$2,2,FALSE),IF(AE19=$AR$2,AF19*VLOOKUP(E19,$AP$2:$AQ$3,2,FALSE)))))))),2))","v":4.38},1,{"$f":"AB19","v":1},{"$f":"IF(C19=\"\",0,IF(L19=0,0,IF(L19=\"\",\"\",J19*L19)))","v":4.38},null,null,{"$f":"IF(L19>0,ABS(V19-L19),\"\")","v":0.2208},null,null,null,{"$f":"J19","v":4.38},{"$f":"IF(AG19=0,0,AG19)","v":0.7792},{"$f":"IF(C19=\"\",\"\",IF(V19=0,0,IF(V19=\"\",\"\",U19*V19)))","v":3.4128959999999999},{"$f":"IF(C19=\"\",\"\",W19-N19)","v":-0.96710399999999996},null,{"$f":"IF($Z$2=Defaults!$M$5,Cotton!B19,IF($Z$2=Defaults!$M$6,Corn!B19,IF($Z$2=Defaults!$M$7,Sorghum!B19,IF($Z$2=Defaults!$M$8,Soybean!B19,IF($Z$2=Defaults!$M$9,Rice!B19,IF($Z$2=Defaults!$M$10,Peanut!B19,IF($Z$2=Defaults!$M$11,Wheat!B19,IF($Z$2=Defaults!$M$12,Pasture!B19,\"\"))))))))","v":"Grazon P + D"},{"$f":"IF($C19=\"\",\"\",HLOOKUP($Z$2,$AZ$18:$BG$21,2,FALSE))","v":"pt"},{"$f":"IF($C19=\"\",\"\",HLOOKUP($Z$2,$BJ$18:$BQ$21,2,FALSE))","v":1},0,{"$f":"IF($C19=\"\",\"\",HLOOKUP($Z$2,$BT$18:$CA$21,2,FALSE))","v":4},{"$f":"IF(C19=\"\",\"\",VLOOKUP(C19,Defaults!$AH:$AJ,2,FALSE))","v":"gal"},{"$f":"IF(C19=\"\",\"\",ROUND(VLOOKUP(C19,Defaults!$AH:$AJ,3,FALSE),2))","v":35},{"$f":"IFERROR(IF(LEFT($C$18,6)=\"Custom\",L19,L19*(1-VLOOKUP($C$18,Implements!$A$159:$D$166,4,FALSE))),\"\")","v":0.7792},null,null,null,null,null,{"$f":"N19","v":4.38},null,{"$f":"N19","v":4.38},null,null,null,null,null,{"$f":"W19","v":3.4128959999999999},null,{"$f":"W19","v":3.4128959999999999},null,{"$f":"IF($C19=\"\",\"\",$C19)","v":"Grazon P + D"},{"$f":"IF($C19=\"\",\"\",VLOOKUP($C19,Defaults!$AL$19:$AQ$35,4,FALSE))","v":{"$error":"#N/A"}},{"$f":"IF($C19=\"\",\"\",VLOOKUP($C19,Defaults!$AS$19:$AX$35,4,FALSE))","v":{"$error":"#N/A"}},{"$f":"IF($C19=\"\",\"\",VLOOKUP($C19,Defaults!$AZ$19:$BE$35,4,FALSE))","v":{"$error":"#N/A"}},{"$f":"IF($C19=\"\",\"\",VLOOKUP($C19,Defaults!$BG$19:$BL$35,4,FALSE))","v":{"$error":"#N/A"}},{"$f":"IF($C19=\"\",\"\",VLOOKUP($C19,Defaults!$BN$19:$BS$35,4,FALSE))","v":{"$error":"#N/A"}},{"$f":"IF($C19=\"\",\"\",VLOOKUP($C19,Defaults!$BU$19:$BZ$35,4,FALSE))","v":{"$error":"#N/A"}},{"$f":"\"\"","v":""},{"$f":"IF($C19=\"\",\"\",VLOOKUP($C19,Defaults!$CI:$CN,4,FALSE))","v":"pt"},null,{"$f":"IF($C19=\"\",\"\",$C19)","v":"Grazon P + D"},{"$f":"IF($C19=\"\",\"\",IFERROR(VLOOKUP($C19,Defaults!$AL$19:$AQ$35,5,FALSE),\"\"))","v":""},{"$f":"IF($C19=\"\",\"\",IFERROR(VLOOKUP($C19,Defaults!$AS$19:$AX$35,5,FALSE),\"\"))","v":""},{"$f":"IF($C19=\"\",\"\",IFERROR(VLOOKUP($C19,Defaults!$AZ$19:$BE$35,5,FALSE),\"\"))","v":""},{"$f":"IF($C19=\"\",\"\",IFERROR(VLOOKUP($C19,Defaults!$BG$19:$BL$35,5,FALSE),\"\"))","v":""},{"$f":"IF($C19=\"\",\"\",IFERROR(VLOOKUP($C19,Defaults!$BN$19:$BS$35,5,FALSE),\"\"))","v":""},{"$f":"IF($C19=\"\",\"\",IFERROR(VLOOKUP($C19,Defaults!$BU$19:$BZ$35,5,FALSE),\"\"))","v":""},{"$f":"\"\"","v":""},{"$f":"IF($C19=\"\",\"\",IFERROR(VLOOKUP($C19,Defaults!$CI:$CN,5,FALSE),\"\"))","v":1},null,{"$f":"IF($C19=\"\",\"\",$C19)","v":"Grazon P + D"},{"$f":"IF($C19=\"\",\"\",IFERROR(VLOOKUP($C19,Defaults!$AL$19:$AQ$35,6,FALSE),\"\"))","v":""},{"$f":"IF($C19=\"\",\"\",IFERROR(VLOOKUP($C19,Defaults!$AS$19:$AX$35,6,FALSE),\"\"))","v":""},{"$f":"IF($C19=\"\",\"\",IFERROR(VLOOKUP($C19,Defaults!$AZ$19:$BE$35,6,FALSE),\"\"))","v":""},{"$f":"IF($C19=\"\",\"\",IFERROR(VLOOKUP($C19,Defaults!$BG$19:$BL$35,6,FALSE),\"\"))","v":""},{"$f":"IF($C19=\"\",\"\",IFERROR(VLOOKUP($C19,Defaults!$BN$19:$BS$35,6,FALSE),\"\"))","v":""},{"$f":"IF($C19=\"\",\"\",IFERROR(VLOOKUP($C19,Defaults!$BU$19:$BZ$35,6,FALSE),\"\"))","v":""},{"$f":"\"\"","v":""},{"$f":"IF($C19=\"\",\"\",IFERROR(VLOOKUP($C19,Defaults!$CI:$CN,6,FALSE),\"\"))","v":4}]
[null,null,null,null,null,null,null,null,null,null,{"$f":"IF(C20=\"\",\"\",ROUND(IF(E20=AE20,AF20,IF(AE20=$AC$2,AF20*VLOOKUP(E20,$AA$2:$AB$4,2,FALSE),IF(AE20=$AF$2,AF20*VLOOKUP(E20,$AD$2:$AE$3,2,FALSE),IF(AE20=$AI$2,AF20/VLOOKUP(E20,$AG$2:$AH$2,2,FALSE),IF(AE20=$AL$2,AF20*VLOOKUP(E20,$AJ$2:$AK$2,2,FALSE),IF(AE20=$AO$2,AF20/VLOOKUP(E20,$AM$2:$AN$2,2,FALSE),IF(AE20=$AR$2,AF20*VLOOKUP(E20,$AP$2:$AQ$3,2,FALSE)))))))),2))","v":""},null,{"$f":"AB20","v":""},{"$f":"IF(C20=\"\",0,IF(L20=0,0,IF(L20=\"\",\"\",J20*L20)))","v":0},null,null,{"$f":"IF(L20>0,ABS(V20-L20),\"\")","v":""},null,null,null,{"$f":"J20","v":0},{"$f":"IF(AG20=0,0,AG20)","v":0},{"$f":"IF(C20=\"\",\"\",IF(V20=0,0,IF(V20=\"\",\"\",U20*V20)))","v":""},{"$f":"IF(C20=\"\",\"\",W20-N20)","v":""},null,{"$f":"IF($Z$2=Defaults!$M$5,Cotton!B20,IF($Z$2=Defaults!$M$6,Corn!B20,IF($Z$2=Defaults!$M$7,Sorghum!B20,IF($Z$2=Defaults!$M$8,Soybean!B20,IF($Z$2=Defaults!$M$9,Rice!B20,IF($Z$2=Defaults!$M$10,Peanut!B20,IF($Z$2=Defaults!$M$11,Wheat!B20,IF($Z$2=Defaults!$M$12,Pasture!B20,\"\"))))))))","v":""},{"$f":"IF($C20=\"\",\"\",HLOOKUP($Z$2,$AZ$18:$BG$21,3,FALSE))","v":""},{"$f":"IF($C20=\"\",\"\",HLOOKUP($Z$2,$BJ$18:$BQ$21,3,FALSE))","v":""},0,{"$f":"IF($C20=\"\",\"\",HLOOKUP($Z$2,$BT$18:$CA$21,3,FALSE))","v":""},{"$f":"IF(C20=\"\",\"\",VLOOKUP(C20,Defaults!$AH:$AJ,2,FALSE))","v":""},{"$f":"IF(C20=\"\",\"\",ROUND(VLOOKUP(C20,Defaults!$AH:$AJ,3,FALSE),2))","v":""},{"$f":"IFERROR(IF(LEFT($C$18,6)=\"Custom\",L20,L20*(1-VLOOKUP($C$18,Implements!$A$159:$D$166,4,FALSE))),\"\")","v":0},null,null,null,null,null,{"$f":"N20","v":0},null,{"$f":"N20","v":0},null,null,null,null,null,{"$f":"W20","v":""},null,{"$f":"W20","v":""},null,{"$f":"IF($C20=\"\",\"\",$C20)","v":""},{"$f":"IF($C20=\"\",\"\",VLOOKUP($C20,Defaults!$AL$19:$AQ$35,4,FALSE))","v":""},{"$f":"IF($C20=\"\",\"\",VLOOKUP($C20,Defaults!$AS$19:$AX$35,4,FALSE))","v":""},{"$f":"IF($C20=\"\",\"\",VLOOKUP($C20,Defaults!$AZ$19:$BE$35,4,FALSE))","v":""},{"$f":"IF($C20=\"\",\"\",VLOOKUP($C20,Defaults!$BG$19:$BL$35,4,FALSE))","v":""},{"$f":"IF($C20=\"\",\"\",VLOOKUP($C20,Defaults!$BN$19:$BS$35,4,FALSE))","v":""},{"$f":"IF($C20=\"\",\"\",VLOOKUP($C20,Defaults!$BU$19:$BZ$35,4,FALSE))","v":""},{"$f":"\"\"","v":""},{"$f":"IF($C20=\"\",\"\",VLOOKUP($C20,Defaults!$CI:$CN,4,FALSE))","v":""},null,{"$f":"IF($C20=\"\",\"\",$C20)","v":""},{"$f":"IF($C20=\"\",\"\",IFERROR(VLOOKUP($C20,Defaults!$AL$19:$AQ$35,5,FALSE),\"\"))","v":""},{"$f":"IF($C20=\"\",\"\",IFERROR(VLOOKUP($C20,Defaults!$AS$19:$AX$35,5,FALSE),\"\"))","v":""},{"$f":"IF($C20=\"\",\"\",IFERROR(VLOOKUP($C20,Defaults!$AZ$19:$BE$35,5,FALSE),\"\"))","v":""},{"$f":"IF($C20=\"\",\"\",IFERROR(VLOOKUP($C20,Defaults!$BG$19:$BL$35,5,FALSE),\"\"))","v":""},{"$f":"IF($C20=\"\",\"\",IFERROR(VLOOKUP($C20,Defaults!$BN$19:$BS$35,5,FALSE),\"\"))","v":""},{"$f":"IF($C20=\"\",\"\",IFERROR(VLOOKUP($C20,Defaults!$BU$19:$BZ$35,5,FALSE),\"\"))","v":""},{"$f":"\"\"","v":""},{"$f":"IF($C20=\"\",\"\",IFERROR(VLOOKUP($C20,Defaults!$CI:$CN,5,FALSE),\"\"))","v":""},null,{"$f":"IF($C20=\"\",\"\",$C20)","v":""},{"$f":"IF($C20=\"\",\"\",IFERROR(VLOOKUP($C20,Defaults!$AL$19:$AQ$35,6,FALSE),\"\"))","v":""},{"$f":"IF($C20=\"\",\"\",IFERROR(VLOOKUP($C20,Defaults!$AS$19:$AX$35,6,FALSE),\"\"))","v":""},{"$f":"IF($C20=\"\",\"\",IFERROR(VLOOKUP($C20,Defaults!$AZ$19:$BE$35,6,FALSE),\"\"))","v":""},{"$f":"IF($C20=\"\",\"\",IFERROR(VLOOKUP($C20,Defaults!$BG$19:$BL$35,6,FALSE),\"\"))","v":""},{"$f":"IF($C20=\"\",\"\",IFERROR(VLOOKUP($C20,Defaults!$BN$19:$BS$35,6,FALSE),\"\"))","v":""},{"$f":"IF($C20=\"\",\"\",IFERROR(VLOOKUP($C20,Defaults!$BU$19:$BZ$35,6,FALSE),\"\"))","v":""},{"$f":"\"\"","v":""},{"$f":"IF($C20=\"\",\"\",IFERROR(VLOOKUP($C20,Defaults!$CI:$CN,6,FALSE),\"\"))","v":""}]
[null,null,null,null,null,null,null,null,null,null,{"$f":"IF(C21=\"\",\"\",ROUND(IF(E21=AE21,AF21,IF(AE21=$AC$2,AF21*VLOOKUP(E21,$AA$2:$AB$4,2,FALSE),IF(AE21=$AF$2,AF21*VLOOKUP(E21,$AD$2:$AE$3,2,FALSE),IF(AE21=$AI$2,AF21/VLOOKUP(E21,$AG$2:$AH$2,2,FALSE),IF(AE21=$AL$2,AF21*VLOOKUP(E21,$AJ$2:$AK$2,2,FALSE),IF(AE21=$AO$2,AF21/VLOOKUP(E21,$AM$2:$AN$2,2,FALSE),IF(AE21=$AR$2,AF21*VLOOKUP(E21,$AP$2:$AQ$3,2,FALSE)))))))),2))","v":""},null,{"$f":"AB21","v":""},{"$f":"IF(C21=\"\",0,IF(L21=0,0,IF(L21=\"\",\"\",J21*L21)))","v":0},null,null,{"$f":"IF(L21>0,ABS(V21-L21),\"\")","v":""},null,null,null,{"$f":"J21","v":0},{"$f":"IF(AG21=0,0,AG21)","v":0},{"$f":"IF(C21=\"\",\"\",IF(V21=0,0,IF(V21=\"\",\"\",U21*V21)))","v":""},{"$f":"IF(C21=\"\",\"\",W21-N21)","v":""},null,{"$f":"IF($Z$2=Defaults!$M$5,Cotton!B21,IF($Z$2=Defaults!$M$6,Corn!B21,IF($Z$2=Defaults!$M$7,Sorghum!B21,IF($Z$2=Defaults!$M$8,Soybean!B21,IF($Z$2=Defaults!$M$9,Rice!B21,IF($Z$2=Defaults!$M$10,Peanut!B21,IF($Z$2=Defaults!$M$11,Wheat!B21,IF($Z$2=Defaults!$M$12,Pasture!B21,\"\"))))))))","v":""},{"$f":"IF($C21=\"\",\"\",HLOOKUP($Z$2,$AZ$18:$BG$21,4,FALSE))","v":""},{"$f":"IF($C21=\"\",\"\",HLOOKUP($Z$2,$BJ$18:$BQ$21,4,FALSE))","v":""},0,{"$f":"IF($C21=\"\",\"\",HLOOKUP($Z$2,$BT$18:$CA$21,4,FALSE))","v":""},{"$f":"IF(C21=\"\",\"\",VLOOKUP(C21,Defaults!$AH:$AJ,2,FALSE))","v":""},{"$f":"IF(C21=\"\",\"\",ROUND(VLOOKUP(C21,Defaults!$AH:$AJ,3,FALSE),2))","v":""},{"$f":"IFERROR(IF(LEFT($C$18,6)=\"Custom\",L21,L21*(1-VLOOKUP($C$18,Implements!$A$159:$D$166,4,FALSE))),\"\")","v":0},null,null,null,null,null,{"$f":"N21","v":0},null,{"$f":"N21","v":0},null,null,null,null,null,{"$f":"W21","v":""},null,{"$f":"W21","v":""},null,{"$f":"IF($C21=\"\",\"\",$C21)","v":""},{"$f":"IF($C21=\"\",\"\",VLOOKUP($C21,Defaults!$AL$19:$AQ$35,4,FALSE))","v":""},{"$f":"IF($C21=\"\",\"\",VLOOKUP($C21,Defaults!$AS$19:$AX$35,4,FALSE))","v":""},{"$f":"IF($C21=\"\",\"\",VLOOKUP($C21,Defaults!$AZ$19:$BE$35,4,FALSE))","v":""},{"$f":"IF($C21=\"\",\"\",VLOOKUP($C21,Defaults!$BG$19:$BL$35,4,FALSE))","v":""},{"$f":"IF($C21=\"\",\"\",VLOOKUP($C21,Defaults!$BN$19:$BS$35,4,FALSE))","v":""},{"$f":"IF($C21=\"\",\"\",VLOOKUP($C21,Defaults!$BU$19:$BZ$35,4,FALSE))","v":""},{"$f":"\"\"","v":""},{"$f":"IF($C21=\"\",\"\",VLOOKUP($C21,Defaults!$CI:$CN,4,FALSE))","v":""},null,{"$f":"IF($C21=\"\",\"\",$C21)","v":""},{"$f":"IF($C21=\"\",\"\",IFERROR(VLOOKUP($C21,Defaults!$AL$19:$AQ$35,5,FALSE),\"\"))","v":""},{"$f":"IF($C21=\"\",\"\",IFERROR(VLOOKUP($C21,Defaults!$AS$19:$AX$35,5,FALSE),\"\"))","v":""},{"$f":"IF($C21=\"\",\"\",IFERROR(VLOOKUP($C21,Defaults!$AZ$19:$BE$35,5,FALSE),\"\"))","v":""},{"$f":"IF($C21=\"\",\"\",IFERROR(VLOOKUP($C21,Defaults!$BG$19:$BL$35,5,FALSE),\"\"))","v":""},{"$f":"IF($C21=\"\",\"\",IFERROR(VLOOKUP($C21,Defaults!$BN$19:$BS$35,5,FALSE),\"\"))","v":""},{"$f":"IF($C21=\"\",\"\",IFERROR(VLOOKUP($C21,Defaults!$BU$19:$BZ$35,5,FALSE),\"\"))","v":""},{"$f":"\"\"","v":""},{"$f":"IF($C21=\"\",\"\",IFERROR(VLOOKUP($C21,Defaults!$CI:$CN,5,FALSE),\"\"))","v":""},null,{"$f":"IF($C21=\"\",\"\",$C21)","v":""},{"$f":"IF($C21=\"\",\"\",IFERROR(VLOOKUP($C21,Defaults!$AL$19:$AQ$35,6,FALSE),\"\"))","v":""},{"$f":"IF($C21=\"\",\"\",IFERROR(VLOOKUP($C21,Defaults!$AS$19:$AX$35,6,FALSE),\"\"))","v":""},{"$f":"IF($C21=\"\",\"\",IFERROR(VLOOKUP($C21,Defaults!$AZ$19:$BE$35,6,FALSE),\"\"))","v":""},{"$f":"IF($C21=\"\",\"\",IFERROR(VLOOKUP($C21,Defaults!$BG$19:$BL$35,6,FALSE),\"\"))","v":""},{"$f":"IF($C21=\"\",\"\",IFERROR(VLOOKUP($C21,Defaults!$BN$19:$BS$35,6,FALSE),\"\"))","v":""},{"$f":"IF($C21=\"\",\"\",IFERROR(VLOOKUP($C21,Defaults!$BU$19:$BZ$35,6,FALSE),\"\"))","v":""},{"$f":"\"\"","v":""},{"$f":"IF($C21=\"\",\"\",IFERROR(VLOOKUP($C21,Defaults!$CI:$CN,6,FALSE),\"\"))","v":""}]
[null,null,"Fertility Management",{"$f":"IF($Z$2=Defaults!$M$5,Cotton!D22,IF($Z$2=Defaults!$M$6,Corn!D22,IF($Z$2=Defaults!$M$7,Sorghum!D22,IF($Z$2=Defaults!$M$8,Soybean!D22,IF($Z$2=Defaults!$M$9,Rice!D22,IF($Z$2=Defaults!$M$10,Peanut!D22,IF($Z$2=Defaults!$M$11,Wheat!D22,IF($Z$2=Defaults!$M$12,Pasture!D22,FALSE))))))))","v":""},null,null,null,null,null,null,null,null,null,null,null,null,null,null,null,null,null,null,null,null,null,{"$f":"IF($Z$2=Defaults!$M$5,Cotton!B22,IF($Z$2=Defaults!$M$6,Corn!B22,IF($Z$2=Defaults!$M$7,Sorghum!B22,IF($Z$2=Defaults!$M$8,Soybean!B22,IF($Z$2=Defaults!$M$9,Rice!B22,IF($Z$2=Defaults!$M$10,Peanut!B22,IF($Z$2=Defaults!$M$11,Wheat!B22,IF($Z$2=Defaults!$M$12,Pasture!B22,\"\"))))))))","v":"Fertility Management"}]
[null,null,"Fertilizer Spreader",null,null,{"$f":"IF(L23=0,0,IF(C23=Defaults!$I$37,Implements!$AK$187,0))","v":23.757575757575754},{"$f":"IF($L23=0,0,IFERROR(VLOOKUP($C23,Implements!$X$181:$AN$188,15,FALSE),0))","v":8.36},{"$f":"IF($L23=0,0,IFERROR(VLOOKUP($C23,Implements!$X$181:$AN$188,16,FALSE),0))","v":17.166666666666668},{"$f":"IF($L23=0,0,IFERROR(VLOOKUP($C23,Implements!$X$181:$AN$188,17,FALSE),0))","v":93.003051050249965},{"$f":"IF(OR(C23=\"\",L23=\"\",L23=0)=TRUE,\"\",IF(C23=Defaults!$I$36,VLOOKUP(C23,Defaults!$I$35:$K$37,3,FALSE),ROUND(1/F23*(1*Inputs!$AA$13+($AI$9-1)*Inputs!$AA$15),2)+ROUND(G23*Inputs!$V$13/F23,2)+ROUND(H23/F23,2)+ROUND(I23/F23,2)))","v":5.99},{"$f":"IF(OR(C23=\"\",L23=\"\",L23=0)=TRUE,\"\",IF(C23=Defaults!$I$36,VLOOKUP(C23,Defaults!$I$35:$K$37,3,FALSE),ROUND(1/F23*(1*Inputs!$AA$13+($AI$9-1)*Inputs!$AA$15),2)+ROUND(G23*Inputs!$V$13/F23,2)+ROUND(H23/F23,2)+ROUND(I23/F23,2)))","v":5.99},1,{"$f":"AB23","v":1},{"$f":"IF(C23=\"\",0,IF(L23=0,0,IF(L23=\"\",\"\",J23*L23)))","v":5.99},null,null,{"$f":"IF(V23=0,0,IF(C23=Defaults!$I$37,Implements!$AK$176,0))","v":24.282618181818179},{"$f":"IF($V23=0,0,IFERROR(VLOOKUP($C23,Implements!$X$170:$AN$177,15,FALSE),0))","v":8.36},{"$f":"IF($V23=0,0,IFERROR(VLOOKUP($C23,Implements!$X$170:$AN$177,16,FALSE),0))","v":17.166666666666668},{"$f":"IF($V23=0,0,IFERROR(VLOOKUP($C23,Implements!$X$170:$AN$177,17,FALSE),0))","v":93.712473576284623},{"$f":"IF(OR(C23=\"\",V23=\"\",V23=0)=TRUE,\"\",IF(LEFT(C23,6)=\"Custom\",J23,ROUND(1/Q23*(1*Inputs!$AA$13+($AI$9-1)*Inputs!$AA$15),2)+ROUND(R23*Inputs!$V$13/Q23,2)+ROUND(S23/Q23,2)+ROUND(T23/Q23,2)))","v":5.9},{"$f":"+L23","v":1},{"$f":"IF(C23=\"\",\"\",IF(V23=0,0,IF(V23=\"\",\"\",U23*V23)))","v":5.9},{"$f":"IF(C23=\"\",\"\",W23-N23)","v":-8.9999999999999858E-2},null,{"$f":"IF($Z$2=Defaults!$M$5,Cotton!B23,IF($Z$2=Defaults!$M$6,Corn!B23,IF($Z$2=Defaults!$M$7,Sorghum!B23,IF($Z$2=Defaults!$M$8,Soybean!B23,IF($Z$2=Defaults!$M$9,Rice!B23,IF($Z$2=Defaults!$M$10,Peanut!B23,IF($Z$2=Defaults!$M$11,Wheat!B23,IF($Z$2=Defaults!$M$12,Pasture!B23,\"\"))))))))","v":"Fertilizer Spreader"},null,{"$f":"IF(C23=\"\",\"\",HLOOKUP(Z2,Defaults!$X$2:$AE$14,13,FALSE))","v":1},0,{"$f":"IF(AB23=\"\",\"\",AB23*2)","v":2},null,null,{"$f":"+AB23","v":1},{"$f":"N23","v":5.99},{"$f":"ROUND(IFERROR(1/F23*(1*Inputs!$AA$13+($AI$7-1)*Inputs!$AA$15),0),2)*L23","v":0.74},{"$f":"ROUND(IFERROR(1/F23*G23*Inputs!$V$13,0),2)*L23","v":0.62},{"$f":"ROUND(IFERROR(1/F23*H23,0),2)*L23","v":0.72},{"$f":"ROUND(IFERROR(1/F23*I23,0),2)*L23","v":3.91},null,null,null,{"$f":"W23","v":5.9},{"$f":"ROUND(IFERROR(1/Q23*(1*Inputs!$AA$13+($AI$7-1)*Inputs!$AA$15),0),2)*V23","v":0.73},{"$f":"ROUND(IFERROR(1/Q23*R23*Inputs!$V$13,0),2)*V23","v":0.6},{"$f":"ROUND(IFERROR(1/Q23*S23,0),2)*V23","v":0.71},{"$f":"ROUND(IFERROR(1/Q23*T23,0),2)*V23","v":3.86}]
[null,null,"Urea [46-0-0]",null,"lb",null,null,null,null,0.15,{"$f":"IF(C24=\"\",\"\",ROUND(IF(E24=AE24,AF24,IF(AE24=$AC$2,AF24*VLOOKUP(E24,$AA$2:$AB$4,2,FALSE),IF(AE24=$AF$2,AF24*VLOOKUP(E24,$AD$2:$AE$3,2,FALSE),IF(AE24=$AI$2,AF24/VLOOKUP(E24,$AG$2:$AH$2,2,FALSE),IF(AE24=$AL$2,AF24*VLOOKUP(E24,$AJ$2:$AK$2,2,FALSE),IF(AE24=$AO$2,AF24/VLOOKUP(E24,$AM$2:$AN$2,2,FALSE),IF(AE24=$AR$2,AF24*VLOOKUP(E24,$AP$2:$AQ$3,2,FALSE)))))))),2))","v":0.15},155,155,23.25,null,null,{"$f":"IF(L24>0,ABS(V24-L24),\"\")","v":3.4720000000000084},null,null,null,{"$f":"J24","v":0.15},{"$f":"IF(AG24=0,0,AG24)","v":151.52799999999999},22.729199999999999,-0.52080000000000126,null,{"$f":"IF($Z$2=Defaults!$M$5,Cotton!B24,IF($Z$2=Defaults!$M$6,Corn!B24,IF($Z$2=Defaults!$M$7,Sorghum!B24,IF($Z$2=Defaults!$M$8,Soybean!B24,IF($Z$2=Defaults!$M$9,Rice!B24,IF($Z$2=Defaults!$M$10,Peanut!B24,IF($Z$2=Defaults!$M$11,Wheat!B24,IF($Z$2=Defaults!$M$12,Pasture!B24,\"\"))))))))","v":"Urea [46-0-0]"},{"$f":"IF(C24=\"\",\"\",VLOOKUP(C24,Defaults!$T$3:$AE$13,4,FALSE))","v":"lb"},{"$f":"IF(C24=\"\",\"\",IFERROR(VLOOKUP(C24,Defaults!$T$3:$AE$13,$Z$9,FALSE),\"\"))","v":155},0,null,{"$f":"IF(C24=\"\",\"\",VLOOKUP(C24,Defaults!$T$3:$V$13,2,FALSE))","v":"cwt"},{"$f":"IF(C24=\"\",\"\",ROUND(VLOOKUP(C24,Defaults!$T$3:$V$13,3,FALSE),2))","v":16.78},{"$f":"IFERROR(IF(LEFT($C$23,6)=\"Custom\",L24,L24*(1-VLOOKUP($C$23,Implements!$A$159:$D$166,4,FALSE))),\"\")","v":151.52799999999999},null,null,null,null,null,{"$f":"N24","v":23.25},null,{"$f":"N24","v":23.25},null,null,null,null,null,{"$f":"W24","v":22.729199999999999},null,{"$f":"W24","v":22.729199999999999}]
[null,null,"Diammonium Phosphate [18-46-0]",null,"lb",null,null,null,null,0.22,0.22,20,20,4.4000000000000004,null,null,0.4480000000000004,null,null,null,0.22,19.552,4.3014400000000004,-9.8559999999999981E-2,null,{"$f":"IF($Z$2=Defaults!$M$5,Cotton!B25,IF($Z$2=Defaults!$M$6,Corn!B25,IF($Z$2=Defaults!$M$7,Sorghum!B25,IF($Z$2=Defaults!$M$8,Soybean!B25,IF($Z$2=Defaults!$M$9,Rice!B25,IF($Z$2=Defaults!$M$10,Peanut!B25,IF($Z$2=Defaults!$M$11,Wheat!B25,IF($Z$2=Defaults!$M$12,Pasture!B25,\"\"))))))))","v":"Diammonium Phosphate [18-46-0]"},{"$f":"IF(C25=\"\",\"\",VLOOKUP(C25,Defaults!$T$3:$AE$13,4,FALSE))","v":"lb"},{"$f":"IF(C25=\"\",\"\",IFERROR(VLOOKUP(C25,Defaults!$T$3:$AE$13,$Z$9,FALSE),\"\"))","v":20},0,null,{"$f":"IF(C25=\"\",\"\",VLOOKUP(C25,Defaults!$T$3:$V$13,2,FALSE))","v":"cwt"},{"$f":"IF(C25=\"\",\"\",ROUND(VLOOKUP(C25,Defaults!$T$3:$V$13,3,FALSE),2))","v":24.82},{"$f":"IFERROR(IF(LEFT($C$23,6)=\"Custom\",L25,L25*(1-VLOOKUP($C$23,Implements!$A$159:$D$166,4,FALSE))),\"\")","v":19.552},null,null,null,null,null,4.4000000000000004,null,4.4000000000000004,null,null,null,null,null,4.3014400000000004,null,4.3014400000000004]
[null,null,"Potash [0-0-60]",null,"lb",null,null,null,null,0.15,0.15,83,83,12.45,null,null,1.8592000000000013,null,null,null,0.15,81.140799999999999,12.17112,-0.27887999999999913,null,{"$f":"IF($Z$2=Defaults!$M$5,Cotton!B26,IF($Z$2=Defaults!$M$6,Corn!B26,IF($Z$2=Defaults!$M$7,Sorghum!B26,IF($Z$2=Defaults!$M$8,Soybean!B26,IF($Z$2=Defaults!$M$9,Rice!B26,IF($Z$2=Defaults!$M$10,Peanut!B26,IF($Z$2=Defaults!$M$11,Wheat!B26,IF($Z$2=Defaults!$M$12,Pasture!B26,\"\"))))))))","v":"Potash [0-0-60]"},{"$f":"IF(C26=\"\",\"\",VLOOKUP(C26,Defaults!$T$3:$AE$13,4,FALSE))","v":"lb"},{"$f":"IF(C26=\"\",\"\",IFERROR(VLOOKUP(C26,Defaults!$T$3:$AE$13,$Z$9,FALSE),\"\"))","v":83},0,null,{"$f":"IF(C26=\"\",\"\",VLOOKUP(C26,Defaults!$T$3:$V$13,2,FALSE))","v":"cwt"},{"$f":"IF(C26=\"\",\"\",ROUND(VLOOKUP(C26,Defaults!$T$3:$V$13,3,FALSE),2))","v":16.97},{"$f":"IFERROR(IF(LEFT($C$23,6)=\"Custom\",L26,L26*(1-VLOOKUP($C$23,Implements!$A$159:$D$166,4,FALSE))),\"\")","v":81.140799999999999},null,null,null,null,null,12.45,null,12.45,null,null,null,null,null,12.17112,null,12.17112]
[null,null,null,null,null,null,null,null,null,null,"",null,"",0,null,null,"",null,null,null,0,0,"","",null,{"$f":"IF($Z$2=Defaults!$M$5,Cotton!B27,IF($Z$2=Defaults!$M$6,Corn!B27,IF($Z$2=Defaults!$M$7,Sorghum!B27,IF($Z$2=Defaults!$M$8,Soybean!B27,IF($Z$2=Defaults!$M$9,Rice!B27,IF($Z$2=Defaults!$M$10,Peanut!B27,IF($Z$2=Defaults!$M$11,Wheat!B27,IF($Z$2=Defaults!$M$12,Pasture!B27,\"\"))))))))","v":""},{"$f":"IF(C27=\"\",\"\",VLOOKUP(C27,Defaults!$T$3:$AE$13,4,FALSE))","v":""},{"$f":"IF(C27=\"\",\"\",IFERROR(VLOOKUP(C27,Defaults!$T$3:$AE$13,$Z$9,FALSE),\"\"))","v":""},0,null,{"$f":"IF(C27=\"\",\"\",VLOOKUP(C27,Defaults!$T$3:$V$13,2,FALSE))","v":""},{"$f":"IF(C27=\"\",\"\",ROUND(VLOOKUP(C27,Defaults!$T$3:$V$13,3,FALSE),2))","v":""},{"$f":"IFERROR(IF(LEFT($C$23,6)=\"Custom\",L27,L27*(1-VLOOKUP($C$23,Implements!$A$159:$D$166,4,FALSE))),\"\")","v":0},null,null,null,null,null,0,null,0,null,null,null,null,null,"",null,""]
[null,null,null,null,null,null,null,null,null,null,"",null,"",0,null,null,"",null,null,null,0,0,"","",null,{"$f":"IF($Z$2=Defaults!$M$5,Cotton!B28,IF($Z$2=Defaults!$M$6,Corn!B28,IF($Z$2=Defaults!$M$7,Sorghum!B28,IF($Z$2=Defaults!$M$8,Soybean!B28,IF($Z$2=Defaults!$M$9,Rice!B28,IF($Z$2=Defaults!$M$10,Peanut!B28,IF($Z$2=Defaults!$M$11,Wheat!B28,IF($Z$2=Defaults!$M$12,Pasture!B28,\"\"))))))))","v":""},{"$f":"IF(C28=\"\",\"\",VLOOKUP(C28,Defaults!$T$3:$AE$13,4,FALSE))","v":""},{"$f":"IF(C28=\"\",\"\",IFERROR(VLOOKUP(C28,Defaults!$T$3:$AE$13,$Z$9,FALSE),\"\"))","v":""},0,null,{"$f":"IF(C28=\"\",\"\",VLOOKUP(C28,Defaults!$T$3:$V$13,2,FALSE))","v":""},{"$f":"IF(C28=\"\",\"\",ROUND(VLOOKUP(C28,Defaults!$T$3:$V$13,3,FALSE),2))","v":""},{"$f":"IFERROR(IF(LEFT($C$23,6)=\"Custom\",L28,L28*(1-VLOOKUP($C$23,Implements!$A$159:$D$166,4,FALSE))),\"\")","v":0},null,null,null,null,null,0,null,0,null,null,null,null,null,"",null,""]
[null,null,null,null,null,null,null,null,null,null,"",null,"",0,null,null,"",null,null,null,0,0,"","",null,{"$f":"IF($Z$2=Defaults!$M$5,Cotton!B29,IF($Z$2=Defaults!$M$6,Corn!B29,IF($Z$2=Defaults!$M$7,Sorghum!B29,IF($Z$2=Defaults!$M$8,Soybean!B29,IF($Z$2=Defaults!$M$9,Rice!B29,IF($Z$2=Defaults!$M$10,Peanut!B29,IF($Z$2=Defaults!$M$11,Wheat!B29,IF($Z$2=Defaults!$M$12,Pasture!B29,\"\"))))))))","v":""},{"$f":"IF(C29=\"\",\"\",VLOOKUP(C29,Defaults!$T$3:$AE$13,4,FALSE))","v":""},{"$f":"IF(C29=\"\",\"\",IFERROR(VLOOKUP(C29,Defaults!$T$3:$AE$13,$Z$9,FALSE),\"\"))","v":""},1,null,{"$f":"IF(C29=\"\",\"\",VLOOKUP(C29,Defaults!$T$3:$V$13,2,FALSE))","v":""},{"$f":"IF(C29=\"\",\"\",ROUND(VLOOKUP(C29,Defaults!$T$3:$V$13,3,FALSE),2))","v":""},{"$f":"IFERROR(IF(LEFT($C$23,6)=\"Custom\",L29,L29*(1-VLOOKUP($C$23,Implements!$A$159:$D$166,4,FALSE))),\"\")","v":0},null,null,null,null,null,0,null,0,null,null,null,null,null,"",null,""]
[null,null,"Pasture Management",null,null,null,null,null,null,null,null,null,null,null,null,null,null,null,null,null,null,null,null,null,null,{"$f":"IF($Z$2=Defaults!$M$5,Cotton!B30,IF($Z$2=Defaults!$M$6,Corn!B30,IF($Z$2=Defaults!$M$7,Sorghum!B30,IF($Z$2=Defaults!$M$8,Soybean!B30,IF($Z$2=Defaults!$M$9,Rice!B30,IF($Z$2=Defaults!$M$10,Peanut!B30,IF($Z$2=Defaults!$M$11,Wheat!B30,IF($Z$2=Defaults!$M$12,Pasture!B30,\"\"))))))))","v":"Pasture Management"},null,null,null,null,null,null,null,null,null,null,null,null,null,null,null,null,null,null,null,null,null,null,null,null,"Insecticide - Defoliant/Fertilizer/Innoculant/Litter - Fungicide/Growth Regulator",null,null,null,null,null,null,null,null,null,"Insecticide - Defoliant/Fertilizer/Innoculant/Litter - Fungicide/Growth Regulator"]
[null,null,"No-Till Grain Drill 1",null,null,{"$f":"IF($L31=0,0,IF($C31=Defaults!$I$9,Implements!$AK$181,IF(C31=Defaults!$I$10,Implements!$AK$182,IF($C31=Defaults!$I$7,Implements!$AK$183,IF(C31=Defaults!$I$8,Implements!$AK$184,0)))))","v":5.0909090909090908},{"$f":"IF($L31=0,0,IFERROR(VLOOKUP($C31,Implements!$X$181:$AN$188,15,FALSE),0))","v":8.36},{"$f":"IF($L31=0,0,IFERROR(VLOOKUP($C31,Implements!$X$181:$AN$188,16,FALSE),0))","v":30.2},{"$f":"IF($L31=0,0,IFERROR(VLOOKUP($C31,Implements!$X$181:$AN$188,17,FALSE),0))","v":204.59987171510272},{"$f":"IF(OR(C31=\"\",L31=\"\",L31=0)=TRUE,\"\",IF(OR(C31=Defaults!$I$5,C31=Defaults!$I$6)=TRUE,$AT$4,IF(OR(C31=AV2,C31=AV3,C31=AV4,C31=AV5,C31=AV6,C31=AV7)=TRUE,ROUND(1/F31*(1*Inputs!$AA$13+($AI$8-1)*Inputs!$AA$15),2)+ROUND(G31*Inputs!$V$13/F31,2)+ROUND(H31*1/F31,2)+ROUND(I31/F31,2))))","v":52.459999999999994},{"$f":"IF(OR(C31=\"\",L31=\"\",L31=0)=TRUE,\"\",IF(OR(C31=Defaults!$I$5,C31=Defaults!$I$6)=TRUE,$AT$4,IF(OR(C31=AV2,C31=AV3,C31=AV4,C31=AV5,C31=AV6,C31=AV7)=TRUE,ROUND(1/F31*(1*Inputs!$AA$13+($AI$8-1)*Inputs!$AA$15),2)+ROUND(G31*Inputs!$V$13/F31,2)+ROUND(H31*1/F31,2)+ROUND(I31/F31,2))))","v":52.459999999999994},1,{"$f":"AB31","v":1},{"$f":"IF(C31=\"\",0,IF(L31=0,0,IF(L31=\"\",\"\",J31*L31)))","v":52.459999999999994},null,null,{"$f":"IF($V31=0,0,IF($C31=Defaults!$I$9,Implements!$AK$170,IF(C31=Defaults!$I$10,Implements!$AK$171,IF($C31=Defaults!$I$7,Implements!$AK$172,IF(C31=Defaults!$I$8,Implements!$AK$173,0)))))","v":5.2034181818181819},{"$f":"IF($V31=0,0,IFERROR(VLOOKUP($C31,Implements!$X$170:$AN$177,15,FALSE),0))","v":8.36},{"$f":"IF($V31=0,0,IFERROR(VLOOKUP($C31,Implements!$X$170:$AN$177,16,FALSE),0))","v":30.2},{"$f":"IF($V31=0,0,IFERROR(VLOOKUP($C31,Implements!$X$170:$AN$177,17,FALSE),0))","v":207.77558397783059},{"$f":"IF(OR(C31=\"\",V31=\"\",V31=0)=TRUE,\"\",IF(LEFT(C31,6)=\"Custom\",J31,ROUND(1/Q31*(1*Inputs!$AA$13+($AI$8-1)*Inputs!$AA$15),2)+ROUND(R31*Inputs!$V$13/Q31,2)+ROUND(S31*1/Q31,2)+ROUND(T31/Q31,2)))","v":51.94},{"$f":"+L31","v":1},{"$f":"IF(C31=\"\",\"\",IF(V31=0,0,IF(V31=\"\",\"\",U31*V31)))","v":51.94},{"$f":"IF(C31=\"\",\"\",W31-N31)","v":-0.51999999999999602},null,{"$f":"IF($Z$2=Defaults!$M$5,Cotton!B31,IF($Z$2=Defaults!$M$6,Corn!B31,IF($Z$2=Defaults!$M$7,Sorghum!B31,IF($Z$2=Defaults!$M$8,Soybean!B31,IF($Z$2=Defaults!$M$9,Rice!B31,IF($Z$2=Defaults!$M$10,Peanut!B31,IF($Z$2=Defaults!$M$11,Wheat!B31,IF($Z$2=Defaults!$M$12,Pasture!B31,\"\"))))))))","v":"No-Till Grain Drill 1"},null,{"$f":"IF(C31=\"\",\"\",IF($Z$2=Defaults!$M$8,VLOOKUP(C31,Defaults!$I$4:$J$10,2,FALSE),IF(OR($Z$2=Defaults!$M$9,$Z$2=Defaults!$M$11,$Z$2=Defaults!$M$12),VLOOKUP(C31,Defaults!$I$12:$J$16,2,FALSE),IF(OR($Z$2=Defaults!$M$5,$Z$2=Defaults!$M$6,$Z$2=Defaults!$M$7,$Z$2=Defaults!$M$10),VLOOKUP(C31,Defaults!$I$18:$J$22,2,FALSE)))))","v":1},0,{"$f":"IF(AB31=\"\",\"\",AB31*2)","v":2},null,null,{"$f":"+AB31","v":1},{"$f":"N31","v":52.459999999999994},{"$f":"ROUND(IFERROR(1/F31*(1*Inputs!$AA$13+($AI$7-1)*Inputs!$AA$15),0),2)*L31","v":3.47},{"$f":"ROUND(IFERROR(1/F31*G31*Inputs!$V$13,0),2)*L31","v":2.87},{"$f":"ROUND(IFERROR(1/F31*H31,0),2)*L31","v":5.93},{"$f":"ROUND(IFERROR(1/F31*I31,0),2)*L31","v":40.19},null,null,null,{"$f":"W31","v":51.94},{"$f":"ROUND(IFERROR(1/Q31*(1*Inputs!$AA$13+($AI$7-1)*Inputs!$AA$15),0),2)*V31","v":3.4},{"$f":"ROUND(IFERROR(1/Q31*R31*Inputs!$V$13,0),2)*V31","v":2.81},{"$f":"ROUND(IFERROR(1/Q31*S31,0),2)*V31","v":5.8},{"$f":"ROUND(IFERROR(1/Q31*T31,0),2)*V31","v":39.93},null,null,null,null,null,{"$f":"AZ11","v":"Cotton"},{"$f":"BA11","v":"Corn"},"Sorghum","Soybean","Rice","Peanut","Wheat","Est. Pasture or Hay",null,null,{"$f":"BJ11","v":"Cotton"},{"$f":"BK11","v":"Corn"},"Sorghum","Soybean","Rice","Peanut","Wheat","Est. Pasture or Hay"]
[null,null,"Seed",null,{"$f":"IF(C31=\"\",\"\",\"acre\")","v":"acre"},null,null,null,null,80,{"$f":"IF(OR(C32=\"\",L32=\"\",L32=0)=TRUE,\"\",IF(VLOOKUP($Z$2,Defaults!$M$4:$R$12,6,FALSE)=\"\",\"\",VLOOKUP($Z$2,Defaults!$M$4:$R$12,6,FALSE)))","v":80},1,1,{"$f":"IF(C32=\"\",0,IF(L32=0,0,IF(L32=\"\",\"\",J32*L32)))","v":80},null,null,{"$f":"IF(L32>0,ABS(V32-L32),\"\")","v":2.3499999999999965E-2},null,null,null,{"$f":"J32","v":80},{"$f":"IF(AG32=0,0,AG32)","v":0.97650000000000003},{"$f":"IF(C32=\"\",0,IF(V32=0,0,IF(V32=\"\",\"\",U32*V32)))","v":78.12},-1.8799999999999955,null,{"$f":"IF($Z$2=Defaults!$M$5,Cotton!B32,IF($Z$2=Defaults!$M$6,Corn!B32,IF($Z$2=Defaults!$M$7,Sorghum!B32,IF($Z$2=Defaults!$M$8,Soybean!B32,IF($Z$2=Defaults!$M$9,Rice!B32,IF($Z$2=Defaults!$M$10,Peanut!B32,IF($Z$2=Defaults!$M$11,Wheat!B32,IF($Z$2=Defaults!$M$12,Pasture!B32,\"\"))))))))","v":"Seed"},{"$f":"VLOOKUP(Z2,Defaults!$M$5:$R$12,6,FALSE)","v":80},{"$f":"IF($C$31=\"\",\"\",1)","v":1},0,null,null,null,{"$f":"IFERROR(IF(LEFT($C$31,6)=\"Custom\",L32,L32*(1-VLOOKUP($C$31,Implements!$A$159:$D$166,4,FALSE))),\"\")","v":0.97650000000000003},null,null,null,null,null,{"$f":"N32","v":80},{"$f":"N32","v":80},null,null,null,null,null,null,{"$f":"W32","v":78.12},{"$f":"W32","v":78.12}]
[null,null,null,null,null,{"$f":"IF($L33=0,0,IF(C33=Defaults!$I$27,Implements!$AK$185,IF($C33=Defaults!$I$28,Implements!$AK$186,0)))","v":0},{"$f":"IF($L33=0,0,IFERROR(VLOOKUP($C33,Implements!$X$181:$AN$188,15,FALSE),0))","v":0},{"$f":"IF($L33=0,0,IFERROR(VLOOKUP($C33,Implements!$X$181:$AN$188,16,FALSE),0))","v":0},{"$f":"IF($L33=0,0,IFERROR(VLOOKUP($C33,Implements!$X$181:$AN$188,17,FALSE),0))","v":0},{"$f":"IF(OR(C33=\"\",L33=\"\",L33=0)=TRUE,\"\",IF(C33=Defaults!$I$40,VLOOKUP(C33,Defaults!$I$39:$K$41,3,FALSE),ROUND(1/F33*(1*Inputs!$AA$13+($AI$7-1)*Inputs!$AA$15),2)+ROUND(G33*Inputs!$V$13/F33,2)+ROUND(H33/F33,2)+ROUND(I33/F33,2)))","v":""},{"$f":"IF(OR(C33=\"\",L33=\"\",L33=0)=TRUE,\"\",IF(C33=Defaults!$I$40,VLOOKUP(C33,Defaults!$I$39:$K$41,3,FALSE),ROUND(1/F33*(1*Inputs!$AA$13+($AI$7-1)*Inputs!$AA$15),2)+ROUND(G33*Inputs!$V$13/F33,2)+ROUND(H33/F33,2)+ROUND(I33/F33,2)))","v":""},null,"",0,null,null,{"$f":"IF($V33=0,0,IF(C33=Defaults!$I$27,Implements!$AK$174,IF($C33=Defaults!$I$28,Implements!$AK$175,0)))","v":0},{"$f":"IF($V33=0,0,IFERROR(VLOOKUP($C33,Implements!$X$170:$AN$177,15,FALSE),0))","v":0},{"$f":"IF($V33=0,0,IFERROR(VLOOKUP($C33,Implements!$X$170:$AN$177,16,FALSE),0))","v":0},{"$f":"IF($V33=0,0,IFERROR(VLOOKUP($C33,Implements!$X$170:$AN$177,17,FALSE),0))","v":0},{"$f":"IF(OR(C33=\"\",V33=\"\",V33=0)=TRUE,\"\",IF(LEFT(C33,6)=\"Custom\",J33,ROUND(1/Q33*(1*Inputs!$AA$13+($AI$7-1)*Inputs!$AA$15),2)+ROUND(R33*Inputs!$V$13/Q33,2)+ROUND(S33/Q33,2)+ROUND(T33/Q33,2)))","v":""},{"$f":"+L33","v":0},"","",null,{"$f":"IF($Z$2=Defaults!$M$5,Cotton!B33,IF($Z$2=Defaults!$M$6,Corn!B33,IF($Z$2=Defaults!$M$7,Sorghum!B33,IF($Z$2=Defaults!$M$8,Soybean!B33,IF($Z$2=Defaults!$M$9,Rice!B33,IF($Z$2=Defaults!$M$10,Peanut!B33,IF($Z$2=Defaults!$M$11,Wheat!B33,IF($Z$2=Defaults!$M$12,Pasture!B33,\"\"))))))))","v":""},null,{"$f":"IF(C33=\"\",\"\",IF(OR($Z$2=Defaults!$M$5,$Z$2=Defaults!$M$6,$Z$2=Defaults!$M$7,$Z$2=Defaults!$M$8,$Z$2=Defaults!$M$9,$Z$2=Defaults!$M$10)=TRUE,HLOOKUP($Z$2,Defaults!X20:AE30,11,FALSE),\"\"))","v":""},0,{"$f":"IF(AB33=\"\",\"\",AB33*2)","v":""},null,null,{"$f":"+AB33","v":""},{"$f":"N33","v":0},{"$f":"ROUND(IFERROR(1/F33*(1*Inputs!$AA$13+($AI$7-1)*Inputs!$AA$15),0),2)*L33","v":0},{"$f":"ROUND(IFERROR(1/F33*G33*Inputs!$V$13,0),2)*L33","v":0},{"$f":"ROUND(IFERROR(1/F33*H33,0),2)*L33","v":0},{"$f":"ROUND(IFERROR(1/F33*I33,0),2)*L33","v":0},null,null,null,{"$f":"W33","v":""},{"$f":"ROUND(IFERROR(1/Q33*(1*Inputs!$AA$13+($AI$7-1)*Inputs!$AA$15),0),2)*V33","v":0},{"$f":"ROUND(IFERROR(1/Q33*R33*Inputs!$V$13,0),2)*V33","v":0},{"$f":"ROUND(IFERROR(1/Q33*S33,0),2)*V33","v":0},{"$f":"ROUND(IFERROR(1/Q33*T33,0),2)*V33","v":0},null,null,null,null,"Insecticide",null,null,null,null,null,null,null,null,null,"Insecticide"]
[null,null,null,null,null,null,null,null,null,null,{"$f":"IF(C34=\"\",\"\",ROUND(IF(E34=AE34,AF34,IF(AE34=$AC$2,AF34*VLOOKUP(E34,$AA$2:$AB$4,2,FALSE),IF(AE34=$AF$2,AF34*VLOOKUP(E34,$AD$2:$AE$3,2,FALSE),IF(AE34=$AI$2,AF34/VLOOKUP(E34,$AG$2:$AH$2,2,FALSE),IF(AE34=$AL$2,AF34*VLOOKUP(E34,$AJ$2:$AK$2,2,FALSE),IF(AE34=$AO$2,AF34/VLOOKUP(E34,$AM$2:$AN$2,2,FALSE),IF(AE34=$AR$2,AF34*VLOOKUP(E34,$AP$2:$AQ$3,2,FALSE)))))))),2))","v":""},null,"",0,null,null,{"$f":"IF(L34>0,ABS(V34-L34),\"\")","v":""},null,null,null,{"$f":"J34","v":0},{"$f":"IF(AG34=0,0,AG34)","v":""},"","",null,{"$f":"IF($Z$2=Defaults!$M$5,Cotton!B34,IF($Z$2=Defaults!$M$6,Corn!B34,IF($Z$2=Defaults!$M$7,Sorghum!B34,IF($Z$2=Defaults!$M$8,Soybean!B34,IF($Z$2=Defaults!$M$9,Rice!B34,IF($Z$2=Defaults!$M$10,Peanut!B34,IF($Z$2=Defaults!$M$11,Wheat!B34,IF($Z$2=Defaults!$M$12,Pasture!B34,\"\"))))))))","v":""},{"$f":"IF(C34=\"\",\"\",HLOOKUP($Z$2,$AZ$31:$BG$42,4,FALSE))","v":""},{"$f":"IF(C34=\"\",\"\",HLOOKUP($Z$2,$BJ$31:$BQ$42,4,FALSE))","v":""},0,null,{"$f":"IF(C34=\"\",\"\",IF(OR($Z$2=Defaults!$M$5,$Z$2=Defaults!$M$6,$Z$2=Defaults!$M$7,$Z$2=Defaults!$M$8,$Z$2=Defaults!$M$9,$Z$2=Defaults!$M$10)=TRUE,VLOOKUP(C34,Defaults!$T$21:$AE$29,2,FALSE),\"\"))","v":""},{"$f":"IF(C34=\"\",\"\",IF(OR($Z$2=Defaults!$M$5,$Z$2=Defaults!$M$6,$Z$2=Defaults!$M$7,$Z$2=Defaults!$M$8,$Z$2=Defaults!$M$9,$Z$2=Defaults!$M$10)=TRUE,ROUND(VLOOKUP(C34,Defaults!$T$21:$AC$29,3,FALSE),2),\"\"))","v":""},{"$f":"IFERROR(IF(LEFT($C$33,6)=\"Custom\",L34,L34*(1-VLOOKUP($C$33,Implements!$A$159:$D$166,4,FALSE))),\"\")","v":""},null,null,null,null,null,{"$f":"N34","v":0},null,{"$f":"N34","v":0},null,null,null,null,null,{"$f":"W34","v":""},null,{"$f":"W34","v":""},null,{"$f":"IF($C34=\"\",\"\",$C34)","v":""},{"$f":"IF($C34=\"\",\"\",VLOOKUP(C34,Defaults!$T$21:$AE$29,4,FALSE))","v":""},{"$f":"IF($C34=\"\",\"\",VLOOKUP(C34,Defaults!$T$21:$AE$29,4,FALSE))","v":""},{"$f":"IF($C34=\"\",\"\",VLOOKUP(C34,Defaults!$T$21:$AE$29,4,FALSE))","v":""},{"$f":"IF($C34=\"\",\"\",VLOOKUP(C34,Defaults!$T$21:$AE$29,4,FALSE))","v":""},{"$f":"IF($C34=\"\",\"\",VLOOKUP(C34,Defaults!$T$21:$AE$29,4,FALSE))","v":""},{"$f":"IF($C34=\"\",\"\",VLOOKUP(C34,Defaults!$T$21:$AE$29,4,FALSE))","v":""},null,null,null,{"$f":"IF($C34=\"\",\"\",$C34)","v":""},{"$f":"IF($C34=\"\",\"\",IFERROR(VLOOKUP(C34,Defaults!$T$21:$AE$29,5,FALSE),\"\"))","v":""},{"$f":"IF($C34=\"\",\"\",IFERROR(VLOOKUP(C34,Defaults!$T$21:$AE$29,6,FALSE),\"\"))","v":""},{"$f":"IF($C34=\"\",\"\",IFERROR(VLOOKUP(C34,Defaults!$T$21:$AE$29,7,FALSE),\"\"))","v":""},{"$f":"IF($C34=\"\",\"\",IFERROR(VLOOKUP(C34,Defaults!$T$21:$AE$29,8,FALSE),\"\"))","v":""},{"$f":"IF($C34=\"\",\"\",IFERROR(VLOOKUP(C34,Defaults!$T$21:$AE$29,9,FALSE),\"\"))","v":""},{"$f":"IF($C34=\"\",\"\",IFERROR(VLOOKUP(C34,Defaults!$T$21:$AE$29,10,FALSE),\"\"))","v":""}]
[null,null,null,null,null,null,null,null,null,null,{"$f":"IF(C35=\"\",\"\",ROUND(IF(E35=AE35,AF35,IF(AE35=$AC$2,AF35*VLOOKUP(E35,$AA$2:$AB$4,2,FALSE),IF(AE35=$AF$2,AF35*VLOOKUP(E35,$AD$2:$AE$3,2,FALSE),IF(AE35=$AI$2,AF35/VLOOKUP(E35,$AG$2:$AH$2,2,FALSE),IF(AE35=$AL$2,AF35*VLOOKUP(E35,$AJ$2:$AK$2,2,FALSE),IF(AE35=$AO$2,AF35/VLOOKUP(E35,$AM$2:$AN$2,2,FALSE),IF(AE35=$AR$2,AF35*VLOOKUP(E35,$AP$2:$AQ$3,2,FALSE)))))))),2))","v":""},null,"",0,null,null,{"$f":"IF(L35>0,ABS(V35-L35),\"\")","v":""},null,null,null,{"$f":"J35","v":0},{"$f":"IF(AG35=0,0,AG35)","v":""},"","",null,{"$f":"IF($Z$2=Defaults!$M$5,Cotton!B35,IF($Z$2=Defaults!$M$6,Corn!B35,IF($Z$2=Defaults!$M$7,Sorghum!B35,IF($Z$2=Defaults!$M$8,Soybean!B35,IF($Z$2=Defaults!$M$9,Rice!B35,IF($Z$2=Defaults!$M$10,Peanut!B35,IF($Z$2=Defaults!$M$11,Wheat!B35,IF($Z$2=Defaults!$M$12,Pasture!B35,\"\"))))))))","v":""},{"$f":"IF(C35=\"\",\"\",HLOOKUP($Z$2,$AZ$31:$BG$42,5,FALSE))","v":""},{"$f":"IF(C35=\"\",\"\",HLOOKUP($Z$2,$BJ$31:$BQ$42,5,FALSE))","v":""},0,null,{"$f":"IF(C35=\"\",\"\",IF(OR($Z$2=Defaults!$M$5,$Z$2=Defaults!$M$6,$Z$2=Defaults!$M$7,$Z$2=Defaults!$M$8,$Z$2=Defaults!$M$9,$Z$2=Defaults!$M$10)=TRUE,VLOOKUP(C35,Defaults!$T$21:$AE$29,2,FALSE),\"\"))","v":""},{"$f":"IF(C35=\"\",\"\",IF(OR($Z$2=Defaults!$M$5,$Z$2=Defaults!$M$6,$Z$2=Defaults!$M$7,$Z$2=Defaults!$M$8,$Z$2=Defaults!$M$9,$Z$2=Defaults!$M$10)=TRUE,ROUND(VLOOKUP(C35,Defaults!$T$21:$AC$29,3,FALSE),2),\"\"))","v":""},{"$f":"IFERROR(IF(LEFT($C$33,6)=\"Custom\",L35,L35*(1-VLOOKUP($C$33,Implements!$A$159:$D$166,4,FALSE))),\"\")","v":""},null,null,null,null,null,{"$f":"N35","v":0},null,{"$f":"N35","v":0},null,null,null,null,null,{"$f":"W35","v":""},null,{"$f":"W35","v":""},null,"",{"$f":"IF($C35=\"\",\"\",VLOOKUP(C35,Defaults!$T$21:$AE$29,4,FALSE))","v":""},{"$f":"IF($C35=\"\",\"\",VLOOKUP(C35,Defaults!$T$21:$AE$29,4,FALSE))","v":""},{"$f":"IF($C35=\"\",\"\",VLOOKUP(C35,Defaults!$T$21:$AE$29,4,FALSE))","v":""},{"$f":"IF($C35=\"\",\"\",VLOOKUP(C35,Defaults!$T$21:$AE$29,4,FALSE))","v":""},{"$f":"IF($C35=\"\",\"\",VLOOKUP(C35,Defaults!$T$21:$AE$29,4,FALSE))","v":""},{"$f":"IF($C35=\"\",\"\",VLOOKUP(C35,Defaults!$T$21:$AE$29,4,FALSE))","v":""},null,null,null,{"$f":"IF($C35=\"\",\"\",$C35)","v":""},{"$f":"IF($C35=\"\",\"\",IFERROR(VLOOKUP(C35,Defaults!$T$21:$AE$29,5,FALSE),\"\"))","v":""},{"$f":"IF($C35=\"\",\"\",IFERROR(VLOOKUP(C35,Defaults!$T$21:$AE$29,6,FALSE),\"\"))","v":""},{"$f":"IF($C35=\"\",\"\",IFERROR(VLOOKUP(C35,Defaults!$T$21:$AE$29,7,FALSE),\"\"))","v":""},{"$f":"IF($C35=\"\",\"\",IFERROR(VLOOKUP(C35,Defaults!$T$21:$AE$29,8,FALSE),\"\"))","v":""},{"$f":"IF($C35=\"\",\"\",IFERROR(VLOOKUP(C35,Defaults!$T$21:$AE$29,9,FALSE),\"\"))","v":""},{"$f":"IF($C35=\"\",\"\",IFERROR(VLOOKUP(C35,Defaults!$T$21:$AE$29,10,FALSE),\"\"))","v":""}]
[null,null,null,null,null,null,null,null,null,null,{"$f":"IF(C36=\"\",\"\",ROUND(IF(E36=AE36,AF36,IF(AE36=$AC$2,AF36*VLOOKUP(E36,$AA$2:$AB$4,2,FALSE),IF(AE36=$AF$2,AF36*VLOOKUP(E36,$AD$2:$AE$3,2,FALSE),IF(AE36=$AI$2,AF36/VLOOKUP(E36,$AG$2:$AH$2,2,FALSE),IF(AE36=$AL$2,AF36*VLOOKUP(E36,$AJ$2:$AK$2,2,FALSE),IF(AE36=$AO$2,AF36/VLOOKUP(E36,$AM$2:$AN$2,2,FALSE),IF(AE36=$AR$2,AF36*VLOOKUP(E36,$AP$2:$AQ$3,2,FALSE)))))))),2))","v":""},null,"",0,null,null,{"$f":"IF(L36>0,ABS(V36-L36),\"\")","v":""},null,null,null,{"$f":"J36","v":0},{"$f":"IF(AG36=0,0,AG36)","v":""},"","",null,{"$f":"IF($Z$2=Defaults!$M$5,Cotton!B36,IF($Z$2=Defaults!$M$6,Corn!B36,IF($Z$2=Defaults!$M$7,Sorghum!B36,IF($Z$2=Defaults!$M$8,Soybean!B36,IF($Z$2=Defaults!$M$9,Rice!B36,IF($Z$2=Defaults!$M$10,Peanut!B36,IF($Z$2=Defaults!$M$11,Wheat!B36,IF($Z$2=Defaults!$M$12,Pasture!B36,\"\"))))))))","v":""},{"$f":"IF(C36=\"\",\"\",HLOOKUP($Z$2,$AZ$31:$BG$42,6,FALSE))","v":""},{"$f":"IF(C36=\"\",\"\",HLOOKUP($Z$2,$BJ$31:$BQ$42,6,FALSE))","v":""},0,null,{"$f":"IF(C36=\"\",\"\",IF(OR($Z$2=Defaults!$M$5,$Z$2=Defaults!$M$6,$Z$2=Defaults!$M$7,$Z$2=Defaults!$M$8,$Z$2=Defaults!$M$9,$Z$2=Defaults!$M$10)=TRUE,VLOOKUP(C36,Defaults!$T$21:$AE$29,2,FALSE),\"\"))","v":""},{"$f":"IF(C36=\"\",\"\",IF(OR($Z$2=Defaults!$M$5,$Z$2=Defaults!$M$6,$Z$2=Defaults!$M$7,$Z$2=Defaults!$M$8,$Z$2=Defaults!$M$9,$Z$2=Defaults!$M$10)=TRUE,ROUND(VLOOKUP(C36,Defaults!$T$21:$AC$29,3,FALSE),2),\"\"))","v":""},{"$f":"IFERROR(IF(LEFT($C$33,6)=\"Custom\",L36,L36*(1-VLOOKUP($C$33,Implements!$A$159:$D$166,4,FALSE))),\"\")","v":""},null,null,null,null,null,{"$f":"N36","v":0},null,{"$f":"N36","v":0},null,null,null,null,null,{"$f":"W36","v":""},null,{"$f":"W36","v":""},null,"",{"$f":"IF($C36=\"\",\"\",VLOOKUP(C36,Defaults!$T$21:$AE$29,4,FALSE))","v":""},{"$f":"IF($C36=\"\",\"\",VLOOKUP(C36,Defaults!$T$21:$AE$29,4,FALSE))","v":""},{"$f":"IF($C36=\"\",\"\",VLOOKUP(C36,Defaults!$T$21:$AE$29,4,FALSE))","v":""},{"$f":"IF($C36=\"\",\"\",VLOOKUP(C36,Defaults!$T$21:$AE$29,4,FALSE))","v":""},{"$f":"IF($C36=\"\",\"\",VLOOKUP(C36,Defaults!$T$21:$AE$29,4,FALSE))","v":""},{"$f":"IF($C36=\"\",\"\",VLOOKUP(C36,Defaults!$T$21:$AE$29,4,FALSE))","v":""},null,null,null,{"$f":"IF($C36=\"\",\"\",$C36)","v":""},{"$f":"IF($C36=\"\",\"\",IFERROR(VLOOKUP(C36,Defaults!$T$21:$AE$29,5,FALSE),\"\"))","v":""},{"$f":"IF($C36=\"\",\"\",IFERROR(VLOOKUP(C36,Defaults!$T$21:$AE$29,6,FALSE),\"\"))","v":""},{"$f":"IF($C36=\"\",\"\",IFERROR(VLOOKUP(C36,Defaults!$T$21:$AE$29,7,FALSE),\"\"))","v":""},{"$f":"IF($C36=\"\",\"\",IFERROR(VLOOKUP(C36,Defaults!$T$21:$AE$29,8,FALSE),\"\"))","v":""},{"$f":"IF($C36=\"\",\"\",IFERROR(VLOOKUP(C36,Defaults!$T$21:$AE$29,9,FALSE),\"\"))","v":""},{"$f":"IF($C36=\"\",\"\",IFERROR(VLOOKUP(C36,Defaults!$T$21:$AE$29,10,FALSE),\"\"))","v":""}]
[null,null,null,null,null,null,null,null,null,null,{"$f":"IF(C37=\"\",\"\",ROUND(IF(E37=AE37,AF37,IF(AE37=$AC$2,AF37*VLOOKUP(E37,$AA$2:$AB$4,2,FALSE),IF(AE37=$AF$2,AF37*VLOOKUP(E37,$AD$2:$AE$3,2,FALSE),IF(AE37=$AI$2,AF37/VLOOKUP(E37,$AG$2:$AH$2,2,FALSE),IF(AE37=$AL$2,AF37*VLOOKUP(E37,$AJ$2:$AK$2,2,FALSE),IF(AE37=$AO$2,AF37/VLOOKUP(E37,$AM$2:$AN$2,2,FALSE),IF(AE37=$AR$2,AF37*VLOOKUP(E37,$AP$2:$AQ$3,2,FALSE)))))))),2))","v":""},null,"",0,null,null,{"$f":"IF(L37>0,ABS(V37-L37),\"\")","v":""},null,null,null,{"$f":"J37","v":0},{"$f":"IF(AG37=0,0,AG37)","v":""},"","",null,{"$f":"IF($Z$2=Defaults!$M$5,Cotton!B37,IF($Z$2=Defaults!$M$6,Corn!B37,IF($Z$2=Defaults!$M$7,Sorghum!B37,IF($Z$2=Defaults!$M$8,Soybean!B37,IF($Z$2=Defaults!$M$9,Rice!B37,IF($Z$2=Defaults!$M$10,Peanut!B37,IF($Z$2=Defaults!$M$11,Wheat!B37,IF($Z$2=Defaults!$M$12,Pasture!B37,\"\"))))))))","v":""},{"$f":"IF(C37=\"\",\"\",HLOOKUP($Z$2,$AZ$31:$BG$42,7,FALSE))","v":""},{"$f":"IF(C37=\"\",\"\",HLOOKUP($Z$2,$BJ$31:$BQ$42,7,FALSE))","v":""},0,null,{"$f":"IF(C37=\"\",\"\",IF(OR($Z$2=Defaults!$M$5,$Z$2=Defaults!$M$6,$Z$2=Defaults!$M$7,$Z$2=Defaults!$M$8,$Z$2=Defaults!$M$9,$Z$2=Defaults!$M$10)=TRUE,VLOOKUP(C37,Defaults!$T$21:$AE$29,2,FALSE),\"\"))","v":""},{"$f":"IF(C37=\"\",\"\",IF(OR($Z$2=Defaults!$M$5,$Z$2=Defaults!$M$6,$Z$2=Defaults!$M$7,$Z$2=Defaults!$M$8,$Z$2=Defaults!$M$9,$Z$2=Defaults!$M$10)=TRUE,ROUND(VLOOKUP(C37,Defaults!$T$21:$AC$29,3,FALSE),2),\"\"))","v":""},{"$f":"IFERROR(IF(LEFT($C$33,6)=\"Custom\",L37,L37*(1-VLOOKUP($C$33,Implements!$A$159:$D$166,4,FALSE))),\"\")","v":""},null,null,null,null,null,{"$f":"N37","v":0},null,{"$f":"N37","v":0},null,null,null,null,null,{"$f":"W37","v":""},null,{"$f":"W37","v":""},null,"",{"$f":"IF($C37=\"\",\"\",VLOOKUP(C37,Defaults!$T$21:$AE$29,4,FALSE))","v":""},{"$f":"IF($C37=\"\",\"\",VLOOKUP(C37,Defaults!$T$21:$AE$29,4,FALSE))","v":""},{"$f":"IF($C37=\"\",\"\",VLOOKUP(C37,Defaults!$T$21:$AE$29,4,FALSE))","v":""},{"$f":"IF($C37=\"\",\"\",VLOOKUP(C37,Defaults!$T$21:$AE$29,4,FALSE))","v":""},{"$f":"IF($C37=\"\",\"\",VLOOKUP(C37,Defaults!$T$21:$AE$29,4,FALSE))","v":""},{"$f":"IF($C37=\"\",\"\",VLOOKUP(C37,Defaults!$T$21:$AE$29,4,FALSE))","v":""},null,null,null,{"$f":"IF($C37=\"\",\"\",$C37)","v":""},{"$f":"IF($C37=\"\",\"\",IFERROR(VLOOKUP(C37,Defaults!$T$21:$AE$29,5,FALSE),\"\"))","v":""},{"$f":"IF($C37=\"\",\"\",IFERROR(VLOOKUP(C37,Defaults!$T$21:$AE$29,6,FALSE),\"\"))","v":""},{"$f":"IF($C37=\"\",\"\",IFERROR(VLOOKUP(C37,Defaults!$T$21:$AE$29,7,FALSE),\"\"))","v":""},{"$f":"IF($C37=\"\",\"\",IFERROR(VLOOKUP(C37,Defaults!$T$21:$AE$29,8,FALSE),\"\"))","v":""},{"$f":"IF($C37=\"\",\"\",IFERROR(VLOOKUP(C37,Defaults!$T$21:$AE$29,9,FALSE),\"\"))","v":""},{"$f":"IF($C37=\"\",\"\",IFERROR(VLOOKUP(C37,Defaults!$T$21:$AE$29,10,FALSE),\"\"))","v":""}]
[null,null,null,null,null,null,null,null,null,null,{"$f":"IF(C38=\"\",\"\",ROUND(IF(E38=AE38,AF38,IF(AE38=$AC$2,AF38*VLOOKUP(E38,$AA$2:$AB$4,2,FALSE),IF(AE38=$AF$2,AF38*VLOOKUP(E38,$AD$2:$AE$3,2,FALSE),IF(AE38=$AI$2,AF38/VLOOKUP(E38,$AG$2:$AH$2,2,FALSE),IF(AE38=$AL$2,AF38*VLOOKUP(E38,$AJ$2:$AK$2,2,FALSE),IF(AE38=$AO$2,AF38/VLOOKUP(E38,$AM$2:$AN$2,2,FALSE),IF(AE38=$AR$2,AF38*VLOOKUP(E38,$AP$2:$AQ$3,2,FALSE)))))))),2))","v":""},null,"",0,null,null,{"$f":"IF(L38>0,ABS(V38-L38),\"\")","v":""},null,null,null,{"$f":"J38","v":0},{"$f":"IF(AG38=0,0,AG38)","v":""},"","",null,{"$f":"IF($Z$2=Defaults!$M$5,Cotton!B38,IF($Z$2=Defaults!$M$6,Corn!B38,IF($Z$2=Defaults!$M$7,Sorghum!B38,IF($Z$2=Defaults!$M$8,Soybean!B38,IF($Z$2=Defaults!$M$9,Rice!B38,IF($Z$2=Defaults!$M$10,Peanut!B38,IF($Z$2=Defaults!$M$11,Wheat!B38,IF($Z$2=Defaults!$M$12,Pasture!B38,\"\"))))))))","v":""},{"$f":"IF(C38=\"\",\"\",HLOOKUP($Z$2,$AZ$31:$BG$42,8,FALSE))","v":""},{"$f":"IF(C38=\"\",\"\",HLOOKUP($Z$2,$BJ$31:$BQ$42,8,FALSE))","v":""},0,null,{"$f":"IF(C38=\"\",\"\",IF(OR($Z$2=Defaults!$M$5,$Z$2=Defaults!$M$6,$Z$2=Defaults!$M$7,$Z$2=Defaults!$M$8,$Z$2=Defaults!$M$9,$Z$2=Defaults!$M$10)=TRUE,VLOOKUP(C38,Defaults!$T$21:$AE$29,2,FALSE),\"\"))","v":""},{"$f":"IF(C38=\"\",\"\",IF(OR($Z$2=Defaults!$M$5,$Z$2=Defaults!$M$6,$Z$2=Defaults!$M$7,$Z$2=Defaults!$M$8,$Z$2=Defaults!$M$9,$Z$2=Defaults!$M$10)=TRUE,ROUND(VLOOKUP(C38,Defaults!$T$21:$AC$29,3,FALSE),2),\"\"))","v":""},{"$f":"IFERROR(IF(LEFT($C$33,6)=\"Custom\",L38,L38*(1-VLOOKUP($C$33,Implements!$A$159:$D$166,4,FALSE))),\"\")","v":""},null,null,null,null,null,{"$f":"N38","v":0},null,{"$f":"N38","v":0},null,null,null,null,null,{"$f":"W38","v":""},null,{"$f":"W38","v":""},null,"",{"$f":"IF($C38=\"\",\"\",VLOOKUP(C38,Defaults!$T$21:$AE$29,4,FALSE))","v":""},{"$f":"IF($C38=\"\",\"\",VLOOKUP(C38,Defaults!$T$21:$AE$29,4,FALSE))","v":""},{"$f":"IF($C38=\"\",\"\",VLOOKUP(C38,Defaults!$T$21:$AE$29,4,FALSE))","v":""},{"$f":"IF($C38=\"\",\"\",VLOOKUP(C38,Defaults!$T$21:$AE$29,4,FALSE))","v":""},{"$f":"IF($C38=\"\",\"\",VLOOKUP(C38,Defaults!$T$21:$AE$29,4,FALSE))","v":""},{"$f":"IF($C38=\"\",\"\",VLOOKUP(C38,Defaults!$T$21:$AE$29,4,FALSE))","v":""},null,null,null,{"$f":"IF($C38=\"\",\"\",$C38)","v":""},{"$f":"IF($C38=\"\",\"\",IFERROR(VLOOKUP(C38,Defaults!$T$21:$AE$29,5,FALSE),\"\"))","v":""},{"$f":"IF($C38=\"\",\"\",IFERROR(VLOOKUP(C38,Defaults!$T$21:$AE$29,6,FALSE),\"\"))","v":""},{"$f":"IF($C38=\"\",\"\",IFERROR(VLOOKUP(C38,Defaults!$T$21:$AE$29,7,FALSE),\"\"))","v":""},{"$f":"IF($C38=\"\",\"\",IFERROR(VLOOKUP(C38,Defaults!$T$21:$AE$29,8,FALSE),\"\"))","v":""},{"$f":"IF($C38=\"\",\"\",IFERROR(VLOOKUP(C38,Defaults!$T$21:$AE$29,9,FALSE),\"\"))","v":""},{"$f":"IF($C38=\"\",\"\",IFERROR(VLOOKUP(C38,Defaults!$T$21:$AE$29,10,FALSE),\"\"))","v":""}]
[null,null,"Manure Spreader",null,null,{"$f":"IF($L39=0,0,IF(C39=Defaults!$I$27,Implements!$AK$185,IF($C39=Defaults!$I$28,Implements!$AK$186,IF($C39=Defaults!$I$37,Implements!$AK$187,IF($C39=Defaults!$I$51,Implements!$AK$188,0)))))","v":5.454545454545455},{"$f":"IF($L39=0,0,IFERROR(VLOOKUP($C39,Implements!$X$181:$AN$188,15,FALSE),0))","v":8.36},{"$f":"IF($L39=0,0,IFERROR(VLOOKUP($C39,Implements!$X$181:$AN$188,16,FALSE),0))","v":12.906975000000001},{"$f":"IF($L39=0,0,IFERROR(VLOOKUP($C39,Implements!$X$181:$AN$188,17,FALSE),0))","v":116.09010109926371},{"$f":"IF(OR(C39=\"\",L39=\"\",L39=0)=TRUE,\"\",IF(OR(C39=Defaults!$I$25,C39=Defaults!$I$26)=TRUE,VLOOKUP(C39,Defaults!$I$24:$K$28,3,FALSE),IF(C39=Defaults!$I$54,VLOOKUP(C39,Defaults!$I$53:$K$56,3,FALSE),IF(C39=Defaults!$I$45,VLOOKUP(C39,Defaults!$I$44:$K$47,3,FALSE),IF(C39=Defaults!$I$50,VLOOKUP(C39,Defaults!$I$49:$K$51,3,FALSE),ROUND(1/F39*(1*Inputs!$AA$13+($AI$7-1)*Inputs!$AA$15),2)+ROUND(G39*Inputs!$V$13/F39,2)+ROUND(H39/F39,2)+ROUND(I39/F39,2))))))","v":29.57},{"$f":"IF(OR(C39=\"\",L39=\"\",L39=0)=TRUE,\"\",IF(OR(C39=Defaults!$I$25,C39=Defaults!$I$26)=TRUE,VLOOKUP(C39,Defaults!$I$24:$K$28,3,FALSE),IF(C39=Defaults!$I$54,VLOOKUP(C39,Defaults!$I$53:$K$56,3,FALSE),IF(C39=Defaults!$I$45,VLOOKUP(C39,Defaults!$I$44:$K$47,3,FALSE),IF(C39=Defaults!$I$50,VLOOKUP(C39,Defaults!$I$49:$K$51,3,FALSE),ROUND(1/F39*(1*Inputs!$AA$13+($AI$7-1)*Inputs!$AA$15),2)+ROUND(G39*Inputs!$V$13/F39,2)+ROUND(H39/F39,2)+ROUND(I39/F39,2))))))","v":29.57},1,1,29.57,null,null,{"$f":"IF($V39=0,0,IF(C39=Defaults!$I$27,Implements!$AK$174,IF($C39=Defaults!$I$28,Implements!$AK$175,IF($C39=Defaults!$I$37,Implements!$AK$176,IF($C39=Defaults!$I$51,Implements!$AK$177,0)))))","v":5.5750909090909095},{"$f":"IF($V39=0,0,IFERROR(VLOOKUP($C39,Implements!$X$170:$AN$177,15,FALSE),0))","v":8.36},{"$f":"IF($V39=0,0,IFERROR(VLOOKUP($C39,Implements!$X$170:$AN$177,16,FALSE),0))","v":12.906975000000001},{"$f":"IF($V39=0,0,IFERROR(VLOOKUP($C39,Implements!$X$170:$AN$177,17,FALSE),0))","v":117.30974743138157},{"$f":"IF(OR(C39=\"\",V39=\"\",V39=0)=TRUE,\"\",IF(LEFT(C39,6)=\"Custom\",J39,ROUND(1/Q39*(1*Inputs!$AA$13+($AI$7-1)*Inputs!$AA$15),2)+ROUND(R39*Inputs!$V$13/Q39,2)+ROUND(S39/Q39,2)+ROUND(T39/Q39,2)))","v":29.15},{"$f":"+L39","v":1},29.15,-0.42000000000000171,null,{"$f":"IF($Z$2=Defaults!$M$5,Cotton!B39,IF($Z$2=Defaults!$M$6,Corn!B39,IF($Z$2=Defaults!$M$7,Sorghum!B39,IF($Z$2=Defaults!$M$8,Soybean!B39,IF($Z$2=Defaults!$M$9,Rice!B39,IF($Z$2=Defaults!$M$10,Peanut!B39,IF($Z$2=Defaults!$M$11,Wheat!B39,IF($Z$2=Defaults!$M$12,Pasture!B39,\"\"))))))))","v":"Manure Spreader"},null,{"$f":"IF(C39=\"\",\"\",IF($Z$2=Defaults!$M$5,VLOOKUP(C39,Defaults!$I$53:$J$56,2,FALSE),IF($Z$2=Defaults!$M$10,VLOOKUP(C39,Defaults!$I$44:$K$47,2,FALSE),IF($Z$2=Defaults!$M$12,VLOOKUP(C39,Defaults!$I$49:$K$51,2,FALSE),\"\"))))","v":1},0,{"$f":"IF(AB39=\"\",\"\",AB39*2)","v":2},null,null,{"$f":"+AB39","v":1},{"$f":"N39","v":29.57},{"$f":"ROUND(IFERROR(1/F39*(1*Inputs!$AA$13+($AI$7-1)*Inputs!$AA$15),0),2)*L39","v":3.24},{"$f":"ROUND(IFERROR(1/F39*G39*Inputs!$V$13,0),2)*L39","v":2.68},{"$f":"ROUND(IFERROR(1/F39*H39,0),2)*L39","v":2.37},{"$f":"ROUND(IFERROR(1/F39*I39,0),2)*L39","v":21.28},null,null,null,{"$f":"W39","v":29.15},{"$f":"ROUND(IFERROR(1/Q39*(1*Inputs!$AA$13+($AI$7-1)*Inputs!$AA$15),0),2)*V39","v":3.17},{"$f":"ROUND(IFERROR(1/Q39*R39*Inputs!$V$13,0),2)*V39","v":2.62},{"$f":"ROUND(IFERROR(1/Q39*S39,0),2)*V39","v":2.3199999999999998},{"$f":"ROUND(IFERROR(1/Q39*T39,0),2)*V39","v":21.04},null,null,null,null,"Other: Defoliant, Fertilizer, Innoculant or Litter"]
[null,null,"Poultry Litter [3-3-3]",null,"ton",null,null,null,null,25,{"$f":"IF(C40=\"\",\"\",ROUND(IF(E40=AE40,AF40,IF(AE40=$AC$2,AF40*VLOOKUP(E40,$AA$2:$AB$4,2,FALSE),IF(AE40=$AF$2,AF40*VLOOKUP(E40,$AD$2:$AE$3,2,FALSE),IF(AE40=$AI$2,AF40/VLOOKUP(E40,$AG$2:$AH$2,2,FALSE),IF(AE40=$AL$2,AF40*VLOOKUP(E40,$AJ$2:$AK$2,2,FALSE),IF(AE40=$AO$2,AF40/VLOOKUP(E40,$AM$2:$AN$2,2,FALSE),IF(AE40=$AR$2,AF40*VLOOKUP(E40,$AP$2:$AQ$3,2,FALSE)))))))),2))","v":25},1,1,25,null,null,{"$f":"IF(L40>0,ABS(V40-L40),\"\")","v":2.2399999999999975E-2},null,null,null,{"$f":"J40","v":25},{"$f":"IF(AG40=0,0,AG40)","v":0.97760000000000002},24.44,-0.55999999999999872,null,{"$f":"IF($Z$2=Defaults!$M$5,Cotton!B40,IF($Z$2=Defaults!$M$6,Corn!B40,IF($Z$2=Defaults!$M$7,Sorghum!B40,IF($Z$2=Defaults!$M$8,Soybean!B40,IF($Z$2=Defaults!$M$9,Rice!B40,IF($Z$2=Defaults!$M$10,Peanut!B40,IF($Z$2=Defaults!$M$11,Wheat!B40,IF($Z$2=Defaults!$M$12,Pasture!B40,\"\"))))))))","v":"Poultry Litter [3-3-3]"},{"$f":"IF(C40=\"\",\"\",HLOOKUP($Z$2,$AZ$31:$BG$43,10,FALSE))","v":"ton"},{"$f":"IF(C40=\"\",\"\",HLOOKUP($Z$2,$BJ$31:$BQ$43,10,FALSE))","v":1},0,null,{"$f":"IF(C40=\"\",\"\",IF($Z$2=Defaults!$M$5,VLOOKUP(C40,Defaults!$T$38:$AE$41,2,FALSE),IF(OR($Z$2=Defaults!$M$7,$Z$2=Defaults!$M$11)=TRUE,VLOOKUP(C40,Defaults!$T$3:$AE$13,2,FALSE),IF($Z$2=Defaults!$M$10,VLOOKUP(C40,Defaults!$T$33:$AE$34,2,FALSE),IF($Z$2=Defaults!$M$12,VLOOKUP(C40,Defaults!$T$3:$U$13,2,FALSE),\"\")))))","v":"ton"},{"$f":"IF(C40=\"\",\"\",IF($Z$2=Defaults!$M$5,ROUND(VLOOKUP(C40,Defaults!$T$38:$AE$41,3,FALSE),2),IF(OR($Z$2=Defaults!$M$7,$Z$2=Defaults!$M$11)=TRUE,ROUND(VLOOKUP(C40,Defaults!$T$3:$AE$13,3,FALSE),2),IF($Z$2=Defaults!$M$10,ROUND(VLOOKUP(C40,Defaults!$T$33:$AE$34,3,FALSE),2),IF($Z$2=Defaults!$M$12,ROUND(VLOOKUP(C40,Defaults!$T$17:$AE$18,3,FALSE),2),\"\")))))","v":25},{"$f":"IFERROR(IF(LEFT($C$39,6)=\"Custom\",L40,L40*(1-VLOOKUP($C$39,Implements!$A$159:$D$166,4,FALSE))),\"\")","v":0.97760000000000002},null,null,null,null,null,{"$f":"N40","v":25},null,{"$f":"N40","v":25},null,null,null,null,null,{"$f":"W40","v":24.44},null,{"$f":"W40","v":24.44},null,"Poultry Litter [3-3-3]",{"$f":"IF($C40=\"\",\"\",VLOOKUP(C40,Defaults!$T$38:$X$41,4,FALSE))","v":{"$error":"#N/A"}},null,{"$f":"IF($C40=\"\",\"\",VLOOKUP(C40,Defaults!$T$3:$X$13,4,FALSE))","v":"ton"},null,null,{"$f":"IF($C40=\"\",\"\",VLOOKUP(C40,Defaults!$T$33:$X$34,4,FALSE))","v":{"$error":"#N/A"}},{"$f":"IF($C40=\"\",\"\",VLOOKUP(C40,Defaults!$T$3:$X$13,4,FALSE))","v":"ton"},{"$f":"IF($C40=\"\",\"\",VLOOKUP(C40,Defaults!$T$17:$AE$18,4,FALSE))","v":"ton"},null,{"$f":"IF($C40=\"\",\"\",$C40)","v":"Poultry Litter [3-3-3]"},{"$f":"IF($C40=\"\",\"\",IFERROR(VLOOKUP(C40,Defaults!$T$38:$AE$41,5,FALSE),\"\"))","v":""},null,{"$f":"IF($C40=\"\",\"\",IFERROR(VLOOKUP(C40,Defaults!$T$3:$AE$13,7,FALSE),\"\"))","v":""},null,null,{"$f":"IF($C40=\"\",\"\",IFERROR(VLOOKUP(C40,Defaults!$T$33:$AE$34,10,FALSE),\"\"))","v":""},{"$f":"IF($C40=\"\",\"\",IFERROR(VLOOKUP(C40,Defaults!$T$3:$AE$13,11,FALSE),\"\"))","v":""},{"$f":"IF($C40=\"\",\"\",IFERROR(VLOOKUP(C40,Defaults!$T$17:$AE$18,12,FALSE),\"\"))","v":1}]
[null,null,null,null,null,null,null,null,null,null,{"$f":"IF(C41=\"\",\"\",ROUND(IF(E41=AE41,AF41,IF(AE41=$AC$2,AF41*VLOOKUP(E41,$AA$2:$AB$4,2,FALSE),IF(AE41=$AF$2,AF41*VLOOKUP(E41,$AD$2:$AE$3,2,FALSE),IF(AE41=$AI$2,AF41/VLOOKUP(E41,$AG$2:$AH$2,2,FALSE),IF(AE41=$AL$2,AF41*VLOOKUP(E41,$AJ$2:$AK$2,2,FALSE),IF(AE41=$AO$2,AF41/VLOOKUP(E41,$AM$2:$AN$2,2,FALSE),IF(AE41=$AR$2,AF41*VLOOKUP(E41,$AP$2:$AQ$3,2,FALSE)))))))),2))","v":""},null,"",0,null,null,{"$f":"IF(L41>0,ABS(V41-L41),\"\")","v":""},null,null,null,{"$f":"J41","v":0},{"$f":"IF(AG41=0,0,AG41)","v":0},"","",null,{"$f":"IF($Z$2=Defaults!$M$5,Cotton!B41,IF($Z$2=Defaults!$M$6,Corn!B41,IF($Z$2=Defaults!$M$7,Sorghum!B41,IF($Z$2=Defaults!$M$8,Soybean!B41,IF($Z$2=Defaults!$M$9,Rice!B41,IF($Z$2=Defaults!$M$10,Peanut!B41,IF($Z$2=Defaults!$M$11,Wheat!B41,IF($Z$2=Defaults!$M$12,Pasture!B41,\"\"))))))))","v":""},{"$f":"IF(C41=\"\",\"\",HLOOKUP($Z$2,$AZ$31:$BG$43,11,FALSE))","v":""},{"$f":"IF(C41=\"\",\"\",HLOOKUP($Z$2,$BJ$31:$BQ$43,11,FALSE))","v":""},0,null,{"$f":"IF(C41=\"\",\"\",IF($Z$2=Defaults!$M$5,VLOOKUP(C41,Defaults!$T$38:$AE$41,2,FALSE),IF(OR($Z$2=Defaults!$M$7,$Z$2=Defaults!$M$11)=TRUE,VLOOKUP(C41,Defaults!$T$3:$AE$13,2,FALSE),IF($Z$2=Defaults!$M$10,VLOOKUP(C41,Defaults!$T$33:$AE$34,2,FALSE),IF($Z$2=Defaults!$M$12,VLOOKUP(C41,Defaults!$T$3:$U$13,2,FALSE),\"\")))))","v":""},{"$f":"IF(C41=\"\",\"\",IF($Z$2=Defaults!$M$5,ROUND(VLOOKUP(C41,Defaults!$T$38:$AE$41,3,FALSE),2),IF(OR($Z$2=Defaults!$M$7,$Z$2=Defaults!$M$11)=TRUE,ROUND(VLOOKUP(C41,Defaults!$T$3:$AE$13,3,FALSE),2),IF($Z$2=Defaults!$M$10,ROUND(VLOOKUP(C41,Defaults!$T$33:$AE$34,3,FALSE),2),IF($Z$2=Defaults!$M$12,ROUND(VLOOKUP(C41,Defaults!$T$17:$AE$18,3,FALSE),2),\"\")))))","v":""},{"$f":"IFERROR(IF(LEFT($C$39,6)=\"Custom\",L41,L41*(1-VLOOKUP($C$39,Implements!$A$159:$D$166,4,FALSE))),\"\")","v":0},null,null,null,null,null,{"$f":"N41","v":0},null,{"$f":"N41","v":0},null,null,null,null,null,{"$f":"W41","v":""},null,{"$f":"W41","v":""},null,"",{"$f":"IF($C41=\"\",\"\",VLOOKUP(C41,Defaults!$T$38:$X$41,4,FALSE))","v":""},null,{"$f":"IF($C41=\"\",\"\",VLOOKUP(C41,Defaults!$T$3:$X$13,4,FALSE))","v":""},null,null,{"$f":"IF($C41=\"\",\"\",VLOOKUP(C41,Defaults!$T$33:$X$34,4,FALSE))","v":""},{"$f":"IF($C41=\"\",\"\",VLOOKUP(C41,Defaults!$T$3:$X$13,4,FALSE))","v":""},null,null,"",{"$f":"IF($C41=\"\",\"\",IFERROR(VLOOKUP(C41,Defaults!$T$38:$AE$41,5,FALSE),\"\"))","v":""},null,{"$f":"IF($C41=\"\",\"\",IFERROR(VLOOKUP(C41,Defaults!$T$3:$AE$13,7,FALSE),\"\"))","v":""},null,null,{"$f":"IF($C41=\"\",\"\",IFERROR(VLOOKUP(C41,Defaults!$T$33:$AE$34,10,FALSE),\"\"))","v":""},{"$f":"IF($C41=\"\",\"\",IFERROR(VLOOKUP(C41,Defaults!$T$3:$AE$13,11,FALSE),\"\"))","v":""},{"$f":"IF($C41=\"\",\"\",IFERROR(VLOOKUP(C41,Defaults!$T$17:$AE$18,12,FALSE),\"\"))","v":""}]
[null,null,null,null,null,null,null,null,null,null,{"$f":"IF(C42=\"\",\"\",ROUND(IF(E42=AE42,AF42,IF(AE42=$AC$2,AF42*VLOOKUP(E42,$AA$2:$AB$4,2,FALSE),IF(AE42=$AF$2,AF42*VLOOKUP(E42,$AD$2:$AE$3,2,FALSE),IF(AE42=$AI$2,AF42/VLOOKUP(E42,$AG$2:$AH$2,2,FALSE),IF(AE42=$AL$2,AF42*VLOOKUP(E42,$AJ$2:$AK$2,2,FALSE),IF(AE42=$AO$2,AF42/VLOOKUP(E42,$AM$2:$AN$2,2,FALSE),IF(AE42=$AR$2,AF42*VLOOKUP(E42,$AP$2:$AQ$3,2,FALSE)))))))),2))","v":""},null,"",0,null,null,{"$f":"IF(L42>0,ABS(V42-L42),\"\")","v":""},null,null,null,{"$f":"J42","v":0},{"$f":"IF(AG42=0,0,AG42)","v":0},"","",null,{"$f":"IF($Z$2=Defaults!$M$5,Cotton!B42,IF($Z$2=Defaults!$M$6,Corn!B42,IF($Z$2=Defaults!$M$7,Sorghum!B42,IF($Z$2=Defaults!$M$8,Soybean!B42,IF($Z$2=Defaults!$M$9,Rice!B42,IF($Z$2=Defaults!$M$10,Peanut!B42,IF($Z$2=Defaults!$M$11,Wheat!B42,IF($Z$2=Defaults!$M$12,Pasture!B42,\"\"))))))))","v":""},{"$f":"IF(C42=\"\",\"\",HLOOKUP($Z$2,$AZ$31:$BG$43,12,FALSE))","v":""},{"$f":"IF(C42=\"\",\"\",HLOOKUP($Z$2,$BJ$31:$BQ$43,12,FALSE))","v":""},0,null,{"$f":"IF(C42=\"\",\"\",IF($Z$2=Defaults!$M$5,VLOOKUP(C42,Defaults!$T$38:$AE$41,2,FALSE),IF(OR($Z$2=Defaults!$M$7,$Z$2=Defaults!$M$11)=TRUE,VLOOKUP(C42,Defaults!$T$3:$AE$13,2,FALSE),IF($Z$2=Defaults!$M$10,VLOOKUP(C42,Defaults!$T$33:$AE$34,2,FALSE),IF($Z$2=Defaults!$M$12,VLOOKUP(C42,Defaults!$T$3:$U$13,2,FALSE),\"\")))))","v":""},{"$f":"IF(C42=\"\",\"\",IF($Z$2=Defaults!$M$5,ROUND(VLOOKUP(C42,Defaults!$T$38:$AE$41,3,FALSE),2),IF(OR($Z$2=Defaults!$M$7,$Z$2=Defaults!$M$11)=TRUE,ROUND(VLOOKUP(C42,Defaults!$T$3:$AE$13,3,FALSE),2),IF($Z$2=Defaults!$M$10,ROUND(VLOOKUP(C42,Defaults!$T$33:$AE$34,3,FALSE),2),IF($Z$2=Defaults!$M$12,ROUND(VLOOKUP(C42,Defaults!$T$17:$AE$18,3,FALSE),2),\"\")))))","v":""},{"$f":"IFERROR(IF(LEFT($C$39,6)=\"Custom\",L42,L42*(1-VLOOKUP($C$39,Implements!$A$159:$D$166,4,FALSE))),\"\")","v":0},null,null,null,null,null,{"$f":"N42","v":0},null,{"$f":"N42","v":0},null,null,null,null,null,{"$f":"W42","v":""},null,{"$f":"W42","v":""},null,"",{"$f":"IF($C42=\"\",\"\",VLOOKUP(C42,Defaults!$T$38:$X$41,4,FALSE))","v":""},null,{"$f":"IF($C42=\"\",\"\",VLOOKUP(C42,Defaults!$T$3:$X$13,4,FALSE))","v":""},null,null,{"$f":"IF($C42=\"\",\"\",VLOOKUP(C42,Defaults!$T$33:$X$34,4,FALSE))","v":""},{"$f":"IF($C42=\"\",\"\",VLOOKUP(C42,Defaults!$T$3:$X$13,4,FALSE))","v":""},null,null,"",{"$f":"IF($C42=\"\",\"\",IFERROR(VLOOKUP(C42,Defaults!$T$38:$AE$41,5,FALSE),\"\"))","v":""},null,{"$f":"IF($C42=\"\",\"\",IFERROR(VLOOKUP(C42,Defaults!$T$3:$AE$13,7,FALSE),\"\"))","v":""},null,null,{"$f":"IF($C42=\"\",\"\",IFERROR(VLOOKUP(C42,Defaults!$T$33:$AE$34,10,FALSE),\"\"))","v":""},{"$f":"IF($C42=\"\",\"\",IFERROR(VLOOKUP(C42,Defaults!$T$3:$AE$13,11,FALSE),\"\"))","v":""},{"$f":"IF($C42=\"\",\"\",IFERROR(VLOOKUP(C42,Defaults!$T$17:$AE$18,12,FALSE),\"\"))","v":""}]
[null,null,null,null,null,null,null,null,null,null,{"$f":"IF(C43=\"\",\"\",ROUND(IF(E43=AE43,AF43,IF(AE43=$AC$2,AF43*VLOOKUP(E43,$AA$2:$AB$4,2,FALSE),IF(AE43=$AF$2,AF43*VLOOKUP(E43,$AD$2:$AE$3,2,FALSE),IF(AE43=$AI$2,AF43/VLOOKUP(E43,$AG$2:$AH$2,2,FALSE),IF(AE43=$AL$2,AF43*VLOOKUP(E43,$AJ$2:$AK$2,2,FALSE),IF(AE43=$AO$2,AF43/VLOOKUP(E43,$AM$2:$AN$2,2,FALSE),IF(AE43=$AR$2,AF43*VLOOKUP(E43,$AP$2:$AQ$3,2,FALSE)))))))),2))","v":""},null,"",0,null,null,{"$f":"IF(L43>0,ABS(V43-L43),\"\")","v":""},null,null,null,{"$f":"J43","v":0},{"$f":"IF(AG43=0,0,AG43)","v":0},"","",null,{"$f":"IF($Z$2=Defaults!$M$5,Cotton!B43,IF($Z$2=Defaults!$M$6,Corn!B43,IF($Z$2=Defaults!$M$7,Sorghum!B43,IF($Z$2=Defaults!$M$8,Soybean!B43,IF($Z$2=Defaults!$M$9,Rice!B43,IF($Z$2=Defaults!$M$10,Peanut!B43,IF($Z$2=Defaults!$M$11,Wheat!B43,IF($Z$2=Defaults!$M$12,Pasture!B43,\"\"))))))))","v":""},{"$f":"IF(C43=\"\",\"\",HLOOKUP($Z$2,$AZ$31:$BG$43,13,FALSE))","v":""},{"$f":"IF(C43=\"\",\"\",HLOOKUP($Z$2,$BJ$31:$BQ$43,13,FALSE))","v":""},1,null,{"$f":"IF(C43=\"\",\"\",IF($Z$2=Defaults!$M$5,VLOOKUP(C43,Defaults!$T$38:$AE$41,2,FALSE),IF(OR($Z$2=Defaults!$M$7,$Z$2=Defaults!$M$11)=TRUE,VLOOKUP(C43,Defaults!$T$3:$AE$13,2,FALSE),IF($Z$2=Defaults!$M$10,VLOOKUP(C43,Defaults!$T$33:$AE$34,2,FALSE),IF($Z$2=Defaults!$M$12,VLOOKUP(C43,Defaults!$T$3:$U$13,2,FALSE),\"\")))))","v":""},{"$f":"IF(C43=\"\",\"\",IF($Z$2=Defaults!$M$5,ROUND(VLOOKUP(C43,Defaults!$T$38:$AE$41,3,FALSE),2),IF(OR($Z$2=Defaults!$M$7,$Z$2=Defaults!$M$11)=TRUE,ROUND(VLOOKUP(C43,Defaults!$T$3:$AE$13,3,FALSE),2),IF($Z$2=Defaults!$M$10,ROUND(VLOOKUP(C43,Defaults!$T$33:$AE$34,3,FALSE),2),IF($Z$2=Defaults!$M$12,ROUND(VLOOKUP(C43,Defaults!$T$17:$AE$18,3,FALSE),2),\"\")))))","v":""},{"$f":"IFERROR(IF(LEFT($C$39,6)=\"Custom\",L43,L43*(1-VLOOKUP($C$39,Implements!$A$159:$D$166,4,FALSE))),\"\")","v":0},null,null,null,null,null,{"$f":"N43","v":0},null,{"$f":"N43","v":0},null,null,null,null,null,{"$f":"W43","v":""},null,{"$f":"W43","v":""},null,"",{"$f":"IF($C43=\"\",\"\",VLOOKUP(C43,Defaults!$T$38:$X$41,4,FALSE))","v":""},null,{"$f":"IF($C43=\"\",\"\",VLOOKUP(C43,Defaults!$T$3:$X$13,4,FALSE))","v":""},null,null,{"$f":"IF($C43=\"\",\"\",VLOOKUP(C43,Defaults!$T$33:$X$34,4,FALSE))","v":""},{"$f":"IF($C43=\"\",\"\",VLOOKUP(C43,Defaults!$T$3:$X$13,4,FALSE))","v":""},null,null,"",{"$f":"IF($C43=\"\",\"\",IFERROR(VLOOKUP(C43,Defaults!$T$38:$AE$41,5,FALSE),\"\"))","v":""},null,{"$f":"IF($C43=\"\",\"\",IFERROR(VLOOKUP(C43,Defaults!$T$3:$AE$13,7,FALSE),\"\"))","v":""},null,null,{"$f":"IF($C43=\"\",\"\",IFERROR(VLOOKUP(C43,Defaults!$T$33:$AE$34,10,FALSE),\"\"))","v":""},{"$f":"IF($C43=\"\",\"\",IFERROR(VLOOKUP(C43,Defaults!$T$3:$AE$13,11,FALSE),\"\"))","v":""},{"$f":"IF($C43=\"\",\"\",IFERROR(VLOOKUP(C43,Defaults!$T$17:$AE$18,12,FALSE),\"\"))","v":""}]
[null,null,null,null,null,{"$f":"IF($L44=0,0,IF($C44=Defaults!$I$27,Implements!$AK$185,IF($C44=Defaults!$I$28,Implements!$AK$186,0)))","v":0},{"$f":"IF($L44=0,0,IFERROR(VLOOKUP($C44,Implements!$X$181:$AN$188,15,FALSE),0))","v":0},{"$f":"IF($L44=0,0,IFERROR(VLOOKUP($C44,Implements!$X$181:$AN$188,16,FALSE),0))","v":0},{"$f":"IF($L44=0,0,IFERROR(VLOOKUP($C44,Implements!$X$181:$AN$188,17,FALSE),0))","v":0},{"$f":"IF(OR(C44=\"\",L44=\"\",L44=0)=TRUE,\"\",IF(OR(C44=Defaults!$I$25,C44=Defaults!$I$26)=TRUE,VLOOKUP(C44,Defaults!$I$24:$K$27,3,FALSE),IF(C44=Defaults!$I$59,VLOOKUP(C44,Defaults!$I$58:$K$61,3,FALSE),IF(C44=Defaults!$I$64,VLOOKUP(C44,Defaults!$I$63:$K$66,3,FALSE),ROUND(1/F44*(1*Inputs!$AA$13+($AI$7-1)*Inputs!$AA$15),2)+ROUND(G44*Inputs!$V$13/F44,2)+ROUND(H44/F44,2)+ROUND(I44/F44,2)))))","v":""},{"$f":"IF(OR(C44=\"\",L44=\"\",L44=0)=TRUE,\"\",IF(OR(C44=Defaults!$I$25,C44=Defaults!$I$26)=TRUE,VLOOKUP(C44,Defaults!$I$24:$K$27,3,FALSE),IF(C44=Defaults!$I$59,VLOOKUP(C44,Defaults!$I$58:$K$61,3,FALSE),IF(C44=Defaults!$I$64,VLOOKUP(C44,Defaults!$I$63:$K$66,3,FALSE),ROUND(1/F44*(1*Inputs!$AA$13+($AI$7-1)*Inputs!$AA$15),2)+ROUND(G44*Inputs!$V$13/F44,2)+ROUND(H44/F44,2)+ROUND(I44/F44,2)))))","v":""},null,"",0,null,null,{"$f":"IF($V44=0,0,IF($C44=Defaults!$I$27,Implements!$AK$174,IF($C44=Defaults!$I$28,Implements!$AK$175,0)))","v":0},{"$f":"IF($V44=0,0,IFERROR(VLOOKUP($C44,Implements!$X$170:$AN$177,15,FALSE),0))","v":0},{"$f":"IF($V44=0,0,IFERROR(VLOOKUP($C44,Implements!$X$170:$AN$177,16,FALSE),0))","v":0},{"$f":"IF($V44=0,0,IFERROR(VLOOKUP($C44,Implements!$X$170:$AN$177,17,FALSE),0))","v":0},{"$f":"IF(OR(C44=\"\",V44=\"\",V44=0)=TRUE,\"\",IF(LEFT(C44,6)=\"Custom\",J44,ROUND(1/Q44*(1*Inputs!$AA$13+($AI$7-1)*Inputs!$AA$15),2)+ROUND(R44*Inputs!$V$13/Q44,2)+ROUND(S44/Q44,2)+ROUND(T44/Q44,2)))","v":""},{"$f":"+L44","v":0},"","",null,{"$f":"IF($Z$2=Defaults!$M$5,Cotton!B44,IF($Z$2=Defaults!$M$6,Corn!B44,IF($Z$2=Defaults!$M$7,Sorghum!B44,IF($Z$2=Defaults!$M$8,Soybean!B44,IF($Z$2=Defaults!$M$9,Rice!B44,IF($Z$2=Defaults!$M$10,Peanut!B44,IF($Z$2=Defaults!$M$11,Wheat!B44,IF($Z$2=Defaults!$M$12,Pasture!B44,\"\"))))))))","v":""},null,{"$f":"IF(C44=\"\",\"\",IF($Z$2=Defaults!$M$5,VLOOKUP(C44,Defaults!$I$58:$K$61,2,FALSE),IF($Z$2=Defaults!$M$8,VLOOKUP(C44,Defaults!$I$63:$K$66,2,FALSE),\"\")))","v":""},0,{"$f":"IF(AB44=\"\",\"\",AB44*2)","v":""},null,null,{"$f":"+AB44","v":""},{"$f":"N44","v":0},{"$f":"ROUND(IFERROR(1/F44*(1*Inputs!$AA$13+($AI$7-1)*Inputs!$AA$15),0),2)*L44","v":0},{"$f":"ROUND(IFERROR(1/F44*G44*Inputs!$V$13,0),2)*L44","v":0},{"$f":"ROUND(IFERROR(1/F44*H44,0),2)*L44","v":0},{"$f":"ROUND(IFERROR(1/F44*I44,0),2)*L44","v":0},null,null,null,{"$f":"W44","v":""},{"$f":"ROUND(IFERROR(1/Q44*(1*Inputs!$AA$13+($AI$7-1)*Inputs!$AA$15),0),2)*V44","v":0},{"$f":"ROUND(IFERROR(1/Q44*R44*Inputs!$V$13,0),2)*V44","v":0},{"$f":"ROUND(IFERROR(1/Q44*S44,0),2)*V44","v":0},{"$f":"ROUND(IFERROR(1/Q44*T44,0),2)*V44","v":0},null,null,null,null,"Other: Growth Regulator or Fungicide"]
[null,null,null,null,null,null,null,null,null,null,{"$f":"IF(C45=\"\",\"\",ROUND(IF(E45=AE45,AF45,IF(AE45=$AC$2,AF45*VLOOKUP(E45,$AA$2:$AB$4,2,FALSE),IF(AE45=$AF$2,AF45*VLOOKUP(E45,$AD$2:$AE$3,2,FALSE),IF(AE45=$AI$2,AF45/VLOOKUP(E45,$AG$2:$AH$2,2,FALSE),IF(AE45=$AL$2,AF45*VLOOKUP(E45,$AJ$2:$AK$2,2,FALSE),IF(AE45=$AO$2,AF45/VLOOKUP(E45,$AM$2:$AN$2,2,FALSE),IF(AE45=$AR$2,AF45*VLOOKUP(E45,$AP$2:$AQ$3,2,FALSE)))))))),2))","v":""},null,"",0,null,null,{"$f":"IF(L45>0,ABS(V45-L45),\"\")","v":""},null,null,null,{"$f":"J45","v":0},{"$f":"IF(AG45=0,0,AG45)","v":""},"","",null,{"$f":"IF($Z$2=Defaults!$M$5,Cotton!B45,IF($Z$2=Defaults!$M$6,Corn!B45,IF($Z$2=Defaults!$M$7,Sorghum!B45,IF($Z$2=Defaults!$M$8,Soybean!B45,IF($Z$2=Defaults!$M$9,Rice!B45,IF($Z$2=Defaults!$M$10,Peanut!B45,IF($Z$2=Defaults!$M$11,Wheat!B45,IF($Z$2=Defaults!$M$12,Pasture!B45,\"\"))))))))","v":""},{"$f":"IF(C45=\"\",\"\",HLOOKUP($Z$2,$AZ$31:$BG$46,15,FALSE))","v":""},{"$f":"IF(C45=\"\",\"\",HLOOKUP($Z$2,$BJ$31:$BQ$46,15,FALSE))","v":""},0,null,{"$f":"IF(C45=\"\",\"\",IF($Z$2=Defaults!$M$5,VLOOKUP(C45,Defaults!$T$45:$AE$46,2,FALSE),IF($Z$2=Defaults!$M$8,VLOOKUP(C45,Defaults!$T$50:$AE$51,2,FALSE),\"\")))","v":""},{"$f":"IF(C45=\"\",\"\",IF($Z$2=Defaults!$M$5,ROUND(VLOOKUP(C45,Defaults!$T$45:$AE$46,3,FALSE),2),IF($Z$2=Defaults!$M$8,ROUND(VLOOKUP(C45,Defaults!$T$50:$AE$51,3,FALSE),2),\"\")))","v":""},{"$f":"IFERROR(IF(LEFT($C$44,6)=\"Custom\",L45,L45*(1-VLOOKUP($C$44,Implements!$A$159:$D$166,4,FALSE))),\"\")","v":""},null,null,null,null,null,{"$f":"N45","v":0},null,{"$f":"N45","v":0},null,null,null,null,null,{"$f":"W45","v":""},null,{"$f":"W45","v":""},null,"",{"$f":"IF($C45=\"\",\"\",VLOOKUP(C45,Defaults!$T$45:$AE$46,4,FALSE))","v":""},null,null,{"$f":"IF($C45=\"\",\"\",VLOOKUP(C45,Defaults!$T$50:$AE$51,4,FALSE))","v":""},null,null,null,null,null,"",{"$f":"IF($C45=\"\",\"\",IFERROR(VLOOKUP(C45,Defaults!$T$45:$AE$46,5,FALSE),\"\"))","v":""},null,null,{"$f":"IF($C45=\"\",\"\",IFERROR(VLOOKUP(C45,Defaults!$T$50:$AE$51,8,FALSE),\"\"))","v":""}]
[null,null,null,null,null,null,null,null,null,null,{"$f":"IF(C46=\"\",\"\",ROUND(IF(E46=AE46,AF46,IF(AE46=$AC$2,AF46*VLOOKUP(E46,$AA$2:$AB$4,2,FALSE),IF(AE46=$AF$2,AF46*VLOOKUP(E46,$AD$2:$AE$3,2,FALSE),IF(AE46=$AI$2,AF46/VLOOKUP(E46,$AG$2:$AH$2,2,FALSE),IF(AE46=$AL$2,AF46*VLOOKUP(E46,$AJ$2:$AK$2,2,FALSE),IF(AE46=$AO$2,AF46/VLOOKUP(E46,$AM$2:$AN$2,2,FALSE),IF(AE46=$AR$2,AF46*VLOOKUP(E46,$AP$2:$AQ$3,2,FALSE)))))))),2))","v":""},null,"",0,null,null,{"$f":"IF(L46>0,ABS(V46-L46),\"\")","v":""},null,null,null,{"$f":"J46","v":0},{"$f":"IF(AG46=0,0,AG46)","v":""},"","",null,{"$f":"IF($Z$2=Defaults!$M$5,Cotton!B46,IF($Z$2=Defaults!$M$6,Corn!B46,IF($Z$2=Defaults!$M$7,Sorghum!B46,IF($Z$2=Defaults!$M$8,Soybean!B46,IF($Z$2=Defaults!$M$9,Rice!B46,IF($Z$2=Defaults!$M$10,Peanut!B46,IF($Z$2=Defaults!$M$11,Wheat!B46,IF($Z$2=Defaults!$M$12,Pasture!B46,\"\"))))))))","v":""},{"$f":"IF(C46=\"\",\"\",HLOOKUP($Z$2,$AZ$31:$BG$46,16,FALSE))","v":""},{"$f":"IF(C46=\"\",\"\",HLOOKUP($Z$2,$BJ$31:$BQ$46,16,FALSE))","v":""},0,null,{"$f":"IF(C46=\"\",\"\",IF($Z$2=Defaults!$M$5,VLOOKUP(C46,Defaults!$T$45:$AE$46,2,FALSE),IF($Z$2=Defaults!$M$8,VLOOKUP(C46,Defaults!$T$50:$AE$51,2,FALSE),\"\")))","v":""},{"$f":"IF(C46=\"\",\"\",IF($Z$2=Defaults!$M$5,ROUND(VLOOKUP(C46,Defaults!$T$45:$AE$46,3,FALSE),2),IF($Z$2=Defaults!$M$8,ROUND(VLOOKUP(C46,Defaults!$T$50:$AE$51,3,FALSE),2),\"\")))","v":""},{"$f":"IFERROR(IF(LEFT($C$44,6)=\"Custom\",L46,L46*(1-VLOOKUP($C$44,Implements!$A$159:$D$166,4,FALSE))),\"\")","v":""},null,null,null,null,null,{"$f":"N46","v":0},null,{"$f":"N46","v":0},null,null,null,null,null,{"$f":"W46","v":""},null,{"$f":"W46","v":""},null,"",{"$f":"IF($C46=\"\",\"\",VLOOKUP(C46,Defaults!$T$45:$AE$46,4,FALSE))","v":""},null,null,{"$f":"IF($C46=\"\",\"\",VLOOKUP(C46,Defaults!$T$50:$AE$51,4,FALSE))","v":""},null,null,null,null,null,"",{"$f":"IF($C46=\"\",\"\",IFERROR(VLOOKUP(C46,Defaults!$T$45:$AE$46,5,FALSE),\"\"))","v":""},null,null,{"$f":"IF($C46=\"\",\"\",IFERROR(VLOOKUP(C46,Defaults!$T$50:$AE$51,8,FALSE),\"\"))","v":""}]
[null,null,null,{"$f":"IF($Z$2=Defaults!$M$5,Cotton!D47,IF($Z$2=Defaults!$M$6,Corn!D47,IF($Z$2=Defaults!$M$7,Sorghum!D47,IF($Z$2=Defaults!$M$8,Soybean!D47,IF($Z$2=Defaults!$M$9,Rice!D47,IF($Z$2=Defaults!$M$10,Peanut!D47,IF($Z$2=Defaults!$M$11,Wheat!D47,IF($Z$2=Defaults!$M$12,Pasture!D48,FALSE))))))))","v":""},null,null,null,null,null,null,null,null,null,null,null,null,null,null,null,null,null,null,null,null,null,{"$f":"IF($Z$2=Defaults!$M$5,Cotton!B47,IF($Z$2=Defaults!$M$6,Corn!B47,IF($Z$2=Defaults!$M$7,Sorghum!B47,IF($Z$2=Defaults!$M$8,Soybean!B47,IF($Z$2=Defaults!$M$9,Rice!B47,IF($Z$2=Defaults!$M$10,Peanut!B47,IF($Z$2=Defaults!$M$11,Wheat!B47,IF($Z$2=Defaults!$M$12,Pasture!B47,\"\"))))))))","v":""},null,null,null,null,null,null,null,null,null,null,null,null,null,null,null,null,null,null,null,null,null,null,null,null,"PRE",null,null,null,null,null,null,null,null,null,"PRE",null,null,null,null,null,null,null,null,null,"PRE"]
[null,null,null,null,null,{"$f":"IF(L48=0,0,IF(C48=Defaults!$I$27,Implements!$AK$185,IF(C48=Defaults!$I$28,Implements!$AK$186,0)))","v":0},{"$f":"IF($L48=0,0,IFERROR(VLOOKUP($C48,Implements!$X$181:$AN$188,15,FALSE),0))","v":0},{"$f":"IF($L48=0,0,IFERROR(VLOOKUP($C48,Implements!$X$181:$AN$188,16,FALSE),0))","v":0},{"$f":"IF($L48=0,0,IFERROR(VLOOKUP($C48,Implements!$X$181:$AN$188,17,FALSE),0))","v":0},{"$f":"IF(OR(C48=\"\",L48=\"\",L48=0)=TRUE,\"\",IF(OR(C48=Defaults!$I$25,C48=Defaults!$I$26)=TRUE,VLOOKUP(C48,Defaults!$I$24:$K$27,3,FALSE),ROUND(1/F48*(1*Inputs!$AA$13+($AI$7-1)*Inputs!$AA$15),2)+ROUND(G48*Inputs!$V$13/F48,2)+ROUND(H48/F48,2)+ROUND(I48/F48,2)))","v":""},{"$f":"IF(OR(C48=\"\",L48=\"\",L48=0)=TRUE,\"\",IF(OR(C48=Defaults!$I$25,C48=Defaults!$I$26)=TRUE,VLOOKUP(C48,Defaults!$I$24:$K$27,3,FALSE),ROUND(1/F48*(1*Inputs!$AA$13+($AI$7-1)*Inputs!$AA$15),2)+ROUND(G48*Inputs!$V$13/F48,2)+ROUND(H48/F48,2)+ROUND(I48/F48,2)))","v":""},null,{"$f":"AB48","v":""},{"$f":"IF(C48=\"\",0,IF(L48=0,0,IF(L48=\"\",\"\",J48*L48)))","v":0},null,null,{"$f":"IF(V48=0,0,IF(C48=Defaults!$I$27,Implements!$AK$174,IF(C48=Defaults!$I$28,Implements!$AK$175,0)))","v":0},{"$f":"IF($V48=0,0,IFERROR(VLOOKUP($C48,Implements!$X$170:$AN$177,15,FALSE),0))","v":0},{"$f":"IF($V48=0,0,IFERROR(VLOOKUP($C48,Implements!$X$170:$AN$177,16,FALSE),0))","v":0},{"$f":"IF($V48=0,0,IFERROR(VLOOKUP($C48,Implements!$X$170:$AN$177,17,FALSE),0))","v":0},{"$f":"IF(OR(C48=\"\",V48=\"\",V48=0)=TRUE,\"\",IF(LEFT(C48,6)=\"Custom\",J48,ROUND(1/Q48*(1*Inputs!$AA$13+($AI$7-1)*Inputs!$AA$15),2)+ROUND(R48*Inputs!$V$13/Q48,2)+ROUND(S48/Q48,2)+ROUND(T48/Q48,2)))","v":""},{"$f":"+L48","v":0},{"$f":"IF(C48=\"\",\"\",IF(V48=0,0,IF(V48=\"\",\"\",U48*V48)))","v":""},{"$f":"IF(C48=\"\",\"\",W48-N48)","v":""},null,{"$f":"IF($Z$2=Defaults!$M$5,Cotton!B48,IF($Z$2=Defaults!$M$6,Corn!B48,IF($Z$2=Defaults!$M$7,Sorghum!B48,IF($Z$2=Defaults!$M$8,Soybean!B48,IF($Z$2=Defaults!$M$9,Rice!B48,IF($Z$2=Defaults!$M$10,Peanut!B48,IF($Z$2=Defaults!$M$11,Wheat!B48,IF($Z$2=Defaults!$M$12,Pasture!B48,\"\"))))))))","v":""},null,{"$f":"IF(C48=\"\",\"\",IF($Z$2=Defaults!$M$12,VLOOKUP(C48,Defaults!$I$35:$J$37,2,FALSE),VLOOKUP(C48,Defaults!$I$24:$J$28,2,FALSE)))","v":""},0,{"$f":"IF(AB48=\"\",\"\",AB48*2)","v":""},null,null,{"$f":"+AB48","v":""},{"$f":"N48","v":0},{"$f":"ROUND(IFERROR(1/F48*(1*Inputs!$AA$13+($AI$7-1)*Inputs!$AA$15),0),2)*L48","v":0},{"$f":"ROUND(IFERROR(1/F48*G48*Inputs!$V$13,0),2)*L48","v":0},{"$f":"ROUND(IFERROR(1/F48*H48,0),2)*L48","v":0},{"$f":"ROUND(IFERROR(1/F48*I48,0),2)*L48","v":0},null,null,null,{"$f":"W48","v":""},{"$f":"ROUND(IFERROR(1/Q48*(1*Inputs!$AA$13+($AI$7-1)*Inputs!$AA$15),0),2)*V48","v":0},{"$f":"ROUND(IFERROR(1/Q48*R48*Inputs!$V$13,0),2)*V48","v":0},{"$f":"ROUND(IFERROR(1/Q48*S48,0),2)*V48","v":0},{"$f":"ROUND(IFERROR(1/Q48*T48,0),2)*V48","v":0},null,null,null,null,null,{"$f":"AZ11","v":"Cotton"},"Corn","Sorghum","Soybean","Rice","Peanut","Wheat","Est. Pasture or Hay",null,null,{"$f":"BJ11","v":"Cotton"},"Corn","Sorghum","Soybean","Rice","Peanut","Wheat","Est. Pasture or Hay",null,null,{"$f":"BT11","v":"Cotton"},"Corn","Sorghum","Soybean","Rice","Peanut","Wheat","Est. Pasture or Hay"]
[null,null,null,null,null,null,null,null,null,null,{"$f":"IF(C49=\"\",\"\",ROUND(IF(E49=AE49,AF49,IF(AE49=$AC$2,AF49*VLOOKUP(E49,$AA$2:$AB$4,2,FALSE),IF(AE49=$AF$2,AF49*VLOOKUP(E49,$AD$2:$AE$3,2,FALSE),IF(AE49=$AI$2,AF49/VLOOKUP(E49,$AG$2:$AH$2,2,FALSE),IF(AE49=$AL$2,AF49*VLOOKUP(E49,$AJ$2:$AK$2,2,FALSE),IF(AE49=$AO$2,AF49/VLOOKUP(E49,$AM$2:$AN$2,2,FALSE),IF(AE49=$AR$2,AF49*VLOOKUP(E49,$AP$2:$AQ$3,2,FALSE)))))))),2))","v":""},null,"",0,null,null,{"$f":"IF(L49>0,ABS(V49-L49),\"\")","v":""},null,null,null,{"$f":"J49","v":0},{"$f":"IF(AG49=0,0,AG49)","v":""},"","",null,{"$f":"IF($Z$2=Defaults!$M$5,Cotton!B49,IF($Z$2=Defaults!$M$6,Corn!B49,IF($Z$2=Defaults!$M$7,Sorghum!B49,IF($Z$2=Defaults!$M$8,Soybean!B49,IF($Z$2=Defaults!$M$9,Rice!B49,IF($Z$2=Defaults!$M$10,Peanut!B49,IF($Z$2=Defaults!$M$11,Wheat!B49,IF($Z$2=Defaults!$M$12,Pasture!B49,\"\"))))))))","v":""},{"$f":"IF(C49=\"\",\"\",HLOOKUP($Z$2,$AZ$48:$BG$53,2,FALSE))","v":""},{"$f":"IF(C49=\"\",\"\",HLOOKUP($Z$2,$BJ$48:$BQ$53,2,FALSE))","v":""},0,{"$f":"IF(C49=\"\",\"\",HLOOKUP($Z$2,$BT$48:$CA$53,2,FALSE))","v":""},{"$f":"IF(C49=\"\",\"\",VLOOKUP(C49,Defaults!$AH:$AJ,2,FALSE))","v":""},{"$f":"IF(C49=\"\",\"\",ROUND(VLOOKUP(C49,Defaults!$AH:$AJ,3,FALSE),2))","v":""},{"$f":"IFERROR(IF(LEFT($C$48,6)=\"Custom\",L49,L49*(1-VLOOKUP($C$48,Implements!$A$159:$D$166,4,FALSE))),\"\")","v":""},null,null,null,null,null,{"$f":"N49","v":0},null,{"$f":"N49","v":0},null,null,null,null,null,{"$f":"W49","v":""},null,{"$f":"W49","v":""},null,{"$f":"IF($C49=\"\",\"\",$C49)","v":""},{"$f":"IF($C49=\"\",\"\",VLOOKUP($C49,Defaults!$AL$37:$AQ$63,4,FALSE))","v":""},{"$f":"IF($C49=\"\",\"\",VLOOKUP($C49,Defaults!$AS$37:$AX$63,4,FALSE))","v":""},{"$f":"IF($C49=\"\",\"\",VLOOKUP($C49,Defaults!$AZ$37:$BE$63,4,FALSE))","v":""},{"$f":"IF($C49=\"\",\"\",VLOOKUP($C49,Defaults!$BG$37:$BL$63,4,FALSE))","v":""},{"$f":"IF($C49=\"\",\"\",VLOOKUP($C49,Defaults!$BN$37:$BS$63,4,FALSE))","v":""},{"$f":"IF($C49=\"\",\"\",VLOOKUP($C49,Defaults!$BU$37:$BZ$63,4,FALSE))","v":""},{"$f":"IF($C49=\"\",\"\",VLOOKUP($C49,Defaults!$CB$37:$CG$63,4,FALSE))","v":""},{"$f":"IF($C49=\"\",\"\",VLOOKUP($C49,Defaults!$CI:$CN,4,FALSE))","v":""},null,{"$f":"IF($C49=\"\",\"\",$C49)","v":""},{"$f":"IF($C49=\"\",\"\",IFERROR(VLOOKUP($C49,Defaults!$AL$37:$AQ$63,5,FALSE),\"\"))","v":""},{"$f":"IF($C49=\"\",\"\",IFERROR(VLOOKUP($C49,Defaults!$AS$37:$AX$63,5,FALSE),\"\"))","v":""},{"$f":"IF($C49=\"\",\"\",IFERROR(VLOOKUP($C49,Defaults!$AZ$37:$BE$63,5,FALSE),\"\"))","v":""},{"$f":"IF($C49=\"\",\"\",IFERROR(VLOOKUP($C49,Defaults!$BG$37:$BL$63,5,FALSE),\"\"))","v":""},{"$f":"IF($C49=\"\",\"\",IFERROR(VLOOKUP($C49,Defaults!$BN$37:$BS$63,5,FALSE),\"\"))","v":""},{"$f":"IF($C49=\"\",\"\",IFERROR(VLOOKUP($C49,Defaults!$BU$37:$BZ$63,5,FALSE),\"\"))","v":""},{"$f":"IF($C49=\"\",\"\",IFERROR(VLOOKUP($C49,Defaults!$CB$37:$CG$63,5,FALSE),\"\"))","v":""},{"$f":"IF($C49=\"\",\"\",IFERROR(VLOOKUP($C49,Defaults!$CI:$CN,5,FALSE),\"\"))","v":""},null,{"$f":"IF($C49=\"\",\"\",$C49)","v":""},{"$f":"IF($C49=\"\",\"\",IFERROR(VLOOKUP($C49,Defaults!$AL$37:$AQ$63,6,FALSE),\"\"))","v":""},{"$f":"IF($C49=\"\",\"\",IFERROR(VLOOKUP($C49,Defaults!$AS$37:$AX$63,6,FALSE),\"\"))","v":""},{"$f":"IF($C49=\"\",\"\",IFERROR(VLOOKUP($C49,Defaults!$AZ$37:$BE$63,6,FALSE),\"\"))","v":""},{"$f":"IF($C49=\"\",\"\",IFERROR(VLOOKUP($C49,Defaults!$BG$37:$BL$63,6,FALSE),\"\"))","v":""},{"$f":"IF($C49=\"\",\"\",IFERROR(VLOOKUP($C49,Defaults!$BN$37:$BS$63,6,FALSE),\"\"))","v":""},{"$f":"IF($C49=\"\",\"\",IFERROR(VLOOKUP($C49,Defaults!$BU$37:$BZ$63,6,FALSE),\"\"))","v":""},{"$f":"IF($C49=\"\",\"\",IFERROR(VLOOKUP($C49,Defaults!$CB$37:$CG$63,6,FALSE),\"\"))","v":""},{"$f":"IF($C49=\"\",\"\",IFERROR(VLOOKUP($C49,Defaults!$CI:$CN,6,FALSE),\"\"))","v":""}]
[null,null,null,null,null,null,null,null,null,null,{"$f":"IF(C50=\"\",\"\",ROUND(IF(E50=AE50,AF50,IF(AE50=$AC$2,AF50*VLOOKUP(E50,$AA$2:$AB$4,2,FALSE),IF(AE50=$AF$2,AF50*VLOOKUP(E50,$AD$2:$AE$3,2,FALSE),IF(AE50=$AI$2,AF50/VLOOKUP(E50,$AG$2:$AH$2,2,FALSE),IF(AE50=$AL$2,AF50*VLOOKUP(E50,$AJ$2:$AK$2,2,FALSE),IF(AE50=$AO$2,AF50/VLOOKUP(E50,$AM$2:$AN$2,2,FALSE),IF(AE50=$AR$2,AF50*VLOOKUP(E50,$AP$2:$AQ$3,2,FALSE)))))))),2))","v":""},null,"",0,null,null,{"$f":"IF(L50>0,ABS(V50-L50),\"\")","v":""},null,null,null,{"$f":"J50","v":0},{"$f":"IF(AG50=0,0,AG50)","v":""},"","",null,{"$f":"IF($Z$2=Defaults!$M$5,Cotton!B50,IF($Z$2=Defaults!$M$6,Corn!B50,IF($Z$2=Defaults!$M$7,Sorghum!B50,IF($Z$2=Defaults!$M$8,Soybean!B50,IF($Z$2=Defaults!$M$9,Rice!B50,IF($Z$2=Defaults!$M$10,Peanut!B50,IF($Z$2=Defaults!$M$11,Wheat!B50,IF($Z$2=Defaults!$M$12,Pasture!B50,\"\"))))))))","v":""},{"$f":"IF(C50=\"\",\"\",HLOOKUP($Z$2,$AZ$48:$BG$53,3,FALSE))","v":""},{"$f":"IF(C50=\"\",\"\",HLOOKUP($Z$2,$BJ$48:$BQ$53,3,FALSE))","v":""},0,{"$f":"IF(C50=\"\",\"\",HLOOKUP($Z$2,$BT$48:$CA$53,3,FALSE))","v":""},{"$f":"IF(C50=\"\",\"\",VLOOKUP(C50,Defaults!$AH:$AJ,2,FALSE))","v":""},{"$f":"IF(C50=\"\",\"\",ROUND(VLOOKUP(C50,Defaults!$AH:$AJ,3,FALSE),2))","v":""},{"$f":"IFERROR(IF(LEFT($C$48,6)=\"Custom\",L50,L50*(1-VLOOKUP($C$48,Implements!$A$159:$D$166,4,FALSE))),\"\")","v":""},null,null,null,null,null,{"$f":"N50","v":0},null,{"$f":"N50","v":0},null,null,null,null,null,{"$f":"W50","v":""},null,{"$f":"W50","v":""},null,{"$f":"IF($C50=\"\",\"\",$C50)","v":""},{"$f":"IF($C50=\"\",\"\",VLOOKUP($C50,Defaults!$AL$37:$AQ$63,4,FALSE))","v":""},{"$f":"IF($C50=\"\",\"\",VLOOKUP($C50,Defaults!$AS$37:$AX$63,4,FALSE))","v":""},{"$f":"IF($C50=\"\",\"\",VLOOKUP($C50,Defaults!$AZ$37:$BE$63,4,FALSE))","v":""},{"$f":"IF($C50=\"\",\"\",VLOOKUP($C50,Defaults!$BG$37:$BL$63,4,FALSE))","v":""},{"$f":"IF($C50=\"\",\"\",VLOOKUP($C50,Defaults!$BN$37:$BS$63,4,FALSE))","v":""},{"$f":"IF($C50=\"\",\"\",VLOOKUP($C50,Defaults!$BU$37:$BZ$63,4,FALSE))","v":""},{"$f":"IF($C50=\"\",\"\",VLOOKUP($C50,Defaults!$CB$37:$CG$63,4,FALSE))","v":""},{"$f":"IF($C50=\"\",\"\",VLOOKUP($C50,Defaults!$CI:$CN,4,FALSE))","v":""},null,{"$f":"IF($C50=\"\",\"\",$C50)","v":""},{"$f":"IF($C50=\"\",\"\",IFERROR(VLOOKUP($C50,Defaults!$AL$37:$AQ$63,5,FALSE),\"\"))","v":""},{"$f":"IF($C50=\"\",\"\",IFERROR(VLOOKUP($C50,Defaults!$AS$37:$AX$63,5,FALSE),\"\"))","v":""},{"$f":"IF($C50=\"\",\"\",IFERROR(VLOOKUP($C50,Defaults!$AZ$37:$BE$63,5,FALSE),\"\"))","v":""},{"$f":"IF($C50=\"\",\"\",IFERROR(VLOOKUP($C50,Defaults!$BG$37:$BL$63,5,FALSE),\"\"))","v":""},{"$f":"IF($C50=\"\",\"\",IFERROR(VLOOKUP($C50,Defaults!$BN$37:$BS$63,5,FALSE),\"\"))","v":""},{"$f":"IF($C50=\"\",\"\",IFERROR(VLOOKUP($C50,Defaults!$BU$37:$BZ$63,5,FALSE),\"\"))","v":""},{"$f":"IF($C50=\"\",\"\",IFERROR(VLOOKUP($C50,Defaults!$CB$37:$CG$63,5,FALSE),\"\"))","v":""},{"$f":"IF($C50=\"\",\"\",IFERROR(VLOOKUP($C50,Defaults!$CI:$CN,5,FALSE),\"\"))","v":""},null,{"$f":"IF($C50=\"\",\"\",$C50)","v":""},{"$f":"IF($C50=\"\",\"\",IFERROR(VLOOKUP($C50,Defaults!$AL$37:$AQ$63,6,FALSE),\"\"))","v":""},{"$f":"IF($C50=\"\",\"\",IFERROR(VLOOKUP($C50,Defaults!$AS$37:$AX$63,6,FALSE),\"\"))","v":""},{"$f":"IF($C50=\"\",\"\",IFERROR(VLOOKUP($C50,Defaults!$AZ$37:$BE$63,6,FALSE),\"\"))","v":""},{"$f":"IF($C50=\"\",\"\",IFERROR(VLOOKUP($C50,Defaults!$BG$37:$BL$63,6,FALSE),\"\"))","v":""},{"$f":"IF($C50=\"\",\"\",IFERROR(VLOOKUP($C50,Defaults!$BN$37:$BS$63,6,FALSE),\"\"))","v":""},{"$f":"IF($C50=\"\",\"\",IFERROR(VLOOKUP($C50,Defaults!$BU$37:$BZ$63,6,FALSE),\"\"))","v":""},{"$f":"IF($C50=\"\",\"\",IFERROR(VLOOKUP($C50,Defaults!$CB$37:$CG$63,6,FALSE),\"\"))","v":""},{"$f":"IF($C50=\"\",\"\",IFERROR(VLOOKUP($C50,Defaults!$CI:$CN,6,FALSE),\"\"))","v":""}]
[null,null,null,null,null,null,null,null,null,null,{"$f":"IF(C51=\"\",\"\",ROUND(IF(E51=AE51,AF51,IF(AE51=$AC$2,AF51*VLOOKUP(E51,$AA$2:$AB$4,2,FALSE),IF(AE51=$AF$2,AF51*VLOOKUP(E51,$AD$2:$AE$3,2,FALSE),IF(AE51=$AI$2,AF51/VLOOKUP(E51,$AG$2:$AH$2,2,FALSE),IF(AE51=$AL$2,AF51*VLOOKUP(E51,$AJ$2:$AK$2,2,FALSE),IF(AE51=$AO$2,AF51/VLOOKUP(E51,$AM$2:$AN$2,2,FALSE),IF(AE51=$AR$2,AF51*VLOOKUP(E51,$AP$2:$AQ$3,2,FALSE)))))))),2))","v":""},null,"",0,null,null,{"$f":"IF(L51>0,ABS(V51-L51),\"\")","v":""},null,null,null,{"$f":"J51","v":0},{"$f":"IF(AG51=0,0,AG51)","v":""},"","",null,{"$f":"IF($Z$2=Defaults!$M$5,Cotton!B51,IF($Z$2=Defaults!$M$6,Corn!B51,IF($Z$2=Defaults!$M$7,Sorghum!B51,IF($Z$2=Defaults!$M$8,Soybean!B51,IF($Z$2=Defaults!$M$9,Rice!B51,IF($Z$2=Defaults!$M$10,Peanut!B51,IF($Z$2=Defaults!$M$11,Wheat!B51,IF($Z$2=Defaults!$M$12,Pasture!B51,\"\"))))))))","v":""},{"$f":"IF(C51=\"\",\"\",HLOOKUP($Z$2,$AZ$48:$BG$53,4,FALSE))","v":""},{"$f":"IF(C51=\"\",\"\",HLOOKUP($Z$2,$BJ$48:$BQ$53,4,FALSE))","v":""},0,{"$f":"IF(C51=\"\",\"\",HLOOKUP($Z$2,$BT$48:$CA$53,4,FALSE))","v":""},{"$f":"IF(C51=\"\",\"\",VLOOKUP(C51,Defaults!$AH:$AJ,2,FALSE))","v":""},{"$f":"IF(C51=\"\",\"\",ROUND(VLOOKUP(C51,Defaults!$AH:$AJ,3,FALSE),2))","v":""},{"$f":"IFERROR(IF(LEFT($C$48,6)=\"Custom\",L51,L51*(1-VLOOKUP($C$48,Implements!$A$159:$D$166,4,FALSE))),\"\")","v":""},null,null,null,null,null,{"$f":"N51","v":0},null,{"$f":"N51","v":0},null,null,null,null,null,{"$f":"W51","v":""},null,{"$f":"W51","v":""},null,{"$f":"IF($C51=\"\",\"\",$C51)","v":""},{"$f":"IF($C51=\"\",\"\",VLOOKUP($C51,Defaults!$AL$37:$AQ$63,4,FALSE))","v":""},{"$f":"IF($C51=\"\",\"\",VLOOKUP($C51,Defaults!$AS$37:$AX$63,4,FALSE))","v":""},{"$f":"IF($C51=\"\",\"\",VLOOKUP($C51,Defaults!$AZ$37:$BE$63,4,FALSE))","v":""},{"$f":"IF($C51=\"\",\"\",VLOOKUP($C51,Defaults!$BG$37:$BL$63,4,FALSE))","v":""},{"$f":"IF($C51=\"\",\"\",VLOOKUP($C51,Defaults!$BN$37:$BS$63,4,FALSE))","v":""},{"$f":"IF($C51=\"\",\"\",VLOOKUP($C51,Defaults!$BU$37:$BZ$63,4,FALSE))","v":""},{"$f":"IF($C51=\"\",\"\",VLOOKUP($C51,Defaults!$CB$37:$CG$63,4,FALSE))","v":""},{"$f":"IF($C51=\"\",\"\",VLOOKUP($C51,Defaults!$CI:$CN,4,FALSE))","v":""},null,{"$f":"IF($C51=\"\",\"\",$C51)","v":""},{"$f":"IF($C51=\"\",\"\",IFERROR(VLOOKUP($C51,Defaults!$AL$37:$AQ$63,5,FALSE),\"\"))","v":""},{"$f":"IF($C51=\"\",\"\",IFERROR(VLOOKUP($C51,Defaults!$AS$37:$AX$63,5,FALSE),\"\"))","v":""},{"$f":"IF($C51=\"\",\"\",IFERROR(VLOOKUP($C51,Defaults!$AZ$37:$BE$63,5,FALSE),\"\"))","v":""},{"$f":"IF($C51=\"\",\"\",IFERROR(VLOOKUP($C51,Defaults!$BG$37:$BL$63,5,FALSE),\"\"))","v":""},{"$f":"IF($C51=\"\",\"\",IFERROR(VLOOKUP($C51,Defaults!$BN$37:$BS$63,5,FALSE),\"\"))","v":""},{"$f":"IF($C51=\"\",\"\",IFERROR(VLOOKUP($C51,Defaults!$BU$37:$BZ$63,5,FALSE),\"\"))","v":""},{"$f":"IF($C51=\"\",\"\",IFERROR(VLOOKUP($C51,Defaults!$CB$37:$CG$63,5,FALSE),\"\"))","v":""},{"$f":"IF($C51=\"\",\"\",IFERROR(VLOOKUP($C51,Defaults!$CI:$CN,5,FALSE),\"\"))","v":""},null,{"$f":"IF($C51=\"\",\"\",$C51)","v":""},{"$f":"IF($C51=\"\",\"\",IFERROR(VLOOKUP($C51,Defaults!$AL$37:$AQ$63,6,FALSE),\"\"))","v":""},{"$f":"IF($C51=\"\",\"\",IFERROR(VLOOKUP($C51,Defaults!$AS$37:$AX$63,6,FALSE),\"\"))","v":""},{"$f":"IF($C51=\"\",\"\",IFERROR(VLOOKUP($C51,Defaults!$AZ$37:$BE$63,6,FALSE),\"\"))","v":""},{"$f":"IF($C51=\"\",\"\",IFERROR(VLOOKUP($C51,Defaults!$BG$37:$BL$63,6,FALSE),\"\"))","v":""},{"$f":"IF($C51=\"\",\"\",IFERROR(VLOOKUP($C51,Defaults!$BN$37:$BS$63,6,FALSE),\"\"))","v":""},{"$f":"IF($C51=\"\",\"\",IFERROR(VLOOKUP($C51,Defaults!$BU$37:$BZ$63,6,FALSE),\"\"))","v":""},{"$f":"IF($C51=\"\",\"\",IFERROR(VLOOKUP($C51,Defaults!$CB$37:$CG$63,6,FALSE),\"\"))","v":""},{"$f":"IF($C51=\"\",\"\",IFERROR(VLOOKUP($C51,Defaults!$CI:$CN,6,FALSE),\"\"))","v":""}]
[null,null,null,null,null,null,null,null,null,null,{"$f":"IF(C52=\"\",\"\",ROUND(IF(E52=AE52,AF52,IF(AE52=$AC$2,AF52*VLOOKUP(E52,$AA$2:$AB$4,2,FALSE),IF(AE52=$AF$2,AF52*VLOOKUP(E52,$AD$2:$AE$3,2,FALSE),IF(AE52=$AI$2,AF52/VLOOKUP(E52,$AG$2:$AH$2,2,FALSE),IF(AE52=$AL$2,AF52*VLOOKUP(E52,$AJ$2:$AK$2,2,FALSE),IF(AE52=$AO$2,AF52/VLOOKUP(E52,$AM$2:$AN$2,2,FALSE),IF(AE52=$AR$2,AF52*VLOOKUP(E52,$AP$2:$AQ$3,2,FALSE)))))))),2))","v":""},null,"",0,null,null,{"$f":"IF(L52>0,ABS(V52-L52),\"\")","v":""},null,null,null,{"$f":"J52","v":0},{"$f":"IF(AG52=0,0,AG52)","v":""},"","",null,{"$f":"IF($Z$2=Defaults!$M$5,Cotton!B52,IF($Z$2=Defaults!$M$6,Corn!B52,IF($Z$2=Defaults!$M$7,Sorghum!B52,IF($Z$2=Defaults!$M$8,Soybean!B52,IF($Z$2=Defaults!$M$9,Rice!B52,IF($Z$2=Defaults!$M$10,Peanut!B52,IF($Z$2=Defaults!$M$11,Wheat!B52,IF($Z$2=Defaults!$M$12,Pasture!B52,\"\"))))))))","v":""},{"$f":"IF(C52=\"\",\"\",HLOOKUP($Z$2,$AZ$48:$BG$53,5,FALSE))","v":""},{"$f":"IF(C52=\"\",\"\",HLOOKUP($Z$2,$BJ$48:$BQ$53,5,FALSE))","v":""},0,{"$f":"IF(C52=\"\",\"\",HLOOKUP($Z$2,$BT$48:$CA$53,5,FALSE))","v":""},{"$f":"IF(C52=\"\",\"\",VLOOKUP(C52,Defaults!$AH:$AJ,2,FALSE))","v":""},{"$f":"IF(C52=\"\",\"\",ROUND(VLOOKUP(C52,Defaults!$AH:$AJ,3,FALSE),2))","v":""},{"$f":"IFERROR(IF(LEFT($C$48,6)=\"Custom\",L52,L52*(1-VLOOKUP($C$48,Implements!$A$159:$D$166,4,FALSE))),\"\")","v":""},null,null,null,null,null,{"$f":"N52","v":0},null,{"$f":"N52","v":0},null,null,null,null,null,{"$f":"W52","v":""},null,{"$f":"W52","v":""},null,{"$f":"IF($C52=\"\",\"\",$C52)","v":""},{"$f":"IF($C52=\"\",\"\",VLOOKUP($C52,Defaults!$AL$37:$AQ$63,4,FALSE))","v":""},{"$f":"IF($C52=\"\",\"\",VLOOKUP($C52,Defaults!$AS$37:$AX$63,4,FALSE))","v":""},{"$f":"IF($C52=\"\",\"\",VLOOKUP($C52,Defaults!$AZ$37:$BE$63,4,FALSE))","v":""},{"$f":"IF($C52=\"\",\"\",VLOOKUP($C52,Defaults!$BG$37:$BL$63,4,FALSE))","v":""},{"$f":"IF($C52=\"\",\"\",VLOOKUP($C52,Defaults!$BN$37:$BS$63,4,FALSE))","v":""},{"$f":"IF($C52=\"\",\"\",VLOOKUP($C52,Defaults!$BU$37:$BZ$63,4,FALSE))","v":""},{"$f":"IF($C52=\"\",\"\",VLOOKUP($C52,Defaults!$CB$37:$CG$63,4,FALSE))","v":""},{"$f":"IF($C52=\"\",\"\",VLOOKUP($C52,Defaults!$CI:$CN,4,FALSE))","v":""},null,{"$f":"IF($C52=\"\",\"\",$C52)","v":""},{"$f":"IF($C52=\"\",\"\",IFERROR(VLOOKUP($C52,Defaults!$AL$37:$AQ$63,5,FALSE),\"\"))","v":""},{"$f":"IF($C52=\"\",\"\",IFERROR(VLOOKUP($C52,Defaults!$AS$37:$AX$63,5,FALSE),\"\"))","v":""},{"$f":"IF($C52=\"\",\"\",IFERROR(VLOOKUP($C52,Defaults!$AZ$37:$BE$63,5,FALSE),\"\"))","v":""},{"$f":"IF($C52=\"\",\"\",IFERROR(VLOOKUP($C52,Defaults!$BG$37:$BL$63,5,FALSE),\"\"))","v":""},{"$f":"IF($C52=\"\",\"\",IFERROR(VLOOKUP($C52,Defaults!$BN$37:$BS$63,5,FALSE),\"\"))","v":""},{"$f":"IF($C52=\"\",\"\",IFERROR(VLOOKUP($C52,Defaults!$BU$37:$BZ$63,5,FALSE),\"\"))","v":""},{"$f":"IF($C52=\"\",\"\",IFERROR(VLOOKUP($C52,Defaults!$CB$37:$CG$63,5,FALSE),\"\"))","v":""},{"$f":"IF($C52=\"\",\"\",IFERROR(VLOOKUP($C52,Defaults!$CI:$CN,5,FALSE),\"\"))","v":""},null,{"$f":"IF($C52=\"\",\"\",$C52)","v":""},{"$f":"IF($C52=\"\",\"\",IFERROR(VLOOKUP($C52,Defaults!$AL$37:$AQ$63,6,FALSE),\"\"))","v":""},{"$f":"IF($C52=\"\",\"\",IFERROR(VLOOKUP($C52,Defaults!$AS$37:$AX$63,6,FALSE),\"\"))","v":""},{"$f":"IF($C52=\"\",\"\",IFERROR(VLOOKUP($C52,Defaults!$AZ$37:$BE$63,6,FALSE),\"\"))","v":""},{"$f":"IF($C52=\"\",\"\",IFERROR(VLOOKUP($C52,Defaults!$BG$37:$BL$63,6,FALSE),\"\"))","v":""},{"$f":"IF($C52=\"\",\"\",IFERROR(VLOOKUP($C52,Defaults!$BN$37:$BS$63,6,FALSE),\"\"))","v":""},{"$f":"IF($C52=\"\",\"\",IFERROR(VLOOKUP($C52,Defaults!$BU$37:$BZ$63,6,FALSE),\"\"))","v":""},{"$f":"IF($C52=\"\",\"\",IFERROR(VLOOKUP($C52,Defaults!$CB$37:$CG$63,6,FALSE),\"\"))","v":""},{"$f":"IF($C52=\"\",\"\",IFERROR(VLOOKUP($C52,Defaults!$CI:$CN,6,FALSE),\"\"))","v":""}]
[null,null,null,null,null,null,null,null,null,null,{"$f":"IF(C53=\"\",\"\",ROUND(IF(E53=AE53,AF53,IF(AE53=$AC$2,AF53*VLOOKUP(E53,$AA$2:$AB$4,2,FALSE),IF(AE53=$AF$2,AF53*VLOOKUP(E53,$AD$2:$AE$3,2,FALSE),IF(AE53=$AI$2,AF53/VLOOKUP(E53,$AG$2:$AH$2,2,FALSE),IF(AE53=$AL$2,AF53*VLOOKUP(E53,$AJ$2:$AK$2,2,FALSE),IF(AE53=$AO$2,AF53/VLOOKUP(E53,$AM$2:$AN$2,2,FALSE),IF(AE53=$AR$2,AF53*VLOOKUP(E53,$AP$2:$AQ$3,2,FALSE)))))))),2))","v":""},null,"",0,null,null,{"$f":"IF(L53>0,ABS(V53-L53),\"\")","v":""},null,null,null,{"$f":"J53","v":0},{"$f":"IF(AG53=0,0,AG53)","v":""},"","",null,{"$f":"IF($Z$2=Defaults!$M$5,Cotton!B53,IF($Z$2=Defaults!$M$6,Corn!B53,IF($Z$2=Defaults!$M$7,Sorghum!B53,IF($Z$2=Defaults!$M$8,Soybean!B53,IF($Z$2=Defaults!$M$9,Rice!B53,IF($Z$2=Defaults!$M$10,Peanut!B53,IF($Z$2=Defaults!$M$11,Wheat!B53,IF($Z$2=Defaults!$M$12,Pasture!B53,\"\"))))))))","v":""},{"$f":"IF(C53=\"\",\"\",HLOOKUP($Z$2,$AZ$48:$BG$53,6,FALSE))","v":""},{"$f":"IF(C53=\"\",\"\",HLOOKUP($Z$2,$BJ$48:$BQ$53,6,FALSE))","v":""},0,{"$f":"IF(C53=\"\",\"\",HLOOKUP($Z$2,$BT$48:$CA$53,6,FALSE))","v":""},{"$f":"IF(C53=\"\",\"\",VLOOKUP(C53,Defaults!$AH:$AJ,2,FALSE))","v":""},{"$f":"IF(C53=\"\",\"\",ROUND(VLOOKUP(C53,Defaults!$AH:$AJ,3,FALSE),2))","v":""},{"$f":"IFERROR(IF(LEFT($C$48,6)=\"Custom\",L53,L53*(1-VLOOKUP($C$48,Implements!$A$159:$D$166,4,FALSE))),\"\")","v":""},null,null,null,null,null,{"$f":"N53","v":0},null,{"$f":"N53","v":0},null,null,null,null,null,{"$f":"W53","v":""},null,{"$f":"W53","v":""},null,{"$f":"IF($C53=\"\",\"\",$C53)","v":""},{"$f":"IF($C53=\"\",\"\",VLOOKUP($C53,Defaults!$AL$37:$AQ$63,4,FALSE))","v":""},{"$f":"IF($C53=\"\",\"\",VLOOKUP($C53,Defaults!$AS$37:$AX$63,4,FALSE))","v":""},{"$f":"IF($C53=\"\",\"\",VLOOKUP($C53,Defaults!$AZ$37:$BE$63,4,FALSE))","v":""},{"$f":"IF($C53=\"\",\"\",VLOOKUP($C53,Defaults!$BG$37:$BL$63,4,FALSE))","v":""},{"$f":"IF($C53=\"\",\"\",VLOOKUP($C53,Defaults!$BN$37:$BS$63,4,FALSE))","v":""},{"$f":"IF($C53=\"\",\"\",VLOOKUP($C53,Defaults!$BU$37:$BZ$63,4,FALSE))","v":""},{"$f":"IF($C53=\"\",\"\",VLOOKUP($C53,Defaults!$CB$37:$CG$63,4,FALSE))","v":""},{"$f":"IF($C53=\"\",\"\",VLOOKUP($C53,Defaults!$CI:$CN,4,FALSE))","v":""},null,{"$f":"IF($C53=\"\",\"\",$C53)","v":""},{"$f":"IF($C53=\"\",\"\",IFERROR(VLOOKUP($C53,Defaults!$AL$37:$AQ$63,5,FALSE),\"\"))","v":""},{"$f":"IF($C53=\"\",\"\",IFERROR(VLOOKUP($C53,Defaults!$AS$37:$AX$63,5,FALSE),\"\"))","v":""},{"$f":"IF($C53=\"\",\"\",IFERROR(VLOOKUP($C53,Defaults!$AZ$37:$BE$63,5,FALSE),\"\"))","v":""},{"$f":"IF($C53=\"\",\"\",IFERROR(VLOOKUP($C53,Defaults!$BG$37:$BL$63,5,FALSE),\"\"))","v":""},{"$f":"IF($C53=\"\",\"\",IFERROR(VLOOKUP($C53,Defaults!$BN$37:$BS$63,5,FALSE),\"\"))","v":""},{"$f":"IF($C53=\"\",\"\",IFERROR(VLOOKUP($C53,Defaults!$BU$37:$BZ$63,5,FALSE),\"\"))","v":""},{"$f":"IF($C53=\"\",\"\",IFERROR(VLOOKUP($C53,Defaults!$CB$37:$CG$63,5,FALSE),\"\"))","v":""},{"$f":"IF($C53=\"\",\"\",IFERROR(VLOOKUP($C53,Defaults!$CI:$CN,5,FALSE),\"\"))","v":""},null,{"$f":"IF($C53=\"\",\"\",$C53)","v":""},{"$f":"IF($C53=\"\",\"\",IFERROR(VLOOKUP($C53,Defaults!$AL$37:$AQ$63,6,FALSE),\"\"))","v":""},{"$f":"IF($C53=\"\",\"\",IFERROR(VLOOKUP($C53,Defaults!$AS$37:$AX$63,6,FALSE),\"\"))","v":""},{"$f":"IF($C53=\"\",\"\",IFERROR(VLOOKUP($C53,Defaults!$AZ$37:$BE$63,6,FALSE),\"\"))","v":""},{"$f":"IF($C53=\"\",\"\",IFERROR(VLOOKUP($C53,Defaults!$BG$37:$BL$63,6,FALSE),\"\"))","v":""},{"$f":"IF($C53=\"\",\"\",IFERROR(VLOOKUP($C53,Defaults!$BN$37:$BS$63,6,FALSE),\"\"))","v":""},{"$f":"IF($C53=\"\",\"\",IFERROR(VLOOKUP($C53,Defaults!$BU$37:$BZ$63,6,FALSE),\"\"))","v":""},{"$f":"IF($C53=\"\",\"\",IFERROR(VLOOKUP($C53,Defaults!$CB$37:$CG$63,6,FALSE),\"\"))","v":""},{"$f":"IF($C53=\"\",\"\",IFERROR(VLOOKUP($C53,Defaults!$CI:$CN,6,FALSE),\"\"))","v":""}]
[null,null,null,{"$f":"IF($Z$2=Defaults!$M$5,Cotton!D54,IF($Z$2=Defaults!$M$6,Corn!D54,IF($Z$2=Defaults!$M$7,Sorghum!D54,IF($Z$2=Defaults!$M$8,Soybean!D54,IF($Z$2=Defaults!$M$9,Rice!D54,IF($Z$2=Defaults!$M$10,Peanut!D54,IF($Z$2=Defaults!$M$11,Wheat!D54,IF($Z$2=Defaults!$M$12,Pasture!D54,FALSE))))))))","v":""},null,null,null,null,null,null,null,null,null,null,null,null,null,null,null,null,null,null,null,null,null,{"$f":"IF($Z$2=Defaults!$M$5,Cotton!B54,IF($Z$2=Defaults!$M$6,Corn!B54,IF($Z$2=Defaults!$M$7,Sorghum!B54,IF($Z$2=Defaults!$M$8,Soybean!B54,IF($Z$2=Defaults!$M$9,Rice!B54,IF($Z$2=Defaults!$M$10,Peanut!B54,IF($Z$2=Defaults!$M$11,Wheat!B54,IF($Z$2=Defaults!$M$12,Pasture!B54,\"\"))))))))","v":""},null,null,null,null,null,null,null,null,null,null,null,null,null,null,null,null,null,null,null,null,null,null,null,null,"POST",null,null,null,null,null,null,null,null,null,"POST",null,null,null,null,null,null,null,null,null,"POST"]
[null,null,null,null,null,{"$f":"IF(L55=0,0,IF(C55=Defaults!$I$27,Implements!$AK$185,IF(C55=Defaults!$I$28,Implements!$AK$186,0)))","v":0},{"$f":"IF($L55=0,0,IFERROR(VLOOKUP($C55,Implements!$X$181:$AN$188,15,FALSE),0))","v":0},{"$f":"IF($L55=0,0,IFERROR(VLOOKUP($C55,Implements!$X$181:$AN$188,16,FALSE),0))","v":0},{"$f":"IF($L55=0,0,IFERROR(VLOOKUP($C55,Implements!$X$181:$AN$188,17,FALSE),0))","v":0},{"$f":"IF(OR(C55=\"\",L55=\"\",L55=0)=TRUE,\"\",IF(OR(C55=Defaults!$I$25,C55=Defaults!$I$26)=TRUE,VLOOKUP(C55,Defaults!$I$24:$K$27,3,FALSE),ROUND(1/F55*(1*Inputs!$AA$13+($AI$7-1)*Inputs!$AA$15),2)+ROUND(G55*Inputs!$V$13/F55,2)+ROUND(H55/F55,2)+ROUND(I55/F55,2)))","v":""},{"$f":"IF(OR(C55=\"\",L55=\"\",L55=0)=TRUE,\"\",IF(OR(C55=Defaults!$I$25,C55=Defaults!$I$26)=TRUE,VLOOKUP(C55,Defaults!$I$24:$K$27,3,FALSE),ROUND(1/F55*(1*Inputs!$AA$13+($AI$7-1)*Inputs!$AA$15),2)+ROUND(G55*Inputs!$V$13/F55,2)+ROUND(H55/F55,2)+ROUND(I55/F55,2)))","v":""},null,{"$f":"AB55","v":""},{"$f":"IF(C55=\"\",0,IF(L55=0,0,IF(L55=\"\",\"\",J55*L55)))","v":0},null,null,{"$f":"IF(V55=0,0,IF(C55=Defaults!$I$27,Implements!$AK$174,IF(C55=Defaults!$I$28,Implements!$AK$175,0)))","v":0},{"$f":"IF($V55=0,0,IFERROR(VLOOKUP($C55,Implements!$X$170:$AN$177,15,FALSE),0))","v":0},{"$f":"IF($V55=0,0,IFERROR(VLOOKUP($C55,Implements!$X$170:$AN$177,16,FALSE),0))","v":0},{"$f":"IF($V55=0,0,IFERROR(VLOOKUP($C55,Implements!$X$170:$AN$177,17,FALSE),0))","v":0},{"$f":"IF(OR(C55=\"\",V55=\"\",V55=0)=TRUE,\"\",IF(LEFT(C55,6)=\"Custom\",J55,ROUND(1/Q55*(1*Inputs!$AA$13+($AI$7-1)*Inputs!$AA$15),2)+ROUND(R55*Inputs!$V$13/Q55,2)+ROUND(S55/Q55,2)+ROUND(T55/Q55,2)))","v":""},{"$f":"+L55","v":0},{"$f":"IF(C55=\"\",\"\",IF(V55=0,0,IF(V55=\"\",\"\",U55*V55)))","v":""},{"$f":"IF(C55=\"\",\"\",W55-N55)","v":""},null,{"$f":"IF($Z$2=Defaults!$M$5,Cotton!B55,IF($Z$2=Defaults!$M$6,Corn!B55,IF($Z$2=Defaults!$M$7,Sorghum!B55,IF($Z$2=Defaults!$M$8,Soybean!B55,IF($Z$2=Defaults!$M$9,Rice!B55,IF($Z$2=Defaults!$M$10,Peanut!B55,IF($Z$2=Defaults!$M$11,Wheat!B55,IF($Z$2=Defaults!$M$12,Pasture!B55,\"\"))))))))","v":""},null,{"$f":"IF(C55=\"\",\"\",IF($Z$2=Defaults!$M$12,VLOOKUP(C55,Defaults!$I$35:$J$37,2,FALSE),VLOOKUP(C55,Defaults!$I$24:$J$28,2,FALSE)))","v":""},0,{"$f":"IF(AB55=\"\",\"\",AB55*2)","v":""},null,null,{"$f":"+AB55","v":""},{"$f":"N55","v":0},{"$f":"ROUND(IFERROR(1/F55*(1*Inputs!$AA$13+($AI$7-1)*Inputs!$AA$15),0),2)*L55","v":0},{"$f":"ROUND(IFERROR(1/F55*G55*Inputs!$V$13,0),2)*L55","v":0},{"$f":"ROUND(IFERROR(1/F55*H55,0),2)*L55","v":0},{"$f":"ROUND(IFERROR(1/F55*I55,0),2)*L55","v":0},null,null,null,{"$f":"W55","v":""},{"$f":"ROUND(IFERROR(1/Q55*(1*Inputs!$AA$13+($AI$7-1)*Inputs!$AA$15),0),2)*V55","v":0},{"$f":"ROUND(IFERROR(1/Q55*R55*Inputs!$V$13,0),2)*V55","v":0},{"$f":"ROUND(IFERROR(1/Q55*S55,0),2)*V55","v":0},{"$f":"ROUND(IFERROR(1/Q55*T55,0),2)*V55","v":0},null,null,null,null,null,{"$f":"AZ11","v":"Cotton"},"Corn","Sorghum","Soybean","Rice","Peanut","Wheat","Est. Pasture or Hay",null,null,{"$f":"BJ11","v":"Cotton"},"Corn","Sorghum","Soybean","Rice","Peanut","Wheat","Est. Pasture or Hay",null,null,{"$f":"BT11","v":"Cotton"},"Corn","Sorghum","Soybean","Rice","Peanut","Wheat","Est. Pasture or Hay"]
[null,null,null,null,null,null,null,null,null,null,{"$f":"IF(C56=\"\",\"\",ROUND(IF(E56=AE56,AF56,IF(AE56=$AC$2,AF56*VLOOKUP(E56,$AA$2:$AB$4,2,FALSE),IF(AE56=$AF$2,AF56*VLOOKUP(E56,$AD$2:$AE$3,2,FALSE),IF(AE56=$AI$2,AF56/VLOOKUP(E56,$AG$2:$AH$2,2,FALSE),IF(AE56=$AL$2,AF56*VLOOKUP(E56,$AJ$2:$AK$2,2,FALSE),IF(AE56=$AO$2,AF56/VLOOKUP(E56,$AM$2:$AN$2,2,FALSE),IF(AE56=$AR$2,AF56*VLOOKUP(E56,$AP$2:$AQ$3,2,FALSE)))))))),2))","v":""},null,{"$f":"AB56","v":""},{"$f":"IF(C56=\"\",0,IF(L56=0,0,IF(L56=\"\",\"\",J56*L56)))","v":0},null,null,{"$f":"IF(L56>0,ABS(V56-L56),\"\")","v":""},null,null,null,{"$f":"J56","v":0},{"$f":"IF(AG56=0,0,AG56)","v":""},{"$f":"IF(C56=\"\",\"\",IF(V56=0,0,IF(V56=\"\",\"\",U56*V56)))","v":""},"",null,{"$f":"IF($Z$2=Defaults!$M$5,Cotton!B56,IF($Z$2=Defaults!$M$6,Corn!B56,IF($Z$2=Defaults!$M$7,Sorghum!B56,IF($Z$2=Defaults!$M$8,Soybean!B56,IF($Z$2=Defaults!$M$9,Rice!B56,IF($Z$2=Defaults!$M$10,Peanut!B56,IF($Z$2=Defaults!$M$11,Wheat!B56,IF($Z$2=Defaults!$M$12,Pasture!B56,\"\"))))))))","v":""},{"$f":"IF(C56=\"\",\"\",HLOOKUP($Z$2,$AZ$55:$BG$59,2,FALSE))","v":""},{"$f":"IF(C56=\"\",\"\",HLOOKUP($Z$2,$BJ$55:$BQ$59,2,FALSE))","v":""},0,{"$f":"IF(C56=\"\",\"\",HLOOKUP($Z$2,$BT$55:$CA$59,2,FALSE))","v":""},{"$f":"IF(C56=\"\",\"\",VLOOKUP(C56,Defaults!$AH:$AJ,2,FALSE))","v":""},{"$f":"IF(C56=\"\",\"\",ROUND(VLOOKUP(C56,Defaults!$AH:$AJ,3,FALSE),2))","v":""},{"$f":"IFERROR(IF(LEFT($C$55,6)=\"Custom\",L56,L56*(1-VLOOKUP($C$55,Implements!$A$159:$D$166,4,FALSE))),\"\")","v":""},null,null,null,null,null,{"$f":"N56","v":0},null,{"$f":"N56","v":0},null,null,null,null,null,{"$f":"W56","v":""},null,{"$f":"W56","v":""},null,{"$f":"IF($C56=\"\",\"\",$C56)","v":""},{"$f":"IF($C56=\"\",\"\",VLOOKUP($C56,Defaults!$AL$65:$AQ$82,4,FALSE))","v":""},{"$f":"IF($C56=\"\",\"\",VLOOKUP($C56,Defaults!$AS$65:$AX$96,4,FALSE))","v":""},{"$f":"IF($C56=\"\",\"\",VLOOKUP($C56,Defaults!$AZ$65:$BE$96,4,FALSE))","v":""},{"$f":"IF($C56=\"\",\"\",VLOOKUP($C56,Defaults!$BG$65:$BL$96,4,FALSE))","v":""},{"$f":"IF($C56=\"\",\"\",VLOOKUP($C56,Defaults!$BN$65:$BS$96,4,FALSE))","v":""},{"$f":"IF($C56=\"\",\"\",VLOOKUP($C56,Defaults!$BU$65:$BZ$96,4,FALSE))","v":""},{"$f":"IF($C56=\"\",\"\",VLOOKUP($C56,Defaults!$CB$65:$CG$96,4,FALSE))","v":""},{"$f":"IF($C56=\"\",\"\",VLOOKUP($C56,Defaults!$CI:$CN,4,FALSE))","v":""},null,{"$f":"IF($C56=\"\",\"\",$C56)","v":""},{"$f":"IF($C56=\"\",\"\",IFERROR(VLOOKUP($C56,Defaults!$AL$65:$AQ$82,5,FALSE),\"\"))","v":""},{"$f":"IF($C56=\"\",\"\",IFERROR(VLOOKUP($C56,Defaults!$AS$65:$AX$96,5,FALSE),\"\"))","v":""},{"$f":"IF($C56=\"\",\"\",IFERROR(VLOOKUP($C56,Defaults!$AZ$65:$BE$96,5,FALSE),\"\"))","v":""},{"$f":"IF($C56=\"\",\"\",IFERROR(VLOOKUP($C56,Defaults!$BG$65:$BL$96,5,FALSE),\"\"))","v":""},{"$f":"IF($C56=\"\",\"\",IFERROR(VLOOKUP($C56,Defaults!$BN$65:$BS$96,5,FALSE),\"\"))","v":""},{"$f":"IF($C56=\"\",\"\",IFERROR(VLOOKUP($C56,Defaults!$BU$65:$BZ$96,5,FALSE),\"\"))","v":""},{"$f":"\"\"","v":""},{"$f":"IF($C56=\"\",\"\",IFERROR(VLOOKUP($C56,Defaults!$CI:$CN,5,FALSE),\"\"))","v":""},null,{"$f":"IF($C56=\"\",\"\",$C56)","v":""},{"$f":"IF($C56=\"\",\"\",IFERROR(VLOOKUP($C56,Defaults!$AL$65:$AQ$82,6,FALSE),\"\"))","v":""},{"$f":"IF($C56=\"\",\"\",IFERROR(VLOOKUP($C56,Defaults!$AS$65:$AX$96,6,FALSE),\"\"))","v":""},{"$f":"IF($C56=\"\",\"\",IFERROR(VLOOKUP($C56,Defaults!$AZ$65:$BE$96,6,FALSE),\"\"))","v":""},{"$f":"IF($C56=\"\",\"\",IFERROR(VLOOKUP($C56,Defaults!$BG$65:$BL$96,6,FALSE),\"\"))","v":""},{"$f":"IF($C56=\"\",\"\",IFERROR(VLOOKUP($C56,Defaults!$BN$65:$BS$96,6,FALSE),\"\"))","v":""},{"$f":"IF($C56=\"\",\"\",IFERROR(VLOOKUP($C56,Defaults!$BU$65:$BZ$96,6,FALSE),\"\"))","v":""},{"$f":"\"\"","v":""},{"$f":"IF($C56=\"\",\"\",IFERROR(VLOOKUP($C56,Defaults!$CI:$CN,6,FALSE),\"\"))","v":""}]
[null,null,null,null,null,null,null,null,null,null,{"$f":"IF(C57=\"\",\"\",ROUND(IF(E57=AE57,AF57,IF(AE57=$AC$2,AF57*VLOOKUP(E57,$AA$2:$AB$4,2,FALSE),IF(AE57=$AF$2,AF57*VLOOKUP(E57,$AD$2:$AE$3,2,FALSE),IF(AE57=$AI$2,AF57/VLOOKUP(E57,$AG$2:$AH$2,2,FALSE),IF(AE57=$AL$2,AF57*VLOOKUP(E57,$AJ$2:$AK$2,2,FALSE),IF(AE57=$AO$2,AF57/VLOOKUP(E57,$AM$2:$AN$2,2,FALSE),IF(AE57=$AR$2,AF57*VLOOKUP(E57,$AP$2:$AQ$3,2,FALSE)))))))),2))","v":""},null,{"$f":"AB57","v":""},{"$f":"IF(C57=\"\",0,IF(L57=0,0,IF(L57=\"\",\"\",J57*L57)))","v":0},null,null,{"$f":"IF(L57>0,ABS(V57-L57),\"\")","v":""},null,null,null,{"$f":"J57","v":0},{"$f":"IF(AG57=0,0,AG57)","v":""},{"$f":"IF(C57=\"\",\"\",IF(V57=0,0,IF(V57=\"\",\"\",U57*V57)))","v":""},"",null,{"$f":"IF($Z$2=Defaults!$M$5,Cotton!B57,IF($Z$2=Defaults!$M$6,Corn!B57,IF($Z$2=Defaults!$M$7,Sorghum!B57,IF($Z$2=Defaults!$M$8,Soybean!B57,IF($Z$2=Defaults!$M$9,Rice!B57,IF($Z$2=Defaults!$M$10,Peanut!B57,IF($Z$2=Defaults!$M$11,Wheat!B57,IF($Z$2=Defaults!$M$12,Pasture!B57,\"\"))))))))","v":""},{"$f":"IF(C57=\"\",\"\",HLOOKUP($Z$2,$AZ$55:$BG$59,3,FALSE))","v":""},{"$f":"IF(C57=\"\",\"\",HLOOKUP($Z$2,$BJ$55:$BQ$59,3,FALSE))","v":""},0,{"$f":"IF(C57=\"\",\"\",HLOOKUP($Z$2,$BT$55:$CA$59,3,FALSE))","v":""},{"$f":"IF(C57=\"\",\"\",VLOOKUP(C57,Defaults!$AH:$AJ,2,FALSE))","v":""},{"$f":"IF(C57=\"\",\"\",ROUND(VLOOKUP(C57,Defaults!$AH:$AJ,3,FALSE),2))","v":""},{"$f":"IFERROR(IF(LEFT($C$55,6)=\"Custom\",L57,L57*(1-VLOOKUP($C$55,Implements!$A$159:$D$166,4,FALSE))),\"\")","v":""},null,null,null,null,null,{"$f":"N57","v":0},null,{"$f":"N57","v":0},null,null,null,null,null,{"$f":"W57","v":""},null,{"$f":"W57","v":""},null,{"$f":"IF($C57=\"\",\"\",$C57)","v":""},{"$f":"IF($C57=\"\",\"\",VLOOKUP($C57,Defaults!$AL$65:$AQ$82,4,FALSE))","v":""},{"$f":"IF($C57=\"\",\"\",VLOOKUP($C57,Defaults!$AS$65:$AX$96,4,FALSE))","v":""},{"$f":"IF($C57=\"\",\"\",VLOOKUP($C57,Defaults!$AZ$65:$BE$96,4,FALSE))","v":""},{"$f":"IF($C57=\"\",\"\",VLOOKUP($C57,Defaults!$BG$65:$BL$96,4,FALSE))","v":""},{"$f":"IF($C57=\"\",\"\",VLOOKUP($C57,Defaults!$BN$65:$BS$96,4,FALSE))","v":""},{"$f":"IF($C57=\"\",\"\",VLOOKUP($C57,Defaults!$BU$65:$BZ$96,4,FALSE))","v":""},{"$f":"IF($C57=\"\",\"\",VLOOKUP($C57,Defaults!$CB$65:$CG$96,4,FALSE))","v":""},{"$f":"IF($C57=\"\",\"\",VLOOKUP($C57,Defaults!$CI:$CN,4,FALSE))","v":""},null,{"$f":"IF($C57=\"\",\"\",$C57)","v":""},{"$f":"IF($C57=\"\",\"\",IFERROR(VLOOKUP($C57,Defaults!$AL$65:$AQ$82,5,FALSE),\"\"))","v":""},{"$f":"IF($C57=\"\",\"\",IFERROR(VLOOKUP($C57,Defaults!$AS$65:$AX$96,5,FALSE),\"\"))","v":""},{"$f":"IF($C57=\"\",\"\",IFERROR(VLOOKUP($C57,Defaults!$AZ$65:$BE$96,5,FALSE),\"\"))","v":""},{"$f":"IF($C57=\"\",\"\",IFERROR(VLOOKUP($C57,Defaults!$BG$65:$BL$96,5,FALSE),\"\"))","v":""},{"$f":"IF($C57=\"\",\"\",IFERROR(VLOOKUP($C57,Defaults!$BN$65:$BS$96,5,FALSE),\"\"))","v":""},{"$f":"IF($C57=\"\",\"\",IFERROR(VLOOKUP($C57,Defaults!$BU$65:$BZ$96,5,FALSE),\"\"))","v":""},{"$f":"\"\"","v":""},{"$f":"IF($C57=\"\",\"\",IFERROR(VLOOKUP($C57,Defaults!$CI:$CN,5,FALSE),\"\"))","v":""},null,{"$f":"IF($C57=\"\",\"\",$C57)","v":""},{"$f":"IF($C57=\"\",\"\",IFERROR(VLOOKUP($C57,Defaults!$AL$65:$AQ$82,6,FALSE),\"\"))","v":""},{"$f":"IF($C57=\"\",\"\",IFERROR(VLOOKUP($C57,Defaults!$AS$65:$AX$96,6,FALSE),\"\"))","v":""},{"$f":"IF($C57=\"\",\"\",IFERROR(VLOOKUP($C57,Defaults!$AZ$65:$BE$96,6,FALSE),\"\"))","v":""},{"$f":"IF($C57=\"\",\"\",IFERROR(VLOOKUP($C57,Defaults!$BG$65:$BL$96,6,FALSE),\"\"))","v":""},{"$f":"IF($C57=\"\",\"\",IFERROR(VLOOKUP($C57,Defaults!$BN$65:$BS$96,6,FALSE),\"\"))","v":""},{"$f":"IF($C57=\"\",\"\",IFERROR(VLOOKUP($C57,Defaults!$BU$65:$BZ$96,6,FALSE),\"\"))","v":""},{"$f":"\"\"","v":""},{"$f":"IF($C57=\"\",\"\",IFERROR(VLOOKUP($C57,Defaults!$CI:$CN,6,FALSE),\"\"))","v":""}]
[null,null,null,null,null,null,null,null,null,null,{"$f":"IF(C58=\"\",\"\",ROUND(IF(E58=AE58,AF58,IF(AE58=$AC$2,AF58*VLOOKUP(E58,$AA$2:$AB$4,2,FALSE),IF(AE58=$AF$2,AF58*VLOOKUP(E58,$AD$2:$AE$3,2,FALSE),IF(AE58=$AI$2,AF58/VLOOKUP(E58,$AG$2:$AH$2,2,FALSE),IF(AE58=$AL$2,AF58*VLOOKUP(E58,$AJ$2:$AK$2,2,FALSE),IF(AE58=$AO$2,AF58/VLOOKUP(E58,$AM$2:$AN$2,2,FALSE),IF(AE58=$AR$2,AF58*VLOOKUP(E58,$AP$2:$AQ$3,2,FALSE)))))))),2))","v":""},null,{"$f":"AB58","v":""},{"$f":"IF(C58=\"\",0,IF(L58=0,0,IF(L58=\"\",\"\",J58*L58)))","v":0},null,null,{"$f":"IF(L58>0,ABS(V58-L58),\"\")","v":""},null,null,null,{"$f":"J58","v":0},{"$f":"IF(AG58=0,0,AG58)","v":""},{"$f":"IF(C58=\"\",\"\",IF(V58=0,0,IF(V58=\"\",\"\",U58*V58)))","v":""},"",null,{"$f":"IF($Z$2=Defaults!$M$5,Cotton!B58,IF($Z$2=Defaults!$M$6,Corn!B58,IF($Z$2=Defaults!$M$7,Sorghum!B58,IF($Z$2=Defaults!$M$8,Soybean!B58,IF($Z$2=Defaults!$M$9,Rice!B58,IF($Z$2=Defaults!$M$10,Peanut!B58,IF($Z$2=Defaults!$M$11,Wheat!B58,IF($Z$2=Defaults!$M$12,Pasture!B58,\"\"))))))))","v":""},{"$f":"IF(C58=\"\",\"\",HLOOKUP($Z$2,$AZ$55:$BG$59,4,FALSE))","v":""},{"$f":"IF(C58=\"\",\"\",HLOOKUP($Z$2,$BJ$55:$BQ$59,4,FALSE))","v":""},0,{"$f":"IF(C58=\"\",\"\",HLOOKUP($Z$2,$BT$55:$CA$59,4,FALSE))","v":""},{"$f":"IF(C58=\"\",\"\",VLOOKUP(C58,Defaults!$AH:$AJ,2,FALSE))","v":""},{"$f":"IF(C58=\"\",\"\",ROUND(VLOOKUP(C58,Defaults!$AH:$AJ,3,FALSE),2))","v":""},{"$f":"IFERROR(IF(LEFT($C$55,6)=\"Custom\",L58,L58*(1-VLOOKUP($C$55,Implements!$A$159:$D$166,4,FALSE))),\"\")","v":""},null,null,null,null,null,{"$f":"N58","v":0},null,{"$f":"N58","v":0},null,null,null,null,null,{"$f":"W58","v":""},null,{"$f":"W58","v":""},null,{"$f":"IF($C58=\"\",\"\",$C58)","v":""},{"$f":"IF($C58=\"\",\"\",VLOOKUP($C58,Defaults!$AL$65:$AQ$82,4,FALSE))","v":""},{"$f":"IF($C58=\"\",\"\",VLOOKUP($C58,Defaults!$AS$65:$AX$96,4,FALSE))","v":""},{"$f":"IF($C58=\"\",\"\",VLOOKUP($C58,Defaults!$AZ$65:$BE$96,4,FALSE))","v":""},{"$f":"IF($C58=\"\",\"\",VLOOKUP($C58,Defaults!$BG$65:$BL$96,4,FALSE))","v":""},{"$f":"IF($C58=\"\",\"\",VLOOKUP($C58,Defaults!$BN$65:$BS$96,4,FALSE))","v":""},{"$f":"IF($C58=\"\",\"\",VLOOKUP($C58,Defaults!$BU$65:$BZ$96,4,FALSE))","v":""},{"$f":"IF($C58=\"\",\"\",VLOOKUP($C58,Defaults!$CB$65:$CG$96,4,FALSE))","v":""},{"$f":"IF($C58=\"\",\"\",VLOOKUP($C58,Defaults!$CI:$CN,4,FALSE))","v":""},null,{"$f":"IF($C58=\"\",\"\",$C58)","v":""},{"$f":"IF($C58=\"\",\"\",IFERROR(VLOOKUP($C58,Defaults!$AL$65:$AQ$82,5,FALSE),\"\"))","v":""},{"$f":"IF($C58=\"\",\"\",IFERROR(VLOOKUP($C58,Defaults!$AS$65:$AX$96,5,FALSE),\"\"))","v":""},{"$f":"IF($C58=\"\",\"\",IFERROR(VLOOKUP($C58,Defaults!$AZ$65:$BE$96,5,FALSE),\"\"))","v":""},{"$f":"IF($C58=\"\",\"\",IFERROR(VLOOKUP($C58,Defaults!$BG$65:$BL$96,5,FALSE),\"\"))","v":""},{"$f":"IF($C58=\"\",\"\",IFERROR(VLOOKUP($C58,Defaults!$BN$65:$BS$96,5,FALSE),\"\"))","v":""},{"$f":"IF($C58=\"\",\"\",IFERROR(VLOOKUP($C58,Defaults!$BU$65:$BZ$96,5,FALSE),\"\"))","v":""},{"$f":"\"\"","v":""},{"$f":"IF($C58=\"\",\"\",IFERROR(VLOOKUP($C58,Defaults!$CI:$CN,5,FALSE),\"\"))","v":""},null,{"$f":"IF($C58=\"\",\"\",$C58)","v":""},{"$f":"IF($C58=\"\",\"\",IFERROR(VLOOKUP($C58,Defaults!$AL$65:$AQ$82,6,FALSE),\"\"))","v":""},{"$f":"IF($C58=\"\",\"\",IFERROR(VLOOKUP($C58,Defaults!$AS$65:$AX$96,6,FALSE),\"\"))","v":""},{"$f":"IF($C58=\"\",\"\",IFERROR(VLOOKUP($C58,Defaults!$AZ$65:$BE$96,6,FALSE),\"\"))","v":""},{"$f":"IF($C58=\"\",\"\",IFERROR(VLOOKUP($C58,Defaults!$BG$65:$BL$96,6,FALSE),\"\"))","v":""},{"$f":"IF($C58=\"\",\"\",IFERROR(VLOOKUP($C58,Defaults!$BN$65:$BS$96,6,FALSE),\"\"))","v":""},{"$f":"IF($C58=\"\",\"\",IFERROR(VLOOKUP($C58,Defaults!$BU$65:$BZ$96,6,FALSE),\"\"))","v":""},{"$f":"\"\"","v":""},{"$f":"IF($C58=\"\",\"\",IFERROR(VLOOKUP($C58,Defaults!$CI:$CN,6,FALSE),\"\"))","v":""}]
[null,null,null,null,null,null,null,null,null,null,{"$f":"IF(C59=\"\",\"\",ROUND(IF(E59=AE59,AF59,IF(AE59=$AC$2,AF59*VLOOKUP(E59,$AA$2:$AB$4,2,FALSE),IF(AE59=$AF$2,AF59*VLOOKUP(E59,$AD$2:$AE$3,2,FALSE),IF(AE59=$AI$2,AF59/VLOOKUP(E59,$AG$2:$AH$2,2,FALSE),IF(AE59=$AL$2,AF59*VLOOKUP(E59,$AJ$2:$AK$2,2,FALSE),IF(AE59=$AO$2,AF59/VLOOKUP(E59,$AM$2:$AN$2,2,FALSE),IF(AE59=$AR$2,AF59*VLOOKUP(E59,$AP$2:$AQ$3,2,FALSE)))))))),2))","v":""},null,{"$f":"AB59","v":""},{"$f":"IF(C59=\"\",0,IF(L59=0,0,IF(L59=\"\",\"\",J59*L59)))","v":0},null,null,{"$f":"IF(L59>0,ABS(V59-L59),\"\")","v":""},null,null,null,{"$f":"J59","v":0},{"$f":"IF(AG59=0,0,AG59)","v":""},{"$f":"IF(C59=\"\",\"\",IF(V59=0,0,IF(V59=\"\",\"\",U59*V59)))","v":""},"",null,{"$f":"IF($Z$2=Defaults!$M$5,Cotton!B59,IF($Z$2=Defaults!$M$6,Corn!B59,IF($Z$2=Defaults!$M$7,Sorghum!B59,IF($Z$2=Defaults!$M$8,Soybean!B59,IF($Z$2=Defaults!$M$9,Rice!B59,IF($Z$2=Defaults!$M$10,Peanut!B59,IF($Z$2=Defaults!$M$11,Wheat!B59,IF($Z$2=Defaults!$M$12,Pasture!B59,\"\"))))))))","v":""},{"$f":"IF(C59=\"\",\"\",HLOOKUP($Z$2,$AZ$55:$BG$59,5,FALSE))","v":""},{"$f":"IF(C59=\"\",\"\",HLOOKUP($Z$2,$BJ$55:$BQ$59,5,FALSE))","v":""},0,{"$f":"IF(C59=\"\",\"\",HLOOKUP($Z$2,$BT$55:$CA$59,5,FALSE))","v":""},{"$f":"IF(C59=\"\",\"\",VLOOKUP(C59,Defaults!$AH:$AJ,2,FALSE))","v":""},{"$f":"IF(C59=\"\",\"\",ROUND(VLOOKUP(C59,Defaults!$AH:$AJ,3,FALSE),2))","v":""},{"$f":"IFERROR(IF(LEFT($C$55,6)=\"Custom\",L59,L59*(1-VLOOKUP($C$55,Implements!$A$159:$D$166,4,FALSE))),\"\")","v":""},null,null,null,null,null,null,null,null,null,null,null,null,null,{"$f":"W59","v":""},null,{"$f":"W59","v":""},null,{"$f":"IF($C59=\"\",\"\",$C59)","v":""},{"$f":"IF($C59=\"\",\"\",VLOOKUP($C59,Defaults!$AL$65:$AQ$82,4,FALSE))","v":""},{"$f":"IF($C59=\"\",\"\",VLOOKUP($C59,Defaults!$AS$65:$AX$96,4,FALSE))","v":""},{"$f":"IF($C59=\"\",\"\",VLOOKUP($C59,Defaults!$AZ$65:$BE$96,4,FALSE))","v":""},{"$f":"IF($C59=\"\",\"\",VLOOKUP($C59,Defaults!$BG$65:$BL$96,4,FALSE))","v":""},{"$f":"IF($C59=\"\",\"\",VLOOKUP($C59,Defaults!$BN$65:$BS$96,4,FALSE))","v":""},{"$f":"IF($C59=\"\",\"\",VLOOKUP($C59,Defaults!$BU$65:$BZ$96,4,FALSE))","v":""},{"$f":"IF($C59=\"\",\"\",VLOOKUP($C59,Defaults!$CB$65:$CG$96,4,FALSE))","v":""},{"$f":"IF($C59=\"\",\"\",VLOOKUP($C59,Defaults!$CI:$CN,4,FALSE))","v":""},null,{"$f":"IF($C59=\"\",\"\",$C59)","v":""},{"$f":"IF($C59=\"\",\"\",IFERROR(VLOOKUP($C59,Defaults!$AL$65:$AQ$82,5,FALSE),\"\"))","v":""},{"$f":"IF($C59=\"\",\"\",IFERROR(VLOOKUP($C59,Defaults!$AS$65:$AX$96,5,FALSE),\"\"))","v":""},{"$f":"IF($C59=\"\",\"\",IFERROR(VLOOKUP($C59,Defaults!$AZ$65:$BE$96,5,FALSE),\"\"))","v":""},{"$f":"IF($C59=\"\",\"\",IFERROR(VLOOKUP($C59,Defaults!$BG$65:$BL$96,5,FALSE),\"\"))","v":""},{"$f":"IF($C59=\"\",\"\",IFERROR(VLOOKUP($C59,Defaults!$BN$65:$BS$96,5,FALSE),\"\"))","v":""},{"$f":"IF($C59=\"\",\"\",IFERROR(VLOOKUP($C59,Defaults!$BU$65:$BZ$96,5,FALSE),\"\"))","v":""},{"$f":"\"\"","v":""},{"$f":"IF($C59=\"\",\"\",IFERROR(VLOOKUP($C59,Defaults!$CI:$CN,5,FALSE),\"\"))","v":""},null,{"$f":"IF($C59=\"\",\"\",$C59)","v":""},{"$f":"IF($C59=\"\",\"\",IFERROR(VLOOKUP($C59,Defaults!$AL$65:$AQ$82,6,FALSE),\"\"))","v":""},{"$f":"IF($C59=\"\",\"\",IFERROR(VLOOKUP($C59,Defaults!$AS$65:$AX$96,6,FALSE),\"\"))","v":""},{"$f":"IF($C59=\"\",\"\",IFERROR(VLOOKUP($C59,Defaults!$AZ$65:$BE$96,6,FALSE),\"\"))","v":""},{"$f":"IF($C59=\"\",\"\",IFERROR(VLOOKUP($C59,Defaults!$BG$65:$BL$96,6,FALSE),\"\"))","v":""},{"$f":"IF($C59=\"\",\"\",IFERROR(VLOOKUP($C59,Defaults!$BN$65:$BS$96,6,FALSE),\"\"))","v":""},{"$f":"IF($C59=\"\",\"\",IFERROR(VLOOKUP($C59,Defaults!$BU$65:$BZ$96,6,FALSE),\"\"))","v":""},{"$f":"\"\"","v":""},{"$f":"IF($C59=\"\",\"\",IFERROR(VLOOKUP($C59,Defaults!$CI:$CN,6,FALSE),\"\"))","v":""}]
[null,null,null,{"$f":"IF($Z$2=Defaults!$M$5,Cotton!D60,IF($Z$2=Defaults!$M$6,Corn!D60,IF($Z$2=Defaults!$M$7,Sorghum!D60,IF($Z$2=Defaults!$M$8,Soybean!D60,IF($Z$2=Defaults!$M$9,Rice!D60,IF($Z$2=Defaults!$M$10,Peanut!D60,IF($Z$2=Defaults!$M$11,Wheat!D60,IF($Z$2=Defaults!$M$12,Pasture!D60,FALSE))))))))","v":""},null,null,null,null,null,null,null,null,null,null,null,null,null,null,null,null,null,null,null,null,null,{"$f":"IF($Z$2=Defaults!$M$5,Cotton!B60,IF($Z$2=Defaults!$M$6,Corn!B60,IF($Z$2=Defaults!$M$7,Sorghum!B60,IF($Z$2=Defaults!$M$8,Soybean!B60,IF($Z$2=Defaults!$M$9,Rice!B60,IF($Z$2=Defaults!$M$10,Peanut!B60,IF($Z$2=Defaults!$M$11,Wheat!B60,IF($Z$2=Defaults!$M$12,Pasture!B60,\"\"))))))))","v":""},null,null,null,null,null,null,null,null,null,null,null,null,null,null,null,null,null,null,null,null,null,null,null,null,"LAY",null,null,null,null,null,null,null,null,null,"LAY",null,null,null,null,null,null,null,null,null,"LAY"]
[null,null,null,null,null,{"$f":"IF(L61=0,0,IF(C61=Defaults!$I$33,Implements!$AK$186,0))","v":0},{"$f":"IF($L61=0,0,IFERROR(VLOOKUP($C61,Implements!$X$181:$AN$188,15,FALSE),0))","v":0},{"$f":"IF($L61=0,0,IFERROR(VLOOKUP($C61,Implements!$X$181:$AN$188,16,FALSE),0))","v":0},{"$f":"IF($L61=0,0,IFERROR(VLOOKUP($C61,Implements!$X$181:$AN$188,17,FALSE),0))","v":0},{"$f":"IF(OR(C61=\"\",L61=\"\",L61=0)=TRUE,\"\",IF(OR(C61=Defaults!$I$25,C61=Defaults!$I$26)=TRUE,VLOOKUP(C61,Defaults!$I$24:$K$27,3,FALSE),ROUND(1/F61*(1*Inputs!$AA$13+($AI$7-1)*Inputs!$AA$15),2)+ROUND(G61*Inputs!$V$13/F61,2)+ROUND(H61/F61,2)+ROUND(I61/F61,2)))","v":""},{"$f":"IF(OR(C61=\"\",L61=\"\",L61=0)=TRUE,\"\",IF(OR(C61=Defaults!$I$25,C61=Defaults!$I$26)=TRUE,VLOOKUP(C61,Defaults!$I$24:$K$27,3,FALSE),ROUND(1/F61*(1*Inputs!$AA$13+($AI$7-1)*Inputs!$AA$15),2)+ROUND(G61*Inputs!$V$13/F61,2)+ROUND(H61/F61,2)+ROUND(I61/F61,2)))","v":""},null,{"$f":"AB61","v":""},{"$f":"IF(C61=\"\",0,IF(L61=0,0,IF(L61=\"\",\"\",J61*L61)))","v":0},null,null,{"$f":"IF(V61=0,0,IF(C61=Defaults!$I$33,Implements!$AK$175,0))","v":0},{"$f":"IF($V61=0,0,IFERROR(VLOOKUP($C61,Implements!$X$170:$AN$177,15,FALSE),0))","v":0},{"$f":"IF($V61=0,0,IFERROR(VLOOKUP($C61,Implements!$X$170:$AN$177,16,FALSE),0))","v":0},{"$f":"IF($V61=0,0,IFERROR(VLOOKUP($C61,Implements!$X$170:$AN$177,17,FALSE),0))","v":0},{"$f":"IF(OR(C61=\"\",V61=\"\",V61=0)=TRUE,\"\",IF(LEFT(C61,6)=\"Custom\",J61,ROUND(1/Q61*(1*Inputs!$AA$13+($AI$7-1)*Inputs!$AA$15),2)+ROUND(R61*Inputs!$V$13/Q61,2)+ROUND(S61/Q61,2)+ROUND(T61/Q61,2)))","v":""},{"$f":"+L61","v":0},{"$f":"IF(C61=\"\",\"\",IF(V61=0,0,IF(V61=\"\",\"\",U61*V61)))","v":""},"",null,{"$f":"IF($Z$2=Defaults!$M$5,Cotton!B61,IF($Z$2=Defaults!$M$6,Corn!B61,IF($Z$2=Defaults!$M$7,Sorghum!B61,IF($Z$2=Defaults!$M$8,Soybean!B61,IF($Z$2=Defaults!$M$9,Rice!B61,IF($Z$2=Defaults!$M$10,Peanut!B61,IF($Z$2=Defaults!$M$11,Wheat!B61,IF($Z$2=Defaults!$M$12,Pasture!B61,\"\"))))))))","v":""},null,{"$f":"IF(C61=\"\",\"\",IF($Z$2=Defaults!$M$12,VLOOKUP(C61,Defaults!$I$35:$J$37,2,FALSE),VLOOKUP(C61,Defaults!$I$30:$J$33,2,FALSE)))","v":""},0,{"$f":"IF(AB61=\"\",\"\",AB61*2)","v":""},null,null,{"$f":"+AB61","v":""},{"$f":"N61","v":0},{"$f":"ROUND(IFERROR(1/F61*(1*Inputs!$AA$13+($AI$7-1)*Inputs!$AA$15),0),2)*L61","v":0},{"$f":"ROUND(IFERROR(1/F61*G61*Inputs!$V$13,0),2)*L61","v":0},{"$f":"ROUND(IFERROR(1/F61*H61,0),2)*L61","v":0},{"$f":"ROUND(IFERROR(1/F61*I61,0),2)*L61","v":0},null,null,null,{"$f":"W61","v":""},{"$f":"ROUND(IFERROR(1/Q61*(1*Inputs!$AA$13+($AI$7-1)*Inputs!$AA$15),0),2)*V61","v":0},{"$f":"ROUND(IFERROR(1/Q61*R61*Inputs!$V$13,0),2)*V61","v":0},{"$f":"ROUND(IFERROR(1/Q61*S61,0),2)*V61","v":0},{"$f":"ROUND(IFERROR(1/Q61*T61,0),2)*V61","v":0},null,null,null,null,null,{"$f":"AZ11","v":"Cotton"},{"$f":"BA11","v":"Corn"},"Sorghum","Soybean","Rice","Peanut","Wheat","Est. Pasture or Hay",null,null,{"$f":"BJ11","v":"Cotton"},{"$f":"BK11","v":"Corn"},"Sorghum","Soybean","Rice","Peanut","Wheat","Est. Pasture or Hay",null,null,{"$f":"BT11","v":"Cotton"},{"$f":"BU11","v":"Corn"},"Sorghum","Soybean","Rice","Peanut","Wheat","Est. Pasture or Hay"]
[null,null,null,null,null,null,null,null,null,null,{"$f":"IF(C62=\"\",\"\",ROUND(IF(E62=AE62,AF62,IF(AE62=$AC$2,AF62*VLOOKUP(E62,$AA$2:$AB$4,2,FALSE),IF(AE62=$AF$2,AF62*VLOOKUP(E62,$AD$2:$AE$3,2,FALSE),IF(AE62=$AI$2,AF62/VLOOKUP(E62,$AG$2:$AH$2,2,FALSE),IF(AE62=$AL$2,AF62*VLOOKUP(E62,$AJ$2:$AK$2,2,FALSE),IF(AE62=$AO$2,AF62/VLOOKUP(E62,$AM$2:$AN$2,2,FALSE),IF(AE62=$AR$2,AF62*VLOOKUP(E62,$AP$2:$AQ$3,2,FALSE)))))))),2))","v":""},null,{"$f":"AB62","v":""},{"$f":"IF(C62=\"\",0,IF(L62=0,0,IF(L62=\"\",\"\",J62*L62)))","v":0},null,null,{"$f":"IF(L62>0,ABS(V62-L62),\"\")","v":""},null,null,null,{"$f":"J62","v":0},{"$f":"IF(AG62=0,0,AG62)","v":""},{"$f":"IF(C62=\"\",\"\",IF(V62=0,0,IF(V62=\"\",\"\",U62*V62)))","v":""},"",null,{"$f":"IF($Z$2=Defaults!$M$5,Cotton!B62,IF($Z$2=Defaults!$M$6,Corn!B62,IF($Z$2=Defaults!$M$7,Sorghum!B62,IF($Z$2=Defaults!$M$8,Soybean!B62,IF($Z$2=Defaults!$M$9,Rice!B62,IF($Z$2=Defaults!$M$10,Peanut!B62,IF($Z$2=Defaults!$M$11,Wheat!B62,IF($Z$2=Defaults!$M$12,Pasture!B62,\"\"))))))))","v":""},{"$f":"IF(C62=\"\",\"\",HLOOKUP($Z$2,$AZ$61:$BG$65,2,FALSE))","v":""},{"$f":"IF(C62=\"\",\"\",HLOOKUP($Z$2,$BJ$61:$BQ$65,2,FALSE))","v":""},0,{"$f":"IF(C62=\"\",\"\",HLOOKUP($Z$2,$BT$61:$CA$65,2,FALSE))","v":""},{"$f":"IF(C62=\"\",\"\",VLOOKUP(C62,Defaults!$AH:$AJ,2,FALSE))","v":""},{"$f":"IF(C62=\"\",\"\",ROUND(VLOOKUP(C62,Defaults!$AH:$AJ,3,FALSE),2))","v":""},{"$f":"IFERROR(IF(LEFT($C$61,6)=\"Custom\",L62,L62*(1-VLOOKUP($C$61,Implements!$A$159:$D$166,4,FALSE))),\"\")","v":""},null,null,null,null,null,{"$f":"N62","v":0},null,{"$f":"N62","v":0},null,null,null,null,null,{"$f":"W62","v":""},null,{"$f":"W62","v":""},null,{"$f":"IF($C62=\"\",\"\",$C62)","v":""},{"$f":"IF($C62=\"\",\"\",VLOOKUP($C62,Defaults!$AL$85:$AQ$101,4,FALSE))","v":""},{"$f":"\"\"","v":""},{"$f":"\"\"","v":""},{"$f":"\"\"","v":""},{"$f":"\"\"","v":""},{"$f":"\"\"","v":""},{"$f":"\"\"","v":""},{"$f":"\"\"","v":""},null,{"$f":"IF($C62=\"\",\"\",$C62)","v":""},{"$f":"IF($C62=\"\",\"\",IFERROR(VLOOKUP($C62,Defaults!$AL$85:$AQ$101,5,FALSE),\"\"))","v":""},{"$f":"\"\"","v":""},{"$f":"\"\"","v":""},{"$f":"\"\"","v":""},{"$f":"\"\"","v":""},{"$f":"\"\"","v":""},{"$f":"\"\"","v":""},{"$f":"\"\"","v":""},null,{"$f":"IF($C62=\"\",\"\",$C62)","v":""},{"$f":"IF($C62=\"\",\"\",IFERROR(VLOOKUP($C62,Defaults!$AL$85:$AQ$101,6,FALSE),\"\"))","v":""},{"$f":"\"\"","v":""},{"$f":"\"\"","v":""},{"$f":"\"\"","v":""},{"$f":"\"\"","v":""},{"$f":"\"\"","v":""},{"$f":"\"\"","v":""},{"$f":"\"\"","v":""}]
[null,null,null,null,null,null,null,null,null,null,{"$f":"IF(C63=\"\",\"\",ROUND(IF(E63=AE63,AF63,IF(AE63=$AC$2,AF63*VLOOKUP(E63,$AA$2:$AB$4,2,FALSE),IF(AE63=$AF$2,AF63*VLOOKUP(E63,$AD$2:$AE$3,2,FALSE),IF(AE63=$AI$2,AF63/VLOOKUP(E63,$AG$2:$AH$2,2,FALSE),IF(AE63=$AL$2,AF63*VLOOKUP(E63,$AJ$2:$AK$2,2,FALSE),IF(AE63=$AO$2,AF63/VLOOKUP(E63,$AM$2:$AN$2,2,FALSE),IF(AE63=$AR$2,AF63*VLOOKUP(E63,$AP$2:$AQ$3,2,FALSE)))))))),2))","v":""},null,{"$f":"AB63","v":""},{"$f":"IF(C63=\"\",0,IF(L63=0,0,IF(L63=\"\",\"\",J63*L63)))","v":0},null,null,{"$f":"IF(L63>0,ABS(V63-L63),\"\")","v":""},null,null,null,{"$f":"J63","v":0},{"$f":"IF(AG63=0,0,AG63)","v":""},{"$f":"IF(C63=\"\",\"\",IF(V63=0,0,IF(V63=\"\",\"\",U63*V63)))","v":""},"",null,{"$f":"IF($Z$2=Defaults!$M$5,Cotton!B63,IF($Z$2=Defaults!$M$6,Corn!B63,IF($Z$2=Defaults!$M$7,Sorghum!B63,IF($Z$2=Defaults!$M$8,Soybean!B63,IF($Z$2=Defaults!$M$9,Rice!B63,IF($Z$2=Defaults!$M$10,Peanut!B63,IF($Z$2=Defaults!$M$11,Wheat!B63,IF($Z$2=Defaults!$M$12,Pasture!B63,\"\"))))))))","v":""},{"$f":"IF(C63=\"\",\"\",HLOOKUP($Z$2,$AZ$61:$BG$65,3,FALSE))","v":""},{"$f":"IF(C63=\"\",\"\",HLOOKUP($Z$2,$BJ$61:$BQ$65,3,FALSE))","v":""},0,{"$f":"IF(C63=\"\",\"\",HLOOKUP($Z$2,$BT$61:$CA$65,3,FALSE))","v":""},{"$f":"IF(C63=\"\",\"\",VLOOKUP(C63,Defaults!$AH:$AJ,2,FALSE))","v":""},{"$f":"IF(C63=\"\",\"\",ROUND(VLOOKUP(C63,Defaults!$AH:$AJ,3,FALSE),2))","v":""},{"$f":"IFERROR(IF(LEFT($C$61,6)=\"Custom\",L63,L63*(1-VLOOKUP($C$61,Implements!$A$159:$D$166,4,FALSE))),\"\")","v":""},null,null,null,null,null,{"$f":"N63","v":0},null,{"$f":"N63","v":0},null,null,null,null,null,{"$f":"W63","v":""},null,{"$f":"W63","v":""},null,{"$f":"IF($C63=\"\",\"\",$C63)","v":""},{"$f":"IF($C63=\"\",\"\",VLOOKUP($C63,Defaults!$AL$85:$AQ$101,4,FALSE))","v":""},{"$f":"\"\"","v":""},{"$f":"\"\"","v":""},{"$f":"\"\"","v":""},{"$f":"\"\"","v":""},{"$f":"\"\"","v":""},{"$f":"\"\"","v":""},{"$f":"\"\"","v":""},null,{"$f":"IF($C63=\"\",\"\",$C63)","v":""},{"$f":"IF($C63=\"\",\"\",IFERROR(VLOOKUP($C63,Defaults!$AL$85:$AQ$101,5,FALSE),\"\"))","v":""},{"$f":"\"\"","v":""},{"$f":"\"\"","v":""},{"$f":"\"\"","v":""},{"$f":"\"\"","v":""},{"$f":"\"\"","v":""},{"$f":"\"\"","v":""},{"$f":"\"\"","v":""},null,{"$f":"IF($C63=\"\",\"\",$C63)","v":""},{"$f":"IF($C63=\"\",\"\",IFERROR(VLOOKUP($C63,Defaults!$AL$85:$AQ$101,6,FALSE),\"\"))","v":""},{"$f":"\"\"","v":""},{"$f":"\"\"","v":""},{"$f":"\"\"","v":""},{"$f":"\"\"","v":""},{"$f":"\"\"","v":""},{"$f":"\"\"","v":""},{"$f":"\"\"","v":""}]
[null,null,null,null,null,null,null,null,null,null,{"$f":"IF(C64=\"\",\"\",ROUND(IF(E64=AE64,AF64,IF(AE64=$AC$2,AF64*VLOOKUP(E64,$AA$2:$AB$4,2,FALSE),IF(AE64=$AF$2,AF64*VLOOKUP(E64,$AD$2:$AE$3,2,FALSE),IF(AE64=$AI$2,AF64/VLOOKUP(E64,$AG$2:$AH$2,2,FALSE),IF(AE64=$AL$2,AF64*VLOOKUP(E64,$AJ$2:$AK$2,2,FALSE),IF(AE64=$AO$2,AF64/VLOOKUP(E64,$AM$2:$AN$2,2,FALSE),IF(AE64=$AR$2,AF64*VLOOKUP(E64,$AP$2:$AQ$3,2,FALSE)))))))),2))","v":""},null,{"$f":"AB64","v":""},{"$f":"IF(C64=\"\",0,IF(L64=0,0,IF(L64=\"\",\"\",J64*L64)))","v":0},null,null,{"$f":"IF(L64>0,ABS(V64-L64),\"\")","v":""},null,null,null,{"$f":"J64","v":0},{"$f":"IF(AG64=0,0,AG64)","v":""},{"$f":"IF(C64=\"\",\"\",IF(V64=0,0,IF(V64=\"\",\"\",U64*V64)))","v":""},"",null,{"$f":"IF($Z$2=Defaults!$M$5,Cotton!B64,IF($Z$2=Defaults!$M$6,Corn!B64,IF($Z$2=Defaults!$M$7,Sorghum!B64,IF($Z$2=Defaults!$M$8,Soybean!B64,IF($Z$2=Defaults!$M$9,Rice!B64,IF($Z$2=Defaults!$M$10,Peanut!B64,IF($Z$2=Defaults!$M$11,Wheat!B64,IF($Z$2=Defaults!$M$12,Pasture!B64,\"\"))))))))","v":""},{"$f":"IF(C64=\"\",\"\",HLOOKUP($Z$2,$AZ$61:$BG$65,4,FALSE))","v":""},{"$f":"IF(C64=\"\",\"\",HLOOKUP($Z$2,$BJ$61:$BQ$65,4,FALSE))","v":""},0,{"$f":"IF(C64=\"\",\"\",HLOOKUP($Z$2,$BT$61:$CA$65,4,FALSE))","v":""},{"$f":"IF(C64=\"\",\"\",VLOOKUP(C64,Defaults!$AH:$AJ,2,FALSE))","v":""},{"$f":"IF(C64=\"\",\"\",ROUND(VLOOKUP(C64,Defaults!$AH:$AJ,3,FALSE),2))","v":""},{"$f":"IFERROR(IF(LEFT($C$61,6)=\"Custom\",L64,L64*(1-VLOOKUP($C$61,Implements!$A$159:$D$166,4,FALSE))),\"\")","v":""},null,null,null,null,null,{"$f":"N64","v":0},null,{"$f":"N64","v":0},null,null,null,null,null,{"$f":"W64","v":""},null,{"$f":"W64","v":""},null,{"$f":"IF($C64=\"\",\"\",$C64)","v":""},{"$f":"IF($C64=\"\",\"\",VLOOKUP($C64,Defaults!$AL$85:$AQ$101,4,FALSE))","v":""},{"$f":"\"\"","v":""},{"$f":"\"\"","v":""},{"$f":"\"\"","v":""},{"$f":"\"\"","v":""},{"$f":"\"\"","v":""},{"$f":"\"\"","v":""},{"$f":"\"\"","v":""},null,{"$f":"IF($C64=\"\",\"\",$C64)","v":""},{"$f":"IF($C64=\"\",\"\",IFERROR(VLOOKUP($C64,Defaults!$AL$85:$AQ$101,5,FALSE),\"\"))","v":""},{"$f":"\"\"","v":""},{"$f":"\"\"","v":""},{"$f":"\"\"","v":""},{"$f":"\"\"","v":""},{"$f":"\"\"","v":""},{"$f":"\"\"","v":""},{"$f":"\"\"","v":""},null,{"$f":"IF($C64=\"\",\"\",$C64)","v":""},{"$f":"IF($C64=\"\",\"\",IFERROR(VLOOKUP($C64,Defaults!$AL$85:$AQ$101,6,FALSE),\"\"))","v":""},{"$f":"\"\"","v":""},{"$f":"\"\"","v":""},{"$f":"\"\"","v":""},{"$f":"\"\"","v":""},{"$f":"\"\"","v":""},{"$f":"\"\"","v":""},{"$f":"\"\"","v":""}]
[null,null,null,null,null,null,null,null,null,null,{"$f":"IF(C65=\"\",\"\",ROUND(IF(E65=AE65,AF65,IF(AE65=$AC$2,AF65*VLOOKUP(E65,$AA$2:$AB$4,2,FALSE),IF(AE65=$AF$2,AF65*VLOOKUP(E65,$AD$2:$AE$3,2,FALSE),IF(AE65=$AI$2,AF65/VLOOKUP(E65,$AG$2:$AH$2,2,FALSE),IF(AE65=$AL$2,AF65*VLOOKUP(E65,$AJ$2:$AK$2,2,FALSE),IF(AE65=$AO$2,AF65/VLOOKUP(E65,$AM$2:$AN$2,2,FALSE),IF(AE65=$AR$2,AF65*VLOOKUP(E65,$AP$2:$AQ$3,2,FALSE)))))))),2))","v":""},null,{"$f":"AB65","v":""},{"$f":"IF(C65=\"\",0,IF(L65=0,0,IF(L65=\"\",\"\",J65*L65)))","v":0},null,null,{"$f":"IF(L65>0,ABS(V65-L65),\"\")","v":""},null,null,null,{"$f":"J65","v":0},{"$f":"IF(AG65=0,0,AG65)","v":""},{"$f":"IF(C65=\"\",\"\",IF(V65=0,0,IF(V65=\"\",\"\",U65*V65)))","v":""},"",null,{"$f":"IF($Z$2=Defaults!$M$5,Cotton!B65,IF($Z$2=Defaults!$M$6,Corn!B65,IF($Z$2=Defaults!$M$7,Sorghum!B65,IF($Z$2=Defaults!$M$8,Soybean!B65,IF($Z$2=Defaults!$M$9,Rice!B65,IF($Z$2=Defaults!$M$10,Peanut!B65,IF($Z$2=Defaults!$M$11,Wheat!B65,IF($Z$2=Defaults!$M$12,Pasture!B65,\"\"))))))))","v":""},{"$f":"IF(C65=\"\",\"\",HLOOKUP($Z$2,$AZ$61:$BG$65,5,FALSE))","v":""},{"$f":"IF(C65=\"\",\"\",HLOOKUP($Z$2,$BJ$61:$BQ$65,5,FALSE))","v":""},0,{"$f":"IF(C65=\"\",\"\",HLOOKUP($Z$2,$BT$61:$CA$65,5,FALSE))","v":""},{"$f":"IF(C65=\"\",\"\",VLOOKUP(C65,Defaults!$AH:$AJ,2,FALSE))","v":""},{"$f":"IF(C65=\"\",\"\",ROUND(VLOOKUP(C65,Defaults!$AH:$AJ,3,FALSE),2))","v":""},{"$f":"IFERROR(IF(LEFT($C$61,6)=\"Custom\",L65,L65*(1-VLOOKUP($C$61,Implements!$A$159:$D$166,4,FALSE))),\"\")","v":""},null,null,null,null,null,null,null,null,null,null,null,null,null,{"$f":"W65","v":""},null,{"$f":"W65","v":""},null,{"$f":"IF($C65=\"\",\"\",$C65)","v":""},{"$f":"IF($C65=\"\",\"\",VLOOKUP($C65,Defaults!$AL$85:$AQ$101,4,FALSE))","v":""},{"$f":"\"\"","v":""},{"$f":"\"\"","v":""},{"$f":"\"\"","v":""},{"$f":"\"\"","v":""},{"$f":"\"\"","v":""},{"$f":"\"\"","v":""},{"$f":"\"\"","v":""},null,{"$f":"IF($C65=\"\",\"\",$C65)","v":""},{"$f":"IF($C65=\"\",\"\",IFERROR(VLOOKUP($C65,Defaults!$AL$85:$AQ$101,5,FALSE),\"\"))","v":""},{"$f":"\"\"","v":""},{"$f":"\"\"","v":""},{"$f":"\"\"","v":""},{"$f":"\"\"","v":""},{"$f":"\"\"","v":""},{"$f":"\"\"","v":""},{"$f":"\"\"","v":""},null,{"$f":"IF($C65=\"\",\"\",$C65)","v":""},{"$f":"IF($C65=\"\",\"\",IFERROR(VLOOKUP($C65,Defaults!$AL$85:$AQ$101,6,FALSE),\"\"))","v":""},{"$f":"\"\"","v":""},{"$f":"\"\"","v":""},{"$f":"\"\"","v":""},{"$f":"\"\"","v":""},{"$f":"\"\"","v":""},{"$f":"\"\"","v":""},{"$f":"\"\"","v":""}]
[]
[null,null,"Benchmark Operating Interest:",null,null,null,null,null,null,null,null,null,null,{"$f":"((SUM(N13:N16)+SUM(N18:N21)+SUM(N23:N29)+SUM(N31:N32)+SUM(N33:N38)+SUM(N39:N43)+SUM(N44:N46)+SUM(N48:N53)+SUM(N55:N59))-(IFERROR(I13/F13,0)*L13+IFERROR(I18/F18,0)*L18+IFERROR(I23/F23,0)*L23+IFERROR(I31/F31,0)*L31+IFERROR(I33/F33,0)*L33+IFERROR(I39/F39,0)*L39+IFERROR(I44/F44,0)*L44+IFERROR(I48/F48,0)*L48+IFERROR(I55/F55,0)*L55))/2*Inputs!$V$17","v":4.3864655705440514},null,null,"Change in Operating Interest ($/acre):",null,null,null,null,null,{"$f":"((SUM(W13:W16)+SUM(W18:W21)+SUM(W23:W29)+SUM(W31:W32)+SUM(W33:W38)+SUM(W39:W43)+SUM(W44:W46)+SUM(W48:W53)+SUM(W55:W59))-(IFERROR(T13/Q13,0)*V13+IFERROR(T18/Q18,0)*V18+IFERROR(T23/Q23,0)*V23+IFERROR(T31/Q31,0)*V31+IFERROR(T33/Q33,0)*V33+IFERROR(T39/Q39,0)*V39+IFERROR(T44/Q44,0)*V44+IFERROR(T48/Q48,0)*V48+IFERROR(T55/Q55,0)*V55))/2*Inputs!$V$17","v":4.2188235939406109},{"$f":"IF(C67=\"\",\"\",W67-N67)","v":-0.16764197660344049},null,null,null,null,null,null,null,null,null,{"$f":"SUM(AH13:AH65)","v":95.019999999999982},{"$f":"SUM(AI13:AI65)","v":8.0300000000000011},{"$f":"SUM(AJ13:AJ65)","v":6.65},{"$f":"SUM(AK13:AK65)","v":10.48},{"$f":"SUM(AL13:AL65)","v":69.86},{"$f":"SUM(AM13:AM65)+N67","v":163.92646557054405},{"$f":"AN32","v":80},{"$f":"SUM(AO13:AO65)","v":79.539999999999992},93.87,7.8599999999999994,6.49,10.27,69.25,{"$f":"SUM(AU13:AU65)+W67","v":157.23223159394061},{"$f":"AV32","v":78.12},{"$f":"SUM(AW13:AW65)","v":74.893407999999994}]
[null,null,"Benchmark Total Specified Expenses ($/acre):",null,null,null,null,null,null,null,null,null,null,{"$f":"SUM(N13:N67)","v":258.94646557054404},null,null,"Change in Total Specified Expenses:",null,null,null,null,null,{"$f":"SUM(W13:W67)","v":251.10223159394062},{"$f":"IF(C68=\"\",\"\",W68-N68)","v":-7.8442339766034195},null,null,null,null,null,null,null,null,null,{"$f":"'Output Comparison'!B47","v":"Input Use Savings ($/acre)"},null,null,{"$f":"(AU67)-(AM67)","v":-6.6942339766034422},{"$f":"'Output Comparison'!B53","v":"Equipment Efficiency Change ($/acre)"},null,null,{"$f":"(AP67)-(AH67)","v":-1.1499999999999773}]
[null,null,null,null,null,null,null,null,null,null,null,null,null,null,null,null,null,null,null,null,null,null,null,null,null,null,null,null,null,null,null,null,null,{"$f":"'Output Comparison'!B50","v":"Seed Cost Change ($/acre)"},null,null,{"$f":"(AV67)-(AN67)","v":-1.8799999999999955},{"$f":"'Output Comparison'!B57","v":"Fuel Cost Change ($/acre)"},null,null,{"$f":"(AR67)-(AJ67)","v":-0.16000000000000014}]
[null,null,null,null,null,null,null,null,null,null,null,null,null,null,null,null,null,null,null,null,null,null,null,null,null,null,null,null,null,null,null,null,null,{"$f":"'Output Comparison'!B51","v":"Chemical & Fertilizer Cost Change ($/acre)"},null,null,{"$f":"(AW67)-(AO67)","v":-4.6465919999999983},{"$f":"'Output Comparison'!B56","v":"Labor Cost Change ($/acre)"},null,null,{"$f":"(AQ67)-(AI67)","v":-0.17000000000000171}]
[null,null,null,null,null,null,null,null,null,null,null,null,null,null,null,null,null,null,null,null,null,null,null,null,null,null,null,null,null,null,null,null,null,null,null,null,null,{"$f":"'Output Comparison'!B58","v":"R&M Cost Change ($/acre)"},null,null,{"$f":"(AS67)-(AK67)","v":-0.21000000000000085}]
[null,null,null,null,null,null,null,null,null,null,null,null,null,null,null,null,null,null,null,null,null,null,null,null,null,null,null,null,null,null,null,null,null,null,null,null,null,{"$f":"'Output Comparison'!B59","v":"Capital Recovery Cost Change ($/acre)"},null,null,{"$f":"(AT67)-(AL67)","v":-0.60999999999999943}]
[]
[null,"Disclaimer: The information provided within represents estimates that are a result of a set of complex calculations that are described in more detail in the user manual. Changes in parameter values and its implications on returns are estimates and the user should use their own reasonable judgment to reflect whether the direction of change in returns is appropriate before acting on the results. As such, this software is provided ‘as is’ and without warranties as to performance of merchantability. Further, statements may have been made to you about this software. Any such statements do not constitute warranties and shall not be relied on by the user in deciding whether to use the program or act on its results. This program is provided without any expressed or implied warranties whatsoever. Because the diversity of conditions and hardware under which this program may be used, no warranty of merchantability or warranty of fitness for a particular purpose is offered. The user is advised to test the program thoroughly before relying on it. The user assumes the entire risk of using the program. The University of Arkansas will not be liable for any claim or damage brought against the user by any third party, nor will the University of Arkansas be liable for any consequential, indirect or special damages suffered by the user as a result of the software."]

{"sheet":"Output Comparison","index":6,"n_rows":87,"n_cols":38,"rows_kept":87,"cut":false,"hidden":false,"merged":[[86,1,86,18],[2,0,2,19],[13,36,17,36],[19,36,22,36],[19,32,22,32],[5,7,8,15],[5,16,8,18],[11,33,12,34]]}
[true]
[null,null,null,null,null,null,null,null,null,null,null,null,null,null,null,null,null,null,null,null,null,null,null,null,null,null,null,{"$f":"B72","v":"Decrease in GHG Emissions (lbs/acre)"},{"$f":"C72","v":25.089999999999964},{"$f":"D72","v":5.1899999999999995},{"$f":"E72","v":19.160000000000075}]
[{"$f":"CONCATENATE(\"Output Comparison for \",Inputs!$J$5)","v":"Output Comparison for Circle C Farms"},null,null,null,null,null,null,null,null,null,null,null,null,null,null,null,null,null,null,null,null,null,null,null,null,null,null,{"$f":"B77","v":"Total Decrease in Carbon Emissions (tons)"},{"$f":"C77","v":0},{"$f":"D77","v":0},{"$f":"E77","v":0},{"$f":"F77","v":5.2404999999999999}]
[]
[]
[null,null,{"$f":"Inputs!$B$13","v":"Cotton"},{"$f":"Inputs!$B$15","v":"Soybean"},{"$f":"Inputs!$B$17","v":"Est. Pasture or Hay"},"Total",null,{"$f":"IF(AND(Inputs!$B$13=Defaults!$M$12,Inputs!$B$15=Defaults!$M$12,Inputs!$B$17=Defaults!$M$12)=TRUE,\"No Est. Profitability of \nTractor Guidance for Pasture\",\" Estimated Profitability of Guidance Equipment:\")","v":" Estimated Profitability of Guidance Equipment:"},null,null,null,null,null,null,null,null,{"$f":"IFERROR(ROUND(F9-F8,2),ROUND(F9,2))","v":29895.33},null,null,null,null,"Tractor 1","Tractor 2","Tractor 3","Tractor 4"]
[null,"Acres Planted",{"$f":"Inputs!$D$13","v":300},{"$f":"Inputs!$D$15","v":200},{"$f":"Inputs!$D$17","v":100},{"$f":"SUM(C7:E7)","v":600},null,null,null,null,null,null,null,null,null,null,null,null,null,null,"Tractor Name",{"$f":"Implements!C130","v":"Tractor 1"},{"$f":"Implements!C131","v":"No Tractor"},{"$f":"Implements!C132","v":"No Tractor"},{"$f":"Implements!C133","v":"No Tractor"},null,null,{"$f":"B61","v":"Revenue from Yield Change (excl. Pasture)"},9792,4000,"",13792]
[null,{"$f":"IF(OR(Inputs!$B$13=Defaults!$M$12,Inputs!B$1=Defaults!$M$12,Inputs!$B$17=Defaults!$M$12),\"Partial Returns without Tractor Guidance (excl. Pasture) ($/acre)\",\"Partial Returns without Tractor Guidance ($/acre)\")","v":"Partial Returns without Tractor Guidance (excl. Pasture) ($/acre)"},{"$f":"IF(Inputs!$B$13=Defaults!$M$12,\"\",IF(OR(C7<>0,C6<>\"\"),+C7*'Crop 1'!$U$7,0))","v":93450.39254365064},{"$f":"IF(Inputs!$B$15=Defaults!$M$12,\"\",IF(OR(D7<>0,D6<>\"\"),+D7*'Crop 2'!$U$7,0))","v":79663.023746554929},{"$f":"IF(Inputs!$B$17=Defaults!$M$12,\"\",IF(OR(E7<>0,E6<>\"\"),+E7*'Crop 3'!$U$7,0))","v":""},{"$f":"IF(AND(Inputs!$B$13=Defaults!$M$12,Inputs!$B$15=Defaults!$M$12,Inputs!$B$17=Defaults!$M$12)=TRUE,\"\",SUM(C8:E8))","v":173113.41629020555},null,null,null,null,null,null,null,null,null,null,null,null,null,null,"Hours Before Tractor Guidance",{"$f":"Implements!F235","v":222.78750553475828},{"$f":"Implements!F236","v":0},{"$f":"Implements!F237","v":0},{"$f":"Implements!F238","v":0},null,null,"Input Use Savings",15357.148127542274,2658.1486818281237,669.42339766034422,18684.720207030739]
[null,{"$f":"IF(OR(Inputs!$B$13=Defaults!$M$12,Inputs!$B$15=Defaults!$M$12,Inputs!$B$17=Defaults!$M$12),\"Partial Returns Or Pasture Cost Savings with Tractor Guidance ($/acre)\",\"Partial Returns with Tractor Guidance ($/acre)\")","v":"Partial Returns Or Pasture Cost Savings with Tractor Guidance ($/acre)"},{"$f":"IF(AND(Inputs!$B$13=Defaults!$M$12,C7<>0),('Crop 1'!$X$7+'Crop 1'!$X$8)*C7-C15,IF(C7<>0,+C7*'Crop 1'!$X$7-C15,0))","v":117043.3362010554},{"$f":"IF(AND(Inputs!$B$15=Defaults!$M$12,D7<>0),('Crop 2'!$X$7+'Crop 2'!$X$8)*D7-D15,IF(D7<>0,+D7*'Crop 2'!$X$7-D15,0))","v":85849.853940576097},{"$f":"IF(AND(Inputs!$B$17=Defaults!$M$12,E7<>0),('Crop 3'!$X$7+'Crop 3'!$X$8)*E7-E15,IF(E7<>0,+E7*'Crop 3'!$X$7-E15,0))","v":115.55835560484127},{"$f":"SUM(C9:E9)","v":203008.74849723635},null,null,null,null,null,null,null,null,null,null,null,null,null,null,"Hours After Tractor Guidance",{"$f":"Implements!S216","v":217.97036056624427},{"$f":"Implements!S217","v":0},{"$f":"Implements!S218","v":0},{"$f":"Implements!S219","v":0},null,null,{"$f":"B66","v":"Equipment Efficiency Change"},{"$f":"C66","v":446.99999999999847},{"$f":"D66","v":135.99999999999994},{"$f":"E66","v":114.99999999999773},{"$f":"F66","v":697.99999999999613}]
[]
[null,{"$f":"CONCATENATE(\"Annual Use Hours for \",Defaults!F9)","v":"Annual Use Hours for Sub-meter Receiver 1"},{"$f":"Implements!P221","v":133.14655071122846},{"$f":"Implements!Q221","v":40.366504288552306},{"$f":"Implements!R221","v":44.457305566463504},{"$f":"SUM(C11:E11)","v":217.97036056624427}]
[null,{"$f":"IF(Implements!E142>=2,IF((Implements!AA216+Implements!AB216+Implements!AC216)=0,\"\",CONCATENATE(\"Annual Use Hours for \",Defaults!F10)),\"\")","v":""},{"$f":"Implements!P222","v":0},{"$f":"Implements!Q222","v":0},{"$f":"Implements!R222","v":0},{"$f":"SUM(C12:E12)","v":0},null,null,null,null,null,null,null,null,null,null,null,null,null,null,null,null,null,null,null,null,null,null,null,null,null,null,null,"Saved Numbers for Breakeven Analysis"]
[null,{"$f":"CONCATENATE(\"Annual Allocated Cost of \",Defaults!F9)","v":"Annual Allocated Cost of Sub-meter Receiver 1"},{"$f":"IF(C11=0,0,C11/F11*SUM(Implements!L142:O142))","v":2003.2044701375501},{"$f":"IF(D11=0,0,D11/F11*SUM(Implements!L142:O142))","v":607.31848780694941},{"$f":"IF(E11=0,0,E11/F11*SUM(Implements!L142:O142))","v":668.86504205550068},{"$f":"SUM(C13:E13)","v":3279.3879999999999},null,null,null,null,null,null,null,null,null,null,null,null,null,null,null,null,null,null,null,null,null,null,null,null,null,null,null,null,null,null,null,"Mod. #s"]
[null,{"$f":"IF(Implements!E142>=2,IF((Implements!AA216+Implements!AB216+Implements!AC216)=0,\"\",CONCATENATE(\"Annual Allocated Cost of \",Defaults!F10)),\"\")","v":""},{"$f":"IF(C12=0,0,C12/F12*SUM(Implements!L143:O143))","v":0},{"$f":"IF(D12=0,0,D12/F12*SUM(Implements!L143:O143))","v":0},{"$f":"IF(E12=0,0,E12/F12*SUM(Implements!L143:O143))","v":0},{"$f":"SUM(C14:E14)","v":0},null,null,null,null,null,null,null,null,null,null,null,null,null,null,null,null,null,null,null,null,null,null,null,null,null,null,null,"Cotton",300,null,"Modified\nAcres",{"$f":"+'Output Comparison'!AI14*'Output Comparison'!$AI$25","v":27.30670941335989}]
[null,"Total Annual Allocated Cost of Tractor Guidance ($/year)",{"$f":"C13+C14","v":2003.2044701375501},{"$f":"D13+D14","v":607.31848780694941},{"$f":"E13+E14","v":668.86504205550068},{"$f":"SUM(C15:E15)","v":3279.3879999999999}]
[null,null,null,null,null,null,null,null,null,null,null,null,null,null,null,null,null,null,null,null,null,null,null,null,null,null,null,null,null,null,null,null,null,"Soybean",200,null,null,{"$f":"+'Output Comparison'!AI16*'Output Comparison'!$AI$25","v":18.204472942239928}]
[null,{"$f":"IF(OR(Inputs!$B$13=Defaults!$M$12,Inputs!$B$15=Defaults!$M$12,Inputs!$B$17=Defaults!$M$12),\"Break-even Yield Change\",\"Break-even Yield Change\")","v":"Break-even Yield Change"},{"$f":"IF(C6=Defaults!$M$12,\"\",IFERROR(+C15/(C7*Inputs!$F$13*Inputs!$K$13),0))","v":8.1830247963135209E-3},{"$f":"IF(D6=Defaults!$M$12,\"\",IFERROR(+D15/(D7*Inputs!$F$15*Inputs!$K$15),0))","v":5.0609873983912448E-3},{"$f":"IF(E6=Defaults!$M$12,\"\",IFERROR(+E15/(E7*Inputs!$F$17*Inputs!$K$17),0))","v":""}]
[null,"Break-even Equipment Efficiency Gains",{"$f":"IFERROR(+C15/(C54*C7),0)","v":7.7670678536603852E-2},{"$f":"IFERROR(+D15/(D54*D7),0)","v":7.802138846440769E-2},{"$f":"IFERROR(+E15/(E54*E7),0)","v":7.0392027158019455E-2},null,null,null,null,null,null,null,null,null,null,null,null,null,null,null,null,null,null,null,null,null,null,null,null,null,null,null,null,"Est. Pasture or Hay",100,null,null,{"$f":"+'Output Comparison'!AI18*'Output Comparison'!$AI$25","v":9.1022364711199639}]
[null,"Break-even Input Savings",{"$f":"IFERROR(+C15/(C48*C7),0)","v":1.5954338063473402E-2},{"$f":"IFERROR(+D15/(D48*D7),0)","v":1.865631219334905E-2},{"$f":"IFERROR(+E15/(E48*E7),0)","v":4.0802748947677492E-2}]
[null,"Breakeven Acreage",27.30670941335989,18.204472942239928,9.1022364711199639,54.61341882671978,null,null,null,null,null,null,null,null,null,null,null,null,null,null,null,null,null,null,null,null,null,null,null,null,null,null,"See Implements\nC130:C133 and M130:M133","Tractor 1",217.97036056624427,null,"Modified\nTractor Use Hours",{"$f":"+'Output Comparison'!AI20*IF(OR(Implements!AH130,Implements!L130),1,'Output Comparison'!$AI$25)","v":19.840177655692372}]
[null,null,null,null,null,null,null,null,null,null,null,null,null,null,null,null,null,null,null,null,null,null,null,null,null,null,null,null,null,null,null,null,null,"No Tractor",0,null,null,{"$f":"+'Output Comparison'!AI21*IF(OR(Implements!AH131,Implements!L131),1,'Output Comparison'!$AI$25)","v":0}]
[null,null,null,null,null,null,null,null,null,null,null,null,null,null,null,null,null,null,null,null,null,null,null,null,null,null,null,null,null,null,null,null,null,"No Tractor",0,null,null,{"$f":"+'Output Comparison'!AI22*IF(OR(Implements!AH132,Implements!L132),1,'Output Comparison'!$AI$25)","v":0}]
[null,null,null,null,null,null,null,null,null,null,null,null,null,null,null,null,null,null,null,null,null,null,null,null,null,null,null,null,null,null,null,null,null,"No Tractor",0,null,null,{"$f":"+'Output Comparison'!AI23*IF(OR(Implements!AH133,Implements!L133),1,'Output Comparison'!$AI$25)","v":0}]
[]
[null,null,null,null,null,null,null,null,null,null,null,null,null,null,null,null,null,null,null,null,null,null,null,null,null,null,null,null,null,null,null,null,null,"B/E Acreage Factor",9.1022364711199635E-2,null,"Profit Diff",{"$f":"IFERROR(F9-F8,F9)","v":29895.332207030791}]
[]
[null,null,null,null,null,null,null,null,null,null,null,null,null,null,null,null,null,null,null,null,null,null,null,null,null,null,null,null,null,null,null,null,null,"Reason Code",5]
[]
[]
[]
[]
[]
[]
[]
[]
[]
[]
[]
[]
[]
[]
[]
[]
[]
[null,{"$f":"IF(OR(Inputs!$B$13=Defaults!$M$12,Inputs!$B$15=Defaults!$M$12,Inputs!$B$17=Defaults!$M$12),\"Yield Change across All Field Passes excl. Pasture (units/acre)\",\"Yield Change across All Field Passes (units/acre)\")","v":"Yield Change across All Field Passes excl. Pasture (units/acre)"},{"$f":"IF(C6=Defaults!$M$12,\"\",CONCATENATE(ROUND(IFERROR('Crop 1'!$X$8-'Crop 1'!$U$8,0),IF(C6=Defaults!$M$10,2,1)),\" \",VLOOKUP(C6,Defaults!$M$5:$O$11,3,FALSE)))","v":"48 lb"},{"$f":"IF(D6=Defaults!$M$12,\"\",CONCATENATE(ROUND(IFERROR('Crop 2'!$X$8-'Crop 2'!$U$8,0),IF(D6=Defaults!$M$10,2,1)),\" \",VLOOKUP(D6,Defaults!$M$5:$O$11,3,FALSE)))","v":"2 bu"},{"$f":"IF(E6=Defaults!$M$12,\"\",CONCATENATE(ROUND(IFERROR('Crop 3'!$X$8-'Crop 3'!$U$8,0),IF(E6=Defaults!$M$10,2,1)),\" \",VLOOKUP(E6,Defaults!$M$5:$O$11,3,FALSE)))","v":""}]
[null,"(% increase)",{"$f":"IFERROR(+ROUND(IFERROR(Inputs!F$13*(Implements!$E$159+Implements!$E$160+Implements!$E$161+Implements!$E$162+Implements!$E$163+Implements!$E$164+Implements!$E$165),0),IF(C6=Defaults!$M$10,2,1))/Inputs!$F$13, \"\")","v":0.04},{"$f":"IFERROR(+ROUND(IFERROR(Inputs!F$15*(Implements!$F$159+Implements!$F$160+Implements!$F$161+Implements!$F$162+Implements!$F$163+Implements!$F$164+Implements!$F$165),0),IF(D6=Defaults!$M$10,2,1))/Inputs!$F$15, \"\")","v":3.0000000000000002E-2},{"$f":"IFERROR(+ROUND(IFERROR(Inputs!F$17*(Implements!$G$159+Implements!$G$160+Implements!$G$161+Implements!$G$162+Implements!$G$163+Implements!$G$164+Implements!$G$165),0),IF(E6=Defaults!$M$10,2,1))/Inputs!$F$17, \"\")","v":""}]
[null,"Input Use Savings ($/acre)",{"$f":"IF(C7>0,'Crop 1'!$AK$68,0)","v":-51.190493758474247},{"$f":"IF(D7>0,'Crop 2'!$AK$68,0)","v":-13.290743409140617},{"$f":"IF(E7>0,'Crop 3'!$AK$68,0)","v":-6.6942339766034422}]
[null,"Total Input Use",{"$f":"IF(C7>0,'Crop 1'!$AM$67,0)","v":418.5286915211646},{"$f":"IF(D7>0,+'Crop 2'!$AM$67,0)","v":162.76488126722538},{"$f":"IF(E7>0,'Crop 3'!$AM$67,0)","v":163.92646557054405}]
[null,"(% decrease)",{"$f":"IF(C7>0,-C47/C48,0)","v":0.12231059613241735},{"$f":"IF(D7>0,-D47/D48,0)","v":8.1656087637971719E-2},{"$f":"IF(E7>0,-E47/E48,0)","v":4.0836810293592575E-2}]
[null,"Seed Cost Change ($/acre)",{"$f":"IF(C7>0,'Crop 1'!$AK$69,0)","v":-2.8207049999999896},{"$f":"IF(D7>0,'Crop 2'!$AK$69,0)","v":-1.8470999999999975},{"$f":"IF(E7>0,'Crop 3'!$AK$69,0)","v":-1.8799999999999955}]
[null,"Chemical & Fertilizer Cost Change ($/acre)",{"$f":"IF(C7>0,'Crop 1'!$AK$70,0)","v":-47.205568000000028},{"$f":"IF(D7>0,'Crop 2'!$AK$70,0)","v":-11.127840000000006},{"$f":"IF(E7>0,'Crop 3'!$AK$70,0)","v":-4.6465919999999983}]
[null,"Operating Interest ($/acre)",{"$f":"IF(C7>0,'Crop 1'!$W$67-'Crop 1'!$N$67,0)","v":-1.1642207584743076},{"$f":"IF(D7>0,+'Crop 2'!$W$67-'Crop 2'!$N$67,0)","v":-0.31580340914062033},{"$f":"IF(E7>0,+'Crop 3'!$W$67-'Crop 3'!$N$67,0)","v":-0.16764197660344049}]
[null,"Equipment Efficiency Change ($/acre)",{"$f":"IF(C7>0, -'Crop 1'!$AO$68,0)","v":1.4899999999999949},{"$f":"IF(D7>0,-'Crop 2'!$AO$68,0)","v":0.67999999999999972},{"$f":"IF(E7>0,-'Crop 3'!$AO$68,0)","v":1.1499999999999773}]
[null,"Labor, Fuel, R&M and Capital Recovery ($/acre)",{"$f":"IF(C7>0,'Crop 1'!$AH$67,0)","v":85.97},{"$f":"IF(D7>0,+'Crop 2'!$AH$67,0)","v":38.92},{"$f":"IF(E7>0,+'Crop 3'!$AH$67,0)","v":95.019999999999982}]
[null,"(% decrease)",{"$f":"IF(C7>0,-C53/C54,0)","v":-1.7331627311852914E-2},{"$f":"IF(D7>0,-D53/D54,0)","v":-1.7471736896197319E-2},{"$f":"IF(E7>0,-E53/E54,0)","v":-1.2102715217848637E-2}]
[null,"Labor Cost Change ($/acre)",{"$f":"IF(C7>0,'Crop 1'!$AO$69,0)","v":-0.23000000000000043},{"$f":"IF(D7>0,'Crop 2'!$AO$69,0)","v":-8.9999999999999858E-2},{"$f":"IF(E7>0,'Crop 3'!$AO$70,0)","v":-0.17000000000000171}]
[null,"Fuel Cost Change ($/acre)",{"$f":"IF(C7>0,'Crop 1'!$AO$70,0)","v":-0.21999999999999886},{"$f":"IF(D7>0,'Crop 2'!$AO$70,0)","v":-9.0000000000000302E-2},{"$f":"IF(E7>0,'Crop 3'!$AO$69,0)","v":-0.16000000000000014}]
[null,"R&M Cost Change ($/acre)",{"$f":"IF(C7>0,'Crop 1'!$AO$71,0)","v":-0.27999999999999758},{"$f":"IF(D7>0,'Crop 2'!$AO$71,0)","v":-0.15000000000000036},{"$f":"IF(E7>0,'Crop 3'!$AO$71,0)","v":-0.21000000000000085}]
[null,"Capital Recovery Cost Change ($/acre)",{"$f":"IF(C7>0,'Crop 1'!$AO$72,0)","v":-0.76000000000000512},{"$f":"IF(D7>0,'Crop 2'!$AO$72,0)","v":-0.35000000000000142},{"$f":"IF(E7>0,'Crop 3'!$AO$72,0)","v":-0.60999999999999943}]
[]
[null,{"$f":"IF(OR(Inputs!$B$13=Defaults!$M$12,Inputs!$B$15=Defaults!$M$12,Inputs!$B$17=Defaults!$M$12),\"Revenue from Yield Change (excl. Pasture)\",\"Revenue from Yield Change\")","v":"Revenue from Yield Change (excl. Pasture)"},{"$f":"IF(C6=Defaults!$M$12,\"\",IFERROR(+ROUND(IFERROR('Crop 1'!$X$8-'Crop 1'!$U$8,0),IF(C6=Defaults!$M$10,2,1))*Inputs!$K$13*C7,\"\"))","v":9792},{"$f":"IF(D6=Defaults!$M$12,\"\",IFERROR(+ROUND(IFERROR('Crop 2'!$X$8-'Crop 2'!$U$8,0),IF(D6=Defaults!$M$10,2,1))*Inputs!$K$15*D7,\"\"))","v":4000},{"$f":"IF(E6=Defaults!$M$12,\"\",IFERROR(+ROUND(IFERROR('Crop 3'!$X$8-'Crop 3'!$U$8,0),IF(E6=Defaults!$M$10,2,1))*Inputs!$K$17*E7,\"\"))","v":""},{"$f":"SUM(C61:E61)","v":13792}]
[null,"Input Use Savings",{"$f":"-C47*C7","v":15357.148127542274},{"$f":"-D47*D7","v":2658.1486818281237},{"$f":"-E47*E7","v":669.42339766034422},18684.720207030739]
[null,"Seed Cost Savings",{"$f":"-C50*C7","v":846.21149999999693},{"$f":"-D50*D7","v":369.4199999999995},{"$f":"-E50*E7","v":187.99999999999955},1403.6314999999959]
[null,"Chemical & Fertilizer Savings",{"$f":"-C51*C7","v":14161.670400000008},{"$f":"-D51*D7","v":2225.5680000000011},{"$f":"-E51*E7","v":464.65919999999983},16851.897600000008]
[null,"Operating Interest Savings",{"$f":"-C52*C7","v":349.26622754229231},{"$f":"-D52*D7","v":63.160681828124069},{"$f":"-E52*E7","v":16.764197660344049},429.19110703076046]
[null,"Equipment Efficiency Change",{"$f":"C53*C7","v":446.99999999999847},{"$f":"D53*D7","v":135.99999999999994},{"$f":"E53*E7","v":114.99999999999773},697.99999999999613]
[null,"Labor Cost Savings",{"$f":"-C56*C7","v":69.000000000000128},{"$f":"-D56*D7","v":17.999999999999972},{"$f":"-E56*E7","v":17.000000000000171},104.00000000000027]
[null,"Fuel Cost Savings",{"$f":"-C57*C7","v":65.999999999999659},{"$f":"-D57*D7","v":18.00000000000006},{"$f":"-E57*E7","v":16.000000000000014},99.99999999999973]
[null,"R&M Cost Savings",{"$f":"-C58*C7","v":83.999999999999275},{"$f":"-D58*D7","v":30.000000000000071},{"$f":"-E58*E7","v":21.000000000000085},134.99999999999943]
[null,"Capital Recovery Cost",{"$f":"-C59*C7","v":228.00000000000153},{"$f":"-D59*D7","v":70.000000000000284},{"$f":"-E59*E7","v":60.999999999999943},359.00000000000176]
[]
[null,"Decrease in GHG Emissions (lbs/acre)",{"$f":"IF(C7>0,-Carbon!$W$166,0)","v":25.089999999999964},{"$f":"IF(D7>0,-Carbon!$Y$166,0)","v":5.1899999999999995},{"$f":"IF(E7>0,-Carbon!$AA$166,0)","v":19.160000000000075}]
[null,"from Fuel Use (lbs/acre)",{"$f":"IF(C7>0,-Carbon!$W$4,0)","v":0.59999999999999787},{"$f":"IF(D7>0,-Carbon!$Y$4,0)","v":0.23000000000000043},{"$f":"IF(E7>0,-Carbon!$AA$4,0)","v":0.58999999999999986}]
[null,"from Fertilizer Application (lbs/acre)",{"$f":"IF(C7>0,-Carbon!$W$5,0)","v":6.2199999999999704},{"$f":"IF(D7>0,-Carbon!$Y$5,0)","v":0.85999999999999943},{"$f":"IF(E7>0,-Carbon!$AA$5,0)","v":16.290000000000077}]
[null," from Herbicide Application (lbs/acre)",{"$f":"IF(C7>0,-Carbon!$W$36,0)","v":11.700000000000003},{"$f":"IF(D7>0,-Carbon!$Y$36,0)","v":3},{"$f":"IF(E7>0,-Carbon!AA$36,0)","v":2.2799999999999994}]
[null,"from Other Chemical Applications (lbs/acre)",{"$f":"IF(C7>0,-Carbon!$W$16,0)","v":6.5699999999999932},{"$f":"IF(D7>0,-Carbon!$Y$16,0)","v":1.0999999999999996},{"$f":"IF(E7>0,-Carbon!$AA$16,0)","v":0}]
[null,"Total Decrease in Carbon Emissions (tons)",null,null,null,{"$f":"-Carbon!$AD$166*Carbon!$AI$13","v":5.2404999999999999}]
[]
[null,{"$f":"0.5*C79+0.5*D79","v":16.97028913439998},{"$f":"+C72*0.4536*2.4711","v":28.123154186399962},5.8174240823999988,null,{"$f":"+V8-V9","v":4.8171449685140146}]
[null,{"$f":"0.5*C80+0.5*D80","v":0.46516974839999903},0.67253457599999755,0.25780492080000045,null,{"$f":"AVERAGE(C80:D80)","v":0.46516974839999903}]
[null,{"$f":"0.5*C81+0.5*D81","v":3.9679539983999828},6.9719417711999663,0.96396622559999923,null,{"$f":"AVERAGE(C81:D81)","v":3.9679539983999828}]
[null,{"$f":"0.5*C82+0.5*D82","v":8.2385485560000014},13.114424232000003,3.3626728799999999,null,{"$f":"AVERAGE(C82:D82)","v":8.2385485560000014}]
[null,{"$f":"0.5*C83+0.5*D83","v":4.2986168315999951},7.3642536071999913,1.2329800559999995,null,{"$f":"AVERAGE(C83:D83)","v":4.2986168315999951}]
[]
[null,null,{"$f":"+F77*2000*0.4536/1000","v":4.7541815999999999},{"$f":"+F77*2000*0.4536/1000","v":4.7541815999999999}]
[]
[null,"Disclaimer: The information provided within represents estimates that are a result of a set of complex calculations that are described in more detail in the user manual. Changes in parameter values and its implications on returns are estimates and the user should use their own reasonable judgment to reflect whether the direction of change in returns is appropriate before acting on the results. As such, this software is provided ‘as is’ and without warranties as to performance of merchantability. Further, statements may have been made to you about this software. Any such statements do not constitute warranties and shall not be relied on by the user in deciding whether to use the program or act on its results. This program is provided without any expressed or implied warranties whatsoever. Because the diversity of conditions and hardware under which this program may be used, no warranty of merchantability or warranty of fitness for a particular purpose is offered. The user is advised to test the program thoroughly before relying on it. The user assumes the entire risk of using the program. The University of Arkansas will not be liable for any claim or damage brought against the user by any third party, nor will the University of Arkansas be liable for any consequential, indirect or special damages suffered by the user as a result of the software."]

{"sheet":"Carbon","index":7,"n_rows":166,"n_cols":39,"rows_kept":166,"cut":false,"hidden":true,"merged":[[0,33,0,34],[0,36,0,37],[3,10,5,10],[1,2,1,10],[3,20,5,20],[1,12,1,20],[3,30,5,30],[0,1,0,30],[1,22,1,30],[3,21,5,21],[3,31,5,31],[3,11,5,11]]}
[null,"Carbon Footprint Calculations",null,null,null,null,null,null,null,null,null,null,null,null,null,null,null,null,null,null,null,null,null,null,null,null,null,null,null,null,null,null,null,"Application Unit to Pounds Conversion Factors",null,null,"Carbon Equivilant Emissions Factors"]
[null,null,"Benchmark Before Tractor Guidance",null,null,null,null,null,null,null,null,null,"After Tractor Guidance",null,null,null,null,null,null,null,null,null,"Carbon Savings"]
[null,null,{"$f":"CONCATENATE(Inputs!$B$13,\" per acre\")","v":"Cotton per acre"},{"$f":"CONCATENATE(\"Total \",Inputs!$B$13)","v":"Total Cotton"},{"$f":"CONCATENATE(Inputs!$B$15,\" per acre\")","v":"Soybean per acre"},{"$f":"CONCATENATE(\"Total \",Inputs!$B$15)","v":"Total Soybean"},{"$f":"CONCATENATE(Inputs!$B$17,\" per acre\")","v":"Est. Pasture or Hay per acre"},{"$f":"CONCATENATE(\"Total \",Inputs!$B$17)","v":"Total Est. Pasture or Hay"},"Average Carbon Footprint\nby Category\n(per acre)","Total\nCarbon Footprint\nby Category","Average\nCarbon Footprint\n(per acre)","Total Carbon Footprint",{"$f":"CONCATENATE(Inputs!$B$13,\" per acre\")","v":"Cotton per acre"},{"$f":"CONCATENATE(\"Total \",Inputs!$B$13)","v":"Total Cotton"},{"$f":"CONCATENATE(Inputs!$B$15,\" per acre\")","v":"Soybean per acre"},{"$f":"CONCATENATE(\"Total \",Inputs!$B$15)","v":"Total Soybean"},{"$f":"CONCATENATE(Inputs!$B$17,\" per acre\")","v":"Est. Pasture or Hay per acre"},{"$f":"CONCATENATE(\"Total \",Inputs!$B$17)","v":"Total Est. Pasture or Hay"},"Average Carbon Footprint\nby Category\n(per acre)","Total\nCarbon Footprint\nby Category","Average\nCarbon Footprint\n(per acre)","Total Carbon Footprint",{"$f":"CONCATENATE(Inputs!$B$13,\" per acre\")","v":"Cotton per acre"},{"$f":"CONCATENATE(\"Total \",Inputs!$B$13)","v":"Total Cotton"},{"$f":"CONCATENATE(Inputs!$B$15,\" per acre\")","v":"Soybean per acre"},{"$f":"CONCATENATE(\"Total \",Inputs!$B$15)","v":"Total Soybean"},{"$f":"CONCATENATE(Inputs!$B$17,\" per acre\")","v":"Est. Pasture or Hay per acre"},{"$f":"CONCATENATE(\"Total \",Inputs!$B$17)","v":"Total Est. Pasture or Hay"},"Average Carbon Savings\nby Category\n(per acre)","Total\nCarbon Savings\nby Category","Average\nCarbon\nSavings\n(per acre)","Total Carbon Savings",null,"unit","pounds",null,"Input","Pounds of Carbon Equivalent per Input Unit"]
[null,"Fuel Use (lbs)",{"$f":"ROUND('Crop 1'!$AK$10*$AL$5,2)","v":28.2},{"$f":"C4*Inputs!$D$13","v":8460},{"$f":"ROUND('Crop 2'!$AK$10*$AL$5,2)","v":12.8},{"$f":"E4*Inputs!$D$15","v":2560},{"$f":"ROUND('Crop 3'!$AK$10*$AL$5,2)","v":28.27},{"$f":"G4*Inputs!$D$17","v":2827},{"$f":"ROUND(J4/Inputs!D$19,2)","v":23.08},{"$f":"ROUND(D4+F4+H4,2)","v":13847},{"$f":"I4+I5+I16+I36","v":348.13},{"$f":"J4+J5+J16+J36","v":208876},{"$f":"ROUND('Crop 1'!$AR$10*$AL$5,2)","v":27.6},{"$f":"M4*Inputs!$D$13","v":8280},{"$f":"ROUND('Crop 2'!$AR$10*$AL$5,2)","v":12.57},{"$f":"O4*Inputs!$D$15","v":2514},{"$f":"ROUND('Crop 3'!$AR$10*$AL$5,2)","v":27.68},{"$f":"Q4*Inputs!$D$17","v":2768},{"$f":"ROUND(T4/Inputs!D$19,2)","v":22.6},{"$f":"ROUND(N4+P4+R4,2)","v":13562},{"$f":"S4+S5+S16+S36","v":330.65000000000003},{"$f":"T4+T5+T16+T36","v":198395},{"$f":"M4-C4","v":-0.59999999999999787},{"$f":"N4-D4","v":-180},-0.23000000000000043,-46,-0.58999999999999986,-59,{"$f":"ROUND(AD4/Inputs!D$19,2)","v":-0.48},{"$f":"ROUND(X4+Z4+AB4,2)","v":-285},{"$f":"U4-K4","v":-17.479999999999961},{"$f":"V4-L4","v":-10481},null,{"$f":"Defaults!Q15","v":"qt"},2.0863999999999998,null,"Fuel (gallons)"]
[null,"Fertility (lbs)",{"$f":"ROUND(SUM(C6:C15),2)","v":277.33},{"$f":"C5*Inputs!$D$13","v":83199},{"$f":"ROUND(SUM(E6:E15),2)","v":38.17},{"$f":"E5*Inputs!$D$15","v":7634},{"$f":"ROUND(SUM(G6:G15),2)","v":726.82},{"$f":"G5*Inputs!$D$17","v":72682},{"$f":"ROUND(J5/Inputs!D$19,2)","v":272.52999999999997},{"$f":"ROUND(D5+F5+H5,2)","v":163515},null,null,{"$f":"ROUND(SUM(M6:M15),2)","v":271.11},{"$f":"M5*Inputs!$D$13","v":81333},{"$f":"ROUND(SUM(O6:O15),2)","v":37.31},{"$f":"O5*Inputs!$D$15","v":7462},{"$f":"ROUND(SUM(Q6:Q15),2)","v":710.53},{"$f":"Q5*Inputs!$D$17","v":71053},{"$f":"ROUND(T5/Inputs!D$19,2)","v":266.41000000000003},{"$f":"ROUND(N5+P5+R5,2)","v":159848},null,null,{"$f":"M5-C5","v":-6.2199999999999704},-1866,-0.85999999999999943,-172,-16.290000000000077,-1629,{"$f":"ROUND(AD5/Inputs!D$19,2)","v":-6.11},{"$f":"ROUND(X5+Z5+AB5,2)","v":-3667},null,null,null,{"$f":"Defaults!Q16","v":"pt"},{"$f":"AI4/2","v":1.0431999999999999},null,"Diesel",7.44]
[null,{"$f":"Defaults!T4","v":"Urea [46-0-0]"},{"$f":"ROUND((IF('Crop 1'!$C$24=Carbon!$B6,'Crop 1'!$L$24,0)+IF('Crop 1'!$C$25=Carbon!$B6,'Crop 1'!$L$25,0)+IF('Crop 1'!$C$26=Carbon!$B6,'Crop 1'!$L$26,0)+IF('Crop 1'!$C$27=Carbon!$B6,'Crop 1'!$L$27,0)+IF('Crop 1'!$C$28=Carbon!$B6,'Crop 1'!$L$28,0)+IF('Crop 1'!$C$29=Carbon!$B6,'Crop 1'!$L$29,0)+IF('Crop 1'!$C$40=Carbon!$B6,'Crop 1'!$L$40,0)+IF('Crop 1'!$C$41=Carbon!$B6,'Crop 1'!$L$41,0)+IF('Crop 1'!$C$42=Carbon!$B6,'Crop 1'!$L$42,0))*$AL7*VLOOKUP(VLOOKUP(B6,Defaults!$T$4:$W$13,4,FALSE),Carbon!$AH$4:$AI$10,2,FALSE),2)","v":147.4},{"$f":"C6*Inputs!$D$13","v":44220},{"$f":"ROUND((IF('Crop 2'!$C$24=Carbon!$B6,'Crop 2'!$L$24,0)+IF('Crop 2'!$C$25=Carbon!$B6,'Crop 2'!$L$25,0)+IF('Crop 2'!$C$26=Carbon!$B6,'Crop 2'!$L$26,0)+IF('Crop 2'!$C$27=Carbon!$B6,'Crop 2'!$L$27,0)+IF('Crop 2'!$C$28=Carbon!$B6,'Crop 2'!$L$28,0)+IF('Crop 2'!$C$29=Carbon!$B6,'Crop 2'!$L$29,0)+IF('Crop 2'!$C$40=Carbon!$B6,'Crop 2'!$L$40,0)+IF('Crop 2'!$C$41=Carbon!$B6,'Crop 2'!$L$41,0)+IF('Crop 2'!$C$42=Carbon!$B6,'Crop 2'!$L$42,0))*$AL7*VLOOKUP(VLOOKUP(B6,Defaults!$T$4:$W$13,4,FALSE),Carbon!$AH$4:$AI$10,2,FALSE),2)","v":0},{"$f":"E6*Inputs!$D$15","v":0},{"$f":"ROUND((IF('Crop 3'!$C$24=Carbon!$B6,'Crop 3'!$L$24,0)+IF('Crop 3'!$C$25=Carbon!$B6,'Crop 3'!$L$25,0)+IF('Crop 3'!$C$26=Carbon!$B6,'Crop 3'!$L$26,0)+IF('Crop 3'!$C$27=Carbon!$B6,'Crop 3'!$L$27,0)+IF('Crop 3'!$C$28=Carbon!$B6,'Crop 3'!$L$28,0)+IF('Crop 3'!$C$29=Carbon!$B6,'Crop 3'!$L$29,0)+IF('Crop 3'!$C$40=Carbon!$B6,'Crop 3'!$L$40,0)+IF('Crop 3'!$C$41=Carbon!$B6,'Crop 3'!$L$41,0)+IF('Crop 3'!$C$42=Carbon!$B6,'Crop 3'!$L$42,0))*$AL7*VLOOKUP(VLOOKUP(B6,Defaults!$T$4:$W$13,4,FALSE),Carbon!$AH$4:$AI$10,2,FALSE),2)","v":187.27},{"$f":"G6*Inputs!$D$17","v":18727},{"$f":"ROUND(J6/Inputs!D$19,2)","v":104.91},62947,null,null,{"$f":"ROUND((IF('Crop 1'!$C$24=Carbon!$B6,'Crop 1'!$V$24,0)+IF('Crop 1'!$C$25=Carbon!$B6,'Crop 1'!$V$25,0)+IF('Crop 1'!$C$26=Carbon!$B6,'Crop 1'!$V$26,0)+IF('Crop 1'!$C$27=Carbon!$B6,'Crop 1'!$V$27,0)+IF('Crop 1'!$C$28=Carbon!$B6,'Crop 1'!$V$28,0)+IF('Crop 1'!$C$29=Carbon!$B6,'Crop 1'!$V$29,0)+IF('Crop 1'!$C$40=Carbon!$B6,'Crop 1'!$V$40,0)+IF('Crop 1'!$C$41=Carbon!$B6,'Crop 1'!$V$41,0)+IF('Crop 1'!$C$42=Carbon!$B6,'Crop 1'!$V$42,0))*$AL7*VLOOKUP(VLOOKUP(B6,Defaults!$T$4:$W$13,4,FALSE),Carbon!$AH$4:$AI$10,2,FALSE),2)","v":144.09},{"$f":"M6*Inputs!$D$13","v":43227},{"$f":"ROUND((IF('Crop 2'!$C$24=Carbon!$B6,'Crop 2'!$V$24,0)+IF('Crop 2'!$C$25=Carbon!$B6,'Crop 2'!$V$25,0)+IF('Crop 2'!$C$26=Carbon!$B6,'Crop 2'!$V$26,0)+IF('Crop 2'!$C$27=Carbon!$B6,'Crop 2'!$V$27,0)+IF('Crop 2'!$C$28=Carbon!$B6,'Crop 2'!$V$28,0)+IF('Crop 2'!$C$29=Carbon!$B6,'Crop 2'!$V$29,0)+IF('Crop 2'!$C$40=Carbon!$B6,'Crop 2'!$V$40,0)+IF('Crop 2'!$C$41=Carbon!$B6,'Crop 2'!$V$41,0)+IF('Crop 2'!$C$42=Carbon!$B6,'Crop 2'!$V$42,0))*$AL7*VLOOKUP(VLOOKUP(B6,Defaults!$T$4:$W$13,4,FALSE),Carbon!$AH$4:$AI$10,2,FALSE),2)","v":0},{"$f":"O6*Inputs!$D$15","v":0},{"$f":"ROUND((IF('Crop 3'!$C$24=Carbon!$B6,'Crop 3'!$V$24,0)+IF('Crop 3'!$C$25=Carbon!$B6,'Crop 3'!$V$25,0)+IF('Crop 3'!$C$26=Carbon!$B6,'Crop 3'!$V$26,0)+IF('Crop 3'!$C$27=Carbon!$B6,'Crop 3'!$V$27,0)+IF('Crop 3'!$C$28=Carbon!$B6,'Crop 3'!$V$28,0)+IF('Crop 3'!$C$29=Carbon!$B6,'Crop 3'!$V$29,0)+IF('Crop 3'!$C$40=Carbon!$B6,'Crop 3'!$V$40,0)+IF('Crop 3'!$C$41=Carbon!$B6,'Crop 3'!$V$41,0)+IF('Crop 3'!$C$42=Carbon!$B6,'Crop 3'!$V$42,0))*$AL7*VLOOKUP(VLOOKUP(B6,Defaults!$T$4:$W$13,4,FALSE),Carbon!$AH$4:$AI$10,2,FALSE),2)","v":183.07},{"$f":"Q6*Inputs!$D$17","v":18307},{"$f":"ROUND(T6/Inputs!D$19,2)","v":102.56},61534,null,null,{"$f":"M6-C6","v":-3.3100000000000023},-993,0,0,-4.2000000000000171,-420,{"$f":"ROUND(AD6/Inputs!D$19,2)","v":-2.36},-1413,null,null,null,{"$f":"Defaults!Q17","v":"oz"},6.25E-2,null,"Fertilizer (pounds)"]
[null,{"$f":"Defaults!T5","v":"Diammonium Phosphate [18-46-0]"},{"$f":"ROUND((IF('Crop 1'!$C$24=Carbon!$B7,'Crop 1'!$L$24,0)+IF('Crop 1'!$C$25=Carbon!$B7,'Crop 1'!$L$25,0)+IF('Crop 1'!$C$26=Carbon!$B7,'Crop 1'!$L$26,0)+IF('Crop 1'!$C$27=Carbon!$B7,'Crop 1'!$L$27,0)+IF('Crop 1'!$C$28=Carbon!$B7,'Crop 1'!$L$28,0)+IF('Crop 1'!$C$29=Carbon!$B7,'Crop 1'!$L$29,0)+IF('Crop 1'!$C$40=Carbon!$B7,'Crop 1'!$L$40,0)+IF('Crop 1'!$C$41=Carbon!$B7,'Crop 1'!$L$41,0)+IF('Crop 1'!$C$42=Carbon!$B7,'Crop 1'!$L$42,0))*$AL8*VLOOKUP(VLOOKUP(B7,Defaults!$T$4:$W$13,4,FALSE),Carbon!$AH$4:$AI$10,2,FALSE),2)","v":51.69},{"$f":"C7*Inputs!$D$13","v":15507},{"$f":"ROUND((IF('Crop 2'!$C$24=Carbon!$B7,'Crop 2'!$L$24,0)+IF('Crop 2'!$C$25=Carbon!$B7,'Crop 2'!$L$25,0)+IF('Crop 2'!$C$26=Carbon!$B7,'Crop 2'!$L$26,0)+IF('Crop 2'!$C$27=Carbon!$B7,'Crop 2'!$L$27,0)+IF('Crop 2'!$C$28=Carbon!$B7,'Crop 2'!$L$28,0)+IF('Crop 2'!$C$29=Carbon!$B7,'Crop 2'!$L$29,0)+IF('Crop 2'!$C$40=Carbon!$B7,'Crop 2'!$L$40,0)+IF('Crop 2'!$C$41=Carbon!$B7,'Crop 2'!$L$41,0)+IF('Crop 2'!$C$42=Carbon!$B7,'Crop 2'!$L$42,0))*$AL8*VLOOKUP(VLOOKUP(B7,Defaults!$T$4:$W$13,4,FALSE),Carbon!$AH$4:$AI$10,2,FALSE),2)","v":0},{"$f":"E7*Inputs!$D$15","v":0},{"$f":"ROUND((IF('Crop 3'!$C$24=Carbon!$B7,'Crop 3'!$L$24,0)+IF('Crop 3'!$C$25=Carbon!$B7,'Crop 3'!$L$25,0)+IF('Crop 3'!$C$26=Carbon!$B7,'Crop 3'!$L$26,0)+IF('Crop 3'!$C$27=Carbon!$B7,'Crop 3'!$L$27,0)+IF('Crop 3'!$C$28=Carbon!$B7,'Crop 3'!$L$28,0)+IF('Crop 3'!$C$29=Carbon!$B7,'Crop 3'!$L$29,0)+IF('Crop 3'!$C$40=Carbon!$B7,'Crop 3'!$L$40,0)+IF('Crop 3'!$C$41=Carbon!$B7,'Crop 3'!$L$41,0)+IF('Crop 3'!$C$42=Carbon!$B7,'Crop 3'!$L$42,0))*$AL8*VLOOKUP(VLOOKUP(B7,Defaults!$T$4:$W$13,4,FALSE),Carbon!$AH$4:$AI$10,2,FALSE),2)","v":15.91},{"$f":"G7*Inputs!$D$17","v":1591},{"$f":"ROUND(J7/Inputs!D$19,2)","v":28.5},17098,null,null,{"$f":"ROUND((IF('Crop 1'!$C$24=Carbon!$B7,'Crop 1'!$V$24,0)+IF('Crop 1'!$C$25=Carbon!$B7,'Crop 1'!$V$25,0)+IF('Crop 1'!$C$26=Carbon!$B7,'Crop 1'!$V$26,0)+IF('Crop 1'!$C$27=Carbon!$B7,'Crop 1'!$V$27,0)+IF('Crop 1'!$C$28=Carbon!$B7,'Crop 1'!$V$28,0)+IF('Crop 1'!$C$29=Carbon!$B7,'Crop 1'!$V$29,0)+IF('Crop 1'!$C$40=Carbon!$B7,'Crop 1'!$V$40,0)+IF('Crop 1'!$C$41=Carbon!$B7,'Crop 1'!$V$41,0)+IF('Crop 1'!$C$42=Carbon!$B7,'Crop 1'!$V$42,0))*$AL8*VLOOKUP(VLOOKUP(B7,Defaults!$T$4:$W$13,4,FALSE),Carbon!$AH$4:$AI$10,2,FALSE),2)","v":50.53},{"$f":"M7*Inputs!$D$13","v":15159},{"$f":"ROUND((IF('Crop 2'!$C$24=Carbon!$B7,'Crop 2'!$V$24,0)+IF('Crop 2'!$C$25=Carbon!$B7,'Crop 2'!$V$25,0)+IF('Crop 2'!$C$26=Carbon!$B7,'Crop 2'!$V$26,0)+IF('Crop 2'!$C$27=Carbon!$B7,'Crop 2'!$V$27,0)+IF('Crop 2'!$C$28=Carbon!$B7,'Crop 2'!$V$28,0)+IF('Crop 2'!$C$29=Carbon!$B7,'Crop 2'!$V$29,0)+IF('Crop 2'!$C$40=Carbon!$B7,'Crop 2'!$V$40,0)+IF('Crop 2'!$C$41=Carbon!$B7,'Crop 2'!$V$41,0)+IF('Crop 2'!$C$42=Carbon!$B7,'Crop 2'!$V$42,0))*$AL8*VLOOKUP(VLOOKUP(B7,Defaults!$T$4:$W$13,4,FALSE),Carbon!$AH$4:$AI$10,2,FALSE),2)","v":0},{"$f":"O7*Inputs!$D$15","v":0},{"$f":"ROUND((IF('Crop 3'!$C$24=Carbon!$B7,'Crop 3'!$V$24,0)+IF('Crop 3'!$C$25=Carbon!$B7,'Crop 3'!$V$25,0)+IF('Crop 3'!$C$26=Carbon!$B7,'Crop 3'!$V$26,0)+IF('Crop 3'!$C$27=Carbon!$B7,'Crop 3'!$V$27,0)+IF('Crop 3'!$C$28=Carbon!$B7,'Crop 3'!$V$28,0)+IF('Crop 3'!$C$29=Carbon!$B7,'Crop 3'!$V$29,0)+IF('Crop 3'!$C$40=Carbon!$B7,'Crop 3'!$V$40,0)+IF('Crop 3'!$C$41=Carbon!$B7,'Crop 3'!$V$41,0)+IF('Crop 3'!$C$42=Carbon!$B7,'Crop 3'!$V$42,0))*$AL8*VLOOKUP(VLOOKUP(B7,Defaults!$T$4:$W$13,4,FALSE),Carbon!$AH$4:$AI$10,2,FALSE),2)","v":15.55},{"$f":"Q7*Inputs!$D$17","v":1555},{"$f":"ROUND(T7/Inputs!D$19,2)","v":27.86},16714,null,null,-1.1599999999999966,-348,0,0,-0.35999999999999943,-36,{"$f":"ROUND(AD7/Inputs!D$19,2)","v":-0.64},-384,null,null,null,{"$f":"Defaults!Q18","v":"cwt"},100,null,{"$f":"+Defaults!T4","v":"Urea [46-0-0]"},1.2081676585230345]
[null,{"$f":"Defaults!T6","v":"Potash [0-0-60]"},{"$f":"ROUND((IF('Crop 1'!$C$24=Carbon!$B8,'Crop 1'!$L$24,0)+IF('Crop 1'!$C$25=Carbon!$B8,'Crop 1'!$L$25,0)+IF('Crop 1'!$C$26=Carbon!$B8,'Crop 1'!$L$26,0)+IF('Crop 1'!$C$27=Carbon!$B8,'Crop 1'!$L$27,0)+IF('Crop 1'!$C$28=Carbon!$B8,'Crop 1'!$L$28,0)+IF('Crop 1'!$C$29=Carbon!$B8,'Crop 1'!$L$29,0)+IF('Crop 1'!$C$40=Carbon!$B8,'Crop 1'!$L$40,0)+IF('Crop 1'!$C$41=Carbon!$B8,'Crop 1'!$L$41,0)+IF('Crop 1'!$C$42=Carbon!$B8,'Crop 1'!$L$42,0))*$AL9*VLOOKUP(VLOOKUP(B8,Defaults!$T$4:$W$13,4,FALSE),Carbon!$AH$4:$AI$10,2,FALSE),2)","v":10.84},{"$f":"C8*Inputs!$D$13","v":3252},{"$f":"ROUND((IF('Crop 2'!$C$24=Carbon!$B8,'Crop 2'!$L$24,0)+IF('Crop 2'!$C$25=Carbon!$B8,'Crop 2'!$L$25,0)+IF('Crop 2'!$C$26=Carbon!$B8,'Crop 2'!$L$26,0)+IF('Crop 2'!$C$27=Carbon!$B8,'Crop 2'!$L$27,0)+IF('Crop 2'!$C$28=Carbon!$B8,'Crop 2'!$L$28,0)+IF('Crop 2'!$C$29=Carbon!$B8,'Crop 2'!$L$29,0)+IF('Crop 2'!$C$40=Carbon!$B8,'Crop 2'!$L$40,0)+IF('Crop 2'!$C$41=Carbon!$B8,'Crop 2'!$L$41,0)+IF('Crop 2'!$C$42=Carbon!$B8,'Crop 2'!$L$42,0))*$AL9*VLOOKUP(VLOOKUP(B8,Defaults!$T$4:$W$13,4,FALSE),Carbon!$AH$4:$AI$10,2,FALSE),2)","v":10.84},{"$f":"E8*Inputs!$D$15","v":2168},{"$f":"ROUND((IF('Crop 3'!$C$24=Carbon!$B8,'Crop 3'!$L$24,0)+IF('Crop 3'!$C$25=Carbon!$B8,'Crop 3'!$L$25,0)+IF('Crop 3'!$C$26=Carbon!$B8,'Crop 3'!$L$26,0)+IF('Crop 3'!$C$27=Carbon!$B8,'Crop 3'!$L$27,0)+IF('Crop 3'!$C$28=Carbon!$B8,'Crop 3'!$L$28,0)+IF('Crop 3'!$C$29=Carbon!$B8,'Crop 3'!$L$29,0)+IF('Crop 3'!$C$40=Carbon!$B8,'Crop 3'!$L$40,0)+IF('Crop 3'!$C$41=Carbon!$B8,'Crop 3'!$L$41,0)+IF('Crop 3'!$C$42=Carbon!$B8,'Crop 3'!$L$42,0))*$AL9*VLOOKUP(VLOOKUP(B8,Defaults!$T$4:$W$13,4,FALSE),Carbon!$AH$4:$AI$10,2,FALSE),2)","v":8.99},{"$f":"G8*Inputs!$D$17","v":899},{"$f":"ROUND(J8/Inputs!D$19,2)","v":10.53},6319,null,null,{"$f":"ROUND((IF('Crop 1'!$C$24=Carbon!$B8,'Crop 1'!$V$24,0)+IF('Crop 1'!$C$25=Carbon!$B8,'Crop 1'!$V$25,0)+IF('Crop 1'!$C$26=Carbon!$B8,'Crop 1'!$V$26,0)+IF('Crop 1'!$C$27=Carbon!$B8,'Crop 1'!$V$27,0)+IF('Crop 1'!$C$28=Carbon!$B8,'Crop 1'!$V$28,0)+IF('Crop 1'!$C$29=Carbon!$B8,'Crop 1'!$V$29,0)+IF('Crop 1'!$C$40=Carbon!$B8,'Crop 1'!$V$40,0)+IF('Crop 1'!$C$41=Carbon!$B8,'Crop 1'!$V$41,0)+IF('Crop 1'!$C$42=Carbon!$B8,'Crop 1'!$V$42,0))*$AL9*VLOOKUP(VLOOKUP(B8,Defaults!$T$4:$W$13,4,FALSE),Carbon!$AH$4:$AI$10,2,FALSE),2)","v":10.59},{"$f":"M8*Inputs!$D$13","v":3177},{"$f":"ROUND((IF('Crop 2'!$C$24=Carbon!$B8,'Crop 2'!$V$24,0)+IF('Crop 2'!$C$25=Carbon!$B8,'Crop 2'!$V$25,0)+IF('Crop 2'!$C$26=Carbon!$B8,'Crop 2'!$V$26,0)+IF('Crop 2'!$C$27=Carbon!$B8,'Crop 2'!$V$27,0)+IF('Crop 2'!$C$28=Carbon!$B8,'Crop 2'!$V$28,0)+IF('Crop 2'!$C$29=Carbon!$B8,'Crop 2'!$V$29,0)+IF('Crop 2'!$C$40=Carbon!$B8,'Crop 2'!$V$40,0)+IF('Crop 2'!$C$41=Carbon!$B8,'Crop 2'!$V$41,0)+IF('Crop 2'!$C$42=Carbon!$B8,'Crop 2'!$V$42,0))*$AL9*VLOOKUP(VLOOKUP(B8,Defaults!$T$4:$W$13,4,FALSE),Carbon!$AH$4:$AI$10,2,FALSE),2)","v":10.59},{"$f":"O8*Inputs!$D$15","v":2118},{"$f":"ROUND((IF('Crop 3'!$C$24=Carbon!$B8,'Crop 3'!$V$24,0)+IF('Crop 3'!$C$25=Carbon!$B8,'Crop 3'!$V$25,0)+IF('Crop 3'!$C$26=Carbon!$B8,'Crop 3'!$V$26,0)+IF('Crop 3'!$C$27=Carbon!$B8,'Crop 3'!$V$27,0)+IF('Crop 3'!$C$28=Carbon!$B8,'Crop 3'!$V$28,0)+IF('Crop 3'!$C$29=Carbon!$B8,'Crop 3'!$V$29,0)+IF('Crop 3'!$C$40=Carbon!$B8,'Crop 3'!$V$40,0)+IF('Crop 3'!$C$41=Carbon!$B8,'Crop 3'!$V$41,0)+IF('Crop 3'!$C$42=Carbon!$B8,'Crop 3'!$V$42,0))*$AL9*VLOOKUP(VLOOKUP(B8,Defaults!$T$4:$W$13,4,FALSE),Carbon!$AH$4:$AI$10,2,FALSE),2)","v":8.7899999999999991},{"$f":"Q8*Inputs!$D$17","v":878.99999999999989},{"$f":"ROUND(T8/Inputs!D$19,2)","v":10.29},6174,null,null,-0.25,-75,-0.25,-50,-0.20000000000000107,-20.000000000000114,{"$f":"ROUND(AD8/Inputs!D$19,2)","v":-0.24},-145,null,null,null,{"$f":"Defaults!Q19","v":"gal"},{"$f":"AI4*4","v":8.3455999999999992},null,{"$f":"+Defaults!T5","v":"Diammonium Phosphate [18-46-0]"},0.79527172794894607]
[null,{"$f":"Defaults!T7","v":"Triple Superphosphate [0-45-0]"},{"$f":"ROUND((IF('Crop 1'!$C$24=Carbon!$B9,'Crop 1'!$L$24,0)+IF('Crop 1'!$C$25=Carbon!$B9,'Crop 1'!$L$25,0)+IF('Crop 1'!$C$26=Carbon!$B9,'Crop 1'!$L$26,0)+IF('Crop 1'!$C$27=Carbon!$B9,'Crop 1'!$L$27,0)+IF('Crop 1'!$C$28=Carbon!$B9,'Crop 1'!$L$28,0)+IF('Crop 1'!$C$29=Carbon!$B9,'Crop 1'!$L$29,0)+IF('Crop 1'!$C$40=Carbon!$B9,'Crop 1'!$L$40,0)+IF('Crop 1'!$C$41=Carbon!$B9,'Crop 1'!$L$41,0)+IF('Crop 1'!$C$42=Carbon!$B9,'Crop 1'!$L$42,0))*$AL10*VLOOKUP(VLOOKUP(B9,Defaults!$T$4:$W$13,4,FALSE),Carbon!$AH$4:$AI$10,2,FALSE),2)","v":0},{"$f":"C9*Inputs!$D$13","v":0},{"$f":"ROUND((IF('Crop 2'!$C$24=Carbon!$B9,'Crop 2'!$L$24,0)+IF('Crop 2'!$C$25=Carbon!$B9,'Crop 2'!$L$25,0)+IF('Crop 2'!$C$26=Carbon!$B9,'Crop 2'!$L$26,0)+IF('Crop 2'!$C$27=Carbon!$B9,'Crop 2'!$L$27,0)+IF('Crop 2'!$C$28=Carbon!$B9,'Crop 2'!$L$28,0)+IF('Crop 2'!$C$29=Carbon!$B9,'Crop 2'!$L$29,0)+IF('Crop 2'!$C$40=Carbon!$B9,'Crop 2'!$L$40,0)+IF('Crop 2'!$C$41=Carbon!$B9,'Crop 2'!$L$41,0)+IF('Crop 2'!$C$42=Carbon!$B9,'Crop 2'!$L$42,0))*$AL10*VLOOKUP(VLOOKUP(B9,Defaults!$T$4:$W$13,4,FALSE),Carbon!$AH$4:$AI$10,2,FALSE),2)","v":27.33},{"$f":"E9*Inputs!$D$15","v":5466},{"$f":"ROUND((IF('Crop 3'!$C$24=Carbon!$B9,'Crop 3'!$L$24,0)+IF('Crop 3'!$C$25=Carbon!$B9,'Crop 3'!$L$25,0)+IF('Crop 3'!$C$26=Carbon!$B9,'Crop 3'!$L$26,0)+IF('Crop 3'!$C$27=Carbon!$B9,'Crop 3'!$L$27,0)+IF('Crop 3'!$C$28=Carbon!$B9,'Crop 3'!$L$28,0)+IF('Crop 3'!$C$29=Carbon!$B9,'Crop 3'!$L$29,0)+IF('Crop 3'!$C$40=Carbon!$B9,'Crop 3'!$L$40,0)+IF('Crop 3'!$C$41=Carbon!$B9,'Crop 3'!$L$41,0)+IF('Crop 3'!$C$42=Carbon!$B9,'Crop 3'!$L$42,0))*$AL10*VLOOKUP(VLOOKUP(B9,Defaults!$T$4:$W$13,4,FALSE),Carbon!$AH$4:$AI$10,2,FALSE),2)","v":0},{"$f":"G9*Inputs!$D$17","v":0},{"$f":"ROUND(J9/Inputs!D$19,2)","v":9.11},5466,null,null,{"$f":"ROUND((IF('Crop 1'!$C$24=Carbon!$B9,'Crop 1'!$V$24,0)+IF('Crop 1'!$C$25=Carbon!$B9,'Crop 1'!$V$25,0)+IF('Crop 1'!$C$26=Carbon!$B9,'Crop 1'!$V$26,0)+IF('Crop 1'!$C$27=Carbon!$B9,'Crop 1'!$V$27,0)+IF('Crop 1'!$C$28=Carbon!$B9,'Crop 1'!$V$28,0)+IF('Crop 1'!$C$29=Carbon!$B9,'Crop 1'!$V$29,0)+IF('Crop 1'!$C$40=Carbon!$B9,'Crop 1'!$V$40,0)+IF('Crop 1'!$C$41=Carbon!$B9,'Crop 1'!$V$41,0)+IF('Crop 1'!$C$42=Carbon!$B9,'Crop 1'!$V$42,0))*$AL10*VLOOKUP(VLOOKUP(B9,Defaults!$T$4:$W$13,4,FALSE),Carbon!$AH$4:$AI$10,2,FALSE),2)","v":0},{"$f":"M9*Inputs!$D$13","v":0},{"$f":"ROUND((IF('Crop 2'!$C$24=Carbon!$B9,'Crop 2'!$V$24,0)+IF('Crop 2'!$C$25=Carbon!$B9,'Crop 2'!$V$25,0)+IF('Crop 2'!$C$26=Carbon!$B9,'Crop 2'!$V$26,0)+IF('Crop 2'!$C$27=Carbon!$B9,'Crop 2'!$V$27,0)+IF('Crop 2'!$C$28=Carbon!$B9,'Crop 2'!$V$28,0)+IF('Crop 2'!$C$29=Carbon!$B9,'Crop 2'!$V$29,0)+IF('Crop 2'!$C$40=Carbon!$B9,'Crop 2'!$V$40,0)+IF('Crop 2'!$C$41=Carbon!$B9,'Crop 2'!$V$41,0)+IF('Crop 2'!$C$42=Carbon!$B9,'Crop 2'!$V$42,0))*$AL10*VLOOKUP(VLOOKUP(B9,Defaults!$T$4:$W$13,4,FALSE),Carbon!$AH$4:$AI$10,2,FALSE),2)","v":26.72},{"$f":"O9*Inputs!$D$15","v":5344},{"$f":"ROUND((IF('Crop 3'!$C$24=Carbon!$B9,'Crop 3'!$V$24,0)+IF('Crop 3'!$C$25=Carbon!$B9,'Crop 3'!$V$25,0)+IF('Crop 3'!$C$26=Carbon!$B9,'Crop 3'!$V$26,0)+IF('Crop 3'!$C$27=Carbon!$B9,'Crop 3'!$V$27,0)+IF('Crop 3'!$C$28=Carbon!$B9,'Crop 3'!$V$28,0)+IF('Crop 3'!$C$29=Carbon!$B9,'Crop 3'!$V$29,0)+IF('Crop 3'!$C$40=Carbon!$B9,'Crop 3'!$V$40,0)+IF('Crop 3'!$C$41=Carbon!$B9,'Crop 3'!$V$41,0)+IF('Crop 3'!$C$42=Carbon!$B9,'Crop 3'!$V$42,0))*$AL10*VLOOKUP(VLOOKUP(B9,Defaults!$T$4:$W$13,4,FALSE),Carbon!$AH$4:$AI$10,2,FALSE),2)","v":0},{"$f":"Q9*Inputs!$D$17","v":0},{"$f":"ROUND(T9/Inputs!D$19,2)","v":8.91},5344,null,null,0,0,-0.60999999999999943,-122,0,0,{"$f":"ROUND(AD9/Inputs!D$19,2)","v":-0.2},-122,null,null,null,{"$f":"Defaults!Q20","v":"lb"},1,null,{"$f":"+Defaults!T6","v":"Potash [0-0-60]"},0.10836075979937405]
[null,{"$f":"Defaults!T8","v":"Zinc Sulfate"},{"$f":"ROUND((IF('Crop 1'!$C$24=Carbon!$B10,'Crop 1'!$L$24,0)+IF('Crop 1'!$C$25=Carbon!$B10,'Crop 1'!$L$25,0)+IF('Crop 1'!$C$26=Carbon!$B10,'Crop 1'!$L$26,0)+IF('Crop 1'!$C$27=Carbon!$B10,'Crop 1'!$L$27,0)+IF('Crop 1'!$C$28=Carbon!$B10,'Crop 1'!$L$28,0)+IF('Crop 1'!$C$29=Carbon!$B10,'Crop 1'!$L$29,0)+IF('Crop 1'!$C$40=Carbon!$B10,'Crop 1'!$L$40,0)+IF('Crop 1'!$C$41=Carbon!$B10,'Crop 1'!$L$41,0)+IF('Crop 1'!$C$42=Carbon!$B10,'Crop 1'!$L$42,0))*$AL11*VLOOKUP(VLOOKUP(B10,Defaults!$T$4:$W$13,4,FALSE),Carbon!$AH$4:$AI$10,2,FALSE),2)","v":0},{"$f":"C10*Inputs!$D$13","v":0},{"$f":"ROUND((IF('Crop 2'!$C$24=Carbon!$B10,'Crop 2'!$L$24,0)+IF('Crop 2'!$C$25=Carbon!$B10,'Crop 2'!$L$25,0)+IF('Crop 2'!$C$26=Carbon!$B10,'Crop 2'!$L$26,0)+IF('Crop 2'!$C$27=Carbon!$B10,'Crop 2'!$L$27,0)+IF('Crop 2'!$C$28=Carbon!$B10,'Crop 2'!$L$28,0)+IF('Crop 2'!$C$29=Carbon!$B10,'Crop 2'!$L$29,0)+IF('Crop 2'!$C$40=Carbon!$B10,'Crop 2'!$L$40,0)+IF('Crop 2'!$C$41=Carbon!$B10,'Crop 2'!$L$41,0)+IF('Crop 2'!$C$42=Carbon!$B10,'Crop 2'!$L$42,0))*$AL11*VLOOKUP(VLOOKUP(B10,Defaults!$T$4:$W$13,4,FALSE),Carbon!$AH$4:$AI$10,2,FALSE),2)","v":0},{"$f":"E10*Inputs!$D$15","v":0},{"$f":"ROUND((IF('Crop 3'!$C$24=Carbon!$B10,'Crop 3'!$L$24,0)+IF('Crop 3'!$C$25=Carbon!$B10,'Crop 3'!$L$25,0)+IF('Crop 3'!$C$26=Carbon!$B10,'Crop 3'!$L$26,0)+IF('Crop 3'!$C$27=Carbon!$B10,'Crop 3'!$L$27,0)+IF('Crop 3'!$C$28=Carbon!$B10,'Crop 3'!$L$28,0)+IF('Crop 3'!$C$29=Carbon!$B10,'Crop 3'!$L$29,0)+IF('Crop 3'!$C$40=Carbon!$B10,'Crop 3'!$L$40,0)+IF('Crop 3'!$C$41=Carbon!$B10,'Crop 3'!$L$41,0)+IF('Crop 3'!$C$42=Carbon!$B10,'Crop 3'!$L$42,0))*$AL11*VLOOKUP(VLOOKUP(B10,Defaults!$T$4:$W$13,4,FALSE),Carbon!$AH$4:$AI$10,2,FALSE),2)","v":0},{"$f":"G10*Inputs!$D$17","v":0},{"$f":"ROUND(J10/Inputs!D$19,2)","v":0},0,null,null,{"$f":"ROUND((IF('Crop 1'!$C$24=Carbon!$B10,'Crop 1'!$V$24,0)+IF('Crop 1'!$C$25=Carbon!$B10,'Crop 1'!$V$25,0)+IF('Crop 1'!$C$26=Carbon!$B10,'Crop 1'!$V$26,0)+IF('Crop 1'!$C$27=Carbon!$B10,'Crop 1'!$V$27,0)+IF('Crop 1'!$C$28=Carbon!$B10,'Crop 1'!$V$28,0)+IF('Crop 1'!$C$29=Carbon!$B10,'Crop 1'!$V$29,0)+IF('Crop 1'!$C$40=Carbon!$B10,'Crop 1'!$V$40,0)+IF('Crop 1'!$C$41=Carbon!$B10,'Crop 1'!$V$41,0)+IF('Crop 1'!$C$42=Carbon!$B10,'Crop 1'!$V$42,0))*$AL11*VLOOKUP(VLOOKUP(B10,Defaults!$T$4:$W$13,4,FALSE),Carbon!$AH$4:$AI$10,2,FALSE),2)","v":0},{"$f":"M10*Inputs!$D$13","v":0},{"$f":"ROUND((IF('Crop 2'!$C$24=Carbon!$B10,'Crop 2'!$V$24,0)+IF('Crop 2'!$C$25=Carbon!$B10,'Crop 2'!$V$25,0)+IF('Crop 2'!$C$26=Carbon!$B10,'Crop 2'!$V$26,0)+IF('Crop 2'!$C$27=Carbon!$B10,'Crop 2'!$V$27,0)+IF('Crop 2'!$C$28=Carbon!$B10,'Crop 2'!$V$28,0)+IF('Crop 2'!$C$29=Carbon!$B10,'Crop 2'!$V$29,0)+IF('Crop 2'!$C$40=Carbon!$B10,'Crop 2'!$V$40,0)+IF('Crop 2'!$C$41=Carbon!$B10,'Crop 2'!$V$41,0)+IF('Crop 2'!$C$42=Carbon!$B10,'Crop 2'!$V$42,0))*$AL11*VLOOKUP(VLOOKUP(B10,Defaults!$T$4:$W$13,4,FALSE),Carbon!$AH$4:$AI$10,2,FALSE),2)","v":0},{"$f":"O10*Inputs!$D$15","v":0},{"$f":"ROUND((IF('Crop 3'!$C$24=Carbon!$B10,'Crop 3'!$V$24,0)+IF('Crop 3'!$C$25=Carbon!$B10,'Crop 3'!$V$25,0)+IF('Crop 3'!$C$26=Carbon!$B10,'Crop 3'!$V$26,0)+IF('Crop 3'!$C$27=Carbon!$B10,'Crop 3'!$V$27,0)+IF('Crop 3'!$C$28=Carbon!$B10,'Crop 3'!$V$28,0)+IF('Crop 3'!$C$29=Carbon!$B10,'Crop 3'!$V$29,0)+IF('Crop 3'!$C$40=Carbon!$B10,'Crop 3'!$V$40,0)+IF('Crop 3'!$C$41=Carbon!$B10,'Crop 3'!$V$41,0)+IF('Crop 3'!$C$42=Carbon!$B10,'Crop 3'!$V$42,0))*$AL11*VLOOKUP(VLOOKUP(B10,Defaults!$T$4:$W$13,4,FALSE),Carbon!$AH$4:$AI$10,2,FALSE),2)","v":0},{"$f":"Q10*Inputs!$D$17","v":0},{"$f":"ROUND(T10/Inputs!D$19,2)","v":0},0,null,null,0,0,0,0,0,0,{"$f":"ROUND(AD10/Inputs!D$19,2)","v":0},0,null,null,null,{"$f":"Defaults!Q21","v":"ton"},2000,null,{"$f":"+Defaults!T7","v":"Triple Superphosphate [0-45-0]"},0.30367842056147848]
[null,{"$f":"Defaults!T9","v":"Sodium Borate (15% Boron)"},{"$f":"ROUND((IF('Crop 1'!$C$24=Carbon!$B11,'Crop 1'!$L$24,0)+IF('Crop 1'!$C$25=Carbon!$B11,'Crop 1'!$L$25,0)+IF('Crop 1'!$C$26=Carbon!$B11,'Crop 1'!$L$26,0)+IF('Crop 1'!$C$27=Carbon!$B11,'Crop 1'!$L$27,0)+IF('Crop 1'!$C$28=Carbon!$B11,'Crop 1'!$L$28,0)+IF('Crop 1'!$C$29=Carbon!$B11,'Crop 1'!$L$29,0)+IF('Crop 1'!$C$40=Carbon!$B11,'Crop 1'!$L$40,0)+IF('Crop 1'!$C$41=Carbon!$B11,'Crop 1'!$L$41,0)+IF('Crop 1'!$C$42=Carbon!$B11,'Crop 1'!$L$42,0))*$AL12*VLOOKUP(VLOOKUP(B11,Defaults!$T$4:$W$13,4,FALSE),Carbon!$AH$4:$AI$10,2,FALSE),2)","v":2.11},{"$f":"C11*Inputs!$D$13","v":633},{"$f":"ROUND((IF('Crop 2'!$C$24=Carbon!$B11,'Crop 2'!$L$24,0)+IF('Crop 2'!$C$25=Carbon!$B11,'Crop 2'!$L$25,0)+IF('Crop 2'!$C$26=Carbon!$B11,'Crop 2'!$L$26,0)+IF('Crop 2'!$C$27=Carbon!$B11,'Crop 2'!$L$27,0)+IF('Crop 2'!$C$28=Carbon!$B11,'Crop 2'!$L$28,0)+IF('Crop 2'!$C$29=Carbon!$B11,'Crop 2'!$L$29,0)+IF('Crop 2'!$C$40=Carbon!$B11,'Crop 2'!$L$40,0)+IF('Crop 2'!$C$41=Carbon!$B11,'Crop 2'!$L$41,0)+IF('Crop 2'!$C$42=Carbon!$B11,'Crop 2'!$L$42,0))*$AL12*VLOOKUP(VLOOKUP(B11,Defaults!$T$4:$W$13,4,FALSE),Carbon!$AH$4:$AI$10,2,FALSE),2)","v":0},{"$f":"E11*Inputs!$D$15","v":0},{"$f":"ROUND((IF('Crop 3'!$C$24=Carbon!$B11,'Crop 3'!$L$24,0)+IF('Crop 3'!$C$25=Carbon!$B11,'Crop 3'!$L$25,0)+IF('Crop 3'!$C$26=Carbon!$B11,'Crop 3'!$L$26,0)+IF('Crop 3'!$C$27=Carbon!$B11,'Crop 3'!$L$27,0)+IF('Crop 3'!$C$28=Carbon!$B11,'Crop 3'!$L$28,0)+IF('Crop 3'!$C$29=Carbon!$B11,'Crop 3'!$L$29,0)+IF('Crop 3'!$C$40=Carbon!$B11,'Crop 3'!$L$40,0)+IF('Crop 3'!$C$41=Carbon!$B11,'Crop 3'!$L$41,0)+IF('Crop 3'!$C$42=Carbon!$B11,'Crop 3'!$L$42,0))*$AL12*VLOOKUP(VLOOKUP(B11,Defaults!$T$4:$W$13,4,FALSE),Carbon!$AH$4:$AI$10,2,FALSE),2)","v":0},{"$f":"G11*Inputs!$D$17","v":0},{"$f":"ROUND(J11/Inputs!D$19,2)","v":1.06},633,null,null,{"$f":"ROUND((IF('Crop 1'!$C$24=Carbon!$B11,'Crop 1'!$V$24,0)+IF('Crop 1'!$C$25=Carbon!$B11,'Crop 1'!$V$25,0)+IF('Crop 1'!$C$26=Carbon!$B11,'Crop 1'!$V$26,0)+IF('Crop 1'!$C$27=Carbon!$B11,'Crop 1'!$V$27,0)+IF('Crop 1'!$C$28=Carbon!$B11,'Crop 1'!$V$28,0)+IF('Crop 1'!$C$29=Carbon!$B11,'Crop 1'!$V$29,0)+IF('Crop 1'!$C$40=Carbon!$B11,'Crop 1'!$V$40,0)+IF('Crop 1'!$C$41=Carbon!$B11,'Crop 1'!$V$41,0)+IF('Crop 1'!$C$42=Carbon!$B11,'Crop 1'!$V$42,0))*$AL12*VLOOKUP(VLOOKUP(B11,Defaults!$T$4:$W$13,4,FALSE),Carbon!$AH$4:$AI$10,2,FALSE),2)","v":2.0699999999999998},{"$f":"M11*Inputs!$D$13","v":621},{"$f":"ROUND((IF('Crop 2'!$C$24=Carbon!$B11,'Crop 2'!$V$24,0)+IF('Crop 2'!$C$25=Carbon!$B11,'Crop 2'!$V$25,0)+IF('Crop 2'!$C$26=Carbon!$B11,'Crop 2'!$V$26,0)+IF('Crop 2'!$C$27=Carbon!$B11,'Crop 2'!$V$27,0)+IF('Crop 2'!$C$28=Carbon!$B11,'Crop 2'!$V$28,0)+IF('Crop 2'!$C$29=Carbon!$B11,'Crop 2'!$V$29,0)+IF('Crop 2'!$C$40=Carbon!$B11,'Crop 2'!$V$40,0)+IF('Crop 2'!$C$41=Carbon!$B11,'Crop 2'!$V$41,0)+IF('Crop 2'!$C$42=Carbon!$B11,'Crop 2'!$V$42,0))*$AL12*VLOOKUP(VLOOKUP(B11,Defaults!$T$4:$W$13,4,FALSE),Carbon!$AH$4:$AI$10,2,FALSE),2)","v":0},{"$f":"O11*Inputs!$D$15","v":0},{"$f":"ROUND((IF('Crop 3'!$C$24=Carbon!$B11,'Crop 3'!$V$24,0)+IF('Crop 3'!$C$25=Carbon!$B11,'Crop 3'!$V$25,0)+IF('Crop 3'!$C$26=Carbon!$B11,'Crop 3'!$V$26,0)+IF('Crop 3'!$C$27=Carbon!$B11,'Crop 3'!$V$27,0)+IF('Crop 3'!$C$28=Carbon!$B11,'Crop 3'!$V$28,0)+IF('Crop 3'!$C$29=Carbon!$B11,'Crop 3'!$V$29,0)+IF('Crop 3'!$C$40=Carbon!$B11,'Crop 3'!$V$40,0)+IF('Crop 3'!$C$41=Carbon!$B11,'Crop 3'!$V$41,0)+IF('Crop 3'!$C$42=Carbon!$B11,'Crop 3'!$V$42,0))*$AL12*VLOOKUP(VLOOKUP(B11,Defaults!$T$4:$W$13,4,FALSE),Carbon!$AH$4:$AI$10,2,FALSE),2)","v":0},{"$f":"Q11*Inputs!$D$17","v":0},{"$f":"ROUND(T11/Inputs!D$19,2)","v":1.04},621,null,null,-4.0000000000000036E-2,-12,0,0,0,0,{"$f":"ROUND(AD11/Inputs!D$19,2)","v":-0.02},-12,null,null,null,null,null,null,{"$f":"+Defaults!T8","v":"Zinc Sulfate"},0.63244783378866543]
[null,{"$f":"Defaults!T10","v":"Poultry Litter [3-3-3]"},{"$f":"ROUND((IF('Crop 1'!$C$24=Carbon!$B12,'Crop 1'!$L$24,0)+IF('Crop 1'!$C$25=Carbon!$B12,'Crop 1'!$L$25,0)+IF('Crop 1'!$C$26=Carbon!$B12,'Crop 1'!$L$26,0)+IF('Crop 1'!$C$27=Carbon!$B12,'Crop 1'!$L$27,0)+IF('Crop 1'!$C$28=Carbon!$B12,'Crop 1'!$L$28,0)+IF('Crop 1'!$C$29=Carbon!$B12,'Crop 1'!$L$29,0)+IF('Crop 1'!$C$40=Carbon!$B12,'Crop 1'!$L$40,0)+IF('Crop 1'!$C$41=Carbon!$B12,'Crop 1'!$L$41,0)+IF('Crop 1'!$C$42=Carbon!$B12,'Crop 1'!$L$42,0))*$AL13*VLOOKUP(VLOOKUP(B12,Defaults!$T$4:$W$13,4,FALSE),Carbon!$AH$4:$AI$10,2,FALSE),2)","v":0},{"$f":"C12*Inputs!$D$13","v":0},{"$f":"ROUND((IF('Crop 2'!$C$24=Carbon!$B12,'Crop 2'!$L$24,0)+IF('Crop 2'!$C$25=Carbon!$B12,'Crop 2'!$L$25,0)+IF('Crop 2'!$C$26=Carbon!$B12,'Crop 2'!$L$26,0)+IF('Crop 2'!$C$27=Carbon!$B12,'Crop 2'!$L$27,0)+IF('Crop 2'!$C$28=Carbon!$B12,'Crop 2'!$L$28,0)+IF('Crop 2'!$C$29=Carbon!$B12,'Crop 2'!$L$29,0)+IF('Crop 2'!$C$40=Carbon!$B12,'Crop 2'!$L$40,0)+IF('Crop 2'!$C$41=Carbon!$B12,'Crop 2'!$L$41,0)+IF('Crop 2'!$C$42=Carbon!$B12,'Crop 2'!$L$42,0))*$AL13*VLOOKUP(VLOOKUP(B12,Defaults!$T$4:$W$13,4,FALSE),Carbon!$AH$4:$AI$10,2,FALSE),2)","v":0},{"$f":"E12*Inputs!$D$15","v":0},{"$f":"ROUND((IF('Crop 3'!$C$24=Carbon!$B12,'Crop 3'!$L$24,0)+IF('Crop 3'!$C$25=Carbon!$B12,'Crop 3'!$L$25,0)+IF('Crop 3'!$C$26=Carbon!$B12,'Crop 3'!$L$26,0)+IF('Crop 3'!$C$27=Carbon!$B12,'Crop 3'!$L$27,0)+IF('Crop 3'!$C$28=Carbon!$B12,'Crop 3'!$L$28,0)+IF('Crop 3'!$C$29=Carbon!$B12,'Crop 3'!$L$29,0)+IF('Crop 3'!$C$40=Carbon!$B12,'Crop 3'!$L$40,0)+IF('Crop 3'!$C$41=Carbon!$B12,'Crop 3'!$L$41,0)+IF('Crop 3'!$C$42=Carbon!$B12,'Crop 3'!$L$42,0))*$AL13*VLOOKUP(VLOOKUP(B12,Defaults!$T$4:$W$13,4,FALSE),Carbon!$AH$4:$AI$10,2,FALSE),2)","v":514.65},{"$f":"G12*Inputs!$D$17","v":51465},{"$f":"ROUND(J12/Inputs!D$19,2)","v":85.78},51465,null,null,{"$f":"ROUND((IF('Crop 1'!$C$24=Carbon!$B12,'Crop 1'!$V$24,0)+IF('Crop 1'!$C$25=Carbon!$B12,'Crop 1'!$V$25,0)+IF('Crop 1'!$C$26=Carbon!$B12,'Crop 1'!$V$26,0)+IF('Crop 1'!$C$27=Carbon!$B12,'Crop 1'!$V$27,0)+IF('Crop 1'!$C$28=Carbon!$B12,'Crop 1'!$V$28,0)+IF('Crop 1'!$C$29=Carbon!$B12,'Crop 1'!$V$29,0)+IF('Crop 1'!$C$40=Carbon!$B12,'Crop 1'!$V$40,0)+IF('Crop 1'!$C$41=Carbon!$B12,'Crop 1'!$V$41,0)+IF('Crop 1'!$C$42=Carbon!$B12,'Crop 1'!$V$42,0))*$AL13*VLOOKUP(VLOOKUP(B12,Defaults!$T$4:$W$13,4,FALSE),Carbon!$AH$4:$AI$10,2,FALSE),2)","v":0},{"$f":"M12*Inputs!$D$13","v":0},{"$f":"ROUND((IF('Crop 2'!$C$24=Carbon!$B12,'Crop 2'!$V$24,0)+IF('Crop 2'!$C$25=Carbon!$B12,'Crop 2'!$V$25,0)+IF('Crop 2'!$C$26=Carbon!$B12,'Crop 2'!$V$26,0)+IF('Crop 2'!$C$27=Carbon!$B12,'Crop 2'!$V$27,0)+IF('Crop 2'!$C$28=Carbon!$B12,'Crop 2'!$V$28,0)+IF('Crop 2'!$C$29=Carbon!$B12,'Crop 2'!$V$29,0)+IF('Crop 2'!$C$40=Carbon!$B12,'Crop 2'!$V$40,0)+IF('Crop 2'!$C$41=Carbon!$B12,'Crop 2'!$V$41,0)+IF('Crop 2'!$C$42=Carbon!$B12,'Crop 2'!$V$42,0))*$AL13*VLOOKUP(VLOOKUP(B12,Defaults!$T$4:$W$13,4,FALSE),Carbon!$AH$4:$AI$10,2,FALSE),2)","v":0},{"$f":"O12*Inputs!$D$15","v":0},{"$f":"ROUND((IF('Crop 3'!$C$24=Carbon!$B12,'Crop 3'!$V$24,0)+IF('Crop 3'!$C$25=Carbon!$B12,'Crop 3'!$V$25,0)+IF('Crop 3'!$C$26=Carbon!$B12,'Crop 3'!$V$26,0)+IF('Crop 3'!$C$27=Carbon!$B12,'Crop 3'!$V$27,0)+IF('Crop 3'!$C$28=Carbon!$B12,'Crop 3'!$V$28,0)+IF('Crop 3'!$C$29=Carbon!$B12,'Crop 3'!$V$29,0)+IF('Crop 3'!$C$40=Carbon!$B12,'Crop 3'!$V$40,0)+IF('Crop 3'!$C$41=Carbon!$B12,'Crop 3'!$V$41,0)+IF('Crop 3'!$C$42=Carbon!$B12,'Crop 3'!$V$42,0))*$AL13*VLOOKUP(VLOOKUP(B12,Defaults!$T$4:$W$13,4,FALSE),Carbon!$AH$4:$AI$10,2,FALSE),2)","v":503.12},{"$f":"Q12*Inputs!$D$17","v":50312},{"$f":"ROUND(T12/Inputs!D$19,2)","v":83.85},50312,null,null,0,0,0,0,-11.529999999999973,-1153,{"$f":"ROUND(AD12/Inputs!D$19,2)","v":-1.92},-1153,null,null,null,"unit","ton",null,{"$f":"+Defaults!T9","v":"Sodium Borate (15% Boron)"},0.30200738514172093]
[null,{"$f":"Defaults!T11","v":"Lime"},{"$f":"ROUND((IF('Crop 1'!$C$24=Carbon!$B13,'Crop 1'!$L$24,0)+IF('Crop 1'!$C$25=Carbon!$B13,'Crop 1'!$L$25,0)+IF('Crop 1'!$C$26=Carbon!$B13,'Crop 1'!$L$26,0)+IF('Crop 1'!$C$27=Carbon!$B13,'Crop 1'!$L$27,0)+IF('Crop 1'!$C$28=Carbon!$B13,'Crop 1'!$L$28,0)+IF('Crop 1'!$C$29=Carbon!$B13,'Crop 1'!$L$29,0)+IF('Crop 1'!$C$40=Carbon!$B13,'Crop 1'!$L$40,0)+IF('Crop 1'!$C$41=Carbon!$B13,'Crop 1'!$L$41,0)+IF('Crop 1'!$C$42=Carbon!$B13,'Crop 1'!$L$42,0))*$AL14*VLOOKUP(VLOOKUP(B13,Defaults!$T$4:$W$13,4,FALSE),Carbon!$AH$4:$AI$10,2,FALSE),2)","v":0},{"$f":"C13*Inputs!$D$13","v":0},{"$f":"ROUND((IF('Crop 2'!$C$24=Carbon!$B13,'Crop 2'!$L$24,0)+IF('Crop 2'!$C$25=Carbon!$B13,'Crop 2'!$L$25,0)+IF('Crop 2'!$C$26=Carbon!$B13,'Crop 2'!$L$26,0)+IF('Crop 2'!$C$27=Carbon!$B13,'Crop 2'!$L$27,0)+IF('Crop 2'!$C$28=Carbon!$B13,'Crop 2'!$L$28,0)+IF('Crop 2'!$C$29=Carbon!$B13,'Crop 2'!$L$29,0)+IF('Crop 2'!$C$40=Carbon!$B13,'Crop 2'!$L$40,0)+IF('Crop 2'!$C$41=Carbon!$B13,'Crop 2'!$L$41,0)+IF('Crop 2'!$C$42=Carbon!$B13,'Crop 2'!$L$42,0))*$AL14*VLOOKUP(VLOOKUP(B13,Defaults!$T$4:$W$13,4,FALSE),Carbon!$AH$4:$AI$10,2,FALSE),2)","v":0},{"$f":"E13*Inputs!$D$15","v":0},{"$f":"ROUND((IF('Crop 3'!$C$24=Carbon!$B13,'Crop 3'!$L$24,0)+IF('Crop 3'!$C$25=Carbon!$B13,'Crop 3'!$L$25,0)+IF('Crop 3'!$C$26=Carbon!$B13,'Crop 3'!$L$26,0)+IF('Crop 3'!$C$27=Carbon!$B13,'Crop 3'!$L$27,0)+IF('Crop 3'!$C$28=Carbon!$B13,'Crop 3'!$L$28,0)+IF('Crop 3'!$C$29=Carbon!$B13,'Crop 3'!$L$29,0)+IF('Crop 3'!$C$40=Carbon!$B13,'Crop 3'!$L$40,0)+IF('Crop 3'!$C$41=Carbon!$B13,'Crop 3'!$L$41,0)+IF('Crop 3'!$C$42=Carbon!$B13,'Crop 3'!$L$42,0))*$AL14*VLOOKUP(VLOOKUP(B13,Defaults!$T$4:$W$13,4,FALSE),Carbon!$AH$4:$AI$10,2,FALSE),2)","v":0},{"$f":"G13*Inputs!$D$17","v":0},{"$f":"ROUND(J13/Inputs!D$19,2)","v":0},{"$f":"ROUND(D13+F13+H13,2)","v":0},null,null,{"$f":"ROUND((IF('Crop 1'!$C$24=Carbon!$B13,'Crop 1'!$V$24,0)+IF('Crop 1'!$C$25=Carbon!$B13,'Crop 1'!$V$25,0)+IF('Crop 1'!$C$26=Carbon!$B13,'Crop 1'!$V$26,0)+IF('Crop 1'!$C$27=Carbon!$B13,'Crop 1'!$V$27,0)+IF('Crop 1'!$C$28=Carbon!$B13,'Crop 1'!$V$28,0)+IF('Crop 1'!$C$29=Carbon!$B13,'Crop 1'!$V$29,0)+IF('Crop 1'!$C$40=Carbon!$B13,'Crop 1'!$V$40,0)+IF('Crop 1'!$C$41=Carbon!$B13,'Crop 1'!$V$41,0)+IF('Crop 1'!$C$42=Carbon!$B13,'Crop 1'!$V$42,0))*$AL14*VLOOKUP(VLOOKUP(B13,Defaults!$T$4:$W$13,4,FALSE),Carbon!$AH$4:$AI$10,2,FALSE),2)","v":0},{"$f":"M13*Inputs!$D$13","v":0},{"$f":"ROUND((IF('Crop 2'!$C$24=Carbon!$B13,'Crop 2'!$V$24,0)+IF('Crop 2'!$C$25=Carbon!$B13,'Crop 2'!$V$25,0)+IF('Crop 2'!$C$26=Carbon!$B13,'Crop 2'!$V$26,0)+IF('Crop 2'!$C$27=Carbon!$B13,'Crop 2'!$V$27,0)+IF('Crop 2'!$C$28=Carbon!$B13,'Crop 2'!$V$28,0)+IF('Crop 2'!$C$29=Carbon!$B13,'Crop 2'!$V$29,0)+IF('Crop 2'!$C$40=Carbon!$B13,'Crop 2'!$V$40,0)+IF('Crop 2'!$C$41=Carbon!$B13,'Crop 2'!$V$41,0)+IF('Crop 2'!$C$42=Carbon!$B13,'Crop 2'!$V$42,0))*$AL14*VLOOKUP(VLOOKUP(B13,Defaults!$T$4:$W$13,4,FALSE),Carbon!$AH$4:$AI$10,2,FALSE),2)","v":0},{"$f":"O13*Inputs!$D$15","v":0},{"$f":"ROUND((IF('Crop 3'!$C$24=Carbon!$B13,'Crop 3'!$V$24,0)+IF('Crop 3'!$C$25=Carbon!$B13,'Crop 3'!$V$25,0)+IF('Crop 3'!$C$26=Carbon!$B13,'Crop 3'!$V$26,0)+IF('Crop 3'!$C$27=Carbon!$B13,'Crop 3'!$V$27,0)+IF('Crop 3'!$C$28=Carbon!$B13,'Crop 3'!$V$28,0)+IF('Crop 3'!$C$29=Carbon!$B13,'Crop 3'!$V$29,0)+IF('Crop 3'!$C$40=Carbon!$B13,'Crop 3'!$V$40,0)+IF('Crop 3'!$C$41=Carbon!$B13,'Crop 3'!$V$41,0)+IF('Crop 3'!$C$42=Carbon!$B13,'Crop 3'!$V$42,0))*$AL14*VLOOKUP(VLOOKUP(B13,Defaults!$T$4:$W$13,4,FALSE),Carbon!$AH$4:$AI$10,2,FALSE),2)","v":0},{"$f":"Q13*Inputs!$D$17","v":0},{"$f":"ROUND(T13/Inputs!D$19,2)","v":0},0,null,null,null,null,null,null,null,null,null,null,null,null,null,"lb",{"$f":"1/AI10","v":5.0000000000000001E-4},null,{"$f":"+Defaults!T10","v":"Poultry Litter [3-3-3]"},0.25732646103896106]
[null,{"$f":"Defaults!T12","v":"Amm. Sulfate [21-0-0](24% Sulfate)"},{"$f":"ROUND((IF('Crop 1'!$C$24=Carbon!$B14,'Crop 1'!$L$24,0)+IF('Crop 1'!$C$25=Carbon!$B14,'Crop 1'!$L$25,0)+IF('Crop 1'!$C$26=Carbon!$B14,'Crop 1'!$L$26,0)+IF('Crop 1'!$C$27=Carbon!$B14,'Crop 1'!$L$27,0)+IF('Crop 1'!$C$28=Carbon!$B14,'Crop 1'!$L$28,0)+IF('Crop 1'!$C$29=Carbon!$B14,'Crop 1'!$L$29,0)+IF('Crop 1'!$C$40=Carbon!$B14,'Crop 1'!$L$40,0)+IF('Crop 1'!$C$41=Carbon!$B14,'Crop 1'!$L$41,0)+IF('Crop 1'!$C$42=Carbon!$B14,'Crop 1'!$L$42,0))*$AL15*VLOOKUP(VLOOKUP(B14,Defaults!$T$4:$W$13,4,FALSE),Carbon!$AH$4:$AI$10,2,FALSE),2)","v":65.290000000000006},{"$f":"C14*Inputs!$D$13","v":19587.000000000004},{"$f":"ROUND((IF('Crop 2'!$C$24=Carbon!$B14,'Crop 2'!$L$24,0)+IF('Crop 2'!$C$25=Carbon!$B14,'Crop 2'!$L$25,0)+IF('Crop 2'!$C$26=Carbon!$B14,'Crop 2'!$L$26,0)+IF('Crop 2'!$C$27=Carbon!$B14,'Crop 2'!$L$27,0)+IF('Crop 2'!$C$28=Carbon!$B14,'Crop 2'!$L$28,0)+IF('Crop 2'!$C$29=Carbon!$B14,'Crop 2'!$L$29,0)+IF('Crop 2'!$C$40=Carbon!$B14,'Crop 2'!$L$40,0)+IF('Crop 2'!$C$41=Carbon!$B14,'Crop 2'!$L$41,0)+IF('Crop 2'!$C$42=Carbon!$B14,'Crop 2'!$L$42,0))*$AL15*VLOOKUP(VLOOKUP(B14,Defaults!$T$4:$W$13,4,FALSE),Carbon!$AH$4:$AI$10,2,FALSE),2)","v":0},{"$f":"E14*Inputs!$D$15","v":0},{"$f":"ROUND((IF('Crop 3'!$C$24=Carbon!$B14,'Crop 3'!$L$24,0)+IF('Crop 3'!$C$25=Carbon!$B14,'Crop 3'!$L$25,0)+IF('Crop 3'!$C$26=Carbon!$B14,'Crop 3'!$L$26,0)+IF('Crop 3'!$C$27=Carbon!$B14,'Crop 3'!$L$27,0)+IF('Crop 3'!$C$28=Carbon!$B14,'Crop 3'!$L$28,0)+IF('Crop 3'!$C$29=Carbon!$B14,'Crop 3'!$L$29,0)+IF('Crop 3'!$C$40=Carbon!$B14,'Crop 3'!$L$40,0)+IF('Crop 3'!$C$41=Carbon!$B14,'Crop 3'!$L$41,0)+IF('Crop 3'!$C$42=Carbon!$B14,'Crop 3'!$L$42,0))*$AL15*VLOOKUP(VLOOKUP(B14,Defaults!$T$4:$W$13,4,FALSE),Carbon!$AH$4:$AI$10,2,FALSE),2)","v":0},{"$f":"G14*Inputs!$D$17","v":0},{"$f":"ROUND(J14/Inputs!D$19,2)","v":32.65},19587,null,null,{"$f":"ROUND((IF('Crop 1'!$C$24=Carbon!$B14,'Crop 1'!$V$24,0)+IF('Crop 1'!$C$25=Carbon!$B14,'Crop 1'!$V$25,0)+IF('Crop 1'!$C$26=Carbon!$B14,'Crop 1'!$V$26,0)+IF('Crop 1'!$C$27=Carbon!$B14,'Crop 1'!$V$27,0)+IF('Crop 1'!$C$28=Carbon!$B14,'Crop 1'!$V$28,0)+IF('Crop 1'!$C$29=Carbon!$B14,'Crop 1'!$V$29,0)+IF('Crop 1'!$C$40=Carbon!$B14,'Crop 1'!$V$40,0)+IF('Crop 1'!$C$41=Carbon!$B14,'Crop 1'!$V$41,0)+IF('Crop 1'!$C$42=Carbon!$B14,'Crop 1'!$V$42,0))*$AL15*VLOOKUP(VLOOKUP(B14,Defaults!$T$4:$W$13,4,FALSE),Carbon!$AH$4:$AI$10,2,FALSE),2)","v":63.83},{"$f":"M14*Inputs!$D$13","v":19149},{"$f":"ROUND((IF('Crop 2'!$C$24=Carbon!$B14,'Crop 2'!$V$24,0)+IF('Crop 2'!$C$25=Carbon!$B14,'Crop 2'!$V$25,0)+IF('Crop 2'!$C$26=Carbon!$B14,'Crop 2'!$V$26,0)+IF('Crop 2'!$C$27=Carbon!$B14,'Crop 2'!$V$27,0)+IF('Crop 2'!$C$28=Carbon!$B14,'Crop 2'!$V$28,0)+IF('Crop 2'!$C$29=Carbon!$B14,'Crop 2'!$V$29,0)+IF('Crop 2'!$C$40=Carbon!$B14,'Crop 2'!$V$40,0)+IF('Crop 2'!$C$41=Carbon!$B14,'Crop 2'!$V$41,0)+IF('Crop 2'!$C$42=Carbon!$B14,'Crop 2'!$V$42,0))*$AL15*VLOOKUP(VLOOKUP(B14,Defaults!$T$4:$W$13,4,FALSE),Carbon!$AH$4:$AI$10,2,FALSE),2)","v":0},{"$f":"O14*Inputs!$D$15","v":0},{"$f":"ROUND((IF('Crop 3'!$C$24=Carbon!$B14,'Crop 3'!$V$24,0)+IF('Crop 3'!$C$25=Carbon!$B14,'Crop 3'!$V$25,0)+IF('Crop 3'!$C$26=Carbon!$B14,'Crop 3'!$V$26,0)+IF('Crop 3'!$C$27=Carbon!$B14,'Crop 3'!$V$27,0)+IF('Crop 3'!$C$28=Carbon!$B14,'Crop 3'!$V$28,0)+IF('Crop 3'!$C$29=Carbon!$B14,'Crop 3'!$V$29,0)+IF('Crop 3'!$C$40=Carbon!$B14,'Crop 3'!$V$40,0)+IF('Crop 3'!$C$41=Carbon!$B14,'Crop 3'!$V$41,0)+IF('Crop 3'!$C$42=Carbon!$B14,'Crop 3'!$V$42,0))*$AL15*VLOOKUP(VLOOKUP(B14,Defaults!$T$4:$W$13,4,FALSE),Carbon!$AH$4:$AI$10,2,FALSE),2)","v":0},{"$f":"Q14*Inputs!$D$17","v":0},{"$f":"ROUND(T14/Inputs!D$19,2)","v":31.92},19149,null,null,-1.460000000000008,-438.00000000000364,0,0,0,0,{"$f":"ROUND(AD14/Inputs!D$19,2)","v":-0.73},-438,null,null,null,null,null,null,{"$f":"+Defaults!T11","v":"Lime"},0.15584388221783427]
[null,{"$f":"Defaults!T13","v":"Amm. Nitrate [34-0-0]"},{"$f":"ROUND((IF('Crop 1'!$C$24=Carbon!$B15,'Crop 1'!$L$24,0)+IF('Crop 1'!$C$25=Carbon!$B15,'Crop 1'!$L$25,0)+IF('Crop 1'!$C$26=Carbon!$B15,'Crop 1'!$L$26,0)+IF('Crop 1'!$C$27=Carbon!$B15,'Crop 1'!$L$27,0)+IF('Crop 1'!$C$28=Carbon!$B15,'Crop 1'!$L$28,0)+IF('Crop 1'!$C$29=Carbon!$B15,'Crop 1'!$L$29,0)+IF('Crop 1'!$C$40=Carbon!$B15,'Crop 1'!$L$40,0)+IF('Crop 1'!$C$41=Carbon!$B15,'Crop 1'!$L$41,0)+IF('Crop 1'!$C$42=Carbon!$B15,'Crop 1'!$L$42,0))*$AL16*VLOOKUP(VLOOKUP(B15,Defaults!$T$4:$W$13,4,FALSE),Carbon!$AH$4:$AI$10,2,FALSE),2)","v":0},{"$f":"C15*Inputs!$D$13","v":0},{"$f":"ROUND((IF('Crop 2'!$C$24=Carbon!$B15,'Crop 2'!$L$24,0)+IF('Crop 2'!$C$25=Carbon!$B15,'Crop 2'!$L$25,0)+IF('Crop 2'!$C$26=Carbon!$B15,'Crop 2'!$L$26,0)+IF('Crop 2'!$C$27=Carbon!$B15,'Crop 2'!$L$27,0)+IF('Crop 2'!$C$28=Carbon!$B15,'Crop 2'!$L$28,0)+IF('Crop 2'!$C$29=Carbon!$B15,'Crop 2'!$L$29,0)+IF('Crop 2'!$C$40=Carbon!$B15,'Crop 2'!$L$40,0)+IF('Crop 2'!$C$41=Carbon!$B15,'Crop 2'!$L$41,0)+IF('Crop 2'!$C$42=Carbon!$B15,'Crop 2'!$L$42,0))*$AL16*VLOOKUP(VLOOKUP(B15,Defaults!$T$4:$W$13,4,FALSE),Carbon!$AH$4:$AI$10,2,FALSE),2)","v":0},{"$f":"E15*Inputs!$D$15","v":0},{"$f":"ROUND((IF('Crop 3'!$C$24=Carbon!$B15,'Crop 3'!$L$24,0)+IF('Crop 3'!$C$25=Carbon!$B15,'Crop 3'!$L$25,0)+IF('Crop 3'!$C$26=Carbon!$B15,'Crop 3'!$L$26,0)+IF('Crop 3'!$C$27=Carbon!$B15,'Crop 3'!$L$27,0)+IF('Crop 3'!$C$28=Carbon!$B15,'Crop 3'!$L$28,0)+IF('Crop 3'!$C$29=Carbon!$B15,'Crop 3'!$L$29,0)+IF('Crop 3'!$C$40=Carbon!$B15,'Crop 3'!$L$40,0)+IF('Crop 3'!$C$41=Carbon!$B15,'Crop 3'!$L$41,0)+IF('Crop 3'!$C$42=Carbon!$B15,'Crop 3'!$L$42,0))*$AL16*VLOOKUP(VLOOKUP(B15,Defaults!$T$4:$W$13,4,FALSE),Carbon!$AH$4:$AI$10,2,FALSE),2)","v":0},{"$f":"G15*Inputs!$D$17","v":0},{"$f":"ROUND(J15/Inputs!D$19,2)","v":0},0,null,null,{"$f":"ROUND((IF('Crop 1'!$C$24=Carbon!$B15,'Crop 1'!$V$24,0)+IF('Crop 1'!$C$25=Carbon!$B15,'Crop 1'!$V$25,0)+IF('Crop 1'!$C$26=Carbon!$B15,'Crop 1'!$V$26,0)+IF('Crop 1'!$C$27=Carbon!$B15,'Crop 1'!$V$27,0)+IF('Crop 1'!$C$28=Carbon!$B15,'Crop 1'!$V$28,0)+IF('Crop 1'!$C$29=Carbon!$B15,'Crop 1'!$V$29,0)+IF('Crop 1'!$C$40=Carbon!$B15,'Crop 1'!$V$40,0)+IF('Crop 1'!$C$41=Carbon!$B15,'Crop 1'!$V$41,0)+IF('Crop 1'!$C$42=Carbon!$B15,'Crop 1'!$V$42,0))*$AL16*VLOOKUP(VLOOKUP(B15,Defaults!$T$4:$W$13,4,FALSE),Carbon!$AH$4:$AI$10,2,FALSE),2)","v":0},{"$f":"M15*Inputs!$D$13","v":0},{"$f":"ROUND((IF('Crop 2'!$C$24=Carbon!$B15,'Crop 2'!$V$24,0)+IF('Crop 2'!$C$25=Carbon!$B15,'Crop 2'!$V$25,0)+IF('Crop 2'!$C$26=Carbon!$B15,'Crop 2'!$V$26,0)+IF('Crop 2'!$C$27=Carbon!$B15,'Crop 2'!$V$27,0)+IF('Crop 2'!$C$28=Carbon!$B15,'Crop 2'!$V$28,0)+IF('Crop 2'!$C$29=Carbon!$B15,'Crop 2'!$V$29,0)+IF('Crop 2'!$C$40=Carbon!$B15,'Crop 2'!$V$40,0)+IF('Crop 2'!$C$41=Carbon!$B15,'Crop 2'!$V$41,0)+IF('Crop 2'!$C$42=Carbon!$B15,'Crop 2'!$V$42,0))*$AL16*VLOOKUP(VLOOKUP(B15,Defaults!$T$4:$W$13,4,FALSE),Carbon!$AH$4:$AI$10,2,FALSE),2)","v":0},{"$f":"O15*Inputs!$D$15","v":0},{"$f":"ROUND((IF('Crop 3'!$C$24=Carbon!$B15,'Crop 3'!$V$24,0)+IF('Crop 3'!$C$25=Carbon!$B15,'Crop 3'!$V$25,0)+IF('Crop 3'!$C$26=Carbon!$B15,'Crop 3'!$V$26,0)+IF('Crop 3'!$C$27=Carbon!$B15,'Crop 3'!$V$27,0)+IF('Crop 3'!$C$28=Carbon!$B15,'Crop 3'!$V$28,0)+IF('Crop 3'!$C$29=Carbon!$B15,'Crop 3'!$V$29,0)+IF('Crop 3'!$C$40=Carbon!$B15,'Crop 3'!$V$40,0)+IF('Crop 3'!$C$41=Carbon!$B15,'Crop 3'!$V$41,0)+IF('Crop 3'!$C$42=Carbon!$B15,'Crop 3'!$V$42,0))*$AL16*VLOOKUP(VLOOKUP(B15,Defaults!$T$4:$W$13,4,FALSE),Carbon!$AH$4:$AI$10,2,FALSE),2)","v":0},{"$f":"Q15*Inputs!$D$17","v":0},{"$f":"ROUND(T15/Inputs!D$19,2)","v":0},0,null,null,0,0,0,0,0,0,{"$f":"ROUND(AD15/Inputs!D$19,2)","v":0},0,null,null,null,null,null,null,{"$f":"+Defaults!T12","v":"Amm. Sulfate [21-0-0](24% Sulfate)"},0.52230605593782109]
[null,"Other Chemical Applications (lbs)",{"$f":"C17+C26+C28+C32+C34","v":29.739999999999995},{"$f":"C16*Inputs!$D$13","v":8921.9999999999982},{"$f":"E17+E26+E28+E32+E34","v":5.01},{"$f":"E16*Inputs!$D$15","v":1002},{"$f":"G17+G26+G28+G32+G34","v":0},{"$f":"G16*Inputs!$D$17","v":0},{"$f":"ROUND(J16/Inputs!D$19,2)","v":16.54},{"$f":"ROUND(D16+F16+H16,2)","v":9924},null,null,{"$f":"M17+M26+M28+M32+M34","v":23.17},{"$f":"M16*Inputs!$D$13","v":6951.0000000000009},{"$f":"O17+O26+O28+O32+O34","v":3.91},{"$f":"O16*Inputs!$D$15","v":782},{"$f":"Q17+Q26+Q28+Q32+Q34","v":0},{"$f":"Q16*Inputs!$D$17","v":0},{"$f":"ROUND(T16/Inputs!D$19,2)","v":12.89},{"$f":"ROUND(N16+P16+R16,2)","v":7733},null,null,{"$f":"M16-C16","v":-6.5699999999999932},-1970.9999999999973,-1.0999999999999996,-220,0,0,{"$f":"ROUND(AD16/Inputs!D$19,2)","v":-3.65},{"$f":"ROUND(X16+Z16+AB16,2)","v":-2191},null,null,null,null,null,null,{"$f":"+Defaults!T13","v":"Amm. Nitrate [34-0-0]"},1.3698950959448937]
[null,"Insecticide",{"$f":"ROUND(SUM(C18:C25),2)","v":14.12},{"$f":"C17*Inputs!$D$13","v":4236},{"$f":"ROUND(SUM(E18:E25),2)","v":3.53},{"$f":"E17*Inputs!$D$15","v":706},{"$f":"ROUND(SUM(G18:G25),2)","v":0},{"$f":"G17*Inputs!$D$17","v":0},{"$f":"ROUND(J17/Inputs!D$19,2)","v":8.24},4942,null,null,{"$f":"ROUND(SUM(M18:M25),2)","v":11},{"$f":"M17*Inputs!$D$13","v":3300},{"$f":"ROUND(SUM(O18:O25),2)","v":2.75},{"$f":"O17*Inputs!$D$15","v":550},{"$f":"ROUND(SUM(Q18:Q25),2)","v":0},{"$f":"Q17*Inputs!$D$17","v":0},{"$f":"ROUND(T17/Inputs!D$19,2)","v":6.42},3850,null,null,{"$f":"M17-C17","v":-3.1199999999999992},-936,-0.7799999999999998,-156,0,0,{"$f":"ROUND(AD17/Inputs!D$19,2)","v":-1.82},-1092,null,null,null,null,null,null,"  Aqua Ammonia [21-0-0]",0.50776587178655808,"not used because we don't have a knife rig"]
[null,{"$f":"Defaults!T22","v":"Centric"},{"$f":"ROUND((IF('Crop 1'!$C$34=Carbon!$B18,'Crop 1'!$L$34,0)+IF('Crop 1'!$C$35=Carbon!$B18,'Crop 1'!$L$35,0)+IF('Crop 1'!$C$36=Carbon!$B18,'Crop 1'!$L$36,0)+IF('Crop 1'!$C$37=Carbon!$B18,'Crop 1'!$L$37,0)+IF('Crop 1'!$C$38=Carbon!$B18,'Crop 1'!$L$38,0))*$AL$21*VLOOKUP(VLOOKUP(B18,Defaults!$T$22:$W$29,4,FALSE),Carbon!$AH$4:$AI$10,2,FALSE),2)","v":1.41},{"$f":"C18*Inputs!$D$13","v":423},{"$f":"ROUND((IF('Crop 2'!$C$34=Carbon!$B18,'Crop 2'!$L$34,0)+IF('Crop 2'!$C$35=Carbon!$B18,'Crop 2'!$L$35,0)+IF('Crop 2'!$C$36=Carbon!$B18,'Crop 2'!$L$36,0)+IF('Crop 2'!$C$37=Carbon!$B18,'Crop 2'!$L$37,0)+IF('Crop 2'!$C$38=Carbon!$B18,'Crop 2'!$L$38,0))*$AL$21*VLOOKUP(VLOOKUP(B18,Defaults!$T$22:$W$29,4,FALSE),Carbon!$AH$4:$AI$10,2,FALSE),2)","v":0},{"$f":"E18*Inputs!$D$15","v":0},{"$f":"ROUND((IF('Crop 3'!$C$34=Carbon!$B18,'Crop 3'!$L$34,0)+IF('Crop 3'!$C$35=Carbon!$B18,'Crop 3'!$L$35,0)+IF('Crop 3'!$C$36=Carbon!$B18,'Crop 3'!$L$36,0)+IF('Crop 3'!$C$37=Carbon!$B18,'Crop 3'!$L$37,0)+IF('Crop 3'!$C$38=Carbon!$B18,'Crop 3'!$L$38,0))*$AL$21*VLOOKUP(VLOOKUP(B18,Defaults!$T$22:$W$29,4,FALSE),Carbon!$AH$4:$AI$10,2,FALSE),2)","v":0},{"$f":"G18*Inputs!$D$17","v":0},{"$f":"ROUND(J18/Inputs!D$19,2)","v":0.71},423,null,null,{"$f":"ROUND((IF('Crop 1'!$C$34=Carbon!$B18,'Crop 1'!$V$34,0)+IF('Crop 1'!$C$35=Carbon!$B18,'Crop 1'!$V$35,0)+IF('Crop 1'!$C$36=Carbon!$B18,'Crop 1'!$V$36,0)+IF('Crop 1'!$C$37=Carbon!$B18,'Crop 1'!$V$37,0)+IF('Crop 1'!$C$38=Carbon!$B18,'Crop 1'!$V$38,0))*$AL$21*VLOOKUP(VLOOKUP(B18,Defaults!$T$22:$W$29,4,FALSE),Carbon!$AH$4:$AI$10,2,FALSE),2)","v":1.1000000000000001},{"$f":"M18*Inputs!$D$13","v":330},{"$f":"ROUND((IF('Crop 2'!$C$34=Carbon!$B18,'Crop 2'!$V$34,0)+IF('Crop 2'!$C$35=Carbon!$B18,'Crop 2'!$V$35,0)+IF('Crop 2'!$C$36=Carbon!$B18,'Crop 2'!$V$36,0)+IF('Crop 2'!$C$37=Carbon!$B18,'Crop 2'!$V$37,0)+IF('Crop 2'!$C$38=Carbon!$B18,'Crop 2'!$V$38,0))*$AL$21*VLOOKUP(VLOOKUP(B18,Defaults!$T$22:$W$29,4,FALSE),Carbon!$AH$4:$AI$10,2,FALSE),2)","v":0},{"$f":"O18*Inputs!$D$15","v":0},{"$f":"ROUND((IF('Crop 3'!$C$34=Carbon!$B18,'Crop 3'!$V$34,0)+IF('Crop 3'!$C$35=Carbon!$B18,'Crop 3'!$V$35,0)+IF('Crop 3'!$C$36=Carbon!$B18,'Crop 3'!$V$36,0)+IF('Crop 3'!$C$37=Carbon!$B18,'Crop 3'!$V$37,0)+IF('Crop 3'!$C$38=Carbon!$B18,'Crop 3'!$V$38,0))*$AL$21*VLOOKUP(VLOOKUP(B18,Defaults!$T$22:$W$29,4,FALSE),Carbon!$AH$4:$AI$10,2,FALSE),2)","v":0},{"$f":"Q18*Inputs!$D$17","v":0},{"$f":"ROUND(T18/Inputs!D$19,2)","v":0.55000000000000004},330,null,null,{"$f":"M18-C18","v":-0.30999999999999983},-93,0,0,0,0,{"$f":"ROUND(AD18/Inputs!D$19,2)","v":-0.16},-93]
[null,{"$f":"Defaults!T23","v":"Diamond"},{"$f":"ROUND((IF('Crop 1'!$C$34=Carbon!$B19,'Crop 1'!$L$34,0)+IF('Crop 1'!$C$35=Carbon!$B19,'Crop 1'!$L$35,0)+IF('Crop 1'!$C$36=Carbon!$B19,'Crop 1'!$L$36,0)+IF('Crop 1'!$C$37=Carbon!$B19,'Crop 1'!$L$37,0)+IF('Crop 1'!$C$38=Carbon!$B19,'Crop 1'!$L$38,0))*$AL$21*VLOOKUP(VLOOKUP(B19,Defaults!$T$22:$W$29,4,FALSE),Carbon!$AH$4:$AI$10,2,FALSE),2)","v":4.24},{"$f":"C19*Inputs!$D$13","v":1272},{"$f":"ROUND((IF('Crop 2'!$C$34=Carbon!$B19,'Crop 2'!$L$34,0)+IF('Crop 2'!$C$35=Carbon!$B19,'Crop 2'!$L$35,0)+IF('Crop 2'!$C$36=Carbon!$B19,'Crop 2'!$L$36,0)+IF('Crop 2'!$C$37=Carbon!$B19,'Crop 2'!$L$37,0)+IF('Crop 2'!$C$38=Carbon!$B19,'Crop 2'!$L$38,0))*$AL$21*VLOOKUP(VLOOKUP(B19,Defaults!$T$22:$W$29,4,FALSE),Carbon!$AH$4:$AI$10,2,FALSE),2)","v":0},{"$f":"E19*Inputs!$D$15","v":0},{"$f":"ROUND((IF('Crop 3'!$C$34=Carbon!$B19,'Crop 3'!$L$34,0)+IF('Crop 3'!$C$35=Carbon!$B19,'Crop 3'!$L$35,0)+IF('Crop 3'!$C$36=Carbon!$B19,'Crop 3'!$L$36,0)+IF('Crop 3'!$C$37=Carbon!$B19,'Crop 3'!$L$37,0)+IF('Crop 3'!$C$38=Carbon!$B19,'Crop 3'!$L$38,0))*$AL$21*VLOOKUP(VLOOKUP(B19,Defaults!$T$22:$W$29,4,FALSE),Carbon!$AH$4:$AI$10,2,FALSE),2)","v":0},{"$f":"G19*Inputs!$D$17","v":0},{"$f":"ROUND(J19/Inputs!D$19,2)","v":2.12},1272,null,null,{"$f":"ROUND((IF('Crop 1'!$C$34=Carbon!$B19,'Crop 1'!$V$34,0)+IF('Crop 1'!$C$35=Carbon!$B19,'Crop 1'!$V$35,0)+IF('Crop 1'!$C$36=Carbon!$B19,'Crop 1'!$V$36,0)+IF('Crop 1'!$C$37=Carbon!$B19,'Crop 1'!$V$37,0)+IF('Crop 1'!$C$38=Carbon!$B19,'Crop 1'!$V$38,0))*$AL$21*VLOOKUP(VLOOKUP(B19,Defaults!$T$22:$W$29,4,FALSE),Carbon!$AH$4:$AI$10,2,FALSE),2)","v":3.3},{"$f":"M19*Inputs!$D$13","v":990},{"$f":"ROUND((IF('Crop 2'!$C$34=Carbon!$B19,'Crop 2'!$V$34,0)+IF('Crop 2'!$C$35=Carbon!$B19,'Crop 2'!$V$35,0)+IF('Crop 2'!$C$36=Carbon!$B19,'Crop 2'!$V$36,0)+IF('Crop 2'!$C$37=Carbon!$B19,'Crop 2'!$V$37,0)+IF('Crop 2'!$C$38=Carbon!$B19,'Crop 2'!$V$38,0))*$AL$21*VLOOKUP(VLOOKUP(B19,Defaults!$T$22:$W$29,4,FALSE),Carbon!$AH$4:$AI$10,2,FALSE),2)","v":0},{"$f":"O19*Inputs!$D$15","v":0},{"$f":"ROUND((IF('Crop 3'!$C$34=Carbon!$B19,'Crop 3'!$V$34,0)+IF('Crop 3'!$C$35=Carbon!$B19,'Crop 3'!$V$35,0)+IF('Crop 3'!$C$36=Carbon!$B19,'Crop 3'!$V$36,0)+IF('Crop 3'!$C$37=Carbon!$B19,'Crop 3'!$V$37,0)+IF('Crop 3'!$C$38=Carbon!$B19,'Crop 3'!$V$38,0))*$AL$21*VLOOKUP(VLOOKUP(B19,Defaults!$T$22:$W$29,4,FALSE),Carbon!$AH$4:$AI$10,2,FALSE),2)","v":0},{"$f":"Q19*Inputs!$D$17","v":0},{"$f":"ROUND(T19/Inputs!D$19,2)","v":1.65},990,null,null,-0.94000000000000039,{"$f":"N19-D19","v":-282},{"$f":"O19-E19","v":0},{"$f":"P19-F19","v":0},{"$f":"Q19-G19","v":0},{"$f":"R19-H19","v":0},{"$f":"ROUND(AD19/Inputs!D$19,2)","v":-0.47},-282]
[null,{"$f":"Defaults!T24","v":"Transform"},{"$f":"ROUND((IF('Crop 1'!$C$34=Carbon!$B20,'Crop 1'!$L$34,0)+IF('Crop 1'!$C$35=Carbon!$B20,'Crop 1'!$L$35,0)+IF('Crop 1'!$C$36=Carbon!$B20,'Crop 1'!$L$36,0)+IF('Crop 1'!$C$37=Carbon!$B20,'Crop 1'!$L$37,0)+IF('Crop 1'!$C$38=Carbon!$B20,'Crop 1'!$L$38,0))*$AL$21*VLOOKUP(VLOOKUP(B20,Defaults!$T$22:$W$29,4,FALSE),Carbon!$AH$4:$AI$10,2,FALSE),2)","v":1.41},{"$f":"C20*Inputs!$D$13","v":423},{"$f":"ROUND((IF('Crop 2'!$C$34=Carbon!$B20,'Crop 2'!$L$34,0)+IF('Crop 2'!$C$35=Carbon!$B20,'Crop 2'!$L$35,0)+IF('Crop 2'!$C$36=Carbon!$B20,'Crop 2'!$L$36,0)+IF('Crop 2'!$C$37=Carbon!$B20,'Crop 2'!$L$37,0)+IF('Crop 2'!$C$38=Carbon!$B20,'Crop 2'!$L$38,0))*$AL$21*VLOOKUP(VLOOKUP(B20,Defaults!$T$22:$W$29,4,FALSE),Carbon!$AH$4:$AI$10,2,FALSE),2)","v":0},{"$f":"E20*Inputs!$D$15","v":0},{"$f":"ROUND((IF('Crop 3'!$C$34=Carbon!$B20,'Crop 3'!$L$34,0)+IF('Crop 3'!$C$35=Carbon!$B20,'Crop 3'!$L$35,0)+IF('Crop 3'!$C$36=Carbon!$B20,'Crop 3'!$L$36,0)+IF('Crop 3'!$C$37=Carbon!$B20,'Crop 3'!$L$37,0)+IF('Crop 3'!$C$38=Carbon!$B20,'Crop 3'!$L$38,0))*$AL$21*VLOOKUP(VLOOKUP(B20,Defaults!$T$22:$W$29,4,FALSE),Carbon!$AH$4:$AI$10,2,FALSE),2)","v":0},{"$f":"G20*Inputs!$D$17","v":0},{"$f":"ROUND(J20/Inputs!D$19,2)","v":0.71},423,null,null,{"$f":"ROUND((IF('Crop 1'!$C$34=Carbon!$B20,'Crop 1'!$V$34,0)+IF('Crop 1'!$C$35=Carbon!$B20,'Crop 1'!$V$35,0)+IF('Crop 1'!$C$36=Carbon!$B20,'Crop 1'!$V$36,0)+IF('Crop 1'!$C$37=Carbon!$B20,'Crop 1'!$V$37,0)+IF('Crop 1'!$C$38=Carbon!$B20,'Crop 1'!$V$38,0))*$AL$21*VLOOKUP(VLOOKUP(B20,Defaults!$T$22:$W$29,4,FALSE),Carbon!$AH$4:$AI$10,2,FALSE),2)","v":1.1000000000000001},{"$f":"M20*Inputs!$D$13","v":330},{"$f":"ROUND((IF('Crop 2'!$C$34=Carbon!$B20,'Crop 2'!$V$34,0)+IF('Crop 2'!$C$35=Carbon!$B20,'Crop 2'!$V$35,0)+IF('Crop 2'!$C$36=Carbon!$B20,'Crop 2'!$V$36,0)+IF('Crop 2'!$C$37=Carbon!$B20,'Crop 2'!$V$37,0)+IF('Crop 2'!$C$38=Carbon!$B20,'Crop 2'!$V$38,0))*$AL$21*VLOOKUP(VLOOKUP(B20,Defaults!$T$22:$W$29,4,FALSE),Carbon!$AH$4:$AI$10,2,FALSE),2)","v":0},{"$f":"O20*Inputs!$D$15","v":0},{"$f":"ROUND((IF('Crop 3'!$C$34=Carbon!$B20,'Crop 3'!$V$34,0)+IF('Crop 3'!$C$35=Carbon!$B20,'Crop 3'!$V$35,0)+IF('Crop 3'!$C$36=Carbon!$B20,'Crop 3'!$V$36,0)+IF('Crop 3'!$C$37=Carbon!$B20,'Crop 3'!$V$37,0)+IF('Crop 3'!$C$38=Carbon!$B20,'Crop 3'!$V$38,0))*$AL$21*VLOOKUP(VLOOKUP(B20,Defaults!$T$22:$W$29,4,FALSE),Carbon!$AH$4:$AI$10,2,FALSE),2)","v":0},{"$f":"Q20*Inputs!$D$17","v":0},{"$f":"ROUND(T20/Inputs!D$19,2)","v":0.55000000000000004},330,null,null,-0.30999999999999983,-93,0,0,0,0,{"$f":"ROUND(AD20/Inputs!D$19,2)","v":-0.16},-93,null,null,null,null,null,null,"Herbicides (pounds)",3.3283876609456087]
[null,{"$f":"Defaults!T25","v":"Prevathon"},{"$f":"ROUND((IF('Crop 1'!$C$34=Carbon!$B21,'Crop 1'!$L$34,0)+IF('Crop 1'!$C$35=Carbon!$B21,'Crop 1'!$L$35,0)+IF('Crop 1'!$C$36=Carbon!$B21,'Crop 1'!$L$36,0)+IF('Crop 1'!$C$37=Carbon!$B21,'Crop 1'!$L$37,0)+IF('Crop 1'!$C$38=Carbon!$B21,'Crop 1'!$L$38,0))*$AL$21*VLOOKUP(VLOOKUP(B21,Defaults!$T$22:$W$29,4,FALSE),Carbon!$AH$4:$AI$10,2,FALSE),2)","v":7.06},{"$f":"C21*Inputs!$D$13","v":2118},{"$f":"ROUND((IF('Crop 2'!$C$34=Carbon!$B21,'Crop 2'!$L$34,0)+IF('Crop 2'!$C$35=Carbon!$B21,'Crop 2'!$L$35,0)+IF('Crop 2'!$C$36=Carbon!$B21,'Crop 2'!$L$36,0)+IF('Crop 2'!$C$37=Carbon!$B21,'Crop 2'!$L$37,0)+IF('Crop 2'!$C$38=Carbon!$B21,'Crop 2'!$L$38,0))*$AL$21*VLOOKUP(VLOOKUP(B21,Defaults!$T$22:$W$29,4,FALSE),Carbon!$AH$4:$AI$10,2,FALSE),2)","v":0},{"$f":"E21*Inputs!$D$15","v":0},{"$f":"ROUND((IF('Crop 3'!$C$34=Carbon!$B21,'Crop 3'!$L$34,0)+IF('Crop 3'!$C$35=Carbon!$B21,'Crop 3'!$L$35,0)+IF('Crop 3'!$C$36=Carbon!$B21,'Crop 3'!$L$36,0)+IF('Crop 3'!$C$37=Carbon!$B21,'Crop 3'!$L$37,0)+IF('Crop 3'!$C$38=Carbon!$B21,'Crop 3'!$L$38,0))*$AL$21*VLOOKUP(VLOOKUP(B21,Defaults!$T$22:$W$29,4,FALSE),Carbon!$AH$4:$AI$10,2,FALSE),2)","v":0},{"$f":"G21*Inputs!$D$17","v":0},{"$f":"ROUND(J21/Inputs!D$19,2)","v":3.53},2118,null,null,{"$f":"ROUND((IF('Crop 1'!$C$34=Carbon!$B21,'Crop 1'!$V$34,0)+IF('Crop 1'!$C$35=Carbon!$B21,'Crop 1'!$V$35,0)+IF('Crop 1'!$C$36=Carbon!$B21,'Crop 1'!$V$36,0)+IF('Crop 1'!$C$37=Carbon!$B21,'Crop 1'!$V$37,0)+IF('Crop 1'!$C$38=Carbon!$B21,'Crop 1'!$V$38,0))*$AL$21*VLOOKUP(VLOOKUP(B21,Defaults!$T$22:$W$29,4,FALSE),Carbon!$AH$4:$AI$10,2,FALSE),2)","v":5.5},{"$f":"M21*Inputs!$D$13","v":1650},{"$f":"ROUND((IF('Crop 2'!$C$34=Carbon!$B21,'Crop 2'!$V$34,0)+IF('Crop 2'!$C$35=Carbon!$B21,'Crop 2'!$V$35,0)+IF('Crop 2'!$C$36=Carbon!$B21,'Crop 2'!$V$36,0)+IF('Crop 2'!$C$37=Carbon!$B21,'Crop 2'!$V$37,0)+IF('Crop 2'!$C$38=Carbon!$B21,'Crop 2'!$V$38,0))*$AL$21*VLOOKUP(VLOOKUP(B21,Defaults!$T$22:$W$29,4,FALSE),Carbon!$AH$4:$AI$10,2,FALSE),2)","v":0},{"$f":"O21*Inputs!$D$15","v":0},{"$f":"ROUND((IF('Crop 3'!$C$34=Carbon!$B21,'Crop 3'!$V$34,0)+IF('Crop 3'!$C$35=Carbon!$B21,'Crop 3'!$V$35,0)+IF('Crop 3'!$C$36=Carbon!$B21,'Crop 3'!$V$36,0)+IF('Crop 3'!$C$37=Carbon!$B21,'Crop 3'!$V$37,0)+IF('Crop 3'!$C$38=Carbon!$B21,'Crop 3'!$V$38,0))*$AL$21*VLOOKUP(VLOOKUP(B21,Defaults!$T$22:$W$29,4,FALSE),Carbon!$AH$4:$AI$10,2,FALSE),2)","v":0},{"$f":"Q21*Inputs!$D$17","v":0},{"$f":"ROUND(T21/Inputs!D$19,2)","v":2.75},1650,null,null,-1.5599999999999996,-468,0,0,0,0,{"$f":"ROUND(AD21/Inputs!D$19,2)","v":-0.78},-468,null,null,null,null,null,null,"Insecticides (pounds)",5.6505218296291915]
[null,{"$f":"Defaults!T26","v":"Karate"},{"$f":"ROUND((IF('Crop 1'!$C$34=Carbon!$B22,'Crop 1'!$L$34,0)+IF('Crop 1'!$C$35=Carbon!$B22,'Crop 1'!$L$35,0)+IF('Crop 1'!$C$36=Carbon!$B22,'Crop 1'!$L$36,0)+IF('Crop 1'!$C$37=Carbon!$B22,'Crop 1'!$L$37,0)+IF('Crop 1'!$C$38=Carbon!$B22,'Crop 1'!$L$38,0))*$AL$21*VLOOKUP(VLOOKUP(B22,Defaults!$T$22:$W$29,4,FALSE),Carbon!$AH$4:$AI$10,2,FALSE),2)","v":0},{"$f":"C22*Inputs!$D$13","v":0},{"$f":"ROUND((IF('Crop 2'!$C$34=Carbon!$B22,'Crop 2'!$L$34,0)+IF('Crop 2'!$C$35=Carbon!$B22,'Crop 2'!$L$35,0)+IF('Crop 2'!$C$36=Carbon!$B22,'Crop 2'!$L$36,0)+IF('Crop 2'!$C$37=Carbon!$B22,'Crop 2'!$L$37,0)+IF('Crop 2'!$C$38=Carbon!$B22,'Crop 2'!$L$38,0))*$AL$21*VLOOKUP(VLOOKUP(B22,Defaults!$T$22:$W$29,4,FALSE),Carbon!$AH$4:$AI$10,2,FALSE),2)","v":0},{"$f":"E22*Inputs!$D$15","v":0},{"$f":"ROUND((IF('Crop 3'!$C$34=Carbon!$B22,'Crop 3'!$L$34,0)+IF('Crop 3'!$C$35=Carbon!$B22,'Crop 3'!$L$35,0)+IF('Crop 3'!$C$36=Carbon!$B22,'Crop 3'!$L$36,0)+IF('Crop 3'!$C$37=Carbon!$B22,'Crop 3'!$L$37,0)+IF('Crop 3'!$C$38=Carbon!$B22,'Crop 3'!$L$38,0))*$AL$21*VLOOKUP(VLOOKUP(B22,Defaults!$T$22:$W$29,4,FALSE),Carbon!$AH$4:$AI$10,2,FALSE),2)","v":0},{"$f":"G22*Inputs!$D$17","v":0},{"$f":"ROUND(J22/Inputs!D$19,2)","v":0},0,null,null,{"$f":"ROUND((IF('Crop 1'!$C$34=Carbon!$B22,'Crop 1'!$V$34,0)+IF('Crop 1'!$C$35=Carbon!$B22,'Crop 1'!$V$35,0)+IF('Crop 1'!$C$36=Carbon!$B22,'Crop 1'!$V$36,0)+IF('Crop 1'!$C$37=Carbon!$B22,'Crop 1'!$V$37,0)+IF('Crop 1'!$C$38=Carbon!$B22,'Crop 1'!$V$38,0))*$AL$21*VLOOKUP(VLOOKUP(B22,Defaults!$T$22:$W$29,4,FALSE),Carbon!$AH$4:$AI$10,2,FALSE),2)","v":0},{"$f":"M22*Inputs!$D$13","v":0},{"$f":"ROUND((IF('Crop 2'!$C$34=Carbon!$B22,'Crop 2'!$V$34,0)+IF('Crop 2'!$C$35=Carbon!$B22,'Crop 2'!$V$35,0)+IF('Crop 2'!$C$36=Carbon!$B22,'Crop 2'!$V$36,0)+IF('Crop 2'!$C$37=Carbon!$B22,'Crop 2'!$V$37,0)+IF('Crop 2'!$C$38=Carbon!$B22,'Crop 2'!$V$38,0))*$AL$21*VLOOKUP(VLOOKUP(B22,Defaults!$T$22:$W$29,4,FALSE),Carbon!$AH$4:$AI$10,2,FALSE),2)","v":0},{"$f":"O22*Inputs!$D$15","v":0},{"$f":"ROUND((IF('Crop 3'!$C$34=Carbon!$B22,'Crop 3'!$V$34,0)+IF('Crop 3'!$C$35=Carbon!$B22,'Crop 3'!$V$35,0)+IF('Crop 3'!$C$36=Carbon!$B22,'Crop 3'!$V$36,0)+IF('Crop 3'!$C$37=Carbon!$B22,'Crop 3'!$V$37,0)+IF('Crop 3'!$C$38=Carbon!$B22,'Crop 3'!$V$38,0))*$AL$21*VLOOKUP(VLOOKUP(B22,Defaults!$T$22:$W$29,4,FALSE),Carbon!$AH$4:$AI$10,2,FALSE),2)","v":0},{"$f":"Q22*Inputs!$D$17","v":0},{"$f":"ROUND(T22/Inputs!D$19,2)","v":0},0,null,null,0,0,0,0,0,0,{"$f":"ROUND(AD22/Inputs!D$19,2)","v":0},0,null,null,null,null,null,null,"Fungicides (pounds)",3.3925614704773364]
[null,{"$f":"Defaults!T27","v":"Sivanto"},{"$f":"ROUND((IF('Crop 1'!$C$34=Carbon!$B23,'Crop 1'!$L$34,0)+IF('Crop 1'!$C$35=Carbon!$B23,'Crop 1'!$L$35,0)+IF('Crop 1'!$C$36=Carbon!$B23,'Crop 1'!$L$36,0)+IF('Crop 1'!$C$37=Carbon!$B23,'Crop 1'!$L$37,0)+IF('Crop 1'!$C$38=Carbon!$B23,'Crop 1'!$L$38,0))*$AL$21*VLOOKUP(VLOOKUP(B23,Defaults!$T$22:$W$29,4,FALSE),Carbon!$AH$4:$AI$10,2,FALSE),2)","v":0},{"$f":"C23*Inputs!$D$13","v":0},{"$f":"ROUND((IF('Crop 2'!$C$34=Carbon!$B23,'Crop 2'!$L$34,0)+IF('Crop 2'!$C$35=Carbon!$B23,'Crop 2'!$L$35,0)+IF('Crop 2'!$C$36=Carbon!$B23,'Crop 2'!$L$36,0)+IF('Crop 2'!$C$37=Carbon!$B23,'Crop 2'!$L$37,0)+IF('Crop 2'!$C$38=Carbon!$B23,'Crop 2'!$L$38,0))*$AL$21*VLOOKUP(VLOOKUP(B23,Defaults!$T$22:$W$29,4,FALSE),Carbon!$AH$4:$AI$10,2,FALSE),2)","v":0},{"$f":"E23*Inputs!$D$15","v":0},{"$f":"ROUND((IF('Crop 3'!$C$34=Carbon!$B23,'Crop 3'!$L$34,0)+IF('Crop 3'!$C$35=Carbon!$B23,'Crop 3'!$L$35,0)+IF('Crop 3'!$C$36=Carbon!$B23,'Crop 3'!$L$36,0)+IF('Crop 3'!$C$37=Carbon!$B23,'Crop 3'!$L$37,0)+IF('Crop 3'!$C$38=Carbon!$B23,'Crop 3'!$L$38,0))*$AL$21*VLOOKUP(VLOOKUP(B23,Defaults!$T$22:$W$29,4,FALSE),Carbon!$AH$4:$AI$10,2,FALSE),2)","v":0},{"$f":"G23*Inputs!$D$17","v":0},{"$f":"ROUND(J23/Inputs!D$19,2)","v":0},0,null,null,{"$f":"ROUND((IF('Crop 1'!$C$34=Carbon!$B23,'Crop 1'!$V$34,0)+IF('Crop 1'!$C$35=Carbon!$B23,'Crop 1'!$V$35,0)+IF('Crop 1'!$C$36=Carbon!$B23,'Crop 1'!$V$36,0)+IF('Crop 1'!$C$37=Carbon!$B23,'Crop 1'!$V$37,0)+IF('Crop 1'!$C$38=Carbon!$B23,'Crop 1'!$V$38,0))*$AL$21*VLOOKUP(VLOOKUP(B23,Defaults!$T$22:$W$29,4,FALSE),Carbon!$AH$4:$AI$10,2,FALSE),2)","v":0},{"$f":"M23*Inputs!$D$13","v":0},{"$f":"ROUND((IF('Crop 2'!$C$34=Carbon!$B23,'Crop 2'!$V$34,0)+IF('Crop 2'!$C$35=Carbon!$B23,'Crop 2'!$V$35,0)+IF('Crop 2'!$C$36=Carbon!$B23,'Crop 2'!$V$36,0)+IF('Crop 2'!$C$37=Carbon!$B23,'Crop 2'!$V$37,0)+IF('Crop 2'!$C$38=Carbon!$B23,'Crop 2'!$V$38,0))*$AL$21*VLOOKUP(VLOOKUP(B23,Defaults!$T$22:$W$29,4,FALSE),Carbon!$AH$4:$AI$10,2,FALSE),2)","v":0},{"$f":"O23*Inputs!$D$15","v":0},{"$f":"ROUND((IF('Crop 3'!$C$34=Carbon!$B23,'Crop 3'!$V$34,0)+IF('Crop 3'!$C$35=Carbon!$B23,'Crop 3'!$V$35,0)+IF('Crop 3'!$C$36=Carbon!$B23,'Crop 3'!$V$36,0)+IF('Crop 3'!$C$37=Carbon!$B23,'Crop 3'!$V$37,0)+IF('Crop 3'!$C$38=Carbon!$B23,'Crop 3'!$V$38,0))*$AL$21*VLOOKUP(VLOOKUP(B23,Defaults!$T$22:$W$29,4,FALSE),Carbon!$AH$4:$AI$10,2,FALSE),2)","v":0},{"$f":"Q23*Inputs!$D$17","v":0},{"$f":"ROUND(T23/Inputs!D$19,2)","v":0},0,null,null,0,0,0,0,0,0,{"$f":"ROUND(AD23/Inputs!D$19,2)","v":0},0,null,null,null,null,null,null,"Growth Regulator/Defoliant (pounds)",2.5499357954362605]
[null,{"$f":"Defaults!T28","v":"Besiege"},{"$f":"ROUND((IF('Crop 1'!$C$34=Carbon!$B24,'Crop 1'!$L$34,0)+IF('Crop 1'!$C$35=Carbon!$B24,'Crop 1'!$L$35,0)+IF('Crop 1'!$C$36=Carbon!$B24,'Crop 1'!$L$36,0)+IF('Crop 1'!$C$37=Carbon!$B24,'Crop 1'!$L$37,0)+IF('Crop 1'!$C$38=Carbon!$B24,'Crop 1'!$L$38,0))*$AL$21*VLOOKUP(VLOOKUP(B24,Defaults!$T$22:$W$29,4,FALSE),Carbon!$AH$4:$AI$10,2,FALSE),2)","v":0},{"$f":"C24*Inputs!$D$13","v":0},{"$f":"ROUND((IF('Crop 2'!$C$34=Carbon!$B24,'Crop 2'!$L$34,0)+IF('Crop 2'!$C$35=Carbon!$B24,'Crop 2'!$L$35,0)+IF('Crop 2'!$C$36=Carbon!$B24,'Crop 2'!$L$36,0)+IF('Crop 2'!$C$37=Carbon!$B24,'Crop 2'!$L$37,0)+IF('Crop 2'!$C$38=Carbon!$B24,'Crop 2'!$L$38,0))*$AL$21*VLOOKUP(VLOOKUP(B24,Defaults!$T$22:$W$29,4,FALSE),Carbon!$AH$4:$AI$10,2,FALSE),2)","v":3.53},{"$f":"E24*Inputs!$D$15","v":706},{"$f":"ROUND((IF('Crop 3'!$C$34=Carbon!$B24,'Crop 3'!$L$34,0)+IF('Crop 3'!$C$35=Carbon!$B24,'Crop 3'!$L$35,0)+IF('Crop 3'!$C$36=Carbon!$B24,'Crop 3'!$L$36,0)+IF('Crop 3'!$C$37=Carbon!$B24,'Crop 3'!$L$37,0)+IF('Crop 3'!$C$38=Carbon!$B24,'Crop 3'!$L$38,0))*$AL$21*VLOOKUP(VLOOKUP(B24,Defaults!$T$22:$W$29,4,FALSE),Carbon!$AH$4:$AI$10,2,FALSE),2)","v":0},{"$f":"G24*Inputs!$D$17","v":0},{"$f":"ROUND(J24/Inputs!D$19,2)","v":1.18},706,null,null,{"$f":"ROUND((IF('Crop 1'!$C$34=Carbon!$B24,'Crop 1'!$V$34,0)+IF('Crop 1'!$C$35=Carbon!$B24,'Crop 1'!$V$35,0)+IF('Crop 1'!$C$36=Carbon!$B24,'Crop 1'!$V$36,0)+IF('Crop 1'!$C$37=Carbon!$B24,'Crop 1'!$V$37,0)+IF('Crop 1'!$C$38=Carbon!$B24,'Crop 1'!$V$38,0))*$AL$21*VLOOKUP(VLOOKUP(B24,Defaults!$T$22:$W$29,4,FALSE),Carbon!$AH$4:$AI$10,2,FALSE),2)","v":0},{"$f":"M24*Inputs!$D$13","v":0},{"$f":"ROUND((IF('Crop 2'!$C$34=Carbon!$B24,'Crop 2'!$V$34,0)+IF('Crop 2'!$C$35=Carbon!$B24,'Crop 2'!$V$35,0)+IF('Crop 2'!$C$36=Carbon!$B24,'Crop 2'!$V$36,0)+IF('Crop 2'!$C$37=Carbon!$B24,'Crop 2'!$V$37,0)+IF('Crop 2'!$C$38=Carbon!$B24,'Crop 2'!$V$38,0))*$AL$21*VLOOKUP(VLOOKUP(B24,Defaults!$T$22:$W$29,4,FALSE),Carbon!$AH$4:$AI$10,2,FALSE),2)","v":2.75},{"$f":"O24*Inputs!$D$15","v":550},{"$f":"ROUND((IF('Crop 3'!$C$34=Carbon!$B24,'Crop 3'!$V$34,0)+IF('Crop 3'!$C$35=Carbon!$B24,'Crop 3'!$V$35,0)+IF('Crop 3'!$C$36=Carbon!$B24,'Crop 3'!$V$36,0)+IF('Crop 3'!$C$37=Carbon!$B24,'Crop 3'!$V$37,0)+IF('Crop 3'!$C$38=Carbon!$B24,'Crop 3'!$V$38,0))*$AL$21*VLOOKUP(VLOOKUP(B24,Defaults!$T$22:$W$29,4,FALSE),Carbon!$AH$4:$AI$10,2,FALSE),2)","v":0},{"$f":"Q24*Inputs!$D$17","v":0},{"$f":"ROUND(T24/Inputs!D$19,2)","v":0.92},550,null,null,0,0,-0.7799999999999998,-156,0,0,{"$f":"ROUND(AD24/Inputs!D$19,2)","v":-0.26},-156,null,null,null,null,null,null,"Inoculant/Harvest Aid (pounds)",{"$f":"AVERAGE(AL20:AL23)","v":3.7303516891220991}]
[null,{"$f":"Defaults!T29","v":"Admire Pro"},{"$f":"ROUND((IF('Crop 1'!$C$34=Carbon!$B25,'Crop 1'!$L$34,0)+IF('Crop 1'!$C$35=Carbon!$B25,'Crop 1'!$L$35,0)+IF('Crop 1'!$C$36=Carbon!$B25,'Crop 1'!$L$36,0)+IF('Crop 1'!$C$37=Carbon!$B25,'Crop 1'!$L$37,0)+IF('Crop 1'!$C$38=Carbon!$B25,'Crop 1'!$L$38,0))*$AL$21*VLOOKUP(VLOOKUP(B25,Defaults!$T$22:$W$29,4,FALSE),Carbon!$AH$4:$AI$10,2,FALSE),2)","v":0},{"$f":"C25*Inputs!$D$13","v":0},{"$f":"ROUND((IF('Crop 2'!$C$34=Carbon!$B25,'Crop 2'!$L$34,0)+IF('Crop 2'!$C$35=Carbon!$B25,'Crop 2'!$L$35,0)+IF('Crop 2'!$C$36=Carbon!$B25,'Crop 2'!$L$36,0)+IF('Crop 2'!$C$37=Carbon!$B25,'Crop 2'!$L$37,0)+IF('Crop 2'!$C$38=Carbon!$B25,'Crop 2'!$L$38,0))*$AL$21*VLOOKUP(VLOOKUP(B25,Defaults!$T$22:$W$29,4,FALSE),Carbon!$AH$4:$AI$10,2,FALSE),2)","v":0},{"$f":"E25*Inputs!$D$15","v":0},{"$f":"ROUND((IF('Crop 3'!$C$34=Carbon!$B25,'Crop 3'!$L$34,0)+IF('Crop 3'!$C$35=Carbon!$B25,'Crop 3'!$L$35,0)+IF('Crop 3'!$C$36=Carbon!$B25,'Crop 3'!$L$36,0)+IF('Crop 3'!$C$37=Carbon!$B25,'Crop 3'!$L$37,0)+IF('Crop 3'!$C$38=Carbon!$B25,'Crop 3'!$L$38,0))*$AL$21*VLOOKUP(VLOOKUP(B25,Defaults!$T$22:$W$29,4,FALSE),Carbon!$AH$4:$AI$10,2,FALSE),2)","v":0},{"$f":"G25*Inputs!$D$17","v":0},{"$f":"ROUND(J25/Inputs!D$19,2)","v":0},0,null,null,{"$f":"ROUND((IF('Crop 1'!$C$34=Carbon!$B25,'Crop 1'!$V$34,0)+IF('Crop 1'!$C$35=Carbon!$B25,'Crop 1'!$V$35,0)+IF('Crop 1'!$C$36=Carbon!$B25,'Crop 1'!$V$36,0)+IF('Crop 1'!$C$37=Carbon!$B25,'Crop 1'!$V$37,0)+IF('Crop 1'!$C$38=Carbon!$B25,'Crop 1'!$V$38,0))*$AL$21*VLOOKUP(VLOOKUP(B25,Defaults!$T$22:$W$29,4,FALSE),Carbon!$AH$4:$AI$10,2,FALSE),2)","v":0},{"$f":"M25*Inputs!$D$13","v":0},{"$f":"ROUND((IF('Crop 2'!$C$34=Carbon!$B25,'Crop 2'!$V$34,0)+IF('Crop 2'!$C$35=Carbon!$B25,'Crop 2'!$V$35,0)+IF('Crop 2'!$C$36=Carbon!$B25,'Crop 2'!$V$36,0)+IF('Crop 2'!$C$37=Carbon!$B25,'Crop 2'!$V$37,0)+IF('Crop 2'!$C$38=Carbon!$B25,'Crop 2'!$V$38,0))*$AL$21*VLOOKUP(VLOOKUP(B25,Defaults!$T$22:$W$29,4,FALSE),Carbon!$AH$4:$AI$10,2,FALSE),2)","v":0},{"$f":"O25*Inputs!$D$15","v":0},{"$f":"ROUND((IF('Crop 3'!$C$34=Carbon!$B25,'Crop 3'!$V$34,0)+IF('Crop 3'!$C$35=Carbon!$B25,'Crop 3'!$V$35,0)+IF('Crop 3'!$C$36=Carbon!$B25,'Crop 3'!$V$36,0)+IF('Crop 3'!$C$37=Carbon!$B25,'Crop 3'!$V$37,0)+IF('Crop 3'!$C$38=Carbon!$B25,'Crop 3'!$V$38,0))*$AL$21*VLOOKUP(VLOOKUP(B25,Defaults!$T$22:$W$29,4,FALSE),Carbon!$AH$4:$AI$10,2,FALSE),2)","v":0},{"$f":"Q25*Inputs!$D$17","v":0},{"$f":"ROUND(T25/Inputs!D$19,2)","v":0},0,null,null,0,0,0,0,0,0,{"$f":"ROUND(AD25/Inputs!D$19,2)","v":0},0]
[null,"Inoculant",{"$f":"ROUND(SUM(C27:C27),2)","v":0},{"$f":"C26*Inputs!$D$13","v":0},{"$f":"ROUND(SUM(E27:E27),2)","v":0},{"$f":"E26*Inputs!$D$15","v":0},{"$f":"ROUND(SUM(G27:G27),2)","v":0},{"$f":"G26*Inputs!$D$17","v":0},{"$f":"ROUND(J26/Inputs!D$19,2)","v":0},0,null,null,{"$f":"ROUND(SUM(M27:M27),2)","v":0},{"$f":"M26*Inputs!$D$13","v":0},{"$f":"ROUND(SUM(O27:O27),2)","v":0},{"$f":"O26*Inputs!$D$15","v":0},{"$f":"ROUND(SUM(Q27:Q27),2)","v":0},{"$f":"Q26*Inputs!$D$17","v":0},{"$f":"ROUND(T26/Inputs!D$19,2)","v":0},0,null,null,0,0,0,0,0,0,{"$f":"ROUND(AD26/Inputs!D$19,2)","v":0},0,null,null,null,null,null,null,"Indirect Nitrous Oxide emissions",1.5048214285714285]
[null,{"$f":"Defaults!T34","v":"Optimize"},{"$f":"ROUND((IF('Crop 1'!$C$40=Carbon!$B27,'Crop 1'!$L$40,0)+IF('Crop 1'!$C$41=Carbon!$B27,'Crop 1'!$L$41,0))*$AL$24*VLOOKUP(VLOOKUP(B27,Defaults!$T$34:$W$34,4,FALSE),Carbon!$AH$4:$AI$10,2,FALSE),2)","v":0},{"$f":"C27*Inputs!$D$13","v":0},{"$f":"ROUND((IF('Crop 2'!$C$40=Carbon!$B27,'Crop 2'!$L$40,0)+IF('Crop 2'!$C$41=Carbon!$B27,'Crop 2'!$L$41,0))*$AL$24*VLOOKUP(VLOOKUP(B27,Defaults!$T$34:$W$34,4,FALSE),Carbon!$AH$4:$AI$10,2,FALSE),2)","v":0},{"$f":"E27*Inputs!$D$15","v":0},{"$f":"ROUND((IF('Crop 3'!$C$40=Carbon!$B27,'Crop 3'!$L$40,0)+IF('Crop 3'!$C$41=Carbon!$B27,'Crop 3'!$L$41,0))*$AL$24*VLOOKUP(VLOOKUP(B27,Defaults!$T$34:$W$34,4,FALSE),Carbon!$AH$4:$AI$10,2,FALSE),2)","v":0},{"$f":"G27*Inputs!$D$17","v":0},{"$f":"ROUND(J27/Inputs!D$19,2)","v":0},0,null,null,{"$f":"ROUND((IF('Crop 1'!$C$40=Carbon!$B27,'Crop 1'!$V$40,0)+IF('Crop 1'!$C$41=Carbon!$B27,'Crop 1'!$V$41,0))*$AL$24*VLOOKUP(VLOOKUP(B27,Defaults!$T$34:$W$34,4,FALSE),Carbon!$AH$4:$AI$10,2,FALSE),2)","v":0},{"$f":"M27*Inputs!$D$13","v":0},{"$f":"ROUND((IF('Crop 2'!$C$40=Carbon!$B27,'Crop 2'!$V$40,0)+IF('Crop 2'!$C$41=Carbon!$B27,'Crop 2'!$V$41,0))*$AL$24*VLOOKUP(VLOOKUP(B27,Defaults!$T$34:$W$34,4,FALSE),Carbon!$AH$4:$AI$10,2,FALSE),2)","v":0},{"$f":"O27*Inputs!$D$15","v":0},{"$f":"ROUND((IF('Crop 3'!$C$40=Carbon!$B27,'Crop 3'!$V$40,0)+IF('Crop 3'!$C$41=Carbon!$B27,'Crop 3'!$V$41,0))*$AL$24*VLOOKUP(VLOOKUP(B27,Defaults!$T$34:$W$34,4,FALSE),Carbon!$AH$4:$AI$10,2,FALSE),2)","v":0},{"$f":"Q27*Inputs!$D$17","v":0},{"$f":"ROUND(T27/Inputs!D$19,2)","v":0},0,null,null,0,0,0,0,0,0,{"$f":"ROUND(AD27/Inputs!D$19,2)","v":0},0,null,null,null,null,null,null,"Zinc Sulfate (ZnSO4)",0.2]
[null,"Defoliant",{"$f":"ROUND(SUM(C29:C31),2)","v":8.61},{"$f":"C28*Inputs!$D$13","v":2583},{"$f":"ROUND(SUM(E29:E31),2)","v":0},{"$f":"E28*Inputs!$D$15","v":0},{"$f":"ROUND(SUM(G29:G31),2)","v":0},{"$f":"G28*Inputs!$D$17","v":0},{"$f":"ROUND(J28/Inputs!D$19,2)","v":4.3099999999999996},2583,null,null,{"$f":"ROUND(SUM(M29:M31),2)","v":6.71},{"$f":"M28*Inputs!$D$13","v":2013},{"$f":"ROUND(SUM(O29:O31),2)","v":0},{"$f":"O28*Inputs!$D$15","v":0},{"$f":"ROUND(SUM(Q29:Q31),2)","v":0},{"$f":"Q28*Inputs!$D$17","v":0},{"$f":"ROUND(T28/Inputs!D$19,2)","v":3.36},2013,null,null,-1.8999999999999995,-570,0,0,0,0,{"$f":"ROUND(AD28/Inputs!D$19,2)","v":-0.95},-570,null,null,null,null,null,null,"Zn = 65.38",{"$f":"65.38/(65.36+32.06+4*15.999)","v":0.4050403925261436}]
[null,{"$f":"Defaults!T39","v":"Dropp"},{"$f":"ROUND((IF('Crop 1'!$C$40=Carbon!$B29,'Crop 1'!$L$40,0)+IF('Crop 1'!$C$41=Carbon!$B29,'Crop 1'!$L$41,0)+IF('Crop 1'!$C$42=Carbon!$B29,'Crop 1'!$L$42,0)+IF('Crop 1'!$C$43=Carbon!$B29,'Crop 1'!$L$43,0))*$AL$23*VLOOKUP(VLOOKUP(B29,Defaults!$T$39:$W$41,4,FALSE),Carbon!$AH$4:$AI$10,2,FALSE),2)","v":0.32},{"$f":"C29*Inputs!$D$13","v":96},{"$f":"ROUND((IF('Crop 2'!$C$40=Carbon!$B29,'Crop 2'!$L$40,0)+IF('Crop 2'!$C$41=Carbon!$B29,'Crop 2'!$L$41,0)+IF('Crop 2'!$C$42=Carbon!$B29,'Crop 2'!$L$42,0)+IF('Crop 2'!$C$43=Carbon!$B29,'Crop 2'!$L$43,0))*$AL$23*VLOOKUP(VLOOKUP(B29,Defaults!$T$39:$W$41,4,FALSE),Carbon!$AH$4:$AI$10,2,FALSE),2)","v":0},{"$f":"E29*Inputs!$D$15","v":0},{"$f":"ROUND((IF('Crop 3'!$C$40=Carbon!$B29,'Crop 3'!$L$40,0)+IF('Crop 3'!$C$41=Carbon!$B29,'Crop 3'!$L$41,0)+IF('Crop 3'!$C$42=Carbon!$B29,'Crop 3'!$L$42,0)+IF('Crop 3'!$C$43=Carbon!$B29,'Crop 3'!$L$43,0))*$AL$23*VLOOKUP(VLOOKUP(B29,Defaults!$T$39:$W$41,4,FALSE),Carbon!$AH$4:$AI$10,2,FALSE),2)","v":0},{"$f":"G29*Inputs!$D$17","v":0},{"$f":"ROUND(J29/Inputs!D$19,2)","v":0.16},96,null,null,{"$f":"ROUND((IF('Crop 1'!$C$40=Carbon!$B29,'Crop 1'!$V$40,0)+IF('Crop 1'!$C$41=Carbon!$B29,'Crop 1'!$V$41,0)+IF('Crop 1'!$C$42=Carbon!$B29,'Crop 1'!$V$42,0)+IF('Crop 1'!$C$43=Carbon!$B29,'Crop 1'!$V$43,0))*$AL$23*VLOOKUP(VLOOKUP(B29,Defaults!$T$39:$W$41,4,FALSE),Carbon!$AH$4:$AI$10,2,FALSE),2)","v":0.25},{"$f":"M29*Inputs!$D$13","v":75},{"$f":"ROUND((IF('Crop 2'!$C$40=Carbon!$B29,'Crop 2'!$V$40,0)+IF('Crop 2'!$C$41=Carbon!$B29,'Crop 2'!$V$41,0)+IF('Crop 2'!$C$42=Carbon!$B29,'Crop 2'!$V$42,0)+IF('Crop 2'!$C$43=Carbon!$B29,'Crop 2'!$V$43,0))*$AL$23*VLOOKUP(VLOOKUP(B29,Defaults!$T$39:$W$41,4,FALSE),Carbon!$AH$4:$AI$10,2,FALSE),2)","v":0},{"$f":"O29*Inputs!$D$15","v":0},{"$f":"ROUND((IF('Crop 3'!$C$40=Carbon!$B29,'Crop 3'!$V$40,0)+IF('Crop 3'!$C$41=Carbon!$B29,'Crop 3'!$V$41,0)+IF('Crop 3'!$C$42=Carbon!$B29,'Crop 3'!$V$42,0)+IF('Crop 3'!$C$43=Carbon!$B29,'Crop 3'!$V$43,0))*$AL$23*VLOOKUP(VLOOKUP(B29,Defaults!$T$39:$W$41,4,FALSE),Carbon!$AH$4:$AI$10,2,FALSE),2)","v":0},{"$f":"Q29*Inputs!$D$17","v":0},{"$f":"ROUND(T29/Inputs!D$19,2)","v":0.13},75,null,null,-7.0000000000000007E-2,-21,0,0,0,0,{"$f":"ROUND(AD29/Inputs!D$19,2)","v":-0.04},-21,null,null,null,null,null,null,"S = 32.06",{"$f":"32.06/(65.36+32.06+4*15.999)","v":0.19861723744858009}]
[null,{"$f":"Defaults!T40","v":"Folex"},{"$f":"ROUND((IF('Crop 1'!$C$40=Carbon!$B30,'Crop 1'!$L$40,0)+IF('Crop 1'!$C$41=Carbon!$B30,'Crop 1'!$L$41,0)+IF('Crop 1'!$C$42=Carbon!$B30,'Crop 1'!$L$42,0)+IF('Crop 1'!$C$43=Carbon!$B30,'Crop 1'!$L$43,0))*$AL$23*VLOOKUP(VLOOKUP(B30,Defaults!$T$39:$W$41,4,FALSE),Carbon!$AH$4:$AI$10,2,FALSE),2)","v":2.23},{"$f":"C30*Inputs!$D$13","v":669},{"$f":"ROUND((IF('Crop 2'!$C$40=Carbon!$B30,'Crop 2'!$L$40,0)+IF('Crop 2'!$C$41=Carbon!$B30,'Crop 2'!$L$41,0)+IF('Crop 2'!$C$42=Carbon!$B30,'Crop 2'!$L$42,0)+IF('Crop 2'!$C$43=Carbon!$B30,'Crop 2'!$L$43,0))*$AL$23*VLOOKUP(VLOOKUP(B30,Defaults!$T$39:$W$41,4,FALSE),Carbon!$AH$4:$AI$10,2,FALSE),2)","v":0},{"$f":"E30*Inputs!$D$15","v":0},{"$f":"ROUND((IF('Crop 3'!$C$40=Carbon!$B30,'Crop 3'!$L$40,0)+IF('Crop 3'!$C$41=Carbon!$B30,'Crop 3'!$L$41,0)+IF('Crop 3'!$C$42=Carbon!$B30,'Crop 3'!$L$42,0)+IF('Crop 3'!$C$43=Carbon!$B30,'Crop 3'!$L$43,0))*$AL$23*VLOOKUP(VLOOKUP(B30,Defaults!$T$39:$W$41,4,FALSE),Carbon!$AH$4:$AI$10,2,FALSE),2)","v":0},{"$f":"G30*Inputs!$D$17","v":0},{"$f":"ROUND(J30/Inputs!D$19,2)","v":1.1200000000000001},669,null,null,{"$f":"ROUND((IF('Crop 1'!$C$40=Carbon!$B30,'Crop 1'!$V$40,0)+IF('Crop 1'!$C$41=Carbon!$B30,'Crop 1'!$V$41,0)+IF('Crop 1'!$C$42=Carbon!$B30,'Crop 1'!$V$42,0)+IF('Crop 1'!$C$43=Carbon!$B30,'Crop 1'!$V$43,0))*$AL$23*VLOOKUP(VLOOKUP(B30,Defaults!$T$39:$W$41,4,FALSE),Carbon!$AH$4:$AI$10,2,FALSE),2)","v":1.74},{"$f":"M30*Inputs!$D$13","v":522},{"$f":"ROUND((IF('Crop 2'!$C$40=Carbon!$B30,'Crop 2'!$V$40,0)+IF('Crop 2'!$C$41=Carbon!$B30,'Crop 2'!$V$41,0)+IF('Crop 2'!$C$42=Carbon!$B30,'Crop 2'!$V$42,0)+IF('Crop 2'!$C$43=Carbon!$B30,'Crop 2'!$V$43,0))*$AL$23*VLOOKUP(VLOOKUP(B30,Defaults!$T$39:$W$41,4,FALSE),Carbon!$AH$4:$AI$10,2,FALSE),2)","v":0},{"$f":"O30*Inputs!$D$15","v":0},{"$f":"ROUND((IF('Crop 3'!$C$40=Carbon!$B30,'Crop 3'!$V$40,0)+IF('Crop 3'!$C$41=Carbon!$B30,'Crop 3'!$V$41,0)+IF('Crop 3'!$C$42=Carbon!$B30,'Crop 3'!$V$42,0)+IF('Crop 3'!$C$43=Carbon!$B30,'Crop 3'!$V$43,0))*$AL$23*VLOOKUP(VLOOKUP(B30,Defaults!$T$39:$W$41,4,FALSE),Carbon!$AH$4:$AI$10,2,FALSE),2)","v":0},{"$f":"Q30*Inputs!$D$17","v":0},{"$f":"ROUND(T30/Inputs!D$19,2)","v":0.87},522,null,null,-0.49,-147,0,0,0,0,{"$f":"ROUND(AD30/Inputs!D$19,2)","v":-0.25},-147,null,null,null,null,null,null,"O = 15.999"]
[null,{"$f":"Defaults!T41","v":"Prep"},{"$f":"ROUND((IF('Crop 1'!$C$40=Carbon!$B31,'Crop 1'!$L$40,0)+IF('Crop 1'!$C$41=Carbon!$B31,'Crop 1'!$L$41,0)+IF('Crop 1'!$C$42=Carbon!$B31,'Crop 1'!$L$42,0)+IF('Crop 1'!$C$43=Carbon!$B31,'Crop 1'!$L$43,0))*$AL$23*VLOOKUP(VLOOKUP(B31,Defaults!$T$39:$W$41,4,FALSE),Carbon!$AH$4:$AI$10,2,FALSE),2)","v":6.06},{"$f":"C31*Inputs!$D$13","v":1817.9999999999998},{"$f":"ROUND((IF('Crop 2'!$C$40=Carbon!$B31,'Crop 2'!$L$40,0)+IF('Crop 2'!$C$41=Carbon!$B31,'Crop 2'!$L$41,0)+IF('Crop 2'!$C$42=Carbon!$B31,'Crop 2'!$L$42,0)+IF('Crop 2'!$C$43=Carbon!$B31,'Crop 2'!$L$43,0))*$AL$23*VLOOKUP(VLOOKUP(B31,Defaults!$T$39:$W$41,4,FALSE),Carbon!$AH$4:$AI$10,2,FALSE),2)","v":0},{"$f":"E31*Inputs!$D$15","v":0},{"$f":"ROUND((IF('Crop 3'!$C$40=Carbon!$B31,'Crop 3'!$L$40,0)+IF('Crop 3'!$C$41=Carbon!$B31,'Crop 3'!$L$41,0)+IF('Crop 3'!$C$42=Carbon!$B31,'Crop 3'!$L$42,0)+IF('Crop 3'!$C$43=Carbon!$B31,'Crop 3'!$L$43,0))*$AL$23*VLOOKUP(VLOOKUP(B31,Defaults!$T$39:$W$41,4,FALSE),Carbon!$AH$4:$AI$10,2,FALSE),2)","v":0},{"$f":"G31*Inputs!$D$17","v":0},{"$f":"ROUND(J31/Inputs!D$19,2)","v":3.03},1818,null,null,{"$f":"ROUND((IF('Crop 1'!$C$40=Carbon!$B31,'Crop 1'!$V$40,0)+IF('Crop 1'!$C$41=Carbon!$B31,'Crop 1'!$V$41,0)+IF('Crop 1'!$C$42=Carbon!$B31,'Crop 1'!$V$42,0)+IF('Crop 1'!$C$43=Carbon!$B31,'Crop 1'!$V$43,0))*$AL$23*VLOOKUP(VLOOKUP(B31,Defaults!$T$39:$W$41,4,FALSE),Carbon!$AH$4:$AI$10,2,FALSE),2)","v":4.72},{"$f":"M31*Inputs!$D$13","v":1416},{"$f":"ROUND((IF('Crop 2'!$C$40=Carbon!$B31,'Crop 2'!$V$40,0)+IF('Crop 2'!$C$41=Carbon!$B31,'Crop 2'!$V$41,0)+IF('Crop 2'!$C$42=Carbon!$B31,'Crop 2'!$V$42,0)+IF('Crop 2'!$C$43=Carbon!$B31,'Crop 2'!$V$43,0))*$AL$23*VLOOKUP(VLOOKUP(B31,Defaults!$T$39:$W$41,4,FALSE),Carbon!$AH$4:$AI$10,2,FALSE),2)","v":0},{"$f":"O31*Inputs!$D$15","v":0},{"$f":"ROUND((IF('Crop 3'!$C$40=Carbon!$B31,'Crop 3'!$V$40,0)+IF('Crop 3'!$C$41=Carbon!$B31,'Crop 3'!$V$41,0)+IF('Crop 3'!$C$42=Carbon!$B31,'Crop 3'!$V$42,0)+IF('Crop 3'!$C$43=Carbon!$B31,'Crop 3'!$V$43,0))*$AL$23*VLOOKUP(VLOOKUP(B31,Defaults!$T$39:$W$41,4,FALSE),Carbon!$AH$4:$AI$10,2,FALSE),2)","v":0},{"$f":"Q31*Inputs!$D$17","v":0},{"$f":"ROUND(T31/Inputs!D$19,2)","v":2.36},1416,null,null,-1.3399999999999999,-401.99999999999977,0,0,0,0,{"$f":"ROUND(AD31/Inputs!D$19,2)","v":-0.67},-402]
[null,"Growth Regulator",{"$f":"ROUND(SUM(C33:C33),2)","v":7.01},{"$f":"C32*Inputs!$D$13","v":2103},{"$f":"ROUND(SUM(E33:E33),2)","v":0},{"$f":"E32*Inputs!$D$15","v":0},{"$f":"ROUND(SUM(G33:G33),2)","v":0},{"$f":"G32*Inputs!$D$17","v":0},{"$f":"ROUND(J32/Inputs!D$19,2)","v":3.51},2103,null,null,{"$f":"ROUND(SUM(M33:M33),2)","v":5.46},{"$f":"M32*Inputs!$D$13","v":1638},{"$f":"ROUND(SUM(O33:O33),2)","v":0},{"$f":"O32*Inputs!$D$15","v":0},{"$f":"ROUND(SUM(Q33:Q33),2)","v":0},{"$f":"Q32*Inputs!$D$17","v":0},{"$f":"ROUND(T32/Inputs!D$19,2)","v":2.73},1638,null,null,-1.5499999999999998,-465,0,0,0,0,{"$f":"ROUND(AD32/Inputs!D$19,2)","v":-0.78},-465,null,null,null,null,null,null,"Ammonium Sulfate (NH4)2SO4"]
[null,{"$f":"Defaults!T46","v":"Mepex"},{"$f":"ROUND((IF('Crop 1'!$C$45=Carbon!$B33,'Crop 1'!$L$45,0)+IF('Crop 1'!$C$46=Carbon!$B33,'Crop 1'!$L$46,0))*$AL$23*VLOOKUP(VLOOKUP(B33,Defaults!$T$46:$W$46,4,FALSE),Carbon!$AH$4:$AI$10,2,FALSE),2)","v":7.01},{"$f":"C33*Inputs!$D$13","v":2103},{"$f":"ROUND((IF('Crop 2'!$C$45=Carbon!$B33,'Crop 2'!$L$45,0)+IF('Crop 2'!$C$46=Carbon!$B33,'Crop 2'!$L$46,0))*$AL$23*VLOOKUP(VLOOKUP(B33,Defaults!$T$46:$W$46,4,FALSE),Carbon!$AH$4:$AI$10,2,FALSE),2)","v":0},{"$f":"E33*Inputs!$D$15","v":0},{"$f":"ROUND((IF('Crop 3'!$C$45=Carbon!$B33,'Crop 3'!$L$45,0)+IF('Crop 3'!$C$46=Carbon!$B33,'Crop 3'!$L$46,0))*$AL$23*VLOOKUP(VLOOKUP(B33,Defaults!$T$46:$W$46,4,FALSE),Carbon!$AH$4:$AI$10,2,FALSE),2)","v":0},{"$f":"G33*Inputs!$D$17","v":0},{"$f":"ROUND(J33/Inputs!D$19,2)","v":3.51},2103,null,null,{"$f":"ROUND((IF('Crop 1'!$C$45=Carbon!$B33,'Crop 1'!$V$45,0)+IF('Crop 1'!$C$46=Carbon!$B33,'Crop 1'!$V$46,0))*$AL$23*VLOOKUP(VLOOKUP(B33,Defaults!$T$46:$W$46,4,FALSE),Carbon!$AH$4:$AI$10,2,FALSE),2)","v":5.46},{"$f":"M33*Inputs!$D$13","v":1638},{"$f":"ROUND((IF('Crop 2'!$C$45=Carbon!$B33,'Crop 2'!$V$45,0)+IF('Crop 2'!$C$46=Carbon!$B33,'Crop 2'!$V$46,0))*$AL$23*VLOOKUP(VLOOKUP(B33,Defaults!$T$46:$W$46,4,FALSE),Carbon!$AH$4:$AI$10,2,FALSE),2)","v":0},{"$f":"O33*Inputs!$D$15","v":0},{"$f":"ROUND((IF('Crop 3'!$C$45=Carbon!$B33,'Crop 3'!$V$45,0)+IF('Crop 3'!$C$46=Carbon!$B33,'Crop 3'!$V$46,0))*$AL$23*VLOOKUP(VLOOKUP(B33,Defaults!$T$46:$W$46,4,FALSE),Carbon!$AH$4:$AI$10,2,FALSE),2)","v":0},{"$f":"Q33*Inputs!$D$17","v":0},{"$f":"ROUND(T33/Inputs!D$19,2)","v":2.73},1638,null,null,-1.5499999999999998,-465,0,0,0,0,{"$f":"ROUND(AD33/Inputs!D$19,2)","v":-0.78},-465,null,null,null,null,null,null,"N = 14.007",{"$f":"14.007/(14.007+4*1.008+2*(32.06+4*15.999))","v":6.6652073984896573E-2}]
[null,"Fungicide",{"$f":"ROUND(SUM(C35:C35),2)","v":0},{"$f":"C34*Inputs!$D$13","v":0},{"$f":"ROUND(SUM(E35:E35),2)","v":1.48},{"$f":"E34*Inputs!$D$15","v":296},{"$f":"ROUND(SUM(G35:G35),2)","v":0},{"$f":"G34*Inputs!$D$17","v":0},{"$f":"ROUND(J34/Inputs!D$19,2)","v":0.49},296,null,null,{"$f":"ROUND(SUM(M35:M35),2)","v":0},{"$f":"M34*Inputs!$D$13","v":0},{"$f":"ROUND(SUM(O35:O35),2)","v":1.1599999999999999},{"$f":"O34*Inputs!$D$15","v":231.99999999999997},{"$f":"ROUND(SUM(Q35:Q35),2)","v":0},{"$f":"Q34*Inputs!$D$17","v":0},{"$f":"ROUND(T34/Inputs!D$19,2)","v":0.39},232,null,null,0,0,-0.32000000000000006,-64.000000000000028,0,0,{"$f":"ROUND(AD34/Inputs!D$19,2)","v":-0.11},-64,null,null,null,null,null,null,"H = 1.008"]
[null,{"$f":"Defaults!T51","v":"Quadris Top"},{"$f":"ROUND((IF('Crop 1'!$C$45=Carbon!$B35,'Crop 1'!$L$45,0)+IF('Crop 1'!$C$46=Carbon!$B35,'Crop 1'!$L$46,0))*$AL$22*VLOOKUP(VLOOKUP(B35,Defaults!$T$51:$W$51,4,FALSE),Carbon!$AH$4:$AI$10,2,FALSE),2)","v":0},{"$f":"C35*Inputs!$D$13","v":0},{"$f":"ROUND((IF('Crop 2'!$C$45=Carbon!$B35,'Crop 2'!$L$45,0)+IF('Crop 2'!$C$46=Carbon!$B35,'Crop 2'!$L$46,0))*$AL$22*VLOOKUP(VLOOKUP(B35,Defaults!$T$51:$W$51,4,FALSE),Carbon!$AH$4:$AI$10,2,FALSE),2)","v":1.48},{"$f":"E35*Inputs!$D$15","v":296},{"$f":"ROUND((IF('Crop 3'!$C$45=Carbon!$B35,'Crop 3'!$L$45,0)+IF('Crop 3'!$C$46=Carbon!$B35,'Crop 3'!$L$46,0))*$AL$22*VLOOKUP(VLOOKUP(B35,Defaults!$T$51:$W$51,4,FALSE),Carbon!$AH$4:$AI$10,2,FALSE),2)","v":0},{"$f":"G35*Inputs!$D$17","v":0},{"$f":"ROUND(J35/Inputs!D$19,2)","v":0.49},296,null,null,{"$f":"ROUND((IF('Crop 1'!$C$45=Carbon!$B35,'Crop 1'!$V$45,0)+IF('Crop 1'!$C$46=Carbon!$B35,'Crop 1'!$V$46,0))*$AL$22*VLOOKUP(VLOOKUP(B35,Defaults!$T$51:$W$51,4,FALSE),Carbon!$AH$4:$AI$10,2,FALSE),2)","v":0},{"$f":"M35*Inputs!$D$13","v":0},{"$f":"ROUND((IF('Crop 2'!$C$45=Carbon!$B35,'Crop 2'!$V$45,0)+IF('Crop 2'!$C$46=Carbon!$B35,'Crop 2'!$V$46,0))*$AL$22*VLOOKUP(VLOOKUP(B35,Defaults!$T$51:$W$51,4,FALSE),Carbon!$AH$4:$AI$10,2,FALSE),2)","v":1.1599999999999999},{"$f":"O35*Inputs!$D$15","v":231.99999999999997},{"$f":"ROUND((IF('Crop 3'!$C$45=Carbon!$B35,'Crop 3'!$V$45,0)+IF('Crop 3'!$C$46=Carbon!$B35,'Crop 3'!$V$46,0))*$AL$22*VLOOKUP(VLOOKUP(B35,Defaults!$T$51:$W$51,4,FALSE),Carbon!$AH$4:$AI$10,2,FALSE),2)","v":0},{"$f":"Q35*Inputs!$D$17","v":0},{"$f":"ROUND(T35/Inputs!D$19,2)","v":0.39},232,null,null,0,0,-0.32000000000000006,-64.000000000000028,0,0,{"$f":"ROUND(AD35/Inputs!D$19,2)","v":-0.11},-64,null,null,null,null,null,null,"S = 32.06",{"$f":"(2*32.06)/(14.007+4*1.008+2*(32.06+4*15.999))","v":0.30511394187988639}]
[null,"Herbicide (lbs)",{"$f":"ROUND(SUM(C37:C165),2)","v":59.43},{"$f":"C36*Inputs!$D$13","v":17829},{"$f":"ROUND(SUM(E37:E165),2)","v":13.6},{"$f":"E36*Inputs!$D$15","v":2720},{"$f":"ROUND(SUM(G37:G165),2)","v":10.41},{"$f":"G36*Inputs!$D$17","v":1041},{"$f":"ROUND(J36/Inputs!D$19,2)","v":35.979999999999997},21590,null,null,{"$f":"ROUND(SUM(M37:M165),2)","v":47.73},{"$f":"M36*Inputs!$D$13","v":14318.999999999998},{"$f":"ROUND(SUM(O37:O165),2)","v":10.6},{"$f":"O36*Inputs!$D$15","v":2120},{"$f":"ROUND(SUM(Q37:Q165),2)","v":8.1300000000000008},{"$f":"Q36*Inputs!$D$17","v":813.00000000000011},{"$f":"ROUND(T36/Inputs!D$19,2)","v":28.75},17252,null,null,-11.700000000000003,-3510.0000000000018,-3,-600,-2.2799999999999994,-227.99999999999989,{"$f":"ROUND(AD36/Inputs!D$19,2)","v":-7.23},{"$f":"ROUND(X36+Z36+AB36,2)","v":-4338}]
[null,{"$f":"Defaults!AH3","v":"2,4-D"},{"$f":"ROUND((IF('Crop 1'!$C$14=Carbon!$B37,'Crop 1'!$L$14*VLOOKUP('Crop 1'!$E$14,Carbon!$AH$4:$AI$10,2,FALSE),0)+IF('Crop 1'!$C$15=Carbon!$B37,'Crop 1'!$L$15*VLOOKUP('Crop 1'!$E$15,Carbon!$AH$4:$AI$10,2,FALSE),0)+IF('Crop 1'!$C$16=Carbon!$B37,'Crop 1'!$L$16*VLOOKUP('Crop 1'!$E$16,Carbon!$AH$4:$AI$10,2,FALSE),0)+IF('Crop 1'!$C$19=Carbon!$B37,'Crop 1'!$L$19*VLOOKUP('Crop 1'!$E$19,Carbon!$AH$4:$AI$10,2,FALSE),0)+IF('Crop 1'!$C$20=Carbon!$B37,'Crop 1'!$L$20*VLOOKUP('Crop 1'!$E$20,Carbon!$AH$4:$AI$10,2,FALSE),0)+IF('Crop 1'!$C$21=Carbon!$B37,'Crop 1'!$L$21*VLOOKUP('Crop 1'!$E$21,Carbon!$AH$4:$AI$10,2,FALSE),0)+IF('Crop 1'!$C$49=Carbon!$B37,'Crop 1'!$L$49*VLOOKUP('Crop 1'!$E$49,Carbon!$AH$4:$AI$10,2,FALSE),0)+IF('Crop 1'!$C$50=Carbon!$B37,'Crop 1'!$L$50*VLOOKUP('Crop 1'!$E$50,Carbon!$AH$4:$AI$10,2,FALSE),0)+IF('Crop 1'!$C$51=Carbon!$B37,'Crop 1'!$L$51*VLOOKUP('Crop 1'!$E$51,Carbon!$AH$4:$AI$10,2,FALSE),0)+IF('Crop 1'!$C$52=Carbon!$B37,'Crop 1'!$L$52*VLOOKUP('Crop 1'!$E$52,Carbon!$AH$4:$AI$10,2,FALSE),0)+IF('Crop 1'!$C$53=Carbon!$B37,'Crop 1'!$L$53*VLOOKUP('Crop 1'!$E$53,Carbon!$AH$4:$AI$10,2,FALSE),0)+IF('Crop 1'!$C$56=Carbon!$B37,'Crop 1'!$L$56*VLOOKUP('Crop 1'!$E$56,Carbon!$AH$4:$AI$10,2,FALSE),0)+IF('Crop 1'!$C$57=Carbon!$B37,'Crop 1'!$L$57*VLOOKUP('Crop 1'!$E$57,Carbon!$AH$4:$AI$10,2,FALSE),0)+IF('Crop 1'!$C$58=Carbon!$B37,'Crop 1'!$L$58*VLOOKUP('Crop 1'!$E$58,Carbon!$AH$4:$AI$10,2,FALSE),0)+IF('Crop 1'!$C$59=Carbon!$B37,'Crop 1'!$L$59*VLOOKUP('Crop 1'!$E$59,Carbon!$AH$4:$AI$10,2,FALSE),0)+IF('Crop 1'!$C$62=Carbon!$B37,'Crop 1'!$L$62*VLOOKUP('Crop 1'!$E$62,Carbon!$AH$4:$AI$10,2,FALSE),0)+IF('Crop 1'!$C$63=Carbon!$B37,'Crop 1'!$L$63*VLOOKUP('Crop 1'!$E$63,Carbon!$AH$4:$AI$10,2,FALSE),0)+IF('Crop 1'!$C$64=Carbon!$B37,'Crop 1'!$L$64*VLOOKUP('Crop 1'!$E$64,Carbon!$AH$4:$AI$10,2,FALSE),0)+IF('Crop 1'!$C$65=Carbon!$B37,'Crop 1'!$L$65*VLOOKUP('Crop 1'!$E$65,Carbon!$AH$4:$AI$10,2,FALSE),0))*$AL$20,2)","v":0},{"$f":"C37*Inputs!$D$13","v":0},{"$f":"ROUND((IF('Crop 2'!$C$14=Carbon!$B37,'Crop 2'!$L$14*VLOOKUP('Crop 2'!$E$14,Carbon!$AH$4:$AI$10,2,FALSE),0)+IF('Crop 2'!$C$15=Carbon!$B37,'Crop 2'!$L$15*VLOOKUP('Crop 2'!$E$15,Carbon!$AH$4:$AI$10,2,FALSE),0)+IF('Crop 2'!$C$16=Carbon!$B37,'Crop 2'!$L$16*VLOOKUP('Crop 2'!$E$16,Carbon!$AH$4:$AI$10,2,FALSE),0)+IF('Crop 2'!$C$19=Carbon!$B37,'Crop 2'!$L$19*VLOOKUP('Crop 2'!$E$19,Carbon!$AH$4:$AI$10,2,FALSE),0)+IF('Crop 2'!$C$20=Carbon!$B37,'Crop 2'!$L$20*VLOOKUP('Crop 2'!$E$20,Carbon!$AH$4:$AI$10,2,FALSE),0)+IF('Crop 2'!$C$21=Carbon!$B37,'Crop 2'!$L$21*VLOOKUP('Crop 2'!$E$21,Carbon!$AH$4:$AI$10,2,FALSE),0)+IF('Crop 2'!$C$49=Carbon!$B37,'Crop 2'!$L$49*VLOOKUP('Crop 2'!$E$49,Carbon!$AH$4:$AI$10,2,FALSE),0)+IF('Crop 2'!$C$50=Carbon!$B37,'Crop 2'!$L$50*VLOOKUP('Crop 2'!$E$50,Carbon!$AH$4:$AI$10,2,FALSE),0)+IF('Crop 2'!$C$51=Carbon!$B37,'Crop 2'!$L$51*VLOOKUP('Crop 2'!$E$51,Carbon!$AH$4:$AI$10,2,FALSE),0)+IF('Crop 2'!$C$52=Carbon!$B37,'Crop 2'!$L$52*VLOOKUP('Crop 2'!$E$52,Carbon!$AH$4:$AI$10,2,FALSE),0)+IF('Crop 2'!$C$53=Carbon!$B37,'Crop 2'!$L$53*VLOOKUP('Crop 2'!$E$53,Carbon!$AH$4:$AI$10,2,FALSE),0)+IF('Crop 2'!$C$56=Carbon!$B37,'Crop 2'!$L$56*VLOOKUP('Crop 2'!$E$56,Carbon!$AH$4:$AI$10,2,FALSE),0)+IF('Crop 2'!$C$57=Carbon!$B37,'Crop 2'!$L$57*VLOOKUP('Crop 2'!$E$57,Carbon!$AH$4:$AI$10,2,FALSE),0)+IF('Crop 2'!$C$58=Carbon!$B37,'Crop 2'!$L$58*VLOOKUP('Crop 2'!$E$58,Carbon!$AH$4:$AI$10,2,FALSE),0)+IF('Crop 2'!$C$59=Carbon!$B37,'Crop 2'!$L$59*VLOOKUP('Crop 2'!$E$59,Carbon!$AH$4:$AI$10,2,FALSE),0)+IF('Crop 2'!$C$62=Carbon!$B37,'Crop 2'!$L$62*VLOOKUP('Crop 2'!$E$62,Carbon!$AH$4:$AI$10,2,FALSE),0)+IF('Crop 2'!$C$63=Carbon!$B37,'Crop 2'!$L$63*VLOOKUP('Crop 2'!$E$63,Carbon!$AH$4:$AI$10,2,FALSE),0)+IF('Crop 2'!$C$64=Carbon!$B37,'Crop 2'!$L$64*VLOOKUP('Crop 2'!$E$64,Carbon!$AH$4:$AI$10,2,FALSE),0)+IF('Crop 2'!$C$65=Carbon!$B37,'Crop 2'!$L$65*VLOOKUP('Crop 2'!$E$65,Carbon!$AH$4:$AI$10,2,FALSE),0))*$AL$20,2)","v":6.66},{"$f":"E37*Inputs!$D$15","v":1332},{"$f":"ROUND((IF('Crop 3'!$C$14=Carbon!$B37,'Crop 3'!$L$14*VLOOKUP('Crop 3'!$E$14,Carbon!$AH$4:$AI$10,2,FALSE),0)+IF('Crop 3'!$C$15=Carbon!$B37,'Crop 3'!$L$15*VLOOKUP('Crop 3'!$E$15,Carbon!$AH$4:$AI$10,2,FALSE),0)+IF('Crop 3'!$C$16=Carbon!$B37,'Crop 3'!$L$16*VLOOKUP('Crop 3'!$E$16,Carbon!$AH$4:$AI$10,2,FALSE),0)+IF('Crop 3'!$C$19=Carbon!$B37,'Crop 3'!$L$19*VLOOKUP('Crop 3'!$E$19,Carbon!$AH$4:$AI$10,2,FALSE),0)+IF('Crop 3'!$C$20=Carbon!$B37,'Crop 3'!$L$20*VLOOKUP('Crop 3'!$E$20,Carbon!$AH$4:$AI$10,2,FALSE),0)+IF('Crop 3'!$C$21=Carbon!$B37,'Crop 3'!$L$21*VLOOKUP('Crop 3'!$E$21,Carbon!$AH$4:$AI$10,2,FALSE),0)+IF('Crop 3'!$C$49=Carbon!$B37,'Crop 3'!$L$49*VLOOKUP('Crop 3'!$E$49,Carbon!$AH$4:$AI$10,2,FALSE),0)+IF('Crop 3'!$C$50=Carbon!$B37,'Crop 3'!$L$50*VLOOKUP('Crop 3'!$E$50,Carbon!$AH$4:$AI$10,2,FALSE),0)+IF('Crop 3'!$C$51=Carbon!$B37,'Crop 3'!$L$51*VLOOKUP('Crop 3'!$E$51,Carbon!$AH$4:$AI$10,2,FALSE),0)+IF('Crop 3'!$C$52=Carbon!$B37,'Crop 3'!$L$52*VLOOKUP('Crop 3'!$E$52,Carbon!$AH$4:$AI$10,2,FALSE),0)+IF('Crop 3'!$C$53=Carbon!$B37,'Crop 3'!$L$53*VLOOKUP('Crop 3'!$E$53,Carbon!$AH$4:$AI$10,2,FALSE),0)+IF('Crop 3'!$C$56=Carbon!$B37,'Crop 3'!$L$56*VLOOKUP('Crop 3'!$E$56,Carbon!$AH$4:$AI$10,2,FALSE),0)+IF('Crop 3'!$C$57=Carbon!$B37,'Crop 3'!$L$57*VLOOKUP('Crop 3'!$E$57,Carbon!$AH$4:$AI$10,2,FALSE),0)+IF('Crop 3'!$C$58=Carbon!$B37,'Crop 3'!$L$58*VLOOKUP('Crop 3'!$E$58,Carbon!$AH$4:$AI$10,2,FALSE),0)+IF('Crop 3'!$C$59=Carbon!$B37,'Crop 3'!$L$59*VLOOKUP('Crop 3'!$E$59,Carbon!$AH$4:$AI$10,2,FALSE),0)+IF('Crop 3'!$C$62=Carbon!$B37,'Crop 3'!$L$62*VLOOKUP('Crop 3'!$E$62,Carbon!$AH$4:$AI$10,2,FALSE),0)+IF('Crop 3'!$C$63=Carbon!$B37,'Crop 3'!$L$63*VLOOKUP('Crop 3'!$E$63,Carbon!$AH$4:$AI$10,2,FALSE),0)+IF('Crop 3'!$C$64=Carbon!$B37,'Crop 3'!$L$64*VLOOKUP('Crop 3'!$E$64,Carbon!$AH$4:$AI$10,2,FALSE),0)+IF('Crop 3'!$C$65=Carbon!$B37,'Crop 3'!$L$65*VLOOKUP('Crop 3'!$E$65,Carbon!$AH$4:$AI$10,2,FALSE),0))*$AL$20,2)","v":3.47},{"$f":"G37*Inputs!$D$17","v":347},{"$f":"ROUND(J37/Inputs!D$19,2)","v":2.8},1679,null,null,{"$f":"ROUND((IF('Crop 1'!$C$14=Carbon!$B37,'Crop 1'!$V$14*VLOOKUP('Crop 1'!$E$14,Carbon!$AH$4:$AI$10,2,FALSE),0)+IF('Crop 1'!$C$15=Carbon!$B37,'Crop 1'!$V$15*VLOOKUP('Crop 1'!$E$15,Carbon!$AH$4:$AI$10,2,FALSE),0)+IF('Crop 1'!$C$16=Carbon!$B37,'Crop 1'!$V$16*VLOOKUP('Crop 1'!$E$16,Carbon!$AH$4:$AI$10,2,FALSE),0)+IF('Crop 1'!$C$19=Carbon!$B37,'Crop 1'!$V$19*VLOOKUP('Crop 1'!$E$19,Carbon!$AH$4:$AI$10,2,FALSE),0)+IF('Crop 1'!$C$20=Carbon!$B37,'Crop 1'!$V$20*VLOOKUP('Crop 1'!$E$20,Carbon!$AH$4:$AI$10,2,FALSE),0)+IF('Crop 1'!$C$21=Carbon!$B37,'Crop 1'!$V$21*VLOOKUP('Crop 1'!$E$21,Carbon!$AH$4:$AI$10,2,FALSE),0)+IF('Crop 1'!$C$49=Carbon!$B37,'Crop 1'!$V$49*VLOOKUP('Crop 1'!$E$49,Carbon!$AH$4:$AI$10,2,FALSE),0)+IF('Crop 1'!$C$50=Carbon!$B37,'Crop 1'!$V$50*VLOOKUP('Crop 1'!$E$50,Carbon!$AH$4:$AI$10,2,FALSE),0)+IF('Crop 1'!$C$51=Carbon!$B37,'Crop 1'!$V$51*VLOOKUP('Crop 1'!$E$51,Carbon!$AH$4:$AI$10,2,FALSE),0)+IF('Crop 1'!$C$52=Carbon!$B37,'Crop 1'!$V$52*VLOOKUP('Crop 1'!$E$52,Carbon!$AH$4:$AI$10,2,FALSE),0)+IF('Crop 1'!$C$53=Carbon!$B37,'Crop 1'!$V$53*VLOOKUP('Crop 1'!$E$53,Carbon!$AH$4:$AI$10,2,FALSE),0)+IF('Crop 1'!$C$56=Carbon!$B37,'Crop 1'!$V$56*VLOOKUP('Crop 1'!$E$56,Carbon!$AH$4:$AI$10,2,FALSE),0)+IF('Crop 1'!$C$57=Carbon!$B37,'Crop 1'!$V$57*VLOOKUP('Crop 1'!$E$57,Carbon!$AH$4:$AI$10,2,FALSE),0)+IF('Crop 1'!$C$58=Carbon!$B37,'Crop 1'!$V$58*VLOOKUP('Crop 1'!$E$58,Carbon!$AH$4:$AI$10,2,FALSE),0)+IF('Crop 1'!$C$59=Carbon!$B37,'Crop 1'!$V$59*VLOOKUP('Crop 1'!$E$59,Carbon!$AH$4:$AI$10,2,FALSE),0)+IF('Crop 1'!$C$62=Carbon!$B37,'Crop 1'!$V$62*VLOOKUP('Crop 1'!$E$62,Carbon!$AH$4:$AI$10,2,FALSE),0)+IF('Crop 1'!$C$63=Carbon!$B37,'Crop 1'!$V$63*VLOOKUP('Crop 1'!$E$63,Carbon!$AH$4:$AI$10,2,FALSE),0)+IF('Crop 1'!$C$64=Carbon!$B37,'Crop 1'!$V$64*VLOOKUP('Crop 1'!$E$64,Carbon!$AH$4:$AI$10,2,FALSE),0)+IF('Crop 1'!$C$65=Carbon!$B37,'Crop 1'!$V$65*VLOOKUP('Crop 1'!$E$65,Carbon!$AH$4:$AI$10,2,FALSE),0))*$AL$20,2)","v":0},{"$f":"M37*Inputs!$D$13","v":0},{"$f":"ROUND((IF('Crop 2'!$C$14=Carbon!$B37,'Crop 2'!$V$14*VLOOKUP('Crop 2'!$E$14,Carbon!$AH$4:$AI$10,2,FALSE),0)+IF('Crop 2'!$C$15=Carbon!$B37,'Crop 2'!$V$15*VLOOKUP('Crop 2'!$E$15,Carbon!$AH$4:$AI$10,2,FALSE),0)+IF('Crop 2'!$C$16=Carbon!$B37,'Crop 2'!$V$16*VLOOKUP('Crop 2'!$E$16,Carbon!$AH$4:$AI$10,2,FALSE),0)+IF('Crop 2'!$C$19=Carbon!$B37,'Crop 2'!$V$19*VLOOKUP('Crop 2'!$E$19,Carbon!$AH$4:$AI$10,2,FALSE),0)+IF('Crop 2'!$C$20=Carbon!$B37,'Crop 2'!$V$20*VLOOKUP('Crop 2'!$E$20,Carbon!$AH$4:$AI$10,2,FALSE),0)+IF('Crop 2'!$C$21=Carbon!$B37,'Crop 2'!$V$21*VLOOKUP('Crop 2'!$E$21,Carbon!$AH$4:$AI$10,2,FALSE),0)+IF('Crop 2'!$C$49=Carbon!$B37,'Crop 2'!$V$49*VLOOKUP('Crop 2'!$E$49,Carbon!$AH$4:$AI$10,2,FALSE),0)+IF('Crop 2'!$C$50=Carbon!$B37,'Crop 2'!$V$50*VLOOKUP('Crop 2'!$E$50,Carbon!$AH$4:$AI$10,2,FALSE),0)+IF('Crop 2'!$C$51=Carbon!$B37,'Crop 2'!$V$51*VLOOKUP('Crop 2'!$E$51,Carbon!$AH$4:$AI$10,2,FALSE),0)+IF('Crop 2'!$C$52=Carbon!$B37,'Crop 2'!$V$52*VLOOKUP('Crop 2'!$E$52,Carbon!$AH$4:$AI$10,2,FALSE),0)+IF('Crop 2'!$C$53=Carbon!$B37,'Crop 2'!$V$53*VLOOKUP('Crop 2'!$E$53,Carbon!$AH$4:$AI$10,2,FALSE),0)+IF('Crop 2'!$C$56=Carbon!$B37,'Crop 2'!$V$56*VLOOKUP('Crop 2'!$E$56,Carbon!$AH$4:$AI$10,2,FALSE),0)+IF('Crop 2'!$C$57=Carbon!$B37,'Crop 2'!$V$57*VLOOKUP('Crop 2'!$E$57,Carbon!$AH$4:$AI$10,2,FALSE),0)+IF('Crop 2'!$C$58=Carbon!$B37,'Crop 2'!$V$58*VLOOKUP('Crop 2'!$E$58,Carbon!$AH$4:$AI$10,2,FALSE),0)+IF('Crop 2'!$C$59=Carbon!$B37,'Crop 2'!$V$59*VLOOKUP('Crop 2'!$E$59,Carbon!$AH$4:$AI$10,2,FALSE),0)+IF('Crop 2'!$C$62=Carbon!$B37,'Crop 2'!$V$62*VLOOKUP('Crop 2'!$E$62,Carbon!$AH$4:$AI$10,2,FALSE),0)+IF('Crop 2'!$C$63=Carbon!$B37,'Crop 2'!$V$63*VLOOKUP('Crop 2'!$E$63,Carbon!$AH$4:$AI$10,2,FALSE),0)+IF('Crop 2'!$C$64=Carbon!$B37,'Crop 2'!$V$64*VLOOKUP('Crop 2'!$E$64,Carbon!$AH$4:$AI$10,2,FALSE),0)+IF('Crop 2'!$C$65=Carbon!$B37,'Crop 2'!$V$65*VLOOKUP('Crop 2'!$E$65,Carbon!$AH$4:$AI$10,2,FALSE),0))*$AL$20,2)","v":5.19},{"$f":"O37*Inputs!$D$15","v":1038},{"$f":"ROUND((IF('Crop 3'!$C$14=Carbon!$B37,'Crop 3'!$V$14*VLOOKUP('Crop 3'!$E$14,Carbon!$AH$4:$AI$10,2,FALSE),0)+IF('Crop 3'!$C$15=Carbon!$B37,'Crop 3'!$V$15*VLOOKUP('Crop 3'!$E$15,Carbon!$AH$4:$AI$10,2,FALSE),0)+IF('Crop 3'!$C$16=Carbon!$B37,'Crop 3'!$V$16*VLOOKUP('Crop 3'!$E$16,Carbon!$AH$4:$AI$10,2,FALSE),0)+IF('Crop 3'!$C$19=Carbon!$B37,'Crop 3'!$V$19*VLOOKUP('Crop 3'!$E$19,Carbon!$AH$4:$AI$10,2,FALSE),0)+IF('Crop 3'!$C$20=Carbon!$B37,'Crop 3'!$V$20*VLOOKUP('Crop 3'!$E$20,Carbon!$AH$4:$AI$10,2,FALSE),0)+IF('Crop 3'!$C$21=Carbon!$B37,'Crop 3'!$V$21*VLOOKUP('Crop 3'!$E$21,Carbon!$AH$4:$AI$10,2,FALSE),0)+IF('Crop 3'!$C$49=Carbon!$B37,'Crop 3'!$V$49*VLOOKUP('Crop 3'!$E$49,Carbon!$AH$4:$AI$10,2,FALSE),0)+IF('Crop 3'!$C$50=Carbon!$B37,'Crop 3'!$V$50*VLOOKUP('Crop 3'!$E$50,Carbon!$AH$4:$AI$10,2,FALSE),0)+IF('Crop 3'!$C$51=Carbon!$B37,'Crop 3'!$V$51*VLOOKUP('Crop 3'!$E$51,Carbon!$AH$4:$AI$10,2,FALSE),0)+IF('Crop 3'!$C$52=Carbon!$B37,'Crop 3'!$V$52*VLOOKUP('Crop 3'!$E$52,Carbon!$AH$4:$AI$10,2,FALSE),0)+IF('Crop 3'!$C$53=Carbon!$B37,'Crop 3'!$V$53*VLOOKUP('Crop 3'!$E$53,Carbon!$AH$4:$AI$10,2,FALSE),0)+IF('Crop 3'!$C$56=Carbon!$B37,'Crop 3'!$V$56*VLOOKUP('Crop 3'!$E$56,Carbon!$AH$4:$AI$10,2,FALSE),0)+IF('Crop 3'!$C$57=Carbon!$B37,'Crop 3'!$V$57*VLOOKUP('Crop 3'!$E$57,Carbon!$AH$4:$AI$10,2,FALSE),0)+IF('Crop 3'!$C$58=Carbon!$B37,'Crop 3'!$V$58*VLOOKUP('Crop 3'!$E$58,Carbon!$AH$4:$AI$10,2,FALSE),0)+IF('Crop 3'!$C$59=Carbon!$B37,'Crop 3'!$V$59*VLOOKUP('Crop 3'!$E$59,Carbon!$AH$4:$AI$10,2,FALSE),0)+IF('Crop 3'!$C$62=Carbon!$B37,'Crop 3'!$V$62*VLOOKUP('Crop 3'!$E$62,Carbon!$AH$4:$AI$10,2,FALSE),0)+IF('Crop 3'!$C$63=Carbon!$B37,'Crop 3'!$V$63*VLOOKUP('Crop 3'!$E$63,Carbon!$AH$4:$AI$10,2,FALSE),0)+IF('Crop 3'!$C$64=Carbon!$B37,'Crop 3'!$V$64*VLOOKUP('Crop 3'!$E$64,Carbon!$AH$4:$AI$10,2,FALSE),0)+IF('Crop 3'!$C$65=Carbon!$B37,'Crop 3'!$V$65*VLOOKUP('Crop 3'!$E$65,Carbon!$AH$4:$AI$10,2,FALSE),0))*$AL$20,2)","v":2.71},{"$f":"Q37*Inputs!$D$17","v":271},{"$f":"ROUND(T37/Inputs!D$19,2)","v":2.1800000000000002},1309,null,null,0,{"$f":"W37*Inputs!$D$13","v":0},{"$f":"O37-E37","v":-1.4699999999999998},{"$f":"Y37*Inputs!$D$13","v":-440.99999999999994},{"$f":"Q37-G37","v":-0.76000000000000023},{"$f":"AA37*Inputs!$D$13","v":-228.00000000000006},{"$f":"ROUND(AD37/Inputs!D$19,2)","v":-1.1200000000000001},-669]
[null,{"$f":"Defaults!AH4","v":"AAtrex"},{"$f":"ROUND((IF('Crop 1'!$C$14=Carbon!$B38,'Crop 1'!$L$14*VLOOKUP('Crop 1'!$E$14,Carbon!$AH$4:$AI$10,2,FALSE),0)+IF('Crop 1'!$C$15=Carbon!$B38,'Crop 1'!$L$15*VLOOKUP('Crop 1'!$E$15,Carbon!$AH$4:$AI$10,2,FALSE),0)+IF('Crop 1'!$C$16=Carbon!$B38,'Crop 1'!$L$16*VLOOKUP('Crop 1'!$E$16,Carbon!$AH$4:$AI$10,2,FALSE),0)+IF('Crop 1'!$C$19=Carbon!$B38,'Crop 1'!$L$19*VLOOKUP('Crop 1'!$E$19,Carbon!$AH$4:$AI$10,2,FALSE),0)+IF('Crop 1'!$C$20=Carbon!$B38,'Crop 1'!$L$20*VLOOKUP('Crop 1'!$E$20,Carbon!$AH$4:$AI$10,2,FALSE),0)+IF('Crop 1'!$C$21=Carbon!$B38,'Crop 1'!$L$21*VLOOKUP('Crop 1'!$E$21,Carbon!$AH$4:$AI$10,2,FALSE),0)+IF('Crop 1'!$C$49=Carbon!$B38,'Crop 1'!$L$49*VLOOKUP('Crop 1'!$E$49,Carbon!$AH$4:$AI$10,2,FALSE),0)+IF('Crop 1'!$C$50=Carbon!$B38,'Crop 1'!$L$50*VLOOKUP('Crop 1'!$E$50,Carbon!$AH$4:$AI$10,2,FALSE),0)+IF('Crop 1'!$C$51=Carbon!$B38,'Crop 1'!$L$51*VLOOKUP('Crop 1'!$E$51,Carbon!$AH$4:$AI$10,2,FALSE),0)+IF('Crop 1'!$C$52=Carbon!$B38,'Crop 1'!$L$52*VLOOKUP('Crop 1'!$E$52,Carbon!$AH$4:$AI$10,2,FALSE),0)+IF('Crop 1'!$C$53=Carbon!$B38,'Crop 1'!$L$53*VLOOKUP('Crop 1'!$E$53,Carbon!$AH$4:$AI$10,2,FALSE),0)+IF('Crop 1'!$C$56=Carbon!$B38,'Crop 1'!$L$56*VLOOKUP('Crop 1'!$E$56,Carbon!$AH$4:$AI$10,2,FALSE),0)+IF('Crop 1'!$C$57=Carbon!$B38,'Crop 1'!$L$57*VLOOKUP('Crop 1'!$E$57,Carbon!$AH$4:$AI$10,2,FALSE),0)+IF('Crop 1'!$C$58=Carbon!$B38,'Crop 1'!$L$58*VLOOKUP('Crop 1'!$E$58,Carbon!$AH$4:$AI$10,2,FALSE),0)+IF('Crop 1'!$C$59=Carbon!$B38,'Crop 1'!$L$59*VLOOKUP('Crop 1'!$E$59,Carbon!$AH$4:$AI$10,2,FALSE),0)+IF('Crop 1'!$C$62=Carbon!$B38,'Crop 1'!$L$62*VLOOKUP('Crop 1'!$E$62,Carbon!$AH$4:$AI$10,2,FALSE),0)+IF('Crop 1'!$C$63=Carbon!$B38,'Crop 1'!$L$63*VLOOKUP('Crop 1'!$E$63,Carbon!$AH$4:$AI$10,2,FALSE),0)+IF('Crop 1'!$C$64=Carbon!$B38,'Crop 1'!$L$64*VLOOKUP('Crop 1'!$E$64,Carbon!$AH$4:$AI$10,2,FALSE),0)+IF('Crop 1'!$C$65=Carbon!$B38,'Crop 1'!$L$65*VLOOKUP('Crop 1'!$E$65,Carbon!$AH$4:$AI$10,2,FALSE),0))*$AL$20,2)","v":0},{"$f":"C38*Inputs!$D$13","v":0},{"$f":"ROUND((IF('Crop 2'!$C$14=Carbon!$B38,'Crop 2'!$L$14*VLOOKUP('Crop 2'!$E$14,Carbon!$AH$4:$AI$10,2,FALSE),0)+IF('Crop 2'!$C$15=Carbon!$B38,'Crop 2'!$L$15*VLOOKUP('Crop 2'!$E$15,Carbon!$AH$4:$AI$10,2,FALSE),0)+IF('Crop 2'!$C$16=Carbon!$B38,'Crop 2'!$L$16*VLOOKUP('Crop 2'!$E$16,Carbon!$AH$4:$AI$10,2,FALSE),0)+IF('Crop 2'!$C$19=Carbon!$B38,'Crop 2'!$L$19*VLOOKUP('Crop 2'!$E$19,Carbon!$AH$4:$AI$10,2,FALSE),0)+IF('Crop 2'!$C$20=Carbon!$B38,'Crop 2'!$L$20*VLOOKUP('Crop 2'!$E$20,Carbon!$AH$4:$AI$10,2,FALSE),0)+IF('Crop 2'!$C$21=Carbon!$B38,'Crop 2'!$L$21*VLOOKUP('Crop 2'!$E$21,Carbon!$AH$4:$AI$10,2,FALSE),0)+IF('Crop 2'!$C$49=Carbon!$B38,'Crop 2'!$L$49*VLOOKUP('Crop 2'!$E$49,Carbon!$AH$4:$AI$10,2,FALSE),0)+IF('Crop 2'!$C$50=Carbon!$B38,'Crop 2'!$L$50*VLOOKUP('Crop 2'!$E$50,Carbon!$AH$4:$AI$10,2,FALSE),0)+IF('Crop 2'!$C$51=Carbon!$B38,'Crop 2'!$L$51*VLOOKUP('Crop 2'!$E$51,Carbon!$AH$4:$AI$10,2,FALSE),0)+IF('Crop 2'!$C$52=Carbon!$B38,'Crop 2'!$L$52*VLOOKUP('Crop 2'!$E$52,Carbon!$AH$4:$AI$10,2,FALSE),0)+IF('Crop 2'!$C$53=Carbon!$B38,'Crop 2'!$L$53*VLOOKUP('Crop 2'!$E$53,Carbon!$AH$4:$AI$10,2,FALSE),0)+IF('Crop 2'!$C$56=Carbon!$B38,'Crop 2'!$L$56*VLOOKUP('Crop 2'!$E$56,Carbon!$AH$4:$AI$10,2,FALSE),0)+IF('Crop 2'!$C$57=Carbon!$B38,'Crop 2'!$L$57*VLOOKUP('Crop 2'!$E$57,Carbon!$AH$4:$AI$10,2,FALSE),0)+IF('Crop 2'!$C$58=Carbon!$B38,'Crop 2'!$L$58*VLOOKUP('Crop 2'!$E$58,Carbon!$AH$4:$AI$10,2,FALSE),0)+IF('Crop 2'!$C$59=Carbon!$B38,'Crop 2'!$L$59*VLOOKUP('Crop 2'!$E$59,Carbon!$AH$4:$AI$10,2,FALSE),0)+IF('Crop 2'!$C$62=Carbon!$B38,'Crop 2'!$L$62*VLOOKUP('Crop 2'!$E$62,Carbon!$AH$4:$AI$10,2,FALSE),0)+IF('Crop 2'!$C$63=Carbon!$B38,'Crop 2'!$L$63*VLOOKUP('Crop 2'!$E$63,Carbon!$AH$4:$AI$10,2,FALSE),0)+IF('Crop 2'!$C$64=Carbon!$B38,'Crop 2'!$L$64*VLOOKUP('Crop 2'!$E$64,Carbon!$AH$4:$AI$10,2,FALSE),0)+IF('Crop 2'!$C$65=Carbon!$B38,'Crop 2'!$L$65*VLOOKUP('Crop 2'!$E$65,Carbon!$AH$4:$AI$10,2,FALSE),0))*$AL$20,2)","v":0},{"$f":"E38*Inputs!$D$15","v":0},{"$f":"ROUND((IF('Crop 3'!$C$14=Carbon!$B38,'Crop 3'!$L$14*VLOOKUP('Crop 3'!$E$14,Carbon!$AH$4:$AI$10,2,FALSE),0)+IF('Crop 3'!$C$15=Carbon!$B38,'Crop 3'!$L$15*VLOOKUP('Crop 3'!$E$15,Carbon!$AH$4:$AI$10,2,FALSE),0)+IF('Crop 3'!$C$16=Carbon!$B38,'Crop 3'!$L$16*VLOOKUP('Crop 3'!$E$16,Carbon!$AH$4:$AI$10,2,FALSE),0)+IF('Crop 3'!$C$19=Carbon!$B38,'Crop 3'!$L$19*VLOOKUP('Crop 3'!$E$19,Carbon!$AH$4:$AI$10,2,FALSE),0)+IF('Crop 3'!$C$20=Carbon!$B38,'Crop 3'!$L$20*VLOOKUP('Crop 3'!$E$20,Carbon!$AH$4:$AI$10,2,FALSE),0)+IF('Crop 3'!$C$21=Carbon!$B38,'Crop 3'!$L$21*VLOOKUP('Crop 3'!$E$21,Carbon!$AH$4:$AI$10,2,FALSE),0)+IF('Crop 3'!$C$49=Carbon!$B38,'Crop 3'!$L$49*VLOOKUP('Crop 3'!$E$49,Carbon!$AH$4:$AI$10,2,FALSE),0)+IF('Crop 3'!$C$50=Carbon!$B38,'Crop 3'!$L$50*VLOOKUP('Crop 3'!$E$50,Carbon!$AH$4:$AI$10,2,FALSE),0)+IF('Crop 3'!$C$51=Carbon!$B38,'Crop 3'!$L$51*VLOOKUP('Crop 3'!$E$51,Carbon!$AH$4:$AI$10,2,FALSE),0)+IF('Crop 3'!$C$52=Carbon!$B38,'Crop 3'!$L$52*VLOOKUP('Crop 3'!$E$52,Carbon!$AH$4:$AI$10,2,FALSE),0)+IF('Crop 3'!$C$53=Carbon!$B38,'Crop 3'!$L$53*VLOOKUP('Crop 3'!$E$53,Carbon!$AH$4:$AI$10,2,FALSE),0)+IF('Crop 3'!$C$56=Carbon!$B38,'Crop 3'!$L$56*VLOOKUP('Crop 3'!$E$56,Carbon!$AH$4:$AI$10,2,FALSE),0)+IF('Crop 3'!$C$57=Carbon!$B38,'Crop 3'!$L$57*VLOOKUP('Crop 3'!$E$57,Carbon!$AH$4:$AI$10,2,FALSE),0)+IF('Crop 3'!$C$58=Carbon!$B38,'Crop 3'!$L$58*VLOOKUP('Crop 3'!$E$58,Carbon!$AH$4:$AI$10,2,FALSE),0)+IF('Crop 3'!$C$59=Carbon!$B38,'Crop 3'!$L$59*VLOOKUP('Crop 3'!$E$59,Carbon!$AH$4:$AI$10,2,FALSE),0)+IF('Crop 3'!$C$62=Carbon!$B38,'Crop 3'!$L$62*VLOOKUP('Crop 3'!$E$62,Carbon!$AH$4:$AI$10,2,FALSE),0)+IF('Crop 3'!$C$63=Carbon!$B38,'Crop 3'!$L$63*VLOOKUP('Crop 3'!$E$63,Carbon!$AH$4:$AI$10,2,FALSE),0)+IF('Crop 3'!$C$64=Carbon!$B38,'Crop 3'!$L$64*VLOOKUP('Crop 3'!$E$64,Carbon!$AH$4:$AI$10,2,FALSE),0)+IF('Crop 3'!$C$65=Carbon!$B38,'Crop 3'!$L$65*VLOOKUP('Crop 3'!$E$65,Carbon!$AH$4:$AI$10,2,FALSE),0))*$AL$20,2)","v":0},{"$f":"G38*Inputs!$D$17","v":0},{"$f":"ROUND(J38/Inputs!D$19,2)","v":0},0,null,null,{"$f":"ROUND((IF('Crop 1'!$C$14=Carbon!$B38,'Crop 1'!$V$14*VLOOKUP('Crop 1'!$E$14,Carbon!$AH$4:$AI$10,2,FALSE),0)+IF('Crop 1'!$C$15=Carbon!$B38,'Crop 1'!$V$15*VLOOKUP('Crop 1'!$E$15,Carbon!$AH$4:$AI$10,2,FALSE),0)+IF('Crop 1'!$C$16=Carbon!$B38,'Crop 1'!$V$16*VLOOKUP('Crop 1'!$E$16,Carbon!$AH$4:$AI$10,2,FALSE),0)+IF('Crop 1'!$C$19=Carbon!$B38,'Crop 1'!$V$19*VLOOKUP('Crop 1'!$E$19,Carbon!$AH$4:$AI$10,2,FALSE),0)+IF('Crop 1'!$C$20=Carbon!$B38,'Crop 1'!$V$20*VLOOKUP('Crop 1'!$E$20,Carbon!$AH$4:$AI$10,2,FALSE),0)+IF('Crop 1'!$C$21=Carbon!$B38,'Crop 1'!$V$21*VLOOKUP('Crop 1'!$E$21,Carbon!$AH$4:$AI$10,2,FALSE),0)+IF('Crop 1'!$C$49=Carbon!$B38,'Crop 1'!$V$49*VLOOKUP('Crop 1'!$E$49,Carbon!$AH$4:$AI$10,2,FALSE),0)+IF('Crop 1'!$C$50=Carbon!$B38,'Crop 1'!$V$50*VLOOKUP('Crop 1'!$E$50,Carbon!$AH$4:$AI$10,2,FALSE),0)+IF('Crop 1'!$C$51=Carbon!$B38,'Crop 1'!$V$51*VLOOKUP('Crop 1'!$E$51,Carbon!$AH$4:$AI$10,2,FALSE),0)+IF('Crop 1'!$C$52=Carbon!$B38,'Crop 1'!$V$52*VLOOKUP('Crop 1'!$E$52,Carbon!$AH$4:$AI$10,2,FALSE),0)+IF('Crop 1'!$C$53=Carbon!$B38,'Crop 1'!$V$53*VLOOKUP('Crop 1'!$E$53,Carbon!$AH$4:$AI$10,2,FALSE),0)+IF('Crop 1'!$C$56=Carbon!$B38,'Crop 1'!$V$56*VLOOKUP('Crop 1'!$E$56,Carbon!$AH$4:$AI$10,2,FALSE),0)+IF('Crop 1'!$C$57=Carbon!$B38,'Crop 1'!$V$57*VLOOKUP('Crop 1'!$E$57,Carbon!$AH$4:$AI$10,2,FALSE),0)+IF('Crop 1'!$C$58=Carbon!$B38,'Crop 1'!$V$58*VLOOKUP('Crop 1'!$E$58,Carbon!$AH$4:$AI$10,2,FALSE),0)+IF('Crop 1'!$C$59=Carbon!$B38,'Crop 1'!$V$59*VLOOKUP('Crop 1'!$E$59,Carbon!$AH$4:$AI$10,2,FALSE),0)+IF('Crop 1'!$C$62=Carbon!$B38,'Crop 1'!$V$62*VLOOKUP('Crop 1'!$E$62,Carbon!$AH$4:$AI$10,2,FALSE),0)+IF('Crop 1'!$C$63=Carbon!$B38,'Crop 1'!$V$63*VLOOKUP('Crop 1'!$E$63,Carbon!$AH$4:$AI$10,2,FALSE),0)+IF('Crop 1'!$C$64=Carbon!$B38,'Crop 1'!$V$64*VLOOKUP('Crop 1'!$E$64,Carbon!$AH$4:$AI$10,2,FALSE),0)+IF('Crop 1'!$C$65=Carbon!$B38,'Crop 1'!$V$65*VLOOKUP('Crop 1'!$E$65,Carbon!$AH$4:$AI$10,2,FALSE),0))*$AL$20,2)","v":0},{"$f":"M38*Inputs!$D$13","v":0},{"$f":"ROUND((IF('Crop 2'!$C$14=Carbon!$B38,'Crop 2'!$V$14*VLOOKUP('Crop 2'!$E$14,Carbon!$AH$4:$AI$10,2,FALSE),0)+IF('Crop 2'!$C$15=Carbon!$B38,'Crop 2'!$V$15*VLOOKUP('Crop 2'!$E$15,Carbon!$AH$4:$AI$10,2,FALSE),0)+IF('Crop 2'!$C$16=Carbon!$B38,'Crop 2'!$V$16*VLOOKUP('Crop 2'!$E$16,Carbon!$AH$4:$AI$10,2,FALSE),0)+IF('Crop 2'!$C$19=Carbon!$B38,'Crop 2'!$V$19*VLOOKUP('Crop 2'!$E$19,Carbon!$AH$4:$AI$10,2,FALSE),0)+IF('Crop 2'!$C$20=Carbon!$B38,'Crop 2'!$V$20*VLOOKUP('Crop 2'!$E$20,Carbon!$AH$4:$AI$10,2,FALSE),0)+IF('Crop 2'!$C$21=Carbon!$B38,'Crop 2'!$V$21*VLOOKUP('Crop 2'!$E$21,Carbon!$AH$4:$AI$10,2,FALSE),0)+IF('Crop 2'!$C$49=Carbon!$B38,'Crop 2'!$V$49*VLOOKUP('Crop 2'!$E$49,Carbon!$AH$4:$AI$10,2,FALSE),0)+IF('Crop 2'!$C$50=Carbon!$B38,'Crop 2'!$V$50*VLOOKUP('Crop 2'!$E$50,Carbon!$AH$4:$AI$10,2,FALSE),0)+IF('Crop 2'!$C$51=Carbon!$B38,'Crop 2'!$V$51*VLOOKUP('Crop 2'!$E$51,Carbon!$AH$4:$AI$10,2,FALSE),0)+IF('Crop 2'!$C$52=Carbon!$B38,'Crop 2'!$V$52*VLOOKUP('Crop 2'!$E$52,Carbon!$AH$4:$AI$10,2,FALSE),0)+IF('Crop 2'!$C$53=Carbon!$B38,'Crop 2'!$V$53*VLOOKUP('Crop 2'!$E$53,Carbon!$AH$4:$AI$10,2,FALSE),0)+IF('Crop 2'!$C$56=Carbon!$B38,'Crop 2'!$V$56*VLOOKUP('Crop 2'!$E$56,Carbon!$AH$4:$AI$10,2,FALSE),0)+IF('Crop 2'!$C$57=Carbon!$B38,'Crop 2'!$V$57*VLOOKUP('Crop 2'!$E$57,Carbon!$AH$4:$AI$10,2,FALSE),0)+IF('Crop 2'!$C$58=Carbon!$B38,'Crop 2'!$V$58*VLOOKUP('Crop 2'!$E$58,Carbon!$AH$4:$AI$10,2,FALSE),0)+IF('Crop 2'!$C$59=Carbon!$B38,'Crop 2'!$V$59*VLOOKUP('Crop 2'!$E$59,Carbon!$AH$4:$AI$10,2,FALSE),0)+IF('Crop 2'!$C$62=Carbon!$B38,'Crop 2'!$V$62*VLOOKUP('Crop 2'!$E$62,Carbon!$AH$4:$AI$10,2,FALSE),0)+IF('Crop 2'!$C$63=Carbon!$B38,'Crop 2'!$V$63*VLOOKUP('Crop 2'!$E$63,Carbon!$AH$4:$AI$10,2,FALSE),0)+IF('Crop 2'!$C$64=Carbon!$B38,'Crop 2'!$V$64*VLOOKUP('Crop 2'!$E$64,Carbon!$AH$4:$AI$10,2,FALSE),0)+IF('Crop 2'!$C$65=Carbon!$B38,'Crop 2'!$V$65*VLOOKUP('Crop 2'!$E$65,Carbon!$AH$4:$AI$10,2,FALSE),0))*$AL$20,2)","v":0},{"$f":"O38*Inputs!$D$15","v":0},{"$f":"ROUND((IF('Crop 3'!$C$14=Carbon!$B38,'Crop 3'!$V$14*VLOOKUP('Crop 3'!$E$14,Carbon!$AH$4:$AI$10,2,FALSE),0)+IF('Crop 3'!$C$15=Carbon!$B38,'Crop 3'!$V$15*VLOOKUP('Crop 3'!$E$15,Carbon!$AH$4:$AI$10,2,FALSE),0)+IF('Crop 3'!$C$16=Carbon!$B38,'Crop 3'!$V$16*VLOOKUP('Crop 3'!$E$16,Carbon!$AH$4:$AI$10,2,FALSE),0)+IF('Crop 3'!$C$19=Carbon!$B38,'Crop 3'!$V$19*VLOOKUP('Crop 3'!$E$19,Carbon!$AH$4:$AI$10,2,FALSE),0)+IF('Crop 3'!$C$20=Carbon!$B38,'Crop 3'!$V$20*VLOOKUP('Crop 3'!$E$20,Carbon!$AH$4:$AI$10,2,FALSE),0)+IF('Crop 3'!$C$21=Carbon!$B38,'Crop 3'!$V$21*VLOOKUP('Crop 3'!$E$21,Carbon!$AH$4:$AI$10,2,FALSE),0)+IF('Crop 3'!$C$49=Carbon!$B38,'Crop 3'!$V$49*VLOOKUP('Crop 3'!$E$49,Carbon!$AH$4:$AI$10,2,FALSE),0)+IF('Crop 3'!$C$50=Carbon!$B38,'Crop 3'!$V$50*VLOOKUP('Crop 3'!$E$50,Carbon!$AH$4:$AI$10,2,FALSE),0)+IF('Crop 3'!$C$51=Carbon!$B38,'Crop 3'!$V$51*VLOOKUP('Crop 3'!$E$51,Carbon!$AH$4:$AI$10,2,FALSE),0)+IF('Crop 3'!$C$52=Carbon!$B38,'Crop 3'!$V$52*VLOOKUP('Crop 3'!$E$52,Carbon!$AH$4:$AI$10,2,FALSE),0)+IF('Crop 3'!$C$53=Carbon!$B38,'Crop 3'!$V$53*VLOOKUP('Crop 3'!$E$53,Carbon!$AH$4:$AI$10,2,FALSE),0)+IF('Crop 3'!$C$56=Carbon!$B38,'Crop 3'!$V$56*VLOOKUP('Crop 3'!$E$56,Carbon!$AH$4:$AI$10,2,FALSE),0)+IF('Crop 3'!$C$57=Carbon!$B38,'Crop 3'!$V$57*VLOOKUP('Crop 3'!$E$57,Carbon!$AH$4:$AI$10,2,FALSE),0)+IF('Crop 3'!$C$58=Carbon!$B38,'Crop 3'!$V$58*VLOOKUP('Crop 3'!$E$58,Carbon!$AH$4:$AI$10,2,FALSE),0)+IF('Crop 3'!$C$59=Carbon!$B38,'Crop 3'!$V$59*VLOOKUP('Crop 3'!$E$59,Carbon!$AH$4:$AI$10,2,FALSE),0)+IF('Crop 3'!$C$62=Carbon!$B38,'Crop 3'!$V$62*VLOOKUP('Crop 3'!$E$62,Carbon!$AH$4:$AI$10,2,FALSE),0)+IF('Crop 3'!$C$63=Carbon!$B38,'Crop 3'!$V$63*VLOOKUP('Crop 3'!$E$63,Carbon!$AH$4:$AI$10,2,FALSE),0)+IF('Crop 3'!$C$64=Carbon!$B38,'Crop 3'!$V$64*VLOOKUP('Crop 3'!$E$64,Carbon!$AH$4:$AI$10,2,FALSE),0)+IF('Crop 3'!$C$65=Carbon!$B38,'Crop 3'!$V$65*VLOOKUP('Crop 3'!$E$65,Carbon!$AH$4:$AI$10,2,FALSE),0))*$AL$20,2)","v":0},{"$f":"Q38*Inputs!$D$17","v":0},{"$f":"ROUND(T38/Inputs!D$19,2)","v":0},0,null,null,0,{"$f":"W38*Inputs!$D$13","v":0},0,{"$f":"Y38*Inputs!$D$13","v":0},0,{"$f":"AA38*Inputs!$D$13","v":0},{"$f":"ROUND(AD38/Inputs!D$19,2)","v":0},0]
[null,{"$f":"Defaults!AH5","v":"Accent"},{"$f":"ROUND((IF('Crop 1'!$C$14=Carbon!$B39,'Crop 1'!$L$14*VLOOKUP('Crop 1'!$E$14,Carbon!$AH$4:$AI$10,2,FALSE),0)+IF('Crop 1'!$C$15=Carbon!$B39,'Crop 1'!$L$15*VLOOKUP('Crop 1'!$E$15,Carbon!$AH$4:$AI$10,2,FALSE),0)+IF('Crop 1'!$C$16=Carbon!$B39,'Crop 1'!$L$16*VLOOKUP('Crop 1'!$E$16,Carbon!$AH$4:$AI$10,2,FALSE),0)+IF('Crop 1'!$C$19=Carbon!$B39,'Crop 1'!$L$19*VLOOKUP('Crop 1'!$E$19,Carbon!$AH$4:$AI$10,2,FALSE),0)+IF('Crop 1'!$C$20=Carbon!$B39,'Crop 1'!$L$20*VLOOKUP('Crop 1'!$E$20,Carbon!$AH$4:$AI$10,2,FALSE),0)+IF('Crop 1'!$C$21=Carbon!$B39,'Crop 1'!$L$21*VLOOKUP('Crop 1'!$E$21,Carbon!$AH$4:$AI$10,2,FALSE),0)+IF('Crop 1'!$C$49=Carbon!$B39,'Crop 1'!$L$49*VLOOKUP('Crop 1'!$E$49,Carbon!$AH$4:$AI$10,2,FALSE),0)+IF('Crop 1'!$C$50=Carbon!$B39,'Crop 1'!$L$50*VLOOKUP('Crop 1'!$E$50,Carbon!$AH$4:$AI$10,2,FALSE),0)+IF('Crop 1'!$C$51=Carbon!$B39,'Crop 1'!$L$51*VLOOKUP('Crop 1'!$E$51,Carbon!$AH$4:$AI$10,2,FALSE),0)+IF('Crop 1'!$C$52=Carbon!$B39,'Crop 1'!$L$52*VLOOKUP('Crop 1'!$E$52,Carbon!$AH$4:$AI$10,2,FALSE),0)+IF('Crop 1'!$C$53=Carbon!$B39,'Crop 1'!$L$53*VLOOKUP('Crop 1'!$E$53,Carbon!$AH$4:$AI$10,2,FALSE),0)+IF('Crop 1'!$C$56=Carbon!$B39,'Crop 1'!$L$56*VLOOKUP('Crop 1'!$E$56,Carbon!$AH$4:$AI$10,2,FALSE),0)+IF('Crop 1'!$C$57=Carbon!$B39,'Crop 1'!$L$57*VLOOKUP('Crop 1'!$E$57,Carbon!$AH$4:$AI$10,2,FALSE),0)+IF('Crop 1'!$C$58=Carbon!$B39,'Crop 1'!$L$58*VLOOKUP('Crop 1'!$E$58,Carbon!$AH$4:$AI$10,2,FALSE),0)+IF('Crop 1'!$C$59=Carbon!$B39,'Crop 1'!$L$59*VLOOKUP('Crop 1'!$E$59,Carbon!$AH$4:$AI$10,2,FALSE),0)+IF('Crop 1'!$C$62=Carbon!$B39,'Crop 1'!$L$62*VLOOKUP('Crop 1'!$E$62,Carbon!$AH$4:$AI$10,2,FALSE),0)+IF('Crop 1'!$C$63=Carbon!$B39,'Crop 1'!$L$63*VLOOKUP('Crop 1'!$E$63,Carbon!$AH$4:$AI$10,2,FALSE),0)+IF('Crop 1'!$C$64=Carbon!$B39,'Crop 1'!$L$64*VLOOKUP('Crop 1'!$E$64,Carbon!$AH$4:$AI$10,2,FALSE),0)+IF('Crop 1'!$C$65=Carbon!$B39,'Crop 1'!$L$65*VLOOKUP('Crop 1'!$E$65,Carbon!$AH$4:$AI$10,2,FALSE),0))*$AL$20,2)","v":0},{"$f":"C39*Inputs!$D$13","v":0},{"$f":"ROUND((IF('Crop 2'!$C$14=Carbon!$B39,'Crop 2'!$L$14*VLOOKUP('Crop 2'!$E$14,Carbon!$AH$4:$AI$10,2,FALSE),0)+IF('Crop 2'!$C$15=Carbon!$B39,'Crop 2'!$L$15*VLOOKUP('Crop 2'!$E$15,Carbon!$AH$4:$AI$10,2,FALSE),0)+IF('Crop 2'!$C$16=Carbon!$B39,'Crop 2'!$L$16*VLOOKUP('Crop 2'!$E$16,Carbon!$AH$4:$AI$10,2,FALSE),0)+IF('Crop 2'!$C$19=Carbon!$B39,'Crop 2'!$L$19*VLOOKUP('Crop 2'!$E$19,Carbon!$AH$4:$AI$10,2,FALSE),0)+IF('Crop 2'!$C$20=Carbon!$B39,'Crop 2'!$L$20*VLOOKUP('Crop 2'!$E$20,Carbon!$AH$4:$AI$10,2,FALSE),0)+IF('Crop 2'!$C$21=Carbon!$B39,'Crop 2'!$L$21*VLOOKUP('Crop 2'!$E$21,Carbon!$AH$4:$AI$10,2,FALSE),0)+IF('Crop 2'!$C$49=Carbon!$B39,'Crop 2'!$L$49*VLOOKUP('Crop 2'!$E$49,Carbon!$AH$4:$AI$10,2,FALSE),0)+IF('Crop 2'!$C$50=Carbon!$B39,'Crop 2'!$L$50*VLOOKUP('Crop 2'!$E$50,Carbon!$AH$4:$AI$10,2,FALSE),0)+IF('Crop 2'!$C$51=Carbon!$B39,'Crop 2'!$L$51*VLOOKUP('Crop 2'!$E$51,Carbon!$AH$4:$AI$10,2,FALSE),0)+IF('Crop 2'!$C$52=Carbon!$B39,'Crop 2'!$L$52*VLOOKUP('Crop 2'!$E$52,Carbon!$AH$4:$AI$10,2,FALSE),0)+IF('Crop 2'!$C$53=Carbon!$B39,'Crop 2'!$L$53*VLOOKUP('Crop 2'!$E$53,Carbon!$AH$4:$AI$10,2,FALSE),0)+IF('Crop 2'!$C$56=Carbon!$B39,'Crop 2'!$L$56*VLOOKUP('Crop 2'!$E$56,Carbon!$AH$4:$AI$10,2,FALSE),0)+IF('Crop 2'!$C$57=Carbon!$B39,'Crop 2'!$L$57*VLOOKUP('Crop 2'!$E$57,Carbon!$AH$4:$AI$10,2,FALSE),0)+IF('Crop 2'!$C$58=Carbon!$B39,'Crop 2'!$L$58*VLOOKUP('Crop 2'!$E$58,Carbon!$AH$4:$AI$10,2,FALSE),0)+IF('Crop 2'!$C$59=Carbon!$B39,'Crop 2'!$L$59*VLOOKUP('Crop 2'!$E$59,Carbon!$AH$4:$AI$10,2,FALSE),0)+IF('Crop 2'!$C$62=Carbon!$B39,'Crop 2'!$L$62*VLOOKUP('Crop 2'!$E$62,Carbon!$AH$4:$AI$10,2,FALSE),0)+IF('Crop 2'!$C$63=Carbon!$B39,'Crop 2'!$L$63*VLOOKUP('Crop 2'!$E$63,Carbon!$AH$4:$AI$10,2,FALSE),0)+IF('Crop 2'!$C$64=Carbon!$B39,'Crop 2'!$L$64*VLOOKUP('Crop 2'!$E$64,Carbon!$AH$4:$AI$10,2,FALSE),0)+IF('Crop 2'!$C$65=Carbon!$B39,'Crop 2'!$L$65*VLOOKUP('Crop 2'!$E$65,Carbon!$AH$4:$AI$10,2,FALSE),0))*$AL$20,2)","v":0},{"$f":"E39*Inputs!$D$15","v":0},{"$f":"ROUND((IF('Crop 3'!$C$14=Carbon!$B39,'Crop 3'!$L$14*VLOOKUP('Crop 3'!$E$14,Carbon!$AH$4:$AI$10,2,FALSE),0)+IF('Crop 3'!$C$15=Carbon!$B39,'Crop 3'!$L$15*VLOOKUP('Crop 3'!$E$15,Carbon!$AH$4:$AI$10,2,FALSE),0)+IF('Crop 3'!$C$16=Carbon!$B39,'Crop 3'!$L$16*VLOOKUP('Crop 3'!$E$16,Carbon!$AH$4:$AI$10,2,FALSE),0)+IF('Crop 3'!$C$19=Carbon!$B39,'Crop 3'!$L$19*VLOOKUP('Crop 3'!$E$19,Carbon!$AH$4:$AI$10,2,FALSE),0)+IF('Crop 3'!$C$20=Carbon!$B39,'Crop 3'!$L$20*VLOOKUP('Crop 3'!$E$20,Carbon!$AH$4:$AI$10,2,FALSE),0)+IF('Crop 3'!$C$21=Carbon!$B39,'Crop 3'!$L$21*VLOOKUP('Crop 3'!$E$21,Carbon!$AH$4:$AI$10,2,FALSE),0)+IF('Crop 3'!$C$49=Carbon!$B39,'Crop 3'!$L$49*VLOOKUP('Crop 3'!$E$49,Carbon!$AH$4:$AI$10,2,FALSE),0)+IF('Crop 3'!$C$50=Carbon!$B39,'Crop 3'!$L$50*VLOOKUP('Crop 3'!$E$50,Carbon!$AH$4:$AI$10,2,FALSE),0)+IF('Crop 3'!$C$51=Carbon!$B39,'Crop 3'!$L$51*VLOOKUP('Crop 3'!$E$51,Carbon!$AH$4:$AI$10,2,FALSE),0)+IF('Crop 3'!$C$52=Carbon!$B39,'Crop 3'!$L$52*VLOOKUP('Crop 3'!$E$52,Carbon!$AH$4:$AI$10,2,FALSE),0)+IF('Crop 3'!$C$53=Carbon!$B39,'Crop 3'!$L$53*VLOOKUP('Crop 3'!$E$53,Carbon!$AH$4:$AI$10,2,FALSE),0)+IF('Crop 3'!$C$56=Carbon!$B39,'Crop 3'!$L$56*VLOOKUP('Crop 3'!$E$56,Carbon!$AH$4:$AI$10,2,FALSE),0)+IF('Crop 3'!$C$57=Carbon!$B39,'Crop 3'!$L$57*VLOOKUP('Crop 3'!$E$57,Carbon!$AH$4:$AI$10,2,FALSE),0)+IF('Crop 3'!$C$58=Carbon!$B39,'Crop 3'!$L$58*VLOOKUP('Crop 3'!$E$58,Carbon!$AH$4:$AI$10,2,FALSE),0)+IF('Crop 3'!$C$59=Carbon!$B39,'Crop 3'!$L$59*VLOOKUP('Crop 3'!$E$59,Carbon!$AH$4:$AI$10,2,FALSE),0)+IF('Crop 3'!$C$62=Carbon!$B39,'Crop 3'!$L$62*VLOOKUP('Crop 3'!$E$62,Carbon!$AH$4:$AI$10,2,FALSE),0)+IF('Crop 3'!$C$63=Carbon!$B39,'Crop 3'!$L$63*VLOOKUP('Crop 3'!$E$63,Carbon!$AH$4:$AI$10,2,FALSE),0)+IF('Crop 3'!$C$64=Carbon!$B39,'Crop 3'!$L$64*VLOOKUP('Crop 3'!$E$64,Carbon!$AH$4:$AI$10,2,FALSE),0)+IF('Crop 3'!$C$65=Carbon!$B39,'Crop 3'!$L$65*VLOOKUP('Crop 3'!$E$65,Carbon!$AH$4:$AI$10,2,FALSE),0))*$AL$20,2)","v":0},{"$f":"G39*Inputs!$D$17","v":0},{"$f":"ROUND(J39/Inputs!D$19,2)","v":0},0,null,null,{"$f":"ROUND((IF('Crop 1'!$C$14=Carbon!$B39,'Crop 1'!$V$14*VLOOKUP('Crop 1'!$E$14,Carbon!$AH$4:$AI$10,2,FALSE),0)+IF('Crop 1'!$C$15=Carbon!$B39,'Crop 1'!$V$15*VLOOKUP('Crop 1'!$E$15,Carbon!$AH$4:$AI$10,2,FALSE),0)+IF('Crop 1'!$C$16=Carbon!$B39,'Crop 1'!$V$16*VLOOKUP('Crop 1'!$E$16,Carbon!$AH$4:$AI$10,2,FALSE),0)+IF('Crop 1'!$C$19=Carbon!$B39,'Crop 1'!$V$19*VLOOKUP('Crop 1'!$E$19,Carbon!$AH$4:$AI$10,2,FALSE),0)+IF('Crop 1'!$C$20=Carbon!$B39,'Crop 1'!$V$20*VLOOKUP('Crop 1'!$E$20,Carbon!$AH$4:$AI$10,2,FALSE),0)+IF('Crop 1'!$C$21=Carbon!$B39,'Crop 1'!$V$21*VLOOKUP('Crop 1'!$E$21,Carbon!$AH$4:$AI$10,2,FALSE),0)+IF('Crop 1'!$C$49=Carbon!$B39,'Crop 1'!$V$49*VLOOKUP('Crop 1'!$E$49,Carbon!$AH$4:$AI$10,2,FALSE),0)+IF('Crop 1'!$C$50=Carbon!$B39,'Crop 1'!$V$50*VLOOKUP('Crop 1'!$E$50,Carbon!$AH$4:$AI$10,2,FALSE),0)+IF('Crop 1'!$C$51=Carbon!$B39,'Crop 1'!$V$51*VLOOKUP('Crop 1'!$E$51,Carbon!$AH$4:$AI$10,2,FALSE),0)+IF('Crop 1'!$C$52=Carbon!$B39,'Crop 1'!$V$52*VLOOKUP('Crop 1'!$E$52,Carbon!$AH$4:$AI$10,2,FALSE),0)+IF('Crop 1'!$C$53=Carbon!$B39,'Crop 1'!$V$53*VLOOKUP('Crop 1'!$E$53,Carbon!$AH$4:$AI$10,2,FALSE),0)+IF('Crop 1'!$C$56=Carbon!$B39,'Crop 1'!$V$56*VLOOKUP('Crop 1'!$E$56,Carbon!$AH$4:$AI$10,2,FALSE),0)+IF('Crop 1'!$C$57=Carbon!$B39,'Crop 1'!$V$57*VLOOKUP('Crop 1'!$E$57,Carbon!$AH$4:$AI$10,2,FALSE),0)+IF('Crop 1'!$C$58=Carbon!$B39,'Crop 1'!$V$58*VLOOKUP('Crop 1'!$E$58,Carbon!$AH$4:$AI$10,2,FALSE),0)+IF('Crop 1'!$C$59=Carbon!$B39,'Crop 1'!$V$59*VLOOKUP('Crop 1'!$E$59,Carbon!$AH$4:$AI$10,2,FALSE),0)+IF('Crop 1'!$C$62=Carbon!$B39,'Crop 1'!$V$62*VLOOKUP('Crop 1'!$E$62,Carbon!$AH$4:$AI$10,2,FALSE),0)+IF('Crop 1'!$C$63=Carbon!$B39,'Crop 1'!$V$63*VLOOKUP('Crop 1'!$E$63,Carbon!$AH$4:$AI$10,2,FALSE),0)+IF('Crop 1'!$C$64=Carbon!$B39,'Crop 1'!$V$64*VLOOKUP('Crop 1'!$E$64,Carbon!$AH$4:$AI$10,2,FALSE),0)+IF('Crop 1'!$C$65=Carbon!$B39,'Crop 1'!$V$65*VLOOKUP('Crop 1'!$E$65,Carbon!$AH$4:$AI$10,2,FALSE),0))*$AL$20,2)","v":0},{"$f":"M39*Inputs!$D$13","v":0},{"$f":"ROUND((IF('Crop 2'!$C$14=Carbon!$B39,'Crop 2'!$V$14*VLOOKUP('Crop 2'!$E$14,Carbon!$AH$4:$AI$10,2,FALSE),0)+IF('Crop 2'!$C$15=Carbon!$B39,'Crop 2'!$V$15*VLOOKUP('Crop 2'!$E$15,Carbon!$AH$4:$AI$10,2,FALSE),0)+IF('Crop 2'!$C$16=Carbon!$B39,'Crop 2'!$V$16*VLOOKUP('Crop 2'!$E$16,Carbon!$AH$4:$AI$10,2,FALSE),0)+IF('Crop 2'!$C$19=Carbon!$B39,'Crop 2'!$V$19*VLOOKUP('Crop 2'!$E$19,Carbon!$AH$4:$AI$10,2,FALSE),0)+IF('Crop 2'!$C$20=Carbon!$B39,'Crop 2'!$V$20*VLOOKUP('Crop 2'!$E$20,Carbon!$AH$4:$AI$10,2,FALSE),0)+IF('Crop 2'!$C$21=Carbon!$B39,'Crop 2'!$V$21*VLOOKUP('Crop 2'!$E$21,Carbon!$AH$4:$AI$10,2,FALSE),0)+IF('Crop 2'!$C$49=Carbon!$B39,'Crop 2'!$V$49*VLOOKUP('Crop 2'!$E$49,Carbon!$AH$4:$AI$10,2,FALSE),0)+IF('Crop 2'!$C$50=Carbon!$B39,'Crop 2'!$V$50*VLOOKUP('Crop 2'!$E$50,Carbon!$AH$4:$AI$10,2,FALSE),0)+IF('Crop 2'!$C$51=Carbon!$B39,'Crop 2'!$V$51*VLOOKUP('Crop 2'!$E$51,Carbon!$AH$4:$AI$10,2,FALSE),0)+IF('Crop 2'!$C$52=Carbon!$B39,'Crop 2'!$V$52*VLOOKUP('Crop 2'!$E$52,Carbon!$AH$4:$AI$10,2,FALSE),0)+IF('Crop 2'!$C$53=Carbon!$B39,'Crop 2'!$V$53*VLOOKUP('Crop 2'!$E$53,Carbon!$AH$4:$AI$10,2,FALSE),0)+IF('Crop 2'!$C$56=Carbon!$B39,'Crop 2'!$V$56*VLOOKUP('Crop 2'!$E$56,Carbon!$AH$4:$AI$10,2,FALSE),0)+IF('Crop 2'!$C$57=Carbon!$B39,'Crop 2'!$V$57*VLOOKUP('Crop 2'!$E$57,Carbon!$AH$4:$AI$10,2,FALSE),0)+IF('Crop 2'!$C$58=Carbon!$B39,'Crop 2'!$V$58*VLOOKUP('Crop 2'!$E$58,Carbon!$AH$4:$AI$10,2,FALSE),0)+IF('Crop 2'!$C$59=Carbon!$B39,'Crop 2'!$V$59*VLOOKUP('Crop 2'!$E$59,Carbon!$AH$4:$AI$10,2,FALSE),0)+IF('Crop 2'!$C$62=Carbon!$B39,'Crop 2'!$V$62*VLOOKUP('Crop 2'!$E$62,Carbon!$AH$4:$AI$10,2,FALSE),0)+IF('Crop 2'!$C$63=Carbon!$B39,'Crop 2'!$V$63*VLOOKUP('Crop 2'!$E$63,Carbon!$AH$4:$AI$10,2,FALSE),0)+IF('Crop 2'!$C$64=Carbon!$B39,'Crop 2'!$V$64*VLOOKUP('Crop 2'!$E$64,Carbon!$AH$4:$AI$10,2,FALSE),0)+IF('Crop 2'!$C$65=Carbon!$B39,'Crop 2'!$V$65*VLOOKUP('Crop 2'!$E$65,Carbon!$AH$4:$AI$10,2,FALSE),0))*$AL$20,2)","v":0},{"$f":"O39*Inputs!$D$15","v":0},{"$f":"ROUND((IF('Crop 3'!$C$14=Carbon!$B39,'Crop 3'!$V$14*VLOOKUP('Crop 3'!$E$14,Carbon!$AH$4:$AI$10,2,FALSE),0)+IF('Crop 3'!$C$15=Carbon!$B39,'Crop 3'!$V$15*VLOOKUP('Crop 3'!$E$15,Carbon!$AH$4:$AI$10,2,FALSE),0)+IF('Crop 3'!$C$16=Carbon!$B39,'Crop 3'!$V$16*VLOOKUP('Crop 3'!$E$16,Carbon!$AH$4:$AI$10,2,FALSE),0)+IF('Crop 3'!$C$19=Carbon!$B39,'Crop 3'!$V$19*VLOOKUP('Crop 3'!$E$19,Carbon!$AH$4:$AI$10,2,FALSE),0)+IF('Crop 3'!$C$20=Carbon!$B39,'Crop 3'!$V$20*VLOOKUP('Crop 3'!$E$20,Carbon!$AH$4:$AI$10,2,FALSE),0)+IF('Crop 3'!$C$21=Carbon!$B39,'Crop 3'!$V$21*VLOOKUP('Crop 3'!$E$21,Carbon!$AH$4:$AI$10,2,FALSE),0)+IF('Crop 3'!$C$49=Carbon!$B39,'Crop 3'!$V$49*VLOOKUP('Crop 3'!$E$49,Carbon!$AH$4:$AI$10,2,FALSE),0)+IF('Crop 3'!$C$50=Carbon!$B39,'Crop 3'!$V$50*VLOOKUP('Crop 3'!$E$50,Carbon!$AH$4:$AI$10,2,FALSE),0)+IF('Crop 3'!$C$51=Carbon!$B39,'Crop 3'!$V$51*VLOOKUP('Crop 3'!$E$51,Carbon!$AH$4:$AI$10,2,FALSE),0)+IF('Crop 3'!$C$52=Carbon!$B39,'Crop 3'!$V$52*VLOOKUP('Crop 3'!$E$52,Carbon!$AH$4:$AI$10,2,FALSE),0)+IF('Crop 3'!$C$53=Carbon!$B39,'Crop 3'!$V$53*VLOOKUP('Crop 3'!$E$53,Carbon!$AH$4:$AI$10,2,FALSE),0)+IF('Crop 3'!$C$56=Carbon!$B39,'Crop 3'!$V$56*VLOOKUP('Crop 3'!$E$56,Carbon!$AH$4:$AI$10,2,FALSE),0)+IF('Crop 3'!$C$57=Carbon!$B39,'Crop 3'!$V$57*VLOOKUP('Crop 3'!$E$57,Carbon!$AH$4:$AI$10,2,FALSE),0)+IF('Crop 3'!$C$58=Carbon!$B39,'Crop 3'!$V$58*VLOOKUP('Crop 3'!$E$58,Carbon!$AH$4:$AI$10,2,FALSE),0)+IF('Crop 3'!$C$59=Carbon!$B39,'Crop 3'!$V$59*VLOOKUP('Crop 3'!$E$59,Carbon!$AH$4:$AI$10,2,FALSE),0)+IF('Crop 3'!$C$62=Carbon!$B39,'Crop 3'!$V$62*VLOOKUP('Crop 3'!$E$62,Carbon!$AH$4:$AI$10,2,FALSE),0)+IF('Crop 3'!$C$63=Carbon!$B39,'Crop 3'!$V$63*VLOOKUP('Crop 3'!$E$63,Carbon!$AH$4:$AI$10,2,FALSE),0)+IF('Crop 3'!$C$64=Carbon!$B39,'Crop 3'!$V$64*VLOOKUP('Crop 3'!$E$64,Carbon!$AH$4:$AI$10,2,FALSE),0)+IF('Crop 3'!$C$65=Carbon!$B39,'Crop 3'!$V$65*VLOOKUP('Crop 3'!$E$65,Carbon!$AH$4:$AI$10,2,FALSE),0))*$AL$20,2)","v":0},{"$f":"Q39*Inputs!$D$17","v":0},{"$f":"ROUND(T39/Inputs!D$19,2)","v":0},0,null,null,0,{"$f":"W39*Inputs!$D$13","v":0},0,{"$f":"Y39*Inputs!$D$13","v":0},0,{"$f":"AA39*Inputs!$D$13","v":0},{"$f":"ROUND(AD39/Inputs!D$19,2)","v":0},0]
[null,{"$f":"Defaults!AH6","v":"Accent Q"},{"$f":"ROUND((IF('Crop 1'!$C$14=Carbon!$B40,'Crop 1'!$L$14*VLOOKUP('Crop 1'!$E$14,Carbon!$AH$4:$AI$10,2,FALSE),0)+IF('Crop 1'!$C$15=Carbon!$B40,'Crop 1'!$L$15*VLOOKUP('Crop 1'!$E$15,Carbon!$AH$4:$AI$10,2,FALSE),0)+IF('Crop 1'!$C$16=Carbon!$B40,'Crop 1'!$L$16*VLOOKUP('Crop 1'!$E$16,Carbon!$AH$4:$AI$10,2,FALSE),0)+IF('Crop 1'!$C$19=Carbon!$B40,'Crop 1'!$L$19*VLOOKUP('Crop 1'!$E$19,Carbon!$AH$4:$AI$10,2,FALSE),0)+IF('Crop 1'!$C$20=Carbon!$B40,'Crop 1'!$L$20*VLOOKUP('Crop 1'!$E$20,Carbon!$AH$4:$AI$10,2,FALSE),0)+IF('Crop 1'!$C$21=Carbon!$B40,'Crop 1'!$L$21*VLOOKUP('Crop 1'!$E$21,Carbon!$AH$4:$AI$10,2,FALSE),0)+IF('Crop 1'!$C$49=Carbon!$B40,'Crop 1'!$L$49*VLOOKUP('Crop 1'!$E$49,Carbon!$AH$4:$AI$10,2,FALSE),0)+IF('Crop 1'!$C$50=Carbon!$B40,'Crop 1'!$L$50*VLOOKUP('Crop 1'!$E$50,Carbon!$AH$4:$AI$10,2,FALSE),0)+IF('Crop 1'!$C$51=Carbon!$B40,'Crop 1'!$L$51*VLOOKUP('Crop 1'!$E$51,Carbon!$AH$4:$AI$10,2,FALSE),0)+IF('Crop 1'!$C$52=Carbon!$B40,'Crop 1'!$L$52*VLOOKUP('Crop 1'!$E$52,Carbon!$AH$4:$AI$10,2,FALSE),0)+IF('Crop 1'!$C$53=Carbon!$B40,'Crop 1'!$L$53*VLOOKUP('Crop 1'!$E$53,Carbon!$AH$4:$AI$10,2,FALSE),0)+IF('Crop 1'!$C$56=Carbon!$B40,'Crop 1'!$L$56*VLOOKUP('Crop 1'!$E$56,Carbon!$AH$4:$AI$10,2,FALSE),0)+IF('Crop 1'!$C$57=Carbon!$B40,'Crop 1'!$L$57*VLOOKUP('Crop 1'!$E$57,Carbon!$AH$4:$AI$10,2,FALSE),0)+IF('Crop 1'!$C$58=Carbon!$B40,'Crop 1'!$L$58*VLOOKUP('Crop 1'!$E$58,Carbon!$AH$4:$AI$10,2,FALSE),0)+IF('Crop 1'!$C$59=Carbon!$B40,'Crop 1'!$L$59*VLOOKUP('Crop 1'!$E$59,Carbon!$AH$4:$AI$10,2,FALSE),0)+IF('Crop 1'!$C$62=Carbon!$B40,'Crop 1'!$L$62*VLOOKUP('Crop 1'!$E$62,Carbon!$AH$4:$AI$10,2,FALSE),0)+IF('Crop 1'!$C$63=Carbon!$B40,'Crop 1'!$L$63*VLOOKUP('Crop 1'!$E$63,Carbon!$AH$4:$AI$10,2,FALSE),0)+IF('Crop 1'!$C$64=Carbon!$B40,'Crop 1'!$L$64*VLOOKUP('Crop 1'!$E$64,Carbon!$AH$4:$AI$10,2,FALSE),0)+IF('Crop 1'!$C$65=Carbon!$B40,'Crop 1'!$L$65*VLOOKUP('Crop 1'!$E$65,Carbon!$AH$4:$AI$10,2,FALSE),0))*$AL$20,2)","v":0},{"$f":"C40*Inputs!$D$13","v":0},{"$f":"ROUND((IF('Crop 2'!$C$14=Carbon!$B40,'Crop 2'!$L$14*VLOOKUP('Crop 2'!$E$14,Carbon!$AH$4:$AI$10,2,FALSE),0)+IF('Crop 2'!$C$15=Carbon!$B40,'Crop 2'!$L$15*VLOOKUP('Crop 2'!$E$15,Carbon!$AH$4:$AI$10,2,FALSE),0)+IF('Crop 2'!$C$16=Carbon!$B40,'Crop 2'!$L$16*VLOOKUP('Crop 2'!$E$16,Carbon!$AH$4:$AI$10,2,FALSE),0)+IF('Crop 2'!$C$19=Carbon!$B40,'Crop 2'!$L$19*VLOOKUP('Crop 2'!$E$19,Carbon!$AH$4:$AI$10,2,FALSE),0)+IF('Crop 2'!$C$20=Carbon!$B40,'Crop 2'!$L$20*VLOOKUP('Crop 2'!$E$20,Carbon!$AH$4:$AI$10,2,FALSE),0)+IF('Crop 2'!$C$21=Carbon!$B40,'Crop 2'!$L$21*VLOOKUP('Crop 2'!$E$21,Carbon!$AH$4:$AI$10,2,FALSE),0)+IF('Crop 2'!$C$49=Carbon!$B40,'Crop 2'!$L$49*VLOOKUP('Crop 2'!$E$49,Carbon!$AH$4:$AI$10,2,FALSE),0)+IF('Crop 2'!$C$50=Carbon!$B40,'Crop 2'!$L$50*VLOOKUP('Crop 2'!$E$50,Carbon!$AH$4:$AI$10,2,FALSE),0)+IF('Crop 2'!$C$51=Carbon!$B40,'Crop 2'!$L$51*VLOOKUP('Crop 2'!$E$51,Carbon!$AH$4:$AI$10,2,FALSE),0)+IF('Crop 2'!$C$52=Carbon!$B40,'Crop 2'!$L$52*VLOOKUP('Crop 2'!$E$52,Carbon!$AH$4:$AI$10,2,FALSE),0)+IF('Crop 2'!$C$53=Carbon!$B40,'Crop 2'!$L$53*VLOOKUP('Crop 2'!$E$53,Carbon!$AH$4:$AI$10,2,FALSE),0)+IF('Crop 2'!$C$56=Carbon!$B40,'Crop 2'!$L$56*VLOOKUP('Crop 2'!$E$56,Carbon!$AH$4:$AI$10,2,FALSE),0)+IF('Crop 2'!$C$57=Carbon!$B40,'Crop 2'!$L$57*VLOOKUP('Crop 2'!$E$57,Carbon!$AH$4:$AI$10,2,FALSE),0)+IF('Crop 2'!$C$58=Carbon!$B40,'Crop 2'!$L$58*VLOOKUP('Crop 2'!$E$58,Carbon!$AH$4:$AI$10,2,FALSE),0)+IF('Crop 2'!$C$59=Carbon!$B40,'Crop 2'!$L$59*VLOOKUP('Crop 2'!$E$59,Carbon!$AH$4:$AI$10,2,FALSE),0)+IF('Crop 2'!$C$62=Carbon!$B40,'Crop 2'!$L$62*VLOOKUP('Crop 2'!$E$62,Carbon!$AH$4:$AI$10,2,FALSE),0)+IF('Crop 2'!$C$63=Carbon!$B40,'Crop 2'!$L$63*VLOOKUP('Crop 2'!$E$63,Carbon!$AH$4:$AI$10,2,FALSE),0)+IF('Crop 2'!$C$64=Carbon!$B40,'Crop 2'!$L$64*VLOOKUP('Crop 2'!$E$64,Carbon!$AH$4:$AI$10,2,FALSE),0)+IF('Crop 2'!$C$65=Carbon!$B40,'Crop 2'!$L$65*VLOOKUP('Crop 2'!$E$65,Carbon!$AH$4:$AI$10,2,FALSE),0))*$AL$20,2)","v":0},{"$f":"E40*Inputs!$D$15","v":0},{"$f":"ROUND((IF('Crop 3'!$C$14=Carbon!$B40,'Crop 3'!$L$14*VLOOKUP('Crop 3'!$E$14,Carbon!$AH$4:$AI$10,2,FALSE),0)+IF('Crop 3'!$C$15=Carbon!$B40,'Crop 3'!$L$15*VLOOKUP('Crop 3'!$E$15,Carbon!$AH$4:$AI$10,2,FALSE),0)+IF('Crop 3'!$C$16=Carbon!$B40,'Crop 3'!$L$16*VLOOKUP('Crop 3'!$E$16,Carbon!$AH$4:$AI$10,2,FALSE),0)+IF('Crop 3'!$C$19=Carbon!$B40,'Crop 3'!$L$19*VLOOKUP('Crop 3'!$E$19,Carbon!$AH$4:$AI$10,2,FALSE),0)+IF('Crop 3'!$C$20=Carbon!$B40,'Crop 3'!$L$20*VLOOKUP('Crop 3'!$E$20,Carbon!$AH$4:$AI$10,2,FALSE),0)+IF('Crop 3'!$C$21=Carbon!$B40,'Crop 3'!$L$21*VLOOKUP('Crop 3'!$E$21,Carbon!$AH$4:$AI$10,2,FALSE),0)+IF('Crop 3'!$C$49=Carbon!$B40,'Crop 3'!$L$49*VLOOKUP('Crop 3'!$E$49,Carbon!$AH$4:$AI$10,2,FALSE),0)+IF('Crop 3'!$C$50=Carbon!$B40,'Crop 3'!$L$50*VLOOKUP('Crop 3'!$E$50,Carbon!$AH$4:$AI$10,2,FALSE),0)+IF('Crop 3'!$C$51=Carbon!$B40,'Crop 3'!$L$51*VLOOKUP('Crop 3'!$E$51,Carbon!$AH$4:$AI$10,2,FALSE),0)+IF('Crop 3'!$C$52=Carbon!$B40,'Crop 3'!$L$52*VLOOKUP('Crop 3'!$E$52,Carbon!$AH$4:$AI$10,2,FALSE),0)+IF('Crop 3'!$C$53=Carbon!$B40,'Crop 3'!$L$53*VLOOKUP('Crop 3'!$E$53,Carbon!$AH$4:$AI$10,2,FALSE),0)+IF('Crop 3'!$C$56=Carbon!$B40,'Crop 3'!$L$56*VLOOKUP('Crop 3'!$E$56,Carbon!$AH$4:$AI$10,2,FALSE),0)+IF('Crop 3'!$C$57=Carbon!$B40,'Crop 3'!$L$57*VLOOKUP('Crop 3'!$E$57,Carbon!$AH$4:$AI$10,2,FALSE),0)+IF('Crop 3'!$C$58=Carbon!$B40,'Crop 3'!$L$58*VLOOKUP('Crop 3'!$E$58,Carbon!$AH$4:$AI$10,2,FALSE),0)+IF('Crop 3'!$C$59=Carbon!$B40,'Crop 3'!$L$59*VLOOKUP('Crop 3'!$E$59,Carbon!$AH$4:$AI$10,2,FALSE),0)+IF('Crop 3'!$C$62=Carbon!$B40,'Crop 3'!$L$62*VLOOKUP('Crop 3'!$E$62,Carbon!$AH$4:$AI$10,2,FALSE),0)+IF('Crop 3'!$C$63=Carbon!$B40,'Crop 3'!$L$63*VLOOKUP('Crop 3'!$E$63,Carbon!$AH$4:$AI$10,2,FALSE),0)+IF('Crop 3'!$C$64=Carbon!$B40,'Crop 3'!$L$64*VLOOKUP('Crop 3'!$E$64,Carbon!$AH$4:$AI$10,2,FALSE),0)+IF('Crop 3'!$C$65=Carbon!$B40,'Crop 3'!$L$65*VLOOKUP('Crop 3'!$E$65,Carbon!$AH$4:$AI$10,2,FALSE),0))*$AL$20,2)","v":0},{"$f":"G40*Inputs!$D$17","v":0},{"$f":"ROUND(J40/Inputs!D$19,2)","v":0},0,null,null,{"$f":"ROUND((IF('Crop 1'!$C$14=Carbon!$B40,'Crop 1'!$V$14*VLOOKUP('Crop 1'!$E$14,Carbon!$AH$4:$AI$10,2,FALSE),0)+IF('Crop 1'!$C$15=Carbon!$B40,'Crop 1'!$V$15*VLOOKUP('Crop 1'!$E$15,Carbon!$AH$4:$AI$10,2,FALSE),0)+IF('Crop 1'!$C$16=Carbon!$B40,'Crop 1'!$V$16*VLOOKUP('Crop 1'!$E$16,Carbon!$AH$4:$AI$10,2,FALSE),0)+IF('Crop 1'!$C$19=Carbon!$B40,'Crop 1'!$V$19*VLOOKUP('Crop 1'!$E$19,Carbon!$AH$4:$AI$10,2,FALSE),0)+IF('Crop 1'!$C$20=Carbon!$B40,'Crop 1'!$V$20*VLOOKUP('Crop 1'!$E$20,Carbon!$AH$4:$AI$10,2,FALSE),0)+IF('Crop 1'!$C$21=Carbon!$B40,'Crop 1'!$V$21*VLOOKUP('Crop 1'!$E$21,Carbon!$AH$4:$AI$10,2,FALSE),0)+IF('Crop 1'!$C$49=Carbon!$B40,'Crop 1'!$V$49*VLOOKUP('Crop 1'!$E$49,Carbon!$AH$4:$AI$10,2,FALSE),0)+IF('Crop 1'!$C$50=Carbon!$B40,'Crop 1'!$V$50*VLOOKUP('Crop 1'!$E$50,Carbon!$AH$4:$AI$10,2,FALSE),0)+IF('Crop 1'!$C$51=Carbon!$B40,'Crop 1'!$V$51*VLOOKUP('Crop 1'!$E$51,Carbon!$AH$4:$AI$10,2,FALSE),0)+IF('Crop 1'!$C$52=Carbon!$B40,'Crop 1'!$V$52*VLOOKUP('Crop 1'!$E$52,Carbon!$AH$4:$AI$10,2,FALSE),0)+IF('Crop 1'!$C$53=Carbon!$B40,'Crop 1'!$V$53*VLOOKUP('Crop 1'!$E$53,Carbon!$AH$4:$AI$10,2,FALSE),0)+IF('Crop 1'!$C$56=Carbon!$B40,'Crop 1'!$V$56*VLOOKUP('Crop 1'!$E$56,Carbon!$AH$4:$AI$10,2,FALSE),0)+IF('Crop 1'!$C$57=Carbon!$B40,'Crop 1'!$V$57*VLOOKUP('Crop 1'!$E$57,Carbon!$AH$4:$AI$10,2,FALSE),0)+IF('Crop 1'!$C$58=Carbon!$B40,'Crop 1'!$V$58*VLOOKUP('Crop 1'!$E$58,Carbon!$AH$4:$AI$10,2,FALSE),0)+IF('Crop 1'!$C$59=Carbon!$B40,'Crop 1'!$V$59*VLOOKUP('Crop 1'!$E$59,Carbon!$AH$4:$AI$10,2,FALSE),0)+IF('Crop 1'!$C$62=Carbon!$B40,'Crop 1'!$V$62*VLOOKUP('Crop 1'!$E$62,Carbon!$AH$4:$AI$10,2,FALSE),0)+IF('Crop 1'!$C$63=Carbon!$B40,'Crop 1'!$V$63*VLOOKUP('Crop 1'!$E$63,Carbon!$AH$4:$AI$10,2,FALSE),0)+IF('Crop 1'!$C$64=Carbon!$B40,'Crop 1'!$V$64*VLOOKUP('Crop 1'!$E$64,Carbon!$AH$4:$AI$10,2,FALSE),0)+IF('Crop 1'!$C$65=Carbon!$B40,'Crop 1'!$V$65*VLOOKUP('Crop 1'!$E$65,Carbon!$AH$4:$AI$10,2,FALSE),0))*$AL$20,2)","v":0},{"$f":"M40*Inputs!$D$13","v":0},{"$f":"ROUND((IF('Crop 2'!$C$14=Carbon!$B40,'Crop 2'!$V$14*VLOOKUP('Crop 2'!$E$14,Carbon!$AH$4:$AI$10,2,FALSE),0)+IF('Crop 2'!$C$15=Carbon!$B40,'Crop 2'!$V$15*VLOOKUP('Crop 2'!$E$15,Carbon!$AH$4:$AI$10,2,FALSE),0)+IF('Crop 2'!$C$16=Carbon!$B40,'Crop 2'!$V$16*VLOOKUP('Crop 2'!$E$16,Carbon!$AH$4:$AI$10,2,FALSE),0)+IF('Crop 2'!$C$19=Carbon!$B40,'Crop 2'!$V$19*VLOOKUP('Crop 2'!$E$19,Carbon!$AH$4:$AI$10,2,FALSE),0)+IF('Crop 2'!$C$20=Carbon!$B40,'Crop 2'!$V$20*VLOOKUP('Crop 2'!$E$20,Carbon!$AH$4:$AI$10,2,FALSE),0)+IF('Crop 2'!$C$21=Carbon!$B40,'Crop 2'!$V$21*VLOOKUP('Crop 2'!$E$21,Carbon!$AH$4:$AI$10,2,FALSE),0)+IF('Crop 2'!$C$49=Carbon!$B40,'Crop 2'!$V$49*VLOOKUP('Crop 2'!$E$49,Carbon!$AH$4:$AI$10,2,FALSE),0)+IF('Crop 2'!$C$50=Carbon!$B40,'Crop 2'!$V$50*VLOOKUP('Crop 2'!$E$50,Carbon!$AH$4:$AI$10,2,FALSE),0)+IF('Crop 2'!$C$51=Carbon!$B40,'Crop 2'!$V$51*VLOOKUP('Crop 2'!$E$51,Carbon!$AH$4:$AI$10,2,FALSE),0)+IF('Crop 2'!$C$52=Carbon!$B40,'Crop 2'!$V$52*VLOOKUP('Crop 2'!$E$52,Carbon!$AH$4:$AI$10,2,FALSE),0)+IF('Crop 2'!$C$53=Carbon!$B40,'Crop 2'!$V$53*VLOOKUP('Crop 2'!$E$53,Carbon!$AH$4:$AI$10,2,FALSE),0)+IF('Crop 2'!$C$56=Carbon!$B40,'Crop 2'!$V$56*VLOOKUP('Crop 2'!$E$56,Carbon!$AH$4:$AI$10,2,FALSE),0)+IF('Crop 2'!$C$57=Carbon!$B40,'Crop 2'!$V$57*VLOOKUP('Crop 2'!$E$57,Carbon!$AH$4:$AI$10,2,FALSE),0)+IF('Crop 2'!$C$58=Carbon!$B40,'Crop 2'!$V$58*VLOOKUP('Crop 2'!$E$58,Carbon!$AH$4:$AI$10,2,FALSE),0)+IF('Crop 2'!$C$59=Carbon!$B40,'Crop 2'!$V$59*VLOOKUP('Crop 2'!$E$59,Carbon!$AH$4:$AI$10,2,FALSE),0)+IF('Crop 2'!$C$62=Carbon!$B40,'Crop 2'!$V$62*VLOOKUP('Crop 2'!$E$62,Carbon!$AH$4:$AI$10,2,FALSE),0)+IF('Crop 2'!$C$63=Carbon!$B40,'Crop 2'!$V$63*VLOOKUP('Crop 2'!$E$63,Carbon!$AH$4:$AI$10,2,FALSE),0)+IF('Crop 2'!$C$64=Carbon!$B40,'Crop 2'!$V$64*VLOOKUP('Crop 2'!$E$64,Carbon!$AH$4:$AI$10,2,FALSE),0)+IF('Crop 2'!$C$65=Carbon!$B40,'Crop 2'!$V$65*VLOOKUP('Crop 2'!$E$65,Carbon!$AH$4:$AI$10,2,FALSE),0))*$AL$20,2)","v":0},{"$f":"O40*Inputs!$D$15","v":0},{"$f":"ROUND((IF('Crop 3'!$C$14=Carbon!$B40,'Crop 3'!$V$14*VLOOKUP('Crop 3'!$E$14,Carbon!$AH$4:$AI$10,2,FALSE),0)+IF('Crop 3'!$C$15=Carbon!$B40,'Crop 3'!$V$15*VLOOKUP('Crop 3'!$E$15,Carbon!$AH$4:$AI$10,2,FALSE),0)+IF('Crop 3'!$C$16=Carbon!$B40,'Crop 3'!$V$16*VLOOKUP('Crop 3'!$E$16,Carbon!$AH$4:$AI$10,2,FALSE),0)+IF('Crop 3'!$C$19=Carbon!$B40,'Crop 3'!$V$19*VLOOKUP('Crop 3'!$E$19,Carbon!$AH$4:$AI$10,2,FALSE),0)+IF('Crop 3'!$C$20=Carbon!$B40,'Crop 3'!$V$20*VLOOKUP('Crop 3'!$E$20,Carbon!$AH$4:$AI$10,2,FALSE),0)+IF('Crop 3'!$C$21=Carbon!$B40,'Crop 3'!$V$21*VLOOKUP('Crop 3'!$E$21,Carbon!$AH$4:$AI$10,2,FALSE),0)+IF('Crop 3'!$C$49=Carbon!$B40,'Crop 3'!$V$49*VLOOKUP('Crop 3'!$E$49,Carbon!$AH$4:$AI$10,2,FALSE),0)+IF('Crop 3'!$C$50=Carbon!$B40,'Crop 3'!$V$50*VLOOKUP('Crop 3'!$E$50,Carbon!$AH$4:$AI$10,2,FALSE),0)+IF('Crop 3'!$C$51=Carbon!$B40,'Crop 3'!$V$51*VLOOKUP('Crop 3'!$E$51,Carbon!$AH$4:$AI$10,2,FALSE),0)+IF('Crop 3'!$C$52=Carbon!$B40,'Crop 3'!$V$52*VLOOKUP('Crop 3'!$E$52,Carbon!$AH$4:$AI$10,2,FALSE),0)+IF('Crop 3'!$C$53=Carbon!$B40,'Crop 3'!$V$53*VLOOKUP('Crop 3'!$E$53,Carbon!$AH$4:$AI$10,2,FALSE),0)+IF('Crop 3'!$C$56=Carbon!$B40,'Crop 3'!$V$56*VLOOKUP('Crop 3'!$E$56,Carbon!$AH$4:$AI$10,2,FALSE),0)+IF('Crop 3'!$C$57=Carbon!$B40,'Crop 3'!$V$57*VLOOKUP('Crop 3'!$E$57,Carbon!$AH$4:$AI$10,2,FALSE),0)+IF('Crop 3'!$C$58=Carbon!$B40,'Crop 3'!$V$58*VLOOKUP('Crop 3'!$E$58,Carbon!$AH$4:$AI$10,2,FALSE),0)+IF('Crop 3'!$C$59=Carbon!$B40,'Crop 3'!$V$59*VLOOKUP('Crop 3'!$E$59,Carbon!$AH$4:$AI$10,2,FALSE),0)+IF('Crop 3'!$C$62=Carbon!$B40,'Crop 3'!$V$62*VLOOKUP('Crop 3'!$E$62,Carbon!$AH$4:$AI$10,2,FALSE),0)+IF('Crop 3'!$C$63=Carbon!$B40,'Crop 3'!$V$63*VLOOKUP('Crop 3'!$E$63,Carbon!$AH$4:$AI$10,2,FALSE),0)+IF('Crop 3'!$C$64=Carbon!$B40,'Crop 3'!$V$64*VLOOKUP('Crop 3'!$E$64,Carbon!$AH$4:$AI$10,2,FALSE),0)+IF('Crop 3'!$C$65=Carbon!$B40,'Crop 3'!$V$65*VLOOKUP('Crop 3'!$E$65,Carbon!$AH$4:$AI$10,2,FALSE),0))*$AL$20,2)","v":0},{"$f":"Q40*Inputs!$D$17","v":0},{"$f":"ROUND(T40/Inputs!D$19,2)","v":0},0,null,null,0,{"$f":"W40*Inputs!$D$13","v":0},0,{"$f":"Y40*Inputs!$D$13","v":0},0,{"$f":"AA40*Inputs!$D$13","v":0},{"$f":"ROUND(AD40/Inputs!D$19,2)","v":0},0]
[null,{"$f":"Defaults!AH7","v":"Acuron"},{"$f":"ROUND((IF('Crop 1'!$C$14=Carbon!$B41,'Crop 1'!$L$14*VLOOKUP('Crop 1'!$E$14,Carbon!$AH$4:$AI$10,2,FALSE),0)+IF('Crop 1'!$C$15=Carbon!$B41,'Crop 1'!$L$15*VLOOKUP('Crop 1'!$E$15,Carbon!$AH$4:$AI$10,2,FALSE),0)+IF('Crop 1'!$C$16=Carbon!$B41,'Crop 1'!$L$16*VLOOKUP('Crop 1'!$E$16,Carbon!$AH$4:$AI$10,2,FALSE),0)+IF('Crop 1'!$C$19=Carbon!$B41,'Crop 1'!$L$19*VLOOKUP('Crop 1'!$E$19,Carbon!$AH$4:$AI$10,2,FALSE),0)+IF('Crop 1'!$C$20=Carbon!$B41,'Crop 1'!$L$20*VLOOKUP('Crop 1'!$E$20,Carbon!$AH$4:$AI$10,2,FALSE),0)+IF('Crop 1'!$C$21=Carbon!$B41,'Crop 1'!$L$21*VLOOKUP('Crop 1'!$E$21,Carbon!$AH$4:$AI$10,2,FALSE),0)+IF('Crop 1'!$C$49=Carbon!$B41,'Crop 1'!$L$49*VLOOKUP('Crop 1'!$E$49,Carbon!$AH$4:$AI$10,2,FALSE),0)+IF('Crop 1'!$C$50=Carbon!$B41,'Crop 1'!$L$50*VLOOKUP('Crop 1'!$E$50,Carbon!$AH$4:$AI$10,2,FALSE),0)+IF('Crop 1'!$C$51=Carbon!$B41,'Crop 1'!$L$51*VLOOKUP('Crop 1'!$E$51,Carbon!$AH$4:$AI$10,2,FALSE),0)+IF('Crop 1'!$C$52=Carbon!$B41,'Crop 1'!$L$52*VLOOKUP('Crop 1'!$E$52,Carbon!$AH$4:$AI$10,2,FALSE),0)+IF('Crop 1'!$C$53=Carbon!$B41,'Crop 1'!$L$53*VLOOKUP('Crop 1'!$E$53,Carbon!$AH$4:$AI$10,2,FALSE),0)+IF('Crop 1'!$C$56=Carbon!$B41,'Crop 1'!$L$56*VLOOKUP('Crop 1'!$E$56,Carbon!$AH$4:$AI$10,2,FALSE),0)+IF('Crop 1'!$C$57=Carbon!$B41,'Crop 1'!$L$57*VLOOKUP('Crop 1'!$E$57,Carbon!$AH$4:$AI$10,2,FALSE),0)+IF('Crop 1'!$C$58=Carbon!$B41,'Crop 1'!$L$58*VLOOKUP('Crop 1'!$E$58,Carbon!$AH$4:$AI$10,2,FALSE),0)+IF('Crop 1'!$C$59=Carbon!$B41,'Crop 1'!$L$59*VLOOKUP('Crop 1'!$E$59,Carbon!$AH$4:$AI$10,2,FALSE),0)+IF('Crop 1'!$C$62=Carbon!$B41,'Crop 1'!$L$62*VLOOKUP('Crop 1'!$E$62,Carbon!$AH$4:$AI$10,2,FALSE),0)+IF('Crop 1'!$C$63=Carbon!$B41,'Crop 1'!$L$63*VLOOKUP('Crop 1'!$E$63,Carbon!$AH$4:$AI$10,2,FALSE),0)+IF('Crop 1'!$C$64=Carbon!$B41,'Crop 1'!$L$64*VLOOKUP('Crop 1'!$E$64,Carbon!$AH$4:$AI$10,2,FALSE),0)+IF('Crop 1'!$C$65=Carbon!$B41,'Crop 1'!$L$65*VLOOKUP('Crop 1'!$E$65,Carbon!$AH$4:$AI$10,2,FALSE),0))*$AL$20,2)","v":0},{"$f":"C41*Inputs!$D$13","v":0},{"$f":"ROUND((IF('Crop 2'!$C$14=Carbon!$B41,'Crop 2'!$L$14*VLOOKUP('Crop 2'!$E$14,Carbon!$AH$4:$AI$10,2,FALSE),0)+IF('Crop 2'!$C$15=Carbon!$B41,'Crop 2'!$L$15*VLOOKUP('Crop 2'!$E$15,Carbon!$AH$4:$AI$10,2,FALSE),0)+IF('Crop 2'!$C$16=Carbon!$B41,'Crop 2'!$L$16*VLOOKUP('Crop 2'!$E$16,Carbon!$AH$4:$AI$10,2,FALSE),0)+IF('Crop 2'!$C$19=Carbon!$B41,'Crop 2'!$L$19*VLOOKUP('Crop 2'!$E$19,Carbon!$AH$4:$AI$10,2,FALSE),0)+IF('Crop 2'!$C$20=Carbon!$B41,'Crop 2'!$L$20*VLOOKUP('Crop 2'!$E$20,Carbon!$AH$4:$AI$10,2,FALSE),0)+IF('Crop 2'!$C$21=Carbon!$B41,'Crop 2'!$L$21*VLOOKUP('Crop 2'!$E$21,Carbon!$AH$4:$AI$10,2,FALSE),0)+IF('Crop 2'!$C$49=Carbon!$B41,'Crop 2'!$L$49*VLOOKUP('Crop 2'!$E$49,Carbon!$AH$4:$AI$10,2,FALSE),0)+IF('Crop 2'!$C$50=Carbon!$B41,'Crop 2'!$L$50*VLOOKUP('Crop 2'!$E$50,Carbon!$AH$4:$AI$10,2,FALSE),0)+IF('Crop 2'!$C$51=Carbon!$B41,'Crop 2'!$L$51*VLOOKUP('Crop 2'!$E$51,Carbon!$AH$4:$AI$10,2,FALSE),0)+IF('Crop 2'!$C$52=Carbon!$B41,'Crop 2'!$L$52*VLOOKUP('Crop 2'!$E$52,Carbon!$AH$4:$AI$10,2,FALSE),0)+IF('Crop 2'!$C$53=Carbon!$B41,'Crop 2'!$L$53*VLOOKUP('Crop 2'!$E$53,Carbon!$AH$4:$AI$10,2,FALSE),0)+IF('Crop 2'!$C$56=Carbon!$B41,'Crop 2'!$L$56*VLOOKUP('Crop 2'!$E$56,Carbon!$AH$4:$AI$10,2,FALSE),0)+IF('Crop 2'!$C$57=Carbon!$B41,'Crop 2'!$L$57*VLOOKUP('Crop 2'!$E$57,Carbon!$AH$4:$AI$10,2,FALSE),0)+IF('Crop 2'!$C$58=Carbon!$B41,'Crop 2'!$L$58*VLOOKUP('Crop 2'!$E$58,Carbon!$AH$4:$AI$10,2,FALSE),0)+IF('Crop 2'!$C$59=Carbon!$B41,'Crop 2'!$L$59*VLOOKUP('Crop 2'!$E$59,Carbon!$AH$4:$AI$10,2,FALSE),0)+IF('Crop 2'!$C$62=Carbon!$B41,'Crop 2'!$L$62*VLOOKUP('Crop 2'!$E$62,Carbon!$AH$4:$AI$10,2,FALSE),0)+IF('Crop 2'!$C$63=Carbon!$B41,'Crop 2'!$L$63*VLOOKUP('Crop 2'!$E$63,Carbon!$AH$4:$AI$10,2,FALSE),0)+IF('Crop 2'!$C$64=Carbon!$B41,'Crop 2'!$L$64*VLOOKUP('Crop 2'!$E$64,Carbon!$AH$4:$AI$10,2,FALSE),0)+IF('Crop 2'!$C$65=Carbon!$B41,'Crop 2'!$L$65*VLOOKUP('Crop 2'!$E$65,Carbon!$AH$4:$AI$10,2,FALSE),0))*$AL$20,2)","v":0},{"$f":"E41*Inputs!$D$15","v":0},{"$f":"ROUND((IF('Crop 3'!$C$14=Carbon!$B41,'Crop 3'!$L$14*VLOOKUP('Crop 3'!$E$14,Carbon!$AH$4:$AI$10,2,FALSE),0)+IF('Crop 3'!$C$15=Carbon!$B41,'Crop 3'!$L$15*VLOOKUP('Crop 3'!$E$15,Carbon!$AH$4:$AI$10,2,FALSE),0)+IF('Crop 3'!$C$16=Carbon!$B41,'Crop 3'!$L$16*VLOOKUP('Crop 3'!$E$16,Carbon!$AH$4:$AI$10,2,FALSE),0)+IF('Crop 3'!$C$19=Carbon!$B41,'Crop 3'!$L$19*VLOOKUP('Crop 3'!$E$19,Carbon!$AH$4:$AI$10,2,FALSE),0)+IF('Crop 3'!$C$20=Carbon!$B41,'Crop 3'!$L$20*VLOOKUP('Crop 3'!$E$20,Carbon!$AH$4:$AI$10,2,FALSE),0)+IF('Crop 3'!$C$21=Carbon!$B41,'Crop 3'!$L$21*VLOOKUP('Crop 3'!$E$21,Carbon!$AH$4:$AI$10,2,FALSE),0)+IF('Crop 3'!$C$49=Carbon!$B41,'Crop 3'!$L$49*VLOOKUP('Crop 3'!$E$49,Carbon!$AH$4:$AI$10,2,FALSE),0)+IF('Crop 3'!$C$50=Carbon!$B41,'Crop 3'!$L$50*VLOOKUP('Crop 3'!$E$50,Carbon!$AH$4:$AI$10,2,FALSE),0)+IF('Crop 3'!$C$51=Carbon!$B41,'Crop 3'!$L$51*VLOOKUP('Crop 3'!$E$51,Carbon!$AH$4:$AI$10,2,FALSE),0)+IF('Crop 3'!$C$52=Carbon!$B41,'Crop 3'!$L$52*VLOOKUP('Crop 3'!$E$52,Carbon!$AH$4:$AI$10,2,FALSE),0)+IF('Crop 3'!$C$53=Carbon!$B41,'Crop 3'!$L$53*VLOOKUP('Crop 3'!$E$53,Carbon!$AH$4:$AI$10,2,FALSE),0)+IF('Crop 3'!$C$56=Carbon!$B41,'Crop 3'!$L$56*VLOOKUP('Crop 3'!$E$56,Carbon!$AH$4:$AI$10,2,FALSE),0)+IF('Crop 3'!$C$57=Carbon!$B41,'Crop 3'!$L$57*VLOOKUP('Crop 3'!$E$57,Carbon!$AH$4:$AI$10,2,FALSE),0)+IF('Crop 3'!$C$58=Carbon!$B41,'Crop 3'!$L$58*VLOOKUP('Crop 3'!$E$58,Carbon!$AH$4:$AI$10,2,FALSE),0)+IF('Crop 3'!$C$59=Carbon!$B41,'Crop 3'!$L$59*VLOOKUP('Crop 3'!$E$59,Carbon!$AH$4:$AI$10,2,FALSE),0)+IF('Crop 3'!$C$62=Carbon!$B41,'Crop 3'!$L$62*VLOOKUP('Crop 3'!$E$62,Carbon!$AH$4:$AI$10,2,FALSE),0)+IF('Crop 3'!$C$63=Carbon!$B41,'Crop 3'!$L$63*VLOOKUP('Crop 3'!$E$63,Carbon!$AH$4:$AI$10,2,FALSE),0)+IF('Crop 3'!$C$64=Carbon!$B41,'Crop 3'!$L$64*VLOOKUP('Crop 3'!$E$64,Carbon!$AH$4:$AI$10,2,FALSE),0)+IF('Crop 3'!$C$65=Carbon!$B41,'Crop 3'!$L$65*VLOOKUP('Crop 3'!$E$65,Carbon!$AH$4:$AI$10,2,FALSE),0))*$AL$20,2)","v":0},{"$f":"G41*Inputs!$D$17","v":0},{"$f":"ROUND(J41/Inputs!D$19,2)","v":0},0,null,null,{"$f":"ROUND((IF('Crop 1'!$C$14=Carbon!$B41,'Crop 1'!$V$14*VLOOKUP('Crop 1'!$E$14,Carbon!$AH$4:$AI$10,2,FALSE),0)+IF('Crop 1'!$C$15=Carbon!$B41,'Crop 1'!$V$15*VLOOKUP('Crop 1'!$E$15,Carbon!$AH$4:$AI$10,2,FALSE),0)+IF('Crop 1'!$C$16=Carbon!$B41,'Crop 1'!$V$16*VLOOKUP('Crop 1'!$E$16,Carbon!$AH$4:$AI$10,2,FALSE),0)+IF('Crop 1'!$C$19=Carbon!$B41,'Crop 1'!$V$19*VLOOKUP('Crop 1'!$E$19,Carbon!$AH$4:$AI$10,2,FALSE),0)+IF('Crop 1'!$C$20=Carbon!$B41,'Crop 1'!$V$20*VLOOKUP('Crop 1'!$E$20,Carbon!$AH$4:$AI$10,2,FALSE),0)+IF('Crop 1'!$C$21=Carbon!$B41,'Crop 1'!$V$21*VLOOKUP('Crop 1'!$E$21,Carbon!$AH$4:$AI$10,2,FALSE),0)+IF('Crop 1'!$C$49=Carbon!$B41,'Crop 1'!$V$49*VLOOKUP('Crop 1'!$E$49,Carbon!$AH$4:$AI$10,2,FALSE),0)+IF('Crop 1'!$C$50=Carbon!$B41,'Crop 1'!$V$50*VLOOKUP('Crop 1'!$E$50,Carbon!$AH$4:$AI$10,2,FALSE),0)+IF('Crop 1'!$C$51=Carbon!$B41,'Crop 1'!$V$51*VLOOKUP('Crop 1'!$E$51,Carbon!$AH$4:$AI$10,2,FALSE),0)+IF('Crop 1'!$C$52=Carbon!$B41,'Crop 1'!$V$52*VLOOKUP('Crop 1'!$E$52,Carbon!$AH$4:$AI$10,2,FALSE),0)+IF('Crop 1'!$C$53=Carbon!$B41,'Crop 1'!$V$53*VLOOKUP('Crop 1'!$E$53,Carbon!$AH$4:$AI$10,2,FALSE),0)+IF('Crop 1'!$C$56=Carbon!$B41,'Crop 1'!$V$56*VLOOKUP('Crop 1'!$E$56,Carbon!$AH$4:$AI$10,2,FALSE),0)+IF('Crop 1'!$C$57=Carbon!$B41,'Crop 1'!$V$57*VLOOKUP('Crop 1'!$E$57,Carbon!$AH$4:$AI$10,2,FALSE),0)+IF('Crop 1'!$C$58=Carbon!$B41,'Crop 1'!$V$58*VLOOKUP('Crop 1'!$E$58,Carbon!$AH$4:$AI$10,2,FALSE),0)+IF('Crop 1'!$C$59=Carbon!$B41,'Crop 1'!$V$59*VLOOKUP('Crop 1'!$E$59,Carbon!$AH$4:$AI$10,2,FALSE),0)+IF('Crop 1'!$C$62=Carbon!$B41,'Crop 1'!$V$62*VLOOKUP('Crop 1'!$E$62,Carbon!$AH$4:$AI$10,2,FALSE),0)+IF('Crop 1'!$C$63=Carbon!$B41,'Crop 1'!$V$63*VLOOKUP('Crop 1'!$E$63,Carbon!$AH$4:$AI$10,2,FALSE),0)+IF('Crop 1'!$C$64=Carbon!$B41,'Crop 1'!$V$64*VLOOKUP('Crop 1'!$E$64,Carbon!$AH$4:$AI$10,2,FALSE),0)+IF('Crop 1'!$C$65=Carbon!$B41,'Crop 1'!$V$65*VLOOKUP('Crop 1'!$E$65,Carbon!$AH$4:$AI$10,2,FALSE),0))*$AL$20,2)","v":0},{"$f":"M41*Inputs!$D$13","v":0},{"$f":"ROUND((IF('Crop 2'!$C$14=Carbon!$B41,'Crop 2'!$V$14*VLOOKUP('Crop 2'!$E$14,Carbon!$AH$4:$AI$10,2,FALSE),0)+IF('Crop 2'!$C$15=Carbon!$B41,'Crop 2'!$V$15*VLOOKUP('Crop 2'!$E$15,Carbon!$AH$4:$AI$10,2,FALSE),0)+IF('Crop 2'!$C$16=Carbon!$B41,'Crop 2'!$V$16*VLOOKUP('Crop 2'!$E$16,Carbon!$AH$4:$AI$10,2,FALSE),0)+IF('Crop 2'!$C$19=Carbon!$B41,'Crop 2'!$V$19*VLOOKUP('Crop 2'!$E$19,Carbon!$AH$4:$AI$10,2,FALSE),0)+IF('Crop 2'!$C$20=Carbon!$B41,'Crop 2'!$V$20*VLOOKUP('Crop 2'!$E$20,Carbon!$AH$4:$AI$10,2,FALSE),0)+IF('Crop 2'!$C$21=Carbon!$B41,'Crop 2'!$V$21*VLOOKUP('Crop 2'!$E$21,Carbon!$AH$4:$AI$10,2,FALSE),0)+IF('Crop 2'!$C$49=Carbon!$B41,'Crop 2'!$V$49*VLOOKUP('Crop 2'!$E$49,Carbon!$AH$4:$AI$10,2,FALSE),0)+IF('Crop 2'!$C$50=Carbon!$B41,'Crop 2'!$V$50*VLOOKUP('Crop 2'!$E$50,Carbon!$AH$4:$AI$10,2,FALSE),0)+IF('Crop 2'!$C$51=Carbon!$B41,'Crop 2'!$V$51*VLOOKUP('Crop 2'!$E$51,Carbon!$AH$4:$AI$10,2,FALSE),0)+IF('Crop 2'!$C$52=Carbon!$B41,'Crop 2'!$V$52*VLOOKUP('Crop 2'!$E$52,Carbon!$AH$4:$AI$10,2,FALSE),0)+IF('Crop 2'!$C$53=Carbon!$B41,'Crop 2'!$V$53*VLOOKUP('Crop 2'!$E$53,Carbon!$AH$4:$AI$10,2,FALSE),0)+IF('Crop 2'!$C$56=Carbon!$B41,'Crop 2'!$V$56*VLOOKUP('Crop 2'!$E$56,Carbon!$AH$4:$AI$10,2,FALSE),0)+IF('Crop 2'!$C$57=Carbon!$B41,'Crop 2'!$V$57*VLOOKUP('Crop 2'!$E$57,Carbon!$AH$4:$AI$10,2,FALSE),0)+IF('Crop 2'!$C$58=Carbon!$B41,'Crop 2'!$V$58*VLOOKUP('Crop 2'!$E$58,Carbon!$AH$4:$AI$10,2,FALSE),0)+IF('Crop 2'!$C$59=Carbon!$B41,'Crop 2'!$V$59*VLOOKUP('Crop 2'!$E$59,Carbon!$AH$4:$AI$10,2,FALSE),0)+IF('Crop 2'!$C$62=Carbon!$B41,'Crop 2'!$V$62*VLOOKUP('Crop 2'!$E$62,Carbon!$AH$4:$AI$10,2,FALSE),0)+IF('Crop 2'!$C$63=Carbon!$B41,'Crop 2'!$V$63*VLOOKUP('Crop 2'!$E$63,Carbon!$AH$4:$AI$10,2,FALSE),0)+IF('Crop 2'!$C$64=Carbon!$B41,'Crop 2'!$V$64*VLOOKUP('Crop 2'!$E$64,Carbon!$AH$4:$AI$10,2,FALSE),0)+IF('Crop 2'!$C$65=Carbon!$B41,'Crop 2'!$V$65*VLOOKUP('Crop 2'!$E$65,Carbon!$AH$4:$AI$10,2,FALSE),0))*$AL$20,2)","v":0},{"$f":"O41*Inputs!$D$15","v":0},{"$f":"ROUND((IF('Crop 3'!$C$14=Carbon!$B41,'Crop 3'!$V$14*VLOOKUP('Crop 3'!$E$14,Carbon!$AH$4:$AI$10,2,FALSE),0)+IF('Crop 3'!$C$15=Carbon!$B41,'Crop 3'!$V$15*VLOOKUP('Crop 3'!$E$15,Carbon!$AH$4:$AI$10,2,FALSE),0)+IF('Crop 3'!$C$16=Carbon!$B41,'Crop 3'!$V$16*VLOOKUP('Crop 3'!$E$16,Carbon!$AH$4:$AI$10,2,FALSE),0)+IF('Crop 3'!$C$19=Carbon!$B41,'Crop 3'!$V$19*VLOOKUP('Crop 3'!$E$19,Carbon!$AH$4:$AI$10,2,FALSE),0)+IF('Crop 3'!$C$20=Carbon!$B41,'Crop 3'!$V$20*VLOOKUP('Crop 3'!$E$20,Carbon!$AH$4:$AI$10,2,FALSE),0)+IF('Crop 3'!$C$21=Carbon!$B41,'Crop 3'!$V$21*VLOOKUP('Crop 3'!$E$21,Carbon!$AH$4:$AI$10,2,FALSE),0)+IF('Crop 3'!$C$49=Carbon!$B41,'Crop 3'!$V$49*VLOOKUP('Crop 3'!$E$49,Carbon!$AH$4:$AI$10,2,FALSE),0)+IF('Crop 3'!$C$50=Carbon!$B41,'Crop 3'!$V$50*VLOOKUP('Crop 3'!$E$50,Carbon!$AH$4:$AI$10,2,FALSE),0)+IF('Crop 3'!$C$51=Carbon!$B41,'Crop 3'!$V$51*VLOOKUP('Crop 3'!$E$51,Carbon!$AH$4:$AI$10,2,FALSE),0)+IF('Crop 3'!$C$52=Carbon!$B41,'Crop 3'!$V$52*VLOOKUP('Crop 3'!$E$52,Carbon!$AH$4:$AI$10,2,FALSE),0)+IF('Crop 3'!$C$53=Carbon!$B41,'Crop 3'!$V$53*VLOOKUP('Crop 3'!$E$53,Carbon!$AH$4:$AI$10,2,FALSE),0)+IF('Crop 3'!$C$56=Carbon!$B41,'Crop 3'!$V$56*VLOOKUP('Crop 3'!$E$56,Carbon!$AH$4:$AI$10,2,FALSE),0)+IF('Crop 3'!$C$57=Carbon!$B41,'Crop 3'!$V$57*VLOOKUP('Crop 3'!$E$57,Carbon!$AH$4:$AI$10,2,FALSE),0)+IF('Crop 3'!$C$58=Carbon!$B41,'Crop 3'!$V$58*VLOOKUP('Crop 3'!$E$58,Carbon!$AH$4:$AI$10,2,FALSE),0)+IF('Crop 3'!$C$59=Carbon!$B41,'Crop 3'!$V$59*VLOOKUP('Crop 3'!$E$59,Carbon!$AH$4:$AI$10,2,FALSE),0)+IF('Crop 3'!$C$62=Carbon!$B41,'Crop 3'!$V$62*VLOOKUP('Crop 3'!$E$62,Carbon!$AH$4:$AI$10,2,FALSE),0)+IF('Crop 3'!$C$63=Carbon!$B41,'Crop 3'!$V$63*VLOOKUP('Crop 3'!$E$63,Carbon!$AH$4:$AI$10,2,FALSE),0)+IF('Crop 3'!$C$64=Carbon!$B41,'Crop 3'!$V$64*VLOOKUP('Crop 3'!$E$64,Carbon!$AH$4:$AI$10,2,FALSE),0)+IF('Crop 3'!$C$65=Carbon!$B41,'Crop 3'!$V$65*VLOOKUP('Crop 3'!$E$65,Carbon!$AH$4:$AI$10,2,FALSE),0))*$AL$20,2)","v":0},{"$f":"Q41*Inputs!$D$17","v":0},{"$f":"ROUND(T41/Inputs!D$19,2)","v":0},0,null,null,0,{"$f":"W41*Inputs!$D$13","v":0},0,{"$f":"Y41*Inputs!$D$13","v":0},0,{"$f":"AA41*Inputs!$D$13","v":0},{"$f":"ROUND(AD41/Inputs!D$19,2)","v":0},0]
[null,{"$f":"Defaults!AH8","v":"Aim"},{"$f":"ROUND((IF('Crop 1'!$C$14=Carbon!$B42,'Crop 1'!$L$14*VLOOKUP('Crop 1'!$E$14,Carbon!$AH$4:$AI$10,2,FALSE),0)+IF('Crop 1'!$C$15=Carbon!$B42,'Crop 1'!$L$15*VLOOKUP('Crop 1'!$E$15,Carbon!$AH$4:$AI$10,2,FALSE),0)+IF('Crop 1'!$C$16=Carbon!$B42,'Crop 1'!$L$16*VLOOKUP('Crop 1'!$E$16,Carbon!$AH$4:$AI$10,2,FALSE),0)+IF('Crop 1'!$C$19=Carbon!$B42,'Crop 1'!$L$19*VLOOKUP('Crop 1'!$E$19,Carbon!$AH$4:$AI$10,2,FALSE),0)+IF('Crop 1'!$C$20=Carbon!$B42,'Crop 1'!$L$20*VLOOKUP('Crop 1'!$E$20,Carbon!$AH$4:$AI$10,2,FALSE),0)+IF('Crop 1'!$C$21=Carbon!$B42,'Crop 1'!$L$21*VLOOKUP('Crop 1'!$E$21,Carbon!$AH$4:$AI$10,2,FALSE),0)+IF('Crop 1'!$C$49=Carbon!$B42,'Crop 1'!$L$49*VLOOKUP('Crop 1'!$E$49,Carbon!$AH$4:$AI$10,2,FALSE),0)+IF('Crop 1'!$C$50=Carbon!$B42,'Crop 1'!$L$50*VLOOKUP('Crop 1'!$E$50,Carbon!$AH$4:$AI$10,2,FALSE),0)+IF('Crop 1'!$C$51=Carbon!$B42,'Crop 1'!$L$51*VLOOKUP('Crop 1'!$E$51,Carbon!$AH$4:$AI$10,2,FALSE),0)+IF('Crop 1'!$C$52=Carbon!$B42,'Crop 1'!$L$52*VLOOKUP('Crop 1'!$E$52,Carbon!$AH$4:$AI$10,2,FALSE),0)+IF('Crop 1'!$C$53=Carbon!$B42,'Crop 1'!$L$53*VLOOKUP('Crop 1'!$E$53,Carbon!$AH$4:$AI$10,2,FALSE),0)+IF('Crop 1'!$C$56=Carbon!$B42,'Crop 1'!$L$56*VLOOKUP('Crop 1'!$E$56,Carbon!$AH$4:$AI$10,2,FALSE),0)+IF('Crop 1'!$C$57=Carbon!$B42,'Crop 1'!$L$57*VLOOKUP('Crop 1'!$E$57,Carbon!$AH$4:$AI$10,2,FALSE),0)+IF('Crop 1'!$C$58=Carbon!$B42,'Crop 1'!$L$58*VLOOKUP('Crop 1'!$E$58,Carbon!$AH$4:$AI$10,2,FALSE),0)+IF('Crop 1'!$C$59=Carbon!$B42,'Crop 1'!$L$59*VLOOKUP('Crop 1'!$E$59,Carbon!$AH$4:$AI$10,2,FALSE),0)+IF('Crop 1'!$C$62=Carbon!$B42,'Crop 1'!$L$62*VLOOKUP('Crop 1'!$E$62,Carbon!$AH$4:$AI$10,2,FALSE),0)+IF('Crop 1'!$C$63=Carbon!$B42,'Crop 1'!$L$63*VLOOKUP('Crop 1'!$E$63,Carbon!$AH$4:$AI$10,2,FALSE),0)+IF('Crop 1'!$C$64=Carbon!$B42,'Crop 1'!$L$64*VLOOKUP('Crop 1'!$E$64,Carbon!$AH$4:$AI$10,2,FALSE),0)+IF('Crop 1'!$C$65=Carbon!$B42,'Crop 1'!$L$65*VLOOKUP('Crop 1'!$E$65,Carbon!$AH$4:$AI$10,2,FALSE),0))*$AL$20,2)","v":0},{"$f":"C42*Inputs!$D$13","v":0},{"$f":"ROUND((IF('Crop 2'!$C$14=Carbon!$B42,'Crop 2'!$L$14*VLOOKUP('Crop 2'!$E$14,Carbon!$AH$4:$AI$10,2,FALSE),0)+IF('Crop 2'!$C$15=Carbon!$B42,'Crop 2'!$L$15*VLOOKUP('Crop 2'!$E$15,Carbon!$AH$4:$AI$10,2,FALSE),0)+IF('Crop 2'!$C$16=Carbon!$B42,'Crop 2'!$L$16*VLOOKUP('Crop 2'!$E$16,Carbon!$AH$4:$AI$10,2,FALSE),0)+IF('Crop 2'!$C$19=Carbon!$B42,'Crop 2'!$L$19*VLOOKUP('Crop 2'!$E$19,Carbon!$AH$4:$AI$10,2,FALSE),0)+IF('Crop 2'!$C$20=Carbon!$B42,'Crop 2'!$L$20*VLOOKUP('Crop 2'!$E$20,Carbon!$AH$4:$AI$10,2,FALSE),0)+IF('Crop 2'!$C$21=Carbon!$B42,'Crop 2'!$L$21*VLOOKUP('Crop 2'!$E$21,Carbon!$AH$4:$AI$10,2,FALSE),0)+IF('Crop 2'!$C$49=Carbon!$B42,'Crop 2'!$L$49*VLOOKUP('Crop 2'!$E$49,Carbon!$AH$4:$AI$10,2,FALSE),0)+IF('Crop 2'!$C$50=Carbon!$B42,'Crop 2'!$L$50*VLOOKUP('Crop 2'!$E$50,Carbon!$AH$4:$AI$10,2,FALSE),0)+IF('Crop 2'!$C$51=Carbon!$B42,'Crop 2'!$L$51*VLOOKUP('Crop 2'!$E$51,Carbon!$AH$4:$AI$10,2,FALSE),0)+IF('Crop 2'!$C$52=Carbon!$B42,'Crop 2'!$L$52*VLOOKUP('Crop 2'!$E$52,Carbon!$AH$4:$AI$10,2,FALSE),0)+IF('Crop 2'!$C$53=Carbon!$B42,'Crop 2'!$L$53*VLOOKUP('Crop 2'!$E$53,Carbon!$AH$4:$AI$10,2,FALSE),0)+IF('Crop 2'!$C$56=Carbon!$B42,'Crop 2'!$L$56*VLOOKUP('Crop 2'!$E$56,Carbon!$AH$4:$AI$10,2,FALSE),0)+IF('Crop 2'!$C$57=Carbon!$B42,'Crop 2'!$L$57*VLOOKUP('Crop 2'!$E$57,Carbon!$AH$4:$AI$10,2,FALSE),0)+IF('Crop 2'!$C$58=Carbon!$B42,'Crop 2'!$L$58*VLOOKUP('Crop 2'!$E$58,Carbon!$AH$4:$AI$10,2,FALSE),0)+IF('Crop 2'!$C$59=Carbon!$B42,'Crop 2'!$L$59*VLOOKUP('Crop 2'!$E$59,Carbon!$AH$4:$AI$10,2,FALSE),0)+IF('Crop 2'!$C$62=Carbon!$B42,'Crop 2'!$L$62*VLOOKUP('Crop 2'!$E$62,Carbon!$AH$4:$AI$10,2,FALSE),0)+IF('Crop 2'!$C$63=Carbon!$B42,'Crop 2'!$L$63*VLOOKUP('Crop 2'!$E$63,Carbon!$AH$4:$AI$10,2,FALSE),0)+IF('Crop 2'!$C$64=Carbon!$B42,'Crop 2'!$L$64*VLOOKUP('Crop 2'!$E$64,Carbon!$AH$4:$AI$10,2,FALSE),0)+IF('Crop 2'!$C$65=Carbon!$B42,'Crop 2'!$L$65*VLOOKUP('Crop 2'!$E$65,Carbon!$AH$4:$AI$10,2,FALSE),0))*$AL$20,2)","v":0},{"$f":"E42*Inputs!$D$15","v":0},{"$f":"ROUND((IF('Crop 3'!$C$14=Carbon!$B42,'Crop 3'!$L$14*VLOOKUP('Crop 3'!$E$14,Carbon!$AH$4:$AI$10,2,FALSE),0)+IF('Crop 3'!$C$15=Carbon!$B42,'Crop 3'!$L$15*VLOOKUP('Crop 3'!$E$15,Carbon!$AH$4:$AI$10,2,FALSE),0)+IF('Crop 3'!$C$16=Carbon!$B42,'Crop 3'!$L$16*VLOOKUP('Crop 3'!$E$16,Carbon!$AH$4:$AI$10,2,FALSE),0)+IF('Crop 3'!$C$19=Carbon!$B42,'Crop 3'!$L$19*VLOOKUP('Crop 3'!$E$19,Carbon!$AH$4:$AI$10,2,FALSE),0)+IF('Crop 3'!$C$20=Carbon!$B42,'Crop 3'!$L$20*VLOOKUP('Crop 3'!$E$20,Carbon!$AH$4:$AI$10,2,FALSE),0)+IF('Crop 3'!$C$21=Carbon!$B42,'Crop 3'!$L$21*VLOOKUP('Crop 3'!$E$21,Carbon!$AH$4:$AI$10,2,FALSE),0)+IF('Crop 3'!$C$49=Carbon!$B42,'Crop 3'!$L$49*VLOOKUP('Crop 3'!$E$49,Carbon!$AH$4:$AI$10,2,FALSE),0)+IF('Crop 3'!$C$50=Carbon!$B42,'Crop 3'!$L$50*VLOOKUP('Crop 3'!$E$50,Carbon!$AH$4:$AI$10,2,FALSE),0)+IF('Crop 3'!$C$51=Carbon!$B42,'Crop 3'!$L$51*VLOOKUP('Crop 3'!$E$51,Carbon!$AH$4:$AI$10,2,FALSE),0)+IF('Crop 3'!$C$52=Carbon!$B42,'Crop 3'!$L$52*VLOOKUP('Crop 3'!$E$52,Carbon!$AH$4:$AI$10,2,FALSE),0)+IF('Crop 3'!$C$53=Carbon!$B42,'Crop 3'!$L$53*VLOOKUP('Crop 3'!$E$53,Carbon!$AH$4:$AI$10,2,FALSE),0)+IF('Crop 3'!$C$56=Carbon!$B42,'Crop 3'!$L$56*VLOOKUP('Crop 3'!$E$56,Carbon!$AH$4:$AI$10,2,FALSE),0)+IF('Crop 3'!$C$57=Carbon!$B42,'Crop 3'!$L$57*VLOOKUP('Crop 3'!$E$57,Carbon!$AH$4:$AI$10,2,FALSE),0)+IF('Crop 3'!$C$58=Carbon!$B42,'Crop 3'!$L$58*VLOOKUP('Crop 3'!$E$58,Carbon!$AH$4:$AI$10,2,FALSE),0)+IF('Crop 3'!$C$59=Carbon!$B42,'Crop 3'!$L$59*VLOOKUP('Crop 3'!$E$59,Carbon!$AH$4:$AI$10,2,FALSE),0)+IF('Crop 3'!$C$62=Carbon!$B42,'Crop 3'!$L$62*VLOOKUP('Crop 3'!$E$62,Carbon!$AH$4:$AI$10,2,FALSE),0)+IF('Crop 3'!$C$63=Carbon!$B42,'Crop 3'!$L$63*VLOOKUP('Crop 3'!$E$63,Carbon!$AH$4:$AI$10,2,FALSE),0)+IF('Crop 3'!$C$64=Carbon!$B42,'Crop 3'!$L$64*VLOOKUP('Crop 3'!$E$64,Carbon!$AH$4:$AI$10,2,FALSE),0)+IF('Crop 3'!$C$65=Carbon!$B42,'Crop 3'!$L$65*VLOOKUP('Crop 3'!$E$65,Carbon!$AH$4:$AI$10,2,FALSE),0))*$AL$20,2)","v":0},{"$f":"G42*Inputs!$D$17","v":0},{"$f":"ROUND(J42/Inputs!D$19,2)","v":0},0,null,null,{"$f":"ROUND((IF('Crop 1'!$C$14=Carbon!$B42,'Crop 1'!$V$14*VLOOKUP('Crop 1'!$E$14,Carbon!$AH$4:$AI$10,2,FALSE),0)+IF('Crop 1'!$C$15=Carbon!$B42,'Crop 1'!$V$15*VLOOKUP('Crop 1'!$E$15,Carbon!$AH$4:$AI$10,2,FALSE),0)+IF('Crop 1'!$C$16=Carbon!$B42,'Crop 1'!$V$16*VLOOKUP('Crop 1'!$E$16,Carbon!$AH$4:$AI$10,2,FALSE),0)+IF('Crop 1'!$C$19=Carbon!$B42,'Crop 1'!$V$19*VLOOKUP('Crop 1'!$E$19,Carbon!$AH$4:$AI$10,2,FALSE),0)+IF('Crop 1'!$C$20=Carbon!$B42,'Crop 1'!$V$20*VLOOKUP('Crop 1'!$E$20,Carbon!$AH$4:$AI$10,2,FALSE),0)+IF('Crop 1'!$C$21=Carbon!$B42,'Crop 1'!$V$21*VLOOKUP('Crop 1'!$E$21,Carbon!$AH$4:$AI$10,2,FALSE),0)+IF('Crop 1'!$C$49=Carbon!$B42,'Crop 1'!$V$49*VLOOKUP('Crop 1'!$E$49,Carbon!$AH$4:$AI$10,2,FALSE),0)+IF('Crop 1'!$C$50=Carbon!$B42,'Crop 1'!$V$50*VLOOKUP('Crop 1'!$E$50,Carbon!$AH$4:$AI$10,2,FALSE),0)+IF('Crop 1'!$C$51=Carbon!$B42,'Crop 1'!$V$51*VLOOKUP('Crop 1'!$E$51,Carbon!$AH$4:$AI$10,2,FALSE),0)+IF('Crop 1'!$C$52=Carbon!$B42,'Crop 1'!$V$52*VLOOKUP('Crop 1'!$E$52,Carbon!$AH$4:$AI$10,2,FALSE),0)+IF('Crop 1'!$C$53=Carbon!$B42,'Crop 1'!$V$53*VLOOKUP('Crop 1'!$E$53,Carbon!$AH$4:$AI$10,2,FALSE),0)+IF('Crop 1'!$C$56=Carbon!$B42,'Crop 1'!$V$56*VLOOKUP('Crop 1'!$E$56,Carbon!$AH$4:$AI$10,2,FALSE),0)+IF('Crop 1'!$C$57=Carbon!$B42,'Crop 1'!$V$57*VLOOKUP('Crop 1'!$E$57,Carbon!$AH$4:$AI$10,2,FALSE),0)+IF('Crop 1'!$C$58=Carbon!$B42,'Crop 1'!$V$58*VLOOKUP('Crop 1'!$E$58,Carbon!$AH$4:$AI$10,2,FALSE),0)+IF('Crop 1'!$C$59=Carbon!$B42,'Crop 1'!$V$59*VLOOKUP('Crop 1'!$E$59,Carbon!$AH$4:$AI$10,2,FALSE),0)+IF('Crop 1'!$C$62=Carbon!$B42,'Crop 1'!$V$62*VLOOKUP('Crop 1'!$E$62,Carbon!$AH$4:$AI$10,2,FALSE),0)+IF('Crop 1'!$C$63=Carbon!$B42,'Crop 1'!$V$63*VLOOKUP('Crop 1'!$E$63,Carbon!$AH$4:$AI$10,2,FALSE),0)+IF('Crop 1'!$C$64=Carbon!$B42,'Crop 1'!$V$64*VLOOKUP('Crop 1'!$E$64,Carbon!$AH$4:$AI$10,2,FALSE),0)+IF('Crop 1'!$C$65=Carbon!$B42,'Crop 1'!$V$65*VLOOKUP('Crop 1'!$E$65,Carbon!$AH$4:$AI$10,2,FALSE),0))*$AL$20,2)","v":0},{"$f":"M42*Inputs!$D$13","v":0},{"$f":"ROUND((IF('Crop 2'!$C$14=Carbon!$B42,'Crop 2'!$V$14*VLOOKUP('Crop 2'!$E$14,Carbon!$AH$4:$AI$10,2,FALSE),0)+IF('Crop 2'!$C$15=Carbon!$B42,'Crop 2'!$V$15*VLOOKUP('Crop 2'!$E$15,Carbon!$AH$4:$AI$10,2,FALSE),0)+IF('Crop 2'!$C$16=Carbon!$B42,'Crop 2'!$V$16*VLOOKUP('Crop 2'!$E$16,Carbon!$AH$4:$AI$10,2,FALSE),0)+IF('Crop 2'!$C$19=Carbon!$B42,'Crop 2'!$V$19*VLOOKUP('Crop 2'!$E$19,Carbon!$AH$4:$AI$10,2,FALSE),0)+IF('Crop 2'!$C$20=Carbon!$B42,'Crop 2'!$V$20*VLOOKUP('Crop 2'!$E$20,Carbon!$AH$4:$AI$10,2,FALSE),0)+IF('Crop 2'!$C$21=Carbon!$B42,'Crop 2'!$V$21*VLOOKUP('Crop 2'!$E$21,Carbon!$AH$4:$AI$10,2,FALSE),0)+IF('Crop 2'!$C$49=Carbon!$B42,'Crop 2'!$V$49*VLOOKUP('Crop 2'!$E$49,Carbon!$AH$4:$AI$10,2,FALSE),0)+IF('Crop 2'!$C$50=Carbon!$B42,'Crop 2'!$V$50*VLOOKUP('Crop 2'!$E$50,Carbon!$AH$4:$AI$10,2,FALSE),0)+IF('Crop 2'!$C$51=Carbon!$B42,'Crop 2'!$V$51*VLOOKUP('Crop 2'!$E$51,Carbon!$AH$4:$AI$10,2,FALSE),0)+IF('Crop 2'!$C$52=Carbon!$B42,'Crop 2'!$V$52*VLOOKUP('Crop 2'!$E$52,Carbon!$AH$4:$AI$10,2,FALSE),0)+IF('Crop 2'!$C$53=Carbon!$B42,'Crop 2'!$V$53*VLOOKUP('Crop 2'!$E$53,Carbon!$AH$4:$AI$10,2,FALSE),0)+IF('Crop 2'!$C$56=Carbon!$B42,'Crop 2'!$V$56*VLOOKUP('Crop 2'!$E$56,Carbon!$AH$4:$AI$10,2,FALSE),0)+IF('Crop 2'!$C$57=Carbon!$B42,'Crop 2'!$V$57*VLOOKUP('Crop 2'!$E$57,Carbon!$AH$4:$AI$10,2,FALSE),0)+IF('Crop 2'!$C$58=Carbon!$B42,'Crop 2'!$V$58*VLOOKUP('Crop 2'!$E$58,Carbon!$AH$4:$AI$10,2,FALSE),0)+IF('Crop 2'!$C$59=Carbon!$B42,'Crop 2'!$V$59*VLOOKUP('Crop 2'!$E$59,Carbon!$AH$4:$AI$10,2,FALSE),0)+IF('Crop 2'!$C$62=Carbon!$B42,'Crop 2'!$V$62*VLOOKUP('Crop 2'!$E$62,Carbon!$AH$4:$AI$10,2,FALSE),0)+IF('Crop 2'!$C$63=Carbon!$B42,'Crop 2'!$V$63*VLOOKUP('Crop 2'!$E$63,Carbon!$AH$4:$AI$10,2,FALSE),0)+IF('Crop 2'!$C$64=Carbon!$B42,'Crop 2'!$V$64*VLOOKUP('Crop 2'!$E$64,Carbon!$AH$4:$AI$10,2,FALSE),0)+IF('Crop 2'!$C$65=Carbon!$B42,'Crop 2'!$V$65*VLOOKUP('Crop 2'!$E$65,Carbon!$AH$4:$AI$10,2,FALSE),0))*$AL$20,2)","v":0},{"$f":"O42*Inputs!$D$15","v":0},{"$f":"ROUND((IF('Crop 3'!$C$14=Carbon!$B42,'Crop 3'!$V$14*VLOOKUP('Crop 3'!$E$14,Carbon!$AH$4:$AI$10,2,FALSE),0)+IF('Crop 3'!$C$15=Carbon!$B42,'Crop 3'!$V$15*VLOOKUP('Crop 3'!$E$15,Carbon!$AH$4:$AI$10,2,FALSE),0)+IF('Crop 3'!$C$16=Carbon!$B42,'Crop 3'!$V$16*VLOOKUP('Crop 3'!$E$16,Carbon!$AH$4:$AI$10,2,FALSE),0)+IF('Crop 3'!$C$19=Carbon!$B42,'Crop 3'!$V$19*VLOOKUP('Crop 3'!$E$19,Carbon!$AH$4:$AI$10,2,FALSE),0)+IF('Crop 3'!$C$20=Carbon!$B42,'Crop 3'!$V$20*VLOOKUP('Crop 3'!$E$20,Carbon!$AH$4:$AI$10,2,FALSE),0)+IF('Crop 3'!$C$21=Carbon!$B42,'Crop 3'!$V$21*VLOOKUP('Crop 3'!$E$21,Carbon!$AH$4:$AI$10,2,FALSE),0)+IF('Crop 3'!$C$49=Carbon!$B42,'Crop 3'!$V$49*VLOOKUP('Crop 3'!$E$49,Carbon!$AH$4:$AI$10,2,FALSE),0)+IF('Crop 3'!$C$50=Carbon!$B42,'Crop 3'!$V$50*VLOOKUP('Crop 3'!$E$50,Carbon!$AH$4:$AI$10,2,FALSE),0)+IF('Crop 3'!$C$51=Carbon!$B42,'Crop 3'!$V$51*VLOOKUP('Crop 3'!$E$51,Carbon!$AH$4:$AI$10,2,FALSE),0)+IF('Crop 3'!$C$52=Carbon!$B42,'Crop 3'!$V$52*VLOOKUP('Crop 3'!$E$52,Carbon!$AH$4:$AI$10,2,FALSE),0)+IF('Crop 3'!$C$53=Carbon!$B42,'Crop 3'!$V$53*VLOOKUP('Crop 3'!$E$53,Carbon!$AH$4:$AI$10,2,FALSE),0)+IF('Crop 3'!$C$56=Carbon!$B42,'Crop 3'!$V$56*VLOOKUP('Crop 3'!$E$56,Carbon!$AH$4:$AI$10,2,FALSE),0)+IF('Crop 3'!$C$57=Carbon!$B42,'Crop 3'!$V$57*VLOOKUP('Crop 3'!$E$57,Carbon!$AH$4:$AI$10,2,FALSE),0)+IF('Crop 3'!$C$58=Carbon!$B42,'Crop 3'!$V$58*VLOOKUP('Crop 3'!$E$58,Carbon!$AH$4:$AI$10,2,FALSE),0)+IF('Crop 3'!$C$59=Carbon!$B42,'Crop 3'!$V$59*VLOOKUP('Crop 3'!$E$59,Carbon!$AH$4:$AI$10,2,FALSE),0)+IF('Crop 3'!$C$62=Carbon!$B42,'Crop 3'!$V$62*VLOOKUP('Crop 3'!$E$62,Carbon!$AH$4:$AI$10,2,FALSE),0)+IF('Crop 3'!$C$63=Carbon!$B42,'Crop 3'!$V$63*VLOOKUP('Crop 3'!$E$63,Carbon!$AH$4:$AI$10,2,FALSE),0)+IF('Crop 3'!$C$64=Carbon!$B42,'Crop 3'!$V$64*VLOOKUP('Crop 3'!$E$64,Carbon!$AH$4:$AI$10,2,FALSE),0)+IF('Crop 3'!$C$65=Carbon!$B42,'Crop 3'!$V$65*VLOOKUP('Crop 3'!$E$65,Carbon!$AH$4:$AI$10,2,FALSE),0))*$AL$20,2)","v":0},{"$f":"Q42*Inputs!$D$17","v":0},{"$f":"ROUND(T42/Inputs!D$19,2)","v":0},0,null,null,0,{"$f":"W42*Inputs!$D$13","v":0},0,{"$f":"Y42*Inputs!$D$13","v":0},0,{"$f":"AA42*Inputs!$D$13","v":0},{"$f":"ROUND(AD42/Inputs!D$19,2)","v":0},0]
[null,{"$f":"Defaults!AH9","v":"Anthem Flex"},{"$f":"ROUND((IF('Crop 1'!$C$14=Carbon!$B43,'Crop 1'!$L$14*VLOOKUP('Crop 1'!$E$14,Carbon!$AH$4:$AI$10,2,FALSE),0)+IF('Crop 1'!$C$15=Carbon!$B43,'Crop 1'!$L$15*VLOOKUP('Crop 1'!$E$15,Carbon!$AH$4:$AI$10,2,FALSE),0)+IF('Crop 1'!$C$16=Carbon!$B43,'Crop 1'!$L$16*VLOOKUP('Crop 1'!$E$16,Carbon!$AH$4:$AI$10,2,FALSE),0)+IF('Crop 1'!$C$19=Carbon!$B43,'Crop 1'!$L$19*VLOOKUP('Crop 1'!$E$19,Carbon!$AH$4:$AI$10,2,FALSE),0)+IF('Crop 1'!$C$20=Carbon!$B43,'Crop 1'!$L$20*VLOOKUP('Crop 1'!$E$20,Carbon!$AH$4:$AI$10,2,FALSE),0)+IF('Crop 1'!$C$21=Carbon!$B43,'Crop 1'!$L$21*VLOOKUP('Crop 1'!$E$21,Carbon!$AH$4:$AI$10,2,FALSE),0)+IF('Crop 1'!$C$49=Carbon!$B43,'Crop 1'!$L$49*VLOOKUP('Crop 1'!$E$49,Carbon!$AH$4:$AI$10,2,FALSE),0)+IF('Crop 1'!$C$50=Carbon!$B43,'Crop 1'!$L$50*VLOOKUP('Crop 1'!$E$50,Carbon!$AH$4:$AI$10,2,FALSE),0)+IF('Crop 1'!$C$51=Carbon!$B43,'Crop 1'!$L$51*VLOOKUP('Crop 1'!$E$51,Carbon!$AH$4:$AI$10,2,FALSE),0)+IF('Crop 1'!$C$52=Carbon!$B43,'Crop 1'!$L$52*VLOOKUP('Crop 1'!$E$52,Carbon!$AH$4:$AI$10,2,FALSE),0)+IF('Crop 1'!$C$53=Carbon!$B43,'Crop 1'!$L$53*VLOOKUP('Crop 1'!$E$53,Carbon!$AH$4:$AI$10,2,FALSE),0)+IF('Crop 1'!$C$56=Carbon!$B43,'Crop 1'!$L$56*VLOOKUP('Crop 1'!$E$56,Carbon!$AH$4:$AI$10,2,FALSE),0)+IF('Crop 1'!$C$57=Carbon!$B43,'Crop 1'!$L$57*VLOOKUP('Crop 1'!$E$57,Carbon!$AH$4:$AI$10,2,FALSE),0)+IF('Crop 1'!$C$58=Carbon!$B43,'Crop 1'!$L$58*VLOOKUP('Crop 1'!$E$58,Carbon!$AH$4:$AI$10,2,FALSE),0)+IF('Crop 1'!$C$59=Carbon!$B43,'Crop 1'!$L$59*VLOOKUP('Crop 1'!$E$59,Carbon!$AH$4:$AI$10,2,FALSE),0)+IF('Crop 1'!$C$62=Carbon!$B43,'Crop 1'!$L$62*VLOOKUP('Crop 1'!$E$62,Carbon!$AH$4:$AI$10,2,FALSE),0)+IF('Crop 1'!$C$63=Carbon!$B43,'Crop 1'!$L$63*VLOOKUP('Crop 1'!$E$63,Carbon!$AH$4:$AI$10,2,FALSE),0)+IF('Crop 1'!$C$64=Carbon!$B43,'Crop 1'!$L$64*VLOOKUP('Crop 1'!$E$64,Carbon!$AH$4:$AI$10,2,FALSE),0)+IF('Crop 1'!$C$65=Carbon!$B43,'Crop 1'!$L$65*VLOOKUP('Crop 1'!$E$65,Carbon!$AH$4:$AI$10,2,FALSE),0))*$AL$20,2)","v":0},{"$f":"C43*Inputs!$D$13","v":0},{"$f":"ROUND((IF('Crop 2'!$C$14=Carbon!$B43,'Crop 2'!$L$14*VLOOKUP('Crop 2'!$E$14,Carbon!$AH$4:$AI$10,2,FALSE),0)+IF('Crop 2'!$C$15=Carbon!$B43,'Crop 2'!$L$15*VLOOKUP('Crop 2'!$E$15,Carbon!$AH$4:$AI$10,2,FALSE),0)+IF('Crop 2'!$C$16=Carbon!$B43,'Crop 2'!$L$16*VLOOKUP('Crop 2'!$E$16,Carbon!$AH$4:$AI$10,2,FALSE),0)+IF('Crop 2'!$C$19=Carbon!$B43,'Crop 2'!$L$19*VLOOKUP('Crop 2'!$E$19,Carbon!$AH$4:$AI$10,2,FALSE),0)+IF('Crop 2'!$C$20=Carbon!$B43,'Crop 2'!$L$20*VLOOKUP('Crop 2'!$E$20,Carbon!$AH$4:$AI$10,2,FALSE),0)+IF('Crop 2'!$C$21=Carbon!$B43,'Crop 2'!$L$21*VLOOKUP('Crop 2'!$E$21,Carbon!$AH$4:$AI$10,2,FALSE),0)+IF('Crop 2'!$C$49=Carbon!$B43,'Crop 2'!$L$49*VLOOKUP('Crop 2'!$E$49,Carbon!$AH$4:$AI$10,2,FALSE),0)+IF('Crop 2'!$C$50=Carbon!$B43,'Crop 2'!$L$50*VLOOKUP('Crop 2'!$E$50,Carbon!$AH$4:$AI$10,2,FALSE),0)+IF('Crop 2'!$C$51=Carbon!$B43,'Crop 2'!$L$51*VLOOKUP('Crop 2'!$E$51,Carbon!$AH$4:$AI$10,2,FALSE),0)+IF('Crop 2'!$C$52=Carbon!$B43,'Crop 2'!$L$52*VLOOKUP('Crop 2'!$E$52,Carbon!$AH$4:$AI$10,2,FALSE),0)+IF('Crop 2'!$C$53=Carbon!$B43,'Crop 2'!$L$53*VLOOKUP('Crop 2'!$E$53,Carbon!$AH$4:$AI$10,2,FALSE),0)+IF('Crop 2'!$C$56=Carbon!$B43,'Crop 2'!$L$56*VLOOKUP('Crop 2'!$E$56,Carbon!$AH$4:$AI$10,2,FALSE),0)+IF('Crop 2'!$C$57=Carbon!$B43,'Crop 2'!$L$57*VLOOKUP('Crop 2'!$E$57,Carbon!$AH$4:$AI$10,2,FALSE),0)+IF('Crop 2'!$C$58=Carbon!$B43,'Crop 2'!$L$58*VLOOKUP('Crop 2'!$E$58,Carbon!$AH$4:$AI$10,2,FALSE),0)+IF('Crop 2'!$C$59=Carbon!$B43,'Crop 2'!$L$59*VLOOKUP('Crop 2'!$E$59,Carbon!$AH$4:$AI$10,2,FALSE),0)+IF('Crop 2'!$C$62=Carbon!$B43,'Crop 2'!$L$62*VLOOKUP('Crop 2'!$E$62,Carbon!$AH$4:$AI$10,2,FALSE),0)+IF('Crop 2'!$C$63=Carbon!$B43,'Crop 2'!$L$63*VLOOKUP('Crop 2'!$E$63,Carbon!$AH$4:$AI$10,2,FALSE),0)+IF('Crop 2'!$C$64=Carbon!$B43,'Crop 2'!$L$64*VLOOKUP('Crop 2'!$E$64,Carbon!$AH$4:$AI$10,2,FALSE),0)+IF('Crop 2'!$C$65=Carbon!$B43,'Crop 2'!$L$65*VLOOKUP('Crop 2'!$E$65,Carbon!$AH$4:$AI$10,2,FALSE),0))*$AL$20,2)","v":0},{"$f":"E43*Inputs!$D$15","v":0},{"$f":"ROUND((IF('Crop 3'!$C$14=Carbon!$B43,'Crop 3'!$L$14*VLOOKUP('Crop 3'!$E$14,Carbon!$AH$4:$AI$10,2,FALSE),0)+IF('Crop 3'!$C$15=Carbon!$B43,'Crop 3'!$L$15*VLOOKUP('Crop 3'!$E$15,Carbon!$AH$4:$AI$10,2,FALSE),0)+IF('Crop 3'!$C$16=Carbon!$B43,'Crop 3'!$L$16*VLOOKUP('Crop 3'!$E$16,Carbon!$AH$4:$AI$10,2,FALSE),0)+IF('Crop 3'!$C$19=Carbon!$B43,'Crop 3'!$L$19*VLOOKUP('Crop 3'!$E$19,Carbon!$AH$4:$AI$10,2,FALSE),0)+IF('Crop 3'!$C$20=Carbon!$B43,'Crop 3'!$L$20*VLOOKUP('Crop 3'!$E$20,Carbon!$AH$4:$AI$10,2,FALSE),0)+IF('Crop 3'!$C$21=Carbon!$B43,'Crop 3'!$L$21*VLOOKUP('Crop 3'!$E$21,Carbon!$AH$4:$AI$10,2,FALSE),0)+IF('Crop 3'!$C$49=Carbon!$B43,'Crop 3'!$L$49*VLOOKUP('Crop 3'!$E$49,Carbon!$AH$4:$AI$10,2,FALSE),0)+IF('Crop 3'!$C$50=Carbon!$B43,'Crop 3'!$L$50*VLOOKUP('Crop 3'!$E$50,Carbon!$AH$4:$AI$10,2,FALSE),0)+IF('Crop 3'!$C$51=Carbon!$B43,'Crop 3'!$L$51*VLOOKUP('Crop 3'!$E$51,Carbon!$AH$4:$AI$10,2,FALSE),0)+IF('Crop 3'!$C$52=Carbon!$B43,'Crop 3'!$L$52*VLOOKUP('Crop 3'!$E$52,Carbon!$AH$4:$AI$10,2,FALSE),0)+IF('Crop 3'!$C$53=Carbon!$B43,'Crop 3'!$L$53*VLOOKUP('Crop 3'!$E$53,Carbon!$AH$4:$AI$10,2,FALSE),0)+IF('Crop 3'!$C$56=Carbon!$B43,'Crop 3'!$L$56*VLOOKUP('Crop 3'!$E$56,Carbon!$AH$4:$AI$10,2,FALSE),0)+IF('Crop 3'!$C$57=Carbon!$B43,'Crop 3'!$L$57*VLOOKUP('Crop 3'!$E$57,Carbon!$AH$4:$AI$10,2,FALSE),0)+IF('Crop 3'!$C$58=Carbon!$B43,'Crop 3'!$L$58*VLOOKUP('Crop 3'!$E$58,Carbon!$AH$4:$AI$10,2,FALSE),0)+IF('Crop 3'!$C$59=Carbon!$B43,'Crop 3'!$L$59*VLOOKUP('Crop 3'!$E$59,Carbon!$AH$4:$AI$10,2,FALSE),0)+IF('Crop 3'!$C$62=Carbon!$B43,'Crop 3'!$L$62*VLOOKUP('Crop 3'!$E$62,Carbon!$AH$4:$AI$10,2,FALSE),0)+IF('Crop 3'!$C$63=Carbon!$B43,'Crop 3'!$L$63*VLOOKUP('Crop 3'!$E$63,Carbon!$AH$4:$AI$10,2,FALSE),0)+IF('Crop 3'!$C$64=Carbon!$B43,'Crop 3'!$L$64*VLOOKUP('Crop 3'!$E$64,Carbon!$AH$4:$AI$10,2,FALSE),0)+IF('Crop 3'!$C$65=Carbon!$B43,'Crop 3'!$L$65*VLOOKUP('Crop 3'!$E$65,Carbon!$AH$4:$AI$10,2,FALSE),0))*$AL$20,2)","v":0},{"$f":"G43*Inputs!$D$17","v":0},{"$f":"ROUND(J43/Inputs!D$19,2)","v":0},0,null,null,{"$f":"ROUND((IF('Crop 1'!$C$14=Carbon!$B43,'Crop 1'!$V$14*VLOOKUP('Crop 1'!$E$14,Carbon!$AH$4:$AI$10,2,FALSE),0)+IF('Crop 1'!$C$15=Carbon!$B43,'Crop 1'!$V$15*VLOOKUP('Crop 1'!$E$15,Carbon!$AH$4:$AI$10,2,FALSE),0)+IF('Crop 1'!$C$16=Carbon!$B43,'Crop 1'!$V$16*VLOOKUP('Crop 1'!$E$16,Carbon!$AH$4:$AI$10,2,FALSE),0)+IF('Crop 1'!$C$19=Carbon!$B43,'Crop 1'!$V$19*VLOOKUP('Crop 1'!$E$19,Carbon!$AH$4:$AI$10,2,FALSE),0)+IF('Crop 1'!$C$20=Carbon!$B43,'Crop 1'!$V$20*VLOOKUP('Crop 1'!$E$20,Carbon!$AH$4:$AI$10,2,FALSE),0)+IF('Crop 1'!$C$21=Carbon!$B43,'Crop 1'!$V$21*VLOOKUP('Crop 1'!$E$21,Carbon!$AH$4:$AI$10,2,FALSE),0)+IF('Crop 1'!$C$49=Carbon!$B43,'Crop 1'!$V$49*VLOOKUP('Crop 1'!$E$49,Carbon!$AH$4:$AI$10,2,FALSE),0)+IF('Crop 1'!$C$50=Carbon!$B43,'Crop 1'!$V$50*VLOOKUP('Crop 1'!$E$50,Carbon!$AH$4:$AI$10,2,FALSE),0)+IF('Crop 1'!$C$51=Carbon!$B43,'Crop 1'!$V$51*VLOOKUP('Crop 1'!$E$51,Carbon!$AH$4:$AI$10,2,FALSE),0)+IF('Crop 1'!$C$52=Carbon!$B43,'Crop 1'!$V$52*VLOOKUP('Crop 1'!$E$52,Carbon!$AH$4:$AI$10,2,FALSE),0)+IF('Crop 1'!$C$53=Carbon!$B43,'Crop 1'!$V$53*VLOOKUP('Crop 1'!$E$53,Carbon!$AH$4:$AI$10,2,FALSE),0)+IF('Crop 1'!$C$56=Carbon!$B43,'Crop 1'!$V$56*VLOOKUP('Crop 1'!$E$56,Carbon!$AH$4:$AI$10,2,FALSE),0)+IF('Crop 1'!$C$57=Carbon!$B43,'Crop 1'!$V$57*VLOOKUP('Crop 1'!$E$57,Carbon!$AH$4:$AI$10,2,FALSE),0)+IF('Crop 1'!$C$58=Carbon!$B43,'Crop 1'!$V$58*VLOOKUP('Crop 1'!$E$58,Carbon!$AH$4:$AI$10,2,FALSE),0)+IF('Crop 1'!$C$59=Carbon!$B43,'Crop 1'!$V$59*VLOOKUP('Crop 1'!$E$59,Carbon!$AH$4:$AI$10,2,FALSE),0)+IF('Crop 1'!$C$62=Carbon!$B43,'Crop 1'!$V$62*VLOOKUP('Crop 1'!$E$62,Carbon!$AH$4:$AI$10,2,FALSE),0)+IF('Crop 1'!$C$63=Carbon!$B43,'Crop 1'!$V$63*VLOOKUP('Crop 1'!$E$63,Carbon!$AH$4:$AI$10,2,FALSE),0)+IF('Crop 1'!$C$64=Carbon!$B43,'Crop 1'!$V$64*VLOOKUP('Crop 1'!$E$64,Carbon!$AH$4:$AI$10,2,FALSE),0)+IF('Crop 1'!$C$65=Carbon!$B43,'Crop 1'!$V$65*VLOOKUP('Crop 1'!$E$65,Carbon!$AH$4:$AI$10,2,FALSE),0))*$AL$20,2)","v":0},{"$f":"M43*Inputs!$D$13","v":0},{"$f":"ROUND((IF('Crop 2'!$C$14=Carbon!$B43,'Crop 2'!$V$14*VLOOKUP('Crop 2'!$E$14,Carbon!$AH$4:$AI$10,2,FALSE),0)+IF('Crop 2'!$C$15=Carbon!$B43,'Crop 2'!$V$15*VLOOKUP('Crop 2'!$E$15,Carbon!$AH$4:$AI$10,2,FALSE),0)+IF('Crop 2'!$C$16=Carbon!$B43,'Crop 2'!$V$16*VLOOKUP('Crop 2'!$E$16,Carbon!$AH$4:$AI$10,2,FALSE),0)+IF('Crop 2'!$C$19=Carbon!$B43,'Crop 2'!$V$19*VLOOKUP('Crop 2'!$E$19,Carbon!$AH$4:$AI$10,2,FALSE),0)+IF('Crop 2'!$C$20=Carbon!$B43,'Crop 2'!$V$20*VLOOKUP('Crop 2'!$E$20,Carbon!$AH$4:$AI$10,2,FALSE),0)+IF('Crop 2'!$C$21=Carbon!$B43,'Crop 2'!$V$21*VLOOKUP('Crop 2'!$E$21,Carbon!$AH$4:$AI$10,2,FALSE),0)+IF('Crop 2'!$C$49=Carbon!$B43,'Crop 2'!$V$49*VLOOKUP('Crop 2'!$E$49,Carbon!$AH$4:$AI$10,2,FALSE),0)+IF('Crop 2'!$C$50=Carbon!$B43,'Crop 2'!$V$50*VLOOKUP('Crop 2'!$E$50,Carbon!$AH$4:$AI$10,2,FALSE),0)+IF('Crop 2'!$C$51=Carbon!$B43,'Crop 2'!$V$51*VLOOKUP('Crop 2'!$E$51,Carbon!$AH$4:$AI$10,2,FALSE),0)+IF('Crop 2'!$C$52=Carbon!$B43,'Crop 2'!$V$52*VLOOKUP('Crop 2'!$E$52,Carbon!$AH$4:$AI$10,2,FALSE),0)+IF('Crop 2'!$C$53=Carbon!$B43,'Crop 2'!$V$53*VLOOKUP('Crop 2'!$E$53,Carbon!$AH$4:$AI$10,2,FALSE),0)+IF('Crop 2'!$C$56=Carbon!$B43,'Crop 2'!$V$56*VLOOKUP('Crop 2'!$E$56,Carbon!$AH$4:$AI$10,2,FALSE),0)+IF('Crop 2'!$C$57=Carbon!$B43,'Crop 2'!$V$57*VLOOKUP('Crop 2'!$E$57,Carbon!$AH$4:$AI$10,2,FALSE),0)+IF('Crop 2'!$C$58=Carbon!$B43,'Crop 2'!$V$58*VLOOKUP('Crop 2'!$E$58,Carbon!$AH$4:$AI$10,2,FALSE),0)+IF('Crop 2'!$C$59=Carbon!$B43,'Crop 2'!$V$59*VLOOKUP('Crop 2'!$E$59,Carbon!$AH$4:$AI$10,2,FALSE),0)+IF('Crop 2'!$C$62=Carbon!$B43,'Crop 2'!$V$62*VLOOKUP('Crop 2'!$E$62,Carbon!$AH$4:$AI$10,2,FALSE),0)+IF('Crop 2'!$C$63=Carbon!$B43,'Crop 2'!$V$63*VLOOKUP('Crop 2'!$E$63,Carbon!$AH$4:$AI$10,2,FALSE),0)+IF('Crop 2'!$C$64=Carbon!$B43,'Crop 2'!$V$64*VLOOKUP('Crop 2'!$E$64,Carbon!$AH$4:$AI$10,2,FALSE),0)+IF('Crop 2'!$C$65=Carbon!$B43,'Crop 2'!$V$65*VLOOKUP('Crop 2'!$E$65,Carbon!$AH$4:$AI$10,2,FALSE),0))*$AL$20,2)","v":0},{"$f":"O43*Inputs!$D$15","v":0},{"$f":"ROUND((IF('Crop 3'!$C$14=Carbon!$B43,'Crop 3'!$V$14*VLOOKUP('Crop 3'!$E$14,Carbon!$AH$4:$AI$10,2,FALSE),0)+IF('Crop 3'!$C$15=Carbon!$B43,'Crop 3'!$V$15*VLOOKUP('Crop 3'!$E$15,Carbon!$AH$4:$AI$10,2,FALSE),0)+IF('Crop 3'!$C$16=Carbon!$B43,'Crop 3'!$V$16*VLOOKUP('Crop 3'!$E$16,Carbon!$AH$4:$AI$10,2,FALSE),0)+IF('Crop 3'!$C$19=Carbon!$B43,'Crop 3'!$V$19*VLOOKUP('Crop 3'!$E$19,Carbon!$AH$4:$AI$10,2,FALSE),0)+IF('Crop 3'!$C$20=Carbon!$B43,'Crop 3'!$V$20*VLOOKUP('Crop 3'!$E$20,Carbon!$AH$4:$AI$10,2,FALSE),0)+IF('Crop 3'!$C$21=Carbon!$B43,'Crop 3'!$V$21*VLOOKUP('Crop 3'!$E$21,Carbon!$AH$4:$AI$10,2,FALSE),0)+IF('Crop 3'!$C$49=Carbon!$B43,'Crop 3'!$V$49*VLOOKUP('Crop 3'!$E$49,Carbon!$AH$4:$AI$10,2,FALSE),0)+IF('Crop 3'!$C$50=Carbon!$B43,'Crop 3'!$V$50*VLOOKUP('Crop 3'!$E$50,Carbon!$AH$4:$AI$10,2,FALSE),0)+IF('Crop 3'!$C$51=Carbon!$B43,'Crop 3'!$V$51*VLOOKUP('Crop 3'!$E$51,Carbon!$AH$4:$AI$10,2,FALSE),0)+IF('Crop 3'!$C$52=Carbon!$B43,'Crop 3'!$V$52*VLOOKUP('Crop 3'!$E$52,Carbon!$AH$4:$AI$10,2,FALSE),0)+IF('Crop 3'!$C$53=Carbon!$B43,'Crop 3'!$V$53*VLOOKUP('Crop 3'!$E$53,Carbon!$AH$4:$AI$10,2,FALSE),0)+IF('Crop 3'!$C$56=Carbon!$B43,'Crop 3'!$V$56*VLOOKUP('Crop 3'!$E$56,Carbon!$AH$4:$AI$10,2,FALSE),0)+IF('Crop 3'!$C$57=Carbon!$B43,'Crop 3'!$V$57*VLOOKUP('Crop 3'!$E$57,Carbon!$AH$4:$AI$10,2,FALSE),0)+IF('Crop 3'!$C$58=Carbon!$B43,'Crop 3'!$V$58*VLOOKUP('Crop 3'!$E$58,Carbon!$AH$4:$AI$10,2,FALSE),0)+IF('Crop 3'!$C$59=Carbon!$B43,'Crop 3'!$V$59*VLOOKUP('Crop 3'!$E$59,Carbon!$AH$4:$AI$10,2,FALSE),0)+IF('Crop 3'!$C$62=Carbon!$B43,'Crop 3'!$V$62*VLOOKUP('Crop 3'!$E$62,Carbon!$AH$4:$AI$10,2,FALSE),0)+IF('Crop 3'!$C$63=Carbon!$B43,'Crop 3'!$V$63*VLOOKUP('Crop 3'!$E$63,Carbon!$AH$4:$AI$10,2,FALSE),0)+IF('Crop 3'!$C$64=Carbon!$B43,'Crop 3'!$V$64*VLOOKUP('Crop 3'!$E$64,Carbon!$AH$4:$AI$10,2,FALSE),0)+IF('Crop 3'!$C$65=Carbon!$B43,'Crop 3'!$V$65*VLOOKUP('Crop 3'!$E$65,Carbon!$AH$4:$AI$10,2,FALSE),0))*$AL$20,2)","v":0},{"$f":"Q43*Inputs!$D$17","v":0},{"$f":"ROUND(T43/Inputs!D$19,2)","v":0},0,null,null,0,{"$f":"W43*Inputs!$D$13","v":0},0,{"$f":"Y43*Inputs!$D$13","v":0},0,{"$f":"AA43*Inputs!$D$13","v":0},{"$f":"ROUND(AD43/Inputs!D$19,2)","v":0},0]
[null,{"$f":"Defaults!AH10","v":"Anthem Maxx"},{"$f":"ROUND((IF('Crop 1'!$C$14=Carbon!$B44,'Crop 1'!$L$14*VLOOKUP('Crop 1'!$E$14,Carbon!$AH$4:$AI$10,2,FALSE),0)+IF('Crop 1'!$C$15=Carbon!$B44,'Crop 1'!$L$15*VLOOKUP('Crop 1'!$E$15,Carbon!$AH$4:$AI$10,2,FALSE),0)+IF('Crop 1'!$C$16=Carbon!$B44,'Crop 1'!$L$16*VLOOKUP('Crop 1'!$E$16,Carbon!$AH$4:$AI$10,2,FALSE),0)+IF('Crop 1'!$C$19=Carbon!$B44,'Crop 1'!$L$19*VLOOKUP('Crop 1'!$E$19,Carbon!$AH$4:$AI$10,2,FALSE),0)+IF('Crop 1'!$C$20=Carbon!$B44,'Crop 1'!$L$20*VLOOKUP('Crop 1'!$E$20,Carbon!$AH$4:$AI$10,2,FALSE),0)+IF('Crop 1'!$C$21=Carbon!$B44,'Crop 1'!$L$21*VLOOKUP('Crop 1'!$E$21,Carbon!$AH$4:$AI$10,2,FALSE),0)+IF('Crop 1'!$C$49=Carbon!$B44,'Crop 1'!$L$49*VLOOKUP('Crop 1'!$E$49,Carbon!$AH$4:$AI$10,2,FALSE),0)+IF('Crop 1'!$C$50=Carbon!$B44,'Crop 1'!$L$50*VLOOKUP('Crop 1'!$E$50,Carbon!$AH$4:$AI$10,2,FALSE),0)+IF('Crop 1'!$C$51=Carbon!$B44,'Crop 1'!$L$51*VLOOKUP('Crop 1'!$E$51,Carbon!$AH$4:$AI$10,2,FALSE),0)+IF('Crop 1'!$C$52=Carbon!$B44,'Crop 1'!$L$52*VLOOKUP('Crop 1'!$E$52,Carbon!$AH$4:$AI$10,2,FALSE),0)+IF('Crop 1'!$C$53=Carbon!$B44,'Crop 1'!$L$53*VLOOKUP('Crop 1'!$E$53,Carbon!$AH$4:$AI$10,2,FALSE),0)+IF('Crop 1'!$C$56=Carbon!$B44,'Crop 1'!$L$56*VLOOKUP('Crop 1'!$E$56,Carbon!$AH$4:$AI$10,2,FALSE),0)+IF('Crop 1'!$C$57=Carbon!$B44,'Crop 1'!$L$57*VLOOKUP('Crop 1'!$E$57,Carbon!$AH$4:$AI$10,2,FALSE),0)+IF('Crop 1'!$C$58=Carbon!$B44,'Crop 1'!$L$58*VLOOKUP('Crop 1'!$E$58,Carbon!$AH$4:$AI$10,2,FALSE),0)+IF('Crop 1'!$C$59=Carbon!$B44,'Crop 1'!$L$59*VLOOKUP('Crop 1'!$E$59,Carbon!$AH$4:$AI$10,2,FALSE),0)+IF('Crop 1'!$C$62=Carbon!$B44,'Crop 1'!$L$62*VLOOKUP('Crop 1'!$E$62,Carbon!$AH$4:$AI$10,2,FALSE),0)+IF('Crop 1'!$C$63=Carbon!$B44,'Crop 1'!$L$63*VLOOKUP('Crop 1'!$E$63,Carbon!$AH$4:$AI$10,2,FALSE),0)+IF('Crop 1'!$C$64=Carbon!$B44,'Crop 1'!$L$64*VLOOKUP('Crop 1'!$E$64,Carbon!$AH$4:$AI$10,2,FALSE),0)+IF('Crop 1'!$C$65=Carbon!$B44,'Crop 1'!$L$65*VLOOKUP('Crop 1'!$E$65,Carbon!$AH$4:$AI$10,2,FALSE),0))*$AL$20,2)","v":0},{"$f":"C44*Inputs!$D$13","v":0},{"$f":"ROUND((IF('Crop 2'!$C$14=Carbon!$B44,'Crop 2'!$L$14*VLOOKUP('Crop 2'!$E$14,Carbon!$AH$4:$AI$10,2,FALSE),0)+IF('Crop 2'!$C$15=Carbon!$B44,'Crop 2'!$L$15*VLOOKUP('Crop 2'!$E$15,Carbon!$AH$4:$AI$10,2,FALSE),0)+IF('Crop 2'!$C$16=Carbon!$B44,'Crop 2'!$L$16*VLOOKUP('Crop 2'!$E$16,Carbon!$AH$4:$AI$10,2,FALSE),0)+IF('Crop 2'!$C$19=Carbon!$B44,'Crop 2'!$L$19*VLOOKUP('Crop 2'!$E$19,Carbon!$AH$4:$AI$10,2,FALSE),0)+IF('Crop 2'!$C$20=Carbon!$B44,'Crop 2'!$L$20*VLOOKUP('Crop 2'!$E$20,Carbon!$AH$4:$AI$10,2,FALSE),0)+IF('Crop 2'!$C$21=Carbon!$B44,'Crop 2'!$L$21*VLOOKUP('Crop 2'!$E$21,Carbon!$AH$4:$AI$10,2,FALSE),0)+IF('Crop 2'!$C$49=Carbon!$B44,'Crop 2'!$L$49*VLOOKUP('Crop 2'!$E$49,Carbon!$AH$4:$AI$10,2,FALSE),0)+IF('Crop 2'!$C$50=Carbon!$B44,'Crop 2'!$L$50*VLOOKUP('Crop 2'!$E$50,Carbon!$AH$4:$AI$10,2,FALSE),0)+IF('Crop 2'!$C$51=Carbon!$B44,'Crop 2'!$L$51*VLOOKUP('Crop 2'!$E$51,Carbon!$AH$4:$AI$10,2,FALSE),0)+IF('Crop 2'!$C$52=Carbon!$B44,'Crop 2'!$L$52*VLOOKUP('Crop 2'!$E$52,Carbon!$AH$4:$AI$10,2,FALSE),0)+IF('Crop 2'!$C$53=Carbon!$B44,'Crop 2'!$L$53*VLOOKUP('Crop 2'!$E$53,Carbon!$AH$4:$AI$10,2,FALSE),0)+IF('Crop 2'!$C$56=Carbon!$B44,'Crop 2'!$L$56*VLOOKUP('Crop 2'!$E$56,Carbon!$AH$4:$AI$10,2,FALSE),0)+IF('Crop 2'!$C$57=Carbon!$B44,'Crop 2'!$L$57*VLOOKUP('Crop 2'!$E$57,Carbon!$AH$4:$AI$10,2,FALSE),0)+IF('Crop 2'!$C$58=Carbon!$B44,'Crop 2'!$L$58*VLOOKUP('Crop 2'!$E$58,Carbon!$AH$4:$AI$10,2,FALSE),0)+IF('Crop 2'!$C$59=Carbon!$B44,'Crop 2'!$L$59*VLOOKUP('Crop 2'!$E$59,Carbon!$AH$4:$AI$10,2,FALSE),0)+IF('Crop 2'!$C$62=Carbon!$B44,'Crop 2'!$L$62*VLOOKUP('Crop 2'!$E$62,Carbon!$AH$4:$AI$10,2,FALSE),0)+IF('Crop 2'!$C$63=Carbon!$B44,'Crop 2'!$L$63*VLOOKUP('Crop 2'!$E$63,Carbon!$AH$4:$AI$10,2,FALSE),0)+IF('Crop 2'!$C$64=Carbon!$B44,'Crop 2'!$L$64*VLOOKUP('Crop 2'!$E$64,Carbon!$AH$4:$AI$10,2,FALSE),0)+IF('Crop 2'!$C$65=Carbon!$B44,'Crop 2'!$L$65*VLOOKUP('Crop 2'!$E$65,Carbon!$AH$4:$AI$10,2,FALSE),0))*$AL$20,2)","v":0},{"$f":"E44*Inputs!$D$15","v":0},{"$f":"ROUND((IF('Crop 3'!$C$14=Carbon!$B44,'Crop 3'!$L$14*VLOOKUP('Crop 3'!$E$14,Carbon!$AH$4:$AI$10,2,FALSE),0)+IF('Crop 3'!$C$15=Carbon!$B44,'Crop 3'!$L$15*VLOOKUP('Crop 3'!$E$15,Carbon!$AH$4:$AI$10,2,FALSE),0)+IF('Crop 3'!$C$16=Carbon!$B44,'Crop 3'!$L$16*VLOOKUP('Crop 3'!$E$16,Carbon!$AH$4:$AI$10,2,FALSE),0)+IF('Crop 3'!$C$19=Carbon!$B44,'Crop 3'!$L$19*VLOOKUP('Crop 3'!$E$19,Carbon!$AH$4:$AI$10,2,FALSE),0)+IF('Crop 3'!$C$20=Carbon!$B44,'Crop 3'!$L$20*VLOOKUP('Crop 3'!$E$20,Carbon!$AH$4:$AI$10,2,FALSE),0)+IF('Crop 3'!$C$21=Carbon!$B44,'Crop 3'!$L$21*VLOOKUP('Crop 3'!$E$21,Carbon!$AH$4:$AI$10,2,FALSE),0)+IF('Crop 3'!$C$49=Carbon!$B44,'Crop 3'!$L$49*VLOOKUP('Crop 3'!$E$49,Carbon!$AH$4:$AI$10,2,FALSE),0)+IF('Crop 3'!$C$50=Carbon!$B44,'Crop 3'!$L$50*VLOOKUP('Crop 3'!$E$50,Carbon!$AH$4:$AI$10,2,FALSE),0)+IF('Crop 3'!$C$51=Carbon!$B44,'Crop 3'!$L$51*VLOOKUP('Crop 3'!$E$51,Carbon!$AH$4:$AI$10,2,FALSE),0)+IF('Crop 3'!$C$52=Carbon!$B44,'Crop 3'!$L$52*VLOOKUP('Crop 3'!$E$52,Carbon!$AH$4:$AI$10,2,FALSE),0)+IF('Crop 3'!$C$53=Carbon!$B44,'Crop 3'!$L$53*VLOOKUP('Crop 3'!$E$53,Carbon!$AH$4:$AI$10,2,FALSE),0)+IF('Crop 3'!$C$56=Carbon!$B44,'Crop 3'!$L$56*VLOOKUP('Crop 3'!$E$56,Carbon!$AH$4:$AI$10,2,FALSE),0)+IF('Crop 3'!$C$57=Carbon!$B44,'Crop 3'!$L$57*VLOOKUP('Crop 3'!$E$57,Carbon!$AH$4:$AI$10,2,FALSE),0)+IF('Crop 3'!$C$58=Carbon!$B44,'Crop 3'!$L$58*VLOOKUP('Crop 3'!$E$58,Carbon!$AH$4:$AI$10,2,FALSE),0)+IF('Crop 3'!$C$59=Carbon!$B44,'Crop 3'!$L$59*VLOOKUP('Crop 3'!$E$59,Carbon!$AH$4:$AI$10,2,FALSE),0)+IF('Crop 3'!$C$62=Carbon!$B44,'Crop 3'!$L$62*VLOOKUP('Crop 3'!$E$62,Carbon!$AH$4:$AI$10,2,FALSE),0)+IF('Crop 3'!$C$63=Carbon!$B44,'Crop 3'!$L$63*VLOOKUP('Crop 3'!$E$63,Carbon!$AH$4:$AI$10,2,FALSE),0)+IF('Crop 3'!$C$64=Carbon!$B44,'Crop 3'!$L$64*VLOOKUP('Crop 3'!$E$64,Carbon!$AH$4:$AI$10,2,FALSE),0)+IF('Crop 3'!$C$65=Carbon!$B44,'Crop 3'!$L$65*VLOOKUP('Crop 3'!$E$65,Carbon!$AH$4:$AI$10,2,FALSE),0))*$AL$20,2)","v":0},{"$f":"G44*Inputs!$D$17","v":0},{"$f":"ROUND(J44/Inputs!D$19,2)","v":0},0,null,null,{"$f":"ROUND((IF('Crop 1'!$C$14=Carbon!$B44,'Crop 1'!$V$14*VLOOKUP('Crop 1'!$E$14,Carbon!$AH$4:$AI$10,2,FALSE),0)+IF('Crop 1'!$C$15=Carbon!$B44,'Crop 1'!$V$15*VLOOKUP('Crop 1'!$E$15,Carbon!$AH$4:$AI$10,2,FALSE),0)+IF('Crop 1'!$C$16=Carbon!$B44,'Crop 1'!$V$16*VLOOKUP('Crop 1'!$E$16,Carbon!$AH$4:$AI$10,2,FALSE),0)+IF('Crop 1'!$C$19=Carbon!$B44,'Crop 1'!$V$19*VLOOKUP('Crop 1'!$E$19,Carbon!$AH$4:$AI$10,2,FALSE),0)+IF('Crop 1'!$C$20=Carbon!$B44,'Crop 1'!$V$20*VLOOKUP('Crop 1'!$E$20,Carbon!$AH$4:$AI$10,2,FALSE),0)+IF('Crop 1'!$C$21=Carbon!$B44,'Crop 1'!$V$21*VLOOKUP('Crop 1'!$E$21,Carbon!$AH$4:$AI$10,2,FALSE),0)+IF('Crop 1'!$C$49=Carbon!$B44,'Crop 1'!$V$49*VLOOKUP('Crop 1'!$E$49,Carbon!$AH$4:$AI$10,2,FALSE),0)+IF('Crop 1'!$C$50=Carbon!$B44,'Crop 1'!$V$50*VLOOKUP('Crop 1'!$E$50,Carbon!$AH$4:$AI$10,2,FALSE),0)+IF('Crop 1'!$C$51=Carbon!$B44,'Crop 1'!$V$51*VLOOKUP('Crop 1'!$E$51,Carbon!$AH$4:$AI$10,2,FALSE),0)+IF('Crop 1'!$C$52=Carbon!$B44,'Crop 1'!$V$52*VLOOKUP('Crop 1'!$E$52,Carbon!$AH$4:$AI$10,2,FALSE),0)+IF('Crop 1'!$C$53=Carbon!$B44,'Crop 1'!$V$53*VLOOKUP('Crop 1'!$E$53,Carbon!$AH$4:$AI$10,2,FALSE),0)+IF('Crop 1'!$C$56=Carbon!$B44,'Crop 1'!$V$56*VLOOKUP('Crop 1'!$E$56,Carbon!$AH$4:$AI$10,2,FALSE),0)+IF('Crop 1'!$C$57=Carbon!$B44,'Crop 1'!$V$57*VLOOKUP('Crop 1'!$E$57,Carbon!$AH$4:$AI$10,2,FALSE),0)+IF('Crop 1'!$C$58=Carbon!$B44,'Crop 1'!$V$58*VLOOKUP('Crop 1'!$E$58,Carbon!$AH$4:$AI$10,2,FALSE),0)+IF('Crop 1'!$C$59=Carbon!$B44,'Crop 1'!$V$59*VLOOKUP('Crop 1'!$E$59,Carbon!$AH$4:$AI$10,2,FALSE),0)+IF('Crop 1'!$C$62=Carbon!$B44,'Crop 1'!$V$62*VLOOKUP('Crop 1'!$E$62,Carbon!$AH$4:$AI$10,2,FALSE),0)+IF('Crop 1'!$C$63=Carbon!$B44,'Crop 1'!$V$63*VLOOKUP('Crop 1'!$E$63,Carbon!$AH$4:$AI$10,2,FALSE),0)+IF('Crop 1'!$C$64=Carbon!$B44,'Crop 1'!$V$64*VLOOKUP('Crop 1'!$E$64,Carbon!$AH$4:$AI$10,2,FALSE),0)+IF('Crop 1'!$C$65=Carbon!$B44,'Crop 1'!$V$65*VLOOKUP('Crop 1'!$E$65,Carbon!$AH$4:$AI$10,2,FALSE),0))*$AL$20,2)","v":0},{"$f":"M44*Inputs!$D$13","v":0},{"$f":"ROUND((IF('Crop 2'!$C$14=Carbon!$B44,'Crop 2'!$V$14*VLOOKUP('Crop 2'!$E$14,Carbon!$AH$4:$AI$10,2,FALSE),0)+IF('Crop 2'!$C$15=Carbon!$B44,'Crop 2'!$V$15*VLOOKUP('Crop 2'!$E$15,Carbon!$AH$4:$AI$10,2,FALSE),0)+IF('Crop 2'!$C$16=Carbon!$B44,'Crop 2'!$V$16*VLOOKUP('Crop 2'!$E$16,Carbon!$AH$4:$AI$10,2,FALSE),0)+IF('Crop 2'!$C$19=Carbon!$B44,'Crop 2'!$V$19*VLOOKUP('Crop 2'!$E$19,Carbon!$AH$4:$AI$10,2,FALSE),0)+IF('Crop 2'!$C$20=Carbon!$B44,'Crop 2'!$V$20*VLOOKUP('Crop 2'!$E$20,Carbon!$AH$4:$AI$10,2,FALSE),0)+IF('Crop 2'!$C$21=Carbon!$B44,'Crop 2'!$V$21*VLOOKUP('Crop 2'!$E$21,Carbon!$AH$4:$AI$10,2,FALSE),0)+IF('Crop 2'!$C$49=Carbon!$B44,'Crop 2'!$V$49*VLOOKUP('Crop 2'!$E$49,Carbon!$AH$4:$AI$10,2,FALSE),0)+IF('Crop 2'!$C$50=Carbon!$B44,'Crop 2'!$V$50*VLOOKUP('Crop 2'!$E$50,Carbon!$AH$4:$AI$10,2,FALSE),0)+IF('Crop 2'!$C$51=Carbon!$B44,'Crop 2'!$V$51*VLOOKUP('Crop 2'!$E$51,Carbon!$AH$4:$AI$10,2,FALSE),0)+IF('Crop 2'!$C$52=Carbon!$B44,'Crop 2'!$V$52*VLOOKUP('Crop 2'!$E$52,Carbon!$AH$4:$AI$10,2,FALSE),0)+IF('Crop 2'!$C$53=Carbon!$B44,'Crop 2'!$V$53*VLOOKUP('Crop 2'!$E$53,Carbon!$AH$4:$AI$10,2,FALSE),0)+IF('Crop 2'!$C$56=Carbon!$B44,'Crop 2'!$V$56*VLOOKUP('Crop 2'!$E$56,Carbon!$AH$4:$AI$10,2,FALSE),0)+IF('Crop 2'!$C$57=Carbon!$B44,'Crop 2'!$V$57*VLOOKUP('Crop 2'!$E$57,Carbon!$AH$4:$AI$10,2,FALSE),0)+IF('Crop 2'!$C$58=Carbon!$B44,'Crop 2'!$V$58*VLOOKUP('Crop 2'!$E$58,Carbon!$AH$4:$AI$10,2,FALSE),0)+IF('Crop 2'!$C$59=Carbon!$B44,'Crop 2'!$V$59*VLOOKUP('Crop 2'!$E$59,Carbon!$AH$4:$AI$10,2,FALSE),0)+IF('Crop 2'!$C$62=Carbon!$B44,'Crop 2'!$V$62*VLOOKUP('Crop 2'!$E$62,Carbon!$AH$4:$AI$10,2,FALSE),0)+IF('Crop 2'!$C$63=Carbon!$B44,'Crop 2'!$V$63*VLOOKUP('Crop 2'!$E$63,Carbon!$AH$4:$AI$10,2,FALSE),0)+IF('Crop 2'!$C$64=Carbon!$B44,'Crop 2'!$V$64*VLOOKUP('Crop 2'!$E$64,Carbon!$AH$4:$AI$10,2,FALSE),0)+IF('Crop 2'!$C$65=Carbon!$B44,'Crop 2'!$V$65*VLOOKUP('Crop 2'!$E$65,Carbon!$AH$4:$AI$10,2,FALSE),0))*$AL$20,2)","v":0},{"$f":"O44*Inputs!$D$15","v":0},{"$f":"ROUND((IF('Crop 3'!$C$14=Carbon!$B44,'Crop 3'!$V$14*VLOOKUP('Crop 3'!$E$14,Carbon!$AH$4:$AI$10,2,FALSE),0)+IF('Crop 3'!$C$15=Carbon!$B44,'Crop 3'!$V$15*VLOOKUP('Crop 3'!$E$15,Carbon!$AH$4:$AI$10,2,FALSE),0)+IF('Crop 3'!$C$16=Carbon!$B44,'Crop 3'!$V$16*VLOOKUP('Crop 3'!$E$16,Carbon!$AH$4:$AI$10,2,FALSE),0)+IF('Crop 3'!$C$19=Carbon!$B44,'Crop 3'!$V$19*VLOOKUP('Crop 3'!$E$19,Carbon!$AH$4:$AI$10,2,FALSE),0)+IF('Crop 3'!$C$20=Carbon!$B44,'Crop 3'!$V$20*VLOOKUP('Crop 3'!$E$20,Carbon!$AH$4:$AI$10,2,FALSE),0)+IF('Crop 3'!$C$21=Carbon!$B44,'Crop 3'!$V$21*VLOOKUP('Crop 3'!$E$21,Carbon!$AH$4:$AI$10,2,FALSE),0)+IF('Crop 3'!$C$49=Carbon!$B44,'Crop 3'!$V$49*VLOOKUP('Crop 3'!$E$49,Carbon!$AH$4:$AI$10,2,FALSE),0)+IF('Crop 3'!$C$50=Carbon!$B44,'Crop 3'!$V$50*VLOOKUP('Crop 3'!$E$50,Carbon!$AH$4:$AI$10,2,FALSE),0)+IF('Crop 3'!$C$51=Carbon!$B44,'Crop 3'!$V$51*VLOOKUP('Crop 3'!$E$51,Carbon!$AH$4:$AI$10,2,FALSE),0)+IF('Crop 3'!$C$52=Carbon!$B44,'Crop 3'!$V$52*VLOOKUP('Crop 3'!$E$52,Carbon!$AH$4:$AI$10,2,FALSE),0)+IF('Crop 3'!$C$53=Carbon!$B44,'Crop 3'!$V$53*VLOOKUP('Crop 3'!$E$53,Carbon!$AH$4:$AI$10,2,FALSE),0)+IF('Crop 3'!$C$56=Carbon!$B44,'Crop 3'!$V$56*VLOOKUP('Crop 3'!$E$56,Carbon!$AH$4:$AI$10,2,FALSE),0)+IF('Crop 3'!$C$57=Carbon!$B44,'Crop 3'!$V$57*VLOOKUP('Crop 3'!$E$57,Carbon!$AH$4:$AI$10,2,FALSE),0)+IF('Crop 3'!$C$58=Carbon!$B44,'Crop 3'!$V$58*VLOOKUP('Crop 3'!$E$58,Carbon!$AH$4:$AI$10,2,FALSE),0)+IF('Crop 3'!$C$59=Carbon!$B44,'Crop 3'!$V$59*VLOOKUP('Crop 3'!$E$59,Carbon!$AH$4:$AI$10,2,FALSE),0)+IF('Crop 3'!$C$62=Carbon!$B44,'Crop 3'!$V$62*VLOOKUP('Crop 3'!$E$62,Carbon!$AH$4:$AI$10,2,FALSE),0)+IF('Crop 3'!$C$63=Carbon!$B44,'Crop 3'!$V$63*VLOOKUP('Crop 3'!$E$63,Carbon!$AH$4:$AI$10,2,FALSE),0)+IF('Crop 3'!$C$64=Carbon!$B44,'Crop 3'!$V$64*VLOOKUP('Crop 3'!$E$64,Carbon!$AH$4:$AI$10,2,FALSE),0)+IF('Crop 3'!$C$65=Carbon!$B44,'Crop 3'!$V$65*VLOOKUP('Crop 3'!$E$65,Carbon!$AH$4:$AI$10,2,FALSE),0))*$AL$20,2)","v":0},{"$f":"Q44*Inputs!$D$17","v":0},{"$f":"ROUND(T44/Inputs!D$19,2)","v":0},0,null,null,0,{"$f":"W44*Inputs!$D$13","v":0},0,{"$f":"Y44*Inputs!$D$13","v":0},0,{"$f":"AA44*Inputs!$D$13","v":0},{"$f":"ROUND(AD44/Inputs!D$19,2)","v":0},0]
[null,{"$f":"Defaults!AH11","v":"Arsenal"},{"$f":"ROUND((IF('Crop 1'!$C$14=Carbon!$B45,'Crop 1'!$L$14*VLOOKUP('Crop 1'!$E$14,Carbon!$AH$4:$AI$10,2,FALSE),0)+IF('Crop 1'!$C$15=Carbon!$B45,'Crop 1'!$L$15*VLOOKUP('Crop 1'!$E$15,Carbon!$AH$4:$AI$10,2,FALSE),0)+IF('Crop 1'!$C$16=Carbon!$B45,'Crop 1'!$L$16*VLOOKUP('Crop 1'!$E$16,Carbon!$AH$4:$AI$10,2,FALSE),0)+IF('Crop 1'!$C$19=Carbon!$B45,'Crop 1'!$L$19*VLOOKUP('Crop 1'!$E$19,Carbon!$AH$4:$AI$10,2,FALSE),0)+IF('Crop 1'!$C$20=Carbon!$B45,'Crop 1'!$L$20*VLOOKUP('Crop 1'!$E$20,Carbon!$AH$4:$AI$10,2,FALSE),0)+IF('Crop 1'!$C$21=Carbon!$B45,'Crop 1'!$L$21*VLOOKUP('Crop 1'!$E$21,Carbon!$AH$4:$AI$10,2,FALSE),0)+IF('Crop 1'!$C$49=Carbon!$B45,'Crop 1'!$L$49*VLOOKUP('Crop 1'!$E$49,Carbon!$AH$4:$AI$10,2,FALSE),0)+IF('Crop 1'!$C$50=Carbon!$B45,'Crop 1'!$L$50*VLOOKUP('Crop 1'!$E$50,Carbon!$AH$4:$AI$10,2,FALSE),0)+IF('Crop 1'!$C$51=Carbon!$B45,'Crop 1'!$L$51*VLOOKUP('Crop 1'!$E$51,Carbon!$AH$4:$AI$10,2,FALSE),0)+IF('Crop 1'!$C$52=Carbon!$B45,'Crop 1'!$L$52*VLOOKUP('Crop 1'!$E$52,Carbon!$AH$4:$AI$10,2,FALSE),0)+IF('Crop 1'!$C$53=Carbon!$B45,'Crop 1'!$L$53*VLOOKUP('Crop 1'!$E$53,Carbon!$AH$4:$AI$10,2,FALSE),0)+IF('Crop 1'!$C$56=Carbon!$B45,'Crop 1'!$L$56*VLOOKUP('Crop 1'!$E$56,Carbon!$AH$4:$AI$10,2,FALSE),0)+IF('Crop 1'!$C$57=Carbon!$B45,'Crop 1'!$L$57*VLOOKUP('Crop 1'!$E$57,Carbon!$AH$4:$AI$10,2,FALSE),0)+IF('Crop 1'!$C$58=Carbon!$B45,'Crop 1'!$L$58*VLOOKUP('Crop 1'!$E$58,Carbon!$AH$4:$AI$10,2,FALSE),0)+IF('Crop 1'!$C$59=Carbon!$B45,'Crop 1'!$L$59*VLOOKUP('Crop 1'!$E$59,Carbon!$AH$4:$AI$10,2,FALSE),0)+IF('Crop 1'!$C$62=Carbon!$B45,'Crop 1'!$L$62*VLOOKUP('Crop 1'!$E$62,Carbon!$AH$4:$AI$10,2,FALSE),0)+IF('Crop 1'!$C$63=Carbon!$B45,'Crop 1'!$L$63*VLOOKUP('Crop 1'!$E$63,Carbon!$AH$4:$AI$10,2,FALSE),0)+IF('Crop 1'!$C$64=Carbon!$B45,'Crop 1'!$L$64*VLOOKUP('Crop 1'!$E$64,Carbon!$AH$4:$AI$10,2,FALSE),0)+IF('Crop 1'!$C$65=Carbon!$B45,'Crop 1'!$L$65*VLOOKUP('Crop 1'!$E$65,Carbon!$AH$4:$AI$10,2,FALSE),0))*$AL$20,2)","v":0},{"$f":"C45*Inputs!$D$13","v":0},{"$f":"ROUND((IF('Crop 2'!$C$14=Carbon!$B45,'Crop 2'!$L$14*VLOOKUP('Crop 2'!$E$14,Carbon!$AH$4:$AI$10,2,FALSE),0)+IF('Crop 2'!$C$15=Carbon!$B45,'Crop 2'!$L$15*VLOOKUP('Crop 2'!$E$15,Carbon!$AH$4:$AI$10,2,FALSE),0)+IF('Crop 2'!$C$16=Carbon!$B45,'Crop 2'!$L$16*VLOOKUP('Crop 2'!$E$16,Carbon!$AH$4:$AI$10,2,FALSE),0)+IF('Crop 2'!$C$19=Carbon!$B45,'Crop 2'!$L$19*VLOOKUP('Crop 2'!$E$19,Carbon!$AH$4:$AI$10,2,FALSE),0)+IF('Crop 2'!$C$20=Carbon!$B45,'Crop 2'!$L$20*VLOOKUP('Crop 2'!$E$20,Carbon!$AH$4:$AI$10,2,FALSE),0)+IF('Crop 2'!$C$21=Carbon!$B45,'Crop 2'!$L$21*VLOOKUP('Crop 2'!$E$21,Carbon!$AH$4:$AI$10,2,FALSE),0)+IF('Crop 2'!$C$49=Carbon!$B45,'Crop 2'!$L$49*VLOOKUP('Crop 2'!$E$49,Carbon!$AH$4:$AI$10,2,FALSE),0)+IF('Crop 2'!$C$50=Carbon!$B45,'Crop 2'!$L$50*VLOOKUP('Crop 2'!$E$50,Carbon!$AH$4:$AI$10,2,FALSE),0)+IF('Crop 2'!$C$51=Carbon!$B45,'Crop 2'!$L$51*VLOOKUP('Crop 2'!$E$51,Carbon!$AH$4:$AI$10,2,FALSE),0)+IF('Crop 2'!$C$52=Carbon!$B45,'Crop 2'!$L$52*VLOOKUP('Crop 2'!$E$52,Carbon!$AH$4:$AI$10,2,FALSE),0)+IF('Crop 2'!$C$53=Carbon!$B45,'Crop 2'!$L$53*VLOOKUP('Crop 2'!$E$53,Carbon!$AH$4:$AI$10,2,FALSE),0)+IF('Crop 2'!$C$56=Carbon!$B45,'Crop 2'!$L$56*VLOOKUP('Crop 2'!$E$56,Carbon!$AH$4:$AI$10,2,FALSE),0)+IF('Crop 2'!$C$57=Carbon!$B45,'Crop 2'!$L$57*VLOOKUP('Crop 2'!$E$57,Carbon!$AH$4:$AI$10,2,FALSE),0)+IF('Crop 2'!$C$58=Carbon!$B45,'Crop 2'!$L$58*VLOOKUP('Crop 2'!$E$58,Carbon!$AH$4:$AI$10,2,FALSE),0)+IF('Crop 2'!$C$59=Carbon!$B45,'Crop 2'!$L$59*VLOOKUP('Crop 2'!$E$59,Carbon!$AH$4:$AI$10,2,FALSE),0)+IF('Crop 2'!$C$62=Carbon!$B45,'Crop 2'!$L$62*VLOOKUP('Crop 2'!$E$62,Carbon!$AH$4:$AI$10,2,FALSE),0)+IF('Crop 2'!$C$63=Carbon!$B45,'Crop 2'!$L$63*VLOOKUP('Crop 2'!$E$63,Carbon!$AH$4:$AI$10,2,FALSE),0)+IF('Crop 2'!$C$64=Carbon!$B45,'Crop 2'!$L$64*VLOOKUP('Crop 2'!$E$64,Carbon!$AH$4:$AI$10,2,FALSE),0)+IF('Crop 2'!$C$65=Carbon!$B45,'Crop 2'!$L$65*VLOOKUP('Crop 2'!$E$65,Carbon!$AH$4:$AI$10,2,FALSE),0))*$AL$20,2)","v":0},{"$f":"E45*Inputs!$D$15","v":0},{"$f":"ROUND((IF('Crop 3'!$C$14=Carbon!$B45,'Crop 3'!$L$14*VLOOKUP('Crop 3'!$E$14,Carbon!$AH$4:$AI$10,2,FALSE),0)+IF('Crop 3'!$C$15=Carbon!$B45,'Crop 3'!$L$15*VLOOKUP('Crop 3'!$E$15,Carbon!$AH$4:$AI$10,2,FALSE),0)+IF('Crop 3'!$C$16=Carbon!$B45,'Crop 3'!$L$16*VLOOKUP('Crop 3'!$E$16,Carbon!$AH$4:$AI$10,2,FALSE),0)+IF('Crop 3'!$C$19=Carbon!$B45,'Crop 3'!$L$19*VLOOKUP('Crop 3'!$E$19,Carbon!$AH$4:$AI$10,2,FALSE),0)+IF('Crop 3'!$C$20=Carbon!$B45,'Crop 3'!$L$20*VLOOKUP('Crop 3'!$E$20,Carbon!$AH$4:$AI$10,2,FALSE),0)+IF('Crop 3'!$C$21=Carbon!$B45,'Crop 3'!$L$21*VLOOKUP('Crop 3'!$E$21,Carbon!$AH$4:$AI$10,2,FALSE),0)+IF('Crop 3'!$C$49=Carbon!$B45,'Crop 3'!$L$49*VLOOKUP('Crop 3'!$E$49,Carbon!$AH$4:$AI$10,2,FALSE),0)+IF('Crop 3'!$C$50=Carbon!$B45,'Crop 3'!$L$50*VLOOKUP('Crop 3'!$E$50,Carbon!$AH$4:$AI$10,2,FALSE),0)+IF('Crop 3'!$C$51=Carbon!$B45,'Crop 3'!$L$51*VLOOKUP('Crop 3'!$E$51,Carbon!$AH$4:$AI$10,2,FALSE),0)+IF('Crop 3'!$C$52=Carbon!$B45,'Crop 3'!$L$52*VLOOKUP('Crop 3'!$E$52,Carbon!$AH$4:$AI$10,2,FALSE),0)+IF('Crop 3'!$C$53=Carbon!$B45,'Crop 3'!$L$53*VLOOKUP('Crop 3'!$E$53,Carbon!$AH$4:$AI$10,2,FALSE),0)+IF('Crop 3'!$C$56=Carbon!$B45,'Crop 3'!$L$56*VLOOKUP('Crop 3'!$E$56,Carbon!$AH$4:$AI$10,2,FALSE),0)+IF('Crop 3'!$C$57=Carbon!$B45,'Crop 3'!$L$57*VLOOKUP('Crop 3'!$E$57,Carbon!$AH$4:$AI$10,2,FALSE),0)+IF('Crop 3'!$C$58=Carbon!$B45,'Crop 3'!$L$58*VLOOKUP('Crop 3'!$E$58,Carbon!$AH$4:$AI$10,2,FALSE),0)+IF('Crop 3'!$C$59=Carbon!$B45,'Crop 3'!$L$59*VLOOKUP('Crop 3'!$E$59,Carbon!$AH$4:$AI$10,2,FALSE),0)+IF('Crop 3'!$C$62=Carbon!$B45,'Crop 3'!$L$62*VLOOKUP('Crop 3'!$E$62,Carbon!$AH$4:$AI$10,2,FALSE),0)+IF('Crop 3'!$C$63=Carbon!$B45,'Crop 3'!$L$63*VLOOKUP('Crop 3'!$E$63,Carbon!$AH$4:$AI$10,2,FALSE),0)+IF('Crop 3'!$C$64=Carbon!$B45,'Crop 3'!$L$64*VLOOKUP('Crop 3'!$E$64,Carbon!$AH$4:$AI$10,2,FALSE),0)+IF('Crop 3'!$C$65=Carbon!$B45,'Crop 3'!$L$65*VLOOKUP('Crop 3'!$E$65,Carbon!$AH$4:$AI$10,2,FALSE),0))*$AL$20,2)","v":0},{"$f":"G45*Inputs!$D$17","v":0},{"$f":"ROUND(J45/Inputs!D$19,2)","v":0},0,null,null,{"$f":"ROUND((IF('Crop 1'!$C$14=Carbon!$B45,'Crop 1'!$V$14*VLOOKUP('Crop 1'!$E$14,Carbon!$AH$4:$AI$10,2,FALSE),0)+IF('Crop 1'!$C$15=Carbon!$B45,'Crop 1'!$V$15*VLOOKUP('Crop 1'!$E$15,Carbon!$AH$4:$AI$10,2,FALSE),0)+IF('Crop 1'!$C$16=Carbon!$B45,'Crop 1'!$V$16*VLOOKUP('Crop 1'!$E$16,Carbon!$AH$4:$AI$10,2,FALSE),0)+IF('Crop 1'!$C$19=Carbon!$B45,'Crop 1'!$V$19*VLOOKUP('Crop 1'!$E$19,Carbon!$AH$4:$AI$10,2,FALSE),0)+IF('Crop 1'!$C$20=Carbon!$B45,'Crop 1'!$V$20*VLOOKUP('Crop 1'!$E$20,Carbon!$AH$4:$AI$10,2,FALSE),0)+IF('Crop 1'!$C$21=Carbon!$B45,'Crop 1'!$V$21*VLOOKUP('Crop 1'!$E$21,Carbon!$AH$4:$AI$10,2,FALSE),0)+IF('Crop 1'!$C$49=Carbon!$B45,'Crop 1'!$V$49*VLOOKUP('Crop 1'!$E$49,Carbon!$AH$4:$AI$10,2,FALSE),0)+IF('Crop 1'!$C$50=Carbon!$B45,'Crop 1'!$V$50*VLOOKUP('Crop 1'!$E$50,Carbon!$AH$4:$AI$10,2,FALSE),0)+IF('Crop 1'!$C$51=Carbon!$B45,'Crop 1'!$V$51*VLOOKUP('Crop 1'!$E$51,Carbon!$AH$4:$AI$10,2,FALSE),0)+IF('Crop 1'!$C$52=Carbon!$B45,'Crop 1'!$V$52*VLOOKUP('Crop 1'!$E$52,Carbon!$AH$4:$AI$10,2,FALSE),0)+IF('Crop 1'!$C$53=Carbon!$B45,'Crop 1'!$V$53*VLOOKUP('Crop 1'!$E$53,Carbon!$AH$4:$AI$10,2,FALSE),0)+IF('Crop 1'!$C$56=Carbon!$B45,'Crop 1'!$V$56*VLOOKUP('Crop 1'!$E$56,Carbon!$AH$4:$AI$10,2,FALSE),0)+IF('Crop 1'!$C$57=Carbon!$B45,'Crop 1'!$V$57*VLOOKUP('Crop 1'!$E$57,Carbon!$AH$4:$AI$10,2,FALSE),0)+IF('Crop 1'!$C$58=Carbon!$B45,'Crop 1'!$V$58*VLOOKUP('Crop 1'!$E$58,Carbon!$AH$4:$AI$10,2,FALSE),0)+IF('Crop 1'!$C$59=Carbon!$B45,'Crop 1'!$V$59*VLOOKUP('Crop 1'!$E$59,Carbon!$AH$4:$AI$10,2,FALSE),0)+IF('Crop 1'!$C$62=Carbon!$B45,'Crop 1'!$V$62*VLOOKUP('Crop 1'!$E$62,Carbon!$AH$4:$AI$10,2,FALSE),0)+IF('Crop 1'!$C$63=Carbon!$B45,'Crop 1'!$V$63*VLOOKUP('Crop 1'!$E$63,Carbon!$AH$4:$AI$10,2,FALSE),0)+IF('Crop 1'!$C$64=Carbon!$B45,'Crop 1'!$V$64*VLOOKUP('Crop 1'!$E$64,Carbon!$AH$4:$AI$10,2,FALSE),0)+IF('Crop 1'!$C$65=Carbon!$B45,'Crop 1'!$V$65*VLOOKUP('Crop 1'!$E$65,Carbon!$AH$4:$AI$10,2,FALSE),0))*$AL$20,2)","v":0},{"$f":"M45*Inputs!$D$13","v":0},{"$f":"ROUND((IF('Crop 2'!$C$14=Carbon!$B45,'Crop 2'!$V$14*VLOOKUP('Crop 2'!$E$14,Carbon!$AH$4:$AI$10,2,FALSE),0)+IF('Crop 2'!$C$15=Carbon!$B45,'Crop 2'!$V$15*VLOOKUP('Crop 2'!$E$15,Carbon!$AH$4:$AI$10,2,FALSE),0)+IF('Crop 2'!$C$16=Carbon!$B45,'Crop 2'!$V$16*VLOOKUP('Crop 2'!$E$16,Carbon!$AH$4:$AI$10,2,FALSE),0)+IF('Crop 2'!$C$19=Carbon!$B45,'Crop 2'!$V$19*VLOOKUP('Crop 2'!$E$19,Carbon!$AH$4:$AI$10,2,FALSE),0)+IF('Crop 2'!$C$20=Carbon!$B45,'Crop 2'!$V$20*VLOOKUP('Crop 2'!$E$20,Carbon!$AH$4:$AI$10,2,FALSE),0)+IF('Crop 2'!$C$21=Carbon!$B45,'Crop 2'!$V$21*VLOOKUP('Crop 2'!$E$21,Carbon!$AH$4:$AI$10,2,FALSE),0)+IF('Crop 2'!$C$49=Carbon!$B45,'Crop 2'!$V$49*VLOOKUP('Crop 2'!$E$49,Carbon!$AH$4:$AI$10,2,FALSE),0)+IF('Crop 2'!$C$50=Carbon!$B45,'Crop 2'!$V$50*VLOOKUP('Crop 2'!$E$50,Carbon!$AH$4:$AI$10,2,FALSE),0)+IF('Crop 2'!$C$51=Carbon!$B45,'Crop 2'!$V$51*VLOOKUP('Crop 2'!$E$51,Carbon!$AH$4:$AI$10,2,FALSE),0)+IF('Crop 2'!$C$52=Carbon!$B45,'Crop 2'!$V$52*VLOOKUP('Crop 2'!$E$52,Carbon!$AH$4:$AI$10,2,FALSE),0)+IF('Crop 2'!$C$53=Carbon!$B45,'Crop 2'!$V$53*VLOOKUP('Crop 2'!$E$53,Carbon!$AH$4:$AI$10,2,FALSE),0)+IF('Crop 2'!$C$56=Carbon!$B45,'Crop 2'!$V$56*VLOOKUP('Crop 2'!$E$56,Carbon!$AH$4:$AI$10,2,FALSE),0)+IF('Crop 2'!$C$57=Carbon!$B45,'Crop 2'!$V$57*VLOOKUP('Crop 2'!$E$57,Carbon!$AH$4:$AI$10,2,FALSE),0)+IF('Crop 2'!$C$58=Carbon!$B45,'Crop 2'!$V$58*VLOOKUP('Crop 2'!$E$58,Carbon!$AH$4:$AI$10,2,FALSE),0)+IF('Crop 2'!$C$59=Carbon!$B45,'Crop 2'!$V$59*VLOOKUP('Crop 2'!$E$59,Carbon!$AH$4:$AI$10,2,FALSE),0)+IF('Crop 2'!$C$62=Carbon!$B45,'Crop 2'!$V$62*VLOOKUP('Crop 2'!$E$62,Carbon!$AH$4:$AI$10,2,FALSE),0)+IF('Crop 2'!$C$63=Carbon!$B45,'Crop 2'!$V$63*VLOOKUP('Crop 2'!$E$63,Carbon!$AH$4:$AI$10,2,FALSE),0)+IF('Crop 2'!$C$64=Carbon!$B45,'Crop 2'!$V$64*VLOOKUP('Crop 2'!$E$64,Carbon!$AH$4:$AI$10,2,FALSE),0)+IF('Crop 2'!$C$65=Carbon!$B45,'Crop 2'!$V$65*VLOOKUP('Crop 2'!$E$65,Carbon!$AH$4:$AI$10,2,FALSE),0))*$AL$20,2)","v":0},{"$f":"O45*Inputs!$D$15","v":0},{"$f":"ROUND((IF('Crop 3'!$C$14=Carbon!$B45,'Crop 3'!$V$14*VLOOKUP('Crop 3'!$E$14,Carbon!$AH$4:$AI$10,2,FALSE),0)+IF('Crop 3'!$C$15=Carbon!$B45,'Crop 3'!$V$15*VLOOKUP('Crop 3'!$E$15,Carbon!$AH$4:$AI$10,2,FALSE),0)+IF('Crop 3'!$C$16=Carbon!$B45,'Crop 3'!$V$16*VLOOKUP('Crop 3'!$E$16,Carbon!$AH$4:$AI$10,2,FALSE),0)+IF('Crop 3'!$C$19=Carbon!$B45,'Crop 3'!$V$19*VLOOKUP('Crop 3'!$E$19,Carbon!$AH$4:$AI$10,2,FALSE),0)+IF('Crop 3'!$C$20=Carbon!$B45,'Crop 3'!$V$20*VLOOKUP('Crop 3'!$E$20,Carbon!$AH$4:$AI$10,2,FALSE),0)+IF('Crop 3'!$C$21=Carbon!$B45,'Crop 3'!$V$21*VLOOKUP('Crop 3'!$E$21,Carbon!$AH$4:$AI$10,2,FALSE),0)+IF('Crop 3'!$C$49=Carbon!$B45,'Crop 3'!$V$49*VLOOKUP('Crop 3'!$E$49,Carbon!$AH$4:$AI$10,2,FALSE),0)+IF('Crop 3'!$C$50=Carbon!$B45,'Crop 3'!$V$50*VLOOKUP('Crop 3'!$E$50,Carbon!$AH$4:$AI$10,2,FALSE),0)+IF('Crop 3'!$C$51=Carbon!$B45,'Crop 3'!$V$51*VLOOKUP('Crop 3'!$E$51,Carbon!$AH$4:$AI$10,2,FALSE),0)+IF('Crop 3'!$C$52=Carbon!$B45,'Crop 3'!$V$52*VLOOKUP('Crop 3'!$E$52,Carbon!$AH$4:$AI$10,2,FALSE),0)+IF('Crop 3'!$C$53=Carbon!$B45,'Crop 3'!$V$53*VLOOKUP('Crop 3'!$E$53,Carbon!$AH$4:$AI$10,2,FALSE),0)+IF('Crop 3'!$C$56=Carbon!$B45,'Crop 3'!$V$56*VLOOKUP('Crop 3'!$E$56,Carbon!$AH$4:$AI$10,2,FALSE),0)+IF('Crop 3'!$C$57=Carbon!$B45,'Crop 3'!$V$57*VLOOKUP('Crop 3'!$E$57,Carbon!$AH$4:$AI$10,2,FALSE),0)+IF('Crop 3'!$C$58=Carbon!$B45,'Crop 3'!$V$58*VLOOKUP('Crop 3'!$E$58,Carbon!$AH$4:$AI$10,2,FALSE),0)+IF('Crop 3'!$C$59=Carbon!$B45,'Crop 3'!$V$59*VLOOKUP('Crop 3'!$E$59,Carbon!$AH$4:$AI$10,2,FALSE),0)+IF('Crop 3'!$C$62=Carbon!$B45,'Crop 3'!$V$62*VLOOKUP('Crop 3'!$E$62,Carbon!$AH$4:$AI$10,2,FALSE),0)+IF('Crop 3'!$C$63=Carbon!$B45,'Crop 3'!$V$63*VLOOKUP('Crop 3'!$E$63,Carbon!$AH$4:$AI$10,2,FALSE),0)+IF('Crop 3'!$C$64=Carbon!$B45,'Crop 3'!$V$64*VLOOKUP('Crop 3'!$E$64,Carbon!$AH$4:$AI$10,2,FALSE),0)+IF('Crop 3'!$C$65=Carbon!$B45,'Crop 3'!$V$65*VLOOKUP('Crop 3'!$E$65,Carbon!$AH$4:$AI$10,2,FALSE),0))*$AL$20,2)","v":0},{"$f":"Q45*Inputs!$D$17","v":0},{"$f":"ROUND(T45/Inputs!D$19,2)","v":0},0,null,null,0,{"$f":"W45*Inputs!$D$13","v":0},0,{"$f":"Y45*Inputs!$D$13","v":0},0,{"$f":"AA45*Inputs!$D$13","v":0},{"$f":"ROUND(AD45/Inputs!D$19,2)","v":0},0]
[null,{"$f":"Defaults!AH12","v":"Assure II"},{"$f":"ROUND((IF('Crop 1'!$C$14=Carbon!$B46,'Crop 1'!$L$14*VLOOKUP('Crop 1'!$E$14,Carbon!$AH$4:$AI$10,2,FALSE),0)+IF('Crop 1'!$C$15=Carbon!$B46,'Crop 1'!$L$15*VLOOKUP('Crop 1'!$E$15,Carbon!$AH$4:$AI$10,2,FALSE),0)+IF('Crop 1'!$C$16=Carbon!$B46,'Crop 1'!$L$16*VLOOKUP('Crop 1'!$E$16,Carbon!$AH$4:$AI$10,2,FALSE),0)+IF('Crop 1'!$C$19=Carbon!$B46,'Crop 1'!$L$19*VLOOKUP('Crop 1'!$E$19,Carbon!$AH$4:$AI$10,2,FALSE),0)+IF('Crop 1'!$C$20=Carbon!$B46,'Crop 1'!$L$20*VLOOKUP('Crop 1'!$E$20,Carbon!$AH$4:$AI$10,2,FALSE),0)+IF('Crop 1'!$C$21=Carbon!$B46,'Crop 1'!$L$21*VLOOKUP('Crop 1'!$E$21,Carbon!$AH$4:$AI$10,2,FALSE),0)+IF('Crop 1'!$C$49=Carbon!$B46,'Crop 1'!$L$49*VLOOKUP('Crop 1'!$E$49,Carbon!$AH$4:$AI$10,2,FALSE),0)+IF('Crop 1'!$C$50=Carbon!$B46,'Crop 1'!$L$50*VLOOKUP('Crop 1'!$E$50,Carbon!$AH$4:$AI$10,2,FALSE),0)+IF('Crop 1'!$C$51=Carbon!$B46,'Crop 1'!$L$51*VLOOKUP('Crop 1'!$E$51,Carbon!$AH$4:$AI$10,2,FALSE),0)+IF('Crop 1'!$C$52=Carbon!$B46,'Crop 1'!$L$52*VLOOKUP('Crop 1'!$E$52,Carbon!$AH$4:$AI$10,2,FALSE),0)+IF('Crop 1'!$C$53=Carbon!$B46,'Crop 1'!$L$53*VLOOKUP('Crop 1'!$E$53,Carbon!$AH$4:$AI$10,2,FALSE),0)+IF('Crop 1'!$C$56=Carbon!$B46,'Crop 1'!$L$56*VLOOKUP('Crop 1'!$E$56,Carbon!$AH$4:$AI$10,2,FALSE),0)+IF('Crop 1'!$C$57=Carbon!$B46,'Crop 1'!$L$57*VLOOKUP('Crop 1'!$E$57,Carbon!$AH$4:$AI$10,2,FALSE),0)+IF('Crop 1'!$C$58=Carbon!$B46,'Crop 1'!$L$58*VLOOKUP('Crop 1'!$E$58,Carbon!$AH$4:$AI$10,2,FALSE),0)+IF('Crop 1'!$C$59=Carbon!$B46,'Crop 1'!$L$59*VLOOKUP('Crop 1'!$E$59,Carbon!$AH$4:$AI$10,2,FALSE),0)+IF('Crop 1'!$C$62=Carbon!$B46,'Crop 1'!$L$62*VLOOKUP('Crop 1'!$E$62,Carbon!$AH$4:$AI$10,2,FALSE),0)+IF('Crop 1'!$C$63=Carbon!$B46,'Crop 1'!$L$63*VLOOKUP('Crop 1'!$E$63,Carbon!$AH$4:$AI$10,2,FALSE),0)+IF('Crop 1'!$C$64=Carbon!$B46,'Crop 1'!$L$64*VLOOKUP('Crop 1'!$E$64,Carbon!$AH$4:$AI$10,2,FALSE),0)+IF('Crop 1'!$C$65=Carbon!$B46,'Crop 1'!$L$65*VLOOKUP('Crop 1'!$E$65,Carbon!$AH$4:$AI$10,2,FALSE),0))*$AL$20,2)","v":0},{"$f":"C46*Inputs!$D$13","v":0},{"$f":"ROUND((IF('Crop 2'!$C$14=Carbon!$B46,'Crop 2'!$L$14*VLOOKUP('Crop 2'!$E$14,Carbon!$AH$4:$AI$10,2,FALSE),0)+IF('Crop 2'!$C$15=Carbon!$B46,'Crop 2'!$L$15*VLOOKUP('Crop 2'!$E$15,Carbon!$AH$4:$AI$10,2,FALSE),0)+IF('Crop 2'!$C$16=Carbon!$B46,'Crop 2'!$L$16*VLOOKUP('Crop 2'!$E$16,Carbon!$AH$4:$AI$10,2,FALSE),0)+IF('Crop 2'!$C$19=Carbon!$B46,'Crop 2'!$L$19*VLOOKUP('Crop 2'!$E$19,Carbon!$AH$4:$AI$10,2,FALSE),0)+IF('Crop 2'!$C$20=Carbon!$B46,'Crop 2'!$L$20*VLOOKUP('Crop 2'!$E$20,Carbon!$AH$4:$AI$10,2,FALSE),0)+IF('Crop 2'!$C$21=Carbon!$B46,'Crop 2'!$L$21*VLOOKUP('Crop 2'!$E$21,Carbon!$AH$4:$AI$10,2,FALSE),0)+IF('Crop 2'!$C$49=Carbon!$B46,'Crop 2'!$L$49*VLOOKUP('Crop 2'!$E$49,Carbon!$AH$4:$AI$10,2,FALSE),0)+IF('Crop 2'!$C$50=Carbon!$B46,'Crop 2'!$L$50*VLOOKUP('Crop 2'!$E$50,Carbon!$AH$4:$AI$10,2,FALSE),0)+IF('Crop 2'!$C$51=Carbon!$B46,'Crop 2'!$L$51*VLOOKUP('Crop 2'!$E$51,Carbon!$AH$4:$AI$10,2,FALSE),0)+IF('Crop 2'!$C$52=Carbon!$B46,'Crop 2'!$L$52*VLOOKUP('Crop 2'!$E$52,Carbon!$AH$4:$AI$10,2,FALSE),0)+IF('Crop 2'!$C$53=Carbon!$B46,'Crop 2'!$L$53*VLOOKUP('Crop 2'!$E$53,Carbon!$AH$4:$AI$10,2,FALSE),0)+IF('Crop 2'!$C$56=Carbon!$B46,'Crop 2'!$L$56*VLOOKUP('Crop 2'!$E$56,Carbon!$AH$4:$AI$10,2,FALSE),0)+IF('Crop 2'!$C$57=Carbon!$B46,'Crop 2'!$L$57*VLOOKUP('Crop 2'!$E$57,Carbon!$AH$4:$AI$10,2,FALSE),0)+IF('Crop 2'!$C$58=Carbon!$B46,'Crop 2'!$L$58*VLOOKUP('Crop 2'!$E$58,Carbon!$AH$4:$AI$10,2,FALSE),0)+IF('Crop 2'!$C$59=Carbon!$B46,'Crop 2'!$L$59*VLOOKUP('Crop 2'!$E$59,Carbon!$AH$4:$AI$10,2,FALSE),0)+IF('Crop 2'!$C$62=Carbon!$B46,'Crop 2'!$L$62*VLOOKUP('Crop 2'!$E$62,Carbon!$AH$4:$AI$10,2,FALSE),0)+IF('Crop 2'!$C$63=Carbon!$B46,'Crop 2'!$L$63*VLOOKUP('Crop 2'!$E$63,Carbon!$AH$4:$AI$10,2,FALSE),0)+IF('Crop 2'!$C$64=Carbon!$B46,'Crop 2'!$L$64*VLOOKUP('Crop 2'!$E$64,Carbon!$AH$4:$AI$10,2,FALSE),0)+IF('Crop 2'!$C$65=Carbon!$B46,'Crop 2'!$L$65*VLOOKUP('Crop 2'!$E$65,Carbon!$AH$4:$AI$10,2,FALSE),0))*$AL$20,2)","v":0},{"$f":"E46*Inputs!$D$15","v":0},{"$f":"ROUND((IF('Crop 3'!$C$14=Carbon!$B46,'Crop 3'!$L$14*VLOOKUP('Crop 3'!$E$14,Carbon!$AH$4:$AI$10,2,FALSE),0)+IF('Crop 3'!$C$15=Carbon!$B46,'Crop 3'!$L$15*VLOOKUP('Crop 3'!$E$15,Carbon!$AH$4:$AI$10,2,FALSE),0)+IF('Crop 3'!$C$16=Carbon!$B46,'Crop 3'!$L$16*VLOOKUP('Crop 3'!$E$16,Carbon!$AH$4:$AI$10,2,FALSE),0)+IF('Crop 3'!$C$19=Carbon!$B46,'Crop 3'!$L$19*VLOOKUP('Crop 3'!$E$19,Carbon!$AH$4:$AI$10,2,FALSE),0)+IF('Crop 3'!$C$20=Carbon!$B46,'Crop 3'!$L$20*VLOOKUP('Crop 3'!$E$20,Carbon!$AH$4:$AI$10,2,FALSE),0)+IF('Crop 3'!$C$21=Carbon!$B46,'Crop 3'!$L$21*VLOOKUP('Crop 3'!$E$21,Carbon!$AH$4:$AI$10,2,FALSE),0)+IF('Crop 3'!$C$49=Carbon!$B46,'Crop 3'!$L$49*VLOOKUP('Crop 3'!$E$49,Carbon!$AH$4:$AI$10,2,FALSE),0)+IF('Crop 3'!$C$50=Carbon!$B46,'Crop 3'!$L$50*VLOOKUP('Crop 3'!$E$50,Carbon!$AH$4:$AI$10,2,FALSE),0)+IF('Crop 3'!$C$51=Carbon!$B46,'Crop 3'!$L$51*VLOOKUP('Crop 3'!$E$51,Carbon!$AH$4:$AI$10,2,FALSE),0)+IF('Crop 3'!$C$52=Carbon!$B46,'Crop 3'!$L$52*VLOOKUP('Crop 3'!$E$52,Carbon!$AH$4:$AI$10,2,FALSE),0)+IF('Crop 3'!$C$53=Carbon!$B46,'Crop 3'!$L$53*VLOOKUP('Crop 3'!$E$53,Carbon!$AH$4:$AI$10,2,FALSE),0)+IF('Crop 3'!$C$56=Carbon!$B46,'Crop 3'!$L$56*VLOOKUP('Crop 3'!$E$56,Carbon!$AH$4:$AI$10,2,FALSE),0)+IF('Crop 3'!$C$57=Carbon!$B46,'Crop 3'!$L$57*VLOOKUP('Crop 3'!$E$57,Carbon!$AH$4:$AI$10,2,FALSE),0)+IF('Crop 3'!$C$58=Carbon!$B46,'Crop 3'!$L$58*VLOOKUP('Crop 3'!$E$58,Carbon!$AH$4:$AI$10,2,FALSE),0)+IF('Crop 3'!$C$59=Carbon!$B46,'Crop 3'!$L$59*VLOOKUP('Crop 3'!$E$59,Carbon!$AH$4:$AI$10,2,FALSE),0)+IF('Crop 3'!$C$62=Carbon!$B46,'Crop 3'!$L$62*VLOOKUP('Crop 3'!$E$62,Carbon!$AH$4:$AI$10,2,FALSE),0)+IF('Crop 3'!$C$63=Carbon!$B46,'Crop 3'!$L$63*VLOOKUP('Crop 3'!$E$63,Carbon!$AH$4:$AI$10,2,FALSE),0)+IF('Crop 3'!$C$64=Carbon!$B46,'Crop 3'!$L$64*VLOOKUP('Crop 3'!$E$64,Carbon!$AH$4:$AI$10,2,FALSE),0)+IF('Crop 3'!$C$65=Carbon!$B46,'Crop 3'!$L$65*VLOOKUP('Crop 3'!$E$65,Carbon!$AH$4:$AI$10,2,FALSE),0))*$AL$20,2)","v":0},{"$f":"G46*Inputs!$D$17","v":0},{"$f":"ROUND(J46/Inputs!D$19,2)","v":0},0,null,null,{"$f":"ROUND((IF('Crop 1'!$C$14=Carbon!$B46,'Crop 1'!$V$14*VLOOKUP('Crop 1'!$E$14,Carbon!$AH$4:$AI$10,2,FALSE),0)+IF('Crop 1'!$C$15=Carbon!$B46,'Crop 1'!$V$15*VLOOKUP('Crop 1'!$E$15,Carbon!$AH$4:$AI$10,2,FALSE),0)+IF('Crop 1'!$C$16=Carbon!$B46,'Crop 1'!$V$16*VLOOKUP('Crop 1'!$E$16,Carbon!$AH$4:$AI$10,2,FALSE),0)+IF('Crop 1'!$C$19=Carbon!$B46,'Crop 1'!$V$19*VLOOKUP('Crop 1'!$E$19,Carbon!$AH$4:$AI$10,2,FALSE),0)+IF('Crop 1'!$C$20=Carbon!$B46,'Crop 1'!$V$20*VLOOKUP('Crop 1'!$E$20,Carbon!$AH$4:$AI$10,2,FALSE),0)+IF('Crop 1'!$C$21=Carbon!$B46,'Crop 1'!$V$21*VLOOKUP('Crop 1'!$E$21,Carbon!$AH$4:$AI$10,2,FALSE),0)+IF('Crop 1'!$C$49=Carbon!$B46,'Crop 1'!$V$49*VLOOKUP('Crop 1'!$E$49,Carbon!$AH$4:$AI$10,2,FALSE),0)+IF('Crop 1'!$C$50=Carbon!$B46,'Crop 1'!$V$50*VLOOKUP('Crop 1'!$E$50,Carbon!$AH$4:$AI$10,2,FALSE),0)+IF('Crop 1'!$C$51=Carbon!$B46,'Crop 1'!$V$51*VLOOKUP('Crop 1'!$E$51,Carbon!$AH$4:$AI$10,2,FALSE),0)+IF('Crop 1'!$C$52=Carbon!$B46,'Crop 1'!$V$52*VLOOKUP('Crop 1'!$E$52,Carbon!$AH$4:$AI$10,2,FALSE),0)+IF('Crop 1'!$C$53=Carbon!$B46,'Crop 1'!$V$53*VLOOKUP('Crop 1'!$E$53,Carbon!$AH$4:$AI$10,2,FALSE),0)+IF('Crop 1'!$C$56=Carbon!$B46,'Crop 1'!$V$56*VLOOKUP('Crop 1'!$E$56,Carbon!$AH$4:$AI$10,2,FALSE),0)+IF('Crop 1'!$C$57=Carbon!$B46,'Crop 1'!$V$57*VLOOKUP('Crop 1'!$E$57,Carbon!$AH$4:$AI$10,2,FALSE),0)+IF('Crop 1'!$C$58=Carbon!$B46,'Crop 1'!$V$58*VLOOKUP('Crop 1'!$E$58,Carbon!$AH$4:$AI$10,2,FALSE),0)+IF('Crop 1'!$C$59=Carbon!$B46,'Crop 1'!$V$59*VLOOKUP('Crop 1'!$E$59,Carbon!$AH$4:$AI$10,2,FALSE),0)+IF('Crop 1'!$C$62=Carbon!$B46,'Crop 1'!$V$62*VLOOKUP('Crop 1'!$E$62,Carbon!$AH$4:$AI$10,2,FALSE),0)+IF('Crop 1'!$C$63=Carbon!$B46,'Crop 1'!$V$63*VLOOKUP('Crop 1'!$E$63,Carbon!$AH$4:$AI$10,2,FALSE),0)+IF('Crop 1'!$C$64=Carbon!$B46,'Crop 1'!$V$64*VLOOKUP('Crop 1'!$E$64,Carbon!$AH$4:$AI$10,2,FALSE),0)+IF('Crop 1'!$C$65=Carbon!$B46,'Crop 1'!$V$65*VLOOKUP('Crop 1'!$E$65,Carbon!$AH$4:$AI$10,2,FALSE),0))*$AL$20,2)","v":0},{"$f":"M46*Inputs!$D$13","v":0},{"$f":"ROUND((IF('Crop 2'!$C$14=Carbon!$B46,'Crop 2'!$V$14*VLOOKUP('Crop 2'!$E$14,Carbon!$AH$4:$AI$10,2,FALSE),0)+IF('Crop 2'!$C$15=Carbon!$B46,'Crop 2'!$V$15*VLOOKUP('Crop 2'!$E$15,Carbon!$AH$4:$AI$10,2,FALSE),0)+IF('Crop 2'!$C$16=Carbon!$B46,'Crop 2'!$V$16*VLOOKUP('Crop 2'!$E$16,Carbon!$AH$4:$AI$10,2,FALSE),0)+IF('Crop 2'!$C$19=Carbon!$B46,'Crop 2'!$V$19*VLOOKUP('Crop 2'!$E$19,Carbon!$AH$4:$AI$10,2,FALSE),0)+IF('Crop 2'!$C$20=Carbon!$B46,'Crop 2'!$V$20*VLOOKUP('Crop 2'!$E$20,Carbon!$AH$4:$AI$10,2,FALSE),0)+IF('Crop 2'!$C$21=Carbon!$B46,'Crop 2'!$V$21*VLOOKUP('Crop 2'!$E$21,Carbon!$AH$4:$AI$10,2,FALSE),0)+IF('Crop 2'!$C$49=Carbon!$B46,'Crop 2'!$V$49*VLOOKUP('Crop 2'!$E$49,Carbon!$AH$4:$AI$10,2,FALSE),0)+IF('Crop 2'!$C$50=Carbon!$B46,'Crop 2'!$V$50*VLOOKUP('Crop 2'!$E$50,Carbon!$AH$4:$AI$10,2,FALSE),0)+IF('Crop 2'!$C$51=Carbon!$B46,'Crop 2'!$V$51*VLOOKUP('Crop 2'!$E$51,Carbon!$AH$4:$AI$10,2,FALSE),0)+IF('Crop 2'!$C$52=Carbon!$B46,'Crop 2'!$V$52*VLOOKUP('Crop 2'!$E$52,Carbon!$AH$4:$AI$10,2,FALSE),0)+IF('Crop 2'!$C$53=Carbon!$B46,'Crop 2'!$V$53*VLOOKUP('Crop 2'!$E$53,Carbon!$AH$4:$AI$10,2,FALSE),0)+IF('Crop 2'!$C$56=Carbon!$B46,'Crop 2'!$V$56*VLOOKUP('Crop 2'!$E$56,Carbon!$AH$4:$AI$10,2,FALSE),0)+IF('Crop 2'!$C$57=Carbon!$B46,'Crop 2'!$V$57*VLOOKUP('Crop 2'!$E$57,Carbon!$AH$4:$AI$10,2,FALSE),0)+IF('Crop 2'!$C$58=Carbon!$B46,'Crop 2'!$V$58*VLOOKUP('Crop 2'!$E$58,Carbon!$AH$4:$AI$10,2,FALSE),0)+IF('Crop 2'!$C$59=Carbon!$B46,'Crop 2'!$V$59*VLOOKUP('Crop 2'!$E$59,Carbon!$AH$4:$AI$10,2,FALSE),0)+IF('Crop 2'!$C$62=Carbon!$B46,'Crop 2'!$V$62*VLOOKUP('Crop 2'!$E$62,Carbon!$AH$4:$AI$10,2,FALSE),0)+IF('Crop 2'!$C$63=Carbon!$B46,'Crop 2'!$V$63*VLOOKUP('Crop 2'!$E$63,Carbon!$AH$4:$AI$10,2,FALSE),0)+IF('Crop 2'!$C$64=Carbon!$B46,'Crop 2'!$V$64*VLOOKUP('Crop 2'!$E$64,Carbon!$AH$4:$AI$10,2,FALSE),0)+IF('Crop 2'!$C$65=Carbon!$B46,'Crop 2'!$V$65*VLOOKUP('Crop 2'!$E$65,Carbon!$AH$4:$AI$10,2,FALSE),0))*$AL$20,2)","v":0},{"$f":"O46*Inputs!$D$15","v":0},{"$f":"ROUND((IF('Crop 3'!$C$14=Carbon!$B46,'Crop 3'!$V$14*VLOOKUP('Crop 3'!$E$14,Carbon!$AH$4:$AI$10,2,FALSE),0)+IF('Crop 3'!$C$15=Carbon!$B46,'Crop 3'!$V$15*VLOOKUP('Crop 3'!$E$15,Carbon!$AH$4:$AI$10,2,FALSE),0)+IF('Crop 3'!$C$16=Carbon!$B46,'Crop 3'!$V$16*VLOOKUP('Crop 3'!$E$16,Carbon!$AH$4:$AI$10,2,FALSE),0)+IF('Crop 3'!$C$19=Carbon!$B46,'Crop 3'!$V$19*VLOOKUP('Crop 3'!$E$19,Carbon!$AH$4:$AI$10,2,FALSE),0)+IF('Crop 3'!$C$20=Carbon!$B46,'Crop 3'!$V$20*VLOOKUP('Crop 3'!$E$20,Carbon!$AH$4:$AI$10,2,FALSE),0)+IF('Crop 3'!$C$21=Carbon!$B46,'Crop 3'!$V$21*VLOOKUP('Crop 3'!$E$21,Carbon!$AH$4:$AI$10,2,FALSE),0)+IF('Crop 3'!$C$49=Carbon!$B46,'Crop 3'!$V$49*VLOOKUP('Crop 3'!$E$49,Carbon!$AH$4:$AI$10,2,FALSE),0)+IF('Crop 3'!$C$50=Carbon!$B46,'Crop 3'!$V$50*VLOOKUP('Crop 3'!$E$50,Carbon!$AH$4:$AI$10,2,FALSE),0)+IF('Crop 3'!$C$51=Carbon!$B46,'Crop 3'!$V$51*VLOOKUP('Crop 3'!$E$51,Carbon!$AH$4:$AI$10,2,FALSE),0)+IF('Crop 3'!$C$52=Carbon!$B46,'Crop 3'!$V$52*VLOOKUP('Crop 3'!$E$52,Carbon!$AH$4:$AI$10,2,FALSE),0)+IF('Crop 3'!$C$53=Carbon!$B46,'Crop 3'!$V$53*VLOOKUP('Crop 3'!$E$53,Carbon!$AH$4:$AI$10,2,FALSE),0)+IF('Crop 3'!$C$56=Carbon!$B46,'Crop 3'!$V$56*VLOOKUP('Crop 3'!$E$56,Carbon!$AH$4:$AI$10,2,FALSE),0)+IF('Crop 3'!$C$57=Carbon!$B46,'Crop 3'!$V$57*VLOOKUP('Crop 3'!$E$57,Carbon!$AH$4:$AI$10,2,FALSE),0)+IF('Crop 3'!$C$58=Carbon!$B46,'Crop 3'!$V$58*VLOOKUP('Crop 3'!$E$58,Carbon!$AH$4:$AI$10,2,FALSE),0)+IF('Crop 3'!$C$59=Carbon!$B46,'Crop 3'!$V$59*VLOOKUP('Crop 3'!$E$59,Carbon!$AH$4:$AI$10,2,FALSE),0)+IF('Crop 3'!$C$62=Carbon!$B46,'Crop 3'!$V$62*VLOOKUP('Crop 3'!$E$62,Carbon!$AH$4:$AI$10,2,FALSE),0)+IF('Crop 3'!$C$63=Carbon!$B46,'Crop 3'!$V$63*VLOOKUP('Crop 3'!$E$63,Carbon!$AH$4:$AI$10,2,FALSE),0)+IF('Crop 3'!$C$64=Carbon!$B46,'Crop 3'!$V$64*VLOOKUP('Crop 3'!$E$64,Carbon!$AH$4:$AI$10,2,FALSE),0)+IF('Crop 3'!$C$65=Carbon!$B46,'Crop 3'!$V$65*VLOOKUP('Crop 3'!$E$65,Carbon!$AH$4:$AI$10,2,FALSE),0))*$AL$20,2)","v":0},{"$f":"Q46*Inputs!$D$17","v":0},{"$f":"ROUND(T46/Inputs!D$19,2)","v":0},0,null,null,0,{"$f":"W46*Inputs!$D$13","v":0},0,{"$f":"Y46*Inputs!$D$13","v":0},0,{"$f":"AA46*Inputs!$D$13","v":0},{"$f":"ROUND(AD46/Inputs!D$19,2)","v":0},0]
[null,{"$f":"Defaults!AH13","v":"Atrazine"},{"$f":"ROUND((IF('Crop 1'!$C$14=Carbon!$B47,'Crop 1'!$L$14*VLOOKUP('Crop 1'!$E$14,Carbon!$AH$4:$AI$10,2,FALSE),0)+IF('Crop 1'!$C$15=Carbon!$B47,'Crop 1'!$L$15*VLOOKUP('Crop 1'!$E$15,Carbon!$AH$4:$AI$10,2,FALSE),0)+IF('Crop 1'!$C$16=Carbon!$B47,'Crop 1'!$L$16*VLOOKUP('Crop 1'!$E$16,Carbon!$AH$4:$AI$10,2,FALSE),0)+IF('Crop 1'!$C$19=Carbon!$B47,'Crop 1'!$L$19*VLOOKUP('Crop 1'!$E$19,Carbon!$AH$4:$AI$10,2,FALSE),0)+IF('Crop 1'!$C$20=Carbon!$B47,'Crop 1'!$L$20*VLOOKUP('Crop 1'!$E$20,Carbon!$AH$4:$AI$10,2,FALSE),0)+IF('Crop 1'!$C$21=Carbon!$B47,'Crop 1'!$L$21*VLOOKUP('Crop 1'!$E$21,Carbon!$AH$4:$AI$10,2,FALSE),0)+IF('Crop 1'!$C$49=Carbon!$B47,'Crop 1'!$L$49*VLOOKUP('Crop 1'!$E$49,Carbon!$AH$4:$AI$10,2,FALSE),0)+IF('Crop 1'!$C$50=Carbon!$B47,'Crop 1'!$L$50*VLOOKUP('Crop 1'!$E$50,Carbon!$AH$4:$AI$10,2,FALSE),0)+IF('Crop 1'!$C$51=Carbon!$B47,'Crop 1'!$L$51*VLOOKUP('Crop 1'!$E$51,Carbon!$AH$4:$AI$10,2,FALSE),0)+IF('Crop 1'!$C$52=Carbon!$B47,'Crop 1'!$L$52*VLOOKUP('Crop 1'!$E$52,Carbon!$AH$4:$AI$10,2,FALSE),0)+IF('Crop 1'!$C$53=Carbon!$B47,'Crop 1'!$L$53*VLOOKUP('Crop 1'!$E$53,Carbon!$AH$4:$AI$10,2,FALSE),0)+IF('Crop 1'!$C$56=Carbon!$B47,'Crop 1'!$L$56*VLOOKUP('Crop 1'!$E$56,Carbon!$AH$4:$AI$10,2,FALSE),0)+IF('Crop 1'!$C$57=Carbon!$B47,'Crop 1'!$L$57*VLOOKUP('Crop 1'!$E$57,Carbon!$AH$4:$AI$10,2,FALSE),0)+IF('Crop 1'!$C$58=Carbon!$B47,'Crop 1'!$L$58*VLOOKUP('Crop 1'!$E$58,Carbon!$AH$4:$AI$10,2,FALSE),0)+IF('Crop 1'!$C$59=Carbon!$B47,'Crop 1'!$L$59*VLOOKUP('Crop 1'!$E$59,Carbon!$AH$4:$AI$10,2,FALSE),0)+IF('Crop 1'!$C$62=Carbon!$B47,'Crop 1'!$L$62*VLOOKUP('Crop 1'!$E$62,Carbon!$AH$4:$AI$10,2,FALSE),0)+IF('Crop 1'!$C$63=Carbon!$B47,'Crop 1'!$L$63*VLOOKUP('Crop 1'!$E$63,Carbon!$AH$4:$AI$10,2,FALSE),0)+IF('Crop 1'!$C$64=Carbon!$B47,'Crop 1'!$L$64*VLOOKUP('Crop 1'!$E$64,Carbon!$AH$4:$AI$10,2,FALSE),0)+IF('Crop 1'!$C$65=Carbon!$B47,'Crop 1'!$L$65*VLOOKUP('Crop 1'!$E$65,Carbon!$AH$4:$AI$10,2,FALSE),0))*$AL$20,2)","v":0},{"$f":"C47*Inputs!$D$13","v":0},{"$f":"ROUND((IF('Crop 2'!$C$14=Carbon!$B47,'Crop 2'!$L$14*VLOOKUP('Crop 2'!$E$14,Carbon!$AH$4:$AI$10,2,FALSE),0)+IF('Crop 2'!$C$15=Carbon!$B47,'Crop 2'!$L$15*VLOOKUP('Crop 2'!$E$15,Carbon!$AH$4:$AI$10,2,FALSE),0)+IF('Crop 2'!$C$16=Carbon!$B47,'Crop 2'!$L$16*VLOOKUP('Crop 2'!$E$16,Carbon!$AH$4:$AI$10,2,FALSE),0)+IF('Crop 2'!$C$19=Carbon!$B47,'Crop 2'!$L$19*VLOOKUP('Crop 2'!$E$19,Carbon!$AH$4:$AI$10,2,FALSE),0)+IF('Crop 2'!$C$20=Carbon!$B47,'Crop 2'!$L$20*VLOOKUP('Crop 2'!$E$20,Carbon!$AH$4:$AI$10,2,FALSE),0)+IF('Crop 2'!$C$21=Carbon!$B47,'Crop 2'!$L$21*VLOOKUP('Crop 2'!$E$21,Carbon!$AH$4:$AI$10,2,FALSE),0)+IF('Crop 2'!$C$49=Carbon!$B47,'Crop 2'!$L$49*VLOOKUP('Crop 2'!$E$49,Carbon!$AH$4:$AI$10,2,FALSE),0)+IF('Crop 2'!$C$50=Carbon!$B47,'Crop 2'!$L$50*VLOOKUP('Crop 2'!$E$50,Carbon!$AH$4:$AI$10,2,FALSE),0)+IF('Crop 2'!$C$51=Carbon!$B47,'Crop 2'!$L$51*VLOOKUP('Crop 2'!$E$51,Carbon!$AH$4:$AI$10,2,FALSE),0)+IF('Crop 2'!$C$52=Carbon!$B47,'Crop 2'!$L$52*VLOOKUP('Crop 2'!$E$52,Carbon!$AH$4:$AI$10,2,FALSE),0)+IF('Crop 2'!$C$53=Carbon!$B47,'Crop 2'!$L$53*VLOOKUP('Crop 2'!$E$53,Carbon!$AH$4:$AI$10,2,FALSE),0)+IF('Crop 2'!$C$56=Carbon!$B47,'Crop 2'!$L$56*VLOOKUP('Crop 2'!$E$56,Carbon!$AH$4:$AI$10,2,FALSE),0)+IF('Crop 2'!$C$57=Carbon!$B47,'Crop 2'!$L$57*VLOOKUP('Crop 2'!$E$57,Carbon!$AH$4:$AI$10,2,FALSE),0)+IF('Crop 2'!$C$58=Carbon!$B47,'Crop 2'!$L$58*VLOOKUP('Crop 2'!$E$58,Carbon!$AH$4:$AI$10,2,FALSE),0)+IF('Crop 2'!$C$59=Carbon!$B47,'Crop 2'!$L$59*VLOOKUP('Crop 2'!$E$59,Carbon!$AH$4:$AI$10,2,FALSE),0)+IF('Crop 2'!$C$62=Carbon!$B47,'Crop 2'!$L$62*VLOOKUP('Crop 2'!$E$62,Carbon!$AH$4:$AI$10,2,FALSE),0)+IF('Crop 2'!$C$63=Carbon!$B47,'Crop 2'!$L$63*VLOOKUP('Crop 2'!$E$63,Carbon!$AH$4:$AI$10,2,FALSE),0)+IF('Crop 2'!$C$64=Carbon!$B47,'Crop 2'!$L$64*VLOOKUP('Crop 2'!$E$64,Carbon!$AH$4:$AI$10,2,FALSE),0)+IF('Crop 2'!$C$65=Carbon!$B47,'Crop 2'!$L$65*VLOOKUP('Crop 2'!$E$65,Carbon!$AH$4:$AI$10,2,FALSE),0))*$AL$20,2)","v":0},{"$f":"E47*Inputs!$D$15","v":0},{"$f":"ROUND((IF('Crop 3'!$C$14=Carbon!$B47,'Crop 3'!$L$14*VLOOKUP('Crop 3'!$E$14,Carbon!$AH$4:$AI$10,2,FALSE),0)+IF('Crop 3'!$C$15=Carbon!$B47,'Crop 3'!$L$15*VLOOKUP('Crop 3'!$E$15,Carbon!$AH$4:$AI$10,2,FALSE),0)+IF('Crop 3'!$C$16=Carbon!$B47,'Crop 3'!$L$16*VLOOKUP('Crop 3'!$E$16,Carbon!$AH$4:$AI$10,2,FALSE),0)+IF('Crop 3'!$C$19=Carbon!$B47,'Crop 3'!$L$19*VLOOKUP('Crop 3'!$E$19,Carbon!$AH$4:$AI$10,2,FALSE),0)+IF('Crop 3'!$C$20=Carbon!$B47,'Crop 3'!$L$20*VLOOKUP('Crop 3'!$E$20,Carbon!$AH$4:$AI$10,2,FALSE),0)+IF('Crop 3'!$C$21=Carbon!$B47,'Crop 3'!$L$21*VLOOKUP('Crop 3'!$E$21,Carbon!$AH$4:$AI$10,2,FALSE),0)+IF('Crop 3'!$C$49=Carbon!$B47,'Crop 3'!$L$49*VLOOKUP('Crop 3'!$E$49,Carbon!$AH$4:$AI$10,2,FALSE),0)+IF('Crop 3'!$C$50=Carbon!$B47,'Crop 3'!$L$50*VLOOKUP('Crop 3'!$E$50,Carbon!$AH$4:$AI$10,2,FALSE),0)+IF('Crop 3'!$C$51=Carbon!$B47,'Crop 3'!$L$51*VLOOKUP('Crop 3'!$E$51,Carbon!$AH$4:$AI$10,2,FALSE),0)+IF('Crop 3'!$C$52=Carbon!$B47,'Crop 3'!$L$52*VLOOKUP('Crop 3'!$E$52,Carbon!$AH$4:$AI$10,2,FALSE),0)+IF('Crop 3'!$C$53=Carbon!$B47,'Crop 3'!$L$53*VLOOKUP('Crop 3'!$E$53,Carbon!$AH$4:$AI$10,2,FALSE),0)+IF('Crop 3'!$C$56=Carbon!$B47,'Crop 3'!$L$56*VLOOKUP('Crop 3'!$E$56,Carbon!$AH$4:$AI$10,2,FALSE),0)+IF('Crop 3'!$C$57=Carbon!$B47,'Crop 3'!$L$57*VLOOKUP('Crop 3'!$E$57,Carbon!$AH$4:$AI$10,2,FALSE),0)+IF('Crop 3'!$C$58=Carbon!$B47,'Crop 3'!$L$58*VLOOKUP('Crop 3'!$E$58,Carbon!$AH$4:$AI$10,2,FALSE),0)+IF('Crop 3'!$C$59=Carbon!$B47,'Crop 3'!$L$59*VLOOKUP('Crop 3'!$E$59,Carbon!$AH$4:$AI$10,2,FALSE),0)+IF('Crop 3'!$C$62=Carbon!$B47,'Crop 3'!$L$62*VLOOKUP('Crop 3'!$E$62,Carbon!$AH$4:$AI$10,2,FALSE),0)+IF('Crop 3'!$C$63=Carbon!$B47,'Crop 3'!$L$63*VLOOKUP('Crop 3'!$E$63,Carbon!$AH$4:$AI$10,2,FALSE),0)+IF('Crop 3'!$C$64=Carbon!$B47,'Crop 3'!$L$64*VLOOKUP('Crop 3'!$E$64,Carbon!$AH$4:$AI$10,2,FALSE),0)+IF('Crop 3'!$C$65=Carbon!$B47,'Crop 3'!$L$65*VLOOKUP('Crop 3'!$E$65,Carbon!$AH$4:$AI$10,2,FALSE),0))*$AL$20,2)","v":0},{"$f":"G47*Inputs!$D$17","v":0},{"$f":"ROUND(J47/Inputs!D$19,2)","v":0},0,null,null,{"$f":"ROUND((IF('Crop 1'!$C$14=Carbon!$B47,'Crop 1'!$V$14*VLOOKUP('Crop 1'!$E$14,Carbon!$AH$4:$AI$10,2,FALSE),0)+IF('Crop 1'!$C$15=Carbon!$B47,'Crop 1'!$V$15*VLOOKUP('Crop 1'!$E$15,Carbon!$AH$4:$AI$10,2,FALSE),0)+IF('Crop 1'!$C$16=Carbon!$B47,'Crop 1'!$V$16*VLOOKUP('Crop 1'!$E$16,Carbon!$AH$4:$AI$10,2,FALSE),0)+IF('Crop 1'!$C$19=Carbon!$B47,'Crop 1'!$V$19*VLOOKUP('Crop 1'!$E$19,Carbon!$AH$4:$AI$10,2,FALSE),0)+IF('Crop 1'!$C$20=Carbon!$B47,'Crop 1'!$V$20*VLOOKUP('Crop 1'!$E$20,Carbon!$AH$4:$AI$10,2,FALSE),0)+IF('Crop 1'!$C$21=Carbon!$B47,'Crop 1'!$V$21*VLOOKUP('Crop 1'!$E$21,Carbon!$AH$4:$AI$10,2,FALSE),0)+IF('Crop 1'!$C$49=Carbon!$B47,'Crop 1'!$V$49*VLOOKUP('Crop 1'!$E$49,Carbon!$AH$4:$AI$10,2,FALSE),0)+IF('Crop 1'!$C$50=Carbon!$B47,'Crop 1'!$V$50*VLOOKUP('Crop 1'!$E$50,Carbon!$AH$4:$AI$10,2,FALSE),0)+IF('Crop 1'!$C$51=Carbon!$B47,'Crop 1'!$V$51*VLOOKUP('Crop 1'!$E$51,Carbon!$AH$4:$AI$10,2,FALSE),0)+IF('Crop 1'!$C$52=Carbon!$B47,'Crop 1'!$V$52*VLOOKUP('Crop 1'!$E$52,Carbon!$AH$4:$AI$10,2,FALSE),0)+IF('Crop 1'!$C$53=Carbon!$B47,'Crop 1'!$V$53*VLOOKUP('Crop 1'!$E$53,Carbon!$AH$4:$AI$10,2,FALSE),0)+IF('Crop 1'!$C$56=Carbon!$B47,'Crop 1'!$V$56*VLOOKUP('Crop 1'!$E$56,Carbon!$AH$4:$AI$10,2,FALSE),0)+IF('Crop 1'!$C$57=Carbon!$B47,'Crop 1'!$V$57*VLOOKUP('Crop 1'!$E$57,Carbon!$AH$4:$AI$10,2,FALSE),0)+IF('Crop 1'!$C$58=Carbon!$B47,'Crop 1'!$V$58*VLOOKUP('Crop 1'!$E$58,Carbon!$AH$4:$AI$10,2,FALSE),0)+IF('Crop 1'!$C$59=Carbon!$B47,'Crop 1'!$V$59*VLOOKUP('Crop 1'!$E$59,Carbon!$AH$4:$AI$10,2,FALSE),0)+IF('Crop 1'!$C$62=Carbon!$B47,'Crop 1'!$V$62*VLOOKUP('Crop 1'!$E$62,Carbon!$AH$4:$AI$10,2,FALSE),0)+IF('Crop 1'!$C$63=Carbon!$B47,'Crop 1'!$V$63*VLOOKUP('Crop 1'!$E$63,Carbon!$AH$4:$AI$10,2,FALSE),0)+IF('Crop 1'!$C$64=Carbon!$B47,'Crop 1'!$V$64*VLOOKUP('Crop 1'!$E$64,Carbon!$AH$4:$AI$10,2,FALSE),0)+IF('Crop 1'!$C$65=Carbon!$B47,'Crop 1'!$V$65*VLOOKUP('Crop 1'!$E$65,Carbon!$AH$4:$AI$10,2,FALSE),0))*$AL$20,2)","v":0},{"$f":"M47*Inputs!$D$13","v":0},{"$f":"ROUND((IF('Crop 2'!$C$14=Carbon!$B47,'Crop 2'!$V$14*VLOOKUP('Crop 2'!$E$14,Carbon!$AH$4:$AI$10,2,FALSE),0)+IF('Crop 2'!$C$15=Carbon!$B47,'Crop 2'!$V$15*VLOOKUP('Crop 2'!$E$15,Carbon!$AH$4:$AI$10,2,FALSE),0)+IF('Crop 2'!$C$16=Carbon!$B47,'Crop 2'!$V$16*VLOOKUP('Crop 2'!$E$16,Carbon!$AH$4:$AI$10,2,FALSE),0)+IF('Crop 2'!$C$19=Carbon!$B47,'Crop 2'!$V$19*VLOOKUP('Crop 2'!$E$19,Carbon!$AH$4:$AI$10,2,FALSE),0)+IF('Crop 2'!$C$20=Carbon!$B47,'Crop 2'!$V$20*VLOOKUP('Crop 2'!$E$20,Carbon!$AH$4:$AI$10,2,FALSE),0)+IF('Crop 2'!$C$21=Carbon!$B47,'Crop 2'!$V$21*VLOOKUP('Crop 2'!$E$21,Carbon!$AH$4:$AI$10,2,FALSE),0)+IF('Crop 2'!$C$49=Carbon!$B47,'Crop 2'!$V$49*VLOOKUP('Crop 2'!$E$49,Carbon!$AH$4:$AI$10,2,FALSE),0)+IF('Crop 2'!$C$50=Carbon!$B47,'Crop 2'!$V$50*VLOOKUP('Crop 2'!$E$50,Carbon!$AH$4:$AI$10,2,FALSE),0)+IF('Crop 2'!$C$51=Carbon!$B47,'Crop 2'!$V$51*VLOOKUP('Crop 2'!$E$51,Carbon!$AH$4:$AI$10,2,FALSE),0)+IF('Crop 2'!$C$52=Carbon!$B47,'Crop 2'!$V$52*VLOOKUP('Crop 2'!$E$52,Carbon!$AH$4:$AI$10,2,FALSE),0)+IF('Crop 2'!$C$53=Carbon!$B47,'Crop 2'!$V$53*VLOOKUP('Crop 2'!$E$53,Carbon!$AH$4:$AI$10,2,FALSE),0)+IF('Crop 2'!$C$56=Carbon!$B47,'Crop 2'!$V$56*VLOOKUP('Crop 2'!$E$56,Carbon!$AH$4:$AI$10,2,FALSE),0)+IF('Crop 2'!$C$57=Carbon!$B47,'Crop 2'!$V$57*VLOOKUP('Crop 2'!$E$57,Carbon!$AH$4:$AI$10,2,FALSE),0)+IF('Crop 2'!$C$58=Carbon!$B47,'Crop 2'!$V$58*VLOOKUP('Crop 2'!$E$58,Carbon!$AH$4:$AI$10,2,FALSE),0)+IF('Crop 2'!$C$59=Carbon!$B47,'Crop 2'!$V$59*VLOOKUP('Crop 2'!$E$59,Carbon!$AH$4:$AI$10,2,FALSE),0)+IF('Crop 2'!$C$62=Carbon!$B47,'Crop 2'!$V$62*VLOOKUP('Crop 2'!$E$62,Carbon!$AH$4:$AI$10,2,FALSE),0)+IF('Crop 2'!$C$63=Carbon!$B47,'Crop 2'!$V$63*VLOOKUP('Crop 2'!$E$63,Carbon!$AH$4:$AI$10,2,FALSE),0)+IF('Crop 2'!$C$64=Carbon!$B47,'Crop 2'!$V$64*VLOOKUP('Crop 2'!$E$64,Carbon!$AH$4:$AI$10,2,FALSE),0)+IF('Crop 2'!$C$65=Carbon!$B47,'Crop 2'!$V$65*VLOOKUP('Crop 2'!$E$65,Carbon!$AH$4:$AI$10,2,FALSE),0))*$AL$20,2)","v":0},{"$f":"O47*Inputs!$D$15","v":0},{"$f":"ROUND((IF('Crop 3'!$C$14=Carbon!$B47,'Crop 3'!$V$14*VLOOKUP('Crop 3'!$E$14,Carbon!$AH$4:$AI$10,2,FALSE),0)+IF('Crop 3'!$C$15=Carbon!$B47,'Crop 3'!$V$15*VLOOKUP('Crop 3'!$E$15,Carbon!$AH$4:$AI$10,2,FALSE),0)+IF('Crop 3'!$C$16=Carbon!$B47,'Crop 3'!$V$16*VLOOKUP('Crop 3'!$E$16,Carbon!$AH$4:$AI$10,2,FALSE),0)+IF('Crop 3'!$C$19=Carbon!$B47,'Crop 3'!$V$19*VLOOKUP('Crop 3'!$E$19,Carbon!$AH$4:$AI$10,2,FALSE),0)+IF('Crop 3'!$C$20=Carbon!$B47,'Crop 3'!$V$20*VLOOKUP('Crop 3'!$E$20,Carbon!$AH$4:$AI$10,2,FALSE),0)+IF('Crop 3'!$C$21=Carbon!$B47,'Crop 3'!$V$21*VLOOKUP('Crop 3'!$E$21,Carbon!$AH$4:$AI$10,2,FALSE),0)+IF('Crop 3'!$C$49=Carbon!$B47,'Crop 3'!$V$49*VLOOKUP('Crop 3'!$E$49,Carbon!$AH$4:$AI$10,2,FALSE),0)+IF('Crop 3'!$C$50=Carbon!$B47,'Crop 3'!$V$50*VLOOKUP('Crop 3'!$E$50,Carbon!$AH$4:$AI$10,2,FALSE),0)+IF('Crop 3'!$C$51=Carbon!$B47,'Crop 3'!$V$51*VLOOKUP('Crop 3'!$E$51,Carbon!$AH$4:$AI$10,2,FALSE),0)+IF('Crop 3'!$C$52=Carbon!$B47,'Crop 3'!$V$52*VLOOKUP('Crop 3'!$E$52,Carbon!$AH$4:$AI$10,2,FALSE),0)+IF('Crop 3'!$C$53=Carbon!$B47,'Crop 3'!$V$53*VLOOKUP('Crop 3'!$E$53,Carbon!$AH$4:$AI$10,2,FALSE),0)+IF('Crop 3'!$C$56=Carbon!$B47,'Crop 3'!$V$56*VLOOKUP('Crop 3'!$E$56,Carbon!$AH$4:$AI$10,2,FALSE),0)+IF('Crop 3'!$C$57=Carbon!$B47,'Crop 3'!$V$57*VLOOKUP('Crop 3'!$E$57,Carbon!$AH$4:$AI$10,2,FALSE),0)+IF('Crop 3'!$C$58=Carbon!$B47,'Crop 3'!$V$58*VLOOKUP('Crop 3'!$E$58,Carbon!$AH$4:$AI$10,2,FALSE),0)+IF('Crop 3'!$C$59=Carbon!$B47,'Crop 3'!$V$59*VLOOKUP('Crop 3'!$E$59,Carbon!$AH$4:$AI$10,2,FALSE),0)+IF('Crop 3'!$C$62=Carbon!$B47,'Crop 3'!$V$62*VLOOKUP('Crop 3'!$E$62,Carbon!$AH$4:$AI$10,2,FALSE),0)+IF('Crop 3'!$C$63=Carbon!$B47,'Crop 3'!$V$63*VLOOKUP('Crop 3'!$E$63,Carbon!$AH$4:$AI$10,2,FALSE),0)+IF('Crop 3'!$C$64=Carbon!$B47,'Crop 3'!$V$64*VLOOKUP('Crop 3'!$E$64,Carbon!$AH$4:$AI$10,2,FALSE),0)+IF('Crop 3'!$C$65=Carbon!$B47,'Crop 3'!$V$65*VLOOKUP('Crop 3'!$E$65,Carbon!$AH$4:$AI$10,2,FALSE),0))*$AL$20,2)","v":0},{"$f":"Q47*Inputs!$D$17","v":0},{"$f":"ROUND(T47/Inputs!D$19,2)","v":0},0,null,null,0,{"$f":"W47*Inputs!$D$13","v":0},0,{"$f":"Y47*Inputs!$D$13","v":0},0,{"$f":"AA47*Inputs!$D$13","v":0},{"$f":"ROUND(AD47/Inputs!D$19,2)","v":0},0]
[null,{"$f":"Defaults!AH14","v":"Authority MTZ"},{"$f":"ROUND((IF('Crop 1'!$C$14=Carbon!$B48,'Crop 1'!$L$14*VLOOKUP('Crop 1'!$E$14,Carbon!$AH$4:$AI$10,2,FALSE),0)+IF('Crop 1'!$C$15=Carbon!$B48,'Crop 1'!$L$15*VLOOKUP('Crop 1'!$E$15,Carbon!$AH$4:$AI$10,2,FALSE),0)+IF('Crop 1'!$C$16=Carbon!$B48,'Crop 1'!$L$16*VLOOKUP('Crop 1'!$E$16,Carbon!$AH$4:$AI$10,2,FALSE),0)+IF('Crop 1'!$C$19=Carbon!$B48,'Crop 1'!$L$19*VLOOKUP('Crop 1'!$E$19,Carbon!$AH$4:$AI$10,2,FALSE),0)+IF('Crop 1'!$C$20=Carbon!$B48,'Crop 1'!$L$20*VLOOKUP('Crop 1'!$E$20,Carbon!$AH$4:$AI$10,2,FALSE),0)+IF('Crop 1'!$C$21=Carbon!$B48,'Crop 1'!$L$21*VLOOKUP('Crop 1'!$E$21,Carbon!$AH$4:$AI$10,2,FALSE),0)+IF('Crop 1'!$C$49=Carbon!$B48,'Crop 1'!$L$49*VLOOKUP('Crop 1'!$E$49,Carbon!$AH$4:$AI$10,2,FALSE),0)+IF('Crop 1'!$C$50=Carbon!$B48,'Crop 1'!$L$50*VLOOKUP('Crop 1'!$E$50,Carbon!$AH$4:$AI$10,2,FALSE),0)+IF('Crop 1'!$C$51=Carbon!$B48,'Crop 1'!$L$51*VLOOKUP('Crop 1'!$E$51,Carbon!$AH$4:$AI$10,2,FALSE),0)+IF('Crop 1'!$C$52=Carbon!$B48,'Crop 1'!$L$52*VLOOKUP('Crop 1'!$E$52,Carbon!$AH$4:$AI$10,2,FALSE),0)+IF('Crop 1'!$C$53=Carbon!$B48,'Crop 1'!$L$53*VLOOKUP('Crop 1'!$E$53,Carbon!$AH$4:$AI$10,2,FALSE),0)+IF('Crop 1'!$C$56=Carbon!$B48,'Crop 1'!$L$56*VLOOKUP('Crop 1'!$E$56,Carbon!$AH$4:$AI$10,2,FALSE),0)+IF('Crop 1'!$C$57=Carbon!$B48,'Crop 1'!$L$57*VLOOKUP('Crop 1'!$E$57,Carbon!$AH$4:$AI$10,2,FALSE),0)+IF('Crop 1'!$C$58=Carbon!$B48,'Crop 1'!$L$58*VLOOKUP('Crop 1'!$E$58,Carbon!$AH$4:$AI$10,2,FALSE),0)+IF('Crop 1'!$C$59=Carbon!$B48,'Crop 1'!$L$59*VLOOKUP('Crop 1'!$E$59,Carbon!$AH$4:$AI$10,2,FALSE),0)+IF('Crop 1'!$C$62=Carbon!$B48,'Crop 1'!$L$62*VLOOKUP('Crop 1'!$E$62,Carbon!$AH$4:$AI$10,2,FALSE),0)+IF('Crop 1'!$C$63=Carbon!$B48,'Crop 1'!$L$63*VLOOKUP('Crop 1'!$E$63,Carbon!$AH$4:$AI$10,2,FALSE),0)+IF('Crop 1'!$C$64=Carbon!$B48,'Crop 1'!$L$64*VLOOKUP('Crop 1'!$E$64,Carbon!$AH$4:$AI$10,2,FALSE),0)+IF('Crop 1'!$C$65=Carbon!$B48,'Crop 1'!$L$65*VLOOKUP('Crop 1'!$E$65,Carbon!$AH$4:$AI$10,2,FALSE),0))*$AL$20,2)","v":0},{"$f":"C48*Inputs!$D$13","v":0},{"$f":"ROUND((IF('Crop 2'!$C$14=Carbon!$B48,'Crop 2'!$L$14*VLOOKUP('Crop 2'!$E$14,Carbon!$AH$4:$AI$10,2,FALSE),0)+IF('Crop 2'!$C$15=Carbon!$B48,'Crop 2'!$L$15*VLOOKUP('Crop 2'!$E$15,Carbon!$AH$4:$AI$10,2,FALSE),0)+IF('Crop 2'!$C$16=Carbon!$B48,'Crop 2'!$L$16*VLOOKUP('Crop 2'!$E$16,Carbon!$AH$4:$AI$10,2,FALSE),0)+IF('Crop 2'!$C$19=Carbon!$B48,'Crop 2'!$L$19*VLOOKUP('Crop 2'!$E$19,Carbon!$AH$4:$AI$10,2,FALSE),0)+IF('Crop 2'!$C$20=Carbon!$B48,'Crop 2'!$L$20*VLOOKUP('Crop 2'!$E$20,Carbon!$AH$4:$AI$10,2,FALSE),0)+IF('Crop 2'!$C$21=Carbon!$B48,'Crop 2'!$L$21*VLOOKUP('Crop 2'!$E$21,Carbon!$AH$4:$AI$10,2,FALSE),0)+IF('Crop 2'!$C$49=Carbon!$B48,'Crop 2'!$L$49*VLOOKUP('Crop 2'!$E$49,Carbon!$AH$4:$AI$10,2,FALSE),0)+IF('Crop 2'!$C$50=Carbon!$B48,'Crop 2'!$L$50*VLOOKUP('Crop 2'!$E$50,Carbon!$AH$4:$AI$10,2,FALSE),0)+IF('Crop 2'!$C$51=Carbon!$B48,'Crop 2'!$L$51*VLOOKUP('Crop 2'!$E$51,Carbon!$AH$4:$AI$10,2,FALSE),0)+IF('Crop 2'!$C$52=Carbon!$B48,'Crop 2'!$L$52*VLOOKUP('Crop 2'!$E$52,Carbon!$AH$4:$AI$10,2,FALSE),0)+IF('Crop 2'!$C$53=Carbon!$B48,'Crop 2'!$L$53*VLOOKUP('Crop 2'!$E$53,Carbon!$AH$4:$AI$10,2,FALSE),0)+IF('Crop 2'!$C$56=Carbon!$B48,'Crop 2'!$L$56*VLOOKUP('Crop 2'!$E$56,Carbon!$AH$4:$AI$10,2,FALSE),0)+IF('Crop 2'!$C$57=Carbon!$B48,'Crop 2'!$L$57*VLOOKUP('Crop 2'!$E$57,Carbon!$AH$4:$AI$10,2,FALSE),0)+IF('Crop 2'!$C$58=Carbon!$B48,'Crop 2'!$L$58*VLOOKUP('Crop 2'!$E$58,Carbon!$AH$4:$AI$10,2,FALSE),0)+IF('Crop 2'!$C$59=Carbon!$B48,'Crop 2'!$L$59*VLOOKUP('Crop 2'!$E$59,Carbon!$AH$4:$AI$10,2,FALSE),0)+IF('Crop 2'!$C$62=Carbon!$B48,'Crop 2'!$L$62*VLOOKUP('Crop 2'!$E$62,Carbon!$AH$4:$AI$10,2,FALSE),0)+IF('Crop 2'!$C$63=Carbon!$B48,'Crop 2'!$L$63*VLOOKUP('Crop 2'!$E$63,Carbon!$AH$4:$AI$10,2,FALSE),0)+IF('Crop 2'!$C$64=Carbon!$B48,'Crop 2'!$L$64*VLOOKUP('Crop 2'!$E$64,Carbon!$AH$4:$AI$10,2,FALSE),0)+IF('Crop 2'!$C$65=Carbon!$B48,'Crop 2'!$L$65*VLOOKUP('Crop 2'!$E$65,Carbon!$AH$4:$AI$10,2,FALSE),0))*$AL$20,2)","v":0},{"$f":"E48*Inputs!$D$15","v":0},{"$f":"ROUND((IF('Crop 3'!$C$14=Carbon!$B48,'Crop 3'!$L$14*VLOOKUP('Crop 3'!$E$14,Carbon!$AH$4:$AI$10,2,FALSE),0)+IF('Crop 3'!$C$15=Carbon!$B48,'Crop 3'!$L$15*VLOOKUP('Crop 3'!$E$15,Carbon!$AH$4:$AI$10,2,FALSE),0)+IF('Crop 3'!$C$16=Carbon!$B48,'Crop 3'!$L$16*VLOOKUP('Crop 3'!$E$16,Carbon!$AH$4:$AI$10,2,FALSE),0)+IF('Crop 3'!$C$19=Carbon!$B48,'Crop 3'!$L$19*VLOOKUP('Crop 3'!$E$19,Carbon!$AH$4:$AI$10,2,FALSE),0)+IF('Crop 3'!$C$20=Carbon!$B48,'Crop 3'!$L$20*VLOOKUP('Crop 3'!$E$20,Carbon!$AH$4:$AI$10,2,FALSE),0)+IF('Crop 3'!$C$21=Carbon!$B48,'Crop 3'!$L$21*VLOOKUP('Crop 3'!$E$21,Carbon!$AH$4:$AI$10,2,FALSE),0)+IF('Crop 3'!$C$49=Carbon!$B48,'Crop 3'!$L$49*VLOOKUP('Crop 3'!$E$49,Carbon!$AH$4:$AI$10,2,FALSE),0)+IF('Crop 3'!$C$50=Carbon!$B48,'Crop 3'!$L$50*VLOOKUP('Crop 3'!$E$50,Carbon!$AH$4:$AI$10,2,FALSE),0)+IF('Crop 3'!$C$51=Carbon!$B48,'Crop 3'!$L$51*VLOOKUP('Crop 3'!$E$51,Carbon!$AH$4:$AI$10,2,FALSE),0)+IF('Crop 3'!$C$52=Carbon!$B48,'Crop 3'!$L$52*VLOOKUP('Crop 3'!$E$52,Carbon!$AH$4:$AI$10,2,FALSE),0)+IF('Crop 3'!$C$53=Carbon!$B48,'Crop 3'!$L$53*VLOOKUP('Crop 3'!$E$53,Carbon!$AH$4:$AI$10,2,FALSE),0)+IF('Crop 3'!$C$56=Carbon!$B48,'Crop 3'!$L$56*VLOOKUP('Crop 3'!$E$56,Carbon!$AH$4:$AI$10,2,FALSE),0)+IF('Crop 3'!$C$57=Carbon!$B48,'Crop 3'!$L$57*VLOOKUP('Crop 3'!$E$57,Carbon!$AH$4:$AI$10,2,FALSE),0)+IF('Crop 3'!$C$58=Carbon!$B48,'Crop 3'!$L$58*VLOOKUP('Crop 3'!$E$58,Carbon!$AH$4:$AI$10,2,FALSE),0)+IF('Crop 3'!$C$59=Carbon!$B48,'Crop 3'!$L$59*VLOOKUP('Crop 3'!$E$59,Carbon!$AH$4:$AI$10,2,FALSE),0)+IF('Crop 3'!$C$62=Carbon!$B48,'Crop 3'!$L$62*VLOOKUP('Crop 3'!$E$62,Carbon!$AH$4:$AI$10,2,FALSE),0)+IF('Crop 3'!$C$63=Carbon!$B48,'Crop 3'!$L$63*VLOOKUP('Crop 3'!$E$63,Carbon!$AH$4:$AI$10,2,FALSE),0)+IF('Crop 3'!$C$64=Carbon!$B48,'Crop 3'!$L$64*VLOOKUP('Crop 3'!$E$64,Carbon!$AH$4:$AI$10,2,FALSE),0)+IF('Crop 3'!$C$65=Carbon!$B48,'Crop 3'!$L$65*VLOOKUP('Crop 3'!$E$65,Carbon!$AH$4:$AI$10,2,FALSE),0))*$AL$20,2)","v":0},{"$f":"G48*Inputs!$D$17","v":0},{"$f":"ROUND(J48/Inputs!D$19,2)","v":0},0,null,null,{"$f":"ROUND((IF('Crop 1'!$C$14=Carbon!$B48,'Crop 1'!$V$14*VLOOKUP('Crop 1'!$E$14,Carbon!$AH$4:$AI$10,2,FALSE),0)+IF('Crop 1'!$C$15=Carbon!$B48,'Crop 1'!$V$15*VLOOKUP('Crop 1'!$E$15,Carbon!$AH$4:$AI$10,2,FALSE),0)+IF('Crop 1'!$C$16=Carbon!$B48,'Crop 1'!$V$16*VLOOKUP('Crop 1'!$E$16,Carbon!$AH$4:$AI$10,2,FALSE),0)+IF('Crop 1'!$C$19=Carbon!$B48,'Crop 1'!$V$19*VLOOKUP('Crop 1'!$E$19,Carbon!$AH$4:$AI$10,2,FALSE),0)+IF('Crop 1'!$C$20=Carbon!$B48,'Crop 1'!$V$20*VLOOKUP('Crop 1'!$E$20,Carbon!$AH$4:$AI$10,2,FALSE),0)+IF('Crop 1'!$C$21=Carbon!$B48,'Crop 1'!$V$21*VLOOKUP('Crop 1'!$E$21,Carbon!$AH$4:$AI$10,2,FALSE),0)+IF('Crop 1'!$C$49=Carbon!$B48,'Crop 1'!$V$49*VLOOKUP('Crop 1'!$E$49,Carbon!$AH$4:$AI$10,2,FALSE),0)+IF('Crop 1'!$C$50=Carbon!$B48,'Crop 1'!$V$50*VLOOKUP('Crop 1'!$E$50,Carbon!$AH$4:$AI$10,2,FALSE),0)+IF('Crop 1'!$C$51=Carbon!$B48,'Crop 1'!$V$51*VLOOKUP('Crop 1'!$E$51,Carbon!$AH$4:$AI$10,2,FALSE),0)+IF('Crop 1'!$C$52=Carbon!$B48,'Crop 1'!$V$52*VLOOKUP('Crop 1'!$E$52,Carbon!$AH$4:$AI$10,2,FALSE),0)+IF('Crop 1'!$C$53=Carbon!$B48,'Crop 1'!$V$53*VLOOKUP('Crop 1'!$E$53,Carbon!$AH$4:$AI$10,2,FALSE),0)+IF('Crop 1'!$C$56=Carbon!$B48,'Crop 1'!$V$56*VLOOKUP('Crop 1'!$E$56,Carbon!$AH$4:$AI$10,2,FALSE),0)+IF('Crop 1'!$C$57=Carbon!$B48,'Crop 1'!$V$57*VLOOKUP('Crop 1'!$E$57,Carbon!$AH$4:$AI$10,2,FALSE),0)+IF('Crop 1'!$C$58=Carbon!$B48,'Crop 1'!$V$58*VLOOKUP('Crop 1'!$E$58,Carbon!$AH$4:$AI$10,2,FALSE),0)+IF('Crop 1'!$C$59=Carbon!$B48,'Crop 1'!$V$59*VLOOKUP('Crop 1'!$E$59,Carbon!$AH$4:$AI$10,2,FALSE),0)+IF('Crop 1'!$C$62=Carbon!$B48,'Crop 1'!$V$62*VLOOKUP('Crop 1'!$E$62,Carbon!$AH$4:$AI$10,2,FALSE),0)+IF('Crop 1'!$C$63=Carbon!$B48,'Crop 1'!$V$63*VLOOKUP('Crop 1'!$E$63,Carbon!$AH$4:$AI$10,2,FALSE),0)+IF('Crop 1'!$C$64=Carbon!$B48,'Crop 1'!$V$64*VLOOKUP('Crop 1'!$E$64,Carbon!$AH$4:$AI$10,2,FALSE),0)+IF('Crop 1'!$C$65=Carbon!$B48,'Crop 1'!$V$65*VLOOKUP('Crop 1'!$E$65,Carbon!$AH$4:$AI$10,2,FALSE),0))*$AL$20,2)","v":0},{"$f":"M48*Inputs!$D$13","v":0},{"$f":"ROUND((IF('Crop 2'!$C$14=Carbon!$B48,'Crop 2'!$V$14*VLOOKUP('Crop 2'!$E$14,Carbon!$AH$4:$AI$10,2,FALSE),0)+IF('Crop 2'!$C$15=Carbon!$B48,'Crop 2'!$V$15*VLOOKUP('Crop 2'!$E$15,Carbon!$AH$4:$AI$10,2,FALSE),0)+IF('Crop 2'!$C$16=Carbon!$B48,'Crop 2'!$V$16*VLOOKUP('Crop 2'!$E$16,Carbon!$AH$4:$AI$10,2,FALSE),0)+IF('Crop 2'!$C$19=Carbon!$B48,'Crop 2'!$V$19*VLOOKUP('Crop 2'!$E$19,Carbon!$AH$4:$AI$10,2,FALSE),0)+IF('Crop 2'!$C$20=Carbon!$B48,'Crop 2'!$V$20*VLOOKUP('Crop 2'!$E$20,Carbon!$AH$4:$AI$10,2,FALSE),0)+IF('Crop 2'!$C$21=Carbon!$B48,'Crop 2'!$V$21*VLOOKUP('Crop 2'!$E$21,Carbon!$AH$4:$AI$10,2,FALSE),0)+IF('Crop 2'!$C$49=Carbon!$B48,'Crop 2'!$V$49*VLOOKUP('Crop 2'!$E$49,Carbon!$AH$4:$AI$10,2,FALSE),0)+IF('Crop 2'!$C$50=Carbon!$B48,'Crop 2'!$V$50*VLOOKUP('Crop 2'!$E$50,Carbon!$AH$4:$AI$10,2,FALSE),0)+IF('Crop 2'!$C$51=Carbon!$B48,'Crop 2'!$V$51*VLOOKUP('Crop 2'!$E$51,Carbon!$AH$4:$AI$10,2,FALSE),0)+IF('Crop 2'!$C$52=Carbon!$B48,'Crop 2'!$V$52*VLOOKUP('Crop 2'!$E$52,Carbon!$AH$4:$AI$10,2,FALSE),0)+IF('Crop 2'!$C$53=Carbon!$B48,'Crop 2'!$V$53*VLOOKUP('Crop 2'!$E$53,Carbon!$AH$4:$AI$10,2,FALSE),0)+IF('Crop 2'!$C$56=Carbon!$B48,'Crop 2'!$V$56*VLOOKUP('Crop 2'!$E$56,Carbon!$AH$4:$AI$10,2,FALSE),0)+IF('Crop 2'!$C$57=Carbon!$B48,'Crop 2'!$V$57*VLOOKUP('Crop 2'!$E$57,Carbon!$AH$4:$AI$10,2,FALSE),0)+IF('Crop 2'!$C$58=Carbon!$B48,'Crop 2'!$V$58*VLOOKUP('Crop 2'!$E$58,Carbon!$AH$4:$AI$10,2,FALSE),0)+IF('Crop 2'!$C$59=Carbon!$B48,'Crop 2'!$V$59*VLOOKUP('Crop 2'!$E$59,Carbon!$AH$4:$AI$10,2,FALSE),0)+IF('Crop 2'!$C$62=Carbon!$B48,'Crop 2'!$V$62*VLOOKUP('Crop 2'!$E$62,Carbon!$AH$4:$AI$10,2,FALSE),0)+IF('Crop 2'!$C$63=Carbon!$B48,'Crop 2'!$V$63*VLOOKUP('Crop 2'!$E$63,Carbon!$AH$4:$AI$10,2,FALSE),0)+IF('Crop 2'!$C$64=Carbon!$B48,'Crop 2'!$V$64*VLOOKUP('Crop 2'!$E$64,Carbon!$AH$4:$AI$10,2,FALSE),0)+IF('Crop 2'!$C$65=Carbon!$B48,'Crop 2'!$V$65*VLOOKUP('Crop 2'!$E$65,Carbon!$AH$4:$AI$10,2,FALSE),0))*$AL$20,2)","v":0},{"$f":"O48*Inputs!$D$15","v":0},{"$f":"ROUND((IF('Crop 3'!$C$14=Carbon!$B48,'Crop 3'!$V$14*VLOOKUP('Crop 3'!$E$14,Carbon!$AH$4:$AI$10,2,FALSE),0)+IF('Crop 3'!$C$15=Carbon!$B48,'Crop 3'!$V$15*VLOOKUP('Crop 3'!$E$15,Carbon!$AH$4:$AI$10,2,FALSE),0)+IF('Crop 3'!$C$16=Carbon!$B48,'Crop 3'!$V$16*VLOOKUP('Crop 3'!$E$16,Carbon!$AH$4:$AI$10,2,FALSE),0)+IF('Crop 3'!$C$19=Carbon!$B48,'Crop 3'!$V$19*VLOOKUP('Crop 3'!$E$19,Carbon!$AH$4:$AI$10,2,FALSE),0)+IF('Crop 3'!$C$20=Carbon!$B48,'Crop 3'!$V$20*VLOOKUP('Crop 3'!$E$20,Carbon!$AH$4:$AI$10,2,FALSE),0)+IF('Crop 3'!$C$21=Carbon!$B48,'Crop 3'!$V$21*VLOOKUP('Crop 3'!$E$21,Carbon!$AH$4:$AI$10,2,FALSE),0)+IF('Crop 3'!$C$49=Carbon!$B48,'Crop 3'!$V$49*VLOOKUP('Crop 3'!$E$49,Carbon!$AH$4:$AI$10,2,FALSE),0)+IF('Crop 3'!$C$50=Carbon!$B48,'Crop 3'!$V$50*VLOOKUP('Crop 3'!$E$50,Carbon!$AH$4:$AI$10,2,FALSE),0)+IF('Crop 3'!$C$51=Carbon!$B48,'Crop 3'!$V$51*VLOOKUP('Crop 3'!$E$51,Carbon!$AH$4:$AI$10,2,FALSE),0)+IF('Crop 3'!$C$52=Carbon!$B48,'Crop 3'!$V$52*VLOOKUP('Crop 3'!$E$52,Carbon!$AH$4:$AI$10,2,FALSE),0)+IF('Crop 3'!$C$53=Carbon!$B48,'Crop 3'!$V$53*VLOOKUP('Crop 3'!$E$53,Carbon!$AH$4:$AI$10,2,FALSE),0)+IF('Crop 3'!$C$56=Carbon!$B48,'Crop 3'!$V$56*VLOOKUP('Crop 3'!$E$56,Carbon!$AH$4:$AI$10,2,FALSE),0)+IF('Crop 3'!$C$57=Carbon!$B48,'Crop 3'!$V$57*VLOOKUP('Crop 3'!$E$57,Carbon!$AH$4:$AI$10,2,FALSE),0)+IF('Crop 3'!$C$58=Carbon!$B48,'Crop 3'!$V$58*VLOOKUP('Crop 3'!$E$58,Carbon!$AH$4:$AI$10,2,FALSE),0)+IF('Crop 3'!$C$59=Carbon!$B48,'Crop 3'!$V$59*VLOOKUP('Crop 3'!$E$59,Carbon!$AH$4:$AI$10,2,FALSE),0)+IF('Crop 3'!$C$62=Carbon!$B48,'Crop 3'!$V$62*VLOOKUP('Crop 3'!$E$62,Carbon!$AH$4:$AI$10,2,FALSE),0)+IF('Crop 3'!$C$63=Carbon!$B48,'Crop 3'!$V$63*VLOOKUP('Crop 3'!$E$63,Carbon!$AH$4:$AI$10,2,FALSE),0)+IF('Crop 3'!$C$64=Carbon!$B48,'Crop 3'!$V$64*VLOOKUP('Crop 3'!$E$64,Carbon!$AH$4:$AI$10,2,FALSE),0)+IF('Crop 3'!$C$65=Carbon!$B48,'Crop 3'!$V$65*VLOOKUP('Crop 3'!$E$65,Carbon!$AH$4:$AI$10,2,FALSE),0))*$AL$20,2)","v":0},{"$f":"Q48*Inputs!$D$17","v":0},{"$f":"ROUND(T48/Inputs!D$19,2)","v":0},0,null,null,0,{"$f":"W48*Inputs!$D$13","v":0},0,{"$f":"Y48*Inputs!$D$13","v":0},0,{"$f":"AA48*Inputs!$D$13","v":0},{"$f":"ROUND(AD48/Inputs!D$19,2)","v":0},0]
[null,{"$f":"Defaults!AH15","v":"Axial"},{"$f":"ROUND((IF('Crop 1'!$C$14=Carbon!$B49,'Crop 1'!$L$14*VLOOKUP('Crop 1'!$E$14,Carbon!$AH$4:$AI$10,2,FALSE),0)+IF('Crop 1'!$C$15=Carbon!$B49,'Crop 1'!$L$15*VLOOKUP('Crop 1'!$E$15,Carbon!$AH$4:$AI$10,2,FALSE),0)+IF('Crop 1'!$C$16=Carbon!$B49,'Crop 1'!$L$16*VLOOKUP('Crop 1'!$E$16,Carbon!$AH$4:$AI$10,2,FALSE),0)+IF('Crop 1'!$C$19=Carbon!$B49,'Crop 1'!$L$19*VLOOKUP('Crop 1'!$E$19,Carbon!$AH$4:$AI$10,2,FALSE),0)+IF('Crop 1'!$C$20=Carbon!$B49,'Crop 1'!$L$20*VLOOKUP('Crop 1'!$E$20,Carbon!$AH$4:$AI$10,2,FALSE),0)+IF('Crop 1'!$C$21=Carbon!$B49,'Crop 1'!$L$21*VLOOKUP('Crop 1'!$E$21,Carbon!$AH$4:$AI$10,2,FALSE),0)+IF('Crop 1'!$C$49=Carbon!$B49,'Crop 1'!$L$49*VLOOKUP('Crop 1'!$E$49,Carbon!$AH$4:$AI$10,2,FALSE),0)+IF('Crop 1'!$C$50=Carbon!$B49,'Crop 1'!$L$50*VLOOKUP('Crop 1'!$E$50,Carbon!$AH$4:$AI$10,2,FALSE),0)+IF('Crop 1'!$C$51=Carbon!$B49,'Crop 1'!$L$51*VLOOKUP('Crop 1'!$E$51,Carbon!$AH$4:$AI$10,2,FALSE),0)+IF('Crop 1'!$C$52=Carbon!$B49,'Crop 1'!$L$52*VLOOKUP('Crop 1'!$E$52,Carbon!$AH$4:$AI$10,2,FALSE),0)+IF('Crop 1'!$C$53=Carbon!$B49,'Crop 1'!$L$53*VLOOKUP('Crop 1'!$E$53,Carbon!$AH$4:$AI$10,2,FALSE),0)+IF('Crop 1'!$C$56=Carbon!$B49,'Crop 1'!$L$56*VLOOKUP('Crop 1'!$E$56,Carbon!$AH$4:$AI$10,2,FALSE),0)+IF('Crop 1'!$C$57=Carbon!$B49,'Crop 1'!$L$57*VLOOKUP('Crop 1'!$E$57,Carbon!$AH$4:$AI$10,2,FALSE),0)+IF('Crop 1'!$C$58=Carbon!$B49,'Crop 1'!$L$58*VLOOKUP('Crop 1'!$E$58,Carbon!$AH$4:$AI$10,2,FALSE),0)+IF('Crop 1'!$C$59=Carbon!$B49,'Crop 1'!$L$59*VLOOKUP('Crop 1'!$E$59,Carbon!$AH$4:$AI$10,2,FALSE),0)+IF('Crop 1'!$C$62=Carbon!$B49,'Crop 1'!$L$62*VLOOKUP('Crop 1'!$E$62,Carbon!$AH$4:$AI$10,2,FALSE),0)+IF('Crop 1'!$C$63=Carbon!$B49,'Crop 1'!$L$63*VLOOKUP('Crop 1'!$E$63,Carbon!$AH$4:$AI$10,2,FALSE),0)+IF('Crop 1'!$C$64=Carbon!$B49,'Crop 1'!$L$64*VLOOKUP('Crop 1'!$E$64,Carbon!$AH$4:$AI$10,2,FALSE),0)+IF('Crop 1'!$C$65=Carbon!$B49,'Crop 1'!$L$65*VLOOKUP('Crop 1'!$E$65,Carbon!$AH$4:$AI$10,2,FALSE),0))*$AL$20,2)","v":0},{"$f":"C49*Inputs!$D$13","v":0},{"$f":"ROUND((IF('Crop 2'!$C$14=Carbon!$B49,'Crop 2'!$L$14*VLOOKUP('Crop 2'!$E$14,Carbon!$AH$4:$AI$10,2,FALSE),0)+IF('Crop 2'!$C$15=Carbon!$B49,'Crop 2'!$L$15*VLOOKUP('Crop 2'!$E$15,Carbon!$AH$4:$AI$10,2,FALSE),0)+IF('Crop 2'!$C$16=Carbon!$B49,'Crop 2'!$L$16*VLOOKUP('Crop 2'!$E$16,Carbon!$AH$4:$AI$10,2,FALSE),0)+IF('Crop 2'!$C$19=Carbon!$B49,'Crop 2'!$L$19*VLOOKUP('Crop 2'!$E$19,Carbon!$AH$4:$AI$10,2,FALSE),0)+IF('Crop 2'!$C$20=Carbon!$B49,'Crop 2'!$L$20*VLOOKUP('Crop 2'!$E$20,Carbon!$AH$4:$AI$10,2,FALSE),0)+IF('Crop 2'!$C$21=Carbon!$B49,'Crop 2'!$L$21*VLOOKUP('Crop 2'!$E$21,Carbon!$AH$4:$AI$10,2,FALSE),0)+IF('Crop 2'!$C$49=Carbon!$B49,'Crop 2'!$L$49*VLOOKUP('Crop 2'!$E$49,Carbon!$AH$4:$AI$10,2,FALSE),0)+IF('Crop 2'!$C$50=Carbon!$B49,'Crop 2'!$L$50*VLOOKUP('Crop 2'!$E$50,Carbon!$AH$4:$AI$10,2,FALSE),0)+IF('Crop 2'!$C$51=Carbon!$B49,'Crop 2'!$L$51*VLOOKUP('Crop 2'!$E$51,Carbon!$AH$4:$AI$10,2,FALSE),0)+IF('Crop 2'!$C$52=Carbon!$B49,'Crop 2'!$L$52*VLOOKUP('Crop 2'!$E$52,Carbon!$AH$4:$AI$10,2,FALSE),0)+IF('Crop 2'!$C$53=Carbon!$B49,'Crop 2'!$L$53*VLOOKUP('Crop 2'!$E$53,Carbon!$AH$4:$AI$10,2,FALSE),0)+IF('Crop 2'!$C$56=Carbon!$B49,'Crop 2'!$L$56*VLOOKUP('Crop 2'!$E$56,Carbon!$AH$4:$AI$10,2,FALSE),0)+IF('Crop 2'!$C$57=Carbon!$B49,'Crop 2'!$L$57*VLOOKUP('Crop 2'!$E$57,Carbon!$AH$4:$AI$10,2,FALSE),0)+IF('Crop 2'!$C$58=Carbon!$B49,'Crop 2'!$L$58*VLOOKUP('Crop 2'!$E$58,Carbon!$AH$4:$AI$10,2,FALSE),0)+IF('Crop 2'!$C$59=Carbon!$B49,'Crop 2'!$L$59*VLOOKUP('Crop 2'!$E$59,Carbon!$AH$4:$AI$10,2,FALSE),0)+IF('Crop 2'!$C$62=Carbon!$B49,'Crop 2'!$L$62*VLOOKUP('Crop 2'!$E$62,Carbon!$AH$4:$AI$10,2,FALSE),0)+IF('Crop 2'!$C$63=Carbon!$B49,'Crop 2'!$L$63*VLOOKUP('Crop 2'!$E$63,Carbon!$AH$4:$AI$10,2,FALSE),0)+IF('Crop 2'!$C$64=Carbon!$B49,'Crop 2'!$L$64*VLOOKUP('Crop 2'!$E$64,Carbon!$AH$4:$AI$10,2,FALSE),0)+IF('Crop 2'!$C$65=Carbon!$B49,'Crop 2'!$L$65*VLOOKUP('Crop 2'!$E$65,Carbon!$AH$4:$AI$10,2,FALSE),0))*$AL$20,2)","v":0},{"$f":"E49*Inputs!$D$15","v":0},{"$f":"ROUND((IF('Crop 3'!$C$14=Carbon!$B49,'Crop 3'!$L$14*VLOOKUP('Crop 3'!$E$14,Carbon!$AH$4:$AI$10,2,FALSE),0)+IF('Crop 3'!$C$15=Carbon!$B49,'Crop 3'!$L$15*VLOOKUP('Crop 3'!$E$15,Carbon!$AH$4:$AI$10,2,FALSE),0)+IF('Crop 3'!$C$16=Carbon!$B49,'Crop 3'!$L$16*VLOOKUP('Crop 3'!$E$16,Carbon!$AH$4:$AI$10,2,FALSE),0)+IF('Crop 3'!$C$19=Carbon!$B49,'Crop 3'!$L$19*VLOOKUP('Crop 3'!$E$19,Carbon!$AH$4:$AI$10,2,FALSE),0)+IF('Crop 3'!$C$20=Carbon!$B49,'Crop 3'!$L$20*VLOOKUP('Crop 3'!$E$20,Carbon!$AH$4:$AI$10,2,FALSE),0)+IF('Crop 3'!$C$21=Carbon!$B49,'Crop 3'!$L$21*VLOOKUP('Crop 3'!$E$21,Carbon!$AH$4:$AI$10,2,FALSE),0)+IF('Crop 3'!$C$49=Carbon!$B49,'Crop 3'!$L$49*VLOOKUP('Crop 3'!$E$49,Carbon!$AH$4:$AI$10,2,FALSE),0)+IF('Crop 3'!$C$50=Carbon!$B49,'Crop 3'!$L$50*VLOOKUP('Crop 3'!$E$50,Carbon!$AH$4:$AI$10,2,FALSE),0)+IF('Crop 3'!$C$51=Carbon!$B49,'Crop 3'!$L$51*VLOOKUP('Crop 3'!$E$51,Carbon!$AH$4:$AI$10,2,FALSE),0)+IF('Crop 3'!$C$52=Carbon!$B49,'Crop 3'!$L$52*VLOOKUP('Crop 3'!$E$52,Carbon!$AH$4:$AI$10,2,FALSE),0)+IF('Crop 3'!$C$53=Carbon!$B49,'Crop 3'!$L$53*VLOOKUP('Crop 3'!$E$53,Carbon!$AH$4:$AI$10,2,FALSE),0)+IF('Crop 3'!$C$56=Carbon!$B49,'Crop 3'!$L$56*VLOOKUP('Crop 3'!$E$56,Carbon!$AH$4:$AI$10,2,FALSE),0)+IF('Crop 3'!$C$57=Carbon!$B49,'Crop 3'!$L$57*VLOOKUP('Crop 3'!$E$57,Carbon!$AH$4:$AI$10,2,FALSE),0)+IF('Crop 3'!$C$58=Carbon!$B49,'Crop 3'!$L$58*VLOOKUP('Crop 3'!$E$58,Carbon!$AH$4:$AI$10,2,FALSE),0)+IF('Crop 3'!$C$59=Carbon!$B49,'Crop 3'!$L$59*VLOOKUP('Crop 3'!$E$59,Carbon!$AH$4:$AI$10,2,FALSE),0)+IF('Crop 3'!$C$62=Carbon!$B49,'Crop 3'!$L$62*VLOOKUP('Crop 3'!$E$62,Carbon!$AH$4:$AI$10,2,FALSE),0)+IF('Crop 3'!$C$63=Carbon!$B49,'Crop 3'!$L$63*VLOOKUP('Crop 3'!$E$63,Carbon!$AH$4:$AI$10,2,FALSE),0)+IF('Crop 3'!$C$64=Carbon!$B49,'Crop 3'!$L$64*VLOOKUP('Crop 3'!$E$64,Carbon!$AH$4:$AI$10,2,FALSE),0)+IF('Crop 3'!$C$65=Carbon!$B49,'Crop 3'!$L$65*VLOOKUP('Crop 3'!$E$65,Carbon!$AH$4:$AI$10,2,FALSE),0))*$AL$20,2)","v":0},{"$f":"G49*Inputs!$D$17","v":0},{"$f":"ROUND(J49/Inputs!D$19,2)","v":0},0,null,null,{"$f":"ROUND((IF('Crop 1'!$C$14=Carbon!$B49,'Crop 1'!$V$14*VLOOKUP('Crop 1'!$E$14,Carbon!$AH$4:$AI$10,2,FALSE),0)+IF('Crop 1'!$C$15=Carbon!$B49,'Crop 1'!$V$15*VLOOKUP('Crop 1'!$E$15,Carbon!$AH$4:$AI$10,2,FALSE),0)+IF('Crop 1'!$C$16=Carbon!$B49,'Crop 1'!$V$16*VLOOKUP('Crop 1'!$E$16,Carbon!$AH$4:$AI$10,2,FALSE),0)+IF('Crop 1'!$C$19=Carbon!$B49,'Crop 1'!$V$19*VLOOKUP('Crop 1'!$E$19,Carbon!$AH$4:$AI$10,2,FALSE),0)+IF('Crop 1'!$C$20=Carbon!$B49,'Crop 1'!$V$20*VLOOKUP('Crop 1'!$E$20,Carbon!$AH$4:$AI$10,2,FALSE),0)+IF('Crop 1'!$C$21=Carbon!$B49,'Crop 1'!$V$21*VLOOKUP('Crop 1'!$E$21,Carbon!$AH$4:$AI$10,2,FALSE),0)+IF('Crop 1'!$C$49=Carbon!$B49,'Crop 1'!$V$49*VLOOKUP('Crop 1'!$E$49,Carbon!$AH$4:$AI$10,2,FALSE),0)+IF('Crop 1'!$C$50=Carbon!$B49,'Crop 1'!$V$50*VLOOKUP('Crop 1'!$E$50,Carbon!$AH$4:$AI$10,2,FALSE),0)+IF('Crop 1'!$C$51=Carbon!$B49,'Crop 1'!$V$51*VLOOKUP('Crop 1'!$E$51,Carbon!$AH$4:$AI$10,2,FALSE),0)+IF('Crop 1'!$C$52=Carbon!$B49,'Crop 1'!$V$52*VLOOKUP('Crop 1'!$E$52,Carbon!$AH$4:$AI$10,2,FALSE),0)+IF('Crop 1'!$C$53=Carbon!$B49,'Crop 1'!$V$53*VLOOKUP('Crop 1'!$E$53,Carbon!$AH$4:$AI$10,2,FALSE),0)+IF('Crop 1'!$C$56=Carbon!$B49,'Crop 1'!$V$56*VLOOKUP('Crop 1'!$E$56,Carbon!$AH$4:$AI$10,2,FALSE),0)+IF('Crop 1'!$C$57=Carbon!$B49,'Crop 1'!$V$57*VLOOKUP('Crop 1'!$E$57,Carbon!$AH$4:$AI$10,2,FALSE),0)+IF('Crop 1'!$C$58=Carbon!$B49,'Crop 1'!$V$58*VLOOKUP('Crop 1'!$E$58,Carbon!$AH$4:$AI$10,2,FALSE),0)+IF('Crop 1'!$C$59=Carbon!$B49,'Crop 1'!$V$59*VLOOKUP('Crop 1'!$E$59,Carbon!$AH$4:$AI$10,2,FALSE),0)+IF('Crop 1'!$C$62=Carbon!$B49,'Crop 1'!$V$62*VLOOKUP('Crop 1'!$E$62,Carbon!$AH$4:$AI$10,2,FALSE),0)+IF('Crop 1'!$C$63=Carbon!$B49,'Crop 1'!$V$63*VLOOKUP('Crop 1'!$E$63,Carbon!$AH$4:$AI$10,2,FALSE),0)+IF('Crop 1'!$C$64=Carbon!$B49,'Crop 1'!$V$64*VLOOKUP('Crop 1'!$E$64,Carbon!$AH$4:$AI$10,2,FALSE),0)+IF('Crop 1'!$C$65=Carbon!$B49,'Crop 1'!$V$65*VLOOKUP('Crop 1'!$E$65,Carbon!$AH$4:$AI$10,2,FALSE),0))*$AL$20,2)","v":0},{"$f":"M49*Inputs!$D$13","v":0},{"$f":"ROUND((IF('Crop 2'!$C$14=Carbon!$B49,'Crop 2'!$V$14*VLOOKUP('Crop 2'!$E$14,Carbon!$AH$4:$AI$10,2,FALSE),0)+IF('Crop 2'!$C$15=Carbon!$B49,'Crop 2'!$V$15*VLOOKUP('Crop 2'!$E$15,Carbon!$AH$4:$AI$10,2,FALSE),0)+IF('Crop 2'!$C$16=Carbon!$B49,'Crop 2'!$V$16*VLOOKUP('Crop 2'!$E$16,Carbon!$AH$4:$AI$10,2,FALSE),0)+IF('Crop 2'!$C$19=Carbon!$B49,'Crop 2'!$V$19*VLOOKUP('Crop 2'!$E$19,Carbon!$AH$4:$AI$10,2,FALSE),0)+IF('Crop 2'!$C$20=Carbon!$B49,'Crop 2'!$V$20*VLOOKUP('Crop 2'!$E$20,Carbon!$AH$4:$AI$10,2,FALSE),0)+IF('Crop 2'!$C$21=Carbon!$B49,'Crop 2'!$V$21*VLOOKUP('Crop 2'!$E$21,Carbon!$AH$4:$AI$10,2,FALSE),0)+IF('Crop 2'!$C$49=Carbon!$B49,'Crop 2'!$V$49*VLOOKUP('Crop 2'!$E$49,Carbon!$AH$4:$AI$10,2,FALSE),0)+IF('Crop 2'!$C$50=Carbon!$B49,'Crop 2'!$V$50*VLOOKUP('Crop 2'!$E$50,Carbon!$AH$4:$AI$10,2,FALSE),0)+IF('Crop 2'!$C$51=Carbon!$B49,'Crop 2'!$V$51*VLOOKUP('Crop 2'!$E$51,Carbon!$AH$4:$AI$10,2,FALSE),0)+IF('Crop 2'!$C$52=Carbon!$B49,'Crop 2'!$V$52*VLOOKUP('Crop 2'!$E$52,Carbon!$AH$4:$AI$10,2,FALSE),0)+IF('Crop 2'!$C$53=Carbon!$B49,'Crop 2'!$V$53*VLOOKUP('Crop 2'!$E$53,Carbon!$AH$4:$AI$10,2,FALSE),0)+IF('Crop 2'!$C$56=Carbon!$B49,'Crop 2'!$V$56*VLOOKUP('Crop 2'!$E$56,Carbon!$AH$4:$AI$10,2,FALSE),0)+IF('Crop 2'!$C$57=Carbon!$B49,'Crop 2'!$V$57*VLOOKUP('Crop 2'!$E$57,Carbon!$AH$4:$AI$10,2,FALSE),0)+IF('Crop 2'!$C$58=Carbon!$B49,'Crop 2'!$V$58*VLOOKUP('Crop 2'!$E$58,Carbon!$AH$4:$AI$10,2,FALSE),0)+IF('Crop 2'!$C$59=Carbon!$B49,'Crop 2'!$V$59*VLOOKUP('Crop 2'!$E$59,Carbon!$AH$4:$AI$10,2,FALSE),0)+IF('Crop 2'!$C$62=Carbon!$B49,'Crop 2'!$V$62*VLOOKUP('Crop 2'!$E$62,Carbon!$AH$4:$AI$10,2,FALSE),0)+IF('Crop 2'!$C$63=Carbon!$B49,'Crop 2'!$V$63*VLOOKUP('Crop 2'!$E$63,Carbon!$AH$4:$AI$10,2,FALSE),0)+IF('Crop 2'!$C$64=Carbon!$B49,'Crop 2'!$V$64*VLOOKUP('Crop 2'!$E$64,Carbon!$AH$4:$AI$10,2,FALSE),0)+IF('Crop 2'!$C$65=Carbon!$B49,'Crop 2'!$V$65*VLOOKUP('Crop 2'!$E$65,Carbon!$AH$4:$AI$10,2,FALSE),0))*$AL$20,2)","v":0},{"$f":"O49*Inputs!$D$15","v":0},{"$f":"ROUND((IF('Crop 3'!$C$14=Carbon!$B49,'Crop 3'!$V$14*VLOOKUP('Crop 3'!$E$14,Carbon!$AH$4:$AI$10,2,FALSE),0)+IF('Crop 3'!$C$15=Carbon!$B49,'Crop 3'!$V$15*VLOOKUP('Crop 3'!$E$15,Carbon!$AH$4:$AI$10,2,FALSE),0)+IF('Crop 3'!$C$16=Carbon!$B49,'Crop 3'!$V$16*VLOOKUP('Crop 3'!$E$16,Carbon!$AH$4:$AI$10,2,FALSE),0)+IF('Crop 3'!$C$19=Carbon!$B49,'Crop 3'!$V$19*VLOOKUP('Crop 3'!$E$19,Carbon!$AH$4:$AI$10,2,FALSE),0)+IF('Crop 3'!$C$20=Carbon!$B49,'Crop 3'!$V$20*VLOOKUP('Crop 3'!$E$20,Carbon!$AH$4:$AI$10,2,FALSE),0)+IF('Crop 3'!$C$21=Carbon!$B49,'Crop 3'!$V$21*VLOOKUP('Crop 3'!$E$21,Carbon!$AH$4:$AI$10,2,FALSE),0)+IF('Crop 3'!$C$49=Carbon!$B49,'Crop 3'!$V$49*VLOOKUP('Crop 3'!$E$49,Carbon!$AH$4:$AI$10,2,FALSE),0)+IF('Crop 3'!$C$50=Carbon!$B49,'Crop 3'!$V$50*VLOOKUP('Crop 3'!$E$50,Carbon!$AH$4:$AI$10,2,FALSE),0)+IF('Crop 3'!$C$51=Carbon!$B49,'Crop 3'!$V$51*VLOOKUP('Crop 3'!$E$51,Carbon!$AH$4:$AI$10,2,FALSE),0)+IF('Crop 3'!$C$52=Carbon!$B49,'Crop 3'!$V$52*VLOOKUP('Crop 3'!$E$52,Carbon!$AH$4:$AI$10,2,FALSE),0)+IF('Crop 3'!$C$53=Carbon!$B49,'Crop 3'!$V$53*VLOOKUP('Crop 3'!$E$53,Carbon!$AH$4:$AI$10,2,FALSE),0)+IF('Crop 3'!$C$56=Carbon!$B49,'Crop 3'!$V$56*VLOOKUP('Crop 3'!$E$56,Carbon!$AH$4:$AI$10,2,FALSE),0)+IF('Crop 3'!$C$57=Carbon!$B49,'Crop 3'!$V$57*VLOOKUP('Crop 3'!$E$57,Carbon!$AH$4:$AI$10,2,FALSE),0)+IF('Crop 3'!$C$58=Carbon!$B49,'Crop 3'!$V$58*VLOOKUP('Crop 3'!$E$58,Carbon!$AH$4:$AI$10,2,FALSE),0)+IF('Crop 3'!$C$59=Carbon!$B49,'Crop 3'!$V$59*VLOOKUP('Crop 3'!$E$59,Carbon!$AH$4:$AI$10,2,FALSE),0)+IF('Crop 3'!$C$62=Carbon!$B49,'Crop 3'!$V$62*VLOOKUP('Crop 3'!$E$62,Carbon!$AH$4:$AI$10,2,FALSE),0)+IF('Crop 3'!$C$63=Carbon!$B49,'Crop 3'!$V$63*VLOOKUP('Crop 3'!$E$63,Carbon!$AH$4:$AI$10,2,FALSE),0)+IF('Crop 3'!$C$64=Carbon!$B49,'Crop 3'!$V$64*VLOOKUP('Crop 3'!$E$64,Carbon!$AH$4:$AI$10,2,FALSE),0)+IF('Crop 3'!$C$65=Carbon!$B49,'Crop 3'!$V$65*VLOOKUP('Crop 3'!$E$65,Carbon!$AH$4:$AI$10,2,FALSE),0))*$AL$20,2)","v":0},{"$f":"Q49*Inputs!$D$17","v":0},{"$f":"ROUND(T49/Inputs!D$19,2)","v":0},0,null,null,0,{"$f":"W49*Inputs!$D$13","v":0},0,{"$f":"Y49*Inputs!$D$13","v":0},0,{"$f":"AA49*Inputs!$D$13","v":0},{"$f":"ROUND(AD49/Inputs!D$19,2)","v":0},0]
[null,{"$f":"Defaults!AH16","v":"Axiom"},{"$f":"ROUND((IF('Crop 1'!$C$14=Carbon!$B50,'Crop 1'!$L$14*VLOOKUP('Crop 1'!$E$14,Carbon!$AH$4:$AI$10,2,FALSE),0)+IF('Crop 1'!$C$15=Carbon!$B50,'Crop 1'!$L$15*VLOOKUP('Crop 1'!$E$15,Carbon!$AH$4:$AI$10,2,FALSE),0)+IF('Crop 1'!$C$16=Carbon!$B50,'Crop 1'!$L$16*VLOOKUP('Crop 1'!$E$16,Carbon!$AH$4:$AI$10,2,FALSE),0)+IF('Crop 1'!$C$19=Carbon!$B50,'Crop 1'!$L$19*VLOOKUP('Crop 1'!$E$19,Carbon!$AH$4:$AI$10,2,FALSE),0)+IF('Crop 1'!$C$20=Carbon!$B50,'Crop 1'!$L$20*VLOOKUP('Crop 1'!$E$20,Carbon!$AH$4:$AI$10,2,FALSE),0)+IF('Crop 1'!$C$21=Carbon!$B50,'Crop 1'!$L$21*VLOOKUP('Crop 1'!$E$21,Carbon!$AH$4:$AI$10,2,FALSE),0)+IF('Crop 1'!$C$49=Carbon!$B50,'Crop 1'!$L$49*VLOOKUP('Crop 1'!$E$49,Carbon!$AH$4:$AI$10,2,FALSE),0)+IF('Crop 1'!$C$50=Carbon!$B50,'Crop 1'!$L$50*VLOOKUP('Crop 1'!$E$50,Carbon!$AH$4:$AI$10,2,FALSE),0)+IF('Crop 1'!$C$51=Carbon!$B50,'Crop 1'!$L$51*VLOOKUP('Crop 1'!$E$51,Carbon!$AH$4:$AI$10,2,FALSE),0)+IF('Crop 1'!$C$52=Carbon!$B50,'Crop 1'!$L$52*VLOOKUP('Crop 1'!$E$52,Carbon!$AH$4:$AI$10,2,FALSE),0)+IF('Crop 1'!$C$53=Carbon!$B50,'Crop 1'!$L$53*VLOOKUP('Crop 1'!$E$53,Carbon!$AH$4:$AI$10,2,FALSE),0)+IF('Crop 1'!$C$56=Carbon!$B50,'Crop 1'!$L$56*VLOOKUP('Crop 1'!$E$56,Carbon!$AH$4:$AI$10,2,FALSE),0)+IF('Crop 1'!$C$57=Carbon!$B50,'Crop 1'!$L$57*VLOOKUP('Crop 1'!$E$57,Carbon!$AH$4:$AI$10,2,FALSE),0)+IF('Crop 1'!$C$58=Carbon!$B50,'Crop 1'!$L$58*VLOOKUP('Crop 1'!$E$58,Carbon!$AH$4:$AI$10,2,FALSE),0)+IF('Crop 1'!$C$59=Carbon!$B50,'Crop 1'!$L$59*VLOOKUP('Crop 1'!$E$59,Carbon!$AH$4:$AI$10,2,FALSE),0)+IF('Crop 1'!$C$62=Carbon!$B50,'Crop 1'!$L$62*VLOOKUP('Crop 1'!$E$62,Carbon!$AH$4:$AI$10,2,FALSE),0)+IF('Crop 1'!$C$63=Carbon!$B50,'Crop 1'!$L$63*VLOOKUP('Crop 1'!$E$63,Carbon!$AH$4:$AI$10,2,FALSE),0)+IF('Crop 1'!$C$64=Carbon!$B50,'Crop 1'!$L$64*VLOOKUP('Crop 1'!$E$64,Carbon!$AH$4:$AI$10,2,FALSE),0)+IF('Crop 1'!$C$65=Carbon!$B50,'Crop 1'!$L$65*VLOOKUP('Crop 1'!$E$65,Carbon!$AH$4:$AI$10,2,FALSE),0))*$AL$20,2)","v":0},{"$f":"C50*Inputs!$D$13","v":0},{"$f":"ROUND((IF('Crop 2'!$C$14=Carbon!$B50,'Crop 2'!$L$14*VLOOKUP('Crop 2'!$E$14,Carbon!$AH$4:$AI$10,2,FALSE),0)+IF('Crop 2'!$C$15=Carbon!$B50,'Crop 2'!$L$15*VLOOKUP('Crop 2'!$E$15,Carbon!$AH$4:$AI$10,2,FALSE),0)+IF('Crop 2'!$C$16=Carbon!$B50,'Crop 2'!$L$16*VLOOKUP('Crop 2'!$E$16,Carbon!$AH$4:$AI$10,2,FALSE),0)+IF('Crop 2'!$C$19=Carbon!$B50,'Crop 2'!$L$19*VLOOKUP('Crop 2'!$E$19,Carbon!$AH$4:$AI$10,2,FALSE),0)+IF('Crop 2'!$C$20=Carbon!$B50,'Crop 2'!$L$20*VLOOKUP('Crop 2'!$E$20,Carbon!$AH$4:$AI$10,2,FALSE),0)+IF('Crop 2'!$C$21=Carbon!$B50,'Crop 2'!$L$21*VLOOKUP('Crop 2'!$E$21,Carbon!$AH$4:$AI$10,2,FALSE),0)+IF('Crop 2'!$C$49=Carbon!$B50,'Crop 2'!$L$49*VLOOKUP('Crop 2'!$E$49,Carbon!$AH$4:$AI$10,2,FALSE),0)+IF('Crop 2'!$C$50=Carbon!$B50,'Crop 2'!$L$50*VLOOKUP('Crop 2'!$E$50,Carbon!$AH$4:$AI$10,2,FALSE),0)+IF('Crop 2'!$C$51=Carbon!$B50,'Crop 2'!$L$51*VLOOKUP('Crop 2'!$E$51,Carbon!$AH$4:$AI$10,2,FALSE),0)+IF('Crop 2'!$C$52=Carbon!$B50,'Crop 2'!$L$52*VLOOKUP('Crop 2'!$E$52,Carbon!$AH$4:$AI$10,2,FALSE),0)+IF('Crop 2'!$C$53=Carbon!$B50,'Crop 2'!$L$53*VLOOKUP('Crop 2'!$E$53,Carbon!$AH$4:$AI$10,2,FALSE),0)+IF('Crop 2'!$C$56=Carbon!$B50,'Crop 2'!$L$56*VLOOKUP('Crop 2'!$E$56,Carbon!$AH$4:$AI$10,2,FALSE),0)+IF('Crop 2'!$C$57=Carbon!$B50,'Crop 2'!$L$57*VLOOKUP('Crop 2'!$E$57,Carbon!$AH$4:$AI$10,2,FALSE),0)+IF('Crop 2'!$C$58=Carbon!$B50,'Crop 2'!$L$58*VLOOKUP('Crop 2'!$E$58,Carbon!$AH$4:$AI$10,2,FALSE),0)+IF('Crop 2'!$C$59=Carbon!$B50,'Crop 2'!$L$59*VLOOKUP('Crop 2'!$E$59,Carbon!$AH$4:$AI$10,2,FALSE),0)+IF('Crop 2'!$C$62=Carbon!$B50,'Crop 2'!$L$62*VLOOKUP('Crop 2'!$E$62,Carbon!$AH$4:$AI$10,2,FALSE),0)+IF('Crop 2'!$C$63=Carbon!$B50,'Crop 2'!$L$63*VLOOKUP('Crop 2'!$E$63,Carbon!$AH$4:$AI$10,2,FALSE),0)+IF('Crop 2'!$C$64=Carbon!$B50,'Crop 2'!$L$64*VLOOKUP('Crop 2'!$E$64,Carbon!$AH$4:$AI$10,2,FALSE),0)+IF('Crop 2'!$C$65=Carbon!$B50,'Crop 2'!$L$65*VLOOKUP('Crop 2'!$E$65,Carbon!$AH$4:$AI$10,2,FALSE),0))*$AL$20,2)","v":0},{"$f":"E50*Inputs!$D$15","v":0},{"$f":"ROUND((IF('Crop 3'!$C$14=Carbon!$B50,'Crop 3'!$L$14*VLOOKUP('Crop 3'!$E$14,Carbon!$AH$4:$AI$10,2,FALSE),0)+IF('Crop 3'!$C$15=Carbon!$B50,'Crop 3'!$L$15*VLOOKUP('Crop 3'!$E$15,Carbon!$AH$4:$AI$10,2,FALSE),0)+IF('Crop 3'!$C$16=Carbon!$B50,'Crop 3'!$L$16*VLOOKUP('Crop 3'!$E$16,Carbon!$AH$4:$AI$10,2,FALSE),0)+IF('Crop 3'!$C$19=Carbon!$B50,'Crop 3'!$L$19*VLOOKUP('Crop 3'!$E$19,Carbon!$AH$4:$AI$10,2,FALSE),0)+IF('Crop 3'!$C$20=Carbon!$B50,'Crop 3'!$L$20*VLOOKUP('Crop 3'!$E$20,Carbon!$AH$4:$AI$10,2,FALSE),0)+IF('Crop 3'!$C$21=Carbon!$B50,'Crop 3'!$L$21*VLOOKUP('Crop 3'!$E$21,Carbon!$AH$4:$AI$10,2,FALSE),0)+IF('Crop 3'!$C$49=Carbon!$B50,'Crop 3'!$L$49*VLOOKUP('Crop 3'!$E$49,Carbon!$AH$4:$AI$10,2,FALSE),0)+IF('Crop 3'!$C$50=Carbon!$B50,'Crop 3'!$L$50*VLOOKUP('Crop 3'!$E$50,Carbon!$AH$4:$AI$10,2,FALSE),0)+IF('Crop 3'!$C$51=Carbon!$B50,'Crop 3'!$L$51*VLOOKUP('Crop 3'!$E$51,Carbon!$AH$4:$AI$10,2,FALSE),0)+IF('Crop 3'!$C$52=Carbon!$B50,'Crop 3'!$L$52*VLOOKUP('Crop 3'!$E$52,Carbon!$AH$4:$AI$10,2,FALSE),0)+IF('Crop 3'!$C$53=Carbon!$B50,'Crop 3'!$L$53*VLOOKUP('Crop 3'!$E$53,Carbon!$AH$4:$AI$10,2,FALSE),0)+IF('Crop 3'!$C$56=Carbon!$B50,'Crop 3'!$L$56*VLOOKUP('Crop 3'!$E$56,Carbon!$AH$4:$AI$10,2,FALSE),0)+IF('Crop 3'!$C$57=Carbon!$B50,'Crop 3'!$L$57*VLOOKUP('Crop 3'!$E$57,Carbon!$AH$4:$AI$10,2,FALSE),0)+IF('Crop 3'!$C$58=Carbon!$B50,'Crop 3'!$L$58*VLOOKUP('Crop 3'!$E$58,Carbon!$AH$4:$AI$10,2,FALSE),0)+IF('Crop 3'!$C$59=Carbon!$B50,'Crop 3'!$L$59*VLOOKUP('Crop 3'!$E$59,Carbon!$AH$4:$AI$10,2,FALSE),0)+IF('Crop 3'!$C$62=Carbon!$B50,'Crop 3'!$L$62*VLOOKUP('Crop 3'!$E$62,Carbon!$AH$4:$AI$10,2,FALSE),0)+IF('Crop 3'!$C$63=Carbon!$B50,'Crop 3'!$L$63*VLOOKUP('Crop 3'!$E$63,Carbon!$AH$4:$AI$10,2,FALSE),0)+IF('Crop 3'!$C$64=Carbon!$B50,'Crop 3'!$L$64*VLOOKUP('Crop 3'!$E$64,Carbon!$AH$4:$AI$10,2,FALSE),0)+IF('Crop 3'!$C$65=Carbon!$B50,'Crop 3'!$L$65*VLOOKUP('Crop 3'!$E$65,Carbon!$AH$4:$AI$10,2,FALSE),0))*$AL$20,2)","v":0},{"$f":"G50*Inputs!$D$17","v":0},{"$f":"ROUND(J50/Inputs!D$19,2)","v":0},0,null,null,{"$f":"ROUND((IF('Crop 1'!$C$14=Carbon!$B50,'Crop 1'!$V$14*VLOOKUP('Crop 1'!$E$14,Carbon!$AH$4:$AI$10,2,FALSE),0)+IF('Crop 1'!$C$15=Carbon!$B50,'Crop 1'!$V$15*VLOOKUP('Crop 1'!$E$15,Carbon!$AH$4:$AI$10,2,FALSE),0)+IF('Crop 1'!$C$16=Carbon!$B50,'Crop 1'!$V$16*VLOOKUP('Crop 1'!$E$16,Carbon!$AH$4:$AI$10,2,FALSE),0)+IF('Crop 1'!$C$19=Carbon!$B50,'Crop 1'!$V$19*VLOOKUP('Crop 1'!$E$19,Carbon!$AH$4:$AI$10,2,FALSE),0)+IF('Crop 1'!$C$20=Carbon!$B50,'Crop 1'!$V$20*VLOOKUP('Crop 1'!$E$20,Carbon!$AH$4:$AI$10,2,FALSE),0)+IF('Crop 1'!$C$21=Carbon!$B50,'Crop 1'!$V$21*VLOOKUP('Crop 1'!$E$21,Carbon!$AH$4:$AI$10,2,FALSE),0)+IF('Crop 1'!$C$49=Carbon!$B50,'Crop 1'!$V$49*VLOOKUP('Crop 1'!$E$49,Carbon!$AH$4:$AI$10,2,FALSE),0)+IF('Crop 1'!$C$50=Carbon!$B50,'Crop 1'!$V$50*VLOOKUP('Crop 1'!$E$50,Carbon!$AH$4:$AI$10,2,FALSE),0)+IF('Crop 1'!$C$51=Carbon!$B50,'Crop 1'!$V$51*VLOOKUP('Crop 1'!$E$51,Carbon!$AH$4:$AI$10,2,FALSE),0)+IF('Crop 1'!$C$52=Carbon!$B50,'Crop 1'!$V$52*VLOOKUP('Crop 1'!$E$52,Carbon!$AH$4:$AI$10,2,FALSE),0)+IF('Crop 1'!$C$53=Carbon!$B50,'Crop 1'!$V$53*VLOOKUP('Crop 1'!$E$53,Carbon!$AH$4:$AI$10,2,FALSE),0)+IF('Crop 1'!$C$56=Carbon!$B50,'Crop 1'!$V$56*VLOOKUP('Crop 1'!$E$56,Carbon!$AH$4:$AI$10,2,FALSE),0)+IF('Crop 1'!$C$57=Carbon!$B50,'Crop 1'!$V$57*VLOOKUP('Crop 1'!$E$57,Carbon!$AH$4:$AI$10,2,FALSE),0)+IF('Crop 1'!$C$58=Carbon!$B50,'Crop 1'!$V$58*VLOOKUP('Crop 1'!$E$58,Carbon!$AH$4:$AI$10,2,FALSE),0)+IF('Crop 1'!$C$59=Carbon!$B50,'Crop 1'!$V$59*VLOOKUP('Crop 1'!$E$59,Carbon!$AH$4:$AI$10,2,FALSE),0)+IF('Crop 1'!$C$62=Carbon!$B50,'Crop 1'!$V$62*VLOOKUP('Crop 1'!$E$62,Carbon!$AH$4:$AI$10,2,FALSE),0)+IF('Crop 1'!$C$63=Carbon!$B50,'Crop 1'!$V$63*VLOOKUP('Crop 1'!$E$63,Carbon!$AH$4:$AI$10,2,FALSE),0)+IF('Crop 1'!$C$64=Carbon!$B50,'Crop 1'!$V$64*VLOOKUP('Crop 1'!$E$64,Carbon!$AH$4:$AI$10,2,FALSE),0)+IF('Crop 1'!$C$65=Carbon!$B50,'Crop 1'!$V$65*VLOOKUP('Crop 1'!$E$65,Carbon!$AH$4:$AI$10,2,FALSE),0))*$AL$20,2)","v":0},{"$f":"M50*Inputs!$D$13","v":0},{"$f":"ROUND((IF('Crop 2'!$C$14=Carbon!$B50,'Crop 2'!$V$14*VLOOKUP('Crop 2'!$E$14,Carbon!$AH$4:$AI$10,2,FALSE),0)+IF('Crop 2'!$C$15=Carbon!$B50,'Crop 2'!$V$15*VLOOKUP('Crop 2'!$E$15,Carbon!$AH$4:$AI$10,2,FALSE),0)+IF('Crop 2'!$C$16=Carbon!$B50,'Crop 2'!$V$16*VLOOKUP('Crop 2'!$E$16,Carbon!$AH$4:$AI$10,2,FALSE),0)+IF('Crop 2'!$C$19=Carbon!$B50,'Crop 2'!$V$19*VLOOKUP('Crop 2'!$E$19,Carbon!$AH$4:$AI$10,2,FALSE),0)+IF('Crop 2'!$C$20=Carbon!$B50,'Crop 2'!$V$20*VLOOKUP('Crop 2'!$E$20,Carbon!$AH$4:$AI$10,2,FALSE),0)+IF('Crop 2'!$C$21=Carbon!$B50,'Crop 2'!$V$21*VLOOKUP('Crop 2'!$E$21,Carbon!$AH$4:$AI$10,2,FALSE),0)+IF('Crop 2'!$C$49=Carbon!$B50,'Crop 2'!$V$49*VLOOKUP('Crop 2'!$E$49,Carbon!$AH$4:$AI$10,2,FALSE),0)+IF('Crop 2'!$C$50=Carbon!$B50,'Crop 2'!$V$50*VLOOKUP('Crop 2'!$E$50,Carbon!$AH$4:$AI$10,2,FALSE),0)+IF('Crop 2'!$C$51=Carbon!$B50,'Crop 2'!$V$51*VLOOKUP('Crop 2'!$E$51,Carbon!$AH$4:$AI$10,2,FALSE),0)+IF('Crop 2'!$C$52=Carbon!$B50,'Crop 2'!$V$52*VLOOKUP('Crop 2'!$E$52,Carbon!$AH$4:$AI$10,2,FALSE),0)+IF('Crop 2'!$C$53=Carbon!$B50,'Crop 2'!$V$53*VLOOKUP('Crop 2'!$E$53,Carbon!$AH$4:$AI$10,2,FALSE),0)+IF('Crop 2'!$C$56=Carbon!$B50,'Crop 2'!$V$56*VLOOKUP('Crop 2'!$E$56,Carbon!$AH$4:$AI$10,2,FALSE),0)+IF('Crop 2'!$C$57=Carbon!$B50,'Crop 2'!$V$57*VLOOKUP('Crop 2'!$E$57,Carbon!$AH$4:$AI$10,2,FALSE),0)+IF('Crop 2'!$C$58=Carbon!$B50,'Crop 2'!$V$58*VLOOKUP('Crop 2'!$E$58,Carbon!$AH$4:$AI$10,2,FALSE),0)+IF('Crop 2'!$C$59=Carbon!$B50,'Crop 2'!$V$59*VLOOKUP('Crop 2'!$E$59,Carbon!$AH$4:$AI$10,2,FALSE),0)+IF('Crop 2'!$C$62=Carbon!$B50,'Crop 2'!$V$62*VLOOKUP('Crop 2'!$E$62,Carbon!$AH$4:$AI$10,2,FALSE),0)+IF('Crop 2'!$C$63=Carbon!$B50,'Crop 2'!$V$63*VLOOKUP('Crop 2'!$E$63,Carbon!$AH$4:$AI$10,2,FALSE),0)+IF('Crop 2'!$C$64=Carbon!$B50,'Crop 2'!$V$64*VLOOKUP('Crop 2'!$E$64,Carbon!$AH$4:$AI$10,2,FALSE),0)+IF('Crop 2'!$C$65=Carbon!$B50,'Crop 2'!$V$65*VLOOKUP('Crop 2'!$E$65,Carbon!$AH$4:$AI$10,2,FALSE),0))*$AL$20,2)","v":0},{"$f":"O50*Inputs!$D$15","v":0},{"$f":"ROUND((IF('Crop 3'!$C$14=Carbon!$B50,'Crop 3'!$V$14*VLOOKUP('Crop 3'!$E$14,Carbon!$AH$4:$AI$10,2,FALSE),0)+IF('Crop 3'!$C$15=Carbon!$B50,'Crop 3'!$V$15*VLOOKUP('Crop 3'!$E$15,Carbon!$AH$4:$AI$10,2,FALSE),0)+IF('Crop 3'!$C$16=Carbon!$B50,'Crop 3'!$V$16*VLOOKUP('Crop 3'!$E$16,Carbon!$AH$4:$AI$10,2,FALSE),0)+IF('Crop 3'!$C$19=Carbon!$B50,'Crop 3'!$V$19*VLOOKUP('Crop 3'!$E$19,Carbon!$AH$4:$AI$10,2,FALSE),0)+IF('Crop 3'!$C$20=Carbon!$B50,'Crop 3'!$V$20*VLOOKUP('Crop 3'!$E$20,Carbon!$AH$4:$AI$10,2,FALSE),0)+IF('Crop 3'!$C$21=Carbon!$B50,'Crop 3'!$V$21*VLOOKUP('Crop 3'!$E$21,Carbon!$AH$4:$AI$10,2,FALSE),0)+IF('Crop 3'!$C$49=Carbon!$B50,'Crop 3'!$V$49*VLOOKUP('Crop 3'!$E$49,Carbon!$AH$4:$AI$10,2,FALSE),0)+IF('Crop 3'!$C$50=Carbon!$B50,'Crop 3'!$V$50*VLOOKUP('Crop 3'!$E$50,Carbon!$AH$4:$AI$10,2,FALSE),0)+IF('Crop 3'!$C$51=Carbon!$B50,'Crop 3'!$V$51*VLOOKUP('Crop 3'!$E$51,Carbon!$AH$4:$AI$10,2,FALSE),0)+IF('Crop 3'!$C$52=Carbon!$B50,'Crop 3'!$V$52*VLOOKUP('Crop 3'!$E$52,Carbon!$AH$4:$AI$10,2,FALSE),0)+IF('Crop 3'!$C$53=Carbon!$B50,'Crop 3'!$V$53*VLOOKUP('Crop 3'!$E$53,Carbon!$AH$4:$AI$10,2,FALSE),0)+IF('Crop 3'!$C$56=Carbon!$B50,'Crop 3'!$V$56*VLOOKUP('Crop 3'!$E$56,Carbon!$AH$4:$AI$10,2,FALSE),0)+IF('Crop 3'!$C$57=Carbon!$B50,'Crop 3'!$V$57*VLOOKUP('Crop 3'!$E$57,Carbon!$AH$4:$AI$10,2,FALSE),0)+IF('Crop 3'!$C$58=Carbon!$B50,'Crop 3'!$V$58*VLOOKUP('Crop 3'!$E$58,Carbon!$AH$4:$AI$10,2,FALSE),0)+IF('Crop 3'!$C$59=Carbon!$B50,'Crop 3'!$V$59*VLOOKUP('Crop 3'!$E$59,Carbon!$AH$4:$AI$10,2,FALSE),0)+IF('Crop 3'!$C$62=Carbon!$B50,'Crop 3'!$V$62*VLOOKUP('Crop 3'!$E$62,Carbon!$AH$4:$AI$10,2,FALSE),0)+IF('Crop 3'!$C$63=Carbon!$B50,'Crop 3'!$V$63*VLOOKUP('Crop 3'!$E$63,Carbon!$AH$4:$AI$10,2,FALSE),0)+IF('Crop 3'!$C$64=Carbon!$B50,'Crop 3'!$V$64*VLOOKUP('Crop 3'!$E$64,Carbon!$AH$4:$AI$10,2,FALSE),0)+IF('Crop 3'!$C$65=Carbon!$B50,'Crop 3'!$V$65*VLOOKUP('Crop 3'!$E$65,Carbon!$AH$4:$AI$10,2,FALSE),0))*$AL$20,2)","v":0},{"$f":"Q50*Inputs!$D$17","v":0},{"$f":"ROUND(T50/Inputs!D$19,2)","v":0},0,null,null,0,{"$f":"W50*Inputs!$D$13","v":0},0,{"$f":"Y50*Inputs!$D$13","v":0},0,{"$f":"AA50*Inputs!$D$13","v":0},{"$f":"ROUND(AD50/Inputs!D$19,2)","v":0},0]
[null,{"$f":"Defaults!AH17","v":"Banvel"},{"$f":"ROUND((IF('Crop 1'!$C$14=Carbon!$B51,'Crop 1'!$L$14*VLOOKUP('Crop 1'!$E$14,Carbon!$AH$4:$AI$10,2,FALSE),0)+IF('Crop 1'!$C$15=Carbon!$B51,'Crop 1'!$L$15*VLOOKUP('Crop 1'!$E$15,Carbon!$AH$4:$AI$10,2,FALSE),0)+IF('Crop 1'!$C$16=Carbon!$B51,'Crop 1'!$L$16*VLOOKUP('Crop 1'!$E$16,Carbon!$AH$4:$AI$10,2,FALSE),0)+IF('Crop 1'!$C$19=Carbon!$B51,'Crop 1'!$L$19*VLOOKUP('Crop 1'!$E$19,Carbon!$AH$4:$AI$10,2,FALSE),0)+IF('Crop 1'!$C$20=Carbon!$B51,'Crop 1'!$L$20*VLOOKUP('Crop 1'!$E$20,Carbon!$AH$4:$AI$10,2,FALSE),0)+IF('Crop 1'!$C$21=Carbon!$B51,'Crop 1'!$L$21*VLOOKUP('Crop 1'!$E$21,Carbon!$AH$4:$AI$10,2,FALSE),0)+IF('Crop 1'!$C$49=Carbon!$B51,'Crop 1'!$L$49*VLOOKUP('Crop 1'!$E$49,Carbon!$AH$4:$AI$10,2,FALSE),0)+IF('Crop 1'!$C$50=Carbon!$B51,'Crop 1'!$L$50*VLOOKUP('Crop 1'!$E$50,Carbon!$AH$4:$AI$10,2,FALSE),0)+IF('Crop 1'!$C$51=Carbon!$B51,'Crop 1'!$L$51*VLOOKUP('Crop 1'!$E$51,Carbon!$AH$4:$AI$10,2,FALSE),0)+IF('Crop 1'!$C$52=Carbon!$B51,'Crop 1'!$L$52*VLOOKUP('Crop 1'!$E$52,Carbon!$AH$4:$AI$10,2,FALSE),0)+IF('Crop 1'!$C$53=Carbon!$B51,'Crop 1'!$L$53*VLOOKUP('Crop 1'!$E$53,Carbon!$AH$4:$AI$10,2,FALSE),0)+IF('Crop 1'!$C$56=Carbon!$B51,'Crop 1'!$L$56*VLOOKUP('Crop 1'!$E$56,Carbon!$AH$4:$AI$10,2,FALSE),0)+IF('Crop 1'!$C$57=Carbon!$B51,'Crop 1'!$L$57*VLOOKUP('Crop 1'!$E$57,Carbon!$AH$4:$AI$10,2,FALSE),0)+IF('Crop 1'!$C$58=Carbon!$B51,'Crop 1'!$L$58*VLOOKUP('Crop 1'!$E$58,Carbon!$AH$4:$AI$10,2,FALSE),0)+IF('Crop 1'!$C$59=Carbon!$B51,'Crop 1'!$L$59*VLOOKUP('Crop 1'!$E$59,Carbon!$AH$4:$AI$10,2,FALSE),0)+IF('Crop 1'!$C$62=Carbon!$B51,'Crop 1'!$L$62*VLOOKUP('Crop 1'!$E$62,Carbon!$AH$4:$AI$10,2,FALSE),0)+IF('Crop 1'!$C$63=Carbon!$B51,'Crop 1'!$L$63*VLOOKUP('Crop 1'!$E$63,Carbon!$AH$4:$AI$10,2,FALSE),0)+IF('Crop 1'!$C$64=Carbon!$B51,'Crop 1'!$L$64*VLOOKUP('Crop 1'!$E$64,Carbon!$AH$4:$AI$10,2,FALSE),0)+IF('Crop 1'!$C$65=Carbon!$B51,'Crop 1'!$L$65*VLOOKUP('Crop 1'!$E$65,Carbon!$AH$4:$AI$10,2,FALSE),0))*$AL$20,2)","v":1.66},{"$f":"C51*Inputs!$D$13","v":498},{"$f":"ROUND((IF('Crop 2'!$C$14=Carbon!$B51,'Crop 2'!$L$14*VLOOKUP('Crop 2'!$E$14,Carbon!$AH$4:$AI$10,2,FALSE),0)+IF('Crop 2'!$C$15=Carbon!$B51,'Crop 2'!$L$15*VLOOKUP('Crop 2'!$E$15,Carbon!$AH$4:$AI$10,2,FALSE),0)+IF('Crop 2'!$C$16=Carbon!$B51,'Crop 2'!$L$16*VLOOKUP('Crop 2'!$E$16,Carbon!$AH$4:$AI$10,2,FALSE),0)+IF('Crop 2'!$C$19=Carbon!$B51,'Crop 2'!$L$19*VLOOKUP('Crop 2'!$E$19,Carbon!$AH$4:$AI$10,2,FALSE),0)+IF('Crop 2'!$C$20=Carbon!$B51,'Crop 2'!$L$20*VLOOKUP('Crop 2'!$E$20,Carbon!$AH$4:$AI$10,2,FALSE),0)+IF('Crop 2'!$C$21=Carbon!$B51,'Crop 2'!$L$21*VLOOKUP('Crop 2'!$E$21,Carbon!$AH$4:$AI$10,2,FALSE),0)+IF('Crop 2'!$C$49=Carbon!$B51,'Crop 2'!$L$49*VLOOKUP('Crop 2'!$E$49,Carbon!$AH$4:$AI$10,2,FALSE),0)+IF('Crop 2'!$C$50=Carbon!$B51,'Crop 2'!$L$50*VLOOKUP('Crop 2'!$E$50,Carbon!$AH$4:$AI$10,2,FALSE),0)+IF('Crop 2'!$C$51=Carbon!$B51,'Crop 2'!$L$51*VLOOKUP('Crop 2'!$E$51,Carbon!$AH$4:$AI$10,2,FALSE),0)+IF('Crop 2'!$C$52=Carbon!$B51,'Crop 2'!$L$52*VLOOKUP('Crop 2'!$E$52,Carbon!$AH$4:$AI$10,2,FALSE),0)+IF('Crop 2'!$C$53=Carbon!$B51,'Crop 2'!$L$53*VLOOKUP('Crop 2'!$E$53,Carbon!$AH$4:$AI$10,2,FALSE),0)+IF('Crop 2'!$C$56=Carbon!$B51,'Crop 2'!$L$56*VLOOKUP('Crop 2'!$E$56,Carbon!$AH$4:$AI$10,2,FALSE),0)+IF('Crop 2'!$C$57=Carbon!$B51,'Crop 2'!$L$57*VLOOKUP('Crop 2'!$E$57,Carbon!$AH$4:$AI$10,2,FALSE),0)+IF('Crop 2'!$C$58=Carbon!$B51,'Crop 2'!$L$58*VLOOKUP('Crop 2'!$E$58,Carbon!$AH$4:$AI$10,2,FALSE),0)+IF('Crop 2'!$C$59=Carbon!$B51,'Crop 2'!$L$59*VLOOKUP('Crop 2'!$E$59,Carbon!$AH$4:$AI$10,2,FALSE),0)+IF('Crop 2'!$C$62=Carbon!$B51,'Crop 2'!$L$62*VLOOKUP('Crop 2'!$E$62,Carbon!$AH$4:$AI$10,2,FALSE),0)+IF('Crop 2'!$C$63=Carbon!$B51,'Crop 2'!$L$63*VLOOKUP('Crop 2'!$E$63,Carbon!$AH$4:$AI$10,2,FALSE),0)+IF('Crop 2'!$C$64=Carbon!$B51,'Crop 2'!$L$64*VLOOKUP('Crop 2'!$E$64,Carbon!$AH$4:$AI$10,2,FALSE),0)+IF('Crop 2'!$C$65=Carbon!$B51,'Crop 2'!$L$65*VLOOKUP('Crop 2'!$E$65,Carbon!$AH$4:$AI$10,2,FALSE),0))*$AL$20,2)","v":0},{"$f":"E51*Inputs!$D$15","v":0},{"$f":"ROUND((IF('Crop 3'!$C$14=Carbon!$B51,'Crop 3'!$L$14*VLOOKUP('Crop 3'!$E$14,Carbon!$AH$4:$AI$10,2,FALSE),0)+IF('Crop 3'!$C$15=Carbon!$B51,'Crop 3'!$L$15*VLOOKUP('Crop 3'!$E$15,Carbon!$AH$4:$AI$10,2,FALSE),0)+IF('Crop 3'!$C$16=Carbon!$B51,'Crop 3'!$L$16*VLOOKUP('Crop 3'!$E$16,Carbon!$AH$4:$AI$10,2,FALSE),0)+IF('Crop 3'!$C$19=Carbon!$B51,'Crop 3'!$L$19*VLOOKUP('Crop 3'!$E$19,Carbon!$AH$4:$AI$10,2,FALSE),0)+IF('Crop 3'!$C$20=Carbon!$B51,'Crop 3'!$L$20*VLOOKUP('Crop 3'!$E$20,Carbon!$AH$4:$AI$10,2,FALSE),0)+IF('Crop 3'!$C$21=Carbon!$B51,'Crop 3'!$L$21*VLOOKUP('Crop 3'!$E$21,Carbon!$AH$4:$AI$10,2,FALSE),0)+IF('Crop 3'!$C$49=Carbon!$B51,'Crop 3'!$L$49*VLOOKUP('Crop 3'!$E$49,Carbon!$AH$4:$AI$10,2,FALSE),0)+IF('Crop 3'!$C$50=Carbon!$B51,'Crop 3'!$L$50*VLOOKUP('Crop 3'!$E$50,Carbon!$AH$4:$AI$10,2,FALSE),0)+IF('Crop 3'!$C$51=Carbon!$B51,'Crop 3'!$L$51*VLOOKUP('Crop 3'!$E$51,Carbon!$AH$4:$AI$10,2,FALSE),0)+IF('Crop 3'!$C$52=Carbon!$B51,'Crop 3'!$L$52*VLOOKUP('Crop 3'!$E$52,Carbon!$AH$4:$AI$10,2,FALSE),0)+IF('Crop 3'!$C$53=Carbon!$B51,'Crop 3'!$L$53*VLOOKUP('Crop 3'!$E$53,Carbon!$AH$4:$AI$10,2,FALSE),0)+IF('Crop 3'!$C$56=Carbon!$B51,'Crop 3'!$L$56*VLOOKUP('Crop 3'!$E$56,Carbon!$AH$4:$AI$10,2,FALSE),0)+IF('Crop 3'!$C$57=Carbon!$B51,'Crop 3'!$L$57*VLOOKUP('Crop 3'!$E$57,Carbon!$AH$4:$AI$10,2,FALSE),0)+IF('Crop 3'!$C$58=Carbon!$B51,'Crop 3'!$L$58*VLOOKUP('Crop 3'!$E$58,Carbon!$AH$4:$AI$10,2,FALSE),0)+IF('Crop 3'!$C$59=Carbon!$B51,'Crop 3'!$L$59*VLOOKUP('Crop 3'!$E$59,Carbon!$AH$4:$AI$10,2,FALSE),0)+IF('Crop 3'!$C$62=Carbon!$B51,'Crop 3'!$L$62*VLOOKUP('Crop 3'!$E$62,Carbon!$AH$4:$AI$10,2,FALSE),0)+IF('Crop 3'!$C$63=Carbon!$B51,'Crop 3'!$L$63*VLOOKUP('Crop 3'!$E$63,Carbon!$AH$4:$AI$10,2,FALSE),0)+IF('Crop 3'!$C$64=Carbon!$B51,'Crop 3'!$L$64*VLOOKUP('Crop 3'!$E$64,Carbon!$AH$4:$AI$10,2,FALSE),0)+IF('Crop 3'!$C$65=Carbon!$B51,'Crop 3'!$L$65*VLOOKUP('Crop 3'!$E$65,Carbon!$AH$4:$AI$10,2,FALSE),0))*$AL$20,2)","v":3.47},{"$f":"G51*Inputs!$D$17","v":347},{"$f":"ROUND(J51/Inputs!D$19,2)","v":1.41},845,null,null,{"$f":"ROUND((IF('Crop 1'!$C$14=Carbon!$B51,'Crop 1'!$V$14*VLOOKUP('Crop 1'!$E$14,Carbon!$AH$4:$AI$10,2,FALSE),0)+IF('Crop 1'!$C$15=Carbon!$B51,'Crop 1'!$V$15*VLOOKUP('Crop 1'!$E$15,Carbon!$AH$4:$AI$10,2,FALSE),0)+IF('Crop 1'!$C$16=Carbon!$B51,'Crop 1'!$V$16*VLOOKUP('Crop 1'!$E$16,Carbon!$AH$4:$AI$10,2,FALSE),0)+IF('Crop 1'!$C$19=Carbon!$B51,'Crop 1'!$V$19*VLOOKUP('Crop 1'!$E$19,Carbon!$AH$4:$AI$10,2,FALSE),0)+IF('Crop 1'!$C$20=Carbon!$B51,'Crop 1'!$V$20*VLOOKUP('Crop 1'!$E$20,Carbon!$AH$4:$AI$10,2,FALSE),0)+IF('Crop 1'!$C$21=Carbon!$B51,'Crop 1'!$V$21*VLOOKUP('Crop 1'!$E$21,Carbon!$AH$4:$AI$10,2,FALSE),0)+IF('Crop 1'!$C$49=Carbon!$B51,'Crop 1'!$V$49*VLOOKUP('Crop 1'!$E$49,Carbon!$AH$4:$AI$10,2,FALSE),0)+IF('Crop 1'!$C$50=Carbon!$B51,'Crop 1'!$V$50*VLOOKUP('Crop 1'!$E$50,Carbon!$AH$4:$AI$10,2,FALSE),0)+IF('Crop 1'!$C$51=Carbon!$B51,'Crop 1'!$V$51*VLOOKUP('Crop 1'!$E$51,Carbon!$AH$4:$AI$10,2,FALSE),0)+IF('Crop 1'!$C$52=Carbon!$B51,'Crop 1'!$V$52*VLOOKUP('Crop 1'!$E$52,Carbon!$AH$4:$AI$10,2,FALSE),0)+IF('Crop 1'!$C$53=Carbon!$B51,'Crop 1'!$V$53*VLOOKUP('Crop 1'!$E$53,Carbon!$AH$4:$AI$10,2,FALSE),0)+IF('Crop 1'!$C$56=Carbon!$B51,'Crop 1'!$V$56*VLOOKUP('Crop 1'!$E$56,Carbon!$AH$4:$AI$10,2,FALSE),0)+IF('Crop 1'!$C$57=Carbon!$B51,'Crop 1'!$V$57*VLOOKUP('Crop 1'!$E$57,Carbon!$AH$4:$AI$10,2,FALSE),0)+IF('Crop 1'!$C$58=Carbon!$B51,'Crop 1'!$V$58*VLOOKUP('Crop 1'!$E$58,Carbon!$AH$4:$AI$10,2,FALSE),0)+IF('Crop 1'!$C$59=Carbon!$B51,'Crop 1'!$V$59*VLOOKUP('Crop 1'!$E$59,Carbon!$AH$4:$AI$10,2,FALSE),0)+IF('Crop 1'!$C$62=Carbon!$B51,'Crop 1'!$V$62*VLOOKUP('Crop 1'!$E$62,Carbon!$AH$4:$AI$10,2,FALSE),0)+IF('Crop 1'!$C$63=Carbon!$B51,'Crop 1'!$V$63*VLOOKUP('Crop 1'!$E$63,Carbon!$AH$4:$AI$10,2,FALSE),0)+IF('Crop 1'!$C$64=Carbon!$B51,'Crop 1'!$V$64*VLOOKUP('Crop 1'!$E$64,Carbon!$AH$4:$AI$10,2,FALSE),0)+IF('Crop 1'!$C$65=Carbon!$B51,'Crop 1'!$V$65*VLOOKUP('Crop 1'!$E$65,Carbon!$AH$4:$AI$10,2,FALSE),0))*$AL$20,2)","v":1.3},{"$f":"M51*Inputs!$D$13","v":390},{"$f":"ROUND((IF('Crop 2'!$C$14=Carbon!$B51,'Crop 2'!$V$14*VLOOKUP('Crop 2'!$E$14,Carbon!$AH$4:$AI$10,2,FALSE),0)+IF('Crop 2'!$C$15=Carbon!$B51,'Crop 2'!$V$15*VLOOKUP('Crop 2'!$E$15,Carbon!$AH$4:$AI$10,2,FALSE),0)+IF('Crop 2'!$C$16=Carbon!$B51,'Crop 2'!$V$16*VLOOKUP('Crop 2'!$E$16,Carbon!$AH$4:$AI$10,2,FALSE),0)+IF('Crop 2'!$C$19=Carbon!$B51,'Crop 2'!$V$19*VLOOKUP('Crop 2'!$E$19,Carbon!$AH$4:$AI$10,2,FALSE),0)+IF('Crop 2'!$C$20=Carbon!$B51,'Crop 2'!$V$20*VLOOKUP('Crop 2'!$E$20,Carbon!$AH$4:$AI$10,2,FALSE),0)+IF('Crop 2'!$C$21=Carbon!$B51,'Crop 2'!$V$21*VLOOKUP('Crop 2'!$E$21,Carbon!$AH$4:$AI$10,2,FALSE),0)+IF('Crop 2'!$C$49=Carbon!$B51,'Crop 2'!$V$49*VLOOKUP('Crop 2'!$E$49,Carbon!$AH$4:$AI$10,2,FALSE),0)+IF('Crop 2'!$C$50=Carbon!$B51,'Crop 2'!$V$50*VLOOKUP('Crop 2'!$E$50,Carbon!$AH$4:$AI$10,2,FALSE),0)+IF('Crop 2'!$C$51=Carbon!$B51,'Crop 2'!$V$51*VLOOKUP('Crop 2'!$E$51,Carbon!$AH$4:$AI$10,2,FALSE),0)+IF('Crop 2'!$C$52=Carbon!$B51,'Crop 2'!$V$52*VLOOKUP('Crop 2'!$E$52,Carbon!$AH$4:$AI$10,2,FALSE),0)+IF('Crop 2'!$C$53=Carbon!$B51,'Crop 2'!$V$53*VLOOKUP('Crop 2'!$E$53,Carbon!$AH$4:$AI$10,2,FALSE),0)+IF('Crop 2'!$C$56=Carbon!$B51,'Crop 2'!$V$56*VLOOKUP('Crop 2'!$E$56,Carbon!$AH$4:$AI$10,2,FALSE),0)+IF('Crop 2'!$C$57=Carbon!$B51,'Crop 2'!$V$57*VLOOKUP('Crop 2'!$E$57,Carbon!$AH$4:$AI$10,2,FALSE),0)+IF('Crop 2'!$C$58=Carbon!$B51,'Crop 2'!$V$58*VLOOKUP('Crop 2'!$E$58,Carbon!$AH$4:$AI$10,2,FALSE),0)+IF('Crop 2'!$C$59=Carbon!$B51,'Crop 2'!$V$59*VLOOKUP('Crop 2'!$E$59,Carbon!$AH$4:$AI$10,2,FALSE),0)+IF('Crop 2'!$C$62=Carbon!$B51,'Crop 2'!$V$62*VLOOKUP('Crop 2'!$E$62,Carbon!$AH$4:$AI$10,2,FALSE),0)+IF('Crop 2'!$C$63=Carbon!$B51,'Crop 2'!$V$63*VLOOKUP('Crop 2'!$E$63,Carbon!$AH$4:$AI$10,2,FALSE),0)+IF('Crop 2'!$C$64=Carbon!$B51,'Crop 2'!$V$64*VLOOKUP('Crop 2'!$E$64,Carbon!$AH$4:$AI$10,2,FALSE),0)+IF('Crop 2'!$C$65=Carbon!$B51,'Crop 2'!$V$65*VLOOKUP('Crop 2'!$E$65,Carbon!$AH$4:$AI$10,2,FALSE),0))*$AL$20,2)","v":0},{"$f":"O51*Inputs!$D$15","v":0},{"$f":"ROUND((IF('Crop 3'!$C$14=Carbon!$B51,'Crop 3'!$V$14*VLOOKUP('Crop 3'!$E$14,Carbon!$AH$4:$AI$10,2,FALSE),0)+IF('Crop 3'!$C$15=Carbon!$B51,'Crop 3'!$V$15*VLOOKUP('Crop 3'!$E$15,Carbon!$AH$4:$AI$10,2,FALSE),0)+IF('Crop 3'!$C$16=Carbon!$B51,'Crop 3'!$V$16*VLOOKUP('Crop 3'!$E$16,Carbon!$AH$4:$AI$10,2,FALSE),0)+IF('Crop 3'!$C$19=Carbon!$B51,'Crop 3'!$V$19*VLOOKUP('Crop 3'!$E$19,Carbon!$AH$4:$AI$10,2,FALSE),0)+IF('Crop 3'!$C$20=Carbon!$B51,'Crop 3'!$V$20*VLOOKUP('Crop 3'!$E$20,Carbon!$AH$4:$AI$10,2,FALSE),0)+IF('Crop 3'!$C$21=Carbon!$B51,'Crop 3'!$V$21*VLOOKUP('Crop 3'!$E$21,Carbon!$AH$4:$AI$10,2,FALSE),0)+IF('Crop 3'!$C$49=Carbon!$B51,'Crop 3'!$V$49*VLOOKUP('Crop 3'!$E$49,Carbon!$AH$4:$AI$10,2,FALSE),0)+IF('Crop 3'!$C$50=Carbon!$B51,'Crop 3'!$V$50*VLOOKUP('Crop 3'!$E$50,Carbon!$AH$4:$AI$10,2,FALSE),0)+IF('Crop 3'!$C$51=Carbon!$B51,'Crop 3'!$V$51*VLOOKUP('Crop 3'!$E$51,Carbon!$AH$4:$AI$10,2,FALSE),0)+IF('Crop 3'!$C$52=Carbon!$B51,'Crop 3'!$V$52*VLOOKUP('Crop 3'!$E$52,Carbon!$AH$4:$AI$10,2,FALSE),0)+IF('Crop 3'!$C$53=Carbon!$B51,'Crop 3'!$V$53*VLOOKUP('Crop 3'!$E$53,Carbon!$AH$4:$AI$10,2,FALSE),0)+IF('Crop 3'!$C$56=Carbon!$B51,'Crop 3'!$V$56*VLOOKUP('Crop 3'!$E$56,Carbon!$AH$4:$AI$10,2,FALSE),0)+IF('Crop 3'!$C$57=Carbon!$B51,'Crop 3'!$V$57*VLOOKUP('Crop 3'!$E$57,Carbon!$AH$4:$AI$10,2,FALSE),0)+IF('Crop 3'!$C$58=Carbon!$B51,'Crop 3'!$V$58*VLOOKUP('Crop 3'!$E$58,Carbon!$AH$4:$AI$10,2,FALSE),0)+IF('Crop 3'!$C$59=Carbon!$B51,'Crop 3'!$V$59*VLOOKUP('Crop 3'!$E$59,Carbon!$AH$4:$AI$10,2,FALSE),0)+IF('Crop 3'!$C$62=Carbon!$B51,'Crop 3'!$V$62*VLOOKUP('Crop 3'!$E$62,Carbon!$AH$4:$AI$10,2,FALSE),0)+IF('Crop 3'!$C$63=Carbon!$B51,'Crop 3'!$V$63*VLOOKUP('Crop 3'!$E$63,Carbon!$AH$4:$AI$10,2,FALSE),0)+IF('Crop 3'!$C$64=Carbon!$B51,'Crop 3'!$V$64*VLOOKUP('Crop 3'!$E$64,Carbon!$AH$4:$AI$10,2,FALSE),0)+IF('Crop 3'!$C$65=Carbon!$B51,'Crop 3'!$V$65*VLOOKUP('Crop 3'!$E$65,Carbon!$AH$4:$AI$10,2,FALSE),0))*$AL$20,2)","v":2.71},{"$f":"Q51*Inputs!$D$17","v":271},{"$f":"ROUND(T51/Inputs!D$19,2)","v":1.1000000000000001},661,null,null,-0.35999999999999988,{"$f":"W51*Inputs!$D$13","v":-107.99999999999996},0,{"$f":"Y51*Inputs!$D$13","v":0},-0.76000000000000023,{"$f":"AA51*Inputs!$D$13","v":-228.00000000000006},{"$f":"ROUND(AD51/Inputs!D$19,2)","v":-0.56000000000000005},-336]
[null,{"$f":"Defaults!AH18","v":"Basagran 4L"},{"$f":"ROUND((IF('Crop 1'!$C$14=Carbon!$B52,'Crop 1'!$L$14*VLOOKUP('Crop 1'!$E$14,Carbon!$AH$4:$AI$10,2,FALSE),0)+IF('Crop 1'!$C$15=Carbon!$B52,'Crop 1'!$L$15*VLOOKUP('Crop 1'!$E$15,Carbon!$AH$4:$AI$10,2,FALSE),0)+IF('Crop 1'!$C$16=Carbon!$B52,'Crop 1'!$L$16*VLOOKUP('Crop 1'!$E$16,Carbon!$AH$4:$AI$10,2,FALSE),0)+IF('Crop 1'!$C$19=Carbon!$B52,'Crop 1'!$L$19*VLOOKUP('Crop 1'!$E$19,Carbon!$AH$4:$AI$10,2,FALSE),0)+IF('Crop 1'!$C$20=Carbon!$B52,'Crop 1'!$L$20*VLOOKUP('Crop 1'!$E$20,Carbon!$AH$4:$AI$10,2,FALSE),0)+IF('Crop 1'!$C$21=Carbon!$B52,'Crop 1'!$L$21*VLOOKUP('Crop 1'!$E$21,Carbon!$AH$4:$AI$10,2,FALSE),0)+IF('Crop 1'!$C$49=Carbon!$B52,'Crop 1'!$L$49*VLOOKUP('Crop 1'!$E$49,Carbon!$AH$4:$AI$10,2,FALSE),0)+IF('Crop 1'!$C$50=Carbon!$B52,'Crop 1'!$L$50*VLOOKUP('Crop 1'!$E$50,Carbon!$AH$4:$AI$10,2,FALSE),0)+IF('Crop 1'!$C$51=Carbon!$B52,'Crop 1'!$L$51*VLOOKUP('Crop 1'!$E$51,Carbon!$AH$4:$AI$10,2,FALSE),0)+IF('Crop 1'!$C$52=Carbon!$B52,'Crop 1'!$L$52*VLOOKUP('Crop 1'!$E$52,Carbon!$AH$4:$AI$10,2,FALSE),0)+IF('Crop 1'!$C$53=Carbon!$B52,'Crop 1'!$L$53*VLOOKUP('Crop 1'!$E$53,Carbon!$AH$4:$AI$10,2,FALSE),0)+IF('Crop 1'!$C$56=Carbon!$B52,'Crop 1'!$L$56*VLOOKUP('Crop 1'!$E$56,Carbon!$AH$4:$AI$10,2,FALSE),0)+IF('Crop 1'!$C$57=Carbon!$B52,'Crop 1'!$L$57*VLOOKUP('Crop 1'!$E$57,Carbon!$AH$4:$AI$10,2,FALSE),0)+IF('Crop 1'!$C$58=Carbon!$B52,'Crop 1'!$L$58*VLOOKUP('Crop 1'!$E$58,Carbon!$AH$4:$AI$10,2,FALSE),0)+IF('Crop 1'!$C$59=Carbon!$B52,'Crop 1'!$L$59*VLOOKUP('Crop 1'!$E$59,Carbon!$AH$4:$AI$10,2,FALSE),0)+IF('Crop 1'!$C$62=Carbon!$B52,'Crop 1'!$L$62*VLOOKUP('Crop 1'!$E$62,Carbon!$AH$4:$AI$10,2,FALSE),0)+IF('Crop 1'!$C$63=Carbon!$B52,'Crop 1'!$L$63*VLOOKUP('Crop 1'!$E$63,Carbon!$AH$4:$AI$10,2,FALSE),0)+IF('Crop 1'!$C$64=Carbon!$B52,'Crop 1'!$L$64*VLOOKUP('Crop 1'!$E$64,Carbon!$AH$4:$AI$10,2,FALSE),0)+IF('Crop 1'!$C$65=Carbon!$B52,'Crop 1'!$L$65*VLOOKUP('Crop 1'!$E$65,Carbon!$AH$4:$AI$10,2,FALSE),0))*$AL$20,2)","v":0},{"$f":"C52*Inputs!$D$13","v":0},{"$f":"ROUND((IF('Crop 2'!$C$14=Carbon!$B52,'Crop 2'!$L$14*VLOOKUP('Crop 2'!$E$14,Carbon!$AH$4:$AI$10,2,FALSE),0)+IF('Crop 2'!$C$15=Carbon!$B52,'Crop 2'!$L$15*VLOOKUP('Crop 2'!$E$15,Carbon!$AH$4:$AI$10,2,FALSE),0)+IF('Crop 2'!$C$16=Carbon!$B52,'Crop 2'!$L$16*VLOOKUP('Crop 2'!$E$16,Carbon!$AH$4:$AI$10,2,FALSE),0)+IF('Crop 2'!$C$19=Carbon!$B52,'Crop 2'!$L$19*VLOOKUP('Crop 2'!$E$19,Carbon!$AH$4:$AI$10,2,FALSE),0)+IF('Crop 2'!$C$20=Carbon!$B52,'Crop 2'!$L$20*VLOOKUP('Crop 2'!$E$20,Carbon!$AH$4:$AI$10,2,FALSE),0)+IF('Crop 2'!$C$21=Carbon!$B52,'Crop 2'!$L$21*VLOOKUP('Crop 2'!$E$21,Carbon!$AH$4:$AI$10,2,FALSE),0)+IF('Crop 2'!$C$49=Carbon!$B52,'Crop 2'!$L$49*VLOOKUP('Crop 2'!$E$49,Carbon!$AH$4:$AI$10,2,FALSE),0)+IF('Crop 2'!$C$50=Carbon!$B52,'Crop 2'!$L$50*VLOOKUP('Crop 2'!$E$50,Carbon!$AH$4:$AI$10,2,FALSE),0)+IF('Crop 2'!$C$51=Carbon!$B52,'Crop 2'!$L$51*VLOOKUP('Crop 2'!$E$51,Carbon!$AH$4:$AI$10,2,FALSE),0)+IF('Crop 2'!$C$52=Carbon!$B52,'Crop 2'!$L$52*VLOOKUP('Crop 2'!$E$52,Carbon!$AH$4:$AI$10,2,FALSE),0)+IF('Crop 2'!$C$53=Carbon!$B52,'Crop 2'!$L$53*VLOOKUP('Crop 2'!$E$53,Carbon!$AH$4:$AI$10,2,FALSE),0)+IF('Crop 2'!$C$56=Carbon!$B52,'Crop 2'!$L$56*VLOOKUP('Crop 2'!$E$56,Carbon!$AH$4:$AI$10,2,FALSE),0)+IF('Crop 2'!$C$57=Carbon!$B52,'Crop 2'!$L$57*VLOOKUP('Crop 2'!$E$57,Carbon!$AH$4:$AI$10,2,FALSE),0)+IF('Crop 2'!$C$58=Carbon!$B52,'Crop 2'!$L$58*VLOOKUP('Crop 2'!$E$58,Carbon!$AH$4:$AI$10,2,FALSE),0)+IF('Crop 2'!$C$59=Carbon!$B52,'Crop 2'!$L$59*VLOOKUP('Crop 2'!$E$59,Carbon!$AH$4:$AI$10,2,FALSE),0)+IF('Crop 2'!$C$62=Carbon!$B52,'Crop 2'!$L$62*VLOOKUP('Crop 2'!$E$62,Carbon!$AH$4:$AI$10,2,FALSE),0)+IF('Crop 2'!$C$63=Carbon!$B52,'Crop 2'!$L$63*VLOOKUP('Crop 2'!$E$63,Carbon!$AH$4:$AI$10,2,FALSE),0)+IF('Crop 2'!$C$64=Carbon!$B52,'Crop 2'!$L$64*VLOOKUP('Crop 2'!$E$64,Carbon!$AH$4:$AI$10,2,FALSE),0)+IF('Crop 2'!$C$65=Carbon!$B52,'Crop 2'!$L$65*VLOOKUP('Crop 2'!$E$65,Carbon!$AH$4:$AI$10,2,FALSE),0))*$AL$20,2)","v":0},{"$f":"E52*Inputs!$D$15","v":0},{"$f":"ROUND((IF('Crop 3'!$C$14=Carbon!$B52,'Crop 3'!$L$14*VLOOKUP('Crop 3'!$E$14,Carbon!$AH$4:$AI$10,2,FALSE),0)+IF('Crop 3'!$C$15=Carbon!$B52,'Crop 3'!$L$15*VLOOKUP('Crop 3'!$E$15,Carbon!$AH$4:$AI$10,2,FALSE),0)+IF('Crop 3'!$C$16=Carbon!$B52,'Crop 3'!$L$16*VLOOKUP('Crop 3'!$E$16,Carbon!$AH$4:$AI$10,2,FALSE),0)+IF('Crop 3'!$C$19=Carbon!$B52,'Crop 3'!$L$19*VLOOKUP('Crop 3'!$E$19,Carbon!$AH$4:$AI$10,2,FALSE),0)+IF('Crop 3'!$C$20=Carbon!$B52,'Crop 3'!$L$20*VLOOKUP('Crop 3'!$E$20,Carbon!$AH$4:$AI$10,2,FALSE),0)+IF('Crop 3'!$C$21=Carbon!$B52,'Crop 3'!$L$21*VLOOKUP('Crop 3'!$E$21,Carbon!$AH$4:$AI$10,2,FALSE),0)+IF('Crop 3'!$C$49=Carbon!$B52,'Crop 3'!$L$49*VLOOKUP('Crop 3'!$E$49,Carbon!$AH$4:$AI$10,2,FALSE),0)+IF('Crop 3'!$C$50=Carbon!$B52,'Crop 3'!$L$50*VLOOKUP('Crop 3'!$E$50,Carbon!$AH$4:$AI$10,2,FALSE),0)+IF('Crop 3'!$C$51=Carbon!$B52,'Crop 3'!$L$51*VLOOKUP('Crop 3'!$E$51,Carbon!$AH$4:$AI$10,2,FALSE),0)+IF('Crop 3'!$C$52=Carbon!$B52,'Crop 3'!$L$52*VLOOKUP('Crop 3'!$E$52,Carbon!$AH$4:$AI$10,2,FALSE),0)+IF('Crop 3'!$C$53=Carbon!$B52,'Crop 3'!$L$53*VLOOKUP('Crop 3'!$E$53,Carbon!$AH$4:$AI$10,2,FALSE),0)+IF('Crop 3'!$C$56=Carbon!$B52,'Crop 3'!$L$56*VLOOKUP('Crop 3'!$E$56,Carbon!$AH$4:$AI$10,2,FALSE),0)+IF('Crop 3'!$C$57=Carbon!$B52,'Crop 3'!$L$57*VLOOKUP('Crop 3'!$E$57,Carbon!$AH$4:$AI$10,2,FALSE),0)+IF('Crop 3'!$C$58=Carbon!$B52,'Crop 3'!$L$58*VLOOKUP('Crop 3'!$E$58,Carbon!$AH$4:$AI$10,2,FALSE),0)+IF('Crop 3'!$C$59=Carbon!$B52,'Crop 3'!$L$59*VLOOKUP('Crop 3'!$E$59,Carbon!$AH$4:$AI$10,2,FALSE),0)+IF('Crop 3'!$C$62=Carbon!$B52,'Crop 3'!$L$62*VLOOKUP('Crop 3'!$E$62,Carbon!$AH$4:$AI$10,2,FALSE),0)+IF('Crop 3'!$C$63=Carbon!$B52,'Crop 3'!$L$63*VLOOKUP('Crop 3'!$E$63,Carbon!$AH$4:$AI$10,2,FALSE),0)+IF('Crop 3'!$C$64=Carbon!$B52,'Crop 3'!$L$64*VLOOKUP('Crop 3'!$E$64,Carbon!$AH$4:$AI$10,2,FALSE),0)+IF('Crop 3'!$C$65=Carbon!$B52,'Crop 3'!$L$65*VLOOKUP('Crop 3'!$E$65,Carbon!$AH$4:$AI$10,2,FALSE),0))*$AL$20,2)","v":0},{"$f":"G52*Inputs!$D$17","v":0},{"$f":"ROUND(J52/Inputs!D$19,2)","v":0},0,null,null,{"$f":"ROUND((IF('Crop 1'!$C$14=Carbon!$B52,'Crop 1'!$V$14*VLOOKUP('Crop 1'!$E$14,Carbon!$AH$4:$AI$10,2,FALSE),0)+IF('Crop 1'!$C$15=Carbon!$B52,'Crop 1'!$V$15*VLOOKUP('Crop 1'!$E$15,Carbon!$AH$4:$AI$10,2,FALSE),0)+IF('Crop 1'!$C$16=Carbon!$B52,'Crop 1'!$V$16*VLOOKUP('Crop 1'!$E$16,Carbon!$AH$4:$AI$10,2,FALSE),0)+IF('Crop 1'!$C$19=Carbon!$B52,'Crop 1'!$V$19*VLOOKUP('Crop 1'!$E$19,Carbon!$AH$4:$AI$10,2,FALSE),0)+IF('Crop 1'!$C$20=Carbon!$B52,'Crop 1'!$V$20*VLOOKUP('Crop 1'!$E$20,Carbon!$AH$4:$AI$10,2,FALSE),0)+IF('Crop 1'!$C$21=Carbon!$B52,'Crop 1'!$V$21*VLOOKUP('Crop 1'!$E$21,Carbon!$AH$4:$AI$10,2,FALSE),0)+IF('Crop 1'!$C$49=Carbon!$B52,'Crop 1'!$V$49*VLOOKUP('Crop 1'!$E$49,Carbon!$AH$4:$AI$10,2,FALSE),0)+IF('Crop 1'!$C$50=Carbon!$B52,'Crop 1'!$V$50*VLOOKUP('Crop 1'!$E$50,Carbon!$AH$4:$AI$10,2,FALSE),0)+IF('Crop 1'!$C$51=Carbon!$B52,'Crop 1'!$V$51*VLOOKUP('Crop 1'!$E$51,Carbon!$AH$4:$AI$10,2,FALSE),0)+IF('Crop 1'!$C$52=Carbon!$B52,'Crop 1'!$V$52*VLOOKUP('Crop 1'!$E$52,Carbon!$AH$4:$AI$10,2,FALSE),0)+IF('Crop 1'!$C$53=Carbon!$B52,'Crop 1'!$V$53*VLOOKUP('Crop 1'!$E$53,Carbon!$AH$4:$AI$10,2,FALSE),0)+IF('Crop 1'!$C$56=Carbon!$B52,'Crop 1'!$V$56*VLOOKUP('Crop 1'!$E$56,Carbon!$AH$4:$AI$10,2,FALSE),0)+IF('Crop 1'!$C$57=Carbon!$B52,'Crop 1'!$V$57*VLOOKUP('Crop 1'!$E$57,Carbon!$AH$4:$AI$10,2,FALSE),0)+IF('Crop 1'!$C$58=Carbon!$B52,'Crop 1'!$V$58*VLOOKUP('Crop 1'!$E$58,Carbon!$AH$4:$AI$10,2,FALSE),0)+IF('Crop 1'!$C$59=Carbon!$B52,'Crop 1'!$V$59*VLOOKUP('Crop 1'!$E$59,Carbon!$AH$4:$AI$10,2,FALSE),0)+IF('Crop 1'!$C$62=Carbon!$B52,'Crop 1'!$V$62*VLOOKUP('Crop 1'!$E$62,Carbon!$AH$4:$AI$10,2,FALSE),0)+IF('Crop 1'!$C$63=Carbon!$B52,'Crop 1'!$V$63*VLOOKUP('Crop 1'!$E$63,Carbon!$AH$4:$AI$10,2,FALSE),0)+IF('Crop 1'!$C$64=Carbon!$B52,'Crop 1'!$V$64*VLOOKUP('Crop 1'!$E$64,Carbon!$AH$4:$AI$10,2,FALSE),0)+IF('Crop 1'!$C$65=Carbon!$B52,'Crop 1'!$V$65*VLOOKUP('Crop 1'!$E$65,Carbon!$AH$4:$AI$10,2,FALSE),0))*$AL$20,2)","v":0},{"$f":"M52*Inputs!$D$13","v":0},{"$f":"ROUND((IF('Crop 2'!$C$14=Carbon!$B52,'Crop 2'!$V$14*VLOOKUP('Crop 2'!$E$14,Carbon!$AH$4:$AI$10,2,FALSE),0)+IF('Crop 2'!$C$15=Carbon!$B52,'Crop 2'!$V$15*VLOOKUP('Crop 2'!$E$15,Carbon!$AH$4:$AI$10,2,FALSE),0)+IF('Crop 2'!$C$16=Carbon!$B52,'Crop 2'!$V$16*VLOOKUP('Crop 2'!$E$16,Carbon!$AH$4:$AI$10,2,FALSE),0)+IF('Crop 2'!$C$19=Carbon!$B52,'Crop 2'!$V$19*VLOOKUP('Crop 2'!$E$19,Carbon!$AH$4:$AI$10,2,FALSE),0)+IF('Crop 2'!$C$20=Carbon!$B52,'Crop 2'!$V$20*VLOOKUP('Crop 2'!$E$20,Carbon!$AH$4:$AI$10,2,FALSE),0)+IF('Crop 2'!$C$21=Carbon!$B52,'Crop 2'!$V$21*VLOOKUP('Crop 2'!$E$21,Carbon!$AH$4:$AI$10,2,FALSE),0)+IF('Crop 2'!$C$49=Carbon!$B52,'Crop 2'!$V$49*VLOOKUP('Crop 2'!$E$49,Carbon!$AH$4:$AI$10,2,FALSE),0)+IF('Crop 2'!$C$50=Carbon!$B52,'Crop 2'!$V$50*VLOOKUP('Crop 2'!$E$50,Carbon!$AH$4:$AI$10,2,FALSE),0)+IF('Crop 2'!$C$51=Carbon!$B52,'Crop 2'!$V$51*VLOOKUP('Crop 2'!$E$51,Carbon!$AH$4:$AI$10,2,FALSE),0)+IF('Crop 2'!$C$52=Carbon!$B52,'Crop 2'!$V$52*VLOOKUP('Crop 2'!$E$52,Carbon!$AH$4:$AI$10,2,FALSE),0)+IF('Crop 2'!$C$53=Carbon!$B52,'Crop 2'!$V$53*VLOOKUP('Crop 2'!$E$53,Carbon!$AH$4:$AI$10,2,FALSE),0)+IF('Crop 2'!$C$56=Carbon!$B52,'Crop 2'!$V$56*VLOOKUP('Crop 2'!$E$56,Carbon!$AH$4:$AI$10,2,FALSE),0)+IF('Crop 2'!$C$57=Carbon!$B52,'Crop 2'!$V$57*VLOOKUP('Crop 2'!$E$57,Carbon!$AH$4:$AI$10,2,FALSE),0)+IF('Crop 2'!$C$58=Carbon!$B52,'Crop 2'!$V$58*VLOOKUP('Crop 2'!$E$58,Carbon!$AH$4:$AI$10,2,FALSE),0)+IF('Crop 2'!$C$59=Carbon!$B52,'Crop 2'!$V$59*VLOOKUP('Crop 2'!$E$59,Carbon!$AH$4:$AI$10,2,FALSE),0)+IF('Crop 2'!$C$62=Carbon!$B52,'Crop 2'!$V$62*VLOOKUP('Crop 2'!$E$62,Carbon!$AH$4:$AI$10,2,FALSE),0)+IF('Crop 2'!$C$63=Carbon!$B52,'Crop 2'!$V$63*VLOOKUP('Crop 2'!$E$63,Carbon!$AH$4:$AI$10,2,FALSE),0)+IF('Crop 2'!$C$64=Carbon!$B52,'Crop 2'!$V$64*VLOOKUP('Crop 2'!$E$64,Carbon!$AH$4:$AI$10,2,FALSE),0)+IF('Crop 2'!$C$65=Carbon!$B52,'Crop 2'!$V$65*VLOOKUP('Crop 2'!$E$65,Carbon!$AH$4:$AI$10,2,FALSE),0))*$AL$20,2)","v":0},{"$f":"O52*Inputs!$D$15","v":0},{"$f":"ROUND((IF('Crop 3'!$C$14=Carbon!$B52,'Crop 3'!$V$14*VLOOKUP('Crop 3'!$E$14,Carbon!$AH$4:$AI$10,2,FALSE),0)+IF('Crop 3'!$C$15=Carbon!$B52,'Crop 3'!$V$15*VLOOKUP('Crop 3'!$E$15,Carbon!$AH$4:$AI$10,2,FALSE),0)+IF('Crop 3'!$C$16=Carbon!$B52,'Crop 3'!$V$16*VLOOKUP('Crop 3'!$E$16,Carbon!$AH$4:$AI$10,2,FALSE),0)+IF('Crop 3'!$C$19=Carbon!$B52,'Crop 3'!$V$19*VLOOKUP('Crop 3'!$E$19,Carbon!$AH$4:$AI$10,2,FALSE),0)+IF('Crop 3'!$C$20=Carbon!$B52,'Crop 3'!$V$20*VLOOKUP('Crop 3'!$E$20,Carbon!$AH$4:$AI$10,2,FALSE),0)+IF('Crop 3'!$C$21=Carbon!$B52,'Crop 3'!$V$21*VLOOKUP('Crop 3'!$E$21,Carbon!$AH$4:$AI$10,2,FALSE),0)+IF('Crop 3'!$C$49=Carbon!$B52,'Crop 3'!$V$49*VLOOKUP('Crop 3'!$E$49,Carbon!$AH$4:$AI$10,2,FALSE),0)+IF('Crop 3'!$C$50=Carbon!$B52,'Crop 3'!$V$50*VLOOKUP('Crop 3'!$E$50,Carbon!$AH$4:$AI$10,2,FALSE),0)+IF('Crop 3'!$C$51=Carbon!$B52,'Crop 3'!$V$51*VLOOKUP('Crop 3'!$E$51,Carbon!$AH$4:$AI$10,2,FALSE),0)+IF('Crop 3'!$C$52=Carbon!$B52,'Crop 3'!$V$52*VLOOKUP('Crop 3'!$E$52,Carbon!$AH$4:$AI$10,2,FALSE),0)+IF('Crop 3'!$C$53=Carbon!$B52,'Crop 3'!$V$53*VLOOKUP('Crop 3'!$E$53,Carbon!$AH$4:$AI$10,2,FALSE),0)+IF('Crop 3'!$C$56=Carbon!$B52,'Crop 3'!$V$56*VLOOKUP('Crop 3'!$E$56,Carbon!$AH$4:$AI$10,2,FALSE),0)+IF('Crop 3'!$C$57=Carbon!$B52,'Crop 3'!$V$57*VLOOKUP('Crop 3'!$E$57,Carbon!$AH$4:$AI$10,2,FALSE),0)+IF('Crop 3'!$C$58=Carbon!$B52,'Crop 3'!$V$58*VLOOKUP('Crop 3'!$E$58,Carbon!$AH$4:$AI$10,2,FALSE),0)+IF('Crop 3'!$C$59=Carbon!$B52,'Crop 3'!$V$59*VLOOKUP('Crop 3'!$E$59,Carbon!$AH$4:$AI$10,2,FALSE),0)+IF('Crop 3'!$C$62=Carbon!$B52,'Crop 3'!$V$62*VLOOKUP('Crop 3'!$E$62,Carbon!$AH$4:$AI$10,2,FALSE),0)+IF('Crop 3'!$C$63=Carbon!$B52,'Crop 3'!$V$63*VLOOKUP('Crop 3'!$E$63,Carbon!$AH$4:$AI$10,2,FALSE),0)+IF('Crop 3'!$C$64=Carbon!$B52,'Crop 3'!$V$64*VLOOKUP('Crop 3'!$E$64,Carbon!$AH$4:$AI$10,2,FALSE),0)+IF('Crop 3'!$C$65=Carbon!$B52,'Crop 3'!$V$65*VLOOKUP('Crop 3'!$E$65,Carbon!$AH$4:$AI$10,2,FALSE),0))*$AL$20,2)","v":0},{"$f":"Q52*Inputs!$D$17","v":0},{"$f":"ROUND(T52/Inputs!D$19,2)","v":0},0,null,null,0,{"$f":"W52*Inputs!$D$13","v":0},0,{"$f":"Y52*Inputs!$D$13","v":0},0,{"$f":"AA52*Inputs!$D$13","v":0},{"$f":"ROUND(AD52/Inputs!D$19,2)","v":0},0]
[null,{"$f":"Defaults!AH19","v":"Bicep II Magnum"},{"$f":"ROUND((IF('Crop 1'!$C$14=Carbon!$B53,'Crop 1'!$L$14*VLOOKUP('Crop 1'!$E$14,Carbon!$AH$4:$AI$10,2,FALSE),0)+IF('Crop 1'!$C$15=Carbon!$B53,'Crop 1'!$L$15*VLOOKUP('Crop 1'!$E$15,Carbon!$AH$4:$AI$10,2,FALSE),0)+IF('Crop 1'!$C$16=Carbon!$B53,'Crop 1'!$L$16*VLOOKUP('Crop 1'!$E$16,Carbon!$AH$4:$AI$10,2,FALSE),0)+IF('Crop 1'!$C$19=Carbon!$B53,'Crop 1'!$L$19*VLOOKUP('Crop 1'!$E$19,Carbon!$AH$4:$AI$10,2,FALSE),0)+IF('Crop 1'!$C$20=Carbon!$B53,'Crop 1'!$L$20*VLOOKUP('Crop 1'!$E$20,Carbon!$AH$4:$AI$10,2,FALSE),0)+IF('Crop 1'!$C$21=Carbon!$B53,'Crop 1'!$L$21*VLOOKUP('Crop 1'!$E$21,Carbon!$AH$4:$AI$10,2,FALSE),0)+IF('Crop 1'!$C$49=Carbon!$B53,'Crop 1'!$L$49*VLOOKUP('Crop 1'!$E$49,Carbon!$AH$4:$AI$10,2,FALSE),0)+IF('Crop 1'!$C$50=Carbon!$B53,'Crop 1'!$L$50*VLOOKUP('Crop 1'!$E$50,Carbon!$AH$4:$AI$10,2,FALSE),0)+IF('Crop 1'!$C$51=Carbon!$B53,'Crop 1'!$L$51*VLOOKUP('Crop 1'!$E$51,Carbon!$AH$4:$AI$10,2,FALSE),0)+IF('Crop 1'!$C$52=Carbon!$B53,'Crop 1'!$L$52*VLOOKUP('Crop 1'!$E$52,Carbon!$AH$4:$AI$10,2,FALSE),0)+IF('Crop 1'!$C$53=Carbon!$B53,'Crop 1'!$L$53*VLOOKUP('Crop 1'!$E$53,Carbon!$AH$4:$AI$10,2,FALSE),0)+IF('Crop 1'!$C$56=Carbon!$B53,'Crop 1'!$L$56*VLOOKUP('Crop 1'!$E$56,Carbon!$AH$4:$AI$10,2,FALSE),0)+IF('Crop 1'!$C$57=Carbon!$B53,'Crop 1'!$L$57*VLOOKUP('Crop 1'!$E$57,Carbon!$AH$4:$AI$10,2,FALSE),0)+IF('Crop 1'!$C$58=Carbon!$B53,'Crop 1'!$L$58*VLOOKUP('Crop 1'!$E$58,Carbon!$AH$4:$AI$10,2,FALSE),0)+IF('Crop 1'!$C$59=Carbon!$B53,'Crop 1'!$L$59*VLOOKUP('Crop 1'!$E$59,Carbon!$AH$4:$AI$10,2,FALSE),0)+IF('Crop 1'!$C$62=Carbon!$B53,'Crop 1'!$L$62*VLOOKUP('Crop 1'!$E$62,Carbon!$AH$4:$AI$10,2,FALSE),0)+IF('Crop 1'!$C$63=Carbon!$B53,'Crop 1'!$L$63*VLOOKUP('Crop 1'!$E$63,Carbon!$AH$4:$AI$10,2,FALSE),0)+IF('Crop 1'!$C$64=Carbon!$B53,'Crop 1'!$L$64*VLOOKUP('Crop 1'!$E$64,Carbon!$AH$4:$AI$10,2,FALSE),0)+IF('Crop 1'!$C$65=Carbon!$B53,'Crop 1'!$L$65*VLOOKUP('Crop 1'!$E$65,Carbon!$AH$4:$AI$10,2,FALSE),0))*$AL$20,2)","v":0},{"$f":"C53*Inputs!$D$13","v":0},{"$f":"ROUND((IF('Crop 2'!$C$14=Carbon!$B53,'Crop 2'!$L$14*VLOOKUP('Crop 2'!$E$14,Carbon!$AH$4:$AI$10,2,FALSE),0)+IF('Crop 2'!$C$15=Carbon!$B53,'Crop 2'!$L$15*VLOOKUP('Crop 2'!$E$15,Carbon!$AH$4:$AI$10,2,FALSE),0)+IF('Crop 2'!$C$16=Carbon!$B53,'Crop 2'!$L$16*VLOOKUP('Crop 2'!$E$16,Carbon!$AH$4:$AI$10,2,FALSE),0)+IF('Crop 2'!$C$19=Carbon!$B53,'Crop 2'!$L$19*VLOOKUP('Crop 2'!$E$19,Carbon!$AH$4:$AI$10,2,FALSE),0)+IF('Crop 2'!$C$20=Carbon!$B53,'Crop 2'!$L$20*VLOOKUP('Crop 2'!$E$20,Carbon!$AH$4:$AI$10,2,FALSE),0)+IF('Crop 2'!$C$21=Carbon!$B53,'Crop 2'!$L$21*VLOOKUP('Crop 2'!$E$21,Carbon!$AH$4:$AI$10,2,FALSE),0)+IF('Crop 2'!$C$49=Carbon!$B53,'Crop 2'!$L$49*VLOOKUP('Crop 2'!$E$49,Carbon!$AH$4:$AI$10,2,FALSE),0)+IF('Crop 2'!$C$50=Carbon!$B53,'Crop 2'!$L$50*VLOOKUP('Crop 2'!$E$50,Carbon!$AH$4:$AI$10,2,FALSE),0)+IF('Crop 2'!$C$51=Carbon!$B53,'Crop 2'!$L$51*VLOOKUP('Crop 2'!$E$51,Carbon!$AH$4:$AI$10,2,FALSE),0)+IF('Crop 2'!$C$52=Carbon!$B53,'Crop 2'!$L$52*VLOOKUP('Crop 2'!$E$52,Carbon!$AH$4:$AI$10,2,FALSE),0)+IF('Crop 2'!$C$53=Carbon!$B53,'Crop 2'!$L$53*VLOOKUP('Crop 2'!$E$53,Carbon!$AH$4:$AI$10,2,FALSE),0)+IF('Crop 2'!$C$56=Carbon!$B53,'Crop 2'!$L$56*VLOOKUP('Crop 2'!$E$56,Carbon!$AH$4:$AI$10,2,FALSE),0)+IF('Crop 2'!$C$57=Carbon!$B53,'Crop 2'!$L$57*VLOOKUP('Crop 2'!$E$57,Carbon!$AH$4:$AI$10,2,FALSE),0)+IF('Crop 2'!$C$58=Carbon!$B53,'Crop 2'!$L$58*VLOOKUP('Crop 2'!$E$58,Carbon!$AH$4:$AI$10,2,FALSE),0)+IF('Crop 2'!$C$59=Carbon!$B53,'Crop 2'!$L$59*VLOOKUP('Crop 2'!$E$59,Carbon!$AH$4:$AI$10,2,FALSE),0)+IF('Crop 2'!$C$62=Carbon!$B53,'Crop 2'!$L$62*VLOOKUP('Crop 2'!$E$62,Carbon!$AH$4:$AI$10,2,FALSE),0)+IF('Crop 2'!$C$63=Carbon!$B53,'Crop 2'!$L$63*VLOOKUP('Crop 2'!$E$63,Carbon!$AH$4:$AI$10,2,FALSE),0)+IF('Crop 2'!$C$64=Carbon!$B53,'Crop 2'!$L$64*VLOOKUP('Crop 2'!$E$64,Carbon!$AH$4:$AI$10,2,FALSE),0)+IF('Crop 2'!$C$65=Carbon!$B53,'Crop 2'!$L$65*VLOOKUP('Crop 2'!$E$65,Carbon!$AH$4:$AI$10,2,FALSE),0))*$AL$20,2)","v":0},{"$f":"E53*Inputs!$D$15","v":0},{"$f":"ROUND((IF('Crop 3'!$C$14=Carbon!$B53,'Crop 3'!$L$14*VLOOKUP('Crop 3'!$E$14,Carbon!$AH$4:$AI$10,2,FALSE),0)+IF('Crop 3'!$C$15=Carbon!$B53,'Crop 3'!$L$15*VLOOKUP('Crop 3'!$E$15,Carbon!$AH$4:$AI$10,2,FALSE),0)+IF('Crop 3'!$C$16=Carbon!$B53,'Crop 3'!$L$16*VLOOKUP('Crop 3'!$E$16,Carbon!$AH$4:$AI$10,2,FALSE),0)+IF('Crop 3'!$C$19=Carbon!$B53,'Crop 3'!$L$19*VLOOKUP('Crop 3'!$E$19,Carbon!$AH$4:$AI$10,2,FALSE),0)+IF('Crop 3'!$C$20=Carbon!$B53,'Crop 3'!$L$20*VLOOKUP('Crop 3'!$E$20,Carbon!$AH$4:$AI$10,2,FALSE),0)+IF('Crop 3'!$C$21=Carbon!$B53,'Crop 3'!$L$21*VLOOKUP('Crop 3'!$E$21,Carbon!$AH$4:$AI$10,2,FALSE),0)+IF('Crop 3'!$C$49=Carbon!$B53,'Crop 3'!$L$49*VLOOKUP('Crop 3'!$E$49,Carbon!$AH$4:$AI$10,2,FALSE),0)+IF('Crop 3'!$C$50=Carbon!$B53,'Crop 3'!$L$50*VLOOKUP('Crop 3'!$E$50,Carbon!$AH$4:$AI$10,2,FALSE),0)+IF('Crop 3'!$C$51=Carbon!$B53,'Crop 3'!$L$51*VLOOKUP('Crop 3'!$E$51,Carbon!$AH$4:$AI$10,2,FALSE),0)+IF('Crop 3'!$C$52=Carbon!$B53,'Crop 3'!$L$52*VLOOKUP('Crop 3'!$E$52,Carbon!$AH$4:$AI$10,2,FALSE),0)+IF('Crop 3'!$C$53=Carbon!$B53,'Crop 3'!$L$53*VLOOKUP('Crop 3'!$E$53,Carbon!$AH$4:$AI$10,2,FALSE),0)+IF('Crop 3'!$C$56=Carbon!$B53,'Crop 3'!$L$56*VLOOKUP('Crop 3'!$E$56,Carbon!$AH$4:$AI$10,2,FALSE),0)+IF('Crop 3'!$C$57=Carbon!$B53,'Crop 3'!$L$57*VLOOKUP('Crop 3'!$E$57,Carbon!$AH$4:$AI$10,2,FALSE),0)+IF('Crop 3'!$C$58=Carbon!$B53,'Crop 3'!$L$58*VLOOKUP('Crop 3'!$E$58,Carbon!$AH$4:$AI$10,2,FALSE),0)+IF('Crop 3'!$C$59=Carbon!$B53,'Crop 3'!$L$59*VLOOKUP('Crop 3'!$E$59,Carbon!$AH$4:$AI$10,2,FALSE),0)+IF('Crop 3'!$C$62=Carbon!$B53,'Crop 3'!$L$62*VLOOKUP('Crop 3'!$E$62,Carbon!$AH$4:$AI$10,2,FALSE),0)+IF('Crop 3'!$C$63=Carbon!$B53,'Crop 3'!$L$63*VLOOKUP('Crop 3'!$E$63,Carbon!$AH$4:$AI$10,2,FALSE),0)+IF('Crop 3'!$C$64=Carbon!$B53,'Crop 3'!$L$64*VLOOKUP('Crop 3'!$E$64,Carbon!$AH$4:$AI$10,2,FALSE),0)+IF('Crop 3'!$C$65=Carbon!$B53,'Crop 3'!$L$65*VLOOKUP('Crop 3'!$E$65,Carbon!$AH$4:$AI$10,2,FALSE),0))*$AL$20,2)","v":0},{"$f":"G53*Inputs!$D$17","v":0},{"$f":"ROUND(J53/Inputs!D$19,2)","v":0},0,null,null,{"$f":"ROUND((IF('Crop 1'!$C$14=Carbon!$B53,'Crop 1'!$V$14*VLOOKUP('Crop 1'!$E$14,Carbon!$AH$4:$AI$10,2,FALSE),0)+IF('Crop 1'!$C$15=Carbon!$B53,'Crop 1'!$V$15*VLOOKUP('Crop 1'!$E$15,Carbon!$AH$4:$AI$10,2,FALSE),0)+IF('Crop 1'!$C$16=Carbon!$B53,'Crop 1'!$V$16*VLOOKUP('Crop 1'!$E$16,Carbon!$AH$4:$AI$10,2,FALSE),0)+IF('Crop 1'!$C$19=Carbon!$B53,'Crop 1'!$V$19*VLOOKUP('Crop 1'!$E$19,Carbon!$AH$4:$AI$10,2,FALSE),0)+IF('Crop 1'!$C$20=Carbon!$B53,'Crop 1'!$V$20*VLOOKUP('Crop 1'!$E$20,Carbon!$AH$4:$AI$10,2,FALSE),0)+IF('Crop 1'!$C$21=Carbon!$B53,'Crop 1'!$V$21*VLOOKUP('Crop 1'!$E$21,Carbon!$AH$4:$AI$10,2,FALSE),0)+IF('Crop 1'!$C$49=Carbon!$B53,'Crop 1'!$V$49*VLOOKUP('Crop 1'!$E$49,Carbon!$AH$4:$AI$10,2,FALSE),0)+IF('Crop 1'!$C$50=Carbon!$B53,'Crop 1'!$V$50*VLOOKUP('Crop 1'!$E$50,Carbon!$AH$4:$AI$10,2,FALSE),0)+IF('Crop 1'!$C$51=Carbon!$B53,'Crop 1'!$V$51*VLOOKUP('Crop 1'!$E$51,Carbon!$AH$4:$AI$10,2,FALSE),0)+IF('Crop 1'!$C$52=Carbon!$B53,'Crop 1'!$V$52*VLOOKUP('Crop 1'!$E$52,Carbon!$AH$4:$AI$10,2,FALSE),0)+IF('Crop 1'!$C$53=Carbon!$B53,'Crop 1'!$V$53*VLOOKUP('Crop 1'!$E$53,Carbon!$AH$4:$AI$10,2,FALSE),0)+IF('Crop 1'!$C$56=Carbon!$B53,'Crop 1'!$V$56*VLOOKUP('Crop 1'!$E$56,Carbon!$AH$4:$AI$10,2,FALSE),0)+IF('Crop 1'!$C$57=Carbon!$B53,'Crop 1'!$V$57*VLOOKUP('Crop 1'!$E$57,Carbon!$AH$4:$AI$10,2,FALSE),0)+IF('Crop 1'!$C$58=Carbon!$B53,'Crop 1'!$V$58*VLOOKUP('Crop 1'!$E$58,Carbon!$AH$4:$AI$10,2,FALSE),0)+IF('Crop 1'!$C$59=Carbon!$B53,'Crop 1'!$V$59*VLOOKUP('Crop 1'!$E$59,Carbon!$AH$4:$AI$10,2,FALSE),0)+IF('Crop 1'!$C$62=Carbon!$B53,'Crop 1'!$V$62*VLOOKUP('Crop 1'!$E$62,Carbon!$AH$4:$AI$10,2,FALSE),0)+IF('Crop 1'!$C$63=Carbon!$B53,'Crop 1'!$V$63*VLOOKUP('Crop 1'!$E$63,Carbon!$AH$4:$AI$10,2,FALSE),0)+IF('Crop 1'!$C$64=Carbon!$B53,'Crop 1'!$V$64*VLOOKUP('Crop 1'!$E$64,Carbon!$AH$4:$AI$10,2,FALSE),0)+IF('Crop 1'!$C$65=Carbon!$B53,'Crop 1'!$V$65*VLOOKUP('Crop 1'!$E$65,Carbon!$AH$4:$AI$10,2,FALSE),0))*$AL$20,2)","v":0},{"$f":"M53*Inputs!$D$13","v":0},{"$f":"ROUND((IF('Crop 2'!$C$14=Carbon!$B53,'Crop 2'!$V$14*VLOOKUP('Crop 2'!$E$14,Carbon!$AH$4:$AI$10,2,FALSE),0)+IF('Crop 2'!$C$15=Carbon!$B53,'Crop 2'!$V$15*VLOOKUP('Crop 2'!$E$15,Carbon!$AH$4:$AI$10,2,FALSE),0)+IF('Crop 2'!$C$16=Carbon!$B53,'Crop 2'!$V$16*VLOOKUP('Crop 2'!$E$16,Carbon!$AH$4:$AI$10,2,FALSE),0)+IF('Crop 2'!$C$19=Carbon!$B53,'Crop 2'!$V$19*VLOOKUP('Crop 2'!$E$19,Carbon!$AH$4:$AI$10,2,FALSE),0)+IF('Crop 2'!$C$20=Carbon!$B53,'Crop 2'!$V$20*VLOOKUP('Crop 2'!$E$20,Carbon!$AH$4:$AI$10,2,FALSE),0)+IF('Crop 2'!$C$21=Carbon!$B53,'Crop 2'!$V$21*VLOOKUP('Crop 2'!$E$21,Carbon!$AH$4:$AI$10,2,FALSE),0)+IF('Crop 2'!$C$49=Carbon!$B53,'Crop 2'!$V$49*VLOOKUP('Crop 2'!$E$49,Carbon!$AH$4:$AI$10,2,FALSE),0)+IF('Crop 2'!$C$50=Carbon!$B53,'Crop 2'!$V$50*VLOOKUP('Crop 2'!$E$50,Carbon!$AH$4:$AI$10,2,FALSE),0)+IF('Crop 2'!$C$51=Carbon!$B53,'Crop 2'!$V$51*VLOOKUP('Crop 2'!$E$51,Carbon!$AH$4:$AI$10,2,FALSE),0)+IF('Crop 2'!$C$52=Carbon!$B53,'Crop 2'!$V$52*VLOOKUP('Crop 2'!$E$52,Carbon!$AH$4:$AI$10,2,FALSE),0)+IF('Crop 2'!$C$53=Carbon!$B53,'Crop 2'!$V$53*VLOOKUP('Crop 2'!$E$53,Carbon!$AH$4:$AI$10,2,FALSE),0)+IF('Crop 2'!$C$56=Carbon!$B53,'Crop 2'!$V$56*VLOOKUP('Crop 2'!$E$56,Carbon!$AH$4:$AI$10,2,FALSE),0)+IF('Crop 2'!$C$57=Carbon!$B53,'Crop 2'!$V$57*VLOOKUP('Crop 2'!$E$57,Carbon!$AH$4:$AI$10,2,FALSE),0)+IF('Crop 2'!$C$58=Carbon!$B53,'Crop 2'!$V$58*VLOOKUP('Crop 2'!$E$58,Carbon!$AH$4:$AI$10,2,FALSE),0)+IF('Crop 2'!$C$59=Carbon!$B53,'Crop 2'!$V$59*VLOOKUP('Crop 2'!$E$59,Carbon!$AH$4:$AI$10,2,FALSE),0)+IF('Crop 2'!$C$62=Carbon!$B53,'Crop 2'!$V$62*VLOOKUP('Crop 2'!$E$62,Carbon!$AH$4:$AI$10,2,FALSE),0)+IF('Crop 2'!$C$63=Carbon!$B53,'Crop 2'!$V$63*VLOOKUP('Crop 2'!$E$63,Carbon!$AH$4:$AI$10,2,FALSE),0)+IF('Crop 2'!$C$64=Carbon!$B53,'Crop 2'!$V$64*VLOOKUP('Crop 2'!$E$64,Carbon!$AH$4:$AI$10,2,FALSE),0)+IF('Crop 2'!$C$65=Carbon!$B53,'Crop 2'!$V$65*VLOOKUP('Crop 2'!$E$65,Carbon!$AH$4:$AI$10,2,FALSE),0))*$AL$20,2)","v":0},{"$f":"O53*Inputs!$D$15","v":0},{"$f":"ROUND((IF('Crop 3'!$C$14=Carbon!$B53,'Crop 3'!$V$14*VLOOKUP('Crop 3'!$E$14,Carbon!$AH$4:$AI$10,2,FALSE),0)+IF('Crop 3'!$C$15=Carbon!$B53,'Crop 3'!$V$15*VLOOKUP('Crop 3'!$E$15,Carbon!$AH$4:$AI$10,2,FALSE),0)+IF('Crop 3'!$C$16=Carbon!$B53,'Crop 3'!$V$16*VLOOKUP('Crop 3'!$E$16,Carbon!$AH$4:$AI$10,2,FALSE),0)+IF('Crop 3'!$C$19=Carbon!$B53,'Crop 3'!$V$19*VLOOKUP('Crop 3'!$E$19,Carbon!$AH$4:$AI$10,2,FALSE),0)+IF('Crop 3'!$C$20=Carbon!$B53,'Crop 3'!$V$20*VLOOKUP('Crop 3'!$E$20,Carbon!$AH$4:$AI$10,2,FALSE),0)+IF('Crop 3'!$C$21=Carbon!$B53,'Crop 3'!$V$21*VLOOKUP('Crop 3'!$E$21,Carbon!$AH$4:$AI$10,2,FALSE),0)+IF('Crop 3'!$C$49=Carbon!$B53,'Crop 3'!$V$49*VLOOKUP('Crop 3'!$E$49,Carbon!$AH$4:$AI$10,2,FALSE),0)+IF('Crop 3'!$C$50=Carbon!$B53,'Crop 3'!$V$50*VLOOKUP('Crop 3'!$E$50,Carbon!$AH$4:$AI$10,2,FALSE),0)+IF('Crop 3'!$C$51=Carbon!$B53,'Crop 3'!$V$51*VLOOKUP('Crop 3'!$E$51,Carbon!$AH$4:$AI$10,2,FALSE),0)+IF('Crop 3'!$C$52=Carbon!$B53,'Crop 3'!$V$52*VLOOKUP('Crop 3'!$E$52,Carbon!$AH$4:$AI$10,2,FALSE),0)+IF('Crop 3'!$C$53=Carbon!$B53,'Crop 3'!$V$53*VLOOKUP('Crop 3'!$E$53,Carbon!$AH$4:$AI$10,2,FALSE),0)+IF('Crop 3'!$C$56=Carbon!$B53,'Crop 3'!$V$56*VLOOKUP('Crop 3'!$E$56,Carbon!$AH$4:$AI$10,2,FALSE),0)+IF('Crop 3'!$C$57=Carbon!$B53,'Crop 3'!$V$57*VLOOKUP('Crop 3'!$E$57,Carbon!$AH$4:$AI$10,2,FALSE),0)+IF('Crop 3'!$C$58=Carbon!$B53,'Crop 3'!$V$58*VLOOKUP('Crop 3'!$E$58,Carbon!$AH$4:$AI$10,2,FALSE),0)+IF('Crop 3'!$C$59=Carbon!$B53,'Crop 3'!$V$59*VLOOKUP('Crop 3'!$E$59,Carbon!$AH$4:$AI$10,2,FALSE),0)+IF('Crop 3'!$C$62=Carbon!$B53,'Crop 3'!$V$62*VLOOKUP('Crop 3'!$E$62,Carbon!$AH$4:$AI$10,2,FALSE),0)+IF('Crop 3'!$C$63=Carbon!$B53,'Crop 3'!$V$63*VLOOKUP('Crop 3'!$E$63,Carbon!$AH$4:$AI$10,2,FALSE),0)+IF('Crop 3'!$C$64=Carbon!$B53,'Crop 3'!$V$64*VLOOKUP('Crop 3'!$E$64,Carbon!$AH$4:$AI$10,2,FALSE),0)+IF('Crop 3'!$C$65=Carbon!$B53,'Crop 3'!$V$65*VLOOKUP('Crop 3'!$E$65,Carbon!$AH$4:$AI$10,2,FALSE),0))*$AL$20,2)","v":0},{"$f":"Q53*Inputs!$D$17","v":0},{"$f":"ROUND(T53/Inputs!D$19,2)","v":0},0,null,null,0,{"$f":"W53*Inputs!$D$13","v":0},0,{"$f":"Y53*Inputs!$D$13","v":0},0,{"$f":"AA53*Inputs!$D$13","v":0},{"$f":"ROUND(AD53/Inputs!D$19,2)","v":0},0]
[null,{"$f":"Defaults!AH20","v":"Bolero"},{"$f":"ROUND((IF('Crop 1'!$C$14=Carbon!$B54,'Crop 1'!$L$14*VLOOKUP('Crop 1'!$E$14,Carbon!$AH$4:$AI$10,2,FALSE),0)+IF('Crop 1'!$C$15=Carbon!$B54,'Crop 1'!$L$15*VLOOKUP('Crop 1'!$E$15,Carbon!$AH$4:$AI$10,2,FALSE),0)+IF('Crop 1'!$C$16=Carbon!$B54,'Crop 1'!$L$16*VLOOKUP('Crop 1'!$E$16,Carbon!$AH$4:$AI$10,2,FALSE),0)+IF('Crop 1'!$C$19=Carbon!$B54,'Crop 1'!$L$19*VLOOKUP('Crop 1'!$E$19,Carbon!$AH$4:$AI$10,2,FALSE),0)+IF('Crop 1'!$C$20=Carbon!$B54,'Crop 1'!$L$20*VLOOKUP('Crop 1'!$E$20,Carbon!$AH$4:$AI$10,2,FALSE),0)+IF('Crop 1'!$C$21=Carbon!$B54,'Crop 1'!$L$21*VLOOKUP('Crop 1'!$E$21,Carbon!$AH$4:$AI$10,2,FALSE),0)+IF('Crop 1'!$C$49=Carbon!$B54,'Crop 1'!$L$49*VLOOKUP('Crop 1'!$E$49,Carbon!$AH$4:$AI$10,2,FALSE),0)+IF('Crop 1'!$C$50=Carbon!$B54,'Crop 1'!$L$50*VLOOKUP('Crop 1'!$E$50,Carbon!$AH$4:$AI$10,2,FALSE),0)+IF('Crop 1'!$C$51=Carbon!$B54,'Crop 1'!$L$51*VLOOKUP('Crop 1'!$E$51,Carbon!$AH$4:$AI$10,2,FALSE),0)+IF('Crop 1'!$C$52=Carbon!$B54,'Crop 1'!$L$52*VLOOKUP('Crop 1'!$E$52,Carbon!$AH$4:$AI$10,2,FALSE),0)+IF('Crop 1'!$C$53=Carbon!$B54,'Crop 1'!$L$53*VLOOKUP('Crop 1'!$E$53,Carbon!$AH$4:$AI$10,2,FALSE),0)+IF('Crop 1'!$C$56=Carbon!$B54,'Crop 1'!$L$56*VLOOKUP('Crop 1'!$E$56,Carbon!$AH$4:$AI$10,2,FALSE),0)+IF('Crop 1'!$C$57=Carbon!$B54,'Crop 1'!$L$57*VLOOKUP('Crop 1'!$E$57,Carbon!$AH$4:$AI$10,2,FALSE),0)+IF('Crop 1'!$C$58=Carbon!$B54,'Crop 1'!$L$58*VLOOKUP('Crop 1'!$E$58,Carbon!$AH$4:$AI$10,2,FALSE),0)+IF('Crop 1'!$C$59=Carbon!$B54,'Crop 1'!$L$59*VLOOKUP('Crop 1'!$E$59,Carbon!$AH$4:$AI$10,2,FALSE),0)+IF('Crop 1'!$C$62=Carbon!$B54,'Crop 1'!$L$62*VLOOKUP('Crop 1'!$E$62,Carbon!$AH$4:$AI$10,2,FALSE),0)+IF('Crop 1'!$C$63=Carbon!$B54,'Crop 1'!$L$63*VLOOKUP('Crop 1'!$E$63,Carbon!$AH$4:$AI$10,2,FALSE),0)+IF('Crop 1'!$C$64=Carbon!$B54,'Crop 1'!$L$64*VLOOKUP('Crop 1'!$E$64,Carbon!$AH$4:$AI$10,2,FALSE),0)+IF('Crop 1'!$C$65=Carbon!$B54,'Crop 1'!$L$65*VLOOKUP('Crop 1'!$E$65,Carbon!$AH$4:$AI$10,2,FALSE),0))*$AL$20,2)","v":0},{"$f":"C54*Inputs!$D$13","v":0},{"$f":"ROUND((IF('Crop 2'!$C$14=Carbon!$B54,'Crop 2'!$L$14*VLOOKUP('Crop 2'!$E$14,Carbon!$AH$4:$AI$10,2,FALSE),0)+IF('Crop 2'!$C$15=Carbon!$B54,'Crop 2'!$L$15*VLOOKUP('Crop 2'!$E$15,Carbon!$AH$4:$AI$10,2,FALSE),0)+IF('Crop 2'!$C$16=Carbon!$B54,'Crop 2'!$L$16*VLOOKUP('Crop 2'!$E$16,Carbon!$AH$4:$AI$10,2,FALSE),0)+IF('Crop 2'!$C$19=Carbon!$B54,'Crop 2'!$L$19*VLOOKUP('Crop 2'!$E$19,Carbon!$AH$4:$AI$10,2,FALSE),0)+IF('Crop 2'!$C$20=Carbon!$B54,'Crop 2'!$L$20*VLOOKUP('Crop 2'!$E$20,Carbon!$AH$4:$AI$10,2,FALSE),0)+IF('Crop 2'!$C$21=Carbon!$B54,'Crop 2'!$L$21*VLOOKUP('Crop 2'!$E$21,Carbon!$AH$4:$AI$10,2,FALSE),0)+IF('Crop 2'!$C$49=Carbon!$B54,'Crop 2'!$L$49*VLOOKUP('Crop 2'!$E$49,Carbon!$AH$4:$AI$10,2,FALSE),0)+IF('Crop 2'!$C$50=Carbon!$B54,'Crop 2'!$L$50*VLOOKUP('Crop 2'!$E$50,Carbon!$AH$4:$AI$10,2,FALSE),0)+IF('Crop 2'!$C$51=Carbon!$B54,'Crop 2'!$L$51*VLOOKUP('Crop 2'!$E$51,Carbon!$AH$4:$AI$10,2,FALSE),0)+IF('Crop 2'!$C$52=Carbon!$B54,'Crop 2'!$L$52*VLOOKUP('Crop 2'!$E$52,Carbon!$AH$4:$AI$10,2,FALSE),0)+IF('Crop 2'!$C$53=Carbon!$B54,'Crop 2'!$L$53*VLOOKUP('Crop 2'!$E$53,Carbon!$AH$4:$AI$10,2,FALSE),0)+IF('Crop 2'!$C$56=Carbon!$B54,'Crop 2'!$L$56*VLOOKUP('Crop 2'!$E$56,Carbon!$AH$4:$AI$10,2,FALSE),0)+IF('Crop 2'!$C$57=Carbon!$B54,'Crop 2'!$L$57*VLOOKUP('Crop 2'!$E$57,Carbon!$AH$4:$AI$10,2,FALSE),0)+IF('Crop 2'!$C$58=Carbon!$B54,'Crop 2'!$L$58*VLOOKUP('Crop 2'!$E$58,Carbon!$AH$4:$AI$10,2,FALSE),0)+IF('Crop 2'!$C$59=Carbon!$B54,'Crop 2'!$L$59*VLOOKUP('Crop 2'!$E$59,Carbon!$AH$4:$AI$10,2,FALSE),0)+IF('Crop 2'!$C$62=Carbon!$B54,'Crop 2'!$L$62*VLOOKUP('Crop 2'!$E$62,Carbon!$AH$4:$AI$10,2,FALSE),0)+IF('Crop 2'!$C$63=Carbon!$B54,'Crop 2'!$L$63*VLOOKUP('Crop 2'!$E$63,Carbon!$AH$4:$AI$10,2,FALSE),0)+IF('Crop 2'!$C$64=Carbon!$B54,'Crop 2'!$L$64*VLOOKUP('Crop 2'!$E$64,Carbon!$AH$4:$AI$10,2,FALSE),0)+IF('Crop 2'!$C$65=Carbon!$B54,'Crop 2'!$L$65*VLOOKUP('Crop 2'!$E$65,Carbon!$AH$4:$AI$10,2,FALSE),0))*$AL$20,2)","v":0},{"$f":"E54*Inputs!$D$15","v":0},{"$f":"ROUND((IF('Crop 3'!$C$14=Carbon!$B54,'Crop 3'!$L$14*VLOOKUP('Crop 3'!$E$14,Carbon!$AH$4:$AI$10,2,FALSE),0)+IF('Crop 3'!$C$15=Carbon!$B54,'Crop 3'!$L$15*VLOOKUP('Crop 3'!$E$15,Carbon!$AH$4:$AI$10,2,FALSE),0)+IF('Crop 3'!$C$16=Carbon!$B54,'Crop 3'!$L$16*VLOOKUP('Crop 3'!$E$16,Carbon!$AH$4:$AI$10,2,FALSE),0)+IF('Crop 3'!$C$19=Carbon!$B54,'Crop 3'!$L$19*VLOOKUP('Crop 3'!$E$19,Carbon!$AH$4:$AI$10,2,FALSE),0)+IF('Crop 3'!$C$20=Carbon!$B54,'Crop 3'!$L$20*VLOOKUP('Crop 3'!$E$20,Carbon!$AH$4:$AI$10,2,FALSE),0)+IF('Crop 3'!$C$21=Carbon!$B54,'Crop 3'!$L$21*VLOOKUP('Crop 3'!$E$21,Carbon!$AH$4:$AI$10,2,FALSE),0)+IF('Crop 3'!$C$49=Carbon!$B54,'Crop 3'!$L$49*VLOOKUP('Crop 3'!$E$49,Carbon!$AH$4:$AI$10,2,FALSE),0)+IF('Crop 3'!$C$50=Carbon!$B54,'Crop 3'!$L$50*VLOOKUP('Crop 3'!$E$50,Carbon!$AH$4:$AI$10,2,FALSE),0)+IF('Crop 3'!$C$51=Carbon!$B54,'Crop 3'!$L$51*VLOOKUP('Crop 3'!$E$51,Carbon!$AH$4:$AI$10,2,FALSE),0)+IF('Crop 3'!$C$52=Carbon!$B54,'Crop 3'!$L$52*VLOOKUP('Crop 3'!$E$52,Carbon!$AH$4:$AI$10,2,FALSE),0)+IF('Crop 3'!$C$53=Carbon!$B54,'Crop 3'!$L$53*VLOOKUP('Crop 3'!$E$53,Carbon!$AH$4:$AI$10,2,FALSE),0)+IF('Crop 3'!$C$56=Carbon!$B54,'Crop 3'!$L$56*VLOOKUP('Crop 3'!$E$56,Carbon!$AH$4:$AI$10,2,FALSE),0)+IF('Crop 3'!$C$57=Carbon!$B54,'Crop 3'!$L$57*VLOOKUP('Crop 3'!$E$57,Carbon!$AH$4:$AI$10,2,FALSE),0)+IF('Crop 3'!$C$58=Carbon!$B54,'Crop 3'!$L$58*VLOOKUP('Crop 3'!$E$58,Carbon!$AH$4:$AI$10,2,FALSE),0)+IF('Crop 3'!$C$59=Carbon!$B54,'Crop 3'!$L$59*VLOOKUP('Crop 3'!$E$59,Carbon!$AH$4:$AI$10,2,FALSE),0)+IF('Crop 3'!$C$62=Carbon!$B54,'Crop 3'!$L$62*VLOOKUP('Crop 3'!$E$62,Carbon!$AH$4:$AI$10,2,FALSE),0)+IF('Crop 3'!$C$63=Carbon!$B54,'Crop 3'!$L$63*VLOOKUP('Crop 3'!$E$63,Carbon!$AH$4:$AI$10,2,FALSE),0)+IF('Crop 3'!$C$64=Carbon!$B54,'Crop 3'!$L$64*VLOOKUP('Crop 3'!$E$64,Carbon!$AH$4:$AI$10,2,FALSE),0)+IF('Crop 3'!$C$65=Carbon!$B54,'Crop 3'!$L$65*VLOOKUP('Crop 3'!$E$65,Carbon!$AH$4:$AI$10,2,FALSE),0))*$AL$20,2)","v":0},{"$f":"G54*Inputs!$D$17","v":0},{"$f":"ROUND(J54/Inputs!D$19,2)","v":0},0,null,null,{"$f":"ROUND((IF('Crop 1'!$C$14=Carbon!$B54,'Crop 1'!$V$14*VLOOKUP('Crop 1'!$E$14,Carbon!$AH$4:$AI$10,2,FALSE),0)+IF('Crop 1'!$C$15=Carbon!$B54,'Crop 1'!$V$15*VLOOKUP('Crop 1'!$E$15,Carbon!$AH$4:$AI$10,2,FALSE),0)+IF('Crop 1'!$C$16=Carbon!$B54,'Crop 1'!$V$16*VLOOKUP('Crop 1'!$E$16,Carbon!$AH$4:$AI$10,2,FALSE),0)+IF('Crop 1'!$C$19=Carbon!$B54,'Crop 1'!$V$19*VLOOKUP('Crop 1'!$E$19,Carbon!$AH$4:$AI$10,2,FALSE),0)+IF('Crop 1'!$C$20=Carbon!$B54,'Crop 1'!$V$20*VLOOKUP('Crop 1'!$E$20,Carbon!$AH$4:$AI$10,2,FALSE),0)+IF('Crop 1'!$C$21=Carbon!$B54,'Crop 1'!$V$21*VLOOKUP('Crop 1'!$E$21,Carbon!$AH$4:$AI$10,2,FALSE),0)+IF('Crop 1'!$C$49=Carbon!$B54,'Crop 1'!$V$49*VLOOKUP('Crop 1'!$E$49,Carbon!$AH$4:$AI$10,2,FALSE),0)+IF('Crop 1'!$C$50=Carbon!$B54,'Crop 1'!$V$50*VLOOKUP('Crop 1'!$E$50,Carbon!$AH$4:$AI$10,2,FALSE),0)+IF('Crop 1'!$C$51=Carbon!$B54,'Crop 1'!$V$51*VLOOKUP('Crop 1'!$E$51,Carbon!$AH$4:$AI$10,2,FALSE),0)+IF('Crop 1'!$C$52=Carbon!$B54,'Crop 1'!$V$52*VLOOKUP('Crop 1'!$E$52,Carbon!$AH$4:$AI$10,2,FALSE),0)+IF('Crop 1'!$C$53=Carbon!$B54,'Crop 1'!$V$53*VLOOKUP('Crop 1'!$E$53,Carbon!$AH$4:$AI$10,2,FALSE),0)+IF('Crop 1'!$C$56=Carbon!$B54,'Crop 1'!$V$56*VLOOKUP('Crop 1'!$E$56,Carbon!$AH$4:$AI$10,2,FALSE),0)+IF('Crop 1'!$C$57=Carbon!$B54,'Crop 1'!$V$57*VLOOKUP('Crop 1'!$E$57,Carbon!$AH$4:$AI$10,2,FALSE),0)+IF('Crop 1'!$C$58=Carbon!$B54,'Crop 1'!$V$58*VLOOKUP('Crop 1'!$E$58,Carbon!$AH$4:$AI$10,2,FALSE),0)+IF('Crop 1'!$C$59=Carbon!$B54,'Crop 1'!$V$59*VLOOKUP('Crop 1'!$E$59,Carbon!$AH$4:$AI$10,2,FALSE),0)+IF('Crop 1'!$C$62=Carbon!$B54,'Crop 1'!$V$62*VLOOKUP('Crop 1'!$E$62,Carbon!$AH$4:$AI$10,2,FALSE),0)+IF('Crop 1'!$C$63=Carbon!$B54,'Crop 1'!$V$63*VLOOKUP('Crop 1'!$E$63,Carbon!$AH$4:$AI$10,2,FALSE),0)+IF('Crop 1'!$C$64=Carbon!$B54,'Crop 1'!$V$64*VLOOKUP('Crop 1'!$E$64,Carbon!$AH$4:$AI$10,2,FALSE),0)+IF('Crop 1'!$C$65=Carbon!$B54,'Crop 1'!$V$65*VLOOKUP('Crop 1'!$E$65,Carbon!$AH$4:$AI$10,2,FALSE),0))*$AL$20,2)","v":0},{"$f":"M54*Inputs!$D$13","v":0},{"$f":"ROUND((IF('Crop 2'!$C$14=Carbon!$B54,'Crop 2'!$V$14*VLOOKUP('Crop 2'!$E$14,Carbon!$AH$4:$AI$10,2,FALSE),0)+IF('Crop 2'!$C$15=Carbon!$B54,'Crop 2'!$V$15*VLOOKUP('Crop 2'!$E$15,Carbon!$AH$4:$AI$10,2,FALSE),0)+IF('Crop 2'!$C$16=Carbon!$B54,'Crop 2'!$V$16*VLOOKUP('Crop 2'!$E$16,Carbon!$AH$4:$AI$10,2,FALSE),0)+IF('Crop 2'!$C$19=Carbon!$B54,'Crop 2'!$V$19*VLOOKUP('Crop 2'!$E$19,Carbon!$AH$4:$AI$10,2,FALSE),0)+IF('Crop 2'!$C$20=Carbon!$B54,'Crop 2'!$V$20*VLOOKUP('Crop 2'!$E$20,Carbon!$AH$4:$AI$10,2,FALSE),0)+IF('Crop 2'!$C$21=Carbon!$B54,'Crop 2'!$V$21*VLOOKUP('Crop 2'!$E$21,Carbon!$AH$4:$AI$10,2,FALSE),0)+IF('Crop 2'!$C$49=Carbon!$B54,'Crop 2'!$V$49*VLOOKUP('Crop 2'!$E$49,Carbon!$AH$4:$AI$10,2,FALSE),0)+IF('Crop 2'!$C$50=Carbon!$B54,'Crop 2'!$V$50*VLOOKUP('Crop 2'!$E$50,Carbon!$AH$4:$AI$10,2,FALSE),0)+IF('Crop 2'!$C$51=Carbon!$B54,'Crop 2'!$V$51*VLOOKUP('Crop 2'!$E$51,Carbon!$AH$4:$AI$10,2,FALSE),0)+IF('Crop 2'!$C$52=Carbon!$B54,'Crop 2'!$V$52*VLOOKUP('Crop 2'!$E$52,Carbon!$AH$4:$AI$10,2,FALSE),0)+IF('Crop 2'!$C$53=Carbon!$B54,'Crop 2'!$V$53*VLOOKUP('Crop 2'!$E$53,Carbon!$AH$4:$AI$10,2,FALSE),0)+IF('Crop 2'!$C$56=Carbon!$B54,'Crop 2'!$V$56*VLOOKUP('Crop 2'!$E$56,Carbon!$AH$4:$AI$10,2,FALSE),0)+IF('Crop 2'!$C$57=Carbon!$B54,'Crop 2'!$V$57*VLOOKUP('Crop 2'!$E$57,Carbon!$AH$4:$AI$10,2,FALSE),0)+IF('Crop 2'!$C$58=Carbon!$B54,'Crop 2'!$V$58*VLOOKUP('Crop 2'!$E$58,Carbon!$AH$4:$AI$10,2,FALSE),0)+IF('Crop 2'!$C$59=Carbon!$B54,'Crop 2'!$V$59*VLOOKUP('Crop 2'!$E$59,Carbon!$AH$4:$AI$10,2,FALSE),0)+IF('Crop 2'!$C$62=Carbon!$B54,'Crop 2'!$V$62*VLOOKUP('Crop 2'!$E$62,Carbon!$AH$4:$AI$10,2,FALSE),0)+IF('Crop 2'!$C$63=Carbon!$B54,'Crop 2'!$V$63*VLOOKUP('Crop 2'!$E$63,Carbon!$AH$4:$AI$10,2,FALSE),0)+IF('Crop 2'!$C$64=Carbon!$B54,'Crop 2'!$V$64*VLOOKUP('Crop 2'!$E$64,Carbon!$AH$4:$AI$10,2,FALSE),0)+IF('Crop 2'!$C$65=Carbon!$B54,'Crop 2'!$V$65*VLOOKUP('Crop 2'!$E$65,Carbon!$AH$4:$AI$10,2,FALSE),0))*$AL$20,2)","v":0},{"$f":"O54*Inputs!$D$15","v":0},{"$f":"ROUND((IF('Crop 3'!$C$14=Carbon!$B54,'Crop 3'!$V$14*VLOOKUP('Crop 3'!$E$14,Carbon!$AH$4:$AI$10,2,FALSE),0)+IF('Crop 3'!$C$15=Carbon!$B54,'Crop 3'!$V$15*VLOOKUP('Crop 3'!$E$15,Carbon!$AH$4:$AI$10,2,FALSE),0)+IF('Crop 3'!$C$16=Carbon!$B54,'Crop 3'!$V$16*VLOOKUP('Crop 3'!$E$16,Carbon!$AH$4:$AI$10,2,FALSE),0)+IF('Crop 3'!$C$19=Carbon!$B54,'Crop 3'!$V$19*VLOOKUP('Crop 3'!$E$19,Carbon!$AH$4:$AI$10,2,FALSE),0)+IF('Crop 3'!$C$20=Carbon!$B54,'Crop 3'!$V$20*VLOOKUP('Crop 3'!$E$20,Carbon!$AH$4:$AI$10,2,FALSE),0)+IF('Crop 3'!$C$21=Carbon!$B54,'Crop 3'!$V$21*VLOOKUP('Crop 3'!$E$21,Carbon!$AH$4:$AI$10,2,FALSE),0)+IF('Crop 3'!$C$49=Carbon!$B54,'Crop 3'!$V$49*VLOOKUP('Crop 3'!$E$49,Carbon!$AH$4:$AI$10,2,FALSE),0)+IF('Crop 3'!$C$50=Carbon!$B54,'Crop 3'!$V$50*VLOOKUP('Crop 3'!$E$50,Carbon!$AH$4:$AI$10,2,FALSE),0)+IF('Crop 3'!$C$51=Carbon!$B54,'Crop 3'!$V$51*VLOOKUP('Crop 3'!$E$51,Carbon!$AH$4:$AI$10,2,FALSE),0)+IF('Crop 3'!$C$52=Carbon!$B54,'Crop 3'!$V$52*VLOOKUP('Crop 3'!$E$52,Carbon!$AH$4:$AI$10,2,FALSE),0)+IF('Crop 3'!$C$53=Carbon!$B54,'Crop 3'!$V$53*VLOOKUP('Crop 3'!$E$53,Carbon!$AH$4:$AI$10,2,FALSE),0)+IF('Crop 3'!$C$56=Carbon!$B54,'Crop 3'!$V$56*VLOOKUP('Crop 3'!$E$56,Carbon!$AH$4:$AI$10,2,FALSE),0)+IF('Crop 3'!$C$57=Carbon!$B54,'Crop 3'!$V$57*VLOOKUP('Crop 3'!$E$57,Carbon!$AH$4:$AI$10,2,FALSE),0)+IF('Crop 3'!$C$58=Carbon!$B54,'Crop 3'!$V$58*VLOOKUP('Crop 3'!$E$58,Carbon!$AH$4:$AI$10,2,FALSE),0)+IF('Crop 3'!$C$59=Carbon!$B54,'Crop 3'!$V$59*VLOOKUP('Crop 3'!$E$59,Carbon!$AH$4:$AI$10,2,FALSE),0)+IF('Crop 3'!$C$62=Carbon!$B54,'Crop 3'!$V$62*VLOOKUP('Crop 3'!$E$62,Carbon!$AH$4:$AI$10,2,FALSE),0)+IF('Crop 3'!$C$63=Carbon!$B54,'Crop 3'!$V$63*VLOOKUP('Crop 3'!$E$63,Carbon!$AH$4:$AI$10,2,FALSE),0)+IF('Crop 3'!$C$64=Carbon!$B54,'Crop 3'!$V$64*VLOOKUP('Crop 3'!$E$64,Carbon!$AH$4:$AI$10,2,FALSE),0)+IF('Crop 3'!$C$65=Carbon!$B54,'Crop 3'!$V$65*VLOOKUP('Crop 3'!$E$65,Carbon!$AH$4:$AI$10,2,FALSE),0))*$AL$20,2)","v":0},{"$f":"Q54*Inputs!$D$17","v":0},{"$f":"ROUND(T54/Inputs!D$19,2)","v":0},0,null,null,0,{"$f":"W54*Inputs!$D$13","v":0},0,{"$f":"Y54*Inputs!$D$13","v":0},0,{"$f":"AA54*Inputs!$D$13","v":0},{"$f":"ROUND(AD54/Inputs!D$19,2)","v":0},0]
[null,{"$f":"Defaults!AH21","v":"Boundary"},{"$f":"ROUND((IF('Crop 1'!$C$14=Carbon!$B55,'Crop 1'!$L$14*VLOOKUP('Crop 1'!$E$14,Carbon!$AH$4:$AI$10,2,FALSE),0)+IF('Crop 1'!$C$15=Carbon!$B55,'Crop 1'!$L$15*VLOOKUP('Crop 1'!$E$15,Carbon!$AH$4:$AI$10,2,FALSE),0)+IF('Crop 1'!$C$16=Carbon!$B55,'Crop 1'!$L$16*VLOOKUP('Crop 1'!$E$16,Carbon!$AH$4:$AI$10,2,FALSE),0)+IF('Crop 1'!$C$19=Carbon!$B55,'Crop 1'!$L$19*VLOOKUP('Crop 1'!$E$19,Carbon!$AH$4:$AI$10,2,FALSE),0)+IF('Crop 1'!$C$20=Carbon!$B55,'Crop 1'!$L$20*VLOOKUP('Crop 1'!$E$20,Carbon!$AH$4:$AI$10,2,FALSE),0)+IF('Crop 1'!$C$21=Carbon!$B55,'Crop 1'!$L$21*VLOOKUP('Crop 1'!$E$21,Carbon!$AH$4:$AI$10,2,FALSE),0)+IF('Crop 1'!$C$49=Carbon!$B55,'Crop 1'!$L$49*VLOOKUP('Crop 1'!$E$49,Carbon!$AH$4:$AI$10,2,FALSE),0)+IF('Crop 1'!$C$50=Carbon!$B55,'Crop 1'!$L$50*VLOOKUP('Crop 1'!$E$50,Carbon!$AH$4:$AI$10,2,FALSE),0)+IF('Crop 1'!$C$51=Carbon!$B55,'Crop 1'!$L$51*VLOOKUP('Crop 1'!$E$51,Carbon!$AH$4:$AI$10,2,FALSE),0)+IF('Crop 1'!$C$52=Carbon!$B55,'Crop 1'!$L$52*VLOOKUP('Crop 1'!$E$52,Carbon!$AH$4:$AI$10,2,FALSE),0)+IF('Crop 1'!$C$53=Carbon!$B55,'Crop 1'!$L$53*VLOOKUP('Crop 1'!$E$53,Carbon!$AH$4:$AI$10,2,FALSE),0)+IF('Crop 1'!$C$56=Carbon!$B55,'Crop 1'!$L$56*VLOOKUP('Crop 1'!$E$56,Carbon!$AH$4:$AI$10,2,FALSE),0)+IF('Crop 1'!$C$57=Carbon!$B55,'Crop 1'!$L$57*VLOOKUP('Crop 1'!$E$57,Carbon!$AH$4:$AI$10,2,FALSE),0)+IF('Crop 1'!$C$58=Carbon!$B55,'Crop 1'!$L$58*VLOOKUP('Crop 1'!$E$58,Carbon!$AH$4:$AI$10,2,FALSE),0)+IF('Crop 1'!$C$59=Carbon!$B55,'Crop 1'!$L$59*VLOOKUP('Crop 1'!$E$59,Carbon!$AH$4:$AI$10,2,FALSE),0)+IF('Crop 1'!$C$62=Carbon!$B55,'Crop 1'!$L$62*VLOOKUP('Crop 1'!$E$62,Carbon!$AH$4:$AI$10,2,FALSE),0)+IF('Crop 1'!$C$63=Carbon!$B55,'Crop 1'!$L$63*VLOOKUP('Crop 1'!$E$63,Carbon!$AH$4:$AI$10,2,FALSE),0)+IF('Crop 1'!$C$64=Carbon!$B55,'Crop 1'!$L$64*VLOOKUP('Crop 1'!$E$64,Carbon!$AH$4:$AI$10,2,FALSE),0)+IF('Crop 1'!$C$65=Carbon!$B55,'Crop 1'!$L$65*VLOOKUP('Crop 1'!$E$65,Carbon!$AH$4:$AI$10,2,FALSE),0))*$AL$20,2)","v":0},{"$f":"C55*Inputs!$D$13","v":0},{"$f":"ROUND((IF('Crop 2'!$C$14=Carbon!$B55,'Crop 2'!$L$14*VLOOKUP('Crop 2'!$E$14,Carbon!$AH$4:$AI$10,2,FALSE),0)+IF('Crop 2'!$C$15=Carbon!$B55,'Crop 2'!$L$15*VLOOKUP('Crop 2'!$E$15,Carbon!$AH$4:$AI$10,2,FALSE),0)+IF('Crop 2'!$C$16=Carbon!$B55,'Crop 2'!$L$16*VLOOKUP('Crop 2'!$E$16,Carbon!$AH$4:$AI$10,2,FALSE),0)+IF('Crop 2'!$C$19=Carbon!$B55,'Crop 2'!$L$19*VLOOKUP('Crop 2'!$E$19,Carbon!$AH$4:$AI$10,2,FALSE),0)+IF('Crop 2'!$C$20=Carbon!$B55,'Crop 2'!$L$20*VLOOKUP('Crop 2'!$E$20,Carbon!$AH$4:$AI$10,2,FALSE),0)+IF('Crop 2'!$C$21=Carbon!$B55,'Crop 2'!$L$21*VLOOKUP('Crop 2'!$E$21,Carbon!$AH$4:$AI$10,2,FALSE),0)+IF('Crop 2'!$C$49=Carbon!$B55,'Crop 2'!$L$49*VLOOKUP('Crop 2'!$E$49,Carbon!$AH$4:$AI$10,2,FALSE),0)+IF('Crop 2'!$C$50=Carbon!$B55,'Crop 2'!$L$50*VLOOKUP('Crop 2'!$E$50,Carbon!$AH$4:$AI$10,2,FALSE),0)+IF('Crop 2'!$C$51=Carbon!$B55,'Crop 2'!$L$51*VLOOKUP('Crop 2'!$E$51,Carbon!$AH$4:$AI$10,2,FALSE),0)+IF('Crop 2'!$C$52=Carbon!$B55,'Crop 2'!$L$52*VLOOKUP('Crop 2'!$E$52,Carbon!$AH$4:$AI$10,2,FALSE),0)+IF('Crop 2'!$C$53=Carbon!$B55,'Crop 2'!$L$53*VLOOKUP('Crop 2'!$E$53,Carbon!$AH$4:$AI$10,2,FALSE),0)+IF('Crop 2'!$C$56=Carbon!$B55,'Crop 2'!$L$56*VLOOKUP('Crop 2'!$E$56,Carbon!$AH$4:$AI$10,2,FALSE),0)+IF('Crop 2'!$C$57=Carbon!$B55,'Crop 2'!$L$57*VLOOKUP('Crop 2'!$E$57,Carbon!$AH$4:$AI$10,2,FALSE),0)+IF('Crop 2'!$C$58=Carbon!$B55,'Crop 2'!$L$58*VLOOKUP('Crop 2'!$E$58,Carbon!$AH$4:$AI$10,2,FALSE),0)+IF('Crop 2'!$C$59=Carbon!$B55,'Crop 2'!$L$59*VLOOKUP('Crop 2'!$E$59,Carbon!$AH$4:$AI$10,2,FALSE),0)+IF('Crop 2'!$C$62=Carbon!$B55,'Crop 2'!$L$62*VLOOKUP('Crop 2'!$E$62,Carbon!$AH$4:$AI$10,2,FALSE),0)+IF('Crop 2'!$C$63=Carbon!$B55,'Crop 2'!$L$63*VLOOKUP('Crop 2'!$E$63,Carbon!$AH$4:$AI$10,2,FALSE),0)+IF('Crop 2'!$C$64=Carbon!$B55,'Crop 2'!$L$64*VLOOKUP('Crop 2'!$E$64,Carbon!$AH$4:$AI$10,2,FALSE),0)+IF('Crop 2'!$C$65=Carbon!$B55,'Crop 2'!$L$65*VLOOKUP('Crop 2'!$E$65,Carbon!$AH$4:$AI$10,2,FALSE),0))*$AL$20,2)","v":0},{"$f":"E55*Inputs!$D$15","v":0},{"$f":"ROUND((IF('Crop 3'!$C$14=Carbon!$B55,'Crop 3'!$L$14*VLOOKUP('Crop 3'!$E$14,Carbon!$AH$4:$AI$10,2,FALSE),0)+IF('Crop 3'!$C$15=Carbon!$B55,'Crop 3'!$L$15*VLOOKUP('Crop 3'!$E$15,Carbon!$AH$4:$AI$10,2,FALSE),0)+IF('Crop 3'!$C$16=Carbon!$B55,'Crop 3'!$L$16*VLOOKUP('Crop 3'!$E$16,Carbon!$AH$4:$AI$10,2,FALSE),0)+IF('Crop 3'!$C$19=Carbon!$B55,'Crop 3'!$L$19*VLOOKUP('Crop 3'!$E$19,Carbon!$AH$4:$AI$10,2,FALSE),0)+IF('Crop 3'!$C$20=Carbon!$B55,'Crop 3'!$L$20*VLOOKUP('Crop 3'!$E$20,Carbon!$AH$4:$AI$10,2,FALSE),0)+IF('Crop 3'!$C$21=Carbon!$B55,'Crop 3'!$L$21*VLOOKUP('Crop 3'!$E$21,Carbon!$AH$4:$AI$10,2,FALSE),0)+IF('Crop 3'!$C$49=Carbon!$B55,'Crop 3'!$L$49*VLOOKUP('Crop 3'!$E$49,Carbon!$AH$4:$AI$10,2,FALSE),0)+IF('Crop 3'!$C$50=Carbon!$B55,'Crop 3'!$L$50*VLOOKUP('Crop 3'!$E$50,Carbon!$AH$4:$AI$10,2,FALSE),0)+IF('Crop 3'!$C$51=Carbon!$B55,'Crop 3'!$L$51*VLOOKUP('Crop 3'!$E$51,Carbon!$AH$4:$AI$10,2,FALSE),0)+IF('Crop 3'!$C$52=Carbon!$B55,'Crop 3'!$L$52*VLOOKUP('Crop 3'!$E$52,Carbon!$AH$4:$AI$10,2,FALSE),0)+IF('Crop 3'!$C$53=Carbon!$B55,'Crop 3'!$L$53*VLOOKUP('Crop 3'!$E$53,Carbon!$AH$4:$AI$10,2,FALSE),0)+IF('Crop 3'!$C$56=Carbon!$B55,'Crop 3'!$L$56*VLOOKUP('Crop 3'!$E$56,Carbon!$AH$4:$AI$10,2,FALSE),0)+IF('Crop 3'!$C$57=Carbon!$B55,'Crop 3'!$L$57*VLOOKUP('Crop 3'!$E$57,Carbon!$AH$4:$AI$10,2,FALSE),0)+IF('Crop 3'!$C$58=Carbon!$B55,'Crop 3'!$L$58*VLOOKUP('Crop 3'!$E$58,Carbon!$AH$4:$AI$10,2,FALSE),0)+IF('Crop 3'!$C$59=Carbon!$B55,'Crop 3'!$L$59*VLOOKUP('Crop 3'!$E$59,Carbon!$AH$4:$AI$10,2,FALSE),0)+IF('Crop 3'!$C$62=Carbon!$B55,'Crop 3'!$L$62*VLOOKUP('Crop 3'!$E$62,Carbon!$AH$4:$AI$10,2,FALSE),0)+IF('Crop 3'!$C$63=Carbon!$B55,'Crop 3'!$L$63*VLOOKUP('Crop 3'!$E$63,Carbon!$AH$4:$AI$10,2,FALSE),0)+IF('Crop 3'!$C$64=Carbon!$B55,'Crop 3'!$L$64*VLOOKUP('Crop 3'!$E$64,Carbon!$AH$4:$AI$10,2,FALSE),0)+IF('Crop 3'!$C$65=Carbon!$B55,'Crop 3'!$L$65*VLOOKUP('Crop 3'!$E$65,Carbon!$AH$4:$AI$10,2,FALSE),0))*$AL$20,2)","v":0},{"$f":"G55*Inputs!$D$17","v":0},{"$f":"ROUND(J55/Inputs!D$19,2)","v":0},0,null,null,{"$f":"ROUND((IF('Crop 1'!$C$14=Carbon!$B55,'Crop 1'!$V$14*VLOOKUP('Crop 1'!$E$14,Carbon!$AH$4:$AI$10,2,FALSE),0)+IF('Crop 1'!$C$15=Carbon!$B55,'Crop 1'!$V$15*VLOOKUP('Crop 1'!$E$15,Carbon!$AH$4:$AI$10,2,FALSE),0)+IF('Crop 1'!$C$16=Carbon!$B55,'Crop 1'!$V$16*VLOOKUP('Crop 1'!$E$16,Carbon!$AH$4:$AI$10,2,FALSE),0)+IF('Crop 1'!$C$19=Carbon!$B55,'Crop 1'!$V$19*VLOOKUP('Crop 1'!$E$19,Carbon!$AH$4:$AI$10,2,FALSE),0)+IF('Crop 1'!$C$20=Carbon!$B55,'Crop 1'!$V$20*VLOOKUP('Crop 1'!$E$20,Carbon!$AH$4:$AI$10,2,FALSE),0)+IF('Crop 1'!$C$21=Carbon!$B55,'Crop 1'!$V$21*VLOOKUP('Crop 1'!$E$21,Carbon!$AH$4:$AI$10,2,FALSE),0)+IF('Crop 1'!$C$49=Carbon!$B55,'Crop 1'!$V$49*VLOOKUP('Crop 1'!$E$49,Carbon!$AH$4:$AI$10,2,FALSE),0)+IF('Crop 1'!$C$50=Carbon!$B55,'Crop 1'!$V$50*VLOOKUP('Crop 1'!$E$50,Carbon!$AH$4:$AI$10,2,FALSE),0)+IF('Crop 1'!$C$51=Carbon!$B55,'Crop 1'!$V$51*VLOOKUP('Crop 1'!$E$51,Carbon!$AH$4:$AI$10,2,FALSE),0)+IF('Crop 1'!$C$52=Carbon!$B55,'Crop 1'!$V$52*VLOOKUP('Crop 1'!$E$52,Carbon!$AH$4:$AI$10,2,FALSE),0)+IF('Crop 1'!$C$53=Carbon!$B55,'Crop 1'!$V$53*VLOOKUP('Crop 1'!$E$53,Carbon!$AH$4:$AI$10,2,FALSE),0)+IF('Crop 1'!$C$56=Carbon!$B55,'Crop 1'!$V$56*VLOOKUP('Crop 1'!$E$56,Carbon!$AH$4:$AI$10,2,FALSE),0)+IF('Crop 1'!$C$57=Carbon!$B55,'Crop 1'!$V$57*VLOOKUP('Crop 1'!$E$57,Carbon!$AH$4:$AI$10,2,FALSE),0)+IF('Crop 1'!$C$58=Carbon!$B55,'Crop 1'!$V$58*VLOOKUP('Crop 1'!$E$58,Carbon!$AH$4:$AI$10,2,FALSE),0)+IF('Crop 1'!$C$59=Carbon!$B55,'Crop 1'!$V$59*VLOOKUP('Crop 1'!$E$59,Carbon!$AH$4:$AI$10,2,FALSE),0)+IF('Crop 1'!$C$62=Carbon!$B55,'Crop 1'!$V$62*VLOOKUP('Crop 1'!$E$62,Carbon!$AH$4:$AI$10,2,FALSE),0)+IF('Crop 1'!$C$63=Carbon!$B55,'Crop 1'!$V$63*VLOOKUP('Crop 1'!$E$63,Carbon!$AH$4:$AI$10,2,FALSE),0)+IF('Crop 1'!$C$64=Carbon!$B55,'Crop 1'!$V$64*VLOOKUP('Crop 1'!$E$64,Carbon!$AH$4:$AI$10,2,FALSE),0)+IF('Crop 1'!$C$65=Carbon!$B55,'Crop 1'!$V$65*VLOOKUP('Crop 1'!$E$65,Carbon!$AH$4:$AI$10,2,FALSE),0))*$AL$20,2)","v":0},{"$f":"M55*Inputs!$D$13","v":0},{"$f":"ROUND((IF('Crop 2'!$C$14=Carbon!$B55,'Crop 2'!$V$14*VLOOKUP('Crop 2'!$E$14,Carbon!$AH$4:$AI$10,2,FALSE),0)+IF('Crop 2'!$C$15=Carbon!$B55,'Crop 2'!$V$15*VLOOKUP('Crop 2'!$E$15,Carbon!$AH$4:$AI$10,2,FALSE),0)+IF('Crop 2'!$C$16=Carbon!$B55,'Crop 2'!$V$16*VLOOKUP('Crop 2'!$E$16,Carbon!$AH$4:$AI$10,2,FALSE),0)+IF('Crop 2'!$C$19=Carbon!$B55,'Crop 2'!$V$19*VLOOKUP('Crop 2'!$E$19,Carbon!$AH$4:$AI$10,2,FALSE),0)+IF('Crop 2'!$C$20=Carbon!$B55,'Crop 2'!$V$20*VLOOKUP('Crop 2'!$E$20,Carbon!$AH$4:$AI$10,2,FALSE),0)+IF('Crop 2'!$C$21=Carbon!$B55,'Crop 2'!$V$21*VLOOKUP('Crop 2'!$E$21,Carbon!$AH$4:$AI$10,2,FALSE),0)+IF('Crop 2'!$C$49=Carbon!$B55,'Crop 2'!$V$49*VLOOKUP('Crop 2'!$E$49,Carbon!$AH$4:$AI$10,2,FALSE),0)+IF('Crop 2'!$C$50=Carbon!$B55,'Crop 2'!$V$50*VLOOKUP('Crop 2'!$E$50,Carbon!$AH$4:$AI$10,2,FALSE),0)+IF('Crop 2'!$C$51=Carbon!$B55,'Crop 2'!$V$51*VLOOKUP('Crop 2'!$E$51,Carbon!$AH$4:$AI$10,2,FALSE),0)+IF('Crop 2'!$C$52=Carbon!$B55,'Crop 2'!$V$52*VLOOKUP('Crop 2'!$E$52,Carbon!$AH$4:$AI$10,2,FALSE),0)+IF('Crop 2'!$C$53=Carbon!$B55,'Crop 2'!$V$53*VLOOKUP('Crop 2'!$E$53,Carbon!$AH$4:$AI$10,2,FALSE),0)+IF('Crop 2'!$C$56=Carbon!$B55,'Crop 2'!$V$56*VLOOKUP('Crop 2'!$E$56,Carbon!$AH$4:$AI$10,2,FALSE),0)+IF('Crop 2'!$C$57=Carbon!$B55,'Crop 2'!$V$57*VLOOKUP('Crop 2'!$E$57,Carbon!$AH$4:$AI$10,2,FALSE),0)+IF('Crop 2'!$C$58=Carbon!$B55,'Crop 2'!$V$58*VLOOKUP('Crop 2'!$E$58,Carbon!$AH$4:$AI$10,2,FALSE),0)+IF('Crop 2'!$C$59=Carbon!$B55,'Crop 2'!$V$59*VLOOKUP('Crop 2'!$E$59,Carbon!$AH$4:$AI$10,2,FALSE),0)+IF('Crop 2'!$C$62=Carbon!$B55,'Crop 2'!$V$62*VLOOKUP('Crop 2'!$E$62,Carbon!$AH$4:$AI$10,2,FALSE),0)+IF('Crop 2'!$C$63=Carbon!$B55,'Crop 2'!$V$63*VLOOKUP('Crop 2'!$E$63,Carbon!$AH$4:$AI$10,2,FALSE),0)+IF('Crop 2'!$C$64=Carbon!$B55,'Crop 2'!$V$64*VLOOKUP('Crop 2'!$E$64,Carbon!$AH$4:$AI$10,2,FALSE),0)+IF('Crop 2'!$C$65=Carbon!$B55,'Crop 2'!$V$65*VLOOKUP('Crop 2'!$E$65,Carbon!$AH$4:$AI$10,2,FALSE),0))*$AL$20,2)","v":0},{"$f":"O55*Inputs!$D$15","v":0},{"$f":"ROUND((IF('Crop 3'!$C$14=Carbon!$B55,'Crop 3'!$V$14*VLOOKUP('Crop 3'!$E$14,Carbon!$AH$4:$AI$10,2,FALSE),0)+IF('Crop 3'!$C$15=Carbon!$B55,'Crop 3'!$V$15*VLOOKUP('Crop 3'!$E$15,Carbon!$AH$4:$AI$10,2,FALSE),0)+IF('Crop 3'!$C$16=Carbon!$B55,'Crop 3'!$V$16*VLOOKUP('Crop 3'!$E$16,Carbon!$AH$4:$AI$10,2,FALSE),0)+IF('Crop 3'!$C$19=Carbon!$B55,'Crop 3'!$V$19*VLOOKUP('Crop 3'!$E$19,Carbon!$AH$4:$AI$10,2,FALSE),0)+IF('Crop 3'!$C$20=Carbon!$B55,'Crop 3'!$V$20*VLOOKUP('Crop 3'!$E$20,Carbon!$AH$4:$AI$10,2,FALSE),0)+IF('Crop 3'!$C$21=Carbon!$B55,'Crop 3'!$V$21*VLOOKUP('Crop 3'!$E$21,Carbon!$AH$4:$AI$10,2,FALSE),0)+IF('Crop 3'!$C$49=Carbon!$B55,'Crop 3'!$V$49*VLOOKUP('Crop 3'!$E$49,Carbon!$AH$4:$AI$10,2,FALSE),0)+IF('Crop 3'!$C$50=Carbon!$B55,'Crop 3'!$V$50*VLOOKUP('Crop 3'!$E$50,Carbon!$AH$4:$AI$10,2,FALSE),0)+IF('Crop 3'!$C$51=Carbon!$B55,'Crop 3'!$V$51*VLOOKUP('Crop 3'!$E$51,Carbon!$AH$4:$AI$10,2,FALSE),0)+IF('Crop 3'!$C$52=Carbon!$B55,'Crop 3'!$V$52*VLOOKUP('Crop 3'!$E$52,Carbon!$AH$4:$AI$10,2,FALSE),0)+IF('Crop 3'!$C$53=Carbon!$B55,'Crop 3'!$V$53*VLOOKUP('Crop 3'!$E$53,Carbon!$AH$4:$AI$10,2,FALSE),0)+IF('Crop 3'!$C$56=Carbon!$B55,'Crop 3'!$V$56*VLOOKUP('Crop 3'!$E$56,Carbon!$AH$4:$AI$10,2,FALSE),0)+IF('Crop 3'!$C$57=Carbon!$B55,'Crop 3'!$V$57*VLOOKUP('Crop 3'!$E$57,Carbon!$AH$4:$AI$10,2,FALSE),0)+IF('Crop 3'!$C$58=Carbon!$B55,'Crop 3'!$V$58*VLOOKUP('Crop 3'!$E$58,Carbon!$AH$4:$AI$10,2,FALSE),0)+IF('Crop 3'!$C$59=Carbon!$B55,'Crop 3'!$V$59*VLOOKUP('Crop 3'!$E$59,Carbon!$AH$4:$AI$10,2,FALSE),0)+IF('Crop 3'!$C$62=Carbon!$B55,'Crop 3'!$V$62*VLOOKUP('Crop 3'!$E$62,Carbon!$AH$4:$AI$10,2,FALSE),0)+IF('Crop 3'!$C$63=Carbon!$B55,'Crop 3'!$V$63*VLOOKUP('Crop 3'!$E$63,Carbon!$AH$4:$AI$10,2,FALSE),0)+IF('Crop 3'!$C$64=Carbon!$B55,'Crop 3'!$V$64*VLOOKUP('Crop 3'!$E$64,Carbon!$AH$4:$AI$10,2,FALSE),0)+IF('Crop 3'!$C$65=Carbon!$B55,'Crop 3'!$V$65*VLOOKUP('Crop 3'!$E$65,Carbon!$AH$4:$AI$10,2,FALSE),0))*$AL$20,2)","v":0},{"$f":"Q55*Inputs!$D$17","v":0},{"$f":"ROUND(T55/Inputs!D$19,2)","v":0},0,null,null,0,{"$f":"W55*Inputs!$D$13","v":0},0,{"$f":"Y55*Inputs!$D$13","v":0},0,{"$f":"AA55*Inputs!$D$13","v":0},{"$f":"ROUND(AD55/Inputs!D$19,2)","v":0},0]
[null,{"$f":"Defaults!AH22","v":"Brake"},{"$f":"ROUND((IF('Crop 1'!$C$14=Carbon!$B56,'Crop 1'!$L$14*VLOOKUP('Crop 1'!$E$14,Carbon!$AH$4:$AI$10,2,FALSE),0)+IF('Crop 1'!$C$15=Carbon!$B56,'Crop 1'!$L$15*VLOOKUP('Crop 1'!$E$15,Carbon!$AH$4:$AI$10,2,FALSE),0)+IF('Crop 1'!$C$16=Carbon!$B56,'Crop 1'!$L$16*VLOOKUP('Crop 1'!$E$16,Carbon!$AH$4:$AI$10,2,FALSE),0)+IF('Crop 1'!$C$19=Carbon!$B56,'Crop 1'!$L$19*VLOOKUP('Crop 1'!$E$19,Carbon!$AH$4:$AI$10,2,FALSE),0)+IF('Crop 1'!$C$20=Carbon!$B56,'Crop 1'!$L$20*VLOOKUP('Crop 1'!$E$20,Carbon!$AH$4:$AI$10,2,FALSE),0)+IF('Crop 1'!$C$21=Carbon!$B56,'Crop 1'!$L$21*VLOOKUP('Crop 1'!$E$21,Carbon!$AH$4:$AI$10,2,FALSE),0)+IF('Crop 1'!$C$49=Carbon!$B56,'Crop 1'!$L$49*VLOOKUP('Crop 1'!$E$49,Carbon!$AH$4:$AI$10,2,FALSE),0)+IF('Crop 1'!$C$50=Carbon!$B56,'Crop 1'!$L$50*VLOOKUP('Crop 1'!$E$50,Carbon!$AH$4:$AI$10,2,FALSE),0)+IF('Crop 1'!$C$51=Carbon!$B56,'Crop 1'!$L$51*VLOOKUP('Crop 1'!$E$51,Carbon!$AH$4:$AI$10,2,FALSE),0)+IF('Crop 1'!$C$52=Carbon!$B56,'Crop 1'!$L$52*VLOOKUP('Crop 1'!$E$52,Carbon!$AH$4:$AI$10,2,FALSE),0)+IF('Crop 1'!$C$53=Carbon!$B56,'Crop 1'!$L$53*VLOOKUP('Crop 1'!$E$53,Carbon!$AH$4:$AI$10,2,FALSE),0)+IF('Crop 1'!$C$56=Carbon!$B56,'Crop 1'!$L$56*VLOOKUP('Crop 1'!$E$56,Carbon!$AH$4:$AI$10,2,FALSE),0)+IF('Crop 1'!$C$57=Carbon!$B56,'Crop 1'!$L$57*VLOOKUP('Crop 1'!$E$57,Carbon!$AH$4:$AI$10,2,FALSE),0)+IF('Crop 1'!$C$58=Carbon!$B56,'Crop 1'!$L$58*VLOOKUP('Crop 1'!$E$58,Carbon!$AH$4:$AI$10,2,FALSE),0)+IF('Crop 1'!$C$59=Carbon!$B56,'Crop 1'!$L$59*VLOOKUP('Crop 1'!$E$59,Carbon!$AH$4:$AI$10,2,FALSE),0)+IF('Crop 1'!$C$62=Carbon!$B56,'Crop 1'!$L$62*VLOOKUP('Crop 1'!$E$62,Carbon!$AH$4:$AI$10,2,FALSE),0)+IF('Crop 1'!$C$63=Carbon!$B56,'Crop 1'!$L$63*VLOOKUP('Crop 1'!$E$63,Carbon!$AH$4:$AI$10,2,FALSE),0)+IF('Crop 1'!$C$64=Carbon!$B56,'Crop 1'!$L$64*VLOOKUP('Crop 1'!$E$64,Carbon!$AH$4:$AI$10,2,FALSE),0)+IF('Crop 1'!$C$65=Carbon!$B56,'Crop 1'!$L$65*VLOOKUP('Crop 1'!$E$65,Carbon!$AH$4:$AI$10,2,FALSE),0))*$AL$20,2)","v":0},{"$f":"C56*Inputs!$D$13","v":0},{"$f":"ROUND((IF('Crop 2'!$C$14=Carbon!$B56,'Crop 2'!$L$14*VLOOKUP('Crop 2'!$E$14,Carbon!$AH$4:$AI$10,2,FALSE),0)+IF('Crop 2'!$C$15=Carbon!$B56,'Crop 2'!$L$15*VLOOKUP('Crop 2'!$E$15,Carbon!$AH$4:$AI$10,2,FALSE),0)+IF('Crop 2'!$C$16=Carbon!$B56,'Crop 2'!$L$16*VLOOKUP('Crop 2'!$E$16,Carbon!$AH$4:$AI$10,2,FALSE),0)+IF('Crop 2'!$C$19=Carbon!$B56,'Crop 2'!$L$19*VLOOKUP('Crop 2'!$E$19,Carbon!$AH$4:$AI$10,2,FALSE),0)+IF('Crop 2'!$C$20=Carbon!$B56,'Crop 2'!$L$20*VLOOKUP('Crop 2'!$E$20,Carbon!$AH$4:$AI$10,2,FALSE),0)+IF('Crop 2'!$C$21=Carbon!$B56,'Crop 2'!$L$21*VLOOKUP('Crop 2'!$E$21,Carbon!$AH$4:$AI$10,2,FALSE),0)+IF('Crop 2'!$C$49=Carbon!$B56,'Crop 2'!$L$49*VLOOKUP('Crop 2'!$E$49,Carbon!$AH$4:$AI$10,2,FALSE),0)+IF('Crop 2'!$C$50=Carbon!$B56,'Crop 2'!$L$50*VLOOKUP('Crop 2'!$E$50,Carbon!$AH$4:$AI$10,2,FALSE),0)+IF('Crop 2'!$C$51=Carbon!$B56,'Crop 2'!$L$51*VLOOKUP('Crop 2'!$E$51,Carbon!$AH$4:$AI$10,2,FALSE),0)+IF('Crop 2'!$C$52=Carbon!$B56,'Crop 2'!$L$52*VLOOKUP('Crop 2'!$E$52,Carbon!$AH$4:$AI$10,2,FALSE),0)+IF('Crop 2'!$C$53=Carbon!$B56,'Crop 2'!$L$53*VLOOKUP('Crop 2'!$E$53,Carbon!$AH$4:$AI$10,2,FALSE),0)+IF('Crop 2'!$C$56=Carbon!$B56,'Crop 2'!$L$56*VLOOKUP('Crop 2'!$E$56,Carbon!$AH$4:$AI$10,2,FALSE),0)+IF('Crop 2'!$C$57=Carbon!$B56,'Crop 2'!$L$57*VLOOKUP('Crop 2'!$E$57,Carbon!$AH$4:$AI$10,2,FALSE),0)+IF('Crop 2'!$C$58=Carbon!$B56,'Crop 2'!$L$58*VLOOKUP('Crop 2'!$E$58,Carbon!$AH$4:$AI$10,2,FALSE),0)+IF('Crop 2'!$C$59=Carbon!$B56,'Crop 2'!$L$59*VLOOKUP('Crop 2'!$E$59,Carbon!$AH$4:$AI$10,2,FALSE),0)+IF('Crop 2'!$C$62=Carbon!$B56,'Crop 2'!$L$62*VLOOKUP('Crop 2'!$E$62,Carbon!$AH$4:$AI$10,2,FALSE),0)+IF('Crop 2'!$C$63=Carbon!$B56,'Crop 2'!$L$63*VLOOKUP('Crop 2'!$E$63,Carbon!$AH$4:$AI$10,2,FALSE),0)+IF('Crop 2'!$C$64=Carbon!$B56,'Crop 2'!$L$64*VLOOKUP('Crop 2'!$E$64,Carbon!$AH$4:$AI$10,2,FALSE),0)+IF('Crop 2'!$C$65=Carbon!$B56,'Crop 2'!$L$65*VLOOKUP('Crop 2'!$E$65,Carbon!$AH$4:$AI$10,2,FALSE),0))*$AL$20,2)","v":0},{"$f":"E56*Inputs!$D$15","v":0},{"$f":"ROUND((IF('Crop 3'!$C$14=Carbon!$B56,'Crop 3'!$L$14*VLOOKUP('Crop 3'!$E$14,Carbon!$AH$4:$AI$10,2,FALSE),0)+IF('Crop 3'!$C$15=Carbon!$B56,'Crop 3'!$L$15*VLOOKUP('Crop 3'!$E$15,Carbon!$AH$4:$AI$10,2,FALSE),0)+IF('Crop 3'!$C$16=Carbon!$B56,'Crop 3'!$L$16*VLOOKUP('Crop 3'!$E$16,Carbon!$AH$4:$AI$10,2,FALSE),0)+IF('Crop 3'!$C$19=Carbon!$B56,'Crop 3'!$L$19*VLOOKUP('Crop 3'!$E$19,Carbon!$AH$4:$AI$10,2,FALSE),0)+IF('Crop 3'!$C$20=Carbon!$B56,'Crop 3'!$L$20*VLOOKUP('Crop 3'!$E$20,Carbon!$AH$4:$AI$10,2,FALSE),0)+IF('Crop 3'!$C$21=Carbon!$B56,'Crop 3'!$L$21*VLOOKUP('Crop 3'!$E$21,Carbon!$AH$4:$AI$10,2,FALSE),0)+IF('Crop 3'!$C$49=Carbon!$B56,'Crop 3'!$L$49*VLOOKUP('Crop 3'!$E$49,Carbon!$AH$4:$AI$10,2,FALSE),0)+IF('Crop 3'!$C$50=Carbon!$B56,'Crop 3'!$L$50*VLOOKUP('Crop 3'!$E$50,Carbon!$AH$4:$AI$10,2,FALSE),0)+IF('Crop 3'!$C$51=Carbon!$B56,'Crop 3'!$L$51*VLOOKUP('Crop 3'!$E$51,Carbon!$AH$4:$AI$10,2,FALSE),0)+IF('Crop 3'!$C$52=Carbon!$B56,'Crop 3'!$L$52*VLOOKUP('Crop 3'!$E$52,Carbon!$AH$4:$AI$10,2,FALSE),0)+IF('Crop 3'!$C$53=Carbon!$B56,'Crop 3'!$L$53*VLOOKUP('Crop 3'!$E$53,Carbon!$AH$4:$AI$10,2,FALSE),0)+IF('Crop 3'!$C$56=Carbon!$B56,'Crop 3'!$L$56*VLOOKUP('Crop 3'!$E$56,Carbon!$AH$4:$AI$10,2,FALSE),0)+IF('Crop 3'!$C$57=Carbon!$B56,'Crop 3'!$L$57*VLOOKUP('Crop 3'!$E$57,Carbon!$AH$4:$AI$10,2,FALSE),0)+IF('Crop 3'!$C$58=Carbon!$B56,'Crop 3'!$L$58*VLOOKUP('Crop 3'!$E$58,Carbon!$AH$4:$AI$10,2,FALSE),0)+IF('Crop 3'!$C$59=Carbon!$B56,'Crop 3'!$L$59*VLOOKUP('Crop 3'!$E$59,Carbon!$AH$4:$AI$10,2,FALSE),0)+IF('Crop 3'!$C$62=Carbon!$B56,'Crop 3'!$L$62*VLOOKUP('Crop 3'!$E$62,Carbon!$AH$4:$AI$10,2,FALSE),0)+IF('Crop 3'!$C$63=Carbon!$B56,'Crop 3'!$L$63*VLOOKUP('Crop 3'!$E$63,Carbon!$AH$4:$AI$10,2,FALSE),0)+IF('Crop 3'!$C$64=Carbon!$B56,'Crop 3'!$L$64*VLOOKUP('Crop 3'!$E$64,Carbon!$AH$4:$AI$10,2,FALSE),0)+IF('Crop 3'!$C$65=Carbon!$B56,'Crop 3'!$L$65*VLOOKUP('Crop 3'!$E$65,Carbon!$AH$4:$AI$10,2,FALSE),0))*$AL$20,2)","v":0},{"$f":"G56*Inputs!$D$17","v":0},{"$f":"ROUND(J56/Inputs!D$19,2)","v":0},0,null,null,{"$f":"ROUND((IF('Crop 1'!$C$14=Carbon!$B56,'Crop 1'!$V$14*VLOOKUP('Crop 1'!$E$14,Carbon!$AH$4:$AI$10,2,FALSE),0)+IF('Crop 1'!$C$15=Carbon!$B56,'Crop 1'!$V$15*VLOOKUP('Crop 1'!$E$15,Carbon!$AH$4:$AI$10,2,FALSE),0)+IF('Crop 1'!$C$16=Carbon!$B56,'Crop 1'!$V$16*VLOOKUP('Crop 1'!$E$16,Carbon!$AH$4:$AI$10,2,FALSE),0)+IF('Crop 1'!$C$19=Carbon!$B56,'Crop 1'!$V$19*VLOOKUP('Crop 1'!$E$19,Carbon!$AH$4:$AI$10,2,FALSE),0)+IF('Crop 1'!$C$20=Carbon!$B56,'Crop 1'!$V$20*VLOOKUP('Crop 1'!$E$20,Carbon!$AH$4:$AI$10,2,FALSE),0)+IF('Crop 1'!$C$21=Carbon!$B56,'Crop 1'!$V$21*VLOOKUP('Crop 1'!$E$21,Carbon!$AH$4:$AI$10,2,FALSE),0)+IF('Crop 1'!$C$49=Carbon!$B56,'Crop 1'!$V$49*VLOOKUP('Crop 1'!$E$49,Carbon!$AH$4:$AI$10,2,FALSE),0)+IF('Crop 1'!$C$50=Carbon!$B56,'Crop 1'!$V$50*VLOOKUP('Crop 1'!$E$50,Carbon!$AH$4:$AI$10,2,FALSE),0)+IF('Crop 1'!$C$51=Carbon!$B56,'Crop 1'!$V$51*VLOOKUP('Crop 1'!$E$51,Carbon!$AH$4:$AI$10,2,FALSE),0)+IF('Crop 1'!$C$52=Carbon!$B56,'Crop 1'!$V$52*VLOOKUP('Crop 1'!$E$52,Carbon!$AH$4:$AI$10,2,FALSE),0)+IF('Crop 1'!$C$53=Carbon!$B56,'Crop 1'!$V$53*VLOOKUP('Crop 1'!$E$53,Carbon!$AH$4:$AI$10,2,FALSE),0)+IF('Crop 1'!$C$56=Carbon!$B56,'Crop 1'!$V$56*VLOOKUP('Crop 1'!$E$56,Carbon!$AH$4:$AI$10,2,FALSE),0)+IF('Crop 1'!$C$57=Carbon!$B56,'Crop 1'!$V$57*VLOOKUP('Crop 1'!$E$57,Carbon!$AH$4:$AI$10,2,FALSE),0)+IF('Crop 1'!$C$58=Carbon!$B56,'Crop 1'!$V$58*VLOOKUP('Crop 1'!$E$58,Carbon!$AH$4:$AI$10,2,FALSE),0)+IF('Crop 1'!$C$59=Carbon!$B56,'Crop 1'!$V$59*VLOOKUP('Crop 1'!$E$59,Carbon!$AH$4:$AI$10,2,FALSE),0)+IF('Crop 1'!$C$62=Carbon!$B56,'Crop 1'!$V$62*VLOOKUP('Crop 1'!$E$62,Carbon!$AH$4:$AI$10,2,FALSE),0)+IF('Crop 1'!$C$63=Carbon!$B56,'Crop 1'!$V$63*VLOOKUP('Crop 1'!$E$63,Carbon!$AH$4:$AI$10,2,FALSE),0)+IF('Crop 1'!$C$64=Carbon!$B56,'Crop 1'!$V$64*VLOOKUP('Crop 1'!$E$64,Carbon!$AH$4:$AI$10,2,FALSE),0)+IF('Crop 1'!$C$65=Carbon!$B56,'Crop 1'!$V$65*VLOOKUP('Crop 1'!$E$65,Carbon!$AH$4:$AI$10,2,FALSE),0))*$AL$20,2)","v":0},{"$f":"M56*Inputs!$D$13","v":0},{"$f":"ROUND((IF('Crop 2'!$C$14=Carbon!$B56,'Crop 2'!$V$14*VLOOKUP('Crop 2'!$E$14,Carbon!$AH$4:$AI$10,2,FALSE),0)+IF('Crop 2'!$C$15=Carbon!$B56,'Crop 2'!$V$15*VLOOKUP('Crop 2'!$E$15,Carbon!$AH$4:$AI$10,2,FALSE),0)+IF('Crop 2'!$C$16=Carbon!$B56,'Crop 2'!$V$16*VLOOKUP('Crop 2'!$E$16,Carbon!$AH$4:$AI$10,2,FALSE),0)+IF('Crop 2'!$C$19=Carbon!$B56,'Crop 2'!$V$19*VLOOKUP('Crop 2'!$E$19,Carbon!$AH$4:$AI$10,2,FALSE),0)+IF('Crop 2'!$C$20=Carbon!$B56,'Crop 2'!$V$20*VLOOKUP('Crop 2'!$E$20,Carbon!$AH$4:$AI$10,2,FALSE),0)+IF('Crop 2'!$C$21=Carbon!$B56,'Crop 2'!$V$21*VLOOKUP('Crop 2'!$E$21,Carbon!$AH$4:$AI$10,2,FALSE),0)+IF('Crop 2'!$C$49=Carbon!$B56,'Crop 2'!$V$49*VLOOKUP('Crop 2'!$E$49,Carbon!$AH$4:$AI$10,2,FALSE),0)+IF('Crop 2'!$C$50=Carbon!$B56,'Crop 2'!$V$50*VLOOKUP('Crop 2'!$E$50,Carbon!$AH$4:$AI$10,2,FALSE),0)+IF('Crop 2'!$C$51=Carbon!$B56,'Crop 2'!$V$51*VLOOKUP('Crop 2'!$E$51,Carbon!$AH$4:$AI$10,2,FALSE),0)+IF('Crop 2'!$C$52=Carbon!$B56,'Crop 2'!$V$52*VLOOKUP('Crop 2'!$E$52,Carbon!$AH$4:$AI$10,2,FALSE),0)+IF('Crop 2'!$C$53=Carbon!$B56,'Crop 2'!$V$53*VLOOKUP('Crop 2'!$E$53,Carbon!$AH$4:$AI$10,2,FALSE),0)+IF('Crop 2'!$C$56=Carbon!$B56,'Crop 2'!$V$56*VLOOKUP('Crop 2'!$E$56,Carbon!$AH$4:$AI$10,2,FALSE),0)+IF('Crop 2'!$C$57=Carbon!$B56,'Crop 2'!$V$57*VLOOKUP('Crop 2'!$E$57,Carbon!$AH$4:$AI$10,2,FALSE),0)+IF('Crop 2'!$C$58=Carbon!$B56,'Crop 2'!$V$58*VLOOKUP('Crop 2'!$E$58,Carbon!$AH$4:$AI$10,2,FALSE),0)+IF('Crop 2'!$C$59=Carbon!$B56,'Crop 2'!$V$59*VLOOKUP('Crop 2'!$E$59,Carbon!$AH$4:$AI$10,2,FALSE),0)+IF('Crop 2'!$C$62=Carbon!$B56,'Crop 2'!$V$62*VLOOKUP('Crop 2'!$E$62,Carbon!$AH$4:$AI$10,2,FALSE),0)+IF('Crop 2'!$C$63=Carbon!$B56,'Crop 2'!$V$63*VLOOKUP('Crop 2'!$E$63,Carbon!$AH$4:$AI$10,2,FALSE),0)+IF('Crop 2'!$C$64=Carbon!$B56,'Crop 2'!$V$64*VLOOKUP('Crop 2'!$E$64,Carbon!$AH$4:$AI$10,2,FALSE),0)+IF('Crop 2'!$C$65=Carbon!$B56,'Crop 2'!$V$65*VLOOKUP('Crop 2'!$E$65,Carbon!$AH$4:$AI$10,2,FALSE),0))*$AL$20,2)","v":0},{"$f":"O56*Inputs!$D$15","v":0},{"$f":"ROUND((IF('Crop 3'!$C$14=Carbon!$B56,'Crop 3'!$V$14*VLOOKUP('Crop 3'!$E$14,Carbon!$AH$4:$AI$10,2,FALSE),0)+IF('Crop 3'!$C$15=Carbon!$B56,'Crop 3'!$V$15*VLOOKUP('Crop 3'!$E$15,Carbon!$AH$4:$AI$10,2,FALSE),0)+IF('Crop 3'!$C$16=Carbon!$B56,'Crop 3'!$V$16*VLOOKUP('Crop 3'!$E$16,Carbon!$AH$4:$AI$10,2,FALSE),0)+IF('Crop 3'!$C$19=Carbon!$B56,'Crop 3'!$V$19*VLOOKUP('Crop 3'!$E$19,Carbon!$AH$4:$AI$10,2,FALSE),0)+IF('Crop 3'!$C$20=Carbon!$B56,'Crop 3'!$V$20*VLOOKUP('Crop 3'!$E$20,Carbon!$AH$4:$AI$10,2,FALSE),0)+IF('Crop 3'!$C$21=Carbon!$B56,'Crop 3'!$V$21*VLOOKUP('Crop 3'!$E$21,Carbon!$AH$4:$AI$10,2,FALSE),0)+IF('Crop 3'!$C$49=Carbon!$B56,'Crop 3'!$V$49*VLOOKUP('Crop 3'!$E$49,Carbon!$AH$4:$AI$10,2,FALSE),0)+IF('Crop 3'!$C$50=Carbon!$B56,'Crop 3'!$V$50*VLOOKUP('Crop 3'!$E$50,Carbon!$AH$4:$AI$10,2,FALSE),0)+IF('Crop 3'!$C$51=Carbon!$B56,'Crop 3'!$V$51*VLOOKUP('Crop 3'!$E$51,Carbon!$AH$4:$AI$10,2,FALSE),0)+IF('Crop 3'!$C$52=Carbon!$B56,'Crop 3'!$V$52*VLOOKUP('Crop 3'!$E$52,Carbon!$AH$4:$AI$10,2,FALSE),0)+IF('Crop 3'!$C$53=Carbon!$B56,'Crop 3'!$V$53*VLOOKUP('Crop 3'!$E$53,Carbon!$AH$4:$AI$10,2,FALSE),0)+IF('Crop 3'!$C$56=Carbon!$B56,'Crop 3'!$V$56*VLOOKUP('Crop 3'!$E$56,Carbon!$AH$4:$AI$10,2,FALSE),0)+IF('Crop 3'!$C$57=Carbon!$B56,'Crop 3'!$V$57*VLOOKUP('Crop 3'!$E$57,Carbon!$AH$4:$AI$10,2,FALSE),0)+IF('Crop 3'!$C$58=Carbon!$B56,'Crop 3'!$V$58*VLOOKUP('Crop 3'!$E$58,Carbon!$AH$4:$AI$10,2,FALSE),0)+IF('Crop 3'!$C$59=Carbon!$B56,'Crop 3'!$V$59*VLOOKUP('Crop 3'!$E$59,Carbon!$AH$4:$AI$10,2,FALSE),0)+IF('Crop 3'!$C$62=Carbon!$B56,'Crop 3'!$V$62*VLOOKUP('Crop 3'!$E$62,Carbon!$AH$4:$AI$10,2,FALSE),0)+IF('Crop 3'!$C$63=Carbon!$B56,'Crop 3'!$V$63*VLOOKUP('Crop 3'!$E$63,Carbon!$AH$4:$AI$10,2,FALSE),0)+IF('Crop 3'!$C$64=Carbon!$B56,'Crop 3'!$V$64*VLOOKUP('Crop 3'!$E$64,Carbon!$AH$4:$AI$10,2,FALSE),0)+IF('Crop 3'!$C$65=Carbon!$B56,'Crop 3'!$V$65*VLOOKUP('Crop 3'!$E$65,Carbon!$AH$4:$AI$10,2,FALSE),0))*$AL$20,2)","v":0},{"$f":"Q56*Inputs!$D$17","v":0},{"$f":"ROUND(T56/Inputs!D$19,2)","v":0},0,null,null,0,{"$f":"W56*Inputs!$D$13","v":0},0,{"$f":"Y56*Inputs!$D$13","v":0},0,{"$f":"AA56*Inputs!$D$13","v":0},{"$f":"ROUND(AD56/Inputs!D$19,2)","v":0},0]
[null,{"$f":"Defaults!AH23","v":"BroadAxe XC"},{"$f":"ROUND((IF('Crop 1'!$C$14=Carbon!$B57,'Crop 1'!$L$14*VLOOKUP('Crop 1'!$E$14,Carbon!$AH$4:$AI$10,2,FALSE),0)+IF('Crop 1'!$C$15=Carbon!$B57,'Crop 1'!$L$15*VLOOKUP('Crop 1'!$E$15,Carbon!$AH$4:$AI$10,2,FALSE),0)+IF('Crop 1'!$C$16=Carbon!$B57,'Crop 1'!$L$16*VLOOKUP('Crop 1'!$E$16,Carbon!$AH$4:$AI$10,2,FALSE),0)+IF('Crop 1'!$C$19=Carbon!$B57,'Crop 1'!$L$19*VLOOKUP('Crop 1'!$E$19,Carbon!$AH$4:$AI$10,2,FALSE),0)+IF('Crop 1'!$C$20=Carbon!$B57,'Crop 1'!$L$20*VLOOKUP('Crop 1'!$E$20,Carbon!$AH$4:$AI$10,2,FALSE),0)+IF('Crop 1'!$C$21=Carbon!$B57,'Crop 1'!$L$21*VLOOKUP('Crop 1'!$E$21,Carbon!$AH$4:$AI$10,2,FALSE),0)+IF('Crop 1'!$C$49=Carbon!$B57,'Crop 1'!$L$49*VLOOKUP('Crop 1'!$E$49,Carbon!$AH$4:$AI$10,2,FALSE),0)+IF('Crop 1'!$C$50=Carbon!$B57,'Crop 1'!$L$50*VLOOKUP('Crop 1'!$E$50,Carbon!$AH$4:$AI$10,2,FALSE),0)+IF('Crop 1'!$C$51=Carbon!$B57,'Crop 1'!$L$51*VLOOKUP('Crop 1'!$E$51,Carbon!$AH$4:$AI$10,2,FALSE),0)+IF('Crop 1'!$C$52=Carbon!$B57,'Crop 1'!$L$52*VLOOKUP('Crop 1'!$E$52,Carbon!$AH$4:$AI$10,2,FALSE),0)+IF('Crop 1'!$C$53=Carbon!$B57,'Crop 1'!$L$53*VLOOKUP('Crop 1'!$E$53,Carbon!$AH$4:$AI$10,2,FALSE),0)+IF('Crop 1'!$C$56=Carbon!$B57,'Crop 1'!$L$56*VLOOKUP('Crop 1'!$E$56,Carbon!$AH$4:$AI$10,2,FALSE),0)+IF('Crop 1'!$C$57=Carbon!$B57,'Crop 1'!$L$57*VLOOKUP('Crop 1'!$E$57,Carbon!$AH$4:$AI$10,2,FALSE),0)+IF('Crop 1'!$C$58=Carbon!$B57,'Crop 1'!$L$58*VLOOKUP('Crop 1'!$E$58,Carbon!$AH$4:$AI$10,2,FALSE),0)+IF('Crop 1'!$C$59=Carbon!$B57,'Crop 1'!$L$59*VLOOKUP('Crop 1'!$E$59,Carbon!$AH$4:$AI$10,2,FALSE),0)+IF('Crop 1'!$C$62=Carbon!$B57,'Crop 1'!$L$62*VLOOKUP('Crop 1'!$E$62,Carbon!$AH$4:$AI$10,2,FALSE),0)+IF('Crop 1'!$C$63=Carbon!$B57,'Crop 1'!$L$63*VLOOKUP('Crop 1'!$E$63,Carbon!$AH$4:$AI$10,2,FALSE),0)+IF('Crop 1'!$C$64=Carbon!$B57,'Crop 1'!$L$64*VLOOKUP('Crop 1'!$E$64,Carbon!$AH$4:$AI$10,2,FALSE),0)+IF('Crop 1'!$C$65=Carbon!$B57,'Crop 1'!$L$65*VLOOKUP('Crop 1'!$E$65,Carbon!$AH$4:$AI$10,2,FALSE),0))*$AL$20,2)","v":0},{"$f":"C57*Inputs!$D$13","v":0},{"$f":"ROUND((IF('Crop 2'!$C$14=Carbon!$B57,'Crop 2'!$L$14*VLOOKUP('Crop 2'!$E$14,Carbon!$AH$4:$AI$10,2,FALSE),0)+IF('Crop 2'!$C$15=Carbon!$B57,'Crop 2'!$L$15*VLOOKUP('Crop 2'!$E$15,Carbon!$AH$4:$AI$10,2,FALSE),0)+IF('Crop 2'!$C$16=Carbon!$B57,'Crop 2'!$L$16*VLOOKUP('Crop 2'!$E$16,Carbon!$AH$4:$AI$10,2,FALSE),0)+IF('Crop 2'!$C$19=Carbon!$B57,'Crop 2'!$L$19*VLOOKUP('Crop 2'!$E$19,Carbon!$AH$4:$AI$10,2,FALSE),0)+IF('Crop 2'!$C$20=Carbon!$B57,'Crop 2'!$L$20*VLOOKUP('Crop 2'!$E$20,Carbon!$AH$4:$AI$10,2,FALSE),0)+IF('Crop 2'!$C$21=Carbon!$B57,'Crop 2'!$L$21*VLOOKUP('Crop 2'!$E$21,Carbon!$AH$4:$AI$10,2,FALSE),0)+IF('Crop 2'!$C$49=Carbon!$B57,'Crop 2'!$L$49*VLOOKUP('Crop 2'!$E$49,Carbon!$AH$4:$AI$10,2,FALSE),0)+IF('Crop 2'!$C$50=Carbon!$B57,'Crop 2'!$L$50*VLOOKUP('Crop 2'!$E$50,Carbon!$AH$4:$AI$10,2,FALSE),0)+IF('Crop 2'!$C$51=Carbon!$B57,'Crop 2'!$L$51*VLOOKUP('Crop 2'!$E$51,Carbon!$AH$4:$AI$10,2,FALSE),0)+IF('Crop 2'!$C$52=Carbon!$B57,'Crop 2'!$L$52*VLOOKUP('Crop 2'!$E$52,Carbon!$AH$4:$AI$10,2,FALSE),0)+IF('Crop 2'!$C$53=Carbon!$B57,'Crop 2'!$L$53*VLOOKUP('Crop 2'!$E$53,Carbon!$AH$4:$AI$10,2,FALSE),0)+IF('Crop 2'!$C$56=Carbon!$B57,'Crop 2'!$L$56*VLOOKUP('Crop 2'!$E$56,Carbon!$AH$4:$AI$10,2,FALSE),0)+IF('Crop 2'!$C$57=Carbon!$B57,'Crop 2'!$L$57*VLOOKUP('Crop 2'!$E$57,Carbon!$AH$4:$AI$10,2,FALSE),0)+IF('Crop 2'!$C$58=Carbon!$B57,'Crop 2'!$L$58*VLOOKUP('Crop 2'!$E$58,Carbon!$AH$4:$AI$10,2,FALSE),0)+IF('Crop 2'!$C$59=Carbon!$B57,'Crop 2'!$L$59*VLOOKUP('Crop 2'!$E$59,Carbon!$AH$4:$AI$10,2,FALSE),0)+IF('Crop 2'!$C$62=Carbon!$B57,'Crop 2'!$L$62*VLOOKUP('Crop 2'!$E$62,Carbon!$AH$4:$AI$10,2,FALSE),0)+IF('Crop 2'!$C$63=Carbon!$B57,'Crop 2'!$L$63*VLOOKUP('Crop 2'!$E$63,Carbon!$AH$4:$AI$10,2,FALSE),0)+IF('Crop 2'!$C$64=Carbon!$B57,'Crop 2'!$L$64*VLOOKUP('Crop 2'!$E$64,Carbon!$AH$4:$AI$10,2,FALSE),0)+IF('Crop 2'!$C$65=Carbon!$B57,'Crop 2'!$L$65*VLOOKUP('Crop 2'!$E$65,Carbon!$AH$4:$AI$10,2,FALSE),0))*$AL$20,2)","v":0},{"$f":"E57*Inputs!$D$15","v":0},{"$f":"ROUND((IF('Crop 3'!$C$14=Carbon!$B57,'Crop 3'!$L$14*VLOOKUP('Crop 3'!$E$14,Carbon!$AH$4:$AI$10,2,FALSE),0)+IF('Crop 3'!$C$15=Carbon!$B57,'Crop 3'!$L$15*VLOOKUP('Crop 3'!$E$15,Carbon!$AH$4:$AI$10,2,FALSE),0)+IF('Crop 3'!$C$16=Carbon!$B57,'Crop 3'!$L$16*VLOOKUP('Crop 3'!$E$16,Carbon!$AH$4:$AI$10,2,FALSE),0)+IF('Crop 3'!$C$19=Carbon!$B57,'Crop 3'!$L$19*VLOOKUP('Crop 3'!$E$19,Carbon!$AH$4:$AI$10,2,FALSE),0)+IF('Crop 3'!$C$20=Carbon!$B57,'Crop 3'!$L$20*VLOOKUP('Crop 3'!$E$20,Carbon!$AH$4:$AI$10,2,FALSE),0)+IF('Crop 3'!$C$21=Carbon!$B57,'Crop 3'!$L$21*VLOOKUP('Crop 3'!$E$21,Carbon!$AH$4:$AI$10,2,FALSE),0)+IF('Crop 3'!$C$49=Carbon!$B57,'Crop 3'!$L$49*VLOOKUP('Crop 3'!$E$49,Carbon!$AH$4:$AI$10,2,FALSE),0)+IF('Crop 3'!$C$50=Carbon!$B57,'Crop 3'!$L$50*VLOOKUP('Crop 3'!$E$50,Carbon!$AH$4:$AI$10,2,FALSE),0)+IF('Crop 3'!$C$51=Carbon!$B57,'Crop 3'!$L$51*VLOOKUP('Crop 3'!$E$51,Carbon!$AH$4:$AI$10,2,FALSE),0)+IF('Crop 3'!$C$52=Carbon!$B57,'Crop 3'!$L$52*VLOOKUP('Crop 3'!$E$52,Carbon!$AH$4:$AI$10,2,FALSE),0)+IF('Crop 3'!$C$53=Carbon!$B57,'Crop 3'!$L$53*VLOOKUP('Crop 3'!$E$53,Carbon!$AH$4:$AI$10,2,FALSE),0)+IF('Crop 3'!$C$56=Carbon!$B57,'Crop 3'!$L$56*VLOOKUP('Crop 3'!$E$56,Carbon!$AH$4:$AI$10,2,FALSE),0)+IF('Crop 3'!$C$57=Carbon!$B57,'Crop 3'!$L$57*VLOOKUP('Crop 3'!$E$57,Carbon!$AH$4:$AI$10,2,FALSE),0)+IF('Crop 3'!$C$58=Carbon!$B57,'Crop 3'!$L$58*VLOOKUP('Crop 3'!$E$58,Carbon!$AH$4:$AI$10,2,FALSE),0)+IF('Crop 3'!$C$59=Carbon!$B57,'Crop 3'!$L$59*VLOOKUP('Crop 3'!$E$59,Carbon!$AH$4:$AI$10,2,FALSE),0)+IF('Crop 3'!$C$62=Carbon!$B57,'Crop 3'!$L$62*VLOOKUP('Crop 3'!$E$62,Carbon!$AH$4:$AI$10,2,FALSE),0)+IF('Crop 3'!$C$63=Carbon!$B57,'Crop 3'!$L$63*VLOOKUP('Crop 3'!$E$63,Carbon!$AH$4:$AI$10,2,FALSE),0)+IF('Crop 3'!$C$64=Carbon!$B57,'Crop 3'!$L$64*VLOOKUP('Crop 3'!$E$64,Carbon!$AH$4:$AI$10,2,FALSE),0)+IF('Crop 3'!$C$65=Carbon!$B57,'Crop 3'!$L$65*VLOOKUP('Crop 3'!$E$65,Carbon!$AH$4:$AI$10,2,FALSE),0))*$AL$20,2)","v":0},{"$f":"G57*Inputs!$D$17","v":0},{"$f":"ROUND(J57/Inputs!D$19,2)","v":0},0,null,null,{"$f":"ROUND((IF('Crop 1'!$C$14=Carbon!$B57,'Crop 1'!$V$14*VLOOKUP('Crop 1'!$E$14,Carbon!$AH$4:$AI$10,2,FALSE),0)+IF('Crop 1'!$C$15=Carbon!$B57,'Crop 1'!$V$15*VLOOKUP('Crop 1'!$E$15,Carbon!$AH$4:$AI$10,2,FALSE),0)+IF('Crop 1'!$C$16=Carbon!$B57,'Crop 1'!$V$16*VLOOKUP('Crop 1'!$E$16,Carbon!$AH$4:$AI$10,2,FALSE),0)+IF('Crop 1'!$C$19=Carbon!$B57,'Crop 1'!$V$19*VLOOKUP('Crop 1'!$E$19,Carbon!$AH$4:$AI$10,2,FALSE),0)+IF('Crop 1'!$C$20=Carbon!$B57,'Crop 1'!$V$20*VLOOKUP('Crop 1'!$E$20,Carbon!$AH$4:$AI$10,2,FALSE),0)+IF('Crop 1'!$C$21=Carbon!$B57,'Crop 1'!$V$21*VLOOKUP('Crop 1'!$E$21,Carbon!$AH$4:$AI$10,2,FALSE),0)+IF('Crop 1'!$C$49=Carbon!$B57,'Crop 1'!$V$49*VLOOKUP('Crop 1'!$E$49,Carbon!$AH$4:$AI$10,2,FALSE),0)+IF('Crop 1'!$C$50=Carbon!$B57,'Crop 1'!$V$50*VLOOKUP('Crop 1'!$E$50,Carbon!$AH$4:$AI$10,2,FALSE),0)+IF('Crop 1'!$C$51=Carbon!$B57,'Crop 1'!$V$51*VLOOKUP('Crop 1'!$E$51,Carbon!$AH$4:$AI$10,2,FALSE),0)+IF('Crop 1'!$C$52=Carbon!$B57,'Crop 1'!$V$52*VLOOKUP('Crop 1'!$E$52,Carbon!$AH$4:$AI$10,2,FALSE),0)+IF('Crop 1'!$C$53=Carbon!$B57,'Crop 1'!$V$53*VLOOKUP('Crop 1'!$E$53,Carbon!$AH$4:$AI$10,2,FALSE),0)+IF('Crop 1'!$C$56=Carbon!$B57,'Crop 1'!$V$56*VLOOKUP('Crop 1'!$E$56,Carbon!$AH$4:$AI$10,2,FALSE),0)+IF('Crop 1'!$C$57=Carbon!$B57,'Crop 1'!$V$57*VLOOKUP('Crop 1'!$E$57,Carbon!$AH$4:$AI$10,2,FALSE),0)+IF('Crop 1'!$C$58=Carbon!$B57,'Crop 1'!$V$58*VLOOKUP('Crop 1'!$E$58,Carbon!$AH$4:$AI$10,2,FALSE),0)+IF('Crop 1'!$C$59=Carbon!$B57,'Crop 1'!$V$59*VLOOKUP('Crop 1'!$E$59,Carbon!$AH$4:$AI$10,2,FALSE),0)+IF('Crop 1'!$C$62=Carbon!$B57,'Crop 1'!$V$62*VLOOKUP('Crop 1'!$E$62,Carbon!$AH$4:$AI$10,2,FALSE),0)+IF('Crop 1'!$C$63=Carbon!$B57,'Crop 1'!$V$63*VLOOKUP('Crop 1'!$E$63,Carbon!$AH$4:$AI$10,2,FALSE),0)+IF('Crop 1'!$C$64=Carbon!$B57,'Crop 1'!$V$64*VLOOKUP('Crop 1'!$E$64,Carbon!$AH$4:$AI$10,2,FALSE),0)+IF('Crop 1'!$C$65=Carbon!$B57,'Crop 1'!$V$65*VLOOKUP('Crop 1'!$E$65,Carbon!$AH$4:$AI$10,2,FALSE),0))*$AL$20,2)","v":0},{"$f":"M57*Inputs!$D$13","v":0},{"$f":"ROUND((IF('Crop 2'!$C$14=Carbon!$B57,'Crop 2'!$V$14*VLOOKUP('Crop 2'!$E$14,Carbon!$AH$4:$AI$10,2,FALSE),0)+IF('Crop 2'!$C$15=Carbon!$B57,'Crop 2'!$V$15*VLOOKUP('Crop 2'!$E$15,Carbon!$AH$4:$AI$10,2,FALSE),0)+IF('Crop 2'!$C$16=Carbon!$B57,'Crop 2'!$V$16*VLOOKUP('Crop 2'!$E$16,Carbon!$AH$4:$AI$10,2,FALSE),0)+IF('Crop 2'!$C$19=Carbon!$B57,'Crop 2'!$V$19*VLOOKUP('Crop 2'!$E$19,Carbon!$AH$4:$AI$10,2,FALSE),0)+IF('Crop 2'!$C$20=Carbon!$B57,'Crop 2'!$V$20*VLOOKUP('Crop 2'!$E$20,Carbon!$AH$4:$AI$10,2,FALSE),0)+IF('Crop 2'!$C$21=Carbon!$B57,'Crop 2'!$V$21*VLOOKUP('Crop 2'!$E$21,Carbon!$AH$4:$AI$10,2,FALSE),0)+IF('Crop 2'!$C$49=Carbon!$B57,'Crop 2'!$V$49*VLOOKUP('Crop 2'!$E$49,Carbon!$AH$4:$AI$10,2,FALSE),0)+IF('Crop 2'!$C$50=Carbon!$B57,'Crop 2'!$V$50*VLOOKUP('Crop 2'!$E$50,Carbon!$AH$4:$AI$10,2,FALSE),0)+IF('Crop 2'!$C$51=Carbon!$B57,'Crop 2'!$V$51*VLOOKUP('Crop 2'!$E$51,Carbon!$AH$4:$AI$10,2,FALSE),0)+IF('Crop 2'!$C$52=Carbon!$B57,'Crop 2'!$V$52*VLOOKUP('Crop 2'!$E$52,Carbon!$AH$4:$AI$10,2,FALSE),0)+IF('Crop 2'!$C$53=Carbon!$B57,'Crop 2'!$V$53*VLOOKUP('Crop 2'!$E$53,Carbon!$AH$4:$AI$10,2,FALSE),0)+IF('Crop 2'!$C$56=Carbon!$B57,'Crop 2'!$V$56*VLOOKUP('Crop 2'!$E$56,Carbon!$AH$4:$AI$10,2,FALSE),0)+IF('Crop 2'!$C$57=Carbon!$B57,'Crop 2'!$V$57*VLOOKUP('Crop 2'!$E$57,Carbon!$AH$4:$AI$10,2,FALSE),0)+IF('Crop 2'!$C$58=Carbon!$B57,'Crop 2'!$V$58*VLOOKUP('Crop 2'!$E$58,Carbon!$AH$4:$AI$10,2,FALSE),0)+IF('Crop 2'!$C$59=Carbon!$B57,'Crop 2'!$V$59*VLOOKUP('Crop 2'!$E$59,Carbon!$AH$4:$AI$10,2,FALSE),0)+IF('Crop 2'!$C$62=Carbon!$B57,'Crop 2'!$V$62*VLOOKUP('Crop 2'!$E$62,Carbon!$AH$4:$AI$10,2,FALSE),0)+IF('Crop 2'!$C$63=Carbon!$B57,'Crop 2'!$V$63*VLOOKUP('Crop 2'!$E$63,Carbon!$AH$4:$AI$10,2,FALSE),0)+IF('Crop 2'!$C$64=Carbon!$B57,'Crop 2'!$V$64*VLOOKUP('Crop 2'!$E$64,Carbon!$AH$4:$AI$10,2,FALSE),0)+IF('Crop 2'!$C$65=Carbon!$B57,'Crop 2'!$V$65*VLOOKUP('Crop 2'!$E$65,Carbon!$AH$4:$AI$10,2,FALSE),0))*$AL$20,2)","v":0},{"$f":"O57*Inputs!$D$15","v":0},{"$f":"ROUND((IF('Crop 3'!$C$14=Carbon!$B57,'Crop 3'!$V$14*VLOOKUP('Crop 3'!$E$14,Carbon!$AH$4:$AI$10,2,FALSE),0)+IF('Crop 3'!$C$15=Carbon!$B57,'Crop 3'!$V$15*VLOOKUP('Crop 3'!$E$15,Carbon!$AH$4:$AI$10,2,FALSE),0)+IF('Crop 3'!$C$16=Carbon!$B57,'Crop 3'!$V$16*VLOOKUP('Crop 3'!$E$16,Carbon!$AH$4:$AI$10,2,FALSE),0)+IF('Crop 3'!$C$19=Carbon!$B57,'Crop 3'!$V$19*VLOOKUP('Crop 3'!$E$19,Carbon!$AH$4:$AI$10,2,FALSE),0)+IF('Crop 3'!$C$20=Carbon!$B57,'Crop 3'!$V$20*VLOOKUP('Crop 3'!$E$20,Carbon!$AH$4:$AI$10,2,FALSE),0)+IF('Crop 3'!$C$21=Carbon!$B57,'Crop 3'!$V$21*VLOOKUP('Crop 3'!$E$21,Carbon!$AH$4:$AI$10,2,FALSE),0)+IF('Crop 3'!$C$49=Carbon!$B57,'Crop 3'!$V$49*VLOOKUP('Crop 3'!$E$49,Carbon!$AH$4:$AI$10,2,FALSE),0)+IF('Crop 3'!$C$50=Carbon!$B57,'Crop 3'!$V$50*VLOOKUP('Crop 3'!$E$50,Carbon!$AH$4:$AI$10,2,FALSE),0)+IF('Crop 3'!$C$51=Carbon!$B57,'Crop 3'!$V$51*VLOOKUP('Crop 3'!$E$51,Carbon!$AH$4:$AI$10,2,FALSE),0)+IF('Crop 3'!$C$52=Carbon!$B57,'Crop 3'!$V$52*VLOOKUP('Crop 3'!$E$52,Carbon!$AH$4:$AI$10,2,FALSE),0)+IF('Crop 3'!$C$53=Carbon!$B57,'Crop 3'!$V$53*VLOOKUP('Crop 3'!$E$53,Carbon!$AH$4:$AI$10,2,FALSE),0)+IF('Crop 3'!$C$56=Carbon!$B57,'Crop 3'!$V$56*VLOOKUP('Crop 3'!$E$56,Carbon!$AH$4:$AI$10,2,FALSE),0)+IF('Crop 3'!$C$57=Carbon!$B57,'Crop 3'!$V$57*VLOOKUP('Crop 3'!$E$57,Carbon!$AH$4:$AI$10,2,FALSE),0)+IF('Crop 3'!$C$58=Carbon!$B57,'Crop 3'!$V$58*VLOOKUP('Crop 3'!$E$58,Carbon!$AH$4:$AI$10,2,FALSE),0)+IF('Crop 3'!$C$59=Carbon!$B57,'Crop 3'!$V$59*VLOOKUP('Crop 3'!$E$59,Carbon!$AH$4:$AI$10,2,FALSE),0)+IF('Crop 3'!$C$62=Carbon!$B57,'Crop 3'!$V$62*VLOOKUP('Crop 3'!$E$62,Carbon!$AH$4:$AI$10,2,FALSE),0)+IF('Crop 3'!$C$63=Carbon!$B57,'Crop 3'!$V$63*VLOOKUP('Crop 3'!$E$63,Carbon!$AH$4:$AI$10,2,FALSE),0)+IF('Crop 3'!$C$64=Carbon!$B57,'Crop 3'!$V$64*VLOOKUP('Crop 3'!$E$64,Carbon!$AH$4:$AI$10,2,FALSE),0)+IF('Crop 3'!$C$65=Carbon!$B57,'Crop 3'!$V$65*VLOOKUP('Crop 3'!$E$65,Carbon!$AH$4:$AI$10,2,FALSE),0))*$AL$20,2)","v":0},{"$f":"Q57*Inputs!$D$17","v":0},{"$f":"ROUND(T57/Inputs!D$19,2)","v":0},0,null,null,0,{"$f":"W57*Inputs!$D$13","v":0},0,{"$f":"Y57*Inputs!$D$13","v":0},0,{"$f":"AA57*Inputs!$D$13","v":0},{"$f":"ROUND(AD57/Inputs!D$19,2)","v":0},0]
[null,{"$f":"Defaults!AH24","v":"Buctril"},{"$f":"ROUND((IF('Crop 1'!$C$14=Carbon!$B58,'Crop 1'!$L$14*VLOOKUP('Crop 1'!$E$14,Carbon!$AH$4:$AI$10,2,FALSE),0)+IF('Crop 1'!$C$15=Carbon!$B58,'Crop 1'!$L$15*VLOOKUP('Crop 1'!$E$15,Carbon!$AH$4:$AI$10,2,FALSE),0)+IF('Crop 1'!$C$16=Carbon!$B58,'Crop 1'!$L$16*VLOOKUP('Crop 1'!$E$16,Carbon!$AH$4:$AI$10,2,FALSE),0)+IF('Crop 1'!$C$19=Carbon!$B58,'Crop 1'!$L$19*VLOOKUP('Crop 1'!$E$19,Carbon!$AH$4:$AI$10,2,FALSE),0)+IF('Crop 1'!$C$20=Carbon!$B58,'Crop 1'!$L$20*VLOOKUP('Crop 1'!$E$20,Carbon!$AH$4:$AI$10,2,FALSE),0)+IF('Crop 1'!$C$21=Carbon!$B58,'Crop 1'!$L$21*VLOOKUP('Crop 1'!$E$21,Carbon!$AH$4:$AI$10,2,FALSE),0)+IF('Crop 1'!$C$49=Carbon!$B58,'Crop 1'!$L$49*VLOOKUP('Crop 1'!$E$49,Carbon!$AH$4:$AI$10,2,FALSE),0)+IF('Crop 1'!$C$50=Carbon!$B58,'Crop 1'!$L$50*VLOOKUP('Crop 1'!$E$50,Carbon!$AH$4:$AI$10,2,FALSE),0)+IF('Crop 1'!$C$51=Carbon!$B58,'Crop 1'!$L$51*VLOOKUP('Crop 1'!$E$51,Carbon!$AH$4:$AI$10,2,FALSE),0)+IF('Crop 1'!$C$52=Carbon!$B58,'Crop 1'!$L$52*VLOOKUP('Crop 1'!$E$52,Carbon!$AH$4:$AI$10,2,FALSE),0)+IF('Crop 1'!$C$53=Carbon!$B58,'Crop 1'!$L$53*VLOOKUP('Crop 1'!$E$53,Carbon!$AH$4:$AI$10,2,FALSE),0)+IF('Crop 1'!$C$56=Carbon!$B58,'Crop 1'!$L$56*VLOOKUP('Crop 1'!$E$56,Carbon!$AH$4:$AI$10,2,FALSE),0)+IF('Crop 1'!$C$57=Carbon!$B58,'Crop 1'!$L$57*VLOOKUP('Crop 1'!$E$57,Carbon!$AH$4:$AI$10,2,FALSE),0)+IF('Crop 1'!$C$58=Carbon!$B58,'Crop 1'!$L$58*VLOOKUP('Crop 1'!$E$58,Carbon!$AH$4:$AI$10,2,FALSE),0)+IF('Crop 1'!$C$59=Carbon!$B58,'Crop 1'!$L$59*VLOOKUP('Crop 1'!$E$59,Carbon!$AH$4:$AI$10,2,FALSE),0)+IF('Crop 1'!$C$62=Carbon!$B58,'Crop 1'!$L$62*VLOOKUP('Crop 1'!$E$62,Carbon!$AH$4:$AI$10,2,FALSE),0)+IF('Crop 1'!$C$63=Carbon!$B58,'Crop 1'!$L$63*VLOOKUP('Crop 1'!$E$63,Carbon!$AH$4:$AI$10,2,FALSE),0)+IF('Crop 1'!$C$64=Carbon!$B58,'Crop 1'!$L$64*VLOOKUP('Crop 1'!$E$64,Carbon!$AH$4:$AI$10,2,FALSE),0)+IF('Crop 1'!$C$65=Carbon!$B58,'Crop 1'!$L$65*VLOOKUP('Crop 1'!$E$65,Carbon!$AH$4:$AI$10,2,FALSE),0))*$AL$20,2)","v":0},{"$f":"C58*Inputs!$D$13","v":0},{"$f":"ROUND((IF('Crop 2'!$C$14=Carbon!$B58,'Crop 2'!$L$14*VLOOKUP('Crop 2'!$E$14,Carbon!$AH$4:$AI$10,2,FALSE),0)+IF('Crop 2'!$C$15=Carbon!$B58,'Crop 2'!$L$15*VLOOKUP('Crop 2'!$E$15,Carbon!$AH$4:$AI$10,2,FALSE),0)+IF('Crop 2'!$C$16=Carbon!$B58,'Crop 2'!$L$16*VLOOKUP('Crop 2'!$E$16,Carbon!$AH$4:$AI$10,2,FALSE),0)+IF('Crop 2'!$C$19=Carbon!$B58,'Crop 2'!$L$19*VLOOKUP('Crop 2'!$E$19,Carbon!$AH$4:$AI$10,2,FALSE),0)+IF('Crop 2'!$C$20=Carbon!$B58,'Crop 2'!$L$20*VLOOKUP('Crop 2'!$E$20,Carbon!$AH$4:$AI$10,2,FALSE),0)+IF('Crop 2'!$C$21=Carbon!$B58,'Crop 2'!$L$21*VLOOKUP('Crop 2'!$E$21,Carbon!$AH$4:$AI$10,2,FALSE),0)+IF('Crop 2'!$C$49=Carbon!$B58,'Crop 2'!$L$49*VLOOKUP('Crop 2'!$E$49,Carbon!$AH$4:$AI$10,2,FALSE),0)+IF('Crop 2'!$C$50=Carbon!$B58,'Crop 2'!$L$50*VLOOKUP('Crop 2'!$E$50,Carbon!$AH$4:$AI$10,2,FALSE),0)+IF('Crop 2'!$C$51=Carbon!$B58,'Crop 2'!$L$51*VLOOKUP('Crop 2'!$E$51,Carbon!$AH$4:$AI$10,2,FALSE),0)+IF('Crop 2'!$C$52=Carbon!$B58,'Crop 2'!$L$52*VLOOKUP('Crop 2'!$E$52,Carbon!$AH$4:$AI$10,2,FALSE),0)+IF('Crop 2'!$C$53=Carbon!$B58,'Crop 2'!$L$53*VLOOKUP('Crop 2'!$E$53,Carbon!$AH$4:$AI$10,2,FALSE),0)+IF('Crop 2'!$C$56=Carbon!$B58,'Crop 2'!$L$56*VLOOKUP('Crop 2'!$E$56,Carbon!$AH$4:$AI$10,2,FALSE),0)+IF('Crop 2'!$C$57=Carbon!$B58,'Crop 2'!$L$57*VLOOKUP('Crop 2'!$E$57,Carbon!$AH$4:$AI$10,2,FALSE),0)+IF('Crop 2'!$C$58=Carbon!$B58,'Crop 2'!$L$58*VLOOKUP('Crop 2'!$E$58,Carbon!$AH$4:$AI$10,2,FALSE),0)+IF('Crop 2'!$C$59=Carbon!$B58,'Crop 2'!$L$59*VLOOKUP('Crop 2'!$E$59,Carbon!$AH$4:$AI$10,2,FALSE),0)+IF('Crop 2'!$C$62=Carbon!$B58,'Crop 2'!$L$62*VLOOKUP('Crop 2'!$E$62,Carbon!$AH$4:$AI$10,2,FALSE),0)+IF('Crop 2'!$C$63=Carbon!$B58,'Crop 2'!$L$63*VLOOKUP('Crop 2'!$E$63,Carbon!$AH$4:$AI$10,2,FALSE),0)+IF('Crop 2'!$C$64=Carbon!$B58,'Crop 2'!$L$64*VLOOKUP('Crop 2'!$E$64,Carbon!$AH$4:$AI$10,2,FALSE),0)+IF('Crop 2'!$C$65=Carbon!$B58,'Crop 2'!$L$65*VLOOKUP('Crop 2'!$E$65,Carbon!$AH$4:$AI$10,2,FALSE),0))*$AL$20,2)","v":0},{"$f":"E58*Inputs!$D$15","v":0},{"$f":"ROUND((IF('Crop 3'!$C$14=Carbon!$B58,'Crop 3'!$L$14*VLOOKUP('Crop 3'!$E$14,Carbon!$AH$4:$AI$10,2,FALSE),0)+IF('Crop 3'!$C$15=Carbon!$B58,'Crop 3'!$L$15*VLOOKUP('Crop 3'!$E$15,Carbon!$AH$4:$AI$10,2,FALSE),0)+IF('Crop 3'!$C$16=Carbon!$B58,'Crop 3'!$L$16*VLOOKUP('Crop 3'!$E$16,Carbon!$AH$4:$AI$10,2,FALSE),0)+IF('Crop 3'!$C$19=Carbon!$B58,'Crop 3'!$L$19*VLOOKUP('Crop 3'!$E$19,Carbon!$AH$4:$AI$10,2,FALSE),0)+IF('Crop 3'!$C$20=Carbon!$B58,'Crop 3'!$L$20*VLOOKUP('Crop 3'!$E$20,Carbon!$AH$4:$AI$10,2,FALSE),0)+IF('Crop 3'!$C$21=Carbon!$B58,'Crop 3'!$L$21*VLOOKUP('Crop 3'!$E$21,Carbon!$AH$4:$AI$10,2,FALSE),0)+IF('Crop 3'!$C$49=Carbon!$B58,'Crop 3'!$L$49*VLOOKUP('Crop 3'!$E$49,Carbon!$AH$4:$AI$10,2,FALSE),0)+IF('Crop 3'!$C$50=Carbon!$B58,'Crop 3'!$L$50*VLOOKUP('Crop 3'!$E$50,Carbon!$AH$4:$AI$10,2,FALSE),0)+IF('Crop 3'!$C$51=Carbon!$B58,'Crop 3'!$L$51*VLOOKUP('Crop 3'!$E$51,Carbon!$AH$4:$AI$10,2,FALSE),0)+IF('Crop 3'!$C$52=Carbon!$B58,'Crop 3'!$L$52*VLOOKUP('Crop 3'!$E$52,Carbon!$AH$4:$AI$10,2,FALSE),0)+IF('Crop 3'!$C$53=Carbon!$B58,'Crop 3'!$L$53*VLOOKUP('Crop 3'!$E$53,Carbon!$AH$4:$AI$10,2,FALSE),0)+IF('Crop 3'!$C$56=Carbon!$B58,'Crop 3'!$L$56*VLOOKUP('Crop 3'!$E$56,Carbon!$AH$4:$AI$10,2,FALSE),0)+IF('Crop 3'!$C$57=Carbon!$B58,'Crop 3'!$L$57*VLOOKUP('Crop 3'!$E$57,Carbon!$AH$4:$AI$10,2,FALSE),0)+IF('Crop 3'!$C$58=Carbon!$B58,'Crop 3'!$L$58*VLOOKUP('Crop 3'!$E$58,Carbon!$AH$4:$AI$10,2,FALSE),0)+IF('Crop 3'!$C$59=Carbon!$B58,'Crop 3'!$L$59*VLOOKUP('Crop 3'!$E$59,Carbon!$AH$4:$AI$10,2,FALSE),0)+IF('Crop 3'!$C$62=Carbon!$B58,'Crop 3'!$L$62*VLOOKUP('Crop 3'!$E$62,Carbon!$AH$4:$AI$10,2,FALSE),0)+IF('Crop 3'!$C$63=Carbon!$B58,'Crop 3'!$L$63*VLOOKUP('Crop 3'!$E$63,Carbon!$AH$4:$AI$10,2,FALSE),0)+IF('Crop 3'!$C$64=Carbon!$B58,'Crop 3'!$L$64*VLOOKUP('Crop 3'!$E$64,Carbon!$AH$4:$AI$10,2,FALSE),0)+IF('Crop 3'!$C$65=Carbon!$B58,'Crop 3'!$L$65*VLOOKUP('Crop 3'!$E$65,Carbon!$AH$4:$AI$10,2,FALSE),0))*$AL$20,2)","v":0},{"$f":"G58*Inputs!$D$17","v":0},{"$f":"ROUND(J58/Inputs!D$19,2)","v":0},0,null,null,{"$f":"ROUND((IF('Crop 1'!$C$14=Carbon!$B58,'Crop 1'!$V$14*VLOOKUP('Crop 1'!$E$14,Carbon!$AH$4:$AI$10,2,FALSE),0)+IF('Crop 1'!$C$15=Carbon!$B58,'Crop 1'!$V$15*VLOOKUP('Crop 1'!$E$15,Carbon!$AH$4:$AI$10,2,FALSE),0)+IF('Crop 1'!$C$16=Carbon!$B58,'Crop 1'!$V$16*VLOOKUP('Crop 1'!$E$16,Carbon!$AH$4:$AI$10,2,FALSE),0)+IF('Crop 1'!$C$19=Carbon!$B58,'Crop 1'!$V$19*VLOOKUP('Crop 1'!$E$19,Carbon!$AH$4:$AI$10,2,FALSE),0)+IF('Crop 1'!$C$20=Carbon!$B58,'Crop 1'!$V$20*VLOOKUP('Crop 1'!$E$20,Carbon!$AH$4:$AI$10,2,FALSE),0)+IF('Crop 1'!$C$21=Carbon!$B58,'Crop 1'!$V$21*VLOOKUP('Crop 1'!$E$21,Carbon!$AH$4:$AI$10,2,FALSE),0)+IF('Crop 1'!$C$49=Carbon!$B58,'Crop 1'!$V$49*VLOOKUP('Crop 1'!$E$49,Carbon!$AH$4:$AI$10,2,FALSE),0)+IF('Crop 1'!$C$50=Carbon!$B58,'Crop 1'!$V$50*VLOOKUP('Crop 1'!$E$50,Carbon!$AH$4:$AI$10,2,FALSE),0)+IF('Crop 1'!$C$51=Carbon!$B58,'Crop 1'!$V$51*VLOOKUP('Crop 1'!$E$51,Carbon!$AH$4:$AI$10,2,FALSE),0)+IF('Crop 1'!$C$52=Carbon!$B58,'Crop 1'!$V$52*VLOOKUP('Crop 1'!$E$52,Carbon!$AH$4:$AI$10,2,FALSE),0)+IF('Crop 1'!$C$53=Carbon!$B58,'Crop 1'!$V$53*VLOOKUP('Crop 1'!$E$53,Carbon!$AH$4:$AI$10,2,FALSE),0)+IF('Crop 1'!$C$56=Carbon!$B58,'Crop 1'!$V$56*VLOOKUP('Crop 1'!$E$56,Carbon!$AH$4:$AI$10,2,FALSE),0)+IF('Crop 1'!$C$57=Carbon!$B58,'Crop 1'!$V$57*VLOOKUP('Crop 1'!$E$57,Carbon!$AH$4:$AI$10,2,FALSE),0)+IF('Crop 1'!$C$58=Carbon!$B58,'Crop 1'!$V$58*VLOOKUP('Crop 1'!$E$58,Carbon!$AH$4:$AI$10,2,FALSE),0)+IF('Crop 1'!$C$59=Carbon!$B58,'Crop 1'!$V$59*VLOOKUP('Crop 1'!$E$59,Carbon!$AH$4:$AI$10,2,FALSE),0)+IF('Crop 1'!$C$62=Carbon!$B58,'Crop 1'!$V$62*VLOOKUP('Crop 1'!$E$62,Carbon!$AH$4:$AI$10,2,FALSE),0)+IF('Crop 1'!$C$63=Carbon!$B58,'Crop 1'!$V$63*VLOOKUP('Crop 1'!$E$63,Carbon!$AH$4:$AI$10,2,FALSE),0)+IF('Crop 1'!$C$64=Carbon!$B58,'Crop 1'!$V$64*VLOOKUP('Crop 1'!$E$64,Carbon!$AH$4:$AI$10,2,FALSE),0)+IF('Crop 1'!$C$65=Carbon!$B58,'Crop 1'!$V$65*VLOOKUP('Crop 1'!$E$65,Carbon!$AH$4:$AI$10,2,FALSE),0))*$AL$20,2)","v":0},{"$f":"M58*Inputs!$D$13","v":0},{"$f":"ROUND((IF('Crop 2'!$C$14=Carbon!$B58,'Crop 2'!$V$14*VLOOKUP('Crop 2'!$E$14,Carbon!$AH$4:$AI$10,2,FALSE),0)+IF('Crop 2'!$C$15=Carbon!$B58,'Crop 2'!$V$15*VLOOKUP('Crop 2'!$E$15,Carbon!$AH$4:$AI$10,2,FALSE),0)+IF('Crop 2'!$C$16=Carbon!$B58,'Crop 2'!$V$16*VLOOKUP('Crop 2'!$E$16,Carbon!$AH$4:$AI$10,2,FALSE),0)+IF('Crop 2'!$C$19=Carbon!$B58,'Crop 2'!$V$19*VLOOKUP('Crop 2'!$E$19,Carbon!$AH$4:$AI$10,2,FALSE),0)+IF('Crop 2'!$C$20=Carbon!$B58,'Crop 2'!$V$20*VLOOKUP('Crop 2'!$E$20,Carbon!$AH$4:$AI$10,2,FALSE),0)+IF('Crop 2'!$C$21=Carbon!$B58,'Crop 2'!$V$21*VLOOKUP('Crop 2'!$E$21,Carbon!$AH$4:$AI$10,2,FALSE),0)+IF('Crop 2'!$C$49=Carbon!$B58,'Crop 2'!$V$49*VLOOKUP('Crop 2'!$E$49,Carbon!$AH$4:$AI$10,2,FALSE),0)+IF('Crop 2'!$C$50=Carbon!$B58,'Crop 2'!$V$50*VLOOKUP('Crop 2'!$E$50,Carbon!$AH$4:$AI$10,2,FALSE),0)+IF('Crop 2'!$C$51=Carbon!$B58,'Crop 2'!$V$51*VLOOKUP('Crop 2'!$E$51,Carbon!$AH$4:$AI$10,2,FALSE),0)+IF('Crop 2'!$C$52=Carbon!$B58,'Crop 2'!$V$52*VLOOKUP('Crop 2'!$E$52,Carbon!$AH$4:$AI$10,2,FALSE),0)+IF('Crop 2'!$C$53=Carbon!$B58,'Crop 2'!$V$53*VLOOKUP('Crop 2'!$E$53,Carbon!$AH$4:$AI$10,2,FALSE),0)+IF('Crop 2'!$C$56=Carbon!$B58,'Crop 2'!$V$56*VLOOKUP('Crop 2'!$E$56,Carbon!$AH$4:$AI$10,2,FALSE),0)+IF('Crop 2'!$C$57=Carbon!$B58,'Crop 2'!$V$57*VLOOKUP('Crop 2'!$E$57,Carbon!$AH$4:$AI$10,2,FALSE),0)+IF('Crop 2'!$C$58=Carbon!$B58,'Crop 2'!$V$58*VLOOKUP('Crop 2'!$E$58,Carbon!$AH$4:$AI$10,2,FALSE),0)+IF('Crop 2'!$C$59=Carbon!$B58,'Crop 2'!$V$59*VLOOKUP('Crop 2'!$E$59,Carbon!$AH$4:$AI$10,2,FALSE),0)+IF('Crop 2'!$C$62=Carbon!$B58,'Crop 2'!$V$62*VLOOKUP('Crop 2'!$E$62,Carbon!$AH$4:$AI$10,2,FALSE),0)+IF('Crop 2'!$C$63=Carbon!$B58,'Crop 2'!$V$63*VLOOKUP('Crop 2'!$E$63,Carbon!$AH$4:$AI$10,2,FALSE),0)+IF('Crop 2'!$C$64=Carbon!$B58,'Crop 2'!$V$64*VLOOKUP('Crop 2'!$E$64,Carbon!$AH$4:$AI$10,2,FALSE),0)+IF('Crop 2'!$C$65=Carbon!$B58,'Crop 2'!$V$65*VLOOKUP('Crop 2'!$E$65,Carbon!$AH$4:$AI$10,2,FALSE),0))*$AL$20,2)","v":0},{"$f":"O58*Inputs!$D$15","v":0},{"$f":"ROUND((IF('Crop 3'!$C$14=Carbon!$B58,'Crop 3'!$V$14*VLOOKUP('Crop 3'!$E$14,Carbon!$AH$4:$AI$10,2,FALSE),0)+IF('Crop 3'!$C$15=Carbon!$B58,'Crop 3'!$V$15*VLOOKUP('Crop 3'!$E$15,Carbon!$AH$4:$AI$10,2,FALSE),0)+IF('Crop 3'!$C$16=Carbon!$B58,'Crop 3'!$V$16*VLOOKUP('Crop 3'!$E$16,Carbon!$AH$4:$AI$10,2,FALSE),0)+IF('Crop 3'!$C$19=Carbon!$B58,'Crop 3'!$V$19*VLOOKUP('Crop 3'!$E$19,Carbon!$AH$4:$AI$10,2,FALSE),0)+IF('Crop 3'!$C$20=Carbon!$B58,'Crop 3'!$V$20*VLOOKUP('Crop 3'!$E$20,Carbon!$AH$4:$AI$10,2,FALSE),0)+IF('Crop 3'!$C$21=Carbon!$B58,'Crop 3'!$V$21*VLOOKUP('Crop 3'!$E$21,Carbon!$AH$4:$AI$10,2,FALSE),0)+IF('Crop 3'!$C$49=Carbon!$B58,'Crop 3'!$V$49*VLOOKUP('Crop 3'!$E$49,Carbon!$AH$4:$AI$10,2,FALSE),0)+IF('Crop 3'!$C$50=Carbon!$B58,'Crop 3'!$V$50*VLOOKUP('Crop 3'!$E$50,Carbon!$AH$4:$AI$10,2,FALSE),0)+IF('Crop 3'!$C$51=Carbon!$B58,'Crop 3'!$V$51*VLOOKUP('Crop 3'!$E$51,Carbon!$AH$4:$AI$10,2,FALSE),0)+IF('Crop 3'!$C$52=Carbon!$B58,'Crop 3'!$V$52*VLOOKUP('Crop 3'!$E$52,Carbon!$AH$4:$AI$10,2,FALSE),0)+IF('Crop 3'!$C$53=Carbon!$B58,'Crop 3'!$V$53*VLOOKUP('Crop 3'!$E$53,Carbon!$AH$4:$AI$10,2,FALSE),0)+IF('Crop 3'!$C$56=Carbon!$B58,'Crop 3'!$V$56*VLOOKUP('Crop 3'!$E$56,Carbon!$AH$4:$AI$10,2,FALSE),0)+IF('Crop 3'!$C$57=Carbon!$B58,'Crop 3'!$V$57*VLOOKUP('Crop 3'!$E$57,Carbon!$AH$4:$AI$10,2,FALSE),0)+IF('Crop 3'!$C$58=Carbon!$B58,'Crop 3'!$V$58*VLOOKUP('Crop 3'!$E$58,Carbon!$AH$4:$AI$10,2,FALSE),0)+IF('Crop 3'!$C$59=Carbon!$B58,'Crop 3'!$V$59*VLOOKUP('Crop 3'!$E$59,Carbon!$AH$4:$AI$10,2,FALSE),0)+IF('Crop 3'!$C$62=Carbon!$B58,'Crop 3'!$V$62*VLOOKUP('Crop 3'!$E$62,Carbon!$AH$4:$AI$10,2,FALSE),0)+IF('Crop 3'!$C$63=Carbon!$B58,'Crop 3'!$V$63*VLOOKUP('Crop 3'!$E$63,Carbon!$AH$4:$AI$10,2,FALSE),0)+IF('Crop 3'!$C$64=Carbon!$B58,'Crop 3'!$V$64*VLOOKUP('Crop 3'!$E$64,Carbon!$AH$4:$AI$10,2,FALSE),0)+IF('Crop 3'!$C$65=Carbon!$B58,'Crop 3'!$V$65*VLOOKUP('Crop 3'!$E$65,Carbon!$AH$4:$AI$10,2,FALSE),0))*$AL$20,2)","v":0},{"$f":"Q58*Inputs!$D$17","v":0},{"$f":"ROUND(T58/Inputs!D$19,2)","v":0},0,null,null,0,{"$f":"W58*Inputs!$D$13","v":0},0,{"$f":"Y58*Inputs!$D$13","v":0},0,{"$f":"AA58*Inputs!$D$13","v":0},{"$f":"ROUND(AD58/Inputs!D$19,2)","v":0},0]
[null,{"$f":"Defaults!AH25","v":"Butoxone"},{"$f":"ROUND((IF('Crop 1'!$C$14=Carbon!$B59,'Crop 1'!$L$14*VLOOKUP('Crop 1'!$E$14,Carbon!$AH$4:$AI$10,2,FALSE),0)+IF('Crop 1'!$C$15=Carbon!$B59,'Crop 1'!$L$15*VLOOKUP('Crop 1'!$E$15,Carbon!$AH$4:$AI$10,2,FALSE),0)+IF('Crop 1'!$C$16=Carbon!$B59,'Crop 1'!$L$16*VLOOKUP('Crop 1'!$E$16,Carbon!$AH$4:$AI$10,2,FALSE),0)+IF('Crop 1'!$C$19=Carbon!$B59,'Crop 1'!$L$19*VLOOKUP('Crop 1'!$E$19,Carbon!$AH$4:$AI$10,2,FALSE),0)+IF('Crop 1'!$C$20=Carbon!$B59,'Crop 1'!$L$20*VLOOKUP('Crop 1'!$E$20,Carbon!$AH$4:$AI$10,2,FALSE),0)+IF('Crop 1'!$C$21=Carbon!$B59,'Crop 1'!$L$21*VLOOKUP('Crop 1'!$E$21,Carbon!$AH$4:$AI$10,2,FALSE),0)+IF('Crop 1'!$C$49=Carbon!$B59,'Crop 1'!$L$49*VLOOKUP('Crop 1'!$E$49,Carbon!$AH$4:$AI$10,2,FALSE),0)+IF('Crop 1'!$C$50=Carbon!$B59,'Crop 1'!$L$50*VLOOKUP('Crop 1'!$E$50,Carbon!$AH$4:$AI$10,2,FALSE),0)+IF('Crop 1'!$C$51=Carbon!$B59,'Crop 1'!$L$51*VLOOKUP('Crop 1'!$E$51,Carbon!$AH$4:$AI$10,2,FALSE),0)+IF('Crop 1'!$C$52=Carbon!$B59,'Crop 1'!$L$52*VLOOKUP('Crop 1'!$E$52,Carbon!$AH$4:$AI$10,2,FALSE),0)+IF('Crop 1'!$C$53=Carbon!$B59,'Crop 1'!$L$53*VLOOKUP('Crop 1'!$E$53,Carbon!$AH$4:$AI$10,2,FALSE),0)+IF('Crop 1'!$C$56=Carbon!$B59,'Crop 1'!$L$56*VLOOKUP('Crop 1'!$E$56,Carbon!$AH$4:$AI$10,2,FALSE),0)+IF('Crop 1'!$C$57=Carbon!$B59,'Crop 1'!$L$57*VLOOKUP('Crop 1'!$E$57,Carbon!$AH$4:$AI$10,2,FALSE),0)+IF('Crop 1'!$C$58=Carbon!$B59,'Crop 1'!$L$58*VLOOKUP('Crop 1'!$E$58,Carbon!$AH$4:$AI$10,2,FALSE),0)+IF('Crop 1'!$C$59=Carbon!$B59,'Crop 1'!$L$59*VLOOKUP('Crop 1'!$E$59,Carbon!$AH$4:$AI$10,2,FALSE),0)+IF('Crop 1'!$C$62=Carbon!$B59,'Crop 1'!$L$62*VLOOKUP('Crop 1'!$E$62,Carbon!$AH$4:$AI$10,2,FALSE),0)+IF('Crop 1'!$C$63=Carbon!$B59,'Crop 1'!$L$63*VLOOKUP('Crop 1'!$E$63,Carbon!$AH$4:$AI$10,2,FALSE),0)+IF('Crop 1'!$C$64=Carbon!$B59,'Crop 1'!$L$64*VLOOKUP('Crop 1'!$E$64,Carbon!$AH$4:$AI$10,2,FALSE),0)+IF('Crop 1'!$C$65=Carbon!$B59,'Crop 1'!$L$65*VLOOKUP('Crop 1'!$E$65,Carbon!$AH$4:$AI$10,2,FALSE),0))*$AL$20,2)","v":0},{"$f":"C59*Inputs!$D$13","v":0},{"$f":"ROUND((IF('Crop 2'!$C$14=Carbon!$B59,'Crop 2'!$L$14*VLOOKUP('Crop 2'!$E$14,Carbon!$AH$4:$AI$10,2,FALSE),0)+IF('Crop 2'!$C$15=Carbon!$B59,'Crop 2'!$L$15*VLOOKUP('Crop 2'!$E$15,Carbon!$AH$4:$AI$10,2,FALSE),0)+IF('Crop 2'!$C$16=Carbon!$B59,'Crop 2'!$L$16*VLOOKUP('Crop 2'!$E$16,Carbon!$AH$4:$AI$10,2,FALSE),0)+IF('Crop 2'!$C$19=Carbon!$B59,'Crop 2'!$L$19*VLOOKUP('Crop 2'!$E$19,Carbon!$AH$4:$AI$10,2,FALSE),0)+IF('Crop 2'!$C$20=Carbon!$B59,'Crop 2'!$L$20*VLOOKUP('Crop 2'!$E$20,Carbon!$AH$4:$AI$10,2,FALSE),0)+IF('Crop 2'!$C$21=Carbon!$B59,'Crop 2'!$L$21*VLOOKUP('Crop 2'!$E$21,Carbon!$AH$4:$AI$10,2,FALSE),0)+IF('Crop 2'!$C$49=Carbon!$B59,'Crop 2'!$L$49*VLOOKUP('Crop 2'!$E$49,Carbon!$AH$4:$AI$10,2,FALSE),0)+IF('Crop 2'!$C$50=Carbon!$B59,'Crop 2'!$L$50*VLOOKUP('Crop 2'!$E$50,Carbon!$AH$4:$AI$10,2,FALSE),0)+IF('Crop 2'!$C$51=Carbon!$B59,'Crop 2'!$L$51*VLOOKUP('Crop 2'!$E$51,Carbon!$AH$4:$AI$10,2,FALSE),0)+IF('Crop 2'!$C$52=Carbon!$B59,'Crop 2'!$L$52*VLOOKUP('Crop 2'!$E$52,Carbon!$AH$4:$AI$10,2,FALSE),0)+IF('Crop 2'!$C$53=Carbon!$B59,'Crop 2'!$L$53*VLOOKUP('Crop 2'!$E$53,Carbon!$AH$4:$AI$10,2,FALSE),0)+IF('Crop 2'!$C$56=Carbon!$B59,'Crop 2'!$L$56*VLOOKUP('Crop 2'!$E$56,Carbon!$AH$4:$AI$10,2,FALSE),0)+IF('Crop 2'!$C$57=Carbon!$B59,'Crop 2'!$L$57*VLOOKUP('Crop 2'!$E$57,Carbon!$AH$4:$AI$10,2,FALSE),0)+IF('Crop 2'!$C$58=Carbon!$B59,'Crop 2'!$L$58*VLOOKUP('Crop 2'!$E$58,Carbon!$AH$4:$AI$10,2,FALSE),0)+IF('Crop 2'!$C$59=Carbon!$B59,'Crop 2'!$L$59*VLOOKUP('Crop 2'!$E$59,Carbon!$AH$4:$AI$10,2,FALSE),0)+IF('Crop 2'!$C$62=Carbon!$B59,'Crop 2'!$L$62*VLOOKUP('Crop 2'!$E$62,Carbon!$AH$4:$AI$10,2,FALSE),0)+IF('Crop 2'!$C$63=Carbon!$B59,'Crop 2'!$L$63*VLOOKUP('Crop 2'!$E$63,Carbon!$AH$4:$AI$10,2,FALSE),0)+IF('Crop 2'!$C$64=Carbon!$B59,'Crop 2'!$L$64*VLOOKUP('Crop 2'!$E$64,Carbon!$AH$4:$AI$10,2,FALSE),0)+IF('Crop 2'!$C$65=Carbon!$B59,'Crop 2'!$L$65*VLOOKUP('Crop 2'!$E$65,Carbon!$AH$4:$AI$10,2,FALSE),0))*$AL$20,2)","v":0},{"$f":"E59*Inputs!$D$15","v":0},{"$f":"ROUND((IF('Crop 3'!$C$14=Carbon!$B59,'Crop 3'!$L$14*VLOOKUP('Crop 3'!$E$14,Carbon!$AH$4:$AI$10,2,FALSE),0)+IF('Crop 3'!$C$15=Carbon!$B59,'Crop 3'!$L$15*VLOOKUP('Crop 3'!$E$15,Carbon!$AH$4:$AI$10,2,FALSE),0)+IF('Crop 3'!$C$16=Carbon!$B59,'Crop 3'!$L$16*VLOOKUP('Crop 3'!$E$16,Carbon!$AH$4:$AI$10,2,FALSE),0)+IF('Crop 3'!$C$19=Carbon!$B59,'Crop 3'!$L$19*VLOOKUP('Crop 3'!$E$19,Carbon!$AH$4:$AI$10,2,FALSE),0)+IF('Crop 3'!$C$20=Carbon!$B59,'Crop 3'!$L$20*VLOOKUP('Crop 3'!$E$20,Carbon!$AH$4:$AI$10,2,FALSE),0)+IF('Crop 3'!$C$21=Carbon!$B59,'Crop 3'!$L$21*VLOOKUP('Crop 3'!$E$21,Carbon!$AH$4:$AI$10,2,FALSE),0)+IF('Crop 3'!$C$49=Carbon!$B59,'Crop 3'!$L$49*VLOOKUP('Crop 3'!$E$49,Carbon!$AH$4:$AI$10,2,FALSE),0)+IF('Crop 3'!$C$50=Carbon!$B59,'Crop 3'!$L$50*VLOOKUP('Crop 3'!$E$50,Carbon!$AH$4:$AI$10,2,FALSE),0)+IF('Crop 3'!$C$51=Carbon!$B59,'Crop 3'!$L$51*VLOOKUP('Crop 3'!$E$51,Carbon!$AH$4:$AI$10,2,FALSE),0)+IF('Crop 3'!$C$52=Carbon!$B59,'Crop 3'!$L$52*VLOOKUP('Crop 3'!$E$52,Carbon!$AH$4:$AI$10,2,FALSE),0)+IF('Crop 3'!$C$53=Carbon!$B59,'Crop 3'!$L$53*VLOOKUP('Crop 3'!$E$53,Carbon!$AH$4:$AI$10,2,FALSE),0)+IF('Crop 3'!$C$56=Carbon!$B59,'Crop 3'!$L$56*VLOOKUP('Crop 3'!$E$56,Carbon!$AH$4:$AI$10,2,FALSE),0)+IF('Crop 3'!$C$57=Carbon!$B59,'Crop 3'!$L$57*VLOOKUP('Crop 3'!$E$57,Carbon!$AH$4:$AI$10,2,FALSE),0)+IF('Crop 3'!$C$58=Carbon!$B59,'Crop 3'!$L$58*VLOOKUP('Crop 3'!$E$58,Carbon!$AH$4:$AI$10,2,FALSE),0)+IF('Crop 3'!$C$59=Carbon!$B59,'Crop 3'!$L$59*VLOOKUP('Crop 3'!$E$59,Carbon!$AH$4:$AI$10,2,FALSE),0)+IF('Crop 3'!$C$62=Carbon!$B59,'Crop 3'!$L$62*VLOOKUP('Crop 3'!$E$62,Carbon!$AH$4:$AI$10,2,FALSE),0)+IF('Crop 3'!$C$63=Carbon!$B59,'Crop 3'!$L$63*VLOOKUP('Crop 3'!$E$63,Carbon!$AH$4:$AI$10,2,FALSE),0)+IF('Crop 3'!$C$64=Carbon!$B59,'Crop 3'!$L$64*VLOOKUP('Crop 3'!$E$64,Carbon!$AH$4:$AI$10,2,FALSE),0)+IF('Crop 3'!$C$65=Carbon!$B59,'Crop 3'!$L$65*VLOOKUP('Crop 3'!$E$65,Carbon!$AH$4:$AI$10,2,FALSE),0))*$AL$20,2)","v":0},{"$f":"G59*Inputs!$D$17","v":0},{"$f":"ROUND(J59/Inputs!D$19,2)","v":0},0,null,null,{"$f":"ROUND((IF('Crop 1'!$C$14=Carbon!$B59,'Crop 1'!$V$14*VLOOKUP('Crop 1'!$E$14,Carbon!$AH$4:$AI$10,2,FALSE),0)+IF('Crop 1'!$C$15=Carbon!$B59,'Crop 1'!$V$15*VLOOKUP('Crop 1'!$E$15,Carbon!$AH$4:$AI$10,2,FALSE),0)+IF('Crop 1'!$C$16=Carbon!$B59,'Crop 1'!$V$16*VLOOKUP('Crop 1'!$E$16,Carbon!$AH$4:$AI$10,2,FALSE),0)+IF('Crop 1'!$C$19=Carbon!$B59,'Crop 1'!$V$19*VLOOKUP('Crop 1'!$E$19,Carbon!$AH$4:$AI$10,2,FALSE),0)+IF('Crop 1'!$C$20=Carbon!$B59,'Crop 1'!$V$20*VLOOKUP('Crop 1'!$E$20,Carbon!$AH$4:$AI$10,2,FALSE),0)+IF('Crop 1'!$C$21=Carbon!$B59,'Crop 1'!$V$21*VLOOKUP('Crop 1'!$E$21,Carbon!$AH$4:$AI$10,2,FALSE),0)+IF('Crop 1'!$C$49=Carbon!$B59,'Crop 1'!$V$49*VLOOKUP('Crop 1'!$E$49,Carbon!$AH$4:$AI$10,2,FALSE),0)+IF('Crop 1'!$C$50=Carbon!$B59,'Crop 1'!$V$50*VLOOKUP('Crop 1'!$E$50,Carbon!$AH$4:$AI$10,2,FALSE),0)+IF('Crop 1'!$C$51=Carbon!$B59,'Crop 1'!$V$51*VLOOKUP('Crop 1'!$E$51,Carbon!$AH$4:$AI$10,2,FALSE),0)+IF('Crop 1'!$C$52=Carbon!$B59,'Crop 1'!$V$52*VLOOKUP('Crop 1'!$E$52,Carbon!$AH$4:$AI$10,2,FALSE),0)+IF('Crop 1'!$C$53=Carbon!$B59,'Crop 1'!$V$53*VLOOKUP('Crop 1'!$E$53,Carbon!$AH$4:$AI$10,2,FALSE),0)+IF('Crop 1'!$C$56=Carbon!$B59,'Crop 1'!$V$56*VLOOKUP('Crop 1'!$E$56,Carbon!$AH$4:$AI$10,2,FALSE),0)+IF('Crop 1'!$C$57=Carbon!$B59,'Crop 1'!$V$57*VLOOKUP('Crop 1'!$E$57,Carbon!$AH$4:$AI$10,2,FALSE),0)+IF('Crop 1'!$C$58=Carbon!$B59,'Crop 1'!$V$58*VLOOKUP('Crop 1'!$E$58,Carbon!$AH$4:$AI$10,2,FALSE),0)+IF('Crop 1'!$C$59=Carbon!$B59,'Crop 1'!$V$59*VLOOKUP('Crop 1'!$E$59,Carbon!$AH$4:$AI$10,2,FALSE),0)+IF('Crop 1'!$C$62=Carbon!$B59,'Crop 1'!$V$62*VLOOKUP('Crop 1'!$E$62,Carbon!$AH$4:$AI$10,2,FALSE),0)+IF('Crop 1'!$C$63=Carbon!$B59,'Crop 1'!$V$63*VLOOKUP('Crop 1'!$E$63,Carbon!$AH$4:$AI$10,2,FALSE),0)+IF('Crop 1'!$C$64=Carbon!$B59,'Crop 1'!$V$64*VLOOKUP('Crop 1'!$E$64,Carbon!$AH$4:$AI$10,2,FALSE),0)+IF('Crop 1'!$C$65=Carbon!$B59,'Crop 1'!$V$65*VLOOKUP('Crop 1'!$E$65,Carbon!$AH$4:$AI$10,2,FALSE),0))*$AL$20,2)","v":0},{"$f":"M59*Inputs!$D$13","v":0},{"$f":"ROUND((IF('Crop 2'!$C$14=Carbon!$B59,'Crop 2'!$V$14*VLOOKUP('Crop 2'!$E$14,Carbon!$AH$4:$AI$10,2,FALSE),0)+IF('Crop 2'!$C$15=Carbon!$B59,'Crop 2'!$V$15*VLOOKUP('Crop 2'!$E$15,Carbon!$AH$4:$AI$10,2,FALSE),0)+IF('Crop 2'!$C$16=Carbon!$B59,'Crop 2'!$V$16*VLOOKUP('Crop 2'!$E$16,Carbon!$AH$4:$AI$10,2,FALSE),0)+IF('Crop 2'!$C$19=Carbon!$B59,'Crop 2'!$V$19*VLOOKUP('Crop 2'!$E$19,Carbon!$AH$4:$AI$10,2,FALSE),0)+IF('Crop 2'!$C$20=Carbon!$B59,'Crop 2'!$V$20*VLOOKUP('Crop 2'!$E$20,Carbon!$AH$4:$AI$10,2,FALSE),0)+IF('Crop 2'!$C$21=Carbon!$B59,'Crop 2'!$V$21*VLOOKUP('Crop 2'!$E$21,Carbon!$AH$4:$AI$10,2,FALSE),0)+IF('Crop 2'!$C$49=Carbon!$B59,'Crop 2'!$V$49*VLOOKUP('Crop 2'!$E$49,Carbon!$AH$4:$AI$10,2,FALSE),0)+IF('Crop 2'!$C$50=Carbon!$B59,'Crop 2'!$V$50*VLOOKUP('Crop 2'!$E$50,Carbon!$AH$4:$AI$10,2,FALSE),0)+IF('Crop 2'!$C$51=Carbon!$B59,'Crop 2'!$V$51*VLOOKUP('Crop 2'!$E$51,Carbon!$AH$4:$AI$10,2,FALSE),0)+IF('Crop 2'!$C$52=Carbon!$B59,'Crop 2'!$V$52*VLOOKUP('Crop 2'!$E$52,Carbon!$AH$4:$AI$10,2,FALSE),0)+IF('Crop 2'!$C$53=Carbon!$B59,'Crop 2'!$V$53*VLOOKUP('Crop 2'!$E$53,Carbon!$AH$4:$AI$10,2,FALSE),0)+IF('Crop 2'!$C$56=Carbon!$B59,'Crop 2'!$V$56*VLOOKUP('Crop 2'!$E$56,Carbon!$AH$4:$AI$10,2,FALSE),0)+IF('Crop 2'!$C$57=Carbon!$B59,'Crop 2'!$V$57*VLOOKUP('Crop 2'!$E$57,Carbon!$AH$4:$AI$10,2,FALSE),0)+IF('Crop 2'!$C$58=Carbon!$B59,'Crop 2'!$V$58*VLOOKUP('Crop 2'!$E$58,Carbon!$AH$4:$AI$10,2,FALSE),0)+IF('Crop 2'!$C$59=Carbon!$B59,'Crop 2'!$V$59*VLOOKUP('Crop 2'!$E$59,Carbon!$AH$4:$AI$10,2,FALSE),0)+IF('Crop 2'!$C$62=Carbon!$B59,'Crop 2'!$V$62*VLOOKUP('Crop 2'!$E$62,Carbon!$AH$4:$AI$10,2,FALSE),0)+IF('Crop 2'!$C$63=Carbon!$B59,'Crop 2'!$V$63*VLOOKUP('Crop 2'!$E$63,Carbon!$AH$4:$AI$10,2,FALSE),0)+IF('Crop 2'!$C$64=Carbon!$B59,'Crop 2'!$V$64*VLOOKUP('Crop 2'!$E$64,Carbon!$AH$4:$AI$10,2,FALSE),0)+IF('Crop 2'!$C$65=Carbon!$B59,'Crop 2'!$V$65*VLOOKUP('Crop 2'!$E$65,Carbon!$AH$4:$AI$10,2,FALSE),0))*$AL$20,2)","v":0},{"$f":"O59*Inputs!$D$15","v":0},{"$f":"ROUND((IF('Crop 3'!$C$14=Carbon!$B59,'Crop 3'!$V$14*VLOOKUP('Crop 3'!$E$14,Carbon!$AH$4:$AI$10,2,FALSE),0)+IF('Crop 3'!$C$15=Carbon!$B59,'Crop 3'!$V$15*VLOOKUP('Crop 3'!$E$15,Carbon!$AH$4:$AI$10,2,FALSE),0)+IF('Crop 3'!$C$16=Carbon!$B59,'Crop 3'!$V$16*VLOOKUP('Crop 3'!$E$16,Carbon!$AH$4:$AI$10,2,FALSE),0)+IF('Crop 3'!$C$19=Carbon!$B59,'Crop 3'!$V$19*VLOOKUP('Crop 3'!$E$19,Carbon!$AH$4:$AI$10,2,FALSE),0)+IF('Crop 3'!$C$20=Carbon!$B59,'Crop 3'!$V$20*VLOOKUP('Crop 3'!$E$20,Carbon!$AH$4:$AI$10,2,FALSE),0)+IF('Crop 3'!$C$21=Carbon!$B59,'Crop 3'!$V$21*VLOOKUP('Crop 3'!$E$21,Carbon!$AH$4:$AI$10,2,FALSE),0)+IF('Crop 3'!$C$49=Carbon!$B59,'Crop 3'!$V$49*VLOOKUP('Crop 3'!$E$49,Carbon!$AH$4:$AI$10,2,FALSE),0)+IF('Crop 3'!$C$50=Carbon!$B59,'Crop 3'!$V$50*VLOOKUP('Crop 3'!$E$50,Carbon!$AH$4:$AI$10,2,FALSE),0)+IF('Crop 3'!$C$51=Carbon!$B59,'Crop 3'!$V$51*VLOOKUP('Crop 3'!$E$51,Carbon!$AH$4:$AI$10,2,FALSE),0)+IF('Crop 3'!$C$52=Carbon!$B59,'Crop 3'!$V$52*VLOOKUP('Crop 3'!$E$52,Carbon!$AH$4:$AI$10,2,FALSE),0)+IF('Crop 3'!$C$53=Carbon!$B59,'Crop 3'!$V$53*VLOOKUP('Crop 3'!$E$53,Carbon!$AH$4:$AI$10,2,FALSE),0)+IF('Crop 3'!$C$56=Carbon!$B59,'Crop 3'!$V$56*VLOOKUP('Crop 3'!$E$56,Carbon!$AH$4:$AI$10,2,FALSE),0)+IF('Crop 3'!$C$57=Carbon!$B59,'Crop 3'!$V$57*VLOOKUP('Crop 3'!$E$57,Carbon!$AH$4:$AI$10,2,FALSE),0)+IF('Crop 3'!$C$58=Carbon!$B59,'Crop 3'!$V$58*VLOOKUP('Crop 3'!$E$58,Carbon!$AH$4:$AI$10,2,FALSE),0)+IF('Crop 3'!$C$59=Carbon!$B59,'Crop 3'!$V$59*VLOOKUP('Crop 3'!$E$59,Carbon!$AH$4:$AI$10,2,FALSE),0)+IF('Crop 3'!$C$62=Carbon!$B59,'Crop 3'!$V$62*VLOOKUP('Crop 3'!$E$62,Carbon!$AH$4:$AI$10,2,FALSE),0)+IF('Crop 3'!$C$63=Carbon!$B59,'Crop 3'!$V$63*VLOOKUP('Crop 3'!$E$63,Carbon!$AH$4:$AI$10,2,FALSE),0)+IF('Crop 3'!$C$64=Carbon!$B59,'Crop 3'!$V$64*VLOOKUP('Crop 3'!$E$64,Carbon!$AH$4:$AI$10,2,FALSE),0)+IF('Crop 3'!$C$65=Carbon!$B59,'Crop 3'!$V$65*VLOOKUP('Crop 3'!$E$65,Carbon!$AH$4:$AI$10,2,FALSE),0))*$AL$20,2)","v":0},{"$f":"Q59*Inputs!$D$17","v":0},{"$f":"ROUND(T59/Inputs!D$19,2)","v":0},0,null,null,0,{"$f":"W59*Inputs!$D$13","v":0},0,{"$f":"Y59*Inputs!$D$13","v":0},0,{"$f":"AA59*Inputs!$D$13","v":0},{"$f":"ROUND(AD59/Inputs!D$19,2)","v":0},0]
[null,{"$f":"Defaults!AH26","v":"Butyrac"},{"$f":"ROUND((IF('Crop 1'!$C$14=Carbon!$B60,'Crop 1'!$L$14*VLOOKUP('Crop 1'!$E$14,Carbon!$AH$4:$AI$10,2,FALSE),0)+IF('Crop 1'!$C$15=Carbon!$B60,'Crop 1'!$L$15*VLOOKUP('Crop 1'!$E$15,Carbon!$AH$4:$AI$10,2,FALSE),0)+IF('Crop 1'!$C$16=Carbon!$B60,'Crop 1'!$L$16*VLOOKUP('Crop 1'!$E$16,Carbon!$AH$4:$AI$10,2,FALSE),0)+IF('Crop 1'!$C$19=Carbon!$B60,'Crop 1'!$L$19*VLOOKUP('Crop 1'!$E$19,Carbon!$AH$4:$AI$10,2,FALSE),0)+IF('Crop 1'!$C$20=Carbon!$B60,'Crop 1'!$L$20*VLOOKUP('Crop 1'!$E$20,Carbon!$AH$4:$AI$10,2,FALSE),0)+IF('Crop 1'!$C$21=Carbon!$B60,'Crop 1'!$L$21*VLOOKUP('Crop 1'!$E$21,Carbon!$AH$4:$AI$10,2,FALSE),0)+IF('Crop 1'!$C$49=Carbon!$B60,'Crop 1'!$L$49*VLOOKUP('Crop 1'!$E$49,Carbon!$AH$4:$AI$10,2,FALSE),0)+IF('Crop 1'!$C$50=Carbon!$B60,'Crop 1'!$L$50*VLOOKUP('Crop 1'!$E$50,Carbon!$AH$4:$AI$10,2,FALSE),0)+IF('Crop 1'!$C$51=Carbon!$B60,'Crop 1'!$L$51*VLOOKUP('Crop 1'!$E$51,Carbon!$AH$4:$AI$10,2,FALSE),0)+IF('Crop 1'!$C$52=Carbon!$B60,'Crop 1'!$L$52*VLOOKUP('Crop 1'!$E$52,Carbon!$AH$4:$AI$10,2,FALSE),0)+IF('Crop 1'!$C$53=Carbon!$B60,'Crop 1'!$L$53*VLOOKUP('Crop 1'!$E$53,Carbon!$AH$4:$AI$10,2,FALSE),0)+IF('Crop 1'!$C$56=Carbon!$B60,'Crop 1'!$L$56*VLOOKUP('Crop 1'!$E$56,Carbon!$AH$4:$AI$10,2,FALSE),0)+IF('Crop 1'!$C$57=Carbon!$B60,'Crop 1'!$L$57*VLOOKUP('Crop 1'!$E$57,Carbon!$AH$4:$AI$10,2,FALSE),0)+IF('Crop 1'!$C$58=Carbon!$B60,'Crop 1'!$L$58*VLOOKUP('Crop 1'!$E$58,Carbon!$AH$4:$AI$10,2,FALSE),0)+IF('Crop 1'!$C$59=Carbon!$B60,'Crop 1'!$L$59*VLOOKUP('Crop 1'!$E$59,Carbon!$AH$4:$AI$10,2,FALSE),0)+IF('Crop 1'!$C$62=Carbon!$B60,'Crop 1'!$L$62*VLOOKUP('Crop 1'!$E$62,Carbon!$AH$4:$AI$10,2,FALSE),0)+IF('Crop 1'!$C$63=Carbon!$B60,'Crop 1'!$L$63*VLOOKUP('Crop 1'!$E$63,Carbon!$AH$4:$AI$10,2,FALSE),0)+IF('Crop 1'!$C$64=Carbon!$B60,'Crop 1'!$L$64*VLOOKUP('Crop 1'!$E$64,Carbon!$AH$4:$AI$10,2,FALSE),0)+IF('Crop 1'!$C$65=Carbon!$B60,'Crop 1'!$L$65*VLOOKUP('Crop 1'!$E$65,Carbon!$AH$4:$AI$10,2,FALSE),0))*$AL$20,2)","v":0},{"$f":"C60*Inputs!$D$13","v":0},{"$f":"ROUND((IF('Crop 2'!$C$14=Carbon!$B60,'Crop 2'!$L$14*VLOOKUP('Crop 2'!$E$14,Carbon!$AH$4:$AI$10,2,FALSE),0)+IF('Crop 2'!$C$15=Carbon!$B60,'Crop 2'!$L$15*VLOOKUP('Crop 2'!$E$15,Carbon!$AH$4:$AI$10,2,FALSE),0)+IF('Crop 2'!$C$16=Carbon!$B60,'Crop 2'!$L$16*VLOOKUP('Crop 2'!$E$16,Carbon!$AH$4:$AI$10,2,FALSE),0)+IF('Crop 2'!$C$19=Carbon!$B60,'Crop 2'!$L$19*VLOOKUP('Crop 2'!$E$19,Carbon!$AH$4:$AI$10,2,FALSE),0)+IF('Crop 2'!$C$20=Carbon!$B60,'Crop 2'!$L$20*VLOOKUP('Crop 2'!$E$20,Carbon!$AH$4:$AI$10,2,FALSE),0)+IF('Crop 2'!$C$21=Carbon!$B60,'Crop 2'!$L$21*VLOOKUP('Crop 2'!$E$21,Carbon!$AH$4:$AI$10,2,FALSE),0)+IF('Crop 2'!$C$49=Carbon!$B60,'Crop 2'!$L$49*VLOOKUP('Crop 2'!$E$49,Carbon!$AH$4:$AI$10,2,FALSE),0)+IF('Crop 2'!$C$50=Carbon!$B60,'Crop 2'!$L$50*VLOOKUP('Crop 2'!$E$50,Carbon!$AH$4:$AI$10,2,FALSE),0)+IF('Crop 2'!$C$51=Carbon!$B60,'Crop 2'!$L$51*VLOOKUP('Crop 2'!$E$51,Carbon!$AH$4:$AI$10,2,FALSE),0)+IF('Crop 2'!$C$52=Carbon!$B60,'Crop 2'!$L$52*VLOOKUP('Crop 2'!$E$52,Carbon!$AH$4:$AI$10,2,FALSE),0)+IF('Crop 2'!$C$53=Carbon!$B60,'Crop 2'!$L$53*VLOOKUP('Crop 2'!$E$53,Carbon!$AH$4:$AI$10,2,FALSE),0)+IF('Crop 2'!$C$56=Carbon!$B60,'Crop 2'!$L$56*VLOOKUP('Crop 2'!$E$56,Carbon!$AH$4:$AI$10,2,FALSE),0)+IF('Crop 2'!$C$57=Carbon!$B60,'Crop 2'!$L$57*VLOOKUP('Crop 2'!$E$57,Carbon!$AH$4:$AI$10,2,FALSE),0)+IF('Crop 2'!$C$58=Carbon!$B60,'Crop 2'!$L$58*VLOOKUP('Crop 2'!$E$58,Carbon!$AH$4:$AI$10,2,FALSE),0)+IF('Crop 2'!$C$59=Carbon!$B60,'Crop 2'!$L$59*VLOOKUP('Crop 2'!$E$59,Carbon!$AH$4:$AI$10,2,FALSE),0)+IF('Crop 2'!$C$62=Carbon!$B60,'Crop 2'!$L$62*VLOOKUP('Crop 2'!$E$62,Carbon!$AH$4:$AI$10,2,FALSE),0)+IF('Crop 2'!$C$63=Carbon!$B60,'Crop 2'!$L$63*VLOOKUP('Crop 2'!$E$63,Carbon!$AH$4:$AI$10,2,FALSE),0)+IF('Crop 2'!$C$64=Carbon!$B60,'Crop 2'!$L$64*VLOOKUP('Crop 2'!$E$64,Carbon!$AH$4:$AI$10,2,FALSE),0)+IF('Crop 2'!$C$65=Carbon!$B60,'Crop 2'!$L$65*VLOOKUP('Crop 2'!$E$65,Carbon!$AH$4:$AI$10,2,FALSE),0))*$AL$20,2)","v":0},{"$f":"E60*Inputs!$D$15","v":0},{"$f":"ROUND((IF('Crop 3'!$C$14=Carbon!$B60,'Crop 3'!$L$14*VLOOKUP('Crop 3'!$E$14,Carbon!$AH$4:$AI$10,2,FALSE),0)+IF('Crop 3'!$C$15=Carbon!$B60,'Crop 3'!$L$15*VLOOKUP('Crop 3'!$E$15,Carbon!$AH$4:$AI$10,2,FALSE),0)+IF('Crop 3'!$C$16=Carbon!$B60,'Crop 3'!$L$16*VLOOKUP('Crop 3'!$E$16,Carbon!$AH$4:$AI$10,2,FALSE),0)+IF('Crop 3'!$C$19=Carbon!$B60,'Crop 3'!$L$19*VLOOKUP('Crop 3'!$E$19,Carbon!$AH$4:$AI$10,2,FALSE),0)+IF('Crop 3'!$C$20=Carbon!$B60,'Crop 3'!$L$20*VLOOKUP('Crop 3'!$E$20,Carbon!$AH$4:$AI$10,2,FALSE),0)+IF('Crop 3'!$C$21=Carbon!$B60,'Crop 3'!$L$21*VLOOKUP('Crop 3'!$E$21,Carbon!$AH$4:$AI$10,2,FALSE),0)+IF('Crop 3'!$C$49=Carbon!$B60,'Crop 3'!$L$49*VLOOKUP('Crop 3'!$E$49,Carbon!$AH$4:$AI$10,2,FALSE),0)+IF('Crop 3'!$C$50=Carbon!$B60,'Crop 3'!$L$50*VLOOKUP('Crop 3'!$E$50,Carbon!$AH$4:$AI$10,2,FALSE),0)+IF('Crop 3'!$C$51=Carbon!$B60,'Crop 3'!$L$51*VLOOKUP('Crop 3'!$E$51,Carbon!$AH$4:$AI$10,2,FALSE),0)+IF('Crop 3'!$C$52=Carbon!$B60,'Crop 3'!$L$52*VLOOKUP('Crop 3'!$E$52,Carbon!$AH$4:$AI$10,2,FALSE),0)+IF('Crop 3'!$C$53=Carbon!$B60,'Crop 3'!$L$53*VLOOKUP('Crop 3'!$E$53,Carbon!$AH$4:$AI$10,2,FALSE),0)+IF('Crop 3'!$C$56=Carbon!$B60,'Crop 3'!$L$56*VLOOKUP('Crop 3'!$E$56,Carbon!$AH$4:$AI$10,2,FALSE),0)+IF('Crop 3'!$C$57=Carbon!$B60,'Crop 3'!$L$57*VLOOKUP('Crop 3'!$E$57,Carbon!$AH$4:$AI$10,2,FALSE),0)+IF('Crop 3'!$C$58=Carbon!$B60,'Crop 3'!$L$58*VLOOKUP('Crop 3'!$E$58,Carbon!$AH$4:$AI$10,2,FALSE),0)+IF('Crop 3'!$C$59=Carbon!$B60,'Crop 3'!$L$59*VLOOKUP('Crop 3'!$E$59,Carbon!$AH$4:$AI$10,2,FALSE),0)+IF('Crop 3'!$C$62=Carbon!$B60,'Crop 3'!$L$62*VLOOKUP('Crop 3'!$E$62,Carbon!$AH$4:$AI$10,2,FALSE),0)+IF('Crop 3'!$C$63=Carbon!$B60,'Crop 3'!$L$63*VLOOKUP('Crop 3'!$E$63,Carbon!$AH$4:$AI$10,2,FALSE),0)+IF('Crop 3'!$C$64=Carbon!$B60,'Crop 3'!$L$64*VLOOKUP('Crop 3'!$E$64,Carbon!$AH$4:$AI$10,2,FALSE),0)+IF('Crop 3'!$C$65=Carbon!$B60,'Crop 3'!$L$65*VLOOKUP('Crop 3'!$E$65,Carbon!$AH$4:$AI$10,2,FALSE),0))*$AL$20,2)","v":0},{"$f":"G60*Inputs!$D$17","v":0},{"$f":"ROUND(J60/Inputs!D$19,2)","v":0},0,null,null,{"$f":"ROUND((IF('Crop 1'!$C$14=Carbon!$B60,'Crop 1'!$V$14*VLOOKUP('Crop 1'!$E$14,Carbon!$AH$4:$AI$10,2,FALSE),0)+IF('Crop 1'!$C$15=Carbon!$B60,'Crop 1'!$V$15*VLOOKUP('Crop 1'!$E$15,Carbon!$AH$4:$AI$10,2,FALSE),0)+IF('Crop 1'!$C$16=Carbon!$B60,'Crop 1'!$V$16*VLOOKUP('Crop 1'!$E$16,Carbon!$AH$4:$AI$10,2,FALSE),0)+IF('Crop 1'!$C$19=Carbon!$B60,'Crop 1'!$V$19*VLOOKUP('Crop 1'!$E$19,Carbon!$AH$4:$AI$10,2,FALSE),0)+IF('Crop 1'!$C$20=Carbon!$B60,'Crop 1'!$V$20*VLOOKUP('Crop 1'!$E$20,Carbon!$AH$4:$AI$10,2,FALSE),0)+IF('Crop 1'!$C$21=Carbon!$B60,'Crop 1'!$V$21*VLOOKUP('Crop 1'!$E$21,Carbon!$AH$4:$AI$10,2,FALSE),0)+IF('Crop 1'!$C$49=Carbon!$B60,'Crop 1'!$V$49*VLOOKUP('Crop 1'!$E$49,Carbon!$AH$4:$AI$10,2,FALSE),0)+IF('Crop 1'!$C$50=Carbon!$B60,'Crop 1'!$V$50*VLOOKUP('Crop 1'!$E$50,Carbon!$AH$4:$AI$10,2,FALSE),0)+IF('Crop 1'!$C$51=Carbon!$B60,'Crop 1'!$V$51*VLOOKUP('Crop 1'!$E$51,Carbon!$AH$4:$AI$10,2,FALSE),0)+IF('Crop 1'!$C$52=Carbon!$B60,'Crop 1'!$V$52*VLOOKUP('Crop 1'!$E$52,Carbon!$AH$4:$AI$10,2,FALSE),0)+IF('Crop 1'!$C$53=Carbon!$B60,'Crop 1'!$V$53*VLOOKUP('Crop 1'!$E$53,Carbon!$AH$4:$AI$10,2,FALSE),0)+IF('Crop 1'!$C$56=Carbon!$B60,'Crop 1'!$V$56*VLOOKUP('Crop 1'!$E$56,Carbon!$AH$4:$AI$10,2,FALSE),0)+IF('Crop 1'!$C$57=Carbon!$B60,'Crop 1'!$V$57*VLOOKUP('Crop 1'!$E$57,Carbon!$AH$4:$AI$10,2,FALSE),0)+IF('Crop 1'!$C$58=Carbon!$B60,'Crop 1'!$V$58*VLOOKUP('Crop 1'!$E$58,Carbon!$AH$4:$AI$10,2,FALSE),0)+IF('Crop 1'!$C$59=Carbon!$B60,'Crop 1'!$V$59*VLOOKUP('Crop 1'!$E$59,Carbon!$AH$4:$AI$10,2,FALSE),0)+IF('Crop 1'!$C$62=Carbon!$B60,'Crop 1'!$V$62*VLOOKUP('Crop 1'!$E$62,Carbon!$AH$4:$AI$10,2,FALSE),0)+IF('Crop 1'!$C$63=Carbon!$B60,'Crop 1'!$V$63*VLOOKUP('Crop 1'!$E$63,Carbon!$AH$4:$AI$10,2,FALSE),0)+IF('Crop 1'!$C$64=Carbon!$B60,'Crop 1'!$V$64*VLOOKUP('Crop 1'!$E$64,Carbon!$AH$4:$AI$10,2,FALSE),0)+IF('Crop 1'!$C$65=Carbon!$B60,'Crop 1'!$V$65*VLOOKUP('Crop 1'!$E$65,Carbon!$AH$4:$AI$10,2,FALSE),0))*$AL$20,2)","v":0},{"$f":"M60*Inputs!$D$13","v":0},{"$f":"ROUND((IF('Crop 2'!$C$14=Carbon!$B60,'Crop 2'!$V$14*VLOOKUP('Crop 2'!$E$14,Carbon!$AH$4:$AI$10,2,FALSE),0)+IF('Crop 2'!$C$15=Carbon!$B60,'Crop 2'!$V$15*VLOOKUP('Crop 2'!$E$15,Carbon!$AH$4:$AI$10,2,FALSE),0)+IF('Crop 2'!$C$16=Carbon!$B60,'Crop 2'!$V$16*VLOOKUP('Crop 2'!$E$16,Carbon!$AH$4:$AI$10,2,FALSE),0)+IF('Crop 2'!$C$19=Carbon!$B60,'Crop 2'!$V$19*VLOOKUP('Crop 2'!$E$19,Carbon!$AH$4:$AI$10,2,FALSE),0)+IF('Crop 2'!$C$20=Carbon!$B60,'Crop 2'!$V$20*VLOOKUP('Crop 2'!$E$20,Carbon!$AH$4:$AI$10,2,FALSE),0)+IF('Crop 2'!$C$21=Carbon!$B60,'Crop 2'!$V$21*VLOOKUP('Crop 2'!$E$21,Carbon!$AH$4:$AI$10,2,FALSE),0)+IF('Crop 2'!$C$49=Carbon!$B60,'Crop 2'!$V$49*VLOOKUP('Crop 2'!$E$49,Carbon!$AH$4:$AI$10,2,FALSE),0)+IF('Crop 2'!$C$50=Carbon!$B60,'Crop 2'!$V$50*VLOOKUP('Crop 2'!$E$50,Carbon!$AH$4:$AI$10,2,FALSE),0)+IF('Crop 2'!$C$51=Carbon!$B60,'Crop 2'!$V$51*VLOOKUP('Crop 2'!$E$51,Carbon!$AH$4:$AI$10,2,FALSE),0)+IF('Crop 2'!$C$52=Carbon!$B60,'Crop 2'!$V$52*VLOOKUP('Crop 2'!$E$52,Carbon!$AH$4:$AI$10,2,FALSE),0)+IF('Crop 2'!$C$53=Carbon!$B60,'Crop 2'!$V$53*VLOOKUP('Crop 2'!$E$53,Carbon!$AH$4:$AI$10,2,FALSE),0)+IF('Crop 2'!$C$56=Carbon!$B60,'Crop 2'!$V$56*VLOOKUP('Crop 2'!$E$56,Carbon!$AH$4:$AI$10,2,FALSE),0)+IF('Crop 2'!$C$57=Carbon!$B60,'Crop 2'!$V$57*VLOOKUP('Crop 2'!$E$57,Carbon!$AH$4:$AI$10,2,FALSE),0)+IF('Crop 2'!$C$58=Carbon!$B60,'Crop 2'!$V$58*VLOOKUP('Crop 2'!$E$58,Carbon!$AH$4:$AI$10,2,FALSE),0)+IF('Crop 2'!$C$59=Carbon!$B60,'Crop 2'!$V$59*VLOOKUP('Crop 2'!$E$59,Carbon!$AH$4:$AI$10,2,FALSE),0)+IF('Crop 2'!$C$62=Carbon!$B60,'Crop 2'!$V$62*VLOOKUP('Crop 2'!$E$62,Carbon!$AH$4:$AI$10,2,FALSE),0)+IF('Crop 2'!$C$63=Carbon!$B60,'Crop 2'!$V$63*VLOOKUP('Crop 2'!$E$63,Carbon!$AH$4:$AI$10,2,FALSE),0)+IF('Crop 2'!$C$64=Carbon!$B60,'Crop 2'!$V$64*VLOOKUP('Crop 2'!$E$64,Carbon!$AH$4:$AI$10,2,FALSE),0)+IF('Crop 2'!$C$65=Carbon!$B60,'Crop 2'!$V$65*VLOOKUP('Crop 2'!$E$65,Carbon!$AH$4:$AI$10,2,FALSE),0))*$AL$20,2)","v":0},{"$f":"O60*Inputs!$D$15","v":0},{"$f":"ROUND((IF('Crop 3'!$C$14=Carbon!$B60,'Crop 3'!$V$14*VLOOKUP('Crop 3'!$E$14,Carbon!$AH$4:$AI$10,2,FALSE),0)+IF('Crop 3'!$C$15=Carbon!$B60,'Crop 3'!$V$15*VLOOKUP('Crop 3'!$E$15,Carbon!$AH$4:$AI$10,2,FALSE),0)+IF('Crop 3'!$C$16=Carbon!$B60,'Crop 3'!$V$16*VLOOKUP('Crop 3'!$E$16,Carbon!$AH$4:$AI$10,2,FALSE),0)+IF('Crop 3'!$C$19=Carbon!$B60,'Crop 3'!$V$19*VLOOKUP('Crop 3'!$E$19,Carbon!$AH$4:$AI$10,2,FALSE),0)+IF('Crop 3'!$C$20=Carbon!$B60,'Crop 3'!$V$20*VLOOKUP('Crop 3'!$E$20,Carbon!$AH$4:$AI$10,2,FALSE),0)+IF('Crop 3'!$C$21=Carbon!$B60,'Crop 3'!$V$21*VLOOKUP('Crop 3'!$E$21,Carbon!$AH$4:$AI$10,2,FALSE),0)+IF('Crop 3'!$C$49=Carbon!$B60,'Crop 3'!$V$49*VLOOKUP('Crop 3'!$E$49,Carbon!$AH$4:$AI$10,2,FALSE),0)+IF('Crop 3'!$C$50=Carbon!$B60,'Crop 3'!$V$50*VLOOKUP('Crop 3'!$E$50,Carbon!$AH$4:$AI$10,2,FALSE),0)+IF('Crop 3'!$C$51=Carbon!$B60,'Crop 3'!$V$51*VLOOKUP('Crop 3'!$E$51,Carbon!$AH$4:$AI$10,2,FALSE),0)+IF('Crop 3'!$C$52=Carbon!$B60,'Crop 3'!$V$52*VLOOKUP('Crop 3'!$E$52,Carbon!$AH$4:$AI$10,2,FALSE),0)+IF('Crop 3'!$C$53=Carbon!$B60,'Crop 3'!$V$53*VLOOKUP('Crop 3'!$E$53,Carbon!$AH$4:$AI$10,2,FALSE),0)+IF('Crop 3'!$C$56=Carbon!$B60,'Crop 3'!$V$56*VLOOKUP('Crop 3'!$E$56,Carbon!$AH$4:$AI$10,2,FALSE),0)+IF('Crop 3'!$C$57=Carbon!$B60,'Crop 3'!$V$57*VLOOKUP('Crop 3'!$E$57,Carbon!$AH$4:$AI$10,2,FALSE),0)+IF('Crop 3'!$C$58=Carbon!$B60,'Crop 3'!$V$58*VLOOKUP('Crop 3'!$E$58,Carbon!$AH$4:$AI$10,2,FALSE),0)+IF('Crop 3'!$C$59=Carbon!$B60,'Crop 3'!$V$59*VLOOKUP('Crop 3'!$E$59,Carbon!$AH$4:$AI$10,2,FALSE),0)+IF('Crop 3'!$C$62=Carbon!$B60,'Crop 3'!$V$62*VLOOKUP('Crop 3'!$E$62,Carbon!$AH$4:$AI$10,2,FALSE),0)+IF('Crop 3'!$C$63=Carbon!$B60,'Crop 3'!$V$63*VLOOKUP('Crop 3'!$E$63,Carbon!$AH$4:$AI$10,2,FALSE),0)+IF('Crop 3'!$C$64=Carbon!$B60,'Crop 3'!$V$64*VLOOKUP('Crop 3'!$E$64,Carbon!$AH$4:$AI$10,2,FALSE),0)+IF('Crop 3'!$C$65=Carbon!$B60,'Crop 3'!$V$65*VLOOKUP('Crop 3'!$E$65,Carbon!$AH$4:$AI$10,2,FALSE),0))*$AL$20,2)","v":0},{"$f":"Q60*Inputs!$D$17","v":0},{"$f":"ROUND(T60/Inputs!D$19,2)","v":0},0,null,null,0,{"$f":"W60*Inputs!$D$13","v":0},0,{"$f":"Y60*Inputs!$D$13","v":0},0,{"$f":"AA60*Inputs!$D$13","v":0},{"$f":"ROUND(AD60/Inputs!D$19,2)","v":0},0]
[null,{"$f":"Defaults!AH27","v":"Cadet"},{"$f":"ROUND((IF('Crop 1'!$C$14=Carbon!$B61,'Crop 1'!$L$14*VLOOKUP('Crop 1'!$E$14,Carbon!$AH$4:$AI$10,2,FALSE),0)+IF('Crop 1'!$C$15=Carbon!$B61,'Crop 1'!$L$15*VLOOKUP('Crop 1'!$E$15,Carbon!$AH$4:$AI$10,2,FALSE),0)+IF('Crop 1'!$C$16=Carbon!$B61,'Crop 1'!$L$16*VLOOKUP('Crop 1'!$E$16,Carbon!$AH$4:$AI$10,2,FALSE),0)+IF('Crop 1'!$C$19=Carbon!$B61,'Crop 1'!$L$19*VLOOKUP('Crop 1'!$E$19,Carbon!$AH$4:$AI$10,2,FALSE),0)+IF('Crop 1'!$C$20=Carbon!$B61,'Crop 1'!$L$20*VLOOKUP('Crop 1'!$E$20,Carbon!$AH$4:$AI$10,2,FALSE),0)+IF('Crop 1'!$C$21=Carbon!$B61,'Crop 1'!$L$21*VLOOKUP('Crop 1'!$E$21,Carbon!$AH$4:$AI$10,2,FALSE),0)+IF('Crop 1'!$C$49=Carbon!$B61,'Crop 1'!$L$49*VLOOKUP('Crop 1'!$E$49,Carbon!$AH$4:$AI$10,2,FALSE),0)+IF('Crop 1'!$C$50=Carbon!$B61,'Crop 1'!$L$50*VLOOKUP('Crop 1'!$E$50,Carbon!$AH$4:$AI$10,2,FALSE),0)+IF('Crop 1'!$C$51=Carbon!$B61,'Crop 1'!$L$51*VLOOKUP('Crop 1'!$E$51,Carbon!$AH$4:$AI$10,2,FALSE),0)+IF('Crop 1'!$C$52=Carbon!$B61,'Crop 1'!$L$52*VLOOKUP('Crop 1'!$E$52,Carbon!$AH$4:$AI$10,2,FALSE),0)+IF('Crop 1'!$C$53=Carbon!$B61,'Crop 1'!$L$53*VLOOKUP('Crop 1'!$E$53,Carbon!$AH$4:$AI$10,2,FALSE),0)+IF('Crop 1'!$C$56=Carbon!$B61,'Crop 1'!$L$56*VLOOKUP('Crop 1'!$E$56,Carbon!$AH$4:$AI$10,2,FALSE),0)+IF('Crop 1'!$C$57=Carbon!$B61,'Crop 1'!$L$57*VLOOKUP('Crop 1'!$E$57,Carbon!$AH$4:$AI$10,2,FALSE),0)+IF('Crop 1'!$C$58=Carbon!$B61,'Crop 1'!$L$58*VLOOKUP('Crop 1'!$E$58,Carbon!$AH$4:$AI$10,2,FALSE),0)+IF('Crop 1'!$C$59=Carbon!$B61,'Crop 1'!$L$59*VLOOKUP('Crop 1'!$E$59,Carbon!$AH$4:$AI$10,2,FALSE),0)+IF('Crop 1'!$C$62=Carbon!$B61,'Crop 1'!$L$62*VLOOKUP('Crop 1'!$E$62,Carbon!$AH$4:$AI$10,2,FALSE),0)+IF('Crop 1'!$C$63=Carbon!$B61,'Crop 1'!$L$63*VLOOKUP('Crop 1'!$E$63,Carbon!$AH$4:$AI$10,2,FALSE),0)+IF('Crop 1'!$C$64=Carbon!$B61,'Crop 1'!$L$64*VLOOKUP('Crop 1'!$E$64,Carbon!$AH$4:$AI$10,2,FALSE),0)+IF('Crop 1'!$C$65=Carbon!$B61,'Crop 1'!$L$65*VLOOKUP('Crop 1'!$E$65,Carbon!$AH$4:$AI$10,2,FALSE),0))*$AL$20,2)","v":0},{"$f":"C61*Inputs!$D$13","v":0},{"$f":"ROUND((IF('Crop 2'!$C$14=Carbon!$B61,'Crop 2'!$L$14*VLOOKUP('Crop 2'!$E$14,Carbon!$AH$4:$AI$10,2,FALSE),0)+IF('Crop 2'!$C$15=Carbon!$B61,'Crop 2'!$L$15*VLOOKUP('Crop 2'!$E$15,Carbon!$AH$4:$AI$10,2,FALSE),0)+IF('Crop 2'!$C$16=Carbon!$B61,'Crop 2'!$L$16*VLOOKUP('Crop 2'!$E$16,Carbon!$AH$4:$AI$10,2,FALSE),0)+IF('Crop 2'!$C$19=Carbon!$B61,'Crop 2'!$L$19*VLOOKUP('Crop 2'!$E$19,Carbon!$AH$4:$AI$10,2,FALSE),0)+IF('Crop 2'!$C$20=Carbon!$B61,'Crop 2'!$L$20*VLOOKUP('Crop 2'!$E$20,Carbon!$AH$4:$AI$10,2,FALSE),0)+IF('Crop 2'!$C$21=Carbon!$B61,'Crop 2'!$L$21*VLOOKUP('Crop 2'!$E$21,Carbon!$AH$4:$AI$10,2,FALSE),0)+IF('Crop 2'!$C$49=Carbon!$B61,'Crop 2'!$L$49*VLOOKUP('Crop 2'!$E$49,Carbon!$AH$4:$AI$10,2,FALSE),0)+IF('Crop 2'!$C$50=Carbon!$B61,'Crop 2'!$L$50*VLOOKUP('Crop 2'!$E$50,Carbon!$AH$4:$AI$10,2,FALSE),0)+IF('Crop 2'!$C$51=Carbon!$B61,'Crop 2'!$L$51*VLOOKUP('Crop 2'!$E$51,Carbon!$AH$4:$AI$10,2,FALSE),0)+IF('Crop 2'!$C$52=Carbon!$B61,'Crop 2'!$L$52*VLOOKUP('Crop 2'!$E$52,Carbon!$AH$4:$AI$10,2,FALSE),0)+IF('Crop 2'!$C$53=Carbon!$B61,'Crop 2'!$L$53*VLOOKUP('Crop 2'!$E$53,Carbon!$AH$4:$AI$10,2,FALSE),0)+IF('Crop 2'!$C$56=Carbon!$B61,'Crop 2'!$L$56*VLOOKUP('Crop 2'!$E$56,Carbon!$AH$4:$AI$10,2,FALSE),0)+IF('Crop 2'!$C$57=Carbon!$B61,'Crop 2'!$L$57*VLOOKUP('Crop 2'!$E$57,Carbon!$AH$4:$AI$10,2,FALSE),0)+IF('Crop 2'!$C$58=Carbon!$B61,'Crop 2'!$L$58*VLOOKUP('Crop 2'!$E$58,Carbon!$AH$4:$AI$10,2,FALSE),0)+IF('Crop 2'!$C$59=Carbon!$B61,'Crop 2'!$L$59*VLOOKUP('Crop 2'!$E$59,Carbon!$AH$4:$AI$10,2,FALSE),0)+IF('Crop 2'!$C$62=Carbon!$B61,'Crop 2'!$L$62*VLOOKUP('Crop 2'!$E$62,Carbon!$AH$4:$AI$10,2,FALSE),0)+IF('Crop 2'!$C$63=Carbon!$B61,'Crop 2'!$L$63*VLOOKUP('Crop 2'!$E$63,Carbon!$AH$4:$AI$10,2,FALSE),0)+IF('Crop 2'!$C$64=Carbon!$B61,'Crop 2'!$L$64*VLOOKUP('Crop 2'!$E$64,Carbon!$AH$4:$AI$10,2,FALSE),0)+IF('Crop 2'!$C$65=Carbon!$B61,'Crop 2'!$L$65*VLOOKUP('Crop 2'!$E$65,Carbon!$AH$4:$AI$10,2,FALSE),0))*$AL$20,2)","v":0},{"$f":"E61*Inputs!$D$15","v":0},{"$f":"ROUND((IF('Crop 3'!$C$14=Carbon!$B61,'Crop 3'!$L$14*VLOOKUP('Crop 3'!$E$14,Carbon!$AH$4:$AI$10,2,FALSE),0)+IF('Crop 3'!$C$15=Carbon!$B61,'Crop 3'!$L$15*VLOOKUP('Crop 3'!$E$15,Carbon!$AH$4:$AI$10,2,FALSE),0)+IF('Crop 3'!$C$16=Carbon!$B61,'Crop 3'!$L$16*VLOOKUP('Crop 3'!$E$16,Carbon!$AH$4:$AI$10,2,FALSE),0)+IF('Crop 3'!$C$19=Carbon!$B61,'Crop 3'!$L$19*VLOOKUP('Crop 3'!$E$19,Carbon!$AH$4:$AI$10,2,FALSE),0)+IF('Crop 3'!$C$20=Carbon!$B61,'Crop 3'!$L$20*VLOOKUP('Crop 3'!$E$20,Carbon!$AH$4:$AI$10,2,FALSE),0)+IF('Crop 3'!$C$21=Carbon!$B61,'Crop 3'!$L$21*VLOOKUP('Crop 3'!$E$21,Carbon!$AH$4:$AI$10,2,FALSE),0)+IF('Crop 3'!$C$49=Carbon!$B61,'Crop 3'!$L$49*VLOOKUP('Crop 3'!$E$49,Carbon!$AH$4:$AI$10,2,FALSE),0)+IF('Crop 3'!$C$50=Carbon!$B61,'Crop 3'!$L$50*VLOOKUP('Crop 3'!$E$50,Carbon!$AH$4:$AI$10,2,FALSE),0)+IF('Crop 3'!$C$51=Carbon!$B61,'Crop 3'!$L$51*VLOOKUP('Crop 3'!$E$51,Carbon!$AH$4:$AI$10,2,FALSE),0)+IF('Crop 3'!$C$52=Carbon!$B61,'Crop 3'!$L$52*VLOOKUP('Crop 3'!$E$52,Carbon!$AH$4:$AI$10,2,FALSE),0)+IF('Crop 3'!$C$53=Carbon!$B61,'Crop 3'!$L$53*VLOOKUP('Crop 3'!$E$53,Carbon!$AH$4:$AI$10,2,FALSE),0)+IF('Crop 3'!$C$56=Carbon!$B61,'Crop 3'!$L$56*VLOOKUP('Crop 3'!$E$56,Carbon!$AH$4:$AI$10,2,FALSE),0)+IF('Crop 3'!$C$57=Carbon!$B61,'Crop 3'!$L$57*VLOOKUP('Crop 3'!$E$57,Carbon!$AH$4:$AI$10,2,FALSE),0)+IF('Crop 3'!$C$58=Carbon!$B61,'Crop 3'!$L$58*VLOOKUP('Crop 3'!$E$58,Carbon!$AH$4:$AI$10,2,FALSE),0)+IF('Crop 3'!$C$59=Carbon!$B61,'Crop 3'!$L$59*VLOOKUP('Crop 3'!$E$59,Carbon!$AH$4:$AI$10,2,FALSE),0)+IF('Crop 3'!$C$62=Carbon!$B61,'Crop 3'!$L$62*VLOOKUP('Crop 3'!$E$62,Carbon!$AH$4:$AI$10,2,FALSE),0)+IF('Crop 3'!$C$63=Carbon!$B61,'Crop 3'!$L$63*VLOOKUP('Crop 3'!$E$63,Carbon!$AH$4:$AI$10,2,FALSE),0)+IF('Crop 3'!$C$64=Carbon!$B61,'Crop 3'!$L$64*VLOOKUP('Crop 3'!$E$64,Carbon!$AH$4:$AI$10,2,FALSE),0)+IF('Crop 3'!$C$65=Carbon!$B61,'Crop 3'!$L$65*VLOOKUP('Crop 3'!$E$65,Carbon!$AH$4:$AI$10,2,FALSE),0))*$AL$20,2)","v":0},{"$f":"G61*Inputs!$D$17","v":0},{"$f":"ROUND(J61/Inputs!D$19,2)","v":0},0,null,null,{"$f":"ROUND((IF('Crop 1'!$C$14=Carbon!$B61,'Crop 1'!$V$14*VLOOKUP('Crop 1'!$E$14,Carbon!$AH$4:$AI$10,2,FALSE),0)+IF('Crop 1'!$C$15=Carbon!$B61,'Crop 1'!$V$15*VLOOKUP('Crop 1'!$E$15,Carbon!$AH$4:$AI$10,2,FALSE),0)+IF('Crop 1'!$C$16=Carbon!$B61,'Crop 1'!$V$16*VLOOKUP('Crop 1'!$E$16,Carbon!$AH$4:$AI$10,2,FALSE),0)+IF('Crop 1'!$C$19=Carbon!$B61,'Crop 1'!$V$19*VLOOKUP('Crop 1'!$E$19,Carbon!$AH$4:$AI$10,2,FALSE),0)+IF('Crop 1'!$C$20=Carbon!$B61,'Crop 1'!$V$20*VLOOKUP('Crop 1'!$E$20,Carbon!$AH$4:$AI$10,2,FALSE),0)+IF('Crop 1'!$C$21=Carbon!$B61,'Crop 1'!$V$21*VLOOKUP('Crop 1'!$E$21,Carbon!$AH$4:$AI$10,2,FALSE),0)+IF('Crop 1'!$C$49=Carbon!$B61,'Crop 1'!$V$49*VLOOKUP('Crop 1'!$E$49,Carbon!$AH$4:$AI$10,2,FALSE),0)+IF('Crop 1'!$C$50=Carbon!$B61,'Crop 1'!$V$50*VLOOKUP('Crop 1'!$E$50,Carbon!$AH$4:$AI$10,2,FALSE),0)+IF('Crop 1'!$C$51=Carbon!$B61,'Crop 1'!$V$51*VLOOKUP('Crop 1'!$E$51,Carbon!$AH$4:$AI$10,2,FALSE),0)+IF('Crop 1'!$C$52=Carbon!$B61,'Crop 1'!$V$52*VLOOKUP('Crop 1'!$E$52,Carbon!$AH$4:$AI$10,2,FALSE),0)+IF('Crop 1'!$C$53=Carbon!$B61,'Crop 1'!$V$53*VLOOKUP('Crop 1'!$E$53,Carbon!$AH$4:$AI$10,2,FALSE),0)+IF('Crop 1'!$C$56=Carbon!$B61,'Crop 1'!$V$56*VLOOKUP('Crop 1'!$E$56,Carbon!$AH$4:$AI$10,2,FALSE),0)+IF('Crop 1'!$C$57=Carbon!$B61,'Crop 1'!$V$57*VLOOKUP('Crop 1'!$E$57,Carbon!$AH$4:$AI$10,2,FALSE),0)+IF('Crop 1'!$C$58=Carbon!$B61,'Crop 1'!$V$58*VLOOKUP('Crop 1'!$E$58,Carbon!$AH$4:$AI$10,2,FALSE),0)+IF('Crop 1'!$C$59=Carbon!$B61,'Crop 1'!$V$59*VLOOKUP('Crop 1'!$E$59,Carbon!$AH$4:$AI$10,2,FALSE),0)+IF('Crop 1'!$C$62=Carbon!$B61,'Crop 1'!$V$62*VLOOKUP('Crop 1'!$E$62,Carbon!$AH$4:$AI$10,2,FALSE),0)+IF('Crop 1'!$C$63=Carbon!$B61,'Crop 1'!$V$63*VLOOKUP('Crop 1'!$E$63,Carbon!$AH$4:$AI$10,2,FALSE),0)+IF('Crop 1'!$C$64=Carbon!$B61,'Crop 1'!$V$64*VLOOKUP('Crop 1'!$E$64,Carbon!$AH$4:$AI$10,2,FALSE),0)+IF('Crop 1'!$C$65=Carbon!$B61,'Crop 1'!$V$65*VLOOKUP('Crop 1'!$E$65,Carbon!$AH$4:$AI$10,2,FALSE),0))*$AL$20,2)","v":0},{"$f":"M61*Inputs!$D$13","v":0},{"$f":"ROUND((IF('Crop 2'!$C$14=Carbon!$B61,'Crop 2'!$V$14*VLOOKUP('Crop 2'!$E$14,Carbon!$AH$4:$AI$10,2,FALSE),0)+IF('Crop 2'!$C$15=Carbon!$B61,'Crop 2'!$V$15*VLOOKUP('Crop 2'!$E$15,Carbon!$AH$4:$AI$10,2,FALSE),0)+IF('Crop 2'!$C$16=Carbon!$B61,'Crop 2'!$V$16*VLOOKUP('Crop 2'!$E$16,Carbon!$AH$4:$AI$10,2,FALSE),0)+IF('Crop 2'!$C$19=Carbon!$B61,'Crop 2'!$V$19*VLOOKUP('Crop 2'!$E$19,Carbon!$AH$4:$AI$10,2,FALSE),0)+IF('Crop 2'!$C$20=Carbon!$B61,'Crop 2'!$V$20*VLOOKUP('Crop 2'!$E$20,Carbon!$AH$4:$AI$10,2,FALSE),0)+IF('Crop 2'!$C$21=Carbon!$B61,'Crop 2'!$V$21*VLOOKUP('Crop 2'!$E$21,Carbon!$AH$4:$AI$10,2,FALSE),0)+IF('Crop 2'!$C$49=Carbon!$B61,'Crop 2'!$V$49*VLOOKUP('Crop 2'!$E$49,Carbon!$AH$4:$AI$10,2,FALSE),0)+IF('Crop 2'!$C$50=Carbon!$B61,'Crop 2'!$V$50*VLOOKUP('Crop 2'!$E$50,Carbon!$AH$4:$AI$10,2,FALSE),0)+IF('Crop 2'!$C$51=Carbon!$B61,'Crop 2'!$V$51*VLOOKUP('Crop 2'!$E$51,Carbon!$AH$4:$AI$10,2,FALSE),0)+IF('Crop 2'!$C$52=Carbon!$B61,'Crop 2'!$V$52*VLOOKUP('Crop 2'!$E$52,Carbon!$AH$4:$AI$10,2,FALSE),0)+IF('Crop 2'!$C$53=Carbon!$B61,'Crop 2'!$V$53*VLOOKUP('Crop 2'!$E$53,Carbon!$AH$4:$AI$10,2,FALSE),0)+IF('Crop 2'!$C$56=Carbon!$B61,'Crop 2'!$V$56*VLOOKUP('Crop 2'!$E$56,Carbon!$AH$4:$AI$10,2,FALSE),0)+IF('Crop 2'!$C$57=Carbon!$B61,'Crop 2'!$V$57*VLOOKUP('Crop 2'!$E$57,Carbon!$AH$4:$AI$10,2,FALSE),0)+IF('Crop 2'!$C$58=Carbon!$B61,'Crop 2'!$V$58*VLOOKUP('Crop 2'!$E$58,Carbon!$AH$4:$AI$10,2,FALSE),0)+IF('Crop 2'!$C$59=Carbon!$B61,'Crop 2'!$V$59*VLOOKUP('Crop 2'!$E$59,Carbon!$AH$4:$AI$10,2,FALSE),0)+IF('Crop 2'!$C$62=Carbon!$B61,'Crop 2'!$V$62*VLOOKUP('Crop 2'!$E$62,Carbon!$AH$4:$AI$10,2,FALSE),0)+IF('Crop 2'!$C$63=Carbon!$B61,'Crop 2'!$V$63*VLOOKUP('Crop 2'!$E$63,Carbon!$AH$4:$AI$10,2,FALSE),0)+IF('Crop 2'!$C$64=Carbon!$B61,'Crop 2'!$V$64*VLOOKUP('Crop 2'!$E$64,Carbon!$AH$4:$AI$10,2,FALSE),0)+IF('Crop 2'!$C$65=Carbon!$B61,'Crop 2'!$V$65*VLOOKUP('Crop 2'!$E$65,Carbon!$AH$4:$AI$10,2,FALSE),0))*$AL$20,2)","v":0},{"$f":"O61*Inputs!$D$15","v":0},{"$f":"ROUND((IF('Crop 3'!$C$14=Carbon!$B61,'Crop 3'!$V$14*VLOOKUP('Crop 3'!$E$14,Carbon!$AH$4:$AI$10,2,FALSE),0)+IF('Crop 3'!$C$15=Carbon!$B61,'Crop 3'!$V$15*VLOOKUP('Crop 3'!$E$15,Carbon!$AH$4:$AI$10,2,FALSE),0)+IF('Crop 3'!$C$16=Carbon!$B61,'Crop 3'!$V$16*VLOOKUP('Crop 3'!$E$16,Carbon!$AH$4:$AI$10,2,FALSE),0)+IF('Crop 3'!$C$19=Carbon!$B61,'Crop 3'!$V$19*VLOOKUP('Crop 3'!$E$19,Carbon!$AH$4:$AI$10,2,FALSE),0)+IF('Crop 3'!$C$20=Carbon!$B61,'Crop 3'!$V$20*VLOOKUP('Crop 3'!$E$20,Carbon!$AH$4:$AI$10,2,FALSE),0)+IF('Crop 3'!$C$21=Carbon!$B61,'Crop 3'!$V$21*VLOOKUP('Crop 3'!$E$21,Carbon!$AH$4:$AI$10,2,FALSE),0)+IF('Crop 3'!$C$49=Carbon!$B61,'Crop 3'!$V$49*VLOOKUP('Crop 3'!$E$49,Carbon!$AH$4:$AI$10,2,FALSE),0)+IF('Crop 3'!$C$50=Carbon!$B61,'Crop 3'!$V$50*VLOOKUP('Crop 3'!$E$50,Carbon!$AH$4:$AI$10,2,FALSE),0)+IF('Crop 3'!$C$51=Carbon!$B61,'Crop 3'!$V$51*VLOOKUP('Crop 3'!$E$51,Carbon!$AH$4:$AI$10,2,FALSE),0)+IF('Crop 3'!$C$52=Carbon!$B61,'Crop 3'!$V$52*VLOOKUP('Crop 3'!$E$52,Carbon!$AH$4:$AI$10,2,FALSE),0)+IF('Crop 3'!$C$53=Carbon!$B61,'Crop 3'!$V$53*VLOOKUP('Crop 3'!$E$53,Carbon!$AH$4:$AI$10,2,FALSE),0)+IF('Crop 3'!$C$56=Carbon!$B61,'Crop 3'!$V$56*VLOOKUP('Crop 3'!$E$56,Carbon!$AH$4:$AI$10,2,FALSE),0)+IF('Crop 3'!$C$57=Carbon!$B61,'Crop 3'!$V$57*VLOOKUP('Crop 3'!$E$57,Carbon!$AH$4:$AI$10,2,FALSE),0)+IF('Crop 3'!$C$58=Carbon!$B61,'Crop 3'!$V$58*VLOOKUP('Crop 3'!$E$58,Carbon!$AH$4:$AI$10,2,FALSE),0)+IF('Crop 3'!$C$59=Carbon!$B61,'Crop 3'!$V$59*VLOOKUP('Crop 3'!$E$59,Carbon!$AH$4:$AI$10,2,FALSE),0)+IF('Crop 3'!$C$62=Carbon!$B61,'Crop 3'!$V$62*VLOOKUP('Crop 3'!$E$62,Carbon!$AH$4:$AI$10,2,FALSE),0)+IF('Crop 3'!$C$63=Carbon!$B61,'Crop 3'!$V$63*VLOOKUP('Crop 3'!$E$63,Carbon!$AH$4:$AI$10,2,FALSE),0)+IF('Crop 3'!$C$64=Carbon!$B61,'Crop 3'!$V$64*VLOOKUP('Crop 3'!$E$64,Carbon!$AH$4:$AI$10,2,FALSE),0)+IF('Crop 3'!$C$65=Carbon!$B61,'Crop 3'!$V$65*VLOOKUP('Crop 3'!$E$65,Carbon!$AH$4:$AI$10,2,FALSE),0))*$AL$20,2)","v":0},{"$f":"Q61*Inputs!$D$17","v":0},{"$f":"ROUND(T61/Inputs!D$19,2)","v":0},0,null,null,0,{"$f":"W61*Inputs!$D$13","v":0},0,{"$f":"Y61*Inputs!$D$13","v":0},0,{"$f":"AA61*Inputs!$D$13","v":0},{"$f":"ROUND(AD61/Inputs!D$19,2)","v":0},0]
[null,{"$f":"Defaults!AH28","v":"Cadre"},{"$f":"ROUND((IF('Crop 1'!$C$14=Carbon!$B62,'Crop 1'!$L$14*VLOOKUP('Crop 1'!$E$14,Carbon!$AH$4:$AI$10,2,FALSE),0)+IF('Crop 1'!$C$15=Carbon!$B62,'Crop 1'!$L$15*VLOOKUP('Crop 1'!$E$15,Carbon!$AH$4:$AI$10,2,FALSE),0)+IF('Crop 1'!$C$16=Carbon!$B62,'Crop 1'!$L$16*VLOOKUP('Crop 1'!$E$16,Carbon!$AH$4:$AI$10,2,FALSE),0)+IF('Crop 1'!$C$19=Carbon!$B62,'Crop 1'!$L$19*VLOOKUP('Crop 1'!$E$19,Carbon!$AH$4:$AI$10,2,FALSE),0)+IF('Crop 1'!$C$20=Carbon!$B62,'Crop 1'!$L$20*VLOOKUP('Crop 1'!$E$20,Carbon!$AH$4:$AI$10,2,FALSE),0)+IF('Crop 1'!$C$21=Carbon!$B62,'Crop 1'!$L$21*VLOOKUP('Crop 1'!$E$21,Carbon!$AH$4:$AI$10,2,FALSE),0)+IF('Crop 1'!$C$49=Carbon!$B62,'Crop 1'!$L$49*VLOOKUP('Crop 1'!$E$49,Carbon!$AH$4:$AI$10,2,FALSE),0)+IF('Crop 1'!$C$50=Carbon!$B62,'Crop 1'!$L$50*VLOOKUP('Crop 1'!$E$50,Carbon!$AH$4:$AI$10,2,FALSE),0)+IF('Crop 1'!$C$51=Carbon!$B62,'Crop 1'!$L$51*VLOOKUP('Crop 1'!$E$51,Carbon!$AH$4:$AI$10,2,FALSE),0)+IF('Crop 1'!$C$52=Carbon!$B62,'Crop 1'!$L$52*VLOOKUP('Crop 1'!$E$52,Carbon!$AH$4:$AI$10,2,FALSE),0)+IF('Crop 1'!$C$53=Carbon!$B62,'Crop 1'!$L$53*VLOOKUP('Crop 1'!$E$53,Carbon!$AH$4:$AI$10,2,FALSE),0)+IF('Crop 1'!$C$56=Carbon!$B62,'Crop 1'!$L$56*VLOOKUP('Crop 1'!$E$56,Carbon!$AH$4:$AI$10,2,FALSE),0)+IF('Crop 1'!$C$57=Carbon!$B62,'Crop 1'!$L$57*VLOOKUP('Crop 1'!$E$57,Carbon!$AH$4:$AI$10,2,FALSE),0)+IF('Crop 1'!$C$58=Carbon!$B62,'Crop 1'!$L$58*VLOOKUP('Crop 1'!$E$58,Carbon!$AH$4:$AI$10,2,FALSE),0)+IF('Crop 1'!$C$59=Carbon!$B62,'Crop 1'!$L$59*VLOOKUP('Crop 1'!$E$59,Carbon!$AH$4:$AI$10,2,FALSE),0)+IF('Crop 1'!$C$62=Carbon!$B62,'Crop 1'!$L$62*VLOOKUP('Crop 1'!$E$62,Carbon!$AH$4:$AI$10,2,FALSE),0)+IF('Crop 1'!$C$63=Carbon!$B62,'Crop 1'!$L$63*VLOOKUP('Crop 1'!$E$63,Carbon!$AH$4:$AI$10,2,FALSE),0)+IF('Crop 1'!$C$64=Carbon!$B62,'Crop 1'!$L$64*VLOOKUP('Crop 1'!$E$64,Carbon!$AH$4:$AI$10,2,FALSE),0)+IF('Crop 1'!$C$65=Carbon!$B62,'Crop 1'!$L$65*VLOOKUP('Crop 1'!$E$65,Carbon!$AH$4:$AI$10,2,FALSE),0))*$AL$20,2)","v":0},{"$f":"C62*Inputs!$D$13","v":0},{"$f":"ROUND((IF('Crop 2'!$C$14=Carbon!$B62,'Crop 2'!$L$14*VLOOKUP('Crop 2'!$E$14,Carbon!$AH$4:$AI$10,2,FALSE),0)+IF('Crop 2'!$C$15=Carbon!$B62,'Crop 2'!$L$15*VLOOKUP('Crop 2'!$E$15,Carbon!$AH$4:$AI$10,2,FALSE),0)+IF('Crop 2'!$C$16=Carbon!$B62,'Crop 2'!$L$16*VLOOKUP('Crop 2'!$E$16,Carbon!$AH$4:$AI$10,2,FALSE),0)+IF('Crop 2'!$C$19=Carbon!$B62,'Crop 2'!$L$19*VLOOKUP('Crop 2'!$E$19,Carbon!$AH$4:$AI$10,2,FALSE),0)+IF('Crop 2'!$C$20=Carbon!$B62,'Crop 2'!$L$20*VLOOKUP('Crop 2'!$E$20,Carbon!$AH$4:$AI$10,2,FALSE),0)+IF('Crop 2'!$C$21=Carbon!$B62,'Crop 2'!$L$21*VLOOKUP('Crop 2'!$E$21,Carbon!$AH$4:$AI$10,2,FALSE),0)+IF('Crop 2'!$C$49=Carbon!$B62,'Crop 2'!$L$49*VLOOKUP('Crop 2'!$E$49,Carbon!$AH$4:$AI$10,2,FALSE),0)+IF('Crop 2'!$C$50=Carbon!$B62,'Crop 2'!$L$50*VLOOKUP('Crop 2'!$E$50,Carbon!$AH$4:$AI$10,2,FALSE),0)+IF('Crop 2'!$C$51=Carbon!$B62,'Crop 2'!$L$51*VLOOKUP('Crop 2'!$E$51,Carbon!$AH$4:$AI$10,2,FALSE),0)+IF('Crop 2'!$C$52=Carbon!$B62,'Crop 2'!$L$52*VLOOKUP('Crop 2'!$E$52,Carbon!$AH$4:$AI$10,2,FALSE),0)+IF('Crop 2'!$C$53=Carbon!$B62,'Crop 2'!$L$53*VLOOKUP('Crop 2'!$E$53,Carbon!$AH$4:$AI$10,2,FALSE),0)+IF('Crop 2'!$C$56=Carbon!$B62,'Crop 2'!$L$56*VLOOKUP('Crop 2'!$E$56,Carbon!$AH$4:$AI$10,2,FALSE),0)+IF('Crop 2'!$C$57=Carbon!$B62,'Crop 2'!$L$57*VLOOKUP('Crop 2'!$E$57,Carbon!$AH$4:$AI$10,2,FALSE),0)+IF('Crop 2'!$C$58=Carbon!$B62,'Crop 2'!$L$58*VLOOKUP('Crop 2'!$E$58,Carbon!$AH$4:$AI$10,2,FALSE),0)+IF('Crop 2'!$C$59=Carbon!$B62,'Crop 2'!$L$59*VLOOKUP('Crop 2'!$E$59,Carbon!$AH$4:$AI$10,2,FALSE),0)+IF('Crop 2'!$C$62=Carbon!$B62,'Crop 2'!$L$62*VLOOKUP('Crop 2'!$E$62,Carbon!$AH$4:$AI$10,2,FALSE),0)+IF('Crop 2'!$C$63=Carbon!$B62,'Crop 2'!$L$63*VLOOKUP('Crop 2'!$E$63,Carbon!$AH$4:$AI$10,2,FALSE),0)+IF('Crop 2'!$C$64=Carbon!$B62,'Crop 2'!$L$64*VLOOKUP('Crop 2'!$E$64,Carbon!$AH$4:$AI$10,2,FALSE),0)+IF('Crop 2'!$C$65=Carbon!$B62,'Crop 2'!$L$65*VLOOKUP('Crop 2'!$E$65,Carbon!$AH$4:$AI$10,2,FALSE),0))*$AL$20,2)","v":0},{"$f":"E62*Inputs!$D$15","v":0},{"$f":"ROUND((IF('Crop 3'!$C$14=Carbon!$B62,'Crop 3'!$L$14*VLOOKUP('Crop 3'!$E$14,Carbon!$AH$4:$AI$10,2,FALSE),0)+IF('Crop 3'!$C$15=Carbon!$B62,'Crop 3'!$L$15*VLOOKUP('Crop 3'!$E$15,Carbon!$AH$4:$AI$10,2,FALSE),0)+IF('Crop 3'!$C$16=Carbon!$B62,'Crop 3'!$L$16*VLOOKUP('Crop 3'!$E$16,Carbon!$AH$4:$AI$10,2,FALSE),0)+IF('Crop 3'!$C$19=Carbon!$B62,'Crop 3'!$L$19*VLOOKUP('Crop 3'!$E$19,Carbon!$AH$4:$AI$10,2,FALSE),0)+IF('Crop 3'!$C$20=Carbon!$B62,'Crop 3'!$L$20*VLOOKUP('Crop 3'!$E$20,Carbon!$AH$4:$AI$10,2,FALSE),0)+IF('Crop 3'!$C$21=Carbon!$B62,'Crop 3'!$L$21*VLOOKUP('Crop 3'!$E$21,Carbon!$AH$4:$AI$10,2,FALSE),0)+IF('Crop 3'!$C$49=Carbon!$B62,'Crop 3'!$L$49*VLOOKUP('Crop 3'!$E$49,Carbon!$AH$4:$AI$10,2,FALSE),0)+IF('Crop 3'!$C$50=Carbon!$B62,'Crop 3'!$L$50*VLOOKUP('Crop 3'!$E$50,Carbon!$AH$4:$AI$10,2,FALSE),0)+IF('Crop 3'!$C$51=Carbon!$B62,'Crop 3'!$L$51*VLOOKUP('Crop 3'!$E$51,Carbon!$AH$4:$AI$10,2,FALSE),0)+IF('Crop 3'!$C$52=Carbon!$B62,'Crop 3'!$L$52*VLOOKUP('Crop 3'!$E$52,Carbon!$AH$4:$AI$10,2,FALSE),0)+IF('Crop 3'!$C$53=Carbon!$B62,'Crop 3'!$L$53*VLOOKUP('Crop 3'!$E$53,Carbon!$AH$4:$AI$10,2,FALSE),0)+IF('Crop 3'!$C$56=Carbon!$B62,'Crop 3'!$L$56*VLOOKUP('Crop 3'!$E$56,Carbon!$AH$4:$AI$10,2,FALSE),0)+IF('Crop 3'!$C$57=Carbon!$B62,'Crop 3'!$L$57*VLOOKUP('Crop 3'!$E$57,Carbon!$AH$4:$AI$10,2,FALSE),0)+IF('Crop 3'!$C$58=Carbon!$B62,'Crop 3'!$L$58*VLOOKUP('Crop 3'!$E$58,Carbon!$AH$4:$AI$10,2,FALSE),0)+IF('Crop 3'!$C$59=Carbon!$B62,'Crop 3'!$L$59*VLOOKUP('Crop 3'!$E$59,Carbon!$AH$4:$AI$10,2,FALSE),0)+IF('Crop 3'!$C$62=Carbon!$B62,'Crop 3'!$L$62*VLOOKUP('Crop 3'!$E$62,Carbon!$AH$4:$AI$10,2,FALSE),0)+IF('Crop 3'!$C$63=Carbon!$B62,'Crop 3'!$L$63*VLOOKUP('Crop 3'!$E$63,Carbon!$AH$4:$AI$10,2,FALSE),0)+IF('Crop 3'!$C$64=Carbon!$B62,'Crop 3'!$L$64*VLOOKUP('Crop 3'!$E$64,Carbon!$AH$4:$AI$10,2,FALSE),0)+IF('Crop 3'!$C$65=Carbon!$B62,'Crop 3'!$L$65*VLOOKUP('Crop 3'!$E$65,Carbon!$AH$4:$AI$10,2,FALSE),0))*$AL$20,2)","v":0},{"$f":"G62*Inputs!$D$17","v":0},{"$f":"ROUND(J62/Inputs!D$19,2)","v":0},{"$f":"ROUND(D62+F62+H62,2)","v":0},null,null,{"$f":"ROUND((IF('Crop 1'!$C$14=Carbon!$B62,'Crop 1'!$V$14*VLOOKUP('Crop 1'!$E$14,Carbon!$AH$4:$AI$10,2,FALSE),0)+IF('Crop 1'!$C$15=Carbon!$B62,'Crop 1'!$V$15*VLOOKUP('Crop 1'!$E$15,Carbon!$AH$4:$AI$10,2,FALSE),0)+IF('Crop 1'!$C$16=Carbon!$B62,'Crop 1'!$V$16*VLOOKUP('Crop 1'!$E$16,Carbon!$AH$4:$AI$10,2,FALSE),0)+IF('Crop 1'!$C$19=Carbon!$B62,'Crop 1'!$V$19*VLOOKUP('Crop 1'!$E$19,Carbon!$AH$4:$AI$10,2,FALSE),0)+IF('Crop 1'!$C$20=Carbon!$B62,'Crop 1'!$V$20*VLOOKUP('Crop 1'!$E$20,Carbon!$AH$4:$AI$10,2,FALSE),0)+IF('Crop 1'!$C$21=Carbon!$B62,'Crop 1'!$V$21*VLOOKUP('Crop 1'!$E$21,Carbon!$AH$4:$AI$10,2,FALSE),0)+IF('Crop 1'!$C$49=Carbon!$B62,'Crop 1'!$V$49*VLOOKUP('Crop 1'!$E$49,Carbon!$AH$4:$AI$10,2,FALSE),0)+IF('Crop 1'!$C$50=Carbon!$B62,'Crop 1'!$V$50*VLOOKUP('Crop 1'!$E$50,Carbon!$AH$4:$AI$10,2,FALSE),0)+IF('Crop 1'!$C$51=Carbon!$B62,'Crop 1'!$V$51*VLOOKUP('Crop 1'!$E$51,Carbon!$AH$4:$AI$10,2,FALSE),0)+IF('Crop 1'!$C$52=Carbon!$B62,'Crop 1'!$V$52*VLOOKUP('Crop 1'!$E$52,Carbon!$AH$4:$AI$10,2,FALSE),0)+IF('Crop 1'!$C$53=Carbon!$B62,'Crop 1'!$V$53*VLOOKUP('Crop 1'!$E$53,Carbon!$AH$4:$AI$10,2,FALSE),0)+IF('Crop 1'!$C$56=Carbon!$B62,'Crop 1'!$V$56*VLOOKUP('Crop 1'!$E$56,Carbon!$AH$4:$AI$10,2,FALSE),0)+IF('Crop 1'!$C$57=Carbon!$B62,'Crop 1'!$V$57*VLOOKUP('Crop 1'!$E$57,Carbon!$AH$4:$AI$10,2,FALSE),0)+IF('Crop 1'!$C$58=Carbon!$B62,'Crop 1'!$V$58*VLOOKUP('Crop 1'!$E$58,Carbon!$AH$4:$AI$10,2,FALSE),0)+IF('Crop 1'!$C$59=Carbon!$B62,'Crop 1'!$V$59*VLOOKUP('Crop 1'!$E$59,Carbon!$AH$4:$AI$10,2,FALSE),0)+IF('Crop 1'!$C$62=Carbon!$B62,'Crop 1'!$V$62*VLOOKUP('Crop 1'!$E$62,Carbon!$AH$4:$AI$10,2,FALSE),0)+IF('Crop 1'!$C$63=Carbon!$B62,'Crop 1'!$V$63*VLOOKUP('Crop 1'!$E$63,Carbon!$AH$4:$AI$10,2,FALSE),0)+IF('Crop 1'!$C$64=Carbon!$B62,'Crop 1'!$V$64*VLOOKUP('Crop 1'!$E$64,Carbon!$AH$4:$AI$10,2,FALSE),0)+IF('Crop 1'!$C$65=Carbon!$B62,'Crop 1'!$V$65*VLOOKUP('Crop 1'!$E$65,Carbon!$AH$4:$AI$10,2,FALSE),0))*$AL$20,2)","v":0},{"$f":"M62*Inputs!$D$13","v":0},{"$f":"ROUND((IF('Crop 2'!$C$14=Carbon!$B62,'Crop 2'!$V$14*VLOOKUP('Crop 2'!$E$14,Carbon!$AH$4:$AI$10,2,FALSE),0)+IF('Crop 2'!$C$15=Carbon!$B62,'Crop 2'!$V$15*VLOOKUP('Crop 2'!$E$15,Carbon!$AH$4:$AI$10,2,FALSE),0)+IF('Crop 2'!$C$16=Carbon!$B62,'Crop 2'!$V$16*VLOOKUP('Crop 2'!$E$16,Carbon!$AH$4:$AI$10,2,FALSE),0)+IF('Crop 2'!$C$19=Carbon!$B62,'Crop 2'!$V$19*VLOOKUP('Crop 2'!$E$19,Carbon!$AH$4:$AI$10,2,FALSE),0)+IF('Crop 2'!$C$20=Carbon!$B62,'Crop 2'!$V$20*VLOOKUP('Crop 2'!$E$20,Carbon!$AH$4:$AI$10,2,FALSE),0)+IF('Crop 2'!$C$21=Carbon!$B62,'Crop 2'!$V$21*VLOOKUP('Crop 2'!$E$21,Carbon!$AH$4:$AI$10,2,FALSE),0)+IF('Crop 2'!$C$49=Carbon!$B62,'Crop 2'!$V$49*VLOOKUP('Crop 2'!$E$49,Carbon!$AH$4:$AI$10,2,FALSE),0)+IF('Crop 2'!$C$50=Carbon!$B62,'Crop 2'!$V$50*VLOOKUP('Crop 2'!$E$50,Carbon!$AH$4:$AI$10,2,FALSE),0)+IF('Crop 2'!$C$51=Carbon!$B62,'Crop 2'!$V$51*VLOOKUP('Crop 2'!$E$51,Carbon!$AH$4:$AI$10,2,FALSE),0)+IF('Crop 2'!$C$52=Carbon!$B62,'Crop 2'!$V$52*VLOOKUP('Crop 2'!$E$52,Carbon!$AH$4:$AI$10,2,FALSE),0)+IF('Crop 2'!$C$53=Carbon!$B62,'Crop 2'!$V$53*VLOOKUP('Crop 2'!$E$53,Carbon!$AH$4:$AI$10,2,FALSE),0)+IF('Crop 2'!$C$56=Carbon!$B62,'Crop 2'!$V$56*VLOOKUP('Crop 2'!$E$56,Carbon!$AH$4:$AI$10,2,FALSE),0)+IF('Crop 2'!$C$57=Carbon!$B62,'Crop 2'!$V$57*VLOOKUP('Crop 2'!$E$57,Carbon!$AH$4:$AI$10,2,FALSE),0)+IF('Crop 2'!$C$58=Carbon!$B62,'Crop 2'!$V$58*VLOOKUP('Crop 2'!$E$58,Carbon!$AH$4:$AI$10,2,FALSE),0)+IF('Crop 2'!$C$59=Carbon!$B62,'Crop 2'!$V$59*VLOOKUP('Crop 2'!$E$59,Carbon!$AH$4:$AI$10,2,FALSE),0)+IF('Crop 2'!$C$62=Carbon!$B62,'Crop 2'!$V$62*VLOOKUP('Crop 2'!$E$62,Carbon!$AH$4:$AI$10,2,FALSE),0)+IF('Crop 2'!$C$63=Carbon!$B62,'Crop 2'!$V$63*VLOOKUP('Crop 2'!$E$63,Carbon!$AH$4:$AI$10,2,FALSE),0)+IF('Crop 2'!$C$64=Carbon!$B62,'Crop 2'!$V$64*VLOOKUP('Crop 2'!$E$64,Carbon!$AH$4:$AI$10,2,FALSE),0)+IF('Crop 2'!$C$65=Carbon!$B62,'Crop 2'!$V$65*VLOOKUP('Crop 2'!$E$65,Carbon!$AH$4:$AI$10,2,FALSE),0))*$AL$20,2)","v":0},{"$f":"O62*Inputs!$D$15","v":0},{"$f":"ROUND((IF('Crop 3'!$C$14=Carbon!$B62,'Crop 3'!$V$14*VLOOKUP('Crop 3'!$E$14,Carbon!$AH$4:$AI$10,2,FALSE),0)+IF('Crop 3'!$C$15=Carbon!$B62,'Crop 3'!$V$15*VLOOKUP('Crop 3'!$E$15,Carbon!$AH$4:$AI$10,2,FALSE),0)+IF('Crop 3'!$C$16=Carbon!$B62,'Crop 3'!$V$16*VLOOKUP('Crop 3'!$E$16,Carbon!$AH$4:$AI$10,2,FALSE),0)+IF('Crop 3'!$C$19=Carbon!$B62,'Crop 3'!$V$19*VLOOKUP('Crop 3'!$E$19,Carbon!$AH$4:$AI$10,2,FALSE),0)+IF('Crop 3'!$C$20=Carbon!$B62,'Crop 3'!$V$20*VLOOKUP('Crop 3'!$E$20,Carbon!$AH$4:$AI$10,2,FALSE),0)+IF('Crop 3'!$C$21=Carbon!$B62,'Crop 3'!$V$21*VLOOKUP('Crop 3'!$E$21,Carbon!$AH$4:$AI$10,2,FALSE),0)+IF('Crop 3'!$C$49=Carbon!$B62,'Crop 3'!$V$49*VLOOKUP('Crop 3'!$E$49,Carbon!$AH$4:$AI$10,2,FALSE),0)+IF('Crop 3'!$C$50=Carbon!$B62,'Crop 3'!$V$50*VLOOKUP('Crop 3'!$E$50,Carbon!$AH$4:$AI$10,2,FALSE),0)+IF('Crop 3'!$C$51=Carbon!$B62,'Crop 3'!$V$51*VLOOKUP('Crop 3'!$E$51,Carbon!$AH$4:$AI$10,2,FALSE),0)+IF('Crop 3'!$C$52=Carbon!$B62,'Crop 3'!$V$52*VLOOKUP('Crop 3'!$E$52,Carbon!$AH$4:$AI$10,2,FALSE),0)+IF('Crop 3'!$C$53=Carbon!$B62,'Crop 3'!$V$53*VLOOKUP('Crop 3'!$E$53,Carbon!$AH$4:$AI$10,2,FALSE),0)+IF('Crop 3'!$C$56=Carbon!$B62,'Crop 3'!$V$56*VLOOKUP('Crop 3'!$E$56,Carbon!$AH$4:$AI$10,2,FALSE),0)+IF('Crop 3'!$C$57=Carbon!$B62,'Crop 3'!$V$57*VLOOKUP('Crop 3'!$E$57,Carbon!$AH$4:$AI$10,2,FALSE),0)+IF('Crop 3'!$C$58=Carbon!$B62,'Crop 3'!$V$58*VLOOKUP('Crop 3'!$E$58,Carbon!$AH$4:$AI$10,2,FALSE),0)+IF('Crop 3'!$C$59=Carbon!$B62,'Crop 3'!$V$59*VLOOKUP('Crop 3'!$E$59,Carbon!$AH$4:$AI$10,2,FALSE),0)+IF('Crop 3'!$C$62=Carbon!$B62,'Crop 3'!$V$62*VLOOKUP('Crop 3'!$E$62,Carbon!$AH$4:$AI$10,2,FALSE),0)+IF('Crop 3'!$C$63=Carbon!$B62,'Crop 3'!$V$63*VLOOKUP('Crop 3'!$E$63,Carbon!$AH$4:$AI$10,2,FALSE),0)+IF('Crop 3'!$C$64=Carbon!$B62,'Crop 3'!$V$64*VLOOKUP('Crop 3'!$E$64,Carbon!$AH$4:$AI$10,2,FALSE),0)+IF('Crop 3'!$C$65=Carbon!$B62,'Crop 3'!$V$65*VLOOKUP('Crop 3'!$E$65,Carbon!$AH$4:$AI$10,2,FALSE),0))*$AL$20,2)","v":0},{"$f":"Q62*Inputs!$D$17","v":0},{"$f":"ROUND(T62/Inputs!D$19,2)","v":0},{"$f":"ROUND(N62+P62+R62,2)","v":0},null,null,0,{"$f":"W62*Inputs!$D$13","v":0},0,{"$f":"Y62*Inputs!$D$13","v":0},0,{"$f":"AA62*Inputs!$D$13","v":0},{"$f":"ROUND(AD62/Inputs!D$19,2)","v":0},{"$f":"ROUND(X62+Z62+AB62,2)","v":0}]
[null,{"$f":"Defaults!AH29","v":"Callisto"},{"$f":"ROUND((IF('Crop 1'!$C$14=Carbon!$B63,'Crop 1'!$L$14*VLOOKUP('Crop 1'!$E$14,Carbon!$AH$4:$AI$10,2,FALSE),0)+IF('Crop 1'!$C$15=Carbon!$B63,'Crop 1'!$L$15*VLOOKUP('Crop 1'!$E$15,Carbon!$AH$4:$AI$10,2,FALSE),0)+IF('Crop 1'!$C$16=Carbon!$B63,'Crop 1'!$L$16*VLOOKUP('Crop 1'!$E$16,Carbon!$AH$4:$AI$10,2,FALSE),0)+IF('Crop 1'!$C$19=Carbon!$B63,'Crop 1'!$L$19*VLOOKUP('Crop 1'!$E$19,Carbon!$AH$4:$AI$10,2,FALSE),0)+IF('Crop 1'!$C$20=Carbon!$B63,'Crop 1'!$L$20*VLOOKUP('Crop 1'!$E$20,Carbon!$AH$4:$AI$10,2,FALSE),0)+IF('Crop 1'!$C$21=Carbon!$B63,'Crop 1'!$L$21*VLOOKUP('Crop 1'!$E$21,Carbon!$AH$4:$AI$10,2,FALSE),0)+IF('Crop 1'!$C$49=Carbon!$B63,'Crop 1'!$L$49*VLOOKUP('Crop 1'!$E$49,Carbon!$AH$4:$AI$10,2,FALSE),0)+IF('Crop 1'!$C$50=Carbon!$B63,'Crop 1'!$L$50*VLOOKUP('Crop 1'!$E$50,Carbon!$AH$4:$AI$10,2,FALSE),0)+IF('Crop 1'!$C$51=Carbon!$B63,'Crop 1'!$L$51*VLOOKUP('Crop 1'!$E$51,Carbon!$AH$4:$AI$10,2,FALSE),0)+IF('Crop 1'!$C$52=Carbon!$B63,'Crop 1'!$L$52*VLOOKUP('Crop 1'!$E$52,Carbon!$AH$4:$AI$10,2,FALSE),0)+IF('Crop 1'!$C$53=Carbon!$B63,'Crop 1'!$L$53*VLOOKUP('Crop 1'!$E$53,Carbon!$AH$4:$AI$10,2,FALSE),0)+IF('Crop 1'!$C$56=Carbon!$B63,'Crop 1'!$L$56*VLOOKUP('Crop 1'!$E$56,Carbon!$AH$4:$AI$10,2,FALSE),0)+IF('Crop 1'!$C$57=Carbon!$B63,'Crop 1'!$L$57*VLOOKUP('Crop 1'!$E$57,Carbon!$AH$4:$AI$10,2,FALSE),0)+IF('Crop 1'!$C$58=Carbon!$B63,'Crop 1'!$L$58*VLOOKUP('Crop 1'!$E$58,Carbon!$AH$4:$AI$10,2,FALSE),0)+IF('Crop 1'!$C$59=Carbon!$B63,'Crop 1'!$L$59*VLOOKUP('Crop 1'!$E$59,Carbon!$AH$4:$AI$10,2,FALSE),0)+IF('Crop 1'!$C$62=Carbon!$B63,'Crop 1'!$L$62*VLOOKUP('Crop 1'!$E$62,Carbon!$AH$4:$AI$10,2,FALSE),0)+IF('Crop 1'!$C$63=Carbon!$B63,'Crop 1'!$L$63*VLOOKUP('Crop 1'!$E$63,Carbon!$AH$4:$AI$10,2,FALSE),0)+IF('Crop 1'!$C$64=Carbon!$B63,'Crop 1'!$L$64*VLOOKUP('Crop 1'!$E$64,Carbon!$AH$4:$AI$10,2,FALSE),0)+IF('Crop 1'!$C$65=Carbon!$B63,'Crop 1'!$L$65*VLOOKUP('Crop 1'!$E$65,Carbon!$AH$4:$AI$10,2,FALSE),0))*$AL$20,2)","v":0},{"$f":"C63*Inputs!$D$13","v":0},{"$f":"ROUND((IF('Crop 2'!$C$14=Carbon!$B63,'Crop 2'!$L$14*VLOOKUP('Crop 2'!$E$14,Carbon!$AH$4:$AI$10,2,FALSE),0)+IF('Crop 2'!$C$15=Carbon!$B63,'Crop 2'!$L$15*VLOOKUP('Crop 2'!$E$15,Carbon!$AH$4:$AI$10,2,FALSE),0)+IF('Crop 2'!$C$16=Carbon!$B63,'Crop 2'!$L$16*VLOOKUP('Crop 2'!$E$16,Carbon!$AH$4:$AI$10,2,FALSE),0)+IF('Crop 2'!$C$19=Carbon!$B63,'Crop 2'!$L$19*VLOOKUP('Crop 2'!$E$19,Carbon!$AH$4:$AI$10,2,FALSE),0)+IF('Crop 2'!$C$20=Carbon!$B63,'Crop 2'!$L$20*VLOOKUP('Crop 2'!$E$20,Carbon!$AH$4:$AI$10,2,FALSE),0)+IF('Crop 2'!$C$21=Carbon!$B63,'Crop 2'!$L$21*VLOOKUP('Crop 2'!$E$21,Carbon!$AH$4:$AI$10,2,FALSE),0)+IF('Crop 2'!$C$49=Carbon!$B63,'Crop 2'!$L$49*VLOOKUP('Crop 2'!$E$49,Carbon!$AH$4:$AI$10,2,FALSE),0)+IF('Crop 2'!$C$50=Carbon!$B63,'Crop 2'!$L$50*VLOOKUP('Crop 2'!$E$50,Carbon!$AH$4:$AI$10,2,FALSE),0)+IF('Crop 2'!$C$51=Carbon!$B63,'Crop 2'!$L$51*VLOOKUP('Crop 2'!$E$51,Carbon!$AH$4:$AI$10,2,FALSE),0)+IF('Crop 2'!$C$52=Carbon!$B63,'Crop 2'!$L$52*VLOOKUP('Crop 2'!$E$52,Carbon!$AH$4:$AI$10,2,FALSE),0)+IF('Crop 2'!$C$53=Carbon!$B63,'Crop 2'!$L$53*VLOOKUP('Crop 2'!$E$53,Carbon!$AH$4:$AI$10,2,FALSE),0)+IF('Crop 2'!$C$56=Carbon!$B63,'Crop 2'!$L$56*VLOOKUP('Crop 2'!$E$56,Carbon!$AH$4:$AI$10,2,FALSE),0)+IF('Crop 2'!$C$57=Carbon!$B63,'Crop 2'!$L$57*VLOOKUP('Crop 2'!$E$57,Carbon!$AH$4:$AI$10,2,FALSE),0)+IF('Crop 2'!$C$58=Carbon!$B63,'Crop 2'!$L$58*VLOOKUP('Crop 2'!$E$58,Carbon!$AH$4:$AI$10,2,FALSE),0)+IF('Crop 2'!$C$59=Carbon!$B63,'Crop 2'!$L$59*VLOOKUP('Crop 2'!$E$59,Carbon!$AH$4:$AI$10,2,FALSE),0)+IF('Crop 2'!$C$62=Carbon!$B63,'Crop 2'!$L$62*VLOOKUP('Crop 2'!$E$62,Carbon!$AH$4:$AI$10,2,FALSE),0)+IF('Crop 2'!$C$63=Carbon!$B63,'Crop 2'!$L$63*VLOOKUP('Crop 2'!$E$63,Carbon!$AH$4:$AI$10,2,FALSE),0)+IF('Crop 2'!$C$64=Carbon!$B63,'Crop 2'!$L$64*VLOOKUP('Crop 2'!$E$64,Carbon!$AH$4:$AI$10,2,FALSE),0)+IF('Crop 2'!$C$65=Carbon!$B63,'Crop 2'!$L$65*VLOOKUP('Crop 2'!$E$65,Carbon!$AH$4:$AI$10,2,FALSE),0))*$AL$20,2)","v":0},{"$f":"E63*Inputs!$D$15","v":0},{"$f":"ROUND((IF('Crop 3'!$C$14=Carbon!$B63,'Crop 3'!$L$14*VLOOKUP('Crop 3'!$E$14,Carbon!$AH$4:$AI$10,2,FALSE),0)+IF('Crop 3'!$C$15=Carbon!$B63,'Crop 3'!$L$15*VLOOKUP('Crop 3'!$E$15,Carbon!$AH$4:$AI$10,2,FALSE),0)+IF('Crop 3'!$C$16=Carbon!$B63,'Crop 3'!$L$16*VLOOKUP('Crop 3'!$E$16,Carbon!$AH$4:$AI$10,2,FALSE),0)+IF('Crop 3'!$C$19=Carbon!$B63,'Crop 3'!$L$19*VLOOKUP('Crop 3'!$E$19,Carbon!$AH$4:$AI$10,2,FALSE),0)+IF('Crop 3'!$C$20=Carbon!$B63,'Crop 3'!$L$20*VLOOKUP('Crop 3'!$E$20,Carbon!$AH$4:$AI$10,2,FALSE),0)+IF('Crop 3'!$C$21=Carbon!$B63,'Crop 3'!$L$21*VLOOKUP('Crop 3'!$E$21,Carbon!$AH$4:$AI$10,2,FALSE),0)+IF('Crop 3'!$C$49=Carbon!$B63,'Crop 3'!$L$49*VLOOKUP('Crop 3'!$E$49,Carbon!$AH$4:$AI$10,2,FALSE),0)+IF('Crop 3'!$C$50=Carbon!$B63,'Crop 3'!$L$50*VLOOKUP('Crop 3'!$E$50,Carbon!$AH$4:$AI$10,2,FALSE),0)+IF('Crop 3'!$C$51=Carbon!$B63,'Crop 3'!$L$51*VLOOKUP('Crop 3'!$E$51,Carbon!$AH$4:$AI$10,2,FALSE),0)+IF('Crop 3'!$C$52=Carbon!$B63,'Crop 3'!$L$52*VLOOKUP('Crop 3'!$E$52,Carbon!$AH$4:$AI$10,2,FALSE),0)+IF('Crop 3'!$C$53=Carbon!$B63,'Crop 3'!$L$53*VLOOKUP('Crop 3'!$E$53,Carbon!$AH$4:$AI$10,2,FALSE),0)+IF('Crop 3'!$C$56=Carbon!$B63,'Crop 3'!$L$56*VLOOKUP('Crop 3'!$E$56,Carbon!$AH$4:$AI$10,2,FALSE),0)+IF('Crop 3'!$C$57=Carbon!$B63,'Crop 3'!$L$57*VLOOKUP('Crop 3'!$E$57,Carbon!$AH$4:$AI$10,2,FALSE),0)+IF('Crop 3'!$C$58=Carbon!$B63,'Crop 3'!$L$58*VLOOKUP('Crop 3'!$E$58,Carbon!$AH$4:$AI$10,2,FALSE),0)+IF('Crop 3'!$C$59=Carbon!$B63,'Crop 3'!$L$59*VLOOKUP('Crop 3'!$E$59,Carbon!$AH$4:$AI$10,2,FALSE),0)+IF('Crop 3'!$C$62=Carbon!$B63,'Crop 3'!$L$62*VLOOKUP('Crop 3'!$E$62,Carbon!$AH$4:$AI$10,2,FALSE),0)+IF('Crop 3'!$C$63=Carbon!$B63,'Crop 3'!$L$63*VLOOKUP('Crop 3'!$E$63,Carbon!$AH$4:$AI$10,2,FALSE),0)+IF('Crop 3'!$C$64=Carbon!$B63,'Crop 3'!$L$64*VLOOKUP('Crop 3'!$E$64,Carbon!$AH$4:$AI$10,2,FALSE),0)+IF('Crop 3'!$C$65=Carbon!$B63,'Crop 3'!$L$65*VLOOKUP('Crop 3'!$E$65,Carbon!$AH$4:$AI$10,2,FALSE),0))*$AL$20,2)","v":0},{"$f":"G63*Inputs!$D$17","v":0},{"$f":"ROUND(J63/Inputs!D$19,2)","v":0},0,null,null,{"$f":"ROUND((IF('Crop 1'!$C$14=Carbon!$B63,'Crop 1'!$V$14*VLOOKUP('Crop 1'!$E$14,Carbon!$AH$4:$AI$10,2,FALSE),0)+IF('Crop 1'!$C$15=Carbon!$B63,'Crop 1'!$V$15*VLOOKUP('Crop 1'!$E$15,Carbon!$AH$4:$AI$10,2,FALSE),0)+IF('Crop 1'!$C$16=Carbon!$B63,'Crop 1'!$V$16*VLOOKUP('Crop 1'!$E$16,Carbon!$AH$4:$AI$10,2,FALSE),0)+IF('Crop 1'!$C$19=Carbon!$B63,'Crop 1'!$V$19*VLOOKUP('Crop 1'!$E$19,Carbon!$AH$4:$AI$10,2,FALSE),0)+IF('Crop 1'!$C$20=Carbon!$B63,'Crop 1'!$V$20*VLOOKUP('Crop 1'!$E$20,Carbon!$AH$4:$AI$10,2,FALSE),0)+IF('Crop 1'!$C$21=Carbon!$B63,'Crop 1'!$V$21*VLOOKUP('Crop 1'!$E$21,Carbon!$AH$4:$AI$10,2,FALSE),0)+IF('Crop 1'!$C$49=Carbon!$B63,'Crop 1'!$V$49*VLOOKUP('Crop 1'!$E$49,Carbon!$AH$4:$AI$10,2,FALSE),0)+IF('Crop 1'!$C$50=Carbon!$B63,'Crop 1'!$V$50*VLOOKUP('Crop 1'!$E$50,Carbon!$AH$4:$AI$10,2,FALSE),0)+IF('Crop 1'!$C$51=Carbon!$B63,'Crop 1'!$V$51*VLOOKUP('Crop 1'!$E$51,Carbon!$AH$4:$AI$10,2,FALSE),0)+IF('Crop 1'!$C$52=Carbon!$B63,'Crop 1'!$V$52*VLOOKUP('Crop 1'!$E$52,Carbon!$AH$4:$AI$10,2,FALSE),0)+IF('Crop 1'!$C$53=Carbon!$B63,'Crop 1'!$V$53*VLOOKUP('Crop 1'!$E$53,Carbon!$AH$4:$AI$10,2,FALSE),0)+IF('Crop 1'!$C$56=Carbon!$B63,'Crop 1'!$V$56*VLOOKUP('Crop 1'!$E$56,Carbon!$AH$4:$AI$10,2,FALSE),0)+IF('Crop 1'!$C$57=Carbon!$B63,'Crop 1'!$V$57*VLOOKUP('Crop 1'!$E$57,Carbon!$AH$4:$AI$10,2,FALSE),0)+IF('Crop 1'!$C$58=Carbon!$B63,'Crop 1'!$V$58*VLOOKUP('Crop 1'!$E$58,Carbon!$AH$4:$AI$10,2,FALSE),0)+IF('Crop 1'!$C$59=Carbon!$B63,'Crop 1'!$V$59*VLOOKUP('Crop 1'!$E$59,Carbon!$AH$4:$AI$10,2,FALSE),0)+IF('Crop 1'!$C$62=Carbon!$B63,'Crop 1'!$V$62*VLOOKUP('Crop 1'!$E$62,Carbon!$AH$4:$AI$10,2,FALSE),0)+IF('Crop 1'!$C$63=Carbon!$B63,'Crop 1'!$V$63*VLOOKUP('Crop 1'!$E$63,Carbon!$AH$4:$AI$10,2,FALSE),0)+IF('Crop 1'!$C$64=Carbon!$B63,'Crop 1'!$V$64*VLOOKUP('Crop 1'!$E$64,Carbon!$AH$4:$AI$10,2,FALSE),0)+IF('Crop 1'!$C$65=Carbon!$B63,'Crop 1'!$V$65*VLOOKUP('Crop 1'!$E$65,Carbon!$AH$4:$AI$10,2,FALSE),0))*$AL$20,2)","v":0},{"$f":"M63*Inputs!$D$13","v":0},{"$f":"ROUND((IF('Crop 2'!$C$14=Carbon!$B63,'Crop 2'!$V$14*VLOOKUP('Crop 2'!$E$14,Carbon!$AH$4:$AI$10,2,FALSE),0)+IF('Crop 2'!$C$15=Carbon!$B63,'Crop 2'!$V$15*VLOOKUP('Crop 2'!$E$15,Carbon!$AH$4:$AI$10,2,FALSE),0)+IF('Crop 2'!$C$16=Carbon!$B63,'Crop 2'!$V$16*VLOOKUP('Crop 2'!$E$16,Carbon!$AH$4:$AI$10,2,FALSE),0)+IF('Crop 2'!$C$19=Carbon!$B63,'Crop 2'!$V$19*VLOOKUP('Crop 2'!$E$19,Carbon!$AH$4:$AI$10,2,FALSE),0)+IF('Crop 2'!$C$20=Carbon!$B63,'Crop 2'!$V$20*VLOOKUP('Crop 2'!$E$20,Carbon!$AH$4:$AI$10,2,FALSE),0)+IF('Crop 2'!$C$21=Carbon!$B63,'Crop 2'!$V$21*VLOOKUP('Crop 2'!$E$21,Carbon!$AH$4:$AI$10,2,FALSE),0)+IF('Crop 2'!$C$49=Carbon!$B63,'Crop 2'!$V$49*VLOOKUP('Crop 2'!$E$49,Carbon!$AH$4:$AI$10,2,FALSE),0)+IF('Crop 2'!$C$50=Carbon!$B63,'Crop 2'!$V$50*VLOOKUP('Crop 2'!$E$50,Carbon!$AH$4:$AI$10,2,FALSE),0)+IF('Crop 2'!$C$51=Carbon!$B63,'Crop 2'!$V$51*VLOOKUP('Crop 2'!$E$51,Carbon!$AH$4:$AI$10,2,FALSE),0)+IF('Crop 2'!$C$52=Carbon!$B63,'Crop 2'!$V$52*VLOOKUP('Crop 2'!$E$52,Carbon!$AH$4:$AI$10,2,FALSE),0)+IF('Crop 2'!$C$53=Carbon!$B63,'Crop 2'!$V$53*VLOOKUP('Crop 2'!$E$53,Carbon!$AH$4:$AI$10,2,FALSE),0)+IF('Crop 2'!$C$56=Carbon!$B63,'Crop 2'!$V$56*VLOOKUP('Crop 2'!$E$56,Carbon!$AH$4:$AI$10,2,FALSE),0)+IF('Crop 2'!$C$57=Carbon!$B63,'Crop 2'!$V$57*VLOOKUP('Crop 2'!$E$57,Carbon!$AH$4:$AI$10,2,FALSE),0)+IF('Crop 2'!$C$58=Carbon!$B63,'Crop 2'!$V$58*VLOOKUP('Crop 2'!$E$58,Carbon!$AH$4:$AI$10,2,FALSE),0)+IF('Crop 2'!$C$59=Carbon!$B63,'Crop 2'!$V$59*VLOOKUP('Crop 2'!$E$59,Carbon!$AH$4:$AI$10,2,FALSE),0)+IF('Crop 2'!$C$62=Carbon!$B63,'Crop 2'!$V$62*VLOOKUP('Crop 2'!$E$62,Carbon!$AH$4:$AI$10,2,FALSE),0)+IF('Crop 2'!$C$63=Carbon!$B63,'Crop 2'!$V$63*VLOOKUP('Crop 2'!$E$63,Carbon!$AH$4:$AI$10,2,FALSE),0)+IF('Crop 2'!$C$64=Carbon!$B63,'Crop 2'!$V$64*VLOOKUP('Crop 2'!$E$64,Carbon!$AH$4:$AI$10,2,FALSE),0)+IF('Crop 2'!$C$65=Carbon!$B63,'Crop 2'!$V$65*VLOOKUP('Crop 2'!$E$65,Carbon!$AH$4:$AI$10,2,FALSE),0))*$AL$20,2)","v":0},{"$f":"O63*Inputs!$D$15","v":0},{"$f":"ROUND((IF('Crop 3'!$C$14=Carbon!$B63,'Crop 3'!$V$14*VLOOKUP('Crop 3'!$E$14,Carbon!$AH$4:$AI$10,2,FALSE),0)+IF('Crop 3'!$C$15=Carbon!$B63,'Crop 3'!$V$15*VLOOKUP('Crop 3'!$E$15,Carbon!$AH$4:$AI$10,2,FALSE),0)+IF('Crop 3'!$C$16=Carbon!$B63,'Crop 3'!$V$16*VLOOKUP('Crop 3'!$E$16,Carbon!$AH$4:$AI$10,2,FALSE),0)+IF('Crop 3'!$C$19=Carbon!$B63,'Crop 3'!$V$19*VLOOKUP('Crop 3'!$E$19,Carbon!$AH$4:$AI$10,2,FALSE),0)+IF('Crop 3'!$C$20=Carbon!$B63,'Crop 3'!$V$20*VLOOKUP('Crop 3'!$E$20,Carbon!$AH$4:$AI$10,2,FALSE),0)+IF('Crop 3'!$C$21=Carbon!$B63,'Crop 3'!$V$21*VLOOKUP('Crop 3'!$E$21,Carbon!$AH$4:$AI$10,2,FALSE),0)+IF('Crop 3'!$C$49=Carbon!$B63,'Crop 3'!$V$49*VLOOKUP('Crop 3'!$E$49,Carbon!$AH$4:$AI$10,2,FALSE),0)+IF('Crop 3'!$C$50=Carbon!$B63,'Crop 3'!$V$50*VLOOKUP('Crop 3'!$E$50,Carbon!$AH$4:$AI$10,2,FALSE),0)+IF('Crop 3'!$C$51=Carbon!$B63,'Crop 3'!$V$51*VLOOKUP('Crop 3'!$E$51,Carbon!$AH$4:$AI$10,2,FALSE),0)+IF('Crop 3'!$C$52=Carbon!$B63,'Crop 3'!$V$52*VLOOKUP('Crop 3'!$E$52,Carbon!$AH$4:$AI$10,2,FALSE),0)+IF('Crop 3'!$C$53=Carbon!$B63,'Crop 3'!$V$53*VLOOKUP('Crop 3'!$E$53,Carbon!$AH$4:$AI$10,2,FALSE),0)+IF('Crop 3'!$C$56=Carbon!$B63,'Crop 3'!$V$56*VLOOKUP('Crop 3'!$E$56,Carbon!$AH$4:$AI$10,2,FALSE),0)+IF('Crop 3'!$C$57=Carbon!$B63,'Crop 3'!$V$57*VLOOKUP('Crop 3'!$E$57,Carbon!$AH$4:$AI$10,2,FALSE),0)+IF('Crop 3'!$C$58=Carbon!$B63,'Crop 3'!$V$58*VLOOKUP('Crop 3'!$E$58,Carbon!$AH$4:$AI$10,2,FALSE),0)+IF('Crop 3'!$C$59=Carbon!$B63,'Crop 3'!$V$59*VLOOKUP('Crop 3'!$E$59,Carbon!$AH$4:$AI$10,2,FALSE),0)+IF('Crop 3'!$C$62=Carbon!$B63,'Crop 3'!$V$62*VLOOKUP('Crop 3'!$E$62,Carbon!$AH$4:$AI$10,2,FALSE),0)+IF('Crop 3'!$C$63=Carbon!$B63,'Crop 3'!$V$63*VLOOKUP('Crop 3'!$E$63,Carbon!$AH$4:$AI$10,2,FALSE),0)+IF('Crop 3'!$C$64=Carbon!$B63,'Crop 3'!$V$64*VLOOKUP('Crop 3'!$E$64,Carbon!$AH$4:$AI$10,2,FALSE),0)+IF('Crop 3'!$C$65=Carbon!$B63,'Crop 3'!$V$65*VLOOKUP('Crop 3'!$E$65,Carbon!$AH$4:$AI$10,2,FALSE),0))*$AL$20,2)","v":0},{"$f":"Q63*Inputs!$D$17","v":0},{"$f":"ROUND(T63/Inputs!D$19,2)","v":0},0,null,null,{"$f":"M63-C63","v":0},{"$f":"W63*Inputs!$D$13","v":0},{"$f":"O63-E63","v":0},{"$f":"Y63*Inputs!$D$13","v":0},{"$f":"Q63-G63","v":0},{"$f":"AA63*Inputs!$D$13","v":0},{"$f":"ROUND(AD63/Inputs!D$19,2)","v":0},0]
[null,{"$f":"Defaults!AH30","v":"Canopy"},{"$f":"ROUND((IF('Crop 1'!$C$14=Carbon!$B64,'Crop 1'!$L$14*VLOOKUP('Crop 1'!$E$14,Carbon!$AH$4:$AI$10,2,FALSE),0)+IF('Crop 1'!$C$15=Carbon!$B64,'Crop 1'!$L$15*VLOOKUP('Crop 1'!$E$15,Carbon!$AH$4:$AI$10,2,FALSE),0)+IF('Crop 1'!$C$16=Carbon!$B64,'Crop 1'!$L$16*VLOOKUP('Crop 1'!$E$16,Carbon!$AH$4:$AI$10,2,FALSE),0)+IF('Crop 1'!$C$19=Carbon!$B64,'Crop 1'!$L$19*VLOOKUP('Crop 1'!$E$19,Carbon!$AH$4:$AI$10,2,FALSE),0)+IF('Crop 1'!$C$20=Carbon!$B64,'Crop 1'!$L$20*VLOOKUP('Crop 1'!$E$20,Carbon!$AH$4:$AI$10,2,FALSE),0)+IF('Crop 1'!$C$21=Carbon!$B64,'Crop 1'!$L$21*VLOOKUP('Crop 1'!$E$21,Carbon!$AH$4:$AI$10,2,FALSE),0)+IF('Crop 1'!$C$49=Carbon!$B64,'Crop 1'!$L$49*VLOOKUP('Crop 1'!$E$49,Carbon!$AH$4:$AI$10,2,FALSE),0)+IF('Crop 1'!$C$50=Carbon!$B64,'Crop 1'!$L$50*VLOOKUP('Crop 1'!$E$50,Carbon!$AH$4:$AI$10,2,FALSE),0)+IF('Crop 1'!$C$51=Carbon!$B64,'Crop 1'!$L$51*VLOOKUP('Crop 1'!$E$51,Carbon!$AH$4:$AI$10,2,FALSE),0)+IF('Crop 1'!$C$52=Carbon!$B64,'Crop 1'!$L$52*VLOOKUP('Crop 1'!$E$52,Carbon!$AH$4:$AI$10,2,FALSE),0)+IF('Crop 1'!$C$53=Carbon!$B64,'Crop 1'!$L$53*VLOOKUP('Crop 1'!$E$53,Carbon!$AH$4:$AI$10,2,FALSE),0)+IF('Crop 1'!$C$56=Carbon!$B64,'Crop 1'!$L$56*VLOOKUP('Crop 1'!$E$56,Carbon!$AH$4:$AI$10,2,FALSE),0)+IF('Crop 1'!$C$57=Carbon!$B64,'Crop 1'!$L$57*VLOOKUP('Crop 1'!$E$57,Carbon!$AH$4:$AI$10,2,FALSE),0)+IF('Crop 1'!$C$58=Carbon!$B64,'Crop 1'!$L$58*VLOOKUP('Crop 1'!$E$58,Carbon!$AH$4:$AI$10,2,FALSE),0)+IF('Crop 1'!$C$59=Carbon!$B64,'Crop 1'!$L$59*VLOOKUP('Crop 1'!$E$59,Carbon!$AH$4:$AI$10,2,FALSE),0)+IF('Crop 1'!$C$62=Carbon!$B64,'Crop 1'!$L$62*VLOOKUP('Crop 1'!$E$62,Carbon!$AH$4:$AI$10,2,FALSE),0)+IF('Crop 1'!$C$63=Carbon!$B64,'Crop 1'!$L$63*VLOOKUP('Crop 1'!$E$63,Carbon!$AH$4:$AI$10,2,FALSE),0)+IF('Crop 1'!$C$64=Carbon!$B64,'Crop 1'!$L$64*VLOOKUP('Crop 1'!$E$64,Carbon!$AH$4:$AI$10,2,FALSE),0)+IF('Crop 1'!$C$65=Carbon!$B64,'Crop 1'!$L$65*VLOOKUP('Crop 1'!$E$65,Carbon!$AH$4:$AI$10,2,FALSE),0))*$AL$20,2)","v":0},{"$f":"C64*Inputs!$D$13","v":0},{"$f":"ROUND((IF('Crop 2'!$C$14=Carbon!$B64,'Crop 2'!$L$14*VLOOKUP('Crop 2'!$E$14,Carbon!$AH$4:$AI$10,2,FALSE),0)+IF('Crop 2'!$C$15=Carbon!$B64,'Crop 2'!$L$15*VLOOKUP('Crop 2'!$E$15,Carbon!$AH$4:$AI$10,2,FALSE),0)+IF('Crop 2'!$C$16=Carbon!$B64,'Crop 2'!$L$16*VLOOKUP('Crop 2'!$E$16,Carbon!$AH$4:$AI$10,2,FALSE),0)+IF('Crop 2'!$C$19=Carbon!$B64,'Crop 2'!$L$19*VLOOKUP('Crop 2'!$E$19,Carbon!$AH$4:$AI$10,2,FALSE),0)+IF('Crop 2'!$C$20=Carbon!$B64,'Crop 2'!$L$20*VLOOKUP('Crop 2'!$E$20,Carbon!$AH$4:$AI$10,2,FALSE),0)+IF('Crop 2'!$C$21=Carbon!$B64,'Crop 2'!$L$21*VLOOKUP('Crop 2'!$E$21,Carbon!$AH$4:$AI$10,2,FALSE),0)+IF('Crop 2'!$C$49=Carbon!$B64,'Crop 2'!$L$49*VLOOKUP('Crop 2'!$E$49,Carbon!$AH$4:$AI$10,2,FALSE),0)+IF('Crop 2'!$C$50=Carbon!$B64,'Crop 2'!$L$50*VLOOKUP('Crop 2'!$E$50,Carbon!$AH$4:$AI$10,2,FALSE),0)+IF('Crop 2'!$C$51=Carbon!$B64,'Crop 2'!$L$51*VLOOKUP('Crop 2'!$E$51,Carbon!$AH$4:$AI$10,2,FALSE),0)+IF('Crop 2'!$C$52=Carbon!$B64,'Crop 2'!$L$52*VLOOKUP('Crop 2'!$E$52,Carbon!$AH$4:$AI$10,2,FALSE),0)+IF('Crop 2'!$C$53=Carbon!$B64,'Crop 2'!$L$53*VLOOKUP('Crop 2'!$E$53,Carbon!$AH$4:$AI$10,2,FALSE),0)+IF('Crop 2'!$C$56=Carbon!$B64,'Crop 2'!$L$56*VLOOKUP('Crop 2'!$E$56,Carbon!$AH$4:$AI$10,2,FALSE),0)+IF('Crop 2'!$C$57=Carbon!$B64,'Crop 2'!$L$57*VLOOKUP('Crop 2'!$E$57,Carbon!$AH$4:$AI$10,2,FALSE),0)+IF('Crop 2'!$C$58=Carbon!$B64,'Crop 2'!$L$58*VLOOKUP('Crop 2'!$E$58,Carbon!$AH$4:$AI$10,2,FALSE),0)+IF('Crop 2'!$C$59=Carbon!$B64,'Crop 2'!$L$59*VLOOKUP('Crop 2'!$E$59,Carbon!$AH$4:$AI$10,2,FALSE),0)+IF('Crop 2'!$C$62=Carbon!$B64,'Crop 2'!$L$62*VLOOKUP('Crop 2'!$E$62,Carbon!$AH$4:$AI$10,2,FALSE),0)+IF('Crop 2'!$C$63=Carbon!$B64,'Crop 2'!$L$63*VLOOKUP('Crop 2'!$E$63,Carbon!$AH$4:$AI$10,2,FALSE),0)+IF('Crop 2'!$C$64=Carbon!$B64,'Crop 2'!$L$64*VLOOKUP('Crop 2'!$E$64,Carbon!$AH$4:$AI$10,2,FALSE),0)+IF('Crop 2'!$C$65=Carbon!$B64,'Crop 2'!$L$65*VLOOKUP('Crop 2'!$E$65,Carbon!$AH$4:$AI$10,2,FALSE),0))*$AL$20,2)","v":0},{"$f":"E64*Inputs!$D$15","v":0},{"$f":"ROUND((IF('Crop 3'!$C$14=Carbon!$B64,'Crop 3'!$L$14*VLOOKUP('Crop 3'!$E$14,Carbon!$AH$4:$AI$10,2,FALSE),0)+IF('Crop 3'!$C$15=Carbon!$B64,'Crop 3'!$L$15*VLOOKUP('Crop 3'!$E$15,Carbon!$AH$4:$AI$10,2,FALSE),0)+IF('Crop 3'!$C$16=Carbon!$B64,'Crop 3'!$L$16*VLOOKUP('Crop 3'!$E$16,Carbon!$AH$4:$AI$10,2,FALSE),0)+IF('Crop 3'!$C$19=Carbon!$B64,'Crop 3'!$L$19*VLOOKUP('Crop 3'!$E$19,Carbon!$AH$4:$AI$10,2,FALSE),0)+IF('Crop 3'!$C$20=Carbon!$B64,'Crop 3'!$L$20*VLOOKUP('Crop 3'!$E$20,Carbon!$AH$4:$AI$10,2,FALSE),0)+IF('Crop 3'!$C$21=Carbon!$B64,'Crop 3'!$L$21*VLOOKUP('Crop 3'!$E$21,Carbon!$AH$4:$AI$10,2,FALSE),0)+IF('Crop 3'!$C$49=Carbon!$B64,'Crop 3'!$L$49*VLOOKUP('Crop 3'!$E$49,Carbon!$AH$4:$AI$10,2,FALSE),0)+IF('Crop 3'!$C$50=Carbon!$B64,'Crop 3'!$L$50*VLOOKUP('Crop 3'!$E$50,Carbon!$AH$4:$AI$10,2,FALSE),0)+IF('Crop 3'!$C$51=Carbon!$B64,'Crop 3'!$L$51*VLOOKUP('Crop 3'!$E$51,Carbon!$AH$4:$AI$10,2,FALSE),0)+IF('Crop 3'!$C$52=Carbon!$B64,'Crop 3'!$L$52*VLOOKUP('Crop 3'!$E$52,Carbon!$AH$4:$AI$10,2,FALSE),0)+IF('Crop 3'!$C$53=Carbon!$B64,'Crop 3'!$L$53*VLOOKUP('Crop 3'!$E$53,Carbon!$AH$4:$AI$10,2,FALSE),0)+IF('Crop 3'!$C$56=Carbon!$B64,'Crop 3'!$L$56*VLOOKUP('Crop 3'!$E$56,Carbon!$AH$4:$AI$10,2,FALSE),0)+IF('Crop 3'!$C$57=Carbon!$B64,'Crop 3'!$L$57*VLOOKUP('Crop 3'!$E$57,Carbon!$AH$4:$AI$10,2,FALSE),0)+IF('Crop 3'!$C$58=Carbon!$B64,'Crop 3'!$L$58*VLOOKUP('Crop 3'!$E$58,Carbon!$AH$4:$AI$10,2,FALSE),0)+IF('Crop 3'!$C$59=Carbon!$B64,'Crop 3'!$L$59*VLOOKUP('Crop 3'!$E$59,Carbon!$AH$4:$AI$10,2,FALSE),0)+IF('Crop 3'!$C$62=Carbon!$B64,'Crop 3'!$L$62*VLOOKUP('Crop 3'!$E$62,Carbon!$AH$4:$AI$10,2,FALSE),0)+IF('Crop 3'!$C$63=Carbon!$B64,'Crop 3'!$L$63*VLOOKUP('Crop 3'!$E$63,Carbon!$AH$4:$AI$10,2,FALSE),0)+IF('Crop 3'!$C$64=Carbon!$B64,'Crop 3'!$L$64*VLOOKUP('Crop 3'!$E$64,Carbon!$AH$4:$AI$10,2,FALSE),0)+IF('Crop 3'!$C$65=Carbon!$B64,'Crop 3'!$L$65*VLOOKUP('Crop 3'!$E$65,Carbon!$AH$4:$AI$10,2,FALSE),0))*$AL$20,2)","v":0},{"$f":"G64*Inputs!$D$17","v":0},{"$f":"ROUND(J64/Inputs!D$19,2)","v":0},0,null,null,{"$f":"ROUND((IF('Crop 1'!$C$14=Carbon!$B64,'Crop 1'!$V$14*VLOOKUP('Crop 1'!$E$14,Carbon!$AH$4:$AI$10,2,FALSE),0)+IF('Crop 1'!$C$15=Carbon!$B64,'Crop 1'!$V$15*VLOOKUP('Crop 1'!$E$15,Carbon!$AH$4:$AI$10,2,FALSE),0)+IF('Crop 1'!$C$16=Carbon!$B64,'Crop 1'!$V$16*VLOOKUP('Crop 1'!$E$16,Carbon!$AH$4:$AI$10,2,FALSE),0)+IF('Crop 1'!$C$19=Carbon!$B64,'Crop 1'!$V$19*VLOOKUP('Crop 1'!$E$19,Carbon!$AH$4:$AI$10,2,FALSE),0)+IF('Crop 1'!$C$20=Carbon!$B64,'Crop 1'!$V$20*VLOOKUP('Crop 1'!$E$20,Carbon!$AH$4:$AI$10,2,FALSE),0)+IF('Crop 1'!$C$21=Carbon!$B64,'Crop 1'!$V$21*VLOOKUP('Crop 1'!$E$21,Carbon!$AH$4:$AI$10,2,FALSE),0)+IF('Crop 1'!$C$49=Carbon!$B64,'Crop 1'!$V$49*VLOOKUP('Crop 1'!$E$49,Carbon!$AH$4:$AI$10,2,FALSE),0)+IF('Crop 1'!$C$50=Carbon!$B64,'Crop 1'!$V$50*VLOOKUP('Crop 1'!$E$50,Carbon!$AH$4:$AI$10,2,FALSE),0)+IF('Crop 1'!$C$51=Carbon!$B64,'Crop 1'!$V$51*VLOOKUP('Crop 1'!$E$51,Carbon!$AH$4:$AI$10,2,FALSE),0)+IF('Crop 1'!$C$52=Carbon!$B64,'Crop 1'!$V$52*VLOOKUP('Crop 1'!$E$52,Carbon!$AH$4:$AI$10,2,FALSE),0)+IF('Crop 1'!$C$53=Carbon!$B64,'Crop 1'!$V$53*VLOOKUP('Crop 1'!$E$53,Carbon!$AH$4:$AI$10,2,FALSE),0)+IF('Crop 1'!$C$56=Carbon!$B64,'Crop 1'!$V$56*VLOOKUP('Crop 1'!$E$56,Carbon!$AH$4:$AI$10,2,FALSE),0)+IF('Crop 1'!$C$57=Carbon!$B64,'Crop 1'!$V$57*VLOOKUP('Crop 1'!$E$57,Carbon!$AH$4:$AI$10,2,FALSE),0)+IF('Crop 1'!$C$58=Carbon!$B64,'Crop 1'!$V$58*VLOOKUP('Crop 1'!$E$58,Carbon!$AH$4:$AI$10,2,FALSE),0)+IF('Crop 1'!$C$59=Carbon!$B64,'Crop 1'!$V$59*VLOOKUP('Crop 1'!$E$59,Carbon!$AH$4:$AI$10,2,FALSE),0)+IF('Crop 1'!$C$62=Carbon!$B64,'Crop 1'!$V$62*VLOOKUP('Crop 1'!$E$62,Carbon!$AH$4:$AI$10,2,FALSE),0)+IF('Crop 1'!$C$63=Carbon!$B64,'Crop 1'!$V$63*VLOOKUP('Crop 1'!$E$63,Carbon!$AH$4:$AI$10,2,FALSE),0)+IF('Crop 1'!$C$64=Carbon!$B64,'Crop 1'!$V$64*VLOOKUP('Crop 1'!$E$64,Carbon!$AH$4:$AI$10,2,FALSE),0)+IF('Crop 1'!$C$65=Carbon!$B64,'Crop 1'!$V$65*VLOOKUP('Crop 1'!$E$65,Carbon!$AH$4:$AI$10,2,FALSE),0))*$AL$20,2)","v":0},{"$f":"M64*Inputs!$D$13","v":0},{"$f":"ROUND((IF('Crop 2'!$C$14=Carbon!$B64,'Crop 2'!$V$14*VLOOKUP('Crop 2'!$E$14,Carbon!$AH$4:$AI$10,2,FALSE),0)+IF('Crop 2'!$C$15=Carbon!$B64,'Crop 2'!$V$15*VLOOKUP('Crop 2'!$E$15,Carbon!$AH$4:$AI$10,2,FALSE),0)+IF('Crop 2'!$C$16=Carbon!$B64,'Crop 2'!$V$16*VLOOKUP('Crop 2'!$E$16,Carbon!$AH$4:$AI$10,2,FALSE),0)+IF('Crop 2'!$C$19=Carbon!$B64,'Crop 2'!$V$19*VLOOKUP('Crop 2'!$E$19,Carbon!$AH$4:$AI$10,2,FALSE),0)+IF('Crop 2'!$C$20=Carbon!$B64,'Crop 2'!$V$20*VLOOKUP('Crop 2'!$E$20,Carbon!$AH$4:$AI$10,2,FALSE),0)+IF('Crop 2'!$C$21=Carbon!$B64,'Crop 2'!$V$21*VLOOKUP('Crop 2'!$E$21,Carbon!$AH$4:$AI$10,2,FALSE),0)+IF('Crop 2'!$C$49=Carbon!$B64,'Crop 2'!$V$49*VLOOKUP('Crop 2'!$E$49,Carbon!$AH$4:$AI$10,2,FALSE),0)+IF('Crop 2'!$C$50=Carbon!$B64,'Crop 2'!$V$50*VLOOKUP('Crop 2'!$E$50,Carbon!$AH$4:$AI$10,2,FALSE),0)+IF('Crop 2'!$C$51=Carbon!$B64,'Crop 2'!$V$51*VLOOKUP('Crop 2'!$E$51,Carbon!$AH$4:$AI$10,2,FALSE),0)+IF('Crop 2'!$C$52=Carbon!$B64,'Crop 2'!$V$52*VLOOKUP('Crop 2'!$E$52,Carbon!$AH$4:$AI$10,2,FALSE),0)+IF('Crop 2'!$C$53=Carbon!$B64,'Crop 2'!$V$53*VLOOKUP('Crop 2'!$E$53,Carbon!$AH$4:$AI$10,2,FALSE),0)+IF('Crop 2'!$C$56=Carbon!$B64,'Crop 2'!$V$56*VLOOKUP('Crop 2'!$E$56,Carbon!$AH$4:$AI$10,2,FALSE),0)+IF('Crop 2'!$C$57=Carbon!$B64,'Crop 2'!$V$57*VLOOKUP('Crop 2'!$E$57,Carbon!$AH$4:$AI$10,2,FALSE),0)+IF('Crop 2'!$C$58=Carbon!$B64,'Crop 2'!$V$58*VLOOKUP('Crop 2'!$E$58,Carbon!$AH$4:$AI$10,2,FALSE),0)+IF('Crop 2'!$C$59=Carbon!$B64,'Crop 2'!$V$59*VLOOKUP('Crop 2'!$E$59,Carbon!$AH$4:$AI$10,2,FALSE),0)+IF('Crop 2'!$C$62=Carbon!$B64,'Crop 2'!$V$62*VLOOKUP('Crop 2'!$E$62,Carbon!$AH$4:$AI$10,2,FALSE),0)+IF('Crop 2'!$C$63=Carbon!$B64,'Crop 2'!$V$63*VLOOKUP('Crop 2'!$E$63,Carbon!$AH$4:$AI$10,2,FALSE),0)+IF('Crop 2'!$C$64=Carbon!$B64,'Crop 2'!$V$64*VLOOKUP('Crop 2'!$E$64,Carbon!$AH$4:$AI$10,2,FALSE),0)+IF('Crop 2'!$C$65=Carbon!$B64,'Crop 2'!$V$65*VLOOKUP('Crop 2'!$E$65,Carbon!$AH$4:$AI$10,2,FALSE),0))*$AL$20,2)","v":0},{"$f":"O64*Inputs!$D$15","v":0},{"$f":"ROUND((IF('Crop 3'!$C$14=Carbon!$B64,'Crop 3'!$V$14*VLOOKUP('Crop 3'!$E$14,Carbon!$AH$4:$AI$10,2,FALSE),0)+IF('Crop 3'!$C$15=Carbon!$B64,'Crop 3'!$V$15*VLOOKUP('Crop 3'!$E$15,Carbon!$AH$4:$AI$10,2,FALSE),0)+IF('Crop 3'!$C$16=Carbon!$B64,'Crop 3'!$V$16*VLOOKUP('Crop 3'!$E$16,Carbon!$AH$4:$AI$10,2,FALSE),0)+IF('Crop 3'!$C$19=Carbon!$B64,'Crop 3'!$V$19*VLOOKUP('Crop 3'!$E$19,Carbon!$AH$4:$AI$10,2,FALSE),0)+IF('Crop 3'!$C$20=Carbon!$B64,'Crop 3'!$V$20*VLOOKUP('Crop 3'!$E$20,Carbon!$AH$4:$AI$10,2,FALSE),0)+IF('Crop 3'!$C$21=Carbon!$B64,'Crop 3'!$V$21*VLOOKUP('Crop 3'!$E$21,Carbon!$AH$4:$AI$10,2,FALSE),0)+IF('Crop 3'!$C$49=Carbon!$B64,'Crop 3'!$V$49*VLOOKUP('Crop 3'!$E$49,Carbon!$AH$4:$AI$10,2,FALSE),0)+IF('Crop 3'!$C$50=Carbon!$B64,'Crop 3'!$V$50*VLOOKUP('Crop 3'!$E$50,Carbon!$AH$4:$AI$10,2,FALSE),0)+IF('Crop 3'!$C$51=Carbon!$B64,'Crop 3'!$V$51*VLOOKUP('Crop 3'!$E$51,Carbon!$AH$4:$AI$10,2,FALSE),0)+IF('Crop 3'!$C$52=Carbon!$B64,'Crop 3'!$V$52*VLOOKUP('Crop 3'!$E$52,Carbon!$AH$4:$AI$10,2,FALSE),0)+IF('Crop 3'!$C$53=Carbon!$B64,'Crop 3'!$V$53*VLOOKUP('Crop 3'!$E$53,Carbon!$AH$4:$AI$10,2,FALSE),0)+IF('Crop 3'!$C$56=Carbon!$B64,'Crop 3'!$V$56*VLOOKUP('Crop 3'!$E$56,Carbon!$AH$4:$AI$10,2,FALSE),0)+IF('Crop 3'!$C$57=Carbon!$B64,'Crop 3'!$V$57*VLOOKUP('Crop 3'!$E$57,Carbon!$AH$4:$AI$10,2,FALSE),0)+IF('Crop 3'!$C$58=Carbon!$B64,'Crop 3'!$V$58*VLOOKUP('Crop 3'!$E$58,Carbon!$AH$4:$AI$10,2,FALSE),0)+IF('Crop 3'!$C$59=Carbon!$B64,'Crop 3'!$V$59*VLOOKUP('Crop 3'!$E$59,Carbon!$AH$4:$AI$10,2,FALSE),0)+IF('Crop 3'!$C$62=Carbon!$B64,'Crop 3'!$V$62*VLOOKUP('Crop 3'!$E$62,Carbon!$AH$4:$AI$10,2,FALSE),0)+IF('Crop 3'!$C$63=Carbon!$B64,'Crop 3'!$V$63*VLOOKUP('Crop 3'!$E$63,Carbon!$AH$4:$AI$10,2,FALSE),0)+IF('Crop 3'!$C$64=Carbon!$B64,'Crop 3'!$V$64*VLOOKUP('Crop 3'!$E$64,Carbon!$AH$4:$AI$10,2,FALSE),0)+IF('Crop 3'!$C$65=Carbon!$B64,'Crop 3'!$V$65*VLOOKUP('Crop 3'!$E$65,Carbon!$AH$4:$AI$10,2,FALSE),0))*$AL$20,2)","v":0},{"$f":"Q64*Inputs!$D$17","v":0},{"$f":"ROUND(T64/Inputs!D$19,2)","v":0},0,null,null,0,{"$f":"W64*Inputs!$D$13","v":0},0,{"$f":"Y64*Inputs!$D$13","v":0},0,{"$f":"AA64*Inputs!$D$13","v":0},{"$f":"ROUND(AD64/Inputs!D$19,2)","v":0},0]
[null,{"$f":"Defaults!AH31","v":"Caparol 4L"},{"$f":"ROUND((IF('Crop 1'!$C$14=Carbon!$B65,'Crop 1'!$L$14*VLOOKUP('Crop 1'!$E$14,Carbon!$AH$4:$AI$10,2,FALSE),0)+IF('Crop 1'!$C$15=Carbon!$B65,'Crop 1'!$L$15*VLOOKUP('Crop 1'!$E$15,Carbon!$AH$4:$AI$10,2,FALSE),0)+IF('Crop 1'!$C$16=Carbon!$B65,'Crop 1'!$L$16*VLOOKUP('Crop 1'!$E$16,Carbon!$AH$4:$AI$10,2,FALSE),0)+IF('Crop 1'!$C$19=Carbon!$B65,'Crop 1'!$L$19*VLOOKUP('Crop 1'!$E$19,Carbon!$AH$4:$AI$10,2,FALSE),0)+IF('Crop 1'!$C$20=Carbon!$B65,'Crop 1'!$L$20*VLOOKUP('Crop 1'!$E$20,Carbon!$AH$4:$AI$10,2,FALSE),0)+IF('Crop 1'!$C$21=Carbon!$B65,'Crop 1'!$L$21*VLOOKUP('Crop 1'!$E$21,Carbon!$AH$4:$AI$10,2,FALSE),0)+IF('Crop 1'!$C$49=Carbon!$B65,'Crop 1'!$L$49*VLOOKUP('Crop 1'!$E$49,Carbon!$AH$4:$AI$10,2,FALSE),0)+IF('Crop 1'!$C$50=Carbon!$B65,'Crop 1'!$L$50*VLOOKUP('Crop 1'!$E$50,Carbon!$AH$4:$AI$10,2,FALSE),0)+IF('Crop 1'!$C$51=Carbon!$B65,'Crop 1'!$L$51*VLOOKUP('Crop 1'!$E$51,Carbon!$AH$4:$AI$10,2,FALSE),0)+IF('Crop 1'!$C$52=Carbon!$B65,'Crop 1'!$L$52*VLOOKUP('Crop 1'!$E$52,Carbon!$AH$4:$AI$10,2,FALSE),0)+IF('Crop 1'!$C$53=Carbon!$B65,'Crop 1'!$L$53*VLOOKUP('Crop 1'!$E$53,Carbon!$AH$4:$AI$10,2,FALSE),0)+IF('Crop 1'!$C$56=Carbon!$B65,'Crop 1'!$L$56*VLOOKUP('Crop 1'!$E$56,Carbon!$AH$4:$AI$10,2,FALSE),0)+IF('Crop 1'!$C$57=Carbon!$B65,'Crop 1'!$L$57*VLOOKUP('Crop 1'!$E$57,Carbon!$AH$4:$AI$10,2,FALSE),0)+IF('Crop 1'!$C$58=Carbon!$B65,'Crop 1'!$L$58*VLOOKUP('Crop 1'!$E$58,Carbon!$AH$4:$AI$10,2,FALSE),0)+IF('Crop 1'!$C$59=Carbon!$B65,'Crop 1'!$L$59*VLOOKUP('Crop 1'!$E$59,Carbon!$AH$4:$AI$10,2,FALSE),0)+IF('Crop 1'!$C$62=Carbon!$B65,'Crop 1'!$L$62*VLOOKUP('Crop 1'!$E$62,Carbon!$AH$4:$AI$10,2,FALSE),0)+IF('Crop 1'!$C$63=Carbon!$B65,'Crop 1'!$L$63*VLOOKUP('Crop 1'!$E$63,Carbon!$AH$4:$AI$10,2,FALSE),0)+IF('Crop 1'!$C$64=Carbon!$B65,'Crop 1'!$L$64*VLOOKUP('Crop 1'!$E$64,Carbon!$AH$4:$AI$10,2,FALSE),0)+IF('Crop 1'!$C$65=Carbon!$B65,'Crop 1'!$L$65*VLOOKUP('Crop 1'!$E$65,Carbon!$AH$4:$AI$10,2,FALSE),0))*$AL$20,2)","v":0},{"$f":"C65*Inputs!$D$13","v":0},{"$f":"ROUND((IF('Crop 2'!$C$14=Carbon!$B65,'Crop 2'!$L$14*VLOOKUP('Crop 2'!$E$14,Carbon!$AH$4:$AI$10,2,FALSE),0)+IF('Crop 2'!$C$15=Carbon!$B65,'Crop 2'!$L$15*VLOOKUP('Crop 2'!$E$15,Carbon!$AH$4:$AI$10,2,FALSE),0)+IF('Crop 2'!$C$16=Carbon!$B65,'Crop 2'!$L$16*VLOOKUP('Crop 2'!$E$16,Carbon!$AH$4:$AI$10,2,FALSE),0)+IF('Crop 2'!$C$19=Carbon!$B65,'Crop 2'!$L$19*VLOOKUP('Crop 2'!$E$19,Carbon!$AH$4:$AI$10,2,FALSE),0)+IF('Crop 2'!$C$20=Carbon!$B65,'Crop 2'!$L$20*VLOOKUP('Crop 2'!$E$20,Carbon!$AH$4:$AI$10,2,FALSE),0)+IF('Crop 2'!$C$21=Carbon!$B65,'Crop 2'!$L$21*VLOOKUP('Crop 2'!$E$21,Carbon!$AH$4:$AI$10,2,FALSE),0)+IF('Crop 2'!$C$49=Carbon!$B65,'Crop 2'!$L$49*VLOOKUP('Crop 2'!$E$49,Carbon!$AH$4:$AI$10,2,FALSE),0)+IF('Crop 2'!$C$50=Carbon!$B65,'Crop 2'!$L$50*VLOOKUP('Crop 2'!$E$50,Carbon!$AH$4:$AI$10,2,FALSE),0)+IF('Crop 2'!$C$51=Carbon!$B65,'Crop 2'!$L$51*VLOOKUP('Crop 2'!$E$51,Carbon!$AH$4:$AI$10,2,FALSE),0)+IF('Crop 2'!$C$52=Carbon!$B65,'Crop 2'!$L$52*VLOOKUP('Crop 2'!$E$52,Carbon!$AH$4:$AI$10,2,FALSE),0)+IF('Crop 2'!$C$53=Carbon!$B65,'Crop 2'!$L$53*VLOOKUP('Crop 2'!$E$53,Carbon!$AH$4:$AI$10,2,FALSE),0)+IF('Crop 2'!$C$56=Carbon!$B65,'Crop 2'!$L$56*VLOOKUP('Crop 2'!$E$56,Carbon!$AH$4:$AI$10,2,FALSE),0)+IF('Crop 2'!$C$57=Carbon!$B65,'Crop 2'!$L$57*VLOOKUP('Crop 2'!$E$57,Carbon!$AH$4:$AI$10,2,FALSE),0)+IF('Crop 2'!$C$58=Carbon!$B65,'Crop 2'!$L$58*VLOOKUP('Crop 2'!$E$58,Carbon!$AH$4:$AI$10,2,FALSE),0)+IF('Crop 2'!$C$59=Carbon!$B65,'Crop 2'!$L$59*VLOOKUP('Crop 2'!$E$59,Carbon!$AH$4:$AI$10,2,FALSE),0)+IF('Crop 2'!$C$62=Carbon!$B65,'Crop 2'!$L$62*VLOOKUP('Crop 2'!$E$62,Carbon!$AH$4:$AI$10,2,FALSE),0)+IF('Crop 2'!$C$63=Carbon!$B65,'Crop 2'!$L$63*VLOOKUP('Crop 2'!$E$63,Carbon!$AH$4:$AI$10,2,FALSE),0)+IF('Crop 2'!$C$64=Carbon!$B65,'Crop 2'!$L$64*VLOOKUP('Crop 2'!$E$64,Carbon!$AH$4:$AI$10,2,FALSE),0)+IF('Crop 2'!$C$65=Carbon!$B65,'Crop 2'!$L$65*VLOOKUP('Crop 2'!$E$65,Carbon!$AH$4:$AI$10,2,FALSE),0))*$AL$20,2)","v":0},{"$f":"E65*Inputs!$D$15","v":0},{"$f":"ROUND((IF('Crop 3'!$C$14=Carbon!$B65,'Crop 3'!$L$14*VLOOKUP('Crop 3'!$E$14,Carbon!$AH$4:$AI$10,2,FALSE),0)+IF('Crop 3'!$C$15=Carbon!$B65,'Crop 3'!$L$15*VLOOKUP('Crop 3'!$E$15,Carbon!$AH$4:$AI$10,2,FALSE),0)+IF('Crop 3'!$C$16=Carbon!$B65,'Crop 3'!$L$16*VLOOKUP('Crop 3'!$E$16,Carbon!$AH$4:$AI$10,2,FALSE),0)+IF('Crop 3'!$C$19=Carbon!$B65,'Crop 3'!$L$19*VLOOKUP('Crop 3'!$E$19,Carbon!$AH$4:$AI$10,2,FALSE),0)+IF('Crop 3'!$C$20=Carbon!$B65,'Crop 3'!$L$20*VLOOKUP('Crop 3'!$E$20,Carbon!$AH$4:$AI$10,2,FALSE),0)+IF('Crop 3'!$C$21=Carbon!$B65,'Crop 3'!$L$21*VLOOKUP('Crop 3'!$E$21,Carbon!$AH$4:$AI$10,2,FALSE),0)+IF('Crop 3'!$C$49=Carbon!$B65,'Crop 3'!$L$49*VLOOKUP('Crop 3'!$E$49,Carbon!$AH$4:$AI$10,2,FALSE),0)+IF('Crop 3'!$C$50=Carbon!$B65,'Crop 3'!$L$50*VLOOKUP('Crop 3'!$E$50,Carbon!$AH$4:$AI$10,2,FALSE),0)+IF('Crop 3'!$C$51=Carbon!$B65,'Crop 3'!$L$51*VLOOKUP('Crop 3'!$E$51,Carbon!$AH$4:$AI$10,2,FALSE),0)+IF('Crop 3'!$C$52=Carbon!$B65,'Crop 3'!$L$52*VLOOKUP('Crop 3'!$E$52,Carbon!$AH$4:$AI$10,2,FALSE),0)+IF('Crop 3'!$C$53=Carbon!$B65,'Crop 3'!$L$53*VLOOKUP('Crop 3'!$E$53,Carbon!$AH$4:$AI$10,2,FALSE),0)+IF('Crop 3'!$C$56=Carbon!$B65,'Crop 3'!$L$56*VLOOKUP('Crop 3'!$E$56,Carbon!$AH$4:$AI$10,2,FALSE),0)+IF('Crop 3'!$C$57=Carbon!$B65,'Crop 3'!$L$57*VLOOKUP('Crop 3'!$E$57,Carbon!$AH$4:$AI$10,2,FALSE),0)+IF('Crop 3'!$C$58=Carbon!$B65,'Crop 3'!$L$58*VLOOKUP('Crop 3'!$E$58,Carbon!$AH$4:$AI$10,2,FALSE),0)+IF('Crop 3'!$C$59=Carbon!$B65,'Crop 3'!$L$59*VLOOKUP('Crop 3'!$E$59,Carbon!$AH$4:$AI$10,2,FALSE),0)+IF('Crop 3'!$C$62=Carbon!$B65,'Crop 3'!$L$62*VLOOKUP('Crop 3'!$E$62,Carbon!$AH$4:$AI$10,2,FALSE),0)+IF('Crop 3'!$C$63=Carbon!$B65,'Crop 3'!$L$63*VLOOKUP('Crop 3'!$E$63,Carbon!$AH$4:$AI$10,2,FALSE),0)+IF('Crop 3'!$C$64=Carbon!$B65,'Crop 3'!$L$64*VLOOKUP('Crop 3'!$E$64,Carbon!$AH$4:$AI$10,2,FALSE),0)+IF('Crop 3'!$C$65=Carbon!$B65,'Crop 3'!$L$65*VLOOKUP('Crop 3'!$E$65,Carbon!$AH$4:$AI$10,2,FALSE),0))*$AL$20,2)","v":0},{"$f":"G65*Inputs!$D$17","v":0},{"$f":"ROUND(J65/Inputs!D$19,2)","v":0},0,null,null,{"$f":"ROUND((IF('Crop 1'!$C$14=Carbon!$B65,'Crop 1'!$V$14*VLOOKUP('Crop 1'!$E$14,Carbon!$AH$4:$AI$10,2,FALSE),0)+IF('Crop 1'!$C$15=Carbon!$B65,'Crop 1'!$V$15*VLOOKUP('Crop 1'!$E$15,Carbon!$AH$4:$AI$10,2,FALSE),0)+IF('Crop 1'!$C$16=Carbon!$B65,'Crop 1'!$V$16*VLOOKUP('Crop 1'!$E$16,Carbon!$AH$4:$AI$10,2,FALSE),0)+IF('Crop 1'!$C$19=Carbon!$B65,'Crop 1'!$V$19*VLOOKUP('Crop 1'!$E$19,Carbon!$AH$4:$AI$10,2,FALSE),0)+IF('Crop 1'!$C$20=Carbon!$B65,'Crop 1'!$V$20*VLOOKUP('Crop 1'!$E$20,Carbon!$AH$4:$AI$10,2,FALSE),0)+IF('Crop 1'!$C$21=Carbon!$B65,'Crop 1'!$V$21*VLOOKUP('Crop 1'!$E$21,Carbon!$AH$4:$AI$10,2,FALSE),0)+IF('Crop 1'!$C$49=Carbon!$B65,'Crop 1'!$V$49*VLOOKUP('Crop 1'!$E$49,Carbon!$AH$4:$AI$10,2,FALSE),0)+IF('Crop 1'!$C$50=Carbon!$B65,'Crop 1'!$V$50*VLOOKUP('Crop 1'!$E$50,Carbon!$AH$4:$AI$10,2,FALSE),0)+IF('Crop 1'!$C$51=Carbon!$B65,'Crop 1'!$V$51*VLOOKUP('Crop 1'!$E$51,Carbon!$AH$4:$AI$10,2,FALSE),0)+IF('Crop 1'!$C$52=Carbon!$B65,'Crop 1'!$V$52*VLOOKUP('Crop 1'!$E$52,Carbon!$AH$4:$AI$10,2,FALSE),0)+IF('Crop 1'!$C$53=Carbon!$B65,'Crop 1'!$V$53*VLOOKUP('Crop 1'!$E$53,Carbon!$AH$4:$AI$10,2,FALSE),0)+IF('Crop 1'!$C$56=Carbon!$B65,'Crop 1'!$V$56*VLOOKUP('Crop 1'!$E$56,Carbon!$AH$4:$AI$10,2,FALSE),0)+IF('Crop 1'!$C$57=Carbon!$B65,'Crop 1'!$V$57*VLOOKUP('Crop 1'!$E$57,Carbon!$AH$4:$AI$10,2,FALSE),0)+IF('Crop 1'!$C$58=Carbon!$B65,'Crop 1'!$V$58*VLOOKUP('Crop 1'!$E$58,Carbon!$AH$4:$AI$10,2,FALSE),0)+IF('Crop 1'!$C$59=Carbon!$B65,'Crop 1'!$V$59*VLOOKUP('Crop 1'!$E$59,Carbon!$AH$4:$AI$10,2,FALSE),0)+IF('Crop 1'!$C$62=Carbon!$B65,'Crop 1'!$V$62*VLOOKUP('Crop 1'!$E$62,Carbon!$AH$4:$AI$10,2,FALSE),0)+IF('Crop 1'!$C$63=Carbon!$B65,'Crop 1'!$V$63*VLOOKUP('Crop 1'!$E$63,Carbon!$AH$4:$AI$10,2,FALSE),0)+IF('Crop 1'!$C$64=Carbon!$B65,'Crop 1'!$V$64*VLOOKUP('Crop 1'!$E$64,Carbon!$AH$4:$AI$10,2,FALSE),0)+IF('Crop 1'!$C$65=Carbon!$B65,'Crop 1'!$V$65*VLOOKUP('Crop 1'!$E$65,Carbon!$AH$4:$AI$10,2,FALSE),0))*$AL$20,2)","v":0},{"$f":"M65*Inputs!$D$13","v":0},{"$f":"ROUND((IF('Crop 2'!$C$14=Carbon!$B65,'Crop 2'!$V$14*VLOOKUP('Crop 2'!$E$14,Carbon!$AH$4:$AI$10,2,FALSE),0)+IF('Crop 2'!$C$15=Carbon!$B65,'Crop 2'!$V$15*VLOOKUP('Crop 2'!$E$15,Carbon!$AH$4:$AI$10,2,FALSE),0)+IF('Crop 2'!$C$16=Carbon!$B65,'Crop 2'!$V$16*VLOOKUP('Crop 2'!$E$16,Carbon!$AH$4:$AI$10,2,FALSE),0)+IF('Crop 2'!$C$19=Carbon!$B65,'Crop 2'!$V$19*VLOOKUP('Crop 2'!$E$19,Carbon!$AH$4:$AI$10,2,FALSE),0)+IF('Crop 2'!$C$20=Carbon!$B65,'Crop 2'!$V$20*VLOOKUP('Crop 2'!$E$20,Carbon!$AH$4:$AI$10,2,FALSE),0)+IF('Crop 2'!$C$21=Carbon!$B65,'Crop 2'!$V$21*VLOOKUP('Crop 2'!$E$21,Carbon!$AH$4:$AI$10,2,FALSE),0)+IF('Crop 2'!$C$49=Carbon!$B65,'Crop 2'!$V$49*VLOOKUP('Crop 2'!$E$49,Carbon!$AH$4:$AI$10,2,FALSE),0)+IF('Crop 2'!$C$50=Carbon!$B65,'Crop 2'!$V$50*VLOOKUP('Crop 2'!$E$50,Carbon!$AH$4:$AI$10,2,FALSE),0)+IF('Crop 2'!$C$51=Carbon!$B65,'Crop 2'!$V$51*VLOOKUP('Crop 2'!$E$51,Carbon!$AH$4:$AI$10,2,FALSE),0)+IF('Crop 2'!$C$52=Carbon!$B65,'Crop 2'!$V$52*VLOOKUP('Crop 2'!$E$52,Carbon!$AH$4:$AI$10,2,FALSE),0)+IF('Crop 2'!$C$53=Carbon!$B65,'Crop 2'!$V$53*VLOOKUP('Crop 2'!$E$53,Carbon!$AH$4:$AI$10,2,FALSE),0)+IF('Crop 2'!$C$56=Carbon!$B65,'Crop 2'!$V$56*VLOOKUP('Crop 2'!$E$56,Carbon!$AH$4:$AI$10,2,FALSE),0)+IF('Crop 2'!$C$57=Carbon!$B65,'Crop 2'!$V$57*VLOOKUP('Crop 2'!$E$57,Carbon!$AH$4:$AI$10,2,FALSE),0)+IF('Crop 2'!$C$58=Carbon!$B65,'Crop 2'!$V$58*VLOOKUP('Crop 2'!$E$58,Carbon!$AH$4:$AI$10,2,FALSE),0)+IF('Crop 2'!$C$59=Carbon!$B65,'Crop 2'!$V$59*VLOOKUP('Crop 2'!$E$59,Carbon!$AH$4:$AI$10,2,FALSE),0)+IF('Crop 2'!$C$62=Carbon!$B65,'Crop 2'!$V$62*VLOOKUP('Crop 2'!$E$62,Carbon!$AH$4:$AI$10,2,FALSE),0)+IF('Crop 2'!$C$63=Carbon!$B65,'Crop 2'!$V$63*VLOOKUP('Crop 2'!$E$63,Carbon!$AH$4:$AI$10,2,FALSE),0)+IF('Crop 2'!$C$64=Carbon!$B65,'Crop 2'!$V$64*VLOOKUP('Crop 2'!$E$64,Carbon!$AH$4:$AI$10,2,FALSE),0)+IF('Crop 2'!$C$65=Carbon!$B65,'Crop 2'!$V$65*VLOOKUP('Crop 2'!$E$65,Carbon!$AH$4:$AI$10,2,FALSE),0))*$AL$20,2)","v":0},{"$f":"O65*Inputs!$D$15","v":0},{"$f":"ROUND((IF('Crop 3'!$C$14=Carbon!$B65,'Crop 3'!$V$14*VLOOKUP('Crop 3'!$E$14,Carbon!$AH$4:$AI$10,2,FALSE),0)+IF('Crop 3'!$C$15=Carbon!$B65,'Crop 3'!$V$15*VLOOKUP('Crop 3'!$E$15,Carbon!$AH$4:$AI$10,2,FALSE),0)+IF('Crop 3'!$C$16=Carbon!$B65,'Crop 3'!$V$16*VLOOKUP('Crop 3'!$E$16,Carbon!$AH$4:$AI$10,2,FALSE),0)+IF('Crop 3'!$C$19=Carbon!$B65,'Crop 3'!$V$19*VLOOKUP('Crop 3'!$E$19,Carbon!$AH$4:$AI$10,2,FALSE),0)+IF('Crop 3'!$C$20=Carbon!$B65,'Crop 3'!$V$20*VLOOKUP('Crop 3'!$E$20,Carbon!$AH$4:$AI$10,2,FALSE),0)+IF('Crop 3'!$C$21=Carbon!$B65,'Crop 3'!$V$21*VLOOKUP('Crop 3'!$E$21,Carbon!$AH$4:$AI$10,2,FALSE),0)+IF('Crop 3'!$C$49=Carbon!$B65,'Crop 3'!$V$49*VLOOKUP('Crop 3'!$E$49,Carbon!$AH$4:$AI$10,2,FALSE),0)+IF('Crop 3'!$C$50=Carbon!$B65,'Crop 3'!$V$50*VLOOKUP('Crop 3'!$E$50,Carbon!$AH$4:$AI$10,2,FALSE),0)+IF('Crop 3'!$C$51=Carbon!$B65,'Crop 3'!$V$51*VLOOKUP('Crop 3'!$E$51,Carbon!$AH$4:$AI$10,2,FALSE),0)+IF('Crop 3'!$C$52=Carbon!$B65,'Crop 3'!$V$52*VLOOKUP('Crop 3'!$E$52,Carbon!$AH$4:$AI$10,2,FALSE),0)+IF('Crop 3'!$C$53=Carbon!$B65,'Crop 3'!$V$53*VLOOKUP('Crop 3'!$E$53,Carbon!$AH$4:$AI$10,2,FALSE),0)+IF('Crop 3'!$C$56=Carbon!$B65,'Crop 3'!$V$56*VLOOKUP('Crop 3'!$E$56,Carbon!$AH$4:$AI$10,2,FALSE),0)+IF('Crop 3'!$C$57=Carbon!$B65,'Crop 3'!$V$57*VLOOKUP('Crop 3'!$E$57,Carbon!$AH$4:$AI$10,2,FALSE),0)+IF('Crop 3'!$C$58=Carbon!$B65,'Crop 3'!$V$58*VLOOKUP('Crop 3'!$E$58,Carbon!$AH$4:$AI$10,2,FALSE),0)+IF('Crop 3'!$C$59=Carbon!$B65,'Crop 3'!$V$59*VLOOKUP('Crop 3'!$E$59,Carbon!$AH$4:$AI$10,2,FALSE),0)+IF('Crop 3'!$C$62=Carbon!$B65,'Crop 3'!$V$62*VLOOKUP('Crop 3'!$E$62,Carbon!$AH$4:$AI$10,2,FALSE),0)+IF('Crop 3'!$C$63=Carbon!$B65,'Crop 3'!$V$63*VLOOKUP('Crop 3'!$E$63,Carbon!$AH$4:$AI$10,2,FALSE),0)+IF('Crop 3'!$C$64=Carbon!$B65,'Crop 3'!$V$64*VLOOKUP('Crop 3'!$E$64,Carbon!$AH$4:$AI$10,2,FALSE),0)+IF('Crop 3'!$C$65=Carbon!$B65,'Crop 3'!$V$65*VLOOKUP('Crop 3'!$E$65,Carbon!$AH$4:$AI$10,2,FALSE),0))*$AL$20,2)","v":0},{"$f":"Q65*Inputs!$D$17","v":0},{"$f":"ROUND(T65/Inputs!D$19,2)","v":0},0,null,null,0,{"$f":"W65*Inputs!$D$13","v":0},0,{"$f":"Y65*Inputs!$D$13","v":0},0,{"$f":"AA65*Inputs!$D$13","v":0},{"$f":"ROUND(AD65/Inputs!D$19,2)","v":0},0]
[null,{"$f":"Defaults!AH32","v":"Capreno"},{"$f":"ROUND((IF('Crop 1'!$C$14=Carbon!$B66,'Crop 1'!$L$14*VLOOKUP('Crop 1'!$E$14,Carbon!$AH$4:$AI$10,2,FALSE),0)+IF('Crop 1'!$C$15=Carbon!$B66,'Crop 1'!$L$15*VLOOKUP('Crop 1'!$E$15,Carbon!$AH$4:$AI$10,2,FALSE),0)+IF('Crop 1'!$C$16=Carbon!$B66,'Crop 1'!$L$16*VLOOKUP('Crop 1'!$E$16,Carbon!$AH$4:$AI$10,2,FALSE),0)+IF('Crop 1'!$C$19=Carbon!$B66,'Crop 1'!$L$19*VLOOKUP('Crop 1'!$E$19,Carbon!$AH$4:$AI$10,2,FALSE),0)+IF('Crop 1'!$C$20=Carbon!$B66,'Crop 1'!$L$20*VLOOKUP('Crop 1'!$E$20,Carbon!$AH$4:$AI$10,2,FALSE),0)+IF('Crop 1'!$C$21=Carbon!$B66,'Crop 1'!$L$21*VLOOKUP('Crop 1'!$E$21,Carbon!$AH$4:$AI$10,2,FALSE),0)+IF('Crop 1'!$C$49=Carbon!$B66,'Crop 1'!$L$49*VLOOKUP('Crop 1'!$E$49,Carbon!$AH$4:$AI$10,2,FALSE),0)+IF('Crop 1'!$C$50=Carbon!$B66,'Crop 1'!$L$50*VLOOKUP('Crop 1'!$E$50,Carbon!$AH$4:$AI$10,2,FALSE),0)+IF('Crop 1'!$C$51=Carbon!$B66,'Crop 1'!$L$51*VLOOKUP('Crop 1'!$E$51,Carbon!$AH$4:$AI$10,2,FALSE),0)+IF('Crop 1'!$C$52=Carbon!$B66,'Crop 1'!$L$52*VLOOKUP('Crop 1'!$E$52,Carbon!$AH$4:$AI$10,2,FALSE),0)+IF('Crop 1'!$C$53=Carbon!$B66,'Crop 1'!$L$53*VLOOKUP('Crop 1'!$E$53,Carbon!$AH$4:$AI$10,2,FALSE),0)+IF('Crop 1'!$C$56=Carbon!$B66,'Crop 1'!$L$56*VLOOKUP('Crop 1'!$E$56,Carbon!$AH$4:$AI$10,2,FALSE),0)+IF('Crop 1'!$C$57=Carbon!$B66,'Crop 1'!$L$57*VLOOKUP('Crop 1'!$E$57,Carbon!$AH$4:$AI$10,2,FALSE),0)+IF('Crop 1'!$C$58=Carbon!$B66,'Crop 1'!$L$58*VLOOKUP('Crop 1'!$E$58,Carbon!$AH$4:$AI$10,2,FALSE),0)+IF('Crop 1'!$C$59=Carbon!$B66,'Crop 1'!$L$59*VLOOKUP('Crop 1'!$E$59,Carbon!$AH$4:$AI$10,2,FALSE),0)+IF('Crop 1'!$C$62=Carbon!$B66,'Crop 1'!$L$62*VLOOKUP('Crop 1'!$E$62,Carbon!$AH$4:$AI$10,2,FALSE),0)+IF('Crop 1'!$C$63=Carbon!$B66,'Crop 1'!$L$63*VLOOKUP('Crop 1'!$E$63,Carbon!$AH$4:$AI$10,2,FALSE),0)+IF('Crop 1'!$C$64=Carbon!$B66,'Crop 1'!$L$64*VLOOKUP('Crop 1'!$E$64,Carbon!$AH$4:$AI$10,2,FALSE),0)+IF('Crop 1'!$C$65=Carbon!$B66,'Crop 1'!$L$65*VLOOKUP('Crop 1'!$E$65,Carbon!$AH$4:$AI$10,2,FALSE),0))*$AL$20,2)","v":0},{"$f":"C66*Inputs!$D$13","v":0},{"$f":"ROUND((IF('Crop 2'!$C$14=Carbon!$B66,'Crop 2'!$L$14*VLOOKUP('Crop 2'!$E$14,Carbon!$AH$4:$AI$10,2,FALSE),0)+IF('Crop 2'!$C$15=Carbon!$B66,'Crop 2'!$L$15*VLOOKUP('Crop 2'!$E$15,Carbon!$AH$4:$AI$10,2,FALSE),0)+IF('Crop 2'!$C$16=Carbon!$B66,'Crop 2'!$L$16*VLOOKUP('Crop 2'!$E$16,Carbon!$AH$4:$AI$10,2,FALSE),0)+IF('Crop 2'!$C$19=Carbon!$B66,'Crop 2'!$L$19*VLOOKUP('Crop 2'!$E$19,Carbon!$AH$4:$AI$10,2,FALSE),0)+IF('Crop 2'!$C$20=Carbon!$B66,'Crop 2'!$L$20*VLOOKUP('Crop 2'!$E$20,Carbon!$AH$4:$AI$10,2,FALSE),0)+IF('Crop 2'!$C$21=Carbon!$B66,'Crop 2'!$L$21*VLOOKUP('Crop 2'!$E$21,Carbon!$AH$4:$AI$10,2,FALSE),0)+IF('Crop 2'!$C$49=Carbon!$B66,'Crop 2'!$L$49*VLOOKUP('Crop 2'!$E$49,Carbon!$AH$4:$AI$10,2,FALSE),0)+IF('Crop 2'!$C$50=Carbon!$B66,'Crop 2'!$L$50*VLOOKUP('Crop 2'!$E$50,Carbon!$AH$4:$AI$10,2,FALSE),0)+IF('Crop 2'!$C$51=Carbon!$B66,'Crop 2'!$L$51*VLOOKUP('Crop 2'!$E$51,Carbon!$AH$4:$AI$10,2,FALSE),0)+IF('Crop 2'!$C$52=Carbon!$B66,'Crop 2'!$L$52*VLOOKUP('Crop 2'!$E$52,Carbon!$AH$4:$AI$10,2,FALSE),0)+IF('Crop 2'!$C$53=Carbon!$B66,'Crop 2'!$L$53*VLOOKUP('Crop 2'!$E$53,Carbon!$AH$4:$AI$10,2,FALSE),0)+IF('Crop 2'!$C$56=Carbon!$B66,'Crop 2'!$L$56*VLOOKUP('Crop 2'!$E$56,Carbon!$AH$4:$AI$10,2,FALSE),0)+IF('Crop 2'!$C$57=Carbon!$B66,'Crop 2'!$L$57*VLOOKUP('Crop 2'!$E$57,Carbon!$AH$4:$AI$10,2,FALSE),0)+IF('Crop 2'!$C$58=Carbon!$B66,'Crop 2'!$L$58*VLOOKUP('Crop 2'!$E$58,Carbon!$AH$4:$AI$10,2,FALSE),0)+IF('Crop 2'!$C$59=Carbon!$B66,'Crop 2'!$L$59*VLOOKUP('Crop 2'!$E$59,Carbon!$AH$4:$AI$10,2,FALSE),0)+IF('Crop 2'!$C$62=Carbon!$B66,'Crop 2'!$L$62*VLOOKUP('Crop 2'!$E$62,Carbon!$AH$4:$AI$10,2,FALSE),0)+IF('Crop 2'!$C$63=Carbon!$B66,'Crop 2'!$L$63*VLOOKUP('Crop 2'!$E$63,Carbon!$AH$4:$AI$10,2,FALSE),0)+IF('Crop 2'!$C$64=Carbon!$B66,'Crop 2'!$L$64*VLOOKUP('Crop 2'!$E$64,Carbon!$AH$4:$AI$10,2,FALSE),0)+IF('Crop 2'!$C$65=Carbon!$B66,'Crop 2'!$L$65*VLOOKUP('Crop 2'!$E$65,Carbon!$AH$4:$AI$10,2,FALSE),0))*$AL$20,2)","v":0},{"$f":"E66*Inputs!$D$15","v":0},{"$f":"ROUND((IF('Crop 3'!$C$14=Carbon!$B66,'Crop 3'!$L$14*VLOOKUP('Crop 3'!$E$14,Carbon!$AH$4:$AI$10,2,FALSE),0)+IF('Crop 3'!$C$15=Carbon!$B66,'Crop 3'!$L$15*VLOOKUP('Crop 3'!$E$15,Carbon!$AH$4:$AI$10,2,FALSE),0)+IF('Crop 3'!$C$16=Carbon!$B66,'Crop 3'!$L$16*VLOOKUP('Crop 3'!$E$16,Carbon!$AH$4:$AI$10,2,FALSE),0)+IF('Crop 3'!$C$19=Carbon!$B66,'Crop 3'!$L$19*VLOOKUP('Crop 3'!$E$19,Carbon!$AH$4:$AI$10,2,FALSE),0)+IF('Crop 3'!$C$20=Carbon!$B66,'Crop 3'!$L$20*VLOOKUP('Crop 3'!$E$20,Carbon!$AH$4:$AI$10,2,FALSE),0)+IF('Crop 3'!$C$21=Carbon!$B66,'Crop 3'!$L$21*VLOOKUP('Crop 3'!$E$21,Carbon!$AH$4:$AI$10,2,FALSE),0)+IF('Crop 3'!$C$49=Carbon!$B66,'Crop 3'!$L$49*VLOOKUP('Crop 3'!$E$49,Carbon!$AH$4:$AI$10,2,FALSE),0)+IF('Crop 3'!$C$50=Carbon!$B66,'Crop 3'!$L$50*VLOOKUP('Crop 3'!$E$50,Carbon!$AH$4:$AI$10,2,FALSE),0)+IF('Crop 3'!$C$51=Carbon!$B66,'Crop 3'!$L$51*VLOOKUP('Crop 3'!$E$51,Carbon!$AH$4:$AI$10,2,FALSE),0)+IF('Crop 3'!$C$52=Carbon!$B66,'Crop 3'!$L$52*VLOOKUP('Crop 3'!$E$52,Carbon!$AH$4:$AI$10,2,FALSE),0)+IF('Crop 3'!$C$53=Carbon!$B66,'Crop 3'!$L$53*VLOOKUP('Crop 3'!$E$53,Carbon!$AH$4:$AI$10,2,FALSE),0)+IF('Crop 3'!$C$56=Carbon!$B66,'Crop 3'!$L$56*VLOOKUP('Crop 3'!$E$56,Carbon!$AH$4:$AI$10,2,FALSE),0)+IF('Crop 3'!$C$57=Carbon!$B66,'Crop 3'!$L$57*VLOOKUP('Crop 3'!$E$57,Carbon!$AH$4:$AI$10,2,FALSE),0)+IF('Crop 3'!$C$58=Carbon!$B66,'Crop 3'!$L$58*VLOOKUP('Crop 3'!$E$58,Carbon!$AH$4:$AI$10,2,FALSE),0)+IF('Crop 3'!$C$59=Carbon!$B66,'Crop 3'!$L$59*VLOOKUP('Crop 3'!$E$59,Carbon!$AH$4:$AI$10,2,FALSE),0)+IF('Crop 3'!$C$62=Carbon!$B66,'Crop 3'!$L$62*VLOOKUP('Crop 3'!$E$62,Carbon!$AH$4:$AI$10,2,FALSE),0)+IF('Crop 3'!$C$63=Carbon!$B66,'Crop 3'!$L$63*VLOOKUP('Crop 3'!$E$63,Carbon!$AH$4:$AI$10,2,FALSE),0)+IF('Crop 3'!$C$64=Carbon!$B66,'Crop 3'!$L$64*VLOOKUP('Crop 3'!$E$64,Carbon!$AH$4:$AI$10,2,FALSE),0)+IF('Crop 3'!$C$65=Carbon!$B66,'Crop 3'!$L$65*VLOOKUP('Crop 3'!$E$65,Carbon!$AH$4:$AI$10,2,FALSE),0))*$AL$20,2)","v":0},{"$f":"G66*Inputs!$D$17","v":0},{"$f":"ROUND(J66/Inputs!D$19,2)","v":0},0,null,null,{"$f":"ROUND((IF('Crop 1'!$C$14=Carbon!$B66,'Crop 1'!$V$14*VLOOKUP('Crop 1'!$E$14,Carbon!$AH$4:$AI$10,2,FALSE),0)+IF('Crop 1'!$C$15=Carbon!$B66,'Crop 1'!$V$15*VLOOKUP('Crop 1'!$E$15,Carbon!$AH$4:$AI$10,2,FALSE),0)+IF('Crop 1'!$C$16=Carbon!$B66,'Crop 1'!$V$16*VLOOKUP('Crop 1'!$E$16,Carbon!$AH$4:$AI$10,2,FALSE),0)+IF('Crop 1'!$C$19=Carbon!$B66,'Crop 1'!$V$19*VLOOKUP('Crop 1'!$E$19,Carbon!$AH$4:$AI$10,2,FALSE),0)+IF('Crop 1'!$C$20=Carbon!$B66,'Crop 1'!$V$20*VLOOKUP('Crop 1'!$E$20,Carbon!$AH$4:$AI$10,2,FALSE),0)+IF('Crop 1'!$C$21=Carbon!$B66,'Crop 1'!$V$21*VLOOKUP('Crop 1'!$E$21,Carbon!$AH$4:$AI$10,2,FALSE),0)+IF('Crop 1'!$C$49=Carbon!$B66,'Crop 1'!$V$49*VLOOKUP('Crop 1'!$E$49,Carbon!$AH$4:$AI$10,2,FALSE),0)+IF('Crop 1'!$C$50=Carbon!$B66,'Crop 1'!$V$50*VLOOKUP('Crop 1'!$E$50,Carbon!$AH$4:$AI$10,2,FALSE),0)+IF('Crop 1'!$C$51=Carbon!$B66,'Crop 1'!$V$51*VLOOKUP('Crop 1'!$E$51,Carbon!$AH$4:$AI$10,2,FALSE),0)+IF('Crop 1'!$C$52=Carbon!$B66,'Crop 1'!$V$52*VLOOKUP('Crop 1'!$E$52,Carbon!$AH$4:$AI$10,2,FALSE),0)+IF('Crop 1'!$C$53=Carbon!$B66,'Crop 1'!$V$53*VLOOKUP('Crop 1'!$E$53,Carbon!$AH$4:$AI$10,2,FALSE),0)+IF('Crop 1'!$C$56=Carbon!$B66,'Crop 1'!$V$56*VLOOKUP('Crop 1'!$E$56,Carbon!$AH$4:$AI$10,2,FALSE),0)+IF('Crop 1'!$C$57=Carbon!$B66,'Crop 1'!$V$57*VLOOKUP('Crop 1'!$E$57,Carbon!$AH$4:$AI$10,2,FALSE),0)+IF('Crop 1'!$C$58=Carbon!$B66,'Crop 1'!$V$58*VLOOKUP('Crop 1'!$E$58,Carbon!$AH$4:$AI$10,2,FALSE),0)+IF('Crop 1'!$C$59=Carbon!$B66,'Crop 1'!$V$59*VLOOKUP('Crop 1'!$E$59,Carbon!$AH$4:$AI$10,2,FALSE),0)+IF('Crop 1'!$C$62=Carbon!$B66,'Crop 1'!$V$62*VLOOKUP('Crop 1'!$E$62,Carbon!$AH$4:$AI$10,2,FALSE),0)+IF('Crop 1'!$C$63=Carbon!$B66,'Crop 1'!$V$63*VLOOKUP('Crop 1'!$E$63,Carbon!$AH$4:$AI$10,2,FALSE),0)+IF('Crop 1'!$C$64=Carbon!$B66,'Crop 1'!$V$64*VLOOKUP('Crop 1'!$E$64,Carbon!$AH$4:$AI$10,2,FALSE),0)+IF('Crop 1'!$C$65=Carbon!$B66,'Crop 1'!$V$65*VLOOKUP('Crop 1'!$E$65,Carbon!$AH$4:$AI$10,2,FALSE),0))*$AL$20,2)","v":0},{"$f":"M66*Inputs!$D$13","v":0},{"$f":"ROUND((IF('Crop 2'!$C$14=Carbon!$B66,'Crop 2'!$V$14*VLOOKUP('Crop 2'!$E$14,Carbon!$AH$4:$AI$10,2,FALSE),0)+IF('Crop 2'!$C$15=Carbon!$B66,'Crop 2'!$V$15*VLOOKUP('Crop 2'!$E$15,Carbon!$AH$4:$AI$10,2,FALSE),0)+IF('Crop 2'!$C$16=Carbon!$B66,'Crop 2'!$V$16*VLOOKUP('Crop 2'!$E$16,Carbon!$AH$4:$AI$10,2,FALSE),0)+IF('Crop 2'!$C$19=Carbon!$B66,'Crop 2'!$V$19*VLOOKUP('Crop 2'!$E$19,Carbon!$AH$4:$AI$10,2,FALSE),0)+IF('Crop 2'!$C$20=Carbon!$B66,'Crop 2'!$V$20*VLOOKUP('Crop 2'!$E$20,Carbon!$AH$4:$AI$10,2,FALSE),0)+IF('Crop 2'!$C$21=Carbon!$B66,'Crop 2'!$V$21*VLOOKUP('Crop 2'!$E$21,Carbon!$AH$4:$AI$10,2,FALSE),0)+IF('Crop 2'!$C$49=Carbon!$B66,'Crop 2'!$V$49*VLOOKUP('Crop 2'!$E$49,Carbon!$AH$4:$AI$10,2,FALSE),0)+IF('Crop 2'!$C$50=Carbon!$B66,'Crop 2'!$V$50*VLOOKUP('Crop 2'!$E$50,Carbon!$AH$4:$AI$10,2,FALSE),0)+IF('Crop 2'!$C$51=Carbon!$B66,'Crop 2'!$V$51*VLOOKUP('Crop 2'!$E$51,Carbon!$AH$4:$AI$10,2,FALSE),0)+IF('Crop 2'!$C$52=Carbon!$B66,'Crop 2'!$V$52*VLOOKUP('Crop 2'!$E$52,Carbon!$AH$4:$AI$10,2,FALSE),0)+IF('Crop 2'!$C$53=Carbon!$B66,'Crop 2'!$V$53*VLOOKUP('Crop 2'!$E$53,Carbon!$AH$4:$AI$10,2,FALSE),0)+IF('Crop 2'!$C$56=Carbon!$B66,'Crop 2'!$V$56*VLOOKUP('Crop 2'!$E$56,Carbon!$AH$4:$AI$10,2,FALSE),0)+IF('Crop 2'!$C$57=Carbon!$B66,'Crop 2'!$V$57*VLOOKUP('Crop 2'!$E$57,Carbon!$AH$4:$AI$10,2,FALSE),0)+IF('Crop 2'!$C$58=Carbon!$B66,'Crop 2'!$V$58*VLOOKUP('Crop 2'!$E$58,Carbon!$AH$4:$AI$10,2,FALSE),0)+IF('Crop 2'!$C$59=Carbon!$B66,'Crop 2'!$V$59*VLOOKUP('Crop 2'!$E$59,Carbon!$AH$4:$AI$10,2,FALSE),0)+IF('Crop 2'!$C$62=Carbon!$B66,'Crop 2'!$V$62*VLOOKUP('Crop 2'!$E$62,Carbon!$AH$4:$AI$10,2,FALSE),0)+IF('Crop 2'!$C$63=Carbon!$B66,'Crop 2'!$V$63*VLOOKUP('Crop 2'!$E$63,Carbon!$AH$4:$AI$10,2,FALSE),0)+IF('Crop 2'!$C$64=Carbon!$B66,'Crop 2'!$V$64*VLOOKUP('Crop 2'!$E$64,Carbon!$AH$4:$AI$10,2,FALSE),0)+IF('Crop 2'!$C$65=Carbon!$B66,'Crop 2'!$V$65*VLOOKUP('Crop 2'!$E$65,Carbon!$AH$4:$AI$10,2,FALSE),0))*$AL$20,2)","v":0},{"$f":"O66*Inputs!$D$15","v":0},{"$f":"ROUND((IF('Crop 3'!$C$14=Carbon!$B66,'Crop 3'!$V$14*VLOOKUP('Crop 3'!$E$14,Carbon!$AH$4:$AI$10,2,FALSE),0)+IF('Crop 3'!$C$15=Carbon!$B66,'Crop 3'!$V$15*VLOOKUP('Crop 3'!$E$15,Carbon!$AH$4:$AI$10,2,FALSE),0)+IF('Crop 3'!$C$16=Carbon!$B66,'Crop 3'!$V$16*VLOOKUP('Crop 3'!$E$16,Carbon!$AH$4:$AI$10,2,FALSE),0)+IF('Crop 3'!$C$19=Carbon!$B66,'Crop 3'!$V$19*VLOOKUP('Crop 3'!$E$19,Carbon!$AH$4:$AI$10,2,FALSE),0)+IF('Crop 3'!$C$20=Carbon!$B66,'Crop 3'!$V$20*VLOOKUP('Crop 3'!$E$20,Carbon!$AH$4:$AI$10,2,FALSE),0)+IF('Crop 3'!$C$21=Carbon!$B66,'Crop 3'!$V$21*VLOOKUP('Crop 3'!$E$21,Carbon!$AH$4:$AI$10,2,FALSE),0)+IF('Crop 3'!$C$49=Carbon!$B66,'Crop 3'!$V$49*VLOOKUP('Crop 3'!$E$49,Carbon!$AH$4:$AI$10,2,FALSE),0)+IF('Crop 3'!$C$50=Carbon!$B66,'Crop 3'!$V$50*VLOOKUP('Crop 3'!$E$50,Carbon!$AH$4:$AI$10,2,FALSE),0)+IF('Crop 3'!$C$51=Carbon!$B66,'Crop 3'!$V$51*VLOOKUP('Crop 3'!$E$51,Carbon!$AH$4:$AI$10,2,FALSE),0)+IF('Crop 3'!$C$52=Carbon!$B66,'Crop 3'!$V$52*VLOOKUP('Crop 3'!$E$52,Carbon!$AH$4:$AI$10,2,FALSE),0)+IF('Crop 3'!$C$53=Carbon!$B66,'Crop 3'!$V$53*VLOOKUP('Crop 3'!$E$53,Carbon!$AH$4:$AI$10,2,FALSE),0)+IF('Crop 3'!$C$56=Carbon!$B66,'Crop 3'!$V$56*VLOOKUP('Crop 3'!$E$56,Carbon!$AH$4:$AI$10,2,FALSE),0)+IF('Crop 3'!$C$57=Carbon!$B66,'Crop 3'!$V$57*VLOOKUP('Crop 3'!$E$57,Carbon!$AH$4:$AI$10,2,FALSE),0)+IF('Crop 3'!$C$58=Carbon!$B66,'Crop 3'!$V$58*VLOOKUP('Crop 3'!$E$58,Carbon!$AH$4:$AI$10,2,FALSE),0)+IF('Crop 3'!$C$59=Carbon!$B66,'Crop 3'!$V$59*VLOOKUP('Crop 3'!$E$59,Carbon!$AH$4:$AI$10,2,FALSE),0)+IF('Crop 3'!$C$62=Carbon!$B66,'Crop 3'!$V$62*VLOOKUP('Crop 3'!$E$62,Carbon!$AH$4:$AI$10,2,FALSE),0)+IF('Crop 3'!$C$63=Carbon!$B66,'Crop 3'!$V$63*VLOOKUP('Crop 3'!$E$63,Carbon!$AH$4:$AI$10,2,FALSE),0)+IF('Crop 3'!$C$64=Carbon!$B66,'Crop 3'!$V$64*VLOOKUP('Crop 3'!$E$64,Carbon!$AH$4:$AI$10,2,FALSE),0)+IF('Crop 3'!$C$65=Carbon!$B66,'Crop 3'!$V$65*VLOOKUP('Crop 3'!$E$65,Carbon!$AH$4:$AI$10,2,FALSE),0))*$AL$20,2)","v":0},{"$f":"Q66*Inputs!$D$17","v":0},{"$f":"ROUND(T66/Inputs!D$19,2)","v":0},0,null,null,0,{"$f":"W66*Inputs!$D$13","v":0},0,{"$f":"Y66*Inputs!$D$13","v":0},0,{"$f":"AA66*Inputs!$D$13","v":0},{"$f":"ROUND(AD66/Inputs!D$19,2)","v":0},0]
[null,{"$f":"Defaults!AH33","v":"Chaparral"},{"$f":"ROUND((IF('Crop 1'!$C$14=Carbon!$B67,'Crop 1'!$L$14*VLOOKUP('Crop 1'!$E$14,Carbon!$AH$4:$AI$10,2,FALSE),0)+IF('Crop 1'!$C$15=Carbon!$B67,'Crop 1'!$L$15*VLOOKUP('Crop 1'!$E$15,Carbon!$AH$4:$AI$10,2,FALSE),0)+IF('Crop 1'!$C$16=Carbon!$B67,'Crop 1'!$L$16*VLOOKUP('Crop 1'!$E$16,Carbon!$AH$4:$AI$10,2,FALSE),0)+IF('Crop 1'!$C$19=Carbon!$B67,'Crop 1'!$L$19*VLOOKUP('Crop 1'!$E$19,Carbon!$AH$4:$AI$10,2,FALSE),0)+IF('Crop 1'!$C$20=Carbon!$B67,'Crop 1'!$L$20*VLOOKUP('Crop 1'!$E$20,Carbon!$AH$4:$AI$10,2,FALSE),0)+IF('Crop 1'!$C$21=Carbon!$B67,'Crop 1'!$L$21*VLOOKUP('Crop 1'!$E$21,Carbon!$AH$4:$AI$10,2,FALSE),0)+IF('Crop 1'!$C$49=Carbon!$B67,'Crop 1'!$L$49*VLOOKUP('Crop 1'!$E$49,Carbon!$AH$4:$AI$10,2,FALSE),0)+IF('Crop 1'!$C$50=Carbon!$B67,'Crop 1'!$L$50*VLOOKUP('Crop 1'!$E$50,Carbon!$AH$4:$AI$10,2,FALSE),0)+IF('Crop 1'!$C$51=Carbon!$B67,'Crop 1'!$L$51*VLOOKUP('Crop 1'!$E$51,Carbon!$AH$4:$AI$10,2,FALSE),0)+IF('Crop 1'!$C$52=Carbon!$B67,'Crop 1'!$L$52*VLOOKUP('Crop 1'!$E$52,Carbon!$AH$4:$AI$10,2,FALSE),0)+IF('Crop 1'!$C$53=Carbon!$B67,'Crop 1'!$L$53*VLOOKUP('Crop 1'!$E$53,Carbon!$AH$4:$AI$10,2,FALSE),0)+IF('Crop 1'!$C$56=Carbon!$B67,'Crop 1'!$L$56*VLOOKUP('Crop 1'!$E$56,Carbon!$AH$4:$AI$10,2,FALSE),0)+IF('Crop 1'!$C$57=Carbon!$B67,'Crop 1'!$L$57*VLOOKUP('Crop 1'!$E$57,Carbon!$AH$4:$AI$10,2,FALSE),0)+IF('Crop 1'!$C$58=Carbon!$B67,'Crop 1'!$L$58*VLOOKUP('Crop 1'!$E$58,Carbon!$AH$4:$AI$10,2,FALSE),0)+IF('Crop 1'!$C$59=Carbon!$B67,'Crop 1'!$L$59*VLOOKUP('Crop 1'!$E$59,Carbon!$AH$4:$AI$10,2,FALSE),0)+IF('Crop 1'!$C$62=Carbon!$B67,'Crop 1'!$L$62*VLOOKUP('Crop 1'!$E$62,Carbon!$AH$4:$AI$10,2,FALSE),0)+IF('Crop 1'!$C$63=Carbon!$B67,'Crop 1'!$L$63*VLOOKUP('Crop 1'!$E$63,Carbon!$AH$4:$AI$10,2,FALSE),0)+IF('Crop 1'!$C$64=Carbon!$B67,'Crop 1'!$L$64*VLOOKUP('Crop 1'!$E$64,Carbon!$AH$4:$AI$10,2,FALSE),0)+IF('Crop 1'!$C$65=Carbon!$B67,'Crop 1'!$L$65*VLOOKUP('Crop 1'!$E$65,Carbon!$AH$4:$AI$10,2,FALSE),0))*$AL$20,2)","v":0},{"$f":"C67*Inputs!$D$13","v":0},{"$f":"ROUND((IF('Crop 2'!$C$14=Carbon!$B67,'Crop 2'!$L$14*VLOOKUP('Crop 2'!$E$14,Carbon!$AH$4:$AI$10,2,FALSE),0)+IF('Crop 2'!$C$15=Carbon!$B67,'Crop 2'!$L$15*VLOOKUP('Crop 2'!$E$15,Carbon!$AH$4:$AI$10,2,FALSE),0)+IF('Crop 2'!$C$16=Carbon!$B67,'Crop 2'!$L$16*VLOOKUP('Crop 2'!$E$16,Carbon!$AH$4:$AI$10,2,FALSE),0)+IF('Crop 2'!$C$19=Carbon!$B67,'Crop 2'!$L$19*VLOOKUP('Crop 2'!$E$19,Carbon!$AH$4:$AI$10,2,FALSE),0)+IF('Crop 2'!$C$20=Carbon!$B67,'Crop 2'!$L$20*VLOOKUP('Crop 2'!$E$20,Carbon!$AH$4:$AI$10,2,FALSE),0)+IF('Crop 2'!$C$21=Carbon!$B67,'Crop 2'!$L$21*VLOOKUP('Crop 2'!$E$21,Carbon!$AH$4:$AI$10,2,FALSE),0)+IF('Crop 2'!$C$49=Carbon!$B67,'Crop 2'!$L$49*VLOOKUP('Crop 2'!$E$49,Carbon!$AH$4:$AI$10,2,FALSE),0)+IF('Crop 2'!$C$50=Carbon!$B67,'Crop 2'!$L$50*VLOOKUP('Crop 2'!$E$50,Carbon!$AH$4:$AI$10,2,FALSE),0)+IF('Crop 2'!$C$51=Carbon!$B67,'Crop 2'!$L$51*VLOOKUP('Crop 2'!$E$51,Carbon!$AH$4:$AI$10,2,FALSE),0)+IF('Crop 2'!$C$52=Carbon!$B67,'Crop 2'!$L$52*VLOOKUP('Crop 2'!$E$52,Carbon!$AH$4:$AI$10,2,FALSE),0)+IF('Crop 2'!$C$53=Carbon!$B67,'Crop 2'!$L$53*VLOOKUP('Crop 2'!$E$53,Carbon!$AH$4:$AI$10,2,FALSE),0)+IF('Crop 2'!$C$56=Carbon!$B67,'Crop 2'!$L$56*VLOOKUP('Crop 2'!$E$56,Carbon!$AH$4:$AI$10,2,FALSE),0)+IF('Crop 2'!$C$57=Carbon!$B67,'Crop 2'!$L$57*VLOOKUP('Crop 2'!$E$57,Carbon!$AH$4:$AI$10,2,FALSE),0)+IF('Crop 2'!$C$58=Carbon!$B67,'Crop 2'!$L$58*VLOOKUP('Crop 2'!$E$58,Carbon!$AH$4:$AI$10,2,FALSE),0)+IF('Crop 2'!$C$59=Carbon!$B67,'Crop 2'!$L$59*VLOOKUP('Crop 2'!$E$59,Carbon!$AH$4:$AI$10,2,FALSE),0)+IF('Crop 2'!$C$62=Carbon!$B67,'Crop 2'!$L$62*VLOOKUP('Crop 2'!$E$62,Carbon!$AH$4:$AI$10,2,FALSE),0)+IF('Crop 2'!$C$63=Carbon!$B67,'Crop 2'!$L$63*VLOOKUP('Crop 2'!$E$63,Carbon!$AH$4:$AI$10,2,FALSE),0)+IF('Crop 2'!$C$64=Carbon!$B67,'Crop 2'!$L$64*VLOOKUP('Crop 2'!$E$64,Carbon!$AH$4:$AI$10,2,FALSE),0)+IF('Crop 2'!$C$65=Carbon!$B67,'Crop 2'!$L$65*VLOOKUP('Crop 2'!$E$65,Carbon!$AH$4:$AI$10,2,FALSE),0))*$AL$20,2)","v":0},{"$f":"E67*Inputs!$D$15","v":0},{"$f":"ROUND((IF('Crop 3'!$C$14=Carbon!$B67,'Crop 3'!$L$14*VLOOKUP('Crop 3'!$E$14,Carbon!$AH$4:$AI$10,2,FALSE),0)+IF('Crop 3'!$C$15=Carbon!$B67,'Crop 3'!$L$15*VLOOKUP('Crop 3'!$E$15,Carbon!$AH$4:$AI$10,2,FALSE),0)+IF('Crop 3'!$C$16=Carbon!$B67,'Crop 3'!$L$16*VLOOKUP('Crop 3'!$E$16,Carbon!$AH$4:$AI$10,2,FALSE),0)+IF('Crop 3'!$C$19=Carbon!$B67,'Crop 3'!$L$19*VLOOKUP('Crop 3'!$E$19,Carbon!$AH$4:$AI$10,2,FALSE),0)+IF('Crop 3'!$C$20=Carbon!$B67,'Crop 3'!$L$20*VLOOKUP('Crop 3'!$E$20,Carbon!$AH$4:$AI$10,2,FALSE),0)+IF('Crop 3'!$C$21=Carbon!$B67,'Crop 3'!$L$21*VLOOKUP('Crop 3'!$E$21,Carbon!$AH$4:$AI$10,2,FALSE),0)+IF('Crop 3'!$C$49=Carbon!$B67,'Crop 3'!$L$49*VLOOKUP('Crop 3'!$E$49,Carbon!$AH$4:$AI$10,2,FALSE),0)+IF('Crop 3'!$C$50=Carbon!$B67,'Crop 3'!$L$50*VLOOKUP('Crop 3'!$E$50,Carbon!$AH$4:$AI$10,2,FALSE),0)+IF('Crop 3'!$C$51=Carbon!$B67,'Crop 3'!$L$51*VLOOKUP('Crop 3'!$E$51,Carbon!$AH$4:$AI$10,2,FALSE),0)+IF('Crop 3'!$C$52=Carbon!$B67,'Crop 3'!$L$52*VLOOKUP('Crop 3'!$E$52,Carbon!$AH$4:$AI$10,2,FALSE),0)+IF('Crop 3'!$C$53=Carbon!$B67,'Crop 3'!$L$53*VLOOKUP('Crop 3'!$E$53,Carbon!$AH$4:$AI$10,2,FALSE),0)+IF('Crop 3'!$C$56=Carbon!$B67,'Crop 3'!$L$56*VLOOKUP('Crop 3'!$E$56,Carbon!$AH$4:$AI$10,2,FALSE),0)+IF('Crop 3'!$C$57=Carbon!$B67,'Crop 3'!$L$57*VLOOKUP('Crop 3'!$E$57,Carbon!$AH$4:$AI$10,2,FALSE),0)+IF('Crop 3'!$C$58=Carbon!$B67,'Crop 3'!$L$58*VLOOKUP('Crop 3'!$E$58,Carbon!$AH$4:$AI$10,2,FALSE),0)+IF('Crop 3'!$C$59=Carbon!$B67,'Crop 3'!$L$59*VLOOKUP('Crop 3'!$E$59,Carbon!$AH$4:$AI$10,2,FALSE),0)+IF('Crop 3'!$C$62=Carbon!$B67,'Crop 3'!$L$62*VLOOKUP('Crop 3'!$E$62,Carbon!$AH$4:$AI$10,2,FALSE),0)+IF('Crop 3'!$C$63=Carbon!$B67,'Crop 3'!$L$63*VLOOKUP('Crop 3'!$E$63,Carbon!$AH$4:$AI$10,2,FALSE),0)+IF('Crop 3'!$C$64=Carbon!$B67,'Crop 3'!$L$64*VLOOKUP('Crop 3'!$E$64,Carbon!$AH$4:$AI$10,2,FALSE),0)+IF('Crop 3'!$C$65=Carbon!$B67,'Crop 3'!$L$65*VLOOKUP('Crop 3'!$E$65,Carbon!$AH$4:$AI$10,2,FALSE),0))*$AL$20,2)","v":0},{"$f":"G67*Inputs!$D$17","v":0},{"$f":"ROUND(J67/Inputs!D$19,2)","v":0},0,null,null,{"$f":"ROUND((IF('Crop 1'!$C$14=Carbon!$B67,'Crop 1'!$V$14*VLOOKUP('Crop 1'!$E$14,Carbon!$AH$4:$AI$10,2,FALSE),0)+IF('Crop 1'!$C$15=Carbon!$B67,'Crop 1'!$V$15*VLOOKUP('Crop 1'!$E$15,Carbon!$AH$4:$AI$10,2,FALSE),0)+IF('Crop 1'!$C$16=Carbon!$B67,'Crop 1'!$V$16*VLOOKUP('Crop 1'!$E$16,Carbon!$AH$4:$AI$10,2,FALSE),0)+IF('Crop 1'!$C$19=Carbon!$B67,'Crop 1'!$V$19*VLOOKUP('Crop 1'!$E$19,Carbon!$AH$4:$AI$10,2,FALSE),0)+IF('Crop 1'!$C$20=Carbon!$B67,'Crop 1'!$V$20*VLOOKUP('Crop 1'!$E$20,Carbon!$AH$4:$AI$10,2,FALSE),0)+IF('Crop 1'!$C$21=Carbon!$B67,'Crop 1'!$V$21*VLOOKUP('Crop 1'!$E$21,Carbon!$AH$4:$AI$10,2,FALSE),0)+IF('Crop 1'!$C$49=Carbon!$B67,'Crop 1'!$V$49*VLOOKUP('Crop 1'!$E$49,Carbon!$AH$4:$AI$10,2,FALSE),0)+IF('Crop 1'!$C$50=Carbon!$B67,'Crop 1'!$V$50*VLOOKUP('Crop 1'!$E$50,Carbon!$AH$4:$AI$10,2,FALSE),0)+IF('Crop 1'!$C$51=Carbon!$B67,'Crop 1'!$V$51*VLOOKUP('Crop 1'!$E$51,Carbon!$AH$4:$AI$10,2,FALSE),0)+IF('Crop 1'!$C$52=Carbon!$B67,'Crop 1'!$V$52*VLOOKUP('Crop 1'!$E$52,Carbon!$AH$4:$AI$10,2,FALSE),0)+IF('Crop 1'!$C$53=Carbon!$B67,'Crop 1'!$V$53*VLOOKUP('Crop 1'!$E$53,Carbon!$AH$4:$AI$10,2,FALSE),0)+IF('Crop 1'!$C$56=Carbon!$B67,'Crop 1'!$V$56*VLOOKUP('Crop 1'!$E$56,Carbon!$AH$4:$AI$10,2,FALSE),0)+IF('Crop 1'!$C$57=Carbon!$B67,'Crop 1'!$V$57*VLOOKUP('Crop 1'!$E$57,Carbon!$AH$4:$AI$10,2,FALSE),0)+IF('Crop 1'!$C$58=Carbon!$B67,'Crop 1'!$V$58*VLOOKUP('Crop 1'!$E$58,Carbon!$AH$4:$AI$10,2,FALSE),0)+IF('Crop 1'!$C$59=Carbon!$B67,'Crop 1'!$V$59*VLOOKUP('Crop 1'!$E$59,Carbon!$AH$4:$AI$10,2,FALSE),0)+IF('Crop 1'!$C$62=Carbon!$B67,'Crop 1'!$V$62*VLOOKUP('Crop 1'!$E$62,Carbon!$AH$4:$AI$10,2,FALSE),0)+IF('Crop 1'!$C$63=Carbon!$B67,'Crop 1'!$V$63*VLOOKUP('Crop 1'!$E$63,Carbon!$AH$4:$AI$10,2,FALSE),0)+IF('Crop 1'!$C$64=Carbon!$B67,'Crop 1'!$V$64*VLOOKUP('Crop 1'!$E$64,Carbon!$AH$4:$AI$10,2,FALSE),0)+IF('Crop 1'!$C$65=Carbon!$B67,'Crop 1'!$V$65*VLOOKUP('Crop 1'!$E$65,Carbon!$AH$4:$AI$10,2,FALSE),0))*$AL$20,2)","v":0},{"$f":"M67*Inputs!$D$13","v":0},{"$f":"ROUND((IF('Crop 2'!$C$14=Carbon!$B67,'Crop 2'!$V$14*VLOOKUP('Crop 2'!$E$14,Carbon!$AH$4:$AI$10,2,FALSE),0)+IF('Crop 2'!$C$15=Carbon!$B67,'Crop 2'!$V$15*VLOOKUP('Crop 2'!$E$15,Carbon!$AH$4:$AI$10,2,FALSE),0)+IF('Crop 2'!$C$16=Carbon!$B67,'Crop 2'!$V$16*VLOOKUP('Crop 2'!$E$16,Carbon!$AH$4:$AI$10,2,FALSE),0)+IF('Crop 2'!$C$19=Carbon!$B67,'Crop 2'!$V$19*VLOOKUP('Crop 2'!$E$19,Carbon!$AH$4:$AI$10,2,FALSE),0)+IF('Crop 2'!$C$20=Carbon!$B67,'Crop 2'!$V$20*VLOOKUP('Crop 2'!$E$20,Carbon!$AH$4:$AI$10,2,FALSE),0)+IF('Crop 2'!$C$21=Carbon!$B67,'Crop 2'!$V$21*VLOOKUP('Crop 2'!$E$21,Carbon!$AH$4:$AI$10,2,FALSE),0)+IF('Crop 2'!$C$49=Carbon!$B67,'Crop 2'!$V$49*VLOOKUP('Crop 2'!$E$49,Carbon!$AH$4:$AI$10,2,FALSE),0)+IF('Crop 2'!$C$50=Carbon!$B67,'Crop 2'!$V$50*VLOOKUP('Crop 2'!$E$50,Carbon!$AH$4:$AI$10,2,FALSE),0)+IF('Crop 2'!$C$51=Carbon!$B67,'Crop 2'!$V$51*VLOOKUP('Crop 2'!$E$51,Carbon!$AH$4:$AI$10,2,FALSE),0)+IF('Crop 2'!$C$52=Carbon!$B67,'Crop 2'!$V$52*VLOOKUP('Crop 2'!$E$52,Carbon!$AH$4:$AI$10,2,FALSE),0)+IF('Crop 2'!$C$53=Carbon!$B67,'Crop 2'!$V$53*VLOOKUP('Crop 2'!$E$53,Carbon!$AH$4:$AI$10,2,FALSE),0)+IF('Crop 2'!$C$56=Carbon!$B67,'Crop 2'!$V$56*VLOOKUP('Crop 2'!$E$56,Carbon!$AH$4:$AI$10,2,FALSE),0)+IF('Crop 2'!$C$57=Carbon!$B67,'Crop 2'!$V$57*VLOOKUP('Crop 2'!$E$57,Carbon!$AH$4:$AI$10,2,FALSE),0)+IF('Crop 2'!$C$58=Carbon!$B67,'Crop 2'!$V$58*VLOOKUP('Crop 2'!$E$58,Carbon!$AH$4:$AI$10,2,FALSE),0)+IF('Crop 2'!$C$59=Carbon!$B67,'Crop 2'!$V$59*VLOOKUP('Crop 2'!$E$59,Carbon!$AH$4:$AI$10,2,FALSE),0)+IF('Crop 2'!$C$62=Carbon!$B67,'Crop 2'!$V$62*VLOOKUP('Crop 2'!$E$62,Carbon!$AH$4:$AI$10,2,FALSE),0)+IF('Crop 2'!$C$63=Carbon!$B67,'Crop 2'!$V$63*VLOOKUP('Crop 2'!$E$63,Carbon!$AH$4:$AI$10,2,FALSE),0)+IF('Crop 2'!$C$64=Carbon!$B67,'Crop 2'!$V$64*VLOOKUP('Crop 2'!$E$64,Carbon!$AH$4:$AI$10,2,FALSE),0)+IF('Crop 2'!$C$65=Carbon!$B67,'Crop 2'!$V$65*VLOOKUP('Crop 2'!$E$65,Carbon!$AH$4:$AI$10,2,FALSE),0))*$AL$20,2)","v":0},{"$f":"O67*Inputs!$D$15","v":0},{"$f":"ROUND((IF('Crop 3'!$C$14=Carbon!$B67,'Crop 3'!$V$14*VLOOKUP('Crop 3'!$E$14,Carbon!$AH$4:$AI$10,2,FALSE),0)+IF('Crop 3'!$C$15=Carbon!$B67,'Crop 3'!$V$15*VLOOKUP('Crop 3'!$E$15,Carbon!$AH$4:$AI$10,2,FALSE),0)+IF('Crop 3'!$C$16=Carbon!$B67,'Crop 3'!$V$16*VLOOKUP('Crop 3'!$E$16,Carbon!$AH$4:$AI$10,2,FALSE),0)+IF('Crop 3'!$C$19=Carbon!$B67,'Crop 3'!$V$19*VLOOKUP('Crop 3'!$E$19,Carbon!$AH$4:$AI$10,2,FALSE),0)+IF('Crop 3'!$C$20=Carbon!$B67,'Crop 3'!$V$20*VLOOKUP('Crop 3'!$E$20,Carbon!$AH$4:$AI$10,2,FALSE),0)+IF('Crop 3'!$C$21=Carbon!$B67,'Crop 3'!$V$21*VLOOKUP('Crop 3'!$E$21,Carbon!$AH$4:$AI$10,2,FALSE),0)+IF('Crop 3'!$C$49=Carbon!$B67,'Crop 3'!$V$49*VLOOKUP('Crop 3'!$E$49,Carbon!$AH$4:$AI$10,2,FALSE),0)+IF('Crop 3'!$C$50=Carbon!$B67,'Crop 3'!$V$50*VLOOKUP('Crop 3'!$E$50,Carbon!$AH$4:$AI$10,2,FALSE),0)+IF('Crop 3'!$C$51=Carbon!$B67,'Crop 3'!$V$51*VLOOKUP('Crop 3'!$E$51,Carbon!$AH$4:$AI$10,2,FALSE),0)+IF('Crop 3'!$C$52=Carbon!$B67,'Crop 3'!$V$52*VLOOKUP('Crop 3'!$E$52,Carbon!$AH$4:$AI$10,2,FALSE),0)+IF('Crop 3'!$C$53=Carbon!$B67,'Crop 3'!$V$53*VLOOKUP('Crop 3'!$E$53,Carbon!$AH$4:$AI$10,2,FALSE),0)+IF('Crop 3'!$C$56=Carbon!$B67,'Crop 3'!$V$56*VLOOKUP('Crop 3'!$E$56,Carbon!$AH$4:$AI$10,2,FALSE),0)+IF('Crop 3'!$C$57=Carbon!$B67,'Crop 3'!$V$57*VLOOKUP('Crop 3'!$E$57,Carbon!$AH$4:$AI$10,2,FALSE),0)+IF('Crop 3'!$C$58=Carbon!$B67,'Crop 3'!$V$58*VLOOKUP('Crop 3'!$E$58,Carbon!$AH$4:$AI$10,2,FALSE),0)+IF('Crop 3'!$C$59=Carbon!$B67,'Crop 3'!$V$59*VLOOKUP('Crop 3'!$E$59,Carbon!$AH$4:$AI$10,2,FALSE),0)+IF('Crop 3'!$C$62=Carbon!$B67,'Crop 3'!$V$62*VLOOKUP('Crop 3'!$E$62,Carbon!$AH$4:$AI$10,2,FALSE),0)+IF('Crop 3'!$C$63=Carbon!$B67,'Crop 3'!$V$63*VLOOKUP('Crop 3'!$E$63,Carbon!$AH$4:$AI$10,2,FALSE),0)+IF('Crop 3'!$C$64=Carbon!$B67,'Crop 3'!$V$64*VLOOKUP('Crop 3'!$E$64,Carbon!$AH$4:$AI$10,2,FALSE),0)+IF('Crop 3'!$C$65=Carbon!$B67,'Crop 3'!$V$65*VLOOKUP('Crop 3'!$E$65,Carbon!$AH$4:$AI$10,2,FALSE),0))*$AL$20,2)","v":0},{"$f":"Q67*Inputs!$D$17","v":0},{"$f":"ROUND(T67/Inputs!D$19,2)","v":0},0,null,null,0,{"$f":"W67*Inputs!$D$13","v":0},0,{"$f":"Y67*Inputs!$D$13","v":0},0,{"$f":"AA67*Inputs!$D$13","v":0},{"$f":"ROUND(AD67/Inputs!D$19,2)","v":0},0]
[null,{"$f":"Defaults!AH34","v":"Cimarron Max"},{"$f":"ROUND((IF('Crop 1'!$C$14=Carbon!$B68,'Crop 1'!$L$14*VLOOKUP('Crop 1'!$E$14,Carbon!$AH$4:$AI$10,2,FALSE),0)+IF('Crop 1'!$C$15=Carbon!$B68,'Crop 1'!$L$15*VLOOKUP('Crop 1'!$E$15,Carbon!$AH$4:$AI$10,2,FALSE),0)+IF('Crop 1'!$C$16=Carbon!$B68,'Crop 1'!$L$16*VLOOKUP('Crop 1'!$E$16,Carbon!$AH$4:$AI$10,2,FALSE),0)+IF('Crop 1'!$C$19=Carbon!$B68,'Crop 1'!$L$19*VLOOKUP('Crop 1'!$E$19,Carbon!$AH$4:$AI$10,2,FALSE),0)+IF('Crop 1'!$C$20=Carbon!$B68,'Crop 1'!$L$20*VLOOKUP('Crop 1'!$E$20,Carbon!$AH$4:$AI$10,2,FALSE),0)+IF('Crop 1'!$C$21=Carbon!$B68,'Crop 1'!$L$21*VLOOKUP('Crop 1'!$E$21,Carbon!$AH$4:$AI$10,2,FALSE),0)+IF('Crop 1'!$C$49=Carbon!$B68,'Crop 1'!$L$49*VLOOKUP('Crop 1'!$E$49,Carbon!$AH$4:$AI$10,2,FALSE),0)+IF('Crop 1'!$C$50=Carbon!$B68,'Crop 1'!$L$50*VLOOKUP('Crop 1'!$E$50,Carbon!$AH$4:$AI$10,2,FALSE),0)+IF('Crop 1'!$C$51=Carbon!$B68,'Crop 1'!$L$51*VLOOKUP('Crop 1'!$E$51,Carbon!$AH$4:$AI$10,2,FALSE),0)+IF('Crop 1'!$C$52=Carbon!$B68,'Crop 1'!$L$52*VLOOKUP('Crop 1'!$E$52,Carbon!$AH$4:$AI$10,2,FALSE),0)+IF('Crop 1'!$C$53=Carbon!$B68,'Crop 1'!$L$53*VLOOKUP('Crop 1'!$E$53,Carbon!$AH$4:$AI$10,2,FALSE),0)+IF('Crop 1'!$C$56=Carbon!$B68,'Crop 1'!$L$56*VLOOKUP('Crop 1'!$E$56,Carbon!$AH$4:$AI$10,2,FALSE),0)+IF('Crop 1'!$C$57=Carbon!$B68,'Crop 1'!$L$57*VLOOKUP('Crop 1'!$E$57,Carbon!$AH$4:$AI$10,2,FALSE),0)+IF('Crop 1'!$C$58=Carbon!$B68,'Crop 1'!$L$58*VLOOKUP('Crop 1'!$E$58,Carbon!$AH$4:$AI$10,2,FALSE),0)+IF('Crop 1'!$C$59=Carbon!$B68,'Crop 1'!$L$59*VLOOKUP('Crop 1'!$E$59,Carbon!$AH$4:$AI$10,2,FALSE),0)+IF('Crop 1'!$C$62=Carbon!$B68,'Crop 1'!$L$62*VLOOKUP('Crop 1'!$E$62,Carbon!$AH$4:$AI$10,2,FALSE),0)+IF('Crop 1'!$C$63=Carbon!$B68,'Crop 1'!$L$63*VLOOKUP('Crop 1'!$E$63,Carbon!$AH$4:$AI$10,2,FALSE),0)+IF('Crop 1'!$C$64=Carbon!$B68,'Crop 1'!$L$64*VLOOKUP('Crop 1'!$E$64,Carbon!$AH$4:$AI$10,2,FALSE),0)+IF('Crop 1'!$C$65=Carbon!$B68,'Crop 1'!$L$65*VLOOKUP('Crop 1'!$E$65,Carbon!$AH$4:$AI$10,2,FALSE),0))*$AL$20,2)","v":0},{"$f":"C68*Inputs!$D$13","v":0},{"$f":"ROUND((IF('Crop 2'!$C$14=Carbon!$B68,'Crop 2'!$L$14*VLOOKUP('Crop 2'!$E$14,Carbon!$AH$4:$AI$10,2,FALSE),0)+IF('Crop 2'!$C$15=Carbon!$B68,'Crop 2'!$L$15*VLOOKUP('Crop 2'!$E$15,Carbon!$AH$4:$AI$10,2,FALSE),0)+IF('Crop 2'!$C$16=Carbon!$B68,'Crop 2'!$L$16*VLOOKUP('Crop 2'!$E$16,Carbon!$AH$4:$AI$10,2,FALSE),0)+IF('Crop 2'!$C$19=Carbon!$B68,'Crop 2'!$L$19*VLOOKUP('Crop 2'!$E$19,Carbon!$AH$4:$AI$10,2,FALSE),0)+IF('Crop 2'!$C$20=Carbon!$B68,'Crop 2'!$L$20*VLOOKUP('Crop 2'!$E$20,Carbon!$AH$4:$AI$10,2,FALSE),0)+IF('Crop 2'!$C$21=Carbon!$B68,'Crop 2'!$L$21*VLOOKUP('Crop 2'!$E$21,Carbon!$AH$4:$AI$10,2,FALSE),0)+IF('Crop 2'!$C$49=Carbon!$B68,'Crop 2'!$L$49*VLOOKUP('Crop 2'!$E$49,Carbon!$AH$4:$AI$10,2,FALSE),0)+IF('Crop 2'!$C$50=Carbon!$B68,'Crop 2'!$L$50*VLOOKUP('Crop 2'!$E$50,Carbon!$AH$4:$AI$10,2,FALSE),0)+IF('Crop 2'!$C$51=Carbon!$B68,'Crop 2'!$L$51*VLOOKUP('Crop 2'!$E$51,Carbon!$AH$4:$AI$10,2,FALSE),0)+IF('Crop 2'!$C$52=Carbon!$B68,'Crop 2'!$L$52*VLOOKUP('Crop 2'!$E$52,Carbon!$AH$4:$AI$10,2,FALSE),0)+IF('Crop 2'!$C$53=Carbon!$B68,'Crop 2'!$L$53*VLOOKUP('Crop 2'!$E$53,Carbon!$AH$4:$AI$10,2,FALSE),0)+IF('Crop 2'!$C$56=Carbon!$B68,'Crop 2'!$L$56*VLOOKUP('Crop 2'!$E$56,Carbon!$AH$4:$AI$10,2,FALSE),0)+IF('Crop 2'!$C$57=Carbon!$B68,'Crop 2'!$L$57*VLOOKUP('Crop 2'!$E$57,Carbon!$AH$4:$AI$10,2,FALSE),0)+IF('Crop 2'!$C$58=Carbon!$B68,'Crop 2'!$L$58*VLOOKUP('Crop 2'!$E$58,Carbon!$AH$4:$AI$10,2,FALSE),0)+IF('Crop 2'!$C$59=Carbon!$B68,'Crop 2'!$L$59*VLOOKUP('Crop 2'!$E$59,Carbon!$AH$4:$AI$10,2,FALSE),0)+IF('Crop 2'!$C$62=Carbon!$B68,'Crop 2'!$L$62*VLOOKUP('Crop 2'!$E$62,Carbon!$AH$4:$AI$10,2,FALSE),0)+IF('Crop 2'!$C$63=Carbon!$B68,'Crop 2'!$L$63*VLOOKUP('Crop 2'!$E$63,Carbon!$AH$4:$AI$10,2,FALSE),0)+IF('Crop 2'!$C$64=Carbon!$B68,'Crop 2'!$L$64*VLOOKUP('Crop 2'!$E$64,Carbon!$AH$4:$AI$10,2,FALSE),0)+IF('Crop 2'!$C$65=Carbon!$B68,'Crop 2'!$L$65*VLOOKUP('Crop 2'!$E$65,Carbon!$AH$4:$AI$10,2,FALSE),0))*$AL$20,2)","v":0},{"$f":"E68*Inputs!$D$15","v":0},{"$f":"ROUND((IF('Crop 3'!$C$14=Carbon!$B68,'Crop 3'!$L$14*VLOOKUP('Crop 3'!$E$14,Carbon!$AH$4:$AI$10,2,FALSE),0)+IF('Crop 3'!$C$15=Carbon!$B68,'Crop 3'!$L$15*VLOOKUP('Crop 3'!$E$15,Carbon!$AH$4:$AI$10,2,FALSE),0)+IF('Crop 3'!$C$16=Carbon!$B68,'Crop 3'!$L$16*VLOOKUP('Crop 3'!$E$16,Carbon!$AH$4:$AI$10,2,FALSE),0)+IF('Crop 3'!$C$19=Carbon!$B68,'Crop 3'!$L$19*VLOOKUP('Crop 3'!$E$19,Carbon!$AH$4:$AI$10,2,FALSE),0)+IF('Crop 3'!$C$20=Carbon!$B68,'Crop 3'!$L$20*VLOOKUP('Crop 3'!$E$20,Carbon!$AH$4:$AI$10,2,FALSE),0)+IF('Crop 3'!$C$21=Carbon!$B68,'Crop 3'!$L$21*VLOOKUP('Crop 3'!$E$21,Carbon!$AH$4:$AI$10,2,FALSE),0)+IF('Crop 3'!$C$49=Carbon!$B68,'Crop 3'!$L$49*VLOOKUP('Crop 3'!$E$49,Carbon!$AH$4:$AI$10,2,FALSE),0)+IF('Crop 3'!$C$50=Carbon!$B68,'Crop 3'!$L$50*VLOOKUP('Crop 3'!$E$50,Carbon!$AH$4:$AI$10,2,FALSE),0)+IF('Crop 3'!$C$51=Carbon!$B68,'Crop 3'!$L$51*VLOOKUP('Crop 3'!$E$51,Carbon!$AH$4:$AI$10,2,FALSE),0)+IF('Crop 3'!$C$52=Carbon!$B68,'Crop 3'!$L$52*VLOOKUP('Crop 3'!$E$52,Carbon!$AH$4:$AI$10,2,FALSE),0)+IF('Crop 3'!$C$53=Carbon!$B68,'Crop 3'!$L$53*VLOOKUP('Crop 3'!$E$53,Carbon!$AH$4:$AI$10,2,FALSE),0)+IF('Crop 3'!$C$56=Carbon!$B68,'Crop 3'!$L$56*VLOOKUP('Crop 3'!$E$56,Carbon!$AH$4:$AI$10,2,FALSE),0)+IF('Crop 3'!$C$57=Carbon!$B68,'Crop 3'!$L$57*VLOOKUP('Crop 3'!$E$57,Carbon!$AH$4:$AI$10,2,FALSE),0)+IF('Crop 3'!$C$58=Carbon!$B68,'Crop 3'!$L$58*VLOOKUP('Crop 3'!$E$58,Carbon!$AH$4:$AI$10,2,FALSE),0)+IF('Crop 3'!$C$59=Carbon!$B68,'Crop 3'!$L$59*VLOOKUP('Crop 3'!$E$59,Carbon!$AH$4:$AI$10,2,FALSE),0)+IF('Crop 3'!$C$62=Carbon!$B68,'Crop 3'!$L$62*VLOOKUP('Crop 3'!$E$62,Carbon!$AH$4:$AI$10,2,FALSE),0)+IF('Crop 3'!$C$63=Carbon!$B68,'Crop 3'!$L$63*VLOOKUP('Crop 3'!$E$63,Carbon!$AH$4:$AI$10,2,FALSE),0)+IF('Crop 3'!$C$64=Carbon!$B68,'Crop 3'!$L$64*VLOOKUP('Crop 3'!$E$64,Carbon!$AH$4:$AI$10,2,FALSE),0)+IF('Crop 3'!$C$65=Carbon!$B68,'Crop 3'!$L$65*VLOOKUP('Crop 3'!$E$65,Carbon!$AH$4:$AI$10,2,FALSE),0))*$AL$20,2)","v":0},{"$f":"G68*Inputs!$D$17","v":0},{"$f":"ROUND(J68/Inputs!D$19,2)","v":0},0,null,null,{"$f":"ROUND((IF('Crop 1'!$C$14=Carbon!$B68,'Crop 1'!$V$14*VLOOKUP('Crop 1'!$E$14,Carbon!$AH$4:$AI$10,2,FALSE),0)+IF('Crop 1'!$C$15=Carbon!$B68,'Crop 1'!$V$15*VLOOKUP('Crop 1'!$E$15,Carbon!$AH$4:$AI$10,2,FALSE),0)+IF('Crop 1'!$C$16=Carbon!$B68,'Crop 1'!$V$16*VLOOKUP('Crop 1'!$E$16,Carbon!$AH$4:$AI$10,2,FALSE),0)+IF('Crop 1'!$C$19=Carbon!$B68,'Crop 1'!$V$19*VLOOKUP('Crop 1'!$E$19,Carbon!$AH$4:$AI$10,2,FALSE),0)+IF('Crop 1'!$C$20=Carbon!$B68,'Crop 1'!$V$20*VLOOKUP('Crop 1'!$E$20,Carbon!$AH$4:$AI$10,2,FALSE),0)+IF('Crop 1'!$C$21=Carbon!$B68,'Crop 1'!$V$21*VLOOKUP('Crop 1'!$E$21,Carbon!$AH$4:$AI$10,2,FALSE),0)+IF('Crop 1'!$C$49=Carbon!$B68,'Crop 1'!$V$49*VLOOKUP('Crop 1'!$E$49,Carbon!$AH$4:$AI$10,2,FALSE),0)+IF('Crop 1'!$C$50=Carbon!$B68,'Crop 1'!$V$50*VLOOKUP('Crop 1'!$E$50,Carbon!$AH$4:$AI$10,2,FALSE),0)+IF('Crop 1'!$C$51=Carbon!$B68,'Crop 1'!$V$51*VLOOKUP('Crop 1'!$E$51,Carbon!$AH$4:$AI$10,2,FALSE),0)+IF('Crop 1'!$C$52=Carbon!$B68,'Crop 1'!$V$52*VLOOKUP('Crop 1'!$E$52,Carbon!$AH$4:$AI$10,2,FALSE),0)+IF('Crop 1'!$C$53=Carbon!$B68,'Crop 1'!$V$53*VLOOKUP('Crop 1'!$E$53,Carbon!$AH$4:$AI$10,2,FALSE),0)+IF('Crop 1'!$C$56=Carbon!$B68,'Crop 1'!$V$56*VLOOKUP('Crop 1'!$E$56,Carbon!$AH$4:$AI$10,2,FALSE),0)+IF('Crop 1'!$C$57=Carbon!$B68,'Crop 1'!$V$57*VLOOKUP('Crop 1'!$E$57,Carbon!$AH$4:$AI$10,2,FALSE),0)+IF('Crop 1'!$C$58=Carbon!$B68,'Crop 1'!$V$58*VLOOKUP('Crop 1'!$E$58,Carbon!$AH$4:$AI$10,2,FALSE),0)+IF('Crop 1'!$C$59=Carbon!$B68,'Crop 1'!$V$59*VLOOKUP('Crop 1'!$E$59,Carbon!$AH$4:$AI$10,2,FALSE),0)+IF('Crop 1'!$C$62=Carbon!$B68,'Crop 1'!$V$62*VLOOKUP('Crop 1'!$E$62,Carbon!$AH$4:$AI$10,2,FALSE),0)+IF('Crop 1'!$C$63=Carbon!$B68,'Crop 1'!$V$63*VLOOKUP('Crop 1'!$E$63,Carbon!$AH$4:$AI$10,2,FALSE),0)+IF('Crop 1'!$C$64=Carbon!$B68,'Crop 1'!$V$64*VLOOKUP('Crop 1'!$E$64,Carbon!$AH$4:$AI$10,2,FALSE),0)+IF('Crop 1'!$C$65=Carbon!$B68,'Crop 1'!$V$65*VLOOKUP('Crop 1'!$E$65,Carbon!$AH$4:$AI$10,2,FALSE),0))*$AL$20,2)","v":0},{"$f":"M68*Inputs!$D$13","v":0},{"$f":"ROUND((IF('Crop 2'!$C$14=Carbon!$B68,'Crop 2'!$V$14*VLOOKUP('Crop 2'!$E$14,Carbon!$AH$4:$AI$10,2,FALSE),0)+IF('Crop 2'!$C$15=Carbon!$B68,'Crop 2'!$V$15*VLOOKUP('Crop 2'!$E$15,Carbon!$AH$4:$AI$10,2,FALSE),0)+IF('Crop 2'!$C$16=Carbon!$B68,'Crop 2'!$V$16*VLOOKUP('Crop 2'!$E$16,Carbon!$AH$4:$AI$10,2,FALSE),0)+IF('Crop 2'!$C$19=Carbon!$B68,'Crop 2'!$V$19*VLOOKUP('Crop 2'!$E$19,Carbon!$AH$4:$AI$10,2,FALSE),0)+IF('Crop 2'!$C$20=Carbon!$B68,'Crop 2'!$V$20*VLOOKUP('Crop 2'!$E$20,Carbon!$AH$4:$AI$10,2,FALSE),0)+IF('Crop 2'!$C$21=Carbon!$B68,'Crop 2'!$V$21*VLOOKUP('Crop 2'!$E$21,Carbon!$AH$4:$AI$10,2,FALSE),0)+IF('Crop 2'!$C$49=Carbon!$B68,'Crop 2'!$V$49*VLOOKUP('Crop 2'!$E$49,Carbon!$AH$4:$AI$10,2,FALSE),0)+IF('Crop 2'!$C$50=Carbon!$B68,'Crop 2'!$V$50*VLOOKUP('Crop 2'!$E$50,Carbon!$AH$4:$AI$10,2,FALSE),0)+IF('Crop 2'!$C$51=Carbon!$B68,'Crop 2'!$V$51*VLOOKUP('Crop 2'!$E$51,Carbon!$AH$4:$AI$10,2,FALSE),0)+IF('Crop 2'!$C$52=Carbon!$B68,'Crop 2'!$V$52*VLOOKUP('Crop 2'!$E$52,Carbon!$AH$4:$AI$10,2,FALSE),0)+IF('Crop 2'!$C$53=Carbon!$B68,'Crop 2'!$V$53*VLOOKUP('Crop 2'!$E$53,Carbon!$AH$4:$AI$10,2,FALSE),0)+IF('Crop 2'!$C$56=Carbon!$B68,'Crop 2'!$V$56*VLOOKUP('Crop 2'!$E$56,Carbon!$AH$4:$AI$10,2,FALSE),0)+IF('Crop 2'!$C$57=Carbon!$B68,'Crop 2'!$V$57*VLOOKUP('Crop 2'!$E$57,Carbon!$AH$4:$AI$10,2,FALSE),0)+IF('Crop 2'!$C$58=Carbon!$B68,'Crop 2'!$V$58*VLOOKUP('Crop 2'!$E$58,Carbon!$AH$4:$AI$10,2,FALSE),0)+IF('Crop 2'!$C$59=Carbon!$B68,'Crop 2'!$V$59*VLOOKUP('Crop 2'!$E$59,Carbon!$AH$4:$AI$10,2,FALSE),0)+IF('Crop 2'!$C$62=Carbon!$B68,'Crop 2'!$V$62*VLOOKUP('Crop 2'!$E$62,Carbon!$AH$4:$AI$10,2,FALSE),0)+IF('Crop 2'!$C$63=Carbon!$B68,'Crop 2'!$V$63*VLOOKUP('Crop 2'!$E$63,Carbon!$AH$4:$AI$10,2,FALSE),0)+IF('Crop 2'!$C$64=Carbon!$B68,'Crop 2'!$V$64*VLOOKUP('Crop 2'!$E$64,Carbon!$AH$4:$AI$10,2,FALSE),0)+IF('Crop 2'!$C$65=Carbon!$B68,'Crop 2'!$V$65*VLOOKUP('Crop 2'!$E$65,Carbon!$AH$4:$AI$10,2,FALSE),0))*$AL$20,2)","v":0},{"$f":"O68*Inputs!$D$15","v":0},{"$f":"ROUND((IF('Crop 3'!$C$14=Carbon!$B68,'Crop 3'!$V$14*VLOOKUP('Crop 3'!$E$14,Carbon!$AH$4:$AI$10,2,FALSE),0)+IF('Crop 3'!$C$15=Carbon!$B68,'Crop 3'!$V$15*VLOOKUP('Crop 3'!$E$15,Carbon!$AH$4:$AI$10,2,FALSE),0)+IF('Crop 3'!$C$16=Carbon!$B68,'Crop 3'!$V$16*VLOOKUP('Crop 3'!$E$16,Carbon!$AH$4:$AI$10,2,FALSE),0)+IF('Crop 3'!$C$19=Carbon!$B68,'Crop 3'!$V$19*VLOOKUP('Crop 3'!$E$19,Carbon!$AH$4:$AI$10,2,FALSE),0)+IF('Crop 3'!$C$20=Carbon!$B68,'Crop 3'!$V$20*VLOOKUP('Crop 3'!$E$20,Carbon!$AH$4:$AI$10,2,FALSE),0)+IF('Crop 3'!$C$21=Carbon!$B68,'Crop 3'!$V$21*VLOOKUP('Crop 3'!$E$21,Carbon!$AH$4:$AI$10,2,FALSE),0)+IF('Crop 3'!$C$49=Carbon!$B68,'Crop 3'!$V$49*VLOOKUP('Crop 3'!$E$49,Carbon!$AH$4:$AI$10,2,FALSE),0)+IF('Crop 3'!$C$50=Carbon!$B68,'Crop 3'!$V$50*VLOOKUP('Crop 3'!$E$50,Carbon!$AH$4:$AI$10,2,FALSE),0)+IF('Crop 3'!$C$51=Carbon!$B68,'Crop 3'!$V$51*VLOOKUP('Crop 3'!$E$51,Carbon!$AH$4:$AI$10,2,FALSE),0)+IF('Crop 3'!$C$52=Carbon!$B68,'Crop 3'!$V$52*VLOOKUP('Crop 3'!$E$52,Carbon!$AH$4:$AI$10,2,FALSE),0)+IF('Crop 3'!$C$53=Carbon!$B68,'Crop 3'!$V$53*VLOOKUP('Crop 3'!$E$53,Carbon!$AH$4:$AI$10,2,FALSE),0)+IF('Crop 3'!$C$56=Carbon!$B68,'Crop 3'!$V$56*VLOOKUP('Crop 3'!$E$56,Carbon!$AH$4:$AI$10,2,FALSE),0)+IF('Crop 3'!$C$57=Carbon!$B68,'Crop 3'!$V$57*VLOOKUP('Crop 3'!$E$57,Carbon!$AH$4:$AI$10,2,FALSE),0)+IF('Crop 3'!$C$58=Carbon!$B68,'Crop 3'!$V$58*VLOOKUP('Crop 3'!$E$58,Carbon!$AH$4:$AI$10,2,FALSE),0)+IF('Crop 3'!$C$59=Carbon!$B68,'Crop 3'!$V$59*VLOOKUP('Crop 3'!$E$59,Carbon!$AH$4:$AI$10,2,FALSE),0)+IF('Crop 3'!$C$62=Carbon!$B68,'Crop 3'!$V$62*VLOOKUP('Crop 3'!$E$62,Carbon!$AH$4:$AI$10,2,FALSE),0)+IF('Crop 3'!$C$63=Carbon!$B68,'Crop 3'!$V$63*VLOOKUP('Crop 3'!$E$63,Carbon!$AH$4:$AI$10,2,FALSE),0)+IF('Crop 3'!$C$64=Carbon!$B68,'Crop 3'!$V$64*VLOOKUP('Crop 3'!$E$64,Carbon!$AH$4:$AI$10,2,FALSE),0)+IF('Crop 3'!$C$65=Carbon!$B68,'Crop 3'!$V$65*VLOOKUP('Crop 3'!$E$65,Carbon!$AH$4:$AI$10,2,FALSE),0))*$AL$20,2)","v":0},{"$f":"Q68*Inputs!$D$17","v":0},{"$f":"ROUND(T68/Inputs!D$19,2)","v":0},0,null,null,0,{"$f":"W68*Inputs!$D$13","v":0},0,{"$f":"Y68*Inputs!$D$13","v":0},0,{"$f":"AA68*Inputs!$D$13","v":0},{"$f":"ROUND(AD68/Inputs!D$19,2)","v":0},0]
[null,{"$f":"Defaults!AH35","v":"Cimarron Plus"},{"$f":"ROUND((IF('Crop 1'!$C$14=Carbon!$B69,'Crop 1'!$L$14*VLOOKUP('Crop 1'!$E$14,Carbon!$AH$4:$AI$10,2,FALSE),0)+IF('Crop 1'!$C$15=Carbon!$B69,'Crop 1'!$L$15*VLOOKUP('Crop 1'!$E$15,Carbon!$AH$4:$AI$10,2,FALSE),0)+IF('Crop 1'!$C$16=Carbon!$B69,'Crop 1'!$L$16*VLOOKUP('Crop 1'!$E$16,Carbon!$AH$4:$AI$10,2,FALSE),0)+IF('Crop 1'!$C$19=Carbon!$B69,'Crop 1'!$L$19*VLOOKUP('Crop 1'!$E$19,Carbon!$AH$4:$AI$10,2,FALSE),0)+IF('Crop 1'!$C$20=Carbon!$B69,'Crop 1'!$L$20*VLOOKUP('Crop 1'!$E$20,Carbon!$AH$4:$AI$10,2,FALSE),0)+IF('Crop 1'!$C$21=Carbon!$B69,'Crop 1'!$L$21*VLOOKUP('Crop 1'!$E$21,Carbon!$AH$4:$AI$10,2,FALSE),0)+IF('Crop 1'!$C$49=Carbon!$B69,'Crop 1'!$L$49*VLOOKUP('Crop 1'!$E$49,Carbon!$AH$4:$AI$10,2,FALSE),0)+IF('Crop 1'!$C$50=Carbon!$B69,'Crop 1'!$L$50*VLOOKUP('Crop 1'!$E$50,Carbon!$AH$4:$AI$10,2,FALSE),0)+IF('Crop 1'!$C$51=Carbon!$B69,'Crop 1'!$L$51*VLOOKUP('Crop 1'!$E$51,Carbon!$AH$4:$AI$10,2,FALSE),0)+IF('Crop 1'!$C$52=Carbon!$B69,'Crop 1'!$L$52*VLOOKUP('Crop 1'!$E$52,Carbon!$AH$4:$AI$10,2,FALSE),0)+IF('Crop 1'!$C$53=Carbon!$B69,'Crop 1'!$L$53*VLOOKUP('Crop 1'!$E$53,Carbon!$AH$4:$AI$10,2,FALSE),0)+IF('Crop 1'!$C$56=Carbon!$B69,'Crop 1'!$L$56*VLOOKUP('Crop 1'!$E$56,Carbon!$AH$4:$AI$10,2,FALSE),0)+IF('Crop 1'!$C$57=Carbon!$B69,'Crop 1'!$L$57*VLOOKUP('Crop 1'!$E$57,Carbon!$AH$4:$AI$10,2,FALSE),0)+IF('Crop 1'!$C$58=Carbon!$B69,'Crop 1'!$L$58*VLOOKUP('Crop 1'!$E$58,Carbon!$AH$4:$AI$10,2,FALSE),0)+IF('Crop 1'!$C$59=Carbon!$B69,'Crop 1'!$L$59*VLOOKUP('Crop 1'!$E$59,Carbon!$AH$4:$AI$10,2,FALSE),0)+IF('Crop 1'!$C$62=Carbon!$B69,'Crop 1'!$L$62*VLOOKUP('Crop 1'!$E$62,Carbon!$AH$4:$AI$10,2,FALSE),0)+IF('Crop 1'!$C$63=Carbon!$B69,'Crop 1'!$L$63*VLOOKUP('Crop 1'!$E$63,Carbon!$AH$4:$AI$10,2,FALSE),0)+IF('Crop 1'!$C$64=Carbon!$B69,'Crop 1'!$L$64*VLOOKUP('Crop 1'!$E$64,Carbon!$AH$4:$AI$10,2,FALSE),0)+IF('Crop 1'!$C$65=Carbon!$B69,'Crop 1'!$L$65*VLOOKUP('Crop 1'!$E$65,Carbon!$AH$4:$AI$10,2,FALSE),0))*$AL$20,2)","v":0},{"$f":"C69*Inputs!$D$13","v":0},{"$f":"ROUND((IF('Crop 2'!$C$14=Carbon!$B69,'Crop 2'!$L$14*VLOOKUP('Crop 2'!$E$14,Carbon!$AH$4:$AI$10,2,FALSE),0)+IF('Crop 2'!$C$15=Carbon!$B69,'Crop 2'!$L$15*VLOOKUP('Crop 2'!$E$15,Carbon!$AH$4:$AI$10,2,FALSE),0)+IF('Crop 2'!$C$16=Carbon!$B69,'Crop 2'!$L$16*VLOOKUP('Crop 2'!$E$16,Carbon!$AH$4:$AI$10,2,FALSE),0)+IF('Crop 2'!$C$19=Carbon!$B69,'Crop 2'!$L$19*VLOOKUP('Crop 2'!$E$19,Carbon!$AH$4:$AI$10,2,FALSE),0)+IF('Crop 2'!$C$20=Carbon!$B69,'Crop 2'!$L$20*VLOOKUP('Crop 2'!$E$20,Carbon!$AH$4:$AI$10,2,FALSE),0)+IF('Crop 2'!$C$21=Carbon!$B69,'Crop 2'!$L$21*VLOOKUP('Crop 2'!$E$21,Carbon!$AH$4:$AI$10,2,FALSE),0)+IF('Crop 2'!$C$49=Carbon!$B69,'Crop 2'!$L$49*VLOOKUP('Crop 2'!$E$49,Carbon!$AH$4:$AI$10,2,FALSE),0)+IF('Crop 2'!$C$50=Carbon!$B69,'Crop 2'!$L$50*VLOOKUP('Crop 2'!$E$50,Carbon!$AH$4:$AI$10,2,FALSE),0)+IF('Crop 2'!$C$51=Carbon!$B69,'Crop 2'!$L$51*VLOOKUP('Crop 2'!$E$51,Carbon!$AH$4:$AI$10,2,FALSE),0)+IF('Crop 2'!$C$52=Carbon!$B69,'Crop 2'!$L$52*VLOOKUP('Crop 2'!$E$52,Carbon!$AH$4:$AI$10,2,FALSE),0)+IF('Crop 2'!$C$53=Carbon!$B69,'Crop 2'!$L$53*VLOOKUP('Crop 2'!$E$53,Carbon!$AH$4:$AI$10,2,FALSE),0)+IF('Crop 2'!$C$56=Carbon!$B69,'Crop 2'!$L$56*VLOOKUP('Crop 2'!$E$56,Carbon!$AH$4:$AI$10,2,FALSE),0)+IF('Crop 2'!$C$57=Carbon!$B69,'Crop 2'!$L$57*VLOOKUP('Crop 2'!$E$57,Carbon!$AH$4:$AI$10,2,FALSE),0)+IF('Crop 2'!$C$58=Carbon!$B69,'Crop 2'!$L$58*VLOOKUP('Crop 2'!$E$58,Carbon!$AH$4:$AI$10,2,FALSE),0)+IF('Crop 2'!$C$59=Carbon!$B69,'Crop 2'!$L$59*VLOOKUP('Crop 2'!$E$59,Carbon!$AH$4:$AI$10,2,FALSE),0)+IF('Crop 2'!$C$62=Carbon!$B69,'Crop 2'!$L$62*VLOOKUP('Crop 2'!$E$62,Carbon!$AH$4:$AI$10,2,FALSE),0)+IF('Crop 2'!$C$63=Carbon!$B69,'Crop 2'!$L$63*VLOOKUP('Crop 2'!$E$63,Carbon!$AH$4:$AI$10,2,FALSE),0)+IF('Crop 2'!$C$64=Carbon!$B69,'Crop 2'!$L$64*VLOOKUP('Crop 2'!$E$64,Carbon!$AH$4:$AI$10,2,FALSE),0)+IF('Crop 2'!$C$65=Carbon!$B69,'Crop 2'!$L$65*VLOOKUP('Crop 2'!$E$65,Carbon!$AH$4:$AI$10,2,FALSE),0))*$AL$20,2)","v":0},{"$f":"E69*Inputs!$D$15","v":0},{"$f":"ROUND((IF('Crop 3'!$C$14=Carbon!$B69,'Crop 3'!$L$14*VLOOKUP('Crop 3'!$E$14,Carbon!$AH$4:$AI$10,2,FALSE),0)+IF('Crop 3'!$C$15=Carbon!$B69,'Crop 3'!$L$15*VLOOKUP('Crop 3'!$E$15,Carbon!$AH$4:$AI$10,2,FALSE),0)+IF('Crop 3'!$C$16=Carbon!$B69,'Crop 3'!$L$16*VLOOKUP('Crop 3'!$E$16,Carbon!$AH$4:$AI$10,2,FALSE),0)+IF('Crop 3'!$C$19=Carbon!$B69,'Crop 3'!$L$19*VLOOKUP('Crop 3'!$E$19,Carbon!$AH$4:$AI$10,2,FALSE),0)+IF('Crop 3'!$C$20=Carbon!$B69,'Crop 3'!$L$20*VLOOKUP('Crop 3'!$E$20,Carbon!$AH$4:$AI$10,2,FALSE),0)+IF('Crop 3'!$C$21=Carbon!$B69,'Crop 3'!$L$21*VLOOKUP('Crop 3'!$E$21,Carbon!$AH$4:$AI$10,2,FALSE),0)+IF('Crop 3'!$C$49=Carbon!$B69,'Crop 3'!$L$49*VLOOKUP('Crop 3'!$E$49,Carbon!$AH$4:$AI$10,2,FALSE),0)+IF('Crop 3'!$C$50=Carbon!$B69,'Crop 3'!$L$50*VLOOKUP('Crop 3'!$E$50,Carbon!$AH$4:$AI$10,2,FALSE),0)+IF('Crop 3'!$C$51=Carbon!$B69,'Crop 3'!$L$51*VLOOKUP('Crop 3'!$E$51,Carbon!$AH$4:$AI$10,2,FALSE),0)+IF('Crop 3'!$C$52=Carbon!$B69,'Crop 3'!$L$52*VLOOKUP('Crop 3'!$E$52,Carbon!$AH$4:$AI$10,2,FALSE),0)+IF('Crop 3'!$C$53=Carbon!$B69,'Crop 3'!$L$53*VLOOKUP('Crop 3'!$E$53,Carbon!$AH$4:$AI$10,2,FALSE),0)+IF('Crop 3'!$C$56=Carbon!$B69,'Crop 3'!$L$56*VLOOKUP('Crop 3'!$E$56,Carbon!$AH$4:$AI$10,2,FALSE),0)+IF('Crop 3'!$C$57=Carbon!$B69,'Crop 3'!$L$57*VLOOKUP('Crop 3'!$E$57,Carbon!$AH$4:$AI$10,2,FALSE),0)+IF('Crop 3'!$C$58=Carbon!$B69,'Crop 3'!$L$58*VLOOKUP('Crop 3'!$E$58,Carbon!$AH$4:$AI$10,2,FALSE),0)+IF('Crop 3'!$C$59=Carbon!$B69,'Crop 3'!$L$59*VLOOKUP('Crop 3'!$E$59,Carbon!$AH$4:$AI$10,2,FALSE),0)+IF('Crop 3'!$C$62=Carbon!$B69,'Crop 3'!$L$62*VLOOKUP('Crop 3'!$E$62,Carbon!$AH$4:$AI$10,2,FALSE),0)+IF('Crop 3'!$C$63=Carbon!$B69,'Crop 3'!$L$63*VLOOKUP('Crop 3'!$E$63,Carbon!$AH$4:$AI$10,2,FALSE),0)+IF('Crop 3'!$C$64=Carbon!$B69,'Crop 3'!$L$64*VLOOKUP('Crop 3'!$E$64,Carbon!$AH$4:$AI$10,2,FALSE),0)+IF('Crop 3'!$C$65=Carbon!$B69,'Crop 3'!$L$65*VLOOKUP('Crop 3'!$E$65,Carbon!$AH$4:$AI$10,2,FALSE),0))*$AL$20,2)","v":0},{"$f":"G69*Inputs!$D$17","v":0},{"$f":"ROUND(J69/Inputs!D$19,2)","v":0},0,null,null,{"$f":"ROUND((IF('Crop 1'!$C$14=Carbon!$B69,'Crop 1'!$V$14*VLOOKUP('Crop 1'!$E$14,Carbon!$AH$4:$AI$10,2,FALSE),0)+IF('Crop 1'!$C$15=Carbon!$B69,'Crop 1'!$V$15*VLOOKUP('Crop 1'!$E$15,Carbon!$AH$4:$AI$10,2,FALSE),0)+IF('Crop 1'!$C$16=Carbon!$B69,'Crop 1'!$V$16*VLOOKUP('Crop 1'!$E$16,Carbon!$AH$4:$AI$10,2,FALSE),0)+IF('Crop 1'!$C$19=Carbon!$B69,'Crop 1'!$V$19*VLOOKUP('Crop 1'!$E$19,Carbon!$AH$4:$AI$10,2,FALSE),0)+IF('Crop 1'!$C$20=Carbon!$B69,'Crop 1'!$V$20*VLOOKUP('Crop 1'!$E$20,Carbon!$AH$4:$AI$10,2,FALSE),0)+IF('Crop 1'!$C$21=Carbon!$B69,'Crop 1'!$V$21*VLOOKUP('Crop 1'!$E$21,Carbon!$AH$4:$AI$10,2,FALSE),0)+IF('Crop 1'!$C$49=Carbon!$B69,'Crop 1'!$V$49*VLOOKUP('Crop 1'!$E$49,Carbon!$AH$4:$AI$10,2,FALSE),0)+IF('Crop 1'!$C$50=Carbon!$B69,'Crop 1'!$V$50*VLOOKUP('Crop 1'!$E$50,Carbon!$AH$4:$AI$10,2,FALSE),0)+IF('Crop 1'!$C$51=Carbon!$B69,'Crop 1'!$V$51*VLOOKUP('Crop 1'!$E$51,Carbon!$AH$4:$AI$10,2,FALSE),0)+IF('Crop 1'!$C$52=Carbon!$B69,'Crop 1'!$V$52*VLOOKUP('Crop 1'!$E$52,Carbon!$AH$4:$AI$10,2,FALSE),0)+IF('Crop 1'!$C$53=Carbon!$B69,'Crop 1'!$V$53*VLOOKUP('Crop 1'!$E$53,Carbon!$AH$4:$AI$10,2,FALSE),0)+IF('Crop 1'!$C$56=Carbon!$B69,'Crop 1'!$V$56*VLOOKUP('Crop 1'!$E$56,Carbon!$AH$4:$AI$10,2,FALSE),0)+IF('Crop 1'!$C$57=Carbon!$B69,'Crop 1'!$V$57*VLOOKUP('Crop 1'!$E$57,Carbon!$AH$4:$AI$10,2,FALSE),0)+IF('Crop 1'!$C$58=Carbon!$B69,'Crop 1'!$V$58*VLOOKUP('Crop 1'!$E$58,Carbon!$AH$4:$AI$10,2,FALSE),0)+IF('Crop 1'!$C$59=Carbon!$B69,'Crop 1'!$V$59*VLOOKUP('Crop 1'!$E$59,Carbon!$AH$4:$AI$10,2,FALSE),0)+IF('Crop 1'!$C$62=Carbon!$B69,'Crop 1'!$V$62*VLOOKUP('Crop 1'!$E$62,Carbon!$AH$4:$AI$10,2,FALSE),0)+IF('Crop 1'!$C$63=Carbon!$B69,'Crop 1'!$V$63*VLOOKUP('Crop 1'!$E$63,Carbon!$AH$4:$AI$10,2,FALSE),0)+IF('Crop 1'!$C$64=Carbon!$B69,'Crop 1'!$V$64*VLOOKUP('Crop 1'!$E$64,Carbon!$AH$4:$AI$10,2,FALSE),0)+IF('Crop 1'!$C$65=Carbon!$B69,'Crop 1'!$V$65*VLOOKUP('Crop 1'!$E$65,Carbon!$AH$4:$AI$10,2,FALSE),0))*$AL$20,2)","v":0},{"$f":"M69*Inputs!$D$13","v":0},{"$f":"ROUND((IF('Crop 2'!$C$14=Carbon!$B69,'Crop 2'!$V$14*VLOOKUP('Crop 2'!$E$14,Carbon!$AH$4:$AI$10,2,FALSE),0)+IF('Crop 2'!$C$15=Carbon!$B69,'Crop 2'!$V$15*VLOOKUP('Crop 2'!$E$15,Carbon!$AH$4:$AI$10,2,FALSE),0)+IF('Crop 2'!$C$16=Carbon!$B69,'Crop 2'!$V$16*VLOOKUP('Crop 2'!$E$16,Carbon!$AH$4:$AI$10,2,FALSE),0)+IF('Crop 2'!$C$19=Carbon!$B69,'Crop 2'!$V$19*VLOOKUP('Crop 2'!$E$19,Carbon!$AH$4:$AI$10,2,FALSE),0)+IF('Crop 2'!$C$20=Carbon!$B69,'Crop 2'!$V$20*VLOOKUP('Crop 2'!$E$20,Carbon!$AH$4:$AI$10,2,FALSE),0)+IF('Crop 2'!$C$21=Carbon!$B69,'Crop 2'!$V$21*VLOOKUP('Crop 2'!$E$21,Carbon!$AH$4:$AI$10,2,FALSE),0)+IF('Crop 2'!$C$49=Carbon!$B69,'Crop 2'!$V$49*VLOOKUP('Crop 2'!$E$49,Carbon!$AH$4:$AI$10,2,FALSE),0)+IF('Crop 2'!$C$50=Carbon!$B69,'Crop 2'!$V$50*VLOOKUP('Crop 2'!$E$50,Carbon!$AH$4:$AI$10,2,FALSE),0)+IF('Crop 2'!$C$51=Carbon!$B69,'Crop 2'!$V$51*VLOOKUP('Crop 2'!$E$51,Carbon!$AH$4:$AI$10,2,FALSE),0)+IF('Crop 2'!$C$52=Carbon!$B69,'Crop 2'!$V$52*VLOOKUP('Crop 2'!$E$52,Carbon!$AH$4:$AI$10,2,FALSE),0)+IF('Crop 2'!$C$53=Carbon!$B69,'Crop 2'!$V$53*VLOOKUP('Crop 2'!$E$53,Carbon!$AH$4:$AI$10,2,FALSE),0)+IF('Crop 2'!$C$56=Carbon!$B69,'Crop 2'!$V$56*VLOOKUP('Crop 2'!$E$56,Carbon!$AH$4:$AI$10,2,FALSE),0)+IF('Crop 2'!$C$57=Carbon!$B69,'Crop 2'!$V$57*VLOOKUP('Crop 2'!$E$57,Carbon!$AH$4:$AI$10,2,FALSE),0)+IF('Crop 2'!$C$58=Carbon!$B69,'Crop 2'!$V$58*VLOOKUP('Crop 2'!$E$58,Carbon!$AH$4:$AI$10,2,FALSE),0)+IF('Crop 2'!$C$59=Carbon!$B69,'Crop 2'!$V$59*VLOOKUP('Crop 2'!$E$59,Carbon!$AH$4:$AI$10,2,FALSE),0)+IF('Crop 2'!$C$62=Carbon!$B69,'Crop 2'!$V$62*VLOOKUP('Crop 2'!$E$62,Carbon!$AH$4:$AI$10,2,FALSE),0)+IF('Crop 2'!$C$63=Carbon!$B69,'Crop 2'!$V$63*VLOOKUP('Crop 2'!$E$63,Carbon!$AH$4:$AI$10,2,FALSE),0)+IF('Crop 2'!$C$64=Carbon!$B69,'Crop 2'!$V$64*VLOOKUP('Crop 2'!$E$64,Carbon!$AH$4:$AI$10,2,FALSE),0)+IF('Crop 2'!$C$65=Carbon!$B69,'Crop 2'!$V$65*VLOOKUP('Crop 2'!$E$65,Carbon!$AH$4:$AI$10,2,FALSE),0))*$AL$20,2)","v":0},{"$f":"O69*Inputs!$D$15","v":0},{"$f":"ROUND((IF('Crop 3'!$C$14=Carbon!$B69,'Crop 3'!$V$14*VLOOKUP('Crop 3'!$E$14,Carbon!$AH$4:$AI$10,2,FALSE),0)+IF('Crop 3'!$C$15=Carbon!$B69,'Crop 3'!$V$15*VLOOKUP('Crop 3'!$E$15,Carbon!$AH$4:$AI$10,2,FALSE),0)+IF('Crop 3'!$C$16=Carbon!$B69,'Crop 3'!$V$16*VLOOKUP('Crop 3'!$E$16,Carbon!$AH$4:$AI$10,2,FALSE),0)+IF('Crop 3'!$C$19=Carbon!$B69,'Crop 3'!$V$19*VLOOKUP('Crop 3'!$E$19,Carbon!$AH$4:$AI$10,2,FALSE),0)+IF('Crop 3'!$C$20=Carbon!$B69,'Crop 3'!$V$20*VLOOKUP('Crop 3'!$E$20,Carbon!$AH$4:$AI$10,2,FALSE),0)+IF('Crop 3'!$C$21=Carbon!$B69,'Crop 3'!$V$21*VLOOKUP('Crop 3'!$E$21,Carbon!$AH$4:$AI$10,2,FALSE),0)+IF('Crop 3'!$C$49=Carbon!$B69,'Crop 3'!$V$49*VLOOKUP('Crop 3'!$E$49,Carbon!$AH$4:$AI$10,2,FALSE),0)+IF('Crop 3'!$C$50=Carbon!$B69,'Crop 3'!$V$50*VLOOKUP('Crop 3'!$E$50,Carbon!$AH$4:$AI$10,2,FALSE),0)+IF('Crop 3'!$C$51=Carbon!$B69,'Crop 3'!$V$51*VLOOKUP('Crop 3'!$E$51,Carbon!$AH$4:$AI$10,2,FALSE),0)+IF('Crop 3'!$C$52=Carbon!$B69,'Crop 3'!$V$52*VLOOKUP('Crop 3'!$E$52,Carbon!$AH$4:$AI$10,2,FALSE),0)+IF('Crop 3'!$C$53=Carbon!$B69,'Crop 3'!$V$53*VLOOKUP('Crop 3'!$E$53,Carbon!$AH$4:$AI$10,2,FALSE),0)+IF('Crop 3'!$C$56=Carbon!$B69,'Crop 3'!$V$56*VLOOKUP('Crop 3'!$E$56,Carbon!$AH$4:$AI$10,2,FALSE),0)+IF('Crop 3'!$C$57=Carbon!$B69,'Crop 3'!$V$57*VLOOKUP('Crop 3'!$E$57,Carbon!$AH$4:$AI$10,2,FALSE),0)+IF('Crop 3'!$C$58=Carbon!$B69,'Crop 3'!$V$58*VLOOKUP('Crop 3'!$E$58,Carbon!$AH$4:$AI$10,2,FALSE),0)+IF('Crop 3'!$C$59=Carbon!$B69,'Crop 3'!$V$59*VLOOKUP('Crop 3'!$E$59,Carbon!$AH$4:$AI$10,2,FALSE),0)+IF('Crop 3'!$C$62=Carbon!$B69,'Crop 3'!$V$62*VLOOKUP('Crop 3'!$E$62,Carbon!$AH$4:$AI$10,2,FALSE),0)+IF('Crop 3'!$C$63=Carbon!$B69,'Crop 3'!$V$63*VLOOKUP('Crop 3'!$E$63,Carbon!$AH$4:$AI$10,2,FALSE),0)+IF('Crop 3'!$C$64=Carbon!$B69,'Crop 3'!$V$64*VLOOKUP('Crop 3'!$E$64,Carbon!$AH$4:$AI$10,2,FALSE),0)+IF('Crop 3'!$C$65=Carbon!$B69,'Crop 3'!$V$65*VLOOKUP('Crop 3'!$E$65,Carbon!$AH$4:$AI$10,2,FALSE),0))*$AL$20,2)","v":0},{"$f":"Q69*Inputs!$D$17","v":0},{"$f":"ROUND(T69/Inputs!D$19,2)","v":0},0,null,null,0,{"$f":"W69*Inputs!$D$13","v":0},0,{"$f":"Y69*Inputs!$D$13","v":0},0,{"$f":"AA69*Inputs!$D$13","v":0},{"$f":"ROUND(AD69/Inputs!D$19,2)","v":0},0]
[null,{"$f":"Defaults!AH36","v":"Clarity"},{"$f":"ROUND((IF('Crop 1'!$C$14=Carbon!$B70,'Crop 1'!$L$14*VLOOKUP('Crop 1'!$E$14,Carbon!$AH$4:$AI$10,2,FALSE),0)+IF('Crop 1'!$C$15=Carbon!$B70,'Crop 1'!$L$15*VLOOKUP('Crop 1'!$E$15,Carbon!$AH$4:$AI$10,2,FALSE),0)+IF('Crop 1'!$C$16=Carbon!$B70,'Crop 1'!$L$16*VLOOKUP('Crop 1'!$E$16,Carbon!$AH$4:$AI$10,2,FALSE),0)+IF('Crop 1'!$C$19=Carbon!$B70,'Crop 1'!$L$19*VLOOKUP('Crop 1'!$E$19,Carbon!$AH$4:$AI$10,2,FALSE),0)+IF('Crop 1'!$C$20=Carbon!$B70,'Crop 1'!$L$20*VLOOKUP('Crop 1'!$E$20,Carbon!$AH$4:$AI$10,2,FALSE),0)+IF('Crop 1'!$C$21=Carbon!$B70,'Crop 1'!$L$21*VLOOKUP('Crop 1'!$E$21,Carbon!$AH$4:$AI$10,2,FALSE),0)+IF('Crop 1'!$C$49=Carbon!$B70,'Crop 1'!$L$49*VLOOKUP('Crop 1'!$E$49,Carbon!$AH$4:$AI$10,2,FALSE),0)+IF('Crop 1'!$C$50=Carbon!$B70,'Crop 1'!$L$50*VLOOKUP('Crop 1'!$E$50,Carbon!$AH$4:$AI$10,2,FALSE),0)+IF('Crop 1'!$C$51=Carbon!$B70,'Crop 1'!$L$51*VLOOKUP('Crop 1'!$E$51,Carbon!$AH$4:$AI$10,2,FALSE),0)+IF('Crop 1'!$C$52=Carbon!$B70,'Crop 1'!$L$52*VLOOKUP('Crop 1'!$E$52,Carbon!$AH$4:$AI$10,2,FALSE),0)+IF('Crop 1'!$C$53=Carbon!$B70,'Crop 1'!$L$53*VLOOKUP('Crop 1'!$E$53,Carbon!$AH$4:$AI$10,2,FALSE),0)+IF('Crop 1'!$C$56=Carbon!$B70,'Crop 1'!$L$56*VLOOKUP('Crop 1'!$E$56,Carbon!$AH$4:$AI$10,2,FALSE),0)+IF('Crop 1'!$C$57=Carbon!$B70,'Crop 1'!$L$57*VLOOKUP('Crop 1'!$E$57,Carbon!$AH$4:$AI$10,2,FALSE),0)+IF('Crop 1'!$C$58=Carbon!$B70,'Crop 1'!$L$58*VLOOKUP('Crop 1'!$E$58,Carbon!$AH$4:$AI$10,2,FALSE),0)+IF('Crop 1'!$C$59=Carbon!$B70,'Crop 1'!$L$59*VLOOKUP('Crop 1'!$E$59,Carbon!$AH$4:$AI$10,2,FALSE),0)+IF('Crop 1'!$C$62=Carbon!$B70,'Crop 1'!$L$62*VLOOKUP('Crop 1'!$E$62,Carbon!$AH$4:$AI$10,2,FALSE),0)+IF('Crop 1'!$C$63=Carbon!$B70,'Crop 1'!$L$63*VLOOKUP('Crop 1'!$E$63,Carbon!$AH$4:$AI$10,2,FALSE),0)+IF('Crop 1'!$C$64=Carbon!$B70,'Crop 1'!$L$64*VLOOKUP('Crop 1'!$E$64,Carbon!$AH$4:$AI$10,2,FALSE),0)+IF('Crop 1'!$C$65=Carbon!$B70,'Crop 1'!$L$65*VLOOKUP('Crop 1'!$E$65,Carbon!$AH$4:$AI$10,2,FALSE),0))*$AL$20,2)","v":0},{"$f":"C70*Inputs!$D$13","v":0},{"$f":"ROUND((IF('Crop 2'!$C$14=Carbon!$B70,'Crop 2'!$L$14*VLOOKUP('Crop 2'!$E$14,Carbon!$AH$4:$AI$10,2,FALSE),0)+IF('Crop 2'!$C$15=Carbon!$B70,'Crop 2'!$L$15*VLOOKUP('Crop 2'!$E$15,Carbon!$AH$4:$AI$10,2,FALSE),0)+IF('Crop 2'!$C$16=Carbon!$B70,'Crop 2'!$L$16*VLOOKUP('Crop 2'!$E$16,Carbon!$AH$4:$AI$10,2,FALSE),0)+IF('Crop 2'!$C$19=Carbon!$B70,'Crop 2'!$L$19*VLOOKUP('Crop 2'!$E$19,Carbon!$AH$4:$AI$10,2,FALSE),0)+IF('Crop 2'!$C$20=Carbon!$B70,'Crop 2'!$L$20*VLOOKUP('Crop 2'!$E$20,Carbon!$AH$4:$AI$10,2,FALSE),0)+IF('Crop 2'!$C$21=Carbon!$B70,'Crop 2'!$L$21*VLOOKUP('Crop 2'!$E$21,Carbon!$AH$4:$AI$10,2,FALSE),0)+IF('Crop 2'!$C$49=Carbon!$B70,'Crop 2'!$L$49*VLOOKUP('Crop 2'!$E$49,Carbon!$AH$4:$AI$10,2,FALSE),0)+IF('Crop 2'!$C$50=Carbon!$B70,'Crop 2'!$L$50*VLOOKUP('Crop 2'!$E$50,Carbon!$AH$4:$AI$10,2,FALSE),0)+IF('Crop 2'!$C$51=Carbon!$B70,'Crop 2'!$L$51*VLOOKUP('Crop 2'!$E$51,Carbon!$AH$4:$AI$10,2,FALSE),0)+IF('Crop 2'!$C$52=Carbon!$B70,'Crop 2'!$L$52*VLOOKUP('Crop 2'!$E$52,Carbon!$AH$4:$AI$10,2,FALSE),0)+IF('Crop 2'!$C$53=Carbon!$B70,'Crop 2'!$L$53*VLOOKUP('Crop 2'!$E$53,Carbon!$AH$4:$AI$10,2,FALSE),0)+IF('Crop 2'!$C$56=Carbon!$B70,'Crop 2'!$L$56*VLOOKUP('Crop 2'!$E$56,Carbon!$AH$4:$AI$10,2,FALSE),0)+IF('Crop 2'!$C$57=Carbon!$B70,'Crop 2'!$L$57*VLOOKUP('Crop 2'!$E$57,Carbon!$AH$4:$AI$10,2,FALSE),0)+IF('Crop 2'!$C$58=Carbon!$B70,'Crop 2'!$L$58*VLOOKUP('Crop 2'!$E$58,Carbon!$AH$4:$AI$10,2,FALSE),0)+IF('Crop 2'!$C$59=Carbon!$B70,'Crop 2'!$L$59*VLOOKUP('Crop 2'!$E$59,Carbon!$AH$4:$AI$10,2,FALSE),0)+IF('Crop 2'!$C$62=Carbon!$B70,'Crop 2'!$L$62*VLOOKUP('Crop 2'!$E$62,Carbon!$AH$4:$AI$10,2,FALSE),0)+IF('Crop 2'!$C$63=Carbon!$B70,'Crop 2'!$L$63*VLOOKUP('Crop 2'!$E$63,Carbon!$AH$4:$AI$10,2,FALSE),0)+IF('Crop 2'!$C$64=Carbon!$B70,'Crop 2'!$L$64*VLOOKUP('Crop 2'!$E$64,Carbon!$AH$4:$AI$10,2,FALSE),0)+IF('Crop 2'!$C$65=Carbon!$B70,'Crop 2'!$L$65*VLOOKUP('Crop 2'!$E$65,Carbon!$AH$4:$AI$10,2,FALSE),0))*$AL$20,2)","v":0},{"$f":"E70*Inputs!$D$15","v":0},{"$f":"ROUND((IF('Crop 3'!$C$14=Carbon!$B70,'Crop 3'!$L$14*VLOOKUP('Crop 3'!$E$14,Carbon!$AH$4:$AI$10,2,FALSE),0)+IF('Crop 3'!$C$15=Carbon!$B70,'Crop 3'!$L$15*VLOOKUP('Crop 3'!$E$15,Carbon!$AH$4:$AI$10,2,FALSE),0)+IF('Crop 3'!$C$16=Carbon!$B70,'Crop 3'!$L$16*VLOOKUP('Crop 3'!$E$16,Carbon!$AH$4:$AI$10,2,FALSE),0)+IF('Crop 3'!$C$19=Carbon!$B70,'Crop 3'!$L$19*VLOOKUP('Crop 3'!$E$19,Carbon!$AH$4:$AI$10,2,FALSE),0)+IF('Crop 3'!$C$20=Carbon!$B70,'Crop 3'!$L$20*VLOOKUP('Crop 3'!$E$20,Carbon!$AH$4:$AI$10,2,FALSE),0)+IF('Crop 3'!$C$21=Carbon!$B70,'Crop 3'!$L$21*VLOOKUP('Crop 3'!$E$21,Carbon!$AH$4:$AI$10,2,FALSE),0)+IF('Crop 3'!$C$49=Carbon!$B70,'Crop 3'!$L$49*VLOOKUP('Crop 3'!$E$49,Carbon!$AH$4:$AI$10,2,FALSE),0)+IF('Crop 3'!$C$50=Carbon!$B70,'Crop 3'!$L$50*VLOOKUP('Crop 3'!$E$50,Carbon!$AH$4:$AI$10,2,FALSE),0)+IF('Crop 3'!$C$51=Carbon!$B70,'Crop 3'!$L$51*VLOOKUP('Crop 3'!$E$51,Carbon!$AH$4:$AI$10,2,FALSE),0)+IF('Crop 3'!$C$52=Carbon!$B70,'Crop 3'!$L$52*VLOOKUP('Crop 3'!$E$52,Carbon!$AH$4:$AI$10,2,FALSE),0)+IF('Crop 3'!$C$53=Carbon!$B70,'Crop 3'!$L$53*VLOOKUP('Crop 3'!$E$53,Carbon!$AH$4:$AI$10,2,FALSE),0)+IF('Crop 3'!$C$56=Carbon!$B70,'Crop 3'!$L$56*VLOOKUP('Crop 3'!$E$56,Carbon!$AH$4:$AI$10,2,FALSE),0)+IF('Crop 3'!$C$57=Carbon!$B70,'Crop 3'!$L$57*VLOOKUP('Crop 3'!$E$57,Carbon!$AH$4:$AI$10,2,FALSE),0)+IF('Crop 3'!$C$58=Carbon!$B70,'Crop 3'!$L$58*VLOOKUP('Crop 3'!$E$58,Carbon!$AH$4:$AI$10,2,FALSE),0)+IF('Crop 3'!$C$59=Carbon!$B70,'Crop 3'!$L$59*VLOOKUP('Crop 3'!$E$59,Carbon!$AH$4:$AI$10,2,FALSE),0)+IF('Crop 3'!$C$62=Carbon!$B70,'Crop 3'!$L$62*VLOOKUP('Crop 3'!$E$62,Carbon!$AH$4:$AI$10,2,FALSE),0)+IF('Crop 3'!$C$63=Carbon!$B70,'Crop 3'!$L$63*VLOOKUP('Crop 3'!$E$63,Carbon!$AH$4:$AI$10,2,FALSE),0)+IF('Crop 3'!$C$64=Carbon!$B70,'Crop 3'!$L$64*VLOOKUP('Crop 3'!$E$64,Carbon!$AH$4:$AI$10,2,FALSE),0)+IF('Crop 3'!$C$65=Carbon!$B70,'Crop 3'!$L$65*VLOOKUP('Crop 3'!$E$65,Carbon!$AH$4:$AI$10,2,FALSE),0))*$AL$20,2)","v":0},{"$f":"G70*Inputs!$D$17","v":0},{"$f":"ROUND(J70/Inputs!D$19,2)","v":0},0,null,null,{"$f":"ROUND((IF('Crop 1'!$C$14=Carbon!$B70,'Crop 1'!$V$14*VLOOKUP('Crop 1'!$E$14,Carbon!$AH$4:$AI$10,2,FALSE),0)+IF('Crop 1'!$C$15=Carbon!$B70,'Crop 1'!$V$15*VLOOKUP('Crop 1'!$E$15,Carbon!$AH$4:$AI$10,2,FALSE),0)+IF('Crop 1'!$C$16=Carbon!$B70,'Crop 1'!$V$16*VLOOKUP('Crop 1'!$E$16,Carbon!$AH$4:$AI$10,2,FALSE),0)+IF('Crop 1'!$C$19=Carbon!$B70,'Crop 1'!$V$19*VLOOKUP('Crop 1'!$E$19,Carbon!$AH$4:$AI$10,2,FALSE),0)+IF('Crop 1'!$C$20=Carbon!$B70,'Crop 1'!$V$20*VLOOKUP('Crop 1'!$E$20,Carbon!$AH$4:$AI$10,2,FALSE),0)+IF('Crop 1'!$C$21=Carbon!$B70,'Crop 1'!$V$21*VLOOKUP('Crop 1'!$E$21,Carbon!$AH$4:$AI$10,2,FALSE),0)+IF('Crop 1'!$C$49=Carbon!$B70,'Crop 1'!$V$49*VLOOKUP('Crop 1'!$E$49,Carbon!$AH$4:$AI$10,2,FALSE),0)+IF('Crop 1'!$C$50=Carbon!$B70,'Crop 1'!$V$50*VLOOKUP('Crop 1'!$E$50,Carbon!$AH$4:$AI$10,2,FALSE),0)+IF('Crop 1'!$C$51=Carbon!$B70,'Crop 1'!$V$51*VLOOKUP('Crop 1'!$E$51,Carbon!$AH$4:$AI$10,2,FALSE),0)+IF('Crop 1'!$C$52=Carbon!$B70,'Crop 1'!$V$52*VLOOKUP('Crop 1'!$E$52,Carbon!$AH$4:$AI$10,2,FALSE),0)+IF('Crop 1'!$C$53=Carbon!$B70,'Crop 1'!$V$53*VLOOKUP('Crop 1'!$E$53,Carbon!$AH$4:$AI$10,2,FALSE),0)+IF('Crop 1'!$C$56=Carbon!$B70,'Crop 1'!$V$56*VLOOKUP('Crop 1'!$E$56,Carbon!$AH$4:$AI$10,2,FALSE),0)+IF('Crop 1'!$C$57=Carbon!$B70,'Crop 1'!$V$57*VLOOKUP('Crop 1'!$E$57,Carbon!$AH$4:$AI$10,2,FALSE),0)+IF('Crop 1'!$C$58=Carbon!$B70,'Crop 1'!$V$58*VLOOKUP('Crop 1'!$E$58,Carbon!$AH$4:$AI$10,2,FALSE),0)+IF('Crop 1'!$C$59=Carbon!$B70,'Crop 1'!$V$59*VLOOKUP('Crop 1'!$E$59,Carbon!$AH$4:$AI$10,2,FALSE),0)+IF('Crop 1'!$C$62=Carbon!$B70,'Crop 1'!$V$62*VLOOKUP('Crop 1'!$E$62,Carbon!$AH$4:$AI$10,2,FALSE),0)+IF('Crop 1'!$C$63=Carbon!$B70,'Crop 1'!$V$63*VLOOKUP('Crop 1'!$E$63,Carbon!$AH$4:$AI$10,2,FALSE),0)+IF('Crop 1'!$C$64=Carbon!$B70,'Crop 1'!$V$64*VLOOKUP('Crop 1'!$E$64,Carbon!$AH$4:$AI$10,2,FALSE),0)+IF('Crop 1'!$C$65=Carbon!$B70,'Crop 1'!$V$65*VLOOKUP('Crop 1'!$E$65,Carbon!$AH$4:$AI$10,2,FALSE),0))*$AL$20,2)","v":0},{"$f":"M70*Inputs!$D$13","v":0},{"$f":"ROUND((IF('Crop 2'!$C$14=Carbon!$B70,'Crop 2'!$V$14*VLOOKUP('Crop 2'!$E$14,Carbon!$AH$4:$AI$10,2,FALSE),0)+IF('Crop 2'!$C$15=Carbon!$B70,'Crop 2'!$V$15*VLOOKUP('Crop 2'!$E$15,Carbon!$AH$4:$AI$10,2,FALSE),0)+IF('Crop 2'!$C$16=Carbon!$B70,'Crop 2'!$V$16*VLOOKUP('Crop 2'!$E$16,Carbon!$AH$4:$AI$10,2,FALSE),0)+IF('Crop 2'!$C$19=Carbon!$B70,'Crop 2'!$V$19*VLOOKUP('Crop 2'!$E$19,Carbon!$AH$4:$AI$10,2,FALSE),0)+IF('Crop 2'!$C$20=Carbon!$B70,'Crop 2'!$V$20*VLOOKUP('Crop 2'!$E$20,Carbon!$AH$4:$AI$10,2,FALSE),0)+IF('Crop 2'!$C$21=Carbon!$B70,'Crop 2'!$V$21*VLOOKUP('Crop 2'!$E$21,Carbon!$AH$4:$AI$10,2,FALSE),0)+IF('Crop 2'!$C$49=Carbon!$B70,'Crop 2'!$V$49*VLOOKUP('Crop 2'!$E$49,Carbon!$AH$4:$AI$10,2,FALSE),0)+IF('Crop 2'!$C$50=Carbon!$B70,'Crop 2'!$V$50*VLOOKUP('Crop 2'!$E$50,Carbon!$AH$4:$AI$10,2,FALSE),0)+IF('Crop 2'!$C$51=Carbon!$B70,'Crop 2'!$V$51*VLOOKUP('Crop 2'!$E$51,Carbon!$AH$4:$AI$10,2,FALSE),0)+IF('Crop 2'!$C$52=Carbon!$B70,'Crop 2'!$V$52*VLOOKUP('Crop 2'!$E$52,Carbon!$AH$4:$AI$10,2,FALSE),0)+IF('Crop 2'!$C$53=Carbon!$B70,'Crop 2'!$V$53*VLOOKUP('Crop 2'!$E$53,Carbon!$AH$4:$AI$10,2,FALSE),0)+IF('Crop 2'!$C$56=Carbon!$B70,'Crop 2'!$V$56*VLOOKUP('Crop 2'!$E$56,Carbon!$AH$4:$AI$10,2,FALSE),0)+IF('Crop 2'!$C$57=Carbon!$B70,'Crop 2'!$V$57*VLOOKUP('Crop 2'!$E$57,Carbon!$AH$4:$AI$10,2,FALSE),0)+IF('Crop 2'!$C$58=Carbon!$B70,'Crop 2'!$V$58*VLOOKUP('Crop 2'!$E$58,Carbon!$AH$4:$AI$10,2,FALSE),0)+IF('Crop 2'!$C$59=Carbon!$B70,'Crop 2'!$V$59*VLOOKUP('Crop 2'!$E$59,Carbon!$AH$4:$AI$10,2,FALSE),0)+IF('Crop 2'!$C$62=Carbon!$B70,'Crop 2'!$V$62*VLOOKUP('Crop 2'!$E$62,Carbon!$AH$4:$AI$10,2,FALSE),0)+IF('Crop 2'!$C$63=Carbon!$B70,'Crop 2'!$V$63*VLOOKUP('Crop 2'!$E$63,Carbon!$AH$4:$AI$10,2,FALSE),0)+IF('Crop 2'!$C$64=Carbon!$B70,'Crop 2'!$V$64*VLOOKUP('Crop 2'!$E$64,Carbon!$AH$4:$AI$10,2,FALSE),0)+IF('Crop 2'!$C$65=Carbon!$B70,'Crop 2'!$V$65*VLOOKUP('Crop 2'!$E$65,Carbon!$AH$4:$AI$10,2,FALSE),0))*$AL$20,2)","v":0},{"$f":"O70*Inputs!$D$15","v":0},{"$f":"ROUND((IF('Crop 3'!$C$14=Carbon!$B70,'Crop 3'!$V$14*VLOOKUP('Crop 3'!$E$14,Carbon!$AH$4:$AI$10,2,FALSE),0)+IF('Crop 3'!$C$15=Carbon!$B70,'Crop 3'!$V$15*VLOOKUP('Crop 3'!$E$15,Carbon!$AH$4:$AI$10,2,FALSE),0)+IF('Crop 3'!$C$16=Carbon!$B70,'Crop 3'!$V$16*VLOOKUP('Crop 3'!$E$16,Carbon!$AH$4:$AI$10,2,FALSE),0)+IF('Crop 3'!$C$19=Carbon!$B70,'Crop 3'!$V$19*VLOOKUP('Crop 3'!$E$19,Carbon!$AH$4:$AI$10,2,FALSE),0)+IF('Crop 3'!$C$20=Carbon!$B70,'Crop 3'!$V$20*VLOOKUP('Crop 3'!$E$20,Carbon!$AH$4:$AI$10,2,FALSE),0)+IF('Crop 3'!$C$21=Carbon!$B70,'Crop 3'!$V$21*VLOOKUP('Crop 3'!$E$21,Carbon!$AH$4:$AI$10,2,FALSE),0)+IF('Crop 3'!$C$49=Carbon!$B70,'Crop 3'!$V$49*VLOOKUP('Crop 3'!$E$49,Carbon!$AH$4:$AI$10,2,FALSE),0)+IF('Crop 3'!$C$50=Carbon!$B70,'Crop 3'!$V$50*VLOOKUP('Crop 3'!$E$50,Carbon!$AH$4:$AI$10,2,FALSE),0)+IF('Crop 3'!$C$51=Carbon!$B70,'Crop 3'!$V$51*VLOOKUP('Crop 3'!$E$51,Carbon!$AH$4:$AI$10,2,FALSE),0)+IF('Crop 3'!$C$52=Carbon!$B70,'Crop 3'!$V$52*VLOOKUP('Crop 3'!$E$52,Carbon!$AH$4:$AI$10,2,FALSE),0)+IF('Crop 3'!$C$53=Carbon!$B70,'Crop 3'!$V$53*VLOOKUP('Crop 3'!$E$53,Carbon!$AH$4:$AI$10,2,FALSE),0)+IF('Crop 3'!$C$56=Carbon!$B70,'Crop 3'!$V$56*VLOOKUP('Crop 3'!$E$56,Carbon!$AH$4:$AI$10,2,FALSE),0)+IF('Crop 3'!$C$57=Carbon!$B70,'Crop 3'!$V$57*VLOOKUP('Crop 3'!$E$57,Carbon!$AH$4:$AI$10,2,FALSE),0)+IF('Crop 3'!$C$58=Carbon!$B70,'Crop 3'!$V$58*VLOOKUP('Crop 3'!$E$58,Carbon!$AH$4:$AI$10,2,FALSE),0)+IF('Crop 3'!$C$59=Carbon!$B70,'Crop 3'!$V$59*VLOOKUP('Crop 3'!$E$59,Carbon!$AH$4:$AI$10,2,FALSE),0)+IF('Crop 3'!$C$62=Carbon!$B70,'Crop 3'!$V$62*VLOOKUP('Crop 3'!$E$62,Carbon!$AH$4:$AI$10,2,FALSE),0)+IF('Crop 3'!$C$63=Carbon!$B70,'Crop 3'!$V$63*VLOOKUP('Crop 3'!$E$63,Carbon!$AH$4:$AI$10,2,FALSE),0)+IF('Crop 3'!$C$64=Carbon!$B70,'Crop 3'!$V$64*VLOOKUP('Crop 3'!$E$64,Carbon!$AH$4:$AI$10,2,FALSE),0)+IF('Crop 3'!$C$65=Carbon!$B70,'Crop 3'!$V$65*VLOOKUP('Crop 3'!$E$65,Carbon!$AH$4:$AI$10,2,FALSE),0))*$AL$20,2)","v":0},{"$f":"Q70*Inputs!$D$17","v":0},{"$f":"ROUND(T70/Inputs!D$19,2)","v":0},0,null,null,0,{"$f":"W70*Inputs!$D$13","v":0},0,{"$f":"Y70*Inputs!$D$13","v":0},0,{"$f":"AA70*Inputs!$D$13","v":0},{"$f":"ROUND(AD70/Inputs!D$19,2)","v":0},0]
[null,{"$f":"Defaults!AH37","v":"Classic"},{"$f":"ROUND((IF('Crop 1'!$C$14=Carbon!$B71,'Crop 1'!$L$14*VLOOKUP('Crop 1'!$E$14,Carbon!$AH$4:$AI$10,2,FALSE),0)+IF('Crop 1'!$C$15=Carbon!$B71,'Crop 1'!$L$15*VLOOKUP('Crop 1'!$E$15,Carbon!$AH$4:$AI$10,2,FALSE),0)+IF('Crop 1'!$C$16=Carbon!$B71,'Crop 1'!$L$16*VLOOKUP('Crop 1'!$E$16,Carbon!$AH$4:$AI$10,2,FALSE),0)+IF('Crop 1'!$C$19=Carbon!$B71,'Crop 1'!$L$19*VLOOKUP('Crop 1'!$E$19,Carbon!$AH$4:$AI$10,2,FALSE),0)+IF('Crop 1'!$C$20=Carbon!$B71,'Crop 1'!$L$20*VLOOKUP('Crop 1'!$E$20,Carbon!$AH$4:$AI$10,2,FALSE),0)+IF('Crop 1'!$C$21=Carbon!$B71,'Crop 1'!$L$21*VLOOKUP('Crop 1'!$E$21,Carbon!$AH$4:$AI$10,2,FALSE),0)+IF('Crop 1'!$C$49=Carbon!$B71,'Crop 1'!$L$49*VLOOKUP('Crop 1'!$E$49,Carbon!$AH$4:$AI$10,2,FALSE),0)+IF('Crop 1'!$C$50=Carbon!$B71,'Crop 1'!$L$50*VLOOKUP('Crop 1'!$E$50,Carbon!$AH$4:$AI$10,2,FALSE),0)+IF('Crop 1'!$C$51=Carbon!$B71,'Crop 1'!$L$51*VLOOKUP('Crop 1'!$E$51,Carbon!$AH$4:$AI$10,2,FALSE),0)+IF('Crop 1'!$C$52=Carbon!$B71,'Crop 1'!$L$52*VLOOKUP('Crop 1'!$E$52,Carbon!$AH$4:$AI$10,2,FALSE),0)+IF('Crop 1'!$C$53=Carbon!$B71,'Crop 1'!$L$53*VLOOKUP('Crop 1'!$E$53,Carbon!$AH$4:$AI$10,2,FALSE),0)+IF('Crop 1'!$C$56=Carbon!$B71,'Crop 1'!$L$56*VLOOKUP('Crop 1'!$E$56,Carbon!$AH$4:$AI$10,2,FALSE),0)+IF('Crop 1'!$C$57=Carbon!$B71,'Crop 1'!$L$57*VLOOKUP('Crop 1'!$E$57,Carbon!$AH$4:$AI$10,2,FALSE),0)+IF('Crop 1'!$C$58=Carbon!$B71,'Crop 1'!$L$58*VLOOKUP('Crop 1'!$E$58,Carbon!$AH$4:$AI$10,2,FALSE),0)+IF('Crop 1'!$C$59=Carbon!$B71,'Crop 1'!$L$59*VLOOKUP('Crop 1'!$E$59,Carbon!$AH$4:$AI$10,2,FALSE),0)+IF('Crop 1'!$C$62=Carbon!$B71,'Crop 1'!$L$62*VLOOKUP('Crop 1'!$E$62,Carbon!$AH$4:$AI$10,2,FALSE),0)+IF('Crop 1'!$C$63=Carbon!$B71,'Crop 1'!$L$63*VLOOKUP('Crop 1'!$E$63,Carbon!$AH$4:$AI$10,2,FALSE),0)+IF('Crop 1'!$C$64=Carbon!$B71,'Crop 1'!$L$64*VLOOKUP('Crop 1'!$E$64,Carbon!$AH$4:$AI$10,2,FALSE),0)+IF('Crop 1'!$C$65=Carbon!$B71,'Crop 1'!$L$65*VLOOKUP('Crop 1'!$E$65,Carbon!$AH$4:$AI$10,2,FALSE),0))*$AL$20,2)","v":0},{"$f":"C71*Inputs!$D$13","v":0},{"$f":"ROUND((IF('Crop 2'!$C$14=Carbon!$B71,'Crop 2'!$L$14*VLOOKUP('Crop 2'!$E$14,Carbon!$AH$4:$AI$10,2,FALSE),0)+IF('Crop 2'!$C$15=Carbon!$B71,'Crop 2'!$L$15*VLOOKUP('Crop 2'!$E$15,Carbon!$AH$4:$AI$10,2,FALSE),0)+IF('Crop 2'!$C$16=Carbon!$B71,'Crop 2'!$L$16*VLOOKUP('Crop 2'!$E$16,Carbon!$AH$4:$AI$10,2,FALSE),0)+IF('Crop 2'!$C$19=Carbon!$B71,'Crop 2'!$L$19*VLOOKUP('Crop 2'!$E$19,Carbon!$AH$4:$AI$10,2,FALSE),0)+IF('Crop 2'!$C$20=Carbon!$B71,'Crop 2'!$L$20*VLOOKUP('Crop 2'!$E$20,Carbon!$AH$4:$AI$10,2,FALSE),0)+IF('Crop 2'!$C$21=Carbon!$B71,'Crop 2'!$L$21*VLOOKUP('Crop 2'!$E$21,Carbon!$AH$4:$AI$10,2,FALSE),0)+IF('Crop 2'!$C$49=Carbon!$B71,'Crop 2'!$L$49*VLOOKUP('Crop 2'!$E$49,Carbon!$AH$4:$AI$10,2,FALSE),0)+IF('Crop 2'!$C$50=Carbon!$B71,'Crop 2'!$L$50*VLOOKUP('Crop 2'!$E$50,Carbon!$AH$4:$AI$10,2,FALSE),0)+IF('Crop 2'!$C$51=Carbon!$B71,'Crop 2'!$L$51*VLOOKUP('Crop 2'!$E$51,Carbon!$AH$4:$AI$10,2,FALSE),0)+IF('Crop 2'!$C$52=Carbon!$B71,'Crop 2'!$L$52*VLOOKUP('Crop 2'!$E$52,Carbon!$AH$4:$AI$10,2,FALSE),0)+IF('Crop 2'!$C$53=Carbon!$B71,'Crop 2'!$L$53*VLOOKUP('Crop 2'!$E$53,Carbon!$AH$4:$AI$10,2,FALSE),0)+IF('Crop 2'!$C$56=Carbon!$B71,'Crop 2'!$L$56*VLOOKUP('Crop 2'!$E$56,Carbon!$AH$4:$AI$10,2,FALSE),0)+IF('Crop 2'!$C$57=Carbon!$B71,'Crop 2'!$L$57*VLOOKUP('Crop 2'!$E$57,Carbon!$AH$4:$AI$10,2,FALSE),0)+IF('Crop 2'!$C$58=Carbon!$B71,'Crop 2'!$L$58*VLOOKUP('Crop 2'!$E$58,Carbon!$AH$4:$AI$10,2,FALSE),0)+IF('Crop 2'!$C$59=Carbon!$B71,'Crop 2'!$L$59*VLOOKUP('Crop 2'!$E$59,Carbon!$AH$4:$AI$10,2,FALSE),0)+IF('Crop 2'!$C$62=Carbon!$B71,'Crop 2'!$L$62*VLOOKUP('Crop 2'!$E$62,Carbon!$AH$4:$AI$10,2,FALSE),0)+IF('Crop 2'!$C$63=Carbon!$B71,'Crop 2'!$L$63*VLOOKUP('Crop 2'!$E$63,Carbon!$AH$4:$AI$10,2,FALSE),0)+IF('Crop 2'!$C$64=Carbon!$B71,'Crop 2'!$L$64*VLOOKUP('Crop 2'!$E$64,Carbon!$AH$4:$AI$10,2,FALSE),0)+IF('Crop 2'!$C$65=Carbon!$B71,'Crop 2'!$L$65*VLOOKUP('Crop 2'!$E$65,Carbon!$AH$4:$AI$10,2,FALSE),0))*$AL$20,2)","v":0},{"$f":"E71*Inputs!$D$15","v":0},{"$f":"ROUND((IF('Crop 3'!$C$14=Carbon!$B71,'Crop 3'!$L$14*VLOOKUP('Crop 3'!$E$14,Carbon!$AH$4:$AI$10,2,FALSE),0)+IF('Crop 3'!$C$15=Carbon!$B71,'Crop 3'!$L$15*VLOOKUP('Crop 3'!$E$15,Carbon!$AH$4:$AI$10,2,FALSE),0)+IF('Crop 3'!$C$16=Carbon!$B71,'Crop 3'!$L$16*VLOOKUP('Crop 3'!$E$16,Carbon!$AH$4:$AI$10,2,FALSE),0)+IF('Crop 3'!$C$19=Carbon!$B71,'Crop 3'!$L$19*VLOOKUP('Crop 3'!$E$19,Carbon!$AH$4:$AI$10,2,FALSE),0)+IF('Crop 3'!$C$20=Carbon!$B71,'Crop 3'!$L$20*VLOOKUP('Crop 3'!$E$20,Carbon!$AH$4:$AI$10,2,FALSE),0)+IF('Crop 3'!$C$21=Carbon!$B71,'Crop 3'!$L$21*VLOOKUP('Crop 3'!$E$21,Carbon!$AH$4:$AI$10,2,FALSE),0)+IF('Crop 3'!$C$49=Carbon!$B71,'Crop 3'!$L$49*VLOOKUP('Crop 3'!$E$49,Carbon!$AH$4:$AI$10,2,FALSE),0)+IF('Crop 3'!$C$50=Carbon!$B71,'Crop 3'!$L$50*VLOOKUP('Crop 3'!$E$50,Carbon!$AH$4:$AI$10,2,FALSE),0)+IF('Crop 3'!$C$51=Carbon!$B71,'Crop 3'!$L$51*VLOOKUP('Crop 3'!$E$51,Carbon!$AH$4:$AI$10,2,FALSE),0)+IF('Crop 3'!$C$52=Carbon!$B71,'Crop 3'!$L$52*VLOOKUP('Crop 3'!$E$52,Carbon!$AH$4:$AI$10,2,FALSE),0)+IF('Crop 3'!$C$53=Carbon!$B71,'Crop 3'!$L$53*VLOOKUP('Crop 3'!$E$53,Carbon!$AH$4:$AI$10,2,FALSE),0)+IF('Crop 3'!$C$56=Carbon!$B71,'Crop 3'!$L$56*VLOOKUP('Crop 3'!$E$56,Carbon!$AH$4:$AI$10,2,FALSE),0)+IF('Crop 3'!$C$57=Carbon!$B71,'Crop 3'!$L$57*VLOOKUP('Crop 3'!$E$57,Carbon!$AH$4:$AI$10,2,FALSE),0)+IF('Crop 3'!$C$58=Carbon!$B71,'Crop 3'!$L$58*VLOOKUP('Crop 3'!$E$58,Carbon!$AH$4:$AI$10,2,FALSE),0)+IF('Crop 3'!$C$59=Carbon!$B71,'Crop 3'!$L$59*VLOOKUP('Crop 3'!$E$59,Carbon!$AH$4:$AI$10,2,FALSE),0)+IF('Crop 3'!$C$62=Carbon!$B71,'Crop 3'!$L$62*VLOOKUP('Crop 3'!$E$62,Carbon!$AH$4:$AI$10,2,FALSE),0)+IF('Crop 3'!$C$63=Carbon!$B71,'Crop 3'!$L$63*VLOOKUP('Crop 3'!$E$63,Carbon!$AH$4:$AI$10,2,FALSE),0)+IF('Crop 3'!$C$64=Carbon!$B71,'Crop 3'!$L$64*VLOOKUP('Crop 3'!$E$64,Carbon!$AH$4:$AI$10,2,FALSE),0)+IF('Crop 3'!$C$65=Carbon!$B71,'Crop 3'!$L$65*VLOOKUP('Crop 3'!$E$65,Carbon!$AH$4:$AI$10,2,FALSE),0))*$AL$20,2)","v":0},{"$f":"G71*Inputs!$D$17","v":0},{"$f":"ROUND(J71/Inputs!D$19,2)","v":0},0,null,null,{"$f":"ROUND((IF('Crop 1'!$C$14=Carbon!$B71,'Crop 1'!$V$14*VLOOKUP('Crop 1'!$E$14,Carbon!$AH$4:$AI$10,2,FALSE),0)+IF('Crop 1'!$C$15=Carbon!$B71,'Crop 1'!$V$15*VLOOKUP('Crop 1'!$E$15,Carbon!$AH$4:$AI$10,2,FALSE),0)+IF('Crop 1'!$C$16=Carbon!$B71,'Crop 1'!$V$16*VLOOKUP('Crop 1'!$E$16,Carbon!$AH$4:$AI$10,2,FALSE),0)+IF('Crop 1'!$C$19=Carbon!$B71,'Crop 1'!$V$19*VLOOKUP('Crop 1'!$E$19,Carbon!$AH$4:$AI$10,2,FALSE),0)+IF('Crop 1'!$C$20=Carbon!$B71,'Crop 1'!$V$20*VLOOKUP('Crop 1'!$E$20,Carbon!$AH$4:$AI$10,2,FALSE),0)+IF('Crop 1'!$C$21=Carbon!$B71,'Crop 1'!$V$21*VLOOKUP('Crop 1'!$E$21,Carbon!$AH$4:$AI$10,2,FALSE),0)+IF('Crop 1'!$C$49=Carbon!$B71,'Crop 1'!$V$49*VLOOKUP('Crop 1'!$E$49,Carbon!$AH$4:$AI$10,2,FALSE),0)+IF('Crop 1'!$C$50=Carbon!$B71,'Crop 1'!$V$50*VLOOKUP('Crop 1'!$E$50,Carbon!$AH$4:$AI$10,2,FALSE),0)+IF('Crop 1'!$C$51=Carbon!$B71,'Crop 1'!$V$51*VLOOKUP('Crop 1'!$E$51,Carbon!$AH$4:$AI$10,2,FALSE),0)+IF('Crop 1'!$C$52=Carbon!$B71,'Crop 1'!$V$52*VLOOKUP('Crop 1'!$E$52,Carbon!$AH$4:$AI$10,2,FALSE),0)+IF('Crop 1'!$C$53=Carbon!$B71,'Crop 1'!$V$53*VLOOKUP('Crop 1'!$E$53,Carbon!$AH$4:$AI$10,2,FALSE),0)+IF('Crop 1'!$C$56=Carbon!$B71,'Crop 1'!$V$56*VLOOKUP('Crop 1'!$E$56,Carbon!$AH$4:$AI$10,2,FALSE),0)+IF('Crop 1'!$C$57=Carbon!$B71,'Crop 1'!$V$57*VLOOKUP('Crop 1'!$E$57,Carbon!$AH$4:$AI$10,2,FALSE),0)+IF('Crop 1'!$C$58=Carbon!$B71,'Crop 1'!$V$58*VLOOKUP('Crop 1'!$E$58,Carbon!$AH$4:$AI$10,2,FALSE),0)+IF('Crop 1'!$C$59=Carbon!$B71,'Crop 1'!$V$59*VLOOKUP('Crop 1'!$E$59,Carbon!$AH$4:$AI$10,2,FALSE),0)+IF('Crop 1'!$C$62=Carbon!$B71,'Crop 1'!$V$62*VLOOKUP('Crop 1'!$E$62,Carbon!$AH$4:$AI$10,2,FALSE),0)+IF('Crop 1'!$C$63=Carbon!$B71,'Crop 1'!$V$63*VLOOKUP('Crop 1'!$E$63,Carbon!$AH$4:$AI$10,2,FALSE),0)+IF('Crop 1'!$C$64=Carbon!$B71,'Crop 1'!$V$64*VLOOKUP('Crop 1'!$E$64,Carbon!$AH$4:$AI$10,2,FALSE),0)+IF('Crop 1'!$C$65=Carbon!$B71,'Crop 1'!$V$65*VLOOKUP('Crop 1'!$E$65,Carbon!$AH$4:$AI$10,2,FALSE),0))*$AL$20,2)","v":0},{"$f":"M71*Inputs!$D$13","v":0},{"$f":"ROUND((IF('Crop 2'!$C$14=Carbon!$B71,'Crop 2'!$V$14*VLOOKUP('Crop 2'!$E$14,Carbon!$AH$4:$AI$10,2,FALSE),0)+IF('Crop 2'!$C$15=Carbon!$B71,'Crop 2'!$V$15*VLOOKUP('Crop 2'!$E$15,Carbon!$AH$4:$AI$10,2,FALSE),0)+IF('Crop 2'!$C$16=Carbon!$B71,'Crop 2'!$V$16*VLOOKUP('Crop 2'!$E$16,Carbon!$AH$4:$AI$10,2,FALSE),0)+IF('Crop 2'!$C$19=Carbon!$B71,'Crop 2'!$V$19*VLOOKUP('Crop 2'!$E$19,Carbon!$AH$4:$AI$10,2,FALSE),0)+IF('Crop 2'!$C$20=Carbon!$B71,'Crop 2'!$V$20*VLOOKUP('Crop 2'!$E$20,Carbon!$AH$4:$AI$10,2,FALSE),0)+IF('Crop 2'!$C$21=Carbon!$B71,'Crop 2'!$V$21*VLOOKUP('Crop 2'!$E$21,Carbon!$AH$4:$AI$10,2,FALSE),0)+IF('Crop 2'!$C$49=Carbon!$B71,'Crop 2'!$V$49*VLOOKUP('Crop 2'!$E$49,Carbon!$AH$4:$AI$10,2,FALSE),0)+IF('Crop 2'!$C$50=Carbon!$B71,'Crop 2'!$V$50*VLOOKUP('Crop 2'!$E$50,Carbon!$AH$4:$AI$10,2,FALSE),0)+IF('Crop 2'!$C$51=Carbon!$B71,'Crop 2'!$V$51*VLOOKUP('Crop 2'!$E$51,Carbon!$AH$4:$AI$10,2,FALSE),0)+IF('Crop 2'!$C$52=Carbon!$B71,'Crop 2'!$V$52*VLOOKUP('Crop 2'!$E$52,Carbon!$AH$4:$AI$10,2,FALSE),0)+IF('Crop 2'!$C$53=Carbon!$B71,'Crop 2'!$V$53*VLOOKUP('Crop 2'!$E$53,Carbon!$AH$4:$AI$10,2,FALSE),0)+IF('Crop 2'!$C$56=Carbon!$B71,'Crop 2'!$V$56*VLOOKUP('Crop 2'!$E$56,Carbon!$AH$4:$AI$10,2,FALSE),0)+IF('Crop 2'!$C$57=Carbon!$B71,'Crop 2'!$V$57*VLOOKUP('Crop 2'!$E$57,Carbon!$AH$4:$AI$10,2,FALSE),0)+IF('Crop 2'!$C$58=Carbon!$B71,'Crop 2'!$V$58*VLOOKUP('Crop 2'!$E$58,Carbon!$AH$4:$AI$10,2,FALSE),0)+IF('Crop 2'!$C$59=Carbon!$B71,'Crop 2'!$V$59*VLOOKUP('Crop 2'!$E$59,Carbon!$AH$4:$AI$10,2,FALSE),0)+IF('Crop 2'!$C$62=Carbon!$B71,'Crop 2'!$V$62*VLOOKUP('Crop 2'!$E$62,Carbon!$AH$4:$AI$10,2,FALSE),0)+IF('Crop 2'!$C$63=Carbon!$B71,'Crop 2'!$V$63*VLOOKUP('Crop 2'!$E$63,Carbon!$AH$4:$AI$10,2,FALSE),0)+IF('Crop 2'!$C$64=Carbon!$B71,'Crop 2'!$V$64*VLOOKUP('Crop 2'!$E$64,Carbon!$AH$4:$AI$10,2,FALSE),0)+IF('Crop 2'!$C$65=Carbon!$B71,'Crop 2'!$V$65*VLOOKUP('Crop 2'!$E$65,Carbon!$AH$4:$AI$10,2,FALSE),0))*$AL$20,2)","v":0},{"$f":"O71*Inputs!$D$15","v":0},{"$f":"ROUND((IF('Crop 3'!$C$14=Carbon!$B71,'Crop 3'!$V$14*VLOOKUP('Crop 3'!$E$14,Carbon!$AH$4:$AI$10,2,FALSE),0)+IF('Crop 3'!$C$15=Carbon!$B71,'Crop 3'!$V$15*VLOOKUP('Crop 3'!$E$15,Carbon!$AH$4:$AI$10,2,FALSE),0)+IF('Crop 3'!$C$16=Carbon!$B71,'Crop 3'!$V$16*VLOOKUP('Crop 3'!$E$16,Carbon!$AH$4:$AI$10,2,FALSE),0)+IF('Crop 3'!$C$19=Carbon!$B71,'Crop 3'!$V$19*VLOOKUP('Crop 3'!$E$19,Carbon!$AH$4:$AI$10,2,FALSE),0)+IF('Crop 3'!$C$20=Carbon!$B71,'Crop 3'!$V$20*VLOOKUP('Crop 3'!$E$20,Carbon!$AH$4:$AI$10,2,FALSE),0)+IF('Crop 3'!$C$21=Carbon!$B71,'Crop 3'!$V$21*VLOOKUP('Crop 3'!$E$21,Carbon!$AH$4:$AI$10,2,FALSE),0)+IF('Crop 3'!$C$49=Carbon!$B71,'Crop 3'!$V$49*VLOOKUP('Crop 3'!$E$49,Carbon!$AH$4:$AI$10,2,FALSE),0)+IF('Crop 3'!$C$50=Carbon!$B71,'Crop 3'!$V$50*VLOOKUP('Crop 3'!$E$50,Carbon!$AH$4:$AI$10,2,FALSE),0)+IF('Crop 3'!$C$51=Carbon!$B71,'Crop 3'!$V$51*VLOOKUP('Crop 3'!$E$51,Carbon!$AH$4:$AI$10,2,FALSE),0)+IF('Crop 3'!$C$52=Carbon!$B71,'Crop 3'!$V$52*VLOOKUP('Crop 3'!$E$52,Carbon!$AH$4:$AI$10,2,FALSE),0)+IF('Crop 3'!$C$53=Carbon!$B71,'Crop 3'!$V$53*VLOOKUP('Crop 3'!$E$53,Carbon!$AH$4:$AI$10,2,FALSE),0)+IF('Crop 3'!$C$56=Carbon!$B71,'Crop 3'!$V$56*VLOOKUP('Crop 3'!$E$56,Carbon!$AH$4:$AI$10,2,FALSE),0)+IF('Crop 3'!$C$57=Carbon!$B71,'Crop 3'!$V$57*VLOOKUP('Crop 3'!$E$57,Carbon!$AH$4:$AI$10,2,FALSE),0)+IF('Crop 3'!$C$58=Carbon!$B71,'Crop 3'!$V$58*VLOOKUP('Crop 3'!$E$58,Carbon!$AH$4:$AI$10,2,FALSE),0)+IF('Crop 3'!$C$59=Carbon!$B71,'Crop 3'!$V$59*VLOOKUP('Crop 3'!$E$59,Carbon!$AH$4:$AI$10,2,FALSE),0)+IF('Crop 3'!$C$62=Carbon!$B71,'Crop 3'!$V$62*VLOOKUP('Crop 3'!$E$62,Carbon!$AH$4:$AI$10,2,FALSE),0)+IF('Crop 3'!$C$63=Carbon!$B71,'Crop 3'!$V$63*VLOOKUP('Crop 3'!$E$63,Carbon!$AH$4:$AI$10,2,FALSE),0)+IF('Crop 3'!$C$64=Carbon!$B71,'Crop 3'!$V$64*VLOOKUP('Crop 3'!$E$64,Carbon!$AH$4:$AI$10,2,FALSE),0)+IF('Crop 3'!$C$65=Carbon!$B71,'Crop 3'!$V$65*VLOOKUP('Crop 3'!$E$65,Carbon!$AH$4:$AI$10,2,FALSE),0))*$AL$20,2)","v":0},{"$f":"Q71*Inputs!$D$17","v":0},{"$f":"ROUND(T71/Inputs!D$19,2)","v":0},0,null,null,0,{"$f":"W71*Inputs!$D$13","v":0},0,{"$f":"Y71*Inputs!$D$13","v":0},0,{"$f":"AA71*Inputs!$D$13","v":0},{"$f":"ROUND(AD71/Inputs!D$19,2)","v":0},0]
[null,{"$f":"Defaults!AH38","v":"Clincher"},{"$f":"ROUND((IF('Crop 1'!$C$14=Carbon!$B72,'Crop 1'!$L$14*VLOOKUP('Crop 1'!$E$14,Carbon!$AH$4:$AI$10,2,FALSE),0)+IF('Crop 1'!$C$15=Carbon!$B72,'Crop 1'!$L$15*VLOOKUP('Crop 1'!$E$15,Carbon!$AH$4:$AI$10,2,FALSE),0)+IF('Crop 1'!$C$16=Carbon!$B72,'Crop 1'!$L$16*VLOOKUP('Crop 1'!$E$16,Carbon!$AH$4:$AI$10,2,FALSE),0)+IF('Crop 1'!$C$19=Carbon!$B72,'Crop 1'!$L$19*VLOOKUP('Crop 1'!$E$19,Carbon!$AH$4:$AI$10,2,FALSE),0)+IF('Crop 1'!$C$20=Carbon!$B72,'Crop 1'!$L$20*VLOOKUP('Crop 1'!$E$20,Carbon!$AH$4:$AI$10,2,FALSE),0)+IF('Crop 1'!$C$21=Carbon!$B72,'Crop 1'!$L$21*VLOOKUP('Crop 1'!$E$21,Carbon!$AH$4:$AI$10,2,FALSE),0)+IF('Crop 1'!$C$49=Carbon!$B72,'Crop 1'!$L$49*VLOOKUP('Crop 1'!$E$49,Carbon!$AH$4:$AI$10,2,FALSE),0)+IF('Crop 1'!$C$50=Carbon!$B72,'Crop 1'!$L$50*VLOOKUP('Crop 1'!$E$50,Carbon!$AH$4:$AI$10,2,FALSE),0)+IF('Crop 1'!$C$51=Carbon!$B72,'Crop 1'!$L$51*VLOOKUP('Crop 1'!$E$51,Carbon!$AH$4:$AI$10,2,FALSE),0)+IF('Crop 1'!$C$52=Carbon!$B72,'Crop 1'!$L$52*VLOOKUP('Crop 1'!$E$52,Carbon!$AH$4:$AI$10,2,FALSE),0)+IF('Crop 1'!$C$53=Carbon!$B72,'Crop 1'!$L$53*VLOOKUP('Crop 1'!$E$53,Carbon!$AH$4:$AI$10,2,FALSE),0)+IF('Crop 1'!$C$56=Carbon!$B72,'Crop 1'!$L$56*VLOOKUP('Crop 1'!$E$56,Carbon!$AH$4:$AI$10,2,FALSE),0)+IF('Crop 1'!$C$57=Carbon!$B72,'Crop 1'!$L$57*VLOOKUP('Crop 1'!$E$57,Carbon!$AH$4:$AI$10,2,FALSE),0)+IF('Crop 1'!$C$58=Carbon!$B72,'Crop 1'!$L$58*VLOOKUP('Crop 1'!$E$58,Carbon!$AH$4:$AI$10,2,FALSE),0)+IF('Crop 1'!$C$59=Carbon!$B72,'Crop 1'!$L$59*VLOOKUP('Crop 1'!$E$59,Carbon!$AH$4:$AI$10,2,FALSE),0)+IF('Crop 1'!$C$62=Carbon!$B72,'Crop 1'!$L$62*VLOOKUP('Crop 1'!$E$62,Carbon!$AH$4:$AI$10,2,FALSE),0)+IF('Crop 1'!$C$63=Carbon!$B72,'Crop 1'!$L$63*VLOOKUP('Crop 1'!$E$63,Carbon!$AH$4:$AI$10,2,FALSE),0)+IF('Crop 1'!$C$64=Carbon!$B72,'Crop 1'!$L$64*VLOOKUP('Crop 1'!$E$64,Carbon!$AH$4:$AI$10,2,FALSE),0)+IF('Crop 1'!$C$65=Carbon!$B72,'Crop 1'!$L$65*VLOOKUP('Crop 1'!$E$65,Carbon!$AH$4:$AI$10,2,FALSE),0))*$AL$20,2)","v":0},{"$f":"C72*Inputs!$D$13","v":0},{"$f":"ROUND((IF('Crop 2'!$C$14=Carbon!$B72,'Crop 2'!$L$14*VLOOKUP('Crop 2'!$E$14,Carbon!$AH$4:$AI$10,2,FALSE),0)+IF('Crop 2'!$C$15=Carbon!$B72,'Crop 2'!$L$15*VLOOKUP('Crop 2'!$E$15,Carbon!$AH$4:$AI$10,2,FALSE),0)+IF('Crop 2'!$C$16=Carbon!$B72,'Crop 2'!$L$16*VLOOKUP('Crop 2'!$E$16,Carbon!$AH$4:$AI$10,2,FALSE),0)+IF('Crop 2'!$C$19=Carbon!$B72,'Crop 2'!$L$19*VLOOKUP('Crop 2'!$E$19,Carbon!$AH$4:$AI$10,2,FALSE),0)+IF('Crop 2'!$C$20=Carbon!$B72,'Crop 2'!$L$20*VLOOKUP('Crop 2'!$E$20,Carbon!$AH$4:$AI$10,2,FALSE),0)+IF('Crop 2'!$C$21=Carbon!$B72,'Crop 2'!$L$21*VLOOKUP('Crop 2'!$E$21,Carbon!$AH$4:$AI$10,2,FALSE),0)+IF('Crop 2'!$C$49=Carbon!$B72,'Crop 2'!$L$49*VLOOKUP('Crop 2'!$E$49,Carbon!$AH$4:$AI$10,2,FALSE),0)+IF('Crop 2'!$C$50=Carbon!$B72,'Crop 2'!$L$50*VLOOKUP('Crop 2'!$E$50,Carbon!$AH$4:$AI$10,2,FALSE),0)+IF('Crop 2'!$C$51=Carbon!$B72,'Crop 2'!$L$51*VLOOKUP('Crop 2'!$E$51,Carbon!$AH$4:$AI$10,2,FALSE),0)+IF('Crop 2'!$C$52=Carbon!$B72,'Crop 2'!$L$52*VLOOKUP('Crop 2'!$E$52,Carbon!$AH$4:$AI$10,2,FALSE),0)+IF('Crop 2'!$C$53=Carbon!$B72,'Crop 2'!$L$53*VLOOKUP('Crop 2'!$E$53,Carbon!$AH$4:$AI$10,2,FALSE),0)+IF('Crop 2'!$C$56=Carbon!$B72,'Crop 2'!$L$56*VLOOKUP('Crop 2'!$E$56,Carbon!$AH$4:$AI$10,2,FALSE),0)+IF('Crop 2'!$C$57=Carbon!$B72,'Crop 2'!$L$57*VLOOKUP('Crop 2'!$E$57,Carbon!$AH$4:$AI$10,2,FALSE),0)+IF('Crop 2'!$C$58=Carbon!$B72,'Crop 2'!$L$58*VLOOKUP('Crop 2'!$E$58,Carbon!$AH$4:$AI$10,2,FALSE),0)+IF('Crop 2'!$C$59=Carbon!$B72,'Crop 2'!$L$59*VLOOKUP('Crop 2'!$E$59,Carbon!$AH$4:$AI$10,2,FALSE),0)+IF('Crop 2'!$C$62=Carbon!$B72,'Crop 2'!$L$62*VLOOKUP('Crop 2'!$E$62,Carbon!$AH$4:$AI$10,2,FALSE),0)+IF('Crop 2'!$C$63=Carbon!$B72,'Crop 2'!$L$63*VLOOKUP('Crop 2'!$E$63,Carbon!$AH$4:$AI$10,2,FALSE),0)+IF('Crop 2'!$C$64=Carbon!$B72,'Crop 2'!$L$64*VLOOKUP('Crop 2'!$E$64,Carbon!$AH$4:$AI$10,2,FALSE),0)+IF('Crop 2'!$C$65=Carbon!$B72,'Crop 2'!$L$65*VLOOKUP('Crop 2'!$E$65,Carbon!$AH$4:$AI$10,2,FALSE),0))*$AL$20,2)","v":0},{"$f":"E72*Inputs!$D$15","v":0},{"$f":"ROUND((IF('Crop 3'!$C$14=Carbon!$B72,'Crop 3'!$L$14*VLOOKUP('Crop 3'!$E$14,Carbon!$AH$4:$AI$10,2,FALSE),0)+IF('Crop 3'!$C$15=Carbon!$B72,'Crop 3'!$L$15*VLOOKUP('Crop 3'!$E$15,Carbon!$AH$4:$AI$10,2,FALSE),0)+IF('Crop 3'!$C$16=Carbon!$B72,'Crop 3'!$L$16*VLOOKUP('Crop 3'!$E$16,Carbon!$AH$4:$AI$10,2,FALSE),0)+IF('Crop 3'!$C$19=Carbon!$B72,'Crop 3'!$L$19*VLOOKUP('Crop 3'!$E$19,Carbon!$AH$4:$AI$10,2,FALSE),0)+IF('Crop 3'!$C$20=Carbon!$B72,'Crop 3'!$L$20*VLOOKUP('Crop 3'!$E$20,Carbon!$AH$4:$AI$10,2,FALSE),0)+IF('Crop 3'!$C$21=Carbon!$B72,'Crop 3'!$L$21*VLOOKUP('Crop 3'!$E$21,Carbon!$AH$4:$AI$10,2,FALSE),0)+IF('Crop 3'!$C$49=Carbon!$B72,'Crop 3'!$L$49*VLOOKUP('Crop 3'!$E$49,Carbon!$AH$4:$AI$10,2,FALSE),0)+IF('Crop 3'!$C$50=Carbon!$B72,'Crop 3'!$L$50*VLOOKUP('Crop 3'!$E$50,Carbon!$AH$4:$AI$10,2,FALSE),0)+IF('Crop 3'!$C$51=Carbon!$B72,'Crop 3'!$L$51*VLOOKUP('Crop 3'!$E$51,Carbon!$AH$4:$AI$10,2,FALSE),0)+IF('Crop 3'!$C$52=Carbon!$B72,'Crop 3'!$L$52*VLOOKUP('Crop 3'!$E$52,Carbon!$AH$4:$AI$10,2,FALSE),0)+IF('Crop 3'!$C$53=Carbon!$B72,'Crop 3'!$L$53*VLOOKUP('Crop 3'!$E$53,Carbon!$AH$4:$AI$10,2,FALSE),0)+IF('Crop 3'!$C$56=Carbon!$B72,'Crop 3'!$L$56*VLOOKUP('Crop 3'!$E$56,Carbon!$AH$4:$AI$10,2,FALSE),0)+IF('Crop 3'!$C$57=Carbon!$B72,'Crop 3'!$L$57*VLOOKUP('Crop 3'!$E$57,Carbon!$AH$4:$AI$10,2,FALSE),0)+IF('Crop 3'!$C$58=Carbon!$B72,'Crop 3'!$L$58*VLOOKUP('Crop 3'!$E$58,Carbon!$AH$4:$AI$10,2,FALSE),0)+IF('Crop 3'!$C$59=Carbon!$B72,'Crop 3'!$L$59*VLOOKUP('Crop 3'!$E$59,Carbon!$AH$4:$AI$10,2,FALSE),0)+IF('Crop 3'!$C$62=Carbon!$B72,'Crop 3'!$L$62*VLOOKUP('Crop 3'!$E$62,Carbon!$AH$4:$AI$10,2,FALSE),0)+IF('Crop 3'!$C$63=Carbon!$B72,'Crop 3'!$L$63*VLOOKUP('Crop 3'!$E$63,Carbon!$AH$4:$AI$10,2,FALSE),0)+IF('Crop 3'!$C$64=Carbon!$B72,'Crop 3'!$L$64*VLOOKUP('Crop 3'!$E$64,Carbon!$AH$4:$AI$10,2,FALSE),0)+IF('Crop 3'!$C$65=Carbon!$B72,'Crop 3'!$L$65*VLOOKUP('Crop 3'!$E$65,Carbon!$AH$4:$AI$10,2,FALSE),0))*$AL$20,2)","v":0},{"$f":"G72*Inputs!$D$17","v":0},{"$f":"ROUND(J72/Inputs!D$19,2)","v":0},0,null,null,{"$f":"ROUND((IF('Crop 1'!$C$14=Carbon!$B72,'Crop 1'!$V$14*VLOOKUP('Crop 1'!$E$14,Carbon!$AH$4:$AI$10,2,FALSE),0)+IF('Crop 1'!$C$15=Carbon!$B72,'Crop 1'!$V$15*VLOOKUP('Crop 1'!$E$15,Carbon!$AH$4:$AI$10,2,FALSE),0)+IF('Crop 1'!$C$16=Carbon!$B72,'Crop 1'!$V$16*VLOOKUP('Crop 1'!$E$16,Carbon!$AH$4:$AI$10,2,FALSE),0)+IF('Crop 1'!$C$19=Carbon!$B72,'Crop 1'!$V$19*VLOOKUP('Crop 1'!$E$19,Carbon!$AH$4:$AI$10,2,FALSE),0)+IF('Crop 1'!$C$20=Carbon!$B72,'Crop 1'!$V$20*VLOOKUP('Crop 1'!$E$20,Carbon!$AH$4:$AI$10,2,FALSE),0)+IF('Crop 1'!$C$21=Carbon!$B72,'Crop 1'!$V$21*VLOOKUP('Crop 1'!$E$21,Carbon!$AH$4:$AI$10,2,FALSE),0)+IF('Crop 1'!$C$49=Carbon!$B72,'Crop 1'!$V$49*VLOOKUP('Crop 1'!$E$49,Carbon!$AH$4:$AI$10,2,FALSE),0)+IF('Crop 1'!$C$50=Carbon!$B72,'Crop 1'!$V$50*VLOOKUP('Crop 1'!$E$50,Carbon!$AH$4:$AI$10,2,FALSE),0)+IF('Crop 1'!$C$51=Carbon!$B72,'Crop 1'!$V$51*VLOOKUP('Crop 1'!$E$51,Carbon!$AH$4:$AI$10,2,FALSE),0)+IF('Crop 1'!$C$52=Carbon!$B72,'Crop 1'!$V$52*VLOOKUP('Crop 1'!$E$52,Carbon!$AH$4:$AI$10,2,FALSE),0)+IF('Crop 1'!$C$53=Carbon!$B72,'Crop 1'!$V$53*VLOOKUP('Crop 1'!$E$53,Carbon!$AH$4:$AI$10,2,FALSE),0)+IF('Crop 1'!$C$56=Carbon!$B72,'Crop 1'!$V$56*VLOOKUP('Crop 1'!$E$56,Carbon!$AH$4:$AI$10,2,FALSE),0)+IF('Crop 1'!$C$57=Carbon!$B72,'Crop 1'!$V$57*VLOOKUP('Crop 1'!$E$57,Carbon!$AH$4:$AI$10,2,FALSE),0)+IF('Crop 1'!$C$58=Carbon!$B72,'Crop 1'!$V$58*VLOOKUP('Crop 1'!$E$58,Carbon!$AH$4:$AI$10,2,FALSE),0)+IF('Crop 1'!$C$59=Carbon!$B72,'Crop 1'!$V$59*VLOOKUP('Crop 1'!$E$59,Carbon!$AH$4:$AI$10,2,FALSE),0)+IF('Crop 1'!$C$62=Carbon!$B72,'Crop 1'!$V$62*VLOOKUP('Crop 1'!$E$62,Carbon!$AH$4:$AI$10,2,FALSE),0)+IF('Crop 1'!$C$63=Carbon!$B72,'Crop 1'!$V$63*VLOOKUP('Crop 1'!$E$63,Carbon!$AH$4:$AI$10,2,FALSE),0)+IF('Crop 1'!$C$64=Carbon!$B72,'Crop 1'!$V$64*VLOOKUP('Crop 1'!$E$64,Carbon!$AH$4:$AI$10,2,FALSE),0)+IF('Crop 1'!$C$65=Carbon!$B72,'Crop 1'!$V$65*VLOOKUP('Crop 1'!$E$65,Carbon!$AH$4:$AI$10,2,FALSE),0))*$AL$20,2)","v":0},{"$f":"M72*Inputs!$D$13","v":0},{"$f":"ROUND((IF('Crop 2'!$C$14=Carbon!$B72,'Crop 2'!$V$14*VLOOKUP('Crop 2'!$E$14,Carbon!$AH$4:$AI$10,2,FALSE),0)+IF('Crop 2'!$C$15=Carbon!$B72,'Crop 2'!$V$15*VLOOKUP('Crop 2'!$E$15,Carbon!$AH$4:$AI$10,2,FALSE),0)+IF('Crop 2'!$C$16=Carbon!$B72,'Crop 2'!$V$16*VLOOKUP('Crop 2'!$E$16,Carbon!$AH$4:$AI$10,2,FALSE),0)+IF('Crop 2'!$C$19=Carbon!$B72,'Crop 2'!$V$19*VLOOKUP('Crop 2'!$E$19,Carbon!$AH$4:$AI$10,2,FALSE),0)+IF('Crop 2'!$C$20=Carbon!$B72,'Crop 2'!$V$20*VLOOKUP('Crop 2'!$E$20,Carbon!$AH$4:$AI$10,2,FALSE),0)+IF('Crop 2'!$C$21=Carbon!$B72,'Crop 2'!$V$21*VLOOKUP('Crop 2'!$E$21,Carbon!$AH$4:$AI$10,2,FALSE),0)+IF('Crop 2'!$C$49=Carbon!$B72,'Crop 2'!$V$49*VLOOKUP('Crop 2'!$E$49,Carbon!$AH$4:$AI$10,2,FALSE),0)+IF('Crop 2'!$C$50=Carbon!$B72,'Crop 2'!$V$50*VLOOKUP('Crop 2'!$E$50,Carbon!$AH$4:$AI$10,2,FALSE),0)+IF('Crop 2'!$C$51=Carbon!$B72,'Crop 2'!$V$51*VLOOKUP('Crop 2'!$E$51,Carbon!$AH$4:$AI$10,2,FALSE),0)+IF('Crop 2'!$C$52=Carbon!$B72,'Crop 2'!$V$52*VLOOKUP('Crop 2'!$E$52,Carbon!$AH$4:$AI$10,2,FALSE),0)+IF('Crop 2'!$C$53=Carbon!$B72,'Crop 2'!$V$53*VLOOKUP('Crop 2'!$E$53,Carbon!$AH$4:$AI$10,2,FALSE),0)+IF('Crop 2'!$C$56=Carbon!$B72,'Crop 2'!$V$56*VLOOKUP('Crop 2'!$E$56,Carbon!$AH$4:$AI$10,2,FALSE),0)+IF('Crop 2'!$C$57=Carbon!$B72,'Crop 2'!$V$57*VLOOKUP('Crop 2'!$E$57,Carbon!$AH$4:$AI$10,2,FALSE),0)+IF('Crop 2'!$C$58=Carbon!$B72,'Crop 2'!$V$58*VLOOKUP('Crop 2'!$E$58,Carbon!$AH$4:$AI$10,2,FALSE),0)+IF('Crop 2'!$C$59=Carbon!$B72,'Crop 2'!$V$59*VLOOKUP('Crop 2'!$E$59,Carbon!$AH$4:$AI$10,2,FALSE),0)+IF('Crop 2'!$C$62=Carbon!$B72,'Crop 2'!$V$62*VLOOKUP('Crop 2'!$E$62,Carbon!$AH$4:$AI$10,2,FALSE),0)+IF('Crop 2'!$C$63=Carbon!$B72,'Crop 2'!$V$63*VLOOKUP('Crop 2'!$E$63,Carbon!$AH$4:$AI$10,2,FALSE),0)+IF('Crop 2'!$C$64=Carbon!$B72,'Crop 2'!$V$64*VLOOKUP('Crop 2'!$E$64,Carbon!$AH$4:$AI$10,2,FALSE),0)+IF('Crop 2'!$C$65=Carbon!$B72,'Crop 2'!$V$65*VLOOKUP('Crop 2'!$E$65,Carbon!$AH$4:$AI$10,2,FALSE),0))*$AL$20,2)","v":0},{"$f":"O72*Inputs!$D$15","v":0},{"$f":"ROUND((IF('Crop 3'!$C$14=Carbon!$B72,'Crop 3'!$V$14*VLOOKUP('Crop 3'!$E$14,Carbon!$AH$4:$AI$10,2,FALSE),0)+IF('Crop 3'!$C$15=Carbon!$B72,'Crop 3'!$V$15*VLOOKUP('Crop 3'!$E$15,Carbon!$AH$4:$AI$10,2,FALSE),0)+IF('Crop 3'!$C$16=Carbon!$B72,'Crop 3'!$V$16*VLOOKUP('Crop 3'!$E$16,Carbon!$AH$4:$AI$10,2,FALSE),0)+IF('Crop 3'!$C$19=Carbon!$B72,'Crop 3'!$V$19*VLOOKUP('Crop 3'!$E$19,Carbon!$AH$4:$AI$10,2,FALSE),0)+IF('Crop 3'!$C$20=Carbon!$B72,'Crop 3'!$V$20*VLOOKUP('Crop 3'!$E$20,Carbon!$AH$4:$AI$10,2,FALSE),0)+IF('Crop 3'!$C$21=Carbon!$B72,'Crop 3'!$V$21*VLOOKUP('Crop 3'!$E$21,Carbon!$AH$4:$AI$10,2,FALSE),0)+IF('Crop 3'!$C$49=Carbon!$B72,'Crop 3'!$V$49*VLOOKUP('Crop 3'!$E$49,Carbon!$AH$4:$AI$10,2,FALSE),0)+IF('Crop 3'!$C$50=Carbon!$B72,'Crop 3'!$V$50*VLOOKUP('Crop 3'!$E$50,Carbon!$AH$4:$AI$10,2,FALSE),0)+IF('Crop 3'!$C$51=Carbon!$B72,'Crop 3'!$V$51*VLOOKUP('Crop 3'!$E$51,Carbon!$AH$4:$AI$10,2,FALSE),0)+IF('Crop 3'!$C$52=Carbon!$B72,'Crop 3'!$V$52*VLOOKUP('Crop 3'!$E$52,Carbon!$AH$4:$AI$10,2,FALSE),0)+IF('Crop 3'!$C$53=Carbon!$B72,'Crop 3'!$V$53*VLOOKUP('Crop 3'!$E$53,Carbon!$AH$4:$AI$10,2,FALSE),0)+IF('Crop 3'!$C$56=Carbon!$B72,'Crop 3'!$V$56*VLOOKUP('Crop 3'!$E$56,Carbon!$AH$4:$AI$10,2,FALSE),0)+IF('Crop 3'!$C$57=Carbon!$B72,'Crop 3'!$V$57*VLOOKUP('Crop 3'!$E$57,Carbon!$AH$4:$AI$10,2,FALSE),0)+IF('Crop 3'!$C$58=Carbon!$B72,'Crop 3'!$V$58*VLOOKUP('Crop 3'!$E$58,Carbon!$AH$4:$AI$10,2,FALSE),0)+IF('Crop 3'!$C$59=Carbon!$B72,'Crop 3'!$V$59*VLOOKUP('Crop 3'!$E$59,Carbon!$AH$4:$AI$10,2,FALSE),0)+IF('Crop 3'!$C$62=Carbon!$B72,'Crop 3'!$V$62*VLOOKUP('Crop 3'!$E$62,Carbon!$AH$4:$AI$10,2,FALSE),0)+IF('Crop 3'!$C$63=Carbon!$B72,'Crop 3'!$V$63*VLOOKUP('Crop 3'!$E$63,Carbon!$AH$4:$AI$10,2,FALSE),0)+IF('Crop 3'!$C$64=Carbon!$B72,'Crop 3'!$V$64*VLOOKUP('Crop 3'!$E$64,Carbon!$AH$4:$AI$10,2,FALSE),0)+IF('Crop 3'!$C$65=Carbon!$B72,'Crop 3'!$V$65*VLOOKUP('Crop 3'!$E$65,Carbon!$AH$4:$AI$10,2,FALSE),0))*$AL$20,2)","v":0},{"$f":"Q72*Inputs!$D$17","v":0},{"$f":"ROUND(T72/Inputs!D$19,2)","v":0},0,null,null,0,{"$f":"W72*Inputs!$D$13","v":0},0,{"$f":"Y72*Inputs!$D$13","v":0},0,{"$f":"AA72*Inputs!$D$13","v":0},{"$f":"ROUND(AD72/Inputs!D$19,2)","v":0},0]
[null,{"$f":"Defaults!AH39","v":"Cobra"},{"$f":"ROUND((IF('Crop 1'!$C$14=Carbon!$B73,'Crop 1'!$L$14*VLOOKUP('Crop 1'!$E$14,Carbon!$AH$4:$AI$10,2,FALSE),0)+IF('Crop 1'!$C$15=Carbon!$B73,'Crop 1'!$L$15*VLOOKUP('Crop 1'!$E$15,Carbon!$AH$4:$AI$10,2,FALSE),0)+IF('Crop 1'!$C$16=Carbon!$B73,'Crop 1'!$L$16*VLOOKUP('Crop 1'!$E$16,Carbon!$AH$4:$AI$10,2,FALSE),0)+IF('Crop 1'!$C$19=Carbon!$B73,'Crop 1'!$L$19*VLOOKUP('Crop 1'!$E$19,Carbon!$AH$4:$AI$10,2,FALSE),0)+IF('Crop 1'!$C$20=Carbon!$B73,'Crop 1'!$L$20*VLOOKUP('Crop 1'!$E$20,Carbon!$AH$4:$AI$10,2,FALSE),0)+IF('Crop 1'!$C$21=Carbon!$B73,'Crop 1'!$L$21*VLOOKUP('Crop 1'!$E$21,Carbon!$AH$4:$AI$10,2,FALSE),0)+IF('Crop 1'!$C$49=Carbon!$B73,'Crop 1'!$L$49*VLOOKUP('Crop 1'!$E$49,Carbon!$AH$4:$AI$10,2,FALSE),0)+IF('Crop 1'!$C$50=Carbon!$B73,'Crop 1'!$L$50*VLOOKUP('Crop 1'!$E$50,Carbon!$AH$4:$AI$10,2,FALSE),0)+IF('Crop 1'!$C$51=Carbon!$B73,'Crop 1'!$L$51*VLOOKUP('Crop 1'!$E$51,Carbon!$AH$4:$AI$10,2,FALSE),0)+IF('Crop 1'!$C$52=Carbon!$B73,'Crop 1'!$L$52*VLOOKUP('Crop 1'!$E$52,Carbon!$AH$4:$AI$10,2,FALSE),0)+IF('Crop 1'!$C$53=Carbon!$B73,'Crop 1'!$L$53*VLOOKUP('Crop 1'!$E$53,Carbon!$AH$4:$AI$10,2,FALSE),0)+IF('Crop 1'!$C$56=Carbon!$B73,'Crop 1'!$L$56*VLOOKUP('Crop 1'!$E$56,Carbon!$AH$4:$AI$10,2,FALSE),0)+IF('Crop 1'!$C$57=Carbon!$B73,'Crop 1'!$L$57*VLOOKUP('Crop 1'!$E$57,Carbon!$AH$4:$AI$10,2,FALSE),0)+IF('Crop 1'!$C$58=Carbon!$B73,'Crop 1'!$L$58*VLOOKUP('Crop 1'!$E$58,Carbon!$AH$4:$AI$10,2,FALSE),0)+IF('Crop 1'!$C$59=Carbon!$B73,'Crop 1'!$L$59*VLOOKUP('Crop 1'!$E$59,Carbon!$AH$4:$AI$10,2,FALSE),0)+IF('Crop 1'!$C$62=Carbon!$B73,'Crop 1'!$L$62*VLOOKUP('Crop 1'!$E$62,Carbon!$AH$4:$AI$10,2,FALSE),0)+IF('Crop 1'!$C$63=Carbon!$B73,'Crop 1'!$L$63*VLOOKUP('Crop 1'!$E$63,Carbon!$AH$4:$AI$10,2,FALSE),0)+IF('Crop 1'!$C$64=Carbon!$B73,'Crop 1'!$L$64*VLOOKUP('Crop 1'!$E$64,Carbon!$AH$4:$AI$10,2,FALSE),0)+IF('Crop 1'!$C$65=Carbon!$B73,'Crop 1'!$L$65*VLOOKUP('Crop 1'!$E$65,Carbon!$AH$4:$AI$10,2,FALSE),0))*$AL$20,2)","v":0},{"$f":"C73*Inputs!$D$13","v":0},{"$f":"ROUND((IF('Crop 2'!$C$14=Carbon!$B73,'Crop 2'!$L$14*VLOOKUP('Crop 2'!$E$14,Carbon!$AH$4:$AI$10,2,FALSE),0)+IF('Crop 2'!$C$15=Carbon!$B73,'Crop 2'!$L$15*VLOOKUP('Crop 2'!$E$15,Carbon!$AH$4:$AI$10,2,FALSE),0)+IF('Crop 2'!$C$16=Carbon!$B73,'Crop 2'!$L$16*VLOOKUP('Crop 2'!$E$16,Carbon!$AH$4:$AI$10,2,FALSE),0)+IF('Crop 2'!$C$19=Carbon!$B73,'Crop 2'!$L$19*VLOOKUP('Crop 2'!$E$19,Carbon!$AH$4:$AI$10,2,FALSE),0)+IF('Crop 2'!$C$20=Carbon!$B73,'Crop 2'!$L$20*VLOOKUP('Crop 2'!$E$20,Carbon!$AH$4:$AI$10,2,FALSE),0)+IF('Crop 2'!$C$21=Carbon!$B73,'Crop 2'!$L$21*VLOOKUP('Crop 2'!$E$21,Carbon!$AH$4:$AI$10,2,FALSE),0)+IF('Crop 2'!$C$49=Carbon!$B73,'Crop 2'!$L$49*VLOOKUP('Crop 2'!$E$49,Carbon!$AH$4:$AI$10,2,FALSE),0)+IF('Crop 2'!$C$50=Carbon!$B73,'Crop 2'!$L$50*VLOOKUP('Crop 2'!$E$50,Carbon!$AH$4:$AI$10,2,FALSE),0)+IF('Crop 2'!$C$51=Carbon!$B73,'Crop 2'!$L$51*VLOOKUP('Crop 2'!$E$51,Carbon!$AH$4:$AI$10,2,FALSE),0)+IF('Crop 2'!$C$52=Carbon!$B73,'Crop 2'!$L$52*VLOOKUP('Crop 2'!$E$52,Carbon!$AH$4:$AI$10,2,FALSE),0)+IF('Crop 2'!$C$53=Carbon!$B73,'Crop 2'!$L$53*VLOOKUP('Crop 2'!$E$53,Carbon!$AH$4:$AI$10,2,FALSE),0)+IF('Crop 2'!$C$56=Carbon!$B73,'Crop 2'!$L$56*VLOOKUP('Crop 2'!$E$56,Carbon!$AH$4:$AI$10,2,FALSE),0)+IF('Crop 2'!$C$57=Carbon!$B73,'Crop 2'!$L$57*VLOOKUP('Crop 2'!$E$57,Carbon!$AH$4:$AI$10,2,FALSE),0)+IF('Crop 2'!$C$58=Carbon!$B73,'Crop 2'!$L$58*VLOOKUP('Crop 2'!$E$58,Carbon!$AH$4:$AI$10,2,FALSE),0)+IF('Crop 2'!$C$59=Carbon!$B73,'Crop 2'!$L$59*VLOOKUP('Crop 2'!$E$59,Carbon!$AH$4:$AI$10,2,FALSE),0)+IF('Crop 2'!$C$62=Carbon!$B73,'Crop 2'!$L$62*VLOOKUP('Crop 2'!$E$62,Carbon!$AH$4:$AI$10,2,FALSE),0)+IF('Crop 2'!$C$63=Carbon!$B73,'Crop 2'!$L$63*VLOOKUP('Crop 2'!$E$63,Carbon!$AH$4:$AI$10,2,FALSE),0)+IF('Crop 2'!$C$64=Carbon!$B73,'Crop 2'!$L$64*VLOOKUP('Crop 2'!$E$64,Carbon!$AH$4:$AI$10,2,FALSE),0)+IF('Crop 2'!$C$65=Carbon!$B73,'Crop 2'!$L$65*VLOOKUP('Crop 2'!$E$65,Carbon!$AH$4:$AI$10,2,FALSE),0))*$AL$20,2)","v":0},{"$f":"E73*Inputs!$D$15","v":0},{"$f":"ROUND((IF('Crop 3'!$C$14=Carbon!$B73,'Crop 3'!$L$14*VLOOKUP('Crop 3'!$E$14,Carbon!$AH$4:$AI$10,2,FALSE),0)+IF('Crop 3'!$C$15=Carbon!$B73,'Crop 3'!$L$15*VLOOKUP('Crop 3'!$E$15,Carbon!$AH$4:$AI$10,2,FALSE),0)+IF('Crop 3'!$C$16=Carbon!$B73,'Crop 3'!$L$16*VLOOKUP('Crop 3'!$E$16,Carbon!$AH$4:$AI$10,2,FALSE),0)+IF('Crop 3'!$C$19=Carbon!$B73,'Crop 3'!$L$19*VLOOKUP('Crop 3'!$E$19,Carbon!$AH$4:$AI$10,2,FALSE),0)+IF('Crop 3'!$C$20=Carbon!$B73,'Crop 3'!$L$20*VLOOKUP('Crop 3'!$E$20,Carbon!$AH$4:$AI$10,2,FALSE),0)+IF('Crop 3'!$C$21=Carbon!$B73,'Crop 3'!$L$21*VLOOKUP('Crop 3'!$E$21,Carbon!$AH$4:$AI$10,2,FALSE),0)+IF('Crop 3'!$C$49=Carbon!$B73,'Crop 3'!$L$49*VLOOKUP('Crop 3'!$E$49,Carbon!$AH$4:$AI$10,2,FALSE),0)+IF('Crop 3'!$C$50=Carbon!$B73,'Crop 3'!$L$50*VLOOKUP('Crop 3'!$E$50,Carbon!$AH$4:$AI$10,2,FALSE),0)+IF('Crop 3'!$C$51=Carbon!$B73,'Crop 3'!$L$51*VLOOKUP('Crop 3'!$E$51,Carbon!$AH$4:$AI$10,2,FALSE),0)+IF('Crop 3'!$C$52=Carbon!$B73,'Crop 3'!$L$52*VLOOKUP('Crop 3'!$E$52,Carbon!$AH$4:$AI$10,2,FALSE),0)+IF('Crop 3'!$C$53=Carbon!$B73,'Crop 3'!$L$53*VLOOKUP('Crop 3'!$E$53,Carbon!$AH$4:$AI$10,2,FALSE),0)+IF('Crop 3'!$C$56=Carbon!$B73,'Crop 3'!$L$56*VLOOKUP('Crop 3'!$E$56,Carbon!$AH$4:$AI$10,2,FALSE),0)+IF('Crop 3'!$C$57=Carbon!$B73,'Crop 3'!$L$57*VLOOKUP('Crop 3'!$E$57,Carbon!$AH$4:$AI$10,2,FALSE),0)+IF('Crop 3'!$C$58=Carbon!$B73,'Crop 3'!$L$58*VLOOKUP('Crop 3'!$E$58,Carbon!$AH$4:$AI$10,2,FALSE),0)+IF('Crop 3'!$C$59=Carbon!$B73,'Crop 3'!$L$59*VLOOKUP('Crop 3'!$E$59,Carbon!$AH$4:$AI$10,2,FALSE),0)+IF('Crop 3'!$C$62=Carbon!$B73,'Crop 3'!$L$62*VLOOKUP('Crop 3'!$E$62,Carbon!$AH$4:$AI$10,2,FALSE),0)+IF('Crop 3'!$C$63=Carbon!$B73,'Crop 3'!$L$63*VLOOKUP('Crop 3'!$E$63,Carbon!$AH$4:$AI$10,2,FALSE),0)+IF('Crop 3'!$C$64=Carbon!$B73,'Crop 3'!$L$64*VLOOKUP('Crop 3'!$E$64,Carbon!$AH$4:$AI$10,2,FALSE),0)+IF('Crop 3'!$C$65=Carbon!$B73,'Crop 3'!$L$65*VLOOKUP('Crop 3'!$E$65,Carbon!$AH$4:$AI$10,2,FALSE),0))*$AL$20,2)","v":0},{"$f":"G73*Inputs!$D$17","v":0},{"$f":"ROUND(J73/Inputs!D$19,2)","v":0},0,null,null,{"$f":"ROUND((IF('Crop 1'!$C$14=Carbon!$B73,'Crop 1'!$V$14*VLOOKUP('Crop 1'!$E$14,Carbon!$AH$4:$AI$10,2,FALSE),0)+IF('Crop 1'!$C$15=Carbon!$B73,'Crop 1'!$V$15*VLOOKUP('Crop 1'!$E$15,Carbon!$AH$4:$AI$10,2,FALSE),0)+IF('Crop 1'!$C$16=Carbon!$B73,'Crop 1'!$V$16*VLOOKUP('Crop 1'!$E$16,Carbon!$AH$4:$AI$10,2,FALSE),0)+IF('Crop 1'!$C$19=Carbon!$B73,'Crop 1'!$V$19*VLOOKUP('Crop 1'!$E$19,Carbon!$AH$4:$AI$10,2,FALSE),0)+IF('Crop 1'!$C$20=Carbon!$B73,'Crop 1'!$V$20*VLOOKUP('Crop 1'!$E$20,Carbon!$AH$4:$AI$10,2,FALSE),0)+IF('Crop 1'!$C$21=Carbon!$B73,'Crop 1'!$V$21*VLOOKUP('Crop 1'!$E$21,Carbon!$AH$4:$AI$10,2,FALSE),0)+IF('Crop 1'!$C$49=Carbon!$B73,'Crop 1'!$V$49*VLOOKUP('Crop 1'!$E$49,Carbon!$AH$4:$AI$10,2,FALSE),0)+IF('Crop 1'!$C$50=Carbon!$B73,'Crop 1'!$V$50*VLOOKUP('Crop 1'!$E$50,Carbon!$AH$4:$AI$10,2,FALSE),0)+IF('Crop 1'!$C$51=Carbon!$B73,'Crop 1'!$V$51*VLOOKUP('Crop 1'!$E$51,Carbon!$AH$4:$AI$10,2,FALSE),0)+IF('Crop 1'!$C$52=Carbon!$B73,'Crop 1'!$V$52*VLOOKUP('Crop 1'!$E$52,Carbon!$AH$4:$AI$10,2,FALSE),0)+IF('Crop 1'!$C$53=Carbon!$B73,'Crop 1'!$V$53*VLOOKUP('Crop 1'!$E$53,Carbon!$AH$4:$AI$10,2,FALSE),0)+IF('Crop 1'!$C$56=Carbon!$B73,'Crop 1'!$V$56*VLOOKUP('Crop 1'!$E$56,Carbon!$AH$4:$AI$10,2,FALSE),0)+IF('Crop 1'!$C$57=Carbon!$B73,'Crop 1'!$V$57*VLOOKUP('Crop 1'!$E$57,Carbon!$AH$4:$AI$10,2,FALSE),0)+IF('Crop 1'!$C$58=Carbon!$B73,'Crop 1'!$V$58*VLOOKUP('Crop 1'!$E$58,Carbon!$AH$4:$AI$10,2,FALSE),0)+IF('Crop 1'!$C$59=Carbon!$B73,'Crop 1'!$V$59*VLOOKUP('Crop 1'!$E$59,Carbon!$AH$4:$AI$10,2,FALSE),0)+IF('Crop 1'!$C$62=Carbon!$B73,'Crop 1'!$V$62*VLOOKUP('Crop 1'!$E$62,Carbon!$AH$4:$AI$10,2,FALSE),0)+IF('Crop 1'!$C$63=Carbon!$B73,'Crop 1'!$V$63*VLOOKUP('Crop 1'!$E$63,Carbon!$AH$4:$AI$10,2,FALSE),0)+IF('Crop 1'!$C$64=Carbon!$B73,'Crop 1'!$V$64*VLOOKUP('Crop 1'!$E$64,Carbon!$AH$4:$AI$10,2,FALSE),0)+IF('Crop 1'!$C$65=Carbon!$B73,'Crop 1'!$V$65*VLOOKUP('Crop 1'!$E$65,Carbon!$AH$4:$AI$10,2,FALSE),0))*$AL$20,2)","v":0},{"$f":"M73*Inputs!$D$13","v":0},{"$f":"ROUND((IF('Crop 2'!$C$14=Carbon!$B73,'Crop 2'!$V$14*VLOOKUP('Crop 2'!$E$14,Carbon!$AH$4:$AI$10,2,FALSE),0)+IF('Crop 2'!$C$15=Carbon!$B73,'Crop 2'!$V$15*VLOOKUP('Crop 2'!$E$15,Carbon!$AH$4:$AI$10,2,FALSE),0)+IF('Crop 2'!$C$16=Carbon!$B73,'Crop 2'!$V$16*VLOOKUP('Crop 2'!$E$16,Carbon!$AH$4:$AI$10,2,FALSE),0)+IF('Crop 2'!$C$19=Carbon!$B73,'Crop 2'!$V$19*VLOOKUP('Crop 2'!$E$19,Carbon!$AH$4:$AI$10,2,FALSE),0)+IF('Crop 2'!$C$20=Carbon!$B73,'Crop 2'!$V$20*VLOOKUP('Crop 2'!$E$20,Carbon!$AH$4:$AI$10,2,FALSE),0)+IF('Crop 2'!$C$21=Carbon!$B73,'Crop 2'!$V$21*VLOOKUP('Crop 2'!$E$21,Carbon!$AH$4:$AI$10,2,FALSE),0)+IF('Crop 2'!$C$49=Carbon!$B73,'Crop 2'!$V$49*VLOOKUP('Crop 2'!$E$49,Carbon!$AH$4:$AI$10,2,FALSE),0)+IF('Crop 2'!$C$50=Carbon!$B73,'Crop 2'!$V$50*VLOOKUP('Crop 2'!$E$50,Carbon!$AH$4:$AI$10,2,FALSE),0)+IF('Crop 2'!$C$51=Carbon!$B73,'Crop 2'!$V$51*VLOOKUP('Crop 2'!$E$51,Carbon!$AH$4:$AI$10,2,FALSE),0)+IF('Crop 2'!$C$52=Carbon!$B73,'Crop 2'!$V$52*VLOOKUP('Crop 2'!$E$52,Carbon!$AH$4:$AI$10,2,FALSE),0)+IF('Crop 2'!$C$53=Carbon!$B73,'Crop 2'!$V$53*VLOOKUP('Crop 2'!$E$53,Carbon!$AH$4:$AI$10,2,FALSE),0)+IF('Crop 2'!$C$56=Carbon!$B73,'Crop 2'!$V$56*VLOOKUP('Crop 2'!$E$56,Carbon!$AH$4:$AI$10,2,FALSE),0)+IF('Crop 2'!$C$57=Carbon!$B73,'Crop 2'!$V$57*VLOOKUP('Crop 2'!$E$57,Carbon!$AH$4:$AI$10,2,FALSE),0)+IF('Crop 2'!$C$58=Carbon!$B73,'Crop 2'!$V$58*VLOOKUP('Crop 2'!$E$58,Carbon!$AH$4:$AI$10,2,FALSE),0)+IF('Crop 2'!$C$59=Carbon!$B73,'Crop 2'!$V$59*VLOOKUP('Crop 2'!$E$59,Carbon!$AH$4:$AI$10,2,FALSE),0)+IF('Crop 2'!$C$62=Carbon!$B73,'Crop 2'!$V$62*VLOOKUP('Crop 2'!$E$62,Carbon!$AH$4:$AI$10,2,FALSE),0)+IF('Crop 2'!$C$63=Carbon!$B73,'Crop 2'!$V$63*VLOOKUP('Crop 2'!$E$63,Carbon!$AH$4:$AI$10,2,FALSE),0)+IF('Crop 2'!$C$64=Carbon!$B73,'Crop 2'!$V$64*VLOOKUP('Crop 2'!$E$64,Carbon!$AH$4:$AI$10,2,FALSE),0)+IF('Crop 2'!$C$65=Carbon!$B73,'Crop 2'!$V$65*VLOOKUP('Crop 2'!$E$65,Carbon!$AH$4:$AI$10,2,FALSE),0))*$AL$20,2)","v":0},{"$f":"O73*Inputs!$D$15","v":0},{"$f":"ROUND((IF('Crop 3'!$C$14=Carbon!$B73,'Crop 3'!$V$14*VLOOKUP('Crop 3'!$E$14,Carbon!$AH$4:$AI$10,2,FALSE),0)+IF('Crop 3'!$C$15=Carbon!$B73,'Crop 3'!$V$15*VLOOKUP('Crop 3'!$E$15,Carbon!$AH$4:$AI$10,2,FALSE),0)+IF('Crop 3'!$C$16=Carbon!$B73,'Crop 3'!$V$16*VLOOKUP('Crop 3'!$E$16,Carbon!$AH$4:$AI$10,2,FALSE),0)+IF('Crop 3'!$C$19=Carbon!$B73,'Crop 3'!$V$19*VLOOKUP('Crop 3'!$E$19,Carbon!$AH$4:$AI$10,2,FALSE),0)+IF('Crop 3'!$C$20=Carbon!$B73,'Crop 3'!$V$20*VLOOKUP('Crop 3'!$E$20,Carbon!$AH$4:$AI$10,2,FALSE),0)+IF('Crop 3'!$C$21=Carbon!$B73,'Crop 3'!$V$21*VLOOKUP('Crop 3'!$E$21,Carbon!$AH$4:$AI$10,2,FALSE),0)+IF('Crop 3'!$C$49=Carbon!$B73,'Crop 3'!$V$49*VLOOKUP('Crop 3'!$E$49,Carbon!$AH$4:$AI$10,2,FALSE),0)+IF('Crop 3'!$C$50=Carbon!$B73,'Crop 3'!$V$50*VLOOKUP('Crop 3'!$E$50,Carbon!$AH$4:$AI$10,2,FALSE),0)+IF('Crop 3'!$C$51=Carbon!$B73,'Crop 3'!$V$51*VLOOKUP('Crop 3'!$E$51,Carbon!$AH$4:$AI$10,2,FALSE),0)+IF('Crop 3'!$C$52=Carbon!$B73,'Crop 3'!$V$52*VLOOKUP('Crop 3'!$E$52,Carbon!$AH$4:$AI$10,2,FALSE),0)+IF('Crop 3'!$C$53=Carbon!$B73,'Crop 3'!$V$53*VLOOKUP('Crop 3'!$E$53,Carbon!$AH$4:$AI$10,2,FALSE),0)+IF('Crop 3'!$C$56=Carbon!$B73,'Crop 3'!$V$56*VLOOKUP('Crop 3'!$E$56,Carbon!$AH$4:$AI$10,2,FALSE),0)+IF('Crop 3'!$C$57=Carbon!$B73,'Crop 3'!$V$57*VLOOKUP('Crop 3'!$E$57,Carbon!$AH$4:$AI$10,2,FALSE),0)+IF('Crop 3'!$C$58=Carbon!$B73,'Crop 3'!$V$58*VLOOKUP('Crop 3'!$E$58,Carbon!$AH$4:$AI$10,2,FALSE),0)+IF('Crop 3'!$C$59=Carbon!$B73,'Crop 3'!$V$59*VLOOKUP('Crop 3'!$E$59,Carbon!$AH$4:$AI$10,2,FALSE),0)+IF('Crop 3'!$C$62=Carbon!$B73,'Crop 3'!$V$62*VLOOKUP('Crop 3'!$E$62,Carbon!$AH$4:$AI$10,2,FALSE),0)+IF('Crop 3'!$C$63=Carbon!$B73,'Crop 3'!$V$63*VLOOKUP('Crop 3'!$E$63,Carbon!$AH$4:$AI$10,2,FALSE),0)+IF('Crop 3'!$C$64=Carbon!$B73,'Crop 3'!$V$64*VLOOKUP('Crop 3'!$E$64,Carbon!$AH$4:$AI$10,2,FALSE),0)+IF('Crop 3'!$C$65=Carbon!$B73,'Crop 3'!$V$65*VLOOKUP('Crop 3'!$E$65,Carbon!$AH$4:$AI$10,2,FALSE),0))*$AL$20,2)","v":0},{"$f":"Q73*Inputs!$D$17","v":0},{"$f":"ROUND(T73/Inputs!D$19,2)","v":0},0,null,null,0,{"$f":"W73*Inputs!$D$13","v":0},0,{"$f":"Y73*Inputs!$D$13","v":0},0,{"$f":"AA73*Inputs!$D$13","v":0},{"$f":"ROUND(AD73/Inputs!D$19,2)","v":0},0]
[null,{"$f":"Defaults!AH40","v":"Command"},{"$f":"ROUND((IF('Crop 1'!$C$14=Carbon!$B74,'Crop 1'!$L$14*VLOOKUP('Crop 1'!$E$14,Carbon!$AH$4:$AI$10,2,FALSE),0)+IF('Crop 1'!$C$15=Carbon!$B74,'Crop 1'!$L$15*VLOOKUP('Crop 1'!$E$15,Carbon!$AH$4:$AI$10,2,FALSE),0)+IF('Crop 1'!$C$16=Carbon!$B74,'Crop 1'!$L$16*VLOOKUP('Crop 1'!$E$16,Carbon!$AH$4:$AI$10,2,FALSE),0)+IF('Crop 1'!$C$19=Carbon!$B74,'Crop 1'!$L$19*VLOOKUP('Crop 1'!$E$19,Carbon!$AH$4:$AI$10,2,FALSE),0)+IF('Crop 1'!$C$20=Carbon!$B74,'Crop 1'!$L$20*VLOOKUP('Crop 1'!$E$20,Carbon!$AH$4:$AI$10,2,FALSE),0)+IF('Crop 1'!$C$21=Carbon!$B74,'Crop 1'!$L$21*VLOOKUP('Crop 1'!$E$21,Carbon!$AH$4:$AI$10,2,FALSE),0)+IF('Crop 1'!$C$49=Carbon!$B74,'Crop 1'!$L$49*VLOOKUP('Crop 1'!$E$49,Carbon!$AH$4:$AI$10,2,FALSE),0)+IF('Crop 1'!$C$50=Carbon!$B74,'Crop 1'!$L$50*VLOOKUP('Crop 1'!$E$50,Carbon!$AH$4:$AI$10,2,FALSE),0)+IF('Crop 1'!$C$51=Carbon!$B74,'Crop 1'!$L$51*VLOOKUP('Crop 1'!$E$51,Carbon!$AH$4:$AI$10,2,FALSE),0)+IF('Crop 1'!$C$52=Carbon!$B74,'Crop 1'!$L$52*VLOOKUP('Crop 1'!$E$52,Carbon!$AH$4:$AI$10,2,FALSE),0)+IF('Crop 1'!$C$53=Carbon!$B74,'Crop 1'!$L$53*VLOOKUP('Crop 1'!$E$53,Carbon!$AH$4:$AI$10,2,FALSE),0)+IF('Crop 1'!$C$56=Carbon!$B74,'Crop 1'!$L$56*VLOOKUP('Crop 1'!$E$56,Carbon!$AH$4:$AI$10,2,FALSE),0)+IF('Crop 1'!$C$57=Carbon!$B74,'Crop 1'!$L$57*VLOOKUP('Crop 1'!$E$57,Carbon!$AH$4:$AI$10,2,FALSE),0)+IF('Crop 1'!$C$58=Carbon!$B74,'Crop 1'!$L$58*VLOOKUP('Crop 1'!$E$58,Carbon!$AH$4:$AI$10,2,FALSE),0)+IF('Crop 1'!$C$59=Carbon!$B74,'Crop 1'!$L$59*VLOOKUP('Crop 1'!$E$59,Carbon!$AH$4:$AI$10,2,FALSE),0)+IF('Crop 1'!$C$62=Carbon!$B74,'Crop 1'!$L$62*VLOOKUP('Crop 1'!$E$62,Carbon!$AH$4:$AI$10,2,FALSE),0)+IF('Crop 1'!$C$63=Carbon!$B74,'Crop 1'!$L$63*VLOOKUP('Crop 1'!$E$63,Carbon!$AH$4:$AI$10,2,FALSE),0)+IF('Crop 1'!$C$64=Carbon!$B74,'Crop 1'!$L$64*VLOOKUP('Crop 1'!$E$64,Carbon!$AH$4:$AI$10,2,FALSE),0)+IF('Crop 1'!$C$65=Carbon!$B74,'Crop 1'!$L$65*VLOOKUP('Crop 1'!$E$65,Carbon!$AH$4:$AI$10,2,FALSE),0))*$AL$20,2)","v":0},{"$f":"C74*Inputs!$D$13","v":0},{"$f":"ROUND((IF('Crop 2'!$C$14=Carbon!$B74,'Crop 2'!$L$14*VLOOKUP('Crop 2'!$E$14,Carbon!$AH$4:$AI$10,2,FALSE),0)+IF('Crop 2'!$C$15=Carbon!$B74,'Crop 2'!$L$15*VLOOKUP('Crop 2'!$E$15,Carbon!$AH$4:$AI$10,2,FALSE),0)+IF('Crop 2'!$C$16=Carbon!$B74,'Crop 2'!$L$16*VLOOKUP('Crop 2'!$E$16,Carbon!$AH$4:$AI$10,2,FALSE),0)+IF('Crop 2'!$C$19=Carbon!$B74,'Crop 2'!$L$19*VLOOKUP('Crop 2'!$E$19,Carbon!$AH$4:$AI$10,2,FALSE),0)+IF('Crop 2'!$C$20=Carbon!$B74,'Crop 2'!$L$20*VLOOKUP('Crop 2'!$E$20,Carbon!$AH$4:$AI$10,2,FALSE),0)+IF('Crop 2'!$C$21=Carbon!$B74,'Crop 2'!$L$21*VLOOKUP('Crop 2'!$E$21,Carbon!$AH$4:$AI$10,2,FALSE),0)+IF('Crop 2'!$C$49=Carbon!$B74,'Crop 2'!$L$49*VLOOKUP('Crop 2'!$E$49,Carbon!$AH$4:$AI$10,2,FALSE),0)+IF('Crop 2'!$C$50=Carbon!$B74,'Crop 2'!$L$50*VLOOKUP('Crop 2'!$E$50,Carbon!$AH$4:$AI$10,2,FALSE),0)+IF('Crop 2'!$C$51=Carbon!$B74,'Crop 2'!$L$51*VLOOKUP('Crop 2'!$E$51,Carbon!$AH$4:$AI$10,2,FALSE),0)+IF('Crop 2'!$C$52=Carbon!$B74,'Crop 2'!$L$52*VLOOKUP('Crop 2'!$E$52,Carbon!$AH$4:$AI$10,2,FALSE),0)+IF('Crop 2'!$C$53=Carbon!$B74,'Crop 2'!$L$53*VLOOKUP('Crop 2'!$E$53,Carbon!$AH$4:$AI$10,2,FALSE),0)+IF('Crop 2'!$C$56=Carbon!$B74,'Crop 2'!$L$56*VLOOKUP('Crop 2'!$E$56,Carbon!$AH$4:$AI$10,2,FALSE),0)+IF('Crop 2'!$C$57=Carbon!$B74,'Crop 2'!$L$57*VLOOKUP('Crop 2'!$E$57,Carbon!$AH$4:$AI$10,2,FALSE),0)+IF('Crop 2'!$C$58=Carbon!$B74,'Crop 2'!$L$58*VLOOKUP('Crop 2'!$E$58,Carbon!$AH$4:$AI$10,2,FALSE),0)+IF('Crop 2'!$C$59=Carbon!$B74,'Crop 2'!$L$59*VLOOKUP('Crop 2'!$E$59,Carbon!$AH$4:$AI$10,2,FALSE),0)+IF('Crop 2'!$C$62=Carbon!$B74,'Crop 2'!$L$62*VLOOKUP('Crop 2'!$E$62,Carbon!$AH$4:$AI$10,2,FALSE),0)+IF('Crop 2'!$C$63=Carbon!$B74,'Crop 2'!$L$63*VLOOKUP('Crop 2'!$E$63,Carbon!$AH$4:$AI$10,2,FALSE),0)+IF('Crop 2'!$C$64=Carbon!$B74,'Crop 2'!$L$64*VLOOKUP('Crop 2'!$E$64,Carbon!$AH$4:$AI$10,2,FALSE),0)+IF('Crop 2'!$C$65=Carbon!$B74,'Crop 2'!$L$65*VLOOKUP('Crop 2'!$E$65,Carbon!$AH$4:$AI$10,2,FALSE),0))*$AL$20,2)","v":0},{"$f":"E74*Inputs!$D$15","v":0},{"$f":"ROUND((IF('Crop 3'!$C$14=Carbon!$B74,'Crop 3'!$L$14*VLOOKUP('Crop 3'!$E$14,Carbon!$AH$4:$AI$10,2,FALSE),0)+IF('Crop 3'!$C$15=Carbon!$B74,'Crop 3'!$L$15*VLOOKUP('Crop 3'!$E$15,Carbon!$AH$4:$AI$10,2,FALSE),0)+IF('Crop 3'!$C$16=Carbon!$B74,'Crop 3'!$L$16*VLOOKUP('Crop 3'!$E$16,Carbon!$AH$4:$AI$10,2,FALSE),0)+IF('Crop 3'!$C$19=Carbon!$B74,'Crop 3'!$L$19*VLOOKUP('Crop 3'!$E$19,Carbon!$AH$4:$AI$10,2,FALSE),0)+IF('Crop 3'!$C$20=Carbon!$B74,'Crop 3'!$L$20*VLOOKUP('Crop 3'!$E$20,Carbon!$AH$4:$AI$10,2,FALSE),0)+IF('Crop 3'!$C$21=Carbon!$B74,'Crop 3'!$L$21*VLOOKUP('Crop 3'!$E$21,Carbon!$AH$4:$AI$10,2,FALSE),0)+IF('Crop 3'!$C$49=Carbon!$B74,'Crop 3'!$L$49*VLOOKUP('Crop 3'!$E$49,Carbon!$AH$4:$AI$10,2,FALSE),0)+IF('Crop 3'!$C$50=Carbon!$B74,'Crop 3'!$L$50*VLOOKUP('Crop 3'!$E$50,Carbon!$AH$4:$AI$10,2,FALSE),0)+IF('Crop 3'!$C$51=Carbon!$B74,'Crop 3'!$L$51*VLOOKUP('Crop 3'!$E$51,Carbon!$AH$4:$AI$10,2,FALSE),0)+IF('Crop 3'!$C$52=Carbon!$B74,'Crop 3'!$L$52*VLOOKUP('Crop 3'!$E$52,Carbon!$AH$4:$AI$10,2,FALSE),0)+IF('Crop 3'!$C$53=Carbon!$B74,'Crop 3'!$L$53*VLOOKUP('Crop 3'!$E$53,Carbon!$AH$4:$AI$10,2,FALSE),0)+IF('Crop 3'!$C$56=Carbon!$B74,'Crop 3'!$L$56*VLOOKUP('Crop 3'!$E$56,Carbon!$AH$4:$AI$10,2,FALSE),0)+IF('Crop 3'!$C$57=Carbon!$B74,'Crop 3'!$L$57*VLOOKUP('Crop 3'!$E$57,Carbon!$AH$4:$AI$10,2,FALSE),0)+IF('Crop 3'!$C$58=Carbon!$B74,'Crop 3'!$L$58*VLOOKUP('Crop 3'!$E$58,Carbon!$AH$4:$AI$10,2,FALSE),0)+IF('Crop 3'!$C$59=Carbon!$B74,'Crop 3'!$L$59*VLOOKUP('Crop 3'!$E$59,Carbon!$AH$4:$AI$10,2,FALSE),0)+IF('Crop 3'!$C$62=Carbon!$B74,'Crop 3'!$L$62*VLOOKUP('Crop 3'!$E$62,Carbon!$AH$4:$AI$10,2,FALSE),0)+IF('Crop 3'!$C$63=Carbon!$B74,'Crop 3'!$L$63*VLOOKUP('Crop 3'!$E$63,Carbon!$AH$4:$AI$10,2,FALSE),0)+IF('Crop 3'!$C$64=Carbon!$B74,'Crop 3'!$L$64*VLOOKUP('Crop 3'!$E$64,Carbon!$AH$4:$AI$10,2,FALSE),0)+IF('Crop 3'!$C$65=Carbon!$B74,'Crop 3'!$L$65*VLOOKUP('Crop 3'!$E$65,Carbon!$AH$4:$AI$10,2,FALSE),0))*$AL$20,2)","v":0},{"$f":"G74*Inputs!$D$17","v":0},{"$f":"ROUND(J74/Inputs!D$19,2)","v":0},0,null,null,{"$f":"ROUND((IF('Crop 1'!$C$14=Carbon!$B74,'Crop 1'!$V$14*VLOOKUP('Crop 1'!$E$14,Carbon!$AH$4:$AI$10,2,FALSE),0)+IF('Crop 1'!$C$15=Carbon!$B74,'Crop 1'!$V$15*VLOOKUP('Crop 1'!$E$15,Carbon!$AH$4:$AI$10,2,FALSE),0)+IF('Crop 1'!$C$16=Carbon!$B74,'Crop 1'!$V$16*VLOOKUP('Crop 1'!$E$16,Carbon!$AH$4:$AI$10,2,FALSE),0)+IF('Crop 1'!$C$19=Carbon!$B74,'Crop 1'!$V$19*VLOOKUP('Crop 1'!$E$19,Carbon!$AH$4:$AI$10,2,FALSE),0)+IF('Crop 1'!$C$20=Carbon!$B74,'Crop 1'!$V$20*VLOOKUP('Crop 1'!$E$20,Carbon!$AH$4:$AI$10,2,FALSE),0)+IF('Crop 1'!$C$21=Carbon!$B74,'Crop 1'!$V$21*VLOOKUP('Crop 1'!$E$21,Carbon!$AH$4:$AI$10,2,FALSE),0)+IF('Crop 1'!$C$49=Carbon!$B74,'Crop 1'!$V$49*VLOOKUP('Crop 1'!$E$49,Carbon!$AH$4:$AI$10,2,FALSE),0)+IF('Crop 1'!$C$50=Carbon!$B74,'Crop 1'!$V$50*VLOOKUP('Crop 1'!$E$50,Carbon!$AH$4:$AI$10,2,FALSE),0)+IF('Crop 1'!$C$51=Carbon!$B74,'Crop 1'!$V$51*VLOOKUP('Crop 1'!$E$51,Carbon!$AH$4:$AI$10,2,FALSE),0)+IF('Crop 1'!$C$52=Carbon!$B74,'Crop 1'!$V$52*VLOOKUP('Crop 1'!$E$52,Carbon!$AH$4:$AI$10,2,FALSE),0)+IF('Crop 1'!$C$53=Carbon!$B74,'Crop 1'!$V$53*VLOOKUP('Crop 1'!$E$53,Carbon!$AH$4:$AI$10,2,FALSE),0)+IF('Crop 1'!$C$56=Carbon!$B74,'Crop 1'!$V$56*VLOOKUP('Crop 1'!$E$56,Carbon!$AH$4:$AI$10,2,FALSE),0)+IF('Crop 1'!$C$57=Carbon!$B74,'Crop 1'!$V$57*VLOOKUP('Crop 1'!$E$57,Carbon!$AH$4:$AI$10,2,FALSE),0)+IF('Crop 1'!$C$58=Carbon!$B74,'Crop 1'!$V$58*VLOOKUP('Crop 1'!$E$58,Carbon!$AH$4:$AI$10,2,FALSE),0)+IF('Crop 1'!$C$59=Carbon!$B74,'Crop 1'!$V$59*VLOOKUP('Crop 1'!$E$59,Carbon!$AH$4:$AI$10,2,FALSE),0)+IF('Crop 1'!$C$62=Carbon!$B74,'Crop 1'!$V$62*VLOOKUP('Crop 1'!$E$62,Carbon!$AH$4:$AI$10,2,FALSE),0)+IF('Crop 1'!$C$63=Carbon!$B74,'Crop 1'!$V$63*VLOOKUP('Crop 1'!$E$63,Carbon!$AH$4:$AI$10,2,FALSE),0)+IF('Crop 1'!$C$64=Carbon!$B74,'Crop 1'!$V$64*VLOOKUP('Crop 1'!$E$64,Carbon!$AH$4:$AI$10,2,FALSE),0)+IF('Crop 1'!$C$65=Carbon!$B74,'Crop 1'!$V$65*VLOOKUP('Crop 1'!$E$65,Carbon!$AH$4:$AI$10,2,FALSE),0))*$AL$20,2)","v":0},{"$f":"M74*Inputs!$D$13","v":0},{"$f":"ROUND((IF('Crop 2'!$C$14=Carbon!$B74,'Crop 2'!$V$14*VLOOKUP('Crop 2'!$E$14,Carbon!$AH$4:$AI$10,2,FALSE),0)+IF('Crop 2'!$C$15=Carbon!$B74,'Crop 2'!$V$15*VLOOKUP('Crop 2'!$E$15,Carbon!$AH$4:$AI$10,2,FALSE),0)+IF('Crop 2'!$C$16=Carbon!$B74,'Crop 2'!$V$16*VLOOKUP('Crop 2'!$E$16,Carbon!$AH$4:$AI$10,2,FALSE),0)+IF('Crop 2'!$C$19=Carbon!$B74,'Crop 2'!$V$19*VLOOKUP('Crop 2'!$E$19,Carbon!$AH$4:$AI$10,2,FALSE),0)+IF('Crop 2'!$C$20=Carbon!$B74,'Crop 2'!$V$20*VLOOKUP('Crop 2'!$E$20,Carbon!$AH$4:$AI$10,2,FALSE),0)+IF('Crop 2'!$C$21=Carbon!$B74,'Crop 2'!$V$21*VLOOKUP('Crop 2'!$E$21,Carbon!$AH$4:$AI$10,2,FALSE),0)+IF('Crop 2'!$C$49=Carbon!$B74,'Crop 2'!$V$49*VLOOKUP('Crop 2'!$E$49,Carbon!$AH$4:$AI$10,2,FALSE),0)+IF('Crop 2'!$C$50=Carbon!$B74,'Crop 2'!$V$50*VLOOKUP('Crop 2'!$E$50,Carbon!$AH$4:$AI$10,2,FALSE),0)+IF('Crop 2'!$C$51=Carbon!$B74,'Crop 2'!$V$51*VLOOKUP('Crop 2'!$E$51,Carbon!$AH$4:$AI$10,2,FALSE),0)+IF('Crop 2'!$C$52=Carbon!$B74,'Crop 2'!$V$52*VLOOKUP('Crop 2'!$E$52,Carbon!$AH$4:$AI$10,2,FALSE),0)+IF('Crop 2'!$C$53=Carbon!$B74,'Crop 2'!$V$53*VLOOKUP('Crop 2'!$E$53,Carbon!$AH$4:$AI$10,2,FALSE),0)+IF('Crop 2'!$C$56=Carbon!$B74,'Crop 2'!$V$56*VLOOKUP('Crop 2'!$E$56,Carbon!$AH$4:$AI$10,2,FALSE),0)+IF('Crop 2'!$C$57=Carbon!$B74,'Crop 2'!$V$57*VLOOKUP('Crop 2'!$E$57,Carbon!$AH$4:$AI$10,2,FALSE),0)+IF('Crop 2'!$C$58=Carbon!$B74,'Crop 2'!$V$58*VLOOKUP('Crop 2'!$E$58,Carbon!$AH$4:$AI$10,2,FALSE),0)+IF('Crop 2'!$C$59=Carbon!$B74,'Crop 2'!$V$59*VLOOKUP('Crop 2'!$E$59,Carbon!$AH$4:$AI$10,2,FALSE),0)+IF('Crop 2'!$C$62=Carbon!$B74,'Crop 2'!$V$62*VLOOKUP('Crop 2'!$E$62,Carbon!$AH$4:$AI$10,2,FALSE),0)+IF('Crop 2'!$C$63=Carbon!$B74,'Crop 2'!$V$63*VLOOKUP('Crop 2'!$E$63,Carbon!$AH$4:$AI$10,2,FALSE),0)+IF('Crop 2'!$C$64=Carbon!$B74,'Crop 2'!$V$64*VLOOKUP('Crop 2'!$E$64,Carbon!$AH$4:$AI$10,2,FALSE),0)+IF('Crop 2'!$C$65=Carbon!$B74,'Crop 2'!$V$65*VLOOKUP('Crop 2'!$E$65,Carbon!$AH$4:$AI$10,2,FALSE),0))*$AL$20,2)","v":0},{"$f":"O74*Inputs!$D$15","v":0},{"$f":"ROUND((IF('Crop 3'!$C$14=Carbon!$B74,'Crop 3'!$V$14*VLOOKUP('Crop 3'!$E$14,Carbon!$AH$4:$AI$10,2,FALSE),0)+IF('Crop 3'!$C$15=Carbon!$B74,'Crop 3'!$V$15*VLOOKUP('Crop 3'!$E$15,Carbon!$AH$4:$AI$10,2,FALSE),0)+IF('Crop 3'!$C$16=Carbon!$B74,'Crop 3'!$V$16*VLOOKUP('Crop 3'!$E$16,Carbon!$AH$4:$AI$10,2,FALSE),0)+IF('Crop 3'!$C$19=Carbon!$B74,'Crop 3'!$V$19*VLOOKUP('Crop 3'!$E$19,Carbon!$AH$4:$AI$10,2,FALSE),0)+IF('Crop 3'!$C$20=Carbon!$B74,'Crop 3'!$V$20*VLOOKUP('Crop 3'!$E$20,Carbon!$AH$4:$AI$10,2,FALSE),0)+IF('Crop 3'!$C$21=Carbon!$B74,'Crop 3'!$V$21*VLOOKUP('Crop 3'!$E$21,Carbon!$AH$4:$AI$10,2,FALSE),0)+IF('Crop 3'!$C$49=Carbon!$B74,'Crop 3'!$V$49*VLOOKUP('Crop 3'!$E$49,Carbon!$AH$4:$AI$10,2,FALSE),0)+IF('Crop 3'!$C$50=Carbon!$B74,'Crop 3'!$V$50*VLOOKUP('Crop 3'!$E$50,Carbon!$AH$4:$AI$10,2,FALSE),0)+IF('Crop 3'!$C$51=Carbon!$B74,'Crop 3'!$V$51*VLOOKUP('Crop 3'!$E$51,Carbon!$AH$4:$AI$10,2,FALSE),0)+IF('Crop 3'!$C$52=Carbon!$B74,'Crop 3'!$V$52*VLOOKUP('Crop 3'!$E$52,Carbon!$AH$4:$AI$10,2,FALSE),0)+IF('Crop 3'!$C$53=Carbon!$B74,'Crop 3'!$V$53*VLOOKUP('Crop 3'!$E$53,Carbon!$AH$4:$AI$10,2,FALSE),0)+IF('Crop 3'!$C$56=Carbon!$B74,'Crop 3'!$V$56*VLOOKUP('Crop 3'!$E$56,Carbon!$AH$4:$AI$10,2,FALSE),0)+IF('Crop 3'!$C$57=Carbon!$B74,'Crop 3'!$V$57*VLOOKUP('Crop 3'!$E$57,Carbon!$AH$4:$AI$10,2,FALSE),0)+IF('Crop 3'!$C$58=Carbon!$B74,'Crop 3'!$V$58*VLOOKUP('Crop 3'!$E$58,Carbon!$AH$4:$AI$10,2,FALSE),0)+IF('Crop 3'!$C$59=Carbon!$B74,'Crop 3'!$V$59*VLOOKUP('Crop 3'!$E$59,Carbon!$AH$4:$AI$10,2,FALSE),0)+IF('Crop 3'!$C$62=Carbon!$B74,'Crop 3'!$V$62*VLOOKUP('Crop 3'!$E$62,Carbon!$AH$4:$AI$10,2,FALSE),0)+IF('Crop 3'!$C$63=Carbon!$B74,'Crop 3'!$V$63*VLOOKUP('Crop 3'!$E$63,Carbon!$AH$4:$AI$10,2,FALSE),0)+IF('Crop 3'!$C$64=Carbon!$B74,'Crop 3'!$V$64*VLOOKUP('Crop 3'!$E$64,Carbon!$AH$4:$AI$10,2,FALSE),0)+IF('Crop 3'!$C$65=Carbon!$B74,'Crop 3'!$V$65*VLOOKUP('Crop 3'!$E$65,Carbon!$AH$4:$AI$10,2,FALSE),0))*$AL$20,2)","v":0},{"$f":"Q74*Inputs!$D$17","v":0},{"$f":"ROUND(T74/Inputs!D$19,2)","v":0},0,null,null,0,{"$f":"W74*Inputs!$D$13","v":0},0,{"$f":"Y74*Inputs!$D$13","v":0},0,{"$f":"AA74*Inputs!$D$13","v":0},{"$f":"ROUND(AD74/Inputs!D$19,2)","v":0},0]
[null,{"$f":"Defaults!AH41","v":"Corvus"},{"$f":"ROUND((IF('Crop 1'!$C$14=Carbon!$B75,'Crop 1'!$L$14*VLOOKUP('Crop 1'!$E$14,Carbon!$AH$4:$AI$10,2,FALSE),0)+IF('Crop 1'!$C$15=Carbon!$B75,'Crop 1'!$L$15*VLOOKUP('Crop 1'!$E$15,Carbon!$AH$4:$AI$10,2,FALSE),0)+IF('Crop 1'!$C$16=Carbon!$B75,'Crop 1'!$L$16*VLOOKUP('Crop 1'!$E$16,Carbon!$AH$4:$AI$10,2,FALSE),0)+IF('Crop 1'!$C$19=Carbon!$B75,'Crop 1'!$L$19*VLOOKUP('Crop 1'!$E$19,Carbon!$AH$4:$AI$10,2,FALSE),0)+IF('Crop 1'!$C$20=Carbon!$B75,'Crop 1'!$L$20*VLOOKUP('Crop 1'!$E$20,Carbon!$AH$4:$AI$10,2,FALSE),0)+IF('Crop 1'!$C$21=Carbon!$B75,'Crop 1'!$L$21*VLOOKUP('Crop 1'!$E$21,Carbon!$AH$4:$AI$10,2,FALSE),0)+IF('Crop 1'!$C$49=Carbon!$B75,'Crop 1'!$L$49*VLOOKUP('Crop 1'!$E$49,Carbon!$AH$4:$AI$10,2,FALSE),0)+IF('Crop 1'!$C$50=Carbon!$B75,'Crop 1'!$L$50*VLOOKUP('Crop 1'!$E$50,Carbon!$AH$4:$AI$10,2,FALSE),0)+IF('Crop 1'!$C$51=Carbon!$B75,'Crop 1'!$L$51*VLOOKUP('Crop 1'!$E$51,Carbon!$AH$4:$AI$10,2,FALSE),0)+IF('Crop 1'!$C$52=Carbon!$B75,'Crop 1'!$L$52*VLOOKUP('Crop 1'!$E$52,Carbon!$AH$4:$AI$10,2,FALSE),0)+IF('Crop 1'!$C$53=Carbon!$B75,'Crop 1'!$L$53*VLOOKUP('Crop 1'!$E$53,Carbon!$AH$4:$AI$10,2,FALSE),0)+IF('Crop 1'!$C$56=Carbon!$B75,'Crop 1'!$L$56*VLOOKUP('Crop 1'!$E$56,Carbon!$AH$4:$AI$10,2,FALSE),0)+IF('Crop 1'!$C$57=Carbon!$B75,'Crop 1'!$L$57*VLOOKUP('Crop 1'!$E$57,Carbon!$AH$4:$AI$10,2,FALSE),0)+IF('Crop 1'!$C$58=Carbon!$B75,'Crop 1'!$L$58*VLOOKUP('Crop 1'!$E$58,Carbon!$AH$4:$AI$10,2,FALSE),0)+IF('Crop 1'!$C$59=Carbon!$B75,'Crop 1'!$L$59*VLOOKUP('Crop 1'!$E$59,Carbon!$AH$4:$AI$10,2,FALSE),0)+IF('Crop 1'!$C$62=Carbon!$B75,'Crop 1'!$L$62*VLOOKUP('Crop 1'!$E$62,Carbon!$AH$4:$AI$10,2,FALSE),0)+IF('Crop 1'!$C$63=Carbon!$B75,'Crop 1'!$L$63*VLOOKUP('Crop 1'!$E$63,Carbon!$AH$4:$AI$10,2,FALSE),0)+IF('Crop 1'!$C$64=Carbon!$B75,'Crop 1'!$L$64*VLOOKUP('Crop 1'!$E$64,Carbon!$AH$4:$AI$10,2,FALSE),0)+IF('Crop 1'!$C$65=Carbon!$B75,'Crop 1'!$L$65*VLOOKUP('Crop 1'!$E$65,Carbon!$AH$4:$AI$10,2,FALSE),0))*$AL$20,2)","v":0},{"$f":"C75*Inputs!$D$13","v":0},{"$f":"ROUND((IF('Crop 2'!$C$14=Carbon!$B75,'Crop 2'!$L$14*VLOOKUP('Crop 2'!$E$14,Carbon!$AH$4:$AI$10,2,FALSE),0)+IF('Crop 2'!$C$15=Carbon!$B75,'Crop 2'!$L$15*VLOOKUP('Crop 2'!$E$15,Carbon!$AH$4:$AI$10,2,FALSE),0)+IF('Crop 2'!$C$16=Carbon!$B75,'Crop 2'!$L$16*VLOOKUP('Crop 2'!$E$16,Carbon!$AH$4:$AI$10,2,FALSE),0)+IF('Crop 2'!$C$19=Carbon!$B75,'Crop 2'!$L$19*VLOOKUP('Crop 2'!$E$19,Carbon!$AH$4:$AI$10,2,FALSE),0)+IF('Crop 2'!$C$20=Carbon!$B75,'Crop 2'!$L$20*VLOOKUP('Crop 2'!$E$20,Carbon!$AH$4:$AI$10,2,FALSE),0)+IF('Crop 2'!$C$21=Carbon!$B75,'Crop 2'!$L$21*VLOOKUP('Crop 2'!$E$21,Carbon!$AH$4:$AI$10,2,FALSE),0)+IF('Crop 2'!$C$49=Carbon!$B75,'Crop 2'!$L$49*VLOOKUP('Crop 2'!$E$49,Carbon!$AH$4:$AI$10,2,FALSE),0)+IF('Crop 2'!$C$50=Carbon!$B75,'Crop 2'!$L$50*VLOOKUP('Crop 2'!$E$50,Carbon!$AH$4:$AI$10,2,FALSE),0)+IF('Crop 2'!$C$51=Carbon!$B75,'Crop 2'!$L$51*VLOOKUP('Crop 2'!$E$51,Carbon!$AH$4:$AI$10,2,FALSE),0)+IF('Crop 2'!$C$52=Carbon!$B75,'Crop 2'!$L$52*VLOOKUP('Crop 2'!$E$52,Carbon!$AH$4:$AI$10,2,FALSE),0)+IF('Crop 2'!$C$53=Carbon!$B75,'Crop 2'!$L$53*VLOOKUP('Crop 2'!$E$53,Carbon!$AH$4:$AI$10,2,FALSE),0)+IF('Crop 2'!$C$56=Carbon!$B75,'Crop 2'!$L$56*VLOOKUP('Crop 2'!$E$56,Carbon!$AH$4:$AI$10,2,FALSE),0)+IF('Crop 2'!$C$57=Carbon!$B75,'Crop 2'!$L$57*VLOOKUP('Crop 2'!$E$57,Carbon!$AH$4:$AI$10,2,FALSE),0)+IF('Crop 2'!$C$58=Carbon!$B75,'Crop 2'!$L$58*VLOOKUP('Crop 2'!$E$58,Carbon!$AH$4:$AI$10,2,FALSE),0)+IF('Crop 2'!$C$59=Carbon!$B75,'Crop 2'!$L$59*VLOOKUP('Crop 2'!$E$59,Carbon!$AH$4:$AI$10,2,FALSE),0)+IF('Crop 2'!$C$62=Carbon!$B75,'Crop 2'!$L$62*VLOOKUP('Crop 2'!$E$62,Carbon!$AH$4:$AI$10,2,FALSE),0)+IF('Crop 2'!$C$63=Carbon!$B75,'Crop 2'!$L$63*VLOOKUP('Crop 2'!$E$63,Carbon!$AH$4:$AI$10,2,FALSE),0)+IF('Crop 2'!$C$64=Carbon!$B75,'Crop 2'!$L$64*VLOOKUP('Crop 2'!$E$64,Carbon!$AH$4:$AI$10,2,FALSE),0)+IF('Crop 2'!$C$65=Carbon!$B75,'Crop 2'!$L$65*VLOOKUP('Crop 2'!$E$65,Carbon!$AH$4:$AI$10,2,FALSE),0))*$AL$20,2)","v":0},{"$f":"E75*Inputs!$D$15","v":0},{"$f":"ROUND((IF('Crop 3'!$C$14=Carbon!$B75,'Crop 3'!$L$14*VLOOKUP('Crop 3'!$E$14,Carbon!$AH$4:$AI$10,2,FALSE),0)+IF('Crop 3'!$C$15=Carbon!$B75,'Crop 3'!$L$15*VLOOKUP('Crop 3'!$E$15,Carbon!$AH$4:$AI$10,2,FALSE),0)+IF('Crop 3'!$C$16=Carbon!$B75,'Crop 3'!$L$16*VLOOKUP('Crop 3'!$E$16,Carbon!$AH$4:$AI$10,2,FALSE),0)+IF('Crop 3'!$C$19=Carbon!$B75,'Crop 3'!$L$19*VLOOKUP('Crop 3'!$E$19,Carbon!$AH$4:$AI$10,2,FALSE),0)+IF('Crop 3'!$C$20=Carbon!$B75,'Crop 3'!$L$20*VLOOKUP('Crop 3'!$E$20,Carbon!$AH$4:$AI$10,2,FALSE),0)+IF('Crop 3'!$C$21=Carbon!$B75,'Crop 3'!$L$21*VLOOKUP('Crop 3'!$E$21,Carbon!$AH$4:$AI$10,2,FALSE),0)+IF('Crop 3'!$C$49=Carbon!$B75,'Crop 3'!$L$49*VLOOKUP('Crop 3'!$E$49,Carbon!$AH$4:$AI$10,2,FALSE),0)+IF('Crop 3'!$C$50=Carbon!$B75,'Crop 3'!$L$50*VLOOKUP('Crop 3'!$E$50,Carbon!$AH$4:$AI$10,2,FALSE),0)+IF('Crop 3'!$C$51=Carbon!$B75,'Crop 3'!$L$51*VLOOKUP('Crop 3'!$E$51,Carbon!$AH$4:$AI$10,2,FALSE),0)+IF('Crop 3'!$C$52=Carbon!$B75,'Crop 3'!$L$52*VLOOKUP('Crop 3'!$E$52,Carbon!$AH$4:$AI$10,2,FALSE),0)+IF('Crop 3'!$C$53=Carbon!$B75,'Crop 3'!$L$53*VLOOKUP('Crop 3'!$E$53,Carbon!$AH$4:$AI$10,2,FALSE),0)+IF('Crop 3'!$C$56=Carbon!$B75,'Crop 3'!$L$56*VLOOKUP('Crop 3'!$E$56,Carbon!$AH$4:$AI$10,2,FALSE),0)+IF('Crop 3'!$C$57=Carbon!$B75,'Crop 3'!$L$57*VLOOKUP('Crop 3'!$E$57,Carbon!$AH$4:$AI$10,2,FALSE),0)+IF('Crop 3'!$C$58=Carbon!$B75,'Crop 3'!$L$58*VLOOKUP('Crop 3'!$E$58,Carbon!$AH$4:$AI$10,2,FALSE),0)+IF('Crop 3'!$C$59=Carbon!$B75,'Crop 3'!$L$59*VLOOKUP('Crop 3'!$E$59,Carbon!$AH$4:$AI$10,2,FALSE),0)+IF('Crop 3'!$C$62=Carbon!$B75,'Crop 3'!$L$62*VLOOKUP('Crop 3'!$E$62,Carbon!$AH$4:$AI$10,2,FALSE),0)+IF('Crop 3'!$C$63=Carbon!$B75,'Crop 3'!$L$63*VLOOKUP('Crop 3'!$E$63,Carbon!$AH$4:$AI$10,2,FALSE),0)+IF('Crop 3'!$C$64=Carbon!$B75,'Crop 3'!$L$64*VLOOKUP('Crop 3'!$E$64,Carbon!$AH$4:$AI$10,2,FALSE),0)+IF('Crop 3'!$C$65=Carbon!$B75,'Crop 3'!$L$65*VLOOKUP('Crop 3'!$E$65,Carbon!$AH$4:$AI$10,2,FALSE),0))*$AL$20,2)","v":0},{"$f":"G75*Inputs!$D$17","v":0},{"$f":"ROUND(J75/Inputs!D$19,2)","v":0},0,null,null,{"$f":"ROUND((IF('Crop 1'!$C$14=Carbon!$B75,'Crop 1'!$V$14*VLOOKUP('Crop 1'!$E$14,Carbon!$AH$4:$AI$10,2,FALSE),0)+IF('Crop 1'!$C$15=Carbon!$B75,'Crop 1'!$V$15*VLOOKUP('Crop 1'!$E$15,Carbon!$AH$4:$AI$10,2,FALSE),0)+IF('Crop 1'!$C$16=Carbon!$B75,'Crop 1'!$V$16*VLOOKUP('Crop 1'!$E$16,Carbon!$AH$4:$AI$10,2,FALSE),0)+IF('Crop 1'!$C$19=Carbon!$B75,'Crop 1'!$V$19*VLOOKUP('Crop 1'!$E$19,Carbon!$AH$4:$AI$10,2,FALSE),0)+IF('Crop 1'!$C$20=Carbon!$B75,'Crop 1'!$V$20*VLOOKUP('Crop 1'!$E$20,Carbon!$AH$4:$AI$10,2,FALSE),0)+IF('Crop 1'!$C$21=Carbon!$B75,'Crop 1'!$V$21*VLOOKUP('Crop 1'!$E$21,Carbon!$AH$4:$AI$10,2,FALSE),0)+IF('Crop 1'!$C$49=Carbon!$B75,'Crop 1'!$V$49*VLOOKUP('Crop 1'!$E$49,Carbon!$AH$4:$AI$10,2,FALSE),0)+IF('Crop 1'!$C$50=Carbon!$B75,'Crop 1'!$V$50*VLOOKUP('Crop 1'!$E$50,Carbon!$AH$4:$AI$10,2,FALSE),0)+IF('Crop 1'!$C$51=Carbon!$B75,'Crop 1'!$V$51*VLOOKUP('Crop 1'!$E$51,Carbon!$AH$4:$AI$10,2,FALSE),0)+IF('Crop 1'!$C$52=Carbon!$B75,'Crop 1'!$V$52*VLOOKUP('Crop 1'!$E$52,Carbon!$AH$4:$AI$10,2,FALSE),0)+IF('Crop 1'!$C$53=Carbon!$B75,'Crop 1'!$V$53*VLOOKUP('Crop 1'!$E$53,Carbon!$AH$4:$AI$10,2,FALSE),0)+IF('Crop 1'!$C$56=Carbon!$B75,'Crop 1'!$V$56*VLOOKUP('Crop 1'!$E$56,Carbon!$AH$4:$AI$10,2,FALSE),0)+IF('Crop 1'!$C$57=Carbon!$B75,'Crop 1'!$V$57*VLOOKUP('Crop 1'!$E$57,Carbon!$AH$4:$AI$10,2,FALSE),0)+IF('Crop 1'!$C$58=Carbon!$B75,'Crop 1'!$V$58*VLOOKUP('Crop 1'!$E$58,Carbon!$AH$4:$AI$10,2,FALSE),0)+IF('Crop 1'!$C$59=Carbon!$B75,'Crop 1'!$V$59*VLOOKUP('Crop 1'!$E$59,Carbon!$AH$4:$AI$10,2,FALSE),0)+IF('Crop 1'!$C$62=Carbon!$B75,'Crop 1'!$V$62*VLOOKUP('Crop 1'!$E$62,Carbon!$AH$4:$AI$10,2,FALSE),0)+IF('Crop 1'!$C$63=Carbon!$B75,'Crop 1'!$V$63*VLOOKUP('Crop 1'!$E$63,Carbon!$AH$4:$AI$10,2,FALSE),0)+IF('Crop 1'!$C$64=Carbon!$B75,'Crop 1'!$V$64*VLOOKUP('Crop 1'!$E$64,Carbon!$AH$4:$AI$10,2,FALSE),0)+IF('Crop 1'!$C$65=Carbon!$B75,'Crop 1'!$V$65*VLOOKUP('Crop 1'!$E$65,Carbon!$AH$4:$AI$10,2,FALSE),0))*$AL$20,2)","v":0},{"$f":"M75*Inputs!$D$13","v":0},{"$f":"ROUND((IF('Crop 2'!$C$14=Carbon!$B75,'Crop 2'!$V$14*VLOOKUP('Crop 2'!$E$14,Carbon!$AH$4:$AI$10,2,FALSE),0)+IF('Crop 2'!$C$15=Carbon!$B75,'Crop 2'!$V$15*VLOOKUP('Crop 2'!$E$15,Carbon!$AH$4:$AI$10,2,FALSE),0)+IF('Crop 2'!$C$16=Carbon!$B75,'Crop 2'!$V$16*VLOOKUP('Crop 2'!$E$16,Carbon!$AH$4:$AI$10,2,FALSE),0)+IF('Crop 2'!$C$19=Carbon!$B75,'Crop 2'!$V$19*VLOOKUP('Crop 2'!$E$19,Carbon!$AH$4:$AI$10,2,FALSE),0)+IF('Crop 2'!$C$20=Carbon!$B75,'Crop 2'!$V$20*VLOOKUP('Crop 2'!$E$20,Carbon!$AH$4:$AI$10,2,FALSE),0)+IF('Crop 2'!$C$21=Carbon!$B75,'Crop 2'!$V$21*VLOOKUP('Crop 2'!$E$21,Carbon!$AH$4:$AI$10,2,FALSE),0)+IF('Crop 2'!$C$49=Carbon!$B75,'Crop 2'!$V$49*VLOOKUP('Crop 2'!$E$49,Carbon!$AH$4:$AI$10,2,FALSE),0)+IF('Crop 2'!$C$50=Carbon!$B75,'Crop 2'!$V$50*VLOOKUP('Crop 2'!$E$50,Carbon!$AH$4:$AI$10,2,FALSE),0)+IF('Crop 2'!$C$51=Carbon!$B75,'Crop 2'!$V$51*VLOOKUP('Crop 2'!$E$51,Carbon!$AH$4:$AI$10,2,FALSE),0)+IF('Crop 2'!$C$52=Carbon!$B75,'Crop 2'!$V$52*VLOOKUP('Crop 2'!$E$52,Carbon!$AH$4:$AI$10,2,FALSE),0)+IF('Crop 2'!$C$53=Carbon!$B75,'Crop 2'!$V$53*VLOOKUP('Crop 2'!$E$53,Carbon!$AH$4:$AI$10,2,FALSE),0)+IF('Crop 2'!$C$56=Carbon!$B75,'Crop 2'!$V$56*VLOOKUP('Crop 2'!$E$56,Carbon!$AH$4:$AI$10,2,FALSE),0)+IF('Crop 2'!$C$57=Carbon!$B75,'Crop 2'!$V$57*VLOOKUP('Crop 2'!$E$57,Carbon!$AH$4:$AI$10,2,FALSE),0)+IF('Crop 2'!$C$58=Carbon!$B75,'Crop 2'!$V$58*VLOOKUP('Crop 2'!$E$58,Carbon!$AH$4:$AI$10,2,FALSE),0)+IF('Crop 2'!$C$59=Carbon!$B75,'Crop 2'!$V$59*VLOOKUP('Crop 2'!$E$59,Carbon!$AH$4:$AI$10,2,FALSE),0)+IF('Crop 2'!$C$62=Carbon!$B75,'Crop 2'!$V$62*VLOOKUP('Crop 2'!$E$62,Carbon!$AH$4:$AI$10,2,FALSE),0)+IF('Crop 2'!$C$63=Carbon!$B75,'Crop 2'!$V$63*VLOOKUP('Crop 2'!$E$63,Carbon!$AH$4:$AI$10,2,FALSE),0)+IF('Crop 2'!$C$64=Carbon!$B75,'Crop 2'!$V$64*VLOOKUP('Crop 2'!$E$64,Carbon!$AH$4:$AI$10,2,FALSE),0)+IF('Crop 2'!$C$65=Carbon!$B75,'Crop 2'!$V$65*VLOOKUP('Crop 2'!$E$65,Carbon!$AH$4:$AI$10,2,FALSE),0))*$AL$20,2)","v":0},{"$f":"O75*Inputs!$D$15","v":0},{"$f":"ROUND((IF('Crop 3'!$C$14=Carbon!$B75,'Crop 3'!$V$14*VLOOKUP('Crop 3'!$E$14,Carbon!$AH$4:$AI$10,2,FALSE),0)+IF('Crop 3'!$C$15=Carbon!$B75,'Crop 3'!$V$15*VLOOKUP('Crop 3'!$E$15,Carbon!$AH$4:$AI$10,2,FALSE),0)+IF('Crop 3'!$C$16=Carbon!$B75,'Crop 3'!$V$16*VLOOKUP('Crop 3'!$E$16,Carbon!$AH$4:$AI$10,2,FALSE),0)+IF('Crop 3'!$C$19=Carbon!$B75,'Crop 3'!$V$19*VLOOKUP('Crop 3'!$E$19,Carbon!$AH$4:$AI$10,2,FALSE),0)+IF('Crop 3'!$C$20=Carbon!$B75,'Crop 3'!$V$20*VLOOKUP('Crop 3'!$E$20,Carbon!$AH$4:$AI$10,2,FALSE),0)+IF('Crop 3'!$C$21=Carbon!$B75,'Crop 3'!$V$21*VLOOKUP('Crop 3'!$E$21,Carbon!$AH$4:$AI$10,2,FALSE),0)+IF('Crop 3'!$C$49=Carbon!$B75,'Crop 3'!$V$49*VLOOKUP('Crop 3'!$E$49,Carbon!$AH$4:$AI$10,2,FALSE),0)+IF('Crop 3'!$C$50=Carbon!$B75,'Crop 3'!$V$50*VLOOKUP('Crop 3'!$E$50,Carbon!$AH$4:$AI$10,2,FALSE),0)+IF('Crop 3'!$C$51=Carbon!$B75,'Crop 3'!$V$51*VLOOKUP('Crop 3'!$E$51,Carbon!$AH$4:$AI$10,2,FALSE),0)+IF('Crop 3'!$C$52=Carbon!$B75,'Crop 3'!$V$52*VLOOKUP('Crop 3'!$E$52,Carbon!$AH$4:$AI$10,2,FALSE),0)+IF('Crop 3'!$C$53=Carbon!$B75,'Crop 3'!$V$53*VLOOKUP('Crop 3'!$E$53,Carbon!$AH$4:$AI$10,2,FALSE),0)+IF('Crop 3'!$C$56=Carbon!$B75,'Crop 3'!$V$56*VLOOKUP('Crop 3'!$E$56,Carbon!$AH$4:$AI$10,2,FALSE),0)+IF('Crop 3'!$C$57=Carbon!$B75,'Crop 3'!$V$57*VLOOKUP('Crop 3'!$E$57,Carbon!$AH$4:$AI$10,2,FALSE),0)+IF('Crop 3'!$C$58=Carbon!$B75,'Crop 3'!$V$58*VLOOKUP('Crop 3'!$E$58,Carbon!$AH$4:$AI$10,2,FALSE),0)+IF('Crop 3'!$C$59=Carbon!$B75,'Crop 3'!$V$59*VLOOKUP('Crop 3'!$E$59,Carbon!$AH$4:$AI$10,2,FALSE),0)+IF('Crop 3'!$C$62=Carbon!$B75,'Crop 3'!$V$62*VLOOKUP('Crop 3'!$E$62,Carbon!$AH$4:$AI$10,2,FALSE),0)+IF('Crop 3'!$C$63=Carbon!$B75,'Crop 3'!$V$63*VLOOKUP('Crop 3'!$E$63,Carbon!$AH$4:$AI$10,2,FALSE),0)+IF('Crop 3'!$C$64=Carbon!$B75,'Crop 3'!$V$64*VLOOKUP('Crop 3'!$E$64,Carbon!$AH$4:$AI$10,2,FALSE),0)+IF('Crop 3'!$C$65=Carbon!$B75,'Crop 3'!$V$65*VLOOKUP('Crop 3'!$E$65,Carbon!$AH$4:$AI$10,2,FALSE),0))*$AL$20,2)","v":0},{"$f":"Q75*Inputs!$D$17","v":0},{"$f":"ROUND(T75/Inputs!D$19,2)","v":0},0,null,null,0,{"$f":"W75*Inputs!$D$13","v":0},0,{"$f":"Y75*Inputs!$D$13","v":0},0,{"$f":"AA75*Inputs!$D$13","v":0},{"$f":"ROUND(AD75/Inputs!D$19,2)","v":0},0]
[null,{"$f":"Defaults!AH42","v":"Cotoran"},{"$f":"ROUND((IF('Crop 1'!$C$14=Carbon!$B76,'Crop 1'!$L$14*VLOOKUP('Crop 1'!$E$14,Carbon!$AH$4:$AI$10,2,FALSE),0)+IF('Crop 1'!$C$15=Carbon!$B76,'Crop 1'!$L$15*VLOOKUP('Crop 1'!$E$15,Carbon!$AH$4:$AI$10,2,FALSE),0)+IF('Crop 1'!$C$16=Carbon!$B76,'Crop 1'!$L$16*VLOOKUP('Crop 1'!$E$16,Carbon!$AH$4:$AI$10,2,FALSE),0)+IF('Crop 1'!$C$19=Carbon!$B76,'Crop 1'!$L$19*VLOOKUP('Crop 1'!$E$19,Carbon!$AH$4:$AI$10,2,FALSE),0)+IF('Crop 1'!$C$20=Carbon!$B76,'Crop 1'!$L$20*VLOOKUP('Crop 1'!$E$20,Carbon!$AH$4:$AI$10,2,FALSE),0)+IF('Crop 1'!$C$21=Carbon!$B76,'Crop 1'!$L$21*VLOOKUP('Crop 1'!$E$21,Carbon!$AH$4:$AI$10,2,FALSE),0)+IF('Crop 1'!$C$49=Carbon!$B76,'Crop 1'!$L$49*VLOOKUP('Crop 1'!$E$49,Carbon!$AH$4:$AI$10,2,FALSE),0)+IF('Crop 1'!$C$50=Carbon!$B76,'Crop 1'!$L$50*VLOOKUP('Crop 1'!$E$50,Carbon!$AH$4:$AI$10,2,FALSE),0)+IF('Crop 1'!$C$51=Carbon!$B76,'Crop 1'!$L$51*VLOOKUP('Crop 1'!$E$51,Carbon!$AH$4:$AI$10,2,FALSE),0)+IF('Crop 1'!$C$52=Carbon!$B76,'Crop 1'!$L$52*VLOOKUP('Crop 1'!$E$52,Carbon!$AH$4:$AI$10,2,FALSE),0)+IF('Crop 1'!$C$53=Carbon!$B76,'Crop 1'!$L$53*VLOOKUP('Crop 1'!$E$53,Carbon!$AH$4:$AI$10,2,FALSE),0)+IF('Crop 1'!$C$56=Carbon!$B76,'Crop 1'!$L$56*VLOOKUP('Crop 1'!$E$56,Carbon!$AH$4:$AI$10,2,FALSE),0)+IF('Crop 1'!$C$57=Carbon!$B76,'Crop 1'!$L$57*VLOOKUP('Crop 1'!$E$57,Carbon!$AH$4:$AI$10,2,FALSE),0)+IF('Crop 1'!$C$58=Carbon!$B76,'Crop 1'!$L$58*VLOOKUP('Crop 1'!$E$58,Carbon!$AH$4:$AI$10,2,FALSE),0)+IF('Crop 1'!$C$59=Carbon!$B76,'Crop 1'!$L$59*VLOOKUP('Crop 1'!$E$59,Carbon!$AH$4:$AI$10,2,FALSE),0)+IF('Crop 1'!$C$62=Carbon!$B76,'Crop 1'!$L$62*VLOOKUP('Crop 1'!$E$62,Carbon!$AH$4:$AI$10,2,FALSE),0)+IF('Crop 1'!$C$63=Carbon!$B76,'Crop 1'!$L$63*VLOOKUP('Crop 1'!$E$63,Carbon!$AH$4:$AI$10,2,FALSE),0)+IF('Crop 1'!$C$64=Carbon!$B76,'Crop 1'!$L$64*VLOOKUP('Crop 1'!$E$64,Carbon!$AH$4:$AI$10,2,FALSE),0)+IF('Crop 1'!$C$65=Carbon!$B76,'Crop 1'!$L$65*VLOOKUP('Crop 1'!$E$65,Carbon!$AH$4:$AI$10,2,FALSE),0))*$AL$20,2)","v":5.56},{"$f":"C76*Inputs!$D$13","v":1667.9999999999998},{"$f":"ROUND((IF('Crop 2'!$C$14=Carbon!$B76,'Crop 2'!$L$14*VLOOKUP('Crop 2'!$E$14,Carbon!$AH$4:$AI$10,2,FALSE),0)+IF('Crop 2'!$C$15=Carbon!$B76,'Crop 2'!$L$15*VLOOKUP('Crop 2'!$E$15,Carbon!$AH$4:$AI$10,2,FALSE),0)+IF('Crop 2'!$C$16=Carbon!$B76,'Crop 2'!$L$16*VLOOKUP('Crop 2'!$E$16,Carbon!$AH$4:$AI$10,2,FALSE),0)+IF('Crop 2'!$C$19=Carbon!$B76,'Crop 2'!$L$19*VLOOKUP('Crop 2'!$E$19,Carbon!$AH$4:$AI$10,2,FALSE),0)+IF('Crop 2'!$C$20=Carbon!$B76,'Crop 2'!$L$20*VLOOKUP('Crop 2'!$E$20,Carbon!$AH$4:$AI$10,2,FALSE),0)+IF('Crop 2'!$C$21=Carbon!$B76,'Crop 2'!$L$21*VLOOKUP('Crop 2'!$E$21,Carbon!$AH$4:$AI$10,2,FALSE),0)+IF('Crop 2'!$C$49=Carbon!$B76,'Crop 2'!$L$49*VLOOKUP('Crop 2'!$E$49,Carbon!$AH$4:$AI$10,2,FALSE),0)+IF('Crop 2'!$C$50=Carbon!$B76,'Crop 2'!$L$50*VLOOKUP('Crop 2'!$E$50,Carbon!$AH$4:$AI$10,2,FALSE),0)+IF('Crop 2'!$C$51=Carbon!$B76,'Crop 2'!$L$51*VLOOKUP('Crop 2'!$E$51,Carbon!$AH$4:$AI$10,2,FALSE),0)+IF('Crop 2'!$C$52=Carbon!$B76,'Crop 2'!$L$52*VLOOKUP('Crop 2'!$E$52,Carbon!$AH$4:$AI$10,2,FALSE),0)+IF('Crop 2'!$C$53=Carbon!$B76,'Crop 2'!$L$53*VLOOKUP('Crop 2'!$E$53,Carbon!$AH$4:$AI$10,2,FALSE),0)+IF('Crop 2'!$C$56=Carbon!$B76,'Crop 2'!$L$56*VLOOKUP('Crop 2'!$E$56,Carbon!$AH$4:$AI$10,2,FALSE),0)+IF('Crop 2'!$C$57=Carbon!$B76,'Crop 2'!$L$57*VLOOKUP('Crop 2'!$E$57,Carbon!$AH$4:$AI$10,2,FALSE),0)+IF('Crop 2'!$C$58=Carbon!$B76,'Crop 2'!$L$58*VLOOKUP('Crop 2'!$E$58,Carbon!$AH$4:$AI$10,2,FALSE),0)+IF('Crop 2'!$C$59=Carbon!$B76,'Crop 2'!$L$59*VLOOKUP('Crop 2'!$E$59,Carbon!$AH$4:$AI$10,2,FALSE),0)+IF('Crop 2'!$C$62=Carbon!$B76,'Crop 2'!$L$62*VLOOKUP('Crop 2'!$E$62,Carbon!$AH$4:$AI$10,2,FALSE),0)+IF('Crop 2'!$C$63=Carbon!$B76,'Crop 2'!$L$63*VLOOKUP('Crop 2'!$E$63,Carbon!$AH$4:$AI$10,2,FALSE),0)+IF('Crop 2'!$C$64=Carbon!$B76,'Crop 2'!$L$64*VLOOKUP('Crop 2'!$E$64,Carbon!$AH$4:$AI$10,2,FALSE),0)+IF('Crop 2'!$C$65=Carbon!$B76,'Crop 2'!$L$65*VLOOKUP('Crop 2'!$E$65,Carbon!$AH$4:$AI$10,2,FALSE),0))*$AL$20,2)","v":0},{"$f":"E76*Inputs!$D$15","v":0},{"$f":"ROUND((IF('Crop 3'!$C$14=Carbon!$B76,'Crop 3'!$L$14*VLOOKUP('Crop 3'!$E$14,Carbon!$AH$4:$AI$10,2,FALSE),0)+IF('Crop 3'!$C$15=Carbon!$B76,'Crop 3'!$L$15*VLOOKUP('Crop 3'!$E$15,Carbon!$AH$4:$AI$10,2,FALSE),0)+IF('Crop 3'!$C$16=Carbon!$B76,'Crop 3'!$L$16*VLOOKUP('Crop 3'!$E$16,Carbon!$AH$4:$AI$10,2,FALSE),0)+IF('Crop 3'!$C$19=Carbon!$B76,'Crop 3'!$L$19*VLOOKUP('Crop 3'!$E$19,Carbon!$AH$4:$AI$10,2,FALSE),0)+IF('Crop 3'!$C$20=Carbon!$B76,'Crop 3'!$L$20*VLOOKUP('Crop 3'!$E$20,Carbon!$AH$4:$AI$10,2,FALSE),0)+IF('Crop 3'!$C$21=Carbon!$B76,'Crop 3'!$L$21*VLOOKUP('Crop 3'!$E$21,Carbon!$AH$4:$AI$10,2,FALSE),0)+IF('Crop 3'!$C$49=Carbon!$B76,'Crop 3'!$L$49*VLOOKUP('Crop 3'!$E$49,Carbon!$AH$4:$AI$10,2,FALSE),0)+IF('Crop 3'!$C$50=Carbon!$B76,'Crop 3'!$L$50*VLOOKUP('Crop 3'!$E$50,Carbon!$AH$4:$AI$10,2,FALSE),0)+IF('Crop 3'!$C$51=Carbon!$B76,'Crop 3'!$L$51*VLOOKUP('Crop 3'!$E$51,Carbon!$AH$4:$AI$10,2,FALSE),0)+IF('Crop 3'!$C$52=Carbon!$B76,'Crop 3'!$L$52*VLOOKUP('Crop 3'!$E$52,Carbon!$AH$4:$AI$10,2,FALSE),0)+IF('Crop 3'!$C$53=Carbon!$B76,'Crop 3'!$L$53*VLOOKUP('Crop 3'!$E$53,Carbon!$AH$4:$AI$10,2,FALSE),0)+IF('Crop 3'!$C$56=Carbon!$B76,'Crop 3'!$L$56*VLOOKUP('Crop 3'!$E$56,Carbon!$AH$4:$AI$10,2,FALSE),0)+IF('Crop 3'!$C$57=Carbon!$B76,'Crop 3'!$L$57*VLOOKUP('Crop 3'!$E$57,Carbon!$AH$4:$AI$10,2,FALSE),0)+IF('Crop 3'!$C$58=Carbon!$B76,'Crop 3'!$L$58*VLOOKUP('Crop 3'!$E$58,Carbon!$AH$4:$AI$10,2,FALSE),0)+IF('Crop 3'!$C$59=Carbon!$B76,'Crop 3'!$L$59*VLOOKUP('Crop 3'!$E$59,Carbon!$AH$4:$AI$10,2,FALSE),0)+IF('Crop 3'!$C$62=Carbon!$B76,'Crop 3'!$L$62*VLOOKUP('Crop 3'!$E$62,Carbon!$AH$4:$AI$10,2,FALSE),0)+IF('Crop 3'!$C$63=Carbon!$B76,'Crop 3'!$L$63*VLOOKUP('Crop 3'!$E$63,Carbon!$AH$4:$AI$10,2,FALSE),0)+IF('Crop 3'!$C$64=Carbon!$B76,'Crop 3'!$L$64*VLOOKUP('Crop 3'!$E$64,Carbon!$AH$4:$AI$10,2,FALSE),0)+IF('Crop 3'!$C$65=Carbon!$B76,'Crop 3'!$L$65*VLOOKUP('Crop 3'!$E$65,Carbon!$AH$4:$AI$10,2,FALSE),0))*$AL$20,2)","v":0},{"$f":"G76*Inputs!$D$17","v":0},{"$f":"ROUND(J76/Inputs!D$19,2)","v":2.78},1668,null,null,{"$f":"ROUND((IF('Crop 1'!$C$14=Carbon!$B76,'Crop 1'!$V$14*VLOOKUP('Crop 1'!$E$14,Carbon!$AH$4:$AI$10,2,FALSE),0)+IF('Crop 1'!$C$15=Carbon!$B76,'Crop 1'!$V$15*VLOOKUP('Crop 1'!$E$15,Carbon!$AH$4:$AI$10,2,FALSE),0)+IF('Crop 1'!$C$16=Carbon!$B76,'Crop 1'!$V$16*VLOOKUP('Crop 1'!$E$16,Carbon!$AH$4:$AI$10,2,FALSE),0)+IF('Crop 1'!$C$19=Carbon!$B76,'Crop 1'!$V$19*VLOOKUP('Crop 1'!$E$19,Carbon!$AH$4:$AI$10,2,FALSE),0)+IF('Crop 1'!$C$20=Carbon!$B76,'Crop 1'!$V$20*VLOOKUP('Crop 1'!$E$20,Carbon!$AH$4:$AI$10,2,FALSE),0)+IF('Crop 1'!$C$21=Carbon!$B76,'Crop 1'!$V$21*VLOOKUP('Crop 1'!$E$21,Carbon!$AH$4:$AI$10,2,FALSE),0)+IF('Crop 1'!$C$49=Carbon!$B76,'Crop 1'!$V$49*VLOOKUP('Crop 1'!$E$49,Carbon!$AH$4:$AI$10,2,FALSE),0)+IF('Crop 1'!$C$50=Carbon!$B76,'Crop 1'!$V$50*VLOOKUP('Crop 1'!$E$50,Carbon!$AH$4:$AI$10,2,FALSE),0)+IF('Crop 1'!$C$51=Carbon!$B76,'Crop 1'!$V$51*VLOOKUP('Crop 1'!$E$51,Carbon!$AH$4:$AI$10,2,FALSE),0)+IF('Crop 1'!$C$52=Carbon!$B76,'Crop 1'!$V$52*VLOOKUP('Crop 1'!$E$52,Carbon!$AH$4:$AI$10,2,FALSE),0)+IF('Crop 1'!$C$53=Carbon!$B76,'Crop 1'!$V$53*VLOOKUP('Crop 1'!$E$53,Carbon!$AH$4:$AI$10,2,FALSE),0)+IF('Crop 1'!$C$56=Carbon!$B76,'Crop 1'!$V$56*VLOOKUP('Crop 1'!$E$56,Carbon!$AH$4:$AI$10,2,FALSE),0)+IF('Crop 1'!$C$57=Carbon!$B76,'Crop 1'!$V$57*VLOOKUP('Crop 1'!$E$57,Carbon!$AH$4:$AI$10,2,FALSE),0)+IF('Crop 1'!$C$58=Carbon!$B76,'Crop 1'!$V$58*VLOOKUP('Crop 1'!$E$58,Carbon!$AH$4:$AI$10,2,FALSE),0)+IF('Crop 1'!$C$59=Carbon!$B76,'Crop 1'!$V$59*VLOOKUP('Crop 1'!$E$59,Carbon!$AH$4:$AI$10,2,FALSE),0)+IF('Crop 1'!$C$62=Carbon!$B76,'Crop 1'!$V$62*VLOOKUP('Crop 1'!$E$62,Carbon!$AH$4:$AI$10,2,FALSE),0)+IF('Crop 1'!$C$63=Carbon!$B76,'Crop 1'!$V$63*VLOOKUP('Crop 1'!$E$63,Carbon!$AH$4:$AI$10,2,FALSE),0)+IF('Crop 1'!$C$64=Carbon!$B76,'Crop 1'!$V$64*VLOOKUP('Crop 1'!$E$64,Carbon!$AH$4:$AI$10,2,FALSE),0)+IF('Crop 1'!$C$65=Carbon!$B76,'Crop 1'!$V$65*VLOOKUP('Crop 1'!$E$65,Carbon!$AH$4:$AI$10,2,FALSE),0))*$AL$20,2)","v":4.33},{"$f":"M76*Inputs!$D$13","v":1299},{"$f":"ROUND((IF('Crop 2'!$C$14=Carbon!$B76,'Crop 2'!$V$14*VLOOKUP('Crop 2'!$E$14,Carbon!$AH$4:$AI$10,2,FALSE),0)+IF('Crop 2'!$C$15=Carbon!$B76,'Crop 2'!$V$15*VLOOKUP('Crop 2'!$E$15,Carbon!$AH$4:$AI$10,2,FALSE),0)+IF('Crop 2'!$C$16=Carbon!$B76,'Crop 2'!$V$16*VLOOKUP('Crop 2'!$E$16,Carbon!$AH$4:$AI$10,2,FALSE),0)+IF('Crop 2'!$C$19=Carbon!$B76,'Crop 2'!$V$19*VLOOKUP('Crop 2'!$E$19,Carbon!$AH$4:$AI$10,2,FALSE),0)+IF('Crop 2'!$C$20=Carbon!$B76,'Crop 2'!$V$20*VLOOKUP('Crop 2'!$E$20,Carbon!$AH$4:$AI$10,2,FALSE),0)+IF('Crop 2'!$C$21=Carbon!$B76,'Crop 2'!$V$21*VLOOKUP('Crop 2'!$E$21,Carbon!$AH$4:$AI$10,2,FALSE),0)+IF('Crop 2'!$C$49=Carbon!$B76,'Crop 2'!$V$49*VLOOKUP('Crop 2'!$E$49,Carbon!$AH$4:$AI$10,2,FALSE),0)+IF('Crop 2'!$C$50=Carbon!$B76,'Crop 2'!$V$50*VLOOKUP('Crop 2'!$E$50,Carbon!$AH$4:$AI$10,2,FALSE),0)+IF('Crop 2'!$C$51=Carbon!$B76,'Crop 2'!$V$51*VLOOKUP('Crop 2'!$E$51,Carbon!$AH$4:$AI$10,2,FALSE),0)+IF('Crop 2'!$C$52=Carbon!$B76,'Crop 2'!$V$52*VLOOKUP('Crop 2'!$E$52,Carbon!$AH$4:$AI$10,2,FALSE),0)+IF('Crop 2'!$C$53=Carbon!$B76,'Crop 2'!$V$53*VLOOKUP('Crop 2'!$E$53,Carbon!$AH$4:$AI$10,2,FALSE),0)+IF('Crop 2'!$C$56=Carbon!$B76,'Crop 2'!$V$56*VLOOKUP('Crop 2'!$E$56,Carbon!$AH$4:$AI$10,2,FALSE),0)+IF('Crop 2'!$C$57=Carbon!$B76,'Crop 2'!$V$57*VLOOKUP('Crop 2'!$E$57,Carbon!$AH$4:$AI$10,2,FALSE),0)+IF('Crop 2'!$C$58=Carbon!$B76,'Crop 2'!$V$58*VLOOKUP('Crop 2'!$E$58,Carbon!$AH$4:$AI$10,2,FALSE),0)+IF('Crop 2'!$C$59=Carbon!$B76,'Crop 2'!$V$59*VLOOKUP('Crop 2'!$E$59,Carbon!$AH$4:$AI$10,2,FALSE),0)+IF('Crop 2'!$C$62=Carbon!$B76,'Crop 2'!$V$62*VLOOKUP('Crop 2'!$E$62,Carbon!$AH$4:$AI$10,2,FALSE),0)+IF('Crop 2'!$C$63=Carbon!$B76,'Crop 2'!$V$63*VLOOKUP('Crop 2'!$E$63,Carbon!$AH$4:$AI$10,2,FALSE),0)+IF('Crop 2'!$C$64=Carbon!$B76,'Crop 2'!$V$64*VLOOKUP('Crop 2'!$E$64,Carbon!$AH$4:$AI$10,2,FALSE),0)+IF('Crop 2'!$C$65=Carbon!$B76,'Crop 2'!$V$65*VLOOKUP('Crop 2'!$E$65,Carbon!$AH$4:$AI$10,2,FALSE),0))*$AL$20,2)","v":0},{"$f":"O76*Inputs!$D$15","v":0},{"$f":"ROUND((IF('Crop 3'!$C$14=Carbon!$B76,'Crop 3'!$V$14*VLOOKUP('Crop 3'!$E$14,Carbon!$AH$4:$AI$10,2,FALSE),0)+IF('Crop 3'!$C$15=Carbon!$B76,'Crop 3'!$V$15*VLOOKUP('Crop 3'!$E$15,Carbon!$AH$4:$AI$10,2,FALSE),0)+IF('Crop 3'!$C$16=Carbon!$B76,'Crop 3'!$V$16*VLOOKUP('Crop 3'!$E$16,Carbon!$AH$4:$AI$10,2,FALSE),0)+IF('Crop 3'!$C$19=Carbon!$B76,'Crop 3'!$V$19*VLOOKUP('Crop 3'!$E$19,Carbon!$AH$4:$AI$10,2,FALSE),0)+IF('Crop 3'!$C$20=Carbon!$B76,'Crop 3'!$V$20*VLOOKUP('Crop 3'!$E$20,Carbon!$AH$4:$AI$10,2,FALSE),0)+IF('Crop 3'!$C$21=Carbon!$B76,'Crop 3'!$V$21*VLOOKUP('Crop 3'!$E$21,Carbon!$AH$4:$AI$10,2,FALSE),0)+IF('Crop 3'!$C$49=Carbon!$B76,'Crop 3'!$V$49*VLOOKUP('Crop 3'!$E$49,Carbon!$AH$4:$AI$10,2,FALSE),0)+IF('Crop 3'!$C$50=Carbon!$B76,'Crop 3'!$V$50*VLOOKUP('Crop 3'!$E$50,Carbon!$AH$4:$AI$10,2,FALSE),0)+IF('Crop 3'!$C$51=Carbon!$B76,'Crop 3'!$V$51*VLOOKUP('Crop 3'!$E$51,Carbon!$AH$4:$AI$10,2,FALSE),0)+IF('Crop 3'!$C$52=Carbon!$B76,'Crop 3'!$V$52*VLOOKUP('Crop 3'!$E$52,Carbon!$AH$4:$AI$10,2,FALSE),0)+IF('Crop 3'!$C$53=Carbon!$B76,'Crop 3'!$V$53*VLOOKUP('Crop 3'!$E$53,Carbon!$AH$4:$AI$10,2,FALSE),0)+IF('Crop 3'!$C$56=Carbon!$B76,'Crop 3'!$V$56*VLOOKUP('Crop 3'!$E$56,Carbon!$AH$4:$AI$10,2,FALSE),0)+IF('Crop 3'!$C$57=Carbon!$B76,'Crop 3'!$V$57*VLOOKUP('Crop 3'!$E$57,Carbon!$AH$4:$AI$10,2,FALSE),0)+IF('Crop 3'!$C$58=Carbon!$B76,'Crop 3'!$V$58*VLOOKUP('Crop 3'!$E$58,Carbon!$AH$4:$AI$10,2,FALSE),0)+IF('Crop 3'!$C$59=Carbon!$B76,'Crop 3'!$V$59*VLOOKUP('Crop 3'!$E$59,Carbon!$AH$4:$AI$10,2,FALSE),0)+IF('Crop 3'!$C$62=Carbon!$B76,'Crop 3'!$V$62*VLOOKUP('Crop 3'!$E$62,Carbon!$AH$4:$AI$10,2,FALSE),0)+IF('Crop 3'!$C$63=Carbon!$B76,'Crop 3'!$V$63*VLOOKUP('Crop 3'!$E$63,Carbon!$AH$4:$AI$10,2,FALSE),0)+IF('Crop 3'!$C$64=Carbon!$B76,'Crop 3'!$V$64*VLOOKUP('Crop 3'!$E$64,Carbon!$AH$4:$AI$10,2,FALSE),0)+IF('Crop 3'!$C$65=Carbon!$B76,'Crop 3'!$V$65*VLOOKUP('Crop 3'!$E$65,Carbon!$AH$4:$AI$10,2,FALSE),0))*$AL$20,2)","v":0},{"$f":"Q76*Inputs!$D$17","v":0},{"$f":"ROUND(T76/Inputs!D$19,2)","v":2.17},1299,null,null,-1.2299999999999995,{"$f":"W76*Inputs!$D$13","v":-368.99999999999989},0,{"$f":"Y76*Inputs!$D$13","v":0},0,{"$f":"AA76*Inputs!$D$13","v":0},{"$f":"ROUND(AD76/Inputs!D$19,2)","v":-0.62},-369]
[null,{"$f":"Defaults!AH43","v":"Cotton Pro"},{"$f":"ROUND((IF('Crop 1'!$C$14=Carbon!$B77,'Crop 1'!$L$14*VLOOKUP('Crop 1'!$E$14,Carbon!$AH$4:$AI$10,2,FALSE),0)+IF('Crop 1'!$C$15=Carbon!$B77,'Crop 1'!$L$15*VLOOKUP('Crop 1'!$E$15,Carbon!$AH$4:$AI$10,2,FALSE),0)+IF('Crop 1'!$C$16=Carbon!$B77,'Crop 1'!$L$16*VLOOKUP('Crop 1'!$E$16,Carbon!$AH$4:$AI$10,2,FALSE),0)+IF('Crop 1'!$C$19=Carbon!$B77,'Crop 1'!$L$19*VLOOKUP('Crop 1'!$E$19,Carbon!$AH$4:$AI$10,2,FALSE),0)+IF('Crop 1'!$C$20=Carbon!$B77,'Crop 1'!$L$20*VLOOKUP('Crop 1'!$E$20,Carbon!$AH$4:$AI$10,2,FALSE),0)+IF('Crop 1'!$C$21=Carbon!$B77,'Crop 1'!$L$21*VLOOKUP('Crop 1'!$E$21,Carbon!$AH$4:$AI$10,2,FALSE),0)+IF('Crop 1'!$C$49=Carbon!$B77,'Crop 1'!$L$49*VLOOKUP('Crop 1'!$E$49,Carbon!$AH$4:$AI$10,2,FALSE),0)+IF('Crop 1'!$C$50=Carbon!$B77,'Crop 1'!$L$50*VLOOKUP('Crop 1'!$E$50,Carbon!$AH$4:$AI$10,2,FALSE),0)+IF('Crop 1'!$C$51=Carbon!$B77,'Crop 1'!$L$51*VLOOKUP('Crop 1'!$E$51,Carbon!$AH$4:$AI$10,2,FALSE),0)+IF('Crop 1'!$C$52=Carbon!$B77,'Crop 1'!$L$52*VLOOKUP('Crop 1'!$E$52,Carbon!$AH$4:$AI$10,2,FALSE),0)+IF('Crop 1'!$C$53=Carbon!$B77,'Crop 1'!$L$53*VLOOKUP('Crop 1'!$E$53,Carbon!$AH$4:$AI$10,2,FALSE),0)+IF('Crop 1'!$C$56=Carbon!$B77,'Crop 1'!$L$56*VLOOKUP('Crop 1'!$E$56,Carbon!$AH$4:$AI$10,2,FALSE),0)+IF('Crop 1'!$C$57=Carbon!$B77,'Crop 1'!$L$57*VLOOKUP('Crop 1'!$E$57,Carbon!$AH$4:$AI$10,2,FALSE),0)+IF('Crop 1'!$C$58=Carbon!$B77,'Crop 1'!$L$58*VLOOKUP('Crop 1'!$E$58,Carbon!$AH$4:$AI$10,2,FALSE),0)+IF('Crop 1'!$C$59=Carbon!$B77,'Crop 1'!$L$59*VLOOKUP('Crop 1'!$E$59,Carbon!$AH$4:$AI$10,2,FALSE),0)+IF('Crop 1'!$C$62=Carbon!$B77,'Crop 1'!$L$62*VLOOKUP('Crop 1'!$E$62,Carbon!$AH$4:$AI$10,2,FALSE),0)+IF('Crop 1'!$C$63=Carbon!$B77,'Crop 1'!$L$63*VLOOKUP('Crop 1'!$E$63,Carbon!$AH$4:$AI$10,2,FALSE),0)+IF('Crop 1'!$C$64=Carbon!$B77,'Crop 1'!$L$64*VLOOKUP('Crop 1'!$E$64,Carbon!$AH$4:$AI$10,2,FALSE),0)+IF('Crop 1'!$C$65=Carbon!$B77,'Crop 1'!$L$65*VLOOKUP('Crop 1'!$E$65,Carbon!$AH$4:$AI$10,2,FALSE),0))*$AL$20,2)","v":0},{"$f":"C77*Inputs!$D$13","v":0},{"$f":"ROUND((IF('Crop 2'!$C$14=Carbon!$B77,'Crop 2'!$L$14*VLOOKUP('Crop 2'!$E$14,Carbon!$AH$4:$AI$10,2,FALSE),0)+IF('Crop 2'!$C$15=Carbon!$B77,'Crop 2'!$L$15*VLOOKUP('Crop 2'!$E$15,Carbon!$AH$4:$AI$10,2,FALSE),0)+IF('Crop 2'!$C$16=Carbon!$B77,'Crop 2'!$L$16*VLOOKUP('Crop 2'!$E$16,Carbon!$AH$4:$AI$10,2,FALSE),0)+IF('Crop 2'!$C$19=Carbon!$B77,'Crop 2'!$L$19*VLOOKUP('Crop 2'!$E$19,Carbon!$AH$4:$AI$10,2,FALSE),0)+IF('Crop 2'!$C$20=Carbon!$B77,'Crop 2'!$L$20*VLOOKUP('Crop 2'!$E$20,Carbon!$AH$4:$AI$10,2,FALSE),0)+IF('Crop 2'!$C$21=Carbon!$B77,'Crop 2'!$L$21*VLOOKUP('Crop 2'!$E$21,Carbon!$AH$4:$AI$10,2,FALSE),0)+IF('Crop 2'!$C$49=Carbon!$B77,'Crop 2'!$L$49*VLOOKUP('Crop 2'!$E$49,Carbon!$AH$4:$AI$10,2,FALSE),0)+IF('Crop 2'!$C$50=Carbon!$B77,'Crop 2'!$L$50*VLOOKUP('Crop 2'!$E$50,Carbon!$AH$4:$AI$10,2,FALSE),0)+IF('Crop 2'!$C$51=Carbon!$B77,'Crop 2'!$L$51*VLOOKUP('Crop 2'!$E$51,Carbon!$AH$4:$AI$10,2,FALSE),0)+IF('Crop 2'!$C$52=Carbon!$B77,'Crop 2'!$L$52*VLOOKUP('Crop 2'!$E$52,Carbon!$AH$4:$AI$10,2,FALSE),0)+IF('Crop 2'!$C$53=Carbon!$B77,'Crop 2'!$L$53*VLOOKUP('Crop 2'!$E$53,Carbon!$AH$4:$AI$10,2,FALSE),0)+IF('Crop 2'!$C$56=Carbon!$B77,'Crop 2'!$L$56*VLOOKUP('Crop 2'!$E$56,Carbon!$AH$4:$AI$10,2,FALSE),0)+IF('Crop 2'!$C$57=Carbon!$B77,'Crop 2'!$L$57*VLOOKUP('Crop 2'!$E$57,Carbon!$AH$4:$AI$10,2,FALSE),0)+IF('Crop 2'!$C$58=Carbon!$B77,'Crop 2'!$L$58*VLOOKUP('Crop 2'!$E$58,Carbon!$AH$4:$AI$10,2,FALSE),0)+IF('Crop 2'!$C$59=Carbon!$B77,'Crop 2'!$L$59*VLOOKUP('Crop 2'!$E$59,Carbon!$AH$4:$AI$10,2,FALSE),0)+IF('Crop 2'!$C$62=Carbon!$B77,'Crop 2'!$L$62*VLOOKUP('Crop 2'!$E$62,Carbon!$AH$4:$AI$10,2,FALSE),0)+IF('Crop 2'!$C$63=Carbon!$B77,'Crop 2'!$L$63*VLOOKUP('Crop 2'!$E$63,Carbon!$AH$4:$AI$10,2,FALSE),0)+IF('Crop 2'!$C$64=Carbon!$B77,'Crop 2'!$L$64*VLOOKUP('Crop 2'!$E$64,Carbon!$AH$4:$AI$10,2,FALSE),0)+IF('Crop 2'!$C$65=Carbon!$B77,'Crop 2'!$L$65*VLOOKUP('Crop 2'!$E$65,Carbon!$AH$4:$AI$10,2,FALSE),0))*$AL$20,2)","v":0},{"$f":"E77*Inputs!$D$15","v":0},{"$f":"ROUND((IF('Crop 3'!$C$14=Carbon!$B77,'Crop 3'!$L$14*VLOOKUP('Crop 3'!$E$14,Carbon!$AH$4:$AI$10,2,FALSE),0)+IF('Crop 3'!$C$15=Carbon!$B77,'Crop 3'!$L$15*VLOOKUP('Crop 3'!$E$15,Carbon!$AH$4:$AI$10,2,FALSE),0)+IF('Crop 3'!$C$16=Carbon!$B77,'Crop 3'!$L$16*VLOOKUP('Crop 3'!$E$16,Carbon!$AH$4:$AI$10,2,FALSE),0)+IF('Crop 3'!$C$19=Carbon!$B77,'Crop 3'!$L$19*VLOOKUP('Crop 3'!$E$19,Carbon!$AH$4:$AI$10,2,FALSE),0)+IF('Crop 3'!$C$20=Carbon!$B77,'Crop 3'!$L$20*VLOOKUP('Crop 3'!$E$20,Carbon!$AH$4:$AI$10,2,FALSE),0)+IF('Crop 3'!$C$21=Carbon!$B77,'Crop 3'!$L$21*VLOOKUP('Crop 3'!$E$21,Carbon!$AH$4:$AI$10,2,FALSE),0)+IF('Crop 3'!$C$49=Carbon!$B77,'Crop 3'!$L$49*VLOOKUP('Crop 3'!$E$49,Carbon!$AH$4:$AI$10,2,FALSE),0)+IF('Crop 3'!$C$50=Carbon!$B77,'Crop 3'!$L$50*VLOOKUP('Crop 3'!$E$50,Carbon!$AH$4:$AI$10,2,FALSE),0)+IF('Crop 3'!$C$51=Carbon!$B77,'Crop 3'!$L$51*VLOOKUP('Crop 3'!$E$51,Carbon!$AH$4:$AI$10,2,FALSE),0)+IF('Crop 3'!$C$52=Carbon!$B77,'Crop 3'!$L$52*VLOOKUP('Crop 3'!$E$52,Carbon!$AH$4:$AI$10,2,FALSE),0)+IF('Crop 3'!$C$53=Carbon!$B77,'Crop 3'!$L$53*VLOOKUP('Crop 3'!$E$53,Carbon!$AH$4:$AI$10,2,FALSE),0)+IF('Crop 3'!$C$56=Carbon!$B77,'Crop 3'!$L$56*VLOOKUP('Crop 3'!$E$56,Carbon!$AH$4:$AI$10,2,FALSE),0)+IF('Crop 3'!$C$57=Carbon!$B77,'Crop 3'!$L$57*VLOOKUP('Crop 3'!$E$57,Carbon!$AH$4:$AI$10,2,FALSE),0)+IF('Crop 3'!$C$58=Carbon!$B77,'Crop 3'!$L$58*VLOOKUP('Crop 3'!$E$58,Carbon!$AH$4:$AI$10,2,FALSE),0)+IF('Crop 3'!$C$59=Carbon!$B77,'Crop 3'!$L$59*VLOOKUP('Crop 3'!$E$59,Carbon!$AH$4:$AI$10,2,FALSE),0)+IF('Crop 3'!$C$62=Carbon!$B77,'Crop 3'!$L$62*VLOOKUP('Crop 3'!$E$62,Carbon!$AH$4:$AI$10,2,FALSE),0)+IF('Crop 3'!$C$63=Carbon!$B77,'Crop 3'!$L$63*VLOOKUP('Crop 3'!$E$63,Carbon!$AH$4:$AI$10,2,FALSE),0)+IF('Crop 3'!$C$64=Carbon!$B77,'Crop 3'!$L$64*VLOOKUP('Crop 3'!$E$64,Carbon!$AH$4:$AI$10,2,FALSE),0)+IF('Crop 3'!$C$65=Carbon!$B77,'Crop 3'!$L$65*VLOOKUP('Crop 3'!$E$65,Carbon!$AH$4:$AI$10,2,FALSE),0))*$AL$20,2)","v":0},{"$f":"G77*Inputs!$D$17","v":0},{"$f":"ROUND(J77/Inputs!D$19,2)","v":0},0,null,null,{"$f":"ROUND((IF('Crop 1'!$C$14=Carbon!$B77,'Crop 1'!$V$14*VLOOKUP('Crop 1'!$E$14,Carbon!$AH$4:$AI$10,2,FALSE),0)+IF('Crop 1'!$C$15=Carbon!$B77,'Crop 1'!$V$15*VLOOKUP('Crop 1'!$E$15,Carbon!$AH$4:$AI$10,2,FALSE),0)+IF('Crop 1'!$C$16=Carbon!$B77,'Crop 1'!$V$16*VLOOKUP('Crop 1'!$E$16,Carbon!$AH$4:$AI$10,2,FALSE),0)+IF('Crop 1'!$C$19=Carbon!$B77,'Crop 1'!$V$19*VLOOKUP('Crop 1'!$E$19,Carbon!$AH$4:$AI$10,2,FALSE),0)+IF('Crop 1'!$C$20=Carbon!$B77,'Crop 1'!$V$20*VLOOKUP('Crop 1'!$E$20,Carbon!$AH$4:$AI$10,2,FALSE),0)+IF('Crop 1'!$C$21=Carbon!$B77,'Crop 1'!$V$21*VLOOKUP('Crop 1'!$E$21,Carbon!$AH$4:$AI$10,2,FALSE),0)+IF('Crop 1'!$C$49=Carbon!$B77,'Crop 1'!$V$49*VLOOKUP('Crop 1'!$E$49,Carbon!$AH$4:$AI$10,2,FALSE),0)+IF('Crop 1'!$C$50=Carbon!$B77,'Crop 1'!$V$50*VLOOKUP('Crop 1'!$E$50,Carbon!$AH$4:$AI$10,2,FALSE),0)+IF('Crop 1'!$C$51=Carbon!$B77,'Crop 1'!$V$51*VLOOKUP('Crop 1'!$E$51,Carbon!$AH$4:$AI$10,2,FALSE),0)+IF('Crop 1'!$C$52=Carbon!$B77,'Crop 1'!$V$52*VLOOKUP('Crop 1'!$E$52,Carbon!$AH$4:$AI$10,2,FALSE),0)+IF('Crop 1'!$C$53=Carbon!$B77,'Crop 1'!$V$53*VLOOKUP('Crop 1'!$E$53,Carbon!$AH$4:$AI$10,2,FALSE),0)+IF('Crop 1'!$C$56=Carbon!$B77,'Crop 1'!$V$56*VLOOKUP('Crop 1'!$E$56,Carbon!$AH$4:$AI$10,2,FALSE),0)+IF('Crop 1'!$C$57=Carbon!$B77,'Crop 1'!$V$57*VLOOKUP('Crop 1'!$E$57,Carbon!$AH$4:$AI$10,2,FALSE),0)+IF('Crop 1'!$C$58=Carbon!$B77,'Crop 1'!$V$58*VLOOKUP('Crop 1'!$E$58,Carbon!$AH$4:$AI$10,2,FALSE),0)+IF('Crop 1'!$C$59=Carbon!$B77,'Crop 1'!$V$59*VLOOKUP('Crop 1'!$E$59,Carbon!$AH$4:$AI$10,2,FALSE),0)+IF('Crop 1'!$C$62=Carbon!$B77,'Crop 1'!$V$62*VLOOKUP('Crop 1'!$E$62,Carbon!$AH$4:$AI$10,2,FALSE),0)+IF('Crop 1'!$C$63=Carbon!$B77,'Crop 1'!$V$63*VLOOKUP('Crop 1'!$E$63,Carbon!$AH$4:$AI$10,2,FALSE),0)+IF('Crop 1'!$C$64=Carbon!$B77,'Crop 1'!$V$64*VLOOKUP('Crop 1'!$E$64,Carbon!$AH$4:$AI$10,2,FALSE),0)+IF('Crop 1'!$C$65=Carbon!$B77,'Crop 1'!$V$65*VLOOKUP('Crop 1'!$E$65,Carbon!$AH$4:$AI$10,2,FALSE),0))*$AL$20,2)","v":0},{"$f":"M77*Inputs!$D$13","v":0},{"$f":"ROUND((IF('Crop 2'!$C$14=Carbon!$B77,'Crop 2'!$V$14*VLOOKUP('Crop 2'!$E$14,Carbon!$AH$4:$AI$10,2,FALSE),0)+IF('Crop 2'!$C$15=Carbon!$B77,'Crop 2'!$V$15*VLOOKUP('Crop 2'!$E$15,Carbon!$AH$4:$AI$10,2,FALSE),0)+IF('Crop 2'!$C$16=Carbon!$B77,'Crop 2'!$V$16*VLOOKUP('Crop 2'!$E$16,Carbon!$AH$4:$AI$10,2,FALSE),0)+IF('Crop 2'!$C$19=Carbon!$B77,'Crop 2'!$V$19*VLOOKUP('Crop 2'!$E$19,Carbon!$AH$4:$AI$10,2,FALSE),0)+IF('Crop 2'!$C$20=Carbon!$B77,'Crop 2'!$V$20*VLOOKUP('Crop 2'!$E$20,Carbon!$AH$4:$AI$10,2,FALSE),0)+IF('Crop 2'!$C$21=Carbon!$B77,'Crop 2'!$V$21*VLOOKUP('Crop 2'!$E$21,Carbon!$AH$4:$AI$10,2,FALSE),0)+IF('Crop 2'!$C$49=Carbon!$B77,'Crop 2'!$V$49*VLOOKUP('Crop 2'!$E$49,Carbon!$AH$4:$AI$10,2,FALSE),0)+IF('Crop 2'!$C$50=Carbon!$B77,'Crop 2'!$V$50*VLOOKUP('Crop 2'!$E$50,Carbon!$AH$4:$AI$10,2,FALSE),0)+IF('Crop 2'!$C$51=Carbon!$B77,'Crop 2'!$V$51*VLOOKUP('Crop 2'!$E$51,Carbon!$AH$4:$AI$10,2,FALSE),0)+IF('Crop 2'!$C$52=Carbon!$B77,'Crop 2'!$V$52*VLOOKUP('Crop 2'!$E$52,Carbon!$AH$4:$AI$10,2,FALSE),0)+IF('Crop 2'!$C$53=Carbon!$B77,'Crop 2'!$V$53*VLOOKUP('Crop 2'!$E$53,Carbon!$AH$4:$AI$10,2,FALSE),0)+IF('Crop 2'!$C$56=Carbon!$B77,'Crop 2'!$V$56*VLOOKUP('Crop 2'!$E$56,Carbon!$AH$4:$AI$10,2,FALSE),0)+IF('Crop 2'!$C$57=Carbon!$B77,'Crop 2'!$V$57*VLOOKUP('Crop 2'!$E$57,Carbon!$AH$4:$AI$10,2,FALSE),0)+IF('Crop 2'!$C$58=Carbon!$B77,'Crop 2'!$V$58*VLOOKUP('Crop 2'!$E$58,Carbon!$AH$4:$AI$10,2,FALSE),0)+IF('Crop 2'!$C$59=Carbon!$B77,'Crop 2'!$V$59*VLOOKUP('Crop 2'!$E$59,Carbon!$AH$4:$AI$10,2,FALSE),0)+IF('Crop 2'!$C$62=Carbon!$B77,'Crop 2'!$V$62*VLOOKUP('Crop 2'!$E$62,Carbon!$AH$4:$AI$10,2,FALSE),0)+IF('Crop 2'!$C$63=Carbon!$B77,'Crop 2'!$V$63*VLOOKUP('Crop 2'!$E$63,Carbon!$AH$4:$AI$10,2,FALSE),0)+IF('Crop 2'!$C$64=Carbon!$B77,'Crop 2'!$V$64*VLOOKUP('Crop 2'!$E$64,Carbon!$AH$4:$AI$10,2,FALSE),0)+IF('Crop 2'!$C$65=Carbon!$B77,'Crop 2'!$V$65*VLOOKUP('Crop 2'!$E$65,Carbon!$AH$4:$AI$10,2,FALSE),0))*$AL$20,2)","v":0},{"$f":"O77*Inputs!$D$15","v":0},{"$f":"ROUND((IF('Crop 3'!$C$14=Carbon!$B77,'Crop 3'!$V$14*VLOOKUP('Crop 3'!$E$14,Carbon!$AH$4:$AI$10,2,FALSE),0)+IF('Crop 3'!$C$15=Carbon!$B77,'Crop 3'!$V$15*VLOOKUP('Crop 3'!$E$15,Carbon!$AH$4:$AI$10,2,FALSE),0)+IF('Crop 3'!$C$16=Carbon!$B77,'Crop 3'!$V$16*VLOOKUP('Crop 3'!$E$16,Carbon!$AH$4:$AI$10,2,FALSE),0)+IF('Crop 3'!$C$19=Carbon!$B77,'Crop 3'!$V$19*VLOOKUP('Crop 3'!$E$19,Carbon!$AH$4:$AI$10,2,FALSE),0)+IF('Crop 3'!$C$20=Carbon!$B77,'Crop 3'!$V$20*VLOOKUP('Crop 3'!$E$20,Carbon!$AH$4:$AI$10,2,FALSE),0)+IF('Crop 3'!$C$21=Carbon!$B77,'Crop 3'!$V$21*VLOOKUP('Crop 3'!$E$21,Carbon!$AH$4:$AI$10,2,FALSE),0)+IF('Crop 3'!$C$49=Carbon!$B77,'Crop 3'!$V$49*VLOOKUP('Crop 3'!$E$49,Carbon!$AH$4:$AI$10,2,FALSE),0)+IF('Crop 3'!$C$50=Carbon!$B77,'Crop 3'!$V$50*VLOOKUP('Crop 3'!$E$50,Carbon!$AH$4:$AI$10,2,FALSE),0)+IF('Crop 3'!$C$51=Carbon!$B77,'Crop 3'!$V$51*VLOOKUP('Crop 3'!$E$51,Carbon!$AH$4:$AI$10,2,FALSE),0)+IF('Crop 3'!$C$52=Carbon!$B77,'Crop 3'!$V$52*VLOOKUP('Crop 3'!$E$52,Carbon!$AH$4:$AI$10,2,FALSE),0)+IF('Crop 3'!$C$53=Carbon!$B77,'Crop 3'!$V$53*VLOOKUP('Crop 3'!$E$53,Carbon!$AH$4:$AI$10,2,FALSE),0)+IF('Crop 3'!$C$56=Carbon!$B77,'Crop 3'!$V$56*VLOOKUP('Crop 3'!$E$56,Carbon!$AH$4:$AI$10,2,FALSE),0)+IF('Crop 3'!$C$57=Carbon!$B77,'Crop 3'!$V$57*VLOOKUP('Crop 3'!$E$57,Carbon!$AH$4:$AI$10,2,FALSE),0)+IF('Crop 3'!$C$58=Carbon!$B77,'Crop 3'!$V$58*VLOOKUP('Crop 3'!$E$58,Carbon!$AH$4:$AI$10,2,FALSE),0)+IF('Crop 3'!$C$59=Carbon!$B77,'Crop 3'!$V$59*VLOOKUP('Crop 3'!$E$59,Carbon!$AH$4:$AI$10,2,FALSE),0)+IF('Crop 3'!$C$62=Carbon!$B77,'Crop 3'!$V$62*VLOOKUP('Crop 3'!$E$62,Carbon!$AH$4:$AI$10,2,FALSE),0)+IF('Crop 3'!$C$63=Carbon!$B77,'Crop 3'!$V$63*VLOOKUP('Crop 3'!$E$63,Carbon!$AH$4:$AI$10,2,FALSE),0)+IF('Crop 3'!$C$64=Carbon!$B77,'Crop 3'!$V$64*VLOOKUP('Crop 3'!$E$64,Carbon!$AH$4:$AI$10,2,FALSE),0)+IF('Crop 3'!$C$65=Carbon!$B77,'Crop 3'!$V$65*VLOOKUP('Crop 3'!$E$65,Carbon!$AH$4:$AI$10,2,FALSE),0))*$AL$20,2)","v":0},{"$f":"Q77*Inputs!$D$17","v":0},{"$f":"ROUND(T77/Inputs!D$19,2)","v":0},0,null,null,0,{"$f":"W77*Inputs!$D$13","v":0},0,{"$f":"Y77*Inputs!$D$13","v":0},0,{"$f":"AA77*Inputs!$D$13","v":0},{"$f":"ROUND(AD77/Inputs!D$19,2)","v":0},0]
[null,{"$f":"Defaults!AH44","v":"Degree Xtra"},{"$f":"ROUND((IF('Crop 1'!$C$14=Carbon!$B78,'Crop 1'!$L$14*VLOOKUP('Crop 1'!$E$14,Carbon!$AH$4:$AI$10,2,FALSE),0)+IF('Crop 1'!$C$15=Carbon!$B78,'Crop 1'!$L$15*VLOOKUP('Crop 1'!$E$15,Carbon!$AH$4:$AI$10,2,FALSE),0)+IF('Crop 1'!$C$16=Carbon!$B78,'Crop 1'!$L$16*VLOOKUP('Crop 1'!$E$16,Carbon!$AH$4:$AI$10,2,FALSE),0)+IF('Crop 1'!$C$19=Carbon!$B78,'Crop 1'!$L$19*VLOOKUP('Crop 1'!$E$19,Carbon!$AH$4:$AI$10,2,FALSE),0)+IF('Crop 1'!$C$20=Carbon!$B78,'Crop 1'!$L$20*VLOOKUP('Crop 1'!$E$20,Carbon!$AH$4:$AI$10,2,FALSE),0)+IF('Crop 1'!$C$21=Carbon!$B78,'Crop 1'!$L$21*VLOOKUP('Crop 1'!$E$21,Carbon!$AH$4:$AI$10,2,FALSE),0)+IF('Crop 1'!$C$49=Carbon!$B78,'Crop 1'!$L$49*VLOOKUP('Crop 1'!$E$49,Carbon!$AH$4:$AI$10,2,FALSE),0)+IF('Crop 1'!$C$50=Carbon!$B78,'Crop 1'!$L$50*VLOOKUP('Crop 1'!$E$50,Carbon!$AH$4:$AI$10,2,FALSE),0)+IF('Crop 1'!$C$51=Carbon!$B78,'Crop 1'!$L$51*VLOOKUP('Crop 1'!$E$51,Carbon!$AH$4:$AI$10,2,FALSE),0)+IF('Crop 1'!$C$52=Carbon!$B78,'Crop 1'!$L$52*VLOOKUP('Crop 1'!$E$52,Carbon!$AH$4:$AI$10,2,FALSE),0)+IF('Crop 1'!$C$53=Carbon!$B78,'Crop 1'!$L$53*VLOOKUP('Crop 1'!$E$53,Carbon!$AH$4:$AI$10,2,FALSE),0)+IF('Crop 1'!$C$56=Carbon!$B78,'Crop 1'!$L$56*VLOOKUP('Crop 1'!$E$56,Carbon!$AH$4:$AI$10,2,FALSE),0)+IF('Crop 1'!$C$57=Carbon!$B78,'Crop 1'!$L$57*VLOOKUP('Crop 1'!$E$57,Carbon!$AH$4:$AI$10,2,FALSE),0)+IF('Crop 1'!$C$58=Carbon!$B78,'Crop 1'!$L$58*VLOOKUP('Crop 1'!$E$58,Carbon!$AH$4:$AI$10,2,FALSE),0)+IF('Crop 1'!$C$59=Carbon!$B78,'Crop 1'!$L$59*VLOOKUP('Crop 1'!$E$59,Carbon!$AH$4:$AI$10,2,FALSE),0)+IF('Crop 1'!$C$62=Carbon!$B78,'Crop 1'!$L$62*VLOOKUP('Crop 1'!$E$62,Carbon!$AH$4:$AI$10,2,FALSE),0)+IF('Crop 1'!$C$63=Carbon!$B78,'Crop 1'!$L$63*VLOOKUP('Crop 1'!$E$63,Carbon!$AH$4:$AI$10,2,FALSE),0)+IF('Crop 1'!$C$64=Carbon!$B78,'Crop 1'!$L$64*VLOOKUP('Crop 1'!$E$64,Carbon!$AH$4:$AI$10,2,FALSE),0)+IF('Crop 1'!$C$65=Carbon!$B78,'Crop 1'!$L$65*VLOOKUP('Crop 1'!$E$65,Carbon!$AH$4:$AI$10,2,FALSE),0))*$AL$20,2)","v":0},{"$f":"C78*Inputs!$D$13","v":0},{"$f":"ROUND((IF('Crop 2'!$C$14=Carbon!$B78,'Crop 2'!$L$14*VLOOKUP('Crop 2'!$E$14,Carbon!$AH$4:$AI$10,2,FALSE),0)+IF('Crop 2'!$C$15=Carbon!$B78,'Crop 2'!$L$15*VLOOKUP('Crop 2'!$E$15,Carbon!$AH$4:$AI$10,2,FALSE),0)+IF('Crop 2'!$C$16=Carbon!$B78,'Crop 2'!$L$16*VLOOKUP('Crop 2'!$E$16,Carbon!$AH$4:$AI$10,2,FALSE),0)+IF('Crop 2'!$C$19=Carbon!$B78,'Crop 2'!$L$19*VLOOKUP('Crop 2'!$E$19,Carbon!$AH$4:$AI$10,2,FALSE),0)+IF('Crop 2'!$C$20=Carbon!$B78,'Crop 2'!$L$20*VLOOKUP('Crop 2'!$E$20,Carbon!$AH$4:$AI$10,2,FALSE),0)+IF('Crop 2'!$C$21=Carbon!$B78,'Crop 2'!$L$21*VLOOKUP('Crop 2'!$E$21,Carbon!$AH$4:$AI$10,2,FALSE),0)+IF('Crop 2'!$C$49=Carbon!$B78,'Crop 2'!$L$49*VLOOKUP('Crop 2'!$E$49,Carbon!$AH$4:$AI$10,2,FALSE),0)+IF('Crop 2'!$C$50=Carbon!$B78,'Crop 2'!$L$50*VLOOKUP('Crop 2'!$E$50,Carbon!$AH$4:$AI$10,2,FALSE),0)+IF('Crop 2'!$C$51=Carbon!$B78,'Crop 2'!$L$51*VLOOKUP('Crop 2'!$E$51,Carbon!$AH$4:$AI$10,2,FALSE),0)+IF('Crop 2'!$C$52=Carbon!$B78,'Crop 2'!$L$52*VLOOKUP('Crop 2'!$E$52,Carbon!$AH$4:$AI$10,2,FALSE),0)+IF('Crop 2'!$C$53=Carbon!$B78,'Crop 2'!$L$53*VLOOKUP('Crop 2'!$E$53,Carbon!$AH$4:$AI$10,2,FALSE),0)+IF('Crop 2'!$C$56=Carbon!$B78,'Crop 2'!$L$56*VLOOKUP('Crop 2'!$E$56,Carbon!$AH$4:$AI$10,2,FALSE),0)+IF('Crop 2'!$C$57=Carbon!$B78,'Crop 2'!$L$57*VLOOKUP('Crop 2'!$E$57,Carbon!$AH$4:$AI$10,2,FALSE),0)+IF('Crop 2'!$C$58=Carbon!$B78,'Crop 2'!$L$58*VLOOKUP('Crop 2'!$E$58,Carbon!$AH$4:$AI$10,2,FALSE),0)+IF('Crop 2'!$C$59=Carbon!$B78,'Crop 2'!$L$59*VLOOKUP('Crop 2'!$E$59,Carbon!$AH$4:$AI$10,2,FALSE),0)+IF('Crop 2'!$C$62=Carbon!$B78,'Crop 2'!$L$62*VLOOKUP('Crop 2'!$E$62,Carbon!$AH$4:$AI$10,2,FALSE),0)+IF('Crop 2'!$C$63=Carbon!$B78,'Crop 2'!$L$63*VLOOKUP('Crop 2'!$E$63,Carbon!$AH$4:$AI$10,2,FALSE),0)+IF('Crop 2'!$C$64=Carbon!$B78,'Crop 2'!$L$64*VLOOKUP('Crop 2'!$E$64,Carbon!$AH$4:$AI$10,2,FALSE),0)+IF('Crop 2'!$C$65=Carbon!$B78,'Crop 2'!$L$65*VLOOKUP('Crop 2'!$E$65,Carbon!$AH$4:$AI$10,2,FALSE),0))*$AL$20,2)","v":0},{"$f":"E78*Inputs!$D$15","v":0},{"$f":"ROUND((IF('Crop 3'!$C$14=Carbon!$B78,'Crop 3'!$L$14*VLOOKUP('Crop 3'!$E$14,Carbon!$AH$4:$AI$10,2,FALSE),0)+IF('Crop 3'!$C$15=Carbon!$B78,'Crop 3'!$L$15*VLOOKUP('Crop 3'!$E$15,Carbon!$AH$4:$AI$10,2,FALSE),0)+IF('Crop 3'!$C$16=Carbon!$B78,'Crop 3'!$L$16*VLOOKUP('Crop 3'!$E$16,Carbon!$AH$4:$AI$10,2,FALSE),0)+IF('Crop 3'!$C$19=Carbon!$B78,'Crop 3'!$L$19*VLOOKUP('Crop 3'!$E$19,Carbon!$AH$4:$AI$10,2,FALSE),0)+IF('Crop 3'!$C$20=Carbon!$B78,'Crop 3'!$L$20*VLOOKUP('Crop 3'!$E$20,Carbon!$AH$4:$AI$10,2,FALSE),0)+IF('Crop 3'!$C$21=Carbon!$B78,'Crop 3'!$L$21*VLOOKUP('Crop 3'!$E$21,Carbon!$AH$4:$AI$10,2,FALSE),0)+IF('Crop 3'!$C$49=Carbon!$B78,'Crop 3'!$L$49*VLOOKUP('Crop 3'!$E$49,Carbon!$AH$4:$AI$10,2,FALSE),0)+IF('Crop 3'!$C$50=Carbon!$B78,'Crop 3'!$L$50*VLOOKUP('Crop 3'!$E$50,Carbon!$AH$4:$AI$10,2,FALSE),0)+IF('Crop 3'!$C$51=Carbon!$B78,'Crop 3'!$L$51*VLOOKUP('Crop 3'!$E$51,Carbon!$AH$4:$AI$10,2,FALSE),0)+IF('Crop 3'!$C$52=Carbon!$B78,'Crop 3'!$L$52*VLOOKUP('Crop 3'!$E$52,Carbon!$AH$4:$AI$10,2,FALSE),0)+IF('Crop 3'!$C$53=Carbon!$B78,'Crop 3'!$L$53*VLOOKUP('Crop 3'!$E$53,Carbon!$AH$4:$AI$10,2,FALSE),0)+IF('Crop 3'!$C$56=Carbon!$B78,'Crop 3'!$L$56*VLOOKUP('Crop 3'!$E$56,Carbon!$AH$4:$AI$10,2,FALSE),0)+IF('Crop 3'!$C$57=Carbon!$B78,'Crop 3'!$L$57*VLOOKUP('Crop 3'!$E$57,Carbon!$AH$4:$AI$10,2,FALSE),0)+IF('Crop 3'!$C$58=Carbon!$B78,'Crop 3'!$L$58*VLOOKUP('Crop 3'!$E$58,Carbon!$AH$4:$AI$10,2,FALSE),0)+IF('Crop 3'!$C$59=Carbon!$B78,'Crop 3'!$L$59*VLOOKUP('Crop 3'!$E$59,Carbon!$AH$4:$AI$10,2,FALSE),0)+IF('Crop 3'!$C$62=Carbon!$B78,'Crop 3'!$L$62*VLOOKUP('Crop 3'!$E$62,Carbon!$AH$4:$AI$10,2,FALSE),0)+IF('Crop 3'!$C$63=Carbon!$B78,'Crop 3'!$L$63*VLOOKUP('Crop 3'!$E$63,Carbon!$AH$4:$AI$10,2,FALSE),0)+IF('Crop 3'!$C$64=Carbon!$B78,'Crop 3'!$L$64*VLOOKUP('Crop 3'!$E$64,Carbon!$AH$4:$AI$10,2,FALSE),0)+IF('Crop 3'!$C$65=Carbon!$B78,'Crop 3'!$L$65*VLOOKUP('Crop 3'!$E$65,Carbon!$AH$4:$AI$10,2,FALSE),0))*$AL$20,2)","v":0},{"$f":"G78*Inputs!$D$17","v":0},{"$f":"ROUND(J78/Inputs!D$19,2)","v":0},0,null,null,{"$f":"ROUND((IF('Crop 1'!$C$14=Carbon!$B78,'Crop 1'!$V$14*VLOOKUP('Crop 1'!$E$14,Carbon!$AH$4:$AI$10,2,FALSE),0)+IF('Crop 1'!$C$15=Carbon!$B78,'Crop 1'!$V$15*VLOOKUP('Crop 1'!$E$15,Carbon!$AH$4:$AI$10,2,FALSE),0)+IF('Crop 1'!$C$16=Carbon!$B78,'Crop 1'!$V$16*VLOOKUP('Crop 1'!$E$16,Carbon!$AH$4:$AI$10,2,FALSE),0)+IF('Crop 1'!$C$19=Carbon!$B78,'Crop 1'!$V$19*VLOOKUP('Crop 1'!$E$19,Carbon!$AH$4:$AI$10,2,FALSE),0)+IF('Crop 1'!$C$20=Carbon!$B78,'Crop 1'!$V$20*VLOOKUP('Crop 1'!$E$20,Carbon!$AH$4:$AI$10,2,FALSE),0)+IF('Crop 1'!$C$21=Carbon!$B78,'Crop 1'!$V$21*VLOOKUP('Crop 1'!$E$21,Carbon!$AH$4:$AI$10,2,FALSE),0)+IF('Crop 1'!$C$49=Carbon!$B78,'Crop 1'!$V$49*VLOOKUP('Crop 1'!$E$49,Carbon!$AH$4:$AI$10,2,FALSE),0)+IF('Crop 1'!$C$50=Carbon!$B78,'Crop 1'!$V$50*VLOOKUP('Crop 1'!$E$50,Carbon!$AH$4:$AI$10,2,FALSE),0)+IF('Crop 1'!$C$51=Carbon!$B78,'Crop 1'!$V$51*VLOOKUP('Crop 1'!$E$51,Carbon!$AH$4:$AI$10,2,FALSE),0)+IF('Crop 1'!$C$52=Carbon!$B78,'Crop 1'!$V$52*VLOOKUP('Crop 1'!$E$52,Carbon!$AH$4:$AI$10,2,FALSE),0)+IF('Crop 1'!$C$53=Carbon!$B78,'Crop 1'!$V$53*VLOOKUP('Crop 1'!$E$53,Carbon!$AH$4:$AI$10,2,FALSE),0)+IF('Crop 1'!$C$56=Carbon!$B78,'Crop 1'!$V$56*VLOOKUP('Crop 1'!$E$56,Carbon!$AH$4:$AI$10,2,FALSE),0)+IF('Crop 1'!$C$57=Carbon!$B78,'Crop 1'!$V$57*VLOOKUP('Crop 1'!$E$57,Carbon!$AH$4:$AI$10,2,FALSE),0)+IF('Crop 1'!$C$58=Carbon!$B78,'Crop 1'!$V$58*VLOOKUP('Crop 1'!$E$58,Carbon!$AH$4:$AI$10,2,FALSE),0)+IF('Crop 1'!$C$59=Carbon!$B78,'Crop 1'!$V$59*VLOOKUP('Crop 1'!$E$59,Carbon!$AH$4:$AI$10,2,FALSE),0)+IF('Crop 1'!$C$62=Carbon!$B78,'Crop 1'!$V$62*VLOOKUP('Crop 1'!$E$62,Carbon!$AH$4:$AI$10,2,FALSE),0)+IF('Crop 1'!$C$63=Carbon!$B78,'Crop 1'!$V$63*VLOOKUP('Crop 1'!$E$63,Carbon!$AH$4:$AI$10,2,FALSE),0)+IF('Crop 1'!$C$64=Carbon!$B78,'Crop 1'!$V$64*VLOOKUP('Crop 1'!$E$64,Carbon!$AH$4:$AI$10,2,FALSE),0)+IF('Crop 1'!$C$65=Carbon!$B78,'Crop 1'!$V$65*VLOOKUP('Crop 1'!$E$65,Carbon!$AH$4:$AI$10,2,FALSE),0))*$AL$20,2)","v":0},{"$f":"M78*Inputs!$D$13","v":0},{"$f":"ROUND((IF('Crop 2'!$C$14=Carbon!$B78,'Crop 2'!$V$14*VLOOKUP('Crop 2'!$E$14,Carbon!$AH$4:$AI$10,2,FALSE),0)+IF('Crop 2'!$C$15=Carbon!$B78,'Crop 2'!$V$15*VLOOKUP('Crop 2'!$E$15,Carbon!$AH$4:$AI$10,2,FALSE),0)+IF('Crop 2'!$C$16=Carbon!$B78,'Crop 2'!$V$16*VLOOKUP('Crop 2'!$E$16,Carbon!$AH$4:$AI$10,2,FALSE),0)+IF('Crop 2'!$C$19=Carbon!$B78,'Crop 2'!$V$19*VLOOKUP('Crop 2'!$E$19,Carbon!$AH$4:$AI$10,2,FALSE),0)+IF('Crop 2'!$C$20=Carbon!$B78,'Crop 2'!$V$20*VLOOKUP('Crop 2'!$E$20,Carbon!$AH$4:$AI$10,2,FALSE),0)+IF('Crop 2'!$C$21=Carbon!$B78,'Crop 2'!$V$21*VLOOKUP('Crop 2'!$E$21,Carbon!$AH$4:$AI$10,2,FALSE),0)+IF('Crop 2'!$C$49=Carbon!$B78,'Crop 2'!$V$49*VLOOKUP('Crop 2'!$E$49,Carbon!$AH$4:$AI$10,2,FALSE),0)+IF('Crop 2'!$C$50=Carbon!$B78,'Crop 2'!$V$50*VLOOKUP('Crop 2'!$E$50,Carbon!$AH$4:$AI$10,2,FALSE),0)+IF('Crop 2'!$C$51=Carbon!$B78,'Crop 2'!$V$51*VLOOKUP('Crop 2'!$E$51,Carbon!$AH$4:$AI$10,2,FALSE),0)+IF('Crop 2'!$C$52=Carbon!$B78,'Crop 2'!$V$52*VLOOKUP('Crop 2'!$E$52,Carbon!$AH$4:$AI$10,2,FALSE),0)+IF('Crop 2'!$C$53=Carbon!$B78,'Crop 2'!$V$53*VLOOKUP('Crop 2'!$E$53,Carbon!$AH$4:$AI$10,2,FALSE),0)+IF('Crop 2'!$C$56=Carbon!$B78,'Crop 2'!$V$56*VLOOKUP('Crop 2'!$E$56,Carbon!$AH$4:$AI$10,2,FALSE),0)+IF('Crop 2'!$C$57=Carbon!$B78,'Crop 2'!$V$57*VLOOKUP('Crop 2'!$E$57,Carbon!$AH$4:$AI$10,2,FALSE),0)+IF('Crop 2'!$C$58=Carbon!$B78,'Crop 2'!$V$58*VLOOKUP('Crop 2'!$E$58,Carbon!$AH$4:$AI$10,2,FALSE),0)+IF('Crop 2'!$C$59=Carbon!$B78,'Crop 2'!$V$59*VLOOKUP('Crop 2'!$E$59,Carbon!$AH$4:$AI$10,2,FALSE),0)+IF('Crop 2'!$C$62=Carbon!$B78,'Crop 2'!$V$62*VLOOKUP('Crop 2'!$E$62,Carbon!$AH$4:$AI$10,2,FALSE),0)+IF('Crop 2'!$C$63=Carbon!$B78,'Crop 2'!$V$63*VLOOKUP('Crop 2'!$E$63,Carbon!$AH$4:$AI$10,2,FALSE),0)+IF('Crop 2'!$C$64=Carbon!$B78,'Crop 2'!$V$64*VLOOKUP('Crop 2'!$E$64,Carbon!$AH$4:$AI$10,2,FALSE),0)+IF('Crop 2'!$C$65=Carbon!$B78,'Crop 2'!$V$65*VLOOKUP('Crop 2'!$E$65,Carbon!$AH$4:$AI$10,2,FALSE),0))*$AL$20,2)","v":0},{"$f":"O78*Inputs!$D$15","v":0},{"$f":"ROUND((IF('Crop 3'!$C$14=Carbon!$B78,'Crop 3'!$V$14*VLOOKUP('Crop 3'!$E$14,Carbon!$AH$4:$AI$10,2,FALSE),0)+IF('Crop 3'!$C$15=Carbon!$B78,'Crop 3'!$V$15*VLOOKUP('Crop 3'!$E$15,Carbon!$AH$4:$AI$10,2,FALSE),0)+IF('Crop 3'!$C$16=Carbon!$B78,'Crop 3'!$V$16*VLOOKUP('Crop 3'!$E$16,Carbon!$AH$4:$AI$10,2,FALSE),0)+IF('Crop 3'!$C$19=Carbon!$B78,'Crop 3'!$V$19*VLOOKUP('Crop 3'!$E$19,Carbon!$AH$4:$AI$10,2,FALSE),0)+IF('Crop 3'!$C$20=Carbon!$B78,'Crop 3'!$V$20*VLOOKUP('Crop 3'!$E$20,Carbon!$AH$4:$AI$10,2,FALSE),0)+IF('Crop 3'!$C$21=Carbon!$B78,'Crop 3'!$V$21*VLOOKUP('Crop 3'!$E$21,Carbon!$AH$4:$AI$10,2,FALSE),0)+IF('Crop 3'!$C$49=Carbon!$B78,'Crop 3'!$V$49*VLOOKUP('Crop 3'!$E$49,Carbon!$AH$4:$AI$10,2,FALSE),0)+IF('Crop 3'!$C$50=Carbon!$B78,'Crop 3'!$V$50*VLOOKUP('Crop 3'!$E$50,Carbon!$AH$4:$AI$10,2,FALSE),0)+IF('Crop 3'!$C$51=Carbon!$B78,'Crop 3'!$V$51*VLOOKUP('Crop 3'!$E$51,Carbon!$AH$4:$AI$10,2,FALSE),0)+IF('Crop 3'!$C$52=Carbon!$B78,'Crop 3'!$V$52*VLOOKUP('Crop 3'!$E$52,Carbon!$AH$4:$AI$10,2,FALSE),0)+IF('Crop 3'!$C$53=Carbon!$B78,'Crop 3'!$V$53*VLOOKUP('Crop 3'!$E$53,Carbon!$AH$4:$AI$10,2,FALSE),0)+IF('Crop 3'!$C$56=Carbon!$B78,'Crop 3'!$V$56*VLOOKUP('Crop 3'!$E$56,Carbon!$AH$4:$AI$10,2,FALSE),0)+IF('Crop 3'!$C$57=Carbon!$B78,'Crop 3'!$V$57*VLOOKUP('Crop 3'!$E$57,Carbon!$AH$4:$AI$10,2,FALSE),0)+IF('Crop 3'!$C$58=Carbon!$B78,'Crop 3'!$V$58*VLOOKUP('Crop 3'!$E$58,Carbon!$AH$4:$AI$10,2,FALSE),0)+IF('Crop 3'!$C$59=Carbon!$B78,'Crop 3'!$V$59*VLOOKUP('Crop 3'!$E$59,Carbon!$AH$4:$AI$10,2,FALSE),0)+IF('Crop 3'!$C$62=Carbon!$B78,'Crop 3'!$V$62*VLOOKUP('Crop 3'!$E$62,Carbon!$AH$4:$AI$10,2,FALSE),0)+IF('Crop 3'!$C$63=Carbon!$B78,'Crop 3'!$V$63*VLOOKUP('Crop 3'!$E$63,Carbon!$AH$4:$AI$10,2,FALSE),0)+IF('Crop 3'!$C$64=Carbon!$B78,'Crop 3'!$V$64*VLOOKUP('Crop 3'!$E$64,Carbon!$AH$4:$AI$10,2,FALSE),0)+IF('Crop 3'!$C$65=Carbon!$B78,'Crop 3'!$V$65*VLOOKUP('Crop 3'!$E$65,Carbon!$AH$4:$AI$10,2,FALSE),0))*$AL$20,2)","v":0},{"$f":"Q78*Inputs!$D$17","v":0},{"$f":"ROUND(T78/Inputs!D$19,2)","v":0},0,null,null,0,{"$f":"W78*Inputs!$D$13","v":0},0,{"$f":"Y78*Inputs!$D$13","v":0},0,{"$f":"AA78*Inputs!$D$13","v":0},{"$f":"ROUND(AD78/Inputs!D$19,2)","v":0},0]
[null,{"$f":"Defaults!AH45","v":"Direx"},{"$f":"ROUND((IF('Crop 1'!$C$14=Carbon!$B79,'Crop 1'!$L$14*VLOOKUP('Crop 1'!$E$14,Carbon!$AH$4:$AI$10,2,FALSE),0)+IF('Crop 1'!$C$15=Carbon!$B79,'Crop 1'!$L$15*VLOOKUP('Crop 1'!$E$15,Carbon!$AH$4:$AI$10,2,FALSE),0)+IF('Crop 1'!$C$16=Carbon!$B79,'Crop 1'!$L$16*VLOOKUP('Crop 1'!$E$16,Carbon!$AH$4:$AI$10,2,FALSE),0)+IF('Crop 1'!$C$19=Carbon!$B79,'Crop 1'!$L$19*VLOOKUP('Crop 1'!$E$19,Carbon!$AH$4:$AI$10,2,FALSE),0)+IF('Crop 1'!$C$20=Carbon!$B79,'Crop 1'!$L$20*VLOOKUP('Crop 1'!$E$20,Carbon!$AH$4:$AI$10,2,FALSE),0)+IF('Crop 1'!$C$21=Carbon!$B79,'Crop 1'!$L$21*VLOOKUP('Crop 1'!$E$21,Carbon!$AH$4:$AI$10,2,FALSE),0)+IF('Crop 1'!$C$49=Carbon!$B79,'Crop 1'!$L$49*VLOOKUP('Crop 1'!$E$49,Carbon!$AH$4:$AI$10,2,FALSE),0)+IF('Crop 1'!$C$50=Carbon!$B79,'Crop 1'!$L$50*VLOOKUP('Crop 1'!$E$50,Carbon!$AH$4:$AI$10,2,FALSE),0)+IF('Crop 1'!$C$51=Carbon!$B79,'Crop 1'!$L$51*VLOOKUP('Crop 1'!$E$51,Carbon!$AH$4:$AI$10,2,FALSE),0)+IF('Crop 1'!$C$52=Carbon!$B79,'Crop 1'!$L$52*VLOOKUP('Crop 1'!$E$52,Carbon!$AH$4:$AI$10,2,FALSE),0)+IF('Crop 1'!$C$53=Carbon!$B79,'Crop 1'!$L$53*VLOOKUP('Crop 1'!$E$53,Carbon!$AH$4:$AI$10,2,FALSE),0)+IF('Crop 1'!$C$56=Carbon!$B79,'Crop 1'!$L$56*VLOOKUP('Crop 1'!$E$56,Carbon!$AH$4:$AI$10,2,FALSE),0)+IF('Crop 1'!$C$57=Carbon!$B79,'Crop 1'!$L$57*VLOOKUP('Crop 1'!$E$57,Carbon!$AH$4:$AI$10,2,FALSE),0)+IF('Crop 1'!$C$58=Carbon!$B79,'Crop 1'!$L$58*VLOOKUP('Crop 1'!$E$58,Carbon!$AH$4:$AI$10,2,FALSE),0)+IF('Crop 1'!$C$59=Carbon!$B79,'Crop 1'!$L$59*VLOOKUP('Crop 1'!$E$59,Carbon!$AH$4:$AI$10,2,FALSE),0)+IF('Crop 1'!$C$62=Carbon!$B79,'Crop 1'!$L$62*VLOOKUP('Crop 1'!$E$62,Carbon!$AH$4:$AI$10,2,FALSE),0)+IF('Crop 1'!$C$63=Carbon!$B79,'Crop 1'!$L$63*VLOOKUP('Crop 1'!$E$63,Carbon!$AH$4:$AI$10,2,FALSE),0)+IF('Crop 1'!$C$64=Carbon!$B79,'Crop 1'!$L$64*VLOOKUP('Crop 1'!$E$64,Carbon!$AH$4:$AI$10,2,FALSE),0)+IF('Crop 1'!$C$65=Carbon!$B79,'Crop 1'!$L$65*VLOOKUP('Crop 1'!$E$65,Carbon!$AH$4:$AI$10,2,FALSE),0))*$AL$20,2)","v":0},{"$f":"C79*Inputs!$D$13","v":0},{"$f":"ROUND((IF('Crop 2'!$C$14=Carbon!$B79,'Crop 2'!$L$14*VLOOKUP('Crop 2'!$E$14,Carbon!$AH$4:$AI$10,2,FALSE),0)+IF('Crop 2'!$C$15=Carbon!$B79,'Crop 2'!$L$15*VLOOKUP('Crop 2'!$E$15,Carbon!$AH$4:$AI$10,2,FALSE),0)+IF('Crop 2'!$C$16=Carbon!$B79,'Crop 2'!$L$16*VLOOKUP('Crop 2'!$E$16,Carbon!$AH$4:$AI$10,2,FALSE),0)+IF('Crop 2'!$C$19=Carbon!$B79,'Crop 2'!$L$19*VLOOKUP('Crop 2'!$E$19,Carbon!$AH$4:$AI$10,2,FALSE),0)+IF('Crop 2'!$C$20=Carbon!$B79,'Crop 2'!$L$20*VLOOKUP('Crop 2'!$E$20,Carbon!$AH$4:$AI$10,2,FALSE),0)+IF('Crop 2'!$C$21=Carbon!$B79,'Crop 2'!$L$21*VLOOKUP('Crop 2'!$E$21,Carbon!$AH$4:$AI$10,2,FALSE),0)+IF('Crop 2'!$C$49=Carbon!$B79,'Crop 2'!$L$49*VLOOKUP('Crop 2'!$E$49,Carbon!$AH$4:$AI$10,2,FALSE),0)+IF('Crop 2'!$C$50=Carbon!$B79,'Crop 2'!$L$50*VLOOKUP('Crop 2'!$E$50,Carbon!$AH$4:$AI$10,2,FALSE),0)+IF('Crop 2'!$C$51=Carbon!$B79,'Crop 2'!$L$51*VLOOKUP('Crop 2'!$E$51,Carbon!$AH$4:$AI$10,2,FALSE),0)+IF('Crop 2'!$C$52=Carbon!$B79,'Crop 2'!$L$52*VLOOKUP('Crop 2'!$E$52,Carbon!$AH$4:$AI$10,2,FALSE),0)+IF('Crop 2'!$C$53=Carbon!$B79,'Crop 2'!$L$53*VLOOKUP('Crop 2'!$E$53,Carbon!$AH$4:$AI$10,2,FALSE),0)+IF('Crop 2'!$C$56=Carbon!$B79,'Crop 2'!$L$56*VLOOKUP('Crop 2'!$E$56,Carbon!$AH$4:$AI$10,2,FALSE),0)+IF('Crop 2'!$C$57=Carbon!$B79,'Crop 2'!$L$57*VLOOKUP('Crop 2'!$E$57,Carbon!$AH$4:$AI$10,2,FALSE),0)+IF('Crop 2'!$C$58=Carbon!$B79,'Crop 2'!$L$58*VLOOKUP('Crop 2'!$E$58,Carbon!$AH$4:$AI$10,2,FALSE),0)+IF('Crop 2'!$C$59=Carbon!$B79,'Crop 2'!$L$59*VLOOKUP('Crop 2'!$E$59,Carbon!$AH$4:$AI$10,2,FALSE),0)+IF('Crop 2'!$C$62=Carbon!$B79,'Crop 2'!$L$62*VLOOKUP('Crop 2'!$E$62,Carbon!$AH$4:$AI$10,2,FALSE),0)+IF('Crop 2'!$C$63=Carbon!$B79,'Crop 2'!$L$63*VLOOKUP('Crop 2'!$E$63,Carbon!$AH$4:$AI$10,2,FALSE),0)+IF('Crop 2'!$C$64=Carbon!$B79,'Crop 2'!$L$64*VLOOKUP('Crop 2'!$E$64,Carbon!$AH$4:$AI$10,2,FALSE),0)+IF('Crop 2'!$C$65=Carbon!$B79,'Crop 2'!$L$65*VLOOKUP('Crop 2'!$E$65,Carbon!$AH$4:$AI$10,2,FALSE),0))*$AL$20,2)","v":0},{"$f":"E79*Inputs!$D$15","v":0},{"$f":"ROUND((IF('Crop 3'!$C$14=Carbon!$B79,'Crop 3'!$L$14*VLOOKUP('Crop 3'!$E$14,Carbon!$AH$4:$AI$10,2,FALSE),0)+IF('Crop 3'!$C$15=Carbon!$B79,'Crop 3'!$L$15*VLOOKUP('Crop 3'!$E$15,Carbon!$AH$4:$AI$10,2,FALSE),0)+IF('Crop 3'!$C$16=Carbon!$B79,'Crop 3'!$L$16*VLOOKUP('Crop 3'!$E$16,Carbon!$AH$4:$AI$10,2,FALSE),0)+IF('Crop 3'!$C$19=Carbon!$B79,'Crop 3'!$L$19*VLOOKUP('Crop 3'!$E$19,Carbon!$AH$4:$AI$10,2,FALSE),0)+IF('Crop 3'!$C$20=Carbon!$B79,'Crop 3'!$L$20*VLOOKUP('Crop 3'!$E$20,Carbon!$AH$4:$AI$10,2,FALSE),0)+IF('Crop 3'!$C$21=Carbon!$B79,'Crop 3'!$L$21*VLOOKUP('Crop 3'!$E$21,Carbon!$AH$4:$AI$10,2,FALSE),0)+IF('Crop 3'!$C$49=Carbon!$B79,'Crop 3'!$L$49*VLOOKUP('Crop 3'!$E$49,Carbon!$AH$4:$AI$10,2,FALSE),0)+IF('Crop 3'!$C$50=Carbon!$B79,'Crop 3'!$L$50*VLOOKUP('Crop 3'!$E$50,Carbon!$AH$4:$AI$10,2,FALSE),0)+IF('Crop 3'!$C$51=Carbon!$B79,'Crop 3'!$L$51*VLOOKUP('Crop 3'!$E$51,Carbon!$AH$4:$AI$10,2,FALSE),0)+IF('Crop 3'!$C$52=Carbon!$B79,'Crop 3'!$L$52*VLOOKUP('Crop 3'!$E$52,Carbon!$AH$4:$AI$10,2,FALSE),0)+IF('Crop 3'!$C$53=Carbon!$B79,'Crop 3'!$L$53*VLOOKUP('Crop 3'!$E$53,Carbon!$AH$4:$AI$10,2,FALSE),0)+IF('Crop 3'!$C$56=Carbon!$B79,'Crop 3'!$L$56*VLOOKUP('Crop 3'!$E$56,Carbon!$AH$4:$AI$10,2,FALSE),0)+IF('Crop 3'!$C$57=Carbon!$B79,'Crop 3'!$L$57*VLOOKUP('Crop 3'!$E$57,Carbon!$AH$4:$AI$10,2,FALSE),0)+IF('Crop 3'!$C$58=Carbon!$B79,'Crop 3'!$L$58*VLOOKUP('Crop 3'!$E$58,Carbon!$AH$4:$AI$10,2,FALSE),0)+IF('Crop 3'!$C$59=Carbon!$B79,'Crop 3'!$L$59*VLOOKUP('Crop 3'!$E$59,Carbon!$AH$4:$AI$10,2,FALSE),0)+IF('Crop 3'!$C$62=Carbon!$B79,'Crop 3'!$L$62*VLOOKUP('Crop 3'!$E$62,Carbon!$AH$4:$AI$10,2,FALSE),0)+IF('Crop 3'!$C$63=Carbon!$B79,'Crop 3'!$L$63*VLOOKUP('Crop 3'!$E$63,Carbon!$AH$4:$AI$10,2,FALSE),0)+IF('Crop 3'!$C$64=Carbon!$B79,'Crop 3'!$L$64*VLOOKUP('Crop 3'!$E$64,Carbon!$AH$4:$AI$10,2,FALSE),0)+IF('Crop 3'!$C$65=Carbon!$B79,'Crop 3'!$L$65*VLOOKUP('Crop 3'!$E$65,Carbon!$AH$4:$AI$10,2,FALSE),0))*$AL$20,2)","v":0},{"$f":"G79*Inputs!$D$17","v":0},{"$f":"ROUND(J79/Inputs!D$19,2)","v":0},0,null,null,{"$f":"ROUND((IF('Crop 1'!$C$14=Carbon!$B79,'Crop 1'!$V$14*VLOOKUP('Crop 1'!$E$14,Carbon!$AH$4:$AI$10,2,FALSE),0)+IF('Crop 1'!$C$15=Carbon!$B79,'Crop 1'!$V$15*VLOOKUP('Crop 1'!$E$15,Carbon!$AH$4:$AI$10,2,FALSE),0)+IF('Crop 1'!$C$16=Carbon!$B79,'Crop 1'!$V$16*VLOOKUP('Crop 1'!$E$16,Carbon!$AH$4:$AI$10,2,FALSE),0)+IF('Crop 1'!$C$19=Carbon!$B79,'Crop 1'!$V$19*VLOOKUP('Crop 1'!$E$19,Carbon!$AH$4:$AI$10,2,FALSE),0)+IF('Crop 1'!$C$20=Carbon!$B79,'Crop 1'!$V$20*VLOOKUP('Crop 1'!$E$20,Carbon!$AH$4:$AI$10,2,FALSE),0)+IF('Crop 1'!$C$21=Carbon!$B79,'Crop 1'!$V$21*VLOOKUP('Crop 1'!$E$21,Carbon!$AH$4:$AI$10,2,FALSE),0)+IF('Crop 1'!$C$49=Carbon!$B79,'Crop 1'!$V$49*VLOOKUP('Crop 1'!$E$49,Carbon!$AH$4:$AI$10,2,FALSE),0)+IF('Crop 1'!$C$50=Carbon!$B79,'Crop 1'!$V$50*VLOOKUP('Crop 1'!$E$50,Carbon!$AH$4:$AI$10,2,FALSE),0)+IF('Crop 1'!$C$51=Carbon!$B79,'Crop 1'!$V$51*VLOOKUP('Crop 1'!$E$51,Carbon!$AH$4:$AI$10,2,FALSE),0)+IF('Crop 1'!$C$52=Carbon!$B79,'Crop 1'!$V$52*VLOOKUP('Crop 1'!$E$52,Carbon!$AH$4:$AI$10,2,FALSE),0)+IF('Crop 1'!$C$53=Carbon!$B79,'Crop 1'!$V$53*VLOOKUP('Crop 1'!$E$53,Carbon!$AH$4:$AI$10,2,FALSE),0)+IF('Crop 1'!$C$56=Carbon!$B79,'Crop 1'!$V$56*VLOOKUP('Crop 1'!$E$56,Carbon!$AH$4:$AI$10,2,FALSE),0)+IF('Crop 1'!$C$57=Carbon!$B79,'Crop 1'!$V$57*VLOOKUP('Crop 1'!$E$57,Carbon!$AH$4:$AI$10,2,FALSE),0)+IF('Crop 1'!$C$58=Carbon!$B79,'Crop 1'!$V$58*VLOOKUP('Crop 1'!$E$58,Carbon!$AH$4:$AI$10,2,FALSE),0)+IF('Crop 1'!$C$59=Carbon!$B79,'Crop 1'!$V$59*VLOOKUP('Crop 1'!$E$59,Carbon!$AH$4:$AI$10,2,FALSE),0)+IF('Crop 1'!$C$62=Carbon!$B79,'Crop 1'!$V$62*VLOOKUP('Crop 1'!$E$62,Carbon!$AH$4:$AI$10,2,FALSE),0)+IF('Crop 1'!$C$63=Carbon!$B79,'Crop 1'!$V$63*VLOOKUP('Crop 1'!$E$63,Carbon!$AH$4:$AI$10,2,FALSE),0)+IF('Crop 1'!$C$64=Carbon!$B79,'Crop 1'!$V$64*VLOOKUP('Crop 1'!$E$64,Carbon!$AH$4:$AI$10,2,FALSE),0)+IF('Crop 1'!$C$65=Carbon!$B79,'Crop 1'!$V$65*VLOOKUP('Crop 1'!$E$65,Carbon!$AH$4:$AI$10,2,FALSE),0))*$AL$20,2)","v":0},{"$f":"M79*Inputs!$D$13","v":0},{"$f":"ROUND((IF('Crop 2'!$C$14=Carbon!$B79,'Crop 2'!$V$14*VLOOKUP('Crop 2'!$E$14,Carbon!$AH$4:$AI$10,2,FALSE),0)+IF('Crop 2'!$C$15=Carbon!$B79,'Crop 2'!$V$15*VLOOKUP('Crop 2'!$E$15,Carbon!$AH$4:$AI$10,2,FALSE),0)+IF('Crop 2'!$C$16=Carbon!$B79,'Crop 2'!$V$16*VLOOKUP('Crop 2'!$E$16,Carbon!$AH$4:$AI$10,2,FALSE),0)+IF('Crop 2'!$C$19=Carbon!$B79,'Crop 2'!$V$19*VLOOKUP('Crop 2'!$E$19,Carbon!$AH$4:$AI$10,2,FALSE),0)+IF('Crop 2'!$C$20=Carbon!$B79,'Crop 2'!$V$20*VLOOKUP('Crop 2'!$E$20,Carbon!$AH$4:$AI$10,2,FALSE),0)+IF('Crop 2'!$C$21=Carbon!$B79,'Crop 2'!$V$21*VLOOKUP('Crop 2'!$E$21,Carbon!$AH$4:$AI$10,2,FALSE),0)+IF('Crop 2'!$C$49=Carbon!$B79,'Crop 2'!$V$49*VLOOKUP('Crop 2'!$E$49,Carbon!$AH$4:$AI$10,2,FALSE),0)+IF('Crop 2'!$C$50=Carbon!$B79,'Crop 2'!$V$50*VLOOKUP('Crop 2'!$E$50,Carbon!$AH$4:$AI$10,2,FALSE),0)+IF('Crop 2'!$C$51=Carbon!$B79,'Crop 2'!$V$51*VLOOKUP('Crop 2'!$E$51,Carbon!$AH$4:$AI$10,2,FALSE),0)+IF('Crop 2'!$C$52=Carbon!$B79,'Crop 2'!$V$52*VLOOKUP('Crop 2'!$E$52,Carbon!$AH$4:$AI$10,2,FALSE),0)+IF('Crop 2'!$C$53=Carbon!$B79,'Crop 2'!$V$53*VLOOKUP('Crop 2'!$E$53,Carbon!$AH$4:$AI$10,2,FALSE),0)+IF('Crop 2'!$C$56=Carbon!$B79,'Crop 2'!$V$56*VLOOKUP('Crop 2'!$E$56,Carbon!$AH$4:$AI$10,2,FALSE),0)+IF('Crop 2'!$C$57=Carbon!$B79,'Crop 2'!$V$57*VLOOKUP('Crop 2'!$E$57,Carbon!$AH$4:$AI$10,2,FALSE),0)+IF('Crop 2'!$C$58=Carbon!$B79,'Crop 2'!$V$58*VLOOKUP('Crop 2'!$E$58,Carbon!$AH$4:$AI$10,2,FALSE),0)+IF('Crop 2'!$C$59=Carbon!$B79,'Crop 2'!$V$59*VLOOKUP('Crop 2'!$E$59,Carbon!$AH$4:$AI$10,2,FALSE),0)+IF('Crop 2'!$C$62=Carbon!$B79,'Crop 2'!$V$62*VLOOKUP('Crop 2'!$E$62,Carbon!$AH$4:$AI$10,2,FALSE),0)+IF('Crop 2'!$C$63=Carbon!$B79,'Crop 2'!$V$63*VLOOKUP('Crop 2'!$E$63,Carbon!$AH$4:$AI$10,2,FALSE),0)+IF('Crop 2'!$C$64=Carbon!$B79,'Crop 2'!$V$64*VLOOKUP('Crop 2'!$E$64,Carbon!$AH$4:$AI$10,2,FALSE),0)+IF('Crop 2'!$C$65=Carbon!$B79,'Crop 2'!$V$65*VLOOKUP('Crop 2'!$E$65,Carbon!$AH$4:$AI$10,2,FALSE),0))*$AL$20,2)","v":0},{"$f":"O79*Inputs!$D$15","v":0},{"$f":"ROUND((IF('Crop 3'!$C$14=Carbon!$B79,'Crop 3'!$V$14*VLOOKUP('Crop 3'!$E$14,Carbon!$AH$4:$AI$10,2,FALSE),0)+IF('Crop 3'!$C$15=Carbon!$B79,'Crop 3'!$V$15*VLOOKUP('Crop 3'!$E$15,Carbon!$AH$4:$AI$10,2,FALSE),0)+IF('Crop 3'!$C$16=Carbon!$B79,'Crop 3'!$V$16*VLOOKUP('Crop 3'!$E$16,Carbon!$AH$4:$AI$10,2,FALSE),0)+IF('Crop 3'!$C$19=Carbon!$B79,'Crop 3'!$V$19*VLOOKUP('Crop 3'!$E$19,Carbon!$AH$4:$AI$10,2,FALSE),0)+IF('Crop 3'!$C$20=Carbon!$B79,'Crop 3'!$V$20*VLOOKUP('Crop 3'!$E$20,Carbon!$AH$4:$AI$10,2,FALSE),0)+IF('Crop 3'!$C$21=Carbon!$B79,'Crop 3'!$V$21*VLOOKUP('Crop 3'!$E$21,Carbon!$AH$4:$AI$10,2,FALSE),0)+IF('Crop 3'!$C$49=Carbon!$B79,'Crop 3'!$V$49*VLOOKUP('Crop 3'!$E$49,Carbon!$AH$4:$AI$10,2,FALSE),0)+IF('Crop 3'!$C$50=Carbon!$B79,'Crop 3'!$V$50*VLOOKUP('Crop 3'!$E$50,Carbon!$AH$4:$AI$10,2,FALSE),0)+IF('Crop 3'!$C$51=Carbon!$B79,'Crop 3'!$V$51*VLOOKUP('Crop 3'!$E$51,Carbon!$AH$4:$AI$10,2,FALSE),0)+IF('Crop 3'!$C$52=Carbon!$B79,'Crop 3'!$V$52*VLOOKUP('Crop 3'!$E$52,Carbon!$AH$4:$AI$10,2,FALSE),0)+IF('Crop 3'!$C$53=Carbon!$B79,'Crop 3'!$V$53*VLOOKUP('Crop 3'!$E$53,Carbon!$AH$4:$AI$10,2,FALSE),0)+IF('Crop 3'!$C$56=Carbon!$B79,'Crop 3'!$V$56*VLOOKUP('Crop 3'!$E$56,Carbon!$AH$4:$AI$10,2,FALSE),0)+IF('Crop 3'!$C$57=Carbon!$B79,'Crop 3'!$V$57*VLOOKUP('Crop 3'!$E$57,Carbon!$AH$4:$AI$10,2,FALSE),0)+IF('Crop 3'!$C$58=Carbon!$B79,'Crop 3'!$V$58*VLOOKUP('Crop 3'!$E$58,Carbon!$AH$4:$AI$10,2,FALSE),0)+IF('Crop 3'!$C$59=Carbon!$B79,'Crop 3'!$V$59*VLOOKUP('Crop 3'!$E$59,Carbon!$AH$4:$AI$10,2,FALSE),0)+IF('Crop 3'!$C$62=Carbon!$B79,'Crop 3'!$V$62*VLOOKUP('Crop 3'!$E$62,Carbon!$AH$4:$AI$10,2,FALSE),0)+IF('Crop 3'!$C$63=Carbon!$B79,'Crop 3'!$V$63*VLOOKUP('Crop 3'!$E$63,Carbon!$AH$4:$AI$10,2,FALSE),0)+IF('Crop 3'!$C$64=Carbon!$B79,'Crop 3'!$V$64*VLOOKUP('Crop 3'!$E$64,Carbon!$AH$4:$AI$10,2,FALSE),0)+IF('Crop 3'!$C$65=Carbon!$B79,'Crop 3'!$V$65*VLOOKUP('Crop 3'!$E$65,Carbon!$AH$4:$AI$10,2,FALSE),0))*$AL$20,2)","v":0},{"$f":"Q79*Inputs!$D$17","v":0},{"$f":"ROUND(T79/Inputs!D$19,2)","v":0},0,null,null,0,{"$f":"W79*Inputs!$D$13","v":0},0,{"$f":"Y79*Inputs!$D$13","v":0},0,{"$f":"AA79*Inputs!$D$13","v":0},{"$f":"ROUND(AD79/Inputs!D$19,2)","v":0},0]
[null,{"$f":"Defaults!AH46","v":"Diuron"},{"$f":"ROUND((IF('Crop 1'!$C$14=Carbon!$B80,'Crop 1'!$L$14*VLOOKUP('Crop 1'!$E$14,Carbon!$AH$4:$AI$10,2,FALSE),0)+IF('Crop 1'!$C$15=Carbon!$B80,'Crop 1'!$L$15*VLOOKUP('Crop 1'!$E$15,Carbon!$AH$4:$AI$10,2,FALSE),0)+IF('Crop 1'!$C$16=Carbon!$B80,'Crop 1'!$L$16*VLOOKUP('Crop 1'!$E$16,Carbon!$AH$4:$AI$10,2,FALSE),0)+IF('Crop 1'!$C$19=Carbon!$B80,'Crop 1'!$L$19*VLOOKUP('Crop 1'!$E$19,Carbon!$AH$4:$AI$10,2,FALSE),0)+IF('Crop 1'!$C$20=Carbon!$B80,'Crop 1'!$L$20*VLOOKUP('Crop 1'!$E$20,Carbon!$AH$4:$AI$10,2,FALSE),0)+IF('Crop 1'!$C$21=Carbon!$B80,'Crop 1'!$L$21*VLOOKUP('Crop 1'!$E$21,Carbon!$AH$4:$AI$10,2,FALSE),0)+IF('Crop 1'!$C$49=Carbon!$B80,'Crop 1'!$L$49*VLOOKUP('Crop 1'!$E$49,Carbon!$AH$4:$AI$10,2,FALSE),0)+IF('Crop 1'!$C$50=Carbon!$B80,'Crop 1'!$L$50*VLOOKUP('Crop 1'!$E$50,Carbon!$AH$4:$AI$10,2,FALSE),0)+IF('Crop 1'!$C$51=Carbon!$B80,'Crop 1'!$L$51*VLOOKUP('Crop 1'!$E$51,Carbon!$AH$4:$AI$10,2,FALSE),0)+IF('Crop 1'!$C$52=Carbon!$B80,'Crop 1'!$L$52*VLOOKUP('Crop 1'!$E$52,Carbon!$AH$4:$AI$10,2,FALSE),0)+IF('Crop 1'!$C$53=Carbon!$B80,'Crop 1'!$L$53*VLOOKUP('Crop 1'!$E$53,Carbon!$AH$4:$AI$10,2,FALSE),0)+IF('Crop 1'!$C$56=Carbon!$B80,'Crop 1'!$L$56*VLOOKUP('Crop 1'!$E$56,Carbon!$AH$4:$AI$10,2,FALSE),0)+IF('Crop 1'!$C$57=Carbon!$B80,'Crop 1'!$L$57*VLOOKUP('Crop 1'!$E$57,Carbon!$AH$4:$AI$10,2,FALSE),0)+IF('Crop 1'!$C$58=Carbon!$B80,'Crop 1'!$L$58*VLOOKUP('Crop 1'!$E$58,Carbon!$AH$4:$AI$10,2,FALSE),0)+IF('Crop 1'!$C$59=Carbon!$B80,'Crop 1'!$L$59*VLOOKUP('Crop 1'!$E$59,Carbon!$AH$4:$AI$10,2,FALSE),0)+IF('Crop 1'!$C$62=Carbon!$B80,'Crop 1'!$L$62*VLOOKUP('Crop 1'!$E$62,Carbon!$AH$4:$AI$10,2,FALSE),0)+IF('Crop 1'!$C$63=Carbon!$B80,'Crop 1'!$L$63*VLOOKUP('Crop 1'!$E$63,Carbon!$AH$4:$AI$10,2,FALSE),0)+IF('Crop 1'!$C$64=Carbon!$B80,'Crop 1'!$L$64*VLOOKUP('Crop 1'!$E$64,Carbon!$AH$4:$AI$10,2,FALSE),0)+IF('Crop 1'!$C$65=Carbon!$B80,'Crop 1'!$L$65*VLOOKUP('Crop 1'!$E$65,Carbon!$AH$4:$AI$10,2,FALSE),0))*$AL$20,2)","v":0},{"$f":"C80*Inputs!$D$13","v":0},{"$f":"ROUND((IF('Crop 2'!$C$14=Carbon!$B80,'Crop 2'!$L$14*VLOOKUP('Crop 2'!$E$14,Carbon!$AH$4:$AI$10,2,FALSE),0)+IF('Crop 2'!$C$15=Carbon!$B80,'Crop 2'!$L$15*VLOOKUP('Crop 2'!$E$15,Carbon!$AH$4:$AI$10,2,FALSE),0)+IF('Crop 2'!$C$16=Carbon!$B80,'Crop 2'!$L$16*VLOOKUP('Crop 2'!$E$16,Carbon!$AH$4:$AI$10,2,FALSE),0)+IF('Crop 2'!$C$19=Carbon!$B80,'Crop 2'!$L$19*VLOOKUP('Crop 2'!$E$19,Carbon!$AH$4:$AI$10,2,FALSE),0)+IF('Crop 2'!$C$20=Carbon!$B80,'Crop 2'!$L$20*VLOOKUP('Crop 2'!$E$20,Carbon!$AH$4:$AI$10,2,FALSE),0)+IF('Crop 2'!$C$21=Carbon!$B80,'Crop 2'!$L$21*VLOOKUP('Crop 2'!$E$21,Carbon!$AH$4:$AI$10,2,FALSE),0)+IF('Crop 2'!$C$49=Carbon!$B80,'Crop 2'!$L$49*VLOOKUP('Crop 2'!$E$49,Carbon!$AH$4:$AI$10,2,FALSE),0)+IF('Crop 2'!$C$50=Carbon!$B80,'Crop 2'!$L$50*VLOOKUP('Crop 2'!$E$50,Carbon!$AH$4:$AI$10,2,FALSE),0)+IF('Crop 2'!$C$51=Carbon!$B80,'Crop 2'!$L$51*VLOOKUP('Crop 2'!$E$51,Carbon!$AH$4:$AI$10,2,FALSE),0)+IF('Crop 2'!$C$52=Carbon!$B80,'Crop 2'!$L$52*VLOOKUP('Crop 2'!$E$52,Carbon!$AH$4:$AI$10,2,FALSE),0)+IF('Crop 2'!$C$53=Carbon!$B80,'Crop 2'!$L$53*VLOOKUP('Crop 2'!$E$53,Carbon!$AH$4:$AI$10,2,FALSE),0)+IF('Crop 2'!$C$56=Carbon!$B80,'Crop 2'!$L$56*VLOOKUP('Crop 2'!$E$56,Carbon!$AH$4:$AI$10,2,FALSE),0)+IF('Crop 2'!$C$57=Carbon!$B80,'Crop 2'!$L$57*VLOOKUP('Crop 2'!$E$57,Carbon!$AH$4:$AI$10,2,FALSE),0)+IF('Crop 2'!$C$58=Carbon!$B80,'Crop 2'!$L$58*VLOOKUP('Crop 2'!$E$58,Carbon!$AH$4:$AI$10,2,FALSE),0)+IF('Crop 2'!$C$59=Carbon!$B80,'Crop 2'!$L$59*VLOOKUP('Crop 2'!$E$59,Carbon!$AH$4:$AI$10,2,FALSE),0)+IF('Crop 2'!$C$62=Carbon!$B80,'Crop 2'!$L$62*VLOOKUP('Crop 2'!$E$62,Carbon!$AH$4:$AI$10,2,FALSE),0)+IF('Crop 2'!$C$63=Carbon!$B80,'Crop 2'!$L$63*VLOOKUP('Crop 2'!$E$63,Carbon!$AH$4:$AI$10,2,FALSE),0)+IF('Crop 2'!$C$64=Carbon!$B80,'Crop 2'!$L$64*VLOOKUP('Crop 2'!$E$64,Carbon!$AH$4:$AI$10,2,FALSE),0)+IF('Crop 2'!$C$65=Carbon!$B80,'Crop 2'!$L$65*VLOOKUP('Crop 2'!$E$65,Carbon!$AH$4:$AI$10,2,FALSE),0))*$AL$20,2)","v":0},{"$f":"E80*Inputs!$D$15","v":0},{"$f":"ROUND((IF('Crop 3'!$C$14=Carbon!$B80,'Crop 3'!$L$14*VLOOKUP('Crop 3'!$E$14,Carbon!$AH$4:$AI$10,2,FALSE),0)+IF('Crop 3'!$C$15=Carbon!$B80,'Crop 3'!$L$15*VLOOKUP('Crop 3'!$E$15,Carbon!$AH$4:$AI$10,2,FALSE),0)+IF('Crop 3'!$C$16=Carbon!$B80,'Crop 3'!$L$16*VLOOKUP('Crop 3'!$E$16,Carbon!$AH$4:$AI$10,2,FALSE),0)+IF('Crop 3'!$C$19=Carbon!$B80,'Crop 3'!$L$19*VLOOKUP('Crop 3'!$E$19,Carbon!$AH$4:$AI$10,2,FALSE),0)+IF('Crop 3'!$C$20=Carbon!$B80,'Crop 3'!$L$20*VLOOKUP('Crop 3'!$E$20,Carbon!$AH$4:$AI$10,2,FALSE),0)+IF('Crop 3'!$C$21=Carbon!$B80,'Crop 3'!$L$21*VLOOKUP('Crop 3'!$E$21,Carbon!$AH$4:$AI$10,2,FALSE),0)+IF('Crop 3'!$C$49=Carbon!$B80,'Crop 3'!$L$49*VLOOKUP('Crop 3'!$E$49,Carbon!$AH$4:$AI$10,2,FALSE),0)+IF('Crop 3'!$C$50=Carbon!$B80,'Crop 3'!$L$50*VLOOKUP('Crop 3'!$E$50,Carbon!$AH$4:$AI$10,2,FALSE),0)+IF('Crop 3'!$C$51=Carbon!$B80,'Crop 3'!$L$51*VLOOKUP('Crop 3'!$E$51,Carbon!$AH$4:$AI$10,2,FALSE),0)+IF('Crop 3'!$C$52=Carbon!$B80,'Crop 3'!$L$52*VLOOKUP('Crop 3'!$E$52,Carbon!$AH$4:$AI$10,2,FALSE),0)+IF('Crop 3'!$C$53=Carbon!$B80,'Crop 3'!$L$53*VLOOKUP('Crop 3'!$E$53,Carbon!$AH$4:$AI$10,2,FALSE),0)+IF('Crop 3'!$C$56=Carbon!$B80,'Crop 3'!$L$56*VLOOKUP('Crop 3'!$E$56,Carbon!$AH$4:$AI$10,2,FALSE),0)+IF('Crop 3'!$C$57=Carbon!$B80,'Crop 3'!$L$57*VLOOKUP('Crop 3'!$E$57,Carbon!$AH$4:$AI$10,2,FALSE),0)+IF('Crop 3'!$C$58=Carbon!$B80,'Crop 3'!$L$58*VLOOKUP('Crop 3'!$E$58,Carbon!$AH$4:$AI$10,2,FALSE),0)+IF('Crop 3'!$C$59=Carbon!$B80,'Crop 3'!$L$59*VLOOKUP('Crop 3'!$E$59,Carbon!$AH$4:$AI$10,2,FALSE),0)+IF('Crop 3'!$C$62=Carbon!$B80,'Crop 3'!$L$62*VLOOKUP('Crop 3'!$E$62,Carbon!$AH$4:$AI$10,2,FALSE),0)+IF('Crop 3'!$C$63=Carbon!$B80,'Crop 3'!$L$63*VLOOKUP('Crop 3'!$E$63,Carbon!$AH$4:$AI$10,2,FALSE),0)+IF('Crop 3'!$C$64=Carbon!$B80,'Crop 3'!$L$64*VLOOKUP('Crop 3'!$E$64,Carbon!$AH$4:$AI$10,2,FALSE),0)+IF('Crop 3'!$C$65=Carbon!$B80,'Crop 3'!$L$65*VLOOKUP('Crop 3'!$E$65,Carbon!$AH$4:$AI$10,2,FALSE),0))*$AL$20,2)","v":0},{"$f":"G80*Inputs!$D$17","v":0},{"$f":"ROUND(J80/Inputs!D$19,2)","v":0},0,null,null,{"$f":"ROUND((IF('Crop 1'!$C$14=Carbon!$B80,'Crop 1'!$V$14*VLOOKUP('Crop 1'!$E$14,Carbon!$AH$4:$AI$10,2,FALSE),0)+IF('Crop 1'!$C$15=Carbon!$B80,'Crop 1'!$V$15*VLOOKUP('Crop 1'!$E$15,Carbon!$AH$4:$AI$10,2,FALSE),0)+IF('Crop 1'!$C$16=Carbon!$B80,'Crop 1'!$V$16*VLOOKUP('Crop 1'!$E$16,Carbon!$AH$4:$AI$10,2,FALSE),0)+IF('Crop 1'!$C$19=Carbon!$B80,'Crop 1'!$V$19*VLOOKUP('Crop 1'!$E$19,Carbon!$AH$4:$AI$10,2,FALSE),0)+IF('Crop 1'!$C$20=Carbon!$B80,'Crop 1'!$V$20*VLOOKUP('Crop 1'!$E$20,Carbon!$AH$4:$AI$10,2,FALSE),0)+IF('Crop 1'!$C$21=Carbon!$B80,'Crop 1'!$V$21*VLOOKUP('Crop 1'!$E$21,Carbon!$AH$4:$AI$10,2,FALSE),0)+IF('Crop 1'!$C$49=Carbon!$B80,'Crop 1'!$V$49*VLOOKUP('Crop 1'!$E$49,Carbon!$AH$4:$AI$10,2,FALSE),0)+IF('Crop 1'!$C$50=Carbon!$B80,'Crop 1'!$V$50*VLOOKUP('Crop 1'!$E$50,Carbon!$AH$4:$AI$10,2,FALSE),0)+IF('Crop 1'!$C$51=Carbon!$B80,'Crop 1'!$V$51*VLOOKUP('Crop 1'!$E$51,Carbon!$AH$4:$AI$10,2,FALSE),0)+IF('Crop 1'!$C$52=Carbon!$B80,'Crop 1'!$V$52*VLOOKUP('Crop 1'!$E$52,Carbon!$AH$4:$AI$10,2,FALSE),0)+IF('Crop 1'!$C$53=Carbon!$B80,'Crop 1'!$V$53*VLOOKUP('Crop 1'!$E$53,Carbon!$AH$4:$AI$10,2,FALSE),0)+IF('Crop 1'!$C$56=Carbon!$B80,'Crop 1'!$V$56*VLOOKUP('Crop 1'!$E$56,Carbon!$AH$4:$AI$10,2,FALSE),0)+IF('Crop 1'!$C$57=Carbon!$B80,'Crop 1'!$V$57*VLOOKUP('Crop 1'!$E$57,Carbon!$AH$4:$AI$10,2,FALSE),0)+IF('Crop 1'!$C$58=Carbon!$B80,'Crop 1'!$V$58*VLOOKUP('Crop 1'!$E$58,Carbon!$AH$4:$AI$10,2,FALSE),0)+IF('Crop 1'!$C$59=Carbon!$B80,'Crop 1'!$V$59*VLOOKUP('Crop 1'!$E$59,Carbon!$AH$4:$AI$10,2,FALSE),0)+IF('Crop 1'!$C$62=Carbon!$B80,'Crop 1'!$V$62*VLOOKUP('Crop 1'!$E$62,Carbon!$AH$4:$AI$10,2,FALSE),0)+IF('Crop 1'!$C$63=Carbon!$B80,'Crop 1'!$V$63*VLOOKUP('Crop 1'!$E$63,Carbon!$AH$4:$AI$10,2,FALSE),0)+IF('Crop 1'!$C$64=Carbon!$B80,'Crop 1'!$V$64*VLOOKUP('Crop 1'!$E$64,Carbon!$AH$4:$AI$10,2,FALSE),0)+IF('Crop 1'!$C$65=Carbon!$B80,'Crop 1'!$V$65*VLOOKUP('Crop 1'!$E$65,Carbon!$AH$4:$AI$10,2,FALSE),0))*$AL$20,2)","v":0},{"$f":"M80*Inputs!$D$13","v":0},{"$f":"ROUND((IF('Crop 2'!$C$14=Carbon!$B80,'Crop 2'!$V$14*VLOOKUP('Crop 2'!$E$14,Carbon!$AH$4:$AI$10,2,FALSE),0)+IF('Crop 2'!$C$15=Carbon!$B80,'Crop 2'!$V$15*VLOOKUP('Crop 2'!$E$15,Carbon!$AH$4:$AI$10,2,FALSE),0)+IF('Crop 2'!$C$16=Carbon!$B80,'Crop 2'!$V$16*VLOOKUP('Crop 2'!$E$16,Carbon!$AH$4:$AI$10,2,FALSE),0)+IF('Crop 2'!$C$19=Carbon!$B80,'Crop 2'!$V$19*VLOOKUP('Crop 2'!$E$19,Carbon!$AH$4:$AI$10,2,FALSE),0)+IF('Crop 2'!$C$20=Carbon!$B80,'Crop 2'!$V$20*VLOOKUP('Crop 2'!$E$20,Carbon!$AH$4:$AI$10,2,FALSE),0)+IF('Crop 2'!$C$21=Carbon!$B80,'Crop 2'!$V$21*VLOOKUP('Crop 2'!$E$21,Carbon!$AH$4:$AI$10,2,FALSE),0)+IF('Crop 2'!$C$49=Carbon!$B80,'Crop 2'!$V$49*VLOOKUP('Crop 2'!$E$49,Carbon!$AH$4:$AI$10,2,FALSE),0)+IF('Crop 2'!$C$50=Carbon!$B80,'Crop 2'!$V$50*VLOOKUP('Crop 2'!$E$50,Carbon!$AH$4:$AI$10,2,FALSE),0)+IF('Crop 2'!$C$51=Carbon!$B80,'Crop 2'!$V$51*VLOOKUP('Crop 2'!$E$51,Carbon!$AH$4:$AI$10,2,FALSE),0)+IF('Crop 2'!$C$52=Carbon!$B80,'Crop 2'!$V$52*VLOOKUP('Crop 2'!$E$52,Carbon!$AH$4:$AI$10,2,FALSE),0)+IF('Crop 2'!$C$53=Carbon!$B80,'Crop 2'!$V$53*VLOOKUP('Crop 2'!$E$53,Carbon!$AH$4:$AI$10,2,FALSE),0)+IF('Crop 2'!$C$56=Carbon!$B80,'Crop 2'!$V$56*VLOOKUP('Crop 2'!$E$56,Carbon!$AH$4:$AI$10,2,FALSE),0)+IF('Crop 2'!$C$57=Carbon!$B80,'Crop 2'!$V$57*VLOOKUP('Crop 2'!$E$57,Carbon!$AH$4:$AI$10,2,FALSE),0)+IF('Crop 2'!$C$58=Carbon!$B80,'Crop 2'!$V$58*VLOOKUP('Crop 2'!$E$58,Carbon!$AH$4:$AI$10,2,FALSE),0)+IF('Crop 2'!$C$59=Carbon!$B80,'Crop 2'!$V$59*VLOOKUP('Crop 2'!$E$59,Carbon!$AH$4:$AI$10,2,FALSE),0)+IF('Crop 2'!$C$62=Carbon!$B80,'Crop 2'!$V$62*VLOOKUP('Crop 2'!$E$62,Carbon!$AH$4:$AI$10,2,FALSE),0)+IF('Crop 2'!$C$63=Carbon!$B80,'Crop 2'!$V$63*VLOOKUP('Crop 2'!$E$63,Carbon!$AH$4:$AI$10,2,FALSE),0)+IF('Crop 2'!$C$64=Carbon!$B80,'Crop 2'!$V$64*VLOOKUP('Crop 2'!$E$64,Carbon!$AH$4:$AI$10,2,FALSE),0)+IF('Crop 2'!$C$65=Carbon!$B80,'Crop 2'!$V$65*VLOOKUP('Crop 2'!$E$65,Carbon!$AH$4:$AI$10,2,FALSE),0))*$AL$20,2)","v":0},{"$f":"O80*Inputs!$D$15","v":0},{"$f":"ROUND((IF('Crop 3'!$C$14=Carbon!$B80,'Crop 3'!$V$14*VLOOKUP('Crop 3'!$E$14,Carbon!$AH$4:$AI$10,2,FALSE),0)+IF('Crop 3'!$C$15=Carbon!$B80,'Crop 3'!$V$15*VLOOKUP('Crop 3'!$E$15,Carbon!$AH$4:$AI$10,2,FALSE),0)+IF('Crop 3'!$C$16=Carbon!$B80,'Crop 3'!$V$16*VLOOKUP('Crop 3'!$E$16,Carbon!$AH$4:$AI$10,2,FALSE),0)+IF('Crop 3'!$C$19=Carbon!$B80,'Crop 3'!$V$19*VLOOKUP('Crop 3'!$E$19,Carbon!$AH$4:$AI$10,2,FALSE),0)+IF('Crop 3'!$C$20=Carbon!$B80,'Crop 3'!$V$20*VLOOKUP('Crop 3'!$E$20,Carbon!$AH$4:$AI$10,2,FALSE),0)+IF('Crop 3'!$C$21=Carbon!$B80,'Crop 3'!$V$21*VLOOKUP('Crop 3'!$E$21,Carbon!$AH$4:$AI$10,2,FALSE),0)+IF('Crop 3'!$C$49=Carbon!$B80,'Crop 3'!$V$49*VLOOKUP('Crop 3'!$E$49,Carbon!$AH$4:$AI$10,2,FALSE),0)+IF('Crop 3'!$C$50=Carbon!$B80,'Crop 3'!$V$50*VLOOKUP('Crop 3'!$E$50,Carbon!$AH$4:$AI$10,2,FALSE),0)+IF('Crop 3'!$C$51=Carbon!$B80,'Crop 3'!$V$51*VLOOKUP('Crop 3'!$E$51,Carbon!$AH$4:$AI$10,2,FALSE),0)+IF('Crop 3'!$C$52=Carbon!$B80,'Crop 3'!$V$52*VLOOKUP('Crop 3'!$E$52,Carbon!$AH$4:$AI$10,2,FALSE),0)+IF('Crop 3'!$C$53=Carbon!$B80,'Crop 3'!$V$53*VLOOKUP('Crop 3'!$E$53,Carbon!$AH$4:$AI$10,2,FALSE),0)+IF('Crop 3'!$C$56=Carbon!$B80,'Crop 3'!$V$56*VLOOKUP('Crop 3'!$E$56,Carbon!$AH$4:$AI$10,2,FALSE),0)+IF('Crop 3'!$C$57=Carbon!$B80,'Crop 3'!$V$57*VLOOKUP('Crop 3'!$E$57,Carbon!$AH$4:$AI$10,2,FALSE),0)+IF('Crop 3'!$C$58=Carbon!$B80,'Crop 3'!$V$58*VLOOKUP('Crop 3'!$E$58,Carbon!$AH$4:$AI$10,2,FALSE),0)+IF('Crop 3'!$C$59=Carbon!$B80,'Crop 3'!$V$59*VLOOKUP('Crop 3'!$E$59,Carbon!$AH$4:$AI$10,2,FALSE),0)+IF('Crop 3'!$C$62=Carbon!$B80,'Crop 3'!$V$62*VLOOKUP('Crop 3'!$E$62,Carbon!$AH$4:$AI$10,2,FALSE),0)+IF('Crop 3'!$C$63=Carbon!$B80,'Crop 3'!$V$63*VLOOKUP('Crop 3'!$E$63,Carbon!$AH$4:$AI$10,2,FALSE),0)+IF('Crop 3'!$C$64=Carbon!$B80,'Crop 3'!$V$64*VLOOKUP('Crop 3'!$E$64,Carbon!$AH$4:$AI$10,2,FALSE),0)+IF('Crop 3'!$C$65=Carbon!$B80,'Crop 3'!$V$65*VLOOKUP('Crop 3'!$E$65,Carbon!$AH$4:$AI$10,2,FALSE),0))*$AL$20,2)","v":0},{"$f":"Q80*Inputs!$D$17","v":0},{"$f":"ROUND(T80/Inputs!D$19,2)","v":0},0,null,null,0,{"$f":"W80*Inputs!$D$13","v":0},0,{"$f":"Y80*Inputs!$D$13","v":0},0,{"$f":"AA80*Inputs!$D$13","v":0},{"$f":"ROUND(AD80/Inputs!D$19,2)","v":0},0]
[null,{"$f":"Defaults!AH47","v":"Dual II Magnum"},{"$f":"ROUND((IF('Crop 1'!$C$14=Carbon!$B81,'Crop 1'!$L$14*VLOOKUP('Crop 1'!$E$14,Carbon!$AH$4:$AI$10,2,FALSE),0)+IF('Crop 1'!$C$15=Carbon!$B81,'Crop 1'!$L$15*VLOOKUP('Crop 1'!$E$15,Carbon!$AH$4:$AI$10,2,FALSE),0)+IF('Crop 1'!$C$16=Carbon!$B81,'Crop 1'!$L$16*VLOOKUP('Crop 1'!$E$16,Carbon!$AH$4:$AI$10,2,FALSE),0)+IF('Crop 1'!$C$19=Carbon!$B81,'Crop 1'!$L$19*VLOOKUP('Crop 1'!$E$19,Carbon!$AH$4:$AI$10,2,FALSE),0)+IF('Crop 1'!$C$20=Carbon!$B81,'Crop 1'!$L$20*VLOOKUP('Crop 1'!$E$20,Carbon!$AH$4:$AI$10,2,FALSE),0)+IF('Crop 1'!$C$21=Carbon!$B81,'Crop 1'!$L$21*VLOOKUP('Crop 1'!$E$21,Carbon!$AH$4:$AI$10,2,FALSE),0)+IF('Crop 1'!$C$49=Carbon!$B81,'Crop 1'!$L$49*VLOOKUP('Crop 1'!$E$49,Carbon!$AH$4:$AI$10,2,FALSE),0)+IF('Crop 1'!$C$50=Carbon!$B81,'Crop 1'!$L$50*VLOOKUP('Crop 1'!$E$50,Carbon!$AH$4:$AI$10,2,FALSE),0)+IF('Crop 1'!$C$51=Carbon!$B81,'Crop 1'!$L$51*VLOOKUP('Crop 1'!$E$51,Carbon!$AH$4:$AI$10,2,FALSE),0)+IF('Crop 1'!$C$52=Carbon!$B81,'Crop 1'!$L$52*VLOOKUP('Crop 1'!$E$52,Carbon!$AH$4:$AI$10,2,FALSE),0)+IF('Crop 1'!$C$53=Carbon!$B81,'Crop 1'!$L$53*VLOOKUP('Crop 1'!$E$53,Carbon!$AH$4:$AI$10,2,FALSE),0)+IF('Crop 1'!$C$56=Carbon!$B81,'Crop 1'!$L$56*VLOOKUP('Crop 1'!$E$56,Carbon!$AH$4:$AI$10,2,FALSE),0)+IF('Crop 1'!$C$57=Carbon!$B81,'Crop 1'!$L$57*VLOOKUP('Crop 1'!$E$57,Carbon!$AH$4:$AI$10,2,FALSE),0)+IF('Crop 1'!$C$58=Carbon!$B81,'Crop 1'!$L$58*VLOOKUP('Crop 1'!$E$58,Carbon!$AH$4:$AI$10,2,FALSE),0)+IF('Crop 1'!$C$59=Carbon!$B81,'Crop 1'!$L$59*VLOOKUP('Crop 1'!$E$59,Carbon!$AH$4:$AI$10,2,FALSE),0)+IF('Crop 1'!$C$62=Carbon!$B81,'Crop 1'!$L$62*VLOOKUP('Crop 1'!$E$62,Carbon!$AH$4:$AI$10,2,FALSE),0)+IF('Crop 1'!$C$63=Carbon!$B81,'Crop 1'!$L$63*VLOOKUP('Crop 1'!$E$63,Carbon!$AH$4:$AI$10,2,FALSE),0)+IF('Crop 1'!$C$64=Carbon!$B81,'Crop 1'!$L$64*VLOOKUP('Crop 1'!$E$64,Carbon!$AH$4:$AI$10,2,FALSE),0)+IF('Crop 1'!$C$65=Carbon!$B81,'Crop 1'!$L$65*VLOOKUP('Crop 1'!$E$65,Carbon!$AH$4:$AI$10,2,FALSE),0))*$AL$20,2)","v":0},{"$f":"C81*Inputs!$D$13","v":0},{"$f":"ROUND((IF('Crop 2'!$C$14=Carbon!$B81,'Crop 2'!$L$14*VLOOKUP('Crop 2'!$E$14,Carbon!$AH$4:$AI$10,2,FALSE),0)+IF('Crop 2'!$C$15=Carbon!$B81,'Crop 2'!$L$15*VLOOKUP('Crop 2'!$E$15,Carbon!$AH$4:$AI$10,2,FALSE),0)+IF('Crop 2'!$C$16=Carbon!$B81,'Crop 2'!$L$16*VLOOKUP('Crop 2'!$E$16,Carbon!$AH$4:$AI$10,2,FALSE),0)+IF('Crop 2'!$C$19=Carbon!$B81,'Crop 2'!$L$19*VLOOKUP('Crop 2'!$E$19,Carbon!$AH$4:$AI$10,2,FALSE),0)+IF('Crop 2'!$C$20=Carbon!$B81,'Crop 2'!$L$20*VLOOKUP('Crop 2'!$E$20,Carbon!$AH$4:$AI$10,2,FALSE),0)+IF('Crop 2'!$C$21=Carbon!$B81,'Crop 2'!$L$21*VLOOKUP('Crop 2'!$E$21,Carbon!$AH$4:$AI$10,2,FALSE),0)+IF('Crop 2'!$C$49=Carbon!$B81,'Crop 2'!$L$49*VLOOKUP('Crop 2'!$E$49,Carbon!$AH$4:$AI$10,2,FALSE),0)+IF('Crop 2'!$C$50=Carbon!$B81,'Crop 2'!$L$50*VLOOKUP('Crop 2'!$E$50,Carbon!$AH$4:$AI$10,2,FALSE),0)+IF('Crop 2'!$C$51=Carbon!$B81,'Crop 2'!$L$51*VLOOKUP('Crop 2'!$E$51,Carbon!$AH$4:$AI$10,2,FALSE),0)+IF('Crop 2'!$C$52=Carbon!$B81,'Crop 2'!$L$52*VLOOKUP('Crop 2'!$E$52,Carbon!$AH$4:$AI$10,2,FALSE),0)+IF('Crop 2'!$C$53=Carbon!$B81,'Crop 2'!$L$53*VLOOKUP('Crop 2'!$E$53,Carbon!$AH$4:$AI$10,2,FALSE),0)+IF('Crop 2'!$C$56=Carbon!$B81,'Crop 2'!$L$56*VLOOKUP('Crop 2'!$E$56,Carbon!$AH$4:$AI$10,2,FALSE),0)+IF('Crop 2'!$C$57=Carbon!$B81,'Crop 2'!$L$57*VLOOKUP('Crop 2'!$E$57,Carbon!$AH$4:$AI$10,2,FALSE),0)+IF('Crop 2'!$C$58=Carbon!$B81,'Crop 2'!$L$58*VLOOKUP('Crop 2'!$E$58,Carbon!$AH$4:$AI$10,2,FALSE),0)+IF('Crop 2'!$C$59=Carbon!$B81,'Crop 2'!$L$59*VLOOKUP('Crop 2'!$E$59,Carbon!$AH$4:$AI$10,2,FALSE),0)+IF('Crop 2'!$C$62=Carbon!$B81,'Crop 2'!$L$62*VLOOKUP('Crop 2'!$E$62,Carbon!$AH$4:$AI$10,2,FALSE),0)+IF('Crop 2'!$C$63=Carbon!$B81,'Crop 2'!$L$63*VLOOKUP('Crop 2'!$E$63,Carbon!$AH$4:$AI$10,2,FALSE),0)+IF('Crop 2'!$C$64=Carbon!$B81,'Crop 2'!$L$64*VLOOKUP('Crop 2'!$E$64,Carbon!$AH$4:$AI$10,2,FALSE),0)+IF('Crop 2'!$C$65=Carbon!$B81,'Crop 2'!$L$65*VLOOKUP('Crop 2'!$E$65,Carbon!$AH$4:$AI$10,2,FALSE),0))*$AL$20,2)","v":0},{"$f":"E81*Inputs!$D$15","v":0},{"$f":"ROUND((IF('Crop 3'!$C$14=Carbon!$B81,'Crop 3'!$L$14*VLOOKUP('Crop 3'!$E$14,Carbon!$AH$4:$AI$10,2,FALSE),0)+IF('Crop 3'!$C$15=Carbon!$B81,'Crop 3'!$L$15*VLOOKUP('Crop 3'!$E$15,Carbon!$AH$4:$AI$10,2,FALSE),0)+IF('Crop 3'!$C$16=Carbon!$B81,'Crop 3'!$L$16*VLOOKUP('Crop 3'!$E$16,Carbon!$AH$4:$AI$10,2,FALSE),0)+IF('Crop 3'!$C$19=Carbon!$B81,'Crop 3'!$L$19*VLOOKUP('Crop 3'!$E$19,Carbon!$AH$4:$AI$10,2,FALSE),0)+IF('Crop 3'!$C$20=Carbon!$B81,'Crop 3'!$L$20*VLOOKUP('Crop 3'!$E$20,Carbon!$AH$4:$AI$10,2,FALSE),0)+IF('Crop 3'!$C$21=Carbon!$B81,'Crop 3'!$L$21*VLOOKUP('Crop 3'!$E$21,Carbon!$AH$4:$AI$10,2,FALSE),0)+IF('Crop 3'!$C$49=Carbon!$B81,'Crop 3'!$L$49*VLOOKUP('Crop 3'!$E$49,Carbon!$AH$4:$AI$10,2,FALSE),0)+IF('Crop 3'!$C$50=Carbon!$B81,'Crop 3'!$L$50*VLOOKUP('Crop 3'!$E$50,Carbon!$AH$4:$AI$10,2,FALSE),0)+IF('Crop 3'!$C$51=Carbon!$B81,'Crop 3'!$L$51*VLOOKUP('Crop 3'!$E$51,Carbon!$AH$4:$AI$10,2,FALSE),0)+IF('Crop 3'!$C$52=Carbon!$B81,'Crop 3'!$L$52*VLOOKUP('Crop 3'!$E$52,Carbon!$AH$4:$AI$10,2,FALSE),0)+IF('Crop 3'!$C$53=Carbon!$B81,'Crop 3'!$L$53*VLOOKUP('Crop 3'!$E$53,Carbon!$AH$4:$AI$10,2,FALSE),0)+IF('Crop 3'!$C$56=Carbon!$B81,'Crop 3'!$L$56*VLOOKUP('Crop 3'!$E$56,Carbon!$AH$4:$AI$10,2,FALSE),0)+IF('Crop 3'!$C$57=Carbon!$B81,'Crop 3'!$L$57*VLOOKUP('Crop 3'!$E$57,Carbon!$AH$4:$AI$10,2,FALSE),0)+IF('Crop 3'!$C$58=Carbon!$B81,'Crop 3'!$L$58*VLOOKUP('Crop 3'!$E$58,Carbon!$AH$4:$AI$10,2,FALSE),0)+IF('Crop 3'!$C$59=Carbon!$B81,'Crop 3'!$L$59*VLOOKUP('Crop 3'!$E$59,Carbon!$AH$4:$AI$10,2,FALSE),0)+IF('Crop 3'!$C$62=Carbon!$B81,'Crop 3'!$L$62*VLOOKUP('Crop 3'!$E$62,Carbon!$AH$4:$AI$10,2,FALSE),0)+IF('Crop 3'!$C$63=Carbon!$B81,'Crop 3'!$L$63*VLOOKUP('Crop 3'!$E$63,Carbon!$AH$4:$AI$10,2,FALSE),0)+IF('Crop 3'!$C$64=Carbon!$B81,'Crop 3'!$L$64*VLOOKUP('Crop 3'!$E$64,Carbon!$AH$4:$AI$10,2,FALSE),0)+IF('Crop 3'!$C$65=Carbon!$B81,'Crop 3'!$L$65*VLOOKUP('Crop 3'!$E$65,Carbon!$AH$4:$AI$10,2,FALSE),0))*$AL$20,2)","v":0},{"$f":"G81*Inputs!$D$17","v":0},{"$f":"ROUND(J81/Inputs!D$19,2)","v":0},0,null,null,{"$f":"ROUND((IF('Crop 1'!$C$14=Carbon!$B81,'Crop 1'!$V$14*VLOOKUP('Crop 1'!$E$14,Carbon!$AH$4:$AI$10,2,FALSE),0)+IF('Crop 1'!$C$15=Carbon!$B81,'Crop 1'!$V$15*VLOOKUP('Crop 1'!$E$15,Carbon!$AH$4:$AI$10,2,FALSE),0)+IF('Crop 1'!$C$16=Carbon!$B81,'Crop 1'!$V$16*VLOOKUP('Crop 1'!$E$16,Carbon!$AH$4:$AI$10,2,FALSE),0)+IF('Crop 1'!$C$19=Carbon!$B81,'Crop 1'!$V$19*VLOOKUP('Crop 1'!$E$19,Carbon!$AH$4:$AI$10,2,FALSE),0)+IF('Crop 1'!$C$20=Carbon!$B81,'Crop 1'!$V$20*VLOOKUP('Crop 1'!$E$20,Carbon!$AH$4:$AI$10,2,FALSE),0)+IF('Crop 1'!$C$21=Carbon!$B81,'Crop 1'!$V$21*VLOOKUP('Crop 1'!$E$21,Carbon!$AH$4:$AI$10,2,FALSE),0)+IF('Crop 1'!$C$49=Carbon!$B81,'Crop 1'!$V$49*VLOOKUP('Crop 1'!$E$49,Carbon!$AH$4:$AI$10,2,FALSE),0)+IF('Crop 1'!$C$50=Carbon!$B81,'Crop 1'!$V$50*VLOOKUP('Crop 1'!$E$50,Carbon!$AH$4:$AI$10,2,FALSE),0)+IF('Crop 1'!$C$51=Carbon!$B81,'Crop 1'!$V$51*VLOOKUP('Crop 1'!$E$51,Carbon!$AH$4:$AI$10,2,FALSE),0)+IF('Crop 1'!$C$52=Carbon!$B81,'Crop 1'!$V$52*VLOOKUP('Crop 1'!$E$52,Carbon!$AH$4:$AI$10,2,FALSE),0)+IF('Crop 1'!$C$53=Carbon!$B81,'Crop 1'!$V$53*VLOOKUP('Crop 1'!$E$53,Carbon!$AH$4:$AI$10,2,FALSE),0)+IF('Crop 1'!$C$56=Carbon!$B81,'Crop 1'!$V$56*VLOOKUP('Crop 1'!$E$56,Carbon!$AH$4:$AI$10,2,FALSE),0)+IF('Crop 1'!$C$57=Carbon!$B81,'Crop 1'!$V$57*VLOOKUP('Crop 1'!$E$57,Carbon!$AH$4:$AI$10,2,FALSE),0)+IF('Crop 1'!$C$58=Carbon!$B81,'Crop 1'!$V$58*VLOOKUP('Crop 1'!$E$58,Carbon!$AH$4:$AI$10,2,FALSE),0)+IF('Crop 1'!$C$59=Carbon!$B81,'Crop 1'!$V$59*VLOOKUP('Crop 1'!$E$59,Carbon!$AH$4:$AI$10,2,FALSE),0)+IF('Crop 1'!$C$62=Carbon!$B81,'Crop 1'!$V$62*VLOOKUP('Crop 1'!$E$62,Carbon!$AH$4:$AI$10,2,FALSE),0)+IF('Crop 1'!$C$63=Carbon!$B81,'Crop 1'!$V$63*VLOOKUP('Crop 1'!$E$63,Carbon!$AH$4:$AI$10,2,FALSE),0)+IF('Crop 1'!$C$64=Carbon!$B81,'Crop 1'!$V$64*VLOOKUP('Crop 1'!$E$64,Carbon!$AH$4:$AI$10,2,FALSE),0)+IF('Crop 1'!$C$65=Carbon!$B81,'Crop 1'!$V$65*VLOOKUP('Crop 1'!$E$65,Carbon!$AH$4:$AI$10,2,FALSE),0))*$AL$20,2)","v":0},{"$f":"M81*Inputs!$D$13","v":0},{"$f":"ROUND((IF('Crop 2'!$C$14=Carbon!$B81,'Crop 2'!$V$14*VLOOKUP('Crop 2'!$E$14,Carbon!$AH$4:$AI$10,2,FALSE),0)+IF('Crop 2'!$C$15=Carbon!$B81,'Crop 2'!$V$15*VLOOKUP('Crop 2'!$E$15,Carbon!$AH$4:$AI$10,2,FALSE),0)+IF('Crop 2'!$C$16=Carbon!$B81,'Crop 2'!$V$16*VLOOKUP('Crop 2'!$E$16,Carbon!$AH$4:$AI$10,2,FALSE),0)+IF('Crop 2'!$C$19=Carbon!$B81,'Crop 2'!$V$19*VLOOKUP('Crop 2'!$E$19,Carbon!$AH$4:$AI$10,2,FALSE),0)+IF('Crop 2'!$C$20=Carbon!$B81,'Crop 2'!$V$20*VLOOKUP('Crop 2'!$E$20,Carbon!$AH$4:$AI$10,2,FALSE),0)+IF('Crop 2'!$C$21=Carbon!$B81,'Crop 2'!$V$21*VLOOKUP('Crop 2'!$E$21,Carbon!$AH$4:$AI$10,2,FALSE),0)+IF('Crop 2'!$C$49=Carbon!$B81,'Crop 2'!$V$49*VLOOKUP('Crop 2'!$E$49,Carbon!$AH$4:$AI$10,2,FALSE),0)+IF('Crop 2'!$C$50=Carbon!$B81,'Crop 2'!$V$50*VLOOKUP('Crop 2'!$E$50,Carbon!$AH$4:$AI$10,2,FALSE),0)+IF('Crop 2'!$C$51=Carbon!$B81,'Crop 2'!$V$51*VLOOKUP('Crop 2'!$E$51,Carbon!$AH$4:$AI$10,2,FALSE),0)+IF('Crop 2'!$C$52=Carbon!$B81,'Crop 2'!$V$52*VLOOKUP('Crop 2'!$E$52,Carbon!$AH$4:$AI$10,2,FALSE),0)+IF('Crop 2'!$C$53=Carbon!$B81,'Crop 2'!$V$53*VLOOKUP('Crop 2'!$E$53,Carbon!$AH$4:$AI$10,2,FALSE),0)+IF('Crop 2'!$C$56=Carbon!$B81,'Crop 2'!$V$56*VLOOKUP('Crop 2'!$E$56,Carbon!$AH$4:$AI$10,2,FALSE),0)+IF('Crop 2'!$C$57=Carbon!$B81,'Crop 2'!$V$57*VLOOKUP('Crop 2'!$E$57,Carbon!$AH$4:$AI$10,2,FALSE),0)+IF('Crop 2'!$C$58=Carbon!$B81,'Crop 2'!$V$58*VLOOKUP('Crop 2'!$E$58,Carbon!$AH$4:$AI$10,2,FALSE),0)+IF('Crop 2'!$C$59=Carbon!$B81,'Crop 2'!$V$59*VLOOKUP('Crop 2'!$E$59,Carbon!$AH$4:$AI$10,2,FALSE),0)+IF('Crop 2'!$C$62=Carbon!$B81,'Crop 2'!$V$62*VLOOKUP('Crop 2'!$E$62,Carbon!$AH$4:$AI$10,2,FALSE),0)+IF('Crop 2'!$C$63=Carbon!$B81,'Crop 2'!$V$63*VLOOKUP('Crop 2'!$E$63,Carbon!$AH$4:$AI$10,2,FALSE),0)+IF('Crop 2'!$C$64=Carbon!$B81,'Crop 2'!$V$64*VLOOKUP('Crop 2'!$E$64,Carbon!$AH$4:$AI$10,2,FALSE),0)+IF('Crop 2'!$C$65=Carbon!$B81,'Crop 2'!$V$65*VLOOKUP('Crop 2'!$E$65,Carbon!$AH$4:$AI$10,2,FALSE),0))*$AL$20,2)","v":0},{"$f":"O81*Inputs!$D$15","v":0},{"$f":"ROUND((IF('Crop 3'!$C$14=Carbon!$B81,'Crop 3'!$V$14*VLOOKUP('Crop 3'!$E$14,Carbon!$AH$4:$AI$10,2,FALSE),0)+IF('Crop 3'!$C$15=Carbon!$B81,'Crop 3'!$V$15*VLOOKUP('Crop 3'!$E$15,Carbon!$AH$4:$AI$10,2,FALSE),0)+IF('Crop 3'!$C$16=Carbon!$B81,'Crop 3'!$V$16*VLOOKUP('Crop 3'!$E$16,Carbon!$AH$4:$AI$10,2,FALSE),0)+IF('Crop 3'!$C$19=Carbon!$B81,'Crop 3'!$V$19*VLOOKUP('Crop 3'!$E$19,Carbon!$AH$4:$AI$10,2,FALSE),0)+IF('Crop 3'!$C$20=Carbon!$B81,'Crop 3'!$V$20*VLOOKUP('Crop 3'!$E$20,Carbon!$AH$4:$AI$10,2,FALSE),0)+IF('Crop 3'!$C$21=Carbon!$B81,'Crop 3'!$V$21*VLOOKUP('Crop 3'!$E$21,Carbon!$AH$4:$AI$10,2,FALSE),0)+IF('Crop 3'!$C$49=Carbon!$B81,'Crop 3'!$V$49*VLOOKUP('Crop 3'!$E$49,Carbon!$AH$4:$AI$10,2,FALSE),0)+IF('Crop 3'!$C$50=Carbon!$B81,'Crop 3'!$V$50*VLOOKUP('Crop 3'!$E$50,Carbon!$AH$4:$AI$10,2,FALSE),0)+IF('Crop 3'!$C$51=Carbon!$B81,'Crop 3'!$V$51*VLOOKUP('Crop 3'!$E$51,Carbon!$AH$4:$AI$10,2,FALSE),0)+IF('Crop 3'!$C$52=Carbon!$B81,'Crop 3'!$V$52*VLOOKUP('Crop 3'!$E$52,Carbon!$AH$4:$AI$10,2,FALSE),0)+IF('Crop 3'!$C$53=Carbon!$B81,'Crop 3'!$V$53*VLOOKUP('Crop 3'!$E$53,Carbon!$AH$4:$AI$10,2,FALSE),0)+IF('Crop 3'!$C$56=Carbon!$B81,'Crop 3'!$V$56*VLOOKUP('Crop 3'!$E$56,Carbon!$AH$4:$AI$10,2,FALSE),0)+IF('Crop 3'!$C$57=Carbon!$B81,'Crop 3'!$V$57*VLOOKUP('Crop 3'!$E$57,Carbon!$AH$4:$AI$10,2,FALSE),0)+IF('Crop 3'!$C$58=Carbon!$B81,'Crop 3'!$V$58*VLOOKUP('Crop 3'!$E$58,Carbon!$AH$4:$AI$10,2,FALSE),0)+IF('Crop 3'!$C$59=Carbon!$B81,'Crop 3'!$V$59*VLOOKUP('Crop 3'!$E$59,Carbon!$AH$4:$AI$10,2,FALSE),0)+IF('Crop 3'!$C$62=Carbon!$B81,'Crop 3'!$V$62*VLOOKUP('Crop 3'!$E$62,Carbon!$AH$4:$AI$10,2,FALSE),0)+IF('Crop 3'!$C$63=Carbon!$B81,'Crop 3'!$V$63*VLOOKUP('Crop 3'!$E$63,Carbon!$AH$4:$AI$10,2,FALSE),0)+IF('Crop 3'!$C$64=Carbon!$B81,'Crop 3'!$V$64*VLOOKUP('Crop 3'!$E$64,Carbon!$AH$4:$AI$10,2,FALSE),0)+IF('Crop 3'!$C$65=Carbon!$B81,'Crop 3'!$V$65*VLOOKUP('Crop 3'!$E$65,Carbon!$AH$4:$AI$10,2,FALSE),0))*$AL$20,2)","v":0},{"$f":"Q81*Inputs!$D$17","v":0},{"$f":"ROUND(T81/Inputs!D$19,2)","v":0},0,null,null,0,{"$f":"W81*Inputs!$D$13","v":0},0,{"$f":"Y81*Inputs!$D$13","v":0},0,{"$f":"AA81*Inputs!$D$13","v":0},{"$f":"ROUND(AD81/Inputs!D$19,2)","v":0},0]
[null,{"$f":"Defaults!AH48","v":"Dual Magnum"},{"$f":"ROUND((IF('Crop 1'!$C$14=Carbon!$B82,'Crop 1'!$L$14*VLOOKUP('Crop 1'!$E$14,Carbon!$AH$4:$AI$10,2,FALSE),0)+IF('Crop 1'!$C$15=Carbon!$B82,'Crop 1'!$L$15*VLOOKUP('Crop 1'!$E$15,Carbon!$AH$4:$AI$10,2,FALSE),0)+IF('Crop 1'!$C$16=Carbon!$B82,'Crop 1'!$L$16*VLOOKUP('Crop 1'!$E$16,Carbon!$AH$4:$AI$10,2,FALSE),0)+IF('Crop 1'!$C$19=Carbon!$B82,'Crop 1'!$L$19*VLOOKUP('Crop 1'!$E$19,Carbon!$AH$4:$AI$10,2,FALSE),0)+IF('Crop 1'!$C$20=Carbon!$B82,'Crop 1'!$L$20*VLOOKUP('Crop 1'!$E$20,Carbon!$AH$4:$AI$10,2,FALSE),0)+IF('Crop 1'!$C$21=Carbon!$B82,'Crop 1'!$L$21*VLOOKUP('Crop 1'!$E$21,Carbon!$AH$4:$AI$10,2,FALSE),0)+IF('Crop 1'!$C$49=Carbon!$B82,'Crop 1'!$L$49*VLOOKUP('Crop 1'!$E$49,Carbon!$AH$4:$AI$10,2,FALSE),0)+IF('Crop 1'!$C$50=Carbon!$B82,'Crop 1'!$L$50*VLOOKUP('Crop 1'!$E$50,Carbon!$AH$4:$AI$10,2,FALSE),0)+IF('Crop 1'!$C$51=Carbon!$B82,'Crop 1'!$L$51*VLOOKUP('Crop 1'!$E$51,Carbon!$AH$4:$AI$10,2,FALSE),0)+IF('Crop 1'!$C$52=Carbon!$B82,'Crop 1'!$L$52*VLOOKUP('Crop 1'!$E$52,Carbon!$AH$4:$AI$10,2,FALSE),0)+IF('Crop 1'!$C$53=Carbon!$B82,'Crop 1'!$L$53*VLOOKUP('Crop 1'!$E$53,Carbon!$AH$4:$AI$10,2,FALSE),0)+IF('Crop 1'!$C$56=Carbon!$B82,'Crop 1'!$L$56*VLOOKUP('Crop 1'!$E$56,Carbon!$AH$4:$AI$10,2,FALSE),0)+IF('Crop 1'!$C$57=Carbon!$B82,'Crop 1'!$L$57*VLOOKUP('Crop 1'!$E$57,Carbon!$AH$4:$AI$10,2,FALSE),0)+IF('Crop 1'!$C$58=Carbon!$B82,'Crop 1'!$L$58*VLOOKUP('Crop 1'!$E$58,Carbon!$AH$4:$AI$10,2,FALSE),0)+IF('Crop 1'!$C$59=Carbon!$B82,'Crop 1'!$L$59*VLOOKUP('Crop 1'!$E$59,Carbon!$AH$4:$AI$10,2,FALSE),0)+IF('Crop 1'!$C$62=Carbon!$B82,'Crop 1'!$L$62*VLOOKUP('Crop 1'!$E$62,Carbon!$AH$4:$AI$10,2,FALSE),0)+IF('Crop 1'!$C$63=Carbon!$B82,'Crop 1'!$L$63*VLOOKUP('Crop 1'!$E$63,Carbon!$AH$4:$AI$10,2,FALSE),0)+IF('Crop 1'!$C$64=Carbon!$B82,'Crop 1'!$L$64*VLOOKUP('Crop 1'!$E$64,Carbon!$AH$4:$AI$10,2,FALSE),0)+IF('Crop 1'!$C$65=Carbon!$B82,'Crop 1'!$L$65*VLOOKUP('Crop 1'!$E$65,Carbon!$AH$4:$AI$10,2,FALSE),0))*$AL$20,2)","v":3.47},{"$f":"C82*Inputs!$D$13","v":1041},{"$f":"ROUND((IF('Crop 2'!$C$14=Carbon!$B82,'Crop 2'!$L$14*VLOOKUP('Crop 2'!$E$14,Carbon!$AH$4:$AI$10,2,FALSE),0)+IF('Crop 2'!$C$15=Carbon!$B82,'Crop 2'!$L$15*VLOOKUP('Crop 2'!$E$15,Carbon!$AH$4:$AI$10,2,FALSE),0)+IF('Crop 2'!$C$16=Carbon!$B82,'Crop 2'!$L$16*VLOOKUP('Crop 2'!$E$16,Carbon!$AH$4:$AI$10,2,FALSE),0)+IF('Crop 2'!$C$19=Carbon!$B82,'Crop 2'!$L$19*VLOOKUP('Crop 2'!$E$19,Carbon!$AH$4:$AI$10,2,FALSE),0)+IF('Crop 2'!$C$20=Carbon!$B82,'Crop 2'!$L$20*VLOOKUP('Crop 2'!$E$20,Carbon!$AH$4:$AI$10,2,FALSE),0)+IF('Crop 2'!$C$21=Carbon!$B82,'Crop 2'!$L$21*VLOOKUP('Crop 2'!$E$21,Carbon!$AH$4:$AI$10,2,FALSE),0)+IF('Crop 2'!$C$49=Carbon!$B82,'Crop 2'!$L$49*VLOOKUP('Crop 2'!$E$49,Carbon!$AH$4:$AI$10,2,FALSE),0)+IF('Crop 2'!$C$50=Carbon!$B82,'Crop 2'!$L$50*VLOOKUP('Crop 2'!$E$50,Carbon!$AH$4:$AI$10,2,FALSE),0)+IF('Crop 2'!$C$51=Carbon!$B82,'Crop 2'!$L$51*VLOOKUP('Crop 2'!$E$51,Carbon!$AH$4:$AI$10,2,FALSE),0)+IF('Crop 2'!$C$52=Carbon!$B82,'Crop 2'!$L$52*VLOOKUP('Crop 2'!$E$52,Carbon!$AH$4:$AI$10,2,FALSE),0)+IF('Crop 2'!$C$53=Carbon!$B82,'Crop 2'!$L$53*VLOOKUP('Crop 2'!$E$53,Carbon!$AH$4:$AI$10,2,FALSE),0)+IF('Crop 2'!$C$56=Carbon!$B82,'Crop 2'!$L$56*VLOOKUP('Crop 2'!$E$56,Carbon!$AH$4:$AI$10,2,FALSE),0)+IF('Crop 2'!$C$57=Carbon!$B82,'Crop 2'!$L$57*VLOOKUP('Crop 2'!$E$57,Carbon!$AH$4:$AI$10,2,FALSE),0)+IF('Crop 2'!$C$58=Carbon!$B82,'Crop 2'!$L$58*VLOOKUP('Crop 2'!$E$58,Carbon!$AH$4:$AI$10,2,FALSE),0)+IF('Crop 2'!$C$59=Carbon!$B82,'Crop 2'!$L$59*VLOOKUP('Crop 2'!$E$59,Carbon!$AH$4:$AI$10,2,FALSE),0)+IF('Crop 2'!$C$62=Carbon!$B82,'Crop 2'!$L$62*VLOOKUP('Crop 2'!$E$62,Carbon!$AH$4:$AI$10,2,FALSE),0)+IF('Crop 2'!$C$63=Carbon!$B82,'Crop 2'!$L$63*VLOOKUP('Crop 2'!$E$63,Carbon!$AH$4:$AI$10,2,FALSE),0)+IF('Crop 2'!$C$64=Carbon!$B82,'Crop 2'!$L$64*VLOOKUP('Crop 2'!$E$64,Carbon!$AH$4:$AI$10,2,FALSE),0)+IF('Crop 2'!$C$65=Carbon!$B82,'Crop 2'!$L$65*VLOOKUP('Crop 2'!$E$65,Carbon!$AH$4:$AI$10,2,FALSE),0))*$AL$20,2)","v":0},{"$f":"E82*Inputs!$D$15","v":0},{"$f":"ROUND((IF('Crop 3'!$C$14=Carbon!$B82,'Crop 3'!$L$14*VLOOKUP('Crop 3'!$E$14,Carbon!$AH$4:$AI$10,2,FALSE),0)+IF('Crop 3'!$C$15=Carbon!$B82,'Crop 3'!$L$15*VLOOKUP('Crop 3'!$E$15,Carbon!$AH$4:$AI$10,2,FALSE),0)+IF('Crop 3'!$C$16=Carbon!$B82,'Crop 3'!$L$16*VLOOKUP('Crop 3'!$E$16,Carbon!$AH$4:$AI$10,2,FALSE),0)+IF('Crop 3'!$C$19=Carbon!$B82,'Crop 3'!$L$19*VLOOKUP('Crop 3'!$E$19,Carbon!$AH$4:$AI$10,2,FALSE),0)+IF('Crop 3'!$C$20=Carbon!$B82,'Crop 3'!$L$20*VLOOKUP('Crop 3'!$E$20,Carbon!$AH$4:$AI$10,2,FALSE),0)+IF('Crop 3'!$C$21=Carbon!$B82,'Crop 3'!$L$21*VLOOKUP('Crop 3'!$E$21,Carbon!$AH$4:$AI$10,2,FALSE),0)+IF('Crop 3'!$C$49=Carbon!$B82,'Crop 3'!$L$49*VLOOKUP('Crop 3'!$E$49,Carbon!$AH$4:$AI$10,2,FALSE),0)+IF('Crop 3'!$C$50=Carbon!$B82,'Crop 3'!$L$50*VLOOKUP('Crop 3'!$E$50,Carbon!$AH$4:$AI$10,2,FALSE),0)+IF('Crop 3'!$C$51=Carbon!$B82,'Crop 3'!$L$51*VLOOKUP('Crop 3'!$E$51,Carbon!$AH$4:$AI$10,2,FALSE),0)+IF('Crop 3'!$C$52=Carbon!$B82,'Crop 3'!$L$52*VLOOKUP('Crop 3'!$E$52,Carbon!$AH$4:$AI$10,2,FALSE),0)+IF('Crop 3'!$C$53=Carbon!$B82,'Crop 3'!$L$53*VLOOKUP('Crop 3'!$E$53,Carbon!$AH$4:$AI$10,2,FALSE),0)+IF('Crop 3'!$C$56=Carbon!$B82,'Crop 3'!$L$56*VLOOKUP('Crop 3'!$E$56,Carbon!$AH$4:$AI$10,2,FALSE),0)+IF('Crop 3'!$C$57=Carbon!$B82,'Crop 3'!$L$57*VLOOKUP('Crop 3'!$E$57,Carbon!$AH$4:$AI$10,2,FALSE),0)+IF('Crop 3'!$C$58=Carbon!$B82,'Crop 3'!$L$58*VLOOKUP('Crop 3'!$E$58,Carbon!$AH$4:$AI$10,2,FALSE),0)+IF('Crop 3'!$C$59=Carbon!$B82,'Crop 3'!$L$59*VLOOKUP('Crop 3'!$E$59,Carbon!$AH$4:$AI$10,2,FALSE),0)+IF('Crop 3'!$C$62=Carbon!$B82,'Crop 3'!$L$62*VLOOKUP('Crop 3'!$E$62,Carbon!$AH$4:$AI$10,2,FALSE),0)+IF('Crop 3'!$C$63=Carbon!$B82,'Crop 3'!$L$63*VLOOKUP('Crop 3'!$E$63,Carbon!$AH$4:$AI$10,2,FALSE),0)+IF('Crop 3'!$C$64=Carbon!$B82,'Crop 3'!$L$64*VLOOKUP('Crop 3'!$E$64,Carbon!$AH$4:$AI$10,2,FALSE),0)+IF('Crop 3'!$C$65=Carbon!$B82,'Crop 3'!$L$65*VLOOKUP('Crop 3'!$E$65,Carbon!$AH$4:$AI$10,2,FALSE),0))*$AL$20,2)","v":0},{"$f":"G82*Inputs!$D$17","v":0},{"$f":"ROUND(J82/Inputs!D$19,2)","v":1.74},1041,null,null,{"$f":"ROUND((IF('Crop 1'!$C$14=Carbon!$B82,'Crop 1'!$V$14*VLOOKUP('Crop 1'!$E$14,Carbon!$AH$4:$AI$10,2,FALSE),0)+IF('Crop 1'!$C$15=Carbon!$B82,'Crop 1'!$V$15*VLOOKUP('Crop 1'!$E$15,Carbon!$AH$4:$AI$10,2,FALSE),0)+IF('Crop 1'!$C$16=Carbon!$B82,'Crop 1'!$V$16*VLOOKUP('Crop 1'!$E$16,Carbon!$AH$4:$AI$10,2,FALSE),0)+IF('Crop 1'!$C$19=Carbon!$B82,'Crop 1'!$V$19*VLOOKUP('Crop 1'!$E$19,Carbon!$AH$4:$AI$10,2,FALSE),0)+IF('Crop 1'!$C$20=Carbon!$B82,'Crop 1'!$V$20*VLOOKUP('Crop 1'!$E$20,Carbon!$AH$4:$AI$10,2,FALSE),0)+IF('Crop 1'!$C$21=Carbon!$B82,'Crop 1'!$V$21*VLOOKUP('Crop 1'!$E$21,Carbon!$AH$4:$AI$10,2,FALSE),0)+IF('Crop 1'!$C$49=Carbon!$B82,'Crop 1'!$V$49*VLOOKUP('Crop 1'!$E$49,Carbon!$AH$4:$AI$10,2,FALSE),0)+IF('Crop 1'!$C$50=Carbon!$B82,'Crop 1'!$V$50*VLOOKUP('Crop 1'!$E$50,Carbon!$AH$4:$AI$10,2,FALSE),0)+IF('Crop 1'!$C$51=Carbon!$B82,'Crop 1'!$V$51*VLOOKUP('Crop 1'!$E$51,Carbon!$AH$4:$AI$10,2,FALSE),0)+IF('Crop 1'!$C$52=Carbon!$B82,'Crop 1'!$V$52*VLOOKUP('Crop 1'!$E$52,Carbon!$AH$4:$AI$10,2,FALSE),0)+IF('Crop 1'!$C$53=Carbon!$B82,'Crop 1'!$V$53*VLOOKUP('Crop 1'!$E$53,Carbon!$AH$4:$AI$10,2,FALSE),0)+IF('Crop 1'!$C$56=Carbon!$B82,'Crop 1'!$V$56*VLOOKUP('Crop 1'!$E$56,Carbon!$AH$4:$AI$10,2,FALSE),0)+IF('Crop 1'!$C$57=Carbon!$B82,'Crop 1'!$V$57*VLOOKUP('Crop 1'!$E$57,Carbon!$AH$4:$AI$10,2,FALSE),0)+IF('Crop 1'!$C$58=Carbon!$B82,'Crop 1'!$V$58*VLOOKUP('Crop 1'!$E$58,Carbon!$AH$4:$AI$10,2,FALSE),0)+IF('Crop 1'!$C$59=Carbon!$B82,'Crop 1'!$V$59*VLOOKUP('Crop 1'!$E$59,Carbon!$AH$4:$AI$10,2,FALSE),0)+IF('Crop 1'!$C$62=Carbon!$B82,'Crop 1'!$V$62*VLOOKUP('Crop 1'!$E$62,Carbon!$AH$4:$AI$10,2,FALSE),0)+IF('Crop 1'!$C$63=Carbon!$B82,'Crop 1'!$V$63*VLOOKUP('Crop 1'!$E$63,Carbon!$AH$4:$AI$10,2,FALSE),0)+IF('Crop 1'!$C$64=Carbon!$B82,'Crop 1'!$V$64*VLOOKUP('Crop 1'!$E$64,Carbon!$AH$4:$AI$10,2,FALSE),0)+IF('Crop 1'!$C$65=Carbon!$B82,'Crop 1'!$V$65*VLOOKUP('Crop 1'!$E$65,Carbon!$AH$4:$AI$10,2,FALSE),0))*$AL$20,2)","v":2.71},{"$f":"M82*Inputs!$D$13","v":813},{"$f":"ROUND((IF('Crop 2'!$C$14=Carbon!$B82,'Crop 2'!$V$14*VLOOKUP('Crop 2'!$E$14,Carbon!$AH$4:$AI$10,2,FALSE),0)+IF('Crop 2'!$C$15=Carbon!$B82,'Crop 2'!$V$15*VLOOKUP('Crop 2'!$E$15,Carbon!$AH$4:$AI$10,2,FALSE),0)+IF('Crop 2'!$C$16=Carbon!$B82,'Crop 2'!$V$16*VLOOKUP('Crop 2'!$E$16,Carbon!$AH$4:$AI$10,2,FALSE),0)+IF('Crop 2'!$C$19=Carbon!$B82,'Crop 2'!$V$19*VLOOKUP('Crop 2'!$E$19,Carbon!$AH$4:$AI$10,2,FALSE),0)+IF('Crop 2'!$C$20=Carbon!$B82,'Crop 2'!$V$20*VLOOKUP('Crop 2'!$E$20,Carbon!$AH$4:$AI$10,2,FALSE),0)+IF('Crop 2'!$C$21=Carbon!$B82,'Crop 2'!$V$21*VLOOKUP('Crop 2'!$E$21,Carbon!$AH$4:$AI$10,2,FALSE),0)+IF('Crop 2'!$C$49=Carbon!$B82,'Crop 2'!$V$49*VLOOKUP('Crop 2'!$E$49,Carbon!$AH$4:$AI$10,2,FALSE),0)+IF('Crop 2'!$C$50=Carbon!$B82,'Crop 2'!$V$50*VLOOKUP('Crop 2'!$E$50,Carbon!$AH$4:$AI$10,2,FALSE),0)+IF('Crop 2'!$C$51=Carbon!$B82,'Crop 2'!$V$51*VLOOKUP('Crop 2'!$E$51,Carbon!$AH$4:$AI$10,2,FALSE),0)+IF('Crop 2'!$C$52=Carbon!$B82,'Crop 2'!$V$52*VLOOKUP('Crop 2'!$E$52,Carbon!$AH$4:$AI$10,2,FALSE),0)+IF('Crop 2'!$C$53=Carbon!$B82,'Crop 2'!$V$53*VLOOKUP('Crop 2'!$E$53,Carbon!$AH$4:$AI$10,2,FALSE),0)+IF('Crop 2'!$C$56=Carbon!$B82,'Crop 2'!$V$56*VLOOKUP('Crop 2'!$E$56,Carbon!$AH$4:$AI$10,2,FALSE),0)+IF('Crop 2'!$C$57=Carbon!$B82,'Crop 2'!$V$57*VLOOKUP('Crop 2'!$E$57,Carbon!$AH$4:$AI$10,2,FALSE),0)+IF('Crop 2'!$C$58=Carbon!$B82,'Crop 2'!$V$58*VLOOKUP('Crop 2'!$E$58,Carbon!$AH$4:$AI$10,2,FALSE),0)+IF('Crop 2'!$C$59=Carbon!$B82,'Crop 2'!$V$59*VLOOKUP('Crop 2'!$E$59,Carbon!$AH$4:$AI$10,2,FALSE),0)+IF('Crop 2'!$C$62=Carbon!$B82,'Crop 2'!$V$62*VLOOKUP('Crop 2'!$E$62,Carbon!$AH$4:$AI$10,2,FALSE),0)+IF('Crop 2'!$C$63=Carbon!$B82,'Crop 2'!$V$63*VLOOKUP('Crop 2'!$E$63,Carbon!$AH$4:$AI$10,2,FALSE),0)+IF('Crop 2'!$C$64=Carbon!$B82,'Crop 2'!$V$64*VLOOKUP('Crop 2'!$E$64,Carbon!$AH$4:$AI$10,2,FALSE),0)+IF('Crop 2'!$C$65=Carbon!$B82,'Crop 2'!$V$65*VLOOKUP('Crop 2'!$E$65,Carbon!$AH$4:$AI$10,2,FALSE),0))*$AL$20,2)","v":0},{"$f":"O82*Inputs!$D$15","v":0},{"$f":"ROUND((IF('Crop 3'!$C$14=Carbon!$B82,'Crop 3'!$V$14*VLOOKUP('Crop 3'!$E$14,Carbon!$AH$4:$AI$10,2,FALSE),0)+IF('Crop 3'!$C$15=Carbon!$B82,'Crop 3'!$V$15*VLOOKUP('Crop 3'!$E$15,Carbon!$AH$4:$AI$10,2,FALSE),0)+IF('Crop 3'!$C$16=Carbon!$B82,'Crop 3'!$V$16*VLOOKUP('Crop 3'!$E$16,Carbon!$AH$4:$AI$10,2,FALSE),0)+IF('Crop 3'!$C$19=Carbon!$B82,'Crop 3'!$V$19*VLOOKUP('Crop 3'!$E$19,Carbon!$AH$4:$AI$10,2,FALSE),0)+IF('Crop 3'!$C$20=Carbon!$B82,'Crop 3'!$V$20*VLOOKUP('Crop 3'!$E$20,Carbon!$AH$4:$AI$10,2,FALSE),0)+IF('Crop 3'!$C$21=Carbon!$B82,'Crop 3'!$V$21*VLOOKUP('Crop 3'!$E$21,Carbon!$AH$4:$AI$10,2,FALSE),0)+IF('Crop 3'!$C$49=Carbon!$B82,'Crop 3'!$V$49*VLOOKUP('Crop 3'!$E$49,Carbon!$AH$4:$AI$10,2,FALSE),0)+IF('Crop 3'!$C$50=Carbon!$B82,'Crop 3'!$V$50*VLOOKUP('Crop 3'!$E$50,Carbon!$AH$4:$AI$10,2,FALSE),0)+IF('Crop 3'!$C$51=Carbon!$B82,'Crop 3'!$V$51*VLOOKUP('Crop 3'!$E$51,Carbon!$AH$4:$AI$10,2,FALSE),0)+IF('Crop 3'!$C$52=Carbon!$B82,'Crop 3'!$V$52*VLOOKUP('Crop 3'!$E$52,Carbon!$AH$4:$AI$10,2,FALSE),0)+IF('Crop 3'!$C$53=Carbon!$B82,'Crop 3'!$V$53*VLOOKUP('Crop 3'!$E$53,Carbon!$AH$4:$AI$10,2,FALSE),0)+IF('Crop 3'!$C$56=Carbon!$B82,'Crop 3'!$V$56*VLOOKUP('Crop 3'!$E$56,Carbon!$AH$4:$AI$10,2,FALSE),0)+IF('Crop 3'!$C$57=Carbon!$B82,'Crop 3'!$V$57*VLOOKUP('Crop 3'!$E$57,Carbon!$AH$4:$AI$10,2,FALSE),0)+IF('Crop 3'!$C$58=Carbon!$B82,'Crop 3'!$V$58*VLOOKUP('Crop 3'!$E$58,Carbon!$AH$4:$AI$10,2,FALSE),0)+IF('Crop 3'!$C$59=Carbon!$B82,'Crop 3'!$V$59*VLOOKUP('Crop 3'!$E$59,Carbon!$AH$4:$AI$10,2,FALSE),0)+IF('Crop 3'!$C$62=Carbon!$B82,'Crop 3'!$V$62*VLOOKUP('Crop 3'!$E$62,Carbon!$AH$4:$AI$10,2,FALSE),0)+IF('Crop 3'!$C$63=Carbon!$B82,'Crop 3'!$V$63*VLOOKUP('Crop 3'!$E$63,Carbon!$AH$4:$AI$10,2,FALSE),0)+IF('Crop 3'!$C$64=Carbon!$B82,'Crop 3'!$V$64*VLOOKUP('Crop 3'!$E$64,Carbon!$AH$4:$AI$10,2,FALSE),0)+IF('Crop 3'!$C$65=Carbon!$B82,'Crop 3'!$V$65*VLOOKUP('Crop 3'!$E$65,Carbon!$AH$4:$AI$10,2,FALSE),0))*$AL$20,2)","v":0},{"$f":"Q82*Inputs!$D$17","v":0},{"$f":"ROUND(T82/Inputs!D$19,2)","v":1.36},813,null,null,-0.76000000000000023,{"$f":"W82*Inputs!$D$13","v":-228.00000000000006},0,{"$f":"Y82*Inputs!$D$13","v":0},0,{"$f":"AA82*Inputs!$D$13","v":0},{"$f":"ROUND(AD82/Inputs!D$19,2)","v":-0.38},-228]
[null,{"$f":"Defaults!AH49","v":"Duet"},{"$f":"ROUND((IF('Crop 1'!$C$14=Carbon!$B83,'Crop 1'!$L$14*VLOOKUP('Crop 1'!$E$14,Carbon!$AH$4:$AI$10,2,FALSE),0)+IF('Crop 1'!$C$15=Carbon!$B83,'Crop 1'!$L$15*VLOOKUP('Crop 1'!$E$15,Carbon!$AH$4:$AI$10,2,FALSE),0)+IF('Crop 1'!$C$16=Carbon!$B83,'Crop 1'!$L$16*VLOOKUP('Crop 1'!$E$16,Carbon!$AH$4:$AI$10,2,FALSE),0)+IF('Crop 1'!$C$19=Carbon!$B83,'Crop 1'!$L$19*VLOOKUP('Crop 1'!$E$19,Carbon!$AH$4:$AI$10,2,FALSE),0)+IF('Crop 1'!$C$20=Carbon!$B83,'Crop 1'!$L$20*VLOOKUP('Crop 1'!$E$20,Carbon!$AH$4:$AI$10,2,FALSE),0)+IF('Crop 1'!$C$21=Carbon!$B83,'Crop 1'!$L$21*VLOOKUP('Crop 1'!$E$21,Carbon!$AH$4:$AI$10,2,FALSE),0)+IF('Crop 1'!$C$49=Carbon!$B83,'Crop 1'!$L$49*VLOOKUP('Crop 1'!$E$49,Carbon!$AH$4:$AI$10,2,FALSE),0)+IF('Crop 1'!$C$50=Carbon!$B83,'Crop 1'!$L$50*VLOOKUP('Crop 1'!$E$50,Carbon!$AH$4:$AI$10,2,FALSE),0)+IF('Crop 1'!$C$51=Carbon!$B83,'Crop 1'!$L$51*VLOOKUP('Crop 1'!$E$51,Carbon!$AH$4:$AI$10,2,FALSE),0)+IF('Crop 1'!$C$52=Carbon!$B83,'Crop 1'!$L$52*VLOOKUP('Crop 1'!$E$52,Carbon!$AH$4:$AI$10,2,FALSE),0)+IF('Crop 1'!$C$53=Carbon!$B83,'Crop 1'!$L$53*VLOOKUP('Crop 1'!$E$53,Carbon!$AH$4:$AI$10,2,FALSE),0)+IF('Crop 1'!$C$56=Carbon!$B83,'Crop 1'!$L$56*VLOOKUP('Crop 1'!$E$56,Carbon!$AH$4:$AI$10,2,FALSE),0)+IF('Crop 1'!$C$57=Carbon!$B83,'Crop 1'!$L$57*VLOOKUP('Crop 1'!$E$57,Carbon!$AH$4:$AI$10,2,FALSE),0)+IF('Crop 1'!$C$58=Carbon!$B83,'Crop 1'!$L$58*VLOOKUP('Crop 1'!$E$58,Carbon!$AH$4:$AI$10,2,FALSE),0)+IF('Crop 1'!$C$59=Carbon!$B83,'Crop 1'!$L$59*VLOOKUP('Crop 1'!$E$59,Carbon!$AH$4:$AI$10,2,FALSE),0)+IF('Crop 1'!$C$62=Carbon!$B83,'Crop 1'!$L$62*VLOOKUP('Crop 1'!$E$62,Carbon!$AH$4:$AI$10,2,FALSE),0)+IF('Crop 1'!$C$63=Carbon!$B83,'Crop 1'!$L$63*VLOOKUP('Crop 1'!$E$63,Carbon!$AH$4:$AI$10,2,FALSE),0)+IF('Crop 1'!$C$64=Carbon!$B83,'Crop 1'!$L$64*VLOOKUP('Crop 1'!$E$64,Carbon!$AH$4:$AI$10,2,FALSE),0)+IF('Crop 1'!$C$65=Carbon!$B83,'Crop 1'!$L$65*VLOOKUP('Crop 1'!$E$65,Carbon!$AH$4:$AI$10,2,FALSE),0))*$AL$20,2)","v":0},{"$f":"C83*Inputs!$D$13","v":0},{"$f":"ROUND((IF('Crop 2'!$C$14=Carbon!$B83,'Crop 2'!$L$14*VLOOKUP('Crop 2'!$E$14,Carbon!$AH$4:$AI$10,2,FALSE),0)+IF('Crop 2'!$C$15=Carbon!$B83,'Crop 2'!$L$15*VLOOKUP('Crop 2'!$E$15,Carbon!$AH$4:$AI$10,2,FALSE),0)+IF('Crop 2'!$C$16=Carbon!$B83,'Crop 2'!$L$16*VLOOKUP('Crop 2'!$E$16,Carbon!$AH$4:$AI$10,2,FALSE),0)+IF('Crop 2'!$C$19=Carbon!$B83,'Crop 2'!$L$19*VLOOKUP('Crop 2'!$E$19,Carbon!$AH$4:$AI$10,2,FALSE),0)+IF('Crop 2'!$C$20=Carbon!$B83,'Crop 2'!$L$20*VLOOKUP('Crop 2'!$E$20,Carbon!$AH$4:$AI$10,2,FALSE),0)+IF('Crop 2'!$C$21=Carbon!$B83,'Crop 2'!$L$21*VLOOKUP('Crop 2'!$E$21,Carbon!$AH$4:$AI$10,2,FALSE),0)+IF('Crop 2'!$C$49=Carbon!$B83,'Crop 2'!$L$49*VLOOKUP('Crop 2'!$E$49,Carbon!$AH$4:$AI$10,2,FALSE),0)+IF('Crop 2'!$C$50=Carbon!$B83,'Crop 2'!$L$50*VLOOKUP('Crop 2'!$E$50,Carbon!$AH$4:$AI$10,2,FALSE),0)+IF('Crop 2'!$C$51=Carbon!$B83,'Crop 2'!$L$51*VLOOKUP('Crop 2'!$E$51,Carbon!$AH$4:$AI$10,2,FALSE),0)+IF('Crop 2'!$C$52=Carbon!$B83,'Crop 2'!$L$52*VLOOKUP('Crop 2'!$E$52,Carbon!$AH$4:$AI$10,2,FALSE),0)+IF('Crop 2'!$C$53=Carbon!$B83,'Crop 2'!$L$53*VLOOKUP('Crop 2'!$E$53,Carbon!$AH$4:$AI$10,2,FALSE),0)+IF('Crop 2'!$C$56=Carbon!$B83,'Crop 2'!$L$56*VLOOKUP('Crop 2'!$E$56,Carbon!$AH$4:$AI$10,2,FALSE),0)+IF('Crop 2'!$C$57=Carbon!$B83,'Crop 2'!$L$57*VLOOKUP('Crop 2'!$E$57,Carbon!$AH$4:$AI$10,2,FALSE),0)+IF('Crop 2'!$C$58=Carbon!$B83,'Crop 2'!$L$58*VLOOKUP('Crop 2'!$E$58,Carbon!$AH$4:$AI$10,2,FALSE),0)+IF('Crop 2'!$C$59=Carbon!$B83,'Crop 2'!$L$59*VLOOKUP('Crop 2'!$E$59,Carbon!$AH$4:$AI$10,2,FALSE),0)+IF('Crop 2'!$C$62=Carbon!$B83,'Crop 2'!$L$62*VLOOKUP('Crop 2'!$E$62,Carbon!$AH$4:$AI$10,2,FALSE),0)+IF('Crop 2'!$C$63=Carbon!$B83,'Crop 2'!$L$63*VLOOKUP('Crop 2'!$E$63,Carbon!$AH$4:$AI$10,2,FALSE),0)+IF('Crop 2'!$C$64=Carbon!$B83,'Crop 2'!$L$64*VLOOKUP('Crop 2'!$E$64,Carbon!$AH$4:$AI$10,2,FALSE),0)+IF('Crop 2'!$C$65=Carbon!$B83,'Crop 2'!$L$65*VLOOKUP('Crop 2'!$E$65,Carbon!$AH$4:$AI$10,2,FALSE),0))*$AL$20,2)","v":0},{"$f":"E83*Inputs!$D$15","v":0},{"$f":"ROUND((IF('Crop 3'!$C$14=Carbon!$B83,'Crop 3'!$L$14*VLOOKUP('Crop 3'!$E$14,Carbon!$AH$4:$AI$10,2,FALSE),0)+IF('Crop 3'!$C$15=Carbon!$B83,'Crop 3'!$L$15*VLOOKUP('Crop 3'!$E$15,Carbon!$AH$4:$AI$10,2,FALSE),0)+IF('Crop 3'!$C$16=Carbon!$B83,'Crop 3'!$L$16*VLOOKUP('Crop 3'!$E$16,Carbon!$AH$4:$AI$10,2,FALSE),0)+IF('Crop 3'!$C$19=Carbon!$B83,'Crop 3'!$L$19*VLOOKUP('Crop 3'!$E$19,Carbon!$AH$4:$AI$10,2,FALSE),0)+IF('Crop 3'!$C$20=Carbon!$B83,'Crop 3'!$L$20*VLOOKUP('Crop 3'!$E$20,Carbon!$AH$4:$AI$10,2,FALSE),0)+IF('Crop 3'!$C$21=Carbon!$B83,'Crop 3'!$L$21*VLOOKUP('Crop 3'!$E$21,Carbon!$AH$4:$AI$10,2,FALSE),0)+IF('Crop 3'!$C$49=Carbon!$B83,'Crop 3'!$L$49*VLOOKUP('Crop 3'!$E$49,Carbon!$AH$4:$AI$10,2,FALSE),0)+IF('Crop 3'!$C$50=Carbon!$B83,'Crop 3'!$L$50*VLOOKUP('Crop 3'!$E$50,Carbon!$AH$4:$AI$10,2,FALSE),0)+IF('Crop 3'!$C$51=Carbon!$B83,'Crop 3'!$L$51*VLOOKUP('Crop 3'!$E$51,Carbon!$AH$4:$AI$10,2,FALSE),0)+IF('Crop 3'!$C$52=Carbon!$B83,'Crop 3'!$L$52*VLOOKUP('Crop 3'!$E$52,Carbon!$AH$4:$AI$10,2,FALSE),0)+IF('Crop 3'!$C$53=Carbon!$B83,'Crop 3'!$L$53*VLOOKUP('Crop 3'!$E$53,Carbon!$AH$4:$AI$10,2,FALSE),0)+IF('Crop 3'!$C$56=Carbon!$B83,'Crop 3'!$L$56*VLOOKUP('Crop 3'!$E$56,Carbon!$AH$4:$AI$10,2,FALSE),0)+IF('Crop 3'!$C$57=Carbon!$B83,'Crop 3'!$L$57*VLOOKUP('Crop 3'!$E$57,Carbon!$AH$4:$AI$10,2,FALSE),0)+IF('Crop 3'!$C$58=Carbon!$B83,'Crop 3'!$L$58*VLOOKUP('Crop 3'!$E$58,Carbon!$AH$4:$AI$10,2,FALSE),0)+IF('Crop 3'!$C$59=Carbon!$B83,'Crop 3'!$L$59*VLOOKUP('Crop 3'!$E$59,Carbon!$AH$4:$AI$10,2,FALSE),0)+IF('Crop 3'!$C$62=Carbon!$B83,'Crop 3'!$L$62*VLOOKUP('Crop 3'!$E$62,Carbon!$AH$4:$AI$10,2,FALSE),0)+IF('Crop 3'!$C$63=Carbon!$B83,'Crop 3'!$L$63*VLOOKUP('Crop 3'!$E$63,Carbon!$AH$4:$AI$10,2,FALSE),0)+IF('Crop 3'!$C$64=Carbon!$B83,'Crop 3'!$L$64*VLOOKUP('Crop 3'!$E$64,Carbon!$AH$4:$AI$10,2,FALSE),0)+IF('Crop 3'!$C$65=Carbon!$B83,'Crop 3'!$L$65*VLOOKUP('Crop 3'!$E$65,Carbon!$AH$4:$AI$10,2,FALSE),0))*$AL$20,2)","v":0},{"$f":"G83*Inputs!$D$17","v":0},{"$f":"ROUND(J83/Inputs!D$19,2)","v":0},0,null,null,{"$f":"ROUND((IF('Crop 1'!$C$14=Carbon!$B83,'Crop 1'!$V$14*VLOOKUP('Crop 1'!$E$14,Carbon!$AH$4:$AI$10,2,FALSE),0)+IF('Crop 1'!$C$15=Carbon!$B83,'Crop 1'!$V$15*VLOOKUP('Crop 1'!$E$15,Carbon!$AH$4:$AI$10,2,FALSE),0)+IF('Crop 1'!$C$16=Carbon!$B83,'Crop 1'!$V$16*VLOOKUP('Crop 1'!$E$16,Carbon!$AH$4:$AI$10,2,FALSE),0)+IF('Crop 1'!$C$19=Carbon!$B83,'Crop 1'!$V$19*VLOOKUP('Crop 1'!$E$19,Carbon!$AH$4:$AI$10,2,FALSE),0)+IF('Crop 1'!$C$20=Carbon!$B83,'Crop 1'!$V$20*VLOOKUP('Crop 1'!$E$20,Carbon!$AH$4:$AI$10,2,FALSE),0)+IF('Crop 1'!$C$21=Carbon!$B83,'Crop 1'!$V$21*VLOOKUP('Crop 1'!$E$21,Carbon!$AH$4:$AI$10,2,FALSE),0)+IF('Crop 1'!$C$49=Carbon!$B83,'Crop 1'!$V$49*VLOOKUP('Crop 1'!$E$49,Carbon!$AH$4:$AI$10,2,FALSE),0)+IF('Crop 1'!$C$50=Carbon!$B83,'Crop 1'!$V$50*VLOOKUP('Crop 1'!$E$50,Carbon!$AH$4:$AI$10,2,FALSE),0)+IF('Crop 1'!$C$51=Carbon!$B83,'Crop 1'!$V$51*VLOOKUP('Crop 1'!$E$51,Carbon!$AH$4:$AI$10,2,FALSE),0)+IF('Crop 1'!$C$52=Carbon!$B83,'Crop 1'!$V$52*VLOOKUP('Crop 1'!$E$52,Carbon!$AH$4:$AI$10,2,FALSE),0)+IF('Crop 1'!$C$53=Carbon!$B83,'Crop 1'!$V$53*VLOOKUP('Crop 1'!$E$53,Carbon!$AH$4:$AI$10,2,FALSE),0)+IF('Crop 1'!$C$56=Carbon!$B83,'Crop 1'!$V$56*VLOOKUP('Crop 1'!$E$56,Carbon!$AH$4:$AI$10,2,FALSE),0)+IF('Crop 1'!$C$57=Carbon!$B83,'Crop 1'!$V$57*VLOOKUP('Crop 1'!$E$57,Carbon!$AH$4:$AI$10,2,FALSE),0)+IF('Crop 1'!$C$58=Carbon!$B83,'Crop 1'!$V$58*VLOOKUP('Crop 1'!$E$58,Carbon!$AH$4:$AI$10,2,FALSE),0)+IF('Crop 1'!$C$59=Carbon!$B83,'Crop 1'!$V$59*VLOOKUP('Crop 1'!$E$59,Carbon!$AH$4:$AI$10,2,FALSE),0)+IF('Crop 1'!$C$62=Carbon!$B83,'Crop 1'!$V$62*VLOOKUP('Crop 1'!$E$62,Carbon!$AH$4:$AI$10,2,FALSE),0)+IF('Crop 1'!$C$63=Carbon!$B83,'Crop 1'!$V$63*VLOOKUP('Crop 1'!$E$63,Carbon!$AH$4:$AI$10,2,FALSE),0)+IF('Crop 1'!$C$64=Carbon!$B83,'Crop 1'!$V$64*VLOOKUP('Crop 1'!$E$64,Carbon!$AH$4:$AI$10,2,FALSE),0)+IF('Crop 1'!$C$65=Carbon!$B83,'Crop 1'!$V$65*VLOOKUP('Crop 1'!$E$65,Carbon!$AH$4:$AI$10,2,FALSE),0))*$AL$20,2)","v":0},{"$f":"M83*Inputs!$D$13","v":0},{"$f":"ROUND((IF('Crop 2'!$C$14=Carbon!$B83,'Crop 2'!$V$14*VLOOKUP('Crop 2'!$E$14,Carbon!$AH$4:$AI$10,2,FALSE),0)+IF('Crop 2'!$C$15=Carbon!$B83,'Crop 2'!$V$15*VLOOKUP('Crop 2'!$E$15,Carbon!$AH$4:$AI$10,2,FALSE),0)+IF('Crop 2'!$C$16=Carbon!$B83,'Crop 2'!$V$16*VLOOKUP('Crop 2'!$E$16,Carbon!$AH$4:$AI$10,2,FALSE),0)+IF('Crop 2'!$C$19=Carbon!$B83,'Crop 2'!$V$19*VLOOKUP('Crop 2'!$E$19,Carbon!$AH$4:$AI$10,2,FALSE),0)+IF('Crop 2'!$C$20=Carbon!$B83,'Crop 2'!$V$20*VLOOKUP('Crop 2'!$E$20,Carbon!$AH$4:$AI$10,2,FALSE),0)+IF('Crop 2'!$C$21=Carbon!$B83,'Crop 2'!$V$21*VLOOKUP('Crop 2'!$E$21,Carbon!$AH$4:$AI$10,2,FALSE),0)+IF('Crop 2'!$C$49=Carbon!$B83,'Crop 2'!$V$49*VLOOKUP('Crop 2'!$E$49,Carbon!$AH$4:$AI$10,2,FALSE),0)+IF('Crop 2'!$C$50=Carbon!$B83,'Crop 2'!$V$50*VLOOKUP('Crop 2'!$E$50,Carbon!$AH$4:$AI$10,2,FALSE),0)+IF('Crop 2'!$C$51=Carbon!$B83,'Crop 2'!$V$51*VLOOKUP('Crop 2'!$E$51,Carbon!$AH$4:$AI$10,2,FALSE),0)+IF('Crop 2'!$C$52=Carbon!$B83,'Crop 2'!$V$52*VLOOKUP('Crop 2'!$E$52,Carbon!$AH$4:$AI$10,2,FALSE),0)+IF('Crop 2'!$C$53=Carbon!$B83,'Crop 2'!$V$53*VLOOKUP('Crop 2'!$E$53,Carbon!$AH$4:$AI$10,2,FALSE),0)+IF('Crop 2'!$C$56=Carbon!$B83,'Crop 2'!$V$56*VLOOKUP('Crop 2'!$E$56,Carbon!$AH$4:$AI$10,2,FALSE),0)+IF('Crop 2'!$C$57=Carbon!$B83,'Crop 2'!$V$57*VLOOKUP('Crop 2'!$E$57,Carbon!$AH$4:$AI$10,2,FALSE),0)+IF('Crop 2'!$C$58=Carbon!$B83,'Crop 2'!$V$58*VLOOKUP('Crop 2'!$E$58,Carbon!$AH$4:$AI$10,2,FALSE),0)+IF('Crop 2'!$C$59=Carbon!$B83,'Crop 2'!$V$59*VLOOKUP('Crop 2'!$E$59,Carbon!$AH$4:$AI$10,2,FALSE),0)+IF('Crop 2'!$C$62=Carbon!$B83,'Crop 2'!$V$62*VLOOKUP('Crop 2'!$E$62,Carbon!$AH$4:$AI$10,2,FALSE),0)+IF('Crop 2'!$C$63=Carbon!$B83,'Crop 2'!$V$63*VLOOKUP('Crop 2'!$E$63,Carbon!$AH$4:$AI$10,2,FALSE),0)+IF('Crop 2'!$C$64=Carbon!$B83,'Crop 2'!$V$64*VLOOKUP('Crop 2'!$E$64,Carbon!$AH$4:$AI$10,2,FALSE),0)+IF('Crop 2'!$C$65=Carbon!$B83,'Crop 2'!$V$65*VLOOKUP('Crop 2'!$E$65,Carbon!$AH$4:$AI$10,2,FALSE),0))*$AL$20,2)","v":0},{"$f":"O83*Inputs!$D$15","v":0},{"$f":"ROUND((IF('Crop 3'!$C$14=Carbon!$B83,'Crop 3'!$V$14*VLOOKUP('Crop 3'!$E$14,Carbon!$AH$4:$AI$10,2,FALSE),0)+IF('Crop 3'!$C$15=Carbon!$B83,'Crop 3'!$V$15*VLOOKUP('Crop 3'!$E$15,Carbon!$AH$4:$AI$10,2,FALSE),0)+IF('Crop 3'!$C$16=Carbon!$B83,'Crop 3'!$V$16*VLOOKUP('Crop 3'!$E$16,Carbon!$AH$4:$AI$10,2,FALSE),0)+IF('Crop 3'!$C$19=Carbon!$B83,'Crop 3'!$V$19*VLOOKUP('Crop 3'!$E$19,Carbon!$AH$4:$AI$10,2,FALSE),0)+IF('Crop 3'!$C$20=Carbon!$B83,'Crop 3'!$V$20*VLOOKUP('Crop 3'!$E$20,Carbon!$AH$4:$AI$10,2,FALSE),0)+IF('Crop 3'!$C$21=Carbon!$B83,'Crop 3'!$V$21*VLOOKUP('Crop 3'!$E$21,Carbon!$AH$4:$AI$10,2,FALSE),0)+IF('Crop 3'!$C$49=Carbon!$B83,'Crop 3'!$V$49*VLOOKUP('Crop 3'!$E$49,Carbon!$AH$4:$AI$10,2,FALSE),0)+IF('Crop 3'!$C$50=Carbon!$B83,'Crop 3'!$V$50*VLOOKUP('Crop 3'!$E$50,Carbon!$AH$4:$AI$10,2,FALSE),0)+IF('Crop 3'!$C$51=Carbon!$B83,'Crop 3'!$V$51*VLOOKUP('Crop 3'!$E$51,Carbon!$AH$4:$AI$10,2,FALSE),0)+IF('Crop 3'!$C$52=Carbon!$B83,'Crop 3'!$V$52*VLOOKUP('Crop 3'!$E$52,Carbon!$AH$4:$AI$10,2,FALSE),0)+IF('Crop 3'!$C$53=Carbon!$B83,'Crop 3'!$V$53*VLOOKUP('Crop 3'!$E$53,Carbon!$AH$4:$AI$10,2,FALSE),0)+IF('Crop 3'!$C$56=Carbon!$B83,'Crop 3'!$V$56*VLOOKUP('Crop 3'!$E$56,Carbon!$AH$4:$AI$10,2,FALSE),0)+IF('Crop 3'!$C$57=Carbon!$B83,'Crop 3'!$V$57*VLOOKUP('Crop 3'!$E$57,Carbon!$AH$4:$AI$10,2,FALSE),0)+IF('Crop 3'!$C$58=Carbon!$B83,'Crop 3'!$V$58*VLOOKUP('Crop 3'!$E$58,Carbon!$AH$4:$AI$10,2,FALSE),0)+IF('Crop 3'!$C$59=Carbon!$B83,'Crop 3'!$V$59*VLOOKUP('Crop 3'!$E$59,Carbon!$AH$4:$AI$10,2,FALSE),0)+IF('Crop 3'!$C$62=Carbon!$B83,'Crop 3'!$V$62*VLOOKUP('Crop 3'!$E$62,Carbon!$AH$4:$AI$10,2,FALSE),0)+IF('Crop 3'!$C$63=Carbon!$B83,'Crop 3'!$V$63*VLOOKUP('Crop 3'!$E$63,Carbon!$AH$4:$AI$10,2,FALSE),0)+IF('Crop 3'!$C$64=Carbon!$B83,'Crop 3'!$V$64*VLOOKUP('Crop 3'!$E$64,Carbon!$AH$4:$AI$10,2,FALSE),0)+IF('Crop 3'!$C$65=Carbon!$B83,'Crop 3'!$V$65*VLOOKUP('Crop 3'!$E$65,Carbon!$AH$4:$AI$10,2,FALSE),0))*$AL$20,2)","v":0},{"$f":"Q83*Inputs!$D$17","v":0},{"$f":"ROUND(T83/Inputs!D$19,2)","v":0},0,null,null,0,{"$f":"W83*Inputs!$D$13","v":0},0,{"$f":"Y83*Inputs!$D$13","v":0},0,{"$f":"AA83*Inputs!$D$13","v":0},{"$f":"ROUND(AD83/Inputs!D$19,2)","v":0},0]
[null,{"$f":"Defaults!AH50","v":"Enlist Duo"},{"$f":"ROUND((IF('Crop 1'!$C$14=Carbon!$B84,'Crop 1'!$L$14*VLOOKUP('Crop 1'!$E$14,Carbon!$AH$4:$AI$10,2,FALSE),0)+IF('Crop 1'!$C$15=Carbon!$B84,'Crop 1'!$L$15*VLOOKUP('Crop 1'!$E$15,Carbon!$AH$4:$AI$10,2,FALSE),0)+IF('Crop 1'!$C$16=Carbon!$B84,'Crop 1'!$L$16*VLOOKUP('Crop 1'!$E$16,Carbon!$AH$4:$AI$10,2,FALSE),0)+IF('Crop 1'!$C$19=Carbon!$B84,'Crop 1'!$L$19*VLOOKUP('Crop 1'!$E$19,Carbon!$AH$4:$AI$10,2,FALSE),0)+IF('Crop 1'!$C$20=Carbon!$B84,'Crop 1'!$L$20*VLOOKUP('Crop 1'!$E$20,Carbon!$AH$4:$AI$10,2,FALSE),0)+IF('Crop 1'!$C$21=Carbon!$B84,'Crop 1'!$L$21*VLOOKUP('Crop 1'!$E$21,Carbon!$AH$4:$AI$10,2,FALSE),0)+IF('Crop 1'!$C$49=Carbon!$B84,'Crop 1'!$L$49*VLOOKUP('Crop 1'!$E$49,Carbon!$AH$4:$AI$10,2,FALSE),0)+IF('Crop 1'!$C$50=Carbon!$B84,'Crop 1'!$L$50*VLOOKUP('Crop 1'!$E$50,Carbon!$AH$4:$AI$10,2,FALSE),0)+IF('Crop 1'!$C$51=Carbon!$B84,'Crop 1'!$L$51*VLOOKUP('Crop 1'!$E$51,Carbon!$AH$4:$AI$10,2,FALSE),0)+IF('Crop 1'!$C$52=Carbon!$B84,'Crop 1'!$L$52*VLOOKUP('Crop 1'!$E$52,Carbon!$AH$4:$AI$10,2,FALSE),0)+IF('Crop 1'!$C$53=Carbon!$B84,'Crop 1'!$L$53*VLOOKUP('Crop 1'!$E$53,Carbon!$AH$4:$AI$10,2,FALSE),0)+IF('Crop 1'!$C$56=Carbon!$B84,'Crop 1'!$L$56*VLOOKUP('Crop 1'!$E$56,Carbon!$AH$4:$AI$10,2,FALSE),0)+IF('Crop 1'!$C$57=Carbon!$B84,'Crop 1'!$L$57*VLOOKUP('Crop 1'!$E$57,Carbon!$AH$4:$AI$10,2,FALSE),0)+IF('Crop 1'!$C$58=Carbon!$B84,'Crop 1'!$L$58*VLOOKUP('Crop 1'!$E$58,Carbon!$AH$4:$AI$10,2,FALSE),0)+IF('Crop 1'!$C$59=Carbon!$B84,'Crop 1'!$L$59*VLOOKUP('Crop 1'!$E$59,Carbon!$AH$4:$AI$10,2,FALSE),0)+IF('Crop 1'!$C$62=Carbon!$B84,'Crop 1'!$L$62*VLOOKUP('Crop 1'!$E$62,Carbon!$AH$4:$AI$10,2,FALSE),0)+IF('Crop 1'!$C$63=Carbon!$B84,'Crop 1'!$L$63*VLOOKUP('Crop 1'!$E$63,Carbon!$AH$4:$AI$10,2,FALSE),0)+IF('Crop 1'!$C$64=Carbon!$B84,'Crop 1'!$L$64*VLOOKUP('Crop 1'!$E$64,Carbon!$AH$4:$AI$10,2,FALSE),0)+IF('Crop 1'!$C$65=Carbon!$B84,'Crop 1'!$L$65*VLOOKUP('Crop 1'!$E$65,Carbon!$AH$4:$AI$10,2,FALSE),0))*$AL$20,2)","v":0},{"$f":"C84*Inputs!$D$13","v":0},{"$f":"ROUND((IF('Crop 2'!$C$14=Carbon!$B84,'Crop 2'!$L$14*VLOOKUP('Crop 2'!$E$14,Carbon!$AH$4:$AI$10,2,FALSE),0)+IF('Crop 2'!$C$15=Carbon!$B84,'Crop 2'!$L$15*VLOOKUP('Crop 2'!$E$15,Carbon!$AH$4:$AI$10,2,FALSE),0)+IF('Crop 2'!$C$16=Carbon!$B84,'Crop 2'!$L$16*VLOOKUP('Crop 2'!$E$16,Carbon!$AH$4:$AI$10,2,FALSE),0)+IF('Crop 2'!$C$19=Carbon!$B84,'Crop 2'!$L$19*VLOOKUP('Crop 2'!$E$19,Carbon!$AH$4:$AI$10,2,FALSE),0)+IF('Crop 2'!$C$20=Carbon!$B84,'Crop 2'!$L$20*VLOOKUP('Crop 2'!$E$20,Carbon!$AH$4:$AI$10,2,FALSE),0)+IF('Crop 2'!$C$21=Carbon!$B84,'Crop 2'!$L$21*VLOOKUP('Crop 2'!$E$21,Carbon!$AH$4:$AI$10,2,FALSE),0)+IF('Crop 2'!$C$49=Carbon!$B84,'Crop 2'!$L$49*VLOOKUP('Crop 2'!$E$49,Carbon!$AH$4:$AI$10,2,FALSE),0)+IF('Crop 2'!$C$50=Carbon!$B84,'Crop 2'!$L$50*VLOOKUP('Crop 2'!$E$50,Carbon!$AH$4:$AI$10,2,FALSE),0)+IF('Crop 2'!$C$51=Carbon!$B84,'Crop 2'!$L$51*VLOOKUP('Crop 2'!$E$51,Carbon!$AH$4:$AI$10,2,FALSE),0)+IF('Crop 2'!$C$52=Carbon!$B84,'Crop 2'!$L$52*VLOOKUP('Crop 2'!$E$52,Carbon!$AH$4:$AI$10,2,FALSE),0)+IF('Crop 2'!$C$53=Carbon!$B84,'Crop 2'!$L$53*VLOOKUP('Crop 2'!$E$53,Carbon!$AH$4:$AI$10,2,FALSE),0)+IF('Crop 2'!$C$56=Carbon!$B84,'Crop 2'!$L$56*VLOOKUP('Crop 2'!$E$56,Carbon!$AH$4:$AI$10,2,FALSE),0)+IF('Crop 2'!$C$57=Carbon!$B84,'Crop 2'!$L$57*VLOOKUP('Crop 2'!$E$57,Carbon!$AH$4:$AI$10,2,FALSE),0)+IF('Crop 2'!$C$58=Carbon!$B84,'Crop 2'!$L$58*VLOOKUP('Crop 2'!$E$58,Carbon!$AH$4:$AI$10,2,FALSE),0)+IF('Crop 2'!$C$59=Carbon!$B84,'Crop 2'!$L$59*VLOOKUP('Crop 2'!$E$59,Carbon!$AH$4:$AI$10,2,FALSE),0)+IF('Crop 2'!$C$62=Carbon!$B84,'Crop 2'!$L$62*VLOOKUP('Crop 2'!$E$62,Carbon!$AH$4:$AI$10,2,FALSE),0)+IF('Crop 2'!$C$63=Carbon!$B84,'Crop 2'!$L$63*VLOOKUP('Crop 2'!$E$63,Carbon!$AH$4:$AI$10,2,FALSE),0)+IF('Crop 2'!$C$64=Carbon!$B84,'Crop 2'!$L$64*VLOOKUP('Crop 2'!$E$64,Carbon!$AH$4:$AI$10,2,FALSE),0)+IF('Crop 2'!$C$65=Carbon!$B84,'Crop 2'!$L$65*VLOOKUP('Crop 2'!$E$65,Carbon!$AH$4:$AI$10,2,FALSE),0))*$AL$20,2)","v":0},{"$f":"E84*Inputs!$D$15","v":0},{"$f":"ROUND((IF('Crop 3'!$C$14=Carbon!$B84,'Crop 3'!$L$14*VLOOKUP('Crop 3'!$E$14,Carbon!$AH$4:$AI$10,2,FALSE),0)+IF('Crop 3'!$C$15=Carbon!$B84,'Crop 3'!$L$15*VLOOKUP('Crop 3'!$E$15,Carbon!$AH$4:$AI$10,2,FALSE),0)+IF('Crop 3'!$C$16=Carbon!$B84,'Crop 3'!$L$16*VLOOKUP('Crop 3'!$E$16,Carbon!$AH$4:$AI$10,2,FALSE),0)+IF('Crop 3'!$C$19=Carbon!$B84,'Crop 3'!$L$19*VLOOKUP('Crop 3'!$E$19,Carbon!$AH$4:$AI$10,2,FALSE),0)+IF('Crop 3'!$C$20=Carbon!$B84,'Crop 3'!$L$20*VLOOKUP('Crop 3'!$E$20,Carbon!$AH$4:$AI$10,2,FALSE),0)+IF('Crop 3'!$C$21=Carbon!$B84,'Crop 3'!$L$21*VLOOKUP('Crop 3'!$E$21,Carbon!$AH$4:$AI$10,2,FALSE),0)+IF('Crop 3'!$C$49=Carbon!$B84,'Crop 3'!$L$49*VLOOKUP('Crop 3'!$E$49,Carbon!$AH$4:$AI$10,2,FALSE),0)+IF('Crop 3'!$C$50=Carbon!$B84,'Crop 3'!$L$50*VLOOKUP('Crop 3'!$E$50,Carbon!$AH$4:$AI$10,2,FALSE),0)+IF('Crop 3'!$C$51=Carbon!$B84,'Crop 3'!$L$51*VLOOKUP('Crop 3'!$E$51,Carbon!$AH$4:$AI$10,2,FALSE),0)+IF('Crop 3'!$C$52=Carbon!$B84,'Crop 3'!$L$52*VLOOKUP('Crop 3'!$E$52,Carbon!$AH$4:$AI$10,2,FALSE),0)+IF('Crop 3'!$C$53=Carbon!$B84,'Crop 3'!$L$53*VLOOKUP('Crop 3'!$E$53,Carbon!$AH$4:$AI$10,2,FALSE),0)+IF('Crop 3'!$C$56=Carbon!$B84,'Crop 3'!$L$56*VLOOKUP('Crop 3'!$E$56,Carbon!$AH$4:$AI$10,2,FALSE),0)+IF('Crop 3'!$C$57=Carbon!$B84,'Crop 3'!$L$57*VLOOKUP('Crop 3'!$E$57,Carbon!$AH$4:$AI$10,2,FALSE),0)+IF('Crop 3'!$C$58=Carbon!$B84,'Crop 3'!$L$58*VLOOKUP('Crop 3'!$E$58,Carbon!$AH$4:$AI$10,2,FALSE),0)+IF('Crop 3'!$C$59=Carbon!$B84,'Crop 3'!$L$59*VLOOKUP('Crop 3'!$E$59,Carbon!$AH$4:$AI$10,2,FALSE),0)+IF('Crop 3'!$C$62=Carbon!$B84,'Crop 3'!$L$62*VLOOKUP('Crop 3'!$E$62,Carbon!$AH$4:$AI$10,2,FALSE),0)+IF('Crop 3'!$C$63=Carbon!$B84,'Crop 3'!$L$63*VLOOKUP('Crop 3'!$E$63,Carbon!$AH$4:$AI$10,2,FALSE),0)+IF('Crop 3'!$C$64=Carbon!$B84,'Crop 3'!$L$64*VLOOKUP('Crop 3'!$E$64,Carbon!$AH$4:$AI$10,2,FALSE),0)+IF('Crop 3'!$C$65=Carbon!$B84,'Crop 3'!$L$65*VLOOKUP('Crop 3'!$E$65,Carbon!$AH$4:$AI$10,2,FALSE),0))*$AL$20,2)","v":0},{"$f":"G84*Inputs!$D$17","v":0},{"$f":"ROUND(J84/Inputs!D$19,2)","v":0},0,null,null,{"$f":"ROUND((IF('Crop 1'!$C$14=Carbon!$B84,'Crop 1'!$V$14*VLOOKUP('Crop 1'!$E$14,Carbon!$AH$4:$AI$10,2,FALSE),0)+IF('Crop 1'!$C$15=Carbon!$B84,'Crop 1'!$V$15*VLOOKUP('Crop 1'!$E$15,Carbon!$AH$4:$AI$10,2,FALSE),0)+IF('Crop 1'!$C$16=Carbon!$B84,'Crop 1'!$V$16*VLOOKUP('Crop 1'!$E$16,Carbon!$AH$4:$AI$10,2,FALSE),0)+IF('Crop 1'!$C$19=Carbon!$B84,'Crop 1'!$V$19*VLOOKUP('Crop 1'!$E$19,Carbon!$AH$4:$AI$10,2,FALSE),0)+IF('Crop 1'!$C$20=Carbon!$B84,'Crop 1'!$V$20*VLOOKUP('Crop 1'!$E$20,Carbon!$AH$4:$AI$10,2,FALSE),0)+IF('Crop 1'!$C$21=Carbon!$B84,'Crop 1'!$V$21*VLOOKUP('Crop 1'!$E$21,Carbon!$AH$4:$AI$10,2,FALSE),0)+IF('Crop 1'!$C$49=Carbon!$B84,'Crop 1'!$V$49*VLOOKUP('Crop 1'!$E$49,Carbon!$AH$4:$AI$10,2,FALSE),0)+IF('Crop 1'!$C$50=Carbon!$B84,'Crop 1'!$V$50*VLOOKUP('Crop 1'!$E$50,Carbon!$AH$4:$AI$10,2,FALSE),0)+IF('Crop 1'!$C$51=Carbon!$B84,'Crop 1'!$V$51*VLOOKUP('Crop 1'!$E$51,Carbon!$AH$4:$AI$10,2,FALSE),0)+IF('Crop 1'!$C$52=Carbon!$B84,'Crop 1'!$V$52*VLOOKUP('Crop 1'!$E$52,Carbon!$AH$4:$AI$10,2,FALSE),0)+IF('Crop 1'!$C$53=Carbon!$B84,'Crop 1'!$V$53*VLOOKUP('Crop 1'!$E$53,Carbon!$AH$4:$AI$10,2,FALSE),0)+IF('Crop 1'!$C$56=Carbon!$B84,'Crop 1'!$V$56*VLOOKUP('Crop 1'!$E$56,Carbon!$AH$4:$AI$10,2,FALSE),0)+IF('Crop 1'!$C$57=Carbon!$B84,'Crop 1'!$V$57*VLOOKUP('Crop 1'!$E$57,Carbon!$AH$4:$AI$10,2,FALSE),0)+IF('Crop 1'!$C$58=Carbon!$B84,'Crop 1'!$V$58*VLOOKUP('Crop 1'!$E$58,Carbon!$AH$4:$AI$10,2,FALSE),0)+IF('Crop 1'!$C$59=Carbon!$B84,'Crop 1'!$V$59*VLOOKUP('Crop 1'!$E$59,Carbon!$AH$4:$AI$10,2,FALSE),0)+IF('Crop 1'!$C$62=Carbon!$B84,'Crop 1'!$V$62*VLOOKUP('Crop 1'!$E$62,Carbon!$AH$4:$AI$10,2,FALSE),0)+IF('Crop 1'!$C$63=Carbon!$B84,'Crop 1'!$V$63*VLOOKUP('Crop 1'!$E$63,Carbon!$AH$4:$AI$10,2,FALSE),0)+IF('Crop 1'!$C$64=Carbon!$B84,'Crop 1'!$V$64*VLOOKUP('Crop 1'!$E$64,Carbon!$AH$4:$AI$10,2,FALSE),0)+IF('Crop 1'!$C$65=Carbon!$B84,'Crop 1'!$V$65*VLOOKUP('Crop 1'!$E$65,Carbon!$AH$4:$AI$10,2,FALSE),0))*$AL$20,2)","v":0},{"$f":"M84*Inputs!$D$13","v":0},{"$f":"ROUND((IF('Crop 2'!$C$14=Carbon!$B84,'Crop 2'!$V$14*VLOOKUP('Crop 2'!$E$14,Carbon!$AH$4:$AI$10,2,FALSE),0)+IF('Crop 2'!$C$15=Carbon!$B84,'Crop 2'!$V$15*VLOOKUP('Crop 2'!$E$15,Carbon!$AH$4:$AI$10,2,FALSE),0)+IF('Crop 2'!$C$16=Carbon!$B84,'Crop 2'!$V$16*VLOOKUP('Crop 2'!$E$16,Carbon!$AH$4:$AI$10,2,FALSE),0)+IF('Crop 2'!$C$19=Carbon!$B84,'Crop 2'!$V$19*VLOOKUP('Crop 2'!$E$19,Carbon!$AH$4:$AI$10,2,FALSE),0)+IF('Crop 2'!$C$20=Carbon!$B84,'Crop 2'!$V$20*VLOOKUP('Crop 2'!$E$20,Carbon!$AH$4:$AI$10,2,FALSE),0)+IF('Crop 2'!$C$21=Carbon!$B84,'Crop 2'!$V$21*VLOOKUP('Crop 2'!$E$21,Carbon!$AH$4:$AI$10,2,FALSE),0)+IF('Crop 2'!$C$49=Carbon!$B84,'Crop 2'!$V$49*VLOOKUP('Crop 2'!$E$49,Carbon!$AH$4:$AI$10,2,FALSE),0)+IF('Crop 2'!$C$50=Carbon!$B84,'Crop 2'!$V$50*VLOOKUP('Crop 2'!$E$50,Carbon!$AH$4:$AI$10,2,FALSE),0)+IF('Crop 2'!$C$51=Carbon!$B84,'Crop 2'!$V$51*VLOOKUP('Crop 2'!$E$51,Carbon!$AH$4:$AI$10,2,FALSE),0)+IF('Crop 2'!$C$52=Carbon!$B84,'Crop 2'!$V$52*VLOOKUP('Crop 2'!$E$52,Carbon!$AH$4:$AI$10,2,FALSE),0)+IF('Crop 2'!$C$53=Carbon!$B84,'Crop 2'!$V$53*VLOOKUP('Crop 2'!$E$53,Carbon!$AH$4:$AI$10,2,FALSE),0)+IF('Crop 2'!$C$56=Carbon!$B84,'Crop 2'!$V$56*VLOOKUP('Crop 2'!$E$56,Carbon!$AH$4:$AI$10,2,FALSE),0)+IF('Crop 2'!$C$57=Carbon!$B84,'Crop 2'!$V$57*VLOOKUP('Crop 2'!$E$57,Carbon!$AH$4:$AI$10,2,FALSE),0)+IF('Crop 2'!$C$58=Carbon!$B84,'Crop 2'!$V$58*VLOOKUP('Crop 2'!$E$58,Carbon!$AH$4:$AI$10,2,FALSE),0)+IF('Crop 2'!$C$59=Carbon!$B84,'Crop 2'!$V$59*VLOOKUP('Crop 2'!$E$59,Carbon!$AH$4:$AI$10,2,FALSE),0)+IF('Crop 2'!$C$62=Carbon!$B84,'Crop 2'!$V$62*VLOOKUP('Crop 2'!$E$62,Carbon!$AH$4:$AI$10,2,FALSE),0)+IF('Crop 2'!$C$63=Carbon!$B84,'Crop 2'!$V$63*VLOOKUP('Crop 2'!$E$63,Carbon!$AH$4:$AI$10,2,FALSE),0)+IF('Crop 2'!$C$64=Carbon!$B84,'Crop 2'!$V$64*VLOOKUP('Crop 2'!$E$64,Carbon!$AH$4:$AI$10,2,FALSE),0)+IF('Crop 2'!$C$65=Carbon!$B84,'Crop 2'!$V$65*VLOOKUP('Crop 2'!$E$65,Carbon!$AH$4:$AI$10,2,FALSE),0))*$AL$20,2)","v":0},{"$f":"O84*Inputs!$D$15","v":0},{"$f":"ROUND((IF('Crop 3'!$C$14=Carbon!$B84,'Crop 3'!$V$14*VLOOKUP('Crop 3'!$E$14,Carbon!$AH$4:$AI$10,2,FALSE),0)+IF('Crop 3'!$C$15=Carbon!$B84,'Crop 3'!$V$15*VLOOKUP('Crop 3'!$E$15,Carbon!$AH$4:$AI$10,2,FALSE),0)+IF('Crop 3'!$C$16=Carbon!$B84,'Crop 3'!$V$16*VLOOKUP('Crop 3'!$E$16,Carbon!$AH$4:$AI$10,2,FALSE),0)+IF('Crop 3'!$C$19=Carbon!$B84,'Crop 3'!$V$19*VLOOKUP('Crop 3'!$E$19,Carbon!$AH$4:$AI$10,2,FALSE),0)+IF('Crop 3'!$C$20=Carbon!$B84,'Crop 3'!$V$20*VLOOKUP('Crop 3'!$E$20,Carbon!$AH$4:$AI$10,2,FALSE),0)+IF('Crop 3'!$C$21=Carbon!$B84,'Crop 3'!$V$21*VLOOKUP('Crop 3'!$E$21,Carbon!$AH$4:$AI$10,2,FALSE),0)+IF('Crop 3'!$C$49=Carbon!$B84,'Crop 3'!$V$49*VLOOKUP('Crop 3'!$E$49,Carbon!$AH$4:$AI$10,2,FALSE),0)+IF('Crop 3'!$C$50=Carbon!$B84,'Crop 3'!$V$50*VLOOKUP('Crop 3'!$E$50,Carbon!$AH$4:$AI$10,2,FALSE),0)+IF('Crop 3'!$C$51=Carbon!$B84,'Crop 3'!$V$51*VLOOKUP('Crop 3'!$E$51,Carbon!$AH$4:$AI$10,2,FALSE),0)+IF('Crop 3'!$C$52=Carbon!$B84,'Crop 3'!$V$52*VLOOKUP('Crop 3'!$E$52,Carbon!$AH$4:$AI$10,2,FALSE),0)+IF('Crop 3'!$C$53=Carbon!$B84,'Crop 3'!$V$53*VLOOKUP('Crop 3'!$E$53,Carbon!$AH$4:$AI$10,2,FALSE),0)+IF('Crop 3'!$C$56=Carbon!$B84,'Crop 3'!$V$56*VLOOKUP('Crop 3'!$E$56,Carbon!$AH$4:$AI$10,2,FALSE),0)+IF('Crop 3'!$C$57=Carbon!$B84,'Crop 3'!$V$57*VLOOKUP('Crop 3'!$E$57,Carbon!$AH$4:$AI$10,2,FALSE),0)+IF('Crop 3'!$C$58=Carbon!$B84,'Crop 3'!$V$58*VLOOKUP('Crop 3'!$E$58,Carbon!$AH$4:$AI$10,2,FALSE),0)+IF('Crop 3'!$C$59=Carbon!$B84,'Crop 3'!$V$59*VLOOKUP('Crop 3'!$E$59,Carbon!$AH$4:$AI$10,2,FALSE),0)+IF('Crop 3'!$C$62=Carbon!$B84,'Crop 3'!$V$62*VLOOKUP('Crop 3'!$E$62,Carbon!$AH$4:$AI$10,2,FALSE),0)+IF('Crop 3'!$C$63=Carbon!$B84,'Crop 3'!$V$63*VLOOKUP('Crop 3'!$E$63,Carbon!$AH$4:$AI$10,2,FALSE),0)+IF('Crop 3'!$C$64=Carbon!$B84,'Crop 3'!$V$64*VLOOKUP('Crop 3'!$E$64,Carbon!$AH$4:$AI$10,2,FALSE),0)+IF('Crop 3'!$C$65=Carbon!$B84,'Crop 3'!$V$65*VLOOKUP('Crop 3'!$E$65,Carbon!$AH$4:$AI$10,2,FALSE),0))*$AL$20,2)","v":0},{"$f":"Q84*Inputs!$D$17","v":0},{"$f":"ROUND(T84/Inputs!D$19,2)","v":0},0,null,null,0,{"$f":"W84*Inputs!$D$13","v":0},0,{"$f":"Y84*Inputs!$D$13","v":0},0,{"$f":"AA84*Inputs!$D$13","v":0},{"$f":"ROUND(AD84/Inputs!D$19,2)","v":0},0]
[null,{"$f":"Defaults!AH51","v":"Enlite"},{"$f":"ROUND((IF('Crop 1'!$C$14=Carbon!$B85,'Crop 1'!$L$14*VLOOKUP('Crop 1'!$E$14,Carbon!$AH$4:$AI$10,2,FALSE),0)+IF('Crop 1'!$C$15=Carbon!$B85,'Crop 1'!$L$15*VLOOKUP('Crop 1'!$E$15,Carbon!$AH$4:$AI$10,2,FALSE),0)+IF('Crop 1'!$C$16=Carbon!$B85,'Crop 1'!$L$16*VLOOKUP('Crop 1'!$E$16,Carbon!$AH$4:$AI$10,2,FALSE),0)+IF('Crop 1'!$C$19=Carbon!$B85,'Crop 1'!$L$19*VLOOKUP('Crop 1'!$E$19,Carbon!$AH$4:$AI$10,2,FALSE),0)+IF('Crop 1'!$C$20=Carbon!$B85,'Crop 1'!$L$20*VLOOKUP('Crop 1'!$E$20,Carbon!$AH$4:$AI$10,2,FALSE),0)+IF('Crop 1'!$C$21=Carbon!$B85,'Crop 1'!$L$21*VLOOKUP('Crop 1'!$E$21,Carbon!$AH$4:$AI$10,2,FALSE),0)+IF('Crop 1'!$C$49=Carbon!$B85,'Crop 1'!$L$49*VLOOKUP('Crop 1'!$E$49,Carbon!$AH$4:$AI$10,2,FALSE),0)+IF('Crop 1'!$C$50=Carbon!$B85,'Crop 1'!$L$50*VLOOKUP('Crop 1'!$E$50,Carbon!$AH$4:$AI$10,2,FALSE),0)+IF('Crop 1'!$C$51=Carbon!$B85,'Crop 1'!$L$51*VLOOKUP('Crop 1'!$E$51,Carbon!$AH$4:$AI$10,2,FALSE),0)+IF('Crop 1'!$C$52=Carbon!$B85,'Crop 1'!$L$52*VLOOKUP('Crop 1'!$E$52,Carbon!$AH$4:$AI$10,2,FALSE),0)+IF('Crop 1'!$C$53=Carbon!$B85,'Crop 1'!$L$53*VLOOKUP('Crop 1'!$E$53,Carbon!$AH$4:$AI$10,2,FALSE),0)+IF('Crop 1'!$C$56=Carbon!$B85,'Crop 1'!$L$56*VLOOKUP('Crop 1'!$E$56,Carbon!$AH$4:$AI$10,2,FALSE),0)+IF('Crop 1'!$C$57=Carbon!$B85,'Crop 1'!$L$57*VLOOKUP('Crop 1'!$E$57,Carbon!$AH$4:$AI$10,2,FALSE),0)+IF('Crop 1'!$C$58=Carbon!$B85,'Crop 1'!$L$58*VLOOKUP('Crop 1'!$E$58,Carbon!$AH$4:$AI$10,2,FALSE),0)+IF('Crop 1'!$C$59=Carbon!$B85,'Crop 1'!$L$59*VLOOKUP('Crop 1'!$E$59,Carbon!$AH$4:$AI$10,2,FALSE),0)+IF('Crop 1'!$C$62=Carbon!$B85,'Crop 1'!$L$62*VLOOKUP('Crop 1'!$E$62,Carbon!$AH$4:$AI$10,2,FALSE),0)+IF('Crop 1'!$C$63=Carbon!$B85,'Crop 1'!$L$63*VLOOKUP('Crop 1'!$E$63,Carbon!$AH$4:$AI$10,2,FALSE),0)+IF('Crop 1'!$C$64=Carbon!$B85,'Crop 1'!$L$64*VLOOKUP('Crop 1'!$E$64,Carbon!$AH$4:$AI$10,2,FALSE),0)+IF('Crop 1'!$C$65=Carbon!$B85,'Crop 1'!$L$65*VLOOKUP('Crop 1'!$E$65,Carbon!$AH$4:$AI$10,2,FALSE),0))*$AL$20,2)","v":0},{"$f":"C85*Inputs!$D$13","v":0},{"$f":"ROUND((IF('Crop 2'!$C$14=Carbon!$B85,'Crop 2'!$L$14*VLOOKUP('Crop 2'!$E$14,Carbon!$AH$4:$AI$10,2,FALSE),0)+IF('Crop 2'!$C$15=Carbon!$B85,'Crop 2'!$L$15*VLOOKUP('Crop 2'!$E$15,Carbon!$AH$4:$AI$10,2,FALSE),0)+IF('Crop 2'!$C$16=Carbon!$B85,'Crop 2'!$L$16*VLOOKUP('Crop 2'!$E$16,Carbon!$AH$4:$AI$10,2,FALSE),0)+IF('Crop 2'!$C$19=Carbon!$B85,'Crop 2'!$L$19*VLOOKUP('Crop 2'!$E$19,Carbon!$AH$4:$AI$10,2,FALSE),0)+IF('Crop 2'!$C$20=Carbon!$B85,'Crop 2'!$L$20*VLOOKUP('Crop 2'!$E$20,Carbon!$AH$4:$AI$10,2,FALSE),0)+IF('Crop 2'!$C$21=Carbon!$B85,'Crop 2'!$L$21*VLOOKUP('Crop 2'!$E$21,Carbon!$AH$4:$AI$10,2,FALSE),0)+IF('Crop 2'!$C$49=Carbon!$B85,'Crop 2'!$L$49*VLOOKUP('Crop 2'!$E$49,Carbon!$AH$4:$AI$10,2,FALSE),0)+IF('Crop 2'!$C$50=Carbon!$B85,'Crop 2'!$L$50*VLOOKUP('Crop 2'!$E$50,Carbon!$AH$4:$AI$10,2,FALSE),0)+IF('Crop 2'!$C$51=Carbon!$B85,'Crop 2'!$L$51*VLOOKUP('Crop 2'!$E$51,Carbon!$AH$4:$AI$10,2,FALSE),0)+IF('Crop 2'!$C$52=Carbon!$B85,'Crop 2'!$L$52*VLOOKUP('Crop 2'!$E$52,Carbon!$AH$4:$AI$10,2,FALSE),0)+IF('Crop 2'!$C$53=Carbon!$B85,'Crop 2'!$L$53*VLOOKUP('Crop 2'!$E$53,Carbon!$AH$4:$AI$10,2,FALSE),0)+IF('Crop 2'!$C$56=Carbon!$B85,'Crop 2'!$L$56*VLOOKUP('Crop 2'!$E$56,Carbon!$AH$4:$AI$10,2,FALSE),0)+IF('Crop 2'!$C$57=Carbon!$B85,'Crop 2'!$L$57*VLOOKUP('Crop 2'!$E$57,Carbon!$AH$4:$AI$10,2,FALSE),0)+IF('Crop 2'!$C$58=Carbon!$B85,'Crop 2'!$L$58*VLOOKUP('Crop 2'!$E$58,Carbon!$AH$4:$AI$10,2,FALSE),0)+IF('Crop 2'!$C$59=Carbon!$B85,'Crop 2'!$L$59*VLOOKUP('Crop 2'!$E$59,Carbon!$AH$4:$AI$10,2,FALSE),0)+IF('Crop 2'!$C$62=Carbon!$B85,'Crop 2'!$L$62*VLOOKUP('Crop 2'!$E$62,Carbon!$AH$4:$AI$10,2,FALSE),0)+IF('Crop 2'!$C$63=Carbon!$B85,'Crop 2'!$L$63*VLOOKUP('Crop 2'!$E$63,Carbon!$AH$4:$AI$10,2,FALSE),0)+IF('Crop 2'!$C$64=Carbon!$B85,'Crop 2'!$L$64*VLOOKUP('Crop 2'!$E$64,Carbon!$AH$4:$AI$10,2,FALSE),0)+IF('Crop 2'!$C$65=Carbon!$B85,'Crop 2'!$L$65*VLOOKUP('Crop 2'!$E$65,Carbon!$AH$4:$AI$10,2,FALSE),0))*$AL$20,2)","v":0},{"$f":"E85*Inputs!$D$15","v":0},{"$f":"ROUND((IF('Crop 3'!$C$14=Carbon!$B85,'Crop 3'!$L$14*VLOOKUP('Crop 3'!$E$14,Carbon!$AH$4:$AI$10,2,FALSE),0)+IF('Crop 3'!$C$15=Carbon!$B85,'Crop 3'!$L$15*VLOOKUP('Crop 3'!$E$15,Carbon!$AH$4:$AI$10,2,FALSE),0)+IF('Crop 3'!$C$16=Carbon!$B85,'Crop 3'!$L$16*VLOOKUP('Crop 3'!$E$16,Carbon!$AH$4:$AI$10,2,FALSE),0)+IF('Crop 3'!$C$19=Carbon!$B85,'Crop 3'!$L$19*VLOOKUP('Crop 3'!$E$19,Carbon!$AH$4:$AI$10,2,FALSE),0)+IF('Crop 3'!$C$20=Carbon!$B85,'Crop 3'!$L$20*VLOOKUP('Crop 3'!$E$20,Carbon!$AH$4:$AI$10,2,FALSE),0)+IF('Crop 3'!$C$21=Carbon!$B85,'Crop 3'!$L$21*VLOOKUP('Crop 3'!$E$21,Carbon!$AH$4:$AI$10,2,FALSE),0)+IF('Crop 3'!$C$49=Carbon!$B85,'Crop 3'!$L$49*VLOOKUP('Crop 3'!$E$49,Carbon!$AH$4:$AI$10,2,FALSE),0)+IF('Crop 3'!$C$50=Carbon!$B85,'Crop 3'!$L$50*VLOOKUP('Crop 3'!$E$50,Carbon!$AH$4:$AI$10,2,FALSE),0)+IF('Crop 3'!$C$51=Carbon!$B85,'Crop 3'!$L$51*VLOOKUP('Crop 3'!$E$51,Carbon!$AH$4:$AI$10,2,FALSE),0)+IF('Crop 3'!$C$52=Carbon!$B85,'Crop 3'!$L$52*VLOOKUP('Crop 3'!$E$52,Carbon!$AH$4:$AI$10,2,FALSE),0)+IF('Crop 3'!$C$53=Carbon!$B85,'Crop 3'!$L$53*VLOOKUP('Crop 3'!$E$53,Carbon!$AH$4:$AI$10,2,FALSE),0)+IF('Crop 3'!$C$56=Carbon!$B85,'Crop 3'!$L$56*VLOOKUP('Crop 3'!$E$56,Carbon!$AH$4:$AI$10,2,FALSE),0)+IF('Crop 3'!$C$57=Carbon!$B85,'Crop 3'!$L$57*VLOOKUP('Crop 3'!$E$57,Carbon!$AH$4:$AI$10,2,FALSE),0)+IF('Crop 3'!$C$58=Carbon!$B85,'Crop 3'!$L$58*VLOOKUP('Crop 3'!$E$58,Carbon!$AH$4:$AI$10,2,FALSE),0)+IF('Crop 3'!$C$59=Carbon!$B85,'Crop 3'!$L$59*VLOOKUP('Crop 3'!$E$59,Carbon!$AH$4:$AI$10,2,FALSE),0)+IF('Crop 3'!$C$62=Carbon!$B85,'Crop 3'!$L$62*VLOOKUP('Crop 3'!$E$62,Carbon!$AH$4:$AI$10,2,FALSE),0)+IF('Crop 3'!$C$63=Carbon!$B85,'Crop 3'!$L$63*VLOOKUP('Crop 3'!$E$63,Carbon!$AH$4:$AI$10,2,FALSE),0)+IF('Crop 3'!$C$64=Carbon!$B85,'Crop 3'!$L$64*VLOOKUP('Crop 3'!$E$64,Carbon!$AH$4:$AI$10,2,FALSE),0)+IF('Crop 3'!$C$65=Carbon!$B85,'Crop 3'!$L$65*VLOOKUP('Crop 3'!$E$65,Carbon!$AH$4:$AI$10,2,FALSE),0))*$AL$20,2)","v":0},{"$f":"G85*Inputs!$D$17","v":0},{"$f":"ROUND(J85/Inputs!D$19,2)","v":0},0,null,null,{"$f":"ROUND((IF('Crop 1'!$C$14=Carbon!$B85,'Crop 1'!$V$14*VLOOKUP('Crop 1'!$E$14,Carbon!$AH$4:$AI$10,2,FALSE),0)+IF('Crop 1'!$C$15=Carbon!$B85,'Crop 1'!$V$15*VLOOKUP('Crop 1'!$E$15,Carbon!$AH$4:$AI$10,2,FALSE),0)+IF('Crop 1'!$C$16=Carbon!$B85,'Crop 1'!$V$16*VLOOKUP('Crop 1'!$E$16,Carbon!$AH$4:$AI$10,2,FALSE),0)+IF('Crop 1'!$C$19=Carbon!$B85,'Crop 1'!$V$19*VLOOKUP('Crop 1'!$E$19,Carbon!$AH$4:$AI$10,2,FALSE),0)+IF('Crop 1'!$C$20=Carbon!$B85,'Crop 1'!$V$20*VLOOKUP('Crop 1'!$E$20,Carbon!$AH$4:$AI$10,2,FALSE),0)+IF('Crop 1'!$C$21=Carbon!$B85,'Crop 1'!$V$21*VLOOKUP('Crop 1'!$E$21,Carbon!$AH$4:$AI$10,2,FALSE),0)+IF('Crop 1'!$C$49=Carbon!$B85,'Crop 1'!$V$49*VLOOKUP('Crop 1'!$E$49,Carbon!$AH$4:$AI$10,2,FALSE),0)+IF('Crop 1'!$C$50=Carbon!$B85,'Crop 1'!$V$50*VLOOKUP('Crop 1'!$E$50,Carbon!$AH$4:$AI$10,2,FALSE),0)+IF('Crop 1'!$C$51=Carbon!$B85,'Crop 1'!$V$51*VLOOKUP('Crop 1'!$E$51,Carbon!$AH$4:$AI$10,2,FALSE),0)+IF('Crop 1'!$C$52=Carbon!$B85,'Crop 1'!$V$52*VLOOKUP('Crop 1'!$E$52,Carbon!$AH$4:$AI$10,2,FALSE),0)+IF('Crop 1'!$C$53=Carbon!$B85,'Crop 1'!$V$53*VLOOKUP('Crop 1'!$E$53,Carbon!$AH$4:$AI$10,2,FALSE),0)+IF('Crop 1'!$C$56=Carbon!$B85,'Crop 1'!$V$56*VLOOKUP('Crop 1'!$E$56,Carbon!$AH$4:$AI$10,2,FALSE),0)+IF('Crop 1'!$C$57=Carbon!$B85,'Crop 1'!$V$57*VLOOKUP('Crop 1'!$E$57,Carbon!$AH$4:$AI$10,2,FALSE),0)+IF('Crop 1'!$C$58=Carbon!$B85,'Crop 1'!$V$58*VLOOKUP('Crop 1'!$E$58,Carbon!$AH$4:$AI$10,2,FALSE),0)+IF('Crop 1'!$C$59=Carbon!$B85,'Crop 1'!$V$59*VLOOKUP('Crop 1'!$E$59,Carbon!$AH$4:$AI$10,2,FALSE),0)+IF('Crop 1'!$C$62=Carbon!$B85,'Crop 1'!$V$62*VLOOKUP('Crop 1'!$E$62,Carbon!$AH$4:$AI$10,2,FALSE),0)+IF('Crop 1'!$C$63=Carbon!$B85,'Crop 1'!$V$63*VLOOKUP('Crop 1'!$E$63,Carbon!$AH$4:$AI$10,2,FALSE),0)+IF('Crop 1'!$C$64=Carbon!$B85,'Crop 1'!$V$64*VLOOKUP('Crop 1'!$E$64,Carbon!$AH$4:$AI$10,2,FALSE),0)+IF('Crop 1'!$C$65=Carbon!$B85,'Crop 1'!$V$65*VLOOKUP('Crop 1'!$E$65,Carbon!$AH$4:$AI$10,2,FALSE),0))*$AL$20,2)","v":0},{"$f":"M85*Inputs!$D$13","v":0},{"$f":"ROUND((IF('Crop 2'!$C$14=Carbon!$B85,'Crop 2'!$V$14*VLOOKUP('Crop 2'!$E$14,Carbon!$AH$4:$AI$10,2,FALSE),0)+IF('Crop 2'!$C$15=Carbon!$B85,'Crop 2'!$V$15*VLOOKUP('Crop 2'!$E$15,Carbon!$AH$4:$AI$10,2,FALSE),0)+IF('Crop 2'!$C$16=Carbon!$B85,'Crop 2'!$V$16*VLOOKUP('Crop 2'!$E$16,Carbon!$AH$4:$AI$10,2,FALSE),0)+IF('Crop 2'!$C$19=Carbon!$B85,'Crop 2'!$V$19*VLOOKUP('Crop 2'!$E$19,Carbon!$AH$4:$AI$10,2,FALSE),0)+IF('Crop 2'!$C$20=Carbon!$B85,'Crop 2'!$V$20*VLOOKUP('Crop 2'!$E$20,Carbon!$AH$4:$AI$10,2,FALSE),0)+IF('Crop 2'!$C$21=Carbon!$B85,'Crop 2'!$V$21*VLOOKUP('Crop 2'!$E$21,Carbon!$AH$4:$AI$10,2,FALSE),0)+IF('Crop 2'!$C$49=Carbon!$B85,'Crop 2'!$V$49*VLOOKUP('Crop 2'!$E$49,Carbon!$AH$4:$AI$10,2,FALSE),0)+IF('Crop 2'!$C$50=Carbon!$B85,'Crop 2'!$V$50*VLOOKUP('Crop 2'!$E$50,Carbon!$AH$4:$AI$10,2,FALSE),0)+IF('Crop 2'!$C$51=Carbon!$B85,'Crop 2'!$V$51*VLOOKUP('Crop 2'!$E$51,Carbon!$AH$4:$AI$10,2,FALSE),0)+IF('Crop 2'!$C$52=Carbon!$B85,'Crop 2'!$V$52*VLOOKUP('Crop 2'!$E$52,Carbon!$AH$4:$AI$10,2,FALSE),0)+IF('Crop 2'!$C$53=Carbon!$B85,'Crop 2'!$V$53*VLOOKUP('Crop 2'!$E$53,Carbon!$AH$4:$AI$10,2,FALSE),0)+IF('Crop 2'!$C$56=Carbon!$B85,'Crop 2'!$V$56*VLOOKUP('Crop 2'!$E$56,Carbon!$AH$4:$AI$10,2,FALSE),0)+IF('Crop 2'!$C$57=Carbon!$B85,'Crop 2'!$V$57*VLOOKUP('Crop 2'!$E$57,Carbon!$AH$4:$AI$10,2,FALSE),0)+IF('Crop 2'!$C$58=Carbon!$B85,'Crop 2'!$V$58*VLOOKUP('Crop 2'!$E$58,Carbon!$AH$4:$AI$10,2,FALSE),0)+IF('Crop 2'!$C$59=Carbon!$B85,'Crop 2'!$V$59*VLOOKUP('Crop 2'!$E$59,Carbon!$AH$4:$AI$10,2,FALSE),0)+IF('Crop 2'!$C$62=Carbon!$B85,'Crop 2'!$V$62*VLOOKUP('Crop 2'!$E$62,Carbon!$AH$4:$AI$10,2,FALSE),0)+IF('Crop 2'!$C$63=Carbon!$B85,'Crop 2'!$V$63*VLOOKUP('Crop 2'!$E$63,Carbon!$AH$4:$AI$10,2,FALSE),0)+IF('Crop 2'!$C$64=Carbon!$B85,'Crop 2'!$V$64*VLOOKUP('Crop 2'!$E$64,Carbon!$AH$4:$AI$10,2,FALSE),0)+IF('Crop 2'!$C$65=Carbon!$B85,'Crop 2'!$V$65*VLOOKUP('Crop 2'!$E$65,Carbon!$AH$4:$AI$10,2,FALSE),0))*$AL$20,2)","v":0},{"$f":"O85*Inputs!$D$15","v":0},{"$f":"ROUND((IF('Crop 3'!$C$14=Carbon!$B85,'Crop 3'!$V$14*VLOOKUP('Crop 3'!$E$14,Carbon!$AH$4:$AI$10,2,FALSE),0)+IF('Crop 3'!$C$15=Carbon!$B85,'Crop 3'!$V$15*VLOOKUP('Crop 3'!$E$15,Carbon!$AH$4:$AI$10,2,FALSE),0)+IF('Crop 3'!$C$16=Carbon!$B85,'Crop 3'!$V$16*VLOOKUP('Crop 3'!$E$16,Carbon!$AH$4:$AI$10,2,FALSE),0)+IF('Crop 3'!$C$19=Carbon!$B85,'Crop 3'!$V$19*VLOOKUP('Crop 3'!$E$19,Carbon!$AH$4:$AI$10,2,FALSE),0)+IF('Crop 3'!$C$20=Carbon!$B85,'Crop 3'!$V$20*VLOOKUP('Crop 3'!$E$20,Carbon!$AH$4:$AI$10,2,FALSE),0)+IF('Crop 3'!$C$21=Carbon!$B85,'Crop 3'!$V$21*VLOOKUP('Crop 3'!$E$21,Carbon!$AH$4:$AI$10,2,FALSE),0)+IF('Crop 3'!$C$49=Carbon!$B85,'Crop 3'!$V$49*VLOOKUP('Crop 3'!$E$49,Carbon!$AH$4:$AI$10,2,FALSE),0)+IF('Crop 3'!$C$50=Carbon!$B85,'Crop 3'!$V$50*VLOOKUP('Crop 3'!$E$50,Carbon!$AH$4:$AI$10,2,FALSE),0)+IF('Crop 3'!$C$51=Carbon!$B85,'Crop 3'!$V$51*VLOOKUP('Crop 3'!$E$51,Carbon!$AH$4:$AI$10,2,FALSE),0)+IF('Crop 3'!$C$52=Carbon!$B85,'Crop 3'!$V$52*VLOOKUP('Crop 3'!$E$52,Carbon!$AH$4:$AI$10,2,FALSE),0)+IF('Crop 3'!$C$53=Carbon!$B85,'Crop 3'!$V$53*VLOOKUP('Crop 3'!$E$53,Carbon!$AH$4:$AI$10,2,FALSE),0)+IF('Crop 3'!$C$56=Carbon!$B85,'Crop 3'!$V$56*VLOOKUP('Crop 3'!$E$56,Carbon!$AH$4:$AI$10,2,FALSE),0)+IF('Crop 3'!$C$57=Carbon!$B85,'Crop 3'!$V$57*VLOOKUP('Crop 3'!$E$57,Carbon!$AH$4:$AI$10,2,FALSE),0)+IF('Crop 3'!$C$58=Carbon!$B85,'Crop 3'!$V$58*VLOOKUP('Crop 3'!$E$58,Carbon!$AH$4:$AI$10,2,FALSE),0)+IF('Crop 3'!$C$59=Carbon!$B85,'Crop 3'!$V$59*VLOOKUP('Crop 3'!$E$59,Carbon!$AH$4:$AI$10,2,FALSE),0)+IF('Crop 3'!$C$62=Carbon!$B85,'Crop 3'!$V$62*VLOOKUP('Crop 3'!$E$62,Carbon!$AH$4:$AI$10,2,FALSE),0)+IF('Crop 3'!$C$63=Carbon!$B85,'Crop 3'!$V$63*VLOOKUP('Crop 3'!$E$63,Carbon!$AH$4:$AI$10,2,FALSE),0)+IF('Crop 3'!$C$64=Carbon!$B85,'Crop 3'!$V$64*VLOOKUP('Crop 3'!$E$64,Carbon!$AH$4:$AI$10,2,FALSE),0)+IF('Crop 3'!$C$65=Carbon!$B85,'Crop 3'!$V$65*VLOOKUP('Crop 3'!$E$65,Carbon!$AH$4:$AI$10,2,FALSE),0))*$AL$20,2)","v":0},{"$f":"Q85*Inputs!$D$17","v":0},{"$f":"ROUND(T85/Inputs!D$19,2)","v":0},0,null,null,0,{"$f":"W85*Inputs!$D$13","v":0},0,{"$f":"Y85*Inputs!$D$13","v":0},0,{"$f":"AA85*Inputs!$D$13","v":0},{"$f":"ROUND(AD85/Inputs!D$19,2)","v":0},0]
[null,{"$f":"Defaults!AH52","v":"Envive"},{"$f":"ROUND((IF('Crop 1'!$C$14=Carbon!$B86,'Crop 1'!$L$14*VLOOKUP('Crop 1'!$E$14,Carbon!$AH$4:$AI$10,2,FALSE),0)+IF('Crop 1'!$C$15=Carbon!$B86,'Crop 1'!$L$15*VLOOKUP('Crop 1'!$E$15,Carbon!$AH$4:$AI$10,2,FALSE),0)+IF('Crop 1'!$C$16=Carbon!$B86,'Crop 1'!$L$16*VLOOKUP('Crop 1'!$E$16,Carbon!$AH$4:$AI$10,2,FALSE),0)+IF('Crop 1'!$C$19=Carbon!$B86,'Crop 1'!$L$19*VLOOKUP('Crop 1'!$E$19,Carbon!$AH$4:$AI$10,2,FALSE),0)+IF('Crop 1'!$C$20=Carbon!$B86,'Crop 1'!$L$20*VLOOKUP('Crop 1'!$E$20,Carbon!$AH$4:$AI$10,2,FALSE),0)+IF('Crop 1'!$C$21=Carbon!$B86,'Crop 1'!$L$21*VLOOKUP('Crop 1'!$E$21,Carbon!$AH$4:$AI$10,2,FALSE),0)+IF('Crop 1'!$C$49=Carbon!$B86,'Crop 1'!$L$49*VLOOKUP('Crop 1'!$E$49,Carbon!$AH$4:$AI$10,2,FALSE),0)+IF('Crop 1'!$C$50=Carbon!$B86,'Crop 1'!$L$50*VLOOKUP('Crop 1'!$E$50,Carbon!$AH$4:$AI$10,2,FALSE),0)+IF('Crop 1'!$C$51=Carbon!$B86,'Crop 1'!$L$51*VLOOKUP('Crop 1'!$E$51,Carbon!$AH$4:$AI$10,2,FALSE),0)+IF('Crop 1'!$C$52=Carbon!$B86,'Crop 1'!$L$52*VLOOKUP('Crop 1'!$E$52,Carbon!$AH$4:$AI$10,2,FALSE),0)+IF('Crop 1'!$C$53=Carbon!$B86,'Crop 1'!$L$53*VLOOKUP('Crop 1'!$E$53,Carbon!$AH$4:$AI$10,2,FALSE),0)+IF('Crop 1'!$C$56=Carbon!$B86,'Crop 1'!$L$56*VLOOKUP('Crop 1'!$E$56,Carbon!$AH$4:$AI$10,2,FALSE),0)+IF('Crop 1'!$C$57=Carbon!$B86,'Crop 1'!$L$57*VLOOKUP('Crop 1'!$E$57,Carbon!$AH$4:$AI$10,2,FALSE),0)+IF('Crop 1'!$C$58=Carbon!$B86,'Crop 1'!$L$58*VLOOKUP('Crop 1'!$E$58,Carbon!$AH$4:$AI$10,2,FALSE),0)+IF('Crop 1'!$C$59=Carbon!$B86,'Crop 1'!$L$59*VLOOKUP('Crop 1'!$E$59,Carbon!$AH$4:$AI$10,2,FALSE),0)+IF('Crop 1'!$C$62=Carbon!$B86,'Crop 1'!$L$62*VLOOKUP('Crop 1'!$E$62,Carbon!$AH$4:$AI$10,2,FALSE),0)+IF('Crop 1'!$C$63=Carbon!$B86,'Crop 1'!$L$63*VLOOKUP('Crop 1'!$E$63,Carbon!$AH$4:$AI$10,2,FALSE),0)+IF('Crop 1'!$C$64=Carbon!$B86,'Crop 1'!$L$64*VLOOKUP('Crop 1'!$E$64,Carbon!$AH$4:$AI$10,2,FALSE),0)+IF('Crop 1'!$C$65=Carbon!$B86,'Crop 1'!$L$65*VLOOKUP('Crop 1'!$E$65,Carbon!$AH$4:$AI$10,2,FALSE),0))*$AL$20,2)","v":0},{"$f":"C86*Inputs!$D$13","v":0},{"$f":"ROUND((IF('Crop 2'!$C$14=Carbon!$B86,'Crop 2'!$L$14*VLOOKUP('Crop 2'!$E$14,Carbon!$AH$4:$AI$10,2,FALSE),0)+IF('Crop 2'!$C$15=Carbon!$B86,'Crop 2'!$L$15*VLOOKUP('Crop 2'!$E$15,Carbon!$AH$4:$AI$10,2,FALSE),0)+IF('Crop 2'!$C$16=Carbon!$B86,'Crop 2'!$L$16*VLOOKUP('Crop 2'!$E$16,Carbon!$AH$4:$AI$10,2,FALSE),0)+IF('Crop 2'!$C$19=Carbon!$B86,'Crop 2'!$L$19*VLOOKUP('Crop 2'!$E$19,Carbon!$AH$4:$AI$10,2,FALSE),0)+IF('Crop 2'!$C$20=Carbon!$B86,'Crop 2'!$L$20*VLOOKUP('Crop 2'!$E$20,Carbon!$AH$4:$AI$10,2,FALSE),0)+IF('Crop 2'!$C$21=Carbon!$B86,'Crop 2'!$L$21*VLOOKUP('Crop 2'!$E$21,Carbon!$AH$4:$AI$10,2,FALSE),0)+IF('Crop 2'!$C$49=Carbon!$B86,'Crop 2'!$L$49*VLOOKUP('Crop 2'!$E$49,Carbon!$AH$4:$AI$10,2,FALSE),0)+IF('Crop 2'!$C$50=Carbon!$B86,'Crop 2'!$L$50*VLOOKUP('Crop 2'!$E$50,Carbon!$AH$4:$AI$10,2,FALSE),0)+IF('Crop 2'!$C$51=Carbon!$B86,'Crop 2'!$L$51*VLOOKUP('Crop 2'!$E$51,Carbon!$AH$4:$AI$10,2,FALSE),0)+IF('Crop 2'!$C$52=Carbon!$B86,'Crop 2'!$L$52*VLOOKUP('Crop 2'!$E$52,Carbon!$AH$4:$AI$10,2,FALSE),0)+IF('Crop 2'!$C$53=Carbon!$B86,'Crop 2'!$L$53*VLOOKUP('Crop 2'!$E$53,Carbon!$AH$4:$AI$10,2,FALSE),0)+IF('Crop 2'!$C$56=Carbon!$B86,'Crop 2'!$L$56*VLOOKUP('Crop 2'!$E$56,Carbon!$AH$4:$AI$10,2,FALSE),0)+IF('Crop 2'!$C$57=Carbon!$B86,'Crop 2'!$L$57*VLOOKUP('Crop 2'!$E$57,Carbon!$AH$4:$AI$10,2,FALSE),0)+IF('Crop 2'!$C$58=Carbon!$B86,'Crop 2'!$L$58*VLOOKUP('Crop 2'!$E$58,Carbon!$AH$4:$AI$10,2,FALSE),0)+IF('Crop 2'!$C$59=Carbon!$B86,'Crop 2'!$L$59*VLOOKUP('Crop 2'!$E$59,Carbon!$AH$4:$AI$10,2,FALSE),0)+IF('Crop 2'!$C$62=Carbon!$B86,'Crop 2'!$L$62*VLOOKUP('Crop 2'!$E$62,Carbon!$AH$4:$AI$10,2,FALSE),0)+IF('Crop 2'!$C$63=Carbon!$B86,'Crop 2'!$L$63*VLOOKUP('Crop 2'!$E$63,Carbon!$AH$4:$AI$10,2,FALSE),0)+IF('Crop 2'!$C$64=Carbon!$B86,'Crop 2'!$L$64*VLOOKUP('Crop 2'!$E$64,Carbon!$AH$4:$AI$10,2,FALSE),0)+IF('Crop 2'!$C$65=Carbon!$B86,'Crop 2'!$L$65*VLOOKUP('Crop 2'!$E$65,Carbon!$AH$4:$AI$10,2,FALSE),0))*$AL$20,2)","v":0},{"$f":"E86*Inputs!$D$15","v":0},{"$f":"ROUND((IF('Crop 3'!$C$14=Carbon!$B86,'Crop 3'!$L$14*VLOOKUP('Crop 3'!$E$14,Carbon!$AH$4:$AI$10,2,FALSE),0)+IF('Crop 3'!$C$15=Carbon!$B86,'Crop 3'!$L$15*VLOOKUP('Crop 3'!$E$15,Carbon!$AH$4:$AI$10,2,FALSE),0)+IF('Crop 3'!$C$16=Carbon!$B86,'Crop 3'!$L$16*VLOOKUP('Crop 3'!$E$16,Carbon!$AH$4:$AI$10,2,FALSE),0)+IF('Crop 3'!$C$19=Carbon!$B86,'Crop 3'!$L$19*VLOOKUP('Crop 3'!$E$19,Carbon!$AH$4:$AI$10,2,FALSE),0)+IF('Crop 3'!$C$20=Carbon!$B86,'Crop 3'!$L$20*VLOOKUP('Crop 3'!$E$20,Carbon!$AH$4:$AI$10,2,FALSE),0)+IF('Crop 3'!$C$21=Carbon!$B86,'Crop 3'!$L$21*VLOOKUP('Crop 3'!$E$21,Carbon!$AH$4:$AI$10,2,FALSE),0)+IF('Crop 3'!$C$49=Carbon!$B86,'Crop 3'!$L$49*VLOOKUP('Crop 3'!$E$49,Carbon!$AH$4:$AI$10,2,FALSE),0)+IF('Crop 3'!$C$50=Carbon!$B86,'Crop 3'!$L$50*VLOOKUP('Crop 3'!$E$50,Carbon!$AH$4:$AI$10,2,FALSE),0)+IF('Crop 3'!$C$51=Carbon!$B86,'Crop 3'!$L$51*VLOOKUP('Crop 3'!$E$51,Carbon!$AH$4:$AI$10,2,FALSE),0)+IF('Crop 3'!$C$52=Carbon!$B86,'Crop 3'!$L$52*VLOOKUP('Crop 3'!$E$52,Carbon!$AH$4:$AI$10,2,FALSE),0)+IF('Crop 3'!$C$53=Carbon!$B86,'Crop 3'!$L$53*VLOOKUP('Crop 3'!$E$53,Carbon!$AH$4:$AI$10,2,FALSE),0)+IF('Crop 3'!$C$56=Carbon!$B86,'Crop 3'!$L$56*VLOOKUP('Crop 3'!$E$56,Carbon!$AH$4:$AI$10,2,FALSE),0)+IF('Crop 3'!$C$57=Carbon!$B86,'Crop 3'!$L$57*VLOOKUP('Crop 3'!$E$57,Carbon!$AH$4:$AI$10,2,FALSE),0)+IF('Crop 3'!$C$58=Carbon!$B86,'Crop 3'!$L$58*VLOOKUP('Crop 3'!$E$58,Carbon!$AH$4:$AI$10,2,FALSE),0)+IF('Crop 3'!$C$59=Carbon!$B86,'Crop 3'!$L$59*VLOOKUP('Crop 3'!$E$59,Carbon!$AH$4:$AI$10,2,FALSE),0)+IF('Crop 3'!$C$62=Carbon!$B86,'Crop 3'!$L$62*VLOOKUP('Crop 3'!$E$62,Carbon!$AH$4:$AI$10,2,FALSE),0)+IF('Crop 3'!$C$63=Carbon!$B86,'Crop 3'!$L$63*VLOOKUP('Crop 3'!$E$63,Carbon!$AH$4:$AI$10,2,FALSE),0)+IF('Crop 3'!$C$64=Carbon!$B86,'Crop 3'!$L$64*VLOOKUP('Crop 3'!$E$64,Carbon!$AH$4:$AI$10,2,FALSE),0)+IF('Crop 3'!$C$65=Carbon!$B86,'Crop 3'!$L$65*VLOOKUP('Crop 3'!$E$65,Carbon!$AH$4:$AI$10,2,FALSE),0))*$AL$20,2)","v":0},{"$f":"G86*Inputs!$D$17","v":0},{"$f":"ROUND(J86/Inputs!D$19,2)","v":0},0,null,null,{"$f":"ROUND((IF('Crop 1'!$C$14=Carbon!$B86,'Crop 1'!$V$14*VLOOKUP('Crop 1'!$E$14,Carbon!$AH$4:$AI$10,2,FALSE),0)+IF('Crop 1'!$C$15=Carbon!$B86,'Crop 1'!$V$15*VLOOKUP('Crop 1'!$E$15,Carbon!$AH$4:$AI$10,2,FALSE),0)+IF('Crop 1'!$C$16=Carbon!$B86,'Crop 1'!$V$16*VLOOKUP('Crop 1'!$E$16,Carbon!$AH$4:$AI$10,2,FALSE),0)+IF('Crop 1'!$C$19=Carbon!$B86,'Crop 1'!$V$19*VLOOKUP('Crop 1'!$E$19,Carbon!$AH$4:$AI$10,2,FALSE),0)+IF('Crop 1'!$C$20=Carbon!$B86,'Crop 1'!$V$20*VLOOKUP('Crop 1'!$E$20,Carbon!$AH$4:$AI$10,2,FALSE),0)+IF('Crop 1'!$C$21=Carbon!$B86,'Crop 1'!$V$21*VLOOKUP('Crop 1'!$E$21,Carbon!$AH$4:$AI$10,2,FALSE),0)+IF('Crop 1'!$C$49=Carbon!$B86,'Crop 1'!$V$49*VLOOKUP('Crop 1'!$E$49,Carbon!$AH$4:$AI$10,2,FALSE),0)+IF('Crop 1'!$C$50=Carbon!$B86,'Crop 1'!$V$50*VLOOKUP('Crop 1'!$E$50,Carbon!$AH$4:$AI$10,2,FALSE),0)+IF('Crop 1'!$C$51=Carbon!$B86,'Crop 1'!$V$51*VLOOKUP('Crop 1'!$E$51,Carbon!$AH$4:$AI$10,2,FALSE),0)+IF('Crop 1'!$C$52=Carbon!$B86,'Crop 1'!$V$52*VLOOKUP('Crop 1'!$E$52,Carbon!$AH$4:$AI$10,2,FALSE),0)+IF('Crop 1'!$C$53=Carbon!$B86,'Crop 1'!$V$53*VLOOKUP('Crop 1'!$E$53,Carbon!$AH$4:$AI$10,2,FALSE),0)+IF('Crop 1'!$C$56=Carbon!$B86,'Crop 1'!$V$56*VLOOKUP('Crop 1'!$E$56,Carbon!$AH$4:$AI$10,2,FALSE),0)+IF('Crop 1'!$C$57=Carbon!$B86,'Crop 1'!$V$57*VLOOKUP('Crop 1'!$E$57,Carbon!$AH$4:$AI$10,2,FALSE),0)+IF('Crop 1'!$C$58=Carbon!$B86,'Crop 1'!$V$58*VLOOKUP('Crop 1'!$E$58,Carbon!$AH$4:$AI$10,2,FALSE),0)+IF('Crop 1'!$C$59=Carbon!$B86,'Crop 1'!$V$59*VLOOKUP('Crop 1'!$E$59,Carbon!$AH$4:$AI$10,2,FALSE),0)+IF('Crop 1'!$C$62=Carbon!$B86,'Crop 1'!$V$62*VLOOKUP('Crop 1'!$E$62,Carbon!$AH$4:$AI$10,2,FALSE),0)+IF('Crop 1'!$C$63=Carbon!$B86,'Crop 1'!$V$63*VLOOKUP('Crop 1'!$E$63,Carbon!$AH$4:$AI$10,2,FALSE),0)+IF('Crop 1'!$C$64=Carbon!$B86,'Crop 1'!$V$64*VLOOKUP('Crop 1'!$E$64,Carbon!$AH$4:$AI$10,2,FALSE),0)+IF('Crop 1'!$C$65=Carbon!$B86,'Crop 1'!$V$65*VLOOKUP('Crop 1'!$E$65,Carbon!$AH$4:$AI$10,2,FALSE),0))*$AL$20,2)","v":0},{"$f":"M86*Inputs!$D$13","v":0},{"$f":"ROUND((IF('Crop 2'!$C$14=Carbon!$B86,'Crop 2'!$V$14*VLOOKUP('Crop 2'!$E$14,Carbon!$AH$4:$AI$10,2,FALSE),0)+IF('Crop 2'!$C$15=Carbon!$B86,'Crop 2'!$V$15*VLOOKUP('Crop 2'!$E$15,Carbon!$AH$4:$AI$10,2,FALSE),0)+IF('Crop 2'!$C$16=Carbon!$B86,'Crop 2'!$V$16*VLOOKUP('Crop 2'!$E$16,Carbon!$AH$4:$AI$10,2,FALSE),0)+IF('Crop 2'!$C$19=Carbon!$B86,'Crop 2'!$V$19*VLOOKUP('Crop 2'!$E$19,Carbon!$AH$4:$AI$10,2,FALSE),0)+IF('Crop 2'!$C$20=Carbon!$B86,'Crop 2'!$V$20*VLOOKUP('Crop 2'!$E$20,Carbon!$AH$4:$AI$10,2,FALSE),0)+IF('Crop 2'!$C$21=Carbon!$B86,'Crop 2'!$V$21*VLOOKUP('Crop 2'!$E$21,Carbon!$AH$4:$AI$10,2,FALSE),0)+IF('Crop 2'!$C$49=Carbon!$B86,'Crop 2'!$V$49*VLOOKUP('Crop 2'!$E$49,Carbon!$AH$4:$AI$10,2,FALSE),0)+IF('Crop 2'!$C$50=Carbon!$B86,'Crop 2'!$V$50*VLOOKUP('Crop 2'!$E$50,Carbon!$AH$4:$AI$10,2,FALSE),0)+IF('Crop 2'!$C$51=Carbon!$B86,'Crop 2'!$V$51*VLOOKUP('Crop 2'!$E$51,Carbon!$AH$4:$AI$10,2,FALSE),0)+IF('Crop 2'!$C$52=Carbon!$B86,'Crop 2'!$V$52*VLOOKUP('Crop 2'!$E$52,Carbon!$AH$4:$AI$10,2,FALSE),0)+IF('Crop 2'!$C$53=Carbon!$B86,'Crop 2'!$V$53*VLOOKUP('Crop 2'!$E$53,Carbon!$AH$4:$AI$10,2,FALSE),0)+IF('Crop 2'!$C$56=Carbon!$B86,'Crop 2'!$V$56*VLOOKUP('Crop 2'!$E$56,Carbon!$AH$4:$AI$10,2,FALSE),0)+IF('Crop 2'!$C$57=Carbon!$B86,'Crop 2'!$V$57*VLOOKUP('Crop 2'!$E$57,Carbon!$AH$4:$AI$10,2,FALSE),0)+IF('Crop 2'!$C$58=Carbon!$B86,'Crop 2'!$V$58*VLOOKUP('Crop 2'!$E$58,Carbon!$AH$4:$AI$10,2,FALSE),0)+IF('Crop 2'!$C$59=Carbon!$B86,'Crop 2'!$V$59*VLOOKUP('Crop 2'!$E$59,Carbon!$AH$4:$AI$10,2,FALSE),0)+IF('Crop 2'!$C$62=Carbon!$B86,'Crop 2'!$V$62*VLOOKUP('Crop 2'!$E$62,Carbon!$AH$4:$AI$10,2,FALSE),0)+IF('Crop 2'!$C$63=Carbon!$B86,'Crop 2'!$V$63*VLOOKUP('Crop 2'!$E$63,Carbon!$AH$4:$AI$10,2,FALSE),0)+IF('Crop 2'!$C$64=Carbon!$B86,'Crop 2'!$V$64*VLOOKUP('Crop 2'!$E$64,Carbon!$AH$4:$AI$10,2,FALSE),0)+IF('Crop 2'!$C$65=Carbon!$B86,'Crop 2'!$V$65*VLOOKUP('Crop 2'!$E$65,Carbon!$AH$4:$AI$10,2,FALSE),0))*$AL$20,2)","v":0},{"$f":"O86*Inputs!$D$15","v":0},{"$f":"ROUND((IF('Crop 3'!$C$14=Carbon!$B86,'Crop 3'!$V$14*VLOOKUP('Crop 3'!$E$14,Carbon!$AH$4:$AI$10,2,FALSE),0)+IF('Crop 3'!$C$15=Carbon!$B86,'Crop 3'!$V$15*VLOOKUP('Crop 3'!$E$15,Carbon!$AH$4:$AI$10,2,FALSE),0)+IF('Crop 3'!$C$16=Carbon!$B86,'Crop 3'!$V$16*VLOOKUP('Crop 3'!$E$16,Carbon!$AH$4:$AI$10,2,FALSE),0)+IF('Crop 3'!$C$19=Carbon!$B86,'Crop 3'!$V$19*VLOOKUP('Crop 3'!$E$19,Carbon!$AH$4:$AI$10,2,FALSE),0)+IF('Crop 3'!$C$20=Carbon!$B86,'Crop 3'!$V$20*VLOOKUP('Crop 3'!$E$20,Carbon!$AH$4:$AI$10,2,FALSE),0)+IF('Crop 3'!$C$21=Carbon!$B86,'Crop 3'!$V$21*VLOOKUP('Crop 3'!$E$21,Carbon!$AH$4:$AI$10,2,FALSE),0)+IF('Crop 3'!$C$49=Carbon!$B86,'Crop 3'!$V$49*VLOOKUP('Crop 3'!$E$49,Carbon!$AH$4:$AI$10,2,FALSE),0)+IF('Crop 3'!$C$50=Carbon!$B86,'Crop 3'!$V$50*VLOOKUP('Crop 3'!$E$50,Carbon!$AH$4:$AI$10,2,FALSE),0)+IF('Crop 3'!$C$51=Carbon!$B86,'Crop 3'!$V$51*VLOOKUP('Crop 3'!$E$51,Carbon!$AH$4:$AI$10,2,FALSE),0)+IF('Crop 3'!$C$52=Carbon!$B86,'Crop 3'!$V$52*VLOOKUP('Crop 3'!$E$52,Carbon!$AH$4:$AI$10,2,FALSE),0)+IF('Crop 3'!$C$53=Carbon!$B86,'Crop 3'!$V$53*VLOOKUP('Crop 3'!$E$53,Carbon!$AH$4:$AI$10,2,FALSE),0)+IF('Crop 3'!$C$56=Carbon!$B86,'Crop 3'!$V$56*VLOOKUP('Crop 3'!$E$56,Carbon!$AH$4:$AI$10,2,FALSE),0)+IF('Crop 3'!$C$57=Carbon!$B86,'Crop 3'!$V$57*VLOOKUP('Crop 3'!$E$57,Carbon!$AH$4:$AI$10,2,FALSE),0)+IF('Crop 3'!$C$58=Carbon!$B86,'Crop 3'!$V$58*VLOOKUP('Crop 3'!$E$58,Carbon!$AH$4:$AI$10,2,FALSE),0)+IF('Crop 3'!$C$59=Carbon!$B86,'Crop 3'!$V$59*VLOOKUP('Crop 3'!$E$59,Carbon!$AH$4:$AI$10,2,FALSE),0)+IF('Crop 3'!$C$62=Carbon!$B86,'Crop 3'!$V$62*VLOOKUP('Crop 3'!$E$62,Carbon!$AH$4:$AI$10,2,FALSE),0)+IF('Crop 3'!$C$63=Carbon!$B86,'Crop 3'!$V$63*VLOOKUP('Crop 3'!$E$63,Carbon!$AH$4:$AI$10,2,FALSE),0)+IF('Crop 3'!$C$64=Carbon!$B86,'Crop 3'!$V$64*VLOOKUP('Crop 3'!$E$64,Carbon!$AH$4:$AI$10,2,FALSE),0)+IF('Crop 3'!$C$65=Carbon!$B86,'Crop 3'!$V$65*VLOOKUP('Crop 3'!$E$65,Carbon!$AH$4:$AI$10,2,FALSE),0))*$AL$20,2)","v":0},{"$f":"Q86*Inputs!$D$17","v":0},{"$f":"ROUND(T86/Inputs!D$19,2)","v":0},0,null,null,0,{"$f":"W86*Inputs!$D$13","v":0},0,{"$f":"Y86*Inputs!$D$13","v":0},0,{"$f":"AA86*Inputs!$D$13","v":0},{"$f":"ROUND(AD86/Inputs!D$19,2)","v":0},0]
[null,{"$f":"Defaults!AH53","v":"Envoke"},{"$f":"ROUND((IF('Crop 1'!$C$14=Carbon!$B87,'Crop 1'!$L$14*VLOOKUP('Crop 1'!$E$14,Carbon!$AH$4:$AI$10,2,FALSE),0)+IF('Crop 1'!$C$15=Carbon!$B87,'Crop 1'!$L$15*VLOOKUP('Crop 1'!$E$15,Carbon!$AH$4:$AI$10,2,FALSE),0)+IF('Crop 1'!$C$16=Carbon!$B87,'Crop 1'!$L$16*VLOOKUP('Crop 1'!$E$16,Carbon!$AH$4:$AI$10,2,FALSE),0)+IF('Crop 1'!$C$19=Carbon!$B87,'Crop 1'!$L$19*VLOOKUP('Crop 1'!$E$19,Carbon!$AH$4:$AI$10,2,FALSE),0)+IF('Crop 1'!$C$20=Carbon!$B87,'Crop 1'!$L$20*VLOOKUP('Crop 1'!$E$20,Carbon!$AH$4:$AI$10,2,FALSE),0)+IF('Crop 1'!$C$21=Carbon!$B87,'Crop 1'!$L$21*VLOOKUP('Crop 1'!$E$21,Carbon!$AH$4:$AI$10,2,FALSE),0)+IF('Crop 1'!$C$49=Carbon!$B87,'Crop 1'!$L$49*VLOOKUP('Crop 1'!$E$49,Carbon!$AH$4:$AI$10,2,FALSE),0)+IF('Crop 1'!$C$50=Carbon!$B87,'Crop 1'!$L$50*VLOOKUP('Crop 1'!$E$50,Carbon!$AH$4:$AI$10,2,FALSE),0)+IF('Crop 1'!$C$51=Carbon!$B87,'Crop 1'!$L$51*VLOOKUP('Crop 1'!$E$51,Carbon!$AH$4:$AI$10,2,FALSE),0)+IF('Crop 1'!$C$52=Carbon!$B87,'Crop 1'!$L$52*VLOOKUP('Crop 1'!$E$52,Carbon!$AH$4:$AI$10,2,FALSE),0)+IF('Crop 1'!$C$53=Carbon!$B87,'Crop 1'!$L$53*VLOOKUP('Crop 1'!$E$53,Carbon!$AH$4:$AI$10,2,FALSE),0)+IF('Crop 1'!$C$56=Carbon!$B87,'Crop 1'!$L$56*VLOOKUP('Crop 1'!$E$56,Carbon!$AH$4:$AI$10,2,FALSE),0)+IF('Crop 1'!$C$57=Carbon!$B87,'Crop 1'!$L$57*VLOOKUP('Crop 1'!$E$57,Carbon!$AH$4:$AI$10,2,FALSE),0)+IF('Crop 1'!$C$58=Carbon!$B87,'Crop 1'!$L$58*VLOOKUP('Crop 1'!$E$58,Carbon!$AH$4:$AI$10,2,FALSE),0)+IF('Crop 1'!$C$59=Carbon!$B87,'Crop 1'!$L$59*VLOOKUP('Crop 1'!$E$59,Carbon!$AH$4:$AI$10,2,FALSE),0)+IF('Crop 1'!$C$62=Carbon!$B87,'Crop 1'!$L$62*VLOOKUP('Crop 1'!$E$62,Carbon!$AH$4:$AI$10,2,FALSE),0)+IF('Crop 1'!$C$63=Carbon!$B87,'Crop 1'!$L$63*VLOOKUP('Crop 1'!$E$63,Carbon!$AH$4:$AI$10,2,FALSE),0)+IF('Crop 1'!$C$64=Carbon!$B87,'Crop 1'!$L$64*VLOOKUP('Crop 1'!$E$64,Carbon!$AH$4:$AI$10,2,FALSE),0)+IF('Crop 1'!$C$65=Carbon!$B87,'Crop 1'!$L$65*VLOOKUP('Crop 1'!$E$65,Carbon!$AH$4:$AI$10,2,FALSE),0))*$AL$20,2)","v":0},{"$f":"C87*Inputs!$D$13","v":0},{"$f":"ROUND((IF('Crop 2'!$C$14=Carbon!$B87,'Crop 2'!$L$14*VLOOKUP('Crop 2'!$E$14,Carbon!$AH$4:$AI$10,2,FALSE),0)+IF('Crop 2'!$C$15=Carbon!$B87,'Crop 2'!$L$15*VLOOKUP('Crop 2'!$E$15,Carbon!$AH$4:$AI$10,2,FALSE),0)+IF('Crop 2'!$C$16=Carbon!$B87,'Crop 2'!$L$16*VLOOKUP('Crop 2'!$E$16,Carbon!$AH$4:$AI$10,2,FALSE),0)+IF('Crop 2'!$C$19=Carbon!$B87,'Crop 2'!$L$19*VLOOKUP('Crop 2'!$E$19,Carbon!$AH$4:$AI$10,2,FALSE),0)+IF('Crop 2'!$C$20=Carbon!$B87,'Crop 2'!$L$20*VLOOKUP('Crop 2'!$E$20,Carbon!$AH$4:$AI$10,2,FALSE),0)+IF('Crop 2'!$C$21=Carbon!$B87,'Crop 2'!$L$21*VLOOKUP('Crop 2'!$E$21,Carbon!$AH$4:$AI$10,2,FALSE),0)+IF('Crop 2'!$C$49=Carbon!$B87,'Crop 2'!$L$49*VLOOKUP('Crop 2'!$E$49,Carbon!$AH$4:$AI$10,2,FALSE),0)+IF('Crop 2'!$C$50=Carbon!$B87,'Crop 2'!$L$50*VLOOKUP('Crop 2'!$E$50,Carbon!$AH$4:$AI$10,2,FALSE),0)+IF('Crop 2'!$C$51=Carbon!$B87,'Crop 2'!$L$51*VLOOKUP('Crop 2'!$E$51,Carbon!$AH$4:$AI$10,2,FALSE),0)+IF('Crop 2'!$C$52=Carbon!$B87,'Crop 2'!$L$52*VLOOKUP('Crop 2'!$E$52,Carbon!$AH$4:$AI$10,2,FALSE),0)+IF('Crop 2'!$C$53=Carbon!$B87,'Crop 2'!$L$53*VLOOKUP('Crop 2'!$E$53,Carbon!$AH$4:$AI$10,2,FALSE),0)+IF('Crop 2'!$C$56=Carbon!$B87,'Crop 2'!$L$56*VLOOKUP('Crop 2'!$E$56,Carbon!$AH$4:$AI$10,2,FALSE),0)+IF('Crop 2'!$C$57=Carbon!$B87,'Crop 2'!$L$57*VLOOKUP('Crop 2'!$E$57,Carbon!$AH$4:$AI$10,2,FALSE),0)+IF('Crop 2'!$C$58=Carbon!$B87,'Crop 2'!$L$58*VLOOKUP('Crop 2'!$E$58,Carbon!$AH$4:$AI$10,2,FALSE),0)+IF('Crop 2'!$C$59=Carbon!$B87,'Crop 2'!$L$59*VLOOKUP('Crop 2'!$E$59,Carbon!$AH$4:$AI$10,2,FALSE),0)+IF('Crop 2'!$C$62=Carbon!$B87,'Crop 2'!$L$62*VLOOKUP('Crop 2'!$E$62,Carbon!$AH$4:$AI$10,2,FALSE),0)+IF('Crop 2'!$C$63=Carbon!$B87,'Crop 2'!$L$63*VLOOKUP('Crop 2'!$E$63,Carbon!$AH$4:$AI$10,2,FALSE),0)+IF('Crop 2'!$C$64=Carbon!$B87,'Crop 2'!$L$64*VLOOKUP('Crop 2'!$E$64,Carbon!$AH$4:$AI$10,2,FALSE),0)+IF('Crop 2'!$C$65=Carbon!$B87,'Crop 2'!$L$65*VLOOKUP('Crop 2'!$E$65,Carbon!$AH$4:$AI$10,2,FALSE),0))*$AL$20,2)","v":0},{"$f":"E87*Inputs!$D$15","v":0},{"$f":"ROUND((IF('Crop 3'!$C$14=Carbon!$B87,'Crop 3'!$L$14*VLOOKUP('Crop 3'!$E$14,Carbon!$AH$4:$AI$10,2,FALSE),0)+IF('Crop 3'!$C$15=Carbon!$B87,'Crop 3'!$L$15*VLOOKUP('Crop 3'!$E$15,Carbon!$AH$4:$AI$10,2,FALSE),0)+IF('Crop 3'!$C$16=Carbon!$B87,'Crop 3'!$L$16*VLOOKUP('Crop 3'!$E$16,Carbon!$AH$4:$AI$10,2,FALSE),0)+IF('Crop 3'!$C$19=Carbon!$B87,'Crop 3'!$L$19*VLOOKUP('Crop 3'!$E$19,Carbon!$AH$4:$AI$10,2,FALSE),0)+IF('Crop 3'!$C$20=Carbon!$B87,'Crop 3'!$L$20*VLOOKUP('Crop 3'!$E$20,Carbon!$AH$4:$AI$10,2,FALSE),0)+IF('Crop 3'!$C$21=Carbon!$B87,'Crop 3'!$L$21*VLOOKUP('Crop 3'!$E$21,Carbon!$AH$4:$AI$10,2,FALSE),0)+IF('Crop 3'!$C$49=Carbon!$B87,'Crop 3'!$L$49*VLOOKUP('Crop 3'!$E$49,Carbon!$AH$4:$AI$10,2,FALSE),0)+IF('Crop 3'!$C$50=Carbon!$B87,'Crop 3'!$L$50*VLOOKUP('Crop 3'!$E$50,Carbon!$AH$4:$AI$10,2,FALSE),0)+IF('Crop 3'!$C$51=Carbon!$B87,'Crop 3'!$L$51*VLOOKUP('Crop 3'!$E$51,Carbon!$AH$4:$AI$10,2,FALSE),0)+IF('Crop 3'!$C$52=Carbon!$B87,'Crop 3'!$L$52*VLOOKUP('Crop 3'!$E$52,Carbon!$AH$4:$AI$10,2,FALSE),0)+IF('Crop 3'!$C$53=Carbon!$B87,'Crop 3'!$L$53*VLOOKUP('Crop 3'!$E$53,Carbon!$AH$4:$AI$10,2,FALSE),0)+IF('Crop 3'!$C$56=Carbon!$B87,'Crop 3'!$L$56*VLOOKUP('Crop 3'!$E$56,Carbon!$AH$4:$AI$10,2,FALSE),0)+IF('Crop 3'!$C$57=Carbon!$B87,'Crop 3'!$L$57*VLOOKUP('Crop 3'!$E$57,Carbon!$AH$4:$AI$10,2,FALSE),0)+IF('Crop 3'!$C$58=Carbon!$B87,'Crop 3'!$L$58*VLOOKUP('Crop 3'!$E$58,Carbon!$AH$4:$AI$10,2,FALSE),0)+IF('Crop 3'!$C$59=Carbon!$B87,'Crop 3'!$L$59*VLOOKUP('Crop 3'!$E$59,Carbon!$AH$4:$AI$10,2,FALSE),0)+IF('Crop 3'!$C$62=Carbon!$B87,'Crop 3'!$L$62*VLOOKUP('Crop 3'!$E$62,Carbon!$AH$4:$AI$10,2,FALSE),0)+IF('Crop 3'!$C$63=Carbon!$B87,'Crop 3'!$L$63*VLOOKUP('Crop 3'!$E$63,Carbon!$AH$4:$AI$10,2,FALSE),0)+IF('Crop 3'!$C$64=Carbon!$B87,'Crop 3'!$L$64*VLOOKUP('Crop 3'!$E$64,Carbon!$AH$4:$AI$10,2,FALSE),0)+IF('Crop 3'!$C$65=Carbon!$B87,'Crop 3'!$L$65*VLOOKUP('Crop 3'!$E$65,Carbon!$AH$4:$AI$10,2,FALSE),0))*$AL$20,2)","v":0},{"$f":"G87*Inputs!$D$17","v":0},{"$f":"ROUND(J87/Inputs!D$19,2)","v":0},0,null,null,{"$f":"ROUND((IF('Crop 1'!$C$14=Carbon!$B87,'Crop 1'!$V$14*VLOOKUP('Crop 1'!$E$14,Carbon!$AH$4:$AI$10,2,FALSE),0)+IF('Crop 1'!$C$15=Carbon!$B87,'Crop 1'!$V$15*VLOOKUP('Crop 1'!$E$15,Carbon!$AH$4:$AI$10,2,FALSE),0)+IF('Crop 1'!$C$16=Carbon!$B87,'Crop 1'!$V$16*VLOOKUP('Crop 1'!$E$16,Carbon!$AH$4:$AI$10,2,FALSE),0)+IF('Crop 1'!$C$19=Carbon!$B87,'Crop 1'!$V$19*VLOOKUP('Crop 1'!$E$19,Carbon!$AH$4:$AI$10,2,FALSE),0)+IF('Crop 1'!$C$20=Carbon!$B87,'Crop 1'!$V$20*VLOOKUP('Crop 1'!$E$20,Carbon!$AH$4:$AI$10,2,FALSE),0)+IF('Crop 1'!$C$21=Carbon!$B87,'Crop 1'!$V$21*VLOOKUP('Crop 1'!$E$21,Carbon!$AH$4:$AI$10,2,FALSE),0)+IF('Crop 1'!$C$49=Carbon!$B87,'Crop 1'!$V$49*VLOOKUP('Crop 1'!$E$49,Carbon!$AH$4:$AI$10,2,FALSE),0)+IF('Crop 1'!$C$50=Carbon!$B87,'Crop 1'!$V$50*VLOOKUP('Crop 1'!$E$50,Carbon!$AH$4:$AI$10,2,FALSE),0)+IF('Crop 1'!$C$51=Carbon!$B87,'Crop 1'!$V$51*VLOOKUP('Crop 1'!$E$51,Carbon!$AH$4:$AI$10,2,FALSE),0)+IF('Crop 1'!$C$52=Carbon!$B87,'Crop 1'!$V$52*VLOOKUP('Crop 1'!$E$52,Carbon!$AH$4:$AI$10,2,FALSE),0)+IF('Crop 1'!$C$53=Carbon!$B87,'Crop 1'!$V$53*VLOOKUP('Crop 1'!$E$53,Carbon!$AH$4:$AI$10,2,FALSE),0)+IF('Crop 1'!$C$56=Carbon!$B87,'Crop 1'!$V$56*VLOOKUP('Crop 1'!$E$56,Carbon!$AH$4:$AI$10,2,FALSE),0)+IF('Crop 1'!$C$57=Carbon!$B87,'Crop 1'!$V$57*VLOOKUP('Crop 1'!$E$57,Carbon!$AH$4:$AI$10,2,FALSE),0)+IF('Crop 1'!$C$58=Carbon!$B87,'Crop 1'!$V$58*VLOOKUP('Crop 1'!$E$58,Carbon!$AH$4:$AI$10,2,FALSE),0)+IF('Crop 1'!$C$59=Carbon!$B87,'Crop 1'!$V$59*VLOOKUP('Crop 1'!$E$59,Carbon!$AH$4:$AI$10,2,FALSE),0)+IF('Crop 1'!$C$62=Carbon!$B87,'Crop 1'!$V$62*VLOOKUP('Crop 1'!$E$62,Carbon!$AH$4:$AI$10,2,FALSE),0)+IF('Crop 1'!$C$63=Carbon!$B87,'Crop 1'!$V$63*VLOOKUP('Crop 1'!$E$63,Carbon!$AH$4:$AI$10,2,FALSE),0)+IF('Crop 1'!$C$64=Carbon!$B87,'Crop 1'!$V$64*VLOOKUP('Crop 1'!$E$64,Carbon!$AH$4:$AI$10,2,FALSE),0)+IF('Crop 1'!$C$65=Carbon!$B87,'Crop 1'!$V$65*VLOOKUP('Crop 1'!$E$65,Carbon!$AH$4:$AI$10,2,FALSE),0))*$AL$20,2)","v":0},{"$f":"M87*Inputs!$D$13","v":0},{"$f":"ROUND((IF('Crop 2'!$C$14=Carbon!$B87,'Crop 2'!$V$14*VLOOKUP('Crop 2'!$E$14,Carbon!$AH$4:$AI$10,2,FALSE),0)+IF('Crop 2'!$C$15=Carbon!$B87,'Crop 2'!$V$15*VLOOKUP('Crop 2'!$E$15,Carbon!$AH$4:$AI$10,2,FALSE),0)+IF('Crop 2'!$C$16=Carbon!$B87,'Crop 2'!$V$16*VLOOKUP('Crop 2'!$E$16,Carbon!$AH$4:$AI$10,2,FALSE),0)+IF('Crop 2'!$C$19=Carbon!$B87,'Crop 2'!$V$19*VLOOKUP('Crop 2'!$E$19,Carbon!$AH$4:$AI$10,2,FALSE),0)+IF('Crop 2'!$C$20=Carbon!$B87,'Crop 2'!$V$20*VLOOKUP('Crop 2'!$E$20,Carbon!$AH$4:$AI$10,2,FALSE),0)+IF('Crop 2'!$C$21=Carbon!$B87,'Crop 2'!$V$21*VLOOKUP('Crop 2'!$E$21,Carbon!$AH$4:$AI$10,2,FALSE),0)+IF('Crop 2'!$C$49=Carbon!$B87,'Crop 2'!$V$49*VLOOKUP('Crop 2'!$E$49,Carbon!$AH$4:$AI$10,2,FALSE),0)+IF('Crop 2'!$C$50=Carbon!$B87,'Crop 2'!$V$50*VLOOKUP('Crop 2'!$E$50,Carbon!$AH$4:$AI$10,2,FALSE),0)+IF('Crop 2'!$C$51=Carbon!$B87,'Crop 2'!$V$51*VLOOKUP('Crop 2'!$E$51,Carbon!$AH$4:$AI$10,2,FALSE),0)+IF('Crop 2'!$C$52=Carbon!$B87,'Crop 2'!$V$52*VLOOKUP('Crop 2'!$E$52,Carbon!$AH$4:$AI$10,2,FALSE),0)+IF('Crop 2'!$C$53=Carbon!$B87,'Crop 2'!$V$53*VLOOKUP('Crop 2'!$E$53,Carbon!$AH$4:$AI$10,2,FALSE),0)+IF('Crop 2'!$C$56=Carbon!$B87,'Crop 2'!$V$56*VLOOKUP('Crop 2'!$E$56,Carbon!$AH$4:$AI$10,2,FALSE),0)+IF('Crop 2'!$C$57=Carbon!$B87,'Crop 2'!$V$57*VLOOKUP('Crop 2'!$E$57,Carbon!$AH$4:$AI$10,2,FALSE),0)+IF('Crop 2'!$C$58=Carbon!$B87,'Crop 2'!$V$58*VLOOKUP('Crop 2'!$E$58,Carbon!$AH$4:$AI$10,2,FALSE),0)+IF('Crop 2'!$C$59=Carbon!$B87,'Crop 2'!$V$59*VLOOKUP('Crop 2'!$E$59,Carbon!$AH$4:$AI$10,2,FALSE),0)+IF('Crop 2'!$C$62=Carbon!$B87,'Crop 2'!$V$62*VLOOKUP('Crop 2'!$E$62,Carbon!$AH$4:$AI$10,2,FALSE),0)+IF('Crop 2'!$C$63=Carbon!$B87,'Crop 2'!$V$63*VLOOKUP('Crop 2'!$E$63,Carbon!$AH$4:$AI$10,2,FALSE),0)+IF('Crop 2'!$C$64=Carbon!$B87,'Crop 2'!$V$64*VLOOKUP('Crop 2'!$E$64,Carbon!$AH$4:$AI$10,2,FALSE),0)+IF('Crop 2'!$C$65=Carbon!$B87,'Crop 2'!$V$65*VLOOKUP('Crop 2'!$E$65,Carbon!$AH$4:$AI$10,2,FALSE),0))*$AL$20,2)","v":0},{"$f":"O87*Inputs!$D$15","v":0},{"$f":"ROUND((IF('Crop 3'!$C$14=Carbon!$B87,'Crop 3'!$V$14*VLOOKUP('Crop 3'!$E$14,Carbon!$AH$4:$AI$10,2,FALSE),0)+IF('Crop 3'!$C$15=Carbon!$B87,'Crop 3'!$V$15*VLOOKUP('Crop 3'!$E$15,Carbon!$AH$4:$AI$10,2,FALSE),0)+IF('Crop 3'!$C$16=Carbon!$B87,'Crop 3'!$V$16*VLOOKUP('Crop 3'!$E$16,Carbon!$AH$4:$AI$10,2,FALSE),0)+IF('Crop 3'!$C$19=Carbon!$B87,'Crop 3'!$V$19*VLOOKUP('Crop 3'!$E$19,Carbon!$AH$4:$AI$10,2,FALSE),0)+IF('Crop 3'!$C$20=Carbon!$B87,'Crop 3'!$V$20*VLOOKUP('Crop 3'!$E$20,Carbon!$AH$4:$AI$10,2,FALSE),0)+IF('Crop 3'!$C$21=Carbon!$B87,'Crop 3'!$V$21*VLOOKUP('Crop 3'!$E$21,Carbon!$AH$4:$AI$10,2,FALSE),0)+IF('Crop 3'!$C$49=Carbon!$B87,'Crop 3'!$V$49*VLOOKUP('Crop 3'!$E$49,Carbon!$AH$4:$AI$10,2,FALSE),0)+IF('Crop 3'!$C$50=Carbon!$B87,'Crop 3'!$V$50*VLOOKUP('Crop 3'!$E$50,Carbon!$AH$4:$AI$10,2,FALSE),0)+IF('Crop 3'!$C$51=Carbon!$B87,'Crop 3'!$V$51*VLOOKUP('Crop 3'!$E$51,Carbon!$AH$4:$AI$10,2,FALSE),0)+IF('Crop 3'!$C$52=Carbon!$B87,'Crop 3'!$V$52*VLOOKUP('Crop 3'!$E$52,Carbon!$AH$4:$AI$10,2,FALSE),0)+IF('Crop 3'!$C$53=Carbon!$B87,'Crop 3'!$V$53*VLOOKUP('Crop 3'!$E$53,Carbon!$AH$4:$AI$10,2,FALSE),0)+IF('Crop 3'!$C$56=Carbon!$B87,'Crop 3'!$V$56*VLOOKUP('Crop 3'!$E$56,Carbon!$AH$4:$AI$10,2,FALSE),0)+IF('Crop 3'!$C$57=Carbon!$B87,'Crop 3'!$V$57*VLOOKUP('Crop 3'!$E$57,Carbon!$AH$4:$AI$10,2,FALSE),0)+IF('Crop 3'!$C$58=Carbon!$B87,'Crop 3'!$V$58*VLOOKUP('Crop 3'!$E$58,Carbon!$AH$4:$AI$10,2,FALSE),0)+IF('Crop 3'!$C$59=Carbon!$B87,'Crop 3'!$V$59*VLOOKUP('Crop 3'!$E$59,Carbon!$AH$4:$AI$10,2,FALSE),0)+IF('Crop 3'!$C$62=Carbon!$B87,'Crop 3'!$V$62*VLOOKUP('Crop 3'!$E$62,Carbon!$AH$4:$AI$10,2,FALSE),0)+IF('Crop 3'!$C$63=Carbon!$B87,'Crop 3'!$V$63*VLOOKUP('Crop 3'!$E$63,Carbon!$AH$4:$AI$10,2,FALSE),0)+IF('Crop 3'!$C$64=Carbon!$B87,'Crop 3'!$V$64*VLOOKUP('Crop 3'!$E$64,Carbon!$AH$4:$AI$10,2,FALSE),0)+IF('Crop 3'!$C$65=Carbon!$B87,'Crop 3'!$V$65*VLOOKUP('Crop 3'!$E$65,Carbon!$AH$4:$AI$10,2,FALSE),0))*$AL$20,2)","v":0},{"$f":"Q87*Inputs!$D$17","v":0},{"$f":"ROUND(T87/Inputs!D$19,2)","v":0},0,null,null,0,{"$f":"W87*Inputs!$D$13","v":0},0,{"$f":"Y87*Inputs!$D$13","v":0},0,{"$f":"AA87*Inputs!$D$13","v":0},{"$f":"ROUND(AD87/Inputs!D$19,2)","v":0},0]
[null,{"$f":"Defaults!AH54","v":"Express"},{"$f":"ROUND((IF('Crop 1'!$C$14=Carbon!$B88,'Crop 1'!$L$14*VLOOKUP('Crop 1'!$E$14,Carbon!$AH$4:$AI$10,2,FALSE),0)+IF('Crop 1'!$C$15=Carbon!$B88,'Crop 1'!$L$15*VLOOKUP('Crop 1'!$E$15,Carbon!$AH$4:$AI$10,2,FALSE),0)+IF('Crop 1'!$C$16=Carbon!$B88,'Crop 1'!$L$16*VLOOKUP('Crop 1'!$E$16,Carbon!$AH$4:$AI$10,2,FALSE),0)+IF('Crop 1'!$C$19=Carbon!$B88,'Crop 1'!$L$19*VLOOKUP('Crop 1'!$E$19,Carbon!$AH$4:$AI$10,2,FALSE),0)+IF('Crop 1'!$C$20=Carbon!$B88,'Crop 1'!$L$20*VLOOKUP('Crop 1'!$E$20,Carbon!$AH$4:$AI$10,2,FALSE),0)+IF('Crop 1'!$C$21=Carbon!$B88,'Crop 1'!$L$21*VLOOKUP('Crop 1'!$E$21,Carbon!$AH$4:$AI$10,2,FALSE),0)+IF('Crop 1'!$C$49=Carbon!$B88,'Crop 1'!$L$49*VLOOKUP('Crop 1'!$E$49,Carbon!$AH$4:$AI$10,2,FALSE),0)+IF('Crop 1'!$C$50=Carbon!$B88,'Crop 1'!$L$50*VLOOKUP('Crop 1'!$E$50,Carbon!$AH$4:$AI$10,2,FALSE),0)+IF('Crop 1'!$C$51=Carbon!$B88,'Crop 1'!$L$51*VLOOKUP('Crop 1'!$E$51,Carbon!$AH$4:$AI$10,2,FALSE),0)+IF('Crop 1'!$C$52=Carbon!$B88,'Crop 1'!$L$52*VLOOKUP('Crop 1'!$E$52,Carbon!$AH$4:$AI$10,2,FALSE),0)+IF('Crop 1'!$C$53=Carbon!$B88,'Crop 1'!$L$53*VLOOKUP('Crop 1'!$E$53,Carbon!$AH$4:$AI$10,2,FALSE),0)+IF('Crop 1'!$C$56=Carbon!$B88,'Crop 1'!$L$56*VLOOKUP('Crop 1'!$E$56,Carbon!$AH$4:$AI$10,2,FALSE),0)+IF('Crop 1'!$C$57=Carbon!$B88,'Crop 1'!$L$57*VLOOKUP('Crop 1'!$E$57,Carbon!$AH$4:$AI$10,2,FALSE),0)+IF('Crop 1'!$C$58=Carbon!$B88,'Crop 1'!$L$58*VLOOKUP('Crop 1'!$E$58,Carbon!$AH$4:$AI$10,2,FALSE),0)+IF('Crop 1'!$C$59=Carbon!$B88,'Crop 1'!$L$59*VLOOKUP('Crop 1'!$E$59,Carbon!$AH$4:$AI$10,2,FALSE),0)+IF('Crop 1'!$C$62=Carbon!$B88,'Crop 1'!$L$62*VLOOKUP('Crop 1'!$E$62,Carbon!$AH$4:$AI$10,2,FALSE),0)+IF('Crop 1'!$C$63=Carbon!$B88,'Crop 1'!$L$63*VLOOKUP('Crop 1'!$E$63,Carbon!$AH$4:$AI$10,2,FALSE),0)+IF('Crop 1'!$C$64=Carbon!$B88,'Crop 1'!$L$64*VLOOKUP('Crop 1'!$E$64,Carbon!$AH$4:$AI$10,2,FALSE),0)+IF('Crop 1'!$C$65=Carbon!$B88,'Crop 1'!$L$65*VLOOKUP('Crop 1'!$E$65,Carbon!$AH$4:$AI$10,2,FALSE),0))*$AL$20,2)","v":0},{"$f":"C88*Inputs!$D$13","v":0},{"$f":"ROUND((IF('Crop 2'!$C$14=Carbon!$B88,'Crop 2'!$L$14*VLOOKUP('Crop 2'!$E$14,Carbon!$AH$4:$AI$10,2,FALSE),0)+IF('Crop 2'!$C$15=Carbon!$B88,'Crop 2'!$L$15*VLOOKUP('Crop 2'!$E$15,Carbon!$AH$4:$AI$10,2,FALSE),0)+IF('Crop 2'!$C$16=Carbon!$B88,'Crop 2'!$L$16*VLOOKUP('Crop 2'!$E$16,Carbon!$AH$4:$AI$10,2,FALSE),0)+IF('Crop 2'!$C$19=Carbon!$B88,'Crop 2'!$L$19*VLOOKUP('Crop 2'!$E$19,Carbon!$AH$4:$AI$10,2,FALSE),0)+IF('Crop 2'!$C$20=Carbon!$B88,'Crop 2'!$L$20*VLOOKUP('Crop 2'!$E$20,Carbon!$AH$4:$AI$10,2,FALSE),0)+IF('Crop 2'!$C$21=Carbon!$B88,'Crop 2'!$L$21*VLOOKUP('Crop 2'!$E$21,Carbon!$AH$4:$AI$10,2,FALSE),0)+IF('Crop 2'!$C$49=Carbon!$B88,'Crop 2'!$L$49*VLOOKUP('Crop 2'!$E$49,Carbon!$AH$4:$AI$10,2,FALSE),0)+IF('Crop 2'!$C$50=Carbon!$B88,'Crop 2'!$L$50*VLOOKUP('Crop 2'!$E$50,Carbon!$AH$4:$AI$10,2,FALSE),0)+IF('Crop 2'!$C$51=Carbon!$B88,'Crop 2'!$L$51*VLOOKUP('Crop 2'!$E$51,Carbon!$AH$4:$AI$10,2,FALSE),0)+IF('Crop 2'!$C$52=Carbon!$B88,'Crop 2'!$L$52*VLOOKUP('Crop 2'!$E$52,Carbon!$AH$4:$AI$10,2,FALSE),0)+IF('Crop 2'!$C$53=Carbon!$B88,'Crop 2'!$L$53*VLOOKUP('Crop 2'!$E$53,Carbon!$AH$4:$AI$10,2,FALSE),0)+IF('Crop 2'!$C$56=Carbon!$B88,'Crop 2'!$L$56*VLOOKUP('Crop 2'!$E$56,Carbon!$AH$4:$AI$10,2,FALSE),0)+IF('Crop 2'!$C$57=Carbon!$B88,'Crop 2'!$L$57*VLOOKUP('Crop 2'!$E$57,Carbon!$AH$4:$AI$10,2,FALSE),0)+IF('Crop 2'!$C$58=Carbon!$B88,'Crop 2'!$L$58*VLOOKUP('Crop 2'!$E$58,Carbon!$AH$4:$AI$10,2,FALSE),0)+IF('Crop 2'!$C$59=Carbon!$B88,'Crop 2'!$L$59*VLOOKUP('Crop 2'!$E$59,Carbon!$AH$4:$AI$10,2,FALSE),0)+IF('Crop 2'!$C$62=Carbon!$B88,'Crop 2'!$L$62*VLOOKUP('Crop 2'!$E$62,Carbon!$AH$4:$AI$10,2,FALSE),0)+IF('Crop 2'!$C$63=Carbon!$B88,'Crop 2'!$L$63*VLOOKUP('Crop 2'!$E$63,Carbon!$AH$4:$AI$10,2,FALSE),0)+IF('Crop 2'!$C$64=Carbon!$B88,'Crop 2'!$L$64*VLOOKUP('Crop 2'!$E$64,Carbon!$AH$4:$AI$10,2,FALSE),0)+IF('Crop 2'!$C$65=Carbon!$B88,'Crop 2'!$L$65*VLOOKUP('Crop 2'!$E$65,Carbon!$AH$4:$AI$10,2,FALSE),0))*$AL$20,2)","v":0},{"$f":"E88*Inputs!$D$15","v":0},{"$f":"ROUND((IF('Crop 3'!$C$14=Carbon!$B88,'Crop 3'!$L$14*VLOOKUP('Crop 3'!$E$14,Carbon!$AH$4:$AI$10,2,FALSE),0)+IF('Crop 3'!$C$15=Carbon!$B88,'Crop 3'!$L$15*VLOOKUP('Crop 3'!$E$15,Carbon!$AH$4:$AI$10,2,FALSE),0)+IF('Crop 3'!$C$16=Carbon!$B88,'Crop 3'!$L$16*VLOOKUP('Crop 3'!$E$16,Carbon!$AH$4:$AI$10,2,FALSE),0)+IF('Crop 3'!$C$19=Carbon!$B88,'Crop 3'!$L$19*VLOOKUP('Crop 3'!$E$19,Carbon!$AH$4:$AI$10,2,FALSE),0)+IF('Crop 3'!$C$20=Carbon!$B88,'Crop 3'!$L$20*VLOOKUP('Crop 3'!$E$20,Carbon!$AH$4:$AI$10,2,FALSE),0)+IF('Crop 3'!$C$21=Carbon!$B88,'Crop 3'!$L$21*VLOOKUP('Crop 3'!$E$21,Carbon!$AH$4:$AI$10,2,FALSE),0)+IF('Crop 3'!$C$49=Carbon!$B88,'Crop 3'!$L$49*VLOOKUP('Crop 3'!$E$49,Carbon!$AH$4:$AI$10,2,FALSE),0)+IF('Crop 3'!$C$50=Carbon!$B88,'Crop 3'!$L$50*VLOOKUP('Crop 3'!$E$50,Carbon!$AH$4:$AI$10,2,FALSE),0)+IF('Crop 3'!$C$51=Carbon!$B88,'Crop 3'!$L$51*VLOOKUP('Crop 3'!$E$51,Carbon!$AH$4:$AI$10,2,FALSE),0)+IF('Crop 3'!$C$52=Carbon!$B88,'Crop 3'!$L$52*VLOOKUP('Crop 3'!$E$52,Carbon!$AH$4:$AI$10,2,FALSE),0)+IF('Crop 3'!$C$53=Carbon!$B88,'Crop 3'!$L$53*VLOOKUP('Crop 3'!$E$53,Carbon!$AH$4:$AI$10,2,FALSE),0)+IF('Crop 3'!$C$56=Carbon!$B88,'Crop 3'!$L$56*VLOOKUP('Crop 3'!$E$56,Carbon!$AH$4:$AI$10,2,FALSE),0)+IF('Crop 3'!$C$57=Carbon!$B88,'Crop 3'!$L$57*VLOOKUP('Crop 3'!$E$57,Carbon!$AH$4:$AI$10,2,FALSE),0)+IF('Crop 3'!$C$58=Carbon!$B88,'Crop 3'!$L$58*VLOOKUP('Crop 3'!$E$58,Carbon!$AH$4:$AI$10,2,FALSE),0)+IF('Crop 3'!$C$59=Carbon!$B88,'Crop 3'!$L$59*VLOOKUP('Crop 3'!$E$59,Carbon!$AH$4:$AI$10,2,FALSE),0)+IF('Crop 3'!$C$62=Carbon!$B88,'Crop 3'!$L$62*VLOOKUP('Crop 3'!$E$62,Carbon!$AH$4:$AI$10,2,FALSE),0)+IF('Crop 3'!$C$63=Carbon!$B88,'Crop 3'!$L$63*VLOOKUP('Crop 3'!$E$63,Carbon!$AH$4:$AI$10,2,FALSE),0)+IF('Crop 3'!$C$64=Carbon!$B88,'Crop 3'!$L$64*VLOOKUP('Crop 3'!$E$64,Carbon!$AH$4:$AI$10,2,FALSE),0)+IF('Crop 3'!$C$65=Carbon!$B88,'Crop 3'!$L$65*VLOOKUP('Crop 3'!$E$65,Carbon!$AH$4:$AI$10,2,FALSE),0))*$AL$20,2)","v":0},{"$f":"G88*Inputs!$D$17","v":0},{"$f":"ROUND(J88/Inputs!D$19,2)","v":0},0,null,null,{"$f":"ROUND((IF('Crop 1'!$C$14=Carbon!$B88,'Crop 1'!$V$14*VLOOKUP('Crop 1'!$E$14,Carbon!$AH$4:$AI$10,2,FALSE),0)+IF('Crop 1'!$C$15=Carbon!$B88,'Crop 1'!$V$15*VLOOKUP('Crop 1'!$E$15,Carbon!$AH$4:$AI$10,2,FALSE),0)+IF('Crop 1'!$C$16=Carbon!$B88,'Crop 1'!$V$16*VLOOKUP('Crop 1'!$E$16,Carbon!$AH$4:$AI$10,2,FALSE),0)+IF('Crop 1'!$C$19=Carbon!$B88,'Crop 1'!$V$19*VLOOKUP('Crop 1'!$E$19,Carbon!$AH$4:$AI$10,2,FALSE),0)+IF('Crop 1'!$C$20=Carbon!$B88,'Crop 1'!$V$20*VLOOKUP('Crop 1'!$E$20,Carbon!$AH$4:$AI$10,2,FALSE),0)+IF('Crop 1'!$C$21=Carbon!$B88,'Crop 1'!$V$21*VLOOKUP('Crop 1'!$E$21,Carbon!$AH$4:$AI$10,2,FALSE),0)+IF('Crop 1'!$C$49=Carbon!$B88,'Crop 1'!$V$49*VLOOKUP('Crop 1'!$E$49,Carbon!$AH$4:$AI$10,2,FALSE),0)+IF('Crop 1'!$C$50=Carbon!$B88,'Crop 1'!$V$50*VLOOKUP('Crop 1'!$E$50,Carbon!$AH$4:$AI$10,2,FALSE),0)+IF('Crop 1'!$C$51=Carbon!$B88,'Crop 1'!$V$51*VLOOKUP('Crop 1'!$E$51,Carbon!$AH$4:$AI$10,2,FALSE),0)+IF('Crop 1'!$C$52=Carbon!$B88,'Crop 1'!$V$52*VLOOKUP('Crop 1'!$E$52,Carbon!$AH$4:$AI$10,2,FALSE),0)+IF('Crop 1'!$C$53=Carbon!$B88,'Crop 1'!$V$53*VLOOKUP('Crop 1'!$E$53,Carbon!$AH$4:$AI$10,2,FALSE),0)+IF('Crop 1'!$C$56=Carbon!$B88,'Crop 1'!$V$56*VLOOKUP('Crop 1'!$E$56,Carbon!$AH$4:$AI$10,2,FALSE),0)+IF('Crop 1'!$C$57=Carbon!$B88,'Crop 1'!$V$57*VLOOKUP('Crop 1'!$E$57,Carbon!$AH$4:$AI$10,2,FALSE),0)+IF('Crop 1'!$C$58=Carbon!$B88,'Crop 1'!$V$58*VLOOKUP('Crop 1'!$E$58,Carbon!$AH$4:$AI$10,2,FALSE),0)+IF('Crop 1'!$C$59=Carbon!$B88,'Crop 1'!$V$59*VLOOKUP('Crop 1'!$E$59,Carbon!$AH$4:$AI$10,2,FALSE),0)+IF('Crop 1'!$C$62=Carbon!$B88,'Crop 1'!$V$62*VLOOKUP('Crop 1'!$E$62,Carbon!$AH$4:$AI$10,2,FALSE),0)+IF('Crop 1'!$C$63=Carbon!$B88,'Crop 1'!$V$63*VLOOKUP('Crop 1'!$E$63,Carbon!$AH$4:$AI$10,2,FALSE),0)+IF('Crop 1'!$C$64=Carbon!$B88,'Crop 1'!$V$64*VLOOKUP('Crop 1'!$E$64,Carbon!$AH$4:$AI$10,2,FALSE),0)+IF('Crop 1'!$C$65=Carbon!$B88,'Crop 1'!$V$65*VLOOKUP('Crop 1'!$E$65,Carbon!$AH$4:$AI$10,2,FALSE),0))*$AL$20,2)","v":0},{"$f":"M88*Inputs!$D$13","v":0},{"$f":"ROUND((IF('Crop 2'!$C$14=Carbon!$B88,'Crop 2'!$V$14*VLOOKUP('Crop 2'!$E$14,Carbon!$AH$4:$AI$10,2,FALSE),0)+IF('Crop 2'!$C$15=Carbon!$B88,'Crop 2'!$V$15*VLOOKUP('Crop 2'!$E$15,Carbon!$AH$4:$AI$10,2,FALSE),0)+IF('Crop 2'!$C$16=Carbon!$B88,'Crop 2'!$V$16*VLOOKUP('Crop 2'!$E$16,Carbon!$AH$4:$AI$10,2,FALSE),0)+IF('Crop 2'!$C$19=Carbon!$B88,'Crop 2'!$V$19*VLOOKUP('Crop 2'!$E$19,Carbon!$AH$4:$AI$10,2,FALSE),0)+IF('Crop 2'!$C$20=Carbon!$B88,'Crop 2'!$V$20*VLOOKUP('Crop 2'!$E$20,Carbon!$AH$4:$AI$10,2,FALSE),0)+IF('Crop 2'!$C$21=Carbon!$B88,'Crop 2'!$V$21*VLOOKUP('Crop 2'!$E$21,Carbon!$AH$4:$AI$10,2,FALSE),0)+IF('Crop 2'!$C$49=Carbon!$B88,'Crop 2'!$V$49*VLOOKUP('Crop 2'!$E$49,Carbon!$AH$4:$AI$10,2,FALSE),0)+IF('Crop 2'!$C$50=Carbon!$B88,'Crop 2'!$V$50*VLOOKUP('Crop 2'!$E$50,Carbon!$AH$4:$AI$10,2,FALSE),0)+IF('Crop 2'!$C$51=Carbon!$B88,'Crop 2'!$V$51*VLOOKUP('Crop 2'!$E$51,Carbon!$AH$4:$AI$10,2,FALSE),0)+IF('Crop 2'!$C$52=Carbon!$B88,'Crop 2'!$V$52*VLOOKUP('Crop 2'!$E$52,Carbon!$AH$4:$AI$10,2,FALSE),0)+IF('Crop 2'!$C$53=Carbon!$B88,'Crop 2'!$V$53*VLOOKUP('Crop 2'!$E$53,Carbon!$AH$4:$AI$10,2,FALSE),0)+IF('Crop 2'!$C$56=Carbon!$B88,'Crop 2'!$V$56*VLOOKUP('Crop 2'!$E$56,Carbon!$AH$4:$AI$10,2,FALSE),0)+IF('Crop 2'!$C$57=Carbon!$B88,'Crop 2'!$V$57*VLOOKUP('Crop 2'!$E$57,Carbon!$AH$4:$AI$10,2,FALSE),0)+IF('Crop 2'!$C$58=Carbon!$B88,'Crop 2'!$V$58*VLOOKUP('Crop 2'!$E$58,Carbon!$AH$4:$AI$10,2,FALSE),0)+IF('Crop 2'!$C$59=Carbon!$B88,'Crop 2'!$V$59*VLOOKUP('Crop 2'!$E$59,Carbon!$AH$4:$AI$10,2,FALSE),0)+IF('Crop 2'!$C$62=Carbon!$B88,'Crop 2'!$V$62*VLOOKUP('Crop 2'!$E$62,Carbon!$AH$4:$AI$10,2,FALSE),0)+IF('Crop 2'!$C$63=Carbon!$B88,'Crop 2'!$V$63*VLOOKUP('Crop 2'!$E$63,Carbon!$AH$4:$AI$10,2,FALSE),0)+IF('Crop 2'!$C$64=Carbon!$B88,'Crop 2'!$V$64*VLOOKUP('Crop 2'!$E$64,Carbon!$AH$4:$AI$10,2,FALSE),0)+IF('Crop 2'!$C$65=Carbon!$B88,'Crop 2'!$V$65*VLOOKUP('Crop 2'!$E$65,Carbon!$AH$4:$AI$10,2,FALSE),0))*$AL$20,2)","v":0},{"$f":"O88*Inputs!$D$15","v":0},{"$f":"ROUND((IF('Crop 3'!$C$14=Carbon!$B88,'Crop 3'!$V$14*VLOOKUP('Crop 3'!$E$14,Carbon!$AH$4:$AI$10,2,FALSE),0)+IF('Crop 3'!$C$15=Carbon!$B88,'Crop 3'!$V$15*VLOOKUP('Crop 3'!$E$15,Carbon!$AH$4:$AI$10,2,FALSE),0)+IF('Crop 3'!$C$16=Carbon!$B88,'Crop 3'!$V$16*VLOOKUP('Crop 3'!$E$16,Carbon!$AH$4:$AI$10,2,FALSE),0)+IF('Crop 3'!$C$19=Carbon!$B88,'Crop 3'!$V$19*VLOOKUP('Crop 3'!$E$19,Carbon!$AH$4:$AI$10,2,FALSE),0)+IF('Crop 3'!$C$20=Carbon!$B88,'Crop 3'!$V$20*VLOOKUP('Crop 3'!$E$20,Carbon!$AH$4:$AI$10,2,FALSE),0)+IF('Crop 3'!$C$21=Carbon!$B88,'Crop 3'!$V$21*VLOOKUP('Crop 3'!$E$21,Carbon!$AH$4:$AI$10,2,FALSE),0)+IF('Crop 3'!$C$49=Carbon!$B88,'Crop 3'!$V$49*VLOOKUP('Crop 3'!$E$49,Carbon!$AH$4:$AI$10,2,FALSE),0)+IF('Crop 3'!$C$50=Carbon!$B88,'Crop 3'!$V$50*VLOOKUP('Crop 3'!$E$50,Carbon!$AH$4:$AI$10,2,FALSE),0)+IF('Crop 3'!$C$51=Carbon!$B88,'Crop 3'!$V$51*VLOOKUP('Crop 3'!$E$51,Carbon!$AH$4:$AI$10,2,FALSE),0)+IF('Crop 3'!$C$52=Carbon!$B88,'Crop 3'!$V$52*VLOOKUP('Crop 3'!$E$52,Carbon!$AH$4:$AI$10,2,FALSE),0)+IF('Crop 3'!$C$53=Carbon!$B88,'Crop 3'!$V$53*VLOOKUP('Crop 3'!$E$53,Carbon!$AH$4:$AI$10,2,FALSE),0)+IF('Crop 3'!$C$56=Carbon!$B88,'Crop 3'!$V$56*VLOOKUP('Crop 3'!$E$56,Carbon!$AH$4:$AI$10,2,FALSE),0)+IF('Crop 3'!$C$57=Carbon!$B88,'Crop 3'!$V$57*VLOOKUP('Crop 3'!$E$57,Carbon!$AH$4:$AI$10,2,FALSE),0)+IF('Crop 3'!$C$58=Carbon!$B88,'Crop 3'!$V$58*VLOOKUP('Crop 3'!$E$58,Carbon!$AH$4:$AI$10,2,FALSE),0)+IF('Crop 3'!$C$59=Carbon!$B88,'Crop 3'!$V$59*VLOOKUP('Crop 3'!$E$59,Carbon!$AH$4:$AI$10,2,FALSE),0)+IF('Crop 3'!$C$62=Carbon!$B88,'Crop 3'!$V$62*VLOOKUP('Crop 3'!$E$62,Carbon!$AH$4:$AI$10,2,FALSE),0)+IF('Crop 3'!$C$63=Carbon!$B88,'Crop 3'!$V$63*VLOOKUP('Crop 3'!$E$63,Carbon!$AH$4:$AI$10,2,FALSE),0)+IF('Crop 3'!$C$64=Carbon!$B88,'Crop 3'!$V$64*VLOOKUP('Crop 3'!$E$64,Carbon!$AH$4:$AI$10,2,FALSE),0)+IF('Crop 3'!$C$65=Carbon!$B88,'Crop 3'!$V$65*VLOOKUP('Crop 3'!$E$65,Carbon!$AH$4:$AI$10,2,FALSE),0))*$AL$20,2)","v":0},{"$f":"Q88*Inputs!$D$17","v":0},{"$f":"ROUND(T88/Inputs!D$19,2)","v":0},0,null,null,0,{"$f":"W88*Inputs!$D$13","v":0},0,{"$f":"Y88*Inputs!$D$13","v":0},0,{"$f":"AA88*Inputs!$D$13","v":0},{"$f":"ROUND(AD88/Inputs!D$19,2)","v":0},0]
[null,{"$f":"Defaults!AH55","v":"Facet"},{"$f":"ROUND((IF('Crop 1'!$C$14=Carbon!$B89,'Crop 1'!$L$14*VLOOKUP('Crop 1'!$E$14,Carbon!$AH$4:$AI$10,2,FALSE),0)+IF('Crop 1'!$C$15=Carbon!$B89,'Crop 1'!$L$15*VLOOKUP('Crop 1'!$E$15,Carbon!$AH$4:$AI$10,2,FALSE),0)+IF('Crop 1'!$C$16=Carbon!$B89,'Crop 1'!$L$16*VLOOKUP('Crop 1'!$E$16,Carbon!$AH$4:$AI$10,2,FALSE),0)+IF('Crop 1'!$C$19=Carbon!$B89,'Crop 1'!$L$19*VLOOKUP('Crop 1'!$E$19,Carbon!$AH$4:$AI$10,2,FALSE),0)+IF('Crop 1'!$C$20=Carbon!$B89,'Crop 1'!$L$20*VLOOKUP('Crop 1'!$E$20,Carbon!$AH$4:$AI$10,2,FALSE),0)+IF('Crop 1'!$C$21=Carbon!$B89,'Crop 1'!$L$21*VLOOKUP('Crop 1'!$E$21,Carbon!$AH$4:$AI$10,2,FALSE),0)+IF('Crop 1'!$C$49=Carbon!$B89,'Crop 1'!$L$49*VLOOKUP('Crop 1'!$E$49,Carbon!$AH$4:$AI$10,2,FALSE),0)+IF('Crop 1'!$C$50=Carbon!$B89,'Crop 1'!$L$50*VLOOKUP('Crop 1'!$E$50,Carbon!$AH$4:$AI$10,2,FALSE),0)+IF('Crop 1'!$C$51=Carbon!$B89,'Crop 1'!$L$51*VLOOKUP('Crop 1'!$E$51,Carbon!$AH$4:$AI$10,2,FALSE),0)+IF('Crop 1'!$C$52=Carbon!$B89,'Crop 1'!$L$52*VLOOKUP('Crop 1'!$E$52,Carbon!$AH$4:$AI$10,2,FALSE),0)+IF('Crop 1'!$C$53=Carbon!$B89,'Crop 1'!$L$53*VLOOKUP('Crop 1'!$E$53,Carbon!$AH$4:$AI$10,2,FALSE),0)+IF('Crop 1'!$C$56=Carbon!$B89,'Crop 1'!$L$56*VLOOKUP('Crop 1'!$E$56,Carbon!$AH$4:$AI$10,2,FALSE),0)+IF('Crop 1'!$C$57=Carbon!$B89,'Crop 1'!$L$57*VLOOKUP('Crop 1'!$E$57,Carbon!$AH$4:$AI$10,2,FALSE),0)+IF('Crop 1'!$C$58=Carbon!$B89,'Crop 1'!$L$58*VLOOKUP('Crop 1'!$E$58,Carbon!$AH$4:$AI$10,2,FALSE),0)+IF('Crop 1'!$C$59=Carbon!$B89,'Crop 1'!$L$59*VLOOKUP('Crop 1'!$E$59,Carbon!$AH$4:$AI$10,2,FALSE),0)+IF('Crop 1'!$C$62=Carbon!$B89,'Crop 1'!$L$62*VLOOKUP('Crop 1'!$E$62,Carbon!$AH$4:$AI$10,2,FALSE),0)+IF('Crop 1'!$C$63=Carbon!$B89,'Crop 1'!$L$63*VLOOKUP('Crop 1'!$E$63,Carbon!$AH$4:$AI$10,2,FALSE),0)+IF('Crop 1'!$C$64=Carbon!$B89,'Crop 1'!$L$64*VLOOKUP('Crop 1'!$E$64,Carbon!$AH$4:$AI$10,2,FALSE),0)+IF('Crop 1'!$C$65=Carbon!$B89,'Crop 1'!$L$65*VLOOKUP('Crop 1'!$E$65,Carbon!$AH$4:$AI$10,2,FALSE),0))*$AL$20,2)","v":0},{"$f":"C89*Inputs!$D$13","v":0},{"$f":"ROUND((IF('Crop 2'!$C$14=Carbon!$B89,'Crop 2'!$L$14*VLOOKUP('Crop 2'!$E$14,Carbon!$AH$4:$AI$10,2,FALSE),0)+IF('Crop 2'!$C$15=Carbon!$B89,'Crop 2'!$L$15*VLOOKUP('Crop 2'!$E$15,Carbon!$AH$4:$AI$10,2,FALSE),0)+IF('Crop 2'!$C$16=Carbon!$B89,'Crop 2'!$L$16*VLOOKUP('Crop 2'!$E$16,Carbon!$AH$4:$AI$10,2,FALSE),0)+IF('Crop 2'!$C$19=Carbon!$B89,'Crop 2'!$L$19*VLOOKUP('Crop 2'!$E$19,Carbon!$AH$4:$AI$10,2,FALSE),0)+IF('Crop 2'!$C$20=Carbon!$B89,'Crop 2'!$L$20*VLOOKUP('Crop 2'!$E$20,Carbon!$AH$4:$AI$10,2,FALSE),0)+IF('Crop 2'!$C$21=Carbon!$B89,'Crop 2'!$L$21*VLOOKUP('Crop 2'!$E$21,Carbon!$AH$4:$AI$10,2,FALSE),0)+IF('Crop 2'!$C$49=Carbon!$B89,'Crop 2'!$L$49*VLOOKUP('Crop 2'!$E$49,Carbon!$AH$4:$AI$10,2,FALSE),0)+IF('Crop 2'!$C$50=Carbon!$B89,'Crop 2'!$L$50*VLOOKUP('Crop 2'!$E$50,Carbon!$AH$4:$AI$10,2,FALSE),0)+IF('Crop 2'!$C$51=Carbon!$B89,'Crop 2'!$L$51*VLOOKUP('Crop 2'!$E$51,Carbon!$AH$4:$AI$10,2,FALSE),0)+IF('Crop 2'!$C$52=Carbon!$B89,'Crop 2'!$L$52*VLOOKUP('Crop 2'!$E$52,Carbon!$AH$4:$AI$10,2,FALSE),0)+IF('Crop 2'!$C$53=Carbon!$B89,'Crop 2'!$L$53*VLOOKUP('Crop 2'!$E$53,Carbon!$AH$4:$AI$10,2,FALSE),0)+IF('Crop 2'!$C$56=Carbon!$B89,'Crop 2'!$L$56*VLOOKUP('Crop 2'!$E$56,Carbon!$AH$4:$AI$10,2,FALSE),0)+IF('Crop 2'!$C$57=Carbon!$B89,'Crop 2'!$L$57*VLOOKUP('Crop 2'!$E$57,Carbon!$AH$4:$AI$10,2,FALSE),0)+IF('Crop 2'!$C$58=Carbon!$B89,'Crop 2'!$L$58*VLOOKUP('Crop 2'!$E$58,Carbon!$AH$4:$AI$10,2,FALSE),0)+IF('Crop 2'!$C$59=Carbon!$B89,'Crop 2'!$L$59*VLOOKUP('Crop 2'!$E$59,Carbon!$AH$4:$AI$10,2,FALSE),0)+IF('Crop 2'!$C$62=Carbon!$B89,'Crop 2'!$L$62*VLOOKUP('Crop 2'!$E$62,Carbon!$AH$4:$AI$10,2,FALSE),0)+IF('Crop 2'!$C$63=Carbon!$B89,'Crop 2'!$L$63*VLOOKUP('Crop 2'!$E$63,Carbon!$AH$4:$AI$10,2,FALSE),0)+IF('Crop 2'!$C$64=Carbon!$B89,'Crop 2'!$L$64*VLOOKUP('Crop 2'!$E$64,Carbon!$AH$4:$AI$10,2,FALSE),0)+IF('Crop 2'!$C$65=Carbon!$B89,'Crop 2'!$L$65*VLOOKUP('Crop 2'!$E$65,Carbon!$AH$4:$AI$10,2,FALSE),0))*$AL$20,2)","v":0},{"$f":"E89*Inputs!$D$15","v":0},{"$f":"ROUND((IF('Crop 3'!$C$14=Carbon!$B89,'Crop 3'!$L$14*VLOOKUP('Crop 3'!$E$14,Carbon!$AH$4:$AI$10,2,FALSE),0)+IF('Crop 3'!$C$15=Carbon!$B89,'Crop 3'!$L$15*VLOOKUP('Crop 3'!$E$15,Carbon!$AH$4:$AI$10,2,FALSE),0)+IF('Crop 3'!$C$16=Carbon!$B89,'Crop 3'!$L$16*VLOOKUP('Crop 3'!$E$16,Carbon!$AH$4:$AI$10,2,FALSE),0)+IF('Crop 3'!$C$19=Carbon!$B89,'Crop 3'!$L$19*VLOOKUP('Crop 3'!$E$19,Carbon!$AH$4:$AI$10,2,FALSE),0)+IF('Crop 3'!$C$20=Carbon!$B89,'Crop 3'!$L$20*VLOOKUP('Crop 3'!$E$20,Carbon!$AH$4:$AI$10,2,FALSE),0)+IF('Crop 3'!$C$21=Carbon!$B89,'Crop 3'!$L$21*VLOOKUP('Crop 3'!$E$21,Carbon!$AH$4:$AI$10,2,FALSE),0)+IF('Crop 3'!$C$49=Carbon!$B89,'Crop 3'!$L$49*VLOOKUP('Crop 3'!$E$49,Carbon!$AH$4:$AI$10,2,FALSE),0)+IF('Crop 3'!$C$50=Carbon!$B89,'Crop 3'!$L$50*VLOOKUP('Crop 3'!$E$50,Carbon!$AH$4:$AI$10,2,FALSE),0)+IF('Crop 3'!$C$51=Carbon!$B89,'Crop 3'!$L$51*VLOOKUP('Crop 3'!$E$51,Carbon!$AH$4:$AI$10,2,FALSE),0)+IF('Crop 3'!$C$52=Carbon!$B89,'Crop 3'!$L$52*VLOOKUP('Crop 3'!$E$52,Carbon!$AH$4:$AI$10,2,FALSE),0)+IF('Crop 3'!$C$53=Carbon!$B89,'Crop 3'!$L$53*VLOOKUP('Crop 3'!$E$53,Carbon!$AH$4:$AI$10,2,FALSE),0)+IF('Crop 3'!$C$56=Carbon!$B89,'Crop 3'!$L$56*VLOOKUP('Crop 3'!$E$56,Carbon!$AH$4:$AI$10,2,FALSE),0)+IF('Crop 3'!$C$57=Carbon!$B89,'Crop 3'!$L$57*VLOOKUP('Crop 3'!$E$57,Carbon!$AH$4:$AI$10,2,FALSE),0)+IF('Crop 3'!$C$58=Carbon!$B89,'Crop 3'!$L$58*VLOOKUP('Crop 3'!$E$58,Carbon!$AH$4:$AI$10,2,FALSE),0)+IF('Crop 3'!$C$59=Carbon!$B89,'Crop 3'!$L$59*VLOOKUP('Crop 3'!$E$59,Carbon!$AH$4:$AI$10,2,FALSE),0)+IF('Crop 3'!$C$62=Carbon!$B89,'Crop 3'!$L$62*VLOOKUP('Crop 3'!$E$62,Carbon!$AH$4:$AI$10,2,FALSE),0)+IF('Crop 3'!$C$63=Carbon!$B89,'Crop 3'!$L$63*VLOOKUP('Crop 3'!$E$63,Carbon!$AH$4:$AI$10,2,FALSE),0)+IF('Crop 3'!$C$64=Carbon!$B89,'Crop 3'!$L$64*VLOOKUP('Crop 3'!$E$64,Carbon!$AH$4:$AI$10,2,FALSE),0)+IF('Crop 3'!$C$65=Carbon!$B89,'Crop 3'!$L$65*VLOOKUP('Crop 3'!$E$65,Carbon!$AH$4:$AI$10,2,FALSE),0))*$AL$20,2)","v":0},{"$f":"G89*Inputs!$D$17","v":0},{"$f":"ROUND(J89/Inputs!D$19,2)","v":0},0,null,null,{"$f":"ROUND((IF('Crop 1'!$C$14=Carbon!$B89,'Crop 1'!$V$14*VLOOKUP('Crop 1'!$E$14,Carbon!$AH$4:$AI$10,2,FALSE),0)+IF('Crop 1'!$C$15=Carbon!$B89,'Crop 1'!$V$15*VLOOKUP('Crop 1'!$E$15,Carbon!$AH$4:$AI$10,2,FALSE),0)+IF('Crop 1'!$C$16=Carbon!$B89,'Crop 1'!$V$16*VLOOKUP('Crop 1'!$E$16,Carbon!$AH$4:$AI$10,2,FALSE),0)+IF('Crop 1'!$C$19=Carbon!$B89,'Crop 1'!$V$19*VLOOKUP('Crop 1'!$E$19,Carbon!$AH$4:$AI$10,2,FALSE),0)+IF('Crop 1'!$C$20=Carbon!$B89,'Crop 1'!$V$20*VLOOKUP('Crop 1'!$E$20,Carbon!$AH$4:$AI$10,2,FALSE),0)+IF('Crop 1'!$C$21=Carbon!$B89,'Crop 1'!$V$21*VLOOKUP('Crop 1'!$E$21,Carbon!$AH$4:$AI$10,2,FALSE),0)+IF('Crop 1'!$C$49=Carbon!$B89,'Crop 1'!$V$49*VLOOKUP('Crop 1'!$E$49,Carbon!$AH$4:$AI$10,2,FALSE),0)+IF('Crop 1'!$C$50=Carbon!$B89,'Crop 1'!$V$50*VLOOKUP('Crop 1'!$E$50,Carbon!$AH$4:$AI$10,2,FALSE),0)+IF('Crop 1'!$C$51=Carbon!$B89,'Crop 1'!$V$51*VLOOKUP('Crop 1'!$E$51,Carbon!$AH$4:$AI$10,2,FALSE),0)+IF('Crop 1'!$C$52=Carbon!$B89,'Crop 1'!$V$52*VLOOKUP('Crop 1'!$E$52,Carbon!$AH$4:$AI$10,2,FALSE),0)+IF('Crop 1'!$C$53=Carbon!$B89,'Crop 1'!$V$53*VLOOKUP('Crop 1'!$E$53,Carbon!$AH$4:$AI$10,2,FALSE),0)+IF('Crop 1'!$C$56=Carbon!$B89,'Crop 1'!$V$56*VLOOKUP('Crop 1'!$E$56,Carbon!$AH$4:$AI$10,2,FALSE),0)+IF('Crop 1'!$C$57=Carbon!$B89,'Crop 1'!$V$57*VLOOKUP('Crop 1'!$E$57,Carbon!$AH$4:$AI$10,2,FALSE),0)+IF('Crop 1'!$C$58=Carbon!$B89,'Crop 1'!$V$58*VLOOKUP('Crop 1'!$E$58,Carbon!$AH$4:$AI$10,2,FALSE),0)+IF('Crop 1'!$C$59=Carbon!$B89,'Crop 1'!$V$59*VLOOKUP('Crop 1'!$E$59,Carbon!$AH$4:$AI$10,2,FALSE),0)+IF('Crop 1'!$C$62=Carbon!$B89,'Crop 1'!$V$62*VLOOKUP('Crop 1'!$E$62,Carbon!$AH$4:$AI$10,2,FALSE),0)+IF('Crop 1'!$C$63=Carbon!$B89,'Crop 1'!$V$63*VLOOKUP('Crop 1'!$E$63,Carbon!$AH$4:$AI$10,2,FALSE),0)+IF('Crop 1'!$C$64=Carbon!$B89,'Crop 1'!$V$64*VLOOKUP('Crop 1'!$E$64,Carbon!$AH$4:$AI$10,2,FALSE),0)+IF('Crop 1'!$C$65=Carbon!$B89,'Crop 1'!$V$65*VLOOKUP('Crop 1'!$E$65,Carbon!$AH$4:$AI$10,2,FALSE),0))*$AL$20,2)","v":0},{"$f":"M89*Inputs!$D$13","v":0},{"$f":"ROUND((IF('Crop 2'!$C$14=Carbon!$B89,'Crop 2'!$V$14*VLOOKUP('Crop 2'!$E$14,Carbon!$AH$4:$AI$10,2,FALSE),0)+IF('Crop 2'!$C$15=Carbon!$B89,'Crop 2'!$V$15*VLOOKUP('Crop 2'!$E$15,Carbon!$AH$4:$AI$10,2,FALSE),0)+IF('Crop 2'!$C$16=Carbon!$B89,'Crop 2'!$V$16*VLOOKUP('Crop 2'!$E$16,Carbon!$AH$4:$AI$10,2,FALSE),0)+IF('Crop 2'!$C$19=Carbon!$B89,'Crop 2'!$V$19*VLOOKUP('Crop 2'!$E$19,Carbon!$AH$4:$AI$10,2,FALSE),0)+IF('Crop 2'!$C$20=Carbon!$B89,'Crop 2'!$V$20*VLOOKUP('Crop 2'!$E$20,Carbon!$AH$4:$AI$10,2,FALSE),0)+IF('Crop 2'!$C$21=Carbon!$B89,'Crop 2'!$V$21*VLOOKUP('Crop 2'!$E$21,Carbon!$AH$4:$AI$10,2,FALSE),0)+IF('Crop 2'!$C$49=Carbon!$B89,'Crop 2'!$V$49*VLOOKUP('Crop 2'!$E$49,Carbon!$AH$4:$AI$10,2,FALSE),0)+IF('Crop 2'!$C$50=Carbon!$B89,'Crop 2'!$V$50*VLOOKUP('Crop 2'!$E$50,Carbon!$AH$4:$AI$10,2,FALSE),0)+IF('Crop 2'!$C$51=Carbon!$B89,'Crop 2'!$V$51*VLOOKUP('Crop 2'!$E$51,Carbon!$AH$4:$AI$10,2,FALSE),0)+IF('Crop 2'!$C$52=Carbon!$B89,'Crop 2'!$V$52*VLOOKUP('Crop 2'!$E$52,Carbon!$AH$4:$AI$10,2,FALSE),0)+IF('Crop 2'!$C$53=Carbon!$B89,'Crop 2'!$V$53*VLOOKUP('Crop 2'!$E$53,Carbon!$AH$4:$AI$10,2,FALSE),0)+IF('Crop 2'!$C$56=Carbon!$B89,'Crop 2'!$V$56*VLOOKUP('Crop 2'!$E$56,Carbon!$AH$4:$AI$10,2,FALSE),0)+IF('Crop 2'!$C$57=Carbon!$B89,'Crop 2'!$V$57*VLOOKUP('Crop 2'!$E$57,Carbon!$AH$4:$AI$10,2,FALSE),0)+IF('Crop 2'!$C$58=Carbon!$B89,'Crop 2'!$V$58*VLOOKUP('Crop 2'!$E$58,Carbon!$AH$4:$AI$10,2,FALSE),0)+IF('Crop 2'!$C$59=Carbon!$B89,'Crop 2'!$V$59*VLOOKUP('Crop 2'!$E$59,Carbon!$AH$4:$AI$10,2,FALSE),0)+IF('Crop 2'!$C$62=Carbon!$B89,'Crop 2'!$V$62*VLOOKUP('Crop 2'!$E$62,Carbon!$AH$4:$AI$10,2,FALSE),0)+IF('Crop 2'!$C$63=Carbon!$B89,'Crop 2'!$V$63*VLOOKUP('Crop 2'!$E$63,Carbon!$AH$4:$AI$10,2,FALSE),0)+IF('Crop 2'!$C$64=Carbon!$B89,'Crop 2'!$V$64*VLOOKUP('Crop 2'!$E$64,Carbon!$AH$4:$AI$10,2,FALSE),0)+IF('Crop 2'!$C$65=Carbon!$B89,'Crop 2'!$V$65*VLOOKUP('Crop 2'!$E$65,Carbon!$AH$4:$AI$10,2,FALSE),0))*$AL$20,2)","v":0},{"$f":"O89*Inputs!$D$15","v":0},{"$f":"ROUND((IF('Crop 3'!$C$14=Carbon!$B89,'Crop 3'!$V$14*VLOOKUP('Crop 3'!$E$14,Carbon!$AH$4:$AI$10,2,FALSE),0)+IF('Crop 3'!$C$15=Carbon!$B89,'Crop 3'!$V$15*VLOOKUP('Crop 3'!$E$15,Carbon!$AH$4:$AI$10,2,FALSE),0)+IF('Crop 3'!$C$16=Carbon!$B89,'Crop 3'!$V$16*VLOOKUP('Crop 3'!$E$16,Carbon!$AH$4:$AI$10,2,FALSE),0)+IF('Crop 3'!$C$19=Carbon!$B89,'Crop 3'!$V$19*VLOOKUP('Crop 3'!$E$19,Carbon!$AH$4:$AI$10,2,FALSE),0)+IF('Crop 3'!$C$20=Carbon!$B89,'Crop 3'!$V$20*VLOOKUP('Crop 3'!$E$20,Carbon!$AH$4:$AI$10,2,FALSE),0)+IF('Crop 3'!$C$21=Carbon!$B89,'Crop 3'!$V$21*VLOOKUP('Crop 3'!$E$21,Carbon!$AH$4:$AI$10,2,FALSE),0)+IF('Crop 3'!$C$49=Carbon!$B89,'Crop 3'!$V$49*VLOOKUP('Crop 3'!$E$49,Carbon!$AH$4:$AI$10,2,FALSE),0)+IF('Crop 3'!$C$50=Carbon!$B89,'Crop 3'!$V$50*VLOOKUP('Crop 3'!$E$50,Carbon!$AH$4:$AI$10,2,FALSE),0)+IF('Crop 3'!$C$51=Carbon!$B89,'Crop 3'!$V$51*VLOOKUP('Crop 3'!$E$51,Carbon!$AH$4:$AI$10,2,FALSE),0)+IF('Crop 3'!$C$52=Carbon!$B89,'Crop 3'!$V$52*VLOOKUP('Crop 3'!$E$52,Carbon!$AH$4:$AI$10,2,FALSE),0)+IF('Crop 3'!$C$53=Carbon!$B89,'Crop 3'!$V$53*VLOOKUP('Crop 3'!$E$53,Carbon!$AH$4:$AI$10,2,FALSE),0)+IF('Crop 3'!$C$56=Carbon!$B89,'Crop 3'!$V$56*VLOOKUP('Crop 3'!$E$56,Carbon!$AH$4:$AI$10,2,FALSE),0)+IF('Crop 3'!$C$57=Carbon!$B89,'Crop 3'!$V$57*VLOOKUP('Crop 3'!$E$57,Carbon!$AH$4:$AI$10,2,FALSE),0)+IF('Crop 3'!$C$58=Carbon!$B89,'Crop 3'!$V$58*VLOOKUP('Crop 3'!$E$58,Carbon!$AH$4:$AI$10,2,FALSE),0)+IF('Crop 3'!$C$59=Carbon!$B89,'Crop 3'!$V$59*VLOOKUP('Crop 3'!$E$59,Carbon!$AH$4:$AI$10,2,FALSE),0)+IF('Crop 3'!$C$62=Carbon!$B89,'Crop 3'!$V$62*VLOOKUP('Crop 3'!$E$62,Carbon!$AH$4:$AI$10,2,FALSE),0)+IF('Crop 3'!$C$63=Carbon!$B89,'Crop 3'!$V$63*VLOOKUP('Crop 3'!$E$63,Carbon!$AH$4:$AI$10,2,FALSE),0)+IF('Crop 3'!$C$64=Carbon!$B89,'Crop 3'!$V$64*VLOOKUP('Crop 3'!$E$64,Carbon!$AH$4:$AI$10,2,FALSE),0)+IF('Crop 3'!$C$65=Carbon!$B89,'Crop 3'!$V$65*VLOOKUP('Crop 3'!$E$65,Carbon!$AH$4:$AI$10,2,FALSE),0))*$AL$20,2)","v":0},{"$f":"Q89*Inputs!$D$17","v":0},{"$f":"ROUND(T89/Inputs!D$19,2)","v":0},0,null,null,0,{"$f":"W89*Inputs!$D$13","v":0},0,{"$f":"Y89*Inputs!$D$13","v":0},0,{"$f":"AA89*Inputs!$D$13","v":0},{"$f":"ROUND(AD89/Inputs!D$19,2)","v":0},0]
[null,{"$f":"Defaults!AH56","v":"Fierce"},{"$f":"ROUND((IF('Crop 1'!$C$14=Carbon!$B90,'Crop 1'!$L$14*VLOOKUP('Crop 1'!$E$14,Carbon!$AH$4:$AI$10,2,FALSE),0)+IF('Crop 1'!$C$15=Carbon!$B90,'Crop 1'!$L$15*VLOOKUP('Crop 1'!$E$15,Carbon!$AH$4:$AI$10,2,FALSE),0)+IF('Crop 1'!$C$16=Carbon!$B90,'Crop 1'!$L$16*VLOOKUP('Crop 1'!$E$16,Carbon!$AH$4:$AI$10,2,FALSE),0)+IF('Crop 1'!$C$19=Carbon!$B90,'Crop 1'!$L$19*VLOOKUP('Crop 1'!$E$19,Carbon!$AH$4:$AI$10,2,FALSE),0)+IF('Crop 1'!$C$20=Carbon!$B90,'Crop 1'!$L$20*VLOOKUP('Crop 1'!$E$20,Carbon!$AH$4:$AI$10,2,FALSE),0)+IF('Crop 1'!$C$21=Carbon!$B90,'Crop 1'!$L$21*VLOOKUP('Crop 1'!$E$21,Carbon!$AH$4:$AI$10,2,FALSE),0)+IF('Crop 1'!$C$49=Carbon!$B90,'Crop 1'!$L$49*VLOOKUP('Crop 1'!$E$49,Carbon!$AH$4:$AI$10,2,FALSE),0)+IF('Crop 1'!$C$50=Carbon!$B90,'Crop 1'!$L$50*VLOOKUP('Crop 1'!$E$50,Carbon!$AH$4:$AI$10,2,FALSE),0)+IF('Crop 1'!$C$51=Carbon!$B90,'Crop 1'!$L$51*VLOOKUP('Crop 1'!$E$51,Carbon!$AH$4:$AI$10,2,FALSE),0)+IF('Crop 1'!$C$52=Carbon!$B90,'Crop 1'!$L$52*VLOOKUP('Crop 1'!$E$52,Carbon!$AH$4:$AI$10,2,FALSE),0)+IF('Crop 1'!$C$53=Carbon!$B90,'Crop 1'!$L$53*VLOOKUP('Crop 1'!$E$53,Carbon!$AH$4:$AI$10,2,FALSE),0)+IF('Crop 1'!$C$56=Carbon!$B90,'Crop 1'!$L$56*VLOOKUP('Crop 1'!$E$56,Carbon!$AH$4:$AI$10,2,FALSE),0)+IF('Crop 1'!$C$57=Carbon!$B90,'Crop 1'!$L$57*VLOOKUP('Crop 1'!$E$57,Carbon!$AH$4:$AI$10,2,FALSE),0)+IF('Crop 1'!$C$58=Carbon!$B90,'Crop 1'!$L$58*VLOOKUP('Crop 1'!$E$58,Carbon!$AH$4:$AI$10,2,FALSE),0)+IF('Crop 1'!$C$59=Carbon!$B90,'Crop 1'!$L$59*VLOOKUP('Crop 1'!$E$59,Carbon!$AH$4:$AI$10,2,FALSE),0)+IF('Crop 1'!$C$62=Carbon!$B90,'Crop 1'!$L$62*VLOOKUP('Crop 1'!$E$62,Carbon!$AH$4:$AI$10,2,FALSE),0)+IF('Crop 1'!$C$63=Carbon!$B90,'Crop 1'!$L$63*VLOOKUP('Crop 1'!$E$63,Carbon!$AH$4:$AI$10,2,FALSE),0)+IF('Crop 1'!$C$64=Carbon!$B90,'Crop 1'!$L$64*VLOOKUP('Crop 1'!$E$64,Carbon!$AH$4:$AI$10,2,FALSE),0)+IF('Crop 1'!$C$65=Carbon!$B90,'Crop 1'!$L$65*VLOOKUP('Crop 1'!$E$65,Carbon!$AH$4:$AI$10,2,FALSE),0))*$AL$20,2)","v":0},{"$f":"C90*Inputs!$D$13","v":0},{"$f":"ROUND((IF('Crop 2'!$C$14=Carbon!$B90,'Crop 2'!$L$14*VLOOKUP('Crop 2'!$E$14,Carbon!$AH$4:$AI$10,2,FALSE),0)+IF('Crop 2'!$C$15=Carbon!$B90,'Crop 2'!$L$15*VLOOKUP('Crop 2'!$E$15,Carbon!$AH$4:$AI$10,2,FALSE),0)+IF('Crop 2'!$C$16=Carbon!$B90,'Crop 2'!$L$16*VLOOKUP('Crop 2'!$E$16,Carbon!$AH$4:$AI$10,2,FALSE),0)+IF('Crop 2'!$C$19=Carbon!$B90,'Crop 2'!$L$19*VLOOKUP('Crop 2'!$E$19,Carbon!$AH$4:$AI$10,2,FALSE),0)+IF('Crop 2'!$C$20=Carbon!$B90,'Crop 2'!$L$20*VLOOKUP('Crop 2'!$E$20,Carbon!$AH$4:$AI$10,2,FALSE),0)+IF('Crop 2'!$C$21=Carbon!$B90,'Crop 2'!$L$21*VLOOKUP('Crop 2'!$E$21,Carbon!$AH$4:$AI$10,2,FALSE),0)+IF('Crop 2'!$C$49=Carbon!$B90,'Crop 2'!$L$49*VLOOKUP('Crop 2'!$E$49,Carbon!$AH$4:$AI$10,2,FALSE),0)+IF('Crop 2'!$C$50=Carbon!$B90,'Crop 2'!$L$50*VLOOKUP('Crop 2'!$E$50,Carbon!$AH$4:$AI$10,2,FALSE),0)+IF('Crop 2'!$C$51=Carbon!$B90,'Crop 2'!$L$51*VLOOKUP('Crop 2'!$E$51,Carbon!$AH$4:$AI$10,2,FALSE),0)+IF('Crop 2'!$C$52=Carbon!$B90,'Crop 2'!$L$52*VLOOKUP('Crop 2'!$E$52,Carbon!$AH$4:$AI$10,2,FALSE),0)+IF('Crop 2'!$C$53=Carbon!$B90,'Crop 2'!$L$53*VLOOKUP('Crop 2'!$E$53,Carbon!$AH$4:$AI$10,2,FALSE),0)+IF('Crop 2'!$C$56=Carbon!$B90,'Crop 2'!$L$56*VLOOKUP('Crop 2'!$E$56,Carbon!$AH$4:$AI$10,2,FALSE),0)+IF('Crop 2'!$C$57=Carbon!$B90,'Crop 2'!$L$57*VLOOKUP('Crop 2'!$E$57,Carbon!$AH$4:$AI$10,2,FALSE),0)+IF('Crop 2'!$C$58=Carbon!$B90,'Crop 2'!$L$58*VLOOKUP('Crop 2'!$E$58,Carbon!$AH$4:$AI$10,2,FALSE),0)+IF('Crop 2'!$C$59=Carbon!$B90,'Crop 2'!$L$59*VLOOKUP('Crop 2'!$E$59,Carbon!$AH$4:$AI$10,2,FALSE),0)+IF('Crop 2'!$C$62=Carbon!$B90,'Crop 2'!$L$62*VLOOKUP('Crop 2'!$E$62,Carbon!$AH$4:$AI$10,2,FALSE),0)+IF('Crop 2'!$C$63=Carbon!$B90,'Crop 2'!$L$63*VLOOKUP('Crop 2'!$E$63,Carbon!$AH$4:$AI$10,2,FALSE),0)+IF('Crop 2'!$C$64=Carbon!$B90,'Crop 2'!$L$64*VLOOKUP('Crop 2'!$E$64,Carbon!$AH$4:$AI$10,2,FALSE),0)+IF('Crop 2'!$C$65=Carbon!$B90,'Crop 2'!$L$65*VLOOKUP('Crop 2'!$E$65,Carbon!$AH$4:$AI$10,2,FALSE),0))*$AL$20,2)","v":0},{"$f":"E90*Inputs!$D$15","v":0},{"$f":"ROUND((IF('Crop 3'!$C$14=Carbon!$B90,'Crop 3'!$L$14*VLOOKUP('Crop 3'!$E$14,Carbon!$AH$4:$AI$10,2,FALSE),0)+IF('Crop 3'!$C$15=Carbon!$B90,'Crop 3'!$L$15*VLOOKUP('Crop 3'!$E$15,Carbon!$AH$4:$AI$10,2,FALSE),0)+IF('Crop 3'!$C$16=Carbon!$B90,'Crop 3'!$L$16*VLOOKUP('Crop 3'!$E$16,Carbon!$AH$4:$AI$10,2,FALSE),0)+IF('Crop 3'!$C$19=Carbon!$B90,'Crop 3'!$L$19*VLOOKUP('Crop 3'!$E$19,Carbon!$AH$4:$AI$10,2,FALSE),0)+IF('Crop 3'!$C$20=Carbon!$B90,'Crop 3'!$L$20*VLOOKUP('Crop 3'!$E$20,Carbon!$AH$4:$AI$10,2,FALSE),0)+IF('Crop 3'!$C$21=Carbon!$B90,'Crop 3'!$L$21*VLOOKUP('Crop 3'!$E$21,Carbon!$AH$4:$AI$10,2,FALSE),0)+IF('Crop 3'!$C$49=Carbon!$B90,'Crop 3'!$L$49*VLOOKUP('Crop 3'!$E$49,Carbon!$AH$4:$AI$10,2,FALSE),0)+IF('Crop 3'!$C$50=Carbon!$B90,'Crop 3'!$L$50*VLOOKUP('Crop 3'!$E$50,Carbon!$AH$4:$AI$10,2,FALSE),0)+IF('Crop 3'!$C$51=Carbon!$B90,'Crop 3'!$L$51*VLOOKUP('Crop 3'!$E$51,Carbon!$AH$4:$AI$10,2,FALSE),0)+IF('Crop 3'!$C$52=Carbon!$B90,'Crop 3'!$L$52*VLOOKUP('Crop 3'!$E$52,Carbon!$AH$4:$AI$10,2,FALSE),0)+IF('Crop 3'!$C$53=Carbon!$B90,'Crop 3'!$L$53*VLOOKUP('Crop 3'!$E$53,Carbon!$AH$4:$AI$10,2,FALSE),0)+IF('Crop 3'!$C$56=Carbon!$B90,'Crop 3'!$L$56*VLOOKUP('Crop 3'!$E$56,Carbon!$AH$4:$AI$10,2,FALSE),0)+IF('Crop 3'!$C$57=Carbon!$B90,'Crop 3'!$L$57*VLOOKUP('Crop 3'!$E$57,Carbon!$AH$4:$AI$10,2,FALSE),0)+IF('Crop 3'!$C$58=Carbon!$B90,'Crop 3'!$L$58*VLOOKUP('Crop 3'!$E$58,Carbon!$AH$4:$AI$10,2,FALSE),0)+IF('Crop 3'!$C$59=Carbon!$B90,'Crop 3'!$L$59*VLOOKUP('Crop 3'!$E$59,Carbon!$AH$4:$AI$10,2,FALSE),0)+IF('Crop 3'!$C$62=Carbon!$B90,'Crop 3'!$L$62*VLOOKUP('Crop 3'!$E$62,Carbon!$AH$4:$AI$10,2,FALSE),0)+IF('Crop 3'!$C$63=Carbon!$B90,'Crop 3'!$L$63*VLOOKUP('Crop 3'!$E$63,Carbon!$AH$4:$AI$10,2,FALSE),0)+IF('Crop 3'!$C$64=Carbon!$B90,'Crop 3'!$L$64*VLOOKUP('Crop 3'!$E$64,Carbon!$AH$4:$AI$10,2,FALSE),0)+IF('Crop 3'!$C$65=Carbon!$B90,'Crop 3'!$L$65*VLOOKUP('Crop 3'!$E$65,Carbon!$AH$4:$AI$10,2,FALSE),0))*$AL$20,2)","v":0},{"$f":"G90*Inputs!$D$17","v":0},{"$f":"ROUND(J90/Inputs!D$19,2)","v":0},0,null,null,{"$f":"ROUND((IF('Crop 1'!$C$14=Carbon!$B90,'Crop 1'!$V$14*VLOOKUP('Crop 1'!$E$14,Carbon!$AH$4:$AI$10,2,FALSE),0)+IF('Crop 1'!$C$15=Carbon!$B90,'Crop 1'!$V$15*VLOOKUP('Crop 1'!$E$15,Carbon!$AH$4:$AI$10,2,FALSE),0)+IF('Crop 1'!$C$16=Carbon!$B90,'Crop 1'!$V$16*VLOOKUP('Crop 1'!$E$16,Carbon!$AH$4:$AI$10,2,FALSE),0)+IF('Crop 1'!$C$19=Carbon!$B90,'Crop 1'!$V$19*VLOOKUP('Crop 1'!$E$19,Carbon!$AH$4:$AI$10,2,FALSE),0)+IF('Crop 1'!$C$20=Carbon!$B90,'Crop 1'!$V$20*VLOOKUP('Crop 1'!$E$20,Carbon!$AH$4:$AI$10,2,FALSE),0)+IF('Crop 1'!$C$21=Carbon!$B90,'Crop 1'!$V$21*VLOOKUP('Crop 1'!$E$21,Carbon!$AH$4:$AI$10,2,FALSE),0)+IF('Crop 1'!$C$49=Carbon!$B90,'Crop 1'!$V$49*VLOOKUP('Crop 1'!$E$49,Carbon!$AH$4:$AI$10,2,FALSE),0)+IF('Crop 1'!$C$50=Carbon!$B90,'Crop 1'!$V$50*VLOOKUP('Crop 1'!$E$50,Carbon!$AH$4:$AI$10,2,FALSE),0)+IF('Crop 1'!$C$51=Carbon!$B90,'Crop 1'!$V$51*VLOOKUP('Crop 1'!$E$51,Carbon!$AH$4:$AI$10,2,FALSE),0)+IF('Crop 1'!$C$52=Carbon!$B90,'Crop 1'!$V$52*VLOOKUP('Crop 1'!$E$52,Carbon!$AH$4:$AI$10,2,FALSE),0)+IF('Crop 1'!$C$53=Carbon!$B90,'Crop 1'!$V$53*VLOOKUP('Crop 1'!$E$53,Carbon!$AH$4:$AI$10,2,FALSE),0)+IF('Crop 1'!$C$56=Carbon!$B90,'Crop 1'!$V$56*VLOOKUP('Crop 1'!$E$56,Carbon!$AH$4:$AI$10,2,FALSE),0)+IF('Crop 1'!$C$57=Carbon!$B90,'Crop 1'!$V$57*VLOOKUP('Crop 1'!$E$57,Carbon!$AH$4:$AI$10,2,FALSE),0)+IF('Crop 1'!$C$58=Carbon!$B90,'Crop 1'!$V$58*VLOOKUP('Crop 1'!$E$58,Carbon!$AH$4:$AI$10,2,FALSE),0)+IF('Crop 1'!$C$59=Carbon!$B90,'Crop 1'!$V$59*VLOOKUP('Crop 1'!$E$59,Carbon!$AH$4:$AI$10,2,FALSE),0)+IF('Crop 1'!$C$62=Carbon!$B90,'Crop 1'!$V$62*VLOOKUP('Crop 1'!$E$62,Carbon!$AH$4:$AI$10,2,FALSE),0)+IF('Crop 1'!$C$63=Carbon!$B90,'Crop 1'!$V$63*VLOOKUP('Crop 1'!$E$63,Carbon!$AH$4:$AI$10,2,FALSE),0)+IF('Crop 1'!$C$64=Carbon!$B90,'Crop 1'!$V$64*VLOOKUP('Crop 1'!$E$64,Carbon!$AH$4:$AI$10,2,FALSE),0)+IF('Crop 1'!$C$65=Carbon!$B90,'Crop 1'!$V$65*VLOOKUP('Crop 1'!$E$65,Carbon!$AH$4:$AI$10,2,FALSE),0))*$AL$20,2)","v":0},{"$f":"M90*Inputs!$D$13","v":0},{"$f":"ROUND((IF('Crop 2'!$C$14=Carbon!$B90,'Crop 2'!$V$14*VLOOKUP('Crop 2'!$E$14,Carbon!$AH$4:$AI$10,2,FALSE),0)+IF('Crop 2'!$C$15=Carbon!$B90,'Crop 2'!$V$15*VLOOKUP('Crop 2'!$E$15,Carbon!$AH$4:$AI$10,2,FALSE),0)+IF('Crop 2'!$C$16=Carbon!$B90,'Crop 2'!$V$16*VLOOKUP('Crop 2'!$E$16,Carbon!$AH$4:$AI$10,2,FALSE),0)+IF('Crop 2'!$C$19=Carbon!$B90,'Crop 2'!$V$19*VLOOKUP('Crop 2'!$E$19,Carbon!$AH$4:$AI$10,2,FALSE),0)+IF('Crop 2'!$C$20=Carbon!$B90,'Crop 2'!$V$20*VLOOKUP('Crop 2'!$E$20,Carbon!$AH$4:$AI$10,2,FALSE),0)+IF('Crop 2'!$C$21=Carbon!$B90,'Crop 2'!$V$21*VLOOKUP('Crop 2'!$E$21,Carbon!$AH$4:$AI$10,2,FALSE),0)+IF('Crop 2'!$C$49=Carbon!$B90,'Crop 2'!$V$49*VLOOKUP('Crop 2'!$E$49,Carbon!$AH$4:$AI$10,2,FALSE),0)+IF('Crop 2'!$C$50=Carbon!$B90,'Crop 2'!$V$50*VLOOKUP('Crop 2'!$E$50,Carbon!$AH$4:$AI$10,2,FALSE),0)+IF('Crop 2'!$C$51=Carbon!$B90,'Crop 2'!$V$51*VLOOKUP('Crop 2'!$E$51,Carbon!$AH$4:$AI$10,2,FALSE),0)+IF('Crop 2'!$C$52=Carbon!$B90,'Crop 2'!$V$52*VLOOKUP('Crop 2'!$E$52,Carbon!$AH$4:$AI$10,2,FALSE),0)+IF('Crop 2'!$C$53=Carbon!$B90,'Crop 2'!$V$53*VLOOKUP('Crop 2'!$E$53,Carbon!$AH$4:$AI$10,2,FALSE),0)+IF('Crop 2'!$C$56=Carbon!$B90,'Crop 2'!$V$56*VLOOKUP('Crop 2'!$E$56,Carbon!$AH$4:$AI$10,2,FALSE),0)+IF('Crop 2'!$C$57=Carbon!$B90,'Crop 2'!$V$57*VLOOKUP('Crop 2'!$E$57,Carbon!$AH$4:$AI$10,2,FALSE),0)+IF('Crop 2'!$C$58=Carbon!$B90,'Crop 2'!$V$58*VLOOKUP('Crop 2'!$E$58,Carbon!$AH$4:$AI$10,2,FALSE),0)+IF('Crop 2'!$C$59=Carbon!$B90,'Crop 2'!$V$59*VLOOKUP('Crop 2'!$E$59,Carbon!$AH$4:$AI$10,2,FALSE),0)+IF('Crop 2'!$C$62=Carbon!$B90,'Crop 2'!$V$62*VLOOKUP('Crop 2'!$E$62,Carbon!$AH$4:$AI$10,2,FALSE),0)+IF('Crop 2'!$C$63=Carbon!$B90,'Crop 2'!$V$63*VLOOKUP('Crop 2'!$E$63,Carbon!$AH$4:$AI$10,2,FALSE),0)+IF('Crop 2'!$C$64=Carbon!$B90,'Crop 2'!$V$64*VLOOKUP('Crop 2'!$E$64,Carbon!$AH$4:$AI$10,2,FALSE),0)+IF('Crop 2'!$C$65=Carbon!$B90,'Crop 2'!$V$65*VLOOKUP('Crop 2'!$E$65,Carbon!$AH$4:$AI$10,2,FALSE),0))*$AL$20,2)","v":0},{"$f":"O90*Inputs!$D$15","v":0},{"$f":"ROUND((IF('Crop 3'!$C$14=Carbon!$B90,'Crop 3'!$V$14*VLOOKUP('Crop 3'!$E$14,Carbon!$AH$4:$AI$10,2,FALSE),0)+IF('Crop 3'!$C$15=Carbon!$B90,'Crop 3'!$V$15*VLOOKUP('Crop 3'!$E$15,Carbon!$AH$4:$AI$10,2,FALSE),0)+IF('Crop 3'!$C$16=Carbon!$B90,'Crop 3'!$V$16*VLOOKUP('Crop 3'!$E$16,Carbon!$AH$4:$AI$10,2,FALSE),0)+IF('Crop 3'!$C$19=Carbon!$B90,'Crop 3'!$V$19*VLOOKUP('Crop 3'!$E$19,Carbon!$AH$4:$AI$10,2,FALSE),0)+IF('Crop 3'!$C$20=Carbon!$B90,'Crop 3'!$V$20*VLOOKUP('Crop 3'!$E$20,Carbon!$AH$4:$AI$10,2,FALSE),0)+IF('Crop 3'!$C$21=Carbon!$B90,'Crop 3'!$V$21*VLOOKUP('Crop 3'!$E$21,Carbon!$AH$4:$AI$10,2,FALSE),0)+IF('Crop 3'!$C$49=Carbon!$B90,'Crop 3'!$V$49*VLOOKUP('Crop 3'!$E$49,Carbon!$AH$4:$AI$10,2,FALSE),0)+IF('Crop 3'!$C$50=Carbon!$B90,'Crop 3'!$V$50*VLOOKUP('Crop 3'!$E$50,Carbon!$AH$4:$AI$10,2,FALSE),0)+IF('Crop 3'!$C$51=Carbon!$B90,'Crop 3'!$V$51*VLOOKUP('Crop 3'!$E$51,Carbon!$AH$4:$AI$10,2,FALSE),0)+IF('Crop 3'!$C$52=Carbon!$B90,'Crop 3'!$V$52*VLOOKUP('Crop 3'!$E$52,Carbon!$AH$4:$AI$10,2,FALSE),0)+IF('Crop 3'!$C$53=Carbon!$B90,'Crop 3'!$V$53*VLOOKUP('Crop 3'!$E$53,Carbon!$AH$4:$AI$10,2,FALSE),0)+IF('Crop 3'!$C$56=Carbon!$B90,'Crop 3'!$V$56*VLOOKUP('Crop 3'!$E$56,Carbon!$AH$4:$AI$10,2,FALSE),0)+IF('Crop 3'!$C$57=Carbon!$B90,'Crop 3'!$V$57*VLOOKUP('Crop 3'!$E$57,Carbon!$AH$4:$AI$10,2,FALSE),0)+IF('Crop 3'!$C$58=Carbon!$B90,'Crop 3'!$V$58*VLOOKUP('Crop 3'!$E$58,Carbon!$AH$4:$AI$10,2,FALSE),0)+IF('Crop 3'!$C$59=Carbon!$B90,'Crop 3'!$V$59*VLOOKUP('Crop 3'!$E$59,Carbon!$AH$4:$AI$10,2,FALSE),0)+IF('Crop 3'!$C$62=Carbon!$B90,'Crop 3'!$V$62*VLOOKUP('Crop 3'!$E$62,Carbon!$AH$4:$AI$10,2,FALSE),0)+IF('Crop 3'!$C$63=Carbon!$B90,'Crop 3'!$V$63*VLOOKUP('Crop 3'!$E$63,Carbon!$AH$4:$AI$10,2,FALSE),0)+IF('Crop 3'!$C$64=Carbon!$B90,'Crop 3'!$V$64*VLOOKUP('Crop 3'!$E$64,Carbon!$AH$4:$AI$10,2,FALSE),0)+IF('Crop 3'!$C$65=Carbon!$B90,'Crop 3'!$V$65*VLOOKUP('Crop 3'!$E$65,Carbon!$AH$4:$AI$10,2,FALSE),0))*$AL$20,2)","v":0},{"$f":"Q90*Inputs!$D$17","v":0},{"$f":"ROUND(T90/Inputs!D$19,2)","v":0},0,null,null,0,{"$f":"W90*Inputs!$D$13","v":0},0,{"$f":"Y90*Inputs!$D$13","v":0},0,{"$f":"AA90*Inputs!$D$13","v":0},{"$f":"ROUND(AD90/Inputs!D$19,2)","v":0},0]
[null,{"$f":"Defaults!AH57","v":"Finesse"},{"$f":"ROUND((IF('Crop 1'!$C$14=Carbon!$B91,'Crop 1'!$L$14*VLOOKUP('Crop 1'!$E$14,Carbon!$AH$4:$AI$10,2,FALSE),0)+IF('Crop 1'!$C$15=Carbon!$B91,'Crop 1'!$L$15*VLOOKUP('Crop 1'!$E$15,Carbon!$AH$4:$AI$10,2,FALSE),0)+IF('Crop 1'!$C$16=Carbon!$B91,'Crop 1'!$L$16*VLOOKUP('Crop 1'!$E$16,Carbon!$AH$4:$AI$10,2,FALSE),0)+IF('Crop 1'!$C$19=Carbon!$B91,'Crop 1'!$L$19*VLOOKUP('Crop 1'!$E$19,Carbon!$AH$4:$AI$10,2,FALSE),0)+IF('Crop 1'!$C$20=Carbon!$B91,'Crop 1'!$L$20*VLOOKUP('Crop 1'!$E$20,Carbon!$AH$4:$AI$10,2,FALSE),0)+IF('Crop 1'!$C$21=Carbon!$B91,'Crop 1'!$L$21*VLOOKUP('Crop 1'!$E$21,Carbon!$AH$4:$AI$10,2,FALSE),0)+IF('Crop 1'!$C$49=Carbon!$B91,'Crop 1'!$L$49*VLOOKUP('Crop 1'!$E$49,Carbon!$AH$4:$AI$10,2,FALSE),0)+IF('Crop 1'!$C$50=Carbon!$B91,'Crop 1'!$L$50*VLOOKUP('Crop 1'!$E$50,Carbon!$AH$4:$AI$10,2,FALSE),0)+IF('Crop 1'!$C$51=Carbon!$B91,'Crop 1'!$L$51*VLOOKUP('Crop 1'!$E$51,Carbon!$AH$4:$AI$10,2,FALSE),0)+IF('Crop 1'!$C$52=Carbon!$B91,'Crop 1'!$L$52*VLOOKUP('Crop 1'!$E$52,Carbon!$AH$4:$AI$10,2,FALSE),0)+IF('Crop 1'!$C$53=Carbon!$B91,'Crop 1'!$L$53*VLOOKUP('Crop 1'!$E$53,Carbon!$AH$4:$AI$10,2,FALSE),0)+IF('Crop 1'!$C$56=Carbon!$B91,'Crop 1'!$L$56*VLOOKUP('Crop 1'!$E$56,Carbon!$AH$4:$AI$10,2,FALSE),0)+IF('Crop 1'!$C$57=Carbon!$B91,'Crop 1'!$L$57*VLOOKUP('Crop 1'!$E$57,Carbon!$AH$4:$AI$10,2,FALSE),0)+IF('Crop 1'!$C$58=Carbon!$B91,'Crop 1'!$L$58*VLOOKUP('Crop 1'!$E$58,Carbon!$AH$4:$AI$10,2,FALSE),0)+IF('Crop 1'!$C$59=Carbon!$B91,'Crop 1'!$L$59*VLOOKUP('Crop 1'!$E$59,Carbon!$AH$4:$AI$10,2,FALSE),0)+IF('Crop 1'!$C$62=Carbon!$B91,'Crop 1'!$L$62*VLOOKUP('Crop 1'!$E$62,Carbon!$AH$4:$AI$10,2,FALSE),0)+IF('Crop 1'!$C$63=Carbon!$B91,'Crop 1'!$L$63*VLOOKUP('Crop 1'!$E$63,Carbon!$AH$4:$AI$10,2,FALSE),0)+IF('Crop 1'!$C$64=Carbon!$B91,'Crop 1'!$L$64*VLOOKUP('Crop 1'!$E$64,Carbon!$AH$4:$AI$10,2,FALSE),0)+IF('Crop 1'!$C$65=Carbon!$B91,'Crop 1'!$L$65*VLOOKUP('Crop 1'!$E$65,Carbon!$AH$4:$AI$10,2,FALSE),0))*$AL$20,2)","v":0},{"$f":"C91*Inputs!$D$13","v":0},{"$f":"ROUND((IF('Crop 2'!$C$14=Carbon!$B91,'Crop 2'!$L$14*VLOOKUP('Crop 2'!$E$14,Carbon!$AH$4:$AI$10,2,FALSE),0)+IF('Crop 2'!$C$15=Carbon!$B91,'Crop 2'!$L$15*VLOOKUP('Crop 2'!$E$15,Carbon!$AH$4:$AI$10,2,FALSE),0)+IF('Crop 2'!$C$16=Carbon!$B91,'Crop 2'!$L$16*VLOOKUP('Crop 2'!$E$16,Carbon!$AH$4:$AI$10,2,FALSE),0)+IF('Crop 2'!$C$19=Carbon!$B91,'Crop 2'!$L$19*VLOOKUP('Crop 2'!$E$19,Carbon!$AH$4:$AI$10,2,FALSE),0)+IF('Crop 2'!$C$20=Carbon!$B91,'Crop 2'!$L$20*VLOOKUP('Crop 2'!$E$20,Carbon!$AH$4:$AI$10,2,FALSE),0)+IF('Crop 2'!$C$21=Carbon!$B91,'Crop 2'!$L$21*VLOOKUP('Crop 2'!$E$21,Carbon!$AH$4:$AI$10,2,FALSE),0)+IF('Crop 2'!$C$49=Carbon!$B91,'Crop 2'!$L$49*VLOOKUP('Crop 2'!$E$49,Carbon!$AH$4:$AI$10,2,FALSE),0)+IF('Crop 2'!$C$50=Carbon!$B91,'Crop 2'!$L$50*VLOOKUP('Crop 2'!$E$50,Carbon!$AH$4:$AI$10,2,FALSE),0)+IF('Crop 2'!$C$51=Carbon!$B91,'Crop 2'!$L$51*VLOOKUP('Crop 2'!$E$51,Carbon!$AH$4:$AI$10,2,FALSE),0)+IF('Crop 2'!$C$52=Carbon!$B91,'Crop 2'!$L$52*VLOOKUP('Crop 2'!$E$52,Carbon!$AH$4:$AI$10,2,FALSE),0)+IF('Crop 2'!$C$53=Carbon!$B91,'Crop 2'!$L$53*VLOOKUP('Crop 2'!$E$53,Carbon!$AH$4:$AI$10,2,FALSE),0)+IF('Crop 2'!$C$56=Carbon!$B91,'Crop 2'!$L$56*VLOOKUP('Crop 2'!$E$56,Carbon!$AH$4:$AI$10,2,FALSE),0)+IF('Crop 2'!$C$57=Carbon!$B91,'Crop 2'!$L$57*VLOOKUP('Crop 2'!$E$57,Carbon!$AH$4:$AI$10,2,FALSE),0)+IF('Crop 2'!$C$58=Carbon!$B91,'Crop 2'!$L$58*VLOOKUP('Crop 2'!$E$58,Carbon!$AH$4:$AI$10,2,FALSE),0)+IF('Crop 2'!$C$59=Carbon!$B91,'Crop 2'!$L$59*VLOOKUP('Crop 2'!$E$59,Carbon!$AH$4:$AI$10,2,FALSE),0)+IF('Crop 2'!$C$62=Carbon!$B91,'Crop 2'!$L$62*VLOOKUP('Crop 2'!$E$62,Carbon!$AH$4:$AI$10,2,FALSE),0)+IF('Crop 2'!$C$63=Carbon!$B91,'Crop 2'!$L$63*VLOOKUP('Crop 2'!$E$63,Carbon!$AH$4:$AI$10,2,FALSE),0)+IF('Crop 2'!$C$64=Carbon!$B91,'Crop 2'!$L$64*VLOOKUP('Crop 2'!$E$64,Carbon!$AH$4:$AI$10,2,FALSE),0)+IF('Crop 2'!$C$65=Carbon!$B91,'Crop 2'!$L$65*VLOOKUP('Crop 2'!$E$65,Carbon!$AH$4:$AI$10,2,FALSE),0))*$AL$20,2)","v":0},{"$f":"E91*Inputs!$D$15","v":0},{"$f":"ROUND((IF('Crop 3'!$C$14=Carbon!$B91,'Crop 3'!$L$14*VLOOKUP('Crop 3'!$E$14,Carbon!$AH$4:$AI$10,2,FALSE),0)+IF('Crop 3'!$C$15=Carbon!$B91,'Crop 3'!$L$15*VLOOKUP('Crop 3'!$E$15,Carbon!$AH$4:$AI$10,2,FALSE),0)+IF('Crop 3'!$C$16=Carbon!$B91,'Crop 3'!$L$16*VLOOKUP('Crop 3'!$E$16,Carbon!$AH$4:$AI$10,2,FALSE),0)+IF('Crop 3'!$C$19=Carbon!$B91,'Crop 3'!$L$19*VLOOKUP('Crop 3'!$E$19,Carbon!$AH$4:$AI$10,2,FALSE),0)+IF('Crop 3'!$C$20=Carbon!$B91,'Crop 3'!$L$20*VLOOKUP('Crop 3'!$E$20,Carbon!$AH$4:$AI$10,2,FALSE),0)+IF('Crop 3'!$C$21=Carbon!$B91,'Crop 3'!$L$21*VLOOKUP('Crop 3'!$E$21,Carbon!$AH$4:$AI$10,2,FALSE),0)+IF('Crop 3'!$C$49=Carbon!$B91,'Crop 3'!$L$49*VLOOKUP('Crop 3'!$E$49,Carbon!$AH$4:$AI$10,2,FALSE),0)+IF('Crop 3'!$C$50=Carbon!$B91,'Crop 3'!$L$50*VLOOKUP('Crop 3'!$E$50,Carbon!$AH$4:$AI$10,2,FALSE),0)+IF('Crop 3'!$C$51=Carbon!$B91,'Crop 3'!$L$51*VLOOKUP('Crop 3'!$E$51,Carbon!$AH$4:$AI$10,2,FALSE),0)+IF('Crop 3'!$C$52=Carbon!$B91,'Crop 3'!$L$52*VLOOKUP('Crop 3'!$E$52,Carbon!$AH$4:$AI$10,2,FALSE),0)+IF('Crop 3'!$C$53=Carbon!$B91,'Crop 3'!$L$53*VLOOKUP('Crop 3'!$E$53,Carbon!$AH$4:$AI$10,2,FALSE),0)+IF('Crop 3'!$C$56=Carbon!$B91,'Crop 3'!$L$56*VLOOKUP('Crop 3'!$E$56,Carbon!$AH$4:$AI$10,2,FALSE),0)+IF('Crop 3'!$C$57=Carbon!$B91,'Crop 3'!$L$57*VLOOKUP('Crop 3'!$E$57,Carbon!$AH$4:$AI$10,2,FALSE),0)+IF('Crop 3'!$C$58=Carbon!$B91,'Crop 3'!$L$58*VLOOKUP('Crop 3'!$E$58,Carbon!$AH$4:$AI$10,2,FALSE),0)+IF('Crop 3'!$C$59=Carbon!$B91,'Crop 3'!$L$59*VLOOKUP('Crop 3'!$E$59,Carbon!$AH$4:$AI$10,2,FALSE),0)+IF('Crop 3'!$C$62=Carbon!$B91,'Crop 3'!$L$62*VLOOKUP('Crop 3'!$E$62,Carbon!$AH$4:$AI$10,2,FALSE),0)+IF('Crop 3'!$C$63=Carbon!$B91,'Crop 3'!$L$63*VLOOKUP('Crop 3'!$E$63,Carbon!$AH$4:$AI$10,2,FALSE),0)+IF('Crop 3'!$C$64=Carbon!$B91,'Crop 3'!$L$64*VLOOKUP('Crop 3'!$E$64,Carbon!$AH$4:$AI$10,2,FALSE),0)+IF('Crop 3'!$C$65=Carbon!$B91,'Crop 3'!$L$65*VLOOKUP('Crop 3'!$E$65,Carbon!$AH$4:$AI$10,2,FALSE),0))*$AL$20,2)","v":0},{"$f":"G91*Inputs!$D$17","v":0},{"$f":"ROUND(J91/Inputs!D$19,2)","v":0},0,null,null,{"$f":"ROUND((IF('Crop 1'!$C$14=Carbon!$B91,'Crop 1'!$V$14*VLOOKUP('Crop 1'!$E$14,Carbon!$AH$4:$AI$10,2,FALSE),0)+IF('Crop 1'!$C$15=Carbon!$B91,'Crop 1'!$V$15*VLOOKUP('Crop 1'!$E$15,Carbon!$AH$4:$AI$10,2,FALSE),0)+IF('Crop 1'!$C$16=Carbon!$B91,'Crop 1'!$V$16*VLOOKUP('Crop 1'!$E$16,Carbon!$AH$4:$AI$10,2,FALSE),0)+IF('Crop 1'!$C$19=Carbon!$B91,'Crop 1'!$V$19*VLOOKUP('Crop 1'!$E$19,Carbon!$AH$4:$AI$10,2,FALSE),0)+IF('Crop 1'!$C$20=Carbon!$B91,'Crop 1'!$V$20*VLOOKUP('Crop 1'!$E$20,Carbon!$AH$4:$AI$10,2,FALSE),0)+IF('Crop 1'!$C$21=Carbon!$B91,'Crop 1'!$V$21*VLOOKUP('Crop 1'!$E$21,Carbon!$AH$4:$AI$10,2,FALSE),0)+IF('Crop 1'!$C$49=Carbon!$B91,'Crop 1'!$V$49*VLOOKUP('Crop 1'!$E$49,Carbon!$AH$4:$AI$10,2,FALSE),0)+IF('Crop 1'!$C$50=Carbon!$B91,'Crop 1'!$V$50*VLOOKUP('Crop 1'!$E$50,Carbon!$AH$4:$AI$10,2,FALSE),0)+IF('Crop 1'!$C$51=Carbon!$B91,'Crop 1'!$V$51*VLOOKUP('Crop 1'!$E$51,Carbon!$AH$4:$AI$10,2,FALSE),0)+IF('Crop 1'!$C$52=Carbon!$B91,'Crop 1'!$V$52*VLOOKUP('Crop 1'!$E$52,Carbon!$AH$4:$AI$10,2,FALSE),0)+IF('Crop 1'!$C$53=Carbon!$B91,'Crop 1'!$V$53*VLOOKUP('Crop 1'!$E$53,Carbon!$AH$4:$AI$10,2,FALSE),0)+IF('Crop 1'!$C$56=Carbon!$B91,'Crop 1'!$V$56*VLOOKUP('Crop 1'!$E$56,Carbon!$AH$4:$AI$10,2,FALSE),0)+IF('Crop 1'!$C$57=Carbon!$B91,'Crop 1'!$V$57*VLOOKUP('Crop 1'!$E$57,Carbon!$AH$4:$AI$10,2,FALSE),0)+IF('Crop 1'!$C$58=Carbon!$B91,'Crop 1'!$V$58*VLOOKUP('Crop 1'!$E$58,Carbon!$AH$4:$AI$10,2,FALSE),0)+IF('Crop 1'!$C$59=Carbon!$B91,'Crop 1'!$V$59*VLOOKUP('Crop 1'!$E$59,Carbon!$AH$4:$AI$10,2,FALSE),0)+IF('Crop 1'!$C$62=Carbon!$B91,'Crop 1'!$V$62*VLOOKUP('Crop 1'!$E$62,Carbon!$AH$4:$AI$10,2,FALSE),0)+IF('Crop 1'!$C$63=Carbon!$B91,'Crop 1'!$V$63*VLOOKUP('Crop 1'!$E$63,Carbon!$AH$4:$AI$10,2,FALSE),0)+IF('Crop 1'!$C$64=Carbon!$B91,'Crop 1'!$V$64*VLOOKUP('Crop 1'!$E$64,Carbon!$AH$4:$AI$10,2,FALSE),0)+IF('Crop 1'!$C$65=Carbon!$B91,'Crop 1'!$V$65*VLOOKUP('Crop 1'!$E$65,Carbon!$AH$4:$AI$10,2,FALSE),0))*$AL$20,2)","v":0},{"$f":"M91*Inputs!$D$13","v":0},{"$f":"ROUND((IF('Crop 2'!$C$14=Carbon!$B91,'Crop 2'!$V$14*VLOOKUP('Crop 2'!$E$14,Carbon!$AH$4:$AI$10,2,FALSE),0)+IF('Crop 2'!$C$15=Carbon!$B91,'Crop 2'!$V$15*VLOOKUP('Crop 2'!$E$15,Carbon!$AH$4:$AI$10,2,FALSE),0)+IF('Crop 2'!$C$16=Carbon!$B91,'Crop 2'!$V$16*VLOOKUP('Crop 2'!$E$16,Carbon!$AH$4:$AI$10,2,FALSE),0)+IF('Crop 2'!$C$19=Carbon!$B91,'Crop 2'!$V$19*VLOOKUP('Crop 2'!$E$19,Carbon!$AH$4:$AI$10,2,FALSE),0)+IF('Crop 2'!$C$20=Carbon!$B91,'Crop 2'!$V$20*VLOOKUP('Crop 2'!$E$20,Carbon!$AH$4:$AI$10,2,FALSE),0)+IF('Crop 2'!$C$21=Carbon!$B91,'Crop 2'!$V$21*VLOOKUP('Crop 2'!$E$21,Carbon!$AH$4:$AI$10,2,FALSE),0)+IF('Crop 2'!$C$49=Carbon!$B91,'Crop 2'!$V$49*VLOOKUP('Crop 2'!$E$49,Carbon!$AH$4:$AI$10,2,FALSE),0)+IF('Crop 2'!$C$50=Carbon!$B91,'Crop 2'!$V$50*VLOOKUP('Crop 2'!$E$50,Carbon!$AH$4:$AI$10,2,FALSE),0)+IF('Crop 2'!$C$51=Carbon!$B91,'Crop 2'!$V$51*VLOOKUP('Crop 2'!$E$51,Carbon!$AH$4:$AI$10,2,FALSE),0)+IF('Crop 2'!$C$52=Carbon!$B91,'Crop 2'!$V$52*VLOOKUP('Crop 2'!$E$52,Carbon!$AH$4:$AI$10,2,FALSE),0)+IF('Crop 2'!$C$53=Carbon!$B91,'Crop 2'!$V$53*VLOOKUP('Crop 2'!$E$53,Carbon!$AH$4:$AI$10,2,FALSE),0)+IF('Crop 2'!$C$56=Carbon!$B91,'Crop 2'!$V$56*VLOOKUP('Crop 2'!$E$56,Carbon!$AH$4:$AI$10,2,FALSE),0)+IF('Crop 2'!$C$57=Carbon!$B91,'Crop 2'!$V$57*VLOOKUP('Crop 2'!$E$57,Carbon!$AH$4:$AI$10,2,FALSE),0)+IF('Crop 2'!$C$58=Carbon!$B91,'Crop 2'!$V$58*VLOOKUP('Crop 2'!$E$58,Carbon!$AH$4:$AI$10,2,FALSE),0)+IF('Crop 2'!$C$59=Carbon!$B91,'Crop 2'!$V$59*VLOOKUP('Crop 2'!$E$59,Carbon!$AH$4:$AI$10,2,FALSE),0)+IF('Crop 2'!$C$62=Carbon!$B91,'Crop 2'!$V$62*VLOOKUP('Crop 2'!$E$62,Carbon!$AH$4:$AI$10,2,FALSE),0)+IF('Crop 2'!$C$63=Carbon!$B91,'Crop 2'!$V$63*VLOOKUP('Crop 2'!$E$63,Carbon!$AH$4:$AI$10,2,FALSE),0)+IF('Crop 2'!$C$64=Carbon!$B91,'Crop 2'!$V$64*VLOOKUP('Crop 2'!$E$64,Carbon!$AH$4:$AI$10,2,FALSE),0)+IF('Crop 2'!$C$65=Carbon!$B91,'Crop 2'!$V$65*VLOOKUP('Crop 2'!$E$65,Carbon!$AH$4:$AI$10,2,FALSE),0))*$AL$20,2)","v":0},{"$f":"O91*Inputs!$D$15","v":0},{"$f":"ROUND((IF('Crop 3'!$C$14=Carbon!$B91,'Crop 3'!$V$14*VLOOKUP('Crop 3'!$E$14,Carbon!$AH$4:$AI$10,2,FALSE),0)+IF('Crop 3'!$C$15=Carbon!$B91,'Crop 3'!$V$15*VLOOKUP('Crop 3'!$E$15,Carbon!$AH$4:$AI$10,2,FALSE),0)+IF('Crop 3'!$C$16=Carbon!$B91,'Crop 3'!$V$16*VLOOKUP('Crop 3'!$E$16,Carbon!$AH$4:$AI$10,2,FALSE),0)+IF('Crop 3'!$C$19=Carbon!$B91,'Crop 3'!$V$19*VLOOKUP('Crop 3'!$E$19,Carbon!$AH$4:$AI$10,2,FALSE),0)+IF('Crop 3'!$C$20=Carbon!$B91,'Crop 3'!$V$20*VLOOKUP('Crop 3'!$E$20,Carbon!$AH$4:$AI$10,2,FALSE),0)+IF('Crop 3'!$C$21=Carbon!$B91,'Crop 3'!$V$21*VLOOKUP('Crop 3'!$E$21,Carbon!$AH$4:$AI$10,2,FALSE),0)+IF('Crop 3'!$C$49=Carbon!$B91,'Crop 3'!$V$49*VLOOKUP('Crop 3'!$E$49,Carbon!$AH$4:$AI$10,2,FALSE),0)+IF('Crop 3'!$C$50=Carbon!$B91,'Crop 3'!$V$50*VLOOKUP('Crop 3'!$E$50,Carbon!$AH$4:$AI$10,2,FALSE),0)+IF('Crop 3'!$C$51=Carbon!$B91,'Crop 3'!$V$51*VLOOKUP('Crop 3'!$E$51,Carbon!$AH$4:$AI$10,2,FALSE),0)+IF('Crop 3'!$C$52=Carbon!$B91,'Crop 3'!$V$52*VLOOKUP('Crop 3'!$E$52,Carbon!$AH$4:$AI$10,2,FALSE),0)+IF('Crop 3'!$C$53=Carbon!$B91,'Crop 3'!$V$53*VLOOKUP('Crop 3'!$E$53,Carbon!$AH$4:$AI$10,2,FALSE),0)+IF('Crop 3'!$C$56=Carbon!$B91,'Crop 3'!$V$56*VLOOKUP('Crop 3'!$E$56,Carbon!$AH$4:$AI$10,2,FALSE),0)+IF('Crop 3'!$C$57=Carbon!$B91,'Crop 3'!$V$57*VLOOKUP('Crop 3'!$E$57,Carbon!$AH$4:$AI$10,2,FALSE),0)+IF('Crop 3'!$C$58=Carbon!$B91,'Crop 3'!$V$58*VLOOKUP('Crop 3'!$E$58,Carbon!$AH$4:$AI$10,2,FALSE),0)+IF('Crop 3'!$C$59=Carbon!$B91,'Crop 3'!$V$59*VLOOKUP('Crop 3'!$E$59,Carbon!$AH$4:$AI$10,2,FALSE),0)+IF('Crop 3'!$C$62=Carbon!$B91,'Crop 3'!$V$62*VLOOKUP('Crop 3'!$E$62,Carbon!$AH$4:$AI$10,2,FALSE),0)+IF('Crop 3'!$C$63=Carbon!$B91,'Crop 3'!$V$63*VLOOKUP('Crop 3'!$E$63,Carbon!$AH$4:$AI$10,2,FALSE),0)+IF('Crop 3'!$C$64=Carbon!$B91,'Crop 3'!$V$64*VLOOKUP('Crop 3'!$E$64,Carbon!$AH$4:$AI$10,2,FALSE),0)+IF('Crop 3'!$C$65=Carbon!$B91,'Crop 3'!$V$65*VLOOKUP('Crop 3'!$E$65,Carbon!$AH$4:$AI$10,2,FALSE),0))*$AL$20,2)","v":0},{"$f":"Q91*Inputs!$D$17","v":0},{"$f":"ROUND(T91/Inputs!D$19,2)","v":0},0,null,null,0,{"$f":"W91*Inputs!$D$13","v":0},0,{"$f":"Y91*Inputs!$D$13","v":0},0,{"$f":"AA91*Inputs!$D$13","v":0},{"$f":"ROUND(AD91/Inputs!D$19,2)","v":0},0]
[null,{"$f":"Defaults!AH58","v":"FirstRate"},{"$f":"ROUND((IF('Crop 1'!$C$14=Carbon!$B92,'Crop 1'!$L$14*VLOOKUP('Crop 1'!$E$14,Carbon!$AH$4:$AI$10,2,FALSE),0)+IF('Crop 1'!$C$15=Carbon!$B92,'Crop 1'!$L$15*VLOOKUP('Crop 1'!$E$15,Carbon!$AH$4:$AI$10,2,FALSE),0)+IF('Crop 1'!$C$16=Carbon!$B92,'Crop 1'!$L$16*VLOOKUP('Crop 1'!$E$16,Carbon!$AH$4:$AI$10,2,FALSE),0)+IF('Crop 1'!$C$19=Carbon!$B92,'Crop 1'!$L$19*VLOOKUP('Crop 1'!$E$19,Carbon!$AH$4:$AI$10,2,FALSE),0)+IF('Crop 1'!$C$20=Carbon!$B92,'Crop 1'!$L$20*VLOOKUP('Crop 1'!$E$20,Carbon!$AH$4:$AI$10,2,FALSE),0)+IF('Crop 1'!$C$21=Carbon!$B92,'Crop 1'!$L$21*VLOOKUP('Crop 1'!$E$21,Carbon!$AH$4:$AI$10,2,FALSE),0)+IF('Crop 1'!$C$49=Carbon!$B92,'Crop 1'!$L$49*VLOOKUP('Crop 1'!$E$49,Carbon!$AH$4:$AI$10,2,FALSE),0)+IF('Crop 1'!$C$50=Carbon!$B92,'Crop 1'!$L$50*VLOOKUP('Crop 1'!$E$50,Carbon!$AH$4:$AI$10,2,FALSE),0)+IF('Crop 1'!$C$51=Carbon!$B92,'Crop 1'!$L$51*VLOOKUP('Crop 1'!$E$51,Carbon!$AH$4:$AI$10,2,FALSE),0)+IF('Crop 1'!$C$52=Carbon!$B92,'Crop 1'!$L$52*VLOOKUP('Crop 1'!$E$52,Carbon!$AH$4:$AI$10,2,FALSE),0)+IF('Crop 1'!$C$53=Carbon!$B92,'Crop 1'!$L$53*VLOOKUP('Crop 1'!$E$53,Carbon!$AH$4:$AI$10,2,FALSE),0)+IF('Crop 1'!$C$56=Carbon!$B92,'Crop 1'!$L$56*VLOOKUP('Crop 1'!$E$56,Carbon!$AH$4:$AI$10,2,FALSE),0)+IF('Crop 1'!$C$57=Carbon!$B92,'Crop 1'!$L$57*VLOOKUP('Crop 1'!$E$57,Carbon!$AH$4:$AI$10,2,FALSE),0)+IF('Crop 1'!$C$58=Carbon!$B92,'Crop 1'!$L$58*VLOOKUP('Crop 1'!$E$58,Carbon!$AH$4:$AI$10,2,FALSE),0)+IF('Crop 1'!$C$59=Carbon!$B92,'Crop 1'!$L$59*VLOOKUP('Crop 1'!$E$59,Carbon!$AH$4:$AI$10,2,FALSE),0)+IF('Crop 1'!$C$62=Carbon!$B92,'Crop 1'!$L$62*VLOOKUP('Crop 1'!$E$62,Carbon!$AH$4:$AI$10,2,FALSE),0)+IF('Crop 1'!$C$63=Carbon!$B92,'Crop 1'!$L$63*VLOOKUP('Crop 1'!$E$63,Carbon!$AH$4:$AI$10,2,FALSE),0)+IF('Crop 1'!$C$64=Carbon!$B92,'Crop 1'!$L$64*VLOOKUP('Crop 1'!$E$64,Carbon!$AH$4:$AI$10,2,FALSE),0)+IF('Crop 1'!$C$65=Carbon!$B92,'Crop 1'!$L$65*VLOOKUP('Crop 1'!$E$65,Carbon!$AH$4:$AI$10,2,FALSE),0))*$AL$20,2)","v":0},{"$f":"C92*Inputs!$D$13","v":0},{"$f":"ROUND((IF('Crop 2'!$C$14=Carbon!$B92,'Crop 2'!$L$14*VLOOKUP('Crop 2'!$E$14,Carbon!$AH$4:$AI$10,2,FALSE),0)+IF('Crop 2'!$C$15=Carbon!$B92,'Crop 2'!$L$15*VLOOKUP('Crop 2'!$E$15,Carbon!$AH$4:$AI$10,2,FALSE),0)+IF('Crop 2'!$C$16=Carbon!$B92,'Crop 2'!$L$16*VLOOKUP('Crop 2'!$E$16,Carbon!$AH$4:$AI$10,2,FALSE),0)+IF('Crop 2'!$C$19=Carbon!$B92,'Crop 2'!$L$19*VLOOKUP('Crop 2'!$E$19,Carbon!$AH$4:$AI$10,2,FALSE),0)+IF('Crop 2'!$C$20=Carbon!$B92,'Crop 2'!$L$20*VLOOKUP('Crop 2'!$E$20,Carbon!$AH$4:$AI$10,2,FALSE),0)+IF('Crop 2'!$C$21=Carbon!$B92,'Crop 2'!$L$21*VLOOKUP('Crop 2'!$E$21,Carbon!$AH$4:$AI$10,2,FALSE),0)+IF('Crop 2'!$C$49=Carbon!$B92,'Crop 2'!$L$49*VLOOKUP('Crop 2'!$E$49,Carbon!$AH$4:$AI$10,2,FALSE),0)+IF('Crop 2'!$C$50=Carbon!$B92,'Crop 2'!$L$50*VLOOKUP('Crop 2'!$E$50,Carbon!$AH$4:$AI$10,2,FALSE),0)+IF('Crop 2'!$C$51=Carbon!$B92,'Crop 2'!$L$51*VLOOKUP('Crop 2'!$E$51,Carbon!$AH$4:$AI$10,2,FALSE),0)+IF('Crop 2'!$C$52=Carbon!$B92,'Crop 2'!$L$52*VLOOKUP('Crop 2'!$E$52,Carbon!$AH$4:$AI$10,2,FALSE),0)+IF('Crop 2'!$C$53=Carbon!$B92,'Crop 2'!$L$53*VLOOKUP('Crop 2'!$E$53,Carbon!$AH$4:$AI$10,2,FALSE),0)+IF('Crop 2'!$C$56=Carbon!$B92,'Crop 2'!$L$56*VLOOKUP('Crop 2'!$E$56,Carbon!$AH$4:$AI$10,2,FALSE),0)+IF('Crop 2'!$C$57=Carbon!$B92,'Crop 2'!$L$57*VLOOKUP('Crop 2'!$E$57,Carbon!$AH$4:$AI$10,2,FALSE),0)+IF('Crop 2'!$C$58=Carbon!$B92,'Crop 2'!$L$58*VLOOKUP('Crop 2'!$E$58,Carbon!$AH$4:$AI$10,2,FALSE),0)+IF('Crop 2'!$C$59=Carbon!$B92,'Crop 2'!$L$59*VLOOKUP('Crop 2'!$E$59,Carbon!$AH$4:$AI$10,2,FALSE),0)+IF('Crop 2'!$C$62=Carbon!$B92,'Crop 2'!$L$62*VLOOKUP('Crop 2'!$E$62,Carbon!$AH$4:$AI$10,2,FALSE),0)+IF('Crop 2'!$C$63=Carbon!$B92,'Crop 2'!$L$63*VLOOKUP('Crop 2'!$E$63,Carbon!$AH$4:$AI$10,2,FALSE),0)+IF('Crop 2'!$C$64=Carbon!$B92,'Crop 2'!$L$64*VLOOKUP('Crop 2'!$E$64,Carbon!$AH$4:$AI$10,2,FALSE),0)+IF('Crop 2'!$C$65=Carbon!$B92,'Crop 2'!$L$65*VLOOKUP('Crop 2'!$E$65,Carbon!$AH$4:$AI$10,2,FALSE),0))*$AL$20,2)","v":0},{"$f":"E92*Inputs!$D$15","v":0},{"$f":"ROUND((IF('Crop 3'!$C$14=Carbon!$B92,'Crop 3'!$L$14*VLOOKUP('Crop 3'!$E$14,Carbon!$AH$4:$AI$10,2,FALSE),0)+IF('Crop 3'!$C$15=Carbon!$B92,'Crop 3'!$L$15*VLOOKUP('Crop 3'!$E$15,Carbon!$AH$4:$AI$10,2,FALSE),0)+IF('Crop 3'!$C$16=Carbon!$B92,'Crop 3'!$L$16*VLOOKUP('Crop 3'!$E$16,Carbon!$AH$4:$AI$10,2,FALSE),0)+IF('Crop 3'!$C$19=Carbon!$B92,'Crop 3'!$L$19*VLOOKUP('Crop 3'!$E$19,Carbon!$AH$4:$AI$10,2,FALSE),0)+IF('Crop 3'!$C$20=Carbon!$B92,'Crop 3'!$L$20*VLOOKUP('Crop 3'!$E$20,Carbon!$AH$4:$AI$10,2,FALSE),0)+IF('Crop 3'!$C$21=Carbon!$B92,'Crop 3'!$L$21*VLOOKUP('Crop 3'!$E$21,Carbon!$AH$4:$AI$10,2,FALSE),0)+IF('Crop 3'!$C$49=Carbon!$B92,'Crop 3'!$L$49*VLOOKUP('Crop 3'!$E$49,Carbon!$AH$4:$AI$10,2,FALSE),0)+IF('Crop 3'!$C$50=Carbon!$B92,'Crop 3'!$L$50*VLOOKUP('Crop 3'!$E$50,Carbon!$AH$4:$AI$10,2,FALSE),0)+IF('Crop 3'!$C$51=Carbon!$B92,'Crop 3'!$L$51*VLOOKUP('Crop 3'!$E$51,Carbon!$AH$4:$AI$10,2,FALSE),0)+IF('Crop 3'!$C$52=Carbon!$B92,'Crop 3'!$L$52*VLOOKUP('Crop 3'!$E$52,Carbon!$AH$4:$AI$10,2,FALSE),0)+IF('Crop 3'!$C$53=Carbon!$B92,'Crop 3'!$L$53*VLOOKUP('Crop 3'!$E$53,Carbon!$AH$4:$AI$10,2,FALSE),0)+IF('Crop 3'!$C$56=Carbon!$B92,'Crop 3'!$L$56*VLOOKUP('Crop 3'!$E$56,Carbon!$AH$4:$AI$10,2,FALSE),0)+IF('Crop 3'!$C$57=Carbon!$B92,'Crop 3'!$L$57*VLOOKUP('Crop 3'!$E$57,Carbon!$AH$4:$AI$10,2,FALSE),0)+IF('Crop 3'!$C$58=Carbon!$B92,'Crop 3'!$L$58*VLOOKUP('Crop 3'!$E$58,Carbon!$AH$4:$AI$10,2,FALSE),0)+IF('Crop 3'!$C$59=Carbon!$B92,'Crop 3'!$L$59*VLOOKUP('Crop 3'!$E$59,Carbon!$AH$4:$AI$10,2,FALSE),0)+IF('Crop 3'!$C$62=Carbon!$B92,'Crop 3'!$L$62*VLOOKUP('Crop 3'!$E$62,Carbon!$AH$4:$AI$10,2,FALSE),0)+IF('Crop 3'!$C$63=Carbon!$B92,'Crop 3'!$L$63*VLOOKUP('Crop 3'!$E$63,Carbon!$AH$4:$AI$10,2,FALSE),0)+IF('Crop 3'!$C$64=Carbon!$B92,'Crop 3'!$L$64*VLOOKUP('Crop 3'!$E$64,Carbon!$AH$4:$AI$10,2,FALSE),0)+IF('Crop 3'!$C$65=Carbon!$B92,'Crop 3'!$L$65*VLOOKUP('Crop 3'!$E$65,Carbon!$AH$4:$AI$10,2,FALSE),0))*$AL$20,2)","v":0},{"$f":"G92*Inputs!$D$17","v":0},{"$f":"ROUND(J92/Inputs!D$19,2)","v":0},0,null,null,{"$f":"ROUND((IF('Crop 1'!$C$14=Carbon!$B92,'Crop 1'!$V$14*VLOOKUP('Crop 1'!$E$14,Carbon!$AH$4:$AI$10,2,FALSE),0)+IF('Crop 1'!$C$15=Carbon!$B92,'Crop 1'!$V$15*VLOOKUP('Crop 1'!$E$15,Carbon!$AH$4:$AI$10,2,FALSE),0)+IF('Crop 1'!$C$16=Carbon!$B92,'Crop 1'!$V$16*VLOOKUP('Crop 1'!$E$16,Carbon!$AH$4:$AI$10,2,FALSE),0)+IF('Crop 1'!$C$19=Carbon!$B92,'Crop 1'!$V$19*VLOOKUP('Crop 1'!$E$19,Carbon!$AH$4:$AI$10,2,FALSE),0)+IF('Crop 1'!$C$20=Carbon!$B92,'Crop 1'!$V$20*VLOOKUP('Crop 1'!$E$20,Carbon!$AH$4:$AI$10,2,FALSE),0)+IF('Crop 1'!$C$21=Carbon!$B92,'Crop 1'!$V$21*VLOOKUP('Crop 1'!$E$21,Carbon!$AH$4:$AI$10,2,FALSE),0)+IF('Crop 1'!$C$49=Carbon!$B92,'Crop 1'!$V$49*VLOOKUP('Crop 1'!$E$49,Carbon!$AH$4:$AI$10,2,FALSE),0)+IF('Crop 1'!$C$50=Carbon!$B92,'Crop 1'!$V$50*VLOOKUP('Crop 1'!$E$50,Carbon!$AH$4:$AI$10,2,FALSE),0)+IF('Crop 1'!$C$51=Carbon!$B92,'Crop 1'!$V$51*VLOOKUP('Crop 1'!$E$51,Carbon!$AH$4:$AI$10,2,FALSE),0)+IF('Crop 1'!$C$52=Carbon!$B92,'Crop 1'!$V$52*VLOOKUP('Crop 1'!$E$52,Carbon!$AH$4:$AI$10,2,FALSE),0)+IF('Crop 1'!$C$53=Carbon!$B92,'Crop 1'!$V$53*VLOOKUP('Crop 1'!$E$53,Carbon!$AH$4:$AI$10,2,FALSE),0)+IF('Crop 1'!$C$56=Carbon!$B92,'Crop 1'!$V$56*VLOOKUP('Crop 1'!$E$56,Carbon!$AH$4:$AI$10,2,FALSE),0)+IF('Crop 1'!$C$57=Carbon!$B92,'Crop 1'!$V$57*VLOOKUP('Crop 1'!$E$57,Carbon!$AH$4:$AI$10,2,FALSE),0)+IF('Crop 1'!$C$58=Carbon!$B92,'Crop 1'!$V$58*VLOOKUP('Crop 1'!$E$58,Carbon!$AH$4:$AI$10,2,FALSE),0)+IF('Crop 1'!$C$59=Carbon!$B92,'Crop 1'!$V$59*VLOOKUP('Crop 1'!$E$59,Carbon!$AH$4:$AI$10,2,FALSE),0)+IF('Crop 1'!$C$62=Carbon!$B92,'Crop 1'!$V$62*VLOOKUP('Crop 1'!$E$62,Carbon!$AH$4:$AI$10,2,FALSE),0)+IF('Crop 1'!$C$63=Carbon!$B92,'Crop 1'!$V$63*VLOOKUP('Crop 1'!$E$63,Carbon!$AH$4:$AI$10,2,FALSE),0)+IF('Crop 1'!$C$64=Carbon!$B92,'Crop 1'!$V$64*VLOOKUP('Crop 1'!$E$64,Carbon!$AH$4:$AI$10,2,FALSE),0)+IF('Crop 1'!$C$65=Carbon!$B92,'Crop 1'!$V$65*VLOOKUP('Crop 1'!$E$65,Carbon!$AH$4:$AI$10,2,FALSE),0))*$AL$20,2)","v":0},{"$f":"M92*Inputs!$D$13","v":0},{"$f":"ROUND((IF('Crop 2'!$C$14=Carbon!$B92,'Crop 2'!$V$14*VLOOKUP('Crop 2'!$E$14,Carbon!$AH$4:$AI$10,2,FALSE),0)+IF('Crop 2'!$C$15=Carbon!$B92,'Crop 2'!$V$15*VLOOKUP('Crop 2'!$E$15,Carbon!$AH$4:$AI$10,2,FALSE),0)+IF('Crop 2'!$C$16=Carbon!$B92,'Crop 2'!$V$16*VLOOKUP('Crop 2'!$E$16,Carbon!$AH$4:$AI$10,2,FALSE),0)+IF('Crop 2'!$C$19=Carbon!$B92,'Crop 2'!$V$19*VLOOKUP('Crop 2'!$E$19,Carbon!$AH$4:$AI$10,2,FALSE),0)+IF('Crop 2'!$C$20=Carbon!$B92,'Crop 2'!$V$20*VLOOKUP('Crop 2'!$E$20,Carbon!$AH$4:$AI$10,2,FALSE),0)+IF('Crop 2'!$C$21=Carbon!$B92,'Crop 2'!$V$21*VLOOKUP('Crop 2'!$E$21,Carbon!$AH$4:$AI$10,2,FALSE),0)+IF('Crop 2'!$C$49=Carbon!$B92,'Crop 2'!$V$49*VLOOKUP('Crop 2'!$E$49,Carbon!$AH$4:$AI$10,2,FALSE),0)+IF('Crop 2'!$C$50=Carbon!$B92,'Crop 2'!$V$50*VLOOKUP('Crop 2'!$E$50,Carbon!$AH$4:$AI$10,2,FALSE),0)+IF('Crop 2'!$C$51=Carbon!$B92,'Crop 2'!$V$51*VLOOKUP('Crop 2'!$E$51,Carbon!$AH$4:$AI$10,2,FALSE),0)+IF('Crop 2'!$C$52=Carbon!$B92,'Crop 2'!$V$52*VLOOKUP('Crop 2'!$E$52,Carbon!$AH$4:$AI$10,2,FALSE),0)+IF('Crop 2'!$C$53=Carbon!$B92,'Crop 2'!$V$53*VLOOKUP('Crop 2'!$E$53,Carbon!$AH$4:$AI$10,2,FALSE),0)+IF('Crop 2'!$C$56=Carbon!$B92,'Crop 2'!$V$56*VLOOKUP('Crop 2'!$E$56,Carbon!$AH$4:$AI$10,2,FALSE),0)+IF('Crop 2'!$C$57=Carbon!$B92,'Crop 2'!$V$57*VLOOKUP('Crop 2'!$E$57,Carbon!$AH$4:$AI$10,2,FALSE),0)+IF('Crop 2'!$C$58=Carbon!$B92,'Crop 2'!$V$58*VLOOKUP('Crop 2'!$E$58,Carbon!$AH$4:$AI$10,2,FALSE),0)+IF('Crop 2'!$C$59=Carbon!$B92,'Crop 2'!$V$59*VLOOKUP('Crop 2'!$E$59,Carbon!$AH$4:$AI$10,2,FALSE),0)+IF('Crop 2'!$C$62=Carbon!$B92,'Crop 2'!$V$62*VLOOKUP('Crop 2'!$E$62,Carbon!$AH$4:$AI$10,2,FALSE),0)+IF('Crop 2'!$C$63=Carbon!$B92,'Crop 2'!$V$63*VLOOKUP('Crop 2'!$E$63,Carbon!$AH$4:$AI$10,2,FALSE),0)+IF('Crop 2'!$C$64=Carbon!$B92,'Crop 2'!$V$64*VLOOKUP('Crop 2'!$E$64,Carbon!$AH$4:$AI$10,2,FALSE),0)+IF('Crop 2'!$C$65=Carbon!$B92,'Crop 2'!$V$65*VLOOKUP('Crop 2'!$E$65,Carbon!$AH$4:$AI$10,2,FALSE),0))*$AL$20,2)","v":0},{"$f":"O92*Inputs!$D$15","v":0},{"$f":"ROUND((IF('Crop 3'!$C$14=Carbon!$B92,'Crop 3'!$V$14*VLOOKUP('Crop 3'!$E$14,Carbon!$AH$4:$AI$10,2,FALSE),0)+IF('Crop 3'!$C$15=Carbon!$B92,'Crop 3'!$V$15*VLOOKUP('Crop 3'!$E$15,Carbon!$AH$4:$AI$10,2,FALSE),0)+IF('Crop 3'!$C$16=Carbon!$B92,'Crop 3'!$V$16*VLOOKUP('Crop 3'!$E$16,Carbon!$AH$4:$AI$10,2,FALSE),0)+IF('Crop 3'!$C$19=Carbon!$B92,'Crop 3'!$V$19*VLOOKUP('Crop 3'!$E$19,Carbon!$AH$4:$AI$10,2,FALSE),0)+IF('Crop 3'!$C$20=Carbon!$B92,'Crop 3'!$V$20*VLOOKUP('Crop 3'!$E$20,Carbon!$AH$4:$AI$10,2,FALSE),0)+IF('Crop 3'!$C$21=Carbon!$B92,'Crop 3'!$V$21*VLOOKUP('Crop 3'!$E$21,Carbon!$AH$4:$AI$10,2,FALSE),0)+IF('Crop 3'!$C$49=Carbon!$B92,'Crop 3'!$V$49*VLOOKUP('Crop 3'!$E$49,Carbon!$AH$4:$AI$10,2,FALSE),0)+IF('Crop 3'!$C$50=Carbon!$B92,'Crop 3'!$V$50*VLOOKUP('Crop 3'!$E$50,Carbon!$AH$4:$AI$10,2,FALSE),0)+IF('Crop 3'!$C$51=Carbon!$B92,'Crop 3'!$V$51*VLOOKUP('Crop 3'!$E$51,Carbon!$AH$4:$AI$10,2,FALSE),0)+IF('Crop 3'!$C$52=Carbon!$B92,'Crop 3'!$V$52*VLOOKUP('Crop 3'!$E$52,Carbon!$AH$4:$AI$10,2,FALSE),0)+IF('Crop 3'!$C$53=Carbon!$B92,'Crop 3'!$V$53*VLOOKUP('Crop 3'!$E$53,Carbon!$AH$4:$AI$10,2,FALSE),0)+IF('Crop 3'!$C$56=Carbon!$B92,'Crop 3'!$V$56*VLOOKUP('Crop 3'!$E$56,Carbon!$AH$4:$AI$10,2,FALSE),0)+IF('Crop 3'!$C$57=Carbon!$B92,'Crop 3'!$V$57*VLOOKUP('Crop 3'!$E$57,Carbon!$AH$4:$AI$10,2,FALSE),0)+IF('Crop 3'!$C$58=Carbon!$B92,'Crop 3'!$V$58*VLOOKUP('Crop 3'!$E$58,Carbon!$AH$4:$AI$10,2,FALSE),0)+IF('Crop 3'!$C$59=Carbon!$B92,'Crop 3'!$V$59*VLOOKUP('Crop 3'!$E$59,Carbon!$AH$4:$AI$10,2,FALSE),0)+IF('Crop 3'!$C$62=Carbon!$B92,'Crop 3'!$V$62*VLOOKUP('Crop 3'!$E$62,Carbon!$AH$4:$AI$10,2,FALSE),0)+IF('Crop 3'!$C$63=Carbon!$B92,'Crop 3'!$V$63*VLOOKUP('Crop 3'!$E$63,Carbon!$AH$4:$AI$10,2,FALSE),0)+IF('Crop 3'!$C$64=Carbon!$B92,'Crop 3'!$V$64*VLOOKUP('Crop 3'!$E$64,Carbon!$AH$4:$AI$10,2,FALSE),0)+IF('Crop 3'!$C$65=Carbon!$B92,'Crop 3'!$V$65*VLOOKUP('Crop 3'!$E$65,Carbon!$AH$4:$AI$10,2,FALSE),0))*$AL$20,2)","v":0},{"$f":"Q92*Inputs!$D$17","v":0},{"$f":"ROUND(T92/Inputs!D$19,2)","v":0},0,null,null,0,{"$f":"W92*Inputs!$D$13","v":0},0,{"$f":"Y92*Inputs!$D$13","v":0},0,{"$f":"AA92*Inputs!$D$13","v":0},{"$f":"ROUND(AD92/Inputs!D$19,2)","v":0},0]
[null,{"$f":"Defaults!AH59","v":"Flexstar"},{"$f":"ROUND((IF('Crop 1'!$C$14=Carbon!$B93,'Crop 1'!$L$14*VLOOKUP('Crop 1'!$E$14,Carbon!$AH$4:$AI$10,2,FALSE),0)+IF('Crop 1'!$C$15=Carbon!$B93,'Crop 1'!$L$15*VLOOKUP('Crop 1'!$E$15,Carbon!$AH$4:$AI$10,2,FALSE),0)+IF('Crop 1'!$C$16=Carbon!$B93,'Crop 1'!$L$16*VLOOKUP('Crop 1'!$E$16,Carbon!$AH$4:$AI$10,2,FALSE),0)+IF('Crop 1'!$C$19=Carbon!$B93,'Crop 1'!$L$19*VLOOKUP('Crop 1'!$E$19,Carbon!$AH$4:$AI$10,2,FALSE),0)+IF('Crop 1'!$C$20=Carbon!$B93,'Crop 1'!$L$20*VLOOKUP('Crop 1'!$E$20,Carbon!$AH$4:$AI$10,2,FALSE),0)+IF('Crop 1'!$C$21=Carbon!$B93,'Crop 1'!$L$21*VLOOKUP('Crop 1'!$E$21,Carbon!$AH$4:$AI$10,2,FALSE),0)+IF('Crop 1'!$C$49=Carbon!$B93,'Crop 1'!$L$49*VLOOKUP('Crop 1'!$E$49,Carbon!$AH$4:$AI$10,2,FALSE),0)+IF('Crop 1'!$C$50=Carbon!$B93,'Crop 1'!$L$50*VLOOKUP('Crop 1'!$E$50,Carbon!$AH$4:$AI$10,2,FALSE),0)+IF('Crop 1'!$C$51=Carbon!$B93,'Crop 1'!$L$51*VLOOKUP('Crop 1'!$E$51,Carbon!$AH$4:$AI$10,2,FALSE),0)+IF('Crop 1'!$C$52=Carbon!$B93,'Crop 1'!$L$52*VLOOKUP('Crop 1'!$E$52,Carbon!$AH$4:$AI$10,2,FALSE),0)+IF('Crop 1'!$C$53=Carbon!$B93,'Crop 1'!$L$53*VLOOKUP('Crop 1'!$E$53,Carbon!$AH$4:$AI$10,2,FALSE),0)+IF('Crop 1'!$C$56=Carbon!$B93,'Crop 1'!$L$56*VLOOKUP('Crop 1'!$E$56,Carbon!$AH$4:$AI$10,2,FALSE),0)+IF('Crop 1'!$C$57=Carbon!$B93,'Crop 1'!$L$57*VLOOKUP('Crop 1'!$E$57,Carbon!$AH$4:$AI$10,2,FALSE),0)+IF('Crop 1'!$C$58=Carbon!$B93,'Crop 1'!$L$58*VLOOKUP('Crop 1'!$E$58,Carbon!$AH$4:$AI$10,2,FALSE),0)+IF('Crop 1'!$C$59=Carbon!$B93,'Crop 1'!$L$59*VLOOKUP('Crop 1'!$E$59,Carbon!$AH$4:$AI$10,2,FALSE),0)+IF('Crop 1'!$C$62=Carbon!$B93,'Crop 1'!$L$62*VLOOKUP('Crop 1'!$E$62,Carbon!$AH$4:$AI$10,2,FALSE),0)+IF('Crop 1'!$C$63=Carbon!$B93,'Crop 1'!$L$63*VLOOKUP('Crop 1'!$E$63,Carbon!$AH$4:$AI$10,2,FALSE),0)+IF('Crop 1'!$C$64=Carbon!$B93,'Crop 1'!$L$64*VLOOKUP('Crop 1'!$E$64,Carbon!$AH$4:$AI$10,2,FALSE),0)+IF('Crop 1'!$C$65=Carbon!$B93,'Crop 1'!$L$65*VLOOKUP('Crop 1'!$E$65,Carbon!$AH$4:$AI$10,2,FALSE),0))*$AL$20,2)","v":0},{"$f":"C93*Inputs!$D$13","v":0},{"$f":"ROUND((IF('Crop 2'!$C$14=Carbon!$B93,'Crop 2'!$L$14*VLOOKUP('Crop 2'!$E$14,Carbon!$AH$4:$AI$10,2,FALSE),0)+IF('Crop 2'!$C$15=Carbon!$B93,'Crop 2'!$L$15*VLOOKUP('Crop 2'!$E$15,Carbon!$AH$4:$AI$10,2,FALSE),0)+IF('Crop 2'!$C$16=Carbon!$B93,'Crop 2'!$L$16*VLOOKUP('Crop 2'!$E$16,Carbon!$AH$4:$AI$10,2,FALSE),0)+IF('Crop 2'!$C$19=Carbon!$B93,'Crop 2'!$L$19*VLOOKUP('Crop 2'!$E$19,Carbon!$AH$4:$AI$10,2,FALSE),0)+IF('Crop 2'!$C$20=Carbon!$B93,'Crop 2'!$L$20*VLOOKUP('Crop 2'!$E$20,Carbon!$AH$4:$AI$10,2,FALSE),0)+IF('Crop 2'!$C$21=Carbon!$B93,'Crop 2'!$L$21*VLOOKUP('Crop 2'!$E$21,Carbon!$AH$4:$AI$10,2,FALSE),0)+IF('Crop 2'!$C$49=Carbon!$B93,'Crop 2'!$L$49*VLOOKUP('Crop 2'!$E$49,Carbon!$AH$4:$AI$10,2,FALSE),0)+IF('Crop 2'!$C$50=Carbon!$B93,'Crop 2'!$L$50*VLOOKUP('Crop 2'!$E$50,Carbon!$AH$4:$AI$10,2,FALSE),0)+IF('Crop 2'!$C$51=Carbon!$B93,'Crop 2'!$L$51*VLOOKUP('Crop 2'!$E$51,Carbon!$AH$4:$AI$10,2,FALSE),0)+IF('Crop 2'!$C$52=Carbon!$B93,'Crop 2'!$L$52*VLOOKUP('Crop 2'!$E$52,Carbon!$AH$4:$AI$10,2,FALSE),0)+IF('Crop 2'!$C$53=Carbon!$B93,'Crop 2'!$L$53*VLOOKUP('Crop 2'!$E$53,Carbon!$AH$4:$AI$10,2,FALSE),0)+IF('Crop 2'!$C$56=Carbon!$B93,'Crop 2'!$L$56*VLOOKUP('Crop 2'!$E$56,Carbon!$AH$4:$AI$10,2,FALSE),0)+IF('Crop 2'!$C$57=Carbon!$B93,'Crop 2'!$L$57*VLOOKUP('Crop 2'!$E$57,Carbon!$AH$4:$AI$10,2,FALSE),0)+IF('Crop 2'!$C$58=Carbon!$B93,'Crop 2'!$L$58*VLOOKUP('Crop 2'!$E$58,Carbon!$AH$4:$AI$10,2,FALSE),0)+IF('Crop 2'!$C$59=Carbon!$B93,'Crop 2'!$L$59*VLOOKUP('Crop 2'!$E$59,Carbon!$AH$4:$AI$10,2,FALSE),0)+IF('Crop 2'!$C$62=Carbon!$B93,'Crop 2'!$L$62*VLOOKUP('Crop 2'!$E$62,Carbon!$AH$4:$AI$10,2,FALSE),0)+IF('Crop 2'!$C$63=Carbon!$B93,'Crop 2'!$L$63*VLOOKUP('Crop 2'!$E$63,Carbon!$AH$4:$AI$10,2,FALSE),0)+IF('Crop 2'!$C$64=Carbon!$B93,'Crop 2'!$L$64*VLOOKUP('Crop 2'!$E$64,Carbon!$AH$4:$AI$10,2,FALSE),0)+IF('Crop 2'!$C$65=Carbon!$B93,'Crop 2'!$L$65*VLOOKUP('Crop 2'!$E$65,Carbon!$AH$4:$AI$10,2,FALSE),0))*$AL$20,2)","v":0},{"$f":"E93*Inputs!$D$15","v":0},{"$f":"ROUND((IF('Crop 3'!$C$14=Carbon!$B93,'Crop 3'!$L$14*VLOOKUP('Crop 3'!$E$14,Carbon!$AH$4:$AI$10,2,FALSE),0)+IF('Crop 3'!$C$15=Carbon!$B93,'Crop 3'!$L$15*VLOOKUP('Crop 3'!$E$15,Carbon!$AH$4:$AI$10,2,FALSE),0)+IF('Crop 3'!$C$16=Carbon!$B93,'Crop 3'!$L$16*VLOOKUP('Crop 3'!$E$16,Carbon!$AH$4:$AI$10,2,FALSE),0)+IF('Crop 3'!$C$19=Carbon!$B93,'Crop 3'!$L$19*VLOOKUP('Crop 3'!$E$19,Carbon!$AH$4:$AI$10,2,FALSE),0)+IF('Crop 3'!$C$20=Carbon!$B93,'Crop 3'!$L$20*VLOOKUP('Crop 3'!$E$20,Carbon!$AH$4:$AI$10,2,FALSE),0)+IF('Crop 3'!$C$21=Carbon!$B93,'Crop 3'!$L$21*VLOOKUP('Crop 3'!$E$21,Carbon!$AH$4:$AI$10,2,FALSE),0)+IF('Crop 3'!$C$49=Carbon!$B93,'Crop 3'!$L$49*VLOOKUP('Crop 3'!$E$49,Carbon!$AH$4:$AI$10,2,FALSE),0)+IF('Crop 3'!$C$50=Carbon!$B93,'Crop 3'!$L$50*VLOOKUP('Crop 3'!$E$50,Carbon!$AH$4:$AI$10,2,FALSE),0)+IF('Crop 3'!$C$51=Carbon!$B93,'Crop 3'!$L$51*VLOOKUP('Crop 3'!$E$51,Carbon!$AH$4:$AI$10,2,FALSE),0)+IF('Crop 3'!$C$52=Carbon!$B93,'Crop 3'!$L$52*VLOOKUP('Crop 3'!$E$52,Carbon!$AH$4:$AI$10,2,FALSE),0)+IF('Crop 3'!$C$53=Carbon!$B93,'Crop 3'!$L$53*VLOOKUP('Crop 3'!$E$53,Carbon!$AH$4:$AI$10,2,FALSE),0)+IF('Crop 3'!$C$56=Carbon!$B93,'Crop 3'!$L$56*VLOOKUP('Crop 3'!$E$56,Carbon!$AH$4:$AI$10,2,FALSE),0)+IF('Crop 3'!$C$57=Carbon!$B93,'Crop 3'!$L$57*VLOOKUP('Crop 3'!$E$57,Carbon!$AH$4:$AI$10,2,FALSE),0)+IF('Crop 3'!$C$58=Carbon!$B93,'Crop 3'!$L$58*VLOOKUP('Crop 3'!$E$58,Carbon!$AH$4:$AI$10,2,FALSE),0)+IF('Crop 3'!$C$59=Carbon!$B93,'Crop 3'!$L$59*VLOOKUP('Crop 3'!$E$59,Carbon!$AH$4:$AI$10,2,FALSE),0)+IF('Crop 3'!$C$62=Carbon!$B93,'Crop 3'!$L$62*VLOOKUP('Crop 3'!$E$62,Carbon!$AH$4:$AI$10,2,FALSE),0)+IF('Crop 3'!$C$63=Carbon!$B93,'Crop 3'!$L$63*VLOOKUP('Crop 3'!$E$63,Carbon!$AH$4:$AI$10,2,FALSE),0)+IF('Crop 3'!$C$64=Carbon!$B93,'Crop 3'!$L$64*VLOOKUP('Crop 3'!$E$64,Carbon!$AH$4:$AI$10,2,FALSE),0)+IF('Crop 3'!$C$65=Carbon!$B93,'Crop 3'!$L$65*VLOOKUP('Crop 3'!$E$65,Carbon!$AH$4:$AI$10,2,FALSE),0))*$AL$20,2)","v":0},{"$f":"G93*Inputs!$D$17","v":0},{"$f":"ROUND(J93/Inputs!D$19,2)","v":0},0,null,null,{"$f":"ROUND((IF('Crop 1'!$C$14=Carbon!$B93,'Crop 1'!$V$14*VLOOKUP('Crop 1'!$E$14,Carbon!$AH$4:$AI$10,2,FALSE),0)+IF('Crop 1'!$C$15=Carbon!$B93,'Crop 1'!$V$15*VLOOKUP('Crop 1'!$E$15,Carbon!$AH$4:$AI$10,2,FALSE),0)+IF('Crop 1'!$C$16=Carbon!$B93,'Crop 1'!$V$16*VLOOKUP('Crop 1'!$E$16,Carbon!$AH$4:$AI$10,2,FALSE),0)+IF('Crop 1'!$C$19=Carbon!$B93,'Crop 1'!$V$19*VLOOKUP('Crop 1'!$E$19,Carbon!$AH$4:$AI$10,2,FALSE),0)+IF('Crop 1'!$C$20=Carbon!$B93,'Crop 1'!$V$20*VLOOKUP('Crop 1'!$E$20,Carbon!$AH$4:$AI$10,2,FALSE),0)+IF('Crop 1'!$C$21=Carbon!$B93,'Crop 1'!$V$21*VLOOKUP('Crop 1'!$E$21,Carbon!$AH$4:$AI$10,2,FALSE),0)+IF('Crop 1'!$C$49=Carbon!$B93,'Crop 1'!$V$49*VLOOKUP('Crop 1'!$E$49,Carbon!$AH$4:$AI$10,2,FALSE),0)+IF('Crop 1'!$C$50=Carbon!$B93,'Crop 1'!$V$50*VLOOKUP('Crop 1'!$E$50,Carbon!$AH$4:$AI$10,2,FALSE),0)+IF('Crop 1'!$C$51=Carbon!$B93,'Crop 1'!$V$51*VLOOKUP('Crop 1'!$E$51,Carbon!$AH$4:$AI$10,2,FALSE),0)+IF('Crop 1'!$C$52=Carbon!$B93,'Crop 1'!$V$52*VLOOKUP('Crop 1'!$E$52,Carbon!$AH$4:$AI$10,2,FALSE),0)+IF('Crop 1'!$C$53=Carbon!$B93,'Crop 1'!$V$53*VLOOKUP('Crop 1'!$E$53,Carbon!$AH$4:$AI$10,2,FALSE),0)+IF('Crop 1'!$C$56=Carbon!$B93,'Crop 1'!$V$56*VLOOKUP('Crop 1'!$E$56,Carbon!$AH$4:$AI$10,2,FALSE),0)+IF('Crop 1'!$C$57=Carbon!$B93,'Crop 1'!$V$57*VLOOKUP('Crop 1'!$E$57,Carbon!$AH$4:$AI$10,2,FALSE),0)+IF('Crop 1'!$C$58=Carbon!$B93,'Crop 1'!$V$58*VLOOKUP('Crop 1'!$E$58,Carbon!$AH$4:$AI$10,2,FALSE),0)+IF('Crop 1'!$C$59=Carbon!$B93,'Crop 1'!$V$59*VLOOKUP('Crop 1'!$E$59,Carbon!$AH$4:$AI$10,2,FALSE),0)+IF('Crop 1'!$C$62=Carbon!$B93,'Crop 1'!$V$62*VLOOKUP('Crop 1'!$E$62,Carbon!$AH$4:$AI$10,2,FALSE),0)+IF('Crop 1'!$C$63=Carbon!$B93,'Crop 1'!$V$63*VLOOKUP('Crop 1'!$E$63,Carbon!$AH$4:$AI$10,2,FALSE),0)+IF('Crop 1'!$C$64=Carbon!$B93,'Crop 1'!$V$64*VLOOKUP('Crop 1'!$E$64,Carbon!$AH$4:$AI$10,2,FALSE),0)+IF('Crop 1'!$C$65=Carbon!$B93,'Crop 1'!$V$65*VLOOKUP('Crop 1'!$E$65,Carbon!$AH$4:$AI$10,2,FALSE),0))*$AL$20,2)","v":0},{"$f":"M93*Inputs!$D$13","v":0},{"$f":"ROUND((IF('Crop 2'!$C$14=Carbon!$B93,'Crop 2'!$V$14*VLOOKUP('Crop 2'!$E$14,Carbon!$AH$4:$AI$10,2,FALSE),0)+IF('Crop 2'!$C$15=Carbon!$B93,'Crop 2'!$V$15*VLOOKUP('Crop 2'!$E$15,Carbon!$AH$4:$AI$10,2,FALSE),0)+IF('Crop 2'!$C$16=Carbon!$B93,'Crop 2'!$V$16*VLOOKUP('Crop 2'!$E$16,Carbon!$AH$4:$AI$10,2,FALSE),0)+IF('Crop 2'!$C$19=Carbon!$B93,'Crop 2'!$V$19*VLOOKUP('Crop 2'!$E$19,Carbon!$AH$4:$AI$10,2,FALSE),0)+IF('Crop 2'!$C$20=Carbon!$B93,'Crop 2'!$V$20*VLOOKUP('Crop 2'!$E$20,Carbon!$AH$4:$AI$10,2,FALSE),0)+IF('Crop 2'!$C$21=Carbon!$B93,'Crop 2'!$V$21*VLOOKUP('Crop 2'!$E$21,Carbon!$AH$4:$AI$10,2,FALSE),0)+IF('Crop 2'!$C$49=Carbon!$B93,'Crop 2'!$V$49*VLOOKUP('Crop 2'!$E$49,Carbon!$AH$4:$AI$10,2,FALSE),0)+IF('Crop 2'!$C$50=Carbon!$B93,'Crop 2'!$V$50*VLOOKUP('Crop 2'!$E$50,Carbon!$AH$4:$AI$10,2,FALSE),0)+IF('Crop 2'!$C$51=Carbon!$B93,'Crop 2'!$V$51*VLOOKUP('Crop 2'!$E$51,Carbon!$AH$4:$AI$10,2,FALSE),0)+IF('Crop 2'!$C$52=Carbon!$B93,'Crop 2'!$V$52*VLOOKUP('Crop 2'!$E$52,Carbon!$AH$4:$AI$10,2,FALSE),0)+IF('Crop 2'!$C$53=Carbon!$B93,'Crop 2'!$V$53*VLOOKUP('Crop 2'!$E$53,Carbon!$AH$4:$AI$10,2,FALSE),0)+IF('Crop 2'!$C$56=Carbon!$B93,'Crop 2'!$V$56*VLOOKUP('Crop 2'!$E$56,Carbon!$AH$4:$AI$10,2,FALSE),0)+IF('Crop 2'!$C$57=Carbon!$B93,'Crop 2'!$V$57*VLOOKUP('Crop 2'!$E$57,Carbon!$AH$4:$AI$10,2,FALSE),0)+IF('Crop 2'!$C$58=Carbon!$B93,'Crop 2'!$V$58*VLOOKUP('Crop 2'!$E$58,Carbon!$AH$4:$AI$10,2,FALSE),0)+IF('Crop 2'!$C$59=Carbon!$B93,'Crop 2'!$V$59*VLOOKUP('Crop 2'!$E$59,Carbon!$AH$4:$AI$10,2,FALSE),0)+IF('Crop 2'!$C$62=Carbon!$B93,'Crop 2'!$V$62*VLOOKUP('Crop 2'!$E$62,Carbon!$AH$4:$AI$10,2,FALSE),0)+IF('Crop 2'!$C$63=Carbon!$B93,'Crop 2'!$V$63*VLOOKUP('Crop 2'!$E$63,Carbon!$AH$4:$AI$10,2,FALSE),0)+IF('Crop 2'!$C$64=Carbon!$B93,'Crop 2'!$V$64*VLOOKUP('Crop 2'!$E$64,Carbon!$AH$4:$AI$10,2,FALSE),0)+IF('Crop 2'!$C$65=Carbon!$B93,'Crop 2'!$V$65*VLOOKUP('Crop 2'!$E$65,Carbon!$AH$4:$AI$10,2,FALSE),0))*$AL$20,2)","v":0},{"$f":"O93*Inputs!$D$15","v":0},{"$f":"ROUND((IF('Crop 3'!$C$14=Carbon!$B93,'Crop 3'!$V$14*VLOOKUP('Crop 3'!$E$14,Carbon!$AH$4:$AI$10,2,FALSE),0)+IF('Crop 3'!$C$15=Carbon!$B93,'Crop 3'!$V$15*VLOOKUP('Crop 3'!$E$15,Carbon!$AH$4:$AI$10,2,FALSE),0)+IF('Crop 3'!$C$16=Carbon!$B93,'Crop 3'!$V$16*VLOOKUP('Crop 3'!$E$16,Carbon!$AH$4:$AI$10,2,FALSE),0)+IF('Crop 3'!$C$19=Carbon!$B93,'Crop 3'!$V$19*VLOOKUP('Crop 3'!$E$19,Carbon!$AH$4:$AI$10,2,FALSE),0)+IF('Crop 3'!$C$20=Carbon!$B93,'Crop 3'!$V$20*VLOOKUP('Crop 3'!$E$20,Carbon!$AH$4:$AI$10,2,FALSE),0)+IF('Crop 3'!$C$21=Carbon!$B93,'Crop 3'!$V$21*VLOOKUP('Crop 3'!$E$21,Carbon!$AH$4:$AI$10,2,FALSE),0)+IF('Crop 3'!$C$49=Carbon!$B93,'Crop 3'!$V$49*VLOOKUP('Crop 3'!$E$49,Carbon!$AH$4:$AI$10,2,FALSE),0)+IF('Crop 3'!$C$50=Carbon!$B93,'Crop 3'!$V$50*VLOOKUP('Crop 3'!$E$50,Carbon!$AH$4:$AI$10,2,FALSE),0)+IF('Crop 3'!$C$51=Carbon!$B93,'Crop 3'!$V$51*VLOOKUP('Crop 3'!$E$51,Carbon!$AH$4:$AI$10,2,FALSE),0)+IF('Crop 3'!$C$52=Carbon!$B93,'Crop 3'!$V$52*VLOOKUP('Crop 3'!$E$52,Carbon!$AH$4:$AI$10,2,FALSE),0)+IF('Crop 3'!$C$53=Carbon!$B93,'Crop 3'!$V$53*VLOOKUP('Crop 3'!$E$53,Carbon!$AH$4:$AI$10,2,FALSE),0)+IF('Crop 3'!$C$56=Carbon!$B93,'Crop 3'!$V$56*VLOOKUP('Crop 3'!$E$56,Carbon!$AH$4:$AI$10,2,FALSE),0)+IF('Crop 3'!$C$57=Carbon!$B93,'Crop 3'!$V$57*VLOOKUP('Crop 3'!$E$57,Carbon!$AH$4:$AI$10,2,FALSE),0)+IF('Crop 3'!$C$58=Carbon!$B93,'Crop 3'!$V$58*VLOOKUP('Crop 3'!$E$58,Carbon!$AH$4:$AI$10,2,FALSE),0)+IF('Crop 3'!$C$59=Carbon!$B93,'Crop 3'!$V$59*VLOOKUP('Crop 3'!$E$59,Carbon!$AH$4:$AI$10,2,FALSE),0)+IF('Crop 3'!$C$62=Carbon!$B93,'Crop 3'!$V$62*VLOOKUP('Crop 3'!$E$62,Carbon!$AH$4:$AI$10,2,FALSE),0)+IF('Crop 3'!$C$63=Carbon!$B93,'Crop 3'!$V$63*VLOOKUP('Crop 3'!$E$63,Carbon!$AH$4:$AI$10,2,FALSE),0)+IF('Crop 3'!$C$64=Carbon!$B93,'Crop 3'!$V$64*VLOOKUP('Crop 3'!$E$64,Carbon!$AH$4:$AI$10,2,FALSE),0)+IF('Crop 3'!$C$65=Carbon!$B93,'Crop 3'!$V$65*VLOOKUP('Crop 3'!$E$65,Carbon!$AH$4:$AI$10,2,FALSE),0))*$AL$20,2)","v":0},{"$f":"Q93*Inputs!$D$17","v":0},{"$f":"ROUND(T93/Inputs!D$19,2)","v":0},0,null,null,0,{"$f":"W93*Inputs!$D$13","v":0},0,{"$f":"Y93*Inputs!$D$13","v":0},0,{"$f":"AA93*Inputs!$D$13","v":0},{"$f":"ROUND(AD93/Inputs!D$19,2)","v":0},0]
[null,{"$f":"Defaults!AH60","v":"Flexstar GT"},{"$f":"ROUND((IF('Crop 1'!$C$14=Carbon!$B94,'Crop 1'!$L$14*VLOOKUP('Crop 1'!$E$14,Carbon!$AH$4:$AI$10,2,FALSE),0)+IF('Crop 1'!$C$15=Carbon!$B94,'Crop 1'!$L$15*VLOOKUP('Crop 1'!$E$15,Carbon!$AH$4:$AI$10,2,FALSE),0)+IF('Crop 1'!$C$16=Carbon!$B94,'Crop 1'!$L$16*VLOOKUP('Crop 1'!$E$16,Carbon!$AH$4:$AI$10,2,FALSE),0)+IF('Crop 1'!$C$19=Carbon!$B94,'Crop 1'!$L$19*VLOOKUP('Crop 1'!$E$19,Carbon!$AH$4:$AI$10,2,FALSE),0)+IF('Crop 1'!$C$20=Carbon!$B94,'Crop 1'!$L$20*VLOOKUP('Crop 1'!$E$20,Carbon!$AH$4:$AI$10,2,FALSE),0)+IF('Crop 1'!$C$21=Carbon!$B94,'Crop 1'!$L$21*VLOOKUP('Crop 1'!$E$21,Carbon!$AH$4:$AI$10,2,FALSE),0)+IF('Crop 1'!$C$49=Carbon!$B94,'Crop 1'!$L$49*VLOOKUP('Crop 1'!$E$49,Carbon!$AH$4:$AI$10,2,FALSE),0)+IF('Crop 1'!$C$50=Carbon!$B94,'Crop 1'!$L$50*VLOOKUP('Crop 1'!$E$50,Carbon!$AH$4:$AI$10,2,FALSE),0)+IF('Crop 1'!$C$51=Carbon!$B94,'Crop 1'!$L$51*VLOOKUP('Crop 1'!$E$51,Carbon!$AH$4:$AI$10,2,FALSE),0)+IF('Crop 1'!$C$52=Carbon!$B94,'Crop 1'!$L$52*VLOOKUP('Crop 1'!$E$52,Carbon!$AH$4:$AI$10,2,FALSE),0)+IF('Crop 1'!$C$53=Carbon!$B94,'Crop 1'!$L$53*VLOOKUP('Crop 1'!$E$53,Carbon!$AH$4:$AI$10,2,FALSE),0)+IF('Crop 1'!$C$56=Carbon!$B94,'Crop 1'!$L$56*VLOOKUP('Crop 1'!$E$56,Carbon!$AH$4:$AI$10,2,FALSE),0)+IF('Crop 1'!$C$57=Carbon!$B94,'Crop 1'!$L$57*VLOOKUP('Crop 1'!$E$57,Carbon!$AH$4:$AI$10,2,FALSE),0)+IF('Crop 1'!$C$58=Carbon!$B94,'Crop 1'!$L$58*VLOOKUP('Crop 1'!$E$58,Carbon!$AH$4:$AI$10,2,FALSE),0)+IF('Crop 1'!$C$59=Carbon!$B94,'Crop 1'!$L$59*VLOOKUP('Crop 1'!$E$59,Carbon!$AH$4:$AI$10,2,FALSE),0)+IF('Crop 1'!$C$62=Carbon!$B94,'Crop 1'!$L$62*VLOOKUP('Crop 1'!$E$62,Carbon!$AH$4:$AI$10,2,FALSE),0)+IF('Crop 1'!$C$63=Carbon!$B94,'Crop 1'!$L$63*VLOOKUP('Crop 1'!$E$63,Carbon!$AH$4:$AI$10,2,FALSE),0)+IF('Crop 1'!$C$64=Carbon!$B94,'Crop 1'!$L$64*VLOOKUP('Crop 1'!$E$64,Carbon!$AH$4:$AI$10,2,FALSE),0)+IF('Crop 1'!$C$65=Carbon!$B94,'Crop 1'!$L$65*VLOOKUP('Crop 1'!$E$65,Carbon!$AH$4:$AI$10,2,FALSE),0))*$AL$20,2)","v":0},{"$f":"C94*Inputs!$D$13","v":0},{"$f":"ROUND((IF('Crop 2'!$C$14=Carbon!$B94,'Crop 2'!$L$14*VLOOKUP('Crop 2'!$E$14,Carbon!$AH$4:$AI$10,2,FALSE),0)+IF('Crop 2'!$C$15=Carbon!$B94,'Crop 2'!$L$15*VLOOKUP('Crop 2'!$E$15,Carbon!$AH$4:$AI$10,2,FALSE),0)+IF('Crop 2'!$C$16=Carbon!$B94,'Crop 2'!$L$16*VLOOKUP('Crop 2'!$E$16,Carbon!$AH$4:$AI$10,2,FALSE),0)+IF('Crop 2'!$C$19=Carbon!$B94,'Crop 2'!$L$19*VLOOKUP('Crop 2'!$E$19,Carbon!$AH$4:$AI$10,2,FALSE),0)+IF('Crop 2'!$C$20=Carbon!$B94,'Crop 2'!$L$20*VLOOKUP('Crop 2'!$E$20,Carbon!$AH$4:$AI$10,2,FALSE),0)+IF('Crop 2'!$C$21=Carbon!$B94,'Crop 2'!$L$21*VLOOKUP('Crop 2'!$E$21,Carbon!$AH$4:$AI$10,2,FALSE),0)+IF('Crop 2'!$C$49=Carbon!$B94,'Crop 2'!$L$49*VLOOKUP('Crop 2'!$E$49,Carbon!$AH$4:$AI$10,2,FALSE),0)+IF('Crop 2'!$C$50=Carbon!$B94,'Crop 2'!$L$50*VLOOKUP('Crop 2'!$E$50,Carbon!$AH$4:$AI$10,2,FALSE),0)+IF('Crop 2'!$C$51=Carbon!$B94,'Crop 2'!$L$51*VLOOKUP('Crop 2'!$E$51,Carbon!$AH$4:$AI$10,2,FALSE),0)+IF('Crop 2'!$C$52=Carbon!$B94,'Crop 2'!$L$52*VLOOKUP('Crop 2'!$E$52,Carbon!$AH$4:$AI$10,2,FALSE),0)+IF('Crop 2'!$C$53=Carbon!$B94,'Crop 2'!$L$53*VLOOKUP('Crop 2'!$E$53,Carbon!$AH$4:$AI$10,2,FALSE),0)+IF('Crop 2'!$C$56=Carbon!$B94,'Crop 2'!$L$56*VLOOKUP('Crop 2'!$E$56,Carbon!$AH$4:$AI$10,2,FALSE),0)+IF('Crop 2'!$C$57=Carbon!$B94,'Crop 2'!$L$57*VLOOKUP('Crop 2'!$E$57,Carbon!$AH$4:$AI$10,2,FALSE),0)+IF('Crop 2'!$C$58=Carbon!$B94,'Crop 2'!$L$58*VLOOKUP('Crop 2'!$E$58,Carbon!$AH$4:$AI$10,2,FALSE),0)+IF('Crop 2'!$C$59=Carbon!$B94,'Crop 2'!$L$59*VLOOKUP('Crop 2'!$E$59,Carbon!$AH$4:$AI$10,2,FALSE),0)+IF('Crop 2'!$C$62=Carbon!$B94,'Crop 2'!$L$62*VLOOKUP('Crop 2'!$E$62,Carbon!$AH$4:$AI$10,2,FALSE),0)+IF('Crop 2'!$C$63=Carbon!$B94,'Crop 2'!$L$63*VLOOKUP('Crop 2'!$E$63,Carbon!$AH$4:$AI$10,2,FALSE),0)+IF('Crop 2'!$C$64=Carbon!$B94,'Crop 2'!$L$64*VLOOKUP('Crop 2'!$E$64,Carbon!$AH$4:$AI$10,2,FALSE),0)+IF('Crop 2'!$C$65=Carbon!$B94,'Crop 2'!$L$65*VLOOKUP('Crop 2'!$E$65,Carbon!$AH$4:$AI$10,2,FALSE),0))*$AL$20,2)","v":0},{"$f":"E94*Inputs!$D$15","v":0},{"$f":"ROUND((IF('Crop 3'!$C$14=Carbon!$B94,'Crop 3'!$L$14*VLOOKUP('Crop 3'!$E$14,Carbon!$AH$4:$AI$10,2,FALSE),0)+IF('Crop 3'!$C$15=Carbon!$B94,'Crop 3'!$L$15*VLOOKUP('Crop 3'!$E$15,Carbon!$AH$4:$AI$10,2,FALSE),0)+IF('Crop 3'!$C$16=Carbon!$B94,'Crop 3'!$L$16*VLOOKUP('Crop 3'!$E$16,Carbon!$AH$4:$AI$10,2,FALSE),0)+IF('Crop 3'!$C$19=Carbon!$B94,'Crop 3'!$L$19*VLOOKUP('Crop 3'!$E$19,Carbon!$AH$4:$AI$10,2,FALSE),0)+IF('Crop 3'!$C$20=Carbon!$B94,'Crop 3'!$L$20*VLOOKUP('Crop 3'!$E$20,Carbon!$AH$4:$AI$10,2,FALSE),0)+IF('Crop 3'!$C$21=Carbon!$B94,'Crop 3'!$L$21*VLOOKUP('Crop 3'!$E$21,Carbon!$AH$4:$AI$10,2,FALSE),0)+IF('Crop 3'!$C$49=Carbon!$B94,'Crop 3'!$L$49*VLOOKUP('Crop 3'!$E$49,Carbon!$AH$4:$AI$10,2,FALSE),0)+IF('Crop 3'!$C$50=Carbon!$B94,'Crop 3'!$L$50*VLOOKUP('Crop 3'!$E$50,Carbon!$AH$4:$AI$10,2,FALSE),0)+IF('Crop 3'!$C$51=Carbon!$B94,'Crop 3'!$L$51*VLOOKUP('Crop 3'!$E$51,Carbon!$AH$4:$AI$10,2,FALSE),0)+IF('Crop 3'!$C$52=Carbon!$B94,'Crop 3'!$L$52*VLOOKUP('Crop 3'!$E$52,Carbon!$AH$4:$AI$10,2,FALSE),0)+IF('Crop 3'!$C$53=Carbon!$B94,'Crop 3'!$L$53*VLOOKUP('Crop 3'!$E$53,Carbon!$AH$4:$AI$10,2,FALSE),0)+IF('Crop 3'!$C$56=Carbon!$B94,'Crop 3'!$L$56*VLOOKUP('Crop 3'!$E$56,Carbon!$AH$4:$AI$10,2,FALSE),0)+IF('Crop 3'!$C$57=Carbon!$B94,'Crop 3'!$L$57*VLOOKUP('Crop 3'!$E$57,Carbon!$AH$4:$AI$10,2,FALSE),0)+IF('Crop 3'!$C$58=Carbon!$B94,'Crop 3'!$L$58*VLOOKUP('Crop 3'!$E$58,Carbon!$AH$4:$AI$10,2,FALSE),0)+IF('Crop 3'!$C$59=Carbon!$B94,'Crop 3'!$L$59*VLOOKUP('Crop 3'!$E$59,Carbon!$AH$4:$AI$10,2,FALSE),0)+IF('Crop 3'!$C$62=Carbon!$B94,'Crop 3'!$L$62*VLOOKUP('Crop 3'!$E$62,Carbon!$AH$4:$AI$10,2,FALSE),0)+IF('Crop 3'!$C$63=Carbon!$B94,'Crop 3'!$L$63*VLOOKUP('Crop 3'!$E$63,Carbon!$AH$4:$AI$10,2,FALSE),0)+IF('Crop 3'!$C$64=Carbon!$B94,'Crop 3'!$L$64*VLOOKUP('Crop 3'!$E$64,Carbon!$AH$4:$AI$10,2,FALSE),0)+IF('Crop 3'!$C$65=Carbon!$B94,'Crop 3'!$L$65*VLOOKUP('Crop 3'!$E$65,Carbon!$AH$4:$AI$10,2,FALSE),0))*$AL$20,2)","v":0},{"$f":"G94*Inputs!$D$17","v":0},{"$f":"ROUND(J94/Inputs!D$19,2)","v":0},0,null,null,{"$f":"ROUND((IF('Crop 1'!$C$14=Carbon!$B94,'Crop 1'!$V$14*VLOOKUP('Crop 1'!$E$14,Carbon!$AH$4:$AI$10,2,FALSE),0)+IF('Crop 1'!$C$15=Carbon!$B94,'Crop 1'!$V$15*VLOOKUP('Crop 1'!$E$15,Carbon!$AH$4:$AI$10,2,FALSE),0)+IF('Crop 1'!$C$16=Carbon!$B94,'Crop 1'!$V$16*VLOOKUP('Crop 1'!$E$16,Carbon!$AH$4:$AI$10,2,FALSE),0)+IF('Crop 1'!$C$19=Carbon!$B94,'Crop 1'!$V$19*VLOOKUP('Crop 1'!$E$19,Carbon!$AH$4:$AI$10,2,FALSE),0)+IF('Crop 1'!$C$20=Carbon!$B94,'Crop 1'!$V$20*VLOOKUP('Crop 1'!$E$20,Carbon!$AH$4:$AI$10,2,FALSE),0)+IF('Crop 1'!$C$21=Carbon!$B94,'Crop 1'!$V$21*VLOOKUP('Crop 1'!$E$21,Carbon!$AH$4:$AI$10,2,FALSE),0)+IF('Crop 1'!$C$49=Carbon!$B94,'Crop 1'!$V$49*VLOOKUP('Crop 1'!$E$49,Carbon!$AH$4:$AI$10,2,FALSE),0)+IF('Crop 1'!$C$50=Carbon!$B94,'Crop 1'!$V$50*VLOOKUP('Crop 1'!$E$50,Carbon!$AH$4:$AI$10,2,FALSE),0)+IF('Crop 1'!$C$51=Carbon!$B94,'Crop 1'!$V$51*VLOOKUP('Crop 1'!$E$51,Carbon!$AH$4:$AI$10,2,FALSE),0)+IF('Crop 1'!$C$52=Carbon!$B94,'Crop 1'!$V$52*VLOOKUP('Crop 1'!$E$52,Carbon!$AH$4:$AI$10,2,FALSE),0)+IF('Crop 1'!$C$53=Carbon!$B94,'Crop 1'!$V$53*VLOOKUP('Crop 1'!$E$53,Carbon!$AH$4:$AI$10,2,FALSE),0)+IF('Crop 1'!$C$56=Carbon!$B94,'Crop 1'!$V$56*VLOOKUP('Crop 1'!$E$56,Carbon!$AH$4:$AI$10,2,FALSE),0)+IF('Crop 1'!$C$57=Carbon!$B94,'Crop 1'!$V$57*VLOOKUP('Crop 1'!$E$57,Carbon!$AH$4:$AI$10,2,FALSE),0)+IF('Crop 1'!$C$58=Carbon!$B94,'Crop 1'!$V$58*VLOOKUP('Crop 1'!$E$58,Carbon!$AH$4:$AI$10,2,FALSE),0)+IF('Crop 1'!$C$59=Carbon!$B94,'Crop 1'!$V$59*VLOOKUP('Crop 1'!$E$59,Carbon!$AH$4:$AI$10,2,FALSE),0)+IF('Crop 1'!$C$62=Carbon!$B94,'Crop 1'!$V$62*VLOOKUP('Crop 1'!$E$62,Carbon!$AH$4:$AI$10,2,FALSE),0)+IF('Crop 1'!$C$63=Carbon!$B94,'Crop 1'!$V$63*VLOOKUP('Crop 1'!$E$63,Carbon!$AH$4:$AI$10,2,FALSE),0)+IF('Crop 1'!$C$64=Carbon!$B94,'Crop 1'!$V$64*VLOOKUP('Crop 1'!$E$64,Carbon!$AH$4:$AI$10,2,FALSE),0)+IF('Crop 1'!$C$65=Carbon!$B94,'Crop 1'!$V$65*VLOOKUP('Crop 1'!$E$65,Carbon!$AH$4:$AI$10,2,FALSE),0))*$AL$20,2)","v":0},{"$f":"M94*Inputs!$D$13","v":0},{"$f":"ROUND((IF('Crop 2'!$C$14=Carbon!$B94,'Crop 2'!$V$14*VLOOKUP('Crop 2'!$E$14,Carbon!$AH$4:$AI$10,2,FALSE),0)+IF('Crop 2'!$C$15=Carbon!$B94,'Crop 2'!$V$15*VLOOKUP('Crop 2'!$E$15,Carbon!$AH$4:$AI$10,2,FALSE),0)+IF('Crop 2'!$C$16=Carbon!$B94,'Crop 2'!$V$16*VLOOKUP('Crop 2'!$E$16,Carbon!$AH$4:$AI$10,2,FALSE),0)+IF('Crop 2'!$C$19=Carbon!$B94,'Crop 2'!$V$19*VLOOKUP('Crop 2'!$E$19,Carbon!$AH$4:$AI$10,2,FALSE),0)+IF('Crop 2'!$C$20=Carbon!$B94,'Crop 2'!$V$20*VLOOKUP('Crop 2'!$E$20,Carbon!$AH$4:$AI$10,2,FALSE),0)+IF('Crop 2'!$C$21=Carbon!$B94,'Crop 2'!$V$21*VLOOKUP('Crop 2'!$E$21,Carbon!$AH$4:$AI$10,2,FALSE),0)+IF('Crop 2'!$C$49=Carbon!$B94,'Crop 2'!$V$49*VLOOKUP('Crop 2'!$E$49,Carbon!$AH$4:$AI$10,2,FALSE),0)+IF('Crop 2'!$C$50=Carbon!$B94,'Crop 2'!$V$50*VLOOKUP('Crop 2'!$E$50,Carbon!$AH$4:$AI$10,2,FALSE),0)+IF('Crop 2'!$C$51=Carbon!$B94,'Crop 2'!$V$51*VLOOKUP('Crop 2'!$E$51,Carbon!$AH$4:$AI$10,2,FALSE),0)+IF('Crop 2'!$C$52=Carbon!$B94,'Crop 2'!$V$52*VLOOKUP('Crop 2'!$E$52,Carbon!$AH$4:$AI$10,2,FALSE),0)+IF('Crop 2'!$C$53=Carbon!$B94,'Crop 2'!$V$53*VLOOKUP('Crop 2'!$E$53,Carbon!$AH$4:$AI$10,2,FALSE),0)+IF('Crop 2'!$C$56=Carbon!$B94,'Crop 2'!$V$56*VLOOKUP('Crop 2'!$E$56,Carbon!$AH$4:$AI$10,2,FALSE),0)+IF('Crop 2'!$C$57=Carbon!$B94,'Crop 2'!$V$57*VLOOKUP('Crop 2'!$E$57,Carbon!$AH$4:$AI$10,2,FALSE),0)+IF('Crop 2'!$C$58=Carbon!$B94,'Crop 2'!$V$58*VLOOKUP('Crop 2'!$E$58,Carbon!$AH$4:$AI$10,2,FALSE),0)+IF('Crop 2'!$C$59=Carbon!$B94,'Crop 2'!$V$59*VLOOKUP('Crop 2'!$E$59,Carbon!$AH$4:$AI$10,2,FALSE),0)+IF('Crop 2'!$C$62=Carbon!$B94,'Crop 2'!$V$62*VLOOKUP('Crop 2'!$E$62,Carbon!$AH$4:$AI$10,2,FALSE),0)+IF('Crop 2'!$C$63=Carbon!$B94,'Crop 2'!$V$63*VLOOKUP('Crop 2'!$E$63,Carbon!$AH$4:$AI$10,2,FALSE),0)+IF('Crop 2'!$C$64=Carbon!$B94,'Crop 2'!$V$64*VLOOKUP('Crop 2'!$E$64,Carbon!$AH$4:$AI$10,2,FALSE),0)+IF('Crop 2'!$C$65=Carbon!$B94,'Crop 2'!$V$65*VLOOKUP('Crop 2'!$E$65,Carbon!$AH$4:$AI$10,2,FALSE),0))*$AL$20,2)","v":0},{"$f":"O94*Inputs!$D$15","v":0},{"$f":"ROUND((IF('Crop 3'!$C$14=Carbon!$B94,'Crop 3'!$V$14*VLOOKUP('Crop 3'!$E$14,Carbon!$AH$4:$AI$10,2,FALSE),0)+IF('Crop 3'!$C$15=Carbon!$B94,'Crop 3'!$V$15*VLOOKUP('Crop 3'!$E$15,Carbon!$AH$4:$AI$10,2,FALSE),0)+IF('Crop 3'!$C$16=Carbon!$B94,'Crop 3'!$V$16*VLOOKUP('Crop 3'!$E$16,Carbon!$AH$4:$AI$10,2,FALSE),0)+IF('Crop 3'!$C$19=Carbon!$B94,'Crop 3'!$V$19*VLOOKUP('Crop 3'!$E$19,Carbon!$AH$4:$AI$10,2,FALSE),0)+IF('Crop 3'!$C$20=Carbon!$B94,'Crop 3'!$V$20*VLOOKUP('Crop 3'!$E$20,Carbon!$AH$4:$AI$10,2,FALSE),0)+IF('Crop 3'!$C$21=Carbon!$B94,'Crop 3'!$V$21*VLOOKUP('Crop 3'!$E$21,Carbon!$AH$4:$AI$10,2,FALSE),0)+IF('Crop 3'!$C$49=Carbon!$B94,'Crop 3'!$V$49*VLOOKUP('Crop 3'!$E$49,Carbon!$AH$4:$AI$10,2,FALSE),0)+IF('Crop 3'!$C$50=Carbon!$B94,'Crop 3'!$V$50*VLOOKUP('Crop 3'!$E$50,Carbon!$AH$4:$AI$10,2,FALSE),0)+IF('Crop 3'!$C$51=Carbon!$B94,'Crop 3'!$V$51*VLOOKUP('Crop 3'!$E$51,Carbon!$AH$4:$AI$10,2,FALSE),0)+IF('Crop 3'!$C$52=Carbon!$B94,'Crop 3'!$V$52*VLOOKUP('Crop 3'!$E$52,Carbon!$AH$4:$AI$10,2,FALSE),0)+IF('Crop 3'!$C$53=Carbon!$B94,'Crop 3'!$V$53*VLOOKUP('Crop 3'!$E$53,Carbon!$AH$4:$AI$10,2,FALSE),0)+IF('Crop 3'!$C$56=Carbon!$B94,'Crop 3'!$V$56*VLOOKUP('Crop 3'!$E$56,Carbon!$AH$4:$AI$10,2,FALSE),0)+IF('Crop 3'!$C$57=Carbon!$B94,'Crop 3'!$V$57*VLOOKUP('Crop 3'!$E$57,Carbon!$AH$4:$AI$10,2,FALSE),0)+IF('Crop 3'!$C$58=Carbon!$B94,'Crop 3'!$V$58*VLOOKUP('Crop 3'!$E$58,Carbon!$AH$4:$AI$10,2,FALSE),0)+IF('Crop 3'!$C$59=Carbon!$B94,'Crop 3'!$V$59*VLOOKUP('Crop 3'!$E$59,Carbon!$AH$4:$AI$10,2,FALSE),0)+IF('Crop 3'!$C$62=Carbon!$B94,'Crop 3'!$V$62*VLOOKUP('Crop 3'!$E$62,Carbon!$AH$4:$AI$10,2,FALSE),0)+IF('Crop 3'!$C$63=Carbon!$B94,'Crop 3'!$V$63*VLOOKUP('Crop 3'!$E$63,Carbon!$AH$4:$AI$10,2,FALSE),0)+IF('Crop 3'!$C$64=Carbon!$B94,'Crop 3'!$V$64*VLOOKUP('Crop 3'!$E$64,Carbon!$AH$4:$AI$10,2,FALSE),0)+IF('Crop 3'!$C$65=Carbon!$B94,'Crop 3'!$V$65*VLOOKUP('Crop 3'!$E$65,Carbon!$AH$4:$AI$10,2,FALSE),0))*$AL$20,2)","v":0},{"$f":"Q94*Inputs!$D$17","v":0},{"$f":"ROUND(T94/Inputs!D$19,2)","v":0},0,null,null,0,{"$f":"W94*Inputs!$D$13","v":0},0,{"$f":"Y94*Inputs!$D$13","v":0},0,{"$f":"AA94*Inputs!$D$13","v":0},{"$f":"ROUND(AD94/Inputs!D$19,2)","v":0},0]
[null,{"$f":"Defaults!AH61","v":"Fusilade DX"},{"$f":"ROUND((IF('Crop 1'!$C$14=Carbon!$B95,'Crop 1'!$L$14*VLOOKUP('Crop 1'!$E$14,Carbon!$AH$4:$AI$10,2,FALSE),0)+IF('Crop 1'!$C$15=Carbon!$B95,'Crop 1'!$L$15*VLOOKUP('Crop 1'!$E$15,Carbon!$AH$4:$AI$10,2,FALSE),0)+IF('Crop 1'!$C$16=Carbon!$B95,'Crop 1'!$L$16*VLOOKUP('Crop 1'!$E$16,Carbon!$AH$4:$AI$10,2,FALSE),0)+IF('Crop 1'!$C$19=Carbon!$B95,'Crop 1'!$L$19*VLOOKUP('Crop 1'!$E$19,Carbon!$AH$4:$AI$10,2,FALSE),0)+IF('Crop 1'!$C$20=Carbon!$B95,'Crop 1'!$L$20*VLOOKUP('Crop 1'!$E$20,Carbon!$AH$4:$AI$10,2,FALSE),0)+IF('Crop 1'!$C$21=Carbon!$B95,'Crop 1'!$L$21*VLOOKUP('Crop 1'!$E$21,Carbon!$AH$4:$AI$10,2,FALSE),0)+IF('Crop 1'!$C$49=Carbon!$B95,'Crop 1'!$L$49*VLOOKUP('Crop 1'!$E$49,Carbon!$AH$4:$AI$10,2,FALSE),0)+IF('Crop 1'!$C$50=Carbon!$B95,'Crop 1'!$L$50*VLOOKUP('Crop 1'!$E$50,Carbon!$AH$4:$AI$10,2,FALSE),0)+IF('Crop 1'!$C$51=Carbon!$B95,'Crop 1'!$L$51*VLOOKUP('Crop 1'!$E$51,Carbon!$AH$4:$AI$10,2,FALSE),0)+IF('Crop 1'!$C$52=Carbon!$B95,'Crop 1'!$L$52*VLOOKUP('Crop 1'!$E$52,Carbon!$AH$4:$AI$10,2,FALSE),0)+IF('Crop 1'!$C$53=Carbon!$B95,'Crop 1'!$L$53*VLOOKUP('Crop 1'!$E$53,Carbon!$AH$4:$AI$10,2,FALSE),0)+IF('Crop 1'!$C$56=Carbon!$B95,'Crop 1'!$L$56*VLOOKUP('Crop 1'!$E$56,Carbon!$AH$4:$AI$10,2,FALSE),0)+IF('Crop 1'!$C$57=Carbon!$B95,'Crop 1'!$L$57*VLOOKUP('Crop 1'!$E$57,Carbon!$AH$4:$AI$10,2,FALSE),0)+IF('Crop 1'!$C$58=Carbon!$B95,'Crop 1'!$L$58*VLOOKUP('Crop 1'!$E$58,Carbon!$AH$4:$AI$10,2,FALSE),0)+IF('Crop 1'!$C$59=Carbon!$B95,'Crop 1'!$L$59*VLOOKUP('Crop 1'!$E$59,Carbon!$AH$4:$AI$10,2,FALSE),0)+IF('Crop 1'!$C$62=Carbon!$B95,'Crop 1'!$L$62*VLOOKUP('Crop 1'!$E$62,Carbon!$AH$4:$AI$10,2,FALSE),0)+IF('Crop 1'!$C$63=Carbon!$B95,'Crop 1'!$L$63*VLOOKUP('Crop 1'!$E$63,Carbon!$AH$4:$AI$10,2,FALSE),0)+IF('Crop 1'!$C$64=Carbon!$B95,'Crop 1'!$L$64*VLOOKUP('Crop 1'!$E$64,Carbon!$AH$4:$AI$10,2,FALSE),0)+IF('Crop 1'!$C$65=Carbon!$B95,'Crop 1'!$L$65*VLOOKUP('Crop 1'!$E$65,Carbon!$AH$4:$AI$10,2,FALSE),0))*$AL$20,2)","v":0},{"$f":"C95*Inputs!$D$13","v":0},{"$f":"ROUND((IF('Crop 2'!$C$14=Carbon!$B95,'Crop 2'!$L$14*VLOOKUP('Crop 2'!$E$14,Carbon!$AH$4:$AI$10,2,FALSE),0)+IF('Crop 2'!$C$15=Carbon!$B95,'Crop 2'!$L$15*VLOOKUP('Crop 2'!$E$15,Carbon!$AH$4:$AI$10,2,FALSE),0)+IF('Crop 2'!$C$16=Carbon!$B95,'Crop 2'!$L$16*VLOOKUP('Crop 2'!$E$16,Carbon!$AH$4:$AI$10,2,FALSE),0)+IF('Crop 2'!$C$19=Carbon!$B95,'Crop 2'!$L$19*VLOOKUP('Crop 2'!$E$19,Carbon!$AH$4:$AI$10,2,FALSE),0)+IF('Crop 2'!$C$20=Carbon!$B95,'Crop 2'!$L$20*VLOOKUP('Crop 2'!$E$20,Carbon!$AH$4:$AI$10,2,FALSE),0)+IF('Crop 2'!$C$21=Carbon!$B95,'Crop 2'!$L$21*VLOOKUP('Crop 2'!$E$21,Carbon!$AH$4:$AI$10,2,FALSE),0)+IF('Crop 2'!$C$49=Carbon!$B95,'Crop 2'!$L$49*VLOOKUP('Crop 2'!$E$49,Carbon!$AH$4:$AI$10,2,FALSE),0)+IF('Crop 2'!$C$50=Carbon!$B95,'Crop 2'!$L$50*VLOOKUP('Crop 2'!$E$50,Carbon!$AH$4:$AI$10,2,FALSE),0)+IF('Crop 2'!$C$51=Carbon!$B95,'Crop 2'!$L$51*VLOOKUP('Crop 2'!$E$51,Carbon!$AH$4:$AI$10,2,FALSE),0)+IF('Crop 2'!$C$52=Carbon!$B95,'Crop 2'!$L$52*VLOOKUP('Crop 2'!$E$52,Carbon!$AH$4:$AI$10,2,FALSE),0)+IF('Crop 2'!$C$53=Carbon!$B95,'Crop 2'!$L$53*VLOOKUP('Crop 2'!$E$53,Carbon!$AH$4:$AI$10,2,FALSE),0)+IF('Crop 2'!$C$56=Carbon!$B95,'Crop 2'!$L$56*VLOOKUP('Crop 2'!$E$56,Carbon!$AH$4:$AI$10,2,FALSE),0)+IF('Crop 2'!$C$57=Carbon!$B95,'Crop 2'!$L$57*VLOOKUP('Crop 2'!$E$57,Carbon!$AH$4:$AI$10,2,FALSE),0)+IF('Crop 2'!$C$58=Carbon!$B95,'Crop 2'!$L$58*VLOOKUP('Crop 2'!$E$58,Carbon!$AH$4:$AI$10,2,FALSE),0)+IF('Crop 2'!$C$59=Carbon!$B95,'Crop 2'!$L$59*VLOOKUP('Crop 2'!$E$59,Carbon!$AH$4:$AI$10,2,FALSE),0)+IF('Crop 2'!$C$62=Carbon!$B95,'Crop 2'!$L$62*VLOOKUP('Crop 2'!$E$62,Carbon!$AH$4:$AI$10,2,FALSE),0)+IF('Crop 2'!$C$63=Carbon!$B95,'Crop 2'!$L$63*VLOOKUP('Crop 2'!$E$63,Carbon!$AH$4:$AI$10,2,FALSE),0)+IF('Crop 2'!$C$64=Carbon!$B95,'Crop 2'!$L$64*VLOOKUP('Crop 2'!$E$64,Carbon!$AH$4:$AI$10,2,FALSE),0)+IF('Crop 2'!$C$65=Carbon!$B95,'Crop 2'!$L$65*VLOOKUP('Crop 2'!$E$65,Carbon!$AH$4:$AI$10,2,FALSE),0))*$AL$20,2)","v":0},{"$f":"E95*Inputs!$D$15","v":0},{"$f":"ROUND((IF('Crop 3'!$C$14=Carbon!$B95,'Crop 3'!$L$14*VLOOKUP('Crop 3'!$E$14,Carbon!$AH$4:$AI$10,2,FALSE),0)+IF('Crop 3'!$C$15=Carbon!$B95,'Crop 3'!$L$15*VLOOKUP('Crop 3'!$E$15,Carbon!$AH$4:$AI$10,2,FALSE),0)+IF('Crop 3'!$C$16=Carbon!$B95,'Crop 3'!$L$16*VLOOKUP('Crop 3'!$E$16,Carbon!$AH$4:$AI$10,2,FALSE),0)+IF('Crop 3'!$C$19=Carbon!$B95,'Crop 3'!$L$19*VLOOKUP('Crop 3'!$E$19,Carbon!$AH$4:$AI$10,2,FALSE),0)+IF('Crop 3'!$C$20=Carbon!$B95,'Crop 3'!$L$20*VLOOKUP('Crop 3'!$E$20,Carbon!$AH$4:$AI$10,2,FALSE),0)+IF('Crop 3'!$C$21=Carbon!$B95,'Crop 3'!$L$21*VLOOKUP('Crop 3'!$E$21,Carbon!$AH$4:$AI$10,2,FALSE),0)+IF('Crop 3'!$C$49=Carbon!$B95,'Crop 3'!$L$49*VLOOKUP('Crop 3'!$E$49,Carbon!$AH$4:$AI$10,2,FALSE),0)+IF('Crop 3'!$C$50=Carbon!$B95,'Crop 3'!$L$50*VLOOKUP('Crop 3'!$E$50,Carbon!$AH$4:$AI$10,2,FALSE),0)+IF('Crop 3'!$C$51=Carbon!$B95,'Crop 3'!$L$51*VLOOKUP('Crop 3'!$E$51,Carbon!$AH$4:$AI$10,2,FALSE),0)+IF('Crop 3'!$C$52=Carbon!$B95,'Crop 3'!$L$52*VLOOKUP('Crop 3'!$E$52,Carbon!$AH$4:$AI$10,2,FALSE),0)+IF('Crop 3'!$C$53=Carbon!$B95,'Crop 3'!$L$53*VLOOKUP('Crop 3'!$E$53,Carbon!$AH$4:$AI$10,2,FALSE),0)+IF('Crop 3'!$C$56=Carbon!$B95,'Crop 3'!$L$56*VLOOKUP('Crop 3'!$E$56,Carbon!$AH$4:$AI$10,2,FALSE),0)+IF('Crop 3'!$C$57=Carbon!$B95,'Crop 3'!$L$57*VLOOKUP('Crop 3'!$E$57,Carbon!$AH$4:$AI$10,2,FALSE),0)+IF('Crop 3'!$C$58=Carbon!$B95,'Crop 3'!$L$58*VLOOKUP('Crop 3'!$E$58,Carbon!$AH$4:$AI$10,2,FALSE),0)+IF('Crop 3'!$C$59=Carbon!$B95,'Crop 3'!$L$59*VLOOKUP('Crop 3'!$E$59,Carbon!$AH$4:$AI$10,2,FALSE),0)+IF('Crop 3'!$C$62=Carbon!$B95,'Crop 3'!$L$62*VLOOKUP('Crop 3'!$E$62,Carbon!$AH$4:$AI$10,2,FALSE),0)+IF('Crop 3'!$C$63=Carbon!$B95,'Crop 3'!$L$63*VLOOKUP('Crop 3'!$E$63,Carbon!$AH$4:$AI$10,2,FALSE),0)+IF('Crop 3'!$C$64=Carbon!$B95,'Crop 3'!$L$64*VLOOKUP('Crop 3'!$E$64,Carbon!$AH$4:$AI$10,2,FALSE),0)+IF('Crop 3'!$C$65=Carbon!$B95,'Crop 3'!$L$65*VLOOKUP('Crop 3'!$E$65,Carbon!$AH$4:$AI$10,2,FALSE),0))*$AL$20,2)","v":0},{"$f":"G95*Inputs!$D$17","v":0},{"$f":"ROUND(J95/Inputs!D$19,2)","v":0},0,null,null,{"$f":"ROUND((IF('Crop 1'!$C$14=Carbon!$B95,'Crop 1'!$V$14*VLOOKUP('Crop 1'!$E$14,Carbon!$AH$4:$AI$10,2,FALSE),0)+IF('Crop 1'!$C$15=Carbon!$B95,'Crop 1'!$V$15*VLOOKUP('Crop 1'!$E$15,Carbon!$AH$4:$AI$10,2,FALSE),0)+IF('Crop 1'!$C$16=Carbon!$B95,'Crop 1'!$V$16*VLOOKUP('Crop 1'!$E$16,Carbon!$AH$4:$AI$10,2,FALSE),0)+IF('Crop 1'!$C$19=Carbon!$B95,'Crop 1'!$V$19*VLOOKUP('Crop 1'!$E$19,Carbon!$AH$4:$AI$10,2,FALSE),0)+IF('Crop 1'!$C$20=Carbon!$B95,'Crop 1'!$V$20*VLOOKUP('Crop 1'!$E$20,Carbon!$AH$4:$AI$10,2,FALSE),0)+IF('Crop 1'!$C$21=Carbon!$B95,'Crop 1'!$V$21*VLOOKUP('Crop 1'!$E$21,Carbon!$AH$4:$AI$10,2,FALSE),0)+IF('Crop 1'!$C$49=Carbon!$B95,'Crop 1'!$V$49*VLOOKUP('Crop 1'!$E$49,Carbon!$AH$4:$AI$10,2,FALSE),0)+IF('Crop 1'!$C$50=Carbon!$B95,'Crop 1'!$V$50*VLOOKUP('Crop 1'!$E$50,Carbon!$AH$4:$AI$10,2,FALSE),0)+IF('Crop 1'!$C$51=Carbon!$B95,'Crop 1'!$V$51*VLOOKUP('Crop 1'!$E$51,Carbon!$AH$4:$AI$10,2,FALSE),0)+IF('Crop 1'!$C$52=Carbon!$B95,'Crop 1'!$V$52*VLOOKUP('Crop 1'!$E$52,Carbon!$AH$4:$AI$10,2,FALSE),0)+IF('Crop 1'!$C$53=Carbon!$B95,'Crop 1'!$V$53*VLOOKUP('Crop 1'!$E$53,Carbon!$AH$4:$AI$10,2,FALSE),0)+IF('Crop 1'!$C$56=Carbon!$B95,'Crop 1'!$V$56*VLOOKUP('Crop 1'!$E$56,Carbon!$AH$4:$AI$10,2,FALSE),0)+IF('Crop 1'!$C$57=Carbon!$B95,'Crop 1'!$V$57*VLOOKUP('Crop 1'!$E$57,Carbon!$AH$4:$AI$10,2,FALSE),0)+IF('Crop 1'!$C$58=Carbon!$B95,'Crop 1'!$V$58*VLOOKUP('Crop 1'!$E$58,Carbon!$AH$4:$AI$10,2,FALSE),0)+IF('Crop 1'!$C$59=Carbon!$B95,'Crop 1'!$V$59*VLOOKUP('Crop 1'!$E$59,Carbon!$AH$4:$AI$10,2,FALSE),0)+IF('Crop 1'!$C$62=Carbon!$B95,'Crop 1'!$V$62*VLOOKUP('Crop 1'!$E$62,Carbon!$AH$4:$AI$10,2,FALSE),0)+IF('Crop 1'!$C$63=Carbon!$B95,'Crop 1'!$V$63*VLOOKUP('Crop 1'!$E$63,Carbon!$AH$4:$AI$10,2,FALSE),0)+IF('Crop 1'!$C$64=Carbon!$B95,'Crop 1'!$V$64*VLOOKUP('Crop 1'!$E$64,Carbon!$AH$4:$AI$10,2,FALSE),0)+IF('Crop 1'!$C$65=Carbon!$B95,'Crop 1'!$V$65*VLOOKUP('Crop 1'!$E$65,Carbon!$AH$4:$AI$10,2,FALSE),0))*$AL$20,2)","v":0},{"$f":"M95*Inputs!$D$13","v":0},{"$f":"ROUND((IF('Crop 2'!$C$14=Carbon!$B95,'Crop 2'!$V$14*VLOOKUP('Crop 2'!$E$14,Carbon!$AH$4:$AI$10,2,FALSE),0)+IF('Crop 2'!$C$15=Carbon!$B95,'Crop 2'!$V$15*VLOOKUP('Crop 2'!$E$15,Carbon!$AH$4:$AI$10,2,FALSE),0)+IF('Crop 2'!$C$16=Carbon!$B95,'Crop 2'!$V$16*VLOOKUP('Crop 2'!$E$16,Carbon!$AH$4:$AI$10,2,FALSE),0)+IF('Crop 2'!$C$19=Carbon!$B95,'Crop 2'!$V$19*VLOOKUP('Crop 2'!$E$19,Carbon!$AH$4:$AI$10,2,FALSE),0)+IF('Crop 2'!$C$20=Carbon!$B95,'Crop 2'!$V$20*VLOOKUP('Crop 2'!$E$20,Carbon!$AH$4:$AI$10,2,FALSE),0)+IF('Crop 2'!$C$21=Carbon!$B95,'Crop 2'!$V$21*VLOOKUP('Crop 2'!$E$21,Carbon!$AH$4:$AI$10,2,FALSE),0)+IF('Crop 2'!$C$49=Carbon!$B95,'Crop 2'!$V$49*VLOOKUP('Crop 2'!$E$49,Carbon!$AH$4:$AI$10,2,FALSE),0)+IF('Crop 2'!$C$50=Carbon!$B95,'Crop 2'!$V$50*VLOOKUP('Crop 2'!$E$50,Carbon!$AH$4:$AI$10,2,FALSE),0)+IF('Crop 2'!$C$51=Carbon!$B95,'Crop 2'!$V$51*VLOOKUP('Crop 2'!$E$51,Carbon!$AH$4:$AI$10,2,FALSE),0)+IF('Crop 2'!$C$52=Carbon!$B95,'Crop 2'!$V$52*VLOOKUP('Crop 2'!$E$52,Carbon!$AH$4:$AI$10,2,FALSE),0)+IF('Crop 2'!$C$53=Carbon!$B95,'Crop 2'!$V$53*VLOOKUP('Crop 2'!$E$53,Carbon!$AH$4:$AI$10,2,FALSE),0)+IF('Crop 2'!$C$56=Carbon!$B95,'Crop 2'!$V$56*VLOOKUP('Crop 2'!$E$56,Carbon!$AH$4:$AI$10,2,FALSE),0)+IF('Crop 2'!$C$57=Carbon!$B95,'Crop 2'!$V$57*VLOOKUP('Crop 2'!$E$57,Carbon!$AH$4:$AI$10,2,FALSE),0)+IF('Crop 2'!$C$58=Carbon!$B95,'Crop 2'!$V$58*VLOOKUP('Crop 2'!$E$58,Carbon!$AH$4:$AI$10,2,FALSE),0)+IF('Crop 2'!$C$59=Carbon!$B95,'Crop 2'!$V$59*VLOOKUP('Crop 2'!$E$59,Carbon!$AH$4:$AI$10,2,FALSE),0)+IF('Crop 2'!$C$62=Carbon!$B95,'Crop 2'!$V$62*VLOOKUP('Crop 2'!$E$62,Carbon!$AH$4:$AI$10,2,FALSE),0)+IF('Crop 2'!$C$63=Carbon!$B95,'Crop 2'!$V$63*VLOOKUP('Crop 2'!$E$63,Carbon!$AH$4:$AI$10,2,FALSE),0)+IF('Crop 2'!$C$64=Carbon!$B95,'Crop 2'!$V$64*VLOOKUP('Crop 2'!$E$64,Carbon!$AH$4:$AI$10,2,FALSE),0)+IF('Crop 2'!$C$65=Carbon!$B95,'Crop 2'!$V$65*VLOOKUP('Crop 2'!$E$65,Carbon!$AH$4:$AI$10,2,FALSE),0))*$AL$20,2)","v":0},{"$f":"O95*Inputs!$D$15","v":0},{"$f":"ROUND((IF('Crop 3'!$C$14=Carbon!$B95,'Crop 3'!$V$14*VLOOKUP('Crop 3'!$E$14,Carbon!$AH$4:$AI$10,2,FALSE),0)+IF('Crop 3'!$C$15=Carbon!$B95,'Crop 3'!$V$15*VLOOKUP('Crop 3'!$E$15,Carbon!$AH$4:$AI$10,2,FALSE),0)+IF('Crop 3'!$C$16=Carbon!$B95,'Crop 3'!$V$16*VLOOKUP('Crop 3'!$E$16,Carbon!$AH$4:$AI$10,2,FALSE),0)+IF('Crop 3'!$C$19=Carbon!$B95,'Crop 3'!$V$19*VLOOKUP('Crop 3'!$E$19,Carbon!$AH$4:$AI$10,2,FALSE),0)+IF('Crop 3'!$C$20=Carbon!$B95,'Crop 3'!$V$20*VLOOKUP('Crop 3'!$E$20,Carbon!$AH$4:$AI$10,2,FALSE),0)+IF('Crop 3'!$C$21=Carbon!$B95,'Crop 3'!$V$21*VLOOKUP('Crop 3'!$E$21,Carbon!$AH$4:$AI$10,2,FALSE),0)+IF('Crop 3'!$C$49=Carbon!$B95,'Crop 3'!$V$49*VLOOKUP('Crop 3'!$E$49,Carbon!$AH$4:$AI$10,2,FALSE),0)+IF('Crop 3'!$C$50=Carbon!$B95,'Crop 3'!$V$50*VLOOKUP('Crop 3'!$E$50,Carbon!$AH$4:$AI$10,2,FALSE),0)+IF('Crop 3'!$C$51=Carbon!$B95,'Crop 3'!$V$51*VLOOKUP('Crop 3'!$E$51,Carbon!$AH$4:$AI$10,2,FALSE),0)+IF('Crop 3'!$C$52=Carbon!$B95,'Crop 3'!$V$52*VLOOKUP('Crop 3'!$E$52,Carbon!$AH$4:$AI$10,2,FALSE),0)+IF('Crop 3'!$C$53=Carbon!$B95,'Crop 3'!$V$53*VLOOKUP('Crop 3'!$E$53,Carbon!$AH$4:$AI$10,2,FALSE),0)+IF('Crop 3'!$C$56=Carbon!$B95,'Crop 3'!$V$56*VLOOKUP('Crop 3'!$E$56,Carbon!$AH$4:$AI$10,2,FALSE),0)+IF('Crop 3'!$C$57=Carbon!$B95,'Crop 3'!$V$57*VLOOKUP('Crop 3'!$E$57,Carbon!$AH$4:$AI$10,2,FALSE),0)+IF('Crop 3'!$C$58=Carbon!$B95,'Crop 3'!$V$58*VLOOKUP('Crop 3'!$E$58,Carbon!$AH$4:$AI$10,2,FALSE),0)+IF('Crop 3'!$C$59=Carbon!$B95,'Crop 3'!$V$59*VLOOKUP('Crop 3'!$E$59,Carbon!$AH$4:$AI$10,2,FALSE),0)+IF('Crop 3'!$C$62=Carbon!$B95,'Crop 3'!$V$62*VLOOKUP('Crop 3'!$E$62,Carbon!$AH$4:$AI$10,2,FALSE),0)+IF('Crop 3'!$C$63=Carbon!$B95,'Crop 3'!$V$63*VLOOKUP('Crop 3'!$E$63,Carbon!$AH$4:$AI$10,2,FALSE),0)+IF('Crop 3'!$C$64=Carbon!$B95,'Crop 3'!$V$64*VLOOKUP('Crop 3'!$E$64,Carbon!$AH$4:$AI$10,2,FALSE),0)+IF('Crop 3'!$C$65=Carbon!$B95,'Crop 3'!$V$65*VLOOKUP('Crop 3'!$E$65,Carbon!$AH$4:$AI$10,2,FALSE),0))*$AL$20,2)","v":0},{"$f":"Q95*Inputs!$D$17","v":0},{"$f":"ROUND(T95/Inputs!D$19,2)","v":0},0,null,null,0,{"$f":"W95*Inputs!$D$13","v":0},0,{"$f":"Y95*Inputs!$D$13","v":0},0,{"$f":"AA95*Inputs!$D$13","v":0},{"$f":"ROUND(AD95/Inputs!D$19,2)","v":0},0]
[null,{"$f":"Defaults!AH62","v":"Fusion"},{"$f":"ROUND((IF('Crop 1'!$C$14=Carbon!$B96,'Crop 1'!$L$14*VLOOKUP('Crop 1'!$E$14,Carbon!$AH$4:$AI$10,2,FALSE),0)+IF('Crop 1'!$C$15=Carbon!$B96,'Crop 1'!$L$15*VLOOKUP('Crop 1'!$E$15,Carbon!$AH$4:$AI$10,2,FALSE),0)+IF('Crop 1'!$C$16=Carbon!$B96,'Crop 1'!$L$16*VLOOKUP('Crop 1'!$E$16,Carbon!$AH$4:$AI$10,2,FALSE),0)+IF('Crop 1'!$C$19=Carbon!$B96,'Crop 1'!$L$19*VLOOKUP('Crop 1'!$E$19,Carbon!$AH$4:$AI$10,2,FALSE),0)+IF('Crop 1'!$C$20=Carbon!$B96,'Crop 1'!$L$20*VLOOKUP('Crop 1'!$E$20,Carbon!$AH$4:$AI$10,2,FALSE),0)+IF('Crop 1'!$C$21=Carbon!$B96,'Crop 1'!$L$21*VLOOKUP('Crop 1'!$E$21,Carbon!$AH$4:$AI$10,2,FALSE),0)+IF('Crop 1'!$C$49=Carbon!$B96,'Crop 1'!$L$49*VLOOKUP('Crop 1'!$E$49,Carbon!$AH$4:$AI$10,2,FALSE),0)+IF('Crop 1'!$C$50=Carbon!$B96,'Crop 1'!$L$50*VLOOKUP('Crop 1'!$E$50,Carbon!$AH$4:$AI$10,2,FALSE),0)+IF('Crop 1'!$C$51=Carbon!$B96,'Crop 1'!$L$51*VLOOKUP('Crop 1'!$E$51,Carbon!$AH$4:$AI$10,2,FALSE),0)+IF('Crop 1'!$C$52=Carbon!$B96,'Crop 1'!$L$52*VLOOKUP('Crop 1'!$E$52,Carbon!$AH$4:$AI$10,2,FALSE),0)+IF('Crop 1'!$C$53=Carbon!$B96,'Crop 1'!$L$53*VLOOKUP('Crop 1'!$E$53,Carbon!$AH$4:$AI$10,2,FALSE),0)+IF('Crop 1'!$C$56=Carbon!$B96,'Crop 1'!$L$56*VLOOKUP('Crop 1'!$E$56,Carbon!$AH$4:$AI$10,2,FALSE),0)+IF('Crop 1'!$C$57=Carbon!$B96,'Crop 1'!$L$57*VLOOKUP('Crop 1'!$E$57,Carbon!$AH$4:$AI$10,2,FALSE),0)+IF('Crop 1'!$C$58=Carbon!$B96,'Crop 1'!$L$58*VLOOKUP('Crop 1'!$E$58,Carbon!$AH$4:$AI$10,2,FALSE),0)+IF('Crop 1'!$C$59=Carbon!$B96,'Crop 1'!$L$59*VLOOKUP('Crop 1'!$E$59,Carbon!$AH$4:$AI$10,2,FALSE),0)+IF('Crop 1'!$C$62=Carbon!$B96,'Crop 1'!$L$62*VLOOKUP('Crop 1'!$E$62,Carbon!$AH$4:$AI$10,2,FALSE),0)+IF('Crop 1'!$C$63=Carbon!$B96,'Crop 1'!$L$63*VLOOKUP('Crop 1'!$E$63,Carbon!$AH$4:$AI$10,2,FALSE),0)+IF('Crop 1'!$C$64=Carbon!$B96,'Crop 1'!$L$64*VLOOKUP('Crop 1'!$E$64,Carbon!$AH$4:$AI$10,2,FALSE),0)+IF('Crop 1'!$C$65=Carbon!$B96,'Crop 1'!$L$65*VLOOKUP('Crop 1'!$E$65,Carbon!$AH$4:$AI$10,2,FALSE),0))*$AL$20,2)","v":0},{"$f":"C96*Inputs!$D$13","v":0},{"$f":"ROUND((IF('Crop 2'!$C$14=Carbon!$B96,'Crop 2'!$L$14*VLOOKUP('Crop 2'!$E$14,Carbon!$AH$4:$AI$10,2,FALSE),0)+IF('Crop 2'!$C$15=Carbon!$B96,'Crop 2'!$L$15*VLOOKUP('Crop 2'!$E$15,Carbon!$AH$4:$AI$10,2,FALSE),0)+IF('Crop 2'!$C$16=Carbon!$B96,'Crop 2'!$L$16*VLOOKUP('Crop 2'!$E$16,Carbon!$AH$4:$AI$10,2,FALSE),0)+IF('Crop 2'!$C$19=Carbon!$B96,'Crop 2'!$L$19*VLOOKUP('Crop 2'!$E$19,Carbon!$AH$4:$AI$10,2,FALSE),0)+IF('Crop 2'!$C$20=Carbon!$B96,'Crop 2'!$L$20*VLOOKUP('Crop 2'!$E$20,Carbon!$AH$4:$AI$10,2,FALSE),0)+IF('Crop 2'!$C$21=Carbon!$B96,'Crop 2'!$L$21*VLOOKUP('Crop 2'!$E$21,Carbon!$AH$4:$AI$10,2,FALSE),0)+IF('Crop 2'!$C$49=Carbon!$B96,'Crop 2'!$L$49*VLOOKUP('Crop 2'!$E$49,Carbon!$AH$4:$AI$10,2,FALSE),0)+IF('Crop 2'!$C$50=Carbon!$B96,'Crop 2'!$L$50*VLOOKUP('Crop 2'!$E$50,Carbon!$AH$4:$AI$10,2,FALSE),0)+IF('Crop 2'!$C$51=Carbon!$B96,'Crop 2'!$L$51*VLOOKUP('Crop 2'!$E$51,Carbon!$AH$4:$AI$10,2,FALSE),0)+IF('Crop 2'!$C$52=Carbon!$B96,'Crop 2'!$L$52*VLOOKUP('Crop 2'!$E$52,Carbon!$AH$4:$AI$10,2,FALSE),0)+IF('Crop 2'!$C$53=Carbon!$B96,'Crop 2'!$L$53*VLOOKUP('Crop 2'!$E$53,Carbon!$AH$4:$AI$10,2,FALSE),0)+IF('Crop 2'!$C$56=Carbon!$B96,'Crop 2'!$L$56*VLOOKUP('Crop 2'!$E$56,Carbon!$AH$4:$AI$10,2,FALSE),0)+IF('Crop 2'!$C$57=Carbon!$B96,'Crop 2'!$L$57*VLOOKUP('Crop 2'!$E$57,Carbon!$AH$4:$AI$10,2,FALSE),0)+IF('Crop 2'!$C$58=Carbon!$B96,'Crop 2'!$L$58*VLOOKUP('Crop 2'!$E$58,Carbon!$AH$4:$AI$10,2,FALSE),0)+IF('Crop 2'!$C$59=Carbon!$B96,'Crop 2'!$L$59*VLOOKUP('Crop 2'!$E$59,Carbon!$AH$4:$AI$10,2,FALSE),0)+IF('Crop 2'!$C$62=Carbon!$B96,'Crop 2'!$L$62*VLOOKUP('Crop 2'!$E$62,Carbon!$AH$4:$AI$10,2,FALSE),0)+IF('Crop 2'!$C$63=Carbon!$B96,'Crop 2'!$L$63*VLOOKUP('Crop 2'!$E$63,Carbon!$AH$4:$AI$10,2,FALSE),0)+IF('Crop 2'!$C$64=Carbon!$B96,'Crop 2'!$L$64*VLOOKUP('Crop 2'!$E$64,Carbon!$AH$4:$AI$10,2,FALSE),0)+IF('Crop 2'!$C$65=Carbon!$B96,'Crop 2'!$L$65*VLOOKUP('Crop 2'!$E$65,Carbon!$AH$4:$AI$10,2,FALSE),0))*$AL$20,2)","v":0},{"$f":"E96*Inputs!$D$15","v":0},{"$f":"ROUND((IF('Crop 3'!$C$14=Carbon!$B96,'Crop 3'!$L$14*VLOOKUP('Crop 3'!$E$14,Carbon!$AH$4:$AI$10,2,FALSE),0)+IF('Crop 3'!$C$15=Carbon!$B96,'Crop 3'!$L$15*VLOOKUP('Crop 3'!$E$15,Carbon!$AH$4:$AI$10,2,FALSE),0)+IF('Crop 3'!$C$16=Carbon!$B96,'Crop 3'!$L$16*VLOOKUP('Crop 3'!$E$16,Carbon!$AH$4:$AI$10,2,FALSE),0)+IF('Crop 3'!$C$19=Carbon!$B96,'Crop 3'!$L$19*VLOOKUP('Crop 3'!$E$19,Carbon!$AH$4:$AI$10,2,FALSE),0)+IF('Crop 3'!$C$20=Carbon!$B96,'Crop 3'!$L$20*VLOOKUP('Crop 3'!$E$20,Carbon!$AH$4:$AI$10,2,FALSE),0)+IF('Crop 3'!$C$21=Carbon!$B96,'Crop 3'!$L$21*VLOOKUP('Crop 3'!$E$21,Carbon!$AH$4:$AI$10,2,FALSE),0)+IF('Crop 3'!$C$49=Carbon!$B96,'Crop 3'!$L$49*VLOOKUP('Crop 3'!$E$49,Carbon!$AH$4:$AI$10,2,FALSE),0)+IF('Crop 3'!$C$50=Carbon!$B96,'Crop 3'!$L$50*VLOOKUP('Crop 3'!$E$50,Carbon!$AH$4:$AI$10,2,FALSE),0)+IF('Crop 3'!$C$51=Carbon!$B96,'Crop 3'!$L$51*VLOOKUP('Crop 3'!$E$51,Carbon!$AH$4:$AI$10,2,FALSE),0)+IF('Crop 3'!$C$52=Carbon!$B96,'Crop 3'!$L$52*VLOOKUP('Crop 3'!$E$52,Carbon!$AH$4:$AI$10,2,FALSE),0)+IF('Crop 3'!$C$53=Carbon!$B96,'Crop 3'!$L$53*VLOOKUP('Crop 3'!$E$53,Carbon!$AH$4:$AI$10,2,FALSE),0)+IF('Crop 3'!$C$56=Carbon!$B96,'Crop 3'!$L$56*VLOOKUP('Crop 3'!$E$56,Carbon!$AH$4:$AI$10,2,FALSE),0)+IF('Crop 3'!$C$57=Carbon!$B96,'Crop 3'!$L$57*VLOOKUP('Crop 3'!$E$57,Carbon!$AH$4:$AI$10,2,FALSE),0)+IF('Crop 3'!$C$58=Carbon!$B96,'Crop 3'!$L$58*VLOOKUP('Crop 3'!$E$58,Carbon!$AH$4:$AI$10,2,FALSE),0)+IF('Crop 3'!$C$59=Carbon!$B96,'Crop 3'!$L$59*VLOOKUP('Crop 3'!$E$59,Carbon!$AH$4:$AI$10,2,FALSE),0)+IF('Crop 3'!$C$62=Carbon!$B96,'Crop 3'!$L$62*VLOOKUP('Crop 3'!$E$62,Carbon!$AH$4:$AI$10,2,FALSE),0)+IF('Crop 3'!$C$63=Carbon!$B96,'Crop 3'!$L$63*VLOOKUP('Crop 3'!$E$63,Carbon!$AH$4:$AI$10,2,FALSE),0)+IF('Crop 3'!$C$64=Carbon!$B96,'Crop 3'!$L$64*VLOOKUP('Crop 3'!$E$64,Carbon!$AH$4:$AI$10,2,FALSE),0)+IF('Crop 3'!$C$65=Carbon!$B96,'Crop 3'!$L$65*VLOOKUP('Crop 3'!$E$65,Carbon!$AH$4:$AI$10,2,FALSE),0))*$AL$20,2)","v":0},{"$f":"G96*Inputs!$D$17","v":0},{"$f":"ROUND(J96/Inputs!D$19,2)","v":0},0,null,null,{"$f":"ROUND((IF('Crop 1'!$C$14=Carbon!$B96,'Crop 1'!$V$14*VLOOKUP('Crop 1'!$E$14,Carbon!$AH$4:$AI$10,2,FALSE),0)+IF('Crop 1'!$C$15=Carbon!$B96,'Crop 1'!$V$15*VLOOKUP('Crop 1'!$E$15,Carbon!$AH$4:$AI$10,2,FALSE),0)+IF('Crop 1'!$C$16=Carbon!$B96,'Crop 1'!$V$16*VLOOKUP('Crop 1'!$E$16,Carbon!$AH$4:$AI$10,2,FALSE),0)+IF('Crop 1'!$C$19=Carbon!$B96,'Crop 1'!$V$19*VLOOKUP('Crop 1'!$E$19,Carbon!$AH$4:$AI$10,2,FALSE),0)+IF('Crop 1'!$C$20=Carbon!$B96,'Crop 1'!$V$20*VLOOKUP('Crop 1'!$E$20,Carbon!$AH$4:$AI$10,2,FALSE),0)+IF('Crop 1'!$C$21=Carbon!$B96,'Crop 1'!$V$21*VLOOKUP('Crop 1'!$E$21,Carbon!$AH$4:$AI$10,2,FALSE),0)+IF('Crop 1'!$C$49=Carbon!$B96,'Crop 1'!$V$49*VLOOKUP('Crop 1'!$E$49,Carbon!$AH$4:$AI$10,2,FALSE),0)+IF('Crop 1'!$C$50=Carbon!$B96,'Crop 1'!$V$50*VLOOKUP('Crop 1'!$E$50,Carbon!$AH$4:$AI$10,2,FALSE),0)+IF('Crop 1'!$C$51=Carbon!$B96,'Crop 1'!$V$51*VLOOKUP('Crop 1'!$E$51,Carbon!$AH$4:$AI$10,2,FALSE),0)+IF('Crop 1'!$C$52=Carbon!$B96,'Crop 1'!$V$52*VLOOKUP('Crop 1'!$E$52,Carbon!$AH$4:$AI$10,2,FALSE),0)+IF('Crop 1'!$C$53=Carbon!$B96,'Crop 1'!$V$53*VLOOKUP('Crop 1'!$E$53,Carbon!$AH$4:$AI$10,2,FALSE),0)+IF('Crop 1'!$C$56=Carbon!$B96,'Crop 1'!$V$56*VLOOKUP('Crop 1'!$E$56,Carbon!$AH$4:$AI$10,2,FALSE),0)+IF('Crop 1'!$C$57=Carbon!$B96,'Crop 1'!$V$57*VLOOKUP('Crop 1'!$E$57,Carbon!$AH$4:$AI$10,2,FALSE),0)+IF('Crop 1'!$C$58=Carbon!$B96,'Crop 1'!$V$58*VLOOKUP('Crop 1'!$E$58,Carbon!$AH$4:$AI$10,2,FALSE),0)+IF('Crop 1'!$C$59=Carbon!$B96,'Crop 1'!$V$59*VLOOKUP('Crop 1'!$E$59,Carbon!$AH$4:$AI$10,2,FALSE),0)+IF('Crop 1'!$C$62=Carbon!$B96,'Crop 1'!$V$62*VLOOKUP('Crop 1'!$E$62,Carbon!$AH$4:$AI$10,2,FALSE),0)+IF('Crop 1'!$C$63=Carbon!$B96,'Crop 1'!$V$63*VLOOKUP('Crop 1'!$E$63,Carbon!$AH$4:$AI$10,2,FALSE),0)+IF('Crop 1'!$C$64=Carbon!$B96,'Crop 1'!$V$64*VLOOKUP('Crop 1'!$E$64,Carbon!$AH$4:$AI$10,2,FALSE),0)+IF('Crop 1'!$C$65=Carbon!$B96,'Crop 1'!$V$65*VLOOKUP('Crop 1'!$E$65,Carbon!$AH$4:$AI$10,2,FALSE),0))*$AL$20,2)","v":0},{"$f":"M96*Inputs!$D$13","v":0},{"$f":"ROUND((IF('Crop 2'!$C$14=Carbon!$B96,'Crop 2'!$V$14*VLOOKUP('Crop 2'!$E$14,Carbon!$AH$4:$AI$10,2,FALSE),0)+IF('Crop 2'!$C$15=Carbon!$B96,'Crop 2'!$V$15*VLOOKUP('Crop 2'!$E$15,Carbon!$AH$4:$AI$10,2,FALSE),0)+IF('Crop 2'!$C$16=Carbon!$B96,'Crop 2'!$V$16*VLOOKUP('Crop 2'!$E$16,Carbon!$AH$4:$AI$10,2,FALSE),0)+IF('Crop 2'!$C$19=Carbon!$B96,'Crop 2'!$V$19*VLOOKUP('Crop 2'!$E$19,Carbon!$AH$4:$AI$10,2,FALSE),0)+IF('Crop 2'!$C$20=Carbon!$B96,'Crop 2'!$V$20*VLOOKUP('Crop 2'!$E$20,Carbon!$AH$4:$AI$10,2,FALSE),0)+IF('Crop 2'!$C$21=Carbon!$B96,'Crop 2'!$V$21*VLOOKUP('Crop 2'!$E$21,Carbon!$AH$4:$AI$10,2,FALSE),0)+IF('Crop 2'!$C$49=Carbon!$B96,'Crop 2'!$V$49*VLOOKUP('Crop 2'!$E$49,Carbon!$AH$4:$AI$10,2,FALSE),0)+IF('Crop 2'!$C$50=Carbon!$B96,'Crop 2'!$V$50*VLOOKUP('Crop 2'!$E$50,Carbon!$AH$4:$AI$10,2,FALSE),0)+IF('Crop 2'!$C$51=Carbon!$B96,'Crop 2'!$V$51*VLOOKUP('Crop 2'!$E$51,Carbon!$AH$4:$AI$10,2,FALSE),0)+IF('Crop 2'!$C$52=Carbon!$B96,'Crop 2'!$V$52*VLOOKUP('Crop 2'!$E$52,Carbon!$AH$4:$AI$10,2,FALSE),0)+IF('Crop 2'!$C$53=Carbon!$B96,'Crop 2'!$V$53*VLOOKUP('Crop 2'!$E$53,Carbon!$AH$4:$AI$10,2,FALSE),0)+IF('Crop 2'!$C$56=Carbon!$B96,'Crop 2'!$V$56*VLOOKUP('Crop 2'!$E$56,Carbon!$AH$4:$AI$10,2,FALSE),0)+IF('Crop 2'!$C$57=Carbon!$B96,'Crop 2'!$V$57*VLOOKUP('Crop 2'!$E$57,Carbon!$AH$4:$AI$10,2,FALSE),0)+IF('Crop 2'!$C$58=Carbon!$B96,'Crop 2'!$V$58*VLOOKUP('Crop 2'!$E$58,Carbon!$AH$4:$AI$10,2,FALSE),0)+IF('Crop 2'!$C$59=Carbon!$B96,'Crop 2'!$V$59*VLOOKUP('Crop 2'!$E$59,Carbon!$AH$4:$AI$10,2,FALSE),0)+IF('Crop 2'!$C$62=Carbon!$B96,'Crop 2'!$V$62*VLOOKUP('Crop 2'!$E$62,Carbon!$AH$4:$AI$10,2,FALSE),0)+IF('Crop 2'!$C$63=Carbon!$B96,'Crop 2'!$V$63*VLOOKUP('Crop 2'!$E$63,Carbon!$AH$4:$AI$10,2,FALSE),0)+IF('Crop 2'!$C$64=Carbon!$B96,'Crop 2'!$V$64*VLOOKUP('Crop 2'!$E$64,Carbon!$AH$4:$AI$10,2,FALSE),0)+IF('Crop 2'!$C$65=Carbon!$B96,'Crop 2'!$V$65*VLOOKUP('Crop 2'!$E$65,Carbon!$AH$4:$AI$10,2,FALSE),0))*$AL$20,2)","v":0},{"$f":"O96*Inputs!$D$15","v":0},{"$f":"ROUND((IF('Crop 3'!$C$14=Carbon!$B96,'Crop 3'!$V$14*VLOOKUP('Crop 3'!$E$14,Carbon!$AH$4:$AI$10,2,FALSE),0)+IF('Crop 3'!$C$15=Carbon!$B96,'Crop 3'!$V$15*VLOOKUP('Crop 3'!$E$15,Carbon!$AH$4:$AI$10,2,FALSE),0)+IF('Crop 3'!$C$16=Carbon!$B96,'Crop 3'!$V$16*VLOOKUP('Crop 3'!$E$16,Carbon!$AH$4:$AI$10,2,FALSE),0)+IF('Crop 3'!$C$19=Carbon!$B96,'Crop 3'!$V$19*VLOOKUP('Crop 3'!$E$19,Carbon!$AH$4:$AI$10,2,FALSE),0)+IF('Crop 3'!$C$20=Carbon!$B96,'Crop 3'!$V$20*VLOOKUP('Crop 3'!$E$20,Carbon!$AH$4:$AI$10,2,FALSE),0)+IF('Crop 3'!$C$21=Carbon!$B96,'Crop 3'!$V$21*VLOOKUP('Crop 3'!$E$21,Carbon!$AH$4:$AI$10,2,FALSE),0)+IF('Crop 3'!$C$49=Carbon!$B96,'Crop 3'!$V$49*VLOOKUP('Crop 3'!$E$49,Carbon!$AH$4:$AI$10,2,FALSE),0)+IF('Crop 3'!$C$50=Carbon!$B96,'Crop 3'!$V$50*VLOOKUP('Crop 3'!$E$50,Carbon!$AH$4:$AI$10,2,FALSE),0)+IF('Crop 3'!$C$51=Carbon!$B96,'Crop 3'!$V$51*VLOOKUP('Crop 3'!$E$51,Carbon!$AH$4:$AI$10,2,FALSE),0)+IF('Crop 3'!$C$52=Carbon!$B96,'Crop 3'!$V$52*VLOOKUP('Crop 3'!$E$52,Carbon!$AH$4:$AI$10,2,FALSE),0)+IF('Crop 3'!$C$53=Carbon!$B96,'Crop 3'!$V$53*VLOOKUP('Crop 3'!$E$53,Carbon!$AH$4:$AI$10,2,FALSE),0)+IF('Crop 3'!$C$56=Carbon!$B96,'Crop 3'!$V$56*VLOOKUP('Crop 3'!$E$56,Carbon!$AH$4:$AI$10,2,FALSE),0)+IF('Crop 3'!$C$57=Carbon!$B96,'Crop 3'!$V$57*VLOOKUP('Crop 3'!$E$57,Carbon!$AH$4:$AI$10,2,FALSE),0)+IF('Crop 3'!$C$58=Carbon!$B96,'Crop 3'!$V$58*VLOOKUP('Crop 3'!$E$58,Carbon!$AH$4:$AI$10,2,FALSE),0)+IF('Crop 3'!$C$59=Carbon!$B96,'Crop 3'!$V$59*VLOOKUP('Crop 3'!$E$59,Carbon!$AH$4:$AI$10,2,FALSE),0)+IF('Crop 3'!$C$62=Carbon!$B96,'Crop 3'!$V$62*VLOOKUP('Crop 3'!$E$62,Carbon!$AH$4:$AI$10,2,FALSE),0)+IF('Crop 3'!$C$63=Carbon!$B96,'Crop 3'!$V$63*VLOOKUP('Crop 3'!$E$63,Carbon!$AH$4:$AI$10,2,FALSE),0)+IF('Crop 3'!$C$64=Carbon!$B96,'Crop 3'!$V$64*VLOOKUP('Crop 3'!$E$64,Carbon!$AH$4:$AI$10,2,FALSE),0)+IF('Crop 3'!$C$65=Carbon!$B96,'Crop 3'!$V$65*VLOOKUP('Crop 3'!$E$65,Carbon!$AH$4:$AI$10,2,FALSE),0))*$AL$20,2)","v":0},{"$f":"Q96*Inputs!$D$17","v":0},{"$f":"ROUND(T96/Inputs!D$19,2)","v":0},0,null,null,0,{"$f":"W96*Inputs!$D$13","v":0},0,{"$f":"Y96*Inputs!$D$13","v":0},0,{"$f":"AA96*Inputs!$D$13","v":0},{"$f":"ROUND(AD96/Inputs!D$19,2)","v":0},0]
[null,{"$f":"Defaults!AH63","v":"Glyphosate"},{"$f":"ROUND((IF('Crop 1'!$C$14=Carbon!$B97,'Crop 1'!$L$14*VLOOKUP('Crop 1'!$E$14,Carbon!$AH$4:$AI$10,2,FALSE),0)+IF('Crop 1'!$C$15=Carbon!$B97,'Crop 1'!$L$15*VLOOKUP('Crop 1'!$E$15,Carbon!$AH$4:$AI$10,2,FALSE),0)+IF('Crop 1'!$C$16=Carbon!$B97,'Crop 1'!$L$16*VLOOKUP('Crop 1'!$E$16,Carbon!$AH$4:$AI$10,2,FALSE),0)+IF('Crop 1'!$C$19=Carbon!$B97,'Crop 1'!$L$19*VLOOKUP('Crop 1'!$E$19,Carbon!$AH$4:$AI$10,2,FALSE),0)+IF('Crop 1'!$C$20=Carbon!$B97,'Crop 1'!$L$20*VLOOKUP('Crop 1'!$E$20,Carbon!$AH$4:$AI$10,2,FALSE),0)+IF('Crop 1'!$C$21=Carbon!$B97,'Crop 1'!$L$21*VLOOKUP('Crop 1'!$E$21,Carbon!$AH$4:$AI$10,2,FALSE),0)+IF('Crop 1'!$C$49=Carbon!$B97,'Crop 1'!$L$49*VLOOKUP('Crop 1'!$E$49,Carbon!$AH$4:$AI$10,2,FALSE),0)+IF('Crop 1'!$C$50=Carbon!$B97,'Crop 1'!$L$50*VLOOKUP('Crop 1'!$E$50,Carbon!$AH$4:$AI$10,2,FALSE),0)+IF('Crop 1'!$C$51=Carbon!$B97,'Crop 1'!$L$51*VLOOKUP('Crop 1'!$E$51,Carbon!$AH$4:$AI$10,2,FALSE),0)+IF('Crop 1'!$C$52=Carbon!$B97,'Crop 1'!$L$52*VLOOKUP('Crop 1'!$E$52,Carbon!$AH$4:$AI$10,2,FALSE),0)+IF('Crop 1'!$C$53=Carbon!$B97,'Crop 1'!$L$53*VLOOKUP('Crop 1'!$E$53,Carbon!$AH$4:$AI$10,2,FALSE),0)+IF('Crop 1'!$C$56=Carbon!$B97,'Crop 1'!$L$56*VLOOKUP('Crop 1'!$E$56,Carbon!$AH$4:$AI$10,2,FALSE),0)+IF('Crop 1'!$C$57=Carbon!$B97,'Crop 1'!$L$57*VLOOKUP('Crop 1'!$E$57,Carbon!$AH$4:$AI$10,2,FALSE),0)+IF('Crop 1'!$C$58=Carbon!$B97,'Crop 1'!$L$58*VLOOKUP('Crop 1'!$E$58,Carbon!$AH$4:$AI$10,2,FALSE),0)+IF('Crop 1'!$C$59=Carbon!$B97,'Crop 1'!$L$59*VLOOKUP('Crop 1'!$E$59,Carbon!$AH$4:$AI$10,2,FALSE),0)+IF('Crop 1'!$C$62=Carbon!$B97,'Crop 1'!$L$62*VLOOKUP('Crop 1'!$E$62,Carbon!$AH$4:$AI$10,2,FALSE),0)+IF('Crop 1'!$C$63=Carbon!$B97,'Crop 1'!$L$63*VLOOKUP('Crop 1'!$E$63,Carbon!$AH$4:$AI$10,2,FALSE),0)+IF('Crop 1'!$C$64=Carbon!$B97,'Crop 1'!$L$64*VLOOKUP('Crop 1'!$E$64,Carbon!$AH$4:$AI$10,2,FALSE),0)+IF('Crop 1'!$C$65=Carbon!$B97,'Crop 1'!$L$65*VLOOKUP('Crop 1'!$E$65,Carbon!$AH$4:$AI$10,2,FALSE),0))*$AL$20,2)","v":20.83},{"$f":"C97*Inputs!$D$13","v":6248.9999999999991},{"$f":"ROUND((IF('Crop 2'!$C$14=Carbon!$B97,'Crop 2'!$L$14*VLOOKUP('Crop 2'!$E$14,Carbon!$AH$4:$AI$10,2,FALSE),0)+IF('Crop 2'!$C$15=Carbon!$B97,'Crop 2'!$L$15*VLOOKUP('Crop 2'!$E$15,Carbon!$AH$4:$AI$10,2,FALSE),0)+IF('Crop 2'!$C$16=Carbon!$B97,'Crop 2'!$L$16*VLOOKUP('Crop 2'!$E$16,Carbon!$AH$4:$AI$10,2,FALSE),0)+IF('Crop 2'!$C$19=Carbon!$B97,'Crop 2'!$L$19*VLOOKUP('Crop 2'!$E$19,Carbon!$AH$4:$AI$10,2,FALSE),0)+IF('Crop 2'!$C$20=Carbon!$B97,'Crop 2'!$L$20*VLOOKUP('Crop 2'!$E$20,Carbon!$AH$4:$AI$10,2,FALSE),0)+IF('Crop 2'!$C$21=Carbon!$B97,'Crop 2'!$L$21*VLOOKUP('Crop 2'!$E$21,Carbon!$AH$4:$AI$10,2,FALSE),0)+IF('Crop 2'!$C$49=Carbon!$B97,'Crop 2'!$L$49*VLOOKUP('Crop 2'!$E$49,Carbon!$AH$4:$AI$10,2,FALSE),0)+IF('Crop 2'!$C$50=Carbon!$B97,'Crop 2'!$L$50*VLOOKUP('Crop 2'!$E$50,Carbon!$AH$4:$AI$10,2,FALSE),0)+IF('Crop 2'!$C$51=Carbon!$B97,'Crop 2'!$L$51*VLOOKUP('Crop 2'!$E$51,Carbon!$AH$4:$AI$10,2,FALSE),0)+IF('Crop 2'!$C$52=Carbon!$B97,'Crop 2'!$L$52*VLOOKUP('Crop 2'!$E$52,Carbon!$AH$4:$AI$10,2,FALSE),0)+IF('Crop 2'!$C$53=Carbon!$B97,'Crop 2'!$L$53*VLOOKUP('Crop 2'!$E$53,Carbon!$AH$4:$AI$10,2,FALSE),0)+IF('Crop 2'!$C$56=Carbon!$B97,'Crop 2'!$L$56*VLOOKUP('Crop 2'!$E$56,Carbon!$AH$4:$AI$10,2,FALSE),0)+IF('Crop 2'!$C$57=Carbon!$B97,'Crop 2'!$L$57*VLOOKUP('Crop 2'!$E$57,Carbon!$AH$4:$AI$10,2,FALSE),0)+IF('Crop 2'!$C$58=Carbon!$B97,'Crop 2'!$L$58*VLOOKUP('Crop 2'!$E$58,Carbon!$AH$4:$AI$10,2,FALSE),0)+IF('Crop 2'!$C$59=Carbon!$B97,'Crop 2'!$L$59*VLOOKUP('Crop 2'!$E$59,Carbon!$AH$4:$AI$10,2,FALSE),0)+IF('Crop 2'!$C$62=Carbon!$B97,'Crop 2'!$L$62*VLOOKUP('Crop 2'!$E$62,Carbon!$AH$4:$AI$10,2,FALSE),0)+IF('Crop 2'!$C$63=Carbon!$B97,'Crop 2'!$L$63*VLOOKUP('Crop 2'!$E$63,Carbon!$AH$4:$AI$10,2,FALSE),0)+IF('Crop 2'!$C$64=Carbon!$B97,'Crop 2'!$L$64*VLOOKUP('Crop 2'!$E$64,Carbon!$AH$4:$AI$10,2,FALSE),0)+IF('Crop 2'!$C$65=Carbon!$B97,'Crop 2'!$L$65*VLOOKUP('Crop 2'!$E$65,Carbon!$AH$4:$AI$10,2,FALSE),0))*$AL$20,2)","v":6.94},{"$f":"E97*Inputs!$D$15","v":1388},{"$f":"ROUND((IF('Crop 3'!$C$14=Carbon!$B97,'Crop 3'!$L$14*VLOOKUP('Crop 3'!$E$14,Carbon!$AH$4:$AI$10,2,FALSE),0)+IF('Crop 3'!$C$15=Carbon!$B97,'Crop 3'!$L$15*VLOOKUP('Crop 3'!$E$15,Carbon!$AH$4:$AI$10,2,FALSE),0)+IF('Crop 3'!$C$16=Carbon!$B97,'Crop 3'!$L$16*VLOOKUP('Crop 3'!$E$16,Carbon!$AH$4:$AI$10,2,FALSE),0)+IF('Crop 3'!$C$19=Carbon!$B97,'Crop 3'!$L$19*VLOOKUP('Crop 3'!$E$19,Carbon!$AH$4:$AI$10,2,FALSE),0)+IF('Crop 3'!$C$20=Carbon!$B97,'Crop 3'!$L$20*VLOOKUP('Crop 3'!$E$20,Carbon!$AH$4:$AI$10,2,FALSE),0)+IF('Crop 3'!$C$21=Carbon!$B97,'Crop 3'!$L$21*VLOOKUP('Crop 3'!$E$21,Carbon!$AH$4:$AI$10,2,FALSE),0)+IF('Crop 3'!$C$49=Carbon!$B97,'Crop 3'!$L$49*VLOOKUP('Crop 3'!$E$49,Carbon!$AH$4:$AI$10,2,FALSE),0)+IF('Crop 3'!$C$50=Carbon!$B97,'Crop 3'!$L$50*VLOOKUP('Crop 3'!$E$50,Carbon!$AH$4:$AI$10,2,FALSE),0)+IF('Crop 3'!$C$51=Carbon!$B97,'Crop 3'!$L$51*VLOOKUP('Crop 3'!$E$51,Carbon!$AH$4:$AI$10,2,FALSE),0)+IF('Crop 3'!$C$52=Carbon!$B97,'Crop 3'!$L$52*VLOOKUP('Crop 3'!$E$52,Carbon!$AH$4:$AI$10,2,FALSE),0)+IF('Crop 3'!$C$53=Carbon!$B97,'Crop 3'!$L$53*VLOOKUP('Crop 3'!$E$53,Carbon!$AH$4:$AI$10,2,FALSE),0)+IF('Crop 3'!$C$56=Carbon!$B97,'Crop 3'!$L$56*VLOOKUP('Crop 3'!$E$56,Carbon!$AH$4:$AI$10,2,FALSE),0)+IF('Crop 3'!$C$57=Carbon!$B97,'Crop 3'!$L$57*VLOOKUP('Crop 3'!$E$57,Carbon!$AH$4:$AI$10,2,FALSE),0)+IF('Crop 3'!$C$58=Carbon!$B97,'Crop 3'!$L$58*VLOOKUP('Crop 3'!$E$58,Carbon!$AH$4:$AI$10,2,FALSE),0)+IF('Crop 3'!$C$59=Carbon!$B97,'Crop 3'!$L$59*VLOOKUP('Crop 3'!$E$59,Carbon!$AH$4:$AI$10,2,FALSE),0)+IF('Crop 3'!$C$62=Carbon!$B97,'Crop 3'!$L$62*VLOOKUP('Crop 3'!$E$62,Carbon!$AH$4:$AI$10,2,FALSE),0)+IF('Crop 3'!$C$63=Carbon!$B97,'Crop 3'!$L$63*VLOOKUP('Crop 3'!$E$63,Carbon!$AH$4:$AI$10,2,FALSE),0)+IF('Crop 3'!$C$64=Carbon!$B97,'Crop 3'!$L$64*VLOOKUP('Crop 3'!$E$64,Carbon!$AH$4:$AI$10,2,FALSE),0)+IF('Crop 3'!$C$65=Carbon!$B97,'Crop 3'!$L$65*VLOOKUP('Crop 3'!$E$65,Carbon!$AH$4:$AI$10,2,FALSE),0))*$AL$20,2)","v":0},{"$f":"G97*Inputs!$D$17","v":0},{"$f":"ROUND(J97/Inputs!D$19,2)","v":12.73},7637,null,null,{"$f":"ROUND((IF('Crop 1'!$C$14=Carbon!$B97,'Crop 1'!$V$14*VLOOKUP('Crop 1'!$E$14,Carbon!$AH$4:$AI$10,2,FALSE),0)+IF('Crop 1'!$C$15=Carbon!$B97,'Crop 1'!$V$15*VLOOKUP('Crop 1'!$E$15,Carbon!$AH$4:$AI$10,2,FALSE),0)+IF('Crop 1'!$C$16=Carbon!$B97,'Crop 1'!$V$16*VLOOKUP('Crop 1'!$E$16,Carbon!$AH$4:$AI$10,2,FALSE),0)+IF('Crop 1'!$C$19=Carbon!$B97,'Crop 1'!$V$19*VLOOKUP('Crop 1'!$E$19,Carbon!$AH$4:$AI$10,2,FALSE),0)+IF('Crop 1'!$C$20=Carbon!$B97,'Crop 1'!$V$20*VLOOKUP('Crop 1'!$E$20,Carbon!$AH$4:$AI$10,2,FALSE),0)+IF('Crop 1'!$C$21=Carbon!$B97,'Crop 1'!$V$21*VLOOKUP('Crop 1'!$E$21,Carbon!$AH$4:$AI$10,2,FALSE),0)+IF('Crop 1'!$C$49=Carbon!$B97,'Crop 1'!$V$49*VLOOKUP('Crop 1'!$E$49,Carbon!$AH$4:$AI$10,2,FALSE),0)+IF('Crop 1'!$C$50=Carbon!$B97,'Crop 1'!$V$50*VLOOKUP('Crop 1'!$E$50,Carbon!$AH$4:$AI$10,2,FALSE),0)+IF('Crop 1'!$C$51=Carbon!$B97,'Crop 1'!$V$51*VLOOKUP('Crop 1'!$E$51,Carbon!$AH$4:$AI$10,2,FALSE),0)+IF('Crop 1'!$C$52=Carbon!$B97,'Crop 1'!$V$52*VLOOKUP('Crop 1'!$E$52,Carbon!$AH$4:$AI$10,2,FALSE),0)+IF('Crop 1'!$C$53=Carbon!$B97,'Crop 1'!$V$53*VLOOKUP('Crop 1'!$E$53,Carbon!$AH$4:$AI$10,2,FALSE),0)+IF('Crop 1'!$C$56=Carbon!$B97,'Crop 1'!$V$56*VLOOKUP('Crop 1'!$E$56,Carbon!$AH$4:$AI$10,2,FALSE),0)+IF('Crop 1'!$C$57=Carbon!$B97,'Crop 1'!$V$57*VLOOKUP('Crop 1'!$E$57,Carbon!$AH$4:$AI$10,2,FALSE),0)+IF('Crop 1'!$C$58=Carbon!$B97,'Crop 1'!$V$58*VLOOKUP('Crop 1'!$E$58,Carbon!$AH$4:$AI$10,2,FALSE),0)+IF('Crop 1'!$C$59=Carbon!$B97,'Crop 1'!$V$59*VLOOKUP('Crop 1'!$E$59,Carbon!$AH$4:$AI$10,2,FALSE),0)+IF('Crop 1'!$C$62=Carbon!$B97,'Crop 1'!$V$62*VLOOKUP('Crop 1'!$E$62,Carbon!$AH$4:$AI$10,2,FALSE),0)+IF('Crop 1'!$C$63=Carbon!$B97,'Crop 1'!$V$63*VLOOKUP('Crop 1'!$E$63,Carbon!$AH$4:$AI$10,2,FALSE),0)+IF('Crop 1'!$C$64=Carbon!$B97,'Crop 1'!$V$64*VLOOKUP('Crop 1'!$E$64,Carbon!$AH$4:$AI$10,2,FALSE),0)+IF('Crop 1'!$C$65=Carbon!$B97,'Crop 1'!$V$65*VLOOKUP('Crop 1'!$E$65,Carbon!$AH$4:$AI$10,2,FALSE),0))*$AL$20,2)","v":16.23},{"$f":"M97*Inputs!$D$13","v":4869},{"$f":"ROUND((IF('Crop 2'!$C$14=Carbon!$B97,'Crop 2'!$V$14*VLOOKUP('Crop 2'!$E$14,Carbon!$AH$4:$AI$10,2,FALSE),0)+IF('Crop 2'!$C$15=Carbon!$B97,'Crop 2'!$V$15*VLOOKUP('Crop 2'!$E$15,Carbon!$AH$4:$AI$10,2,FALSE),0)+IF('Crop 2'!$C$16=Carbon!$B97,'Crop 2'!$V$16*VLOOKUP('Crop 2'!$E$16,Carbon!$AH$4:$AI$10,2,FALSE),0)+IF('Crop 2'!$C$19=Carbon!$B97,'Crop 2'!$V$19*VLOOKUP('Crop 2'!$E$19,Carbon!$AH$4:$AI$10,2,FALSE),0)+IF('Crop 2'!$C$20=Carbon!$B97,'Crop 2'!$V$20*VLOOKUP('Crop 2'!$E$20,Carbon!$AH$4:$AI$10,2,FALSE),0)+IF('Crop 2'!$C$21=Carbon!$B97,'Crop 2'!$V$21*VLOOKUP('Crop 2'!$E$21,Carbon!$AH$4:$AI$10,2,FALSE),0)+IF('Crop 2'!$C$49=Carbon!$B97,'Crop 2'!$V$49*VLOOKUP('Crop 2'!$E$49,Carbon!$AH$4:$AI$10,2,FALSE),0)+IF('Crop 2'!$C$50=Carbon!$B97,'Crop 2'!$V$50*VLOOKUP('Crop 2'!$E$50,Carbon!$AH$4:$AI$10,2,FALSE),0)+IF('Crop 2'!$C$51=Carbon!$B97,'Crop 2'!$V$51*VLOOKUP('Crop 2'!$E$51,Carbon!$AH$4:$AI$10,2,FALSE),0)+IF('Crop 2'!$C$52=Carbon!$B97,'Crop 2'!$V$52*VLOOKUP('Crop 2'!$E$52,Carbon!$AH$4:$AI$10,2,FALSE),0)+IF('Crop 2'!$C$53=Carbon!$B97,'Crop 2'!$V$53*VLOOKUP('Crop 2'!$E$53,Carbon!$AH$4:$AI$10,2,FALSE),0)+IF('Crop 2'!$C$56=Carbon!$B97,'Crop 2'!$V$56*VLOOKUP('Crop 2'!$E$56,Carbon!$AH$4:$AI$10,2,FALSE),0)+IF('Crop 2'!$C$57=Carbon!$B97,'Crop 2'!$V$57*VLOOKUP('Crop 2'!$E$57,Carbon!$AH$4:$AI$10,2,FALSE),0)+IF('Crop 2'!$C$58=Carbon!$B97,'Crop 2'!$V$58*VLOOKUP('Crop 2'!$E$58,Carbon!$AH$4:$AI$10,2,FALSE),0)+IF('Crop 2'!$C$59=Carbon!$B97,'Crop 2'!$V$59*VLOOKUP('Crop 2'!$E$59,Carbon!$AH$4:$AI$10,2,FALSE),0)+IF('Crop 2'!$C$62=Carbon!$B97,'Crop 2'!$V$62*VLOOKUP('Crop 2'!$E$62,Carbon!$AH$4:$AI$10,2,FALSE),0)+IF('Crop 2'!$C$63=Carbon!$B97,'Crop 2'!$V$63*VLOOKUP('Crop 2'!$E$63,Carbon!$AH$4:$AI$10,2,FALSE),0)+IF('Crop 2'!$C$64=Carbon!$B97,'Crop 2'!$V$64*VLOOKUP('Crop 2'!$E$64,Carbon!$AH$4:$AI$10,2,FALSE),0)+IF('Crop 2'!$C$65=Carbon!$B97,'Crop 2'!$V$65*VLOOKUP('Crop 2'!$E$65,Carbon!$AH$4:$AI$10,2,FALSE),0))*$AL$20,2)","v":5.41},{"$f":"O97*Inputs!$D$15","v":1082},{"$f":"ROUND((IF('Crop 3'!$C$14=Carbon!$B97,'Crop 3'!$V$14*VLOOKUP('Crop 3'!$E$14,Carbon!$AH$4:$AI$10,2,FALSE),0)+IF('Crop 3'!$C$15=Carbon!$B97,'Crop 3'!$V$15*VLOOKUP('Crop 3'!$E$15,Carbon!$AH$4:$AI$10,2,FALSE),0)+IF('Crop 3'!$C$16=Carbon!$B97,'Crop 3'!$V$16*VLOOKUP('Crop 3'!$E$16,Carbon!$AH$4:$AI$10,2,FALSE),0)+IF('Crop 3'!$C$19=Carbon!$B97,'Crop 3'!$V$19*VLOOKUP('Crop 3'!$E$19,Carbon!$AH$4:$AI$10,2,FALSE),0)+IF('Crop 3'!$C$20=Carbon!$B97,'Crop 3'!$V$20*VLOOKUP('Crop 3'!$E$20,Carbon!$AH$4:$AI$10,2,FALSE),0)+IF('Crop 3'!$C$21=Carbon!$B97,'Crop 3'!$V$21*VLOOKUP('Crop 3'!$E$21,Carbon!$AH$4:$AI$10,2,FALSE),0)+IF('Crop 3'!$C$49=Carbon!$B97,'Crop 3'!$V$49*VLOOKUP('Crop 3'!$E$49,Carbon!$AH$4:$AI$10,2,FALSE),0)+IF('Crop 3'!$C$50=Carbon!$B97,'Crop 3'!$V$50*VLOOKUP('Crop 3'!$E$50,Carbon!$AH$4:$AI$10,2,FALSE),0)+IF('Crop 3'!$C$51=Carbon!$B97,'Crop 3'!$V$51*VLOOKUP('Crop 3'!$E$51,Carbon!$AH$4:$AI$10,2,FALSE),0)+IF('Crop 3'!$C$52=Carbon!$B97,'Crop 3'!$V$52*VLOOKUP('Crop 3'!$E$52,Carbon!$AH$4:$AI$10,2,FALSE),0)+IF('Crop 3'!$C$53=Carbon!$B97,'Crop 3'!$V$53*VLOOKUP('Crop 3'!$E$53,Carbon!$AH$4:$AI$10,2,FALSE),0)+IF('Crop 3'!$C$56=Carbon!$B97,'Crop 3'!$V$56*VLOOKUP('Crop 3'!$E$56,Carbon!$AH$4:$AI$10,2,FALSE),0)+IF('Crop 3'!$C$57=Carbon!$B97,'Crop 3'!$V$57*VLOOKUP('Crop 3'!$E$57,Carbon!$AH$4:$AI$10,2,FALSE),0)+IF('Crop 3'!$C$58=Carbon!$B97,'Crop 3'!$V$58*VLOOKUP('Crop 3'!$E$58,Carbon!$AH$4:$AI$10,2,FALSE),0)+IF('Crop 3'!$C$59=Carbon!$B97,'Crop 3'!$V$59*VLOOKUP('Crop 3'!$E$59,Carbon!$AH$4:$AI$10,2,FALSE),0)+IF('Crop 3'!$C$62=Carbon!$B97,'Crop 3'!$V$62*VLOOKUP('Crop 3'!$E$62,Carbon!$AH$4:$AI$10,2,FALSE),0)+IF('Crop 3'!$C$63=Carbon!$B97,'Crop 3'!$V$63*VLOOKUP('Crop 3'!$E$63,Carbon!$AH$4:$AI$10,2,FALSE),0)+IF('Crop 3'!$C$64=Carbon!$B97,'Crop 3'!$V$64*VLOOKUP('Crop 3'!$E$64,Carbon!$AH$4:$AI$10,2,FALSE),0)+IF('Crop 3'!$C$65=Carbon!$B97,'Crop 3'!$V$65*VLOOKUP('Crop 3'!$E$65,Carbon!$AH$4:$AI$10,2,FALSE),0))*$AL$20,2)","v":0},{"$f":"Q97*Inputs!$D$17","v":0},{"$f":"ROUND(T97/Inputs!D$19,2)","v":9.92},5951,null,null,-4.5999999999999979,{"$f":"W97*Inputs!$D$13","v":-1379.9999999999993},-1.5300000000000002,{"$f":"Y97*Inputs!$D$13","v":-459.00000000000006},0,{"$f":"AA97*Inputs!$D$13","v":0},{"$f":"ROUND(AD97/Inputs!D$19,2)","v":-3.07},-1839]
[null,{"$f":"Defaults!AH64","v":"Gramoxone"},{"$f":"ROUND((IF('Crop 1'!$C$14=Carbon!$B98,'Crop 1'!$L$14*VLOOKUP('Crop 1'!$E$14,Carbon!$AH$4:$AI$10,2,FALSE),0)+IF('Crop 1'!$C$15=Carbon!$B98,'Crop 1'!$L$15*VLOOKUP('Crop 1'!$E$15,Carbon!$AH$4:$AI$10,2,FALSE),0)+IF('Crop 1'!$C$16=Carbon!$B98,'Crop 1'!$L$16*VLOOKUP('Crop 1'!$E$16,Carbon!$AH$4:$AI$10,2,FALSE),0)+IF('Crop 1'!$C$19=Carbon!$B98,'Crop 1'!$L$19*VLOOKUP('Crop 1'!$E$19,Carbon!$AH$4:$AI$10,2,FALSE),0)+IF('Crop 1'!$C$20=Carbon!$B98,'Crop 1'!$L$20*VLOOKUP('Crop 1'!$E$20,Carbon!$AH$4:$AI$10,2,FALSE),0)+IF('Crop 1'!$C$21=Carbon!$B98,'Crop 1'!$L$21*VLOOKUP('Crop 1'!$E$21,Carbon!$AH$4:$AI$10,2,FALSE),0)+IF('Crop 1'!$C$49=Carbon!$B98,'Crop 1'!$L$49*VLOOKUP('Crop 1'!$E$49,Carbon!$AH$4:$AI$10,2,FALSE),0)+IF('Crop 1'!$C$50=Carbon!$B98,'Crop 1'!$L$50*VLOOKUP('Crop 1'!$E$50,Carbon!$AH$4:$AI$10,2,FALSE),0)+IF('Crop 1'!$C$51=Carbon!$B98,'Crop 1'!$L$51*VLOOKUP('Crop 1'!$E$51,Carbon!$AH$4:$AI$10,2,FALSE),0)+IF('Crop 1'!$C$52=Carbon!$B98,'Crop 1'!$L$52*VLOOKUP('Crop 1'!$E$52,Carbon!$AH$4:$AI$10,2,FALSE),0)+IF('Crop 1'!$C$53=Carbon!$B98,'Crop 1'!$L$53*VLOOKUP('Crop 1'!$E$53,Carbon!$AH$4:$AI$10,2,FALSE),0)+IF('Crop 1'!$C$56=Carbon!$B98,'Crop 1'!$L$56*VLOOKUP('Crop 1'!$E$56,Carbon!$AH$4:$AI$10,2,FALSE),0)+IF('Crop 1'!$C$57=Carbon!$B98,'Crop 1'!$L$57*VLOOKUP('Crop 1'!$E$57,Carbon!$AH$4:$AI$10,2,FALSE),0)+IF('Crop 1'!$C$58=Carbon!$B98,'Crop 1'!$L$58*VLOOKUP('Crop 1'!$E$58,Carbon!$AH$4:$AI$10,2,FALSE),0)+IF('Crop 1'!$C$59=Carbon!$B98,'Crop 1'!$L$59*VLOOKUP('Crop 1'!$E$59,Carbon!$AH$4:$AI$10,2,FALSE),0)+IF('Crop 1'!$C$62=Carbon!$B98,'Crop 1'!$L$62*VLOOKUP('Crop 1'!$E$62,Carbon!$AH$4:$AI$10,2,FALSE),0)+IF('Crop 1'!$C$63=Carbon!$B98,'Crop 1'!$L$63*VLOOKUP('Crop 1'!$E$63,Carbon!$AH$4:$AI$10,2,FALSE),0)+IF('Crop 1'!$C$64=Carbon!$B98,'Crop 1'!$L$64*VLOOKUP('Crop 1'!$E$64,Carbon!$AH$4:$AI$10,2,FALSE),0)+IF('Crop 1'!$C$65=Carbon!$B98,'Crop 1'!$L$65*VLOOKUP('Crop 1'!$E$65,Carbon!$AH$4:$AI$10,2,FALSE),0))*$AL$20,2)","v":6.94},{"$f":"C98*Inputs!$D$13","v":2082},{"$f":"ROUND((IF('Crop 2'!$C$14=Carbon!$B98,'Crop 2'!$L$14*VLOOKUP('Crop 2'!$E$14,Carbon!$AH$4:$AI$10,2,FALSE),0)+IF('Crop 2'!$C$15=Carbon!$B98,'Crop 2'!$L$15*VLOOKUP('Crop 2'!$E$15,Carbon!$AH$4:$AI$10,2,FALSE),0)+IF('Crop 2'!$C$16=Carbon!$B98,'Crop 2'!$L$16*VLOOKUP('Crop 2'!$E$16,Carbon!$AH$4:$AI$10,2,FALSE),0)+IF('Crop 2'!$C$19=Carbon!$B98,'Crop 2'!$L$19*VLOOKUP('Crop 2'!$E$19,Carbon!$AH$4:$AI$10,2,FALSE),0)+IF('Crop 2'!$C$20=Carbon!$B98,'Crop 2'!$L$20*VLOOKUP('Crop 2'!$E$20,Carbon!$AH$4:$AI$10,2,FALSE),0)+IF('Crop 2'!$C$21=Carbon!$B98,'Crop 2'!$L$21*VLOOKUP('Crop 2'!$E$21,Carbon!$AH$4:$AI$10,2,FALSE),0)+IF('Crop 2'!$C$49=Carbon!$B98,'Crop 2'!$L$49*VLOOKUP('Crop 2'!$E$49,Carbon!$AH$4:$AI$10,2,FALSE),0)+IF('Crop 2'!$C$50=Carbon!$B98,'Crop 2'!$L$50*VLOOKUP('Crop 2'!$E$50,Carbon!$AH$4:$AI$10,2,FALSE),0)+IF('Crop 2'!$C$51=Carbon!$B98,'Crop 2'!$L$51*VLOOKUP('Crop 2'!$E$51,Carbon!$AH$4:$AI$10,2,FALSE),0)+IF('Crop 2'!$C$52=Carbon!$B98,'Crop 2'!$L$52*VLOOKUP('Crop 2'!$E$52,Carbon!$AH$4:$AI$10,2,FALSE),0)+IF('Crop 2'!$C$53=Carbon!$B98,'Crop 2'!$L$53*VLOOKUP('Crop 2'!$E$53,Carbon!$AH$4:$AI$10,2,FALSE),0)+IF('Crop 2'!$C$56=Carbon!$B98,'Crop 2'!$L$56*VLOOKUP('Crop 2'!$E$56,Carbon!$AH$4:$AI$10,2,FALSE),0)+IF('Crop 2'!$C$57=Carbon!$B98,'Crop 2'!$L$57*VLOOKUP('Crop 2'!$E$57,Carbon!$AH$4:$AI$10,2,FALSE),0)+IF('Crop 2'!$C$58=Carbon!$B98,'Crop 2'!$L$58*VLOOKUP('Crop 2'!$E$58,Carbon!$AH$4:$AI$10,2,FALSE),0)+IF('Crop 2'!$C$59=Carbon!$B98,'Crop 2'!$L$59*VLOOKUP('Crop 2'!$E$59,Carbon!$AH$4:$AI$10,2,FALSE),0)+IF('Crop 2'!$C$62=Carbon!$B98,'Crop 2'!$L$62*VLOOKUP('Crop 2'!$E$62,Carbon!$AH$4:$AI$10,2,FALSE),0)+IF('Crop 2'!$C$63=Carbon!$B98,'Crop 2'!$L$63*VLOOKUP('Crop 2'!$E$63,Carbon!$AH$4:$AI$10,2,FALSE),0)+IF('Crop 2'!$C$64=Carbon!$B98,'Crop 2'!$L$64*VLOOKUP('Crop 2'!$E$64,Carbon!$AH$4:$AI$10,2,FALSE),0)+IF('Crop 2'!$C$65=Carbon!$B98,'Crop 2'!$L$65*VLOOKUP('Crop 2'!$E$65,Carbon!$AH$4:$AI$10,2,FALSE),0))*$AL$20,2)","v":0},{"$f":"E98*Inputs!$D$15","v":0},{"$f":"ROUND((IF('Crop 3'!$C$14=Carbon!$B98,'Crop 3'!$L$14*VLOOKUP('Crop 3'!$E$14,Carbon!$AH$4:$AI$10,2,FALSE),0)+IF('Crop 3'!$C$15=Carbon!$B98,'Crop 3'!$L$15*VLOOKUP('Crop 3'!$E$15,Carbon!$AH$4:$AI$10,2,FALSE),0)+IF('Crop 3'!$C$16=Carbon!$B98,'Crop 3'!$L$16*VLOOKUP('Crop 3'!$E$16,Carbon!$AH$4:$AI$10,2,FALSE),0)+IF('Crop 3'!$C$19=Carbon!$B98,'Crop 3'!$L$19*VLOOKUP('Crop 3'!$E$19,Carbon!$AH$4:$AI$10,2,FALSE),0)+IF('Crop 3'!$C$20=Carbon!$B98,'Crop 3'!$L$20*VLOOKUP('Crop 3'!$E$20,Carbon!$AH$4:$AI$10,2,FALSE),0)+IF('Crop 3'!$C$21=Carbon!$B98,'Crop 3'!$L$21*VLOOKUP('Crop 3'!$E$21,Carbon!$AH$4:$AI$10,2,FALSE),0)+IF('Crop 3'!$C$49=Carbon!$B98,'Crop 3'!$L$49*VLOOKUP('Crop 3'!$E$49,Carbon!$AH$4:$AI$10,2,FALSE),0)+IF('Crop 3'!$C$50=Carbon!$B98,'Crop 3'!$L$50*VLOOKUP('Crop 3'!$E$50,Carbon!$AH$4:$AI$10,2,FALSE),0)+IF('Crop 3'!$C$51=Carbon!$B98,'Crop 3'!$L$51*VLOOKUP('Crop 3'!$E$51,Carbon!$AH$4:$AI$10,2,FALSE),0)+IF('Crop 3'!$C$52=Carbon!$B98,'Crop 3'!$L$52*VLOOKUP('Crop 3'!$E$52,Carbon!$AH$4:$AI$10,2,FALSE),0)+IF('Crop 3'!$C$53=Carbon!$B98,'Crop 3'!$L$53*VLOOKUP('Crop 3'!$E$53,Carbon!$AH$4:$AI$10,2,FALSE),0)+IF('Crop 3'!$C$56=Carbon!$B98,'Crop 3'!$L$56*VLOOKUP('Crop 3'!$E$56,Carbon!$AH$4:$AI$10,2,FALSE),0)+IF('Crop 3'!$C$57=Carbon!$B98,'Crop 3'!$L$57*VLOOKUP('Crop 3'!$E$57,Carbon!$AH$4:$AI$10,2,FALSE),0)+IF('Crop 3'!$C$58=Carbon!$B98,'Crop 3'!$L$58*VLOOKUP('Crop 3'!$E$58,Carbon!$AH$4:$AI$10,2,FALSE),0)+IF('Crop 3'!$C$59=Carbon!$B98,'Crop 3'!$L$59*VLOOKUP('Crop 3'!$E$59,Carbon!$AH$4:$AI$10,2,FALSE),0)+IF('Crop 3'!$C$62=Carbon!$B98,'Crop 3'!$L$62*VLOOKUP('Crop 3'!$E$62,Carbon!$AH$4:$AI$10,2,FALSE),0)+IF('Crop 3'!$C$63=Carbon!$B98,'Crop 3'!$L$63*VLOOKUP('Crop 3'!$E$63,Carbon!$AH$4:$AI$10,2,FALSE),0)+IF('Crop 3'!$C$64=Carbon!$B98,'Crop 3'!$L$64*VLOOKUP('Crop 3'!$E$64,Carbon!$AH$4:$AI$10,2,FALSE),0)+IF('Crop 3'!$C$65=Carbon!$B98,'Crop 3'!$L$65*VLOOKUP('Crop 3'!$E$65,Carbon!$AH$4:$AI$10,2,FALSE),0))*$AL$20,2)","v":0},{"$f":"G98*Inputs!$D$17","v":0},{"$f":"ROUND(J98/Inputs!D$19,2)","v":3.47},2082,null,null,{"$f":"ROUND((IF('Crop 1'!$C$14=Carbon!$B98,'Crop 1'!$V$14*VLOOKUP('Crop 1'!$E$14,Carbon!$AH$4:$AI$10,2,FALSE),0)+IF('Crop 1'!$C$15=Carbon!$B98,'Crop 1'!$V$15*VLOOKUP('Crop 1'!$E$15,Carbon!$AH$4:$AI$10,2,FALSE),0)+IF('Crop 1'!$C$16=Carbon!$B98,'Crop 1'!$V$16*VLOOKUP('Crop 1'!$E$16,Carbon!$AH$4:$AI$10,2,FALSE),0)+IF('Crop 1'!$C$19=Carbon!$B98,'Crop 1'!$V$19*VLOOKUP('Crop 1'!$E$19,Carbon!$AH$4:$AI$10,2,FALSE),0)+IF('Crop 1'!$C$20=Carbon!$B98,'Crop 1'!$V$20*VLOOKUP('Crop 1'!$E$20,Carbon!$AH$4:$AI$10,2,FALSE),0)+IF('Crop 1'!$C$21=Carbon!$B98,'Crop 1'!$V$21*VLOOKUP('Crop 1'!$E$21,Carbon!$AH$4:$AI$10,2,FALSE),0)+IF('Crop 1'!$C$49=Carbon!$B98,'Crop 1'!$V$49*VLOOKUP('Crop 1'!$E$49,Carbon!$AH$4:$AI$10,2,FALSE),0)+IF('Crop 1'!$C$50=Carbon!$B98,'Crop 1'!$V$50*VLOOKUP('Crop 1'!$E$50,Carbon!$AH$4:$AI$10,2,FALSE),0)+IF('Crop 1'!$C$51=Carbon!$B98,'Crop 1'!$V$51*VLOOKUP('Crop 1'!$E$51,Carbon!$AH$4:$AI$10,2,FALSE),0)+IF('Crop 1'!$C$52=Carbon!$B98,'Crop 1'!$V$52*VLOOKUP('Crop 1'!$E$52,Carbon!$AH$4:$AI$10,2,FALSE),0)+IF('Crop 1'!$C$53=Carbon!$B98,'Crop 1'!$V$53*VLOOKUP('Crop 1'!$E$53,Carbon!$AH$4:$AI$10,2,FALSE),0)+IF('Crop 1'!$C$56=Carbon!$B98,'Crop 1'!$V$56*VLOOKUP('Crop 1'!$E$56,Carbon!$AH$4:$AI$10,2,FALSE),0)+IF('Crop 1'!$C$57=Carbon!$B98,'Crop 1'!$V$57*VLOOKUP('Crop 1'!$E$57,Carbon!$AH$4:$AI$10,2,FALSE),0)+IF('Crop 1'!$C$58=Carbon!$B98,'Crop 1'!$V$58*VLOOKUP('Crop 1'!$E$58,Carbon!$AH$4:$AI$10,2,FALSE),0)+IF('Crop 1'!$C$59=Carbon!$B98,'Crop 1'!$V$59*VLOOKUP('Crop 1'!$E$59,Carbon!$AH$4:$AI$10,2,FALSE),0)+IF('Crop 1'!$C$62=Carbon!$B98,'Crop 1'!$V$62*VLOOKUP('Crop 1'!$E$62,Carbon!$AH$4:$AI$10,2,FALSE),0)+IF('Crop 1'!$C$63=Carbon!$B98,'Crop 1'!$V$63*VLOOKUP('Crop 1'!$E$63,Carbon!$AH$4:$AI$10,2,FALSE),0)+IF('Crop 1'!$C$64=Carbon!$B98,'Crop 1'!$V$64*VLOOKUP('Crop 1'!$E$64,Carbon!$AH$4:$AI$10,2,FALSE),0)+IF('Crop 1'!$C$65=Carbon!$B98,'Crop 1'!$V$65*VLOOKUP('Crop 1'!$E$65,Carbon!$AH$4:$AI$10,2,FALSE),0))*$AL$20,2)","v":5.41},{"$f":"M98*Inputs!$D$13","v":1623},{"$f":"ROUND((IF('Crop 2'!$C$14=Carbon!$B98,'Crop 2'!$V$14*VLOOKUP('Crop 2'!$E$14,Carbon!$AH$4:$AI$10,2,FALSE),0)+IF('Crop 2'!$C$15=Carbon!$B98,'Crop 2'!$V$15*VLOOKUP('Crop 2'!$E$15,Carbon!$AH$4:$AI$10,2,FALSE),0)+IF('Crop 2'!$C$16=Carbon!$B98,'Crop 2'!$V$16*VLOOKUP('Crop 2'!$E$16,Carbon!$AH$4:$AI$10,2,FALSE),0)+IF('Crop 2'!$C$19=Carbon!$B98,'Crop 2'!$V$19*VLOOKUP('Crop 2'!$E$19,Carbon!$AH$4:$AI$10,2,FALSE),0)+IF('Crop 2'!$C$20=Carbon!$B98,'Crop 2'!$V$20*VLOOKUP('Crop 2'!$E$20,Carbon!$AH$4:$AI$10,2,FALSE),0)+IF('Crop 2'!$C$21=Carbon!$B98,'Crop 2'!$V$21*VLOOKUP('Crop 2'!$E$21,Carbon!$AH$4:$AI$10,2,FALSE),0)+IF('Crop 2'!$C$49=Carbon!$B98,'Crop 2'!$V$49*VLOOKUP('Crop 2'!$E$49,Carbon!$AH$4:$AI$10,2,FALSE),0)+IF('Crop 2'!$C$50=Carbon!$B98,'Crop 2'!$V$50*VLOOKUP('Crop 2'!$E$50,Carbon!$AH$4:$AI$10,2,FALSE),0)+IF('Crop 2'!$C$51=Carbon!$B98,'Crop 2'!$V$51*VLOOKUP('Crop 2'!$E$51,Carbon!$AH$4:$AI$10,2,FALSE),0)+IF('Crop 2'!$C$52=Carbon!$B98,'Crop 2'!$V$52*VLOOKUP('Crop 2'!$E$52,Carbon!$AH$4:$AI$10,2,FALSE),0)+IF('Crop 2'!$C$53=Carbon!$B98,'Crop 2'!$V$53*VLOOKUP('Crop 2'!$E$53,Carbon!$AH$4:$AI$10,2,FALSE),0)+IF('Crop 2'!$C$56=Carbon!$B98,'Crop 2'!$V$56*VLOOKUP('Crop 2'!$E$56,Carbon!$AH$4:$AI$10,2,FALSE),0)+IF('Crop 2'!$C$57=Carbon!$B98,'Crop 2'!$V$57*VLOOKUP('Crop 2'!$E$57,Carbon!$AH$4:$AI$10,2,FALSE),0)+IF('Crop 2'!$C$58=Carbon!$B98,'Crop 2'!$V$58*VLOOKUP('Crop 2'!$E$58,Carbon!$AH$4:$AI$10,2,FALSE),0)+IF('Crop 2'!$C$59=Carbon!$B98,'Crop 2'!$V$59*VLOOKUP('Crop 2'!$E$59,Carbon!$AH$4:$AI$10,2,FALSE),0)+IF('Crop 2'!$C$62=Carbon!$B98,'Crop 2'!$V$62*VLOOKUP('Crop 2'!$E$62,Carbon!$AH$4:$AI$10,2,FALSE),0)+IF('Crop 2'!$C$63=Carbon!$B98,'Crop 2'!$V$63*VLOOKUP('Crop 2'!$E$63,Carbon!$AH$4:$AI$10,2,FALSE),0)+IF('Crop 2'!$C$64=Carbon!$B98,'Crop 2'!$V$64*VLOOKUP('Crop 2'!$E$64,Carbon!$AH$4:$AI$10,2,FALSE),0)+IF('Crop 2'!$C$65=Carbon!$B98,'Crop 2'!$V$65*VLOOKUP('Crop 2'!$E$65,Carbon!$AH$4:$AI$10,2,FALSE),0))*$AL$20,2)","v":0},{"$f":"O98*Inputs!$D$15","v":0},{"$f":"ROUND((IF('Crop 3'!$C$14=Carbon!$B98,'Crop 3'!$V$14*VLOOKUP('Crop 3'!$E$14,Carbon!$AH$4:$AI$10,2,FALSE),0)+IF('Crop 3'!$C$15=Carbon!$B98,'Crop 3'!$V$15*VLOOKUP('Crop 3'!$E$15,Carbon!$AH$4:$AI$10,2,FALSE),0)+IF('Crop 3'!$C$16=Carbon!$B98,'Crop 3'!$V$16*VLOOKUP('Crop 3'!$E$16,Carbon!$AH$4:$AI$10,2,FALSE),0)+IF('Crop 3'!$C$19=Carbon!$B98,'Crop 3'!$V$19*VLOOKUP('Crop 3'!$E$19,Carbon!$AH$4:$AI$10,2,FALSE),0)+IF('Crop 3'!$C$20=Carbon!$B98,'Crop 3'!$V$20*VLOOKUP('Crop 3'!$E$20,Carbon!$AH$4:$AI$10,2,FALSE),0)+IF('Crop 3'!$C$21=Carbon!$B98,'Crop 3'!$V$21*VLOOKUP('Crop 3'!$E$21,Carbon!$AH$4:$AI$10,2,FALSE),0)+IF('Crop 3'!$C$49=Carbon!$B98,'Crop 3'!$V$49*VLOOKUP('Crop 3'!$E$49,Carbon!$AH$4:$AI$10,2,FALSE),0)+IF('Crop 3'!$C$50=Carbon!$B98,'Crop 3'!$V$50*VLOOKUP('Crop 3'!$E$50,Carbon!$AH$4:$AI$10,2,FALSE),0)+IF('Crop 3'!$C$51=Carbon!$B98,'Crop 3'!$V$51*VLOOKUP('Crop 3'!$E$51,Carbon!$AH$4:$AI$10,2,FALSE),0)+IF('Crop 3'!$C$52=Carbon!$B98,'Crop 3'!$V$52*VLOOKUP('Crop 3'!$E$52,Carbon!$AH$4:$AI$10,2,FALSE),0)+IF('Crop 3'!$C$53=Carbon!$B98,'Crop 3'!$V$53*VLOOKUP('Crop 3'!$E$53,Carbon!$AH$4:$AI$10,2,FALSE),0)+IF('Crop 3'!$C$56=Carbon!$B98,'Crop 3'!$V$56*VLOOKUP('Crop 3'!$E$56,Carbon!$AH$4:$AI$10,2,FALSE),0)+IF('Crop 3'!$C$57=Carbon!$B98,'Crop 3'!$V$57*VLOOKUP('Crop 3'!$E$57,Carbon!$AH$4:$AI$10,2,FALSE),0)+IF('Crop 3'!$C$58=Carbon!$B98,'Crop 3'!$V$58*VLOOKUP('Crop 3'!$E$58,Carbon!$AH$4:$AI$10,2,FALSE),0)+IF('Crop 3'!$C$59=Carbon!$B98,'Crop 3'!$V$59*VLOOKUP('Crop 3'!$E$59,Carbon!$AH$4:$AI$10,2,FALSE),0)+IF('Crop 3'!$C$62=Carbon!$B98,'Crop 3'!$V$62*VLOOKUP('Crop 3'!$E$62,Carbon!$AH$4:$AI$10,2,FALSE),0)+IF('Crop 3'!$C$63=Carbon!$B98,'Crop 3'!$V$63*VLOOKUP('Crop 3'!$E$63,Carbon!$AH$4:$AI$10,2,FALSE),0)+IF('Crop 3'!$C$64=Carbon!$B98,'Crop 3'!$V$64*VLOOKUP('Crop 3'!$E$64,Carbon!$AH$4:$AI$10,2,FALSE),0)+IF('Crop 3'!$C$65=Carbon!$B98,'Crop 3'!$V$65*VLOOKUP('Crop 3'!$E$65,Carbon!$AH$4:$AI$10,2,FALSE),0))*$AL$20,2)","v":0},{"$f":"Q98*Inputs!$D$17","v":0},{"$f":"ROUND(T98/Inputs!D$19,2)","v":2.71},1623,null,null,-1.5300000000000002,{"$f":"W98*Inputs!$D$13","v":-459.00000000000006},0,{"$f":"Y98*Inputs!$D$13","v":0},0,{"$f":"AA98*Inputs!$D$13","v":0},{"$f":"ROUND(AD98/Inputs!D$19,2)","v":-0.77},-459]
[null,{"$f":"Defaults!AH65","v":"Grasp"},{"$f":"ROUND((IF('Crop 1'!$C$14=Carbon!$B99,'Crop 1'!$L$14*VLOOKUP('Crop 1'!$E$14,Carbon!$AH$4:$AI$10,2,FALSE),0)+IF('Crop 1'!$C$15=Carbon!$B99,'Crop 1'!$L$15*VLOOKUP('Crop 1'!$E$15,Carbon!$AH$4:$AI$10,2,FALSE),0)+IF('Crop 1'!$C$16=Carbon!$B99,'Crop 1'!$L$16*VLOOKUP('Crop 1'!$E$16,Carbon!$AH$4:$AI$10,2,FALSE),0)+IF('Crop 1'!$C$19=Carbon!$B99,'Crop 1'!$L$19*VLOOKUP('Crop 1'!$E$19,Carbon!$AH$4:$AI$10,2,FALSE),0)+IF('Crop 1'!$C$20=Carbon!$B99,'Crop 1'!$L$20*VLOOKUP('Crop 1'!$E$20,Carbon!$AH$4:$AI$10,2,FALSE),0)+IF('Crop 1'!$C$21=Carbon!$B99,'Crop 1'!$L$21*VLOOKUP('Crop 1'!$E$21,Carbon!$AH$4:$AI$10,2,FALSE),0)+IF('Crop 1'!$C$49=Carbon!$B99,'Crop 1'!$L$49*VLOOKUP('Crop 1'!$E$49,Carbon!$AH$4:$AI$10,2,FALSE),0)+IF('Crop 1'!$C$50=Carbon!$B99,'Crop 1'!$L$50*VLOOKUP('Crop 1'!$E$50,Carbon!$AH$4:$AI$10,2,FALSE),0)+IF('Crop 1'!$C$51=Carbon!$B99,'Crop 1'!$L$51*VLOOKUP('Crop 1'!$E$51,Carbon!$AH$4:$AI$10,2,FALSE),0)+IF('Crop 1'!$C$52=Carbon!$B99,'Crop 1'!$L$52*VLOOKUP('Crop 1'!$E$52,Carbon!$AH$4:$AI$10,2,FALSE),0)+IF('Crop 1'!$C$53=Carbon!$B99,'Crop 1'!$L$53*VLOOKUP('Crop 1'!$E$53,Carbon!$AH$4:$AI$10,2,FALSE),0)+IF('Crop 1'!$C$56=Carbon!$B99,'Crop 1'!$L$56*VLOOKUP('Crop 1'!$E$56,Carbon!$AH$4:$AI$10,2,FALSE),0)+IF('Crop 1'!$C$57=Carbon!$B99,'Crop 1'!$L$57*VLOOKUP('Crop 1'!$E$57,Carbon!$AH$4:$AI$10,2,FALSE),0)+IF('Crop 1'!$C$58=Carbon!$B99,'Crop 1'!$L$58*VLOOKUP('Crop 1'!$E$58,Carbon!$AH$4:$AI$10,2,FALSE),0)+IF('Crop 1'!$C$59=Carbon!$B99,'Crop 1'!$L$59*VLOOKUP('Crop 1'!$E$59,Carbon!$AH$4:$AI$10,2,FALSE),0)+IF('Crop 1'!$C$62=Carbon!$B99,'Crop 1'!$L$62*VLOOKUP('Crop 1'!$E$62,Carbon!$AH$4:$AI$10,2,FALSE),0)+IF('Crop 1'!$C$63=Carbon!$B99,'Crop 1'!$L$63*VLOOKUP('Crop 1'!$E$63,Carbon!$AH$4:$AI$10,2,FALSE),0)+IF('Crop 1'!$C$64=Carbon!$B99,'Crop 1'!$L$64*VLOOKUP('Crop 1'!$E$64,Carbon!$AH$4:$AI$10,2,FALSE),0)+IF('Crop 1'!$C$65=Carbon!$B99,'Crop 1'!$L$65*VLOOKUP('Crop 1'!$E$65,Carbon!$AH$4:$AI$10,2,FALSE),0))*$AL$20,2)","v":0},{"$f":"C99*Inputs!$D$13","v":0},{"$f":"ROUND((IF('Crop 2'!$C$14=Carbon!$B99,'Crop 2'!$L$14*VLOOKUP('Crop 2'!$E$14,Carbon!$AH$4:$AI$10,2,FALSE),0)+IF('Crop 2'!$C$15=Carbon!$B99,'Crop 2'!$L$15*VLOOKUP('Crop 2'!$E$15,Carbon!$AH$4:$AI$10,2,FALSE),0)+IF('Crop 2'!$C$16=Carbon!$B99,'Crop 2'!$L$16*VLOOKUP('Crop 2'!$E$16,Carbon!$AH$4:$AI$10,2,FALSE),0)+IF('Crop 2'!$C$19=Carbon!$B99,'Crop 2'!$L$19*VLOOKUP('Crop 2'!$E$19,Carbon!$AH$4:$AI$10,2,FALSE),0)+IF('Crop 2'!$C$20=Carbon!$B99,'Crop 2'!$L$20*VLOOKUP('Crop 2'!$E$20,Carbon!$AH$4:$AI$10,2,FALSE),0)+IF('Crop 2'!$C$21=Carbon!$B99,'Crop 2'!$L$21*VLOOKUP('Crop 2'!$E$21,Carbon!$AH$4:$AI$10,2,FALSE),0)+IF('Crop 2'!$C$49=Carbon!$B99,'Crop 2'!$L$49*VLOOKUP('Crop 2'!$E$49,Carbon!$AH$4:$AI$10,2,FALSE),0)+IF('Crop 2'!$C$50=Carbon!$B99,'Crop 2'!$L$50*VLOOKUP('Crop 2'!$E$50,Carbon!$AH$4:$AI$10,2,FALSE),0)+IF('Crop 2'!$C$51=Carbon!$B99,'Crop 2'!$L$51*VLOOKUP('Crop 2'!$E$51,Carbon!$AH$4:$AI$10,2,FALSE),0)+IF('Crop 2'!$C$52=Carbon!$B99,'Crop 2'!$L$52*VLOOKUP('Crop 2'!$E$52,Carbon!$AH$4:$AI$10,2,FALSE),0)+IF('Crop 2'!$C$53=Carbon!$B99,'Crop 2'!$L$53*VLOOKUP('Crop 2'!$E$53,Carbon!$AH$4:$AI$10,2,FALSE),0)+IF('Crop 2'!$C$56=Carbon!$B99,'Crop 2'!$L$56*VLOOKUP('Crop 2'!$E$56,Carbon!$AH$4:$AI$10,2,FALSE),0)+IF('Crop 2'!$C$57=Carbon!$B99,'Crop 2'!$L$57*VLOOKUP('Crop 2'!$E$57,Carbon!$AH$4:$AI$10,2,FALSE),0)+IF('Crop 2'!$C$58=Carbon!$B99,'Crop 2'!$L$58*VLOOKUP('Crop 2'!$E$58,Carbon!$AH$4:$AI$10,2,FALSE),0)+IF('Crop 2'!$C$59=Carbon!$B99,'Crop 2'!$L$59*VLOOKUP('Crop 2'!$E$59,Carbon!$AH$4:$AI$10,2,FALSE),0)+IF('Crop 2'!$C$62=Carbon!$B99,'Crop 2'!$L$62*VLOOKUP('Crop 2'!$E$62,Carbon!$AH$4:$AI$10,2,FALSE),0)+IF('Crop 2'!$C$63=Carbon!$B99,'Crop 2'!$L$63*VLOOKUP('Crop 2'!$E$63,Carbon!$AH$4:$AI$10,2,FALSE),0)+IF('Crop 2'!$C$64=Carbon!$B99,'Crop 2'!$L$64*VLOOKUP('Crop 2'!$E$64,Carbon!$AH$4:$AI$10,2,FALSE),0)+IF('Crop 2'!$C$65=Carbon!$B99,'Crop 2'!$L$65*VLOOKUP('Crop 2'!$E$65,Carbon!$AH$4:$AI$10,2,FALSE),0))*$AL$20,2)","v":0},{"$f":"E99*Inputs!$D$15","v":0},{"$f":"ROUND((IF('Crop 3'!$C$14=Carbon!$B99,'Crop 3'!$L$14*VLOOKUP('Crop 3'!$E$14,Carbon!$AH$4:$AI$10,2,FALSE),0)+IF('Crop 3'!$C$15=Carbon!$B99,'Crop 3'!$L$15*VLOOKUP('Crop 3'!$E$15,Carbon!$AH$4:$AI$10,2,FALSE),0)+IF('Crop 3'!$C$16=Carbon!$B99,'Crop 3'!$L$16*VLOOKUP('Crop 3'!$E$16,Carbon!$AH$4:$AI$10,2,FALSE),0)+IF('Crop 3'!$C$19=Carbon!$B99,'Crop 3'!$L$19*VLOOKUP('Crop 3'!$E$19,Carbon!$AH$4:$AI$10,2,FALSE),0)+IF('Crop 3'!$C$20=Carbon!$B99,'Crop 3'!$L$20*VLOOKUP('Crop 3'!$E$20,Carbon!$AH$4:$AI$10,2,FALSE),0)+IF('Crop 3'!$C$21=Carbon!$B99,'Crop 3'!$L$21*VLOOKUP('Crop 3'!$E$21,Carbon!$AH$4:$AI$10,2,FALSE),0)+IF('Crop 3'!$C$49=Carbon!$B99,'Crop 3'!$L$49*VLOOKUP('Crop 3'!$E$49,Carbon!$AH$4:$AI$10,2,FALSE),0)+IF('Crop 3'!$C$50=Carbon!$B99,'Crop 3'!$L$50*VLOOKUP('Crop 3'!$E$50,Carbon!$AH$4:$AI$10,2,FALSE),0)+IF('Crop 3'!$C$51=Carbon!$B99,'Crop 3'!$L$51*VLOOKUP('Crop 3'!$E$51,Carbon!$AH$4:$AI$10,2,FALSE),0)+IF('Crop 3'!$C$52=Carbon!$B99,'Crop 3'!$L$52*VLOOKUP('Crop 3'!$E$52,Carbon!$AH$4:$AI$10,2,FALSE),0)+IF('Crop 3'!$C$53=Carbon!$B99,'Crop 3'!$L$53*VLOOKUP('Crop 3'!$E$53,Carbon!$AH$4:$AI$10,2,FALSE),0)+IF('Crop 3'!$C$56=Carbon!$B99,'Crop 3'!$L$56*VLOOKUP('Crop 3'!$E$56,Carbon!$AH$4:$AI$10,2,FALSE),0)+IF('Crop 3'!$C$57=Carbon!$B99,'Crop 3'!$L$57*VLOOKUP('Crop 3'!$E$57,Carbon!$AH$4:$AI$10,2,FALSE),0)+IF('Crop 3'!$C$58=Carbon!$B99,'Crop 3'!$L$58*VLOOKUP('Crop 3'!$E$58,Carbon!$AH$4:$AI$10,2,FALSE),0)+IF('Crop 3'!$C$59=Carbon!$B99,'Crop 3'!$L$59*VLOOKUP('Crop 3'!$E$59,Carbon!$AH$4:$AI$10,2,FALSE),0)+IF('Crop 3'!$C$62=Carbon!$B99,'Crop 3'!$L$62*VLOOKUP('Crop 3'!$E$62,Carbon!$AH$4:$AI$10,2,FALSE),0)+IF('Crop 3'!$C$63=Carbon!$B99,'Crop 3'!$L$63*VLOOKUP('Crop 3'!$E$63,Carbon!$AH$4:$AI$10,2,FALSE),0)+IF('Crop 3'!$C$64=Carbon!$B99,'Crop 3'!$L$64*VLOOKUP('Crop 3'!$E$64,Carbon!$AH$4:$AI$10,2,FALSE),0)+IF('Crop 3'!$C$65=Carbon!$B99,'Crop 3'!$L$65*VLOOKUP('Crop 3'!$E$65,Carbon!$AH$4:$AI$10,2,FALSE),0))*$AL$20,2)","v":0},{"$f":"G99*Inputs!$D$17","v":0},{"$f":"ROUND(J99/Inputs!D$19,2)","v":0},0,null,null,{"$f":"ROUND((IF('Crop 1'!$C$14=Carbon!$B99,'Crop 1'!$V$14*VLOOKUP('Crop 1'!$E$14,Carbon!$AH$4:$AI$10,2,FALSE),0)+IF('Crop 1'!$C$15=Carbon!$B99,'Crop 1'!$V$15*VLOOKUP('Crop 1'!$E$15,Carbon!$AH$4:$AI$10,2,FALSE),0)+IF('Crop 1'!$C$16=Carbon!$B99,'Crop 1'!$V$16*VLOOKUP('Crop 1'!$E$16,Carbon!$AH$4:$AI$10,2,FALSE),0)+IF('Crop 1'!$C$19=Carbon!$B99,'Crop 1'!$V$19*VLOOKUP('Crop 1'!$E$19,Carbon!$AH$4:$AI$10,2,FALSE),0)+IF('Crop 1'!$C$20=Carbon!$B99,'Crop 1'!$V$20*VLOOKUP('Crop 1'!$E$20,Carbon!$AH$4:$AI$10,2,FALSE),0)+IF('Crop 1'!$C$21=Carbon!$B99,'Crop 1'!$V$21*VLOOKUP('Crop 1'!$E$21,Carbon!$AH$4:$AI$10,2,FALSE),0)+IF('Crop 1'!$C$49=Carbon!$B99,'Crop 1'!$V$49*VLOOKUP('Crop 1'!$E$49,Carbon!$AH$4:$AI$10,2,FALSE),0)+IF('Crop 1'!$C$50=Carbon!$B99,'Crop 1'!$V$50*VLOOKUP('Crop 1'!$E$50,Carbon!$AH$4:$AI$10,2,FALSE),0)+IF('Crop 1'!$C$51=Carbon!$B99,'Crop 1'!$V$51*VLOOKUP('Crop 1'!$E$51,Carbon!$AH$4:$AI$10,2,FALSE),0)+IF('Crop 1'!$C$52=Carbon!$B99,'Crop 1'!$V$52*VLOOKUP('Crop 1'!$E$52,Carbon!$AH$4:$AI$10,2,FALSE),0)+IF('Crop 1'!$C$53=Carbon!$B99,'Crop 1'!$V$53*VLOOKUP('Crop 1'!$E$53,Carbon!$AH$4:$AI$10,2,FALSE),0)+IF('Crop 1'!$C$56=Carbon!$B99,'Crop 1'!$V$56*VLOOKUP('Crop 1'!$E$56,Carbon!$AH$4:$AI$10,2,FALSE),0)+IF('Crop 1'!$C$57=Carbon!$B99,'Crop 1'!$V$57*VLOOKUP('Crop 1'!$E$57,Carbon!$AH$4:$AI$10,2,FALSE),0)+IF('Crop 1'!$C$58=Carbon!$B99,'Crop 1'!$V$58*VLOOKUP('Crop 1'!$E$58,Carbon!$AH$4:$AI$10,2,FALSE),0)+IF('Crop 1'!$C$59=Carbon!$B99,'Crop 1'!$V$59*VLOOKUP('Crop 1'!$E$59,Carbon!$AH$4:$AI$10,2,FALSE),0)+IF('Crop 1'!$C$62=Carbon!$B99,'Crop 1'!$V$62*VLOOKUP('Crop 1'!$E$62,Carbon!$AH$4:$AI$10,2,FALSE),0)+IF('Crop 1'!$C$63=Carbon!$B99,'Crop 1'!$V$63*VLOOKUP('Crop 1'!$E$63,Carbon!$AH$4:$AI$10,2,FALSE),0)+IF('Crop 1'!$C$64=Carbon!$B99,'Crop 1'!$V$64*VLOOKUP('Crop 1'!$E$64,Carbon!$AH$4:$AI$10,2,FALSE),0)+IF('Crop 1'!$C$65=Carbon!$B99,'Crop 1'!$V$65*VLOOKUP('Crop 1'!$E$65,Carbon!$AH$4:$AI$10,2,FALSE),0))*$AL$20,2)","v":0},{"$f":"M99*Inputs!$D$13","v":0},{"$f":"ROUND((IF('Crop 2'!$C$14=Carbon!$B99,'Crop 2'!$V$14*VLOOKUP('Crop 2'!$E$14,Carbon!$AH$4:$AI$10,2,FALSE),0)+IF('Crop 2'!$C$15=Carbon!$B99,'Crop 2'!$V$15*VLOOKUP('Crop 2'!$E$15,Carbon!$AH$4:$AI$10,2,FALSE),0)+IF('Crop 2'!$C$16=Carbon!$B99,'Crop 2'!$V$16*VLOOKUP('Crop 2'!$E$16,Carbon!$AH$4:$AI$10,2,FALSE),0)+IF('Crop 2'!$C$19=Carbon!$B99,'Crop 2'!$V$19*VLOOKUP('Crop 2'!$E$19,Carbon!$AH$4:$AI$10,2,FALSE),0)+IF('Crop 2'!$C$20=Carbon!$B99,'Crop 2'!$V$20*VLOOKUP('Crop 2'!$E$20,Carbon!$AH$4:$AI$10,2,FALSE),0)+IF('Crop 2'!$C$21=Carbon!$B99,'Crop 2'!$V$21*VLOOKUP('Crop 2'!$E$21,Carbon!$AH$4:$AI$10,2,FALSE),0)+IF('Crop 2'!$C$49=Carbon!$B99,'Crop 2'!$V$49*VLOOKUP('Crop 2'!$E$49,Carbon!$AH$4:$AI$10,2,FALSE),0)+IF('Crop 2'!$C$50=Carbon!$B99,'Crop 2'!$V$50*VLOOKUP('Crop 2'!$E$50,Carbon!$AH$4:$AI$10,2,FALSE),0)+IF('Crop 2'!$C$51=Carbon!$B99,'Crop 2'!$V$51*VLOOKUP('Crop 2'!$E$51,Carbon!$AH$4:$AI$10,2,FALSE),0)+IF('Crop 2'!$C$52=Carbon!$B99,'Crop 2'!$V$52*VLOOKUP('Crop 2'!$E$52,Carbon!$AH$4:$AI$10,2,FALSE),0)+IF('Crop 2'!$C$53=Carbon!$B99,'Crop 2'!$V$53*VLOOKUP('Crop 2'!$E$53,Carbon!$AH$4:$AI$10,2,FALSE),0)+IF('Crop 2'!$C$56=Carbon!$B99,'Crop 2'!$V$56*VLOOKUP('Crop 2'!$E$56,Carbon!$AH$4:$AI$10,2,FALSE),0)+IF('Crop 2'!$C$57=Carbon!$B99,'Crop 2'!$V$57*VLOOKUP('Crop 2'!$E$57,Carbon!$AH$4:$AI$10,2,FALSE),0)+IF('Crop 2'!$C$58=Carbon!$B99,'Crop 2'!$V$58*VLOOKUP('Crop 2'!$E$58,Carbon!$AH$4:$AI$10,2,FALSE),0)+IF('Crop 2'!$C$59=Carbon!$B99,'Crop 2'!$V$59*VLOOKUP('Crop 2'!$E$59,Carbon!$AH$4:$AI$10,2,FALSE),0)+IF('Crop 2'!$C$62=Carbon!$B99,'Crop 2'!$V$62*VLOOKUP('Crop 2'!$E$62,Carbon!$AH$4:$AI$10,2,FALSE),0)+IF('Crop 2'!$C$63=Carbon!$B99,'Crop 2'!$V$63*VLOOKUP('Crop 2'!$E$63,Carbon!$AH$4:$AI$10,2,FALSE),0)+IF('Crop 2'!$C$64=Carbon!$B99,'Crop 2'!$V$64*VLOOKUP('Crop 2'!$E$64,Carbon!$AH$4:$AI$10,2,FALSE),0)+IF('Crop 2'!$C$65=Carbon!$B99,'Crop 2'!$V$65*VLOOKUP('Crop 2'!$E$65,Carbon!$AH$4:$AI$10,2,FALSE),0))*$AL$20,2)","v":0},{"$f":"O99*Inputs!$D$15","v":0},{"$f":"ROUND((IF('Crop 3'!$C$14=Carbon!$B99,'Crop 3'!$V$14*VLOOKUP('Crop 3'!$E$14,Carbon!$AH$4:$AI$10,2,FALSE),0)+IF('Crop 3'!$C$15=Carbon!$B99,'Crop 3'!$V$15*VLOOKUP('Crop 3'!$E$15,Carbon!$AH$4:$AI$10,2,FALSE),0)+IF('Crop 3'!$C$16=Carbon!$B99,'Crop 3'!$V$16*VLOOKUP('Crop 3'!$E$16,Carbon!$AH$4:$AI$10,2,FALSE),0)+IF('Crop 3'!$C$19=Carbon!$B99,'Crop 3'!$V$19*VLOOKUP('Crop 3'!$E$19,Carbon!$AH$4:$AI$10,2,FALSE),0)+IF('Crop 3'!$C$20=Carbon!$B99,'Crop 3'!$V$20*VLOOKUP('Crop 3'!$E$20,Carbon!$AH$4:$AI$10,2,FALSE),0)+IF('Crop 3'!$C$21=Carbon!$B99,'Crop 3'!$V$21*VLOOKUP('Crop 3'!$E$21,Carbon!$AH$4:$AI$10,2,FALSE),0)+IF('Crop 3'!$C$49=Carbon!$B99,'Crop 3'!$V$49*VLOOKUP('Crop 3'!$E$49,Carbon!$AH$4:$AI$10,2,FALSE),0)+IF('Crop 3'!$C$50=Carbon!$B99,'Crop 3'!$V$50*VLOOKUP('Crop 3'!$E$50,Carbon!$AH$4:$AI$10,2,FALSE),0)+IF('Crop 3'!$C$51=Carbon!$B99,'Crop 3'!$V$51*VLOOKUP('Crop 3'!$E$51,Carbon!$AH$4:$AI$10,2,FALSE),0)+IF('Crop 3'!$C$52=Carbon!$B99,'Crop 3'!$V$52*VLOOKUP('Crop 3'!$E$52,Carbon!$AH$4:$AI$10,2,FALSE),0)+IF('Crop 3'!$C$53=Carbon!$B99,'Crop 3'!$V$53*VLOOKUP('Crop 3'!$E$53,Carbon!$AH$4:$AI$10,2,FALSE),0)+IF('Crop 3'!$C$56=Carbon!$B99,'Crop 3'!$V$56*VLOOKUP('Crop 3'!$E$56,Carbon!$AH$4:$AI$10,2,FALSE),0)+IF('Crop 3'!$C$57=Carbon!$B99,'Crop 3'!$V$57*VLOOKUP('Crop 3'!$E$57,Carbon!$AH$4:$AI$10,2,FALSE),0)+IF('Crop 3'!$C$58=Carbon!$B99,'Crop 3'!$V$58*VLOOKUP('Crop 3'!$E$58,Carbon!$AH$4:$AI$10,2,FALSE),0)+IF('Crop 3'!$C$59=Carbon!$B99,'Crop 3'!$V$59*VLOOKUP('Crop 3'!$E$59,Carbon!$AH$4:$AI$10,2,FALSE),0)+IF('Crop 3'!$C$62=Carbon!$B99,'Crop 3'!$V$62*VLOOKUP('Crop 3'!$E$62,Carbon!$AH$4:$AI$10,2,FALSE),0)+IF('Crop 3'!$C$63=Carbon!$B99,'Crop 3'!$V$63*VLOOKUP('Crop 3'!$E$63,Carbon!$AH$4:$AI$10,2,FALSE),0)+IF('Crop 3'!$C$64=Carbon!$B99,'Crop 3'!$V$64*VLOOKUP('Crop 3'!$E$64,Carbon!$AH$4:$AI$10,2,FALSE),0)+IF('Crop 3'!$C$65=Carbon!$B99,'Crop 3'!$V$65*VLOOKUP('Crop 3'!$E$65,Carbon!$AH$4:$AI$10,2,FALSE),0))*$AL$20,2)","v":0},{"$f":"Q99*Inputs!$D$17","v":0},{"$f":"ROUND(T99/Inputs!D$19,2)","v":0},0,null,null,0,{"$f":"W99*Inputs!$D$13","v":0},0,{"$f":"Y99*Inputs!$D$13","v":0},0,{"$f":"AA99*Inputs!$D$13","v":0},{"$f":"ROUND(AD99/Inputs!D$19,2)","v":0},0]
[null,{"$f":"Defaults!AH66","v":"Grasp Xtra"},{"$f":"ROUND((IF('Crop 1'!$C$14=Carbon!$B100,'Crop 1'!$L$14*VLOOKUP('Crop 1'!$E$14,Carbon!$AH$4:$AI$10,2,FALSE),0)+IF('Crop 1'!$C$15=Carbon!$B100,'Crop 1'!$L$15*VLOOKUP('Crop 1'!$E$15,Carbon!$AH$4:$AI$10,2,FALSE),0)+IF('Crop 1'!$C$16=Carbon!$B100,'Crop 1'!$L$16*VLOOKUP('Crop 1'!$E$16,Carbon!$AH$4:$AI$10,2,FALSE),0)+IF('Crop 1'!$C$19=Carbon!$B100,'Crop 1'!$L$19*VLOOKUP('Crop 1'!$E$19,Carbon!$AH$4:$AI$10,2,FALSE),0)+IF('Crop 1'!$C$20=Carbon!$B100,'Crop 1'!$L$20*VLOOKUP('Crop 1'!$E$20,Carbon!$AH$4:$AI$10,2,FALSE),0)+IF('Crop 1'!$C$21=Carbon!$B100,'Crop 1'!$L$21*VLOOKUP('Crop 1'!$E$21,Carbon!$AH$4:$AI$10,2,FALSE),0)+IF('Crop 1'!$C$49=Carbon!$B100,'Crop 1'!$L$49*VLOOKUP('Crop 1'!$E$49,Carbon!$AH$4:$AI$10,2,FALSE),0)+IF('Crop 1'!$C$50=Carbon!$B100,'Crop 1'!$L$50*VLOOKUP('Crop 1'!$E$50,Carbon!$AH$4:$AI$10,2,FALSE),0)+IF('Crop 1'!$C$51=Carbon!$B100,'Crop 1'!$L$51*VLOOKUP('Crop 1'!$E$51,Carbon!$AH$4:$AI$10,2,FALSE),0)+IF('Crop 1'!$C$52=Carbon!$B100,'Crop 1'!$L$52*VLOOKUP('Crop 1'!$E$52,Carbon!$AH$4:$AI$10,2,FALSE),0)+IF('Crop 1'!$C$53=Carbon!$B100,'Crop 1'!$L$53*VLOOKUP('Crop 1'!$E$53,Carbon!$AH$4:$AI$10,2,FALSE),0)+IF('Crop 1'!$C$56=Carbon!$B100,'Crop 1'!$L$56*VLOOKUP('Crop 1'!$E$56,Carbon!$AH$4:$AI$10,2,FALSE),0)+IF('Crop 1'!$C$57=Carbon!$B100,'Crop 1'!$L$57*VLOOKUP('Crop 1'!$E$57,Carbon!$AH$4:$AI$10,2,FALSE),0)+IF('Crop 1'!$C$58=Carbon!$B100,'Crop 1'!$L$58*VLOOKUP('Crop 1'!$E$58,Carbon!$AH$4:$AI$10,2,FALSE),0)+IF('Crop 1'!$C$59=Carbon!$B100,'Crop 1'!$L$59*VLOOKUP('Crop 1'!$E$59,Carbon!$AH$4:$AI$10,2,FALSE),0)+IF('Crop 1'!$C$62=Carbon!$B100,'Crop 1'!$L$62*VLOOKUP('Crop 1'!$E$62,Carbon!$AH$4:$AI$10,2,FALSE),0)+IF('Crop 1'!$C$63=Carbon!$B100,'Crop 1'!$L$63*VLOOKUP('Crop 1'!$E$63,Carbon!$AH$4:$AI$10,2,FALSE),0)+IF('Crop 1'!$C$64=Carbon!$B100,'Crop 1'!$L$64*VLOOKUP('Crop 1'!$E$64,Carbon!$AH$4:$AI$10,2,FALSE),0)+IF('Crop 1'!$C$65=Carbon!$B100,'Crop 1'!$L$65*VLOOKUP('Crop 1'!$E$65,Carbon!$AH$4:$AI$10,2,FALSE),0))*$AL$20,2)","v":0},{"$f":"C100*Inputs!$D$13","v":0},{"$f":"ROUND((IF('Crop 2'!$C$14=Carbon!$B100,'Crop 2'!$L$14*VLOOKUP('Crop 2'!$E$14,Carbon!$AH$4:$AI$10,2,FALSE),0)+IF('Crop 2'!$C$15=Carbon!$B100,'Crop 2'!$L$15*VLOOKUP('Crop 2'!$E$15,Carbon!$AH$4:$AI$10,2,FALSE),0)+IF('Crop 2'!$C$16=Carbon!$B100,'Crop 2'!$L$16*VLOOKUP('Crop 2'!$E$16,Carbon!$AH$4:$AI$10,2,FALSE),0)+IF('Crop 2'!$C$19=Carbon!$B100,'Crop 2'!$L$19*VLOOKUP('Crop 2'!$E$19,Carbon!$AH$4:$AI$10,2,FALSE),0)+IF('Crop 2'!$C$20=Carbon!$B100,'Crop 2'!$L$20*VLOOKUP('Crop 2'!$E$20,Carbon!$AH$4:$AI$10,2,FALSE),0)+IF('Crop 2'!$C$21=Carbon!$B100,'Crop 2'!$L$21*VLOOKUP('Crop 2'!$E$21,Carbon!$AH$4:$AI$10,2,FALSE),0)+IF('Crop 2'!$C$49=Carbon!$B100,'Crop 2'!$L$49*VLOOKUP('Crop 2'!$E$49,Carbon!$AH$4:$AI$10,2,FALSE),0)+IF('Crop 2'!$C$50=Carbon!$B100,'Crop 2'!$L$50*VLOOKUP('Crop 2'!$E$50,Carbon!$AH$4:$AI$10,2,FALSE),0)+IF('Crop 2'!$C$51=Carbon!$B100,'Crop 2'!$L$51*VLOOKUP('Crop 2'!$E$51,Carbon!$AH$4:$AI$10,2,FALSE),0)+IF('Crop 2'!$C$52=Carbon!$B100,'Crop 2'!$L$52*VLOOKUP('Crop 2'!$E$52,Carbon!$AH$4:$AI$10,2,FALSE),0)+IF('Crop 2'!$C$53=Carbon!$B100,'Crop 2'!$L$53*VLOOKUP('Crop 2'!$E$53,Carbon!$AH$4:$AI$10,2,FALSE),0)+IF('Crop 2'!$C$56=Carbon!$B100,'Crop 2'!$L$56*VLOOKUP('Crop 2'!$E$56,Carbon!$AH$4:$AI$10,2,FALSE),0)+IF('Crop 2'!$C$57=Carbon!$B100,'Crop 2'!$L$57*VLOOKUP('Crop 2'!$E$57,Carbon!$AH$4:$AI$10,2,FALSE),0)+IF('Crop 2'!$C$58=Carbon!$B100,'Crop 2'!$L$58*VLOOKUP('Crop 2'!$E$58,Carbon!$AH$4:$AI$10,2,FALSE),0)+IF('Crop 2'!$C$59=Carbon!$B100,'Crop 2'!$L$59*VLOOKUP('Crop 2'!$E$59,Carbon!$AH$4:$AI$10,2,FALSE),0)+IF('Crop 2'!$C$62=Carbon!$B100,'Crop 2'!$L$62*VLOOKUP('Crop 2'!$E$62,Carbon!$AH$4:$AI$10,2,FALSE),0)+IF('Crop 2'!$C$63=Carbon!$B100,'Crop 2'!$L$63*VLOOKUP('Crop 2'!$E$63,Carbon!$AH$4:$AI$10,2,FALSE),0)+IF('Crop 2'!$C$64=Carbon!$B100,'Crop 2'!$L$64*VLOOKUP('Crop 2'!$E$64,Carbon!$AH$4:$AI$10,2,FALSE),0)+IF('Crop 2'!$C$65=Carbon!$B100,'Crop 2'!$L$65*VLOOKUP('Crop 2'!$E$65,Carbon!$AH$4:$AI$10,2,FALSE),0))*$AL$20,2)","v":0},{"$f":"E100*Inputs!$D$15","v":0},{"$f":"ROUND((IF('Crop 3'!$C$14=Carbon!$B100,'Crop 3'!$L$14*VLOOKUP('Crop 3'!$E$14,Carbon!$AH$4:$AI$10,2,FALSE),0)+IF('Crop 3'!$C$15=Carbon!$B100,'Crop 3'!$L$15*VLOOKUP('Crop 3'!$E$15,Carbon!$AH$4:$AI$10,2,FALSE),0)+IF('Crop 3'!$C$16=Carbon!$B100,'Crop 3'!$L$16*VLOOKUP('Crop 3'!$E$16,Carbon!$AH$4:$AI$10,2,FALSE),0)+IF('Crop 3'!$C$19=Carbon!$B100,'Crop 3'!$L$19*VLOOKUP('Crop 3'!$E$19,Carbon!$AH$4:$AI$10,2,FALSE),0)+IF('Crop 3'!$C$20=Carbon!$B100,'Crop 3'!$L$20*VLOOKUP('Crop 3'!$E$20,Carbon!$AH$4:$AI$10,2,FALSE),0)+IF('Crop 3'!$C$21=Carbon!$B100,'Crop 3'!$L$21*VLOOKUP('Crop 3'!$E$21,Carbon!$AH$4:$AI$10,2,FALSE),0)+IF('Crop 3'!$C$49=Carbon!$B100,'Crop 3'!$L$49*VLOOKUP('Crop 3'!$E$49,Carbon!$AH$4:$AI$10,2,FALSE),0)+IF('Crop 3'!$C$50=Carbon!$B100,'Crop 3'!$L$50*VLOOKUP('Crop 3'!$E$50,Carbon!$AH$4:$AI$10,2,FALSE),0)+IF('Crop 3'!$C$51=Carbon!$B100,'Crop 3'!$L$51*VLOOKUP('Crop 3'!$E$51,Carbon!$AH$4:$AI$10,2,FALSE),0)+IF('Crop 3'!$C$52=Carbon!$B100,'Crop 3'!$L$52*VLOOKUP('Crop 3'!$E$52,Carbon!$AH$4:$AI$10,2,FALSE),0)+IF('Crop 3'!$C$53=Carbon!$B100,'Crop 3'!$L$53*VLOOKUP('Crop 3'!$E$53,Carbon!$AH$4:$AI$10,2,FALSE),0)+IF('Crop 3'!$C$56=Carbon!$B100,'Crop 3'!$L$56*VLOOKUP('Crop 3'!$E$56,Carbon!$AH$4:$AI$10,2,FALSE),0)+IF('Crop 3'!$C$57=Carbon!$B100,'Crop 3'!$L$57*VLOOKUP('Crop 3'!$E$57,Carbon!$AH$4:$AI$10,2,FALSE),0)+IF('Crop 3'!$C$58=Carbon!$B100,'Crop 3'!$L$58*VLOOKUP('Crop 3'!$E$58,Carbon!$AH$4:$AI$10,2,FALSE),0)+IF('Crop 3'!$C$59=Carbon!$B100,'Crop 3'!$L$59*VLOOKUP('Crop 3'!$E$59,Carbon!$AH$4:$AI$10,2,FALSE),0)+IF('Crop 3'!$C$62=Carbon!$B100,'Crop 3'!$L$62*VLOOKUP('Crop 3'!$E$62,Carbon!$AH$4:$AI$10,2,FALSE),0)+IF('Crop 3'!$C$63=Carbon!$B100,'Crop 3'!$L$63*VLOOKUP('Crop 3'!$E$63,Carbon!$AH$4:$AI$10,2,FALSE),0)+IF('Crop 3'!$C$64=Carbon!$B100,'Crop 3'!$L$64*VLOOKUP('Crop 3'!$E$64,Carbon!$AH$4:$AI$10,2,FALSE),0)+IF('Crop 3'!$C$65=Carbon!$B100,'Crop 3'!$L$65*VLOOKUP('Crop 3'!$E$65,Carbon!$AH$4:$AI$10,2,FALSE),0))*$AL$20,2)","v":0},{"$f":"G100*Inputs!$D$17","v":0},{"$f":"ROUND(J100/Inputs!D$19,2)","v":0},0,null,null,{"$f":"ROUND((IF('Crop 1'!$C$14=Carbon!$B100,'Crop 1'!$V$14*VLOOKUP('Crop 1'!$E$14,Carbon!$AH$4:$AI$10,2,FALSE),0)+IF('Crop 1'!$C$15=Carbon!$B100,'Crop 1'!$V$15*VLOOKUP('Crop 1'!$E$15,Carbon!$AH$4:$AI$10,2,FALSE),0)+IF('Crop 1'!$C$16=Carbon!$B100,'Crop 1'!$V$16*VLOOKUP('Crop 1'!$E$16,Carbon!$AH$4:$AI$10,2,FALSE),0)+IF('Crop 1'!$C$19=Carbon!$B100,'Crop 1'!$V$19*VLOOKUP('Crop 1'!$E$19,Carbon!$AH$4:$AI$10,2,FALSE),0)+IF('Crop 1'!$C$20=Carbon!$B100,'Crop 1'!$V$20*VLOOKUP('Crop 1'!$E$20,Carbon!$AH$4:$AI$10,2,FALSE),0)+IF('Crop 1'!$C$21=Carbon!$B100,'Crop 1'!$V$21*VLOOKUP('Crop 1'!$E$21,Carbon!$AH$4:$AI$10,2,FALSE),0)+IF('Crop 1'!$C$49=Carbon!$B100,'Crop 1'!$V$49*VLOOKUP('Crop 1'!$E$49,Carbon!$AH$4:$AI$10,2,FALSE),0)+IF('Crop 1'!$C$50=Carbon!$B100,'Crop 1'!$V$50*VLOOKUP('Crop 1'!$E$50,Carbon!$AH$4:$AI$10,2,FALSE),0)+IF('Crop 1'!$C$51=Carbon!$B100,'Crop 1'!$V$51*VLOOKUP('Crop 1'!$E$51,Carbon!$AH$4:$AI$10,2,FALSE),0)+IF('Crop 1'!$C$52=Carbon!$B100,'Crop 1'!$V$52*VLOOKUP('Crop 1'!$E$52,Carbon!$AH$4:$AI$10,2,FALSE),0)+IF('Crop 1'!$C$53=Carbon!$B100,'Crop 1'!$V$53*VLOOKUP('Crop 1'!$E$53,Carbon!$AH$4:$AI$10,2,FALSE),0)+IF('Crop 1'!$C$56=Carbon!$B100,'Crop 1'!$V$56*VLOOKUP('Crop 1'!$E$56,Carbon!$AH$4:$AI$10,2,FALSE),0)+IF('Crop 1'!$C$57=Carbon!$B100,'Crop 1'!$V$57*VLOOKUP('Crop 1'!$E$57,Carbon!$AH$4:$AI$10,2,FALSE),0)+IF('Crop 1'!$C$58=Carbon!$B100,'Crop 1'!$V$58*VLOOKUP('Crop 1'!$E$58,Carbon!$AH$4:$AI$10,2,FALSE),0)+IF('Crop 1'!$C$59=Carbon!$B100,'Crop 1'!$V$59*VLOOKUP('Crop 1'!$E$59,Carbon!$AH$4:$AI$10,2,FALSE),0)+IF('Crop 1'!$C$62=Carbon!$B100,'Crop 1'!$V$62*VLOOKUP('Crop 1'!$E$62,Carbon!$AH$4:$AI$10,2,FALSE),0)+IF('Crop 1'!$C$63=Carbon!$B100,'Crop 1'!$V$63*VLOOKUP('Crop 1'!$E$63,Carbon!$AH$4:$AI$10,2,FALSE),0)+IF('Crop 1'!$C$64=Carbon!$B100,'Crop 1'!$V$64*VLOOKUP('Crop 1'!$E$64,Carbon!$AH$4:$AI$10,2,FALSE),0)+IF('Crop 1'!$C$65=Carbon!$B100,'Crop 1'!$V$65*VLOOKUP('Crop 1'!$E$65,Carbon!$AH$4:$AI$10,2,FALSE),0))*$AL$20,2)","v":0},{"$f":"M100*Inputs!$D$13","v":0},{"$f":"ROUND((IF('Crop 2'!$C$14=Carbon!$B100,'Crop 2'!$V$14*VLOOKUP('Crop 2'!$E$14,Carbon!$AH$4:$AI$10,2,FALSE),0)+IF('Crop 2'!$C$15=Carbon!$B100,'Crop 2'!$V$15*VLOOKUP('Crop 2'!$E$15,Carbon!$AH$4:$AI$10,2,FALSE),0)+IF('Crop 2'!$C$16=Carbon!$B100,'Crop 2'!$V$16*VLOOKUP('Crop 2'!$E$16,Carbon!$AH$4:$AI$10,2,FALSE),0)+IF('Crop 2'!$C$19=Carbon!$B100,'Crop 2'!$V$19*VLOOKUP('Crop 2'!$E$19,Carbon!$AH$4:$AI$10,2,FALSE),0)+IF('Crop 2'!$C$20=Carbon!$B100,'Crop 2'!$V$20*VLOOKUP('Crop 2'!$E$20,Carbon!$AH$4:$AI$10,2,FALSE),0)+IF('Crop 2'!$C$21=Carbon!$B100,'Crop 2'!$V$21*VLOOKUP('Crop 2'!$E$21,Carbon!$AH$4:$AI$10,2,FALSE),0)+IF('Crop 2'!$C$49=Carbon!$B100,'Crop 2'!$V$49*VLOOKUP('Crop 2'!$E$49,Carbon!$AH$4:$AI$10,2,FALSE),0)+IF('Crop 2'!$C$50=Carbon!$B100,'Crop 2'!$V$50*VLOOKUP('Crop 2'!$E$50,Carbon!$AH$4:$AI$10,2,FALSE),0)+IF('Crop 2'!$C$51=Carbon!$B100,'Crop 2'!$V$51*VLOOKUP('Crop 2'!$E$51,Carbon!$AH$4:$AI$10,2,FALSE),0)+IF('Crop 2'!$C$52=Carbon!$B100,'Crop 2'!$V$52*VLOOKUP('Crop 2'!$E$52,Carbon!$AH$4:$AI$10,2,FALSE),0)+IF('Crop 2'!$C$53=Carbon!$B100,'Crop 2'!$V$53*VLOOKUP('Crop 2'!$E$53,Carbon!$AH$4:$AI$10,2,FALSE),0)+IF('Crop 2'!$C$56=Carbon!$B100,'Crop 2'!$V$56*VLOOKUP('Crop 2'!$E$56,Carbon!$AH$4:$AI$10,2,FALSE),0)+IF('Crop 2'!$C$57=Carbon!$B100,'Crop 2'!$V$57*VLOOKUP('Crop 2'!$E$57,Carbon!$AH$4:$AI$10,2,FALSE),0)+IF('Crop 2'!$C$58=Carbon!$B100,'Crop 2'!$V$58*VLOOKUP('Crop 2'!$E$58,Carbon!$AH$4:$AI$10,2,FALSE),0)+IF('Crop 2'!$C$59=Carbon!$B100,'Crop 2'!$V$59*VLOOKUP('Crop 2'!$E$59,Carbon!$AH$4:$AI$10,2,FALSE),0)+IF('Crop 2'!$C$62=Carbon!$B100,'Crop 2'!$V$62*VLOOKUP('Crop 2'!$E$62,Carbon!$AH$4:$AI$10,2,FALSE),0)+IF('Crop 2'!$C$63=Carbon!$B100,'Crop 2'!$V$63*VLOOKUP('Crop 2'!$E$63,Carbon!$AH$4:$AI$10,2,FALSE),0)+IF('Crop 2'!$C$64=Carbon!$B100,'Crop 2'!$V$64*VLOOKUP('Crop 2'!$E$64,Carbon!$AH$4:$AI$10,2,FALSE),0)+IF('Crop 2'!$C$65=Carbon!$B100,'Crop 2'!$V$65*VLOOKUP('Crop 2'!$E$65,Carbon!$AH$4:$AI$10,2,FALSE),0))*$AL$20,2)","v":0},{"$f":"O100*Inputs!$D$15","v":0},{"$f":"ROUND((IF('Crop 3'!$C$14=Carbon!$B100,'Crop 3'!$V$14*VLOOKUP('Crop 3'!$E$14,Carbon!$AH$4:$AI$10,2,FALSE),0)+IF('Crop 3'!$C$15=Carbon!$B100,'Crop 3'!$V$15*VLOOKUP('Crop 3'!$E$15,Carbon!$AH$4:$AI$10,2,FALSE),0)+IF('Crop 3'!$C$16=Carbon!$B100,'Crop 3'!$V$16*VLOOKUP('Crop 3'!$E$16,Carbon!$AH$4:$AI$10,2,FALSE),0)+IF('Crop 3'!$C$19=Carbon!$B100,'Crop 3'!$V$19*VLOOKUP('Crop 3'!$E$19,Carbon!$AH$4:$AI$10,2,FALSE),0)+IF('Crop 3'!$C$20=Carbon!$B100,'Crop 3'!$V$20*VLOOKUP('Crop 3'!$E$20,Carbon!$AH$4:$AI$10,2,FALSE),0)+IF('Crop 3'!$C$21=Carbon!$B100,'Crop 3'!$V$21*VLOOKUP('Crop 3'!$E$21,Carbon!$AH$4:$AI$10,2,FALSE),0)+IF('Crop 3'!$C$49=Carbon!$B100,'Crop 3'!$V$49*VLOOKUP('Crop 3'!$E$49,Carbon!$AH$4:$AI$10,2,FALSE),0)+IF('Crop 3'!$C$50=Carbon!$B100,'Crop 3'!$V$50*VLOOKUP('Crop 3'!$E$50,Carbon!$AH$4:$AI$10,2,FALSE),0)+IF('Crop 3'!$C$51=Carbon!$B100,'Crop 3'!$V$51*VLOOKUP('Crop 3'!$E$51,Carbon!$AH$4:$AI$10,2,FALSE),0)+IF('Crop 3'!$C$52=Carbon!$B100,'Crop 3'!$V$52*VLOOKUP('Crop 3'!$E$52,Carbon!$AH$4:$AI$10,2,FALSE),0)+IF('Crop 3'!$C$53=Carbon!$B100,'Crop 3'!$V$53*VLOOKUP('Crop 3'!$E$53,Carbon!$AH$4:$AI$10,2,FALSE),0)+IF('Crop 3'!$C$56=Carbon!$B100,'Crop 3'!$V$56*VLOOKUP('Crop 3'!$E$56,Carbon!$AH$4:$AI$10,2,FALSE),0)+IF('Crop 3'!$C$57=Carbon!$B100,'Crop 3'!$V$57*VLOOKUP('Crop 3'!$E$57,Carbon!$AH$4:$AI$10,2,FALSE),0)+IF('Crop 3'!$C$58=Carbon!$B100,'Crop 3'!$V$58*VLOOKUP('Crop 3'!$E$58,Carbon!$AH$4:$AI$10,2,FALSE),0)+IF('Crop 3'!$C$59=Carbon!$B100,'Crop 3'!$V$59*VLOOKUP('Crop 3'!$E$59,Carbon!$AH$4:$AI$10,2,FALSE),0)+IF('Crop 3'!$C$62=Carbon!$B100,'Crop 3'!$V$62*VLOOKUP('Crop 3'!$E$62,Carbon!$AH$4:$AI$10,2,FALSE),0)+IF('Crop 3'!$C$63=Carbon!$B100,'Crop 3'!$V$63*VLOOKUP('Crop 3'!$E$63,Carbon!$AH$4:$AI$10,2,FALSE),0)+IF('Crop 3'!$C$64=Carbon!$B100,'Crop 3'!$V$64*VLOOKUP('Crop 3'!$E$64,Carbon!$AH$4:$AI$10,2,FALSE),0)+IF('Crop 3'!$C$65=Carbon!$B100,'Crop 3'!$V$65*VLOOKUP('Crop 3'!$E$65,Carbon!$AH$4:$AI$10,2,FALSE),0))*$AL$20,2)","v":0},{"$f":"Q100*Inputs!$D$17","v":0},{"$f":"ROUND(T100/Inputs!D$19,2)","v":0},0,null,null,0,{"$f":"W100*Inputs!$D$13","v":0},0,{"$f":"Y100*Inputs!$D$13","v":0},0,{"$f":"AA100*Inputs!$D$13","v":0},{"$f":"ROUND(AD100/Inputs!D$19,2)","v":0},0]
[null,{"$f":"Defaults!AH67","v":"Grazon P + D"},{"$f":"ROUND((IF('Crop 1'!$C$14=Carbon!$B101,'Crop 1'!$L$14*VLOOKUP('Crop 1'!$E$14,Carbon!$AH$4:$AI$10,2,FALSE),0)+IF('Crop 1'!$C$15=Carbon!$B101,'Crop 1'!$L$15*VLOOKUP('Crop 1'!$E$15,Carbon!$AH$4:$AI$10,2,FALSE),0)+IF('Crop 1'!$C$16=Carbon!$B101,'Crop 1'!$L$16*VLOOKUP('Crop 1'!$E$16,Carbon!$AH$4:$AI$10,2,FALSE),0)+IF('Crop 1'!$C$19=Carbon!$B101,'Crop 1'!$L$19*VLOOKUP('Crop 1'!$E$19,Carbon!$AH$4:$AI$10,2,FALSE),0)+IF('Crop 1'!$C$20=Carbon!$B101,'Crop 1'!$L$20*VLOOKUP('Crop 1'!$E$20,Carbon!$AH$4:$AI$10,2,FALSE),0)+IF('Crop 1'!$C$21=Carbon!$B101,'Crop 1'!$L$21*VLOOKUP('Crop 1'!$E$21,Carbon!$AH$4:$AI$10,2,FALSE),0)+IF('Crop 1'!$C$49=Carbon!$B101,'Crop 1'!$L$49*VLOOKUP('Crop 1'!$E$49,Carbon!$AH$4:$AI$10,2,FALSE),0)+IF('Crop 1'!$C$50=Carbon!$B101,'Crop 1'!$L$50*VLOOKUP('Crop 1'!$E$50,Carbon!$AH$4:$AI$10,2,FALSE),0)+IF('Crop 1'!$C$51=Carbon!$B101,'Crop 1'!$L$51*VLOOKUP('Crop 1'!$E$51,Carbon!$AH$4:$AI$10,2,FALSE),0)+IF('Crop 1'!$C$52=Carbon!$B101,'Crop 1'!$L$52*VLOOKUP('Crop 1'!$E$52,Carbon!$AH$4:$AI$10,2,FALSE),0)+IF('Crop 1'!$C$53=Carbon!$B101,'Crop 1'!$L$53*VLOOKUP('Crop 1'!$E$53,Carbon!$AH$4:$AI$10,2,FALSE),0)+IF('Crop 1'!$C$56=Carbon!$B101,'Crop 1'!$L$56*VLOOKUP('Crop 1'!$E$56,Carbon!$AH$4:$AI$10,2,FALSE),0)+IF('Crop 1'!$C$57=Carbon!$B101,'Crop 1'!$L$57*VLOOKUP('Crop 1'!$E$57,Carbon!$AH$4:$AI$10,2,FALSE),0)+IF('Crop 1'!$C$58=Carbon!$B101,'Crop 1'!$L$58*VLOOKUP('Crop 1'!$E$58,Carbon!$AH$4:$AI$10,2,FALSE),0)+IF('Crop 1'!$C$59=Carbon!$B101,'Crop 1'!$L$59*VLOOKUP('Crop 1'!$E$59,Carbon!$AH$4:$AI$10,2,FALSE),0)+IF('Crop 1'!$C$62=Carbon!$B101,'Crop 1'!$L$62*VLOOKUP('Crop 1'!$E$62,Carbon!$AH$4:$AI$10,2,FALSE),0)+IF('Crop 1'!$C$63=Carbon!$B101,'Crop 1'!$L$63*VLOOKUP('Crop 1'!$E$63,Carbon!$AH$4:$AI$10,2,FALSE),0)+IF('Crop 1'!$C$64=Carbon!$B101,'Crop 1'!$L$64*VLOOKUP('Crop 1'!$E$64,Carbon!$AH$4:$AI$10,2,FALSE),0)+IF('Crop 1'!$C$65=Carbon!$B101,'Crop 1'!$L$65*VLOOKUP('Crop 1'!$E$65,Carbon!$AH$4:$AI$10,2,FALSE),0))*$AL$20,2)","v":0},{"$f":"C101*Inputs!$D$13","v":0},{"$f":"ROUND((IF('Crop 2'!$C$14=Carbon!$B101,'Crop 2'!$L$14*VLOOKUP('Crop 2'!$E$14,Carbon!$AH$4:$AI$10,2,FALSE),0)+IF('Crop 2'!$C$15=Carbon!$B101,'Crop 2'!$L$15*VLOOKUP('Crop 2'!$E$15,Carbon!$AH$4:$AI$10,2,FALSE),0)+IF('Crop 2'!$C$16=Carbon!$B101,'Crop 2'!$L$16*VLOOKUP('Crop 2'!$E$16,Carbon!$AH$4:$AI$10,2,FALSE),0)+IF('Crop 2'!$C$19=Carbon!$B101,'Crop 2'!$L$19*VLOOKUP('Crop 2'!$E$19,Carbon!$AH$4:$AI$10,2,FALSE),0)+IF('Crop 2'!$C$20=Carbon!$B101,'Crop 2'!$L$20*VLOOKUP('Crop 2'!$E$20,Carbon!$AH$4:$AI$10,2,FALSE),0)+IF('Crop 2'!$C$21=Carbon!$B101,'Crop 2'!$L$21*VLOOKUP('Crop 2'!$E$21,Carbon!$AH$4:$AI$10,2,FALSE),0)+IF('Crop 2'!$C$49=Carbon!$B101,'Crop 2'!$L$49*VLOOKUP('Crop 2'!$E$49,Carbon!$AH$4:$AI$10,2,FALSE),0)+IF('Crop 2'!$C$50=Carbon!$B101,'Crop 2'!$L$50*VLOOKUP('Crop 2'!$E$50,Carbon!$AH$4:$AI$10,2,FALSE),0)+IF('Crop 2'!$C$51=Carbon!$B101,'Crop 2'!$L$51*VLOOKUP('Crop 2'!$E$51,Carbon!$AH$4:$AI$10,2,FALSE),0)+IF('Crop 2'!$C$52=Carbon!$B101,'Crop 2'!$L$52*VLOOKUP('Crop 2'!$E$52,Carbon!$AH$4:$AI$10,2,FALSE),0)+IF('Crop 2'!$C$53=Carbon!$B101,'Crop 2'!$L$53*VLOOKUP('Crop 2'!$E$53,Carbon!$AH$4:$AI$10,2,FALSE),0)+IF('Crop 2'!$C$56=Carbon!$B101,'Crop 2'!$L$56*VLOOKUP('Crop 2'!$E$56,Carbon!$AH$4:$AI$10,2,FALSE),0)+IF('Crop 2'!$C$57=Carbon!$B101,'Crop 2'!$L$57*VLOOKUP('Crop 2'!$E$57,Carbon!$AH$4:$AI$10,2,FALSE),0)+IF('Crop 2'!$C$58=Carbon!$B101,'Crop 2'!$L$58*VLOOKUP('Crop 2'!$E$58,Carbon!$AH$4:$AI$10,2,FALSE),0)+IF('Crop 2'!$C$59=Carbon!$B101,'Crop 2'!$L$59*VLOOKUP('Crop 2'!$E$59,Carbon!$AH$4:$AI$10,2,FALSE),0)+IF('Crop 2'!$C$62=Carbon!$B101,'Crop 2'!$L$62*VLOOKUP('Crop 2'!$E$62,Carbon!$AH$4:$AI$10,2,FALSE),0)+IF('Crop 2'!$C$63=Carbon!$B101,'Crop 2'!$L$63*VLOOKUP('Crop 2'!$E$63,Carbon!$AH$4:$AI$10,2,FALSE),0)+IF('Crop 2'!$C$64=Carbon!$B101,'Crop 2'!$L$64*VLOOKUP('Crop 2'!$E$64,Carbon!$AH$4:$AI$10,2,FALSE),0)+IF('Crop 2'!$C$65=Carbon!$B101,'Crop 2'!$L$65*VLOOKUP('Crop 2'!$E$65,Carbon!$AH$4:$AI$10,2,FALSE),0))*$AL$20,2)","v":0},{"$f":"E101*Inputs!$D$15","v":0},{"$f":"ROUND((IF('Crop 3'!$C$14=Carbon!$B101,'Crop 3'!$L$14*VLOOKUP('Crop 3'!$E$14,Carbon!$AH$4:$AI$10,2,FALSE),0)+IF('Crop 3'!$C$15=Carbon!$B101,'Crop 3'!$L$15*VLOOKUP('Crop 3'!$E$15,Carbon!$AH$4:$AI$10,2,FALSE),0)+IF('Crop 3'!$C$16=Carbon!$B101,'Crop 3'!$L$16*VLOOKUP('Crop 3'!$E$16,Carbon!$AH$4:$AI$10,2,FALSE),0)+IF('Crop 3'!$C$19=Carbon!$B101,'Crop 3'!$L$19*VLOOKUP('Crop 3'!$E$19,Carbon!$AH$4:$AI$10,2,FALSE),0)+IF('Crop 3'!$C$20=Carbon!$B101,'Crop 3'!$L$20*VLOOKUP('Crop 3'!$E$20,Carbon!$AH$4:$AI$10,2,FALSE),0)+IF('Crop 3'!$C$21=Carbon!$B101,'Crop 3'!$L$21*VLOOKUP('Crop 3'!$E$21,Carbon!$AH$4:$AI$10,2,FALSE),0)+IF('Crop 3'!$C$49=Carbon!$B101,'Crop 3'!$L$49*VLOOKUP('Crop 3'!$E$49,Carbon!$AH$4:$AI$10,2,FALSE),0)+IF('Crop 3'!$C$50=Carbon!$B101,'Crop 3'!$L$50*VLOOKUP('Crop 3'!$E$50,Carbon!$AH$4:$AI$10,2,FALSE),0)+IF('Crop 3'!$C$51=Carbon!$B101,'Crop 3'!$L$51*VLOOKUP('Crop 3'!$E$51,Carbon!$AH$4:$AI$10,2,FALSE),0)+IF('Crop 3'!$C$52=Carbon!$B101,'Crop 3'!$L$52*VLOOKUP('Crop 3'!$E$52,Carbon!$AH$4:$AI$10,2,FALSE),0)+IF('Crop 3'!$C$53=Carbon!$B101,'Crop 3'!$L$53*VLOOKUP('Crop 3'!$E$53,Carbon!$AH$4:$AI$10,2,FALSE),0)+IF('Crop 3'!$C$56=Carbon!$B101,'Crop 3'!$L$56*VLOOKUP('Crop 3'!$E$56,Carbon!$AH$4:$AI$10,2,FALSE),0)+IF('Crop 3'!$C$57=Carbon!$B101,'Crop 3'!$L$57*VLOOKUP('Crop 3'!$E$57,Carbon!$AH$4:$AI$10,2,FALSE),0)+IF('Crop 3'!$C$58=Carbon!$B101,'Crop 3'!$L$58*VLOOKUP('Crop 3'!$E$58,Carbon!$AH$4:$AI$10,2,FALSE),0)+IF('Crop 3'!$C$59=Carbon!$B101,'Crop 3'!$L$59*VLOOKUP('Crop 3'!$E$59,Carbon!$AH$4:$AI$10,2,FALSE),0)+IF('Crop 3'!$C$62=Carbon!$B101,'Crop 3'!$L$62*VLOOKUP('Crop 3'!$E$62,Carbon!$AH$4:$AI$10,2,FALSE),0)+IF('Crop 3'!$C$63=Carbon!$B101,'Crop 3'!$L$63*VLOOKUP('Crop 3'!$E$63,Carbon!$AH$4:$AI$10,2,FALSE),0)+IF('Crop 3'!$C$64=Carbon!$B101,'Crop 3'!$L$64*VLOOKUP('Crop 3'!$E$64,Carbon!$AH$4:$AI$10,2,FALSE),0)+IF('Crop 3'!$C$65=Carbon!$B101,'Crop 3'!$L$65*VLOOKUP('Crop 3'!$E$65,Carbon!$AH$4:$AI$10,2,FALSE),0))*$AL$20,2)","v":3.47},{"$f":"G101*Inputs!$D$17","v":347},{"$f":"ROUND(J101/Inputs!D$19,2)","v":0.57999999999999996},347,null,null,{"$f":"ROUND((IF('Crop 1'!$C$14=Carbon!$B101,'Crop 1'!$V$14*VLOOKUP('Crop 1'!$E$14,Carbon!$AH$4:$AI$10,2,FALSE),0)+IF('Crop 1'!$C$15=Carbon!$B101,'Crop 1'!$V$15*VLOOKUP('Crop 1'!$E$15,Carbon!$AH$4:$AI$10,2,FALSE),0)+IF('Crop 1'!$C$16=Carbon!$B101,'Crop 1'!$V$16*VLOOKUP('Crop 1'!$E$16,Carbon!$AH$4:$AI$10,2,FALSE),0)+IF('Crop 1'!$C$19=Carbon!$B101,'Crop 1'!$V$19*VLOOKUP('Crop 1'!$E$19,Carbon!$AH$4:$AI$10,2,FALSE),0)+IF('Crop 1'!$C$20=Carbon!$B101,'Crop 1'!$V$20*VLOOKUP('Crop 1'!$E$20,Carbon!$AH$4:$AI$10,2,FALSE),0)+IF('Crop 1'!$C$21=Carbon!$B101,'Crop 1'!$V$21*VLOOKUP('Crop 1'!$E$21,Carbon!$AH$4:$AI$10,2,FALSE),0)+IF('Crop 1'!$C$49=Carbon!$B101,'Crop 1'!$V$49*VLOOKUP('Crop 1'!$E$49,Carbon!$AH$4:$AI$10,2,FALSE),0)+IF('Crop 1'!$C$50=Carbon!$B101,'Crop 1'!$V$50*VLOOKUP('Crop 1'!$E$50,Carbon!$AH$4:$AI$10,2,FALSE),0)+IF('Crop 1'!$C$51=Carbon!$B101,'Crop 1'!$V$51*VLOOKUP('Crop 1'!$E$51,Carbon!$AH$4:$AI$10,2,FALSE),0)+IF('Crop 1'!$C$52=Carbon!$B101,'Crop 1'!$V$52*VLOOKUP('Crop 1'!$E$52,Carbon!$AH$4:$AI$10,2,FALSE),0)+IF('Crop 1'!$C$53=Carbon!$B101,'Crop 1'!$V$53*VLOOKUP('Crop 1'!$E$53,Carbon!$AH$4:$AI$10,2,FALSE),0)+IF('Crop 1'!$C$56=Carbon!$B101,'Crop 1'!$V$56*VLOOKUP('Crop 1'!$E$56,Carbon!$AH$4:$AI$10,2,FALSE),0)+IF('Crop 1'!$C$57=Carbon!$B101,'Crop 1'!$V$57*VLOOKUP('Crop 1'!$E$57,Carbon!$AH$4:$AI$10,2,FALSE),0)+IF('Crop 1'!$C$58=Carbon!$B101,'Crop 1'!$V$58*VLOOKUP('Crop 1'!$E$58,Carbon!$AH$4:$AI$10,2,FALSE),0)+IF('Crop 1'!$C$59=Carbon!$B101,'Crop 1'!$V$59*VLOOKUP('Crop 1'!$E$59,Carbon!$AH$4:$AI$10,2,FALSE),0)+IF('Crop 1'!$C$62=Carbon!$B101,'Crop 1'!$V$62*VLOOKUP('Crop 1'!$E$62,Carbon!$AH$4:$AI$10,2,FALSE),0)+IF('Crop 1'!$C$63=Carbon!$B101,'Crop 1'!$V$63*VLOOKUP('Crop 1'!$E$63,Carbon!$AH$4:$AI$10,2,FALSE),0)+IF('Crop 1'!$C$64=Carbon!$B101,'Crop 1'!$V$64*VLOOKUP('Crop 1'!$E$64,Carbon!$AH$4:$AI$10,2,FALSE),0)+IF('Crop 1'!$C$65=Carbon!$B101,'Crop 1'!$V$65*VLOOKUP('Crop 1'!$E$65,Carbon!$AH$4:$AI$10,2,FALSE),0))*$AL$20,2)","v":0},{"$f":"M101*Inputs!$D$13","v":0},{"$f":"ROUND((IF('Crop 2'!$C$14=Carbon!$B101,'Crop 2'!$V$14*VLOOKUP('Crop 2'!$E$14,Carbon!$AH$4:$AI$10,2,FALSE),0)+IF('Crop 2'!$C$15=Carbon!$B101,'Crop 2'!$V$15*VLOOKUP('Crop 2'!$E$15,Carbon!$AH$4:$AI$10,2,FALSE),0)+IF('Crop 2'!$C$16=Carbon!$B101,'Crop 2'!$V$16*VLOOKUP('Crop 2'!$E$16,Carbon!$AH$4:$AI$10,2,FALSE),0)+IF('Crop 2'!$C$19=Carbon!$B101,'Crop 2'!$V$19*VLOOKUP('Crop 2'!$E$19,Carbon!$AH$4:$AI$10,2,FALSE),0)+IF('Crop 2'!$C$20=Carbon!$B101,'Crop 2'!$V$20*VLOOKUP('Crop 2'!$E$20,Carbon!$AH$4:$AI$10,2,FALSE),0)+IF('Crop 2'!$C$21=Carbon!$B101,'Crop 2'!$V$21*VLOOKUP('Crop 2'!$E$21,Carbon!$AH$4:$AI$10,2,FALSE),0)+IF('Crop 2'!$C$49=Carbon!$B101,'Crop 2'!$V$49*VLOOKUP('Crop 2'!$E$49,Carbon!$AH$4:$AI$10,2,FALSE),0)+IF('Crop 2'!$C$50=Carbon!$B101,'Crop 2'!$V$50*VLOOKUP('Crop 2'!$E$50,Carbon!$AH$4:$AI$10,2,FALSE),0)+IF('Crop 2'!$C$51=Carbon!$B101,'Crop 2'!$V$51*VLOOKUP('Crop 2'!$E$51,Carbon!$AH$4:$AI$10,2,FALSE),0)+IF('Crop 2'!$C$52=Carbon!$B101,'Crop 2'!$V$52*VLOOKUP('Crop 2'!$E$52,Carbon!$AH$4:$AI$10,2,FALSE),0)+IF('Crop 2'!$C$53=Carbon!$B101,'Crop 2'!$V$53*VLOOKUP('Crop 2'!$E$53,Carbon!$AH$4:$AI$10,2,FALSE),0)+IF('Crop 2'!$C$56=Carbon!$B101,'Crop 2'!$V$56*VLOOKUP('Crop 2'!$E$56,Carbon!$AH$4:$AI$10,2,FALSE),0)+IF('Crop 2'!$C$57=Carbon!$B101,'Crop 2'!$V$57*VLOOKUP('Crop 2'!$E$57,Carbon!$AH$4:$AI$10,2,FALSE),0)+IF('Crop 2'!$C$58=Carbon!$B101,'Crop 2'!$V$58*VLOOKUP('Crop 2'!$E$58,Carbon!$AH$4:$AI$10,2,FALSE),0)+IF('Crop 2'!$C$59=Carbon!$B101,'Crop 2'!$V$59*VLOOKUP('Crop 2'!$E$59,Carbon!$AH$4:$AI$10,2,FALSE),0)+IF('Crop 2'!$C$62=Carbon!$B101,'Crop 2'!$V$62*VLOOKUP('Crop 2'!$E$62,Carbon!$AH$4:$AI$10,2,FALSE),0)+IF('Crop 2'!$C$63=Carbon!$B101,'Crop 2'!$V$63*VLOOKUP('Crop 2'!$E$63,Carbon!$AH$4:$AI$10,2,FALSE),0)+IF('Crop 2'!$C$64=Carbon!$B101,'Crop 2'!$V$64*VLOOKUP('Crop 2'!$E$64,Carbon!$AH$4:$AI$10,2,FALSE),0)+IF('Crop 2'!$C$65=Carbon!$B101,'Crop 2'!$V$65*VLOOKUP('Crop 2'!$E$65,Carbon!$AH$4:$AI$10,2,FALSE),0))*$AL$20,2)","v":0},{"$f":"O101*Inputs!$D$15","v":0},{"$f":"ROUND((IF('Crop 3'!$C$14=Carbon!$B101,'Crop 3'!$V$14*VLOOKUP('Crop 3'!$E$14,Carbon!$AH$4:$AI$10,2,FALSE),0)+IF('Crop 3'!$C$15=Carbon!$B101,'Crop 3'!$V$15*VLOOKUP('Crop 3'!$E$15,Carbon!$AH$4:$AI$10,2,FALSE),0)+IF('Crop 3'!$C$16=Carbon!$B101,'Crop 3'!$V$16*VLOOKUP('Crop 3'!$E$16,Carbon!$AH$4:$AI$10,2,FALSE),0)+IF('Crop 3'!$C$19=Carbon!$B101,'Crop 3'!$V$19*VLOOKUP('Crop 3'!$E$19,Carbon!$AH$4:$AI$10,2,FALSE),0)+IF('Crop 3'!$C$20=Carbon!$B101,'Crop 3'!$V$20*VLOOKUP('Crop 3'!$E$20,Carbon!$AH$4:$AI$10,2,FALSE),0)+IF('Crop 3'!$C$21=Carbon!$B101,'Crop 3'!$V$21*VLOOKUP('Crop 3'!$E$21,Carbon!$AH$4:$AI$10,2,FALSE),0)+IF('Crop 3'!$C$49=Carbon!$B101,'Crop 3'!$V$49*VLOOKUP('Crop 3'!$E$49,Carbon!$AH$4:$AI$10,2,FALSE),0)+IF('Crop 3'!$C$50=Carbon!$B101,'Crop 3'!$V$50*VLOOKUP('Crop 3'!$E$50,Carbon!$AH$4:$AI$10,2,FALSE),0)+IF('Crop 3'!$C$51=Carbon!$B101,'Crop 3'!$V$51*VLOOKUP('Crop 3'!$E$51,Carbon!$AH$4:$AI$10,2,FALSE),0)+IF('Crop 3'!$C$52=Carbon!$B101,'Crop 3'!$V$52*VLOOKUP('Crop 3'!$E$52,Carbon!$AH$4:$AI$10,2,FALSE),0)+IF('Crop 3'!$C$53=Carbon!$B101,'Crop 3'!$V$53*VLOOKUP('Crop 3'!$E$53,Carbon!$AH$4:$AI$10,2,FALSE),0)+IF('Crop 3'!$C$56=Carbon!$B101,'Crop 3'!$V$56*VLOOKUP('Crop 3'!$E$56,Carbon!$AH$4:$AI$10,2,FALSE),0)+IF('Crop 3'!$C$57=Carbon!$B101,'Crop 3'!$V$57*VLOOKUP('Crop 3'!$E$57,Carbon!$AH$4:$AI$10,2,FALSE),0)+IF('Crop 3'!$C$58=Carbon!$B101,'Crop 3'!$V$58*VLOOKUP('Crop 3'!$E$58,Carbon!$AH$4:$AI$10,2,FALSE),0)+IF('Crop 3'!$C$59=Carbon!$B101,'Crop 3'!$V$59*VLOOKUP('Crop 3'!$E$59,Carbon!$AH$4:$AI$10,2,FALSE),0)+IF('Crop 3'!$C$62=Carbon!$B101,'Crop 3'!$V$62*VLOOKUP('Crop 3'!$E$62,Carbon!$AH$4:$AI$10,2,FALSE),0)+IF('Crop 3'!$C$63=Carbon!$B101,'Crop 3'!$V$63*VLOOKUP('Crop 3'!$E$63,Carbon!$AH$4:$AI$10,2,FALSE),0)+IF('Crop 3'!$C$64=Carbon!$B101,'Crop 3'!$V$64*VLOOKUP('Crop 3'!$E$64,Carbon!$AH$4:$AI$10,2,FALSE),0)+IF('Crop 3'!$C$65=Carbon!$B101,'Crop 3'!$V$65*VLOOKUP('Crop 3'!$E$65,Carbon!$AH$4:$AI$10,2,FALSE),0))*$AL$20,2)","v":2.71},{"$f":"Q101*Inputs!$D$17","v":271},{"$f":"ROUND(T101/Inputs!D$19,2)","v":0.45},271,null,null,0,{"$f":"W101*Inputs!$D$13","v":0},0,{"$f":"Y101*Inputs!$D$13","v":0},-0.76000000000000023,{"$f":"AA101*Inputs!$D$13","v":-228.00000000000006},{"$f":"ROUND(AD101/Inputs!D$19,2)","v":-0.38},-228]
[null,{"$f":"Defaults!AH68","v":"GrazonNext"},{"$f":"ROUND((IF('Crop 1'!$C$14=Carbon!$B102,'Crop 1'!$L$14*VLOOKUP('Crop 1'!$E$14,Carbon!$AH$4:$AI$10,2,FALSE),0)+IF('Crop 1'!$C$15=Carbon!$B102,'Crop 1'!$L$15*VLOOKUP('Crop 1'!$E$15,Carbon!$AH$4:$AI$10,2,FALSE),0)+IF('Crop 1'!$C$16=Carbon!$B102,'Crop 1'!$L$16*VLOOKUP('Crop 1'!$E$16,Carbon!$AH$4:$AI$10,2,FALSE),0)+IF('Crop 1'!$C$19=Carbon!$B102,'Crop 1'!$L$19*VLOOKUP('Crop 1'!$E$19,Carbon!$AH$4:$AI$10,2,FALSE),0)+IF('Crop 1'!$C$20=Carbon!$B102,'Crop 1'!$L$20*VLOOKUP('Crop 1'!$E$20,Carbon!$AH$4:$AI$10,2,FALSE),0)+IF('Crop 1'!$C$21=Carbon!$B102,'Crop 1'!$L$21*VLOOKUP('Crop 1'!$E$21,Carbon!$AH$4:$AI$10,2,FALSE),0)+IF('Crop 1'!$C$49=Carbon!$B102,'Crop 1'!$L$49*VLOOKUP('Crop 1'!$E$49,Carbon!$AH$4:$AI$10,2,FALSE),0)+IF('Crop 1'!$C$50=Carbon!$B102,'Crop 1'!$L$50*VLOOKUP('Crop 1'!$E$50,Carbon!$AH$4:$AI$10,2,FALSE),0)+IF('Crop 1'!$C$51=Carbon!$B102,'Crop 1'!$L$51*VLOOKUP('Crop 1'!$E$51,Carbon!$AH$4:$AI$10,2,FALSE),0)+IF('Crop 1'!$C$52=Carbon!$B102,'Crop 1'!$L$52*VLOOKUP('Crop 1'!$E$52,Carbon!$AH$4:$AI$10,2,FALSE),0)+IF('Crop 1'!$C$53=Carbon!$B102,'Crop 1'!$L$53*VLOOKUP('Crop 1'!$E$53,Carbon!$AH$4:$AI$10,2,FALSE),0)+IF('Crop 1'!$C$56=Carbon!$B102,'Crop 1'!$L$56*VLOOKUP('Crop 1'!$E$56,Carbon!$AH$4:$AI$10,2,FALSE),0)+IF('Crop 1'!$C$57=Carbon!$B102,'Crop 1'!$L$57*VLOOKUP('Crop 1'!$E$57,Carbon!$AH$4:$AI$10,2,FALSE),0)+IF('Crop 1'!$C$58=Carbon!$B102,'Crop 1'!$L$58*VLOOKUP('Crop 1'!$E$58,Carbon!$AH$4:$AI$10,2,FALSE),0)+IF('Crop 1'!$C$59=Carbon!$B102,'Crop 1'!$L$59*VLOOKUP('Crop 1'!$E$59,Carbon!$AH$4:$AI$10,2,FALSE),0)+IF('Crop 1'!$C$62=Carbon!$B102,'Crop 1'!$L$62*VLOOKUP('Crop 1'!$E$62,Carbon!$AH$4:$AI$10,2,FALSE),0)+IF('Crop 1'!$C$63=Carbon!$B102,'Crop 1'!$L$63*VLOOKUP('Crop 1'!$E$63,Carbon!$AH$4:$AI$10,2,FALSE),0)+IF('Crop 1'!$C$64=Carbon!$B102,'Crop 1'!$L$64*VLOOKUP('Crop 1'!$E$64,Carbon!$AH$4:$AI$10,2,FALSE),0)+IF('Crop 1'!$C$65=Carbon!$B102,'Crop 1'!$L$65*VLOOKUP('Crop 1'!$E$65,Carbon!$AH$4:$AI$10,2,FALSE),0))*$AL$20,2)","v":0},{"$f":"C102*Inputs!$D$13","v":0},{"$f":"ROUND((IF('Crop 2'!$C$14=Carbon!$B102,'Crop 2'!$L$14*VLOOKUP('Crop 2'!$E$14,Carbon!$AH$4:$AI$10,2,FALSE),0)+IF('Crop 2'!$C$15=Carbon!$B102,'Crop 2'!$L$15*VLOOKUP('Crop 2'!$E$15,Carbon!$AH$4:$AI$10,2,FALSE),0)+IF('Crop 2'!$C$16=Carbon!$B102,'Crop 2'!$L$16*VLOOKUP('Crop 2'!$E$16,Carbon!$AH$4:$AI$10,2,FALSE),0)+IF('Crop 2'!$C$19=Carbon!$B102,'Crop 2'!$L$19*VLOOKUP('Crop 2'!$E$19,Carbon!$AH$4:$AI$10,2,FALSE),0)+IF('Crop 2'!$C$20=Carbon!$B102,'Crop 2'!$L$20*VLOOKUP('Crop 2'!$E$20,Carbon!$AH$4:$AI$10,2,FALSE),0)+IF('Crop 2'!$C$21=Carbon!$B102,'Crop 2'!$L$21*VLOOKUP('Crop 2'!$E$21,Carbon!$AH$4:$AI$10,2,FALSE),0)+IF('Crop 2'!$C$49=Carbon!$B102,'Crop 2'!$L$49*VLOOKUP('Crop 2'!$E$49,Carbon!$AH$4:$AI$10,2,FALSE),0)+IF('Crop 2'!$C$50=Carbon!$B102,'Crop 2'!$L$50*VLOOKUP('Crop 2'!$E$50,Carbon!$AH$4:$AI$10,2,FALSE),0)+IF('Crop 2'!$C$51=Carbon!$B102,'Crop 2'!$L$51*VLOOKUP('Crop 2'!$E$51,Carbon!$AH$4:$AI$10,2,FALSE),0)+IF('Crop 2'!$C$52=Carbon!$B102,'Crop 2'!$L$52*VLOOKUP('Crop 2'!$E$52,Carbon!$AH$4:$AI$10,2,FALSE),0)+IF('Crop 2'!$C$53=Carbon!$B102,'Crop 2'!$L$53*VLOOKUP('Crop 2'!$E$53,Carbon!$AH$4:$AI$10,2,FALSE),0)+IF('Crop 2'!$C$56=Carbon!$B102,'Crop 2'!$L$56*VLOOKUP('Crop 2'!$E$56,Carbon!$AH$4:$AI$10,2,FALSE),0)+IF('Crop 2'!$C$57=Carbon!$B102,'Crop 2'!$L$57*VLOOKUP('Crop 2'!$E$57,Carbon!$AH$4:$AI$10,2,FALSE),0)+IF('Crop 2'!$C$58=Carbon!$B102,'Crop 2'!$L$58*VLOOKUP('Crop 2'!$E$58,Carbon!$AH$4:$AI$10,2,FALSE),0)+IF('Crop 2'!$C$59=Carbon!$B102,'Crop 2'!$L$59*VLOOKUP('Crop 2'!$E$59,Carbon!$AH$4:$AI$10,2,FALSE),0)+IF('Crop 2'!$C$62=Carbon!$B102,'Crop 2'!$L$62*VLOOKUP('Crop 2'!$E$62,Carbon!$AH$4:$AI$10,2,FALSE),0)+IF('Crop 2'!$C$63=Carbon!$B102,'Crop 2'!$L$63*VLOOKUP('Crop 2'!$E$63,Carbon!$AH$4:$AI$10,2,FALSE),0)+IF('Crop 2'!$C$64=Carbon!$B102,'Crop 2'!$L$64*VLOOKUP('Crop 2'!$E$64,Carbon!$AH$4:$AI$10,2,FALSE),0)+IF('Crop 2'!$C$65=Carbon!$B102,'Crop 2'!$L$65*VLOOKUP('Crop 2'!$E$65,Carbon!$AH$4:$AI$10,2,FALSE),0))*$AL$20,2)","v":0},{"$f":"E102*Inputs!$D$15","v":0},{"$f":"ROUND((IF('Crop 3'!$C$14=Carbon!$B102,'Crop 3'!$L$14*VLOOKUP('Crop 3'!$E$14,Carbon!$AH$4:$AI$10,2,FALSE),0)+IF('Crop 3'!$C$15=Carbon!$B102,'Crop 3'!$L$15*VLOOKUP('Crop 3'!$E$15,Carbon!$AH$4:$AI$10,2,FALSE),0)+IF('Crop 3'!$C$16=Carbon!$B102,'Crop 3'!$L$16*VLOOKUP('Crop 3'!$E$16,Carbon!$AH$4:$AI$10,2,FALSE),0)+IF('Crop 3'!$C$19=Carbon!$B102,'Crop 3'!$L$19*VLOOKUP('Crop 3'!$E$19,Carbon!$AH$4:$AI$10,2,FALSE),0)+IF('Crop 3'!$C$20=Carbon!$B102,'Crop 3'!$L$20*VLOOKUP('Crop 3'!$E$20,Carbon!$AH$4:$AI$10,2,FALSE),0)+IF('Crop 3'!$C$21=Carbon!$B102,'Crop 3'!$L$21*VLOOKUP('Crop 3'!$E$21,Carbon!$AH$4:$AI$10,2,FALSE),0)+IF('Crop 3'!$C$49=Carbon!$B102,'Crop 3'!$L$49*VLOOKUP('Crop 3'!$E$49,Carbon!$AH$4:$AI$10,2,FALSE),0)+IF('Crop 3'!$C$50=Carbon!$B102,'Crop 3'!$L$50*VLOOKUP('Crop 3'!$E$50,Carbon!$AH$4:$AI$10,2,FALSE),0)+IF('Crop 3'!$C$51=Carbon!$B102,'Crop 3'!$L$51*VLOOKUP('Crop 3'!$E$51,Carbon!$AH$4:$AI$10,2,FALSE),0)+IF('Crop 3'!$C$52=Carbon!$B102,'Crop 3'!$L$52*VLOOKUP('Crop 3'!$E$52,Carbon!$AH$4:$AI$10,2,FALSE),0)+IF('Crop 3'!$C$53=Carbon!$B102,'Crop 3'!$L$53*VLOOKUP('Crop 3'!$E$53,Carbon!$AH$4:$AI$10,2,FALSE),0)+IF('Crop 3'!$C$56=Carbon!$B102,'Crop 3'!$L$56*VLOOKUP('Crop 3'!$E$56,Carbon!$AH$4:$AI$10,2,FALSE),0)+IF('Crop 3'!$C$57=Carbon!$B102,'Crop 3'!$L$57*VLOOKUP('Crop 3'!$E$57,Carbon!$AH$4:$AI$10,2,FALSE),0)+IF('Crop 3'!$C$58=Carbon!$B102,'Crop 3'!$L$58*VLOOKUP('Crop 3'!$E$58,Carbon!$AH$4:$AI$10,2,FALSE),0)+IF('Crop 3'!$C$59=Carbon!$B102,'Crop 3'!$L$59*VLOOKUP('Crop 3'!$E$59,Carbon!$AH$4:$AI$10,2,FALSE),0)+IF('Crop 3'!$C$62=Carbon!$B102,'Crop 3'!$L$62*VLOOKUP('Crop 3'!$E$62,Carbon!$AH$4:$AI$10,2,FALSE),0)+IF('Crop 3'!$C$63=Carbon!$B102,'Crop 3'!$L$63*VLOOKUP('Crop 3'!$E$63,Carbon!$AH$4:$AI$10,2,FALSE),0)+IF('Crop 3'!$C$64=Carbon!$B102,'Crop 3'!$L$64*VLOOKUP('Crop 3'!$E$64,Carbon!$AH$4:$AI$10,2,FALSE),0)+IF('Crop 3'!$C$65=Carbon!$B102,'Crop 3'!$L$65*VLOOKUP('Crop 3'!$E$65,Carbon!$AH$4:$AI$10,2,FALSE),0))*$AL$20,2)","v":0},{"$f":"G102*Inputs!$D$17","v":0},{"$f":"ROUND(J102/Inputs!D$19,2)","v":0},0,null,null,{"$f":"ROUND((IF('Crop 1'!$C$14=Carbon!$B102,'Crop 1'!$V$14*VLOOKUP('Crop 1'!$E$14,Carbon!$AH$4:$AI$10,2,FALSE),0)+IF('Crop 1'!$C$15=Carbon!$B102,'Crop 1'!$V$15*VLOOKUP('Crop 1'!$E$15,Carbon!$AH$4:$AI$10,2,FALSE),0)+IF('Crop 1'!$C$16=Carbon!$B102,'Crop 1'!$V$16*VLOOKUP('Crop 1'!$E$16,Carbon!$AH$4:$AI$10,2,FALSE),0)+IF('Crop 1'!$C$19=Carbon!$B102,'Crop 1'!$V$19*VLOOKUP('Crop 1'!$E$19,Carbon!$AH$4:$AI$10,2,FALSE),0)+IF('Crop 1'!$C$20=Carbon!$B102,'Crop 1'!$V$20*VLOOKUP('Crop 1'!$E$20,Carbon!$AH$4:$AI$10,2,FALSE),0)+IF('Crop 1'!$C$21=Carbon!$B102,'Crop 1'!$V$21*VLOOKUP('Crop 1'!$E$21,Carbon!$AH$4:$AI$10,2,FALSE),0)+IF('Crop 1'!$C$49=Carbon!$B102,'Crop 1'!$V$49*VLOOKUP('Crop 1'!$E$49,Carbon!$AH$4:$AI$10,2,FALSE),0)+IF('Crop 1'!$C$50=Carbon!$B102,'Crop 1'!$V$50*VLOOKUP('Crop 1'!$E$50,Carbon!$AH$4:$AI$10,2,FALSE),0)+IF('Crop 1'!$C$51=Carbon!$B102,'Crop 1'!$V$51*VLOOKUP('Crop 1'!$E$51,Carbon!$AH$4:$AI$10,2,FALSE),0)+IF('Crop 1'!$C$52=Carbon!$B102,'Crop 1'!$V$52*VLOOKUP('Crop 1'!$E$52,Carbon!$AH$4:$AI$10,2,FALSE),0)+IF('Crop 1'!$C$53=Carbon!$B102,'Crop 1'!$V$53*VLOOKUP('Crop 1'!$E$53,Carbon!$AH$4:$AI$10,2,FALSE),0)+IF('Crop 1'!$C$56=Carbon!$B102,'Crop 1'!$V$56*VLOOKUP('Crop 1'!$E$56,Carbon!$AH$4:$AI$10,2,FALSE),0)+IF('Crop 1'!$C$57=Carbon!$B102,'Crop 1'!$V$57*VLOOKUP('Crop 1'!$E$57,Carbon!$AH$4:$AI$10,2,FALSE),0)+IF('Crop 1'!$C$58=Carbon!$B102,'Crop 1'!$V$58*VLOOKUP('Crop 1'!$E$58,Carbon!$AH$4:$AI$10,2,FALSE),0)+IF('Crop 1'!$C$59=Carbon!$B102,'Crop 1'!$V$59*VLOOKUP('Crop 1'!$E$59,Carbon!$AH$4:$AI$10,2,FALSE),0)+IF('Crop 1'!$C$62=Carbon!$B102,'Crop 1'!$V$62*VLOOKUP('Crop 1'!$E$62,Carbon!$AH$4:$AI$10,2,FALSE),0)+IF('Crop 1'!$C$63=Carbon!$B102,'Crop 1'!$V$63*VLOOKUP('Crop 1'!$E$63,Carbon!$AH$4:$AI$10,2,FALSE),0)+IF('Crop 1'!$C$64=Carbon!$B102,'Crop 1'!$V$64*VLOOKUP('Crop 1'!$E$64,Carbon!$AH$4:$AI$10,2,FALSE),0)+IF('Crop 1'!$C$65=Carbon!$B102,'Crop 1'!$V$65*VLOOKUP('Crop 1'!$E$65,Carbon!$AH$4:$AI$10,2,FALSE),0))*$AL$20,2)","v":0},{"$f":"M102*Inputs!$D$13","v":0},{"$f":"ROUND((IF('Crop 2'!$C$14=Carbon!$B102,'Crop 2'!$V$14*VLOOKUP('Crop 2'!$E$14,Carbon!$AH$4:$AI$10,2,FALSE),0)+IF('Crop 2'!$C$15=Carbon!$B102,'Crop 2'!$V$15*VLOOKUP('Crop 2'!$E$15,Carbon!$AH$4:$AI$10,2,FALSE),0)+IF('Crop 2'!$C$16=Carbon!$B102,'Crop 2'!$V$16*VLOOKUP('Crop 2'!$E$16,Carbon!$AH$4:$AI$10,2,FALSE),0)+IF('Crop 2'!$C$19=Carbon!$B102,'Crop 2'!$V$19*VLOOKUP('Crop 2'!$E$19,Carbon!$AH$4:$AI$10,2,FALSE),0)+IF('Crop 2'!$C$20=Carbon!$B102,'Crop 2'!$V$20*VLOOKUP('Crop 2'!$E$20,Carbon!$AH$4:$AI$10,2,FALSE),0)+IF('Crop 2'!$C$21=Carbon!$B102,'Crop 2'!$V$21*VLOOKUP('Crop 2'!$E$21,Carbon!$AH$4:$AI$10,2,FALSE),0)+IF('Crop 2'!$C$49=Carbon!$B102,'Crop 2'!$V$49*VLOOKUP('Crop 2'!$E$49,Carbon!$AH$4:$AI$10,2,FALSE),0)+IF('Crop 2'!$C$50=Carbon!$B102,'Crop 2'!$V$50*VLOOKUP('Crop 2'!$E$50,Carbon!$AH$4:$AI$10,2,FALSE),0)+IF('Crop 2'!$C$51=Carbon!$B102,'Crop 2'!$V$51*VLOOKUP('Crop 2'!$E$51,Carbon!$AH$4:$AI$10,2,FALSE),0)+IF('Crop 2'!$C$52=Carbon!$B102,'Crop 2'!$V$52*VLOOKUP('Crop 2'!$E$52,Carbon!$AH$4:$AI$10,2,FALSE),0)+IF('Crop 2'!$C$53=Carbon!$B102,'Crop 2'!$V$53*VLOOKUP('Crop 2'!$E$53,Carbon!$AH$4:$AI$10,2,FALSE),0)+IF('Crop 2'!$C$56=Carbon!$B102,'Crop 2'!$V$56*VLOOKUP('Crop 2'!$E$56,Carbon!$AH$4:$AI$10,2,FALSE),0)+IF('Crop 2'!$C$57=Carbon!$B102,'Crop 2'!$V$57*VLOOKUP('Crop 2'!$E$57,Carbon!$AH$4:$AI$10,2,FALSE),0)+IF('Crop 2'!$C$58=Carbon!$B102,'Crop 2'!$V$58*VLOOKUP('Crop 2'!$E$58,Carbon!$AH$4:$AI$10,2,FALSE),0)+IF('Crop 2'!$C$59=Carbon!$B102,'Crop 2'!$V$59*VLOOKUP('Crop 2'!$E$59,Carbon!$AH$4:$AI$10,2,FALSE),0)+IF('Crop 2'!$C$62=Carbon!$B102,'Crop 2'!$V$62*VLOOKUP('Crop 2'!$E$62,Carbon!$AH$4:$AI$10,2,FALSE),0)+IF('Crop 2'!$C$63=Carbon!$B102,'Crop 2'!$V$63*VLOOKUP('Crop 2'!$E$63,Carbon!$AH$4:$AI$10,2,FALSE),0)+IF('Crop 2'!$C$64=Carbon!$B102,'Crop 2'!$V$64*VLOOKUP('Crop 2'!$E$64,Carbon!$AH$4:$AI$10,2,FALSE),0)+IF('Crop 2'!$C$65=Carbon!$B102,'Crop 2'!$V$65*VLOOKUP('Crop 2'!$E$65,Carbon!$AH$4:$AI$10,2,FALSE),0))*$AL$20,2)","v":0},{"$f":"O102*Inputs!$D$15","v":0},{"$f":"ROUND((IF('Crop 3'!$C$14=Carbon!$B102,'Crop 3'!$V$14*VLOOKUP('Crop 3'!$E$14,Carbon!$AH$4:$AI$10,2,FALSE),0)+IF('Crop 3'!$C$15=Carbon!$B102,'Crop 3'!$V$15*VLOOKUP('Crop 3'!$E$15,Carbon!$AH$4:$AI$10,2,FALSE),0)+IF('Crop 3'!$C$16=Carbon!$B102,'Crop 3'!$V$16*VLOOKUP('Crop 3'!$E$16,Carbon!$AH$4:$AI$10,2,FALSE),0)+IF('Crop 3'!$C$19=Carbon!$B102,'Crop 3'!$V$19*VLOOKUP('Crop 3'!$E$19,Carbon!$AH$4:$AI$10,2,FALSE),0)+IF('Crop 3'!$C$20=Carbon!$B102,'Crop 3'!$V$20*VLOOKUP('Crop 3'!$E$20,Carbon!$AH$4:$AI$10,2,FALSE),0)+IF('Crop 3'!$C$21=Carbon!$B102,'Crop 3'!$V$21*VLOOKUP('Crop 3'!$E$21,Carbon!$AH$4:$AI$10,2,FALSE),0)+IF('Crop 3'!$C$49=Carbon!$B102,'Crop 3'!$V$49*VLOOKUP('Crop 3'!$E$49,Carbon!$AH$4:$AI$10,2,FALSE),0)+IF('Crop 3'!$C$50=Carbon!$B102,'Crop 3'!$V$50*VLOOKUP('Crop 3'!$E$50,Carbon!$AH$4:$AI$10,2,FALSE),0)+IF('Crop 3'!$C$51=Carbon!$B102,'Crop 3'!$V$51*VLOOKUP('Crop 3'!$E$51,Carbon!$AH$4:$AI$10,2,FALSE),0)+IF('Crop 3'!$C$52=Carbon!$B102,'Crop 3'!$V$52*VLOOKUP('Crop 3'!$E$52,Carbon!$AH$4:$AI$10,2,FALSE),0)+IF('Crop 3'!$C$53=Carbon!$B102,'Crop 3'!$V$53*VLOOKUP('Crop 3'!$E$53,Carbon!$AH$4:$AI$10,2,FALSE),0)+IF('Crop 3'!$C$56=Carbon!$B102,'Crop 3'!$V$56*VLOOKUP('Crop 3'!$E$56,Carbon!$AH$4:$AI$10,2,FALSE),0)+IF('Crop 3'!$C$57=Carbon!$B102,'Crop 3'!$V$57*VLOOKUP('Crop 3'!$E$57,Carbon!$AH$4:$AI$10,2,FALSE),0)+IF('Crop 3'!$C$58=Carbon!$B102,'Crop 3'!$V$58*VLOOKUP('Crop 3'!$E$58,Carbon!$AH$4:$AI$10,2,FALSE),0)+IF('Crop 3'!$C$59=Carbon!$B102,'Crop 3'!$V$59*VLOOKUP('Crop 3'!$E$59,Carbon!$AH$4:$AI$10,2,FALSE),0)+IF('Crop 3'!$C$62=Carbon!$B102,'Crop 3'!$V$62*VLOOKUP('Crop 3'!$E$62,Carbon!$AH$4:$AI$10,2,FALSE),0)+IF('Crop 3'!$C$63=Carbon!$B102,'Crop 3'!$V$63*VLOOKUP('Crop 3'!$E$63,Carbon!$AH$4:$AI$10,2,FALSE),0)+IF('Crop 3'!$C$64=Carbon!$B102,'Crop 3'!$V$64*VLOOKUP('Crop 3'!$E$64,Carbon!$AH$4:$AI$10,2,FALSE),0)+IF('Crop 3'!$C$65=Carbon!$B102,'Crop 3'!$V$65*VLOOKUP('Crop 3'!$E$65,Carbon!$AH$4:$AI$10,2,FALSE),0))*$AL$20,2)","v":0},{"$f":"Q102*Inputs!$D$17","v":0},{"$f":"ROUND(T102/Inputs!D$19,2)","v":0},0,null,null,0,{"$f":"W102*Inputs!$D$13","v":0},0,{"$f":"Y102*Inputs!$D$13","v":0},0,{"$f":"AA102*Inputs!$D$13","v":0},{"$f":"ROUND(AD102/Inputs!D$19,2)","v":0},0]
[null,{"$f":"Defaults!AH69","v":"Halex GT"},{"$f":"ROUND((IF('Crop 1'!$C$14=Carbon!$B103,'Crop 1'!$L$14*VLOOKUP('Crop 1'!$E$14,Carbon!$AH$4:$AI$10,2,FALSE),0)+IF('Crop 1'!$C$15=Carbon!$B103,'Crop 1'!$L$15*VLOOKUP('Crop 1'!$E$15,Carbon!$AH$4:$AI$10,2,FALSE),0)+IF('Crop 1'!$C$16=Carbon!$B103,'Crop 1'!$L$16*VLOOKUP('Crop 1'!$E$16,Carbon!$AH$4:$AI$10,2,FALSE),0)+IF('Crop 1'!$C$19=Carbon!$B103,'Crop 1'!$L$19*VLOOKUP('Crop 1'!$E$19,Carbon!$AH$4:$AI$10,2,FALSE),0)+IF('Crop 1'!$C$20=Carbon!$B103,'Crop 1'!$L$20*VLOOKUP('Crop 1'!$E$20,Carbon!$AH$4:$AI$10,2,FALSE),0)+IF('Crop 1'!$C$21=Carbon!$B103,'Crop 1'!$L$21*VLOOKUP('Crop 1'!$E$21,Carbon!$AH$4:$AI$10,2,FALSE),0)+IF('Crop 1'!$C$49=Carbon!$B103,'Crop 1'!$L$49*VLOOKUP('Crop 1'!$E$49,Carbon!$AH$4:$AI$10,2,FALSE),0)+IF('Crop 1'!$C$50=Carbon!$B103,'Crop 1'!$L$50*VLOOKUP('Crop 1'!$E$50,Carbon!$AH$4:$AI$10,2,FALSE),0)+IF('Crop 1'!$C$51=Carbon!$B103,'Crop 1'!$L$51*VLOOKUP('Crop 1'!$E$51,Carbon!$AH$4:$AI$10,2,FALSE),0)+IF('Crop 1'!$C$52=Carbon!$B103,'Crop 1'!$L$52*VLOOKUP('Crop 1'!$E$52,Carbon!$AH$4:$AI$10,2,FALSE),0)+IF('Crop 1'!$C$53=Carbon!$B103,'Crop 1'!$L$53*VLOOKUP('Crop 1'!$E$53,Carbon!$AH$4:$AI$10,2,FALSE),0)+IF('Crop 1'!$C$56=Carbon!$B103,'Crop 1'!$L$56*VLOOKUP('Crop 1'!$E$56,Carbon!$AH$4:$AI$10,2,FALSE),0)+IF('Crop 1'!$C$57=Carbon!$B103,'Crop 1'!$L$57*VLOOKUP('Crop 1'!$E$57,Carbon!$AH$4:$AI$10,2,FALSE),0)+IF('Crop 1'!$C$58=Carbon!$B103,'Crop 1'!$L$58*VLOOKUP('Crop 1'!$E$58,Carbon!$AH$4:$AI$10,2,FALSE),0)+IF('Crop 1'!$C$59=Carbon!$B103,'Crop 1'!$L$59*VLOOKUP('Crop 1'!$E$59,Carbon!$AH$4:$AI$10,2,FALSE),0)+IF('Crop 1'!$C$62=Carbon!$B103,'Crop 1'!$L$62*VLOOKUP('Crop 1'!$E$62,Carbon!$AH$4:$AI$10,2,FALSE),0)+IF('Crop 1'!$C$63=Carbon!$B103,'Crop 1'!$L$63*VLOOKUP('Crop 1'!$E$63,Carbon!$AH$4:$AI$10,2,FALSE),0)+IF('Crop 1'!$C$64=Carbon!$B103,'Crop 1'!$L$64*VLOOKUP('Crop 1'!$E$64,Carbon!$AH$4:$AI$10,2,FALSE),0)+IF('Crop 1'!$C$65=Carbon!$B103,'Crop 1'!$L$65*VLOOKUP('Crop 1'!$E$65,Carbon!$AH$4:$AI$10,2,FALSE),0))*$AL$20,2)","v":0},{"$f":"C103*Inputs!$D$13","v":0},{"$f":"ROUND((IF('Crop 2'!$C$14=Carbon!$B103,'Crop 2'!$L$14*VLOOKUP('Crop 2'!$E$14,Carbon!$AH$4:$AI$10,2,FALSE),0)+IF('Crop 2'!$C$15=Carbon!$B103,'Crop 2'!$L$15*VLOOKUP('Crop 2'!$E$15,Carbon!$AH$4:$AI$10,2,FALSE),0)+IF('Crop 2'!$C$16=Carbon!$B103,'Crop 2'!$L$16*VLOOKUP('Crop 2'!$E$16,Carbon!$AH$4:$AI$10,2,FALSE),0)+IF('Crop 2'!$C$19=Carbon!$B103,'Crop 2'!$L$19*VLOOKUP('Crop 2'!$E$19,Carbon!$AH$4:$AI$10,2,FALSE),0)+IF('Crop 2'!$C$20=Carbon!$B103,'Crop 2'!$L$20*VLOOKUP('Crop 2'!$E$20,Carbon!$AH$4:$AI$10,2,FALSE),0)+IF('Crop 2'!$C$21=Carbon!$B103,'Crop 2'!$L$21*VLOOKUP('Crop 2'!$E$21,Carbon!$AH$4:$AI$10,2,FALSE),0)+IF('Crop 2'!$C$49=Carbon!$B103,'Crop 2'!$L$49*VLOOKUP('Crop 2'!$E$49,Carbon!$AH$4:$AI$10,2,FALSE),0)+IF('Crop 2'!$C$50=Carbon!$B103,'Crop 2'!$L$50*VLOOKUP('Crop 2'!$E$50,Carbon!$AH$4:$AI$10,2,FALSE),0)+IF('Crop 2'!$C$51=Carbon!$B103,'Crop 2'!$L$51*VLOOKUP('Crop 2'!$E$51,Carbon!$AH$4:$AI$10,2,FALSE),0)+IF('Crop 2'!$C$52=Carbon!$B103,'Crop 2'!$L$52*VLOOKUP('Crop 2'!$E$52,Carbon!$AH$4:$AI$10,2,FALSE),0)+IF('Crop 2'!$C$53=Carbon!$B103,'Crop 2'!$L$53*VLOOKUP('Crop 2'!$E$53,Carbon!$AH$4:$AI$10,2,FALSE),0)+IF('Crop 2'!$C$56=Carbon!$B103,'Crop 2'!$L$56*VLOOKUP('Crop 2'!$E$56,Carbon!$AH$4:$AI$10,2,FALSE),0)+IF('Crop 2'!$C$57=Carbon!$B103,'Crop 2'!$L$57*VLOOKUP('Crop 2'!$E$57,Carbon!$AH$4:$AI$10,2,FALSE),0)+IF('Crop 2'!$C$58=Carbon!$B103,'Crop 2'!$L$58*VLOOKUP('Crop 2'!$E$58,Carbon!$AH$4:$AI$10,2,FALSE),0)+IF('Crop 2'!$C$59=Carbon!$B103,'Crop 2'!$L$59*VLOOKUP('Crop 2'!$E$59,Carbon!$AH$4:$AI$10,2,FALSE),0)+IF('Crop 2'!$C$62=Carbon!$B103,'Crop 2'!$L$62*VLOOKUP('Crop 2'!$E$62,Carbon!$AH$4:$AI$10,2,FALSE),0)+IF('Crop 2'!$C$63=Carbon!$B103,'Crop 2'!$L$63*VLOOKUP('Crop 2'!$E$63,Carbon!$AH$4:$AI$10,2,FALSE),0)+IF('Crop 2'!$C$64=Carbon!$B103,'Crop 2'!$L$64*VLOOKUP('Crop 2'!$E$64,Carbon!$AH$4:$AI$10,2,FALSE),0)+IF('Crop 2'!$C$65=Carbon!$B103,'Crop 2'!$L$65*VLOOKUP('Crop 2'!$E$65,Carbon!$AH$4:$AI$10,2,FALSE),0))*$AL$20,2)","v":0},{"$f":"E103*Inputs!$D$15","v":0},{"$f":"ROUND((IF('Crop 3'!$C$14=Carbon!$B103,'Crop 3'!$L$14*VLOOKUP('Crop 3'!$E$14,Carbon!$AH$4:$AI$10,2,FALSE),0)+IF('Crop 3'!$C$15=Carbon!$B103,'Crop 3'!$L$15*VLOOKUP('Crop 3'!$E$15,Carbon!$AH$4:$AI$10,2,FALSE),0)+IF('Crop 3'!$C$16=Carbon!$B103,'Crop 3'!$L$16*VLOOKUP('Crop 3'!$E$16,Carbon!$AH$4:$AI$10,2,FALSE),0)+IF('Crop 3'!$C$19=Carbon!$B103,'Crop 3'!$L$19*VLOOKUP('Crop 3'!$E$19,Carbon!$AH$4:$AI$10,2,FALSE),0)+IF('Crop 3'!$C$20=Carbon!$B103,'Crop 3'!$L$20*VLOOKUP('Crop 3'!$E$20,Carbon!$AH$4:$AI$10,2,FALSE),0)+IF('Crop 3'!$C$21=Carbon!$B103,'Crop 3'!$L$21*VLOOKUP('Crop 3'!$E$21,Carbon!$AH$4:$AI$10,2,FALSE),0)+IF('Crop 3'!$C$49=Carbon!$B103,'Crop 3'!$L$49*VLOOKUP('Crop 3'!$E$49,Carbon!$AH$4:$AI$10,2,FALSE),0)+IF('Crop 3'!$C$50=Carbon!$B103,'Crop 3'!$L$50*VLOOKUP('Crop 3'!$E$50,Carbon!$AH$4:$AI$10,2,FALSE),0)+IF('Crop 3'!$C$51=Carbon!$B103,'Crop 3'!$L$51*VLOOKUP('Crop 3'!$E$51,Carbon!$AH$4:$AI$10,2,FALSE),0)+IF('Crop 3'!$C$52=Carbon!$B103,'Crop 3'!$L$52*VLOOKUP('Crop 3'!$E$52,Carbon!$AH$4:$AI$10,2,FALSE),0)+IF('Crop 3'!$C$53=Carbon!$B103,'Crop 3'!$L$53*VLOOKUP('Crop 3'!$E$53,Carbon!$AH$4:$AI$10,2,FALSE),0)+IF('Crop 3'!$C$56=Carbon!$B103,'Crop 3'!$L$56*VLOOKUP('Crop 3'!$E$56,Carbon!$AH$4:$AI$10,2,FALSE),0)+IF('Crop 3'!$C$57=Carbon!$B103,'Crop 3'!$L$57*VLOOKUP('Crop 3'!$E$57,Carbon!$AH$4:$AI$10,2,FALSE),0)+IF('Crop 3'!$C$58=Carbon!$B103,'Crop 3'!$L$58*VLOOKUP('Crop 3'!$E$58,Carbon!$AH$4:$AI$10,2,FALSE),0)+IF('Crop 3'!$C$59=Carbon!$B103,'Crop 3'!$L$59*VLOOKUP('Crop 3'!$E$59,Carbon!$AH$4:$AI$10,2,FALSE),0)+IF('Crop 3'!$C$62=Carbon!$B103,'Crop 3'!$L$62*VLOOKUP('Crop 3'!$E$62,Carbon!$AH$4:$AI$10,2,FALSE),0)+IF('Crop 3'!$C$63=Carbon!$B103,'Crop 3'!$L$63*VLOOKUP('Crop 3'!$E$63,Carbon!$AH$4:$AI$10,2,FALSE),0)+IF('Crop 3'!$C$64=Carbon!$B103,'Crop 3'!$L$64*VLOOKUP('Crop 3'!$E$64,Carbon!$AH$4:$AI$10,2,FALSE),0)+IF('Crop 3'!$C$65=Carbon!$B103,'Crop 3'!$L$65*VLOOKUP('Crop 3'!$E$65,Carbon!$AH$4:$AI$10,2,FALSE),0))*$AL$20,2)","v":0},{"$f":"G103*Inputs!$D$17","v":0},{"$f":"ROUND(J103/Inputs!D$19,2)","v":0},0,null,null,{"$f":"ROUND((IF('Crop 1'!$C$14=Carbon!$B103,'Crop 1'!$V$14*VLOOKUP('Crop 1'!$E$14,Carbon!$AH$4:$AI$10,2,FALSE),0)+IF('Crop 1'!$C$15=Carbon!$B103,'Crop 1'!$V$15*VLOOKUP('Crop 1'!$E$15,Carbon!$AH$4:$AI$10,2,FALSE),0)+IF('Crop 1'!$C$16=Carbon!$B103,'Crop 1'!$V$16*VLOOKUP('Crop 1'!$E$16,Carbon!$AH$4:$AI$10,2,FALSE),0)+IF('Crop 1'!$C$19=Carbon!$B103,'Crop 1'!$V$19*VLOOKUP('Crop 1'!$E$19,Carbon!$AH$4:$AI$10,2,FALSE),0)+IF('Crop 1'!$C$20=Carbon!$B103,'Crop 1'!$V$20*VLOOKUP('Crop 1'!$E$20,Carbon!$AH$4:$AI$10,2,FALSE),0)+IF('Crop 1'!$C$21=Carbon!$B103,'Crop 1'!$V$21*VLOOKUP('Crop 1'!$E$21,Carbon!$AH$4:$AI$10,2,FALSE),0)+IF('Crop 1'!$C$49=Carbon!$B103,'Crop 1'!$V$49*VLOOKUP('Crop 1'!$E$49,Carbon!$AH$4:$AI$10,2,FALSE),0)+IF('Crop 1'!$C$50=Carbon!$B103,'Crop 1'!$V$50*VLOOKUP('Crop 1'!$E$50,Carbon!$AH$4:$AI$10,2,FALSE),0)+IF('Crop 1'!$C$51=Carbon!$B103,'Crop 1'!$V$51*VLOOKUP('Crop 1'!$E$51,Carbon!$AH$4:$AI$10,2,FALSE),0)+IF('Crop 1'!$C$52=Carbon!$B103,'Crop 1'!$V$52*VLOOKUP('Crop 1'!$E$52,Carbon!$AH$4:$AI$10,2,FALSE),0)+IF('Crop 1'!$C$53=Carbon!$B103,'Crop 1'!$V$53*VLOOKUP('Crop 1'!$E$53,Carbon!$AH$4:$AI$10,2,FALSE),0)+IF('Crop 1'!$C$56=Carbon!$B103,'Crop 1'!$V$56*VLOOKUP('Crop 1'!$E$56,Carbon!$AH$4:$AI$10,2,FALSE),0)+IF('Crop 1'!$C$57=Carbon!$B103,'Crop 1'!$V$57*VLOOKUP('Crop 1'!$E$57,Carbon!$AH$4:$AI$10,2,FALSE),0)+IF('Crop 1'!$C$58=Carbon!$B103,'Crop 1'!$V$58*VLOOKUP('Crop 1'!$E$58,Carbon!$AH$4:$AI$10,2,FALSE),0)+IF('Crop 1'!$C$59=Carbon!$B103,'Crop 1'!$V$59*VLOOKUP('Crop 1'!$E$59,Carbon!$AH$4:$AI$10,2,FALSE),0)+IF('Crop 1'!$C$62=Carbon!$B103,'Crop 1'!$V$62*VLOOKUP('Crop 1'!$E$62,Carbon!$AH$4:$AI$10,2,FALSE),0)+IF('Crop 1'!$C$63=Carbon!$B103,'Crop 1'!$V$63*VLOOKUP('Crop 1'!$E$63,Carbon!$AH$4:$AI$10,2,FALSE),0)+IF('Crop 1'!$C$64=Carbon!$B103,'Crop 1'!$V$64*VLOOKUP('Crop 1'!$E$64,Carbon!$AH$4:$AI$10,2,FALSE),0)+IF('Crop 1'!$C$65=Carbon!$B103,'Crop 1'!$V$65*VLOOKUP('Crop 1'!$E$65,Carbon!$AH$4:$AI$10,2,FALSE),0))*$AL$20,2)","v":0},{"$f":"M103*Inputs!$D$13","v":0},{"$f":"ROUND((IF('Crop 2'!$C$14=Carbon!$B103,'Crop 2'!$V$14*VLOOKUP('Crop 2'!$E$14,Carbon!$AH$4:$AI$10,2,FALSE),0)+IF('Crop 2'!$C$15=Carbon!$B103,'Crop 2'!$V$15*VLOOKUP('Crop 2'!$E$15,Carbon!$AH$4:$AI$10,2,FALSE),0)+IF('Crop 2'!$C$16=Carbon!$B103,'Crop 2'!$V$16*VLOOKUP('Crop 2'!$E$16,Carbon!$AH$4:$AI$10,2,FALSE),0)+IF('Crop 2'!$C$19=Carbon!$B103,'Crop 2'!$V$19*VLOOKUP('Crop 2'!$E$19,Carbon!$AH$4:$AI$10,2,FALSE),0)+IF('Crop 2'!$C$20=Carbon!$B103,'Crop 2'!$V$20*VLOOKUP('Crop 2'!$E$20,Carbon!$AH$4:$AI$10,2,FALSE),0)+IF('Crop 2'!$C$21=Carbon!$B103,'Crop 2'!$V$21*VLOOKUP('Crop 2'!$E$21,Carbon!$AH$4:$AI$10,2,FALSE),0)+IF('Crop 2'!$C$49=Carbon!$B103,'Crop 2'!$V$49*VLOOKUP('Crop 2'!$E$49,Carbon!$AH$4:$AI$10,2,FALSE),0)+IF('Crop 2'!$C$50=Carbon!$B103,'Crop 2'!$V$50*VLOOKUP('Crop 2'!$E$50,Carbon!$AH$4:$AI$10,2,FALSE),0)+IF('Crop 2'!$C$51=Carbon!$B103,'Crop 2'!$V$51*VLOOKUP('Crop 2'!$E$51,Carbon!$AH$4:$AI$10,2,FALSE),0)+IF('Crop 2'!$C$52=Carbon!$B103,'Crop 2'!$V$52*VLOOKUP('Crop 2'!$E$52,Carbon!$AH$4:$AI$10,2,FALSE),0)+IF('Crop 2'!$C$53=Carbon!$B103,'Crop 2'!$V$53*VLOOKUP('Crop 2'!$E$53,Carbon!$AH$4:$AI$10,2,FALSE),0)+IF('Crop 2'!$C$56=Carbon!$B103,'Crop 2'!$V$56*VLOOKUP('Crop 2'!$E$56,Carbon!$AH$4:$AI$10,2,FALSE),0)+IF('Crop 2'!$C$57=Carbon!$B103,'Crop 2'!$V$57*VLOOKUP('Crop 2'!$E$57,Carbon!$AH$4:$AI$10,2,FALSE),0)+IF('Crop 2'!$C$58=Carbon!$B103,'Crop 2'!$V$58*VLOOKUP('Crop 2'!$E$58,Carbon!$AH$4:$AI$10,2,FALSE),0)+IF('Crop 2'!$C$59=Carbon!$B103,'Crop 2'!$V$59*VLOOKUP('Crop 2'!$E$59,Carbon!$AH$4:$AI$10,2,FALSE),0)+IF('Crop 2'!$C$62=Carbon!$B103,'Crop 2'!$V$62*VLOOKUP('Crop 2'!$E$62,Carbon!$AH$4:$AI$10,2,FALSE),0)+IF('Crop 2'!$C$63=Carbon!$B103,'Crop 2'!$V$63*VLOOKUP('Crop 2'!$E$63,Carbon!$AH$4:$AI$10,2,FALSE),0)+IF('Crop 2'!$C$64=Carbon!$B103,'Crop 2'!$V$64*VLOOKUP('Crop 2'!$E$64,Carbon!$AH$4:$AI$10,2,FALSE),0)+IF('Crop 2'!$C$65=Carbon!$B103,'Crop 2'!$V$65*VLOOKUP('Crop 2'!$E$65,Carbon!$AH$4:$AI$10,2,FALSE),0))*$AL$20,2)","v":0},{"$f":"O103*Inputs!$D$15","v":0},{"$f":"ROUND((IF('Crop 3'!$C$14=Carbon!$B103,'Crop 3'!$V$14*VLOOKUP('Crop 3'!$E$14,Carbon!$AH$4:$AI$10,2,FALSE),0)+IF('Crop 3'!$C$15=Carbon!$B103,'Crop 3'!$V$15*VLOOKUP('Crop 3'!$E$15,Carbon!$AH$4:$AI$10,2,FALSE),0)+IF('Crop 3'!$C$16=Carbon!$B103,'Crop 3'!$V$16*VLOOKUP('Crop 3'!$E$16,Carbon!$AH$4:$AI$10,2,FALSE),0)+IF('Crop 3'!$C$19=Carbon!$B103,'Crop 3'!$V$19*VLOOKUP('Crop 3'!$E$19,Carbon!$AH$4:$AI$10,2,FALSE),0)+IF('Crop 3'!$C$20=Carbon!$B103,'Crop 3'!$V$20*VLOOKUP('Crop 3'!$E$20,Carbon!$AH$4:$AI$10,2,FALSE),0)+IF('Crop 3'!$C$21=Carbon!$B103,'Crop 3'!$V$21*VLOOKUP('Crop 3'!$E$21,Carbon!$AH$4:$AI$10,2,FALSE),0)+IF('Crop 3'!$C$49=Carbon!$B103,'Crop 3'!$V$49*VLOOKUP('Crop 3'!$E$49,Carbon!$AH$4:$AI$10,2,FALSE),0)+IF('Crop 3'!$C$50=Carbon!$B103,'Crop 3'!$V$50*VLOOKUP('Crop 3'!$E$50,Carbon!$AH$4:$AI$10,2,FALSE),0)+IF('Crop 3'!$C$51=Carbon!$B103,'Crop 3'!$V$51*VLOOKUP('Crop 3'!$E$51,Carbon!$AH$4:$AI$10,2,FALSE),0)+IF('Crop 3'!$C$52=Carbon!$B103,'Crop 3'!$V$52*VLOOKUP('Crop 3'!$E$52,Carbon!$AH$4:$AI$10,2,FALSE),0)+IF('Crop 3'!$C$53=Carbon!$B103,'Crop 3'!$V$53*VLOOKUP('Crop 3'!$E$53,Carbon!$AH$4:$AI$10,2,FALSE),0)+IF('Crop 3'!$C$56=Carbon!$B103,'Crop 3'!$V$56*VLOOKUP('Crop 3'!$E$56,Carbon!$AH$4:$AI$10,2,FALSE),0)+IF('Crop 3'!$C$57=Carbon!$B103,'Crop 3'!$V$57*VLOOKUP('Crop 3'!$E$57,Carbon!$AH$4:$AI$10,2,FALSE),0)+IF('Crop 3'!$C$58=Carbon!$B103,'Crop 3'!$V$58*VLOOKUP('Crop 3'!$E$58,Carbon!$AH$4:$AI$10,2,FALSE),0)+IF('Crop 3'!$C$59=Carbon!$B103,'Crop 3'!$V$59*VLOOKUP('Crop 3'!$E$59,Carbon!$AH$4:$AI$10,2,FALSE),0)+IF('Crop 3'!$C$62=Carbon!$B103,'Crop 3'!$V$62*VLOOKUP('Crop 3'!$E$62,Carbon!$AH$4:$AI$10,2,FALSE),0)+IF('Crop 3'!$C$63=Carbon!$B103,'Crop 3'!$V$63*VLOOKUP('Crop 3'!$E$63,Carbon!$AH$4:$AI$10,2,FALSE),0)+IF('Crop 3'!$C$64=Carbon!$B103,'Crop 3'!$V$64*VLOOKUP('Crop 3'!$E$64,Carbon!$AH$4:$AI$10,2,FALSE),0)+IF('Crop 3'!$C$65=Carbon!$B103,'Crop 3'!$V$65*VLOOKUP('Crop 3'!$E$65,Carbon!$AH$4:$AI$10,2,FALSE),0))*$AL$20,2)","v":0},{"$f":"Q103*Inputs!$D$17","v":0},{"$f":"ROUND(T103/Inputs!D$19,2)","v":0},0,null,null,0,{"$f":"W103*Inputs!$D$13","v":0},0,{"$f":"Y103*Inputs!$D$13","v":0},0,{"$f":"AA103*Inputs!$D$13","v":0},{"$f":"ROUND(AD103/Inputs!D$19,2)","v":0},0]
[null,{"$f":"Defaults!AH70","v":"Halomax"},{"$f":"ROUND((IF('Crop 1'!$C$14=Carbon!$B104,'Crop 1'!$L$14*VLOOKUP('Crop 1'!$E$14,Carbon!$AH$4:$AI$10,2,FALSE),0)+IF('Crop 1'!$C$15=Carbon!$B104,'Crop 1'!$L$15*VLOOKUP('Crop 1'!$E$15,Carbon!$AH$4:$AI$10,2,FALSE),0)+IF('Crop 1'!$C$16=Carbon!$B104,'Crop 1'!$L$16*VLOOKUP('Crop 1'!$E$16,Carbon!$AH$4:$AI$10,2,FALSE),0)+IF('Crop 1'!$C$19=Carbon!$B104,'Crop 1'!$L$19*VLOOKUP('Crop 1'!$E$19,Carbon!$AH$4:$AI$10,2,FALSE),0)+IF('Crop 1'!$C$20=Carbon!$B104,'Crop 1'!$L$20*VLOOKUP('Crop 1'!$E$20,Carbon!$AH$4:$AI$10,2,FALSE),0)+IF('Crop 1'!$C$21=Carbon!$B104,'Crop 1'!$L$21*VLOOKUP('Crop 1'!$E$21,Carbon!$AH$4:$AI$10,2,FALSE),0)+IF('Crop 1'!$C$49=Carbon!$B104,'Crop 1'!$L$49*VLOOKUP('Crop 1'!$E$49,Carbon!$AH$4:$AI$10,2,FALSE),0)+IF('Crop 1'!$C$50=Carbon!$B104,'Crop 1'!$L$50*VLOOKUP('Crop 1'!$E$50,Carbon!$AH$4:$AI$10,2,FALSE),0)+IF('Crop 1'!$C$51=Carbon!$B104,'Crop 1'!$L$51*VLOOKUP('Crop 1'!$E$51,Carbon!$AH$4:$AI$10,2,FALSE),0)+IF('Crop 1'!$C$52=Carbon!$B104,'Crop 1'!$L$52*VLOOKUP('Crop 1'!$E$52,Carbon!$AH$4:$AI$10,2,FALSE),0)+IF('Crop 1'!$C$53=Carbon!$B104,'Crop 1'!$L$53*VLOOKUP('Crop 1'!$E$53,Carbon!$AH$4:$AI$10,2,FALSE),0)+IF('Crop 1'!$C$56=Carbon!$B104,'Crop 1'!$L$56*VLOOKUP('Crop 1'!$E$56,Carbon!$AH$4:$AI$10,2,FALSE),0)+IF('Crop 1'!$C$57=Carbon!$B104,'Crop 1'!$L$57*VLOOKUP('Crop 1'!$E$57,Carbon!$AH$4:$AI$10,2,FALSE),0)+IF('Crop 1'!$C$58=Carbon!$B104,'Crop 1'!$L$58*VLOOKUP('Crop 1'!$E$58,Carbon!$AH$4:$AI$10,2,FALSE),0)+IF('Crop 1'!$C$59=Carbon!$B104,'Crop 1'!$L$59*VLOOKUP('Crop 1'!$E$59,Carbon!$AH$4:$AI$10,2,FALSE),0)+IF('Crop 1'!$C$62=Carbon!$B104,'Crop 1'!$L$62*VLOOKUP('Crop 1'!$E$62,Carbon!$AH$4:$AI$10,2,FALSE),0)+IF('Crop 1'!$C$63=Carbon!$B104,'Crop 1'!$L$63*VLOOKUP('Crop 1'!$E$63,Carbon!$AH$4:$AI$10,2,FALSE),0)+IF('Crop 1'!$C$64=Carbon!$B104,'Crop 1'!$L$64*VLOOKUP('Crop 1'!$E$64,Carbon!$AH$4:$AI$10,2,FALSE),0)+IF('Crop 1'!$C$65=Carbon!$B104,'Crop 1'!$L$65*VLOOKUP('Crop 1'!$E$65,Carbon!$AH$4:$AI$10,2,FALSE),0))*$AL$20,2)","v":0},{"$f":"C104*Inputs!$D$13","v":0},{"$f":"ROUND((IF('Crop 2'!$C$14=Carbon!$B104,'Crop 2'!$L$14*VLOOKUP('Crop 2'!$E$14,Carbon!$AH$4:$AI$10,2,FALSE),0)+IF('Crop 2'!$C$15=Carbon!$B104,'Crop 2'!$L$15*VLOOKUP('Crop 2'!$E$15,Carbon!$AH$4:$AI$10,2,FALSE),0)+IF('Crop 2'!$C$16=Carbon!$B104,'Crop 2'!$L$16*VLOOKUP('Crop 2'!$E$16,Carbon!$AH$4:$AI$10,2,FALSE),0)+IF('Crop 2'!$C$19=Carbon!$B104,'Crop 2'!$L$19*VLOOKUP('Crop 2'!$E$19,Carbon!$AH$4:$AI$10,2,FALSE),0)+IF('Crop 2'!$C$20=Carbon!$B104,'Crop 2'!$L$20*VLOOKUP('Crop 2'!$E$20,Carbon!$AH$4:$AI$10,2,FALSE),0)+IF('Crop 2'!$C$21=Carbon!$B104,'Crop 2'!$L$21*VLOOKUP('Crop 2'!$E$21,Carbon!$AH$4:$AI$10,2,FALSE),0)+IF('Crop 2'!$C$49=Carbon!$B104,'Crop 2'!$L$49*VLOOKUP('Crop 2'!$E$49,Carbon!$AH$4:$AI$10,2,FALSE),0)+IF('Crop 2'!$C$50=Carbon!$B104,'Crop 2'!$L$50*VLOOKUP('Crop 2'!$E$50,Carbon!$AH$4:$AI$10,2,FALSE),0)+IF('Crop 2'!$C$51=Carbon!$B104,'Crop 2'!$L$51*VLOOKUP('Crop 2'!$E$51,Carbon!$AH$4:$AI$10,2,FALSE),0)+IF('Crop 2'!$C$52=Carbon!$B104,'Crop 2'!$L$52*VLOOKUP('Crop 2'!$E$52,Carbon!$AH$4:$AI$10,2,FALSE),0)+IF('Crop 2'!$C$53=Carbon!$B104,'Crop 2'!$L$53*VLOOKUP('Crop 2'!$E$53,Carbon!$AH$4:$AI$10,2,FALSE),0)+IF('Crop 2'!$C$56=Carbon!$B104,'Crop 2'!$L$56*VLOOKUP('Crop 2'!$E$56,Carbon!$AH$4:$AI$10,2,FALSE),0)+IF('Crop 2'!$C$57=Carbon!$B104,'Crop 2'!$L$57*VLOOKUP('Crop 2'!$E$57,Carbon!$AH$4:$AI$10,2,FALSE),0)+IF('Crop 2'!$C$58=Carbon!$B104,'Crop 2'!$L$58*VLOOKUP('Crop 2'!$E$58,Carbon!$AH$4:$AI$10,2,FALSE),0)+IF('Crop 2'!$C$59=Carbon!$B104,'Crop 2'!$L$59*VLOOKUP('Crop 2'!$E$59,Carbon!$AH$4:$AI$10,2,FALSE),0)+IF('Crop 2'!$C$62=Carbon!$B104,'Crop 2'!$L$62*VLOOKUP('Crop 2'!$E$62,Carbon!$AH$4:$AI$10,2,FALSE),0)+IF('Crop 2'!$C$63=Carbon!$B104,'Crop 2'!$L$63*VLOOKUP('Crop 2'!$E$63,Carbon!$AH$4:$AI$10,2,FALSE),0)+IF('Crop 2'!$C$64=Carbon!$B104,'Crop 2'!$L$64*VLOOKUP('Crop 2'!$E$64,Carbon!$AH$4:$AI$10,2,FALSE),0)+IF('Crop 2'!$C$65=Carbon!$B104,'Crop 2'!$L$65*VLOOKUP('Crop 2'!$E$65,Carbon!$AH$4:$AI$10,2,FALSE),0))*$AL$20,2)","v":0},{"$f":"E104*Inputs!$D$15","v":0},{"$f":"ROUND((IF('Crop 3'!$C$14=Carbon!$B104,'Crop 3'!$L$14*VLOOKUP('Crop 3'!$E$14,Carbon!$AH$4:$AI$10,2,FALSE),0)+IF('Crop 3'!$C$15=Carbon!$B104,'Crop 3'!$L$15*VLOOKUP('Crop 3'!$E$15,Carbon!$AH$4:$AI$10,2,FALSE),0)+IF('Crop 3'!$C$16=Carbon!$B104,'Crop 3'!$L$16*VLOOKUP('Crop 3'!$E$16,Carbon!$AH$4:$AI$10,2,FALSE),0)+IF('Crop 3'!$C$19=Carbon!$B104,'Crop 3'!$L$19*VLOOKUP('Crop 3'!$E$19,Carbon!$AH$4:$AI$10,2,FALSE),0)+IF('Crop 3'!$C$20=Carbon!$B104,'Crop 3'!$L$20*VLOOKUP('Crop 3'!$E$20,Carbon!$AH$4:$AI$10,2,FALSE),0)+IF('Crop 3'!$C$21=Carbon!$B104,'Crop 3'!$L$21*VLOOKUP('Crop 3'!$E$21,Carbon!$AH$4:$AI$10,2,FALSE),0)+IF('Crop 3'!$C$49=Carbon!$B104,'Crop 3'!$L$49*VLOOKUP('Crop 3'!$E$49,Carbon!$AH$4:$AI$10,2,FALSE),0)+IF('Crop 3'!$C$50=Carbon!$B104,'Crop 3'!$L$50*VLOOKUP('Crop 3'!$E$50,Carbon!$AH$4:$AI$10,2,FALSE),0)+IF('Crop 3'!$C$51=Carbon!$B104,'Crop 3'!$L$51*VLOOKUP('Crop 3'!$E$51,Carbon!$AH$4:$AI$10,2,FALSE),0)+IF('Crop 3'!$C$52=Carbon!$B104,'Crop 3'!$L$52*VLOOKUP('Crop 3'!$E$52,Carbon!$AH$4:$AI$10,2,FALSE),0)+IF('Crop 3'!$C$53=Carbon!$B104,'Crop 3'!$L$53*VLOOKUP('Crop 3'!$E$53,Carbon!$AH$4:$AI$10,2,FALSE),0)+IF('Crop 3'!$C$56=Carbon!$B104,'Crop 3'!$L$56*VLOOKUP('Crop 3'!$E$56,Carbon!$AH$4:$AI$10,2,FALSE),0)+IF('Crop 3'!$C$57=Carbon!$B104,'Crop 3'!$L$57*VLOOKUP('Crop 3'!$E$57,Carbon!$AH$4:$AI$10,2,FALSE),0)+IF('Crop 3'!$C$58=Carbon!$B104,'Crop 3'!$L$58*VLOOKUP('Crop 3'!$E$58,Carbon!$AH$4:$AI$10,2,FALSE),0)+IF('Crop 3'!$C$59=Carbon!$B104,'Crop 3'!$L$59*VLOOKUP('Crop 3'!$E$59,Carbon!$AH$4:$AI$10,2,FALSE),0)+IF('Crop 3'!$C$62=Carbon!$B104,'Crop 3'!$L$62*VLOOKUP('Crop 3'!$E$62,Carbon!$AH$4:$AI$10,2,FALSE),0)+IF('Crop 3'!$C$63=Carbon!$B104,'Crop 3'!$L$63*VLOOKUP('Crop 3'!$E$63,Carbon!$AH$4:$AI$10,2,FALSE),0)+IF('Crop 3'!$C$64=Carbon!$B104,'Crop 3'!$L$64*VLOOKUP('Crop 3'!$E$64,Carbon!$AH$4:$AI$10,2,FALSE),0)+IF('Crop 3'!$C$65=Carbon!$B104,'Crop 3'!$L$65*VLOOKUP('Crop 3'!$E$65,Carbon!$AH$4:$AI$10,2,FALSE),0))*$AL$20,2)","v":0},{"$f":"G104*Inputs!$D$17","v":0},{"$f":"ROUND(J104/Inputs!D$19,2)","v":0},0,null,null,{"$f":"ROUND((IF('Crop 1'!$C$14=Carbon!$B104,'Crop 1'!$V$14*VLOOKUP('Crop 1'!$E$14,Carbon!$AH$4:$AI$10,2,FALSE),0)+IF('Crop 1'!$C$15=Carbon!$B104,'Crop 1'!$V$15*VLOOKUP('Crop 1'!$E$15,Carbon!$AH$4:$AI$10,2,FALSE),0)+IF('Crop 1'!$C$16=Carbon!$B104,'Crop 1'!$V$16*VLOOKUP('Crop 1'!$E$16,Carbon!$AH$4:$AI$10,2,FALSE),0)+IF('Crop 1'!$C$19=Carbon!$B104,'Crop 1'!$V$19*VLOOKUP('Crop 1'!$E$19,Carbon!$AH$4:$AI$10,2,FALSE),0)+IF('Crop 1'!$C$20=Carbon!$B104,'Crop 1'!$V$20*VLOOKUP('Crop 1'!$E$20,Carbon!$AH$4:$AI$10,2,FALSE),0)+IF('Crop 1'!$C$21=Carbon!$B104,'Crop 1'!$V$21*VLOOKUP('Crop 1'!$E$21,Carbon!$AH$4:$AI$10,2,FALSE),0)+IF('Crop 1'!$C$49=Carbon!$B104,'Crop 1'!$V$49*VLOOKUP('Crop 1'!$E$49,Carbon!$AH$4:$AI$10,2,FALSE),0)+IF('Crop 1'!$C$50=Carbon!$B104,'Crop 1'!$V$50*VLOOKUP('Crop 1'!$E$50,Carbon!$AH$4:$AI$10,2,FALSE),0)+IF('Crop 1'!$C$51=Carbon!$B104,'Crop 1'!$V$51*VLOOKUP('Crop 1'!$E$51,Carbon!$AH$4:$AI$10,2,FALSE),0)+IF('Crop 1'!$C$52=Carbon!$B104,'Crop 1'!$V$52*VLOOKUP('Crop 1'!$E$52,Carbon!$AH$4:$AI$10,2,FALSE),0)+IF('Crop 1'!$C$53=Carbon!$B104,'Crop 1'!$V$53*VLOOKUP('Crop 1'!$E$53,Carbon!$AH$4:$AI$10,2,FALSE),0)+IF('Crop 1'!$C$56=Carbon!$B104,'Crop 1'!$V$56*VLOOKUP('Crop 1'!$E$56,Carbon!$AH$4:$AI$10,2,FALSE),0)+IF('Crop 1'!$C$57=Carbon!$B104,'Crop 1'!$V$57*VLOOKUP('Crop 1'!$E$57,Carbon!$AH$4:$AI$10,2,FALSE),0)+IF('Crop 1'!$C$58=Carbon!$B104,'Crop 1'!$V$58*VLOOKUP('Crop 1'!$E$58,Carbon!$AH$4:$AI$10,2,FALSE),0)+IF('Crop 1'!$C$59=Carbon!$B104,'Crop 1'!$V$59*VLOOKUP('Crop 1'!$E$59,Carbon!$AH$4:$AI$10,2,FALSE),0)+IF('Crop 1'!$C$62=Carbon!$B104,'Crop 1'!$V$62*VLOOKUP('Crop 1'!$E$62,Carbon!$AH$4:$AI$10,2,FALSE),0)+IF('Crop 1'!$C$63=Carbon!$B104,'Crop 1'!$V$63*VLOOKUP('Crop 1'!$E$63,Carbon!$AH$4:$AI$10,2,FALSE),0)+IF('Crop 1'!$C$64=Carbon!$B104,'Crop 1'!$V$64*VLOOKUP('Crop 1'!$E$64,Carbon!$AH$4:$AI$10,2,FALSE),0)+IF('Crop 1'!$C$65=Carbon!$B104,'Crop 1'!$V$65*VLOOKUP('Crop 1'!$E$65,Carbon!$AH$4:$AI$10,2,FALSE),0))*$AL$20,2)","v":0},{"$f":"M104*Inputs!$D$13","v":0},{"$f":"ROUND((IF('Crop 2'!$C$14=Carbon!$B104,'Crop 2'!$V$14*VLOOKUP('Crop 2'!$E$14,Carbon!$AH$4:$AI$10,2,FALSE),0)+IF('Crop 2'!$C$15=Carbon!$B104,'Crop 2'!$V$15*VLOOKUP('Crop 2'!$E$15,Carbon!$AH$4:$AI$10,2,FALSE),0)+IF('Crop 2'!$C$16=Carbon!$B104,'Crop 2'!$V$16*VLOOKUP('Crop 2'!$E$16,Carbon!$AH$4:$AI$10,2,FALSE),0)+IF('Crop 2'!$C$19=Carbon!$B104,'Crop 2'!$V$19*VLOOKUP('Crop 2'!$E$19,Carbon!$AH$4:$AI$10,2,FALSE),0)+IF('Crop 2'!$C$20=Carbon!$B104,'Crop 2'!$V$20*VLOOKUP('Crop 2'!$E$20,Carbon!$AH$4:$AI$10,2,FALSE),0)+IF('Crop 2'!$C$21=Carbon!$B104,'Crop 2'!$V$21*VLOOKUP('Crop 2'!$E$21,Carbon!$AH$4:$AI$10,2,FALSE),0)+IF('Crop 2'!$C$49=Carbon!$B104,'Crop 2'!$V$49*VLOOKUP('Crop 2'!$E$49,Carbon!$AH$4:$AI$10,2,FALSE),0)+IF('Crop 2'!$C$50=Carbon!$B104,'Crop 2'!$V$50*VLOOKUP('Crop 2'!$E$50,Carbon!$AH$4:$AI$10,2,FALSE),0)+IF('Crop 2'!$C$51=Carbon!$B104,'Crop 2'!$V$51*VLOOKUP('Crop 2'!$E$51,Carbon!$AH$4:$AI$10,2,FALSE),0)+IF('Crop 2'!$C$52=Carbon!$B104,'Crop 2'!$V$52*VLOOKUP('Crop 2'!$E$52,Carbon!$AH$4:$AI$10,2,FALSE),0)+IF('Crop 2'!$C$53=Carbon!$B104,'Crop 2'!$V$53*VLOOKUP('Crop 2'!$E$53,Carbon!$AH$4:$AI$10,2,FALSE),0)+IF('Crop 2'!$C$56=Carbon!$B104,'Crop 2'!$V$56*VLOOKUP('Crop 2'!$E$56,Carbon!$AH$4:$AI$10,2,FALSE),0)+IF('Crop 2'!$C$57=Carbon!$B104,'Crop 2'!$V$57*VLOOKUP('Crop 2'!$E$57,Carbon!$AH$4:$AI$10,2,FALSE),0)+IF('Crop 2'!$C$58=Carbon!$B104,'Crop 2'!$V$58*VLOOKUP('Crop 2'!$E$58,Carbon!$AH$4:$AI$10,2,FALSE),0)+IF('Crop 2'!$C$59=Carbon!$B104,'Crop 2'!$V$59*VLOOKUP('Crop 2'!$E$59,Carbon!$AH$4:$AI$10,2,FALSE),0)+IF('Crop 2'!$C$62=Carbon!$B104,'Crop 2'!$V$62*VLOOKUP('Crop 2'!$E$62,Carbon!$AH$4:$AI$10,2,FALSE),0)+IF('Crop 2'!$C$63=Carbon!$B104,'Crop 2'!$V$63*VLOOKUP('Crop 2'!$E$63,Carbon!$AH$4:$AI$10,2,FALSE),0)+IF('Crop 2'!$C$64=Carbon!$B104,'Crop 2'!$V$64*VLOOKUP('Crop 2'!$E$64,Carbon!$AH$4:$AI$10,2,FALSE),0)+IF('Crop 2'!$C$65=Carbon!$B104,'Crop 2'!$V$65*VLOOKUP('Crop 2'!$E$65,Carbon!$AH$4:$AI$10,2,FALSE),0))*$AL$20,2)","v":0},{"$f":"O104*Inputs!$D$15","v":0},{"$f":"ROUND((IF('Crop 3'!$C$14=Carbon!$B104,'Crop 3'!$V$14*VLOOKUP('Crop 3'!$E$14,Carbon!$AH$4:$AI$10,2,FALSE),0)+IF('Crop 3'!$C$15=Carbon!$B104,'Crop 3'!$V$15*VLOOKUP('Crop 3'!$E$15,Carbon!$AH$4:$AI$10,2,FALSE),0)+IF('Crop 3'!$C$16=Carbon!$B104,'Crop 3'!$V$16*VLOOKUP('Crop 3'!$E$16,Carbon!$AH$4:$AI$10,2,FALSE),0)+IF('Crop 3'!$C$19=Carbon!$B104,'Crop 3'!$V$19*VLOOKUP('Crop 3'!$E$19,Carbon!$AH$4:$AI$10,2,FALSE),0)+IF('Crop 3'!$C$20=Carbon!$B104,'Crop 3'!$V$20*VLOOKUP('Crop 3'!$E$20,Carbon!$AH$4:$AI$10,2,FALSE),0)+IF('Crop 3'!$C$21=Carbon!$B104,'Crop 3'!$V$21*VLOOKUP('Crop 3'!$E$21,Carbon!$AH$4:$AI$10,2,FALSE),0)+IF('Crop 3'!$C$49=Carbon!$B104,'Crop 3'!$V$49*VLOOKUP('Crop 3'!$E$49,Carbon!$AH$4:$AI$10,2,FALSE),0)+IF('Crop 3'!$C$50=Carbon!$B104,'Crop 3'!$V$50*VLOOKUP('Crop 3'!$E$50,Carbon!$AH$4:$AI$10,2,FALSE),0)+IF('Crop 3'!$C$51=Carbon!$B104,'Crop 3'!$V$51*VLOOKUP('Crop 3'!$E$51,Carbon!$AH$4:$AI$10,2,FALSE),0)+IF('Crop 3'!$C$52=Carbon!$B104,'Crop 3'!$V$52*VLOOKUP('Crop 3'!$E$52,Carbon!$AH$4:$AI$10,2,FALSE),0)+IF('Crop 3'!$C$53=Carbon!$B104,'Crop 3'!$V$53*VLOOKUP('Crop 3'!$E$53,Carbon!$AH$4:$AI$10,2,FALSE),0)+IF('Crop 3'!$C$56=Carbon!$B104,'Crop 3'!$V$56*VLOOKUP('Crop 3'!$E$56,Carbon!$AH$4:$AI$10,2,FALSE),0)+IF('Crop 3'!$C$57=Carbon!$B104,'Crop 3'!$V$57*VLOOKUP('Crop 3'!$E$57,Carbon!$AH$4:$AI$10,2,FALSE),0)+IF('Crop 3'!$C$58=Carbon!$B104,'Crop 3'!$V$58*VLOOKUP('Crop 3'!$E$58,Carbon!$AH$4:$AI$10,2,FALSE),0)+IF('Crop 3'!$C$59=Carbon!$B104,'Crop 3'!$V$59*VLOOKUP('Crop 3'!$E$59,Carbon!$AH$4:$AI$10,2,FALSE),0)+IF('Crop 3'!$C$62=Carbon!$B104,'Crop 3'!$V$62*VLOOKUP('Crop 3'!$E$62,Carbon!$AH$4:$AI$10,2,FALSE),0)+IF('Crop 3'!$C$63=Carbon!$B104,'Crop 3'!$V$63*VLOOKUP('Crop 3'!$E$63,Carbon!$AH$4:$AI$10,2,FALSE),0)+IF('Crop 3'!$C$64=Carbon!$B104,'Crop 3'!$V$64*VLOOKUP('Crop 3'!$E$64,Carbon!$AH$4:$AI$10,2,FALSE),0)+IF('Crop 3'!$C$65=Carbon!$B104,'Crop 3'!$V$65*VLOOKUP('Crop 3'!$E$65,Carbon!$AH$4:$AI$10,2,FALSE),0))*$AL$20,2)","v":0},{"$f":"Q104*Inputs!$D$17","v":0},{"$f":"ROUND(T104/Inputs!D$19,2)","v":0},0,null,null,0,{"$f":"W104*Inputs!$D$13","v":0},0,{"$f":"Y104*Inputs!$D$13","v":0},0,{"$f":"AA104*Inputs!$D$13","v":0},{"$f":"ROUND(AD104/Inputs!D$19,2)","v":0},0]
[null,{"$f":"Defaults!AH71","v":"Harmony Extra"},{"$f":"ROUND((IF('Crop 1'!$C$14=Carbon!$B105,'Crop 1'!$L$14*VLOOKUP('Crop 1'!$E$14,Carbon!$AH$4:$AI$10,2,FALSE),0)+IF('Crop 1'!$C$15=Carbon!$B105,'Crop 1'!$L$15*VLOOKUP('Crop 1'!$E$15,Carbon!$AH$4:$AI$10,2,FALSE),0)+IF('Crop 1'!$C$16=Carbon!$B105,'Crop 1'!$L$16*VLOOKUP('Crop 1'!$E$16,Carbon!$AH$4:$AI$10,2,FALSE),0)+IF('Crop 1'!$C$19=Carbon!$B105,'Crop 1'!$L$19*VLOOKUP('Crop 1'!$E$19,Carbon!$AH$4:$AI$10,2,FALSE),0)+IF('Crop 1'!$C$20=Carbon!$B105,'Crop 1'!$L$20*VLOOKUP('Crop 1'!$E$20,Carbon!$AH$4:$AI$10,2,FALSE),0)+IF('Crop 1'!$C$21=Carbon!$B105,'Crop 1'!$L$21*VLOOKUP('Crop 1'!$E$21,Carbon!$AH$4:$AI$10,2,FALSE),0)+IF('Crop 1'!$C$49=Carbon!$B105,'Crop 1'!$L$49*VLOOKUP('Crop 1'!$E$49,Carbon!$AH$4:$AI$10,2,FALSE),0)+IF('Crop 1'!$C$50=Carbon!$B105,'Crop 1'!$L$50*VLOOKUP('Crop 1'!$E$50,Carbon!$AH$4:$AI$10,2,FALSE),0)+IF('Crop 1'!$C$51=Carbon!$B105,'Crop 1'!$L$51*VLOOKUP('Crop 1'!$E$51,Carbon!$AH$4:$AI$10,2,FALSE),0)+IF('Crop 1'!$C$52=Carbon!$B105,'Crop 1'!$L$52*VLOOKUP('Crop 1'!$E$52,Carbon!$AH$4:$AI$10,2,FALSE),0)+IF('Crop 1'!$C$53=Carbon!$B105,'Crop 1'!$L$53*VLOOKUP('Crop 1'!$E$53,Carbon!$AH$4:$AI$10,2,FALSE),0)+IF('Crop 1'!$C$56=Carbon!$B105,'Crop 1'!$L$56*VLOOKUP('Crop 1'!$E$56,Carbon!$AH$4:$AI$10,2,FALSE),0)+IF('Crop 1'!$C$57=Carbon!$B105,'Crop 1'!$L$57*VLOOKUP('Crop 1'!$E$57,Carbon!$AH$4:$AI$10,2,FALSE),0)+IF('Crop 1'!$C$58=Carbon!$B105,'Crop 1'!$L$58*VLOOKUP('Crop 1'!$E$58,Carbon!$AH$4:$AI$10,2,FALSE),0)+IF('Crop 1'!$C$59=Carbon!$B105,'Crop 1'!$L$59*VLOOKUP('Crop 1'!$E$59,Carbon!$AH$4:$AI$10,2,FALSE),0)+IF('Crop 1'!$C$62=Carbon!$B105,'Crop 1'!$L$62*VLOOKUP('Crop 1'!$E$62,Carbon!$AH$4:$AI$10,2,FALSE),0)+IF('Crop 1'!$C$63=Carbon!$B105,'Crop 1'!$L$63*VLOOKUP('Crop 1'!$E$63,Carbon!$AH$4:$AI$10,2,FALSE),0)+IF('Crop 1'!$C$64=Carbon!$B105,'Crop 1'!$L$64*VLOOKUP('Crop 1'!$E$64,Carbon!$AH$4:$AI$10,2,FALSE),0)+IF('Crop 1'!$C$65=Carbon!$B105,'Crop 1'!$L$65*VLOOKUP('Crop 1'!$E$65,Carbon!$AH$4:$AI$10,2,FALSE),0))*$AL$20,2)","v":0},{"$f":"C105*Inputs!$D$13","v":0},{"$f":"ROUND((IF('Crop 2'!$C$14=Carbon!$B105,'Crop 2'!$L$14*VLOOKUP('Crop 2'!$E$14,Carbon!$AH$4:$AI$10,2,FALSE),0)+IF('Crop 2'!$C$15=Carbon!$B105,'Crop 2'!$L$15*VLOOKUP('Crop 2'!$E$15,Carbon!$AH$4:$AI$10,2,FALSE),0)+IF('Crop 2'!$C$16=Carbon!$B105,'Crop 2'!$L$16*VLOOKUP('Crop 2'!$E$16,Carbon!$AH$4:$AI$10,2,FALSE),0)+IF('Crop 2'!$C$19=Carbon!$B105,'Crop 2'!$L$19*VLOOKUP('Crop 2'!$E$19,Carbon!$AH$4:$AI$10,2,FALSE),0)+IF('Crop 2'!$C$20=Carbon!$B105,'Crop 2'!$L$20*VLOOKUP('Crop 2'!$E$20,Carbon!$AH$4:$AI$10,2,FALSE),0)+IF('Crop 2'!$C$21=Carbon!$B105,'Crop 2'!$L$21*VLOOKUP('Crop 2'!$E$21,Carbon!$AH$4:$AI$10,2,FALSE),0)+IF('Crop 2'!$C$49=Carbon!$B105,'Crop 2'!$L$49*VLOOKUP('Crop 2'!$E$49,Carbon!$AH$4:$AI$10,2,FALSE),0)+IF('Crop 2'!$C$50=Carbon!$B105,'Crop 2'!$L$50*VLOOKUP('Crop 2'!$E$50,Carbon!$AH$4:$AI$10,2,FALSE),0)+IF('Crop 2'!$C$51=Carbon!$B105,'Crop 2'!$L$51*VLOOKUP('Crop 2'!$E$51,Carbon!$AH$4:$AI$10,2,FALSE),0)+IF('Crop 2'!$C$52=Carbon!$B105,'Crop 2'!$L$52*VLOOKUP('Crop 2'!$E$52,Carbon!$AH$4:$AI$10,2,FALSE),0)+IF('Crop 2'!$C$53=Carbon!$B105,'Crop 2'!$L$53*VLOOKUP('Crop 2'!$E$53,Carbon!$AH$4:$AI$10,2,FALSE),0)+IF('Crop 2'!$C$56=Carbon!$B105,'Crop 2'!$L$56*VLOOKUP('Crop 2'!$E$56,Carbon!$AH$4:$AI$10,2,FALSE),0)+IF('Crop 2'!$C$57=Carbon!$B105,'Crop 2'!$L$57*VLOOKUP('Crop 2'!$E$57,Carbon!$AH$4:$AI$10,2,FALSE),0)+IF('Crop 2'!$C$58=Carbon!$B105,'Crop 2'!$L$58*VLOOKUP('Crop 2'!$E$58,Carbon!$AH$4:$AI$10,2,FALSE),0)+IF('Crop 2'!$C$59=Carbon!$B105,'Crop 2'!$L$59*VLOOKUP('Crop 2'!$E$59,Carbon!$AH$4:$AI$10,2,FALSE),0)+IF('Crop 2'!$C$62=Carbon!$B105,'Crop 2'!$L$62*VLOOKUP('Crop 2'!$E$62,Carbon!$AH$4:$AI$10,2,FALSE),0)+IF('Crop 2'!$C$63=Carbon!$B105,'Crop 2'!$L$63*VLOOKUP('Crop 2'!$E$63,Carbon!$AH$4:$AI$10,2,FALSE),0)+IF('Crop 2'!$C$64=Carbon!$B105,'Crop 2'!$L$64*VLOOKUP('Crop 2'!$E$64,Carbon!$AH$4:$AI$10,2,FALSE),0)+IF('Crop 2'!$C$65=Carbon!$B105,'Crop 2'!$L$65*VLOOKUP('Crop 2'!$E$65,Carbon!$AH$4:$AI$10,2,FALSE),0))*$AL$20,2)","v":0},{"$f":"E105*Inputs!$D$15","v":0},{"$f":"ROUND((IF('Crop 3'!$C$14=Carbon!$B105,'Crop 3'!$L$14*VLOOKUP('Crop 3'!$E$14,Carbon!$AH$4:$AI$10,2,FALSE),0)+IF('Crop 3'!$C$15=Carbon!$B105,'Crop 3'!$L$15*VLOOKUP('Crop 3'!$E$15,Carbon!$AH$4:$AI$10,2,FALSE),0)+IF('Crop 3'!$C$16=Carbon!$B105,'Crop 3'!$L$16*VLOOKUP('Crop 3'!$E$16,Carbon!$AH$4:$AI$10,2,FALSE),0)+IF('Crop 3'!$C$19=Carbon!$B105,'Crop 3'!$L$19*VLOOKUP('Crop 3'!$E$19,Carbon!$AH$4:$AI$10,2,FALSE),0)+IF('Crop 3'!$C$20=Carbon!$B105,'Crop 3'!$L$20*VLOOKUP('Crop 3'!$E$20,Carbon!$AH$4:$AI$10,2,FALSE),0)+IF('Crop 3'!$C$21=Carbon!$B105,'Crop 3'!$L$21*VLOOKUP('Crop 3'!$E$21,Carbon!$AH$4:$AI$10,2,FALSE),0)+IF('Crop 3'!$C$49=Carbon!$B105,'Crop 3'!$L$49*VLOOKUP('Crop 3'!$E$49,Carbon!$AH$4:$AI$10,2,FALSE),0)+IF('Crop 3'!$C$50=Carbon!$B105,'Crop 3'!$L$50*VLOOKUP('Crop 3'!$E$50,Carbon!$AH$4:$AI$10,2,FALSE),0)+IF('Crop 3'!$C$51=Carbon!$B105,'Crop 3'!$L$51*VLOOKUP('Crop 3'!$E$51,Carbon!$AH$4:$AI$10,2,FALSE),0)+IF('Crop 3'!$C$52=Carbon!$B105,'Crop 3'!$L$52*VLOOKUP('Crop 3'!$E$52,Carbon!$AH$4:$AI$10,2,FALSE),0)+IF('Crop 3'!$C$53=Carbon!$B105,'Crop 3'!$L$53*VLOOKUP('Crop 3'!$E$53,Carbon!$AH$4:$AI$10,2,FALSE),0)+IF('Crop 3'!$C$56=Carbon!$B105,'Crop 3'!$L$56*VLOOKUP('Crop 3'!$E$56,Carbon!$AH$4:$AI$10,2,FALSE),0)+IF('Crop 3'!$C$57=Carbon!$B105,'Crop 3'!$L$57*VLOOKUP('Crop 3'!$E$57,Carbon!$AH$4:$AI$10,2,FALSE),0)+IF('Crop 3'!$C$58=Carbon!$B105,'Crop 3'!$L$58*VLOOKUP('Crop 3'!$E$58,Carbon!$AH$4:$AI$10,2,FALSE),0)+IF('Crop 3'!$C$59=Carbon!$B105,'Crop 3'!$L$59*VLOOKUP('Crop 3'!$E$59,Carbon!$AH$4:$AI$10,2,FALSE),0)+IF('Crop 3'!$C$62=Carbon!$B105,'Crop 3'!$L$62*VLOOKUP('Crop 3'!$E$62,Carbon!$AH$4:$AI$10,2,FALSE),0)+IF('Crop 3'!$C$63=Carbon!$B105,'Crop 3'!$L$63*VLOOKUP('Crop 3'!$E$63,Carbon!$AH$4:$AI$10,2,FALSE),0)+IF('Crop 3'!$C$64=Carbon!$B105,'Crop 3'!$L$64*VLOOKUP('Crop 3'!$E$64,Carbon!$AH$4:$AI$10,2,FALSE),0)+IF('Crop 3'!$C$65=Carbon!$B105,'Crop 3'!$L$65*VLOOKUP('Crop 3'!$E$65,Carbon!$AH$4:$AI$10,2,FALSE),0))*$AL$20,2)","v":0},{"$f":"G105*Inputs!$D$17","v":0},{"$f":"ROUND(J105/Inputs!D$19,2)","v":0},0,null,null,{"$f":"ROUND((IF('Crop 1'!$C$14=Carbon!$B105,'Crop 1'!$V$14*VLOOKUP('Crop 1'!$E$14,Carbon!$AH$4:$AI$10,2,FALSE),0)+IF('Crop 1'!$C$15=Carbon!$B105,'Crop 1'!$V$15*VLOOKUP('Crop 1'!$E$15,Carbon!$AH$4:$AI$10,2,FALSE),0)+IF('Crop 1'!$C$16=Carbon!$B105,'Crop 1'!$V$16*VLOOKUP('Crop 1'!$E$16,Carbon!$AH$4:$AI$10,2,FALSE),0)+IF('Crop 1'!$C$19=Carbon!$B105,'Crop 1'!$V$19*VLOOKUP('Crop 1'!$E$19,Carbon!$AH$4:$AI$10,2,FALSE),0)+IF('Crop 1'!$C$20=Carbon!$B105,'Crop 1'!$V$20*VLOOKUP('Crop 1'!$E$20,Carbon!$AH$4:$AI$10,2,FALSE),0)+IF('Crop 1'!$C$21=Carbon!$B105,'Crop 1'!$V$21*VLOOKUP('Crop 1'!$E$21,Carbon!$AH$4:$AI$10,2,FALSE),0)+IF('Crop 1'!$C$49=Carbon!$B105,'Crop 1'!$V$49*VLOOKUP('Crop 1'!$E$49,Carbon!$AH$4:$AI$10,2,FALSE),0)+IF('Crop 1'!$C$50=Carbon!$B105,'Crop 1'!$V$50*VLOOKUP('Crop 1'!$E$50,Carbon!$AH$4:$AI$10,2,FALSE),0)+IF('Crop 1'!$C$51=Carbon!$B105,'Crop 1'!$V$51*VLOOKUP('Crop 1'!$E$51,Carbon!$AH$4:$AI$10,2,FALSE),0)+IF('Crop 1'!$C$52=Carbon!$B105,'Crop 1'!$V$52*VLOOKUP('Crop 1'!$E$52,Carbon!$AH$4:$AI$10,2,FALSE),0)+IF('Crop 1'!$C$53=Carbon!$B105,'Crop 1'!$V$53*VLOOKUP('Crop 1'!$E$53,Carbon!$AH$4:$AI$10,2,FALSE),0)+IF('Crop 1'!$C$56=Carbon!$B105,'Crop 1'!$V$56*VLOOKUP('Crop 1'!$E$56,Carbon!$AH$4:$AI$10,2,FALSE),0)+IF('Crop 1'!$C$57=Carbon!$B105,'Crop 1'!$V$57*VLOOKUP('Crop 1'!$E$57,Carbon!$AH$4:$AI$10,2,FALSE),0)+IF('Crop 1'!$C$58=Carbon!$B105,'Crop 1'!$V$58*VLOOKUP('Crop 1'!$E$58,Carbon!$AH$4:$AI$10,2,FALSE),0)+IF('Crop 1'!$C$59=Carbon!$B105,'Crop 1'!$V$59*VLOOKUP('Crop 1'!$E$59,Carbon!$AH$4:$AI$10,2,FALSE),0)+IF('Crop 1'!$C$62=Carbon!$B105,'Crop 1'!$V$62*VLOOKUP('Crop 1'!$E$62,Carbon!$AH$4:$AI$10,2,FALSE),0)+IF('Crop 1'!$C$63=Carbon!$B105,'Crop 1'!$V$63*VLOOKUP('Crop 1'!$E$63,Carbon!$AH$4:$AI$10,2,FALSE),0)+IF('Crop 1'!$C$64=Carbon!$B105,'Crop 1'!$V$64*VLOOKUP('Crop 1'!$E$64,Carbon!$AH$4:$AI$10,2,FALSE),0)+IF('Crop 1'!$C$65=Carbon!$B105,'Crop 1'!$V$65*VLOOKUP('Crop 1'!$E$65,Carbon!$AH$4:$AI$10,2,FALSE),0))*$AL$20,2)","v":0},{"$f":"M105*Inputs!$D$13","v":0},{"$f":"ROUND((IF('Crop 2'!$C$14=Carbon!$B105,'Crop 2'!$V$14*VLOOKUP('Crop 2'!$E$14,Carbon!$AH$4:$AI$10,2,FALSE),0)+IF('Crop 2'!$C$15=Carbon!$B105,'Crop 2'!$V$15*VLOOKUP('Crop 2'!$E$15,Carbon!$AH$4:$AI$10,2,FALSE),0)+IF('Crop 2'!$C$16=Carbon!$B105,'Crop 2'!$V$16*VLOOKUP('Crop 2'!$E$16,Carbon!$AH$4:$AI$10,2,FALSE),0)+IF('Crop 2'!$C$19=Carbon!$B105,'Crop 2'!$V$19*VLOOKUP('Crop 2'!$E$19,Carbon!$AH$4:$AI$10,2,FALSE),0)+IF('Crop 2'!$C$20=Carbon!$B105,'Crop 2'!$V$20*VLOOKUP('Crop 2'!$E$20,Carbon!$AH$4:$AI$10,2,FALSE),0)+IF('Crop 2'!$C$21=Carbon!$B105,'Crop 2'!$V$21*VLOOKUP('Crop 2'!$E$21,Carbon!$AH$4:$AI$10,2,FALSE),0)+IF('Crop 2'!$C$49=Carbon!$B105,'Crop 2'!$V$49*VLOOKUP('Crop 2'!$E$49,Carbon!$AH$4:$AI$10,2,FALSE),0)+IF('Crop 2'!$C$50=Carbon!$B105,'Crop 2'!$V$50*VLOOKUP('Crop 2'!$E$50,Carbon!$AH$4:$AI$10,2,FALSE),0)+IF('Crop 2'!$C$51=Carbon!$B105,'Crop 2'!$V$51*VLOOKUP('Crop 2'!$E$51,Carbon!$AH$4:$AI$10,2,FALSE),0)+IF('Crop 2'!$C$52=Carbon!$B105,'Crop 2'!$V$52*VLOOKUP('Crop 2'!$E$52,Carbon!$AH$4:$AI$10,2,FALSE),0)+IF('Crop 2'!$C$53=Carbon!$B105,'Crop 2'!$V$53*VLOOKUP('Crop 2'!$E$53,Carbon!$AH$4:$AI$10,2,FALSE),0)+IF('Crop 2'!$C$56=Carbon!$B105,'Crop 2'!$V$56*VLOOKUP('Crop 2'!$E$56,Carbon!$AH$4:$AI$10,2,FALSE),0)+IF('Crop 2'!$C$57=Carbon!$B105,'Crop 2'!$V$57*VLOOKUP('Crop 2'!$E$57,Carbon!$AH$4:$AI$10,2,FALSE),0)+IF('Crop 2'!$C$58=Carbon!$B105,'Crop 2'!$V$58*VLOOKUP('Crop 2'!$E$58,Carbon!$AH$4:$AI$10,2,FALSE),0)+IF('Crop 2'!$C$59=Carbon!$B105,'Crop 2'!$V$59*VLOOKUP('Crop 2'!$E$59,Carbon!$AH$4:$AI$10,2,FALSE),0)+IF('Crop 2'!$C$62=Carbon!$B105,'Crop 2'!$V$62*VLOOKUP('Crop 2'!$E$62,Carbon!$AH$4:$AI$10,2,FALSE),0)+IF('Crop 2'!$C$63=Carbon!$B105,'Crop 2'!$V$63*VLOOKUP('Crop 2'!$E$63,Carbon!$AH$4:$AI$10,2,FALSE),0)+IF('Crop 2'!$C$64=Carbon!$B105,'Crop 2'!$V$64*VLOOKUP('Crop 2'!$E$64,Carbon!$AH$4:$AI$10,2,FALSE),0)+IF('Crop 2'!$C$65=Carbon!$B105,'Crop 2'!$V$65*VLOOKUP('Crop 2'!$E$65,Carbon!$AH$4:$AI$10,2,FALSE),0))*$AL$20,2)","v":0},{"$f":"O105*Inputs!$D$15","v":0},{"$f":"ROUND((IF('Crop 3'!$C$14=Carbon!$B105,'Crop 3'!$V$14*VLOOKUP('Crop 3'!$E$14,Carbon!$AH$4:$AI$10,2,FALSE),0)+IF('Crop 3'!$C$15=Carbon!$B105,'Crop 3'!$V$15*VLOOKUP('Crop 3'!$E$15,Carbon!$AH$4:$AI$10,2,FALSE),0)+IF('Crop 3'!$C$16=Carbon!$B105,'Crop 3'!$V$16*VLOOKUP('Crop 3'!$E$16,Carbon!$AH$4:$AI$10,2,FALSE),0)+IF('Crop 3'!$C$19=Carbon!$B105,'Crop 3'!$V$19*VLOOKUP('Crop 3'!$E$19,Carbon!$AH$4:$AI$10,2,FALSE),0)+IF('Crop 3'!$C$20=Carbon!$B105,'Crop 3'!$V$20*VLOOKUP('Crop 3'!$E$20,Carbon!$AH$4:$AI$10,2,FALSE),0)+IF('Crop 3'!$C$21=Carbon!$B105,'Crop 3'!$V$21*VLOOKUP('Crop 3'!$E$21,Carbon!$AH$4:$AI$10,2,FALSE),0)+IF('Crop 3'!$C$49=Carbon!$B105,'Crop 3'!$V$49*VLOOKUP('Crop 3'!$E$49,Carbon!$AH$4:$AI$10,2,FALSE),0)+IF('Crop 3'!$C$50=Carbon!$B105,'Crop 3'!$V$50*VLOOKUP('Crop 3'!$E$50,Carbon!$AH$4:$AI$10,2,FALSE),0)+IF('Crop 3'!$C$51=Carbon!$B105,'Crop 3'!$V$51*VLOOKUP('Crop 3'!$E$51,Carbon!$AH$4:$AI$10,2,FALSE),0)+IF('Crop 3'!$C$52=Carbon!$B105,'Crop 3'!$V$52*VLOOKUP('Crop 3'!$E$52,Carbon!$AH$4:$AI$10,2,FALSE),0)+IF('Crop 3'!$C$53=Carbon!$B105,'Crop 3'!$V$53*VLOOKUP('Crop 3'!$E$53,Carbon!$AH$4:$AI$10,2,FALSE),0)+IF('Crop 3'!$C$56=Carbon!$B105,'Crop 3'!$V$56*VLOOKUP('Crop 3'!$E$56,Carbon!$AH$4:$AI$10,2,FALSE),0)+IF('Crop 3'!$C$57=Carbon!$B105,'Crop 3'!$V$57*VLOOKUP('Crop 3'!$E$57,Carbon!$AH$4:$AI$10,2,FALSE),0)+IF('Crop 3'!$C$58=Carbon!$B105,'Crop 3'!$V$58*VLOOKUP('Crop 3'!$E$58,Carbon!$AH$4:$AI$10,2,FALSE),0)+IF('Crop 3'!$C$59=Carbon!$B105,'Crop 3'!$V$59*VLOOKUP('Crop 3'!$E$59,Carbon!$AH$4:$AI$10,2,FALSE),0)+IF('Crop 3'!$C$62=Carbon!$B105,'Crop 3'!$V$62*VLOOKUP('Crop 3'!$E$62,Carbon!$AH$4:$AI$10,2,FALSE),0)+IF('Crop 3'!$C$63=Carbon!$B105,'Crop 3'!$V$63*VLOOKUP('Crop 3'!$E$63,Carbon!$AH$4:$AI$10,2,FALSE),0)+IF('Crop 3'!$C$64=Carbon!$B105,'Crop 3'!$V$64*VLOOKUP('Crop 3'!$E$64,Carbon!$AH$4:$AI$10,2,FALSE),0)+IF('Crop 3'!$C$65=Carbon!$B105,'Crop 3'!$V$65*VLOOKUP('Crop 3'!$E$65,Carbon!$AH$4:$AI$10,2,FALSE),0))*$AL$20,2)","v":0},{"$f":"Q105*Inputs!$D$17","v":0},{"$f":"ROUND(T105/Inputs!D$19,2)","v":0},0,null,null,0,{"$f":"W105*Inputs!$D$13","v":0},0,{"$f":"Y105*Inputs!$D$13","v":0},0,{"$f":"AA105*Inputs!$D$13","v":0},{"$f":"ROUND(AD105/Inputs!D$19,2)","v":0},0]
[null,{"$f":"Defaults!AH72","v":"Keystone"},{"$f":"ROUND((IF('Crop 1'!$C$14=Carbon!$B106,'Crop 1'!$L$14*VLOOKUP('Crop 1'!$E$14,Carbon!$AH$4:$AI$10,2,FALSE),0)+IF('Crop 1'!$C$15=Carbon!$B106,'Crop 1'!$L$15*VLOOKUP('Crop 1'!$E$15,Carbon!$AH$4:$AI$10,2,FALSE),0)+IF('Crop 1'!$C$16=Carbon!$B106,'Crop 1'!$L$16*VLOOKUP('Crop 1'!$E$16,Carbon!$AH$4:$AI$10,2,FALSE),0)+IF('Crop 1'!$C$19=Carbon!$B106,'Crop 1'!$L$19*VLOOKUP('Crop 1'!$E$19,Carbon!$AH$4:$AI$10,2,FALSE),0)+IF('Crop 1'!$C$20=Carbon!$B106,'Crop 1'!$L$20*VLOOKUP('Crop 1'!$E$20,Carbon!$AH$4:$AI$10,2,FALSE),0)+IF('Crop 1'!$C$21=Carbon!$B106,'Crop 1'!$L$21*VLOOKUP('Crop 1'!$E$21,Carbon!$AH$4:$AI$10,2,FALSE),0)+IF('Crop 1'!$C$49=Carbon!$B106,'Crop 1'!$L$49*VLOOKUP('Crop 1'!$E$49,Carbon!$AH$4:$AI$10,2,FALSE),0)+IF('Crop 1'!$C$50=Carbon!$B106,'Crop 1'!$L$50*VLOOKUP('Crop 1'!$E$50,Carbon!$AH$4:$AI$10,2,FALSE),0)+IF('Crop 1'!$C$51=Carbon!$B106,'Crop 1'!$L$51*VLOOKUP('Crop 1'!$E$51,Carbon!$AH$4:$AI$10,2,FALSE),0)+IF('Crop 1'!$C$52=Carbon!$B106,'Crop 1'!$L$52*VLOOKUP('Crop 1'!$E$52,Carbon!$AH$4:$AI$10,2,FALSE),0)+IF('Crop 1'!$C$53=Carbon!$B106,'Crop 1'!$L$53*VLOOKUP('Crop 1'!$E$53,Carbon!$AH$4:$AI$10,2,FALSE),0)+IF('Crop 1'!$C$56=Carbon!$B106,'Crop 1'!$L$56*VLOOKUP('Crop 1'!$E$56,Carbon!$AH$4:$AI$10,2,FALSE),0)+IF('Crop 1'!$C$57=Carbon!$B106,'Crop 1'!$L$57*VLOOKUP('Crop 1'!$E$57,Carbon!$AH$4:$AI$10,2,FALSE),0)+IF('Crop 1'!$C$58=Carbon!$B106,'Crop 1'!$L$58*VLOOKUP('Crop 1'!$E$58,Carbon!$AH$4:$AI$10,2,FALSE),0)+IF('Crop 1'!$C$59=Carbon!$B106,'Crop 1'!$L$59*VLOOKUP('Crop 1'!$E$59,Carbon!$AH$4:$AI$10,2,FALSE),0)+IF('Crop 1'!$C$62=Carbon!$B106,'Crop 1'!$L$62*VLOOKUP('Crop 1'!$E$62,Carbon!$AH$4:$AI$10,2,FALSE),0)+IF('Crop 1'!$C$63=Carbon!$B106,'Crop 1'!$L$63*VLOOKUP('Crop 1'!$E$63,Carbon!$AH$4:$AI$10,2,FALSE),0)+IF('Crop 1'!$C$64=Carbon!$B106,'Crop 1'!$L$64*VLOOKUP('Crop 1'!$E$64,Carbon!$AH$4:$AI$10,2,FALSE),0)+IF('Crop 1'!$C$65=Carbon!$B106,'Crop 1'!$L$65*VLOOKUP('Crop 1'!$E$65,Carbon!$AH$4:$AI$10,2,FALSE),0))*$AL$20,2)","v":0},{"$f":"C106*Inputs!$D$13","v":0},{"$f":"ROUND((IF('Crop 2'!$C$14=Carbon!$B106,'Crop 2'!$L$14*VLOOKUP('Crop 2'!$E$14,Carbon!$AH$4:$AI$10,2,FALSE),0)+IF('Crop 2'!$C$15=Carbon!$B106,'Crop 2'!$L$15*VLOOKUP('Crop 2'!$E$15,Carbon!$AH$4:$AI$10,2,FALSE),0)+IF('Crop 2'!$C$16=Carbon!$B106,'Crop 2'!$L$16*VLOOKUP('Crop 2'!$E$16,Carbon!$AH$4:$AI$10,2,FALSE),0)+IF('Crop 2'!$C$19=Carbon!$B106,'Crop 2'!$L$19*VLOOKUP('Crop 2'!$E$19,Carbon!$AH$4:$AI$10,2,FALSE),0)+IF('Crop 2'!$C$20=Carbon!$B106,'Crop 2'!$L$20*VLOOKUP('Crop 2'!$E$20,Carbon!$AH$4:$AI$10,2,FALSE),0)+IF('Crop 2'!$C$21=Carbon!$B106,'Crop 2'!$L$21*VLOOKUP('Crop 2'!$E$21,Carbon!$AH$4:$AI$10,2,FALSE),0)+IF('Crop 2'!$C$49=Carbon!$B106,'Crop 2'!$L$49*VLOOKUP('Crop 2'!$E$49,Carbon!$AH$4:$AI$10,2,FALSE),0)+IF('Crop 2'!$C$50=Carbon!$B106,'Crop 2'!$L$50*VLOOKUP('Crop 2'!$E$50,Carbon!$AH$4:$AI$10,2,FALSE),0)+IF('Crop 2'!$C$51=Carbon!$B106,'Crop 2'!$L$51*VLOOKUP('Crop 2'!$E$51,Carbon!$AH$4:$AI$10,2,FALSE),0)+IF('Crop 2'!$C$52=Carbon!$B106,'Crop 2'!$L$52*VLOOKUP('Crop 2'!$E$52,Carbon!$AH$4:$AI$10,2,FALSE),0)+IF('Crop 2'!$C$53=Carbon!$B106,'Crop 2'!$L$53*VLOOKUP('Crop 2'!$E$53,Carbon!$AH$4:$AI$10,2,FALSE),0)+IF('Crop 2'!$C$56=Carbon!$B106,'Crop 2'!$L$56*VLOOKUP('Crop 2'!$E$56,Carbon!$AH$4:$AI$10,2,FALSE),0)+IF('Crop 2'!$C$57=Carbon!$B106,'Crop 2'!$L$57*VLOOKUP('Crop 2'!$E$57,Carbon!$AH$4:$AI$10,2,FALSE),0)+IF('Crop 2'!$C$58=Carbon!$B106,'Crop 2'!$L$58*VLOOKUP('Crop 2'!$E$58,Carbon!$AH$4:$AI$10,2,FALSE),0)+IF('Crop 2'!$C$59=Carbon!$B106,'Crop 2'!$L$59*VLOOKUP('Crop 2'!$E$59,Carbon!$AH$4:$AI$10,2,FALSE),0)+IF('Crop 2'!$C$62=Carbon!$B106,'Crop 2'!$L$62*VLOOKUP('Crop 2'!$E$62,Carbon!$AH$4:$AI$10,2,FALSE),0)+IF('Crop 2'!$C$63=Carbon!$B106,'Crop 2'!$L$63*VLOOKUP('Crop 2'!$E$63,Carbon!$AH$4:$AI$10,2,FALSE),0)+IF('Crop 2'!$C$64=Carbon!$B106,'Crop 2'!$L$64*VLOOKUP('Crop 2'!$E$64,Carbon!$AH$4:$AI$10,2,FALSE),0)+IF('Crop 2'!$C$65=Carbon!$B106,'Crop 2'!$L$65*VLOOKUP('Crop 2'!$E$65,Carbon!$AH$4:$AI$10,2,FALSE),0))*$AL$20,2)","v":0},{"$f":"E106*Inputs!$D$15","v":0},{"$f":"ROUND((IF('Crop 3'!$C$14=Carbon!$B106,'Crop 3'!$L$14*VLOOKUP('Crop 3'!$E$14,Carbon!$AH$4:$AI$10,2,FALSE),0)+IF('Crop 3'!$C$15=Carbon!$B106,'Crop 3'!$L$15*VLOOKUP('Crop 3'!$E$15,Carbon!$AH$4:$AI$10,2,FALSE),0)+IF('Crop 3'!$C$16=Carbon!$B106,'Crop 3'!$L$16*VLOOKUP('Crop 3'!$E$16,Carbon!$AH$4:$AI$10,2,FALSE),0)+IF('Crop 3'!$C$19=Carbon!$B106,'Crop 3'!$L$19*VLOOKUP('Crop 3'!$E$19,Carbon!$AH$4:$AI$10,2,FALSE),0)+IF('Crop 3'!$C$20=Carbon!$B106,'Crop 3'!$L$20*VLOOKUP('Crop 3'!$E$20,Carbon!$AH$4:$AI$10,2,FALSE),0)+IF('Crop 3'!$C$21=Carbon!$B106,'Crop 3'!$L$21*VLOOKUP('Crop 3'!$E$21,Carbon!$AH$4:$AI$10,2,FALSE),0)+IF('Crop 3'!$C$49=Carbon!$B106,'Crop 3'!$L$49*VLOOKUP('Crop 3'!$E$49,Carbon!$AH$4:$AI$10,2,FALSE),0)+IF('Crop 3'!$C$50=Carbon!$B106,'Crop 3'!$L$50*VLOOKUP('Crop 3'!$E$50,Carbon!$AH$4:$AI$10,2,FALSE),0)+IF('Crop 3'!$C$51=Carbon!$B106,'Crop 3'!$L$51*VLOOKUP('Crop 3'!$E$51,Carbon!$AH$4:$AI$10,2,FALSE),0)+IF('Crop 3'!$C$52=Carbon!$B106,'Crop 3'!$L$52*VLOOKUP('Crop 3'!$E$52,Carbon!$AH$4:$AI$10,2,FALSE),0)+IF('Crop 3'!$C$53=Carbon!$B106,'Crop 3'!$L$53*VLOOKUP('Crop 3'!$E$53,Carbon!$AH$4:$AI$10,2,FALSE),0)+IF('Crop 3'!$C$56=Carbon!$B106,'Crop 3'!$L$56*VLOOKUP('Crop 3'!$E$56,Carbon!$AH$4:$AI$10,2,FALSE),0)+IF('Crop 3'!$C$57=Carbon!$B106,'Crop 3'!$L$57*VLOOKUP('Crop 3'!$E$57,Carbon!$AH$4:$AI$10,2,FALSE),0)+IF('Crop 3'!$C$58=Carbon!$B106,'Crop 3'!$L$58*VLOOKUP('Crop 3'!$E$58,Carbon!$AH$4:$AI$10,2,FALSE),0)+IF('Crop 3'!$C$59=Carbon!$B106,'Crop 3'!$L$59*VLOOKUP('Crop 3'!$E$59,Carbon!$AH$4:$AI$10,2,FALSE),0)+IF('Crop 3'!$C$62=Carbon!$B106,'Crop 3'!$L$62*VLOOKUP('Crop 3'!$E$62,Carbon!$AH$4:$AI$10,2,FALSE),0)+IF('Crop 3'!$C$63=Carbon!$B106,'Crop 3'!$L$63*VLOOKUP('Crop 3'!$E$63,Carbon!$AH$4:$AI$10,2,FALSE),0)+IF('Crop 3'!$C$64=Carbon!$B106,'Crop 3'!$L$64*VLOOKUP('Crop 3'!$E$64,Carbon!$AH$4:$AI$10,2,FALSE),0)+IF('Crop 3'!$C$65=Carbon!$B106,'Crop 3'!$L$65*VLOOKUP('Crop 3'!$E$65,Carbon!$AH$4:$AI$10,2,FALSE),0))*$AL$20,2)","v":0},{"$f":"G106*Inputs!$D$17","v":0},{"$f":"ROUND(J106/Inputs!D$19,2)","v":0},0,null,null,{"$f":"ROUND((IF('Crop 1'!$C$14=Carbon!$B106,'Crop 1'!$V$14*VLOOKUP('Crop 1'!$E$14,Carbon!$AH$4:$AI$10,2,FALSE),0)+IF('Crop 1'!$C$15=Carbon!$B106,'Crop 1'!$V$15*VLOOKUP('Crop 1'!$E$15,Carbon!$AH$4:$AI$10,2,FALSE),0)+IF('Crop 1'!$C$16=Carbon!$B106,'Crop 1'!$V$16*VLOOKUP('Crop 1'!$E$16,Carbon!$AH$4:$AI$10,2,FALSE),0)+IF('Crop 1'!$C$19=Carbon!$B106,'Crop 1'!$V$19*VLOOKUP('Crop 1'!$E$19,Carbon!$AH$4:$AI$10,2,FALSE),0)+IF('Crop 1'!$C$20=Carbon!$B106,'Crop 1'!$V$20*VLOOKUP('Crop 1'!$E$20,Carbon!$AH$4:$AI$10,2,FALSE),0)+IF('Crop 1'!$C$21=Carbon!$B106,'Crop 1'!$V$21*VLOOKUP('Crop 1'!$E$21,Carbon!$AH$4:$AI$10,2,FALSE),0)+IF('Crop 1'!$C$49=Carbon!$B106,'Crop 1'!$V$49*VLOOKUP('Crop 1'!$E$49,Carbon!$AH$4:$AI$10,2,FALSE),0)+IF('Crop 1'!$C$50=Carbon!$B106,'Crop 1'!$V$50*VLOOKUP('Crop 1'!$E$50,Carbon!$AH$4:$AI$10,2,FALSE),0)+IF('Crop 1'!$C$51=Carbon!$B106,'Crop 1'!$V$51*VLOOKUP('Crop 1'!$E$51,Carbon!$AH$4:$AI$10,2,FALSE),0)+IF('Crop 1'!$C$52=Carbon!$B106,'Crop 1'!$V$52*VLOOKUP('Crop 1'!$E$52,Carbon!$AH$4:$AI$10,2,FALSE),0)+IF('Crop 1'!$C$53=Carbon!$B106,'Crop 1'!$V$53*VLOOKUP('Crop 1'!$E$53,Carbon!$AH$4:$AI$10,2,FALSE),0)+IF('Crop 1'!$C$56=Carbon!$B106,'Crop 1'!$V$56*VLOOKUP('Crop 1'!$E$56,Carbon!$AH$4:$AI$10,2,FALSE),0)+IF('Crop 1'!$C$57=Carbon!$B106,'Crop 1'!$V$57*VLOOKUP('Crop 1'!$E$57,Carbon!$AH$4:$AI$10,2,FALSE),0)+IF('Crop 1'!$C$58=Carbon!$B106,'Crop 1'!$V$58*VLOOKUP('Crop 1'!$E$58,Carbon!$AH$4:$AI$10,2,FALSE),0)+IF('Crop 1'!$C$59=Carbon!$B106,'Crop 1'!$V$59*VLOOKUP('Crop 1'!$E$59,Carbon!$AH$4:$AI$10,2,FALSE),0)+IF('Crop 1'!$C$62=Carbon!$B106,'Crop 1'!$V$62*VLOOKUP('Crop 1'!$E$62,Carbon!$AH$4:$AI$10,2,FALSE),0)+IF('Crop 1'!$C$63=Carbon!$B106,'Crop 1'!$V$63*VLOOKUP('Crop 1'!$E$63,Carbon!$AH$4:$AI$10,2,FALSE),0)+IF('Crop 1'!$C$64=Carbon!$B106,'Crop 1'!$V$64*VLOOKUP('Crop 1'!$E$64,Carbon!$AH$4:$AI$10,2,FALSE),0)+IF('Crop 1'!$C$65=Carbon!$B106,'Crop 1'!$V$65*VLOOKUP('Crop 1'!$E$65,Carbon!$AH$4:$AI$10,2,FALSE),0))*$AL$20,2)","v":0},{"$f":"M106*Inputs!$D$13","v":0},{"$f":"ROUND((IF('Crop 2'!$C$14=Carbon!$B106,'Crop 2'!$V$14*VLOOKUP('Crop 2'!$E$14,Carbon!$AH$4:$AI$10,2,FALSE),0)+IF('Crop 2'!$C$15=Carbon!$B106,'Crop 2'!$V$15*VLOOKUP('Crop 2'!$E$15,Carbon!$AH$4:$AI$10,2,FALSE),0)+IF('Crop 2'!$C$16=Carbon!$B106,'Crop 2'!$V$16*VLOOKUP('Crop 2'!$E$16,Carbon!$AH$4:$AI$10,2,FALSE),0)+IF('Crop 2'!$C$19=Carbon!$B106,'Crop 2'!$V$19*VLOOKUP('Crop 2'!$E$19,Carbon!$AH$4:$AI$10,2,FALSE),0)+IF('Crop 2'!$C$20=Carbon!$B106,'Crop 2'!$V$20*VLOOKUP('Crop 2'!$E$20,Carbon!$AH$4:$AI$10,2,FALSE),0)+IF('Crop 2'!$C$21=Carbon!$B106,'Crop 2'!$V$21*VLOOKUP('Crop 2'!$E$21,Carbon!$AH$4:$AI$10,2,FALSE),0)+IF('Crop 2'!$C$49=Carbon!$B106,'Crop 2'!$V$49*VLOOKUP('Crop 2'!$E$49,Carbon!$AH$4:$AI$10,2,FALSE),0)+IF('Crop 2'!$C$50=Carbon!$B106,'Crop 2'!$V$50*VLOOKUP('Crop 2'!$E$50,Carbon!$AH$4:$AI$10,2,FALSE),0)+IF('Crop 2'!$C$51=Carbon!$B106,'Crop 2'!$V$51*VLOOKUP('Crop 2'!$E$51,Carbon!$AH$4:$AI$10,2,FALSE),0)+IF('Crop 2'!$C$52=Carbon!$B106,'Crop 2'!$V$52*VLOOKUP('Crop 2'!$E$52,Carbon!$AH$4:$AI$10,2,FALSE),0)+IF('Crop 2'!$C$53=Carbon!$B106,'Crop 2'!$V$53*VLOOKUP('Crop 2'!$E$53,Carbon!$AH$4:$AI$10,2,FALSE),0)+IF('Crop 2'!$C$56=Carbon!$B106,'Crop 2'!$V$56*VLOOKUP('Crop 2'!$E$56,Carbon!$AH$4:$AI$10,2,FALSE),0)+IF('Crop 2'!$C$57=Carbon!$B106,'Crop 2'!$V$57*VLOOKUP('Crop 2'!$E$57,Carbon!$AH$4:$AI$10,2,FALSE),0)+IF('Crop 2'!$C$58=Carbon!$B106,'Crop 2'!$V$58*VLOOKUP('Crop 2'!$E$58,Carbon!$AH$4:$AI$10,2,FALSE),0)+IF('Crop 2'!$C$59=Carbon!$B106,'Crop 2'!$V$59*VLOOKUP('Crop 2'!$E$59,Carbon!$AH$4:$AI$10,2,FALSE),0)+IF('Crop 2'!$C$62=Carbon!$B106,'Crop 2'!$V$62*VLOOKUP('Crop 2'!$E$62,Carbon!$AH$4:$AI$10,2,FALSE),0)+IF('Crop 2'!$C$63=Carbon!$B106,'Crop 2'!$V$63*VLOOKUP('Crop 2'!$E$63,Carbon!$AH$4:$AI$10,2,FALSE),0)+IF('Crop 2'!$C$64=Carbon!$B106,'Crop 2'!$V$64*VLOOKUP('Crop 2'!$E$64,Carbon!$AH$4:$AI$10,2,FALSE),0)+IF('Crop 2'!$C$65=Carbon!$B106,'Crop 2'!$V$65*VLOOKUP('Crop 2'!$E$65,Carbon!$AH$4:$AI$10,2,FALSE),0))*$AL$20,2)","v":0},{"$f":"O106*Inputs!$D$15","v":0},{"$f":"ROUND((IF('Crop 3'!$C$14=Carbon!$B106,'Crop 3'!$V$14*VLOOKUP('Crop 3'!$E$14,Carbon!$AH$4:$AI$10,2,FALSE),0)+IF('Crop 3'!$C$15=Carbon!$B106,'Crop 3'!$V$15*VLOOKUP('Crop 3'!$E$15,Carbon!$AH$4:$AI$10,2,FALSE),0)+IF('Crop 3'!$C$16=Carbon!$B106,'Crop 3'!$V$16*VLOOKUP('Crop 3'!$E$16,Carbon!$AH$4:$AI$10,2,FALSE),0)+IF('Crop 3'!$C$19=Carbon!$B106,'Crop 3'!$V$19*VLOOKUP('Crop 3'!$E$19,Carbon!$AH$4:$AI$10,2,FALSE),0)+IF('Crop 3'!$C$20=Carbon!$B106,'Crop 3'!$V$20*VLOOKUP('Crop 3'!$E$20,Carbon!$AH$4:$AI$10,2,FALSE),0)+IF('Crop 3'!$C$21=Carbon!$B106,'Crop 3'!$V$21*VLOOKUP('Crop 3'!$E$21,Carbon!$AH$4:$AI$10,2,FALSE),0)+IF('Crop 3'!$C$49=Carbon!$B106,'Crop 3'!$V$49*VLOOKUP('Crop 3'!$E$49,Carbon!$AH$4:$AI$10,2,FALSE),0)+IF('Crop 3'!$C$50=Carbon!$B106,'Crop 3'!$V$50*VLOOKUP('Crop 3'!$E$50,Carbon!$AH$4:$AI$10,2,FALSE),0)+IF('Crop 3'!$C$51=Carbon!$B106,'Crop 3'!$V$51*VLOOKUP('Crop 3'!$E$51,Carbon!$AH$4:$AI$10,2,FALSE),0)+IF('Crop 3'!$C$52=Carbon!$B106,'Crop 3'!$V$52*VLOOKUP('Crop 3'!$E$52,Carbon!$AH$4:$AI$10,2,FALSE),0)+IF('Crop 3'!$C$53=Carbon!$B106,'Crop 3'!$V$53*VLOOKUP('Crop 3'!$E$53,Carbon!$AH$4:$AI$10,2,FALSE),0)+IF('Crop 3'!$C$56=Carbon!$B106,'Crop 3'!$V$56*VLOOKUP('Crop 3'!$E$56,Carbon!$AH$4:$AI$10,2,FALSE),0)+IF('Crop 3'!$C$57=Carbon!$B106,'Crop 3'!$V$57*VLOOKUP('Crop 3'!$E$57,Carbon!$AH$4:$AI$10,2,FALSE),0)+IF('Crop 3'!$C$58=Carbon!$B106,'Crop 3'!$V$58*VLOOKUP('Crop 3'!$E$58,Carbon!$AH$4:$AI$10,2,FALSE),0)+IF('Crop 3'!$C$59=Carbon!$B106,'Crop 3'!$V$59*VLOOKUP('Crop 3'!$E$59,Carbon!$AH$4:$AI$10,2,FALSE),0)+IF('Crop 3'!$C$62=Carbon!$B106,'Crop 3'!$V$62*VLOOKUP('Crop 3'!$E$62,Carbon!$AH$4:$AI$10,2,FALSE),0)+IF('Crop 3'!$C$63=Carbon!$B106,'Crop 3'!$V$63*VLOOKUP('Crop 3'!$E$63,Carbon!$AH$4:$AI$10,2,FALSE),0)+IF('Crop 3'!$C$64=Carbon!$B106,'Crop 3'!$V$64*VLOOKUP('Crop 3'!$E$64,Carbon!$AH$4:$AI$10,2,FALSE),0)+IF('Crop 3'!$C$65=Carbon!$B106,'Crop 3'!$V$65*VLOOKUP('Crop 3'!$E$65,Carbon!$AH$4:$AI$10,2,FALSE),0))*$AL$20,2)","v":0},{"$f":"Q106*Inputs!$D$17","v":0},{"$f":"ROUND(T106/Inputs!D$19,2)","v":0},0,null,null,0,{"$f":"W106*Inputs!$D$13","v":0},0,{"$f":"Y106*Inputs!$D$13","v":0},0,{"$f":"AA106*Inputs!$D$13","v":0},{"$f":"ROUND(AD106/Inputs!D$19,2)","v":0},0]
[null,{"$f":"Defaults!AH73","v":"Latigo"},{"$f":"ROUND((IF('Crop 1'!$C$14=Carbon!$B107,'Crop 1'!$L$14*VLOOKUP('Crop 1'!$E$14,Carbon!$AH$4:$AI$10,2,FALSE),0)+IF('Crop 1'!$C$15=Carbon!$B107,'Crop 1'!$L$15*VLOOKUP('Crop 1'!$E$15,Carbon!$AH$4:$AI$10,2,FALSE),0)+IF('Crop 1'!$C$16=Carbon!$B107,'Crop 1'!$L$16*VLOOKUP('Crop 1'!$E$16,Carbon!$AH$4:$AI$10,2,FALSE),0)+IF('Crop 1'!$C$19=Carbon!$B107,'Crop 1'!$L$19*VLOOKUP('Crop 1'!$E$19,Carbon!$AH$4:$AI$10,2,FALSE),0)+IF('Crop 1'!$C$20=Carbon!$B107,'Crop 1'!$L$20*VLOOKUP('Crop 1'!$E$20,Carbon!$AH$4:$AI$10,2,FALSE),0)+IF('Crop 1'!$C$21=Carbon!$B107,'Crop 1'!$L$21*VLOOKUP('Crop 1'!$E$21,Carbon!$AH$4:$AI$10,2,FALSE),0)+IF('Crop 1'!$C$49=Carbon!$B107,'Crop 1'!$L$49*VLOOKUP('Crop 1'!$E$49,Carbon!$AH$4:$AI$10,2,FALSE),0)+IF('Crop 1'!$C$50=Carbon!$B107,'Crop 1'!$L$50*VLOOKUP('Crop 1'!$E$50,Carbon!$AH$4:$AI$10,2,FALSE),0)+IF('Crop 1'!$C$51=Carbon!$B107,'Crop 1'!$L$51*VLOOKUP('Crop 1'!$E$51,Carbon!$AH$4:$AI$10,2,FALSE),0)+IF('Crop 1'!$C$52=Carbon!$B107,'Crop 1'!$L$52*VLOOKUP('Crop 1'!$E$52,Carbon!$AH$4:$AI$10,2,FALSE),0)+IF('Crop 1'!$C$53=Carbon!$B107,'Crop 1'!$L$53*VLOOKUP('Crop 1'!$E$53,Carbon!$AH$4:$AI$10,2,FALSE),0)+IF('Crop 1'!$C$56=Carbon!$B107,'Crop 1'!$L$56*VLOOKUP('Crop 1'!$E$56,Carbon!$AH$4:$AI$10,2,FALSE),0)+IF('Crop 1'!$C$57=Carbon!$B107,'Crop 1'!$L$57*VLOOKUP('Crop 1'!$E$57,Carbon!$AH$4:$AI$10,2,FALSE),0)+IF('Crop 1'!$C$58=Carbon!$B107,'Crop 1'!$L$58*VLOOKUP('Crop 1'!$E$58,Carbon!$AH$4:$AI$10,2,FALSE),0)+IF('Crop 1'!$C$59=Carbon!$B107,'Crop 1'!$L$59*VLOOKUP('Crop 1'!$E$59,Carbon!$AH$4:$AI$10,2,FALSE),0)+IF('Crop 1'!$C$62=Carbon!$B107,'Crop 1'!$L$62*VLOOKUP('Crop 1'!$E$62,Carbon!$AH$4:$AI$10,2,FALSE),0)+IF('Crop 1'!$C$63=Carbon!$B107,'Crop 1'!$L$63*VLOOKUP('Crop 1'!$E$63,Carbon!$AH$4:$AI$10,2,FALSE),0)+IF('Crop 1'!$C$64=Carbon!$B107,'Crop 1'!$L$64*VLOOKUP('Crop 1'!$E$64,Carbon!$AH$4:$AI$10,2,FALSE),0)+IF('Crop 1'!$C$65=Carbon!$B107,'Crop 1'!$L$65*VLOOKUP('Crop 1'!$E$65,Carbon!$AH$4:$AI$10,2,FALSE),0))*$AL$20,2)","v":0},{"$f":"C107*Inputs!$D$13","v":0},{"$f":"ROUND((IF('Crop 2'!$C$14=Carbon!$B107,'Crop 2'!$L$14*VLOOKUP('Crop 2'!$E$14,Carbon!$AH$4:$AI$10,2,FALSE),0)+IF('Crop 2'!$C$15=Carbon!$B107,'Crop 2'!$L$15*VLOOKUP('Crop 2'!$E$15,Carbon!$AH$4:$AI$10,2,FALSE),0)+IF('Crop 2'!$C$16=Carbon!$B107,'Crop 2'!$L$16*VLOOKUP('Crop 2'!$E$16,Carbon!$AH$4:$AI$10,2,FALSE),0)+IF('Crop 2'!$C$19=Carbon!$B107,'Crop 2'!$L$19*VLOOKUP('Crop 2'!$E$19,Carbon!$AH$4:$AI$10,2,FALSE),0)+IF('Crop 2'!$C$20=Carbon!$B107,'Crop 2'!$L$20*VLOOKUP('Crop 2'!$E$20,Carbon!$AH$4:$AI$10,2,FALSE),0)+IF('Crop 2'!$C$21=Carbon!$B107,'Crop 2'!$L$21*VLOOKUP('Crop 2'!$E$21,Carbon!$AH$4:$AI$10,2,FALSE),0)+IF('Crop 2'!$C$49=Carbon!$B107,'Crop 2'!$L$49*VLOOKUP('Crop 2'!$E$49,Carbon!$AH$4:$AI$10,2,FALSE),0)+IF('Crop 2'!$C$50=Carbon!$B107,'Crop 2'!$L$50*VLOOKUP('Crop 2'!$E$50,Carbon!$AH$4:$AI$10,2,FALSE),0)+IF('Crop 2'!$C$51=Carbon!$B107,'Crop 2'!$L$51*VLOOKUP('Crop 2'!$E$51,Carbon!$AH$4:$AI$10,2,FALSE),0)+IF('Crop 2'!$C$52=Carbon!$B107,'Crop 2'!$L$52*VLOOKUP('Crop 2'!$E$52,Carbon!$AH$4:$AI$10,2,FALSE),0)+IF('Crop 2'!$C$53=Carbon!$B107,'Crop 2'!$L$53*VLOOKUP('Crop 2'!$E$53,Carbon!$AH$4:$AI$10,2,FALSE),0)+IF('Crop 2'!$C$56=Carbon!$B107,'Crop 2'!$L$56*VLOOKUP('Crop 2'!$E$56,Carbon!$AH$4:$AI$10,2,FALSE),0)+IF('Crop 2'!$C$57=Carbon!$B107,'Crop 2'!$L$57*VLOOKUP('Crop 2'!$E$57,Carbon!$AH$4:$AI$10,2,FALSE),0)+IF('Crop 2'!$C$58=Carbon!$B107,'Crop 2'!$L$58*VLOOKUP('Crop 2'!$E$58,Carbon!$AH$4:$AI$10,2,FALSE),0)+IF('Crop 2'!$C$59=Carbon!$B107,'Crop 2'!$L$59*VLOOKUP('Crop 2'!$E$59,Carbon!$AH$4:$AI$10,2,FALSE),0)+IF('Crop 2'!$C$62=Carbon!$B107,'Crop 2'!$L$62*VLOOKUP('Crop 2'!$E$62,Carbon!$AH$4:$AI$10,2,FALSE),0)+IF('Crop 2'!$C$63=Carbon!$B107,'Crop 2'!$L$63*VLOOKUP('Crop 2'!$E$63,Carbon!$AH$4:$AI$10,2,FALSE),0)+IF('Crop 2'!$C$64=Carbon!$B107,'Crop 2'!$L$64*VLOOKUP('Crop 2'!$E$64,Carbon!$AH$4:$AI$10,2,FALSE),0)+IF('Crop 2'!$C$65=Carbon!$B107,'Crop 2'!$L$65*VLOOKUP('Crop 2'!$E$65,Carbon!$AH$4:$AI$10,2,FALSE),0))*$AL$20,2)","v":0},{"$f":"E107*Inputs!$D$15","v":0},{"$f":"ROUND((IF('Crop 3'!$C$14=Carbon!$B107,'Crop 3'!$L$14*VLOOKUP('Crop 3'!$E$14,Carbon!$AH$4:$AI$10,2,FALSE),0)+IF('Crop 3'!$C$15=Carbon!$B107,'Crop 3'!$L$15*VLOOKUP('Crop 3'!$E$15,Carbon!$AH$4:$AI$10,2,FALSE),0)+IF('Crop 3'!$C$16=Carbon!$B107,'Crop 3'!$L$16*VLOOKUP('Crop 3'!$E$16,Carbon!$AH$4:$AI$10,2,FALSE),0)+IF('Crop 3'!$C$19=Carbon!$B107,'Crop 3'!$L$19*VLOOKUP('Crop 3'!$E$19,Carbon!$AH$4:$AI$10,2,FALSE),0)+IF('Crop 3'!$C$20=Carbon!$B107,'Crop 3'!$L$20*VLOOKUP('Crop 3'!$E$20,Carbon!$AH$4:$AI$10,2,FALSE),0)+IF('Crop 3'!$C$21=Carbon!$B107,'Crop 3'!$L$21*VLOOKUP('Crop 3'!$E$21,Carbon!$AH$4:$AI$10,2,FALSE),0)+IF('Crop 3'!$C$49=Carbon!$B107,'Crop 3'!$L$49*VLOOKUP('Crop 3'!$E$49,Carbon!$AH$4:$AI$10,2,FALSE),0)+IF('Crop 3'!$C$50=Carbon!$B107,'Crop 3'!$L$50*VLOOKUP('Crop 3'!$E$50,Carbon!$AH$4:$AI$10,2,FALSE),0)+IF('Crop 3'!$C$51=Carbon!$B107,'Crop 3'!$L$51*VLOOKUP('Crop 3'!$E$51,Carbon!$AH$4:$AI$10,2,FALSE),0)+IF('Crop 3'!$C$52=Carbon!$B107,'Crop 3'!$L$52*VLOOKUP('Crop 3'!$E$52,Carbon!$AH$4:$AI$10,2,FALSE),0)+IF('Crop 3'!$C$53=Carbon!$B107,'Crop 3'!$L$53*VLOOKUP('Crop 3'!$E$53,Carbon!$AH$4:$AI$10,2,FALSE),0)+IF('Crop 3'!$C$56=Carbon!$B107,'Crop 3'!$L$56*VLOOKUP('Crop 3'!$E$56,Carbon!$AH$4:$AI$10,2,FALSE),0)+IF('Crop 3'!$C$57=Carbon!$B107,'Crop 3'!$L$57*VLOOKUP('Crop 3'!$E$57,Carbon!$AH$4:$AI$10,2,FALSE),0)+IF('Crop 3'!$C$58=Carbon!$B107,'Crop 3'!$L$58*VLOOKUP('Crop 3'!$E$58,Carbon!$AH$4:$AI$10,2,FALSE),0)+IF('Crop 3'!$C$59=Carbon!$B107,'Crop 3'!$L$59*VLOOKUP('Crop 3'!$E$59,Carbon!$AH$4:$AI$10,2,FALSE),0)+IF('Crop 3'!$C$62=Carbon!$B107,'Crop 3'!$L$62*VLOOKUP('Crop 3'!$E$62,Carbon!$AH$4:$AI$10,2,FALSE),0)+IF('Crop 3'!$C$63=Carbon!$B107,'Crop 3'!$L$63*VLOOKUP('Crop 3'!$E$63,Carbon!$AH$4:$AI$10,2,FALSE),0)+IF('Crop 3'!$C$64=Carbon!$B107,'Crop 3'!$L$64*VLOOKUP('Crop 3'!$E$64,Carbon!$AH$4:$AI$10,2,FALSE),0)+IF('Crop 3'!$C$65=Carbon!$B107,'Crop 3'!$L$65*VLOOKUP('Crop 3'!$E$65,Carbon!$AH$4:$AI$10,2,FALSE),0))*$AL$20,2)","v":0},{"$f":"G107*Inputs!$D$17","v":0},{"$f":"ROUND(J107/Inputs!D$19,2)","v":0},0,null,null,{"$f":"ROUND((IF('Crop 1'!$C$14=Carbon!$B107,'Crop 1'!$V$14*VLOOKUP('Crop 1'!$E$14,Carbon!$AH$4:$AI$10,2,FALSE),0)+IF('Crop 1'!$C$15=Carbon!$B107,'Crop 1'!$V$15*VLOOKUP('Crop 1'!$E$15,Carbon!$AH$4:$AI$10,2,FALSE),0)+IF('Crop 1'!$C$16=Carbon!$B107,'Crop 1'!$V$16*VLOOKUP('Crop 1'!$E$16,Carbon!$AH$4:$AI$10,2,FALSE),0)+IF('Crop 1'!$C$19=Carbon!$B107,'Crop 1'!$V$19*VLOOKUP('Crop 1'!$E$19,Carbon!$AH$4:$AI$10,2,FALSE),0)+IF('Crop 1'!$C$20=Carbon!$B107,'Crop 1'!$V$20*VLOOKUP('Crop 1'!$E$20,Carbon!$AH$4:$AI$10,2,FALSE),0)+IF('Crop 1'!$C$21=Carbon!$B107,'Crop 1'!$V$21*VLOOKUP('Crop 1'!$E$21,Carbon!$AH$4:$AI$10,2,FALSE),0)+IF('Crop 1'!$C$49=Carbon!$B107,'Crop 1'!$V$49*VLOOKUP('Crop 1'!$E$49,Carbon!$AH$4:$AI$10,2,FALSE),0)+IF('Crop 1'!$C$50=Carbon!$B107,'Crop 1'!$V$50*VLOOKUP('Crop 1'!$E$50,Carbon!$AH$4:$AI$10,2,FALSE),0)+IF('Crop 1'!$C$51=Carbon!$B107,'Crop 1'!$V$51*VLOOKUP('Crop 1'!$E$51,Carbon!$AH$4:$AI$10,2,FALSE),0)+IF('Crop 1'!$C$52=Carbon!$B107,'Crop 1'!$V$52*VLOOKUP('Crop 1'!$E$52,Carbon!$AH$4:$AI$10,2,FALSE),0)+IF('Crop 1'!$C$53=Carbon!$B107,'Crop 1'!$V$53*VLOOKUP('Crop 1'!$E$53,Carbon!$AH$4:$AI$10,2,FALSE),0)+IF('Crop 1'!$C$56=Carbon!$B107,'Crop 1'!$V$56*VLOOKUP('Crop 1'!$E$56,Carbon!$AH$4:$AI$10,2,FALSE),0)+IF('Crop 1'!$C$57=Carbon!$B107,'Crop 1'!$V$57*VLOOKUP('Crop 1'!$E$57,Carbon!$AH$4:$AI$10,2,FALSE),0)+IF('Crop 1'!$C$58=Carbon!$B107,'Crop 1'!$V$58*VLOOKUP('Crop 1'!$E$58,Carbon!$AH$4:$AI$10,2,FALSE),0)+IF('Crop 1'!$C$59=Carbon!$B107,'Crop 1'!$V$59*VLOOKUP('Crop 1'!$E$59,Carbon!$AH$4:$AI$10,2,FALSE),0)+IF('Crop 1'!$C$62=Carbon!$B107,'Crop 1'!$V$62*VLOOKUP('Crop 1'!$E$62,Carbon!$AH$4:$AI$10,2,FALSE),0)+IF('Crop 1'!$C$63=Carbon!$B107,'Crop 1'!$V$63*VLOOKUP('Crop 1'!$E$63,Carbon!$AH$4:$AI$10,2,FALSE),0)+IF('Crop 1'!$C$64=Carbon!$B107,'Crop 1'!$V$64*VLOOKUP('Crop 1'!$E$64,Carbon!$AH$4:$AI$10,2,FALSE),0)+IF('Crop 1'!$C$65=Carbon!$B107,'Crop 1'!$V$65*VLOOKUP('Crop 1'!$E$65,Carbon!$AH$4:$AI$10,2,FALSE),0))*$AL$20,2)","v":0},{"$f":"M107*Inputs!$D$13","v":0},{"$f":"ROUND((IF('Crop 2'!$C$14=Carbon!$B107,'Crop 2'!$V$14*VLOOKUP('Crop 2'!$E$14,Carbon!$AH$4:$AI$10,2,FALSE),0)+IF('Crop 2'!$C$15=Carbon!$B107,'Crop 2'!$V$15*VLOOKUP('Crop 2'!$E$15,Carbon!$AH$4:$AI$10,2,FALSE),0)+IF('Crop 2'!$C$16=Carbon!$B107,'Crop 2'!$V$16*VLOOKUP('Crop 2'!$E$16,Carbon!$AH$4:$AI$10,2,FALSE),0)+IF('Crop 2'!$C$19=Carbon!$B107,'Crop 2'!$V$19*VLOOKUP('Crop 2'!$E$19,Carbon!$AH$4:$AI$10,2,FALSE),0)+IF('Crop 2'!$C$20=Carbon!$B107,'Crop 2'!$V$20*VLOOKUP('Crop 2'!$E$20,Carbon!$AH$4:$AI$10,2,FALSE),0)+IF('Crop 2'!$C$21=Carbon!$B107,'Crop 2'!$V$21*VLOOKUP('Crop 2'!$E$21,Carbon!$AH$4:$AI$10,2,FALSE),0)+IF('Crop 2'!$C$49=Carbon!$B107,'Crop 2'!$V$49*VLOOKUP('Crop 2'!$E$49,Carbon!$AH$4:$AI$10,2,FALSE),0)+IF('Crop 2'!$C$50=Carbon!$B107,'Crop 2'!$V$50*VLOOKUP('Crop 2'!$E$50,Carbon!$AH$4:$AI$10,2,FALSE),0)+IF('Crop 2'!$C$51=Carbon!$B107,'Crop 2'!$V$51*VLOOKUP('Crop 2'!$E$51,Carbon!$AH$4:$AI$10,2,FALSE),0)+IF('Crop 2'!$C$52=Carbon!$B107,'Crop 2'!$V$52*VLOOKUP('Crop 2'!$E$52,Carbon!$AH$4:$AI$10,2,FALSE),0)+IF('Crop 2'!$C$53=Carbon!$B107,'Crop 2'!$V$53*VLOOKUP('Crop 2'!$E$53,Carbon!$AH$4:$AI$10,2,FALSE),0)+IF('Crop 2'!$C$56=Carbon!$B107,'Crop 2'!$V$56*VLOOKUP('Crop 2'!$E$56,Carbon!$AH$4:$AI$10,2,FALSE),0)+IF('Crop 2'!$C$57=Carbon!$B107,'Crop 2'!$V$57*VLOOKUP('Crop 2'!$E$57,Carbon!$AH$4:$AI$10,2,FALSE),0)+IF('Crop 2'!$C$58=Carbon!$B107,'Crop 2'!$V$58*VLOOKUP('Crop 2'!$E$58,Carbon!$AH$4:$AI$10,2,FALSE),0)+IF('Crop 2'!$C$59=Carbon!$B107,'Crop 2'!$V$59*VLOOKUP('Crop 2'!$E$59,Carbon!$AH$4:$AI$10,2,FALSE),0)+IF('Crop 2'!$C$62=Carbon!$B107,'Crop 2'!$V$62*VLOOKUP('Crop 2'!$E$62,Carbon!$AH$4:$AI$10,2,FALSE),0)+IF('Crop 2'!$C$63=Carbon!$B107,'Crop 2'!$V$63*VLOOKUP('Crop 2'!$E$63,Carbon!$AH$4:$AI$10,2,FALSE),0)+IF('Crop 2'!$C$64=Carbon!$B107,'Crop 2'!$V$64*VLOOKUP('Crop 2'!$E$64,Carbon!$AH$4:$AI$10,2,FALSE),0)+IF('Crop 2'!$C$65=Carbon!$B107,'Crop 2'!$V$65*VLOOKUP('Crop 2'!$E$65,Carbon!$AH$4:$AI$10,2,FALSE),0))*$AL$20,2)","v":0},{"$f":"O107*Inputs!$D$15","v":0},{"$f":"ROUND((IF('Crop 3'!$C$14=Carbon!$B107,'Crop 3'!$V$14*VLOOKUP('Crop 3'!$E$14,Carbon!$AH$4:$AI$10,2,FALSE),0)+IF('Crop 3'!$C$15=Carbon!$B107,'Crop 3'!$V$15*VLOOKUP('Crop 3'!$E$15,Carbon!$AH$4:$AI$10,2,FALSE),0)+IF('Crop 3'!$C$16=Carbon!$B107,'Crop 3'!$V$16*VLOOKUP('Crop 3'!$E$16,Carbon!$AH$4:$AI$10,2,FALSE),0)+IF('Crop 3'!$C$19=Carbon!$B107,'Crop 3'!$V$19*VLOOKUP('Crop 3'!$E$19,Carbon!$AH$4:$AI$10,2,FALSE),0)+IF('Crop 3'!$C$20=Carbon!$B107,'Crop 3'!$V$20*VLOOKUP('Crop 3'!$E$20,Carbon!$AH$4:$AI$10,2,FALSE),0)+IF('Crop 3'!$C$21=Carbon!$B107,'Crop 3'!$V$21*VLOOKUP('Crop 3'!$E$21,Carbon!$AH$4:$AI$10,2,FALSE),0)+IF('Crop 3'!$C$49=Carbon!$B107,'Crop 3'!$V$49*VLOOKUP('Crop 3'!$E$49,Carbon!$AH$4:$AI$10,2,FALSE),0)+IF('Crop 3'!$C$50=Carbon!$B107,'Crop 3'!$V$50*VLOOKUP('Crop 3'!$E$50,Carbon!$AH$4:$AI$10,2,FALSE),0)+IF('Crop 3'!$C$51=Carbon!$B107,'Crop 3'!$V$51*VLOOKUP('Crop 3'!$E$51,Carbon!$AH$4:$AI$10,2,FALSE),0)+IF('Crop 3'!$C$52=Carbon!$B107,'Crop 3'!$V$52*VLOOKUP('Crop 3'!$E$52,Carbon!$AH$4:$AI$10,2,FALSE),0)+IF('Crop 3'!$C$53=Carbon!$B107,'Crop 3'!$V$53*VLOOKUP('Crop 3'!$E$53,Carbon!$AH$4:$AI$10,2,FALSE),0)+IF('Crop 3'!$C$56=Carbon!$B107,'Crop 3'!$V$56*VLOOKUP('Crop 3'!$E$56,Carbon!$AH$4:$AI$10,2,FALSE),0)+IF('Crop 3'!$C$57=Carbon!$B107,'Crop 3'!$V$57*VLOOKUP('Crop 3'!$E$57,Carbon!$AH$4:$AI$10,2,FALSE),0)+IF('Crop 3'!$C$58=Carbon!$B107,'Crop 3'!$V$58*VLOOKUP('Crop 3'!$E$58,Carbon!$AH$4:$AI$10,2,FALSE),0)+IF('Crop 3'!$C$59=Carbon!$B107,'Crop 3'!$V$59*VLOOKUP('Crop 3'!$E$59,Carbon!$AH$4:$AI$10,2,FALSE),0)+IF('Crop 3'!$C$62=Carbon!$B107,'Crop 3'!$V$62*VLOOKUP('Crop 3'!$E$62,Carbon!$AH$4:$AI$10,2,FALSE),0)+IF('Crop 3'!$C$63=Carbon!$B107,'Crop 3'!$V$63*VLOOKUP('Crop 3'!$E$63,Carbon!$AH$4:$AI$10,2,FALSE),0)+IF('Crop 3'!$C$64=Carbon!$B107,'Crop 3'!$V$64*VLOOKUP('Crop 3'!$E$64,Carbon!$AH$4:$AI$10,2,FALSE),0)+IF('Crop 3'!$C$65=Carbon!$B107,'Crop 3'!$V$65*VLOOKUP('Crop 3'!$E$65,Carbon!$AH$4:$AI$10,2,FALSE),0))*$AL$20,2)","v":0},{"$f":"Q107*Inputs!$D$17","v":0},{"$f":"ROUND(T107/Inputs!D$19,2)","v":0},0,null,null,0,{"$f":"W107*Inputs!$D$13","v":0},0,{"$f":"Y107*Inputs!$D$13","v":0},0,{"$f":"AA107*Inputs!$D$13","v":0},{"$f":"ROUND(AD107/Inputs!D$19,2)","v":0},0]
[null,{"$f":"Defaults!AH74","v":"Lexar"},{"$f":"ROUND((IF('Crop 1'!$C$14=Carbon!$B108,'Crop 1'!$L$14*VLOOKUP('Crop 1'!$E$14,Carbon!$AH$4:$AI$10,2,FALSE),0)+IF('Crop 1'!$C$15=Carbon!$B108,'Crop 1'!$L$15*VLOOKUP('Crop 1'!$E$15,Carbon!$AH$4:$AI$10,2,FALSE),0)+IF('Crop 1'!$C$16=Carbon!$B108,'Crop 1'!$L$16*VLOOKUP('Crop 1'!$E$16,Carbon!$AH$4:$AI$10,2,FALSE),0)+IF('Crop 1'!$C$19=Carbon!$B108,'Crop 1'!$L$19*VLOOKUP('Crop 1'!$E$19,Carbon!$AH$4:$AI$10,2,FALSE),0)+IF('Crop 1'!$C$20=Carbon!$B108,'Crop 1'!$L$20*VLOOKUP('Crop 1'!$E$20,Carbon!$AH$4:$AI$10,2,FALSE),0)+IF('Crop 1'!$C$21=Carbon!$B108,'Crop 1'!$L$21*VLOOKUP('Crop 1'!$E$21,Carbon!$AH$4:$AI$10,2,FALSE),0)+IF('Crop 1'!$C$49=Carbon!$B108,'Crop 1'!$L$49*VLOOKUP('Crop 1'!$E$49,Carbon!$AH$4:$AI$10,2,FALSE),0)+IF('Crop 1'!$C$50=Carbon!$B108,'Crop 1'!$L$50*VLOOKUP('Crop 1'!$E$50,Carbon!$AH$4:$AI$10,2,FALSE),0)+IF('Crop 1'!$C$51=Carbon!$B108,'Crop 1'!$L$51*VLOOKUP('Crop 1'!$E$51,Carbon!$AH$4:$AI$10,2,FALSE),0)+IF('Crop 1'!$C$52=Carbon!$B108,'Crop 1'!$L$52*VLOOKUP('Crop 1'!$E$52,Carbon!$AH$4:$AI$10,2,FALSE),0)+IF('Crop 1'!$C$53=Carbon!$B108,'Crop 1'!$L$53*VLOOKUP('Crop 1'!$E$53,Carbon!$AH$4:$AI$10,2,FALSE),0)+IF('Crop 1'!$C$56=Carbon!$B108,'Crop 1'!$L$56*VLOOKUP('Crop 1'!$E$56,Carbon!$AH$4:$AI$10,2,FALSE),0)+IF('Crop 1'!$C$57=Carbon!$B108,'Crop 1'!$L$57*VLOOKUP('Crop 1'!$E$57,Carbon!$AH$4:$AI$10,2,FALSE),0)+IF('Crop 1'!$C$58=Carbon!$B108,'Crop 1'!$L$58*VLOOKUP('Crop 1'!$E$58,Carbon!$AH$4:$AI$10,2,FALSE),0)+IF('Crop 1'!$C$59=Carbon!$B108,'Crop 1'!$L$59*VLOOKUP('Crop 1'!$E$59,Carbon!$AH$4:$AI$10,2,FALSE),0)+IF('Crop 1'!$C$62=Carbon!$B108,'Crop 1'!$L$62*VLOOKUP('Crop 1'!$E$62,Carbon!$AH$4:$AI$10,2,FALSE),0)+IF('Crop 1'!$C$63=Carbon!$B108,'Crop 1'!$L$63*VLOOKUP('Crop 1'!$E$63,Carbon!$AH$4:$AI$10,2,FALSE),0)+IF('Crop 1'!$C$64=Carbon!$B108,'Crop 1'!$L$64*VLOOKUP('Crop 1'!$E$64,Carbon!$AH$4:$AI$10,2,FALSE),0)+IF('Crop 1'!$C$65=Carbon!$B108,'Crop 1'!$L$65*VLOOKUP('Crop 1'!$E$65,Carbon!$AH$4:$AI$10,2,FALSE),0))*$AL$20,2)","v":0},{"$f":"C108*Inputs!$D$13","v":0},{"$f":"ROUND((IF('Crop 2'!$C$14=Carbon!$B108,'Crop 2'!$L$14*VLOOKUP('Crop 2'!$E$14,Carbon!$AH$4:$AI$10,2,FALSE),0)+IF('Crop 2'!$C$15=Carbon!$B108,'Crop 2'!$L$15*VLOOKUP('Crop 2'!$E$15,Carbon!$AH$4:$AI$10,2,FALSE),0)+IF('Crop 2'!$C$16=Carbon!$B108,'Crop 2'!$L$16*VLOOKUP('Crop 2'!$E$16,Carbon!$AH$4:$AI$10,2,FALSE),0)+IF('Crop 2'!$C$19=Carbon!$B108,'Crop 2'!$L$19*VLOOKUP('Crop 2'!$E$19,Carbon!$AH$4:$AI$10,2,FALSE),0)+IF('Crop 2'!$C$20=Carbon!$B108,'Crop 2'!$L$20*VLOOKUP('Crop 2'!$E$20,Carbon!$AH$4:$AI$10,2,FALSE),0)+IF('Crop 2'!$C$21=Carbon!$B108,'Crop 2'!$L$21*VLOOKUP('Crop 2'!$E$21,Carbon!$AH$4:$AI$10,2,FALSE),0)+IF('Crop 2'!$C$49=Carbon!$B108,'Crop 2'!$L$49*VLOOKUP('Crop 2'!$E$49,Carbon!$AH$4:$AI$10,2,FALSE),0)+IF('Crop 2'!$C$50=Carbon!$B108,'Crop 2'!$L$50*VLOOKUP('Crop 2'!$E$50,Carbon!$AH$4:$AI$10,2,FALSE),0)+IF('Crop 2'!$C$51=Carbon!$B108,'Crop 2'!$L$51*VLOOKUP('Crop 2'!$E$51,Carbon!$AH$4:$AI$10,2,FALSE),0)+IF('Crop 2'!$C$52=Carbon!$B108,'Crop 2'!$L$52*VLOOKUP('Crop 2'!$E$52,Carbon!$AH$4:$AI$10,2,FALSE),0)+IF('Crop 2'!$C$53=Carbon!$B108,'Crop 2'!$L$53*VLOOKUP('Crop 2'!$E$53,Carbon!$AH$4:$AI$10,2,FALSE),0)+IF('Crop 2'!$C$56=Carbon!$B108,'Crop 2'!$L$56*VLOOKUP('Crop 2'!$E$56,Carbon!$AH$4:$AI$10,2,FALSE),0)+IF('Crop 2'!$C$57=Carbon!$B108,'Crop 2'!$L$57*VLOOKUP('Crop 2'!$E$57,Carbon!$AH$4:$AI$10,2,FALSE),0)+IF('Crop 2'!$C$58=Carbon!$B108,'Crop 2'!$L$58*VLOOKUP('Crop 2'!$E$58,Carbon!$AH$4:$AI$10,2,FALSE),0)+IF('Crop 2'!$C$59=Carbon!$B108,'Crop 2'!$L$59*VLOOKUP('Crop 2'!$E$59,Carbon!$AH$4:$AI$10,2,FALSE),0)+IF('Crop 2'!$C$62=Carbon!$B108,'Crop 2'!$L$62*VLOOKUP('Crop 2'!$E$62,Carbon!$AH$4:$AI$10,2,FALSE),0)+IF('Crop 2'!$C$63=Carbon!$B108,'Crop 2'!$L$63*VLOOKUP('Crop 2'!$E$63,Carbon!$AH$4:$AI$10,2,FALSE),0)+IF('Crop 2'!$C$64=Carbon!$B108,'Crop 2'!$L$64*VLOOKUP('Crop 2'!$E$64,Carbon!$AH$4:$AI$10,2,FALSE),0)+IF('Crop 2'!$C$65=Carbon!$B108,'Crop 2'!$L$65*VLOOKUP('Crop 2'!$E$65,Carbon!$AH$4:$AI$10,2,FALSE),0))*$AL$20,2)","v":0},{"$f":"E108*Inputs!$D$15","v":0},{"$f":"ROUND((IF('Crop 3'!$C$14=Carbon!$B108,'Crop 3'!$L$14*VLOOKUP('Crop 3'!$E$14,Carbon!$AH$4:$AI$10,2,FALSE),0)+IF('Crop 3'!$C$15=Carbon!$B108,'Crop 3'!$L$15*VLOOKUP('Crop 3'!$E$15,Carbon!$AH$4:$AI$10,2,FALSE),0)+IF('Crop 3'!$C$16=Carbon!$B108,'Crop 3'!$L$16*VLOOKUP('Crop 3'!$E$16,Carbon!$AH$4:$AI$10,2,FALSE),0)+IF('Crop 3'!$C$19=Carbon!$B108,'Crop 3'!$L$19*VLOOKUP('Crop 3'!$E$19,Carbon!$AH$4:$AI$10,2,FALSE),0)+IF('Crop 3'!$C$20=Carbon!$B108,'Crop 3'!$L$20*VLOOKUP('Crop 3'!$E$20,Carbon!$AH$4:$AI$10,2,FALSE),0)+IF('Crop 3'!$C$21=Carbon!$B108,'Crop 3'!$L$21*VLOOKUP('Crop 3'!$E$21,Carbon!$AH$4:$AI$10,2,FALSE),0)+IF('Crop 3'!$C$49=Carbon!$B108,'Crop 3'!$L$49*VLOOKUP('Crop 3'!$E$49,Carbon!$AH$4:$AI$10,2,FALSE),0)+IF('Crop 3'!$C$50=Carbon!$B108,'Crop 3'!$L$50*VLOOKUP('Crop 3'!$E$50,Carbon!$AH$4:$AI$10,2,FALSE),0)+IF('Crop 3'!$C$51=Carbon!$B108,'Crop 3'!$L$51*VLOOKUP('Crop 3'!$E$51,Carbon!$AH$4:$AI$10,2,FALSE),0)+IF('Crop 3'!$C$52=Carbon!$B108,'Crop 3'!$L$52*VLOOKUP('Crop 3'!$E$52,Carbon!$AH$4:$AI$10,2,FALSE),0)+IF('Crop 3'!$C$53=Carbon!$B108,'Crop 3'!$L$53*VLOOKUP('Crop 3'!$E$53,Carbon!$AH$4:$AI$10,2,FALSE),0)+IF('Crop 3'!$C$56=Carbon!$B108,'Crop 3'!$L$56*VLOOKUP('Crop 3'!$E$56,Carbon!$AH$4:$AI$10,2,FALSE),0)+IF('Crop 3'!$C$57=Carbon!$B108,'Crop 3'!$L$57*VLOOKUP('Crop 3'!$E$57,Carbon!$AH$4:$AI$10,2,FALSE),0)+IF('Crop 3'!$C$58=Carbon!$B108,'Crop 3'!$L$58*VLOOKUP('Crop 3'!$E$58,Carbon!$AH$4:$AI$10,2,FALSE),0)+IF('Crop 3'!$C$59=Carbon!$B108,'Crop 3'!$L$59*VLOOKUP('Crop 3'!$E$59,Carbon!$AH$4:$AI$10,2,FALSE),0)+IF('Crop 3'!$C$62=Carbon!$B108,'Crop 3'!$L$62*VLOOKUP('Crop 3'!$E$62,Carbon!$AH$4:$AI$10,2,FALSE),0)+IF('Crop 3'!$C$63=Carbon!$B108,'Crop 3'!$L$63*VLOOKUP('Crop 3'!$E$63,Carbon!$AH$4:$AI$10,2,FALSE),0)+IF('Crop 3'!$C$64=Carbon!$B108,'Crop 3'!$L$64*VLOOKUP('Crop 3'!$E$64,Carbon!$AH$4:$AI$10,2,FALSE),0)+IF('Crop 3'!$C$65=Carbon!$B108,'Crop 3'!$L$65*VLOOKUP('Crop 3'!$E$65,Carbon!$AH$4:$AI$10,2,FALSE),0))*$AL$20,2)","v":0},{"$f":"G108*Inputs!$D$17","v":0},{"$f":"ROUND(J108/Inputs!D$19,2)","v":0},0,null,null,{"$f":"ROUND((IF('Crop 1'!$C$14=Carbon!$B108,'Crop 1'!$V$14*VLOOKUP('Crop 1'!$E$14,Carbon!$AH$4:$AI$10,2,FALSE),0)+IF('Crop 1'!$C$15=Carbon!$B108,'Crop 1'!$V$15*VLOOKUP('Crop 1'!$E$15,Carbon!$AH$4:$AI$10,2,FALSE),0)+IF('Crop 1'!$C$16=Carbon!$B108,'Crop 1'!$V$16*VLOOKUP('Crop 1'!$E$16,Carbon!$AH$4:$AI$10,2,FALSE),0)+IF('Crop 1'!$C$19=Carbon!$B108,'Crop 1'!$V$19*VLOOKUP('Crop 1'!$E$19,Carbon!$AH$4:$AI$10,2,FALSE),0)+IF('Crop 1'!$C$20=Carbon!$B108,'Crop 1'!$V$20*VLOOKUP('Crop 1'!$E$20,Carbon!$AH$4:$AI$10,2,FALSE),0)+IF('Crop 1'!$C$21=Carbon!$B108,'Crop 1'!$V$21*VLOOKUP('Crop 1'!$E$21,Carbon!$AH$4:$AI$10,2,FALSE),0)+IF('Crop 1'!$C$49=Carbon!$B108,'Crop 1'!$V$49*VLOOKUP('Crop 1'!$E$49,Carbon!$AH$4:$AI$10,2,FALSE),0)+IF('Crop 1'!$C$50=Carbon!$B108,'Crop 1'!$V$50*VLOOKUP('Crop 1'!$E$50,Carbon!$AH$4:$AI$10,2,FALSE),0)+IF('Crop 1'!$C$51=Carbon!$B108,'Crop 1'!$V$51*VLOOKUP('Crop 1'!$E$51,Carbon!$AH$4:$AI$10,2,FALSE),0)+IF('Crop 1'!$C$52=Carbon!$B108,'Crop 1'!$V$52*VLOOKUP('Crop 1'!$E$52,Carbon!$AH$4:$AI$10,2,FALSE),0)+IF('Crop 1'!$C$53=Carbon!$B108,'Crop 1'!$V$53*VLOOKUP('Crop 1'!$E$53,Carbon!$AH$4:$AI$10,2,FALSE),0)+IF('Crop 1'!$C$56=Carbon!$B108,'Crop 1'!$V$56*VLOOKUP('Crop 1'!$E$56,Carbon!$AH$4:$AI$10,2,FALSE),0)+IF('Crop 1'!$C$57=Carbon!$B108,'Crop 1'!$V$57*VLOOKUP('Crop 1'!$E$57,Carbon!$AH$4:$AI$10,2,FALSE),0)+IF('Crop 1'!$C$58=Carbon!$B108,'Crop 1'!$V$58*VLOOKUP('Crop 1'!$E$58,Carbon!$AH$4:$AI$10,2,FALSE),0)+IF('Crop 1'!$C$59=Carbon!$B108,'Crop 1'!$V$59*VLOOKUP('Crop 1'!$E$59,Carbon!$AH$4:$AI$10,2,FALSE),0)+IF('Crop 1'!$C$62=Carbon!$B108,'Crop 1'!$V$62*VLOOKUP('Crop 1'!$E$62,Carbon!$AH$4:$AI$10,2,FALSE),0)+IF('Crop 1'!$C$63=Carbon!$B108,'Crop 1'!$V$63*VLOOKUP('Crop 1'!$E$63,Carbon!$AH$4:$AI$10,2,FALSE),0)+IF('Crop 1'!$C$64=Carbon!$B108,'Crop 1'!$V$64*VLOOKUP('Crop 1'!$E$64,Carbon!$AH$4:$AI$10,2,FALSE),0)+IF('Crop 1'!$C$65=Carbon!$B108,'Crop 1'!$V$65*VLOOKUP('Crop 1'!$E$65,Carbon!$AH$4:$AI$10,2,FALSE),0))*$AL$20,2)","v":0},{"$f":"M108*Inputs!$D$13","v":0},{"$f":"ROUND((IF('Crop 2'!$C$14=Carbon!$B108,'Crop 2'!$V$14*VLOOKUP('Crop 2'!$E$14,Carbon!$AH$4:$AI$10,2,FALSE),0)+IF('Crop 2'!$C$15=Carbon!$B108,'Crop 2'!$V$15*VLOOKUP('Crop 2'!$E$15,Carbon!$AH$4:$AI$10,2,FALSE),0)+IF('Crop 2'!$C$16=Carbon!$B108,'Crop 2'!$V$16*VLOOKUP('Crop 2'!$E$16,Carbon!$AH$4:$AI$10,2,FALSE),0)+IF('Crop 2'!$C$19=Carbon!$B108,'Crop 2'!$V$19*VLOOKUP('Crop 2'!$E$19,Carbon!$AH$4:$AI$10,2,FALSE),0)+IF('Crop 2'!$C$20=Carbon!$B108,'Crop 2'!$V$20*VLOOKUP('Crop 2'!$E$20,Carbon!$AH$4:$AI$10,2,FALSE),0)+IF('Crop 2'!$C$21=Carbon!$B108,'Crop 2'!$V$21*VLOOKUP('Crop 2'!$E$21,Carbon!$AH$4:$AI$10,2,FALSE),0)+IF('Crop 2'!$C$49=Carbon!$B108,'Crop 2'!$V$49*VLOOKUP('Crop 2'!$E$49,Carbon!$AH$4:$AI$10,2,FALSE),0)+IF('Crop 2'!$C$50=Carbon!$B108,'Crop 2'!$V$50*VLOOKUP('Crop 2'!$E$50,Carbon!$AH$4:$AI$10,2,FALSE),0)+IF('Crop 2'!$C$51=Carbon!$B108,'Crop 2'!$V$51*VLOOKUP('Crop 2'!$E$51,Carbon!$AH$4:$AI$10,2,FALSE),0)+IF('Crop 2'!$C$52=Carbon!$B108,'Crop 2'!$V$52*VLOOKUP('Crop 2'!$E$52,Carbon!$AH$4:$AI$10,2,FALSE),0)+IF('Crop 2'!$C$53=Carbon!$B108,'Crop 2'!$V$53*VLOOKUP('Crop 2'!$E$53,Carbon!$AH$4:$AI$10,2,FALSE),0)+IF('Crop 2'!$C$56=Carbon!$B108,'Crop 2'!$V$56*VLOOKUP('Crop 2'!$E$56,Carbon!$AH$4:$AI$10,2,FALSE),0)+IF('Crop 2'!$C$57=Carbon!$B108,'Crop 2'!$V$57*VLOOKUP('Crop 2'!$E$57,Carbon!$AH$4:$AI$10,2,FALSE),0)+IF('Crop 2'!$C$58=Carbon!$B108,'Crop 2'!$V$58*VLOOKUP('Crop 2'!$E$58,Carbon!$AH$4:$AI$10,2,FALSE),0)+IF('Crop 2'!$C$59=Carbon!$B108,'Crop 2'!$V$59*VLOOKUP('Crop 2'!$E$59,Carbon!$AH$4:$AI$10,2,FALSE),0)+IF('Crop 2'!$C$62=Carbon!$B108,'Crop 2'!$V$62*VLOOKUP('Crop 2'!$E$62,Carbon!$AH$4:$AI$10,2,FALSE),0)+IF('Crop 2'!$C$63=Carbon!$B108,'Crop 2'!$V$63*VLOOKUP('Crop 2'!$E$63,Carbon!$AH$4:$AI$10,2,FALSE),0)+IF('Crop 2'!$C$64=Carbon!$B108,'Crop 2'!$V$64*VLOOKUP('Crop 2'!$E$64,Carbon!$AH$4:$AI$10,2,FALSE),0)+IF('Crop 2'!$C$65=Carbon!$B108,'Crop 2'!$V$65*VLOOKUP('Crop 2'!$E$65,Carbon!$AH$4:$AI$10,2,FALSE),0))*$AL$20,2)","v":0},{"$f":"O108*Inputs!$D$15","v":0},{"$f":"ROUND((IF('Crop 3'!$C$14=Carbon!$B108,'Crop 3'!$V$14*VLOOKUP('Crop 3'!$E$14,Carbon!$AH$4:$AI$10,2,FALSE),0)+IF('Crop 3'!$C$15=Carbon!$B108,'Crop 3'!$V$15*VLOOKUP('Crop 3'!$E$15,Carbon!$AH$4:$AI$10,2,FALSE),0)+IF('Crop 3'!$C$16=Carbon!$B108,'Crop 3'!$V$16*VLOOKUP('Crop 3'!$E$16,Carbon!$AH$4:$AI$10,2,FALSE),0)+IF('Crop 3'!$C$19=Carbon!$B108,'Crop 3'!$V$19*VLOOKUP('Crop 3'!$E$19,Carbon!$AH$4:$AI$10,2,FALSE),0)+IF('Crop 3'!$C$20=Carbon!$B108,'Crop 3'!$V$20*VLOOKUP('Crop 3'!$E$20,Carbon!$AH$4:$AI$10,2,FALSE),0)+IF('Crop 3'!$C$21=Carbon!$B108,'Crop 3'!$V$21*VLOOKUP('Crop 3'!$E$21,Carbon!$AH$4:$AI$10,2,FALSE),0)+IF('Crop 3'!$C$49=Carbon!$B108,'Crop 3'!$V$49*VLOOKUP('Crop 3'!$E$49,Carbon!$AH$4:$AI$10,2,FALSE),0)+IF('Crop 3'!$C$50=Carbon!$B108,'Crop 3'!$V$50*VLOOKUP('Crop 3'!$E$50,Carbon!$AH$4:$AI$10,2,FALSE),0)+IF('Crop 3'!$C$51=Carbon!$B108,'Crop 3'!$V$51*VLOOKUP('Crop 3'!$E$51,Carbon!$AH$4:$AI$10,2,FALSE),0)+IF('Crop 3'!$C$52=Carbon!$B108,'Crop 3'!$V$52*VLOOKUP('Crop 3'!$E$52,Carbon!$AH$4:$AI$10,2,FALSE),0)+IF('Crop 3'!$C$53=Carbon!$B108,'Crop 3'!$V$53*VLOOKUP('Crop 3'!$E$53,Carbon!$AH$4:$AI$10,2,FALSE),0)+IF('Crop 3'!$C$56=Carbon!$B108,'Crop 3'!$V$56*VLOOKUP('Crop 3'!$E$56,Carbon!$AH$4:$AI$10,2,FALSE),0)+IF('Crop 3'!$C$57=Carbon!$B108,'Crop 3'!$V$57*VLOOKUP('Crop 3'!$E$57,Carbon!$AH$4:$AI$10,2,FALSE),0)+IF('Crop 3'!$C$58=Carbon!$B108,'Crop 3'!$V$58*VLOOKUP('Crop 3'!$E$58,Carbon!$AH$4:$AI$10,2,FALSE),0)+IF('Crop 3'!$C$59=Carbon!$B108,'Crop 3'!$V$59*VLOOKUP('Crop 3'!$E$59,Carbon!$AH$4:$AI$10,2,FALSE),0)+IF('Crop 3'!$C$62=Carbon!$B108,'Crop 3'!$V$62*VLOOKUP('Crop 3'!$E$62,Carbon!$AH$4:$AI$10,2,FALSE),0)+IF('Crop 3'!$C$63=Carbon!$B108,'Crop 3'!$V$63*VLOOKUP('Crop 3'!$E$63,Carbon!$AH$4:$AI$10,2,FALSE),0)+IF('Crop 3'!$C$64=Carbon!$B108,'Crop 3'!$V$64*VLOOKUP('Crop 3'!$E$64,Carbon!$AH$4:$AI$10,2,FALSE),0)+IF('Crop 3'!$C$65=Carbon!$B108,'Crop 3'!$V$65*VLOOKUP('Crop 3'!$E$65,Carbon!$AH$4:$AI$10,2,FALSE),0))*$AL$20,2)","v":0},{"$f":"Q108*Inputs!$D$17","v":0},{"$f":"ROUND(T108/Inputs!D$19,2)","v":0},0,null,null,0,{"$f":"W108*Inputs!$D$13","v":0},0,{"$f":"Y108*Inputs!$D$13","v":0},0,{"$f":"AA108*Inputs!$D$13","v":0},{"$f":"ROUND(AD108/Inputs!D$19,2)","v":0},0]
[null,{"$f":"Defaults!AH75","v":"Liberty"},{"$f":"ROUND((IF('Crop 1'!$C$14=Carbon!$B109,'Crop 1'!$L$14*VLOOKUP('Crop 1'!$E$14,Carbon!$AH$4:$AI$10,2,FALSE),0)+IF('Crop 1'!$C$15=Carbon!$B109,'Crop 1'!$L$15*VLOOKUP('Crop 1'!$E$15,Carbon!$AH$4:$AI$10,2,FALSE),0)+IF('Crop 1'!$C$16=Carbon!$B109,'Crop 1'!$L$16*VLOOKUP('Crop 1'!$E$16,Carbon!$AH$4:$AI$10,2,FALSE),0)+IF('Crop 1'!$C$19=Carbon!$B109,'Crop 1'!$L$19*VLOOKUP('Crop 1'!$E$19,Carbon!$AH$4:$AI$10,2,FALSE),0)+IF('Crop 1'!$C$20=Carbon!$B109,'Crop 1'!$L$20*VLOOKUP('Crop 1'!$E$20,Carbon!$AH$4:$AI$10,2,FALSE),0)+IF('Crop 1'!$C$21=Carbon!$B109,'Crop 1'!$L$21*VLOOKUP('Crop 1'!$E$21,Carbon!$AH$4:$AI$10,2,FALSE),0)+IF('Crop 1'!$C$49=Carbon!$B109,'Crop 1'!$L$49*VLOOKUP('Crop 1'!$E$49,Carbon!$AH$4:$AI$10,2,FALSE),0)+IF('Crop 1'!$C$50=Carbon!$B109,'Crop 1'!$L$50*VLOOKUP('Crop 1'!$E$50,Carbon!$AH$4:$AI$10,2,FALSE),0)+IF('Crop 1'!$C$51=Carbon!$B109,'Crop 1'!$L$51*VLOOKUP('Crop 1'!$E$51,Carbon!$AH$4:$AI$10,2,FALSE),0)+IF('Crop 1'!$C$52=Carbon!$B109,'Crop 1'!$L$52*VLOOKUP('Crop 1'!$E$52,Carbon!$AH$4:$AI$10,2,FALSE),0)+IF('Crop 1'!$C$53=Carbon!$B109,'Crop 1'!$L$53*VLOOKUP('Crop 1'!$E$53,Carbon!$AH$4:$AI$10,2,FALSE),0)+IF('Crop 1'!$C$56=Carbon!$B109,'Crop 1'!$L$56*VLOOKUP('Crop 1'!$E$56,Carbon!$AH$4:$AI$10,2,FALSE),0)+IF('Crop 1'!$C$57=Carbon!$B109,'Crop 1'!$L$57*VLOOKUP('Crop 1'!$E$57,Carbon!$AH$4:$AI$10,2,FALSE),0)+IF('Crop 1'!$C$58=Carbon!$B109,'Crop 1'!$L$58*VLOOKUP('Crop 1'!$E$58,Carbon!$AH$4:$AI$10,2,FALSE),0)+IF('Crop 1'!$C$59=Carbon!$B109,'Crop 1'!$L$59*VLOOKUP('Crop 1'!$E$59,Carbon!$AH$4:$AI$10,2,FALSE),0)+IF('Crop 1'!$C$62=Carbon!$B109,'Crop 1'!$L$62*VLOOKUP('Crop 1'!$E$62,Carbon!$AH$4:$AI$10,2,FALSE),0)+IF('Crop 1'!$C$63=Carbon!$B109,'Crop 1'!$L$63*VLOOKUP('Crop 1'!$E$63,Carbon!$AH$4:$AI$10,2,FALSE),0)+IF('Crop 1'!$C$64=Carbon!$B109,'Crop 1'!$L$64*VLOOKUP('Crop 1'!$E$64,Carbon!$AH$4:$AI$10,2,FALSE),0)+IF('Crop 1'!$C$65=Carbon!$B109,'Crop 1'!$L$65*VLOOKUP('Crop 1'!$E$65,Carbon!$AH$4:$AI$10,2,FALSE),0))*$AL$20,2)","v":6.66},{"$f":"C109*Inputs!$D$13","v":1998},{"$f":"ROUND((IF('Crop 2'!$C$14=Carbon!$B109,'Crop 2'!$L$14*VLOOKUP('Crop 2'!$E$14,Carbon!$AH$4:$AI$10,2,FALSE),0)+IF('Crop 2'!$C$15=Carbon!$B109,'Crop 2'!$L$15*VLOOKUP('Crop 2'!$E$15,Carbon!$AH$4:$AI$10,2,FALSE),0)+IF('Crop 2'!$C$16=Carbon!$B109,'Crop 2'!$L$16*VLOOKUP('Crop 2'!$E$16,Carbon!$AH$4:$AI$10,2,FALSE),0)+IF('Crop 2'!$C$19=Carbon!$B109,'Crop 2'!$L$19*VLOOKUP('Crop 2'!$E$19,Carbon!$AH$4:$AI$10,2,FALSE),0)+IF('Crop 2'!$C$20=Carbon!$B109,'Crop 2'!$L$20*VLOOKUP('Crop 2'!$E$20,Carbon!$AH$4:$AI$10,2,FALSE),0)+IF('Crop 2'!$C$21=Carbon!$B109,'Crop 2'!$L$21*VLOOKUP('Crop 2'!$E$21,Carbon!$AH$4:$AI$10,2,FALSE),0)+IF('Crop 2'!$C$49=Carbon!$B109,'Crop 2'!$L$49*VLOOKUP('Crop 2'!$E$49,Carbon!$AH$4:$AI$10,2,FALSE),0)+IF('Crop 2'!$C$50=Carbon!$B109,'Crop 2'!$L$50*VLOOKUP('Crop 2'!$E$50,Carbon!$AH$4:$AI$10,2,FALSE),0)+IF('Crop 2'!$C$51=Carbon!$B109,'Crop 2'!$L$51*VLOOKUP('Crop 2'!$E$51,Carbon!$AH$4:$AI$10,2,FALSE),0)+IF('Crop 2'!$C$52=Carbon!$B109,'Crop 2'!$L$52*VLOOKUP('Crop 2'!$E$52,Carbon!$AH$4:$AI$10,2,FALSE),0)+IF('Crop 2'!$C$53=Carbon!$B109,'Crop 2'!$L$53*VLOOKUP('Crop 2'!$E$53,Carbon!$AH$4:$AI$10,2,FALSE),0)+IF('Crop 2'!$C$56=Carbon!$B109,'Crop 2'!$L$56*VLOOKUP('Crop 2'!$E$56,Carbon!$AH$4:$AI$10,2,FALSE),0)+IF('Crop 2'!$C$57=Carbon!$B109,'Crop 2'!$L$57*VLOOKUP('Crop 2'!$E$57,Carbon!$AH$4:$AI$10,2,FALSE),0)+IF('Crop 2'!$C$58=Carbon!$B109,'Crop 2'!$L$58*VLOOKUP('Crop 2'!$E$58,Carbon!$AH$4:$AI$10,2,FALSE),0)+IF('Crop 2'!$C$59=Carbon!$B109,'Crop 2'!$L$59*VLOOKUP('Crop 2'!$E$59,Carbon!$AH$4:$AI$10,2,FALSE),0)+IF('Crop 2'!$C$62=Carbon!$B109,'Crop 2'!$L$62*VLOOKUP('Crop 2'!$E$62,Carbon!$AH$4:$AI$10,2,FALSE),0)+IF('Crop 2'!$C$63=Carbon!$B109,'Crop 2'!$L$63*VLOOKUP('Crop 2'!$E$63,Carbon!$AH$4:$AI$10,2,FALSE),0)+IF('Crop 2'!$C$64=Carbon!$B109,'Crop 2'!$L$64*VLOOKUP('Crop 2'!$E$64,Carbon!$AH$4:$AI$10,2,FALSE),0)+IF('Crop 2'!$C$65=Carbon!$B109,'Crop 2'!$L$65*VLOOKUP('Crop 2'!$E$65,Carbon!$AH$4:$AI$10,2,FALSE),0))*$AL$20,2)","v":0},{"$f":"E109*Inputs!$D$15","v":0},{"$f":"ROUND((IF('Crop 3'!$C$14=Carbon!$B109,'Crop 3'!$L$14*VLOOKUP('Crop 3'!$E$14,Carbon!$AH$4:$AI$10,2,FALSE),0)+IF('Crop 3'!$C$15=Carbon!$B109,'Crop 3'!$L$15*VLOOKUP('Crop 3'!$E$15,Carbon!$AH$4:$AI$10,2,FALSE),0)+IF('Crop 3'!$C$16=Carbon!$B109,'Crop 3'!$L$16*VLOOKUP('Crop 3'!$E$16,Carbon!$AH$4:$AI$10,2,FALSE),0)+IF('Crop 3'!$C$19=Carbon!$B109,'Crop 3'!$L$19*VLOOKUP('Crop 3'!$E$19,Carbon!$AH$4:$AI$10,2,FALSE),0)+IF('Crop 3'!$C$20=Carbon!$B109,'Crop 3'!$L$20*VLOOKUP('Crop 3'!$E$20,Carbon!$AH$4:$AI$10,2,FALSE),0)+IF('Crop 3'!$C$21=Carbon!$B109,'Crop 3'!$L$21*VLOOKUP('Crop 3'!$E$21,Carbon!$AH$4:$AI$10,2,FALSE),0)+IF('Crop 3'!$C$49=Carbon!$B109,'Crop 3'!$L$49*VLOOKUP('Crop 3'!$E$49,Carbon!$AH$4:$AI$10,2,FALSE),0)+IF('Crop 3'!$C$50=Carbon!$B109,'Crop 3'!$L$50*VLOOKUP('Crop 3'!$E$50,Carbon!$AH$4:$AI$10,2,FALSE),0)+IF('Crop 3'!$C$51=Carbon!$B109,'Crop 3'!$L$51*VLOOKUP('Crop 3'!$E$51,Carbon!$AH$4:$AI$10,2,FALSE),0)+IF('Crop 3'!$C$52=Carbon!$B109,'Crop 3'!$L$52*VLOOKUP('Crop 3'!$E$52,Carbon!$AH$4:$AI$10,2,FALSE),0)+IF('Crop 3'!$C$53=Carbon!$B109,'Crop 3'!$L$53*VLOOKUP('Crop 3'!$E$53,Carbon!$AH$4:$AI$10,2,FALSE),0)+IF('Crop 3'!$C$56=Carbon!$B109,'Crop 3'!$L$56*VLOOKUP('Crop 3'!$E$56,Carbon!$AH$4:$AI$10,2,FALSE),0)+IF('Crop 3'!$C$57=Carbon!$B109,'Crop 3'!$L$57*VLOOKUP('Crop 3'!$E$57,Carbon!$AH$4:$AI$10,2,FALSE),0)+IF('Crop 3'!$C$58=Carbon!$B109,'Crop 3'!$L$58*VLOOKUP('Crop 3'!$E$58,Carbon!$AH$4:$AI$10,2,FALSE),0)+IF('Crop 3'!$C$59=Carbon!$B109,'Crop 3'!$L$59*VLOOKUP('Crop 3'!$E$59,Carbon!$AH$4:$AI$10,2,FALSE),0)+IF('Crop 3'!$C$62=Carbon!$B109,'Crop 3'!$L$62*VLOOKUP('Crop 3'!$E$62,Carbon!$AH$4:$AI$10,2,FALSE),0)+IF('Crop 3'!$C$63=Carbon!$B109,'Crop 3'!$L$63*VLOOKUP('Crop 3'!$E$63,Carbon!$AH$4:$AI$10,2,FALSE),0)+IF('Crop 3'!$C$64=Carbon!$B109,'Crop 3'!$L$64*VLOOKUP('Crop 3'!$E$64,Carbon!$AH$4:$AI$10,2,FALSE),0)+IF('Crop 3'!$C$65=Carbon!$B109,'Crop 3'!$L$65*VLOOKUP('Crop 3'!$E$65,Carbon!$AH$4:$AI$10,2,FALSE),0))*$AL$20,2)","v":0},{"$f":"G109*Inputs!$D$17","v":0},{"$f":"ROUND(J109/Inputs!D$19,2)","v":3.33},1998,null,null,{"$f":"ROUND((IF('Crop 1'!$C$14=Carbon!$B109,'Crop 1'!$V$14*VLOOKUP('Crop 1'!$E$14,Carbon!$AH$4:$AI$10,2,FALSE),0)+IF('Crop 1'!$C$15=Carbon!$B109,'Crop 1'!$V$15*VLOOKUP('Crop 1'!$E$15,Carbon!$AH$4:$AI$10,2,FALSE),0)+IF('Crop 1'!$C$16=Carbon!$B109,'Crop 1'!$V$16*VLOOKUP('Crop 1'!$E$16,Carbon!$AH$4:$AI$10,2,FALSE),0)+IF('Crop 1'!$C$19=Carbon!$B109,'Crop 1'!$V$19*VLOOKUP('Crop 1'!$E$19,Carbon!$AH$4:$AI$10,2,FALSE),0)+IF('Crop 1'!$C$20=Carbon!$B109,'Crop 1'!$V$20*VLOOKUP('Crop 1'!$E$20,Carbon!$AH$4:$AI$10,2,FALSE),0)+IF('Crop 1'!$C$21=Carbon!$B109,'Crop 1'!$V$21*VLOOKUP('Crop 1'!$E$21,Carbon!$AH$4:$AI$10,2,FALSE),0)+IF('Crop 1'!$C$49=Carbon!$B109,'Crop 1'!$V$49*VLOOKUP('Crop 1'!$E$49,Carbon!$AH$4:$AI$10,2,FALSE),0)+IF('Crop 1'!$C$50=Carbon!$B109,'Crop 1'!$V$50*VLOOKUP('Crop 1'!$E$50,Carbon!$AH$4:$AI$10,2,FALSE),0)+IF('Crop 1'!$C$51=Carbon!$B109,'Crop 1'!$V$51*VLOOKUP('Crop 1'!$E$51,Carbon!$AH$4:$AI$10,2,FALSE),0)+IF('Crop 1'!$C$52=Carbon!$B109,'Crop 1'!$V$52*VLOOKUP('Crop 1'!$E$52,Carbon!$AH$4:$AI$10,2,FALSE),0)+IF('Crop 1'!$C$53=Carbon!$B109,'Crop 1'!$V$53*VLOOKUP('Crop 1'!$E$53,Carbon!$AH$4:$AI$10,2,FALSE),0)+IF('Crop 1'!$C$56=Carbon!$B109,'Crop 1'!$V$56*VLOOKUP('Crop 1'!$E$56,Carbon!$AH$4:$AI$10,2,FALSE),0)+IF('Crop 1'!$C$57=Carbon!$B109,'Crop 1'!$V$57*VLOOKUP('Crop 1'!$E$57,Carbon!$AH$4:$AI$10,2,FALSE),0)+IF('Crop 1'!$C$58=Carbon!$B109,'Crop 1'!$V$58*VLOOKUP('Crop 1'!$E$58,Carbon!$AH$4:$AI$10,2,FALSE),0)+IF('Crop 1'!$C$59=Carbon!$B109,'Crop 1'!$V$59*VLOOKUP('Crop 1'!$E$59,Carbon!$AH$4:$AI$10,2,FALSE),0)+IF('Crop 1'!$C$62=Carbon!$B109,'Crop 1'!$V$62*VLOOKUP('Crop 1'!$E$62,Carbon!$AH$4:$AI$10,2,FALSE),0)+IF('Crop 1'!$C$63=Carbon!$B109,'Crop 1'!$V$63*VLOOKUP('Crop 1'!$E$63,Carbon!$AH$4:$AI$10,2,FALSE),0)+IF('Crop 1'!$C$64=Carbon!$B109,'Crop 1'!$V$64*VLOOKUP('Crop 1'!$E$64,Carbon!$AH$4:$AI$10,2,FALSE),0)+IF('Crop 1'!$C$65=Carbon!$B109,'Crop 1'!$V$65*VLOOKUP('Crop 1'!$E$65,Carbon!$AH$4:$AI$10,2,FALSE),0))*$AL$20,2)","v":5.19},{"$f":"M109*Inputs!$D$13","v":1557.0000000000002},{"$f":"ROUND((IF('Crop 2'!$C$14=Carbon!$B109,'Crop 2'!$V$14*VLOOKUP('Crop 2'!$E$14,Carbon!$AH$4:$AI$10,2,FALSE),0)+IF('Crop 2'!$C$15=Carbon!$B109,'Crop 2'!$V$15*VLOOKUP('Crop 2'!$E$15,Carbon!$AH$4:$AI$10,2,FALSE),0)+IF('Crop 2'!$C$16=Carbon!$B109,'Crop 2'!$V$16*VLOOKUP('Crop 2'!$E$16,Carbon!$AH$4:$AI$10,2,FALSE),0)+IF('Crop 2'!$C$19=Carbon!$B109,'Crop 2'!$V$19*VLOOKUP('Crop 2'!$E$19,Carbon!$AH$4:$AI$10,2,FALSE),0)+IF('Crop 2'!$C$20=Carbon!$B109,'Crop 2'!$V$20*VLOOKUP('Crop 2'!$E$20,Carbon!$AH$4:$AI$10,2,FALSE),0)+IF('Crop 2'!$C$21=Carbon!$B109,'Crop 2'!$V$21*VLOOKUP('Crop 2'!$E$21,Carbon!$AH$4:$AI$10,2,FALSE),0)+IF('Crop 2'!$C$49=Carbon!$B109,'Crop 2'!$V$49*VLOOKUP('Crop 2'!$E$49,Carbon!$AH$4:$AI$10,2,FALSE),0)+IF('Crop 2'!$C$50=Carbon!$B109,'Crop 2'!$V$50*VLOOKUP('Crop 2'!$E$50,Carbon!$AH$4:$AI$10,2,FALSE),0)+IF('Crop 2'!$C$51=Carbon!$B109,'Crop 2'!$V$51*VLOOKUP('Crop 2'!$E$51,Carbon!$AH$4:$AI$10,2,FALSE),0)+IF('Crop 2'!$C$52=Carbon!$B109,'Crop 2'!$V$52*VLOOKUP('Crop 2'!$E$52,Carbon!$AH$4:$AI$10,2,FALSE),0)+IF('Crop 2'!$C$53=Carbon!$B109,'Crop 2'!$V$53*VLOOKUP('Crop 2'!$E$53,Carbon!$AH$4:$AI$10,2,FALSE),0)+IF('Crop 2'!$C$56=Carbon!$B109,'Crop 2'!$V$56*VLOOKUP('Crop 2'!$E$56,Carbon!$AH$4:$AI$10,2,FALSE),0)+IF('Crop 2'!$C$57=Carbon!$B109,'Crop 2'!$V$57*VLOOKUP('Crop 2'!$E$57,Carbon!$AH$4:$AI$10,2,FALSE),0)+IF('Crop 2'!$C$58=Carbon!$B109,'Crop 2'!$V$58*VLOOKUP('Crop 2'!$E$58,Carbon!$AH$4:$AI$10,2,FALSE),0)+IF('Crop 2'!$C$59=Carbon!$B109,'Crop 2'!$V$59*VLOOKUP('Crop 2'!$E$59,Carbon!$AH$4:$AI$10,2,FALSE),0)+IF('Crop 2'!$C$62=Carbon!$B109,'Crop 2'!$V$62*VLOOKUP('Crop 2'!$E$62,Carbon!$AH$4:$AI$10,2,FALSE),0)+IF('Crop 2'!$C$63=Carbon!$B109,'Crop 2'!$V$63*VLOOKUP('Crop 2'!$E$63,Carbon!$AH$4:$AI$10,2,FALSE),0)+IF('Crop 2'!$C$64=Carbon!$B109,'Crop 2'!$V$64*VLOOKUP('Crop 2'!$E$64,Carbon!$AH$4:$AI$10,2,FALSE),0)+IF('Crop 2'!$C$65=Carbon!$B109,'Crop 2'!$V$65*VLOOKUP('Crop 2'!$E$65,Carbon!$AH$4:$AI$10,2,FALSE),0))*$AL$20,2)","v":0},{"$f":"O109*Inputs!$D$15","v":0},{"$f":"ROUND((IF('Crop 3'!$C$14=Carbon!$B109,'Crop 3'!$V$14*VLOOKUP('Crop 3'!$E$14,Carbon!$AH$4:$AI$10,2,FALSE),0)+IF('Crop 3'!$C$15=Carbon!$B109,'Crop 3'!$V$15*VLOOKUP('Crop 3'!$E$15,Carbon!$AH$4:$AI$10,2,FALSE),0)+IF('Crop 3'!$C$16=Carbon!$B109,'Crop 3'!$V$16*VLOOKUP('Crop 3'!$E$16,Carbon!$AH$4:$AI$10,2,FALSE),0)+IF('Crop 3'!$C$19=Carbon!$B109,'Crop 3'!$V$19*VLOOKUP('Crop 3'!$E$19,Carbon!$AH$4:$AI$10,2,FALSE),0)+IF('Crop 3'!$C$20=Carbon!$B109,'Crop 3'!$V$20*VLOOKUP('Crop 3'!$E$20,Carbon!$AH$4:$AI$10,2,FALSE),0)+IF('Crop 3'!$C$21=Carbon!$B109,'Crop 3'!$V$21*VLOOKUP('Crop 3'!$E$21,Carbon!$AH$4:$AI$10,2,FALSE),0)+IF('Crop 3'!$C$49=Carbon!$B109,'Crop 3'!$V$49*VLOOKUP('Crop 3'!$E$49,Carbon!$AH$4:$AI$10,2,FALSE),0)+IF('Crop 3'!$C$50=Carbon!$B109,'Crop 3'!$V$50*VLOOKUP('Crop 3'!$E$50,Carbon!$AH$4:$AI$10,2,FALSE),0)+IF('Crop 3'!$C$51=Carbon!$B109,'Crop 3'!$V$51*VLOOKUP('Crop 3'!$E$51,Carbon!$AH$4:$AI$10,2,FALSE),0)+IF('Crop 3'!$C$52=Carbon!$B109,'Crop 3'!$V$52*VLOOKUP('Crop 3'!$E$52,Carbon!$AH$4:$AI$10,2,FALSE),0)+IF('Crop 3'!$C$53=Carbon!$B109,'Crop 3'!$V$53*VLOOKUP('Crop 3'!$E$53,Carbon!$AH$4:$AI$10,2,FALSE),0)+IF('Crop 3'!$C$56=Carbon!$B109,'Crop 3'!$V$56*VLOOKUP('Crop 3'!$E$56,Carbon!$AH$4:$AI$10,2,FALSE),0)+IF('Crop 3'!$C$57=Carbon!$B109,'Crop 3'!$V$57*VLOOKUP('Crop 3'!$E$57,Carbon!$AH$4:$AI$10,2,FALSE),0)+IF('Crop 3'!$C$58=Carbon!$B109,'Crop 3'!$V$58*VLOOKUP('Crop 3'!$E$58,Carbon!$AH$4:$AI$10,2,FALSE),0)+IF('Crop 3'!$C$59=Carbon!$B109,'Crop 3'!$V$59*VLOOKUP('Crop 3'!$E$59,Carbon!$AH$4:$AI$10,2,FALSE),0)+IF('Crop 3'!$C$62=Carbon!$B109,'Crop 3'!$V$62*VLOOKUP('Crop 3'!$E$62,Carbon!$AH$4:$AI$10,2,FALSE),0)+IF('Crop 3'!$C$63=Carbon!$B109,'Crop 3'!$V$63*VLOOKUP('Crop 3'!$E$63,Carbon!$AH$4:$AI$10,2,FALSE),0)+IF('Crop 3'!$C$64=Carbon!$B109,'Crop 3'!$V$64*VLOOKUP('Crop 3'!$E$64,Carbon!$AH$4:$AI$10,2,FALSE),0)+IF('Crop 3'!$C$65=Carbon!$B109,'Crop 3'!$V$65*VLOOKUP('Crop 3'!$E$65,Carbon!$AH$4:$AI$10,2,FALSE),0))*$AL$20,2)","v":0},{"$f":"Q109*Inputs!$D$17","v":0},{"$f":"ROUND(T109/Inputs!D$19,2)","v":2.6},1557,null,null,-1.4699999999999998,{"$f":"W109*Inputs!$D$13","v":-440.99999999999994},0,{"$f":"Y109*Inputs!$D$13","v":0},0,{"$f":"AA109*Inputs!$D$13","v":0},{"$f":"ROUND(AD109/Inputs!D$19,2)","v":-0.74},-441]
[null,{"$f":"Defaults!AH76","v":"Linex"},{"$f":"ROUND((IF('Crop 1'!$C$14=Carbon!$B110,'Crop 1'!$L$14*VLOOKUP('Crop 1'!$E$14,Carbon!$AH$4:$AI$10,2,FALSE),0)+IF('Crop 1'!$C$15=Carbon!$B110,'Crop 1'!$L$15*VLOOKUP('Crop 1'!$E$15,Carbon!$AH$4:$AI$10,2,FALSE),0)+IF('Crop 1'!$C$16=Carbon!$B110,'Crop 1'!$L$16*VLOOKUP('Crop 1'!$E$16,Carbon!$AH$4:$AI$10,2,FALSE),0)+IF('Crop 1'!$C$19=Carbon!$B110,'Crop 1'!$L$19*VLOOKUP('Crop 1'!$E$19,Carbon!$AH$4:$AI$10,2,FALSE),0)+IF('Crop 1'!$C$20=Carbon!$B110,'Crop 1'!$L$20*VLOOKUP('Crop 1'!$E$20,Carbon!$AH$4:$AI$10,2,FALSE),0)+IF('Crop 1'!$C$21=Carbon!$B110,'Crop 1'!$L$21*VLOOKUP('Crop 1'!$E$21,Carbon!$AH$4:$AI$10,2,FALSE),0)+IF('Crop 1'!$C$49=Carbon!$B110,'Crop 1'!$L$49*VLOOKUP('Crop 1'!$E$49,Carbon!$AH$4:$AI$10,2,FALSE),0)+IF('Crop 1'!$C$50=Carbon!$B110,'Crop 1'!$L$50*VLOOKUP('Crop 1'!$E$50,Carbon!$AH$4:$AI$10,2,FALSE),0)+IF('Crop 1'!$C$51=Carbon!$B110,'Crop 1'!$L$51*VLOOKUP('Crop 1'!$E$51,Carbon!$AH$4:$AI$10,2,FALSE),0)+IF('Crop 1'!$C$52=Carbon!$B110,'Crop 1'!$L$52*VLOOKUP('Crop 1'!$E$52,Carbon!$AH$4:$AI$10,2,FALSE),0)+IF('Crop 1'!$C$53=Carbon!$B110,'Crop 1'!$L$53*VLOOKUP('Crop 1'!$E$53,Carbon!$AH$4:$AI$10,2,FALSE),0)+IF('Crop 1'!$C$56=Carbon!$B110,'Crop 1'!$L$56*VLOOKUP('Crop 1'!$E$56,Carbon!$AH$4:$AI$10,2,FALSE),0)+IF('Crop 1'!$C$57=Carbon!$B110,'Crop 1'!$L$57*VLOOKUP('Crop 1'!$E$57,Carbon!$AH$4:$AI$10,2,FALSE),0)+IF('Crop 1'!$C$58=Carbon!$B110,'Crop 1'!$L$58*VLOOKUP('Crop 1'!$E$58,Carbon!$AH$4:$AI$10,2,FALSE),0)+IF('Crop 1'!$C$59=Carbon!$B110,'Crop 1'!$L$59*VLOOKUP('Crop 1'!$E$59,Carbon!$AH$4:$AI$10,2,FALSE),0)+IF('Crop 1'!$C$62=Carbon!$B110,'Crop 1'!$L$62*VLOOKUP('Crop 1'!$E$62,Carbon!$AH$4:$AI$10,2,FALSE),0)+IF('Crop 1'!$C$63=Carbon!$B110,'Crop 1'!$L$63*VLOOKUP('Crop 1'!$E$63,Carbon!$AH$4:$AI$10,2,FALSE),0)+IF('Crop 1'!$C$64=Carbon!$B110,'Crop 1'!$L$64*VLOOKUP('Crop 1'!$E$64,Carbon!$AH$4:$AI$10,2,FALSE),0)+IF('Crop 1'!$C$65=Carbon!$B110,'Crop 1'!$L$65*VLOOKUP('Crop 1'!$E$65,Carbon!$AH$4:$AI$10,2,FALSE),0))*$AL$20,2)","v":0},{"$f":"C110*Inputs!$D$13","v":0},{"$f":"ROUND((IF('Crop 2'!$C$14=Carbon!$B110,'Crop 2'!$L$14*VLOOKUP('Crop 2'!$E$14,Carbon!$AH$4:$AI$10,2,FALSE),0)+IF('Crop 2'!$C$15=Carbon!$B110,'Crop 2'!$L$15*VLOOKUP('Crop 2'!$E$15,Carbon!$AH$4:$AI$10,2,FALSE),0)+IF('Crop 2'!$C$16=Carbon!$B110,'Crop 2'!$L$16*VLOOKUP('Crop 2'!$E$16,Carbon!$AH$4:$AI$10,2,FALSE),0)+IF('Crop 2'!$C$19=Carbon!$B110,'Crop 2'!$L$19*VLOOKUP('Crop 2'!$E$19,Carbon!$AH$4:$AI$10,2,FALSE),0)+IF('Crop 2'!$C$20=Carbon!$B110,'Crop 2'!$L$20*VLOOKUP('Crop 2'!$E$20,Carbon!$AH$4:$AI$10,2,FALSE),0)+IF('Crop 2'!$C$21=Carbon!$B110,'Crop 2'!$L$21*VLOOKUP('Crop 2'!$E$21,Carbon!$AH$4:$AI$10,2,FALSE),0)+IF('Crop 2'!$C$49=Carbon!$B110,'Crop 2'!$L$49*VLOOKUP('Crop 2'!$E$49,Carbon!$AH$4:$AI$10,2,FALSE),0)+IF('Crop 2'!$C$50=Carbon!$B110,'Crop 2'!$L$50*VLOOKUP('Crop 2'!$E$50,Carbon!$AH$4:$AI$10,2,FALSE),0)+IF('Crop 2'!$C$51=Carbon!$B110,'Crop 2'!$L$51*VLOOKUP('Crop 2'!$E$51,Carbon!$AH$4:$AI$10,2,FALSE),0)+IF('Crop 2'!$C$52=Carbon!$B110,'Crop 2'!$L$52*VLOOKUP('Crop 2'!$E$52,Carbon!$AH$4:$AI$10,2,FALSE),0)+IF('Crop 2'!$C$53=Carbon!$B110,'Crop 2'!$L$53*VLOOKUP('Crop 2'!$E$53,Carbon!$AH$4:$AI$10,2,FALSE),0)+IF('Crop 2'!$C$56=Carbon!$B110,'Crop 2'!$L$56*VLOOKUP('Crop 2'!$E$56,Carbon!$AH$4:$AI$10,2,FALSE),0)+IF('Crop 2'!$C$57=Carbon!$B110,'Crop 2'!$L$57*VLOOKUP('Crop 2'!$E$57,Carbon!$AH$4:$AI$10,2,FALSE),0)+IF('Crop 2'!$C$58=Carbon!$B110,'Crop 2'!$L$58*VLOOKUP('Crop 2'!$E$58,Carbon!$AH$4:$AI$10,2,FALSE),0)+IF('Crop 2'!$C$59=Carbon!$B110,'Crop 2'!$L$59*VLOOKUP('Crop 2'!$E$59,Carbon!$AH$4:$AI$10,2,FALSE),0)+IF('Crop 2'!$C$62=Carbon!$B110,'Crop 2'!$L$62*VLOOKUP('Crop 2'!$E$62,Carbon!$AH$4:$AI$10,2,FALSE),0)+IF('Crop 2'!$C$63=Carbon!$B110,'Crop 2'!$L$63*VLOOKUP('Crop 2'!$E$63,Carbon!$AH$4:$AI$10,2,FALSE),0)+IF('Crop 2'!$C$64=Carbon!$B110,'Crop 2'!$L$64*VLOOKUP('Crop 2'!$E$64,Carbon!$AH$4:$AI$10,2,FALSE),0)+IF('Crop 2'!$C$65=Carbon!$B110,'Crop 2'!$L$65*VLOOKUP('Crop 2'!$E$65,Carbon!$AH$4:$AI$10,2,FALSE),0))*$AL$20,2)","v":0},{"$f":"E110*Inputs!$D$15","v":0},{"$f":"ROUND((IF('Crop 3'!$C$14=Carbon!$B110,'Crop 3'!$L$14*VLOOKUP('Crop 3'!$E$14,Carbon!$AH$4:$AI$10,2,FALSE),0)+IF('Crop 3'!$C$15=Carbon!$B110,'Crop 3'!$L$15*VLOOKUP('Crop 3'!$E$15,Carbon!$AH$4:$AI$10,2,FALSE),0)+IF('Crop 3'!$C$16=Carbon!$B110,'Crop 3'!$L$16*VLOOKUP('Crop 3'!$E$16,Carbon!$AH$4:$AI$10,2,FALSE),0)+IF('Crop 3'!$C$19=Carbon!$B110,'Crop 3'!$L$19*VLOOKUP('Crop 3'!$E$19,Carbon!$AH$4:$AI$10,2,FALSE),0)+IF('Crop 3'!$C$20=Carbon!$B110,'Crop 3'!$L$20*VLOOKUP('Crop 3'!$E$20,Carbon!$AH$4:$AI$10,2,FALSE),0)+IF('Crop 3'!$C$21=Carbon!$B110,'Crop 3'!$L$21*VLOOKUP('Crop 3'!$E$21,Carbon!$AH$4:$AI$10,2,FALSE),0)+IF('Crop 3'!$C$49=Carbon!$B110,'Crop 3'!$L$49*VLOOKUP('Crop 3'!$E$49,Carbon!$AH$4:$AI$10,2,FALSE),0)+IF('Crop 3'!$C$50=Carbon!$B110,'Crop 3'!$L$50*VLOOKUP('Crop 3'!$E$50,Carbon!$AH$4:$AI$10,2,FALSE),0)+IF('Crop 3'!$C$51=Carbon!$B110,'Crop 3'!$L$51*VLOOKUP('Crop 3'!$E$51,Carbon!$AH$4:$AI$10,2,FALSE),0)+IF('Crop 3'!$C$52=Carbon!$B110,'Crop 3'!$L$52*VLOOKUP('Crop 3'!$E$52,Carbon!$AH$4:$AI$10,2,FALSE),0)+IF('Crop 3'!$C$53=Carbon!$B110,'Crop 3'!$L$53*VLOOKUP('Crop 3'!$E$53,Carbon!$AH$4:$AI$10,2,FALSE),0)+IF('Crop 3'!$C$56=Carbon!$B110,'Crop 3'!$L$56*VLOOKUP('Crop 3'!$E$56,Carbon!$AH$4:$AI$10,2,FALSE),0)+IF('Crop 3'!$C$57=Carbon!$B110,'Crop 3'!$L$57*VLOOKUP('Crop 3'!$E$57,Carbon!$AH$4:$AI$10,2,FALSE),0)+IF('Crop 3'!$C$58=Carbon!$B110,'Crop 3'!$L$58*VLOOKUP('Crop 3'!$E$58,Carbon!$AH$4:$AI$10,2,FALSE),0)+IF('Crop 3'!$C$59=Carbon!$B110,'Crop 3'!$L$59*VLOOKUP('Crop 3'!$E$59,Carbon!$AH$4:$AI$10,2,FALSE),0)+IF('Crop 3'!$C$62=Carbon!$B110,'Crop 3'!$L$62*VLOOKUP('Crop 3'!$E$62,Carbon!$AH$4:$AI$10,2,FALSE),0)+IF('Crop 3'!$C$63=Carbon!$B110,'Crop 3'!$L$63*VLOOKUP('Crop 3'!$E$63,Carbon!$AH$4:$AI$10,2,FALSE),0)+IF('Crop 3'!$C$64=Carbon!$B110,'Crop 3'!$L$64*VLOOKUP('Crop 3'!$E$64,Carbon!$AH$4:$AI$10,2,FALSE),0)+IF('Crop 3'!$C$65=Carbon!$B110,'Crop 3'!$L$65*VLOOKUP('Crop 3'!$E$65,Carbon!$AH$4:$AI$10,2,FALSE),0))*$AL$20,2)","v":0},{"$f":"G110*Inputs!$D$17","v":0},{"$f":"ROUND(J110/Inputs!D$19,2)","v":0},0,null,null,{"$f":"ROUND((IF('Crop 1'!$C$14=Carbon!$B110,'Crop 1'!$V$14*VLOOKUP('Crop 1'!$E$14,Carbon!$AH$4:$AI$10,2,FALSE),0)+IF('Crop 1'!$C$15=Carbon!$B110,'Crop 1'!$V$15*VLOOKUP('Crop 1'!$E$15,Carbon!$AH$4:$AI$10,2,FALSE),0)+IF('Crop 1'!$C$16=Carbon!$B110,'Crop 1'!$V$16*VLOOKUP('Crop 1'!$E$16,Carbon!$AH$4:$AI$10,2,FALSE),0)+IF('Crop 1'!$C$19=Carbon!$B110,'Crop 1'!$V$19*VLOOKUP('Crop 1'!$E$19,Carbon!$AH$4:$AI$10,2,FALSE),0)+IF('Crop 1'!$C$20=Carbon!$B110,'Crop 1'!$V$20*VLOOKUP('Crop 1'!$E$20,Carbon!$AH$4:$AI$10,2,FALSE),0)+IF('Crop 1'!$C$21=Carbon!$B110,'Crop 1'!$V$21*VLOOKUP('Crop 1'!$E$21,Carbon!$AH$4:$AI$10,2,FALSE),0)+IF('Crop 1'!$C$49=Carbon!$B110,'Crop 1'!$V$49*VLOOKUP('Crop 1'!$E$49,Carbon!$AH$4:$AI$10,2,FALSE),0)+IF('Crop 1'!$C$50=Carbon!$B110,'Crop 1'!$V$50*VLOOKUP('Crop 1'!$E$50,Carbon!$AH$4:$AI$10,2,FALSE),0)+IF('Crop 1'!$C$51=Carbon!$B110,'Crop 1'!$V$51*VLOOKUP('Crop 1'!$E$51,Carbon!$AH$4:$AI$10,2,FALSE),0)+IF('Crop 1'!$C$52=Carbon!$B110,'Crop 1'!$V$52*VLOOKUP('Crop 1'!$E$52,Carbon!$AH$4:$AI$10,2,FALSE),0)+IF('Crop 1'!$C$53=Carbon!$B110,'Crop 1'!$V$53*VLOOKUP('Crop 1'!$E$53,Carbon!$AH$4:$AI$10,2,FALSE),0)+IF('Crop 1'!$C$56=Carbon!$B110,'Crop 1'!$V$56*VLOOKUP('Crop 1'!$E$56,Carbon!$AH$4:$AI$10,2,FALSE),0)+IF('Crop 1'!$C$57=Carbon!$B110,'Crop 1'!$V$57*VLOOKUP('Crop 1'!$E$57,Carbon!$AH$4:$AI$10,2,FALSE),0)+IF('Crop 1'!$C$58=Carbon!$B110,'Crop 1'!$V$58*VLOOKUP('Crop 1'!$E$58,Carbon!$AH$4:$AI$10,2,FALSE),0)+IF('Crop 1'!$C$59=Carbon!$B110,'Crop 1'!$V$59*VLOOKUP('Crop 1'!$E$59,Carbon!$AH$4:$AI$10,2,FALSE),0)+IF('Crop 1'!$C$62=Carbon!$B110,'Crop 1'!$V$62*VLOOKUP('Crop 1'!$E$62,Carbon!$AH$4:$AI$10,2,FALSE),0)+IF('Crop 1'!$C$63=Carbon!$B110,'Crop 1'!$V$63*VLOOKUP('Crop 1'!$E$63,Carbon!$AH$4:$AI$10,2,FALSE),0)+IF('Crop 1'!$C$64=Carbon!$B110,'Crop 1'!$V$64*VLOOKUP('Crop 1'!$E$64,Carbon!$AH$4:$AI$10,2,FALSE),0)+IF('Crop 1'!$C$65=Carbon!$B110,'Crop 1'!$V$65*VLOOKUP('Crop 1'!$E$65,Carbon!$AH$4:$AI$10,2,FALSE),0))*$AL$20,2)","v":0},{"$f":"M110*Inputs!$D$13","v":0},{"$f":"ROUND((IF('Crop 2'!$C$14=Carbon!$B110,'Crop 2'!$V$14*VLOOKUP('Crop 2'!$E$14,Carbon!$AH$4:$AI$10,2,FALSE),0)+IF('Crop 2'!$C$15=Carbon!$B110,'Crop 2'!$V$15*VLOOKUP('Crop 2'!$E$15,Carbon!$AH$4:$AI$10,2,FALSE),0)+IF('Crop 2'!$C$16=Carbon!$B110,'Crop 2'!$V$16*VLOOKUP('Crop 2'!$E$16,Carbon!$AH$4:$AI$10,2,FALSE),0)+IF('Crop 2'!$C$19=Carbon!$B110,'Crop 2'!$V$19*VLOOKUP('Crop 2'!$E$19,Carbon!$AH$4:$AI$10,2,FALSE),0)+IF('Crop 2'!$C$20=Carbon!$B110,'Crop 2'!$V$20*VLOOKUP('Crop 2'!$E$20,Carbon!$AH$4:$AI$10,2,FALSE),0)+IF('Crop 2'!$C$21=Carbon!$B110,'Crop 2'!$V$21*VLOOKUP('Crop 2'!$E$21,Carbon!$AH$4:$AI$10,2,FALSE),0)+IF('Crop 2'!$C$49=Carbon!$B110,'Crop 2'!$V$49*VLOOKUP('Crop 2'!$E$49,Carbon!$AH$4:$AI$10,2,FALSE),0)+IF('Crop 2'!$C$50=Carbon!$B110,'Crop 2'!$V$50*VLOOKUP('Crop 2'!$E$50,Carbon!$AH$4:$AI$10,2,FALSE),0)+IF('Crop 2'!$C$51=Carbon!$B110,'Crop 2'!$V$51*VLOOKUP('Crop 2'!$E$51,Carbon!$AH$4:$AI$10,2,FALSE),0)+IF('Crop 2'!$C$52=Carbon!$B110,'Crop 2'!$V$52*VLOOKUP('Crop 2'!$E$52,Carbon!$AH$4:$AI$10,2,FALSE),0)+IF('Crop 2'!$C$53=Carbon!$B110,'Crop 2'!$V$53*VLOOKUP('Crop 2'!$E$53,Carbon!$AH$4:$AI$10,2,FALSE),0)+IF('Crop 2'!$C$56=Carbon!$B110,'Crop 2'!$V$56*VLOOKUP('Crop 2'!$E$56,Carbon!$AH$4:$AI$10,2,FALSE),0)+IF('Crop 2'!$C$57=Carbon!$B110,'Crop 2'!$V$57*VLOOKUP('Crop 2'!$E$57,Carbon!$AH$4:$AI$10,2,FALSE),0)+IF('Crop 2'!$C$58=Carbon!$B110,'Crop 2'!$V$58*VLOOKUP('Crop 2'!$E$58,Carbon!$AH$4:$AI$10,2,FALSE),0)+IF('Crop 2'!$C$59=Carbon!$B110,'Crop 2'!$V$59*VLOOKUP('Crop 2'!$E$59,Carbon!$AH$4:$AI$10,2,FALSE),0)+IF('Crop 2'!$C$62=Carbon!$B110,'Crop 2'!$V$62*VLOOKUP('Crop 2'!$E$62,Carbon!$AH$4:$AI$10,2,FALSE),0)+IF('Crop 2'!$C$63=Carbon!$B110,'Crop 2'!$V$63*VLOOKUP('Crop 2'!$E$63,Carbon!$AH$4:$AI$10,2,FALSE),0)+IF('Crop 2'!$C$64=Carbon!$B110,'Crop 2'!$V$64*VLOOKUP('Crop 2'!$E$64,Carbon!$AH$4:$AI$10,2,FALSE),0)+IF('Crop 2'!$C$65=Carbon!$B110,'Crop 2'!$V$65*VLOOKUP('Crop 2'!$E$65,Carbon!$AH$4:$AI$10,2,FALSE),0))*$AL$20,2)","v":0},{"$f":"O110*Inputs!$D$15","v":0},{"$f":"ROUND((IF('Crop 3'!$C$14=Carbon!$B110,'Crop 3'!$V$14*VLOOKUP('Crop 3'!$E$14,Carbon!$AH$4:$AI$10,2,FALSE),0)+IF('Crop 3'!$C$15=Carbon!$B110,'Crop 3'!$V$15*VLOOKUP('Crop 3'!$E$15,Carbon!$AH$4:$AI$10,2,FALSE),0)+IF('Crop 3'!$C$16=Carbon!$B110,'Crop 3'!$V$16*VLOOKUP('Crop 3'!$E$16,Carbon!$AH$4:$AI$10,2,FALSE),0)+IF('Crop 3'!$C$19=Carbon!$B110,'Crop 3'!$V$19*VLOOKUP('Crop 3'!$E$19,Carbon!$AH$4:$AI$10,2,FALSE),0)+IF('Crop 3'!$C$20=Carbon!$B110,'Crop 3'!$V$20*VLOOKUP('Crop 3'!$E$20,Carbon!$AH$4:$AI$10,2,FALSE),0)+IF('Crop 3'!$C$21=Carbon!$B110,'Crop 3'!$V$21*VLOOKUP('Crop 3'!$E$21,Carbon!$AH$4:$AI$10,2,FALSE),0)+IF('Crop 3'!$C$49=Carbon!$B110,'Crop 3'!$V$49*VLOOKUP('Crop 3'!$E$49,Carbon!$AH$4:$AI$10,2,FALSE),0)+IF('Crop 3'!$C$50=Carbon!$B110,'Crop 3'!$V$50*VLOOKUP('Crop 3'!$E$50,Carbon!$AH$4:$AI$10,2,FALSE),0)+IF('Crop 3'!$C$51=Carbon!$B110,'Crop 3'!$V$51*VLOOKUP('Crop 3'!$E$51,Carbon!$AH$4:$AI$10,2,FALSE),0)+IF('Crop 3'!$C$52=Carbon!$B110,'Crop 3'!$V$52*VLOOKUP('Crop 3'!$E$52,Carbon!$AH$4:$AI$10,2,FALSE),0)+IF('Crop 3'!$C$53=Carbon!$B110,'Crop 3'!$V$53*VLOOKUP('Crop 3'!$E$53,Carbon!$AH$4:$AI$10,2,FALSE),0)+IF('Crop 3'!$C$56=Carbon!$B110,'Crop 3'!$V$56*VLOOKUP('Crop 3'!$E$56,Carbon!$AH$4:$AI$10,2,FALSE),0)+IF('Crop 3'!$C$57=Carbon!$B110,'Crop 3'!$V$57*VLOOKUP('Crop 3'!$E$57,Carbon!$AH$4:$AI$10,2,FALSE),0)+IF('Crop 3'!$C$58=Carbon!$B110,'Crop 3'!$V$58*VLOOKUP('Crop 3'!$E$58,Carbon!$AH$4:$AI$10,2,FALSE),0)+IF('Crop 3'!$C$59=Carbon!$B110,'Crop 3'!$V$59*VLOOKUP('Crop 3'!$E$59,Carbon!$AH$4:$AI$10,2,FALSE),0)+IF('Crop 3'!$C$62=Carbon!$B110,'Crop 3'!$V$62*VLOOKUP('Crop 3'!$E$62,Carbon!$AH$4:$AI$10,2,FALSE),0)+IF('Crop 3'!$C$63=Carbon!$B110,'Crop 3'!$V$63*VLOOKUP('Crop 3'!$E$63,Carbon!$AH$4:$AI$10,2,FALSE),0)+IF('Crop 3'!$C$64=Carbon!$B110,'Crop 3'!$V$64*VLOOKUP('Crop 3'!$E$64,Carbon!$AH$4:$AI$10,2,FALSE),0)+IF('Crop 3'!$C$65=Carbon!$B110,'Crop 3'!$V$65*VLOOKUP('Crop 3'!$E$65,Carbon!$AH$4:$AI$10,2,FALSE),0))*$AL$20,2)","v":0},{"$f":"Q110*Inputs!$D$17","v":0},{"$f":"ROUND(T110/Inputs!D$19,2)","v":0},0,null,null,0,{"$f":"W110*Inputs!$D$13","v":0},0,{"$f":"Y110*Inputs!$D$13","v":0},0,{"$f":"AA110*Inputs!$D$13","v":0},{"$f":"ROUND(AD110/Inputs!D$19,2)","v":0},0]
[null,{"$f":"Defaults!AH77","v":"Metribuzin"},{"$f":"ROUND((IF('Crop 1'!$C$14=Carbon!$B111,'Crop 1'!$L$14*VLOOKUP('Crop 1'!$E$14,Carbon!$AH$4:$AI$10,2,FALSE),0)+IF('Crop 1'!$C$15=Carbon!$B111,'Crop 1'!$L$15*VLOOKUP('Crop 1'!$E$15,Carbon!$AH$4:$AI$10,2,FALSE),0)+IF('Crop 1'!$C$16=Carbon!$B111,'Crop 1'!$L$16*VLOOKUP('Crop 1'!$E$16,Carbon!$AH$4:$AI$10,2,FALSE),0)+IF('Crop 1'!$C$19=Carbon!$B111,'Crop 1'!$L$19*VLOOKUP('Crop 1'!$E$19,Carbon!$AH$4:$AI$10,2,FALSE),0)+IF('Crop 1'!$C$20=Carbon!$B111,'Crop 1'!$L$20*VLOOKUP('Crop 1'!$E$20,Carbon!$AH$4:$AI$10,2,FALSE),0)+IF('Crop 1'!$C$21=Carbon!$B111,'Crop 1'!$L$21*VLOOKUP('Crop 1'!$E$21,Carbon!$AH$4:$AI$10,2,FALSE),0)+IF('Crop 1'!$C$49=Carbon!$B111,'Crop 1'!$L$49*VLOOKUP('Crop 1'!$E$49,Carbon!$AH$4:$AI$10,2,FALSE),0)+IF('Crop 1'!$C$50=Carbon!$B111,'Crop 1'!$L$50*VLOOKUP('Crop 1'!$E$50,Carbon!$AH$4:$AI$10,2,FALSE),0)+IF('Crop 1'!$C$51=Carbon!$B111,'Crop 1'!$L$51*VLOOKUP('Crop 1'!$E$51,Carbon!$AH$4:$AI$10,2,FALSE),0)+IF('Crop 1'!$C$52=Carbon!$B111,'Crop 1'!$L$52*VLOOKUP('Crop 1'!$E$52,Carbon!$AH$4:$AI$10,2,FALSE),0)+IF('Crop 1'!$C$53=Carbon!$B111,'Crop 1'!$L$53*VLOOKUP('Crop 1'!$E$53,Carbon!$AH$4:$AI$10,2,FALSE),0)+IF('Crop 1'!$C$56=Carbon!$B111,'Crop 1'!$L$56*VLOOKUP('Crop 1'!$E$56,Carbon!$AH$4:$AI$10,2,FALSE),0)+IF('Crop 1'!$C$57=Carbon!$B111,'Crop 1'!$L$57*VLOOKUP('Crop 1'!$E$57,Carbon!$AH$4:$AI$10,2,FALSE),0)+IF('Crop 1'!$C$58=Carbon!$B111,'Crop 1'!$L$58*VLOOKUP('Crop 1'!$E$58,Carbon!$AH$4:$AI$10,2,FALSE),0)+IF('Crop 1'!$C$59=Carbon!$B111,'Crop 1'!$L$59*VLOOKUP('Crop 1'!$E$59,Carbon!$AH$4:$AI$10,2,FALSE),0)+IF('Crop 1'!$C$62=Carbon!$B111,'Crop 1'!$L$62*VLOOKUP('Crop 1'!$E$62,Carbon!$AH$4:$AI$10,2,FALSE),0)+IF('Crop 1'!$C$63=Carbon!$B111,'Crop 1'!$L$63*VLOOKUP('Crop 1'!$E$63,Carbon!$AH$4:$AI$10,2,FALSE),0)+IF('Crop 1'!$C$64=Carbon!$B111,'Crop 1'!$L$64*VLOOKUP('Crop 1'!$E$64,Carbon!$AH$4:$AI$10,2,FALSE),0)+IF('Crop 1'!$C$65=Carbon!$B111,'Crop 1'!$L$65*VLOOKUP('Crop 1'!$E$65,Carbon!$AH$4:$AI$10,2,FALSE),0))*$AL$20,2)","v":0},{"$f":"C111*Inputs!$D$13","v":0},{"$f":"ROUND((IF('Crop 2'!$C$14=Carbon!$B111,'Crop 2'!$L$14*VLOOKUP('Crop 2'!$E$14,Carbon!$AH$4:$AI$10,2,FALSE),0)+IF('Crop 2'!$C$15=Carbon!$B111,'Crop 2'!$L$15*VLOOKUP('Crop 2'!$E$15,Carbon!$AH$4:$AI$10,2,FALSE),0)+IF('Crop 2'!$C$16=Carbon!$B111,'Crop 2'!$L$16*VLOOKUP('Crop 2'!$E$16,Carbon!$AH$4:$AI$10,2,FALSE),0)+IF('Crop 2'!$C$19=Carbon!$B111,'Crop 2'!$L$19*VLOOKUP('Crop 2'!$E$19,Carbon!$AH$4:$AI$10,2,FALSE),0)+IF('Crop 2'!$C$20=Carbon!$B111,'Crop 2'!$L$20*VLOOKUP('Crop 2'!$E$20,Carbon!$AH$4:$AI$10,2,FALSE),0)+IF('Crop 2'!$C$21=Carbon!$B111,'Crop 2'!$L$21*VLOOKUP('Crop 2'!$E$21,Carbon!$AH$4:$AI$10,2,FALSE),0)+IF('Crop 2'!$C$49=Carbon!$B111,'Crop 2'!$L$49*VLOOKUP('Crop 2'!$E$49,Carbon!$AH$4:$AI$10,2,FALSE),0)+IF('Crop 2'!$C$50=Carbon!$B111,'Crop 2'!$L$50*VLOOKUP('Crop 2'!$E$50,Carbon!$AH$4:$AI$10,2,FALSE),0)+IF('Crop 2'!$C$51=Carbon!$B111,'Crop 2'!$L$51*VLOOKUP('Crop 2'!$E$51,Carbon!$AH$4:$AI$10,2,FALSE),0)+IF('Crop 2'!$C$52=Carbon!$B111,'Crop 2'!$L$52*VLOOKUP('Crop 2'!$E$52,Carbon!$AH$4:$AI$10,2,FALSE),0)+IF('Crop 2'!$C$53=Carbon!$B111,'Crop 2'!$L$53*VLOOKUP('Crop 2'!$E$53,Carbon!$AH$4:$AI$10,2,FALSE),0)+IF('Crop 2'!$C$56=Carbon!$B111,'Crop 2'!$L$56*VLOOKUP('Crop 2'!$E$56,Carbon!$AH$4:$AI$10,2,FALSE),0)+IF('Crop 2'!$C$57=Carbon!$B111,'Crop 2'!$L$57*VLOOKUP('Crop 2'!$E$57,Carbon!$AH$4:$AI$10,2,FALSE),0)+IF('Crop 2'!$C$58=Carbon!$B111,'Crop 2'!$L$58*VLOOKUP('Crop 2'!$E$58,Carbon!$AH$4:$AI$10,2,FALSE),0)+IF('Crop 2'!$C$59=Carbon!$B111,'Crop 2'!$L$59*VLOOKUP('Crop 2'!$E$59,Carbon!$AH$4:$AI$10,2,FALSE),0)+IF('Crop 2'!$C$62=Carbon!$B111,'Crop 2'!$L$62*VLOOKUP('Crop 2'!$E$62,Carbon!$AH$4:$AI$10,2,FALSE),0)+IF('Crop 2'!$C$63=Carbon!$B111,'Crop 2'!$L$63*VLOOKUP('Crop 2'!$E$63,Carbon!$AH$4:$AI$10,2,FALSE),0)+IF('Crop 2'!$C$64=Carbon!$B111,'Crop 2'!$L$64*VLOOKUP('Crop 2'!$E$64,Carbon!$AH$4:$AI$10,2,FALSE),0)+IF('Crop 2'!$C$65=Carbon!$B111,'Crop 2'!$L$65*VLOOKUP('Crop 2'!$E$65,Carbon!$AH$4:$AI$10,2,FALSE),0))*$AL$20,2)","v":0},{"$f":"E111*Inputs!$D$15","v":0},{"$f":"ROUND((IF('Crop 3'!$C$14=Carbon!$B111,'Crop 3'!$L$14*VLOOKUP('Crop 3'!$E$14,Carbon!$AH$4:$AI$10,2,FALSE),0)+IF('Crop 3'!$C$15=Carbon!$B111,'Crop 3'!$L$15*VLOOKUP('Crop 3'!$E$15,Carbon!$AH$4:$AI$10,2,FALSE),0)+IF('Crop 3'!$C$16=Carbon!$B111,'Crop 3'!$L$16*VLOOKUP('Crop 3'!$E$16,Carbon!$AH$4:$AI$10,2,FALSE),0)+IF('Crop 3'!$C$19=Carbon!$B111,'Crop 3'!$L$19*VLOOKUP('Crop 3'!$E$19,Carbon!$AH$4:$AI$10,2,FALSE),0)+IF('Crop 3'!$C$20=Carbon!$B111,'Crop 3'!$L$20*VLOOKUP('Crop 3'!$E$20,Carbon!$AH$4:$AI$10,2,FALSE),0)+IF('Crop 3'!$C$21=Carbon!$B111,'Crop 3'!$L$21*VLOOKUP('Crop 3'!$E$21,Carbon!$AH$4:$AI$10,2,FALSE),0)+IF('Crop 3'!$C$49=Carbon!$B111,'Crop 3'!$L$49*VLOOKUP('Crop 3'!$E$49,Carbon!$AH$4:$AI$10,2,FALSE),0)+IF('Crop 3'!$C$50=Carbon!$B111,'Crop 3'!$L$50*VLOOKUP('Crop 3'!$E$50,Carbon!$AH$4:$AI$10,2,FALSE),0)+IF('Crop 3'!$C$51=Carbon!$B111,'Crop 3'!$L$51*VLOOKUP('Crop 3'!$E$51,Carbon!$AH$4:$AI$10,2,FALSE),0)+IF('Crop 3'!$C$52=Carbon!$B111,'Crop 3'!$L$52*VLOOKUP('Crop 3'!$E$52,Carbon!$AH$4:$AI$10,2,FALSE),0)+IF('Crop 3'!$C$53=Carbon!$B111,'Crop 3'!$L$53*VLOOKUP('Crop 3'!$E$53,Carbon!$AH$4:$AI$10,2,FALSE),0)+IF('Crop 3'!$C$56=Carbon!$B111,'Crop 3'!$L$56*VLOOKUP('Crop 3'!$E$56,Carbon!$AH$4:$AI$10,2,FALSE),0)+IF('Crop 3'!$C$57=Carbon!$B111,'Crop 3'!$L$57*VLOOKUP('Crop 3'!$E$57,Carbon!$AH$4:$AI$10,2,FALSE),0)+IF('Crop 3'!$C$58=Carbon!$B111,'Crop 3'!$L$58*VLOOKUP('Crop 3'!$E$58,Carbon!$AH$4:$AI$10,2,FALSE),0)+IF('Crop 3'!$C$59=Carbon!$B111,'Crop 3'!$L$59*VLOOKUP('Crop 3'!$E$59,Carbon!$AH$4:$AI$10,2,FALSE),0)+IF('Crop 3'!$C$62=Carbon!$B111,'Crop 3'!$L$62*VLOOKUP('Crop 3'!$E$62,Carbon!$AH$4:$AI$10,2,FALSE),0)+IF('Crop 3'!$C$63=Carbon!$B111,'Crop 3'!$L$63*VLOOKUP('Crop 3'!$E$63,Carbon!$AH$4:$AI$10,2,FALSE),0)+IF('Crop 3'!$C$64=Carbon!$B111,'Crop 3'!$L$64*VLOOKUP('Crop 3'!$E$64,Carbon!$AH$4:$AI$10,2,FALSE),0)+IF('Crop 3'!$C$65=Carbon!$B111,'Crop 3'!$L$65*VLOOKUP('Crop 3'!$E$65,Carbon!$AH$4:$AI$10,2,FALSE),0))*$AL$20,2)","v":0},{"$f":"G111*Inputs!$D$17","v":0},{"$f":"ROUND(J111/Inputs!D$19,2)","v":0},0,null,null,{"$f":"ROUND((IF('Crop 1'!$C$14=Carbon!$B111,'Crop 1'!$V$14*VLOOKUP('Crop 1'!$E$14,Carbon!$AH$4:$AI$10,2,FALSE),0)+IF('Crop 1'!$C$15=Carbon!$B111,'Crop 1'!$V$15*VLOOKUP('Crop 1'!$E$15,Carbon!$AH$4:$AI$10,2,FALSE),0)+IF('Crop 1'!$C$16=Carbon!$B111,'Crop 1'!$V$16*VLOOKUP('Crop 1'!$E$16,Carbon!$AH$4:$AI$10,2,FALSE),0)+IF('Crop 1'!$C$19=Carbon!$B111,'Crop 1'!$V$19*VLOOKUP('Crop 1'!$E$19,Carbon!$AH$4:$AI$10,2,FALSE),0)+IF('Crop 1'!$C$20=Carbon!$B111,'Crop 1'!$V$20*VLOOKUP('Crop 1'!$E$20,Carbon!$AH$4:$AI$10,2,FALSE),0)+IF('Crop 1'!$C$21=Carbon!$B111,'Crop 1'!$V$21*VLOOKUP('Crop 1'!$E$21,Carbon!$AH$4:$AI$10,2,FALSE),0)+IF('Crop 1'!$C$49=Carbon!$B111,'Crop 1'!$V$49*VLOOKUP('Crop 1'!$E$49,Carbon!$AH$4:$AI$10,2,FALSE),0)+IF('Crop 1'!$C$50=Carbon!$B111,'Crop 1'!$V$50*VLOOKUP('Crop 1'!$E$50,Carbon!$AH$4:$AI$10,2,FALSE),0)+IF('Crop 1'!$C$51=Carbon!$B111,'Crop 1'!$V$51*VLOOKUP('Crop 1'!$E$51,Carbon!$AH$4:$AI$10,2,FALSE),0)+IF('Crop 1'!$C$52=Carbon!$B111,'Crop 1'!$V$52*VLOOKUP('Crop 1'!$E$52,Carbon!$AH$4:$AI$10,2,FALSE),0)+IF('Crop 1'!$C$53=Carbon!$B111,'Crop 1'!$V$53*VLOOKUP('Crop 1'!$E$53,Carbon!$AH$4:$AI$10,2,FALSE),0)+IF('Crop 1'!$C$56=Carbon!$B111,'Crop 1'!$V$56*VLOOKUP('Crop 1'!$E$56,Carbon!$AH$4:$AI$10,2,FALSE),0)+IF('Crop 1'!$C$57=Carbon!$B111,'Crop 1'!$V$57*VLOOKUP('Crop 1'!$E$57,Carbon!$AH$4:$AI$10,2,FALSE),0)+IF('Crop 1'!$C$58=Carbon!$B111,'Crop 1'!$V$58*VLOOKUP('Crop 1'!$E$58,Carbon!$AH$4:$AI$10,2,FALSE),0)+IF('Crop 1'!$C$59=Carbon!$B111,'Crop 1'!$V$59*VLOOKUP('Crop 1'!$E$59,Carbon!$AH$4:$AI$10,2,FALSE),0)+IF('Crop 1'!$C$62=Carbon!$B111,'Crop 1'!$V$62*VLOOKUP('Crop 1'!$E$62,Carbon!$AH$4:$AI$10,2,FALSE),0)+IF('Crop 1'!$C$63=Carbon!$B111,'Crop 1'!$V$63*VLOOKUP('Crop 1'!$E$63,Carbon!$AH$4:$AI$10,2,FALSE),0)+IF('Crop 1'!$C$64=Carbon!$B111,'Crop 1'!$V$64*VLOOKUP('Crop 1'!$E$64,Carbon!$AH$4:$AI$10,2,FALSE),0)+IF('Crop 1'!$C$65=Carbon!$B111,'Crop 1'!$V$65*VLOOKUP('Crop 1'!$E$65,Carbon!$AH$4:$AI$10,2,FALSE),0))*$AL$20,2)","v":0},{"$f":"M111*Inputs!$D$13","v":0},{"$f":"ROUND((IF('Crop 2'!$C$14=Carbon!$B111,'Crop 2'!$V$14*VLOOKUP('Crop 2'!$E$14,Carbon!$AH$4:$AI$10,2,FALSE),0)+IF('Crop 2'!$C$15=Carbon!$B111,'Crop 2'!$V$15*VLOOKUP('Crop 2'!$E$15,Carbon!$AH$4:$AI$10,2,FALSE),0)+IF('Crop 2'!$C$16=Carbon!$B111,'Crop 2'!$V$16*VLOOKUP('Crop 2'!$E$16,Carbon!$AH$4:$AI$10,2,FALSE),0)+IF('Crop 2'!$C$19=Carbon!$B111,'Crop 2'!$V$19*VLOOKUP('Crop 2'!$E$19,Carbon!$AH$4:$AI$10,2,FALSE),0)+IF('Crop 2'!$C$20=Carbon!$B111,'Crop 2'!$V$20*VLOOKUP('Crop 2'!$E$20,Carbon!$AH$4:$AI$10,2,FALSE),0)+IF('Crop 2'!$C$21=Carbon!$B111,'Crop 2'!$V$21*VLOOKUP('Crop 2'!$E$21,Carbon!$AH$4:$AI$10,2,FALSE),0)+IF('Crop 2'!$C$49=Carbon!$B111,'Crop 2'!$V$49*VLOOKUP('Crop 2'!$E$49,Carbon!$AH$4:$AI$10,2,FALSE),0)+IF('Crop 2'!$C$50=Carbon!$B111,'Crop 2'!$V$50*VLOOKUP('Crop 2'!$E$50,Carbon!$AH$4:$AI$10,2,FALSE),0)+IF('Crop 2'!$C$51=Carbon!$B111,'Crop 2'!$V$51*VLOOKUP('Crop 2'!$E$51,Carbon!$AH$4:$AI$10,2,FALSE),0)+IF('Crop 2'!$C$52=Carbon!$B111,'Crop 2'!$V$52*VLOOKUP('Crop 2'!$E$52,Carbon!$AH$4:$AI$10,2,FALSE),0)+IF('Crop 2'!$C$53=Carbon!$B111,'Crop 2'!$V$53*VLOOKUP('Crop 2'!$E$53,Carbon!$AH$4:$AI$10,2,FALSE),0)+IF('Crop 2'!$C$56=Carbon!$B111,'Crop 2'!$V$56*VLOOKUP('Crop 2'!$E$56,Carbon!$AH$4:$AI$10,2,FALSE),0)+IF('Crop 2'!$C$57=Carbon!$B111,'Crop 2'!$V$57*VLOOKUP('Crop 2'!$E$57,Carbon!$AH$4:$AI$10,2,FALSE),0)+IF('Crop 2'!$C$58=Carbon!$B111,'Crop 2'!$V$58*VLOOKUP('Crop 2'!$E$58,Carbon!$AH$4:$AI$10,2,FALSE),0)+IF('Crop 2'!$C$59=Carbon!$B111,'Crop 2'!$V$59*VLOOKUP('Crop 2'!$E$59,Carbon!$AH$4:$AI$10,2,FALSE),0)+IF('Crop 2'!$C$62=Carbon!$B111,'Crop 2'!$V$62*VLOOKUP('Crop 2'!$E$62,Carbon!$AH$4:$AI$10,2,FALSE),0)+IF('Crop 2'!$C$63=Carbon!$B111,'Crop 2'!$V$63*VLOOKUP('Crop 2'!$E$63,Carbon!$AH$4:$AI$10,2,FALSE),0)+IF('Crop 2'!$C$64=Carbon!$B111,'Crop 2'!$V$64*VLOOKUP('Crop 2'!$E$64,Carbon!$AH$4:$AI$10,2,FALSE),0)+IF('Crop 2'!$C$65=Carbon!$B111,'Crop 2'!$V$65*VLOOKUP('Crop 2'!$E$65,Carbon!$AH$4:$AI$10,2,FALSE),0))*$AL$20,2)","v":0},{"$f":"O111*Inputs!$D$15","v":0},{"$f":"ROUND((IF('Crop 3'!$C$14=Carbon!$B111,'Crop 3'!$V$14*VLOOKUP('Crop 3'!$E$14,Carbon!$AH$4:$AI$10,2,FALSE),0)+IF('Crop 3'!$C$15=Carbon!$B111,'Crop 3'!$V$15*VLOOKUP('Crop 3'!$E$15,Carbon!$AH$4:$AI$10,2,FALSE),0)+IF('Crop 3'!$C$16=Carbon!$B111,'Crop 3'!$V$16*VLOOKUP('Crop 3'!$E$16,Carbon!$AH$4:$AI$10,2,FALSE),0)+IF('Crop 3'!$C$19=Carbon!$B111,'Crop 3'!$V$19*VLOOKUP('Crop 3'!$E$19,Carbon!$AH$4:$AI$10,2,FALSE),0)+IF('Crop 3'!$C$20=Carbon!$B111,'Crop 3'!$V$20*VLOOKUP('Crop 3'!$E$20,Carbon!$AH$4:$AI$10,2,FALSE),0)+IF('Crop 3'!$C$21=Carbon!$B111,'Crop 3'!$V$21*VLOOKUP('Crop 3'!$E$21,Carbon!$AH$4:$AI$10,2,FALSE),0)+IF('Crop 3'!$C$49=Carbon!$B111,'Crop 3'!$V$49*VLOOKUP('Crop 3'!$E$49,Carbon!$AH$4:$AI$10,2,FALSE),0)+IF('Crop 3'!$C$50=Carbon!$B111,'Crop 3'!$V$50*VLOOKUP('Crop 3'!$E$50,Carbon!$AH$4:$AI$10,2,FALSE),0)+IF('Crop 3'!$C$51=Carbon!$B111,'Crop 3'!$V$51*VLOOKUP('Crop 3'!$E$51,Carbon!$AH$4:$AI$10,2,FALSE),0)+IF('Crop 3'!$C$52=Carbon!$B111,'Crop 3'!$V$52*VLOOKUP('Crop 3'!$E$52,Carbon!$AH$4:$AI$10,2,FALSE),0)+IF('Crop 3'!$C$53=Carbon!$B111,'Crop 3'!$V$53*VLOOKUP('Crop 3'!$E$53,Carbon!$AH$4:$AI$10,2,FALSE),0)+IF('Crop 3'!$C$56=Carbon!$B111,'Crop 3'!$V$56*VLOOKUP('Crop 3'!$E$56,Carbon!$AH$4:$AI$10,2,FALSE),0)+IF('Crop 3'!$C$57=Carbon!$B111,'Crop 3'!$V$57*VLOOKUP('Crop 3'!$E$57,Carbon!$AH$4:$AI$10,2,FALSE),0)+IF('Crop 3'!$C$58=Carbon!$B111,'Crop 3'!$V$58*VLOOKUP('Crop 3'!$E$58,Carbon!$AH$4:$AI$10,2,FALSE),0)+IF('Crop 3'!$C$59=Carbon!$B111,'Crop 3'!$V$59*VLOOKUP('Crop 3'!$E$59,Carbon!$AH$4:$AI$10,2,FALSE),0)+IF('Crop 3'!$C$62=Carbon!$B111,'Crop 3'!$V$62*VLOOKUP('Crop 3'!$E$62,Carbon!$AH$4:$AI$10,2,FALSE),0)+IF('Crop 3'!$C$63=Carbon!$B111,'Crop 3'!$V$63*VLOOKUP('Crop 3'!$E$63,Carbon!$AH$4:$AI$10,2,FALSE),0)+IF('Crop 3'!$C$64=Carbon!$B111,'Crop 3'!$V$64*VLOOKUP('Crop 3'!$E$64,Carbon!$AH$4:$AI$10,2,FALSE),0)+IF('Crop 3'!$C$65=Carbon!$B111,'Crop 3'!$V$65*VLOOKUP('Crop 3'!$E$65,Carbon!$AH$4:$AI$10,2,FALSE),0))*$AL$20,2)","v":0},{"$f":"Q111*Inputs!$D$17","v":0},{"$f":"ROUND(T111/Inputs!D$19,2)","v":0},0,null,null,0,{"$f":"W111*Inputs!$D$13","v":0},0,{"$f":"Y111*Inputs!$D$13","v":0},0,{"$f":"AA111*Inputs!$D$13","v":0},{"$f":"ROUND(AD111/Inputs!D$19,2)","v":0},0]
[null,{"$f":"Defaults!AH78","v":"Milestone"},{"$f":"ROUND((IF('Crop 1'!$C$14=Carbon!$B112,'Crop 1'!$L$14*VLOOKUP('Crop 1'!$E$14,Carbon!$AH$4:$AI$10,2,FALSE),0)+IF('Crop 1'!$C$15=Carbon!$B112,'Crop 1'!$L$15*VLOOKUP('Crop 1'!$E$15,Carbon!$AH$4:$AI$10,2,FALSE),0)+IF('Crop 1'!$C$16=Carbon!$B112,'Crop 1'!$L$16*VLOOKUP('Crop 1'!$E$16,Carbon!$AH$4:$AI$10,2,FALSE),0)+IF('Crop 1'!$C$19=Carbon!$B112,'Crop 1'!$L$19*VLOOKUP('Crop 1'!$E$19,Carbon!$AH$4:$AI$10,2,FALSE),0)+IF('Crop 1'!$C$20=Carbon!$B112,'Crop 1'!$L$20*VLOOKUP('Crop 1'!$E$20,Carbon!$AH$4:$AI$10,2,FALSE),0)+IF('Crop 1'!$C$21=Carbon!$B112,'Crop 1'!$L$21*VLOOKUP('Crop 1'!$E$21,Carbon!$AH$4:$AI$10,2,FALSE),0)+IF('Crop 1'!$C$49=Carbon!$B112,'Crop 1'!$L$49*VLOOKUP('Crop 1'!$E$49,Carbon!$AH$4:$AI$10,2,FALSE),0)+IF('Crop 1'!$C$50=Carbon!$B112,'Crop 1'!$L$50*VLOOKUP('Crop 1'!$E$50,Carbon!$AH$4:$AI$10,2,FALSE),0)+IF('Crop 1'!$C$51=Carbon!$B112,'Crop 1'!$L$51*VLOOKUP('Crop 1'!$E$51,Carbon!$AH$4:$AI$10,2,FALSE),0)+IF('Crop 1'!$C$52=Carbon!$B112,'Crop 1'!$L$52*VLOOKUP('Crop 1'!$E$52,Carbon!$AH$4:$AI$10,2,FALSE),0)+IF('Crop 1'!$C$53=Carbon!$B112,'Crop 1'!$L$53*VLOOKUP('Crop 1'!$E$53,Carbon!$AH$4:$AI$10,2,FALSE),0)+IF('Crop 1'!$C$56=Carbon!$B112,'Crop 1'!$L$56*VLOOKUP('Crop 1'!$E$56,Carbon!$AH$4:$AI$10,2,FALSE),0)+IF('Crop 1'!$C$57=Carbon!$B112,'Crop 1'!$L$57*VLOOKUP('Crop 1'!$E$57,Carbon!$AH$4:$AI$10,2,FALSE),0)+IF('Crop 1'!$C$58=Carbon!$B112,'Crop 1'!$L$58*VLOOKUP('Crop 1'!$E$58,Carbon!$AH$4:$AI$10,2,FALSE),0)+IF('Crop 1'!$C$59=Carbon!$B112,'Crop 1'!$L$59*VLOOKUP('Crop 1'!$E$59,Carbon!$AH$4:$AI$10,2,FALSE),0)+IF('Crop 1'!$C$62=Carbon!$B112,'Crop 1'!$L$62*VLOOKUP('Crop 1'!$E$62,Carbon!$AH$4:$AI$10,2,FALSE),0)+IF('Crop 1'!$C$63=Carbon!$B112,'Crop 1'!$L$63*VLOOKUP('Crop 1'!$E$63,Carbon!$AH$4:$AI$10,2,FALSE),0)+IF('Crop 1'!$C$64=Carbon!$B112,'Crop 1'!$L$64*VLOOKUP('Crop 1'!$E$64,Carbon!$AH$4:$AI$10,2,FALSE),0)+IF('Crop 1'!$C$65=Carbon!$B112,'Crop 1'!$L$65*VLOOKUP('Crop 1'!$E$65,Carbon!$AH$4:$AI$10,2,FALSE),0))*$AL$20,2)","v":0},{"$f":"C112*Inputs!$D$13","v":0},{"$f":"ROUND((IF('Crop 2'!$C$14=Carbon!$B112,'Crop 2'!$L$14*VLOOKUP('Crop 2'!$E$14,Carbon!$AH$4:$AI$10,2,FALSE),0)+IF('Crop 2'!$C$15=Carbon!$B112,'Crop 2'!$L$15*VLOOKUP('Crop 2'!$E$15,Carbon!$AH$4:$AI$10,2,FALSE),0)+IF('Crop 2'!$C$16=Carbon!$B112,'Crop 2'!$L$16*VLOOKUP('Crop 2'!$E$16,Carbon!$AH$4:$AI$10,2,FALSE),0)+IF('Crop 2'!$C$19=Carbon!$B112,'Crop 2'!$L$19*VLOOKUP('Crop 2'!$E$19,Carbon!$AH$4:$AI$10,2,FALSE),0)+IF('Crop 2'!$C$20=Carbon!$B112,'Crop 2'!$L$20*VLOOKUP('Crop 2'!$E$20,Carbon!$AH$4:$AI$10,2,FALSE),0)+IF('Crop 2'!$C$21=Carbon!$B112,'Crop 2'!$L$21*VLOOKUP('Crop 2'!$E$21,Carbon!$AH$4:$AI$10,2,FALSE),0)+IF('Crop 2'!$C$49=Carbon!$B112,'Crop 2'!$L$49*VLOOKUP('Crop 2'!$E$49,Carbon!$AH$4:$AI$10,2,FALSE),0)+IF('Crop 2'!$C$50=Carbon!$B112,'Crop 2'!$L$50*VLOOKUP('Crop 2'!$E$50,Carbon!$AH$4:$AI$10,2,FALSE),0)+IF('Crop 2'!$C$51=Carbon!$B112,'Crop 2'!$L$51*VLOOKUP('Crop 2'!$E$51,Carbon!$AH$4:$AI$10,2,FALSE),0)+IF('Crop 2'!$C$52=Carbon!$B112,'Crop 2'!$L$52*VLOOKUP('Crop 2'!$E$52,Carbon!$AH$4:$AI$10,2,FALSE),0)+IF('Crop 2'!$C$53=Carbon!$B112,'Crop 2'!$L$53*VLOOKUP('Crop 2'!$E$53,Carbon!$AH$4:$AI$10,2,FALSE),0)+IF('Crop 2'!$C$56=Carbon!$B112,'Crop 2'!$L$56*VLOOKUP('Crop 2'!$E$56,Carbon!$AH$4:$AI$10,2,FALSE),0)+IF('Crop 2'!$C$57=Carbon!$B112,'Crop 2'!$L$57*VLOOKUP('Crop 2'!$E$57,Carbon!$AH$4:$AI$10,2,FALSE),0)+IF('Crop 2'!$C$58=Carbon!$B112,'Crop 2'!$L$58*VLOOKUP('Crop 2'!$E$58,Carbon!$AH$4:$AI$10,2,FALSE),0)+IF('Crop 2'!$C$59=Carbon!$B112,'Crop 2'!$L$59*VLOOKUP('Crop 2'!$E$59,Carbon!$AH$4:$AI$10,2,FALSE),0)+IF('Crop 2'!$C$62=Carbon!$B112,'Crop 2'!$L$62*VLOOKUP('Crop 2'!$E$62,Carbon!$AH$4:$AI$10,2,FALSE),0)+IF('Crop 2'!$C$63=Carbon!$B112,'Crop 2'!$L$63*VLOOKUP('Crop 2'!$E$63,Carbon!$AH$4:$AI$10,2,FALSE),0)+IF('Crop 2'!$C$64=Carbon!$B112,'Crop 2'!$L$64*VLOOKUP('Crop 2'!$E$64,Carbon!$AH$4:$AI$10,2,FALSE),0)+IF('Crop 2'!$C$65=Carbon!$B112,'Crop 2'!$L$65*VLOOKUP('Crop 2'!$E$65,Carbon!$AH$4:$AI$10,2,FALSE),0))*$AL$20,2)","v":0},{"$f":"E112*Inputs!$D$15","v":0},{"$f":"ROUND((IF('Crop 3'!$C$14=Carbon!$B112,'Crop 3'!$L$14*VLOOKUP('Crop 3'!$E$14,Carbon!$AH$4:$AI$10,2,FALSE),0)+IF('Crop 3'!$C$15=Carbon!$B112,'Crop 3'!$L$15*VLOOKUP('Crop 3'!$E$15,Carbon!$AH$4:$AI$10,2,FALSE),0)+IF('Crop 3'!$C$16=Carbon!$B112,'Crop 3'!$L$16*VLOOKUP('Crop 3'!$E$16,Carbon!$AH$4:$AI$10,2,FALSE),0)+IF('Crop 3'!$C$19=Carbon!$B112,'Crop 3'!$L$19*VLOOKUP('Crop 3'!$E$19,Carbon!$AH$4:$AI$10,2,FALSE),0)+IF('Crop 3'!$C$20=Carbon!$B112,'Crop 3'!$L$20*VLOOKUP('Crop 3'!$E$20,Carbon!$AH$4:$AI$10,2,FALSE),0)+IF('Crop 3'!$C$21=Carbon!$B112,'Crop 3'!$L$21*VLOOKUP('Crop 3'!$E$21,Carbon!$AH$4:$AI$10,2,FALSE),0)+IF('Crop 3'!$C$49=Carbon!$B112,'Crop 3'!$L$49*VLOOKUP('Crop 3'!$E$49,Carbon!$AH$4:$AI$10,2,FALSE),0)+IF('Crop 3'!$C$50=Carbon!$B112,'Crop 3'!$L$50*VLOOKUP('Crop 3'!$E$50,Carbon!$AH$4:$AI$10,2,FALSE),0)+IF('Crop 3'!$C$51=Carbon!$B112,'Crop 3'!$L$51*VLOOKUP('Crop 3'!$E$51,Carbon!$AH$4:$AI$10,2,FALSE),0)+IF('Crop 3'!$C$52=Carbon!$B112,'Crop 3'!$L$52*VLOOKUP('Crop 3'!$E$52,Carbon!$AH$4:$AI$10,2,FALSE),0)+IF('Crop 3'!$C$53=Carbon!$B112,'Crop 3'!$L$53*VLOOKUP('Crop 3'!$E$53,Carbon!$AH$4:$AI$10,2,FALSE),0)+IF('Crop 3'!$C$56=Carbon!$B112,'Crop 3'!$L$56*VLOOKUP('Crop 3'!$E$56,Carbon!$AH$4:$AI$10,2,FALSE),0)+IF('Crop 3'!$C$57=Carbon!$B112,'Crop 3'!$L$57*VLOOKUP('Crop 3'!$E$57,Carbon!$AH$4:$AI$10,2,FALSE),0)+IF('Crop 3'!$C$58=Carbon!$B112,'Crop 3'!$L$58*VLOOKUP('Crop 3'!$E$58,Carbon!$AH$4:$AI$10,2,FALSE),0)+IF('Crop 3'!$C$59=Carbon!$B112,'Crop 3'!$L$59*VLOOKUP('Crop 3'!$E$59,Carbon!$AH$4:$AI$10,2,FALSE),0)+IF('Crop 3'!$C$62=Carbon!$B112,'Crop 3'!$L$62*VLOOKUP('Crop 3'!$E$62,Carbon!$AH$4:$AI$10,2,FALSE),0)+IF('Crop 3'!$C$63=Carbon!$B112,'Crop 3'!$L$63*VLOOKUP('Crop 3'!$E$63,Carbon!$AH$4:$AI$10,2,FALSE),0)+IF('Crop 3'!$C$64=Carbon!$B112,'Crop 3'!$L$64*VLOOKUP('Crop 3'!$E$64,Carbon!$AH$4:$AI$10,2,FALSE),0)+IF('Crop 3'!$C$65=Carbon!$B112,'Crop 3'!$L$65*VLOOKUP('Crop 3'!$E$65,Carbon!$AH$4:$AI$10,2,FALSE),0))*$AL$20,2)","v":0},{"$f":"G112*Inputs!$D$17","v":0},{"$f":"ROUND(J112/Inputs!D$19,2)","v":0},0,null,null,{"$f":"ROUND((IF('Crop 1'!$C$14=Carbon!$B112,'Crop 1'!$V$14*VLOOKUP('Crop 1'!$E$14,Carbon!$AH$4:$AI$10,2,FALSE),0)+IF('Crop 1'!$C$15=Carbon!$B112,'Crop 1'!$V$15*VLOOKUP('Crop 1'!$E$15,Carbon!$AH$4:$AI$10,2,FALSE),0)+IF('Crop 1'!$C$16=Carbon!$B112,'Crop 1'!$V$16*VLOOKUP('Crop 1'!$E$16,Carbon!$AH$4:$AI$10,2,FALSE),0)+IF('Crop 1'!$C$19=Carbon!$B112,'Crop 1'!$V$19*VLOOKUP('Crop 1'!$E$19,Carbon!$AH$4:$AI$10,2,FALSE),0)+IF('Crop 1'!$C$20=Carbon!$B112,'Crop 1'!$V$20*VLOOKUP('Crop 1'!$E$20,Carbon!$AH$4:$AI$10,2,FALSE),0)+IF('Crop 1'!$C$21=Carbon!$B112,'Crop 1'!$V$21*VLOOKUP('Crop 1'!$E$21,Carbon!$AH$4:$AI$10,2,FALSE),0)+IF('Crop 1'!$C$49=Carbon!$B112,'Crop 1'!$V$49*VLOOKUP('Crop 1'!$E$49,Carbon!$AH$4:$AI$10,2,FALSE),0)+IF('Crop 1'!$C$50=Carbon!$B112,'Crop 1'!$V$50*VLOOKUP('Crop 1'!$E$50,Carbon!$AH$4:$AI$10,2,FALSE),0)+IF('Crop 1'!$C$51=Carbon!$B112,'Crop 1'!$V$51*VLOOKUP('Crop 1'!$E$51,Carbon!$AH$4:$AI$10,2,FALSE),0)+IF('Crop 1'!$C$52=Carbon!$B112,'Crop 1'!$V$52*VLOOKUP('Crop 1'!$E$52,Carbon!$AH$4:$AI$10,2,FALSE),0)+IF('Crop 1'!$C$53=Carbon!$B112,'Crop 1'!$V$53*VLOOKUP('Crop 1'!$E$53,Carbon!$AH$4:$AI$10,2,FALSE),0)+IF('Crop 1'!$C$56=Carbon!$B112,'Crop 1'!$V$56*VLOOKUP('Crop 1'!$E$56,Carbon!$AH$4:$AI$10,2,FALSE),0)+IF('Crop 1'!$C$57=Carbon!$B112,'Crop 1'!$V$57*VLOOKUP('Crop 1'!$E$57,Carbon!$AH$4:$AI$10,2,FALSE),0)+IF('Crop 1'!$C$58=Carbon!$B112,'Crop 1'!$V$58*VLOOKUP('Crop 1'!$E$58,Carbon!$AH$4:$AI$10,2,FALSE),0)+IF('Crop 1'!$C$59=Carbon!$B112,'Crop 1'!$V$59*VLOOKUP('Crop 1'!$E$59,Carbon!$AH$4:$AI$10,2,FALSE),0)+IF('Crop 1'!$C$62=Carbon!$B112,'Crop 1'!$V$62*VLOOKUP('Crop 1'!$E$62,Carbon!$AH$4:$AI$10,2,FALSE),0)+IF('Crop 1'!$C$63=Carbon!$B112,'Crop 1'!$V$63*VLOOKUP('Crop 1'!$E$63,Carbon!$AH$4:$AI$10,2,FALSE),0)+IF('Crop 1'!$C$64=Carbon!$B112,'Crop 1'!$V$64*VLOOKUP('Crop 1'!$E$64,Carbon!$AH$4:$AI$10,2,FALSE),0)+IF('Crop 1'!$C$65=Carbon!$B112,'Crop 1'!$V$65*VLOOKUP('Crop 1'!$E$65,Carbon!$AH$4:$AI$10,2,FALSE),0))*$AL$20,2)","v":0},{"$f":"M112*Inputs!$D$13","v":0},{"$f":"ROUND((IF('Crop 2'!$C$14=Carbon!$B112,'Crop 2'!$V$14*VLOOKUP('Crop 2'!$E$14,Carbon!$AH$4:$AI$10,2,FALSE),0)+IF('Crop 2'!$C$15=Carbon!$B112,'Crop 2'!$V$15*VLOOKUP('Crop 2'!$E$15,Carbon!$AH$4:$AI$10,2,FALSE),0)+IF('Crop 2'!$C$16=Carbon!$B112,'Crop 2'!$V$16*VLOOKUP('Crop 2'!$E$16,Carbon!$AH$4:$AI$10,2,FALSE),0)+IF('Crop 2'!$C$19=Carbon!$B112,'Crop 2'!$V$19*VLOOKUP('Crop 2'!$E$19,Carbon!$AH$4:$AI$10,2,FALSE),0)+IF('Crop 2'!$C$20=Carbon!$B112,'Crop 2'!$V$20*VLOOKUP('Crop 2'!$E$20,Carbon!$AH$4:$AI$10,2,FALSE),0)+IF('Crop 2'!$C$21=Carbon!$B112,'Crop 2'!$V$21*VLOOKUP('Crop 2'!$E$21,Carbon!$AH$4:$AI$10,2,FALSE),0)+IF('Crop 2'!$C$49=Carbon!$B112,'Crop 2'!$V$49*VLOOKUP('Crop 2'!$E$49,Carbon!$AH$4:$AI$10,2,FALSE),0)+IF('Crop 2'!$C$50=Carbon!$B112,'Crop 2'!$V$50*VLOOKUP('Crop 2'!$E$50,Carbon!$AH$4:$AI$10,2,FALSE),0)+IF('Crop 2'!$C$51=Carbon!$B112,'Crop 2'!$V$51*VLOOKUP('Crop 2'!$E$51,Carbon!$AH$4:$AI$10,2,FALSE),0)+IF('Crop 2'!$C$52=Carbon!$B112,'Crop 2'!$V$52*VLOOKUP('Crop 2'!$E$52,Carbon!$AH$4:$AI$10,2,FALSE),0)+IF('Crop 2'!$C$53=Carbon!$B112,'Crop 2'!$V$53*VLOOKUP('Crop 2'!$E$53,Carbon!$AH$4:$AI$10,2,FALSE),0)+IF('Crop 2'!$C$56=Carbon!$B112,'Crop 2'!$V$56*VLOOKUP('Crop 2'!$E$56,Carbon!$AH$4:$AI$10,2,FALSE),0)+IF('Crop 2'!$C$57=Carbon!$B112,'Crop 2'!$V$57*VLOOKUP('Crop 2'!$E$57,Carbon!$AH$4:$AI$10,2,FALSE),0)+IF('Crop 2'!$C$58=Carbon!$B112,'Crop 2'!$V$58*VLOOKUP('Crop 2'!$E$58,Carbon!$AH$4:$AI$10,2,FALSE),0)+IF('Crop 2'!$C$59=Carbon!$B112,'Crop 2'!$V$59*VLOOKUP('Crop 2'!$E$59,Carbon!$AH$4:$AI$10,2,FALSE),0)+IF('Crop 2'!$C$62=Carbon!$B112,'Crop 2'!$V$62*VLOOKUP('Crop 2'!$E$62,Carbon!$AH$4:$AI$10,2,FALSE),0)+IF('Crop 2'!$C$63=Carbon!$B112,'Crop 2'!$V$63*VLOOKUP('Crop 2'!$E$63,Carbon!$AH$4:$AI$10,2,FALSE),0)+IF('Crop 2'!$C$64=Carbon!$B112,'Crop 2'!$V$64*VLOOKUP('Crop 2'!$E$64,Carbon!$AH$4:$AI$10,2,FALSE),0)+IF('Crop 2'!$C$65=Carbon!$B112,'Crop 2'!$V$65*VLOOKUP('Crop 2'!$E$65,Carbon!$AH$4:$AI$10,2,FALSE),0))*$AL$20,2)","v":0},{"$f":"O112*Inputs!$D$15","v":0},{"$f":"ROUND((IF('Crop 3'!$C$14=Carbon!$B112,'Crop 3'!$V$14*VLOOKUP('Crop 3'!$E$14,Carbon!$AH$4:$AI$10,2,FALSE),0)+IF('Crop 3'!$C$15=Carbon!$B112,'Crop 3'!$V$15*VLOOKUP('Crop 3'!$E$15,Carbon!$AH$4:$AI$10,2,FALSE),0)+IF('Crop 3'!$C$16=Carbon!$B112,'Crop 3'!$V$16*VLOOKUP('Crop 3'!$E$16,Carbon!$AH$4:$AI$10,2,FALSE),0)+IF('Crop 3'!$C$19=Carbon!$B112,'Crop 3'!$V$19*VLOOKUP('Crop 3'!$E$19,Carbon!$AH$4:$AI$10,2,FALSE),0)+IF('Crop 3'!$C$20=Carbon!$B112,'Crop 3'!$V$20*VLOOKUP('Crop 3'!$E$20,Carbon!$AH$4:$AI$10,2,FALSE),0)+IF('Crop 3'!$C$21=Carbon!$B112,'Crop 3'!$V$21*VLOOKUP('Crop 3'!$E$21,Carbon!$AH$4:$AI$10,2,FALSE),0)+IF('Crop 3'!$C$49=Carbon!$B112,'Crop 3'!$V$49*VLOOKUP('Crop 3'!$E$49,Carbon!$AH$4:$AI$10,2,FALSE),0)+IF('Crop 3'!$C$50=Carbon!$B112,'Crop 3'!$V$50*VLOOKUP('Crop 3'!$E$50,Carbon!$AH$4:$AI$10,2,FALSE),0)+IF('Crop 3'!$C$51=Carbon!$B112,'Crop 3'!$V$51*VLOOKUP('Crop 3'!$E$51,Carbon!$AH$4:$AI$10,2,FALSE),0)+IF('Crop 3'!$C$52=Carbon!$B112,'Crop 3'!$V$52*VLOOKUP('Crop 3'!$E$52,Carbon!$AH$4:$AI$10,2,FALSE),0)+IF('Crop 3'!$C$53=Carbon!$B112,'Crop 3'!$V$53*VLOOKUP('Crop 3'!$E$53,Carbon!$AH$4:$AI$10,2,FALSE),0)+IF('Crop 3'!$C$56=Carbon!$B112,'Crop 3'!$V$56*VLOOKUP('Crop 3'!$E$56,Carbon!$AH$4:$AI$10,2,FALSE),0)+IF('Crop 3'!$C$57=Carbon!$B112,'Crop 3'!$V$57*VLOOKUP('Crop 3'!$E$57,Carbon!$AH$4:$AI$10,2,FALSE),0)+IF('Crop 3'!$C$58=Carbon!$B112,'Crop 3'!$V$58*VLOOKUP('Crop 3'!$E$58,Carbon!$AH$4:$AI$10,2,FALSE),0)+IF('Crop 3'!$C$59=Carbon!$B112,'Crop 3'!$V$59*VLOOKUP('Crop 3'!$E$59,Carbon!$AH$4:$AI$10,2,FALSE),0)+IF('Crop 3'!$C$62=Carbon!$B112,'Crop 3'!$V$62*VLOOKUP('Crop 3'!$E$62,Carbon!$AH$4:$AI$10,2,FALSE),0)+IF('Crop 3'!$C$63=Carbon!$B112,'Crop 3'!$V$63*VLOOKUP('Crop 3'!$E$63,Carbon!$AH$4:$AI$10,2,FALSE),0)+IF('Crop 3'!$C$64=Carbon!$B112,'Crop 3'!$V$64*VLOOKUP('Crop 3'!$E$64,Carbon!$AH$4:$AI$10,2,FALSE),0)+IF('Crop 3'!$C$65=Carbon!$B112,'Crop 3'!$V$65*VLOOKUP('Crop 3'!$E$65,Carbon!$AH$4:$AI$10,2,FALSE),0))*$AL$20,2)","v":0},{"$f":"Q112*Inputs!$D$17","v":0},{"$f":"ROUND(T112/Inputs!D$19,2)","v":0},0,null,null,0,{"$f":"W112*Inputs!$D$13","v":0},0,{"$f":"Y112*Inputs!$D$13","v":0},0,{"$f":"AA112*Inputs!$D$13","v":0},{"$f":"ROUND(AD112/Inputs!D$19,2)","v":0},0]
[null,{"$f":"Defaults!AH79","v":"MSMA"},{"$f":"ROUND((IF('Crop 1'!$C$14=Carbon!$B113,'Crop 1'!$L$14*VLOOKUP('Crop 1'!$E$14,Carbon!$AH$4:$AI$10,2,FALSE),0)+IF('Crop 1'!$C$15=Carbon!$B113,'Crop 1'!$L$15*VLOOKUP('Crop 1'!$E$15,Carbon!$AH$4:$AI$10,2,FALSE),0)+IF('Crop 1'!$C$16=Carbon!$B113,'Crop 1'!$L$16*VLOOKUP('Crop 1'!$E$16,Carbon!$AH$4:$AI$10,2,FALSE),0)+IF('Crop 1'!$C$19=Carbon!$B113,'Crop 1'!$L$19*VLOOKUP('Crop 1'!$E$19,Carbon!$AH$4:$AI$10,2,FALSE),0)+IF('Crop 1'!$C$20=Carbon!$B113,'Crop 1'!$L$20*VLOOKUP('Crop 1'!$E$20,Carbon!$AH$4:$AI$10,2,FALSE),0)+IF('Crop 1'!$C$21=Carbon!$B113,'Crop 1'!$L$21*VLOOKUP('Crop 1'!$E$21,Carbon!$AH$4:$AI$10,2,FALSE),0)+IF('Crop 1'!$C$49=Carbon!$B113,'Crop 1'!$L$49*VLOOKUP('Crop 1'!$E$49,Carbon!$AH$4:$AI$10,2,FALSE),0)+IF('Crop 1'!$C$50=Carbon!$B113,'Crop 1'!$L$50*VLOOKUP('Crop 1'!$E$50,Carbon!$AH$4:$AI$10,2,FALSE),0)+IF('Crop 1'!$C$51=Carbon!$B113,'Crop 1'!$L$51*VLOOKUP('Crop 1'!$E$51,Carbon!$AH$4:$AI$10,2,FALSE),0)+IF('Crop 1'!$C$52=Carbon!$B113,'Crop 1'!$L$52*VLOOKUP('Crop 1'!$E$52,Carbon!$AH$4:$AI$10,2,FALSE),0)+IF('Crop 1'!$C$53=Carbon!$B113,'Crop 1'!$L$53*VLOOKUP('Crop 1'!$E$53,Carbon!$AH$4:$AI$10,2,FALSE),0)+IF('Crop 1'!$C$56=Carbon!$B113,'Crop 1'!$L$56*VLOOKUP('Crop 1'!$E$56,Carbon!$AH$4:$AI$10,2,FALSE),0)+IF('Crop 1'!$C$57=Carbon!$B113,'Crop 1'!$L$57*VLOOKUP('Crop 1'!$E$57,Carbon!$AH$4:$AI$10,2,FALSE),0)+IF('Crop 1'!$C$58=Carbon!$B113,'Crop 1'!$L$58*VLOOKUP('Crop 1'!$E$58,Carbon!$AH$4:$AI$10,2,FALSE),0)+IF('Crop 1'!$C$59=Carbon!$B113,'Crop 1'!$L$59*VLOOKUP('Crop 1'!$E$59,Carbon!$AH$4:$AI$10,2,FALSE),0)+IF('Crop 1'!$C$62=Carbon!$B113,'Crop 1'!$L$62*VLOOKUP('Crop 1'!$E$62,Carbon!$AH$4:$AI$10,2,FALSE),0)+IF('Crop 1'!$C$63=Carbon!$B113,'Crop 1'!$L$63*VLOOKUP('Crop 1'!$E$63,Carbon!$AH$4:$AI$10,2,FALSE),0)+IF('Crop 1'!$C$64=Carbon!$B113,'Crop 1'!$L$64*VLOOKUP('Crop 1'!$E$64,Carbon!$AH$4:$AI$10,2,FALSE),0)+IF('Crop 1'!$C$65=Carbon!$B113,'Crop 1'!$L$65*VLOOKUP('Crop 1'!$E$65,Carbon!$AH$4:$AI$10,2,FALSE),0))*$AL$20,2)","v":10.42},{"$f":"C113*Inputs!$D$13","v":3126},{"$f":"ROUND((IF('Crop 2'!$C$14=Carbon!$B113,'Crop 2'!$L$14*VLOOKUP('Crop 2'!$E$14,Carbon!$AH$4:$AI$10,2,FALSE),0)+IF('Crop 2'!$C$15=Carbon!$B113,'Crop 2'!$L$15*VLOOKUP('Crop 2'!$E$15,Carbon!$AH$4:$AI$10,2,FALSE),0)+IF('Crop 2'!$C$16=Carbon!$B113,'Crop 2'!$L$16*VLOOKUP('Crop 2'!$E$16,Carbon!$AH$4:$AI$10,2,FALSE),0)+IF('Crop 2'!$C$19=Carbon!$B113,'Crop 2'!$L$19*VLOOKUP('Crop 2'!$E$19,Carbon!$AH$4:$AI$10,2,FALSE),0)+IF('Crop 2'!$C$20=Carbon!$B113,'Crop 2'!$L$20*VLOOKUP('Crop 2'!$E$20,Carbon!$AH$4:$AI$10,2,FALSE),0)+IF('Crop 2'!$C$21=Carbon!$B113,'Crop 2'!$L$21*VLOOKUP('Crop 2'!$E$21,Carbon!$AH$4:$AI$10,2,FALSE),0)+IF('Crop 2'!$C$49=Carbon!$B113,'Crop 2'!$L$49*VLOOKUP('Crop 2'!$E$49,Carbon!$AH$4:$AI$10,2,FALSE),0)+IF('Crop 2'!$C$50=Carbon!$B113,'Crop 2'!$L$50*VLOOKUP('Crop 2'!$E$50,Carbon!$AH$4:$AI$10,2,FALSE),0)+IF('Crop 2'!$C$51=Carbon!$B113,'Crop 2'!$L$51*VLOOKUP('Crop 2'!$E$51,Carbon!$AH$4:$AI$10,2,FALSE),0)+IF('Crop 2'!$C$52=Carbon!$B113,'Crop 2'!$L$52*VLOOKUP('Crop 2'!$E$52,Carbon!$AH$4:$AI$10,2,FALSE),0)+IF('Crop 2'!$C$53=Carbon!$B113,'Crop 2'!$L$53*VLOOKUP('Crop 2'!$E$53,Carbon!$AH$4:$AI$10,2,FALSE),0)+IF('Crop 2'!$C$56=Carbon!$B113,'Crop 2'!$L$56*VLOOKUP('Crop 2'!$E$56,Carbon!$AH$4:$AI$10,2,FALSE),0)+IF('Crop 2'!$C$57=Carbon!$B113,'Crop 2'!$L$57*VLOOKUP('Crop 2'!$E$57,Carbon!$AH$4:$AI$10,2,FALSE),0)+IF('Crop 2'!$C$58=Carbon!$B113,'Crop 2'!$L$58*VLOOKUP('Crop 2'!$E$58,Carbon!$AH$4:$AI$10,2,FALSE),0)+IF('Crop 2'!$C$59=Carbon!$B113,'Crop 2'!$L$59*VLOOKUP('Crop 2'!$E$59,Carbon!$AH$4:$AI$10,2,FALSE),0)+IF('Crop 2'!$C$62=Carbon!$B113,'Crop 2'!$L$62*VLOOKUP('Crop 2'!$E$62,Carbon!$AH$4:$AI$10,2,FALSE),0)+IF('Crop 2'!$C$63=Carbon!$B113,'Crop 2'!$L$63*VLOOKUP('Crop 2'!$E$63,Carbon!$AH$4:$AI$10,2,FALSE),0)+IF('Crop 2'!$C$64=Carbon!$B113,'Crop 2'!$L$64*VLOOKUP('Crop 2'!$E$64,Carbon!$AH$4:$AI$10,2,FALSE),0)+IF('Crop 2'!$C$65=Carbon!$B113,'Crop 2'!$L$65*VLOOKUP('Crop 2'!$E$65,Carbon!$AH$4:$AI$10,2,FALSE),0))*$AL$20,2)","v":0},{"$f":"E113*Inputs!$D$15","v":0},{"$f":"ROUND((IF('Crop 3'!$C$14=Carbon!$B113,'Crop 3'!$L$14*VLOOKUP('Crop 3'!$E$14,Carbon!$AH$4:$AI$10,2,FALSE),0)+IF('Crop 3'!$C$15=Carbon!$B113,'Crop 3'!$L$15*VLOOKUP('Crop 3'!$E$15,Carbon!$AH$4:$AI$10,2,FALSE),0)+IF('Crop 3'!$C$16=Carbon!$B113,'Crop 3'!$L$16*VLOOKUP('Crop 3'!$E$16,Carbon!$AH$4:$AI$10,2,FALSE),0)+IF('Crop 3'!$C$19=Carbon!$B113,'Crop 3'!$L$19*VLOOKUP('Crop 3'!$E$19,Carbon!$AH$4:$AI$10,2,FALSE),0)+IF('Crop 3'!$C$20=Carbon!$B113,'Crop 3'!$L$20*VLOOKUP('Crop 3'!$E$20,Carbon!$AH$4:$AI$10,2,FALSE),0)+IF('Crop 3'!$C$21=Carbon!$B113,'Crop 3'!$L$21*VLOOKUP('Crop 3'!$E$21,Carbon!$AH$4:$AI$10,2,FALSE),0)+IF('Crop 3'!$C$49=Carbon!$B113,'Crop 3'!$L$49*VLOOKUP('Crop 3'!$E$49,Carbon!$AH$4:$AI$10,2,FALSE),0)+IF('Crop 3'!$C$50=Carbon!$B113,'Crop 3'!$L$50*VLOOKUP('Crop 3'!$E$50,Carbon!$AH$4:$AI$10,2,FALSE),0)+IF('Crop 3'!$C$51=Carbon!$B113,'Crop 3'!$L$51*VLOOKUP('Crop 3'!$E$51,Carbon!$AH$4:$AI$10,2,FALSE),0)+IF('Crop 3'!$C$52=Carbon!$B113,'Crop 3'!$L$52*VLOOKUP('Crop 3'!$E$52,Carbon!$AH$4:$AI$10,2,FALSE),0)+IF('Crop 3'!$C$53=Carbon!$B113,'Crop 3'!$L$53*VLOOKUP('Crop 3'!$E$53,Carbon!$AH$4:$AI$10,2,FALSE),0)+IF('Crop 3'!$C$56=Carbon!$B113,'Crop 3'!$L$56*VLOOKUP('Crop 3'!$E$56,Carbon!$AH$4:$AI$10,2,FALSE),0)+IF('Crop 3'!$C$57=Carbon!$B113,'Crop 3'!$L$57*VLOOKUP('Crop 3'!$E$57,Carbon!$AH$4:$AI$10,2,FALSE),0)+IF('Crop 3'!$C$58=Carbon!$B113,'Crop 3'!$L$58*VLOOKUP('Crop 3'!$E$58,Carbon!$AH$4:$AI$10,2,FALSE),0)+IF('Crop 3'!$C$59=Carbon!$B113,'Crop 3'!$L$59*VLOOKUP('Crop 3'!$E$59,Carbon!$AH$4:$AI$10,2,FALSE),0)+IF('Crop 3'!$C$62=Carbon!$B113,'Crop 3'!$L$62*VLOOKUP('Crop 3'!$E$62,Carbon!$AH$4:$AI$10,2,FALSE),0)+IF('Crop 3'!$C$63=Carbon!$B113,'Crop 3'!$L$63*VLOOKUP('Crop 3'!$E$63,Carbon!$AH$4:$AI$10,2,FALSE),0)+IF('Crop 3'!$C$64=Carbon!$B113,'Crop 3'!$L$64*VLOOKUP('Crop 3'!$E$64,Carbon!$AH$4:$AI$10,2,FALSE),0)+IF('Crop 3'!$C$65=Carbon!$B113,'Crop 3'!$L$65*VLOOKUP('Crop 3'!$E$65,Carbon!$AH$4:$AI$10,2,FALSE),0))*$AL$20,2)","v":0},{"$f":"G113*Inputs!$D$17","v":0},{"$f":"ROUND(J113/Inputs!D$19,2)","v":5.21},3126,null,null,{"$f":"ROUND((IF('Crop 1'!$C$14=Carbon!$B113,'Crop 1'!$V$14*VLOOKUP('Crop 1'!$E$14,Carbon!$AH$4:$AI$10,2,FALSE),0)+IF('Crop 1'!$C$15=Carbon!$B113,'Crop 1'!$V$15*VLOOKUP('Crop 1'!$E$15,Carbon!$AH$4:$AI$10,2,FALSE),0)+IF('Crop 1'!$C$16=Carbon!$B113,'Crop 1'!$V$16*VLOOKUP('Crop 1'!$E$16,Carbon!$AH$4:$AI$10,2,FALSE),0)+IF('Crop 1'!$C$19=Carbon!$B113,'Crop 1'!$V$19*VLOOKUP('Crop 1'!$E$19,Carbon!$AH$4:$AI$10,2,FALSE),0)+IF('Crop 1'!$C$20=Carbon!$B113,'Crop 1'!$V$20*VLOOKUP('Crop 1'!$E$20,Carbon!$AH$4:$AI$10,2,FALSE),0)+IF('Crop 1'!$C$21=Carbon!$B113,'Crop 1'!$V$21*VLOOKUP('Crop 1'!$E$21,Carbon!$AH$4:$AI$10,2,FALSE),0)+IF('Crop 1'!$C$49=Carbon!$B113,'Crop 1'!$V$49*VLOOKUP('Crop 1'!$E$49,Carbon!$AH$4:$AI$10,2,FALSE),0)+IF('Crop 1'!$C$50=Carbon!$B113,'Crop 1'!$V$50*VLOOKUP('Crop 1'!$E$50,Carbon!$AH$4:$AI$10,2,FALSE),0)+IF('Crop 1'!$C$51=Carbon!$B113,'Crop 1'!$V$51*VLOOKUP('Crop 1'!$E$51,Carbon!$AH$4:$AI$10,2,FALSE),0)+IF('Crop 1'!$C$52=Carbon!$B113,'Crop 1'!$V$52*VLOOKUP('Crop 1'!$E$52,Carbon!$AH$4:$AI$10,2,FALSE),0)+IF('Crop 1'!$C$53=Carbon!$B113,'Crop 1'!$V$53*VLOOKUP('Crop 1'!$E$53,Carbon!$AH$4:$AI$10,2,FALSE),0)+IF('Crop 1'!$C$56=Carbon!$B113,'Crop 1'!$V$56*VLOOKUP('Crop 1'!$E$56,Carbon!$AH$4:$AI$10,2,FALSE),0)+IF('Crop 1'!$C$57=Carbon!$B113,'Crop 1'!$V$57*VLOOKUP('Crop 1'!$E$57,Carbon!$AH$4:$AI$10,2,FALSE),0)+IF('Crop 1'!$C$58=Carbon!$B113,'Crop 1'!$V$58*VLOOKUP('Crop 1'!$E$58,Carbon!$AH$4:$AI$10,2,FALSE),0)+IF('Crop 1'!$C$59=Carbon!$B113,'Crop 1'!$V$59*VLOOKUP('Crop 1'!$E$59,Carbon!$AH$4:$AI$10,2,FALSE),0)+IF('Crop 1'!$C$62=Carbon!$B113,'Crop 1'!$V$62*VLOOKUP('Crop 1'!$E$62,Carbon!$AH$4:$AI$10,2,FALSE),0)+IF('Crop 1'!$C$63=Carbon!$B113,'Crop 1'!$V$63*VLOOKUP('Crop 1'!$E$63,Carbon!$AH$4:$AI$10,2,FALSE),0)+IF('Crop 1'!$C$64=Carbon!$B113,'Crop 1'!$V$64*VLOOKUP('Crop 1'!$E$64,Carbon!$AH$4:$AI$10,2,FALSE),0)+IF('Crop 1'!$C$65=Carbon!$B113,'Crop 1'!$V$65*VLOOKUP('Crop 1'!$E$65,Carbon!$AH$4:$AI$10,2,FALSE),0))*$AL$20,2)","v":9.4700000000000006},{"$f":"M113*Inputs!$D$13","v":2841},{"$f":"ROUND((IF('Crop 2'!$C$14=Carbon!$B113,'Crop 2'!$V$14*VLOOKUP('Crop 2'!$E$14,Carbon!$AH$4:$AI$10,2,FALSE),0)+IF('Crop 2'!$C$15=Carbon!$B113,'Crop 2'!$V$15*VLOOKUP('Crop 2'!$E$15,Carbon!$AH$4:$AI$10,2,FALSE),0)+IF('Crop 2'!$C$16=Carbon!$B113,'Crop 2'!$V$16*VLOOKUP('Crop 2'!$E$16,Carbon!$AH$4:$AI$10,2,FALSE),0)+IF('Crop 2'!$C$19=Carbon!$B113,'Crop 2'!$V$19*VLOOKUP('Crop 2'!$E$19,Carbon!$AH$4:$AI$10,2,FALSE),0)+IF('Crop 2'!$C$20=Carbon!$B113,'Crop 2'!$V$20*VLOOKUP('Crop 2'!$E$20,Carbon!$AH$4:$AI$10,2,FALSE),0)+IF('Crop 2'!$C$21=Carbon!$B113,'Crop 2'!$V$21*VLOOKUP('Crop 2'!$E$21,Carbon!$AH$4:$AI$10,2,FALSE),0)+IF('Crop 2'!$C$49=Carbon!$B113,'Crop 2'!$V$49*VLOOKUP('Crop 2'!$E$49,Carbon!$AH$4:$AI$10,2,FALSE),0)+IF('Crop 2'!$C$50=Carbon!$B113,'Crop 2'!$V$50*VLOOKUP('Crop 2'!$E$50,Carbon!$AH$4:$AI$10,2,FALSE),0)+IF('Crop 2'!$C$51=Carbon!$B113,'Crop 2'!$V$51*VLOOKUP('Crop 2'!$E$51,Carbon!$AH$4:$AI$10,2,FALSE),0)+IF('Crop 2'!$C$52=Carbon!$B113,'Crop 2'!$V$52*VLOOKUP('Crop 2'!$E$52,Carbon!$AH$4:$AI$10,2,FALSE),0)+IF('Crop 2'!$C$53=Carbon!$B113,'Crop 2'!$V$53*VLOOKUP('Crop 2'!$E$53,Carbon!$AH$4:$AI$10,2,FALSE),0)+IF('Crop 2'!$C$56=Carbon!$B113,'Crop 2'!$V$56*VLOOKUP('Crop 2'!$E$56,Carbon!$AH$4:$AI$10,2,FALSE),0)+IF('Crop 2'!$C$57=Carbon!$B113,'Crop 2'!$V$57*VLOOKUP('Crop 2'!$E$57,Carbon!$AH$4:$AI$10,2,FALSE),0)+IF('Crop 2'!$C$58=Carbon!$B113,'Crop 2'!$V$58*VLOOKUP('Crop 2'!$E$58,Carbon!$AH$4:$AI$10,2,FALSE),0)+IF('Crop 2'!$C$59=Carbon!$B113,'Crop 2'!$V$59*VLOOKUP('Crop 2'!$E$59,Carbon!$AH$4:$AI$10,2,FALSE),0)+IF('Crop 2'!$C$62=Carbon!$B113,'Crop 2'!$V$62*VLOOKUP('Crop 2'!$E$62,Carbon!$AH$4:$AI$10,2,FALSE),0)+IF('Crop 2'!$C$63=Carbon!$B113,'Crop 2'!$V$63*VLOOKUP('Crop 2'!$E$63,Carbon!$AH$4:$AI$10,2,FALSE),0)+IF('Crop 2'!$C$64=Carbon!$B113,'Crop 2'!$V$64*VLOOKUP('Crop 2'!$E$64,Carbon!$AH$4:$AI$10,2,FALSE),0)+IF('Crop 2'!$C$65=Carbon!$B113,'Crop 2'!$V$65*VLOOKUP('Crop 2'!$E$65,Carbon!$AH$4:$AI$10,2,FALSE),0))*$AL$20,2)","v":0},{"$f":"O113*Inputs!$D$15","v":0},{"$f":"ROUND((IF('Crop 3'!$C$14=Carbon!$B113,'Crop 3'!$V$14*VLOOKUP('Crop 3'!$E$14,Carbon!$AH$4:$AI$10,2,FALSE),0)+IF('Crop 3'!$C$15=Carbon!$B113,'Crop 3'!$V$15*VLOOKUP('Crop 3'!$E$15,Carbon!$AH$4:$AI$10,2,FALSE),0)+IF('Crop 3'!$C$16=Carbon!$B113,'Crop 3'!$V$16*VLOOKUP('Crop 3'!$E$16,Carbon!$AH$4:$AI$10,2,FALSE),0)+IF('Crop 3'!$C$19=Carbon!$B113,'Crop 3'!$V$19*VLOOKUP('Crop 3'!$E$19,Carbon!$AH$4:$AI$10,2,FALSE),0)+IF('Crop 3'!$C$20=Carbon!$B113,'Crop 3'!$V$20*VLOOKUP('Crop 3'!$E$20,Carbon!$AH$4:$AI$10,2,FALSE),0)+IF('Crop 3'!$C$21=Carbon!$B113,'Crop 3'!$V$21*VLOOKUP('Crop 3'!$E$21,Carbon!$AH$4:$AI$10,2,FALSE),0)+IF('Crop 3'!$C$49=Carbon!$B113,'Crop 3'!$V$49*VLOOKUP('Crop 3'!$E$49,Carbon!$AH$4:$AI$10,2,FALSE),0)+IF('Crop 3'!$C$50=Carbon!$B113,'Crop 3'!$V$50*VLOOKUP('Crop 3'!$E$50,Carbon!$AH$4:$AI$10,2,FALSE),0)+IF('Crop 3'!$C$51=Carbon!$B113,'Crop 3'!$V$51*VLOOKUP('Crop 3'!$E$51,Carbon!$AH$4:$AI$10,2,FALSE),0)+IF('Crop 3'!$C$52=Carbon!$B113,'Crop 3'!$V$52*VLOOKUP('Crop 3'!$E$52,Carbon!$AH$4:$AI$10,2,FALSE),0)+IF('Crop 3'!$C$53=Carbon!$B113,'Crop 3'!$V$53*VLOOKUP('Crop 3'!$E$53,Carbon!$AH$4:$AI$10,2,FALSE),0)+IF('Crop 3'!$C$56=Carbon!$B113,'Crop 3'!$V$56*VLOOKUP('Crop 3'!$E$56,Carbon!$AH$4:$AI$10,2,FALSE),0)+IF('Crop 3'!$C$57=Carbon!$B113,'Crop 3'!$V$57*VLOOKUP('Crop 3'!$E$57,Carbon!$AH$4:$AI$10,2,FALSE),0)+IF('Crop 3'!$C$58=Carbon!$B113,'Crop 3'!$V$58*VLOOKUP('Crop 3'!$E$58,Carbon!$AH$4:$AI$10,2,FALSE),0)+IF('Crop 3'!$C$59=Carbon!$B113,'Crop 3'!$V$59*VLOOKUP('Crop 3'!$E$59,Carbon!$AH$4:$AI$10,2,FALSE),0)+IF('Crop 3'!$C$62=Carbon!$B113,'Crop 3'!$V$62*VLOOKUP('Crop 3'!$E$62,Carbon!$AH$4:$AI$10,2,FALSE),0)+IF('Crop 3'!$C$63=Carbon!$B113,'Crop 3'!$V$63*VLOOKUP('Crop 3'!$E$63,Carbon!$AH$4:$AI$10,2,FALSE),0)+IF('Crop 3'!$C$64=Carbon!$B113,'Crop 3'!$V$64*VLOOKUP('Crop 3'!$E$64,Carbon!$AH$4:$AI$10,2,FALSE),0)+IF('Crop 3'!$C$65=Carbon!$B113,'Crop 3'!$V$65*VLOOKUP('Crop 3'!$E$65,Carbon!$AH$4:$AI$10,2,FALSE),0))*$AL$20,2)","v":0},{"$f":"Q113*Inputs!$D$17","v":0},{"$f":"ROUND(T113/Inputs!D$19,2)","v":4.74},2841,null,null,-0.94999999999999929,{"$f":"W113*Inputs!$D$13","v":-284.99999999999977},0,{"$f":"Y113*Inputs!$D$13","v":0},{"$f":"Q113-G113","v":0},{"$f":"AA113*Inputs!$D$13","v":0},{"$f":"ROUND(AD113/Inputs!D$19,2)","v":-0.48},-285]
[null,{"$f":"Defaults!AH80","v":"Newpath"},{"$f":"ROUND((IF('Crop 1'!$C$14=Carbon!$B114,'Crop 1'!$L$14*VLOOKUP('Crop 1'!$E$14,Carbon!$AH$4:$AI$10,2,FALSE),0)+IF('Crop 1'!$C$15=Carbon!$B114,'Crop 1'!$L$15*VLOOKUP('Crop 1'!$E$15,Carbon!$AH$4:$AI$10,2,FALSE),0)+IF('Crop 1'!$C$16=Carbon!$B114,'Crop 1'!$L$16*VLOOKUP('Crop 1'!$E$16,Carbon!$AH$4:$AI$10,2,FALSE),0)+IF('Crop 1'!$C$19=Carbon!$B114,'Crop 1'!$L$19*VLOOKUP('Crop 1'!$E$19,Carbon!$AH$4:$AI$10,2,FALSE),0)+IF('Crop 1'!$C$20=Carbon!$B114,'Crop 1'!$L$20*VLOOKUP('Crop 1'!$E$20,Carbon!$AH$4:$AI$10,2,FALSE),0)+IF('Crop 1'!$C$21=Carbon!$B114,'Crop 1'!$L$21*VLOOKUP('Crop 1'!$E$21,Carbon!$AH$4:$AI$10,2,FALSE),0)+IF('Crop 1'!$C$49=Carbon!$B114,'Crop 1'!$L$49*VLOOKUP('Crop 1'!$E$49,Carbon!$AH$4:$AI$10,2,FALSE),0)+IF('Crop 1'!$C$50=Carbon!$B114,'Crop 1'!$L$50*VLOOKUP('Crop 1'!$E$50,Carbon!$AH$4:$AI$10,2,FALSE),0)+IF('Crop 1'!$C$51=Carbon!$B114,'Crop 1'!$L$51*VLOOKUP('Crop 1'!$E$51,Carbon!$AH$4:$AI$10,2,FALSE),0)+IF('Crop 1'!$C$52=Carbon!$B114,'Crop 1'!$L$52*VLOOKUP('Crop 1'!$E$52,Carbon!$AH$4:$AI$10,2,FALSE),0)+IF('Crop 1'!$C$53=Carbon!$B114,'Crop 1'!$L$53*VLOOKUP('Crop 1'!$E$53,Carbon!$AH$4:$AI$10,2,FALSE),0)+IF('Crop 1'!$C$56=Carbon!$B114,'Crop 1'!$L$56*VLOOKUP('Crop 1'!$E$56,Carbon!$AH$4:$AI$10,2,FALSE),0)+IF('Crop 1'!$C$57=Carbon!$B114,'Crop 1'!$L$57*VLOOKUP('Crop 1'!$E$57,Carbon!$AH$4:$AI$10,2,FALSE),0)+IF('Crop 1'!$C$58=Carbon!$B114,'Crop 1'!$L$58*VLOOKUP('Crop 1'!$E$58,Carbon!$AH$4:$AI$10,2,FALSE),0)+IF('Crop 1'!$C$59=Carbon!$B114,'Crop 1'!$L$59*VLOOKUP('Crop 1'!$E$59,Carbon!$AH$4:$AI$10,2,FALSE),0)+IF('Crop 1'!$C$62=Carbon!$B114,'Crop 1'!$L$62*VLOOKUP('Crop 1'!$E$62,Carbon!$AH$4:$AI$10,2,FALSE),0)+IF('Crop 1'!$C$63=Carbon!$B114,'Crop 1'!$L$63*VLOOKUP('Crop 1'!$E$63,Carbon!$AH$4:$AI$10,2,FALSE),0)+IF('Crop 1'!$C$64=Carbon!$B114,'Crop 1'!$L$64*VLOOKUP('Crop 1'!$E$64,Carbon!$AH$4:$AI$10,2,FALSE),0)+IF('Crop 1'!$C$65=Carbon!$B114,'Crop 1'!$L$65*VLOOKUP('Crop 1'!$E$65,Carbon!$AH$4:$AI$10,2,FALSE),0))*$AL$20,2)","v":0},{"$f":"C114*Inputs!$D$13","v":0},{"$f":"ROUND((IF('Crop 2'!$C$14=Carbon!$B114,'Crop 2'!$L$14*VLOOKUP('Crop 2'!$E$14,Carbon!$AH$4:$AI$10,2,FALSE),0)+IF('Crop 2'!$C$15=Carbon!$B114,'Crop 2'!$L$15*VLOOKUP('Crop 2'!$E$15,Carbon!$AH$4:$AI$10,2,FALSE),0)+IF('Crop 2'!$C$16=Carbon!$B114,'Crop 2'!$L$16*VLOOKUP('Crop 2'!$E$16,Carbon!$AH$4:$AI$10,2,FALSE),0)+IF('Crop 2'!$C$19=Carbon!$B114,'Crop 2'!$L$19*VLOOKUP('Crop 2'!$E$19,Carbon!$AH$4:$AI$10,2,FALSE),0)+IF('Crop 2'!$C$20=Carbon!$B114,'Crop 2'!$L$20*VLOOKUP('Crop 2'!$E$20,Carbon!$AH$4:$AI$10,2,FALSE),0)+IF('Crop 2'!$C$21=Carbon!$B114,'Crop 2'!$L$21*VLOOKUP('Crop 2'!$E$21,Carbon!$AH$4:$AI$10,2,FALSE),0)+IF('Crop 2'!$C$49=Carbon!$B114,'Crop 2'!$L$49*VLOOKUP('Crop 2'!$E$49,Carbon!$AH$4:$AI$10,2,FALSE),0)+IF('Crop 2'!$C$50=Carbon!$B114,'Crop 2'!$L$50*VLOOKUP('Crop 2'!$E$50,Carbon!$AH$4:$AI$10,2,FALSE),0)+IF('Crop 2'!$C$51=Carbon!$B114,'Crop 2'!$L$51*VLOOKUP('Crop 2'!$E$51,Carbon!$AH$4:$AI$10,2,FALSE),0)+IF('Crop 2'!$C$52=Carbon!$B114,'Crop 2'!$L$52*VLOOKUP('Crop 2'!$E$52,Carbon!$AH$4:$AI$10,2,FALSE),0)+IF('Crop 2'!$C$53=Carbon!$B114,'Crop 2'!$L$53*VLOOKUP('Crop 2'!$E$53,Carbon!$AH$4:$AI$10,2,FALSE),0)+IF('Crop 2'!$C$56=Carbon!$B114,'Crop 2'!$L$56*VLOOKUP('Crop 2'!$E$56,Carbon!$AH$4:$AI$10,2,FALSE),0)+IF('Crop 2'!$C$57=Carbon!$B114,'Crop 2'!$L$57*VLOOKUP('Crop 2'!$E$57,Carbon!$AH$4:$AI$10,2,FALSE),0)+IF('Crop 2'!$C$58=Carbon!$B114,'Crop 2'!$L$58*VLOOKUP('Crop 2'!$E$58,Carbon!$AH$4:$AI$10,2,FALSE),0)+IF('Crop 2'!$C$59=Carbon!$B114,'Crop 2'!$L$59*VLOOKUP('Crop 2'!$E$59,Carbon!$AH$4:$AI$10,2,FALSE),0)+IF('Crop 2'!$C$62=Carbon!$B114,'Crop 2'!$L$62*VLOOKUP('Crop 2'!$E$62,Carbon!$AH$4:$AI$10,2,FALSE),0)+IF('Crop 2'!$C$63=Carbon!$B114,'Crop 2'!$L$63*VLOOKUP('Crop 2'!$E$63,Carbon!$AH$4:$AI$10,2,FALSE),0)+IF('Crop 2'!$C$64=Carbon!$B114,'Crop 2'!$L$64*VLOOKUP('Crop 2'!$E$64,Carbon!$AH$4:$AI$10,2,FALSE),0)+IF('Crop 2'!$C$65=Carbon!$B114,'Crop 2'!$L$65*VLOOKUP('Crop 2'!$E$65,Carbon!$AH$4:$AI$10,2,FALSE),0))*$AL$20,2)","v":0},{"$f":"E114*Inputs!$D$15","v":0},{"$f":"ROUND((IF('Crop 3'!$C$14=Carbon!$B114,'Crop 3'!$L$14*VLOOKUP('Crop 3'!$E$14,Carbon!$AH$4:$AI$10,2,FALSE),0)+IF('Crop 3'!$C$15=Carbon!$B114,'Crop 3'!$L$15*VLOOKUP('Crop 3'!$E$15,Carbon!$AH$4:$AI$10,2,FALSE),0)+IF('Crop 3'!$C$16=Carbon!$B114,'Crop 3'!$L$16*VLOOKUP('Crop 3'!$E$16,Carbon!$AH$4:$AI$10,2,FALSE),0)+IF('Crop 3'!$C$19=Carbon!$B114,'Crop 3'!$L$19*VLOOKUP('Crop 3'!$E$19,Carbon!$AH$4:$AI$10,2,FALSE),0)+IF('Crop 3'!$C$20=Carbon!$B114,'Crop 3'!$L$20*VLOOKUP('Crop 3'!$E$20,Carbon!$AH$4:$AI$10,2,FALSE),0)+IF('Crop 3'!$C$21=Carbon!$B114,'Crop 3'!$L$21*VLOOKUP('Crop 3'!$E$21,Carbon!$AH$4:$AI$10,2,FALSE),0)+IF('Crop 3'!$C$49=Carbon!$B114,'Crop 3'!$L$49*VLOOKUP('Crop 3'!$E$49,Carbon!$AH$4:$AI$10,2,FALSE),0)+IF('Crop 3'!$C$50=Carbon!$B114,'Crop 3'!$L$50*VLOOKUP('Crop 3'!$E$50,Carbon!$AH$4:$AI$10,2,FALSE),0)+IF('Crop 3'!$C$51=Carbon!$B114,'Crop 3'!$L$51*VLOOKUP('Crop 3'!$E$51,Carbon!$AH$4:$AI$10,2,FALSE),0)+IF('Crop 3'!$C$52=Carbon!$B114,'Crop 3'!$L$52*VLOOKUP('Crop 3'!$E$52,Carbon!$AH$4:$AI$10,2,FALSE),0)+IF('Crop 3'!$C$53=Carbon!$B114,'Crop 3'!$L$53*VLOOKUP('Crop 3'!$E$53,Carbon!$AH$4:$AI$10,2,FALSE),0)+IF('Crop 3'!$C$56=Carbon!$B114,'Crop 3'!$L$56*VLOOKUP('Crop 3'!$E$56,Carbon!$AH$4:$AI$10,2,FALSE),0)+IF('Crop 3'!$C$57=Carbon!$B114,'Crop 3'!$L$57*VLOOKUP('Crop 3'!$E$57,Carbon!$AH$4:$AI$10,2,FALSE),0)+IF('Crop 3'!$C$58=Carbon!$B114,'Crop 3'!$L$58*VLOOKUP('Crop 3'!$E$58,Carbon!$AH$4:$AI$10,2,FALSE),0)+IF('Crop 3'!$C$59=Carbon!$B114,'Crop 3'!$L$59*VLOOKUP('Crop 3'!$E$59,Carbon!$AH$4:$AI$10,2,FALSE),0)+IF('Crop 3'!$C$62=Carbon!$B114,'Crop 3'!$L$62*VLOOKUP('Crop 3'!$E$62,Carbon!$AH$4:$AI$10,2,FALSE),0)+IF('Crop 3'!$C$63=Carbon!$B114,'Crop 3'!$L$63*VLOOKUP('Crop 3'!$E$63,Carbon!$AH$4:$AI$10,2,FALSE),0)+IF('Crop 3'!$C$64=Carbon!$B114,'Crop 3'!$L$64*VLOOKUP('Crop 3'!$E$64,Carbon!$AH$4:$AI$10,2,FALSE),0)+IF('Crop 3'!$C$65=Carbon!$B114,'Crop 3'!$L$65*VLOOKUP('Crop 3'!$E$65,Carbon!$AH$4:$AI$10,2,FALSE),0))*$AL$20,2)","v":0},{"$f":"G114*Inputs!$D$17","v":0},{"$f":"ROUND(J114/Inputs!D$19,2)","v":0},0,null,null,{"$f":"ROUND((IF('Crop 1'!$C$14=Carbon!$B114,'Crop 1'!$V$14*VLOOKUP('Crop 1'!$E$14,Carbon!$AH$4:$AI$10,2,FALSE),0)+IF('Crop 1'!$C$15=Carbon!$B114,'Crop 1'!$V$15*VLOOKUP('Crop 1'!$E$15,Carbon!$AH$4:$AI$10,2,FALSE),0)+IF('Crop 1'!$C$16=Carbon!$B114,'Crop 1'!$V$16*VLOOKUP('Crop 1'!$E$16,Carbon!$AH$4:$AI$10,2,FALSE),0)+IF('Crop 1'!$C$19=Carbon!$B114,'Crop 1'!$V$19*VLOOKUP('Crop 1'!$E$19,Carbon!$AH$4:$AI$10,2,FALSE),0)+IF('Crop 1'!$C$20=Carbon!$B114,'Crop 1'!$V$20*VLOOKUP('Crop 1'!$E$20,Carbon!$AH$4:$AI$10,2,FALSE),0)+IF('Crop 1'!$C$21=Carbon!$B114,'Crop 1'!$V$21*VLOOKUP('Crop 1'!$E$21,Carbon!$AH$4:$AI$10,2,FALSE),0)+IF('Crop 1'!$C$49=Carbon!$B114,'Crop 1'!$V$49*VLOOKUP('Crop 1'!$E$49,Carbon!$AH$4:$AI$10,2,FALSE),0)+IF('Crop 1'!$C$50=Carbon!$B114,'Crop 1'!$V$50*VLOOKUP('Crop 1'!$E$50,Carbon!$AH$4:$AI$10,2,FALSE),0)+IF('Crop 1'!$C$51=Carbon!$B114,'Crop 1'!$V$51*VLOOKUP('Crop 1'!$E$51,Carbon!$AH$4:$AI$10,2,FALSE),0)+IF('Crop 1'!$C$52=Carbon!$B114,'Crop 1'!$V$52*VLOOKUP('Crop 1'!$E$52,Carbon!$AH$4:$AI$10,2,FALSE),0)+IF('Crop 1'!$C$53=Carbon!$B114,'Crop 1'!$V$53*VLOOKUP('Crop 1'!$E$53,Carbon!$AH$4:$AI$10,2,FALSE),0)+IF('Crop 1'!$C$56=Carbon!$B114,'Crop 1'!$V$56*VLOOKUP('Crop 1'!$E$56,Carbon!$AH$4:$AI$10,2,FALSE),0)+IF('Crop 1'!$C$57=Carbon!$B114,'Crop 1'!$V$57*VLOOKUP('Crop 1'!$E$57,Carbon!$AH$4:$AI$10,2,FALSE),0)+IF('Crop 1'!$C$58=Carbon!$B114,'Crop 1'!$V$58*VLOOKUP('Crop 1'!$E$58,Carbon!$AH$4:$AI$10,2,FALSE),0)+IF('Crop 1'!$C$59=Carbon!$B114,'Crop 1'!$V$59*VLOOKUP('Crop 1'!$E$59,Carbon!$AH$4:$AI$10,2,FALSE),0)+IF('Crop 1'!$C$62=Carbon!$B114,'Crop 1'!$V$62*VLOOKUP('Crop 1'!$E$62,Carbon!$AH$4:$AI$10,2,FALSE),0)+IF('Crop 1'!$C$63=Carbon!$B114,'Crop 1'!$V$63*VLOOKUP('Crop 1'!$E$63,Carbon!$AH$4:$AI$10,2,FALSE),0)+IF('Crop 1'!$C$64=Carbon!$B114,'Crop 1'!$V$64*VLOOKUP('Crop 1'!$E$64,Carbon!$AH$4:$AI$10,2,FALSE),0)+IF('Crop 1'!$C$65=Carbon!$B114,'Crop 1'!$V$65*VLOOKUP('Crop 1'!$E$65,Carbon!$AH$4:$AI$10,2,FALSE),0))*$AL$20,2)","v":0},{"$f":"M114*Inputs!$D$13","v":0},{"$f":"ROUND((IF('Crop 2'!$C$14=Carbon!$B114,'Crop 2'!$V$14*VLOOKUP('Crop 2'!$E$14,Carbon!$AH$4:$AI$10,2,FALSE),0)+IF('Crop 2'!$C$15=Carbon!$B114,'Crop 2'!$V$15*VLOOKUP('Crop 2'!$E$15,Carbon!$AH$4:$AI$10,2,FALSE),0)+IF('Crop 2'!$C$16=Carbon!$B114,'Crop 2'!$V$16*VLOOKUP('Crop 2'!$E$16,Carbon!$AH$4:$AI$10,2,FALSE),0)+IF('Crop 2'!$C$19=Carbon!$B114,'Crop 2'!$V$19*VLOOKUP('Crop 2'!$E$19,Carbon!$AH$4:$AI$10,2,FALSE),0)+IF('Crop 2'!$C$20=Carbon!$B114,'Crop 2'!$V$20*VLOOKUP('Crop 2'!$E$20,Carbon!$AH$4:$AI$10,2,FALSE),0)+IF('Crop 2'!$C$21=Carbon!$B114,'Crop 2'!$V$21*VLOOKUP('Crop 2'!$E$21,Carbon!$AH$4:$AI$10,2,FALSE),0)+IF('Crop 2'!$C$49=Carbon!$B114,'Crop 2'!$V$49*VLOOKUP('Crop 2'!$E$49,Carbon!$AH$4:$AI$10,2,FALSE),0)+IF('Crop 2'!$C$50=Carbon!$B114,'Crop 2'!$V$50*VLOOKUP('Crop 2'!$E$50,Carbon!$AH$4:$AI$10,2,FALSE),0)+IF('Crop 2'!$C$51=Carbon!$B114,'Crop 2'!$V$51*VLOOKUP('Crop 2'!$E$51,Carbon!$AH$4:$AI$10,2,FALSE),0)+IF('Crop 2'!$C$52=Carbon!$B114,'Crop 2'!$V$52*VLOOKUP('Crop 2'!$E$52,Carbon!$AH$4:$AI$10,2,FALSE),0)+IF('Crop 2'!$C$53=Carbon!$B114,'Crop 2'!$V$53*VLOOKUP('Crop 2'!$E$53,Carbon!$AH$4:$AI$10,2,FALSE),0)+IF('Crop 2'!$C$56=Carbon!$B114,'Crop 2'!$V$56*VLOOKUP('Crop 2'!$E$56,Carbon!$AH$4:$AI$10,2,FALSE),0)+IF('Crop 2'!$C$57=Carbon!$B114,'Crop 2'!$V$57*VLOOKUP('Crop 2'!$E$57,Carbon!$AH$4:$AI$10,2,FALSE),0)+IF('Crop 2'!$C$58=Carbon!$B114,'Crop 2'!$V$58*VLOOKUP('Crop 2'!$E$58,Carbon!$AH$4:$AI$10,2,FALSE),0)+IF('Crop 2'!$C$59=Carbon!$B114,'Crop 2'!$V$59*VLOOKUP('Crop 2'!$E$59,Carbon!$AH$4:$AI$10,2,FALSE),0)+IF('Crop 2'!$C$62=Carbon!$B114,'Crop 2'!$V$62*VLOOKUP('Crop 2'!$E$62,Carbon!$AH$4:$AI$10,2,FALSE),0)+IF('Crop 2'!$C$63=Carbon!$B114,'Crop 2'!$V$63*VLOOKUP('Crop 2'!$E$63,Carbon!$AH$4:$AI$10,2,FALSE),0)+IF('Crop 2'!$C$64=Carbon!$B114,'Crop 2'!$V$64*VLOOKUP('Crop 2'!$E$64,Carbon!$AH$4:$AI$10,2,FALSE),0)+IF('Crop 2'!$C$65=Carbon!$B114,'Crop 2'!$V$65*VLOOKUP('Crop 2'!$E$65,Carbon!$AH$4:$AI$10,2,FALSE),0))*$AL$20,2)","v":0},{"$f":"O114*Inputs!$D$15","v":0},{"$f":"ROUND((IF('Crop 3'!$C$14=Carbon!$B114,'Crop 3'!$V$14*VLOOKUP('Crop 3'!$E$14,Carbon!$AH$4:$AI$10,2,FALSE),0)+IF('Crop 3'!$C$15=Carbon!$B114,'Crop 3'!$V$15*VLOOKUP('Crop 3'!$E$15,Carbon!$AH$4:$AI$10,2,FALSE),0)+IF('Crop 3'!$C$16=Carbon!$B114,'Crop 3'!$V$16*VLOOKUP('Crop 3'!$E$16,Carbon!$AH$4:$AI$10,2,FALSE),0)+IF('Crop 3'!$C$19=Carbon!$B114,'Crop 3'!$V$19*VLOOKUP('Crop 3'!$E$19,Carbon!$AH$4:$AI$10,2,FALSE),0)+IF('Crop 3'!$C$20=Carbon!$B114,'Crop 3'!$V$20*VLOOKUP('Crop 3'!$E$20,Carbon!$AH$4:$AI$10,2,FALSE),0)+IF('Crop 3'!$C$21=Carbon!$B114,'Crop 3'!$V$21*VLOOKUP('Crop 3'!$E$21,Carbon!$AH$4:$AI$10,2,FALSE),0)+IF('Crop 3'!$C$49=Carbon!$B114,'Crop 3'!$V$49*VLOOKUP('Crop 3'!$E$49,Carbon!$AH$4:$AI$10,2,FALSE),0)+IF('Crop 3'!$C$50=Carbon!$B114,'Crop 3'!$V$50*VLOOKUP('Crop 3'!$E$50,Carbon!$AH$4:$AI$10,2,FALSE),0)+IF('Crop 3'!$C$51=Carbon!$B114,'Crop 3'!$V$51*VLOOKUP('Crop 3'!$E$51,Carbon!$AH$4:$AI$10,2,FALSE),0)+IF('Crop 3'!$C$52=Carbon!$B114,'Crop 3'!$V$52*VLOOKUP('Crop 3'!$E$52,Carbon!$AH$4:$AI$10,2,FALSE),0)+IF('Crop 3'!$C$53=Carbon!$B114,'Crop 3'!$V$53*VLOOKUP('Crop 3'!$E$53,Carbon!$AH$4:$AI$10,2,FALSE),0)+IF('Crop 3'!$C$56=Carbon!$B114,'Crop 3'!$V$56*VLOOKUP('Crop 3'!$E$56,Carbon!$AH$4:$AI$10,2,FALSE),0)+IF('Crop 3'!$C$57=Carbon!$B114,'Crop 3'!$V$57*VLOOKUP('Crop 3'!$E$57,Carbon!$AH$4:$AI$10,2,FALSE),0)+IF('Crop 3'!$C$58=Carbon!$B114,'Crop 3'!$V$58*VLOOKUP('Crop 3'!$E$58,Carbon!$AH$4:$AI$10,2,FALSE),0)+IF('Crop 3'!$C$59=Carbon!$B114,'Crop 3'!$V$59*VLOOKUP('Crop 3'!$E$59,Carbon!$AH$4:$AI$10,2,FALSE),0)+IF('Crop 3'!$C$62=Carbon!$B114,'Crop 3'!$V$62*VLOOKUP('Crop 3'!$E$62,Carbon!$AH$4:$AI$10,2,FALSE),0)+IF('Crop 3'!$C$63=Carbon!$B114,'Crop 3'!$V$63*VLOOKUP('Crop 3'!$E$63,Carbon!$AH$4:$AI$10,2,FALSE),0)+IF('Crop 3'!$C$64=Carbon!$B114,'Crop 3'!$V$64*VLOOKUP('Crop 3'!$E$64,Carbon!$AH$4:$AI$10,2,FALSE),0)+IF('Crop 3'!$C$65=Carbon!$B114,'Crop 3'!$V$65*VLOOKUP('Crop 3'!$E$65,Carbon!$AH$4:$AI$10,2,FALSE),0))*$AL$20,2)","v":0},{"$f":"Q114*Inputs!$D$17","v":0},{"$f":"ROUND(T114/Inputs!D$19,2)","v":0},0,null,null,0,{"$f":"W114*Inputs!$D$13","v":0},0,{"$f":"Y114*Inputs!$D$13","v":0},0,{"$f":"AA114*Inputs!$D$13","v":0},{"$f":"ROUND(AD114/Inputs!D$19,2)","v":0},0]
[null,{"$f":"Defaults!AH81","v":"Osprey"},{"$f":"ROUND((IF('Crop 1'!$C$14=Carbon!$B115,'Crop 1'!$L$14*VLOOKUP('Crop 1'!$E$14,Carbon!$AH$4:$AI$10,2,FALSE),0)+IF('Crop 1'!$C$15=Carbon!$B115,'Crop 1'!$L$15*VLOOKUP('Crop 1'!$E$15,Carbon!$AH$4:$AI$10,2,FALSE),0)+IF('Crop 1'!$C$16=Carbon!$B115,'Crop 1'!$L$16*VLOOKUP('Crop 1'!$E$16,Carbon!$AH$4:$AI$10,2,FALSE),0)+IF('Crop 1'!$C$19=Carbon!$B115,'Crop 1'!$L$19*VLOOKUP('Crop 1'!$E$19,Carbon!$AH$4:$AI$10,2,FALSE),0)+IF('Crop 1'!$C$20=Carbon!$B115,'Crop 1'!$L$20*VLOOKUP('Crop 1'!$E$20,Carbon!$AH$4:$AI$10,2,FALSE),0)+IF('Crop 1'!$C$21=Carbon!$B115,'Crop 1'!$L$21*VLOOKUP('Crop 1'!$E$21,Carbon!$AH$4:$AI$10,2,FALSE),0)+IF('Crop 1'!$C$49=Carbon!$B115,'Crop 1'!$L$49*VLOOKUP('Crop 1'!$E$49,Carbon!$AH$4:$AI$10,2,FALSE),0)+IF('Crop 1'!$C$50=Carbon!$B115,'Crop 1'!$L$50*VLOOKUP('Crop 1'!$E$50,Carbon!$AH$4:$AI$10,2,FALSE),0)+IF('Crop 1'!$C$51=Carbon!$B115,'Crop 1'!$L$51*VLOOKUP('Crop 1'!$E$51,Carbon!$AH$4:$AI$10,2,FALSE),0)+IF('Crop 1'!$C$52=Carbon!$B115,'Crop 1'!$L$52*VLOOKUP('Crop 1'!$E$52,Carbon!$AH$4:$AI$10,2,FALSE),0)+IF('Crop 1'!$C$53=Carbon!$B115,'Crop 1'!$L$53*VLOOKUP('Crop 1'!$E$53,Carbon!$AH$4:$AI$10,2,FALSE),0)+IF('Crop 1'!$C$56=Carbon!$B115,'Crop 1'!$L$56*VLOOKUP('Crop 1'!$E$56,Carbon!$AH$4:$AI$10,2,FALSE),0)+IF('Crop 1'!$C$57=Carbon!$B115,'Crop 1'!$L$57*VLOOKUP('Crop 1'!$E$57,Carbon!$AH$4:$AI$10,2,FALSE),0)+IF('Crop 1'!$C$58=Carbon!$B115,'Crop 1'!$L$58*VLOOKUP('Crop 1'!$E$58,Carbon!$AH$4:$AI$10,2,FALSE),0)+IF('Crop 1'!$C$59=Carbon!$B115,'Crop 1'!$L$59*VLOOKUP('Crop 1'!$E$59,Carbon!$AH$4:$AI$10,2,FALSE),0)+IF('Crop 1'!$C$62=Carbon!$B115,'Crop 1'!$L$62*VLOOKUP('Crop 1'!$E$62,Carbon!$AH$4:$AI$10,2,FALSE),0)+IF('Crop 1'!$C$63=Carbon!$B115,'Crop 1'!$L$63*VLOOKUP('Crop 1'!$E$63,Carbon!$AH$4:$AI$10,2,FALSE),0)+IF('Crop 1'!$C$64=Carbon!$B115,'Crop 1'!$L$64*VLOOKUP('Crop 1'!$E$64,Carbon!$AH$4:$AI$10,2,FALSE),0)+IF('Crop 1'!$C$65=Carbon!$B115,'Crop 1'!$L$65*VLOOKUP('Crop 1'!$E$65,Carbon!$AH$4:$AI$10,2,FALSE),0))*$AL$20,2)","v":0},{"$f":"C115*Inputs!$D$13","v":0},{"$f":"ROUND((IF('Crop 2'!$C$14=Carbon!$B115,'Crop 2'!$L$14*VLOOKUP('Crop 2'!$E$14,Carbon!$AH$4:$AI$10,2,FALSE),0)+IF('Crop 2'!$C$15=Carbon!$B115,'Crop 2'!$L$15*VLOOKUP('Crop 2'!$E$15,Carbon!$AH$4:$AI$10,2,FALSE),0)+IF('Crop 2'!$C$16=Carbon!$B115,'Crop 2'!$L$16*VLOOKUP('Crop 2'!$E$16,Carbon!$AH$4:$AI$10,2,FALSE),0)+IF('Crop 2'!$C$19=Carbon!$B115,'Crop 2'!$L$19*VLOOKUP('Crop 2'!$E$19,Carbon!$AH$4:$AI$10,2,FALSE),0)+IF('Crop 2'!$C$20=Carbon!$B115,'Crop 2'!$L$20*VLOOKUP('Crop 2'!$E$20,Carbon!$AH$4:$AI$10,2,FALSE),0)+IF('Crop 2'!$C$21=Carbon!$B115,'Crop 2'!$L$21*VLOOKUP('Crop 2'!$E$21,Carbon!$AH$4:$AI$10,2,FALSE),0)+IF('Crop 2'!$C$49=Carbon!$B115,'Crop 2'!$L$49*VLOOKUP('Crop 2'!$E$49,Carbon!$AH$4:$AI$10,2,FALSE),0)+IF('Crop 2'!$C$50=Carbon!$B115,'Crop 2'!$L$50*VLOOKUP('Crop 2'!$E$50,Carbon!$AH$4:$AI$10,2,FALSE),0)+IF('Crop 2'!$C$51=Carbon!$B115,'Crop 2'!$L$51*VLOOKUP('Crop 2'!$E$51,Carbon!$AH$4:$AI$10,2,FALSE),0)+IF('Crop 2'!$C$52=Carbon!$B115,'Crop 2'!$L$52*VLOOKUP('Crop 2'!$E$52,Carbon!$AH$4:$AI$10,2,FALSE),0)+IF('Crop 2'!$C$53=Carbon!$B115,'Crop 2'!$L$53*VLOOKUP('Crop 2'!$E$53,Carbon!$AH$4:$AI$10,2,FALSE),0)+IF('Crop 2'!$C$56=Carbon!$B115,'Crop 2'!$L$56*VLOOKUP('Crop 2'!$E$56,Carbon!$AH$4:$AI$10,2,FALSE),0)+IF('Crop 2'!$C$57=Carbon!$B115,'Crop 2'!$L$57*VLOOKUP('Crop 2'!$E$57,Carbon!$AH$4:$AI$10,2,FALSE),0)+IF('Crop 2'!$C$58=Carbon!$B115,'Crop 2'!$L$58*VLOOKUP('Crop 2'!$E$58,Carbon!$AH$4:$AI$10,2,FALSE),0)+IF('Crop 2'!$C$59=Carbon!$B115,'Crop 2'!$L$59*VLOOKUP('Crop 2'!$E$59,Carbon!$AH$4:$AI$10,2,FALSE),0)+IF('Crop 2'!$C$62=Carbon!$B115,'Crop 2'!$L$62*VLOOKUP('Crop 2'!$E$62,Carbon!$AH$4:$AI$10,2,FALSE),0)+IF('Crop 2'!$C$63=Carbon!$B115,'Crop 2'!$L$63*VLOOKUP('Crop 2'!$E$63,Carbon!$AH$4:$AI$10,2,FALSE),0)+IF('Crop 2'!$C$64=Carbon!$B115,'Crop 2'!$L$64*VLOOKUP('Crop 2'!$E$64,Carbon!$AH$4:$AI$10,2,FALSE),0)+IF('Crop 2'!$C$65=Carbon!$B115,'Crop 2'!$L$65*VLOOKUP('Crop 2'!$E$65,Carbon!$AH$4:$AI$10,2,FALSE),0))*$AL$20,2)","v":0},{"$f":"E115*Inputs!$D$15","v":0},{"$f":"ROUND((IF('Crop 3'!$C$14=Carbon!$B115,'Crop 3'!$L$14*VLOOKUP('Crop 3'!$E$14,Carbon!$AH$4:$AI$10,2,FALSE),0)+IF('Crop 3'!$C$15=Carbon!$B115,'Crop 3'!$L$15*VLOOKUP('Crop 3'!$E$15,Carbon!$AH$4:$AI$10,2,FALSE),0)+IF('Crop 3'!$C$16=Carbon!$B115,'Crop 3'!$L$16*VLOOKUP('Crop 3'!$E$16,Carbon!$AH$4:$AI$10,2,FALSE),0)+IF('Crop 3'!$C$19=Carbon!$B115,'Crop 3'!$L$19*VLOOKUP('Crop 3'!$E$19,Carbon!$AH$4:$AI$10,2,FALSE),0)+IF('Crop 3'!$C$20=Carbon!$B115,'Crop 3'!$L$20*VLOOKUP('Crop 3'!$E$20,Carbon!$AH$4:$AI$10,2,FALSE),0)+IF('Crop 3'!$C$21=Carbon!$B115,'Crop 3'!$L$21*VLOOKUP('Crop 3'!$E$21,Carbon!$AH$4:$AI$10,2,FALSE),0)+IF('Crop 3'!$C$49=Carbon!$B115,'Crop 3'!$L$49*VLOOKUP('Crop 3'!$E$49,Carbon!$AH$4:$AI$10,2,FALSE),0)+IF('Crop 3'!$C$50=Carbon!$B115,'Crop 3'!$L$50*VLOOKUP('Crop 3'!$E$50,Carbon!$AH$4:$AI$10,2,FALSE),0)+IF('Crop 3'!$C$51=Carbon!$B115,'Crop 3'!$L$51*VLOOKUP('Crop 3'!$E$51,Carbon!$AH$4:$AI$10,2,FALSE),0)+IF('Crop 3'!$C$52=Carbon!$B115,'Crop 3'!$L$52*VLOOKUP('Crop 3'!$E$52,Carbon!$AH$4:$AI$10,2,FALSE),0)+IF('Crop 3'!$C$53=Carbon!$B115,'Crop 3'!$L$53*VLOOKUP('Crop 3'!$E$53,Carbon!$AH$4:$AI$10,2,FALSE),0)+IF('Crop 3'!$C$56=Carbon!$B115,'Crop 3'!$L$56*VLOOKUP('Crop 3'!$E$56,Carbon!$AH$4:$AI$10,2,FALSE),0)+IF('Crop 3'!$C$57=Carbon!$B115,'Crop 3'!$L$57*VLOOKUP('Crop 3'!$E$57,Carbon!$AH$4:$AI$10,2,FALSE),0)+IF('Crop 3'!$C$58=Carbon!$B115,'Crop 3'!$L$58*VLOOKUP('Crop 3'!$E$58,Carbon!$AH$4:$AI$10,2,FALSE),0)+IF('Crop 3'!$C$59=Carbon!$B115,'Crop 3'!$L$59*VLOOKUP('Crop 3'!$E$59,Carbon!$AH$4:$AI$10,2,FALSE),0)+IF('Crop 3'!$C$62=Carbon!$B115,'Crop 3'!$L$62*VLOOKUP('Crop 3'!$E$62,Carbon!$AH$4:$AI$10,2,FALSE),0)+IF('Crop 3'!$C$63=Carbon!$B115,'Crop 3'!$L$63*VLOOKUP('Crop 3'!$E$63,Carbon!$AH$4:$AI$10,2,FALSE),0)+IF('Crop 3'!$C$64=Carbon!$B115,'Crop 3'!$L$64*VLOOKUP('Crop 3'!$E$64,Carbon!$AH$4:$AI$10,2,FALSE),0)+IF('Crop 3'!$C$65=Carbon!$B115,'Crop 3'!$L$65*VLOOKUP('Crop 3'!$E$65,Carbon!$AH$4:$AI$10,2,FALSE),0))*$AL$20,2)","v":0},{"$f":"G115*Inputs!$D$17","v":0},{"$f":"ROUND(J115/Inputs!D$19,2)","v":0},0,null,null,{"$f":"ROUND((IF('Crop 1'!$C$14=Carbon!$B115,'Crop 1'!$V$14*VLOOKUP('Crop 1'!$E$14,Carbon!$AH$4:$AI$10,2,FALSE),0)+IF('Crop 1'!$C$15=Carbon!$B115,'Crop 1'!$V$15*VLOOKUP('Crop 1'!$E$15,Carbon!$AH$4:$AI$10,2,FALSE),0)+IF('Crop 1'!$C$16=Carbon!$B115,'Crop 1'!$V$16*VLOOKUP('Crop 1'!$E$16,Carbon!$AH$4:$AI$10,2,FALSE),0)+IF('Crop 1'!$C$19=Carbon!$B115,'Crop 1'!$V$19*VLOOKUP('Crop 1'!$E$19,Carbon!$AH$4:$AI$10,2,FALSE),0)+IF('Crop 1'!$C$20=Carbon!$B115,'Crop 1'!$V$20*VLOOKUP('Crop 1'!$E$20,Carbon!$AH$4:$AI$10,2,FALSE),0)+IF('Crop 1'!$C$21=Carbon!$B115,'Crop 1'!$V$21*VLOOKUP('Crop 1'!$E$21,Carbon!$AH$4:$AI$10,2,FALSE),0)+IF('Crop 1'!$C$49=Carbon!$B115,'Crop 1'!$V$49*VLOOKUP('Crop 1'!$E$49,Carbon!$AH$4:$AI$10,2,FALSE),0)+IF('Crop 1'!$C$50=Carbon!$B115,'Crop 1'!$V$50*VLOOKUP('Crop 1'!$E$50,Carbon!$AH$4:$AI$10,2,FALSE),0)+IF('Crop 1'!$C$51=Carbon!$B115,'Crop 1'!$V$51*VLOOKUP('Crop 1'!$E$51,Carbon!$AH$4:$AI$10,2,FALSE),0)+IF('Crop 1'!$C$52=Carbon!$B115,'Crop 1'!$V$52*VLOOKUP('Crop 1'!$E$52,Carbon!$AH$4:$AI$10,2,FALSE),0)+IF('Crop 1'!$C$53=Carbon!$B115,'Crop 1'!$V$53*VLOOKUP('Crop 1'!$E$53,Carbon!$AH$4:$AI$10,2,FALSE),0)+IF('Crop 1'!$C$56=Carbon!$B115,'Crop 1'!$V$56*VLOOKUP('Crop 1'!$E$56,Carbon!$AH$4:$AI$10,2,FALSE),0)+IF('Crop 1'!$C$57=Carbon!$B115,'Crop 1'!$V$57*VLOOKUP('Crop 1'!$E$57,Carbon!$AH$4:$AI$10,2,FALSE),0)+IF('Crop 1'!$C$58=Carbon!$B115,'Crop 1'!$V$58*VLOOKUP('Crop 1'!$E$58,Carbon!$AH$4:$AI$10,2,FALSE),0)+IF('Crop 1'!$C$59=Carbon!$B115,'Crop 1'!$V$59*VLOOKUP('Crop 1'!$E$59,Carbon!$AH$4:$AI$10,2,FALSE),0)+IF('Crop 1'!$C$62=Carbon!$B115,'Crop 1'!$V$62*VLOOKUP('Crop 1'!$E$62,Carbon!$AH$4:$AI$10,2,FALSE),0)+IF('Crop 1'!$C$63=Carbon!$B115,'Crop 1'!$V$63*VLOOKUP('Crop 1'!$E$63,Carbon!$AH$4:$AI$10,2,FALSE),0)+IF('Crop 1'!$C$64=Carbon!$B115,'Crop 1'!$V$64*VLOOKUP('Crop 1'!$E$64,Carbon!$AH$4:$AI$10,2,FALSE),0)+IF('Crop 1'!$C$65=Carbon!$B115,'Crop 1'!$V$65*VLOOKUP('Crop 1'!$E$65,Carbon!$AH$4:$AI$10,2,FALSE),0))*$AL$20,2)","v":0},{"$f":"M115*Inputs!$D$13","v":0},{"$f":"ROUND((IF('Crop 2'!$C$14=Carbon!$B115,'Crop 2'!$V$14*VLOOKUP('Crop 2'!$E$14,Carbon!$AH$4:$AI$10,2,FALSE),0)+IF('Crop 2'!$C$15=Carbon!$B115,'Crop 2'!$V$15*VLOOKUP('Crop 2'!$E$15,Carbon!$AH$4:$AI$10,2,FALSE),0)+IF('Crop 2'!$C$16=Carbon!$B115,'Crop 2'!$V$16*VLOOKUP('Crop 2'!$E$16,Carbon!$AH$4:$AI$10,2,FALSE),0)+IF('Crop 2'!$C$19=Carbon!$B115,'Crop 2'!$V$19*VLOOKUP('Crop 2'!$E$19,Carbon!$AH$4:$AI$10,2,FALSE),0)+IF('Crop 2'!$C$20=Carbon!$B115,'Crop 2'!$V$20*VLOOKUP('Crop 2'!$E$20,Carbon!$AH$4:$AI$10,2,FALSE),0)+IF('Crop 2'!$C$21=Carbon!$B115,'Crop 2'!$V$21*VLOOKUP('Crop 2'!$E$21,Carbon!$AH$4:$AI$10,2,FALSE),0)+IF('Crop 2'!$C$49=Carbon!$B115,'Crop 2'!$V$49*VLOOKUP('Crop 2'!$E$49,Carbon!$AH$4:$AI$10,2,FALSE),0)+IF('Crop 2'!$C$50=Carbon!$B115,'Crop 2'!$V$50*VLOOKUP('Crop 2'!$E$50,Carbon!$AH$4:$AI$10,2,FALSE),0)+IF('Crop 2'!$C$51=Carbon!$B115,'Crop 2'!$V$51*VLOOKUP('Crop 2'!$E$51,Carbon!$AH$4:$AI$10,2,FALSE),0)+IF('Crop 2'!$C$52=Carbon!$B115,'Crop 2'!$V$52*VLOOKUP('Crop 2'!$E$52,Carbon!$AH$4:$AI$10,2,FALSE),0)+IF('Crop 2'!$C$53=Carbon!$B115,'Crop 2'!$V$53*VLOOKUP('Crop 2'!$E$53,Carbon!$AH$4:$AI$10,2,FALSE),0)+IF('Crop 2'!$C$56=Carbon!$B115,'Crop 2'!$V$56*VLOOKUP('Crop 2'!$E$56,Carbon!$AH$4:$AI$10,2,FALSE),0)+IF('Crop 2'!$C$57=Carbon!$B115,'Crop 2'!$V$57*VLOOKUP('Crop 2'!$E$57,Carbon!$AH$4:$AI$10,2,FALSE),0)+IF('Crop 2'!$C$58=Carbon!$B115,'Crop 2'!$V$58*VLOOKUP('Crop 2'!$E$58,Carbon!$AH$4:$AI$10,2,FALSE),0)+IF('Crop 2'!$C$59=Carbon!$B115,'Crop 2'!$V$59*VLOOKUP('Crop 2'!$E$59,Carbon!$AH$4:$AI$10,2,FALSE),0)+IF('Crop 2'!$C$62=Carbon!$B115,'Crop 2'!$V$62*VLOOKUP('Crop 2'!$E$62,Carbon!$AH$4:$AI$10,2,FALSE),0)+IF('Crop 2'!$C$63=Carbon!$B115,'Crop 2'!$V$63*VLOOKUP('Crop 2'!$E$63,Carbon!$AH$4:$AI$10,2,FALSE),0)+IF('Crop 2'!$C$64=Carbon!$B115,'Crop 2'!$V$64*VLOOKUP('Crop 2'!$E$64,Carbon!$AH$4:$AI$10,2,FALSE),0)+IF('Crop 2'!$C$65=Carbon!$B115,'Crop 2'!$V$65*VLOOKUP('Crop 2'!$E$65,Carbon!$AH$4:$AI$10,2,FALSE),0))*$AL$20,2)","v":0},{"$f":"O115*Inputs!$D$15","v":0},{"$f":"ROUND((IF('Crop 3'!$C$14=Carbon!$B115,'Crop 3'!$V$14*VLOOKUP('Crop 3'!$E$14,Carbon!$AH$4:$AI$10,2,FALSE),0)+IF('Crop 3'!$C$15=Carbon!$B115,'Crop 3'!$V$15*VLOOKUP('Crop 3'!$E$15,Carbon!$AH$4:$AI$10,2,FALSE),0)+IF('Crop 3'!$C$16=Carbon!$B115,'Crop 3'!$V$16*VLOOKUP('Crop 3'!$E$16,Carbon!$AH$4:$AI$10,2,FALSE),0)+IF('Crop 3'!$C$19=Carbon!$B115,'Crop 3'!$V$19*VLOOKUP('Crop 3'!$E$19,Carbon!$AH$4:$AI$10,2,FALSE),0)+IF('Crop 3'!$C$20=Carbon!$B115,'Crop 3'!$V$20*VLOOKUP('Crop 3'!$E$20,Carbon!$AH$4:$AI$10,2,FALSE),0)+IF('Crop 3'!$C$21=Carbon!$B115,'Crop 3'!$V$21*VLOOKUP('Crop 3'!$E$21,Carbon!$AH$4:$AI$10,2,FALSE),0)+IF('Crop 3'!$C$49=Carbon!$B115,'Crop 3'!$V$49*VLOOKUP('Crop 3'!$E$49,Carbon!$AH$4:$AI$10,2,FALSE),0)+IF('Crop 3'!$C$50=Carbon!$B115,'Crop 3'!$V$50*VLOOKUP('Crop 3'!$E$50,Carbon!$AH$4:$AI$10,2,FALSE),0)+IF('Crop 3'!$C$51=Carbon!$B115,'Crop 3'!$V$51*VLOOKUP('Crop 3'!$E$51,Carbon!$AH$4:$AI$10,2,FALSE),0)+IF('Crop 3'!$C$52=Carbon!$B115,'Crop 3'!$V$52*VLOOKUP('Crop 3'!$E$52,Carbon!$AH$4:$AI$10,2,FALSE),0)+IF('Crop 3'!$C$53=Carbon!$B115,'Crop 3'!$V$53*VLOOKUP('Crop 3'!$E$53,Carbon!$AH$4:$AI$10,2,FALSE),0)+IF('Crop 3'!$C$56=Carbon!$B115,'Crop 3'!$V$56*VLOOKUP('Crop 3'!$E$56,Carbon!$AH$4:$AI$10,2,FALSE),0)+IF('Crop 3'!$C$57=Carbon!$B115,'Crop 3'!$V$57*VLOOKUP('Crop 3'!$E$57,Carbon!$AH$4:$AI$10,2,FALSE),0)+IF('Crop 3'!$C$58=Carbon!$B115,'Crop 3'!$V$58*VLOOKUP('Crop 3'!$E$58,Carbon!$AH$4:$AI$10,2,FALSE),0)+IF('Crop 3'!$C$59=Carbon!$B115,'Crop 3'!$V$59*VLOOKUP('Crop 3'!$E$59,Carbon!$AH$4:$AI$10,2,FALSE),0)+IF('Crop 3'!$C$62=Carbon!$B115,'Crop 3'!$V$62*VLOOKUP('Crop 3'!$E$62,Carbon!$AH$4:$AI$10,2,FALSE),0)+IF('Crop 3'!$C$63=Carbon!$B115,'Crop 3'!$V$63*VLOOKUP('Crop 3'!$E$63,Carbon!$AH$4:$AI$10,2,FALSE),0)+IF('Crop 3'!$C$64=Carbon!$B115,'Crop 3'!$V$64*VLOOKUP('Crop 3'!$E$64,Carbon!$AH$4:$AI$10,2,FALSE),0)+IF('Crop 3'!$C$65=Carbon!$B115,'Crop 3'!$V$65*VLOOKUP('Crop 3'!$E$65,Carbon!$AH$4:$AI$10,2,FALSE),0))*$AL$20,2)","v":0},{"$f":"Q115*Inputs!$D$17","v":0},{"$f":"ROUND(T115/Inputs!D$19,2)","v":0},0,null,null,0,{"$f":"W115*Inputs!$D$13","v":0},0,{"$f":"Y115*Inputs!$D$13","v":0},0,{"$f":"AA115*Inputs!$D$13","v":0},{"$f":"ROUND(AD115/Inputs!D$19,2)","v":0},0]
[null,{"$f":"Defaults!AH82","v":"Outlook"},{"$f":"ROUND((IF('Crop 1'!$C$14=Carbon!$B116,'Crop 1'!$L$14*VLOOKUP('Crop 1'!$E$14,Carbon!$AH$4:$AI$10,2,FALSE),0)+IF('Crop 1'!$C$15=Carbon!$B116,'Crop 1'!$L$15*VLOOKUP('Crop 1'!$E$15,Carbon!$AH$4:$AI$10,2,FALSE),0)+IF('Crop 1'!$C$16=Carbon!$B116,'Crop 1'!$L$16*VLOOKUP('Crop 1'!$E$16,Carbon!$AH$4:$AI$10,2,FALSE),0)+IF('Crop 1'!$C$19=Carbon!$B116,'Crop 1'!$L$19*VLOOKUP('Crop 1'!$E$19,Carbon!$AH$4:$AI$10,2,FALSE),0)+IF('Crop 1'!$C$20=Carbon!$B116,'Crop 1'!$L$20*VLOOKUP('Crop 1'!$E$20,Carbon!$AH$4:$AI$10,2,FALSE),0)+IF('Crop 1'!$C$21=Carbon!$B116,'Crop 1'!$L$21*VLOOKUP('Crop 1'!$E$21,Carbon!$AH$4:$AI$10,2,FALSE),0)+IF('Crop 1'!$C$49=Carbon!$B116,'Crop 1'!$L$49*VLOOKUP('Crop 1'!$E$49,Carbon!$AH$4:$AI$10,2,FALSE),0)+IF('Crop 1'!$C$50=Carbon!$B116,'Crop 1'!$L$50*VLOOKUP('Crop 1'!$E$50,Carbon!$AH$4:$AI$10,2,FALSE),0)+IF('Crop 1'!$C$51=Carbon!$B116,'Crop 1'!$L$51*VLOOKUP('Crop 1'!$E$51,Carbon!$AH$4:$AI$10,2,FALSE),0)+IF('Crop 1'!$C$52=Carbon!$B116,'Crop 1'!$L$52*VLOOKUP('Crop 1'!$E$52,Carbon!$AH$4:$AI$10,2,FALSE),0)+IF('Crop 1'!$C$53=Carbon!$B116,'Crop 1'!$L$53*VLOOKUP('Crop 1'!$E$53,Carbon!$AH$4:$AI$10,2,FALSE),0)+IF('Crop 1'!$C$56=Carbon!$B116,'Crop 1'!$L$56*VLOOKUP('Crop 1'!$E$56,Carbon!$AH$4:$AI$10,2,FALSE),0)+IF('Crop 1'!$C$57=Carbon!$B116,'Crop 1'!$L$57*VLOOKUP('Crop 1'!$E$57,Carbon!$AH$4:$AI$10,2,FALSE),0)+IF('Crop 1'!$C$58=Carbon!$B116,'Crop 1'!$L$58*VLOOKUP('Crop 1'!$E$58,Carbon!$AH$4:$AI$10,2,FALSE),0)+IF('Crop 1'!$C$59=Carbon!$B116,'Crop 1'!$L$59*VLOOKUP('Crop 1'!$E$59,Carbon!$AH$4:$AI$10,2,FALSE),0)+IF('Crop 1'!$C$62=Carbon!$B116,'Crop 1'!$L$62*VLOOKUP('Crop 1'!$E$62,Carbon!$AH$4:$AI$10,2,FALSE),0)+IF('Crop 1'!$C$63=Carbon!$B116,'Crop 1'!$L$63*VLOOKUP('Crop 1'!$E$63,Carbon!$AH$4:$AI$10,2,FALSE),0)+IF('Crop 1'!$C$64=Carbon!$B116,'Crop 1'!$L$64*VLOOKUP('Crop 1'!$E$64,Carbon!$AH$4:$AI$10,2,FALSE),0)+IF('Crop 1'!$C$65=Carbon!$B116,'Crop 1'!$L$65*VLOOKUP('Crop 1'!$E$65,Carbon!$AH$4:$AI$10,2,FALSE),0))*$AL$20,2)","v":0},{"$f":"C116*Inputs!$D$13","v":0},{"$f":"ROUND((IF('Crop 2'!$C$14=Carbon!$B116,'Crop 2'!$L$14*VLOOKUP('Crop 2'!$E$14,Carbon!$AH$4:$AI$10,2,FALSE),0)+IF('Crop 2'!$C$15=Carbon!$B116,'Crop 2'!$L$15*VLOOKUP('Crop 2'!$E$15,Carbon!$AH$4:$AI$10,2,FALSE),0)+IF('Crop 2'!$C$16=Carbon!$B116,'Crop 2'!$L$16*VLOOKUP('Crop 2'!$E$16,Carbon!$AH$4:$AI$10,2,FALSE),0)+IF('Crop 2'!$C$19=Carbon!$B116,'Crop 2'!$L$19*VLOOKUP('Crop 2'!$E$19,Carbon!$AH$4:$AI$10,2,FALSE),0)+IF('Crop 2'!$C$20=Carbon!$B116,'Crop 2'!$L$20*VLOOKUP('Crop 2'!$E$20,Carbon!$AH$4:$AI$10,2,FALSE),0)+IF('Crop 2'!$C$21=Carbon!$B116,'Crop 2'!$L$21*VLOOKUP('Crop 2'!$E$21,Carbon!$AH$4:$AI$10,2,FALSE),0)+IF('Crop 2'!$C$49=Carbon!$B116,'Crop 2'!$L$49*VLOOKUP('Crop 2'!$E$49,Carbon!$AH$4:$AI$10,2,FALSE),0)+IF('Crop 2'!$C$50=Carbon!$B116,'Crop 2'!$L$50*VLOOKUP('Crop 2'!$E$50,Carbon!$AH$4:$AI$10,2,FALSE),0)+IF('Crop 2'!$C$51=Carbon!$B116,'Crop 2'!$L$51*VLOOKUP('Crop 2'!$E$51,Carbon!$AH$4:$AI$10,2,FALSE),0)+IF('Crop 2'!$C$52=Carbon!$B116,'Crop 2'!$L$52*VLOOKUP('Crop 2'!$E$52,Carbon!$AH$4:$AI$10,2,FALSE),0)+IF('Crop 2'!$C$53=Carbon!$B116,'Crop 2'!$L$53*VLOOKUP('Crop 2'!$E$53,Carbon!$AH$4:$AI$10,2,FALSE),0)+IF('Crop 2'!$C$56=Carbon!$B116,'Crop 2'!$L$56*VLOOKUP('Crop 2'!$E$56,Carbon!$AH$4:$AI$10,2,FALSE),0)+IF('Crop 2'!$C$57=Carbon!$B116,'Crop 2'!$L$57*VLOOKUP('Crop 2'!$E$57,Carbon!$AH$4:$AI$10,2,FALSE),0)+IF('Crop 2'!$C$58=Carbon!$B116,'Crop 2'!$L$58*VLOOKUP('Crop 2'!$E$58,Carbon!$AH$4:$AI$10,2,FALSE),0)+IF('Crop 2'!$C$59=Carbon!$B116,'Crop 2'!$L$59*VLOOKUP('Crop 2'!$E$59,Carbon!$AH$4:$AI$10,2,FALSE),0)+IF('Crop 2'!$C$62=Carbon!$B116,'Crop 2'!$L$62*VLOOKUP('Crop 2'!$E$62,Carbon!$AH$4:$AI$10,2,FALSE),0)+IF('Crop 2'!$C$63=Carbon!$B116,'Crop 2'!$L$63*VLOOKUP('Crop 2'!$E$63,Carbon!$AH$4:$AI$10,2,FALSE),0)+IF('Crop 2'!$C$64=Carbon!$B116,'Crop 2'!$L$64*VLOOKUP('Crop 2'!$E$64,Carbon!$AH$4:$AI$10,2,FALSE),0)+IF('Crop 2'!$C$65=Carbon!$B116,'Crop 2'!$L$65*VLOOKUP('Crop 2'!$E$65,Carbon!$AH$4:$AI$10,2,FALSE),0))*$AL$20,2)","v":0},{"$f":"E116*Inputs!$D$15","v":0},{"$f":"ROUND((IF('Crop 3'!$C$14=Carbon!$B116,'Crop 3'!$L$14*VLOOKUP('Crop 3'!$E$14,Carbon!$AH$4:$AI$10,2,FALSE),0)+IF('Crop 3'!$C$15=Carbon!$B116,'Crop 3'!$L$15*VLOOKUP('Crop 3'!$E$15,Carbon!$AH$4:$AI$10,2,FALSE),0)+IF('Crop 3'!$C$16=Carbon!$B116,'Crop 3'!$L$16*VLOOKUP('Crop 3'!$E$16,Carbon!$AH$4:$AI$10,2,FALSE),0)+IF('Crop 3'!$C$19=Carbon!$B116,'Crop 3'!$L$19*VLOOKUP('Crop 3'!$E$19,Carbon!$AH$4:$AI$10,2,FALSE),0)+IF('Crop 3'!$C$20=Carbon!$B116,'Crop 3'!$L$20*VLOOKUP('Crop 3'!$E$20,Carbon!$AH$4:$AI$10,2,FALSE),0)+IF('Crop 3'!$C$21=Carbon!$B116,'Crop 3'!$L$21*VLOOKUP('Crop 3'!$E$21,Carbon!$AH$4:$AI$10,2,FALSE),0)+IF('Crop 3'!$C$49=Carbon!$B116,'Crop 3'!$L$49*VLOOKUP('Crop 3'!$E$49,Carbon!$AH$4:$AI$10,2,FALSE),0)+IF('Crop 3'!$C$50=Carbon!$B116,'Crop 3'!$L$50*VLOOKUP('Crop 3'!$E$50,Carbon!$AH$4:$AI$10,2,FALSE),0)+IF('Crop 3'!$C$51=Carbon!$B116,'Crop 3'!$L$51*VLOOKUP('Crop 3'!$E$51,Carbon!$AH$4:$AI$10,2,FALSE),0)+IF('Crop 3'!$C$52=Carbon!$B116,'Crop 3'!$L$52*VLOOKUP('Crop 3'!$E$52,Carbon!$AH$4:$AI$10,2,FALSE),0)+IF('Crop 3'!$C$53=Carbon!$B116,'Crop 3'!$L$53*VLOOKUP('Crop 3'!$E$53,Carbon!$AH$4:$AI$10,2,FALSE),0)+IF('Crop 3'!$C$56=Carbon!$B116,'Crop 3'!$L$56*VLOOKUP('Crop 3'!$E$56,Carbon!$AH$4:$AI$10,2,FALSE),0)+IF('Crop 3'!$C$57=Carbon!$B116,'Crop 3'!$L$57*VLOOKUP('Crop 3'!$E$57,Carbon!$AH$4:$AI$10,2,FALSE),0)+IF('Crop 3'!$C$58=Carbon!$B116,'Crop 3'!$L$58*VLOOKUP('Crop 3'!$E$58,Carbon!$AH$4:$AI$10,2,FALSE),0)+IF('Crop 3'!$C$59=Carbon!$B116,'Crop 3'!$L$59*VLOOKUP('Crop 3'!$E$59,Carbon!$AH$4:$AI$10,2,FALSE),0)+IF('Crop 3'!$C$62=Carbon!$B116,'Crop 3'!$L$62*VLOOKUP('Crop 3'!$E$62,Carbon!$AH$4:$AI$10,2,FALSE),0)+IF('Crop 3'!$C$63=Carbon!$B116,'Crop 3'!$L$63*VLOOKUP('Crop 3'!$E$63,Carbon!$AH$4:$AI$10,2,FALSE),0)+IF('Crop 3'!$C$64=Carbon!$B116,'Crop 3'!$L$64*VLOOKUP('Crop 3'!$E$64,Carbon!$AH$4:$AI$10,2,FALSE),0)+IF('Crop 3'!$C$65=Carbon!$B116,'Crop 3'!$L$65*VLOOKUP('Crop 3'!$E$65,Carbon!$AH$4:$AI$10,2,FALSE),0))*$AL$20,2)","v":0},{"$f":"G116*Inputs!$D$17","v":0},{"$f":"ROUND(J116/Inputs!D$19,2)","v":0},{"$f":"ROUND(D116+F116+H116,2)","v":0},null,null,{"$f":"ROUND((IF('Crop 1'!$C$14=Carbon!$B116,'Crop 1'!$V$14*VLOOKUP('Crop 1'!$E$14,Carbon!$AH$4:$AI$10,2,FALSE),0)+IF('Crop 1'!$C$15=Carbon!$B116,'Crop 1'!$V$15*VLOOKUP('Crop 1'!$E$15,Carbon!$AH$4:$AI$10,2,FALSE),0)+IF('Crop 1'!$C$16=Carbon!$B116,'Crop 1'!$V$16*VLOOKUP('Crop 1'!$E$16,Carbon!$AH$4:$AI$10,2,FALSE),0)+IF('Crop 1'!$C$19=Carbon!$B116,'Crop 1'!$V$19*VLOOKUP('Crop 1'!$E$19,Carbon!$AH$4:$AI$10,2,FALSE),0)+IF('Crop 1'!$C$20=Carbon!$B116,'Crop 1'!$V$20*VLOOKUP('Crop 1'!$E$20,Carbon!$AH$4:$AI$10,2,FALSE),0)+IF('Crop 1'!$C$21=Carbon!$B116,'Crop 1'!$V$21*VLOOKUP('Crop 1'!$E$21,Carbon!$AH$4:$AI$10,2,FALSE),0)+IF('Crop 1'!$C$49=Carbon!$B116,'Crop 1'!$V$49*VLOOKUP('Crop 1'!$E$49,Carbon!$AH$4:$AI$10,2,FALSE),0)+IF('Crop 1'!$C$50=Carbon!$B116,'Crop 1'!$V$50*VLOOKUP('Crop 1'!$E$50,Carbon!$AH$4:$AI$10,2,FALSE),0)+IF('Crop 1'!$C$51=Carbon!$B116,'Crop 1'!$V$51*VLOOKUP('Crop 1'!$E$51,Carbon!$AH$4:$AI$10,2,FALSE),0)+IF('Crop 1'!$C$52=Carbon!$B116,'Crop 1'!$V$52*VLOOKUP('Crop 1'!$E$52,Carbon!$AH$4:$AI$10,2,FALSE),0)+IF('Crop 1'!$C$53=Carbon!$B116,'Crop 1'!$V$53*VLOOKUP('Crop 1'!$E$53,Carbon!$AH$4:$AI$10,2,FALSE),0)+IF('Crop 1'!$C$56=Carbon!$B116,'Crop 1'!$V$56*VLOOKUP('Crop 1'!$E$56,Carbon!$AH$4:$AI$10,2,FALSE),0)+IF('Crop 1'!$C$57=Carbon!$B116,'Crop 1'!$V$57*VLOOKUP('Crop 1'!$E$57,Carbon!$AH$4:$AI$10,2,FALSE),0)+IF('Crop 1'!$C$58=Carbon!$B116,'Crop 1'!$V$58*VLOOKUP('Crop 1'!$E$58,Carbon!$AH$4:$AI$10,2,FALSE),0)+IF('Crop 1'!$C$59=Carbon!$B116,'Crop 1'!$V$59*VLOOKUP('Crop 1'!$E$59,Carbon!$AH$4:$AI$10,2,FALSE),0)+IF('Crop 1'!$C$62=Carbon!$B116,'Crop 1'!$V$62*VLOOKUP('Crop 1'!$E$62,Carbon!$AH$4:$AI$10,2,FALSE),0)+IF('Crop 1'!$C$63=Carbon!$B116,'Crop 1'!$V$63*VLOOKUP('Crop 1'!$E$63,Carbon!$AH$4:$AI$10,2,FALSE),0)+IF('Crop 1'!$C$64=Carbon!$B116,'Crop 1'!$V$64*VLOOKUP('Crop 1'!$E$64,Carbon!$AH$4:$AI$10,2,FALSE),0)+IF('Crop 1'!$C$65=Carbon!$B116,'Crop 1'!$V$65*VLOOKUP('Crop 1'!$E$65,Carbon!$AH$4:$AI$10,2,FALSE),0))*$AL$20,2)","v":0},{"$f":"M116*Inputs!$D$13","v":0},{"$f":"ROUND((IF('Crop 2'!$C$14=Carbon!$B116,'Crop 2'!$V$14*VLOOKUP('Crop 2'!$E$14,Carbon!$AH$4:$AI$10,2,FALSE),0)+IF('Crop 2'!$C$15=Carbon!$B116,'Crop 2'!$V$15*VLOOKUP('Crop 2'!$E$15,Carbon!$AH$4:$AI$10,2,FALSE),0)+IF('Crop 2'!$C$16=Carbon!$B116,'Crop 2'!$V$16*VLOOKUP('Crop 2'!$E$16,Carbon!$AH$4:$AI$10,2,FALSE),0)+IF('Crop 2'!$C$19=Carbon!$B116,'Crop 2'!$V$19*VLOOKUP('Crop 2'!$E$19,Carbon!$AH$4:$AI$10,2,FALSE),0)+IF('Crop 2'!$C$20=Carbon!$B116,'Crop 2'!$V$20*VLOOKUP('Crop 2'!$E$20,Carbon!$AH$4:$AI$10,2,FALSE),0)+IF('Crop 2'!$C$21=Carbon!$B116,'Crop 2'!$V$21*VLOOKUP('Crop 2'!$E$21,Carbon!$AH$4:$AI$10,2,FALSE),0)+IF('Crop 2'!$C$49=Carbon!$B116,'Crop 2'!$V$49*VLOOKUP('Crop 2'!$E$49,Carbon!$AH$4:$AI$10,2,FALSE),0)+IF('Crop 2'!$C$50=Carbon!$B116,'Crop 2'!$V$50*VLOOKUP('Crop 2'!$E$50,Carbon!$AH$4:$AI$10,2,FALSE),0)+IF('Crop 2'!$C$51=Carbon!$B116,'Crop 2'!$V$51*VLOOKUP('Crop 2'!$E$51,Carbon!$AH$4:$AI$10,2,FALSE),0)+IF('Crop 2'!$C$52=Carbon!$B116,'Crop 2'!$V$52*VLOOKUP('Crop 2'!$E$52,Carbon!$AH$4:$AI$10,2,FALSE),0)+IF('Crop 2'!$C$53=Carbon!$B116,'Crop 2'!$V$53*VLOOKUP('Crop 2'!$E$53,Carbon!$AH$4:$AI$10,2,FALSE),0)+IF('Crop 2'!$C$56=Carbon!$B116,'Crop 2'!$V$56*VLOOKUP('Crop 2'!$E$56,Carbon!$AH$4:$AI$10,2,FALSE),0)+IF('Crop 2'!$C$57=Carbon!$B116,'Crop 2'!$V$57*VLOOKUP('Crop 2'!$E$57,Carbon!$AH$4:$AI$10,2,FALSE),0)+IF('Crop 2'!$C$58=Carbon!$B116,'Crop 2'!$V$58*VLOOKUP('Crop 2'!$E$58,Carbon!$AH$4:$AI$10,2,FALSE),0)+IF('Crop 2'!$C$59=Carbon!$B116,'Crop 2'!$V$59*VLOOKUP('Crop 2'!$E$59,Carbon!$AH$4:$AI$10,2,FALSE),0)+IF('Crop 2'!$C$62=Carbon!$B116,'Crop 2'!$V$62*VLOOKUP('Crop 2'!$E$62,Carbon!$AH$4:$AI$10,2,FALSE),0)+IF('Crop 2'!$C$63=Carbon!$B116,'Crop 2'!$V$63*VLOOKUP('Crop 2'!$E$63,Carbon!$AH$4:$AI$10,2,FALSE),0)+IF('Crop 2'!$C$64=Carbon!$B116,'Crop 2'!$V$64*VLOOKUP('Crop 2'!$E$64,Carbon!$AH$4:$AI$10,2,FALSE),0)+IF('Crop 2'!$C$65=Carbon!$B116,'Crop 2'!$V$65*VLOOKUP('Crop 2'!$E$65,Carbon!$AH$4:$AI$10,2,FALSE),0))*$AL$20,2)","v":0},{"$f":"O116*Inputs!$D$15","v":0},{"$f":"ROUND((IF('Crop 3'!$C$14=Carbon!$B116,'Crop 3'!$V$14*VLOOKUP('Crop 3'!$E$14,Carbon!$AH$4:$AI$10,2,FALSE),0)+IF('Crop 3'!$C$15=Carbon!$B116,'Crop 3'!$V$15*VLOOKUP('Crop 3'!$E$15,Carbon!$AH$4:$AI$10,2,FALSE),0)+IF('Crop 3'!$C$16=Carbon!$B116,'Crop 3'!$V$16*VLOOKUP('Crop 3'!$E$16,Carbon!$AH$4:$AI$10,2,FALSE),0)+IF('Crop 3'!$C$19=Carbon!$B116,'Crop 3'!$V$19*VLOOKUP('Crop 3'!$E$19,Carbon!$AH$4:$AI$10,2,FALSE),0)+IF('Crop 3'!$C$20=Carbon!$B116,'Crop 3'!$V$20*VLOOKUP('Crop 3'!$E$20,Carbon!$AH$4:$AI$10,2,FALSE),0)+IF('Crop 3'!$C$21=Carbon!$B116,'Crop 3'!$V$21*VLOOKUP('Crop 3'!$E$21,Carbon!$AH$4:$AI$10,2,FALSE),0)+IF('Crop 3'!$C$49=Carbon!$B116,'Crop 3'!$V$49*VLOOKUP('Crop 3'!$E$49,Carbon!$AH$4:$AI$10,2,FALSE),0)+IF('Crop 3'!$C$50=Carbon!$B116,'Crop 3'!$V$50*VLOOKUP('Crop 3'!$E$50,Carbon!$AH$4:$AI$10,2,FALSE),0)+IF('Crop 3'!$C$51=Carbon!$B116,'Crop 3'!$V$51*VLOOKUP('Crop 3'!$E$51,Carbon!$AH$4:$AI$10,2,FALSE),0)+IF('Crop 3'!$C$52=Carbon!$B116,'Crop 3'!$V$52*VLOOKUP('Crop 3'!$E$52,Carbon!$AH$4:$AI$10,2,FALSE),0)+IF('Crop 3'!$C$53=Carbon!$B116,'Crop 3'!$V$53*VLOOKUP('Crop 3'!$E$53,Carbon!$AH$4:$AI$10,2,FALSE),0)+IF('Crop 3'!$C$56=Carbon!$B116,'Crop 3'!$V$56*VLOOKUP('Crop 3'!$E$56,Carbon!$AH$4:$AI$10,2,FALSE),0)+IF('Crop 3'!$C$57=Carbon!$B116,'Crop 3'!$V$57*VLOOKUP('Crop 3'!$E$57,Carbon!$AH$4:$AI$10,2,FALSE),0)+IF('Crop 3'!$C$58=Carbon!$B116,'Crop 3'!$V$58*VLOOKUP('Crop 3'!$E$58,Carbon!$AH$4:$AI$10,2,FALSE),0)+IF('Crop 3'!$C$59=Carbon!$B116,'Crop 3'!$V$59*VLOOKUP('Crop 3'!$E$59,Carbon!$AH$4:$AI$10,2,FALSE),0)+IF('Crop 3'!$C$62=Carbon!$B116,'Crop 3'!$V$62*VLOOKUP('Crop 3'!$E$62,Carbon!$AH$4:$AI$10,2,FALSE),0)+IF('Crop 3'!$C$63=Carbon!$B116,'Crop 3'!$V$63*VLOOKUP('Crop 3'!$E$63,Carbon!$AH$4:$AI$10,2,FALSE),0)+IF('Crop 3'!$C$64=Carbon!$B116,'Crop 3'!$V$64*VLOOKUP('Crop 3'!$E$64,Carbon!$AH$4:$AI$10,2,FALSE),0)+IF('Crop 3'!$C$65=Carbon!$B116,'Crop 3'!$V$65*VLOOKUP('Crop 3'!$E$65,Carbon!$AH$4:$AI$10,2,FALSE),0))*$AL$20,2)","v":0},{"$f":"Q116*Inputs!$D$17","v":0},{"$f":"ROUND(T116/Inputs!D$19,2)","v":0},{"$f":"ROUND(N116+P116+R116,2)","v":0},null,null,0,{"$f":"W116*Inputs!$D$13","v":0},0,{"$f":"Y116*Inputs!$D$13","v":0},0,{"$f":"AA116*Inputs!$D$13","v":0},{"$f":"ROUND(AD116/Inputs!D$19,2)","v":0},{"$f":"ROUND(X116+Z116+AB116,2)","v":0}]
[null,{"$f":"Defaults!AH83","v":"Outrider"},{"$f":"ROUND((IF('Crop 1'!$C$14=Carbon!$B117,'Crop 1'!$L$14*VLOOKUP('Crop 1'!$E$14,Carbon!$AH$4:$AI$10,2,FALSE),0)+IF('Crop 1'!$C$15=Carbon!$B117,'Crop 1'!$L$15*VLOOKUP('Crop 1'!$E$15,Carbon!$AH$4:$AI$10,2,FALSE),0)+IF('Crop 1'!$C$16=Carbon!$B117,'Crop 1'!$L$16*VLOOKUP('Crop 1'!$E$16,Carbon!$AH$4:$AI$10,2,FALSE),0)+IF('Crop 1'!$C$19=Carbon!$B117,'Crop 1'!$L$19*VLOOKUP('Crop 1'!$E$19,Carbon!$AH$4:$AI$10,2,FALSE),0)+IF('Crop 1'!$C$20=Carbon!$B117,'Crop 1'!$L$20*VLOOKUP('Crop 1'!$E$20,Carbon!$AH$4:$AI$10,2,FALSE),0)+IF('Crop 1'!$C$21=Carbon!$B117,'Crop 1'!$L$21*VLOOKUP('Crop 1'!$E$21,Carbon!$AH$4:$AI$10,2,FALSE),0)+IF('Crop 1'!$C$49=Carbon!$B117,'Crop 1'!$L$49*VLOOKUP('Crop 1'!$E$49,Carbon!$AH$4:$AI$10,2,FALSE),0)+IF('Crop 1'!$C$50=Carbon!$B117,'Crop 1'!$L$50*VLOOKUP('Crop 1'!$E$50,Carbon!$AH$4:$AI$10,2,FALSE),0)+IF('Crop 1'!$C$51=Carbon!$B117,'Crop 1'!$L$51*VLOOKUP('Crop 1'!$E$51,Carbon!$AH$4:$AI$10,2,FALSE),0)+IF('Crop 1'!$C$52=Carbon!$B117,'Crop 1'!$L$52*VLOOKUP('Crop 1'!$E$52,Carbon!$AH$4:$AI$10,2,FALSE),0)+IF('Crop 1'!$C$53=Carbon!$B117,'Crop 1'!$L$53*VLOOKUP('Crop 1'!$E$53,Carbon!$AH$4:$AI$10,2,FALSE),0)+IF('Crop 1'!$C$56=Carbon!$B117,'Crop 1'!$L$56*VLOOKUP('Crop 1'!$E$56,Carbon!$AH$4:$AI$10,2,FALSE),0)+IF('Crop 1'!$C$57=Carbon!$B117,'Crop 1'!$L$57*VLOOKUP('Crop 1'!$E$57,Carbon!$AH$4:$AI$10,2,FALSE),0)+IF('Crop 1'!$C$58=Carbon!$B117,'Crop 1'!$L$58*VLOOKUP('Crop 1'!$E$58,Carbon!$AH$4:$AI$10,2,FALSE),0)+IF('Crop 1'!$C$59=Carbon!$B117,'Crop 1'!$L$59*VLOOKUP('Crop 1'!$E$59,Carbon!$AH$4:$AI$10,2,FALSE),0)+IF('Crop 1'!$C$62=Carbon!$B117,'Crop 1'!$L$62*VLOOKUP('Crop 1'!$E$62,Carbon!$AH$4:$AI$10,2,FALSE),0)+IF('Crop 1'!$C$63=Carbon!$B117,'Crop 1'!$L$63*VLOOKUP('Crop 1'!$E$63,Carbon!$AH$4:$AI$10,2,FALSE),0)+IF('Crop 1'!$C$64=Carbon!$B117,'Crop 1'!$L$64*VLOOKUP('Crop 1'!$E$64,Carbon!$AH$4:$AI$10,2,FALSE),0)+IF('Crop 1'!$C$65=Carbon!$B117,'Crop 1'!$L$65*VLOOKUP('Crop 1'!$E$65,Carbon!$AH$4:$AI$10,2,FALSE),0))*$AL$20,2)","v":0},{"$f":"C117*Inputs!$D$13","v":0},{"$f":"ROUND((IF('Crop 2'!$C$14=Carbon!$B117,'Crop 2'!$L$14*VLOOKUP('Crop 2'!$E$14,Carbon!$AH$4:$AI$10,2,FALSE),0)+IF('Crop 2'!$C$15=Carbon!$B117,'Crop 2'!$L$15*VLOOKUP('Crop 2'!$E$15,Carbon!$AH$4:$AI$10,2,FALSE),0)+IF('Crop 2'!$C$16=Carbon!$B117,'Crop 2'!$L$16*VLOOKUP('Crop 2'!$E$16,Carbon!$AH$4:$AI$10,2,FALSE),0)+IF('Crop 2'!$C$19=Carbon!$B117,'Crop 2'!$L$19*VLOOKUP('Crop 2'!$E$19,Carbon!$AH$4:$AI$10,2,FALSE),0)+IF('Crop 2'!$C$20=Carbon!$B117,'Crop 2'!$L$20*VLOOKUP('Crop 2'!$E$20,Carbon!$AH$4:$AI$10,2,FALSE),0)+IF('Crop 2'!$C$21=Carbon!$B117,'Crop 2'!$L$21*VLOOKUP('Crop 2'!$E$21,Carbon!$AH$4:$AI$10,2,FALSE),0)+IF('Crop 2'!$C$49=Carbon!$B117,'Crop 2'!$L$49*VLOOKUP('Crop 2'!$E$49,Carbon!$AH$4:$AI$10,2,FALSE),0)+IF('Crop 2'!$C$50=Carbon!$B117,'Crop 2'!$L$50*VLOOKUP('Crop 2'!$E$50,Carbon!$AH$4:$AI$10,2,FALSE),0)+IF('Crop 2'!$C$51=Carbon!$B117,'Crop 2'!$L$51*VLOOKUP('Crop 2'!$E$51,Carbon!$AH$4:$AI$10,2,FALSE),0)+IF('Crop 2'!$C$52=Carbon!$B117,'Crop 2'!$L$52*VLOOKUP('Crop 2'!$E$52,Carbon!$AH$4:$AI$10,2,FALSE),0)+IF('Crop 2'!$C$53=Carbon!$B117,'Crop 2'!$L$53*VLOOKUP('Crop 2'!$E$53,Carbon!$AH$4:$AI$10,2,FALSE),0)+IF('Crop 2'!$C$56=Carbon!$B117,'Crop 2'!$L$56*VLOOKUP('Crop 2'!$E$56,Carbon!$AH$4:$AI$10,2,FALSE),0)+IF('Crop 2'!$C$57=Carbon!$B117,'Crop 2'!$L$57*VLOOKUP('Crop 2'!$E$57,Carbon!$AH$4:$AI$10,2,FALSE),0)+IF('Crop 2'!$C$58=Carbon!$B117,'Crop 2'!$L$58*VLOOKUP('Crop 2'!$E$58,Carbon!$AH$4:$AI$10,2,FALSE),0)+IF('Crop 2'!$C$59=Carbon!$B117,'Crop 2'!$L$59*VLOOKUP('Crop 2'!$E$59,Carbon!$AH$4:$AI$10,2,FALSE),0)+IF('Crop 2'!$C$62=Carbon!$B117,'Crop 2'!$L$62*VLOOKUP('Crop 2'!$E$62,Carbon!$AH$4:$AI$10,2,FALSE),0)+IF('Crop 2'!$C$63=Carbon!$B117,'Crop 2'!$L$63*VLOOKUP('Crop 2'!$E$63,Carbon!$AH$4:$AI$10,2,FALSE),0)+IF('Crop 2'!$C$64=Carbon!$B117,'Crop 2'!$L$64*VLOOKUP('Crop 2'!$E$64,Carbon!$AH$4:$AI$10,2,FALSE),0)+IF('Crop 2'!$C$65=Carbon!$B117,'Crop 2'!$L$65*VLOOKUP('Crop 2'!$E$65,Carbon!$AH$4:$AI$10,2,FALSE),0))*$AL$20,2)","v":0},{"$f":"E117*Inputs!$D$15","v":0},{"$f":"ROUND((IF('Crop 3'!$C$14=Carbon!$B117,'Crop 3'!$L$14*VLOOKUP('Crop 3'!$E$14,Carbon!$AH$4:$AI$10,2,FALSE),0)+IF('Crop 3'!$C$15=Carbon!$B117,'Crop 3'!$L$15*VLOOKUP('Crop 3'!$E$15,Carbon!$AH$4:$AI$10,2,FALSE),0)+IF('Crop 3'!$C$16=Carbon!$B117,'Crop 3'!$L$16*VLOOKUP('Crop 3'!$E$16,Carbon!$AH$4:$AI$10,2,FALSE),0)+IF('Crop 3'!$C$19=Carbon!$B117,'Crop 3'!$L$19*VLOOKUP('Crop 3'!$E$19,Carbon!$AH$4:$AI$10,2,FALSE),0)+IF('Crop 3'!$C$20=Carbon!$B117,'Crop 3'!$L$20*VLOOKUP('Crop 3'!$E$20,Carbon!$AH$4:$AI$10,2,FALSE),0)+IF('Crop 3'!$C$21=Carbon!$B117,'Crop 3'!$L$21*VLOOKUP('Crop 3'!$E$21,Carbon!$AH$4:$AI$10,2,FALSE),0)+IF('Crop 3'!$C$49=Carbon!$B117,'Crop 3'!$L$49*VLOOKUP('Crop 3'!$E$49,Carbon!$AH$4:$AI$10,2,FALSE),0)+IF('Crop 3'!$C$50=Carbon!$B117,'Crop 3'!$L$50*VLOOKUP('Crop 3'!$E$50,Carbon!$AH$4:$AI$10,2,FALSE),0)+IF('Crop 3'!$C$51=Carbon!$B117,'Crop 3'!$L$51*VLOOKUP('Crop 3'!$E$51,Carbon!$AH$4:$AI$10,2,FALSE),0)+IF('Crop 3'!$C$52=Carbon!$B117,'Crop 3'!$L$52*VLOOKUP('Crop 3'!$E$52,Carbon!$AH$4:$AI$10,2,FALSE),0)+IF('Crop 3'!$C$53=Carbon!$B117,'Crop 3'!$L$53*VLOOKUP('Crop 3'!$E$53,Carbon!$AH$4:$AI$10,2,FALSE),0)+IF('Crop 3'!$C$56=Carbon!$B117,'Crop 3'!$L$56*VLOOKUP('Crop 3'!$E$56,Carbon!$AH$4:$AI$10,2,FALSE),0)+IF('Crop 3'!$C$57=Carbon!$B117,'Crop 3'!$L$57*VLOOKUP('Crop 3'!$E$57,Carbon!$AH$4:$AI$10,2,FALSE),0)+IF('Crop 3'!$C$58=Carbon!$B117,'Crop 3'!$L$58*VLOOKUP('Crop 3'!$E$58,Carbon!$AH$4:$AI$10,2,FALSE),0)+IF('Crop 3'!$C$59=Carbon!$B117,'Crop 3'!$L$59*VLOOKUP('Crop 3'!$E$59,Carbon!$AH$4:$AI$10,2,FALSE),0)+IF('Crop 3'!$C$62=Carbon!$B117,'Crop 3'!$L$62*VLOOKUP('Crop 3'!$E$62,Carbon!$AH$4:$AI$10,2,FALSE),0)+IF('Crop 3'!$C$63=Carbon!$B117,'Crop 3'!$L$63*VLOOKUP('Crop 3'!$E$63,Carbon!$AH$4:$AI$10,2,FALSE),0)+IF('Crop 3'!$C$64=Carbon!$B117,'Crop 3'!$L$64*VLOOKUP('Crop 3'!$E$64,Carbon!$AH$4:$AI$10,2,FALSE),0)+IF('Crop 3'!$C$65=Carbon!$B117,'Crop 3'!$L$65*VLOOKUP('Crop 3'!$E$65,Carbon!$AH$4:$AI$10,2,FALSE),0))*$AL$20,2)","v":0},{"$f":"G117*Inputs!$D$17","v":0},{"$f":"ROUND(J117/Inputs!D$19,2)","v":0},0,null,null,{"$f":"ROUND((IF('Crop 1'!$C$14=Carbon!$B117,'Crop 1'!$V$14*VLOOKUP('Crop 1'!$E$14,Carbon!$AH$4:$AI$10,2,FALSE),0)+IF('Crop 1'!$C$15=Carbon!$B117,'Crop 1'!$V$15*VLOOKUP('Crop 1'!$E$15,Carbon!$AH$4:$AI$10,2,FALSE),0)+IF('Crop 1'!$C$16=Carbon!$B117,'Crop 1'!$V$16*VLOOKUP('Crop 1'!$E$16,Carbon!$AH$4:$AI$10,2,FALSE),0)+IF('Crop 1'!$C$19=Carbon!$B117,'Crop 1'!$V$19*VLOOKUP('Crop 1'!$E$19,Carbon!$AH$4:$AI$10,2,FALSE),0)+IF('Crop 1'!$C$20=Carbon!$B117,'Crop 1'!$V$20*VLOOKUP('Crop 1'!$E$20,Carbon!$AH$4:$AI$10,2,FALSE),0)+IF('Crop 1'!$C$21=Carbon!$B117,'Crop 1'!$V$21*VLOOKUP('Crop 1'!$E$21,Carbon!$AH$4:$AI$10,2,FALSE),0)+IF('Crop 1'!$C$49=Carbon!$B117,'Crop 1'!$V$49*VLOOKUP('Crop 1'!$E$49,Carbon!$AH$4:$AI$10,2,FALSE),0)+IF('Crop 1'!$C$50=Carbon!$B117,'Crop 1'!$V$50*VLOOKUP('Crop 1'!$E$50,Carbon!$AH$4:$AI$10,2,FALSE),0)+IF('Crop 1'!$C$51=Carbon!$B117,'Crop 1'!$V$51*VLOOKUP('Crop 1'!$E$51,Carbon!$AH$4:$AI$10,2,FALSE),0)+IF('Crop 1'!$C$52=Carbon!$B117,'Crop 1'!$V$52*VLOOKUP('Crop 1'!$E$52,Carbon!$AH$4:$AI$10,2,FALSE),0)+IF('Crop 1'!$C$53=Carbon!$B117,'Crop 1'!$V$53*VLOOKUP('Crop 1'!$E$53,Carbon!$AH$4:$AI$10,2,FALSE),0)+IF('Crop 1'!$C$56=Carbon!$B117,'Crop 1'!$V$56*VLOOKUP('Crop 1'!$E$56,Carbon!$AH$4:$AI$10,2,FALSE),0)+IF('Crop 1'!$C$57=Carbon!$B117,'Crop 1'!$V$57*VLOOKUP('Crop 1'!$E$57,Carbon!$AH$4:$AI$10,2,FALSE),0)+IF('Crop 1'!$C$58=Carbon!$B117,'Crop 1'!$V$58*VLOOKUP('Crop 1'!$E$58,Carbon!$AH$4:$AI$10,2,FALSE),0)+IF('Crop 1'!$C$59=Carbon!$B117,'Crop 1'!$V$59*VLOOKUP('Crop 1'!$E$59,Carbon!$AH$4:$AI$10,2,FALSE),0)+IF('Crop 1'!$C$62=Carbon!$B117,'Crop 1'!$V$62*VLOOKUP('Crop 1'!$E$62,Carbon!$AH$4:$AI$10,2,FALSE),0)+IF('Crop 1'!$C$63=Carbon!$B117,'Crop 1'!$V$63*VLOOKUP('Crop 1'!$E$63,Carbon!$AH$4:$AI$10,2,FALSE),0)+IF('Crop 1'!$C$64=Carbon!$B117,'Crop 1'!$V$64*VLOOKUP('Crop 1'!$E$64,Carbon!$AH$4:$AI$10,2,FALSE),0)+IF('Crop 1'!$C$65=Carbon!$B117,'Crop 1'!$V$65*VLOOKUP('Crop 1'!$E$65,Carbon!$AH$4:$AI$10,2,FALSE),0))*$AL$20,2)","v":0},{"$f":"M117*Inputs!$D$13","v":0},{"$f":"ROUND((IF('Crop 2'!$C$14=Carbon!$B117,'Crop 2'!$V$14*VLOOKUP('Crop 2'!$E$14,Carbon!$AH$4:$AI$10,2,FALSE),0)+IF('Crop 2'!$C$15=Carbon!$B117,'Crop 2'!$V$15*VLOOKUP('Crop 2'!$E$15,Carbon!$AH$4:$AI$10,2,FALSE),0)+IF('Crop 2'!$C$16=Carbon!$B117,'Crop 2'!$V$16*VLOOKUP('Crop 2'!$E$16,Carbon!$AH$4:$AI$10,2,FALSE),0)+IF('Crop 2'!$C$19=Carbon!$B117,'Crop 2'!$V$19*VLOOKUP('Crop 2'!$E$19,Carbon!$AH$4:$AI$10,2,FALSE),0)+IF('Crop 2'!$C$20=Carbon!$B117,'Crop 2'!$V$20*VLOOKUP('Crop 2'!$E$20,Carbon!$AH$4:$AI$10,2,FALSE),0)+IF('Crop 2'!$C$21=Carbon!$B117,'Crop 2'!$V$21*VLOOKUP('Crop 2'!$E$21,Carbon!$AH$4:$AI$10,2,FALSE),0)+IF('Crop 2'!$C$49=Carbon!$B117,'Crop 2'!$V$49*VLOOKUP('Crop 2'!$E$49,Carbon!$AH$4:$AI$10,2,FALSE),0)+IF('Crop 2'!$C$50=Carbon!$B117,'Crop 2'!$V$50*VLOOKUP('Crop 2'!$E$50,Carbon!$AH$4:$AI$10,2,FALSE),0)+IF('Crop 2'!$C$51=Carbon!$B117,'Crop 2'!$V$51*VLOOKUP('Crop 2'!$E$51,Carbon!$AH$4:$AI$10,2,FALSE),0)+IF('Crop 2'!$C$52=Carbon!$B117,'Crop 2'!$V$52*VLOOKUP('Crop 2'!$E$52,Carbon!$AH$4:$AI$10,2,FALSE),0)+IF('Crop 2'!$C$53=Carbon!$B117,'Crop 2'!$V$53*VLOOKUP('Crop 2'!$E$53,Carbon!$AH$4:$AI$10,2,FALSE),0)+IF('Crop 2'!$C$56=Carbon!$B117,'Crop 2'!$V$56*VLOOKUP('Crop 2'!$E$56,Carbon!$AH$4:$AI$10,2,FALSE),0)+IF('Crop 2'!$C$57=Carbon!$B117,'Crop 2'!$V$57*VLOOKUP('Crop 2'!$E$57,Carbon!$AH$4:$AI$10,2,FALSE),0)+IF('Crop 2'!$C$58=Carbon!$B117,'Crop 2'!$V$58*VLOOKUP('Crop 2'!$E$58,Carbon!$AH$4:$AI$10,2,FALSE),0)+IF('Crop 2'!$C$59=Carbon!$B117,'Crop 2'!$V$59*VLOOKUP('Crop 2'!$E$59,Carbon!$AH$4:$AI$10,2,FALSE),0)+IF('Crop 2'!$C$62=Carbon!$B117,'Crop 2'!$V$62*VLOOKUP('Crop 2'!$E$62,Carbon!$AH$4:$AI$10,2,FALSE),0)+IF('Crop 2'!$C$63=Carbon!$B117,'Crop 2'!$V$63*VLOOKUP('Crop 2'!$E$63,Carbon!$AH$4:$AI$10,2,FALSE),0)+IF('Crop 2'!$C$64=Carbon!$B117,'Crop 2'!$V$64*VLOOKUP('Crop 2'!$E$64,Carbon!$AH$4:$AI$10,2,FALSE),0)+IF('Crop 2'!$C$65=Carbon!$B117,'Crop 2'!$V$65*VLOOKUP('Crop 2'!$E$65,Carbon!$AH$4:$AI$10,2,FALSE),0))*$AL$20,2)","v":0},{"$f":"O117*Inputs!$D$15","v":0},{"$f":"ROUND((IF('Crop 3'!$C$14=Carbon!$B117,'Crop 3'!$V$14*VLOOKUP('Crop 3'!$E$14,Carbon!$AH$4:$AI$10,2,FALSE),0)+IF('Crop 3'!$C$15=Carbon!$B117,'Crop 3'!$V$15*VLOOKUP('Crop 3'!$E$15,Carbon!$AH$4:$AI$10,2,FALSE),0)+IF('Crop 3'!$C$16=Carbon!$B117,'Crop 3'!$V$16*VLOOKUP('Crop 3'!$E$16,Carbon!$AH$4:$AI$10,2,FALSE),0)+IF('Crop 3'!$C$19=Carbon!$B117,'Crop 3'!$V$19*VLOOKUP('Crop 3'!$E$19,Carbon!$AH$4:$AI$10,2,FALSE),0)+IF('Crop 3'!$C$20=Carbon!$B117,'Crop 3'!$V$20*VLOOKUP('Crop 3'!$E$20,Carbon!$AH$4:$AI$10,2,FALSE),0)+IF('Crop 3'!$C$21=Carbon!$B117,'Crop 3'!$V$21*VLOOKUP('Crop 3'!$E$21,Carbon!$AH$4:$AI$10,2,FALSE),0)+IF('Crop 3'!$C$49=Carbon!$B117,'Crop 3'!$V$49*VLOOKUP('Crop 3'!$E$49,Carbon!$AH$4:$AI$10,2,FALSE),0)+IF('Crop 3'!$C$50=Carbon!$B117,'Crop 3'!$V$50*VLOOKUP('Crop 3'!$E$50,Carbon!$AH$4:$AI$10,2,FALSE),0)+IF('Crop 3'!$C$51=Carbon!$B117,'Crop 3'!$V$51*VLOOKUP('Crop 3'!$E$51,Carbon!$AH$4:$AI$10,2,FALSE),0)+IF('Crop 3'!$C$52=Carbon!$B117,'Crop 3'!$V$52*VLOOKUP('Crop 3'!$E$52,Carbon!$AH$4:$AI$10,2,FALSE),0)+IF('Crop 3'!$C$53=Carbon!$B117,'Crop 3'!$V$53*VLOOKUP('Crop 3'!$E$53,Carbon!$AH$4:$AI$10,2,FALSE),0)+IF('Crop 3'!$C$56=Carbon!$B117,'Crop 3'!$V$56*VLOOKUP('Crop 3'!$E$56,Carbon!$AH$4:$AI$10,2,FALSE),0)+IF('Crop 3'!$C$57=Carbon!$B117,'Crop 3'!$V$57*VLOOKUP('Crop 3'!$E$57,Carbon!$AH$4:$AI$10,2,FALSE),0)+IF('Crop 3'!$C$58=Carbon!$B117,'Crop 3'!$V$58*VLOOKUP('Crop 3'!$E$58,Carbon!$AH$4:$AI$10,2,FALSE),0)+IF('Crop 3'!$C$59=Carbon!$B117,'Crop 3'!$V$59*VLOOKUP('Crop 3'!$E$59,Carbon!$AH$4:$AI$10,2,FALSE),0)+IF('Crop 3'!$C$62=Carbon!$B117,'Crop 3'!$V$62*VLOOKUP('Crop 3'!$E$62,Carbon!$AH$4:$AI$10,2,FALSE),0)+IF('Crop 3'!$C$63=Carbon!$B117,'Crop 3'!$V$63*VLOOKUP('Crop 3'!$E$63,Carbon!$AH$4:$AI$10,2,FALSE),0)+IF('Crop 3'!$C$64=Carbon!$B117,'Crop 3'!$V$64*VLOOKUP('Crop 3'!$E$64,Carbon!$AH$4:$AI$10,2,FALSE),0)+IF('Crop 3'!$C$65=Carbon!$B117,'Crop 3'!$V$65*VLOOKUP('Crop 3'!$E$65,Carbon!$AH$4:$AI$10,2,FALSE),0))*$AL$20,2)","v":0},{"$f":"Q117*Inputs!$D$17","v":0},{"$f":"ROUND(T117/Inputs!D$19,2)","v":0},0,null,null,{"$f":"M117-C117","v":0},{"$f":"W117*Inputs!$D$13","v":0},{"$f":"O117-E117","v":0},{"$f":"Y117*Inputs!$D$13","v":0},{"$f":"Q117-G117","v":0},{"$f":"AA117*Inputs!$D$13","v":0},{"$f":"ROUND(AD117/Inputs!D$19,2)","v":0},0]
[null,{"$f":"Defaults!AH84","v":"Pastora"},{"$f":"ROUND((IF('Crop 1'!$C$14=Carbon!$B118,'Crop 1'!$L$14*VLOOKUP('Crop 1'!$E$14,Carbon!$AH$4:$AI$10,2,FALSE),0)+IF('Crop 1'!$C$15=Carbon!$B118,'Crop 1'!$L$15*VLOOKUP('Crop 1'!$E$15,Carbon!$AH$4:$AI$10,2,FALSE),0)+IF('Crop 1'!$C$16=Carbon!$B118,'Crop 1'!$L$16*VLOOKUP('Crop 1'!$E$16,Carbon!$AH$4:$AI$10,2,FALSE),0)+IF('Crop 1'!$C$19=Carbon!$B118,'Crop 1'!$L$19*VLOOKUP('Crop 1'!$E$19,Carbon!$AH$4:$AI$10,2,FALSE),0)+IF('Crop 1'!$C$20=Carbon!$B118,'Crop 1'!$L$20*VLOOKUP('Crop 1'!$E$20,Carbon!$AH$4:$AI$10,2,FALSE),0)+IF('Crop 1'!$C$21=Carbon!$B118,'Crop 1'!$L$21*VLOOKUP('Crop 1'!$E$21,Carbon!$AH$4:$AI$10,2,FALSE),0)+IF('Crop 1'!$C$49=Carbon!$B118,'Crop 1'!$L$49*VLOOKUP('Crop 1'!$E$49,Carbon!$AH$4:$AI$10,2,FALSE),0)+IF('Crop 1'!$C$50=Carbon!$B118,'Crop 1'!$L$50*VLOOKUP('Crop 1'!$E$50,Carbon!$AH$4:$AI$10,2,FALSE),0)+IF('Crop 1'!$C$51=Carbon!$B118,'Crop 1'!$L$51*VLOOKUP('Crop 1'!$E$51,Carbon!$AH$4:$AI$10,2,FALSE),0)+IF('Crop 1'!$C$52=Carbon!$B118,'Crop 1'!$L$52*VLOOKUP('Crop 1'!$E$52,Carbon!$AH$4:$AI$10,2,FALSE),0)+IF('Crop 1'!$C$53=Carbon!$B118,'Crop 1'!$L$53*VLOOKUP('Crop 1'!$E$53,Carbon!$AH$4:$AI$10,2,FALSE),0)+IF('Crop 1'!$C$56=Carbon!$B118,'Crop 1'!$L$56*VLOOKUP('Crop 1'!$E$56,Carbon!$AH$4:$AI$10,2,FALSE),0)+IF('Crop 1'!$C$57=Carbon!$B118,'Crop 1'!$L$57*VLOOKUP('Crop 1'!$E$57,Carbon!$AH$4:$AI$10,2,FALSE),0)+IF('Crop 1'!$C$58=Carbon!$B118,'Crop 1'!$L$58*VLOOKUP('Crop 1'!$E$58,Carbon!$AH$4:$AI$10,2,FALSE),0)+IF('Crop 1'!$C$59=Carbon!$B118,'Crop 1'!$L$59*VLOOKUP('Crop 1'!$E$59,Carbon!$AH$4:$AI$10,2,FALSE),0)+IF('Crop 1'!$C$62=Carbon!$B118,'Crop 1'!$L$62*VLOOKUP('Crop 1'!$E$62,Carbon!$AH$4:$AI$10,2,FALSE),0)+IF('Crop 1'!$C$63=Carbon!$B118,'Crop 1'!$L$63*VLOOKUP('Crop 1'!$E$63,Carbon!$AH$4:$AI$10,2,FALSE),0)+IF('Crop 1'!$C$64=Carbon!$B118,'Crop 1'!$L$64*VLOOKUP('Crop 1'!$E$64,Carbon!$AH$4:$AI$10,2,FALSE),0)+IF('Crop 1'!$C$65=Carbon!$B118,'Crop 1'!$L$65*VLOOKUP('Crop 1'!$E$65,Carbon!$AH$4:$AI$10,2,FALSE),0))*$AL$20,2)","v":0},{"$f":"C118*Inputs!$D$13","v":0},{"$f":"ROUND((IF('Crop 2'!$C$14=Carbon!$B118,'Crop 2'!$L$14*VLOOKUP('Crop 2'!$E$14,Carbon!$AH$4:$AI$10,2,FALSE),0)+IF('Crop 2'!$C$15=Carbon!$B118,'Crop 2'!$L$15*VLOOKUP('Crop 2'!$E$15,Carbon!$AH$4:$AI$10,2,FALSE),0)+IF('Crop 2'!$C$16=Carbon!$B118,'Crop 2'!$L$16*VLOOKUP('Crop 2'!$E$16,Carbon!$AH$4:$AI$10,2,FALSE),0)+IF('Crop 2'!$C$19=Carbon!$B118,'Crop 2'!$L$19*VLOOKUP('Crop 2'!$E$19,Carbon!$AH$4:$AI$10,2,FALSE),0)+IF('Crop 2'!$C$20=Carbon!$B118,'Crop 2'!$L$20*VLOOKUP('Crop 2'!$E$20,Carbon!$AH$4:$AI$10,2,FALSE),0)+IF('Crop 2'!$C$21=Carbon!$B118,'Crop 2'!$L$21*VLOOKUP('Crop 2'!$E$21,Carbon!$AH$4:$AI$10,2,FALSE),0)+IF('Crop 2'!$C$49=Carbon!$B118,'Crop 2'!$L$49*VLOOKUP('Crop 2'!$E$49,Carbon!$AH$4:$AI$10,2,FALSE),0)+IF('Crop 2'!$C$50=Carbon!$B118,'Crop 2'!$L$50*VLOOKUP('Crop 2'!$E$50,Carbon!$AH$4:$AI$10,2,FALSE),0)+IF('Crop 2'!$C$51=Carbon!$B118,'Crop 2'!$L$51*VLOOKUP('Crop 2'!$E$51,Carbon!$AH$4:$AI$10,2,FALSE),0)+IF('Crop 2'!$C$52=Carbon!$B118,'Crop 2'!$L$52*VLOOKUP('Crop 2'!$E$52,Carbon!$AH$4:$AI$10,2,FALSE),0)+IF('Crop 2'!$C$53=Carbon!$B118,'Crop 2'!$L$53*VLOOKUP('Crop 2'!$E$53,Carbon!$AH$4:$AI$10,2,FALSE),0)+IF('Crop 2'!$C$56=Carbon!$B118,'Crop 2'!$L$56*VLOOKUP('Crop 2'!$E$56,Carbon!$AH$4:$AI$10,2,FALSE),0)+IF('Crop 2'!$C$57=Carbon!$B118,'Crop 2'!$L$57*VLOOKUP('Crop 2'!$E$57,Carbon!$AH$4:$AI$10,2,FALSE),0)+IF('Crop 2'!$C$58=Carbon!$B118,'Crop 2'!$L$58*VLOOKUP('Crop 2'!$E$58,Carbon!$AH$4:$AI$10,2,FALSE),0)+IF('Crop 2'!$C$59=Carbon!$B118,'Crop 2'!$L$59*VLOOKUP('Crop 2'!$E$59,Carbon!$AH$4:$AI$10,2,FALSE),0)+IF('Crop 2'!$C$62=Carbon!$B118,'Crop 2'!$L$62*VLOOKUP('Crop 2'!$E$62,Carbon!$AH$4:$AI$10,2,FALSE),0)+IF('Crop 2'!$C$63=Carbon!$B118,'Crop 2'!$L$63*VLOOKUP('Crop 2'!$E$63,Carbon!$AH$4:$AI$10,2,FALSE),0)+IF('Crop 2'!$C$64=Carbon!$B118,'Crop 2'!$L$64*VLOOKUP('Crop 2'!$E$64,Carbon!$AH$4:$AI$10,2,FALSE),0)+IF('Crop 2'!$C$65=Carbon!$B118,'Crop 2'!$L$65*VLOOKUP('Crop 2'!$E$65,Carbon!$AH$4:$AI$10,2,FALSE),0))*$AL$20,2)","v":0},{"$f":"E118*Inputs!$D$15","v":0},{"$f":"ROUND((IF('Crop 3'!$C$14=Carbon!$B118,'Crop 3'!$L$14*VLOOKUP('Crop 3'!$E$14,Carbon!$AH$4:$AI$10,2,FALSE),0)+IF('Crop 3'!$C$15=Carbon!$B118,'Crop 3'!$L$15*VLOOKUP('Crop 3'!$E$15,Carbon!$AH$4:$AI$10,2,FALSE),0)+IF('Crop 3'!$C$16=Carbon!$B118,'Crop 3'!$L$16*VLOOKUP('Crop 3'!$E$16,Carbon!$AH$4:$AI$10,2,FALSE),0)+IF('Crop 3'!$C$19=Carbon!$B118,'Crop 3'!$L$19*VLOOKUP('Crop 3'!$E$19,Carbon!$AH$4:$AI$10,2,FALSE),0)+IF('Crop 3'!$C$20=Carbon!$B118,'Crop 3'!$L$20*VLOOKUP('Crop 3'!$E$20,Carbon!$AH$4:$AI$10,2,FALSE),0)+IF('Crop 3'!$C$21=Carbon!$B118,'Crop 3'!$L$21*VLOOKUP('Crop 3'!$E$21,Carbon!$AH$4:$AI$10,2,FALSE),0)+IF('Crop 3'!$C$49=Carbon!$B118,'Crop 3'!$L$49*VLOOKUP('Crop 3'!$E$49,Carbon!$AH$4:$AI$10,2,FALSE),0)+IF('Crop 3'!$C$50=Carbon!$B118,'Crop 3'!$L$50*VLOOKUP('Crop 3'!$E$50,Carbon!$AH$4:$AI$10,2,FALSE),0)+IF('Crop 3'!$C$51=Carbon!$B118,'Crop 3'!$L$51*VLOOKUP('Crop 3'!$E$51,Carbon!$AH$4:$AI$10,2,FALSE),0)+IF('Crop 3'!$C$52=Carbon!$B118,'Crop 3'!$L$52*VLOOKUP('Crop 3'!$E$52,Carbon!$AH$4:$AI$10,2,FALSE),0)+IF('Crop 3'!$C$53=Carbon!$B118,'Crop 3'!$L$53*VLOOKUP('Crop 3'!$E$53,Carbon!$AH$4:$AI$10,2,FALSE),0)+IF('Crop 3'!$C$56=Carbon!$B118,'Crop 3'!$L$56*VLOOKUP('Crop 3'!$E$56,Carbon!$AH$4:$AI$10,2,FALSE),0)+IF('Crop 3'!$C$57=Carbon!$B118,'Crop 3'!$L$57*VLOOKUP('Crop 3'!$E$57,Carbon!$AH$4:$AI$10,2,FALSE),0)+IF('Crop 3'!$C$58=Carbon!$B118,'Crop 3'!$L$58*VLOOKUP('Crop 3'!$E$58,Carbon!$AH$4:$AI$10,2,FALSE),0)+IF('Crop 3'!$C$59=Carbon!$B118,'Crop 3'!$L$59*VLOOKUP('Crop 3'!$E$59,Carbon!$AH$4:$AI$10,2,FALSE),0)+IF('Crop 3'!$C$62=Carbon!$B118,'Crop 3'!$L$62*VLOOKUP('Crop 3'!$E$62,Carbon!$AH$4:$AI$10,2,FALSE),0)+IF('Crop 3'!$C$63=Carbon!$B118,'Crop 3'!$L$63*VLOOKUP('Crop 3'!$E$63,Carbon!$AH$4:$AI$10,2,FALSE),0)+IF('Crop 3'!$C$64=Carbon!$B118,'Crop 3'!$L$64*VLOOKUP('Crop 3'!$E$64,Carbon!$AH$4:$AI$10,2,FALSE),0)+IF('Crop 3'!$C$65=Carbon!$B118,'Crop 3'!$L$65*VLOOKUP('Crop 3'!$E$65,Carbon!$AH$4:$AI$10,2,FALSE),0))*$AL$20,2)","v":0},{"$f":"G118*Inputs!$D$17","v":0},{"$f":"ROUND(J118/Inputs!D$19,2)","v":0},0,null,null,{"$f":"ROUND((IF('Crop 1'!$C$14=Carbon!$B118,'Crop 1'!$V$14*VLOOKUP('Crop 1'!$E$14,Carbon!$AH$4:$AI$10,2,FALSE),0)+IF('Crop 1'!$C$15=Carbon!$B118,'Crop 1'!$V$15*VLOOKUP('Crop 1'!$E$15,Carbon!$AH$4:$AI$10,2,FALSE),0)+IF('Crop 1'!$C$16=Carbon!$B118,'Crop 1'!$V$16*VLOOKUP('Crop 1'!$E$16,Carbon!$AH$4:$AI$10,2,FALSE),0)+IF('Crop 1'!$C$19=Carbon!$B118,'Crop 1'!$V$19*VLOOKUP('Crop 1'!$E$19,Carbon!$AH$4:$AI$10,2,FALSE),0)+IF('Crop 1'!$C$20=Carbon!$B118,'Crop 1'!$V$20*VLOOKUP('Crop 1'!$E$20,Carbon!$AH$4:$AI$10,2,FALSE),0)+IF('Crop 1'!$C$21=Carbon!$B118,'Crop 1'!$V$21*VLOOKUP('Crop 1'!$E$21,Carbon!$AH$4:$AI$10,2,FALSE),0)+IF('Crop 1'!$C$49=Carbon!$B118,'Crop 1'!$V$49*VLOOKUP('Crop 1'!$E$49,Carbon!$AH$4:$AI$10,2,FALSE),0)+IF('Crop 1'!$C$50=Carbon!$B118,'Crop 1'!$V$50*VLOOKUP('Crop 1'!$E$50,Carbon!$AH$4:$AI$10,2,FALSE),0)+IF('Crop 1'!$C$51=Carbon!$B118,'Crop 1'!$V$51*VLOOKUP('Crop 1'!$E$51,Carbon!$AH$4:$AI$10,2,FALSE),0)+IF('Crop 1'!$C$52=Carbon!$B118,'Crop 1'!$V$52*VLOOKUP('Crop 1'!$E$52,Carbon!$AH$4:$AI$10,2,FALSE),0)+IF('Crop 1'!$C$53=Carbon!$B118,'Crop 1'!$V$53*VLOOKUP('Crop 1'!$E$53,Carbon!$AH$4:$AI$10,2,FALSE),0)+IF('Crop 1'!$C$56=Carbon!$B118,'Crop 1'!$V$56*VLOOKUP('Crop 1'!$E$56,Carbon!$AH$4:$AI$10,2,FALSE),0)+IF('Crop 1'!$C$57=Carbon!$B118,'Crop 1'!$V$57*VLOOKUP('Crop 1'!$E$57,Carbon!$AH$4:$AI$10,2,FALSE),0)+IF('Crop 1'!$C$58=Carbon!$B118,'Crop 1'!$V$58*VLOOKUP('Crop 1'!$E$58,Carbon!$AH$4:$AI$10,2,FALSE),0)+IF('Crop 1'!$C$59=Carbon!$B118,'Crop 1'!$V$59*VLOOKUP('Crop 1'!$E$59,Carbon!$AH$4:$AI$10,2,FALSE),0)+IF('Crop 1'!$C$62=Carbon!$B118,'Crop 1'!$V$62*VLOOKUP('Crop 1'!$E$62,Carbon!$AH$4:$AI$10,2,FALSE),0)+IF('Crop 1'!$C$63=Carbon!$B118,'Crop 1'!$V$63*VLOOKUP('Crop 1'!$E$63,Carbon!$AH$4:$AI$10,2,FALSE),0)+IF('Crop 1'!$C$64=Carbon!$B118,'Crop 1'!$V$64*VLOOKUP('Crop 1'!$E$64,Carbon!$AH$4:$AI$10,2,FALSE),0)+IF('Crop 1'!$C$65=Carbon!$B118,'Crop 1'!$V$65*VLOOKUP('Crop 1'!$E$65,Carbon!$AH$4:$AI$10,2,FALSE),0))*$AL$20,2)","v":0},{"$f":"M118*Inputs!$D$13","v":0},{"$f":"ROUND((IF('Crop 2'!$C$14=Carbon!$B118,'Crop 2'!$V$14*VLOOKUP('Crop 2'!$E$14,Carbon!$AH$4:$AI$10,2,FALSE),0)+IF('Crop 2'!$C$15=Carbon!$B118,'Crop 2'!$V$15*VLOOKUP('Crop 2'!$E$15,Carbon!$AH$4:$AI$10,2,FALSE),0)+IF('Crop 2'!$C$16=Carbon!$B118,'Crop 2'!$V$16*VLOOKUP('Crop 2'!$E$16,Carbon!$AH$4:$AI$10,2,FALSE),0)+IF('Crop 2'!$C$19=Carbon!$B118,'Crop 2'!$V$19*VLOOKUP('Crop 2'!$E$19,Carbon!$AH$4:$AI$10,2,FALSE),0)+IF('Crop 2'!$C$20=Carbon!$B118,'Crop 2'!$V$20*VLOOKUP('Crop 2'!$E$20,Carbon!$AH$4:$AI$10,2,FALSE),0)+IF('Crop 2'!$C$21=Carbon!$B118,'Crop 2'!$V$21*VLOOKUP('Crop 2'!$E$21,Carbon!$AH$4:$AI$10,2,FALSE),0)+IF('Crop 2'!$C$49=Carbon!$B118,'Crop 2'!$V$49*VLOOKUP('Crop 2'!$E$49,Carbon!$AH$4:$AI$10,2,FALSE),0)+IF('Crop 2'!$C$50=Carbon!$B118,'Crop 2'!$V$50*VLOOKUP('Crop 2'!$E$50,Carbon!$AH$4:$AI$10,2,FALSE),0)+IF('Crop 2'!$C$51=Carbon!$B118,'Crop 2'!$V$51*VLOOKUP('Crop 2'!$E$51,Carbon!$AH$4:$AI$10,2,FALSE),0)+IF('Crop 2'!$C$52=Carbon!$B118,'Crop 2'!$V$52*VLOOKUP('Crop 2'!$E$52,Carbon!$AH$4:$AI$10,2,FALSE),0)+IF('Crop 2'!$C$53=Carbon!$B118,'Crop 2'!$V$53*VLOOKUP('Crop 2'!$E$53,Carbon!$AH$4:$AI$10,2,FALSE),0)+IF('Crop 2'!$C$56=Carbon!$B118,'Crop 2'!$V$56*VLOOKUP('Crop 2'!$E$56,Carbon!$AH$4:$AI$10,2,FALSE),0)+IF('Crop 2'!$C$57=Carbon!$B118,'Crop 2'!$V$57*VLOOKUP('Crop 2'!$E$57,Carbon!$AH$4:$AI$10,2,FALSE),0)+IF('Crop 2'!$C$58=Carbon!$B118,'Crop 2'!$V$58*VLOOKUP('Crop 2'!$E$58,Carbon!$AH$4:$AI$10,2,FALSE),0)+IF('Crop 2'!$C$59=Carbon!$B118,'Crop 2'!$V$59*VLOOKUP('Crop 2'!$E$59,Carbon!$AH$4:$AI$10,2,FALSE),0)+IF('Crop 2'!$C$62=Carbon!$B118,'Crop 2'!$V$62*VLOOKUP('Crop 2'!$E$62,Carbon!$AH$4:$AI$10,2,FALSE),0)+IF('Crop 2'!$C$63=Carbon!$B118,'Crop 2'!$V$63*VLOOKUP('Crop 2'!$E$63,Carbon!$AH$4:$AI$10,2,FALSE),0)+IF('Crop 2'!$C$64=Carbon!$B118,'Crop 2'!$V$64*VLOOKUP('Crop 2'!$E$64,Carbon!$AH$4:$AI$10,2,FALSE),0)+IF('Crop 2'!$C$65=Carbon!$B118,'Crop 2'!$V$65*VLOOKUP('Crop 2'!$E$65,Carbon!$AH$4:$AI$10,2,FALSE),0))*$AL$20,2)","v":0},{"$f":"O118*Inputs!$D$15","v":0},{"$f":"ROUND((IF('Crop 3'!$C$14=Carbon!$B118,'Crop 3'!$V$14*VLOOKUP('Crop 3'!$E$14,Carbon!$AH$4:$AI$10,2,FALSE),0)+IF('Crop 3'!$C$15=Carbon!$B118,'Crop 3'!$V$15*VLOOKUP('Crop 3'!$E$15,Carbon!$AH$4:$AI$10,2,FALSE),0)+IF('Crop 3'!$C$16=Carbon!$B118,'Crop 3'!$V$16*VLOOKUP('Crop 3'!$E$16,Carbon!$AH$4:$AI$10,2,FALSE),0)+IF('Crop 3'!$C$19=Carbon!$B118,'Crop 3'!$V$19*VLOOKUP('Crop 3'!$E$19,Carbon!$AH$4:$AI$10,2,FALSE),0)+IF('Crop 3'!$C$20=Carbon!$B118,'Crop 3'!$V$20*VLOOKUP('Crop 3'!$E$20,Carbon!$AH$4:$AI$10,2,FALSE),0)+IF('Crop 3'!$C$21=Carbon!$B118,'Crop 3'!$V$21*VLOOKUP('Crop 3'!$E$21,Carbon!$AH$4:$AI$10,2,FALSE),0)+IF('Crop 3'!$C$49=Carbon!$B118,'Crop 3'!$V$49*VLOOKUP('Crop 3'!$E$49,Carbon!$AH$4:$AI$10,2,FALSE),0)+IF('Crop 3'!$C$50=Carbon!$B118,'Crop 3'!$V$50*VLOOKUP('Crop 3'!$E$50,Carbon!$AH$4:$AI$10,2,FALSE),0)+IF('Crop 3'!$C$51=Carbon!$B118,'Crop 3'!$V$51*VLOOKUP('Crop 3'!$E$51,Carbon!$AH$4:$AI$10,2,FALSE),0)+IF('Crop 3'!$C$52=Carbon!$B118,'Crop 3'!$V$52*VLOOKUP('Crop 3'!$E$52,Carbon!$AH$4:$AI$10,2,FALSE),0)+IF('Crop 3'!$C$53=Carbon!$B118,'Crop 3'!$V$53*VLOOKUP('Crop 3'!$E$53,Carbon!$AH$4:$AI$10,2,FALSE),0)+IF('Crop 3'!$C$56=Carbon!$B118,'Crop 3'!$V$56*VLOOKUP('Crop 3'!$E$56,Carbon!$AH$4:$AI$10,2,FALSE),0)+IF('Crop 3'!$C$57=Carbon!$B118,'Crop 3'!$V$57*VLOOKUP('Crop 3'!$E$57,Carbon!$AH$4:$AI$10,2,FALSE),0)+IF('Crop 3'!$C$58=Carbon!$B118,'Crop 3'!$V$58*VLOOKUP('Crop 3'!$E$58,Carbon!$AH$4:$AI$10,2,FALSE),0)+IF('Crop 3'!$C$59=Carbon!$B118,'Crop 3'!$V$59*VLOOKUP('Crop 3'!$E$59,Carbon!$AH$4:$AI$10,2,FALSE),0)+IF('Crop 3'!$C$62=Carbon!$B118,'Crop 3'!$V$62*VLOOKUP('Crop 3'!$E$62,Carbon!$AH$4:$AI$10,2,FALSE),0)+IF('Crop 3'!$C$63=Carbon!$B118,'Crop 3'!$V$63*VLOOKUP('Crop 3'!$E$63,Carbon!$AH$4:$AI$10,2,FALSE),0)+IF('Crop 3'!$C$64=Carbon!$B118,'Crop 3'!$V$64*VLOOKUP('Crop 3'!$E$64,Carbon!$AH$4:$AI$10,2,FALSE),0)+IF('Crop 3'!$C$65=Carbon!$B118,'Crop 3'!$V$65*VLOOKUP('Crop 3'!$E$65,Carbon!$AH$4:$AI$10,2,FALSE),0))*$AL$20,2)","v":0},{"$f":"Q118*Inputs!$D$17","v":0},{"$f":"ROUND(T118/Inputs!D$19,2)","v":0},0,null,null,0,{"$f":"W118*Inputs!$D$13","v":0},0,{"$f":"Y118*Inputs!$D$13","v":0},0,{"$f":"AA118*Inputs!$D$13","v":0},{"$f":"ROUND(AD118/Inputs!D$19,2)","v":0},0]
[null,{"$f":"Defaults!AH85","v":"PastureGard"},{"$f":"ROUND((IF('Crop 1'!$C$14=Carbon!$B119,'Crop 1'!$L$14*VLOOKUP('Crop 1'!$E$14,Carbon!$AH$4:$AI$10,2,FALSE),0)+IF('Crop 1'!$C$15=Carbon!$B119,'Crop 1'!$L$15*VLOOKUP('Crop 1'!$E$15,Carbon!$AH$4:$AI$10,2,FALSE),0)+IF('Crop 1'!$C$16=Carbon!$B119,'Crop 1'!$L$16*VLOOKUP('Crop 1'!$E$16,Carbon!$AH$4:$AI$10,2,FALSE),0)+IF('Crop 1'!$C$19=Carbon!$B119,'Crop 1'!$L$19*VLOOKUP('Crop 1'!$E$19,Carbon!$AH$4:$AI$10,2,FALSE),0)+IF('Crop 1'!$C$20=Carbon!$B119,'Crop 1'!$L$20*VLOOKUP('Crop 1'!$E$20,Carbon!$AH$4:$AI$10,2,FALSE),0)+IF('Crop 1'!$C$21=Carbon!$B119,'Crop 1'!$L$21*VLOOKUP('Crop 1'!$E$21,Carbon!$AH$4:$AI$10,2,FALSE),0)+IF('Crop 1'!$C$49=Carbon!$B119,'Crop 1'!$L$49*VLOOKUP('Crop 1'!$E$49,Carbon!$AH$4:$AI$10,2,FALSE),0)+IF('Crop 1'!$C$50=Carbon!$B119,'Crop 1'!$L$50*VLOOKUP('Crop 1'!$E$50,Carbon!$AH$4:$AI$10,2,FALSE),0)+IF('Crop 1'!$C$51=Carbon!$B119,'Crop 1'!$L$51*VLOOKUP('Crop 1'!$E$51,Carbon!$AH$4:$AI$10,2,FALSE),0)+IF('Crop 1'!$C$52=Carbon!$B119,'Crop 1'!$L$52*VLOOKUP('Crop 1'!$E$52,Carbon!$AH$4:$AI$10,2,FALSE),0)+IF('Crop 1'!$C$53=Carbon!$B119,'Crop 1'!$L$53*VLOOKUP('Crop 1'!$E$53,Carbon!$AH$4:$AI$10,2,FALSE),0)+IF('Crop 1'!$C$56=Carbon!$B119,'Crop 1'!$L$56*VLOOKUP('Crop 1'!$E$56,Carbon!$AH$4:$AI$10,2,FALSE),0)+IF('Crop 1'!$C$57=Carbon!$B119,'Crop 1'!$L$57*VLOOKUP('Crop 1'!$E$57,Carbon!$AH$4:$AI$10,2,FALSE),0)+IF('Crop 1'!$C$58=Carbon!$B119,'Crop 1'!$L$58*VLOOKUP('Crop 1'!$E$58,Carbon!$AH$4:$AI$10,2,FALSE),0)+IF('Crop 1'!$C$59=Carbon!$B119,'Crop 1'!$L$59*VLOOKUP('Crop 1'!$E$59,Carbon!$AH$4:$AI$10,2,FALSE),0)+IF('Crop 1'!$C$62=Carbon!$B119,'Crop 1'!$L$62*VLOOKUP('Crop 1'!$E$62,Carbon!$AH$4:$AI$10,2,FALSE),0)+IF('Crop 1'!$C$63=Carbon!$B119,'Crop 1'!$L$63*VLOOKUP('Crop 1'!$E$63,Carbon!$AH$4:$AI$10,2,FALSE),0)+IF('Crop 1'!$C$64=Carbon!$B119,'Crop 1'!$L$64*VLOOKUP('Crop 1'!$E$64,Carbon!$AH$4:$AI$10,2,FALSE),0)+IF('Crop 1'!$C$65=Carbon!$B119,'Crop 1'!$L$65*VLOOKUP('Crop 1'!$E$65,Carbon!$AH$4:$AI$10,2,FALSE),0))*$AL$20,2)","v":0},{"$f":"C119*Inputs!$D$13","v":0},{"$f":"ROUND((IF('Crop 2'!$C$14=Carbon!$B119,'Crop 2'!$L$14*VLOOKUP('Crop 2'!$E$14,Carbon!$AH$4:$AI$10,2,FALSE),0)+IF('Crop 2'!$C$15=Carbon!$B119,'Crop 2'!$L$15*VLOOKUP('Crop 2'!$E$15,Carbon!$AH$4:$AI$10,2,FALSE),0)+IF('Crop 2'!$C$16=Carbon!$B119,'Crop 2'!$L$16*VLOOKUP('Crop 2'!$E$16,Carbon!$AH$4:$AI$10,2,FALSE),0)+IF('Crop 2'!$C$19=Carbon!$B119,'Crop 2'!$L$19*VLOOKUP('Crop 2'!$E$19,Carbon!$AH$4:$AI$10,2,FALSE),0)+IF('Crop 2'!$C$20=Carbon!$B119,'Crop 2'!$L$20*VLOOKUP('Crop 2'!$E$20,Carbon!$AH$4:$AI$10,2,FALSE),0)+IF('Crop 2'!$C$21=Carbon!$B119,'Crop 2'!$L$21*VLOOKUP('Crop 2'!$E$21,Carbon!$AH$4:$AI$10,2,FALSE),0)+IF('Crop 2'!$C$49=Carbon!$B119,'Crop 2'!$L$49*VLOOKUP('Crop 2'!$E$49,Carbon!$AH$4:$AI$10,2,FALSE),0)+IF('Crop 2'!$C$50=Carbon!$B119,'Crop 2'!$L$50*VLOOKUP('Crop 2'!$E$50,Carbon!$AH$4:$AI$10,2,FALSE),0)+IF('Crop 2'!$C$51=Carbon!$B119,'Crop 2'!$L$51*VLOOKUP('Crop 2'!$E$51,Carbon!$AH$4:$AI$10,2,FALSE),0)+IF('Crop 2'!$C$52=Carbon!$B119,'Crop 2'!$L$52*VLOOKUP('Crop 2'!$E$52,Carbon!$AH$4:$AI$10,2,FALSE),0)+IF('Crop 2'!$C$53=Carbon!$B119,'Crop 2'!$L$53*VLOOKUP('Crop 2'!$E$53,Carbon!$AH$4:$AI$10,2,FALSE),0)+IF('Crop 2'!$C$56=Carbon!$B119,'Crop 2'!$L$56*VLOOKUP('Crop 2'!$E$56,Carbon!$AH$4:$AI$10,2,FALSE),0)+IF('Crop 2'!$C$57=Carbon!$B119,'Crop 2'!$L$57*VLOOKUP('Crop 2'!$E$57,Carbon!$AH$4:$AI$10,2,FALSE),0)+IF('Crop 2'!$C$58=Carbon!$B119,'Crop 2'!$L$58*VLOOKUP('Crop 2'!$E$58,Carbon!$AH$4:$AI$10,2,FALSE),0)+IF('Crop 2'!$C$59=Carbon!$B119,'Crop 2'!$L$59*VLOOKUP('Crop 2'!$E$59,Carbon!$AH$4:$AI$10,2,FALSE),0)+IF('Crop 2'!$C$62=Carbon!$B119,'Crop 2'!$L$62*VLOOKUP('Crop 2'!$E$62,Carbon!$AH$4:$AI$10,2,FALSE),0)+IF('Crop 2'!$C$63=Carbon!$B119,'Crop 2'!$L$63*VLOOKUP('Crop 2'!$E$63,Carbon!$AH$4:$AI$10,2,FALSE),0)+IF('Crop 2'!$C$64=Carbon!$B119,'Crop 2'!$L$64*VLOOKUP('Crop 2'!$E$64,Carbon!$AH$4:$AI$10,2,FALSE),0)+IF('Crop 2'!$C$65=Carbon!$B119,'Crop 2'!$L$65*VLOOKUP('Crop 2'!$E$65,Carbon!$AH$4:$AI$10,2,FALSE),0))*$AL$20,2)","v":0},{"$f":"E119*Inputs!$D$15","v":0},{"$f":"ROUND((IF('Crop 3'!$C$14=Carbon!$B119,'Crop 3'!$L$14*VLOOKUP('Crop 3'!$E$14,Carbon!$AH$4:$AI$10,2,FALSE),0)+IF('Crop 3'!$C$15=Carbon!$B119,'Crop 3'!$L$15*VLOOKUP('Crop 3'!$E$15,Carbon!$AH$4:$AI$10,2,FALSE),0)+IF('Crop 3'!$C$16=Carbon!$B119,'Crop 3'!$L$16*VLOOKUP('Crop 3'!$E$16,Carbon!$AH$4:$AI$10,2,FALSE),0)+IF('Crop 3'!$C$19=Carbon!$B119,'Crop 3'!$L$19*VLOOKUP('Crop 3'!$E$19,Carbon!$AH$4:$AI$10,2,FALSE),0)+IF('Crop 3'!$C$20=Carbon!$B119,'Crop 3'!$L$20*VLOOKUP('Crop 3'!$E$20,Carbon!$AH$4:$AI$10,2,FALSE),0)+IF('Crop 3'!$C$21=Carbon!$B119,'Crop 3'!$L$21*VLOOKUP('Crop 3'!$E$21,Carbon!$AH$4:$AI$10,2,FALSE),0)+IF('Crop 3'!$C$49=Carbon!$B119,'Crop 3'!$L$49*VLOOKUP('Crop 3'!$E$49,Carbon!$AH$4:$AI$10,2,FALSE),0)+IF('Crop 3'!$C$50=Carbon!$B119,'Crop 3'!$L$50*VLOOKUP('Crop 3'!$E$50,Carbon!$AH$4:$AI$10,2,FALSE),0)+IF('Crop 3'!$C$51=Carbon!$B119,'Crop 3'!$L$51*VLOOKUP('Crop 3'!$E$51,Carbon!$AH$4:$AI$10,2,FALSE),0)+IF('Crop 3'!$C$52=Carbon!$B119,'Crop 3'!$L$52*VLOOKUP('Crop 3'!$E$52,Carbon!$AH$4:$AI$10,2,FALSE),0)+IF('Crop 3'!$C$53=Carbon!$B119,'Crop 3'!$L$53*VLOOKUP('Crop 3'!$E$53,Carbon!$AH$4:$AI$10,2,FALSE),0)+IF('Crop 3'!$C$56=Carbon!$B119,'Crop 3'!$L$56*VLOOKUP('Crop 3'!$E$56,Carbon!$AH$4:$AI$10,2,FALSE),0)+IF('Crop 3'!$C$57=Carbon!$B119,'Crop 3'!$L$57*VLOOKUP('Crop 3'!$E$57,Carbon!$AH$4:$AI$10,2,FALSE),0)+IF('Crop 3'!$C$58=Carbon!$B119,'Crop 3'!$L$58*VLOOKUP('Crop 3'!$E$58,Carbon!$AH$4:$AI$10,2,FALSE),0)+IF('Crop 3'!$C$59=Carbon!$B119,'Crop 3'!$L$59*VLOOKUP('Crop 3'!$E$59,Carbon!$AH$4:$AI$10,2,FALSE),0)+IF('Crop 3'!$C$62=Carbon!$B119,'Crop 3'!$L$62*VLOOKUP('Crop 3'!$E$62,Carbon!$AH$4:$AI$10,2,FALSE),0)+IF('Crop 3'!$C$63=Carbon!$B119,'Crop 3'!$L$63*VLOOKUP('Crop 3'!$E$63,Carbon!$AH$4:$AI$10,2,FALSE),0)+IF('Crop 3'!$C$64=Carbon!$B119,'Crop 3'!$L$64*VLOOKUP('Crop 3'!$E$64,Carbon!$AH$4:$AI$10,2,FALSE),0)+IF('Crop 3'!$C$65=Carbon!$B119,'Crop 3'!$L$65*VLOOKUP('Crop 3'!$E$65,Carbon!$AH$4:$AI$10,2,FALSE),0))*$AL$20,2)","v":0},{"$f":"G119*Inputs!$D$17","v":0},{"$f":"ROUND(J119/Inputs!D$19,2)","v":0},0,null,null,{"$f":"ROUND((IF('Crop 1'!$C$14=Carbon!$B119,'Crop 1'!$V$14*VLOOKUP('Crop 1'!$E$14,Carbon!$AH$4:$AI$10,2,FALSE),0)+IF('Crop 1'!$C$15=Carbon!$B119,'Crop 1'!$V$15*VLOOKUP('Crop 1'!$E$15,Carbon!$AH$4:$AI$10,2,FALSE),0)+IF('Crop 1'!$C$16=Carbon!$B119,'Crop 1'!$V$16*VLOOKUP('Crop 1'!$E$16,Carbon!$AH$4:$AI$10,2,FALSE),0)+IF('Crop 1'!$C$19=Carbon!$B119,'Crop 1'!$V$19*VLOOKUP('Crop 1'!$E$19,Carbon!$AH$4:$AI$10,2,FALSE),0)+IF('Crop 1'!$C$20=Carbon!$B119,'Crop 1'!$V$20*VLOOKUP('Crop 1'!$E$20,Carbon!$AH$4:$AI$10,2,FALSE),0)+IF('Crop 1'!$C$21=Carbon!$B119,'Crop 1'!$V$21*VLOOKUP('Crop 1'!$E$21,Carbon!$AH$4:$AI$10,2,FALSE),0)+IF('Crop 1'!$C$49=Carbon!$B119,'Crop 1'!$V$49*VLOOKUP('Crop 1'!$E$49,Carbon!$AH$4:$AI$10,2,FALSE),0)+IF('Crop 1'!$C$50=Carbon!$B119,'Crop 1'!$V$50*VLOOKUP('Crop 1'!$E$50,Carbon!$AH$4:$AI$10,2,FALSE),0)+IF('Crop 1'!$C$51=Carbon!$B119,'Crop 1'!$V$51*VLOOKUP('Crop 1'!$E$51,Carbon!$AH$4:$AI$10,2,FALSE),0)+IF('Crop 1'!$C$52=Carbon!$B119,'Crop 1'!$V$52*VLOOKUP('Crop 1'!$E$52,Carbon!$AH$4:$AI$10,2,FALSE),0)+IF('Crop 1'!$C$53=Carbon!$B119,'Crop 1'!$V$53*VLOOKUP('Crop 1'!$E$53,Carbon!$AH$4:$AI$10,2,FALSE),0)+IF('Crop 1'!$C$56=Carbon!$B119,'Crop 1'!$V$56*VLOOKUP('Crop 1'!$E$56,Carbon!$AH$4:$AI$10,2,FALSE),0)+IF('Crop 1'!$C$57=Carbon!$B119,'Crop 1'!$V$57*VLOOKUP('Crop 1'!$E$57,Carbon!$AH$4:$AI$10,2,FALSE),0)+IF('Crop 1'!$C$58=Carbon!$B119,'Crop 1'!$V$58*VLOOKUP('Crop 1'!$E$58,Carbon!$AH$4:$AI$10,2,FALSE),0)+IF('Crop 1'!$C$59=Carbon!$B119,'Crop 1'!$V$59*VLOOKUP('Crop 1'!$E$59,Carbon!$AH$4:$AI$10,2,FALSE),0)+IF('Crop 1'!$C$62=Carbon!$B119,'Crop 1'!$V$62*VLOOKUP('Crop 1'!$E$62,Carbon!$AH$4:$AI$10,2,FALSE),0)+IF('Crop 1'!$C$63=Carbon!$B119,'Crop 1'!$V$63*VLOOKUP('Crop 1'!$E$63,Carbon!$AH$4:$AI$10,2,FALSE),0)+IF('Crop 1'!$C$64=Carbon!$B119,'Crop 1'!$V$64*VLOOKUP('Crop 1'!$E$64,Carbon!$AH$4:$AI$10,2,FALSE),0)+IF('Crop 1'!$C$65=Carbon!$B119,'Crop 1'!$V$65*VLOOKUP('Crop 1'!$E$65,Carbon!$AH$4:$AI$10,2,FALSE),0))*$AL$20,2)","v":0},{"$f":"M119*Inputs!$D$13","v":0},{"$f":"ROUND((IF('Crop 2'!$C$14=Carbon!$B119,'Crop 2'!$V$14*VLOOKUP('Crop 2'!$E$14,Carbon!$AH$4:$AI$10,2,FALSE),0)+IF('Crop 2'!$C$15=Carbon!$B119,'Crop 2'!$V$15*VLOOKUP('Crop 2'!$E$15,Carbon!$AH$4:$AI$10,2,FALSE),0)+IF('Crop 2'!$C$16=Carbon!$B119,'Crop 2'!$V$16*VLOOKUP('Crop 2'!$E$16,Carbon!$AH$4:$AI$10,2,FALSE),0)+IF('Crop 2'!$C$19=Carbon!$B119,'Crop 2'!$V$19*VLOOKUP('Crop 2'!$E$19,Carbon!$AH$4:$AI$10,2,FALSE),0)+IF('Crop 2'!$C$20=Carbon!$B119,'Crop 2'!$V$20*VLOOKUP('Crop 2'!$E$20,Carbon!$AH$4:$AI$10,2,FALSE),0)+IF('Crop 2'!$C$21=Carbon!$B119,'Crop 2'!$V$21*VLOOKUP('Crop 2'!$E$21,Carbon!$AH$4:$AI$10,2,FALSE),0)+IF('Crop 2'!$C$49=Carbon!$B119,'Crop 2'!$V$49*VLOOKUP('Crop 2'!$E$49,Carbon!$AH$4:$AI$10,2,FALSE),0)+IF('Crop 2'!$C$50=Carbon!$B119,'Crop 2'!$V$50*VLOOKUP('Crop 2'!$E$50,Carbon!$AH$4:$AI$10,2,FALSE),0)+IF('Crop 2'!$C$51=Carbon!$B119,'Crop 2'!$V$51*VLOOKUP('Crop 2'!$E$51,Carbon!$AH$4:$AI$10,2,FALSE),0)+IF('Crop 2'!$C$52=Carbon!$B119,'Crop 2'!$V$52*VLOOKUP('Crop 2'!$E$52,Carbon!$AH$4:$AI$10,2,FALSE),0)+IF('Crop 2'!$C$53=Carbon!$B119,'Crop 2'!$V$53*VLOOKUP('Crop 2'!$E$53,Carbon!$AH$4:$AI$10,2,FALSE),0)+IF('Crop 2'!$C$56=Carbon!$B119,'Crop 2'!$V$56*VLOOKUP('Crop 2'!$E$56,Carbon!$AH$4:$AI$10,2,FALSE),0)+IF('Crop 2'!$C$57=Carbon!$B119,'Crop 2'!$V$57*VLOOKUP('Crop 2'!$E$57,Carbon!$AH$4:$AI$10,2,FALSE),0)+IF('Crop 2'!$C$58=Carbon!$B119,'Crop 2'!$V$58*VLOOKUP('Crop 2'!$E$58,Carbon!$AH$4:$AI$10,2,FALSE),0)+IF('Crop 2'!$C$59=Carbon!$B119,'Crop 2'!$V$59*VLOOKUP('Crop 2'!$E$59,Carbon!$AH$4:$AI$10,2,FALSE),0)+IF('Crop 2'!$C$62=Carbon!$B119,'Crop 2'!$V$62*VLOOKUP('Crop 2'!$E$62,Carbon!$AH$4:$AI$10,2,FALSE),0)+IF('Crop 2'!$C$63=Carbon!$B119,'Crop 2'!$V$63*VLOOKUP('Crop 2'!$E$63,Carbon!$AH$4:$AI$10,2,FALSE),0)+IF('Crop 2'!$C$64=Carbon!$B119,'Crop 2'!$V$64*VLOOKUP('Crop 2'!$E$64,Carbon!$AH$4:$AI$10,2,FALSE),0)+IF('Crop 2'!$C$65=Carbon!$B119,'Crop 2'!$V$65*VLOOKUP('Crop 2'!$E$65,Carbon!$AH$4:$AI$10,2,FALSE),0))*$AL$20,2)","v":0},{"$f":"O119*Inputs!$D$15","v":0},{"$f":"ROUND((IF('Crop 3'!$C$14=Carbon!$B119,'Crop 3'!$V$14*VLOOKUP('Crop 3'!$E$14,Carbon!$AH$4:$AI$10,2,FALSE),0)+IF('Crop 3'!$C$15=Carbon!$B119,'Crop 3'!$V$15*VLOOKUP('Crop 3'!$E$15,Carbon!$AH$4:$AI$10,2,FALSE),0)+IF('Crop 3'!$C$16=Carbon!$B119,'Crop 3'!$V$16*VLOOKUP('Crop 3'!$E$16,Carbon!$AH$4:$AI$10,2,FALSE),0)+IF('Crop 3'!$C$19=Carbon!$B119,'Crop 3'!$V$19*VLOOKUP('Crop 3'!$E$19,Carbon!$AH$4:$AI$10,2,FALSE),0)+IF('Crop 3'!$C$20=Carbon!$B119,'Crop 3'!$V$20*VLOOKUP('Crop 3'!$E$20,Carbon!$AH$4:$AI$10,2,FALSE),0)+IF('Crop 3'!$C$21=Carbon!$B119,'Crop 3'!$V$21*VLOOKUP('Crop 3'!$E$21,Carbon!$AH$4:$AI$10,2,FALSE),0)+IF('Crop 3'!$C$49=Carbon!$B119,'Crop 3'!$V$49*VLOOKUP('Crop 3'!$E$49,Carbon!$AH$4:$AI$10,2,FALSE),0)+IF('Crop 3'!$C$50=Carbon!$B119,'Crop 3'!$V$50*VLOOKUP('Crop 3'!$E$50,Carbon!$AH$4:$AI$10,2,FALSE),0)+IF('Crop 3'!$C$51=Carbon!$B119,'Crop 3'!$V$51*VLOOKUP('Crop 3'!$E$51,Carbon!$AH$4:$AI$10,2,FALSE),0)+IF('Crop 3'!$C$52=Carbon!$B119,'Crop 3'!$V$52*VLOOKUP('Crop 3'!$E$52,Carbon!$AH$4:$AI$10,2,FALSE),0)+IF('Crop 3'!$C$53=Carbon!$B119,'Crop 3'!$V$53*VLOOKUP('Crop 3'!$E$53,Carbon!$AH$4:$AI$10,2,FALSE),0)+IF('Crop 3'!$C$56=Carbon!$B119,'Crop 3'!$V$56*VLOOKUP('Crop 3'!$E$56,Carbon!$AH$4:$AI$10,2,FALSE),0)+IF('Crop 3'!$C$57=Carbon!$B119,'Crop 3'!$V$57*VLOOKUP('Crop 3'!$E$57,Carbon!$AH$4:$AI$10,2,FALSE),0)+IF('Crop 3'!$C$58=Carbon!$B119,'Crop 3'!$V$58*VLOOKUP('Crop 3'!$E$58,Carbon!$AH$4:$AI$10,2,FALSE),0)+IF('Crop 3'!$C$59=Carbon!$B119,'Crop 3'!$V$59*VLOOKUP('Crop 3'!$E$59,Carbon!$AH$4:$AI$10,2,FALSE),0)+IF('Crop 3'!$C$62=Carbon!$B119,'Crop 3'!$V$62*VLOOKUP('Crop 3'!$E$62,Carbon!$AH$4:$AI$10,2,FALSE),0)+IF('Crop 3'!$C$63=Carbon!$B119,'Crop 3'!$V$63*VLOOKUP('Crop 3'!$E$63,Carbon!$AH$4:$AI$10,2,FALSE),0)+IF('Crop 3'!$C$64=Carbon!$B119,'Crop 3'!$V$64*VLOOKUP('Crop 3'!$E$64,Carbon!$AH$4:$AI$10,2,FALSE),0)+IF('Crop 3'!$C$65=Carbon!$B119,'Crop 3'!$V$65*VLOOKUP('Crop 3'!$E$65,Carbon!$AH$4:$AI$10,2,FALSE),0))*$AL$20,2)","v":0},{"$f":"Q119*Inputs!$D$17","v":0},{"$f":"ROUND(T119/Inputs!D$19,2)","v":0},0,null,null,0,{"$f":"W119*Inputs!$D$13","v":0},0,{"$f":"Y119*Inputs!$D$13","v":0},0,{"$f":"AA119*Inputs!$D$13","v":0},{"$f":"ROUND(AD119/Inputs!D$19,2)","v":0},0]
[null,{"$f":"Defaults!AH86","v":"Patriot"},{"$f":"ROUND((IF('Crop 1'!$C$14=Carbon!$B120,'Crop 1'!$L$14*VLOOKUP('Crop 1'!$E$14,Carbon!$AH$4:$AI$10,2,FALSE),0)+IF('Crop 1'!$C$15=Carbon!$B120,'Crop 1'!$L$15*VLOOKUP('Crop 1'!$E$15,Carbon!$AH$4:$AI$10,2,FALSE),0)+IF('Crop 1'!$C$16=Carbon!$B120,'Crop 1'!$L$16*VLOOKUP('Crop 1'!$E$16,Carbon!$AH$4:$AI$10,2,FALSE),0)+IF('Crop 1'!$C$19=Carbon!$B120,'Crop 1'!$L$19*VLOOKUP('Crop 1'!$E$19,Carbon!$AH$4:$AI$10,2,FALSE),0)+IF('Crop 1'!$C$20=Carbon!$B120,'Crop 1'!$L$20*VLOOKUP('Crop 1'!$E$20,Carbon!$AH$4:$AI$10,2,FALSE),0)+IF('Crop 1'!$C$21=Carbon!$B120,'Crop 1'!$L$21*VLOOKUP('Crop 1'!$E$21,Carbon!$AH$4:$AI$10,2,FALSE),0)+IF('Crop 1'!$C$49=Carbon!$B120,'Crop 1'!$L$49*VLOOKUP('Crop 1'!$E$49,Carbon!$AH$4:$AI$10,2,FALSE),0)+IF('Crop 1'!$C$50=Carbon!$B120,'Crop 1'!$L$50*VLOOKUP('Crop 1'!$E$50,Carbon!$AH$4:$AI$10,2,FALSE),0)+IF('Crop 1'!$C$51=Carbon!$B120,'Crop 1'!$L$51*VLOOKUP('Crop 1'!$E$51,Carbon!$AH$4:$AI$10,2,FALSE),0)+IF('Crop 1'!$C$52=Carbon!$B120,'Crop 1'!$L$52*VLOOKUP('Crop 1'!$E$52,Carbon!$AH$4:$AI$10,2,FALSE),0)+IF('Crop 1'!$C$53=Carbon!$B120,'Crop 1'!$L$53*VLOOKUP('Crop 1'!$E$53,Carbon!$AH$4:$AI$10,2,FALSE),0)+IF('Crop 1'!$C$56=Carbon!$B120,'Crop 1'!$L$56*VLOOKUP('Crop 1'!$E$56,Carbon!$AH$4:$AI$10,2,FALSE),0)+IF('Crop 1'!$C$57=Carbon!$B120,'Crop 1'!$L$57*VLOOKUP('Crop 1'!$E$57,Carbon!$AH$4:$AI$10,2,FALSE),0)+IF('Crop 1'!$C$58=Carbon!$B120,'Crop 1'!$L$58*VLOOKUP('Crop 1'!$E$58,Carbon!$AH$4:$AI$10,2,FALSE),0)+IF('Crop 1'!$C$59=Carbon!$B120,'Crop 1'!$L$59*VLOOKUP('Crop 1'!$E$59,Carbon!$AH$4:$AI$10,2,FALSE),0)+IF('Crop 1'!$C$62=Carbon!$B120,'Crop 1'!$L$62*VLOOKUP('Crop 1'!$E$62,Carbon!$AH$4:$AI$10,2,FALSE),0)+IF('Crop 1'!$C$63=Carbon!$B120,'Crop 1'!$L$63*VLOOKUP('Crop 1'!$E$63,Carbon!$AH$4:$AI$10,2,FALSE),0)+IF('Crop 1'!$C$64=Carbon!$B120,'Crop 1'!$L$64*VLOOKUP('Crop 1'!$E$64,Carbon!$AH$4:$AI$10,2,FALSE),0)+IF('Crop 1'!$C$65=Carbon!$B120,'Crop 1'!$L$65*VLOOKUP('Crop 1'!$E$65,Carbon!$AH$4:$AI$10,2,FALSE),0))*$AL$20,2)","v":0},{"$f":"C120*Inputs!$D$13","v":0},{"$f":"ROUND((IF('Crop 2'!$C$14=Carbon!$B120,'Crop 2'!$L$14*VLOOKUP('Crop 2'!$E$14,Carbon!$AH$4:$AI$10,2,FALSE),0)+IF('Crop 2'!$C$15=Carbon!$B120,'Crop 2'!$L$15*VLOOKUP('Crop 2'!$E$15,Carbon!$AH$4:$AI$10,2,FALSE),0)+IF('Crop 2'!$C$16=Carbon!$B120,'Crop 2'!$L$16*VLOOKUP('Crop 2'!$E$16,Carbon!$AH$4:$AI$10,2,FALSE),0)+IF('Crop 2'!$C$19=Carbon!$B120,'Crop 2'!$L$19*VLOOKUP('Crop 2'!$E$19,Carbon!$AH$4:$AI$10,2,FALSE),0)+IF('Crop 2'!$C$20=Carbon!$B120,'Crop 2'!$L$20*VLOOKUP('Crop 2'!$E$20,Carbon!$AH$4:$AI$10,2,FALSE),0)+IF('Crop 2'!$C$21=Carbon!$B120,'Crop 2'!$L$21*VLOOKUP('Crop 2'!$E$21,Carbon!$AH$4:$AI$10,2,FALSE),0)+IF('Crop 2'!$C$49=Carbon!$B120,'Crop 2'!$L$49*VLOOKUP('Crop 2'!$E$49,Carbon!$AH$4:$AI$10,2,FALSE),0)+IF('Crop 2'!$C$50=Carbon!$B120,'Crop 2'!$L$50*VLOOKUP('Crop 2'!$E$50,Carbon!$AH$4:$AI$10,2,FALSE),0)+IF('Crop 2'!$C$51=Carbon!$B120,'Crop 2'!$L$51*VLOOKUP('Crop 2'!$E$51,Carbon!$AH$4:$AI$10,2,FALSE),0)+IF('Crop 2'!$C$52=Carbon!$B120,'Crop 2'!$L$52*VLOOKUP('Crop 2'!$E$52,Carbon!$AH$4:$AI$10,2,FALSE),0)+IF('Crop 2'!$C$53=Carbon!$B120,'Crop 2'!$L$53*VLOOKUP('Crop 2'!$E$53,Carbon!$AH$4:$AI$10,2,FALSE),0)+IF('Crop 2'!$C$56=Carbon!$B120,'Crop 2'!$L$56*VLOOKUP('Crop 2'!$E$56,Carbon!$AH$4:$AI$10,2,FALSE),0)+IF('Crop 2'!$C$57=Carbon!$B120,'Crop 2'!$L$57*VLOOKUP('Crop 2'!$E$57,Carbon!$AH$4:$AI$10,2,FALSE),0)+IF('Crop 2'!$C$58=Carbon!$B120,'Crop 2'!$L$58*VLOOKUP('Crop 2'!$E$58,Carbon!$AH$4:$AI$10,2,FALSE),0)+IF('Crop 2'!$C$59=Carbon!$B120,'Crop 2'!$L$59*VLOOKUP('Crop 2'!$E$59,Carbon!$AH$4:$AI$10,2,FALSE),0)+IF('Crop 2'!$C$62=Carbon!$B120,'Crop 2'!$L$62*VLOOKUP('Crop 2'!$E$62,Carbon!$AH$4:$AI$10,2,FALSE),0)+IF('Crop 2'!$C$63=Carbon!$B120,'Crop 2'!$L$63*VLOOKUP('Crop 2'!$E$63,Carbon!$AH$4:$AI$10,2,FALSE),0)+IF('Crop 2'!$C$64=Carbon!$B120,'Crop 2'!$L$64*VLOOKUP('Crop 2'!$E$64,Carbon!$AH$4:$AI$10,2,FALSE),0)+IF('Crop 2'!$C$65=Carbon!$B120,'Crop 2'!$L$65*VLOOKUP('Crop 2'!$E$65,Carbon!$AH$4:$AI$10,2,FALSE),0))*$AL$20,2)","v":0},{"$f":"E120*Inputs!$D$15","v":0},{"$f":"ROUND((IF('Crop 3'!$C$14=Carbon!$B120,'Crop 3'!$L$14*VLOOKUP('Crop 3'!$E$14,Carbon!$AH$4:$AI$10,2,FALSE),0)+IF('Crop 3'!$C$15=Carbon!$B120,'Crop 3'!$L$15*VLOOKUP('Crop 3'!$E$15,Carbon!$AH$4:$AI$10,2,FALSE),0)+IF('Crop 3'!$C$16=Carbon!$B120,'Crop 3'!$L$16*VLOOKUP('Crop 3'!$E$16,Carbon!$AH$4:$AI$10,2,FALSE),0)+IF('Crop 3'!$C$19=Carbon!$B120,'Crop 3'!$L$19*VLOOKUP('Crop 3'!$E$19,Carbon!$AH$4:$AI$10,2,FALSE),0)+IF('Crop 3'!$C$20=Carbon!$B120,'Crop 3'!$L$20*VLOOKUP('Crop 3'!$E$20,Carbon!$AH$4:$AI$10,2,FALSE),0)+IF('Crop 3'!$C$21=Carbon!$B120,'Crop 3'!$L$21*VLOOKUP('Crop 3'!$E$21,Carbon!$AH$4:$AI$10,2,FALSE),0)+IF('Crop 3'!$C$49=Carbon!$B120,'Crop 3'!$L$49*VLOOKUP('Crop 3'!$E$49,Carbon!$AH$4:$AI$10,2,FALSE),0)+IF('Crop 3'!$C$50=Carbon!$B120,'Crop 3'!$L$50*VLOOKUP('Crop 3'!$E$50,Carbon!$AH$4:$AI$10,2,FALSE),0)+IF('Crop 3'!$C$51=Carbon!$B120,'Crop 3'!$L$51*VLOOKUP('Crop 3'!$E$51,Carbon!$AH$4:$AI$10,2,FALSE),0)+IF('Crop 3'!$C$52=Carbon!$B120,'Crop 3'!$L$52*VLOOKUP('Crop 3'!$E$52,Carbon!$AH$4:$AI$10,2,FALSE),0)+IF('Crop 3'!$C$53=Carbon!$B120,'Crop 3'!$L$53*VLOOKUP('Crop 3'!$E$53,Carbon!$AH$4:$AI$10,2,FALSE),0)+IF('Crop 3'!$C$56=Carbon!$B120,'Crop 3'!$L$56*VLOOKUP('Crop 3'!$E$56,Carbon!$AH$4:$AI$10,2,FALSE),0)+IF('Crop 3'!$C$57=Carbon!$B120,'Crop 3'!$L$57*VLOOKUP('Crop 3'!$E$57,Carbon!$AH$4:$AI$10,2,FALSE),0)+IF('Crop 3'!$C$58=Carbon!$B120,'Crop 3'!$L$58*VLOOKUP('Crop 3'!$E$58,Carbon!$AH$4:$AI$10,2,FALSE),0)+IF('Crop 3'!$C$59=Carbon!$B120,'Crop 3'!$L$59*VLOOKUP('Crop 3'!$E$59,Carbon!$AH$4:$AI$10,2,FALSE),0)+IF('Crop 3'!$C$62=Carbon!$B120,'Crop 3'!$L$62*VLOOKUP('Crop 3'!$E$62,Carbon!$AH$4:$AI$10,2,FALSE),0)+IF('Crop 3'!$C$63=Carbon!$B120,'Crop 3'!$L$63*VLOOKUP('Crop 3'!$E$63,Carbon!$AH$4:$AI$10,2,FALSE),0)+IF('Crop 3'!$C$64=Carbon!$B120,'Crop 3'!$L$64*VLOOKUP('Crop 3'!$E$64,Carbon!$AH$4:$AI$10,2,FALSE),0)+IF('Crop 3'!$C$65=Carbon!$B120,'Crop 3'!$L$65*VLOOKUP('Crop 3'!$E$65,Carbon!$AH$4:$AI$10,2,FALSE),0))*$AL$20,2)","v":0},{"$f":"G120*Inputs!$D$17","v":0},{"$f":"ROUND(J120/Inputs!D$19,2)","v":0},0,null,null,{"$f":"ROUND((IF('Crop 1'!$C$14=Carbon!$B120,'Crop 1'!$V$14*VLOOKUP('Crop 1'!$E$14,Carbon!$AH$4:$AI$10,2,FALSE),0)+IF('Crop 1'!$C$15=Carbon!$B120,'Crop 1'!$V$15*VLOOKUP('Crop 1'!$E$15,Carbon!$AH$4:$AI$10,2,FALSE),0)+IF('Crop 1'!$C$16=Carbon!$B120,'Crop 1'!$V$16*VLOOKUP('Crop 1'!$E$16,Carbon!$AH$4:$AI$10,2,FALSE),0)+IF('Crop 1'!$C$19=Carbon!$B120,'Crop 1'!$V$19*VLOOKUP('Crop 1'!$E$19,Carbon!$AH$4:$AI$10,2,FALSE),0)+IF('Crop 1'!$C$20=Carbon!$B120,'Crop 1'!$V$20*VLOOKUP('Crop 1'!$E$20,Carbon!$AH$4:$AI$10,2,FALSE),0)+IF('Crop 1'!$C$21=Carbon!$B120,'Crop 1'!$V$21*VLOOKUP('Crop 1'!$E$21,Carbon!$AH$4:$AI$10,2,FALSE),0)+IF('Crop 1'!$C$49=Carbon!$B120,'Crop 1'!$V$49*VLOOKUP('Crop 1'!$E$49,Carbon!$AH$4:$AI$10,2,FALSE),0)+IF('Crop 1'!$C$50=Carbon!$B120,'Crop 1'!$V$50*VLOOKUP('Crop 1'!$E$50,Carbon!$AH$4:$AI$10,2,FALSE),0)+IF('Crop 1'!$C$51=Carbon!$B120,'Crop 1'!$V$51*VLOOKUP('Crop 1'!$E$51,Carbon!$AH$4:$AI$10,2,FALSE),0)+IF('Crop 1'!$C$52=Carbon!$B120,'Crop 1'!$V$52*VLOOKUP('Crop 1'!$E$52,Carbon!$AH$4:$AI$10,2,FALSE),0)+IF('Crop 1'!$C$53=Carbon!$B120,'Crop 1'!$V$53*VLOOKUP('Crop 1'!$E$53,Carbon!$AH$4:$AI$10,2,FALSE),0)+IF('Crop 1'!$C$56=Carbon!$B120,'Crop 1'!$V$56*VLOOKUP('Crop 1'!$E$56,Carbon!$AH$4:$AI$10,2,FALSE),0)+IF('Crop 1'!$C$57=Carbon!$B120,'Crop 1'!$V$57*VLOOKUP('Crop 1'!$E$57,Carbon!$AH$4:$AI$10,2,FALSE),0)+IF('Crop 1'!$C$58=Carbon!$B120,'Crop 1'!$V$58*VLOOKUP('Crop 1'!$E$58,Carbon!$AH$4:$AI$10,2,FALSE),0)+IF('Crop 1'!$C$59=Carbon!$B120,'Crop 1'!$V$59*VLOOKUP('Crop 1'!$E$59,Carbon!$AH$4:$AI$10,2,FALSE),0)+IF('Crop 1'!$C$62=Carbon!$B120,'Crop 1'!$V$62*VLOOKUP('Crop 1'!$E$62,Carbon!$AH$4:$AI$10,2,FALSE),0)+IF('Crop 1'!$C$63=Carbon!$B120,'Crop 1'!$V$63*VLOOKUP('Crop 1'!$E$63,Carbon!$AH$4:$AI$10,2,FALSE),0)+IF('Crop 1'!$C$64=Carbon!$B120,'Crop 1'!$V$64*VLOOKUP('Crop 1'!$E$64,Carbon!$AH$4:$AI$10,2,FALSE),0)+IF('Crop 1'!$C$65=Carbon!$B120,'Crop 1'!$V$65*VLOOKUP('Crop 1'!$E$65,Carbon!$AH$4:$AI$10,2,FALSE),0))*$AL$20,2)","v":0},{"$f":"M120*Inputs!$D$13","v":0},{"$f":"ROUND((IF('Crop 2'!$C$14=Carbon!$B120,'Crop 2'!$V$14*VLOOKUP('Crop 2'!$E$14,Carbon!$AH$4:$AI$10,2,FALSE),0)+IF('Crop 2'!$C$15=Carbon!$B120,'Crop 2'!$V$15*VLOOKUP('Crop 2'!$E$15,Carbon!$AH$4:$AI$10,2,FALSE),0)+IF('Crop 2'!$C$16=Carbon!$B120,'Crop 2'!$V$16*VLOOKUP('Crop 2'!$E$16,Carbon!$AH$4:$AI$10,2,FALSE),0)+IF('Crop 2'!$C$19=Carbon!$B120,'Crop 2'!$V$19*VLOOKUP('Crop 2'!$E$19,Carbon!$AH$4:$AI$10,2,FALSE),0)+IF('Crop 2'!$C$20=Carbon!$B120,'Crop 2'!$V$20*VLOOKUP('Crop 2'!$E$20,Carbon!$AH$4:$AI$10,2,FALSE),0)+IF('Crop 2'!$C$21=Carbon!$B120,'Crop 2'!$V$21*VLOOKUP('Crop 2'!$E$21,Carbon!$AH$4:$AI$10,2,FALSE),0)+IF('Crop 2'!$C$49=Carbon!$B120,'Crop 2'!$V$49*VLOOKUP('Crop 2'!$E$49,Carbon!$AH$4:$AI$10,2,FALSE),0)+IF('Crop 2'!$C$50=Carbon!$B120,'Crop 2'!$V$50*VLOOKUP('Crop 2'!$E$50,Carbon!$AH$4:$AI$10,2,FALSE),0)+IF('Crop 2'!$C$51=Carbon!$B120,'Crop 2'!$V$51*VLOOKUP('Crop 2'!$E$51,Carbon!$AH$4:$AI$10,2,FALSE),0)+IF('Crop 2'!$C$52=Carbon!$B120,'Crop 2'!$V$52*VLOOKUP('Crop 2'!$E$52,Carbon!$AH$4:$AI$10,2,FALSE),0)+IF('Crop 2'!$C$53=Carbon!$B120,'Crop 2'!$V$53*VLOOKUP('Crop 2'!$E$53,Carbon!$AH$4:$AI$10,2,FALSE),0)+IF('Crop 2'!$C$56=Carbon!$B120,'Crop 2'!$V$56*VLOOKUP('Crop 2'!$E$56,Carbon!$AH$4:$AI$10,2,FALSE),0)+IF('Crop 2'!$C$57=Carbon!$B120,'Crop 2'!$V$57*VLOOKUP('Crop 2'!$E$57,Carbon!$AH$4:$AI$10,2,FALSE),0)+IF('Crop 2'!$C$58=Carbon!$B120,'Crop 2'!$V$58*VLOOKUP('Crop 2'!$E$58,Carbon!$AH$4:$AI$10,2,FALSE),0)+IF('Crop 2'!$C$59=Carbon!$B120,'Crop 2'!$V$59*VLOOKUP('Crop 2'!$E$59,Carbon!$AH$4:$AI$10,2,FALSE),0)+IF('Crop 2'!$C$62=Carbon!$B120,'Crop 2'!$V$62*VLOOKUP('Crop 2'!$E$62,Carbon!$AH$4:$AI$10,2,FALSE),0)+IF('Crop 2'!$C$63=Carbon!$B120,'Crop 2'!$V$63*VLOOKUP('Crop 2'!$E$63,Carbon!$AH$4:$AI$10,2,FALSE),0)+IF('Crop 2'!$C$64=Carbon!$B120,'Crop 2'!$V$64*VLOOKUP('Crop 2'!$E$64,Carbon!$AH$4:$AI$10,2,FALSE),0)+IF('Crop 2'!$C$65=Carbon!$B120,'Crop 2'!$V$65*VLOOKUP('Crop 2'!$E$65,Carbon!$AH$4:$AI$10,2,FALSE),0))*$AL$20,2)","v":0},{"$f":"O120*Inputs!$D$15","v":0},{"$f":"ROUND((IF('Crop 3'!$C$14=Carbon!$B120,'Crop 3'!$V$14*VLOOKUP('Crop 3'!$E$14,Carbon!$AH$4:$AI$10,2,FALSE),0)+IF('Crop 3'!$C$15=Carbon!$B120,'Crop 3'!$V$15*VLOOKUP('Crop 3'!$E$15,Carbon!$AH$4:$AI$10,2,FALSE),0)+IF('Crop 3'!$C$16=Carbon!$B120,'Crop 3'!$V$16*VLOOKUP('Crop 3'!$E$16,Carbon!$AH$4:$AI$10,2,FALSE),0)+IF('Crop 3'!$C$19=Carbon!$B120,'Crop 3'!$V$19*VLOOKUP('Crop 3'!$E$19,Carbon!$AH$4:$AI$10,2,FALSE),0)+IF('Crop 3'!$C$20=Carbon!$B120,'Crop 3'!$V$20*VLOOKUP('Crop 3'!$E$20,Carbon!$AH$4:$AI$10,2,FALSE),0)+IF('Crop 3'!$C$21=Carbon!$B120,'Crop 3'!$V$21*VLOOKUP('Crop 3'!$E$21,Carbon!$AH$4:$AI$10,2,FALSE),0)+IF('Crop 3'!$C$49=Carbon!$B120,'Crop 3'!$V$49*VLOOKUP('Crop 3'!$E$49,Carbon!$AH$4:$AI$10,2,FALSE),0)+IF('Crop 3'!$C$50=Carbon!$B120,'Crop 3'!$V$50*VLOOKUP('Crop 3'!$E$50,Carbon!$AH$4:$AI$10,2,FALSE),0)+IF('Crop 3'!$C$51=Carbon!$B120,'Crop 3'!$V$51*VLOOKUP('Crop 3'!$E$51,Carbon!$AH$4:$AI$10,2,FALSE),0)+IF('Crop 3'!$C$52=Carbon!$B120,'Crop 3'!$V$52*VLOOKUP('Crop 3'!$E$52,Carbon!$AH$4:$AI$10,2,FALSE),0)+IF('Crop 3'!$C$53=Carbon!$B120,'Crop 3'!$V$53*VLOOKUP('Crop 3'!$E$53,Carbon!$AH$4:$AI$10,2,FALSE),0)+IF('Crop 3'!$C$56=Carbon!$B120,'Crop 3'!$V$56*VLOOKUP('Crop 3'!$E$56,Carbon!$AH$4:$AI$10,2,FALSE),0)+IF('Crop 3'!$C$57=Carbon!$B120,'Crop 3'!$V$57*VLOOKUP('Crop 3'!$E$57,Carbon!$AH$4:$AI$10,2,FALSE),0)+IF('Crop 3'!$C$58=Carbon!$B120,'Crop 3'!$V$58*VLOOKUP('Crop 3'!$E$58,Carbon!$AH$4:$AI$10,2,FALSE),0)+IF('Crop 3'!$C$59=Carbon!$B120,'Crop 3'!$V$59*VLOOKUP('Crop 3'!$E$59,Carbon!$AH$4:$AI$10,2,FALSE),0)+IF('Crop 3'!$C$62=Carbon!$B120,'Crop 3'!$V$62*VLOOKUP('Crop 3'!$E$62,Carbon!$AH$4:$AI$10,2,FALSE),0)+IF('Crop 3'!$C$63=Carbon!$B120,'Crop 3'!$V$63*VLOOKUP('Crop 3'!$E$63,Carbon!$AH$4:$AI$10,2,FALSE),0)+IF('Crop 3'!$C$64=Carbon!$B120,'Crop 3'!$V$64*VLOOKUP('Crop 3'!$E$64,Carbon!$AH$4:$AI$10,2,FALSE),0)+IF('Crop 3'!$C$65=Carbon!$B120,'Crop 3'!$V$65*VLOOKUP('Crop 3'!$E$65,Carbon!$AH$4:$AI$10,2,FALSE),0))*$AL$20,2)","v":0},{"$f":"Q120*Inputs!$D$17","v":0},{"$f":"ROUND(T120/Inputs!D$19,2)","v":0},0,null,null,0,{"$f":"W120*Inputs!$D$13","v":0},0,{"$f":"Y120*Inputs!$D$13","v":0},0,{"$f":"AA120*Inputs!$D$13","v":0},{"$f":"ROUND(AD120/Inputs!D$19,2)","v":0},0]
[null,{"$f":"Defaults!AH87","v":"Peak"},{"$f":"ROUND((IF('Crop 1'!$C$14=Carbon!$B121,'Crop 1'!$L$14*VLOOKUP('Crop 1'!$E$14,Carbon!$AH$4:$AI$10,2,FALSE),0)+IF('Crop 1'!$C$15=Carbon!$B121,'Crop 1'!$L$15*VLOOKUP('Crop 1'!$E$15,Carbon!$AH$4:$AI$10,2,FALSE),0)+IF('Crop 1'!$C$16=Carbon!$B121,'Crop 1'!$L$16*VLOOKUP('Crop 1'!$E$16,Carbon!$AH$4:$AI$10,2,FALSE),0)+IF('Crop 1'!$C$19=Carbon!$B121,'Crop 1'!$L$19*VLOOKUP('Crop 1'!$E$19,Carbon!$AH$4:$AI$10,2,FALSE),0)+IF('Crop 1'!$C$20=Carbon!$B121,'Crop 1'!$L$20*VLOOKUP('Crop 1'!$E$20,Carbon!$AH$4:$AI$10,2,FALSE),0)+IF('Crop 1'!$C$21=Carbon!$B121,'Crop 1'!$L$21*VLOOKUP('Crop 1'!$E$21,Carbon!$AH$4:$AI$10,2,FALSE),0)+IF('Crop 1'!$C$49=Carbon!$B121,'Crop 1'!$L$49*VLOOKUP('Crop 1'!$E$49,Carbon!$AH$4:$AI$10,2,FALSE),0)+IF('Crop 1'!$C$50=Carbon!$B121,'Crop 1'!$L$50*VLOOKUP('Crop 1'!$E$50,Carbon!$AH$4:$AI$10,2,FALSE),0)+IF('Crop 1'!$C$51=Carbon!$B121,'Crop 1'!$L$51*VLOOKUP('Crop 1'!$E$51,Carbon!$AH$4:$AI$10,2,FALSE),0)+IF('Crop 1'!$C$52=Carbon!$B121,'Crop 1'!$L$52*VLOOKUP('Crop 1'!$E$52,Carbon!$AH$4:$AI$10,2,FALSE),0)+IF('Crop 1'!$C$53=Carbon!$B121,'Crop 1'!$L$53*VLOOKUP('Crop 1'!$E$53,Carbon!$AH$4:$AI$10,2,FALSE),0)+IF('Crop 1'!$C$56=Carbon!$B121,'Crop 1'!$L$56*VLOOKUP('Crop 1'!$E$56,Carbon!$AH$4:$AI$10,2,FALSE),0)+IF('Crop 1'!$C$57=Carbon!$B121,'Crop 1'!$L$57*VLOOKUP('Crop 1'!$E$57,Carbon!$AH$4:$AI$10,2,FALSE),0)+IF('Crop 1'!$C$58=Carbon!$B121,'Crop 1'!$L$58*VLOOKUP('Crop 1'!$E$58,Carbon!$AH$4:$AI$10,2,FALSE),0)+IF('Crop 1'!$C$59=Carbon!$B121,'Crop 1'!$L$59*VLOOKUP('Crop 1'!$E$59,Carbon!$AH$4:$AI$10,2,FALSE),0)+IF('Crop 1'!$C$62=Carbon!$B121,'Crop 1'!$L$62*VLOOKUP('Crop 1'!$E$62,Carbon!$AH$4:$AI$10,2,FALSE),0)+IF('Crop 1'!$C$63=Carbon!$B121,'Crop 1'!$L$63*VLOOKUP('Crop 1'!$E$63,Carbon!$AH$4:$AI$10,2,FALSE),0)+IF('Crop 1'!$C$64=Carbon!$B121,'Crop 1'!$L$64*VLOOKUP('Crop 1'!$E$64,Carbon!$AH$4:$AI$10,2,FALSE),0)+IF('Crop 1'!$C$65=Carbon!$B121,'Crop 1'!$L$65*VLOOKUP('Crop 1'!$E$65,Carbon!$AH$4:$AI$10,2,FALSE),0))*$AL$20,2)","v":0},{"$f":"C121*Inputs!$D$13","v":0},{"$f":"ROUND((IF('Crop 2'!$C$14=Carbon!$B121,'Crop 2'!$L$14*VLOOKUP('Crop 2'!$E$14,Carbon!$AH$4:$AI$10,2,FALSE),0)+IF('Crop 2'!$C$15=Carbon!$B121,'Crop 2'!$L$15*VLOOKUP('Crop 2'!$E$15,Carbon!$AH$4:$AI$10,2,FALSE),0)+IF('Crop 2'!$C$16=Carbon!$B121,'Crop 2'!$L$16*VLOOKUP('Crop 2'!$E$16,Carbon!$AH$4:$AI$10,2,FALSE),0)+IF('Crop 2'!$C$19=Carbon!$B121,'Crop 2'!$L$19*VLOOKUP('Crop 2'!$E$19,Carbon!$AH$4:$AI$10,2,FALSE),0)+IF('Crop 2'!$C$20=Carbon!$B121,'Crop 2'!$L$20*VLOOKUP('Crop 2'!$E$20,Carbon!$AH$4:$AI$10,2,FALSE),0)+IF('Crop 2'!$C$21=Carbon!$B121,'Crop 2'!$L$21*VLOOKUP('Crop 2'!$E$21,Carbon!$AH$4:$AI$10,2,FALSE),0)+IF('Crop 2'!$C$49=Carbon!$B121,'Crop 2'!$L$49*VLOOKUP('Crop 2'!$E$49,Carbon!$AH$4:$AI$10,2,FALSE),0)+IF('Crop 2'!$C$50=Carbon!$B121,'Crop 2'!$L$50*VLOOKUP('Crop 2'!$E$50,Carbon!$AH$4:$AI$10,2,FALSE),0)+IF('Crop 2'!$C$51=Carbon!$B121,'Crop 2'!$L$51*VLOOKUP('Crop 2'!$E$51,Carbon!$AH$4:$AI$10,2,FALSE),0)+IF('Crop 2'!$C$52=Carbon!$B121,'Crop 2'!$L$52*VLOOKUP('Crop 2'!$E$52,Carbon!$AH$4:$AI$10,2,FALSE),0)+IF('Crop 2'!$C$53=Carbon!$B121,'Crop 2'!$L$53*VLOOKUP('Crop 2'!$E$53,Carbon!$AH$4:$AI$10,2,FALSE),0)+IF('Crop 2'!$C$56=Carbon!$B121,'Crop 2'!$L$56*VLOOKUP('Crop 2'!$E$56,Carbon!$AH$4:$AI$10,2,FALSE),0)+IF('Crop 2'!$C$57=Carbon!$B121,'Crop 2'!$L$57*VLOOKUP('Crop 2'!$E$57,Carbon!$AH$4:$AI$10,2,FALSE),0)+IF('Crop 2'!$C$58=Carbon!$B121,'Crop 2'!$L$58*VLOOKUP('Crop 2'!$E$58,Carbon!$AH$4:$AI$10,2,FALSE),0)+IF('Crop 2'!$C$59=Carbon!$B121,'Crop 2'!$L$59*VLOOKUP('Crop 2'!$E$59,Carbon!$AH$4:$AI$10,2,FALSE),0)+IF('Crop 2'!$C$62=Carbon!$B121,'Crop 2'!$L$62*VLOOKUP('Crop 2'!$E$62,Carbon!$AH$4:$AI$10,2,FALSE),0)+IF('Crop 2'!$C$63=Carbon!$B121,'Crop 2'!$L$63*VLOOKUP('Crop 2'!$E$63,Carbon!$AH$4:$AI$10,2,FALSE),0)+IF('Crop 2'!$C$64=Carbon!$B121,'Crop 2'!$L$64*VLOOKUP('Crop 2'!$E$64,Carbon!$AH$4:$AI$10,2,FALSE),0)+IF('Crop 2'!$C$65=Carbon!$B121,'Crop 2'!$L$65*VLOOKUP('Crop 2'!$E$65,Carbon!$AH$4:$AI$10,2,FALSE),0))*$AL$20,2)","v":0},{"$f":"E121*Inputs!$D$15","v":0},{"$f":"ROUND((IF('Crop 3'!$C$14=Carbon!$B121,'Crop 3'!$L$14*VLOOKUP('Crop 3'!$E$14,Carbon!$AH$4:$AI$10,2,FALSE),0)+IF('Crop 3'!$C$15=Carbon!$B121,'Crop 3'!$L$15*VLOOKUP('Crop 3'!$E$15,Carbon!$AH$4:$AI$10,2,FALSE),0)+IF('Crop 3'!$C$16=Carbon!$B121,'Crop 3'!$L$16*VLOOKUP('Crop 3'!$E$16,Carbon!$AH$4:$AI$10,2,FALSE),0)+IF('Crop 3'!$C$19=Carbon!$B121,'Crop 3'!$L$19*VLOOKUP('Crop 3'!$E$19,Carbon!$AH$4:$AI$10,2,FALSE),0)+IF('Crop 3'!$C$20=Carbon!$B121,'Crop 3'!$L$20*VLOOKUP('Crop 3'!$E$20,Carbon!$AH$4:$AI$10,2,FALSE),0)+IF('Crop 3'!$C$21=Carbon!$B121,'Crop 3'!$L$21*VLOOKUP('Crop 3'!$E$21,Carbon!$AH$4:$AI$10,2,FALSE),0)+IF('Crop 3'!$C$49=Carbon!$B121,'Crop 3'!$L$49*VLOOKUP('Crop 3'!$E$49,Carbon!$AH$4:$AI$10,2,FALSE),0)+IF('Crop 3'!$C$50=Carbon!$B121,'Crop 3'!$L$50*VLOOKUP('Crop 3'!$E$50,Carbon!$AH$4:$AI$10,2,FALSE),0)+IF('Crop 3'!$C$51=Carbon!$B121,'Crop 3'!$L$51*VLOOKUP('Crop 3'!$E$51,Carbon!$AH$4:$AI$10,2,FALSE),0)+IF('Crop 3'!$C$52=Carbon!$B121,'Crop 3'!$L$52*VLOOKUP('Crop 3'!$E$52,Carbon!$AH$4:$AI$10,2,FALSE),0)+IF('Crop 3'!$C$53=Carbon!$B121,'Crop 3'!$L$53*VLOOKUP('Crop 3'!$E$53,Carbon!$AH$4:$AI$10,2,FALSE),0)+IF('Crop 3'!$C$56=Carbon!$B121,'Crop 3'!$L$56*VLOOKUP('Crop 3'!$E$56,Carbon!$AH$4:$AI$10,2,FALSE),0)+IF('Crop 3'!$C$57=Carbon!$B121,'Crop 3'!$L$57*VLOOKUP('Crop 3'!$E$57,Carbon!$AH$4:$AI$10,2,FALSE),0)+IF('Crop 3'!$C$58=Carbon!$B121,'Crop 3'!$L$58*VLOOKUP('Crop 3'!$E$58,Carbon!$AH$4:$AI$10,2,FALSE),0)+IF('Crop 3'!$C$59=Carbon!$B121,'Crop 3'!$L$59*VLOOKUP('Crop 3'!$E$59,Carbon!$AH$4:$AI$10,2,FALSE),0)+IF('Crop 3'!$C$62=Carbon!$B121,'Crop 3'!$L$62*VLOOKUP('Crop 3'!$E$62,Carbon!$AH$4:$AI$10,2,FALSE),0)+IF('Crop 3'!$C$63=Carbon!$B121,'Crop 3'!$L$63*VLOOKUP('Crop 3'!$E$63,Carbon!$AH$4:$AI$10,2,FALSE),0)+IF('Crop 3'!$C$64=Carbon!$B121,'Crop 3'!$L$64*VLOOKUP('Crop 3'!$E$64,Carbon!$AH$4:$AI$10,2,FALSE),0)+IF('Crop 3'!$C$65=Carbon!$B121,'Crop 3'!$L$65*VLOOKUP('Crop 3'!$E$65,Carbon!$AH$4:$AI$10,2,FALSE),0))*$AL$20,2)","v":0},{"$f":"G121*Inputs!$D$17","v":0},{"$f":"ROUND(J121/Inputs!D$19,2)","v":0},0,null,null,{"$f":"ROUND((IF('Crop 1'!$C$14=Carbon!$B121,'Crop 1'!$V$14*VLOOKUP('Crop 1'!$E$14,Carbon!$AH$4:$AI$10,2,FALSE),0)+IF('Crop 1'!$C$15=Carbon!$B121,'Crop 1'!$V$15*VLOOKUP('Crop 1'!$E$15,Carbon!$AH$4:$AI$10,2,FALSE),0)+IF('Crop 1'!$C$16=Carbon!$B121,'Crop 1'!$V$16*VLOOKUP('Crop 1'!$E$16,Carbon!$AH$4:$AI$10,2,FALSE),0)+IF('Crop 1'!$C$19=Carbon!$B121,'Crop 1'!$V$19*VLOOKUP('Crop 1'!$E$19,Carbon!$AH$4:$AI$10,2,FALSE),0)+IF('Crop 1'!$C$20=Carbon!$B121,'Crop 1'!$V$20*VLOOKUP('Crop 1'!$E$20,Carbon!$AH$4:$AI$10,2,FALSE),0)+IF('Crop 1'!$C$21=Carbon!$B121,'Crop 1'!$V$21*VLOOKUP('Crop 1'!$E$21,Carbon!$AH$4:$AI$10,2,FALSE),0)+IF('Crop 1'!$C$49=Carbon!$B121,'Crop 1'!$V$49*VLOOKUP('Crop 1'!$E$49,Carbon!$AH$4:$AI$10,2,FALSE),0)+IF('Crop 1'!$C$50=Carbon!$B121,'Crop 1'!$V$50*VLOOKUP('Crop 1'!$E$50,Carbon!$AH$4:$AI$10,2,FALSE),0)+IF('Crop 1'!$C$51=Carbon!$B121,'Crop 1'!$V$51*VLOOKUP('Crop 1'!$E$51,Carbon!$AH$4:$AI$10,2,FALSE),0)+IF('Crop 1'!$C$52=Carbon!$B121,'Crop 1'!$V$52*VLOOKUP('Crop 1'!$E$52,Carbon!$AH$4:$AI$10,2,FALSE),0)+IF('Crop 1'!$C$53=Carbon!$B121,'Crop 1'!$V$53*VLOOKUP('Crop 1'!$E$53,Carbon!$AH$4:$AI$10,2,FALSE),0)+IF('Crop 1'!$C$56=Carbon!$B121,'Crop 1'!$V$56*VLOOKUP('Crop 1'!$E$56,Carbon!$AH$4:$AI$10,2,FALSE),0)+IF('Crop 1'!$C$57=Carbon!$B121,'Crop 1'!$V$57*VLOOKUP('Crop 1'!$E$57,Carbon!$AH$4:$AI$10,2,FALSE),0)+IF('Crop 1'!$C$58=Carbon!$B121,'Crop 1'!$V$58*VLOOKUP('Crop 1'!$E$58,Carbon!$AH$4:$AI$10,2,FALSE),0)+IF('Crop 1'!$C$59=Carbon!$B121,'Crop 1'!$V$59*VLOOKUP('Crop 1'!$E$59,Carbon!$AH$4:$AI$10,2,FALSE),0)+IF('Crop 1'!$C$62=Carbon!$B121,'Crop 1'!$V$62*VLOOKUP('Crop 1'!$E$62,Carbon!$AH$4:$AI$10,2,FALSE),0)+IF('Crop 1'!$C$63=Carbon!$B121,'Crop 1'!$V$63*VLOOKUP('Crop 1'!$E$63,Carbon!$AH$4:$AI$10,2,FALSE),0)+IF('Crop 1'!$C$64=Carbon!$B121,'Crop 1'!$V$64*VLOOKUP('Crop 1'!$E$64,Carbon!$AH$4:$AI$10,2,FALSE),0)+IF('Crop 1'!$C$65=Carbon!$B121,'Crop 1'!$V$65*VLOOKUP('Crop 1'!$E$65,Carbon!$AH$4:$AI$10,2,FALSE),0))*$AL$20,2)","v":0},{"$f":"M121*Inputs!$D$13","v":0},{"$f":"ROUND((IF('Crop 2'!$C$14=Carbon!$B121,'Crop 2'!$V$14*VLOOKUP('Crop 2'!$E$14,Carbon!$AH$4:$AI$10,2,FALSE),0)+IF('Crop 2'!$C$15=Carbon!$B121,'Crop 2'!$V$15*VLOOKUP('Crop 2'!$E$15,Carbon!$AH$4:$AI$10,2,FALSE),0)+IF('Crop 2'!$C$16=Carbon!$B121,'Crop 2'!$V$16*VLOOKUP('Crop 2'!$E$16,Carbon!$AH$4:$AI$10,2,FALSE),0)+IF('Crop 2'!$C$19=Carbon!$B121,'Crop 2'!$V$19*VLOOKUP('Crop 2'!$E$19,Carbon!$AH$4:$AI$10,2,FALSE),0)+IF('Crop 2'!$C$20=Carbon!$B121,'Crop 2'!$V$20*VLOOKUP('Crop 2'!$E$20,Carbon!$AH$4:$AI$10,2,FALSE),0)+IF('Crop 2'!$C$21=Carbon!$B121,'Crop 2'!$V$21*VLOOKUP('Crop 2'!$E$21,Carbon!$AH$4:$AI$10,2,FALSE),0)+IF('Crop 2'!$C$49=Carbon!$B121,'Crop 2'!$V$49*VLOOKUP('Crop 2'!$E$49,Carbon!$AH$4:$AI$10,2,FALSE),0)+IF('Crop 2'!$C$50=Carbon!$B121,'Crop 2'!$V$50*VLOOKUP('Crop 2'!$E$50,Carbon!$AH$4:$AI$10,2,FALSE),0)+IF('Crop 2'!$C$51=Carbon!$B121,'Crop 2'!$V$51*VLOOKUP('Crop 2'!$E$51,Carbon!$AH$4:$AI$10,2,FALSE),0)+IF('Crop 2'!$C$52=Carbon!$B121,'Crop 2'!$V$52*VLOOKUP('Crop 2'!$E$52,Carbon!$AH$4:$AI$10,2,FALSE),0)+IF('Crop 2'!$C$53=Carbon!$B121,'Crop 2'!$V$53*VLOOKUP('Crop 2'!$E$53,Carbon!$AH$4:$AI$10,2,FALSE),0)+IF('Crop 2'!$C$56=Carbon!$B121,'Crop 2'!$V$56*VLOOKUP('Crop 2'!$E$56,Carbon!$AH$4:$AI$10,2,FALSE),0)+IF('Crop 2'!$C$57=Carbon!$B121,'Crop 2'!$V$57*VLOOKUP('Crop 2'!$E$57,Carbon!$AH$4:$AI$10,2,FALSE),0)+IF('Crop 2'!$C$58=Carbon!$B121,'Crop 2'!$V$58*VLOOKUP('Crop 2'!$E$58,Carbon!$AH$4:$AI$10,2,FALSE),0)+IF('Crop 2'!$C$59=Carbon!$B121,'Crop 2'!$V$59*VLOOKUP('Crop 2'!$E$59,Carbon!$AH$4:$AI$10,2,FALSE),0)+IF('Crop 2'!$C$62=Carbon!$B121,'Crop 2'!$V$62*VLOOKUP('Crop 2'!$E$62,Carbon!$AH$4:$AI$10,2,FALSE),0)+IF('Crop 2'!$C$63=Carbon!$B121,'Crop 2'!$V$63*VLOOKUP('Crop 2'!$E$63,Carbon!$AH$4:$AI$10,2,FALSE),0)+IF('Crop 2'!$C$64=Carbon!$B121,'Crop 2'!$V$64*VLOOKUP('Crop 2'!$E$64,Carbon!$AH$4:$AI$10,2,FALSE),0)+IF('Crop 2'!$C$65=Carbon!$B121,'Crop 2'!$V$65*VLOOKUP('Crop 2'!$E$65,Carbon!$AH$4:$AI$10,2,FALSE),0))*$AL$20,2)","v":0},{"$f":"O121*Inputs!$D$15","v":0},{"$f":"ROUND((IF('Crop 3'!$C$14=Carbon!$B121,'Crop 3'!$V$14*VLOOKUP('Crop 3'!$E$14,Carbon!$AH$4:$AI$10,2,FALSE),0)+IF('Crop 3'!$C$15=Carbon!$B121,'Crop 3'!$V$15*VLOOKUP('Crop 3'!$E$15,Carbon!$AH$4:$AI$10,2,FALSE),0)+IF('Crop 3'!$C$16=Carbon!$B121,'Crop 3'!$V$16*VLOOKUP('Crop 3'!$E$16,Carbon!$AH$4:$AI$10,2,FALSE),0)+IF('Crop 3'!$C$19=Carbon!$B121,'Crop 3'!$V$19*VLOOKUP('Crop 3'!$E$19,Carbon!$AH$4:$AI$10,2,FALSE),0)+IF('Crop 3'!$C$20=Carbon!$B121,'Crop 3'!$V$20*VLOOKUP('Crop 3'!$E$20,Carbon!$AH$4:$AI$10,2,FALSE),0)+IF('Crop 3'!$C$21=Carbon!$B121,'Crop 3'!$V$21*VLOOKUP('Crop 3'!$E$21,Carbon!$AH$4:$AI$10,2,FALSE),0)+IF('Crop 3'!$C$49=Carbon!$B121,'Crop 3'!$V$49*VLOOKUP('Crop 3'!$E$49,Carbon!$AH$4:$AI$10,2,FALSE),0)+IF('Crop 3'!$C$50=Carbon!$B121,'Crop 3'!$V$50*VLOOKUP('Crop 3'!$E$50,Carbon!$AH$4:$AI$10,2,FALSE),0)+IF('Crop 3'!$C$51=Carbon!$B121,'Crop 3'!$V$51*VLOOKUP('Crop 3'!$E$51,Carbon!$AH$4:$AI$10,2,FALSE),0)+IF('Crop 3'!$C$52=Carbon!$B121,'Crop 3'!$V$52*VLOOKUP('Crop 3'!$E$52,Carbon!$AH$4:$AI$10,2,FALSE),0)+IF('Crop 3'!$C$53=Carbon!$B121,'Crop 3'!$V$53*VLOOKUP('Crop 3'!$E$53,Carbon!$AH$4:$AI$10,2,FALSE),0)+IF('Crop 3'!$C$56=Carbon!$B121,'Crop 3'!$V$56*VLOOKUP('Crop 3'!$E$56,Carbon!$AH$4:$AI$10,2,FALSE),0)+IF('Crop 3'!$C$57=Carbon!$B121,'Crop 3'!$V$57*VLOOKUP('Crop 3'!$E$57,Carbon!$AH$4:$AI$10,2,FALSE),0)+IF('Crop 3'!$C$58=Carbon!$B121,'Crop 3'!$V$58*VLOOKUP('Crop 3'!$E$58,Carbon!$AH$4:$AI$10,2,FALSE),0)+IF('Crop 3'!$C$59=Carbon!$B121,'Crop 3'!$V$59*VLOOKUP('Crop 3'!$E$59,Carbon!$AH$4:$AI$10,2,FALSE),0)+IF('Crop 3'!$C$62=Carbon!$B121,'Crop 3'!$V$62*VLOOKUP('Crop 3'!$E$62,Carbon!$AH$4:$AI$10,2,FALSE),0)+IF('Crop 3'!$C$63=Carbon!$B121,'Crop 3'!$V$63*VLOOKUP('Crop 3'!$E$63,Carbon!$AH$4:$AI$10,2,FALSE),0)+IF('Crop 3'!$C$64=Carbon!$B121,'Crop 3'!$V$64*VLOOKUP('Crop 3'!$E$64,Carbon!$AH$4:$AI$10,2,FALSE),0)+IF('Crop 3'!$C$65=Carbon!$B121,'Crop 3'!$V$65*VLOOKUP('Crop 3'!$E$65,Carbon!$AH$4:$AI$10,2,FALSE),0))*$AL$20,2)","v":0},{"$f":"Q121*Inputs!$D$17","v":0},{"$f":"ROUND(T121/Inputs!D$19,2)","v":0},0,null,null,0,{"$f":"W121*Inputs!$D$13","v":0},0,{"$f":"Y121*Inputs!$D$13","v":0},0,{"$f":"AA121*Inputs!$D$13","v":0},{"$f":"ROUND(AD121/Inputs!D$19,2)","v":0},0]
[null,{"$f":"Defaults!AH88","v":"Permit"},{"$f":"ROUND((IF('Crop 1'!$C$14=Carbon!$B122,'Crop 1'!$L$14*VLOOKUP('Crop 1'!$E$14,Carbon!$AH$4:$AI$10,2,FALSE),0)+IF('Crop 1'!$C$15=Carbon!$B122,'Crop 1'!$L$15*VLOOKUP('Crop 1'!$E$15,Carbon!$AH$4:$AI$10,2,FALSE),0)+IF('Crop 1'!$C$16=Carbon!$B122,'Crop 1'!$L$16*VLOOKUP('Crop 1'!$E$16,Carbon!$AH$4:$AI$10,2,FALSE),0)+IF('Crop 1'!$C$19=Carbon!$B122,'Crop 1'!$L$19*VLOOKUP('Crop 1'!$E$19,Carbon!$AH$4:$AI$10,2,FALSE),0)+IF('Crop 1'!$C$20=Carbon!$B122,'Crop 1'!$L$20*VLOOKUP('Crop 1'!$E$20,Carbon!$AH$4:$AI$10,2,FALSE),0)+IF('Crop 1'!$C$21=Carbon!$B122,'Crop 1'!$L$21*VLOOKUP('Crop 1'!$E$21,Carbon!$AH$4:$AI$10,2,FALSE),0)+IF('Crop 1'!$C$49=Carbon!$B122,'Crop 1'!$L$49*VLOOKUP('Crop 1'!$E$49,Carbon!$AH$4:$AI$10,2,FALSE),0)+IF('Crop 1'!$C$50=Carbon!$B122,'Crop 1'!$L$50*VLOOKUP('Crop 1'!$E$50,Carbon!$AH$4:$AI$10,2,FALSE),0)+IF('Crop 1'!$C$51=Carbon!$B122,'Crop 1'!$L$51*VLOOKUP('Crop 1'!$E$51,Carbon!$AH$4:$AI$10,2,FALSE),0)+IF('Crop 1'!$C$52=Carbon!$B122,'Crop 1'!$L$52*VLOOKUP('Crop 1'!$E$52,Carbon!$AH$4:$AI$10,2,FALSE),0)+IF('Crop 1'!$C$53=Carbon!$B122,'Crop 1'!$L$53*VLOOKUP('Crop 1'!$E$53,Carbon!$AH$4:$AI$10,2,FALSE),0)+IF('Crop 1'!$C$56=Carbon!$B122,'Crop 1'!$L$56*VLOOKUP('Crop 1'!$E$56,Carbon!$AH$4:$AI$10,2,FALSE),0)+IF('Crop 1'!$C$57=Carbon!$B122,'Crop 1'!$L$57*VLOOKUP('Crop 1'!$E$57,Carbon!$AH$4:$AI$10,2,FALSE),0)+IF('Crop 1'!$C$58=Carbon!$B122,'Crop 1'!$L$58*VLOOKUP('Crop 1'!$E$58,Carbon!$AH$4:$AI$10,2,FALSE),0)+IF('Crop 1'!$C$59=Carbon!$B122,'Crop 1'!$L$59*VLOOKUP('Crop 1'!$E$59,Carbon!$AH$4:$AI$10,2,FALSE),0)+IF('Crop 1'!$C$62=Carbon!$B122,'Crop 1'!$L$62*VLOOKUP('Crop 1'!$E$62,Carbon!$AH$4:$AI$10,2,FALSE),0)+IF('Crop 1'!$C$63=Carbon!$B122,'Crop 1'!$L$63*VLOOKUP('Crop 1'!$E$63,Carbon!$AH$4:$AI$10,2,FALSE),0)+IF('Crop 1'!$C$64=Carbon!$B122,'Crop 1'!$L$64*VLOOKUP('Crop 1'!$E$64,Carbon!$AH$4:$AI$10,2,FALSE),0)+IF('Crop 1'!$C$65=Carbon!$B122,'Crop 1'!$L$65*VLOOKUP('Crop 1'!$E$65,Carbon!$AH$4:$AI$10,2,FALSE),0))*$AL$20,2)","v":0},{"$f":"C122*Inputs!$D$13","v":0},{"$f":"ROUND((IF('Crop 2'!$C$14=Carbon!$B122,'Crop 2'!$L$14*VLOOKUP('Crop 2'!$E$14,Carbon!$AH$4:$AI$10,2,FALSE),0)+IF('Crop 2'!$C$15=Carbon!$B122,'Crop 2'!$L$15*VLOOKUP('Crop 2'!$E$15,Carbon!$AH$4:$AI$10,2,FALSE),0)+IF('Crop 2'!$C$16=Carbon!$B122,'Crop 2'!$L$16*VLOOKUP('Crop 2'!$E$16,Carbon!$AH$4:$AI$10,2,FALSE),0)+IF('Crop 2'!$C$19=Carbon!$B122,'Crop 2'!$L$19*VLOOKUP('Crop 2'!$E$19,Carbon!$AH$4:$AI$10,2,FALSE),0)+IF('Crop 2'!$C$20=Carbon!$B122,'Crop 2'!$L$20*VLOOKUP('Crop 2'!$E$20,Carbon!$AH$4:$AI$10,2,FALSE),0)+IF('Crop 2'!$C$21=Carbon!$B122,'Crop 2'!$L$21*VLOOKUP('Crop 2'!$E$21,Carbon!$AH$4:$AI$10,2,FALSE),0)+IF('Crop 2'!$C$49=Carbon!$B122,'Crop 2'!$L$49*VLOOKUP('Crop 2'!$E$49,Carbon!$AH$4:$AI$10,2,FALSE),0)+IF('Crop 2'!$C$50=Carbon!$B122,'Crop 2'!$L$50*VLOOKUP('Crop 2'!$E$50,Carbon!$AH$4:$AI$10,2,FALSE),0)+IF('Crop 2'!$C$51=Carbon!$B122,'Crop 2'!$L$51*VLOOKUP('Crop 2'!$E$51,Carbon!$AH$4:$AI$10,2,FALSE),0)+IF('Crop 2'!$C$52=Carbon!$B122,'Crop 2'!$L$52*VLOOKUP('Crop 2'!$E$52,Carbon!$AH$4:$AI$10,2,FALSE),0)+IF('Crop 2'!$C$53=Carbon!$B122,'Crop 2'!$L$53*VLOOKUP('Crop 2'!$E$53,Carbon!$AH$4:$AI$10,2,FALSE),0)+IF('Crop 2'!$C$56=Carbon!$B122,'Crop 2'!$L$56*VLOOKUP('Crop 2'!$E$56,Carbon!$AH$4:$AI$10,2,FALSE),0)+IF('Crop 2'!$C$57=Carbon!$B122,'Crop 2'!$L$57*VLOOKUP('Crop 2'!$E$57,Carbon!$AH$4:$AI$10,2,FALSE),0)+IF('Crop 2'!$C$58=Carbon!$B122,'Crop 2'!$L$58*VLOOKUP('Crop 2'!$E$58,Carbon!$AH$4:$AI$10,2,FALSE),0)+IF('Crop 2'!$C$59=Carbon!$B122,'Crop 2'!$L$59*VLOOKUP('Crop 2'!$E$59,Carbon!$AH$4:$AI$10,2,FALSE),0)+IF('Crop 2'!$C$62=Carbon!$B122,'Crop 2'!$L$62*VLOOKUP('Crop 2'!$E$62,Carbon!$AH$4:$AI$10,2,FALSE),0)+IF('Crop 2'!$C$63=Carbon!$B122,'Crop 2'!$L$63*VLOOKUP('Crop 2'!$E$63,Carbon!$AH$4:$AI$10,2,FALSE),0)+IF('Crop 2'!$C$64=Carbon!$B122,'Crop 2'!$L$64*VLOOKUP('Crop 2'!$E$64,Carbon!$AH$4:$AI$10,2,FALSE),0)+IF('Crop 2'!$C$65=Carbon!$B122,'Crop 2'!$L$65*VLOOKUP('Crop 2'!$E$65,Carbon!$AH$4:$AI$10,2,FALSE),0))*$AL$20,2)","v":0},{"$f":"E122*Inputs!$D$15","v":0},{"$f":"ROUND((IF('Crop 3'!$C$14=Carbon!$B122,'Crop 3'!$L$14*VLOOKUP('Crop 3'!$E$14,Carbon!$AH$4:$AI$10,2,FALSE),0)+IF('Crop 3'!$C$15=Carbon!$B122,'Crop 3'!$L$15*VLOOKUP('Crop 3'!$E$15,Carbon!$AH$4:$AI$10,2,FALSE),0)+IF('Crop 3'!$C$16=Carbon!$B122,'Crop 3'!$L$16*VLOOKUP('Crop 3'!$E$16,Carbon!$AH$4:$AI$10,2,FALSE),0)+IF('Crop 3'!$C$19=Carbon!$B122,'Crop 3'!$L$19*VLOOKUP('Crop 3'!$E$19,Carbon!$AH$4:$AI$10,2,FALSE),0)+IF('Crop 3'!$C$20=Carbon!$B122,'Crop 3'!$L$20*VLOOKUP('Crop 3'!$E$20,Carbon!$AH$4:$AI$10,2,FALSE),0)+IF('Crop 3'!$C$21=Carbon!$B122,'Crop 3'!$L$21*VLOOKUP('Crop 3'!$E$21,Carbon!$AH$4:$AI$10,2,FALSE),0)+IF('Crop 3'!$C$49=Carbon!$B122,'Crop 3'!$L$49*VLOOKUP('Crop 3'!$E$49,Carbon!$AH$4:$AI$10,2,FALSE),0)+IF('Crop 3'!$C$50=Carbon!$B122,'Crop 3'!$L$50*VLOOKUP('Crop 3'!$E$50,Carbon!$AH$4:$AI$10,2,FALSE),0)+IF('Crop 3'!$C$51=Carbon!$B122,'Crop 3'!$L$51*VLOOKUP('Crop 3'!$E$51,Carbon!$AH$4:$AI$10,2,FALSE),0)+IF('Crop 3'!$C$52=Carbon!$B122,'Crop 3'!$L$52*VLOOKUP('Crop 3'!$E$52,Carbon!$AH$4:$AI$10,2,FALSE),0)+IF('Crop 3'!$C$53=Carbon!$B122,'Crop 3'!$L$53*VLOOKUP('Crop 3'!$E$53,Carbon!$AH$4:$AI$10,2,FALSE),0)+IF('Crop 3'!$C$56=Carbon!$B122,'Crop 3'!$L$56*VLOOKUP('Crop 3'!$E$56,Carbon!$AH$4:$AI$10,2,FALSE),0)+IF('Crop 3'!$C$57=Carbon!$B122,'Crop 3'!$L$57*VLOOKUP('Crop 3'!$E$57,Carbon!$AH$4:$AI$10,2,FALSE),0)+IF('Crop 3'!$C$58=Carbon!$B122,'Crop 3'!$L$58*VLOOKUP('Crop 3'!$E$58,Carbon!$AH$4:$AI$10,2,FALSE),0)+IF('Crop 3'!$C$59=Carbon!$B122,'Crop 3'!$L$59*VLOOKUP('Crop 3'!$E$59,Carbon!$AH$4:$AI$10,2,FALSE),0)+IF('Crop 3'!$C$62=Carbon!$B122,'Crop 3'!$L$62*VLOOKUP('Crop 3'!$E$62,Carbon!$AH$4:$AI$10,2,FALSE),0)+IF('Crop 3'!$C$63=Carbon!$B122,'Crop 3'!$L$63*VLOOKUP('Crop 3'!$E$63,Carbon!$AH$4:$AI$10,2,FALSE),0)+IF('Crop 3'!$C$64=Carbon!$B122,'Crop 3'!$L$64*VLOOKUP('Crop 3'!$E$64,Carbon!$AH$4:$AI$10,2,FALSE),0)+IF('Crop 3'!$C$65=Carbon!$B122,'Crop 3'!$L$65*VLOOKUP('Crop 3'!$E$65,Carbon!$AH$4:$AI$10,2,FALSE),0))*$AL$20,2)","v":0},{"$f":"G122*Inputs!$D$17","v":0},{"$f":"ROUND(J122/Inputs!D$19,2)","v":0},0,null,null,{"$f":"ROUND((IF('Crop 1'!$C$14=Carbon!$B122,'Crop 1'!$V$14*VLOOKUP('Crop 1'!$E$14,Carbon!$AH$4:$AI$10,2,FALSE),0)+IF('Crop 1'!$C$15=Carbon!$B122,'Crop 1'!$V$15*VLOOKUP('Crop 1'!$E$15,Carbon!$AH$4:$AI$10,2,FALSE),0)+IF('Crop 1'!$C$16=Carbon!$B122,'Crop 1'!$V$16*VLOOKUP('Crop 1'!$E$16,Carbon!$AH$4:$AI$10,2,FALSE),0)+IF('Crop 1'!$C$19=Carbon!$B122,'Crop 1'!$V$19*VLOOKUP('Crop 1'!$E$19,Carbon!$AH$4:$AI$10,2,FALSE),0)+IF('Crop 1'!$C$20=Carbon!$B122,'Crop 1'!$V$20*VLOOKUP('Crop 1'!$E$20,Carbon!$AH$4:$AI$10,2,FALSE),0)+IF('Crop 1'!$C$21=Carbon!$B122,'Crop 1'!$V$21*VLOOKUP('Crop 1'!$E$21,Carbon!$AH$4:$AI$10,2,FALSE),0)+IF('Crop 1'!$C$49=Carbon!$B122,'Crop 1'!$V$49*VLOOKUP('Crop 1'!$E$49,Carbon!$AH$4:$AI$10,2,FALSE),0)+IF('Crop 1'!$C$50=Carbon!$B122,'Crop 1'!$V$50*VLOOKUP('Crop 1'!$E$50,Carbon!$AH$4:$AI$10,2,FALSE),0)+IF('Crop 1'!$C$51=Carbon!$B122,'Crop 1'!$V$51*VLOOKUP('Crop 1'!$E$51,Carbon!$AH$4:$AI$10,2,FALSE),0)+IF('Crop 1'!$C$52=Carbon!$B122,'Crop 1'!$V$52*VLOOKUP('Crop 1'!$E$52,Carbon!$AH$4:$AI$10,2,FALSE),0)+IF('Crop 1'!$C$53=Carbon!$B122,'Crop 1'!$V$53*VLOOKUP('Crop 1'!$E$53,Carbon!$AH$4:$AI$10,2,FALSE),0)+IF('Crop 1'!$C$56=Carbon!$B122,'Crop 1'!$V$56*VLOOKUP('Crop 1'!$E$56,Carbon!$AH$4:$AI$10,2,FALSE),0)+IF('Crop 1'!$C$57=Carbon!$B122,'Crop 1'!$V$57*VLOOKUP('Crop 1'!$E$57,Carbon!$AH$4:$AI$10,2,FALSE),0)+IF('Crop 1'!$C$58=Carbon!$B122,'Crop 1'!$V$58*VLOOKUP('Crop 1'!$E$58,Carbon!$AH$4:$AI$10,2,FALSE),0)+IF('Crop 1'!$C$59=Carbon!$B122,'Crop 1'!$V$59*VLOOKUP('Crop 1'!$E$59,Carbon!$AH$4:$AI$10,2,FALSE),0)+IF('Crop 1'!$C$62=Carbon!$B122,'Crop 1'!$V$62*VLOOKUP('Crop 1'!$E$62,Carbon!$AH$4:$AI$10,2,FALSE),0)+IF('Crop 1'!$C$63=Carbon!$B122,'Crop 1'!$V$63*VLOOKUP('Crop 1'!$E$63,Carbon!$AH$4:$AI$10,2,FALSE),0)+IF('Crop 1'!$C$64=Carbon!$B122,'Crop 1'!$V$64*VLOOKUP('Crop 1'!$E$64,Carbon!$AH$4:$AI$10,2,FALSE),0)+IF('Crop 1'!$C$65=Carbon!$B122,'Crop 1'!$V$65*VLOOKUP('Crop 1'!$E$65,Carbon!$AH$4:$AI$10,2,FALSE),0))*$AL$20,2)","v":0},{"$f":"M122*Inputs!$D$13","v":0},{"$f":"ROUND((IF('Crop 2'!$C$14=Carbon!$B122,'Crop 2'!$V$14*VLOOKUP('Crop 2'!$E$14,Carbon!$AH$4:$AI$10,2,FALSE),0)+IF('Crop 2'!$C$15=Carbon!$B122,'Crop 2'!$V$15*VLOOKUP('Crop 2'!$E$15,Carbon!$AH$4:$AI$10,2,FALSE),0)+IF('Crop 2'!$C$16=Carbon!$B122,'Crop 2'!$V$16*VLOOKUP('Crop 2'!$E$16,Carbon!$AH$4:$AI$10,2,FALSE),0)+IF('Crop 2'!$C$19=Carbon!$B122,'Crop 2'!$V$19*VLOOKUP('Crop 2'!$E$19,Carbon!$AH$4:$AI$10,2,FALSE),0)+IF('Crop 2'!$C$20=Carbon!$B122,'Crop 2'!$V$20*VLOOKUP('Crop 2'!$E$20,Carbon!$AH$4:$AI$10,2,FALSE),0)+IF('Crop 2'!$C$21=Carbon!$B122,'Crop 2'!$V$21*VLOOKUP('Crop 2'!$E$21,Carbon!$AH$4:$AI$10,2,FALSE),0)+IF('Crop 2'!$C$49=Carbon!$B122,'Crop 2'!$V$49*VLOOKUP('Crop 2'!$E$49,Carbon!$AH$4:$AI$10,2,FALSE),0)+IF('Crop 2'!$C$50=Carbon!$B122,'Crop 2'!$V$50*VLOOKUP('Crop 2'!$E$50,Carbon!$AH$4:$AI$10,2,FALSE),0)+IF('Crop 2'!$C$51=Carbon!$B122,'Crop 2'!$V$51*VLOOKUP('Crop 2'!$E$51,Carbon!$AH$4:$AI$10,2,FALSE),0)+IF('Crop 2'!$C$52=Carbon!$B122,'Crop 2'!$V$52*VLOOKUP('Crop 2'!$E$52,Carbon!$AH$4:$AI$10,2,FALSE),0)+IF('Crop 2'!$C$53=Carbon!$B122,'Crop 2'!$V$53*VLOOKUP('Crop 2'!$E$53,Carbon!$AH$4:$AI$10,2,FALSE),0)+IF('Crop 2'!$C$56=Carbon!$B122,'Crop 2'!$V$56*VLOOKUP('Crop 2'!$E$56,Carbon!$AH$4:$AI$10,2,FALSE),0)+IF('Crop 2'!$C$57=Carbon!$B122,'Crop 2'!$V$57*VLOOKUP('Crop 2'!$E$57,Carbon!$AH$4:$AI$10,2,FALSE),0)+IF('Crop 2'!$C$58=Carbon!$B122,'Crop 2'!$V$58*VLOOKUP('Crop 2'!$E$58,Carbon!$AH$4:$AI$10,2,FALSE),0)+IF('Crop 2'!$C$59=Carbon!$B122,'Crop 2'!$V$59*VLOOKUP('Crop 2'!$E$59,Carbon!$AH$4:$AI$10,2,FALSE),0)+IF('Crop 2'!$C$62=Carbon!$B122,'Crop 2'!$V$62*VLOOKUP('Crop 2'!$E$62,Carbon!$AH$4:$AI$10,2,FALSE),0)+IF('Crop 2'!$C$63=Carbon!$B122,'Crop 2'!$V$63*VLOOKUP('Crop 2'!$E$63,Carbon!$AH$4:$AI$10,2,FALSE),0)+IF('Crop 2'!$C$64=Carbon!$B122,'Crop 2'!$V$64*VLOOKUP('Crop 2'!$E$64,Carbon!$AH$4:$AI$10,2,FALSE),0)+IF('Crop 2'!$C$65=Carbon!$B122,'Crop 2'!$V$65*VLOOKUP('Crop 2'!$E$65,Carbon!$AH$4:$AI$10,2,FALSE),0))*$AL$20,2)","v":0},{"$f":"O122*Inputs!$D$15","v":0},{"$f":"ROUND((IF('Crop 3'!$C$14=Carbon!$B122,'Crop 3'!$V$14*VLOOKUP('Crop 3'!$E$14,Carbon!$AH$4:$AI$10,2,FALSE),0)+IF('Crop 3'!$C$15=Carbon!$B122,'Crop 3'!$V$15*VLOOKUP('Crop 3'!$E$15,Carbon!$AH$4:$AI$10,2,FALSE),0)+IF('Crop 3'!$C$16=Carbon!$B122,'Crop 3'!$V$16*VLOOKUP('Crop 3'!$E$16,Carbon!$AH$4:$AI$10,2,FALSE),0)+IF('Crop 3'!$C$19=Carbon!$B122,'Crop 3'!$V$19*VLOOKUP('Crop 3'!$E$19,Carbon!$AH$4:$AI$10,2,FALSE),0)+IF('Crop 3'!$C$20=Carbon!$B122,'Crop 3'!$V$20*VLOOKUP('Crop 3'!$E$20,Carbon!$AH$4:$AI$10,2,FALSE),0)+IF('Crop 3'!$C$21=Carbon!$B122,'Crop 3'!$V$21*VLOOKUP('Crop 3'!$E$21,Carbon!$AH$4:$AI$10,2,FALSE),0)+IF('Crop 3'!$C$49=Carbon!$B122,'Crop 3'!$V$49*VLOOKUP('Crop 3'!$E$49,Carbon!$AH$4:$AI$10,2,FALSE),0)+IF('Crop 3'!$C$50=Carbon!$B122,'Crop 3'!$V$50*VLOOKUP('Crop 3'!$E$50,Carbon!$AH$4:$AI$10,2,FALSE),0)+IF('Crop 3'!$C$51=Carbon!$B122,'Crop 3'!$V$51*VLOOKUP('Crop 3'!$E$51,Carbon!$AH$4:$AI$10,2,FALSE),0)+IF('Crop 3'!$C$52=Carbon!$B122,'Crop 3'!$V$52*VLOOKUP('Crop 3'!$E$52,Carbon!$AH$4:$AI$10,2,FALSE),0)+IF('Crop 3'!$C$53=Carbon!$B122,'Crop 3'!$V$53*VLOOKUP('Crop 3'!$E$53,Carbon!$AH$4:$AI$10,2,FALSE),0)+IF('Crop 3'!$C$56=Carbon!$B122,'Crop 3'!$V$56*VLOOKUP('Crop 3'!$E$56,Carbon!$AH$4:$AI$10,2,FALSE),0)+IF('Crop 3'!$C$57=Carbon!$B122,'Crop 3'!$V$57*VLOOKUP('Crop 3'!$E$57,Carbon!$AH$4:$AI$10,2,FALSE),0)+IF('Crop 3'!$C$58=Carbon!$B122,'Crop 3'!$V$58*VLOOKUP('Crop 3'!$E$58,Carbon!$AH$4:$AI$10,2,FALSE),0)+IF('Crop 3'!$C$59=Carbon!$B122,'Crop 3'!$V$59*VLOOKUP('Crop 3'!$E$59,Carbon!$AH$4:$AI$10,2,FALSE),0)+IF('Crop 3'!$C$62=Carbon!$B122,'Crop 3'!$V$62*VLOOKUP('Crop 3'!$E$62,Carbon!$AH$4:$AI$10,2,FALSE),0)+IF('Crop 3'!$C$63=Carbon!$B122,'Crop 3'!$V$63*VLOOKUP('Crop 3'!$E$63,Carbon!$AH$4:$AI$10,2,FALSE),0)+IF('Crop 3'!$C$64=Carbon!$B122,'Crop 3'!$V$64*VLOOKUP('Crop 3'!$E$64,Carbon!$AH$4:$AI$10,2,FALSE),0)+IF('Crop 3'!$C$65=Carbon!$B122,'Crop 3'!$V$65*VLOOKUP('Crop 3'!$E$65,Carbon!$AH$4:$AI$10,2,FALSE),0))*$AL$20,2)","v":0},{"$f":"Q122*Inputs!$D$17","v":0},{"$f":"ROUND(T122/Inputs!D$19,2)","v":0},0,null,null,0,{"$f":"W122*Inputs!$D$13","v":0},0,{"$f":"Y122*Inputs!$D$13","v":0},0,{"$f":"AA122*Inputs!$D$13","v":0},{"$f":"ROUND(AD122/Inputs!D$19,2)","v":0},0]
[null,{"$f":"Defaults!AH89","v":"Permit Plus"},{"$f":"ROUND((IF('Crop 1'!$C$14=Carbon!$B123,'Crop 1'!$L$14*VLOOKUP('Crop 1'!$E$14,Carbon!$AH$4:$AI$10,2,FALSE),0)+IF('Crop 1'!$C$15=Carbon!$B123,'Crop 1'!$L$15*VLOOKUP('Crop 1'!$E$15,Carbon!$AH$4:$AI$10,2,FALSE),0)+IF('Crop 1'!$C$16=Carbon!$B123,'Crop 1'!$L$16*VLOOKUP('Crop 1'!$E$16,Carbon!$AH$4:$AI$10,2,FALSE),0)+IF('Crop 1'!$C$19=Carbon!$B123,'Crop 1'!$L$19*VLOOKUP('Crop 1'!$E$19,Carbon!$AH$4:$AI$10,2,FALSE),0)+IF('Crop 1'!$C$20=Carbon!$B123,'Crop 1'!$L$20*VLOOKUP('Crop 1'!$E$20,Carbon!$AH$4:$AI$10,2,FALSE),0)+IF('Crop 1'!$C$21=Carbon!$B123,'Crop 1'!$L$21*VLOOKUP('Crop 1'!$E$21,Carbon!$AH$4:$AI$10,2,FALSE),0)+IF('Crop 1'!$C$49=Carbon!$B123,'Crop 1'!$L$49*VLOOKUP('Crop 1'!$E$49,Carbon!$AH$4:$AI$10,2,FALSE),0)+IF('Crop 1'!$C$50=Carbon!$B123,'Crop 1'!$L$50*VLOOKUP('Crop 1'!$E$50,Carbon!$AH$4:$AI$10,2,FALSE),0)+IF('Crop 1'!$C$51=Carbon!$B123,'Crop 1'!$L$51*VLOOKUP('Crop 1'!$E$51,Carbon!$AH$4:$AI$10,2,FALSE),0)+IF('Crop 1'!$C$52=Carbon!$B123,'Crop 1'!$L$52*VLOOKUP('Crop 1'!$E$52,Carbon!$AH$4:$AI$10,2,FALSE),0)+IF('Crop 1'!$C$53=Carbon!$B123,'Crop 1'!$L$53*VLOOKUP('Crop 1'!$E$53,Carbon!$AH$4:$AI$10,2,FALSE),0)+IF('Crop 1'!$C$56=Carbon!$B123,'Crop 1'!$L$56*VLOOKUP('Crop 1'!$E$56,Carbon!$AH$4:$AI$10,2,FALSE),0)+IF('Crop 1'!$C$57=Carbon!$B123,'Crop 1'!$L$57*VLOOKUP('Crop 1'!$E$57,Carbon!$AH$4:$AI$10,2,FALSE),0)+IF('Crop 1'!$C$58=Carbon!$B123,'Crop 1'!$L$58*VLOOKUP('Crop 1'!$E$58,Carbon!$AH$4:$AI$10,2,FALSE),0)+IF('Crop 1'!$C$59=Carbon!$B123,'Crop 1'!$L$59*VLOOKUP('Crop 1'!$E$59,Carbon!$AH$4:$AI$10,2,FALSE),0)+IF('Crop 1'!$C$62=Carbon!$B123,'Crop 1'!$L$62*VLOOKUP('Crop 1'!$E$62,Carbon!$AH$4:$AI$10,2,FALSE),0)+IF('Crop 1'!$C$63=Carbon!$B123,'Crop 1'!$L$63*VLOOKUP('Crop 1'!$E$63,Carbon!$AH$4:$AI$10,2,FALSE),0)+IF('Crop 1'!$C$64=Carbon!$B123,'Crop 1'!$L$64*VLOOKUP('Crop 1'!$E$64,Carbon!$AH$4:$AI$10,2,FALSE),0)+IF('Crop 1'!$C$65=Carbon!$B123,'Crop 1'!$L$65*VLOOKUP('Crop 1'!$E$65,Carbon!$AH$4:$AI$10,2,FALSE),0))*$AL$20,2)","v":0},{"$f":"C123*Inputs!$D$13","v":0},{"$f":"ROUND((IF('Crop 2'!$C$14=Carbon!$B123,'Crop 2'!$L$14*VLOOKUP('Crop 2'!$E$14,Carbon!$AH$4:$AI$10,2,FALSE),0)+IF('Crop 2'!$C$15=Carbon!$B123,'Crop 2'!$L$15*VLOOKUP('Crop 2'!$E$15,Carbon!$AH$4:$AI$10,2,FALSE),0)+IF('Crop 2'!$C$16=Carbon!$B123,'Crop 2'!$L$16*VLOOKUP('Crop 2'!$E$16,Carbon!$AH$4:$AI$10,2,FALSE),0)+IF('Crop 2'!$C$19=Carbon!$B123,'Crop 2'!$L$19*VLOOKUP('Crop 2'!$E$19,Carbon!$AH$4:$AI$10,2,FALSE),0)+IF('Crop 2'!$C$20=Carbon!$B123,'Crop 2'!$L$20*VLOOKUP('Crop 2'!$E$20,Carbon!$AH$4:$AI$10,2,FALSE),0)+IF('Crop 2'!$C$21=Carbon!$B123,'Crop 2'!$L$21*VLOOKUP('Crop 2'!$E$21,Carbon!$AH$4:$AI$10,2,FALSE),0)+IF('Crop 2'!$C$49=Carbon!$B123,'Crop 2'!$L$49*VLOOKUP('Crop 2'!$E$49,Carbon!$AH$4:$AI$10,2,FALSE),0)+IF('Crop 2'!$C$50=Carbon!$B123,'Crop 2'!$L$50*VLOOKUP('Crop 2'!$E$50,Carbon!$AH$4:$AI$10,2,FALSE),0)+IF('Crop 2'!$C$51=Carbon!$B123,'Crop 2'!$L$51*VLOOKUP('Crop 2'!$E$51,Carbon!$AH$4:$AI$10,2,FALSE),0)+IF('Crop 2'!$C$52=Carbon!$B123,'Crop 2'!$L$52*VLOOKUP('Crop 2'!$E$52,Carbon!$AH$4:$AI$10,2,FALSE),0)+IF('Crop 2'!$C$53=Carbon!$B123,'Crop 2'!$L$53*VLOOKUP('Crop 2'!$E$53,Carbon!$AH$4:$AI$10,2,FALSE),0)+IF('Crop 2'!$C$56=Carbon!$B123,'Crop 2'!$L$56*VLOOKUP('Crop 2'!$E$56,Carbon!$AH$4:$AI$10,2,FALSE),0)+IF('Crop 2'!$C$57=Carbon!$B123,'Crop 2'!$L$57*VLOOKUP('Crop 2'!$E$57,Carbon!$AH$4:$AI$10,2,FALSE),0)+IF('Crop 2'!$C$58=Carbon!$B123,'Crop 2'!$L$58*VLOOKUP('Crop 2'!$E$58,Carbon!$AH$4:$AI$10,2,FALSE),0)+IF('Crop 2'!$C$59=Carbon!$B123,'Crop 2'!$L$59*VLOOKUP('Crop 2'!$E$59,Carbon!$AH$4:$AI$10,2,FALSE),0)+IF('Crop 2'!$C$62=Carbon!$B123,'Crop 2'!$L$62*VLOOKUP('Crop 2'!$E$62,Carbon!$AH$4:$AI$10,2,FALSE),0)+IF('Crop 2'!$C$63=Carbon!$B123,'Crop 2'!$L$63*VLOOKUP('Crop 2'!$E$63,Carbon!$AH$4:$AI$10,2,FALSE),0)+IF('Crop 2'!$C$64=Carbon!$B123,'Crop 2'!$L$64*VLOOKUP('Crop 2'!$E$64,Carbon!$AH$4:$AI$10,2,FALSE),0)+IF('Crop 2'!$C$65=Carbon!$B123,'Crop 2'!$L$65*VLOOKUP('Crop 2'!$E$65,Carbon!$AH$4:$AI$10,2,FALSE),0))*$AL$20,2)","v":0},{"$f":"E123*Inputs!$D$15","v":0},{"$f":"ROUND((IF('Crop 3'!$C$14=Carbon!$B123,'Crop 3'!$L$14*VLOOKUP('Crop 3'!$E$14,Carbon!$AH$4:$AI$10,2,FALSE),0)+IF('Crop 3'!$C$15=Carbon!$B123,'Crop 3'!$L$15*VLOOKUP('Crop 3'!$E$15,Carbon!$AH$4:$AI$10,2,FALSE),0)+IF('Crop 3'!$C$16=Carbon!$B123,'Crop 3'!$L$16*VLOOKUP('Crop 3'!$E$16,Carbon!$AH$4:$AI$10,2,FALSE),0)+IF('Crop 3'!$C$19=Carbon!$B123,'Crop 3'!$L$19*VLOOKUP('Crop 3'!$E$19,Carbon!$AH$4:$AI$10,2,FALSE),0)+IF('Crop 3'!$C$20=Carbon!$B123,'Crop 3'!$L$20*VLOOKUP('Crop 3'!$E$20,Carbon!$AH$4:$AI$10,2,FALSE),0)+IF('Crop 3'!$C$21=Carbon!$B123,'Crop 3'!$L$21*VLOOKUP('Crop 3'!$E$21,Carbon!$AH$4:$AI$10,2,FALSE),0)+IF('Crop 3'!$C$49=Carbon!$B123,'Crop 3'!$L$49*VLOOKUP('Crop 3'!$E$49,Carbon!$AH$4:$AI$10,2,FALSE),0)+IF('Crop 3'!$C$50=Carbon!$B123,'Crop 3'!$L$50*VLOOKUP('Crop 3'!$E$50,Carbon!$AH$4:$AI$10,2,FALSE),0)+IF('Crop 3'!$C$51=Carbon!$B123,'Crop 3'!$L$51*VLOOKUP('Crop 3'!$E$51,Carbon!$AH$4:$AI$10,2,FALSE),0)+IF('Crop 3'!$C$52=Carbon!$B123,'Crop 3'!$L$52*VLOOKUP('Crop 3'!$E$52,Carbon!$AH$4:$AI$10,2,FALSE),0)+IF('Crop 3'!$C$53=Carbon!$B123,'Crop 3'!$L$53*VLOOKUP('Crop 3'!$E$53,Carbon!$AH$4:$AI$10,2,FALSE),0)+IF('Crop 3'!$C$56=Carbon!$B123,'Crop 3'!$L$56*VLOOKUP('Crop 3'!$E$56,Carbon!$AH$4:$AI$10,2,FALSE),0)+IF('Crop 3'!$C$57=Carbon!$B123,'Crop 3'!$L$57*VLOOKUP('Crop 3'!$E$57,Carbon!$AH$4:$AI$10,2,FALSE),0)+IF('Crop 3'!$C$58=Carbon!$B123,'Crop 3'!$L$58*VLOOKUP('Crop 3'!$E$58,Carbon!$AH$4:$AI$10,2,FALSE),0)+IF('Crop 3'!$C$59=Carbon!$B123,'Crop 3'!$L$59*VLOOKUP('Crop 3'!$E$59,Carbon!$AH$4:$AI$10,2,FALSE),0)+IF('Crop 3'!$C$62=Carbon!$B123,'Crop 3'!$L$62*VLOOKUP('Crop 3'!$E$62,Carbon!$AH$4:$AI$10,2,FALSE),0)+IF('Crop 3'!$C$63=Carbon!$B123,'Crop 3'!$L$63*VLOOKUP('Crop 3'!$E$63,Carbon!$AH$4:$AI$10,2,FALSE),0)+IF('Crop 3'!$C$64=Carbon!$B123,'Crop 3'!$L$64*VLOOKUP('Crop 3'!$E$64,Carbon!$AH$4:$AI$10,2,FALSE),0)+IF('Crop 3'!$C$65=Carbon!$B123,'Crop 3'!$L$65*VLOOKUP('Crop 3'!$E$65,Carbon!$AH$4:$AI$10,2,FALSE),0))*$AL$20,2)","v":0},{"$f":"G123*Inputs!$D$17","v":0},{"$f":"ROUND(J123/Inputs!D$19,2)","v":0},0,null,null,{"$f":"ROUND((IF('Crop 1'!$C$14=Carbon!$B123,'Crop 1'!$V$14*VLOOKUP('Crop 1'!$E$14,Carbon!$AH$4:$AI$10,2,FALSE),0)+IF('Crop 1'!$C$15=Carbon!$B123,'Crop 1'!$V$15*VLOOKUP('Crop 1'!$E$15,Carbon!$AH$4:$AI$10,2,FALSE),0)+IF('Crop 1'!$C$16=Carbon!$B123,'Crop 1'!$V$16*VLOOKUP('Crop 1'!$E$16,Carbon!$AH$4:$AI$10,2,FALSE),0)+IF('Crop 1'!$C$19=Carbon!$B123,'Crop 1'!$V$19*VLOOKUP('Crop 1'!$E$19,Carbon!$AH$4:$AI$10,2,FALSE),0)+IF('Crop 1'!$C$20=Carbon!$B123,'Crop 1'!$V$20*VLOOKUP('Crop 1'!$E$20,Carbon!$AH$4:$AI$10,2,FALSE),0)+IF('Crop 1'!$C$21=Carbon!$B123,'Crop 1'!$V$21*VLOOKUP('Crop 1'!$E$21,Carbon!$AH$4:$AI$10,2,FALSE),0)+IF('Crop 1'!$C$49=Carbon!$B123,'Crop 1'!$V$49*VLOOKUP('Crop 1'!$E$49,Carbon!$AH$4:$AI$10,2,FALSE),0)+IF('Crop 1'!$C$50=Carbon!$B123,'Crop 1'!$V$50*VLOOKUP('Crop 1'!$E$50,Carbon!$AH$4:$AI$10,2,FALSE),0)+IF('Crop 1'!$C$51=Carbon!$B123,'Crop 1'!$V$51*VLOOKUP('Crop 1'!$E$51,Carbon!$AH$4:$AI$10,2,FALSE),0)+IF('Crop 1'!$C$52=Carbon!$B123,'Crop 1'!$V$52*VLOOKUP('Crop 1'!$E$52,Carbon!$AH$4:$AI$10,2,FALSE),0)+IF('Crop 1'!$C$53=Carbon!$B123,'Crop 1'!$V$53*VLOOKUP('Crop 1'!$E$53,Carbon!$AH$4:$AI$10,2,FALSE),0)+IF('Crop 1'!$C$56=Carbon!$B123,'Crop 1'!$V$56*VLOOKUP('Crop 1'!$E$56,Carbon!$AH$4:$AI$10,2,FALSE),0)+IF('Crop 1'!$C$57=Carbon!$B123,'Crop 1'!$V$57*VLOOKUP('Crop 1'!$E$57,Carbon!$AH$4:$AI$10,2,FALSE),0)+IF('Crop 1'!$C$58=Carbon!$B123,'Crop 1'!$V$58*VLOOKUP('Crop 1'!$E$58,Carbon!$AH$4:$AI$10,2,FALSE),0)+IF('Crop 1'!$C$59=Carbon!$B123,'Crop 1'!$V$59*VLOOKUP('Crop 1'!$E$59,Carbon!$AH$4:$AI$10,2,FALSE),0)+IF('Crop 1'!$C$62=Carbon!$B123,'Crop 1'!$V$62*VLOOKUP('Crop 1'!$E$62,Carbon!$AH$4:$AI$10,2,FALSE),0)+IF('Crop 1'!$C$63=Carbon!$B123,'Crop 1'!$V$63*VLOOKUP('Crop 1'!$E$63,Carbon!$AH$4:$AI$10,2,FALSE),0)+IF('Crop 1'!$C$64=Carbon!$B123,'Crop 1'!$V$64*VLOOKUP('Crop 1'!$E$64,Carbon!$AH$4:$AI$10,2,FALSE),0)+IF('Crop 1'!$C$65=Carbon!$B123,'Crop 1'!$V$65*VLOOKUP('Crop 1'!$E$65,Carbon!$AH$4:$AI$10,2,FALSE),0))*$AL$20,2)","v":0},{"$f":"M123*Inputs!$D$13","v":0},{"$f":"ROUND((IF('Crop 2'!$C$14=Carbon!$B123,'Crop 2'!$V$14*VLOOKUP('Crop 2'!$E$14,Carbon!$AH$4:$AI$10,2,FALSE),0)+IF('Crop 2'!$C$15=Carbon!$B123,'Crop 2'!$V$15*VLOOKUP('Crop 2'!$E$15,Carbon!$AH$4:$AI$10,2,FALSE),0)+IF('Crop 2'!$C$16=Carbon!$B123,'Crop 2'!$V$16*VLOOKUP('Crop 2'!$E$16,Carbon!$AH$4:$AI$10,2,FALSE),0)+IF('Crop 2'!$C$19=Carbon!$B123,'Crop 2'!$V$19*VLOOKUP('Crop 2'!$E$19,Carbon!$AH$4:$AI$10,2,FALSE),0)+IF('Crop 2'!$C$20=Carbon!$B123,'Crop 2'!$V$20*VLOOKUP('Crop 2'!$E$20,Carbon!$AH$4:$AI$10,2,FALSE),0)+IF('Crop 2'!$C$21=Carbon!$B123,'Crop 2'!$V$21*VLOOKUP('Crop 2'!$E$21,Carbon!$AH$4:$AI$10,2,FALSE),0)+IF('Crop 2'!$C$49=Carbon!$B123,'Crop 2'!$V$49*VLOOKUP('Crop 2'!$E$49,Carbon!$AH$4:$AI$10,2,FALSE),0)+IF('Crop 2'!$C$50=Carbon!$B123,'Crop 2'!$V$50*VLOOKUP('Crop 2'!$E$50,Carbon!$AH$4:$AI$10,2,FALSE),0)+IF('Crop 2'!$C$51=Carbon!$B123,'Crop 2'!$V$51*VLOOKUP('Crop 2'!$E$51,Carbon!$AH$4:$AI$10,2,FALSE),0)+IF('Crop 2'!$C$52=Carbon!$B123,'Crop 2'!$V$52*VLOOKUP('Crop 2'!$E$52,Carbon!$AH$4:$AI$10,2,FALSE),0)+IF('Crop 2'!$C$53=Carbon!$B123,'Crop 2'!$V$53*VLOOKUP('Crop 2'!$E$53,Carbon!$AH$4:$AI$10,2,FALSE),0)+IF('Crop 2'!$C$56=Carbon!$B123,'Crop 2'!$V$56*VLOOKUP('Crop 2'!$E$56,Carbon!$AH$4:$AI$10,2,FALSE),0)+IF('Crop 2'!$C$57=Carbon!$B123,'Crop 2'!$V$57*VLOOKUP('Crop 2'!$E$57,Carbon!$AH$4:$AI$10,2,FALSE),0)+IF('Crop 2'!$C$58=Carbon!$B123,'Crop 2'!$V$58*VLOOKUP('Crop 2'!$E$58,Carbon!$AH$4:$AI$10,2,FALSE),0)+IF('Crop 2'!$C$59=Carbon!$B123,'Crop 2'!$V$59*VLOOKUP('Crop 2'!$E$59,Carbon!$AH$4:$AI$10,2,FALSE),0)+IF('Crop 2'!$C$62=Carbon!$B123,'Crop 2'!$V$62*VLOOKUP('Crop 2'!$E$62,Carbon!$AH$4:$AI$10,2,FALSE),0)+IF('Crop 2'!$C$63=Carbon!$B123,'Crop 2'!$V$63*VLOOKUP('Crop 2'!$E$63,Carbon!$AH$4:$AI$10,2,FALSE),0)+IF('Crop 2'!$C$64=Carbon!$B123,'Crop 2'!$V$64*VLOOKUP('Crop 2'!$E$64,Carbon!$AH$4:$AI$10,2,FALSE),0)+IF('Crop 2'!$C$65=Carbon!$B123,'Crop 2'!$V$65*VLOOKUP('Crop 2'!$E$65,Carbon!$AH$4:$AI$10,2,FALSE),0))*$AL$20,2)","v":0},{"$f":"O123*Inputs!$D$15","v":0},{"$f":"ROUND((IF('Crop 3'!$C$14=Carbon!$B123,'Crop 3'!$V$14*VLOOKUP('Crop 3'!$E$14,Carbon!$AH$4:$AI$10,2,FALSE),0)+IF('Crop 3'!$C$15=Carbon!$B123,'Crop 3'!$V$15*VLOOKUP('Crop 3'!$E$15,Carbon!$AH$4:$AI$10,2,FALSE),0)+IF('Crop 3'!$C$16=Carbon!$B123,'Crop 3'!$V$16*VLOOKUP('Crop 3'!$E$16,Carbon!$AH$4:$AI$10,2,FALSE),0)+IF('Crop 3'!$C$19=Carbon!$B123,'Crop 3'!$V$19*VLOOKUP('Crop 3'!$E$19,Carbon!$AH$4:$AI$10,2,FALSE),0)+IF('Crop 3'!$C$20=Carbon!$B123,'Crop 3'!$V$20*VLOOKUP('Crop 3'!$E$20,Carbon!$AH$4:$AI$10,2,FALSE),0)+IF('Crop 3'!$C$21=Carbon!$B123,'Crop 3'!$V$21*VLOOKUP('Crop 3'!$E$21,Carbon!$AH$4:$AI$10,2,FALSE),0)+IF('Crop 3'!$C$49=Carbon!$B123,'Crop 3'!$V$49*VLOOKUP('Crop 3'!$E$49,Carbon!$AH$4:$AI$10,2,FALSE),0)+IF('Crop 3'!$C$50=Carbon!$B123,'Crop 3'!$V$50*VLOOKUP('Crop 3'!$E$50,Carbon!$AH$4:$AI$10,2,FALSE),0)+IF('Crop 3'!$C$51=Carbon!$B123,'Crop 3'!$V$51*VLOOKUP('Crop 3'!$E$51,Carbon!$AH$4:$AI$10,2,FALSE),0)+IF('Crop 3'!$C$52=Carbon!$B123,'Crop 3'!$V$52*VLOOKUP('Crop 3'!$E$52,Carbon!$AH$4:$AI$10,2,FALSE),0)+IF('Crop 3'!$C$53=Carbon!$B123,'Crop 3'!$V$53*VLOOKUP('Crop 3'!$E$53,Carbon!$AH$4:$AI$10,2,FALSE),0)+IF('Crop 3'!$C$56=Carbon!$B123,'Crop 3'!$V$56*VLOOKUP('Crop 3'!$E$56,Carbon!$AH$4:$AI$10,2,FALSE),0)+IF('Crop 3'!$C$57=Carbon!$B123,'Crop 3'!$V$57*VLOOKUP('Crop 3'!$E$57,Carbon!$AH$4:$AI$10,2,FALSE),0)+IF('Crop 3'!$C$58=Carbon!$B123,'Crop 3'!$V$58*VLOOKUP('Crop 3'!$E$58,Carbon!$AH$4:$AI$10,2,FALSE),0)+IF('Crop 3'!$C$59=Carbon!$B123,'Crop 3'!$V$59*VLOOKUP('Crop 3'!$E$59,Carbon!$AH$4:$AI$10,2,FALSE),0)+IF('Crop 3'!$C$62=Carbon!$B123,'Crop 3'!$V$62*VLOOKUP('Crop 3'!$E$62,Carbon!$AH$4:$AI$10,2,FALSE),0)+IF('Crop 3'!$C$63=Carbon!$B123,'Crop 3'!$V$63*VLOOKUP('Crop 3'!$E$63,Carbon!$AH$4:$AI$10,2,FALSE),0)+IF('Crop 3'!$C$64=Carbon!$B123,'Crop 3'!$V$64*VLOOKUP('Crop 3'!$E$64,Carbon!$AH$4:$AI$10,2,FALSE),0)+IF('Crop 3'!$C$65=Carbon!$B123,'Crop 3'!$V$65*VLOOKUP('Crop 3'!$E$65,Carbon!$AH$4:$AI$10,2,FALSE),0))*$AL$20,2)","v":0},{"$f":"Q123*Inputs!$D$17","v":0},{"$f":"ROUND(T123/Inputs!D$19,2)","v":0},0,null,null,0,{"$f":"W123*Inputs!$D$13","v":0},0,{"$f":"Y123*Inputs!$D$13","v":0},0,{"$f":"AA123*Inputs!$D$13","v":0},{"$f":"ROUND(AD123/Inputs!D$19,2)","v":0},0]
[null,{"$f":"Defaults!AH90","v":"Poast Plus"},{"$f":"ROUND((IF('Crop 1'!$C$14=Carbon!$B124,'Crop 1'!$L$14*VLOOKUP('Crop 1'!$E$14,Carbon!$AH$4:$AI$10,2,FALSE),0)+IF('Crop 1'!$C$15=Carbon!$B124,'Crop 1'!$L$15*VLOOKUP('Crop 1'!$E$15,Carbon!$AH$4:$AI$10,2,FALSE),0)+IF('Crop 1'!$C$16=Carbon!$B124,'Crop 1'!$L$16*VLOOKUP('Crop 1'!$E$16,Carbon!$AH$4:$AI$10,2,FALSE),0)+IF('Crop 1'!$C$19=Carbon!$B124,'Crop 1'!$L$19*VLOOKUP('Crop 1'!$E$19,Carbon!$AH$4:$AI$10,2,FALSE),0)+IF('Crop 1'!$C$20=Carbon!$B124,'Crop 1'!$L$20*VLOOKUP('Crop 1'!$E$20,Carbon!$AH$4:$AI$10,2,FALSE),0)+IF('Crop 1'!$C$21=Carbon!$B124,'Crop 1'!$L$21*VLOOKUP('Crop 1'!$E$21,Carbon!$AH$4:$AI$10,2,FALSE),0)+IF('Crop 1'!$C$49=Carbon!$B124,'Crop 1'!$L$49*VLOOKUP('Crop 1'!$E$49,Carbon!$AH$4:$AI$10,2,FALSE),0)+IF('Crop 1'!$C$50=Carbon!$B124,'Crop 1'!$L$50*VLOOKUP('Crop 1'!$E$50,Carbon!$AH$4:$AI$10,2,FALSE),0)+IF('Crop 1'!$C$51=Carbon!$B124,'Crop 1'!$L$51*VLOOKUP('Crop 1'!$E$51,Carbon!$AH$4:$AI$10,2,FALSE),0)+IF('Crop 1'!$C$52=Carbon!$B124,'Crop 1'!$L$52*VLOOKUP('Crop 1'!$E$52,Carbon!$AH$4:$AI$10,2,FALSE),0)+IF('Crop 1'!$C$53=Carbon!$B124,'Crop 1'!$L$53*VLOOKUP('Crop 1'!$E$53,Carbon!$AH$4:$AI$10,2,FALSE),0)+IF('Crop 1'!$C$56=Carbon!$B124,'Crop 1'!$L$56*VLOOKUP('Crop 1'!$E$56,Carbon!$AH$4:$AI$10,2,FALSE),0)+IF('Crop 1'!$C$57=Carbon!$B124,'Crop 1'!$L$57*VLOOKUP('Crop 1'!$E$57,Carbon!$AH$4:$AI$10,2,FALSE),0)+IF('Crop 1'!$C$58=Carbon!$B124,'Crop 1'!$L$58*VLOOKUP('Crop 1'!$E$58,Carbon!$AH$4:$AI$10,2,FALSE),0)+IF('Crop 1'!$C$59=Carbon!$B124,'Crop 1'!$L$59*VLOOKUP('Crop 1'!$E$59,Carbon!$AH$4:$AI$10,2,FALSE),0)+IF('Crop 1'!$C$62=Carbon!$B124,'Crop 1'!$L$62*VLOOKUP('Crop 1'!$E$62,Carbon!$AH$4:$AI$10,2,FALSE),0)+IF('Crop 1'!$C$63=Carbon!$B124,'Crop 1'!$L$63*VLOOKUP('Crop 1'!$E$63,Carbon!$AH$4:$AI$10,2,FALSE),0)+IF('Crop 1'!$C$64=Carbon!$B124,'Crop 1'!$L$64*VLOOKUP('Crop 1'!$E$64,Carbon!$AH$4:$AI$10,2,FALSE),0)+IF('Crop 1'!$C$65=Carbon!$B124,'Crop 1'!$L$65*VLOOKUP('Crop 1'!$E$65,Carbon!$AH$4:$AI$10,2,FALSE),0))*$AL$20,2)","v":0},{"$f":"C124*Inputs!$D$13","v":0},{"$f":"ROUND((IF('Crop 2'!$C$14=Carbon!$B124,'Crop 2'!$L$14*VLOOKUP('Crop 2'!$E$14,Carbon!$AH$4:$AI$10,2,FALSE),0)+IF('Crop 2'!$C$15=Carbon!$B124,'Crop 2'!$L$15*VLOOKUP('Crop 2'!$E$15,Carbon!$AH$4:$AI$10,2,FALSE),0)+IF('Crop 2'!$C$16=Carbon!$B124,'Crop 2'!$L$16*VLOOKUP('Crop 2'!$E$16,Carbon!$AH$4:$AI$10,2,FALSE),0)+IF('Crop 2'!$C$19=Carbon!$B124,'Crop 2'!$L$19*VLOOKUP('Crop 2'!$E$19,Carbon!$AH$4:$AI$10,2,FALSE),0)+IF('Crop 2'!$C$20=Carbon!$B124,'Crop 2'!$L$20*VLOOKUP('Crop 2'!$E$20,Carbon!$AH$4:$AI$10,2,FALSE),0)+IF('Crop 2'!$C$21=Carbon!$B124,'Crop 2'!$L$21*VLOOKUP('Crop 2'!$E$21,Carbon!$AH$4:$AI$10,2,FALSE),0)+IF('Crop 2'!$C$49=Carbon!$B124,'Crop 2'!$L$49*VLOOKUP('Crop 2'!$E$49,Carbon!$AH$4:$AI$10,2,FALSE),0)+IF('Crop 2'!$C$50=Carbon!$B124,'Crop 2'!$L$50*VLOOKUP('Crop 2'!$E$50,Carbon!$AH$4:$AI$10,2,FALSE),0)+IF('Crop 2'!$C$51=Carbon!$B124,'Crop 2'!$L$51*VLOOKUP('Crop 2'!$E$51,Carbon!$AH$4:$AI$10,2,FALSE),0)+IF('Crop 2'!$C$52=Carbon!$B124,'Crop 2'!$L$52*VLOOKUP('Crop 2'!$E$52,Carbon!$AH$4:$AI$10,2,FALSE),0)+IF('Crop 2'!$C$53=Carbon!$B124,'Crop 2'!$L$53*VLOOKUP('Crop 2'!$E$53,Carbon!$AH$4:$AI$10,2,FALSE),0)+IF('Crop 2'!$C$56=Carbon!$B124,'Crop 2'!$L$56*VLOOKUP('Crop 2'!$E$56,Carbon!$AH$4:$AI$10,2,FALSE),0)+IF('Crop 2'!$C$57=Carbon!$B124,'Crop 2'!$L$57*VLOOKUP('Crop 2'!$E$57,Carbon!$AH$4:$AI$10,2,FALSE),0)+IF('Crop 2'!$C$58=Carbon!$B124,'Crop 2'!$L$58*VLOOKUP('Crop 2'!$E$58,Carbon!$AH$4:$AI$10,2,FALSE),0)+IF('Crop 2'!$C$59=Carbon!$B124,'Crop 2'!$L$59*VLOOKUP('Crop 2'!$E$59,Carbon!$AH$4:$AI$10,2,FALSE),0)+IF('Crop 2'!$C$62=Carbon!$B124,'Crop 2'!$L$62*VLOOKUP('Crop 2'!$E$62,Carbon!$AH$4:$AI$10,2,FALSE),0)+IF('Crop 2'!$C$63=Carbon!$B124,'Crop 2'!$L$63*VLOOKUP('Crop 2'!$E$63,Carbon!$AH$4:$AI$10,2,FALSE),0)+IF('Crop 2'!$C$64=Carbon!$B124,'Crop 2'!$L$64*VLOOKUP('Crop 2'!$E$64,Carbon!$AH$4:$AI$10,2,FALSE),0)+IF('Crop 2'!$C$65=Carbon!$B124,'Crop 2'!$L$65*VLOOKUP('Crop 2'!$E$65,Carbon!$AH$4:$AI$10,2,FALSE),0))*$AL$20,2)","v":0},{"$f":"E124*Inputs!$D$15","v":0},{"$f":"ROUND((IF('Crop 3'!$C$14=Carbon!$B124,'Crop 3'!$L$14*VLOOKUP('Crop 3'!$E$14,Carbon!$AH$4:$AI$10,2,FALSE),0)+IF('Crop 3'!$C$15=Carbon!$B124,'Crop 3'!$L$15*VLOOKUP('Crop 3'!$E$15,Carbon!$AH$4:$AI$10,2,FALSE),0)+IF('Crop 3'!$C$16=Carbon!$B124,'Crop 3'!$L$16*VLOOKUP('Crop 3'!$E$16,Carbon!$AH$4:$AI$10,2,FALSE),0)+IF('Crop 3'!$C$19=Carbon!$B124,'Crop 3'!$L$19*VLOOKUP('Crop 3'!$E$19,Carbon!$AH$4:$AI$10,2,FALSE),0)+IF('Crop 3'!$C$20=Carbon!$B124,'Crop 3'!$L$20*VLOOKUP('Crop 3'!$E$20,Carbon!$AH$4:$AI$10,2,FALSE),0)+IF('Crop 3'!$C$21=Carbon!$B124,'Crop 3'!$L$21*VLOOKUP('Crop 3'!$E$21,Carbon!$AH$4:$AI$10,2,FALSE),0)+IF('Crop 3'!$C$49=Carbon!$B124,'Crop 3'!$L$49*VLOOKUP('Crop 3'!$E$49,Carbon!$AH$4:$AI$10,2,FALSE),0)+IF('Crop 3'!$C$50=Carbon!$B124,'Crop 3'!$L$50*VLOOKUP('Crop 3'!$E$50,Carbon!$AH$4:$AI$10,2,FALSE),0)+IF('Crop 3'!$C$51=Carbon!$B124,'Crop 3'!$L$51*VLOOKUP('Crop 3'!$E$51,Carbon!$AH$4:$AI$10,2,FALSE),0)+IF('Crop 3'!$C$52=Carbon!$B124,'Crop 3'!$L$52*VLOOKUP('Crop 3'!$E$52,Carbon!$AH$4:$AI$10,2,FALSE),0)+IF('Crop 3'!$C$53=Carbon!$B124,'Crop 3'!$L$53*VLOOKUP('Crop 3'!$E$53,Carbon!$AH$4:$AI$10,2,FALSE),0)+IF('Crop 3'!$C$56=Carbon!$B124,'Crop 3'!$L$56*VLOOKUP('Crop 3'!$E$56,Carbon!$AH$4:$AI$10,2,FALSE),0)+IF('Crop 3'!$C$57=Carbon!$B124,'Crop 3'!$L$57*VLOOKUP('Crop 3'!$E$57,Carbon!$AH$4:$AI$10,2,FALSE),0)+IF('Crop 3'!$C$58=Carbon!$B124,'Crop 3'!$L$58*VLOOKUP('Crop 3'!$E$58,Carbon!$AH$4:$AI$10,2,FALSE),0)+IF('Crop 3'!$C$59=Carbon!$B124,'Crop 3'!$L$59*VLOOKUP('Crop 3'!$E$59,Carbon!$AH$4:$AI$10,2,FALSE),0)+IF('Crop 3'!$C$62=Carbon!$B124,'Crop 3'!$L$62*VLOOKUP('Crop 3'!$E$62,Carbon!$AH$4:$AI$10,2,FALSE),0)+IF('Crop 3'!$C$63=Carbon!$B124,'Crop 3'!$L$63*VLOOKUP('Crop 3'!$E$63,Carbon!$AH$4:$AI$10,2,FALSE),0)+IF('Crop 3'!$C$64=Carbon!$B124,'Crop 3'!$L$64*VLOOKUP('Crop 3'!$E$64,Carbon!$AH$4:$AI$10,2,FALSE),0)+IF('Crop 3'!$C$65=Carbon!$B124,'Crop 3'!$L$65*VLOOKUP('Crop 3'!$E$65,Carbon!$AH$4:$AI$10,2,FALSE),0))*$AL$20,2)","v":0},{"$f":"G124*Inputs!$D$17","v":0},{"$f":"ROUND(J124/Inputs!D$19,2)","v":0},0,null,null,{"$f":"ROUND((IF('Crop 1'!$C$14=Carbon!$B124,'Crop 1'!$V$14*VLOOKUP('Crop 1'!$E$14,Carbon!$AH$4:$AI$10,2,FALSE),0)+IF('Crop 1'!$C$15=Carbon!$B124,'Crop 1'!$V$15*VLOOKUP('Crop 1'!$E$15,Carbon!$AH$4:$AI$10,2,FALSE),0)+IF('Crop 1'!$C$16=Carbon!$B124,'Crop 1'!$V$16*VLOOKUP('Crop 1'!$E$16,Carbon!$AH$4:$AI$10,2,FALSE),0)+IF('Crop 1'!$C$19=Carbon!$B124,'Crop 1'!$V$19*VLOOKUP('Crop 1'!$E$19,Carbon!$AH$4:$AI$10,2,FALSE),0)+IF('Crop 1'!$C$20=Carbon!$B124,'Crop 1'!$V$20*VLOOKUP('Crop 1'!$E$20,Carbon!$AH$4:$AI$10,2,FALSE),0)+IF('Crop 1'!$C$21=Carbon!$B124,'Crop 1'!$V$21*VLOOKUP('Crop 1'!$E$21,Carbon!$AH$4:$AI$10,2,FALSE),0)+IF('Crop 1'!$C$49=Carbon!$B124,'Crop 1'!$V$49*VLOOKUP('Crop 1'!$E$49,Carbon!$AH$4:$AI$10,2,FALSE),0)+IF('Crop 1'!$C$50=Carbon!$B124,'Crop 1'!$V$50*VLOOKUP('Crop 1'!$E$50,Carbon!$AH$4:$AI$10,2,FALSE),0)+IF('Crop 1'!$C$51=Carbon!$B124,'Crop 1'!$V$51*VLOOKUP('Crop 1'!$E$51,Carbon!$AH$4:$AI$10,2,FALSE),0)+IF('Crop 1'!$C$52=Carbon!$B124,'Crop 1'!$V$52*VLOOKUP('Crop 1'!$E$52,Carbon!$AH$4:$AI$10,2,FALSE),0)+IF('Crop 1'!$C$53=Carbon!$B124,'Crop 1'!$V$53*VLOOKUP('Crop 1'!$E$53,Carbon!$AH$4:$AI$10,2,FALSE),0)+IF('Crop 1'!$C$56=Carbon!$B124,'Crop 1'!$V$56*VLOOKUP('Crop 1'!$E$56,Carbon!$AH$4:$AI$10,2,FALSE),0)+IF('Crop 1'!$C$57=Carbon!$B124,'Crop 1'!$V$57*VLOOKUP('Crop 1'!$E$57,Carbon!$AH$4:$AI$10,2,FALSE),0)+IF('Crop 1'!$C$58=Carbon!$B124,'Crop 1'!$V$58*VLOOKUP('Crop 1'!$E$58,Carbon!$AH$4:$AI$10,2,FALSE),0)+IF('Crop 1'!$C$59=Carbon!$B124,'Crop 1'!$V$59*VLOOKUP('Crop 1'!$E$59,Carbon!$AH$4:$AI$10,2,FALSE),0)+IF('Crop 1'!$C$62=Carbon!$B124,'Crop 1'!$V$62*VLOOKUP('Crop 1'!$E$62,Carbon!$AH$4:$AI$10,2,FALSE),0)+IF('Crop 1'!$C$63=Carbon!$B124,'Crop 1'!$V$63*VLOOKUP('Crop 1'!$E$63,Carbon!$AH$4:$AI$10,2,FALSE),0)+IF('Crop 1'!$C$64=Carbon!$B124,'Crop 1'!$V$64*VLOOKUP('Crop 1'!$E$64,Carbon!$AH$4:$AI$10,2,FALSE),0)+IF('Crop 1'!$C$65=Carbon!$B124,'Crop 1'!$V$65*VLOOKUP('Crop 1'!$E$65,Carbon!$AH$4:$AI$10,2,FALSE),0))*$AL$20,2)","v":0},{"$f":"M124*Inputs!$D$13","v":0},{"$f":"ROUND((IF('Crop 2'!$C$14=Carbon!$B124,'Crop 2'!$V$14*VLOOKUP('Crop 2'!$E$14,Carbon!$AH$4:$AI$10,2,FALSE),0)+IF('Crop 2'!$C$15=Carbon!$B124,'Crop 2'!$V$15*VLOOKUP('Crop 2'!$E$15,Carbon!$AH$4:$AI$10,2,FALSE),0)+IF('Crop 2'!$C$16=Carbon!$B124,'Crop 2'!$V$16*VLOOKUP('Crop 2'!$E$16,Carbon!$AH$4:$AI$10,2,FALSE),0)+IF('Crop 2'!$C$19=Carbon!$B124,'Crop 2'!$V$19*VLOOKUP('Crop 2'!$E$19,Carbon!$AH$4:$AI$10,2,FALSE),0)+IF('Crop 2'!$C$20=Carbon!$B124,'Crop 2'!$V$20*VLOOKUP('Crop 2'!$E$20,Carbon!$AH$4:$AI$10,2,FALSE),0)+IF('Crop 2'!$C$21=Carbon!$B124,'Crop 2'!$V$21*VLOOKUP('Crop 2'!$E$21,Carbon!$AH$4:$AI$10,2,FALSE),0)+IF('Crop 2'!$C$49=Carbon!$B124,'Crop 2'!$V$49*VLOOKUP('Crop 2'!$E$49,Carbon!$AH$4:$AI$10,2,FALSE),0)+IF('Crop 2'!$C$50=Carbon!$B124,'Crop 2'!$V$50*VLOOKUP('Crop 2'!$E$50,Carbon!$AH$4:$AI$10,2,FALSE),0)+IF('Crop 2'!$C$51=Carbon!$B124,'Crop 2'!$V$51*VLOOKUP('Crop 2'!$E$51,Carbon!$AH$4:$AI$10,2,FALSE),0)+IF('Crop 2'!$C$52=Carbon!$B124,'Crop 2'!$V$52*VLOOKUP('Crop 2'!$E$52,Carbon!$AH$4:$AI$10,2,FALSE),0)+IF('Crop 2'!$C$53=Carbon!$B124,'Crop 2'!$V$53*VLOOKUP('Crop 2'!$E$53,Carbon!$AH$4:$AI$10,2,FALSE),0)+IF('Crop 2'!$C$56=Carbon!$B124,'Crop 2'!$V$56*VLOOKUP('Crop 2'!$E$56,Carbon!$AH$4:$AI$10,2,FALSE),0)+IF('Crop 2'!$C$57=Carbon!$B124,'Crop 2'!$V$57*VLOOKUP('Crop 2'!$E$57,Carbon!$AH$4:$AI$10,2,FALSE),0)+IF('Crop 2'!$C$58=Carbon!$B124,'Crop 2'!$V$58*VLOOKUP('Crop 2'!$E$58,Carbon!$AH$4:$AI$10,2,FALSE),0)+IF('Crop 2'!$C$59=Carbon!$B124,'Crop 2'!$V$59*VLOOKUP('Crop 2'!$E$59,Carbon!$AH$4:$AI$10,2,FALSE),0)+IF('Crop 2'!$C$62=Carbon!$B124,'Crop 2'!$V$62*VLOOKUP('Crop 2'!$E$62,Carbon!$AH$4:$AI$10,2,FALSE),0)+IF('Crop 2'!$C$63=Carbon!$B124,'Crop 2'!$V$63*VLOOKUP('Crop 2'!$E$63,Carbon!$AH$4:$AI$10,2,FALSE),0)+IF('Crop 2'!$C$64=Carbon!$B124,'Crop 2'!$V$64*VLOOKUP('Crop 2'!$E$64,Carbon!$AH$4:$AI$10,2,FALSE),0)+IF('Crop 2'!$C$65=Carbon!$B124,'Crop 2'!$V$65*VLOOKUP('Crop 2'!$E$65,Carbon!$AH$4:$AI$10,2,FALSE),0))*$AL$20,2)","v":0},{"$f":"O124*Inputs!$D$15","v":0},{"$f":"ROUND((IF('Crop 3'!$C$14=Carbon!$B124,'Crop 3'!$V$14*VLOOKUP('Crop 3'!$E$14,Carbon!$AH$4:$AI$10,2,FALSE),0)+IF('Crop 3'!$C$15=Carbon!$B124,'Crop 3'!$V$15*VLOOKUP('Crop 3'!$E$15,Carbon!$AH$4:$AI$10,2,FALSE),0)+IF('Crop 3'!$C$16=Carbon!$B124,'Crop 3'!$V$16*VLOOKUP('Crop 3'!$E$16,Carbon!$AH$4:$AI$10,2,FALSE),0)+IF('Crop 3'!$C$19=Carbon!$B124,'Crop 3'!$V$19*VLOOKUP('Crop 3'!$E$19,Carbon!$AH$4:$AI$10,2,FALSE),0)+IF('Crop 3'!$C$20=Carbon!$B124,'Crop 3'!$V$20*VLOOKUP('Crop 3'!$E$20,Carbon!$AH$4:$AI$10,2,FALSE),0)+IF('Crop 3'!$C$21=Carbon!$B124,'Crop 3'!$V$21*VLOOKUP('Crop 3'!$E$21,Carbon!$AH$4:$AI$10,2,FALSE),0)+IF('Crop 3'!$C$49=Carbon!$B124,'Crop 3'!$V$49*VLOOKUP('Crop 3'!$E$49,Carbon!$AH$4:$AI$10,2,FALSE),0)+IF('Crop 3'!$C$50=Carbon!$B124,'Crop 3'!$V$50*VLOOKUP('Crop 3'!$E$50,Carbon!$AH$4:$AI$10,2,FALSE),0)+IF('Crop 3'!$C$51=Carbon!$B124,'Crop 3'!$V$51*VLOOKUP('Crop 3'!$E$51,Carbon!$AH$4:$AI$10,2,FALSE),0)+IF('Crop 3'!$C$52=Carbon!$B124,'Crop 3'!$V$52*VLOOKUP('Crop 3'!$E$52,Carbon!$AH$4:$AI$10,2,FALSE),0)+IF('Crop 3'!$C$53=Carbon!$B124,'Crop 3'!$V$53*VLOOKUP('Crop 3'!$E$53,Carbon!$AH$4:$AI$10,2,FALSE),0)+IF('Crop 3'!$C$56=Carbon!$B124,'Crop 3'!$V$56*VLOOKUP('Crop 3'!$E$56,Carbon!$AH$4:$AI$10,2,FALSE),0)+IF('Crop 3'!$C$57=Carbon!$B124,'Crop 3'!$V$57*VLOOKUP('Crop 3'!$E$57,Carbon!$AH$4:$AI$10,2,FALSE),0)+IF('Crop 3'!$C$58=Carbon!$B124,'Crop 3'!$V$58*VLOOKUP('Crop 3'!$E$58,Carbon!$AH$4:$AI$10,2,FALSE),0)+IF('Crop 3'!$C$59=Carbon!$B124,'Crop 3'!$V$59*VLOOKUP('Crop 3'!$E$59,Carbon!$AH$4:$AI$10,2,FALSE),0)+IF('Crop 3'!$C$62=Carbon!$B124,'Crop 3'!$V$62*VLOOKUP('Crop 3'!$E$62,Carbon!$AH$4:$AI$10,2,FALSE),0)+IF('Crop 3'!$C$63=Carbon!$B124,'Crop 3'!$V$63*VLOOKUP('Crop 3'!$E$63,Carbon!$AH$4:$AI$10,2,FALSE),0)+IF('Crop 3'!$C$64=Carbon!$B124,'Crop 3'!$V$64*VLOOKUP('Crop 3'!$E$64,Carbon!$AH$4:$AI$10,2,FALSE),0)+IF('Crop 3'!$C$65=Carbon!$B124,'Crop 3'!$V$65*VLOOKUP('Crop 3'!$E$65,Carbon!$AH$4:$AI$10,2,FALSE),0))*$AL$20,2)","v":0},{"$f":"Q124*Inputs!$D$17","v":0},{"$f":"ROUND(T124/Inputs!D$19,2)","v":0},0,null,null,0,{"$f":"W124*Inputs!$D$13","v":0},0,{"$f":"Y124*Inputs!$D$13","v":0},0,{"$f":"AA124*Inputs!$D$13","v":0},{"$f":"ROUND(AD124/Inputs!D$19,2)","v":0},0]
[null,{"$f":"Defaults!AH91","v":"PowerFlex"},{"$f":"ROUND((IF('Crop 1'!$C$14=Carbon!$B125,'Crop 1'!$L$14*VLOOKUP('Crop 1'!$E$14,Carbon!$AH$4:$AI$10,2,FALSE),0)+IF('Crop 1'!$C$15=Carbon!$B125,'Crop 1'!$L$15*VLOOKUP('Crop 1'!$E$15,Carbon!$AH$4:$AI$10,2,FALSE),0)+IF('Crop 1'!$C$16=Carbon!$B125,'Crop 1'!$L$16*VLOOKUP('Crop 1'!$E$16,Carbon!$AH$4:$AI$10,2,FALSE),0)+IF('Crop 1'!$C$19=Carbon!$B125,'Crop 1'!$L$19*VLOOKUP('Crop 1'!$E$19,Carbon!$AH$4:$AI$10,2,FALSE),0)+IF('Crop 1'!$C$20=Carbon!$B125,'Crop 1'!$L$20*VLOOKUP('Crop 1'!$E$20,Carbon!$AH$4:$AI$10,2,FALSE),0)+IF('Crop 1'!$C$21=Carbon!$B125,'Crop 1'!$L$21*VLOOKUP('Crop 1'!$E$21,Carbon!$AH$4:$AI$10,2,FALSE),0)+IF('Crop 1'!$C$49=Carbon!$B125,'Crop 1'!$L$49*VLOOKUP('Crop 1'!$E$49,Carbon!$AH$4:$AI$10,2,FALSE),0)+IF('Crop 1'!$C$50=Carbon!$B125,'Crop 1'!$L$50*VLOOKUP('Crop 1'!$E$50,Carbon!$AH$4:$AI$10,2,FALSE),0)+IF('Crop 1'!$C$51=Carbon!$B125,'Crop 1'!$L$51*VLOOKUP('Crop 1'!$E$51,Carbon!$AH$4:$AI$10,2,FALSE),0)+IF('Crop 1'!$C$52=Carbon!$B125,'Crop 1'!$L$52*VLOOKUP('Crop 1'!$E$52,Carbon!$AH$4:$AI$10,2,FALSE),0)+IF('Crop 1'!$C$53=Carbon!$B125,'Crop 1'!$L$53*VLOOKUP('Crop 1'!$E$53,Carbon!$AH$4:$AI$10,2,FALSE),0)+IF('Crop 1'!$C$56=Carbon!$B125,'Crop 1'!$L$56*VLOOKUP('Crop 1'!$E$56,Carbon!$AH$4:$AI$10,2,FALSE),0)+IF('Crop 1'!$C$57=Carbon!$B125,'Crop 1'!$L$57*VLOOKUP('Crop 1'!$E$57,Carbon!$AH$4:$AI$10,2,FALSE),0)+IF('Crop 1'!$C$58=Carbon!$B125,'Crop 1'!$L$58*VLOOKUP('Crop 1'!$E$58,Carbon!$AH$4:$AI$10,2,FALSE),0)+IF('Crop 1'!$C$59=Carbon!$B125,'Crop 1'!$L$59*VLOOKUP('Crop 1'!$E$59,Carbon!$AH$4:$AI$10,2,FALSE),0)+IF('Crop 1'!$C$62=Carbon!$B125,'Crop 1'!$L$62*VLOOKUP('Crop 1'!$E$62,Carbon!$AH$4:$AI$10,2,FALSE),0)+IF('Crop 1'!$C$63=Carbon!$B125,'Crop 1'!$L$63*VLOOKUP('Crop 1'!$E$63,Carbon!$AH$4:$AI$10,2,FALSE),0)+IF('Crop 1'!$C$64=Carbon!$B125,'Crop 1'!$L$64*VLOOKUP('Crop 1'!$E$64,Carbon!$AH$4:$AI$10,2,FALSE),0)+IF('Crop 1'!$C$65=Carbon!$B125,'Crop 1'!$L$65*VLOOKUP('Crop 1'!$E$65,Carbon!$AH$4:$AI$10,2,FALSE),0))*$AL$20,2)","v":0},{"$f":"C125*Inputs!$D$13","v":0},{"$f":"ROUND((IF('Crop 2'!$C$14=Carbon!$B125,'Crop 2'!$L$14*VLOOKUP('Crop 2'!$E$14,Carbon!$AH$4:$AI$10,2,FALSE),0)+IF('Crop 2'!$C$15=Carbon!$B125,'Crop 2'!$L$15*VLOOKUP('Crop 2'!$E$15,Carbon!$AH$4:$AI$10,2,FALSE),0)+IF('Crop 2'!$C$16=Carbon!$B125,'Crop 2'!$L$16*VLOOKUP('Crop 2'!$E$16,Carbon!$AH$4:$AI$10,2,FALSE),0)+IF('Crop 2'!$C$19=Carbon!$B125,'Crop 2'!$L$19*VLOOKUP('Crop 2'!$E$19,Carbon!$AH$4:$AI$10,2,FALSE),0)+IF('Crop 2'!$C$20=Carbon!$B125,'Crop 2'!$L$20*VLOOKUP('Crop 2'!$E$20,Carbon!$AH$4:$AI$10,2,FALSE),0)+IF('Crop 2'!$C$21=Carbon!$B125,'Crop 2'!$L$21*VLOOKUP('Crop 2'!$E$21,Carbon!$AH$4:$AI$10,2,FALSE),0)+IF('Crop 2'!$C$49=Carbon!$B125,'Crop 2'!$L$49*VLOOKUP('Crop 2'!$E$49,Carbon!$AH$4:$AI$10,2,FALSE),0)+IF('Crop 2'!$C$50=Carbon!$B125,'Crop 2'!$L$50*VLOOKUP('Crop 2'!$E$50,Carbon!$AH$4:$AI$10,2,FALSE),0)+IF('Crop 2'!$C$51=Carbon!$B125,'Crop 2'!$L$51*VLOOKUP('Crop 2'!$E$51,Carbon!$AH$4:$AI$10,2,FALSE),0)+IF('Crop 2'!$C$52=Carbon!$B125,'Crop 2'!$L$52*VLOOKUP('Crop 2'!$E$52,Carbon!$AH$4:$AI$10,2,FALSE),0)+IF('Crop 2'!$C$53=Carbon!$B125,'Crop 2'!$L$53*VLOOKUP('Crop 2'!$E$53,Carbon!$AH$4:$AI$10,2,FALSE),0)+IF('Crop 2'!$C$56=Carbon!$B125,'Crop 2'!$L$56*VLOOKUP('Crop 2'!$E$56,Carbon!$AH$4:$AI$10,2,FALSE),0)+IF('Crop 2'!$C$57=Carbon!$B125,'Crop 2'!$L$57*VLOOKUP('Crop 2'!$E$57,Carbon!$AH$4:$AI$10,2,FALSE),0)+IF('Crop 2'!$C$58=Carbon!$B125,'Crop 2'!$L$58*VLOOKUP('Crop 2'!$E$58,Carbon!$AH$4:$AI$10,2,FALSE),0)+IF('Crop 2'!$C$59=Carbon!$B125,'Crop 2'!$L$59*VLOOKUP('Crop 2'!$E$59,Carbon!$AH$4:$AI$10,2,FALSE),0)+IF('Crop 2'!$C$62=Carbon!$B125,'Crop 2'!$L$62*VLOOKUP('Crop 2'!$E$62,Carbon!$AH$4:$AI$10,2,FALSE),0)+IF('Crop 2'!$C$63=Carbon!$B125,'Crop 2'!$L$63*VLOOKUP('Crop 2'!$E$63,Carbon!$AH$4:$AI$10,2,FALSE),0)+IF('Crop 2'!$C$64=Carbon!$B125,'Crop 2'!$L$64*VLOOKUP('Crop 2'!$E$64,Carbon!$AH$4:$AI$10,2,FALSE),0)+IF('Crop 2'!$C$65=Carbon!$B125,'Crop 2'!$L$65*VLOOKUP('Crop 2'!$E$65,Carbon!$AH$4:$AI$10,2,FALSE),0))*$AL$20,2)","v":0},{"$f":"E125*Inputs!$D$15","v":0},{"$f":"ROUND((IF('Crop 3'!$C$14=Carbon!$B125,'Crop 3'!$L$14*VLOOKUP('Crop 3'!$E$14,Carbon!$AH$4:$AI$10,2,FALSE),0)+IF('Crop 3'!$C$15=Carbon!$B125,'Crop 3'!$L$15*VLOOKUP('Crop 3'!$E$15,Carbon!$AH$4:$AI$10,2,FALSE),0)+IF('Crop 3'!$C$16=Carbon!$B125,'Crop 3'!$L$16*VLOOKUP('Crop 3'!$E$16,Carbon!$AH$4:$AI$10,2,FALSE),0)+IF('Crop 3'!$C$19=Carbon!$B125,'Crop 3'!$L$19*VLOOKUP('Crop 3'!$E$19,Carbon!$AH$4:$AI$10,2,FALSE),0)+IF('Crop 3'!$C$20=Carbon!$B125,'Crop 3'!$L$20*VLOOKUP('Crop 3'!$E$20,Carbon!$AH$4:$AI$10,2,FALSE),0)+IF('Crop 3'!$C$21=Carbon!$B125,'Crop 3'!$L$21*VLOOKUP('Crop 3'!$E$21,Carbon!$AH$4:$AI$10,2,FALSE),0)+IF('Crop 3'!$C$49=Carbon!$B125,'Crop 3'!$L$49*VLOOKUP('Crop 3'!$E$49,Carbon!$AH$4:$AI$10,2,FALSE),0)+IF('Crop 3'!$C$50=Carbon!$B125,'Crop 3'!$L$50*VLOOKUP('Crop 3'!$E$50,Carbon!$AH$4:$AI$10,2,FALSE),0)+IF('Crop 3'!$C$51=Carbon!$B125,'Crop 3'!$L$51*VLOOKUP('Crop 3'!$E$51,Carbon!$AH$4:$AI$10,2,FALSE),0)+IF('Crop 3'!$C$52=Carbon!$B125,'Crop 3'!$L$52*VLOOKUP('Crop 3'!$E$52,Carbon!$AH$4:$AI$10,2,FALSE),0)+IF('Crop 3'!$C$53=Carbon!$B125,'Crop 3'!$L$53*VLOOKUP('Crop 3'!$E$53,Carbon!$AH$4:$AI$10,2,FALSE),0)+IF('Crop 3'!$C$56=Carbon!$B125,'Crop 3'!$L$56*VLOOKUP('Crop 3'!$E$56,Carbon!$AH$4:$AI$10,2,FALSE),0)+IF('Crop 3'!$C$57=Carbon!$B125,'Crop 3'!$L$57*VLOOKUP('Crop 3'!$E$57,Carbon!$AH$4:$AI$10,2,FALSE),0)+IF('Crop 3'!$C$58=Carbon!$B125,'Crop 3'!$L$58*VLOOKUP('Crop 3'!$E$58,Carbon!$AH$4:$AI$10,2,FALSE),0)+IF('Crop 3'!$C$59=Carbon!$B125,'Crop 3'!$L$59*VLOOKUP('Crop 3'!$E$59,Carbon!$AH$4:$AI$10,2,FALSE),0)+IF('Crop 3'!$C$62=Carbon!$B125,'Crop 3'!$L$62*VLOOKUP('Crop 3'!$E$62,Carbon!$AH$4:$AI$10,2,FALSE),0)+IF('Crop 3'!$C$63=Carbon!$B125,'Crop 3'!$L$63*VLOOKUP('Crop 3'!$E$63,Carbon!$AH$4:$AI$10,2,FALSE),0)+IF('Crop 3'!$C$64=Carbon!$B125,'Crop 3'!$L$64*VLOOKUP('Crop 3'!$E$64,Carbon!$AH$4:$AI$10,2,FALSE),0)+IF('Crop 3'!$C$65=Carbon!$B125,'Crop 3'!$L$65*VLOOKUP('Crop 3'!$E$65,Carbon!$AH$4:$AI$10,2,FALSE),0))*$AL$20,2)","v":0},{"$f":"G125*Inputs!$D$17","v":0},{"$f":"ROUND(J125/Inputs!D$19,2)","v":0},0,null,null,{"$f":"ROUND((IF('Crop 1'!$C$14=Carbon!$B125,'Crop 1'!$V$14*VLOOKUP('Crop 1'!$E$14,Carbon!$AH$4:$AI$10,2,FALSE),0)+IF('Crop 1'!$C$15=Carbon!$B125,'Crop 1'!$V$15*VLOOKUP('Crop 1'!$E$15,Carbon!$AH$4:$AI$10,2,FALSE),0)+IF('Crop 1'!$C$16=Carbon!$B125,'Crop 1'!$V$16*VLOOKUP('Crop 1'!$E$16,Carbon!$AH$4:$AI$10,2,FALSE),0)+IF('Crop 1'!$C$19=Carbon!$B125,'Crop 1'!$V$19*VLOOKUP('Crop 1'!$E$19,Carbon!$AH$4:$AI$10,2,FALSE),0)+IF('Crop 1'!$C$20=Carbon!$B125,'Crop 1'!$V$20*VLOOKUP('Crop 1'!$E$20,Carbon!$AH$4:$AI$10,2,FALSE),0)+IF('Crop 1'!$C$21=Carbon!$B125,'Crop 1'!$V$21*VLOOKUP('Crop 1'!$E$21,Carbon!$AH$4:$AI$10,2,FALSE),0)+IF('Crop 1'!$C$49=Carbon!$B125,'Crop 1'!$V$49*VLOOKUP('Crop 1'!$E$49,Carbon!$AH$4:$AI$10,2,FALSE),0)+IF('Crop 1'!$C$50=Carbon!$B125,'Crop 1'!$V$50*VLOOKUP('Crop 1'!$E$50,Carbon!$AH$4:$AI$10,2,FALSE),0)+IF('Crop 1'!$C$51=Carbon!$B125,'Crop 1'!$V$51*VLOOKUP('Crop 1'!$E$51,Carbon!$AH$4:$AI$10,2,FALSE),0)+IF('Crop 1'!$C$52=Carbon!$B125,'Crop 1'!$V$52*VLOOKUP('Crop 1'!$E$52,Carbon!$AH$4:$AI$10,2,FALSE),0)+IF('Crop 1'!$C$53=Carbon!$B125,'Crop 1'!$V$53*VLOOKUP('Crop 1'!$E$53,Carbon!$AH$4:$AI$10,2,FALSE),0)+IF('Crop 1'!$C$56=Carbon!$B125,'Crop 1'!$V$56*VLOOKUP('Crop 1'!$E$56,Carbon!$AH$4:$AI$10,2,FALSE),0)+IF('Crop 1'!$C$57=Carbon!$B125,'Crop 1'!$V$57*VLOOKUP('Crop 1'!$E$57,Carbon!$AH$4:$AI$10,2,FALSE),0)+IF('Crop 1'!$C$58=Carbon!$B125,'Crop 1'!$V$58*VLOOKUP('Crop 1'!$E$58,Carbon!$AH$4:$AI$10,2,FALSE),0)+IF('Crop 1'!$C$59=Carbon!$B125,'Crop 1'!$V$59*VLOOKUP('Crop 1'!$E$59,Carbon!$AH$4:$AI$10,2,FALSE),0)+IF('Crop 1'!$C$62=Carbon!$B125,'Crop 1'!$V$62*VLOOKUP('Crop 1'!$E$62,Carbon!$AH$4:$AI$10,2,FALSE),0)+IF('Crop 1'!$C$63=Carbon!$B125,'Crop 1'!$V$63*VLOOKUP('Crop 1'!$E$63,Carbon!$AH$4:$AI$10,2,FALSE),0)+IF('Crop 1'!$C$64=Carbon!$B125,'Crop 1'!$V$64*VLOOKUP('Crop 1'!$E$64,Carbon!$AH$4:$AI$10,2,FALSE),0)+IF('Crop 1'!$C$65=Carbon!$B125,'Crop 1'!$V$65*VLOOKUP('Crop 1'!$E$65,Carbon!$AH$4:$AI$10,2,FALSE),0))*$AL$20,2)","v":0},{"$f":"M125*Inputs!$D$13","v":0},{"$f":"ROUND((IF('Crop 2'!$C$14=Carbon!$B125,'Crop 2'!$V$14*VLOOKUP('Crop 2'!$E$14,Carbon!$AH$4:$AI$10,2,FALSE),0)+IF('Crop 2'!$C$15=Carbon!$B125,'Crop 2'!$V$15*VLOOKUP('Crop 2'!$E$15,Carbon!$AH$4:$AI$10,2,FALSE),0)+IF('Crop 2'!$C$16=Carbon!$B125,'Crop 2'!$V$16*VLOOKUP('Crop 2'!$E$16,Carbon!$AH$4:$AI$10,2,FALSE),0)+IF('Crop 2'!$C$19=Carbon!$B125,'Crop 2'!$V$19*VLOOKUP('Crop 2'!$E$19,Carbon!$AH$4:$AI$10,2,FALSE),0)+IF('Crop 2'!$C$20=Carbon!$B125,'Crop 2'!$V$20*VLOOKUP('Crop 2'!$E$20,Carbon!$AH$4:$AI$10,2,FALSE),0)+IF('Crop 2'!$C$21=Carbon!$B125,'Crop 2'!$V$21*VLOOKUP('Crop 2'!$E$21,Carbon!$AH$4:$AI$10,2,FALSE),0)+IF('Crop 2'!$C$49=Carbon!$B125,'Crop 2'!$V$49*VLOOKUP('Crop 2'!$E$49,Carbon!$AH$4:$AI$10,2,FALSE),0)+IF('Crop 2'!$C$50=Carbon!$B125,'Crop 2'!$V$50*VLOOKUP('Crop 2'!$E$50,Carbon!$AH$4:$AI$10,2,FALSE),0)+IF('Crop 2'!$C$51=Carbon!$B125,'Crop 2'!$V$51*VLOOKUP('Crop 2'!$E$51,Carbon!$AH$4:$AI$10,2,FALSE),0)+IF('Crop 2'!$C$52=Carbon!$B125,'Crop 2'!$V$52*VLOOKUP('Crop 2'!$E$52,Carbon!$AH$4:$AI$10,2,FALSE),0)+IF('Crop 2'!$C$53=Carbon!$B125,'Crop 2'!$V$53*VLOOKUP('Crop 2'!$E$53,Carbon!$AH$4:$AI$10,2,FALSE),0)+IF('Crop 2'!$C$56=Carbon!$B125,'Crop 2'!$V$56*VLOOKUP('Crop 2'!$E$56,Carbon!$AH$4:$AI$10,2,FALSE),0)+IF('Crop 2'!$C$57=Carbon!$B125,'Crop 2'!$V$57*VLOOKUP('Crop 2'!$E$57,Carbon!$AH$4:$AI$10,2,FALSE),0)+IF('Crop 2'!$C$58=Carbon!$B125,'Crop 2'!$V$58*VLOOKUP('Crop 2'!$E$58,Carbon!$AH$4:$AI$10,2,FALSE),0)+IF('Crop 2'!$C$59=Carbon!$B125,'Crop 2'!$V$59*VLOOKUP('Crop 2'!$E$59,Carbon!$AH$4:$AI$10,2,FALSE),0)+IF('Crop 2'!$C$62=Carbon!$B125,'Crop 2'!$V$62*VLOOKUP('Crop 2'!$E$62,Carbon!$AH$4:$AI$10,2,FALSE),0)+IF('Crop 2'!$C$63=Carbon!$B125,'Crop 2'!$V$63*VLOOKUP('Crop 2'!$E$63,Carbon!$AH$4:$AI$10,2,FALSE),0)+IF('Crop 2'!$C$64=Carbon!$B125,'Crop 2'!$V$64*VLOOKUP('Crop 2'!$E$64,Carbon!$AH$4:$AI$10,2,FALSE),0)+IF('Crop 2'!$C$65=Carbon!$B125,'Crop 2'!$V$65*VLOOKUP('Crop 2'!$E$65,Carbon!$AH$4:$AI$10,2,FALSE),0))*$AL$20,2)","v":0},{"$f":"O125*Inputs!$D$15","v":0},{"$f":"ROUND((IF('Crop 3'!$C$14=Carbon!$B125,'Crop 3'!$V$14*VLOOKUP('Crop 3'!$E$14,Carbon!$AH$4:$AI$10,2,FALSE),0)+IF('Crop 3'!$C$15=Carbon!$B125,'Crop 3'!$V$15*VLOOKUP('Crop 3'!$E$15,Carbon!$AH$4:$AI$10,2,FALSE),0)+IF('Crop 3'!$C$16=Carbon!$B125,'Crop 3'!$V$16*VLOOKUP('Crop 3'!$E$16,Carbon!$AH$4:$AI$10,2,FALSE),0)+IF('Crop 3'!$C$19=Carbon!$B125,'Crop 3'!$V$19*VLOOKUP('Crop 3'!$E$19,Carbon!$AH$4:$AI$10,2,FALSE),0)+IF('Crop 3'!$C$20=Carbon!$B125,'Crop 3'!$V$20*VLOOKUP('Crop 3'!$E$20,Carbon!$AH$4:$AI$10,2,FALSE),0)+IF('Crop 3'!$C$21=Carbon!$B125,'Crop 3'!$V$21*VLOOKUP('Crop 3'!$E$21,Carbon!$AH$4:$AI$10,2,FALSE),0)+IF('Crop 3'!$C$49=Carbon!$B125,'Crop 3'!$V$49*VLOOKUP('Crop 3'!$E$49,Carbon!$AH$4:$AI$10,2,FALSE),0)+IF('Crop 3'!$C$50=Carbon!$B125,'Crop 3'!$V$50*VLOOKUP('Crop 3'!$E$50,Carbon!$AH$4:$AI$10,2,FALSE),0)+IF('Crop 3'!$C$51=Carbon!$B125,'Crop 3'!$V$51*VLOOKUP('Crop 3'!$E$51,Carbon!$AH$4:$AI$10,2,FALSE),0)+IF('Crop 3'!$C$52=Carbon!$B125,'Crop 3'!$V$52*VLOOKUP('Crop 3'!$E$52,Carbon!$AH$4:$AI$10,2,FALSE),0)+IF('Crop 3'!$C$53=Carbon!$B125,'Crop 3'!$V$53*VLOOKUP('Crop 3'!$E$53,Carbon!$AH$4:$AI$10,2,FALSE),0)+IF('Crop 3'!$C$56=Carbon!$B125,'Crop 3'!$V$56*VLOOKUP('Crop 3'!$E$56,Carbon!$AH$4:$AI$10,2,FALSE),0)+IF('Crop 3'!$C$57=Carbon!$B125,'Crop 3'!$V$57*VLOOKUP('Crop 3'!$E$57,Carbon!$AH$4:$AI$10,2,FALSE),0)+IF('Crop 3'!$C$58=Carbon!$B125,'Crop 3'!$V$58*VLOOKUP('Crop 3'!$E$58,Carbon!$AH$4:$AI$10,2,FALSE),0)+IF('Crop 3'!$C$59=Carbon!$B125,'Crop 3'!$V$59*VLOOKUP('Crop 3'!$E$59,Carbon!$AH$4:$AI$10,2,FALSE),0)+IF('Crop 3'!$C$62=Carbon!$B125,'Crop 3'!$V$62*VLOOKUP('Crop 3'!$E$62,Carbon!$AH$4:$AI$10,2,FALSE),0)+IF('Crop 3'!$C$63=Carbon!$B125,'Crop 3'!$V$63*VLOOKUP('Crop 3'!$E$63,Carbon!$AH$4:$AI$10,2,FALSE),0)+IF('Crop 3'!$C$64=Carbon!$B125,'Crop 3'!$V$64*VLOOKUP('Crop 3'!$E$64,Carbon!$AH$4:$AI$10,2,FALSE),0)+IF('Crop 3'!$C$65=Carbon!$B125,'Crop 3'!$V$65*VLOOKUP('Crop 3'!$E$65,Carbon!$AH$4:$AI$10,2,FALSE),0))*$AL$20,2)","v":0},{"$f":"Q125*Inputs!$D$17","v":0},{"$f":"ROUND(T125/Inputs!D$19,2)","v":0},0,null,null,0,{"$f":"W125*Inputs!$D$13","v":0},0,{"$f":"Y125*Inputs!$D$13","v":0},0,{"$f":"AA125*Inputs!$D$13","v":0},{"$f":"ROUND(AD125/Inputs!D$19,2)","v":0},0]
[null,{"$f":"Defaults!AH92","v":"Prefix"},{"$f":"ROUND((IF('Crop 1'!$C$14=Carbon!$B126,'Crop 1'!$L$14*VLOOKUP('Crop 1'!$E$14,Carbon!$AH$4:$AI$10,2,FALSE),0)+IF('Crop 1'!$C$15=Carbon!$B126,'Crop 1'!$L$15*VLOOKUP('Crop 1'!$E$15,Carbon!$AH$4:$AI$10,2,FALSE),0)+IF('Crop 1'!$C$16=Carbon!$B126,'Crop 1'!$L$16*VLOOKUP('Crop 1'!$E$16,Carbon!$AH$4:$AI$10,2,FALSE),0)+IF('Crop 1'!$C$19=Carbon!$B126,'Crop 1'!$L$19*VLOOKUP('Crop 1'!$E$19,Carbon!$AH$4:$AI$10,2,FALSE),0)+IF('Crop 1'!$C$20=Carbon!$B126,'Crop 1'!$L$20*VLOOKUP('Crop 1'!$E$20,Carbon!$AH$4:$AI$10,2,FALSE),0)+IF('Crop 1'!$C$21=Carbon!$B126,'Crop 1'!$L$21*VLOOKUP('Crop 1'!$E$21,Carbon!$AH$4:$AI$10,2,FALSE),0)+IF('Crop 1'!$C$49=Carbon!$B126,'Crop 1'!$L$49*VLOOKUP('Crop 1'!$E$49,Carbon!$AH$4:$AI$10,2,FALSE),0)+IF('Crop 1'!$C$50=Carbon!$B126,'Crop 1'!$L$50*VLOOKUP('Crop 1'!$E$50,Carbon!$AH$4:$AI$10,2,FALSE),0)+IF('Crop 1'!$C$51=Carbon!$B126,'Crop 1'!$L$51*VLOOKUP('Crop 1'!$E$51,Carbon!$AH$4:$AI$10,2,FALSE),0)+IF('Crop 1'!$C$52=Carbon!$B126,'Crop 1'!$L$52*VLOOKUP('Crop 1'!$E$52,Carbon!$AH$4:$AI$10,2,FALSE),0)+IF('Crop 1'!$C$53=Carbon!$B126,'Crop 1'!$L$53*VLOOKUP('Crop 1'!$E$53,Carbon!$AH$4:$AI$10,2,FALSE),0)+IF('Crop 1'!$C$56=Carbon!$B126,'Crop 1'!$L$56*VLOOKUP('Crop 1'!$E$56,Carbon!$AH$4:$AI$10,2,FALSE),0)+IF('Crop 1'!$C$57=Carbon!$B126,'Crop 1'!$L$57*VLOOKUP('Crop 1'!$E$57,Carbon!$AH$4:$AI$10,2,FALSE),0)+IF('Crop 1'!$C$58=Carbon!$B126,'Crop 1'!$L$58*VLOOKUP('Crop 1'!$E$58,Carbon!$AH$4:$AI$10,2,FALSE),0)+IF('Crop 1'!$C$59=Carbon!$B126,'Crop 1'!$L$59*VLOOKUP('Crop 1'!$E$59,Carbon!$AH$4:$AI$10,2,FALSE),0)+IF('Crop 1'!$C$62=Carbon!$B126,'Crop 1'!$L$62*VLOOKUP('Crop 1'!$E$62,Carbon!$AH$4:$AI$10,2,FALSE),0)+IF('Crop 1'!$C$63=Carbon!$B126,'Crop 1'!$L$63*VLOOKUP('Crop 1'!$E$63,Carbon!$AH$4:$AI$10,2,FALSE),0)+IF('Crop 1'!$C$64=Carbon!$B126,'Crop 1'!$L$64*VLOOKUP('Crop 1'!$E$64,Carbon!$AH$4:$AI$10,2,FALSE),0)+IF('Crop 1'!$C$65=Carbon!$B126,'Crop 1'!$L$65*VLOOKUP('Crop 1'!$E$65,Carbon!$AH$4:$AI$10,2,FALSE),0))*$AL$20,2)","v":0},{"$f":"C126*Inputs!$D$13","v":0},{"$f":"ROUND((IF('Crop 2'!$C$14=Carbon!$B126,'Crop 2'!$L$14*VLOOKUP('Crop 2'!$E$14,Carbon!$AH$4:$AI$10,2,FALSE),0)+IF('Crop 2'!$C$15=Carbon!$B126,'Crop 2'!$L$15*VLOOKUP('Crop 2'!$E$15,Carbon!$AH$4:$AI$10,2,FALSE),0)+IF('Crop 2'!$C$16=Carbon!$B126,'Crop 2'!$L$16*VLOOKUP('Crop 2'!$E$16,Carbon!$AH$4:$AI$10,2,FALSE),0)+IF('Crop 2'!$C$19=Carbon!$B126,'Crop 2'!$L$19*VLOOKUP('Crop 2'!$E$19,Carbon!$AH$4:$AI$10,2,FALSE),0)+IF('Crop 2'!$C$20=Carbon!$B126,'Crop 2'!$L$20*VLOOKUP('Crop 2'!$E$20,Carbon!$AH$4:$AI$10,2,FALSE),0)+IF('Crop 2'!$C$21=Carbon!$B126,'Crop 2'!$L$21*VLOOKUP('Crop 2'!$E$21,Carbon!$AH$4:$AI$10,2,FALSE),0)+IF('Crop 2'!$C$49=Carbon!$B126,'Crop 2'!$L$49*VLOOKUP('Crop 2'!$E$49,Carbon!$AH$4:$AI$10,2,FALSE),0)+IF('Crop 2'!$C$50=Carbon!$B126,'Crop 2'!$L$50*VLOOKUP('Crop 2'!$E$50,Carbon!$AH$4:$AI$10,2,FALSE),0)+IF('Crop 2'!$C$51=Carbon!$B126,'Crop 2'!$L$51*VLOOKUP('Crop 2'!$E$51,Carbon!$AH$4:$AI$10,2,FALSE),0)+IF('Crop 2'!$C$52=Carbon!$B126,'Crop 2'!$L$52*VLOOKUP('Crop 2'!$E$52,Carbon!$AH$4:$AI$10,2,FALSE),0)+IF('Crop 2'!$C$53=Carbon!$B126,'Crop 2'!$L$53*VLOOKUP('Crop 2'!$E$53,Carbon!$AH$4:$AI$10,2,FALSE),0)+IF('Crop 2'!$C$56=Carbon!$B126,'Crop 2'!$L$56*VLOOKUP('Crop 2'!$E$56,Carbon!$AH$4:$AI$10,2,FALSE),0)+IF('Crop 2'!$C$57=Carbon!$B126,'Crop 2'!$L$57*VLOOKUP('Crop 2'!$E$57,Carbon!$AH$4:$AI$10,2,FALSE),0)+IF('Crop 2'!$C$58=Carbon!$B126,'Crop 2'!$L$58*VLOOKUP('Crop 2'!$E$58,Carbon!$AH$4:$AI$10,2,FALSE),0)+IF('Crop 2'!$C$59=Carbon!$B126,'Crop 2'!$L$59*VLOOKUP('Crop 2'!$E$59,Carbon!$AH$4:$AI$10,2,FALSE),0)+IF('Crop 2'!$C$62=Carbon!$B126,'Crop 2'!$L$62*VLOOKUP('Crop 2'!$E$62,Carbon!$AH$4:$AI$10,2,FALSE),0)+IF('Crop 2'!$C$63=Carbon!$B126,'Crop 2'!$L$63*VLOOKUP('Crop 2'!$E$63,Carbon!$AH$4:$AI$10,2,FALSE),0)+IF('Crop 2'!$C$64=Carbon!$B126,'Crop 2'!$L$64*VLOOKUP('Crop 2'!$E$64,Carbon!$AH$4:$AI$10,2,FALSE),0)+IF('Crop 2'!$C$65=Carbon!$B126,'Crop 2'!$L$65*VLOOKUP('Crop 2'!$E$65,Carbon!$AH$4:$AI$10,2,FALSE),0))*$AL$20,2)","v":0},{"$f":"E126*Inputs!$D$15","v":0},{"$f":"ROUND((IF('Crop 3'!$C$14=Carbon!$B126,'Crop 3'!$L$14*VLOOKUP('Crop 3'!$E$14,Carbon!$AH$4:$AI$10,2,FALSE),0)+IF('Crop 3'!$C$15=Carbon!$B126,'Crop 3'!$L$15*VLOOKUP('Crop 3'!$E$15,Carbon!$AH$4:$AI$10,2,FALSE),0)+IF('Crop 3'!$C$16=Carbon!$B126,'Crop 3'!$L$16*VLOOKUP('Crop 3'!$E$16,Carbon!$AH$4:$AI$10,2,FALSE),0)+IF('Crop 3'!$C$19=Carbon!$B126,'Crop 3'!$L$19*VLOOKUP('Crop 3'!$E$19,Carbon!$AH$4:$AI$10,2,FALSE),0)+IF('Crop 3'!$C$20=Carbon!$B126,'Crop 3'!$L$20*VLOOKUP('Crop 3'!$E$20,Carbon!$AH$4:$AI$10,2,FALSE),0)+IF('Crop 3'!$C$21=Carbon!$B126,'Crop 3'!$L$21*VLOOKUP('Crop 3'!$E$21,Carbon!$AH$4:$AI$10,2,FALSE),0)+IF('Crop 3'!$C$49=Carbon!$B126,'Crop 3'!$L$49*VLOOKUP('Crop 3'!$E$49,Carbon!$AH$4:$AI$10,2,FALSE),0)+IF('Crop 3'!$C$50=Carbon!$B126,'Crop 3'!$L$50*VLOOKUP('Crop 3'!$E$50,Carbon!$AH$4:$AI$10,2,FALSE),0)+IF('Crop 3'!$C$51=Carbon!$B126,'Crop 3'!$L$51*VLOOKUP('Crop 3'!$E$51,Carbon!$AH$4:$AI$10,2,FALSE),0)+IF('Crop 3'!$C$52=Carbon!$B126,'Crop 3'!$L$52*VLOOKUP('Crop 3'!$E$52,Carbon!$AH$4:$AI$10,2,FALSE),0)+IF('Crop 3'!$C$53=Carbon!$B126,'Crop 3'!$L$53*VLOOKUP('Crop 3'!$E$53,Carbon!$AH$4:$AI$10,2,FALSE),0)+IF('Crop 3'!$C$56=Carbon!$B126,'Crop 3'!$L$56*VLOOKUP('Crop 3'!$E$56,Carbon!$AH$4:$AI$10,2,FALSE),0)+IF('Crop 3'!$C$57=Carbon!$B126,'Crop 3'!$L$57*VLOOKUP('Crop 3'!$E$57,Carbon!$AH$4:$AI$10,2,FALSE),0)+IF('Crop 3'!$C$58=Carbon!$B126,'Crop 3'!$L$58*VLOOKUP('Crop 3'!$E$58,Carbon!$AH$4:$AI$10,2,FALSE),0)+IF('Crop 3'!$C$59=Carbon!$B126,'Crop 3'!$L$59*VLOOKUP('Crop 3'!$E$59,Carbon!$AH$4:$AI$10,2,FALSE),0)+IF('Crop 3'!$C$62=Carbon!$B126,'Crop 3'!$L$62*VLOOKUP('Crop 3'!$E$62,Carbon!$AH$4:$AI$10,2,FALSE),0)+IF('Crop 3'!$C$63=Carbon!$B126,'Crop 3'!$L$63*VLOOKUP('Crop 3'!$E$63,Carbon!$AH$4:$AI$10,2,FALSE),0)+IF('Crop 3'!$C$64=Carbon!$B126,'Crop 3'!$L$64*VLOOKUP('Crop 3'!$E$64,Carbon!$AH$4:$AI$10,2,FALSE),0)+IF('Crop 3'!$C$65=Carbon!$B126,'Crop 3'!$L$65*VLOOKUP('Crop 3'!$E$65,Carbon!$AH$4:$AI$10,2,FALSE),0))*$AL$20,2)","v":0},{"$f":"G126*Inputs!$D$17","v":0},{"$f":"ROUND(J126/Inputs!D$19,2)","v":0},0,null,null,{"$f":"ROUND((IF('Crop 1'!$C$14=Carbon!$B126,'Crop 1'!$V$14*VLOOKUP('Crop 1'!$E$14,Carbon!$AH$4:$AI$10,2,FALSE),0)+IF('Crop 1'!$C$15=Carbon!$B126,'Crop 1'!$V$15*VLOOKUP('Crop 1'!$E$15,Carbon!$AH$4:$AI$10,2,FALSE),0)+IF('Crop 1'!$C$16=Carbon!$B126,'Crop 1'!$V$16*VLOOKUP('Crop 1'!$E$16,Carbon!$AH$4:$AI$10,2,FALSE),0)+IF('Crop 1'!$C$19=Carbon!$B126,'Crop 1'!$V$19*VLOOKUP('Crop 1'!$E$19,Carbon!$AH$4:$AI$10,2,FALSE),0)+IF('Crop 1'!$C$20=Carbon!$B126,'Crop 1'!$V$20*VLOOKUP('Crop 1'!$E$20,Carbon!$AH$4:$AI$10,2,FALSE),0)+IF('Crop 1'!$C$21=Carbon!$B126,'Crop 1'!$V$21*VLOOKUP('Crop 1'!$E$21,Carbon!$AH$4:$AI$10,2,FALSE),0)+IF('Crop 1'!$C$49=Carbon!$B126,'Crop 1'!$V$49*VLOOKUP('Crop 1'!$E$49,Carbon!$AH$4:$AI$10,2,FALSE),0)+IF('Crop 1'!$C$50=Carbon!$B126,'Crop 1'!$V$50*VLOOKUP('Crop 1'!$E$50,Carbon!$AH$4:$AI$10,2,FALSE),0)+IF('Crop 1'!$C$51=Carbon!$B126,'Crop 1'!$V$51*VLOOKUP('Crop 1'!$E$51,Carbon!$AH$4:$AI$10,2,FALSE),0)+IF('Crop 1'!$C$52=Carbon!$B126,'Crop 1'!$V$52*VLOOKUP('Crop 1'!$E$52,Carbon!$AH$4:$AI$10,2,FALSE),0)+IF('Crop 1'!$C$53=Carbon!$B126,'Crop 1'!$V$53*VLOOKUP('Crop 1'!$E$53,Carbon!$AH$4:$AI$10,2,FALSE),0)+IF('Crop 1'!$C$56=Carbon!$B126,'Crop 1'!$V$56*VLOOKUP('Crop 1'!$E$56,Carbon!$AH$4:$AI$10,2,FALSE),0)+IF('Crop 1'!$C$57=Carbon!$B126,'Crop 1'!$V$57*VLOOKUP('Crop 1'!$E$57,Carbon!$AH$4:$AI$10,2,FALSE),0)+IF('Crop 1'!$C$58=Carbon!$B126,'Crop 1'!$V$58*VLOOKUP('Crop 1'!$E$58,Carbon!$AH$4:$AI$10,2,FALSE),0)+IF('Crop 1'!$C$59=Carbon!$B126,'Crop 1'!$V$59*VLOOKUP('Crop 1'!$E$59,Carbon!$AH$4:$AI$10,2,FALSE),0)+IF('Crop 1'!$C$62=Carbon!$B126,'Crop 1'!$V$62*VLOOKUP('Crop 1'!$E$62,Carbon!$AH$4:$AI$10,2,FALSE),0)+IF('Crop 1'!$C$63=Carbon!$B126,'Crop 1'!$V$63*VLOOKUP('Crop 1'!$E$63,Carbon!$AH$4:$AI$10,2,FALSE),0)+IF('Crop 1'!$C$64=Carbon!$B126,'Crop 1'!$V$64*VLOOKUP('Crop 1'!$E$64,Carbon!$AH$4:$AI$10,2,FALSE),0)+IF('Crop 1'!$C$65=Carbon!$B126,'Crop 1'!$V$65*VLOOKUP('Crop 1'!$E$65,Carbon!$AH$4:$AI$10,2,FALSE),0))*$AL$20,2)","v":0},{"$f":"M126*Inputs!$D$13","v":0},{"$f":"ROUND((IF('Crop 2'!$C$14=Carbon!$B126,'Crop 2'!$V$14*VLOOKUP('Crop 2'!$E$14,Carbon!$AH$4:$AI$10,2,FALSE),0)+IF('Crop 2'!$C$15=Carbon!$B126,'Crop 2'!$V$15*VLOOKUP('Crop 2'!$E$15,Carbon!$AH$4:$AI$10,2,FALSE),0)+IF('Crop 2'!$C$16=Carbon!$B126,'Crop 2'!$V$16*VLOOKUP('Crop 2'!$E$16,Carbon!$AH$4:$AI$10,2,FALSE),0)+IF('Crop 2'!$C$19=Carbon!$B126,'Crop 2'!$V$19*VLOOKUP('Crop 2'!$E$19,Carbon!$AH$4:$AI$10,2,FALSE),0)+IF('Crop 2'!$C$20=Carbon!$B126,'Crop 2'!$V$20*VLOOKUP('Crop 2'!$E$20,Carbon!$AH$4:$AI$10,2,FALSE),0)+IF('Crop 2'!$C$21=Carbon!$B126,'Crop 2'!$V$21*VLOOKUP('Crop 2'!$E$21,Carbon!$AH$4:$AI$10,2,FALSE),0)+IF('Crop 2'!$C$49=Carbon!$B126,'Crop 2'!$V$49*VLOOKUP('Crop 2'!$E$49,Carbon!$AH$4:$AI$10,2,FALSE),0)+IF('Crop 2'!$C$50=Carbon!$B126,'Crop 2'!$V$50*VLOOKUP('Crop 2'!$E$50,Carbon!$AH$4:$AI$10,2,FALSE),0)+IF('Crop 2'!$C$51=Carbon!$B126,'Crop 2'!$V$51*VLOOKUP('Crop 2'!$E$51,Carbon!$AH$4:$AI$10,2,FALSE),0)+IF('Crop 2'!$C$52=Carbon!$B126,'Crop 2'!$V$52*VLOOKUP('Crop 2'!$E$52,Carbon!$AH$4:$AI$10,2,FALSE),0)+IF('Crop 2'!$C$53=Carbon!$B126,'Crop 2'!$V$53*VLOOKUP('Crop 2'!$E$53,Carbon!$AH$4:$AI$10,2,FALSE),0)+IF('Crop 2'!$C$56=Carbon!$B126,'Crop 2'!$V$56*VLOOKUP('Crop 2'!$E$56,Carbon!$AH$4:$AI$10,2,FALSE),0)+IF('Crop 2'!$C$57=Carbon!$B126,'Crop 2'!$V$57*VLOOKUP('Crop 2'!$E$57,Carbon!$AH$4:$AI$10,2,FALSE),0)+IF('Crop 2'!$C$58=Carbon!$B126,'Crop 2'!$V$58*VLOOKUP('Crop 2'!$E$58,Carbon!$AH$4:$AI$10,2,FALSE),0)+IF('Crop 2'!$C$59=Carbon!$B126,'Crop 2'!$V$59*VLOOKUP('Crop 2'!$E$59,Carbon!$AH$4:$AI$10,2,FALSE),0)+IF('Crop 2'!$C$62=Carbon!$B126,'Crop 2'!$V$62*VLOOKUP('Crop 2'!$E$62,Carbon!$AH$4:$AI$10,2,FALSE),0)+IF('Crop 2'!$C$63=Carbon!$B126,'Crop 2'!$V$63*VLOOKUP('Crop 2'!$E$63,Carbon!$AH$4:$AI$10,2,FALSE),0)+IF('Crop 2'!$C$64=Carbon!$B126,'Crop 2'!$V$64*VLOOKUP('Crop 2'!$E$64,Carbon!$AH$4:$AI$10,2,FALSE),0)+IF('Crop 2'!$C$65=Carbon!$B126,'Crop 2'!$V$65*VLOOKUP('Crop 2'!$E$65,Carbon!$AH$4:$AI$10,2,FALSE),0))*$AL$20,2)","v":0},{"$f":"O126*Inputs!$D$15","v":0},{"$f":"ROUND((IF('Crop 3'!$C$14=Carbon!$B126,'Crop 3'!$V$14*VLOOKUP('Crop 3'!$E$14,Carbon!$AH$4:$AI$10,2,FALSE),0)+IF('Crop 3'!$C$15=Carbon!$B126,'Crop 3'!$V$15*VLOOKUP('Crop 3'!$E$15,Carbon!$AH$4:$AI$10,2,FALSE),0)+IF('Crop 3'!$C$16=Carbon!$B126,'Crop 3'!$V$16*VLOOKUP('Crop 3'!$E$16,Carbon!$AH$4:$AI$10,2,FALSE),0)+IF('Crop 3'!$C$19=Carbon!$B126,'Crop 3'!$V$19*VLOOKUP('Crop 3'!$E$19,Carbon!$AH$4:$AI$10,2,FALSE),0)+IF('Crop 3'!$C$20=Carbon!$B126,'Crop 3'!$V$20*VLOOKUP('Crop 3'!$E$20,Carbon!$AH$4:$AI$10,2,FALSE),0)+IF('Crop 3'!$C$21=Carbon!$B126,'Crop 3'!$V$21*VLOOKUP('Crop 3'!$E$21,Carbon!$AH$4:$AI$10,2,FALSE),0)+IF('Crop 3'!$C$49=Carbon!$B126,'Crop 3'!$V$49*VLOOKUP('Crop 3'!$E$49,Carbon!$AH$4:$AI$10,2,FALSE),0)+IF('Crop 3'!$C$50=Carbon!$B126,'Crop 3'!$V$50*VLOOKUP('Crop 3'!$E$50,Carbon!$AH$4:$AI$10,2,FALSE),0)+IF('Crop 3'!$C$51=Carbon!$B126,'Crop 3'!$V$51*VLOOKUP('Crop 3'!$E$51,Carbon!$AH$4:$AI$10,2,FALSE),0)+IF('Crop 3'!$C$52=Carbon!$B126,'Crop 3'!$V$52*VLOOKUP('Crop 3'!$E$52,Carbon!$AH$4:$AI$10,2,FALSE),0)+IF('Crop 3'!$C$53=Carbon!$B126,'Crop 3'!$V$53*VLOOKUP('Crop 3'!$E$53,Carbon!$AH$4:$AI$10,2,FALSE),0)+IF('Crop 3'!$C$56=Carbon!$B126,'Crop 3'!$V$56*VLOOKUP('Crop 3'!$E$56,Carbon!$AH$4:$AI$10,2,FALSE),0)+IF('Crop 3'!$C$57=Carbon!$B126,'Crop 3'!$V$57*VLOOKUP('Crop 3'!$E$57,Carbon!$AH$4:$AI$10,2,FALSE),0)+IF('Crop 3'!$C$58=Carbon!$B126,'Crop 3'!$V$58*VLOOKUP('Crop 3'!$E$58,Carbon!$AH$4:$AI$10,2,FALSE),0)+IF('Crop 3'!$C$59=Carbon!$B126,'Crop 3'!$V$59*VLOOKUP('Crop 3'!$E$59,Carbon!$AH$4:$AI$10,2,FALSE),0)+IF('Crop 3'!$C$62=Carbon!$B126,'Crop 3'!$V$62*VLOOKUP('Crop 3'!$E$62,Carbon!$AH$4:$AI$10,2,FALSE),0)+IF('Crop 3'!$C$63=Carbon!$B126,'Crop 3'!$V$63*VLOOKUP('Crop 3'!$E$63,Carbon!$AH$4:$AI$10,2,FALSE),0)+IF('Crop 3'!$C$64=Carbon!$B126,'Crop 3'!$V$64*VLOOKUP('Crop 3'!$E$64,Carbon!$AH$4:$AI$10,2,FALSE),0)+IF('Crop 3'!$C$65=Carbon!$B126,'Crop 3'!$V$65*VLOOKUP('Crop 3'!$E$65,Carbon!$AH$4:$AI$10,2,FALSE),0))*$AL$20,2)","v":0},{"$f":"Q126*Inputs!$D$17","v":0},{"$f":"ROUND(T126/Inputs!D$19,2)","v":0},0,null,null,0,{"$f":"W126*Inputs!$D$13","v":0},0,{"$f":"Y126*Inputs!$D$13","v":0},0,{"$f":"AA126*Inputs!$D$13","v":0},{"$f":"ROUND(AD126/Inputs!D$19,2)","v":0},0]
[null,{"$f":"Defaults!AH93","v":"Propanil"},{"$f":"ROUND((IF('Crop 1'!$C$14=Carbon!$B127,'Crop 1'!$L$14*VLOOKUP('Crop 1'!$E$14,Carbon!$AH$4:$AI$10,2,FALSE),0)+IF('Crop 1'!$C$15=Carbon!$B127,'Crop 1'!$L$15*VLOOKUP('Crop 1'!$E$15,Carbon!$AH$4:$AI$10,2,FALSE),0)+IF('Crop 1'!$C$16=Carbon!$B127,'Crop 1'!$L$16*VLOOKUP('Crop 1'!$E$16,Carbon!$AH$4:$AI$10,2,FALSE),0)+IF('Crop 1'!$C$19=Carbon!$B127,'Crop 1'!$L$19*VLOOKUP('Crop 1'!$E$19,Carbon!$AH$4:$AI$10,2,FALSE),0)+IF('Crop 1'!$C$20=Carbon!$B127,'Crop 1'!$L$20*VLOOKUP('Crop 1'!$E$20,Carbon!$AH$4:$AI$10,2,FALSE),0)+IF('Crop 1'!$C$21=Carbon!$B127,'Crop 1'!$L$21*VLOOKUP('Crop 1'!$E$21,Carbon!$AH$4:$AI$10,2,FALSE),0)+IF('Crop 1'!$C$49=Carbon!$B127,'Crop 1'!$L$49*VLOOKUP('Crop 1'!$E$49,Carbon!$AH$4:$AI$10,2,FALSE),0)+IF('Crop 1'!$C$50=Carbon!$B127,'Crop 1'!$L$50*VLOOKUP('Crop 1'!$E$50,Carbon!$AH$4:$AI$10,2,FALSE),0)+IF('Crop 1'!$C$51=Carbon!$B127,'Crop 1'!$L$51*VLOOKUP('Crop 1'!$E$51,Carbon!$AH$4:$AI$10,2,FALSE),0)+IF('Crop 1'!$C$52=Carbon!$B127,'Crop 1'!$L$52*VLOOKUP('Crop 1'!$E$52,Carbon!$AH$4:$AI$10,2,FALSE),0)+IF('Crop 1'!$C$53=Carbon!$B127,'Crop 1'!$L$53*VLOOKUP('Crop 1'!$E$53,Carbon!$AH$4:$AI$10,2,FALSE),0)+IF('Crop 1'!$C$56=Carbon!$B127,'Crop 1'!$L$56*VLOOKUP('Crop 1'!$E$56,Carbon!$AH$4:$AI$10,2,FALSE),0)+IF('Crop 1'!$C$57=Carbon!$B127,'Crop 1'!$L$57*VLOOKUP('Crop 1'!$E$57,Carbon!$AH$4:$AI$10,2,FALSE),0)+IF('Crop 1'!$C$58=Carbon!$B127,'Crop 1'!$L$58*VLOOKUP('Crop 1'!$E$58,Carbon!$AH$4:$AI$10,2,FALSE),0)+IF('Crop 1'!$C$59=Carbon!$B127,'Crop 1'!$L$59*VLOOKUP('Crop 1'!$E$59,Carbon!$AH$4:$AI$10,2,FALSE),0)+IF('Crop 1'!$C$62=Carbon!$B127,'Crop 1'!$L$62*VLOOKUP('Crop 1'!$E$62,Carbon!$AH$4:$AI$10,2,FALSE),0)+IF('Crop 1'!$C$63=Carbon!$B127,'Crop 1'!$L$63*VLOOKUP('Crop 1'!$E$63,Carbon!$AH$4:$AI$10,2,FALSE),0)+IF('Crop 1'!$C$64=Carbon!$B127,'Crop 1'!$L$64*VLOOKUP('Crop 1'!$E$64,Carbon!$AH$4:$AI$10,2,FALSE),0)+IF('Crop 1'!$C$65=Carbon!$B127,'Crop 1'!$L$65*VLOOKUP('Crop 1'!$E$65,Carbon!$AH$4:$AI$10,2,FALSE),0))*$AL$20,2)","v":0},{"$f":"C127*Inputs!$D$13","v":0},{"$f":"ROUND((IF('Crop 2'!$C$14=Carbon!$B127,'Crop 2'!$L$14*VLOOKUP('Crop 2'!$E$14,Carbon!$AH$4:$AI$10,2,FALSE),0)+IF('Crop 2'!$C$15=Carbon!$B127,'Crop 2'!$L$15*VLOOKUP('Crop 2'!$E$15,Carbon!$AH$4:$AI$10,2,FALSE),0)+IF('Crop 2'!$C$16=Carbon!$B127,'Crop 2'!$L$16*VLOOKUP('Crop 2'!$E$16,Carbon!$AH$4:$AI$10,2,FALSE),0)+IF('Crop 2'!$C$19=Carbon!$B127,'Crop 2'!$L$19*VLOOKUP('Crop 2'!$E$19,Carbon!$AH$4:$AI$10,2,FALSE),0)+IF('Crop 2'!$C$20=Carbon!$B127,'Crop 2'!$L$20*VLOOKUP('Crop 2'!$E$20,Carbon!$AH$4:$AI$10,2,FALSE),0)+IF('Crop 2'!$C$21=Carbon!$B127,'Crop 2'!$L$21*VLOOKUP('Crop 2'!$E$21,Carbon!$AH$4:$AI$10,2,FALSE),0)+IF('Crop 2'!$C$49=Carbon!$B127,'Crop 2'!$L$49*VLOOKUP('Crop 2'!$E$49,Carbon!$AH$4:$AI$10,2,FALSE),0)+IF('Crop 2'!$C$50=Carbon!$B127,'Crop 2'!$L$50*VLOOKUP('Crop 2'!$E$50,Carbon!$AH$4:$AI$10,2,FALSE),0)+IF('Crop 2'!$C$51=Carbon!$B127,'Crop 2'!$L$51*VLOOKUP('Crop 2'!$E$51,Carbon!$AH$4:$AI$10,2,FALSE),0)+IF('Crop 2'!$C$52=Carbon!$B127,'Crop 2'!$L$52*VLOOKUP('Crop 2'!$E$52,Carbon!$AH$4:$AI$10,2,FALSE),0)+IF('Crop 2'!$C$53=Carbon!$B127,'Crop 2'!$L$53*VLOOKUP('Crop 2'!$E$53,Carbon!$AH$4:$AI$10,2,FALSE),0)+IF('Crop 2'!$C$56=Carbon!$B127,'Crop 2'!$L$56*VLOOKUP('Crop 2'!$E$56,Carbon!$AH$4:$AI$10,2,FALSE),0)+IF('Crop 2'!$C$57=Carbon!$B127,'Crop 2'!$L$57*VLOOKUP('Crop 2'!$E$57,Carbon!$AH$4:$AI$10,2,FALSE),0)+IF('Crop 2'!$C$58=Carbon!$B127,'Crop 2'!$L$58*VLOOKUP('Crop 2'!$E$58,Carbon!$AH$4:$AI$10,2,FALSE),0)+IF('Crop 2'!$C$59=Carbon!$B127,'Crop 2'!$L$59*VLOOKUP('Crop 2'!$E$59,Carbon!$AH$4:$AI$10,2,FALSE),0)+IF('Crop 2'!$C$62=Carbon!$B127,'Crop 2'!$L$62*VLOOKUP('Crop 2'!$E$62,Carbon!$AH$4:$AI$10,2,FALSE),0)+IF('Crop 2'!$C$63=Carbon!$B127,'Crop 2'!$L$63*VLOOKUP('Crop 2'!$E$63,Carbon!$AH$4:$AI$10,2,FALSE),0)+IF('Crop 2'!$C$64=Carbon!$B127,'Crop 2'!$L$64*VLOOKUP('Crop 2'!$E$64,Carbon!$AH$4:$AI$10,2,FALSE),0)+IF('Crop 2'!$C$65=Carbon!$B127,'Crop 2'!$L$65*VLOOKUP('Crop 2'!$E$65,Carbon!$AH$4:$AI$10,2,FALSE),0))*$AL$20,2)","v":0},{"$f":"E127*Inputs!$D$15","v":0},{"$f":"ROUND((IF('Crop 3'!$C$14=Carbon!$B127,'Crop 3'!$L$14*VLOOKUP('Crop 3'!$E$14,Carbon!$AH$4:$AI$10,2,FALSE),0)+IF('Crop 3'!$C$15=Carbon!$B127,'Crop 3'!$L$15*VLOOKUP('Crop 3'!$E$15,Carbon!$AH$4:$AI$10,2,FALSE),0)+IF('Crop 3'!$C$16=Carbon!$B127,'Crop 3'!$L$16*VLOOKUP('Crop 3'!$E$16,Carbon!$AH$4:$AI$10,2,FALSE),0)+IF('Crop 3'!$C$19=Carbon!$B127,'Crop 3'!$L$19*VLOOKUP('Crop 3'!$E$19,Carbon!$AH$4:$AI$10,2,FALSE),0)+IF('Crop 3'!$C$20=Carbon!$B127,'Crop 3'!$L$20*VLOOKUP('Crop 3'!$E$20,Carbon!$AH$4:$AI$10,2,FALSE),0)+IF('Crop 3'!$C$21=Carbon!$B127,'Crop 3'!$L$21*VLOOKUP('Crop 3'!$E$21,Carbon!$AH$4:$AI$10,2,FALSE),0)+IF('Crop 3'!$C$49=Carbon!$B127,'Crop 3'!$L$49*VLOOKUP('Crop 3'!$E$49,Carbon!$AH$4:$AI$10,2,FALSE),0)+IF('Crop 3'!$C$50=Carbon!$B127,'Crop 3'!$L$50*VLOOKUP('Crop 3'!$E$50,Carbon!$AH$4:$AI$10,2,FALSE),0)+IF('Crop 3'!$C$51=Carbon!$B127,'Crop 3'!$L$51*VLOOKUP('Crop 3'!$E$51,Carbon!$AH$4:$AI$10,2,FALSE),0)+IF('Crop 3'!$C$52=Carbon!$B127,'Crop 3'!$L$52*VLOOKUP('Crop 3'!$E$52,Carbon!$AH$4:$AI$10,2,FALSE),0)+IF('Crop 3'!$C$53=Carbon!$B127,'Crop 3'!$L$53*VLOOKUP('Crop 3'!$E$53,Carbon!$AH$4:$AI$10,2,FALSE),0)+IF('Crop 3'!$C$56=Carbon!$B127,'Crop 3'!$L$56*VLOOKUP('Crop 3'!$E$56,Carbon!$AH$4:$AI$10,2,FALSE),0)+IF('Crop 3'!$C$57=Carbon!$B127,'Crop 3'!$L$57*VLOOKUP('Crop 3'!$E$57,Carbon!$AH$4:$AI$10,2,FALSE),0)+IF('Crop 3'!$C$58=Carbon!$B127,'Crop 3'!$L$58*VLOOKUP('Crop 3'!$E$58,Carbon!$AH$4:$AI$10,2,FALSE),0)+IF('Crop 3'!$C$59=Carbon!$B127,'Crop 3'!$L$59*VLOOKUP('Crop 3'!$E$59,Carbon!$AH$4:$AI$10,2,FALSE),0)+IF('Crop 3'!$C$62=Carbon!$B127,'Crop 3'!$L$62*VLOOKUP('Crop 3'!$E$62,Carbon!$AH$4:$AI$10,2,FALSE),0)+IF('Crop 3'!$C$63=Carbon!$B127,'Crop 3'!$L$63*VLOOKUP('Crop 3'!$E$63,Carbon!$AH$4:$AI$10,2,FALSE),0)+IF('Crop 3'!$C$64=Carbon!$B127,'Crop 3'!$L$64*VLOOKUP('Crop 3'!$E$64,Carbon!$AH$4:$AI$10,2,FALSE),0)+IF('Crop 3'!$C$65=Carbon!$B127,'Crop 3'!$L$65*VLOOKUP('Crop 3'!$E$65,Carbon!$AH$4:$AI$10,2,FALSE),0))*$AL$20,2)","v":0},{"$f":"G127*Inputs!$D$17","v":0},{"$f":"ROUND(J127/Inputs!D$19,2)","v":0},0,null,null,{"$f":"ROUND((IF('Crop 1'!$C$14=Carbon!$B127,'Crop 1'!$V$14*VLOOKUP('Crop 1'!$E$14,Carbon!$AH$4:$AI$10,2,FALSE),0)+IF('Crop 1'!$C$15=Carbon!$B127,'Crop 1'!$V$15*VLOOKUP('Crop 1'!$E$15,Carbon!$AH$4:$AI$10,2,FALSE),0)+IF('Crop 1'!$C$16=Carbon!$B127,'Crop 1'!$V$16*VLOOKUP('Crop 1'!$E$16,Carbon!$AH$4:$AI$10,2,FALSE),0)+IF('Crop 1'!$C$19=Carbon!$B127,'Crop 1'!$V$19*VLOOKUP('Crop 1'!$E$19,Carbon!$AH$4:$AI$10,2,FALSE),0)+IF('Crop 1'!$C$20=Carbon!$B127,'Crop 1'!$V$20*VLOOKUP('Crop 1'!$E$20,Carbon!$AH$4:$AI$10,2,FALSE),0)+IF('Crop 1'!$C$21=Carbon!$B127,'Crop 1'!$V$21*VLOOKUP('Crop 1'!$E$21,Carbon!$AH$4:$AI$10,2,FALSE),0)+IF('Crop 1'!$C$49=Carbon!$B127,'Crop 1'!$V$49*VLOOKUP('Crop 1'!$E$49,Carbon!$AH$4:$AI$10,2,FALSE),0)+IF('Crop 1'!$C$50=Carbon!$B127,'Crop 1'!$V$50*VLOOKUP('Crop 1'!$E$50,Carbon!$AH$4:$AI$10,2,FALSE),0)+IF('Crop 1'!$C$51=Carbon!$B127,'Crop 1'!$V$51*VLOOKUP('Crop 1'!$E$51,Carbon!$AH$4:$AI$10,2,FALSE),0)+IF('Crop 1'!$C$52=Carbon!$B127,'Crop 1'!$V$52*VLOOKUP('Crop 1'!$E$52,Carbon!$AH$4:$AI$10,2,FALSE),0)+IF('Crop 1'!$C$53=Carbon!$B127,'Crop 1'!$V$53*VLOOKUP('Crop 1'!$E$53,Carbon!$AH$4:$AI$10,2,FALSE),0)+IF('Crop 1'!$C$56=Carbon!$B127,'Crop 1'!$V$56*VLOOKUP('Crop 1'!$E$56,Carbon!$AH$4:$AI$10,2,FALSE),0)+IF('Crop 1'!$C$57=Carbon!$B127,'Crop 1'!$V$57*VLOOKUP('Crop 1'!$E$57,Carbon!$AH$4:$AI$10,2,FALSE),0)+IF('Crop 1'!$C$58=Carbon!$B127,'Crop 1'!$V$58*VLOOKUP('Crop 1'!$E$58,Carbon!$AH$4:$AI$10,2,FALSE),0)+IF('Crop 1'!$C$59=Carbon!$B127,'Crop 1'!$V$59*VLOOKUP('Crop 1'!$E$59,Carbon!$AH$4:$AI$10,2,FALSE),0)+IF('Crop 1'!$C$62=Carbon!$B127,'Crop 1'!$V$62*VLOOKUP('Crop 1'!$E$62,Carbon!$AH$4:$AI$10,2,FALSE),0)+IF('Crop 1'!$C$63=Carbon!$B127,'Crop 1'!$V$63*VLOOKUP('Crop 1'!$E$63,Carbon!$AH$4:$AI$10,2,FALSE),0)+IF('Crop 1'!$C$64=Carbon!$B127,'Crop 1'!$V$64*VLOOKUP('Crop 1'!$E$64,Carbon!$AH$4:$AI$10,2,FALSE),0)+IF('Crop 1'!$C$65=Carbon!$B127,'Crop 1'!$V$65*VLOOKUP('Crop 1'!$E$65,Carbon!$AH$4:$AI$10,2,FALSE),0))*$AL$20,2)","v":0},{"$f":"M127*Inputs!$D$13","v":0},{"$f":"ROUND((IF('Crop 2'!$C$14=Carbon!$B127,'Crop 2'!$V$14*VLOOKUP('Crop 2'!$E$14,Carbon!$AH$4:$AI$10,2,FALSE),0)+IF('Crop 2'!$C$15=Carbon!$B127,'Crop 2'!$V$15*VLOOKUP('Crop 2'!$E$15,Carbon!$AH$4:$AI$10,2,FALSE),0)+IF('Crop 2'!$C$16=Carbon!$B127,'Crop 2'!$V$16*VLOOKUP('Crop 2'!$E$16,Carbon!$AH$4:$AI$10,2,FALSE),0)+IF('Crop 2'!$C$19=Carbon!$B127,'Crop 2'!$V$19*VLOOKUP('Crop 2'!$E$19,Carbon!$AH$4:$AI$10,2,FALSE),0)+IF('Crop 2'!$C$20=Carbon!$B127,'Crop 2'!$V$20*VLOOKUP('Crop 2'!$E$20,Carbon!$AH$4:$AI$10,2,FALSE),0)+IF('Crop 2'!$C$21=Carbon!$B127,'Crop 2'!$V$21*VLOOKUP('Crop 2'!$E$21,Carbon!$AH$4:$AI$10,2,FALSE),0)+IF('Crop 2'!$C$49=Carbon!$B127,'Crop 2'!$V$49*VLOOKUP('Crop 2'!$E$49,Carbon!$AH$4:$AI$10,2,FALSE),0)+IF('Crop 2'!$C$50=Carbon!$B127,'Crop 2'!$V$50*VLOOKUP('Crop 2'!$E$50,Carbon!$AH$4:$AI$10,2,FALSE),0)+IF('Crop 2'!$C$51=Carbon!$B127,'Crop 2'!$V$51*VLOOKUP('Crop 2'!$E$51,Carbon!$AH$4:$AI$10,2,FALSE),0)+IF('Crop 2'!$C$52=Carbon!$B127,'Crop 2'!$V$52*VLOOKUP('Crop 2'!$E$52,Carbon!$AH$4:$AI$10,2,FALSE),0)+IF('Crop 2'!$C$53=Carbon!$B127,'Crop 2'!$V$53*VLOOKUP('Crop 2'!$E$53,Carbon!$AH$4:$AI$10,2,FALSE),0)+IF('Crop 2'!$C$56=Carbon!$B127,'Crop 2'!$V$56*VLOOKUP('Crop 2'!$E$56,Carbon!$AH$4:$AI$10,2,FALSE),0)+IF('Crop 2'!$C$57=Carbon!$B127,'Crop 2'!$V$57*VLOOKUP('Crop 2'!$E$57,Carbon!$AH$4:$AI$10,2,FALSE),0)+IF('Crop 2'!$C$58=Carbon!$B127,'Crop 2'!$V$58*VLOOKUP('Crop 2'!$E$58,Carbon!$AH$4:$AI$10,2,FALSE),0)+IF('Crop 2'!$C$59=Carbon!$B127,'Crop 2'!$V$59*VLOOKUP('Crop 2'!$E$59,Carbon!$AH$4:$AI$10,2,FALSE),0)+IF('Crop 2'!$C$62=Carbon!$B127,'Crop 2'!$V$62*VLOOKUP('Crop 2'!$E$62,Carbon!$AH$4:$AI$10,2,FALSE),0)+IF('Crop 2'!$C$63=Carbon!$B127,'Crop 2'!$V$63*VLOOKUP('Crop 2'!$E$63,Carbon!$AH$4:$AI$10,2,FALSE),0)+IF('Crop 2'!$C$64=Carbon!$B127,'Crop 2'!$V$64*VLOOKUP('Crop 2'!$E$64,Carbon!$AH$4:$AI$10,2,FALSE),0)+IF('Crop 2'!$C$65=Carbon!$B127,'Crop 2'!$V$65*VLOOKUP('Crop 2'!$E$65,Carbon!$AH$4:$AI$10,2,FALSE),0))*$AL$20,2)","v":0},{"$f":"O127*Inputs!$D$15","v":0},{"$f":"ROUND((IF('Crop 3'!$C$14=Carbon!$B127,'Crop 3'!$V$14*VLOOKUP('Crop 3'!$E$14,Carbon!$AH$4:$AI$10,2,FALSE),0)+IF('Crop 3'!$C$15=Carbon!$B127,'Crop 3'!$V$15*VLOOKUP('Crop 3'!$E$15,Carbon!$AH$4:$AI$10,2,FALSE),0)+IF('Crop 3'!$C$16=Carbon!$B127,'Crop 3'!$V$16*VLOOKUP('Crop 3'!$E$16,Carbon!$AH$4:$AI$10,2,FALSE),0)+IF('Crop 3'!$C$19=Carbon!$B127,'Crop 3'!$V$19*VLOOKUP('Crop 3'!$E$19,Carbon!$AH$4:$AI$10,2,FALSE),0)+IF('Crop 3'!$C$20=Carbon!$B127,'Crop 3'!$V$20*VLOOKUP('Crop 3'!$E$20,Carbon!$AH$4:$AI$10,2,FALSE),0)+IF('Crop 3'!$C$21=Carbon!$B127,'Crop 3'!$V$21*VLOOKUP('Crop 3'!$E$21,Carbon!$AH$4:$AI$10,2,FALSE),0)+IF('Crop 3'!$C$49=Carbon!$B127,'Crop 3'!$V$49*VLOOKUP('Crop 3'!$E$49,Carbon!$AH$4:$AI$10,2,FALSE),0)+IF('Crop 3'!$C$50=Carbon!$B127,'Crop 3'!$V$50*VLOOKUP('Crop 3'!$E$50,Carbon!$AH$4:$AI$10,2,FALSE),0)+IF('Crop 3'!$C$51=Carbon!$B127,'Crop 3'!$V$51*VLOOKUP('Crop 3'!$E$51,Carbon!$AH$4:$AI$10,2,FALSE),0)+IF('Crop 3'!$C$52=Carbon!$B127,'Crop 3'!$V$52*VLOOKUP('Crop 3'!$E$52,Carbon!$AH$4:$AI$10,2,FALSE),0)+IF('Crop 3'!$C$53=Carbon!$B127,'Crop 3'!$V$53*VLOOKUP('Crop 3'!$E$53,Carbon!$AH$4:$AI$10,2,FALSE),0)+IF('Crop 3'!$C$56=Carbon!$B127,'Crop 3'!$V$56*VLOOKUP('Crop 3'!$E$56,Carbon!$AH$4:$AI$10,2,FALSE),0)+IF('Crop 3'!$C$57=Carbon!$B127,'Crop 3'!$V$57*VLOOKUP('Crop 3'!$E$57,Carbon!$AH$4:$AI$10,2,FALSE),0)+IF('Crop 3'!$C$58=Carbon!$B127,'Crop 3'!$V$58*VLOOKUP('Crop 3'!$E$58,Carbon!$AH$4:$AI$10,2,FALSE),0)+IF('Crop 3'!$C$59=Carbon!$B127,'Crop 3'!$V$59*VLOOKUP('Crop 3'!$E$59,Carbon!$AH$4:$AI$10,2,FALSE),0)+IF('Crop 3'!$C$62=Carbon!$B127,'Crop 3'!$V$62*VLOOKUP('Crop 3'!$E$62,Carbon!$AH$4:$AI$10,2,FALSE),0)+IF('Crop 3'!$C$63=Carbon!$B127,'Crop 3'!$V$63*VLOOKUP('Crop 3'!$E$63,Carbon!$AH$4:$AI$10,2,FALSE),0)+IF('Crop 3'!$C$64=Carbon!$B127,'Crop 3'!$V$64*VLOOKUP('Crop 3'!$E$64,Carbon!$AH$4:$AI$10,2,FALSE),0)+IF('Crop 3'!$C$65=Carbon!$B127,'Crop 3'!$V$65*VLOOKUP('Crop 3'!$E$65,Carbon!$AH$4:$AI$10,2,FALSE),0))*$AL$20,2)","v":0},{"$f":"Q127*Inputs!$D$17","v":0},{"$f":"ROUND(T127/Inputs!D$19,2)","v":0},0,null,null,0,{"$f":"W127*Inputs!$D$13","v":0},0,{"$f":"Y127*Inputs!$D$13","v":0},0,{"$f":"AA127*Inputs!$D$13","v":0},{"$f":"ROUND(AD127/Inputs!D$19,2)","v":0},0]
[null,{"$f":"Defaults!AH94","v":"Prowl"},{"$f":"ROUND((IF('Crop 1'!$C$14=Carbon!$B128,'Crop 1'!$L$14*VLOOKUP('Crop 1'!$E$14,Carbon!$AH$4:$AI$10,2,FALSE),0)+IF('Crop 1'!$C$15=Carbon!$B128,'Crop 1'!$L$15*VLOOKUP('Crop 1'!$E$15,Carbon!$AH$4:$AI$10,2,FALSE),0)+IF('Crop 1'!$C$16=Carbon!$B128,'Crop 1'!$L$16*VLOOKUP('Crop 1'!$E$16,Carbon!$AH$4:$AI$10,2,FALSE),0)+IF('Crop 1'!$C$19=Carbon!$B128,'Crop 1'!$L$19*VLOOKUP('Crop 1'!$E$19,Carbon!$AH$4:$AI$10,2,FALSE),0)+IF('Crop 1'!$C$20=Carbon!$B128,'Crop 1'!$L$20*VLOOKUP('Crop 1'!$E$20,Carbon!$AH$4:$AI$10,2,FALSE),0)+IF('Crop 1'!$C$21=Carbon!$B128,'Crop 1'!$L$21*VLOOKUP('Crop 1'!$E$21,Carbon!$AH$4:$AI$10,2,FALSE),0)+IF('Crop 1'!$C$49=Carbon!$B128,'Crop 1'!$L$49*VLOOKUP('Crop 1'!$E$49,Carbon!$AH$4:$AI$10,2,FALSE),0)+IF('Crop 1'!$C$50=Carbon!$B128,'Crop 1'!$L$50*VLOOKUP('Crop 1'!$E$50,Carbon!$AH$4:$AI$10,2,FALSE),0)+IF('Crop 1'!$C$51=Carbon!$B128,'Crop 1'!$L$51*VLOOKUP('Crop 1'!$E$51,Carbon!$AH$4:$AI$10,2,FALSE),0)+IF('Crop 1'!$C$52=Carbon!$B128,'Crop 1'!$L$52*VLOOKUP('Crop 1'!$E$52,Carbon!$AH$4:$AI$10,2,FALSE),0)+IF('Crop 1'!$C$53=Carbon!$B128,'Crop 1'!$L$53*VLOOKUP('Crop 1'!$E$53,Carbon!$AH$4:$AI$10,2,FALSE),0)+IF('Crop 1'!$C$56=Carbon!$B128,'Crop 1'!$L$56*VLOOKUP('Crop 1'!$E$56,Carbon!$AH$4:$AI$10,2,FALSE),0)+IF('Crop 1'!$C$57=Carbon!$B128,'Crop 1'!$L$57*VLOOKUP('Crop 1'!$E$57,Carbon!$AH$4:$AI$10,2,FALSE),0)+IF('Crop 1'!$C$58=Carbon!$B128,'Crop 1'!$L$58*VLOOKUP('Crop 1'!$E$58,Carbon!$AH$4:$AI$10,2,FALSE),0)+IF('Crop 1'!$C$59=Carbon!$B128,'Crop 1'!$L$59*VLOOKUP('Crop 1'!$E$59,Carbon!$AH$4:$AI$10,2,FALSE),0)+IF('Crop 1'!$C$62=Carbon!$B128,'Crop 1'!$L$62*VLOOKUP('Crop 1'!$E$62,Carbon!$AH$4:$AI$10,2,FALSE),0)+IF('Crop 1'!$C$63=Carbon!$B128,'Crop 1'!$L$63*VLOOKUP('Crop 1'!$E$63,Carbon!$AH$4:$AI$10,2,FALSE),0)+IF('Crop 1'!$C$64=Carbon!$B128,'Crop 1'!$L$64*VLOOKUP('Crop 1'!$E$64,Carbon!$AH$4:$AI$10,2,FALSE),0)+IF('Crop 1'!$C$65=Carbon!$B128,'Crop 1'!$L$65*VLOOKUP('Crop 1'!$E$65,Carbon!$AH$4:$AI$10,2,FALSE),0))*$AL$20,2)","v":0},{"$f":"C128*Inputs!$D$13","v":0},{"$f":"ROUND((IF('Crop 2'!$C$14=Carbon!$B128,'Crop 2'!$L$14*VLOOKUP('Crop 2'!$E$14,Carbon!$AH$4:$AI$10,2,FALSE),0)+IF('Crop 2'!$C$15=Carbon!$B128,'Crop 2'!$L$15*VLOOKUP('Crop 2'!$E$15,Carbon!$AH$4:$AI$10,2,FALSE),0)+IF('Crop 2'!$C$16=Carbon!$B128,'Crop 2'!$L$16*VLOOKUP('Crop 2'!$E$16,Carbon!$AH$4:$AI$10,2,FALSE),0)+IF('Crop 2'!$C$19=Carbon!$B128,'Crop 2'!$L$19*VLOOKUP('Crop 2'!$E$19,Carbon!$AH$4:$AI$10,2,FALSE),0)+IF('Crop 2'!$C$20=Carbon!$B128,'Crop 2'!$L$20*VLOOKUP('Crop 2'!$E$20,Carbon!$AH$4:$AI$10,2,FALSE),0)+IF('Crop 2'!$C$21=Carbon!$B128,'Crop 2'!$L$21*VLOOKUP('Crop 2'!$E$21,Carbon!$AH$4:$AI$10,2,FALSE),0)+IF('Crop 2'!$C$49=Carbon!$B128,'Crop 2'!$L$49*VLOOKUP('Crop 2'!$E$49,Carbon!$AH$4:$AI$10,2,FALSE),0)+IF('Crop 2'!$C$50=Carbon!$B128,'Crop 2'!$L$50*VLOOKUP('Crop 2'!$E$50,Carbon!$AH$4:$AI$10,2,FALSE),0)+IF('Crop 2'!$C$51=Carbon!$B128,'Crop 2'!$L$51*VLOOKUP('Crop 2'!$E$51,Carbon!$AH$4:$AI$10,2,FALSE),0)+IF('Crop 2'!$C$52=Carbon!$B128,'Crop 2'!$L$52*VLOOKUP('Crop 2'!$E$52,Carbon!$AH$4:$AI$10,2,FALSE),0)+IF('Crop 2'!$C$53=Carbon!$B128,'Crop 2'!$L$53*VLOOKUP('Crop 2'!$E$53,Carbon!$AH$4:$AI$10,2,FALSE),0)+IF('Crop 2'!$C$56=Carbon!$B128,'Crop 2'!$L$56*VLOOKUP('Crop 2'!$E$56,Carbon!$AH$4:$AI$10,2,FALSE),0)+IF('Crop 2'!$C$57=Carbon!$B128,'Crop 2'!$L$57*VLOOKUP('Crop 2'!$E$57,Carbon!$AH$4:$AI$10,2,FALSE),0)+IF('Crop 2'!$C$58=Carbon!$B128,'Crop 2'!$L$58*VLOOKUP('Crop 2'!$E$58,Carbon!$AH$4:$AI$10,2,FALSE),0)+IF('Crop 2'!$C$59=Carbon!$B128,'Crop 2'!$L$59*VLOOKUP('Crop 2'!$E$59,Carbon!$AH$4:$AI$10,2,FALSE),0)+IF('Crop 2'!$C$62=Carbon!$B128,'Crop 2'!$L$62*VLOOKUP('Crop 2'!$E$62,Carbon!$AH$4:$AI$10,2,FALSE),0)+IF('Crop 2'!$C$63=Carbon!$B128,'Crop 2'!$L$63*VLOOKUP('Crop 2'!$E$63,Carbon!$AH$4:$AI$10,2,FALSE),0)+IF('Crop 2'!$C$64=Carbon!$B128,'Crop 2'!$L$64*VLOOKUP('Crop 2'!$E$64,Carbon!$AH$4:$AI$10,2,FALSE),0)+IF('Crop 2'!$C$65=Carbon!$B128,'Crop 2'!$L$65*VLOOKUP('Crop 2'!$E$65,Carbon!$AH$4:$AI$10,2,FALSE),0))*$AL$20,2)","v":0},{"$f":"E128*Inputs!$D$15","v":0},{"$f":"ROUND((IF('Crop 3'!$C$14=Carbon!$B128,'Crop 3'!$L$14*VLOOKUP('Crop 3'!$E$14,Carbon!$AH$4:$AI$10,2,FALSE),0)+IF('Crop 3'!$C$15=Carbon!$B128,'Crop 3'!$L$15*VLOOKUP('Crop 3'!$E$15,Carbon!$AH$4:$AI$10,2,FALSE),0)+IF('Crop 3'!$C$16=Carbon!$B128,'Crop 3'!$L$16*VLOOKUP('Crop 3'!$E$16,Carbon!$AH$4:$AI$10,2,FALSE),0)+IF('Crop 3'!$C$19=Carbon!$B128,'Crop 3'!$L$19*VLOOKUP('Crop 3'!$E$19,Carbon!$AH$4:$AI$10,2,FALSE),0)+IF('Crop 3'!$C$20=Carbon!$B128,'Crop 3'!$L$20*VLOOKUP('Crop 3'!$E$20,Carbon!$AH$4:$AI$10,2,FALSE),0)+IF('Crop 3'!$C$21=Carbon!$B128,'Crop 3'!$L$21*VLOOKUP('Crop 3'!$E$21,Carbon!$AH$4:$AI$10,2,FALSE),0)+IF('Crop 3'!$C$49=Carbon!$B128,'Crop 3'!$L$49*VLOOKUP('Crop 3'!$E$49,Carbon!$AH$4:$AI$10,2,FALSE),0)+IF('Crop 3'!$C$50=Carbon!$B128,'Crop 3'!$L$50*VLOOKUP('Crop 3'!$E$50,Carbon!$AH$4:$AI$10,2,FALSE),0)+IF('Crop 3'!$C$51=Carbon!$B128,'Crop 3'!$L$51*VLOOKUP('Crop 3'!$E$51,Carbon!$AH$4:$AI$10,2,FALSE),0)+IF('Crop 3'!$C$52=Carbon!$B128,'Crop 3'!$L$52*VLOOKUP('Crop 3'!$E$52,Carbon!$AH$4:$AI$10,2,FALSE),0)+IF('Crop 3'!$C$53=Carbon!$B128,'Crop 3'!$L$53*VLOOKUP('Crop 3'!$E$53,Carbon!$AH$4:$AI$10,2,FALSE),0)+IF('Crop 3'!$C$56=Carbon!$B128,'Crop 3'!$L$56*VLOOKUP('Crop 3'!$E$56,Carbon!$AH$4:$AI$10,2,FALSE),0)+IF('Crop 3'!$C$57=Carbon!$B128,'Crop 3'!$L$57*VLOOKUP('Crop 3'!$E$57,Carbon!$AH$4:$AI$10,2,FALSE),0)+IF('Crop 3'!$C$58=Carbon!$B128,'Crop 3'!$L$58*VLOOKUP('Crop 3'!$E$58,Carbon!$AH$4:$AI$10,2,FALSE),0)+IF('Crop 3'!$C$59=Carbon!$B128,'Crop 3'!$L$59*VLOOKUP('Crop 3'!$E$59,Carbon!$AH$4:$AI$10,2,FALSE),0)+IF('Crop 3'!$C$62=Carbon!$B128,'Crop 3'!$L$62*VLOOKUP('Crop 3'!$E$62,Carbon!$AH$4:$AI$10,2,FALSE),0)+IF('Crop 3'!$C$63=Carbon!$B128,'Crop 3'!$L$63*VLOOKUP('Crop 3'!$E$63,Carbon!$AH$4:$AI$10,2,FALSE),0)+IF('Crop 3'!$C$64=Carbon!$B128,'Crop 3'!$L$64*VLOOKUP('Crop 3'!$E$64,Carbon!$AH$4:$AI$10,2,FALSE),0)+IF('Crop 3'!$C$65=Carbon!$B128,'Crop 3'!$L$65*VLOOKUP('Crop 3'!$E$65,Carbon!$AH$4:$AI$10,2,FALSE),0))*$AL$20,2)","v":0},{"$f":"G128*Inputs!$D$17","v":0},{"$f":"ROUND(J128/Inputs!D$19,2)","v":0},0,null,null,{"$f":"ROUND((IF('Crop 1'!$C$14=Carbon!$B128,'Crop 1'!$V$14*VLOOKUP('Crop 1'!$E$14,Carbon!$AH$4:$AI$10,2,FALSE),0)+IF('Crop 1'!$C$15=Carbon!$B128,'Crop 1'!$V$15*VLOOKUP('Crop 1'!$E$15,Carbon!$AH$4:$AI$10,2,FALSE),0)+IF('Crop 1'!$C$16=Carbon!$B128,'Crop 1'!$V$16*VLOOKUP('Crop 1'!$E$16,Carbon!$AH$4:$AI$10,2,FALSE),0)+IF('Crop 1'!$C$19=Carbon!$B128,'Crop 1'!$V$19*VLOOKUP('Crop 1'!$E$19,Carbon!$AH$4:$AI$10,2,FALSE),0)+IF('Crop 1'!$C$20=Carbon!$B128,'Crop 1'!$V$20*VLOOKUP('Crop 1'!$E$20,Carbon!$AH$4:$AI$10,2,FALSE),0)+IF('Crop 1'!$C$21=Carbon!$B128,'Crop 1'!$V$21*VLOOKUP('Crop 1'!$E$21,Carbon!$AH$4:$AI$10,2,FALSE),0)+IF('Crop 1'!$C$49=Carbon!$B128,'Crop 1'!$V$49*VLOOKUP('Crop 1'!$E$49,Carbon!$AH$4:$AI$10,2,FALSE),0)+IF('Crop 1'!$C$50=Carbon!$B128,'Crop 1'!$V$50*VLOOKUP('Crop 1'!$E$50,Carbon!$AH$4:$AI$10,2,FALSE),0)+IF('Crop 1'!$C$51=Carbon!$B128,'Crop 1'!$V$51*VLOOKUP('Crop 1'!$E$51,Carbon!$AH$4:$AI$10,2,FALSE),0)+IF('Crop 1'!$C$52=Carbon!$B128,'Crop 1'!$V$52*VLOOKUP('Crop 1'!$E$52,Carbon!$AH$4:$AI$10,2,FALSE),0)+IF('Crop 1'!$C$53=Carbon!$B128,'Crop 1'!$V$53*VLOOKUP('Crop 1'!$E$53,Carbon!$AH$4:$AI$10,2,FALSE),0)+IF('Crop 1'!$C$56=Carbon!$B128,'Crop 1'!$V$56*VLOOKUP('Crop 1'!$E$56,Carbon!$AH$4:$AI$10,2,FALSE),0)+IF('Crop 1'!$C$57=Carbon!$B128,'Crop 1'!$V$57*VLOOKUP('Crop 1'!$E$57,Carbon!$AH$4:$AI$10,2,FALSE),0)+IF('Crop 1'!$C$58=Carbon!$B128,'Crop 1'!$V$58*VLOOKUP('Crop 1'!$E$58,Carbon!$AH$4:$AI$10,2,FALSE),0)+IF('Crop 1'!$C$59=Carbon!$B128,'Crop 1'!$V$59*VLOOKUP('Crop 1'!$E$59,Carbon!$AH$4:$AI$10,2,FALSE),0)+IF('Crop 1'!$C$62=Carbon!$B128,'Crop 1'!$V$62*VLOOKUP('Crop 1'!$E$62,Carbon!$AH$4:$AI$10,2,FALSE),0)+IF('Crop 1'!$C$63=Carbon!$B128,'Crop 1'!$V$63*VLOOKUP('Crop 1'!$E$63,Carbon!$AH$4:$AI$10,2,FALSE),0)+IF('Crop 1'!$C$64=Carbon!$B128,'Crop 1'!$V$64*VLOOKUP('Crop 1'!$E$64,Carbon!$AH$4:$AI$10,2,FALSE),0)+IF('Crop 1'!$C$65=Carbon!$B128,'Crop 1'!$V$65*VLOOKUP('Crop 1'!$E$65,Carbon!$AH$4:$AI$10,2,FALSE),0))*$AL$20,2)","v":0},{"$f":"M128*Inputs!$D$13","v":0},{"$f":"ROUND((IF('Crop 2'!$C$14=Carbon!$B128,'Crop 2'!$V$14*VLOOKUP('Crop 2'!$E$14,Carbon!$AH$4:$AI$10,2,FALSE),0)+IF('Crop 2'!$C$15=Carbon!$B128,'Crop 2'!$V$15*VLOOKUP('Crop 2'!$E$15,Carbon!$AH$4:$AI$10,2,FALSE),0)+IF('Crop 2'!$C$16=Carbon!$B128,'Crop 2'!$V$16*VLOOKUP('Crop 2'!$E$16,Carbon!$AH$4:$AI$10,2,FALSE),0)+IF('Crop 2'!$C$19=Carbon!$B128,'Crop 2'!$V$19*VLOOKUP('Crop 2'!$E$19,Carbon!$AH$4:$AI$10,2,FALSE),0)+IF('Crop 2'!$C$20=Carbon!$B128,'Crop 2'!$V$20*VLOOKUP('Crop 2'!$E$20,Carbon!$AH$4:$AI$10,2,FALSE),0)+IF('Crop 2'!$C$21=Carbon!$B128,'Crop 2'!$V$21*VLOOKUP('Crop 2'!$E$21,Carbon!$AH$4:$AI$10,2,FALSE),0)+IF('Crop 2'!$C$49=Carbon!$B128,'Crop 2'!$V$49*VLOOKUP('Crop 2'!$E$49,Carbon!$AH$4:$AI$10,2,FALSE),0)+IF('Crop 2'!$C$50=Carbon!$B128,'Crop 2'!$V$50*VLOOKUP('Crop 2'!$E$50,Carbon!$AH$4:$AI$10,2,FALSE),0)+IF('Crop 2'!$C$51=Carbon!$B128,'Crop 2'!$V$51*VLOOKUP('Crop 2'!$E$51,Carbon!$AH$4:$AI$10,2,FALSE),0)+IF('Crop 2'!$C$52=Carbon!$B128,'Crop 2'!$V$52*VLOOKUP('Crop 2'!$E$52,Carbon!$AH$4:$AI$10,2,FALSE),0)+IF('Crop 2'!$C$53=Carbon!$B128,'Crop 2'!$V$53*VLOOKUP('Crop 2'!$E$53,Carbon!$AH$4:$AI$10,2,FALSE),0)+IF('Crop 2'!$C$56=Carbon!$B128,'Crop 2'!$V$56*VLOOKUP('Crop 2'!$E$56,Carbon!$AH$4:$AI$10,2,FALSE),0)+IF('Crop 2'!$C$57=Carbon!$B128,'Crop 2'!$V$57*VLOOKUP('Crop 2'!$E$57,Carbon!$AH$4:$AI$10,2,FALSE),0)+IF('Crop 2'!$C$58=Carbon!$B128,'Crop 2'!$V$58*VLOOKUP('Crop 2'!$E$58,Carbon!$AH$4:$AI$10,2,FALSE),0)+IF('Crop 2'!$C$59=Carbon!$B128,'Crop 2'!$V$59*VLOOKUP('Crop 2'!$E$59,Carbon!$AH$4:$AI$10,2,FALSE),0)+IF('Crop 2'!$C$62=Carbon!$B128,'Crop 2'!$V$62*VLOOKUP('Crop 2'!$E$62,Carbon!$AH$4:$AI$10,2,FALSE),0)+IF('Crop 2'!$C$63=Carbon!$B128,'Crop 2'!$V$63*VLOOKUP('Crop 2'!$E$63,Carbon!$AH$4:$AI$10,2,FALSE),0)+IF('Crop 2'!$C$64=Carbon!$B128,'Crop 2'!$V$64*VLOOKUP('Crop 2'!$E$64,Carbon!$AH$4:$AI$10,2,FALSE),0)+IF('Crop 2'!$C$65=Carbon!$B128,'Crop 2'!$V$65*VLOOKUP('Crop 2'!$E$65,Carbon!$AH$4:$AI$10,2,FALSE),0))*$AL$20,2)","v":0},{"$f":"O128*Inputs!$D$15","v":0},{"$f":"ROUND((IF('Crop 3'!$C$14=Carbon!$B128,'Crop 3'!$V$14*VLOOKUP('Crop 3'!$E$14,Carbon!$AH$4:$AI$10,2,FALSE),0)+IF('Crop 3'!$C$15=Carbon!$B128,'Crop 3'!$V$15*VLOOKUP('Crop 3'!$E$15,Carbon!$AH$4:$AI$10,2,FALSE),0)+IF('Crop 3'!$C$16=Carbon!$B128,'Crop 3'!$V$16*VLOOKUP('Crop 3'!$E$16,Carbon!$AH$4:$AI$10,2,FALSE),0)+IF('Crop 3'!$C$19=Carbon!$B128,'Crop 3'!$V$19*VLOOKUP('Crop 3'!$E$19,Carbon!$AH$4:$AI$10,2,FALSE),0)+IF('Crop 3'!$C$20=Carbon!$B128,'Crop 3'!$V$20*VLOOKUP('Crop 3'!$E$20,Carbon!$AH$4:$AI$10,2,FALSE),0)+IF('Crop 3'!$C$21=Carbon!$B128,'Crop 3'!$V$21*VLOOKUP('Crop 3'!$E$21,Carbon!$AH$4:$AI$10,2,FALSE),0)+IF('Crop 3'!$C$49=Carbon!$B128,'Crop 3'!$V$49*VLOOKUP('Crop 3'!$E$49,Carbon!$AH$4:$AI$10,2,FALSE),0)+IF('Crop 3'!$C$50=Carbon!$B128,'Crop 3'!$V$50*VLOOKUP('Crop 3'!$E$50,Carbon!$AH$4:$AI$10,2,FALSE),0)+IF('Crop 3'!$C$51=Carbon!$B128,'Crop 3'!$V$51*VLOOKUP('Crop 3'!$E$51,Carbon!$AH$4:$AI$10,2,FALSE),0)+IF('Crop 3'!$C$52=Carbon!$B128,'Crop 3'!$V$52*VLOOKUP('Crop 3'!$E$52,Carbon!$AH$4:$AI$10,2,FALSE),0)+IF('Crop 3'!$C$53=Carbon!$B128,'Crop 3'!$V$53*VLOOKUP('Crop 3'!$E$53,Carbon!$AH$4:$AI$10,2,FALSE),0)+IF('Crop 3'!$C$56=Carbon!$B128,'Crop 3'!$V$56*VLOOKUP('Crop 3'!$E$56,Carbon!$AH$4:$AI$10,2,FALSE),0)+IF('Crop 3'!$C$57=Carbon!$B128,'Crop 3'!$V$57*VLOOKUP('Crop 3'!$E$57,Carbon!$AH$4:$AI$10,2,FALSE),0)+IF('Crop 3'!$C$58=Carbon!$B128,'Crop 3'!$V$58*VLOOKUP('Crop 3'!$E$58,Carbon!$AH$4:$AI$10,2,FALSE),0)+IF('Crop 3'!$C$59=Carbon!$B128,'Crop 3'!$V$59*VLOOKUP('Crop 3'!$E$59,Carbon!$AH$4:$AI$10,2,FALSE),0)+IF('Crop 3'!$C$62=Carbon!$B128,'Crop 3'!$V$62*VLOOKUP('Crop 3'!$E$62,Carbon!$AH$4:$AI$10,2,FALSE),0)+IF('Crop 3'!$C$63=Carbon!$B128,'Crop 3'!$V$63*VLOOKUP('Crop 3'!$E$63,Carbon!$AH$4:$AI$10,2,FALSE),0)+IF('Crop 3'!$C$64=Carbon!$B128,'Crop 3'!$V$64*VLOOKUP('Crop 3'!$E$64,Carbon!$AH$4:$AI$10,2,FALSE),0)+IF('Crop 3'!$C$65=Carbon!$B128,'Crop 3'!$V$65*VLOOKUP('Crop 3'!$E$65,Carbon!$AH$4:$AI$10,2,FALSE),0))*$AL$20,2)","v":0},{"$f":"Q128*Inputs!$D$17","v":0},{"$f":"ROUND(T128/Inputs!D$19,2)","v":0},0,null,null,0,{"$f":"W128*Inputs!$D$13","v":0},0,{"$f":"Y128*Inputs!$D$13","v":0},0,{"$f":"AA128*Inputs!$D$13","v":0},{"$f":"ROUND(AD128/Inputs!D$19,2)","v":0},0]
[null,{"$f":"Defaults!AH95","v":"Pursuit"},{"$f":"ROUND((IF('Crop 1'!$C$14=Carbon!$B129,'Crop 1'!$L$14*VLOOKUP('Crop 1'!$E$14,Carbon!$AH$4:$AI$10,2,FALSE),0)+IF('Crop 1'!$C$15=Carbon!$B129,'Crop 1'!$L$15*VLOOKUP('Crop 1'!$E$15,Carbon!$AH$4:$AI$10,2,FALSE),0)+IF('Crop 1'!$C$16=Carbon!$B129,'Crop 1'!$L$16*VLOOKUP('Crop 1'!$E$16,Carbon!$AH$4:$AI$10,2,FALSE),0)+IF('Crop 1'!$C$19=Carbon!$B129,'Crop 1'!$L$19*VLOOKUP('Crop 1'!$E$19,Carbon!$AH$4:$AI$10,2,FALSE),0)+IF('Crop 1'!$C$20=Carbon!$B129,'Crop 1'!$L$20*VLOOKUP('Crop 1'!$E$20,Carbon!$AH$4:$AI$10,2,FALSE),0)+IF('Crop 1'!$C$21=Carbon!$B129,'Crop 1'!$L$21*VLOOKUP('Crop 1'!$E$21,Carbon!$AH$4:$AI$10,2,FALSE),0)+IF('Crop 1'!$C$49=Carbon!$B129,'Crop 1'!$L$49*VLOOKUP('Crop 1'!$E$49,Carbon!$AH$4:$AI$10,2,FALSE),0)+IF('Crop 1'!$C$50=Carbon!$B129,'Crop 1'!$L$50*VLOOKUP('Crop 1'!$E$50,Carbon!$AH$4:$AI$10,2,FALSE),0)+IF('Crop 1'!$C$51=Carbon!$B129,'Crop 1'!$L$51*VLOOKUP('Crop 1'!$E$51,Carbon!$AH$4:$AI$10,2,FALSE),0)+IF('Crop 1'!$C$52=Carbon!$B129,'Crop 1'!$L$52*VLOOKUP('Crop 1'!$E$52,Carbon!$AH$4:$AI$10,2,FALSE),0)+IF('Crop 1'!$C$53=Carbon!$B129,'Crop 1'!$L$53*VLOOKUP('Crop 1'!$E$53,Carbon!$AH$4:$AI$10,2,FALSE),0)+IF('Crop 1'!$C$56=Carbon!$B129,'Crop 1'!$L$56*VLOOKUP('Crop 1'!$E$56,Carbon!$AH$4:$AI$10,2,FALSE),0)+IF('Crop 1'!$C$57=Carbon!$B129,'Crop 1'!$L$57*VLOOKUP('Crop 1'!$E$57,Carbon!$AH$4:$AI$10,2,FALSE),0)+IF('Crop 1'!$C$58=Carbon!$B129,'Crop 1'!$L$58*VLOOKUP('Crop 1'!$E$58,Carbon!$AH$4:$AI$10,2,FALSE),0)+IF('Crop 1'!$C$59=Carbon!$B129,'Crop 1'!$L$59*VLOOKUP('Crop 1'!$E$59,Carbon!$AH$4:$AI$10,2,FALSE),0)+IF('Crop 1'!$C$62=Carbon!$B129,'Crop 1'!$L$62*VLOOKUP('Crop 1'!$E$62,Carbon!$AH$4:$AI$10,2,FALSE),0)+IF('Crop 1'!$C$63=Carbon!$B129,'Crop 1'!$L$63*VLOOKUP('Crop 1'!$E$63,Carbon!$AH$4:$AI$10,2,FALSE),0)+IF('Crop 1'!$C$64=Carbon!$B129,'Crop 1'!$L$64*VLOOKUP('Crop 1'!$E$64,Carbon!$AH$4:$AI$10,2,FALSE),0)+IF('Crop 1'!$C$65=Carbon!$B129,'Crop 1'!$L$65*VLOOKUP('Crop 1'!$E$65,Carbon!$AH$4:$AI$10,2,FALSE),0))*$AL$20,2)","v":0},{"$f":"C129*Inputs!$D$13","v":0},{"$f":"ROUND((IF('Crop 2'!$C$14=Carbon!$B129,'Crop 2'!$L$14*VLOOKUP('Crop 2'!$E$14,Carbon!$AH$4:$AI$10,2,FALSE),0)+IF('Crop 2'!$C$15=Carbon!$B129,'Crop 2'!$L$15*VLOOKUP('Crop 2'!$E$15,Carbon!$AH$4:$AI$10,2,FALSE),0)+IF('Crop 2'!$C$16=Carbon!$B129,'Crop 2'!$L$16*VLOOKUP('Crop 2'!$E$16,Carbon!$AH$4:$AI$10,2,FALSE),0)+IF('Crop 2'!$C$19=Carbon!$B129,'Crop 2'!$L$19*VLOOKUP('Crop 2'!$E$19,Carbon!$AH$4:$AI$10,2,FALSE),0)+IF('Crop 2'!$C$20=Carbon!$B129,'Crop 2'!$L$20*VLOOKUP('Crop 2'!$E$20,Carbon!$AH$4:$AI$10,2,FALSE),0)+IF('Crop 2'!$C$21=Carbon!$B129,'Crop 2'!$L$21*VLOOKUP('Crop 2'!$E$21,Carbon!$AH$4:$AI$10,2,FALSE),0)+IF('Crop 2'!$C$49=Carbon!$B129,'Crop 2'!$L$49*VLOOKUP('Crop 2'!$E$49,Carbon!$AH$4:$AI$10,2,FALSE),0)+IF('Crop 2'!$C$50=Carbon!$B129,'Crop 2'!$L$50*VLOOKUP('Crop 2'!$E$50,Carbon!$AH$4:$AI$10,2,FALSE),0)+IF('Crop 2'!$C$51=Carbon!$B129,'Crop 2'!$L$51*VLOOKUP('Crop 2'!$E$51,Carbon!$AH$4:$AI$10,2,FALSE),0)+IF('Crop 2'!$C$52=Carbon!$B129,'Crop 2'!$L$52*VLOOKUP('Crop 2'!$E$52,Carbon!$AH$4:$AI$10,2,FALSE),0)+IF('Crop 2'!$C$53=Carbon!$B129,'Crop 2'!$L$53*VLOOKUP('Crop 2'!$E$53,Carbon!$AH$4:$AI$10,2,FALSE),0)+IF('Crop 2'!$C$56=Carbon!$B129,'Crop 2'!$L$56*VLOOKUP('Crop 2'!$E$56,Carbon!$AH$4:$AI$10,2,FALSE),0)+IF('Crop 2'!$C$57=Carbon!$B129,'Crop 2'!$L$57*VLOOKUP('Crop 2'!$E$57,Carbon!$AH$4:$AI$10,2,FALSE),0)+IF('Crop 2'!$C$58=Carbon!$B129,'Crop 2'!$L$58*VLOOKUP('Crop 2'!$E$58,Carbon!$AH$4:$AI$10,2,FALSE),0)+IF('Crop 2'!$C$59=Carbon!$B129,'Crop 2'!$L$59*VLOOKUP('Crop 2'!$E$59,Carbon!$AH$4:$AI$10,2,FALSE),0)+IF('Crop 2'!$C$62=Carbon!$B129,'Crop 2'!$L$62*VLOOKUP('Crop 2'!$E$62,Carbon!$AH$4:$AI$10,2,FALSE),0)+IF('Crop 2'!$C$63=Carbon!$B129,'Crop 2'!$L$63*VLOOKUP('Crop 2'!$E$63,Carbon!$AH$4:$AI$10,2,FALSE),0)+IF('Crop 2'!$C$64=Carbon!$B129,'Crop 2'!$L$64*VLOOKUP('Crop 2'!$E$64,Carbon!$AH$4:$AI$10,2,FALSE),0)+IF('Crop 2'!$C$65=Carbon!$B129,'Crop 2'!$L$65*VLOOKUP('Crop 2'!$E$65,Carbon!$AH$4:$AI$10,2,FALSE),0))*$AL$20,2)","v":0},{"$f":"E129*Inputs!$D$15","v":0},{"$f":"ROUND((IF('Crop 3'!$C$14=Carbon!$B129,'Crop 3'!$L$14*VLOOKUP('Crop 3'!$E$14,Carbon!$AH$4:$AI$10,2,FALSE),0)+IF('Crop 3'!$C$15=Carbon!$B129,'Crop 3'!$L$15*VLOOKUP('Crop 3'!$E$15,Carbon!$AH$4:$AI$10,2,FALSE),0)+IF('Crop 3'!$C$16=Carbon!$B129,'Crop 3'!$L$16*VLOOKUP('Crop 3'!$E$16,Carbon!$AH$4:$AI$10,2,FALSE),0)+IF('Crop 3'!$C$19=Carbon!$B129,'Crop 3'!$L$19*VLOOKUP('Crop 3'!$E$19,Carbon!$AH$4:$AI$10,2,FALSE),0)+IF('Crop 3'!$C$20=Carbon!$B129,'Crop 3'!$L$20*VLOOKUP('Crop 3'!$E$20,Carbon!$AH$4:$AI$10,2,FALSE),0)+IF('Crop 3'!$C$21=Carbon!$B129,'Crop 3'!$L$21*VLOOKUP('Crop 3'!$E$21,Carbon!$AH$4:$AI$10,2,FALSE),0)+IF('Crop 3'!$C$49=Carbon!$B129,'Crop 3'!$L$49*VLOOKUP('Crop 3'!$E$49,Carbon!$AH$4:$AI$10,2,FALSE),0)+IF('Crop 3'!$C$50=Carbon!$B129,'Crop 3'!$L$50*VLOOKUP('Crop 3'!$E$50,Carbon!$AH$4:$AI$10,2,FALSE),0)+IF('Crop 3'!$C$51=Carbon!$B129,'Crop 3'!$L$51*VLOOKUP('Crop 3'!$E$51,Carbon!$AH$4:$AI$10,2,FALSE),0)+IF('Crop 3'!$C$52=Carbon!$B129,'Crop 3'!$L$52*VLOOKUP('Crop 3'!$E$52,Carbon!$AH$4:$AI$10,2,FALSE),0)+IF('Crop 3'!$C$53=Carbon!$B129,'Crop 3'!$L$53*VLOOKUP('Crop 3'!$E$53,Carbon!$AH$4:$AI$10,2,FALSE),0)+IF('Crop 3'!$C$56=Carbon!$B129,'Crop 3'!$L$56*VLOOKUP('Crop 3'!$E$56,Carbon!$AH$4:$AI$10,2,FALSE),0)+IF('Crop 3'!$C$57=Carbon!$B129,'Crop 3'!$L$57*VLOOKUP('Crop 3'!$E$57,Carbon!$AH$4:$AI$10,2,FALSE),0)+IF('Crop 3'!$C$58=Carbon!$B129,'Crop 3'!$L$58*VLOOKUP('Crop 3'!$E$58,Carbon!$AH$4:$AI$10,2,FALSE),0)+IF('Crop 3'!$C$59=Carbon!$B129,'Crop 3'!$L$59*VLOOKUP('Crop 3'!$E$59,Carbon!$AH$4:$AI$10,2,FALSE),0)+IF('Crop 3'!$C$62=Carbon!$B129,'Crop 3'!$L$62*VLOOKUP('Crop 3'!$E$62,Carbon!$AH$4:$AI$10,2,FALSE),0)+IF('Crop 3'!$C$63=Carbon!$B129,'Crop 3'!$L$63*VLOOKUP('Crop 3'!$E$63,Carbon!$AH$4:$AI$10,2,FALSE),0)+IF('Crop 3'!$C$64=Carbon!$B129,'Crop 3'!$L$64*VLOOKUP('Crop 3'!$E$64,Carbon!$AH$4:$AI$10,2,FALSE),0)+IF('Crop 3'!$C$65=Carbon!$B129,'Crop 3'!$L$65*VLOOKUP('Crop 3'!$E$65,Carbon!$AH$4:$AI$10,2,FALSE),0))*$AL$20,2)","v":0},{"$f":"G129*Inputs!$D$17","v":0},{"$f":"ROUND(J129/Inputs!D$19,2)","v":0},0,null,null,{"$f":"ROUND((IF('Crop 1'!$C$14=Carbon!$B129,'Crop 1'!$V$14*VLOOKUP('Crop 1'!$E$14,Carbon!$AH$4:$AI$10,2,FALSE),0)+IF('Crop 1'!$C$15=Carbon!$B129,'Crop 1'!$V$15*VLOOKUP('Crop 1'!$E$15,Carbon!$AH$4:$AI$10,2,FALSE),0)+IF('Crop 1'!$C$16=Carbon!$B129,'Crop 1'!$V$16*VLOOKUP('Crop 1'!$E$16,Carbon!$AH$4:$AI$10,2,FALSE),0)+IF('Crop 1'!$C$19=Carbon!$B129,'Crop 1'!$V$19*VLOOKUP('Crop 1'!$E$19,Carbon!$AH$4:$AI$10,2,FALSE),0)+IF('Crop 1'!$C$20=Carbon!$B129,'Crop 1'!$V$20*VLOOKUP('Crop 1'!$E$20,Carbon!$AH$4:$AI$10,2,FALSE),0)+IF('Crop 1'!$C$21=Carbon!$B129,'Crop 1'!$V$21*VLOOKUP('Crop 1'!$E$21,Carbon!$AH$4:$AI$10,2,FALSE),0)+IF('Crop 1'!$C$49=Carbon!$B129,'Crop 1'!$V$49*VLOOKUP('Crop 1'!$E$49,Carbon!$AH$4:$AI$10,2,FALSE),0)+IF('Crop 1'!$C$50=Carbon!$B129,'Crop 1'!$V$50*VLOOKUP('Crop 1'!$E$50,Carbon!$AH$4:$AI$10,2,FALSE),0)+IF('Crop 1'!$C$51=Carbon!$B129,'Crop 1'!$V$51*VLOOKUP('Crop 1'!$E$51,Carbon!$AH$4:$AI$10,2,FALSE),0)+IF('Crop 1'!$C$52=Carbon!$B129,'Crop 1'!$V$52*VLOOKUP('Crop 1'!$E$52,Carbon!$AH$4:$AI$10,2,FALSE),0)+IF('Crop 1'!$C$53=Carbon!$B129,'Crop 1'!$V$53*VLOOKUP('Crop 1'!$E$53,Carbon!$AH$4:$AI$10,2,FALSE),0)+IF('Crop 1'!$C$56=Carbon!$B129,'Crop 1'!$V$56*VLOOKUP('Crop 1'!$E$56,Carbon!$AH$4:$AI$10,2,FALSE),0)+IF('Crop 1'!$C$57=Carbon!$B129,'Crop 1'!$V$57*VLOOKUP('Crop 1'!$E$57,Carbon!$AH$4:$AI$10,2,FALSE),0)+IF('Crop 1'!$C$58=Carbon!$B129,'Crop 1'!$V$58*VLOOKUP('Crop 1'!$E$58,Carbon!$AH$4:$AI$10,2,FALSE),0)+IF('Crop 1'!$C$59=Carbon!$B129,'Crop 1'!$V$59*VLOOKUP('Crop 1'!$E$59,Carbon!$AH$4:$AI$10,2,FALSE),0)+IF('Crop 1'!$C$62=Carbon!$B129,'Crop 1'!$V$62*VLOOKUP('Crop 1'!$E$62,Carbon!$AH$4:$AI$10,2,FALSE),0)+IF('Crop 1'!$C$63=Carbon!$B129,'Crop 1'!$V$63*VLOOKUP('Crop 1'!$E$63,Carbon!$AH$4:$AI$10,2,FALSE),0)+IF('Crop 1'!$C$64=Carbon!$B129,'Crop 1'!$V$64*VLOOKUP('Crop 1'!$E$64,Carbon!$AH$4:$AI$10,2,FALSE),0)+IF('Crop 1'!$C$65=Carbon!$B129,'Crop 1'!$V$65*VLOOKUP('Crop 1'!$E$65,Carbon!$AH$4:$AI$10,2,FALSE),0))*$AL$20,2)","v":0},{"$f":"M129*Inputs!$D$13","v":0},{"$f":"ROUND((IF('Crop 2'!$C$14=Carbon!$B129,'Crop 2'!$V$14*VLOOKUP('Crop 2'!$E$14,Carbon!$AH$4:$AI$10,2,FALSE),0)+IF('Crop 2'!$C$15=Carbon!$B129,'Crop 2'!$V$15*VLOOKUP('Crop 2'!$E$15,Carbon!$AH$4:$AI$10,2,FALSE),0)+IF('Crop 2'!$C$16=Carbon!$B129,'Crop 2'!$V$16*VLOOKUP('Crop 2'!$E$16,Carbon!$AH$4:$AI$10,2,FALSE),0)+IF('Crop 2'!$C$19=Carbon!$B129,'Crop 2'!$V$19*VLOOKUP('Crop 2'!$E$19,Carbon!$AH$4:$AI$10,2,FALSE),0)+IF('Crop 2'!$C$20=Carbon!$B129,'Crop 2'!$V$20*VLOOKUP('Crop 2'!$E$20,Carbon!$AH$4:$AI$10,2,FALSE),0)+IF('Crop 2'!$C$21=Carbon!$B129,'Crop 2'!$V$21*VLOOKUP('Crop 2'!$E$21,Carbon!$AH$4:$AI$10,2,FALSE),0)+IF('Crop 2'!$C$49=Carbon!$B129,'Crop 2'!$V$49*VLOOKUP('Crop 2'!$E$49,Carbon!$AH$4:$AI$10,2,FALSE),0)+IF('Crop 2'!$C$50=Carbon!$B129,'Crop 2'!$V$50*VLOOKUP('Crop 2'!$E$50,Carbon!$AH$4:$AI$10,2,FALSE),0)+IF('Crop 2'!$C$51=Carbon!$B129,'Crop 2'!$V$51*VLOOKUP('Crop 2'!$E$51,Carbon!$AH$4:$AI$10,2,FALSE),0)+IF('Crop 2'!$C$52=Carbon!$B129,'Crop 2'!$V$52*VLOOKUP('Crop 2'!$E$52,Carbon!$AH$4:$AI$10,2,FALSE),0)+IF('Crop 2'!$C$53=Carbon!$B129,'Crop 2'!$V$53*VLOOKUP('Crop 2'!$E$53,Carbon!$AH$4:$AI$10,2,FALSE),0)+IF('Crop 2'!$C$56=Carbon!$B129,'Crop 2'!$V$56*VLOOKUP('Crop 2'!$E$56,Carbon!$AH$4:$AI$10,2,FALSE),0)+IF('Crop 2'!$C$57=Carbon!$B129,'Crop 2'!$V$57*VLOOKUP('Crop 2'!$E$57,Carbon!$AH$4:$AI$10,2,FALSE),0)+IF('Crop 2'!$C$58=Carbon!$B129,'Crop 2'!$V$58*VLOOKUP('Crop 2'!$E$58,Carbon!$AH$4:$AI$10,2,FALSE),0)+IF('Crop 2'!$C$59=Carbon!$B129,'Crop 2'!$V$59*VLOOKUP('Crop 2'!$E$59,Carbon!$AH$4:$AI$10,2,FALSE),0)+IF('Crop 2'!$C$62=Carbon!$B129,'Crop 2'!$V$62*VLOOKUP('Crop 2'!$E$62,Carbon!$AH$4:$AI$10,2,FALSE),0)+IF('Crop 2'!$C$63=Carbon!$B129,'Crop 2'!$V$63*VLOOKUP('Crop 2'!$E$63,Carbon!$AH$4:$AI$10,2,FALSE),0)+IF('Crop 2'!$C$64=Carbon!$B129,'Crop 2'!$V$64*VLOOKUP('Crop 2'!$E$64,Carbon!$AH$4:$AI$10,2,FALSE),0)+IF('Crop 2'!$C$65=Carbon!$B129,'Crop 2'!$V$65*VLOOKUP('Crop 2'!$E$65,Carbon!$AH$4:$AI$10,2,FALSE),0))*$AL$20,2)","v":0},{"$f":"O129*Inputs!$D$15","v":0},{"$f":"ROUND((IF('Crop 3'!$C$14=Carbon!$B129,'Crop 3'!$V$14*VLOOKUP('Crop 3'!$E$14,Carbon!$AH$4:$AI$10,2,FALSE),0)+IF('Crop 3'!$C$15=Carbon!$B129,'Crop 3'!$V$15*VLOOKUP('Crop 3'!$E$15,Carbon!$AH$4:$AI$10,2,FALSE),0)+IF('Crop 3'!$C$16=Carbon!$B129,'Crop 3'!$V$16*VLOOKUP('Crop 3'!$E$16,Carbon!$AH$4:$AI$10,2,FALSE),0)+IF('Crop 3'!$C$19=Carbon!$B129,'Crop 3'!$V$19*VLOOKUP('Crop 3'!$E$19,Carbon!$AH$4:$AI$10,2,FALSE),0)+IF('Crop 3'!$C$20=Carbon!$B129,'Crop 3'!$V$20*VLOOKUP('Crop 3'!$E$20,Carbon!$AH$4:$AI$10,2,FALSE),0)+IF('Crop 3'!$C$21=Carbon!$B129,'Crop 3'!$V$21*VLOOKUP('Crop 3'!$E$21,Carbon!$AH$4:$AI$10,2,FALSE),0)+IF('Crop 3'!$C$49=Carbon!$B129,'Crop 3'!$V$49*VLOOKUP('Crop 3'!$E$49,Carbon!$AH$4:$AI$10,2,FALSE),0)+IF('Crop 3'!$C$50=Carbon!$B129,'Crop 3'!$V$50*VLOOKUP('Crop 3'!$E$50,Carbon!$AH$4:$AI$10,2,FALSE),0)+IF('Crop 3'!$C$51=Carbon!$B129,'Crop 3'!$V$51*VLOOKUP('Crop 3'!$E$51,Carbon!$AH$4:$AI$10,2,FALSE),0)+IF('Crop 3'!$C$52=Carbon!$B129,'Crop 3'!$V$52*VLOOKUP('Crop 3'!$E$52,Carbon!$AH$4:$AI$10,2,FALSE),0)+IF('Crop 3'!$C$53=Carbon!$B129,'Crop 3'!$V$53*VLOOKUP('Crop 3'!$E$53,Carbon!$AH$4:$AI$10,2,FALSE),0)+IF('Crop 3'!$C$56=Carbon!$B129,'Crop 3'!$V$56*VLOOKUP('Crop 3'!$E$56,Carbon!$AH$4:$AI$10,2,FALSE),0)+IF('Crop 3'!$C$57=Carbon!$B129,'Crop 3'!$V$57*VLOOKUP('Crop 3'!$E$57,Carbon!$AH$4:$AI$10,2,FALSE),0)+IF('Crop 3'!$C$58=Carbon!$B129,'Crop 3'!$V$58*VLOOKUP('Crop 3'!$E$58,Carbon!$AH$4:$AI$10,2,FALSE),0)+IF('Crop 3'!$C$59=Carbon!$B129,'Crop 3'!$V$59*VLOOKUP('Crop 3'!$E$59,Carbon!$AH$4:$AI$10,2,FALSE),0)+IF('Crop 3'!$C$62=Carbon!$B129,'Crop 3'!$V$62*VLOOKUP('Crop 3'!$E$62,Carbon!$AH$4:$AI$10,2,FALSE),0)+IF('Crop 3'!$C$63=Carbon!$B129,'Crop 3'!$V$63*VLOOKUP('Crop 3'!$E$63,Carbon!$AH$4:$AI$10,2,FALSE),0)+IF('Crop 3'!$C$64=Carbon!$B129,'Crop 3'!$V$64*VLOOKUP('Crop 3'!$E$64,Carbon!$AH$4:$AI$10,2,FALSE),0)+IF('Crop 3'!$C$65=Carbon!$B129,'Crop 3'!$V$65*VLOOKUP('Crop 3'!$E$65,Carbon!$AH$4:$AI$10,2,FALSE),0))*$AL$20,2)","v":0},{"$f":"Q129*Inputs!$D$17","v":0},{"$f":"ROUND(T129/Inputs!D$19,2)","v":0},0,null,null,0,{"$f":"W129*Inputs!$D$13","v":0},0,{"$f":"Y129*Inputs!$D$13","v":0},0,{"$f":"AA129*Inputs!$D$13","v":0},{"$f":"ROUND(AD129/Inputs!D$19,2)","v":0},0]
[null,{"$f":"Defaults!AH96","v":"Python"},{"$f":"ROUND((IF('Crop 1'!$C$14=Carbon!$B130,'Crop 1'!$L$14*VLOOKUP('Crop 1'!$E$14,Carbon!$AH$4:$AI$10,2,FALSE),0)+IF('Crop 1'!$C$15=Carbon!$B130,'Crop 1'!$L$15*VLOOKUP('Crop 1'!$E$15,Carbon!$AH$4:$AI$10,2,FALSE),0)+IF('Crop 1'!$C$16=Carbon!$B130,'Crop 1'!$L$16*VLOOKUP('Crop 1'!$E$16,Carbon!$AH$4:$AI$10,2,FALSE),0)+IF('Crop 1'!$C$19=Carbon!$B130,'Crop 1'!$L$19*VLOOKUP('Crop 1'!$E$19,Carbon!$AH$4:$AI$10,2,FALSE),0)+IF('Crop 1'!$C$20=Carbon!$B130,'Crop 1'!$L$20*VLOOKUP('Crop 1'!$E$20,Carbon!$AH$4:$AI$10,2,FALSE),0)+IF('Crop 1'!$C$21=Carbon!$B130,'Crop 1'!$L$21*VLOOKUP('Crop 1'!$E$21,Carbon!$AH$4:$AI$10,2,FALSE),0)+IF('Crop 1'!$C$49=Carbon!$B130,'Crop 1'!$L$49*VLOOKUP('Crop 1'!$E$49,Carbon!$AH$4:$AI$10,2,FALSE),0)+IF('Crop 1'!$C$50=Carbon!$B130,'Crop 1'!$L$50*VLOOKUP('Crop 1'!$E$50,Carbon!$AH$4:$AI$10,2,FALSE),0)+IF('Crop 1'!$C$51=Carbon!$B130,'Crop 1'!$L$51*VLOOKUP('Crop 1'!$E$51,Carbon!$AH$4:$AI$10,2,FALSE),0)+IF('Crop 1'!$C$52=Carbon!$B130,'Crop 1'!$L$52*VLOOKUP('Crop 1'!$E$52,Carbon!$AH$4:$AI$10,2,FALSE),0)+IF('Crop 1'!$C$53=Carbon!$B130,'Crop 1'!$L$53*VLOOKUP('Crop 1'!$E$53,Carbon!$AH$4:$AI$10,2,FALSE),0)+IF('Crop 1'!$C$56=Carbon!$B130,'Crop 1'!$L$56*VLOOKUP('Crop 1'!$E$56,Carbon!$AH$4:$AI$10,2,FALSE),0)+IF('Crop 1'!$C$57=Carbon!$B130,'Crop 1'!$L$57*VLOOKUP('Crop 1'!$E$57,Carbon!$AH$4:$AI$10,2,FALSE),0)+IF('Crop 1'!$C$58=Carbon!$B130,'Crop 1'!$L$58*VLOOKUP('Crop 1'!$E$58,Carbon!$AH$4:$AI$10,2,FALSE),0)+IF('Crop 1'!$C$59=Carbon!$B130,'Crop 1'!$L$59*VLOOKUP('Crop 1'!$E$59,Carbon!$AH$4:$AI$10,2,FALSE),0)+IF('Crop 1'!$C$62=Carbon!$B130,'Crop 1'!$L$62*VLOOKUP('Crop 1'!$E$62,Carbon!$AH$4:$AI$10,2,FALSE),0)+IF('Crop 1'!$C$63=Carbon!$B130,'Crop 1'!$L$63*VLOOKUP('Crop 1'!$E$63,Carbon!$AH$4:$AI$10,2,FALSE),0)+IF('Crop 1'!$C$64=Carbon!$B130,'Crop 1'!$L$64*VLOOKUP('Crop 1'!$E$64,Carbon!$AH$4:$AI$10,2,FALSE),0)+IF('Crop 1'!$C$65=Carbon!$B130,'Crop 1'!$L$65*VLOOKUP('Crop 1'!$E$65,Carbon!$AH$4:$AI$10,2,FALSE),0))*$AL$20,2)","v":0},{"$f":"C130*Inputs!$D$13","v":0},{"$f":"ROUND((IF('Crop 2'!$C$14=Carbon!$B130,'Crop 2'!$L$14*VLOOKUP('Crop 2'!$E$14,Carbon!$AH$4:$AI$10,2,FALSE),0)+IF('Crop 2'!$C$15=Carbon!$B130,'Crop 2'!$L$15*VLOOKUP('Crop 2'!$E$15,Carbon!$AH$4:$AI$10,2,FALSE),0)+IF('Crop 2'!$C$16=Carbon!$B130,'Crop 2'!$L$16*VLOOKUP('Crop 2'!$E$16,Carbon!$AH$4:$AI$10,2,FALSE),0)+IF('Crop 2'!$C$19=Carbon!$B130,'Crop 2'!$L$19*VLOOKUP('Crop 2'!$E$19,Carbon!$AH$4:$AI$10,2,FALSE),0)+IF('Crop 2'!$C$20=Carbon!$B130,'Crop 2'!$L$20*VLOOKUP('Crop 2'!$E$20,Carbon!$AH$4:$AI$10,2,FALSE),0)+IF('Crop 2'!$C$21=Carbon!$B130,'Crop 2'!$L$21*VLOOKUP('Crop 2'!$E$21,Carbon!$AH$4:$AI$10,2,FALSE),0)+IF('Crop 2'!$C$49=Carbon!$B130,'Crop 2'!$L$49*VLOOKUP('Crop 2'!$E$49,Carbon!$AH$4:$AI$10,2,FALSE),0)+IF('Crop 2'!$C$50=Carbon!$B130,'Crop 2'!$L$50*VLOOKUP('Crop 2'!$E$50,Carbon!$AH$4:$AI$10,2,FALSE),0)+IF('Crop 2'!$C$51=Carbon!$B130,'Crop 2'!$L$51*VLOOKUP('Crop 2'!$E$51,Carbon!$AH$4:$AI$10,2,FALSE),0)+IF('Crop 2'!$C$52=Carbon!$B130,'Crop 2'!$L$52*VLOOKUP('Crop 2'!$E$52,Carbon!$AH$4:$AI$10,2,FALSE),0)+IF('Crop 2'!$C$53=Carbon!$B130,'Crop 2'!$L$53*VLOOKUP('Crop 2'!$E$53,Carbon!$AH$4:$AI$10,2,FALSE),0)+IF('Crop 2'!$C$56=Carbon!$B130,'Crop 2'!$L$56*VLOOKUP('Crop 2'!$E$56,Carbon!$AH$4:$AI$10,2,FALSE),0)+IF('Crop 2'!$C$57=Carbon!$B130,'Crop 2'!$L$57*VLOOKUP('Crop 2'!$E$57,Carbon!$AH$4:$AI$10,2,FALSE),0)+IF('Crop 2'!$C$58=Carbon!$B130,'Crop 2'!$L$58*VLOOKUP('Crop 2'!$E$58,Carbon!$AH$4:$AI$10,2,FALSE),0)+IF('Crop 2'!$C$59=Carbon!$B130,'Crop 2'!$L$59*VLOOKUP('Crop 2'!$E$59,Carbon!$AH$4:$AI$10,2,FALSE),0)+IF('Crop 2'!$C$62=Carbon!$B130,'Crop 2'!$L$62*VLOOKUP('Crop 2'!$E$62,Carbon!$AH$4:$AI$10,2,FALSE),0)+IF('Crop 2'!$C$63=Carbon!$B130,'Crop 2'!$L$63*VLOOKUP('Crop 2'!$E$63,Carbon!$AH$4:$AI$10,2,FALSE),0)+IF('Crop 2'!$C$64=Carbon!$B130,'Crop 2'!$L$64*VLOOKUP('Crop 2'!$E$64,Carbon!$AH$4:$AI$10,2,FALSE),0)+IF('Crop 2'!$C$65=Carbon!$B130,'Crop 2'!$L$65*VLOOKUP('Crop 2'!$E$65,Carbon!$AH$4:$AI$10,2,FALSE),0))*$AL$20,2)","v":0},{"$f":"E130*Inputs!$D$15","v":0},{"$f":"ROUND((IF('Crop 3'!$C$14=Carbon!$B130,'Crop 3'!$L$14*VLOOKUP('Crop 3'!$E$14,Carbon!$AH$4:$AI$10,2,FALSE),0)+IF('Crop 3'!$C$15=Carbon!$B130,'Crop 3'!$L$15*VLOOKUP('Crop 3'!$E$15,Carbon!$AH$4:$AI$10,2,FALSE),0)+IF('Crop 3'!$C$16=Carbon!$B130,'Crop 3'!$L$16*VLOOKUP('Crop 3'!$E$16,Carbon!$AH$4:$AI$10,2,FALSE),0)+IF('Crop 3'!$C$19=Carbon!$B130,'Crop 3'!$L$19*VLOOKUP('Crop 3'!$E$19,Carbon!$AH$4:$AI$10,2,FALSE),0)+IF('Crop 3'!$C$20=Carbon!$B130,'Crop 3'!$L$20*VLOOKUP('Crop 3'!$E$20,Carbon!$AH$4:$AI$10,2,FALSE),0)+IF('Crop 3'!$C$21=Carbon!$B130,'Crop 3'!$L$21*VLOOKUP('Crop 3'!$E$21,Carbon!$AH$4:$AI$10,2,FALSE),0)+IF('Crop 3'!$C$49=Carbon!$B130,'Crop 3'!$L$49*VLOOKUP('Crop 3'!$E$49,Carbon!$AH$4:$AI$10,2,FALSE),0)+IF('Crop 3'!$C$50=Carbon!$B130,'Crop 3'!$L$50*VLOOKUP('Crop 3'!$E$50,Carbon!$AH$4:$AI$10,2,FALSE),0)+IF('Crop 3'!$C$51=Carbon!$B130,'Crop 3'!$L$51*VLOOKUP('Crop 3'!$E$51,Carbon!$AH$4:$AI$10,2,FALSE),0)+IF('Crop 3'!$C$52=Carbon!$B130,'Crop 3'!$L$52*VLOOKUP('Crop 3'!$E$52,Carbon!$AH$4:$AI$10,2,FALSE),0)+IF('Crop 3'!$C$53=Carbon!$B130,'Crop 3'!$L$53*VLOOKUP('Crop 3'!$E$53,Carbon!$AH$4:$AI$10,2,FALSE),0)+IF('Crop 3'!$C$56=Carbon!$B130,'Crop 3'!$L$56*VLOOKUP('Crop 3'!$E$56,Carbon!$AH$4:$AI$10,2,FALSE),0)+IF('Crop 3'!$C$57=Carbon!$B130,'Crop 3'!$L$57*VLOOKUP('Crop 3'!$E$57,Carbon!$AH$4:$AI$10,2,FALSE),0)+IF('Crop 3'!$C$58=Carbon!$B130,'Crop 3'!$L$58*VLOOKUP('Crop 3'!$E$58,Carbon!$AH$4:$AI$10,2,FALSE),0)+IF('Crop 3'!$C$59=Carbon!$B130,'Crop 3'!$L$59*VLOOKUP('Crop 3'!$E$59,Carbon!$AH$4:$AI$10,2,FALSE),0)+IF('Crop 3'!$C$62=Carbon!$B130,'Crop 3'!$L$62*VLOOKUP('Crop 3'!$E$62,Carbon!$AH$4:$AI$10,2,FALSE),0)+IF('Crop 3'!$C$63=Carbon!$B130,'Crop 3'!$L$63*VLOOKUP('Crop 3'!$E$63,Carbon!$AH$4:$AI$10,2,FALSE),0)+IF('Crop 3'!$C$64=Carbon!$B130,'Crop 3'!$L$64*VLOOKUP('Crop 3'!$E$64,Carbon!$AH$4:$AI$10,2,FALSE),0)+IF('Crop 3'!$C$65=Carbon!$B130,'Crop 3'!$L$65*VLOOKUP('Crop 3'!$E$65,Carbon!$AH$4:$AI$10,2,FALSE),0))*$AL$20,2)","v":0},{"$f":"G130*Inputs!$D$17","v":0},{"$f":"ROUND(J130/Inputs!D$19,2)","v":0},0,null,null,{"$f":"ROUND((IF('Crop 1'!$C$14=Carbon!$B130,'Crop 1'!$V$14*VLOOKUP('Crop 1'!$E$14,Carbon!$AH$4:$AI$10,2,FALSE),0)+IF('Crop 1'!$C$15=Carbon!$B130,'Crop 1'!$V$15*VLOOKUP('Crop 1'!$E$15,Carbon!$AH$4:$AI$10,2,FALSE),0)+IF('Crop 1'!$C$16=Carbon!$B130,'Crop 1'!$V$16*VLOOKUP('Crop 1'!$E$16,Carbon!$AH$4:$AI$10,2,FALSE),0)+IF('Crop 1'!$C$19=Carbon!$B130,'Crop 1'!$V$19*VLOOKUP('Crop 1'!$E$19,Carbon!$AH$4:$AI$10,2,FALSE),0)+IF('Crop 1'!$C$20=Carbon!$B130,'Crop 1'!$V$20*VLOOKUP('Crop 1'!$E$20,Carbon!$AH$4:$AI$10,2,FALSE),0)+IF('Crop 1'!$C$21=Carbon!$B130,'Crop 1'!$V$21*VLOOKUP('Crop 1'!$E$21,Carbon!$AH$4:$AI$10,2,FALSE),0)+IF('Crop 1'!$C$49=Carbon!$B130,'Crop 1'!$V$49*VLOOKUP('Crop 1'!$E$49,Carbon!$AH$4:$AI$10,2,FALSE),0)+IF('Crop 1'!$C$50=Carbon!$B130,'Crop 1'!$V$50*VLOOKUP('Crop 1'!$E$50,Carbon!$AH$4:$AI$10,2,FALSE),0)+IF('Crop 1'!$C$51=Carbon!$B130,'Crop 1'!$V$51*VLOOKUP('Crop 1'!$E$51,Carbon!$AH$4:$AI$10,2,FALSE),0)+IF('Crop 1'!$C$52=Carbon!$B130,'Crop 1'!$V$52*VLOOKUP('Crop 1'!$E$52,Carbon!$AH$4:$AI$10,2,FALSE),0)+IF('Crop 1'!$C$53=Carbon!$B130,'Crop 1'!$V$53*VLOOKUP('Crop 1'!$E$53,Carbon!$AH$4:$AI$10,2,FALSE),0)+IF('Crop 1'!$C$56=Carbon!$B130,'Crop 1'!$V$56*VLOOKUP('Crop 1'!$E$56,Carbon!$AH$4:$AI$10,2,FALSE),0)+IF('Crop 1'!$C$57=Carbon!$B130,'Crop 1'!$V$57*VLOOKUP('Crop 1'!$E$57,Carbon!$AH$4:$AI$10,2,FALSE),0)+IF('Crop 1'!$C$58=Carbon!$B130,'Crop 1'!$V$58*VLOOKUP('Crop 1'!$E$58,Carbon!$AH$4:$AI$10,2,FALSE),0)+IF('Crop 1'!$C$59=Carbon!$B130,'Crop 1'!$V$59*VLOOKUP('Crop 1'!$E$59,Carbon!$AH$4:$AI$10,2,FALSE),0)+IF('Crop 1'!$C$62=Carbon!$B130,'Crop 1'!$V$62*VLOOKUP('Crop 1'!$E$62,Carbon!$AH$4:$AI$10,2,FALSE),0)+IF('Crop 1'!$C$63=Carbon!$B130,'Crop 1'!$V$63*VLOOKUP('Crop 1'!$E$63,Carbon!$AH$4:$AI$10,2,FALSE),0)+IF('Crop 1'!$C$64=Carbon!$B130,'Crop 1'!$V$64*VLOOKUP('Crop 1'!$E$64,Carbon!$AH$4:$AI$10,2,FALSE),0)+IF('Crop 1'!$C$65=Carbon!$B130,'Crop 1'!$V$65*VLOOKUP('Crop 1'!$E$65,Carbon!$AH$4:$AI$10,2,FALSE),0))*$AL$20,2)","v":0},{"$f":"M130*Inputs!$D$13","v":0},{"$f":"ROUND((IF('Crop 2'!$C$14=Carbon!$B130,'Crop 2'!$V$14*VLOOKUP('Crop 2'!$E$14,Carbon!$AH$4:$AI$10,2,FALSE),0)+IF('Crop 2'!$C$15=Carbon!$B130,'Crop 2'!$V$15*VLOOKUP('Crop 2'!$E$15,Carbon!$AH$4:$AI$10,2,FALSE),0)+IF('Crop 2'!$C$16=Carbon!$B130,'Crop 2'!$V$16*VLOOKUP('Crop 2'!$E$16,Carbon!$AH$4:$AI$10,2,FALSE),0)+IF('Crop 2'!$C$19=Carbon!$B130,'Crop 2'!$V$19*VLOOKUP('Crop 2'!$E$19,Carbon!$AH$4:$AI$10,2,FALSE),0)+IF('Crop 2'!$C$20=Carbon!$B130,'Crop 2'!$V$20*VLOOKUP('Crop 2'!$E$20,Carbon!$AH$4:$AI$10,2,FALSE),0)+IF('Crop 2'!$C$21=Carbon!$B130,'Crop 2'!$V$21*VLOOKUP('Crop 2'!$E$21,Carbon!$AH$4:$AI$10,2,FALSE),0)+IF('Crop 2'!$C$49=Carbon!$B130,'Crop 2'!$V$49*VLOOKUP('Crop 2'!$E$49,Carbon!$AH$4:$AI$10,2,FALSE),0)+IF('Crop 2'!$C$50=Carbon!$B130,'Crop 2'!$V$50*VLOOKUP('Crop 2'!$E$50,Carbon!$AH$4:$AI$10,2,FALSE),0)+IF('Crop 2'!$C$51=Carbon!$B130,'Crop 2'!$V$51*VLOOKUP('Crop 2'!$E$51,Carbon!$AH$4:$AI$10,2,FALSE),0)+IF('Crop 2'!$C$52=Carbon!$B130,'Crop 2'!$V$52*VLOOKUP('Crop 2'!$E$52,Carbon!$AH$4:$AI$10,2,FALSE),0)+IF('Crop 2'!$C$53=Carbon!$B130,'Crop 2'!$V$53*VLOOKUP('Crop 2'!$E$53,Carbon!$AH$4:$AI$10,2,FALSE),0)+IF('Crop 2'!$C$56=Carbon!$B130,'Crop 2'!$V$56*VLOOKUP('Crop 2'!$E$56,Carbon!$AH$4:$AI$10,2,FALSE),0)+IF('Crop 2'!$C$57=Carbon!$B130,'Crop 2'!$V$57*VLOOKUP('Crop 2'!$E$57,Carbon!$AH$4:$AI$10,2,FALSE),0)+IF('Crop 2'!$C$58=Carbon!$B130,'Crop 2'!$V$58*VLOOKUP('Crop 2'!$E$58,Carbon!$AH$4:$AI$10,2,FALSE),0)+IF('Crop 2'!$C$59=Carbon!$B130,'Crop 2'!$V$59*VLOOKUP('Crop 2'!$E$59,Carbon!$AH$4:$AI$10,2,FALSE),0)+IF('Crop 2'!$C$62=Carbon!$B130,'Crop 2'!$V$62*VLOOKUP('Crop 2'!$E$62,Carbon!$AH$4:$AI$10,2,FALSE),0)+IF('Crop 2'!$C$63=Carbon!$B130,'Crop 2'!$V$63*VLOOKUP('Crop 2'!$E$63,Carbon!$AH$4:$AI$10,2,FALSE),0)+IF('Crop 2'!$C$64=Carbon!$B130,'Crop 2'!$V$64*VLOOKUP('Crop 2'!$E$64,Carbon!$AH$4:$AI$10,2,FALSE),0)+IF('Crop 2'!$C$65=Carbon!$B130,'Crop 2'!$V$65*VLOOKUP('Crop 2'!$E$65,Carbon!$AH$4:$AI$10,2,FALSE),0))*$AL$20,2)","v":0},{"$f":"O130*Inputs!$D$15","v":0},{"$f":"ROUND((IF('Crop 3'!$C$14=Carbon!$B130,'Crop 3'!$V$14*VLOOKUP('Crop 3'!$E$14,Carbon!$AH$4:$AI$10,2,FALSE),0)+IF('Crop 3'!$C$15=Carbon!$B130,'Crop 3'!$V$15*VLOOKUP('Crop 3'!$E$15,Carbon!$AH$4:$AI$10,2,FALSE),0)+IF('Crop 3'!$C$16=Carbon!$B130,'Crop 3'!$V$16*VLOOKUP('Crop 3'!$E$16,Carbon!$AH$4:$AI$10,2,FALSE),0)+IF('Crop 3'!$C$19=Carbon!$B130,'Crop 3'!$V$19*VLOOKUP('Crop 3'!$E$19,Carbon!$AH$4:$AI$10,2,FALSE),0)+IF('Crop 3'!$C$20=Carbon!$B130,'Crop 3'!$V$20*VLOOKUP('Crop 3'!$E$20,Carbon!$AH$4:$AI$10,2,FALSE),0)+IF('Crop 3'!$C$21=Carbon!$B130,'Crop 3'!$V$21*VLOOKUP('Crop 3'!$E$21,Carbon!$AH$4:$AI$10,2,FALSE),0)+IF('Crop 3'!$C$49=Carbon!$B130,'Crop 3'!$V$49*VLOOKUP('Crop 3'!$E$49,Carbon!$AH$4:$AI$10,2,FALSE),0)+IF('Crop 3'!$C$50=Carbon!$B130,'Crop 3'!$V$50*VLOOKUP('Crop 3'!$E$50,Carbon!$AH$4:$AI$10,2,FALSE),0)+IF('Crop 3'!$C$51=Carbon!$B130,'Crop 3'!$V$51*VLOOKUP('Crop 3'!$E$51,Carbon!$AH$4:$AI$10,2,FALSE),0)+IF('Crop 3'!$C$52=Carbon!$B130,'Crop 3'!$V$52*VLOOKUP('Crop 3'!$E$52,Carbon!$AH$4:$AI$10,2,FALSE),0)+IF('Crop 3'!$C$53=Carbon!$B130,'Crop 3'!$V$53*VLOOKUP('Crop 3'!$E$53,Carbon!$AH$4:$AI$10,2,FALSE),0)+IF('Crop 3'!$C$56=Carbon!$B130,'Crop 3'!$V$56*VLOOKUP('Crop 3'!$E$56,Carbon!$AH$4:$AI$10,2,FALSE),0)+IF('Crop 3'!$C$57=Carbon!$B130,'Crop 3'!$V$57*VLOOKUP('Crop 3'!$E$57,Carbon!$AH$4:$AI$10,2,FALSE),0)+IF('Crop 3'!$C$58=Carbon!$B130,'Crop 3'!$V$58*VLOOKUP('Crop 3'!$E$58,Carbon!$AH$4:$AI$10,2,FALSE),0)+IF('Crop 3'!$C$59=Carbon!$B130,'Crop 3'!$V$59*VLOOKUP('Crop 3'!$E$59,Carbon!$AH$4:$AI$10,2,FALSE),0)+IF('Crop 3'!$C$62=Carbon!$B130,'Crop 3'!$V$62*VLOOKUP('Crop 3'!$E$62,Carbon!$AH$4:$AI$10,2,FALSE),0)+IF('Crop 3'!$C$63=Carbon!$B130,'Crop 3'!$V$63*VLOOKUP('Crop 3'!$E$63,Carbon!$AH$4:$AI$10,2,FALSE),0)+IF('Crop 3'!$C$64=Carbon!$B130,'Crop 3'!$V$64*VLOOKUP('Crop 3'!$E$64,Carbon!$AH$4:$AI$10,2,FALSE),0)+IF('Crop 3'!$C$65=Carbon!$B130,'Crop 3'!$V$65*VLOOKUP('Crop 3'!$E$65,Carbon!$AH$4:$AI$10,2,FALSE),0))*$AL$20,2)","v":0},{"$f":"Q130*Inputs!$D$17","v":0},{"$f":"ROUND(T130/Inputs!D$19,2)","v":0},0,null,null,0,{"$f":"W130*Inputs!$D$13","v":0},0,{"$f":"Y130*Inputs!$D$13","v":0},0,{"$f":"AA130*Inputs!$D$13","v":0},{"$f":"ROUND(AD130/Inputs!D$19,2)","v":0},0]
[null,{"$f":"Defaults!AH97","v":"Realm Q"},{"$f":"ROUND((IF('Crop 1'!$C$14=Carbon!$B131,'Crop 1'!$L$14*VLOOKUP('Crop 1'!$E$14,Carbon!$AH$4:$AI$10,2,FALSE),0)+IF('Crop 1'!$C$15=Carbon!$B131,'Crop 1'!$L$15*VLOOKUP('Crop 1'!$E$15,Carbon!$AH$4:$AI$10,2,FALSE),0)+IF('Crop 1'!$C$16=Carbon!$B131,'Crop 1'!$L$16*VLOOKUP('Crop 1'!$E$16,Carbon!$AH$4:$AI$10,2,FALSE),0)+IF('Crop 1'!$C$19=Carbon!$B131,'Crop 1'!$L$19*VLOOKUP('Crop 1'!$E$19,Carbon!$AH$4:$AI$10,2,FALSE),0)+IF('Crop 1'!$C$20=Carbon!$B131,'Crop 1'!$L$20*VLOOKUP('Crop 1'!$E$20,Carbon!$AH$4:$AI$10,2,FALSE),0)+IF('Crop 1'!$C$21=Carbon!$B131,'Crop 1'!$L$21*VLOOKUP('Crop 1'!$E$21,Carbon!$AH$4:$AI$10,2,FALSE),0)+IF('Crop 1'!$C$49=Carbon!$B131,'Crop 1'!$L$49*VLOOKUP('Crop 1'!$E$49,Carbon!$AH$4:$AI$10,2,FALSE),0)+IF('Crop 1'!$C$50=Carbon!$B131,'Crop 1'!$L$50*VLOOKUP('Crop 1'!$E$50,Carbon!$AH$4:$AI$10,2,FALSE),0)+IF('Crop 1'!$C$51=Carbon!$B131,'Crop 1'!$L$51*VLOOKUP('Crop 1'!$E$51,Carbon!$AH$4:$AI$10,2,FALSE),0)+IF('Crop 1'!$C$52=Carbon!$B131,'Crop 1'!$L$52*VLOOKUP('Crop 1'!$E$52,Carbon!$AH$4:$AI$10,2,FALSE),0)+IF('Crop 1'!$C$53=Carbon!$B131,'Crop 1'!$L$53*VLOOKUP('Crop 1'!$E$53,Carbon!$AH$4:$AI$10,2,FALSE),0)+IF('Crop 1'!$C$56=Carbon!$B131,'Crop 1'!$L$56*VLOOKUP('Crop 1'!$E$56,Carbon!$AH$4:$AI$10,2,FALSE),0)+IF('Crop 1'!$C$57=Carbon!$B131,'Crop 1'!$L$57*VLOOKUP('Crop 1'!$E$57,Carbon!$AH$4:$AI$10,2,FALSE),0)+IF('Crop 1'!$C$58=Carbon!$B131,'Crop 1'!$L$58*VLOOKUP('Crop 1'!$E$58,Carbon!$AH$4:$AI$10,2,FALSE),0)+IF('Crop 1'!$C$59=Carbon!$B131,'Crop 1'!$L$59*VLOOKUP('Crop 1'!$E$59,Carbon!$AH$4:$AI$10,2,FALSE),0)+IF('Crop 1'!$C$62=Carbon!$B131,'Crop 1'!$L$62*VLOOKUP('Crop 1'!$E$62,Carbon!$AH$4:$AI$10,2,FALSE),0)+IF('Crop 1'!$C$63=Carbon!$B131,'Crop 1'!$L$63*VLOOKUP('Crop 1'!$E$63,Carbon!$AH$4:$AI$10,2,FALSE),0)+IF('Crop 1'!$C$64=Carbon!$B131,'Crop 1'!$L$64*VLOOKUP('Crop 1'!$E$64,Carbon!$AH$4:$AI$10,2,FALSE),0)+IF('Crop 1'!$C$65=Carbon!$B131,'Crop 1'!$L$65*VLOOKUP('Crop 1'!$E$65,Carbon!$AH$4:$AI$10,2,FALSE),0))*$AL$20,2)","v":0},{"$f":"C131*Inputs!$D$13","v":0},{"$f":"ROUND((IF('Crop 2'!$C$14=Carbon!$B131,'Crop 2'!$L$14*VLOOKUP('Crop 2'!$E$14,Carbon!$AH$4:$AI$10,2,FALSE),0)+IF('Crop 2'!$C$15=Carbon!$B131,'Crop 2'!$L$15*VLOOKUP('Crop 2'!$E$15,Carbon!$AH$4:$AI$10,2,FALSE),0)+IF('Crop 2'!$C$16=Carbon!$B131,'Crop 2'!$L$16*VLOOKUP('Crop 2'!$E$16,Carbon!$AH$4:$AI$10,2,FALSE),0)+IF('Crop 2'!$C$19=Carbon!$B131,'Crop 2'!$L$19*VLOOKUP('Crop 2'!$E$19,Carbon!$AH$4:$AI$10,2,FALSE),0)+IF('Crop 2'!$C$20=Carbon!$B131,'Crop 2'!$L$20*VLOOKUP('Crop 2'!$E$20,Carbon!$AH$4:$AI$10,2,FALSE),0)+IF('Crop 2'!$C$21=Carbon!$B131,'Crop 2'!$L$21*VLOOKUP('Crop 2'!$E$21,Carbon!$AH$4:$AI$10,2,FALSE),0)+IF('Crop 2'!$C$49=Carbon!$B131,'Crop 2'!$L$49*VLOOKUP('Crop 2'!$E$49,Carbon!$AH$4:$AI$10,2,FALSE),0)+IF('Crop 2'!$C$50=Carbon!$B131,'Crop 2'!$L$50*VLOOKUP('Crop 2'!$E$50,Carbon!$AH$4:$AI$10,2,FALSE),0)+IF('Crop 2'!$C$51=Carbon!$B131,'Crop 2'!$L$51*VLOOKUP('Crop 2'!$E$51,Carbon!$AH$4:$AI$10,2,FALSE),0)+IF('Crop 2'!$C$52=Carbon!$B131,'Crop 2'!$L$52*VLOOKUP('Crop 2'!$E$52,Carbon!$AH$4:$AI$10,2,FALSE),0)+IF('Crop 2'!$C$53=Carbon!$B131,'Crop 2'!$L$53*VLOOKUP('Crop 2'!$E$53,Carbon!$AH$4:$AI$10,2,FALSE),0)+IF('Crop 2'!$C$56=Carbon!$B131,'Crop 2'!$L$56*VLOOKUP('Crop 2'!$E$56,Carbon!$AH$4:$AI$10,2,FALSE),0)+IF('Crop 2'!$C$57=Carbon!$B131,'Crop 2'!$L$57*VLOOKUP('Crop 2'!$E$57,Carbon!$AH$4:$AI$10,2,FALSE),0)+IF('Crop 2'!$C$58=Carbon!$B131,'Crop 2'!$L$58*VLOOKUP('Crop 2'!$E$58,Carbon!$AH$4:$AI$10,2,FALSE),0)+IF('Crop 2'!$C$59=Carbon!$B131,'Crop 2'!$L$59*VLOOKUP('Crop 2'!$E$59,Carbon!$AH$4:$AI$10,2,FALSE),0)+IF('Crop 2'!$C$62=Carbon!$B131,'Crop 2'!$L$62*VLOOKUP('Crop 2'!$E$62,Carbon!$AH$4:$AI$10,2,FALSE),0)+IF('Crop 2'!$C$63=Carbon!$B131,'Crop 2'!$L$63*VLOOKUP('Crop 2'!$E$63,Carbon!$AH$4:$AI$10,2,FALSE),0)+IF('Crop 2'!$C$64=Carbon!$B131,'Crop 2'!$L$64*VLOOKUP('Crop 2'!$E$64,Carbon!$AH$4:$AI$10,2,FALSE),0)+IF('Crop 2'!$C$65=Carbon!$B131,'Crop 2'!$L$65*VLOOKUP('Crop 2'!$E$65,Carbon!$AH$4:$AI$10,2,FALSE),0))*$AL$20,2)","v":0},{"$f":"E131*Inputs!$D$15","v":0},{"$f":"ROUND((IF('Crop 3'!$C$14=Carbon!$B131,'Crop 3'!$L$14*VLOOKUP('Crop 3'!$E$14,Carbon!$AH$4:$AI$10,2,FALSE),0)+IF('Crop 3'!$C$15=Carbon!$B131,'Crop 3'!$L$15*VLOOKUP('Crop 3'!$E$15,Carbon!$AH$4:$AI$10,2,FALSE),0)+IF('Crop 3'!$C$16=Carbon!$B131,'Crop 3'!$L$16*VLOOKUP('Crop 3'!$E$16,Carbon!$AH$4:$AI$10,2,FALSE),0)+IF('Crop 3'!$C$19=Carbon!$B131,'Crop 3'!$L$19*VLOOKUP('Crop 3'!$E$19,Carbon!$AH$4:$AI$10,2,FALSE),0)+IF('Crop 3'!$C$20=Carbon!$B131,'Crop 3'!$L$20*VLOOKUP('Crop 3'!$E$20,Carbon!$AH$4:$AI$10,2,FALSE),0)+IF('Crop 3'!$C$21=Carbon!$B131,'Crop 3'!$L$21*VLOOKUP('Crop 3'!$E$21,Carbon!$AH$4:$AI$10,2,FALSE),0)+IF('Crop 3'!$C$49=Carbon!$B131,'Crop 3'!$L$49*VLOOKUP('Crop 3'!$E$49,Carbon!$AH$4:$AI$10,2,FALSE),0)+IF('Crop 3'!$C$50=Carbon!$B131,'Crop 3'!$L$50*VLOOKUP('Crop 3'!$E$50,Carbon!$AH$4:$AI$10,2,FALSE),0)+IF('Crop 3'!$C$51=Carbon!$B131,'Crop 3'!$L$51*VLOOKUP('Crop 3'!$E$51,Carbon!$AH$4:$AI$10,2,FALSE),0)+IF('Crop 3'!$C$52=Carbon!$B131,'Crop 3'!$L$52*VLOOKUP('Crop 3'!$E$52,Carbon!$AH$4:$AI$10,2,FALSE),0)+IF('Crop 3'!$C$53=Carbon!$B131,'Crop 3'!$L$53*VLOOKUP('Crop 3'!$E$53,Carbon!$AH$4:$AI$10,2,FALSE),0)+IF('Crop 3'!$C$56=Carbon!$B131,'Crop 3'!$L$56*VLOOKUP('Crop 3'!$E$56,Carbon!$AH$4:$AI$10,2,FALSE),0)+IF('Crop 3'!$C$57=Carbon!$B131,'Crop 3'!$L$57*VLOOKUP('Crop 3'!$E$57,Carbon!$AH$4:$AI$10,2,FALSE),0)+IF('Crop 3'!$C$58=Carbon!$B131,'Crop 3'!$L$58*VLOOKUP('Crop 3'!$E$58,Carbon!$AH$4:$AI$10,2,FALSE),0)+IF('Crop 3'!$C$59=Carbon!$B131,'Crop 3'!$L$59*VLOOKUP('Crop 3'!$E$59,Carbon!$AH$4:$AI$10,2,FALSE),0)+IF('Crop 3'!$C$62=Carbon!$B131,'Crop 3'!$L$62*VLOOKUP('Crop 3'!$E$62,Carbon!$AH$4:$AI$10,2,FALSE),0)+IF('Crop 3'!$C$63=Carbon!$B131,'Crop 3'!$L$63*VLOOKUP('Crop 3'!$E$63,Carbon!$AH$4:$AI$10,2,FALSE),0)+IF('Crop 3'!$C$64=Carbon!$B131,'Crop 3'!$L$64*VLOOKUP('Crop 3'!$E$64,Carbon!$AH$4:$AI$10,2,FALSE),0)+IF('Crop 3'!$C$65=Carbon!$B131,'Crop 3'!$L$65*VLOOKUP('Crop 3'!$E$65,Carbon!$AH$4:$AI$10,2,FALSE),0))*$AL$20,2)","v":0},{"$f":"G131*Inputs!$D$17","v":0},{"$f":"ROUND(J131/Inputs!D$19,2)","v":0},0,null,null,{"$f":"ROUND((IF('Crop 1'!$C$14=Carbon!$B131,'Crop 1'!$V$14*VLOOKUP('Crop 1'!$E$14,Carbon!$AH$4:$AI$10,2,FALSE),0)+IF('Crop 1'!$C$15=Carbon!$B131,'Crop 1'!$V$15*VLOOKUP('Crop 1'!$E$15,Carbon!$AH$4:$AI$10,2,FALSE),0)+IF('Crop 1'!$C$16=Carbon!$B131,'Crop 1'!$V$16*VLOOKUP('Crop 1'!$E$16,Carbon!$AH$4:$AI$10,2,FALSE),0)+IF('Crop 1'!$C$19=Carbon!$B131,'Crop 1'!$V$19*VLOOKUP('Crop 1'!$E$19,Carbon!$AH$4:$AI$10,2,FALSE),0)+IF('Crop 1'!$C$20=Carbon!$B131,'Crop 1'!$V$20*VLOOKUP('Crop 1'!$E$20,Carbon!$AH$4:$AI$10,2,FALSE),0)+IF('Crop 1'!$C$21=Carbon!$B131,'Crop 1'!$V$21*VLOOKUP('Crop 1'!$E$21,Carbon!$AH$4:$AI$10,2,FALSE),0)+IF('Crop 1'!$C$49=Carbon!$B131,'Crop 1'!$V$49*VLOOKUP('Crop 1'!$E$49,Carbon!$AH$4:$AI$10,2,FALSE),0)+IF('Crop 1'!$C$50=Carbon!$B131,'Crop 1'!$V$50*VLOOKUP('Crop 1'!$E$50,Carbon!$AH$4:$AI$10,2,FALSE),0)+IF('Crop 1'!$C$51=Carbon!$B131,'Crop 1'!$V$51*VLOOKUP('Crop 1'!$E$51,Carbon!$AH$4:$AI$10,2,FALSE),0)+IF('Crop 1'!$C$52=Carbon!$B131,'Crop 1'!$V$52*VLOOKUP('Crop 1'!$E$52,Carbon!$AH$4:$AI$10,2,FALSE),0)+IF('Crop 1'!$C$53=Carbon!$B131,'Crop 1'!$V$53*VLOOKUP('Crop 1'!$E$53,Carbon!$AH$4:$AI$10,2,FALSE),0)+IF('Crop 1'!$C$56=Carbon!$B131,'Crop 1'!$V$56*VLOOKUP('Crop 1'!$E$56,Carbon!$AH$4:$AI$10,2,FALSE),0)+IF('Crop 1'!$C$57=Carbon!$B131,'Crop 1'!$V$57*VLOOKUP('Crop 1'!$E$57,Carbon!$AH$4:$AI$10,2,FALSE),0)+IF('Crop 1'!$C$58=Carbon!$B131,'Crop 1'!$V$58*VLOOKUP('Crop 1'!$E$58,Carbon!$AH$4:$AI$10,2,FALSE),0)+IF('Crop 1'!$C$59=Carbon!$B131,'Crop 1'!$V$59*VLOOKUP('Crop 1'!$E$59,Carbon!$AH$4:$AI$10,2,FALSE),0)+IF('Crop 1'!$C$62=Carbon!$B131,'Crop 1'!$V$62*VLOOKUP('Crop 1'!$E$62,Carbon!$AH$4:$AI$10,2,FALSE),0)+IF('Crop 1'!$C$63=Carbon!$B131,'Crop 1'!$V$63*VLOOKUP('Crop 1'!$E$63,Carbon!$AH$4:$AI$10,2,FALSE),0)+IF('Crop 1'!$C$64=Carbon!$B131,'Crop 1'!$V$64*VLOOKUP('Crop 1'!$E$64,Carbon!$AH$4:$AI$10,2,FALSE),0)+IF('Crop 1'!$C$65=Carbon!$B131,'Crop 1'!$V$65*VLOOKUP('Crop 1'!$E$65,Carbon!$AH$4:$AI$10,2,FALSE),0))*$AL$20,2)","v":0},{"$f":"M131*Inputs!$D$13","v":0},{"$f":"ROUND((IF('Crop 2'!$C$14=Carbon!$B131,'Crop 2'!$V$14*VLOOKUP('Crop 2'!$E$14,Carbon!$AH$4:$AI$10,2,FALSE),0)+IF('Crop 2'!$C$15=Carbon!$B131,'Crop 2'!$V$15*VLOOKUP('Crop 2'!$E$15,Carbon!$AH$4:$AI$10,2,FALSE),0)+IF('Crop 2'!$C$16=Carbon!$B131,'Crop 2'!$V$16*VLOOKUP('Crop 2'!$E$16,Carbon!$AH$4:$AI$10,2,FALSE),0)+IF('Crop 2'!$C$19=Carbon!$B131,'Crop 2'!$V$19*VLOOKUP('Crop 2'!$E$19,Carbon!$AH$4:$AI$10,2,FALSE),0)+IF('Crop 2'!$C$20=Carbon!$B131,'Crop 2'!$V$20*VLOOKUP('Crop 2'!$E$20,Carbon!$AH$4:$AI$10,2,FALSE),0)+IF('Crop 2'!$C$21=Carbon!$B131,'Crop 2'!$V$21*VLOOKUP('Crop 2'!$E$21,Carbon!$AH$4:$AI$10,2,FALSE),0)+IF('Crop 2'!$C$49=Carbon!$B131,'Crop 2'!$V$49*VLOOKUP('Crop 2'!$E$49,Carbon!$AH$4:$AI$10,2,FALSE),0)+IF('Crop 2'!$C$50=Carbon!$B131,'Crop 2'!$V$50*VLOOKUP('Crop 2'!$E$50,Carbon!$AH$4:$AI$10,2,FALSE),0)+IF('Crop 2'!$C$51=Carbon!$B131,'Crop 2'!$V$51*VLOOKUP('Crop 2'!$E$51,Carbon!$AH$4:$AI$10,2,FALSE),0)+IF('Crop 2'!$C$52=Carbon!$B131,'Crop 2'!$V$52*VLOOKUP('Crop 2'!$E$52,Carbon!$AH$4:$AI$10,2,FALSE),0)+IF('Crop 2'!$C$53=Carbon!$B131,'Crop 2'!$V$53*VLOOKUP('Crop 2'!$E$53,Carbon!$AH$4:$AI$10,2,FALSE),0)+IF('Crop 2'!$C$56=Carbon!$B131,'Crop 2'!$V$56*VLOOKUP('Crop 2'!$E$56,Carbon!$AH$4:$AI$10,2,FALSE),0)+IF('Crop 2'!$C$57=Carbon!$B131,'Crop 2'!$V$57*VLOOKUP('Crop 2'!$E$57,Carbon!$AH$4:$AI$10,2,FALSE),0)+IF('Crop 2'!$C$58=Carbon!$B131,'Crop 2'!$V$58*VLOOKUP('Crop 2'!$E$58,Carbon!$AH$4:$AI$10,2,FALSE),0)+IF('Crop 2'!$C$59=Carbon!$B131,'Crop 2'!$V$59*VLOOKUP('Crop 2'!$E$59,Carbon!$AH$4:$AI$10,2,FALSE),0)+IF('Crop 2'!$C$62=Carbon!$B131,'Crop 2'!$V$62*VLOOKUP('Crop 2'!$E$62,Carbon!$AH$4:$AI$10,2,FALSE),0)+IF('Crop 2'!$C$63=Carbon!$B131,'Crop 2'!$V$63*VLOOKUP('Crop 2'!$E$63,Carbon!$AH$4:$AI$10,2,FALSE),0)+IF('Crop 2'!$C$64=Carbon!$B131,'Crop 2'!$V$64*VLOOKUP('Crop 2'!$E$64,Carbon!$AH$4:$AI$10,2,FALSE),0)+IF('Crop 2'!$C$65=Carbon!$B131,'Crop 2'!$V$65*VLOOKUP('Crop 2'!$E$65,Carbon!$AH$4:$AI$10,2,FALSE),0))*$AL$20,2)","v":0},{"$f":"O131*Inputs!$D$15","v":0},{"$f":"ROUND((IF('Crop 3'!$C$14=Carbon!$B131,'Crop 3'!$V$14*VLOOKUP('Crop 3'!$E$14,Carbon!$AH$4:$AI$10,2,FALSE),0)+IF('Crop 3'!$C$15=Carbon!$B131,'Crop 3'!$V$15*VLOOKUP('Crop 3'!$E$15,Carbon!$AH$4:$AI$10,2,FALSE),0)+IF('Crop 3'!$C$16=Carbon!$B131,'Crop 3'!$V$16*VLOOKUP('Crop 3'!$E$16,Carbon!$AH$4:$AI$10,2,FALSE),0)+IF('Crop 3'!$C$19=Carbon!$B131,'Crop 3'!$V$19*VLOOKUP('Crop 3'!$E$19,Carbon!$AH$4:$AI$10,2,FALSE),0)+IF('Crop 3'!$C$20=Carbon!$B131,'Crop 3'!$V$20*VLOOKUP('Crop 3'!$E$20,Carbon!$AH$4:$AI$10,2,FALSE),0)+IF('Crop 3'!$C$21=Carbon!$B131,'Crop 3'!$V$21*VLOOKUP('Crop 3'!$E$21,Carbon!$AH$4:$AI$10,2,FALSE),0)+IF('Crop 3'!$C$49=Carbon!$B131,'Crop 3'!$V$49*VLOOKUP('Crop 3'!$E$49,Carbon!$AH$4:$AI$10,2,FALSE),0)+IF('Crop 3'!$C$50=Carbon!$B131,'Crop 3'!$V$50*VLOOKUP('Crop 3'!$E$50,Carbon!$AH$4:$AI$10,2,FALSE),0)+IF('Crop 3'!$C$51=Carbon!$B131,'Crop 3'!$V$51*VLOOKUP('Crop 3'!$E$51,Carbon!$AH$4:$AI$10,2,FALSE),0)+IF('Crop 3'!$C$52=Carbon!$B131,'Crop 3'!$V$52*VLOOKUP('Crop 3'!$E$52,Carbon!$AH$4:$AI$10,2,FALSE),0)+IF('Crop 3'!$C$53=Carbon!$B131,'Crop 3'!$V$53*VLOOKUP('Crop 3'!$E$53,Carbon!$AH$4:$AI$10,2,FALSE),0)+IF('Crop 3'!$C$56=Carbon!$B131,'Crop 3'!$V$56*VLOOKUP('Crop 3'!$E$56,Carbon!$AH$4:$AI$10,2,FALSE),0)+IF('Crop 3'!$C$57=Carbon!$B131,'Crop 3'!$V$57*VLOOKUP('Crop 3'!$E$57,Carbon!$AH$4:$AI$10,2,FALSE),0)+IF('Crop 3'!$C$58=Carbon!$B131,'Crop 3'!$V$58*VLOOKUP('Crop 3'!$E$58,Carbon!$AH$4:$AI$10,2,FALSE),0)+IF('Crop 3'!$C$59=Carbon!$B131,'Crop 3'!$V$59*VLOOKUP('Crop 3'!$E$59,Carbon!$AH$4:$AI$10,2,FALSE),0)+IF('Crop 3'!$C$62=Carbon!$B131,'Crop 3'!$V$62*VLOOKUP('Crop 3'!$E$62,Carbon!$AH$4:$AI$10,2,FALSE),0)+IF('Crop 3'!$C$63=Carbon!$B131,'Crop 3'!$V$63*VLOOKUP('Crop 3'!$E$63,Carbon!$AH$4:$AI$10,2,FALSE),0)+IF('Crop 3'!$C$64=Carbon!$B131,'Crop 3'!$V$64*VLOOKUP('Crop 3'!$E$64,Carbon!$AH$4:$AI$10,2,FALSE),0)+IF('Crop 3'!$C$65=Carbon!$B131,'Crop 3'!$V$65*VLOOKUP('Crop 3'!$E$65,Carbon!$AH$4:$AI$10,2,FALSE),0))*$AL$20,2)","v":0},{"$f":"Q131*Inputs!$D$17","v":0},{"$f":"ROUND(T131/Inputs!D$19,2)","v":0},0,null,null,0,{"$f":"W131*Inputs!$D$13","v":0},0,{"$f":"Y131*Inputs!$D$13","v":0},0,{"$f":"AA131*Inputs!$D$13","v":0},{"$f":"ROUND(AD131/Inputs!D$19,2)","v":0},0]
[null,{"$f":"Defaults!AH98","v":"Rebel EX"},{"$f":"ROUND((IF('Crop 1'!$C$14=Carbon!$B132,'Crop 1'!$L$14*VLOOKUP('Crop 1'!$E$14,Carbon!$AH$4:$AI$10,2,FALSE),0)+IF('Crop 1'!$C$15=Carbon!$B132,'Crop 1'!$L$15*VLOOKUP('Crop 1'!$E$15,Carbon!$AH$4:$AI$10,2,FALSE),0)+IF('Crop 1'!$C$16=Carbon!$B132,'Crop 1'!$L$16*VLOOKUP('Crop 1'!$E$16,Carbon!$AH$4:$AI$10,2,FALSE),0)+IF('Crop 1'!$C$19=Carbon!$B132,'Crop 1'!$L$19*VLOOKUP('Crop 1'!$E$19,Carbon!$AH$4:$AI$10,2,FALSE),0)+IF('Crop 1'!$C$20=Carbon!$B132,'Crop 1'!$L$20*VLOOKUP('Crop 1'!$E$20,Carbon!$AH$4:$AI$10,2,FALSE),0)+IF('Crop 1'!$C$21=Carbon!$B132,'Crop 1'!$L$21*VLOOKUP('Crop 1'!$E$21,Carbon!$AH$4:$AI$10,2,FALSE),0)+IF('Crop 1'!$C$49=Carbon!$B132,'Crop 1'!$L$49*VLOOKUP('Crop 1'!$E$49,Carbon!$AH$4:$AI$10,2,FALSE),0)+IF('Crop 1'!$C$50=Carbon!$B132,'Crop 1'!$L$50*VLOOKUP('Crop 1'!$E$50,Carbon!$AH$4:$AI$10,2,FALSE),0)+IF('Crop 1'!$C$51=Carbon!$B132,'Crop 1'!$L$51*VLOOKUP('Crop 1'!$E$51,Carbon!$AH$4:$AI$10,2,FALSE),0)+IF('Crop 1'!$C$52=Carbon!$B132,'Crop 1'!$L$52*VLOOKUP('Crop 1'!$E$52,Carbon!$AH$4:$AI$10,2,FALSE),0)+IF('Crop 1'!$C$53=Carbon!$B132,'Crop 1'!$L$53*VLOOKUP('Crop 1'!$E$53,Carbon!$AH$4:$AI$10,2,FALSE),0)+IF('Crop 1'!$C$56=Carbon!$B132,'Crop 1'!$L$56*VLOOKUP('Crop 1'!$E$56,Carbon!$AH$4:$AI$10,2,FALSE),0)+IF('Crop 1'!$C$57=Carbon!$B132,'Crop 1'!$L$57*VLOOKUP('Crop 1'!$E$57,Carbon!$AH$4:$AI$10,2,FALSE),0)+IF('Crop 1'!$C$58=Carbon!$B132,'Crop 1'!$L$58*VLOOKUP('Crop 1'!$E$58,Carbon!$AH$4:$AI$10,2,FALSE),0)+IF('Crop 1'!$C$59=Carbon!$B132,'Crop 1'!$L$59*VLOOKUP('Crop 1'!$E$59,Carbon!$AH$4:$AI$10,2,FALSE),0)+IF('Crop 1'!$C$62=Carbon!$B132,'Crop 1'!$L$62*VLOOKUP('Crop 1'!$E$62,Carbon!$AH$4:$AI$10,2,FALSE),0)+IF('Crop 1'!$C$63=Carbon!$B132,'Crop 1'!$L$63*VLOOKUP('Crop 1'!$E$63,Carbon!$AH$4:$AI$10,2,FALSE),0)+IF('Crop 1'!$C$64=Carbon!$B132,'Crop 1'!$L$64*VLOOKUP('Crop 1'!$E$64,Carbon!$AH$4:$AI$10,2,FALSE),0)+IF('Crop 1'!$C$65=Carbon!$B132,'Crop 1'!$L$65*VLOOKUP('Crop 1'!$E$65,Carbon!$AH$4:$AI$10,2,FALSE),0))*$AL$20,2)","v":0},{"$f":"C132*Inputs!$D$13","v":0},{"$f":"ROUND((IF('Crop 2'!$C$14=Carbon!$B132,'Crop 2'!$L$14*VLOOKUP('Crop 2'!$E$14,Carbon!$AH$4:$AI$10,2,FALSE),0)+IF('Crop 2'!$C$15=Carbon!$B132,'Crop 2'!$L$15*VLOOKUP('Crop 2'!$E$15,Carbon!$AH$4:$AI$10,2,FALSE),0)+IF('Crop 2'!$C$16=Carbon!$B132,'Crop 2'!$L$16*VLOOKUP('Crop 2'!$E$16,Carbon!$AH$4:$AI$10,2,FALSE),0)+IF('Crop 2'!$C$19=Carbon!$B132,'Crop 2'!$L$19*VLOOKUP('Crop 2'!$E$19,Carbon!$AH$4:$AI$10,2,FALSE),0)+IF('Crop 2'!$C$20=Carbon!$B132,'Crop 2'!$L$20*VLOOKUP('Crop 2'!$E$20,Carbon!$AH$4:$AI$10,2,FALSE),0)+IF('Crop 2'!$C$21=Carbon!$B132,'Crop 2'!$L$21*VLOOKUP('Crop 2'!$E$21,Carbon!$AH$4:$AI$10,2,FALSE),0)+IF('Crop 2'!$C$49=Carbon!$B132,'Crop 2'!$L$49*VLOOKUP('Crop 2'!$E$49,Carbon!$AH$4:$AI$10,2,FALSE),0)+IF('Crop 2'!$C$50=Carbon!$B132,'Crop 2'!$L$50*VLOOKUP('Crop 2'!$E$50,Carbon!$AH$4:$AI$10,2,FALSE),0)+IF('Crop 2'!$C$51=Carbon!$B132,'Crop 2'!$L$51*VLOOKUP('Crop 2'!$E$51,Carbon!$AH$4:$AI$10,2,FALSE),0)+IF('Crop 2'!$C$52=Carbon!$B132,'Crop 2'!$L$52*VLOOKUP('Crop 2'!$E$52,Carbon!$AH$4:$AI$10,2,FALSE),0)+IF('Crop 2'!$C$53=Carbon!$B132,'Crop 2'!$L$53*VLOOKUP('Crop 2'!$E$53,Carbon!$AH$4:$AI$10,2,FALSE),0)+IF('Crop 2'!$C$56=Carbon!$B132,'Crop 2'!$L$56*VLOOKUP('Crop 2'!$E$56,Carbon!$AH$4:$AI$10,2,FALSE),0)+IF('Crop 2'!$C$57=Carbon!$B132,'Crop 2'!$L$57*VLOOKUP('Crop 2'!$E$57,Carbon!$AH$4:$AI$10,2,FALSE),0)+IF('Crop 2'!$C$58=Carbon!$B132,'Crop 2'!$L$58*VLOOKUP('Crop 2'!$E$58,Carbon!$AH$4:$AI$10,2,FALSE),0)+IF('Crop 2'!$C$59=Carbon!$B132,'Crop 2'!$L$59*VLOOKUP('Crop 2'!$E$59,Carbon!$AH$4:$AI$10,2,FALSE),0)+IF('Crop 2'!$C$62=Carbon!$B132,'Crop 2'!$L$62*VLOOKUP('Crop 2'!$E$62,Carbon!$AH$4:$AI$10,2,FALSE),0)+IF('Crop 2'!$C$63=Carbon!$B132,'Crop 2'!$L$63*VLOOKUP('Crop 2'!$E$63,Carbon!$AH$4:$AI$10,2,FALSE),0)+IF('Crop 2'!$C$64=Carbon!$B132,'Crop 2'!$L$64*VLOOKUP('Crop 2'!$E$64,Carbon!$AH$4:$AI$10,2,FALSE),0)+IF('Crop 2'!$C$65=Carbon!$B132,'Crop 2'!$L$65*VLOOKUP('Crop 2'!$E$65,Carbon!$AH$4:$AI$10,2,FALSE),0))*$AL$20,2)","v":0},{"$f":"E132*Inputs!$D$15","v":0},{"$f":"ROUND((IF('Crop 3'!$C$14=Carbon!$B132,'Crop 3'!$L$14*VLOOKUP('Crop 3'!$E$14,Carbon!$AH$4:$AI$10,2,FALSE),0)+IF('Crop 3'!$C$15=Carbon!$B132,'Crop 3'!$L$15*VLOOKUP('Crop 3'!$E$15,Carbon!$AH$4:$AI$10,2,FALSE),0)+IF('Crop 3'!$C$16=Carbon!$B132,'Crop 3'!$L$16*VLOOKUP('Crop 3'!$E$16,Carbon!$AH$4:$AI$10,2,FALSE),0)+IF('Crop 3'!$C$19=Carbon!$B132,'Crop 3'!$L$19*VLOOKUP('Crop 3'!$E$19,Carbon!$AH$4:$AI$10,2,FALSE),0)+IF('Crop 3'!$C$20=Carbon!$B132,'Crop 3'!$L$20*VLOOKUP('Crop 3'!$E$20,Carbon!$AH$4:$AI$10,2,FALSE),0)+IF('Crop 3'!$C$21=Carbon!$B132,'Crop 3'!$L$21*VLOOKUP('Crop 3'!$E$21,Carbon!$AH$4:$AI$10,2,FALSE),0)+IF('Crop 3'!$C$49=Carbon!$B132,'Crop 3'!$L$49*VLOOKUP('Crop 3'!$E$49,Carbon!$AH$4:$AI$10,2,FALSE),0)+IF('Crop 3'!$C$50=Carbon!$B132,'Crop 3'!$L$50*VLOOKUP('Crop 3'!$E$50,Carbon!$AH$4:$AI$10,2,FALSE),0)+IF('Crop 3'!$C$51=Carbon!$B132,'Crop 3'!$L$51*VLOOKUP('Crop 3'!$E$51,Carbon!$AH$4:$AI$10,2,FALSE),0)+IF('Crop 3'!$C$52=Carbon!$B132,'Crop 3'!$L$52*VLOOKUP('Crop 3'!$E$52,Carbon!$AH$4:$AI$10,2,FALSE),0)+IF('Crop 3'!$C$53=Carbon!$B132,'Crop 3'!$L$53*VLOOKUP('Crop 3'!$E$53,Carbon!$AH$4:$AI$10,2,FALSE),0)+IF('Crop 3'!$C$56=Carbon!$B132,'Crop 3'!$L$56*VLOOKUP('Crop 3'!$E$56,Carbon!$AH$4:$AI$10,2,FALSE),0)+IF('Crop 3'!$C$57=Carbon!$B132,'Crop 3'!$L$57*VLOOKUP('Crop 3'!$E$57,Carbon!$AH$4:$AI$10,2,FALSE),0)+IF('Crop 3'!$C$58=Carbon!$B132,'Crop 3'!$L$58*VLOOKUP('Crop 3'!$E$58,Carbon!$AH$4:$AI$10,2,FALSE),0)+IF('Crop 3'!$C$59=Carbon!$B132,'Crop 3'!$L$59*VLOOKUP('Crop 3'!$E$59,Carbon!$AH$4:$AI$10,2,FALSE),0)+IF('Crop 3'!$C$62=Carbon!$B132,'Crop 3'!$L$62*VLOOKUP('Crop 3'!$E$62,Carbon!$AH$4:$AI$10,2,FALSE),0)+IF('Crop 3'!$C$63=Carbon!$B132,'Crop 3'!$L$63*VLOOKUP('Crop 3'!$E$63,Carbon!$AH$4:$AI$10,2,FALSE),0)+IF('Crop 3'!$C$64=Carbon!$B132,'Crop 3'!$L$64*VLOOKUP('Crop 3'!$E$64,Carbon!$AH$4:$AI$10,2,FALSE),0)+IF('Crop 3'!$C$65=Carbon!$B132,'Crop 3'!$L$65*VLOOKUP('Crop 3'!$E$65,Carbon!$AH$4:$AI$10,2,FALSE),0))*$AL$20,2)","v":0},{"$f":"G132*Inputs!$D$17","v":0},{"$f":"ROUND(J132/Inputs!D$19,2)","v":0},0,null,null,{"$f":"ROUND((IF('Crop 1'!$C$14=Carbon!$B132,'Crop 1'!$V$14*VLOOKUP('Crop 1'!$E$14,Carbon!$AH$4:$AI$10,2,FALSE),0)+IF('Crop 1'!$C$15=Carbon!$B132,'Crop 1'!$V$15*VLOOKUP('Crop 1'!$E$15,Carbon!$AH$4:$AI$10,2,FALSE),0)+IF('Crop 1'!$C$16=Carbon!$B132,'Crop 1'!$V$16*VLOOKUP('Crop 1'!$E$16,Carbon!$AH$4:$AI$10,2,FALSE),0)+IF('Crop 1'!$C$19=Carbon!$B132,'Crop 1'!$V$19*VLOOKUP('Crop 1'!$E$19,Carbon!$AH$4:$AI$10,2,FALSE),0)+IF('Crop 1'!$C$20=Carbon!$B132,'Crop 1'!$V$20*VLOOKUP('Crop 1'!$E$20,Carbon!$AH$4:$AI$10,2,FALSE),0)+IF('Crop 1'!$C$21=Carbon!$B132,'Crop 1'!$V$21*VLOOKUP('Crop 1'!$E$21,Carbon!$AH$4:$AI$10,2,FALSE),0)+IF('Crop 1'!$C$49=Carbon!$B132,'Crop 1'!$V$49*VLOOKUP('Crop 1'!$E$49,Carbon!$AH$4:$AI$10,2,FALSE),0)+IF('Crop 1'!$C$50=Carbon!$B132,'Crop 1'!$V$50*VLOOKUP('Crop 1'!$E$50,Carbon!$AH$4:$AI$10,2,FALSE),0)+IF('Crop 1'!$C$51=Carbon!$B132,'Crop 1'!$V$51*VLOOKUP('Crop 1'!$E$51,Carbon!$AH$4:$AI$10,2,FALSE),0)+IF('Crop 1'!$C$52=Carbon!$B132,'Crop 1'!$V$52*VLOOKUP('Crop 1'!$E$52,Carbon!$AH$4:$AI$10,2,FALSE),0)+IF('Crop 1'!$C$53=Carbon!$B132,'Crop 1'!$V$53*VLOOKUP('Crop 1'!$E$53,Carbon!$AH$4:$AI$10,2,FALSE),0)+IF('Crop 1'!$C$56=Carbon!$B132,'Crop 1'!$V$56*VLOOKUP('Crop 1'!$E$56,Carbon!$AH$4:$AI$10,2,FALSE),0)+IF('Crop 1'!$C$57=Carbon!$B132,'Crop 1'!$V$57*VLOOKUP('Crop 1'!$E$57,Carbon!$AH$4:$AI$10,2,FALSE),0)+IF('Crop 1'!$C$58=Carbon!$B132,'Crop 1'!$V$58*VLOOKUP('Crop 1'!$E$58,Carbon!$AH$4:$AI$10,2,FALSE),0)+IF('Crop 1'!$C$59=Carbon!$B132,'Crop 1'!$V$59*VLOOKUP('Crop 1'!$E$59,Carbon!$AH$4:$AI$10,2,FALSE),0)+IF('Crop 1'!$C$62=Carbon!$B132,'Crop 1'!$V$62*VLOOKUP('Crop 1'!$E$62,Carbon!$AH$4:$AI$10,2,FALSE),0)+IF('Crop 1'!$C$63=Carbon!$B132,'Crop 1'!$V$63*VLOOKUP('Crop 1'!$E$63,Carbon!$AH$4:$AI$10,2,FALSE),0)+IF('Crop 1'!$C$64=Carbon!$B132,'Crop 1'!$V$64*VLOOKUP('Crop 1'!$E$64,Carbon!$AH$4:$AI$10,2,FALSE),0)+IF('Crop 1'!$C$65=Carbon!$B132,'Crop 1'!$V$65*VLOOKUP('Crop 1'!$E$65,Carbon!$AH$4:$AI$10,2,FALSE),0))*$AL$20,2)","v":0},{"$f":"M132*Inputs!$D$13","v":0},{"$f":"ROUND((IF('Crop 2'!$C$14=Carbon!$B132,'Crop 2'!$V$14*VLOOKUP('Crop 2'!$E$14,Carbon!$AH$4:$AI$10,2,FALSE),0)+IF('Crop 2'!$C$15=Carbon!$B132,'Crop 2'!$V$15*VLOOKUP('Crop 2'!$E$15,Carbon!$AH$4:$AI$10,2,FALSE),0)+IF('Crop 2'!$C$16=Carbon!$B132,'Crop 2'!$V$16*VLOOKUP('Crop 2'!$E$16,Carbon!$AH$4:$AI$10,2,FALSE),0)+IF('Crop 2'!$C$19=Carbon!$B132,'Crop 2'!$V$19*VLOOKUP('Crop 2'!$E$19,Carbon!$AH$4:$AI$10,2,FALSE),0)+IF('Crop 2'!$C$20=Carbon!$B132,'Crop 2'!$V$20*VLOOKUP('Crop 2'!$E$20,Carbon!$AH$4:$AI$10,2,FALSE),0)+IF('Crop 2'!$C$21=Carbon!$B132,'Crop 2'!$V$21*VLOOKUP('Crop 2'!$E$21,Carbon!$AH$4:$AI$10,2,FALSE),0)+IF('Crop 2'!$C$49=Carbon!$B132,'Crop 2'!$V$49*VLOOKUP('Crop 2'!$E$49,Carbon!$AH$4:$AI$10,2,FALSE),0)+IF('Crop 2'!$C$50=Carbon!$B132,'Crop 2'!$V$50*VLOOKUP('Crop 2'!$E$50,Carbon!$AH$4:$AI$10,2,FALSE),0)+IF('Crop 2'!$C$51=Carbon!$B132,'Crop 2'!$V$51*VLOOKUP('Crop 2'!$E$51,Carbon!$AH$4:$AI$10,2,FALSE),0)+IF('Crop 2'!$C$52=Carbon!$B132,'Crop 2'!$V$52*VLOOKUP('Crop 2'!$E$52,Carbon!$AH$4:$AI$10,2,FALSE),0)+IF('Crop 2'!$C$53=Carbon!$B132,'Crop 2'!$V$53*VLOOKUP('Crop 2'!$E$53,Carbon!$AH$4:$AI$10,2,FALSE),0)+IF('Crop 2'!$C$56=Carbon!$B132,'Crop 2'!$V$56*VLOOKUP('Crop 2'!$E$56,Carbon!$AH$4:$AI$10,2,FALSE),0)+IF('Crop 2'!$C$57=Carbon!$B132,'Crop 2'!$V$57*VLOOKUP('Crop 2'!$E$57,Carbon!$AH$4:$AI$10,2,FALSE),0)+IF('Crop 2'!$C$58=Carbon!$B132,'Crop 2'!$V$58*VLOOKUP('Crop 2'!$E$58,Carbon!$AH$4:$AI$10,2,FALSE),0)+IF('Crop 2'!$C$59=Carbon!$B132,'Crop 2'!$V$59*VLOOKUP('Crop 2'!$E$59,Carbon!$AH$4:$AI$10,2,FALSE),0)+IF('Crop 2'!$C$62=Carbon!$B132,'Crop 2'!$V$62*VLOOKUP('Crop 2'!$E$62,Carbon!$AH$4:$AI$10,2,FALSE),0)+IF('Crop 2'!$C$63=Carbon!$B132,'Crop 2'!$V$63*VLOOKUP('Crop 2'!$E$63,Carbon!$AH$4:$AI$10,2,FALSE),0)+IF('Crop 2'!$C$64=Carbon!$B132,'Crop 2'!$V$64*VLOOKUP('Crop 2'!$E$64,Carbon!$AH$4:$AI$10,2,FALSE),0)+IF('Crop 2'!$C$65=Carbon!$B132,'Crop 2'!$V$65*VLOOKUP('Crop 2'!$E$65,Carbon!$AH$4:$AI$10,2,FALSE),0))*$AL$20,2)","v":0},{"$f":"O132*Inputs!$D$15","v":0},{"$f":"ROUND((IF('Crop 3'!$C$14=Carbon!$B132,'Crop 3'!$V$14*VLOOKUP('Crop 3'!$E$14,Carbon!$AH$4:$AI$10,2,FALSE),0)+IF('Crop 3'!$C$15=Carbon!$B132,'Crop 3'!$V$15*VLOOKUP('Crop 3'!$E$15,Carbon!$AH$4:$AI$10,2,FALSE),0)+IF('Crop 3'!$C$16=Carbon!$B132,'Crop 3'!$V$16*VLOOKUP('Crop 3'!$E$16,Carbon!$AH$4:$AI$10,2,FALSE),0)+IF('Crop 3'!$C$19=Carbon!$B132,'Crop 3'!$V$19*VLOOKUP('Crop 3'!$E$19,Carbon!$AH$4:$AI$10,2,FALSE),0)+IF('Crop 3'!$C$20=Carbon!$B132,'Crop 3'!$V$20*VLOOKUP('Crop 3'!$E$20,Carbon!$AH$4:$AI$10,2,FALSE),0)+IF('Crop 3'!$C$21=Carbon!$B132,'Crop 3'!$V$21*VLOOKUP('Crop 3'!$E$21,Carbon!$AH$4:$AI$10,2,FALSE),0)+IF('Crop 3'!$C$49=Carbon!$B132,'Crop 3'!$V$49*VLOOKUP('Crop 3'!$E$49,Carbon!$AH$4:$AI$10,2,FALSE),0)+IF('Crop 3'!$C$50=Carbon!$B132,'Crop 3'!$V$50*VLOOKUP('Crop 3'!$E$50,Carbon!$AH$4:$AI$10,2,FALSE),0)+IF('Crop 3'!$C$51=Carbon!$B132,'Crop 3'!$V$51*VLOOKUP('Crop 3'!$E$51,Carbon!$AH$4:$AI$10,2,FALSE),0)+IF('Crop 3'!$C$52=Carbon!$B132,'Crop 3'!$V$52*VLOOKUP('Crop 3'!$E$52,Carbon!$AH$4:$AI$10,2,FALSE),0)+IF('Crop 3'!$C$53=Carbon!$B132,'Crop 3'!$V$53*VLOOKUP('Crop 3'!$E$53,Carbon!$AH$4:$AI$10,2,FALSE),0)+IF('Crop 3'!$C$56=Carbon!$B132,'Crop 3'!$V$56*VLOOKUP('Crop 3'!$E$56,Carbon!$AH$4:$AI$10,2,FALSE),0)+IF('Crop 3'!$C$57=Carbon!$B132,'Crop 3'!$V$57*VLOOKUP('Crop 3'!$E$57,Carbon!$AH$4:$AI$10,2,FALSE),0)+IF('Crop 3'!$C$58=Carbon!$B132,'Crop 3'!$V$58*VLOOKUP('Crop 3'!$E$58,Carbon!$AH$4:$AI$10,2,FALSE),0)+IF('Crop 3'!$C$59=Carbon!$B132,'Crop 3'!$V$59*VLOOKUP('Crop 3'!$E$59,Carbon!$AH$4:$AI$10,2,FALSE),0)+IF('Crop 3'!$C$62=Carbon!$B132,'Crop 3'!$V$62*VLOOKUP('Crop 3'!$E$62,Carbon!$AH$4:$AI$10,2,FALSE),0)+IF('Crop 3'!$C$63=Carbon!$B132,'Crop 3'!$V$63*VLOOKUP('Crop 3'!$E$63,Carbon!$AH$4:$AI$10,2,FALSE),0)+IF('Crop 3'!$C$64=Carbon!$B132,'Crop 3'!$V$64*VLOOKUP('Crop 3'!$E$64,Carbon!$AH$4:$AI$10,2,FALSE),0)+IF('Crop 3'!$C$65=Carbon!$B132,'Crop 3'!$V$65*VLOOKUP('Crop 3'!$E$65,Carbon!$AH$4:$AI$10,2,FALSE),0))*$AL$20,2)","v":0},{"$f":"Q132*Inputs!$D$17","v":0},{"$f":"ROUND(T132/Inputs!D$19,2)","v":0},0,null,null,0,{"$f":"W132*Inputs!$D$13","v":0},0,{"$f":"Y132*Inputs!$D$13","v":0},0,{"$f":"AA132*Inputs!$D$13","v":0},{"$f":"ROUND(AD132/Inputs!D$19,2)","v":0},0]
[null,{"$f":"Defaults!AH99","v":"Reflex"},{"$f":"ROUND((IF('Crop 1'!$C$14=Carbon!$B133,'Crop 1'!$L$14*VLOOKUP('Crop 1'!$E$14,Carbon!$AH$4:$AI$10,2,FALSE),0)+IF('Crop 1'!$C$15=Carbon!$B133,'Crop 1'!$L$15*VLOOKUP('Crop 1'!$E$15,Carbon!$AH$4:$AI$10,2,FALSE),0)+IF('Crop 1'!$C$16=Carbon!$B133,'Crop 1'!$L$16*VLOOKUP('Crop 1'!$E$16,Carbon!$AH$4:$AI$10,2,FALSE),0)+IF('Crop 1'!$C$19=Carbon!$B133,'Crop 1'!$L$19*VLOOKUP('Crop 1'!$E$19,Carbon!$AH$4:$AI$10,2,FALSE),0)+IF('Crop 1'!$C$20=Carbon!$B133,'Crop 1'!$L$20*VLOOKUP('Crop 1'!$E$20,Carbon!$AH$4:$AI$10,2,FALSE),0)+IF('Crop 1'!$C$21=Carbon!$B133,'Crop 1'!$L$21*VLOOKUP('Crop 1'!$E$21,Carbon!$AH$4:$AI$10,2,FALSE),0)+IF('Crop 1'!$C$49=Carbon!$B133,'Crop 1'!$L$49*VLOOKUP('Crop 1'!$E$49,Carbon!$AH$4:$AI$10,2,FALSE),0)+IF('Crop 1'!$C$50=Carbon!$B133,'Crop 1'!$L$50*VLOOKUP('Crop 1'!$E$50,Carbon!$AH$4:$AI$10,2,FALSE),0)+IF('Crop 1'!$C$51=Carbon!$B133,'Crop 1'!$L$51*VLOOKUP('Crop 1'!$E$51,Carbon!$AH$4:$AI$10,2,FALSE),0)+IF('Crop 1'!$C$52=Carbon!$B133,'Crop 1'!$L$52*VLOOKUP('Crop 1'!$E$52,Carbon!$AH$4:$AI$10,2,FALSE),0)+IF('Crop 1'!$C$53=Carbon!$B133,'Crop 1'!$L$53*VLOOKUP('Crop 1'!$E$53,Carbon!$AH$4:$AI$10,2,FALSE),0)+IF('Crop 1'!$C$56=Carbon!$B133,'Crop 1'!$L$56*VLOOKUP('Crop 1'!$E$56,Carbon!$AH$4:$AI$10,2,FALSE),0)+IF('Crop 1'!$C$57=Carbon!$B133,'Crop 1'!$L$57*VLOOKUP('Crop 1'!$E$57,Carbon!$AH$4:$AI$10,2,FALSE),0)+IF('Crop 1'!$C$58=Carbon!$B133,'Crop 1'!$L$58*VLOOKUP('Crop 1'!$E$58,Carbon!$AH$4:$AI$10,2,FALSE),0)+IF('Crop 1'!$C$59=Carbon!$B133,'Crop 1'!$L$59*VLOOKUP('Crop 1'!$E$59,Carbon!$AH$4:$AI$10,2,FALSE),0)+IF('Crop 1'!$C$62=Carbon!$B133,'Crop 1'!$L$62*VLOOKUP('Crop 1'!$E$62,Carbon!$AH$4:$AI$10,2,FALSE),0)+IF('Crop 1'!$C$63=Carbon!$B133,'Crop 1'!$L$63*VLOOKUP('Crop 1'!$E$63,Carbon!$AH$4:$AI$10,2,FALSE),0)+IF('Crop 1'!$C$64=Carbon!$B133,'Crop 1'!$L$64*VLOOKUP('Crop 1'!$E$64,Carbon!$AH$4:$AI$10,2,FALSE),0)+IF('Crop 1'!$C$65=Carbon!$B133,'Crop 1'!$L$65*VLOOKUP('Crop 1'!$E$65,Carbon!$AH$4:$AI$10,2,FALSE),0))*$AL$20,2)","v":3.47},{"$f":"C133*Inputs!$D$13","v":1041},{"$f":"ROUND((IF('Crop 2'!$C$14=Carbon!$B133,'Crop 2'!$L$14*VLOOKUP('Crop 2'!$E$14,Carbon!$AH$4:$AI$10,2,FALSE),0)+IF('Crop 2'!$C$15=Carbon!$B133,'Crop 2'!$L$15*VLOOKUP('Crop 2'!$E$15,Carbon!$AH$4:$AI$10,2,FALSE),0)+IF('Crop 2'!$C$16=Carbon!$B133,'Crop 2'!$L$16*VLOOKUP('Crop 2'!$E$16,Carbon!$AH$4:$AI$10,2,FALSE),0)+IF('Crop 2'!$C$19=Carbon!$B133,'Crop 2'!$L$19*VLOOKUP('Crop 2'!$E$19,Carbon!$AH$4:$AI$10,2,FALSE),0)+IF('Crop 2'!$C$20=Carbon!$B133,'Crop 2'!$L$20*VLOOKUP('Crop 2'!$E$20,Carbon!$AH$4:$AI$10,2,FALSE),0)+IF('Crop 2'!$C$21=Carbon!$B133,'Crop 2'!$L$21*VLOOKUP('Crop 2'!$E$21,Carbon!$AH$4:$AI$10,2,FALSE),0)+IF('Crop 2'!$C$49=Carbon!$B133,'Crop 2'!$L$49*VLOOKUP('Crop 2'!$E$49,Carbon!$AH$4:$AI$10,2,FALSE),0)+IF('Crop 2'!$C$50=Carbon!$B133,'Crop 2'!$L$50*VLOOKUP('Crop 2'!$E$50,Carbon!$AH$4:$AI$10,2,FALSE),0)+IF('Crop 2'!$C$51=Carbon!$B133,'Crop 2'!$L$51*VLOOKUP('Crop 2'!$E$51,Carbon!$AH$4:$AI$10,2,FALSE),0)+IF('Crop 2'!$C$52=Carbon!$B133,'Crop 2'!$L$52*VLOOKUP('Crop 2'!$E$52,Carbon!$AH$4:$AI$10,2,FALSE),0)+IF('Crop 2'!$C$53=Carbon!$B133,'Crop 2'!$L$53*VLOOKUP('Crop 2'!$E$53,Carbon!$AH$4:$AI$10,2,FALSE),0)+IF('Crop 2'!$C$56=Carbon!$B133,'Crop 2'!$L$56*VLOOKUP('Crop 2'!$E$56,Carbon!$AH$4:$AI$10,2,FALSE),0)+IF('Crop 2'!$C$57=Carbon!$B133,'Crop 2'!$L$57*VLOOKUP('Crop 2'!$E$57,Carbon!$AH$4:$AI$10,2,FALSE),0)+IF('Crop 2'!$C$58=Carbon!$B133,'Crop 2'!$L$58*VLOOKUP('Crop 2'!$E$58,Carbon!$AH$4:$AI$10,2,FALSE),0)+IF('Crop 2'!$C$59=Carbon!$B133,'Crop 2'!$L$59*VLOOKUP('Crop 2'!$E$59,Carbon!$AH$4:$AI$10,2,FALSE),0)+IF('Crop 2'!$C$62=Carbon!$B133,'Crop 2'!$L$62*VLOOKUP('Crop 2'!$E$62,Carbon!$AH$4:$AI$10,2,FALSE),0)+IF('Crop 2'!$C$63=Carbon!$B133,'Crop 2'!$L$63*VLOOKUP('Crop 2'!$E$63,Carbon!$AH$4:$AI$10,2,FALSE),0)+IF('Crop 2'!$C$64=Carbon!$B133,'Crop 2'!$L$64*VLOOKUP('Crop 2'!$E$64,Carbon!$AH$4:$AI$10,2,FALSE),0)+IF('Crop 2'!$C$65=Carbon!$B133,'Crop 2'!$L$65*VLOOKUP('Crop 2'!$E$65,Carbon!$AH$4:$AI$10,2,FALSE),0))*$AL$20,2)","v":0},{"$f":"E133*Inputs!$D$15","v":0},{"$f":"ROUND((IF('Crop 3'!$C$14=Carbon!$B133,'Crop 3'!$L$14*VLOOKUP('Crop 3'!$E$14,Carbon!$AH$4:$AI$10,2,FALSE),0)+IF('Crop 3'!$C$15=Carbon!$B133,'Crop 3'!$L$15*VLOOKUP('Crop 3'!$E$15,Carbon!$AH$4:$AI$10,2,FALSE),0)+IF('Crop 3'!$C$16=Carbon!$B133,'Crop 3'!$L$16*VLOOKUP('Crop 3'!$E$16,Carbon!$AH$4:$AI$10,2,FALSE),0)+IF('Crop 3'!$C$19=Carbon!$B133,'Crop 3'!$L$19*VLOOKUP('Crop 3'!$E$19,Carbon!$AH$4:$AI$10,2,FALSE),0)+IF('Crop 3'!$C$20=Carbon!$B133,'Crop 3'!$L$20*VLOOKUP('Crop 3'!$E$20,Carbon!$AH$4:$AI$10,2,FALSE),0)+IF('Crop 3'!$C$21=Carbon!$B133,'Crop 3'!$L$21*VLOOKUP('Crop 3'!$E$21,Carbon!$AH$4:$AI$10,2,FALSE),0)+IF('Crop 3'!$C$49=Carbon!$B133,'Crop 3'!$L$49*VLOOKUP('Crop 3'!$E$49,Carbon!$AH$4:$AI$10,2,FALSE),0)+IF('Crop 3'!$C$50=Carbon!$B133,'Crop 3'!$L$50*VLOOKUP('Crop 3'!$E$50,Carbon!$AH$4:$AI$10,2,FALSE),0)+IF('Crop 3'!$C$51=Carbon!$B133,'Crop 3'!$L$51*VLOOKUP('Crop 3'!$E$51,Carbon!$AH$4:$AI$10,2,FALSE),0)+IF('Crop 3'!$C$52=Carbon!$B133,'Crop 3'!$L$52*VLOOKUP('Crop 3'!$E$52,Carbon!$AH$4:$AI$10,2,FALSE),0)+IF('Crop 3'!$C$53=Carbon!$B133,'Crop 3'!$L$53*VLOOKUP('Crop 3'!$E$53,Carbon!$AH$4:$AI$10,2,FALSE),0)+IF('Crop 3'!$C$56=Carbon!$B133,'Crop 3'!$L$56*VLOOKUP('Crop 3'!$E$56,Carbon!$AH$4:$AI$10,2,FALSE),0)+IF('Crop 3'!$C$57=Carbon!$B133,'Crop 3'!$L$57*VLOOKUP('Crop 3'!$E$57,Carbon!$AH$4:$AI$10,2,FALSE),0)+IF('Crop 3'!$C$58=Carbon!$B133,'Crop 3'!$L$58*VLOOKUP('Crop 3'!$E$58,Carbon!$AH$4:$AI$10,2,FALSE),0)+IF('Crop 3'!$C$59=Carbon!$B133,'Crop 3'!$L$59*VLOOKUP('Crop 3'!$E$59,Carbon!$AH$4:$AI$10,2,FALSE),0)+IF('Crop 3'!$C$62=Carbon!$B133,'Crop 3'!$L$62*VLOOKUP('Crop 3'!$E$62,Carbon!$AH$4:$AI$10,2,FALSE),0)+IF('Crop 3'!$C$63=Carbon!$B133,'Crop 3'!$L$63*VLOOKUP('Crop 3'!$E$63,Carbon!$AH$4:$AI$10,2,FALSE),0)+IF('Crop 3'!$C$64=Carbon!$B133,'Crop 3'!$L$64*VLOOKUP('Crop 3'!$E$64,Carbon!$AH$4:$AI$10,2,FALSE),0)+IF('Crop 3'!$C$65=Carbon!$B133,'Crop 3'!$L$65*VLOOKUP('Crop 3'!$E$65,Carbon!$AH$4:$AI$10,2,FALSE),0))*$AL$20,2)","v":0},{"$f":"G133*Inputs!$D$17","v":0},{"$f":"ROUND(J133/Inputs!D$19,2)","v":1.74},1041,null,null,{"$f":"ROUND((IF('Crop 1'!$C$14=Carbon!$B133,'Crop 1'!$V$14*VLOOKUP('Crop 1'!$E$14,Carbon!$AH$4:$AI$10,2,FALSE),0)+IF('Crop 1'!$C$15=Carbon!$B133,'Crop 1'!$V$15*VLOOKUP('Crop 1'!$E$15,Carbon!$AH$4:$AI$10,2,FALSE),0)+IF('Crop 1'!$C$16=Carbon!$B133,'Crop 1'!$V$16*VLOOKUP('Crop 1'!$E$16,Carbon!$AH$4:$AI$10,2,FALSE),0)+IF('Crop 1'!$C$19=Carbon!$B133,'Crop 1'!$V$19*VLOOKUP('Crop 1'!$E$19,Carbon!$AH$4:$AI$10,2,FALSE),0)+IF('Crop 1'!$C$20=Carbon!$B133,'Crop 1'!$V$20*VLOOKUP('Crop 1'!$E$20,Carbon!$AH$4:$AI$10,2,FALSE),0)+IF('Crop 1'!$C$21=Carbon!$B133,'Crop 1'!$V$21*VLOOKUP('Crop 1'!$E$21,Carbon!$AH$4:$AI$10,2,FALSE),0)+IF('Crop 1'!$C$49=Carbon!$B133,'Crop 1'!$V$49*VLOOKUP('Crop 1'!$E$49,Carbon!$AH$4:$AI$10,2,FALSE),0)+IF('Crop 1'!$C$50=Carbon!$B133,'Crop 1'!$V$50*VLOOKUP('Crop 1'!$E$50,Carbon!$AH$4:$AI$10,2,FALSE),0)+IF('Crop 1'!$C$51=Carbon!$B133,'Crop 1'!$V$51*VLOOKUP('Crop 1'!$E$51,Carbon!$AH$4:$AI$10,2,FALSE),0)+IF('Crop 1'!$C$52=Carbon!$B133,'Crop 1'!$V$52*VLOOKUP('Crop 1'!$E$52,Carbon!$AH$4:$AI$10,2,FALSE),0)+IF('Crop 1'!$C$53=Carbon!$B133,'Crop 1'!$V$53*VLOOKUP('Crop 1'!$E$53,Carbon!$AH$4:$AI$10,2,FALSE),0)+IF('Crop 1'!$C$56=Carbon!$B133,'Crop 1'!$V$56*VLOOKUP('Crop 1'!$E$56,Carbon!$AH$4:$AI$10,2,FALSE),0)+IF('Crop 1'!$C$57=Carbon!$B133,'Crop 1'!$V$57*VLOOKUP('Crop 1'!$E$57,Carbon!$AH$4:$AI$10,2,FALSE),0)+IF('Crop 1'!$C$58=Carbon!$B133,'Crop 1'!$V$58*VLOOKUP('Crop 1'!$E$58,Carbon!$AH$4:$AI$10,2,FALSE),0)+IF('Crop 1'!$C$59=Carbon!$B133,'Crop 1'!$V$59*VLOOKUP('Crop 1'!$E$59,Carbon!$AH$4:$AI$10,2,FALSE),0)+IF('Crop 1'!$C$62=Carbon!$B133,'Crop 1'!$V$62*VLOOKUP('Crop 1'!$E$62,Carbon!$AH$4:$AI$10,2,FALSE),0)+IF('Crop 1'!$C$63=Carbon!$B133,'Crop 1'!$V$63*VLOOKUP('Crop 1'!$E$63,Carbon!$AH$4:$AI$10,2,FALSE),0)+IF('Crop 1'!$C$64=Carbon!$B133,'Crop 1'!$V$64*VLOOKUP('Crop 1'!$E$64,Carbon!$AH$4:$AI$10,2,FALSE),0)+IF('Crop 1'!$C$65=Carbon!$B133,'Crop 1'!$V$65*VLOOKUP('Crop 1'!$E$65,Carbon!$AH$4:$AI$10,2,FALSE),0))*$AL$20,2)","v":2.71},{"$f":"M133*Inputs!$D$13","v":813},{"$f":"ROUND((IF('Crop 2'!$C$14=Carbon!$B133,'Crop 2'!$V$14*VLOOKUP('Crop 2'!$E$14,Carbon!$AH$4:$AI$10,2,FALSE),0)+IF('Crop 2'!$C$15=Carbon!$B133,'Crop 2'!$V$15*VLOOKUP('Crop 2'!$E$15,Carbon!$AH$4:$AI$10,2,FALSE),0)+IF('Crop 2'!$C$16=Carbon!$B133,'Crop 2'!$V$16*VLOOKUP('Crop 2'!$E$16,Carbon!$AH$4:$AI$10,2,FALSE),0)+IF('Crop 2'!$C$19=Carbon!$B133,'Crop 2'!$V$19*VLOOKUP('Crop 2'!$E$19,Carbon!$AH$4:$AI$10,2,FALSE),0)+IF('Crop 2'!$C$20=Carbon!$B133,'Crop 2'!$V$20*VLOOKUP('Crop 2'!$E$20,Carbon!$AH$4:$AI$10,2,FALSE),0)+IF('Crop 2'!$C$21=Carbon!$B133,'Crop 2'!$V$21*VLOOKUP('Crop 2'!$E$21,Carbon!$AH$4:$AI$10,2,FALSE),0)+IF('Crop 2'!$C$49=Carbon!$B133,'Crop 2'!$V$49*VLOOKUP('Crop 2'!$E$49,Carbon!$AH$4:$AI$10,2,FALSE),0)+IF('Crop 2'!$C$50=Carbon!$B133,'Crop 2'!$V$50*VLOOKUP('Crop 2'!$E$50,Carbon!$AH$4:$AI$10,2,FALSE),0)+IF('Crop 2'!$C$51=Carbon!$B133,'Crop 2'!$V$51*VLOOKUP('Crop 2'!$E$51,Carbon!$AH$4:$AI$10,2,FALSE),0)+IF('Crop 2'!$C$52=Carbon!$B133,'Crop 2'!$V$52*VLOOKUP('Crop 2'!$E$52,Carbon!$AH$4:$AI$10,2,FALSE),0)+IF('Crop 2'!$C$53=Carbon!$B133,'Crop 2'!$V$53*VLOOKUP('Crop 2'!$E$53,Carbon!$AH$4:$AI$10,2,FALSE),0)+IF('Crop 2'!$C$56=Carbon!$B133,'Crop 2'!$V$56*VLOOKUP('Crop 2'!$E$56,Carbon!$AH$4:$AI$10,2,FALSE),0)+IF('Crop 2'!$C$57=Carbon!$B133,'Crop 2'!$V$57*VLOOKUP('Crop 2'!$E$57,Carbon!$AH$4:$AI$10,2,FALSE),0)+IF('Crop 2'!$C$58=Carbon!$B133,'Crop 2'!$V$58*VLOOKUP('Crop 2'!$E$58,Carbon!$AH$4:$AI$10,2,FALSE),0)+IF('Crop 2'!$C$59=Carbon!$B133,'Crop 2'!$V$59*VLOOKUP('Crop 2'!$E$59,Carbon!$AH$4:$AI$10,2,FALSE),0)+IF('Crop 2'!$C$62=Carbon!$B133,'Crop 2'!$V$62*VLOOKUP('Crop 2'!$E$62,Carbon!$AH$4:$AI$10,2,FALSE),0)+IF('Crop 2'!$C$63=Carbon!$B133,'Crop 2'!$V$63*VLOOKUP('Crop 2'!$E$63,Carbon!$AH$4:$AI$10,2,FALSE),0)+IF('Crop 2'!$C$64=Carbon!$B133,'Crop 2'!$V$64*VLOOKUP('Crop 2'!$E$64,Carbon!$AH$4:$AI$10,2,FALSE),0)+IF('Crop 2'!$C$65=Carbon!$B133,'Crop 2'!$V$65*VLOOKUP('Crop 2'!$E$65,Carbon!$AH$4:$AI$10,2,FALSE),0))*$AL$20,2)","v":0},{"$f":"O133*Inputs!$D$15","v":0},{"$f":"ROUND((IF('Crop 3'!$C$14=Carbon!$B133,'Crop 3'!$V$14*VLOOKUP('Crop 3'!$E$14,Carbon!$AH$4:$AI$10,2,FALSE),0)+IF('Crop 3'!$C$15=Carbon!$B133,'Crop 3'!$V$15*VLOOKUP('Crop 3'!$E$15,Carbon!$AH$4:$AI$10,2,FALSE),0)+IF('Crop 3'!$C$16=Carbon!$B133,'Crop 3'!$V$16*VLOOKUP('Crop 3'!$E$16,Carbon!$AH$4:$AI$10,2,FALSE),0)+IF('Crop 3'!$C$19=Carbon!$B133,'Crop 3'!$V$19*VLOOKUP('Crop 3'!$E$19,Carbon!$AH$4:$AI$10,2,FALSE),0)+IF('Crop 3'!$C$20=Carbon!$B133,'Crop 3'!$V$20*VLOOKUP('Crop 3'!$E$20,Carbon!$AH$4:$AI$10,2,FALSE),0)+IF('Crop 3'!$C$21=Carbon!$B133,'Crop 3'!$V$21*VLOOKUP('Crop 3'!$E$21,Carbon!$AH$4:$AI$10,2,FALSE),0)+IF('Crop 3'!$C$49=Carbon!$B133,'Crop 3'!$V$49*VLOOKUP('Crop 3'!$E$49,Carbon!$AH$4:$AI$10,2,FALSE),0)+IF('Crop 3'!$C$50=Carbon!$B133,'Crop 3'!$V$50*VLOOKUP('Crop 3'!$E$50,Carbon!$AH$4:$AI$10,2,FALSE),0)+IF('Crop 3'!$C$51=Carbon!$B133,'Crop 3'!$V$51*VLOOKUP('Crop 3'!$E$51,Carbon!$AH$4:$AI$10,2,FALSE),0)+IF('Crop 3'!$C$52=Carbon!$B133,'Crop 3'!$V$52*VLOOKUP('Crop 3'!$E$52,Carbon!$AH$4:$AI$10,2,FALSE),0)+IF('Crop 3'!$C$53=Carbon!$B133,'Crop 3'!$V$53*VLOOKUP('Crop 3'!$E$53,Carbon!$AH$4:$AI$10,2,FALSE),0)+IF('Crop 3'!$C$56=Carbon!$B133,'Crop 3'!$V$56*VLOOKUP('Crop 3'!$E$56,Carbon!$AH$4:$AI$10,2,FALSE),0)+IF('Crop 3'!$C$57=Carbon!$B133,'Crop 3'!$V$57*VLOOKUP('Crop 3'!$E$57,Carbon!$AH$4:$AI$10,2,FALSE),0)+IF('Crop 3'!$C$58=Carbon!$B133,'Crop 3'!$V$58*VLOOKUP('Crop 3'!$E$58,Carbon!$AH$4:$AI$10,2,FALSE),0)+IF('Crop 3'!$C$59=Carbon!$B133,'Crop 3'!$V$59*VLOOKUP('Crop 3'!$E$59,Carbon!$AH$4:$AI$10,2,FALSE),0)+IF('Crop 3'!$C$62=Carbon!$B133,'Crop 3'!$V$62*VLOOKUP('Crop 3'!$E$62,Carbon!$AH$4:$AI$10,2,FALSE),0)+IF('Crop 3'!$C$63=Carbon!$B133,'Crop 3'!$V$63*VLOOKUP('Crop 3'!$E$63,Carbon!$AH$4:$AI$10,2,FALSE),0)+IF('Crop 3'!$C$64=Carbon!$B133,'Crop 3'!$V$64*VLOOKUP('Crop 3'!$E$64,Carbon!$AH$4:$AI$10,2,FALSE),0)+IF('Crop 3'!$C$65=Carbon!$B133,'Crop 3'!$V$65*VLOOKUP('Crop 3'!$E$65,Carbon!$AH$4:$AI$10,2,FALSE),0))*$AL$20,2)","v":0},{"$f":"Q133*Inputs!$D$17","v":0},{"$f":"ROUND(T133/Inputs!D$19,2)","v":1.36},813,null,null,-0.76000000000000023,{"$f":"W133*Inputs!$D$13","v":-228.00000000000006},0,{"$f":"Y133*Inputs!$D$13","v":0},0,{"$f":"AA133*Inputs!$D$13","v":0},{"$f":"ROUND(AD133/Inputs!D$19,2)","v":-0.38},-228]
[null,{"$f":"Defaults!AH100","v":"Regiment"},{"$f":"ROUND((IF('Crop 1'!$C$14=Carbon!$B134,'Crop 1'!$L$14*VLOOKUP('Crop 1'!$E$14,Carbon!$AH$4:$AI$10,2,FALSE),0)+IF('Crop 1'!$C$15=Carbon!$B134,'Crop 1'!$L$15*VLOOKUP('Crop 1'!$E$15,Carbon!$AH$4:$AI$10,2,FALSE),0)+IF('Crop 1'!$C$16=Carbon!$B134,'Crop 1'!$L$16*VLOOKUP('Crop 1'!$E$16,Carbon!$AH$4:$AI$10,2,FALSE),0)+IF('Crop 1'!$C$19=Carbon!$B134,'Crop 1'!$L$19*VLOOKUP('Crop 1'!$E$19,Carbon!$AH$4:$AI$10,2,FALSE),0)+IF('Crop 1'!$C$20=Carbon!$B134,'Crop 1'!$L$20*VLOOKUP('Crop 1'!$E$20,Carbon!$AH$4:$AI$10,2,FALSE),0)+IF('Crop 1'!$C$21=Carbon!$B134,'Crop 1'!$L$21*VLOOKUP('Crop 1'!$E$21,Carbon!$AH$4:$AI$10,2,FALSE),0)+IF('Crop 1'!$C$49=Carbon!$B134,'Crop 1'!$L$49*VLOOKUP('Crop 1'!$E$49,Carbon!$AH$4:$AI$10,2,FALSE),0)+IF('Crop 1'!$C$50=Carbon!$B134,'Crop 1'!$L$50*VLOOKUP('Crop 1'!$E$50,Carbon!$AH$4:$AI$10,2,FALSE),0)+IF('Crop 1'!$C$51=Carbon!$B134,'Crop 1'!$L$51*VLOOKUP('Crop 1'!$E$51,Carbon!$AH$4:$AI$10,2,FALSE),0)+IF('Crop 1'!$C$52=Carbon!$B134,'Crop 1'!$L$52*VLOOKUP('Crop 1'!$E$52,Carbon!$AH$4:$AI$10,2,FALSE),0)+IF('Crop 1'!$C$53=Carbon!$B134,'Crop 1'!$L$53*VLOOKUP('Crop 1'!$E$53,Carbon!$AH$4:$AI$10,2,FALSE),0)+IF('Crop 1'!$C$56=Carbon!$B134,'Crop 1'!$L$56*VLOOKUP('Crop 1'!$E$56,Carbon!$AH$4:$AI$10,2,FALSE),0)+IF('Crop 1'!$C$57=Carbon!$B134,'Crop 1'!$L$57*VLOOKUP('Crop 1'!$E$57,Carbon!$AH$4:$AI$10,2,FALSE),0)+IF('Crop 1'!$C$58=Carbon!$B134,'Crop 1'!$L$58*VLOOKUP('Crop 1'!$E$58,Carbon!$AH$4:$AI$10,2,FALSE),0)+IF('Crop 1'!$C$59=Carbon!$B134,'Crop 1'!$L$59*VLOOKUP('Crop 1'!$E$59,Carbon!$AH$4:$AI$10,2,FALSE),0)+IF('Crop 1'!$C$62=Carbon!$B134,'Crop 1'!$L$62*VLOOKUP('Crop 1'!$E$62,Carbon!$AH$4:$AI$10,2,FALSE),0)+IF('Crop 1'!$C$63=Carbon!$B134,'Crop 1'!$L$63*VLOOKUP('Crop 1'!$E$63,Carbon!$AH$4:$AI$10,2,FALSE),0)+IF('Crop 1'!$C$64=Carbon!$B134,'Crop 1'!$L$64*VLOOKUP('Crop 1'!$E$64,Carbon!$AH$4:$AI$10,2,FALSE),0)+IF('Crop 1'!$C$65=Carbon!$B134,'Crop 1'!$L$65*VLOOKUP('Crop 1'!$E$65,Carbon!$AH$4:$AI$10,2,FALSE),0))*$AL$20,2)","v":0},{"$f":"C134*Inputs!$D$13","v":0},{"$f":"ROUND((IF('Crop 2'!$C$14=Carbon!$B134,'Crop 2'!$L$14*VLOOKUP('Crop 2'!$E$14,Carbon!$AH$4:$AI$10,2,FALSE),0)+IF('Crop 2'!$C$15=Carbon!$B134,'Crop 2'!$L$15*VLOOKUP('Crop 2'!$E$15,Carbon!$AH$4:$AI$10,2,FALSE),0)+IF('Crop 2'!$C$16=Carbon!$B134,'Crop 2'!$L$16*VLOOKUP('Crop 2'!$E$16,Carbon!$AH$4:$AI$10,2,FALSE),0)+IF('Crop 2'!$C$19=Carbon!$B134,'Crop 2'!$L$19*VLOOKUP('Crop 2'!$E$19,Carbon!$AH$4:$AI$10,2,FALSE),0)+IF('Crop 2'!$C$20=Carbon!$B134,'Crop 2'!$L$20*VLOOKUP('Crop 2'!$E$20,Carbon!$AH$4:$AI$10,2,FALSE),0)+IF('Crop 2'!$C$21=Carbon!$B134,'Crop 2'!$L$21*VLOOKUP('Crop 2'!$E$21,Carbon!$AH$4:$AI$10,2,FALSE),0)+IF('Crop 2'!$C$49=Carbon!$B134,'Crop 2'!$L$49*VLOOKUP('Crop 2'!$E$49,Carbon!$AH$4:$AI$10,2,FALSE),0)+IF('Crop 2'!$C$50=Carbon!$B134,'Crop 2'!$L$50*VLOOKUP('Crop 2'!$E$50,Carbon!$AH$4:$AI$10,2,FALSE),0)+IF('Crop 2'!$C$51=Carbon!$B134,'Crop 2'!$L$51*VLOOKUP('Crop 2'!$E$51,Carbon!$AH$4:$AI$10,2,FALSE),0)+IF('Crop 2'!$C$52=Carbon!$B134,'Crop 2'!$L$52*VLOOKUP('Crop 2'!$E$52,Carbon!$AH$4:$AI$10,2,FALSE),0)+IF('Crop 2'!$C$53=Carbon!$B134,'Crop 2'!$L$53*VLOOKUP('Crop 2'!$E$53,Carbon!$AH$4:$AI$10,2,FALSE),0)+IF('Crop 2'!$C$56=Carbon!$B134,'Crop 2'!$L$56*VLOOKUP('Crop 2'!$E$56,Carbon!$AH$4:$AI$10,2,FALSE),0)+IF('Crop 2'!$C$57=Carbon!$B134,'Crop 2'!$L$57*VLOOKUP('Crop 2'!$E$57,Carbon!$AH$4:$AI$10,2,FALSE),0)+IF('Crop 2'!$C$58=Carbon!$B134,'Crop 2'!$L$58*VLOOKUP('Crop 2'!$E$58,Carbon!$AH$4:$AI$10,2,FALSE),0)+IF('Crop 2'!$C$59=Carbon!$B134,'Crop 2'!$L$59*VLOOKUP('Crop 2'!$E$59,Carbon!$AH$4:$AI$10,2,FALSE),0)+IF('Crop 2'!$C$62=Carbon!$B134,'Crop 2'!$L$62*VLOOKUP('Crop 2'!$E$62,Carbon!$AH$4:$AI$10,2,FALSE),0)+IF('Crop 2'!$C$63=Carbon!$B134,'Crop 2'!$L$63*VLOOKUP('Crop 2'!$E$63,Carbon!$AH$4:$AI$10,2,FALSE),0)+IF('Crop 2'!$C$64=Carbon!$B134,'Crop 2'!$L$64*VLOOKUP('Crop 2'!$E$64,Carbon!$AH$4:$AI$10,2,FALSE),0)+IF('Crop 2'!$C$65=Carbon!$B134,'Crop 2'!$L$65*VLOOKUP('Crop 2'!$E$65,Carbon!$AH$4:$AI$10,2,FALSE),0))*$AL$20,2)","v":0},{"$f":"E134*Inputs!$D$15","v":0},{"$f":"ROUND((IF('Crop 3'!$C$14=Carbon!$B134,'Crop 3'!$L$14*VLOOKUP('Crop 3'!$E$14,Carbon!$AH$4:$AI$10,2,FALSE),0)+IF('Crop 3'!$C$15=Carbon!$B134,'Crop 3'!$L$15*VLOOKUP('Crop 3'!$E$15,Carbon!$AH$4:$AI$10,2,FALSE),0)+IF('Crop 3'!$C$16=Carbon!$B134,'Crop 3'!$L$16*VLOOKUP('Crop 3'!$E$16,Carbon!$AH$4:$AI$10,2,FALSE),0)+IF('Crop 3'!$C$19=Carbon!$B134,'Crop 3'!$L$19*VLOOKUP('Crop 3'!$E$19,Carbon!$AH$4:$AI$10,2,FALSE),0)+IF('Crop 3'!$C$20=Carbon!$B134,'Crop 3'!$L$20*VLOOKUP('Crop 3'!$E$20,Carbon!$AH$4:$AI$10,2,FALSE),0)+IF('Crop 3'!$C$21=Carbon!$B134,'Crop 3'!$L$21*VLOOKUP('Crop 3'!$E$21,Carbon!$AH$4:$AI$10,2,FALSE),0)+IF('Crop 3'!$C$49=Carbon!$B134,'Crop 3'!$L$49*VLOOKUP('Crop 3'!$E$49,Carbon!$AH$4:$AI$10,2,FALSE),0)+IF('Crop 3'!$C$50=Carbon!$B134,'Crop 3'!$L$50*VLOOKUP('Crop 3'!$E$50,Carbon!$AH$4:$AI$10,2,FALSE),0)+IF('Crop 3'!$C$51=Carbon!$B134,'Crop 3'!$L$51*VLOOKUP('Crop 3'!$E$51,Carbon!$AH$4:$AI$10,2,FALSE),0)+IF('Crop 3'!$C$52=Carbon!$B134,'Crop 3'!$L$52*VLOOKUP('Crop 3'!$E$52,Carbon!$AH$4:$AI$10,2,FALSE),0)+IF('Crop 3'!$C$53=Carbon!$B134,'Crop 3'!$L$53*VLOOKUP('Crop 3'!$E$53,Carbon!$AH$4:$AI$10,2,FALSE),0)+IF('Crop 3'!$C$56=Carbon!$B134,'Crop 3'!$L$56*VLOOKUP('Crop 3'!$E$56,Carbon!$AH$4:$AI$10,2,FALSE),0)+IF('Crop 3'!$C$57=Carbon!$B134,'Crop 3'!$L$57*VLOOKUP('Crop 3'!$E$57,Carbon!$AH$4:$AI$10,2,FALSE),0)+IF('Crop 3'!$C$58=Carbon!$B134,'Crop 3'!$L$58*VLOOKUP('Crop 3'!$E$58,Carbon!$AH$4:$AI$10,2,FALSE),0)+IF('Crop 3'!$C$59=Carbon!$B134,'Crop 3'!$L$59*VLOOKUP('Crop 3'!$E$59,Carbon!$AH$4:$AI$10,2,FALSE),0)+IF('Crop 3'!$C$62=Carbon!$B134,'Crop 3'!$L$62*VLOOKUP('Crop 3'!$E$62,Carbon!$AH$4:$AI$10,2,FALSE),0)+IF('Crop 3'!$C$63=Carbon!$B134,'Crop 3'!$L$63*VLOOKUP('Crop 3'!$E$63,Carbon!$AH$4:$AI$10,2,FALSE),0)+IF('Crop 3'!$C$64=Carbon!$B134,'Crop 3'!$L$64*VLOOKUP('Crop 3'!$E$64,Carbon!$AH$4:$AI$10,2,FALSE),0)+IF('Crop 3'!$C$65=Carbon!$B134,'Crop 3'!$L$65*VLOOKUP('Crop 3'!$E$65,Carbon!$AH$4:$AI$10,2,FALSE),0))*$AL$20,2)","v":0},{"$f":"G134*Inputs!$D$17","v":0},{"$f":"ROUND(J134/Inputs!D$19,2)","v":0},0,null,null,{"$f":"ROUND((IF('Crop 1'!$C$14=Carbon!$B134,'Crop 1'!$V$14*VLOOKUP('Crop 1'!$E$14,Carbon!$AH$4:$AI$10,2,FALSE),0)+IF('Crop 1'!$C$15=Carbon!$B134,'Crop 1'!$V$15*VLOOKUP('Crop 1'!$E$15,Carbon!$AH$4:$AI$10,2,FALSE),0)+IF('Crop 1'!$C$16=Carbon!$B134,'Crop 1'!$V$16*VLOOKUP('Crop 1'!$E$16,Carbon!$AH$4:$AI$10,2,FALSE),0)+IF('Crop 1'!$C$19=Carbon!$B134,'Crop 1'!$V$19*VLOOKUP('Crop 1'!$E$19,Carbon!$AH$4:$AI$10,2,FALSE),0)+IF('Crop 1'!$C$20=Carbon!$B134,'Crop 1'!$V$20*VLOOKUP('Crop 1'!$E$20,Carbon!$AH$4:$AI$10,2,FALSE),0)+IF('Crop 1'!$C$21=Carbon!$B134,'Crop 1'!$V$21*VLOOKUP('Crop 1'!$E$21,Carbon!$AH$4:$AI$10,2,FALSE),0)+IF('Crop 1'!$C$49=Carbon!$B134,'Crop 1'!$V$49*VLOOKUP('Crop 1'!$E$49,Carbon!$AH$4:$AI$10,2,FALSE),0)+IF('Crop 1'!$C$50=Carbon!$B134,'Crop 1'!$V$50*VLOOKUP('Crop 1'!$E$50,Carbon!$AH$4:$AI$10,2,FALSE),0)+IF('Crop 1'!$C$51=Carbon!$B134,'Crop 1'!$V$51*VLOOKUP('Crop 1'!$E$51,Carbon!$AH$4:$AI$10,2,FALSE),0)+IF('Crop 1'!$C$52=Carbon!$B134,'Crop 1'!$V$52*VLOOKUP('Crop 1'!$E$52,Carbon!$AH$4:$AI$10,2,FALSE),0)+IF('Crop 1'!$C$53=Carbon!$B134,'Crop 1'!$V$53*VLOOKUP('Crop 1'!$E$53,Carbon!$AH$4:$AI$10,2,FALSE),0)+IF('Crop 1'!$C$56=Carbon!$B134,'Crop 1'!$V$56*VLOOKUP('Crop 1'!$E$56,Carbon!$AH$4:$AI$10,2,FALSE),0)+IF('Crop 1'!$C$57=Carbon!$B134,'Crop 1'!$V$57*VLOOKUP('Crop 1'!$E$57,Carbon!$AH$4:$AI$10,2,FALSE),0)+IF('Crop 1'!$C$58=Carbon!$B134,'Crop 1'!$V$58*VLOOKUP('Crop 1'!$E$58,Carbon!$AH$4:$AI$10,2,FALSE),0)+IF('Crop 1'!$C$59=Carbon!$B134,'Crop 1'!$V$59*VLOOKUP('Crop 1'!$E$59,Carbon!$AH$4:$AI$10,2,FALSE),0)+IF('Crop 1'!$C$62=Carbon!$B134,'Crop 1'!$V$62*VLOOKUP('Crop 1'!$E$62,Carbon!$AH$4:$AI$10,2,FALSE),0)+IF('Crop 1'!$C$63=Carbon!$B134,'Crop 1'!$V$63*VLOOKUP('Crop 1'!$E$63,Carbon!$AH$4:$AI$10,2,FALSE),0)+IF('Crop 1'!$C$64=Carbon!$B134,'Crop 1'!$V$64*VLOOKUP('Crop 1'!$E$64,Carbon!$AH$4:$AI$10,2,FALSE),0)+IF('Crop 1'!$C$65=Carbon!$B134,'Crop 1'!$V$65*VLOOKUP('Crop 1'!$E$65,Carbon!$AH$4:$AI$10,2,FALSE),0))*$AL$20,2)","v":0},{"$f":"M134*Inputs!$D$13","v":0},{"$f":"ROUND((IF('Crop 2'!$C$14=Carbon!$B134,'Crop 2'!$V$14*VLOOKUP('Crop 2'!$E$14,Carbon!$AH$4:$AI$10,2,FALSE),0)+IF('Crop 2'!$C$15=Carbon!$B134,'Crop 2'!$V$15*VLOOKUP('Crop 2'!$E$15,Carbon!$AH$4:$AI$10,2,FALSE),0)+IF('Crop 2'!$C$16=Carbon!$B134,'Crop 2'!$V$16*VLOOKUP('Crop 2'!$E$16,Carbon!$AH$4:$AI$10,2,FALSE),0)+IF('Crop 2'!$C$19=Carbon!$B134,'Crop 2'!$V$19*VLOOKUP('Crop 2'!$E$19,Carbon!$AH$4:$AI$10,2,FALSE),0)+IF('Crop 2'!$C$20=Carbon!$B134,'Crop 2'!$V$20*VLOOKUP('Crop 2'!$E$20,Carbon!$AH$4:$AI$10,2,FALSE),0)+IF('Crop 2'!$C$21=Carbon!$B134,'Crop 2'!$V$21*VLOOKUP('Crop 2'!$E$21,Carbon!$AH$4:$AI$10,2,FALSE),0)+IF('Crop 2'!$C$49=Carbon!$B134,'Crop 2'!$V$49*VLOOKUP('Crop 2'!$E$49,Carbon!$AH$4:$AI$10,2,FALSE),0)+IF('Crop 2'!$C$50=Carbon!$B134,'Crop 2'!$V$50*VLOOKUP('Crop 2'!$E$50,Carbon!$AH$4:$AI$10,2,FALSE),0)+IF('Crop 2'!$C$51=Carbon!$B134,'Crop 2'!$V$51*VLOOKUP('Crop 2'!$E$51,Carbon!$AH$4:$AI$10,2,FALSE),0)+IF('Crop 2'!$C$52=Carbon!$B134,'Crop 2'!$V$52*VLOOKUP('Crop 2'!$E$52,Carbon!$AH$4:$AI$10,2,FALSE),0)+IF('Crop 2'!$C$53=Carbon!$B134,'Crop 2'!$V$53*VLOOKUP('Crop 2'!$E$53,Carbon!$AH$4:$AI$10,2,FALSE),0)+IF('Crop 2'!$C$56=Carbon!$B134,'Crop 2'!$V$56*VLOOKUP('Crop 2'!$E$56,Carbon!$AH$4:$AI$10,2,FALSE),0)+IF('Crop 2'!$C$57=Carbon!$B134,'Crop 2'!$V$57*VLOOKUP('Crop 2'!$E$57,Carbon!$AH$4:$AI$10,2,FALSE),0)+IF('Crop 2'!$C$58=Carbon!$B134,'Crop 2'!$V$58*VLOOKUP('Crop 2'!$E$58,Carbon!$AH$4:$AI$10,2,FALSE),0)+IF('Crop 2'!$C$59=Carbon!$B134,'Crop 2'!$V$59*VLOOKUP('Crop 2'!$E$59,Carbon!$AH$4:$AI$10,2,FALSE),0)+IF('Crop 2'!$C$62=Carbon!$B134,'Crop 2'!$V$62*VLOOKUP('Crop 2'!$E$62,Carbon!$AH$4:$AI$10,2,FALSE),0)+IF('Crop 2'!$C$63=Carbon!$B134,'Crop 2'!$V$63*VLOOKUP('Crop 2'!$E$63,Carbon!$AH$4:$AI$10,2,FALSE),0)+IF('Crop 2'!$C$64=Carbon!$B134,'Crop 2'!$V$64*VLOOKUP('Crop 2'!$E$64,Carbon!$AH$4:$AI$10,2,FALSE),0)+IF('Crop 2'!$C$65=Carbon!$B134,'Crop 2'!$V$65*VLOOKUP('Crop 2'!$E$65,Carbon!$AH$4:$AI$10,2,FALSE),0))*$AL$20,2)","v":0},{"$f":"O134*Inputs!$D$15","v":0},{"$f":"ROUND((IF('Crop 3'!$C$14=Carbon!$B134,'Crop 3'!$V$14*VLOOKUP('Crop 3'!$E$14,Carbon!$AH$4:$AI$10,2,FALSE),0)+IF('Crop 3'!$C$15=Carbon!$B134,'Crop 3'!$V$15*VLOOKUP('Crop 3'!$E$15,Carbon!$AH$4:$AI$10,2,FALSE),0)+IF('Crop 3'!$C$16=Carbon!$B134,'Crop 3'!$V$16*VLOOKUP('Crop 3'!$E$16,Carbon!$AH$4:$AI$10,2,FALSE),0)+IF('Crop 3'!$C$19=Carbon!$B134,'Crop 3'!$V$19*VLOOKUP('Crop 3'!$E$19,Carbon!$AH$4:$AI$10,2,FALSE),0)+IF('Crop 3'!$C$20=Carbon!$B134,'Crop 3'!$V$20*VLOOKUP('Crop 3'!$E$20,Carbon!$AH$4:$AI$10,2,FALSE),0)+IF('Crop 3'!$C$21=Carbon!$B134,'Crop 3'!$V$21*VLOOKUP('Crop 3'!$E$21,Carbon!$AH$4:$AI$10,2,FALSE),0)+IF('Crop 3'!$C$49=Carbon!$B134,'Crop 3'!$V$49*VLOOKUP('Crop 3'!$E$49,Carbon!$AH$4:$AI$10,2,FALSE),0)+IF('Crop 3'!$C$50=Carbon!$B134,'Crop 3'!$V$50*VLOOKUP('Crop 3'!$E$50,Carbon!$AH$4:$AI$10,2,FALSE),0)+IF('Crop 3'!$C$51=Carbon!$B134,'Crop 3'!$V$51*VLOOKUP('Crop 3'!$E$51,Carbon!$AH$4:$AI$10,2,FALSE),0)+IF('Crop 3'!$C$52=Carbon!$B134,'Crop 3'!$V$52*VLOOKUP('Crop 3'!$E$52,Carbon!$AH$4:$AI$10,2,FALSE),0)+IF('Crop 3'!$C$53=Carbon!$B134,'Crop 3'!$V$53*VLOOKUP('Crop 3'!$E$53,Carbon!$AH$4:$AI$10,2,FALSE),0)+IF('Crop 3'!$C$56=Carbon!$B134,'Crop 3'!$V$56*VLOOKUP('Crop 3'!$E$56,Carbon!$AH$4:$AI$10,2,FALSE),0)+IF('Crop 3'!$C$57=Carbon!$B134,'Crop 3'!$V$57*VLOOKUP('Crop 3'!$E$57,Carbon!$AH$4:$AI$10,2,FALSE),0)+IF('Crop 3'!$C$58=Carbon!$B134,'Crop 3'!$V$58*VLOOKUP('Crop 3'!$E$58,Carbon!$AH$4:$AI$10,2,FALSE),0)+IF('Crop 3'!$C$59=Carbon!$B134,'Crop 3'!$V$59*VLOOKUP('Crop 3'!$E$59,Carbon!$AH$4:$AI$10,2,FALSE),0)+IF('Crop 3'!$C$62=Carbon!$B134,'Crop 3'!$V$62*VLOOKUP('Crop 3'!$E$62,Carbon!$AH$4:$AI$10,2,FALSE),0)+IF('Crop 3'!$C$63=Carbon!$B134,'Crop 3'!$V$63*VLOOKUP('Crop 3'!$E$63,Carbon!$AH$4:$AI$10,2,FALSE),0)+IF('Crop 3'!$C$64=Carbon!$B134,'Crop 3'!$V$64*VLOOKUP('Crop 3'!$E$64,Carbon!$AH$4:$AI$10,2,FALSE),0)+IF('Crop 3'!$C$65=Carbon!$B134,'Crop 3'!$V$65*VLOOKUP('Crop 3'!$E$65,Carbon!$AH$4:$AI$10,2,FALSE),0))*$AL$20,2)","v":0},{"$f":"Q134*Inputs!$D$17","v":0},{"$f":"ROUND(T134/Inputs!D$19,2)","v":0},0,null,null,0,{"$f":"W134*Inputs!$D$13","v":0},0,{"$f":"Y134*Inputs!$D$13","v":0},0,{"$f":"AA134*Inputs!$D$13","v":0},{"$f":"ROUND(AD134/Inputs!D$19,2)","v":0},0]
[null,{"$f":"Defaults!AH101","v":"Remedy Ultra"},{"$f":"ROUND((IF('Crop 1'!$C$14=Carbon!$B135,'Crop 1'!$L$14*VLOOKUP('Crop 1'!$E$14,Carbon!$AH$4:$AI$10,2,FALSE),0)+IF('Crop 1'!$C$15=Carbon!$B135,'Crop 1'!$L$15*VLOOKUP('Crop 1'!$E$15,Carbon!$AH$4:$AI$10,2,FALSE),0)+IF('Crop 1'!$C$16=Carbon!$B135,'Crop 1'!$L$16*VLOOKUP('Crop 1'!$E$16,Carbon!$AH$4:$AI$10,2,FALSE),0)+IF('Crop 1'!$C$19=Carbon!$B135,'Crop 1'!$L$19*VLOOKUP('Crop 1'!$E$19,Carbon!$AH$4:$AI$10,2,FALSE),0)+IF('Crop 1'!$C$20=Carbon!$B135,'Crop 1'!$L$20*VLOOKUP('Crop 1'!$E$20,Carbon!$AH$4:$AI$10,2,FALSE),0)+IF('Crop 1'!$C$21=Carbon!$B135,'Crop 1'!$L$21*VLOOKUP('Crop 1'!$E$21,Carbon!$AH$4:$AI$10,2,FALSE),0)+IF('Crop 1'!$C$49=Carbon!$B135,'Crop 1'!$L$49*VLOOKUP('Crop 1'!$E$49,Carbon!$AH$4:$AI$10,2,FALSE),0)+IF('Crop 1'!$C$50=Carbon!$B135,'Crop 1'!$L$50*VLOOKUP('Crop 1'!$E$50,Carbon!$AH$4:$AI$10,2,FALSE),0)+IF('Crop 1'!$C$51=Carbon!$B135,'Crop 1'!$L$51*VLOOKUP('Crop 1'!$E$51,Carbon!$AH$4:$AI$10,2,FALSE),0)+IF('Crop 1'!$C$52=Carbon!$B135,'Crop 1'!$L$52*VLOOKUP('Crop 1'!$E$52,Carbon!$AH$4:$AI$10,2,FALSE),0)+IF('Crop 1'!$C$53=Carbon!$B135,'Crop 1'!$L$53*VLOOKUP('Crop 1'!$E$53,Carbon!$AH$4:$AI$10,2,FALSE),0)+IF('Crop 1'!$C$56=Carbon!$B135,'Crop 1'!$L$56*VLOOKUP('Crop 1'!$E$56,Carbon!$AH$4:$AI$10,2,FALSE),0)+IF('Crop 1'!$C$57=Carbon!$B135,'Crop 1'!$L$57*VLOOKUP('Crop 1'!$E$57,Carbon!$AH$4:$AI$10,2,FALSE),0)+IF('Crop 1'!$C$58=Carbon!$B135,'Crop 1'!$L$58*VLOOKUP('Crop 1'!$E$58,Carbon!$AH$4:$AI$10,2,FALSE),0)+IF('Crop 1'!$C$59=Carbon!$B135,'Crop 1'!$L$59*VLOOKUP('Crop 1'!$E$59,Carbon!$AH$4:$AI$10,2,FALSE),0)+IF('Crop 1'!$C$62=Carbon!$B135,'Crop 1'!$L$62*VLOOKUP('Crop 1'!$E$62,Carbon!$AH$4:$AI$10,2,FALSE),0)+IF('Crop 1'!$C$63=Carbon!$B135,'Crop 1'!$L$63*VLOOKUP('Crop 1'!$E$63,Carbon!$AH$4:$AI$10,2,FALSE),0)+IF('Crop 1'!$C$64=Carbon!$B135,'Crop 1'!$L$64*VLOOKUP('Crop 1'!$E$64,Carbon!$AH$4:$AI$10,2,FALSE),0)+IF('Crop 1'!$C$65=Carbon!$B135,'Crop 1'!$L$65*VLOOKUP('Crop 1'!$E$65,Carbon!$AH$4:$AI$10,2,FALSE),0))*$AL$20,2)","v":0},{"$f":"C135*Inputs!$D$13","v":0},{"$f":"ROUND((IF('Crop 2'!$C$14=Carbon!$B135,'Crop 2'!$L$14*VLOOKUP('Crop 2'!$E$14,Carbon!$AH$4:$AI$10,2,FALSE),0)+IF('Crop 2'!$C$15=Carbon!$B135,'Crop 2'!$L$15*VLOOKUP('Crop 2'!$E$15,Carbon!$AH$4:$AI$10,2,FALSE),0)+IF('Crop 2'!$C$16=Carbon!$B135,'Crop 2'!$L$16*VLOOKUP('Crop 2'!$E$16,Carbon!$AH$4:$AI$10,2,FALSE),0)+IF('Crop 2'!$C$19=Carbon!$B135,'Crop 2'!$L$19*VLOOKUP('Crop 2'!$E$19,Carbon!$AH$4:$AI$10,2,FALSE),0)+IF('Crop 2'!$C$20=Carbon!$B135,'Crop 2'!$L$20*VLOOKUP('Crop 2'!$E$20,Carbon!$AH$4:$AI$10,2,FALSE),0)+IF('Crop 2'!$C$21=Carbon!$B135,'Crop 2'!$L$21*VLOOKUP('Crop 2'!$E$21,Carbon!$AH$4:$AI$10,2,FALSE),0)+IF('Crop 2'!$C$49=Carbon!$B135,'Crop 2'!$L$49*VLOOKUP('Crop 2'!$E$49,Carbon!$AH$4:$AI$10,2,FALSE),0)+IF('Crop 2'!$C$50=Carbon!$B135,'Crop 2'!$L$50*VLOOKUP('Crop 2'!$E$50,Carbon!$AH$4:$AI$10,2,FALSE),0)+IF('Crop 2'!$C$51=Carbon!$B135,'Crop 2'!$L$51*VLOOKUP('Crop 2'!$E$51,Carbon!$AH$4:$AI$10,2,FALSE),0)+IF('Crop 2'!$C$52=Carbon!$B135,'Crop 2'!$L$52*VLOOKUP('Crop 2'!$E$52,Carbon!$AH$4:$AI$10,2,FALSE),0)+IF('Crop 2'!$C$53=Carbon!$B135,'Crop 2'!$L$53*VLOOKUP('Crop 2'!$E$53,Carbon!$AH$4:$AI$10,2,FALSE),0)+IF('Crop 2'!$C$56=Carbon!$B135,'Crop 2'!$L$56*VLOOKUP('Crop 2'!$E$56,Carbon!$AH$4:$AI$10,2,FALSE),0)+IF('Crop 2'!$C$57=Carbon!$B135,'Crop 2'!$L$57*VLOOKUP('Crop 2'!$E$57,Carbon!$AH$4:$AI$10,2,FALSE),0)+IF('Crop 2'!$C$58=Carbon!$B135,'Crop 2'!$L$58*VLOOKUP('Crop 2'!$E$58,Carbon!$AH$4:$AI$10,2,FALSE),0)+IF('Crop 2'!$C$59=Carbon!$B135,'Crop 2'!$L$59*VLOOKUP('Crop 2'!$E$59,Carbon!$AH$4:$AI$10,2,FALSE),0)+IF('Crop 2'!$C$62=Carbon!$B135,'Crop 2'!$L$62*VLOOKUP('Crop 2'!$E$62,Carbon!$AH$4:$AI$10,2,FALSE),0)+IF('Crop 2'!$C$63=Carbon!$B135,'Crop 2'!$L$63*VLOOKUP('Crop 2'!$E$63,Carbon!$AH$4:$AI$10,2,FALSE),0)+IF('Crop 2'!$C$64=Carbon!$B135,'Crop 2'!$L$64*VLOOKUP('Crop 2'!$E$64,Carbon!$AH$4:$AI$10,2,FALSE),0)+IF('Crop 2'!$C$65=Carbon!$B135,'Crop 2'!$L$65*VLOOKUP('Crop 2'!$E$65,Carbon!$AH$4:$AI$10,2,FALSE),0))*$AL$20,2)","v":0},{"$f":"E135*Inputs!$D$15","v":0},{"$f":"ROUND((IF('Crop 3'!$C$14=Carbon!$B135,'Crop 3'!$L$14*VLOOKUP('Crop 3'!$E$14,Carbon!$AH$4:$AI$10,2,FALSE),0)+IF('Crop 3'!$C$15=Carbon!$B135,'Crop 3'!$L$15*VLOOKUP('Crop 3'!$E$15,Carbon!$AH$4:$AI$10,2,FALSE),0)+IF('Crop 3'!$C$16=Carbon!$B135,'Crop 3'!$L$16*VLOOKUP('Crop 3'!$E$16,Carbon!$AH$4:$AI$10,2,FALSE),0)+IF('Crop 3'!$C$19=Carbon!$B135,'Crop 3'!$L$19*VLOOKUP('Crop 3'!$E$19,Carbon!$AH$4:$AI$10,2,FALSE),0)+IF('Crop 3'!$C$20=Carbon!$B135,'Crop 3'!$L$20*VLOOKUP('Crop 3'!$E$20,Carbon!$AH$4:$AI$10,2,FALSE),0)+IF('Crop 3'!$C$21=Carbon!$B135,'Crop 3'!$L$21*VLOOKUP('Crop 3'!$E$21,Carbon!$AH$4:$AI$10,2,FALSE),0)+IF('Crop 3'!$C$49=Carbon!$B135,'Crop 3'!$L$49*VLOOKUP('Crop 3'!$E$49,Carbon!$AH$4:$AI$10,2,FALSE),0)+IF('Crop 3'!$C$50=Carbon!$B135,'Crop 3'!$L$50*VLOOKUP('Crop 3'!$E$50,Carbon!$AH$4:$AI$10,2,FALSE),0)+IF('Crop 3'!$C$51=Carbon!$B135,'Crop 3'!$L$51*VLOOKUP('Crop 3'!$E$51,Carbon!$AH$4:$AI$10,2,FALSE),0)+IF('Crop 3'!$C$52=Carbon!$B135,'Crop 3'!$L$52*VLOOKUP('Crop 3'!$E$52,Carbon!$AH$4:$AI$10,2,FALSE),0)+IF('Crop 3'!$C$53=Carbon!$B135,'Crop 3'!$L$53*VLOOKUP('Crop 3'!$E$53,Carbon!$AH$4:$AI$10,2,FALSE),0)+IF('Crop 3'!$C$56=Carbon!$B135,'Crop 3'!$L$56*VLOOKUP('Crop 3'!$E$56,Carbon!$AH$4:$AI$10,2,FALSE),0)+IF('Crop 3'!$C$57=Carbon!$B135,'Crop 3'!$L$57*VLOOKUP('Crop 3'!$E$57,Carbon!$AH$4:$AI$10,2,FALSE),0)+IF('Crop 3'!$C$58=Carbon!$B135,'Crop 3'!$L$58*VLOOKUP('Crop 3'!$E$58,Carbon!$AH$4:$AI$10,2,FALSE),0)+IF('Crop 3'!$C$59=Carbon!$B135,'Crop 3'!$L$59*VLOOKUP('Crop 3'!$E$59,Carbon!$AH$4:$AI$10,2,FALSE),0)+IF('Crop 3'!$C$62=Carbon!$B135,'Crop 3'!$L$62*VLOOKUP('Crop 3'!$E$62,Carbon!$AH$4:$AI$10,2,FALSE),0)+IF('Crop 3'!$C$63=Carbon!$B135,'Crop 3'!$L$63*VLOOKUP('Crop 3'!$E$63,Carbon!$AH$4:$AI$10,2,FALSE),0)+IF('Crop 3'!$C$64=Carbon!$B135,'Crop 3'!$L$64*VLOOKUP('Crop 3'!$E$64,Carbon!$AH$4:$AI$10,2,FALSE),0)+IF('Crop 3'!$C$65=Carbon!$B135,'Crop 3'!$L$65*VLOOKUP('Crop 3'!$E$65,Carbon!$AH$4:$AI$10,2,FALSE),0))*$AL$20,2)","v":0},{"$f":"G135*Inputs!$D$17","v":0},{"$f":"ROUND(J135/Inputs!D$19,2)","v":0},0,null,null,{"$f":"ROUND((IF('Crop 1'!$C$14=Carbon!$B135,'Crop 1'!$V$14*VLOOKUP('Crop 1'!$E$14,Carbon!$AH$4:$AI$10,2,FALSE),0)+IF('Crop 1'!$C$15=Carbon!$B135,'Crop 1'!$V$15*VLOOKUP('Crop 1'!$E$15,Carbon!$AH$4:$AI$10,2,FALSE),0)+IF('Crop 1'!$C$16=Carbon!$B135,'Crop 1'!$V$16*VLOOKUP('Crop 1'!$E$16,Carbon!$AH$4:$AI$10,2,FALSE),0)+IF('Crop 1'!$C$19=Carbon!$B135,'Crop 1'!$V$19*VLOOKUP('Crop 1'!$E$19,Carbon!$AH$4:$AI$10,2,FALSE),0)+IF('Crop 1'!$C$20=Carbon!$B135,'Crop 1'!$V$20*VLOOKUP('Crop 1'!$E$20,Carbon!$AH$4:$AI$10,2,FALSE),0)+IF('Crop 1'!$C$21=Carbon!$B135,'Crop 1'!$V$21*VLOOKUP('Crop 1'!$E$21,Carbon!$AH$4:$AI$10,2,FALSE),0)+IF('Crop 1'!$C$49=Carbon!$B135,'Crop 1'!$V$49*VLOOKUP('Crop 1'!$E$49,Carbon!$AH$4:$AI$10,2,FALSE),0)+IF('Crop 1'!$C$50=Carbon!$B135,'Crop 1'!$V$50*VLOOKUP('Crop 1'!$E$50,Carbon!$AH$4:$AI$10,2,FALSE),0)+IF('Crop 1'!$C$51=Carbon!$B135,'Crop 1'!$V$51*VLOOKUP('Crop 1'!$E$51,Carbon!$AH$4:$AI$10,2,FALSE),0)+IF('Crop 1'!$C$52=Carbon!$B135,'Crop 1'!$V$52*VLOOKUP('Crop 1'!$E$52,Carbon!$AH$4:$AI$10,2,FALSE),0)+IF('Crop 1'!$C$53=Carbon!$B135,'Crop 1'!$V$53*VLOOKUP('Crop 1'!$E$53,Carbon!$AH$4:$AI$10,2,FALSE),0)+IF('Crop 1'!$C$56=Carbon!$B135,'Crop 1'!$V$56*VLOOKUP('Crop 1'!$E$56,Carbon!$AH$4:$AI$10,2,FALSE),0)+IF('Crop 1'!$C$57=Carbon!$B135,'Crop 1'!$V$57*VLOOKUP('Crop 1'!$E$57,Carbon!$AH$4:$AI$10,2,FALSE),0)+IF('Crop 1'!$C$58=Carbon!$B135,'Crop 1'!$V$58*VLOOKUP('Crop 1'!$E$58,Carbon!$AH$4:$AI$10,2,FALSE),0)+IF('Crop 1'!$C$59=Carbon!$B135,'Crop 1'!$V$59*VLOOKUP('Crop 1'!$E$59,Carbon!$AH$4:$AI$10,2,FALSE),0)+IF('Crop 1'!$C$62=Carbon!$B135,'Crop 1'!$V$62*VLOOKUP('Crop 1'!$E$62,Carbon!$AH$4:$AI$10,2,FALSE),0)+IF('Crop 1'!$C$63=Carbon!$B135,'Crop 1'!$V$63*VLOOKUP('Crop 1'!$E$63,Carbon!$AH$4:$AI$10,2,FALSE),0)+IF('Crop 1'!$C$64=Carbon!$B135,'Crop 1'!$V$64*VLOOKUP('Crop 1'!$E$64,Carbon!$AH$4:$AI$10,2,FALSE),0)+IF('Crop 1'!$C$65=Carbon!$B135,'Crop 1'!$V$65*VLOOKUP('Crop 1'!$E$65,Carbon!$AH$4:$AI$10,2,FALSE),0))*$AL$20,2)","v":0},{"$f":"M135*Inputs!$D$13","v":0},{"$f":"ROUND((IF('Crop 2'!$C$14=Carbon!$B135,'Crop 2'!$V$14*VLOOKUP('Crop 2'!$E$14,Carbon!$AH$4:$AI$10,2,FALSE),0)+IF('Crop 2'!$C$15=Carbon!$B135,'Crop 2'!$V$15*VLOOKUP('Crop 2'!$E$15,Carbon!$AH$4:$AI$10,2,FALSE),0)+IF('Crop 2'!$C$16=Carbon!$B135,'Crop 2'!$V$16*VLOOKUP('Crop 2'!$E$16,Carbon!$AH$4:$AI$10,2,FALSE),0)+IF('Crop 2'!$C$19=Carbon!$B135,'Crop 2'!$V$19*VLOOKUP('Crop 2'!$E$19,Carbon!$AH$4:$AI$10,2,FALSE),0)+IF('Crop 2'!$C$20=Carbon!$B135,'Crop 2'!$V$20*VLOOKUP('Crop 2'!$E$20,Carbon!$AH$4:$AI$10,2,FALSE),0)+IF('Crop 2'!$C$21=Carbon!$B135,'Crop 2'!$V$21*VLOOKUP('Crop 2'!$E$21,Carbon!$AH$4:$AI$10,2,FALSE),0)+IF('Crop 2'!$C$49=Carbon!$B135,'Crop 2'!$V$49*VLOOKUP('Crop 2'!$E$49,Carbon!$AH$4:$AI$10,2,FALSE),0)+IF('Crop 2'!$C$50=Carbon!$B135,'Crop 2'!$V$50*VLOOKUP('Crop 2'!$E$50,Carbon!$AH$4:$AI$10,2,FALSE),0)+IF('Crop 2'!$C$51=Carbon!$B135,'Crop 2'!$V$51*VLOOKUP('Crop 2'!$E$51,Carbon!$AH$4:$AI$10,2,FALSE),0)+IF('Crop 2'!$C$52=Carbon!$B135,'Crop 2'!$V$52*VLOOKUP('Crop 2'!$E$52,Carbon!$AH$4:$AI$10,2,FALSE),0)+IF('Crop 2'!$C$53=Carbon!$B135,'Crop 2'!$V$53*VLOOKUP('Crop 2'!$E$53,Carbon!$AH$4:$AI$10,2,FALSE),0)+IF('Crop 2'!$C$56=Carbon!$B135,'Crop 2'!$V$56*VLOOKUP('Crop 2'!$E$56,Carbon!$AH$4:$AI$10,2,FALSE),0)+IF('Crop 2'!$C$57=Carbon!$B135,'Crop 2'!$V$57*VLOOKUP('Crop 2'!$E$57,Carbon!$AH$4:$AI$10,2,FALSE),0)+IF('Crop 2'!$C$58=Carbon!$B135,'Crop 2'!$V$58*VLOOKUP('Crop 2'!$E$58,Carbon!$AH$4:$AI$10,2,FALSE),0)+IF('Crop 2'!$C$59=Carbon!$B135,'Crop 2'!$V$59*VLOOKUP('Crop 2'!$E$59,Carbon!$AH$4:$AI$10,2,FALSE),0)+IF('Crop 2'!$C$62=Carbon!$B135,'Crop 2'!$V$62*VLOOKUP('Crop 2'!$E$62,Carbon!$AH$4:$AI$10,2,FALSE),0)+IF('Crop 2'!$C$63=Carbon!$B135,'Crop 2'!$V$63*VLOOKUP('Crop 2'!$E$63,Carbon!$AH$4:$AI$10,2,FALSE),0)+IF('Crop 2'!$C$64=Carbon!$B135,'Crop 2'!$V$64*VLOOKUP('Crop 2'!$E$64,Carbon!$AH$4:$AI$10,2,FALSE),0)+IF('Crop 2'!$C$65=Carbon!$B135,'Crop 2'!$V$65*VLOOKUP('Crop 2'!$E$65,Carbon!$AH$4:$AI$10,2,FALSE),0))*$AL$20,2)","v":0},{"$f":"O135*Inputs!$D$15","v":0},{"$f":"ROUND((IF('Crop 3'!$C$14=Carbon!$B135,'Crop 3'!$V$14*VLOOKUP('Crop 3'!$E$14,Carbon!$AH$4:$AI$10,2,FALSE),0)+IF('Crop 3'!$C$15=Carbon!$B135,'Crop 3'!$V$15*VLOOKUP('Crop 3'!$E$15,Carbon!$AH$4:$AI$10,2,FALSE),0)+IF('Crop 3'!$C$16=Carbon!$B135,'Crop 3'!$V$16*VLOOKUP('Crop 3'!$E$16,Carbon!$AH$4:$AI$10,2,FALSE),0)+IF('Crop 3'!$C$19=Carbon!$B135,'Crop 3'!$V$19*VLOOKUP('Crop 3'!$E$19,Carbon!$AH$4:$AI$10,2,FALSE),0)+IF('Crop 3'!$C$20=Carbon!$B135,'Crop 3'!$V$20*VLOOKUP('Crop 3'!$E$20,Carbon!$AH$4:$AI$10,2,FALSE),0)+IF('Crop 3'!$C$21=Carbon!$B135,'Crop 3'!$V$21*VLOOKUP('Crop 3'!$E$21,Carbon!$AH$4:$AI$10,2,FALSE),0)+IF('Crop 3'!$C$49=Carbon!$B135,'Crop 3'!$V$49*VLOOKUP('Crop 3'!$E$49,Carbon!$AH$4:$AI$10,2,FALSE),0)+IF('Crop 3'!$C$50=Carbon!$B135,'Crop 3'!$V$50*VLOOKUP('Crop 3'!$E$50,Carbon!$AH$4:$AI$10,2,FALSE),0)+IF('Crop 3'!$C$51=Carbon!$B135,'Crop 3'!$V$51*VLOOKUP('Crop 3'!$E$51,Carbon!$AH$4:$AI$10,2,FALSE),0)+IF('Crop 3'!$C$52=Carbon!$B135,'Crop 3'!$V$52*VLOOKUP('Crop 3'!$E$52,Carbon!$AH$4:$AI$10,2,FALSE),0)+IF('Crop 3'!$C$53=Carbon!$B135,'Crop 3'!$V$53*VLOOKUP('Crop 3'!$E$53,Carbon!$AH$4:$AI$10,2,FALSE),0)+IF('Crop 3'!$C$56=Carbon!$B135,'Crop 3'!$V$56*VLOOKUP('Crop 3'!$E$56,Carbon!$AH$4:$AI$10,2,FALSE),0)+IF('Crop 3'!$C$57=Carbon!$B135,'Crop 3'!$V$57*VLOOKUP('Crop 3'!$E$57,Carbon!$AH$4:$AI$10,2,FALSE),0)+IF('Crop 3'!$C$58=Carbon!$B135,'Crop 3'!$V$58*VLOOKUP('Crop 3'!$E$58,Carbon!$AH$4:$AI$10,2,FALSE),0)+IF('Crop 3'!$C$59=Carbon!$B135,'Crop 3'!$V$59*VLOOKUP('Crop 3'!$E$59,Carbon!$AH$4:$AI$10,2,FALSE),0)+IF('Crop 3'!$C$62=Carbon!$B135,'Crop 3'!$V$62*VLOOKUP('Crop 3'!$E$62,Carbon!$AH$4:$AI$10,2,FALSE),0)+IF('Crop 3'!$C$63=Carbon!$B135,'Crop 3'!$V$63*VLOOKUP('Crop 3'!$E$63,Carbon!$AH$4:$AI$10,2,FALSE),0)+IF('Crop 3'!$C$64=Carbon!$B135,'Crop 3'!$V$64*VLOOKUP('Crop 3'!$E$64,Carbon!$AH$4:$AI$10,2,FALSE),0)+IF('Crop 3'!$C$65=Carbon!$B135,'Crop 3'!$V$65*VLOOKUP('Crop 3'!$E$65,Carbon!$AH$4:$AI$10,2,FALSE),0))*$AL$20,2)","v":0},{"$f":"Q135*Inputs!$D$17","v":0},{"$f":"ROUND(T135/Inputs!D$19,2)","v":0},0,null,null,0,{"$f":"W135*Inputs!$D$13","v":0},0,{"$f":"Y135*Inputs!$D$13","v":0},0,{"$f":"AA135*Inputs!$D$13","v":0},{"$f":"ROUND(AD135/Inputs!D$19,2)","v":0},0]
[null,{"$f":"Defaults!AH102","v":"Resolve Q"},{"$f":"ROUND((IF('Crop 1'!$C$14=Carbon!$B136,'Crop 1'!$L$14*VLOOKUP('Crop 1'!$E$14,Carbon!$AH$4:$AI$10,2,FALSE),0)+IF('Crop 1'!$C$15=Carbon!$B136,'Crop 1'!$L$15*VLOOKUP('Crop 1'!$E$15,Carbon!$AH$4:$AI$10,2,FALSE),0)+IF('Crop 1'!$C$16=Carbon!$B136,'Crop 1'!$L$16*VLOOKUP('Crop 1'!$E$16,Carbon!$AH$4:$AI$10,2,FALSE),0)+IF('Crop 1'!$C$19=Carbon!$B136,'Crop 1'!$L$19*VLOOKUP('Crop 1'!$E$19,Carbon!$AH$4:$AI$10,2,FALSE),0)+IF('Crop 1'!$C$20=Carbon!$B136,'Crop 1'!$L$20*VLOOKUP('Crop 1'!$E$20,Carbon!$AH$4:$AI$10,2,FALSE),0)+IF('Crop 1'!$C$21=Carbon!$B136,'Crop 1'!$L$21*VLOOKUP('Crop 1'!$E$21,Carbon!$AH$4:$AI$10,2,FALSE),0)+IF('Crop 1'!$C$49=Carbon!$B136,'Crop 1'!$L$49*VLOOKUP('Crop 1'!$E$49,Carbon!$AH$4:$AI$10,2,FALSE),0)+IF('Crop 1'!$C$50=Carbon!$B136,'Crop 1'!$L$50*VLOOKUP('Crop 1'!$E$50,Carbon!$AH$4:$AI$10,2,FALSE),0)+IF('Crop 1'!$C$51=Carbon!$B136,'Crop 1'!$L$51*VLOOKUP('Crop 1'!$E$51,Carbon!$AH$4:$AI$10,2,FALSE),0)+IF('Crop 1'!$C$52=Carbon!$B136,'Crop 1'!$L$52*VLOOKUP('Crop 1'!$E$52,Carbon!$AH$4:$AI$10,2,FALSE),0)+IF('Crop 1'!$C$53=Carbon!$B136,'Crop 1'!$L$53*VLOOKUP('Crop 1'!$E$53,Carbon!$AH$4:$AI$10,2,FALSE),0)+IF('Crop 1'!$C$56=Carbon!$B136,'Crop 1'!$L$56*VLOOKUP('Crop 1'!$E$56,Carbon!$AH$4:$AI$10,2,FALSE),0)+IF('Crop 1'!$C$57=Carbon!$B136,'Crop 1'!$L$57*VLOOKUP('Crop 1'!$E$57,Carbon!$AH$4:$AI$10,2,FALSE),0)+IF('Crop 1'!$C$58=Carbon!$B136,'Crop 1'!$L$58*VLOOKUP('Crop 1'!$E$58,Carbon!$AH$4:$AI$10,2,FALSE),0)+IF('Crop 1'!$C$59=Carbon!$B136,'Crop 1'!$L$59*VLOOKUP('Crop 1'!$E$59,Carbon!$AH$4:$AI$10,2,FALSE),0)+IF('Crop 1'!$C$62=Carbon!$B136,'Crop 1'!$L$62*VLOOKUP('Crop 1'!$E$62,Carbon!$AH$4:$AI$10,2,FALSE),0)+IF('Crop 1'!$C$63=Carbon!$B136,'Crop 1'!$L$63*VLOOKUP('Crop 1'!$E$63,Carbon!$AH$4:$AI$10,2,FALSE),0)+IF('Crop 1'!$C$64=Carbon!$B136,'Crop 1'!$L$64*VLOOKUP('Crop 1'!$E$64,Carbon!$AH$4:$AI$10,2,FALSE),0)+IF('Crop 1'!$C$65=Carbon!$B136,'Crop 1'!$L$65*VLOOKUP('Crop 1'!$E$65,Carbon!$AH$4:$AI$10,2,FALSE),0))*$AL$20,2)","v":0},{"$f":"C136*Inputs!$D$13","v":0},{"$f":"ROUND((IF('Crop 2'!$C$14=Carbon!$B136,'Crop 2'!$L$14*VLOOKUP('Crop 2'!$E$14,Carbon!$AH$4:$AI$10,2,FALSE),0)+IF('Crop 2'!$C$15=Carbon!$B136,'Crop 2'!$L$15*VLOOKUP('Crop 2'!$E$15,Carbon!$AH$4:$AI$10,2,FALSE),0)+IF('Crop 2'!$C$16=Carbon!$B136,'Crop 2'!$L$16*VLOOKUP('Crop 2'!$E$16,Carbon!$AH$4:$AI$10,2,FALSE),0)+IF('Crop 2'!$C$19=Carbon!$B136,'Crop 2'!$L$19*VLOOKUP('Crop 2'!$E$19,Carbon!$AH$4:$AI$10,2,FALSE),0)+IF('Crop 2'!$C$20=Carbon!$B136,'Crop 2'!$L$20*VLOOKUP('Crop 2'!$E$20,Carbon!$AH$4:$AI$10,2,FALSE),0)+IF('Crop 2'!$C$21=Carbon!$B136,'Crop 2'!$L$21*VLOOKUP('Crop 2'!$E$21,Carbon!$AH$4:$AI$10,2,FALSE),0)+IF('Crop 2'!$C$49=Carbon!$B136,'Crop 2'!$L$49*VLOOKUP('Crop 2'!$E$49,Carbon!$AH$4:$AI$10,2,FALSE),0)+IF('Crop 2'!$C$50=Carbon!$B136,'Crop 2'!$L$50*VLOOKUP('Crop 2'!$E$50,Carbon!$AH$4:$AI$10,2,FALSE),0)+IF('Crop 2'!$C$51=Carbon!$B136,'Crop 2'!$L$51*VLOOKUP('Crop 2'!$E$51,Carbon!$AH$4:$AI$10,2,FALSE),0)+IF('Crop 2'!$C$52=Carbon!$B136,'Crop 2'!$L$52*VLOOKUP('Crop 2'!$E$52,Carbon!$AH$4:$AI$10,2,FALSE),0)+IF('Crop 2'!$C$53=Carbon!$B136,'Crop 2'!$L$53*VLOOKUP('Crop 2'!$E$53,Carbon!$AH$4:$AI$10,2,FALSE),0)+IF('Crop 2'!$C$56=Carbon!$B136,'Crop 2'!$L$56*VLOOKUP('Crop 2'!$E$56,Carbon!$AH$4:$AI$10,2,FALSE),0)+IF('Crop 2'!$C$57=Carbon!$B136,'Crop 2'!$L$57*VLOOKUP('Crop 2'!$E$57,Carbon!$AH$4:$AI$10,2,FALSE),0)+IF('Crop 2'!$C$58=Carbon!$B136,'Crop 2'!$L$58*VLOOKUP('Crop 2'!$E$58,Carbon!$AH$4:$AI$10,2,FALSE),0)+IF('Crop 2'!$C$59=Carbon!$B136,'Crop 2'!$L$59*VLOOKUP('Crop 2'!$E$59,Carbon!$AH$4:$AI$10,2,FALSE),0)+IF('Crop 2'!$C$62=Carbon!$B136,'Crop 2'!$L$62*VLOOKUP('Crop 2'!$E$62,Carbon!$AH$4:$AI$10,2,FALSE),0)+IF('Crop 2'!$C$63=Carbon!$B136,'Crop 2'!$L$63*VLOOKUP('Crop 2'!$E$63,Carbon!$AH$4:$AI$10,2,FALSE),0)+IF('Crop 2'!$C$64=Carbon!$B136,'Crop 2'!$L$64*VLOOKUP('Crop 2'!$E$64,Carbon!$AH$4:$AI$10,2,FALSE),0)+IF('Crop 2'!$C$65=Carbon!$B136,'Crop 2'!$L$65*VLOOKUP('Crop 2'!$E$65,Carbon!$AH$4:$AI$10,2,FALSE),0))*$AL$20,2)","v":0},{"$f":"E136*Inputs!$D$15","v":0},{"$f":"ROUND((IF('Crop 3'!$C$14=Carbon!$B136,'Crop 3'!$L$14*VLOOKUP('Crop 3'!$E$14,Carbon!$AH$4:$AI$10,2,FALSE),0)+IF('Crop 3'!$C$15=Carbon!$B136,'Crop 3'!$L$15*VLOOKUP('Crop 3'!$E$15,Carbon!$AH$4:$AI$10,2,FALSE),0)+IF('Crop 3'!$C$16=Carbon!$B136,'Crop 3'!$L$16*VLOOKUP('Crop 3'!$E$16,Carbon!$AH$4:$AI$10,2,FALSE),0)+IF('Crop 3'!$C$19=Carbon!$B136,'Crop 3'!$L$19*VLOOKUP('Crop 3'!$E$19,Carbon!$AH$4:$AI$10,2,FALSE),0)+IF('Crop 3'!$C$20=Carbon!$B136,'Crop 3'!$L$20*VLOOKUP('Crop 3'!$E$20,Carbon!$AH$4:$AI$10,2,FALSE),0)+IF('Crop 3'!$C$21=Carbon!$B136,'Crop 3'!$L$21*VLOOKUP('Crop 3'!$E$21,Carbon!$AH$4:$AI$10,2,FALSE),0)+IF('Crop 3'!$C$49=Carbon!$B136,'Crop 3'!$L$49*VLOOKUP('Crop 3'!$E$49,Carbon!$AH$4:$AI$10,2,FALSE),0)+IF('Crop 3'!$C$50=Carbon!$B136,'Crop 3'!$L$50*VLOOKUP('Crop 3'!$E$50,Carbon!$AH$4:$AI$10,2,FALSE),0)+IF('Crop 3'!$C$51=Carbon!$B136,'Crop 3'!$L$51*VLOOKUP('Crop 3'!$E$51,Carbon!$AH$4:$AI$10,2,FALSE),0)+IF('Crop 3'!$C$52=Carbon!$B136,'Crop 3'!$L$52*VLOOKUP('Crop 3'!$E$52,Carbon!$AH$4:$AI$10,2,FALSE),0)+IF('Crop 3'!$C$53=Carbon!$B136,'Crop 3'!$L$53*VLOOKUP('Crop 3'!$E$53,Carbon!$AH$4:$AI$10,2,FALSE),0)+IF('Crop 3'!$C$56=Carbon!$B136,'Crop 3'!$L$56*VLOOKUP('Crop 3'!$E$56,Carbon!$AH$4:$AI$10,2,FALSE),0)+IF('Crop 3'!$C$57=Carbon!$B136,'Crop 3'!$L$57*VLOOKUP('Crop 3'!$E$57,Carbon!$AH$4:$AI$10,2,FALSE),0)+IF('Crop 3'!$C$58=Carbon!$B136,'Crop 3'!$L$58*VLOOKUP('Crop 3'!$E$58,Carbon!$AH$4:$AI$10,2,FALSE),0)+IF('Crop 3'!$C$59=Carbon!$B136,'Crop 3'!$L$59*VLOOKUP('Crop 3'!$E$59,Carbon!$AH$4:$AI$10,2,FALSE),0)+IF('Crop 3'!$C$62=Carbon!$B136,'Crop 3'!$L$62*VLOOKUP('Crop 3'!$E$62,Carbon!$AH$4:$AI$10,2,FALSE),0)+IF('Crop 3'!$C$63=Carbon!$B136,'Crop 3'!$L$63*VLOOKUP('Crop 3'!$E$63,Carbon!$AH$4:$AI$10,2,FALSE),0)+IF('Crop 3'!$C$64=Carbon!$B136,'Crop 3'!$L$64*VLOOKUP('Crop 3'!$E$64,Carbon!$AH$4:$AI$10,2,FALSE),0)+IF('Crop 3'!$C$65=Carbon!$B136,'Crop 3'!$L$65*VLOOKUP('Crop 3'!$E$65,Carbon!$AH$4:$AI$10,2,FALSE),0))*$AL$20,2)","v":0},{"$f":"G136*Inputs!$D$17","v":0},{"$f":"ROUND(J136/Inputs!D$19,2)","v":0},0,null,null,{"$f":"ROUND((IF('Crop 1'!$C$14=Carbon!$B136,'Crop 1'!$V$14*VLOOKUP('Crop 1'!$E$14,Carbon!$AH$4:$AI$10,2,FALSE),0)+IF('Crop 1'!$C$15=Carbon!$B136,'Crop 1'!$V$15*VLOOKUP('Crop 1'!$E$15,Carbon!$AH$4:$AI$10,2,FALSE),0)+IF('Crop 1'!$C$16=Carbon!$B136,'Crop 1'!$V$16*VLOOKUP('Crop 1'!$E$16,Carbon!$AH$4:$AI$10,2,FALSE),0)+IF('Crop 1'!$C$19=Carbon!$B136,'Crop 1'!$V$19*VLOOKUP('Crop 1'!$E$19,Carbon!$AH$4:$AI$10,2,FALSE),0)+IF('Crop 1'!$C$20=Carbon!$B136,'Crop 1'!$V$20*VLOOKUP('Crop 1'!$E$20,Carbon!$AH$4:$AI$10,2,FALSE),0)+IF('Crop 1'!$C$21=Carbon!$B136,'Crop 1'!$V$21*VLOOKUP('Crop 1'!$E$21,Carbon!$AH$4:$AI$10,2,FALSE),0)+IF('Crop 1'!$C$49=Carbon!$B136,'Crop 1'!$V$49*VLOOKUP('Crop 1'!$E$49,Carbon!$AH$4:$AI$10,2,FALSE),0)+IF('Crop 1'!$C$50=Carbon!$B136,'Crop 1'!$V$50*VLOOKUP('Crop 1'!$E$50,Carbon!$AH$4:$AI$10,2,FALSE),0)+IF('Crop 1'!$C$51=Carbon!$B136,'Crop 1'!$V$51*VLOOKUP('Crop 1'!$E$51,Carbon!$AH$4:$AI$10,2,FALSE),0)+IF('Crop 1'!$C$52=Carbon!$B136,'Crop 1'!$V$52*VLOOKUP('Crop 1'!$E$52,Carbon!$AH$4:$AI$10,2,FALSE),0)+IF('Crop 1'!$C$53=Carbon!$B136,'Crop 1'!$V$53*VLOOKUP('Crop 1'!$E$53,Carbon!$AH$4:$AI$10,2,FALSE),0)+IF('Crop 1'!$C$56=Carbon!$B136,'Crop 1'!$V$56*VLOOKUP('Crop 1'!$E$56,Carbon!$AH$4:$AI$10,2,FALSE),0)+IF('Crop 1'!$C$57=Carbon!$B136,'Crop 1'!$V$57*VLOOKUP('Crop 1'!$E$57,Carbon!$AH$4:$AI$10,2,FALSE),0)+IF('Crop 1'!$C$58=Carbon!$B136,'Crop 1'!$V$58*VLOOKUP('Crop 1'!$E$58,Carbon!$AH$4:$AI$10,2,FALSE),0)+IF('Crop 1'!$C$59=Carbon!$B136,'Crop 1'!$V$59*VLOOKUP('Crop 1'!$E$59,Carbon!$AH$4:$AI$10,2,FALSE),0)+IF('Crop 1'!$C$62=Carbon!$B136,'Crop 1'!$V$62*VLOOKUP('Crop 1'!$E$62,Carbon!$AH$4:$AI$10,2,FALSE),0)+IF('Crop 1'!$C$63=Carbon!$B136,'Crop 1'!$V$63*VLOOKUP('Crop 1'!$E$63,Carbon!$AH$4:$AI$10,2,FALSE),0)+IF('Crop 1'!$C$64=Carbon!$B136,'Crop 1'!$V$64*VLOOKUP('Crop 1'!$E$64,Carbon!$AH$4:$AI$10,2,FALSE),0)+IF('Crop 1'!$C$65=Carbon!$B136,'Crop 1'!$V$65*VLOOKUP('Crop 1'!$E$65,Carbon!$AH$4:$AI$10,2,FALSE),0))*$AL$20,2)","v":0},{"$f":"M136*Inputs!$D$13","v":0},{"$f":"ROUND((IF('Crop 2'!$C$14=Carbon!$B136,'Crop 2'!$V$14*VLOOKUP('Crop 2'!$E$14,Carbon!$AH$4:$AI$10,2,FALSE),0)+IF('Crop 2'!$C$15=Carbon!$B136,'Crop 2'!$V$15*VLOOKUP('Crop 2'!$E$15,Carbon!$AH$4:$AI$10,2,FALSE),0)+IF('Crop 2'!$C$16=Carbon!$B136,'Crop 2'!$V$16*VLOOKUP('Crop 2'!$E$16,Carbon!$AH$4:$AI$10,2,FALSE),0)+IF('Crop 2'!$C$19=Carbon!$B136,'Crop 2'!$V$19*VLOOKUP('Crop 2'!$E$19,Carbon!$AH$4:$AI$10,2,FALSE),0)+IF('Crop 2'!$C$20=Carbon!$B136,'Crop 2'!$V$20*VLOOKUP('Crop 2'!$E$20,Carbon!$AH$4:$AI$10,2,FALSE),0)+IF('Crop 2'!$C$21=Carbon!$B136,'Crop 2'!$V$21*VLOOKUP('Crop 2'!$E$21,Carbon!$AH$4:$AI$10,2,FALSE),0)+IF('Crop 2'!$C$49=Carbon!$B136,'Crop 2'!$V$49*VLOOKUP('Crop 2'!$E$49,Carbon!$AH$4:$AI$10,2,FALSE),0)+IF('Crop 2'!$C$50=Carbon!$B136,'Crop 2'!$V$50*VLOOKUP('Crop 2'!$E$50,Carbon!$AH$4:$AI$10,2,FALSE),0)+IF('Crop 2'!$C$51=Carbon!$B136,'Crop 2'!$V$51*VLOOKUP('Crop 2'!$E$51,Carbon!$AH$4:$AI$10,2,FALSE),0)+IF('Crop 2'!$C$52=Carbon!$B136,'Crop 2'!$V$52*VLOOKUP('Crop 2'!$E$52,Carbon!$AH$4:$AI$10,2,FALSE),0)+IF('Crop 2'!$C$53=Carbon!$B136,'Crop 2'!$V$53*VLOOKUP('Crop 2'!$E$53,Carbon!$AH$4:$AI$10,2,FALSE),0)+IF('Crop 2'!$C$56=Carbon!$B136,'Crop 2'!$V$56*VLOOKUP('Crop 2'!$E$56,Carbon!$AH$4:$AI$10,2,FALSE),0)+IF('Crop 2'!$C$57=Carbon!$B136,'Crop 2'!$V$57*VLOOKUP('Crop 2'!$E$57,Carbon!$AH$4:$AI$10,2,FALSE),0)+IF('Crop 2'!$C$58=Carbon!$B136,'Crop 2'!$V$58*VLOOKUP('Crop 2'!$E$58,Carbon!$AH$4:$AI$10,2,FALSE),0)+IF('Crop 2'!$C$59=Carbon!$B136,'Crop 2'!$V$59*VLOOKUP('Crop 2'!$E$59,Carbon!$AH$4:$AI$10,2,FALSE),0)+IF('Crop 2'!$C$62=Carbon!$B136,'Crop 2'!$V$62*VLOOKUP('Crop 2'!$E$62,Carbon!$AH$4:$AI$10,2,FALSE),0)+IF('Crop 2'!$C$63=Carbon!$B136,'Crop 2'!$V$63*VLOOKUP('Crop 2'!$E$63,Carbon!$AH$4:$AI$10,2,FALSE),0)+IF('Crop 2'!$C$64=Carbon!$B136,'Crop 2'!$V$64*VLOOKUP('Crop 2'!$E$64,Carbon!$AH$4:$AI$10,2,FALSE),0)+IF('Crop 2'!$C$65=Carbon!$B136,'Crop 2'!$V$65*VLOOKUP('Crop 2'!$E$65,Carbon!$AH$4:$AI$10,2,FALSE),0))*$AL$20,2)","v":0},{"$f":"O136*Inputs!$D$15","v":0},{"$f":"ROUND((IF('Crop 3'!$C$14=Carbon!$B136,'Crop 3'!$V$14*VLOOKUP('Crop 3'!$E$14,Carbon!$AH$4:$AI$10,2,FALSE),0)+IF('Crop 3'!$C$15=Carbon!$B136,'Crop 3'!$V$15*VLOOKUP('Crop 3'!$E$15,Carbon!$AH$4:$AI$10,2,FALSE),0)+IF('Crop 3'!$C$16=Carbon!$B136,'Crop 3'!$V$16*VLOOKUP('Crop 3'!$E$16,Carbon!$AH$4:$AI$10,2,FALSE),0)+IF('Crop 3'!$C$19=Carbon!$B136,'Crop 3'!$V$19*VLOOKUP('Crop 3'!$E$19,Carbon!$AH$4:$AI$10,2,FALSE),0)+IF('Crop 3'!$C$20=Carbon!$B136,'Crop 3'!$V$20*VLOOKUP('Crop 3'!$E$20,Carbon!$AH$4:$AI$10,2,FALSE),0)+IF('Crop 3'!$C$21=Carbon!$B136,'Crop 3'!$V$21*VLOOKUP('Crop 3'!$E$21,Carbon!$AH$4:$AI$10,2,FALSE),0)+IF('Crop 3'!$C$49=Carbon!$B136,'Crop 3'!$V$49*VLOOKUP('Crop 3'!$E$49,Carbon!$AH$4:$AI$10,2,FALSE),0)+IF('Crop 3'!$C$50=Carbon!$B136,'Crop 3'!$V$50*VLOOKUP('Crop 3'!$E$50,Carbon!$AH$4:$AI$10,2,FALSE),0)+IF('Crop 3'!$C$51=Carbon!$B136,'Crop 3'!$V$51*VLOOKUP('Crop 3'!$E$51,Carbon!$AH$4:$AI$10,2,FALSE),0)+IF('Crop 3'!$C$52=Carbon!$B136,'Crop 3'!$V$52*VLOOKUP('Crop 3'!$E$52,Carbon!$AH$4:$AI$10,2,FALSE),0)+IF('Crop 3'!$C$53=Carbon!$B136,'Crop 3'!$V$53*VLOOKUP('Crop 3'!$E$53,Carbon!$AH$4:$AI$10,2,FALSE),0)+IF('Crop 3'!$C$56=Carbon!$B136,'Crop 3'!$V$56*VLOOKUP('Crop 3'!$E$56,Carbon!$AH$4:$AI$10,2,FALSE),0)+IF('Crop 3'!$C$57=Carbon!$B136,'Crop 3'!$V$57*VLOOKUP('Crop 3'!$E$57,Carbon!$AH$4:$AI$10,2,FALSE),0)+IF('Crop 3'!$C$58=Carbon!$B136,'Crop 3'!$V$58*VLOOKUP('Crop 3'!$E$58,Carbon!$AH$4:$AI$10,2,FALSE),0)+IF('Crop 3'!$C$59=Carbon!$B136,'Crop 3'!$V$59*VLOOKUP('Crop 3'!$E$59,Carbon!$AH$4:$AI$10,2,FALSE),0)+IF('Crop 3'!$C$62=Carbon!$B136,'Crop 3'!$V$62*VLOOKUP('Crop 3'!$E$62,Carbon!$AH$4:$AI$10,2,FALSE),0)+IF('Crop 3'!$C$63=Carbon!$B136,'Crop 3'!$V$63*VLOOKUP('Crop 3'!$E$63,Carbon!$AH$4:$AI$10,2,FALSE),0)+IF('Crop 3'!$C$64=Carbon!$B136,'Crop 3'!$V$64*VLOOKUP('Crop 3'!$E$64,Carbon!$AH$4:$AI$10,2,FALSE),0)+IF('Crop 3'!$C$65=Carbon!$B136,'Crop 3'!$V$65*VLOOKUP('Crop 3'!$E$65,Carbon!$AH$4:$AI$10,2,FALSE),0))*$AL$20,2)","v":0},{"$f":"Q136*Inputs!$D$17","v":0},{"$f":"ROUND(T136/Inputs!D$19,2)","v":0},0,null,null,0,{"$f":"W136*Inputs!$D$13","v":0},0,{"$f":"Y136*Inputs!$D$13","v":0},0,{"$f":"AA136*Inputs!$D$13","v":0},{"$f":"ROUND(AD136/Inputs!D$19,2)","v":0},0]
[null,{"$f":"Defaults!AH103","v":"Resource"},{"$f":"ROUND((IF('Crop 1'!$C$14=Carbon!$B137,'Crop 1'!$L$14*VLOOKUP('Crop 1'!$E$14,Carbon!$AH$4:$AI$10,2,FALSE),0)+IF('Crop 1'!$C$15=Carbon!$B137,'Crop 1'!$L$15*VLOOKUP('Crop 1'!$E$15,Carbon!$AH$4:$AI$10,2,FALSE),0)+IF('Crop 1'!$C$16=Carbon!$B137,'Crop 1'!$L$16*VLOOKUP('Crop 1'!$E$16,Carbon!$AH$4:$AI$10,2,FALSE),0)+IF('Crop 1'!$C$19=Carbon!$B137,'Crop 1'!$L$19*VLOOKUP('Crop 1'!$E$19,Carbon!$AH$4:$AI$10,2,FALSE),0)+IF('Crop 1'!$C$20=Carbon!$B137,'Crop 1'!$L$20*VLOOKUP('Crop 1'!$E$20,Carbon!$AH$4:$AI$10,2,FALSE),0)+IF('Crop 1'!$C$21=Carbon!$B137,'Crop 1'!$L$21*VLOOKUP('Crop 1'!$E$21,Carbon!$AH$4:$AI$10,2,FALSE),0)+IF('Crop 1'!$C$49=Carbon!$B137,'Crop 1'!$L$49*VLOOKUP('Crop 1'!$E$49,Carbon!$AH$4:$AI$10,2,FALSE),0)+IF('Crop 1'!$C$50=Carbon!$B137,'Crop 1'!$L$50*VLOOKUP('Crop 1'!$E$50,Carbon!$AH$4:$AI$10,2,FALSE),0)+IF('Crop 1'!$C$51=Carbon!$B137,'Crop 1'!$L$51*VLOOKUP('Crop 1'!$E$51,Carbon!$AH$4:$AI$10,2,FALSE),0)+IF('Crop 1'!$C$52=Carbon!$B137,'Crop 1'!$L$52*VLOOKUP('Crop 1'!$E$52,Carbon!$AH$4:$AI$10,2,FALSE),0)+IF('Crop 1'!$C$53=Carbon!$B137,'Crop 1'!$L$53*VLOOKUP('Crop 1'!$E$53,Carbon!$AH$4:$AI$10,2,FALSE),0)+IF('Crop 1'!$C$56=Carbon!$B137,'Crop 1'!$L$56*VLOOKUP('Crop 1'!$E$56,Carbon!$AH$4:$AI$10,2,FALSE),0)+IF('Crop 1'!$C$57=Carbon!$B137,'Crop 1'!$L$57*VLOOKUP('Crop 1'!$E$57,Carbon!$AH$4:$AI$10,2,FALSE),0)+IF('Crop 1'!$C$58=Carbon!$B137,'Crop 1'!$L$58*VLOOKUP('Crop 1'!$E$58,Carbon!$AH$4:$AI$10,2,FALSE),0)+IF('Crop 1'!$C$59=Carbon!$B137,'Crop 1'!$L$59*VLOOKUP('Crop 1'!$E$59,Carbon!$AH$4:$AI$10,2,FALSE),0)+IF('Crop 1'!$C$62=Carbon!$B137,'Crop 1'!$L$62*VLOOKUP('Crop 1'!$E$62,Carbon!$AH$4:$AI$10,2,FALSE),0)+IF('Crop 1'!$C$63=Carbon!$B137,'Crop 1'!$L$63*VLOOKUP('Crop 1'!$E$63,Carbon!$AH$4:$AI$10,2,FALSE),0)+IF('Crop 1'!$C$64=Carbon!$B137,'Crop 1'!$L$64*VLOOKUP('Crop 1'!$E$64,Carbon!$AH$4:$AI$10,2,FALSE),0)+IF('Crop 1'!$C$65=Carbon!$B137,'Crop 1'!$L$65*VLOOKUP('Crop 1'!$E$65,Carbon!$AH$4:$AI$10,2,FALSE),0))*$AL$20,2)","v":0},{"$f":"C137*Inputs!$D$13","v":0},{"$f":"ROUND((IF('Crop 2'!$C$14=Carbon!$B137,'Crop 2'!$L$14*VLOOKUP('Crop 2'!$E$14,Carbon!$AH$4:$AI$10,2,FALSE),0)+IF('Crop 2'!$C$15=Carbon!$B137,'Crop 2'!$L$15*VLOOKUP('Crop 2'!$E$15,Carbon!$AH$4:$AI$10,2,FALSE),0)+IF('Crop 2'!$C$16=Carbon!$B137,'Crop 2'!$L$16*VLOOKUP('Crop 2'!$E$16,Carbon!$AH$4:$AI$10,2,FALSE),0)+IF('Crop 2'!$C$19=Carbon!$B137,'Crop 2'!$L$19*VLOOKUP('Crop 2'!$E$19,Carbon!$AH$4:$AI$10,2,FALSE),0)+IF('Crop 2'!$C$20=Carbon!$B137,'Crop 2'!$L$20*VLOOKUP('Crop 2'!$E$20,Carbon!$AH$4:$AI$10,2,FALSE),0)+IF('Crop 2'!$C$21=Carbon!$B137,'Crop 2'!$L$21*VLOOKUP('Crop 2'!$E$21,Carbon!$AH$4:$AI$10,2,FALSE),0)+IF('Crop 2'!$C$49=Carbon!$B137,'Crop 2'!$L$49*VLOOKUP('Crop 2'!$E$49,Carbon!$AH$4:$AI$10,2,FALSE),0)+IF('Crop 2'!$C$50=Carbon!$B137,'Crop 2'!$L$50*VLOOKUP('Crop 2'!$E$50,Carbon!$AH$4:$AI$10,2,FALSE),0)+IF('Crop 2'!$C$51=Carbon!$B137,'Crop 2'!$L$51*VLOOKUP('Crop 2'!$E$51,Carbon!$AH$4:$AI$10,2,FALSE),0)+IF('Crop 2'!$C$52=Carbon!$B137,'Crop 2'!$L$52*VLOOKUP('Crop 2'!$E$52,Carbon!$AH$4:$AI$10,2,FALSE),0)+IF('Crop 2'!$C$53=Carbon!$B137,'Crop 2'!$L$53*VLOOKUP('Crop 2'!$E$53,Carbon!$AH$4:$AI$10,2,FALSE),0)+IF('Crop 2'!$C$56=Carbon!$B137,'Crop 2'!$L$56*VLOOKUP('Crop 2'!$E$56,Carbon!$AH$4:$AI$10,2,FALSE),0)+IF('Crop 2'!$C$57=Carbon!$B137,'Crop 2'!$L$57*VLOOKUP('Crop 2'!$E$57,Carbon!$AH$4:$AI$10,2,FALSE),0)+IF('Crop 2'!$C$58=Carbon!$B137,'Crop 2'!$L$58*VLOOKUP('Crop 2'!$E$58,Carbon!$AH$4:$AI$10,2,FALSE),0)+IF('Crop 2'!$C$59=Carbon!$B137,'Crop 2'!$L$59*VLOOKUP('Crop 2'!$E$59,Carbon!$AH$4:$AI$10,2,FALSE),0)+IF('Crop 2'!$C$62=Carbon!$B137,'Crop 2'!$L$62*VLOOKUP('Crop 2'!$E$62,Carbon!$AH$4:$AI$10,2,FALSE),0)+IF('Crop 2'!$C$63=Carbon!$B137,'Crop 2'!$L$63*VLOOKUP('Crop 2'!$E$63,Carbon!$AH$4:$AI$10,2,FALSE),0)+IF('Crop 2'!$C$64=Carbon!$B137,'Crop 2'!$L$64*VLOOKUP('Crop 2'!$E$64,Carbon!$AH$4:$AI$10,2,FALSE),0)+IF('Crop 2'!$C$65=Carbon!$B137,'Crop 2'!$L$65*VLOOKUP('Crop 2'!$E$65,Carbon!$AH$4:$AI$10,2,FALSE),0))*$AL$20,2)","v":0},{"$f":"E137*Inputs!$D$15","v":0},{"$f":"ROUND((IF('Crop 3'!$C$14=Carbon!$B137,'Crop 3'!$L$14*VLOOKUP('Crop 3'!$E$14,Carbon!$AH$4:$AI$10,2,FALSE),0)+IF('Crop 3'!$C$15=Carbon!$B137,'Crop 3'!$L$15*VLOOKUP('Crop 3'!$E$15,Carbon!$AH$4:$AI$10,2,FALSE),0)+IF('Crop 3'!$C$16=Carbon!$B137,'Crop 3'!$L$16*VLOOKUP('Crop 3'!$E$16,Carbon!$AH$4:$AI$10,2,FALSE),0)+IF('Crop 3'!$C$19=Carbon!$B137,'Crop 3'!$L$19*VLOOKUP('Crop 3'!$E$19,Carbon!$AH$4:$AI$10,2,FALSE),0)+IF('Crop 3'!$C$20=Carbon!$B137,'Crop 3'!$L$20*VLOOKUP('Crop 3'!$E$20,Carbon!$AH$4:$AI$10,2,FALSE),0)+IF('Crop 3'!$C$21=Carbon!$B137,'Crop 3'!$L$21*VLOOKUP('Crop 3'!$E$21,Carbon!$AH$4:$AI$10,2,FALSE),0)+IF('Crop 3'!$C$49=Carbon!$B137,'Crop 3'!$L$49*VLOOKUP('Crop 3'!$E$49,Carbon!$AH$4:$AI$10,2,FALSE),0)+IF('Crop 3'!$C$50=Carbon!$B137,'Crop 3'!$L$50*VLOOKUP('Crop 3'!$E$50,Carbon!$AH$4:$AI$10,2,FALSE),0)+IF('Crop 3'!$C$51=Carbon!$B137,'Crop 3'!$L$51*VLOOKUP('Crop 3'!$E$51,Carbon!$AH$4:$AI$10,2,FALSE),0)+IF('Crop 3'!$C$52=Carbon!$B137,'Crop 3'!$L$52*VLOOKUP('Crop 3'!$E$52,Carbon!$AH$4:$AI$10,2,FALSE),0)+IF('Crop 3'!$C$53=Carbon!$B137,'Crop 3'!$L$53*VLOOKUP('Crop 3'!$E$53,Carbon!$AH$4:$AI$10,2,FALSE),0)+IF('Crop 3'!$C$56=Carbon!$B137,'Crop 3'!$L$56*VLOOKUP('Crop 3'!$E$56,Carbon!$AH$4:$AI$10,2,FALSE),0)+IF('Crop 3'!$C$57=Carbon!$B137,'Crop 3'!$L$57*VLOOKUP('Crop 3'!$E$57,Carbon!$AH$4:$AI$10,2,FALSE),0)+IF('Crop 3'!$C$58=Carbon!$B137,'Crop 3'!$L$58*VLOOKUP('Crop 3'!$E$58,Carbon!$AH$4:$AI$10,2,FALSE),0)+IF('Crop 3'!$C$59=Carbon!$B137,'Crop 3'!$L$59*VLOOKUP('Crop 3'!$E$59,Carbon!$AH$4:$AI$10,2,FALSE),0)+IF('Crop 3'!$C$62=Carbon!$B137,'Crop 3'!$L$62*VLOOKUP('Crop 3'!$E$62,Carbon!$AH$4:$AI$10,2,FALSE),0)+IF('Crop 3'!$C$63=Carbon!$B137,'Crop 3'!$L$63*VLOOKUP('Crop 3'!$E$63,Carbon!$AH$4:$AI$10,2,FALSE),0)+IF('Crop 3'!$C$64=Carbon!$B137,'Crop 3'!$L$64*VLOOKUP('Crop 3'!$E$64,Carbon!$AH$4:$AI$10,2,FALSE),0)+IF('Crop 3'!$C$65=Carbon!$B137,'Crop 3'!$L$65*VLOOKUP('Crop 3'!$E$65,Carbon!$AH$4:$AI$10,2,FALSE),0))*$AL$20,2)","v":0},{"$f":"G137*Inputs!$D$17","v":0},{"$f":"ROUND(J137/Inputs!D$19,2)","v":0},0,null,null,{"$f":"ROUND((IF('Crop 1'!$C$14=Carbon!$B137,'Crop 1'!$V$14*VLOOKUP('Crop 1'!$E$14,Carbon!$AH$4:$AI$10,2,FALSE),0)+IF('Crop 1'!$C$15=Carbon!$B137,'Crop 1'!$V$15*VLOOKUP('Crop 1'!$E$15,Carbon!$AH$4:$AI$10,2,FALSE),0)+IF('Crop 1'!$C$16=Carbon!$B137,'Crop 1'!$V$16*VLOOKUP('Crop 1'!$E$16,Carbon!$AH$4:$AI$10,2,FALSE),0)+IF('Crop 1'!$C$19=Carbon!$B137,'Crop 1'!$V$19*VLOOKUP('Crop 1'!$E$19,Carbon!$AH$4:$AI$10,2,FALSE),0)+IF('Crop 1'!$C$20=Carbon!$B137,'Crop 1'!$V$20*VLOOKUP('Crop 1'!$E$20,Carbon!$AH$4:$AI$10,2,FALSE),0)+IF('Crop 1'!$C$21=Carbon!$B137,'Crop 1'!$V$21*VLOOKUP('Crop 1'!$E$21,Carbon!$AH$4:$AI$10,2,FALSE),0)+IF('Crop 1'!$C$49=Carbon!$B137,'Crop 1'!$V$49*VLOOKUP('Crop 1'!$E$49,Carbon!$AH$4:$AI$10,2,FALSE),0)+IF('Crop 1'!$C$50=Carbon!$B137,'Crop 1'!$V$50*VLOOKUP('Crop 1'!$E$50,Carbon!$AH$4:$AI$10,2,FALSE),0)+IF('Crop 1'!$C$51=Carbon!$B137,'Crop 1'!$V$51*VLOOKUP('Crop 1'!$E$51,Carbon!$AH$4:$AI$10,2,FALSE),0)+IF('Crop 1'!$C$52=Carbon!$B137,'Crop 1'!$V$52*VLOOKUP('Crop 1'!$E$52,Carbon!$AH$4:$AI$10,2,FALSE),0)+IF('Crop 1'!$C$53=Carbon!$B137,'Crop 1'!$V$53*VLOOKUP('Crop 1'!$E$53,Carbon!$AH$4:$AI$10,2,FALSE),0)+IF('Crop 1'!$C$56=Carbon!$B137,'Crop 1'!$V$56*VLOOKUP('Crop 1'!$E$56,Carbon!$AH$4:$AI$10,2,FALSE),0)+IF('Crop 1'!$C$57=Carbon!$B137,'Crop 1'!$V$57*VLOOKUP('Crop 1'!$E$57,Carbon!$AH$4:$AI$10,2,FALSE),0)+IF('Crop 1'!$C$58=Carbon!$B137,'Crop 1'!$V$58*VLOOKUP('Crop 1'!$E$58,Carbon!$AH$4:$AI$10,2,FALSE),0)+IF('Crop 1'!$C$59=Carbon!$B137,'Crop 1'!$V$59*VLOOKUP('Crop 1'!$E$59,Carbon!$AH$4:$AI$10,2,FALSE),0)+IF('Crop 1'!$C$62=Carbon!$B137,'Crop 1'!$V$62*VLOOKUP('Crop 1'!$E$62,Carbon!$AH$4:$AI$10,2,FALSE),0)+IF('Crop 1'!$C$63=Carbon!$B137,'Crop 1'!$V$63*VLOOKUP('Crop 1'!$E$63,Carbon!$AH$4:$AI$10,2,FALSE),0)+IF('Crop 1'!$C$64=Carbon!$B137,'Crop 1'!$V$64*VLOOKUP('Crop 1'!$E$64,Carbon!$AH$4:$AI$10,2,FALSE),0)+IF('Crop 1'!$C$65=Carbon!$B137,'Crop 1'!$V$65*VLOOKUP('Crop 1'!$E$65,Carbon!$AH$4:$AI$10,2,FALSE),0))*$AL$20,2)","v":0},{"$f":"M137*Inputs!$D$13","v":0},{"$f":"ROUND((IF('Crop 2'!$C$14=Carbon!$B137,'Crop 2'!$V$14*VLOOKUP('Crop 2'!$E$14,Carbon!$AH$4:$AI$10,2,FALSE),0)+IF('Crop 2'!$C$15=Carbon!$B137,'Crop 2'!$V$15*VLOOKUP('Crop 2'!$E$15,Carbon!$AH$4:$AI$10,2,FALSE),0)+IF('Crop 2'!$C$16=Carbon!$B137,'Crop 2'!$V$16*VLOOKUP('Crop 2'!$E$16,Carbon!$AH$4:$AI$10,2,FALSE),0)+IF('Crop 2'!$C$19=Carbon!$B137,'Crop 2'!$V$19*VLOOKUP('Crop 2'!$E$19,Carbon!$AH$4:$AI$10,2,FALSE),0)+IF('Crop 2'!$C$20=Carbon!$B137,'Crop 2'!$V$20*VLOOKUP('Crop 2'!$E$20,Carbon!$AH$4:$AI$10,2,FALSE),0)+IF('Crop 2'!$C$21=Carbon!$B137,'Crop 2'!$V$21*VLOOKUP('Crop 2'!$E$21,Carbon!$AH$4:$AI$10,2,FALSE),0)+IF('Crop 2'!$C$49=Carbon!$B137,'Crop 2'!$V$49*VLOOKUP('Crop 2'!$E$49,Carbon!$AH$4:$AI$10,2,FALSE),0)+IF('Crop 2'!$C$50=Carbon!$B137,'Crop 2'!$V$50*VLOOKUP('Crop 2'!$E$50,Carbon!$AH$4:$AI$10,2,FALSE),0)+IF('Crop 2'!$C$51=Carbon!$B137,'Crop 2'!$V$51*VLOOKUP('Crop 2'!$E$51,Carbon!$AH$4:$AI$10,2,FALSE),0)+IF('Crop 2'!$C$52=Carbon!$B137,'Crop 2'!$V$52*VLOOKUP('Crop 2'!$E$52,Carbon!$AH$4:$AI$10,2,FALSE),0)+IF('Crop 2'!$C$53=Carbon!$B137,'Crop 2'!$V$53*VLOOKUP('Crop 2'!$E$53,Carbon!$AH$4:$AI$10,2,FALSE),0)+IF('Crop 2'!$C$56=Carbon!$B137,'Crop 2'!$V$56*VLOOKUP('Crop 2'!$E$56,Carbon!$AH$4:$AI$10,2,FALSE),0)+IF('Crop 2'!$C$57=Carbon!$B137,'Crop 2'!$V$57*VLOOKUP('Crop 2'!$E$57,Carbon!$AH$4:$AI$10,2,FALSE),0)+IF('Crop 2'!$C$58=Carbon!$B137,'Crop 2'!$V$58*VLOOKUP('Crop 2'!$E$58,Carbon!$AH$4:$AI$10,2,FALSE),0)+IF('Crop 2'!$C$59=Carbon!$B137,'Crop 2'!$V$59*VLOOKUP('Crop 2'!$E$59,Carbon!$AH$4:$AI$10,2,FALSE),0)+IF('Crop 2'!$C$62=Carbon!$B137,'Crop 2'!$V$62*VLOOKUP('Crop 2'!$E$62,Carbon!$AH$4:$AI$10,2,FALSE),0)+IF('Crop 2'!$C$63=Carbon!$B137,'Crop 2'!$V$63*VLOOKUP('Crop 2'!$E$63,Carbon!$AH$4:$AI$10,2,FALSE),0)+IF('Crop 2'!$C$64=Carbon!$B137,'Crop 2'!$V$64*VLOOKUP('Crop 2'!$E$64,Carbon!$AH$4:$AI$10,2,FALSE),0)+IF('Crop 2'!$C$65=Carbon!$B137,'Crop 2'!$V$65*VLOOKUP('Crop 2'!$E$65,Carbon!$AH$4:$AI$10,2,FALSE),0))*$AL$20,2)","v":0},{"$f":"O137*Inputs!$D$15","v":0},{"$f":"ROUND((IF('Crop 3'!$C$14=Carbon!$B137,'Crop 3'!$V$14*VLOOKUP('Crop 3'!$E$14,Carbon!$AH$4:$AI$10,2,FALSE),0)+IF('Crop 3'!$C$15=Carbon!$B137,'Crop 3'!$V$15*VLOOKUP('Crop 3'!$E$15,Carbon!$AH$4:$AI$10,2,FALSE),0)+IF('Crop 3'!$C$16=Carbon!$B137,'Crop 3'!$V$16*VLOOKUP('Crop 3'!$E$16,Carbon!$AH$4:$AI$10,2,FALSE),0)+IF('Crop 3'!$C$19=Carbon!$B137,'Crop 3'!$V$19*VLOOKUP('Crop 3'!$E$19,Carbon!$AH$4:$AI$10,2,FALSE),0)+IF('Crop 3'!$C$20=Carbon!$B137,'Crop 3'!$V$20*VLOOKUP('Crop 3'!$E$20,Carbon!$AH$4:$AI$10,2,FALSE),0)+IF('Crop 3'!$C$21=Carbon!$B137,'Crop 3'!$V$21*VLOOKUP('Crop 3'!$E$21,Carbon!$AH$4:$AI$10,2,FALSE),0)+IF('Crop 3'!$C$49=Carbon!$B137,'Crop 3'!$V$49*VLOOKUP('Crop 3'!$E$49,Carbon!$AH$4:$AI$10,2,FALSE),0)+IF('Crop 3'!$C$50=Carbon!$B137,'Crop 3'!$V$50*VLOOKUP('Crop 3'!$E$50,Carbon!$AH$4:$AI$10,2,FALSE),0)+IF('Crop 3'!$C$51=Carbon!$B137,'Crop 3'!$V$51*VLOOKUP('Crop 3'!$E$51,Carbon!$AH$4:$AI$10,2,FALSE),0)+IF('Crop 3'!$C$52=Carbon!$B137,'Crop 3'!$V$52*VLOOKUP('Crop 3'!$E$52,Carbon!$AH$4:$AI$10,2,FALSE),0)+IF('Crop 3'!$C$53=Carbon!$B137,'Crop 3'!$V$53*VLOOKUP('Crop 3'!$E$53,Carbon!$AH$4:$AI$10,2,FALSE),0)+IF('Crop 3'!$C$56=Carbon!$B137,'Crop 3'!$V$56*VLOOKUP('Crop 3'!$E$56,Carbon!$AH$4:$AI$10,2,FALSE),0)+IF('Crop 3'!$C$57=Carbon!$B137,'Crop 3'!$V$57*VLOOKUP('Crop 3'!$E$57,Carbon!$AH$4:$AI$10,2,FALSE),0)+IF('Crop 3'!$C$58=Carbon!$B137,'Crop 3'!$V$58*VLOOKUP('Crop 3'!$E$58,Carbon!$AH$4:$AI$10,2,FALSE),0)+IF('Crop 3'!$C$59=Carbon!$B137,'Crop 3'!$V$59*VLOOKUP('Crop 3'!$E$59,Carbon!$AH$4:$AI$10,2,FALSE),0)+IF('Crop 3'!$C$62=Carbon!$B137,'Crop 3'!$V$62*VLOOKUP('Crop 3'!$E$62,Carbon!$AH$4:$AI$10,2,FALSE),0)+IF('Crop 3'!$C$63=Carbon!$B137,'Crop 3'!$V$63*VLOOKUP('Crop 3'!$E$63,Carbon!$AH$4:$AI$10,2,FALSE),0)+IF('Crop 3'!$C$64=Carbon!$B137,'Crop 3'!$V$64*VLOOKUP('Crop 3'!$E$64,Carbon!$AH$4:$AI$10,2,FALSE),0)+IF('Crop 3'!$C$65=Carbon!$B137,'Crop 3'!$V$65*VLOOKUP('Crop 3'!$E$65,Carbon!$AH$4:$AI$10,2,FALSE),0))*$AL$20,2)","v":0},{"$f":"Q137*Inputs!$D$17","v":0},{"$f":"ROUND(T137/Inputs!D$19,2)","v":0},0,null,null,0,{"$f":"W137*Inputs!$D$13","v":0},0,{"$f":"Y137*Inputs!$D$13","v":0},0,{"$f":"AA137*Inputs!$D$13","v":0},{"$f":"ROUND(AD137/Inputs!D$19,2)","v":0},0]
[null,{"$f":"Defaults!AH104","v":"RiceBeaux"},{"$f":"ROUND((IF('Crop 1'!$C$14=Carbon!$B138,'Crop 1'!$L$14*VLOOKUP('Crop 1'!$E$14,Carbon!$AH$4:$AI$10,2,FALSE),0)+IF('Crop 1'!$C$15=Carbon!$B138,'Crop 1'!$L$15*VLOOKUP('Crop 1'!$E$15,Carbon!$AH$4:$AI$10,2,FALSE),0)+IF('Crop 1'!$C$16=Carbon!$B138,'Crop 1'!$L$16*VLOOKUP('Crop 1'!$E$16,Carbon!$AH$4:$AI$10,2,FALSE),0)+IF('Crop 1'!$C$19=Carbon!$B138,'Crop 1'!$L$19*VLOOKUP('Crop 1'!$E$19,Carbon!$AH$4:$AI$10,2,FALSE),0)+IF('Crop 1'!$C$20=Carbon!$B138,'Crop 1'!$L$20*VLOOKUP('Crop 1'!$E$20,Carbon!$AH$4:$AI$10,2,FALSE),0)+IF('Crop 1'!$C$21=Carbon!$B138,'Crop 1'!$L$21*VLOOKUP('Crop 1'!$E$21,Carbon!$AH$4:$AI$10,2,FALSE),0)+IF('Crop 1'!$C$49=Carbon!$B138,'Crop 1'!$L$49*VLOOKUP('Crop 1'!$E$49,Carbon!$AH$4:$AI$10,2,FALSE),0)+IF('Crop 1'!$C$50=Carbon!$B138,'Crop 1'!$L$50*VLOOKUP('Crop 1'!$E$50,Carbon!$AH$4:$AI$10,2,FALSE),0)+IF('Crop 1'!$C$51=Carbon!$B138,'Crop 1'!$L$51*VLOOKUP('Crop 1'!$E$51,Carbon!$AH$4:$AI$10,2,FALSE),0)+IF('Crop 1'!$C$52=Carbon!$B138,'Crop 1'!$L$52*VLOOKUP('Crop 1'!$E$52,Carbon!$AH$4:$AI$10,2,FALSE),0)+IF('Crop 1'!$C$53=Carbon!$B138,'Crop 1'!$L$53*VLOOKUP('Crop 1'!$E$53,Carbon!$AH$4:$AI$10,2,FALSE),0)+IF('Crop 1'!$C$56=Carbon!$B138,'Crop 1'!$L$56*VLOOKUP('Crop 1'!$E$56,Carbon!$AH$4:$AI$10,2,FALSE),0)+IF('Crop 1'!$C$57=Carbon!$B138,'Crop 1'!$L$57*VLOOKUP('Crop 1'!$E$57,Carbon!$AH$4:$AI$10,2,FALSE),0)+IF('Crop 1'!$C$58=Carbon!$B138,'Crop 1'!$L$58*VLOOKUP('Crop 1'!$E$58,Carbon!$AH$4:$AI$10,2,FALSE),0)+IF('Crop 1'!$C$59=Carbon!$B138,'Crop 1'!$L$59*VLOOKUP('Crop 1'!$E$59,Carbon!$AH$4:$AI$10,2,FALSE),0)+IF('Crop 1'!$C$62=Carbon!$B138,'Crop 1'!$L$62*VLOOKUP('Crop 1'!$E$62,Carbon!$AH$4:$AI$10,2,FALSE),0)+IF('Crop 1'!$C$63=Carbon!$B138,'Crop 1'!$L$63*VLOOKUP('Crop 1'!$E$63,Carbon!$AH$4:$AI$10,2,FALSE),0)+IF('Crop 1'!$C$64=Carbon!$B138,'Crop 1'!$L$64*VLOOKUP('Crop 1'!$E$64,Carbon!$AH$4:$AI$10,2,FALSE),0)+IF('Crop 1'!$C$65=Carbon!$B138,'Crop 1'!$L$65*VLOOKUP('Crop 1'!$E$65,Carbon!$AH$4:$AI$10,2,FALSE),0))*$AL$20,2)","v":0},{"$f":"C138*Inputs!$D$13","v":0},{"$f":"ROUND((IF('Crop 2'!$C$14=Carbon!$B138,'Crop 2'!$L$14*VLOOKUP('Crop 2'!$E$14,Carbon!$AH$4:$AI$10,2,FALSE),0)+IF('Crop 2'!$C$15=Carbon!$B138,'Crop 2'!$L$15*VLOOKUP('Crop 2'!$E$15,Carbon!$AH$4:$AI$10,2,FALSE),0)+IF('Crop 2'!$C$16=Carbon!$B138,'Crop 2'!$L$16*VLOOKUP('Crop 2'!$E$16,Carbon!$AH$4:$AI$10,2,FALSE),0)+IF('Crop 2'!$C$19=Carbon!$B138,'Crop 2'!$L$19*VLOOKUP('Crop 2'!$E$19,Carbon!$AH$4:$AI$10,2,FALSE),0)+IF('Crop 2'!$C$20=Carbon!$B138,'Crop 2'!$L$20*VLOOKUP('Crop 2'!$E$20,Carbon!$AH$4:$AI$10,2,FALSE),0)+IF('Crop 2'!$C$21=Carbon!$B138,'Crop 2'!$L$21*VLOOKUP('Crop 2'!$E$21,Carbon!$AH$4:$AI$10,2,FALSE),0)+IF('Crop 2'!$C$49=Carbon!$B138,'Crop 2'!$L$49*VLOOKUP('Crop 2'!$E$49,Carbon!$AH$4:$AI$10,2,FALSE),0)+IF('Crop 2'!$C$50=Carbon!$B138,'Crop 2'!$L$50*VLOOKUP('Crop 2'!$E$50,Carbon!$AH$4:$AI$10,2,FALSE),0)+IF('Crop 2'!$C$51=Carbon!$B138,'Crop 2'!$L$51*VLOOKUP('Crop 2'!$E$51,Carbon!$AH$4:$AI$10,2,FALSE),0)+IF('Crop 2'!$C$52=Carbon!$B138,'Crop 2'!$L$52*VLOOKUP('Crop 2'!$E$52,Carbon!$AH$4:$AI$10,2,FALSE),0)+IF('Crop 2'!$C$53=Carbon!$B138,'Crop 2'!$L$53*VLOOKUP('Crop 2'!$E$53,Carbon!$AH$4:$AI$10,2,FALSE),0)+IF('Crop 2'!$C$56=Carbon!$B138,'Crop 2'!$L$56*VLOOKUP('Crop 2'!$E$56,Carbon!$AH$4:$AI$10,2,FALSE),0)+IF('Crop 2'!$C$57=Carbon!$B138,'Crop 2'!$L$57*VLOOKUP('Crop 2'!$E$57,Carbon!$AH$4:$AI$10,2,FALSE),0)+IF('Crop 2'!$C$58=Carbon!$B138,'Crop 2'!$L$58*VLOOKUP('Crop 2'!$E$58,Carbon!$AH$4:$AI$10,2,FALSE),0)+IF('Crop 2'!$C$59=Carbon!$B138,'Crop 2'!$L$59*VLOOKUP('Crop 2'!$E$59,Carbon!$AH$4:$AI$10,2,FALSE),0)+IF('Crop 2'!$C$62=Carbon!$B138,'Crop 2'!$L$62*VLOOKUP('Crop 2'!$E$62,Carbon!$AH$4:$AI$10,2,FALSE),0)+IF('Crop 2'!$C$63=Carbon!$B138,'Crop 2'!$L$63*VLOOKUP('Crop 2'!$E$63,Carbon!$AH$4:$AI$10,2,FALSE),0)+IF('Crop 2'!$C$64=Carbon!$B138,'Crop 2'!$L$64*VLOOKUP('Crop 2'!$E$64,Carbon!$AH$4:$AI$10,2,FALSE),0)+IF('Crop 2'!$C$65=Carbon!$B138,'Crop 2'!$L$65*VLOOKUP('Crop 2'!$E$65,Carbon!$AH$4:$AI$10,2,FALSE),0))*$AL$20,2)","v":0},{"$f":"E138*Inputs!$D$15","v":0},{"$f":"ROUND((IF('Crop 3'!$C$14=Carbon!$B138,'Crop 3'!$L$14*VLOOKUP('Crop 3'!$E$14,Carbon!$AH$4:$AI$10,2,FALSE),0)+IF('Crop 3'!$C$15=Carbon!$B138,'Crop 3'!$L$15*VLOOKUP('Crop 3'!$E$15,Carbon!$AH$4:$AI$10,2,FALSE),0)+IF('Crop 3'!$C$16=Carbon!$B138,'Crop 3'!$L$16*VLOOKUP('Crop 3'!$E$16,Carbon!$AH$4:$AI$10,2,FALSE),0)+IF('Crop 3'!$C$19=Carbon!$B138,'Crop 3'!$L$19*VLOOKUP('Crop 3'!$E$19,Carbon!$AH$4:$AI$10,2,FALSE),0)+IF('Crop 3'!$C$20=Carbon!$B138,'Crop 3'!$L$20*VLOOKUP('Crop 3'!$E$20,Carbon!$AH$4:$AI$10,2,FALSE),0)+IF('Crop 3'!$C$21=Carbon!$B138,'Crop 3'!$L$21*VLOOKUP('Crop 3'!$E$21,Carbon!$AH$4:$AI$10,2,FALSE),0)+IF('Crop 3'!$C$49=Carbon!$B138,'Crop 3'!$L$49*VLOOKUP('Crop 3'!$E$49,Carbon!$AH$4:$AI$10,2,FALSE),0)+IF('Crop 3'!$C$50=Carbon!$B138,'Crop 3'!$L$50*VLOOKUP('Crop 3'!$E$50,Carbon!$AH$4:$AI$10,2,FALSE),0)+IF('Crop 3'!$C$51=Carbon!$B138,'Crop 3'!$L$51*VLOOKUP('Crop 3'!$E$51,Carbon!$AH$4:$AI$10,2,FALSE),0)+IF('Crop 3'!$C$52=Carbon!$B138,'Crop 3'!$L$52*VLOOKUP('Crop 3'!$E$52,Carbon!$AH$4:$AI$10,2,FALSE),0)+IF('Crop 3'!$C$53=Carbon!$B138,'Crop 3'!$L$53*VLOOKUP('Crop 3'!$E$53,Carbon!$AH$4:$AI$10,2,FALSE),0)+IF('Crop 3'!$C$56=Carbon!$B138,'Crop 3'!$L$56*VLOOKUP('Crop 3'!$E$56,Carbon!$AH$4:$AI$10,2,FALSE),0)+IF('Crop 3'!$C$57=Carbon!$B138,'Crop 3'!$L$57*VLOOKUP('Crop 3'!$E$57,Carbon!$AH$4:$AI$10,2,FALSE),0)+IF('Crop 3'!$C$58=Carbon!$B138,'Crop 3'!$L$58*VLOOKUP('Crop 3'!$E$58,Carbon!$AH$4:$AI$10,2,FALSE),0)+IF('Crop 3'!$C$59=Carbon!$B138,'Crop 3'!$L$59*VLOOKUP('Crop 3'!$E$59,Carbon!$AH$4:$AI$10,2,FALSE),0)+IF('Crop 3'!$C$62=Carbon!$B138,'Crop 3'!$L$62*VLOOKUP('Crop 3'!$E$62,Carbon!$AH$4:$AI$10,2,FALSE),0)+IF('Crop 3'!$C$63=Carbon!$B138,'Crop 3'!$L$63*VLOOKUP('Crop 3'!$E$63,Carbon!$AH$4:$AI$10,2,FALSE),0)+IF('Crop 3'!$C$64=Carbon!$B138,'Crop 3'!$L$64*VLOOKUP('Crop 3'!$E$64,Carbon!$AH$4:$AI$10,2,FALSE),0)+IF('Crop 3'!$C$65=Carbon!$B138,'Crop 3'!$L$65*VLOOKUP('Crop 3'!$E$65,Carbon!$AH$4:$AI$10,2,FALSE),0))*$AL$20,2)","v":0},{"$f":"G138*Inputs!$D$17","v":0},{"$f":"ROUND(J138/Inputs!D$19,2)","v":0},0,null,null,{"$f":"ROUND((IF('Crop 1'!$C$14=Carbon!$B138,'Crop 1'!$V$14*VLOOKUP('Crop 1'!$E$14,Carbon!$AH$4:$AI$10,2,FALSE),0)+IF('Crop 1'!$C$15=Carbon!$B138,'Crop 1'!$V$15*VLOOKUP('Crop 1'!$E$15,Carbon!$AH$4:$AI$10,2,FALSE),0)+IF('Crop 1'!$C$16=Carbon!$B138,'Crop 1'!$V$16*VLOOKUP('Crop 1'!$E$16,Carbon!$AH$4:$AI$10,2,FALSE),0)+IF('Crop 1'!$C$19=Carbon!$B138,'Crop 1'!$V$19*VLOOKUP('Crop 1'!$E$19,Carbon!$AH$4:$AI$10,2,FALSE),0)+IF('Crop 1'!$C$20=Carbon!$B138,'Crop 1'!$V$20*VLOOKUP('Crop 1'!$E$20,Carbon!$AH$4:$AI$10,2,FALSE),0)+IF('Crop 1'!$C$21=Carbon!$B138,'Crop 1'!$V$21*VLOOKUP('Crop 1'!$E$21,Carbon!$AH$4:$AI$10,2,FALSE),0)+IF('Crop 1'!$C$49=Carbon!$B138,'Crop 1'!$V$49*VLOOKUP('Crop 1'!$E$49,Carbon!$AH$4:$AI$10,2,FALSE),0)+IF('Crop 1'!$C$50=Carbon!$B138,'Crop 1'!$V$50*VLOOKUP('Crop 1'!$E$50,Carbon!$AH$4:$AI$10,2,FALSE),0)+IF('Crop 1'!$C$51=Carbon!$B138,'Crop 1'!$V$51*VLOOKUP('Crop 1'!$E$51,Carbon!$AH$4:$AI$10,2,FALSE),0)+IF('Crop 1'!$C$52=Carbon!$B138,'Crop 1'!$V$52*VLOOKUP('Crop 1'!$E$52,Carbon!$AH$4:$AI$10,2,FALSE),0)+IF('Crop 1'!$C$53=Carbon!$B138,'Crop 1'!$V$53*VLOOKUP('Crop 1'!$E$53,Carbon!$AH$4:$AI$10,2,FALSE),0)+IF('Crop 1'!$C$56=Carbon!$B138,'Crop 1'!$V$56*VLOOKUP('Crop 1'!$E$56,Carbon!$AH$4:$AI$10,2,FALSE),0)+IF('Crop 1'!$C$57=Carbon!$B138,'Crop 1'!$V$57*VLOOKUP('Crop 1'!$E$57,Carbon!$AH$4:$AI$10,2,FALSE),0)+IF('Crop 1'!$C$58=Carbon!$B138,'Crop 1'!$V$58*VLOOKUP('Crop 1'!$E$58,Carbon!$AH$4:$AI$10,2,FALSE),0)+IF('Crop 1'!$C$59=Carbon!$B138,'Crop 1'!$V$59*VLOOKUP('Crop 1'!$E$59,Carbon!$AH$4:$AI$10,2,FALSE),0)+IF('Crop 1'!$C$62=Carbon!$B138,'Crop 1'!$V$62*VLOOKUP('Crop 1'!$E$62,Carbon!$AH$4:$AI$10,2,FALSE),0)+IF('Crop 1'!$C$63=Carbon!$B138,'Crop 1'!$V$63*VLOOKUP('Crop 1'!$E$63,Carbon!$AH$4:$AI$10,2,FALSE),0)+IF('Crop 1'!$C$64=Carbon!$B138,'Crop 1'!$V$64*VLOOKUP('Crop 1'!$E$64,Carbon!$AH$4:$AI$10,2,FALSE),0)+IF('Crop 1'!$C$65=Carbon!$B138,'Crop 1'!$V$65*VLOOKUP('Crop 1'!$E$65,Carbon!$AH$4:$AI$10,2,FALSE),0))*$AL$20,2)","v":0},{"$f":"M138*Inputs!$D$13","v":0},{"$f":"ROUND((IF('Crop 2'!$C$14=Carbon!$B138,'Crop 2'!$V$14*VLOOKUP('Crop 2'!$E$14,Carbon!$AH$4:$AI$10,2,FALSE),0)+IF('Crop 2'!$C$15=Carbon!$B138,'Crop 2'!$V$15*VLOOKUP('Crop 2'!$E$15,Carbon!$AH$4:$AI$10,2,FALSE),0)+IF('Crop 2'!$C$16=Carbon!$B138,'Crop 2'!$V$16*VLOOKUP('Crop 2'!$E$16,Carbon!$AH$4:$AI$10,2,FALSE),0)+IF('Crop 2'!$C$19=Carbon!$B138,'Crop 2'!$V$19*VLOOKUP('Crop 2'!$E$19,Carbon!$AH$4:$AI$10,2,FALSE),0)+IF('Crop 2'!$C$20=Carbon!$B138,'Crop 2'!$V$20*VLOOKUP('Crop 2'!$E$20,Carbon!$AH$4:$AI$10,2,FALSE),0)+IF('Crop 2'!$C$21=Carbon!$B138,'Crop 2'!$V$21*VLOOKUP('Crop 2'!$E$21,Carbon!$AH$4:$AI$10,2,FALSE),0)+IF('Crop 2'!$C$49=Carbon!$B138,'Crop 2'!$V$49*VLOOKUP('Crop 2'!$E$49,Carbon!$AH$4:$AI$10,2,FALSE),0)+IF('Crop 2'!$C$50=Carbon!$B138,'Crop 2'!$V$50*VLOOKUP('Crop 2'!$E$50,Carbon!$AH$4:$AI$10,2,FALSE),0)+IF('Crop 2'!$C$51=Carbon!$B138,'Crop 2'!$V$51*VLOOKUP('Crop 2'!$E$51,Carbon!$AH$4:$AI$10,2,FALSE),0)+IF('Crop 2'!$C$52=Carbon!$B138,'Crop 2'!$V$52*VLOOKUP('Crop 2'!$E$52,Carbon!$AH$4:$AI$10,2,FALSE),0)+IF('Crop 2'!$C$53=Carbon!$B138,'Crop 2'!$V$53*VLOOKUP('Crop 2'!$E$53,Carbon!$AH$4:$AI$10,2,FALSE),0)+IF('Crop 2'!$C$56=Carbon!$B138,'Crop 2'!$V$56*VLOOKUP('Crop 2'!$E$56,Carbon!$AH$4:$AI$10,2,FALSE),0)+IF('Crop 2'!$C$57=Carbon!$B138,'Crop 2'!$V$57*VLOOKUP('Crop 2'!$E$57,Carbon!$AH$4:$AI$10,2,FALSE),0)+IF('Crop 2'!$C$58=Carbon!$B138,'Crop 2'!$V$58*VLOOKUP('Crop 2'!$E$58,Carbon!$AH$4:$AI$10,2,FALSE),0)+IF('Crop 2'!$C$59=Carbon!$B138,'Crop 2'!$V$59*VLOOKUP('Crop 2'!$E$59,Carbon!$AH$4:$AI$10,2,FALSE),0)+IF('Crop 2'!$C$62=Carbon!$B138,'Crop 2'!$V$62*VLOOKUP('Crop 2'!$E$62,Carbon!$AH$4:$AI$10,2,FALSE),0)+IF('Crop 2'!$C$63=Carbon!$B138,'Crop 2'!$V$63*VLOOKUP('Crop 2'!$E$63,Carbon!$AH$4:$AI$10,2,FALSE),0)+IF('Crop 2'!$C$64=Carbon!$B138,'Crop 2'!$V$64*VLOOKUP('Crop 2'!$E$64,Carbon!$AH$4:$AI$10,2,FALSE),0)+IF('Crop 2'!$C$65=Carbon!$B138,'Crop 2'!$V$65*VLOOKUP('Crop 2'!$E$65,Carbon!$AH$4:$AI$10,2,FALSE),0))*$AL$20,2)","v":0},{"$f":"O138*Inputs!$D$15","v":0},{"$f":"ROUND((IF('Crop 3'!$C$14=Carbon!$B138,'Crop 3'!$V$14*VLOOKUP('Crop 3'!$E$14,Carbon!$AH$4:$AI$10,2,FALSE),0)+IF('Crop 3'!$C$15=Carbon!$B138,'Crop 3'!$V$15*VLOOKUP('Crop 3'!$E$15,Carbon!$AH$4:$AI$10,2,FALSE),0)+IF('Crop 3'!$C$16=Carbon!$B138,'Crop 3'!$V$16*VLOOKUP('Crop 3'!$E$16,Carbon!$AH$4:$AI$10,2,FALSE),0)+IF('Crop 3'!$C$19=Carbon!$B138,'Crop 3'!$V$19*VLOOKUP('Crop 3'!$E$19,Carbon!$AH$4:$AI$10,2,FALSE),0)+IF('Crop 3'!$C$20=Carbon!$B138,'Crop 3'!$V$20*VLOOKUP('Crop 3'!$E$20,Carbon!$AH$4:$AI$10,2,FALSE),0)+IF('Crop 3'!$C$21=Carbon!$B138,'Crop 3'!$V$21*VLOOKUP('Crop 3'!$E$21,Carbon!$AH$4:$AI$10,2,FALSE),0)+IF('Crop 3'!$C$49=Carbon!$B138,'Crop 3'!$V$49*VLOOKUP('Crop 3'!$E$49,Carbon!$AH$4:$AI$10,2,FALSE),0)+IF('Crop 3'!$C$50=Carbon!$B138,'Crop 3'!$V$50*VLOOKUP('Crop 3'!$E$50,Carbon!$AH$4:$AI$10,2,FALSE),0)+IF('Crop 3'!$C$51=Carbon!$B138,'Crop 3'!$V$51*VLOOKUP('Crop 3'!$E$51,Carbon!$AH$4:$AI$10,2,FALSE),0)+IF('Crop 3'!$C$52=Carbon!$B138,'Crop 3'!$V$52*VLOOKUP('Crop 3'!$E$52,Carbon!$AH$4:$AI$10,2,FALSE),0)+IF('Crop 3'!$C$53=Carbon!$B138,'Crop 3'!$V$53*VLOOKUP('Crop 3'!$E$53,Carbon!$AH$4:$AI$10,2,FALSE),0)+IF('Crop 3'!$C$56=Carbon!$B138,'Crop 3'!$V$56*VLOOKUP('Crop 3'!$E$56,Carbon!$AH$4:$AI$10,2,FALSE),0)+IF('Crop 3'!$C$57=Carbon!$B138,'Crop 3'!$V$57*VLOOKUP('Crop 3'!$E$57,Carbon!$AH$4:$AI$10,2,FALSE),0)+IF('Crop 3'!$C$58=Carbon!$B138,'Crop 3'!$V$58*VLOOKUP('Crop 3'!$E$58,Carbon!$AH$4:$AI$10,2,FALSE),0)+IF('Crop 3'!$C$59=Carbon!$B138,'Crop 3'!$V$59*VLOOKUP('Crop 3'!$E$59,Carbon!$AH$4:$AI$10,2,FALSE),0)+IF('Crop 3'!$C$62=Carbon!$B138,'Crop 3'!$V$62*VLOOKUP('Crop 3'!$E$62,Carbon!$AH$4:$AI$10,2,FALSE),0)+IF('Crop 3'!$C$63=Carbon!$B138,'Crop 3'!$V$63*VLOOKUP('Crop 3'!$E$63,Carbon!$AH$4:$AI$10,2,FALSE),0)+IF('Crop 3'!$C$64=Carbon!$B138,'Crop 3'!$V$64*VLOOKUP('Crop 3'!$E$64,Carbon!$AH$4:$AI$10,2,FALSE),0)+IF('Crop 3'!$C$65=Carbon!$B138,'Crop 3'!$V$65*VLOOKUP('Crop 3'!$E$65,Carbon!$AH$4:$AI$10,2,FALSE),0))*$AL$20,2)","v":0},{"$f":"Q138*Inputs!$D$17","v":0},{"$f":"ROUND(T138/Inputs!D$19,2)","v":0},0,null,null,0,{"$f":"W138*Inputs!$D$13","v":0},0,{"$f":"Y138*Inputs!$D$13","v":0},0,{"$f":"AA138*Inputs!$D$13","v":0},{"$f":"ROUND(AD138/Inputs!D$19,2)","v":0},0]
[null,{"$f":"Defaults!AH105","v":"Ricestar"},{"$f":"ROUND((IF('Crop 1'!$C$14=Carbon!$B139,'Crop 1'!$L$14*VLOOKUP('Crop 1'!$E$14,Carbon!$AH$4:$AI$10,2,FALSE),0)+IF('Crop 1'!$C$15=Carbon!$B139,'Crop 1'!$L$15*VLOOKUP('Crop 1'!$E$15,Carbon!$AH$4:$AI$10,2,FALSE),0)+IF('Crop 1'!$C$16=Carbon!$B139,'Crop 1'!$L$16*VLOOKUP('Crop 1'!$E$16,Carbon!$AH$4:$AI$10,2,FALSE),0)+IF('Crop 1'!$C$19=Carbon!$B139,'Crop 1'!$L$19*VLOOKUP('Crop 1'!$E$19,Carbon!$AH$4:$AI$10,2,FALSE),0)+IF('Crop 1'!$C$20=Carbon!$B139,'Crop 1'!$L$20*VLOOKUP('Crop 1'!$E$20,Carbon!$AH$4:$AI$10,2,FALSE),0)+IF('Crop 1'!$C$21=Carbon!$B139,'Crop 1'!$L$21*VLOOKUP('Crop 1'!$E$21,Carbon!$AH$4:$AI$10,2,FALSE),0)+IF('Crop 1'!$C$49=Carbon!$B139,'Crop 1'!$L$49*VLOOKUP('Crop 1'!$E$49,Carbon!$AH$4:$AI$10,2,FALSE),0)+IF('Crop 1'!$C$50=Carbon!$B139,'Crop 1'!$L$50*VLOOKUP('Crop 1'!$E$50,Carbon!$AH$4:$AI$10,2,FALSE),0)+IF('Crop 1'!$C$51=Carbon!$B139,'Crop 1'!$L$51*VLOOKUP('Crop 1'!$E$51,Carbon!$AH$4:$AI$10,2,FALSE),0)+IF('Crop 1'!$C$52=Carbon!$B139,'Crop 1'!$L$52*VLOOKUP('Crop 1'!$E$52,Carbon!$AH$4:$AI$10,2,FALSE),0)+IF('Crop 1'!$C$53=Carbon!$B139,'Crop 1'!$L$53*VLOOKUP('Crop 1'!$E$53,Carbon!$AH$4:$AI$10,2,FALSE),0)+IF('Crop 1'!$C$56=Carbon!$B139,'Crop 1'!$L$56*VLOOKUP('Crop 1'!$E$56,Carbon!$AH$4:$AI$10,2,FALSE),0)+IF('Crop 1'!$C$57=Carbon!$B139,'Crop 1'!$L$57*VLOOKUP('Crop 1'!$E$57,Carbon!$AH$4:$AI$10,2,FALSE),0)+IF('Crop 1'!$C$58=Carbon!$B139,'Crop 1'!$L$58*VLOOKUP('Crop 1'!$E$58,Carbon!$AH$4:$AI$10,2,FALSE),0)+IF('Crop 1'!$C$59=Carbon!$B139,'Crop 1'!$L$59*VLOOKUP('Crop 1'!$E$59,Carbon!$AH$4:$AI$10,2,FALSE),0)+IF('Crop 1'!$C$62=Carbon!$B139,'Crop 1'!$L$62*VLOOKUP('Crop 1'!$E$62,Carbon!$AH$4:$AI$10,2,FALSE),0)+IF('Crop 1'!$C$63=Carbon!$B139,'Crop 1'!$L$63*VLOOKUP('Crop 1'!$E$63,Carbon!$AH$4:$AI$10,2,FALSE),0)+IF('Crop 1'!$C$64=Carbon!$B139,'Crop 1'!$L$64*VLOOKUP('Crop 1'!$E$64,Carbon!$AH$4:$AI$10,2,FALSE),0)+IF('Crop 1'!$C$65=Carbon!$B139,'Crop 1'!$L$65*VLOOKUP('Crop 1'!$E$65,Carbon!$AH$4:$AI$10,2,FALSE),0))*$AL$20,2)","v":0},{"$f":"C139*Inputs!$D$13","v":0},{"$f":"ROUND((IF('Crop 2'!$C$14=Carbon!$B139,'Crop 2'!$L$14*VLOOKUP('Crop 2'!$E$14,Carbon!$AH$4:$AI$10,2,FALSE),0)+IF('Crop 2'!$C$15=Carbon!$B139,'Crop 2'!$L$15*VLOOKUP('Crop 2'!$E$15,Carbon!$AH$4:$AI$10,2,FALSE),0)+IF('Crop 2'!$C$16=Carbon!$B139,'Crop 2'!$L$16*VLOOKUP('Crop 2'!$E$16,Carbon!$AH$4:$AI$10,2,FALSE),0)+IF('Crop 2'!$C$19=Carbon!$B139,'Crop 2'!$L$19*VLOOKUP('Crop 2'!$E$19,Carbon!$AH$4:$AI$10,2,FALSE),0)+IF('Crop 2'!$C$20=Carbon!$B139,'Crop 2'!$L$20*VLOOKUP('Crop 2'!$E$20,Carbon!$AH$4:$AI$10,2,FALSE),0)+IF('Crop 2'!$C$21=Carbon!$B139,'Crop 2'!$L$21*VLOOKUP('Crop 2'!$E$21,Carbon!$AH$4:$AI$10,2,FALSE),0)+IF('Crop 2'!$C$49=Carbon!$B139,'Crop 2'!$L$49*VLOOKUP('Crop 2'!$E$49,Carbon!$AH$4:$AI$10,2,FALSE),0)+IF('Crop 2'!$C$50=Carbon!$B139,'Crop 2'!$L$50*VLOOKUP('Crop 2'!$E$50,Carbon!$AH$4:$AI$10,2,FALSE),0)+IF('Crop 2'!$C$51=Carbon!$B139,'Crop 2'!$L$51*VLOOKUP('Crop 2'!$E$51,Carbon!$AH$4:$AI$10,2,FALSE),0)+IF('Crop 2'!$C$52=Carbon!$B139,'Crop 2'!$L$52*VLOOKUP('Crop 2'!$E$52,Carbon!$AH$4:$AI$10,2,FALSE),0)+IF('Crop 2'!$C$53=Carbon!$B139,'Crop 2'!$L$53*VLOOKUP('Crop 2'!$E$53,Carbon!$AH$4:$AI$10,2,FALSE),0)+IF('Crop 2'!$C$56=Carbon!$B139,'Crop 2'!$L$56*VLOOKUP('Crop 2'!$E$56,Carbon!$AH$4:$AI$10,2,FALSE),0)+IF('Crop 2'!$C$57=Carbon!$B139,'Crop 2'!$L$57*VLOOKUP('Crop 2'!$E$57,Carbon!$AH$4:$AI$10,2,FALSE),0)+IF('Crop 2'!$C$58=Carbon!$B139,'Crop 2'!$L$58*VLOOKUP('Crop 2'!$E$58,Carbon!$AH$4:$AI$10,2,FALSE),0)+IF('Crop 2'!$C$59=Carbon!$B139,'Crop 2'!$L$59*VLOOKUP('Crop 2'!$E$59,Carbon!$AH$4:$AI$10,2,FALSE),0)+IF('Crop 2'!$C$62=Carbon!$B139,'Crop 2'!$L$62*VLOOKUP('Crop 2'!$E$62,Carbon!$AH$4:$AI$10,2,FALSE),0)+IF('Crop 2'!$C$63=Carbon!$B139,'Crop 2'!$L$63*VLOOKUP('Crop 2'!$E$63,Carbon!$AH$4:$AI$10,2,FALSE),0)+IF('Crop 2'!$C$64=Carbon!$B139,'Crop 2'!$L$64*VLOOKUP('Crop 2'!$E$64,Carbon!$AH$4:$AI$10,2,FALSE),0)+IF('Crop 2'!$C$65=Carbon!$B139,'Crop 2'!$L$65*VLOOKUP('Crop 2'!$E$65,Carbon!$AH$4:$AI$10,2,FALSE),0))*$AL$20,2)","v":0},{"$f":"E139*Inputs!$D$15","v":0},{"$f":"ROUND((IF('Crop 3'!$C$14=Carbon!$B139,'Crop 3'!$L$14*VLOOKUP('Crop 3'!$E$14,Carbon!$AH$4:$AI$10,2,FALSE),0)+IF('Crop 3'!$C$15=Carbon!$B139,'Crop 3'!$L$15*VLOOKUP('Crop 3'!$E$15,Carbon!$AH$4:$AI$10,2,FALSE),0)+IF('Crop 3'!$C$16=Carbon!$B139,'Crop 3'!$L$16*VLOOKUP('Crop 3'!$E$16,Carbon!$AH$4:$AI$10,2,FALSE),0)+IF('Crop 3'!$C$19=Carbon!$B139,'Crop 3'!$L$19*VLOOKUP('Crop 3'!$E$19,Carbon!$AH$4:$AI$10,2,FALSE),0)+IF('Crop 3'!$C$20=Carbon!$B139,'Crop 3'!$L$20*VLOOKUP('Crop 3'!$E$20,Carbon!$AH$4:$AI$10,2,FALSE),0)+IF('Crop 3'!$C$21=Carbon!$B139,'Crop 3'!$L$21*VLOOKUP('Crop 3'!$E$21,Carbon!$AH$4:$AI$10,2,FALSE),0)+IF('Crop 3'!$C$49=Carbon!$B139,'Crop 3'!$L$49*VLOOKUP('Crop 3'!$E$49,Carbon!$AH$4:$AI$10,2,FALSE),0)+IF('Crop 3'!$C$50=Carbon!$B139,'Crop 3'!$L$50*VLOOKUP('Crop 3'!$E$50,Carbon!$AH$4:$AI$10,2,FALSE),0)+IF('Crop 3'!$C$51=Carbon!$B139,'Crop 3'!$L$51*VLOOKUP('Crop 3'!$E$51,Carbon!$AH$4:$AI$10,2,FALSE),0)+IF('Crop 3'!$C$52=Carbon!$B139,'Crop 3'!$L$52*VLOOKUP('Crop 3'!$E$52,Carbon!$AH$4:$AI$10,2,FALSE),0)+IF('Crop 3'!$C$53=Carbon!$B139,'Crop 3'!$L$53*VLOOKUP('Crop 3'!$E$53,Carbon!$AH$4:$AI$10,2,FALSE),0)+IF('Crop 3'!$C$56=Carbon!$B139,'Crop 3'!$L$56*VLOOKUP('Crop 3'!$E$56,Carbon!$AH$4:$AI$10,2,FALSE),0)+IF('Crop 3'!$C$57=Carbon!$B139,'Crop 3'!$L$57*VLOOKUP('Crop 3'!$E$57,Carbon!$AH$4:$AI$10,2,FALSE),0)+IF('Crop 3'!$C$58=Carbon!$B139,'Crop 3'!$L$58*VLOOKUP('Crop 3'!$E$58,Carbon!$AH$4:$AI$10,2,FALSE),0)+IF('Crop 3'!$C$59=Carbon!$B139,'Crop 3'!$L$59*VLOOKUP('Crop 3'!$E$59,Carbon!$AH$4:$AI$10,2,FALSE),0)+IF('Crop 3'!$C$62=Carbon!$B139,'Crop 3'!$L$62*VLOOKUP('Crop 3'!$E$62,Carbon!$AH$4:$AI$10,2,FALSE),0)+IF('Crop 3'!$C$63=Carbon!$B139,'Crop 3'!$L$63*VLOOKUP('Crop 3'!$E$63,Carbon!$AH$4:$AI$10,2,FALSE),0)+IF('Crop 3'!$C$64=Carbon!$B139,'Crop 3'!$L$64*VLOOKUP('Crop 3'!$E$64,Carbon!$AH$4:$AI$10,2,FALSE),0)+IF('Crop 3'!$C$65=Carbon!$B139,'Crop 3'!$L$65*VLOOKUP('Crop 3'!$E$65,Carbon!$AH$4:$AI$10,2,FALSE),0))*$AL$20,2)","v":0},{"$f":"G139*Inputs!$D$17","v":0},{"$f":"ROUND(J139/Inputs!D$19,2)","v":0},0,null,null,{"$f":"ROUND((IF('Crop 1'!$C$14=Carbon!$B139,'Crop 1'!$V$14*VLOOKUP('Crop 1'!$E$14,Carbon!$AH$4:$AI$10,2,FALSE),0)+IF('Crop 1'!$C$15=Carbon!$B139,'Crop 1'!$V$15*VLOOKUP('Crop 1'!$E$15,Carbon!$AH$4:$AI$10,2,FALSE),0)+IF('Crop 1'!$C$16=Carbon!$B139,'Crop 1'!$V$16*VLOOKUP('Crop 1'!$E$16,Carbon!$AH$4:$AI$10,2,FALSE),0)+IF('Crop 1'!$C$19=Carbon!$B139,'Crop 1'!$V$19*VLOOKUP('Crop 1'!$E$19,Carbon!$AH$4:$AI$10,2,FALSE),0)+IF('Crop 1'!$C$20=Carbon!$B139,'Crop 1'!$V$20*VLOOKUP('Crop 1'!$E$20,Carbon!$AH$4:$AI$10,2,FALSE),0)+IF('Crop 1'!$C$21=Carbon!$B139,'Crop 1'!$V$21*VLOOKUP('Crop 1'!$E$21,Carbon!$AH$4:$AI$10,2,FALSE),0)+IF('Crop 1'!$C$49=Carbon!$B139,'Crop 1'!$V$49*VLOOKUP('Crop 1'!$E$49,Carbon!$AH$4:$AI$10,2,FALSE),0)+IF('Crop 1'!$C$50=Carbon!$B139,'Crop 1'!$V$50*VLOOKUP('Crop 1'!$E$50,Carbon!$AH$4:$AI$10,2,FALSE),0)+IF('Crop 1'!$C$51=Carbon!$B139,'Crop 1'!$V$51*VLOOKUP('Crop 1'!$E$51,Carbon!$AH$4:$AI$10,2,FALSE),0)+IF('Crop 1'!$C$52=Carbon!$B139,'Crop 1'!$V$52*VLOOKUP('Crop 1'!$E$52,Carbon!$AH$4:$AI$10,2,FALSE),0)+IF('Crop 1'!$C$53=Carbon!$B139,'Crop 1'!$V$53*VLOOKUP('Crop 1'!$E$53,Carbon!$AH$4:$AI$10,2,FALSE),0)+IF('Crop 1'!$C$56=Carbon!$B139,'Crop 1'!$V$56*VLOOKUP('Crop 1'!$E$56,Carbon!$AH$4:$AI$10,2,FALSE),0)+IF('Crop 1'!$C$57=Carbon!$B139,'Crop 1'!$V$57*VLOOKUP('Crop 1'!$E$57,Carbon!$AH$4:$AI$10,2,FALSE),0)+IF('Crop 1'!$C$58=Carbon!$B139,'Crop 1'!$V$58*VLOOKUP('Crop 1'!$E$58,Carbon!$AH$4:$AI$10,2,FALSE),0)+IF('Crop 1'!$C$59=Carbon!$B139,'Crop 1'!$V$59*VLOOKUP('Crop 1'!$E$59,Carbon!$AH$4:$AI$10,2,FALSE),0)+IF('Crop 1'!$C$62=Carbon!$B139,'Crop 1'!$V$62*VLOOKUP('Crop 1'!$E$62,Carbon!$AH$4:$AI$10,2,FALSE),0)+IF('Crop 1'!$C$63=Carbon!$B139,'Crop 1'!$V$63*VLOOKUP('Crop 1'!$E$63,Carbon!$AH$4:$AI$10,2,FALSE),0)+IF('Crop 1'!$C$64=Carbon!$B139,'Crop 1'!$V$64*VLOOKUP('Crop 1'!$E$64,Carbon!$AH$4:$AI$10,2,FALSE),0)+IF('Crop 1'!$C$65=Carbon!$B139,'Crop 1'!$V$65*VLOOKUP('Crop 1'!$E$65,Carbon!$AH$4:$AI$10,2,FALSE),0))*$AL$20,2)","v":0},{"$f":"M139*Inputs!$D$13","v":0},{"$f":"ROUND((IF('Crop 2'!$C$14=Carbon!$B139,'Crop 2'!$V$14*VLOOKUP('Crop 2'!$E$14,Carbon!$AH$4:$AI$10,2,FALSE),0)+IF('Crop 2'!$C$15=Carbon!$B139,'Crop 2'!$V$15*VLOOKUP('Crop 2'!$E$15,Carbon!$AH$4:$AI$10,2,FALSE),0)+IF('Crop 2'!$C$16=Carbon!$B139,'Crop 2'!$V$16*VLOOKUP('Crop 2'!$E$16,Carbon!$AH$4:$AI$10,2,FALSE),0)+IF('Crop 2'!$C$19=Carbon!$B139,'Crop 2'!$V$19*VLOOKUP('Crop 2'!$E$19,Carbon!$AH$4:$AI$10,2,FALSE),0)+IF('Crop 2'!$C$20=Carbon!$B139,'Crop 2'!$V$20*VLOOKUP('Crop 2'!$E$20,Carbon!$AH$4:$AI$10,2,FALSE),0)+IF('Crop 2'!$C$21=Carbon!$B139,'Crop 2'!$V$21*VLOOKUP('Crop 2'!$E$21,Carbon!$AH$4:$AI$10,2,FALSE),0)+IF('Crop 2'!$C$49=Carbon!$B139,'Crop 2'!$V$49*VLOOKUP('Crop 2'!$E$49,Carbon!$AH$4:$AI$10,2,FALSE),0)+IF('Crop 2'!$C$50=Carbon!$B139,'Crop 2'!$V$50*VLOOKUP('Crop 2'!$E$50,Carbon!$AH$4:$AI$10,2,FALSE),0)+IF('Crop 2'!$C$51=Carbon!$B139,'Crop 2'!$V$51*VLOOKUP('Crop 2'!$E$51,Carbon!$AH$4:$AI$10,2,FALSE),0)+IF('Crop 2'!$C$52=Carbon!$B139,'Crop 2'!$V$52*VLOOKUP('Crop 2'!$E$52,Carbon!$AH$4:$AI$10,2,FALSE),0)+IF('Crop 2'!$C$53=Carbon!$B139,'Crop 2'!$V$53*VLOOKUP('Crop 2'!$E$53,Carbon!$AH$4:$AI$10,2,FALSE),0)+IF('Crop 2'!$C$56=Carbon!$B139,'Crop 2'!$V$56*VLOOKUP('Crop 2'!$E$56,Carbon!$AH$4:$AI$10,2,FALSE),0)+IF('Crop 2'!$C$57=Carbon!$B139,'Crop 2'!$V$57*VLOOKUP('Crop 2'!$E$57,Carbon!$AH$4:$AI$10,2,FALSE),0)+IF('Crop 2'!$C$58=Carbon!$B139,'Crop 2'!$V$58*VLOOKUP('Crop 2'!$E$58,Carbon!$AH$4:$AI$10,2,FALSE),0)+IF('Crop 2'!$C$59=Carbon!$B139,'Crop 2'!$V$59*VLOOKUP('Crop 2'!$E$59,Carbon!$AH$4:$AI$10,2,FALSE),0)+IF('Crop 2'!$C$62=Carbon!$B139,'Crop 2'!$V$62*VLOOKUP('Crop 2'!$E$62,Carbon!$AH$4:$AI$10,2,FALSE),0)+IF('Crop 2'!$C$63=Carbon!$B139,'Crop 2'!$V$63*VLOOKUP('Crop 2'!$E$63,Carbon!$AH$4:$AI$10,2,FALSE),0)+IF('Crop 2'!$C$64=Carbon!$B139,'Crop 2'!$V$64*VLOOKUP('Crop 2'!$E$64,Carbon!$AH$4:$AI$10,2,FALSE),0)+IF('Crop 2'!$C$65=Carbon!$B139,'Crop 2'!$V$65*VLOOKUP('Crop 2'!$E$65,Carbon!$AH$4:$AI$10,2,FALSE),0))*$AL$20,2)","v":0},{"$f":"O139*Inputs!$D$15","v":0},{"$f":"ROUND((IF('Crop 3'!$C$14=Carbon!$B139,'Crop 3'!$V$14*VLOOKUP('Crop 3'!$E$14,Carbon!$AH$4:$AI$10,2,FALSE),0)+IF('Crop 3'!$C$15=Carbon!$B139,'Crop 3'!$V$15*VLOOKUP('Crop 3'!$E$15,Carbon!$AH$4:$AI$10,2,FALSE),0)+IF('Crop 3'!$C$16=Carbon!$B139,'Crop 3'!$V$16*VLOOKUP('Crop 3'!$E$16,Carbon!$AH$4:$AI$10,2,FALSE),0)+IF('Crop 3'!$C$19=Carbon!$B139,'Crop 3'!$V$19*VLOOKUP('Crop 3'!$E$19,Carbon!$AH$4:$AI$10,2,FALSE),0)+IF('Crop 3'!$C$20=Carbon!$B139,'Crop 3'!$V$20*VLOOKUP('Crop 3'!$E$20,Carbon!$AH$4:$AI$10,2,FALSE),0)+IF('Crop 3'!$C$21=Carbon!$B139,'Crop 3'!$V$21*VLOOKUP('Crop 3'!$E$21,Carbon!$AH$4:$AI$10,2,FALSE),0)+IF('Crop 3'!$C$49=Carbon!$B139,'Crop 3'!$V$49*VLOOKUP('Crop 3'!$E$49,Carbon!$AH$4:$AI$10,2,FALSE),0)+IF('Crop 3'!$C$50=Carbon!$B139,'Crop 3'!$V$50*VLOOKUP('Crop 3'!$E$50,Carbon!$AH$4:$AI$10,2,FALSE),0)+IF('Crop 3'!$C$51=Carbon!$B139,'Crop 3'!$V$51*VLOOKUP('Crop 3'!$E$51,Carbon!$AH$4:$AI$10,2,FALSE),0)+IF('Crop 3'!$C$52=Carbon!$B139,'Crop 3'!$V$52*VLOOKUP('Crop 3'!$E$52,Carbon!$AH$4:$AI$10,2,FALSE),0)+IF('Crop 3'!$C$53=Carbon!$B139,'Crop 3'!$V$53*VLOOKUP('Crop 3'!$E$53,Carbon!$AH$4:$AI$10,2,FALSE),0)+IF('Crop 3'!$C$56=Carbon!$B139,'Crop 3'!$V$56*VLOOKUP('Crop 3'!$E$56,Carbon!$AH$4:$AI$10,2,FALSE),0)+IF('Crop 3'!$C$57=Carbon!$B139,'Crop 3'!$V$57*VLOOKUP('Crop 3'!$E$57,Carbon!$AH$4:$AI$10,2,FALSE),0)+IF('Crop 3'!$C$58=Carbon!$B139,'Crop 3'!$V$58*VLOOKUP('Crop 3'!$E$58,Carbon!$AH$4:$AI$10,2,FALSE),0)+IF('Crop 3'!$C$59=Carbon!$B139,'Crop 3'!$V$59*VLOOKUP('Crop 3'!$E$59,Carbon!$AH$4:$AI$10,2,FALSE),0)+IF('Crop 3'!$C$62=Carbon!$B139,'Crop 3'!$V$62*VLOOKUP('Crop 3'!$E$62,Carbon!$AH$4:$AI$10,2,FALSE),0)+IF('Crop 3'!$C$63=Carbon!$B139,'Crop 3'!$V$63*VLOOKUP('Crop 3'!$E$63,Carbon!$AH$4:$AI$10,2,FALSE),0)+IF('Crop 3'!$C$64=Carbon!$B139,'Crop 3'!$V$64*VLOOKUP('Crop 3'!$E$64,Carbon!$AH$4:$AI$10,2,FALSE),0)+IF('Crop 3'!$C$65=Carbon!$B139,'Crop 3'!$V$65*VLOOKUP('Crop 3'!$E$65,Carbon!$AH$4:$AI$10,2,FALSE),0))*$AL$20,2)","v":0},{"$f":"Q139*Inputs!$D$17","v":0},{"$f":"ROUND(T139/Inputs!D$19,2)","v":0},0,null,null,0,{"$f":"W139*Inputs!$D$13","v":0},0,{"$f":"Y139*Inputs!$D$13","v":0},0,{"$f":"AA139*Inputs!$D$13","v":0},{"$f":"ROUND(AD139/Inputs!D$19,2)","v":0},0]
[null,{"$f":"Defaults!AH106","v":"Select"},{"$f":"ROUND((IF('Crop 1'!$C$14=Carbon!$B140,'Crop 1'!$L$14*VLOOKUP('Crop 1'!$E$14,Carbon!$AH$4:$AI$10,2,FALSE),0)+IF('Crop 1'!$C$15=Carbon!$B140,'Crop 1'!$L$15*VLOOKUP('Crop 1'!$E$15,Carbon!$AH$4:$AI$10,2,FALSE),0)+IF('Crop 1'!$C$16=Carbon!$B140,'Crop 1'!$L$16*VLOOKUP('Crop 1'!$E$16,Carbon!$AH$4:$AI$10,2,FALSE),0)+IF('Crop 1'!$C$19=Carbon!$B140,'Crop 1'!$L$19*VLOOKUP('Crop 1'!$E$19,Carbon!$AH$4:$AI$10,2,FALSE),0)+IF('Crop 1'!$C$20=Carbon!$B140,'Crop 1'!$L$20*VLOOKUP('Crop 1'!$E$20,Carbon!$AH$4:$AI$10,2,FALSE),0)+IF('Crop 1'!$C$21=Carbon!$B140,'Crop 1'!$L$21*VLOOKUP('Crop 1'!$E$21,Carbon!$AH$4:$AI$10,2,FALSE),0)+IF('Crop 1'!$C$49=Carbon!$B140,'Crop 1'!$L$49*VLOOKUP('Crop 1'!$E$49,Carbon!$AH$4:$AI$10,2,FALSE),0)+IF('Crop 1'!$C$50=Carbon!$B140,'Crop 1'!$L$50*VLOOKUP('Crop 1'!$E$50,Carbon!$AH$4:$AI$10,2,FALSE),0)+IF('Crop 1'!$C$51=Carbon!$B140,'Crop 1'!$L$51*VLOOKUP('Crop 1'!$E$51,Carbon!$AH$4:$AI$10,2,FALSE),0)+IF('Crop 1'!$C$52=Carbon!$B140,'Crop 1'!$L$52*VLOOKUP('Crop 1'!$E$52,Carbon!$AH$4:$AI$10,2,FALSE),0)+IF('Crop 1'!$C$53=Carbon!$B140,'Crop 1'!$L$53*VLOOKUP('Crop 1'!$E$53,Carbon!$AH$4:$AI$10,2,FALSE),0)+IF('Crop 1'!$C$56=Carbon!$B140,'Crop 1'!$L$56*VLOOKUP('Crop 1'!$E$56,Carbon!$AH$4:$AI$10,2,FALSE),0)+IF('Crop 1'!$C$57=Carbon!$B140,'Crop 1'!$L$57*VLOOKUP('Crop 1'!$E$57,Carbon!$AH$4:$AI$10,2,FALSE),0)+IF('Crop 1'!$C$58=Carbon!$B140,'Crop 1'!$L$58*VLOOKUP('Crop 1'!$E$58,Carbon!$AH$4:$AI$10,2,FALSE),0)+IF('Crop 1'!$C$59=Carbon!$B140,'Crop 1'!$L$59*VLOOKUP('Crop 1'!$E$59,Carbon!$AH$4:$AI$10,2,FALSE),0)+IF('Crop 1'!$C$62=Carbon!$B140,'Crop 1'!$L$62*VLOOKUP('Crop 1'!$E$62,Carbon!$AH$4:$AI$10,2,FALSE),0)+IF('Crop 1'!$C$63=Carbon!$B140,'Crop 1'!$L$63*VLOOKUP('Crop 1'!$E$63,Carbon!$AH$4:$AI$10,2,FALSE),0)+IF('Crop 1'!$C$64=Carbon!$B140,'Crop 1'!$L$64*VLOOKUP('Crop 1'!$E$64,Carbon!$AH$4:$AI$10,2,FALSE),0)+IF('Crop 1'!$C$65=Carbon!$B140,'Crop 1'!$L$65*VLOOKUP('Crop 1'!$E$65,Carbon!$AH$4:$AI$10,2,FALSE),0))*$AL$20,2)","v":0},{"$f":"C140*Inputs!$D$13","v":0},{"$f":"ROUND((IF('Crop 2'!$C$14=Carbon!$B140,'Crop 2'!$L$14*VLOOKUP('Crop 2'!$E$14,Carbon!$AH$4:$AI$10,2,FALSE),0)+IF('Crop 2'!$C$15=Carbon!$B140,'Crop 2'!$L$15*VLOOKUP('Crop 2'!$E$15,Carbon!$AH$4:$AI$10,2,FALSE),0)+IF('Crop 2'!$C$16=Carbon!$B140,'Crop 2'!$L$16*VLOOKUP('Crop 2'!$E$16,Carbon!$AH$4:$AI$10,2,FALSE),0)+IF('Crop 2'!$C$19=Carbon!$B140,'Crop 2'!$L$19*VLOOKUP('Crop 2'!$E$19,Carbon!$AH$4:$AI$10,2,FALSE),0)+IF('Crop 2'!$C$20=Carbon!$B140,'Crop 2'!$L$20*VLOOKUP('Crop 2'!$E$20,Carbon!$AH$4:$AI$10,2,FALSE),0)+IF('Crop 2'!$C$21=Carbon!$B140,'Crop 2'!$L$21*VLOOKUP('Crop 2'!$E$21,Carbon!$AH$4:$AI$10,2,FALSE),0)+IF('Crop 2'!$C$49=Carbon!$B140,'Crop 2'!$L$49*VLOOKUP('Crop 2'!$E$49,Carbon!$AH$4:$AI$10,2,FALSE),0)+IF('Crop 2'!$C$50=Carbon!$B140,'Crop 2'!$L$50*VLOOKUP('Crop 2'!$E$50,Carbon!$AH$4:$AI$10,2,FALSE),0)+IF('Crop 2'!$C$51=Carbon!$B140,'Crop 2'!$L$51*VLOOKUP('Crop 2'!$E$51,Carbon!$AH$4:$AI$10,2,FALSE),0)+IF('Crop 2'!$C$52=Carbon!$B140,'Crop 2'!$L$52*VLOOKUP('Crop 2'!$E$52,Carbon!$AH$4:$AI$10,2,FALSE),0)+IF('Crop 2'!$C$53=Carbon!$B140,'Crop 2'!$L$53*VLOOKUP('Crop 2'!$E$53,Carbon!$AH$4:$AI$10,2,FALSE),0)+IF('Crop 2'!$C$56=Carbon!$B140,'Crop 2'!$L$56*VLOOKUP('Crop 2'!$E$56,Carbon!$AH$4:$AI$10,2,FALSE),0)+IF('Crop 2'!$C$57=Carbon!$B140,'Crop 2'!$L$57*VLOOKUP('Crop 2'!$E$57,Carbon!$AH$4:$AI$10,2,FALSE),0)+IF('Crop 2'!$C$58=Carbon!$B140,'Crop 2'!$L$58*VLOOKUP('Crop 2'!$E$58,Carbon!$AH$4:$AI$10,2,FALSE),0)+IF('Crop 2'!$C$59=Carbon!$B140,'Crop 2'!$L$59*VLOOKUP('Crop 2'!$E$59,Carbon!$AH$4:$AI$10,2,FALSE),0)+IF('Crop 2'!$C$62=Carbon!$B140,'Crop 2'!$L$62*VLOOKUP('Crop 2'!$E$62,Carbon!$AH$4:$AI$10,2,FALSE),0)+IF('Crop 2'!$C$63=Carbon!$B140,'Crop 2'!$L$63*VLOOKUP('Crop 2'!$E$63,Carbon!$AH$4:$AI$10,2,FALSE),0)+IF('Crop 2'!$C$64=Carbon!$B140,'Crop 2'!$L$64*VLOOKUP('Crop 2'!$E$64,Carbon!$AH$4:$AI$10,2,FALSE),0)+IF('Crop 2'!$C$65=Carbon!$B140,'Crop 2'!$L$65*VLOOKUP('Crop 2'!$E$65,Carbon!$AH$4:$AI$10,2,FALSE),0))*$AL$20,2)","v":0},{"$f":"E140*Inputs!$D$15","v":0},{"$f":"ROUND((IF('Crop 3'!$C$14=Carbon!$B140,'Crop 3'!$L$14*VLOOKUP('Crop 3'!$E$14,Carbon!$AH$4:$AI$10,2,FALSE),0)+IF('Crop 3'!$C$15=Carbon!$B140,'Crop 3'!$L$15*VLOOKUP('Crop 3'!$E$15,Carbon!$AH$4:$AI$10,2,FALSE),0)+IF('Crop 3'!$C$16=Carbon!$B140,'Crop 3'!$L$16*VLOOKUP('Crop 3'!$E$16,Carbon!$AH$4:$AI$10,2,FALSE),0)+IF('Crop 3'!$C$19=Carbon!$B140,'Crop 3'!$L$19*VLOOKUP('Crop 3'!$E$19,Carbon!$AH$4:$AI$10,2,FALSE),0)+IF('Crop 3'!$C$20=Carbon!$B140,'Crop 3'!$L$20*VLOOKUP('Crop 3'!$E$20,Carbon!$AH$4:$AI$10,2,FALSE),0)+IF('Crop 3'!$C$21=Carbon!$B140,'Crop 3'!$L$21*VLOOKUP('Crop 3'!$E$21,Carbon!$AH$4:$AI$10,2,FALSE),0)+IF('Crop 3'!$C$49=Carbon!$B140,'Crop 3'!$L$49*VLOOKUP('Crop 3'!$E$49,Carbon!$AH$4:$AI$10,2,FALSE),0)+IF('Crop 3'!$C$50=Carbon!$B140,'Crop 3'!$L$50*VLOOKUP('Crop 3'!$E$50,Carbon!$AH$4:$AI$10,2,FALSE),0)+IF('Crop 3'!$C$51=Carbon!$B140,'Crop 3'!$L$51*VLOOKUP('Crop 3'!$E$51,Carbon!$AH$4:$AI$10,2,FALSE),0)+IF('Crop 3'!$C$52=Carbon!$B140,'Crop 3'!$L$52*VLOOKUP('Crop 3'!$E$52,Carbon!$AH$4:$AI$10,2,FALSE),0)+IF('Crop 3'!$C$53=Carbon!$B140,'Crop 3'!$L$53*VLOOKUP('Crop 3'!$E$53,Carbon!$AH$4:$AI$10,2,FALSE),0)+IF('Crop 3'!$C$56=Carbon!$B140,'Crop 3'!$L$56*VLOOKUP('Crop 3'!$E$56,Carbon!$AH$4:$AI$10,2,FALSE),0)+IF('Crop 3'!$C$57=Carbon!$B140,'Crop 3'!$L$57*VLOOKUP('Crop 3'!$E$57,Carbon!$AH$4:$AI$10,2,FALSE),0)+IF('Crop 3'!$C$58=Carbon!$B140,'Crop 3'!$L$58*VLOOKUP('Crop 3'!$E$58,Carbon!$AH$4:$AI$10,2,FALSE),0)+IF('Crop 3'!$C$59=Carbon!$B140,'Crop 3'!$L$59*VLOOKUP('Crop 3'!$E$59,Carbon!$AH$4:$AI$10,2,FALSE),0)+IF('Crop 3'!$C$62=Carbon!$B140,'Crop 3'!$L$62*VLOOKUP('Crop 3'!$E$62,Carbon!$AH$4:$AI$10,2,FALSE),0)+IF('Crop 3'!$C$63=Carbon!$B140,'Crop 3'!$L$63*VLOOKUP('Crop 3'!$E$63,Carbon!$AH$4:$AI$10,2,FALSE),0)+IF('Crop 3'!$C$64=Carbon!$B140,'Crop 3'!$L$64*VLOOKUP('Crop 3'!$E$64,Carbon!$AH$4:$AI$10,2,FALSE),0)+IF('Crop 3'!$C$65=Carbon!$B140,'Crop 3'!$L$65*VLOOKUP('Crop 3'!$E$65,Carbon!$AH$4:$AI$10,2,FALSE),0))*$AL$20,2)","v":0},{"$f":"G140*Inputs!$D$17","v":0},{"$f":"ROUND(J140/Inputs!D$19,2)","v":0},0,null,null,{"$f":"ROUND((IF('Crop 1'!$C$14=Carbon!$B140,'Crop 1'!$V$14*VLOOKUP('Crop 1'!$E$14,Carbon!$AH$4:$AI$10,2,FALSE),0)+IF('Crop 1'!$C$15=Carbon!$B140,'Crop 1'!$V$15*VLOOKUP('Crop 1'!$E$15,Carbon!$AH$4:$AI$10,2,FALSE),0)+IF('Crop 1'!$C$16=Carbon!$B140,'Crop 1'!$V$16*VLOOKUP('Crop 1'!$E$16,Carbon!$AH$4:$AI$10,2,FALSE),0)+IF('Crop 1'!$C$19=Carbon!$B140,'Crop 1'!$V$19*VLOOKUP('Crop 1'!$E$19,Carbon!$AH$4:$AI$10,2,FALSE),0)+IF('Crop 1'!$C$20=Carbon!$B140,'Crop 1'!$V$20*VLOOKUP('Crop 1'!$E$20,Carbon!$AH$4:$AI$10,2,FALSE),0)+IF('Crop 1'!$C$21=Carbon!$B140,'Crop 1'!$V$21*VLOOKUP('Crop 1'!$E$21,Carbon!$AH$4:$AI$10,2,FALSE),0)+IF('Crop 1'!$C$49=Carbon!$B140,'Crop 1'!$V$49*VLOOKUP('Crop 1'!$E$49,Carbon!$AH$4:$AI$10,2,FALSE),0)+IF('Crop 1'!$C$50=Carbon!$B140,'Crop 1'!$V$50*VLOOKUP('Crop 1'!$E$50,Carbon!$AH$4:$AI$10,2,FALSE),0)+IF('Crop 1'!$C$51=Carbon!$B140,'Crop 1'!$V$51*VLOOKUP('Crop 1'!$E$51,Carbon!$AH$4:$AI$10,2,FALSE),0)+IF('Crop 1'!$C$52=Carbon!$B140,'Crop 1'!$V$52*VLOOKUP('Crop 1'!$E$52,Carbon!$AH$4:$AI$10,2,FALSE),0)+IF('Crop 1'!$C$53=Carbon!$B140,'Crop 1'!$V$53*VLOOKUP('Crop 1'!$E$53,Carbon!$AH$4:$AI$10,2,FALSE),0)+IF('Crop 1'!$C$56=Carbon!$B140,'Crop 1'!$V$56*VLOOKUP('Crop 1'!$E$56,Carbon!$AH$4:$AI$10,2,FALSE),0)+IF('Crop 1'!$C$57=Carbon!$B140,'Crop 1'!$V$57*VLOOKUP('Crop 1'!$E$57,Carbon!$AH$4:$AI$10,2,FALSE),0)+IF('Crop 1'!$C$58=Carbon!$B140,'Crop 1'!$V$58*VLOOKUP('Crop 1'!$E$58,Carbon!$AH$4:$AI$10,2,FALSE),0)+IF('Crop 1'!$C$59=Carbon!$B140,'Crop 1'!$V$59*VLOOKUP('Crop 1'!$E$59,Carbon!$AH$4:$AI$10,2,FALSE),0)+IF('Crop 1'!$C$62=Carbon!$B140,'Crop 1'!$V$62*VLOOKUP('Crop 1'!$E$62,Carbon!$AH$4:$AI$10,2,FALSE),0)+IF('Crop 1'!$C$63=Carbon!$B140,'Crop 1'!$V$63*VLOOKUP('Crop 1'!$E$63,Carbon!$AH$4:$AI$10,2,FALSE),0)+IF('Crop 1'!$C$64=Carbon!$B140,'Crop 1'!$V$64*VLOOKUP('Crop 1'!$E$64,Carbon!$AH$4:$AI$10,2,FALSE),0)+IF('Crop 1'!$C$65=Carbon!$B140,'Crop 1'!$V$65*VLOOKUP('Crop 1'!$E$65,Carbon!$AH$4:$AI$10,2,FALSE),0))*$AL$20,2)","v":0},{"$f":"M140*Inputs!$D$13","v":0},{"$f":"ROUND((IF('Crop 2'!$C$14=Carbon!$B140,'Crop 2'!$V$14*VLOOKUP('Crop 2'!$E$14,Carbon!$AH$4:$AI$10,2,FALSE),0)+IF('Crop 2'!$C$15=Carbon!$B140,'Crop 2'!$V$15*VLOOKUP('Crop 2'!$E$15,Carbon!$AH$4:$AI$10,2,FALSE),0)+IF('Crop 2'!$C$16=Carbon!$B140,'Crop 2'!$V$16*VLOOKUP('Crop 2'!$E$16,Carbon!$AH$4:$AI$10,2,FALSE),0)+IF('Crop 2'!$C$19=Carbon!$B140,'Crop 2'!$V$19*VLOOKUP('Crop 2'!$E$19,Carbon!$AH$4:$AI$10,2,FALSE),0)+IF('Crop 2'!$C$20=Carbon!$B140,'Crop 2'!$V$20*VLOOKUP('Crop 2'!$E$20,Carbon!$AH$4:$AI$10,2,FALSE),0)+IF('Crop 2'!$C$21=Carbon!$B140,'Crop 2'!$V$21*VLOOKUP('Crop 2'!$E$21,Carbon!$AH$4:$AI$10,2,FALSE),0)+IF('Crop 2'!$C$49=Carbon!$B140,'Crop 2'!$V$49*VLOOKUP('Crop 2'!$E$49,Carbon!$AH$4:$AI$10,2,FALSE),0)+IF('Crop 2'!$C$50=Carbon!$B140,'Crop 2'!$V$50*VLOOKUP('Crop 2'!$E$50,Carbon!$AH$4:$AI$10,2,FALSE),0)+IF('Crop 2'!$C$51=Carbon!$B140,'Crop 2'!$V$51*VLOOKUP('Crop 2'!$E$51,Carbon!$AH$4:$AI$10,2,FALSE),0)+IF('Crop 2'!$C$52=Carbon!$B140,'Crop 2'!$V$52*VLOOKUP('Crop 2'!$E$52,Carbon!$AH$4:$AI$10,2,FALSE),0)+IF('Crop 2'!$C$53=Carbon!$B140,'Crop 2'!$V$53*VLOOKUP('Crop 2'!$E$53,Carbon!$AH$4:$AI$10,2,FALSE),0)+IF('Crop 2'!$C$56=Carbon!$B140,'Crop 2'!$V$56*VLOOKUP('Crop 2'!$E$56,Carbon!$AH$4:$AI$10,2,FALSE),0)+IF('Crop 2'!$C$57=Carbon!$B140,'Crop 2'!$V$57*VLOOKUP('Crop 2'!$E$57,Carbon!$AH$4:$AI$10,2,FALSE),0)+IF('Crop 2'!$C$58=Carbon!$B140,'Crop 2'!$V$58*VLOOKUP('Crop 2'!$E$58,Carbon!$AH$4:$AI$10,2,FALSE),0)+IF('Crop 2'!$C$59=Carbon!$B140,'Crop 2'!$V$59*VLOOKUP('Crop 2'!$E$59,Carbon!$AH$4:$AI$10,2,FALSE),0)+IF('Crop 2'!$C$62=Carbon!$B140,'Crop 2'!$V$62*VLOOKUP('Crop 2'!$E$62,Carbon!$AH$4:$AI$10,2,FALSE),0)+IF('Crop 2'!$C$63=Carbon!$B140,'Crop 2'!$V$63*VLOOKUP('Crop 2'!$E$63,Carbon!$AH$4:$AI$10,2,FALSE),0)+IF('Crop 2'!$C$64=Carbon!$B140,'Crop 2'!$V$64*VLOOKUP('Crop 2'!$E$64,Carbon!$AH$4:$AI$10,2,FALSE),0)+IF('Crop 2'!$C$65=Carbon!$B140,'Crop 2'!$V$65*VLOOKUP('Crop 2'!$E$65,Carbon!$AH$4:$AI$10,2,FALSE),0))*$AL$20,2)","v":0},{"$f":"O140*Inputs!$D$15","v":0},{"$f":"ROUND((IF('Crop 3'!$C$14=Carbon!$B140,'Crop 3'!$V$14*VLOOKUP('Crop 3'!$E$14,Carbon!$AH$4:$AI$10,2,FALSE),0)+IF('Crop 3'!$C$15=Carbon!$B140,'Crop 3'!$V$15*VLOOKUP('Crop 3'!$E$15,Carbon!$AH$4:$AI$10,2,FALSE),0)+IF('Crop 3'!$C$16=Carbon!$B140,'Crop 3'!$V$16*VLOOKUP('Crop 3'!$E$16,Carbon!$AH$4:$AI$10,2,FALSE),0)+IF('Crop 3'!$C$19=Carbon!$B140,'Crop 3'!$V$19*VLOOKUP('Crop 3'!$E$19,Carbon!$AH$4:$AI$10,2,FALSE),0)+IF('Crop 3'!$C$20=Carbon!$B140,'Crop 3'!$V$20*VLOOKUP('Crop 3'!$E$20,Carbon!$AH$4:$AI$10,2,FALSE),0)+IF('Crop 3'!$C$21=Carbon!$B140,'Crop 3'!$V$21*VLOOKUP('Crop 3'!$E$21,Carbon!$AH$4:$AI$10,2,FALSE),0)+IF('Crop 3'!$C$49=Carbon!$B140,'Crop 3'!$V$49*VLOOKUP('Crop 3'!$E$49,Carbon!$AH$4:$AI$10,2,FALSE),0)+IF('Crop 3'!$C$50=Carbon!$B140,'Crop 3'!$V$50*VLOOKUP('Crop 3'!$E$50,Carbon!$AH$4:$AI$10,2,FALSE),0)+IF('Crop 3'!$C$51=Carbon!$B140,'Crop 3'!$V$51*VLOOKUP('Crop 3'!$E$51,Carbon!$AH$4:$AI$10,2,FALSE),0)+IF('Crop 3'!$C$52=Carbon!$B140,'Crop 3'!$V$52*VLOOKUP('Crop 3'!$E$52,Carbon!$AH$4:$AI$10,2,FALSE),0)+IF('Crop 3'!$C$53=Carbon!$B140,'Crop 3'!$V$53*VLOOKUP('Crop 3'!$E$53,Carbon!$AH$4:$AI$10,2,FALSE),0)+IF('Crop 3'!$C$56=Carbon!$B140,'Crop 3'!$V$56*VLOOKUP('Crop 3'!$E$56,Carbon!$AH$4:$AI$10,2,FALSE),0)+IF('Crop 3'!$C$57=Carbon!$B140,'Crop 3'!$V$57*VLOOKUP('Crop 3'!$E$57,Carbon!$AH$4:$AI$10,2,FALSE),0)+IF('Crop 3'!$C$58=Carbon!$B140,'Crop 3'!$V$58*VLOOKUP('Crop 3'!$E$58,Carbon!$AH$4:$AI$10,2,FALSE),0)+IF('Crop 3'!$C$59=Carbon!$B140,'Crop 3'!$V$59*VLOOKUP('Crop 3'!$E$59,Carbon!$AH$4:$AI$10,2,FALSE),0)+IF('Crop 3'!$C$62=Carbon!$B140,'Crop 3'!$V$62*VLOOKUP('Crop 3'!$E$62,Carbon!$AH$4:$AI$10,2,FALSE),0)+IF('Crop 3'!$C$63=Carbon!$B140,'Crop 3'!$V$63*VLOOKUP('Crop 3'!$E$63,Carbon!$AH$4:$AI$10,2,FALSE),0)+IF('Crop 3'!$C$64=Carbon!$B140,'Crop 3'!$V$64*VLOOKUP('Crop 3'!$E$64,Carbon!$AH$4:$AI$10,2,FALSE),0)+IF('Crop 3'!$C$65=Carbon!$B140,'Crop 3'!$V$65*VLOOKUP('Crop 3'!$E$65,Carbon!$AH$4:$AI$10,2,FALSE),0))*$AL$20,2)","v":0},{"$f":"Q140*Inputs!$D$17","v":0},{"$f":"ROUND(T140/Inputs!D$19,2)","v":0},0,null,null,0,{"$f":"W140*Inputs!$D$13","v":0},0,{"$f":"Y140*Inputs!$D$13","v":0},0,{"$f":"AA140*Inputs!$D$13","v":0},{"$f":"ROUND(AD140/Inputs!D$19,2)","v":0},0]
[null,{"$f":"Defaults!AH107","v":"Select Max"},{"$f":"ROUND((IF('Crop 1'!$C$14=Carbon!$B141,'Crop 1'!$L$14*VLOOKUP('Crop 1'!$E$14,Carbon!$AH$4:$AI$10,2,FALSE),0)+IF('Crop 1'!$C$15=Carbon!$B141,'Crop 1'!$L$15*VLOOKUP('Crop 1'!$E$15,Carbon!$AH$4:$AI$10,2,FALSE),0)+IF('Crop 1'!$C$16=Carbon!$B141,'Crop 1'!$L$16*VLOOKUP('Crop 1'!$E$16,Carbon!$AH$4:$AI$10,2,FALSE),0)+IF('Crop 1'!$C$19=Carbon!$B141,'Crop 1'!$L$19*VLOOKUP('Crop 1'!$E$19,Carbon!$AH$4:$AI$10,2,FALSE),0)+IF('Crop 1'!$C$20=Carbon!$B141,'Crop 1'!$L$20*VLOOKUP('Crop 1'!$E$20,Carbon!$AH$4:$AI$10,2,FALSE),0)+IF('Crop 1'!$C$21=Carbon!$B141,'Crop 1'!$L$21*VLOOKUP('Crop 1'!$E$21,Carbon!$AH$4:$AI$10,2,FALSE),0)+IF('Crop 1'!$C$49=Carbon!$B141,'Crop 1'!$L$49*VLOOKUP('Crop 1'!$E$49,Carbon!$AH$4:$AI$10,2,FALSE),0)+IF('Crop 1'!$C$50=Carbon!$B141,'Crop 1'!$L$50*VLOOKUP('Crop 1'!$E$50,Carbon!$AH$4:$AI$10,2,FALSE),0)+IF('Crop 1'!$C$51=Carbon!$B141,'Crop 1'!$L$51*VLOOKUP('Crop 1'!$E$51,Carbon!$AH$4:$AI$10,2,FALSE),0)+IF('Crop 1'!$C$52=Carbon!$B141,'Crop 1'!$L$52*VLOOKUP('Crop 1'!$E$52,Carbon!$AH$4:$AI$10,2,FALSE),0)+IF('Crop 1'!$C$53=Carbon!$B141,'Crop 1'!$L$53*VLOOKUP('Crop 1'!$E$53,Carbon!$AH$4:$AI$10,2,FALSE),0)+IF('Crop 1'!$C$56=Carbon!$B141,'Crop 1'!$L$56*VLOOKUP('Crop 1'!$E$56,Carbon!$AH$4:$AI$10,2,FALSE),0)+IF('Crop 1'!$C$57=Carbon!$B141,'Crop 1'!$L$57*VLOOKUP('Crop 1'!$E$57,Carbon!$AH$4:$AI$10,2,FALSE),0)+IF('Crop 1'!$C$58=Carbon!$B141,'Crop 1'!$L$58*VLOOKUP('Crop 1'!$E$58,Carbon!$AH$4:$AI$10,2,FALSE),0)+IF('Crop 1'!$C$59=Carbon!$B141,'Crop 1'!$L$59*VLOOKUP('Crop 1'!$E$59,Carbon!$AH$4:$AI$10,2,FALSE),0)+IF('Crop 1'!$C$62=Carbon!$B141,'Crop 1'!$L$62*VLOOKUP('Crop 1'!$E$62,Carbon!$AH$4:$AI$10,2,FALSE),0)+IF('Crop 1'!$C$63=Carbon!$B141,'Crop 1'!$L$63*VLOOKUP('Crop 1'!$E$63,Carbon!$AH$4:$AI$10,2,FALSE),0)+IF('Crop 1'!$C$64=Carbon!$B141,'Crop 1'!$L$64*VLOOKUP('Crop 1'!$E$64,Carbon!$AH$4:$AI$10,2,FALSE),0)+IF('Crop 1'!$C$65=Carbon!$B141,'Crop 1'!$L$65*VLOOKUP('Crop 1'!$E$65,Carbon!$AH$4:$AI$10,2,FALSE),0))*$AL$20,2)","v":0},{"$f":"C141*Inputs!$D$13","v":0},{"$f":"ROUND((IF('Crop 2'!$C$14=Carbon!$B141,'Crop 2'!$L$14*VLOOKUP('Crop 2'!$E$14,Carbon!$AH$4:$AI$10,2,FALSE),0)+IF('Crop 2'!$C$15=Carbon!$B141,'Crop 2'!$L$15*VLOOKUP('Crop 2'!$E$15,Carbon!$AH$4:$AI$10,2,FALSE),0)+IF('Crop 2'!$C$16=Carbon!$B141,'Crop 2'!$L$16*VLOOKUP('Crop 2'!$E$16,Carbon!$AH$4:$AI$10,2,FALSE),0)+IF('Crop 2'!$C$19=Carbon!$B141,'Crop 2'!$L$19*VLOOKUP('Crop 2'!$E$19,Carbon!$AH$4:$AI$10,2,FALSE),0)+IF('Crop 2'!$C$20=Carbon!$B141,'Crop 2'!$L$20*VLOOKUP('Crop 2'!$E$20,Carbon!$AH$4:$AI$10,2,FALSE),0)+IF('Crop 2'!$C$21=Carbon!$B141,'Crop 2'!$L$21*VLOOKUP('Crop 2'!$E$21,Carbon!$AH$4:$AI$10,2,FALSE),0)+IF('Crop 2'!$C$49=Carbon!$B141,'Crop 2'!$L$49*VLOOKUP('Crop 2'!$E$49,Carbon!$AH$4:$AI$10,2,FALSE),0)+IF('Crop 2'!$C$50=Carbon!$B141,'Crop 2'!$L$50*VLOOKUP('Crop 2'!$E$50,Carbon!$AH$4:$AI$10,2,FALSE),0)+IF('Crop 2'!$C$51=Carbon!$B141,'Crop 2'!$L$51*VLOOKUP('Crop 2'!$E$51,Carbon!$AH$4:$AI$10,2,FALSE),0)+IF('Crop 2'!$C$52=Carbon!$B141,'Crop 2'!$L$52*VLOOKUP('Crop 2'!$E$52,Carbon!$AH$4:$AI$10,2,FALSE),0)+IF('Crop 2'!$C$53=Carbon!$B141,'Crop 2'!$L$53*VLOOKUP('Crop 2'!$E$53,Carbon!$AH$4:$AI$10,2,FALSE),0)+IF('Crop 2'!$C$56=Carbon!$B141,'Crop 2'!$L$56*VLOOKUP('Crop 2'!$E$56,Carbon!$AH$4:$AI$10,2,FALSE),0)+IF('Crop 2'!$C$57=Carbon!$B141,'Crop 2'!$L$57*VLOOKUP('Crop 2'!$E$57,Carbon!$AH$4:$AI$10,2,FALSE),0)+IF('Crop 2'!$C$58=Carbon!$B141,'Crop 2'!$L$58*VLOOKUP('Crop 2'!$E$58,Carbon!$AH$4:$AI$10,2,FALSE),0)+IF('Crop 2'!$C$59=Carbon!$B141,'Crop 2'!$L$59*VLOOKUP('Crop 2'!$E$59,Carbon!$AH$4:$AI$10,2,FALSE),0)+IF('Crop 2'!$C$62=Carbon!$B141,'Crop 2'!$L$62*VLOOKUP('Crop 2'!$E$62,Carbon!$AH$4:$AI$10,2,FALSE),0)+IF('Crop 2'!$C$63=Carbon!$B141,'Crop 2'!$L$63*VLOOKUP('Crop 2'!$E$63,Carbon!$AH$4:$AI$10,2,FALSE),0)+IF('Crop 2'!$C$64=Carbon!$B141,'Crop 2'!$L$64*VLOOKUP('Crop 2'!$E$64,Carbon!$AH$4:$AI$10,2,FALSE),0)+IF('Crop 2'!$C$65=Carbon!$B141,'Crop 2'!$L$65*VLOOKUP('Crop 2'!$E$65,Carbon!$AH$4:$AI$10,2,FALSE),0))*$AL$20,2)","v":0},{"$f":"E141*Inputs!$D$15","v":0},{"$f":"ROUND((IF('Crop 3'!$C$14=Carbon!$B141,'Crop 3'!$L$14*VLOOKUP('Crop 3'!$E$14,Carbon!$AH$4:$AI$10,2,FALSE),0)+IF('Crop 3'!$C$15=Carbon!$B141,'Crop 3'!$L$15*VLOOKUP('Crop 3'!$E$15,Carbon!$AH$4:$AI$10,2,FALSE),0)+IF('Crop 3'!$C$16=Carbon!$B141,'Crop 3'!$L$16*VLOOKUP('Crop 3'!$E$16,Carbon!$AH$4:$AI$10,2,FALSE),0)+IF('Crop 3'!$C$19=Carbon!$B141,'Crop 3'!$L$19*VLOOKUP('Crop 3'!$E$19,Carbon!$AH$4:$AI$10,2,FALSE),0)+IF('Crop 3'!$C$20=Carbon!$B141,'Crop 3'!$L$20*VLOOKUP('Crop 3'!$E$20,Carbon!$AH$4:$AI$10,2,FALSE),0)+IF('Crop 3'!$C$21=Carbon!$B141,'Crop 3'!$L$21*VLOOKUP('Crop 3'!$E$21,Carbon!$AH$4:$AI$10,2,FALSE),0)+IF('Crop 3'!$C$49=Carbon!$B141,'Crop 3'!$L$49*VLOOKUP('Crop 3'!$E$49,Carbon!$AH$4:$AI$10,2,FALSE),0)+IF('Crop 3'!$C$50=Carbon!$B141,'Crop 3'!$L$50*VLOOKUP('Crop 3'!$E$50,Carbon!$AH$4:$AI$10,2,FALSE),0)+IF('Crop 3'!$C$51=Carbon!$B141,'Crop 3'!$L$51*VLOOKUP('Crop 3'!$E$51,Carbon!$AH$4:$AI$10,2,FALSE),0)+IF('Crop 3'!$C$52=Carbon!$B141,'Crop 3'!$L$52*VLOOKUP('Crop 3'!$E$52,Carbon!$AH$4:$AI$10,2,FALSE),0)+IF('Crop 3'!$C$53=Carbon!$B141,'Crop 3'!$L$53*VLOOKUP('Crop 3'!$E$53,Carbon!$AH$4:$AI$10,2,FALSE),0)+IF('Crop 3'!$C$56=Carbon!$B141,'Crop 3'!$L$56*VLOOKUP('Crop 3'!$E$56,Carbon!$AH$4:$AI$10,2,FALSE),0)+IF('Crop 3'!$C$57=Carbon!$B141,'Crop 3'!$L$57*VLOOKUP('Crop 3'!$E$57,Carbon!$AH$4:$AI$10,2,FALSE),0)+IF('Crop 3'!$C$58=Carbon!$B141,'Crop 3'!$L$58*VLOOKUP('Crop 3'!$E$58,Carbon!$AH$4:$AI$10,2,FALSE),0)+IF('Crop 3'!$C$59=Carbon!$B141,'Crop 3'!$L$59*VLOOKUP('Crop 3'!$E$59,Carbon!$AH$4:$AI$10,2,FALSE),0)+IF('Crop 3'!$C$62=Carbon!$B141,'Crop 3'!$L$62*VLOOKUP('Crop 3'!$E$62,Carbon!$AH$4:$AI$10,2,FALSE),0)+IF('Crop 3'!$C$63=Carbon!$B141,'Crop 3'!$L$63*VLOOKUP('Crop 3'!$E$63,Carbon!$AH$4:$AI$10,2,FALSE),0)+IF('Crop 3'!$C$64=Carbon!$B141,'Crop 3'!$L$64*VLOOKUP('Crop 3'!$E$64,Carbon!$AH$4:$AI$10,2,FALSE),0)+IF('Crop 3'!$C$65=Carbon!$B141,'Crop 3'!$L$65*VLOOKUP('Crop 3'!$E$65,Carbon!$AH$4:$AI$10,2,FALSE),0))*$AL$20,2)","v":0},{"$f":"G141*Inputs!$D$17","v":0},{"$f":"ROUND(J141/Inputs!D$19,2)","v":0},0,null,null,{"$f":"ROUND((IF('Crop 1'!$C$14=Carbon!$B141,'Crop 1'!$V$14*VLOOKUP('Crop 1'!$E$14,Carbon!$AH$4:$AI$10,2,FALSE),0)+IF('Crop 1'!$C$15=Carbon!$B141,'Crop 1'!$V$15*VLOOKUP('Crop 1'!$E$15,Carbon!$AH$4:$AI$10,2,FALSE),0)+IF('Crop 1'!$C$16=Carbon!$B141,'Crop 1'!$V$16*VLOOKUP('Crop 1'!$E$16,Carbon!$AH$4:$AI$10,2,FALSE),0)+IF('Crop 1'!$C$19=Carbon!$B141,'Crop 1'!$V$19*VLOOKUP('Crop 1'!$E$19,Carbon!$AH$4:$AI$10,2,FALSE),0)+IF('Crop 1'!$C$20=Carbon!$B141,'Crop 1'!$V$20*VLOOKUP('Crop 1'!$E$20,Carbon!$AH$4:$AI$10,2,FALSE),0)+IF('Crop 1'!$C$21=Carbon!$B141,'Crop 1'!$V$21*VLOOKUP('Crop 1'!$E$21,Carbon!$AH$4:$AI$10,2,FALSE),0)+IF('Crop 1'!$C$49=Carbon!$B141,'Crop 1'!$V$49*VLOOKUP('Crop 1'!$E$49,Carbon!$AH$4:$AI$10,2,FALSE),0)+IF('Crop 1'!$C$50=Carbon!$B141,'Crop 1'!$V$50*VLOOKUP('Crop 1'!$E$50,Carbon!$AH$4:$AI$10,2,FALSE),0)+IF('Crop 1'!$C$51=Carbon!$B141,'Crop 1'!$V$51*VLOOKUP('Crop 1'!$E$51,Carbon!$AH$4:$AI$10,2,FALSE),0)+IF('Crop 1'!$C$52=Carbon!$B141,'Crop 1'!$V$52*VLOOKUP('Crop 1'!$E$52,Carbon!$AH$4:$AI$10,2,FALSE),0)+IF('Crop 1'!$C$53=Carbon!$B141,'Crop 1'!$V$53*VLOOKUP('Crop 1'!$E$53,Carbon!$AH$4:$AI$10,2,FALSE),0)+IF('Crop 1'!$C$56=Carbon!$B141,'Crop 1'!$V$56*VLOOKUP('Crop 1'!$E$56,Carbon!$AH$4:$AI$10,2,FALSE),0)+IF('Crop 1'!$C$57=Carbon!$B141,'Crop 1'!$V$57*VLOOKUP('Crop 1'!$E$57,Carbon!$AH$4:$AI$10,2,FALSE),0)+IF('Crop 1'!$C$58=Carbon!$B141,'Crop 1'!$V$58*VLOOKUP('Crop 1'!$E$58,Carbon!$AH$4:$AI$10,2,FALSE),0)+IF('Crop 1'!$C$59=Carbon!$B141,'Crop 1'!$V$59*VLOOKUP('Crop 1'!$E$59,Carbon!$AH$4:$AI$10,2,FALSE),0)+IF('Crop 1'!$C$62=Carbon!$B141,'Crop 1'!$V$62*VLOOKUP('Crop 1'!$E$62,Carbon!$AH$4:$AI$10,2,FALSE),0)+IF('Crop 1'!$C$63=Carbon!$B141,'Crop 1'!$V$63*VLOOKUP('Crop 1'!$E$63,Carbon!$AH$4:$AI$10,2,FALSE),0)+IF('Crop 1'!$C$64=Carbon!$B141,'Crop 1'!$V$64*VLOOKUP('Crop 1'!$E$64,Carbon!$AH$4:$AI$10,2,FALSE),0)+IF('Crop 1'!$C$65=Carbon!$B141,'Crop 1'!$V$65*VLOOKUP('Crop 1'!$E$65,Carbon!$AH$4:$AI$10,2,FALSE),0))*$AL$20,2)","v":0},{"$f":"M141*Inputs!$D$13","v":0},{"$f":"ROUND((IF('Crop 2'!$C$14=Carbon!$B141,'Crop 2'!$V$14*VLOOKUP('Crop 2'!$E$14,Carbon!$AH$4:$AI$10,2,FALSE),0)+IF('Crop 2'!$C$15=Carbon!$B141,'Crop 2'!$V$15*VLOOKUP('Crop 2'!$E$15,Carbon!$AH$4:$AI$10,2,FALSE),0)+IF('Crop 2'!$C$16=Carbon!$B141,'Crop 2'!$V$16*VLOOKUP('Crop 2'!$E$16,Carbon!$AH$4:$AI$10,2,FALSE),0)+IF('Crop 2'!$C$19=Carbon!$B141,'Crop 2'!$V$19*VLOOKUP('Crop 2'!$E$19,Carbon!$AH$4:$AI$10,2,FALSE),0)+IF('Crop 2'!$C$20=Carbon!$B141,'Crop 2'!$V$20*VLOOKUP('Crop 2'!$E$20,Carbon!$AH$4:$AI$10,2,FALSE),0)+IF('Crop 2'!$C$21=Carbon!$B141,'Crop 2'!$V$21*VLOOKUP('Crop 2'!$E$21,Carbon!$AH$4:$AI$10,2,FALSE),0)+IF('Crop 2'!$C$49=Carbon!$B141,'Crop 2'!$V$49*VLOOKUP('Crop 2'!$E$49,Carbon!$AH$4:$AI$10,2,FALSE),0)+IF('Crop 2'!$C$50=Carbon!$B141,'Crop 2'!$V$50*VLOOKUP('Crop 2'!$E$50,Carbon!$AH$4:$AI$10,2,FALSE),0)+IF('Crop 2'!$C$51=Carbon!$B141,'Crop 2'!$V$51*VLOOKUP('Crop 2'!$E$51,Carbon!$AH$4:$AI$10,2,FALSE),0)+IF('Crop 2'!$C$52=Carbon!$B141,'Crop 2'!$V$52*VLOOKUP('Crop 2'!$E$52,Carbon!$AH$4:$AI$10,2,FALSE),0)+IF('Crop 2'!$C$53=Carbon!$B141,'Crop 2'!$V$53*VLOOKUP('Crop 2'!$E$53,Carbon!$AH$4:$AI$10,2,FALSE),0)+IF('Crop 2'!$C$56=Carbon!$B141,'Crop 2'!$V$56*VLOOKUP('Crop 2'!$E$56,Carbon!$AH$4:$AI$10,2,FALSE),0)+IF('Crop 2'!$C$57=Carbon!$B141,'Crop 2'!$V$57*VLOOKUP('Crop 2'!$E$57,Carbon!$AH$4:$AI$10,2,FALSE),0)+IF('Crop 2'!$C$58=Carbon!$B141,'Crop 2'!$V$58*VLOOKUP('Crop 2'!$E$58,Carbon!$AH$4:$AI$10,2,FALSE),0)+IF('Crop 2'!$C$59=Carbon!$B141,'Crop 2'!$V$59*VLOOKUP('Crop 2'!$E$59,Carbon!$AH$4:$AI$10,2,FALSE),0)+IF('Crop 2'!$C$62=Carbon!$B141,'Crop 2'!$V$62*VLOOKUP('Crop 2'!$E$62,Carbon!$AH$4:$AI$10,2,FALSE),0)+IF('Crop 2'!$C$63=Carbon!$B141,'Crop 2'!$V$63*VLOOKUP('Crop 2'!$E$63,Carbon!$AH$4:$AI$10,2,FALSE),0)+IF('Crop 2'!$C$64=Carbon!$B141,'Crop 2'!$V$64*VLOOKUP('Crop 2'!$E$64,Carbon!$AH$4:$AI$10,2,FALSE),0)+IF('Crop 2'!$C$65=Carbon!$B141,'Crop 2'!$V$65*VLOOKUP('Crop 2'!$E$65,Carbon!$AH$4:$AI$10,2,FALSE),0))*$AL$20,2)","v":0},{"$f":"O141*Inputs!$D$15","v":0},{"$f":"ROUND((IF('Crop 3'!$C$14=Carbon!$B141,'Crop 3'!$V$14*VLOOKUP('Crop 3'!$E$14,Carbon!$AH$4:$AI$10,2,FALSE),0)+IF('Crop 3'!$C$15=Carbon!$B141,'Crop 3'!$V$15*VLOOKUP('Crop 3'!$E$15,Carbon!$AH$4:$AI$10,2,FALSE),0)+IF('Crop 3'!$C$16=Carbon!$B141,'Crop 3'!$V$16*VLOOKUP('Crop 3'!$E$16,Carbon!$AH$4:$AI$10,2,FALSE),0)+IF('Crop 3'!$C$19=Carbon!$B141,'Crop 3'!$V$19*VLOOKUP('Crop 3'!$E$19,Carbon!$AH$4:$AI$10,2,FALSE),0)+IF('Crop 3'!$C$20=Carbon!$B141,'Crop 3'!$V$20*VLOOKUP('Crop 3'!$E$20,Carbon!$AH$4:$AI$10,2,FALSE),0)+IF('Crop 3'!$C$21=Carbon!$B141,'Crop 3'!$V$21*VLOOKUP('Crop 3'!$E$21,Carbon!$AH$4:$AI$10,2,FALSE),0)+IF('Crop 3'!$C$49=Carbon!$B141,'Crop 3'!$V$49*VLOOKUP('Crop 3'!$E$49,Carbon!$AH$4:$AI$10,2,FALSE),0)+IF('Crop 3'!$C$50=Carbon!$B141,'Crop 3'!$V$50*VLOOKUP('Crop 3'!$E$50,Carbon!$AH$4:$AI$10,2,FALSE),0)+IF('Crop 3'!$C$51=Carbon!$B141,'Crop 3'!$V$51*VLOOKUP('Crop 3'!$E$51,Carbon!$AH$4:$AI$10,2,FALSE),0)+IF('Crop 3'!$C$52=Carbon!$B141,'Crop 3'!$V$52*VLOOKUP('Crop 3'!$E$52,Carbon!$AH$4:$AI$10,2,FALSE),0)+IF('Crop 3'!$C$53=Carbon!$B141,'Crop 3'!$V$53*VLOOKUP('Crop 3'!$E$53,Carbon!$AH$4:$AI$10,2,FALSE),0)+IF('Crop 3'!$C$56=Carbon!$B141,'Crop 3'!$V$56*VLOOKUP('Crop 3'!$E$56,Carbon!$AH$4:$AI$10,2,FALSE),0)+IF('Crop 3'!$C$57=Carbon!$B141,'Crop 3'!$V$57*VLOOKUP('Crop 3'!$E$57,Carbon!$AH$4:$AI$10,2,FALSE),0)+IF('Crop 3'!$C$58=Carbon!$B141,'Crop 3'!$V$58*VLOOKUP('Crop 3'!$E$58,Carbon!$AH$4:$AI$10,2,FALSE),0)+IF('Crop 3'!$C$59=Carbon!$B141,'Crop 3'!$V$59*VLOOKUP('Crop 3'!$E$59,Carbon!$AH$4:$AI$10,2,FALSE),0)+IF('Crop 3'!$C$62=Carbon!$B141,'Crop 3'!$V$62*VLOOKUP('Crop 3'!$E$62,Carbon!$AH$4:$AI$10,2,FALSE),0)+IF('Crop 3'!$C$63=Carbon!$B141,'Crop 3'!$V$63*VLOOKUP('Crop 3'!$E$63,Carbon!$AH$4:$AI$10,2,FALSE),0)+IF('Crop 3'!$C$64=Carbon!$B141,'Crop 3'!$V$64*VLOOKUP('Crop 3'!$E$64,Carbon!$AH$4:$AI$10,2,FALSE),0)+IF('Crop 3'!$C$65=Carbon!$B141,'Crop 3'!$V$65*VLOOKUP('Crop 3'!$E$65,Carbon!$AH$4:$AI$10,2,FALSE),0))*$AL$20,2)","v":0},{"$f":"Q141*Inputs!$D$17","v":0},{"$f":"ROUND(T141/Inputs!D$19,2)","v":0},0,null,null,0,{"$f":"W141*Inputs!$D$13","v":0},0,{"$f":"Y141*Inputs!$D$13","v":0},0,{"$f":"AA141*Inputs!$D$13","v":0},{"$f":"ROUND(AD141/Inputs!D$19,2)","v":0},0]
[null,{"$f":"Defaults!AH108","v":"Sequence"},{"$f":"ROUND((IF('Crop 1'!$C$14=Carbon!$B142,'Crop 1'!$L$14*VLOOKUP('Crop 1'!$E$14,Carbon!$AH$4:$AI$10,2,FALSE),0)+IF('Crop 1'!$C$15=Carbon!$B142,'Crop 1'!$L$15*VLOOKUP('Crop 1'!$E$15,Carbon!$AH$4:$AI$10,2,FALSE),0)+IF('Crop 1'!$C$16=Carbon!$B142,'Crop 1'!$L$16*VLOOKUP('Crop 1'!$E$16,Carbon!$AH$4:$AI$10,2,FALSE),0)+IF('Crop 1'!$C$19=Carbon!$B142,'Crop 1'!$L$19*VLOOKUP('Crop 1'!$E$19,Carbon!$AH$4:$AI$10,2,FALSE),0)+IF('Crop 1'!$C$20=Carbon!$B142,'Crop 1'!$L$20*VLOOKUP('Crop 1'!$E$20,Carbon!$AH$4:$AI$10,2,FALSE),0)+IF('Crop 1'!$C$21=Carbon!$B142,'Crop 1'!$L$21*VLOOKUP('Crop 1'!$E$21,Carbon!$AH$4:$AI$10,2,FALSE),0)+IF('Crop 1'!$C$49=Carbon!$B142,'Crop 1'!$L$49*VLOOKUP('Crop 1'!$E$49,Carbon!$AH$4:$AI$10,2,FALSE),0)+IF('Crop 1'!$C$50=Carbon!$B142,'Crop 1'!$L$50*VLOOKUP('Crop 1'!$E$50,Carbon!$AH$4:$AI$10,2,FALSE),0)+IF('Crop 1'!$C$51=Carbon!$B142,'Crop 1'!$L$51*VLOOKUP('Crop 1'!$E$51,Carbon!$AH$4:$AI$10,2,FALSE),0)+IF('Crop 1'!$C$52=Carbon!$B142,'Crop 1'!$L$52*VLOOKUP('Crop 1'!$E$52,Carbon!$AH$4:$AI$10,2,FALSE),0)+IF('Crop 1'!$C$53=Carbon!$B142,'Crop 1'!$L$53*VLOOKUP('Crop 1'!$E$53,Carbon!$AH$4:$AI$10,2,FALSE),0)+IF('Crop 1'!$C$56=Carbon!$B142,'Crop 1'!$L$56*VLOOKUP('Crop 1'!$E$56,Carbon!$AH$4:$AI$10,2,FALSE),0)+IF('Crop 1'!$C$57=Carbon!$B142,'Crop 1'!$L$57*VLOOKUP('Crop 1'!$E$57,Carbon!$AH$4:$AI$10,2,FALSE),0)+IF('Crop 1'!$C$58=Carbon!$B142,'Crop 1'!$L$58*VLOOKUP('Crop 1'!$E$58,Carbon!$AH$4:$AI$10,2,FALSE),0)+IF('Crop 1'!$C$59=Carbon!$B142,'Crop 1'!$L$59*VLOOKUP('Crop 1'!$E$59,Carbon!$AH$4:$AI$10,2,FALSE),0)+IF('Crop 1'!$C$62=Carbon!$B142,'Crop 1'!$L$62*VLOOKUP('Crop 1'!$E$62,Carbon!$AH$4:$AI$10,2,FALSE),0)+IF('Crop 1'!$C$63=Carbon!$B142,'Crop 1'!$L$63*VLOOKUP('Crop 1'!$E$63,Carbon!$AH$4:$AI$10,2,FALSE),0)+IF('Crop 1'!$C$64=Carbon!$B142,'Crop 1'!$L$64*VLOOKUP('Crop 1'!$E$64,Carbon!$AH$4:$AI$10,2,FALSE),0)+IF('Crop 1'!$C$65=Carbon!$B142,'Crop 1'!$L$65*VLOOKUP('Crop 1'!$E$65,Carbon!$AH$4:$AI$10,2,FALSE),0))*$AL$20,2)","v":0},{"$f":"C142*Inputs!$D$13","v":0},{"$f":"ROUND((IF('Crop 2'!$C$14=Carbon!$B142,'Crop 2'!$L$14*VLOOKUP('Crop 2'!$E$14,Carbon!$AH$4:$AI$10,2,FALSE),0)+IF('Crop 2'!$C$15=Carbon!$B142,'Crop 2'!$L$15*VLOOKUP('Crop 2'!$E$15,Carbon!$AH$4:$AI$10,2,FALSE),0)+IF('Crop 2'!$C$16=Carbon!$B142,'Crop 2'!$L$16*VLOOKUP('Crop 2'!$E$16,Carbon!$AH$4:$AI$10,2,FALSE),0)+IF('Crop 2'!$C$19=Carbon!$B142,'Crop 2'!$L$19*VLOOKUP('Crop 2'!$E$19,Carbon!$AH$4:$AI$10,2,FALSE),0)+IF('Crop 2'!$C$20=Carbon!$B142,'Crop 2'!$L$20*VLOOKUP('Crop 2'!$E$20,Carbon!$AH$4:$AI$10,2,FALSE),0)+IF('Crop 2'!$C$21=Carbon!$B142,'Crop 2'!$L$21*VLOOKUP('Crop 2'!$E$21,Carbon!$AH$4:$AI$10,2,FALSE),0)+IF('Crop 2'!$C$49=Carbon!$B142,'Crop 2'!$L$49*VLOOKUP('Crop 2'!$E$49,Carbon!$AH$4:$AI$10,2,FALSE),0)+IF('Crop 2'!$C$50=Carbon!$B142,'Crop 2'!$L$50*VLOOKUP('Crop 2'!$E$50,Carbon!$AH$4:$AI$10,2,FALSE),0)+IF('Crop 2'!$C$51=Carbon!$B142,'Crop 2'!$L$51*VLOOKUP('Crop 2'!$E$51,Carbon!$AH$4:$AI$10,2,FALSE),0)+IF('Crop 2'!$C$52=Carbon!$B142,'Crop 2'!$L$52*VLOOKUP('Crop 2'!$E$52,Carbon!$AH$4:$AI$10,2,FALSE),0)+IF('Crop 2'!$C$53=Carbon!$B142,'Crop 2'!$L$53*VLOOKUP('Crop 2'!$E$53,Carbon!$AH$4:$AI$10,2,FALSE),0)+IF('Crop 2'!$C$56=Carbon!$B142,'Crop 2'!$L$56*VLOOKUP('Crop 2'!$E$56,Carbon!$AH$4:$AI$10,2,FALSE),0)+IF('Crop 2'!$C$57=Carbon!$B142,'Crop 2'!$L$57*VLOOKUP('Crop 2'!$E$57,Carbon!$AH$4:$AI$10,2,FALSE),0)+IF('Crop 2'!$C$58=Carbon!$B142,'Crop 2'!$L$58*VLOOKUP('Crop 2'!$E$58,Carbon!$AH$4:$AI$10,2,FALSE),0)+IF('Crop 2'!$C$59=Carbon!$B142,'Crop 2'!$L$59*VLOOKUP('Crop 2'!$E$59,Carbon!$AH$4:$AI$10,2,FALSE),0)+IF('Crop 2'!$C$62=Carbon!$B142,'Crop 2'!$L$62*VLOOKUP('Crop 2'!$E$62,Carbon!$AH$4:$AI$10,2,FALSE),0)+IF('Crop 2'!$C$63=Carbon!$B142,'Crop 2'!$L$63*VLOOKUP('Crop 2'!$E$63,Carbon!$AH$4:$AI$10,2,FALSE),0)+IF('Crop 2'!$C$64=Carbon!$B142,'Crop 2'!$L$64*VLOOKUP('Crop 2'!$E$64,Carbon!$AH$4:$AI$10,2,FALSE),0)+IF('Crop 2'!$C$65=Carbon!$B142,'Crop 2'!$L$65*VLOOKUP('Crop 2'!$E$65,Carbon!$AH$4:$AI$10,2,FALSE),0))*$AL$20,2)","v":0},{"$f":"E142*Inputs!$D$15","v":0},{"$f":"ROUND((IF('Crop 3'!$C$14=Carbon!$B142,'Crop 3'!$L$14*VLOOKUP('Crop 3'!$E$14,Carbon!$AH$4:$AI$10,2,FALSE),0)+IF('Crop 3'!$C$15=Carbon!$B142,'Crop 3'!$L$15*VLOOKUP('Crop 3'!$E$15,Carbon!$AH$4:$AI$10,2,FALSE),0)+IF('Crop 3'!$C$16=Carbon!$B142,'Crop 3'!$L$16*VLOOKUP('Crop 3'!$E$16,Carbon!$AH$4:$AI$10,2,FALSE),0)+IF('Crop 3'!$C$19=Carbon!$B142,'Crop 3'!$L$19*VLOOKUP('Crop 3'!$E$19,Carbon!$AH$4:$AI$10,2,FALSE),0)+IF('Crop 3'!$C$20=Carbon!$B142,'Crop 3'!$L$20*VLOOKUP('Crop 3'!$E$20,Carbon!$AH$4:$AI$10,2,FALSE),0)+IF('Crop 3'!$C$21=Carbon!$B142,'Crop 3'!$L$21*VLOOKUP('Crop 3'!$E$21,Carbon!$AH$4:$AI$10,2,FALSE),0)+IF('Crop 3'!$C$49=Carbon!$B142,'Crop 3'!$L$49*VLOOKUP('Crop 3'!$E$49,Carbon!$AH$4:$AI$10,2,FALSE),0)+IF('Crop 3'!$C$50=Carbon!$B142,'Crop 3'!$L$50*VLOOKUP('Crop 3'!$E$50,Carbon!$AH$4:$AI$10,2,FALSE),0)+IF('Crop 3'!$C$51=Carbon!$B142,'Crop 3'!$L$51*VLOOKUP('Crop 3'!$E$51,Carbon!$AH$4:$AI$10,2,FALSE),0)+IF('Crop 3'!$C$52=Carbon!$B142,'Crop 3'!$L$52*VLOOKUP('Crop 3'!$E$52,Carbon!$AH$4:$AI$10,2,FALSE),0)+IF('Crop 3'!$C$53=Carbon!$B142,'Crop 3'!$L$53*VLOOKUP('Crop 3'!$E$53,Carbon!$AH$4:$AI$10,2,FALSE),0)+IF('Crop 3'!$C$56=Carbon!$B142,'Crop 3'!$L$56*VLOOKUP('Crop 3'!$E$56,Carbon!$AH$4:$AI$10,2,FALSE),0)+IF('Crop 3'!$C$57=Carbon!$B142,'Crop 3'!$L$57*VLOOKUP('Crop 3'!$E$57,Carbon!$AH$4:$AI$10,2,FALSE),0)+IF('Crop 3'!$C$58=Carbon!$B142,'Crop 3'!$L$58*VLOOKUP('Crop 3'!$E$58,Carbon!$AH$4:$AI$10,2,FALSE),0)+IF('Crop 3'!$C$59=Carbon!$B142,'Crop 3'!$L$59*VLOOKUP('Crop 3'!$E$59,Carbon!$AH$4:$AI$10,2,FALSE),0)+IF('Crop 3'!$C$62=Carbon!$B142,'Crop 3'!$L$62*VLOOKUP('Crop 3'!$E$62,Carbon!$AH$4:$AI$10,2,FALSE),0)+IF('Crop 3'!$C$63=Carbon!$B142,'Crop 3'!$L$63*VLOOKUP('Crop 3'!$E$63,Carbon!$AH$4:$AI$10,2,FALSE),0)+IF('Crop 3'!$C$64=Carbon!$B142,'Crop 3'!$L$64*VLOOKUP('Crop 3'!$E$64,Carbon!$AH$4:$AI$10,2,FALSE),0)+IF('Crop 3'!$C$65=Carbon!$B142,'Crop 3'!$L$65*VLOOKUP('Crop 3'!$E$65,Carbon!$AH$4:$AI$10,2,FALSE),0))*$AL$20,2)","v":0},{"$f":"G142*Inputs!$D$17","v":0},{"$f":"ROUND(J142/Inputs!D$19,2)","v":0},0,null,null,{"$f":"ROUND((IF('Crop 1'!$C$14=Carbon!$B142,'Crop 1'!$V$14*VLOOKUP('Crop 1'!$E$14,Carbon!$AH$4:$AI$10,2,FALSE),0)+IF('Crop 1'!$C$15=Carbon!$B142,'Crop 1'!$V$15*VLOOKUP('Crop 1'!$E$15,Carbon!$AH$4:$AI$10,2,FALSE),0)+IF('Crop 1'!$C$16=Carbon!$B142,'Crop 1'!$V$16*VLOOKUP('Crop 1'!$E$16,Carbon!$AH$4:$AI$10,2,FALSE),0)+IF('Crop 1'!$C$19=Carbon!$B142,'Crop 1'!$V$19*VLOOKUP('Crop 1'!$E$19,Carbon!$AH$4:$AI$10,2,FALSE),0)+IF('Crop 1'!$C$20=Carbon!$B142,'Crop 1'!$V$20*VLOOKUP('Crop 1'!$E$20,Carbon!$AH$4:$AI$10,2,FALSE),0)+IF('Crop 1'!$C$21=Carbon!$B142,'Crop 1'!$V$21*VLOOKUP('Crop 1'!$E$21,Carbon!$AH$4:$AI$10,2,FALSE),0)+IF('Crop 1'!$C$49=Carbon!$B142,'Crop 1'!$V$49*VLOOKUP('Crop 1'!$E$49,Carbon!$AH$4:$AI$10,2,FALSE),0)+IF('Crop 1'!$C$50=Carbon!$B142,'Crop 1'!$V$50*VLOOKUP('Crop 1'!$E$50,Carbon!$AH$4:$AI$10,2,FALSE),0)+IF('Crop 1'!$C$51=Carbon!$B142,'Crop 1'!$V$51*VLOOKUP('Crop 1'!$E$51,Carbon!$AH$4:$AI$10,2,FALSE),0)+IF('Crop 1'!$C$52=Carbon!$B142,'Crop 1'!$V$52*VLOOKUP('Crop 1'!$E$52,Carbon!$AH$4:$AI$10,2,FALSE),0)+IF('Crop 1'!$C$53=Carbon!$B142,'Crop 1'!$V$53*VLOOKUP('Crop 1'!$E$53,Carbon!$AH$4:$AI$10,2,FALSE),0)+IF('Crop 1'!$C$56=Carbon!$B142,'Crop 1'!$V$56*VLOOKUP('Crop 1'!$E$56,Carbon!$AH$4:$AI$10,2,FALSE),0)+IF('Crop 1'!$C$57=Carbon!$B142,'Crop 1'!$V$57*VLOOKUP('Crop 1'!$E$57,Carbon!$AH$4:$AI$10,2,FALSE),0)+IF('Crop 1'!$C$58=Carbon!$B142,'Crop 1'!$V$58*VLOOKUP('Crop 1'!$E$58,Carbon!$AH$4:$AI$10,2,FALSE),0)+IF('Crop 1'!$C$59=Carbon!$B142,'Crop 1'!$V$59*VLOOKUP('Crop 1'!$E$59,Carbon!$AH$4:$AI$10,2,FALSE),0)+IF('Crop 1'!$C$62=Carbon!$B142,'Crop 1'!$V$62*VLOOKUP('Crop 1'!$E$62,Carbon!$AH$4:$AI$10,2,FALSE),0)+IF('Crop 1'!$C$63=Carbon!$B142,'Crop 1'!$V$63*VLOOKUP('Crop 1'!$E$63,Carbon!$AH$4:$AI$10,2,FALSE),0)+IF('Crop 1'!$C$64=Carbon!$B142,'Crop 1'!$V$64*VLOOKUP('Crop 1'!$E$64,Carbon!$AH$4:$AI$10,2,FALSE),0)+IF('Crop 1'!$C$65=Carbon!$B142,'Crop 1'!$V$65*VLOOKUP('Crop 1'!$E$65,Carbon!$AH$4:$AI$10,2,FALSE),0))*$AL$20,2)","v":0},{"$f":"M142*Inputs!$D$13","v":0},{"$f":"ROUND((IF('Crop 2'!$C$14=Carbon!$B142,'Crop 2'!$V$14*VLOOKUP('Crop 2'!$E$14,Carbon!$AH$4:$AI$10,2,FALSE),0)+IF('Crop 2'!$C$15=Carbon!$B142,'Crop 2'!$V$15*VLOOKUP('Crop 2'!$E$15,Carbon!$AH$4:$AI$10,2,FALSE),0)+IF('Crop 2'!$C$16=Carbon!$B142,'Crop 2'!$V$16*VLOOKUP('Crop 2'!$E$16,Carbon!$AH$4:$AI$10,2,FALSE),0)+IF('Crop 2'!$C$19=Carbon!$B142,'Crop 2'!$V$19*VLOOKUP('Crop 2'!$E$19,Carbon!$AH$4:$AI$10,2,FALSE),0)+IF('Crop 2'!$C$20=Carbon!$B142,'Crop 2'!$V$20*VLOOKUP('Crop 2'!$E$20,Carbon!$AH$4:$AI$10,2,FALSE),0)+IF('Crop 2'!$C$21=Carbon!$B142,'Crop 2'!$V$21*VLOOKUP('Crop 2'!$E$21,Carbon!$AH$4:$AI$10,2,FALSE),0)+IF('Crop 2'!$C$49=Carbon!$B142,'Crop 2'!$V$49*VLOOKUP('Crop 2'!$E$49,Carbon!$AH$4:$AI$10,2,FALSE),0)+IF('Crop 2'!$C$50=Carbon!$B142,'Crop 2'!$V$50*VLOOKUP('Crop 2'!$E$50,Carbon!$AH$4:$AI$10,2,FALSE),0)+IF('Crop 2'!$C$51=Carbon!$B142,'Crop 2'!$V$51*VLOOKUP('Crop 2'!$E$51,Carbon!$AH$4:$AI$10,2,FALSE),0)+IF('Crop 2'!$C$52=Carbon!$B142,'Crop 2'!$V$52*VLOOKUP('Crop 2'!$E$52,Carbon!$AH$4:$AI$10,2,FALSE),0)+IF('Crop 2'!$C$53=Carbon!$B142,'Crop 2'!$V$53*VLOOKUP('Crop 2'!$E$53,Carbon!$AH$4:$AI$10,2,FALSE),0)+IF('Crop 2'!$C$56=Carbon!$B142,'Crop 2'!$V$56*VLOOKUP('Crop 2'!$E$56,Carbon!$AH$4:$AI$10,2,FALSE),0)+IF('Crop 2'!$C$57=Carbon!$B142,'Crop 2'!$V$57*VLOOKUP('Crop 2'!$E$57,Carbon!$AH$4:$AI$10,2,FALSE),0)+IF('Crop 2'!$C$58=Carbon!$B142,'Crop 2'!$V$58*VLOOKUP('Crop 2'!$E$58,Carbon!$AH$4:$AI$10,2,FALSE),0)+IF('Crop 2'!$C$59=Carbon!$B142,'Crop 2'!$V$59*VLOOKUP('Crop 2'!$E$59,Carbon!$AH$4:$AI$10,2,FALSE),0)+IF('Crop 2'!$C$62=Carbon!$B142,'Crop 2'!$V$62*VLOOKUP('Crop 2'!$E$62,Carbon!$AH$4:$AI$10,2,FALSE),0)+IF('Crop 2'!$C$63=Carbon!$B142,'Crop 2'!$V$63*VLOOKUP('Crop 2'!$E$63,Carbon!$AH$4:$AI$10,2,FALSE),0)+IF('Crop 2'!$C$64=Carbon!$B142,'Crop 2'!$V$64*VLOOKUP('Crop 2'!$E$64,Carbon!$AH$4:$AI$10,2,FALSE),0)+IF('Crop 2'!$C$65=Carbon!$B142,'Crop 2'!$V$65*VLOOKUP('Crop 2'!$E$65,Carbon!$AH$4:$AI$10,2,FALSE),0))*$AL$20,2)","v":0},{"$f":"O142*Inputs!$D$15","v":0},{"$f":"ROUND((IF('Crop 3'!$C$14=Carbon!$B142,'Crop 3'!$V$14*VLOOKUP('Crop 3'!$E$14,Carbon!$AH$4:$AI$10,2,FALSE),0)+IF('Crop 3'!$C$15=Carbon!$B142,'Crop 3'!$V$15*VLOOKUP('Crop 3'!$E$15,Carbon!$AH$4:$AI$10,2,FALSE),0)+IF('Crop 3'!$C$16=Carbon!$B142,'Crop 3'!$V$16*VLOOKUP('Crop 3'!$E$16,Carbon!$AH$4:$AI$10,2,FALSE),0)+IF('Crop 3'!$C$19=Carbon!$B142,'Crop 3'!$V$19*VLOOKUP('Crop 3'!$E$19,Carbon!$AH$4:$AI$10,2,FALSE),0)+IF('Crop 3'!$C$20=Carbon!$B142,'Crop 3'!$V$20*VLOOKUP('Crop 3'!$E$20,Carbon!$AH$4:$AI$10,2,FALSE),0)+IF('Crop 3'!$C$21=Carbon!$B142,'Crop 3'!$V$21*VLOOKUP('Crop 3'!$E$21,Carbon!$AH$4:$AI$10,2,FALSE),0)+IF('Crop 3'!$C$49=Carbon!$B142,'Crop 3'!$V$49*VLOOKUP('Crop 3'!$E$49,Carbon!$AH$4:$AI$10,2,FALSE),0)+IF('Crop 3'!$C$50=Carbon!$B142,'Crop 3'!$V$50*VLOOKUP('Crop 3'!$E$50,Carbon!$AH$4:$AI$10,2,FALSE),0)+IF('Crop 3'!$C$51=Carbon!$B142,'Crop 3'!$V$51*VLOOKUP('Crop 3'!$E$51,Carbon!$AH$4:$AI$10,2,FALSE),0)+IF('Crop 3'!$C$52=Carbon!$B142,'Crop 3'!$V$52*VLOOKUP('Crop 3'!$E$52,Carbon!$AH$4:$AI$10,2,FALSE),0)+IF('Crop 3'!$C$53=Carbon!$B142,'Crop 3'!$V$53*VLOOKUP('Crop 3'!$E$53,Carbon!$AH$4:$AI$10,2,FALSE),0)+IF('Crop 3'!$C$56=Carbon!$B142,'Crop 3'!$V$56*VLOOKUP('Crop 3'!$E$56,Carbon!$AH$4:$AI$10,2,FALSE),0)+IF('Crop 3'!$C$57=Carbon!$B142,'Crop 3'!$V$57*VLOOKUP('Crop 3'!$E$57,Carbon!$AH$4:$AI$10,2,FALSE),0)+IF('Crop 3'!$C$58=Carbon!$B142,'Crop 3'!$V$58*VLOOKUP('Crop 3'!$E$58,Carbon!$AH$4:$AI$10,2,FALSE),0)+IF('Crop 3'!$C$59=Carbon!$B142,'Crop 3'!$V$59*VLOOKUP('Crop 3'!$E$59,Carbon!$AH$4:$AI$10,2,FALSE),0)+IF('Crop 3'!$C$62=Carbon!$B142,'Crop 3'!$V$62*VLOOKUP('Crop 3'!$E$62,Carbon!$AH$4:$AI$10,2,FALSE),0)+IF('Crop 3'!$C$63=Carbon!$B142,'Crop 3'!$V$63*VLOOKUP('Crop 3'!$E$63,Carbon!$AH$4:$AI$10,2,FALSE),0)+IF('Crop 3'!$C$64=Carbon!$B142,'Crop 3'!$V$64*VLOOKUP('Crop 3'!$E$64,Carbon!$AH$4:$AI$10,2,FALSE),0)+IF('Crop 3'!$C$65=Carbon!$B142,'Crop 3'!$V$65*VLOOKUP('Crop 3'!$E$65,Carbon!$AH$4:$AI$10,2,FALSE),0))*$AL$20,2)","v":0},{"$f":"Q142*Inputs!$D$17","v":0},{"$f":"ROUND(T142/Inputs!D$19,2)","v":0},0,null,null,0,{"$f":"W142*Inputs!$D$13","v":0},0,{"$f":"Y142*Inputs!$D$13","v":0},0,{"$f":"AA142*Inputs!$D$13","v":0},{"$f":"ROUND(AD142/Inputs!D$19,2)","v":0},0]
[null,{"$f":"Defaults!AH109","v":"Sharpen"},{"$f":"ROUND((IF('Crop 1'!$C$14=Carbon!$B143,'Crop 1'!$L$14*VLOOKUP('Crop 1'!$E$14,Carbon!$AH$4:$AI$10,2,FALSE),0)+IF('Crop 1'!$C$15=Carbon!$B143,'Crop 1'!$L$15*VLOOKUP('Crop 1'!$E$15,Carbon!$AH$4:$AI$10,2,FALSE),0)+IF('Crop 1'!$C$16=Carbon!$B143,'Crop 1'!$L$16*VLOOKUP('Crop 1'!$E$16,Carbon!$AH$4:$AI$10,2,FALSE),0)+IF('Crop 1'!$C$19=Carbon!$B143,'Crop 1'!$L$19*VLOOKUP('Crop 1'!$E$19,Carbon!$AH$4:$AI$10,2,FALSE),0)+IF('Crop 1'!$C$20=Carbon!$B143,'Crop 1'!$L$20*VLOOKUP('Crop 1'!$E$20,Carbon!$AH$4:$AI$10,2,FALSE),0)+IF('Crop 1'!$C$21=Carbon!$B143,'Crop 1'!$L$21*VLOOKUP('Crop 1'!$E$21,Carbon!$AH$4:$AI$10,2,FALSE),0)+IF('Crop 1'!$C$49=Carbon!$B143,'Crop 1'!$L$49*VLOOKUP('Crop 1'!$E$49,Carbon!$AH$4:$AI$10,2,FALSE),0)+IF('Crop 1'!$C$50=Carbon!$B143,'Crop 1'!$L$50*VLOOKUP('Crop 1'!$E$50,Carbon!$AH$4:$AI$10,2,FALSE),0)+IF('Crop 1'!$C$51=Carbon!$B143,'Crop 1'!$L$51*VLOOKUP('Crop 1'!$E$51,Carbon!$AH$4:$AI$10,2,FALSE),0)+IF('Crop 1'!$C$52=Carbon!$B143,'Crop 1'!$L$52*VLOOKUP('Crop 1'!$E$52,Carbon!$AH$4:$AI$10,2,FALSE),0)+IF('Crop 1'!$C$53=Carbon!$B143,'Crop 1'!$L$53*VLOOKUP('Crop 1'!$E$53,Carbon!$AH$4:$AI$10,2,FALSE),0)+IF('Crop 1'!$C$56=Carbon!$B143,'Crop 1'!$L$56*VLOOKUP('Crop 1'!$E$56,Carbon!$AH$4:$AI$10,2,FALSE),0)+IF('Crop 1'!$C$57=Carbon!$B143,'Crop 1'!$L$57*VLOOKUP('Crop 1'!$E$57,Carbon!$AH$4:$AI$10,2,FALSE),0)+IF('Crop 1'!$C$58=Carbon!$B143,'Crop 1'!$L$58*VLOOKUP('Crop 1'!$E$58,Carbon!$AH$4:$AI$10,2,FALSE),0)+IF('Crop 1'!$C$59=Carbon!$B143,'Crop 1'!$L$59*VLOOKUP('Crop 1'!$E$59,Carbon!$AH$4:$AI$10,2,FALSE),0)+IF('Crop 1'!$C$62=Carbon!$B143,'Crop 1'!$L$62*VLOOKUP('Crop 1'!$E$62,Carbon!$AH$4:$AI$10,2,FALSE),0)+IF('Crop 1'!$C$63=Carbon!$B143,'Crop 1'!$L$63*VLOOKUP('Crop 1'!$E$63,Carbon!$AH$4:$AI$10,2,FALSE),0)+IF('Crop 1'!$C$64=Carbon!$B143,'Crop 1'!$L$64*VLOOKUP('Crop 1'!$E$64,Carbon!$AH$4:$AI$10,2,FALSE),0)+IF('Crop 1'!$C$65=Carbon!$B143,'Crop 1'!$L$65*VLOOKUP('Crop 1'!$E$65,Carbon!$AH$4:$AI$10,2,FALSE),0))*$AL$20,2)","v":0},{"$f":"C143*Inputs!$D$13","v":0},{"$f":"ROUND((IF('Crop 2'!$C$14=Carbon!$B143,'Crop 2'!$L$14*VLOOKUP('Crop 2'!$E$14,Carbon!$AH$4:$AI$10,2,FALSE),0)+IF('Crop 2'!$C$15=Carbon!$B143,'Crop 2'!$L$15*VLOOKUP('Crop 2'!$E$15,Carbon!$AH$4:$AI$10,2,FALSE),0)+IF('Crop 2'!$C$16=Carbon!$B143,'Crop 2'!$L$16*VLOOKUP('Crop 2'!$E$16,Carbon!$AH$4:$AI$10,2,FALSE),0)+IF('Crop 2'!$C$19=Carbon!$B143,'Crop 2'!$L$19*VLOOKUP('Crop 2'!$E$19,Carbon!$AH$4:$AI$10,2,FALSE),0)+IF('Crop 2'!$C$20=Carbon!$B143,'Crop 2'!$L$20*VLOOKUP('Crop 2'!$E$20,Carbon!$AH$4:$AI$10,2,FALSE),0)+IF('Crop 2'!$C$21=Carbon!$B143,'Crop 2'!$L$21*VLOOKUP('Crop 2'!$E$21,Carbon!$AH$4:$AI$10,2,FALSE),0)+IF('Crop 2'!$C$49=Carbon!$B143,'Crop 2'!$L$49*VLOOKUP('Crop 2'!$E$49,Carbon!$AH$4:$AI$10,2,FALSE),0)+IF('Crop 2'!$C$50=Carbon!$B143,'Crop 2'!$L$50*VLOOKUP('Crop 2'!$E$50,Carbon!$AH$4:$AI$10,2,FALSE),0)+IF('Crop 2'!$C$51=Carbon!$B143,'Crop 2'!$L$51*VLOOKUP('Crop 2'!$E$51,Carbon!$AH$4:$AI$10,2,FALSE),0)+IF('Crop 2'!$C$52=Carbon!$B143,'Crop 2'!$L$52*VLOOKUP('Crop 2'!$E$52,Carbon!$AH$4:$AI$10,2,FALSE),0)+IF('Crop 2'!$C$53=Carbon!$B143,'Crop 2'!$L$53*VLOOKUP('Crop 2'!$E$53,Carbon!$AH$4:$AI$10,2,FALSE),0)+IF('Crop 2'!$C$56=Carbon!$B143,'Crop 2'!$L$56*VLOOKUP('Crop 2'!$E$56,Carbon!$AH$4:$AI$10,2,FALSE),0)+IF('Crop 2'!$C$57=Carbon!$B143,'Crop 2'!$L$57*VLOOKUP('Crop 2'!$E$57,Carbon!$AH$4:$AI$10,2,FALSE),0)+IF('Crop 2'!$C$58=Carbon!$B143,'Crop 2'!$L$58*VLOOKUP('Crop 2'!$E$58,Carbon!$AH$4:$AI$10,2,FALSE),0)+IF('Crop 2'!$C$59=Carbon!$B143,'Crop 2'!$L$59*VLOOKUP('Crop 2'!$E$59,Carbon!$AH$4:$AI$10,2,FALSE),0)+IF('Crop 2'!$C$62=Carbon!$B143,'Crop 2'!$L$62*VLOOKUP('Crop 2'!$E$62,Carbon!$AH$4:$AI$10,2,FALSE),0)+IF('Crop 2'!$C$63=Carbon!$B143,'Crop 2'!$L$63*VLOOKUP('Crop 2'!$E$63,Carbon!$AH$4:$AI$10,2,FALSE),0)+IF('Crop 2'!$C$64=Carbon!$B143,'Crop 2'!$L$64*VLOOKUP('Crop 2'!$E$64,Carbon!$AH$4:$AI$10,2,FALSE),0)+IF('Crop 2'!$C$65=Carbon!$B143,'Crop 2'!$L$65*VLOOKUP('Crop 2'!$E$65,Carbon!$AH$4:$AI$10,2,FALSE),0))*$AL$20,2)","v":0},{"$f":"E143*Inputs!$D$15","v":0},{"$f":"ROUND((IF('Crop 3'!$C$14=Carbon!$B143,'Crop 3'!$L$14*VLOOKUP('Crop 3'!$E$14,Carbon!$AH$4:$AI$10,2,FALSE),0)+IF('Crop 3'!$C$15=Carbon!$B143,'Crop 3'!$L$15*VLOOKUP('Crop 3'!$E$15,Carbon!$AH$4:$AI$10,2,FALSE),0)+IF('Crop 3'!$C$16=Carbon!$B143,'Crop 3'!$L$16*VLOOKUP('Crop 3'!$E$16,Carbon!$AH$4:$AI$10,2,FALSE),0)+IF('Crop 3'!$C$19=Carbon!$B143,'Crop 3'!$L$19*VLOOKUP('Crop 3'!$E$19,Carbon!$AH$4:$AI$10,2,FALSE),0)+IF('Crop 3'!$C$20=Carbon!$B143,'Crop 3'!$L$20*VLOOKUP('Crop 3'!$E$20,Carbon!$AH$4:$AI$10,2,FALSE),0)+IF('Crop 3'!$C$21=Carbon!$B143,'Crop 3'!$L$21*VLOOKUP('Crop 3'!$E$21,Carbon!$AH$4:$AI$10,2,FALSE),0)+IF('Crop 3'!$C$49=Carbon!$B143,'Crop 3'!$L$49*VLOOKUP('Crop 3'!$E$49,Carbon!$AH$4:$AI$10,2,FALSE),0)+IF('Crop 3'!$C$50=Carbon!$B143,'Crop 3'!$L$50*VLOOKUP('Crop 3'!$E$50,Carbon!$AH$4:$AI$10,2,FALSE),0)+IF('Crop 3'!$C$51=Carbon!$B143,'Crop 3'!$L$51*VLOOKUP('Crop 3'!$E$51,Carbon!$AH$4:$AI$10,2,FALSE),0)+IF('Crop 3'!$C$52=Carbon!$B143,'Crop 3'!$L$52*VLOOKUP('Crop 3'!$E$52,Carbon!$AH$4:$AI$10,2,FALSE),0)+IF('Crop 3'!$C$53=Carbon!$B143,'Crop 3'!$L$53*VLOOKUP('Crop 3'!$E$53,Carbon!$AH$4:$AI$10,2,FALSE),0)+IF('Crop 3'!$C$56=Carbon!$B143,'Crop 3'!$L$56*VLOOKUP('Crop 3'!$E$56,Carbon!$AH$4:$AI$10,2,FALSE),0)+IF('Crop 3'!$C$57=Carbon!$B143,'Crop 3'!$L$57*VLOOKUP('Crop 3'!$E$57,Carbon!$AH$4:$AI$10,2,FALSE),0)+IF('Crop 3'!$C$58=Carbon!$B143,'Crop 3'!$L$58*VLOOKUP('Crop 3'!$E$58,Carbon!$AH$4:$AI$10,2,FALSE),0)+IF('Crop 3'!$C$59=Carbon!$B143,'Crop 3'!$L$59*VLOOKUP('Crop 3'!$E$59,Carbon!$AH$4:$AI$10,2,FALSE),0)+IF('Crop 3'!$C$62=Carbon!$B143,'Crop 3'!$L$62*VLOOKUP('Crop 3'!$E$62,Carbon!$AH$4:$AI$10,2,FALSE),0)+IF('Crop 3'!$C$63=Carbon!$B143,'Crop 3'!$L$63*VLOOKUP('Crop 3'!$E$63,Carbon!$AH$4:$AI$10,2,FALSE),0)+IF('Crop 3'!$C$64=Carbon!$B143,'Crop 3'!$L$64*VLOOKUP('Crop 3'!$E$64,Carbon!$AH$4:$AI$10,2,FALSE),0)+IF('Crop 3'!$C$65=Carbon!$B143,'Crop 3'!$L$65*VLOOKUP('Crop 3'!$E$65,Carbon!$AH$4:$AI$10,2,FALSE),0))*$AL$20,2)","v":0},{"$f":"G143*Inputs!$D$17","v":0},{"$f":"ROUND(J143/Inputs!D$19,2)","v":0},0,null,null,{"$f":"ROUND((IF('Crop 1'!$C$14=Carbon!$B143,'Crop 1'!$V$14*VLOOKUP('Crop 1'!$E$14,Carbon!$AH$4:$AI$10,2,FALSE),0)+IF('Crop 1'!$C$15=Carbon!$B143,'Crop 1'!$V$15*VLOOKUP('Crop 1'!$E$15,Carbon!$AH$4:$AI$10,2,FALSE),0)+IF('Crop 1'!$C$16=Carbon!$B143,'Crop 1'!$V$16*VLOOKUP('Crop 1'!$E$16,Carbon!$AH$4:$AI$10,2,FALSE),0)+IF('Crop 1'!$C$19=Carbon!$B143,'Crop 1'!$V$19*VLOOKUP('Crop 1'!$E$19,Carbon!$AH$4:$AI$10,2,FALSE),0)+IF('Crop 1'!$C$20=Carbon!$B143,'Crop 1'!$V$20*VLOOKUP('Crop 1'!$E$20,Carbon!$AH$4:$AI$10,2,FALSE),0)+IF('Crop 1'!$C$21=Carbon!$B143,'Crop 1'!$V$21*VLOOKUP('Crop 1'!$E$21,Carbon!$AH$4:$AI$10,2,FALSE),0)+IF('Crop 1'!$C$49=Carbon!$B143,'Crop 1'!$V$49*VLOOKUP('Crop 1'!$E$49,Carbon!$AH$4:$AI$10,2,FALSE),0)+IF('Crop 1'!$C$50=Carbon!$B143,'Crop 1'!$V$50*VLOOKUP('Crop 1'!$E$50,Carbon!$AH$4:$AI$10,2,FALSE),0)+IF('Crop 1'!$C$51=Carbon!$B143,'Crop 1'!$V$51*VLOOKUP('Crop 1'!$E$51,Carbon!$AH$4:$AI$10,2,FALSE),0)+IF('Crop 1'!$C$52=Carbon!$B143,'Crop 1'!$V$52*VLOOKUP('Crop 1'!$E$52,Carbon!$AH$4:$AI$10,2,FALSE),0)+IF('Crop 1'!$C$53=Carbon!$B143,'Crop 1'!$V$53*VLOOKUP('Crop 1'!$E$53,Carbon!$AH$4:$AI$10,2,FALSE),0)+IF('Crop 1'!$C$56=Carbon!$B143,'Crop 1'!$V$56*VLOOKUP('Crop 1'!$E$56,Carbon!$AH$4:$AI$10,2,FALSE),0)+IF('Crop 1'!$C$57=Carbon!$B143,'Crop 1'!$V$57*VLOOKUP('Crop 1'!$E$57,Carbon!$AH$4:$AI$10,2,FALSE),0)+IF('Crop 1'!$C$58=Carbon!$B143,'Crop 1'!$V$58*VLOOKUP('Crop 1'!$E$58,Carbon!$AH$4:$AI$10,2,FALSE),0)+IF('Crop 1'!$C$59=Carbon!$B143,'Crop 1'!$V$59*VLOOKUP('Crop 1'!$E$59,Carbon!$AH$4:$AI$10,2,FALSE),0)+IF('Crop 1'!$C$62=Carbon!$B143,'Crop 1'!$V$62*VLOOKUP('Crop 1'!$E$62,Carbon!$AH$4:$AI$10,2,FALSE),0)+IF('Crop 1'!$C$63=Carbon!$B143,'Crop 1'!$V$63*VLOOKUP('Crop 1'!$E$63,Carbon!$AH$4:$AI$10,2,FALSE),0)+IF('Crop 1'!$C$64=Carbon!$B143,'Crop 1'!$V$64*VLOOKUP('Crop 1'!$E$64,Carbon!$AH$4:$AI$10,2,FALSE),0)+IF('Crop 1'!$C$65=Carbon!$B143,'Crop 1'!$V$65*VLOOKUP('Crop 1'!$E$65,Carbon!$AH$4:$AI$10,2,FALSE),0))*$AL$20,2)","v":0},{"$f":"M143*Inputs!$D$13","v":0},{"$f":"ROUND((IF('Crop 2'!$C$14=Carbon!$B143,'Crop 2'!$V$14*VLOOKUP('Crop 2'!$E$14,Carbon!$AH$4:$AI$10,2,FALSE),0)+IF('Crop 2'!$C$15=Carbon!$B143,'Crop 2'!$V$15*VLOOKUP('Crop 2'!$E$15,Carbon!$AH$4:$AI$10,2,FALSE),0)+IF('Crop 2'!$C$16=Carbon!$B143,'Crop 2'!$V$16*VLOOKUP('Crop 2'!$E$16,Carbon!$AH$4:$AI$10,2,FALSE),0)+IF('Crop 2'!$C$19=Carbon!$B143,'Crop 2'!$V$19*VLOOKUP('Crop 2'!$E$19,Carbon!$AH$4:$AI$10,2,FALSE),0)+IF('Crop 2'!$C$20=Carbon!$B143,'Crop 2'!$V$20*VLOOKUP('Crop 2'!$E$20,Carbon!$AH$4:$AI$10,2,FALSE),0)+IF('Crop 2'!$C$21=Carbon!$B143,'Crop 2'!$V$21*VLOOKUP('Crop 2'!$E$21,Carbon!$AH$4:$AI$10,2,FALSE),0)+IF('Crop 2'!$C$49=Carbon!$B143,'Crop 2'!$V$49*VLOOKUP('Crop 2'!$E$49,Carbon!$AH$4:$AI$10,2,FALSE),0)+IF('Crop 2'!$C$50=Carbon!$B143,'Crop 2'!$V$50*VLOOKUP('Crop 2'!$E$50,Carbon!$AH$4:$AI$10,2,FALSE),0)+IF('Crop 2'!$C$51=Carbon!$B143,'Crop 2'!$V$51*VLOOKUP('Crop 2'!$E$51,Carbon!$AH$4:$AI$10,2,FALSE),0)+IF('Crop 2'!$C$52=Carbon!$B143,'Crop 2'!$V$52*VLOOKUP('Crop 2'!$E$52,Carbon!$AH$4:$AI$10,2,FALSE),0)+IF('Crop 2'!$C$53=Carbon!$B143,'Crop 2'!$V$53*VLOOKUP('Crop 2'!$E$53,Carbon!$AH$4:$AI$10,2,FALSE),0)+IF('Crop 2'!$C$56=Carbon!$B143,'Crop 2'!$V$56*VLOOKUP('Crop 2'!$E$56,Carbon!$AH$4:$AI$10,2,FALSE),0)+IF('Crop 2'!$C$57=Carbon!$B143,'Crop 2'!$V$57*VLOOKUP('Crop 2'!$E$57,Carbon!$AH$4:$AI$10,2,FALSE),0)+IF('Crop 2'!$C$58=Carbon!$B143,'Crop 2'!$V$58*VLOOKUP('Crop 2'!$E$58,Carbon!$AH$4:$AI$10,2,FALSE),0)+IF('Crop 2'!$C$59=Carbon!$B143,'Crop 2'!$V$59*VLOOKUP('Crop 2'!$E$59,Carbon!$AH$4:$AI$10,2,FALSE),0)+IF('Crop 2'!$C$62=Carbon!$B143,'Crop 2'!$V$62*VLOOKUP('Crop 2'!$E$62,Carbon!$AH$4:$AI$10,2,FALSE),0)+IF('Crop 2'!$C$63=Carbon!$B143,'Crop 2'!$V$63*VLOOKUP('Crop 2'!$E$63,Carbon!$AH$4:$AI$10,2,FALSE),0)+IF('Crop 2'!$C$64=Carbon!$B143,'Crop 2'!$V$64*VLOOKUP('Crop 2'!$E$64,Carbon!$AH$4:$AI$10,2,FALSE),0)+IF('Crop 2'!$C$65=Carbon!$B143,'Crop 2'!$V$65*VLOOKUP('Crop 2'!$E$65,Carbon!$AH$4:$AI$10,2,FALSE),0))*$AL$20,2)","v":0},{"$f":"O143*Inputs!$D$15","v":0},{"$f":"ROUND((IF('Crop 3'!$C$14=Carbon!$B143,'Crop 3'!$V$14*VLOOKUP('Crop 3'!$E$14,Carbon!$AH$4:$AI$10,2,FALSE),0)+IF('Crop 3'!$C$15=Carbon!$B143,'Crop 3'!$V$15*VLOOKUP('Crop 3'!$E$15,Carbon!$AH$4:$AI$10,2,FALSE),0)+IF('Crop 3'!$C$16=Carbon!$B143,'Crop 3'!$V$16*VLOOKUP('Crop 3'!$E$16,Carbon!$AH$4:$AI$10,2,FALSE),0)+IF('Crop 3'!$C$19=Carbon!$B143,'Crop 3'!$V$19*VLOOKUP('Crop 3'!$E$19,Carbon!$AH$4:$AI$10,2,FALSE),0)+IF('Crop 3'!$C$20=Carbon!$B143,'Crop 3'!$V$20*VLOOKUP('Crop 3'!$E$20,Carbon!$AH$4:$AI$10,2,FALSE),0)+IF('Crop 3'!$C$21=Carbon!$B143,'Crop 3'!$V$21*VLOOKUP('Crop 3'!$E$21,Carbon!$AH$4:$AI$10,2,FALSE),0)+IF('Crop 3'!$C$49=Carbon!$B143,'Crop 3'!$V$49*VLOOKUP('Crop 3'!$E$49,Carbon!$AH$4:$AI$10,2,FALSE),0)+IF('Crop 3'!$C$50=Carbon!$B143,'Crop 3'!$V$50*VLOOKUP('Crop 3'!$E$50,Carbon!$AH$4:$AI$10,2,FALSE),0)+IF('Crop 3'!$C$51=Carbon!$B143,'Crop 3'!$V$51*VLOOKUP('Crop 3'!$E$51,Carbon!$AH$4:$AI$10,2,FALSE),0)+IF('Crop 3'!$C$52=Carbon!$B143,'Crop 3'!$V$52*VLOOKUP('Crop 3'!$E$52,Carbon!$AH$4:$AI$10,2,FALSE),0)+IF('Crop 3'!$C$53=Carbon!$B143,'Crop 3'!$V$53*VLOOKUP('Crop 3'!$E$53,Carbon!$AH$4:$AI$10,2,FALSE),0)+IF('Crop 3'!$C$56=Carbon!$B143,'Crop 3'!$V$56*VLOOKUP('Crop 3'!$E$56,Carbon!$AH$4:$AI$10,2,FALSE),0)+IF('Crop 3'!$C$57=Carbon!$B143,'Crop 3'!$V$57*VLOOKUP('Crop 3'!$E$57,Carbon!$AH$4:$AI$10,2,FALSE),0)+IF('Crop 3'!$C$58=Carbon!$B143,'Crop 3'!$V$58*VLOOKUP('Crop 3'!$E$58,Carbon!$AH$4:$AI$10,2,FALSE),0)+IF('Crop 3'!$C$59=Carbon!$B143,'Crop 3'!$V$59*VLOOKUP('Crop 3'!$E$59,Carbon!$AH$4:$AI$10,2,FALSE),0)+IF('Crop 3'!$C$62=Carbon!$B143,'Crop 3'!$V$62*VLOOKUP('Crop 3'!$E$62,Carbon!$AH$4:$AI$10,2,FALSE),0)+IF('Crop 3'!$C$63=Carbon!$B143,'Crop 3'!$V$63*VLOOKUP('Crop 3'!$E$63,Carbon!$AH$4:$AI$10,2,FALSE),0)+IF('Crop 3'!$C$64=Carbon!$B143,'Crop 3'!$V$64*VLOOKUP('Crop 3'!$E$64,Carbon!$AH$4:$AI$10,2,FALSE),0)+IF('Crop 3'!$C$65=Carbon!$B143,'Crop 3'!$V$65*VLOOKUP('Crop 3'!$E$65,Carbon!$AH$4:$AI$10,2,FALSE),0))*$AL$20,2)","v":0},{"$f":"Q143*Inputs!$D$17","v":0},{"$f":"ROUND(T143/Inputs!D$19,2)","v":0},0,null,null,0,{"$f":"W143*Inputs!$D$13","v":0},0,{"$f":"Y143*Inputs!$D$13","v":0},0,{"$f":"AA143*Inputs!$D$13","v":0},{"$f":"ROUND(AD143/Inputs!D$19,2)","v":0},0]
[null,{"$f":"Defaults!AH110","v":"Sodium Chlorate"},{"$f":"ROUND((IF('Crop 1'!$C$14=Carbon!$B144,'Crop 1'!$L$14*VLOOKUP('Crop 1'!$E$14,Carbon!$AH$4:$AI$10,2,FALSE),0)+IF('Crop 1'!$C$15=Carbon!$B144,'Crop 1'!$L$15*VLOOKUP('Crop 1'!$E$15,Carbon!$AH$4:$AI$10,2,FALSE),0)+IF('Crop 1'!$C$16=Carbon!$B144,'Crop 1'!$L$16*VLOOKUP('Crop 1'!$E$16,Carbon!$AH$4:$AI$10,2,FALSE),0)+IF('Crop 1'!$C$19=Carbon!$B144,'Crop 1'!$L$19*VLOOKUP('Crop 1'!$E$19,Carbon!$AH$4:$AI$10,2,FALSE),0)+IF('Crop 1'!$C$20=Carbon!$B144,'Crop 1'!$L$20*VLOOKUP('Crop 1'!$E$20,Carbon!$AH$4:$AI$10,2,FALSE),0)+IF('Crop 1'!$C$21=Carbon!$B144,'Crop 1'!$L$21*VLOOKUP('Crop 1'!$E$21,Carbon!$AH$4:$AI$10,2,FALSE),0)+IF('Crop 1'!$C$49=Carbon!$B144,'Crop 1'!$L$49*VLOOKUP('Crop 1'!$E$49,Carbon!$AH$4:$AI$10,2,FALSE),0)+IF('Crop 1'!$C$50=Carbon!$B144,'Crop 1'!$L$50*VLOOKUP('Crop 1'!$E$50,Carbon!$AH$4:$AI$10,2,FALSE),0)+IF('Crop 1'!$C$51=Carbon!$B144,'Crop 1'!$L$51*VLOOKUP('Crop 1'!$E$51,Carbon!$AH$4:$AI$10,2,FALSE),0)+IF('Crop 1'!$C$52=Carbon!$B144,'Crop 1'!$L$52*VLOOKUP('Crop 1'!$E$52,Carbon!$AH$4:$AI$10,2,FALSE),0)+IF('Crop 1'!$C$53=Carbon!$B144,'Crop 1'!$L$53*VLOOKUP('Crop 1'!$E$53,Carbon!$AH$4:$AI$10,2,FALSE),0)+IF('Crop 1'!$C$56=Carbon!$B144,'Crop 1'!$L$56*VLOOKUP('Crop 1'!$E$56,Carbon!$AH$4:$AI$10,2,FALSE),0)+IF('Crop 1'!$C$57=Carbon!$B144,'Crop 1'!$L$57*VLOOKUP('Crop 1'!$E$57,Carbon!$AH$4:$AI$10,2,FALSE),0)+IF('Crop 1'!$C$58=Carbon!$B144,'Crop 1'!$L$58*VLOOKUP('Crop 1'!$E$58,Carbon!$AH$4:$AI$10,2,FALSE),0)+IF('Crop 1'!$C$59=Carbon!$B144,'Crop 1'!$L$59*VLOOKUP('Crop 1'!$E$59,Carbon!$AH$4:$AI$10,2,FALSE),0)+IF('Crop 1'!$C$62=Carbon!$B144,'Crop 1'!$L$62*VLOOKUP('Crop 1'!$E$62,Carbon!$AH$4:$AI$10,2,FALSE),0)+IF('Crop 1'!$C$63=Carbon!$B144,'Crop 1'!$L$63*VLOOKUP('Crop 1'!$E$63,Carbon!$AH$4:$AI$10,2,FALSE),0)+IF('Crop 1'!$C$64=Carbon!$B144,'Crop 1'!$L$64*VLOOKUP('Crop 1'!$E$64,Carbon!$AH$4:$AI$10,2,FALSE),0)+IF('Crop 1'!$C$65=Carbon!$B144,'Crop 1'!$L$65*VLOOKUP('Crop 1'!$E$65,Carbon!$AH$4:$AI$10,2,FALSE),0))*$AL$20,2)","v":0},{"$f":"C144*Inputs!$D$13","v":0},{"$f":"ROUND((IF('Crop 2'!$C$14=Carbon!$B144,'Crop 2'!$L$14*VLOOKUP('Crop 2'!$E$14,Carbon!$AH$4:$AI$10,2,FALSE),0)+IF('Crop 2'!$C$15=Carbon!$B144,'Crop 2'!$L$15*VLOOKUP('Crop 2'!$E$15,Carbon!$AH$4:$AI$10,2,FALSE),0)+IF('Crop 2'!$C$16=Carbon!$B144,'Crop 2'!$L$16*VLOOKUP('Crop 2'!$E$16,Carbon!$AH$4:$AI$10,2,FALSE),0)+IF('Crop 2'!$C$19=Carbon!$B144,'Crop 2'!$L$19*VLOOKUP('Crop 2'!$E$19,Carbon!$AH$4:$AI$10,2,FALSE),0)+IF('Crop 2'!$C$20=Carbon!$B144,'Crop 2'!$L$20*VLOOKUP('Crop 2'!$E$20,Carbon!$AH$4:$AI$10,2,FALSE),0)+IF('Crop 2'!$C$21=Carbon!$B144,'Crop 2'!$L$21*VLOOKUP('Crop 2'!$E$21,Carbon!$AH$4:$AI$10,2,FALSE),0)+IF('Crop 2'!$C$49=Carbon!$B144,'Crop 2'!$L$49*VLOOKUP('Crop 2'!$E$49,Carbon!$AH$4:$AI$10,2,FALSE),0)+IF('Crop 2'!$C$50=Carbon!$B144,'Crop 2'!$L$50*VLOOKUP('Crop 2'!$E$50,Carbon!$AH$4:$AI$10,2,FALSE),0)+IF('Crop 2'!$C$51=Carbon!$B144,'Crop 2'!$L$51*VLOOKUP('Crop 2'!$E$51,Carbon!$AH$4:$AI$10,2,FALSE),0)+IF('Crop 2'!$C$52=Carbon!$B144,'Crop 2'!$L$52*VLOOKUP('Crop 2'!$E$52,Carbon!$AH$4:$AI$10,2,FALSE),0)+IF('Crop 2'!$C$53=Carbon!$B144,'Crop 2'!$L$53*VLOOKUP('Crop 2'!$E$53,Carbon!$AH$4:$AI$10,2,FALSE),0)+IF('Crop 2'!$C$56=Carbon!$B144,'Crop 2'!$L$56*VLOOKUP('Crop 2'!$E$56,Carbon!$AH$4:$AI$10,2,FALSE),0)+IF('Crop 2'!$C$57=Carbon!$B144,'Crop 2'!$L$57*VLOOKUP('Crop 2'!$E$57,Carbon!$AH$4:$AI$10,2,FALSE),0)+IF('Crop 2'!$C$58=Carbon!$B144,'Crop 2'!$L$58*VLOOKUP('Crop 2'!$E$58,Carbon!$AH$4:$AI$10,2,FALSE),0)+IF('Crop 2'!$C$59=Carbon!$B144,'Crop 2'!$L$59*VLOOKUP('Crop 2'!$E$59,Carbon!$AH$4:$AI$10,2,FALSE),0)+IF('Crop 2'!$C$62=Carbon!$B144,'Crop 2'!$L$62*VLOOKUP('Crop 2'!$E$62,Carbon!$AH$4:$AI$10,2,FALSE),0)+IF('Crop 2'!$C$63=Carbon!$B144,'Crop 2'!$L$63*VLOOKUP('Crop 2'!$E$63,Carbon!$AH$4:$AI$10,2,FALSE),0)+IF('Crop 2'!$C$64=Carbon!$B144,'Crop 2'!$L$64*VLOOKUP('Crop 2'!$E$64,Carbon!$AH$4:$AI$10,2,FALSE),0)+IF('Crop 2'!$C$65=Carbon!$B144,'Crop 2'!$L$65*VLOOKUP('Crop 2'!$E$65,Carbon!$AH$4:$AI$10,2,FALSE),0))*$AL$20,2)","v":0},{"$f":"E144*Inputs!$D$15","v":0},{"$f":"ROUND((IF('Crop 3'!$C$14=Carbon!$B144,'Crop 3'!$L$14*VLOOKUP('Crop 3'!$E$14,Carbon!$AH$4:$AI$10,2,FALSE),0)+IF('Crop 3'!$C$15=Carbon!$B144,'Crop 3'!$L$15*VLOOKUP('Crop 3'!$E$15,Carbon!$AH$4:$AI$10,2,FALSE),0)+IF('Crop 3'!$C$16=Carbon!$B144,'Crop 3'!$L$16*VLOOKUP('Crop 3'!$E$16,Carbon!$AH$4:$AI$10,2,FALSE),0)+IF('Crop 3'!$C$19=Carbon!$B144,'Crop 3'!$L$19*VLOOKUP('Crop 3'!$E$19,Carbon!$AH$4:$AI$10,2,FALSE),0)+IF('Crop 3'!$C$20=Carbon!$B144,'Crop 3'!$L$20*VLOOKUP('Crop 3'!$E$20,Carbon!$AH$4:$AI$10,2,FALSE),0)+IF('Crop 3'!$C$21=Carbon!$B144,'Crop 3'!$L$21*VLOOKUP('Crop 3'!$E$21,Carbon!$AH$4:$AI$10,2,FALSE),0)+IF('Crop 3'!$C$49=Carbon!$B144,'Crop 3'!$L$49*VLOOKUP('Crop 3'!$E$49,Carbon!$AH$4:$AI$10,2,FALSE),0)+IF('Crop 3'!$C$50=Carbon!$B144,'Crop 3'!$L$50*VLOOKUP('Crop 3'!$E$50,Carbon!$AH$4:$AI$10,2,FALSE),0)+IF('Crop 3'!$C$51=Carbon!$B144,'Crop 3'!$L$51*VLOOKUP('Crop 3'!$E$51,Carbon!$AH$4:$AI$10,2,FALSE),0)+IF('Crop 3'!$C$52=Carbon!$B144,'Crop 3'!$L$52*VLOOKUP('Crop 3'!$E$52,Carbon!$AH$4:$AI$10,2,FALSE),0)+IF('Crop 3'!$C$53=Carbon!$B144,'Crop 3'!$L$53*VLOOKUP('Crop 3'!$E$53,Carbon!$AH$4:$AI$10,2,FALSE),0)+IF('Crop 3'!$C$56=Carbon!$B144,'Crop 3'!$L$56*VLOOKUP('Crop 3'!$E$56,Carbon!$AH$4:$AI$10,2,FALSE),0)+IF('Crop 3'!$C$57=Carbon!$B144,'Crop 3'!$L$57*VLOOKUP('Crop 3'!$E$57,Carbon!$AH$4:$AI$10,2,FALSE),0)+IF('Crop 3'!$C$58=Carbon!$B144,'Crop 3'!$L$58*VLOOKUP('Crop 3'!$E$58,Carbon!$AH$4:$AI$10,2,FALSE),0)+IF('Crop 3'!$C$59=Carbon!$B144,'Crop 3'!$L$59*VLOOKUP('Crop 3'!$E$59,Carbon!$AH$4:$AI$10,2,FALSE),0)+IF('Crop 3'!$C$62=Carbon!$B144,'Crop 3'!$L$62*VLOOKUP('Crop 3'!$E$62,Carbon!$AH$4:$AI$10,2,FALSE),0)+IF('Crop 3'!$C$63=Carbon!$B144,'Crop 3'!$L$63*VLOOKUP('Crop 3'!$E$63,Carbon!$AH$4:$AI$10,2,FALSE),0)+IF('Crop 3'!$C$64=Carbon!$B144,'Crop 3'!$L$64*VLOOKUP('Crop 3'!$E$64,Carbon!$AH$4:$AI$10,2,FALSE),0)+IF('Crop 3'!$C$65=Carbon!$B144,'Crop 3'!$L$65*VLOOKUP('Crop 3'!$E$65,Carbon!$AH$4:$AI$10,2,FALSE),0))*$AL$20,2)","v":0},{"$f":"G144*Inputs!$D$17","v":0},{"$f":"ROUND(J144/Inputs!D$19,2)","v":0},0,null,null,{"$f":"ROUND((IF('Crop 1'!$C$14=Carbon!$B144,'Crop 1'!$V$14*VLOOKUP('Crop 1'!$E$14,Carbon!$AH$4:$AI$10,2,FALSE),0)+IF('Crop 1'!$C$15=Carbon!$B144,'Crop 1'!$V$15*VLOOKUP('Crop 1'!$E$15,Carbon!$AH$4:$AI$10,2,FALSE),0)+IF('Crop 1'!$C$16=Carbon!$B144,'Crop 1'!$V$16*VLOOKUP('Crop 1'!$E$16,Carbon!$AH$4:$AI$10,2,FALSE),0)+IF('Crop 1'!$C$19=Carbon!$B144,'Crop 1'!$V$19*VLOOKUP('Crop 1'!$E$19,Carbon!$AH$4:$AI$10,2,FALSE),0)+IF('Crop 1'!$C$20=Carbon!$B144,'Crop 1'!$V$20*VLOOKUP('Crop 1'!$E$20,Carbon!$AH$4:$AI$10,2,FALSE),0)+IF('Crop 1'!$C$21=Carbon!$B144,'Crop 1'!$V$21*VLOOKUP('Crop 1'!$E$21,Carbon!$AH$4:$AI$10,2,FALSE),0)+IF('Crop 1'!$C$49=Carbon!$B144,'Crop 1'!$V$49*VLOOKUP('Crop 1'!$E$49,Carbon!$AH$4:$AI$10,2,FALSE),0)+IF('Crop 1'!$C$50=Carbon!$B144,'Crop 1'!$V$50*VLOOKUP('Crop 1'!$E$50,Carbon!$AH$4:$AI$10,2,FALSE),0)+IF('Crop 1'!$C$51=Carbon!$B144,'Crop 1'!$V$51*VLOOKUP('Crop 1'!$E$51,Carbon!$AH$4:$AI$10,2,FALSE),0)+IF('Crop 1'!$C$52=Carbon!$B144,'Crop 1'!$V$52*VLOOKUP('Crop 1'!$E$52,Carbon!$AH$4:$AI$10,2,FALSE),0)+IF('Crop 1'!$C$53=Carbon!$B144,'Crop 1'!$V$53*VLOOKUP('Crop 1'!$E$53,Carbon!$AH$4:$AI$10,2,FALSE),0)+IF('Crop 1'!$C$56=Carbon!$B144,'Crop 1'!$V$56*VLOOKUP('Crop 1'!$E$56,Carbon!$AH$4:$AI$10,2,FALSE),0)+IF('Crop 1'!$C$57=Carbon!$B144,'Crop 1'!$V$57*VLOOKUP('Crop 1'!$E$57,Carbon!$AH$4:$AI$10,2,FALSE),0)+IF('Crop 1'!$C$58=Carbon!$B144,'Crop 1'!$V$58*VLOOKUP('Crop 1'!$E$58,Carbon!$AH$4:$AI$10,2,FALSE),0)+IF('Crop 1'!$C$59=Carbon!$B144,'Crop 1'!$V$59*VLOOKUP('Crop 1'!$E$59,Carbon!$AH$4:$AI$10,2,FALSE),0)+IF('Crop 1'!$C$62=Carbon!$B144,'Crop 1'!$V$62*VLOOKUP('Crop 1'!$E$62,Carbon!$AH$4:$AI$10,2,FALSE),0)+IF('Crop 1'!$C$63=Carbon!$B144,'Crop 1'!$V$63*VLOOKUP('Crop 1'!$E$63,Carbon!$AH$4:$AI$10,2,FALSE),0)+IF('Crop 1'!$C$64=Carbon!$B144,'Crop 1'!$V$64*VLOOKUP('Crop 1'!$E$64,Carbon!$AH$4:$AI$10,2,FALSE),0)+IF('Crop 1'!$C$65=Carbon!$B144,'Crop 1'!$V$65*VLOOKUP('Crop 1'!$E$65,Carbon!$AH$4:$AI$10,2,FALSE),0))*$AL$20,2)","v":0},{"$f":"M144*Inputs!$D$13","v":0},{"$f":"ROUND((IF('Crop 2'!$C$14=Carbon!$B144,'Crop 2'!$V$14*VLOOKUP('Crop 2'!$E$14,Carbon!$AH$4:$AI$10,2,FALSE),0)+IF('Crop 2'!$C$15=Carbon!$B144,'Crop 2'!$V$15*VLOOKUP('Crop 2'!$E$15,Carbon!$AH$4:$AI$10,2,FALSE),0)+IF('Crop 2'!$C$16=Carbon!$B144,'Crop 2'!$V$16*VLOOKUP('Crop 2'!$E$16,Carbon!$AH$4:$AI$10,2,FALSE),0)+IF('Crop 2'!$C$19=Carbon!$B144,'Crop 2'!$V$19*VLOOKUP('Crop 2'!$E$19,Carbon!$AH$4:$AI$10,2,FALSE),0)+IF('Crop 2'!$C$20=Carbon!$B144,'Crop 2'!$V$20*VLOOKUP('Crop 2'!$E$20,Carbon!$AH$4:$AI$10,2,FALSE),0)+IF('Crop 2'!$C$21=Carbon!$B144,'Crop 2'!$V$21*VLOOKUP('Crop 2'!$E$21,Carbon!$AH$4:$AI$10,2,FALSE),0)+IF('Crop 2'!$C$49=Carbon!$B144,'Crop 2'!$V$49*VLOOKUP('Crop 2'!$E$49,Carbon!$AH$4:$AI$10,2,FALSE),0)+IF('Crop 2'!$C$50=Carbon!$B144,'Crop 2'!$V$50*VLOOKUP('Crop 2'!$E$50,Carbon!$AH$4:$AI$10,2,FALSE),0)+IF('Crop 2'!$C$51=Carbon!$B144,'Crop 2'!$V$51*VLOOKUP('Crop 2'!$E$51,Carbon!$AH$4:$AI$10,2,FALSE),0)+IF('Crop 2'!$C$52=Carbon!$B144,'Crop 2'!$V$52*VLOOKUP('Crop 2'!$E$52,Carbon!$AH$4:$AI$10,2,FALSE),0)+IF('Crop 2'!$C$53=Carbon!$B144,'Crop 2'!$V$53*VLOOKUP('Crop 2'!$E$53,Carbon!$AH$4:$AI$10,2,FALSE),0)+IF('Crop 2'!$C$56=Carbon!$B144,'Crop 2'!$V$56*VLOOKUP('Crop 2'!$E$56,Carbon!$AH$4:$AI$10,2,FALSE),0)+IF('Crop 2'!$C$57=Carbon!$B144,'Crop 2'!$V$57*VLOOKUP('Crop 2'!$E$57,Carbon!$AH$4:$AI$10,2,FALSE),0)+IF('Crop 2'!$C$58=Carbon!$B144,'Crop 2'!$V$58*VLOOKUP('Crop 2'!$E$58,Carbon!$AH$4:$AI$10,2,FALSE),0)+IF('Crop 2'!$C$59=Carbon!$B144,'Crop 2'!$V$59*VLOOKUP('Crop 2'!$E$59,Carbon!$AH$4:$AI$10,2,FALSE),0)+IF('Crop 2'!$C$62=Carbon!$B144,'Crop 2'!$V$62*VLOOKUP('Crop 2'!$E$62,Carbon!$AH$4:$AI$10,2,FALSE),0)+IF('Crop 2'!$C$63=Carbon!$B144,'Crop 2'!$V$63*VLOOKUP('Crop 2'!$E$63,Carbon!$AH$4:$AI$10,2,FALSE),0)+IF('Crop 2'!$C$64=Carbon!$B144,'Crop 2'!$V$64*VLOOKUP('Crop 2'!$E$64,Carbon!$AH$4:$AI$10,2,FALSE),0)+IF('Crop 2'!$C$65=Carbon!$B144,'Crop 2'!$V$65*VLOOKUP('Crop 2'!$E$65,Carbon!$AH$4:$AI$10,2,FALSE),0))*$AL$20,2)","v":0},{"$f":"O144*Inputs!$D$15","v":0},{"$f":"ROUND((IF('Crop 3'!$C$14=Carbon!$B144,'Crop 3'!$V$14*VLOOKUP('Crop 3'!$E$14,Carbon!$AH$4:$AI$10,2,FALSE),0)+IF('Crop 3'!$C$15=Carbon!$B144,'Crop 3'!$V$15*VLOOKUP('Crop 3'!$E$15,Carbon!$AH$4:$AI$10,2,FALSE),0)+IF('Crop 3'!$C$16=Carbon!$B144,'Crop 3'!$V$16*VLOOKUP('Crop 3'!$E$16,Carbon!$AH$4:$AI$10,2,FALSE),0)+IF('Crop 3'!$C$19=Carbon!$B144,'Crop 3'!$V$19*VLOOKUP('Crop 3'!$E$19,Carbon!$AH$4:$AI$10,2,FALSE),0)+IF('Crop 3'!$C$20=Carbon!$B144,'Crop 3'!$V$20*VLOOKUP('Crop 3'!$E$20,Carbon!$AH$4:$AI$10,2,FALSE),0)+IF('Crop 3'!$C$21=Carbon!$B144,'Crop 3'!$V$21*VLOOKUP('Crop 3'!$E$21,Carbon!$AH$4:$AI$10,2,FALSE),0)+IF('Crop 3'!$C$49=Carbon!$B144,'Crop 3'!$V$49*VLOOKUP('Crop 3'!$E$49,Carbon!$AH$4:$AI$10,2,FALSE),0)+IF('Crop 3'!$C$50=Carbon!$B144,'Crop 3'!$V$50*VLOOKUP('Crop 3'!$E$50,Carbon!$AH$4:$AI$10,2,FALSE),0)+IF('Crop 3'!$C$51=Carbon!$B144,'Crop 3'!$V$51*VLOOKUP('Crop 3'!$E$51,Carbon!$AH$4:$AI$10,2,FALSE),0)+IF('Crop 3'!$C$52=Carbon!$B144,'Crop 3'!$V$52*VLOOKUP('Crop 3'!$E$52,Carbon!$AH$4:$AI$10,2,FALSE),0)+IF('Crop 3'!$C$53=Carbon!$B144,'Crop 3'!$V$53*VLOOKUP('Crop 3'!$E$53,Carbon!$AH$4:$AI$10,2,FALSE),0)+IF('Crop 3'!$C$56=Carbon!$B144,'Crop 3'!$V$56*VLOOKUP('Crop 3'!$E$56,Carbon!$AH$4:$AI$10,2,FALSE),0)+IF('Crop 3'!$C$57=Carbon!$B144,'Crop 3'!$V$57*VLOOKUP('Crop 3'!$E$57,Carbon!$AH$4:$AI$10,2,FALSE),0)+IF('Crop 3'!$C$58=Carbon!$B144,'Crop 3'!$V$58*VLOOKUP('Crop 3'!$E$58,Carbon!$AH$4:$AI$10,2,FALSE),0)+IF('Crop 3'!$C$59=Carbon!$B144,'Crop 3'!$V$59*VLOOKUP('Crop 3'!$E$59,Carbon!$AH$4:$AI$10,2,FALSE),0)+IF('Crop 3'!$C$62=Carbon!$B144,'Crop 3'!$V$62*VLOOKUP('Crop 3'!$E$62,Carbon!$AH$4:$AI$10,2,FALSE),0)+IF('Crop 3'!$C$63=Carbon!$B144,'Crop 3'!$V$63*VLOOKUP('Crop 3'!$E$63,Carbon!$AH$4:$AI$10,2,FALSE),0)+IF('Crop 3'!$C$64=Carbon!$B144,'Crop 3'!$V$64*VLOOKUP('Crop 3'!$E$64,Carbon!$AH$4:$AI$10,2,FALSE),0)+IF('Crop 3'!$C$65=Carbon!$B144,'Crop 3'!$V$65*VLOOKUP('Crop 3'!$E$65,Carbon!$AH$4:$AI$10,2,FALSE),0))*$AL$20,2)","v":0},{"$f":"Q144*Inputs!$D$17","v":0},{"$f":"ROUND(T144/Inputs!D$19,2)","v":0},0,null,null,0,{"$f":"W144*Inputs!$D$13","v":0},0,{"$f":"Y144*Inputs!$D$13","v":0},0,{"$f":"AA144*Inputs!$D$13","v":0},{"$f":"ROUND(AD144/Inputs!D$19,2)","v":0},0]
[null,{"$f":"Defaults!AH111","v":"Sonic"},{"$f":"ROUND((IF('Crop 1'!$C$14=Carbon!$B145,'Crop 1'!$L$14*VLOOKUP('Crop 1'!$E$14,Carbon!$AH$4:$AI$10,2,FALSE),0)+IF('Crop 1'!$C$15=Carbon!$B145,'Crop 1'!$L$15*VLOOKUP('Crop 1'!$E$15,Carbon!$AH$4:$AI$10,2,FALSE),0)+IF('Crop 1'!$C$16=Carbon!$B145,'Crop 1'!$L$16*VLOOKUP('Crop 1'!$E$16,Carbon!$AH$4:$AI$10,2,FALSE),0)+IF('Crop 1'!$C$19=Carbon!$B145,'Crop 1'!$L$19*VLOOKUP('Crop 1'!$E$19,Carbon!$AH$4:$AI$10,2,FALSE),0)+IF('Crop 1'!$C$20=Carbon!$B145,'Crop 1'!$L$20*VLOOKUP('Crop 1'!$E$20,Carbon!$AH$4:$AI$10,2,FALSE),0)+IF('Crop 1'!$C$21=Carbon!$B145,'Crop 1'!$L$21*VLOOKUP('Crop 1'!$E$21,Carbon!$AH$4:$AI$10,2,FALSE),0)+IF('Crop 1'!$C$49=Carbon!$B145,'Crop 1'!$L$49*VLOOKUP('Crop 1'!$E$49,Carbon!$AH$4:$AI$10,2,FALSE),0)+IF('Crop 1'!$C$50=Carbon!$B145,'Crop 1'!$L$50*VLOOKUP('Crop 1'!$E$50,Carbon!$AH$4:$AI$10,2,FALSE),0)+IF('Crop 1'!$C$51=Carbon!$B145,'Crop 1'!$L$51*VLOOKUP('Crop 1'!$E$51,Carbon!$AH$4:$AI$10,2,FALSE),0)+IF('Crop 1'!$C$52=Carbon!$B145,'Crop 1'!$L$52*VLOOKUP('Crop 1'!$E$52,Carbon!$AH$4:$AI$10,2,FALSE),0)+IF('Crop 1'!$C$53=Carbon!$B145,'Crop 1'!$L$53*VLOOKUP('Crop 1'!$E$53,Carbon!$AH$4:$AI$10,2,FALSE),0)+IF('Crop 1'!$C$56=Carbon!$B145,'Crop 1'!$L$56*VLOOKUP('Crop 1'!$E$56,Carbon!$AH$4:$AI$10,2,FALSE),0)+IF('Crop 1'!$C$57=Carbon!$B145,'Crop 1'!$L$57*VLOOKUP('Crop 1'!$E$57,Carbon!$AH$4:$AI$10,2,FALSE),0)+IF('Crop 1'!$C$58=Carbon!$B145,'Crop 1'!$L$58*VLOOKUP('Crop 1'!$E$58,Carbon!$AH$4:$AI$10,2,FALSE),0)+IF('Crop 1'!$C$59=Carbon!$B145,'Crop 1'!$L$59*VLOOKUP('Crop 1'!$E$59,Carbon!$AH$4:$AI$10,2,FALSE),0)+IF('Crop 1'!$C$62=Carbon!$B145,'Crop 1'!$L$62*VLOOKUP('Crop 1'!$E$62,Carbon!$AH$4:$AI$10,2,FALSE),0)+IF('Crop 1'!$C$63=Carbon!$B145,'Crop 1'!$L$63*VLOOKUP('Crop 1'!$E$63,Carbon!$AH$4:$AI$10,2,FALSE),0)+IF('Crop 1'!$C$64=Carbon!$B145,'Crop 1'!$L$64*VLOOKUP('Crop 1'!$E$64,Carbon!$AH$4:$AI$10,2,FALSE),0)+IF('Crop 1'!$C$65=Carbon!$B145,'Crop 1'!$L$65*VLOOKUP('Crop 1'!$E$65,Carbon!$AH$4:$AI$10,2,FALSE),0))*$AL$20,2)","v":0},{"$f":"C145*Inputs!$D$13","v":0},{"$f":"ROUND((IF('Crop 2'!$C$14=Carbon!$B145,'Crop 2'!$L$14*VLOOKUP('Crop 2'!$E$14,Carbon!$AH$4:$AI$10,2,FALSE),0)+IF('Crop 2'!$C$15=Carbon!$B145,'Crop 2'!$L$15*VLOOKUP('Crop 2'!$E$15,Carbon!$AH$4:$AI$10,2,FALSE),0)+IF('Crop 2'!$C$16=Carbon!$B145,'Crop 2'!$L$16*VLOOKUP('Crop 2'!$E$16,Carbon!$AH$4:$AI$10,2,FALSE),0)+IF('Crop 2'!$C$19=Carbon!$B145,'Crop 2'!$L$19*VLOOKUP('Crop 2'!$E$19,Carbon!$AH$4:$AI$10,2,FALSE),0)+IF('Crop 2'!$C$20=Carbon!$B145,'Crop 2'!$L$20*VLOOKUP('Crop 2'!$E$20,Carbon!$AH$4:$AI$10,2,FALSE),0)+IF('Crop 2'!$C$21=Carbon!$B145,'Crop 2'!$L$21*VLOOKUP('Crop 2'!$E$21,Carbon!$AH$4:$AI$10,2,FALSE),0)+IF('Crop 2'!$C$49=Carbon!$B145,'Crop 2'!$L$49*VLOOKUP('Crop 2'!$E$49,Carbon!$AH$4:$AI$10,2,FALSE),0)+IF('Crop 2'!$C$50=Carbon!$B145,'Crop 2'!$L$50*VLOOKUP('Crop 2'!$E$50,Carbon!$AH$4:$AI$10,2,FALSE),0)+IF('Crop 2'!$C$51=Carbon!$B145,'Crop 2'!$L$51*VLOOKUP('Crop 2'!$E$51,Carbon!$AH$4:$AI$10,2,FALSE),0)+IF('Crop 2'!$C$52=Carbon!$B145,'Crop 2'!$L$52*VLOOKUP('Crop 2'!$E$52,Carbon!$AH$4:$AI$10,2,FALSE),0)+IF('Crop 2'!$C$53=Carbon!$B145,'Crop 2'!$L$53*VLOOKUP('Crop 2'!$E$53,Carbon!$AH$4:$AI$10,2,FALSE),0)+IF('Crop 2'!$C$56=Carbon!$B145,'Crop 2'!$L$56*VLOOKUP('Crop 2'!$E$56,Carbon!$AH$4:$AI$10,2,FALSE),0)+IF('Crop 2'!$C$57=Carbon!$B145,'Crop 2'!$L$57*VLOOKUP('Crop 2'!$E$57,Carbon!$AH$4:$AI$10,2,FALSE),0)+IF('Crop 2'!$C$58=Carbon!$B145,'Crop 2'!$L$58*VLOOKUP('Crop 2'!$E$58,Carbon!$AH$4:$AI$10,2,FALSE),0)+IF('Crop 2'!$C$59=Carbon!$B145,'Crop 2'!$L$59*VLOOKUP('Crop 2'!$E$59,Carbon!$AH$4:$AI$10,2,FALSE),0)+IF('Crop 2'!$C$62=Carbon!$B145,'Crop 2'!$L$62*VLOOKUP('Crop 2'!$E$62,Carbon!$AH$4:$AI$10,2,FALSE),0)+IF('Crop 2'!$C$63=Carbon!$B145,'Crop 2'!$L$63*VLOOKUP('Crop 2'!$E$63,Carbon!$AH$4:$AI$10,2,FALSE),0)+IF('Crop 2'!$C$64=Carbon!$B145,'Crop 2'!$L$64*VLOOKUP('Crop 2'!$E$64,Carbon!$AH$4:$AI$10,2,FALSE),0)+IF('Crop 2'!$C$65=Carbon!$B145,'Crop 2'!$L$65*VLOOKUP('Crop 2'!$E$65,Carbon!$AH$4:$AI$10,2,FALSE),0))*$AL$20,2)","v":0},{"$f":"E145*Inputs!$D$15","v":0},{"$f":"ROUND((IF('Crop 3'!$C$14=Carbon!$B145,'Crop 3'!$L$14*VLOOKUP('Crop 3'!$E$14,Carbon!$AH$4:$AI$10,2,FALSE),0)+IF('Crop 3'!$C$15=Carbon!$B145,'Crop 3'!$L$15*VLOOKUP('Crop 3'!$E$15,Carbon!$AH$4:$AI$10,2,FALSE),0)+IF('Crop 3'!$C$16=Carbon!$B145,'Crop 3'!$L$16*VLOOKUP('Crop 3'!$E$16,Carbon!$AH$4:$AI$10,2,FALSE),0)+IF('Crop 3'!$C$19=Carbon!$B145,'Crop 3'!$L$19*VLOOKUP('Crop 3'!$E$19,Carbon!$AH$4:$AI$10,2,FALSE),0)+IF('Crop 3'!$C$20=Carbon!$B145,'Crop 3'!$L$20*VLOOKUP('Crop 3'!$E$20,Carbon!$AH$4:$AI$10,2,FALSE),0)+IF('Crop 3'!$C$21=Carbon!$B145,'Crop 3'!$L$21*VLOOKUP('Crop 3'!$E$21,Carbon!$AH$4:$AI$10,2,FALSE),0)+IF('Crop 3'!$C$49=Carbon!$B145,'Crop 3'!$L$49*VLOOKUP('Crop 3'!$E$49,Carbon!$AH$4:$AI$10,2,FALSE),0)+IF('Crop 3'!$C$50=Carbon!$B145,'Crop 3'!$L$50*VLOOKUP('Crop 3'!$E$50,Carbon!$AH$4:$AI$10,2,FALSE),0)+IF('Crop 3'!$C$51=Carbon!$B145,'Crop 3'!$L$51*VLOOKUP('Crop 3'!$E$51,Carbon!$AH$4:$AI$10,2,FALSE),0)+IF('Crop 3'!$C$52=Carbon!$B145,'Crop 3'!$L$52*VLOOKUP('Crop 3'!$E$52,Carbon!$AH$4:$AI$10,2,FALSE),0)+IF('Crop 3'!$C$53=Carbon!$B145,'Crop 3'!$L$53*VLOOKUP('Crop 3'!$E$53,Carbon!$AH$4:$AI$10,2,FALSE),0)+IF('Crop 3'!$C$56=Carbon!$B145,'Crop 3'!$L$56*VLOOKUP('Crop 3'!$E$56,Carbon!$AH$4:$AI$10,2,FALSE),0)+IF('Crop 3'!$C$57=Carbon!$B145,'Crop 3'!$L$57*VLOOKUP('Crop 3'!$E$57,Carbon!$AH$4:$AI$10,2,FALSE),0)+IF('Crop 3'!$C$58=Carbon!$B145,'Crop 3'!$L$58*VLOOKUP('Crop 3'!$E$58,Carbon!$AH$4:$AI$10,2,FALSE),0)+IF('Crop 3'!$C$59=Carbon!$B145,'Crop 3'!$L$59*VLOOKUP('Crop 3'!$E$59,Carbon!$AH$4:$AI$10,2,FALSE),0)+IF('Crop 3'!$C$62=Carbon!$B145,'Crop 3'!$L$62*VLOOKUP('Crop 3'!$E$62,Carbon!$AH$4:$AI$10,2,FALSE),0)+IF('Crop 3'!$C$63=Carbon!$B145,'Crop 3'!$L$63*VLOOKUP('Crop 3'!$E$63,Carbon!$AH$4:$AI$10,2,FALSE),0)+IF('Crop 3'!$C$64=Carbon!$B145,'Crop 3'!$L$64*VLOOKUP('Crop 3'!$E$64,Carbon!$AH$4:$AI$10,2,FALSE),0)+IF('Crop 3'!$C$65=Carbon!$B145,'Crop 3'!$L$65*VLOOKUP('Crop 3'!$E$65,Carbon!$AH$4:$AI$10,2,FALSE),0))*$AL$20,2)","v":0},{"$f":"G145*Inputs!$D$17","v":0},{"$f":"ROUND(J145/Inputs!D$19,2)","v":0},0,null,null,{"$f":"ROUND((IF('Crop 1'!$C$14=Carbon!$B145,'Crop 1'!$V$14*VLOOKUP('Crop 1'!$E$14,Carbon!$AH$4:$AI$10,2,FALSE),0)+IF('Crop 1'!$C$15=Carbon!$B145,'Crop 1'!$V$15*VLOOKUP('Crop 1'!$E$15,Carbon!$AH$4:$AI$10,2,FALSE),0)+IF('Crop 1'!$C$16=Carbon!$B145,'Crop 1'!$V$16*VLOOKUP('Crop 1'!$E$16,Carbon!$AH$4:$AI$10,2,FALSE),0)+IF('Crop 1'!$C$19=Carbon!$B145,'Crop 1'!$V$19*VLOOKUP('Crop 1'!$E$19,Carbon!$AH$4:$AI$10,2,FALSE),0)+IF('Crop 1'!$C$20=Carbon!$B145,'Crop 1'!$V$20*VLOOKUP('Crop 1'!$E$20,Carbon!$AH$4:$AI$10,2,FALSE),0)+IF('Crop 1'!$C$21=Carbon!$B145,'Crop 1'!$V$21*VLOOKUP('Crop 1'!$E$21,Carbon!$AH$4:$AI$10,2,FALSE),0)+IF('Crop 1'!$C$49=Carbon!$B145,'Crop 1'!$V$49*VLOOKUP('Crop 1'!$E$49,Carbon!$AH$4:$AI$10,2,FALSE),0)+IF('Crop 1'!$C$50=Carbon!$B145,'Crop 1'!$V$50*VLOOKUP('Crop 1'!$E$50,Carbon!$AH$4:$AI$10,2,FALSE),0)+IF('Crop 1'!$C$51=Carbon!$B145,'Crop 1'!$V$51*VLOOKUP('Crop 1'!$E$51,Carbon!$AH$4:$AI$10,2,FALSE),0)+IF('Crop 1'!$C$52=Carbon!$B145,'Crop 1'!$V$52*VLOOKUP('Crop 1'!$E$52,Carbon!$AH$4:$AI$10,2,FALSE),0)+IF('Crop 1'!$C$53=Carbon!$B145,'Crop 1'!$V$53*VLOOKUP('Crop 1'!$E$53,Carbon!$AH$4:$AI$10,2,FALSE),0)+IF('Crop 1'!$C$56=Carbon!$B145,'Crop 1'!$V$56*VLOOKUP('Crop 1'!$E$56,Carbon!$AH$4:$AI$10,2,FALSE),0)+IF('Crop 1'!$C$57=Carbon!$B145,'Crop 1'!$V$57*VLOOKUP('Crop 1'!$E$57,Carbon!$AH$4:$AI$10,2,FALSE),0)+IF('Crop 1'!$C$58=Carbon!$B145,'Crop 1'!$V$58*VLOOKUP('Crop 1'!$E$58,Carbon!$AH$4:$AI$10,2,FALSE),0)+IF('Crop 1'!$C$59=Carbon!$B145,'Crop 1'!$V$59*VLOOKUP('Crop 1'!$E$59,Carbon!$AH$4:$AI$10,2,FALSE),0)+IF('Crop 1'!$C$62=Carbon!$B145,'Crop 1'!$V$62*VLOOKUP('Crop 1'!$E$62,Carbon!$AH$4:$AI$10,2,FALSE),0)+IF('Crop 1'!$C$63=Carbon!$B145,'Crop 1'!$V$63*VLOOKUP('Crop 1'!$E$63,Carbon!$AH$4:$AI$10,2,FALSE),0)+IF('Crop 1'!$C$64=Carbon!$B145,'Crop 1'!$V$64*VLOOKUP('Crop 1'!$E$64,Carbon!$AH$4:$AI$10,2,FALSE),0)+IF('Crop 1'!$C$65=Carbon!$B145,'Crop 1'!$V$65*VLOOKUP('Crop 1'!$E$65,Carbon!$AH$4:$AI$10,2,FALSE),0))*$AL$20,2)","v":0},{"$f":"M145*Inputs!$D$13","v":0},{"$f":"ROUND((IF('Crop 2'!$C$14=Carbon!$B145,'Crop 2'!$V$14*VLOOKUP('Crop 2'!$E$14,Carbon!$AH$4:$AI$10,2,FALSE),0)+IF('Crop 2'!$C$15=Carbon!$B145,'Crop 2'!$V$15*VLOOKUP('Crop 2'!$E$15,Carbon!$AH$4:$AI$10,2,FALSE),0)+IF('Crop 2'!$C$16=Carbon!$B145,'Crop 2'!$V$16*VLOOKUP('Crop 2'!$E$16,Carbon!$AH$4:$AI$10,2,FALSE),0)+IF('Crop 2'!$C$19=Carbon!$B145,'Crop 2'!$V$19*VLOOKUP('Crop 2'!$E$19,Carbon!$AH$4:$AI$10,2,FALSE),0)+IF('Crop 2'!$C$20=Carbon!$B145,'Crop 2'!$V$20*VLOOKUP('Crop 2'!$E$20,Carbon!$AH$4:$AI$10,2,FALSE),0)+IF('Crop 2'!$C$21=Carbon!$B145,'Crop 2'!$V$21*VLOOKUP('Crop 2'!$E$21,Carbon!$AH$4:$AI$10,2,FALSE),0)+IF('Crop 2'!$C$49=Carbon!$B145,'Crop 2'!$V$49*VLOOKUP('Crop 2'!$E$49,Carbon!$AH$4:$AI$10,2,FALSE),0)+IF('Crop 2'!$C$50=Carbon!$B145,'Crop 2'!$V$50*VLOOKUP('Crop 2'!$E$50,Carbon!$AH$4:$AI$10,2,FALSE),0)+IF('Crop 2'!$C$51=Carbon!$B145,'Crop 2'!$V$51*VLOOKUP('Crop 2'!$E$51,Carbon!$AH$4:$AI$10,2,FALSE),0)+IF('Crop 2'!$C$52=Carbon!$B145,'Crop 2'!$V$52*VLOOKUP('Crop 2'!$E$52,Carbon!$AH$4:$AI$10,2,FALSE),0)+IF('Crop 2'!$C$53=Carbon!$B145,'Crop 2'!$V$53*VLOOKUP('Crop 2'!$E$53,Carbon!$AH$4:$AI$10,2,FALSE),0)+IF('Crop 2'!$C$56=Carbon!$B145,'Crop 2'!$V$56*VLOOKUP('Crop 2'!$E$56,Carbon!$AH$4:$AI$10,2,FALSE),0)+IF('Crop 2'!$C$57=Carbon!$B145,'Crop 2'!$V$57*VLOOKUP('Crop 2'!$E$57,Carbon!$AH$4:$AI$10,2,FALSE),0)+IF('Crop 2'!$C$58=Carbon!$B145,'Crop 2'!$V$58*VLOOKUP('Crop 2'!$E$58,Carbon!$AH$4:$AI$10,2,FALSE),0)+IF('Crop 2'!$C$59=Carbon!$B145,'Crop 2'!$V$59*VLOOKUP('Crop 2'!$E$59,Carbon!$AH$4:$AI$10,2,FALSE),0)+IF('Crop 2'!$C$62=Carbon!$B145,'Crop 2'!$V$62*VLOOKUP('Crop 2'!$E$62,Carbon!$AH$4:$AI$10,2,FALSE),0)+IF('Crop 2'!$C$63=Carbon!$B145,'Crop 2'!$V$63*VLOOKUP('Crop 2'!$E$63,Carbon!$AH$4:$AI$10,2,FALSE),0)+IF('Crop 2'!$C$64=Carbon!$B145,'Crop 2'!$V$64*VLOOKUP('Crop 2'!$E$64,Carbon!$AH$4:$AI$10,2,FALSE),0)+IF('Crop 2'!$C$65=Carbon!$B145,'Crop 2'!$V$65*VLOOKUP('Crop 2'!$E$65,Carbon!$AH$4:$AI$10,2,FALSE),0))*$AL$20,2)","v":0},{"$f":"O145*Inputs!$D$15","v":0},{"$f":"ROUND((IF('Crop 3'!$C$14=Carbon!$B145,'Crop 3'!$V$14*VLOOKUP('Crop 3'!$E$14,Carbon!$AH$4:$AI$10,2,FALSE),0)+IF('Crop 3'!$C$15=Carbon!$B145,'Crop 3'!$V$15*VLOOKUP('Crop 3'!$E$15,Carbon!$AH$4:$AI$10,2,FALSE),0)+IF('Crop 3'!$C$16=Carbon!$B145,'Crop 3'!$V$16*VLOOKUP('Crop 3'!$E$16,Carbon!$AH$4:$AI$10,2,FALSE),0)+IF('Crop 3'!$C$19=Carbon!$B145,'Crop 3'!$V$19*VLOOKUP('Crop 3'!$E$19,Carbon!$AH$4:$AI$10,2,FALSE),0)+IF('Crop 3'!$C$20=Carbon!$B145,'Crop 3'!$V$20*VLOOKUP('Crop 3'!$E$20,Carbon!$AH$4:$AI$10,2,FALSE),0)+IF('Crop 3'!$C$21=Carbon!$B145,'Crop 3'!$V$21*VLOOKUP('Crop 3'!$E$21,Carbon!$AH$4:$AI$10,2,FALSE),0)+IF('Crop 3'!$C$49=Carbon!$B145,'Crop 3'!$V$49*VLOOKUP('Crop 3'!$E$49,Carbon!$AH$4:$AI$10,2,FALSE),0)+IF('Crop 3'!$C$50=Carbon!$B145,'Crop 3'!$V$50*VLOOKUP('Crop 3'!$E$50,Carbon!$AH$4:$AI$10,2,FALSE),0)+IF('Crop 3'!$C$51=Carbon!$B145,'Crop 3'!$V$51*VLOOKUP('Crop 3'!$E$51,Carbon!$AH$4:$AI$10,2,FALSE),0)+IF('Crop 3'!$C$52=Carbon!$B145,'Crop 3'!$V$52*VLOOKUP('Crop 3'!$E$52,Carbon!$AH$4:$AI$10,2,FALSE),0)+IF('Crop 3'!$C$53=Carbon!$B145,'Crop 3'!$V$53*VLOOKUP('Crop 3'!$E$53,Carbon!$AH$4:$AI$10,2,FALSE),0)+IF('Crop 3'!$C$56=Carbon!$B145,'Crop 3'!$V$56*VLOOKUP('Crop 3'!$E$56,Carbon!$AH$4:$AI$10,2,FALSE),0)+IF('Crop 3'!$C$57=Carbon!$B145,'Crop 3'!$V$57*VLOOKUP('Crop 3'!$E$57,Carbon!$AH$4:$AI$10,2,FALSE),0)+IF('Crop 3'!$C$58=Carbon!$B145,'Crop 3'!$V$58*VLOOKUP('Crop 3'!$E$58,Carbon!$AH$4:$AI$10,2,FALSE),0)+IF('Crop 3'!$C$59=Carbon!$B145,'Crop 3'!$V$59*VLOOKUP('Crop 3'!$E$59,Carbon!$AH$4:$AI$10,2,FALSE),0)+IF('Crop 3'!$C$62=Carbon!$B145,'Crop 3'!$V$62*VLOOKUP('Crop 3'!$E$62,Carbon!$AH$4:$AI$10,2,FALSE),0)+IF('Crop 3'!$C$63=Carbon!$B145,'Crop 3'!$V$63*VLOOKUP('Crop 3'!$E$63,Carbon!$AH$4:$AI$10,2,FALSE),0)+IF('Crop 3'!$C$64=Carbon!$B145,'Crop 3'!$V$64*VLOOKUP('Crop 3'!$E$64,Carbon!$AH$4:$AI$10,2,FALSE),0)+IF('Crop 3'!$C$65=Carbon!$B145,'Crop 3'!$V$65*VLOOKUP('Crop 3'!$E$65,Carbon!$AH$4:$AI$10,2,FALSE),0))*$AL$20,2)","v":0},{"$f":"Q145*Inputs!$D$17","v":0},{"$f":"ROUND(T145/Inputs!D$19,2)","v":0},0,null,null,0,{"$f":"W145*Inputs!$D$13","v":0},0,{"$f":"Y145*Inputs!$D$13","v":0},0,{"$f":"AA145*Inputs!$D$13","v":0},{"$f":"ROUND(AD145/Inputs!D$19,2)","v":0},0]
[null,{"$f":"Defaults!AH112","v":"Staple LX"},{"$f":"ROUND((IF('Crop 1'!$C$14=Carbon!$B146,'Crop 1'!$L$14*VLOOKUP('Crop 1'!$E$14,Carbon!$AH$4:$AI$10,2,FALSE),0)+IF('Crop 1'!$C$15=Carbon!$B146,'Crop 1'!$L$15*VLOOKUP('Crop 1'!$E$15,Carbon!$AH$4:$AI$10,2,FALSE),0)+IF('Crop 1'!$C$16=Carbon!$B146,'Crop 1'!$L$16*VLOOKUP('Crop 1'!$E$16,Carbon!$AH$4:$AI$10,2,FALSE),0)+IF('Crop 1'!$C$19=Carbon!$B146,'Crop 1'!$L$19*VLOOKUP('Crop 1'!$E$19,Carbon!$AH$4:$AI$10,2,FALSE),0)+IF('Crop 1'!$C$20=Carbon!$B146,'Crop 1'!$L$20*VLOOKUP('Crop 1'!$E$20,Carbon!$AH$4:$AI$10,2,FALSE),0)+IF('Crop 1'!$C$21=Carbon!$B146,'Crop 1'!$L$21*VLOOKUP('Crop 1'!$E$21,Carbon!$AH$4:$AI$10,2,FALSE),0)+IF('Crop 1'!$C$49=Carbon!$B146,'Crop 1'!$L$49*VLOOKUP('Crop 1'!$E$49,Carbon!$AH$4:$AI$10,2,FALSE),0)+IF('Crop 1'!$C$50=Carbon!$B146,'Crop 1'!$L$50*VLOOKUP('Crop 1'!$E$50,Carbon!$AH$4:$AI$10,2,FALSE),0)+IF('Crop 1'!$C$51=Carbon!$B146,'Crop 1'!$L$51*VLOOKUP('Crop 1'!$E$51,Carbon!$AH$4:$AI$10,2,FALSE),0)+IF('Crop 1'!$C$52=Carbon!$B146,'Crop 1'!$L$52*VLOOKUP('Crop 1'!$E$52,Carbon!$AH$4:$AI$10,2,FALSE),0)+IF('Crop 1'!$C$53=Carbon!$B146,'Crop 1'!$L$53*VLOOKUP('Crop 1'!$E$53,Carbon!$AH$4:$AI$10,2,FALSE),0)+IF('Crop 1'!$C$56=Carbon!$B146,'Crop 1'!$L$56*VLOOKUP('Crop 1'!$E$56,Carbon!$AH$4:$AI$10,2,FALSE),0)+IF('Crop 1'!$C$57=Carbon!$B146,'Crop 1'!$L$57*VLOOKUP('Crop 1'!$E$57,Carbon!$AH$4:$AI$10,2,FALSE),0)+IF('Crop 1'!$C$58=Carbon!$B146,'Crop 1'!$L$58*VLOOKUP('Crop 1'!$E$58,Carbon!$AH$4:$AI$10,2,FALSE),0)+IF('Crop 1'!$C$59=Carbon!$B146,'Crop 1'!$L$59*VLOOKUP('Crop 1'!$E$59,Carbon!$AH$4:$AI$10,2,FALSE),0)+IF('Crop 1'!$C$62=Carbon!$B146,'Crop 1'!$L$62*VLOOKUP('Crop 1'!$E$62,Carbon!$AH$4:$AI$10,2,FALSE),0)+IF('Crop 1'!$C$63=Carbon!$B146,'Crop 1'!$L$63*VLOOKUP('Crop 1'!$E$63,Carbon!$AH$4:$AI$10,2,FALSE),0)+IF('Crop 1'!$C$64=Carbon!$B146,'Crop 1'!$L$64*VLOOKUP('Crop 1'!$E$64,Carbon!$AH$4:$AI$10,2,FALSE),0)+IF('Crop 1'!$C$65=Carbon!$B146,'Crop 1'!$L$65*VLOOKUP('Crop 1'!$E$65,Carbon!$AH$4:$AI$10,2,FALSE),0))*$AL$20,2)","v":0},{"$f":"C146*Inputs!$D$13","v":0},{"$f":"ROUND((IF('Crop 2'!$C$14=Carbon!$B146,'Crop 2'!$L$14*VLOOKUP('Crop 2'!$E$14,Carbon!$AH$4:$AI$10,2,FALSE),0)+IF('Crop 2'!$C$15=Carbon!$B146,'Crop 2'!$L$15*VLOOKUP('Crop 2'!$E$15,Carbon!$AH$4:$AI$10,2,FALSE),0)+IF('Crop 2'!$C$16=Carbon!$B146,'Crop 2'!$L$16*VLOOKUP('Crop 2'!$E$16,Carbon!$AH$4:$AI$10,2,FALSE),0)+IF('Crop 2'!$C$19=Carbon!$B146,'Crop 2'!$L$19*VLOOKUP('Crop 2'!$E$19,Carbon!$AH$4:$AI$10,2,FALSE),0)+IF('Crop 2'!$C$20=Carbon!$B146,'Crop 2'!$L$20*VLOOKUP('Crop 2'!$E$20,Carbon!$AH$4:$AI$10,2,FALSE),0)+IF('Crop 2'!$C$21=Carbon!$B146,'Crop 2'!$L$21*VLOOKUP('Crop 2'!$E$21,Carbon!$AH$4:$AI$10,2,FALSE),0)+IF('Crop 2'!$C$49=Carbon!$B146,'Crop 2'!$L$49*VLOOKUP('Crop 2'!$E$49,Carbon!$AH$4:$AI$10,2,FALSE),0)+IF('Crop 2'!$C$50=Carbon!$B146,'Crop 2'!$L$50*VLOOKUP('Crop 2'!$E$50,Carbon!$AH$4:$AI$10,2,FALSE),0)+IF('Crop 2'!$C$51=Carbon!$B146,'Crop 2'!$L$51*VLOOKUP('Crop 2'!$E$51,Carbon!$AH$4:$AI$10,2,FALSE),0)+IF('Crop 2'!$C$52=Carbon!$B146,'Crop 2'!$L$52*VLOOKUP('Crop 2'!$E$52,Carbon!$AH$4:$AI$10,2,FALSE),0)+IF('Crop 2'!$C$53=Carbon!$B146,'Crop 2'!$L$53*VLOOKUP('Crop 2'!$E$53,Carbon!$AH$4:$AI$10,2,FALSE),0)+IF('Crop 2'!$C$56=Carbon!$B146,'Crop 2'!$L$56*VLOOKUP('Crop 2'!$E$56,Carbon!$AH$4:$AI$10,2,FALSE),0)+IF('Crop 2'!$C$57=Carbon!$B146,'Crop 2'!$L$57*VLOOKUP('Crop 2'!$E$57,Carbon!$AH$4:$AI$10,2,FALSE),0)+IF('Crop 2'!$C$58=Carbon!$B146,'Crop 2'!$L$58*VLOOKUP('Crop 2'!$E$58,Carbon!$AH$4:$AI$10,2,FALSE),0)+IF('Crop 2'!$C$59=Carbon!$B146,'Crop 2'!$L$59*VLOOKUP('Crop 2'!$E$59,Carbon!$AH$4:$AI$10,2,FALSE),0)+IF('Crop 2'!$C$62=Carbon!$B146,'Crop 2'!$L$62*VLOOKUP('Crop 2'!$E$62,Carbon!$AH$4:$AI$10,2,FALSE),0)+IF('Crop 2'!$C$63=Carbon!$B146,'Crop 2'!$L$63*VLOOKUP('Crop 2'!$E$63,Carbon!$AH$4:$AI$10,2,FALSE),0)+IF('Crop 2'!$C$64=Carbon!$B146,'Crop 2'!$L$64*VLOOKUP('Crop 2'!$E$64,Carbon!$AH$4:$AI$10,2,FALSE),0)+IF('Crop 2'!$C$65=Carbon!$B146,'Crop 2'!$L$65*VLOOKUP('Crop 2'!$E$65,Carbon!$AH$4:$AI$10,2,FALSE),0))*$AL$20,2)","v":0},{"$f":"E146*Inputs!$D$15","v":0},{"$f":"ROUND((IF('Crop 3'!$C$14=Carbon!$B146,'Crop 3'!$L$14*VLOOKUP('Crop 3'!$E$14,Carbon!$AH$4:$AI$10,2,FALSE),0)+IF('Crop 3'!$C$15=Carbon!$B146,'Crop 3'!$L$15*VLOOKUP('Crop 3'!$E$15,Carbon!$AH$4:$AI$10,2,FALSE),0)+IF('Crop 3'!$C$16=Carbon!$B146,'Crop 3'!$L$16*VLOOKUP('Crop 3'!$E$16,Carbon!$AH$4:$AI$10,2,FALSE),0)+IF('Crop 3'!$C$19=Carbon!$B146,'Crop 3'!$L$19*VLOOKUP('Crop 3'!$E$19,Carbon!$AH$4:$AI$10,2,FALSE),0)+IF('Crop 3'!$C$20=Carbon!$B146,'Crop 3'!$L$20*VLOOKUP('Crop 3'!$E$20,Carbon!$AH$4:$AI$10,2,FALSE),0)+IF('Crop 3'!$C$21=Carbon!$B146,'Crop 3'!$L$21*VLOOKUP('Crop 3'!$E$21,Carbon!$AH$4:$AI$10,2,FALSE),0)+IF('Crop 3'!$C$49=Carbon!$B146,'Crop 3'!$L$49*VLOOKUP('Crop 3'!$E$49,Carbon!$AH$4:$AI$10,2,FALSE),0)+IF('Crop 3'!$C$50=Carbon!$B146,'Crop 3'!$L$50*VLOOKUP('Crop 3'!$E$50,Carbon!$AH$4:$AI$10,2,FALSE),0)+IF('Crop 3'!$C$51=Carbon!$B146,'Crop 3'!$L$51*VLOOKUP('Crop 3'!$E$51,Carbon!$AH$4:$AI$10,2,FALSE),0)+IF('Crop 3'!$C$52=Carbon!$B146,'Crop 3'!$L$52*VLOOKUP('Crop 3'!$E$52,Carbon!$AH$4:$AI$10,2,FALSE),0)+IF('Crop 3'!$C$53=Carbon!$B146,'Crop 3'!$L$53*VLOOKUP('Crop 3'!$E$53,Carbon!$AH$4:$AI$10,2,FALSE),0)+IF('Crop 3'!$C$56=Carbon!$B146,'Crop 3'!$L$56*VLOOKUP('Crop 3'!$E$56,Carbon!$AH$4:$AI$10,2,FALSE),0)+IF('Crop 3'!$C$57=Carbon!$B146,'Crop 3'!$L$57*VLOOKUP('Crop 3'!$E$57,Carbon!$AH$4:$AI$10,2,FALSE),0)+IF('Crop 3'!$C$58=Carbon!$B146,'Crop 3'!$L$58*VLOOKUP('Crop 3'!$E$58,Carbon!$AH$4:$AI$10,2,FALSE),0)+IF('Crop 3'!$C$59=Carbon!$B146,'Crop 3'!$L$59*VLOOKUP('Crop 3'!$E$59,Carbon!$AH$4:$AI$10,2,FALSE),0)+IF('Crop 3'!$C$62=Carbon!$B146,'Crop 3'!$L$62*VLOOKUP('Crop 3'!$E$62,Carbon!$AH$4:$AI$10,2,FALSE),0)+IF('Crop 3'!$C$63=Carbon!$B146,'Crop 3'!$L$63*VLOOKUP('Crop 3'!$E$63,Carbon!$AH$4:$AI$10,2,FALSE),0)+IF('Crop 3'!$C$64=Carbon!$B146,'Crop 3'!$L$64*VLOOKUP('Crop 3'!$E$64,Carbon!$AH$4:$AI$10,2,FALSE),0)+IF('Crop 3'!$C$65=Carbon!$B146,'Crop 3'!$L$65*VLOOKUP('Crop 3'!$E$65,Carbon!$AH$4:$AI$10,2,FALSE),0))*$AL$20,2)","v":0},{"$f":"G146*Inputs!$D$17","v":0},{"$f":"ROUND(J146/Inputs!D$19,2)","v":0},0,null,null,{"$f":"ROUND((IF('Crop 1'!$C$14=Carbon!$B146,'Crop 1'!$V$14*VLOOKUP('Crop 1'!$E$14,Carbon!$AH$4:$AI$10,2,FALSE),0)+IF('Crop 1'!$C$15=Carbon!$B146,'Crop 1'!$V$15*VLOOKUP('Crop 1'!$E$15,Carbon!$AH$4:$AI$10,2,FALSE),0)+IF('Crop 1'!$C$16=Carbon!$B146,'Crop 1'!$V$16*VLOOKUP('Crop 1'!$E$16,Carbon!$AH$4:$AI$10,2,FALSE),0)+IF('Crop 1'!$C$19=Carbon!$B146,'Crop 1'!$V$19*VLOOKUP('Crop 1'!$E$19,Carbon!$AH$4:$AI$10,2,FALSE),0)+IF('Crop 1'!$C$20=Carbon!$B146,'Crop 1'!$V$20*VLOOKUP('Crop 1'!$E$20,Carbon!$AH$4:$AI$10,2,FALSE),0)+IF('Crop 1'!$C$21=Carbon!$B146,'Crop 1'!$V$21*VLOOKUP('Crop 1'!$E$21,Carbon!$AH$4:$AI$10,2,FALSE),0)+IF('Crop 1'!$C$49=Carbon!$B146,'Crop 1'!$V$49*VLOOKUP('Crop 1'!$E$49,Carbon!$AH$4:$AI$10,2,FALSE),0)+IF('Crop 1'!$C$50=Carbon!$B146,'Crop 1'!$V$50*VLOOKUP('Crop 1'!$E$50,Carbon!$AH$4:$AI$10,2,FALSE),0)+IF('Crop 1'!$C$51=Carbon!$B146,'Crop 1'!$V$51*VLOOKUP('Crop 1'!$E$51,Carbon!$AH$4:$AI$10,2,FALSE),0)+IF('Crop 1'!$C$52=Carbon!$B146,'Crop 1'!$V$52*VLOOKUP('Crop 1'!$E$52,Carbon!$AH$4:$AI$10,2,FALSE),0)+IF('Crop 1'!$C$53=Carbon!$B146,'Crop 1'!$V$53*VLOOKUP('Crop 1'!$E$53,Carbon!$AH$4:$AI$10,2,FALSE),0)+IF('Crop 1'!$C$56=Carbon!$B146,'Crop 1'!$V$56*VLOOKUP('Crop 1'!$E$56,Carbon!$AH$4:$AI$10,2,FALSE),0)+IF('Crop 1'!$C$57=Carbon!$B146,'Crop 1'!$V$57*VLOOKUP('Crop 1'!$E$57,Carbon!$AH$4:$AI$10,2,FALSE),0)+IF('Crop 1'!$C$58=Carbon!$B146,'Crop 1'!$V$58*VLOOKUP('Crop 1'!$E$58,Carbon!$AH$4:$AI$10,2,FALSE),0)+IF('Crop 1'!$C$59=Carbon!$B146,'Crop 1'!$V$59*VLOOKUP('Crop 1'!$E$59,Carbon!$AH$4:$AI$10,2,FALSE),0)+IF('Crop 1'!$C$62=Carbon!$B146,'Crop 1'!$V$62*VLOOKUP('Crop 1'!$E$62,Carbon!$AH$4:$AI$10,2,FALSE),0)+IF('Crop 1'!$C$63=Carbon!$B146,'Crop 1'!$V$63*VLOOKUP('Crop 1'!$E$63,Carbon!$AH$4:$AI$10,2,FALSE),0)+IF('Crop 1'!$C$64=Carbon!$B146,'Crop 1'!$V$64*VLOOKUP('Crop 1'!$E$64,Carbon!$AH$4:$AI$10,2,FALSE),0)+IF('Crop 1'!$C$65=Carbon!$B146,'Crop 1'!$V$65*VLOOKUP('Crop 1'!$E$65,Carbon!$AH$4:$AI$10,2,FALSE),0))*$AL$20,2)","v":0},{"$f":"M146*Inputs!$D$13","v":0},{"$f":"ROUND((IF('Crop 2'!$C$14=Carbon!$B146,'Crop 2'!$V$14*VLOOKUP('Crop 2'!$E$14,Carbon!$AH$4:$AI$10,2,FALSE),0)+IF('Crop 2'!$C$15=Carbon!$B146,'Crop 2'!$V$15*VLOOKUP('Crop 2'!$E$15,Carbon!$AH$4:$AI$10,2,FALSE),0)+IF('Crop 2'!$C$16=Carbon!$B146,'Crop 2'!$V$16*VLOOKUP('Crop 2'!$E$16,Carbon!$AH$4:$AI$10,2,FALSE),0)+IF('Crop 2'!$C$19=Carbon!$B146,'Crop 2'!$V$19*VLOOKUP('Crop 2'!$E$19,Carbon!$AH$4:$AI$10,2,FALSE),0)+IF('Crop 2'!$C$20=Carbon!$B146,'Crop 2'!$V$20*VLOOKUP('Crop 2'!$E$20,Carbon!$AH$4:$AI$10,2,FALSE),0)+IF('Crop 2'!$C$21=Carbon!$B146,'Crop 2'!$V$21*VLOOKUP('Crop 2'!$E$21,Carbon!$AH$4:$AI$10,2,FALSE),0)+IF('Crop 2'!$C$49=Carbon!$B146,'Crop 2'!$V$49*VLOOKUP('Crop 2'!$E$49,Carbon!$AH$4:$AI$10,2,FALSE),0)+IF('Crop 2'!$C$50=Carbon!$B146,'Crop 2'!$V$50*VLOOKUP('Crop 2'!$E$50,Carbon!$AH$4:$AI$10,2,FALSE),0)+IF('Crop 2'!$C$51=Carbon!$B146,'Crop 2'!$V$51*VLOOKUP('Crop 2'!$E$51,Carbon!$AH$4:$AI$10,2,FALSE),0)+IF('Crop 2'!$C$52=Carbon!$B146,'Crop 2'!$V$52*VLOOKUP('Crop 2'!$E$52,Carbon!$AH$4:$AI$10,2,FALSE),0)+IF('Crop 2'!$C$53=Carbon!$B146,'Crop 2'!$V$53*VLOOKUP('Crop 2'!$E$53,Carbon!$AH$4:$AI$10,2,FALSE),0)+IF('Crop 2'!$C$56=Carbon!$B146,'Crop 2'!$V$56*VLOOKUP('Crop 2'!$E$56,Carbon!$AH$4:$AI$10,2,FALSE),0)+IF('Crop 2'!$C$57=Carbon!$B146,'Crop 2'!$V$57*VLOOKUP('Crop 2'!$E$57,Carbon!$AH$4:$AI$10,2,FALSE),0)+IF('Crop 2'!$C$58=Carbon!$B146,'Crop 2'!$V$58*VLOOKUP('Crop 2'!$E$58,Carbon!$AH$4:$AI$10,2,FALSE),0)+IF('Crop 2'!$C$59=Carbon!$B146,'Crop 2'!$V$59*VLOOKUP('Crop 2'!$E$59,Carbon!$AH$4:$AI$10,2,FALSE),0)+IF('Crop 2'!$C$62=Carbon!$B146,'Crop 2'!$V$62*VLOOKUP('Crop 2'!$E$62,Carbon!$AH$4:$AI$10,2,FALSE),0)+IF('Crop 2'!$C$63=Carbon!$B146,'Crop 2'!$V$63*VLOOKUP('Crop 2'!$E$63,Carbon!$AH$4:$AI$10,2,FALSE),0)+IF('Crop 2'!$C$64=Carbon!$B146,'Crop 2'!$V$64*VLOOKUP('Crop 2'!$E$64,Carbon!$AH$4:$AI$10,2,FALSE),0)+IF('Crop 2'!$C$65=Carbon!$B146,'Crop 2'!$V$65*VLOOKUP('Crop 2'!$E$65,Carbon!$AH$4:$AI$10,2,FALSE),0))*$AL$20,2)","v":0},{"$f":"O146*Inputs!$D$15","v":0},{"$f":"ROUND((IF('Crop 3'!$C$14=Carbon!$B146,'Crop 3'!$V$14*VLOOKUP('Crop 3'!$E$14,Carbon!$AH$4:$AI$10,2,FALSE),0)+IF('Crop 3'!$C$15=Carbon!$B146,'Crop 3'!$V$15*VLOOKUP('Crop 3'!$E$15,Carbon!$AH$4:$AI$10,2,FALSE),0)+IF('Crop 3'!$C$16=Carbon!$B146,'Crop 3'!$V$16*VLOOKUP('Crop 3'!$E$16,Carbon!$AH$4:$AI$10,2,FALSE),0)+IF('Crop 3'!$C$19=Carbon!$B146,'Crop 3'!$V$19*VLOOKUP('Crop 3'!$E$19,Carbon!$AH$4:$AI$10,2,FALSE),0)+IF('Crop 3'!$C$20=Carbon!$B146,'Crop 3'!$V$20*VLOOKUP('Crop 3'!$E$20,Carbon!$AH$4:$AI$10,2,FALSE),0)+IF('Crop 3'!$C$21=Carbon!$B146,'Crop 3'!$V$21*VLOOKUP('Crop 3'!$E$21,Carbon!$AH$4:$AI$10,2,FALSE),0)+IF('Crop 3'!$C$49=Carbon!$B146,'Crop 3'!$V$49*VLOOKUP('Crop 3'!$E$49,Carbon!$AH$4:$AI$10,2,FALSE),0)+IF('Crop 3'!$C$50=Carbon!$B146,'Crop 3'!$V$50*VLOOKUP('Crop 3'!$E$50,Carbon!$AH$4:$AI$10,2,FALSE),0)+IF('Crop 3'!$C$51=Carbon!$B146,'Crop 3'!$V$51*VLOOKUP('Crop 3'!$E$51,Carbon!$AH$4:$AI$10,2,FALSE),0)+IF('Crop 3'!$C$52=Carbon!$B146,'Crop 3'!$V$52*VLOOKUP('Crop 3'!$E$52,Carbon!$AH$4:$AI$10,2,FALSE),0)+IF('Crop 3'!$C$53=Carbon!$B146,'Crop 3'!$V$53*VLOOKUP('Crop 3'!$E$53,Carbon!$AH$4:$AI$10,2,FALSE),0)+IF('Crop 3'!$C$56=Carbon!$B146,'Crop 3'!$V$56*VLOOKUP('Crop 3'!$E$56,Carbon!$AH$4:$AI$10,2,FALSE),0)+IF('Crop 3'!$C$57=Carbon!$B146,'Crop 3'!$V$57*VLOOKUP('Crop 3'!$E$57,Carbon!$AH$4:$AI$10,2,FALSE),0)+IF('Crop 3'!$C$58=Carbon!$B146,'Crop 3'!$V$58*VLOOKUP('Crop 3'!$E$58,Carbon!$AH$4:$AI$10,2,FALSE),0)+IF('Crop 3'!$C$59=Carbon!$B146,'Crop 3'!$V$59*VLOOKUP('Crop 3'!$E$59,Carbon!$AH$4:$AI$10,2,FALSE),0)+IF('Crop 3'!$C$62=Carbon!$B146,'Crop 3'!$V$62*VLOOKUP('Crop 3'!$E$62,Carbon!$AH$4:$AI$10,2,FALSE),0)+IF('Crop 3'!$C$63=Carbon!$B146,'Crop 3'!$V$63*VLOOKUP('Crop 3'!$E$63,Carbon!$AH$4:$AI$10,2,FALSE),0)+IF('Crop 3'!$C$64=Carbon!$B146,'Crop 3'!$V$64*VLOOKUP('Crop 3'!$E$64,Carbon!$AH$4:$AI$10,2,FALSE),0)+IF('Crop 3'!$C$65=Carbon!$B146,'Crop 3'!$V$65*VLOOKUP('Crop 3'!$E$65,Carbon!$AH$4:$AI$10,2,FALSE),0))*$AL$20,2)","v":0},{"$f":"Q146*Inputs!$D$17","v":0},{"$f":"ROUND(T146/Inputs!D$19,2)","v":0},0,null,null,0,{"$f":"W146*Inputs!$D$13","v":0},0,{"$f":"Y146*Inputs!$D$13","v":0},0,{"$f":"AA146*Inputs!$D$13","v":0},{"$f":"ROUND(AD146/Inputs!D$19,2)","v":0},0]
[null,{"$f":"Defaults!AH113","v":"Steadfast Q"},{"$f":"ROUND((IF('Crop 1'!$C$14=Carbon!$B147,'Crop 1'!$L$14*VLOOKUP('Crop 1'!$E$14,Carbon!$AH$4:$AI$10,2,FALSE),0)+IF('Crop 1'!$C$15=Carbon!$B147,'Crop 1'!$L$15*VLOOKUP('Crop 1'!$E$15,Carbon!$AH$4:$AI$10,2,FALSE),0)+IF('Crop 1'!$C$16=Carbon!$B147,'Crop 1'!$L$16*VLOOKUP('Crop 1'!$E$16,Carbon!$AH$4:$AI$10,2,FALSE),0)+IF('Crop 1'!$C$19=Carbon!$B147,'Crop 1'!$L$19*VLOOKUP('Crop 1'!$E$19,Carbon!$AH$4:$AI$10,2,FALSE),0)+IF('Crop 1'!$C$20=Carbon!$B147,'Crop 1'!$L$20*VLOOKUP('Crop 1'!$E$20,Carbon!$AH$4:$AI$10,2,FALSE),0)+IF('Crop 1'!$C$21=Carbon!$B147,'Crop 1'!$L$21*VLOOKUP('Crop 1'!$E$21,Carbon!$AH$4:$AI$10,2,FALSE),0)+IF('Crop 1'!$C$49=Carbon!$B147,'Crop 1'!$L$49*VLOOKUP('Crop 1'!$E$49,Carbon!$AH$4:$AI$10,2,FALSE),0)+IF('Crop 1'!$C$50=Carbon!$B147,'Crop 1'!$L$50*VLOOKUP('Crop 1'!$E$50,Carbon!$AH$4:$AI$10,2,FALSE),0)+IF('Crop 1'!$C$51=Carbon!$B147,'Crop 1'!$L$51*VLOOKUP('Crop 1'!$E$51,Carbon!$AH$4:$AI$10,2,FALSE),0)+IF('Crop 1'!$C$52=Carbon!$B147,'Crop 1'!$L$52*VLOOKUP('Crop 1'!$E$52,Carbon!$AH$4:$AI$10,2,FALSE),0)+IF('Crop 1'!$C$53=Carbon!$B147,'Crop 1'!$L$53*VLOOKUP('Crop 1'!$E$53,Carbon!$AH$4:$AI$10,2,FALSE),0)+IF('Crop 1'!$C$56=Carbon!$B147,'Crop 1'!$L$56*VLOOKUP('Crop 1'!$E$56,Carbon!$AH$4:$AI$10,2,FALSE),0)+IF('Crop 1'!$C$57=Carbon!$B147,'Crop 1'!$L$57*VLOOKUP('Crop 1'!$E$57,Carbon!$AH$4:$AI$10,2,FALSE),0)+IF('Crop 1'!$C$58=Carbon!$B147,'Crop 1'!$L$58*VLOOKUP('Crop 1'!$E$58,Carbon!$AH$4:$AI$10,2,FALSE),0)+IF('Crop 1'!$C$59=Carbon!$B147,'Crop 1'!$L$59*VLOOKUP('Crop 1'!$E$59,Carbon!$AH$4:$AI$10,2,FALSE),0)+IF('Crop 1'!$C$62=Carbon!$B147,'Crop 1'!$L$62*VLOOKUP('Crop 1'!$E$62,Carbon!$AH$4:$AI$10,2,FALSE),0)+IF('Crop 1'!$C$63=Carbon!$B147,'Crop 1'!$L$63*VLOOKUP('Crop 1'!$E$63,Carbon!$AH$4:$AI$10,2,FALSE),0)+IF('Crop 1'!$C$64=Carbon!$B147,'Crop 1'!$L$64*VLOOKUP('Crop 1'!$E$64,Carbon!$AH$4:$AI$10,2,FALSE),0)+IF('Crop 1'!$C$65=Carbon!$B147,'Crop 1'!$L$65*VLOOKUP('Crop 1'!$E$65,Carbon!$AH$4:$AI$10,2,FALSE),0))*$AL$20,2)","v":0},{"$f":"C147*Inputs!$D$13","v":0},{"$f":"ROUND((IF('Crop 2'!$C$14=Carbon!$B147,'Crop 2'!$L$14*VLOOKUP('Crop 2'!$E$14,Carbon!$AH$4:$AI$10,2,FALSE),0)+IF('Crop 2'!$C$15=Carbon!$B147,'Crop 2'!$L$15*VLOOKUP('Crop 2'!$E$15,Carbon!$AH$4:$AI$10,2,FALSE),0)+IF('Crop 2'!$C$16=Carbon!$B147,'Crop 2'!$L$16*VLOOKUP('Crop 2'!$E$16,Carbon!$AH$4:$AI$10,2,FALSE),0)+IF('Crop 2'!$C$19=Carbon!$B147,'Crop 2'!$L$19*VLOOKUP('Crop 2'!$E$19,Carbon!$AH$4:$AI$10,2,FALSE),0)+IF('Crop 2'!$C$20=Carbon!$B147,'Crop 2'!$L$20*VLOOKUP('Crop 2'!$E$20,Carbon!$AH$4:$AI$10,2,FALSE),0)+IF('Crop 2'!$C$21=Carbon!$B147,'Crop 2'!$L$21*VLOOKUP('Crop 2'!$E$21,Carbon!$AH$4:$AI$10,2,FALSE),0)+IF('Crop 2'!$C$49=Carbon!$B147,'Crop 2'!$L$49*VLOOKUP('Crop 2'!$E$49,Carbon!$AH$4:$AI$10,2,FALSE),0)+IF('Crop 2'!$C$50=Carbon!$B147,'Crop 2'!$L$50*VLOOKUP('Crop 2'!$E$50,Carbon!$AH$4:$AI$10,2,FALSE),0)+IF('Crop 2'!$C$51=Carbon!$B147,'Crop 2'!$L$51*VLOOKUP('Crop 2'!$E$51,Carbon!$AH$4:$AI$10,2,FALSE),0)+IF('Crop 2'!$C$52=Carbon!$B147,'Crop 2'!$L$52*VLOOKUP('Crop 2'!$E$52,Carbon!$AH$4:$AI$10,2,FALSE),0)+IF('Crop 2'!$C$53=Carbon!$B147,'Crop 2'!$L$53*VLOOKUP('Crop 2'!$E$53,Carbon!$AH$4:$AI$10,2,FALSE),0)+IF('Crop 2'!$C$56=Carbon!$B147,'Crop 2'!$L$56*VLOOKUP('Crop 2'!$E$56,Carbon!$AH$4:$AI$10,2,FALSE),0)+IF('Crop 2'!$C$57=Carbon!$B147,'Crop 2'!$L$57*VLOOKUP('Crop 2'!$E$57,Carbon!$AH$4:$AI$10,2,FALSE),0)+IF('Crop 2'!$C$58=Carbon!$B147,'Crop 2'!$L$58*VLOOKUP('Crop 2'!$E$58,Carbon!$AH$4:$AI$10,2,FALSE),0)+IF('Crop 2'!$C$59=Carbon!$B147,'Crop 2'!$L$59*VLOOKUP('Crop 2'!$E$59,Carbon!$AH$4:$AI$10,2,FALSE),0)+IF('Crop 2'!$C$62=Carbon!$B147,'Crop 2'!$L$62*VLOOKUP('Crop 2'!$E$62,Carbon!$AH$4:$AI$10,2,FALSE),0)+IF('Crop 2'!$C$63=Carbon!$B147,'Crop 2'!$L$63*VLOOKUP('Crop 2'!$E$63,Carbon!$AH$4:$AI$10,2,FALSE),0)+IF('Crop 2'!$C$64=Carbon!$B147,'Crop 2'!$L$64*VLOOKUP('Crop 2'!$E$64,Carbon!$AH$4:$AI$10,2,FALSE),0)+IF('Crop 2'!$C$65=Carbon!$B147,'Crop 2'!$L$65*VLOOKUP('Crop 2'!$E$65,Carbon!$AH$4:$AI$10,2,FALSE),0))*$AL$20,2)","v":0},{"$f":"E147*Inputs!$D$15","v":0},{"$f":"ROUND((IF('Crop 3'!$C$14=Carbon!$B147,'Crop 3'!$L$14*VLOOKUP('Crop 3'!$E$14,Carbon!$AH$4:$AI$10,2,FALSE),0)+IF('Crop 3'!$C$15=Carbon!$B147,'Crop 3'!$L$15*VLOOKUP('Crop 3'!$E$15,Carbon!$AH$4:$AI$10,2,FALSE),0)+IF('Crop 3'!$C$16=Carbon!$B147,'Crop 3'!$L$16*VLOOKUP('Crop 3'!$E$16,Carbon!$AH$4:$AI$10,2,FALSE),0)+IF('Crop 3'!$C$19=Carbon!$B147,'Crop 3'!$L$19*VLOOKUP('Crop 3'!$E$19,Carbon!$AH$4:$AI$10,2,FALSE),0)+IF('Crop 3'!$C$20=Carbon!$B147,'Crop 3'!$L$20*VLOOKUP('Crop 3'!$E$20,Carbon!$AH$4:$AI$10,2,FALSE),0)+IF('Crop 3'!$C$21=Carbon!$B147,'Crop 3'!$L$21*VLOOKUP('Crop 3'!$E$21,Carbon!$AH$4:$AI$10,2,FALSE),0)+IF('Crop 3'!$C$49=Carbon!$B147,'Crop 3'!$L$49*VLOOKUP('Crop 3'!$E$49,Carbon!$AH$4:$AI$10,2,FALSE),0)+IF('Crop 3'!$C$50=Carbon!$B147,'Crop 3'!$L$50*VLOOKUP('Crop 3'!$E$50,Carbon!$AH$4:$AI$10,2,FALSE),0)+IF('Crop 3'!$C$51=Carbon!$B147,'Crop 3'!$L$51*VLOOKUP('Crop 3'!$E$51,Carbon!$AH$4:$AI$10,2,FALSE),0)+IF('Crop 3'!$C$52=Carbon!$B147,'Crop 3'!$L$52*VLOOKUP('Crop 3'!$E$52,Carbon!$AH$4:$AI$10,2,FALSE),0)+IF('Crop 3'!$C$53=Carbon!$B147,'Crop 3'!$L$53*VLOOKUP('Crop 3'!$E$53,Carbon!$AH$4:$AI$10,2,FALSE),0)+IF('Crop 3'!$C$56=Carbon!$B147,'Crop 3'!$L$56*VLOOKUP('Crop 3'!$E$56,Carbon!$AH$4:$AI$10,2,FALSE),0)+IF('Crop 3'!$C$57=Carbon!$B147,'Crop 3'!$L$57*VLOOKUP('Crop 3'!$E$57,Carbon!$AH$4:$AI$10,2,FALSE),0)+IF('Crop 3'!$C$58=Carbon!$B147,'Crop 3'!$L$58*VLOOKUP('Crop 3'!$E$58,Carbon!$AH$4:$AI$10,2,FALSE),0)+IF('Crop 3'!$C$59=Carbon!$B147,'Crop 3'!$L$59*VLOOKUP('Crop 3'!$E$59,Carbon!$AH$4:$AI$10,2,FALSE),0)+IF('Crop 3'!$C$62=Carbon!$B147,'Crop 3'!$L$62*VLOOKUP('Crop 3'!$E$62,Carbon!$AH$4:$AI$10,2,FALSE),0)+IF('Crop 3'!$C$63=Carbon!$B147,'Crop 3'!$L$63*VLOOKUP('Crop 3'!$E$63,Carbon!$AH$4:$AI$10,2,FALSE),0)+IF('Crop 3'!$C$64=Carbon!$B147,'Crop 3'!$L$64*VLOOKUP('Crop 3'!$E$64,Carbon!$AH$4:$AI$10,2,FALSE),0)+IF('Crop 3'!$C$65=Carbon!$B147,'Crop 3'!$L$65*VLOOKUP('Crop 3'!$E$65,Carbon!$AH$4:$AI$10,2,FALSE),0))*$AL$20,2)","v":0},{"$f":"G147*Inputs!$D$17","v":0},{"$f":"ROUND(J147/Inputs!D$19,2)","v":0},0,null,null,{"$f":"ROUND((IF('Crop 1'!$C$14=Carbon!$B147,'Crop 1'!$V$14*VLOOKUP('Crop 1'!$E$14,Carbon!$AH$4:$AI$10,2,FALSE),0)+IF('Crop 1'!$C$15=Carbon!$B147,'Crop 1'!$V$15*VLOOKUP('Crop 1'!$E$15,Carbon!$AH$4:$AI$10,2,FALSE),0)+IF('Crop 1'!$C$16=Carbon!$B147,'Crop 1'!$V$16*VLOOKUP('Crop 1'!$E$16,Carbon!$AH$4:$AI$10,2,FALSE),0)+IF('Crop 1'!$C$19=Carbon!$B147,'Crop 1'!$V$19*VLOOKUP('Crop 1'!$E$19,Carbon!$AH$4:$AI$10,2,FALSE),0)+IF('Crop 1'!$C$20=Carbon!$B147,'Crop 1'!$V$20*VLOOKUP('Crop 1'!$E$20,Carbon!$AH$4:$AI$10,2,FALSE),0)+IF('Crop 1'!$C$21=Carbon!$B147,'Crop 1'!$V$21*VLOOKUP('Crop 1'!$E$21,Carbon!$AH$4:$AI$10,2,FALSE),0)+IF('Crop 1'!$C$49=Carbon!$B147,'Crop 1'!$V$49*VLOOKUP('Crop 1'!$E$49,Carbon!$AH$4:$AI$10,2,FALSE),0)+IF('Crop 1'!$C$50=Carbon!$B147,'Crop 1'!$V$50*VLOOKUP('Crop 1'!$E$50,Carbon!$AH$4:$AI$10,2,FALSE),0)+IF('Crop 1'!$C$51=Carbon!$B147,'Crop 1'!$V$51*VLOOKUP('Crop 1'!$E$51,Carbon!$AH$4:$AI$10,2,FALSE),0)+IF('Crop 1'!$C$52=Carbon!$B147,'Crop 1'!$V$52*VLOOKUP('Crop 1'!$E$52,Carbon!$AH$4:$AI$10,2,FALSE),0)+IF('Crop 1'!$C$53=Carbon!$B147,'Crop 1'!$V$53*VLOOKUP('Crop 1'!$E$53,Carbon!$AH$4:$AI$10,2,FALSE),0)+IF('Crop 1'!$C$56=Carbon!$B147,'Crop 1'!$V$56*VLOOKUP('Crop 1'!$E$56,Carbon!$AH$4:$AI$10,2,FALSE),0)+IF('Crop 1'!$C$57=Carbon!$B147,'Crop 1'!$V$57*VLOOKUP('Crop 1'!$E$57,Carbon!$AH$4:$AI$10,2,FALSE),0)+IF('Crop 1'!$C$58=Carbon!$B147,'Crop 1'!$V$58*VLOOKUP('Crop 1'!$E$58,Carbon!$AH$4:$AI$10,2,FALSE),0)+IF('Crop 1'!$C$59=Carbon!$B147,'Crop 1'!$V$59*VLOOKUP('Crop 1'!$E$59,Carbon!$AH$4:$AI$10,2,FALSE),0)+IF('Crop 1'!$C$62=Carbon!$B147,'Crop 1'!$V$62*VLOOKUP('Crop 1'!$E$62,Carbon!$AH$4:$AI$10,2,FALSE),0)+IF('Crop 1'!$C$63=Carbon!$B147,'Crop 1'!$V$63*VLOOKUP('Crop 1'!$E$63,Carbon!$AH$4:$AI$10,2,FALSE),0)+IF('Crop 1'!$C$64=Carbon!$B147,'Crop 1'!$V$64*VLOOKUP('Crop 1'!$E$64,Carbon!$AH$4:$AI$10,2,FALSE),0)+IF('Crop 1'!$C$65=Carbon!$B147,'Crop 1'!$V$65*VLOOKUP('Crop 1'!$E$65,Carbon!$AH$4:$AI$10,2,FALSE),0))*$AL$20,2)","v":0},{"$f":"M147*Inputs!$D$13","v":0},{"$f":"ROUND((IF('Crop 2'!$C$14=Carbon!$B147,'Crop 2'!$V$14*VLOOKUP('Crop 2'!$E$14,Carbon!$AH$4:$AI$10,2,FALSE),0)+IF('Crop 2'!$C$15=Carbon!$B147,'Crop 2'!$V$15*VLOOKUP('Crop 2'!$E$15,Carbon!$AH$4:$AI$10,2,FALSE),0)+IF('Crop 2'!$C$16=Carbon!$B147,'Crop 2'!$V$16*VLOOKUP('Crop 2'!$E$16,Carbon!$AH$4:$AI$10,2,FALSE),0)+IF('Crop 2'!$C$19=Carbon!$B147,'Crop 2'!$V$19*VLOOKUP('Crop 2'!$E$19,Carbon!$AH$4:$AI$10,2,FALSE),0)+IF('Crop 2'!$C$20=Carbon!$B147,'Crop 2'!$V$20*VLOOKUP('Crop 2'!$E$20,Carbon!$AH$4:$AI$10,2,FALSE),0)+IF('Crop 2'!$C$21=Carbon!$B147,'Crop 2'!$V$21*VLOOKUP('Crop 2'!$E$21,Carbon!$AH$4:$AI$10,2,FALSE),0)+IF('Crop 2'!$C$49=Carbon!$B147,'Crop 2'!$V$49*VLOOKUP('Crop 2'!$E$49,Carbon!$AH$4:$AI$10,2,FALSE),0)+IF('Crop 2'!$C$50=Carbon!$B147,'Crop 2'!$V$50*VLOOKUP('Crop 2'!$E$50,Carbon!$AH$4:$AI$10,2,FALSE),0)+IF('Crop 2'!$C$51=Carbon!$B147,'Crop 2'!$V$51*VLOOKUP('Crop 2'!$E$51,Carbon!$AH$4:$AI$10,2,FALSE),0)+IF('Crop 2'!$C$52=Carbon!$B147,'Crop 2'!$V$52*VLOOKUP('Crop 2'!$E$52,Carbon!$AH$4:$AI$10,2,FALSE),0)+IF('Crop 2'!$C$53=Carbon!$B147,'Crop 2'!$V$53*VLOOKUP('Crop 2'!$E$53,Carbon!$AH$4:$AI$10,2,FALSE),0)+IF('Crop 2'!$C$56=Carbon!$B147,'Crop 2'!$V$56*VLOOKUP('Crop 2'!$E$56,Carbon!$AH$4:$AI$10,2,FALSE),0)+IF('Crop 2'!$C$57=Carbon!$B147,'Crop 2'!$V$57*VLOOKUP('Crop 2'!$E$57,Carbon!$AH$4:$AI$10,2,FALSE),0)+IF('Crop 2'!$C$58=Carbon!$B147,'Crop 2'!$V$58*VLOOKUP('Crop 2'!$E$58,Carbon!$AH$4:$AI$10,2,FALSE),0)+IF('Crop 2'!$C$59=Carbon!$B147,'Crop 2'!$V$59*VLOOKUP('Crop 2'!$E$59,Carbon!$AH$4:$AI$10,2,FALSE),0)+IF('Crop 2'!$C$62=Carbon!$B147,'Crop 2'!$V$62*VLOOKUP('Crop 2'!$E$62,Carbon!$AH$4:$AI$10,2,FALSE),0)+IF('Crop 2'!$C$63=Carbon!$B147,'Crop 2'!$V$63*VLOOKUP('Crop 2'!$E$63,Carbon!$AH$4:$AI$10,2,FALSE),0)+IF('Crop 2'!$C$64=Carbon!$B147,'Crop 2'!$V$64*VLOOKUP('Crop 2'!$E$64,Carbon!$AH$4:$AI$10,2,FALSE),0)+IF('Crop 2'!$C$65=Carbon!$B147,'Crop 2'!$V$65*VLOOKUP('Crop 2'!$E$65,Carbon!$AH$4:$AI$10,2,FALSE),0))*$AL$20,2)","v":0},{"$f":"O147*Inputs!$D$15","v":0},{"$f":"ROUND((IF('Crop 3'!$C$14=Carbon!$B147,'Crop 3'!$V$14*VLOOKUP('Crop 3'!$E$14,Carbon!$AH$4:$AI$10,2,FALSE),0)+IF('Crop 3'!$C$15=Carbon!$B147,'Crop 3'!$V$15*VLOOKUP('Crop 3'!$E$15,Carbon!$AH$4:$AI$10,2,FALSE),0)+IF('Crop 3'!$C$16=Carbon!$B147,'Crop 3'!$V$16*VLOOKUP('Crop 3'!$E$16,Carbon!$AH$4:$AI$10,2,FALSE),0)+IF('Crop 3'!$C$19=Carbon!$B147,'Crop 3'!$V$19*VLOOKUP('Crop 3'!$E$19,Carbon!$AH$4:$AI$10,2,FALSE),0)+IF('Crop 3'!$C$20=Carbon!$B147,'Crop 3'!$V$20*VLOOKUP('Crop 3'!$E$20,Carbon!$AH$4:$AI$10,2,FALSE),0)+IF('Crop 3'!$C$21=Carbon!$B147,'Crop 3'!$V$21*VLOOKUP('Crop 3'!$E$21,Carbon!$AH$4:$AI$10,2,FALSE),0)+IF('Crop 3'!$C$49=Carbon!$B147,'Crop 3'!$V$49*VLOOKUP('Crop 3'!$E$49,Carbon!$AH$4:$AI$10,2,FALSE),0)+IF('Crop 3'!$C$50=Carbon!$B147,'Crop 3'!$V$50*VLOOKUP('Crop 3'!$E$50,Carbon!$AH$4:$AI$10,2,FALSE),0)+IF('Crop 3'!$C$51=Carbon!$B147,'Crop 3'!$V$51*VLOOKUP('Crop 3'!$E$51,Carbon!$AH$4:$AI$10,2,FALSE),0)+IF('Crop 3'!$C$52=Carbon!$B147,'Crop 3'!$V$52*VLOOKUP('Crop 3'!$E$52,Carbon!$AH$4:$AI$10,2,FALSE),0)+IF('Crop 3'!$C$53=Carbon!$B147,'Crop 3'!$V$53*VLOOKUP('Crop 3'!$E$53,Carbon!$AH$4:$AI$10,2,FALSE),0)+IF('Crop 3'!$C$56=Carbon!$B147,'Crop 3'!$V$56*VLOOKUP('Crop 3'!$E$56,Carbon!$AH$4:$AI$10,2,FALSE),0)+IF('Crop 3'!$C$57=Carbon!$B147,'Crop 3'!$V$57*VLOOKUP('Crop 3'!$E$57,Carbon!$AH$4:$AI$10,2,FALSE),0)+IF('Crop 3'!$C$58=Carbon!$B147,'Crop 3'!$V$58*VLOOKUP('Crop 3'!$E$58,Carbon!$AH$4:$AI$10,2,FALSE),0)+IF('Crop 3'!$C$59=Carbon!$B147,'Crop 3'!$V$59*VLOOKUP('Crop 3'!$E$59,Carbon!$AH$4:$AI$10,2,FALSE),0)+IF('Crop 3'!$C$62=Carbon!$B147,'Crop 3'!$V$62*VLOOKUP('Crop 3'!$E$62,Carbon!$AH$4:$AI$10,2,FALSE),0)+IF('Crop 3'!$C$63=Carbon!$B147,'Crop 3'!$V$63*VLOOKUP('Crop 3'!$E$63,Carbon!$AH$4:$AI$10,2,FALSE),0)+IF('Crop 3'!$C$64=Carbon!$B147,'Crop 3'!$V$64*VLOOKUP('Crop 3'!$E$64,Carbon!$AH$4:$AI$10,2,FALSE),0)+IF('Crop 3'!$C$65=Carbon!$B147,'Crop 3'!$V$65*VLOOKUP('Crop 3'!$E$65,Carbon!$AH$4:$AI$10,2,FALSE),0))*$AL$20,2)","v":0},{"$f":"Q147*Inputs!$D$17","v":0},{"$f":"ROUND(T147/Inputs!D$19,2)","v":0},0,null,null,0,{"$f":"W147*Inputs!$D$13","v":0},0,{"$f":"Y147*Inputs!$D$13","v":0},0,{"$f":"AA147*Inputs!$D$13","v":0},{"$f":"ROUND(AD147/Inputs!D$19,2)","v":0},0]
[null,{"$f":"Defaults!AH114","v":"Storm"},{"$f":"ROUND((IF('Crop 1'!$C$14=Carbon!$B148,'Crop 1'!$L$14*VLOOKUP('Crop 1'!$E$14,Carbon!$AH$4:$AI$10,2,FALSE),0)+IF('Crop 1'!$C$15=Carbon!$B148,'Crop 1'!$L$15*VLOOKUP('Crop 1'!$E$15,Carbon!$AH$4:$AI$10,2,FALSE),0)+IF('Crop 1'!$C$16=Carbon!$B148,'Crop 1'!$L$16*VLOOKUP('Crop 1'!$E$16,Carbon!$AH$4:$AI$10,2,FALSE),0)+IF('Crop 1'!$C$19=Carbon!$B148,'Crop 1'!$L$19*VLOOKUP('Crop 1'!$E$19,Carbon!$AH$4:$AI$10,2,FALSE),0)+IF('Crop 1'!$C$20=Carbon!$B148,'Crop 1'!$L$20*VLOOKUP('Crop 1'!$E$20,Carbon!$AH$4:$AI$10,2,FALSE),0)+IF('Crop 1'!$C$21=Carbon!$B148,'Crop 1'!$L$21*VLOOKUP('Crop 1'!$E$21,Carbon!$AH$4:$AI$10,2,FALSE),0)+IF('Crop 1'!$C$49=Carbon!$B148,'Crop 1'!$L$49*VLOOKUP('Crop 1'!$E$49,Carbon!$AH$4:$AI$10,2,FALSE),0)+IF('Crop 1'!$C$50=Carbon!$B148,'Crop 1'!$L$50*VLOOKUP('Crop 1'!$E$50,Carbon!$AH$4:$AI$10,2,FALSE),0)+IF('Crop 1'!$C$51=Carbon!$B148,'Crop 1'!$L$51*VLOOKUP('Crop 1'!$E$51,Carbon!$AH$4:$AI$10,2,FALSE),0)+IF('Crop 1'!$C$52=Carbon!$B148,'Crop 1'!$L$52*VLOOKUP('Crop 1'!$E$52,Carbon!$AH$4:$AI$10,2,FALSE),0)+IF('Crop 1'!$C$53=Carbon!$B148,'Crop 1'!$L$53*VLOOKUP('Crop 1'!$E$53,Carbon!$AH$4:$AI$10,2,FALSE),0)+IF('Crop 1'!$C$56=Carbon!$B148,'Crop 1'!$L$56*VLOOKUP('Crop 1'!$E$56,Carbon!$AH$4:$AI$10,2,FALSE),0)+IF('Crop 1'!$C$57=Carbon!$B148,'Crop 1'!$L$57*VLOOKUP('Crop 1'!$E$57,Carbon!$AH$4:$AI$10,2,FALSE),0)+IF('Crop 1'!$C$58=Carbon!$B148,'Crop 1'!$L$58*VLOOKUP('Crop 1'!$E$58,Carbon!$AH$4:$AI$10,2,FALSE),0)+IF('Crop 1'!$C$59=Carbon!$B148,'Crop 1'!$L$59*VLOOKUP('Crop 1'!$E$59,Carbon!$AH$4:$AI$10,2,FALSE),0)+IF('Crop 1'!$C$62=Carbon!$B148,'Crop 1'!$L$62*VLOOKUP('Crop 1'!$E$62,Carbon!$AH$4:$AI$10,2,FALSE),0)+IF('Crop 1'!$C$63=Carbon!$B148,'Crop 1'!$L$63*VLOOKUP('Crop 1'!$E$63,Carbon!$AH$4:$AI$10,2,FALSE),0)+IF('Crop 1'!$C$64=Carbon!$B148,'Crop 1'!$L$64*VLOOKUP('Crop 1'!$E$64,Carbon!$AH$4:$AI$10,2,FALSE),0)+IF('Crop 1'!$C$65=Carbon!$B148,'Crop 1'!$L$65*VLOOKUP('Crop 1'!$E$65,Carbon!$AH$4:$AI$10,2,FALSE),0))*$AL$20,2)","v":0},{"$f":"C148*Inputs!$D$13","v":0},{"$f":"ROUND((IF('Crop 2'!$C$14=Carbon!$B148,'Crop 2'!$L$14*VLOOKUP('Crop 2'!$E$14,Carbon!$AH$4:$AI$10,2,FALSE),0)+IF('Crop 2'!$C$15=Carbon!$B148,'Crop 2'!$L$15*VLOOKUP('Crop 2'!$E$15,Carbon!$AH$4:$AI$10,2,FALSE),0)+IF('Crop 2'!$C$16=Carbon!$B148,'Crop 2'!$L$16*VLOOKUP('Crop 2'!$E$16,Carbon!$AH$4:$AI$10,2,FALSE),0)+IF('Crop 2'!$C$19=Carbon!$B148,'Crop 2'!$L$19*VLOOKUP('Crop 2'!$E$19,Carbon!$AH$4:$AI$10,2,FALSE),0)+IF('Crop 2'!$C$20=Carbon!$B148,'Crop 2'!$L$20*VLOOKUP('Crop 2'!$E$20,Carbon!$AH$4:$AI$10,2,FALSE),0)+IF('Crop 2'!$C$21=Carbon!$B148,'Crop 2'!$L$21*VLOOKUP('Crop 2'!$E$21,Carbon!$AH$4:$AI$10,2,FALSE),0)+IF('Crop 2'!$C$49=Carbon!$B148,'Crop 2'!$L$49*VLOOKUP('Crop 2'!$E$49,Carbon!$AH$4:$AI$10,2,FALSE),0)+IF('Crop 2'!$C$50=Carbon!$B148,'Crop 2'!$L$50*VLOOKUP('Crop 2'!$E$50,Carbon!$AH$4:$AI$10,2,FALSE),0)+IF('Crop 2'!$C$51=Carbon!$B148,'Crop 2'!$L$51*VLOOKUP('Crop 2'!$E$51,Carbon!$AH$4:$AI$10,2,FALSE),0)+IF('Crop 2'!$C$52=Carbon!$B148,'Crop 2'!$L$52*VLOOKUP('Crop 2'!$E$52,Carbon!$AH$4:$AI$10,2,FALSE),0)+IF('Crop 2'!$C$53=Carbon!$B148,'Crop 2'!$L$53*VLOOKUP('Crop 2'!$E$53,Carbon!$AH$4:$AI$10,2,FALSE),0)+IF('Crop 2'!$C$56=Carbon!$B148,'Crop 2'!$L$56*VLOOKUP('Crop 2'!$E$56,Carbon!$AH$4:$AI$10,2,FALSE),0)+IF('Crop 2'!$C$57=Carbon!$B148,'Crop 2'!$L$57*VLOOKUP('Crop 2'!$E$57,Carbon!$AH$4:$AI$10,2,FALSE),0)+IF('Crop 2'!$C$58=Carbon!$B148,'Crop 2'!$L$58*VLOOKUP('Crop 2'!$E$58,Carbon!$AH$4:$AI$10,2,FALSE),0)+IF('Crop 2'!$C$59=Carbon!$B148,'Crop 2'!$L$59*VLOOKUP('Crop 2'!$E$59,Carbon!$AH$4:$AI$10,2,FALSE),0)+IF('Crop 2'!$C$62=Carbon!$B148,'Crop 2'!$L$62*VLOOKUP('Crop 2'!$E$62,Carbon!$AH$4:$AI$10,2,FALSE),0)+IF('Crop 2'!$C$63=Carbon!$B148,'Crop 2'!$L$63*VLOOKUP('Crop 2'!$E$63,Carbon!$AH$4:$AI$10,2,FALSE),0)+IF('Crop 2'!$C$64=Carbon!$B148,'Crop 2'!$L$64*VLOOKUP('Crop 2'!$E$64,Carbon!$AH$4:$AI$10,2,FALSE),0)+IF('Crop 2'!$C$65=Carbon!$B148,'Crop 2'!$L$65*VLOOKUP('Crop 2'!$E$65,Carbon!$AH$4:$AI$10,2,FALSE),0))*$AL$20,2)","v":0},{"$f":"E148*Inputs!$D$15","v":0},{"$f":"ROUND((IF('Crop 3'!$C$14=Carbon!$B148,'Crop 3'!$L$14*VLOOKUP('Crop 3'!$E$14,Carbon!$AH$4:$AI$10,2,FALSE),0)+IF('Crop 3'!$C$15=Carbon!$B148,'Crop 3'!$L$15*VLOOKUP('Crop 3'!$E$15,Carbon!$AH$4:$AI$10,2,FALSE),0)+IF('Crop 3'!$C$16=Carbon!$B148,'Crop 3'!$L$16*VLOOKUP('Crop 3'!$E$16,Carbon!$AH$4:$AI$10,2,FALSE),0)+IF('Crop 3'!$C$19=Carbon!$B148,'Crop 3'!$L$19*VLOOKUP('Crop 3'!$E$19,Carbon!$AH$4:$AI$10,2,FALSE),0)+IF('Crop 3'!$C$20=Carbon!$B148,'Crop 3'!$L$20*VLOOKUP('Crop 3'!$E$20,Carbon!$AH$4:$AI$10,2,FALSE),0)+IF('Crop 3'!$C$21=Carbon!$B148,'Crop 3'!$L$21*VLOOKUP('Crop 3'!$E$21,Carbon!$AH$4:$AI$10,2,FALSE),0)+IF('Crop 3'!$C$49=Carbon!$B148,'Crop 3'!$L$49*VLOOKUP('Crop 3'!$E$49,Carbon!$AH$4:$AI$10,2,FALSE),0)+IF('Crop 3'!$C$50=Carbon!$B148,'Crop 3'!$L$50*VLOOKUP('Crop 3'!$E$50,Carbon!$AH$4:$AI$10,2,FALSE),0)+IF('Crop 3'!$C$51=Carbon!$B148,'Crop 3'!$L$51*VLOOKUP('Crop 3'!$E$51,Carbon!$AH$4:$AI$10,2,FALSE),0)+IF('Crop 3'!$C$52=Carbon!$B148,'Crop 3'!$L$52*VLOOKUP('Crop 3'!$E$52,Carbon!$AH$4:$AI$10,2,FALSE),0)+IF('Crop 3'!$C$53=Carbon!$B148,'Crop 3'!$L$53*VLOOKUP('Crop 3'!$E$53,Carbon!$AH$4:$AI$10,2,FALSE),0)+IF('Crop 3'!$C$56=Carbon!$B148,'Crop 3'!$L$56*VLOOKUP('Crop 3'!$E$56,Carbon!$AH$4:$AI$10,2,FALSE),0)+IF('Crop 3'!$C$57=Carbon!$B148,'Crop 3'!$L$57*VLOOKUP('Crop 3'!$E$57,Carbon!$AH$4:$AI$10,2,FALSE),0)+IF('Crop 3'!$C$58=Carbon!$B148,'Crop 3'!$L$58*VLOOKUP('Crop 3'!$E$58,Carbon!$AH$4:$AI$10,2,FALSE),0)+IF('Crop 3'!$C$59=Carbon!$B148,'Crop 3'!$L$59*VLOOKUP('Crop 3'!$E$59,Carbon!$AH$4:$AI$10,2,FALSE),0)+IF('Crop 3'!$C$62=Carbon!$B148,'Crop 3'!$L$62*VLOOKUP('Crop 3'!$E$62,Carbon!$AH$4:$AI$10,2,FALSE),0)+IF('Crop 3'!$C$63=Carbon!$B148,'Crop 3'!$L$63*VLOOKUP('Crop 3'!$E$63,Carbon!$AH$4:$AI$10,2,FALSE),0)+IF('Crop 3'!$C$64=Carbon!$B148,'Crop 3'!$L$64*VLOOKUP('Crop 3'!$E$64,Carbon!$AH$4:$AI$10,2,FALSE),0)+IF('Crop 3'!$C$65=Carbon!$B148,'Crop 3'!$L$65*VLOOKUP('Crop 3'!$E$65,Carbon!$AH$4:$AI$10,2,FALSE),0))*$AL$20,2)","v":0},{"$f":"G148*Inputs!$D$17","v":0},{"$f":"ROUND(J148/Inputs!D$19,2)","v":0},0,null,null,{"$f":"ROUND((IF('Crop 1'!$C$14=Carbon!$B148,'Crop 1'!$V$14*VLOOKUP('Crop 1'!$E$14,Carbon!$AH$4:$AI$10,2,FALSE),0)+IF('Crop 1'!$C$15=Carbon!$B148,'Crop 1'!$V$15*VLOOKUP('Crop 1'!$E$15,Carbon!$AH$4:$AI$10,2,FALSE),0)+IF('Crop 1'!$C$16=Carbon!$B148,'Crop 1'!$V$16*VLOOKUP('Crop 1'!$E$16,Carbon!$AH$4:$AI$10,2,FALSE),0)+IF('Crop 1'!$C$19=Carbon!$B148,'Crop 1'!$V$19*VLOOKUP('Crop 1'!$E$19,Carbon!$AH$4:$AI$10,2,FALSE),0)+IF('Crop 1'!$C$20=Carbon!$B148,'Crop 1'!$V$20*VLOOKUP('Crop 1'!$E$20,Carbon!$AH$4:$AI$10,2,FALSE),0)+IF('Crop 1'!$C$21=Carbon!$B148,'Crop 1'!$V$21*VLOOKUP('Crop 1'!$E$21,Carbon!$AH$4:$AI$10,2,FALSE),0)+IF('Crop 1'!$C$49=Carbon!$B148,'Crop 1'!$V$49*VLOOKUP('Crop 1'!$E$49,Carbon!$AH$4:$AI$10,2,FALSE),0)+IF('Crop 1'!$C$50=Carbon!$B148,'Crop 1'!$V$50*VLOOKUP('Crop 1'!$E$50,Carbon!$AH$4:$AI$10,2,FALSE),0)+IF('Crop 1'!$C$51=Carbon!$B148,'Crop 1'!$V$51*VLOOKUP('Crop 1'!$E$51,Carbon!$AH$4:$AI$10,2,FALSE),0)+IF('Crop 1'!$C$52=Carbon!$B148,'Crop 1'!$V$52*VLOOKUP('Crop 1'!$E$52,Carbon!$AH$4:$AI$10,2,FALSE),0)+IF('Crop 1'!$C$53=Carbon!$B148,'Crop 1'!$V$53*VLOOKUP('Crop 1'!$E$53,Carbon!$AH$4:$AI$10,2,FALSE),0)+IF('Crop 1'!$C$56=Carbon!$B148,'Crop 1'!$V$56*VLOOKUP('Crop 1'!$E$56,Carbon!$AH$4:$AI$10,2,FALSE),0)+IF('Crop 1'!$C$57=Carbon!$B148,'Crop 1'!$V$57*VLOOKUP('Crop 1'!$E$57,Carbon!$AH$4:$AI$10,2,FALSE),0)+IF('Crop 1'!$C$58=Carbon!$B148,'Crop 1'!$V$58*VLOOKUP('Crop 1'!$E$58,Carbon!$AH$4:$AI$10,2,FALSE),0)+IF('Crop 1'!$C$59=Carbon!$B148,'Crop 1'!$V$59*VLOOKUP('Crop 1'!$E$59,Carbon!$AH$4:$AI$10,2,FALSE),0)+IF('Crop 1'!$C$62=Carbon!$B148,'Crop 1'!$V$62*VLOOKUP('Crop 1'!$E$62,Carbon!$AH$4:$AI$10,2,FALSE),0)+IF('Crop 1'!$C$63=Carbon!$B148,'Crop 1'!$V$63*VLOOKUP('Crop 1'!$E$63,Carbon!$AH$4:$AI$10,2,FALSE),0)+IF('Crop 1'!$C$64=Carbon!$B148,'Crop 1'!$V$64*VLOOKUP('Crop 1'!$E$64,Carbon!$AH$4:$AI$10,2,FALSE),0)+IF('Crop 1'!$C$65=Carbon!$B148,'Crop 1'!$V$65*VLOOKUP('Crop 1'!$E$65,Carbon!$AH$4:$AI$10,2,FALSE),0))*$AL$20,2)","v":0},{"$f":"M148*Inputs!$D$13","v":0},{"$f":"ROUND((IF('Crop 2'!$C$14=Carbon!$B148,'Crop 2'!$V$14*VLOOKUP('Crop 2'!$E$14,Carbon!$AH$4:$AI$10,2,FALSE),0)+IF('Crop 2'!$C$15=Carbon!$B148,'Crop 2'!$V$15*VLOOKUP('Crop 2'!$E$15,Carbon!$AH$4:$AI$10,2,FALSE),0)+IF('Crop 2'!$C$16=Carbon!$B148,'Crop 2'!$V$16*VLOOKUP('Crop 2'!$E$16,Carbon!$AH$4:$AI$10,2,FALSE),0)+IF('Crop 2'!$C$19=Carbon!$B148,'Crop 2'!$V$19*VLOOKUP('Crop 2'!$E$19,Carbon!$AH$4:$AI$10,2,FALSE),0)+IF('Crop 2'!$C$20=Carbon!$B148,'Crop 2'!$V$20*VLOOKUP('Crop 2'!$E$20,Carbon!$AH$4:$AI$10,2,FALSE),0)+IF('Crop 2'!$C$21=Carbon!$B148,'Crop 2'!$V$21*VLOOKUP('Crop 2'!$E$21,Carbon!$AH$4:$AI$10,2,FALSE),0)+IF('Crop 2'!$C$49=Carbon!$B148,'Crop 2'!$V$49*VLOOKUP('Crop 2'!$E$49,Carbon!$AH$4:$AI$10,2,FALSE),0)+IF('Crop 2'!$C$50=Carbon!$B148,'Crop 2'!$V$50*VLOOKUP('Crop 2'!$E$50,Carbon!$AH$4:$AI$10,2,FALSE),0)+IF('Crop 2'!$C$51=Carbon!$B148,'Crop 2'!$V$51*VLOOKUP('Crop 2'!$E$51,Carbon!$AH$4:$AI$10,2,FALSE),0)+IF('Crop 2'!$C$52=Carbon!$B148,'Crop 2'!$V$52*VLOOKUP('Crop 2'!$E$52,Carbon!$AH$4:$AI$10,2,FALSE),0)+IF('Crop 2'!$C$53=Carbon!$B148,'Crop 2'!$V$53*VLOOKUP('Crop 2'!$E$53,Carbon!$AH$4:$AI$10,2,FALSE),0)+IF('Crop 2'!$C$56=Carbon!$B148,'Crop 2'!$V$56*VLOOKUP('Crop 2'!$E$56,Carbon!$AH$4:$AI$10,2,FALSE),0)+IF('Crop 2'!$C$57=Carbon!$B148,'Crop 2'!$V$57*VLOOKUP('Crop 2'!$E$57,Carbon!$AH$4:$AI$10,2,FALSE),0)+IF('Crop 2'!$C$58=Carbon!$B148,'Crop 2'!$V$58*VLOOKUP('Crop 2'!$E$58,Carbon!$AH$4:$AI$10,2,FALSE),0)+IF('Crop 2'!$C$59=Carbon!$B148,'Crop 2'!$V$59*VLOOKUP('Crop 2'!$E$59,Carbon!$AH$4:$AI$10,2,FALSE),0)+IF('Crop 2'!$C$62=Carbon!$B148,'Crop 2'!$V$62*VLOOKUP('Crop 2'!$E$62,Carbon!$AH$4:$AI$10,2,FALSE),0)+IF('Crop 2'!$C$63=Carbon!$B148,'Crop 2'!$V$63*VLOOKUP('Crop 2'!$E$63,Carbon!$AH$4:$AI$10,2,FALSE),0)+IF('Crop 2'!$C$64=Carbon!$B148,'Crop 2'!$V$64*VLOOKUP('Crop 2'!$E$64,Carbon!$AH$4:$AI$10,2,FALSE),0)+IF('Crop 2'!$C$65=Carbon!$B148,'Crop 2'!$V$65*VLOOKUP('Crop 2'!$E$65,Carbon!$AH$4:$AI$10,2,FALSE),0))*$AL$20,2)","v":0},{"$f":"O148*Inputs!$D$15","v":0},{"$f":"ROUND((IF('Crop 3'!$C$14=Carbon!$B148,'Crop 3'!$V$14*VLOOKUP('Crop 3'!$E$14,Carbon!$AH$4:$AI$10,2,FALSE),0)+IF('Crop 3'!$C$15=Carbon!$B148,'Crop 3'!$V$15*VLOOKUP('Crop 3'!$E$15,Carbon!$AH$4:$AI$10,2,FALSE),0)+IF('Crop 3'!$C$16=Carbon!$B148,'Crop 3'!$V$16*VLOOKUP('Crop 3'!$E$16,Carbon!$AH$4:$AI$10,2,FALSE),0)+IF('Crop 3'!$C$19=Carbon!$B148,'Crop 3'!$V$19*VLOOKUP('Crop 3'!$E$19,Carbon!$AH$4:$AI$10,2,FALSE),0)+IF('Crop 3'!$C$20=Carbon!$B148,'Crop 3'!$V$20*VLOOKUP('Crop 3'!$E$20,Carbon!$AH$4:$AI$10,2,FALSE),0)+IF('Crop 3'!$C$21=Carbon!$B148,'Crop 3'!$V$21*VLOOKUP('Crop 3'!$E$21,Carbon!$AH$4:$AI$10,2,FALSE),0)+IF('Crop 3'!$C$49=Carbon!$B148,'Crop 3'!$V$49*VLOOKUP('Crop 3'!$E$49,Carbon!$AH$4:$AI$10,2,FALSE),0)+IF('Crop 3'!$C$50=Carbon!$B148,'Crop 3'!$V$50*VLOOKUP('Crop 3'!$E$50,Carbon!$AH$4:$AI$10,2,FALSE),0)+IF('Crop 3'!$C$51=Carbon!$B148,'Crop 3'!$V$51*VLOOKUP('Crop 3'!$E$51,Carbon!$AH$4:$AI$10,2,FALSE),0)+IF('Crop 3'!$C$52=Carbon!$B148,'Crop 3'!$V$52*VLOOKUP('Crop 3'!$E$52,Carbon!$AH$4:$AI$10,2,FALSE),0)+IF('Crop 3'!$C$53=Carbon!$B148,'Crop 3'!$V$53*VLOOKUP('Crop 3'!$E$53,Carbon!$AH$4:$AI$10,2,FALSE),0)+IF('Crop 3'!$C$56=Carbon!$B148,'Crop 3'!$V$56*VLOOKUP('Crop 3'!$E$56,Carbon!$AH$4:$AI$10,2,FALSE),0)+IF('Crop 3'!$C$57=Carbon!$B148,'Crop 3'!$V$57*VLOOKUP('Crop 3'!$E$57,Carbon!$AH$4:$AI$10,2,FALSE),0)+IF('Crop 3'!$C$58=Carbon!$B148,'Crop 3'!$V$58*VLOOKUP('Crop 3'!$E$58,Carbon!$AH$4:$AI$10,2,FALSE),0)+IF('Crop 3'!$C$59=Carbon!$B148,'Crop 3'!$V$59*VLOOKUP('Crop 3'!$E$59,Carbon!$AH$4:$AI$10,2,FALSE),0)+IF('Crop 3'!$C$62=Carbon!$B148,'Crop 3'!$V$62*VLOOKUP('Crop 3'!$E$62,Carbon!$AH$4:$AI$10,2,FALSE),0)+IF('Crop 3'!$C$63=Carbon!$B148,'Crop 3'!$V$63*VLOOKUP('Crop 3'!$E$63,Carbon!$AH$4:$AI$10,2,FALSE),0)+IF('Crop 3'!$C$64=Carbon!$B148,'Crop 3'!$V$64*VLOOKUP('Crop 3'!$E$64,Carbon!$AH$4:$AI$10,2,FALSE),0)+IF('Crop 3'!$C$65=Carbon!$B148,'Crop 3'!$V$65*VLOOKUP('Crop 3'!$E$65,Carbon!$AH$4:$AI$10,2,FALSE),0))*$AL$20,2)","v":0},{"$f":"Q148*Inputs!$D$17","v":0},{"$f":"ROUND(T148/Inputs!D$19,2)","v":0},0,null,null,0,{"$f":"W148*Inputs!$D$13","v":0},0,{"$f":"Y148*Inputs!$D$13","v":0},0,{"$f":"AA148*Inputs!$D$13","v":0},{"$f":"ROUND(AD148/Inputs!D$19,2)","v":0},0]
[null,{"$f":"Defaults!AH115","v":"Strata"},{"$f":"ROUND((IF('Crop 1'!$C$14=Carbon!$B149,'Crop 1'!$L$14*VLOOKUP('Crop 1'!$E$14,Carbon!$AH$4:$AI$10,2,FALSE),0)+IF('Crop 1'!$C$15=Carbon!$B149,'Crop 1'!$L$15*VLOOKUP('Crop 1'!$E$15,Carbon!$AH$4:$AI$10,2,FALSE),0)+IF('Crop 1'!$C$16=Carbon!$B149,'Crop 1'!$L$16*VLOOKUP('Crop 1'!$E$16,Carbon!$AH$4:$AI$10,2,FALSE),0)+IF('Crop 1'!$C$19=Carbon!$B149,'Crop 1'!$L$19*VLOOKUP('Crop 1'!$E$19,Carbon!$AH$4:$AI$10,2,FALSE),0)+IF('Crop 1'!$C$20=Carbon!$B149,'Crop 1'!$L$20*VLOOKUP('Crop 1'!$E$20,Carbon!$AH$4:$AI$10,2,FALSE),0)+IF('Crop 1'!$C$21=Carbon!$B149,'Crop 1'!$L$21*VLOOKUP('Crop 1'!$E$21,Carbon!$AH$4:$AI$10,2,FALSE),0)+IF('Crop 1'!$C$49=Carbon!$B149,'Crop 1'!$L$49*VLOOKUP('Crop 1'!$E$49,Carbon!$AH$4:$AI$10,2,FALSE),0)+IF('Crop 1'!$C$50=Carbon!$B149,'Crop 1'!$L$50*VLOOKUP('Crop 1'!$E$50,Carbon!$AH$4:$AI$10,2,FALSE),0)+IF('Crop 1'!$C$51=Carbon!$B149,'Crop 1'!$L$51*VLOOKUP('Crop 1'!$E$51,Carbon!$AH$4:$AI$10,2,FALSE),0)+IF('Crop 1'!$C$52=Carbon!$B149,'Crop 1'!$L$52*VLOOKUP('Crop 1'!$E$52,Carbon!$AH$4:$AI$10,2,FALSE),0)+IF('Crop 1'!$C$53=Carbon!$B149,'Crop 1'!$L$53*VLOOKUP('Crop 1'!$E$53,Carbon!$AH$4:$AI$10,2,FALSE),0)+IF('Crop 1'!$C$56=Carbon!$B149,'Crop 1'!$L$56*VLOOKUP('Crop 1'!$E$56,Carbon!$AH$4:$AI$10,2,FALSE),0)+IF('Crop 1'!$C$57=Carbon!$B149,'Crop 1'!$L$57*VLOOKUP('Crop 1'!$E$57,Carbon!$AH$4:$AI$10,2,FALSE),0)+IF('Crop 1'!$C$58=Carbon!$B149,'Crop 1'!$L$58*VLOOKUP('Crop 1'!$E$58,Carbon!$AH$4:$AI$10,2,FALSE),0)+IF('Crop 1'!$C$59=Carbon!$B149,'Crop 1'!$L$59*VLOOKUP('Crop 1'!$E$59,Carbon!$AH$4:$AI$10,2,FALSE),0)+IF('Crop 1'!$C$62=Carbon!$B149,'Crop 1'!$L$62*VLOOKUP('Crop 1'!$E$62,Carbon!$AH$4:$AI$10,2,FALSE),0)+IF('Crop 1'!$C$63=Carbon!$B149,'Crop 1'!$L$63*VLOOKUP('Crop 1'!$E$63,Carbon!$AH$4:$AI$10,2,FALSE),0)+IF('Crop 1'!$C$64=Carbon!$B149,'Crop 1'!$L$64*VLOOKUP('Crop 1'!$E$64,Carbon!$AH$4:$AI$10,2,FALSE),0)+IF('Crop 1'!$C$65=Carbon!$B149,'Crop 1'!$L$65*VLOOKUP('Crop 1'!$E$65,Carbon!$AH$4:$AI$10,2,FALSE),0))*$AL$20,2)","v":0},{"$f":"C149*Inputs!$D$13","v":0},{"$f":"ROUND((IF('Crop 2'!$C$14=Carbon!$B149,'Crop 2'!$L$14*VLOOKUP('Crop 2'!$E$14,Carbon!$AH$4:$AI$10,2,FALSE),0)+IF('Crop 2'!$C$15=Carbon!$B149,'Crop 2'!$L$15*VLOOKUP('Crop 2'!$E$15,Carbon!$AH$4:$AI$10,2,FALSE),0)+IF('Crop 2'!$C$16=Carbon!$B149,'Crop 2'!$L$16*VLOOKUP('Crop 2'!$E$16,Carbon!$AH$4:$AI$10,2,FALSE),0)+IF('Crop 2'!$C$19=Carbon!$B149,'Crop 2'!$L$19*VLOOKUP('Crop 2'!$E$19,Carbon!$AH$4:$AI$10,2,FALSE),0)+IF('Crop 2'!$C$20=Carbon!$B149,'Crop 2'!$L$20*VLOOKUP('Crop 2'!$E$20,Carbon!$AH$4:$AI$10,2,FALSE),0)+IF('Crop 2'!$C$21=Carbon!$B149,'Crop 2'!$L$21*VLOOKUP('Crop 2'!$E$21,Carbon!$AH$4:$AI$10,2,FALSE),0)+IF('Crop 2'!$C$49=Carbon!$B149,'Crop 2'!$L$49*VLOOKUP('Crop 2'!$E$49,Carbon!$AH$4:$AI$10,2,FALSE),0)+IF('Crop 2'!$C$50=Carbon!$B149,'Crop 2'!$L$50*VLOOKUP('Crop 2'!$E$50,Carbon!$AH$4:$AI$10,2,FALSE),0)+IF('Crop 2'!$C$51=Carbon!$B149,'Crop 2'!$L$51*VLOOKUP('Crop 2'!$E$51,Carbon!$AH$4:$AI$10,2,FALSE),0)+IF('Crop 2'!$C$52=Carbon!$B149,'Crop 2'!$L$52*VLOOKUP('Crop 2'!$E$52,Carbon!$AH$4:$AI$10,2,FALSE),0)+IF('Crop 2'!$C$53=Carbon!$B149,'Crop 2'!$L$53*VLOOKUP('Crop 2'!$E$53,Carbon!$AH$4:$AI$10,2,FALSE),0)+IF('Crop 2'!$C$56=Carbon!$B149,'Crop 2'!$L$56*VLOOKUP('Crop 2'!$E$56,Carbon!$AH$4:$AI$10,2,FALSE),0)+IF('Crop 2'!$C$57=Carbon!$B149,'Crop 2'!$L$57*VLOOKUP('Crop 2'!$E$57,Carbon!$AH$4:$AI$10,2,FALSE),0)+IF('Crop 2'!$C$58=Carbon!$B149,'Crop 2'!$L$58*VLOOKUP('Crop 2'!$E$58,Carbon!$AH$4:$AI$10,2,FALSE),0)+IF('Crop 2'!$C$59=Carbon!$B149,'Crop 2'!$L$59*VLOOKUP('Crop 2'!$E$59,Carbon!$AH$4:$AI$10,2,FALSE),0)+IF('Crop 2'!$C$62=Carbon!$B149,'Crop 2'!$L$62*VLOOKUP('Crop 2'!$E$62,Carbon!$AH$4:$AI$10,2,FALSE),0)+IF('Crop 2'!$C$63=Carbon!$B149,'Crop 2'!$L$63*VLOOKUP('Crop 2'!$E$63,Carbon!$AH$4:$AI$10,2,FALSE),0)+IF('Crop 2'!$C$64=Carbon!$B149,'Crop 2'!$L$64*VLOOKUP('Crop 2'!$E$64,Carbon!$AH$4:$AI$10,2,FALSE),0)+IF('Crop 2'!$C$65=Carbon!$B149,'Crop 2'!$L$65*VLOOKUP('Crop 2'!$E$65,Carbon!$AH$4:$AI$10,2,FALSE),0))*$AL$20,2)","v":0},{"$f":"E149*Inputs!$D$15","v":0},{"$f":"ROUND((IF('Crop 3'!$C$14=Carbon!$B149,'Crop 3'!$L$14*VLOOKUP('Crop 3'!$E$14,Carbon!$AH$4:$AI$10,2,FALSE),0)+IF('Crop 3'!$C$15=Carbon!$B149,'Crop 3'!$L$15*VLOOKUP('Crop 3'!$E$15,Carbon!$AH$4:$AI$10,2,FALSE),0)+IF('Crop 3'!$C$16=Carbon!$B149,'Crop 3'!$L$16*VLOOKUP('Crop 3'!$E$16,Carbon!$AH$4:$AI$10,2,FALSE),0)+IF('Crop 3'!$C$19=Carbon!$B149,'Crop 3'!$L$19*VLOOKUP('Crop 3'!$E$19,Carbon!$AH$4:$AI$10,2,FALSE),0)+IF('Crop 3'!$C$20=Carbon!$B149,'Crop 3'!$L$20*VLOOKUP('Crop 3'!$E$20,Carbon!$AH$4:$AI$10,2,FALSE),0)+IF('Crop 3'!$C$21=Carbon!$B149,'Crop 3'!$L$21*VLOOKUP('Crop 3'!$E$21,Carbon!$AH$4:$AI$10,2,FALSE),0)+IF('Crop 3'!$C$49=Carbon!$B149,'Crop 3'!$L$49*VLOOKUP('Crop 3'!$E$49,Carbon!$AH$4:$AI$10,2,FALSE),0)+IF('Crop 3'!$C$50=Carbon!$B149,'Crop 3'!$L$50*VLOOKUP('Crop 3'!$E$50,Carbon!$AH$4:$AI$10,2,FALSE),0)+IF('Crop 3'!$C$51=Carbon!$B149,'Crop 3'!$L$51*VLOOKUP('Crop 3'!$E$51,Carbon!$AH$4:$AI$10,2,FALSE),0)+IF('Crop 3'!$C$52=Carbon!$B149,'Crop 3'!$L$52*VLOOKUP('Crop 3'!$E$52,Carbon!$AH$4:$AI$10,2,FALSE),0)+IF('Crop 3'!$C$53=Carbon!$B149,'Crop 3'!$L$53*VLOOKUP('Crop 3'!$E$53,Carbon!$AH$4:$AI$10,2,FALSE),0)+IF('Crop 3'!$C$56=Carbon!$B149,'Crop 3'!$L$56*VLOOKUP('Crop 3'!$E$56,Carbon!$AH$4:$AI$10,2,FALSE),0)+IF('Crop 3'!$C$57=Carbon!$B149,'Crop 3'!$L$57*VLOOKUP('Crop 3'!$E$57,Carbon!$AH$4:$AI$10,2,FALSE),0)+IF('Crop 3'!$C$58=Carbon!$B149,'Crop 3'!$L$58*VLOOKUP('Crop 3'!$E$58,Carbon!$AH$4:$AI$10,2,FALSE),0)+IF('Crop 3'!$C$59=Carbon!$B149,'Crop 3'!$L$59*VLOOKUP('Crop 3'!$E$59,Carbon!$AH$4:$AI$10,2,FALSE),0)+IF('Crop 3'!$C$62=Carbon!$B149,'Crop 3'!$L$62*VLOOKUP('Crop 3'!$E$62,Carbon!$AH$4:$AI$10,2,FALSE),0)+IF('Crop 3'!$C$63=Carbon!$B149,'Crop 3'!$L$63*VLOOKUP('Crop 3'!$E$63,Carbon!$AH$4:$AI$10,2,FALSE),0)+IF('Crop 3'!$C$64=Carbon!$B149,'Crop 3'!$L$64*VLOOKUP('Crop 3'!$E$64,Carbon!$AH$4:$AI$10,2,FALSE),0)+IF('Crop 3'!$C$65=Carbon!$B149,'Crop 3'!$L$65*VLOOKUP('Crop 3'!$E$65,Carbon!$AH$4:$AI$10,2,FALSE),0))*$AL$20,2)","v":0},{"$f":"G149*Inputs!$D$17","v":0},{"$f":"ROUND(J149/Inputs!D$19,2)","v":0},0,null,null,{"$f":"ROUND((IF('Crop 1'!$C$14=Carbon!$B149,'Crop 1'!$V$14*VLOOKUP('Crop 1'!$E$14,Carbon!$AH$4:$AI$10,2,FALSE),0)+IF('Crop 1'!$C$15=Carbon!$B149,'Crop 1'!$V$15*VLOOKUP('Crop 1'!$E$15,Carbon!$AH$4:$AI$10,2,FALSE),0)+IF('Crop 1'!$C$16=Carbon!$B149,'Crop 1'!$V$16*VLOOKUP('Crop 1'!$E$16,Carbon!$AH$4:$AI$10,2,FALSE),0)+IF('Crop 1'!$C$19=Carbon!$B149,'Crop 1'!$V$19*VLOOKUP('Crop 1'!$E$19,Carbon!$AH$4:$AI$10,2,FALSE),0)+IF('Crop 1'!$C$20=Carbon!$B149,'Crop 1'!$V$20*VLOOKUP('Crop 1'!$E$20,Carbon!$AH$4:$AI$10,2,FALSE),0)+IF('Crop 1'!$C$21=Carbon!$B149,'Crop 1'!$V$21*VLOOKUP('Crop 1'!$E$21,Carbon!$AH$4:$AI$10,2,FALSE),0)+IF('Crop 1'!$C$49=Carbon!$B149,'Crop 1'!$V$49*VLOOKUP('Crop 1'!$E$49,Carbon!$AH$4:$AI$10,2,FALSE),0)+IF('Crop 1'!$C$50=Carbon!$B149,'Crop 1'!$V$50*VLOOKUP('Crop 1'!$E$50,Carbon!$AH$4:$AI$10,2,FALSE),0)+IF('Crop 1'!$C$51=Carbon!$B149,'Crop 1'!$V$51*VLOOKUP('Crop 1'!$E$51,Carbon!$AH$4:$AI$10,2,FALSE),0)+IF('Crop 1'!$C$52=Carbon!$B149,'Crop 1'!$V$52*VLOOKUP('Crop 1'!$E$52,Carbon!$AH$4:$AI$10,2,FALSE),0)+IF('Crop 1'!$C$53=Carbon!$B149,'Crop 1'!$V$53*VLOOKUP('Crop 1'!$E$53,Carbon!$AH$4:$AI$10,2,FALSE),0)+IF('Crop 1'!$C$56=Carbon!$B149,'Crop 1'!$V$56*VLOOKUP('Crop 1'!$E$56,Carbon!$AH$4:$AI$10,2,FALSE),0)+IF('Crop 1'!$C$57=Carbon!$B149,'Crop 1'!$V$57*VLOOKUP('Crop 1'!$E$57,Carbon!$AH$4:$AI$10,2,FALSE),0)+IF('Crop 1'!$C$58=Carbon!$B149,'Crop 1'!$V$58*VLOOKUP('Crop 1'!$E$58,Carbon!$AH$4:$AI$10,2,FALSE),0)+IF('Crop 1'!$C$59=Carbon!$B149,'Crop 1'!$V$59*VLOOKUP('Crop 1'!$E$59,Carbon!$AH$4:$AI$10,2,FALSE),0)+IF('Crop 1'!$C$62=Carbon!$B149,'Crop 1'!$V$62*VLOOKUP('Crop 1'!$E$62,Carbon!$AH$4:$AI$10,2,FALSE),0)+IF('Crop 1'!$C$63=Carbon!$B149,'Crop 1'!$V$63*VLOOKUP('Crop 1'!$E$63,Carbon!$AH$4:$AI$10,2,FALSE),0)+IF('Crop 1'!$C$64=Carbon!$B149,'Crop 1'!$V$64*VLOOKUP('Crop 1'!$E$64,Carbon!$AH$4:$AI$10,2,FALSE),0)+IF('Crop 1'!$C$65=Carbon!$B149,'Crop 1'!$V$65*VLOOKUP('Crop 1'!$E$65,Carbon!$AH$4:$AI$10,2,FALSE),0))*$AL$20,2)","v":0},{"$f":"M149*Inputs!$D$13","v":0},{"$f":"ROUND((IF('Crop 2'!$C$14=Carbon!$B149,'Crop 2'!$V$14*VLOOKUP('Crop 2'!$E$14,Carbon!$AH$4:$AI$10,2,FALSE),0)+IF('Crop 2'!$C$15=Carbon!$B149,'Crop 2'!$V$15*VLOOKUP('Crop 2'!$E$15,Carbon!$AH$4:$AI$10,2,FALSE),0)+IF('Crop 2'!$C$16=Carbon!$B149,'Crop 2'!$V$16*VLOOKUP('Crop 2'!$E$16,Carbon!$AH$4:$AI$10,2,FALSE),0)+IF('Crop 2'!$C$19=Carbon!$B149,'Crop 2'!$V$19*VLOOKUP('Crop 2'!$E$19,Carbon!$AH$4:$AI$10,2,FALSE),0)+IF('Crop 2'!$C$20=Carbon!$B149,'Crop 2'!$V$20*VLOOKUP('Crop 2'!$E$20,Carbon!$AH$4:$AI$10,2,FALSE),0)+IF('Crop 2'!$C$21=Carbon!$B149,'Crop 2'!$V$21*VLOOKUP('Crop 2'!$E$21,Carbon!$AH$4:$AI$10,2,FALSE),0)+IF('Crop 2'!$C$49=Carbon!$B149,'Crop 2'!$V$49*VLOOKUP('Crop 2'!$E$49,Carbon!$AH$4:$AI$10,2,FALSE),0)+IF('Crop 2'!$C$50=Carbon!$B149,'Crop 2'!$V$50*VLOOKUP('Crop 2'!$E$50,Carbon!$AH$4:$AI$10,2,FALSE),0)+IF('Crop 2'!$C$51=Carbon!$B149,'Crop 2'!$V$51*VLOOKUP('Crop 2'!$E$51,Carbon!$AH$4:$AI$10,2,FALSE),0)+IF('Crop 2'!$C$52=Carbon!$B149,'Crop 2'!$V$52*VLOOKUP('Crop 2'!$E$52,Carbon!$AH$4:$AI$10,2,FALSE),0)+IF('Crop 2'!$C$53=Carbon!$B149,'Crop 2'!$V$53*VLOOKUP('Crop 2'!$E$53,Carbon!$AH$4:$AI$10,2,FALSE),0)+IF('Crop 2'!$C$56=Carbon!$B149,'Crop 2'!$V$56*VLOOKUP('Crop 2'!$E$56,Carbon!$AH$4:$AI$10,2,FALSE),0)+IF('Crop 2'!$C$57=Carbon!$B149,'Crop 2'!$V$57*VLOOKUP('Crop 2'!$E$57,Carbon!$AH$4:$AI$10,2,FALSE),0)+IF('Crop 2'!$C$58=Carbon!$B149,'Crop 2'!$V$58*VLOOKUP('Crop 2'!$E$58,Carbon!$AH$4:$AI$10,2,FALSE),0)+IF('Crop 2'!$C$59=Carbon!$B149,'Crop 2'!$V$59*VLOOKUP('Crop 2'!$E$59,Carbon!$AH$4:$AI$10,2,FALSE),0)+IF('Crop 2'!$C$62=Carbon!$B149,'Crop 2'!$V$62*VLOOKUP('Crop 2'!$E$62,Carbon!$AH$4:$AI$10,2,FALSE),0)+IF('Crop 2'!$C$63=Carbon!$B149,'Crop 2'!$V$63*VLOOKUP('Crop 2'!$E$63,Carbon!$AH$4:$AI$10,2,FALSE),0)+IF('Crop 2'!$C$64=Carbon!$B149,'Crop 2'!$V$64*VLOOKUP('Crop 2'!$E$64,Carbon!$AH$4:$AI$10,2,FALSE),0)+IF('Crop 2'!$C$65=Carbon!$B149,'Crop 2'!$V$65*VLOOKUP('Crop 2'!$E$65,Carbon!$AH$4:$AI$10,2,FALSE),0))*$AL$20,2)","v":0},{"$f":"O149*Inputs!$D$15","v":0},{"$f":"ROUND((IF('Crop 3'!$C$14=Carbon!$B149,'Crop 3'!$V$14*VLOOKUP('Crop 3'!$E$14,Carbon!$AH$4:$AI$10,2,FALSE),0)+IF('Crop 3'!$C$15=Carbon!$B149,'Crop 3'!$V$15*VLOOKUP('Crop 3'!$E$15,Carbon!$AH$4:$AI$10,2,FALSE),0)+IF('Crop 3'!$C$16=Carbon!$B149,'Crop 3'!$V$16*VLOOKUP('Crop 3'!$E$16,Carbon!$AH$4:$AI$10,2,FALSE),0)+IF('Crop 3'!$C$19=Carbon!$B149,'Crop 3'!$V$19*VLOOKUP('Crop 3'!$E$19,Carbon!$AH$4:$AI$10,2,FALSE),0)+IF('Crop 3'!$C$20=Carbon!$B149,'Crop 3'!$V$20*VLOOKUP('Crop 3'!$E$20,Carbon!$AH$4:$AI$10,2,FALSE),0)+IF('Crop 3'!$C$21=Carbon!$B149,'Crop 3'!$V$21*VLOOKUP('Crop 3'!$E$21,Carbon!$AH$4:$AI$10,2,FALSE),0)+IF('Crop 3'!$C$49=Carbon!$B149,'Crop 3'!$V$49*VLOOKUP('Crop 3'!$E$49,Carbon!$AH$4:$AI$10,2,FALSE),0)+IF('Crop 3'!$C$50=Carbon!$B149,'Crop 3'!$V$50*VLOOKUP('Crop 3'!$E$50,Carbon!$AH$4:$AI$10,2,FALSE),0)+IF('Crop 3'!$C$51=Carbon!$B149,'Crop 3'!$V$51*VLOOKUP('Crop 3'!$E$51,Carbon!$AH$4:$AI$10,2,FALSE),0)+IF('Crop 3'!$C$52=Carbon!$B149,'Crop 3'!$V$52*VLOOKUP('Crop 3'!$E$52,Carbon!$AH$4:$AI$10,2,FALSE),0)+IF('Crop 3'!$C$53=Carbon!$B149,'Crop 3'!$V$53*VLOOKUP('Crop 3'!$E$53,Carbon!$AH$4:$AI$10,2,FALSE),0)+IF('Crop 3'!$C$56=Carbon!$B149,'Crop 3'!$V$56*VLOOKUP('Crop 3'!$E$56,Carbon!$AH$4:$AI$10,2,FALSE),0)+IF('Crop 3'!$C$57=Carbon!$B149,'Crop 3'!$V$57*VLOOKUP('Crop 3'!$E$57,Carbon!$AH$4:$AI$10,2,FALSE),0)+IF('Crop 3'!$C$58=Carbon!$B149,'Crop 3'!$V$58*VLOOKUP('Crop 3'!$E$58,Carbon!$AH$4:$AI$10,2,FALSE),0)+IF('Crop 3'!$C$59=Carbon!$B149,'Crop 3'!$V$59*VLOOKUP('Crop 3'!$E$59,Carbon!$AH$4:$AI$10,2,FALSE),0)+IF('Crop 3'!$C$62=Carbon!$B149,'Crop 3'!$V$62*VLOOKUP('Crop 3'!$E$62,Carbon!$AH$4:$AI$10,2,FALSE),0)+IF('Crop 3'!$C$63=Carbon!$B149,'Crop 3'!$V$63*VLOOKUP('Crop 3'!$E$63,Carbon!$AH$4:$AI$10,2,FALSE),0)+IF('Crop 3'!$C$64=Carbon!$B149,'Crop 3'!$V$64*VLOOKUP('Crop 3'!$E$64,Carbon!$AH$4:$AI$10,2,FALSE),0)+IF('Crop 3'!$C$65=Carbon!$B149,'Crop 3'!$V$65*VLOOKUP('Crop 3'!$E$65,Carbon!$AH$4:$AI$10,2,FALSE),0))*$AL$20,2)","v":0},{"$f":"Q149*Inputs!$D$17","v":0},{"$f":"ROUND(T149/Inputs!D$19,2)","v":0},0,null,null,0,{"$f":"W149*Inputs!$D$13","v":0},0,{"$f":"Y149*Inputs!$D$13","v":0},0,{"$f":"AA149*Inputs!$D$13","v":0},{"$f":"ROUND(AD149/Inputs!D$19,2)","v":0},0]
[null,{"$f":"Defaults!AH116","v":"Strata PRO"},{"$f":"ROUND((IF('Crop 1'!$C$14=Carbon!$B150,'Crop 1'!$L$14*VLOOKUP('Crop 1'!$E$14,Carbon!$AH$4:$AI$10,2,FALSE),0)+IF('Crop 1'!$C$15=Carbon!$B150,'Crop 1'!$L$15*VLOOKUP('Crop 1'!$E$15,Carbon!$AH$4:$AI$10,2,FALSE),0)+IF('Crop 1'!$C$16=Carbon!$B150,'Crop 1'!$L$16*VLOOKUP('Crop 1'!$E$16,Carbon!$AH$4:$AI$10,2,FALSE),0)+IF('Crop 1'!$C$19=Carbon!$B150,'Crop 1'!$L$19*VLOOKUP('Crop 1'!$E$19,Carbon!$AH$4:$AI$10,2,FALSE),0)+IF('Crop 1'!$C$20=Carbon!$B150,'Crop 1'!$L$20*VLOOKUP('Crop 1'!$E$20,Carbon!$AH$4:$AI$10,2,FALSE),0)+IF('Crop 1'!$C$21=Carbon!$B150,'Crop 1'!$L$21*VLOOKUP('Crop 1'!$E$21,Carbon!$AH$4:$AI$10,2,FALSE),0)+IF('Crop 1'!$C$49=Carbon!$B150,'Crop 1'!$L$49*VLOOKUP('Crop 1'!$E$49,Carbon!$AH$4:$AI$10,2,FALSE),0)+IF('Crop 1'!$C$50=Carbon!$B150,'Crop 1'!$L$50*VLOOKUP('Crop 1'!$E$50,Carbon!$AH$4:$AI$10,2,FALSE),0)+IF('Crop 1'!$C$51=Carbon!$B150,'Crop 1'!$L$51*VLOOKUP('Crop 1'!$E$51,Carbon!$AH$4:$AI$10,2,FALSE),0)+IF('Crop 1'!$C$52=Carbon!$B150,'Crop 1'!$L$52*VLOOKUP('Crop 1'!$E$52,Carbon!$AH$4:$AI$10,2,FALSE),0)+IF('Crop 1'!$C$53=Carbon!$B150,'Crop 1'!$L$53*VLOOKUP('Crop 1'!$E$53,Carbon!$AH$4:$AI$10,2,FALSE),0)+IF('Crop 1'!$C$56=Carbon!$B150,'Crop 1'!$L$56*VLOOKUP('Crop 1'!$E$56,Carbon!$AH$4:$AI$10,2,FALSE),0)+IF('Crop 1'!$C$57=Carbon!$B150,'Crop 1'!$L$57*VLOOKUP('Crop 1'!$E$57,Carbon!$AH$4:$AI$10,2,FALSE),0)+IF('Crop 1'!$C$58=Carbon!$B150,'Crop 1'!$L$58*VLOOKUP('Crop 1'!$E$58,Carbon!$AH$4:$AI$10,2,FALSE),0)+IF('Crop 1'!$C$59=Carbon!$B150,'Crop 1'!$L$59*VLOOKUP('Crop 1'!$E$59,Carbon!$AH$4:$AI$10,2,FALSE),0)+IF('Crop 1'!$C$62=Carbon!$B150,'Crop 1'!$L$62*VLOOKUP('Crop 1'!$E$62,Carbon!$AH$4:$AI$10,2,FALSE),0)+IF('Crop 1'!$C$63=Carbon!$B150,'Crop 1'!$L$63*VLOOKUP('Crop 1'!$E$63,Carbon!$AH$4:$AI$10,2,FALSE),0)+IF('Crop 1'!$C$64=Carbon!$B150,'Crop 1'!$L$64*VLOOKUP('Crop 1'!$E$64,Carbon!$AH$4:$AI$10,2,FALSE),0)+IF('Crop 1'!$C$65=Carbon!$B150,'Crop 1'!$L$65*VLOOKUP('Crop 1'!$E$65,Carbon!$AH$4:$AI$10,2,FALSE),0))*$AL$20,2)","v":0},{"$f":"C150*Inputs!$D$13","v":0},{"$f":"ROUND((IF('Crop 2'!$C$14=Carbon!$B150,'Crop 2'!$L$14*VLOOKUP('Crop 2'!$E$14,Carbon!$AH$4:$AI$10,2,FALSE),0)+IF('Crop 2'!$C$15=Carbon!$B150,'Crop 2'!$L$15*VLOOKUP('Crop 2'!$E$15,Carbon!$AH$4:$AI$10,2,FALSE),0)+IF('Crop 2'!$C$16=Carbon!$B150,'Crop 2'!$L$16*VLOOKUP('Crop 2'!$E$16,Carbon!$AH$4:$AI$10,2,FALSE),0)+IF('Crop 2'!$C$19=Carbon!$B150,'Crop 2'!$L$19*VLOOKUP('Crop 2'!$E$19,Carbon!$AH$4:$AI$10,2,FALSE),0)+IF('Crop 2'!$C$20=Carbon!$B150,'Crop 2'!$L$20*VLOOKUP('Crop 2'!$E$20,Carbon!$AH$4:$AI$10,2,FALSE),0)+IF('Crop 2'!$C$21=Carbon!$B150,'Crop 2'!$L$21*VLOOKUP('Crop 2'!$E$21,Carbon!$AH$4:$AI$10,2,FALSE),0)+IF('Crop 2'!$C$49=Carbon!$B150,'Crop 2'!$L$49*VLOOKUP('Crop 2'!$E$49,Carbon!$AH$4:$AI$10,2,FALSE),0)+IF('Crop 2'!$C$50=Carbon!$B150,'Crop 2'!$L$50*VLOOKUP('Crop 2'!$E$50,Carbon!$AH$4:$AI$10,2,FALSE),0)+IF('Crop 2'!$C$51=Carbon!$B150,'Crop 2'!$L$51*VLOOKUP('Crop 2'!$E$51,Carbon!$AH$4:$AI$10,2,FALSE),0)+IF('Crop 2'!$C$52=Carbon!$B150,'Crop 2'!$L$52*VLOOKUP('Crop 2'!$E$52,Carbon!$AH$4:$AI$10,2,FALSE),0)+IF('Crop 2'!$C$53=Carbon!$B150,'Crop 2'!$L$53*VLOOKUP('Crop 2'!$E$53,Carbon!$AH$4:$AI$10,2,FALSE),0)+IF('Crop 2'!$C$56=Carbon!$B150,'Crop 2'!$L$56*VLOOKUP('Crop 2'!$E$56,Carbon!$AH$4:$AI$10,2,FALSE),0)+IF('Crop 2'!$C$57=Carbon!$B150,'Crop 2'!$L$57*VLOOKUP('Crop 2'!$E$57,Carbon!$AH$4:$AI$10,2,FALSE),0)+IF('Crop 2'!$C$58=Carbon!$B150,'Crop 2'!$L$58*VLOOKUP('Crop 2'!$E$58,Carbon!$AH$4:$AI$10,2,FALSE),0)+IF('Crop 2'!$C$59=Carbon!$B150,'Crop 2'!$L$59*VLOOKUP('Crop 2'!$E$59,Carbon!$AH$4:$AI$10,2,FALSE),0)+IF('Crop 2'!$C$62=Carbon!$B150,'Crop 2'!$L$62*VLOOKUP('Crop 2'!$E$62,Carbon!$AH$4:$AI$10,2,FALSE),0)+IF('Crop 2'!$C$63=Carbon!$B150,'Crop 2'!$L$63*VLOOKUP('Crop 2'!$E$63,Carbon!$AH$4:$AI$10,2,FALSE),0)+IF('Crop 2'!$C$64=Carbon!$B150,'Crop 2'!$L$64*VLOOKUP('Crop 2'!$E$64,Carbon!$AH$4:$AI$10,2,FALSE),0)+IF('Crop 2'!$C$65=Carbon!$B150,'Crop 2'!$L$65*VLOOKUP('Crop 2'!$E$65,Carbon!$AH$4:$AI$10,2,FALSE),0))*$AL$20,2)","v":0},{"$f":"E150*Inputs!$D$15","v":0},{"$f":"ROUND((IF('Crop 3'!$C$14=Carbon!$B150,'Crop 3'!$L$14*VLOOKUP('Crop 3'!$E$14,Carbon!$AH$4:$AI$10,2,FALSE),0)+IF('Crop 3'!$C$15=Carbon!$B150,'Crop 3'!$L$15*VLOOKUP('Crop 3'!$E$15,Carbon!$AH$4:$AI$10,2,FALSE),0)+IF('Crop 3'!$C$16=Carbon!$B150,'Crop 3'!$L$16*VLOOKUP('Crop 3'!$E$16,Carbon!$AH$4:$AI$10,2,FALSE),0)+IF('Crop 3'!$C$19=Carbon!$B150,'Crop 3'!$L$19*VLOOKUP('Crop 3'!$E$19,Carbon!$AH$4:$AI$10,2,FALSE),0)+IF('Crop 3'!$C$20=Carbon!$B150,'Crop 3'!$L$20*VLOOKUP('Crop 3'!$E$20,Carbon!$AH$4:$AI$10,2,FALSE),0)+IF('Crop 3'!$C$21=Carbon!$B150,'Crop 3'!$L$21*VLOOKUP('Crop 3'!$E$21,Carbon!$AH$4:$AI$10,2,FALSE),0)+IF('Crop 3'!$C$49=Carbon!$B150,'Crop 3'!$L$49*VLOOKUP('Crop 3'!$E$49,Carbon!$AH$4:$AI$10,2,FALSE),0)+IF('Crop 3'!$C$50=Carbon!$B150,'Crop 3'!$L$50*VLOOKUP('Crop 3'!$E$50,Carbon!$AH$4:$AI$10,2,FALSE),0)+IF('Crop 3'!$C$51=Carbon!$B150,'Crop 3'!$L$51*VLOOKUP('Crop 3'!$E$51,Carbon!$AH$4:$AI$10,2,FALSE),0)+IF('Crop 3'!$C$52=Carbon!$B150,'Crop 3'!$L$52*VLOOKUP('Crop 3'!$E$52,Carbon!$AH$4:$AI$10,2,FALSE),0)+IF('Crop 3'!$C$53=Carbon!$B150,'Crop 3'!$L$53*VLOOKUP('Crop 3'!$E$53,Carbon!$AH$4:$AI$10,2,FALSE),0)+IF('Crop 3'!$C$56=Carbon!$B150,'Crop 3'!$L$56*VLOOKUP('Crop 3'!$E$56,Carbon!$AH$4:$AI$10,2,FALSE),0)+IF('Crop 3'!$C$57=Carbon!$B150,'Crop 3'!$L$57*VLOOKUP('Crop 3'!$E$57,Carbon!$AH$4:$AI$10,2,FALSE),0)+IF('Crop 3'!$C$58=Carbon!$B150,'Crop 3'!$L$58*VLOOKUP('Crop 3'!$E$58,Carbon!$AH$4:$AI$10,2,FALSE),0)+IF('Crop 3'!$C$59=Carbon!$B150,'Crop 3'!$L$59*VLOOKUP('Crop 3'!$E$59,Carbon!$AH$4:$AI$10,2,FALSE),0)+IF('Crop 3'!$C$62=Carbon!$B150,'Crop 3'!$L$62*VLOOKUP('Crop 3'!$E$62,Carbon!$AH$4:$AI$10,2,FALSE),0)+IF('Crop 3'!$C$63=Carbon!$B150,'Crop 3'!$L$63*VLOOKUP('Crop 3'!$E$63,Carbon!$AH$4:$AI$10,2,FALSE),0)+IF('Crop 3'!$C$64=Carbon!$B150,'Crop 3'!$L$64*VLOOKUP('Crop 3'!$E$64,Carbon!$AH$4:$AI$10,2,FALSE),0)+IF('Crop 3'!$C$65=Carbon!$B150,'Crop 3'!$L$65*VLOOKUP('Crop 3'!$E$65,Carbon!$AH$4:$AI$10,2,FALSE),0))*$AL$20,2)","v":0},{"$f":"G150*Inputs!$D$17","v":0},{"$f":"ROUND(J150/Inputs!D$19,2)","v":0},0,null,null,{"$f":"ROUND((IF('Crop 1'!$C$14=Carbon!$B150,'Crop 1'!$V$14*VLOOKUP('Crop 1'!$E$14,Carbon!$AH$4:$AI$10,2,FALSE),0)+IF('Crop 1'!$C$15=Carbon!$B150,'Crop 1'!$V$15*VLOOKUP('Crop 1'!$E$15,Carbon!$AH$4:$AI$10,2,FALSE),0)+IF('Crop 1'!$C$16=Carbon!$B150,'Crop 1'!$V$16*VLOOKUP('Crop 1'!$E$16,Carbon!$AH$4:$AI$10,2,FALSE),0)+IF('Crop 1'!$C$19=Carbon!$B150,'Crop 1'!$V$19*VLOOKUP('Crop 1'!$E$19,Carbon!$AH$4:$AI$10,2,FALSE),0)+IF('Crop 1'!$C$20=Carbon!$B150,'Crop 1'!$V$20*VLOOKUP('Crop 1'!$E$20,Carbon!$AH$4:$AI$10,2,FALSE),0)+IF('Crop 1'!$C$21=Carbon!$B150,'Crop 1'!$V$21*VLOOKUP('Crop 1'!$E$21,Carbon!$AH$4:$AI$10,2,FALSE),0)+IF('Crop 1'!$C$49=Carbon!$B150,'Crop 1'!$V$49*VLOOKUP('Crop 1'!$E$49,Carbon!$AH$4:$AI$10,2,FALSE),0)+IF('Crop 1'!$C$50=Carbon!$B150,'Crop 1'!$V$50*VLOOKUP('Crop 1'!$E$50,Carbon!$AH$4:$AI$10,2,FALSE),0)+IF('Crop 1'!$C$51=Carbon!$B150,'Crop 1'!$V$51*VLOOKUP('Crop 1'!$E$51,Carbon!$AH$4:$AI$10,2,FALSE),0)+IF('Crop 1'!$C$52=Carbon!$B150,'Crop 1'!$V$52*VLOOKUP('Crop 1'!$E$52,Carbon!$AH$4:$AI$10,2,FALSE),0)+IF('Crop 1'!$C$53=Carbon!$B150,'Crop 1'!$V$53*VLOOKUP('Crop 1'!$E$53,Carbon!$AH$4:$AI$10,2,FALSE),0)+IF('Crop 1'!$C$56=Carbon!$B150,'Crop 1'!$V$56*VLOOKUP('Crop 1'!$E$56,Carbon!$AH$4:$AI$10,2,FALSE),0)+IF('Crop 1'!$C$57=Carbon!$B150,'Crop 1'!$V$57*VLOOKUP('Crop 1'!$E$57,Carbon!$AH$4:$AI$10,2,FALSE),0)+IF('Crop 1'!$C$58=Carbon!$B150,'Crop 1'!$V$58*VLOOKUP('Crop 1'!$E$58,Carbon!$AH$4:$AI$10,2,FALSE),0)+IF('Crop 1'!$C$59=Carbon!$B150,'Crop 1'!$V$59*VLOOKUP('Crop 1'!$E$59,Carbon!$AH$4:$AI$10,2,FALSE),0)+IF('Crop 1'!$C$62=Carbon!$B150,'Crop 1'!$V$62*VLOOKUP('Crop 1'!$E$62,Carbon!$AH$4:$AI$10,2,FALSE),0)+IF('Crop 1'!$C$63=Carbon!$B150,'Crop 1'!$V$63*VLOOKUP('Crop 1'!$E$63,Carbon!$AH$4:$AI$10,2,FALSE),0)+IF('Crop 1'!$C$64=Carbon!$B150,'Crop 1'!$V$64*VLOOKUP('Crop 1'!$E$64,Carbon!$AH$4:$AI$10,2,FALSE),0)+IF('Crop 1'!$C$65=Carbon!$B150,'Crop 1'!$V$65*VLOOKUP('Crop 1'!$E$65,Carbon!$AH$4:$AI$10,2,FALSE),0))*$AL$20,2)","v":0},{"$f":"M150*Inputs!$D$13","v":0},{"$f":"ROUND((IF('Crop 2'!$C$14=Carbon!$B150,'Crop 2'!$V$14*VLOOKUP('Crop 2'!$E$14,Carbon!$AH$4:$AI$10,2,FALSE),0)+IF('Crop 2'!$C$15=Carbon!$B150,'Crop 2'!$V$15*VLOOKUP('Crop 2'!$E$15,Carbon!$AH$4:$AI$10,2,FALSE),0)+IF('Crop 2'!$C$16=Carbon!$B150,'Crop 2'!$V$16*VLOOKUP('Crop 2'!$E$16,Carbon!$AH$4:$AI$10,2,FALSE),0)+IF('Crop 2'!$C$19=Carbon!$B150,'Crop 2'!$V$19*VLOOKUP('Crop 2'!$E$19,Carbon!$AH$4:$AI$10,2,FALSE),0)+IF('Crop 2'!$C$20=Carbon!$B150,'Crop 2'!$V$20*VLOOKUP('Crop 2'!$E$20,Carbon!$AH$4:$AI$10,2,FALSE),0)+IF('Crop 2'!$C$21=Carbon!$B150,'Crop 2'!$V$21*VLOOKUP('Crop 2'!$E$21,Carbon!$AH$4:$AI$10,2,FALSE),0)+IF('Crop 2'!$C$49=Carbon!$B150,'Crop 2'!$V$49*VLOOKUP('Crop 2'!$E$49,Carbon!$AH$4:$AI$10,2,FALSE),0)+IF('Crop 2'!$C$50=Carbon!$B150,'Crop 2'!$V$50*VLOOKUP('Crop 2'!$E$50,Carbon!$AH$4:$AI$10,2,FALSE),0)+IF('Crop 2'!$C$51=Carbon!$B150,'Crop 2'!$V$51*VLOOKUP('Crop 2'!$E$51,Carbon!$AH$4:$AI$10,2,FALSE),0)+IF('Crop 2'!$C$52=Carbon!$B150,'Crop 2'!$V$52*VLOOKUP('Crop 2'!$E$52,Carbon!$AH$4:$AI$10,2,FALSE),0)+IF('Crop 2'!$C$53=Carbon!$B150,'Crop 2'!$V$53*VLOOKUP('Crop 2'!$E$53,Carbon!$AH$4:$AI$10,2,FALSE),0)+IF('Crop 2'!$C$56=Carbon!$B150,'Crop 2'!$V$56*VLOOKUP('Crop 2'!$E$56,Carbon!$AH$4:$AI$10,2,FALSE),0)+IF('Crop 2'!$C$57=Carbon!$B150,'Crop 2'!$V$57*VLOOKUP('Crop 2'!$E$57,Carbon!$AH$4:$AI$10,2,FALSE),0)+IF('Crop 2'!$C$58=Carbon!$B150,'Crop 2'!$V$58*VLOOKUP('Crop 2'!$E$58,Carbon!$AH$4:$AI$10,2,FALSE),0)+IF('Crop 2'!$C$59=Carbon!$B150,'Crop 2'!$V$59*VLOOKUP('Crop 2'!$E$59,Carbon!$AH$4:$AI$10,2,FALSE),0)+IF('Crop 2'!$C$62=Carbon!$B150,'Crop 2'!$V$62*VLOOKUP('Crop 2'!$E$62,Carbon!$AH$4:$AI$10,2,FALSE),0)+IF('Crop 2'!$C$63=Carbon!$B150,'Crop 2'!$V$63*VLOOKUP('Crop 2'!$E$63,Carbon!$AH$4:$AI$10,2,FALSE),0)+IF('Crop 2'!$C$64=Carbon!$B150,'Crop 2'!$V$64*VLOOKUP('Crop 2'!$E$64,Carbon!$AH$4:$AI$10,2,FALSE),0)+IF('Crop 2'!$C$65=Carbon!$B150,'Crop 2'!$V$65*VLOOKUP('Crop 2'!$E$65,Carbon!$AH$4:$AI$10,2,FALSE),0))*$AL$20,2)","v":0},{"$f":"O150*Inputs!$D$15","v":0},{"$f":"ROUND((IF('Crop 3'!$C$14=Carbon!$B150,'Crop 3'!$V$14*VLOOKUP('Crop 3'!$E$14,Carbon!$AH$4:$AI$10,2,FALSE),0)+IF('Crop 3'!$C$15=Carbon!$B150,'Crop 3'!$V$15*VLOOKUP('Crop 3'!$E$15,Carbon!$AH$4:$AI$10,2,FALSE),0)+IF('Crop 3'!$C$16=Carbon!$B150,'Crop 3'!$V$16*VLOOKUP('Crop 3'!$E$16,Carbon!$AH$4:$AI$10,2,FALSE),0)+IF('Crop 3'!$C$19=Carbon!$B150,'Crop 3'!$V$19*VLOOKUP('Crop 3'!$E$19,Carbon!$AH$4:$AI$10,2,FALSE),0)+IF('Crop 3'!$C$20=Carbon!$B150,'Crop 3'!$V$20*VLOOKUP('Crop 3'!$E$20,Carbon!$AH$4:$AI$10,2,FALSE),0)+IF('Crop 3'!$C$21=Carbon!$B150,'Crop 3'!$V$21*VLOOKUP('Crop 3'!$E$21,Carbon!$AH$4:$AI$10,2,FALSE),0)+IF('Crop 3'!$C$49=Carbon!$B150,'Crop 3'!$V$49*VLOOKUP('Crop 3'!$E$49,Carbon!$AH$4:$AI$10,2,FALSE),0)+IF('Crop 3'!$C$50=Carbon!$B150,'Crop 3'!$V$50*VLOOKUP('Crop 3'!$E$50,Carbon!$AH$4:$AI$10,2,FALSE),0)+IF('Crop 3'!$C$51=Carbon!$B150,'Crop 3'!$V$51*VLOOKUP('Crop 3'!$E$51,Carbon!$AH$4:$AI$10,2,FALSE),0)+IF('Crop 3'!$C$52=Carbon!$B150,'Crop 3'!$V$52*VLOOKUP('Crop 3'!$E$52,Carbon!$AH$4:$AI$10,2,FALSE),0)+IF('Crop 3'!$C$53=Carbon!$B150,'Crop 3'!$V$53*VLOOKUP('Crop 3'!$E$53,Carbon!$AH$4:$AI$10,2,FALSE),0)+IF('Crop 3'!$C$56=Carbon!$B150,'Crop 3'!$V$56*VLOOKUP('Crop 3'!$E$56,Carbon!$AH$4:$AI$10,2,FALSE),0)+IF('Crop 3'!$C$57=Carbon!$B150,'Crop 3'!$V$57*VLOOKUP('Crop 3'!$E$57,Carbon!$AH$4:$AI$10,2,FALSE),0)+IF('Crop 3'!$C$58=Carbon!$B150,'Crop 3'!$V$58*VLOOKUP('Crop 3'!$E$58,Carbon!$AH$4:$AI$10,2,FALSE),0)+IF('Crop 3'!$C$59=Carbon!$B150,'Crop 3'!$V$59*VLOOKUP('Crop 3'!$E$59,Carbon!$AH$4:$AI$10,2,FALSE),0)+IF('Crop 3'!$C$62=Carbon!$B150,'Crop 3'!$V$62*VLOOKUP('Crop 3'!$E$62,Carbon!$AH$4:$AI$10,2,FALSE),0)+IF('Crop 3'!$C$63=Carbon!$B150,'Crop 3'!$V$63*VLOOKUP('Crop 3'!$E$63,Carbon!$AH$4:$AI$10,2,FALSE),0)+IF('Crop 3'!$C$64=Carbon!$B150,'Crop 3'!$V$64*VLOOKUP('Crop 3'!$E$64,Carbon!$AH$4:$AI$10,2,FALSE),0)+IF('Crop 3'!$C$65=Carbon!$B150,'Crop 3'!$V$65*VLOOKUP('Crop 3'!$E$65,Carbon!$AH$4:$AI$10,2,FALSE),0))*$AL$20,2)","v":0},{"$f":"Q150*Inputs!$D$17","v":0},{"$f":"ROUND(T150/Inputs!D$19,2)","v":0},0,null,null,0,{"$f":"W150*Inputs!$D$13","v":0},0,{"$f":"Y150*Inputs!$D$13","v":0},0,{"$f":"AA150*Inputs!$D$13","v":0},{"$f":"ROUND(AD150/Inputs!D$19,2)","v":0},0]
[null,{"$f":"Defaults!AH117","v":"Strata XT2"},{"$f":"ROUND((IF('Crop 1'!$C$14=Carbon!$B151,'Crop 1'!$L$14*VLOOKUP('Crop 1'!$E$14,Carbon!$AH$4:$AI$10,2,FALSE),0)+IF('Crop 1'!$C$15=Carbon!$B151,'Crop 1'!$L$15*VLOOKUP('Crop 1'!$E$15,Carbon!$AH$4:$AI$10,2,FALSE),0)+IF('Crop 1'!$C$16=Carbon!$B151,'Crop 1'!$L$16*VLOOKUP('Crop 1'!$E$16,Carbon!$AH$4:$AI$10,2,FALSE),0)+IF('Crop 1'!$C$19=Carbon!$B151,'Crop 1'!$L$19*VLOOKUP('Crop 1'!$E$19,Carbon!$AH$4:$AI$10,2,FALSE),0)+IF('Crop 1'!$C$20=Carbon!$B151,'Crop 1'!$L$20*VLOOKUP('Crop 1'!$E$20,Carbon!$AH$4:$AI$10,2,FALSE),0)+IF('Crop 1'!$C$21=Carbon!$B151,'Crop 1'!$L$21*VLOOKUP('Crop 1'!$E$21,Carbon!$AH$4:$AI$10,2,FALSE),0)+IF('Crop 1'!$C$49=Carbon!$B151,'Crop 1'!$L$49*VLOOKUP('Crop 1'!$E$49,Carbon!$AH$4:$AI$10,2,FALSE),0)+IF('Crop 1'!$C$50=Carbon!$B151,'Crop 1'!$L$50*VLOOKUP('Crop 1'!$E$50,Carbon!$AH$4:$AI$10,2,FALSE),0)+IF('Crop 1'!$C$51=Carbon!$B151,'Crop 1'!$L$51*VLOOKUP('Crop 1'!$E$51,Carbon!$AH$4:$AI$10,2,FALSE),0)+IF('Crop 1'!$C$52=Carbon!$B151,'Crop 1'!$L$52*VLOOKUP('Crop 1'!$E$52,Carbon!$AH$4:$AI$10,2,FALSE),0)+IF('Crop 1'!$C$53=Carbon!$B151,'Crop 1'!$L$53*VLOOKUP('Crop 1'!$E$53,Carbon!$AH$4:$AI$10,2,FALSE),0)+IF('Crop 1'!$C$56=Carbon!$B151,'Crop 1'!$L$56*VLOOKUP('Crop 1'!$E$56,Carbon!$AH$4:$AI$10,2,FALSE),0)+IF('Crop 1'!$C$57=Carbon!$B151,'Crop 1'!$L$57*VLOOKUP('Crop 1'!$E$57,Carbon!$AH$4:$AI$10,2,FALSE),0)+IF('Crop 1'!$C$58=Carbon!$B151,'Crop 1'!$L$58*VLOOKUP('Crop 1'!$E$58,Carbon!$AH$4:$AI$10,2,FALSE),0)+IF('Crop 1'!$C$59=Carbon!$B151,'Crop 1'!$L$59*VLOOKUP('Crop 1'!$E$59,Carbon!$AH$4:$AI$10,2,FALSE),0)+IF('Crop 1'!$C$62=Carbon!$B151,'Crop 1'!$L$62*VLOOKUP('Crop 1'!$E$62,Carbon!$AH$4:$AI$10,2,FALSE),0)+IF('Crop 1'!$C$63=Carbon!$B151,'Crop 1'!$L$63*VLOOKUP('Crop 1'!$E$63,Carbon!$AH$4:$AI$10,2,FALSE),0)+IF('Crop 1'!$C$64=Carbon!$B151,'Crop 1'!$L$64*VLOOKUP('Crop 1'!$E$64,Carbon!$AH$4:$AI$10,2,FALSE),0)+IF('Crop 1'!$C$65=Carbon!$B151,'Crop 1'!$L$65*VLOOKUP('Crop 1'!$E$65,Carbon!$AH$4:$AI$10,2,FALSE),0))*$AL$20,2)","v":0},{"$f":"C151*Inputs!$D$13","v":0},{"$f":"ROUND((IF('Crop 2'!$C$14=Carbon!$B151,'Crop 2'!$L$14*VLOOKUP('Crop 2'!$E$14,Carbon!$AH$4:$AI$10,2,FALSE),0)+IF('Crop 2'!$C$15=Carbon!$B151,'Crop 2'!$L$15*VLOOKUP('Crop 2'!$E$15,Carbon!$AH$4:$AI$10,2,FALSE),0)+IF('Crop 2'!$C$16=Carbon!$B151,'Crop 2'!$L$16*VLOOKUP('Crop 2'!$E$16,Carbon!$AH$4:$AI$10,2,FALSE),0)+IF('Crop 2'!$C$19=Carbon!$B151,'Crop 2'!$L$19*VLOOKUP('Crop 2'!$E$19,Carbon!$AH$4:$AI$10,2,FALSE),0)+IF('Crop 2'!$C$20=Carbon!$B151,'Crop 2'!$L$20*VLOOKUP('Crop 2'!$E$20,Carbon!$AH$4:$AI$10,2,FALSE),0)+IF('Crop 2'!$C$21=Carbon!$B151,'Crop 2'!$L$21*VLOOKUP('Crop 2'!$E$21,Carbon!$AH$4:$AI$10,2,FALSE),0)+IF('Crop 2'!$C$49=Carbon!$B151,'Crop 2'!$L$49*VLOOKUP('Crop 2'!$E$49,Carbon!$AH$4:$AI$10,2,FALSE),0)+IF('Crop 2'!$C$50=Carbon!$B151,'Crop 2'!$L$50*VLOOKUP('Crop 2'!$E$50,Carbon!$AH$4:$AI$10,2,FALSE),0)+IF('Crop 2'!$C$51=Carbon!$B151,'Crop 2'!$L$51*VLOOKUP('Crop 2'!$E$51,Carbon!$AH$4:$AI$10,2,FALSE),0)+IF('Crop 2'!$C$52=Carbon!$B151,'Crop 2'!$L$52*VLOOKUP('Crop 2'!$E$52,Carbon!$AH$4:$AI$10,2,FALSE),0)+IF('Crop 2'!$C$53=Carbon!$B151,'Crop 2'!$L$53*VLOOKUP('Crop 2'!$E$53,Carbon!$AH$4:$AI$10,2,FALSE),0)+IF('Crop 2'!$C$56=Carbon!$B151,'Crop 2'!$L$56*VLOOKUP('Crop 2'!$E$56,Carbon!$AH$4:$AI$10,2,FALSE),0)+IF('Crop 2'!$C$57=Carbon!$B151,'Crop 2'!$L$57*VLOOKUP('Crop 2'!$E$57,Carbon!$AH$4:$AI$10,2,FALSE),0)+IF('Crop 2'!$C$58=Carbon!$B151,'Crop 2'!$L$58*VLOOKUP('Crop 2'!$E$58,Carbon!$AH$4:$AI$10,2,FALSE),0)+IF('Crop 2'!$C$59=Carbon!$B151,'Crop 2'!$L$59*VLOOKUP('Crop 2'!$E$59,Carbon!$AH$4:$AI$10,2,FALSE),0)+IF('Crop 2'!$C$62=Carbon!$B151,'Crop 2'!$L$62*VLOOKUP('Crop 2'!$E$62,Carbon!$AH$4:$AI$10,2,FALSE),0)+IF('Crop 2'!$C$63=Carbon!$B151,'Crop 2'!$L$63*VLOOKUP('Crop 2'!$E$63,Carbon!$AH$4:$AI$10,2,FALSE),0)+IF('Crop 2'!$C$64=Carbon!$B151,'Crop 2'!$L$64*VLOOKUP('Crop 2'!$E$64,Carbon!$AH$4:$AI$10,2,FALSE),0)+IF('Crop 2'!$C$65=Carbon!$B151,'Crop 2'!$L$65*VLOOKUP('Crop 2'!$E$65,Carbon!$AH$4:$AI$10,2,FALSE),0))*$AL$20,2)","v":0},{"$f":"E151*Inputs!$D$15","v":0},{"$f":"ROUND((IF('Crop 3'!$C$14=Carbon!$B151,'Crop 3'!$L$14*VLOOKUP('Crop 3'!$E$14,Carbon!$AH$4:$AI$10,2,FALSE),0)+IF('Crop 3'!$C$15=Carbon!$B151,'Crop 3'!$L$15*VLOOKUP('Crop 3'!$E$15,Carbon!$AH$4:$AI$10,2,FALSE),0)+IF('Crop 3'!$C$16=Carbon!$B151,'Crop 3'!$L$16*VLOOKUP('Crop 3'!$E$16,Carbon!$AH$4:$AI$10,2,FALSE),0)+IF('Crop 3'!$C$19=Carbon!$B151,'Crop 3'!$L$19*VLOOKUP('Crop 3'!$E$19,Carbon!$AH$4:$AI$10,2,FALSE),0)+IF('Crop 3'!$C$20=Carbon!$B151,'Crop 3'!$L$20*VLOOKUP('Crop 3'!$E$20,Carbon!$AH$4:$AI$10,2,FALSE),0)+IF('Crop 3'!$C$21=Carbon!$B151,'Crop 3'!$L$21*VLOOKUP('Crop 3'!$E$21,Carbon!$AH$4:$AI$10,2,FALSE),0)+IF('Crop 3'!$C$49=Carbon!$B151,'Crop 3'!$L$49*VLOOKUP('Crop 3'!$E$49,Carbon!$AH$4:$AI$10,2,FALSE),0)+IF('Crop 3'!$C$50=Carbon!$B151,'Crop 3'!$L$50*VLOOKUP('Crop 3'!$E$50,Carbon!$AH$4:$AI$10,2,FALSE),0)+IF('Crop 3'!$C$51=Carbon!$B151,'Crop 3'!$L$51*VLOOKUP('Crop 3'!$E$51,Carbon!$AH$4:$AI$10,2,FALSE),0)+IF('Crop 3'!$C$52=Carbon!$B151,'Crop 3'!$L$52*VLOOKUP('Crop 3'!$E$52,Carbon!$AH$4:$AI$10,2,FALSE),0)+IF('Crop 3'!$C$53=Carbon!$B151,'Crop 3'!$L$53*VLOOKUP('Crop 3'!$E$53,Carbon!$AH$4:$AI$10,2,FALSE),0)+IF('Crop 3'!$C$56=Carbon!$B151,'Crop 3'!$L$56*VLOOKUP('Crop 3'!$E$56,Carbon!$AH$4:$AI$10,2,FALSE),0)+IF('Crop 3'!$C$57=Carbon!$B151,'Crop 3'!$L$57*VLOOKUP('Crop 3'!$E$57,Carbon!$AH$4:$AI$10,2,FALSE),0)+IF('Crop 3'!$C$58=Carbon!$B151,'Crop 3'!$L$58*VLOOKUP('Crop 3'!$E$58,Carbon!$AH$4:$AI$10,2,FALSE),0)+IF('Crop 3'!$C$59=Carbon!$B151,'Crop 3'!$L$59*VLOOKUP('Crop 3'!$E$59,Carbon!$AH$4:$AI$10,2,FALSE),0)+IF('Crop 3'!$C$62=Carbon!$B151,'Crop 3'!$L$62*VLOOKUP('Crop 3'!$E$62,Carbon!$AH$4:$AI$10,2,FALSE),0)+IF('Crop 3'!$C$63=Carbon!$B151,'Crop 3'!$L$63*VLOOKUP('Crop 3'!$E$63,Carbon!$AH$4:$AI$10,2,FALSE),0)+IF('Crop 3'!$C$64=Carbon!$B151,'Crop 3'!$L$64*VLOOKUP('Crop 3'!$E$64,Carbon!$AH$4:$AI$10,2,FALSE),0)+IF('Crop 3'!$C$65=Carbon!$B151,'Crop 3'!$L$65*VLOOKUP('Crop 3'!$E$65,Carbon!$AH$4:$AI$10,2,FALSE),0))*$AL$20,2)","v":0},{"$f":"G151*Inputs!$D$17","v":0},{"$f":"ROUND(J151/Inputs!D$19,2)","v":0},0,null,null,{"$f":"ROUND((IF('Crop 1'!$C$14=Carbon!$B151,'Crop 1'!$V$14*VLOOKUP('Crop 1'!$E$14,Carbon!$AH$4:$AI$10,2,FALSE),0)+IF('Crop 1'!$C$15=Carbon!$B151,'Crop 1'!$V$15*VLOOKUP('Crop 1'!$E$15,Carbon!$AH$4:$AI$10,2,FALSE),0)+IF('Crop 1'!$C$16=Carbon!$B151,'Crop 1'!$V$16*VLOOKUP('Crop 1'!$E$16,Carbon!$AH$4:$AI$10,2,FALSE),0)+IF('Crop 1'!$C$19=Carbon!$B151,'Crop 1'!$V$19*VLOOKUP('Crop 1'!$E$19,Carbon!$AH$4:$AI$10,2,FALSE),0)+IF('Crop 1'!$C$20=Carbon!$B151,'Crop 1'!$V$20*VLOOKUP('Crop 1'!$E$20,Carbon!$AH$4:$AI$10,2,FALSE),0)+IF('Crop 1'!$C$21=Carbon!$B151,'Crop 1'!$V$21*VLOOKUP('Crop 1'!$E$21,Carbon!$AH$4:$AI$10,2,FALSE),0)+IF('Crop 1'!$C$49=Carbon!$B151,'Crop 1'!$V$49*VLOOKUP('Crop 1'!$E$49,Carbon!$AH$4:$AI$10,2,FALSE),0)+IF('Crop 1'!$C$50=Carbon!$B151,'Crop 1'!$V$50*VLOOKUP('Crop 1'!$E$50,Carbon!$AH$4:$AI$10,2,FALSE),0)+IF('Crop 1'!$C$51=Carbon!$B151,'Crop 1'!$V$51*VLOOKUP('Crop 1'!$E$51,Carbon!$AH$4:$AI$10,2,FALSE),0)+IF('Crop 1'!$C$52=Carbon!$B151,'Crop 1'!$V$52*VLOOKUP('Crop 1'!$E$52,Carbon!$AH$4:$AI$10,2,FALSE),0)+IF('Crop 1'!$C$53=Carbon!$B151,'Crop 1'!$V$53*VLOOKUP('Crop 1'!$E$53,Carbon!$AH$4:$AI$10,2,FALSE),0)+IF('Crop 1'!$C$56=Carbon!$B151,'Crop 1'!$V$56*VLOOKUP('Crop 1'!$E$56,Carbon!$AH$4:$AI$10,2,FALSE),0)+IF('Crop 1'!$C$57=Carbon!$B151,'Crop 1'!$V$57*VLOOKUP('Crop 1'!$E$57,Carbon!$AH$4:$AI$10,2,FALSE),0)+IF('Crop 1'!$C$58=Carbon!$B151,'Crop 1'!$V$58*VLOOKUP('Crop 1'!$E$58,Carbon!$AH$4:$AI$10,2,FALSE),0)+IF('Crop 1'!$C$59=Carbon!$B151,'Crop 1'!$V$59*VLOOKUP('Crop 1'!$E$59,Carbon!$AH$4:$AI$10,2,FALSE),0)+IF('Crop 1'!$C$62=Carbon!$B151,'Crop 1'!$V$62*VLOOKUP('Crop 1'!$E$62,Carbon!$AH$4:$AI$10,2,FALSE),0)+IF('Crop 1'!$C$63=Carbon!$B151,'Crop 1'!$V$63*VLOOKUP('Crop 1'!$E$63,Carbon!$AH$4:$AI$10,2,FALSE),0)+IF('Crop 1'!$C$64=Carbon!$B151,'Crop 1'!$V$64*VLOOKUP('Crop 1'!$E$64,Carbon!$AH$4:$AI$10,2,FALSE),0)+IF('Crop 1'!$C$65=Carbon!$B151,'Crop 1'!$V$65*VLOOKUP('Crop 1'!$E$65,Carbon!$AH$4:$AI$10,2,FALSE),0))*$AL$20,2)","v":0},{"$f":"M151*Inputs!$D$13","v":0},{"$f":"ROUND((IF('Crop 2'!$C$14=Carbon!$B151,'Crop 2'!$V$14*VLOOKUP('Crop 2'!$E$14,Carbon!$AH$4:$AI$10,2,FALSE),0)+IF('Crop 2'!$C$15=Carbon!$B151,'Crop 2'!$V$15*VLOOKUP('Crop 2'!$E$15,Carbon!$AH$4:$AI$10,2,FALSE),0)+IF('Crop 2'!$C$16=Carbon!$B151,'Crop 2'!$V$16*VLOOKUP('Crop 2'!$E$16,Carbon!$AH$4:$AI$10,2,FALSE),0)+IF('Crop 2'!$C$19=Carbon!$B151,'Crop 2'!$V$19*VLOOKUP('Crop 2'!$E$19,Carbon!$AH$4:$AI$10,2,FALSE),0)+IF('Crop 2'!$C$20=Carbon!$B151,'Crop 2'!$V$20*VLOOKUP('Crop 2'!$E$20,Carbon!$AH$4:$AI$10,2,FALSE),0)+IF('Crop 2'!$C$21=Carbon!$B151,'Crop 2'!$V$21*VLOOKUP('Crop 2'!$E$21,Carbon!$AH$4:$AI$10,2,FALSE),0)+IF('Crop 2'!$C$49=Carbon!$B151,'Crop 2'!$V$49*VLOOKUP('Crop 2'!$E$49,Carbon!$AH$4:$AI$10,2,FALSE),0)+IF('Crop 2'!$C$50=Carbon!$B151,'Crop 2'!$V$50*VLOOKUP('Crop 2'!$E$50,Carbon!$AH$4:$AI$10,2,FALSE),0)+IF('Crop 2'!$C$51=Carbon!$B151,'Crop 2'!$V$51*VLOOKUP('Crop 2'!$E$51,Carbon!$AH$4:$AI$10,2,FALSE),0)+IF('Crop 2'!$C$52=Carbon!$B151,'Crop 2'!$V$52*VLOOKUP('Crop 2'!$E$52,Carbon!$AH$4:$AI$10,2,FALSE),0)+IF('Crop 2'!$C$53=Carbon!$B151,'Crop 2'!$V$53*VLOOKUP('Crop 2'!$E$53,Carbon!$AH$4:$AI$10,2,FALSE),0)+IF('Crop 2'!$C$56=Carbon!$B151,'Crop 2'!$V$56*VLOOKUP('Crop 2'!$E$56,Carbon!$AH$4:$AI$10,2,FALSE),0)+IF('Crop 2'!$C$57=Carbon!$B151,'Crop 2'!$V$57*VLOOKUP('Crop 2'!$E$57,Carbon!$AH$4:$AI$10,2,FALSE),0)+IF('Crop 2'!$C$58=Carbon!$B151,'Crop 2'!$V$58*VLOOKUP('Crop 2'!$E$58,Carbon!$AH$4:$AI$10,2,FALSE),0)+IF('Crop 2'!$C$59=Carbon!$B151,'Crop 2'!$V$59*VLOOKUP('Crop 2'!$E$59,Carbon!$AH$4:$AI$10,2,FALSE),0)+IF('Crop 2'!$C$62=Carbon!$B151,'Crop 2'!$V$62*VLOOKUP('Crop 2'!$E$62,Carbon!$AH$4:$AI$10,2,FALSE),0)+IF('Crop 2'!$C$63=Carbon!$B151,'Crop 2'!$V$63*VLOOKUP('Crop 2'!$E$63,Carbon!$AH$4:$AI$10,2,FALSE),0)+IF('Crop 2'!$C$64=Carbon!$B151,'Crop 2'!$V$64*VLOOKUP('Crop 2'!$E$64,Carbon!$AH$4:$AI$10,2,FALSE),0)+IF('Crop 2'!$C$65=Carbon!$B151,'Crop 2'!$V$65*VLOOKUP('Crop 2'!$E$65,Carbon!$AH$4:$AI$10,2,FALSE),0))*$AL$20,2)","v":0},{"$f":"O151*Inputs!$D$15","v":0},{"$f":"ROUND((IF('Crop 3'!$C$14=Carbon!$B151,'Crop 3'!$V$14*VLOOKUP('Crop 3'!$E$14,Carbon!$AH$4:$AI$10,2,FALSE),0)+IF('Crop 3'!$C$15=Carbon!$B151,'Crop 3'!$V$15*VLOOKUP('Crop 3'!$E$15,Carbon!$AH$4:$AI$10,2,FALSE),0)+IF('Crop 3'!$C$16=Carbon!$B151,'Crop 3'!$V$16*VLOOKUP('Crop 3'!$E$16,Carbon!$AH$4:$AI$10,2,FALSE),0)+IF('Crop 3'!$C$19=Carbon!$B151,'Crop 3'!$V$19*VLOOKUP('Crop 3'!$E$19,Carbon!$AH$4:$AI$10,2,FALSE),0)+IF('Crop 3'!$C$20=Carbon!$B151,'Crop 3'!$V$20*VLOOKUP('Crop 3'!$E$20,Carbon!$AH$4:$AI$10,2,FALSE),0)+IF('Crop 3'!$C$21=Carbon!$B151,'Crop 3'!$V$21*VLOOKUP('Crop 3'!$E$21,Carbon!$AH$4:$AI$10,2,FALSE),0)+IF('Crop 3'!$C$49=Carbon!$B151,'Crop 3'!$V$49*VLOOKUP('Crop 3'!$E$49,Carbon!$AH$4:$AI$10,2,FALSE),0)+IF('Crop 3'!$C$50=Carbon!$B151,'Crop 3'!$V$50*VLOOKUP('Crop 3'!$E$50,Carbon!$AH$4:$AI$10,2,FALSE),0)+IF('Crop 3'!$C$51=Carbon!$B151,'Crop 3'!$V$51*VLOOKUP('Crop 3'!$E$51,Carbon!$AH$4:$AI$10,2,FALSE),0)+IF('Crop 3'!$C$52=Carbon!$B151,'Crop 3'!$V$52*VLOOKUP('Crop 3'!$E$52,Carbon!$AH$4:$AI$10,2,FALSE),0)+IF('Crop 3'!$C$53=Carbon!$B151,'Crop 3'!$V$53*VLOOKUP('Crop 3'!$E$53,Carbon!$AH$4:$AI$10,2,FALSE),0)+IF('Crop 3'!$C$56=Carbon!$B151,'Crop 3'!$V$56*VLOOKUP('Crop 3'!$E$56,Carbon!$AH$4:$AI$10,2,FALSE),0)+IF('Crop 3'!$C$57=Carbon!$B151,'Crop 3'!$V$57*VLOOKUP('Crop 3'!$E$57,Carbon!$AH$4:$AI$10,2,FALSE),0)+IF('Crop 3'!$C$58=Carbon!$B151,'Crop 3'!$V$58*VLOOKUP('Crop 3'!$E$58,Carbon!$AH$4:$AI$10,2,FALSE),0)+IF('Crop 3'!$C$59=Carbon!$B151,'Crop 3'!$V$59*VLOOKUP('Crop 3'!$E$59,Carbon!$AH$4:$AI$10,2,FALSE),0)+IF('Crop 3'!$C$62=Carbon!$B151,'Crop 3'!$V$62*VLOOKUP('Crop 3'!$E$62,Carbon!$AH$4:$AI$10,2,FALSE),0)+IF('Crop 3'!$C$63=Carbon!$B151,'Crop 3'!$V$63*VLOOKUP('Crop 3'!$E$63,Carbon!$AH$4:$AI$10,2,FALSE),0)+IF('Crop 3'!$C$64=Carbon!$B151,'Crop 3'!$V$64*VLOOKUP('Crop 3'!$E$64,Carbon!$AH$4:$AI$10,2,FALSE),0)+IF('Crop 3'!$C$65=Carbon!$B151,'Crop 3'!$V$65*VLOOKUP('Crop 3'!$E$65,Carbon!$AH$4:$AI$10,2,FALSE),0))*$AL$20,2)","v":0},{"$f":"Q151*Inputs!$D$17","v":0},{"$f":"ROUND(T151/Inputs!D$19,2)","v":0},0,null,null,0,{"$f":"W151*Inputs!$D$13","v":0},0,{"$f":"Y151*Inputs!$D$13","v":0},0,{"$f":"AA151*Inputs!$D$13","v":0},{"$f":"ROUND(AD151/Inputs!D$19,2)","v":0},0]
[null,{"$f":"Defaults!AH118","v":"Strongarm"},{"$f":"ROUND((IF('Crop 1'!$C$14=Carbon!$B152,'Crop 1'!$L$14*VLOOKUP('Crop 1'!$E$14,Carbon!$AH$4:$AI$10,2,FALSE),0)+IF('Crop 1'!$C$15=Carbon!$B152,'Crop 1'!$L$15*VLOOKUP('Crop 1'!$E$15,Carbon!$AH$4:$AI$10,2,FALSE),0)+IF('Crop 1'!$C$16=Carbon!$B152,'Crop 1'!$L$16*VLOOKUP('Crop 1'!$E$16,Carbon!$AH$4:$AI$10,2,FALSE),0)+IF('Crop 1'!$C$19=Carbon!$B152,'Crop 1'!$L$19*VLOOKUP('Crop 1'!$E$19,Carbon!$AH$4:$AI$10,2,FALSE),0)+IF('Crop 1'!$C$20=Carbon!$B152,'Crop 1'!$L$20*VLOOKUP('Crop 1'!$E$20,Carbon!$AH$4:$AI$10,2,FALSE),0)+IF('Crop 1'!$C$21=Carbon!$B152,'Crop 1'!$L$21*VLOOKUP('Crop 1'!$E$21,Carbon!$AH$4:$AI$10,2,FALSE),0)+IF('Crop 1'!$C$49=Carbon!$B152,'Crop 1'!$L$49*VLOOKUP('Crop 1'!$E$49,Carbon!$AH$4:$AI$10,2,FALSE),0)+IF('Crop 1'!$C$50=Carbon!$B152,'Crop 1'!$L$50*VLOOKUP('Crop 1'!$E$50,Carbon!$AH$4:$AI$10,2,FALSE),0)+IF('Crop 1'!$C$51=Carbon!$B152,'Crop 1'!$L$51*VLOOKUP('Crop 1'!$E$51,Carbon!$AH$4:$AI$10,2,FALSE),0)+IF('Crop 1'!$C$52=Carbon!$B152,'Crop 1'!$L$52*VLOOKUP('Crop 1'!$E$52,Carbon!$AH$4:$AI$10,2,FALSE),0)+IF('Crop 1'!$C$53=Carbon!$B152,'Crop 1'!$L$53*VLOOKUP('Crop 1'!$E$53,Carbon!$AH$4:$AI$10,2,FALSE),0)+IF('Crop 1'!$C$56=Carbon!$B152,'Crop 1'!$L$56*VLOOKUP('Crop 1'!$E$56,Carbon!$AH$4:$AI$10,2,FALSE),0)+IF('Crop 1'!$C$57=Carbon!$B152,'Crop 1'!$L$57*VLOOKUP('Crop 1'!$E$57,Carbon!$AH$4:$AI$10,2,FALSE),0)+IF('Crop 1'!$C$58=Carbon!$B152,'Crop 1'!$L$58*VLOOKUP('Crop 1'!$E$58,Carbon!$AH$4:$AI$10,2,FALSE),0)+IF('Crop 1'!$C$59=Carbon!$B152,'Crop 1'!$L$59*VLOOKUP('Crop 1'!$E$59,Carbon!$AH$4:$AI$10,2,FALSE),0)+IF('Crop 1'!$C$62=Carbon!$B152,'Crop 1'!$L$62*VLOOKUP('Crop 1'!$E$62,Carbon!$AH$4:$AI$10,2,FALSE),0)+IF('Crop 1'!$C$63=Carbon!$B152,'Crop 1'!$L$63*VLOOKUP('Crop 1'!$E$63,Carbon!$AH$4:$AI$10,2,FALSE),0)+IF('Crop 1'!$C$64=Carbon!$B152,'Crop 1'!$L$64*VLOOKUP('Crop 1'!$E$64,Carbon!$AH$4:$AI$10,2,FALSE),0)+IF('Crop 1'!$C$65=Carbon!$B152,'Crop 1'!$L$65*VLOOKUP('Crop 1'!$E$65,Carbon!$AH$4:$AI$10,2,FALSE),0))*$AL$20,2)","v":0},{"$f":"C152*Inputs!$D$13","v":0},{"$f":"ROUND((IF('Crop 2'!$C$14=Carbon!$B152,'Crop 2'!$L$14*VLOOKUP('Crop 2'!$E$14,Carbon!$AH$4:$AI$10,2,FALSE),0)+IF('Crop 2'!$C$15=Carbon!$B152,'Crop 2'!$L$15*VLOOKUP('Crop 2'!$E$15,Carbon!$AH$4:$AI$10,2,FALSE),0)+IF('Crop 2'!$C$16=Carbon!$B152,'Crop 2'!$L$16*VLOOKUP('Crop 2'!$E$16,Carbon!$AH$4:$AI$10,2,FALSE),0)+IF('Crop 2'!$C$19=Carbon!$B152,'Crop 2'!$L$19*VLOOKUP('Crop 2'!$E$19,Carbon!$AH$4:$AI$10,2,FALSE),0)+IF('Crop 2'!$C$20=Carbon!$B152,'Crop 2'!$L$20*VLOOKUP('Crop 2'!$E$20,Carbon!$AH$4:$AI$10,2,FALSE),0)+IF('Crop 2'!$C$21=Carbon!$B152,'Crop 2'!$L$21*VLOOKUP('Crop 2'!$E$21,Carbon!$AH$4:$AI$10,2,FALSE),0)+IF('Crop 2'!$C$49=Carbon!$B152,'Crop 2'!$L$49*VLOOKUP('Crop 2'!$E$49,Carbon!$AH$4:$AI$10,2,FALSE),0)+IF('Crop 2'!$C$50=Carbon!$B152,'Crop 2'!$L$50*VLOOKUP('Crop 2'!$E$50,Carbon!$AH$4:$AI$10,2,FALSE),0)+IF('Crop 2'!$C$51=Carbon!$B152,'Crop 2'!$L$51*VLOOKUP('Crop 2'!$E$51,Carbon!$AH$4:$AI$10,2,FALSE),0)+IF('Crop 2'!$C$52=Carbon!$B152,'Crop 2'!$L$52*VLOOKUP('Crop 2'!$E$52,Carbon!$AH$4:$AI$10,2,FALSE),0)+IF('Crop 2'!$C$53=Carbon!$B152,'Crop 2'!$L$53*VLOOKUP('Crop 2'!$E$53,Carbon!$AH$4:$AI$10,2,FALSE),0)+IF('Crop 2'!$C$56=Carbon!$B152,'Crop 2'!$L$56*VLOOKUP('Crop 2'!$E$56,Carbon!$AH$4:$AI$10,2,FALSE),0)+IF('Crop 2'!$C$57=Carbon!$B152,'Crop 2'!$L$57*VLOOKUP('Crop 2'!$E$57,Carbon!$AH$4:$AI$10,2,FALSE),0)+IF('Crop 2'!$C$58=Carbon!$B152,'Crop 2'!$L$58*VLOOKUP('Crop 2'!$E$58,Carbon!$AH$4:$AI$10,2,FALSE),0)+IF('Crop 2'!$C$59=Carbon!$B152,'Crop 2'!$L$59*VLOOKUP('Crop 2'!$E$59,Carbon!$AH$4:$AI$10,2,FALSE),0)+IF('Crop 2'!$C$62=Carbon!$B152,'Crop 2'!$L$62*VLOOKUP('Crop 2'!$E$62,Carbon!$AH$4:$AI$10,2,FALSE),0)+IF('Crop 2'!$C$63=Carbon!$B152,'Crop 2'!$L$63*VLOOKUP('Crop 2'!$E$63,Carbon!$AH$4:$AI$10,2,FALSE),0)+IF('Crop 2'!$C$64=Carbon!$B152,'Crop 2'!$L$64*VLOOKUP('Crop 2'!$E$64,Carbon!$AH$4:$AI$10,2,FALSE),0)+IF('Crop 2'!$C$65=Carbon!$B152,'Crop 2'!$L$65*VLOOKUP('Crop 2'!$E$65,Carbon!$AH$4:$AI$10,2,FALSE),0))*$AL$20,2)","v":0},{"$f":"E152*Inputs!$D$15","v":0},{"$f":"ROUND((IF('Crop 3'!$C$14=Carbon!$B152,'Crop 3'!$L$14*VLOOKUP('Crop 3'!$E$14,Carbon!$AH$4:$AI$10,2,FALSE),0)+IF('Crop 3'!$C$15=Carbon!$B152,'Crop 3'!$L$15*VLOOKUP('Crop 3'!$E$15,Carbon!$AH$4:$AI$10,2,FALSE),0)+IF('Crop 3'!$C$16=Carbon!$B152,'Crop 3'!$L$16*VLOOKUP('Crop 3'!$E$16,Carbon!$AH$4:$AI$10,2,FALSE),0)+IF('Crop 3'!$C$19=Carbon!$B152,'Crop 3'!$L$19*VLOOKUP('Crop 3'!$E$19,Carbon!$AH$4:$AI$10,2,FALSE),0)+IF('Crop 3'!$C$20=Carbon!$B152,'Crop 3'!$L$20*VLOOKUP('Crop 3'!$E$20,Carbon!$AH$4:$AI$10,2,FALSE),0)+IF('Crop 3'!$C$21=Carbon!$B152,'Crop 3'!$L$21*VLOOKUP('Crop 3'!$E$21,Carbon!$AH$4:$AI$10,2,FALSE),0)+IF('Crop 3'!$C$49=Carbon!$B152,'Crop 3'!$L$49*VLOOKUP('Crop 3'!$E$49,Carbon!$AH$4:$AI$10,2,FALSE),0)+IF('Crop 3'!$C$50=Carbon!$B152,'Crop 3'!$L$50*VLOOKUP('Crop 3'!$E$50,Carbon!$AH$4:$AI$10,2,FALSE),0)+IF('Crop 3'!$C$51=Carbon!$B152,'Crop 3'!$L$51*VLOOKUP('Crop 3'!$E$51,Carbon!$AH$4:$AI$10,2,FALSE),0)+IF('Crop 3'!$C$52=Carbon!$B152,'Crop 3'!$L$52*VLOOKUP('Crop 3'!$E$52,Carbon!$AH$4:$AI$10,2,FALSE),0)+IF('Crop 3'!$C$53=Carbon!$B152,'Crop 3'!$L$53*VLOOKUP('Crop 3'!$E$53,Carbon!$AH$4:$AI$10,2,FALSE),0)+IF('Crop 3'!$C$56=Carbon!$B152,'Crop 3'!$L$56*VLOOKUP('Crop 3'!$E$56,Carbon!$AH$4:$AI$10,2,FALSE),0)+IF('Crop 3'!$C$57=Carbon!$B152,'Crop 3'!$L$57*VLOOKUP('Crop 3'!$E$57,Carbon!$AH$4:$AI$10,2,FALSE),0)+IF('Crop 3'!$C$58=Carbon!$B152,'Crop 3'!$L$58*VLOOKUP('Crop 3'!$E$58,Carbon!$AH$4:$AI$10,2,FALSE),0)+IF('Crop 3'!$C$59=Carbon!$B152,'Crop 3'!$L$59*VLOOKUP('Crop 3'!$E$59,Carbon!$AH$4:$AI$10,2,FALSE),0)+IF('Crop 3'!$C$62=Carbon!$B152,'Crop 3'!$L$62*VLOOKUP('Crop 3'!$E$62,Carbon!$AH$4:$AI$10,2,FALSE),0)+IF('Crop 3'!$C$63=Carbon!$B152,'Crop 3'!$L$63*VLOOKUP('Crop 3'!$E$63,Carbon!$AH$4:$AI$10,2,FALSE),0)+IF('Crop 3'!$C$64=Carbon!$B152,'Crop 3'!$L$64*VLOOKUP('Crop 3'!$E$64,Carbon!$AH$4:$AI$10,2,FALSE),0)+IF('Crop 3'!$C$65=Carbon!$B152,'Crop 3'!$L$65*VLOOKUP('Crop 3'!$E$65,Carbon!$AH$4:$AI$10,2,FALSE),0))*$AL$20,2)","v":0},{"$f":"G152*Inputs!$D$17","v":0},{"$f":"ROUND(J152/Inputs!D$19,2)","v":0},0,null,null,{"$f":"ROUND((IF('Crop 1'!$C$14=Carbon!$B152,'Crop 1'!$V$14*VLOOKUP('Crop 1'!$E$14,Carbon!$AH$4:$AI$10,2,FALSE),0)+IF('Crop 1'!$C$15=Carbon!$B152,'Crop 1'!$V$15*VLOOKUP('Crop 1'!$E$15,Carbon!$AH$4:$AI$10,2,FALSE),0)+IF('Crop 1'!$C$16=Carbon!$B152,'Crop 1'!$V$16*VLOOKUP('Crop 1'!$E$16,Carbon!$AH$4:$AI$10,2,FALSE),0)+IF('Crop 1'!$C$19=Carbon!$B152,'Crop 1'!$V$19*VLOOKUP('Crop 1'!$E$19,Carbon!$AH$4:$AI$10,2,FALSE),0)+IF('Crop 1'!$C$20=Carbon!$B152,'Crop 1'!$V$20*VLOOKUP('Crop 1'!$E$20,Carbon!$AH$4:$AI$10,2,FALSE),0)+IF('Crop 1'!$C$21=Carbon!$B152,'Crop 1'!$V$21*VLOOKUP('Crop 1'!$E$21,Carbon!$AH$4:$AI$10,2,FALSE),0)+IF('Crop 1'!$C$49=Carbon!$B152,'Crop 1'!$V$49*VLOOKUP('Crop 1'!$E$49,Carbon!$AH$4:$AI$10,2,FALSE),0)+IF('Crop 1'!$C$50=Carbon!$B152,'Crop 1'!$V$50*VLOOKUP('Crop 1'!$E$50,Carbon!$AH$4:$AI$10,2,FALSE),0)+IF('Crop 1'!$C$51=Carbon!$B152,'Crop 1'!$V$51*VLOOKUP('Crop 1'!$E$51,Carbon!$AH$4:$AI$10,2,FALSE),0)+IF('Crop 1'!$C$52=Carbon!$B152,'Crop 1'!$V$52*VLOOKUP('Crop 1'!$E$52,Carbon!$AH$4:$AI$10,2,FALSE),0)+IF('Crop 1'!$C$53=Carbon!$B152,'Crop 1'!$V$53*VLOOKUP('Crop 1'!$E$53,Carbon!$AH$4:$AI$10,2,FALSE),0)+IF('Crop 1'!$C$56=Carbon!$B152,'Crop 1'!$V$56*VLOOKUP('Crop 1'!$E$56,Carbon!$AH$4:$AI$10,2,FALSE),0)+IF('Crop 1'!$C$57=Carbon!$B152,'Crop 1'!$V$57*VLOOKUP('Crop 1'!$E$57,Carbon!$AH$4:$AI$10,2,FALSE),0)+IF('Crop 1'!$C$58=Carbon!$B152,'Crop 1'!$V$58*VLOOKUP('Crop 1'!$E$58,Carbon!$AH$4:$AI$10,2,FALSE),0)+IF('Crop 1'!$C$59=Carbon!$B152,'Crop 1'!$V$59*VLOOKUP('Crop 1'!$E$59,Carbon!$AH$4:$AI$10,2,FALSE),0)+IF('Crop 1'!$C$62=Carbon!$B152,'Crop 1'!$V$62*VLOOKUP('Crop 1'!$E$62,Carbon!$AH$4:$AI$10,2,FALSE),0)+IF('Crop 1'!$C$63=Carbon!$B152,'Crop 1'!$V$63*VLOOKUP('Crop 1'!$E$63,Carbon!$AH$4:$AI$10,2,FALSE),0)+IF('Crop 1'!$C$64=Carbon!$B152,'Crop 1'!$V$64*VLOOKUP('Crop 1'!$E$64,Carbon!$AH$4:$AI$10,2,FALSE),0)+IF('Crop 1'!$C$65=Carbon!$B152,'Crop 1'!$V$65*VLOOKUP('Crop 1'!$E$65,Carbon!$AH$4:$AI$10,2,FALSE),0))*$AL$20,2)","v":0},{"$f":"M152*Inputs!$D$13","v":0},{"$f":"ROUND((IF('Crop 2'!$C$14=Carbon!$B152,'Crop 2'!$V$14*VLOOKUP('Crop 2'!$E$14,Carbon!$AH$4:$AI$10,2,FALSE),0)+IF('Crop 2'!$C$15=Carbon!$B152,'Crop 2'!$V$15*VLOOKUP('Crop 2'!$E$15,Carbon!$AH$4:$AI$10,2,FALSE),0)+IF('Crop 2'!$C$16=Carbon!$B152,'Crop 2'!$V$16*VLOOKUP('Crop 2'!$E$16,Carbon!$AH$4:$AI$10,2,FALSE),0)+IF('Crop 2'!$C$19=Carbon!$B152,'Crop 2'!$V$19*VLOOKUP('Crop 2'!$E$19,Carbon!$AH$4:$AI$10,2,FALSE),0)+IF('Crop 2'!$C$20=Carbon!$B152,'Crop 2'!$V$20*VLOOKUP('Crop 2'!$E$20,Carbon!$AH$4:$AI$10,2,FALSE),0)+IF('Crop 2'!$C$21=Carbon!$B152,'Crop 2'!$V$21*VLOOKUP('Crop 2'!$E$21,Carbon!$AH$4:$AI$10,2,FALSE),0)+IF('Crop 2'!$C$49=Carbon!$B152,'Crop 2'!$V$49*VLOOKUP('Crop 2'!$E$49,Carbon!$AH$4:$AI$10,2,FALSE),0)+IF('Crop 2'!$C$50=Carbon!$B152,'Crop 2'!$V$50*VLOOKUP('Crop 2'!$E$50,Carbon!$AH$4:$AI$10,2,FALSE),0)+IF('Crop 2'!$C$51=Carbon!$B152,'Crop 2'!$V$51*VLOOKUP('Crop 2'!$E$51,Carbon!$AH$4:$AI$10,2,FALSE),0)+IF('Crop 2'!$C$52=Carbon!$B152,'Crop 2'!$V$52*VLOOKUP('Crop 2'!$E$52,Carbon!$AH$4:$AI$10,2,FALSE),0)+IF('Crop 2'!$C$53=Carbon!$B152,'Crop 2'!$V$53*VLOOKUP('Crop 2'!$E$53,Carbon!$AH$4:$AI$10,2,FALSE),0)+IF('Crop 2'!$C$56=Carbon!$B152,'Crop 2'!$V$56*VLOOKUP('Crop 2'!$E$56,Carbon!$AH$4:$AI$10,2,FALSE),0)+IF('Crop 2'!$C$57=Carbon!$B152,'Crop 2'!$V$57*VLOOKUP('Crop 2'!$E$57,Carbon!$AH$4:$AI$10,2,FALSE),0)+IF('Crop 2'!$C$58=Carbon!$B152,'Crop 2'!$V$58*VLOOKUP('Crop 2'!$E$58,Carbon!$AH$4:$AI$10,2,FALSE),0)+IF('Crop 2'!$C$59=Carbon!$B152,'Crop 2'!$V$59*VLOOKUP('Crop 2'!$E$59,Carbon!$AH$4:$AI$10,2,FALSE),0)+IF('Crop 2'!$C$62=Carbon!$B152,'Crop 2'!$V$62*VLOOKUP('Crop 2'!$E$62,Carbon!$AH$4:$AI$10,2,FALSE),0)+IF('Crop 2'!$C$63=Carbon!$B152,'Crop 2'!$V$63*VLOOKUP('Crop 2'!$E$63,Carbon!$AH$4:$AI$10,2,FALSE),0)+IF('Crop 2'!$C$64=Carbon!$B152,'Crop 2'!$V$64*VLOOKUP('Crop 2'!$E$64,Carbon!$AH$4:$AI$10,2,FALSE),0)+IF('Crop 2'!$C$65=Carbon!$B152,'Crop 2'!$V$65*VLOOKUP('Crop 2'!$E$65,Carbon!$AH$4:$AI$10,2,FALSE),0))*$AL$20,2)","v":0},{"$f":"O152*Inputs!$D$15","v":0},{"$f":"ROUND((IF('Crop 3'!$C$14=Carbon!$B152,'Crop 3'!$V$14*VLOOKUP('Crop 3'!$E$14,Carbon!$AH$4:$AI$10,2,FALSE),0)+IF('Crop 3'!$C$15=Carbon!$B152,'Crop 3'!$V$15*VLOOKUP('Crop 3'!$E$15,Carbon!$AH$4:$AI$10,2,FALSE),0)+IF('Crop 3'!$C$16=Carbon!$B152,'Crop 3'!$V$16*VLOOKUP('Crop 3'!$E$16,Carbon!$AH$4:$AI$10,2,FALSE),0)+IF('Crop 3'!$C$19=Carbon!$B152,'Crop 3'!$V$19*VLOOKUP('Crop 3'!$E$19,Carbon!$AH$4:$AI$10,2,FALSE),0)+IF('Crop 3'!$C$20=Carbon!$B152,'Crop 3'!$V$20*VLOOKUP('Crop 3'!$E$20,Carbon!$AH$4:$AI$10,2,FALSE),0)+IF('Crop 3'!$C$21=Carbon!$B152,'Crop 3'!$V$21*VLOOKUP('Crop 3'!$E$21,Carbon!$AH$4:$AI$10,2,FALSE),0)+IF('Crop 3'!$C$49=Carbon!$B152,'Crop 3'!$V$49*VLOOKUP('Crop 3'!$E$49,Carbon!$AH$4:$AI$10,2,FALSE),0)+IF('Crop 3'!$C$50=Carbon!$B152,'Crop 3'!$V$50*VLOOKUP('Crop 3'!$E$50,Carbon!$AH$4:$AI$10,2,FALSE),0)+IF('Crop 3'!$C$51=Carbon!$B152,'Crop 3'!$V$51*VLOOKUP('Crop 3'!$E$51,Carbon!$AH$4:$AI$10,2,FALSE),0)+IF('Crop 3'!$C$52=Carbon!$B152,'Crop 3'!$V$52*VLOOKUP('Crop 3'!$E$52,Carbon!$AH$4:$AI$10,2,FALSE),0)+IF('Crop 3'!$C$53=Carbon!$B152,'Crop 3'!$V$53*VLOOKUP('Crop 3'!$E$53,Carbon!$AH$4:$AI$10,2,FALSE),0)+IF('Crop 3'!$C$56=Carbon!$B152,'Crop 3'!$V$56*VLOOKUP('Crop 3'!$E$56,Carbon!$AH$4:$AI$10,2,FALSE),0)+IF('Crop 3'!$C$57=Carbon!$B152,'Crop 3'!$V$57*VLOOKUP('Crop 3'!$E$57,Carbon!$AH$4:$AI$10,2,FALSE),0)+IF('Crop 3'!$C$58=Carbon!$B152,'Crop 3'!$V$58*VLOOKUP('Crop 3'!$E$58,Carbon!$AH$4:$AI$10,2,FALSE),0)+IF('Crop 3'!$C$59=Carbon!$B152,'Crop 3'!$V$59*VLOOKUP('Crop 3'!$E$59,Carbon!$AH$4:$AI$10,2,FALSE),0)+IF('Crop 3'!$C$62=Carbon!$B152,'Crop 3'!$V$62*VLOOKUP('Crop 3'!$E$62,Carbon!$AH$4:$AI$10,2,FALSE),0)+IF('Crop 3'!$C$63=Carbon!$B152,'Crop 3'!$V$63*VLOOKUP('Crop 3'!$E$63,Carbon!$AH$4:$AI$10,2,FALSE),0)+IF('Crop 3'!$C$64=Carbon!$B152,'Crop 3'!$V$64*VLOOKUP('Crop 3'!$E$64,Carbon!$AH$4:$AI$10,2,FALSE),0)+IF('Crop 3'!$C$65=Carbon!$B152,'Crop 3'!$V$65*VLOOKUP('Crop 3'!$E$65,Carbon!$AH$4:$AI$10,2,FALSE),0))*$AL$20,2)","v":0},{"$f":"Q152*Inputs!$D$17","v":0},{"$f":"ROUND(T152/Inputs!D$19,2)","v":0},0,null,null,0,{"$f":"W152*Inputs!$D$13","v":0},0,{"$f":"Y152*Inputs!$D$13","v":0},0,{"$f":"AA152*Inputs!$D$13","v":0},{"$f":"ROUND(AD152/Inputs!D$19,2)","v":0},0]
[null,{"$f":"Defaults!AH119","v":"Suprend"},{"$f":"ROUND((IF('Crop 1'!$C$14=Carbon!$B153,'Crop 1'!$L$14*VLOOKUP('Crop 1'!$E$14,Carbon!$AH$4:$AI$10,2,FALSE),0)+IF('Crop 1'!$C$15=Carbon!$B153,'Crop 1'!$L$15*VLOOKUP('Crop 1'!$E$15,Carbon!$AH$4:$AI$10,2,FALSE),0)+IF('Crop 1'!$C$16=Carbon!$B153,'Crop 1'!$L$16*VLOOKUP('Crop 1'!$E$16,Carbon!$AH$4:$AI$10,2,FALSE),0)+IF('Crop 1'!$C$19=Carbon!$B153,'Crop 1'!$L$19*VLOOKUP('Crop 1'!$E$19,Carbon!$AH$4:$AI$10,2,FALSE),0)+IF('Crop 1'!$C$20=Carbon!$B153,'Crop 1'!$L$20*VLOOKUP('Crop 1'!$E$20,Carbon!$AH$4:$AI$10,2,FALSE),0)+IF('Crop 1'!$C$21=Carbon!$B153,'Crop 1'!$L$21*VLOOKUP('Crop 1'!$E$21,Carbon!$AH$4:$AI$10,2,FALSE),0)+IF('Crop 1'!$C$49=Carbon!$B153,'Crop 1'!$L$49*VLOOKUP('Crop 1'!$E$49,Carbon!$AH$4:$AI$10,2,FALSE),0)+IF('Crop 1'!$C$50=Carbon!$B153,'Crop 1'!$L$50*VLOOKUP('Crop 1'!$E$50,Carbon!$AH$4:$AI$10,2,FALSE),0)+IF('Crop 1'!$C$51=Carbon!$B153,'Crop 1'!$L$51*VLOOKUP('Crop 1'!$E$51,Carbon!$AH$4:$AI$10,2,FALSE),0)+IF('Crop 1'!$C$52=Carbon!$B153,'Crop 1'!$L$52*VLOOKUP('Crop 1'!$E$52,Carbon!$AH$4:$AI$10,2,FALSE),0)+IF('Crop 1'!$C$53=Carbon!$B153,'Crop 1'!$L$53*VLOOKUP('Crop 1'!$E$53,Carbon!$AH$4:$AI$10,2,FALSE),0)+IF('Crop 1'!$C$56=Carbon!$B153,'Crop 1'!$L$56*VLOOKUP('Crop 1'!$E$56,Carbon!$AH$4:$AI$10,2,FALSE),0)+IF('Crop 1'!$C$57=Carbon!$B153,'Crop 1'!$L$57*VLOOKUP('Crop 1'!$E$57,Carbon!$AH$4:$AI$10,2,FALSE),0)+IF('Crop 1'!$C$58=Carbon!$B153,'Crop 1'!$L$58*VLOOKUP('Crop 1'!$E$58,Carbon!$AH$4:$AI$10,2,FALSE),0)+IF('Crop 1'!$C$59=Carbon!$B153,'Crop 1'!$L$59*VLOOKUP('Crop 1'!$E$59,Carbon!$AH$4:$AI$10,2,FALSE),0)+IF('Crop 1'!$C$62=Carbon!$B153,'Crop 1'!$L$62*VLOOKUP('Crop 1'!$E$62,Carbon!$AH$4:$AI$10,2,FALSE),0)+IF('Crop 1'!$C$63=Carbon!$B153,'Crop 1'!$L$63*VLOOKUP('Crop 1'!$E$63,Carbon!$AH$4:$AI$10,2,FALSE),0)+IF('Crop 1'!$C$64=Carbon!$B153,'Crop 1'!$L$64*VLOOKUP('Crop 1'!$E$64,Carbon!$AH$4:$AI$10,2,FALSE),0)+IF('Crop 1'!$C$65=Carbon!$B153,'Crop 1'!$L$65*VLOOKUP('Crop 1'!$E$65,Carbon!$AH$4:$AI$10,2,FALSE),0))*$AL$20,2)","v":0},{"$f":"C153*Inputs!$D$13","v":0},{"$f":"ROUND((IF('Crop 2'!$C$14=Carbon!$B153,'Crop 2'!$L$14*VLOOKUP('Crop 2'!$E$14,Carbon!$AH$4:$AI$10,2,FALSE),0)+IF('Crop 2'!$C$15=Carbon!$B153,'Crop 2'!$L$15*VLOOKUP('Crop 2'!$E$15,Carbon!$AH$4:$AI$10,2,FALSE),0)+IF('Crop 2'!$C$16=Carbon!$B153,'Crop 2'!$L$16*VLOOKUP('Crop 2'!$E$16,Carbon!$AH$4:$AI$10,2,FALSE),0)+IF('Crop 2'!$C$19=Carbon!$B153,'Crop 2'!$L$19*VLOOKUP('Crop 2'!$E$19,Carbon!$AH$4:$AI$10,2,FALSE),0)+IF('Crop 2'!$C$20=Carbon!$B153,'Crop 2'!$L$20*VLOOKUP('Crop 2'!$E$20,Carbon!$AH$4:$AI$10,2,FALSE),0)+IF('Crop 2'!$C$21=Carbon!$B153,'Crop 2'!$L$21*VLOOKUP('Crop 2'!$E$21,Carbon!$AH$4:$AI$10,2,FALSE),0)+IF('Crop 2'!$C$49=Carbon!$B153,'Crop 2'!$L$49*VLOOKUP('Crop 2'!$E$49,Carbon!$AH$4:$AI$10,2,FALSE),0)+IF('Crop 2'!$C$50=Carbon!$B153,'Crop 2'!$L$50*VLOOKUP('Crop 2'!$E$50,Carbon!$AH$4:$AI$10,2,FALSE),0)+IF('Crop 2'!$C$51=Carbon!$B153,'Crop 2'!$L$51*VLOOKUP('Crop 2'!$E$51,Carbon!$AH$4:$AI$10,2,FALSE),0)+IF('Crop 2'!$C$52=Carbon!$B153,'Crop 2'!$L$52*VLOOKUP('Crop 2'!$E$52,Carbon!$AH$4:$AI$10,2,FALSE),0)+IF('Crop 2'!$C$53=Carbon!$B153,'Crop 2'!$L$53*VLOOKUP('Crop 2'!$E$53,Carbon!$AH$4:$AI$10,2,FALSE),0)+IF('Crop 2'!$C$56=Carbon!$B153,'Crop 2'!$L$56*VLOOKUP('Crop 2'!$E$56,Carbon!$AH$4:$AI$10,2,FALSE),0)+IF('Crop 2'!$C$57=Carbon!$B153,'Crop 2'!$L$57*VLOOKUP('Crop 2'!$E$57,Carbon!$AH$4:$AI$10,2,FALSE),0)+IF('Crop 2'!$C$58=Carbon!$B153,'Crop 2'!$L$58*VLOOKUP('Crop 2'!$E$58,Carbon!$AH$4:$AI$10,2,FALSE),0)+IF('Crop 2'!$C$59=Carbon!$B153,'Crop 2'!$L$59*VLOOKUP('Crop 2'!$E$59,Carbon!$AH$4:$AI$10,2,FALSE),0)+IF('Crop 2'!$C$62=Carbon!$B153,'Crop 2'!$L$62*VLOOKUP('Crop 2'!$E$62,Carbon!$AH$4:$AI$10,2,FALSE),0)+IF('Crop 2'!$C$63=Carbon!$B153,'Crop 2'!$L$63*VLOOKUP('Crop 2'!$E$63,Carbon!$AH$4:$AI$10,2,FALSE),0)+IF('Crop 2'!$C$64=Carbon!$B153,'Crop 2'!$L$64*VLOOKUP('Crop 2'!$E$64,Carbon!$AH$4:$AI$10,2,FALSE),0)+IF('Crop 2'!$C$65=Carbon!$B153,'Crop 2'!$L$65*VLOOKUP('Crop 2'!$E$65,Carbon!$AH$4:$AI$10,2,FALSE),0))*$AL$20,2)","v":0},{"$f":"E153*Inputs!$D$15","v":0},{"$f":"ROUND((IF('Crop 3'!$C$14=Carbon!$B153,'Crop 3'!$L$14*VLOOKUP('Crop 3'!$E$14,Carbon!$AH$4:$AI$10,2,FALSE),0)+IF('Crop 3'!$C$15=Carbon!$B153,'Crop 3'!$L$15*VLOOKUP('Crop 3'!$E$15,Carbon!$AH$4:$AI$10,2,FALSE),0)+IF('Crop 3'!$C$16=Carbon!$B153,'Crop 3'!$L$16*VLOOKUP('Crop 3'!$E$16,Carbon!$AH$4:$AI$10,2,FALSE),0)+IF('Crop 3'!$C$19=Carbon!$B153,'Crop 3'!$L$19*VLOOKUP('Crop 3'!$E$19,Carbon!$AH$4:$AI$10,2,FALSE),0)+IF('Crop 3'!$C$20=Carbon!$B153,'Crop 3'!$L$20*VLOOKUP('Crop 3'!$E$20,Carbon!$AH$4:$AI$10,2,FALSE),0)+IF('Crop 3'!$C$21=Carbon!$B153,'Crop 3'!$L$21*VLOOKUP('Crop 3'!$E$21,Carbon!$AH$4:$AI$10,2,FALSE),0)+IF('Crop 3'!$C$49=Carbon!$B153,'Crop 3'!$L$49*VLOOKUP('Crop 3'!$E$49,Carbon!$AH$4:$AI$10,2,FALSE),0)+IF('Crop 3'!$C$50=Carbon!$B153,'Crop 3'!$L$50*VLOOKUP('Crop 3'!$E$50,Carbon!$AH$4:$AI$10,2,FALSE),0)+IF('Crop 3'!$C$51=Carbon!$B153,'Crop 3'!$L$51*VLOOKUP('Crop 3'!$E$51,Carbon!$AH$4:$AI$10,2,FALSE),0)+IF('Crop 3'!$C$52=Carbon!$B153,'Crop 3'!$L$52*VLOOKUP('Crop 3'!$E$52,Carbon!$AH$4:$AI$10,2,FALSE),0)+IF('Crop 3'!$C$53=Carbon!$B153,'Crop 3'!$L$53*VLOOKUP('Crop 3'!$E$53,Carbon!$AH$4:$AI$10,2,FALSE),0)+IF('Crop 3'!$C$56=Carbon!$B153,'Crop 3'!$L$56*VLOOKUP('Crop 3'!$E$56,Carbon!$AH$4:$AI$10,2,FALSE),0)+IF('Crop 3'!$C$57=Carbon!$B153,'Crop 3'!$L$57*VLOOKUP('Crop 3'!$E$57,Carbon!$AH$4:$AI$10,2,FALSE),0)+IF('Crop 3'!$C$58=Carbon!$B153,'Crop 3'!$L$58*VLOOKUP('Crop 3'!$E$58,Carbon!$AH$4:$AI$10,2,FALSE),0)+IF('Crop 3'!$C$59=Carbon!$B153,'Crop 3'!$L$59*VLOOKUP('Crop 3'!$E$59,Carbon!$AH$4:$AI$10,2,FALSE),0)+IF('Crop 3'!$C$62=Carbon!$B153,'Crop 3'!$L$62*VLOOKUP('Crop 3'!$E$62,Carbon!$AH$4:$AI$10,2,FALSE),0)+IF('Crop 3'!$C$63=Carbon!$B153,'Crop 3'!$L$63*VLOOKUP('Crop 3'!$E$63,Carbon!$AH$4:$AI$10,2,FALSE),0)+IF('Crop 3'!$C$64=Carbon!$B153,'Crop 3'!$L$64*VLOOKUP('Crop 3'!$E$64,Carbon!$AH$4:$AI$10,2,FALSE),0)+IF('Crop 3'!$C$65=Carbon!$B153,'Crop 3'!$L$65*VLOOKUP('Crop 3'!$E$65,Carbon!$AH$4:$AI$10,2,FALSE),0))*$AL$20,2)","v":0},{"$f":"G153*Inputs!$D$17","v":0},{"$f":"ROUND(J153/Inputs!D$19,2)","v":0},0,null,null,{"$f":"ROUND((IF('Crop 1'!$C$14=Carbon!$B153,'Crop 1'!$V$14*VLOOKUP('Crop 1'!$E$14,Carbon!$AH$4:$AI$10,2,FALSE),0)+IF('Crop 1'!$C$15=Carbon!$B153,'Crop 1'!$V$15*VLOOKUP('Crop 1'!$E$15,Carbon!$AH$4:$AI$10,2,FALSE),0)+IF('Crop 1'!$C$16=Carbon!$B153,'Crop 1'!$V$16*VLOOKUP('Crop 1'!$E$16,Carbon!$AH$4:$AI$10,2,FALSE),0)+IF('Crop 1'!$C$19=Carbon!$B153,'Crop 1'!$V$19*VLOOKUP('Crop 1'!$E$19,Carbon!$AH$4:$AI$10,2,FALSE),0)+IF('Crop 1'!$C$20=Carbon!$B153,'Crop 1'!$V$20*VLOOKUP('Crop 1'!$E$20,Carbon!$AH$4:$AI$10,2,FALSE),0)+IF('Crop 1'!$C$21=Carbon!$B153,'Crop 1'!$V$21*VLOOKUP('Crop 1'!$E$21,Carbon!$AH$4:$AI$10,2,FALSE),0)+IF('Crop 1'!$C$49=Carbon!$B153,'Crop 1'!$V$49*VLOOKUP('Crop 1'!$E$49,Carbon!$AH$4:$AI$10,2,FALSE),0)+IF('Crop 1'!$C$50=Carbon!$B153,'Crop 1'!$V$50*VLOOKUP('Crop 1'!$E$50,Carbon!$AH$4:$AI$10,2,FALSE),0)+IF('Crop 1'!$C$51=Carbon!$B153,'Crop 1'!$V$51*VLOOKUP('Crop 1'!$E$51,Carbon!$AH$4:$AI$10,2,FALSE),0)+IF('Crop 1'!$C$52=Carbon!$B153,'Crop 1'!$V$52*VLOOKUP('Crop 1'!$E$52,Carbon!$AH$4:$AI$10,2,FALSE),0)+IF('Crop 1'!$C$53=Carbon!$B153,'Crop 1'!$V$53*VLOOKUP('Crop 1'!$E$53,Carbon!$AH$4:$AI$10,2,FALSE),0)+IF('Crop 1'!$C$56=Carbon!$B153,'Crop 1'!$V$56*VLOOKUP('Crop 1'!$E$56,Carbon!$AH$4:$AI$10,2,FALSE),0)+IF('Crop 1'!$C$57=Carbon!$B153,'Crop 1'!$V$57*VLOOKUP('Crop 1'!$E$57,Carbon!$AH$4:$AI$10,2,FALSE),0)+IF('Crop 1'!$C$58=Carbon!$B153,'Crop 1'!$V$58*VLOOKUP('Crop 1'!$E$58,Carbon!$AH$4:$AI$10,2,FALSE),0)+IF('Crop 1'!$C$59=Carbon!$B153,'Crop 1'!$V$59*VLOOKUP('Crop 1'!$E$59,Carbon!$AH$4:$AI$10,2,FALSE),0)+IF('Crop 1'!$C$62=Carbon!$B153,'Crop 1'!$V$62*VLOOKUP('Crop 1'!$E$62,Carbon!$AH$4:$AI$10,2,FALSE),0)+IF('Crop 1'!$C$63=Carbon!$B153,'Crop 1'!$V$63*VLOOKUP('Crop 1'!$E$63,Carbon!$AH$4:$AI$10,2,FALSE),0)+IF('Crop 1'!$C$64=Carbon!$B153,'Crop 1'!$V$64*VLOOKUP('Crop 1'!$E$64,Carbon!$AH$4:$AI$10,2,FALSE),0)+IF('Crop 1'!$C$65=Carbon!$B153,'Crop 1'!$V$65*VLOOKUP('Crop 1'!$E$65,Carbon!$AH$4:$AI$10,2,FALSE),0))*$AL$20,2)","v":0},{"$f":"M153*Inputs!$D$13","v":0},{"$f":"ROUND((IF('Crop 2'!$C$14=Carbon!$B153,'Crop 2'!$V$14*VLOOKUP('Crop 2'!$E$14,Carbon!$AH$4:$AI$10,2,FALSE),0)+IF('Crop 2'!$C$15=Carbon!$B153,'Crop 2'!$V$15*VLOOKUP('Crop 2'!$E$15,Carbon!$AH$4:$AI$10,2,FALSE),0)+IF('Crop 2'!$C$16=Carbon!$B153,'Crop 2'!$V$16*VLOOKUP('Crop 2'!$E$16,Carbon!$AH$4:$AI$10,2,FALSE),0)+IF('Crop 2'!$C$19=Carbon!$B153,'Crop 2'!$V$19*VLOOKUP('Crop 2'!$E$19,Carbon!$AH$4:$AI$10,2,FALSE),0)+IF('Crop 2'!$C$20=Carbon!$B153,'Crop 2'!$V$20*VLOOKUP('Crop 2'!$E$20,Carbon!$AH$4:$AI$10,2,FALSE),0)+IF('Crop 2'!$C$21=Carbon!$B153,'Crop 2'!$V$21*VLOOKUP('Crop 2'!$E$21,Carbon!$AH$4:$AI$10,2,FALSE),0)+IF('Crop 2'!$C$49=Carbon!$B153,'Crop 2'!$V$49*VLOOKUP('Crop 2'!$E$49,Carbon!$AH$4:$AI$10,2,FALSE),0)+IF('Crop 2'!$C$50=Carbon!$B153,'Crop 2'!$V$50*VLOOKUP('Crop 2'!$E$50,Carbon!$AH$4:$AI$10,2,FALSE),0)+IF('Crop 2'!$C$51=Carbon!$B153,'Crop 2'!$V$51*VLOOKUP('Crop 2'!$E$51,Carbon!$AH$4:$AI$10,2,FALSE),0)+IF('Crop 2'!$C$52=Carbon!$B153,'Crop 2'!$V$52*VLOOKUP('Crop 2'!$E$52,Carbon!$AH$4:$AI$10,2,FALSE),0)+IF('Crop 2'!$C$53=Carbon!$B153,'Crop 2'!$V$53*VLOOKUP('Crop 2'!$E$53,Carbon!$AH$4:$AI$10,2,FALSE),0)+IF('Crop 2'!$C$56=Carbon!$B153,'Crop 2'!$V$56*VLOOKUP('Crop 2'!$E$56,Carbon!$AH$4:$AI$10,2,FALSE),0)+IF('Crop 2'!$C$57=Carbon!$B153,'Crop 2'!$V$57*VLOOKUP('Crop 2'!$E$57,Carbon!$AH$4:$AI$10,2,FALSE),0)+IF('Crop 2'!$C$58=Carbon!$B153,'Crop 2'!$V$58*VLOOKUP('Crop 2'!$E$58,Carbon!$AH$4:$AI$10,2,FALSE),0)+IF('Crop 2'!$C$59=Carbon!$B153,'Crop 2'!$V$59*VLOOKUP('Crop 2'!$E$59,Carbon!$AH$4:$AI$10,2,FALSE),0)+IF('Crop 2'!$C$62=Carbon!$B153,'Crop 2'!$V$62*VLOOKUP('Crop 2'!$E$62,Carbon!$AH$4:$AI$10,2,FALSE),0)+IF('Crop 2'!$C$63=Carbon!$B153,'Crop 2'!$V$63*VLOOKUP('Crop 2'!$E$63,Carbon!$AH$4:$AI$10,2,FALSE),0)+IF('Crop 2'!$C$64=Carbon!$B153,'Crop 2'!$V$64*VLOOKUP('Crop 2'!$E$64,Carbon!$AH$4:$AI$10,2,FALSE),0)+IF('Crop 2'!$C$65=Carbon!$B153,'Crop 2'!$V$65*VLOOKUP('Crop 2'!$E$65,Carbon!$AH$4:$AI$10,2,FALSE),0))*$AL$20,2)","v":0},{"$f":"O153*Inputs!$D$15","v":0},{"$f":"ROUND((IF('Crop 3'!$C$14=Carbon!$B153,'Crop 3'!$V$14*VLOOKUP('Crop 3'!$E$14,Carbon!$AH$4:$AI$10,2,FALSE),0)+IF('Crop 3'!$C$15=Carbon!$B153,'Crop 3'!$V$15*VLOOKUP('Crop 3'!$E$15,Carbon!$AH$4:$AI$10,2,FALSE),0)+IF('Crop 3'!$C$16=Carbon!$B153,'Crop 3'!$V$16*VLOOKUP('Crop 3'!$E$16,Carbon!$AH$4:$AI$10,2,FALSE),0)+IF('Crop 3'!$C$19=Carbon!$B153,'Crop 3'!$V$19*VLOOKUP('Crop 3'!$E$19,Carbon!$AH$4:$AI$10,2,FALSE),0)+IF('Crop 3'!$C$20=Carbon!$B153,'Crop 3'!$V$20*VLOOKUP('Crop 3'!$E$20,Carbon!$AH$4:$AI$10,2,FALSE),0)+IF('Crop 3'!$C$21=Carbon!$B153,'Crop 3'!$V$21*VLOOKUP('Crop 3'!$E$21,Carbon!$AH$4:$AI$10,2,FALSE),0)+IF('Crop 3'!$C$49=Carbon!$B153,'Crop 3'!$V$49*VLOOKUP('Crop 3'!$E$49,Carbon!$AH$4:$AI$10,2,FALSE),0)+IF('Crop 3'!$C$50=Carbon!$B153,'Crop 3'!$V$50*VLOOKUP('Crop 3'!$E$50,Carbon!$AH$4:$AI$10,2,FALSE),0)+IF('Crop 3'!$C$51=Carbon!$B153,'Crop 3'!$V$51*VLOOKUP('Crop 3'!$E$51,Carbon!$AH$4:$AI$10,2,FALSE),0)+IF('Crop 3'!$C$52=Carbon!$B153,'Crop 3'!$V$52*VLOOKUP('Crop 3'!$E$52,Carbon!$AH$4:$AI$10,2,FALSE),0)+IF('Crop 3'!$C$53=Carbon!$B153,'Crop 3'!$V$53*VLOOKUP('Crop 3'!$E$53,Carbon!$AH$4:$AI$10,2,FALSE),0)+IF('Crop 3'!$C$56=Carbon!$B153,'Crop 3'!$V$56*VLOOKUP('Crop 3'!$E$56,Carbon!$AH$4:$AI$10,2,FALSE),0)+IF('Crop 3'!$C$57=Carbon!$B153,'Crop 3'!$V$57*VLOOKUP('Crop 3'!$E$57,Carbon!$AH$4:$AI$10,2,FALSE),0)+IF('Crop 3'!$C$58=Carbon!$B153,'Crop 3'!$V$58*VLOOKUP('Crop 3'!$E$58,Carbon!$AH$4:$AI$10,2,FALSE),0)+IF('Crop 3'!$C$59=Carbon!$B153,'Crop 3'!$V$59*VLOOKUP('Crop 3'!$E$59,Carbon!$AH$4:$AI$10,2,FALSE),0)+IF('Crop 3'!$C$62=Carbon!$B153,'Crop 3'!$V$62*VLOOKUP('Crop 3'!$E$62,Carbon!$AH$4:$AI$10,2,FALSE),0)+IF('Crop 3'!$C$63=Carbon!$B153,'Crop 3'!$V$63*VLOOKUP('Crop 3'!$E$63,Carbon!$AH$4:$AI$10,2,FALSE),0)+IF('Crop 3'!$C$64=Carbon!$B153,'Crop 3'!$V$64*VLOOKUP('Crop 3'!$E$64,Carbon!$AH$4:$AI$10,2,FALSE),0)+IF('Crop 3'!$C$65=Carbon!$B153,'Crop 3'!$V$65*VLOOKUP('Crop 3'!$E$65,Carbon!$AH$4:$AI$10,2,FALSE),0))*$AL$20,2)","v":0},{"$f":"Q153*Inputs!$D$17","v":0},{"$f":"ROUND(T153/Inputs!D$19,2)","v":0},0,null,null,0,{"$f":"W153*Inputs!$D$13","v":0},0,{"$f":"Y153*Inputs!$D$13","v":0},0,{"$f":"AA153*Inputs!$D$13","v":0},{"$f":"ROUND(AD153/Inputs!D$19,2)","v":0},0]
[null,{"$f":"Defaults!AH120","v":"Surestart"},{"$f":"ROUND((IF('Crop 1'!$C$14=Carbon!$B154,'Crop 1'!$L$14*VLOOKUP('Crop 1'!$E$14,Carbon!$AH$4:$AI$10,2,FALSE),0)+IF('Crop 1'!$C$15=Carbon!$B154,'Crop 1'!$L$15*VLOOKUP('Crop 1'!$E$15,Carbon!$AH$4:$AI$10,2,FALSE),0)+IF('Crop 1'!$C$16=Carbon!$B154,'Crop 1'!$L$16*VLOOKUP('Crop 1'!$E$16,Carbon!$AH$4:$AI$10,2,FALSE),0)+IF('Crop 1'!$C$19=Carbon!$B154,'Crop 1'!$L$19*VLOOKUP('Crop 1'!$E$19,Carbon!$AH$4:$AI$10,2,FALSE),0)+IF('Crop 1'!$C$20=Carbon!$B154,'Crop 1'!$L$20*VLOOKUP('Crop 1'!$E$20,Carbon!$AH$4:$AI$10,2,FALSE),0)+IF('Crop 1'!$C$21=Carbon!$B154,'Crop 1'!$L$21*VLOOKUP('Crop 1'!$E$21,Carbon!$AH$4:$AI$10,2,FALSE),0)+IF('Crop 1'!$C$49=Carbon!$B154,'Crop 1'!$L$49*VLOOKUP('Crop 1'!$E$49,Carbon!$AH$4:$AI$10,2,FALSE),0)+IF('Crop 1'!$C$50=Carbon!$B154,'Crop 1'!$L$50*VLOOKUP('Crop 1'!$E$50,Carbon!$AH$4:$AI$10,2,FALSE),0)+IF('Crop 1'!$C$51=Carbon!$B154,'Crop 1'!$L$51*VLOOKUP('Crop 1'!$E$51,Carbon!$AH$4:$AI$10,2,FALSE),0)+IF('Crop 1'!$C$52=Carbon!$B154,'Crop 1'!$L$52*VLOOKUP('Crop 1'!$E$52,Carbon!$AH$4:$AI$10,2,FALSE),0)+IF('Crop 1'!$C$53=Carbon!$B154,'Crop 1'!$L$53*VLOOKUP('Crop 1'!$E$53,Carbon!$AH$4:$AI$10,2,FALSE),0)+IF('Crop 1'!$C$56=Carbon!$B154,'Crop 1'!$L$56*VLOOKUP('Crop 1'!$E$56,Carbon!$AH$4:$AI$10,2,FALSE),0)+IF('Crop 1'!$C$57=Carbon!$B154,'Crop 1'!$L$57*VLOOKUP('Crop 1'!$E$57,Carbon!$AH$4:$AI$10,2,FALSE),0)+IF('Crop 1'!$C$58=Carbon!$B154,'Crop 1'!$L$58*VLOOKUP('Crop 1'!$E$58,Carbon!$AH$4:$AI$10,2,FALSE),0)+IF('Crop 1'!$C$59=Carbon!$B154,'Crop 1'!$L$59*VLOOKUP('Crop 1'!$E$59,Carbon!$AH$4:$AI$10,2,FALSE),0)+IF('Crop 1'!$C$62=Carbon!$B154,'Crop 1'!$L$62*VLOOKUP('Crop 1'!$E$62,Carbon!$AH$4:$AI$10,2,FALSE),0)+IF('Crop 1'!$C$63=Carbon!$B154,'Crop 1'!$L$63*VLOOKUP('Crop 1'!$E$63,Carbon!$AH$4:$AI$10,2,FALSE),0)+IF('Crop 1'!$C$64=Carbon!$B154,'Crop 1'!$L$64*VLOOKUP('Crop 1'!$E$64,Carbon!$AH$4:$AI$10,2,FALSE),0)+IF('Crop 1'!$C$65=Carbon!$B154,'Crop 1'!$L$65*VLOOKUP('Crop 1'!$E$65,Carbon!$AH$4:$AI$10,2,FALSE),0))*$AL$20,2)","v":0},{"$f":"C154*Inputs!$D$13","v":0},{"$f":"ROUND((IF('Crop 2'!$C$14=Carbon!$B154,'Crop 2'!$L$14*VLOOKUP('Crop 2'!$E$14,Carbon!$AH$4:$AI$10,2,FALSE),0)+IF('Crop 2'!$C$15=Carbon!$B154,'Crop 2'!$L$15*VLOOKUP('Crop 2'!$E$15,Carbon!$AH$4:$AI$10,2,FALSE),0)+IF('Crop 2'!$C$16=Carbon!$B154,'Crop 2'!$L$16*VLOOKUP('Crop 2'!$E$16,Carbon!$AH$4:$AI$10,2,FALSE),0)+IF('Crop 2'!$C$19=Carbon!$B154,'Crop 2'!$L$19*VLOOKUP('Crop 2'!$E$19,Carbon!$AH$4:$AI$10,2,FALSE),0)+IF('Crop 2'!$C$20=Carbon!$B154,'Crop 2'!$L$20*VLOOKUP('Crop 2'!$E$20,Carbon!$AH$4:$AI$10,2,FALSE),0)+IF('Crop 2'!$C$21=Carbon!$B154,'Crop 2'!$L$21*VLOOKUP('Crop 2'!$E$21,Carbon!$AH$4:$AI$10,2,FALSE),0)+IF('Crop 2'!$C$49=Carbon!$B154,'Crop 2'!$L$49*VLOOKUP('Crop 2'!$E$49,Carbon!$AH$4:$AI$10,2,FALSE),0)+IF('Crop 2'!$C$50=Carbon!$B154,'Crop 2'!$L$50*VLOOKUP('Crop 2'!$E$50,Carbon!$AH$4:$AI$10,2,FALSE),0)+IF('Crop 2'!$C$51=Carbon!$B154,'Crop 2'!$L$51*VLOOKUP('Crop 2'!$E$51,Carbon!$AH$4:$AI$10,2,FALSE),0)+IF('Crop 2'!$C$52=Carbon!$B154,'Crop 2'!$L$52*VLOOKUP('Crop 2'!$E$52,Carbon!$AH$4:$AI$10,2,FALSE),0)+IF('Crop 2'!$C$53=Carbon!$B154,'Crop 2'!$L$53*VLOOKUP('Crop 2'!$E$53,Carbon!$AH$4:$AI$10,2,FALSE),0)+IF('Crop 2'!$C$56=Carbon!$B154,'Crop 2'!$L$56*VLOOKUP('Crop 2'!$E$56,Carbon!$AH$4:$AI$10,2,FALSE),0)+IF('Crop 2'!$C$57=Carbon!$B154,'Crop 2'!$L$57*VLOOKUP('Crop 2'!$E$57,Carbon!$AH$4:$AI$10,2,FALSE),0)+IF('Crop 2'!$C$58=Carbon!$B154,'Crop 2'!$L$58*VLOOKUP('Crop 2'!$E$58,Carbon!$AH$4:$AI$10,2,FALSE),0)+IF('Crop 2'!$C$59=Carbon!$B154,'Crop 2'!$L$59*VLOOKUP('Crop 2'!$E$59,Carbon!$AH$4:$AI$10,2,FALSE),0)+IF('Crop 2'!$C$62=Carbon!$B154,'Crop 2'!$L$62*VLOOKUP('Crop 2'!$E$62,Carbon!$AH$4:$AI$10,2,FALSE),0)+IF('Crop 2'!$C$63=Carbon!$B154,'Crop 2'!$L$63*VLOOKUP('Crop 2'!$E$63,Carbon!$AH$4:$AI$10,2,FALSE),0)+IF('Crop 2'!$C$64=Carbon!$B154,'Crop 2'!$L$64*VLOOKUP('Crop 2'!$E$64,Carbon!$AH$4:$AI$10,2,FALSE),0)+IF('Crop 2'!$C$65=Carbon!$B154,'Crop 2'!$L$65*VLOOKUP('Crop 2'!$E$65,Carbon!$AH$4:$AI$10,2,FALSE),0))*$AL$20,2)","v":0},{"$f":"E154*Inputs!$D$15","v":0},{"$f":"ROUND((IF('Crop 3'!$C$14=Carbon!$B154,'Crop 3'!$L$14*VLOOKUP('Crop 3'!$E$14,Carbon!$AH$4:$AI$10,2,FALSE),0)+IF('Crop 3'!$C$15=Carbon!$B154,'Crop 3'!$L$15*VLOOKUP('Crop 3'!$E$15,Carbon!$AH$4:$AI$10,2,FALSE),0)+IF('Crop 3'!$C$16=Carbon!$B154,'Crop 3'!$L$16*VLOOKUP('Crop 3'!$E$16,Carbon!$AH$4:$AI$10,2,FALSE),0)+IF('Crop 3'!$C$19=Carbon!$B154,'Crop 3'!$L$19*VLOOKUP('Crop 3'!$E$19,Carbon!$AH$4:$AI$10,2,FALSE),0)+IF('Crop 3'!$C$20=Carbon!$B154,'Crop 3'!$L$20*VLOOKUP('Crop 3'!$E$20,Carbon!$AH$4:$AI$10,2,FALSE),0)+IF('Crop 3'!$C$21=Carbon!$B154,'Crop 3'!$L$21*VLOOKUP('Crop 3'!$E$21,Carbon!$AH$4:$AI$10,2,FALSE),0)+IF('Crop 3'!$C$49=Carbon!$B154,'Crop 3'!$L$49*VLOOKUP('Crop 3'!$E$49,Carbon!$AH$4:$AI$10,2,FALSE),0)+IF('Crop 3'!$C$50=Carbon!$B154,'Crop 3'!$L$50*VLOOKUP('Crop 3'!$E$50,Carbon!$AH$4:$AI$10,2,FALSE),0)+IF('Crop 3'!$C$51=Carbon!$B154,'Crop 3'!$L$51*VLOOKUP('Crop 3'!$E$51,Carbon!$AH$4:$AI$10,2,FALSE),0)+IF('Crop 3'!$C$52=Carbon!$B154,'Crop 3'!$L$52*VLOOKUP('Crop 3'!$E$52,Carbon!$AH$4:$AI$10,2,FALSE),0)+IF('Crop 3'!$C$53=Carbon!$B154,'Crop 3'!$L$53*VLOOKUP('Crop 3'!$E$53,Carbon!$AH$4:$AI$10,2,FALSE),0)+IF('Crop 3'!$C$56=Carbon!$B154,'Crop 3'!$L$56*VLOOKUP('Crop 3'!$E$56,Carbon!$AH$4:$AI$10,2,FALSE),0)+IF('Crop 3'!$C$57=Carbon!$B154,'Crop 3'!$L$57*VLOOKUP('Crop 3'!$E$57,Carbon!$AH$4:$AI$10,2,FALSE),0)+IF('Crop 3'!$C$58=Carbon!$B154,'Crop 3'!$L$58*VLOOKUP('Crop 3'!$E$58,Carbon!$AH$4:$AI$10,2,FALSE),0)+IF('Crop 3'!$C$59=Carbon!$B154,'Crop 3'!$L$59*VLOOKUP('Crop 3'!$E$59,Carbon!$AH$4:$AI$10,2,FALSE),0)+IF('Crop 3'!$C$62=Carbon!$B154,'Crop 3'!$L$62*VLOOKUP('Crop 3'!$E$62,Carbon!$AH$4:$AI$10,2,FALSE),0)+IF('Crop 3'!$C$63=Carbon!$B154,'Crop 3'!$L$63*VLOOKUP('Crop 3'!$E$63,Carbon!$AH$4:$AI$10,2,FALSE),0)+IF('Crop 3'!$C$64=Carbon!$B154,'Crop 3'!$L$64*VLOOKUP('Crop 3'!$E$64,Carbon!$AH$4:$AI$10,2,FALSE),0)+IF('Crop 3'!$C$65=Carbon!$B154,'Crop 3'!$L$65*VLOOKUP('Crop 3'!$E$65,Carbon!$AH$4:$AI$10,2,FALSE),0))*$AL$20,2)","v":0},{"$f":"G154*Inputs!$D$17","v":0},{"$f":"ROUND(J154/Inputs!D$19,2)","v":0},0,null,null,{"$f":"ROUND((IF('Crop 1'!$C$14=Carbon!$B154,'Crop 1'!$V$14*VLOOKUP('Crop 1'!$E$14,Carbon!$AH$4:$AI$10,2,FALSE),0)+IF('Crop 1'!$C$15=Carbon!$B154,'Crop 1'!$V$15*VLOOKUP('Crop 1'!$E$15,Carbon!$AH$4:$AI$10,2,FALSE),0)+IF('Crop 1'!$C$16=Carbon!$B154,'Crop 1'!$V$16*VLOOKUP('Crop 1'!$E$16,Carbon!$AH$4:$AI$10,2,FALSE),0)+IF('Crop 1'!$C$19=Carbon!$B154,'Crop 1'!$V$19*VLOOKUP('Crop 1'!$E$19,Carbon!$AH$4:$AI$10,2,FALSE),0)+IF('Crop 1'!$C$20=Carbon!$B154,'Crop 1'!$V$20*VLOOKUP('Crop 1'!$E$20,Carbon!$AH$4:$AI$10,2,FALSE),0)+IF('Crop 1'!$C$21=Carbon!$B154,'Crop 1'!$V$21*VLOOKUP('Crop 1'!$E$21,Carbon!$AH$4:$AI$10,2,FALSE),0)+IF('Crop 1'!$C$49=Carbon!$B154,'Crop 1'!$V$49*VLOOKUP('Crop 1'!$E$49,Carbon!$AH$4:$AI$10,2,FALSE),0)+IF('Crop 1'!$C$50=Carbon!$B154,'Crop 1'!$V$50*VLOOKUP('Crop 1'!$E$50,Carbon!$AH$4:$AI$10,2,FALSE),0)+IF('Crop 1'!$C$51=Carbon!$B154,'Crop 1'!$V$51*VLOOKUP('Crop 1'!$E$51,Carbon!$AH$4:$AI$10,2,FALSE),0)+IF('Crop 1'!$C$52=Carbon!$B154,'Crop 1'!$V$52*VLOOKUP('Crop 1'!$E$52,Carbon!$AH$4:$AI$10,2,FALSE),0)+IF('Crop 1'!$C$53=Carbon!$B154,'Crop 1'!$V$53*VLOOKUP('Crop 1'!$E$53,Carbon!$AH$4:$AI$10,2,FALSE),0)+IF('Crop 1'!$C$56=Carbon!$B154,'Crop 1'!$V$56*VLOOKUP('Crop 1'!$E$56,Carbon!$AH$4:$AI$10,2,FALSE),0)+IF('Crop 1'!$C$57=Carbon!$B154,'Crop 1'!$V$57*VLOOKUP('Crop 1'!$E$57,Carbon!$AH$4:$AI$10,2,FALSE),0)+IF('Crop 1'!$C$58=Carbon!$B154,'Crop 1'!$V$58*VLOOKUP('Crop 1'!$E$58,Carbon!$AH$4:$AI$10,2,FALSE),0)+IF('Crop 1'!$C$59=Carbon!$B154,'Crop 1'!$V$59*VLOOKUP('Crop 1'!$E$59,Carbon!$AH$4:$AI$10,2,FALSE),0)+IF('Crop 1'!$C$62=Carbon!$B154,'Crop 1'!$V$62*VLOOKUP('Crop 1'!$E$62,Carbon!$AH$4:$AI$10,2,FALSE),0)+IF('Crop 1'!$C$63=Carbon!$B154,'Crop 1'!$V$63*VLOOKUP('Crop 1'!$E$63,Carbon!$AH$4:$AI$10,2,FALSE),0)+IF('Crop 1'!$C$64=Carbon!$B154,'Crop 1'!$V$64*VLOOKUP('Crop 1'!$E$64,Carbon!$AH$4:$AI$10,2,FALSE),0)+IF('Crop 1'!$C$65=Carbon!$B154,'Crop 1'!$V$65*VLOOKUP('Crop 1'!$E$65,Carbon!$AH$4:$AI$10,2,FALSE),0))*$AL$20,2)","v":0},{"$f":"M154*Inputs!$D$13","v":0},{"$f":"ROUND((IF('Crop 2'!$C$14=Carbon!$B154,'Crop 2'!$V$14*VLOOKUP('Crop 2'!$E$14,Carbon!$AH$4:$AI$10,2,FALSE),0)+IF('Crop 2'!$C$15=Carbon!$B154,'Crop 2'!$V$15*VLOOKUP('Crop 2'!$E$15,Carbon!$AH$4:$AI$10,2,FALSE),0)+IF('Crop 2'!$C$16=Carbon!$B154,'Crop 2'!$V$16*VLOOKUP('Crop 2'!$E$16,Carbon!$AH$4:$AI$10,2,FALSE),0)+IF('Crop 2'!$C$19=Carbon!$B154,'Crop 2'!$V$19*VLOOKUP('Crop 2'!$E$19,Carbon!$AH$4:$AI$10,2,FALSE),0)+IF('Crop 2'!$C$20=Carbon!$B154,'Crop 2'!$V$20*VLOOKUP('Crop 2'!$E$20,Carbon!$AH$4:$AI$10,2,FALSE),0)+IF('Crop 2'!$C$21=Carbon!$B154,'Crop 2'!$V$21*VLOOKUP('Crop 2'!$E$21,Carbon!$AH$4:$AI$10,2,FALSE),0)+IF('Crop 2'!$C$49=Carbon!$B154,'Crop 2'!$V$49*VLOOKUP('Crop 2'!$E$49,Carbon!$AH$4:$AI$10,2,FALSE),0)+IF('Crop 2'!$C$50=Carbon!$B154,'Crop 2'!$V$50*VLOOKUP('Crop 2'!$E$50,Carbon!$AH$4:$AI$10,2,FALSE),0)+IF('Crop 2'!$C$51=Carbon!$B154,'Crop 2'!$V$51*VLOOKUP('Crop 2'!$E$51,Carbon!$AH$4:$AI$10,2,FALSE),0)+IF('Crop 2'!$C$52=Carbon!$B154,'Crop 2'!$V$52*VLOOKUP('Crop 2'!$E$52,Carbon!$AH$4:$AI$10,2,FALSE),0)+IF('Crop 2'!$C$53=Carbon!$B154,'Crop 2'!$V$53*VLOOKUP('Crop 2'!$E$53,Carbon!$AH$4:$AI$10,2,FALSE),0)+IF('Crop 2'!$C$56=Carbon!$B154,'Crop 2'!$V$56*VLOOKUP('Crop 2'!$E$56,Carbon!$AH$4:$AI$10,2,FALSE),0)+IF('Crop 2'!$C$57=Carbon!$B154,'Crop 2'!$V$57*VLOOKUP('Crop 2'!$E$57,Carbon!$AH$4:$AI$10,2,FALSE),0)+IF('Crop 2'!$C$58=Carbon!$B154,'Crop 2'!$V$58*VLOOKUP('Crop 2'!$E$58,Carbon!$AH$4:$AI$10,2,FALSE),0)+IF('Crop 2'!$C$59=Carbon!$B154,'Crop 2'!$V$59*VLOOKUP('Crop 2'!$E$59,Carbon!$AH$4:$AI$10,2,FALSE),0)+IF('Crop 2'!$C$62=Carbon!$B154,'Crop 2'!$V$62*VLOOKUP('Crop 2'!$E$62,Carbon!$AH$4:$AI$10,2,FALSE),0)+IF('Crop 2'!$C$63=Carbon!$B154,'Crop 2'!$V$63*VLOOKUP('Crop 2'!$E$63,Carbon!$AH$4:$AI$10,2,FALSE),0)+IF('Crop 2'!$C$64=Carbon!$B154,'Crop 2'!$V$64*VLOOKUP('Crop 2'!$E$64,Carbon!$AH$4:$AI$10,2,FALSE),0)+IF('Crop 2'!$C$65=Carbon!$B154,'Crop 2'!$V$65*VLOOKUP('Crop 2'!$E$65,Carbon!$AH$4:$AI$10,2,FALSE),0))*$AL$20,2)","v":0},{"$f":"O154*Inputs!$D$15","v":0},{"$f":"ROUND((IF('Crop 3'!$C$14=Carbon!$B154,'Crop 3'!$V$14*VLOOKUP('Crop 3'!$E$14,Carbon!$AH$4:$AI$10,2,FALSE),0)+IF('Crop 3'!$C$15=Carbon!$B154,'Crop 3'!$V$15*VLOOKUP('Crop 3'!$E$15,Carbon!$AH$4:$AI$10,2,FALSE),0)+IF('Crop 3'!$C$16=Carbon!$B154,'Crop 3'!$V$16*VLOOKUP('Crop 3'!$E$16,Carbon!$AH$4:$AI$10,2,FALSE),0)+IF('Crop 3'!$C$19=Carbon!$B154,'Crop 3'!$V$19*VLOOKUP('Crop 3'!$E$19,Carbon!$AH$4:$AI$10,2,FALSE),0)+IF('Crop 3'!$C$20=Carbon!$B154,'Crop 3'!$V$20*VLOOKUP('Crop 3'!$E$20,Carbon!$AH$4:$AI$10,2,FALSE),0)+IF('Crop 3'!$C$21=Carbon!$B154,'Crop 3'!$V$21*VLOOKUP('Crop 3'!$E$21,Carbon!$AH$4:$AI$10,2,FALSE),0)+IF('Crop 3'!$C$49=Carbon!$B154,'Crop 3'!$V$49*VLOOKUP('Crop 3'!$E$49,Carbon!$AH$4:$AI$10,2,FALSE),0)+IF('Crop 3'!$C$50=Carbon!$B154,'Crop 3'!$V$50*VLOOKUP('Crop 3'!$E$50,Carbon!$AH$4:$AI$10,2,FALSE),0)+IF('Crop 3'!$C$51=Carbon!$B154,'Crop 3'!$V$51*VLOOKUP('Crop 3'!$E$51,Carbon!$AH$4:$AI$10,2,FALSE),0)+IF('Crop 3'!$C$52=Carbon!$B154,'Crop 3'!$V$52*VLOOKUP('Crop 3'!$E$52,Carbon!$AH$4:$AI$10,2,FALSE),0)+IF('Crop 3'!$C$53=Carbon!$B154,'Crop 3'!$V$53*VLOOKUP('Crop 3'!$E$53,Carbon!$AH$4:$AI$10,2,FALSE),0)+IF('Crop 3'!$C$56=Carbon!$B154,'Crop 3'!$V$56*VLOOKUP('Crop 3'!$E$56,Carbon!$AH$4:$AI$10,2,FALSE),0)+IF('Crop 3'!$C$57=Carbon!$B154,'Crop 3'!$V$57*VLOOKUP('Crop 3'!$E$57,Carbon!$AH$4:$AI$10,2,FALSE),0)+IF('Crop 3'!$C$58=Carbon!$B154,'Crop 3'!$V$58*VLOOKUP('Crop 3'!$E$58,Carbon!$AH$4:$AI$10,2,FALSE),0)+IF('Crop 3'!$C$59=Carbon!$B154,'Crop 3'!$V$59*VLOOKUP('Crop 3'!$E$59,Carbon!$AH$4:$AI$10,2,FALSE),0)+IF('Crop 3'!$C$62=Carbon!$B154,'Crop 3'!$V$62*VLOOKUP('Crop 3'!$E$62,Carbon!$AH$4:$AI$10,2,FALSE),0)+IF('Crop 3'!$C$63=Carbon!$B154,'Crop 3'!$V$63*VLOOKUP('Crop 3'!$E$63,Carbon!$AH$4:$AI$10,2,FALSE),0)+IF('Crop 3'!$C$64=Carbon!$B154,'Crop 3'!$V$64*VLOOKUP('Crop 3'!$E$64,Carbon!$AH$4:$AI$10,2,FALSE),0)+IF('Crop 3'!$C$65=Carbon!$B154,'Crop 3'!$V$65*VLOOKUP('Crop 3'!$E$65,Carbon!$AH$4:$AI$10,2,FALSE),0))*$AL$20,2)","v":0},{"$f":"Q154*Inputs!$D$17","v":0},{"$f":"ROUND(T154/Inputs!D$19,2)","v":0},0,null,null,0,{"$f":"W154*Inputs!$D$13","v":0},0,{"$f":"Y154*Inputs!$D$13","v":0},0,{"$f":"AA154*Inputs!$D$13","v":0},{"$f":"ROUND(AD154/Inputs!D$19,2)","v":0},0]
[null,{"$f":"Defaults!AH121","v":"Surmount"},{"$f":"ROUND((IF('Crop 1'!$C$14=Carbon!$B155,'Crop 1'!$L$14*VLOOKUP('Crop 1'!$E$14,Carbon!$AH$4:$AI$10,2,FALSE),0)+IF('Crop 1'!$C$15=Carbon!$B155,'Crop 1'!$L$15*VLOOKUP('Crop 1'!$E$15,Carbon!$AH$4:$AI$10,2,FALSE),0)+IF('Crop 1'!$C$16=Carbon!$B155,'Crop 1'!$L$16*VLOOKUP('Crop 1'!$E$16,Carbon!$AH$4:$AI$10,2,FALSE),0)+IF('Crop 1'!$C$19=Carbon!$B155,'Crop 1'!$L$19*VLOOKUP('Crop 1'!$E$19,Carbon!$AH$4:$AI$10,2,FALSE),0)+IF('Crop 1'!$C$20=Carbon!$B155,'Crop 1'!$L$20*VLOOKUP('Crop 1'!$E$20,Carbon!$AH$4:$AI$10,2,FALSE),0)+IF('Crop 1'!$C$21=Carbon!$B155,'Crop 1'!$L$21*VLOOKUP('Crop 1'!$E$21,Carbon!$AH$4:$AI$10,2,FALSE),0)+IF('Crop 1'!$C$49=Carbon!$B155,'Crop 1'!$L$49*VLOOKUP('Crop 1'!$E$49,Carbon!$AH$4:$AI$10,2,FALSE),0)+IF('Crop 1'!$C$50=Carbon!$B155,'Crop 1'!$L$50*VLOOKUP('Crop 1'!$E$50,Carbon!$AH$4:$AI$10,2,FALSE),0)+IF('Crop 1'!$C$51=Carbon!$B155,'Crop 1'!$L$51*VLOOKUP('Crop 1'!$E$51,Carbon!$AH$4:$AI$10,2,FALSE),0)+IF('Crop 1'!$C$52=Carbon!$B155,'Crop 1'!$L$52*VLOOKUP('Crop 1'!$E$52,Carbon!$AH$4:$AI$10,2,FALSE),0)+IF('Crop 1'!$C$53=Carbon!$B155,'Crop 1'!$L$53*VLOOKUP('Crop 1'!$E$53,Carbon!$AH$4:$AI$10,2,FALSE),0)+IF('Crop 1'!$C$56=Carbon!$B155,'Crop 1'!$L$56*VLOOKUP('Crop 1'!$E$56,Carbon!$AH$4:$AI$10,2,FALSE),0)+IF('Crop 1'!$C$57=Carbon!$B155,'Crop 1'!$L$57*VLOOKUP('Crop 1'!$E$57,Carbon!$AH$4:$AI$10,2,FALSE),0)+IF('Crop 1'!$C$58=Carbon!$B155,'Crop 1'!$L$58*VLOOKUP('Crop 1'!$E$58,Carbon!$AH$4:$AI$10,2,FALSE),0)+IF('Crop 1'!$C$59=Carbon!$B155,'Crop 1'!$L$59*VLOOKUP('Crop 1'!$E$59,Carbon!$AH$4:$AI$10,2,FALSE),0)+IF('Crop 1'!$C$62=Carbon!$B155,'Crop 1'!$L$62*VLOOKUP('Crop 1'!$E$62,Carbon!$AH$4:$AI$10,2,FALSE),0)+IF('Crop 1'!$C$63=Carbon!$B155,'Crop 1'!$L$63*VLOOKUP('Crop 1'!$E$63,Carbon!$AH$4:$AI$10,2,FALSE),0)+IF('Crop 1'!$C$64=Carbon!$B155,'Crop 1'!$L$64*VLOOKUP('Crop 1'!$E$64,Carbon!$AH$4:$AI$10,2,FALSE),0)+IF('Crop 1'!$C$65=Carbon!$B155,'Crop 1'!$L$65*VLOOKUP('Crop 1'!$E$65,Carbon!$AH$4:$AI$10,2,FALSE),0))*$AL$20,2)","v":0},{"$f":"C155*Inputs!$D$13","v":0},{"$f":"ROUND((IF('Crop 2'!$C$14=Carbon!$B155,'Crop 2'!$L$14*VLOOKUP('Crop 2'!$E$14,Carbon!$AH$4:$AI$10,2,FALSE),0)+IF('Crop 2'!$C$15=Carbon!$B155,'Crop 2'!$L$15*VLOOKUP('Crop 2'!$E$15,Carbon!$AH$4:$AI$10,2,FALSE),0)+IF('Crop 2'!$C$16=Carbon!$B155,'Crop 2'!$L$16*VLOOKUP('Crop 2'!$E$16,Carbon!$AH$4:$AI$10,2,FALSE),0)+IF('Crop 2'!$C$19=Carbon!$B155,'Crop 2'!$L$19*VLOOKUP('Crop 2'!$E$19,Carbon!$AH$4:$AI$10,2,FALSE),0)+IF('Crop 2'!$C$20=Carbon!$B155,'Crop 2'!$L$20*VLOOKUP('Crop 2'!$E$20,Carbon!$AH$4:$AI$10,2,FALSE),0)+IF('Crop 2'!$C$21=Carbon!$B155,'Crop 2'!$L$21*VLOOKUP('Crop 2'!$E$21,Carbon!$AH$4:$AI$10,2,FALSE),0)+IF('Crop 2'!$C$49=Carbon!$B155,'Crop 2'!$L$49*VLOOKUP('Crop 2'!$E$49,Carbon!$AH$4:$AI$10,2,FALSE),0)+IF('Crop 2'!$C$50=Carbon!$B155,'Crop 2'!$L$50*VLOOKUP('Crop 2'!$E$50,Carbon!$AH$4:$AI$10,2,FALSE),0)+IF('Crop 2'!$C$51=Carbon!$B155,'Crop 2'!$L$51*VLOOKUP('Crop 2'!$E$51,Carbon!$AH$4:$AI$10,2,FALSE),0)+IF('Crop 2'!$C$52=Carbon!$B155,'Crop 2'!$L$52*VLOOKUP('Crop 2'!$E$52,Carbon!$AH$4:$AI$10,2,FALSE),0)+IF('Crop 2'!$C$53=Carbon!$B155,'Crop 2'!$L$53*VLOOKUP('Crop 2'!$E$53,Carbon!$AH$4:$AI$10,2,FALSE),0)+IF('Crop 2'!$C$56=Carbon!$B155,'Crop 2'!$L$56*VLOOKUP('Crop 2'!$E$56,Carbon!$AH$4:$AI$10,2,FALSE),0)+IF('Crop 2'!$C$57=Carbon!$B155,'Crop 2'!$L$57*VLOOKUP('Crop 2'!$E$57,Carbon!$AH$4:$AI$10,2,FALSE),0)+IF('Crop 2'!$C$58=Carbon!$B155,'Crop 2'!$L$58*VLOOKUP('Crop 2'!$E$58,Carbon!$AH$4:$AI$10,2,FALSE),0)+IF('Crop 2'!$C$59=Carbon!$B155,'Crop 2'!$L$59*VLOOKUP('Crop 2'!$E$59,Carbon!$AH$4:$AI$10,2,FALSE),0)+IF('Crop 2'!$C$62=Carbon!$B155,'Crop 2'!$L$62*VLOOKUP('Crop 2'!$E$62,Carbon!$AH$4:$AI$10,2,FALSE),0)+IF('Crop 2'!$C$63=Carbon!$B155,'Crop 2'!$L$63*VLOOKUP('Crop 2'!$E$63,Carbon!$AH$4:$AI$10,2,FALSE),0)+IF('Crop 2'!$C$64=Carbon!$B155,'Crop 2'!$L$64*VLOOKUP('Crop 2'!$E$64,Carbon!$AH$4:$AI$10,2,FALSE),0)+IF('Crop 2'!$C$65=Carbon!$B155,'Crop 2'!$L$65*VLOOKUP('Crop 2'!$E$65,Carbon!$AH$4:$AI$10,2,FALSE),0))*$AL$20,2)","v":0},{"$f":"E155*Inputs!$D$15","v":0},{"$f":"ROUND((IF('Crop 3'!$C$14=Carbon!$B155,'Crop 3'!$L$14*VLOOKUP('Crop 3'!$E$14,Carbon!$AH$4:$AI$10,2,FALSE),0)+IF('Crop 3'!$C$15=Carbon!$B155,'Crop 3'!$L$15*VLOOKUP('Crop 3'!$E$15,Carbon!$AH$4:$AI$10,2,FALSE),0)+IF('Crop 3'!$C$16=Carbon!$B155,'Crop 3'!$L$16*VLOOKUP('Crop 3'!$E$16,Carbon!$AH$4:$AI$10,2,FALSE),0)+IF('Crop 3'!$C$19=Carbon!$B155,'Crop 3'!$L$19*VLOOKUP('Crop 3'!$E$19,Carbon!$AH$4:$AI$10,2,FALSE),0)+IF('Crop 3'!$C$20=Carbon!$B155,'Crop 3'!$L$20*VLOOKUP('Crop 3'!$E$20,Carbon!$AH$4:$AI$10,2,FALSE),0)+IF('Crop 3'!$C$21=Carbon!$B155,'Crop 3'!$L$21*VLOOKUP('Crop 3'!$E$21,Carbon!$AH$4:$AI$10,2,FALSE),0)+IF('Crop 3'!$C$49=Carbon!$B155,'Crop 3'!$L$49*VLOOKUP('Crop 3'!$E$49,Carbon!$AH$4:$AI$10,2,FALSE),0)+IF('Crop 3'!$C$50=Carbon!$B155,'Crop 3'!$L$50*VLOOKUP('Crop 3'!$E$50,Carbon!$AH$4:$AI$10,2,FALSE),0)+IF('Crop 3'!$C$51=Carbon!$B155,'Crop 3'!$L$51*VLOOKUP('Crop 3'!$E$51,Carbon!$AH$4:$AI$10,2,FALSE),0)+IF('Crop 3'!$C$52=Carbon!$B155,'Crop 3'!$L$52*VLOOKUP('Crop 3'!$E$52,Carbon!$AH$4:$AI$10,2,FALSE),0)+IF('Crop 3'!$C$53=Carbon!$B155,'Crop 3'!$L$53*VLOOKUP('Crop 3'!$E$53,Carbon!$AH$4:$AI$10,2,FALSE),0)+IF('Crop 3'!$C$56=Carbon!$B155,'Crop 3'!$L$56*VLOOKUP('Crop 3'!$E$56,Carbon!$AH$4:$AI$10,2,FALSE),0)+IF('Crop 3'!$C$57=Carbon!$B155,'Crop 3'!$L$57*VLOOKUP('Crop 3'!$E$57,Carbon!$AH$4:$AI$10,2,FALSE),0)+IF('Crop 3'!$C$58=Carbon!$B155,'Crop 3'!$L$58*VLOOKUP('Crop 3'!$E$58,Carbon!$AH$4:$AI$10,2,FALSE),0)+IF('Crop 3'!$C$59=Carbon!$B155,'Crop 3'!$L$59*VLOOKUP('Crop 3'!$E$59,Carbon!$AH$4:$AI$10,2,FALSE),0)+IF('Crop 3'!$C$62=Carbon!$B155,'Crop 3'!$L$62*VLOOKUP('Crop 3'!$E$62,Carbon!$AH$4:$AI$10,2,FALSE),0)+IF('Crop 3'!$C$63=Carbon!$B155,'Crop 3'!$L$63*VLOOKUP('Crop 3'!$E$63,Carbon!$AH$4:$AI$10,2,FALSE),0)+IF('Crop 3'!$C$64=Carbon!$B155,'Crop 3'!$L$64*VLOOKUP('Crop 3'!$E$64,Carbon!$AH$4:$AI$10,2,FALSE),0)+IF('Crop 3'!$C$65=Carbon!$B155,'Crop 3'!$L$65*VLOOKUP('Crop 3'!$E$65,Carbon!$AH$4:$AI$10,2,FALSE),0))*$AL$20,2)","v":0},{"$f":"G155*Inputs!$D$17","v":0},{"$f":"ROUND(J155/Inputs!D$19,2)","v":0},0,null,null,{"$f":"ROUND((IF('Crop 1'!$C$14=Carbon!$B155,'Crop 1'!$V$14*VLOOKUP('Crop 1'!$E$14,Carbon!$AH$4:$AI$10,2,FALSE),0)+IF('Crop 1'!$C$15=Carbon!$B155,'Crop 1'!$V$15*VLOOKUP('Crop 1'!$E$15,Carbon!$AH$4:$AI$10,2,FALSE),0)+IF('Crop 1'!$C$16=Carbon!$B155,'Crop 1'!$V$16*VLOOKUP('Crop 1'!$E$16,Carbon!$AH$4:$AI$10,2,FALSE),0)+IF('Crop 1'!$C$19=Carbon!$B155,'Crop 1'!$V$19*VLOOKUP('Crop 1'!$E$19,Carbon!$AH$4:$AI$10,2,FALSE),0)+IF('Crop 1'!$C$20=Carbon!$B155,'Crop 1'!$V$20*VLOOKUP('Crop 1'!$E$20,Carbon!$AH$4:$AI$10,2,FALSE),0)+IF('Crop 1'!$C$21=Carbon!$B155,'Crop 1'!$V$21*VLOOKUP('Crop 1'!$E$21,Carbon!$AH$4:$AI$10,2,FALSE),0)+IF('Crop 1'!$C$49=Carbon!$B155,'Crop 1'!$V$49*VLOOKUP('Crop 1'!$E$49,Carbon!$AH$4:$AI$10,2,FALSE),0)+IF('Crop 1'!$C$50=Carbon!$B155,'Crop 1'!$V$50*VLOOKUP('Crop 1'!$E$50,Carbon!$AH$4:$AI$10,2,FALSE),0)+IF('Crop 1'!$C$51=Carbon!$B155,'Crop 1'!$V$51*VLOOKUP('Crop 1'!$E$51,Carbon!$AH$4:$AI$10,2,FALSE),0)+IF('Crop 1'!$C$52=Carbon!$B155,'Crop 1'!$V$52*VLOOKUP('Crop 1'!$E$52,Carbon!$AH$4:$AI$10,2,FALSE),0)+IF('Crop 1'!$C$53=Carbon!$B155,'Crop 1'!$V$53*VLOOKUP('Crop 1'!$E$53,Carbon!$AH$4:$AI$10,2,FALSE),0)+IF('Crop 1'!$C$56=Carbon!$B155,'Crop 1'!$V$56*VLOOKUP('Crop 1'!$E$56,Carbon!$AH$4:$AI$10,2,FALSE),0)+IF('Crop 1'!$C$57=Carbon!$B155,'Crop 1'!$V$57*VLOOKUP('Crop 1'!$E$57,Carbon!$AH$4:$AI$10,2,FALSE),0)+IF('Crop 1'!$C$58=Carbon!$B155,'Crop 1'!$V$58*VLOOKUP('Crop 1'!$E$58,Carbon!$AH$4:$AI$10,2,FALSE),0)+IF('Crop 1'!$C$59=Carbon!$B155,'Crop 1'!$V$59*VLOOKUP('Crop 1'!$E$59,Carbon!$AH$4:$AI$10,2,FALSE),0)+IF('Crop 1'!$C$62=Carbon!$B155,'Crop 1'!$V$62*VLOOKUP('Crop 1'!$E$62,Carbon!$AH$4:$AI$10,2,FALSE),0)+IF('Crop 1'!$C$63=Carbon!$B155,'Crop 1'!$V$63*VLOOKUP('Crop 1'!$E$63,Carbon!$AH$4:$AI$10,2,FALSE),0)+IF('Crop 1'!$C$64=Carbon!$B155,'Crop 1'!$V$64*VLOOKUP('Crop 1'!$E$64,Carbon!$AH$4:$AI$10,2,FALSE),0)+IF('Crop 1'!$C$65=Carbon!$B155,'Crop 1'!$V$65*VLOOKUP('Crop 1'!$E$65,Carbon!$AH$4:$AI$10,2,FALSE),0))*$AL$20,2)","v":0},{"$f":"M155*Inputs!$D$13","v":0},{"$f":"ROUND((IF('Crop 2'!$C$14=Carbon!$B155,'Crop 2'!$V$14*VLOOKUP('Crop 2'!$E$14,Carbon!$AH$4:$AI$10,2,FALSE),0)+IF('Crop 2'!$C$15=Carbon!$B155,'Crop 2'!$V$15*VLOOKUP('Crop 2'!$E$15,Carbon!$AH$4:$AI$10,2,FALSE),0)+IF('Crop 2'!$C$16=Carbon!$B155,'Crop 2'!$V$16*VLOOKUP('Crop 2'!$E$16,Carbon!$AH$4:$AI$10,2,FALSE),0)+IF('Crop 2'!$C$19=Carbon!$B155,'Crop 2'!$V$19*VLOOKUP('Crop 2'!$E$19,Carbon!$AH$4:$AI$10,2,FALSE),0)+IF('Crop 2'!$C$20=Carbon!$B155,'Crop 2'!$V$20*VLOOKUP('Crop 2'!$E$20,Carbon!$AH$4:$AI$10,2,FALSE),0)+IF('Crop 2'!$C$21=Carbon!$B155,'Crop 2'!$V$21*VLOOKUP('Crop 2'!$E$21,Carbon!$AH$4:$AI$10,2,FALSE),0)+IF('Crop 2'!$C$49=Carbon!$B155,'Crop 2'!$V$49*VLOOKUP('Crop 2'!$E$49,Carbon!$AH$4:$AI$10,2,FALSE),0)+IF('Crop 2'!$C$50=Carbon!$B155,'Crop 2'!$V$50*VLOOKUP('Crop 2'!$E$50,Carbon!$AH$4:$AI$10,2,FALSE),0)+IF('Crop 2'!$C$51=Carbon!$B155,'Crop 2'!$V$51*VLOOKUP('Crop 2'!$E$51,Carbon!$AH$4:$AI$10,2,FALSE),0)+IF('Crop 2'!$C$52=Carbon!$B155,'Crop 2'!$V$52*VLOOKUP('Crop 2'!$E$52,Carbon!$AH$4:$AI$10,2,FALSE),0)+IF('Crop 2'!$C$53=Carbon!$B155,'Crop 2'!$V$53*VLOOKUP('Crop 2'!$E$53,Carbon!$AH$4:$AI$10,2,FALSE),0)+IF('Crop 2'!$C$56=Carbon!$B155,'Crop 2'!$V$56*VLOOKUP('Crop 2'!$E$56,Carbon!$AH$4:$AI$10,2,FALSE),0)+IF('Crop 2'!$C$57=Carbon!$B155,'Crop 2'!$V$57*VLOOKUP('Crop 2'!$E$57,Carbon!$AH$4:$AI$10,2,FALSE),0)+IF('Crop 2'!$C$58=Carbon!$B155,'Crop 2'!$V$58*VLOOKUP('Crop 2'!$E$58,Carbon!$AH$4:$AI$10,2,FALSE),0)+IF('Crop 2'!$C$59=Carbon!$B155,'Crop 2'!$V$59*VLOOKUP('Crop 2'!$E$59,Carbon!$AH$4:$AI$10,2,FALSE),0)+IF('Crop 2'!$C$62=Carbon!$B155,'Crop 2'!$V$62*VLOOKUP('Crop 2'!$E$62,Carbon!$AH$4:$AI$10,2,FALSE),0)+IF('Crop 2'!$C$63=Carbon!$B155,'Crop 2'!$V$63*VLOOKUP('Crop 2'!$E$63,Carbon!$AH$4:$AI$10,2,FALSE),0)+IF('Crop 2'!$C$64=Carbon!$B155,'Crop 2'!$V$64*VLOOKUP('Crop 2'!$E$64,Carbon!$AH$4:$AI$10,2,FALSE),0)+IF('Crop 2'!$C$65=Carbon!$B155,'Crop 2'!$V$65*VLOOKUP('Crop 2'!$E$65,Carbon!$AH$4:$AI$10,2,FALSE),0))*$AL$20,2)","v":0},{"$f":"O155*Inputs!$D$15","v":0},{"$f":"ROUND((IF('Crop 3'!$C$14=Carbon!$B155,'Crop 3'!$V$14*VLOOKUP('Crop 3'!$E$14,Carbon!$AH$4:$AI$10,2,FALSE),0)+IF('Crop 3'!$C$15=Carbon!$B155,'Crop 3'!$V$15*VLOOKUP('Crop 3'!$E$15,Carbon!$AH$4:$AI$10,2,FALSE),0)+IF('Crop 3'!$C$16=Carbon!$B155,'Crop 3'!$V$16*VLOOKUP('Crop 3'!$E$16,Carbon!$AH$4:$AI$10,2,FALSE),0)+IF('Crop 3'!$C$19=Carbon!$B155,'Crop 3'!$V$19*VLOOKUP('Crop 3'!$E$19,Carbon!$AH$4:$AI$10,2,FALSE),0)+IF('Crop 3'!$C$20=Carbon!$B155,'Crop 3'!$V$20*VLOOKUP('Crop 3'!$E$20,Carbon!$AH$4:$AI$10,2,FALSE),0)+IF('Crop 3'!$C$21=Carbon!$B155,'Crop 3'!$V$21*VLOOKUP('Crop 3'!$E$21,Carbon!$AH$4:$AI$10,2,FALSE),0)+IF('Crop 3'!$C$49=Carbon!$B155,'Crop 3'!$V$49*VLOOKUP('Crop 3'!$E$49,Carbon!$AH$4:$AI$10,2,FALSE),0)+IF('Crop 3'!$C$50=Carbon!$B155,'Crop 3'!$V$50*VLOOKUP('Crop 3'!$E$50,Carbon!$AH$4:$AI$10,2,FALSE),0)+IF('Crop 3'!$C$51=Carbon!$B155,'Crop 3'!$V$51*VLOOKUP('Crop 3'!$E$51,Carbon!$AH$4:$AI$10,2,FALSE),0)+IF('Crop 3'!$C$52=Carbon!$B155,'Crop 3'!$V$52*VLOOKUP('Crop 3'!$E$52,Carbon!$AH$4:$AI$10,2,FALSE),0)+IF('Crop 3'!$C$53=Carbon!$B155,'Crop 3'!$V$53*VLOOKUP('Crop 3'!$E$53,Carbon!$AH$4:$AI$10,2,FALSE),0)+IF('Crop 3'!$C$56=Carbon!$B155,'Crop 3'!$V$56*VLOOKUP('Crop 3'!$E$56,Carbon!$AH$4:$AI$10,2,FALSE),0)+IF('Crop 3'!$C$57=Carbon!$B155,'Crop 3'!$V$57*VLOOKUP('Crop 3'!$E$57,Carbon!$AH$4:$AI$10,2,FALSE),0)+IF('Crop 3'!$C$58=Carbon!$B155,'Crop 3'!$V$58*VLOOKUP('Crop 3'!$E$58,Carbon!$AH$4:$AI$10,2,FALSE),0)+IF('Crop 3'!$C$59=Carbon!$B155,'Crop 3'!$V$59*VLOOKUP('Crop 3'!$E$59,Carbon!$AH$4:$AI$10,2,FALSE),0)+IF('Crop 3'!$C$62=Carbon!$B155,'Crop 3'!$V$62*VLOOKUP('Crop 3'!$E$62,Carbon!$AH$4:$AI$10,2,FALSE),0)+IF('Crop 3'!$C$63=Carbon!$B155,'Crop 3'!$V$63*VLOOKUP('Crop 3'!$E$63,Carbon!$AH$4:$AI$10,2,FALSE),0)+IF('Crop 3'!$C$64=Carbon!$B155,'Crop 3'!$V$64*VLOOKUP('Crop 3'!$E$64,Carbon!$AH$4:$AI$10,2,FALSE),0)+IF('Crop 3'!$C$65=Carbon!$B155,'Crop 3'!$V$65*VLOOKUP('Crop 3'!$E$65,Carbon!$AH$4:$AI$10,2,FALSE),0))*$AL$20,2)","v":0},{"$f":"Q155*Inputs!$D$17","v":0},{"$f":"ROUND(T155/Inputs!D$19,2)","v":0},0,null,null,0,{"$f":"W155*Inputs!$D$13","v":0},0,{"$f":"Y155*Inputs!$D$13","v":0},0,{"$f":"AA155*Inputs!$D$13","v":0},{"$f":"ROUND(AD155/Inputs!D$19,2)","v":0},0]
[null,{"$f":"Defaults!AH122","v":"Surpass"},{"$f":"ROUND((IF('Crop 1'!$C$14=Carbon!$B156,'Crop 1'!$L$14*VLOOKUP('Crop 1'!$E$14,Carbon!$AH$4:$AI$10,2,FALSE),0)+IF('Crop 1'!$C$15=Carbon!$B156,'Crop 1'!$L$15*VLOOKUP('Crop 1'!$E$15,Carbon!$AH$4:$AI$10,2,FALSE),0)+IF('Crop 1'!$C$16=Carbon!$B156,'Crop 1'!$L$16*VLOOKUP('Crop 1'!$E$16,Carbon!$AH$4:$AI$10,2,FALSE),0)+IF('Crop 1'!$C$19=Carbon!$B156,'Crop 1'!$L$19*VLOOKUP('Crop 1'!$E$19,Carbon!$AH$4:$AI$10,2,FALSE),0)+IF('Crop 1'!$C$20=Carbon!$B156,'Crop 1'!$L$20*VLOOKUP('Crop 1'!$E$20,Carbon!$AH$4:$AI$10,2,FALSE),0)+IF('Crop 1'!$C$21=Carbon!$B156,'Crop 1'!$L$21*VLOOKUP('Crop 1'!$E$21,Carbon!$AH$4:$AI$10,2,FALSE),0)+IF('Crop 1'!$C$49=Carbon!$B156,'Crop 1'!$L$49*VLOOKUP('Crop 1'!$E$49,Carbon!$AH$4:$AI$10,2,FALSE),0)+IF('Crop 1'!$C$50=Carbon!$B156,'Crop 1'!$L$50*VLOOKUP('Crop 1'!$E$50,Carbon!$AH$4:$AI$10,2,FALSE),0)+IF('Crop 1'!$C$51=Carbon!$B156,'Crop 1'!$L$51*VLOOKUP('Crop 1'!$E$51,Carbon!$AH$4:$AI$10,2,FALSE),0)+IF('Crop 1'!$C$52=Carbon!$B156,'Crop 1'!$L$52*VLOOKUP('Crop 1'!$E$52,Carbon!$AH$4:$AI$10,2,FALSE),0)+IF('Crop 1'!$C$53=Carbon!$B156,'Crop 1'!$L$53*VLOOKUP('Crop 1'!$E$53,Carbon!$AH$4:$AI$10,2,FALSE),0)+IF('Crop 1'!$C$56=Carbon!$B156,'Crop 1'!$L$56*VLOOKUP('Crop 1'!$E$56,Carbon!$AH$4:$AI$10,2,FALSE),0)+IF('Crop 1'!$C$57=Carbon!$B156,'Crop 1'!$L$57*VLOOKUP('Crop 1'!$E$57,Carbon!$AH$4:$AI$10,2,FALSE),0)+IF('Crop 1'!$C$58=Carbon!$B156,'Crop 1'!$L$58*VLOOKUP('Crop 1'!$E$58,Carbon!$AH$4:$AI$10,2,FALSE),0)+IF('Crop 1'!$C$59=Carbon!$B156,'Crop 1'!$L$59*VLOOKUP('Crop 1'!$E$59,Carbon!$AH$4:$AI$10,2,FALSE),0)+IF('Crop 1'!$C$62=Carbon!$B156,'Crop 1'!$L$62*VLOOKUP('Crop 1'!$E$62,Carbon!$AH$4:$AI$10,2,FALSE),0)+IF('Crop 1'!$C$63=Carbon!$B156,'Crop 1'!$L$63*VLOOKUP('Crop 1'!$E$63,Carbon!$AH$4:$AI$10,2,FALSE),0)+IF('Crop 1'!$C$64=Carbon!$B156,'Crop 1'!$L$64*VLOOKUP('Crop 1'!$E$64,Carbon!$AH$4:$AI$10,2,FALSE),0)+IF('Crop 1'!$C$65=Carbon!$B156,'Crop 1'!$L$65*VLOOKUP('Crop 1'!$E$65,Carbon!$AH$4:$AI$10,2,FALSE),0))*$AL$20,2)","v":0},{"$f":"C156*Inputs!$D$13","v":0},{"$f":"ROUND((IF('Crop 2'!$C$14=Carbon!$B156,'Crop 2'!$L$14*VLOOKUP('Crop 2'!$E$14,Carbon!$AH$4:$AI$10,2,FALSE),0)+IF('Crop 2'!$C$15=Carbon!$B156,'Crop 2'!$L$15*VLOOKUP('Crop 2'!$E$15,Carbon!$AH$4:$AI$10,2,FALSE),0)+IF('Crop 2'!$C$16=Carbon!$B156,'Crop 2'!$L$16*VLOOKUP('Crop 2'!$E$16,Carbon!$AH$4:$AI$10,2,FALSE),0)+IF('Crop 2'!$C$19=Carbon!$B156,'Crop 2'!$L$19*VLOOKUP('Crop 2'!$E$19,Carbon!$AH$4:$AI$10,2,FALSE),0)+IF('Crop 2'!$C$20=Carbon!$B156,'Crop 2'!$L$20*VLOOKUP('Crop 2'!$E$20,Carbon!$AH$4:$AI$10,2,FALSE),0)+IF('Crop 2'!$C$21=Carbon!$B156,'Crop 2'!$L$21*VLOOKUP('Crop 2'!$E$21,Carbon!$AH$4:$AI$10,2,FALSE),0)+IF('Crop 2'!$C$49=Carbon!$B156,'Crop 2'!$L$49*VLOOKUP('Crop 2'!$E$49,Carbon!$AH$4:$AI$10,2,FALSE),0)+IF('Crop 2'!$C$50=Carbon!$B156,'Crop 2'!$L$50*VLOOKUP('Crop 2'!$E$50,Carbon!$AH$4:$AI$10,2,FALSE),0)+IF('Crop 2'!$C$51=Carbon!$B156,'Crop 2'!$L$51*VLOOKUP('Crop 2'!$E$51,Carbon!$AH$4:$AI$10,2,FALSE),0)+IF('Crop 2'!$C$52=Carbon!$B156,'Crop 2'!$L$52*VLOOKUP('Crop 2'!$E$52,Carbon!$AH$4:$AI$10,2,FALSE),0)+IF('Crop 2'!$C$53=Carbon!$B156,'Crop 2'!$L$53*VLOOKUP('Crop 2'!$E$53,Carbon!$AH$4:$AI$10,2,FALSE),0)+IF('Crop 2'!$C$56=Carbon!$B156,'Crop 2'!$L$56*VLOOKUP('Crop 2'!$E$56,Carbon!$AH$4:$AI$10,2,FALSE),0)+IF('Crop 2'!$C$57=Carbon!$B156,'Crop 2'!$L$57*VLOOKUP('Crop 2'!$E$57,Carbon!$AH$4:$AI$10,2,FALSE),0)+IF('Crop 2'!$C$58=Carbon!$B156,'Crop 2'!$L$58*VLOOKUP('Crop 2'!$E$58,Carbon!$AH$4:$AI$10,2,FALSE),0)+IF('Crop 2'!$C$59=Carbon!$B156,'Crop 2'!$L$59*VLOOKUP('Crop 2'!$E$59,Carbon!$AH$4:$AI$10,2,FALSE),0)+IF('Crop 2'!$C$62=Carbon!$B156,'Crop 2'!$L$62*VLOOKUP('Crop 2'!$E$62,Carbon!$AH$4:$AI$10,2,FALSE),0)+IF('Crop 2'!$C$63=Carbon!$B156,'Crop 2'!$L$63*VLOOKUP('Crop 2'!$E$63,Carbon!$AH$4:$AI$10,2,FALSE),0)+IF('Crop 2'!$C$64=Carbon!$B156,'Crop 2'!$L$64*VLOOKUP('Crop 2'!$E$64,Carbon!$AH$4:$AI$10,2,FALSE),0)+IF('Crop 2'!$C$65=Carbon!$B156,'Crop 2'!$L$65*VLOOKUP('Crop 2'!$E$65,Carbon!$AH$4:$AI$10,2,FALSE),0))*$AL$20,2)","v":0},{"$f":"E156*Inputs!$D$15","v":0},{"$f":"ROUND((IF('Crop 3'!$C$14=Carbon!$B156,'Crop 3'!$L$14*VLOOKUP('Crop 3'!$E$14,Carbon!$AH$4:$AI$10,2,FALSE),0)+IF('Crop 3'!$C$15=Carbon!$B156,'Crop 3'!$L$15*VLOOKUP('Crop 3'!$E$15,Carbon!$AH$4:$AI$10,2,FALSE),0)+IF('Crop 3'!$C$16=Carbon!$B156,'Crop 3'!$L$16*VLOOKUP('Crop 3'!$E$16,Carbon!$AH$4:$AI$10,2,FALSE),0)+IF('Crop 3'!$C$19=Carbon!$B156,'Crop 3'!$L$19*VLOOKUP('Crop 3'!$E$19,Carbon!$AH$4:$AI$10,2,FALSE),0)+IF('Crop 3'!$C$20=Carbon!$B156,'Crop 3'!$L$20*VLOOKUP('Crop 3'!$E$20,Carbon!$AH$4:$AI$10,2,FALSE),0)+IF('Crop 3'!$C$21=Carbon!$B156,'Crop 3'!$L$21*VLOOKUP('Crop 3'!$E$21,Carbon!$AH$4:$AI$10,2,FALSE),0)+IF('Crop 3'!$C$49=Carbon!$B156,'Crop 3'!$L$49*VLOOKUP('Crop 3'!$E$49,Carbon!$AH$4:$AI$10,2,FALSE),0)+IF('Crop 3'!$C$50=Carbon!$B156,'Crop 3'!$L$50*VLOOKUP('Crop 3'!$E$50,Carbon!$AH$4:$AI$10,2,FALSE),0)+IF('Crop 3'!$C$51=Carbon!$B156,'Crop 3'!$L$51*VLOOKUP('Crop 3'!$E$51,Carbon!$AH$4:$AI$10,2,FALSE),0)+IF('Crop 3'!$C$52=Carbon!$B156,'Crop 3'!$L$52*VLOOKUP('Crop 3'!$E$52,Carbon!$AH$4:$AI$10,2,FALSE),0)+IF('Crop 3'!$C$53=Carbon!$B156,'Crop 3'!$L$53*VLOOKUP('Crop 3'!$E$53,Carbon!$AH$4:$AI$10,2,FALSE),0)+IF('Crop 3'!$C$56=Carbon!$B156,'Crop 3'!$L$56*VLOOKUP('Crop 3'!$E$56,Carbon!$AH$4:$AI$10,2,FALSE),0)+IF('Crop 3'!$C$57=Carbon!$B156,'Crop 3'!$L$57*VLOOKUP('Crop 3'!$E$57,Carbon!$AH$4:$AI$10,2,FALSE),0)+IF('Crop 3'!$C$58=Carbon!$B156,'Crop 3'!$L$58*VLOOKUP('Crop 3'!$E$58,Carbon!$AH$4:$AI$10,2,FALSE),0)+IF('Crop 3'!$C$59=Carbon!$B156,'Crop 3'!$L$59*VLOOKUP('Crop 3'!$E$59,Carbon!$AH$4:$AI$10,2,FALSE),0)+IF('Crop 3'!$C$62=Carbon!$B156,'Crop 3'!$L$62*VLOOKUP('Crop 3'!$E$62,Carbon!$AH$4:$AI$10,2,FALSE),0)+IF('Crop 3'!$C$63=Carbon!$B156,'Crop 3'!$L$63*VLOOKUP('Crop 3'!$E$63,Carbon!$AH$4:$AI$10,2,FALSE),0)+IF('Crop 3'!$C$64=Carbon!$B156,'Crop 3'!$L$64*VLOOKUP('Crop 3'!$E$64,Carbon!$AH$4:$AI$10,2,FALSE),0)+IF('Crop 3'!$C$65=Carbon!$B156,'Crop 3'!$L$65*VLOOKUP('Crop 3'!$E$65,Carbon!$AH$4:$AI$10,2,FALSE),0))*$AL$20,2)","v":0},{"$f":"G156*Inputs!$D$17","v":0},{"$f":"ROUND(J156/Inputs!D$19,2)","v":0},0,null,null,{"$f":"ROUND((IF('Crop 1'!$C$14=Carbon!$B156,'Crop 1'!$V$14*VLOOKUP('Crop 1'!$E$14,Carbon!$AH$4:$AI$10,2,FALSE),0)+IF('Crop 1'!$C$15=Carbon!$B156,'Crop 1'!$V$15*VLOOKUP('Crop 1'!$E$15,Carbon!$AH$4:$AI$10,2,FALSE),0)+IF('Crop 1'!$C$16=Carbon!$B156,'Crop 1'!$V$16*VLOOKUP('Crop 1'!$E$16,Carbon!$AH$4:$AI$10,2,FALSE),0)+IF('Crop 1'!$C$19=Carbon!$B156,'Crop 1'!$V$19*VLOOKUP('Crop 1'!$E$19,Carbon!$AH$4:$AI$10,2,FALSE),0)+IF('Crop 1'!$C$20=Carbon!$B156,'Crop 1'!$V$20*VLOOKUP('Crop 1'!$E$20,Carbon!$AH$4:$AI$10,2,FALSE),0)+IF('Crop 1'!$C$21=Carbon!$B156,'Crop 1'!$V$21*VLOOKUP('Crop 1'!$E$21,Carbon!$AH$4:$AI$10,2,FALSE),0)+IF('Crop 1'!$C$49=Carbon!$B156,'Crop 1'!$V$49*VLOOKUP('Crop 1'!$E$49,Carbon!$AH$4:$AI$10,2,FALSE),0)+IF('Crop 1'!$C$50=Carbon!$B156,'Crop 1'!$V$50*VLOOKUP('Crop 1'!$E$50,Carbon!$AH$4:$AI$10,2,FALSE),0)+IF('Crop 1'!$C$51=Carbon!$B156,'Crop 1'!$V$51*VLOOKUP('Crop 1'!$E$51,Carbon!$AH$4:$AI$10,2,FALSE),0)+IF('Crop 1'!$C$52=Carbon!$B156,'Crop 1'!$V$52*VLOOKUP('Crop 1'!$E$52,Carbon!$AH$4:$AI$10,2,FALSE),0)+IF('Crop 1'!$C$53=Carbon!$B156,'Crop 1'!$V$53*VLOOKUP('Crop 1'!$E$53,Carbon!$AH$4:$AI$10,2,FALSE),0)+IF('Crop 1'!$C$56=Carbon!$B156,'Crop 1'!$V$56*VLOOKUP('Crop 1'!$E$56,Carbon!$AH$4:$AI$10,2,FALSE),0)+IF('Crop 1'!$C$57=Carbon!$B156,'Crop 1'!$V$57*VLOOKUP('Crop 1'!$E$57,Carbon!$AH$4:$AI$10,2,FALSE),0)+IF('Crop 1'!$C$58=Carbon!$B156,'Crop 1'!$V$58*VLOOKUP('Crop 1'!$E$58,Carbon!$AH$4:$AI$10,2,FALSE),0)+IF('Crop 1'!$C$59=Carbon!$B156,'Crop 1'!$V$59*VLOOKUP('Crop 1'!$E$59,Carbon!$AH$4:$AI$10,2,FALSE),0)+IF('Crop 1'!$C$62=Carbon!$B156,'Crop 1'!$V$62*VLOOKUP('Crop 1'!$E$62,Carbon!$AH$4:$AI$10,2,FALSE),0)+IF('Crop 1'!$C$63=Carbon!$B156,'Crop 1'!$V$63*VLOOKUP('Crop 1'!$E$63,Carbon!$AH$4:$AI$10,2,FALSE),0)+IF('Crop 1'!$C$64=Carbon!$B156,'Crop 1'!$V$64*VLOOKUP('Crop 1'!$E$64,Carbon!$AH$4:$AI$10,2,FALSE),0)+IF('Crop 1'!$C$65=Carbon!$B156,'Crop 1'!$V$65*VLOOKUP('Crop 1'!$E$65,Carbon!$AH$4:$AI$10,2,FALSE),0))*$AL$20,2)","v":0},{"$f":"M156*Inputs!$D$13","v":0},{"$f":"ROUND((IF('Crop 2'!$C$14=Carbon!$B156,'Crop 2'!$V$14*VLOOKUP('Crop 2'!$E$14,Carbon!$AH$4:$AI$10,2,FALSE),0)+IF('Crop 2'!$C$15=Carbon!$B156,'Crop 2'!$V$15*VLOOKUP('Crop 2'!$E$15,Carbon!$AH$4:$AI$10,2,FALSE),0)+IF('Crop 2'!$C$16=Carbon!$B156,'Crop 2'!$V$16*VLOOKUP('Crop 2'!$E$16,Carbon!$AH$4:$AI$10,2,FALSE),0)+IF('Crop 2'!$C$19=Carbon!$B156,'Crop 2'!$V$19*VLOOKUP('Crop 2'!$E$19,Carbon!$AH$4:$AI$10,2,FALSE),0)+IF('Crop 2'!$C$20=Carbon!$B156,'Crop 2'!$V$20*VLOOKUP('Crop 2'!$E$20,Carbon!$AH$4:$AI$10,2,FALSE),0)+IF('Crop 2'!$C$21=Carbon!$B156,'Crop 2'!$V$21*VLOOKUP('Crop 2'!$E$21,Carbon!$AH$4:$AI$10,2,FALSE),0)+IF('Crop 2'!$C$49=Carbon!$B156,'Crop 2'!$V$49*VLOOKUP('Crop 2'!$E$49,Carbon!$AH$4:$AI$10,2,FALSE),0)+IF('Crop 2'!$C$50=Carbon!$B156,'Crop 2'!$V$50*VLOOKUP('Crop 2'!$E$50,Carbon!$AH$4:$AI$10,2,FALSE),0)+IF('Crop 2'!$C$51=Carbon!$B156,'Crop 2'!$V$51*VLOOKUP('Crop 2'!$E$51,Carbon!$AH$4:$AI$10,2,FALSE),0)+IF('Crop 2'!$C$52=Carbon!$B156,'Crop 2'!$V$52*VLOOKUP('Crop 2'!$E$52,Carbon!$AH$4:$AI$10,2,FALSE),0)+IF('Crop 2'!$C$53=Carbon!$B156,'Crop 2'!$V$53*VLOOKUP('Crop 2'!$E$53,Carbon!$AH$4:$AI$10,2,FALSE),0)+IF('Crop 2'!$C$56=Carbon!$B156,'Crop 2'!$V$56*VLOOKUP('Crop 2'!$E$56,Carbon!$AH$4:$AI$10,2,FALSE),0)+IF('Crop 2'!$C$57=Carbon!$B156,'Crop 2'!$V$57*VLOOKUP('Crop 2'!$E$57,Carbon!$AH$4:$AI$10,2,FALSE),0)+IF('Crop 2'!$C$58=Carbon!$B156,'Crop 2'!$V$58*VLOOKUP('Crop 2'!$E$58,Carbon!$AH$4:$AI$10,2,FALSE),0)+IF('Crop 2'!$C$59=Carbon!$B156,'Crop 2'!$V$59*VLOOKUP('Crop 2'!$E$59,Carbon!$AH$4:$AI$10,2,FALSE),0)+IF('Crop 2'!$C$62=Carbon!$B156,'Crop 2'!$V$62*VLOOKUP('Crop 2'!$E$62,Carbon!$AH$4:$AI$10,2,FALSE),0)+IF('Crop 2'!$C$63=Carbon!$B156,'Crop 2'!$V$63*VLOOKUP('Crop 2'!$E$63,Carbon!$AH$4:$AI$10,2,FALSE),0)+IF('Crop 2'!$C$64=Carbon!$B156,'Crop 2'!$V$64*VLOOKUP('Crop 2'!$E$64,Carbon!$AH$4:$AI$10,2,FALSE),0)+IF('Crop 2'!$C$65=Carbon!$B156,'Crop 2'!$V$65*VLOOKUP('Crop 2'!$E$65,Carbon!$AH$4:$AI$10,2,FALSE),0))*$AL$20,2)","v":0},{"$f":"O156*Inputs!$D$15","v":0},{"$f":"ROUND((IF('Crop 3'!$C$14=Carbon!$B156,'Crop 3'!$V$14*VLOOKUP('Crop 3'!$E$14,Carbon!$AH$4:$AI$10,2,FALSE),0)+IF('Crop 3'!$C$15=Carbon!$B156,'Crop 3'!$V$15*VLOOKUP('Crop 3'!$E$15,Carbon!$AH$4:$AI$10,2,FALSE),0)+IF('Crop 3'!$C$16=Carbon!$B156,'Crop 3'!$V$16*VLOOKUP('Crop 3'!$E$16,Carbon!$AH$4:$AI$10,2,FALSE),0)+IF('Crop 3'!$C$19=Carbon!$B156,'Crop 3'!$V$19*VLOOKUP('Crop 3'!$E$19,Carbon!$AH$4:$AI$10,2,FALSE),0)+IF('Crop 3'!$C$20=Carbon!$B156,'Crop 3'!$V$20*VLOOKUP('Crop 3'!$E$20,Carbon!$AH$4:$AI$10,2,FALSE),0)+IF('Crop 3'!$C$21=Carbon!$B156,'Crop 3'!$V$21*VLOOKUP('Crop 3'!$E$21,Carbon!$AH$4:$AI$10,2,FALSE),0)+IF('Crop 3'!$C$49=Carbon!$B156,'Crop 3'!$V$49*VLOOKUP('Crop 3'!$E$49,Carbon!$AH$4:$AI$10,2,FALSE),0)+IF('Crop 3'!$C$50=Carbon!$B156,'Crop 3'!$V$50*VLOOKUP('Crop 3'!$E$50,Carbon!$AH$4:$AI$10,2,FALSE),0)+IF('Crop 3'!$C$51=Carbon!$B156,'Crop 3'!$V$51*VLOOKUP('Crop 3'!$E$51,Carbon!$AH$4:$AI$10,2,FALSE),0)+IF('Crop 3'!$C$52=Carbon!$B156,'Crop 3'!$V$52*VLOOKUP('Crop 3'!$E$52,Carbon!$AH$4:$AI$10,2,FALSE),0)+IF('Crop 3'!$C$53=Carbon!$B156,'Crop 3'!$V$53*VLOOKUP('Crop 3'!$E$53,Carbon!$AH$4:$AI$10,2,FALSE),0)+IF('Crop 3'!$C$56=Carbon!$B156,'Crop 3'!$V$56*VLOOKUP('Crop 3'!$E$56,Carbon!$AH$4:$AI$10,2,FALSE),0)+IF('Crop 3'!$C$57=Carbon!$B156,'Crop 3'!$V$57*VLOOKUP('Crop 3'!$E$57,Carbon!$AH$4:$AI$10,2,FALSE),0)+IF('Crop 3'!$C$58=Carbon!$B156,'Crop 3'!$V$58*VLOOKUP('Crop 3'!$E$58,Carbon!$AH$4:$AI$10,2,FALSE),0)+IF('Crop 3'!$C$59=Carbon!$B156,'Crop 3'!$V$59*VLOOKUP('Crop 3'!$E$59,Carbon!$AH$4:$AI$10,2,FALSE),0)+IF('Crop 3'!$C$62=Carbon!$B156,'Crop 3'!$V$62*VLOOKUP('Crop 3'!$E$62,Carbon!$AH$4:$AI$10,2,FALSE),0)+IF('Crop 3'!$C$63=Carbon!$B156,'Crop 3'!$V$63*VLOOKUP('Crop 3'!$E$63,Carbon!$AH$4:$AI$10,2,FALSE),0)+IF('Crop 3'!$C$64=Carbon!$B156,'Crop 3'!$V$64*VLOOKUP('Crop 3'!$E$64,Carbon!$AH$4:$AI$10,2,FALSE),0)+IF('Crop 3'!$C$65=Carbon!$B156,'Crop 3'!$V$65*VLOOKUP('Crop 3'!$E$65,Carbon!$AH$4:$AI$10,2,FALSE),0))*$AL$20,2)","v":0},{"$f":"Q156*Inputs!$D$17","v":0},{"$f":"ROUND(T156/Inputs!D$19,2)","v":0},0,null,null,0,{"$f":"W156*Inputs!$D$13","v":0},0,{"$f":"Y156*Inputs!$D$13","v":0},0,{"$f":"AA156*Inputs!$D$13","v":0},{"$f":"ROUND(AD156/Inputs!D$19,2)","v":0},0]
[null,{"$f":"Defaults!AH123","v":"Tordon 22K"},{"$f":"ROUND((IF('Crop 1'!$C$14=Carbon!$B157,'Crop 1'!$L$14*VLOOKUP('Crop 1'!$E$14,Carbon!$AH$4:$AI$10,2,FALSE),0)+IF('Crop 1'!$C$15=Carbon!$B157,'Crop 1'!$L$15*VLOOKUP('Crop 1'!$E$15,Carbon!$AH$4:$AI$10,2,FALSE),0)+IF('Crop 1'!$C$16=Carbon!$B157,'Crop 1'!$L$16*VLOOKUP('Crop 1'!$E$16,Carbon!$AH$4:$AI$10,2,FALSE),0)+IF('Crop 1'!$C$19=Carbon!$B157,'Crop 1'!$L$19*VLOOKUP('Crop 1'!$E$19,Carbon!$AH$4:$AI$10,2,FALSE),0)+IF('Crop 1'!$C$20=Carbon!$B157,'Crop 1'!$L$20*VLOOKUP('Crop 1'!$E$20,Carbon!$AH$4:$AI$10,2,FALSE),0)+IF('Crop 1'!$C$21=Carbon!$B157,'Crop 1'!$L$21*VLOOKUP('Crop 1'!$E$21,Carbon!$AH$4:$AI$10,2,FALSE),0)+IF('Crop 1'!$C$49=Carbon!$B157,'Crop 1'!$L$49*VLOOKUP('Crop 1'!$E$49,Carbon!$AH$4:$AI$10,2,FALSE),0)+IF('Crop 1'!$C$50=Carbon!$B157,'Crop 1'!$L$50*VLOOKUP('Crop 1'!$E$50,Carbon!$AH$4:$AI$10,2,FALSE),0)+IF('Crop 1'!$C$51=Carbon!$B157,'Crop 1'!$L$51*VLOOKUP('Crop 1'!$E$51,Carbon!$AH$4:$AI$10,2,FALSE),0)+IF('Crop 1'!$C$52=Carbon!$B157,'Crop 1'!$L$52*VLOOKUP('Crop 1'!$E$52,Carbon!$AH$4:$AI$10,2,FALSE),0)+IF('Crop 1'!$C$53=Carbon!$B157,'Crop 1'!$L$53*VLOOKUP('Crop 1'!$E$53,Carbon!$AH$4:$AI$10,2,FALSE),0)+IF('Crop 1'!$C$56=Carbon!$B157,'Crop 1'!$L$56*VLOOKUP('Crop 1'!$E$56,Carbon!$AH$4:$AI$10,2,FALSE),0)+IF('Crop 1'!$C$57=Carbon!$B157,'Crop 1'!$L$57*VLOOKUP('Crop 1'!$E$57,Carbon!$AH$4:$AI$10,2,FALSE),0)+IF('Crop 1'!$C$58=Carbon!$B157,'Crop 1'!$L$58*VLOOKUP('Crop 1'!$E$58,Carbon!$AH$4:$AI$10,2,FALSE),0)+IF('Crop 1'!$C$59=Carbon!$B157,'Crop 1'!$L$59*VLOOKUP('Crop 1'!$E$59,Carbon!$AH$4:$AI$10,2,FALSE),0)+IF('Crop 1'!$C$62=Carbon!$B157,'Crop 1'!$L$62*VLOOKUP('Crop 1'!$E$62,Carbon!$AH$4:$AI$10,2,FALSE),0)+IF('Crop 1'!$C$63=Carbon!$B157,'Crop 1'!$L$63*VLOOKUP('Crop 1'!$E$63,Carbon!$AH$4:$AI$10,2,FALSE),0)+IF('Crop 1'!$C$64=Carbon!$B157,'Crop 1'!$L$64*VLOOKUP('Crop 1'!$E$64,Carbon!$AH$4:$AI$10,2,FALSE),0)+IF('Crop 1'!$C$65=Carbon!$B157,'Crop 1'!$L$65*VLOOKUP('Crop 1'!$E$65,Carbon!$AH$4:$AI$10,2,FALSE),0))*$AL$20,2)","v":0},{"$f":"C157*Inputs!$D$13","v":0},{"$f":"ROUND((IF('Crop 2'!$C$14=Carbon!$B157,'Crop 2'!$L$14*VLOOKUP('Crop 2'!$E$14,Carbon!$AH$4:$AI$10,2,FALSE),0)+IF('Crop 2'!$C$15=Carbon!$B157,'Crop 2'!$L$15*VLOOKUP('Crop 2'!$E$15,Carbon!$AH$4:$AI$10,2,FALSE),0)+IF('Crop 2'!$C$16=Carbon!$B157,'Crop 2'!$L$16*VLOOKUP('Crop 2'!$E$16,Carbon!$AH$4:$AI$10,2,FALSE),0)+IF('Crop 2'!$C$19=Carbon!$B157,'Crop 2'!$L$19*VLOOKUP('Crop 2'!$E$19,Carbon!$AH$4:$AI$10,2,FALSE),0)+IF('Crop 2'!$C$20=Carbon!$B157,'Crop 2'!$L$20*VLOOKUP('Crop 2'!$E$20,Carbon!$AH$4:$AI$10,2,FALSE),0)+IF('Crop 2'!$C$21=Carbon!$B157,'Crop 2'!$L$21*VLOOKUP('Crop 2'!$E$21,Carbon!$AH$4:$AI$10,2,FALSE),0)+IF('Crop 2'!$C$49=Carbon!$B157,'Crop 2'!$L$49*VLOOKUP('Crop 2'!$E$49,Carbon!$AH$4:$AI$10,2,FALSE),0)+IF('Crop 2'!$C$50=Carbon!$B157,'Crop 2'!$L$50*VLOOKUP('Crop 2'!$E$50,Carbon!$AH$4:$AI$10,2,FALSE),0)+IF('Crop 2'!$C$51=Carbon!$B157,'Crop 2'!$L$51*VLOOKUP('Crop 2'!$E$51,Carbon!$AH$4:$AI$10,2,FALSE),0)+IF('Crop 2'!$C$52=Carbon!$B157,'Crop 2'!$L$52*VLOOKUP('Crop 2'!$E$52,Carbon!$AH$4:$AI$10,2,FALSE),0)+IF('Crop 2'!$C$53=Carbon!$B157,'Crop 2'!$L$53*VLOOKUP('Crop 2'!$E$53,Carbon!$AH$4:$AI$10,2,FALSE),0)+IF('Crop 2'!$C$56=Carbon!$B157,'Crop 2'!$L$56*VLOOKUP('Crop 2'!$E$56,Carbon!$AH$4:$AI$10,2,FALSE),0)+IF('Crop 2'!$C$57=Carbon!$B157,'Crop 2'!$L$57*VLOOKUP('Crop 2'!$E$57,Carbon!$AH$4:$AI$10,2,FALSE),0)+IF('Crop 2'!$C$58=Carbon!$B157,'Crop 2'!$L$58*VLOOKUP('Crop 2'!$E$58,Carbon!$AH$4:$AI$10,2,FALSE),0)+IF('Crop 2'!$C$59=Carbon!$B157,'Crop 2'!$L$59*VLOOKUP('Crop 2'!$E$59,Carbon!$AH$4:$AI$10,2,FALSE),0)+IF('Crop 2'!$C$62=Carbon!$B157,'Crop 2'!$L$62*VLOOKUP('Crop 2'!$E$62,Carbon!$AH$4:$AI$10,2,FALSE),0)+IF('Crop 2'!$C$63=Carbon!$B157,'Crop 2'!$L$63*VLOOKUP('Crop 2'!$E$63,Carbon!$AH$4:$AI$10,2,FALSE),0)+IF('Crop 2'!$C$64=Carbon!$B157,'Crop 2'!$L$64*VLOOKUP('Crop 2'!$E$64,Carbon!$AH$4:$AI$10,2,FALSE),0)+IF('Crop 2'!$C$65=Carbon!$B157,'Crop 2'!$L$65*VLOOKUP('Crop 2'!$E$65,Carbon!$AH$4:$AI$10,2,FALSE),0))*$AL$20,2)","v":0},{"$f":"E157*Inputs!$D$15","v":0},{"$f":"ROUND((IF('Crop 3'!$C$14=Carbon!$B157,'Crop 3'!$L$14*VLOOKUP('Crop 3'!$E$14,Carbon!$AH$4:$AI$10,2,FALSE),0)+IF('Crop 3'!$C$15=Carbon!$B157,'Crop 3'!$L$15*VLOOKUP('Crop 3'!$E$15,Carbon!$AH$4:$AI$10,2,FALSE),0)+IF('Crop 3'!$C$16=Carbon!$B157,'Crop 3'!$L$16*VLOOKUP('Crop 3'!$E$16,Carbon!$AH$4:$AI$10,2,FALSE),0)+IF('Crop 3'!$C$19=Carbon!$B157,'Crop 3'!$L$19*VLOOKUP('Crop 3'!$E$19,Carbon!$AH$4:$AI$10,2,FALSE),0)+IF('Crop 3'!$C$20=Carbon!$B157,'Crop 3'!$L$20*VLOOKUP('Crop 3'!$E$20,Carbon!$AH$4:$AI$10,2,FALSE),0)+IF('Crop 3'!$C$21=Carbon!$B157,'Crop 3'!$L$21*VLOOKUP('Crop 3'!$E$21,Carbon!$AH$4:$AI$10,2,FALSE),0)+IF('Crop 3'!$C$49=Carbon!$B157,'Crop 3'!$L$49*VLOOKUP('Crop 3'!$E$49,Carbon!$AH$4:$AI$10,2,FALSE),0)+IF('Crop 3'!$C$50=Carbon!$B157,'Crop 3'!$L$50*VLOOKUP('Crop 3'!$E$50,Carbon!$AH$4:$AI$10,2,FALSE),0)+IF('Crop 3'!$C$51=Carbon!$B157,'Crop 3'!$L$51*VLOOKUP('Crop 3'!$E$51,Carbon!$AH$4:$AI$10,2,FALSE),0)+IF('Crop 3'!$C$52=Carbon!$B157,'Crop 3'!$L$52*VLOOKUP('Crop 3'!$E$52,Carbon!$AH$4:$AI$10,2,FALSE),0)+IF('Crop 3'!$C$53=Carbon!$B157,'Crop 3'!$L$53*VLOOKUP('Crop 3'!$E$53,Carbon!$AH$4:$AI$10,2,FALSE),0)+IF('Crop 3'!$C$56=Carbon!$B157,'Crop 3'!$L$56*VLOOKUP('Crop 3'!$E$56,Carbon!$AH$4:$AI$10,2,FALSE),0)+IF('Crop 3'!$C$57=Carbon!$B157,'Crop 3'!$L$57*VLOOKUP('Crop 3'!$E$57,Carbon!$AH$4:$AI$10,2,FALSE),0)+IF('Crop 3'!$C$58=Carbon!$B157,'Crop 3'!$L$58*VLOOKUP('Crop 3'!$E$58,Carbon!$AH$4:$AI$10,2,FALSE),0)+IF('Crop 3'!$C$59=Carbon!$B157,'Crop 3'!$L$59*VLOOKUP('Crop 3'!$E$59,Carbon!$AH$4:$AI$10,2,FALSE),0)+IF('Crop 3'!$C$62=Carbon!$B157,'Crop 3'!$L$62*VLOOKUP('Crop 3'!$E$62,Carbon!$AH$4:$AI$10,2,FALSE),0)+IF('Crop 3'!$C$63=Carbon!$B157,'Crop 3'!$L$63*VLOOKUP('Crop 3'!$E$63,Carbon!$AH$4:$AI$10,2,FALSE),0)+IF('Crop 3'!$C$64=Carbon!$B157,'Crop 3'!$L$64*VLOOKUP('Crop 3'!$E$64,Carbon!$AH$4:$AI$10,2,FALSE),0)+IF('Crop 3'!$C$65=Carbon!$B157,'Crop 3'!$L$65*VLOOKUP('Crop 3'!$E$65,Carbon!$AH$4:$AI$10,2,FALSE),0))*$AL$20,2)","v":0},{"$f":"G157*Inputs!$D$17","v":0},{"$f":"ROUND(J157/Inputs!D$19,2)","v":0},0,null,null,{"$f":"ROUND((IF('Crop 1'!$C$14=Carbon!$B157,'Crop 1'!$V$14*VLOOKUP('Crop 1'!$E$14,Carbon!$AH$4:$AI$10,2,FALSE),0)+IF('Crop 1'!$C$15=Carbon!$B157,'Crop 1'!$V$15*VLOOKUP('Crop 1'!$E$15,Carbon!$AH$4:$AI$10,2,FALSE),0)+IF('Crop 1'!$C$16=Carbon!$B157,'Crop 1'!$V$16*VLOOKUP('Crop 1'!$E$16,Carbon!$AH$4:$AI$10,2,FALSE),0)+IF('Crop 1'!$C$19=Carbon!$B157,'Crop 1'!$V$19*VLOOKUP('Crop 1'!$E$19,Carbon!$AH$4:$AI$10,2,FALSE),0)+IF('Crop 1'!$C$20=Carbon!$B157,'Crop 1'!$V$20*VLOOKUP('Crop 1'!$E$20,Carbon!$AH$4:$AI$10,2,FALSE),0)+IF('Crop 1'!$C$21=Carbon!$B157,'Crop 1'!$V$21*VLOOKUP('Crop 1'!$E$21,Carbon!$AH$4:$AI$10,2,FALSE),0)+IF('Crop 1'!$C$49=Carbon!$B157,'Crop 1'!$V$49*VLOOKUP('Crop 1'!$E$49,Carbon!$AH$4:$AI$10,2,FALSE),0)+IF('Crop 1'!$C$50=Carbon!$B157,'Crop 1'!$V$50*VLOOKUP('Crop 1'!$E$50,Carbon!$AH$4:$AI$10,2,FALSE),0)+IF('Crop 1'!$C$51=Carbon!$B157,'Crop 1'!$V$51*VLOOKUP('Crop 1'!$E$51,Carbon!$AH$4:$AI$10,2,FALSE),0)+IF('Crop 1'!$C$52=Carbon!$B157,'Crop 1'!$V$52*VLOOKUP('Crop 1'!$E$52,Carbon!$AH$4:$AI$10,2,FALSE),0)+IF('Crop 1'!$C$53=Carbon!$B157,'Crop 1'!$V$53*VLOOKUP('Crop 1'!$E$53,Carbon!$AH$4:$AI$10,2,FALSE),0)+IF('Crop 1'!$C$56=Carbon!$B157,'Crop 1'!$V$56*VLOOKUP('Crop 1'!$E$56,Carbon!$AH$4:$AI$10,2,FALSE),0)+IF('Crop 1'!$C$57=Carbon!$B157,'Crop 1'!$V$57*VLOOKUP('Crop 1'!$E$57,Carbon!$AH$4:$AI$10,2,FALSE),0)+IF('Crop 1'!$C$58=Carbon!$B157,'Crop 1'!$V$58*VLOOKUP('Crop 1'!$E$58,Carbon!$AH$4:$AI$10,2,FALSE),0)+IF('Crop 1'!$C$59=Carbon!$B157,'Crop 1'!$V$59*VLOOKUP('Crop 1'!$E$59,Carbon!$AH$4:$AI$10,2,FALSE),0)+IF('Crop 1'!$C$62=Carbon!$B157,'Crop 1'!$V$62*VLOOKUP('Crop 1'!$E$62,Carbon!$AH$4:$AI$10,2,FALSE),0)+IF('Crop 1'!$C$63=Carbon!$B157,'Crop 1'!$V$63*VLOOKUP('Crop 1'!$E$63,Carbon!$AH$4:$AI$10,2,FALSE),0)+IF('Crop 1'!$C$64=Carbon!$B157,'Crop 1'!$V$64*VLOOKUP('Crop 1'!$E$64,Carbon!$AH$4:$AI$10,2,FALSE),0)+IF('Crop 1'!$C$65=Carbon!$B157,'Crop 1'!$V$65*VLOOKUP('Crop 1'!$E$65,Carbon!$AH$4:$AI$10,2,FALSE),0))*$AL$20,2)","v":0},{"$f":"M157*Inputs!$D$13","v":0},{"$f":"ROUND((IF('Crop 2'!$C$14=Carbon!$B157,'Crop 2'!$V$14*VLOOKUP('Crop 2'!$E$14,Carbon!$AH$4:$AI$10,2,FALSE),0)+IF('Crop 2'!$C$15=Carbon!$B157,'Crop 2'!$V$15*VLOOKUP('Crop 2'!$E$15,Carbon!$AH$4:$AI$10,2,FALSE),0)+IF('Crop 2'!$C$16=Carbon!$B157,'Crop 2'!$V$16*VLOOKUP('Crop 2'!$E$16,Carbon!$AH$4:$AI$10,2,FALSE),0)+IF('Crop 2'!$C$19=Carbon!$B157,'Crop 2'!$V$19*VLOOKUP('Crop 2'!$E$19,Carbon!$AH$4:$AI$10,2,FALSE),0)+IF('Crop 2'!$C$20=Carbon!$B157,'Crop 2'!$V$20*VLOOKUP('Crop 2'!$E$20,Carbon!$AH$4:$AI$10,2,FALSE),0)+IF('Crop 2'!$C$21=Carbon!$B157,'Crop 2'!$V$21*VLOOKUP('Crop 2'!$E$21,Carbon!$AH$4:$AI$10,2,FALSE),0)+IF('Crop 2'!$C$49=Carbon!$B157,'Crop 2'!$V$49*VLOOKUP('Crop 2'!$E$49,Carbon!$AH$4:$AI$10,2,FALSE),0)+IF('Crop 2'!$C$50=Carbon!$B157,'Crop 2'!$V$50*VLOOKUP('Crop 2'!$E$50,Carbon!$AH$4:$AI$10,2,FALSE),0)+IF('Crop 2'!$C$51=Carbon!$B157,'Crop 2'!$V$51*VLOOKUP('Crop 2'!$E$51,Carbon!$AH$4:$AI$10,2,FALSE),0)+IF('Crop 2'!$C$52=Carbon!$B157,'Crop 2'!$V$52*VLOOKUP('Crop 2'!$E$52,Carbon!$AH$4:$AI$10,2,FALSE),0)+IF('Crop 2'!$C$53=Carbon!$B157,'Crop 2'!$V$53*VLOOKUP('Crop 2'!$E$53,Carbon!$AH$4:$AI$10,2,FALSE),0)+IF('Crop 2'!$C$56=Carbon!$B157,'Crop 2'!$V$56*VLOOKUP('Crop 2'!$E$56,Carbon!$AH$4:$AI$10,2,FALSE),0)+IF('Crop 2'!$C$57=Carbon!$B157,'Crop 2'!$V$57*VLOOKUP('Crop 2'!$E$57,Carbon!$AH$4:$AI$10,2,FALSE),0)+IF('Crop 2'!$C$58=Carbon!$B157,'Crop 2'!$V$58*VLOOKUP('Crop 2'!$E$58,Carbon!$AH$4:$AI$10,2,FALSE),0)+IF('Crop 2'!$C$59=Carbon!$B157,'Crop 2'!$V$59*VLOOKUP('Crop 2'!$E$59,Carbon!$AH$4:$AI$10,2,FALSE),0)+IF('Crop 2'!$C$62=Carbon!$B157,'Crop 2'!$V$62*VLOOKUP('Crop 2'!$E$62,Carbon!$AH$4:$AI$10,2,FALSE),0)+IF('Crop 2'!$C$63=Carbon!$B157,'Crop 2'!$V$63*VLOOKUP('Crop 2'!$E$63,Carbon!$AH$4:$AI$10,2,FALSE),0)+IF('Crop 2'!$C$64=Carbon!$B157,'Crop 2'!$V$64*VLOOKUP('Crop 2'!$E$64,Carbon!$AH$4:$AI$10,2,FALSE),0)+IF('Crop 2'!$C$65=Carbon!$B157,'Crop 2'!$V$65*VLOOKUP('Crop 2'!$E$65,Carbon!$AH$4:$AI$10,2,FALSE),0))*$AL$20,2)","v":0},{"$f":"O157*Inputs!$D$15","v":0},{"$f":"ROUND((IF('Crop 3'!$C$14=Carbon!$B157,'Crop 3'!$V$14*VLOOKUP('Crop 3'!$E$14,Carbon!$AH$4:$AI$10,2,FALSE),0)+IF('Crop 3'!$C$15=Carbon!$B157,'Crop 3'!$V$15*VLOOKUP('Crop 3'!$E$15,Carbon!$AH$4:$AI$10,2,FALSE),0)+IF('Crop 3'!$C$16=Carbon!$B157,'Crop 3'!$V$16*VLOOKUP('Crop 3'!$E$16,Carbon!$AH$4:$AI$10,2,FALSE),0)+IF('Crop 3'!$C$19=Carbon!$B157,'Crop 3'!$V$19*VLOOKUP('Crop 3'!$E$19,Carbon!$AH$4:$AI$10,2,FALSE),0)+IF('Crop 3'!$C$20=Carbon!$B157,'Crop 3'!$V$20*VLOOKUP('Crop 3'!$E$20,Carbon!$AH$4:$AI$10,2,FALSE),0)+IF('Crop 3'!$C$21=Carbon!$B157,'Crop 3'!$V$21*VLOOKUP('Crop 3'!$E$21,Carbon!$AH$4:$AI$10,2,FALSE),0)+IF('Crop 3'!$C$49=Carbon!$B157,'Crop 3'!$V$49*VLOOKUP('Crop 3'!$E$49,Carbon!$AH$4:$AI$10,2,FALSE),0)+IF('Crop 3'!$C$50=Carbon!$B157,'Crop 3'!$V$50*VLOOKUP('Crop 3'!$E$50,Carbon!$AH$4:$AI$10,2,FALSE),0)+IF('Crop 3'!$C$51=Carbon!$B157,'Crop 3'!$V$51*VLOOKUP('Crop 3'!$E$51,Carbon!$AH$4:$AI$10,2,FALSE),0)+IF('Crop 3'!$C$52=Carbon!$B157,'Crop 3'!$V$52*VLOOKUP('Crop 3'!$E$52,Carbon!$AH$4:$AI$10,2,FALSE),0)+IF('Crop 3'!$C$53=Carbon!$B157,'Crop 3'!$V$53*VLOOKUP('Crop 3'!$E$53,Carbon!$AH$4:$AI$10,2,FALSE),0)+IF('Crop 3'!$C$56=Carbon!$B157,'Crop 3'!$V$56*VLOOKUP('Crop 3'!$E$56,Carbon!$AH$4:$AI$10,2,FALSE),0)+IF('Crop 3'!$C$57=Carbon!$B157,'Crop 3'!$V$57*VLOOKUP('Crop 3'!$E$57,Carbon!$AH$4:$AI$10,2,FALSE),0)+IF('Crop 3'!$C$58=Carbon!$B157,'Crop 3'!$V$58*VLOOKUP('Crop 3'!$E$58,Carbon!$AH$4:$AI$10,2,FALSE),0)+IF('Crop 3'!$C$59=Carbon!$B157,'Crop 3'!$V$59*VLOOKUP('Crop 3'!$E$59,Carbon!$AH$4:$AI$10,2,FALSE),0)+IF('Crop 3'!$C$62=Carbon!$B157,'Crop 3'!$V$62*VLOOKUP('Crop 3'!$E$62,Carbon!$AH$4:$AI$10,2,FALSE),0)+IF('Crop 3'!$C$63=Carbon!$B157,'Crop 3'!$V$63*VLOOKUP('Crop 3'!$E$63,Carbon!$AH$4:$AI$10,2,FALSE),0)+IF('Crop 3'!$C$64=Carbon!$B157,'Crop 3'!$V$64*VLOOKUP('Crop 3'!$E$64,Carbon!$AH$4:$AI$10,2,FALSE),0)+IF('Crop 3'!$C$65=Carbon!$B157,'Crop 3'!$V$65*VLOOKUP('Crop 3'!$E$65,Carbon!$AH$4:$AI$10,2,FALSE),0))*$AL$20,2)","v":0},{"$f":"Q157*Inputs!$D$17","v":0},{"$f":"ROUND(T157/Inputs!D$19,2)","v":0},0,null,null,0,{"$f":"W157*Inputs!$D$13","v":0},0,{"$f":"Y157*Inputs!$D$13","v":0},0,{"$f":"AA157*Inputs!$D$13","v":0},{"$f":"ROUND(AD157/Inputs!D$19,2)","v":0},0]
[null,{"$f":"Defaults!AH124","v":"Treflan"},{"$f":"ROUND((IF('Crop 1'!$C$14=Carbon!$B158,'Crop 1'!$L$14*VLOOKUP('Crop 1'!$E$14,Carbon!$AH$4:$AI$10,2,FALSE),0)+IF('Crop 1'!$C$15=Carbon!$B158,'Crop 1'!$L$15*VLOOKUP('Crop 1'!$E$15,Carbon!$AH$4:$AI$10,2,FALSE),0)+IF('Crop 1'!$C$16=Carbon!$B158,'Crop 1'!$L$16*VLOOKUP('Crop 1'!$E$16,Carbon!$AH$4:$AI$10,2,FALSE),0)+IF('Crop 1'!$C$19=Carbon!$B158,'Crop 1'!$L$19*VLOOKUP('Crop 1'!$E$19,Carbon!$AH$4:$AI$10,2,FALSE),0)+IF('Crop 1'!$C$20=Carbon!$B158,'Crop 1'!$L$20*VLOOKUP('Crop 1'!$E$20,Carbon!$AH$4:$AI$10,2,FALSE),0)+IF('Crop 1'!$C$21=Carbon!$B158,'Crop 1'!$L$21*VLOOKUP('Crop 1'!$E$21,Carbon!$AH$4:$AI$10,2,FALSE),0)+IF('Crop 1'!$C$49=Carbon!$B158,'Crop 1'!$L$49*VLOOKUP('Crop 1'!$E$49,Carbon!$AH$4:$AI$10,2,FALSE),0)+IF('Crop 1'!$C$50=Carbon!$B158,'Crop 1'!$L$50*VLOOKUP('Crop 1'!$E$50,Carbon!$AH$4:$AI$10,2,FALSE),0)+IF('Crop 1'!$C$51=Carbon!$B158,'Crop 1'!$L$51*VLOOKUP('Crop 1'!$E$51,Carbon!$AH$4:$AI$10,2,FALSE),0)+IF('Crop 1'!$C$52=Carbon!$B158,'Crop 1'!$L$52*VLOOKUP('Crop 1'!$E$52,Carbon!$AH$4:$AI$10,2,FALSE),0)+IF('Crop 1'!$C$53=Carbon!$B158,'Crop 1'!$L$53*VLOOKUP('Crop 1'!$E$53,Carbon!$AH$4:$AI$10,2,FALSE),0)+IF('Crop 1'!$C$56=Carbon!$B158,'Crop 1'!$L$56*VLOOKUP('Crop 1'!$E$56,Carbon!$AH$4:$AI$10,2,FALSE),0)+IF('Crop 1'!$C$57=Carbon!$B158,'Crop 1'!$L$57*VLOOKUP('Crop 1'!$E$57,Carbon!$AH$4:$AI$10,2,FALSE),0)+IF('Crop 1'!$C$58=Carbon!$B158,'Crop 1'!$L$58*VLOOKUP('Crop 1'!$E$58,Carbon!$AH$4:$AI$10,2,FALSE),0)+IF('Crop 1'!$C$59=Carbon!$B158,'Crop 1'!$L$59*VLOOKUP('Crop 1'!$E$59,Carbon!$AH$4:$AI$10,2,FALSE),0)+IF('Crop 1'!$C$62=Carbon!$B158,'Crop 1'!$L$62*VLOOKUP('Crop 1'!$E$62,Carbon!$AH$4:$AI$10,2,FALSE),0)+IF('Crop 1'!$C$63=Carbon!$B158,'Crop 1'!$L$63*VLOOKUP('Crop 1'!$E$63,Carbon!$AH$4:$AI$10,2,FALSE),0)+IF('Crop 1'!$C$64=Carbon!$B158,'Crop 1'!$L$64*VLOOKUP('Crop 1'!$E$64,Carbon!$AH$4:$AI$10,2,FALSE),0)+IF('Crop 1'!$C$65=Carbon!$B158,'Crop 1'!$L$65*VLOOKUP('Crop 1'!$E$65,Carbon!$AH$4:$AI$10,2,FALSE),0))*$AL$20,2)","v":0},{"$f":"C158*Inputs!$D$13","v":0},{"$f":"ROUND((IF('Crop 2'!$C$14=Carbon!$B158,'Crop 2'!$L$14*VLOOKUP('Crop 2'!$E$14,Carbon!$AH$4:$AI$10,2,FALSE),0)+IF('Crop 2'!$C$15=Carbon!$B158,'Crop 2'!$L$15*VLOOKUP('Crop 2'!$E$15,Carbon!$AH$4:$AI$10,2,FALSE),0)+IF('Crop 2'!$C$16=Carbon!$B158,'Crop 2'!$L$16*VLOOKUP('Crop 2'!$E$16,Carbon!$AH$4:$AI$10,2,FALSE),0)+IF('Crop 2'!$C$19=Carbon!$B158,'Crop 2'!$L$19*VLOOKUP('Crop 2'!$E$19,Carbon!$AH$4:$AI$10,2,FALSE),0)+IF('Crop 2'!$C$20=Carbon!$B158,'Crop 2'!$L$20*VLOOKUP('Crop 2'!$E$20,Carbon!$AH$4:$AI$10,2,FALSE),0)+IF('Crop 2'!$C$21=Carbon!$B158,'Crop 2'!$L$21*VLOOKUP('Crop 2'!$E$21,Carbon!$AH$4:$AI$10,2,FALSE),0)+IF('Crop 2'!$C$49=Carbon!$B158,'Crop 2'!$L$49*VLOOKUP('Crop 2'!$E$49,Carbon!$AH$4:$AI$10,2,FALSE),0)+IF('Crop 2'!$C$50=Carbon!$B158,'Crop 2'!$L$50*VLOOKUP('Crop 2'!$E$50,Carbon!$AH$4:$AI$10,2,FALSE),0)+IF('Crop 2'!$C$51=Carbon!$B158,'Crop 2'!$L$51*VLOOKUP('Crop 2'!$E$51,Carbon!$AH$4:$AI$10,2,FALSE),0)+IF('Crop 2'!$C$52=Carbon!$B158,'Crop 2'!$L$52*VLOOKUP('Crop 2'!$E$52,Carbon!$AH$4:$AI$10,2,FALSE),0)+IF('Crop 2'!$C$53=Carbon!$B158,'Crop 2'!$L$53*VLOOKUP('Crop 2'!$E$53,Carbon!$AH$4:$AI$10,2,FALSE),0)+IF('Crop 2'!$C$56=Carbon!$B158,'Crop 2'!$L$56*VLOOKUP('Crop 2'!$E$56,Carbon!$AH$4:$AI$10,2,FALSE),0)+IF('Crop 2'!$C$57=Carbon!$B158,'Crop 2'!$L$57*VLOOKUP('Crop 2'!$E$57,Carbon!$AH$4:$AI$10,2,FALSE),0)+IF('Crop 2'!$C$58=Carbon!$B158,'Crop 2'!$L$58*VLOOKUP('Crop 2'!$E$58,Carbon!$AH$4:$AI$10,2,FALSE),0)+IF('Crop 2'!$C$59=Carbon!$B158,'Crop 2'!$L$59*VLOOKUP('Crop 2'!$E$59,Carbon!$AH$4:$AI$10,2,FALSE),0)+IF('Crop 2'!$C$62=Carbon!$B158,'Crop 2'!$L$62*VLOOKUP('Crop 2'!$E$62,Carbon!$AH$4:$AI$10,2,FALSE),0)+IF('Crop 2'!$C$63=Carbon!$B158,'Crop 2'!$L$63*VLOOKUP('Crop 2'!$E$63,Carbon!$AH$4:$AI$10,2,FALSE),0)+IF('Crop 2'!$C$64=Carbon!$B158,'Crop 2'!$L$64*VLOOKUP('Crop 2'!$E$64,Carbon!$AH$4:$AI$10,2,FALSE),0)+IF('Crop 2'!$C$65=Carbon!$B158,'Crop 2'!$L$65*VLOOKUP('Crop 2'!$E$65,Carbon!$AH$4:$AI$10,2,FALSE),0))*$AL$20,2)","v":0},{"$f":"E158*Inputs!$D$15","v":0},{"$f":"ROUND((IF('Crop 3'!$C$14=Carbon!$B158,'Crop 3'!$L$14*VLOOKUP('Crop 3'!$E$14,Carbon!$AH$4:$AI$10,2,FALSE),0)+IF('Crop 3'!$C$15=Carbon!$B158,'Crop 3'!$L$15*VLOOKUP('Crop 3'!$E$15,Carbon!$AH$4:$AI$10,2,FALSE),0)+IF('Crop 3'!$C$16=Carbon!$B158,'Crop 3'!$L$16*VLOOKUP('Crop 3'!$E$16,Carbon!$AH$4:$AI$10,2,FALSE),0)+IF('Crop 3'!$C$19=Carbon!$B158,'Crop 3'!$L$19*VLOOKUP('Crop 3'!$E$19,Carbon!$AH$4:$AI$10,2,FALSE),0)+IF('Crop 3'!$C$20=Carbon!$B158,'Crop 3'!$L$20*VLOOKUP('Crop 3'!$E$20,Carbon!$AH$4:$AI$10,2,FALSE),0)+IF('Crop 3'!$C$21=Carbon!$B158,'Crop 3'!$L$21*VLOOKUP('Crop 3'!$E$21,Carbon!$AH$4:$AI$10,2,FALSE),0)+IF('Crop 3'!$C$49=Carbon!$B158,'Crop 3'!$L$49*VLOOKUP('Crop 3'!$E$49,Carbon!$AH$4:$AI$10,2,FALSE),0)+IF('Crop 3'!$C$50=Carbon!$B158,'Crop 3'!$L$50*VLOOKUP('Crop 3'!$E$50,Carbon!$AH$4:$AI$10,2,FALSE),0)+IF('Crop 3'!$C$51=Carbon!$B158,'Crop 3'!$L$51*VLOOKUP('Crop 3'!$E$51,Carbon!$AH$4:$AI$10,2,FALSE),0)+IF('Crop 3'!$C$52=Carbon!$B158,'Crop 3'!$L$52*VLOOKUP('Crop 3'!$E$52,Carbon!$AH$4:$AI$10,2,FALSE),0)+IF('Crop 3'!$C$53=Carbon!$B158,'Crop 3'!$L$53*VLOOKUP('Crop 3'!$E$53,Carbon!$AH$4:$AI$10,2,FALSE),0)+IF('Crop 3'!$C$56=Carbon!$B158,'Crop 3'!$L$56*VLOOKUP('Crop 3'!$E$56,Carbon!$AH$4:$AI$10,2,FALSE),0)+IF('Crop 3'!$C$57=Carbon!$B158,'Crop 3'!$L$57*VLOOKUP('Crop 3'!$E$57,Carbon!$AH$4:$AI$10,2,FALSE),0)+IF('Crop 3'!$C$58=Carbon!$B158,'Crop 3'!$L$58*VLOOKUP('Crop 3'!$E$58,Carbon!$AH$4:$AI$10,2,FALSE),0)+IF('Crop 3'!$C$59=Carbon!$B158,'Crop 3'!$L$59*VLOOKUP('Crop 3'!$E$59,Carbon!$AH$4:$AI$10,2,FALSE),0)+IF('Crop 3'!$C$62=Carbon!$B158,'Crop 3'!$L$62*VLOOKUP('Crop 3'!$E$62,Carbon!$AH$4:$AI$10,2,FALSE),0)+IF('Crop 3'!$C$63=Carbon!$B158,'Crop 3'!$L$63*VLOOKUP('Crop 3'!$E$63,Carbon!$AH$4:$AI$10,2,FALSE),0)+IF('Crop 3'!$C$64=Carbon!$B158,'Crop 3'!$L$64*VLOOKUP('Crop 3'!$E$64,Carbon!$AH$4:$AI$10,2,FALSE),0)+IF('Crop 3'!$C$65=Carbon!$B158,'Crop 3'!$L$65*VLOOKUP('Crop 3'!$E$65,Carbon!$AH$4:$AI$10,2,FALSE),0))*$AL$20,2)","v":0},{"$f":"G158*Inputs!$D$17","v":0},{"$f":"ROUND(J158/Inputs!D$19,2)","v":0},0,null,null,{"$f":"ROUND((IF('Crop 1'!$C$14=Carbon!$B158,'Crop 1'!$V$14*VLOOKUP('Crop 1'!$E$14,Carbon!$AH$4:$AI$10,2,FALSE),0)+IF('Crop 1'!$C$15=Carbon!$B158,'Crop 1'!$V$15*VLOOKUP('Crop 1'!$E$15,Carbon!$AH$4:$AI$10,2,FALSE),0)+IF('Crop 1'!$C$16=Carbon!$B158,'Crop 1'!$V$16*VLOOKUP('Crop 1'!$E$16,Carbon!$AH$4:$AI$10,2,FALSE),0)+IF('Crop 1'!$C$19=Carbon!$B158,'Crop 1'!$V$19*VLOOKUP('Crop 1'!$E$19,Carbon!$AH$4:$AI$10,2,FALSE),0)+IF('Crop 1'!$C$20=Carbon!$B158,'Crop 1'!$V$20*VLOOKUP('Crop 1'!$E$20,Carbon!$AH$4:$AI$10,2,FALSE),0)+IF('Crop 1'!$C$21=Carbon!$B158,'Crop 1'!$V$21*VLOOKUP('Crop 1'!$E$21,Carbon!$AH$4:$AI$10,2,FALSE),0)+IF('Crop 1'!$C$49=Carbon!$B158,'Crop 1'!$V$49*VLOOKUP('Crop 1'!$E$49,Carbon!$AH$4:$AI$10,2,FALSE),0)+IF('Crop 1'!$C$50=Carbon!$B158,'Crop 1'!$V$50*VLOOKUP('Crop 1'!$E$50,Carbon!$AH$4:$AI$10,2,FALSE),0)+IF('Crop 1'!$C$51=Carbon!$B158,'Crop 1'!$V$51*VLOOKUP('Crop 1'!$E$51,Carbon!$AH$4:$AI$10,2,FALSE),0)+IF('Crop 1'!$C$52=Carbon!$B158,'Crop 1'!$V$52*VLOOKUP('Crop 1'!$E$52,Carbon!$AH$4:$AI$10,2,FALSE),0)+IF('Crop 1'!$C$53=Carbon!$B158,'Crop 1'!$V$53*VLOOKUP('Crop 1'!$E$53,Carbon!$AH$4:$AI$10,2,FALSE),0)+IF('Crop 1'!$C$56=Carbon!$B158,'Crop 1'!$V$56*VLOOKUP('Crop 1'!$E$56,Carbon!$AH$4:$AI$10,2,FALSE),0)+IF('Crop 1'!$C$57=Carbon!$B158,'Crop 1'!$V$57*VLOOKUP('Crop 1'!$E$57,Carbon!$AH$4:$AI$10,2,FALSE),0)+IF('Crop 1'!$C$58=Carbon!$B158,'Crop 1'!$V$58*VLOOKUP('Crop 1'!$E$58,Carbon!$AH$4:$AI$10,2,FALSE),0)+IF('Crop 1'!$C$59=Carbon!$B158,'Crop 1'!$V$59*VLOOKUP('Crop 1'!$E$59,Carbon!$AH$4:$AI$10,2,FALSE),0)+IF('Crop 1'!$C$62=Carbon!$B158,'Crop 1'!$V$62*VLOOKUP('Crop 1'!$E$62,Carbon!$AH$4:$AI$10,2,FALSE),0)+IF('Crop 1'!$C$63=Carbon!$B158,'Crop 1'!$V$63*VLOOKUP('Crop 1'!$E$63,Carbon!$AH$4:$AI$10,2,FALSE),0)+IF('Crop 1'!$C$64=Carbon!$B158,'Crop 1'!$V$64*VLOOKUP('Crop 1'!$E$64,Carbon!$AH$4:$AI$10,2,FALSE),0)+IF('Crop 1'!$C$65=Carbon!$B158,'Crop 1'!$V$65*VLOOKUP('Crop 1'!$E$65,Carbon!$AH$4:$AI$10,2,FALSE),0))*$AL$20,2)","v":0},{"$f":"M158*Inputs!$D$13","v":0},{"$f":"ROUND((IF('Crop 2'!$C$14=Carbon!$B158,'Crop 2'!$V$14*VLOOKUP('Crop 2'!$E$14,Carbon!$AH$4:$AI$10,2,FALSE),0)+IF('Crop 2'!$C$15=Carbon!$B158,'Crop 2'!$V$15*VLOOKUP('Crop 2'!$E$15,Carbon!$AH$4:$AI$10,2,FALSE),0)+IF('Crop 2'!$C$16=Carbon!$B158,'Crop 2'!$V$16*VLOOKUP('Crop 2'!$E$16,Carbon!$AH$4:$AI$10,2,FALSE),0)+IF('Crop 2'!$C$19=Carbon!$B158,'Crop 2'!$V$19*VLOOKUP('Crop 2'!$E$19,Carbon!$AH$4:$AI$10,2,FALSE),0)+IF('Crop 2'!$C$20=Carbon!$B158,'Crop 2'!$V$20*VLOOKUP('Crop 2'!$E$20,Carbon!$AH$4:$AI$10,2,FALSE),0)+IF('Crop 2'!$C$21=Carbon!$B158,'Crop 2'!$V$21*VLOOKUP('Crop 2'!$E$21,Carbon!$AH$4:$AI$10,2,FALSE),0)+IF('Crop 2'!$C$49=Carbon!$B158,'Crop 2'!$V$49*VLOOKUP('Crop 2'!$E$49,Carbon!$AH$4:$AI$10,2,FALSE),0)+IF('Crop 2'!$C$50=Carbon!$B158,'Crop 2'!$V$50*VLOOKUP('Crop 2'!$E$50,Carbon!$AH$4:$AI$10,2,FALSE),0)+IF('Crop 2'!$C$51=Carbon!$B158,'Crop 2'!$V$51*VLOOKUP('Crop 2'!$E$51,Carbon!$AH$4:$AI$10,2,FALSE),0)+IF('Crop 2'!$C$52=Carbon!$B158,'Crop 2'!$V$52*VLOOKUP('Crop 2'!$E$52,Carbon!$AH$4:$AI$10,2,FALSE),0)+IF('Crop 2'!$C$53=Carbon!$B158,'Crop 2'!$V$53*VLOOKUP('Crop 2'!$E$53,Carbon!$AH$4:$AI$10,2,FALSE),0)+IF('Crop 2'!$C$56=Carbon!$B158,'Crop 2'!$V$56*VLOOKUP('Crop 2'!$E$56,Carbon!$AH$4:$AI$10,2,FALSE),0)+IF('Crop 2'!$C$57=Carbon!$B158,'Crop 2'!$V$57*VLOOKUP('Crop 2'!$E$57,Carbon!$AH$4:$AI$10,2,FALSE),0)+IF('Crop 2'!$C$58=Carbon!$B158,'Crop 2'!$V$58*VLOOKUP('Crop 2'!$E$58,Carbon!$AH$4:$AI$10,2,FALSE),0)+IF('Crop 2'!$C$59=Carbon!$B158,'Crop 2'!$V$59*VLOOKUP('Crop 2'!$E$59,Carbon!$AH$4:$AI$10,2,FALSE),0)+IF('Crop 2'!$C$62=Carbon!$B158,'Crop 2'!$V$62*VLOOKUP('Crop 2'!$E$62,Carbon!$AH$4:$AI$10,2,FALSE),0)+IF('Crop 2'!$C$63=Carbon!$B158,'Crop 2'!$V$63*VLOOKUP('Crop 2'!$E$63,Carbon!$AH$4:$AI$10,2,FALSE),0)+IF('Crop 2'!$C$64=Carbon!$B158,'Crop 2'!$V$64*VLOOKUP('Crop 2'!$E$64,Carbon!$AH$4:$AI$10,2,FALSE),0)+IF('Crop 2'!$C$65=Carbon!$B158,'Crop 2'!$V$65*VLOOKUP('Crop 2'!$E$65,Carbon!$AH$4:$AI$10,2,FALSE),0))*$AL$20,2)","v":0},{"$f":"O158*Inputs!$D$15","v":0},{"$f":"ROUND((IF('Crop 3'!$C$14=Carbon!$B158,'Crop 3'!$V$14*VLOOKUP('Crop 3'!$E$14,Carbon!$AH$4:$AI$10,2,FALSE),0)+IF('Crop 3'!$C$15=Carbon!$B158,'Crop 3'!$V$15*VLOOKUP('Crop 3'!$E$15,Carbon!$AH$4:$AI$10,2,FALSE),0)+IF('Crop 3'!$C$16=Carbon!$B158,'Crop 3'!$V$16*VLOOKUP('Crop 3'!$E$16,Carbon!$AH$4:$AI$10,2,FALSE),0)+IF('Crop 3'!$C$19=Carbon!$B158,'Crop 3'!$V$19*VLOOKUP('Crop 3'!$E$19,Carbon!$AH$4:$AI$10,2,FALSE),0)+IF('Crop 3'!$C$20=Carbon!$B158,'Crop 3'!$V$20*VLOOKUP('Crop 3'!$E$20,Carbon!$AH$4:$AI$10,2,FALSE),0)+IF('Crop 3'!$C$21=Carbon!$B158,'Crop 3'!$V$21*VLOOKUP('Crop 3'!$E$21,Carbon!$AH$4:$AI$10,2,FALSE),0)+IF('Crop 3'!$C$49=Carbon!$B158,'Crop 3'!$V$49*VLOOKUP('Crop 3'!$E$49,Carbon!$AH$4:$AI$10,2,FALSE),0)+IF('Crop 3'!$C$50=Carbon!$B158,'Crop 3'!$V$50*VLOOKUP('Crop 3'!$E$50,Carbon!$AH$4:$AI$10,2,FALSE),0)+IF('Crop 3'!$C$51=Carbon!$B158,'Crop 3'!$V$51*VLOOKUP('Crop 3'!$E$51,Carbon!$AH$4:$AI$10,2,FALSE),0)+IF('Crop 3'!$C$52=Carbon!$B158,'Crop 3'!$V$52*VLOOKUP('Crop 3'!$E$52,Carbon!$AH$4:$AI$10,2,FALSE),0)+IF('Crop 3'!$C$53=Carbon!$B158,'Crop 3'!$V$53*VLOOKUP('Crop 3'!$E$53,Carbon!$AH$4:$AI$10,2,FALSE),0)+IF('Crop 3'!$C$56=Carbon!$B158,'Crop 3'!$V$56*VLOOKUP('Crop 3'!$E$56,Carbon!$AH$4:$AI$10,2,FALSE),0)+IF('Crop 3'!$C$57=Carbon!$B158,'Crop 3'!$V$57*VLOOKUP('Crop 3'!$E$57,Carbon!$AH$4:$AI$10,2,FALSE),0)+IF('Crop 3'!$C$58=Carbon!$B158,'Crop 3'!$V$58*VLOOKUP('Crop 3'!$E$58,Carbon!$AH$4:$AI$10,2,FALSE),0)+IF('Crop 3'!$C$59=Carbon!$B158,'Crop 3'!$V$59*VLOOKUP('Crop 3'!$E$59,Carbon!$AH$4:$AI$10,2,FALSE),0)+IF('Crop 3'!$C$62=Carbon!$B158,'Crop 3'!$V$62*VLOOKUP('Crop 3'!$E$62,Carbon!$AH$4:$AI$10,2,FALSE),0)+IF('Crop 3'!$C$63=Carbon!$B158,'Crop 3'!$V$63*VLOOKUP('Crop 3'!$E$63,Carbon!$AH$4:$AI$10,2,FALSE),0)+IF('Crop 3'!$C$64=Carbon!$B158,'Crop 3'!$V$64*VLOOKUP('Crop 3'!$E$64,Carbon!$AH$4:$AI$10,2,FALSE),0)+IF('Crop 3'!$C$65=Carbon!$B158,'Crop 3'!$V$65*VLOOKUP('Crop 3'!$E$65,Carbon!$AH$4:$AI$10,2,FALSE),0))*$AL$20,2)","v":0},{"$f":"Q158*Inputs!$D$17","v":0},{"$f":"ROUND(T158/Inputs!D$19,2)","v":0},0,null,null,0,{"$f":"W158*Inputs!$D$13","v":0},0,{"$f":"Y158*Inputs!$D$13","v":0},0,{"$f":"AA158*Inputs!$D$13","v":0},{"$f":"ROUND(AD158/Inputs!D$19,2)","v":0},0]
[null,{"$f":"Defaults!AH125","v":"Trivence"},{"$f":"ROUND((IF('Crop 1'!$C$14=Carbon!$B159,'Crop 1'!$L$14*VLOOKUP('Crop 1'!$E$14,Carbon!$AH$4:$AI$10,2,FALSE),0)+IF('Crop 1'!$C$15=Carbon!$B159,'Crop 1'!$L$15*VLOOKUP('Crop 1'!$E$15,Carbon!$AH$4:$AI$10,2,FALSE),0)+IF('Crop 1'!$C$16=Carbon!$B159,'Crop 1'!$L$16*VLOOKUP('Crop 1'!$E$16,Carbon!$AH$4:$AI$10,2,FALSE),0)+IF('Crop 1'!$C$19=Carbon!$B159,'Crop 1'!$L$19*VLOOKUP('Crop 1'!$E$19,Carbon!$AH$4:$AI$10,2,FALSE),0)+IF('Crop 1'!$C$20=Carbon!$B159,'Crop 1'!$L$20*VLOOKUP('Crop 1'!$E$20,Carbon!$AH$4:$AI$10,2,FALSE),0)+IF('Crop 1'!$C$21=Carbon!$B159,'Crop 1'!$L$21*VLOOKUP('Crop 1'!$E$21,Carbon!$AH$4:$AI$10,2,FALSE),0)+IF('Crop 1'!$C$49=Carbon!$B159,'Crop 1'!$L$49*VLOOKUP('Crop 1'!$E$49,Carbon!$AH$4:$AI$10,2,FALSE),0)+IF('Crop 1'!$C$50=Carbon!$B159,'Crop 1'!$L$50*VLOOKUP('Crop 1'!$E$50,Carbon!$AH$4:$AI$10,2,FALSE),0)+IF('Crop 1'!$C$51=Carbon!$B159,'Crop 1'!$L$51*VLOOKUP('Crop 1'!$E$51,Carbon!$AH$4:$AI$10,2,FALSE),0)+IF('Crop 1'!$C$52=Carbon!$B159,'Crop 1'!$L$52*VLOOKUP('Crop 1'!$E$52,Carbon!$AH$4:$AI$10,2,FALSE),0)+IF('Crop 1'!$C$53=Carbon!$B159,'Crop 1'!$L$53*VLOOKUP('Crop 1'!$E$53,Carbon!$AH$4:$AI$10,2,FALSE),0)+IF('Crop 1'!$C$56=Carbon!$B159,'Crop 1'!$L$56*VLOOKUP('Crop 1'!$E$56,Carbon!$AH$4:$AI$10,2,FALSE),0)+IF('Crop 1'!$C$57=Carbon!$B159,'Crop 1'!$L$57*VLOOKUP('Crop 1'!$E$57,Carbon!$AH$4:$AI$10,2,FALSE),0)+IF('Crop 1'!$C$58=Carbon!$B159,'Crop 1'!$L$58*VLOOKUP('Crop 1'!$E$58,Carbon!$AH$4:$AI$10,2,FALSE),0)+IF('Crop 1'!$C$59=Carbon!$B159,'Crop 1'!$L$59*VLOOKUP('Crop 1'!$E$59,Carbon!$AH$4:$AI$10,2,FALSE),0)+IF('Crop 1'!$C$62=Carbon!$B159,'Crop 1'!$L$62*VLOOKUP('Crop 1'!$E$62,Carbon!$AH$4:$AI$10,2,FALSE),0)+IF('Crop 1'!$C$63=Carbon!$B159,'Crop 1'!$L$63*VLOOKUP('Crop 1'!$E$63,Carbon!$AH$4:$AI$10,2,FALSE),0)+IF('Crop 1'!$C$64=Carbon!$B159,'Crop 1'!$L$64*VLOOKUP('Crop 1'!$E$64,Carbon!$AH$4:$AI$10,2,FALSE),0)+IF('Crop 1'!$C$65=Carbon!$B159,'Crop 1'!$L$65*VLOOKUP('Crop 1'!$E$65,Carbon!$AH$4:$AI$10,2,FALSE),0))*$AL$20,2)","v":0},{"$f":"C159*Inputs!$D$13","v":0},{"$f":"ROUND((IF('Crop 2'!$C$14=Carbon!$B159,'Crop 2'!$L$14*VLOOKUP('Crop 2'!$E$14,Carbon!$AH$4:$AI$10,2,FALSE),0)+IF('Crop 2'!$C$15=Carbon!$B159,'Crop 2'!$L$15*VLOOKUP('Crop 2'!$E$15,Carbon!$AH$4:$AI$10,2,FALSE),0)+IF('Crop 2'!$C$16=Carbon!$B159,'Crop 2'!$L$16*VLOOKUP('Crop 2'!$E$16,Carbon!$AH$4:$AI$10,2,FALSE),0)+IF('Crop 2'!$C$19=Carbon!$B159,'Crop 2'!$L$19*VLOOKUP('Crop 2'!$E$19,Carbon!$AH$4:$AI$10,2,FALSE),0)+IF('Crop 2'!$C$20=Carbon!$B159,'Crop 2'!$L$20*VLOOKUP('Crop 2'!$E$20,Carbon!$AH$4:$AI$10,2,FALSE),0)+IF('Crop 2'!$C$21=Carbon!$B159,'Crop 2'!$L$21*VLOOKUP('Crop 2'!$E$21,Carbon!$AH$4:$AI$10,2,FALSE),0)+IF('Crop 2'!$C$49=Carbon!$B159,'Crop 2'!$L$49*VLOOKUP('Crop 2'!$E$49,Carbon!$AH$4:$AI$10,2,FALSE),0)+IF('Crop 2'!$C$50=Carbon!$B159,'Crop 2'!$L$50*VLOOKUP('Crop 2'!$E$50,Carbon!$AH$4:$AI$10,2,FALSE),0)+IF('Crop 2'!$C$51=Carbon!$B159,'Crop 2'!$L$51*VLOOKUP('Crop 2'!$E$51,Carbon!$AH$4:$AI$10,2,FALSE),0)+IF('Crop 2'!$C$52=Carbon!$B159,'Crop 2'!$L$52*VLOOKUP('Crop 2'!$E$52,Carbon!$AH$4:$AI$10,2,FALSE),0)+IF('Crop 2'!$C$53=Carbon!$B159,'Crop 2'!$L$53*VLOOKUP('Crop 2'!$E$53,Carbon!$AH$4:$AI$10,2,FALSE),0)+IF('Crop 2'!$C$56=Carbon!$B159,'Crop 2'!$L$56*VLOOKUP('Crop 2'!$E$56,Carbon!$AH$4:$AI$10,2,FALSE),0)+IF('Crop 2'!$C$57=Carbon!$B159,'Crop 2'!$L$57*VLOOKUP('Crop 2'!$E$57,Carbon!$AH$4:$AI$10,2,FALSE),0)+IF('Crop 2'!$C$58=Carbon!$B159,'Crop 2'!$L$58*VLOOKUP('Crop 2'!$E$58,Carbon!$AH$4:$AI$10,2,FALSE),0)+IF('Crop 2'!$C$59=Carbon!$B159,'Crop 2'!$L$59*VLOOKUP('Crop 2'!$E$59,Carbon!$AH$4:$AI$10,2,FALSE),0)+IF('Crop 2'!$C$62=Carbon!$B159,'Crop 2'!$L$62*VLOOKUP('Crop 2'!$E$62,Carbon!$AH$4:$AI$10,2,FALSE),0)+IF('Crop 2'!$C$63=Carbon!$B159,'Crop 2'!$L$63*VLOOKUP('Crop 2'!$E$63,Carbon!$AH$4:$AI$10,2,FALSE),0)+IF('Crop 2'!$C$64=Carbon!$B159,'Crop 2'!$L$64*VLOOKUP('Crop 2'!$E$64,Carbon!$AH$4:$AI$10,2,FALSE),0)+IF('Crop 2'!$C$65=Carbon!$B159,'Crop 2'!$L$65*VLOOKUP('Crop 2'!$E$65,Carbon!$AH$4:$AI$10,2,FALSE),0))*$AL$20,2)","v":0},{"$f":"E159*Inputs!$D$15","v":0},{"$f":"ROUND((IF('Crop 3'!$C$14=Carbon!$B159,'Crop 3'!$L$14*VLOOKUP('Crop 3'!$E$14,Carbon!$AH$4:$AI$10,2,FALSE),0)+IF('Crop 3'!$C$15=Carbon!$B159,'Crop 3'!$L$15*VLOOKUP('Crop 3'!$E$15,Carbon!$AH$4:$AI$10,2,FALSE),0)+IF('Crop 3'!$C$16=Carbon!$B159,'Crop 3'!$L$16*VLOOKUP('Crop 3'!$E$16,Carbon!$AH$4:$AI$10,2,FALSE),0)+IF('Crop 3'!$C$19=Carbon!$B159,'Crop 3'!$L$19*VLOOKUP('Crop 3'!$E$19,Carbon!$AH$4:$AI$10,2,FALSE),0)+IF('Crop 3'!$C$20=Carbon!$B159,'Crop 3'!$L$20*VLOOKUP('Crop 3'!$E$20,Carbon!$AH$4:$AI$10,2,FALSE),0)+IF('Crop 3'!$C$21=Carbon!$B159,'Crop 3'!$L$21*VLOOKUP('Crop 3'!$E$21,Carbon!$AH$4:$AI$10,2,FALSE),0)+IF('Crop 3'!$C$49=Carbon!$B159,'Crop 3'!$L$49*VLOOKUP('Crop 3'!$E$49,Carbon!$AH$4:$AI$10,2,FALSE),0)+IF('Crop 3'!$C$50=Carbon!$B159,'Crop 3'!$L$50*VLOOKUP('Crop 3'!$E$50,Carbon!$AH$4:$AI$10,2,FALSE),0)+IF('Crop 3'!$C$51=Carbon!$B159,'Crop 3'!$L$51*VLOOKUP('Crop 3'!$E$51,Carbon!$AH$4:$AI$10,2,FALSE),0)+IF('Crop 3'!$C$52=Carbon!$B159,'Crop 3'!$L$52*VLOOKUP('Crop 3'!$E$52,Carbon!$AH$4:$AI$10,2,FALSE),0)+IF('Crop 3'!$C$53=Carbon!$B159,'Crop 3'!$L$53*VLOOKUP('Crop 3'!$E$53,Carbon!$AH$4:$AI$10,2,FALSE),0)+IF('Crop 3'!$C$56=Carbon!$B159,'Crop 3'!$L$56*VLOOKUP('Crop 3'!$E$56,Carbon!$AH$4:$AI$10,2,FALSE),0)+IF('Crop 3'!$C$57=Carbon!$B159,'Crop 3'!$L$57*VLOOKUP('Crop 3'!$E$57,Carbon!$AH$4:$AI$10,2,FALSE),0)+IF('Crop 3'!$C$58=Carbon!$B159,'Crop 3'!$L$58*VLOOKUP('Crop 3'!$E$58,Carbon!$AH$4:$AI$10,2,FALSE),0)+IF('Crop 3'!$C$59=Carbon!$B159,'Crop 3'!$L$59*VLOOKUP('Crop 3'!$E$59,Carbon!$AH$4:$AI$10,2,FALSE),0)+IF('Crop 3'!$C$62=Carbon!$B159,'Crop 3'!$L$62*VLOOKUP('Crop 3'!$E$62,Carbon!$AH$4:$AI$10,2,FALSE),0)+IF('Crop 3'!$C$63=Carbon!$B159,'Crop 3'!$L$63*VLOOKUP('Crop 3'!$E$63,Carbon!$AH$4:$AI$10,2,FALSE),0)+IF('Crop 3'!$C$64=Carbon!$B159,'Crop 3'!$L$64*VLOOKUP('Crop 3'!$E$64,Carbon!$AH$4:$AI$10,2,FALSE),0)+IF('Crop 3'!$C$65=Carbon!$B159,'Crop 3'!$L$65*VLOOKUP('Crop 3'!$E$65,Carbon!$AH$4:$AI$10,2,FALSE),0))*$AL$20,2)","v":0},{"$f":"G159*Inputs!$D$17","v":0},{"$f":"ROUND(J159/Inputs!D$19,2)","v":0},0,null,null,{"$f":"ROUND((IF('Crop 1'!$C$14=Carbon!$B159,'Crop 1'!$V$14*VLOOKUP('Crop 1'!$E$14,Carbon!$AH$4:$AI$10,2,FALSE),0)+IF('Crop 1'!$C$15=Carbon!$B159,'Crop 1'!$V$15*VLOOKUP('Crop 1'!$E$15,Carbon!$AH$4:$AI$10,2,FALSE),0)+IF('Crop 1'!$C$16=Carbon!$B159,'Crop 1'!$V$16*VLOOKUP('Crop 1'!$E$16,Carbon!$AH$4:$AI$10,2,FALSE),0)+IF('Crop 1'!$C$19=Carbon!$B159,'Crop 1'!$V$19*VLOOKUP('Crop 1'!$E$19,Carbon!$AH$4:$AI$10,2,FALSE),0)+IF('Crop 1'!$C$20=Carbon!$B159,'Crop 1'!$V$20*VLOOKUP('Crop 1'!$E$20,Carbon!$AH$4:$AI$10,2,FALSE),0)+IF('Crop 1'!$C$21=Carbon!$B159,'Crop 1'!$V$21*VLOOKUP('Crop 1'!$E$21,Carbon!$AH$4:$AI$10,2,FALSE),0)+IF('Crop 1'!$C$49=Carbon!$B159,'Crop 1'!$V$49*VLOOKUP('Crop 1'!$E$49,Carbon!$AH$4:$AI$10,2,FALSE),0)+IF('Crop 1'!$C$50=Carbon!$B159,'Crop 1'!$V$50*VLOOKUP('Crop 1'!$E$50,Carbon!$AH$4:$AI$10,2,FALSE),0)+IF('Crop 1'!$C$51=Carbon!$B159,'Crop 1'!$V$51*VLOOKUP('Crop 1'!$E$51,Carbon!$AH$4:$AI$10,2,FALSE),0)+IF('Crop 1'!$C$52=Carbon!$B159,'Crop 1'!$V$52*VLOOKUP('Crop 1'!$E$52,Carbon!$AH$4:$AI$10,2,FALSE),0)+IF('Crop 1'!$C$53=Carbon!$B159,'Crop 1'!$V$53*VLOOKUP('Crop 1'!$E$53,Carbon!$AH$4:$AI$10,2,FALSE),0)+IF('Crop 1'!$C$56=Carbon!$B159,'Crop 1'!$V$56*VLOOKUP('Crop 1'!$E$56,Carbon!$AH$4:$AI$10,2,FALSE),0)+IF('Crop 1'!$C$57=Carbon!$B159,'Crop 1'!$V$57*VLOOKUP('Crop 1'!$E$57,Carbon!$AH$4:$AI$10,2,FALSE),0)+IF('Crop 1'!$C$58=Carbon!$B159,'Crop 1'!$V$58*VLOOKUP('Crop 1'!$E$58,Carbon!$AH$4:$AI$10,2,FALSE),0)+IF('Crop 1'!$C$59=Carbon!$B159,'Crop 1'!$V$59*VLOOKUP('Crop 1'!$E$59,Carbon!$AH$4:$AI$10,2,FALSE),0)+IF('Crop 1'!$C$62=Carbon!$B159,'Crop 1'!$V$62*VLOOKUP('Crop 1'!$E$62,Carbon!$AH$4:$AI$10,2,FALSE),0)+IF('Crop 1'!$C$63=Carbon!$B159,'Crop 1'!$V$63*VLOOKUP('Crop 1'!$E$63,Carbon!$AH$4:$AI$10,2,FALSE),0)+IF('Crop 1'!$C$64=Carbon!$B159,'Crop 1'!$V$64*VLOOKUP('Crop 1'!$E$64,Carbon!$AH$4:$AI$10,2,FALSE),0)+IF('Crop 1'!$C$65=Carbon!$B159,'Crop 1'!$V$65*VLOOKUP('Crop 1'!$E$65,Carbon!$AH$4:$AI$10,2,FALSE),0))*$AL$20,2)","v":0},{"$f":"M159*Inputs!$D$13","v":0},{"$f":"ROUND((IF('Crop 2'!$C$14=Carbon!$B159,'Crop 2'!$V$14*VLOOKUP('Crop 2'!$E$14,Carbon!$AH$4:$AI$10,2,FALSE),0)+IF('Crop 2'!$C$15=Carbon!$B159,'Crop 2'!$V$15*VLOOKUP('Crop 2'!$E$15,Carbon!$AH$4:$AI$10,2,FALSE),0)+IF('Crop 2'!$C$16=Carbon!$B159,'Crop 2'!$V$16*VLOOKUP('Crop 2'!$E$16,Carbon!$AH$4:$AI$10,2,FALSE),0)+IF('Crop 2'!$C$19=Carbon!$B159,'Crop 2'!$V$19*VLOOKUP('Crop 2'!$E$19,Carbon!$AH$4:$AI$10,2,FALSE),0)+IF('Crop 2'!$C$20=Carbon!$B159,'Crop 2'!$V$20*VLOOKUP('Crop 2'!$E$20,Carbon!$AH$4:$AI$10,2,FALSE),0)+IF('Crop 2'!$C$21=Carbon!$B159,'Crop 2'!$V$21*VLOOKUP('Crop 2'!$E$21,Carbon!$AH$4:$AI$10,2,FALSE),0)+IF('Crop 2'!$C$49=Carbon!$B159,'Crop 2'!$V$49*VLOOKUP('Crop 2'!$E$49,Carbon!$AH$4:$AI$10,2,FALSE),0)+IF('Crop 2'!$C$50=Carbon!$B159,'Crop 2'!$V$50*VLOOKUP('Crop 2'!$E$50,Carbon!$AH$4:$AI$10,2,FALSE),0)+IF('Crop 2'!$C$51=Carbon!$B159,'Crop 2'!$V$51*VLOOKUP('Crop 2'!$E$51,Carbon!$AH$4:$AI$10,2,FALSE),0)+IF('Crop 2'!$C$52=Carbon!$B159,'Crop 2'!$V$52*VLOOKUP('Crop 2'!$E$52,Carbon!$AH$4:$AI$10,2,FALSE),0)+IF('Crop 2'!$C$53=Carbon!$B159,'Crop 2'!$V$53*VLOOKUP('Crop 2'!$E$53,Carbon!$AH$4:$AI$10,2,FALSE),0)+IF('Crop 2'!$C$56=Carbon!$B159,'Crop 2'!$V$56*VLOOKUP('Crop 2'!$E$56,Carbon!$AH$4:$AI$10,2,FALSE),0)+IF('Crop 2'!$C$57=Carbon!$B159,'Crop 2'!$V$57*VLOOKUP('Crop 2'!$E$57,Carbon!$AH$4:$AI$10,2,FALSE),0)+IF('Crop 2'!$C$58=Carbon!$B159,'Crop 2'!$V$58*VLOOKUP('Crop 2'!$E$58,Carbon!$AH$4:$AI$10,2,FALSE),0)+IF('Crop 2'!$C$59=Carbon!$B159,'Crop 2'!$V$59*VLOOKUP('Crop 2'!$E$59,Carbon!$AH$4:$AI$10,2,FALSE),0)+IF('Crop 2'!$C$62=Carbon!$B159,'Crop 2'!$V$62*VLOOKUP('Crop 2'!$E$62,Carbon!$AH$4:$AI$10,2,FALSE),0)+IF('Crop 2'!$C$63=Carbon!$B159,'Crop 2'!$V$63*VLOOKUP('Crop 2'!$E$63,Carbon!$AH$4:$AI$10,2,FALSE),0)+IF('Crop 2'!$C$64=Carbon!$B159,'Crop 2'!$V$64*VLOOKUP('Crop 2'!$E$64,Carbon!$AH$4:$AI$10,2,FALSE),0)+IF('Crop 2'!$C$65=Carbon!$B159,'Crop 2'!$V$65*VLOOKUP('Crop 2'!$E$65,Carbon!$AH$4:$AI$10,2,FALSE),0))*$AL$20,2)","v":0},{"$f":"O159*Inputs!$D$15","v":0},{"$f":"ROUND((IF('Crop 3'!$C$14=Carbon!$B159,'Crop 3'!$V$14*VLOOKUP('Crop 3'!$E$14,Carbon!$AH$4:$AI$10,2,FALSE),0)+IF('Crop 3'!$C$15=Carbon!$B159,'Crop 3'!$V$15*VLOOKUP('Crop 3'!$E$15,Carbon!$AH$4:$AI$10,2,FALSE),0)+IF('Crop 3'!$C$16=Carbon!$B159,'Crop 3'!$V$16*VLOOKUP('Crop 3'!$E$16,Carbon!$AH$4:$AI$10,2,FALSE),0)+IF('Crop 3'!$C$19=Carbon!$B159,'Crop 3'!$V$19*VLOOKUP('Crop 3'!$E$19,Carbon!$AH$4:$AI$10,2,FALSE),0)+IF('Crop 3'!$C$20=Carbon!$B159,'Crop 3'!$V$20*VLOOKUP('Crop 3'!$E$20,Carbon!$AH$4:$AI$10,2,FALSE),0)+IF('Crop 3'!$C$21=Carbon!$B159,'Crop 3'!$V$21*VLOOKUP('Crop 3'!$E$21,Carbon!$AH$4:$AI$10,2,FALSE),0)+IF('Crop 3'!$C$49=Carbon!$B159,'Crop 3'!$V$49*VLOOKUP('Crop 3'!$E$49,Carbon!$AH$4:$AI$10,2,FALSE),0)+IF('Crop 3'!$C$50=Carbon!$B159,'Crop 3'!$V$50*VLOOKUP('Crop 3'!$E$50,Carbon!$AH$4:$AI$10,2,FALSE),0)+IF('Crop 3'!$C$51=Carbon!$B159,'Crop 3'!$V$51*VLOOKUP('Crop 3'!$E$51,Carbon!$AH$4:$AI$10,2,FALSE),0)+IF('Crop 3'!$C$52=Carbon!$B159,'Crop 3'!$V$52*VLOOKUP('Crop 3'!$E$52,Carbon!$AH$4:$AI$10,2,FALSE),0)+IF('Crop 3'!$C$53=Carbon!$B159,'Crop 3'!$V$53*VLOOKUP('Crop 3'!$E$53,Carbon!$AH$4:$AI$10,2,FALSE),0)+IF('Crop 3'!$C$56=Carbon!$B159,'Crop 3'!$V$56*VLOOKUP('Crop 3'!$E$56,Carbon!$AH$4:$AI$10,2,FALSE),0)+IF('Crop 3'!$C$57=Carbon!$B159,'Crop 3'!$V$57*VLOOKUP('Crop 3'!$E$57,Carbon!$AH$4:$AI$10,2,FALSE),0)+IF('Crop 3'!$C$58=Carbon!$B159,'Crop 3'!$V$58*VLOOKUP('Crop 3'!$E$58,Carbon!$AH$4:$AI$10,2,FALSE),0)+IF('Crop 3'!$C$59=Carbon!$B159,'Crop 3'!$V$59*VLOOKUP('Crop 3'!$E$59,Carbon!$AH$4:$AI$10,2,FALSE),0)+IF('Crop 3'!$C$62=Carbon!$B159,'Crop 3'!$V$62*VLOOKUP('Crop 3'!$E$62,Carbon!$AH$4:$AI$10,2,FALSE),0)+IF('Crop 3'!$C$63=Carbon!$B159,'Crop 3'!$V$63*VLOOKUP('Crop 3'!$E$63,Carbon!$AH$4:$AI$10,2,FALSE),0)+IF('Crop 3'!$C$64=Carbon!$B159,'Crop 3'!$V$64*VLOOKUP('Crop 3'!$E$64,Carbon!$AH$4:$AI$10,2,FALSE),0)+IF('Crop 3'!$C$65=Carbon!$B159,'Crop 3'!$V$65*VLOOKUP('Crop 3'!$E$65,Carbon!$AH$4:$AI$10,2,FALSE),0))*$AL$20,2)","v":0},{"$f":"Q159*Inputs!$D$17","v":0},{"$f":"ROUND(T159/Inputs!D$19,2)","v":0},0,null,null,0,{"$f":"W159*Inputs!$D$13","v":0},0,{"$f":"Y159*Inputs!$D$13","v":0},0,{"$f":"AA159*Inputs!$D$13","v":0},{"$f":"ROUND(AD159/Inputs!D$19,2)","v":0},0]
[null,{"$f":"Defaults!AH126","v":"Ultra Blazer"},{"$f":"ROUND((IF('Crop 1'!$C$14=Carbon!$B160,'Crop 1'!$L$14*VLOOKUP('Crop 1'!$E$14,Carbon!$AH$4:$AI$10,2,FALSE),0)+IF('Crop 1'!$C$15=Carbon!$B160,'Crop 1'!$L$15*VLOOKUP('Crop 1'!$E$15,Carbon!$AH$4:$AI$10,2,FALSE),0)+IF('Crop 1'!$C$16=Carbon!$B160,'Crop 1'!$L$16*VLOOKUP('Crop 1'!$E$16,Carbon!$AH$4:$AI$10,2,FALSE),0)+IF('Crop 1'!$C$19=Carbon!$B160,'Crop 1'!$L$19*VLOOKUP('Crop 1'!$E$19,Carbon!$AH$4:$AI$10,2,FALSE),0)+IF('Crop 1'!$C$20=Carbon!$B160,'Crop 1'!$L$20*VLOOKUP('Crop 1'!$E$20,Carbon!$AH$4:$AI$10,2,FALSE),0)+IF('Crop 1'!$C$21=Carbon!$B160,'Crop 1'!$L$21*VLOOKUP('Crop 1'!$E$21,Carbon!$AH$4:$AI$10,2,FALSE),0)+IF('Crop 1'!$C$49=Carbon!$B160,'Crop 1'!$L$49*VLOOKUP('Crop 1'!$E$49,Carbon!$AH$4:$AI$10,2,FALSE),0)+IF('Crop 1'!$C$50=Carbon!$B160,'Crop 1'!$L$50*VLOOKUP('Crop 1'!$E$50,Carbon!$AH$4:$AI$10,2,FALSE),0)+IF('Crop 1'!$C$51=Carbon!$B160,'Crop 1'!$L$51*VLOOKUP('Crop 1'!$E$51,Carbon!$AH$4:$AI$10,2,FALSE),0)+IF('Crop 1'!$C$52=Carbon!$B160,'Crop 1'!$L$52*VLOOKUP('Crop 1'!$E$52,Carbon!$AH$4:$AI$10,2,FALSE),0)+IF('Crop 1'!$C$53=Carbon!$B160,'Crop 1'!$L$53*VLOOKUP('Crop 1'!$E$53,Carbon!$AH$4:$AI$10,2,FALSE),0)+IF('Crop 1'!$C$56=Carbon!$B160,'Crop 1'!$L$56*VLOOKUP('Crop 1'!$E$56,Carbon!$AH$4:$AI$10,2,FALSE),0)+IF('Crop 1'!$C$57=Carbon!$B160,'Crop 1'!$L$57*VLOOKUP('Crop 1'!$E$57,Carbon!$AH$4:$AI$10,2,FALSE),0)+IF('Crop 1'!$C$58=Carbon!$B160,'Crop 1'!$L$58*VLOOKUP('Crop 1'!$E$58,Carbon!$AH$4:$AI$10,2,FALSE),0)+IF('Crop 1'!$C$59=Carbon!$B160,'Crop 1'!$L$59*VLOOKUP('Crop 1'!$E$59,Carbon!$AH$4:$AI$10,2,FALSE),0)+IF('Crop 1'!$C$62=Carbon!$B160,'Crop 1'!$L$62*VLOOKUP('Crop 1'!$E$62,Carbon!$AH$4:$AI$10,2,FALSE),0)+IF('Crop 1'!$C$63=Carbon!$B160,'Crop 1'!$L$63*VLOOKUP('Crop 1'!$E$63,Carbon!$AH$4:$AI$10,2,FALSE),0)+IF('Crop 1'!$C$64=Carbon!$B160,'Crop 1'!$L$64*VLOOKUP('Crop 1'!$E$64,Carbon!$AH$4:$AI$10,2,FALSE),0)+IF('Crop 1'!$C$65=Carbon!$B160,'Crop 1'!$L$65*VLOOKUP('Crop 1'!$E$65,Carbon!$AH$4:$AI$10,2,FALSE),0))*$AL$20,2)","v":0},{"$f":"C160*Inputs!$D$13","v":0},{"$f":"ROUND((IF('Crop 2'!$C$14=Carbon!$B160,'Crop 2'!$L$14*VLOOKUP('Crop 2'!$E$14,Carbon!$AH$4:$AI$10,2,FALSE),0)+IF('Crop 2'!$C$15=Carbon!$B160,'Crop 2'!$L$15*VLOOKUP('Crop 2'!$E$15,Carbon!$AH$4:$AI$10,2,FALSE),0)+IF('Crop 2'!$C$16=Carbon!$B160,'Crop 2'!$L$16*VLOOKUP('Crop 2'!$E$16,Carbon!$AH$4:$AI$10,2,FALSE),0)+IF('Crop 2'!$C$19=Carbon!$B160,'Crop 2'!$L$19*VLOOKUP('Crop 2'!$E$19,Carbon!$AH$4:$AI$10,2,FALSE),0)+IF('Crop 2'!$C$20=Carbon!$B160,'Crop 2'!$L$20*VLOOKUP('Crop 2'!$E$20,Carbon!$AH$4:$AI$10,2,FALSE),0)+IF('Crop 2'!$C$21=Carbon!$B160,'Crop 2'!$L$21*VLOOKUP('Crop 2'!$E$21,Carbon!$AH$4:$AI$10,2,FALSE),0)+IF('Crop 2'!$C$49=Carbon!$B160,'Crop 2'!$L$49*VLOOKUP('Crop 2'!$E$49,Carbon!$AH$4:$AI$10,2,FALSE),0)+IF('Crop 2'!$C$50=Carbon!$B160,'Crop 2'!$L$50*VLOOKUP('Crop 2'!$E$50,Carbon!$AH$4:$AI$10,2,FALSE),0)+IF('Crop 2'!$C$51=Carbon!$B160,'Crop 2'!$L$51*VLOOKUP('Crop 2'!$E$51,Carbon!$AH$4:$AI$10,2,FALSE),0)+IF('Crop 2'!$C$52=Carbon!$B160,'Crop 2'!$L$52*VLOOKUP('Crop 2'!$E$52,Carbon!$AH$4:$AI$10,2,FALSE),0)+IF('Crop 2'!$C$53=Carbon!$B160,'Crop 2'!$L$53*VLOOKUP('Crop 2'!$E$53,Carbon!$AH$4:$AI$10,2,FALSE),0)+IF('Crop 2'!$C$56=Carbon!$B160,'Crop 2'!$L$56*VLOOKUP('Crop 2'!$E$56,Carbon!$AH$4:$AI$10,2,FALSE),0)+IF('Crop 2'!$C$57=Carbon!$B160,'Crop 2'!$L$57*VLOOKUP('Crop 2'!$E$57,Carbon!$AH$4:$AI$10,2,FALSE),0)+IF('Crop 2'!$C$58=Carbon!$B160,'Crop 2'!$L$58*VLOOKUP('Crop 2'!$E$58,Carbon!$AH$4:$AI$10,2,FALSE),0)+IF('Crop 2'!$C$59=Carbon!$B160,'Crop 2'!$L$59*VLOOKUP('Crop 2'!$E$59,Carbon!$AH$4:$AI$10,2,FALSE),0)+IF('Crop 2'!$C$62=Carbon!$B160,'Crop 2'!$L$62*VLOOKUP('Crop 2'!$E$62,Carbon!$AH$4:$AI$10,2,FALSE),0)+IF('Crop 2'!$C$63=Carbon!$B160,'Crop 2'!$L$63*VLOOKUP('Crop 2'!$E$63,Carbon!$AH$4:$AI$10,2,FALSE),0)+IF('Crop 2'!$C$64=Carbon!$B160,'Crop 2'!$L$64*VLOOKUP('Crop 2'!$E$64,Carbon!$AH$4:$AI$10,2,FALSE),0)+IF('Crop 2'!$C$65=Carbon!$B160,'Crop 2'!$L$65*VLOOKUP('Crop 2'!$E$65,Carbon!$AH$4:$AI$10,2,FALSE),0))*$AL$20,2)","v":0},{"$f":"E160*Inputs!$D$15","v":0},{"$f":"ROUND((IF('Crop 3'!$C$14=Carbon!$B160,'Crop 3'!$L$14*VLOOKUP('Crop 3'!$E$14,Carbon!$AH$4:$AI$10,2,FALSE),0)+IF('Crop 3'!$C$15=Carbon!$B160,'Crop 3'!$L$15*VLOOKUP('Crop 3'!$E$15,Carbon!$AH$4:$AI$10,2,FALSE),0)+IF('Crop 3'!$C$16=Carbon!$B160,'Crop 3'!$L$16*VLOOKUP('Crop 3'!$E$16,Carbon!$AH$4:$AI$10,2,FALSE),0)+IF('Crop 3'!$C$19=Carbon!$B160,'Crop 3'!$L$19*VLOOKUP('Crop 3'!$E$19,Carbon!$AH$4:$AI$10,2,FALSE),0)+IF('Crop 3'!$C$20=Carbon!$B160,'Crop 3'!$L$20*VLOOKUP('Crop 3'!$E$20,Carbon!$AH$4:$AI$10,2,FALSE),0)+IF('Crop 3'!$C$21=Carbon!$B160,'Crop 3'!$L$21*VLOOKUP('Crop 3'!$E$21,Carbon!$AH$4:$AI$10,2,FALSE),0)+IF('Crop 3'!$C$49=Carbon!$B160,'Crop 3'!$L$49*VLOOKUP('Crop 3'!$E$49,Carbon!$AH$4:$AI$10,2,FALSE),0)+IF('Crop 3'!$C$50=Carbon!$B160,'Crop 3'!$L$50*VLOOKUP('Crop 3'!$E$50,Carbon!$AH$4:$AI$10,2,FALSE),0)+IF('Crop 3'!$C$51=Carbon!$B160,'Crop 3'!$L$51*VLOOKUP('Crop 3'!$E$51,Carbon!$AH$4:$AI$10,2,FALSE),0)+IF('Crop 3'!$C$52=Carbon!$B160,'Crop 3'!$L$52*VLOOKUP('Crop 3'!$E$52,Carbon!$AH$4:$AI$10,2,FALSE),0)+IF('Crop 3'!$C$53=Carbon!$B160,'Crop 3'!$L$53*VLOOKUP('Crop 3'!$E$53,Carbon!$AH$4:$AI$10,2,FALSE),0)+IF('Crop 3'!$C$56=Carbon!$B160,'Crop 3'!$L$56*VLOOKUP('Crop 3'!$E$56,Carbon!$AH$4:$AI$10,2,FALSE),0)+IF('Crop 3'!$C$57=Carbon!$B160,'Crop 3'!$L$57*VLOOKUP('Crop 3'!$E$57,Carbon!$AH$4:$AI$10,2,FALSE),0)+IF('Crop 3'!$C$58=Carbon!$B160,'Crop 3'!$L$58*VLOOKUP('Crop 3'!$E$58,Carbon!$AH$4:$AI$10,2,FALSE),0)+IF('Crop 3'!$C$59=Carbon!$B160,'Crop 3'!$L$59*VLOOKUP('Crop 3'!$E$59,Carbon!$AH$4:$AI$10,2,FALSE),0)+IF('Crop 3'!$C$62=Carbon!$B160,'Crop 3'!$L$62*VLOOKUP('Crop 3'!$E$62,Carbon!$AH$4:$AI$10,2,FALSE),0)+IF('Crop 3'!$C$63=Carbon!$B160,'Crop 3'!$L$63*VLOOKUP('Crop 3'!$E$63,Carbon!$AH$4:$AI$10,2,FALSE),0)+IF('Crop 3'!$C$64=Carbon!$B160,'Crop 3'!$L$64*VLOOKUP('Crop 3'!$E$64,Carbon!$AH$4:$AI$10,2,FALSE),0)+IF('Crop 3'!$C$65=Carbon!$B160,'Crop 3'!$L$65*VLOOKUP('Crop 3'!$E$65,Carbon!$AH$4:$AI$10,2,FALSE),0))*$AL$20,2)","v":0},{"$f":"G160*Inputs!$D$17","v":0},{"$f":"ROUND(J160/Inputs!D$19,2)","v":0},0,null,null,{"$f":"ROUND((IF('Crop 1'!$C$14=Carbon!$B160,'Crop 1'!$V$14*VLOOKUP('Crop 1'!$E$14,Carbon!$AH$4:$AI$10,2,FALSE),0)+IF('Crop 1'!$C$15=Carbon!$B160,'Crop 1'!$V$15*VLOOKUP('Crop 1'!$E$15,Carbon!$AH$4:$AI$10,2,FALSE),0)+IF('Crop 1'!$C$16=Carbon!$B160,'Crop 1'!$V$16*VLOOKUP('Crop 1'!$E$16,Carbon!$AH$4:$AI$10,2,FALSE),0)+IF('Crop 1'!$C$19=Carbon!$B160,'Crop 1'!$V$19*VLOOKUP('Crop 1'!$E$19,Carbon!$AH$4:$AI$10,2,FALSE),0)+IF('Crop 1'!$C$20=Carbon!$B160,'Crop 1'!$V$20*VLOOKUP('Crop 1'!$E$20,Carbon!$AH$4:$AI$10,2,FALSE),0)+IF('Crop 1'!$C$21=Carbon!$B160,'Crop 1'!$V$21*VLOOKUP('Crop 1'!$E$21,Carbon!$AH$4:$AI$10,2,FALSE),0)+IF('Crop 1'!$C$49=Carbon!$B160,'Crop 1'!$V$49*VLOOKUP('Crop 1'!$E$49,Carbon!$AH$4:$AI$10,2,FALSE),0)+IF('Crop 1'!$C$50=Carbon!$B160,'Crop 1'!$V$50*VLOOKUP('Crop 1'!$E$50,Carbon!$AH$4:$AI$10,2,FALSE),0)+IF('Crop 1'!$C$51=Carbon!$B160,'Crop 1'!$V$51*VLOOKUP('Crop 1'!$E$51,Carbon!$AH$4:$AI$10,2,FALSE),0)+IF('Crop 1'!$C$52=Carbon!$B160,'Crop 1'!$V$52*VLOOKUP('Crop 1'!$E$52,Carbon!$AH$4:$AI$10,2,FALSE),0)+IF('Crop 1'!$C$53=Carbon!$B160,'Crop 1'!$V$53*VLOOKUP('Crop 1'!$E$53,Carbon!$AH$4:$AI$10,2,FALSE),0)+IF('Crop 1'!$C$56=Carbon!$B160,'Crop 1'!$V$56*VLOOKUP('Crop 1'!$E$56,Carbon!$AH$4:$AI$10,2,FALSE),0)+IF('Crop 1'!$C$57=Carbon!$B160,'Crop 1'!$V$57*VLOOKUP('Crop 1'!$E$57,Carbon!$AH$4:$AI$10,2,FALSE),0)+IF('Crop 1'!$C$58=Carbon!$B160,'Crop 1'!$V$58*VLOOKUP('Crop 1'!$E$58,Carbon!$AH$4:$AI$10,2,FALSE),0)+IF('Crop 1'!$C$59=Carbon!$B160,'Crop 1'!$V$59*VLOOKUP('Crop 1'!$E$59,Carbon!$AH$4:$AI$10,2,FALSE),0)+IF('Crop 1'!$C$62=Carbon!$B160,'Crop 1'!$V$62*VLOOKUP('Crop 1'!$E$62,Carbon!$AH$4:$AI$10,2,FALSE),0)+IF('Crop 1'!$C$63=Carbon!$B160,'Crop 1'!$V$63*VLOOKUP('Crop 1'!$E$63,Carbon!$AH$4:$AI$10,2,FALSE),0)+IF('Crop 1'!$C$64=Carbon!$B160,'Crop 1'!$V$64*VLOOKUP('Crop 1'!$E$64,Carbon!$AH$4:$AI$10,2,FALSE),0)+IF('Crop 1'!$C$65=Carbon!$B160,'Crop 1'!$V$65*VLOOKUP('Crop 1'!$E$65,Carbon!$AH$4:$AI$10,2,FALSE),0))*$AL$20,2)","v":0},{"$f":"M160*Inputs!$D$13","v":0},{"$f":"ROUND((IF('Crop 2'!$C$14=Carbon!$B160,'Crop 2'!$V$14*VLOOKUP('Crop 2'!$E$14,Carbon!$AH$4:$AI$10,2,FALSE),0)+IF('Crop 2'!$C$15=Carbon!$B160,'Crop 2'!$V$15*VLOOKUP('Crop 2'!$E$15,Carbon!$AH$4:$AI$10,2,FALSE),0)+IF('Crop 2'!$C$16=Carbon!$B160,'Crop 2'!$V$16*VLOOKUP('Crop 2'!$E$16,Carbon!$AH$4:$AI$10,2,FALSE),0)+IF('Crop 2'!$C$19=Carbon!$B160,'Crop 2'!$V$19*VLOOKUP('Crop 2'!$E$19,Carbon!$AH$4:$AI$10,2,FALSE),0)+IF('Crop 2'!$C$20=Carbon!$B160,'Crop 2'!$V$20*VLOOKUP('Crop 2'!$E$20,Carbon!$AH$4:$AI$10,2,FALSE),0)+IF('Crop 2'!$C$21=Carbon!$B160,'Crop 2'!$V$21*VLOOKUP('Crop 2'!$E$21,Carbon!$AH$4:$AI$10,2,FALSE),0)+IF('Crop 2'!$C$49=Carbon!$B160,'Crop 2'!$V$49*VLOOKUP('Crop 2'!$E$49,Carbon!$AH$4:$AI$10,2,FALSE),0)+IF('Crop 2'!$C$50=Carbon!$B160,'Crop 2'!$V$50*VLOOKUP('Crop 2'!$E$50,Carbon!$AH$4:$AI$10,2,FALSE),0)+IF('Crop 2'!$C$51=Carbon!$B160,'Crop 2'!$V$51*VLOOKUP('Crop 2'!$E$51,Carbon!$AH$4:$AI$10,2,FALSE),0)+IF('Crop 2'!$C$52=Carbon!$B160,'Crop 2'!$V$52*VLOOKUP('Crop 2'!$E$52,Carbon!$AH$4:$AI$10,2,FALSE),0)+IF('Crop 2'!$C$53=Carbon!$B160,'Crop 2'!$V$53*VLOOKUP('Crop 2'!$E$53,Carbon!$AH$4:$AI$10,2,FALSE),0)+IF('Crop 2'!$C$56=Carbon!$B160,'Crop 2'!$V$56*VLOOKUP('Crop 2'!$E$56,Carbon!$AH$4:$AI$10,2,FALSE),0)+IF('Crop 2'!$C$57=Carbon!$B160,'Crop 2'!$V$57*VLOOKUP('Crop 2'!$E$57,Carbon!$AH$4:$AI$10,2,FALSE),0)+IF('Crop 2'!$C$58=Carbon!$B160,'Crop 2'!$V$58*VLOOKUP('Crop 2'!$E$58,Carbon!$AH$4:$AI$10,2,FALSE),0)+IF('Crop 2'!$C$59=Carbon!$B160,'Crop 2'!$V$59*VLOOKUP('Crop 2'!$E$59,Carbon!$AH$4:$AI$10,2,FALSE),0)+IF('Crop 2'!$C$62=Carbon!$B160,'Crop 2'!$V$62*VLOOKUP('Crop 2'!$E$62,Carbon!$AH$4:$AI$10,2,FALSE),0)+IF('Crop 2'!$C$63=Carbon!$B160,'Crop 2'!$V$63*VLOOKUP('Crop 2'!$E$63,Carbon!$AH$4:$AI$10,2,FALSE),0)+IF('Crop 2'!$C$64=Carbon!$B160,'Crop 2'!$V$64*VLOOKUP('Crop 2'!$E$64,Carbon!$AH$4:$AI$10,2,FALSE),0)+IF('Crop 2'!$C$65=Carbon!$B160,'Crop 2'!$V$65*VLOOKUP('Crop 2'!$E$65,Carbon!$AH$4:$AI$10,2,FALSE),0))*$AL$20,2)","v":0},{"$f":"O160*Inputs!$D$15","v":0},{"$f":"ROUND((IF('Crop 3'!$C$14=Carbon!$B160,'Crop 3'!$V$14*VLOOKUP('Crop 3'!$E$14,Carbon!$AH$4:$AI$10,2,FALSE),0)+IF('Crop 3'!$C$15=Carbon!$B160,'Crop 3'!$V$15*VLOOKUP('Crop 3'!$E$15,Carbon!$AH$4:$AI$10,2,FALSE),0)+IF('Crop 3'!$C$16=Carbon!$B160,'Crop 3'!$V$16*VLOOKUP('Crop 3'!$E$16,Carbon!$AH$4:$AI$10,2,FALSE),0)+IF('Crop 3'!$C$19=Carbon!$B160,'Crop 3'!$V$19*VLOOKUP('Crop 3'!$E$19,Carbon!$AH$4:$AI$10,2,FALSE),0)+IF('Crop 3'!$C$20=Carbon!$B160,'Crop 3'!$V$20*VLOOKUP('Crop 3'!$E$20,Carbon!$AH$4:$AI$10,2,FALSE),0)+IF('Crop 3'!$C$21=Carbon!$B160,'Crop 3'!$V$21*VLOOKUP('Crop 3'!$E$21,Carbon!$AH$4:$AI$10,2,FALSE),0)+IF('Crop 3'!$C$49=Carbon!$B160,'Crop 3'!$V$49*VLOOKUP('Crop 3'!$E$49,Carbon!$AH$4:$AI$10,2,FALSE),0)+IF('Crop 3'!$C$50=Carbon!$B160,'Crop 3'!$V$50*VLOOKUP('Crop 3'!$E$50,Carbon!$AH$4:$AI$10,2,FALSE),0)+IF('Crop 3'!$C$51=Carbon!$B160,'Crop 3'!$V$51*VLOOKUP('Crop 3'!$E$51,Carbon!$AH$4:$AI$10,2,FALSE),0)+IF('Crop 3'!$C$52=Carbon!$B160,'Crop 3'!$V$52*VLOOKUP('Crop 3'!$E$52,Carbon!$AH$4:$AI$10,2,FALSE),0)+IF('Crop 3'!$C$53=Carbon!$B160,'Crop 3'!$V$53*VLOOKUP('Crop 3'!$E$53,Carbon!$AH$4:$AI$10,2,FALSE),0)+IF('Crop 3'!$C$56=Carbon!$B160,'Crop 3'!$V$56*VLOOKUP('Crop 3'!$E$56,Carbon!$AH$4:$AI$10,2,FALSE),0)+IF('Crop 3'!$C$57=Carbon!$B160,'Crop 3'!$V$57*VLOOKUP('Crop 3'!$E$57,Carbon!$AH$4:$AI$10,2,FALSE),0)+IF('Crop 3'!$C$58=Carbon!$B160,'Crop 3'!$V$58*VLOOKUP('Crop 3'!$E$58,Carbon!$AH$4:$AI$10,2,FALSE),0)+IF('Crop 3'!$C$59=Carbon!$B160,'Crop 3'!$V$59*VLOOKUP('Crop 3'!$E$59,Carbon!$AH$4:$AI$10,2,FALSE),0)+IF('Crop 3'!$C$62=Carbon!$B160,'Crop 3'!$V$62*VLOOKUP('Crop 3'!$E$62,Carbon!$AH$4:$AI$10,2,FALSE),0)+IF('Crop 3'!$C$63=Carbon!$B160,'Crop 3'!$V$63*VLOOKUP('Crop 3'!$E$63,Carbon!$AH$4:$AI$10,2,FALSE),0)+IF('Crop 3'!$C$64=Carbon!$B160,'Crop 3'!$V$64*VLOOKUP('Crop 3'!$E$64,Carbon!$AH$4:$AI$10,2,FALSE),0)+IF('Crop 3'!$C$65=Carbon!$B160,'Crop 3'!$V$65*VLOOKUP('Crop 3'!$E$65,Carbon!$AH$4:$AI$10,2,FALSE),0))*$AL$20,2)","v":0},{"$f":"Q160*Inputs!$D$17","v":0},{"$f":"ROUND(T160/Inputs!D$19,2)","v":0},0,null,null,0,{"$f":"W160*Inputs!$D$13","v":0},0,{"$f":"Y160*Inputs!$D$13","v":0},0,{"$f":"AA160*Inputs!$D$13","v":0},{"$f":"ROUND(AD160/Inputs!D$19,2)","v":0},0]
[null,{"$f":"Defaults!AH127","v":"Valor"},{"$f":"ROUND((IF('Crop 1'!$C$14=Carbon!$B161,'Crop 1'!$L$14*VLOOKUP('Crop 1'!$E$14,Carbon!$AH$4:$AI$10,2,FALSE),0)+IF('Crop 1'!$C$15=Carbon!$B161,'Crop 1'!$L$15*VLOOKUP('Crop 1'!$E$15,Carbon!$AH$4:$AI$10,2,FALSE),0)+IF('Crop 1'!$C$16=Carbon!$B161,'Crop 1'!$L$16*VLOOKUP('Crop 1'!$E$16,Carbon!$AH$4:$AI$10,2,FALSE),0)+IF('Crop 1'!$C$19=Carbon!$B161,'Crop 1'!$L$19*VLOOKUP('Crop 1'!$E$19,Carbon!$AH$4:$AI$10,2,FALSE),0)+IF('Crop 1'!$C$20=Carbon!$B161,'Crop 1'!$L$20*VLOOKUP('Crop 1'!$E$20,Carbon!$AH$4:$AI$10,2,FALSE),0)+IF('Crop 1'!$C$21=Carbon!$B161,'Crop 1'!$L$21*VLOOKUP('Crop 1'!$E$21,Carbon!$AH$4:$AI$10,2,FALSE),0)+IF('Crop 1'!$C$49=Carbon!$B161,'Crop 1'!$L$49*VLOOKUP('Crop 1'!$E$49,Carbon!$AH$4:$AI$10,2,FALSE),0)+IF('Crop 1'!$C$50=Carbon!$B161,'Crop 1'!$L$50*VLOOKUP('Crop 1'!$E$50,Carbon!$AH$4:$AI$10,2,FALSE),0)+IF('Crop 1'!$C$51=Carbon!$B161,'Crop 1'!$L$51*VLOOKUP('Crop 1'!$E$51,Carbon!$AH$4:$AI$10,2,FALSE),0)+IF('Crop 1'!$C$52=Carbon!$B161,'Crop 1'!$L$52*VLOOKUP('Crop 1'!$E$52,Carbon!$AH$4:$AI$10,2,FALSE),0)+IF('Crop 1'!$C$53=Carbon!$B161,'Crop 1'!$L$53*VLOOKUP('Crop 1'!$E$53,Carbon!$AH$4:$AI$10,2,FALSE),0)+IF('Crop 1'!$C$56=Carbon!$B161,'Crop 1'!$L$56*VLOOKUP('Crop 1'!$E$56,Carbon!$AH$4:$AI$10,2,FALSE),0)+IF('Crop 1'!$C$57=Carbon!$B161,'Crop 1'!$L$57*VLOOKUP('Crop 1'!$E$57,Carbon!$AH$4:$AI$10,2,FALSE),0)+IF('Crop 1'!$C$58=Carbon!$B161,'Crop 1'!$L$58*VLOOKUP('Crop 1'!$E$58,Carbon!$AH$4:$AI$10,2,FALSE),0)+IF('Crop 1'!$C$59=Carbon!$B161,'Crop 1'!$L$59*VLOOKUP('Crop 1'!$E$59,Carbon!$AH$4:$AI$10,2,FALSE),0)+IF('Crop 1'!$C$62=Carbon!$B161,'Crop 1'!$L$62*VLOOKUP('Crop 1'!$E$62,Carbon!$AH$4:$AI$10,2,FALSE),0)+IF('Crop 1'!$C$63=Carbon!$B161,'Crop 1'!$L$63*VLOOKUP('Crop 1'!$E$63,Carbon!$AH$4:$AI$10,2,FALSE),0)+IF('Crop 1'!$C$64=Carbon!$B161,'Crop 1'!$L$64*VLOOKUP('Crop 1'!$E$64,Carbon!$AH$4:$AI$10,2,FALSE),0)+IF('Crop 1'!$C$65=Carbon!$B161,'Crop 1'!$L$65*VLOOKUP('Crop 1'!$E$65,Carbon!$AH$4:$AI$10,2,FALSE),0))*$AL$20,2)","v":0.42},{"$f":"C161*Inputs!$D$13","v":126},{"$f":"ROUND((IF('Crop 2'!$C$14=Carbon!$B161,'Crop 2'!$L$14*VLOOKUP('Crop 2'!$E$14,Carbon!$AH$4:$AI$10,2,FALSE),0)+IF('Crop 2'!$C$15=Carbon!$B161,'Crop 2'!$L$15*VLOOKUP('Crop 2'!$E$15,Carbon!$AH$4:$AI$10,2,FALSE),0)+IF('Crop 2'!$C$16=Carbon!$B161,'Crop 2'!$L$16*VLOOKUP('Crop 2'!$E$16,Carbon!$AH$4:$AI$10,2,FALSE),0)+IF('Crop 2'!$C$19=Carbon!$B161,'Crop 2'!$L$19*VLOOKUP('Crop 2'!$E$19,Carbon!$AH$4:$AI$10,2,FALSE),0)+IF('Crop 2'!$C$20=Carbon!$B161,'Crop 2'!$L$20*VLOOKUP('Crop 2'!$E$20,Carbon!$AH$4:$AI$10,2,FALSE),0)+IF('Crop 2'!$C$21=Carbon!$B161,'Crop 2'!$L$21*VLOOKUP('Crop 2'!$E$21,Carbon!$AH$4:$AI$10,2,FALSE),0)+IF('Crop 2'!$C$49=Carbon!$B161,'Crop 2'!$L$49*VLOOKUP('Crop 2'!$E$49,Carbon!$AH$4:$AI$10,2,FALSE),0)+IF('Crop 2'!$C$50=Carbon!$B161,'Crop 2'!$L$50*VLOOKUP('Crop 2'!$E$50,Carbon!$AH$4:$AI$10,2,FALSE),0)+IF('Crop 2'!$C$51=Carbon!$B161,'Crop 2'!$L$51*VLOOKUP('Crop 2'!$E$51,Carbon!$AH$4:$AI$10,2,FALSE),0)+IF('Crop 2'!$C$52=Carbon!$B161,'Crop 2'!$L$52*VLOOKUP('Crop 2'!$E$52,Carbon!$AH$4:$AI$10,2,FALSE),0)+IF('Crop 2'!$C$53=Carbon!$B161,'Crop 2'!$L$53*VLOOKUP('Crop 2'!$E$53,Carbon!$AH$4:$AI$10,2,FALSE),0)+IF('Crop 2'!$C$56=Carbon!$B161,'Crop 2'!$L$56*VLOOKUP('Crop 2'!$E$56,Carbon!$AH$4:$AI$10,2,FALSE),0)+IF('Crop 2'!$C$57=Carbon!$B161,'Crop 2'!$L$57*VLOOKUP('Crop 2'!$E$57,Carbon!$AH$4:$AI$10,2,FALSE),0)+IF('Crop 2'!$C$58=Carbon!$B161,'Crop 2'!$L$58*VLOOKUP('Crop 2'!$E$58,Carbon!$AH$4:$AI$10,2,FALSE),0)+IF('Crop 2'!$C$59=Carbon!$B161,'Crop 2'!$L$59*VLOOKUP('Crop 2'!$E$59,Carbon!$AH$4:$AI$10,2,FALSE),0)+IF('Crop 2'!$C$62=Carbon!$B161,'Crop 2'!$L$62*VLOOKUP('Crop 2'!$E$62,Carbon!$AH$4:$AI$10,2,FALSE),0)+IF('Crop 2'!$C$63=Carbon!$B161,'Crop 2'!$L$63*VLOOKUP('Crop 2'!$E$63,Carbon!$AH$4:$AI$10,2,FALSE),0)+IF('Crop 2'!$C$64=Carbon!$B161,'Crop 2'!$L$64*VLOOKUP('Crop 2'!$E$64,Carbon!$AH$4:$AI$10,2,FALSE),0)+IF('Crop 2'!$C$65=Carbon!$B161,'Crop 2'!$L$65*VLOOKUP('Crop 2'!$E$65,Carbon!$AH$4:$AI$10,2,FALSE),0))*$AL$20,2)","v":0},{"$f":"E161*Inputs!$D$15","v":0},{"$f":"ROUND((IF('Crop 3'!$C$14=Carbon!$B161,'Crop 3'!$L$14*VLOOKUP('Crop 3'!$E$14,Carbon!$AH$4:$AI$10,2,FALSE),0)+IF('Crop 3'!$C$15=Carbon!$B161,'Crop 3'!$L$15*VLOOKUP('Crop 3'!$E$15,Carbon!$AH$4:$AI$10,2,FALSE),0)+IF('Crop 3'!$C$16=Carbon!$B161,'Crop 3'!$L$16*VLOOKUP('Crop 3'!$E$16,Carbon!$AH$4:$AI$10,2,FALSE),0)+IF('Crop 3'!$C$19=Carbon!$B161,'Crop 3'!$L$19*VLOOKUP('Crop 3'!$E$19,Carbon!$AH$4:$AI$10,2,FALSE),0)+IF('Crop 3'!$C$20=Carbon!$B161,'Crop 3'!$L$20*VLOOKUP('Crop 3'!$E$20,Carbon!$AH$4:$AI$10,2,FALSE),0)+IF('Crop 3'!$C$21=Carbon!$B161,'Crop 3'!$L$21*VLOOKUP('Crop 3'!$E$21,Carbon!$AH$4:$AI$10,2,FALSE),0)+IF('Crop 3'!$C$49=Carbon!$B161,'Crop 3'!$L$49*VLOOKUP('Crop 3'!$E$49,Carbon!$AH$4:$AI$10,2,FALSE),0)+IF('Crop 3'!$C$50=Carbon!$B161,'Crop 3'!$L$50*VLOOKUP('Crop 3'!$E$50,Carbon!$AH$4:$AI$10,2,FALSE),0)+IF('Crop 3'!$C$51=Carbon!$B161,'Crop 3'!$L$51*VLOOKUP('Crop 3'!$E$51,Carbon!$AH$4:$AI$10,2,FALSE),0)+IF('Crop 3'!$C$52=Carbon!$B161,'Crop 3'!$L$52*VLOOKUP('Crop 3'!$E$52,Carbon!$AH$4:$AI$10,2,FALSE),0)+IF('Crop 3'!$C$53=Carbon!$B161,'Crop 3'!$L$53*VLOOKUP('Crop 3'!$E$53,Carbon!$AH$4:$AI$10,2,FALSE),0)+IF('Crop 3'!$C$56=Carbon!$B161,'Crop 3'!$L$56*VLOOKUP('Crop 3'!$E$56,Carbon!$AH$4:$AI$10,2,FALSE),0)+IF('Crop 3'!$C$57=Carbon!$B161,'Crop 3'!$L$57*VLOOKUP('Crop 3'!$E$57,Carbon!$AH$4:$AI$10,2,FALSE),0)+IF('Crop 3'!$C$58=Carbon!$B161,'Crop 3'!$L$58*VLOOKUP('Crop 3'!$E$58,Carbon!$AH$4:$AI$10,2,FALSE),0)+IF('Crop 3'!$C$59=Carbon!$B161,'Crop 3'!$L$59*VLOOKUP('Crop 3'!$E$59,Carbon!$AH$4:$AI$10,2,FALSE),0)+IF('Crop 3'!$C$62=Carbon!$B161,'Crop 3'!$L$62*VLOOKUP('Crop 3'!$E$62,Carbon!$AH$4:$AI$10,2,FALSE),0)+IF('Crop 3'!$C$63=Carbon!$B161,'Crop 3'!$L$63*VLOOKUP('Crop 3'!$E$63,Carbon!$AH$4:$AI$10,2,FALSE),0)+IF('Crop 3'!$C$64=Carbon!$B161,'Crop 3'!$L$64*VLOOKUP('Crop 3'!$E$64,Carbon!$AH$4:$AI$10,2,FALSE),0)+IF('Crop 3'!$C$65=Carbon!$B161,'Crop 3'!$L$65*VLOOKUP('Crop 3'!$E$65,Carbon!$AH$4:$AI$10,2,FALSE),0))*$AL$20,2)","v":0},{"$f":"G161*Inputs!$D$17","v":0},{"$f":"ROUND(J161/Inputs!D$19,2)","v":0.21},126,null,null,{"$f":"ROUND((IF('Crop 1'!$C$14=Carbon!$B161,'Crop 1'!$V$14*VLOOKUP('Crop 1'!$E$14,Carbon!$AH$4:$AI$10,2,FALSE),0)+IF('Crop 1'!$C$15=Carbon!$B161,'Crop 1'!$V$15*VLOOKUP('Crop 1'!$E$15,Carbon!$AH$4:$AI$10,2,FALSE),0)+IF('Crop 1'!$C$16=Carbon!$B161,'Crop 1'!$V$16*VLOOKUP('Crop 1'!$E$16,Carbon!$AH$4:$AI$10,2,FALSE),0)+IF('Crop 1'!$C$19=Carbon!$B161,'Crop 1'!$V$19*VLOOKUP('Crop 1'!$E$19,Carbon!$AH$4:$AI$10,2,FALSE),0)+IF('Crop 1'!$C$20=Carbon!$B161,'Crop 1'!$V$20*VLOOKUP('Crop 1'!$E$20,Carbon!$AH$4:$AI$10,2,FALSE),0)+IF('Crop 1'!$C$21=Carbon!$B161,'Crop 1'!$V$21*VLOOKUP('Crop 1'!$E$21,Carbon!$AH$4:$AI$10,2,FALSE),0)+IF('Crop 1'!$C$49=Carbon!$B161,'Crop 1'!$V$49*VLOOKUP('Crop 1'!$E$49,Carbon!$AH$4:$AI$10,2,FALSE),0)+IF('Crop 1'!$C$50=Carbon!$B161,'Crop 1'!$V$50*VLOOKUP('Crop 1'!$E$50,Carbon!$AH$4:$AI$10,2,FALSE),0)+IF('Crop 1'!$C$51=Carbon!$B161,'Crop 1'!$V$51*VLOOKUP('Crop 1'!$E$51,Carbon!$AH$4:$AI$10,2,FALSE),0)+IF('Crop 1'!$C$52=Carbon!$B161,'Crop 1'!$V$52*VLOOKUP('Crop 1'!$E$52,Carbon!$AH$4:$AI$10,2,FALSE),0)+IF('Crop 1'!$C$53=Carbon!$B161,'Crop 1'!$V$53*VLOOKUP('Crop 1'!$E$53,Carbon!$AH$4:$AI$10,2,FALSE),0)+IF('Crop 1'!$C$56=Carbon!$B161,'Crop 1'!$V$56*VLOOKUP('Crop 1'!$E$56,Carbon!$AH$4:$AI$10,2,FALSE),0)+IF('Crop 1'!$C$57=Carbon!$B161,'Crop 1'!$V$57*VLOOKUP('Crop 1'!$E$57,Carbon!$AH$4:$AI$10,2,FALSE),0)+IF('Crop 1'!$C$58=Carbon!$B161,'Crop 1'!$V$58*VLOOKUP('Crop 1'!$E$58,Carbon!$AH$4:$AI$10,2,FALSE),0)+IF('Crop 1'!$C$59=Carbon!$B161,'Crop 1'!$V$59*VLOOKUP('Crop 1'!$E$59,Carbon!$AH$4:$AI$10,2,FALSE),0)+IF('Crop 1'!$C$62=Carbon!$B161,'Crop 1'!$V$62*VLOOKUP('Crop 1'!$E$62,Carbon!$AH$4:$AI$10,2,FALSE),0)+IF('Crop 1'!$C$63=Carbon!$B161,'Crop 1'!$V$63*VLOOKUP('Crop 1'!$E$63,Carbon!$AH$4:$AI$10,2,FALSE),0)+IF('Crop 1'!$C$64=Carbon!$B161,'Crop 1'!$V$64*VLOOKUP('Crop 1'!$E$64,Carbon!$AH$4:$AI$10,2,FALSE),0)+IF('Crop 1'!$C$65=Carbon!$B161,'Crop 1'!$V$65*VLOOKUP('Crop 1'!$E$65,Carbon!$AH$4:$AI$10,2,FALSE),0))*$AL$20,2)","v":0.38},{"$f":"M161*Inputs!$D$13","v":114},{"$f":"ROUND((IF('Crop 2'!$C$14=Carbon!$B161,'Crop 2'!$V$14*VLOOKUP('Crop 2'!$E$14,Carbon!$AH$4:$AI$10,2,FALSE),0)+IF('Crop 2'!$C$15=Carbon!$B161,'Crop 2'!$V$15*VLOOKUP('Crop 2'!$E$15,Carbon!$AH$4:$AI$10,2,FALSE),0)+IF('Crop 2'!$C$16=Carbon!$B161,'Crop 2'!$V$16*VLOOKUP('Crop 2'!$E$16,Carbon!$AH$4:$AI$10,2,FALSE),0)+IF('Crop 2'!$C$19=Carbon!$B161,'Crop 2'!$V$19*VLOOKUP('Crop 2'!$E$19,Carbon!$AH$4:$AI$10,2,FALSE),0)+IF('Crop 2'!$C$20=Carbon!$B161,'Crop 2'!$V$20*VLOOKUP('Crop 2'!$E$20,Carbon!$AH$4:$AI$10,2,FALSE),0)+IF('Crop 2'!$C$21=Carbon!$B161,'Crop 2'!$V$21*VLOOKUP('Crop 2'!$E$21,Carbon!$AH$4:$AI$10,2,FALSE),0)+IF('Crop 2'!$C$49=Carbon!$B161,'Crop 2'!$V$49*VLOOKUP('Crop 2'!$E$49,Carbon!$AH$4:$AI$10,2,FALSE),0)+IF('Crop 2'!$C$50=Carbon!$B161,'Crop 2'!$V$50*VLOOKUP('Crop 2'!$E$50,Carbon!$AH$4:$AI$10,2,FALSE),0)+IF('Crop 2'!$C$51=Carbon!$B161,'Crop 2'!$V$51*VLOOKUP('Crop 2'!$E$51,Carbon!$AH$4:$AI$10,2,FALSE),0)+IF('Crop 2'!$C$52=Carbon!$B161,'Crop 2'!$V$52*VLOOKUP('Crop 2'!$E$52,Carbon!$AH$4:$AI$10,2,FALSE),0)+IF('Crop 2'!$C$53=Carbon!$B161,'Crop 2'!$V$53*VLOOKUP('Crop 2'!$E$53,Carbon!$AH$4:$AI$10,2,FALSE),0)+IF('Crop 2'!$C$56=Carbon!$B161,'Crop 2'!$V$56*VLOOKUP('Crop 2'!$E$56,Carbon!$AH$4:$AI$10,2,FALSE),0)+IF('Crop 2'!$C$57=Carbon!$B161,'Crop 2'!$V$57*VLOOKUP('Crop 2'!$E$57,Carbon!$AH$4:$AI$10,2,FALSE),0)+IF('Crop 2'!$C$58=Carbon!$B161,'Crop 2'!$V$58*VLOOKUP('Crop 2'!$E$58,Carbon!$AH$4:$AI$10,2,FALSE),0)+IF('Crop 2'!$C$59=Carbon!$B161,'Crop 2'!$V$59*VLOOKUP('Crop 2'!$E$59,Carbon!$AH$4:$AI$10,2,FALSE),0)+IF('Crop 2'!$C$62=Carbon!$B161,'Crop 2'!$V$62*VLOOKUP('Crop 2'!$E$62,Carbon!$AH$4:$AI$10,2,FALSE),0)+IF('Crop 2'!$C$63=Carbon!$B161,'Crop 2'!$V$63*VLOOKUP('Crop 2'!$E$63,Carbon!$AH$4:$AI$10,2,FALSE),0)+IF('Crop 2'!$C$64=Carbon!$B161,'Crop 2'!$V$64*VLOOKUP('Crop 2'!$E$64,Carbon!$AH$4:$AI$10,2,FALSE),0)+IF('Crop 2'!$C$65=Carbon!$B161,'Crop 2'!$V$65*VLOOKUP('Crop 2'!$E$65,Carbon!$AH$4:$AI$10,2,FALSE),0))*$AL$20,2)","v":0},{"$f":"O161*Inputs!$D$15","v":0},{"$f":"ROUND((IF('Crop 3'!$C$14=Carbon!$B161,'Crop 3'!$V$14*VLOOKUP('Crop 3'!$E$14,Carbon!$AH$4:$AI$10,2,FALSE),0)+IF('Crop 3'!$C$15=Carbon!$B161,'Crop 3'!$V$15*VLOOKUP('Crop 3'!$E$15,Carbon!$AH$4:$AI$10,2,FALSE),0)+IF('Crop 3'!$C$16=Carbon!$B161,'Crop 3'!$V$16*VLOOKUP('Crop 3'!$E$16,Carbon!$AH$4:$AI$10,2,FALSE),0)+IF('Crop 3'!$C$19=Carbon!$B161,'Crop 3'!$V$19*VLOOKUP('Crop 3'!$E$19,Carbon!$AH$4:$AI$10,2,FALSE),0)+IF('Crop 3'!$C$20=Carbon!$B161,'Crop 3'!$V$20*VLOOKUP('Crop 3'!$E$20,Carbon!$AH$4:$AI$10,2,FALSE),0)+IF('Crop 3'!$C$21=Carbon!$B161,'Crop 3'!$V$21*VLOOKUP('Crop 3'!$E$21,Carbon!$AH$4:$AI$10,2,FALSE),0)+IF('Crop 3'!$C$49=Carbon!$B161,'Crop 3'!$V$49*VLOOKUP('Crop 3'!$E$49,Carbon!$AH$4:$AI$10,2,FALSE),0)+IF('Crop 3'!$C$50=Carbon!$B161,'Crop 3'!$V$50*VLOOKUP('Crop 3'!$E$50,Carbon!$AH$4:$AI$10,2,FALSE),0)+IF('Crop 3'!$C$51=Carbon!$B161,'Crop 3'!$V$51*VLOOKUP('Crop 3'!$E$51,Carbon!$AH$4:$AI$10,2,FALSE),0)+IF('Crop 3'!$C$52=Carbon!$B161,'Crop 3'!$V$52*VLOOKUP('Crop 3'!$E$52,Carbon!$AH$4:$AI$10,2,FALSE),0)+IF('Crop 3'!$C$53=Carbon!$B161,'Crop 3'!$V$53*VLOOKUP('Crop 3'!$E$53,Carbon!$AH$4:$AI$10,2,FALSE),0)+IF('Crop 3'!$C$56=Carbon!$B161,'Crop 3'!$V$56*VLOOKUP('Crop 3'!$E$56,Carbon!$AH$4:$AI$10,2,FALSE),0)+IF('Crop 3'!$C$57=Carbon!$B161,'Crop 3'!$V$57*VLOOKUP('Crop 3'!$E$57,Carbon!$AH$4:$AI$10,2,FALSE),0)+IF('Crop 3'!$C$58=Carbon!$B161,'Crop 3'!$V$58*VLOOKUP('Crop 3'!$E$58,Carbon!$AH$4:$AI$10,2,FALSE),0)+IF('Crop 3'!$C$59=Carbon!$B161,'Crop 3'!$V$59*VLOOKUP('Crop 3'!$E$59,Carbon!$AH$4:$AI$10,2,FALSE),0)+IF('Crop 3'!$C$62=Carbon!$B161,'Crop 3'!$V$62*VLOOKUP('Crop 3'!$E$62,Carbon!$AH$4:$AI$10,2,FALSE),0)+IF('Crop 3'!$C$63=Carbon!$B161,'Crop 3'!$V$63*VLOOKUP('Crop 3'!$E$63,Carbon!$AH$4:$AI$10,2,FALSE),0)+IF('Crop 3'!$C$64=Carbon!$B161,'Crop 3'!$V$64*VLOOKUP('Crop 3'!$E$64,Carbon!$AH$4:$AI$10,2,FALSE),0)+IF('Crop 3'!$C$65=Carbon!$B161,'Crop 3'!$V$65*VLOOKUP('Crop 3'!$E$65,Carbon!$AH$4:$AI$10,2,FALSE),0))*$AL$20,2)","v":0},{"$f":"Q161*Inputs!$D$17","v":0},{"$f":"ROUND(T161/Inputs!D$19,2)","v":0.19},114,null,null,-3.999999999999998E-2,{"$f":"W161*Inputs!$D$13","v":-11.999999999999995},0,{"$f":"Y161*Inputs!$D$13","v":0},0,{"$f":"AA161*Inputs!$D$13","v":0},{"$f":"ROUND(AD161/Inputs!D$19,2)","v":-0.02},-12]
[null,{"$f":"Defaults!AH128","v":"Verdict"},{"$f":"ROUND((IF('Crop 1'!$C$14=Carbon!$B162,'Crop 1'!$L$14*VLOOKUP('Crop 1'!$E$14,Carbon!$AH$4:$AI$10,2,FALSE),0)+IF('Crop 1'!$C$15=Carbon!$B162,'Crop 1'!$L$15*VLOOKUP('Crop 1'!$E$15,Carbon!$AH$4:$AI$10,2,FALSE),0)+IF('Crop 1'!$C$16=Carbon!$B162,'Crop 1'!$L$16*VLOOKUP('Crop 1'!$E$16,Carbon!$AH$4:$AI$10,2,FALSE),0)+IF('Crop 1'!$C$19=Carbon!$B162,'Crop 1'!$L$19*VLOOKUP('Crop 1'!$E$19,Carbon!$AH$4:$AI$10,2,FALSE),0)+IF('Crop 1'!$C$20=Carbon!$B162,'Crop 1'!$L$20*VLOOKUP('Crop 1'!$E$20,Carbon!$AH$4:$AI$10,2,FALSE),0)+IF('Crop 1'!$C$21=Carbon!$B162,'Crop 1'!$L$21*VLOOKUP('Crop 1'!$E$21,Carbon!$AH$4:$AI$10,2,FALSE),0)+IF('Crop 1'!$C$49=Carbon!$B162,'Crop 1'!$L$49*VLOOKUP('Crop 1'!$E$49,Carbon!$AH$4:$AI$10,2,FALSE),0)+IF('Crop 1'!$C$50=Carbon!$B162,'Crop 1'!$L$50*VLOOKUP('Crop 1'!$E$50,Carbon!$AH$4:$AI$10,2,FALSE),0)+IF('Crop 1'!$C$51=Carbon!$B162,'Crop 1'!$L$51*VLOOKUP('Crop 1'!$E$51,Carbon!$AH$4:$AI$10,2,FALSE),0)+IF('Crop 1'!$C$52=Carbon!$B162,'Crop 1'!$L$52*VLOOKUP('Crop 1'!$E$52,Carbon!$AH$4:$AI$10,2,FALSE),0)+IF('Crop 1'!$C$53=Carbon!$B162,'Crop 1'!$L$53*VLOOKUP('Crop 1'!$E$53,Carbon!$AH$4:$AI$10,2,FALSE),0)+IF('Crop 1'!$C$56=Carbon!$B162,'Crop 1'!$L$56*VLOOKUP('Crop 1'!$E$56,Carbon!$AH$4:$AI$10,2,FALSE),0)+IF('Crop 1'!$C$57=Carbon!$B162,'Crop 1'!$L$57*VLOOKUP('Crop 1'!$E$57,Carbon!$AH$4:$AI$10,2,FALSE),0)+IF('Crop 1'!$C$58=Carbon!$B162,'Crop 1'!$L$58*VLOOKUP('Crop 1'!$E$58,Carbon!$AH$4:$AI$10,2,FALSE),0)+IF('Crop 1'!$C$59=Carbon!$B162,'Crop 1'!$L$59*VLOOKUP('Crop 1'!$E$59,Carbon!$AH$4:$AI$10,2,FALSE),0)+IF('Crop 1'!$C$62=Carbon!$B162,'Crop 1'!$L$62*VLOOKUP('Crop 1'!$E$62,Carbon!$AH$4:$AI$10,2,FALSE),0)+IF('Crop 1'!$C$63=Carbon!$B162,'Crop 1'!$L$63*VLOOKUP('Crop 1'!$E$63,Carbon!$AH$4:$AI$10,2,FALSE),0)+IF('Crop 1'!$C$64=Carbon!$B162,'Crop 1'!$L$64*VLOOKUP('Crop 1'!$E$64,Carbon!$AH$4:$AI$10,2,FALSE),0)+IF('Crop 1'!$C$65=Carbon!$B162,'Crop 1'!$L$65*VLOOKUP('Crop 1'!$E$65,Carbon!$AH$4:$AI$10,2,FALSE),0))*$AL$20,2)","v":0},{"$f":"C162*Inputs!$D$13","v":0},{"$f":"ROUND((IF('Crop 2'!$C$14=Carbon!$B162,'Crop 2'!$L$14*VLOOKUP('Crop 2'!$E$14,Carbon!$AH$4:$AI$10,2,FALSE),0)+IF('Crop 2'!$C$15=Carbon!$B162,'Crop 2'!$L$15*VLOOKUP('Crop 2'!$E$15,Carbon!$AH$4:$AI$10,2,FALSE),0)+IF('Crop 2'!$C$16=Carbon!$B162,'Crop 2'!$L$16*VLOOKUP('Crop 2'!$E$16,Carbon!$AH$4:$AI$10,2,FALSE),0)+IF('Crop 2'!$C$19=Carbon!$B162,'Crop 2'!$L$19*VLOOKUP('Crop 2'!$E$19,Carbon!$AH$4:$AI$10,2,FALSE),0)+IF('Crop 2'!$C$20=Carbon!$B162,'Crop 2'!$L$20*VLOOKUP('Crop 2'!$E$20,Carbon!$AH$4:$AI$10,2,FALSE),0)+IF('Crop 2'!$C$21=Carbon!$B162,'Crop 2'!$L$21*VLOOKUP('Crop 2'!$E$21,Carbon!$AH$4:$AI$10,2,FALSE),0)+IF('Crop 2'!$C$49=Carbon!$B162,'Crop 2'!$L$49*VLOOKUP('Crop 2'!$E$49,Carbon!$AH$4:$AI$10,2,FALSE),0)+IF('Crop 2'!$C$50=Carbon!$B162,'Crop 2'!$L$50*VLOOKUP('Crop 2'!$E$50,Carbon!$AH$4:$AI$10,2,FALSE),0)+IF('Crop 2'!$C$51=Carbon!$B162,'Crop 2'!$L$51*VLOOKUP('Crop 2'!$E$51,Carbon!$AH$4:$AI$10,2,FALSE),0)+IF('Crop 2'!$C$52=Carbon!$B162,'Crop 2'!$L$52*VLOOKUP('Crop 2'!$E$52,Carbon!$AH$4:$AI$10,2,FALSE),0)+IF('Crop 2'!$C$53=Carbon!$B162,'Crop 2'!$L$53*VLOOKUP('Crop 2'!$E$53,Carbon!$AH$4:$AI$10,2,FALSE),0)+IF('Crop 2'!$C$56=Carbon!$B162,'Crop 2'!$L$56*VLOOKUP('Crop 2'!$E$56,Carbon!$AH$4:$AI$10,2,FALSE),0)+IF('Crop 2'!$C$57=Carbon!$B162,'Crop 2'!$L$57*VLOOKUP('Crop 2'!$E$57,Carbon!$AH$4:$AI$10,2,FALSE),0)+IF('Crop 2'!$C$58=Carbon!$B162,'Crop 2'!$L$58*VLOOKUP('Crop 2'!$E$58,Carbon!$AH$4:$AI$10,2,FALSE),0)+IF('Crop 2'!$C$59=Carbon!$B162,'Crop 2'!$L$59*VLOOKUP('Crop 2'!$E$59,Carbon!$AH$4:$AI$10,2,FALSE),0)+IF('Crop 2'!$C$62=Carbon!$B162,'Crop 2'!$L$62*VLOOKUP('Crop 2'!$E$62,Carbon!$AH$4:$AI$10,2,FALSE),0)+IF('Crop 2'!$C$63=Carbon!$B162,'Crop 2'!$L$63*VLOOKUP('Crop 2'!$E$63,Carbon!$AH$4:$AI$10,2,FALSE),0)+IF('Crop 2'!$C$64=Carbon!$B162,'Crop 2'!$L$64*VLOOKUP('Crop 2'!$E$64,Carbon!$AH$4:$AI$10,2,FALSE),0)+IF('Crop 2'!$C$65=Carbon!$B162,'Crop 2'!$L$65*VLOOKUP('Crop 2'!$E$65,Carbon!$AH$4:$AI$10,2,FALSE),0))*$AL$20,2)","v":0},{"$f":"E162*Inputs!$D$15","v":0},{"$f":"ROUND((IF('Crop 3'!$C$14=Carbon!$B162,'Crop 3'!$L$14*VLOOKUP('Crop 3'!$E$14,Carbon!$AH$4:$AI$10,2,FALSE),0)+IF('Crop 3'!$C$15=Carbon!$B162,'Crop 3'!$L$15*VLOOKUP('Crop 3'!$E$15,Carbon!$AH$4:$AI$10,2,FALSE),0)+IF('Crop 3'!$C$16=Carbon!$B162,'Crop 3'!$L$16*VLOOKUP('Crop 3'!$E$16,Carbon!$AH$4:$AI$10,2,FALSE),0)+IF('Crop 3'!$C$19=Carbon!$B162,'Crop 3'!$L$19*VLOOKUP('Crop 3'!$E$19,Carbon!$AH$4:$AI$10,2,FALSE),0)+IF('Crop 3'!$C$20=Carbon!$B162,'Crop 3'!$L$20*VLOOKUP('Crop 3'!$E$20,Carbon!$AH$4:$AI$10,2,FALSE),0)+IF('Crop 3'!$C$21=Carbon!$B162,'Crop 3'!$L$21*VLOOKUP('Crop 3'!$E$21,Carbon!$AH$4:$AI$10,2,FALSE),0)+IF('Crop 3'!$C$49=Carbon!$B162,'Crop 3'!$L$49*VLOOKUP('Crop 3'!$E$49,Carbon!$AH$4:$AI$10,2,FALSE),0)+IF('Crop 3'!$C$50=Carbon!$B162,'Crop 3'!$L$50*VLOOKUP('Crop 3'!$E$50,Carbon!$AH$4:$AI$10,2,FALSE),0)+IF('Crop 3'!$C$51=Carbon!$B162,'Crop 3'!$L$51*VLOOKUP('Crop 3'!$E$51,Carbon!$AH$4:$AI$10,2,FALSE),0)+IF('Crop 3'!$C$52=Carbon!$B162,'Crop 3'!$L$52*VLOOKUP('Crop 3'!$E$52,Carbon!$AH$4:$AI$10,2,FALSE),0)+IF('Crop 3'!$C$53=Carbon!$B162,'Crop 3'!$L$53*VLOOKUP('Crop 3'!$E$53,Carbon!$AH$4:$AI$10,2,FALSE),0)+IF('Crop 3'!$C$56=Carbon!$B162,'Crop 3'!$L$56*VLOOKUP('Crop 3'!$E$56,Carbon!$AH$4:$AI$10,2,FALSE),0)+IF('Crop 3'!$C$57=Carbon!$B162,'Crop 3'!$L$57*VLOOKUP('Crop 3'!$E$57,Carbon!$AH$4:$AI$10,2,FALSE),0)+IF('Crop 3'!$C$58=Carbon!$B162,'Crop 3'!$L$58*VLOOKUP('Crop 3'!$E$58,Carbon!$AH$4:$AI$10,2,FALSE),0)+IF('Crop 3'!$C$59=Carbon!$B162,'Crop 3'!$L$59*VLOOKUP('Crop 3'!$E$59,Carbon!$AH$4:$AI$10,2,FALSE),0)+IF('Crop 3'!$C$62=Carbon!$B162,'Crop 3'!$L$62*VLOOKUP('Crop 3'!$E$62,Carbon!$AH$4:$AI$10,2,FALSE),0)+IF('Crop 3'!$C$63=Carbon!$B162,'Crop 3'!$L$63*VLOOKUP('Crop 3'!$E$63,Carbon!$AH$4:$AI$10,2,FALSE),0)+IF('Crop 3'!$C$64=Carbon!$B162,'Crop 3'!$L$64*VLOOKUP('Crop 3'!$E$64,Carbon!$AH$4:$AI$10,2,FALSE),0)+IF('Crop 3'!$C$65=Carbon!$B162,'Crop 3'!$L$65*VLOOKUP('Crop 3'!$E$65,Carbon!$AH$4:$AI$10,2,FALSE),0))*$AL$20,2)","v":0},{"$f":"G162*Inputs!$D$17","v":0},{"$f":"ROUND(J162/Inputs!D$19,2)","v":0},0,null,null,{"$f":"ROUND((IF('Crop 1'!$C$14=Carbon!$B162,'Crop 1'!$V$14*VLOOKUP('Crop 1'!$E$14,Carbon!$AH$4:$AI$10,2,FALSE),0)+IF('Crop 1'!$C$15=Carbon!$B162,'Crop 1'!$V$15*VLOOKUP('Crop 1'!$E$15,Carbon!$AH$4:$AI$10,2,FALSE),0)+IF('Crop 1'!$C$16=Carbon!$B162,'Crop 1'!$V$16*VLOOKUP('Crop 1'!$E$16,Carbon!$AH$4:$AI$10,2,FALSE),0)+IF('Crop 1'!$C$19=Carbon!$B162,'Crop 1'!$V$19*VLOOKUP('Crop 1'!$E$19,Carbon!$AH$4:$AI$10,2,FALSE),0)+IF('Crop 1'!$C$20=Carbon!$B162,'Crop 1'!$V$20*VLOOKUP('Crop 1'!$E$20,Carbon!$AH$4:$AI$10,2,FALSE),0)+IF('Crop 1'!$C$21=Carbon!$B162,'Crop 1'!$V$21*VLOOKUP('Crop 1'!$E$21,Carbon!$AH$4:$AI$10,2,FALSE),0)+IF('Crop 1'!$C$49=Carbon!$B162,'Crop 1'!$V$49*VLOOKUP('Crop 1'!$E$49,Carbon!$AH$4:$AI$10,2,FALSE),0)+IF('Crop 1'!$C$50=Carbon!$B162,'Crop 1'!$V$50*VLOOKUP('Crop 1'!$E$50,Carbon!$AH$4:$AI$10,2,FALSE),0)+IF('Crop 1'!$C$51=Carbon!$B162,'Crop 1'!$V$51*VLOOKUP('Crop 1'!$E$51,Carbon!$AH$4:$AI$10,2,FALSE),0)+IF('Crop 1'!$C$52=Carbon!$B162,'Crop 1'!$V$52*VLOOKUP('Crop 1'!$E$52,Carbon!$AH$4:$AI$10,2,FALSE),0)+IF('Crop 1'!$C$53=Carbon!$B162,'Crop 1'!$V$53*VLOOKUP('Crop 1'!$E$53,Carbon!$AH$4:$AI$10,2,FALSE),0)+IF('Crop 1'!$C$56=Carbon!$B162,'Crop 1'!$V$56*VLOOKUP('Crop 1'!$E$56,Carbon!$AH$4:$AI$10,2,FALSE),0)+IF('Crop 1'!$C$57=Carbon!$B162,'Crop 1'!$V$57*VLOOKUP('Crop 1'!$E$57,Carbon!$AH$4:$AI$10,2,FALSE),0)+IF('Crop 1'!$C$58=Carbon!$B162,'Crop 1'!$V$58*VLOOKUP('Crop 1'!$E$58,Carbon!$AH$4:$AI$10,2,FALSE),0)+IF('Crop 1'!$C$59=Carbon!$B162,'Crop 1'!$V$59*VLOOKUP('Crop 1'!$E$59,Carbon!$AH$4:$AI$10,2,FALSE),0)+IF('Crop 1'!$C$62=Carbon!$B162,'Crop 1'!$V$62*VLOOKUP('Crop 1'!$E$62,Carbon!$AH$4:$AI$10,2,FALSE),0)+IF('Crop 1'!$C$63=Carbon!$B162,'Crop 1'!$V$63*VLOOKUP('Crop 1'!$E$63,Carbon!$AH$4:$AI$10,2,FALSE),0)+IF('Crop 1'!$C$64=Carbon!$B162,'Crop 1'!$V$64*VLOOKUP('Crop 1'!$E$64,Carbon!$AH$4:$AI$10,2,FALSE),0)+IF('Crop 1'!$C$65=Carbon!$B162,'Crop 1'!$V$65*VLOOKUP('Crop 1'!$E$65,Carbon!$AH$4:$AI$10,2,FALSE),0))*$AL$20,2)","v":0},{"$f":"M162*Inputs!$D$13","v":0},{"$f":"ROUND((IF('Crop 2'!$C$14=Carbon!$B162,'Crop 2'!$V$14*VLOOKUP('Crop 2'!$E$14,Carbon!$AH$4:$AI$10,2,FALSE),0)+IF('Crop 2'!$C$15=Carbon!$B162,'Crop 2'!$V$15*VLOOKUP('Crop 2'!$E$15,Carbon!$AH$4:$AI$10,2,FALSE),0)+IF('Crop 2'!$C$16=Carbon!$B162,'Crop 2'!$V$16*VLOOKUP('Crop 2'!$E$16,Carbon!$AH$4:$AI$10,2,FALSE),0)+IF('Crop 2'!$C$19=Carbon!$B162,'Crop 2'!$V$19*VLOOKUP('Crop 2'!$E$19,Carbon!$AH$4:$AI$10,2,FALSE),0)+IF('Crop 2'!$C$20=Carbon!$B162,'Crop 2'!$V$20*VLOOKUP('Crop 2'!$E$20,Carbon!$AH$4:$AI$10,2,FALSE),0)+IF('Crop 2'!$C$21=Carbon!$B162,'Crop 2'!$V$21*VLOOKUP('Crop 2'!$E$21,Carbon!$AH$4:$AI$10,2,FALSE),0)+IF('Crop 2'!$C$49=Carbon!$B162,'Crop 2'!$V$49*VLOOKUP('Crop 2'!$E$49,Carbon!$AH$4:$AI$10,2,FALSE),0)+IF('Crop 2'!$C$50=Carbon!$B162,'Crop 2'!$V$50*VLOOKUP('Crop 2'!$E$50,Carbon!$AH$4:$AI$10,2,FALSE),0)+IF('Crop 2'!$C$51=Carbon!$B162,'Crop 2'!$V$51*VLOOKUP('Crop 2'!$E$51,Carbon!$AH$4:$AI$10,2,FALSE),0)+IF('Crop 2'!$C$52=Carbon!$B162,'Crop 2'!$V$52*VLOOKUP('Crop 2'!$E$52,Carbon!$AH$4:$AI$10,2,FALSE),0)+IF('Crop 2'!$C$53=Carbon!$B162,'Crop 2'!$V$53*VLOOKUP('Crop 2'!$E$53,Carbon!$AH$4:$AI$10,2,FALSE),0)+IF('Crop 2'!$C$56=Carbon!$B162,'Crop 2'!$V$56*VLOOKUP('Crop 2'!$E$56,Carbon!$AH$4:$AI$10,2,FALSE),0)+IF('Crop 2'!$C$57=Carbon!$B162,'Crop 2'!$V$57*VLOOKUP('Crop 2'!$E$57,Carbon!$AH$4:$AI$10,2,FALSE),0)+IF('Crop 2'!$C$58=Carbon!$B162,'Crop 2'!$V$58*VLOOKUP('Crop 2'!$E$58,Carbon!$AH$4:$AI$10,2,FALSE),0)+IF('Crop 2'!$C$59=Carbon!$B162,'Crop 2'!$V$59*VLOOKUP('Crop 2'!$E$59,Carbon!$AH$4:$AI$10,2,FALSE),0)+IF('Crop 2'!$C$62=Carbon!$B162,'Crop 2'!$V$62*VLOOKUP('Crop 2'!$E$62,Carbon!$AH$4:$AI$10,2,FALSE),0)+IF('Crop 2'!$C$63=Carbon!$B162,'Crop 2'!$V$63*VLOOKUP('Crop 2'!$E$63,Carbon!$AH$4:$AI$10,2,FALSE),0)+IF('Crop 2'!$C$64=Carbon!$B162,'Crop 2'!$V$64*VLOOKUP('Crop 2'!$E$64,Carbon!$AH$4:$AI$10,2,FALSE),0)+IF('Crop 2'!$C$65=Carbon!$B162,'Crop 2'!$V$65*VLOOKUP('Crop 2'!$E$65,Carbon!$AH$4:$AI$10,2,FALSE),0))*$AL$20,2)","v":0},{"$f":"O162*Inputs!$D$15","v":0},{"$f":"ROUND((IF('Crop 3'!$C$14=Carbon!$B162,'Crop 3'!$V$14*VLOOKUP('Crop 3'!$E$14,Carbon!$AH$4:$AI$10,2,FALSE),0)+IF('Crop 3'!$C$15=Carbon!$B162,'Crop 3'!$V$15*VLOOKUP('Crop 3'!$E$15,Carbon!$AH$4:$AI$10,2,FALSE),0)+IF('Crop 3'!$C$16=Carbon!$B162,'Crop 3'!$V$16*VLOOKUP('Crop 3'!$E$16,Carbon!$AH$4:$AI$10,2,FALSE),0)+IF('Crop 3'!$C$19=Carbon!$B162,'Crop 3'!$V$19*VLOOKUP('Crop 3'!$E$19,Carbon!$AH$4:$AI$10,2,FALSE),0)+IF('Crop 3'!$C$20=Carbon!$B162,'Crop 3'!$V$20*VLOOKUP('Crop 3'!$E$20,Carbon!$AH$4:$AI$10,2,FALSE),0)+IF('Crop 3'!$C$21=Carbon!$B162,'Crop 3'!$V$21*VLOOKUP('Crop 3'!$E$21,Carbon!$AH$4:$AI$10,2,FALSE),0)+IF('Crop 3'!$C$49=Carbon!$B162,'Crop 3'!$V$49*VLOOKUP('Crop 3'!$E$49,Carbon!$AH$4:$AI$10,2,FALSE),0)+IF('Crop 3'!$C$50=Carbon!$B162,'Crop 3'!$V$50*VLOOKUP('Crop 3'!$E$50,Carbon!$AH$4:$AI$10,2,FALSE),0)+IF('Crop 3'!$C$51=Carbon!$B162,'Crop 3'!$V$51*VLOOKUP('Crop 3'!$E$51,Carbon!$AH$4:$AI$10,2,FALSE),0)+IF('Crop 3'!$C$52=Carbon!$B162,'Crop 3'!$V$52*VLOOKUP('Crop 3'!$E$52,Carbon!$AH$4:$AI$10,2,FALSE),0)+IF('Crop 3'!$C$53=Carbon!$B162,'Crop 3'!$V$53*VLOOKUP('Crop 3'!$E$53,Carbon!$AH$4:$AI$10,2,FALSE),0)+IF('Crop 3'!$C$56=Carbon!$B162,'Crop 3'!$V$56*VLOOKUP('Crop 3'!$E$56,Carbon!$AH$4:$AI$10,2,FALSE),0)+IF('Crop 3'!$C$57=Carbon!$B162,'Crop 3'!$V$57*VLOOKUP('Crop 3'!$E$57,Carbon!$AH$4:$AI$10,2,FALSE),0)+IF('Crop 3'!$C$58=Carbon!$B162,'Crop 3'!$V$58*VLOOKUP('Crop 3'!$E$58,Carbon!$AH$4:$AI$10,2,FALSE),0)+IF('Crop 3'!$C$59=Carbon!$B162,'Crop 3'!$V$59*VLOOKUP('Crop 3'!$E$59,Carbon!$AH$4:$AI$10,2,FALSE),0)+IF('Crop 3'!$C$62=Carbon!$B162,'Crop 3'!$V$62*VLOOKUP('Crop 3'!$E$62,Carbon!$AH$4:$AI$10,2,FALSE),0)+IF('Crop 3'!$C$63=Carbon!$B162,'Crop 3'!$V$63*VLOOKUP('Crop 3'!$E$63,Carbon!$AH$4:$AI$10,2,FALSE),0)+IF('Crop 3'!$C$64=Carbon!$B162,'Crop 3'!$V$64*VLOOKUP('Crop 3'!$E$64,Carbon!$AH$4:$AI$10,2,FALSE),0)+IF('Crop 3'!$C$65=Carbon!$B162,'Crop 3'!$V$65*VLOOKUP('Crop 3'!$E$65,Carbon!$AH$4:$AI$10,2,FALSE),0))*$AL$20,2)","v":0},{"$f":"Q162*Inputs!$D$17","v":0},{"$f":"ROUND(T162/Inputs!D$19,2)","v":0},0,null,null,0,{"$f":"W162*Inputs!$D$13","v":0},0,{"$f":"Y162*Inputs!$D$13","v":0},0,{"$f":"AA162*Inputs!$D$13","v":0},{"$f":"ROUND(AD162/Inputs!D$19,2)","v":0},0]
[null,{"$f":"Defaults!AH129","v":"Warrant"},{"$f":"ROUND((IF('Crop 1'!$C$14=Carbon!$B163,'Crop 1'!$L$14*VLOOKUP('Crop 1'!$E$14,Carbon!$AH$4:$AI$10,2,FALSE),0)+IF('Crop 1'!$C$15=Carbon!$B163,'Crop 1'!$L$15*VLOOKUP('Crop 1'!$E$15,Carbon!$AH$4:$AI$10,2,FALSE),0)+IF('Crop 1'!$C$16=Carbon!$B163,'Crop 1'!$L$16*VLOOKUP('Crop 1'!$E$16,Carbon!$AH$4:$AI$10,2,FALSE),0)+IF('Crop 1'!$C$19=Carbon!$B163,'Crop 1'!$L$19*VLOOKUP('Crop 1'!$E$19,Carbon!$AH$4:$AI$10,2,FALSE),0)+IF('Crop 1'!$C$20=Carbon!$B163,'Crop 1'!$L$20*VLOOKUP('Crop 1'!$E$20,Carbon!$AH$4:$AI$10,2,FALSE),0)+IF('Crop 1'!$C$21=Carbon!$B163,'Crop 1'!$L$21*VLOOKUP('Crop 1'!$E$21,Carbon!$AH$4:$AI$10,2,FALSE),0)+IF('Crop 1'!$C$49=Carbon!$B163,'Crop 1'!$L$49*VLOOKUP('Crop 1'!$E$49,Carbon!$AH$4:$AI$10,2,FALSE),0)+IF('Crop 1'!$C$50=Carbon!$B163,'Crop 1'!$L$50*VLOOKUP('Crop 1'!$E$50,Carbon!$AH$4:$AI$10,2,FALSE),0)+IF('Crop 1'!$C$51=Carbon!$B163,'Crop 1'!$L$51*VLOOKUP('Crop 1'!$E$51,Carbon!$AH$4:$AI$10,2,FALSE),0)+IF('Crop 1'!$C$52=Carbon!$B163,'Crop 1'!$L$52*VLOOKUP('Crop 1'!$E$52,Carbon!$AH$4:$AI$10,2,FALSE),0)+IF('Crop 1'!$C$53=Carbon!$B163,'Crop 1'!$L$53*VLOOKUP('Crop 1'!$E$53,Carbon!$AH$4:$AI$10,2,FALSE),0)+IF('Crop 1'!$C$56=Carbon!$B163,'Crop 1'!$L$56*VLOOKUP('Crop 1'!$E$56,Carbon!$AH$4:$AI$10,2,FALSE),0)+IF('Crop 1'!$C$57=Carbon!$B163,'Crop 1'!$L$57*VLOOKUP('Crop 1'!$E$57,Carbon!$AH$4:$AI$10,2,FALSE),0)+IF('Crop 1'!$C$58=Carbon!$B163,'Crop 1'!$L$58*VLOOKUP('Crop 1'!$E$58,Carbon!$AH$4:$AI$10,2,FALSE),0)+IF('Crop 1'!$C$59=Carbon!$B163,'Crop 1'!$L$59*VLOOKUP('Crop 1'!$E$59,Carbon!$AH$4:$AI$10,2,FALSE),0)+IF('Crop 1'!$C$62=Carbon!$B163,'Crop 1'!$L$62*VLOOKUP('Crop 1'!$E$62,Carbon!$AH$4:$AI$10,2,FALSE),0)+IF('Crop 1'!$C$63=Carbon!$B163,'Crop 1'!$L$63*VLOOKUP('Crop 1'!$E$63,Carbon!$AH$4:$AI$10,2,FALSE),0)+IF('Crop 1'!$C$64=Carbon!$B163,'Crop 1'!$L$64*VLOOKUP('Crop 1'!$E$64,Carbon!$AH$4:$AI$10,2,FALSE),0)+IF('Crop 1'!$C$65=Carbon!$B163,'Crop 1'!$L$65*VLOOKUP('Crop 1'!$E$65,Carbon!$AH$4:$AI$10,2,FALSE),0))*$AL$20,2)","v":0},{"$f":"C163*Inputs!$D$13","v":0},{"$f":"ROUND((IF('Crop 2'!$C$14=Carbon!$B163,'Crop 2'!$L$14*VLOOKUP('Crop 2'!$E$14,Carbon!$AH$4:$AI$10,2,FALSE),0)+IF('Crop 2'!$C$15=Carbon!$B163,'Crop 2'!$L$15*VLOOKUP('Crop 2'!$E$15,Carbon!$AH$4:$AI$10,2,FALSE),0)+IF('Crop 2'!$C$16=Carbon!$B163,'Crop 2'!$L$16*VLOOKUP('Crop 2'!$E$16,Carbon!$AH$4:$AI$10,2,FALSE),0)+IF('Crop 2'!$C$19=Carbon!$B163,'Crop 2'!$L$19*VLOOKUP('Crop 2'!$E$19,Carbon!$AH$4:$AI$10,2,FALSE),0)+IF('Crop 2'!$C$20=Carbon!$B163,'Crop 2'!$L$20*VLOOKUP('Crop 2'!$E$20,Carbon!$AH$4:$AI$10,2,FALSE),0)+IF('Crop 2'!$C$21=Carbon!$B163,'Crop 2'!$L$21*VLOOKUP('Crop 2'!$E$21,Carbon!$AH$4:$AI$10,2,FALSE),0)+IF('Crop 2'!$C$49=Carbon!$B163,'Crop 2'!$L$49*VLOOKUP('Crop 2'!$E$49,Carbon!$AH$4:$AI$10,2,FALSE),0)+IF('Crop 2'!$C$50=Carbon!$B163,'Crop 2'!$L$50*VLOOKUP('Crop 2'!$E$50,Carbon!$AH$4:$AI$10,2,FALSE),0)+IF('Crop 2'!$C$51=Carbon!$B163,'Crop 2'!$L$51*VLOOKUP('Crop 2'!$E$51,Carbon!$AH$4:$AI$10,2,FALSE),0)+IF('Crop 2'!$C$52=Carbon!$B163,'Crop 2'!$L$52*VLOOKUP('Crop 2'!$E$52,Carbon!$AH$4:$AI$10,2,FALSE),0)+IF('Crop 2'!$C$53=Carbon!$B163,'Crop 2'!$L$53*VLOOKUP('Crop 2'!$E$53,Carbon!$AH$4:$AI$10,2,FALSE),0)+IF('Crop 2'!$C$56=Carbon!$B163,'Crop 2'!$L$56*VLOOKUP('Crop 2'!$E$56,Carbon!$AH$4:$AI$10,2,FALSE),0)+IF('Crop 2'!$C$57=Carbon!$B163,'Crop 2'!$L$57*VLOOKUP('Crop 2'!$E$57,Carbon!$AH$4:$AI$10,2,FALSE),0)+IF('Crop 2'!$C$58=Carbon!$B163,'Crop 2'!$L$58*VLOOKUP('Crop 2'!$E$58,Carbon!$AH$4:$AI$10,2,FALSE),0)+IF('Crop 2'!$C$59=Carbon!$B163,'Crop 2'!$L$59*VLOOKUP('Crop 2'!$E$59,Carbon!$AH$4:$AI$10,2,FALSE),0)+IF('Crop 2'!$C$62=Carbon!$B163,'Crop 2'!$L$62*VLOOKUP('Crop 2'!$E$62,Carbon!$AH$4:$AI$10,2,FALSE),0)+IF('Crop 2'!$C$63=Carbon!$B163,'Crop 2'!$L$63*VLOOKUP('Crop 2'!$E$63,Carbon!$AH$4:$AI$10,2,FALSE),0)+IF('Crop 2'!$C$64=Carbon!$B163,'Crop 2'!$L$64*VLOOKUP('Crop 2'!$E$64,Carbon!$AH$4:$AI$10,2,FALSE),0)+IF('Crop 2'!$C$65=Carbon!$B163,'Crop 2'!$L$65*VLOOKUP('Crop 2'!$E$65,Carbon!$AH$4:$AI$10,2,FALSE),0))*$AL$20,2)","v":0},{"$f":"E163*Inputs!$D$15","v":0},{"$f":"ROUND((IF('Crop 3'!$C$14=Carbon!$B163,'Crop 3'!$L$14*VLOOKUP('Crop 3'!$E$14,Carbon!$AH$4:$AI$10,2,FALSE),0)+IF('Crop 3'!$C$15=Carbon!$B163,'Crop 3'!$L$15*VLOOKUP('Crop 3'!$E$15,Carbon!$AH$4:$AI$10,2,FALSE),0)+IF('Crop 3'!$C$16=Carbon!$B163,'Crop 3'!$L$16*VLOOKUP('Crop 3'!$E$16,Carbon!$AH$4:$AI$10,2,FALSE),0)+IF('Crop 3'!$C$19=Carbon!$B163,'Crop 3'!$L$19*VLOOKUP('Crop 3'!$E$19,Carbon!$AH$4:$AI$10,2,FALSE),0)+IF('Crop 3'!$C$20=Carbon!$B163,'Crop 3'!$L$20*VLOOKUP('Crop 3'!$E$20,Carbon!$AH$4:$AI$10,2,FALSE),0)+IF('Crop 3'!$C$21=Carbon!$B163,'Crop 3'!$L$21*VLOOKUP('Crop 3'!$E$21,Carbon!$AH$4:$AI$10,2,FALSE),0)+IF('Crop 3'!$C$49=Carbon!$B163,'Crop 3'!$L$49*VLOOKUP('Crop 3'!$E$49,Carbon!$AH$4:$AI$10,2,FALSE),0)+IF('Crop 3'!$C$50=Carbon!$B163,'Crop 3'!$L$50*VLOOKUP('Crop 3'!$E$50,Carbon!$AH$4:$AI$10,2,FALSE),0)+IF('Crop 3'!$C$51=Carbon!$B163,'Crop 3'!$L$51*VLOOKUP('Crop 3'!$E$51,Carbon!$AH$4:$AI$10,2,FALSE),0)+IF('Crop 3'!$C$52=Carbon!$B163,'Crop 3'!$L$52*VLOOKUP('Crop 3'!$E$52,Carbon!$AH$4:$AI$10,2,FALSE),0)+IF('Crop 3'!$C$53=Carbon!$B163,'Crop 3'!$L$53*VLOOKUP('Crop 3'!$E$53,Carbon!$AH$4:$AI$10,2,FALSE),0)+IF('Crop 3'!$C$56=Carbon!$B163,'Crop 3'!$L$56*VLOOKUP('Crop 3'!$E$56,Carbon!$AH$4:$AI$10,2,FALSE),0)+IF('Crop 3'!$C$57=Carbon!$B163,'Crop 3'!$L$57*VLOOKUP('Crop 3'!$E$57,Carbon!$AH$4:$AI$10,2,FALSE),0)+IF('Crop 3'!$C$58=Carbon!$B163,'Crop 3'!$L$58*VLOOKUP('Crop 3'!$E$58,Carbon!$AH$4:$AI$10,2,FALSE),0)+IF('Crop 3'!$C$59=Carbon!$B163,'Crop 3'!$L$59*VLOOKUP('Crop 3'!$E$59,Carbon!$AH$4:$AI$10,2,FALSE),0)+IF('Crop 3'!$C$62=Carbon!$B163,'Crop 3'!$L$62*VLOOKUP('Crop 3'!$E$62,Carbon!$AH$4:$AI$10,2,FALSE),0)+IF('Crop 3'!$C$63=Carbon!$B163,'Crop 3'!$L$63*VLOOKUP('Crop 3'!$E$63,Carbon!$AH$4:$AI$10,2,FALSE),0)+IF('Crop 3'!$C$64=Carbon!$B163,'Crop 3'!$L$64*VLOOKUP('Crop 3'!$E$64,Carbon!$AH$4:$AI$10,2,FALSE),0)+IF('Crop 3'!$C$65=Carbon!$B163,'Crop 3'!$L$65*VLOOKUP('Crop 3'!$E$65,Carbon!$AH$4:$AI$10,2,FALSE),0))*$AL$20,2)","v":0},{"$f":"G163*Inputs!$D$17","v":0},{"$f":"ROUND(J163/Inputs!D$19,2)","v":0},0,null,null,{"$f":"ROUND((IF('Crop 1'!$C$14=Carbon!$B163,'Crop 1'!$V$14*VLOOKUP('Crop 1'!$E$14,Carbon!$AH$4:$AI$10,2,FALSE),0)+IF('Crop 1'!$C$15=Carbon!$B163,'Crop 1'!$V$15*VLOOKUP('Crop 1'!$E$15,Carbon!$AH$4:$AI$10,2,FALSE),0)+IF('Crop 1'!$C$16=Carbon!$B163,'Crop 1'!$V$16*VLOOKUP('Crop 1'!$E$16,Carbon!$AH$4:$AI$10,2,FALSE),0)+IF('Crop 1'!$C$19=Carbon!$B163,'Crop 1'!$V$19*VLOOKUP('Crop 1'!$E$19,Carbon!$AH$4:$AI$10,2,FALSE),0)+IF('Crop 1'!$C$20=Carbon!$B163,'Crop 1'!$V$20*VLOOKUP('Crop 1'!$E$20,Carbon!$AH$4:$AI$10,2,FALSE),0)+IF('Crop 1'!$C$21=Carbon!$B163,'Crop 1'!$V$21*VLOOKUP('Crop 1'!$E$21,Carbon!$AH$4:$AI$10,2,FALSE),0)+IF('Crop 1'!$C$49=Carbon!$B163,'Crop 1'!$V$49*VLOOKUP('Crop 1'!$E$49,Carbon!$AH$4:$AI$10,2,FALSE),0)+IF('Crop 1'!$C$50=Carbon!$B163,'Crop 1'!$V$50*VLOOKUP('Crop 1'!$E$50,Carbon!$AH$4:$AI$10,2,FALSE),0)+IF('Crop 1'!$C$51=Carbon!$B163,'Crop 1'!$V$51*VLOOKUP('Crop 1'!$E$51,Carbon!$AH$4:$AI$10,2,FALSE),0)+IF('Crop 1'!$C$52=Carbon!$B163,'Crop 1'!$V$52*VLOOKUP('Crop 1'!$E$52,Carbon!$AH$4:$AI$10,2,FALSE),0)+IF('Crop 1'!$C$53=Carbon!$B163,'Crop 1'!$V$53*VLOOKUP('Crop 1'!$E$53,Carbon!$AH$4:$AI$10,2,FALSE),0)+IF('Crop 1'!$C$56=Carbon!$B163,'Crop 1'!$V$56*VLOOKUP('Crop 1'!$E$56,Carbon!$AH$4:$AI$10,2,FALSE),0)+IF('Crop 1'!$C$57=Carbon!$B163,'Crop 1'!$V$57*VLOOKUP('Crop 1'!$E$57,Carbon!$AH$4:$AI$10,2,FALSE),0)+IF('Crop 1'!$C$58=Carbon!$B163,'Crop 1'!$V$58*VLOOKUP('Crop 1'!$E$58,Carbon!$AH$4:$AI$10,2,FALSE),0)+IF('Crop 1'!$C$59=Carbon!$B163,'Crop 1'!$V$59*VLOOKUP('Crop 1'!$E$59,Carbon!$AH$4:$AI$10,2,FALSE),0)+IF('Crop 1'!$C$62=Carbon!$B163,'Crop 1'!$V$62*VLOOKUP('Crop 1'!$E$62,Carbon!$AH$4:$AI$10,2,FALSE),0)+IF('Crop 1'!$C$63=Carbon!$B163,'Crop 1'!$V$63*VLOOKUP('Crop 1'!$E$63,Carbon!$AH$4:$AI$10,2,FALSE),0)+IF('Crop 1'!$C$64=Carbon!$B163,'Crop 1'!$V$64*VLOOKUP('Crop 1'!$E$64,Carbon!$AH$4:$AI$10,2,FALSE),0)+IF('Crop 1'!$C$65=Carbon!$B163,'Crop 1'!$V$65*VLOOKUP('Crop 1'!$E$65,Carbon!$AH$4:$AI$10,2,FALSE),0))*$AL$20,2)","v":0},{"$f":"M163*Inputs!$D$13","v":0},{"$f":"ROUND((IF('Crop 2'!$C$14=Carbon!$B163,'Crop 2'!$V$14*VLOOKUP('Crop 2'!$E$14,Carbon!$AH$4:$AI$10,2,FALSE),0)+IF('Crop 2'!$C$15=Carbon!$B163,'Crop 2'!$V$15*VLOOKUP('Crop 2'!$E$15,Carbon!$AH$4:$AI$10,2,FALSE),0)+IF('Crop 2'!$C$16=Carbon!$B163,'Crop 2'!$V$16*VLOOKUP('Crop 2'!$E$16,Carbon!$AH$4:$AI$10,2,FALSE),0)+IF('Crop 2'!$C$19=Carbon!$B163,'Crop 2'!$V$19*VLOOKUP('Crop 2'!$E$19,Carbon!$AH$4:$AI$10,2,FALSE),0)+IF('Crop 2'!$C$20=Carbon!$B163,'Crop 2'!$V$20*VLOOKUP('Crop 2'!$E$20,Carbon!$AH$4:$AI$10,2,FALSE),0)+IF('Crop 2'!$C$21=Carbon!$B163,'Crop 2'!$V$21*VLOOKUP('Crop 2'!$E$21,Carbon!$AH$4:$AI$10,2,FALSE),0)+IF('Crop 2'!$C$49=Carbon!$B163,'Crop 2'!$V$49*VLOOKUP('Crop 2'!$E$49,Carbon!$AH$4:$AI$10,2,FALSE),0)+IF('Crop 2'!$C$50=Carbon!$B163,'Crop 2'!$V$50*VLOOKUP('Crop 2'!$E$50,Carbon!$AH$4:$AI$10,2,FALSE),0)+IF('Crop 2'!$C$51=Carbon!$B163,'Crop 2'!$V$51*VLOOKUP('Crop 2'!$E$51,Carbon!$AH$4:$AI$10,2,FALSE),0)+IF('Crop 2'!$C$52=Carbon!$B163,'Crop 2'!$V$52*VLOOKUP('Crop 2'!$E$52,Carbon!$AH$4:$AI$10,2,FALSE),0)+IF('Crop 2'!$C$53=Carbon!$B163,'Crop 2'!$V$53*VLOOKUP('Crop 2'!$E$53,Carbon!$AH$4:$AI$10,2,FALSE),0)+IF('Crop 2'!$C$56=Carbon!$B163,'Crop 2'!$V$56*VLOOKUP('Crop 2'!$E$56,Carbon!$AH$4:$AI$10,2,FALSE),0)+IF('Crop 2'!$C$57=Carbon!$B163,'Crop 2'!$V$57*VLOOKUP('Crop 2'!$E$57,Carbon!$AH$4:$AI$10,2,FALSE),0)+IF('Crop 2'!$C$58=Carbon!$B163,'Crop 2'!$V$58*VLOOKUP('Crop 2'!$E$58,Carbon!$AH$4:$AI$10,2,FALSE),0)+IF('Crop 2'!$C$59=Carbon!$B163,'Crop 2'!$V$59*VLOOKUP('Crop 2'!$E$59,Carbon!$AH$4:$AI$10,2,FALSE),0)+IF('Crop 2'!$C$62=Carbon!$B163,'Crop 2'!$V$62*VLOOKUP('Crop 2'!$E$62,Carbon!$AH$4:$AI$10,2,FALSE),0)+IF('Crop 2'!$C$63=Carbon!$B163,'Crop 2'!$V$63*VLOOKUP('Crop 2'!$E$63,Carbon!$AH$4:$AI$10,2,FALSE),0)+IF('Crop 2'!$C$64=Carbon!$B163,'Crop 2'!$V$64*VLOOKUP('Crop 2'!$E$64,Carbon!$AH$4:$AI$10,2,FALSE),0)+IF('Crop 2'!$C$65=Carbon!$B163,'Crop 2'!$V$65*VLOOKUP('Crop 2'!$E$65,Carbon!$AH$4:$AI$10,2,FALSE),0))*$AL$20,2)","v":0},{"$f":"O163*Inputs!$D$15","v":0},{"$f":"ROUND((IF('Crop 3'!$C$14=Carbon!$B163,'Crop 3'!$V$14*VLOOKUP('Crop 3'!$E$14,Carbon!$AH$4:$AI$10,2,FALSE),0)+IF('Crop 3'!$C$15=Carbon!$B163,'Crop 3'!$V$15*VLOOKUP('Crop 3'!$E$15,Carbon!$AH$4:$AI$10,2,FALSE),0)+IF('Crop 3'!$C$16=Carbon!$B163,'Crop 3'!$V$16*VLOOKUP('Crop 3'!$E$16,Carbon!$AH$4:$AI$10,2,FALSE),0)+IF('Crop 3'!$C$19=Carbon!$B163,'Crop 3'!$V$19*VLOOKUP('Crop 3'!$E$19,Carbon!$AH$4:$AI$10,2,FALSE),0)+IF('Crop 3'!$C$20=Carbon!$B163,'Crop 3'!$V$20*VLOOKUP('Crop 3'!$E$20,Carbon!$AH$4:$AI$10,2,FALSE),0)+IF('Crop 3'!$C$21=Carbon!$B163,'Crop 3'!$V$21*VLOOKUP('Crop 3'!$E$21,Carbon!$AH$4:$AI$10,2,FALSE),0)+IF('Crop 3'!$C$49=Carbon!$B163,'Crop 3'!$V$49*VLOOKUP('Crop 3'!$E$49,Carbon!$AH$4:$AI$10,2,FALSE),0)+IF('Crop 3'!$C$50=Carbon!$B163,'Crop 3'!$V$50*VLOOKUP('Crop 3'!$E$50,Carbon!$AH$4:$AI$10,2,FALSE),0)+IF('Crop 3'!$C$51=Carbon!$B163,'Crop 3'!$V$51*VLOOKUP('Crop 3'!$E$51,Carbon!$AH$4:$AI$10,2,FALSE),0)+IF('Crop 3'!$C$52=Carbon!$B163,'Crop 3'!$V$52*VLOOKUP('Crop 3'!$E$52,Carbon!$AH$4:$AI$10,2,FALSE),0)+IF('Crop 3'!$C$53=Carbon!$B163,'Crop 3'!$V$53*VLOOKUP('Crop 3'!$E$53,Carbon!$AH$4:$AI$10,2,FALSE),0)+IF('Crop 3'!$C$56=Carbon!$B163,'Crop 3'!$V$56*VLOOKUP('Crop 3'!$E$56,Carbon!$AH$4:$AI$10,2,FALSE),0)+IF('Crop 3'!$C$57=Carbon!$B163,'Crop 3'!$V$57*VLOOKUP('Crop 3'!$E$57,Carbon!$AH$4:$AI$10,2,FALSE),0)+IF('Crop 3'!$C$58=Carbon!$B163,'Crop 3'!$V$58*VLOOKUP('Crop 3'!$E$58,Carbon!$AH$4:$AI$10,2,FALSE),0)+IF('Crop 3'!$C$59=Carbon!$B163,'Crop 3'!$V$59*VLOOKUP('Crop 3'!$E$59,Carbon!$AH$4:$AI$10,2,FALSE),0)+IF('Crop 3'!$C$62=Carbon!$B163,'Crop 3'!$V$62*VLOOKUP('Crop 3'!$E$62,Carbon!$AH$4:$AI$10,2,FALSE),0)+IF('Crop 3'!$C$63=Carbon!$B163,'Crop 3'!$V$63*VLOOKUP('Crop 3'!$E$63,Carbon!$AH$4:$AI$10,2,FALSE),0)+IF('Crop 3'!$C$64=Carbon!$B163,'Crop 3'!$V$64*VLOOKUP('Crop 3'!$E$64,Carbon!$AH$4:$AI$10,2,FALSE),0)+IF('Crop 3'!$C$65=Carbon!$B163,'Crop 3'!$V$65*VLOOKUP('Crop 3'!$E$65,Carbon!$AH$4:$AI$10,2,FALSE),0))*$AL$20,2)","v":0},{"$f":"Q163*Inputs!$D$17","v":0},{"$f":"ROUND(T163/Inputs!D$19,2)","v":0},0,null,null,0,{"$f":"W163*Inputs!$D$13","v":0},0,{"$f":"Y163*Inputs!$D$13","v":0},0,{"$f":"AA163*Inputs!$D$13","v":0},{"$f":"ROUND(AD163/Inputs!D$19,2)","v":0},0]
[null,{"$f":"Defaults!AH130","v":"Weedmaster"},{"$f":"ROUND((IF('Crop 1'!$C$14=Carbon!$B164,'Crop 1'!$L$14*VLOOKUP('Crop 1'!$E$14,Carbon!$AH$4:$AI$10,2,FALSE),0)+IF('Crop 1'!$C$15=Carbon!$B164,'Crop 1'!$L$15*VLOOKUP('Crop 1'!$E$15,Carbon!$AH$4:$AI$10,2,FALSE),0)+IF('Crop 1'!$C$16=Carbon!$B164,'Crop 1'!$L$16*VLOOKUP('Crop 1'!$E$16,Carbon!$AH$4:$AI$10,2,FALSE),0)+IF('Crop 1'!$C$19=Carbon!$B164,'Crop 1'!$L$19*VLOOKUP('Crop 1'!$E$19,Carbon!$AH$4:$AI$10,2,FALSE),0)+IF('Crop 1'!$C$20=Carbon!$B164,'Crop 1'!$L$20*VLOOKUP('Crop 1'!$E$20,Carbon!$AH$4:$AI$10,2,FALSE),0)+IF('Crop 1'!$C$21=Carbon!$B164,'Crop 1'!$L$21*VLOOKUP('Crop 1'!$E$21,Carbon!$AH$4:$AI$10,2,FALSE),0)+IF('Crop 1'!$C$49=Carbon!$B164,'Crop 1'!$L$49*VLOOKUP('Crop 1'!$E$49,Carbon!$AH$4:$AI$10,2,FALSE),0)+IF('Crop 1'!$C$50=Carbon!$B164,'Crop 1'!$L$50*VLOOKUP('Crop 1'!$E$50,Carbon!$AH$4:$AI$10,2,FALSE),0)+IF('Crop 1'!$C$51=Carbon!$B164,'Crop 1'!$L$51*VLOOKUP('Crop 1'!$E$51,Carbon!$AH$4:$AI$10,2,FALSE),0)+IF('Crop 1'!$C$52=Carbon!$B164,'Crop 1'!$L$52*VLOOKUP('Crop 1'!$E$52,Carbon!$AH$4:$AI$10,2,FALSE),0)+IF('Crop 1'!$C$53=Carbon!$B164,'Crop 1'!$L$53*VLOOKUP('Crop 1'!$E$53,Carbon!$AH$4:$AI$10,2,FALSE),0)+IF('Crop 1'!$C$56=Carbon!$B164,'Crop 1'!$L$56*VLOOKUP('Crop 1'!$E$56,Carbon!$AH$4:$AI$10,2,FALSE),0)+IF('Crop 1'!$C$57=Carbon!$B164,'Crop 1'!$L$57*VLOOKUP('Crop 1'!$E$57,Carbon!$AH$4:$AI$10,2,FALSE),0)+IF('Crop 1'!$C$58=Carbon!$B164,'Crop 1'!$L$58*VLOOKUP('Crop 1'!$E$58,Carbon!$AH$4:$AI$10,2,FALSE),0)+IF('Crop 1'!$C$59=Carbon!$B164,'Crop 1'!$L$59*VLOOKUP('Crop 1'!$E$59,Carbon!$AH$4:$AI$10,2,FALSE),0)+IF('Crop 1'!$C$62=Carbon!$B164,'Crop 1'!$L$62*VLOOKUP('Crop 1'!$E$62,Carbon!$AH$4:$AI$10,2,FALSE),0)+IF('Crop 1'!$C$63=Carbon!$B164,'Crop 1'!$L$63*VLOOKUP('Crop 1'!$E$63,Carbon!$AH$4:$AI$10,2,FALSE),0)+IF('Crop 1'!$C$64=Carbon!$B164,'Crop 1'!$L$64*VLOOKUP('Crop 1'!$E$64,Carbon!$AH$4:$AI$10,2,FALSE),0)+IF('Crop 1'!$C$65=Carbon!$B164,'Crop 1'!$L$65*VLOOKUP('Crop 1'!$E$65,Carbon!$AH$4:$AI$10,2,FALSE),0))*$AL$20,2)","v":0},{"$f":"C164*Inputs!$D$13","v":0},{"$f":"ROUND((IF('Crop 2'!$C$14=Carbon!$B164,'Crop 2'!$L$14*VLOOKUP('Crop 2'!$E$14,Carbon!$AH$4:$AI$10,2,FALSE),0)+IF('Crop 2'!$C$15=Carbon!$B164,'Crop 2'!$L$15*VLOOKUP('Crop 2'!$E$15,Carbon!$AH$4:$AI$10,2,FALSE),0)+IF('Crop 2'!$C$16=Carbon!$B164,'Crop 2'!$L$16*VLOOKUP('Crop 2'!$E$16,Carbon!$AH$4:$AI$10,2,FALSE),0)+IF('Crop 2'!$C$19=Carbon!$B164,'Crop 2'!$L$19*VLOOKUP('Crop 2'!$E$19,Carbon!$AH$4:$AI$10,2,FALSE),0)+IF('Crop 2'!$C$20=Carbon!$B164,'Crop 2'!$L$20*VLOOKUP('Crop 2'!$E$20,Carbon!$AH$4:$AI$10,2,FALSE),0)+IF('Crop 2'!$C$21=Carbon!$B164,'Crop 2'!$L$21*VLOOKUP('Crop 2'!$E$21,Carbon!$AH$4:$AI$10,2,FALSE),0)+IF('Crop 2'!$C$49=Carbon!$B164,'Crop 2'!$L$49*VLOOKUP('Crop 2'!$E$49,Carbon!$AH$4:$AI$10,2,FALSE),0)+IF('Crop 2'!$C$50=Carbon!$B164,'Crop 2'!$L$50*VLOOKUP('Crop 2'!$E$50,Carbon!$AH$4:$AI$10,2,FALSE),0)+IF('Crop 2'!$C$51=Carbon!$B164,'Crop 2'!$L$51*VLOOKUP('Crop 2'!$E$51,Carbon!$AH$4:$AI$10,2,FALSE),0)+IF('Crop 2'!$C$52=Carbon!$B164,'Crop 2'!$L$52*VLOOKUP('Crop 2'!$E$52,Carbon!$AH$4:$AI$10,2,FALSE),0)+IF('Crop 2'!$C$53=Carbon!$B164,'Crop 2'!$L$53*VLOOKUP('Crop 2'!$E$53,Carbon!$AH$4:$AI$10,2,FALSE),0)+IF('Crop 2'!$C$56=Carbon!$B164,'Crop 2'!$L$56*VLOOKUP('Crop 2'!$E$56,Carbon!$AH$4:$AI$10,2,FALSE),0)+IF('Crop 2'!$C$57=Carbon!$B164,'Crop 2'!$L$57*VLOOKUP('Crop 2'!$E$57,Carbon!$AH$4:$AI$10,2,FALSE),0)+IF('Crop 2'!$C$58=Carbon!$B164,'Crop 2'!$L$58*VLOOKUP('Crop 2'!$E$58,Carbon!$AH$4:$AI$10,2,FALSE),0)+IF('Crop 2'!$C$59=Carbon!$B164,'Crop 2'!$L$59*VLOOKUP('Crop 2'!$E$59,Carbon!$AH$4:$AI$10,2,FALSE),0)+IF('Crop 2'!$C$62=Carbon!$B164,'Crop 2'!$L$62*VLOOKUP('Crop 2'!$E$62,Carbon!$AH$4:$AI$10,2,FALSE),0)+IF('Crop 2'!$C$63=Carbon!$B164,'Crop 2'!$L$63*VLOOKUP('Crop 2'!$E$63,Carbon!$AH$4:$AI$10,2,FALSE),0)+IF('Crop 2'!$C$64=Carbon!$B164,'Crop 2'!$L$64*VLOOKUP('Crop 2'!$E$64,Carbon!$AH$4:$AI$10,2,FALSE),0)+IF('Crop 2'!$C$65=Carbon!$B164,'Crop 2'!$L$65*VLOOKUP('Crop 2'!$E$65,Carbon!$AH$4:$AI$10,2,FALSE),0))*$AL$20,2)","v":0},{"$f":"E164*Inputs!$D$15","v":0},{"$f":"ROUND((IF('Crop 3'!$C$14=Carbon!$B164,'Crop 3'!$L$14*VLOOKUP('Crop 3'!$E$14,Carbon!$AH$4:$AI$10,2,FALSE),0)+IF('Crop 3'!$C$15=Carbon!$B164,'Crop 3'!$L$15*VLOOKUP('Crop 3'!$E$15,Carbon!$AH$4:$AI$10,2,FALSE),0)+IF('Crop 3'!$C$16=Carbon!$B164,'Crop 3'!$L$16*VLOOKUP('Crop 3'!$E$16,Carbon!$AH$4:$AI$10,2,FALSE),0)+IF('Crop 3'!$C$19=Carbon!$B164,'Crop 3'!$L$19*VLOOKUP('Crop 3'!$E$19,Carbon!$AH$4:$AI$10,2,FALSE),0)+IF('Crop 3'!$C$20=Carbon!$B164,'Crop 3'!$L$20*VLOOKUP('Crop 3'!$E$20,Carbon!$AH$4:$AI$10,2,FALSE),0)+IF('Crop 3'!$C$21=Carbon!$B164,'Crop 3'!$L$21*VLOOKUP('Crop 3'!$E$21,Carbon!$AH$4:$AI$10,2,FALSE),0)+IF('Crop 3'!$C$49=Carbon!$B164,'Crop 3'!$L$49*VLOOKUP('Crop 3'!$E$49,Carbon!$AH$4:$AI$10,2,FALSE),0)+IF('Crop 3'!$C$50=Carbon!$B164,'Crop 3'!$L$50*VLOOKUP('Crop 3'!$E$50,Carbon!$AH$4:$AI$10,2,FALSE),0)+IF('Crop 3'!$C$51=Carbon!$B164,'Crop 3'!$L$51*VLOOKUP('Crop 3'!$E$51,Carbon!$AH$4:$AI$10,2,FALSE),0)+IF('Crop 3'!$C$52=Carbon!$B164,'Crop 3'!$L$52*VLOOKUP('Crop 3'!$E$52,Carbon!$AH$4:$AI$10,2,FALSE),0)+IF('Crop 3'!$C$53=Carbon!$B164,'Crop 3'!$L$53*VLOOKUP('Crop 3'!$E$53,Carbon!$AH$4:$AI$10,2,FALSE),0)+IF('Crop 3'!$C$56=Carbon!$B164,'Crop 3'!$L$56*VLOOKUP('Crop 3'!$E$56,Carbon!$AH$4:$AI$10,2,FALSE),0)+IF('Crop 3'!$C$57=Carbon!$B164,'Crop 3'!$L$57*VLOOKUP('Crop 3'!$E$57,Carbon!$AH$4:$AI$10,2,FALSE),0)+IF('Crop 3'!$C$58=Carbon!$B164,'Crop 3'!$L$58*VLOOKUP('Crop 3'!$E$58,Carbon!$AH$4:$AI$10,2,FALSE),0)+IF('Crop 3'!$C$59=Carbon!$B164,'Crop 3'!$L$59*VLOOKUP('Crop 3'!$E$59,Carbon!$AH$4:$AI$10,2,FALSE),0)+IF('Crop 3'!$C$62=Carbon!$B164,'Crop 3'!$L$62*VLOOKUP('Crop 3'!$E$62,Carbon!$AH$4:$AI$10,2,FALSE),0)+IF('Crop 3'!$C$63=Carbon!$B164,'Crop 3'!$L$63*VLOOKUP('Crop 3'!$E$63,Carbon!$AH$4:$AI$10,2,FALSE),0)+IF('Crop 3'!$C$64=Carbon!$B164,'Crop 3'!$L$64*VLOOKUP('Crop 3'!$E$64,Carbon!$AH$4:$AI$10,2,FALSE),0)+IF('Crop 3'!$C$65=Carbon!$B164,'Crop 3'!$L$65*VLOOKUP('Crop 3'!$E$65,Carbon!$AH$4:$AI$10,2,FALSE),0))*$AL$20,2)","v":0},{"$f":"G164*Inputs!$D$17","v":0},{"$f":"ROUND(J164/Inputs!D$19,2)","v":0},0,null,null,{"$f":"ROUND((IF('Crop 1'!$C$14=Carbon!$B164,'Crop 1'!$V$14*VLOOKUP('Crop 1'!$E$14,Carbon!$AH$4:$AI$10,2,FALSE),0)+IF('Crop 1'!$C$15=Carbon!$B164,'Crop 1'!$V$15*VLOOKUP('Crop 1'!$E$15,Carbon!$AH$4:$AI$10,2,FALSE),0)+IF('Crop 1'!$C$16=Carbon!$B164,'Crop 1'!$V$16*VLOOKUP('Crop 1'!$E$16,Carbon!$AH$4:$AI$10,2,FALSE),0)+IF('Crop 1'!$C$19=Carbon!$B164,'Crop 1'!$V$19*VLOOKUP('Crop 1'!$E$19,Carbon!$AH$4:$AI$10,2,FALSE),0)+IF('Crop 1'!$C$20=Carbon!$B164,'Crop 1'!$V$20*VLOOKUP('Crop 1'!$E$20,Carbon!$AH$4:$AI$10,2,FALSE),0)+IF('Crop 1'!$C$21=Carbon!$B164,'Crop 1'!$V$21*VLOOKUP('Crop 1'!$E$21,Carbon!$AH$4:$AI$10,2,FALSE),0)+IF('Crop 1'!$C$49=Carbon!$B164,'Crop 1'!$V$49*VLOOKUP('Crop 1'!$E$49,Carbon!$AH$4:$AI$10,2,FALSE),0)+IF('Crop 1'!$C$50=Carbon!$B164,'Crop 1'!$V$50*VLOOKUP('Crop 1'!$E$50,Carbon!$AH$4:$AI$10,2,FALSE),0)+IF('Crop 1'!$C$51=Carbon!$B164,'Crop 1'!$V$51*VLOOKUP('Crop 1'!$E$51,Carbon!$AH$4:$AI$10,2,FALSE),0)+IF('Crop 1'!$C$52=Carbon!$B164,'Crop 1'!$V$52*VLOOKUP('Crop 1'!$E$52,Carbon!$AH$4:$AI$10,2,FALSE),0)+IF('Crop 1'!$C$53=Carbon!$B164,'Crop 1'!$V$53*VLOOKUP('Crop 1'!$E$53,Carbon!$AH$4:$AI$10,2,FALSE),0)+IF('Crop 1'!$C$56=Carbon!$B164,'Crop 1'!$V$56*VLOOKUP('Crop 1'!$E$56,Carbon!$AH$4:$AI$10,2,FALSE),0)+IF('Crop 1'!$C$57=Carbon!$B164,'Crop 1'!$V$57*VLOOKUP('Crop 1'!$E$57,Carbon!$AH$4:$AI$10,2,FALSE),0)+IF('Crop 1'!$C$58=Carbon!$B164,'Crop 1'!$V$58*VLOOKUP('Crop 1'!$E$58,Carbon!$AH$4:$AI$10,2,FALSE),0)+IF('Crop 1'!$C$59=Carbon!$B164,'Crop 1'!$V$59*VLOOKUP('Crop 1'!$E$59,Carbon!$AH$4:$AI$10,2,FALSE),0)+IF('Crop 1'!$C$62=Carbon!$B164,'Crop 1'!$V$62*VLOOKUP('Crop 1'!$E$62,Carbon!$AH$4:$AI$10,2,FALSE),0)+IF('Crop 1'!$C$63=Carbon!$B164,'Crop 1'!$V$63*VLOOKUP('Crop 1'!$E$63,Carbon!$AH$4:$AI$10,2,FALSE),0)+IF('Crop 1'!$C$64=Carbon!$B164,'Crop 1'!$V$64*VLOOKUP('Crop 1'!$E$64,Carbon!$AH$4:$AI$10,2,FALSE),0)+IF('Crop 1'!$C$65=Carbon!$B164,'Crop 1'!$V$65*VLOOKUP('Crop 1'!$E$65,Carbon!$AH$4:$AI$10,2,FALSE),0))*$AL$20,2)","v":0},{"$f":"M164*Inputs!$D$13","v":0},{"$f":"ROUND((IF('Crop 2'!$C$14=Carbon!$B164,'Crop 2'!$V$14*VLOOKUP('Crop 2'!$E$14,Carbon!$AH$4:$AI$10,2,FALSE),0)+IF('Crop 2'!$C$15=Carbon!$B164,'Crop 2'!$V$15*VLOOKUP('Crop 2'!$E$15,Carbon!$AH$4:$AI$10,2,FALSE),0)+IF('Crop 2'!$C$16=Carbon!$B164,'Crop 2'!$V$16*VLOOKUP('Crop 2'!$E$16,Carbon!$AH$4:$AI$10,2,FALSE),0)+IF('Crop 2'!$C$19=Carbon!$B164,'Crop 2'!$V$19*VLOOKUP('Crop 2'!$E$19,Carbon!$AH$4:$AI$10,2,FALSE),0)+IF('Crop 2'!$C$20=Carbon!$B164,'Crop 2'!$V$20*VLOOKUP('Crop 2'!$E$20,Carbon!$AH$4:$AI$10,2,FALSE),0)+IF('Crop 2'!$C$21=Carbon!$B164,'Crop 2'!$V$21*VLOOKUP('Crop 2'!$E$21,Carbon!$AH$4:$AI$10,2,FALSE),0)+IF('Crop 2'!$C$49=Carbon!$B164,'Crop 2'!$V$49*VLOOKUP('Crop 2'!$E$49,Carbon!$AH$4:$AI$10,2,FALSE),0)+IF('Crop 2'!$C$50=Carbon!$B164,'Crop 2'!$V$50*VLOOKUP('Crop 2'!$E$50,Carbon!$AH$4:$AI$10,2,FALSE),0)+IF('Crop 2'!$C$51=Carbon!$B164,'Crop 2'!$V$51*VLOOKUP('Crop 2'!$E$51,Carbon!$AH$4:$AI$10,2,FALSE),0)+IF('Crop 2'!$C$52=Carbon!$B164,'Crop 2'!$V$52*VLOOKUP('Crop 2'!$E$52,Carbon!$AH$4:$AI$10,2,FALSE),0)+IF('Crop 2'!$C$53=Carbon!$B164,'Crop 2'!$V$53*VLOOKUP('Crop 2'!$E$53,Carbon!$AH$4:$AI$10,2,FALSE),0)+IF('Crop 2'!$C$56=Carbon!$B164,'Crop 2'!$V$56*VLOOKUP('Crop 2'!$E$56,Carbon!$AH$4:$AI$10,2,FALSE),0)+IF('Crop 2'!$C$57=Carbon!$B164,'Crop 2'!$V$57*VLOOKUP('Crop 2'!$E$57,Carbon!$AH$4:$AI$10,2,FALSE),0)+IF('Crop 2'!$C$58=Carbon!$B164,'Crop 2'!$V$58*VLOOKUP('Crop 2'!$E$58,Carbon!$AH$4:$AI$10,2,FALSE),0)+IF('Crop 2'!$C$59=Carbon!$B164,'Crop 2'!$V$59*VLOOKUP('Crop 2'!$E$59,Carbon!$AH$4:$AI$10,2,FALSE),0)+IF('Crop 2'!$C$62=Carbon!$B164,'Crop 2'!$V$62*VLOOKUP('Crop 2'!$E$62,Carbon!$AH$4:$AI$10,2,FALSE),0)+IF('Crop 2'!$C$63=Carbon!$B164,'Crop 2'!$V$63*VLOOKUP('Crop 2'!$E$63,Carbon!$AH$4:$AI$10,2,FALSE),0)+IF('Crop 2'!$C$64=Carbon!$B164,'Crop 2'!$V$64*VLOOKUP('Crop 2'!$E$64,Carbon!$AH$4:$AI$10,2,FALSE),0)+IF('Crop 2'!$C$65=Carbon!$B164,'Crop 2'!$V$65*VLOOKUP('Crop 2'!$E$65,Carbon!$AH$4:$AI$10,2,FALSE),0))*$AL$20,2)","v":0},{"$f":"O164*Inputs!$D$15","v":0},{"$f":"ROUND((IF('Crop 3'!$C$14=Carbon!$B164,'Crop 3'!$V$14*VLOOKUP('Crop 3'!$E$14,Carbon!$AH$4:$AI$10,2,FALSE),0)+IF('Crop 3'!$C$15=Carbon!$B164,'Crop 3'!$V$15*VLOOKUP('Crop 3'!$E$15,Carbon!$AH$4:$AI$10,2,FALSE),0)+IF('Crop 3'!$C$16=Carbon!$B164,'Crop 3'!$V$16*VLOOKUP('Crop 3'!$E$16,Carbon!$AH$4:$AI$10,2,FALSE),0)+IF('Crop 3'!$C$19=Carbon!$B164,'Crop 3'!$V$19*VLOOKUP('Crop 3'!$E$19,Carbon!$AH$4:$AI$10,2,FALSE),0)+IF('Crop 3'!$C$20=Carbon!$B164,'Crop 3'!$V$20*VLOOKUP('Crop 3'!$E$20,Carbon!$AH$4:$AI$10,2,FALSE),0)+IF('Crop 3'!$C$21=Carbon!$B164,'Crop 3'!$V$21*VLOOKUP('Crop 3'!$E$21,Carbon!$AH$4:$AI$10,2,FALSE),0)+IF('Crop 3'!$C$49=Carbon!$B164,'Crop 3'!$V$49*VLOOKUP('Crop 3'!$E$49,Carbon!$AH$4:$AI$10,2,FALSE),0)+IF('Crop 3'!$C$50=Carbon!$B164,'Crop 3'!$V$50*VLOOKUP('Crop 3'!$E$50,Carbon!$AH$4:$AI$10,2,FALSE),0)+IF('Crop 3'!$C$51=Carbon!$B164,'Crop 3'!$V$51*VLOOKUP('Crop 3'!$E$51,Carbon!$AH$4:$AI$10,2,FALSE),0)+IF('Crop 3'!$C$52=Carbon!$B164,'Crop 3'!$V$52*VLOOKUP('Crop 3'!$E$52,Carbon!$AH$4:$AI$10,2,FALSE),0)+IF('Crop 3'!$C$53=Carbon!$B164,'Crop 3'!$V$53*VLOOKUP('Crop 3'!$E$53,Carbon!$AH$4:$AI$10,2,FALSE),0)+IF('Crop 3'!$C$56=Carbon!$B164,'Crop 3'!$V$56*VLOOKUP('Crop 3'!$E$56,Carbon!$AH$4:$AI$10,2,FALSE),0)+IF('Crop 3'!$C$57=Carbon!$B164,'Crop 3'!$V$57*VLOOKUP('Crop 3'!$E$57,Carbon!$AH$4:$AI$10,2,FALSE),0)+IF('Crop 3'!$C$58=Carbon!$B164,'Crop 3'!$V$58*VLOOKUP('Crop 3'!$E$58,Carbon!$AH$4:$AI$10,2,FALSE),0)+IF('Crop 3'!$C$59=Carbon!$B164,'Crop 3'!$V$59*VLOOKUP('Crop 3'!$E$59,Carbon!$AH$4:$AI$10,2,FALSE),0)+IF('Crop 3'!$C$62=Carbon!$B164,'Crop 3'!$V$62*VLOOKUP('Crop 3'!$E$62,Carbon!$AH$4:$AI$10,2,FALSE),0)+IF('Crop 3'!$C$63=Carbon!$B164,'Crop 3'!$V$63*VLOOKUP('Crop 3'!$E$63,Carbon!$AH$4:$AI$10,2,FALSE),0)+IF('Crop 3'!$C$64=Carbon!$B164,'Crop 3'!$V$64*VLOOKUP('Crop 3'!$E$64,Carbon!$AH$4:$AI$10,2,FALSE),0)+IF('Crop 3'!$C$65=Carbon!$B164,'Crop 3'!$V$65*VLOOKUP('Crop 3'!$E$65,Carbon!$AH$4:$AI$10,2,FALSE),0))*$AL$20,2)","v":0},{"$f":"Q164*Inputs!$D$17","v":0},{"$f":"ROUND(T164/Inputs!D$19,2)","v":0},0,null,null,0,{"$f":"W164*Inputs!$D$13","v":0},0,{"$f":"Y164*Inputs!$D$13","v":0},0,{"$f":"AA164*Inputs!$D$13","v":0},{"$f":"ROUND(AD164/Inputs!D$19,2)","v":0},0]
[null,{"$f":"Defaults!AH131","v":"Zidua"},{"$f":"ROUND((IF('Crop 1'!$C$14=Carbon!$B165,'Crop 1'!$L$14*VLOOKUP('Crop 1'!$E$14,Carbon!$AH$4:$AI$10,2,FALSE),0)+IF('Crop 1'!$C$15=Carbon!$B165,'Crop 1'!$L$15*VLOOKUP('Crop 1'!$E$15,Carbon!$AH$4:$AI$10,2,FALSE),0)+IF('Crop 1'!$C$16=Carbon!$B165,'Crop 1'!$L$16*VLOOKUP('Crop 1'!$E$16,Carbon!$AH$4:$AI$10,2,FALSE),0)+IF('Crop 1'!$C$19=Carbon!$B165,'Crop 1'!$L$19*VLOOKUP('Crop 1'!$E$19,Carbon!$AH$4:$AI$10,2,FALSE),0)+IF('Crop 1'!$C$20=Carbon!$B165,'Crop 1'!$L$20*VLOOKUP('Crop 1'!$E$20,Carbon!$AH$4:$AI$10,2,FALSE),0)+IF('Crop 1'!$C$21=Carbon!$B165,'Crop 1'!$L$21*VLOOKUP('Crop 1'!$E$21,Carbon!$AH$4:$AI$10,2,FALSE),0)+IF('Crop 1'!$C$49=Carbon!$B165,'Crop 1'!$L$49*VLOOKUP('Crop 1'!$E$49,Carbon!$AH$4:$AI$10,2,FALSE),0)+IF('Crop 1'!$C$50=Carbon!$B165,'Crop 1'!$L$50*VLOOKUP('Crop 1'!$E$50,Carbon!$AH$4:$AI$10,2,FALSE),0)+IF('Crop 1'!$C$51=Carbon!$B165,'Crop 1'!$L$51*VLOOKUP('Crop 1'!$E$51,Carbon!$AH$4:$AI$10,2,FALSE),0)+IF('Crop 1'!$C$52=Carbon!$B165,'Crop 1'!$L$52*VLOOKUP('Crop 1'!$E$52,Carbon!$AH$4:$AI$10,2,FALSE),0)+IF('Crop 1'!$C$53=Carbon!$B165,'Crop 1'!$L$53*VLOOKUP('Crop 1'!$E$53,Carbon!$AH$4:$AI$10,2,FALSE),0)+IF('Crop 1'!$C$56=Carbon!$B165,'Crop 1'!$L$56*VLOOKUP('Crop 1'!$E$56,Carbon!$AH$4:$AI$10,2,FALSE),0)+IF('Crop 1'!$C$57=Carbon!$B165,'Crop 1'!$L$57*VLOOKUP('Crop 1'!$E$57,Carbon!$AH$4:$AI$10,2,FALSE),0)+IF('Crop 1'!$C$58=Carbon!$B165,'Crop 1'!$L$58*VLOOKUP('Crop 1'!$E$58,Carbon!$AH$4:$AI$10,2,FALSE),0)+IF('Crop 1'!$C$59=Carbon!$B165,'Crop 1'!$L$59*VLOOKUP('Crop 1'!$E$59,Carbon!$AH$4:$AI$10,2,FALSE),0)+IF('Crop 1'!$C$62=Carbon!$B165,'Crop 1'!$L$62*VLOOKUP('Crop 1'!$E$62,Carbon!$AH$4:$AI$10,2,FALSE),0)+IF('Crop 1'!$C$63=Carbon!$B165,'Crop 1'!$L$63*VLOOKUP('Crop 1'!$E$63,Carbon!$AH$4:$AI$10,2,FALSE),0)+IF('Crop 1'!$C$64=Carbon!$B165,'Crop 1'!$L$64*VLOOKUP('Crop 1'!$E$64,Carbon!$AH$4:$AI$10,2,FALSE),0)+IF('Crop 1'!$C$65=Carbon!$B165,'Crop 1'!$L$65*VLOOKUP('Crop 1'!$E$65,Carbon!$AH$4:$AI$10,2,FALSE),0))*$AL$20,2)","v":0},{"$f":"C165*Inputs!$D$13","v":0},{"$f":"ROUND((IF('Crop 2'!$C$14=Carbon!$B165,'Crop 2'!$L$14*VLOOKUP('Crop 2'!$E$14,Carbon!$AH$4:$AI$10,2,FALSE),0)+IF('Crop 2'!$C$15=Carbon!$B165,'Crop 2'!$L$15*VLOOKUP('Crop 2'!$E$15,Carbon!$AH$4:$AI$10,2,FALSE),0)+IF('Crop 2'!$C$16=Carbon!$B165,'Crop 2'!$L$16*VLOOKUP('Crop 2'!$E$16,Carbon!$AH$4:$AI$10,2,FALSE),0)+IF('Crop 2'!$C$19=Carbon!$B165,'Crop 2'!$L$19*VLOOKUP('Crop 2'!$E$19,Carbon!$AH$4:$AI$10,2,FALSE),0)+IF('Crop 2'!$C$20=Carbon!$B165,'Crop 2'!$L$20*VLOOKUP('Crop 2'!$E$20,Carbon!$AH$4:$AI$10,2,FALSE),0)+IF('Crop 2'!$C$21=Carbon!$B165,'Crop 2'!$L$21*VLOOKUP('Crop 2'!$E$21,Carbon!$AH$4:$AI$10,2,FALSE),0)+IF('Crop 2'!$C$49=Carbon!$B165,'Crop 2'!$L$49*VLOOKUP('Crop 2'!$E$49,Carbon!$AH$4:$AI$10,2,FALSE),0)+IF('Crop 2'!$C$50=Carbon!$B165,'Crop 2'!$L$50*VLOOKUP('Crop 2'!$E$50,Carbon!$AH$4:$AI$10,2,FALSE),0)+IF('Crop 2'!$C$51=Carbon!$B165,'Crop 2'!$L$51*VLOOKUP('Crop 2'!$E$51,Carbon!$AH$4:$AI$10,2,FALSE),0)+IF('Crop 2'!$C$52=Carbon!$B165,'Crop 2'!$L$52*VLOOKUP('Crop 2'!$E$52,Carbon!$AH$4:$AI$10,2,FALSE),0)+IF('Crop 2'!$C$53=Carbon!$B165,'Crop 2'!$L$53*VLOOKUP('Crop 2'!$E$53,Carbon!$AH$4:$AI$10,2,FALSE),0)+IF('Crop 2'!$C$56=Carbon!$B165,'Crop 2'!$L$56*VLOOKUP('Crop 2'!$E$56,Carbon!$AH$4:$AI$10,2,FALSE),0)+IF('Crop 2'!$C$57=Carbon!$B165,'Crop 2'!$L$57*VLOOKUP('Crop 2'!$E$57,Carbon!$AH$4:$AI$10,2,FALSE),0)+IF('Crop 2'!$C$58=Carbon!$B165,'Crop 2'!$L$58*VLOOKUP('Crop 2'!$E$58,Carbon!$AH$4:$AI$10,2,FALSE),0)+IF('Crop 2'!$C$59=Carbon!$B165,'Crop 2'!$L$59*VLOOKUP('Crop 2'!$E$59,Carbon!$AH$4:$AI$10,2,FALSE),0)+IF('Crop 2'!$C$62=Carbon!$B165,'Crop 2'!$L$62*VLOOKUP('Crop 2'!$E$62,Carbon!$AH$4:$AI$10,2,FALSE),0)+IF('Crop 2'!$C$63=Carbon!$B165,'Crop 2'!$L$63*VLOOKUP('Crop 2'!$E$63,Carbon!$AH$4:$AI$10,2,FALSE),0)+IF('Crop 2'!$C$64=Carbon!$B165,'Crop 2'!$L$64*VLOOKUP('Crop 2'!$E$64,Carbon!$AH$4:$AI$10,2,FALSE),0)+IF('Crop 2'!$C$65=Carbon!$B165,'Crop 2'!$L$65*VLOOKUP('Crop 2'!$E$65,Carbon!$AH$4:$AI$10,2,FALSE),0))*$AL$20,2)","v":0},{"$f":"E165*Inputs!$D$15","v":0},{"$f":"ROUND((IF('Crop 3'!$C$14=Carbon!$B165,'Crop 3'!$L$14*VLOOKUP('Crop 3'!$E$14,Carbon!$AH$4:$AI$10,2,FALSE),0)+IF('Crop 3'!$C$15=Carbon!$B165,'Crop 3'!$L$15*VLOOKUP('Crop 3'!$E$15,Carbon!$AH$4:$AI$10,2,FALSE),0)+IF('Crop 3'!$C$16=Carbon!$B165,'Crop 3'!$L$16*VLOOKUP('Crop 3'!$E$16,Carbon!$AH$4:$AI$10,2,FALSE),0)+IF('Crop 3'!$C$19=Carbon!$B165,'Crop 3'!$L$19*VLOOKUP('Crop 3'!$E$19,Carbon!$AH$4:$AI$10,2,FALSE),0)+IF('Crop 3'!$C$20=Carbon!$B165,'Crop 3'!$L$20*VLOOKUP('Crop 3'!$E$20,Carbon!$AH$4:$AI$10,2,FALSE),0)+IF('Crop 3'!$C$21=Carbon!$B165,'Crop 3'!$L$21*VLOOKUP('Crop 3'!$E$21,Carbon!$AH$4:$AI$10,2,FALSE),0)+IF('Crop 3'!$C$49=Carbon!$B165,'Crop 3'!$L$49*VLOOKUP('Crop 3'!$E$49,Carbon!$AH$4:$AI$10,2,FALSE),0)+IF('Crop 3'!$C$50=Carbon!$B165,'Crop 3'!$L$50*VLOOKUP('Crop 3'!$E$50,Carbon!$AH$4:$AI$10,2,FALSE),0)+IF('Crop 3'!$C$51=Carbon!$B165,'Crop 3'!$L$51*VLOOKUP('Crop 3'!$E$51,Carbon!$AH$4:$AI$10,2,FALSE),0)+IF('Crop 3'!$C$52=Carbon!$B165,'Crop 3'!$L$52*VLOOKUP('Crop 3'!$E$52,Carbon!$AH$4:$AI$10,2,FALSE),0)+IF('Crop 3'!$C$53=Carbon!$B165,'Crop 3'!$L$53*VLOOKUP('Crop 3'!$E$53,Carbon!$AH$4:$AI$10,2,FALSE),0)+IF('Crop 3'!$C$56=Carbon!$B165,'Crop 3'!$L$56*VLOOKUP('Crop 3'!$E$56,Carbon!$AH$4:$AI$10,2,FALSE),0)+IF('Crop 3'!$C$57=Carbon!$B165,'Crop 3'!$L$57*VLOOKUP('Crop 3'!$E$57,Carbon!$AH$4:$AI$10,2,FALSE),0)+IF('Crop 3'!$C$58=Carbon!$B165,'Crop 3'!$L$58*VLOOKUP('Crop 3'!$E$58,Carbon!$AH$4:$AI$10,2,FALSE),0)+IF('Crop 3'!$C$59=Carbon!$B165,'Crop 3'!$L$59*VLOOKUP('Crop 3'!$E$59,Carbon!$AH$4:$AI$10,2,FALSE),0)+IF('Crop 3'!$C$62=Carbon!$B165,'Crop 3'!$L$62*VLOOKUP('Crop 3'!$E$62,Carbon!$AH$4:$AI$10,2,FALSE),0)+IF('Crop 3'!$C$63=Carbon!$B165,'Crop 3'!$L$63*VLOOKUP('Crop 3'!$E$63,Carbon!$AH$4:$AI$10,2,FALSE),0)+IF('Crop 3'!$C$64=Carbon!$B165,'Crop 3'!$L$64*VLOOKUP('Crop 3'!$E$64,Carbon!$AH$4:$AI$10,2,FALSE),0)+IF('Crop 3'!$C$65=Carbon!$B165,'Crop 3'!$L$65*VLOOKUP('Crop 3'!$E$65,Carbon!$AH$4:$AI$10,2,FALSE),0))*$AL$20,2)","v":0},{"$f":"G165*Inputs!$D$17","v":0},{"$f":"ROUND(J165/Inputs!D$19,2)","v":0},0,null,null,{"$f":"ROUND((IF('Crop 1'!$C$14=Carbon!$B165,'Crop 1'!$V$14*VLOOKUP('Crop 1'!$E$14,Carbon!$AH$4:$AI$10,2,FALSE),0)+IF('Crop 1'!$C$15=Carbon!$B165,'Crop 1'!$V$15*VLOOKUP('Crop 1'!$E$15,Carbon!$AH$4:$AI$10,2,FALSE),0)+IF('Crop 1'!$C$16=Carbon!$B165,'Crop 1'!$V$16*VLOOKUP('Crop 1'!$E$16,Carbon!$AH$4:$AI$10,2,FALSE),0)+IF('Crop 1'!$C$19=Carbon!$B165,'Crop 1'!$V$19*VLOOKUP('Crop 1'!$E$19,Carbon!$AH$4:$AI$10,2,FALSE),0)+IF('Crop 1'!$C$20=Carbon!$B165,'Crop 1'!$V$20*VLOOKUP('Crop 1'!$E$20,Carbon!$AH$4:$AI$10,2,FALSE),0)+IF('Crop 1'!$C$21=Carbon!$B165,'Crop 1'!$V$21*VLOOKUP('Crop 1'!$E$21,Carbon!$AH$4:$AI$10,2,FALSE),0)+IF('Crop 1'!$C$49=Carbon!$B165,'Crop 1'!$V$49*VLOOKUP('Crop 1'!$E$49,Carbon!$AH$4:$AI$10,2,FALSE),0)+IF('Crop 1'!$C$50=Carbon!$B165,'Crop 1'!$V$50*VLOOKUP('Crop 1'!$E$50,Carbon!$AH$4:$AI$10,2,FALSE),0)+IF('Crop 1'!$C$51=Carbon!$B165,'Crop 1'!$V$51*VLOOKUP('Crop 1'!$E$51,Carbon!$AH$4:$AI$10,2,FALSE),0)+IF('Crop 1'!$C$52=Carbon!$B165,'Crop 1'!$V$52*VLOOKUP('Crop 1'!$E$52,Carbon!$AH$4:$AI$10,2,FALSE),0)+IF('Crop 1'!$C$53=Carbon!$B165,'Crop 1'!$V$53*VLOOKUP('Crop 1'!$E$53,Carbon!$AH$4:$AI$10,2,FALSE),0)+IF('Crop 1'!$C$56=Carbon!$B165,'Crop 1'!$V$56*VLOOKUP('Crop 1'!$E$56,Carbon!$AH$4:$AI$10,2,FALSE),0)+IF('Crop 1'!$C$57=Carbon!$B165,'Crop 1'!$V$57*VLOOKUP('Crop 1'!$E$57,Carbon!$AH$4:$AI$10,2,FALSE),0)+IF('Crop 1'!$C$58=Carbon!$B165,'Crop 1'!$V$58*VLOOKUP('Crop 1'!$E$58,Carbon!$AH$4:$AI$10,2,FALSE),0)+IF('Crop 1'!$C$59=Carbon!$B165,'Crop 1'!$V$59*VLOOKUP('Crop 1'!$E$59,Carbon!$AH$4:$AI$10,2,FALSE),0)+IF('Crop 1'!$C$62=Carbon!$B165,'Crop 1'!$V$62*VLOOKUP('Crop 1'!$E$62,Carbon!$AH$4:$AI$10,2,FALSE),0)+IF('Crop 1'!$C$63=Carbon!$B165,'Crop 1'!$V$63*VLOOKUP('Crop 1'!$E$63,Carbon!$AH$4:$AI$10,2,FALSE),0)+IF('Crop 1'!$C$64=Carbon!$B165,'Crop 1'!$V$64*VLOOKUP('Crop 1'!$E$64,Carbon!$AH$4:$AI$10,2,FALSE),0)+IF('Crop 1'!$C$65=Carbon!$B165,'Crop 1'!$V$65*VLOOKUP('Crop 1'!$E$65,Carbon!$AH$4:$AI$10,2,FALSE),0))*$AL$20,2)","v":0},{"$f":"M165*Inputs!$D$13","v":0},{"$f":"ROUND((IF('Crop 2'!$C$14=Carbon!$B165,'Crop 2'!$V$14*VLOOKUP('Crop 2'!$E$14,Carbon!$AH$4:$AI$10,2,FALSE),0)+IF('Crop 2'!$C$15=Carbon!$B165,'Crop 2'!$V$15*VLOOKUP('Crop 2'!$E$15,Carbon!$AH$4:$AI$10,2,FALSE),0)+IF('Crop 2'!$C$16=Carbon!$B165,'Crop 2'!$V$16*VLOOKUP('Crop 2'!$E$16,Carbon!$AH$4:$AI$10,2,FALSE),0)+IF('Crop 2'!$C$19=Carbon!$B165,'Crop 2'!$V$19*VLOOKUP('Crop 2'!$E$19,Carbon!$AH$4:$AI$10,2,FALSE),0)+IF('Crop 2'!$C$20=Carbon!$B165,'Crop 2'!$V$20*VLOOKUP('Crop 2'!$E$20,Carbon!$AH$4:$AI$10,2,FALSE),0)+IF('Crop 2'!$C$21=Carbon!$B165,'Crop 2'!$V$21*VLOOKUP('Crop 2'!$E$21,Carbon!$AH$4:$AI$10,2,FALSE),0)+IF('Crop 2'!$C$49=Carbon!$B165,'Crop 2'!$V$49*VLOOKUP('Crop 2'!$E$49,Carbon!$AH$4:$AI$10,2,FALSE),0)+IF('Crop 2'!$C$50=Carbon!$B165,'Crop 2'!$V$50*VLOOKUP('Crop 2'!$E$50,Carbon!$AH$4:$AI$10,2,FALSE),0)+IF('Crop 2'!$C$51=Carbon!$B165,'Crop 2'!$V$51*VLOOKUP('Crop 2'!$E$51,Carbon!$AH$4:$AI$10,2,FALSE),0)+IF('Crop 2'!$C$52=Carbon!$B165,'Crop 2'!$V$52*VLOOKUP('Crop 2'!$E$52,Carbon!$AH$4:$AI$10,2,FALSE),0)+IF('Crop 2'!$C$53=Carbon!$B165,'Crop 2'!$V$53*VLOOKUP('Crop 2'!$E$53,Carbon!$AH$4:$AI$10,2,FALSE),0)+IF('Crop 2'!$C$56=Carbon!$B165,'Crop 2'!$V$56*VLOOKUP('Crop 2'!$E$56,Carbon!$AH$4:$AI$10,2,FALSE),0)+IF('Crop 2'!$C$57=Carbon!$B165,'Crop 2'!$V$57*VLOOKUP('Crop 2'!$E$57,Carbon!$AH$4:$AI$10,2,FALSE),0)+IF('Crop 2'!$C$58=Carbon!$B165,'Crop 2'!$V$58*VLOOKUP('Crop 2'!$E$58,Carbon!$AH$4:$AI$10,2,FALSE),0)+IF('Crop 2'!$C$59=Carbon!$B165,'Crop 2'!$V$59*VLOOKUP('Crop 2'!$E$59,Carbon!$AH$4:$AI$10,2,FALSE),0)+IF('Crop 2'!$C$62=Carbon!$B165,'Crop 2'!$V$62*VLOOKUP('Crop 2'!$E$62,Carbon!$AH$4:$AI$10,2,FALSE),0)+IF('Crop 2'!$C$63=Carbon!$B165,'Crop 2'!$V$63*VLOOKUP('Crop 2'!$E$63,Carbon!$AH$4:$AI$10,2,FALSE),0)+IF('Crop 2'!$C$64=Carbon!$B165,'Crop 2'!$V$64*VLOOKUP('Crop 2'!$E$64,Carbon!$AH$4:$AI$10,2,FALSE),0)+IF('Crop 2'!$C$65=Carbon!$B165,'Crop 2'!$V$65*VLOOKUP('Crop 2'!$E$65,Carbon!$AH$4:$AI$10,2,FALSE),0))*$AL$20,2)","v":0},{"$f":"O165*Inputs!$D$15","v":0},{"$f":"ROUND((IF('Crop 3'!$C$14=Carbon!$B165,'Crop 3'!$V$14*VLOOKUP('Crop 3'!$E$14,Carbon!$AH$4:$AI$10,2,FALSE),0)+IF('Crop 3'!$C$15=Carbon!$B165,'Crop 3'!$V$15*VLOOKUP('Crop 3'!$E$15,Carbon!$AH$4:$AI$10,2,FALSE),0)+IF('Crop 3'!$C$16=Carbon!$B165,'Crop 3'!$V$16*VLOOKUP('Crop 3'!$E$16,Carbon!$AH$4:$AI$10,2,FALSE),0)+IF('Crop 3'!$C$19=Carbon!$B165,'Crop 3'!$V$19*VLOOKUP('Crop 3'!$E$19,Carbon!$AH$4:$AI$10,2,FALSE),0)+IF('Crop 3'!$C$20=Carbon!$B165,'Crop 3'!$V$20*VLOOKUP('Crop 3'!$E$20,Carbon!$AH$4:$AI$10,2,FALSE),0)+IF('Crop 3'!$C$21=Carbon!$B165,'Crop 3'!$V$21*VLOOKUP('Crop 3'!$E$21,Carbon!$AH$4:$AI$10,2,FALSE),0)+IF('Crop 3'!$C$49=Carbon!$B165,'Crop 3'!$V$49*VLOOKUP('Crop 3'!$E$49,Carbon!$AH$4:$AI$10,2,FALSE),0)+IF('Crop 3'!$C$50=Carbon!$B165,'Crop 3'!$V$50*VLOOKUP('Crop 3'!$E$50,Carbon!$AH$4:$AI$10,2,FALSE),0)+IF('Crop 3'!$C$51=Carbon!$B165,'Crop 3'!$V$51*VLOOKUP('Crop 3'!$E$51,Carbon!$AH$4:$AI$10,2,FALSE),0)+IF('Crop 3'!$C$52=Carbon!$B165,'Crop 3'!$V$52*VLOOKUP('Crop 3'!$E$52,Carbon!$AH$4:$AI$10,2,FALSE),0)+IF('Crop 3'!$C$53=Carbon!$B165,'Crop 3'!$V$53*VLOOKUP('Crop 3'!$E$53,Carbon!$AH$4:$AI$10,2,FALSE),0)+IF('Crop 3'!$C$56=Carbon!$B165,'Crop 3'!$V$56*VLOOKUP('Crop 3'!$E$56,Carbon!$AH$4:$AI$10,2,FALSE),0)+IF('Crop 3'!$C$57=Carbon!$B165,'Crop 3'!$V$57*VLOOKUP('Crop 3'!$E$57,Carbon!$AH$4:$AI$10,2,FALSE),0)+IF('Crop 3'!$C$58=Carbon!$B165,'Crop 3'!$V$58*VLOOKUP('Crop 3'!$E$58,Carbon!$AH$4:$AI$10,2,FALSE),0)+IF('Crop 3'!$C$59=Carbon!$B165,'Crop 3'!$V$59*VLOOKUP('Crop 3'!$E$59,Carbon!$AH$4:$AI$10,2,FALSE),0)+IF('Crop 3'!$C$62=Carbon!$B165,'Crop 3'!$V$62*VLOOKUP('Crop 3'!$E$62,Carbon!$AH$4:$AI$10,2,FALSE),0)+IF('Crop 3'!$C$63=Carbon!$B165,'Crop 3'!$V$63*VLOOKUP('Crop 3'!$E$63,Carbon!$AH$4:$AI$10,2,FALSE),0)+IF('Crop 3'!$C$64=Carbon!$B165,'Crop 3'!$V$64*VLOOKUP('Crop 3'!$E$64,Carbon!$AH$4:$AI$10,2,FALSE),0)+IF('Crop 3'!$C$65=Carbon!$B165,'Crop 3'!$V$65*VLOOKUP('Crop 3'!$E$65,Carbon!$AH$4:$AI$10,2,FALSE),0))*$AL$20,2)","v":0},{"$f":"Q165*Inputs!$D$17","v":0},{"$f":"ROUND(T165/Inputs!D$19,2)","v":0},0,null,null,0,{"$f":"W165*Inputs!$D$13","v":0},0,{"$f":"Y165*Inputs!$D$13","v":0},0,{"$f":"AA165*Inputs!$D$13","v":0},{"$f":"ROUND(AD165/Inputs!D$19,2)","v":0},0]
[null,null,null,null,null,null,null,null,null,null,null,null,null,null,null,null,null,null,null,null,null,null,{"$f":"(W4+W5+W16+W36)","v":-25.089999999999964},-7526.9999999999991,-5.1899999999999995,-1038,-19.160000000000075,-1916,{"$f":"ROUND(AD166/Inputs!D$19,2)","v":-17.47},{"$f":"(AD4+AD5+AD16+AD36)","v":-10481}]

{"sheet":"Defaults","index":8,"n_rows":131,"n_cols":92,"rows_kept":131,"cut":false,"hidden":true,"merged":[[0,19,0,25],[24,12,24,13],[1,1,1,3],[1,17,2,17],[1,12,2,12],[1,13,2,13],[1,14,2,14],[1,15,2,15],[1,16,2,16],[1,7,1,10]]}
[null,null,null,null,null,null,null,null,null,null,null,null,null,null,null,null,null,null,null,"Default Application Rates",null,null,null,null,null,null,null,null,null,null,null,null,null,null,null,null,null,"Application Rate Lookups and Data Validation Lists for Inputs Worksheet"]
[null,"Userform Lists",null,null,null,"Userform Precision Technology Lists",null,"Budget Lists",null,null,null,null,"Crop","Exp.\nYield","Unit","Exp.\n$/unit","Exp. Rev.\n$/acre","Seed Cost\n$/acre",null,"Fertilizer","unit","$/unit","app. unit",{"$f":"$M$5","v":"Cotton"},{"$f":"$M$6","v":"Corn"},{"$f":"$M$7","v":"Sorghum"},{"$f":"$M$8","v":"Soybean"},{"$f":"$M$9","v":"Rice"},{"$f":"$M$10","v":"Peanut"},{"$f":"$M$11","v":"Wheat"},{"$f":"$M$12","v":"Est. Pasture or Hay"},null,null,"Herbicide Prices","unit","$/unit",null,"CottonBD","unit","$/unit","unit","qty","MAX",null,"CornBD","unit","$/unit","unit","qty","MAX",null,"SorghumBD","unit","$/unit","unit","qty","MAX",null,"SoybeanBD","unit","$/unit","unit","qty","MAX",null,"RiceBD","unit","$/unit","unit","qty","MAX",null,"PeanutBD","unit","$/unit","unit","qty","MAX",null,"WheatBD","unit","$/unit","unit","qty","MAX",null,"Pasture","unit","$/unit","unit","qty","MAX"]
[null,"TractorQuantity","Tractors","Plant",null,"TractorGuide",null,"UserPlant","BudgetPlantSoy","# of trips","$/acre",null,null,null,null,null,"$/acre","$/acre",null,{"$f":"\"\"","v":""},{"$f":"\"\"","v":""},{"$f":"\"\"","v":""},{"$f":"\"\"","v":""},{"$f":"\"\"","v":""},{"$f":"\"\"","v":""},{"$f":"\"\"","v":""},{"$f":"\"\"","v":""},{"$f":"\"\"","v":""},{"$f":"\"\"","v":""},{"$f":"\"\"","v":""},{"$f":"\"\"","v":""},null,null,"2,4-D","gal",15.4,null,{"$f":"\"\"","v":""},{"$f":"\"\"","v":""},{"$f":"\"\"","v":""},{"$f":"\"\"","v":""},{"$f":"\"\"","v":""},{"$f":"\"\"","v":""},null,{"$f":"\"\"","v":""},{"$f":"\"\"","v":""},{"$f":"\"\"","v":""},{"$f":"\"\"","v":""},{"$f":"\"\"","v":""},{"$f":"\"\"","v":""},null,{"$f":"\"\"","v":""},{"$f":"\"\"","v":""},{"$f":"\"\"","v":""},{"$f":"\"\"","v":""},{"$f":"\"\"","v":""},{"$f":"\"\"","v":""},null,{"$f":"\"\"","v":""},{"$f":"\"\"","v":""},{"$f":"\"\"","v":""},{"$f":"\"\"","v":""},{"$f":"\"\"","v":""},{"$f":"\"\"","v":""},null,{"$f":"\"\"","v":""},{"$f":"\"\"","v":""},{"$f":"\"\"","v":""},{"$f":"\"\"","v":""},{"$f":"\"\"","v":""},{"$f":"\"\"","v":""},null,"NA",null,null,null,null,null,null,"NA",null,null,null,null,null,null,{"$f":"\"\"","v":""},{"$f":"\"\"","v":""},{"$f":"\"\"","v":""},{"$f":"\"\"","v":""},{"$f":"\"\"","v":""},{"$f":"\"\"","v":""}]
[null,1,"2 WD 50",{"$f":"Implements!$B$32","v":"No-Till Grain Drill"},null,{"$f":"Implements!B60","v":"Sub-meter Receiver"},null,{"$f":"Implements!$B$106","v":"No-Till Grain Drill"},{"$f":"\"\"","v":""},{"$f":"\"\"","v":""},{"$f":"\"\"","v":""},null,{"$f":"\"\"","v":""},{"$f":"\"\"","v":""},{"$f":"\"\"","v":""},{"$f":"\"\"","v":""},{"$f":"\"\"","v":""},{"$f":"\"\"","v":""},null,"Urea [46-0-0]","cwt",16.78,"lb",{"$f":"Cotton!E24","v":122},{"$f":"Corn!E24","v":300},{"$f":"Sorghum!E24","v":355},{"$f":"\"\"","v":""},{"$f":"\"\"","v":""},{"$f":"\"\"","v":""},{"$f":"Wheat!E24","v":225},{"$f":"Pasture!E24","v":155},null,null,"AAtrex","gal",16.899999999999999,null,{"$f":"AH64","v":"Gramoxone"},{"$f":"VLOOKUP(AL4,$AH$3:$AJ$131,2,FALSE)","v":"gal"},{"$f":"VLOOKUP(AL4,$AH$3:$AJ$131,3,FALSE)","v":33},"oz",32,64,null,{"$f":"AH63","v":"Glyphosate"},{"$f":"VLOOKUP(AS4,$AH$3:$AJ$131,2,FALSE)","v":"gal"},{"$f":"VLOOKUP(AS4,$AH$3:$AJ$131,3,FALSE)","v":38},"pt",2,2,null,{"$f":"AH63","v":"Glyphosate"},{"$f":"VLOOKUP(AZ4,$AH$3:$AJ$131,2,FALSE)","v":"gal"},{"$f":"VLOOKUP(AZ4,$AH$3:$AJ$131,3,FALSE)","v":38},"pt",2,2,null,{"$f":"AH64","v":"Gramoxone"},{"$f":"VLOOKUP(BG4,$AH$3:$AJ$131,2,FALSE)","v":"gal"},{"$f":"VLOOKUP(BG4,$AH$3:$AJ$131,3,FALSE)","v":33},"oz",32,64,null,{"$f":"AH63","v":"Glyphosate"},{"$f":"VLOOKUP(BN4,$AH$3:$AJ$131,2,FALSE)","v":"gal"},{"$f":"VLOOKUP(BN4,$AH$3:$AJ$131,3,FALSE)","v":38},"oz",32,32,null,{"$f":"\"\"","v":""},{"$f":"\"\"","v":""},{"$f":"\"\"","v":""},null,null,null,null,{"$f":"\"\"","v":""},{"$f":"\"\"","v":""},{"$f":"\"\"","v":""},null,null,null,null,{"$f":"AH3","v":"2,4-D"},{"$f":"VLOOKUP(CI4,$AH:$AJ,2,FALSE)","v":"gal"},{"$f":"VLOOKUP(CI4,$AH:$AJ,3,FALSE)","v":15.4},"pt",1,4]
[null,2,"MFWD 50",{"$f":"Implements!$B$34","v":"Grain Drill"},null,{"$f":"Implements!B61","v":0},null,{"$f":"IF(Implements!E136=2,Implements!$B$107,\"\")","v":""},{"$f":"CONCATENATE(\"Custom \",M36)","v":"Custom Ground Seeding"},1,{"$f":"Inputs!$AA$27","v":7},null,"Cotton",1200,"lb",0.68,{"$f":"N5*P5","v":816.00000000000011},120.03,null,"Diammonium Phosphate [18-46-0]","cwt",24.82,"lb",{"$f":"Cotton!E25","v":65},{"$f":"Corn!E25","v":130},{"$f":"Sorghum!E25","v":130},{"$f":"\"\"","v":""},{"$f":"Rice!I24","v":87},{"$f":"\"\"","v":""},{"$f":"Wheat!E25","v":87},{"$f":"Pasture!E25","v":20},null,null,"Accent","gal",35.75,null,{"$f":"AH75","v":"Liberty"},"gal",53.9,"oz",40,40,null,{"$f":"AH3","v":"2,4-D"},{"$f":"VLOOKUP(AS5,$AH$3:$AJ$131,2,FALSE)","v":"gal"},{"$f":"VLOOKUP(AS5,$AH$3:$AJ$131,3,FALSE)","v":15.4},"oz",32,32,null,{"$f":"\"\"","v":""},{"$f":"\"\"","v":""},{"$f":"\"\"","v":""},null,null,null,null,{"$f":"AH63","v":"Glyphosate"},"gal",38,"pt",2,2,null,{"$f":"AH109","v":"Sharpen"},{"$f":"VLOOKUP(BN5,$AH$3:$AJ$131,2,FALSE)","v":"gal"},{"$f":"VLOOKUP(BN5,$AH$3:$AJ$131,3,FALSE)","v":756.19},"oz",1,2,null,{"$f":"\"\"","v":""},{"$f":"\"\"","v":""},{"$f":"\"\"","v":""},null,null,null,null,{"$f":"\"\"","v":""},{"$f":"\"\"","v":""},{"$f":"\"\"","v":""},null,null,null,null,{"$f":"AH17","v":"Banvel"},"gal",65,"pt",1,8]
[null,3,"2 WD 75",null,null,"VVVVVVVVVVVVVVVVVVVVVVVVVVVVVVVVVVVVVVVV",null,null,{"$f":"CONCATENATE(\"Custom \",M37)","v":"Custom Air Seeding"},1,{"$f":"Inputs!$AA$29","v":7},null,"Corn",210,"bu",3.5,735,115,null,"Potash [0-0-60]","cwt",16.97,"lb",{"$f":"Cotton!E26","v":100},{"$f":"Corn!E26","v":150},{"$f":"Sorghum!E26","v":150},{"$f":"Soybean!E25","v":100},{"$f":"Rice!I25","v":100},{"$f":"Peanut!E25","v":85},{"$f":"Wheat!E26","v":133},{"$f":"Pasture!E26","v":83},null,null,"Accent Q",{"$f":"AI5","v":"gal"},{"$f":"AJ5","v":35.75},null,{"$f":"AH63","v":"Glyphosate"},"gal",38,"pt",2,2,null,{"$f":"AH64","v":"Gramoxone"},{"$f":"VLOOKUP(AS6,$AH$3:$AJ$131,2,FALSE)","v":"gal"},{"$f":"VLOOKUP(AS6,$AH$3:$AJ$131,3,FALSE)","v":33},"oz",48,48,null,{"$f":"\"\"","v":""},{"$f":"\"\"","v":""},{"$f":"\"\"","v":""},null,null,null,null,{"$f":"AH75","v":"Liberty"},"gal",53.9,"oz",36,36,null,{"$f":"AH64","v":"Gramoxone"},{"$f":"VLOOKUP(BN6,$AH$3:$AJ$131,2,FALSE)","v":"gal"},{"$f":"VLOOKUP(BN6,$AH$3:$AJ$131,3,FALSE)","v":33},"oz",26,40,null,{"$f":"\"\"","v":""},{"$f":"\"\"","v":""},{"$f":"\"\"","v":""},null,null,null,null,{"$f":"\"\"","v":""},{"$f":"\"\"","v":""},{"$f":"\"\"","v":""},null,null,null,null,{"$f":"AH36","v":"Clarity"},"gal",76.8,"pt",1,8]
[null,4,"MFWD 75","Manure",null,"TG",null,null,{"$f":"CONCATENATE(Implements!$B$136,\" 1\")","v":"No-Till Grain Drill 1"},1,{"$f":"\"\"","v":""},null,"Sorghum",115,"bu",3.1,356.5,23.4,null,"Triple Superphosphate [0-45-0]","cwt",21.88,"lb",{"$f":"\"\"","v":""},{"$f":"\"\"","v":""},{"$f":"\"\"","v":""},{"$f":"Soybean!E24","v":90},{"$f":"\"\"","v":""},{"$f":"Peanut!E24","v":65},{"$f":"\"\"","v":""},{"$f":"\"\"","v":""},null,null,"Acuron","gal",{"$f":"(63+66)/2","v":64.5},null,{"$f":"AH17","v":"Banvel"},"gal",65,"oz",8,8,null,{"$f":"AH75","v":"Liberty"},{"$f":"VLOOKUP(AS7,$AH$3:$AJ$131,2,FALSE)","v":"gal"},{"$f":"VLOOKUP(AS7,$AH$3:$AJ$131,3,FALSE)","v":53.9},"oz",22,22,null,{"$f":"\"\"","v":""},{"$f":"\"\"","v":""},{"$f":"\"\"","v":""},null,null,null,null,{"$f":"AH14","v":"Authority MTZ"},"lb",23.37,"oz",12,16,null,{"$f":"AH3","v":"2,4-D"},{"$f":"VLOOKUP(BN7,$AH$3:$AJ$131,2,FALSE)","v":"gal"},{"$f":"VLOOKUP(BN7,$AH$3:$AJ$131,3,FALSE)","v":15.4},"pt",1,2,null,{"$f":"\"\"","v":""},{"$f":"\"\"","v":""},{"$f":"\"\"","v":""},null,null,null,null,{"$f":"\"\"","v":""},{"$f":"\"\"","v":""},{"$f":"\"\"","v":""},null,null,null,null,{"$f":"AH67","v":"Grazon P + D"},"gal",35,"pt",1,4]
[null,null,"2 WD 105",{"$f":"Implements!$B$42","v":"Manure Spreader"},null,"No Tractor Guidance",null,null,{"$f":"IF(Implements!$E$136=2,CONCATENATE(Implements!$B$137,\" 2\"),\"\")","v":""},{"$f":"IF(I8=\"\",\"\",1)","v":""},{"$f":"\"\"","v":""},null,"Soybean",60,"bu",10,600,78.599999999999994,null,"Zinc Sulfate","lb",1.48,"lb",{"$f":"\"\"","v":""},{"$f":"Corn!E28","v":10},{"$f":"\"\"","v":""},{"$f":"\"\"","v":""},{"$f":"\"\"","v":""},{"$f":"\"\"","v":""},{"$f":"\"\"","v":""},{"$f":"\"\"","v":""},null,null,"Aim","oz",5.96,null,{"$f":"AH3","v":"2,4-D"},"gal",15.4,"oz",32,32,null,{"$f":"\"\"","v":""},{"$f":"\"\"","v":""},{"$f":"\"\"","v":""},null,null,null,null,{"$f":"\"\"","v":""},{"$f":"\"\"","v":""},{"$f":"\"\"","v":""},null,null,null,null,{"$f":"AH127","v":"Valor"},"oz",4.38,"oz",2.5,2.5,null,{"$f":"\"\"","v":""},{"$f":"\"\"","v":""},{"$f":"\"\"","v":""},null,null,null,null,{"$f":"\"\"","v":""},{"$f":"\"\"","v":""},{"$f":"\"\"","v":""},null,null,null,null,{"$f":"\"\"","v":""},{"$f":"\"\"","v":""},{"$f":"\"\"","v":""},null,null,null,null,{"$f":"AH130","v":"Weedmaster"},"gal",28,"pt",1,4]
[null,"Quantity","MFWD 105",{"$f":"Implements!$B$43","v":"Subsurfer"},null,{"$f":"CONCATENATE(Implements!B142,\" 1\")","v":"Sub-meter Receiver 1"},null,null,{"$f":"CONCATENATE(Implements!$B$134,\" 1\")","v":"Row Planter 1"},1,{"$f":"\"\"","v":""},null,"Rice",180,"bu",4.75,855,74.16,null,"Sodium Borate (15% Boron)","lb",{"$f":"5*0.15","v":0.75},"lb",{"$f":"Cotton!E28","v":7},{"$f":"\"\"","v":""},{"$f":"\"\"","v":""},{"$f":"\"\"","v":""},{"$f":"\"\"","v":""},{"$f":"\"\"","v":""},{"$f":"\"\"","v":""},{"$f":"\"\"","v":""},null,null,"Anthem Flex","gal",604.20000000000005,null,{"$f":"AH127","v":"Valor"},"oz",4.38,"oz",2,2,null,null,null,null,null,null,null,null,null,null,null,null,null,null,null,{"$f":"AH96","v":"Python"},"oz",12.65,"oz",1,1.33,null,null,null,null,null,null,null,null,null,null,null,null,null,null,null,null,null,null,null,null,null,null,{"$f":"AH73","v":"Latigo"},"gal",11.574,"pt",1,4]
[null,1,"2 WD 130",null,null,{"$f":"CONCATENATE(Implements!B143,\" 2\")","v":"Sub-meter Receiver 2"},null,null,{"$f":"IF(Implements!$E$134=2,CONCATENATE(Implements!$B$135,\" 2\"),\"\")","v":""},1,{"$f":"\"\"","v":""},null,"Peanut",2.25,"ton",420,945,92,null,"Poultry Litter [3-3-3]","ton",25,"ton",{"$f":"\"\"","v":""},{"$f":"\"\"","v":""},{"$f":"\"\"","v":""},{"$f":"\"\"","v":""},{"$f":"\"\"","v":""},{"$f":"\"\"","v":""},{"$f":"\"\"","v":""},{"$f":"\"\"","v":""},null,null,"Anthem Maxx","gal",{"$f":"ROUND(1946.28/2.5,2)","v":778.51},null,null,null,null,null,null,null,null,null,null,null,null,null,null,null,null,null,null,null,null,null,null,{"$f":"AH52","v":"Envive"},"oz",5.34,"oz",2.8,3.5,null,null,null,null,null,null,null,null,null,null,null,null,null,null,null,null,null,null,null,null,null,null,{"$f":"AH78","v":"Milestone"},"gal",381.52,"oz",3,7]
[null,2,"MFWD 130","Spray",null,null,null,"Rice","BudgetPlantGrain","# of trips","$/acre",null,"Wheat",70,"bu",4.5,315,32,null,"Lime","ton",36,"ton",{"$f":"\"\"","v":""},{"$f":"\"\"","v":""},{"$f":"\"\"","v":""},{"$f":"\"\"","v":""},{"$f":"\"\"","v":""},{"$f":"\"\"","v":""},{"$f":"\"\"","v":""},{"$f":"\"\"","v":""},null,null,"Arsenal","gal",100,null,null,null,null,null,null,null,null,null,null,null,null,null,null,null,null,null,null,null,null,null,null,{"$f":"AH51","v":"Enlite"},"oz",6.33,"oz",2.8,3.5,null,null,null,null,null,null,null,null,null,null,null,null,null,null,null,null,null,null,null,null,null,null,{"$f":"AH68","v":"GrazonNext"},"gal",47.5,"oz",19,34]
[null,null,"MFWD 150",{"$f":"Implements!B36","v":"Over-the-Top Sprayer"},null,{"$f":"CONCATENATE($D$4,\" 1\")","v":"No-Till Grain Drill 1"},null,"Wheat",{"$f":"\"\"","v":""},{"$f":"\"\"","v":""},{"$f":"\"\"","v":""},null,"Est. Pasture or Hay",null,null,null,null,80,null,"Amm. Sulfate [21-0-0](24% Sulfate)","cwt",17.23,"lb",{"$f":"Cotton!E27","v":125},{"$f":"Corn!E27","v":300},{"$f":"\"\"","v":""},{"$f":"\"\"","v":""},{"$f":"\"\"","v":""},{"$f":"\"\"","v":""},{"$f":"Wheat!E27","v":200},{"$f":"\"\"","v":""},null,null,"Assure II","gal",134,null,null,null,null,null,null,null,null,null,null,null,null,null,null,null,null,null,null,null,null,null,null,{"$f":"AH125","v":"Trivence"},"oz",2.5,"oz",8,8,null,null,null,null,null,null,null,null,null,null,null,null,null,null,null,null,null,null,null,null,null,null,{"$f":"AH35","v":"Cimarron Plus"},"oz",8.9,"oz",0.125,1.25]
[null,null,"MFWD 190",{"$f":"Implements!B39","v":"Post-Directed Sprayer"},null,{"$f":"CONCATENATE($D$5,\" 1\")","v":"Grain Drill 1"},null,"Pasture ONLY",{"$f":"CONCATENATE(\"Custom \",M36)","v":"Custom Ground Seeding"},1,{"$f":"Inputs!$AA$27","v":7},null,null,null,null,null,null,null,null,"Amm. Nitrate [34-0-0]","cwt",{"$f":"0.86793*V4","v":14.563865400000001},"lb",null,null,null,null,null,null,null,null,null,null,"Atrazine","gal",16.2,null,null,null,null,null,null,null,null,null,null,null,null,null,null,null,null,null,null,null,null,null,null,{"$f":"AH109","v":"Sharpen"},"gal",756.19,"oz",1,2,null,null,null,null,null,null,null,null,null,null,null,null,null,null,null,null,null,null,null,null,null,null,{"$f":"AH34","v":"Cimarron Max"},"gal",58,"oz",0.25,1]
[null,null,"MFWD 225",null,null,{"$f":"CONCATENATE($D$4,\" 2\")","v":"No-Till Grain Drill 2"},null,null,{"$f":"CONCATENATE(\"Custom \",M37)","v":"Custom Air Seeding"},1,{"$f":"Inputs!$AA$29","v":7},null,"Fuel","$/gal",null,null,"Units",null,null,null,null,null,"# of trips",1,2,2,1,1,1,2,1,null,null,"Authority MTZ","lb",{"$f":"ROUND((23.3*1.03+22.75)/2,2)","v":23.37},null,null,null,null,null,null,null,null,null,null,null,null,null,null,null,null,null,null,null,null,null,null,{"$f":"AH128","v":"Verdict"},"gal",211.28,"oz",5,10,null,null,null,null,null,null,null,null,null,null,null,null,null,null,null,null,null,null,null,null,null,null,{"$f":"AH33","v":"Chaparral"},"oz",7.94,"oz",1,3.3]
[null,null,null,null,null,{"$f":"CONCATENATE($D$5,\" 2\")","v":"Grain Drill 2"},null,null,{"$f":"CONCATENATE(Implements!$B$136,\" 1\")","v":"No-Till Grain Drill 1"},1,{"$f":"\"\"","v":""},null,"Diesel",1.75,null,null,"qt",null,null,null,null,null,null,null,null,null,null,null,null,null,null,null,null,"Axial","gal",225,null,null,null,null,null,null,null,null,null,null,null,null,null,null,null,null,null,null,null,null,null,null,{"$f":"AH89","v":"Permit Plus"},"oz",17,"oz",5,10,null,null,null,null,null,null,null,null,null,null,null,null,null,null,null,null,null,null,null,null,null,null,{"$f":"AH83","v":"Outrider"},"oz",18.5,"oz",1.33,1.33]
[null,null,null,null,null,null,null,null,{"$f":"IF(Implements!$E$136=2,CONCATENATE(Implements!$B$137,\" 2\"),\"\")","v":""},1,{"$f":"\"\"","v":""},null,null,null,null,null,"pt",null,null,"Litter","unit","$/unit","app. unit",{"$f":"$M$5","v":"Cotton"},{"$f":"$M$6","v":"Corn"},{"$f":"$M$7","v":"Sorghum"},{"$f":"$M$8","v":"Soybean"},{"$f":"$M$9","v":"Rice"},{"$f":"$M$10","v":"Peanut"},{"$f":"$M$11","v":"Wheat"},{"$f":"$M$12","v":"Est. Pasture or Hay"},null,null,"Axiom","oz",2.13,null,null,null,null,null,null,null,null,null,null,null,null,null,null,null,null,null,null,null,null,null,null,{"$f":"AH3","v":"2,4-D"},"gal",15.4,"oz",32,32,null,null,null,null,null,null,null,null,null,null,null,null,null,null,null,null,null,null,null,null,null,null,{"$f":"AH109","v":"Sharpen"},"gal",756.19,"oz",1,2]
[null,"Color","Association",null,null,null,null,"Corn","BudgetPlantOther","# of trips","$/acre",null,"Interest","$/hr",null,null,"oz",null,null,{"$f":"\"\"","v":""},{"$f":"\"\"","v":""},{"$f":"\"\"","v":""},{"$f":"\"\"","v":""},{"$f":"\"\"","v":""},{"$f":"\"\"","v":""},{"$f":"\"\"","v":""},{"$f":"\"\"","v":""},{"$f":"\"\"","v":""},{"$f":"\"\"","v":""},{"$f":"\"\"","v":""},{"$f":"\"\"","v":""},null,null,"Banvel","gal",65,null,null,null,null,null,null,null,null,null,null,null,null,null,null,null,null,null,null,null,null,null,null,null,null,null,null,null,null,null,null,null,null,null,null,null,null,null,null,null,null,null,null,null,null,null,null,null,null,null,null,{"$f":"AH88","v":"Permit"},"oz",17,"oz",1.33,1.33]
[null,null,"Defaults or Standard Values",null,null,null,null,"Cotton",{"$f":"\"\"","v":""},{"$f":"\"\"","v":""},{"$f":"\"\"","v":""},null,"Operating Interest",4.7500000000000001E-2,null,null,"cwt",null,null,{"$f":"T10","v":"Poultry Litter [3-3-3]"},{"$f":"U10","v":"ton"},{"$f":"V10","v":25},{"$f":"+W10","v":"ton"},null,null,null,null,null,null,null,1,null,null,"Basagran 4L","gal",135,null,"CottonPP","unit","$/unit","unit","qty","MAX",null,"CornPP","unit","$/unit","unit","qty","MAX",null,"SorghumPP","unit","$/unit","unit","qty","MAX",null,"SoybeanPP","unit","$/unit","unit","qty","MAX",null,"RicePP","unit","$/unit","unit","qty","MAX",null,"PeanutPP","unit","$/unit","unit","qty","MAX",null,"WheatPP","unit","$/unit","unit","qty","MAX",null,{"$f":"AH84","v":"Pastora"},"oz",16.45,"oz",1,1.5]
[null,null,"User Input",null,null,null,null,"Sorghum",{"$f":"CONCATENATE(\"Custom \",M36)","v":"Custom Ground Seeding"},1,{"$f":"Inputs!$AA$27","v":7},null,"Discount Factor",0.06,null,null,"gal",null,null,null,null,null,null,null,null,null,null,null,null,null,null,null,null,"Bicep II Magnum","gal",40.159999999999997,null,{"$f":"\"\"","v":""},{"$f":"\"\"","v":""},{"$f":"\"\"","v":""},{"$f":"\"\"","v":""},{"$f":"\"\"","v":""},{"$f":"\"\"","v":""},null,"NA",null,null,null,null,null,null,{"$f":"\"\"","v":""},{"$f":"\"\"","v":""},{"$f":"\"\"","v":""},{"$f":"\"\"","v":""},{"$f":"\"\"","v":""},{"$f":"\"\"","v":""},null,{"$f":"\"\"","v":""},{"$f":"\"\"","v":""},{"$f":"\"\"","v":""},{"$f":"\"\"","v":""},{"$f":"\"\"","v":""},{"$f":"\"\"","v":""},null,{"$f":"\"\"","v":""},{"$f":"\"\"","v":""},{"$f":"\"\"","v":""},{"$f":"\"\"","v":""},{"$f":"\"\"","v":""},{"$f":"\"\"","v":""},null,{"$f":"\"\"","v":""},{"$f":"\"\"","v":""},{"$f":"\"\"","v":""},{"$f":"\"\"","v":""},{"$f":"\"\"","v":""},{"$f":"\"\"","v":""},null,"NA",null,null,null,null,null,null,{"$f":"AH86","v":"Patriot"},"oz",4.0599999999999996,"oz",0.1,1]
[null,null,"Tractor Guidance",null,null,null,null,"Peanut ONLY",{"$f":"CONCATENATE(\"Custom \",M37)","v":"Custom Air Seeding"},1,{"$f":"Inputs!$AA$29","v":7},null,null,null,null,null,"lb",null,null,"Insecticide","unit","$/unit","app. unit",{"$f":"$M$5","v":"Cotton"},{"$f":"$M$6","v":"Corn"},{"$f":"$M$7","v":"Sorghum"},{"$f":"$M$8","v":"Soybean"},{"$f":"$M$9","v":"Rice"},{"$f":"$M$10","v":"Peanut"},{"$f":"$M$11","v":"Wheat"},{"$f":"$M$12","v":"Est. Pasture or Hay"},null,null,"Bolero","gal",39.5,null,{"$f":"AH99","v":"Reflex"},{"$f":"VLOOKUP(AL20,$AH$3:$AJ$131,2,FALSE)","v":"gal"},{"$f":"VLOOKUP(AL20,$AH$3:$AJ$131,3,FALSE)","v":103},"pt",1,1,null,{"$f":"\"\"","v":""},{"$f":"\"\"","v":""},{"$f":"\"\"","v":""},null,null,null,null,{"$f":"AH63","v":"Glyphosate"},{"$f":"VLOOKUP(AZ20,$AH$3:$AJ$131,2,FALSE)","v":"gal"},{"$f":"VLOOKUP(AZ20,$AH$3:$AJ$131,3,FALSE)","v":38},"oz",32,32,null,{"$f":"AH124","v":"Treflan"},{"$f":"VLOOKUP(BG20,$AH$3:$AJ$131,2,FALSE)","v":"gal"},{"$f":"VLOOKUP(BG20,$AH$3:$AJ$131,3,FALSE)","v":25.92},"pt",1,2,null,{"$f":"AH63","v":"Glyphosate"},{"$f":"VLOOKUP(BN20,$AH$3:$AJ$131,2,FALSE)","v":"gal"},{"$f":"VLOOKUP(BN20,$AH$3:$AJ$131,3,FALSE)","v":38},"oz",32,32,null,{"$f":"AH94","v":"Prowl"},{"$f":"VLOOKUP(BU20,$AH$3:$AJ$131,2,FALSE)","v":"gal"},{"$f":"VLOOKUP(BU20,$AH$3:$AJ$131,3,FALSE)","v":38.25},"pt",1.8,2.4,null,{"$f":"\"\"","v":""},{"$f":"\"\"","v":""},{"$f":"\"\"","v":""},null,null,null,null,{"$f":"AH64","v":"Gramoxone"},"gal",33,"pt",0.7,1.3]
[null,null,"Userform RowSource Lists or Cells associated with VB code",null,null,null,null,null,{"$f":"CONCATENATE(Implements!$B$134,\" 1\")","v":"Row Planter 1"},1,{"$f":"\"\"","v":""},null,"Labor","$/hr",null,null,"ton",null,null,{"$f":"\"\"","v":""},{"$f":"\"\"","v":""},{"$f":"\"\"","v":""},{"$f":"\"\"","v":""},{"$f":"\"\"","v":""},{"$f":"\"\"","v":""},{"$f":"\"\"","v":""},{"$f":"\"\"","v":""},{"$f":"\"\"","v":""},{"$f":"\"\"","v":""},{"$f":"\"\"","v":""},{"$f":"\"\"","v":""},null,null,"Boundary","gal",76,null,{"$f":"AH60","v":"Flexstar GT"},{"$f":"VLOOKUP(AL21,$AH$3:$AJ$131,2,FALSE)","v":"gal"},{"$f":"VLOOKUP(AL21,$AH$3:$AJ$131,3,FALSE)","v":38},"pt",3.5,3.5,null,{"$f":"\"\"","v":""},{"$f":"\"\"","v":""},{"$f":"\"\"","v":""},null,null,null,null,{"$f":"AH48","v":"Dual Magnum"},{"$f":"VLOOKUP(AZ21,$AH$3:$AJ$131,2,FALSE)","v":"gal"},{"$f":"VLOOKUP(AZ21,$AH$3:$AJ$131,3,FALSE)","v":109},"pt",1,1.6,null,{"$f":"AH94","v":"Prowl"},"gal",38.25,"pt",1.2,3.6,null,{"$f":"AH109","v":"Sharpen"},"gal",756.19,"oz",1,2,null,{"$f":"AH48","v":"Dual Magnum"},"gal",109,"pt",1,2,null,{"$f":"\"\"","v":""},{"$f":"\"\"","v":""},{"$f":"\"\"","v":""},null,null,null,null,{"$f":"AH63","v":"Glyphosate"},"gal",38,"oz",16,16]
[null,null,"Worksheet Data Validation Lists",null,null,null,null,null,{"$f":"IF(Implements!$E$134=2,CONCATENATE(Implements!$B$135,\" 2\"),\"\")","v":""},1,{"$f":"\"\"","v":""},null,"Operator Labor",13.14,null,null,null,null,null,"Centric","oz",4.6399999999999997,"oz",4,{"$f":"\"\"","v":""},{"$f":"\"\"","v":""},{"$f":"\"\"","v":""},{"$f":"\"\"","v":""},{"$f":"\"\"","v":""},{"$f":"\"\"","v":""},{"$f":"\"\"","v":""},null,null,"Brake","oz",{"$f":"19.5/16","v":1.21875},null,{"$f":"AH63","v":"Glyphosate"},{"$f":"VLOOKUP(AL22,$AH$3:$AJ$131,2,FALSE)","v":"gal"},{"$f":"VLOOKUP(AL22,$AH$3:$AJ$131,3,FALSE)","v":38},"pt",2,2,null,{"$f":"\"\"","v":""},{"$f":"\"\"","v":""},{"$f":"\"\"","v":""},null,null,null,null,{"$f":"AH82","v":"Outlook"},{"$f":"VLOOKUP(AZ22,$AH$3:$AJ$131,2,FALSE)","v":"gal"},{"$f":"VLOOKUP(AZ22,$AH$3:$AJ$131,3,FALSE)","v":163.5},"oz",12,21,null,{"$f":"AH48","v":"Dual Magnum"},"gal",109,"pt",1,1.67,null,{"$f":"AH89","v":"Permit Plus"},"oz",17,"oz",0.75,0.75,null,{"$f":"AH82","v":"Outlook"},"gal",163.5,"oz",12,21,null,{"$f":"\"\"","v":""},{"$f":"\"\"","v":""},{"$f":"\"\"","v":""},null,null,null,null,{"$f":"AH46","v":"Diuron"},"pt",3.36,"qt",1,1.5]
[null,null,"Data Validation List",null,null,null,null,null,"BudgetHerb","# of trips","$/acre",null,"Hired Labor",9.06,null,null,"Seeding",null,null,"Diamond","oz",1.31,"oz",12,{"$f":"\"\"","v":""},{"$f":"\"\"","v":""},{"$f":"\"\"","v":""},{"$f":"\"\"","v":""},{"$f":"\"\"","v":""},{"$f":"\"\"","v":""},{"$f":"\"\"","v":""},null,null,"BroadAxe XC","gal",{"$f":"ROUND(309.4/2.5,2)","v":123.76},null,{"$f":"\"\"","v":""},{"$f":"\"\"","v":""},{"$f":"\"\"","v":""},null,null,null,null,{"$f":"\"\"","v":""},{"$f":"\"\"","v":""},{"$f":"\"\"","v":""},null,null,null,null,{"$f":"\"\"","v":""},{"$f":"\"\"","v":""},{"$f":"\"\"","v":""},null,null,null,null,{"$f":"AH21","v":"Boundary"},"gal",76,"pt",1,2.25,null,{"$f":"AH64","v":"Gramoxone"},"gal",33,"oz",26,40,null,{"$f":"AH118","v":"Strongarm"},"oz",53.24,"oz",0.45,0.45,null,{"$f":"\"\"","v":""},{"$f":"\"\"","v":""},{"$f":"\"\"","v":""},null,null,null,null,{"$f":"AH121","v":"Surmount"},"gal",58,"pt",1.5,2]
[null,"with Bold Italics","Conditional Formatting for error checking",null,null,null,null,null,{"$f":"\"\"","v":""},{"$f":"\"\"","v":""},{"$f":"\"\"","v":""},null,null,null,null,null,"seeded",null,null,"Transform","oz",6.88,"oz",4,{"$f":"\"\"","v":""},{"$f":"\"\"","v":""},{"$f":"\"\"","v":""},{"$f":"\"\"","v":""},{"$f":"\"\"","v":""},{"$f":"\"\"","v":""},{"$f":"\"\"","v":""},null,null,"Buctril","gal",85,null,{"$f":"\"\"","v":""},{"$f":"\"\"","v":""},{"$f":"\"\"","v":""},null,null,null,null,{"$f":"\"\"","v":""},{"$f":"\"\"","v":""},{"$f":"\"\"","v":""},null,null,null,null,{"$f":"\"\"","v":""},{"$f":"\"\"","v":""},{"$f":"\"\"","v":""},null,null,null,null,{"$f":"AH96","v":"Python"},"oz",12.65,"oz",1,1.33,null,{"$f":"AH3","v":"2,4-D"},"gal",15.4,"pt",4,4,null,{"$f":"AH127","v":"Valor"},"oz",4.38,"oz",2,3,null,{"$f":"\"\"","v":""},{"$f":"\"\"","v":""},{"$f":"\"\"","v":""}]
[null,null,"Problem or Missing Data",null,null,null,null,null,{"$f":"CONCATENATE(\"Custom \",M33)","v":"Custom Air Herbicide"},1,{"$f":"Inputs!$AA$21","v":7},null,"Labor Multiplier by Operation",null,null,null,"established",null,null,"Prevathon","oz",1.1599999999999999,"oz",20,14,{"$f":"\"\"","v":""},{"$f":"\"\"","v":""},{"$f":"\"\"","v":""},{"$f":"\"\"","v":""},{"$f":"\"\"","v":""},{"$f":"\"\"","v":""},null,null,"Butoxone","gal",29,null,null,null,null,null,null,null,null,null,null,null,null,null,null,null,null,null,null,null,null,null,null,{"$f":"AH82","v":"Outlook"},"gal",163.5,"oz",12,21,null,{"$f":"AH80","v":"Newpath"},"gal",370,"oz",4,6,null,{"$f":"AH95","v":"Pursuit"},"oz",12.6,"oz",1.44,1.44]
[null,null,null,null,null,null,null,null,{"$f":"CONCATENATE(\"Custom \",M34)","v":"Custom Ground Herbicide"},1,{"$f":"Inputs!$AA$23","v":7},null,"Field Preparation",1.5,null,null,null,null,null,"Karate","oz",2.34,"oz",{"$f":"\"\"","v":""},{"$f":"\"\"","v":""},1.28,{"$f":"\"\"","v":""},1.6,{"$f":"\"\"","v":""},{"$f":"\"\"","v":""},{"$f":"\"\"","v":""},null,null,"Butyrac","gal",28.16,null,null,null,null,null,null,null,null,null,null,null,null,null,null,null,null,null,null,null,null,null,null,null,null,null,null,null,null,null,{"$f":"AH20","v":"Bolero"},"gal",39.5,"pt",4,4]
[null,null,null,null,null,null,null,null,{"$f":"CONCATENATE(Implements!$B$138,\" 1\")","v":"Over-the-Top Sprayer 1"},1,{"$f":"\"\"","v":""},null,"Planting",1.5,null,null,null,null,null,"Sivanto","oz",2.23,"oz",{"$f":"\"\"","v":""},{"$f":"\"\"","v":""},4,{"$f":"\"\"","v":""},{"$f":"\"\"","v":""},{"$f":"\"\"","v":""},{"$f":"\"\"","v":""},{"$f":"\"\"","v":""},null,null,"Cadet","qt",408.04]
[null,null,null,null,null,null,null,null,{"$f":"IF(Implements!$E$138=2,IF(Implements!$B$139=Implements!$B$36,CONCATENATE(Implements!$B$139,\" 2\"),\"\"),\"\")","v":""},1,{"$f":"\"\"","v":""},null,"Fertilizer",1.5,null,null,null,null,null,"Besiege","oz",1.88,"oz",{"$f":"\"\"","v":""},{"$f":"\"\"","v":""},{"$f":"\"\"","v":""},10,{"$f":"\"\"","v":""},{"$f":"\"\"","v":""},{"$f":"\"\"","v":""},{"$f":"\"\"","v":""},null,null,"Cadre","oz",4.21]
[null,null,null,null,null,null,null,null,"BudgetLayby","# of trips","$/acre",null,"Post-Plant Field Work",1.5,null,null,null,null,null,"Admire Pro","oz",1.95,"oz",{"$f":"\"\"","v":""},{"$f":"\"\"","v":""},{"$f":"\"\"","v":""},{"$f":"\"\"","v":""},{"$f":"\"\"","v":""},9,{"$f":"\"\"","v":""},{"$f":"\"\"","v":""},null,null,"Callisto","gal",604.5]
[null,null,null,null,null,null,null,null,{"$f":"\"\"","v":""},{"$f":"\"\"","v":""},{"$f":"\"\"","v":""},null,null,null,null,null,null,null,null,null,null,null,"# of trips",3,1,1,1,1,1,{"$f":"\"\"","v":""},{"$f":"\"\"","v":""},null,null,"Canopy","oz",3.08]
[null,null,null,null,null,null,null,null,{"$f":"CONCATENATE(\"Custom \",M33)","v":"Custom Air Herbicide"},1,{"$f":"Inputs!$AA$21","v":7},null,"Custom App Cost","$/acre",null,null,null,null,null,null,null,null,null,null,null,null,null,null,null,null,null,null,null,"Caparol 4L","gal",38]
[null,null,null,null,null,null,null,null,{"$f":"CONCATENATE(\"Custom \",M34)","v":"Custom Ground Herbicide"},1,{"$f":"Inputs!$AA$23","v":7},null,"Ground Fertilizer",7,null,null,null,null,null,"Inoculant","unit","$/unit","app. unit",{"$f":"$M$5","v":"Cotton"},{"$f":"$M$6","v":"Corn"},{"$f":"$M$7","v":"Sorghum"},{"$f":"$M$8","v":"Soybean"},{"$f":"$M$9","v":"Rice"},{"$f":"$M$10","v":"Peanut"},{"$f":"$M$11","v":"Wheat"},{"$f":"$M$12","v":"Est. Pasture or Hay"},null,null,"Capreno","oz",6.97]
[null,null,null,null,null,null,null,null,{"$f":"CONCATENATE(Implements!$B$39,\" 2\")","v":"Post-Directed Sprayer 2"},1,{"$f":"\"\"","v":""},null,"Air Herbicide",7,null,null,null,null,null,{"$f":"\"\"","v":""},{"$f":"\"\"","v":""},{"$f":"\"\"","v":""},{"$f":"\"\"","v":""},{"$f":"\"\"","v":""},{"$f":"\"\"","v":""},{"$f":"\"\"","v":""},{"$f":"\"\"","v":""},{"$f":"\"\"","v":""},{"$f":"\"\"","v":""},{"$f":"\"\"","v":""},{"$f":"\"\"","v":""},null,null,"Chaparral","oz",{"$f":"ROUND(127/16,2)","v":7.94}]
[null,null,null,null,null,null,null,null,"BudgetFert","# of trips","$/acre",null,"Ground Herbicide",7,null,null,null,null,null,"Optimize","oz",0.64,"oz",null,null,null,null,null,14,null,null,null,null,"Cimarron Max","gal",58]
[null,null,null,null,null,null,null,null,{"$f":"\"\"","v":""},{"$f":"\"\"","v":""},{"$f":"\"\"","v":""},null,"Ground Insecticide",7,null,null,null,null,null,null,null,null,"# of trips",{"$f":"\"\"","v":""},{"$f":"\"\"","v":""},{"$f":"\"\"","v":""},{"$f":"\"\"","v":""},{"$f":"\"\"","v":""},1,{"$f":"\"\"","v":""},{"$f":"\"\"","v":""},null,null,"Cimarron Plus","oz",{"$f":"ROUND(89/10,2)","v":8.9}]
[null,null,null,null,null,null,null,null,{"$f":"CONCATENATE(\"Custom \",M32)","v":"Custom Ground Fertilizer"},1,{"$f":"Inputs!$AA$19","v":7},null,"Ground Seeding",7,null,null,null,null,null,null,null,null,null,null,null,null,null,null,null,null,null,null,null,"Clarity","gal",76.8,null,"CottonPRE","unit","$/unit","unit","qty","MAX",null,"CornPRE","unit","$/unit","unit","qty","MAX",null,"SorghumPRE","unit","$/unit","unit","qty","MAX",null,"SoybeanPRE","unit","$/unit","unit","qty","MAX",null,"RicePRE","unit","$/unit","unit","qty","MAX",null,"PeanutPRE","unit","$/unit","unit","qty","MAX",null,"WheatPRE","unit","$/unit","unit","qty","MAX"]
[null,null,null,null,null,null,null,null,{"$f":"Implements!$B$140","v":"Fertilizer Spreader"},"variable by crop type, see budgets",{"$f":"\"\"","v":""},null,"Air Seeding",7,null,null,null,null,null,"Defoliant","unit","$/unit","app. unit",{"$f":"$M$5","v":"Cotton"},{"$f":"$M$6","v":"Corn"},{"$f":"$M$7","v":"Sorghum"},{"$f":"$M$8","v":"Soybean"},{"$f":"$M$9","v":"Rice"},{"$f":"$M$10","v":"Peanut"},{"$f":"$M$11","v":"Wheat"},{"$f":"$M$12","v":"Est. Pasture or Hay"},null,null,"Classic","oz",14.5,null,{"$f":"\"\"","v":""},{"$f":"\"\"","v":""},{"$f":"\"\"","v":""},{"$f":"\"\"","v":""},{"$f":"\"\"","v":""},{"$f":"\"\"","v":""},null,{"$f":"\"\"","v":""},{"$f":"\"\"","v":""},{"$f":"\"\"","v":""},{"$f":"\"\"","v":""},{"$f":"\"\"","v":""},{"$f":"\"\"","v":""},null,{"$f":"\"\"","v":""},{"$f":"\"\"","v":""},{"$f":"\"\"","v":""},{"$f":"\"\"","v":""},{"$f":"\"\"","v":""},{"$f":"\"\"","v":""},null,{"$f":"\"\"","v":""},{"$f":"\"\"","v":""},{"$f":"\"\"","v":""},{"$f":"\"\"","v":""},{"$f":"\"\"","v":""},{"$f":"\"\"","v":""},null,{"$f":"\"\"","v":""},{"$f":"\"\"","v":""},{"$f":"\"\"","v":""},{"$f":"\"\"","v":""},{"$f":"\"\"","v":""},{"$f":"\"\"","v":""},null,{"$f":"\"\"","v":""},{"$f":"\"\"","v":""},{"$f":"\"\"","v":""},{"$f":"\"\"","v":""},{"$f":"\"\"","v":""},{"$f":"\"\"","v":""},null,{"$f":"\"\"","v":""},{"$f":"\"\"","v":""},{"$f":"\"\"","v":""},{"$f":"\"\"","v":""},{"$f":"\"\"","v":""},{"$f":"\"\"","v":""}]
[null,null,null,null,null,null,null,"NO Wheat or Pasture","BudgetInsect","# of trips","$/acre",null,null,null,null,null,null,null,null,{"$f":"\"\"","v":""},{"$f":"\"\"","v":""},{"$f":"\"\"","v":""},{"$f":"\"\"","v":""},{"$f":"\"\"","v":""},{"$f":"\"\"","v":""},{"$f":"\"\"","v":""},{"$f":"\"\"","v":""},{"$f":"\"\"","v":""},{"$f":"\"\"","v":""},{"$f":"\"\"","v":""},{"$f":"\"\"","v":""},null,null,"Clincher","gal",248,null,{"$f":"AH64","v":"Gramoxone"},{"$f":"VLOOKUP(AL38,$AH$3:$AJ$131,2,FALSE)","v":"gal"},{"$f":"VLOOKUP(AL38,$AH$3:$AJ$131,3,FALSE)","v":33},"pt",2,2,null,{"$f":"AH47","v":"Dual II Magnum"},{"$f":"VLOOKUP(AS38,$AH$3:$AJ$131,2,FALSE)","v":"gal"},{"$f":"VLOOKUP(AS38,$AH$3:$AJ$131,3,FALSE)","v":109},"pt",0.8,1.4,null,{"$f":"AH48","v":"Dual Magnum"},{"$f":"VLOOKUP(AZ38,$AH$3:$AJ$131,2,FALSE)","v":"gal"},{"$f":"VLOOKUP(AZ38,$AH$3:$AJ$131,3,FALSE)","v":109},"pt",1,2,null,{"$f":"AH48","v":"Dual Magnum"},{"$f":"VLOOKUP(BG38,$AH$3:$AJ$131,2,FALSE)","v":"gal"},{"$f":"VLOOKUP(BG38,$AH$3:$AJ$131,3,FALSE)","v":109},"pt",1,1.67,null,{"$f":"AH55","v":"Facet"},{"$f":"VLOOKUP(BN38,$AH$3:$AJ$131,2,FALSE)","v":"lb"},{"$f":"VLOOKUP(BN38,$AH$3:$AJ$131,3,FALSE)","v":55},"oz",22,43,null,{"$f":"AH48","v":"Dual Magnum"},{"$f":"VLOOKUP(BU38,$AH$3:$AJ$131,2,FALSE)","v":"gal"},{"$f":"VLOOKUP(BU38,$AH$3:$AJ$131,3,FALSE)","v":109},"pt",1,2,null,{"$f":"AH57","v":"Finesse"},{"$f":"VLOOKUP(CB38,$AH$3:$AJ$131,2,FALSE)","v":"oz"},{"$f":"VLOOKUP(CB38,$AH$3:$AJ$131,3,FALSE)","v":16.5},"oz",0.5,0.5]
[null,null,null,null,null,null,null,null,{"$f":"\"\"","v":""},{"$f":"\"\"","v":""},{"$f":"\"\"","v":""},null,"Slope",null,null,null,null,null,null,"Dropp","oz",1.6,"oz",2,{"$f":"\"\"","v":""},{"$f":"\"\"","v":""},{"$f":"\"\"","v":""},{"$f":"\"\"","v":""},{"$f":"\"\"","v":""},{"$f":"\"\"","v":""},{"$f":"\"\"","v":""},null,null,"Cobra","gal",155,null,{"$f":"AH45","v":"Direx"},"gal",25,"pt",1,2,null,{"$f":"AH4","v":"AAtrex"},"gal",16.899999999999999,"qt",2.5,2.5,null,{"$f":"AH19","v":"Bicep II Magnum"},"gal",40.159999999999997,"qt",1.3,1.3,null,{"$f":"AH77","v":"Metribuzin"},"lb",16,"lb",0.33,1,null,{"$f":"AH40","v":"Command"},{"$f":"VLOOKUP(BN39,$AH$3:$AJ$131,2,FALSE)","v":"gal"},{"$f":"VLOOKUP(BN39,$AH$3:$AJ$131,3,FALSE)","v":105},"pt",0.8,1.6,null,{"$f":"AH82","v":"Outlook"},"gal",163.5,"oz",12,12,null,{"$f":"AH9","v":"Anthem Flex"},"gal",604.20000000000005,"oz",2,4]
[null,null,null,null,null,null,null,null,{"$f":"CONCATENATE(\"Custom \",M35)","v":"Custom Ground Insecticide"},1,{"$f":"Inputs!$AA$25","v":7},null,"0-1%",null,null,null,null,null,null,"Folex","oz",0.57999999999999996,"oz",14,{"$f":"\"\"","v":""},{"$f":"\"\"","v":""},{"$f":"\"\"","v":""},{"$f":"\"\"","v":""},{"$f":"\"\"","v":""},{"$f":"\"\"","v":""},{"$f":"\"\"","v":""},null,null,"Command","gal",105,null,{"$f":"AH42","v":"Cotoran"},"gal",42,"pt",1.6,2,null,{"$f":"AH13","v":"Atrazine"},"gal",16.2,"qt",2,2,null,{"$f":"AH13","v":"Atrazine"},"gal",16.2,"qt",1,1,null,{"$f":"AH129","v":"Warrant"},"gal",36.729999999999997,"pt",2,3,null,{"$f":"AH20","v":"Bolero"},{"$f":"VLOOKUP(BN40,$AH$3:$AJ$131,2,FALSE)","v":"gal"},{"$f":"VLOOKUP(BN40,$AH$3:$AJ$131,3,FALSE)","v":39.5},"pt",4,4,null,{"$f":"AH118","v":"Strongarm"},"oz",53.24,"oz",0.45,0.45,null,{"$f":"AH131","v":"Zidua"},"oz",8.8000000000000007,"oz",0.7,2.5]
[null,null,null,null,null,null,null,null,{"$f":"CONCATENATE(Implements!$B$138,\" 1\")","v":"Over-the-Top Sprayer 1"},"variable by crop type, see budgets",{"$f":"\"\"","v":""},null,"1-3%",null,null,null,null,null,null,"Prep","oz",0.21,"oz",38,{"$f":"\"\"","v":""},{"$f":"\"\"","v":""},{"$f":"\"\"","v":""},{"$f":"\"\"","v":""},{"$f":"\"\"","v":""},{"$f":"\"\"","v":""},{"$f":"\"\"","v":""},null,null,"Corvus","gal",{"$f":"ROUND(2134.4/2.5,2)","v":853.76},null,{"$f":"AH22","v":"Brake"},"oz",1.21875,"oz",16,16,null,{"$f":"AH19","v":"Bicep II Magnum"},"gal",40.159999999999997,"qt",1.3,2,null,{"$f":"AH109","v":"Sharpen"},"gal",756.19,"oz",1,2,null,{"$f":"AH21","v":"Boundary"},"gal",76,"pt",1,2.25,null,{"$f":"AH94","v":"Prowl"},{"$f":"VLOOKUP(BN41,$AH$3:$AJ$131,2,FALSE)","v":"gal"},{"$f":"VLOOKUP(BN41,$AH$3:$AJ$131,3,FALSE)","v":38.25},"pt",1.6,2.1,null,{"$f":"AH127","v":"Valor"},"oz",4.38,"oz",2,3,null,{"$f":"AH16","v":"Axiom"},"oz",2.13,"oz",6,10]
[null,null,null,null,null,null,null,null,{"$f":"IF(Implements!$E$138=2,IF(Implements!$B$139=Implements!$B$36,CONCATENATE(Implements!$B$139,\" 2\"),\"\"),\"\")","v":""},"variable by crop type, see budgets",{"$f":"\"\"","v":""},null,"3-8%",null,null,null,null,null,null,null,null,null,"# of trips",2,{"$f":"\"\"","v":""},{"$f":"\"\"","v":""},{"$f":"\"\"","v":""},{"$f":"\"\"","v":""},{"$f":"\"\"","v":""},{"$f":"\"\"","v":""},{"$f":"\"\"","v":""},null,null,"Cotoran","gal",42,null,{"$f":"AH112","v":"Staple LX"},"oz",7,"oz",1.3,2.1,null,{"$f":"AH128","v":"Verdict"},"gal",211.28,"oz",10,12,null,{"$f":"AH128","v":"Verdict"},"gal",211.28,"oz",10,10,null,{"$f":"AH127","v":"Valor"},"oz",4.38,"oz",2,2,null,{"$f":"\"\"","v":""},{"$f":"\"\"","v":""},{"$f":"\"\"","v":""},null,null,null,null,{"$f":"AH95","v":"Pursuit"},"oz",12.6,"oz",1.44,1.44,null,{"$f":"AH15","v":"Axial"},"gal",225,"oz",16.399999999999999,16.399999999999999]
[null,null,null,null,null,null,null,"Peanut ONLY","BudgetInoc","# of trips","$/acre",null,null,null,null,null,null,null,null,null,null,null,null,null,null,null,null,null,null,null,null,null,null,"Cotton Pro","gal ",32,null,{"$f":"AH75","v":"Liberty"},"gal",53.9,"oz",32,32,null,{"$f":"AH122","v":"Surpass"},"qt",29.04,"pt",0.25,2.25,null,{"$f":"AH82","v":"Outlook"},"gal",163.5,"oz",12,21,null,{"$f":"AH128","v":"Verdict"},"gal",211.28,"oz",5,5,null,null,null,null,null,null,null,null,{"$f":"AH94","v":"Prowl"},"gal",38.25,"oz",2,2,null,{"$f":"AH81","v":"Osprey"},"oz",3.8,"oz",4.75,4.75]
[null,null,null,null,null,null,null,null,{"$f":"\"\"","v":""},{"$f":"\"\"","v":""},{"$f":"\"\"","v":""},null,"Irregularity",null,null,null,null,null,null,"GrowthRegulator","unit","$/unit","app. unit",{"$f":"$M$5","v":"Cotton"},{"$f":"$M$6","v":"Corn"},{"$f":"$M$7","v":"Sorghum"},{"$f":"$M$8","v":"Soybean"},{"$f":"$M$9","v":"Rice"},{"$f":"$M$10","v":"Peanut"},{"$f":"$M$11","v":"Wheat"},{"$f":"$M$12","v":"Est. Pasture or Hay"},null,null,"Degree Xtra","gal",{"$f":"ROUND((45*1.03+43.55)/2,2)","v":44.95},null,{"$f":"AH48","v":"Dual Magnum"},"gal",109,"pt",1,1,null,{"$f":"AH44","v":"Degree Xtra"},"gal",44.95,"pt",5,5,null,null,null,null,null,null,null,null,{"$f":"AH131","v":"Zidua"},"oz",8.8000000000000007,"oz",1,3.5,null,null,null,null,null,null,null,null,{"$f":"AH126","v":"Ultra Blazer"},"gal",64,"pt",2,2,null,{"$f":"AH94","v":"Prowl"},"gal",38.25,"pt",2.1,2.1]
[null,null,null,null,null,null,null,null,"Custom Inoculant Application",{"$f":"AC35","v":1},7,null,"low",null,null,null,null,null,null,{"$f":"\"\"","v":""},{"$f":"\"\"","v":""},{"$f":"\"\"","v":""},{"$f":"\"\"","v":""},{"$f":"\"\"","v":""},{"$f":"\"\"","v":""},{"$f":"\"\"","v":""},{"$f":"\"\"","v":""},{"$f":"\"\"","v":""},{"$f":"\"\"","v":""},{"$f":"\"\"","v":""},{"$f":"\"\"","v":""},null,null,"Direx","gal",25,null,{"$f":"AH129","v":"Warrant"},"gal",36.729999999999997,"pt",3,3,null,{"$f":"AH7","v":"Acuron"},"gal",64.5,"qt",2.5,2.5,null,null,null,null,null,null,null,null,{"$f":"AH10","v":"Anthem Maxx"},"gal",778.51,"oz",2.5,5.5,null,null,null,null,null,null,null,null,{"$f":"AH3","v":"2,4-D"},"gal",15.4,"pt",0.5,0.5,null,{"$f":"AH91","v":"PowerFlex"},"oz",3.75,"oz",2,2]
[null,null,null,null,null,null,null,null,{"$f":"CONCATENATE(Implements!$B$138,\" 1\")","v":"Over-the-Top Sprayer 1"},{"$f":"AC35","v":1},null,null,"medium",null,null,null,null,null,null,"Mepex","oz",0.13,"oz",44,{"$f":"\"\"","v":""},{"$f":"\"\"","v":""},{"$f":"\"\"","v":""},{"$f":"\"\"","v":""},{"$f":"\"\"","v":""},{"$f":"\"\"","v":""},{"$f":"\"\"","v":""},null,null,"Diuron","pt",3.36,null,null,null,null,null,null,null,null,{"$f":"AH72","v":"Keystone"},"gal",52.53,"qt",1.4,2.6,null,null,null,null,null,null,null,null,{"$f":"AH56","v":"Fierce"},"lb",105.03,"oz",3,3,null,null,null,null,null,null,null,null,{"$f":"AH106","v":"Select"},"gal",188,"oz",10,10,null,{"$f":"AH77","v":"Metribuzin"},"lb",16,"oz",2,3]
[null,null,null,null,null,null,null,null,{"$f":"IF(Implements!$E$138=2,IF(Implements!$B$139=Implements!$B$36,CONCATENATE(Implements!$B$139,\" 2\"),\"\"),\"\")","v":""},{"$f":"J46","v":1},null,null,"high",null,null,null,null,null,null,null,null,null,"# of trips",4,{"$f":"\"\"","v":""},{"$f":"\"\"","v":""},{"$f":"\"\"","v":""},{"$f":"\"\"","v":""},{"$f":"\"\"","v":""},{"$f":"\"\"","v":""},{"$f":"\"\"","v":""},null,null,"Dual II Magnum",{"$f":"AI48","v":"gal"},{"$f":"AJ48","v":109},null,null,null,null,null,null,null,null,{"$f":"AH120","v":"Surestart"},"gal",91.67,"pt",1.5,2.5,null,null,null,null,null,null,null,null,{"$f":"AH109","v":"Sharpen"},"gal",756.19,"oz",1,2,null,null,null,null,null,null,null,null,null,null,null,null,null,null,null,{"$f":"AH3","v":"2,4-D"},"gal",15.4,"pt",1,1.5]
[null,null,null,null,null,null,null,"Pasture ONLY","BudgetLitt","# of trips","$/acre",null,null,null,null,null,null,null,null,null,null,null,null,null,null,null,null,null,null,null,null,null,null,"Dual Magnum","gal",109,null,null,null,null,null,null,null,null,{"$f":"AH29","v":"Callisto"},"gal",604.5,"oz",6,7.7,null,null,null,null,null,null,null,null,{"$f":"AH23","v":"BroadAxe XC"},"gal",123.76,"oz",20,32,null,null,null,null,null,null,null,null,null,null,null,null,null,null,null,{"$f":"AH71","v":"Harmony Extra"},"oz",11.5,"oz",0.75,0.9]
[null,null,null,null,null,null,null,null,{"$f":"\"\"","v":""},{"$f":"\"\"","v":""},{"$f":"\"\"","v":""},null,null,null,null,null,null,null,null,"Fungicide","unit","$/unit","app. unit",{"$f":"$M$5","v":"Cotton"},{"$f":"$M$6","v":"Corn"},{"$f":"$M$7","v":"Sorghum"},{"$f":"$M$8","v":"Soybean"},{"$f":"$M$9","v":"Rice"},{"$f":"$M$10","v":"Peanut"},{"$f":"$M$11","v":"Wheat"},{"$f":"$M$12","v":"Est. Pasture or Hay"},null,null,"Duet","pt",4.75,null,null,null,null,null,null,null,null,{"$f":"AH74","v":"Lexar"},"gal",48,"qt",3,3,null,null,null,null,null,null,null,null,{"$f":"AH14","v":"Authority MTZ"},"lb",23.37,"oz",12,16,null,null,null,null,null,null,null,null,null,null,null,null,null,null,null,{"$f":"AH54","v":"Express"},"oz",21.5,"oz",0.25,0.5]
[null,null,null,null,null,null,null,null,"Custom Litter Application",{"$f":"AE18","v":1},7,null,null,null,null,null,null,null,null,{"$f":"\"\"","v":""},{"$f":"\"\"","v":""},{"$f":"\"\"","v":""},{"$f":"\"\"","v":""},{"$f":"\"\"","v":""},{"$f":"\"\"","v":""},{"$f":"\"\"","v":""},{"$f":"\"\"","v":""},{"$f":"\"\"","v":""},{"$f":"\"\"","v":""},{"$f":"\"\"","v":""},{"$f":"\"\"","v":""},null,null,"Enlist Duo","oz",{"$f":"11/16","v":0.6875},null,null,null,null,null,null,null,null,{"$f":"AH41","v":"Corvus"},"gal",853.76,"oz",3.3,5.6,null,null,null,null,null,null,null,null,{"$f":"AH92","v":"Prefix"},"gal",48.5,"pt",2,3,null,null,null,null,null,null,null,null,null,null,null,null,null,null,null,{"$f":"AH87","v":"Peak"},"oz",13.5,"oz",0.25,0.5]
[null,null,null,null,null,null,null,null,{"$f":"Implements!B141","v":"Manure Spreader"},{"$f":"AE18","v":1},null,null,null,null,null,null,null,null,null,"Quadris Top","oz",2.13,"oz",{"$f":"\"\"","v":""},{"$f":"\"\"","v":""},{"$f":"\"\"","v":""},7,{"$f":"\"\"","v":""},{"$f":"\"\"","v":""},{"$f":"\"\"","v":""},{"$f":"\"\"","v":""},null,null,"Enlite","oz",{"$f":"ROUND(532.09/84,2)","v":6.33},null,null,null,null,null,null,null,null,{"$f":"AH131","v":"Zidua"},"oz",8.8000000000000007,"oz",1.5,3,null,null,null,null,null,null,null,null,{"$f":"AH30","v":"Canopy"},"oz",3.08,"oz",6,6]
[null,null,null,null,null,null,null,"Cotton ONLY","BudgetDefol","# of trips","$/acre",null,null,null,null,null,null,null,null,null,null,null,"# of trips",{"$f":"\"\"","v":""},{"$f":"\"\"","v":""},{"$f":"\"\"","v":""},1,{"$f":"\"\"","v":""},{"$f":"\"\"","v":""},{"$f":"\"\"","v":""},{"$f":"\"\"","v":""},null,null,"Envive","oz",{"$f":"ROUND(3762.46/(8*88),2)","v":5.34},null,null,null,null,null,null,null,null,{"$f":"AH10","v":"Anthem Maxx"},"gal",778.51,"oz",2.5,5,null,null,null,null,null,null,null,null,{"$f":"AH96","v":"Python"},"oz",12.65,"oz",1,1.33]
[null,null,null,null,null,null,null,null,{"$f":"\"\"","v":""},{"$f":"\"\"","v":""},{"$f":"\"\"","v":""},null,null,null,null,null,null,null,null,null,null,null,null,null,null,null,null,null,null,null,null,null,null,"Envoke","oz",{"$f":"ROUND(298.81/3,2)","v":99.6},null,null,null,null,null,null,null,null,null,null,null,null,null,null,null,null,null,null,null,null,null,null,{"$f":"AH82","v":"Outlook"},"gal",163.5,"oz",12,21]
[null,null,null,null,null,null,null,null,"Custom Defoliant Application",{"$f":"X42","v":2},7,null,null,null,null,null,null,null,null,null,null,null,null,null,null,null,null,null,null,null,null,null,null,"Express","oz",21.5,null,null,null,null,null,null,null,null,null,null,null,null,null,null,null,null,null,null,null,null,null,null,{"$f":"AH111","v":"Sonic"},"lb",79.77,"oz",3,6]
[null,null,null,null,null,null,null,null,{"$f":"CONCATENATE(Implements!$B$138,\" 1\")","v":"Over-the-Top Sprayer 1"},{"$f":"X42","v":2},null,null,null,null,null,null,null,null,null,null,null,null,null,null,null,null,null,null,null,null,null,null,null,"Facet","lb",55,null,null,null,null,null,null,null,null,null,null,null,null,null,null,null,null,null,null,null,null,null,null,{"$f":"AH64","v":"Gramoxone"},"gal",33,"oz",40,40]
[null,null,null,null,null,null,null,null,{"$f":"IF(Implements!$E$138=2,IF(Implements!$B$139=Implements!$B$36,CONCATENATE(Implements!$B$139,\" 2\"),\"\"),\"\")","v":""},{"$f":"J55","v":2},null,null,null,null,null,null,null,null,null,null,null,null,null,null,null,null,null,null,null,null,null,null,null,"Fierce","lb",{"$f":"ROUND((102*1.03+105)/2,2)","v":105.03},null,null,null,null,null,null,null,null,null,null,null,null,null,null,null,null,null,null,null,null,null,null,{"$f":"AH63","v":"Glyphosate"},"gal",38,"oz",32,32]
[null,null,null,null,null,null,null,null,"BudgetGrowthReg","# of trips","$/acre",null,null,null,null,null,null,null,null,null,null,null,null,null,null,null,null,null,null,null,null,null,null,"Finesse","oz",16.5,null,null,null,null,null,null,null,null,null,null,null,null,null,null,null,null,null,null,null,null,null,null,{"$f":"AH75","v":"Liberty"},"gal",53.9,"oz",29,29]
[null,null,null,null,null,null,null,null,{"$f":"\"\"","v":""},{"$f":"\"\"","v":""},{"$f":"\"\"","v":""},null,null,null,null,null,null,null,null,null,null,null,null,null,null,null,null,null,null,null,null,null,null,"FirstRate","oz",33.450000000000003,null,null,null,null,null,null,null,null,null,null,null,null,null,null,null,null,null,null,null,null,null,null,{"$f":"AH107","v":"Select Max"},"gal",125,"pt",1,1]
[null,null,null,null,null,null,null,null,"Custom Growth Regulator Application",{"$f":"X47","v":4},7,null,null,null,null,null,null,null,null,null,null,null,null,null,null,null,null,null,null,null,null,null,null,"Flexstar","gal",120,null,null,null,null,null,null,null,null,null,null,null,null,null,null,null,null,null,null,null,null,null,null,{"$f":"AH114","v":"Storm"},"gal",73.5,"oz",24,24]
[null,null,null,null,null,null,null,null,{"$f":"CONCATENATE(Implements!$B$138,\" 1\")","v":"Over-the-Top Sprayer 1"},{"$f":"X47","v":4},null,null,null,null,null,null,null,null,null,null,null,null,null,null,null,null,null,null,null,null,null,null,null,"Flexstar GT","gal",38]
[null,null,null,null,null,null,null,null,{"$f":"IF(Implements!$E$138=2,IF(Implements!$B$139=Implements!$B$36,CONCATENATE(Implements!$B$139,\" 2\"),\"\"),\"\")","v":""},{"$f":"J60","v":4},null,null,null,null,null,null,null,null,null,null,null,null,null,null,null,null,null,null,null,null,null,null,null,"Fusilade DX","gal",166]
[null,null,null,null,null,null,null,"Soybean ONLY","BudgetFung","# of trips","$/acre",null,null,null,null,null,null,null,null,null,null,null,null,null,null,null,null,null,null,null,null,null,null,"Fusion","gal",165]
[null,null,null,null,null,null,null,null,{"$f":"\"\"","v":""},{"$f":"\"\"","v":""},{"$f":"\"\"","v":""},null,null,null,null,null,null,null,null,null,null,null,null,null,null,null,null,null,null,null,null,null,null,"Glyphosate","gal",38]
[null,null,null,null,null,null,null,null,"Custom Fungicide Application",{"$f":"AA52","v":1},7,null,null,null,null,null,null,null,null,null,null,null,null,null,null,null,null,null,null,null,null,null,null,"Gramoxone","gal",33,null,"CottonPOST","unit","$/unit","unit","qty","MAX",null,"CornPOST","unit","$/unit","unit","qty","MAX",null,"SorghumPOST","unit","$/unit","unit","qty","MAX",null,"SoybeanPOST","unit","$/unit","unit","qty","MAX",null,"RicePOST","unit","$/unit","unit","qty","MAX",null,"PeanutPOST","unit","$/unit","unit","qty","MAX",null,"WheatPOST","unit","$/unit","unit","qty","MAX"]
[null,null,null,null,null,null,null,null,{"$f":"CONCATENATE(Implements!$B$138,\" 1\")","v":"Over-the-Top Sprayer 1"},{"$f":"AA52","v":1},null,null,null,null,null,null,null,null,null,null,null,null,null,null,null,null,null,null,null,null,null,null,null,"Grasp","oz",9.36,null,{"$f":"\"\"","v":""},{"$f":"\"\"","v":""},{"$f":"\"\"","v":""},{"$f":"\"\"","v":""},{"$f":"\"\"","v":""},{"$f":"\"\"","v":""},null,{"$f":"\"\"","v":""},{"$f":"\"\"","v":""},{"$f":"\"\"","v":""},{"$f":"\"\"","v":""},{"$f":"\"\"","v":""},{"$f":"\"\"","v":""},null,{"$f":"\"\"","v":""},{"$f":"\"\"","v":""},{"$f":"\"\"","v":""},{"$f":"\"\"","v":""},{"$f":"\"\"","v":""},{"$f":"\"\"","v":""},null,{"$f":"\"\"","v":""},{"$f":"\"\"","v":""},{"$f":"\"\"","v":""},{"$f":"\"\"","v":""},{"$f":"\"\"","v":""},{"$f":"\"\"","v":""},null,{"$f":"\"\"","v":""},{"$f":"\"\"","v":""},{"$f":"\"\"","v":""},{"$f":"\"\"","v":""},{"$f":"\"\"","v":""},{"$f":"\"\"","v":""},null,{"$f":"\"\"","v":""},{"$f":"\"\"","v":""},{"$f":"\"\"","v":""},{"$f":"\"\"","v":""},{"$f":"\"\"","v":""},{"$f":"\"\"","v":""},null,"NA"]
[null,null,null,null,null,null,null,null,{"$f":"IF(Implements!$E$138=2,IF(Implements!$B$139=Implements!$B$36,CONCATENATE(Implements!$B$139,\" 2\"),\"\"),\"\")","v":""},{"$f":"J65","v":1},null,null,null,null,null,null,null,null,null,null,null,null,null,null,null,null,null,null,null,null,null,null,null,"Grasp Xtra",{"$f":"AI65","v":"oz"},{"$f":"AJ65","v":9.36},null,{"$f":"AH63","v":"Glyphosate"},{"$f":"VLOOKUP(AL66,$AH$3:$AJ$131,2,FALSE)","v":"gal"},{"$f":"VLOOKUP(AL66,$AH$3:$AJ$131,3,FALSE)","v":38},"pt",2,2,null,{"$f":"AH4","v":"AAtrex"},{"$f":"VLOOKUP(AS66,$AH$3:$AJ$131,2,FALSE)","v":"gal"},{"$f":"VLOOKUP(AS66,$AH$3:$AJ$131,3,FALSE)","v":16.899999999999999},"qt",2,2.2000000000000002,null,{"$f":"AH3","v":"2,4-D"},{"$f":"VLOOKUP(AZ66,$AH$3:$AJ$131,2,FALSE)","v":"gal"},{"$f":"VLOOKUP(AZ66,$AH$3:$AJ$131,3,FALSE)","v":15.4},"pt",1,1,null,{"$f":"AH18","v":"Basagran 4L"},{"$f":"VLOOKUP(BG66,$AH$3:$AJ$131,2,FALSE)","v":"gal"},{"$f":"VLOOKUP(BG66,$AH$3:$AJ$131,3,FALSE)","v":135},"pt",1.5,2,null,{"$f":"AH93","v":"Propanil"},{"$f":"VLOOKUP(BN66,$AH$3:$AJ$131,2,FALSE)","v":"gal"},{"$f":"VLOOKUP(BN66,$AH$3:$AJ$131,3,FALSE)","v":21.75},"qt",3,4,null,{"$f":"AH26","v":"Butyrac"},{"$f":"VLOOKUP(BU66,$AH$3:$AJ$131,2,FALSE)","v":"gal"},{"$f":"VLOOKUP(BU66,$AH$3:$AJ$131,3,FALSE)","v":28.16},"pt",0.8,1,null,{"$f":"\"\"","v":""},{"$f":"\"\"","v":""},{"$f":"\"\"","v":""}]
[null,null,null,null,null,null,null,null,null,null,null,null,null,null,null,null,null,null,null,null,null,null,null,null,null,null,null,null,null,null,null,null,null,"Grazon P + D","gal",35,null,{"$f":"AH108","v":"Sequence"},"gal",53.3,"pt",2.5,2.5,null,{"$f":"AH13","v":"Atrazine"},"gal",16.2,"qt",2,2.2000000000000002,null,{"$f":"AH17","v":"Banvel"},"gal",65,"pt",0.5,0.5,null,{"$f":"AH126","v":"Ultra Blazer"},"gal",64,"pt",1,2,null,{"$f":"AH105","v":"Ricestar"},"gal",160,"oz",24,24,null,{"$f":"AH25","v":"Butoxone"},"gal",29,"pt",0.8,1,null,{"$f":"\"\"","v":""},{"$f":"\"\"","v":""},{"$f":"\"\"","v":""}]
[null,null,null,null,null,null,null,null,null,null,null,null,null,null,null,null,null,null,null,null,null,null,null,null,null,null,null,null,null,null,null,null,null,"GrazonNext","gal",{"$f":"ROUND(95/2,2)","v":47.5},null,{"$f":"AH75","v":"Liberty"},"gal",53.9,"oz",29,43,null,{"$f":"AH47","v":"Dual II Magnum"},"gal",109,"pt",1,2,null,{"$f":"AH36","v":"Clarity"},"gal",76.8,"pt",0.5,0.5,null,{"$f":"AH114","v":"Storm"},"gal",73.5,"oz",24,24,null,{"$f":"AH55","v":"Facet"},"lb",55,"oz",22,43,null,{"$f":"AH18","v":"Basagran 4L"},"gal",135,"pt",1.5,2,null,{"$f":"\"\"","v":""},{"$f":"\"\"","v":""},{"$f":"\"\"","v":""}]
[null,null,null,null,null,null,null,null,null,null,null,null,null,null,null,null,null,null,null,null,null,null,null,null,null,null,null,null,null,null,null,null,null,"Halex GT","gal",42,null,{"$f":"AH112","v":"Staple LX"},"oz",7,"oz",2.6,2.6,null,{"$f":"AH3","v":"2,4-D"},"gal",15.4,"pt",1,1,null,{"$f":"AH4","v":"AAtrex"},"gal",16.899999999999999,"qt",1,2,null,{"$f":"AH39","v":"Cobra"},"gal",155,"pt",0.8,0.8,null,{"$f":"AH65","v":"Grasp"},"oz",9.36,"oz",2,2,null,{"$f":"AH126","v":"Ultra Blazer"},"gal",64,"pt",1.5,2,null,{"$f":"\"\"","v":""},{"$f":"\"\"","v":""},{"$f":"\"\"","v":""}]
[null,null,null,null,null,null,null,null,null,null,null,null,null,null,null,null,null,null,null,null,null,null,null,null,null,null,null,null,null,null,null,null,null,"Halomax","oz",21.07,null,{"$f":"AH53","v":"Envoke"},"oz",99.6,"oz",0.1,0.15,null,{"$f":"AH36","v":"Clarity"},"gal",76.8,"pt",0.5,0.5,null,{"$f":"AH13","v":"Atrazine"},"gal",16.2,"qt",1,2,null,{"$f":"AH59","v":"Flexstar"},"gal",120,"pt",1,1.5,null,{"$f":"AH49","v":"Duet"},"pt",4.75,"qt",3,4,null,{"$f":"AH114","v":"Storm"},"gal",73.5,"pt",1.5,1.5,null,{"$f":"\"\"","v":""},{"$f":"\"\"","v":""},{"$f":"\"\"","v":""}]
[null,null,null,null,null,null,null,null,null,null,null,null,null,null,null,null,null,null,null,null,null,null,null,null,null,null,null,null,null,null,null,null,null,"Harmony Extra","oz",11.5,null,{"$f":"AH90","v":"Poast Plus"},"oz",57.5,"pt",1.5,2,null,{"$f":"AH18","v":"Basagran 4L"},"gal",135,"qt",0.75,1,null,{"$f":"AH88","v":"Permit"},"oz",17,"oz",1,1,null,{"$f":"AH37","v":"Classic"},"oz",14.5,"oz",0.5,0.5,null,{"$f":"AH88","v":"Permit"},"oz",17,"oz",1,1,null,{"$f":"AH64","v":"Gramoxone"},"gal",33,"oz",16,16]
[null,null,null,null,null,null,null,null,null,null,null,null,null,null,null,null,null,null,null,null,null,null,null,null,null,null,null,null,null,null,null,null,null,"Keystone","gal",{"$f":"ROUND(51*1.03,2)","v":52.53},null,{"$f":"AH61","v":"Fusilade DX"},"gal",166,"pt",0.75,0.75,null,{"$f":"AH6","v":"Accent Q"},"gal",35.75,"oz",0.5,0.5,null,{"$f":"AH70","v":"Halomax"},"oz",21.07,"oz",2,2,null,{"$f":"AH95","v":"Pursuit"},"oz",12.6,"oz",1.45,1.45,null,{"$f":"AH70","v":"Halomax"},"oz",21.07,"oz",1,1,null,{"$f":"AH95","v":"Pursuit"},"oz",12.6,"oz",4,4]
[null,null,null,null,null,null,null,null,null,null,null,null,null,null,null,null,null,null,null,null,null,null,null,null,null,null,null,null,null,null,null,null,null,"Latigo","gal",11.574,null,{"$f":"AH62","v":"Fusion"},"gal",165,"oz",6,12,null,{"$f":"AH70","v":"Halomax"},"oz",21.07,"oz",1,1.33,null,{"$f":"AH18","v":"Basagran 4L"},"gal",135,"qt",0.75,1,null,{"$f":"AH58","v":"FirstRate"},"oz",33.450000000000003,"oz",0.3,0.3,null,{"$f":"AH89","v":"Permit Plus"},"oz",17,"oz",0.75,0.75,null,{"$f":"AH90","v":"Poast Plus"},"oz",57.5,"pt",1,1.5]
[null,null,null,null,null,null,null,null,null,null,null,null,null,null,null,null,null,null,null,null,null,null,null,null,null,null,null,null,null,null,null,null,null,"Lexar","gal",48,null,{"$f":"AH12","v":"Assure II"},"gal",134,"oz",5,5,null,{"$f":"AH88","v":"Permit"},"oz",17,"oz",1,1.33,null,{"$f":"AH24","v":"Buctril"},"gal",85,"pt",1,1.5,null,{"$f":"AH96","v":"Python"},"oz",12.65,"oz",0.125,0.125,null,{"$f":"AH115","v":"Strata"},"oz",7.33,"oz",2.1,2.1,null,{"$f":"AH106","v":"Select"},"gal",188,"oz",8,8]
[null,null,null,null,null,null,null,null,null,null,null,null,null,null,null,null,null,null,null,null,null,null,null,null,null,null,null,null,null,null,null,null,null,"Liberty","gal",53.9,null,{"$f":"AH107","v":"Select Max"},"gal",125,"oz",12,32,null,{"$f":"AH89","v":"Permit Plus"},"oz",17,"oz",0.75,0.75,null,{"$f":"AH64","v":"Gramoxone"},"gal",33,"oz",21,32,null,{"$f":"AH27","v":"Cadet"},"qt",408.04,"oz",0.5,0.9,null,{"$f":"AH104","v":"RiceBeaux"},"gal",36.25,"qt",4,4,null,{"$f":"AH107","v":"Select Max"},"gal",125,"oz",16,16]
[null,null,null,null,null,null,null,null,null,null,null,null,null,null,null,null,null,null,null,null,null,null,null,null,null,null,null,null,null,null,null,null,null,"Linex","gal",62.25,null,{"$f":"AH48","v":"Dual Magnum"},"gal",109,"oz",16,16,null,{"$f":"AH102","v":"Resolve Q"},"oz",8.26,"oz",1.25,1.25,null,{"$f":"AH55","v":"Facet"},"lb",55,"oz",22,32,null,{"$f":"AH90","v":"Poast Plus"},"oz",57.5,"pt",1,1.5,null,{"$f":"AH100","v":"Regiment"},"oz",35.5,"oz",0.4,0.63,null,{"$f":"AH28","v":"Cadre"},"oz",4.21,"oz",4,4]
[null,null,null,null,null,null,null,null,null,null,null,null,null,null,null,null,null,null,null,null,null,null,null,null,null,null,null,null,null,null,null,null,null,"Metribuzin","lb",16,null,{"$f":"AH17","v":"Banvel"},"gal",65,"oz",16,16,null,{"$f":"AH113","v":"Steadfast Q"},"oz",23.5,"oz",1.5,1.5,null,null,null,null,null,null,null,null,{"$f":"AH103","v":"Resource"},"gal",244.39,"oz",6,6,null,{"$f":"AH66","v":"Grasp Xtra"},"oz",9.36,"oz",16,18,null,{"$f":"AH39","v":"Cobra"},"gal",155,"oz",12.5,12.5]
[null,null,null,null,null,null,null,null,null,null,null,null,null,null,null,null,null,null,null,null,null,null,null,null,null,null,null,null,null,null,null,null,null,"Milestone","gal",381.52,null,{"$f":"AH36","v":"Clarity"},"gal",76.8,"pt",4.75,4.75,null,{"$f":"AH29","v":"Callisto"},"gal",604.5,"oz",3,3,null,null,null,null,null,null,null,null,{"$f":"AH61","v":"Fusilade DX"},"gal",166,"pt",0.75,0.75,null,{"$f":"AH109","v":"Sharpen"},"gal",756.19,"oz",1,1,null,{"$f":"AH129","v":"Warrant"},"gal",36.729999999999997,"pt",3,3]
[null,null,null,null,null,null,null,null,null,null,null,null,null,null,null,null,null,null,null,null,null,null,null,null,null,null,null,null,null,null,null,null,null,"MSMA","gal",24,null,{"$f":"AH50","v":"Enlist Duo"},"oz",0.6875,"oz",16,16,null,{"$f":"AH32","v":"Capreno"},"oz",6.97,"oz",3,3,null,null,null,null,null,null,null,null,{"$f":"AH62","v":"Fusion"},"gal",165,"pt",0.5,0.75,null,{"$f":"AH116","v":"Strata PRO"},"oz",7.33,"oz",2.08,2.5,null,{"$f":"AH48","v":"Dual Magnum"},"gal",109,"pt",1,2]
[null,null,null,null,null,null,null,null,null,null,null,null,null,null,null,null,null,null,null,null,null,null,null,null,null,null,null,null,null,null,null,null,null,"Newpath","gal",370,null,{"$f":"AH129","v":"Warrant"},"gal",36.729999999999997,"pt",3,3,null,{"$f":"AH7","v":"Acuron"},"gal",64.5,"qt",2.5,2.5,null,null,null,null,null,null,null,null,{"$f":"AH12","v":"Assure II"},"gal",134,"oz",5,9,null,{"$f":"AH117","v":"Strata XT2"},"oz",7.33,"oz",6.5,10]
[null,null,null,null,null,null,null,null,null,null,null,null,null,null,null,null,null,null,null,null,null,null,null,null,null,null,null,null,null,null,null,null,null,"Osprey","oz",3.8,null,null,null,null,null,null,null,null,{"$f":"AH74","v":"Lexar"},"gal",48,"qt",3,3,null,null,null,null,null,null,null,null,{"$f":"AH106","v":"Select"},"gal",188,"oz",8,16,null,{"$f":"AH8","v":"Aim"},"oz",5.96,"oz",1.25,1.25]
[null,null,null,null,null,null,null,null,null,null,null,null,null,null,null,null,null,null,null,null,null,null,null,null,null,null,null,null,null,null,null,null,null,"Outlook","gal",163.5,null,null,null,null,null,null,null,null,{"$f":"AH41","v":"Corvus"},"gal",853.76,"oz",3.3,5.6,null,null,null,null,null,null,null,null,{"$f":"AH107","v":"Select Max"},"gal",125,"oz",8,16,null,{"$f":"AH38","v":"Clincher"},"gal",248,"oz",15,15]
[null,null,null,null,null,null,null,null,null,null,null,null,null,null,null,null,null,null,null,null,null,null,null,null,null,null,null,null,null,null,null,null,null,"Outrider","oz",{"$f":"ROUND(370/20,2)","v":18.5},null,null,null,null,null,null,null,null,{"$f":"AH131","v":"Zidua"},"oz",8.8000000000000007,"oz",1.5,4,null,null,null,null,null,null,null,null,{"$f":"AH63","v":"Glyphosate"},"gal",38,"oz",32,32,null,{"$f":"AH98","v":"Rebel EX"},"oz",2.36,"oz",16,20]
[null,null,null,null,null,null,null,null,null,null,null,null,null,null,null,null,null,null,null,null,null,null,null,null,null,null,null,null,null,null,null,null,null,"Pastora","oz",16.45,null,"CottonLAY","unit","$/unit","unit","qty","MAX",null,{"$f":"AH10","v":"Anthem Maxx"},"gal",778.51,"oz",2.5,5,null,null,null,null,null,null,null,null,{"$f":"AH108","v":"Sequence"},"gal",53.3,"pt",2.5,3.5,null,{"$f":"AH3","v":"2,4-D"},"gal",15.4,"pt",2,3]
[null,null,null,null,null,null,null,null,null,null,null,null,null,null,null,null,null,null,null,null,null,null,null,null,null,null,null,null,null,null,null,null,null,"PastureGard","gal",56.17,null,{"$f":"\"\"","v":""},{"$f":"\"\"","v":""},{"$f":"\"\"","v":""},{"$f":"\"\"","v":""},{"$f":"\"\"","v":""},{"$f":"\"\"","v":""},null,{"$f":"AH97","v":"Realm Q"},"oz",5.21,"oz",4,4,null,null,null,null,null,null,null,null,{"$f":"AH48","v":"Dual Magnum"},"gal",109,"pt",1,1.67,null,{"$f":"AH126","v":"Ultra Blazer"},"gal",64,"pt",0.5,1]
[null,null,null,null,null,null,null,null,null,null,null,null,null,null,null,null,null,null,null,null,null,null,null,null,null,null,null,null,null,null,null,null,null,"Patriot","oz",{"$f":"ROUND(65/16,2)","v":4.0599999999999996},null,{"$f":"AH63","v":"Glyphosate"},{"$f":"VLOOKUP(AL86,$AH$3:$AJ$131,2,FALSE)","v":"gal"},{"$f":"VLOOKUP(AL86,$AH$3:$AJ$131,3,FALSE)","v":38},"oz",32,32,null,{"$f":"AH63","v":"Glyphosate"},"gal",38,"pt",2,2,null,null,null,null,null,null,null,null,{"$f":"AH129","v":"Warrant"},"gal",36.729999999999997,"pt",3,3]
[null,null,null,null,null,null,null,null,null,null,null,null,null,null,null,null,null,null,null,null,null,null,null,null,null,null,null,null,null,null,null,null,null,"Peak","oz",13.5,null,{"$f":"AH8","v":"Aim"},"oz",5.96,"oz",1.6,1.6,null,{"$f":"AH75","v":"Liberty"},"gal",53.9,"oz",22,22,null,null,null,null,null,null,null,null,{"$f":"AH131","v":"Zidua"},"oz",8.8000000000000007,"oz",1,2]
[null,null,null,null,null,null,null,null,null,null,null,null,null,null,null,null,null,null,null,null,null,null,null,null,null,null,null,null,null,null,null,null,null,"Permit",{"$f":"AI89","v":"oz"},{"$f":"AJ89","v":17},null,{"$f":"AH131","v":"Zidua"},"oz",8.8000000000000007,"oz",0.75,2.1,null,{"$f":"AH69","v":"Halex GT"},"gal",42,"pt",3.6,3.6,null,null,null,null,null,null,null,null,{"$f":"AH10","v":"Anthem Maxx"},"gal",778.51,"oz",0.65,3.25]
[null,null,null,null,null,null,null,null,null,null,null,null,null,null,null,null,null,null,null,null,null,null,null,null,null,null,null,null,null,null,null,null,null,"Permit Plus","oz",17,null,{"$f":"AH9","v":"Anthem Flex"},"gal",604.20000000000005,"oz",2,4.5,null,null,null,null,null,null,null,null,null,null,null,null,null,null,null,{"$f":"AH92","v":"Prefix"},"gal",48.5,"pt",2,2.33]
[null,null,null,null,null,null,null,null,null,null,null,null,null,null,null,null,null,null,null,null,null,null,null,null,null,null,null,null,null,null,null,null,null,"Poast Plus","oz",57.5,null,{"$f":"AH56","v":"Fierce"},"lb",105.03,"oz",3,3,null,null,null,null,null,null,null,null,null,null,null,null,null,null,null,{"$f":"AH60","v":"Flexstar GT"},"gal",38,"pt",3.5,3.5]
[null,null,null,null,null,null,null,null,null,null,null,null,null,null,null,null,null,null,null,null,null,null,null,null,null,null,null,null,null,null,null,null,null,"PowerFlex","oz",3.75,null,{"$f":"AH79","v":"MSMA"},"gal",24,"qt",1.5,1.5,null,null,null,null,null,null,null,null,null,null,null,null,null,null,null,{"$f":"AH75","v":"Liberty"},"gal",53.9,"oz",29,29]
[null,null,null,null,null,null,null,null,null,null,null,null,null,null,null,null,null,null,null,null,null,null,null,null,null,null,null,null,null,null,null,null,null,"Prefix","gal",48.5,null,{"$f":"AH31","v":"Caparol 4L"},"gal",38,"pt",1,1,null,null,null,null,null,null,null,null,null,null,null,null,null,null,null,{"$f":"AH26","v":"Butyrac"},"gal",28.16,"pt",0.8,1]
[null,null,null,null,null,null,null,null,null,null,null,null,null,null,null,null,null,null,null,null,null,null,null,null,null,null,null,null,null,null,null,null,null,"Propanil","gal",21.75,null,{"$f":"AH53","v":"Envoke"},"oz",99.6,"oz",0.1,0.15,null,null,null,null,null,null,null,null,null,null,null,null,null,null,null,{"$f":"AH25","v":"Butoxone"},"gal",29,"pt",0.8,1]
[null,null,null,null,null,null,null,null,null,null,null,null,null,null,null,null,null,null,null,null,null,null,null,null,null,null,null,null,null,null,null,null,null,"Prowl","gal",38.25,null,{"$f":"AH119","v":"Suprend"},"lb",10.3,"lb",1,1.5,null,null,null,null,null,null,null,null,null,null,null,null,null,null,null,{"$f":"AH64","v":"Gramoxone"},"gal",33,"oz",40,40]
[null,null,null,null,null,null,null,null,null,null,null,null,null,null,null,null,null,null,null,null,null,null,null,null,null,null,null,null,null,null,null,null,null,"Pursuit","oz",12.6,null,{"$f":"AH43","v":"Cotton Pro"},"gal ",32,"pt",2.4,3.2,null,null,null,null,null,null,null,null,null,null,null,null,null,null,null,{"$f":"AH50","v":"Enlist Duo"},"oz",0.6875,"pt",4.75,4.75]
[null,null,null,null,null,null,null,null,null,null,null,null,null,null,null,null,null,null,null,null,null,null,null,null,null,null,null,null,null,null,null,null,null,"Python","oz",12.65,null,{"$f":"AH45","v":"Direx"},"gal",25,"pt",0.8,2.4,null,null,null,null,null,null,null,null,null,null,null,null,null,null,null,{"$f":"AH129","v":"Warrant"},"gal",36.729999999999997,"pt",3,3]
[null,null,null,null,null,null,null,null,null,null,null,null,null,null,null,null,null,null,null,null,null,null,null,null,null,null,null,null,null,null,null,null,null,"Realm Q","oz",5.21,null,{"$f":"AH76","v":"Linex"},"gal",62.25,"pt",1,3]
[null,null,null,null,null,null,null,null,null,null,null,null,null,null,null,null,null,null,null,null,null,null,null,null,null,null,null,null,null,null,null,null,null,"Rebel EX","oz",2.36,null,{"$f":"AH127","v":"Valor"},"oz",4.38,"oz",2,2]
[null,null,null,null,null,null,null,null,null,null,null,null,null,null,null,null,null,null,null,null,null,null,null,null,null,null,null,null,null,null,null,null,null,"Reflex","gal",103,null,{"$f":"AH99","v":"Reflex"},"gal",103,"pt",1,1.5]
[null,null,null,null,null,null,null,null,null,null,null,null,null,null,null,null,null,null,null,null,null,null,null,null,null,null,null,null,null,null,null,null,null,"Regiment","oz",35.5,null,{"$f":"AH92","v":"Prefix"},"gal",48.5,"pt",2,2.33]
[null,null,null,null,null,null,null,null,null,null,null,null,null,null,null,null,null,null,null,null,null,null,null,null,null,null,null,null,null,null,null,null,null,"Remedy Ultra","pt",10.76,null,{"$f":"AH60","v":"Flexstar GT"},"gal",38,"pt",3.5,3.5]
[null,null,null,null,null,null,null,null,null,null,null,null,null,null,null,null,null,null,null,null,null,null,null,null,null,null,null,null,null,null,null,null,null,"Resolve Q","oz",8.26]
[null,null,null,null,null,null,null,null,null,null,null,null,null,null,null,null,null,null,null,null,null,null,null,null,null,null,null,null,null,null,null,null,null,"Resource","gal",244.39]
[null,null,null,null,null,null,null,null,null,null,null,null,null,null,null,null,null,null,null,null,null,null,null,null,null,null,null,null,null,null,null,null,null,"RiceBeaux","gal",36.25]
[null,null,null,null,null,null,null,null,null,null,null,null,null,null,null,null,null,null,null,null,null,null,null,null,null,null,null,null,null,null,null,null,null,"Ricestar","gal",160]
[null,null,null,null,null,null,null,null,null,null,null,null,null,null,null,null,null,null,null,null,null,null,null,null,null,null,null,null,null,null,null,null,null,"Select","gal",188]
[null,null,null,null,null,null,null,null,null,null,null,null,null,null,null,null,null,null,null,null,null,null,null,null,null,null,null,null,null,null,null,null,null,"Select Max","gal",125]
[null,null,null,null,null,null,null,null,null,null,null,null,null,null,null,null,null,null,null,null,null,null,null,null,null,null,null,null,null,null,null,null,null,"Sequence","gal",53.3]
[null,null,null,null,null,null,null,null,null,null,null,null,null,null,null,null,null,null,null,null,null,null,null,null,null,null,null,null,null,null,null,null,null,"Sharpen","gal",756.19]
[null,null,null,null,null,null,null,null,null,null,null,null,null,null,null,null,null,null,null,null,null,null,null,null,null,null,null,null,null,null,null,null,null,"Sodium Chlorate","gal",5.5]
[null,null,null,null,null,null,null,null,null,null,null,null,null,null,null,null,null,null,null,null,null,null,null,null,null,null,null,null,null,null,null,null,null,"Sonic","lb",{"$f":"ROUND((79.16*1.03+78)/2,2)","v":79.77}]
[null,null,null,null,null,null,null,null,null,null,null,null,null,null,null,null,null,null,null,null,null,null,null,null,null,null,null,null,null,null,null,null,null,"Staple LX","oz",7]
[null,null,null,null,null,null,null,null,null,null,null,null,null,null,null,null,null,null,null,null,null,null,null,null,null,null,null,null,null,null,null,null,null,"Steadfast Q","oz",23.5]
[null,null,null,null,null,null,null,null,null,null,null,null,null,null,null,null,null,null,null,null,null,null,null,null,null,null,null,null,null,null,null,null,null,"Storm","gal",73.5]
[null,null,null,null,null,null,null,null,null,null,null,null,null,null,null,null,null,null,null,null,null,null,null,null,null,null,null,null,null,null,null,null,null,"Strata","oz",7.33]
[null,null,null,null,null,null,null,null,null,null,null,null,null,null,null,null,null,null,null,null,null,null,null,null,null,null,null,null,null,null,null,null,null,"Strata PRO","oz",7.33]
[null,null,null,null,null,null,null,null,null,null,null,null,null,null,null,null,null,null,null,null,null,null,null,null,null,null,null,null,null,null,null,null,null,"Strata XT2","oz",7.33]
[null,null,null,null,null,null,null,null,null,null,null,null,null,null,null,null,null,null,null,null,null,null,null,null,null,null,null,null,null,null,null,null,null,"Strongarm","oz",{"$f":"ROUND(239.58/4.5,2)","v":53.24}]
[null,null,null,null,null,null,null,null,null,null,null,null,null,null,null,null,null,null,null,null,null,null,null,null,null,null,null,null,null,null,null,null,null,"Suprend","lb",10.3]
[null,null,null,null,null,null,null,null,null,null,null,null,null,null,null,null,null,null,null,null,null,null,null,null,null,null,null,null,null,null,null,null,null,"Surestart","gal",{"$f":"ROUND(89*1.03,2)","v":91.67}]
[null,null,null,null,null,null,null,null,null,null,null,null,null,null,null,null,null,null,null,null,null,null,null,null,null,null,null,null,null,null,null,null,null,"Surmount","gal",58]
[null,null,null,null,null,null,null,null,null,null,null,null,null,null,null,null,null,null,null,null,null,null,null,null,null,null,null,null,null,null,null,null,null,"Surpass","qt",29.04]
[null,null,null,null,null,null,null,null,null,null,null,null,null,null,null,null,null,null,null,null,null,null,null,null,null,null,null,null,null,null,null,null,null,"Tordon 22K","gal",97]
[null,null,null,null,null,null,null,null,null,null,null,null,null,null,null,null,null,null,null,null,null,null,null,null,null,null,null,null,null,null,null,null,null,"Treflan","gal",25.92]
[null,null,null,null,null,null,null,null,null,null,null,null,null,null,null,null,null,null,null,null,null,null,null,null,null,null,null,null,null,null,null,null,null,"Trivence","oz",{"$f":"ROUND(500/200,2)","v":2.5}]
[null,null,null,null,null,null,null,null,null,null,null,null,null,null,null,null,null,null,null,null,null,null,null,null,null,null,null,null,null,null,null,null,null,"Ultra Blazer","gal",64]
[null,null,null,null,null,null,null,null,null,null,null,null,null,null,null,null,null,null,null,null,null,null,null,null,null,null,null,null,null,null,null,null,null,"Valor","oz",4.38]
[null,null,null,null,null,null,null,null,null,null,null,null,null,null,null,null,null,null,null,null,null,null,null,null,null,null,null,null,null,null,null,null,null,"Verdict","gal",{"$f":"ROUND(528.21/2.5,2)","v":211.28}]
[null,null,null,null,null,null,null,null,null,null,null,null,null,null,null,null,null,null,null,null,null,null,null,null,null,null,null,null,null,null,null,null,null,"Warrant","gal",{"$f":"ROUND((34*1.03+38.44)/2,2)","v":36.729999999999997}]
[null,null,null,null,null,null,null,null,null,null,null,null,null,null,null,null,null,null,null,null,null,null,null,null,null,null,null,null,null,null,null,null,null,"Weedmaster","gal",28]
[null,null,null,null,null,null,null,null,null,null,null,null,null,null,null,null,null,null,null,null,null,null,null,null,null,null,null,null,null,null,null,null,null,"Zidua","oz",{"$f":"ROUND(704/80,2)","v":8.8000000000000007}]

{"sheet":"Implements","index":9,"n_rows":238,"n_cols":64,"rows_kept":238,"cut":false,"hidden":true,"merged":[[26,30,26,32],[26,27,26,29],[97,27,98,27],[97,28,98,28],[97,29,98,29],[97,24,98,24],[97,25,98,25],[97,26,98,26],[128,24,132,24],[26,1,26,2],[131,19,131,21],[131,22,132,22],[26,21,26,23],[26,24,26,26],[94,155,94,159],[94,161,94,165],[94,167,94,171],[204,1,205,1],[204,22,204,24],[204,19,204,21],[203,2,203,3],[204,9,204,11],[204,12,204,14],[204,15,204,17],[204,18,205,18],[203,4,203,5],[203,6,203,7],[204,8,205,8],[128,23,132,23],[204,26,204,28],[156,1,156,6],[223,18,224,18],[223,19,223,21],[223,22,223,24],[223,9,223,11],[223,12,223,14],[223,15,223,17],[222,2,222,3],[222,4,222,5],[222,6,222,7],[223,1,224,1],[223,8,224,8]]}
["Userform Information"]
[null,1,2,3,4,5,6,7,8,9,10,11,12,13,14,15,16,17]
["Max Equip. Age","Tractor Standard Values",null,"*Note: This table contains standard values (light orange) for machinery userforms. Do not delete without making necessary adjustments to ensure functionality."]
[30,"Tractors","Suggested\nPrice","Hours at \nPurchase (New)",null,"HP","Estimated \nUL Hours","Estimated\nUL Years","User Expected Operating Years","RV","SV","Fuel","Standard\nUse Hours",null,"C1","C2","C3","Repair Factor\n(% of list price)"]
[1,{"$f":"Defaults!$C$4","v":"2 WD 50"},32200,0,null,50,12000,{"$f":"G5/M5","v":20},{"$f":"(G5-D5)/M5","v":20},{"$f":"(VLOOKUP(B5,$N$5:$Q$15,2,FALSE)-(VLOOKUP(B5,$N$5:$Q$15,3,FALSE)*H5^0.5)-VLOOKUP(B5,$N$5:$Q$15,4,FALSE)^0.5)^2","v":0.23905608977924298},{"$f":"C5*(J5)","v":7697.6060908916234},{"$f":"0.044*F5","v":2.1999999999999997},600,{"$f":"B5","v":"2 WD 50"},0.98099999999999998,9.2999999999999999E-2,5.7999999999999996E-3,1]
[2,{"$f":"Defaults!$C$5","v":"MFWD 50"},39100,0,null,50,16000,{"$f":"G6/M6","v":26.666666666666668},{"$f":"(G6-D6)/M6","v":26.666666666666668},0.18027865010145308,7048.8952189668153,2.1999999999999997,600,"MFWD 50",0.98099999999999998,9.2999999999999999E-2,5.7999999999999996E-3,0.8]
[3,{"$f":"Defaults!$C$6","v":"2 WD 75"},48300,0,null,75,12000,20,20,0.23905608977924298,11546.409136337435,3.3,600,"2 WD 75",0.98099999999999998,9.2999999999999999E-2,5.7999999999999996E-3,1]
[4,{"$f":"Defaults!$C$7","v":"MFWD 75"},54100,0,null,75,16000,26.666666666666668,26.666666666666668,0.18027865010145308,9753.0749704886111,3.3,600,"MFWD 75",0.98099999999999998,9.2999999999999999E-2,5.7999999999999996E-3,0.8]
[5,{"$f":"Defaults!$C$8","v":"2 WD 105"},63300,0,null,105,12000,20,20,0.21762424032920796,13775.614412838864,4.62,600,"2 WD 105",0.94199999999999995,0.1,8.0000000000000004E-4,1]
[6,{"$f":"Defaults!$C$9","v":"MFWD 105"},77400,0,null,105,16000,26.666666666666668,26.666666666666668,0.1578615528027541,12218.484186933167,4.62,600,"MFWD 105",0.94199999999999995,0.1,8.0000000000000004E-4,0.8]
[7,{"$f":"Defaults!$C$10","v":"2 WD 130"},103000,0,null,130,12000,20,20,0.21762424032920796,22415.29675390842,5.72,600,"2 WD 130",0.94199999999999995,0.1,8.0000000000000004E-4,1]
[8,{"$f":"Defaults!$C$11","v":"MFWD 130"},123000,0,null,130,16000,26.666666666666668,26.666666666666668,0.1578615528027541,19416.970994738753,5.72,600,"MFWD 130",0.94199999999999995,0.1,8.0000000000000004E-4,0.8]
[9,{"$f":"Defaults!$C$12","v":"MFWD 150"},143000,0,null,150,16000,26.666666666666668,26.666666666666668,0.10105891776151378,14451.425239896471,6.6,600,"MFWD 150",0.97599999999999998,0.11899999999999999,1.9E-3,0.8]
[10,{"$f":"Defaults!$C$13","v":"MFWD 190"},186000,0,null,190,16000,26.666666666666668,26.666666666666668,0.10105891776151378,18796.958703641561,8.36,600,"MFWD 190",0.97599999999999998,0.11899999999999999,1.9E-3,0.8]
[11,{"$f":"Defaults!$C$14","v":"MFWD 225"},218000,0,null,225,16000,26.666666666666668,26.666666666666668,0.10105891776151378,22030.844072010004,9.8999999999999986,600,"MFWD 225",0.97599999999999998,0.11899999999999999,1.9E-3,0.8]
["Unhide extra rows to add more implement options - Do not insert rows without editing macros"]
[]
[]
[]
[]
[]
[]
[null,null,null,null,null,null,null,null,null,null,null,null,null,null,null,null,null,null,null,null,"Crop",{"$f":"AB23","v":"Slope"},{"$f":"CONCATENATE(\"Efficiency Factor - \",Defaults!$F$4)","v":"Efficiency Factor - Sub-meter Receiver"},{"$f":"CONCATENATE(\"Efficiency Factor - \",Defaults!$F$5)","v":"Efficiency Factor - 0"},{"$f":"AE23","v":"Irregularity"},{"$f":"CONCATENATE(\"Efficiency Factor - \",Defaults!$F$4)","v":"Efficiency Factor - Sub-meter Receiver"},{"$f":"CONCATENATE(\"Efficiency Factor - \",Defaults!$F$5)","v":"Efficiency Factor - 0"},"Slope",{"$f":"CONCATENATE(\"Efficiency Factor - \",Defaults!$F$4)","v":"Efficiency Factor - Sub-meter Receiver"},{"$f":"CONCATENATE(\"Efficiency Factor - \",Defaults!$F$5)","v":"Efficiency Factor - 0"},"Irregularity",{"$f":"CONCATENATE(\"Efficiency Factor - \",Defaults!$F$4)","v":"Efficiency Factor - Sub-meter Receiver"},{"$f":"CONCATENATE(\"Efficiency Factor - \",Defaults!$F$5)","v":"Efficiency Factor - 0"}]
[null,null,null,null,null,null,null,null,null,null,null,null,null,null,null,null,null,null,null,null,{"$f":"Inputs!B13","v":"Cotton"},{"$f":"Defaults!M40","v":"0-1%"},1,1,{"$f":"Defaults!M45","v":"low"},1,1,{"$f":"Inputs!P13","v":"0-1%"},{"$f":"IFERROR(VLOOKUP(AB24,$V$24:$W$26,2,FALSE),1)","v":1},{"$f":"IFERROR(VLOOKUP(AB24,$V$24:$X$26,3,FALSE),1)","v":1},{"$f":"Inputs!R13","v":"low"},{"$f":"IFERROR(VLOOKUP(AE24,$Y$24:$Z$26,2,FALSE),1)","v":1},{"$f":"IFERROR(VLOOKUP(AE24,$Y$24:$AA$26,3,FALSE),1)","v":1}]
[null,null,1,2,3,4,5,6,7,8,9,10,11,13,14,15,16,17,18,19,{"$f":"Inputs!B15","v":"Soybean"},{"$f":"Defaults!M41","v":"1-3%"},1,1,{"$f":"Defaults!M46","v":"medium"},1,1,{"$f":"Inputs!P15","v":"0-1%"},{"$f":"IFERROR(VLOOKUP(AB25,$V$24:$W$26,2,FALSE),1)","v":1},{"$f":"IFERROR(VLOOKUP(AB25,$V$24:$X$26,3,FALSE),1)","v":1},{"$f":"Inputs!R15","v":"low"},{"$f":"IFERROR(VLOOKUP(AE25,$Y$24:$Z$26,2,FALSE),1)","v":1},{"$f":"IFERROR(VLOOKUP(AE25,$Y$24:$AA$26,3,FALSE),1)","v":1}]
[0,1,2,3,4,5,6,7,8,9,10,11,12,null,null,null,null,null,null,null,{"$f":"Inputs!B17","v":"Est. Pasture or Hay"},{"$f":"Defaults!M42","v":"3-8%"},1,1,{"$f":"Defaults!M47","v":"high"},1,1,{"$f":"Inputs!P17","v":"0-1%"},{"$f":"IFERROR(VLOOKUP(AB26,$V$24:$W$26,2,FALSE),1)","v":1},{"$f":"IFERROR(VLOOKUP(AB26,$V$24:$X$26,3,FALSE),1)","v":1},{"$f":"Inputs!R17","v":"low"},{"$f":"IFERROR(VLOOKUP(AE26,$Y$24:$Z$26,2,FALSE),1)","v":1},{"$f":"IFERROR(VLOOKUP(AE26,$Y$24:$AA$26,3,FALSE),1)","v":1}]
[100,"Implement Standard Values",null,"*Note: This table contains lists (green) used and standard values (light orange) for machinery userforms. Do not delete without making necessary adjustments to ensure functionality.",null,null,null,null,null,null,null,null,null,null,null,null,null,null,null,null,null,{"$f":"Defaults!F4","v":"Sub-meter Receiver"},null,null,{"$f":"Defaults!F5","v":0},null,null,{"$f":"CONCATENATE(\"Weighted \",V27)","v":"Weighted Sub-meter Receiver"},null,null,{"$f":"CONCATENATE(\"Weighted \",Y27)","v":"Weighted 0"}]
["Width","Implement","Size/HP","Suggested (list)\nPurchase Price","Hours at \nPurchase\n(New) ","Estimated \nUL Hours","Estimated\nUL Years","Expected Operation\nHours/Year","Standard\nUse Hours","RV","Expected\nSV","Labor","Implement\nFuel Use Rate","Repair Factor\n(% of list price)","Field Efficiency\n(%)","Field Speed\n(mph)","C1","C2","C3","Tractor \nRequirements","Width","Increase\nField Speed","Decrease Input","Increase\nYield","Increase\nField Speed","Decrease Input","Increase\nYield","Increase\nField Speed","Decrease Input","Increase\nYield","Increase\nField Speed","Decrease Input","Increase\nYield"]
[10,"Row Planter","4R-30",25800,0,900,{"$f":"F29/I29","v":6},{"$f":"(F29-E29)/I29","v":6},150,{"$f":"(Q29-R29*G29^0.5-S29^0.5)^2","v":0.47878068691110282},{"$f":"D29*J29","v":12352.541722306452},{"$f":"1/((5280/43560)*A29*O29*P29)","v":0.23076923076923073},0,0.75,0.65,5.5,0.88300000000000001,7.8E-2,0,130,{"$f":"A29","v":10},2.21,{"$f":"ROUND((1-0.9765)*100,2)","v":2.35},1,{"$f":"V29","v":2.21},{"$f":"W29","v":2.35},{"$f":"X29","v":1},{"$f":"ROUND((V29*$AC$24*$AF$24*Inputs!$D$13/Inputs!$D$19)+(V29*$AC$25*$AF$25*Inputs!$D$15/Inputs!$D$19)+(V29*$AC$26*$AF$26*Inputs!$D$17/Inputs!$D$19),2)","v":2.21},{"$f":"ROUND((W29*$AC$24*$AF$24*Inputs!$D$13/Inputs!$D$19)+(W29*$AC$25*$AF$25*Inputs!$D$15/Inputs!$D$19)+(W29*$AC$26*$AF$26*Inputs!$D$17/Inputs!$D$19),2)","v":2.35},{"$f":"ROUND((X29*$AC$24*$AF$24*Inputs!$D$13/Inputs!$D$19)+(X29*$AC$25*$AF$25*Inputs!$D$15/Inputs!$D$19)+(X29*$AC$26*$AF$26*Inputs!$D$17/Inputs!$D$19),2)","v":1},{"$f":"ROUND((V29*$AD$24*$AG$24*Inputs!$D$13/Inputs!$D$19)+(V29*$AD$25*$AG$25*Inputs!$D$15/Inputs!$D$19)+(V29*$AD$26*$AG$26*Inputs!$D$17/Inputs!$D$19),2)","v":2.21},{"$f":"ROUND((W29*$AD$24*$AG$24*Inputs!$D$13/Inputs!$D$19)+(W29*$AD$25*$AG$25*Inputs!$D$15/Inputs!$D$19)+(W29*$AD$26*$AG$26*Inputs!$D$17/Inputs!$D$19),2)","v":2.35},{"$f":"ROUND((X29*$AD$24*$AG$24*Inputs!$D$13/Inputs!$D$19)+(X29*$AD$25*$AG$25*Inputs!$D$15/Inputs!$D$19)+(X29*$AD$26*$AG$26*Inputs!$D$17/Inputs!$D$19),2)","v":1}]
[15,null,"6R-30",36000,0,900,{"$f":"F30/I30","v":6},{"$f":"(F30-E30)/I30","v":6},150,{"$f":"(Q30-R30*G30^0.5-S30^0.5)^2","v":0.47878068691110282},{"$f":"D30*J30","v":17236.104728799703},{"$f":"1/((5280/43560)*A30*O30*P30)","v":0.15384615384615385},0,0.75,0.65,5.5,0.88300000000000001,7.8E-2,0,150,{"$f":"A30","v":15}]
[20,null,"8R-30",41000,0,900,{"$f":"F31/I31","v":6},{"$f":"(F31-E31)/I31","v":6},150,{"$f":"(Q31-R31*G31^0.5-S31^0.5)^2","v":0.47878068691110282},{"$f":"D31*J31","v":19630.008163355214},{"$f":"1/((5280/43560)*A31*O31*P31)","v":0.11538461538461536},0,0.75,0.65,5.5,0.88300000000000001,7.8E-2,0,190,{"$f":"A31","v":20}]
[null,"No-Till Grain Drill",12,41800,0,1500,{"$f":"F32/I32","v":10},{"$f":"(F32-E32)/I32","v":10},150,{"$f":"(Q32-R32*G32^0.5-S32^0.5)^2","v":0.40493157686712605},{"$f":"D32*J32","v":16926.13991304587},{"$f":"1/((5280/43560)*C32*O32*P32)","v":0.19642857142857145},0,0.75,0.7,5,0.88300000000000001,7.8E-2,0,100,null,{"$f":"V29","v":2.21},{"$f":"W29","v":2.35},{"$f":"X29","v":1},{"$f":"V32","v":2.21},{"$f":"W32","v":2.35},{"$f":"X32","v":1},{"$f":"ROUND((V32*$AC$24*$AF$24*Inputs!$D$13/Inputs!$D$19)+(V32*$AC$25*$AF$25*Inputs!$D$15/Inputs!$D$19)+(V32*$AC$26*$AF$26*Inputs!$D$17/Inputs!$D$19),2)","v":2.21},{"$f":"ROUND((W32*$AC$24*$AF$24*Inputs!$D$13/Inputs!$D$19)+(W32*$AC$25*$AF$25*Inputs!$D$15/Inputs!$D$19)+(W32*$AC$26*$AF$26*Inputs!$D$17/Inputs!$D$19),2)","v":2.35},{"$f":"ROUND((X32*$AC$24*$AF$24*Inputs!$D$13/Inputs!$D$19)+(X32*$AC$25*$AF$25*Inputs!$D$15/Inputs!$D$19)+(X32*$AC$26*$AF$26*Inputs!$D$17/Inputs!$D$19),2)","v":1},{"$f":"ROUND((V32*$AD$24*$AG$24*Inputs!$D$13/Inputs!$D$19)+(V32*$AD$25*$AG$25*Inputs!$D$15/Inputs!$D$19)+(V32*$AD$26*$AG$26*Inputs!$D$17/Inputs!$D$19),2)","v":2.21},{"$f":"ROUND((W32*$AD$24*$AG$24*Inputs!$D$13/Inputs!$D$19)+(W32*$AD$25*$AG$25*Inputs!$D$15/Inputs!$D$19)+(W32*$AD$26*$AG$26*Inputs!$D$17/Inputs!$D$19),2)","v":2.35},{"$f":"ROUND((X32*$AD$24*$AG$24*Inputs!$D$13/Inputs!$D$19)+(X32*$AD$25*$AG$25*Inputs!$D$15/Inputs!$D$19)+(X32*$AD$26*$AG$26*Inputs!$D$17/Inputs!$D$19),2)","v":1}]
[null,"Update userform routines",30,94200,0,1500,{"$f":"F33/I33","v":10},{"$f":"(F33-E33)/I33","v":10},150,{"$f":"(Q33-R33*G33^0.5-S33^0.5)^2","v":0.40493157686712605},{"$f":"D33*J33","v":38144.554540883277},{"$f":"1/((5280/43560)*C33*O33*P33)","v":7.857142857142857E-2},0,0.75,0.7,5,0.88300000000000001,7.8E-2,0,225]
[null,"Grain Drill",12,24100,0,1500,{"$f":"F34/I34","v":10},{"$f":"(F34-E34)/I34","v":10},150,{"$f":"(Q34-R34*G34^0.5-S34^0.5)^2","v":0.40493157686712605},{"$f":"D34*J34","v":9758.8510024977386},{"$f":"1/((5280/43560)*C34*O34*P34)","v":0.19642857142857145},0,0.75,0.7,5,0.88300000000000001,7.8E-2,0,100,null,{"$f":"V29","v":2.21},{"$f":"W29","v":2.35},{"$f":"X29","v":1},{"$f":"V34","v":2.21},{"$f":"W34","v":2.35},{"$f":"X34","v":1},{"$f":"ROUND((V34*$AC$24*$AF$24*Inputs!$D$13/Inputs!$D$19)+(V34*$AC$25*$AF$25*Inputs!$D$15/Inputs!$D$19)+(V34*$AC$26*$AF$26*Inputs!$D$17/Inputs!$D$19),2)","v":2.21},{"$f":"ROUND((W34*$AC$24*$AF$24*Inputs!$D$13/Inputs!$D$19)+(W34*$AC$25*$AF$25*Inputs!$D$15/Inputs!$D$19)+(W34*$AC$26*$AF$26*Inputs!$D$17/Inputs!$D$19),2)","v":2.35},{"$f":"ROUND((X34*$AC$24*$AF$24*Inputs!$D$13/Inputs!$D$19)+(X34*$AC$25*$AF$25*Inputs!$D$15/Inputs!$D$19)+(X34*$AC$26*$AF$26*Inputs!$D$17/Inputs!$D$19),2)","v":1},{"$f":"ROUND((V34*$AD$24*$AG$24*Inputs!$D$13/Inputs!$D$19)+(V34*$AD$25*$AG$25*Inputs!$D$15/Inputs!$D$19)+(V34*$AD$26*$AG$26*Inputs!$D$17/Inputs!$D$19),2)","v":2.21},{"$f":"ROUND((W34*$AD$24*$AG$24*Inputs!$D$13/Inputs!$D$19)+(W34*$AD$25*$AG$25*Inputs!$D$15/Inputs!$D$19)+(W34*$AD$26*$AG$26*Inputs!$D$17/Inputs!$D$19),2)","v":2.35},{"$f":"ROUND((X34*$AD$24*$AG$24*Inputs!$D$13/Inputs!$D$19)+(X34*$AD$25*$AG$25*Inputs!$D$15/Inputs!$D$19)+(X34*$AD$26*$AG$26*Inputs!$D$17/Inputs!$D$19),2)","v":1}]
[null,"Update userform routines",30,65300,0,1500,10,10,150,0.40493157686712605,26442.031969423333,7.857142857142857E-2,0,0.75,0.7,5,0.88300000000000001,7.8E-2,0,225]
[null,"Over-the-Top Sprayer",60,36400,0,1500,7.5,7.5,200,0.40833886738261743,14863.534772727275,3.2544378698224852E-2,0,0.7,0.65,6.5,0.94299999999999995,0.111,0,100,null,2.21,{"$f":"ROUND((1-0.7792)*100,2)","v":22.08},1,{"$f":"V36","v":2.21},{"$f":"W36","v":22.08},{"$f":"X36","v":1},{"$f":"ROUND((V36*$AC$24*$AF$24*Inputs!$D$13/Inputs!$D$19)+(V36*$AC$25*$AF$25*Inputs!$D$15/Inputs!$D$19)+(V36*$AC$26*$AF$26*Inputs!$D$17/Inputs!$D$19),2)","v":2.21},{"$f":"ROUND((W36*$AC$24*$AF$24*Inputs!$D$13/Inputs!$D$19)+(W36*$AC$25*$AF$25*Inputs!$D$15/Inputs!$D$19)+(W36*$AC$26*$AF$26*Inputs!$D$17/Inputs!$D$19),2)","v":22.08},{"$f":"ROUND((X36*$AC$24*$AF$24*Inputs!$D$13/Inputs!$D$19)+(X36*$AC$25*$AF$25*Inputs!$D$15/Inputs!$D$19)+(X36*$AC$26*$AF$26*Inputs!$D$17/Inputs!$D$19),2)","v":1},{"$f":"ROUND((V36*$AD$24*$AG$24*Inputs!$D$13/Inputs!$D$19)+(V36*$AD$25*$AG$25*Inputs!$D$15/Inputs!$D$19)+(V36*$AD$26*$AG$26*Inputs!$D$17/Inputs!$D$19),2)","v":2.21},{"$f":"ROUND((W36*$AD$24*$AG$24*Inputs!$D$13/Inputs!$D$19)+(W36*$AD$25*$AG$25*Inputs!$D$15/Inputs!$D$19)+(W36*$AD$26*$AG$26*Inputs!$D$17/Inputs!$D$19),2)","v":22.08},{"$f":"ROUND((X36*$AD$24*$AG$24*Inputs!$D$13/Inputs!$D$19)+(X36*$AD$25*$AG$25*Inputs!$D$15/Inputs!$D$19)+(X36*$AD$26*$AG$26*Inputs!$D$17/Inputs!$D$19),2)","v":1}]
[null,"Update userform routines",90,51000,0,1500,7.5,7.5,200,0.40833886738261743,20825.282236513489,2.1696252465483234E-2,0,0.7,0.65,6.5,0.94299999999999995,0.111,0,150]
[null,null,120,76600,0,1500,{"$f":"F38/I38","v":7.5},7.5,200,0.40833886738261743,31278.757241508494,1.6272189349112426E-2,0,0.7,0.65,6.5,0.94299999999999995,0.111,0,225]
[20,"Post-Directed Sprayer","8R-30",12700,0,{"$f":"200*8","v":1600},{"$f":"F39/I39","v":8},{"$f":"(F39-E39)/I39","v":8},200,0.39569709514288404,5025.3531083146272,{"$f":"1/((5280/43560)*A39*O39*P39)","v":8.4615384615384606E-2},0,0.75,0.65,7.5,0.94299999999999995,0.111,0,170,null,2.21,{"$f":"ROUND((1-0.909)*100,2)","v":9.1},1,{"$f":"V39","v":2.21},{"$f":"W39","v":9.1},{"$f":"X39","v":1},{"$f":"ROUND((V39*$AC$24*$AF$24*Inputs!$D$13/Inputs!$D$19)+(V39*$AC$25*$AF$25*Inputs!$D$15/Inputs!$D$19)+(V39*$AC$26*$AF$26*Inputs!$D$17/Inputs!$D$19),2)","v":2.21},{"$f":"ROUND((W39*$AC$24*$AF$24*Inputs!$D$13/Inputs!$D$19)+(W39*$AC$25*$AF$25*Inputs!$D$15/Inputs!$D$19)+(W39*$AC$26*$AF$26*Inputs!$D$17/Inputs!$D$19),2)","v":9.1},{"$f":"ROUND((X39*$AC$24*$AF$24*Inputs!$D$13/Inputs!$D$19)+(X39*$AC$25*$AF$25*Inputs!$D$15/Inputs!$D$19)+(X39*$AC$26*$AF$26*Inputs!$D$17/Inputs!$D$19),2)","v":1},{"$f":"ROUND((V39*$AD$24*$AG$24*Inputs!$D$13/Inputs!$D$19)+(V39*$AD$25*$AG$25*Inputs!$D$15/Inputs!$D$19)+(V39*$AD$26*$AG$26*Inputs!$D$17/Inputs!$D$19),2)","v":2.21},{"$f":"ROUND((W39*$AD$24*$AG$24*Inputs!$D$13/Inputs!$D$19)+(W39*$AD$25*$AG$25*Inputs!$D$15/Inputs!$D$19)+(W39*$AD$26*$AG$26*Inputs!$D$17/Inputs!$D$19),2)","v":9.1},{"$f":"ROUND((X39*$AD$24*$AG$24*Inputs!$D$13/Inputs!$D$19)+(X39*$AD$25*$AG$25*Inputs!$D$15/Inputs!$D$19)+(X39*$AD$26*$AG$26*Inputs!$D$17/Inputs!$D$19),2)","v":1}]
[30,null,"12R-30",17400,0,{"$f":"200*8","v":1600},{"$f":"F40/I40","v":8},{"$f":"(F40-E40)/I40","v":8},200,{"$f":"(Q40-R40*G40^0.5-S40^0.5)^2","v":0.39569709514288404},{"$f":"D40*J40","v":6885.1294554861825},{"$f":"1/((5280/43560)*A40*O40*P40)","v":5.6410256410256411E-2},null,0.75,0.65,7.5,0.94299999999999995,0.111,0,170]
[null,"Fertilizer Spreader",40,11800,0,1200,12,12,100,0.3119051832773716,3680.4811626729847,4.2091836734693876E-2,0,0.8,0.7,7,0.94299999999999995,0.111,0,100,null,2.21,{"$f":"ROUND((1-0.9776)*100,2)","v":2.2400000000000002},1,{"$f":"V41","v":2.21},{"$f":"W41","v":2.2400000000000002},1,{"$f":"ROUND((V41*$AC$24*$AF$24*Inputs!$D$13/Inputs!$D$19)+(V41*$AC$25*$AF$25*Inputs!$D$15/Inputs!$D$19)+(V41*$AC$26*$AF$26*Inputs!$D$17/Inputs!$D$19),2)","v":2.21},{"$f":"ROUND((W41*$AC$24*$AF$24*Inputs!$D$13/Inputs!$D$19)+(W41*$AC$25*$AF$25*Inputs!$D$15/Inputs!$D$19)+(W41*$AC$26*$AF$26*Inputs!$D$17/Inputs!$D$19),2)","v":2.2400000000000002},{"$f":"ROUND((X41*$AC$24*$AF$24*Inputs!$D$13/Inputs!$D$19)+(X41*$AC$25*$AF$25*Inputs!$D$15/Inputs!$D$19)+(X41*$AC$26*$AF$26*Inputs!$D$17/Inputs!$D$19),2)","v":1},{"$f":"ROUND((V41*$AD$24*$AG$24*Inputs!$D$13/Inputs!$D$19)+(V41*$AD$25*$AG$25*Inputs!$D$15/Inputs!$D$19)+(V41*$AD$26*$AG$26*Inputs!$D$17/Inputs!$D$19),2)","v":2.21},{"$f":"ROUND((W41*$AD$24*$AG$24*Inputs!$D$13/Inputs!$D$19)+(W41*$AD$25*$AG$25*Inputs!$D$15/Inputs!$D$19)+(W41*$AD$26*$AG$26*Inputs!$D$17/Inputs!$D$19),2)","v":2.2400000000000002},{"$f":"ROUND((X41*$AD$24*$AG$24*Inputs!$D$13/Inputs!$D$19)+(X41*$AD$25*$AG$25*Inputs!$D$15/Inputs!$D$19)+(X41*$AD$26*$AG$26*Inputs!$D$17/Inputs!$D$19),2)","v":1}]
[null,"Manure Spreader",15,{"$f":"16031*0.9","v":14427.9},0,2000,{"$f":"F42/I42","v":20},{"$f":"(F42-E42)/I42","v":20},{"$f":"I41","v":100},0.19944522636465797,{"$f":"D42*J42","v":2877.5757814666486},0.18333333333333332,0,0.5,0.6,5,0.94299999999999995,0.111,0,60,null,{"$f":"V41","v":2.21},{"$f":"W41","v":2.2400000000000002},{"$f":"X41","v":1},{"$f":"V42","v":2.21},2.2400000000000002,1,{"$f":"ROUND((V42*$AC$24*$AF$24*Inputs!$D$13/Inputs!$D$19)+(V42*$AC$25*$AF$25*Inputs!$D$15/Inputs!$D$19)+(V42*$AC$26*$AF$26*Inputs!$D$17/Inputs!$D$19),2)","v":2.21},{"$f":"ROUND((W42*$AC$24*$AF$24*Inputs!$D$13/Inputs!$D$19)+(W42*$AC$25*$AF$25*Inputs!$D$15/Inputs!$D$19)+(W42*$AC$26*$AF$26*Inputs!$D$17/Inputs!$D$19),2)","v":2.2400000000000002},{"$f":"ROUND((X42*$AC$24*$AF$24*Inputs!$D$13/Inputs!$D$19)+(X42*$AC$25*$AF$25*Inputs!$D$15/Inputs!$D$19)+(X42*$AC$26*$AF$26*Inputs!$D$17/Inputs!$D$19),2)","v":1},{"$f":"ROUND((V42*$AD$24*$AG$24*Inputs!$D$13/Inputs!$D$19)+(V42*$AD$25*$AG$25*Inputs!$D$15/Inputs!$D$19)+(V42*$AD$26*$AG$26*Inputs!$D$17/Inputs!$D$19),2)","v":2.21},{"$f":"ROUND((W42*$AD$24*$AG$24*Inputs!$D$13/Inputs!$D$19)+(W42*$AD$25*$AG$25*Inputs!$D$15/Inputs!$D$19)+(W42*$AD$26*$AG$26*Inputs!$D$17/Inputs!$D$19),2)","v":2.2400000000000002},{"$f":"ROUND((X42*$AD$24*$AG$24*Inputs!$D$13/Inputs!$D$19)+(X42*$AD$25*$AG$25*Inputs!$D$15/Inputs!$D$19)+(X42*$AD$26*$AG$26*Inputs!$D$17/Inputs!$D$19),2)","v":1}]
[null,"Subsurfer",8.75,{"$f":"(40000+45000)/2","v":42500},0,2000,{"$f":"F43/I43","v":4},{"$f":"(F43-E43)/I43","v":4},500,0.519841,{"$f":"D43*J43","v":22093.2425},0.34285714285714286,0,0.4,0.5,5.5,0.94299999999999995,0.111,0,100,null,{"$f":"V41","v":2.21},{"$f":"W41","v":2.2400000000000002},{"$f":"X41","v":1},{"$f":"V43","v":2.21},2.2400000000000002,1,{"$f":"ROUND((V43*$AC$24*$AF$24*Inputs!$D$13/Inputs!$D$19)+(V43*$AC$25*$AF$25*Inputs!$D$15/Inputs!$D$19)+(V43*$AC$26*$AF$26*Inputs!$D$17/Inputs!$D$19),2)","v":2.21},{"$f":"ROUND((W43*$AC$24*$AF$24*Inputs!$D$13/Inputs!$D$19)+(W43*$AC$25*$AF$25*Inputs!$D$15/Inputs!$D$19)+(W43*$AC$26*$AF$26*Inputs!$D$17/Inputs!$D$19),2)","v":2.2400000000000002},{"$f":"ROUND((X43*$AC$24*$AF$24*Inputs!$D$13/Inputs!$D$19)+(X43*$AC$25*$AF$25*Inputs!$D$15/Inputs!$D$19)+(X43*$AC$26*$AF$26*Inputs!$D$17/Inputs!$D$19),2)","v":1},{"$f":"ROUND((V43*$AD$24*$AG$24*Inputs!$D$13/Inputs!$D$19)+(V43*$AD$25*$AG$25*Inputs!$D$15/Inputs!$D$19)+(V43*$AD$26*$AG$26*Inputs!$D$17/Inputs!$D$19),2)","v":2.21},{"$f":"ROUND((W43*$AD$24*$AG$24*Inputs!$D$13/Inputs!$D$19)+(W43*$AD$25*$AG$25*Inputs!$D$15/Inputs!$D$19)+(W43*$AD$26*$AG$26*Inputs!$D$17/Inputs!$D$19),2)","v":2.2400000000000002},{"$f":"ROUND((X43*$AD$24*$AG$24*Inputs!$D$13/Inputs!$D$19)+(X43*$AD$25*$AG$25*Inputs!$D$15/Inputs!$D$19)+(X43*$AD$26*$AG$26*Inputs!$D$17/Inputs!$D$19),2)","v":1}]
["Unhide extra rows to add more tractor options - Do not insert rows without editing macros"]
[]
[]
[]
[]
[]
[]
[]
[]
[]
[]
[]
[]
[null,1,2,3,4]
["Precision Tech Standard Values"]
[null,null,"Suggested (list)\nPurchase Price","Useful Life\nYears","Expected\nSV","Subscription Fee"]
[null,"Sub-meter Receiver",{"$f":"7962.1","v":7962.1},4,0,1050]
[]
[]
[]
["Unhide extra rows to add more PA options - Do not insert rows without editing macros"]
[]
[]
[]
[]
[]
[]
[]
[]
[]
[]
[]
[]
[]
[]
[]
[]
[]
[]
[]
[]
[]
[]
[]
[]
[]
[]
[]
[]
[]
[]
[]
[]
[null,null,1,2,3,4,5,6,7,8,9,10,11,12,13,14,15,16,17,18,19,20,21,22,23,24,25,26,27,28]
[null,"UserForm Saved Values",null,null,null,null,null,null,"Subscription Fee",null,null,null,null,null,null,null,null,null,null,null,null,null,null,null,"Standard\nField Capacity\nImprovement","Increase in\nField Capacity\n(%)","Standard\nInput Use\nReduction","Decrease in\nInput Use\n(%)","Standard\nYield \nImprovement","Increase in\nYield\n(%)"]
[null,"UserForm","Tractor Selection\nTractor Name","Tractor Name/\nTractor HP","Quantity","Implement\nSize","Use Suggested\nPrice","Purchase\nPrice","Hours at \nPurchase","Estimated\nUL Hours/Years","Estimated\nOperation Years","Calculated Operation Years","RV","Estimated\nSV","Standard\nUse Hours","User Specified\nAnnual Use Hours","Standard\nFuel Use","User-Spec Gallons/Hour",{"$f":"CONCATENATE(\"% \",Inputs!$B$13)","v":"% Cotton"},{"$f":"CONCATENATE(\"% \",Inputs!$B$15)","v":"% Soybean"},{"$f":"CONCATENATE(\"% \",Inputs!$B$17)","v":"% Est. Pasture or Hay"},"% Acres\nper Implement","Standard Tractor\nUse Hours","Tractor Guidance\nSelection",null,null,null,null,null,null,"Acre-Based\nUse Hours","User-Specified\nUse Hours","Rented Fertilizer Spreader"]
[null,"Tractor 1",{"$f":"C130","v":"Tractor 1"},"MFWD 190",1,{"$f":"F130","v":190},true,186000,0,16000,{"$f":"IF((J100-I100)/P100>$A$4,$A$4,(J100-I100)/P100)","v":30},{"$f":"IF(((J100-I100)/P100)>$A$4,$A$4,((J100-I100)/P100))","v":30},{"$f":"((VLOOKUP(D100,$N$5:$Q$15,2,FALSE)-VLOOKUP(D100,$N$5:$Q$15,3,FALSE)*(K100^0.5)-VLOOKUP(D100,$N$5:$Q$15,4,FALSE)*(P100^0.5))^2)","v":8.7710093980029505E-2},{"$f":"K130","v":18796.96},{"$f":"L130","v":false},{"$f":"M130","v":217.97036056624427},null,{"$f":"0.044*F130","v":8.36},null,null,null,null,{"$f":"VLOOKUP(D100,$B$5:$M$15,12,FALSE)","v":600},null,null,null,null,null,null,null,{"$f":"AG130","v":true},false]
[null,"Tractor 2",{"$f":"IF(E130<2,\"No Tractor\",C131)","v":"No Tractor"},{"$f":"D131","v":"MFWD 105"},null,{"$f":"F131","v":105},{"$f":"G131","v":true},77400,0,16000,{"$f":"IF((J101-I101)/P101>$A$4,$A$4,(J101-I101)/P101)","v":{"$error":"#DIV/0!"}},{"$f":"IF(((J101-I101)/P101)>$A$4,$A$4,((J101-I101)/P101))","v":{"$error":"#DIV/0!"}},{"$f":"((VLOOKUP(D101,$N$5:$Q$15,2,FALSE)-VLOOKUP(D101,$N$5:$Q$15,3,FALSE)*(K101^0.5)-VLOOKUP(D101,$N$5:$Q$15,4,FALSE)*(P101^0.5))^2)","v":{"$error":"#DIV/0!"}},12218.48,false,{"$f":"M131","v":0},null,{"$f":"0.044*F131","v":4.62},null,null,null,null,{"$f":"VLOOKUP(D101,$B$5:$M$15,12,FALSE)","v":600},null,null,null,null,null,null,null,true,false]
[null,"Tractor 3",{"$f":"IF(E130<3,\"No Tractor\",C132)","v":"No Tractor"},{"$f":"D132","v":"MFWD 75"},null,75,true,54100,0,16000,{"$error":"#DIV/0!"},{"$error":"#DIV/0!"},{"$f":"((VLOOKUP(D102,$N$5:$Q$15,2,FALSE)-VLOOKUP(D102,$N$5:$Q$15,3,FALSE)*(K102^0.5)-VLOOKUP(D102,$N$5:$Q$15,4,FALSE)*(P102^0.5))^2)","v":{"$error":"#DIV/0!"}},9753.08,false,{"$f":"M132","v":0},null,{"$f":"0.044*F132","v":3.3},null,null,null,null,{"$f":"VLOOKUP(D102,$B$5:$M$15,12,FALSE)","v":600},null,null,null,null,null,null,null,true,false]
[null,"Tractor 4",{"$f":"IF(E130<4,\"No Tractor\",C133)","v":"No Tractor"},{"$f":"D133","v":"MFWD 105"},null,105,true,77400,0,16000,{"$error":"#DIV/0!"},{"$error":"#DIV/0!"},{"$f":"((VLOOKUP(D103,$N$5:$Q$15,2,FALSE)-VLOOKUP(D103,$N$5:$Q$15,3,FALSE)*(K103^0.5)-VLOOKUP(D103,$N$5:$Q$15,4,FALSE)*(P103^0.5))^2)","v":{"$error":"#DIV/0!"}},12218.48,false,{"$f":"M133","v":0},null,{"$f":"0.044*F133","v":4.62},null,null,null,null,{"$f":"VLOOKUP(D103,$B$5:$M$15,12,FALSE)","v":600},null,null,null,null,null,null,null,true,false]
[null,{"$f":"B134","v":"Row Planter"},{"$f":"D134","v":"Tractor 1"},{"$f":"IFERROR(VLOOKUP(C104,$C$100:$F$103,4,FALSE),0)","v":190},{"$f":"E134","v":1},"8R-30",true,41000,0,900,15.94476,15.94476,{"$f":"((VLOOKUP(B104,$B$29:$T$42,16,FALSE)-VLOOKUP(B104,$B$29:$T$42,17,FALSE)*(K104^0.5)-VLOOKUP(B104,$B$29:$T$42,18,FALSE)*(P104^0.5))^2)","v":0.32665689216154176},{"$f":"K134","v":19630.009999999998},false,56.444875934162695,{"$f":"N134","v":true},8.36,50,50,0,{"$f":"IF(P104=0,0,S134)","v":100},null,{"$f":"Z134","v":"Sub-meter Receiver 1"},{"$f":"AA134","v":true},{"$f":"AB134","v":2.21},true,{"$f":"AD134","v":2.35},true,{"$f":"AF134","v":1}]
[null,{"$f":"B135","v":"Row Planter"},"Tractor 1",{"$f":"IFERROR(VLOOKUP(C105,$C$100:$F$103,4,FALSE),0)","v":190},null,"8R-30",true,41000,0,900,{"$error":"#DIV/0!"},{"$error":"#DIV/0!"},{"$error":"#DIV/0!"},19630.009999999998,false,0,true,8.36,0,100,0,{"$f":"IF(P105=0,0,S135)","v":0},null,{"$f":"Z135","v":"Sub-meter Receiver 1"},true,{"$f":"AB135","v":2.21},true,{"$f":"AD135","v":2.35},true,{"$f":"AF135","v":1}]
[null,{"$f":"$B$136","v":"No-Till Grain Drill"},"Tractor 1",190,{"$f":"E136","v":1},12,true,41800,0,1500,30,30,0.2077321314877838,16926.14,false,{"$f":"M136","v":19.218136329964921},true,8.36,33,67,34,50,null,"Sub-meter Receiver 1",true,2.21,true,2.35,true,1]
[null,{"$f":"$B$137","v":"No-Till Grain Drill"},"Tractor 1",190,null,12,true,41800,0,1500,{"$error":"#DIV/0!"},{"$error":"#DIV/0!"},{"$error":"#DIV/0!"},16926.14,false,0,true,8.36,33,67,34,0,null,"Sub-meter Receiver 1",false,4,false,4,false,4]
[null,{"$f":"$B$138","v":"Over-the-Top Sprayer"},"Tractor 1",{"$f":"IFERROR(VLOOKUP(C108,$C$100:$F$103,4,FALSE),0)","v":190},{"$f":"E138","v":2},120,true,76600,0,1500,20.046603481624764,20.046603481624764,0.19892928036481652,31278.76,false,74.825643225543857,true,8.36,33,33,34,50,null,"Sub-meter Receiver 1",true,2.21,true,22.08,true,1]
[null,{"$f":"$B$139","v":"Post-Directed Sprayer"},"Tractor 1",190,null,"8R-30",true,12700,0,1600,30,30,0.11224373476523493,5025.3500000000004,false,24.835745411031581,true,8.36,33,33,34,50,null,"Sub-meter Receiver 1",true,2.21,true,9.1,true,1]
[null,{"$f":"$B$140","v":"Fertilizer Spreader"},"Tractor 1",190,{"$f":"E140","v":1},40,true,11800,0,1200,30,30,0.11224373476523493,{"$f":"K140","v":3680.48},false,24.709032424240611,true,8.36,33.33,33.33,33.340000000000003,100,null,"Sub-meter Receiver 1",true,2.21,true,2.2400000000000002,true,1,null,null,{"$f":"AK140","v":false}]
[null,{"$f":"$B$141","v":"Manure Spreader"},{"$f":"D141","v":"Tractor 1"},{"$f":"IFERROR(VLOOKUP(C111,$C$100:$F$103,4,FALSE),0)","v":190},{"$f":"E141","v":1},15,true,14427.9,0,2000,30,30,0.11224373476523493,2877.58,false,17.936927241300587,{"$f":"N141","v":true},{"$f":"O141","v":8.36},{"$f":"P141","v":0},{"$f":"Q141","v":0},{"$f":"R141","v":100},0,null,{"$f":"Z141","v":"Sub-meter Receiver 1"},true,2.21,true,2.2400000000000002,true,1]
[null,{"$f":"B142","v":"Sub-meter Receiver"},null,null,{"$f":"E142","v":1},null,{"$f":"G142","v":true},{"$f":"H142","v":7962.1},{"$f":"O142","v":1050},{"$f":"J142","v":4},null,null,null,{"$f":"K142","v":0}]
[null,{"$f":"B143","v":"Sub-meter Receiver"},null,null,null,null,{"$f":"G143","v":true},{"$f":"H143","v":7962.1},{"$f":"O143","v":1050},{"$f":"J143","v":4},null,null,null,{"$f":"K143","v":0}]
[]
[]
["Unhide extra rows - Do not insert rows without editing macros",null,null,null,null,null,null,null,"^ Subscription Fee ^"]
[]
[]
[]
[]
[]
[]
[]
[]
[]
[]
[null,null,null,null,null,null,null,null,null,null,null,"See AG130:AH133 for Acre-Based/User Spec userform option button responses -->"]
[null,"UserForm User-specified Values",null,null,null,null,null,null,null,null,null,"SL Depreciation","Annual R&M","Opportunity Cost","Tech Support Fee",null,null,null,null,null,null,null,null,null,null,null,null,null,null,null,null,null,"Used in Machinery userforms and 'AcreBased' macro"]
[null,"UserForm","Tractor Selection\nTractor Name","Tractor Unit\nSize/Name","Quantity","Tractor/Implement\nHP/Size","Use Suggested\nPrice","Purchase\nPrice","Hours at \nPurchase","Estimated\nUL Hours/Years","Estimated\nSV","Standard\nUse Hours","User Specified (Tractors)\n & Acrebased (Equip)\nUse Hours","Suggested \nFuel Use","Gallons \nPer Hour",{"$f":"CONCATENATE(\"% \",Inputs!$B$13)","v":"% Cotton"},{"$f":"CONCATENATE(\"% \",Inputs!$B$15)","v":"% Soybean"},{"$f":"CONCATENATE(\"% \",Inputs!$B$17)","v":"% Est. Pasture or Hay"},"% Acres\nper each Implement",null,null,null,null,"Tractor Match \nError Checking:\nIf ≥ Req'd HP, True","Tractor Match \nError Checking:\nIf ≤ Req'd HP, True","Tractor Guidance\nSelection","Standard\nField Capacity\nImprovement","Increase in\nField Capacity\n(%)","Standard\nInput Use\nReduction","Decrease in\nInput Use\n(%)","Standard\nYield \nImprovement","Increase in\nYield\n(%)","Acre-Based\nUse Hours","User-Specified\nUse Hours","Tractor Guidance\nSelection","Gallons \nPer Hour","Rented Fertilizer Spreader"]
[null,1,"Tractor 1","MFWD 190",1,{"$f":"VLOOKUP(D130,$B$5:$F$15,5,FALSE)","v":190},true,186000,0,16000,18796.96,false,217.97036056624427,null,null,null,null,null,null,null,null,null,null,null,null,null,null,null,null,null,null,null,true,false]
[null,2,"No Tractor","MFWD 105",null,{"$f":"VLOOKUP(D131,$B$5:$F$15,5,FALSE)","v":105},true,77400,0,16000,12218.48,false,0,null,null,null,null,null,null,null,null,null,null,null,null,null,null,null,null,null,null,null,true,false]
[null,3,"No Tractor","MFWD 75",null,{"$f":"VLOOKUP(D132,$B$5:$F$15,5,FALSE)","v":75},true,54100,0,16000,9753.08,false,0,null,null,null,null,null,null,"Allocation Factors",null,null,"User-Specified\nTractor HP",null,null,null,null,null,null,null,null,null,true,false]
[null,4,"No Tractor","MFWD 105",null,{"$f":"VLOOKUP(D133,$B$5:$F$15,5,FALSE)","v":105},true,77400,0,16000,12218.48,false,0,null,null,null,null,null,null,{"$f":"Inputs!$B$13","v":"Cotton"},{"$f":"Inputs!$B$15","v":"Soybean"},{"$f":"Inputs!$B$17","v":"Est. Pasture or Hay"},null,null,null,null,null,null,null,null,null,null,true,false]
[{"$f":"CONCATENATE(B134,\" 1\")","v":"Row Planter 1"},{"$f":"$B$29","v":"Row Planter"},1,"Tractor 1",1,"8R-30",true,41000,0,900,19630.009999999998,false,{"$f":"I207","v":56.444875934162695},true,8.36,50,50,0,100,{"$f":"IF(SUM($S134*P134+$S135*P135)=0,0,$S134*P134/SUM($S134*P134+$S135*P135))","v":1},{"$f":"IF(SUM($S134*Q134+$S135*Q135)=0,0,$S134*Q134/SUM($S134*Q134+$S135*Q135))","v":1},{"$f":"IF(SUM($S134*R134+$S135*R135)=0,0,$S134*R134/SUM($S134*R134+$S135*R135))","v":0},{"$f":"VLOOKUP(C134,$B$130:$F$133,5,FALSE)","v":190},{"$f":"IF($W$134>VLOOKUP($F$134,$C$29:$T$31,18,FALSE),TRUE,FALSE)","v":false},{"$f":"IF($W$134<VLOOKUP($F$134,$C$29:$T$31,18,FALSE),TRUE,FALSE)","v":false},"Sub-meter Receiver 1",true,2.21,true,2.35,true,1,null,null,{"$f":"IF(LEFT(Z134,3)=LEFT($B$60,3),$B$60,$B$61)","v":"Sub-meter Receiver"},{"$f":"0.044*VLOOKUP(D134,$C$130:$F$133,4,FALSE)","v":8.36}]
[{"$f":"CONCATENATE(B135,\" 2\")","v":"Row Planter 2"},{"$f":"$B$29","v":"Row Planter"},1,"Tractor 1",null,"8R-30",true,41000,0,900,19630.009999999998,false,{"$f":"I208","v":0},true,8.36,0,100,0,0,{"$f":"IF(SUM($S134*P134+$S135*P135)=0,0,$S135*P135/SUM($S134*P134+$S135*P135))","v":0},{"$f":"IF(SUM($S134*Q134+$S135*Q135)=0,0,$S135*Q135/SUM($S134*Q134+$S135*Q135))","v":0},{"$f":"IF(SUM($S134*R134+$S135*R135)=0,0,$S135*R135/SUM($S134*R134+$S135*R135))","v":0},190,{"$f":"IF($W$135>VLOOKUP($F$135,$C$29:$T$31,18,FALSE),TRUE,FALSE)","v":false},{"$f":"IF($W$135<VLOOKUP($F$135,$C$29:$T$31,18,FALSE),TRUE,FALSE)","v":false},"Sub-meter Receiver 1",true,2.21,true,2.35,true,1,null,null,{"$f":"IF(LEFT(Z135,3)=LEFT($B$60,3),$B$60,$B$61)","v":"Sub-meter Receiver"},{"$f":"0.044*VLOOKUP(D135,$C$130:$F$133,4,FALSE)","v":8.36}]
[{"$f":"CONCATENATE(B136,\" 1\")","v":"No-Till Grain Drill 1"},"No-Till Grain Drill",1,"Tractor 1",1,12,true,41800,0,1500,16926.14,false,{"$f":"I209","v":19.218136329964921},true,8.36,33,67,34,50,{"$f":"IF(SUM($S136*P136+$S137*P137)=0,0,$S136*P136/SUM($S136*P136+$S137*P137))","v":0.5},{"$f":"IF(SUM($S136*Q136+$S137*Q137)=0,0,$S136*Q136/SUM($S136*Q136+$S137*Q137))","v":0.5},{"$f":"IF(SUM($S136*R136+$S137*R137)=0,0,$S136*R136/SUM($S136*R136+$S137*R137))","v":0.5},190,{"$f":"IF(B136=B32,IF($W$136>VLOOKUP(F136,C32:T33,18,FALSE),TRUE,FALSE),IF(B136=B34,IF($W$136>VLOOKUP(F136,C34:T35,18,FALSE),TRUE,FALSE)))","v":true},{"$f":"IF($W$136<VLOOKUP($B$136,$B$32:$T$35,19,FALSE),TRUE,FALSE)","v":false},"Sub-meter Receiver 1",true,2.21,true,2.35,true,1,null,null,"Sub-meter Receiver",8.36]
[{"$f":"CONCATENATE(B137,\" 2\")","v":"No-Till Grain Drill 2"},"No-Till Grain Drill",1,"Tractor 1",null,12,true,41800,0,1500,16926.14,false,0,true,8.36,33,67,34,50,{"$f":"IF(SUM($S136*P136+$S137*P137)=0,0,$S137*P137/SUM($S136*P136+$S137*P137))","v":0.5},{"$f":"IF(SUM($S136*Q136+$S137*Q137)=0,0,$S137*Q137/SUM($S136*Q136+$S137*Q137))","v":0.5},{"$f":"IF(SUM($S136*R136+$S137*R137)=0,0,$S137*R137/SUM($S136*R136+$S137*R137))","v":0.5},190,{"$f":"IF(B137=B32,IF($W$136>VLOOKUP(F137,C32:T33,18,FALSE),TRUE,FALSE),IF(B137=B34,IF($W$137>VLOOKUP(F137,C34:T35,18,FALSE),TRUE,FALSE)))","v":true},{"$f":"IF($W$137<VLOOKUP($B$137,$B$32:$T$35,19,FALSE),TRUE,FALSE)","v":false},"Sub-meter Receiver 1",false,4,false,4,false,4,null,null,"Sub-meter Receiver",8.36]
[{"$f":"CONCATENATE(B138,\" 1\")","v":"Over-the-Top Sprayer 1"},"Over-the-Top Sprayer",1,"Tractor 1",2,120,true,76600,0,1500,31278.76,false,74.825643225543857,true,8.36,33,33,34,50,{"$f":"IF(SUM($S138*P138+$S139*P139)=0,0,$S138*P138/SUM($S138*P138+$S139*P139))","v":0.5},{"$f":"IF(SUM($S138*Q138+$S139*Q139)=0,0,$S138*Q138/SUM($S138*Q138+$S139*Q139))","v":0.5},{"$f":"IF(SUM($S138*R138+$S139*R139)=0,0,$S138*R138/SUM($S138*R138+$S139*R139))","v":0.5},190,{"$f":"IF(B138=B36,IF($W$138>VLOOKUP(F138,C36:T38,18,FALSE),TRUE,FALSE),IF(B138=B39,IF($W$138>VLOOKUP(F138,C39:T40,18,FALSE),TRUE,FALSE)))","v":false},{"$f":"IF($W$138<VLOOKUP($F$138,$C$36:$T$38,18,FALSE),TRUE,FALSE)","v":true},"Sub-meter Receiver 1",true,2.21,true,22.08,true,1,null,null,"Sub-meter Receiver",8.36]
[{"$f":"CONCATENATE(B139,\" 2\")","v":"Post-Directed Sprayer 2"},"Post-Directed Sprayer",1,"Tractor 1",null,"8R-30",true,12700,0,1600,5025.3500000000004,false,24.835745411031581,true,8.36,33,33,34,50,{"$f":"IF(SUM($S138*P138+$S139*P139)=0,0,$S139*P139/SUM($S138*P138+$S139*P139))","v":0.5},{"$f":"IF(SUM($S138*Q138+$S139*Q139)=0,0,$S139*Q139/SUM($S138*Q138+$S139*Q139))","v":0.5},{"$f":"IF(SUM($S138*R138+$S139*R139)=0,0,$S139*R139/SUM($S138*R138+$S139*R139))","v":0.5},190,{"$f":"IF(B139=B36,IF($W$139>VLOOKUP(F139,C36:T38,18,FALSE),TRUE,FALSE),IF(B139=B39,IF($W$139>VLOOKUP(F139,C39:T40,18,FALSE),TRUE,FALSE)))","v":true},{"$f":"IF(B139=B36,IF($W$139<VLOOKUP(F139,C36:T38,18,FALSE),TRUE,FALSE),IF(B139=B39,IF($W$139<VLOOKUP(F139,C39:T40,18,FALSE),TRUE,FALSE)))","v":false},"Sub-meter Receiver 1",true,2.21,true,9.1,true,1,null,null,"Sub-meter Receiver",8.36]
[null,{"$f":"$B$41","v":"Fertilizer Spreader"},1,"Tractor 1",1,{"$f":"C41","v":40},true,11800,0,1200,3680.48,false,24.709032424240611,true,8.36,{"$f":"IF(Inputs!$AG$11=3,33.33,IF(Inputs!$AG$11=2,50,IF(Inputs!$AG$11=1,100)))","v":33.33},{"$f":"IF(Inputs!$AG$11=3,33.33,IF(Inputs!$AG$11=2,50,IF(Inputs!$AG$11=1,0)))","v":33.33},{"$f":"IF(Inputs!$AG$11=3,33.34,IF(Inputs!$AG$11=2,0,IF(Inputs!$AG$11=1,100)))","v":33.340000000000003},100,{"$f":"P140/100","v":0.33329999999999999},{"$f":"Q140/100","v":0.33329999999999999},{"$f":"R140/100","v":0.33340000000000003},190,{"$f":"IF($W$140>T41,TRUE,FALSE)","v":true},{"$f":"IF($W$140<T41,TRUE,FALSE)","v":false},"Sub-meter Receiver 1",true,2.21,true,2.2400000000000002,true,1,null,null,"Sub-meter Receiver",{"$f":"0.044*VLOOKUP(D140,$C$130:$F$133,4,FALSE)","v":8.36},false]
[{"$f":"CONCATENATE(B141,\" 1\")","v":"Manure Spreader 1"},"Manure Spreader",1,"Tractor 1",1,{"$f":"IF(B141=B41,C41,IF(B141=B42,C42,C43))","v":15},true,14427.9,0,2000,2877.58,false,{"$f":"I214","v":17.936927241300587},true,8.36,{"$f":"IF(Inputs!$B$13=Defaults!$M$12,IF(Inputs!$AI$11=3,33.33,IF(Inputs!$AI$11=2,50,IF(Inputs!$AI$11=1,100))),0)","v":0},{"$f":"IF(Inputs!$B$15=Defaults!$M$12,IF(Inputs!$AI$11=3,33.33,IF(Inputs!$AI$11=2,50,IF(Inputs!$AI$11=1,100))),0)","v":0},{"$f":"IF(Inputs!$B$17=Defaults!$M$12,IF(Inputs!$AI$11=3,33.33,IF(Inputs!$AI$11=2,50,IF(Inputs!$AI$11=1,100))),0)","v":100},0,{"$f":"IF(Inputs!$B$13=Defaults!$M$12,P141/100,0)","v":0},{"$f":"IF(Inputs!$B$15=Defaults!$M$12,Q141/100,0)","v":0},{"$f":"IF(Inputs!$B$17=Defaults!$M$12,R141/100,0)","v":1},{"$f":"VLOOKUP(C141,$B$130:$F$133,5,FALSE)","v":190},{"$f":"IF($W$141>VLOOKUP($B$141,$B$42:$T$43,19,FALSE),TRUE,FALSE)","v":true},{"$f":"IF($W$141<VLOOKUP($B$141,$B$42:$T$43,19,FALSE),TRUE,FALSE)","v":false},"Sub-meter Receiver 1",true,2.21,true,2.2400000000000002,true,1,null,null,"Sub-meter Receiver",8.36]
[null,"Sub-meter Receiver",{"$f":"CONCATENATE(B142,\" 1\")","v":"Sub-meter Receiver 1"},null,1,null,true,7962.1,null,4,0,{"$f":"H142/J142","v":1990.5250000000001},{"$f":"(E60*H142)/J142","v":0},{"$f":"(H142+K142)/2*Inputs!$V$19","v":238.863},1050]
[null,"Sub-meter Receiver",{"$f":"CONCATENATE(B143,\" 2\")","v":"Sub-meter Receiver 2"},null,null,null,true,7962.1,null,4,0,{"$f":"H143/J143","v":1990.5250000000001},{"$f":"(E61*H143)/J143","v":0},{"$f":"(H143+K143)/2*Inputs!$V$19","v":238.863},1050]
[null,null,null,null,null,null,null,null,null,null,null,"SL Depreciation","Annual R&M","Opportunity Cost","Subscription Fee"]
[]
[]
[]
[]
["Machinery Calculations"]
[]
[null,"Tractor","Tractor Size","Tractor Name","User Specified PP","Standard PP","Hrs at Purchase","Tractor","PP","Size","Avg Price","Est. UL Hours","Est. UL Years","Exp. Op Hrs/Yr","RV","Standard SV","Standard Use Hrs"]
[null,1,{"$f":"D130","v":"MFWD 190"},{"$f":"$C$130","v":"Tractor 1"},{"$f":"H130","v":186000},{"$f":"VLOOKUP(C152,$B$5:$C$15,2,FALSE)","v":186000},{"$f":"I130","v":0},{"$f":"C152","v":"MFWD 190"},{"$f":"IF(E152>0,K152,F152)","v":186000},{"$f":"VLOOKUP(C152,$B$5:$M$15,6,FALSE)","v":16000},{"$f":"IF(G100=TRUE,F152,H100)","v":186000},{"$f":"VLOOKUP(C152,$B$5:$M$15,6,FALSE)","v":16000},{"$f":"L152/Q152","v":26.666666666666668},{"$f":"(L152-0)/Q152","v":26.666666666666668},{"$f":"(VLOOKUP(C152,$N$5:$Q$15,2,FALSE)-VLOOKUP(C152,$N$5:$Q$15,3,FALSE)*M152^0.5-VLOOKUP(C152,$N$5:$Q$15,4,FALSE)^0.5)^2","v":0.10105891776151378},{"$f":"F152*O152","v":18796.958703641561},{"$f":"VLOOKUP(C152,$B$5:$M$15,12,FALSE)","v":600}]
[null,2,{"$f":"IF(E130<2,0,D131)","v":0},{"$f":"IF(E130<2,\"No Tractor\",$C$131)","v":"No Tractor"},{"$f":"IF(E130<2,0,H131)","v":0},{"$f":"VLOOKUP(C153,$B$5:$C$15,2,FALSE)","v":{"$error":"#N/A"}},{"$f":"IF(E130<2,0,I131)","v":0},{"$f":"IF(E130<2,0,C153)","v":0},{"$f":"IF(E130<2,0,IF(E153>0,K153,F153))","v":0},{"$f":"VLOOKUP(C153,$B$5:$M$15,6,FALSE)","v":{"$error":"#N/A"}},{"$f":"IF(G101=TRUE,F153,H101)","v":{"$error":"#N/A"}},{"$f":"VLOOKUP(C153,$B$5:$M$15,6,FALSE)","v":{"$error":"#N/A"}},{"$f":"IF(E130<2,0,L153/Q153)","v":0},{"$f":"IF(E130<2,0,(L153-0)/Q153)","v":0},{"$f":"(VLOOKUP(C153,$N$5:$Q$15,2,FALSE)-VLOOKUP(C153,$N$5:$Q$15,3,FALSE)*M153^0.5-VLOOKUP(C153,$N$5:$Q$15,4,FALSE)^0.5)^2","v":{"$error":"#N/A"}},{"$f":"F153*O153","v":{"$error":"#N/A"}},{"$f":"VLOOKUP(C153,$B$5:$M$15,12,FALSE)","v":{"$error":"#N/A"}}]
[null,3,{"$f":"IF(E130<3,0,D132)","v":0},{"$f":"IF(E130<3,\"No Tractor\",$C$132)","v":"No Tractor"},{"$f":"IF(E130<3,0,H132)","v":0},{"$f":"VLOOKUP(C154,$B$5:$C$15,2,FALSE)","v":{"$error":"#N/A"}},{"$f":"IF(E130<3,0,I132)","v":0},{"$f":"IF(E130<3,0,C154)","v":0},{"$f":"IF(E130<3,0,IF(E154>0,K154,F154))","v":0},{"$f":"VLOOKUP(C154,$B$5:$M$15,6,FALSE)","v":{"$error":"#N/A"}},{"$f":"IF(G102=TRUE,F154,H102)","v":{"$error":"#N/A"}},{"$f":"VLOOKUP(C154,$B$5:$M$15,6,FALSE)","v":{"$error":"#N/A"}},{"$f":"IF(E130<3,0,L154/Q154)","v":0},{"$f":"IF(E130<3,0,(L154-0)/Q154)","v":0},{"$f":"(VLOOKUP(C154,$N$5:$Q$15,2,FALSE)-VLOOKUP(C154,$N$5:$Q$15,3,FALSE)*M154^0.5-VLOOKUP(C154,$N$5:$Q$15,4,FALSE)^0.5)^2","v":{"$error":"#N/A"}},{"$f":"F154*O154","v":{"$error":"#N/A"}},{"$f":"VLOOKUP(C154,$B$5:$M$15,12,FALSE)","v":{"$error":"#N/A"}}]
[null,4,{"$f":"IF(E130<4,0,D133)","v":0},{"$f":"IF(E130<4,\"No Tractor\",$C$133)","v":"No Tractor"},{"$f":"IF(E130<4,0,H133)","v":0},{"$f":"VLOOKUP(C155,$B$5:$C$15,2,FALSE)","v":{"$error":"#N/A"}},{"$f":"IF(E130<4,0,I133)","v":0},{"$f":"IF(E130<4,0,C155)","v":0},{"$f":"IF(E130<4,0,IF(E155>0,K155,F155))","v":0},{"$f":"VLOOKUP(C155,$B$5:$M$15,6,FALSE)","v":{"$error":"#N/A"}},{"$f":"IF(G103=TRUE,F155,H103)","v":{"$error":"#N/A"}},{"$f":"VLOOKUP(C155,$B$5:$M$15,6,FALSE)","v":{"$error":"#N/A"}},{"$f":"IF(E130<4,0,L155/Q155)","v":0},{"$f":"IF(E130<4,0,(L155-0)/Q155)","v":0},{"$f":"(VLOOKUP(C155,$N$5:$Q$15,2,FALSE)-VLOOKUP(C155,$N$5:$Q$15,3,FALSE)*M155^0.5-VLOOKUP(C155,$N$5:$Q$15,4,FALSE)^0.5)^2","v":{"$error":"#N/A"}},{"$f":"F155*O155","v":{"$error":"#N/A"}},{"$f":"VLOOKUP(C155,$B$5:$M$15,12,FALSE)","v":{"$error":"#N/A"}}]
[]
[null,"Precision Ag Technology Calculations"]
[null,"Tractor Guidance \nSelection","Factor\nIncrease in\nField Speed","Factor\nDecrease in\nInput Use","Factor\nIncrease in\nYield for Crop 1","Factor\nIncrease in\nYield for Crop 2","Factor\nIncrease in\nYield for Crop 3"]
[{"$f":"A134","v":"Row Planter 1"},{"$f":"Z134","v":"Sub-meter Receiver 1"},{"$f":"ROUND(AB134/100,4)","v":2.2100000000000002E-2},{"$f":"ROUND(AD134/100,4)","v":2.35E-2},{"$f":"ROUND(AF134/100,4)*IF(COUNTIF($C$193:$C$201,A159),1,0)","v":0.01},{"$f":"ROUND(AF134/100,4)*IF(COUNTIF($D$193:$D$201,A159),1,0)","v":0.01},{"$f":"ROUND(AF134/100,4)*IF(COUNTIF($E$193:$E$201,A159),1,0)","v":0}]
["Row Planter 2",{"$f":"Z135","v":"Sub-meter Receiver 1"},2.2100000000000002E-2,2.35E-2,{"$f":"ROUND(AF135/100,4)*IF(COUNTIF($C$193:$C$201,A160),1,0)","v":0},{"$f":"ROUND(AF135/100,4)*IF(COUNTIF($D$193:$D$201,A160),1,0)","v":0},{"$f":"ROUND(AF135/100,4)*IF(COUNTIF($E$193:$E$201,A160),1,0)","v":0}]
["No-Till Grain Drill 1",{"$f":"Z136","v":"Sub-meter Receiver 1"},2.2100000000000002E-2,2.35E-2,{"$f":"ROUND(AF136/100,4)*IF(COUNTIF($C$193:$C$201,A161),1,0)","v":0},0,0.01]
["No-Till Grain Drill 2","Sub-meter Receiver 1",0.04,0.04,0,0,{"$f":"ROUND(AF137/100,4)*IF(COUNTIF($E$193:$E$201,A162),1,0)","v":0}]
["Over-the-Top Sprayer 1","Sub-meter Receiver 1",2.2100000000000002E-2,0.2208,0.01,0.01,0.01]
["Post-Directed Sprayer 2","Sub-meter Receiver 1",2.2100000000000002E-2,9.0999999999999998E-2,0.01,0,0]
[{"$f":"B140","v":"Fertilizer Spreader"},"Sub-meter Receiver 1",2.2100000000000002E-2,2.24E-2,0.01,0.01,0.01]
[{"$f":"B141","v":"Manure Spreader"},"Sub-meter Receiver 1",2.2100000000000002E-2,2.24E-2,0,0,0.01]
[]
[null,null,"Implement Specifications and Calculations with Tractor Guidance",null,null,null,null,null,null,"Tractor Specifications and Calculations",null,null,null,null,null,null,null,null,null,"Implement Calculations with Tractor Guidance",null,null,null,null,null,null,null,null,null,null,null,null,null,"Tractor Calculations",null,null,"User Budget Totals with Tractor Guidance",null,null,null,"Totals For Machinery Tab",null,null,null,"Tractor Capital Recovery ($/hr)",null,null,null,"Tractor Wtd. Avg. Operating Cost ($/hr)",null,null,null,{"$f":"CONCATENATE(Inputs!$B$13,\" Annual Use Hours\")","v":"Cotton Annual Use Hours"},null,null,null,{"$f":"CONCATENATE(Inputs!$B$15,\" Annual Use Hours\")","v":"Soybean Annual Use Hours"},null,null,null,{"$f":"CONCATENATE(Inputs!$B$17,\" Annual Use Hours\")","v":"Est. Pasture or Hay Annual Use Hours"}]
["Implement Specifications and Calculations with Tractor Guidance","Implement","Implement\n Size (width)","User\nImplement\nPP ($)","User\nImplement\nHours at Purchase","User\nImplement\nHours @ Salvage","User\nImplement\nSalvage Value ($)","User Spec.\nImplement\nUse Hours","Calculated\nUser Implement\nOperation Years","User Tractor\nSelection","User Tractor \nUnit Size","Tractor HP","User\nTractor\nPP ($)","User Tractor\nHours at Purchase","User\nTractor\nHours @ Salvage","User\nTractor\nSalvage Value ($)","User Specified\nTractor\nUse Hours","Calculated\nUser Tractor\nOperation Years","User\nFuel Use\nUse (gal/hr)","Implement\nField Efficiency (%)","Adj. Implement\nField Speed (mph)","Implement\nHours/Acre","Implement\nAcres/Hour\n(APH)","Implement",{"$f":"Inputs!$B$13","v":"Cotton"},{"$f":"Inputs!$B$15","v":"Soybean"},{"$f":"Inputs!$B$17","v":"Est. Pasture or Hay"},{"$f":"CONCATENATE(Inputs!$B$13,\"\nUser\nAnnual Use\")","v":"Cotton\nUser\nAnnual Use"},{"$f":"CONCATENATE(Inputs!$B$15,\"\nUser\nAnnual Use\")","v":"Soybean\nUser\nAnnual Use"},{"$f":"CONCATENATE(Inputs!$B$17,\"\nUser\nAnnual Use\")","v":"Est. Pasture or Hay\nUser\nAnnual Use"},"Labor Hours","User Implement\nCapital Recovery ($/hr)","\nImplement \nR&M ($/hr)","Tractor\nLabor (hrs)","User \nTractor Capital\nRecovery ($/hr)","\nTractor \nR&M ($/hr)","Labor\n(acres/hr)","Fuel\n(gal/hr)","R&M\n($/hr)","Capital\nRecovery\n($/hr)","Labor Costs\n($/hr)","Fuel Costs\n($/hr)","R&M ($/hr)","Capital\nRecovery ($/hr)",{"$f":"$C$130","v":"Tractor 1"},{"$f":"IF(E130<2,0,$C$131)","v":0},{"$f":"IF(E130<3,0,$C$132)","v":0},{"$f":"IF(E130<4,0,$C$133)","v":0},{"$f":"$C$130","v":"Tractor 1"},{"$f":"IF(E130<2,0,$C$131)","v":0},{"$f":"IF(E130<3,0,$C$132)","v":0},{"$f":"IF(E130<4,0,$C$133)","v":0},{"$f":"$C$130","v":"Tractor 1"},{"$f":"IF(E130<2,0,$C$131)","v":0},{"$f":"IF(E130<3,0,$C$132)","v":0},{"$f":"IF(E130<4,0,$C$133)","v":0},{"$f":"$C$130","v":"Tractor 1"},{"$f":"IF(E130<2,0,$C$131)","v":0},{"$f":"IF(E130<3,0,$C$132)","v":0},{"$f":"IF(E130<4,0,$C$133)","v":0},{"$f":"$C$130","v":"Tractor 1"},{"$f":"IF(E130<2,0,$C$131)","v":0},{"$f":"IF(E130<3,0,$C$132)","v":0},{"$f":"IF(E130<4,0,$C$133)","v":0}]
[{"$f":"F134","v":"8R-30"},{"$f":"CONCATENATE($B$134,\" 1\")","v":"Row Planter 1"},{"$f":"IF(A170=C29,A29,IF(A170=C30,A30,IF(A170=C31,A31)))","v":20},{"$f":"H134","v":41000},{"$f":"I134","v":0},{"$f":"$J134","v":900},{"$f":"IF(K134>$D170,0,K134)","v":19630.009999999998},{"$f":"M134","v":56.444875934162695},{"$f":"IFERROR(IF((F170-E170)/H170>$A$4,$A$4,(F170-E170)/H170),0)","v":15.94476},{"$f":"IF(C134=1,C100,IF(C134=2,C101,IF(C134=3,C102,IF(C134=4,C103,FALSE))))","v":"Tractor 1"},{"$f":"IF(J170=\"No Tractor\",0,VLOOKUP($J170,$C$130:$D$133,2,FALSE))","v":"MFWD 190"},{"$f":"IF(J170=\"No Tractor\",0,VLOOKUP($J170,$C$130:$F$133,4,FALSE))","v":190},{"$f":"IF(J170=\"No Tractor\",0,VLOOKUP($J170,$C$100:$H$103,6,FALSE))","v":186000},{"$f":"IF(J170=\"No Tractor\",0,VLOOKUP($J170,$C$130:$I$133,7,FALSE))","v":0},{"$f":"IF(J170=\"No Tractor\",0,VLOOKUP($J170,$C$130:$J$133,8,FALSE))","v":16000},{"$f":"IF(J170=\"No Tractor\",0,VLOOKUP($J170,$C$130:$K$133,9,FALSE))","v":18796.96},{"$f":"IF(J170=\"No Tractor\",0,VLOOKUP($J170,$C$100:$P$103,14,FALSE))","v":217.97036056624427},{"$f":"IF(J170=\"No Tractor\",0,IF(J170=\"N/A\",0,IF((O170-N170)/Q170>$A$4,$A$4,(O170-N170)/Q170)))","v":30},{"$f":"IF(J170=\"No Tractor\",0,$O134)","v":8.36},{"$f":"VLOOKUP($B134,$B$29:$O$43,14,FALSE)","v":0.65},{"$f":"VLOOKUP($B134,$B$29:$P$43,15,FALSE)*(1+C159)","v":5.62155},{"$f":"(1/((5280/43560)*U170*C170*T170))","v":0.11288975186832539},{"$f":"1/V170","v":8.8582000000000001},{"$f":"B170","v":"Row Planter 1"},{"$f":"IF($Y$169=0,0,IF(AND($X$170='Crop 1'!$C$31,'Crop 1'!$V$31>0),1*'Crop 1'!$V$31,0))","v":1},{"$f":"IF($Z$169=0,0,IF(AND($X$170='Crop 2'!$C$31,'Crop 2'!$V$31>0),1*'Crop 2'!$V$31,0))","v":1},{"$f":"IF($AA$169=0,0,IF(AND($X$170='Crop 3'!$C$31,'Crop 3'!$V$31>0),1*'Crop 3'!$V$31,0))","v":0},{"$f":"IF(Y170>0,$V170*Inputs!$D$13,0)","v":33.86692556049762},{"$f":"IF(Z170>0,$V170*Inputs!$D$15,0)","v":22.577950373665079},{"$f":"IF(AA170>0,$V170*Inputs!$D$17,0)","v":0},{"$f":"V170","v":0.11288975186832539},{"$f":"IFERROR(((($D170-$G170)*(Inputs!$V$19/(1-((1+Inputs!$V$19)^(-$I170))))+(($G170*Inputs!$V$19)))/H170),0)","v":58.408173001512239},{"$f":"N29*$D170/($F170-$E170)","v":34.166666666666664},{"$f":"IF(J170=\"No Tractor\",0,V170)","v":0.11288975186832539},{"$f":"IF(J170=\"No Tractor\",0,((($M170-$P170)*(Inputs!$V$19/(1-((1+Inputs!$V$19)^(-$R170))))+(($P170*Inputs!$V$19)))/(Q170)))","v":60.902484261351596},{"$f":"IF(J170=\"No Tractor\",0,(VLOOKUP($K170,$N$5:$R$15,5,FALSE)*$M170)/($O170-$N170))","v":9.3000000000000007},{"$f":"W170","v":8.8582000000000001},{"$f":"$S170","v":8.36},{"$f":"($AG170+$AJ170)","v":43.466666666666669},{"$f":"($AF170+$AI170)","v":119.31065726286383},{"$f":"Inputs!$AA$13+Inputs!$AA$15*(Defaults!$N$27-1)","v":17.670000000000002},{"$f":"S170*Inputs!$V$13","v":14.629999999999999},{"$f":"AM170","v":43.466666666666669},{"$f":"($AF170+$AI170)","v":119.31065726286383},{"$f":"IF($J170=AS$169,$AI170,0)","v":60.902484261351596},0,0,0,{"$f":"IF($J170=AW$169,SUM(($AH170*Inputs!$AA$13)+$AJ170+($S170*Inputs!$V$13)),0)","v":25.413371339549798},{"$f":"IF($J170=AX$169,SUM(($AH170*Inputs!$AA$13)+$AJ170+($S170*Inputs!$V$13)),0)","v":0},{"$f":"IF($J170=AY$169,SUM(($AH170*Inputs!$AA$13)+$AJ170+($S170*Inputs!$V$13)),0)","v":0},{"$f":"IF($J170=AZ$169,SUM(($AH170*Inputs!$AA$13)+$AJ170+($S170*Inputs!$V$13)),0)","v":0},{"$f":"IF($J170=BA$169,$AB170,0)","v":33.86692556049762},0,0,0,{"$f":"IF($J170=BE$169,$AC170,0)","v":22.577950373665079},0,0,0,{"$f":"IF($J170=BI$169,$AD170,0)","v":0},0,0,0]
[{"$f":"F135","v":"8R-30"},{"$f":"CONCATENATE($B$135,\" 2\")","v":"Row Planter 2"},{"$f":"IF($E$134=2,IF(A171=C29,A29,IF(A171=C30,A30,IF(A171=C31,A31))),0)","v":0},{"$f":"IF($E134=2,$H135,0)","v":0},{"$f":"IF(E134=2,I135,0)","v":0},{"$f":"IF($E134=2,$J135,0)","v":0},{"$f":"IF(E134=2,IF(K135>$D171,0,K135),0)","v":0},{"$f":"IF(E134=2,M135,0)","v":0},{"$f":"IFERROR(IF((F171-E171)/H171>$A$4,$A$4,(F171-E171)/H171),0)","v":0},{"$f":"IF(C135=1,C100,IF(C135=2,C101,IF(C135=3,C102,IF(C135=4,C103,FALSE))))","v":"Tractor 1"},{"$f":"IF(J171=\"No Tractor\",0,IF($E$134=2,VLOOKUP($J171,$C$130:$D$133,2,FALSE),0))","v":0},{"$f":"IF(J171=\"No Tractor\",0,IF($E$134=2,VLOOKUP($J171,$C$130:$F$133,4,FALSE),0))","v":0},{"$f":"IF(J171=\"No Tractor\",0,IF($E$134=2,VLOOKUP($J171,$C$100:$H$103,6,FALSE),0))","v":0},{"$f":"IF(J171=\"No Tractor\",0,IF($E$134=2,VLOOKUP($J171,$C$130:$I$133,7,FALSE),0))","v":0},{"$f":"IF(J171=\"No Tractor\",0,IF(E134=2,VLOOKUP($J171,$C$130:$J$133,8,FALSE),0))","v":0},{"$f":"IF(J171=\"No Tractor\",0,IF($E134=2,VLOOKUP($J171,$C$130:$K$133,9,FALSE),0))","v":0},{"$f":"IF(J171=\"No Tractor\",0,IF($E134=2,VLOOKUP($J171,$C$100:$P$103,14,FALSE),0))","v":0},{"$f":"IF(J171=\"No Tractor\",0,IF(J171=\"N/A\",0,IF($E134=2,IF((O171-N171)/Q171>$A$4,$A$4,(O171-N171)/Q171),0)))","v":0},{"$f":"IF(J171=\"No Tractor\",0,IF($E134=2,$O135,0))","v":0},{"$f":"IF($E$134=2,VLOOKUP($B135,$B$29:$O$43,14,FALSE),0)","v":0},{"$f":"IF($E$134=2,VLOOKUP($B135,$B$29:$P$43,15,FALSE)*(1+C160),0)","v":0},{"$f":"IF(E134=2,(1/((5280/43560)*U171*C171*T171)),0)","v":0},{"$f":"IF($E$134=2,1/V171,0)","v":0},"Row Planter 2",{"$f":"IF($Y$169=0,0,IF($E$134=2,IF(AND($X$171='Crop 1'!$C$31,'Crop 1'!$V$31>0),1*'Crop 1'!$V$31,0)))","v":false},{"$f":"IF($Z$169=0,0,IF($E$134=2,IF(AND($X$171='Crop 2'!$C$31,'Crop 2'!$V$31>0),1*'Crop 2'!$V$31,0)))","v":false},{"$f":"IF($AA$169=0,0,IF($E$134=2,IF(AND($X$171='Crop 3'!$C$31,'Crop 3'!$V$31>0),1*'Crop 3'!$V$31,0)))","v":false},{"$f":"IF($E$134=2,IF(Y171>0,$V171*Inputs!$D$13,0),0)","v":0},{"$f":"IF($E$134=2,IF(Z171>0,$V171*Inputs!$D$15,0),0)","v":0},{"$f":"IF($E$134=2,IF(AA171>0,$V171*Inputs!$D$17,0),0)","v":0},0,{"$f":"IFERROR(((($D171-$G171)*(Inputs!$V$19/(1-((1+Inputs!$V$19)^(-$I171))))+(($G171*Inputs!$V$19)))/H171),0)","v":0},{"$f":"IF(E134=2,N29*$D171/($F171-$E171),0)","v":0},{"$f":"IF(J171=\"No Tractor\",0,IF(E134=2,V171,0))","v":0},{"$f":"IF(J171=\"No Tractor\",0,IF($E134=2,((($M171-$P171)*(Inputs!$V$19/(1-((1+Inputs!$V$19)^(-$R171))))+(($P171*Inputs!$V$19)))/(Q171)),0))","v":0},{"$f":"IF(J171=\"No Tractor\",0,IF(E134=2,(VLOOKUP($K171,$N$5:$R$15,5,FALSE)*$M171)/($O171-$N171),0))","v":0},{"$f":"IF($E$134=2,W171,0)","v":0},{"$f":"IF($E$134=2,$S171,0)","v":0},{"$f":"IF($E$134=2,($AG171+$AJ171),0)","v":0},{"$f":"IF($E$134=2,($AF171+$AI171),0)","v":0},{"$f":"IF($E$134=2,Inputs!$AA$13+Inputs!$AA$15*(Defaults!$N$27-1),0)","v":0},{"$f":"S171*Inputs!$V$13","v":0},{"$f":"AM171","v":0},{"$f":"IF($E$134=2,($AF171+$AI171),0)","v":0},0,0,0,0,{"$f":"IF($J171=AW$169,SUM(($AH171*Inputs!$AA$13)+$AJ171+($S171*Inputs!$V$13)),0)","v":0},{"$f":"IF($J171=AX$169,SUM(($AH171*Inputs!$AA$13)+$AJ171+($S171*Inputs!$V$13)),0)","v":0},{"$f":"IF($J171=AY$169,SUM(($AH171*Inputs!$AA$13)+$AJ171+($S171*Inputs!$V$13)),0)","v":0},{"$f":"IF($J171=AZ$169,SUM(($AH171*Inputs!$AA$13)+$AJ171+($S171*Inputs!$V$13)),0)","v":0},0,0,0,0,0,0,0,0,0,0,0,0]
[null,{"$f":"CONCATENATE($B$136,\" 1\")","v":"No-Till Grain Drill 1"},{"$f":"F136","v":12},{"$f":"H136","v":41800},{"$f":"I136","v":0},{"$f":"$J136","v":1500},{"$f":"IF(K136>$D172,0,K136)","v":16926.14},{"$f":"M136","v":19.218136329964921},30,{"$f":"IF(C136=1,C100,IF(C136=2,C101,IF(C136=3,C102,IF(C136=4,C103,FALSE))))","v":"Tractor 1"},{"$f":"IF(J172=\"No Tractor\",0,VLOOKUP($J172,$C$130:$D$133,2,FALSE))","v":"MFWD 190"},{"$f":"IF(J172=\"No Tractor\",0,VLOOKUP($J172,$C$130:$F$133,4,FALSE))","v":190},{"$f":"IF(J172=\"No Tractor\",0,VLOOKUP($J172,$C$100:$H$103,6,FALSE))","v":186000},{"$f":"IF(J172=\"No Tractor\",0,VLOOKUP($J172,$C$130:$I$133,7,FALSE))","v":0},{"$f":"IF(J172=\"No Tractor\",0,VLOOKUP($J172,$C$130:$J$133,8,FALSE))","v":16000},{"$f":"IF(J172=\"No Tractor\",0,VLOOKUP($J172,$C$130:$K$133,9,FALSE))","v":18796.96},{"$f":"IF(J172=\"No Tractor\",0,VLOOKUP($J172,$C$100:$P$103,14,FALSE))","v":217.97036056624427},{"$f":"IF(J172=\"No Tractor\",0,IF(J172=\"N/A\",0,IF((O172-N172)/Q172>$A$4,$A$4,(O172-N172)/Q172)))","v":30},{"$f":"IF(J172=\"No Tractor\",0,$O136)","v":8.36},{"$f":"VLOOKUP($B136,$B$29:$O$43,14,FALSE)","v":0.7},{"$f":"VLOOKUP($B136,$B$29:$P$43,15,FALSE)*(1+C161)","v":5.1105},{"$f":"(1/((5280/43560)*U172*C172*T172))","v":0.19218136329964919},{"$f":"1/V172","v":5.2034181818181819},"No-Till Grain Drill 1",{"$f":"IF($Y$169=0,0,IF(AND($X$172='Crop 1'!$C$31,'Crop 1'!$V$31>0),1*'Crop 1'!$V$31,0))","v":0},{"$f":"IF($Z$169=0,0,IF(AND($X$172='Crop 2'!$C$31,'Crop 2'!$V$31>0),1*'Crop 2'!$V$31,0))","v":0},{"$f":"IF($AA$169=0,0,IF(AND($X$172='Crop 3'!$C$31,'Crop 3'!$V$31>0),1*'Crop 3'!$V$31,0))","v":1},{"$f":"IF(Y172>0,$V172*Inputs!$D$13,0)","v":0},{"$f":"IF(Z172>0,$V172*Inputs!$D$15,0)","v":0},{"$f":"IF(AA172>0,$V172*Inputs!$D$17,0)","v":19.218136329964921},0.19218136329964919,{"$f":"IFERROR(((($D172-$G172)*(Inputs!$V$19/(1-((1+Inputs!$V$19)^(-$I172))))+(($G172*Inputs!$V$19)))/H172),0)","v":146.873099716479},{"$f":"VLOOKUP(B136,B32:N34,13,FALSE)*$D172/($F172-$E172)","v":20.9},{"$f":"IF(J172=\"No Tractor\",0,V172)","v":0.19218136329964919},{"$f":"IF(J172=\"No Tractor\",0,((($M172-$P172)*(Inputs!$V$19/(1-((1+Inputs!$V$19)^(-$R172))))+(($P172*Inputs!$V$19)))/(Q172)))","v":60.902484261351596},{"$f":"IF(J172=\"No Tractor\",0,(VLOOKUP($K172,$N$5:$R$15,5,FALSE)*$M172)/($O172-$N172))","v":9.3000000000000007},{"$f":"W172","v":5.2034181818181819},{"$f":"$S172","v":8.36},{"$f":"($AG172+$AJ172)","v":30.2},{"$f":"($AF172+$AI172)","v":207.77558397783059},{"$f":"Inputs!$AA$13+Inputs!$AA$15*(Defaults!$N$27-1)","v":17.670000000000002},{"$f":"S172*Inputs!$V$13","v":14.629999999999999},30.2,{"$f":"($AF172+$AI172)","v":207.77558397783059},60.902484261351596,0,0,0,{"$f":"IF($J172=AW$169,SUM(($AH172*Inputs!$AA$13)+$AJ172+($S172*Inputs!$V$13)),0)","v":26.45526311375739},{"$f":"IF($J172=AX$169,SUM(($AH172*Inputs!$AA$13)+$AJ172+($S172*Inputs!$V$13)),0)","v":0},{"$f":"IF($J172=AY$169,SUM(($AH172*Inputs!$AA$13)+$AJ172+($S172*Inputs!$V$13)),0)","v":0},{"$f":"IF($J172=AZ$169,SUM(($AH172*Inputs!$AA$13)+$AJ172+($S172*Inputs!$V$13)),0)","v":0},{"$f":"IF($J172=BA$169,$Y183,0)","v":0},{"$f":"IF($J172=BB$169,$AB172,0)","v":0},0,0,0,0,0,0,19.218136329964921,0,0,0]
[null,{"$f":"CONCATENATE($B$137,\" 2\")","v":"No-Till Grain Drill 2"},{"$f":"IF($E$136=2,F137,0)","v":0},{"$f":"IF($E136=2,$H137,0)","v":0},{"$f":"IF(E136=2,I137,0)","v":0},{"$f":"IF($E136=2,$J137,0)","v":0},{"$f":"IF(E136=2,IF(K137>$D173,0,K137),0)","v":0},{"$f":"IF(E136=2,M137,0)","v":0},0,{"$f":"IF(C137=1,C100,IF(C137=2,C101,IF(C137=3,C102,IF(C137=4,C103,FALSE))))","v":"Tractor 1"},{"$f":"IF(J173=\"No Tractor\",0,IF($E$136=2,VLOOKUP($J173,$C$130:$D$133,2,FALSE),0))","v":0},{"$f":"IF(J173=\"No Tractor\",0,IF($E$136=2,VLOOKUP($J173,$C$130:$F$133,4,FALSE),0))","v":0},{"$f":"IF(J173=\"No Tractor\",0,IF($E$136=2,VLOOKUP($J173,$C$100:$H$103,6,FALSE),0))","v":0},{"$f":"IF(J173=\"No Tractor\",0,IF($E$136=2,VLOOKUP($J173,$C$130:$I$133,7,FALSE),0))","v":0},{"$f":"IF(J173=\"No Tractor\",0,IF($E$136=2,VLOOKUP($J173,$C$130:$J$133,8,FALSE),0))","v":0},{"$f":"IF(J173=\"No Tractor\",0,IF($E136=2,VLOOKUP($J173,$C$130:$K$133,9,FALSE),0))","v":0},{"$f":"IF(J173=\"No Tractor\",0,IF($E136=2,VLOOKUP($J173,$C$100:$P$103,14,FALSE),0))","v":0},{"$f":"IF(J173=\"No Tractor\",0,IF(J173=\"N/A\",0,IF($E136=2,IF((O173-N173)/Q173>$A$4,$A$4,(O173-N173)/Q173),0)))","v":0},{"$f":"IF(J173=\"No Tractor\",0,IF($E136=2,$O137,0))","v":0},{"$f":"IF($E$136=2,VLOOKUP($B137,$B$29:$O$43,14,FALSE),0)","v":0},{"$f":"IF($E$136=2,VLOOKUP($B137,$B$29:$P$43,15,FALSE)*(1+C162),0)","v":0},{"$f":"IF(E136=2,(1/((5280/43560)*U173*C173*T173)),0)","v":0},{"$f":"IF($E$136=2,1/V173,0)","v":0},"No-Till Grain Drill 2",{"$f":"IF($Y$169=0,0,IF($E$136=2,IF(AND($X$173='Crop 1'!$C$31,'Crop 1'!$V$31>0),1*'Crop 1'!$V$31,0)))","v":false},{"$f":"IF($Z$169=0,0,IF($E$136=2,IF(AND($X$173='Crop 2'!$C$31,'Crop 2'!$V$31>0),1*'Crop 2'!$V$31,0)))","v":false},{"$f":"IF($AA$169=0,0,IF($E$136=2,IF(AND($X$173='Crop 3'!$C$31,'Crop 3'!$V$31>0),1*'Crop 3'!$V$31,0)))","v":false},{"$f":"IF($E$136=2,IF(Y173>0,$V173*Inputs!$D$13,0),0)","v":0},{"$f":"IF($E$136=2,IF(Z173>0,$V173*Inputs!$D$15,0),0)","v":0},{"$f":"IF($E$136=1,IF(AA173>0,$V173*Inputs!$D$17,0),0)","v":0},0,{"$f":"IFERROR(((($D173-$G173)*(Inputs!$V$19/(1-((1+Inputs!$V$19)^(-$I173))))+(($G173*Inputs!$V$19)))/H173),0)","v":0},{"$f":"IF($E$136=2,VLOOKUP(B137,B32:N34,13,FALSE)*$D173/($F173-$E173),0)","v":0},{"$f":"IF(J173=\"No Tractor\",0,IF(E136=2,V173,0))","v":0},{"$f":"IF(J173=\"No Tractor\",0,IF($E136=2,((($M173-$P173)*(Inputs!$V$19/(1-((1+Inputs!$V$19)^(-$R173))))+(($P173*Inputs!$V$19)))/(Q173)),0))","v":0},{"$f":"IF(J173=\"No Tractor\",0,IF(E136=2,(VLOOKUP($K173,$N$5:$R$15,5,FALSE)*$M173)/($O173-$N173),0))","v":0},{"$f":"IF($E$136=2,W173,0)","v":0},{"$f":"IF($E$136=2,$S173,0)","v":0},{"$f":"IF($E$136=2,($AG173+$AJ173),0)","v":0},{"$f":"IF($E$136=2,($AF173+$AI173),0)","v":0},{"$f":"IF($E$136=2,Inputs!$AA$13+Inputs!$AA$15*(Defaults!$N$27-1),0)","v":0},{"$f":"S173*Inputs!$V$13","v":0},0,{"$f":"IF($E$136=2,($AF173+$AI173),0)","v":0},0,0,0,0,{"$f":"IF($J173=AW$169,SUM(($AH173*Inputs!$AA$13)+$AJ173+($S173*Inputs!$V$13)),0)","v":0},{"$f":"IF($J173=AX$169,SUM(($AH173*Inputs!$AA$13)+$AJ173+($S173*Inputs!$V$13)),0)","v":0},{"$f":"IF($J173=AY$169,SUM(($AH173*Inputs!$AA$13)+$AJ173+($S173*Inputs!$V$13)),0)","v":0},{"$f":"IF($J173=AZ$169,SUM(($AH173*Inputs!$AA$13)+$AJ173+($S173*Inputs!$V$13)),0)","v":0},{"$f":"IF($J173=BA$169,$AB173,0)","v":0},0,0,0,0,0,0,0,0,0,0,0]
[{"$f":"F138","v":120},{"$f":"CONCATENATE($B$138,\" 1\")","v":"Over-the-Top Sprayer 1"},{"$f":"IF(OR(F138=C36,F138=C37,F138=C38)=TRUE,F138,IF(A174=C39,A39,IF(A174=C40,A40)))","v":120},{"$f":"H138","v":76600},{"$f":"I138","v":0},{"$f":"$J138","v":1500},{"$f":"IF(K138>$D174,0,K138)","v":31278.76},{"$f":"M138","v":74.825643225543857},20.046603481624764,{"$f":"IF(C138=1,C100,IF(C138=2,C101,IF(C138=3,C102,IF(C138=4,C103,FALSE))))","v":"Tractor 1"},{"$f":"IF(J174=\"No Tractor\",0,IF(J174=\"N/A\",0,VLOOKUP($J174,$C$130:$D$133,2,FALSE)))","v":"MFWD 190"},{"$f":"IF(J174=\"No Tractor\",0,IF(J174=\"N/A\",0,VLOOKUP($J174,$C$130:$F$133,4,FALSE)))","v":190},{"$f":"IF(J174=\"No Tractor\",0,IF(J174=\"N/A\",0,VLOOKUP($J174,$C$100:$H$103,6,FALSE)))","v":186000},{"$f":"IF(J174=\"No Tractor\",0,IF(J174=\"N/A\",0,VLOOKUP($J174,$C$130:$I$133,7,FALSE)))","v":0},{"$f":"IF(J174=\"No Tractor\",0,IF(J174=\"N/A\",0,VLOOKUP($J174,$C$130:$J$133,8,FALSE)))","v":16000},{"$f":"IF(J174=\"No Tractor\",0,IF(J174=\"N/A\",0,VLOOKUP($J174,$C$130:$K$133,9,FALSE)))","v":18796.96},{"$f":"IF(J174=\"No Tractor\",0,IF(J174=\"N/A\",0,VLOOKUP($J174,$C$100:$P$103,14,FALSE)))","v":217.97036056624427},{"$f":"IF(J174=\"No Tractor\",0,IF(J174=\"N/A\",0,IF((O174-N174)/Q174>$A$4,$A$4,(O174-N174)/Q174)))","v":30},{"$f":"IF(J174=\"No Tractor\",0,$O138)","v":8.36},{"$f":"VLOOKUP($B138,$B$29:$O$43,14,FALSE)","v":0.65},{"$f":"VLOOKUP($B138,$B$29:$P$43,15,FALSE)*(1+C163)","v":6.6436500000000001},{"$f":"(1/((5280/43560)*U174*C174*T174))","v":1.5920349622456142E-2},{"$f":"1/V174","v":62.812690909090918},"Over-the-Top Sprayer 1",{"$f":"IF($Y$169=0,0,IF('Crop 1'!$AA$7>0,1*'Crop 1'!$AA$7,0))","v":13},{"$f":"IF($Z$169=0,0,IF('Crop 2'!$AA$7>0,1*'Crop 2'!$AA$7,0))","v":3},{"$f":"IF($AA$169=0,0,IF('Crop 3'!$AA$7>0,1*'Crop 3'!$AA$7,0))","v":2},{"$f":"IF(Y174>0,$V174*Inputs!$D$13,0)","v":4.7761048867368423},{"$f":"IF(Z174>0,$V174*Inputs!$D$15,0)","v":3.1840699244912285},{"$f":"IF(AA174>0,$V174*Inputs!$D$17,0)","v":1.5920349622456142},1.5920349622456142E-2,{"$f":"IFERROR(((($D174-$G174)*(Inputs!$V$19/(1-((1+Inputs!$V$19)^(-$I174))))+(($G174*Inputs!$V$19)))/H174),0)","v":77.82343943372851},{"$f":"VLOOKUP(B138,B36:N40,13,FALSE)*$D174/($F174-$E174)","v":35.74666666666667},{"$f":"IF(J174=\"No Tractor\",0,V174)","v":1.5920349622456142E-2},{"$f":"IF(J174=\"No Tractor\",0,((($M174-$P174)*(Inputs!$V$19/(1-((1+Inputs!$V$19)^(-$R174))))+(($P174*Inputs!$V$19)))/(Q174)))","v":60.902484261351596},{"$f":"IF(J174=\"No Tractor\",0,(VLOOKUP($K174,$N$5:$R$15,5,FALSE)*$M174)/($O174-$N174))","v":9.3000000000000007},{"$f":"W174","v":62.812690909090918},{"$f":"$S174","v":8.36},{"$f":"($AG174+$AJ174)","v":45.046666666666667},{"$f":"($AF174+$AI174)","v":138.7259236950801},{"$f":"Inputs!$AA$13+Inputs!$AA$15*(Defaults!$N$29-1)","v":17.670000000000002},{"$f":"S174*Inputs!$V$13","v":14.629999999999999},45.046666666666667,{"$f":"($AF174+$AI174)","v":138.7259236950801},60.902484261351596,0,0,0,{"$f":"IF($J174=AW$169,SUM(($AH174*Inputs!$AA$13)+$AJ174+($S174*Inputs!$V$13)),0)","v":24.139193394039076},{"$f":"IF($J174=AX$169,SUM(($AH174*Inputs!$AA$13)+$AJ174+($S174*Inputs!$V$13)),0)","v":0},{"$f":"IF($J174=AY$169,SUM(($AH174*Inputs!$AA$13)+$AJ174+($S174*Inputs!$V$13)),0)","v":0},{"$f":"IF($J174=AZ$169,SUM(($AH174*Inputs!$AA$13)+$AJ174+($S174*Inputs!$V$13)),0)","v":0},{"$f":"IF($J174=BA$169,$AB174,0)","v":4.7761048867368423},0,0,0,3.1840699244912285,0,0,0,1.5920349622456142,0,0,0]
[{"$f":"F139","v":"8R-30"},{"$f":"CONCATENATE($B$139,\" 2\")","v":"Post-Directed Sprayer 2"},{"$f":"IF($E$138=2,IF(OR(F139=C36,F139=C37,F139=C38)=TRUE,F139,IF(A175=C39,A39,IF(A175=C40,A40))),0)","v":20},{"$f":"IF($E138=2,$H139,0)","v":12700},{"$f":"IF(E138=2,I139,0)","v":0},{"$f":"IF($E138=2,$J139,0)","v":1600},{"$f":"IF(E138=2,IF(K139>$D175,0,K139),0)","v":5025.3500000000004},{"$f":"IF(E138=2,M139,0)","v":24.835745411031581},30,{"$f":"IF(C139=1,C100,IF(C139=2,C101,IF(C139=3,C102,IF(C139=4,C103,FALSE))))","v":"Tractor 1"},{"$f":"IF(J175=\"No Tractor\",0,IF(J175=\"N/A\",0,IF($E$138=2,VLOOKUP($J175,$C$130:$D$133,2,FALSE),0)))","v":"MFWD 190"},{"$f":"IF(J175=\"No Tractor\",0,IF(J175=\"N/A\",0,IF($E$138=2,VLOOKUP($J175,$C$130:$F$133,4,FALSE),0)))","v":190},{"$f":"IF(J175=\"No Tractor\",0,IF(J175=\"N/A\",0,IF($E$138=2,VLOOKUP($J175,$C$100:$H$103,6,FALSE),0)))","v":186000},{"$f":"IF(J175=\"No Tractor\",0,IF(J175=\"N/A\",0,IF($E$138=2,VLOOKUP($J175,$C$130:$I$133,7,FALSE),0)))","v":0},{"$f":"IF(J175=\"No Tractor\",0,IF(J175=\"N/A\",0,IF($E$138=2,VLOOKUP($J175,$C$130:$J$133,8,FALSE),0)))","v":16000},{"$f":"IF(J175=\"No Tractor\",0,IF(J175=\"N/A\",0,IF($E138=2,VLOOKUP($J175,$C$130:$K$133,9,FALSE),0)))","v":18796.96},{"$f":"IF(J175=\"No Tractor\",0,IF(J175=\"N/A\",0,IF($E138=2,VLOOKUP($J175,$C$100:$P$103,14,FALSE),0)))","v":217.97036056624427},{"$f":"IF(J175=\"No Tractor\",0,IF(J175=\"N/A\",0,IF($E138=2,IF((O175-N175)/Q175>$A$4,$A$4,(O175-N175)/Q175),0)))","v":30},{"$f":"IF(J175=\"No Tractor\",0,IF($E138=2,$O139,0))","v":8.36},{"$f":"IF($E$138=2,VLOOKUP($B139,$B$29:$O$43,14,FALSE),0)","v":0.65},{"$f":"IF($E$138=2,VLOOKUP($B139,$B$29:$P$43,15,FALSE)*(1+C164),0)","v":7.6657500000000001},{"$f":"IF($E$138=2,(1/((5280/43560)*U175*C175*T175)),0)","v":8.2785818036771944E-2},{"$f":"IF($E$138=2,1/V175,0)","v":12.079363636363638},"Post-Directed Sprayer 2",{"$f":"IF($Y$169=0,0,IF($E$138=2,IF(X175=Defaults!I28,IF('Crop 1'!$AA$7>0,1*'Crop 1'!$AA$7,0),IF(X175=Defaults!I33,IF('Crop 1'!$AC$7>0,1*'Crop 1'!$AC$7,0)))))","v":1},{"$f":"IF($Z$169=0,0,IF($E$138=2,IF(X175=Defaults!I28,IF('Crop 2'!$AA$7>0,1*'Crop 2'!$AA$7,0),IF(X175=Defaults!I33,IF('Crop 2'!$AC$7>0,1*'Crop 2'!$AC$7,0)))))","v":0},{"$f":"IF($AA$169=0,0,IF($E$138=2,IF(X175=Defaults!I28,IF('Crop 3'!$AA$7>0,1*'Crop 3'!$AA$7,0),IF(X175=Defaults!I33,IF('Crop 3'!$AC$7>0,1*'Crop 3'!$AC$7,0)))))","v":0},{"$f":"IF($E$138=2,IF(Y175>0,$V175*Inputs!$D$13,0),0)","v":24.835745411031581},{"$f":"IF($E$138=2,IF(Z175>0,$V175*Inputs!$D$15,0),0)","v":0},{"$f":"IF($E$138=2,IF(AA175>0,$V175*Inputs!$D$17,0),0)","v":0},8.2785818036771944E-2,{"$f":"IFERROR(((($D175-$G175)*(Inputs!$V$19/(1-((1+Inputs!$V$19)^(-$I175))))+(($G175*Inputs!$V$19)))/H175),0)","v":34.590303385277295},{"$f":"IF($E$138=2,VLOOKUP(B139,B36:N40,13,FALSE)*$D175/($F175-$E175),0)","v":5.953125},{"$f":"IF(J175=\"No Tractor\",0,IF(E138=2,V175,0))","v":8.2785818036771944E-2},{"$f":"IF(J175=\"No Tractor\",0,IF($E138=2,((($M175-$P175)*(Inputs!$V$19/(1-((1+Inputs!$V$19)^(-$R175))))+(($P175*Inputs!$V$19)))/(Q175)),0))","v":60.902484261351596},{"$f":"IF(J175=\"No Tractor\",0,IF(E138=2,(VLOOKUP($K175,$N$5:$R$15,5,FALSE)*$M175)/($O175-$N175),0))","v":9.3000000000000007},{"$f":"IF($E$138=2,W175,0)","v":12.079363636363638},{"$f":"IF($E$138=2,$S175,0)","v":8.36},{"$f":"IF($E$138=2,($AG175+$AJ175),0)","v":15.253125000000001},{"$f":"IF($E$138=2,($AF175+$AI175),0)","v":95.492787646628898},{"$f":"IF($E$138=2,Inputs!$AA$13+Inputs!$AA$15*(Defaults!$N$29-1),0)","v":17.670000000000002},{"$f":"S175*Inputs!$V$13","v":14.629999999999999},15.253125000000001,{"$f":"IF($E$138=2,($AF175+$AI175),0)","v":95.492787646628898},60.902484261351596,0,0,0,{"$f":"IF($J175=AW$169,SUM(($AH175*Inputs!$AA$13)+$AJ175+($S175*Inputs!$V$13)),0)","v":25.017805649003183},{"$f":"IF($J175=AX$169,SUM(($AH175*Inputs!$AA$13)+$AJ175+($S175*Inputs!$V$13)),0)","v":0},{"$f":"IF($J175=AY$169,SUM(($AH175*Inputs!$AA$13)+$AJ175+($S175*Inputs!$V$13)),0)","v":0},{"$f":"IF($J175=AZ$169,SUM(($AH175*Inputs!$AA$13)+$AJ175+($S175*Inputs!$V$13)),0)","v":0},{"$f":"IF($J175=BA$169,$AB175,0)","v":24.835745411031581},0,0,0,0,0,0,0,0,0,0,0]
[null,{"$f":"$B$140","v":"Fertilizer Spreader"},{"$f":"F140","v":40},{"$f":"H140","v":11800},0,1200,{"$f":"IF(K140>$D176,0,K140)","v":3680.48},{"$f":"M140","v":24.709032424240611},30,{"$f":"IF(C140=1,C100,IF(C140=2,C101,IF(C140=3,C102,IF(C140=4,C103,FALSE))))","v":"Tractor 1"},{"$f":"IF(J176=\"No Tractor\",0,VLOOKUP($J176,$C$130:$D$133,2,FALSE))","v":"MFWD 190"},{"$f":"IF(J176=\"No Tractor\",0,VLOOKUP($J176,$C$130:$F$133,4,FALSE))","v":190},{"$f":"IF(J176=\"No Tractor\",0,VLOOKUP($J176,$C$100:$H$103,6,FALSE))","v":186000},{"$f":"IF(J176=\"No Tractor\",0,VLOOKUP($J176,$C$130:$I$133,7,FALSE))","v":0},{"$f":"IF(J176=\"No Tractor\",0,VLOOKUP($J176,$C$130:$J$133,8,FALSE))","v":16000},{"$f":"IF(J176=\"No Tractor\",0,VLOOKUP($J176,$C$130:$K$133,9,FALSE))","v":18796.96},{"$f":"IF(J176=\"No Tractor\",0,VLOOKUP($J176,$C$100:$P$103,14,FALSE))","v":217.97036056624427},{"$f":"IF(J176=\"No Tractor\",0,IF(J176=\"N/A\",0,IF((O176-N176)/Q176>$A$4,$A$4,(O176-N176)/Q176)))","v":30},{"$f":"IF(J176=\"No Tractor\",0,$O140)","v":8.36},{"$f":"VLOOKUP($B140,$B$29:$O$43,14,FALSE)","v":0.7},{"$f":"VLOOKUP($B140,$B$29:$P$43,15,FALSE)*(1+C165)","v":7.1547000000000001},{"$f":"(1/((5280/43560)*U176*C176*T176))","v":4.1181720707067687E-2},{"$f":"1/V176","v":24.282618181818179},"Fertilizer Spreader",{"$f":"IF($Y$169=0,0,IF('Crop 1'!$AE$7>0,1*'Crop 1'!$AE$7,0))","v":1},{"$f":"IF($Z$169=0,0,IF('Crop 2'!$AE$7>0,1*'Crop 2'!$AE$7,0))","v":1},{"$f":"IF($AA$169=0,0,IF('Crop 3'!$AE$7>0,1*'Crop 3'!$AE$7,0))","v":1},{"$f":"IF(Y176>0,$V176*Inputs!$D$13,0)","v":12.354516212120306},{"$f":"IF(Z176>0,$V176*Inputs!$D$15,0)","v":8.2363441414135377},{"$f":"IF(AA176>0,$V176*Inputs!$D$17,0)","v":4.1181720707067688},4.1181720707067687E-2,{"$f":"IFERROR(((($D176-$G176)*(Inputs!$V$19/(1-((1+Inputs!$V$19)^(-$I176))))+(($G176*Inputs!$V$19)))/H176),0)","v":32.809989314933027},{"$f":"IF(AK140=TRUE,0,N41*$D176/($F176-$E176))","v":7.8666666666666663},{"$f":"IF(J176=\"No Tractor\",0,V176)","v":4.1181720707067687E-2},{"$f":"IF(J176=\"No Tractor\",0,((($M176-$P176)*(Inputs!$V$19/(1-((1+Inputs!$V$19)^(-$R176))))+(($P176*Inputs!$V$19)))/(Q176)))","v":60.902484261351596},{"$f":"IF(J176=\"No Tractor\",0,(VLOOKUP($K176,$N$5:$R$15,5,FALSE)*$M176)/($O176-$N176))","v":9.3000000000000007},{"$f":"W176","v":24.282618181818179},{"$f":"$S176","v":8.36},{"$f":"($AG176+$AJ176)","v":17.166666666666668},{"$f":"($AF176+$AI176)","v":93.712473576284623},{"$f":"Inputs!$AA$13+Inputs!$AA$15*(Defaults!$N$28-1)","v":17.670000000000002},{"$f":"S176*Inputs!$V$13","v":14.629999999999999},17.166666666666668,{"$f":"($AF176+$AI176)","v":93.712473576284623},60.902484261351596,{"$f":"IF($J176=AT$169,$AI176,0)","v":0},0,0,{"$f":"IF($J176=AW$169,SUM(($AH176*Inputs!$AA$13)+$AJ176+($S176*Inputs!$V$13)),0)","v":24.47112781009087},{"$f":"IF($J176=AX$169,SUM(($AH176*Inputs!$AA$13)+$AJ176+($S176*Inputs!$V$13)),0)","v":0},{"$f":"IF($J176=AY$169,SUM(($AH176*Inputs!$AA$13)+$AJ176+($S176*Inputs!$V$13)),0)","v":0},{"$f":"IF($J176=AZ$169,SUM(($AH176*Inputs!$AA$13)+$AJ176+($S176*Inputs!$V$13)),0)","v":0},{"$f":"IF($J176=BA$169,$AB176,0)","v":12.354516212120306},0,0,0,8.2363441414135377,0,0,0,4.1181720707067688,0,0,0]
[null,{"$f":"$B$141","v":"Manure Spreader"},{"$f":"F141","v":15},14427.9,0,2000,{"$f":"IF(K141>$D177,0,K141)","v":2877.58},{"$f":"M141","v":17.936927241300587},30,{"$f":"IF(C141=1,C100,IF(C141=2,C101,IF(C141=3,C102,IF(C141=4,C103,FALSE))))","v":"Tractor 1"},{"$f":"IF(J177=\"No Tractor\",0,VLOOKUP($J177,$C$130:$D$133,2,FALSE))","v":"MFWD 190"},{"$f":"IF(J177=\"No Tractor\",0,VLOOKUP($J177,$C$130:$F$133,4,FALSE))","v":190},{"$f":"IF(J177=\"No Tractor\",0,VLOOKUP($J177,$C$100:$H$103,6,FALSE))","v":186000},{"$f":"IF(J177=\"No Tractor\",0,VLOOKUP($J177,$C$130:$I$133,7,FALSE))","v":0},{"$f":"IF(J177=\"No Tractor\",0,VLOOKUP($J177,$C$130:$J$133,8,FALSE))","v":16000},{"$f":"IF(J177=\"No Tractor\",0,VLOOKUP($J177,$C$130:$K$133,9,FALSE))","v":18796.96},{"$f":"IF(J177=\"No Tractor\",0,VLOOKUP($J177,$C$100:$P$103,14,FALSE))","v":217.97036056624427},{"$f":"IF(J177=\"No Tractor\",0,IF(J177=\"N/A\",0,IF((O177-N177)/Q177>$A$4,$A$4,(O177-N177)/Q177)))","v":30},{"$f":"IF(J177=\"No Tractor\",0,$O141)","v":8.36},{"$f":"VLOOKUP($B141,$B$29:$O$43,14,FALSE)","v":0.6},{"$f":"VLOOKUP($B141,$B$29:$P$43,15,FALSE)*(1+C166)","v":5.1105},{"$f":"(1/((5280/43560)*U177*C177*T177))","v":0.17936927241300588},{"$f":"1/V177","v":5.5750909090909095},"Manure Spreader",{"$f":"IF($Y$169=0,0,IF('Crop 1'!$AG$7>0,1*'Crop 1'!$AG$7,0))","v":0},{"$f":"IF($Z$169=0,0,IF('Crop 2'!$AG$7>0,1*'Crop 2'!$AG$7,0))","v":0},{"$f":"IF($AA$169=0,0,IF('Crop 3'!$AG$7>0,1*'Crop 3'!$AG$7,0))","v":1},{"$f":"IF(Y177>0,$V177*Inputs!$D$13,0)","v":0},{"$f":"IF(Z177>0,$V177*Inputs!$D$15,0)","v":0},{"$f":"IF(AA177>0,$V177*Inputs!$D$17,0)","v":17.936927241300587},{"$f":"V177","v":0.17936927241300588},{"$f":"IFERROR(((($D177-$G177)*(Inputs!$V$19/(1-((1+Inputs!$V$19)^(-$I177))))+(($G177*Inputs!$V$19)))/H177),0)","v":56.407263170029978},{"$f":"N42*$D177/($F177-$E177)","v":3.6069749999999998},{"$f":"IF(J177=\"No Tractor\",0,V177)","v":0.17936927241300588},{"$f":"IF(J177=\"No Tractor\",0,((($M177-$P177)*(Inputs!$V$19/(1-((1+Inputs!$V$19)^(-$R177))))+(($P177*Inputs!$V$19)))/(Q177)))","v":60.902484261351596},{"$f":"IF(J177=\"No Tractor\",0,(VLOOKUP($K177,$N$5:$R$15,5,FALSE)*$M177)/($O177-$N177))","v":9.3000000000000007},{"$f":"W177","v":5.5750909090909095},{"$f":"$S177","v":8.36},{"$f":"($AG177+$AJ177)","v":12.906975000000001},{"$f":"($AF177+$AI177)","v":117.30974743138157},{"$f":"Inputs!$AA$13+Inputs!$AA$15*(Defaults!$N$28-1)","v":17.670000000000002},{"$f":"S177*Inputs!$V$13","v":14.629999999999999},{"$f":"AM177","v":12.906975000000001},{"$f":"($AF177+$AI177)","v":117.30974743138157},60.902484261351596,0,0,0,{"$f":"IF($J177=AW$169,SUM(($AH177*Inputs!$AA$13)+$AJ177+($S177*Inputs!$V$13)),0)","v":26.286912239506897},{"$f":"IF($J177=AX$169,SUM(($AH177*Inputs!$AA$13)+$AJ177+($S177*Inputs!$V$13)),0)","v":0},{"$f":"IF($J177=AY$169,SUM(($AH177*Inputs!$AA$13)+$AJ177+($S177*Inputs!$V$13)),0)","v":0},{"$f":"IF($J177=AZ$169,SUM(($AH177*Inputs!$AA$13)+$AJ177+($S177*Inputs!$V$13)),0)","v":0},{"$f":"IF($J177=BA$169,$AB177,0)","v":0},0,0,0,0,0,0,0,17.936927241300587,0,0,0]
[null,null,null,null,null,null,null,null,null,null,null,null,null,null,null,null,null,null,null,null,null,null,null,null,null,null,null,null,null,null,null,null,null,null,null,null,null,null,null,null,null,null,null,null,{"$f":"IFERROR(AVERAGEIF(AS170:AS177,\">0\"),0)","v":60.902484261351596},0,0,0,25.297278924324534,0,0,0,{"$f":"SUM(BA170:BA177)","v":75.833292070386349},0,0,0,33.998364439569848,0,0,0,42.865270604217891,0,0,0]
[null,null,"Benchmark Calculations without Tractor Guidance",null,null,null,null,null,null,"Tractor Specifications and Calculations",null,null,null,null,null,null,null,null,null,"Implement Calculations without Tractor Guidance",null,null,null,null,null,null,null,null,null,null,null,null,null,"Tractor Calculations",null,null,"Standard Budget Totals",null,null,null,"Totals For Machinery Tab",null,null,null,"Tractor Capital Recovery ($/hr)",null,null,null,"Tractor Wtd. Avg. Operating Cost ($/hr)",null,null,null,{"$f":"CONCATENATE(Inputs!$B$13,\" Annual Use Hours\")","v":"Cotton Annual Use Hours"},null,null,null,{"$f":"CONCATENATE(Inputs!$B$15,\" Annual Use Hours\")","v":"Soybean Annual Use Hours"},null,null,null,{"$f":"CONCATENATE(Inputs!$B$17,\" Annual Use Hours\")","v":"Est. Pasture or Hay Annual Use Hours"}]
["Benchmark Calculations without Tractor Guidance",{"$f":"B169","v":"Implement"},"Implement\n Size (width)","User-Specified\nImplement\nPP ($)","User-Specified\nImplement\nHours at Purchase","User-Specified\nImplement\nHours @ Salvage","User-Specified\nImplement\nSalvage Value ($)","User-Specified\nImplement\nUse Hours","Calculated\nStd. Implement\nOperation Years"," Tractor\nSelection","User Tractor \nUnit Size","Tractor HP","User-Specified\nTractor\nPP ($)","User-Specified Tractor\nHours at Purchase","User-Specified\nTractor\nHours @ Salvage","User-Specified\nTractor\nSalvage Value ($)","User-Specified\nTractor\nUse Hours","Calculated\nStandard Tractor\nOperation Years","User-Specified\nFuel Use\nUse (gal/hr)","Implement\nField Efficiency (%)","Implement\nField Speed (mph)","Implement\nHours/Acre","Implement\nAcres/Hour\n(APH)","Implement",{"$f":"Inputs!$B$13","v":"Cotton"},{"$f":"Inputs!$B$15","v":"Soybean"},{"$f":"Inputs!$B$17","v":"Est. Pasture or Hay"},{"$f":"CONCATENATE(Inputs!$B$13,\"\nBenchmark\nAnnual Use\")","v":"Cotton\nBenchmark\nAnnual Use"},{"$f":"CONCATENATE(Inputs!$B$15,\"\nBenchmark\nAnnual Use\")","v":"Soybean\nBenchmark\nAnnual Use"},{"$f":"CONCATENATE(Inputs!$B$17,\"\nBenchmark\nAnnual Use\")","v":"Est. Pasture or Hay\nBenchmark\nAnnual Use"},{"$f":"AE169","v":"Labor Hours"},"User Implement\nCapital Recovery ($/hr)",{"$f":"AG169","v":"\nImplement \nR&M ($/hr)"},{"$f":"AH169","v":"Tractor\nLabor (hrs)"},"Standard\nTractor Capital\nRecovery ($/hr)",{"$f":"AJ169","v":"\nTractor \nR&M ($/hr)"},"Labor\n(acres/hr)","Fuel\n(gal/hr)","R&M\n($/hr)","Capital\nRecovery\n($/hr)","Labor Costs\n($/hr)","Fuel Costs\n($/hr)","R&M ($/hr)","Capital\nRecovery ($/hr)","Tractor 1",0,0,0,"Tractor 1",0,0,0,{"$f":"$C$130","v":"Tractor 1"},{"$f":"IF(E130<2,0,$C$131)","v":0},{"$f":"IF(E130<3,0,$C$132)","v":0},{"$f":"IF(E130<4,0,$C$133)","v":0},{"$f":"$C$130","v":"Tractor 1"},{"$f":"IF(E130<2,0,$C$131)","v":0},{"$f":"IF(E130<3,0,$C$132)","v":0},{"$f":"IF(E130<4,0,$C$133)","v":0},{"$f":"$C$130","v":"Tractor 1"},{"$f":"IF(E130<2,0,$C$131)","v":0},{"$f":"IF(E130<3,0,$C$132)","v":0},{"$f":"IF(E130<4,0,$C$133)","v":0}]
[null,"Row Planter 1",20,{"$f":"D170","v":41000},0,900,19630.009999999998,{"$f":"+I226","v":57.692307692307679},{"$f":"IFERROR(IF((F181-E181)/H181>$A$4,$A$4,(F181-E181)/H181),0)","v":15.600000000000003},{"$f":"J170","v":"Tractor 1"},{"$f":"IF(J181=\"No Tractor\",0,VLOOKUP($J181,$C$130:$D$133,2,FALSE))","v":"MFWD 190"},{"$f":"IF(J181=\"No Tractor\",0,VLOOKUP($J181,$C$130:$F$133,4,FALSE))","v":190},{"$f":"M170","v":186000},0,16000,18796.96,217.97036056624427,30,8.36,0.65,{"$f":"VLOOKUP($B134,$B$29:$P$43,15,FALSE)","v":5.5},{"$f":"1/((5280/43560)*U181*C181*T181)","v":0.11538461538461536},{"$f":"1/V181","v":8.6666666666666679},{"$f":"B181","v":"Row Planter 1"},{"$f":"IF($Y$180=0,0,IF(AND($X$181='Crop 1'!$C$31,'Crop 1'!$L$31>0>0),1*'Crop 1'!$L$31,0))","v":1},{"$f":"IF($Z$180=0,0,IF($Z$180=0,0,IF(AND($X$181='Crop 2'!$C$31,'Crop 2'!$L$31>0>0),1*'Crop 2'!$L$31,0)))","v":1},{"$f":"IF($AA$180=0,0,IF(AND($X$181='Crop 3'!$C$31,'Crop 3'!$L$31>0>0),1*'Crop 3'!$L$31,0))","v":0},{"$f":"IF(Y181>0,$V181*Inputs!$D$13,0)","v":34.615384615384606},{"$f":"IF(Z181>0,$V181*Inputs!$D$15,0)","v":23.076923076923073},{"$f":"IF(AA181>0,$V181*Inputs!$D$17,0)","v":0},{"$f":"V181","v":0.11538461538461536},{"$f":"IFERROR(((($D181-$G181)*(Inputs!$V$19/(1-((1+Inputs!$V$19)^(-$I181))))+(($G181*Inputs!$V$19)))/H181),0)","v":57.638235412669189},{"$f":"N29*$D181/($F181-$E181)","v":34.166666666666664},{"$f":"IF(J170=\"No Tractor\",0,V181)","v":0.11538461538461536},{"$f":"IF(J170=\"No Tractor\",0,((($M181-$P181)*(Inputs!$V$19/(1-((1+Inputs!$V$19)^(-$R181))))+(($P181*Inputs!$V$19)))/(Q181)))","v":60.902484261351596},{"$f":"IF(J181=\"No Tractor\",0,(VLOOKUP($K181,$N$5:$R$15,5,FALSE)*$M181)/($O181-$N181))","v":9.3000000000000007},{"$f":"W181","v":8.6666666666666679},{"$f":"$S181","v":8.36},{"$f":"($AG181+$AJ181)","v":43.466666666666669},{"$f":"($AF181+$AI181)","v":118.54071967402078},{"$f":"Inputs!$AA$13+Inputs!$AA$15*(Defaults!$N$27-1)","v":17.670000000000002},{"$f":"S181*Inputs!$V$13","v":14.629999999999999},{"$f":"AM181","v":43.466666666666669},{"$f":"($AF181+$AI181)","v":118.54071967402078},{"$f":"IF($J181=AS$180,$AI181,0)","v":60.902484261351596},0,0,0,{"$f":"IF($J181=AW$180,SUM(($AH181*Inputs!$AA$13)+$AJ181+($S181*Inputs!$V$13)),0)","v":25.446153846153848},{"$f":"IF($J181=AX$180,SUM(($AH181*Inputs!$AA$13)+$AJ181+($S181*Inputs!$V$13)),0)","v":0},{"$f":"IF($J181=AY$180,SUM(($AH181*Inputs!$AA$13)+$AJ181+($S181*Inputs!$V$13)),0)","v":0},{"$f":"IF($J181=AZ$180,SUM(($AH181*Inputs!$AA$13)+$AJ181+($S181*Inputs!$V$13)),0)","v":0},{"$f":"IF($J181=BA$180,$AB181,0)","v":34.615384615384606},0,0,0,34.615384615384606,0,0,0,{"$f":"IF($J181=BI$180,$AB181,0)","v":34.615384615384606},0,0,0]
[null,"Row Planter 2",0,0,0,0,0,{"$f":"+I227","v":0},0,"Tractor 1",{"$f":"IF(J182=\"No Tractor\",0,IF($E$134=2,VLOOKUP($J182,$C$130:$D$133,2,FALSE),0))","v":0},{"$f":"IF(J182=\"No Tractor\",0,IF($E$134=2,VLOOKUP($J182,$C$130:$F$133,4,FALSE),0))","v":0},{"$f":"M171","v":0},0,0,0,0,0,0,0,{"$f":"IF($E$134=2,VLOOKUP($B135,$B$29:$P$43,15,FALSE),0)","v":0},{"$f":"IF(E134=2,1/((5280/43560)*U182*C182*T182))","v":false},{"$f":"IF($E$134=2,1/V182,0)","v":0},"Row Planter 2",{"$f":"IF($Y$180=0,0,IF($E$134=2,IF(AND($X$182='Crop 1'!$C$31,'Crop 1'!$L$31>0),1*'Crop 1'!$L$31,0)))","v":false},{"$f":"IF($Z$180=0,0,IF($Z$180=0,0,IF($Z$180=0,0,IF($E$134=2,IF(AND($X$182='Crop 2'!$C$31,'Crop 2'!$L$31>0),1*'Crop 2'!$L$31,0)))))","v":false},{"$f":"IF($AA$180=0,0,IF($E$134=2,IF(AND($X$182='Crop 3'!$C$31,'Crop 3'!$L$31>0),1*'Crop 3'!$L$31,0)))","v":false},{"$f":"IF($E$134=2,IF(Y182>0,$V182*Inputs!$D$13,0),0)","v":0},{"$f":"IF($E$134=2,IF(Z182>0,$V182*Inputs!$D$15,0),0)","v":0},{"$f":"IF($E$134=2,IF(AA182>0,$V182*Inputs!$D$17,0),0)","v":0},false,{"$f":"IFERROR(((($D182-$G182)*(Inputs!$V$19/(1-((1+Inputs!$V$19)^(-$I182))))+(($G182*Inputs!$V$19)))/H182),0)","v":0},{"$f":"IF(E134=2,N29*$D182/($F182-$E182),0)","v":0},{"$f":"IF(J171=\"No Tractor\",0,IF(E134=2,V182,0))","v":0},{"$f":"IF(J171=\"No Tractor\",0,IF($E134=2,((($M182-$P182)*(Inputs!$V$19/(1-((1+Inputs!$V$19)^(-$R182))))+(($P182*Inputs!$V$19)))/(Q182)),0))","v":0},{"$f":"IF(J182=\"No Tractor\",0,IF(E134=2,(VLOOKUP($K182,$N$5:$R$15,5,FALSE)*$M182)/($O182-$N182),0))","v":0},{"$f":"IF($E$134=2,W182,0)","v":0},{"$f":"IF($E$134=2,$S182,0)","v":0},{"$f":"IF($E$134=2,($AG182+$AJ182),0)","v":0},{"$f":"IF($E$134=2,($AF182+$AI182),0)","v":0},{"$f":"IF($E$134=2,Inputs!$AA$13+Inputs!$AA$15*(Defaults!$N$27-1),0)","v":0},{"$f":"S182*Inputs!$V$13","v":0},{"$f":"AM182","v":0},{"$f":"IF($E$134=2,($AF182+$AI182),0)","v":0},0,0,0,0,{"$f":"IF($J182=AW$180,SUM(($AH182*Inputs!$AA$13)+$AJ182+($S182*Inputs!$V$13)),0)","v":0},{"$f":"IF($J182=AX$180,SUM(($AH182*Inputs!$AA$13)+$AJ182+($S182*Inputs!$V$13)),0)","v":0},{"$f":"IF($J182=AY$180,SUM(($AH182*Inputs!$AA$13)+$AJ182+($S182*Inputs!$V$13)),0)","v":0},{"$f":"IF($J182=AZ$180,SUM(($AH182*Inputs!$AA$13)+$AJ182+($S182*Inputs!$V$13)),0)","v":0},0,0,0,0,0,0,0,0,0,0,0,0]
[null,"No-Till Grain Drill 1",12,41800,0,1500,16926.14,19.642857142857142,30,"Tractor 1",{"$f":"IF(J183=\"No Tractor\",0,VLOOKUP($J183,$C$130:$D$133,2,FALSE))","v":"MFWD 190"},{"$f":"IF(J183=\"No Tractor\",0,VLOOKUP($J183,$C$130:$F$133,4,FALSE))","v":190},{"$f":"M172","v":186000},0,16000,18796.96,217.97036056624427,30,8.36,0.7,{"$f":"VLOOKUP($B136,$B$29:$P$43,15,FALSE)","v":5},{"$f":"1/((5280/43560)*U183*C183*T183)","v":0.19642857142857142},{"$f":"1/V183","v":5.0909090909090908},"No-Till Grain Drill 1",{"$f":"IF($Y$180=0,0,IF(AND($X$183='Crop 1'!$C$31,'Crop 1'!$L$31>0>0),1*'Crop 1'!$L$31,0))","v":0},{"$f":"IF($Z$180=0,0,IF(AND($X$183='Crop 2'!$C$31,'Crop 2'!$L$31>0>0),1*'Crop 2'!$L$31,0))","v":0},{"$f":"IF($AA$180=0,0,IF(AND($X$183='Crop 3'!$C$31,'Crop 3'!$L$31>0>0),1*'Crop 3'!$L$31,0))","v":1},{"$f":"IF(Y183>0,$V183*Inputs!$D$13,0)","v":0},{"$f":"IF(Z183>0,$V183*Inputs!$D$15,0)","v":0},{"$f":"IF(AA183>0,$V183*Inputs!$D$17,0)","v":19.642857142857142},0.19642857142857142,{"$f":"IFERROR(((($D183-$G183)*(Inputs!$V$19/(1-((1+Inputs!$V$19)^(-$I183))))+(($G183*Inputs!$V$19)))/H183),0)","v":143.69738745375113},{"$f":"VLOOKUP(B136,B32:N34,13,FALSE)*$D183/($F183-$E183)","v":20.9},{"$f":"IF(J172=\"No Tractor\",0,V183)","v":0.19642857142857142},{"$f":"IF(J172=\"No Tractor\",0,((($M183-$P183)*(Inputs!$V$19/(1-((1+Inputs!$V$19)^(-$R183))))+(($P183*Inputs!$V$19)))/(Q183)))","v":60.902484261351596},{"$f":"IF(J183=\"No Tractor\",0,(VLOOKUP($K183,$N$5:$R$15,5,FALSE)*$M183)/($O183-$N183))","v":9.3000000000000007},{"$f":"W183","v":5.0909090909090908},{"$f":"$S183","v":8.36},{"$f":"($AG183+$AJ183)","v":30.2},{"$f":"($AF183+$AI183)","v":204.59987171510272},{"$f":"Inputs!$AA$13+Inputs!$AA$15*(Defaults!$N$27-1)","v":17.670000000000002},{"$f":"S183*Inputs!$V$13","v":14.629999999999999},30.2,{"$f":"($AF183+$AI183)","v":204.59987171510272},60.902484261351596,0,0,0,{"$f":"IF($J183=AW$180,SUM(($AH183*Inputs!$AA$13)+$AJ183+($S183*Inputs!$V$13)),0)","v":26.511071428571427},{"$f":"IF($J183=AX$180,SUM(($AH183*Inputs!$AA$13)+$AJ183+($S183*Inputs!$V$13)),0)","v":0},{"$f":"IF($J183=AY$180,SUM(($AH183*Inputs!$AA$13)+$AJ183+($S183*Inputs!$V$13)),0)","v":0},{"$f":"IF($J183=AZ$180,SUM(($AH183*Inputs!$AA$13)+$AJ183+($S183*Inputs!$V$13)),0)","v":0},0,0,0,0,0,0,0,0,0,0,0,0]
[null,"No-Till Grain Drill 2",0,0,0,0,0,0,0,"Tractor 1",{"$f":"IF(J184=\"No Tractor\",0,IF($E$136=2,VLOOKUP($J184,$C$130:$D$133,2,FALSE),0))","v":0},{"$f":"IF(J184=\"No Tractor\",0,IF($E$136=2,VLOOKUP($J184,$C$130:$F$133,4,FALSE),0))","v":0},{"$f":"M173","v":0},0,0,0,0,0,0,0,{"$f":"IF($E$136=2,VLOOKUP($B137,$B$29:$P$43,15,FALSE),0)","v":0},{"$f":"IF(E136=2,1/((5280/43560)*U184*C184*T184))","v":false},{"$f":"IF($E$136=2,1/V184,0)","v":0},"No-Till Grain Drill 2",{"$f":"IF($Y$180=0,0,IF($E$136=2,IF(AND($X$184='Crop 1'!$C$31,'Crop 1'!$L$31>0>0),1*'Crop 1'!$L$31,0)))","v":false},{"$f":"IF($Z$180=0,0,IF($E$136=2,IF(AND($X$184='Crop 2'!$C$31,'Crop 2'!$L$31>0>0),1*'Crop 2'!$L$31,0)))","v":false},{"$f":"IF($AA$180=0,0,IF($E$136=2,IF(AND($X$184='Crop 3'!$C$31,'Crop 3'!$L$31>0>0),1*'Crop 3'!$L$31,0)))","v":false},{"$f":"IF($E$136=2,IF(Y184>0,$V184*Inputs!$D$13,0),0)","v":0},{"$f":"IF($E$136=2,IF(Z184>0,$V184*Inputs!$D$15,0),0)","v":0},{"$f":"IF($E$136=2,IF(AA184>0,$V184*Inputs!$D$17,0),0)","v":0},false,{"$f":"IFERROR(((($D184-$G184)*(Inputs!$V$19/(1-((1+Inputs!$V$19)^(-$I184))))+(($G184*Inputs!$V$19)))/H184),0)","v":0},{"$f":"IF($E$136=2,VLOOKUP(B137,B32:N35,13,FALSE)*$D184/($F184-$E184),0)","v":0},{"$f":"IF(J173=\"No Tractor\",0,IF(E136=2,V184,0))","v":0},{"$f":"IF(J173=\"No Tractor\",0,IF($E136=2,((($M184-$P184)*(Inputs!$V$19/(1-((1+Inputs!$V$19)^(-$R184))))+(($P184*Inputs!$V$19)))/(Q184)),0))","v":0},{"$f":"IF(J184=\"No Tractor\",0,IF(E136=2,(VLOOKUP($K184,$N$5:$R$15,5,FALSE)*$M184)/($O184-$N184),0))","v":0},{"$f":"IF($E$136=2,W184,0)","v":0},{"$f":"IF($E$136=2,$S184,0)","v":0},{"$f":"IF($E$136=2,($AG184+$AJ184),0)","v":0},{"$f":"IF($E$136=2,($AF184+$AI184),0)","v":0},{"$f":"IF($E$136=2,Inputs!$AA$13+Inputs!$AA$15*(Defaults!$N$27-1),0)","v":0},{"$f":"S184*Inputs!$V$13","v":0},0,{"$f":"IF($E$136=2,($AF184+$AI184),0)","v":0},0,0,0,0,{"$f":"IF($J184=AW$180,SUM(($AH184*Inputs!$AA$13)+$AJ184+($S184*Inputs!$V$13)),0)","v":0},{"$f":"IF($J184=AX$180,SUM(($AH184*Inputs!$AA$13)+$AJ184+($S184*Inputs!$V$13)),0)","v":0},{"$f":"IF($J184=AY$180,SUM(($AH184*Inputs!$AA$13)+$AJ184+($S184*Inputs!$V$13)),0)","v":0},{"$f":"IF($J184=AZ$180,SUM(($AH184*Inputs!$AA$13)+$AJ184+($S184*Inputs!$V$13)),0)","v":0},0,0,0,0,0,0,0,0,0,0,0,0]
[null,"Over-the-Top Sprayer 1",120,76600,0,1500,31278.76,76.479289940828409,19.613152804642166,"Tractor 1",{"$f":"IF(J185=\"No Tractor\",0,IF(J185=\"N/A\",0,VLOOKUP($J185,$C$130:$D$133,2,FALSE)))","v":"MFWD 190"},{"$f":"IF(J185=\"No Tractor\",0,IF(J185=\"N/A\",0,VLOOKUP($J185,$C$130:$F$133,4,FALSE)))","v":190},{"$f":"M174","v":186000},0,16000,18796.96,217.97036056624427,30,8.36,0.65,{"$f":"VLOOKUP($B138,$B$29:$P$43,15,FALSE)","v":6.5},{"$f":"1/((5280/43560)*U185*C185*T185)","v":1.6272189349112426E-2},{"$f":"1/V185","v":61.454545454545453},"Over-the-Top Sprayer 1",{"$f":"IF($Y$180=0,0,IF('Crop 1'!$AA$8>0,1*'Crop 1'!$AA$8,0))","v":13},{"$f":"IF($Z$180=0,0,IF('Crop 2'!$AA$8>0,1*'Crop 2'!$AA$8,0))","v":3},{"$f":"IF($AA$180=0,0,IF($AA$169=0,0,IF('Crop 3'!$AA$8>0,1*'Crop 3'!$AA$8,0)))","v":2},{"$f":"IF(Y185>0,$V185*Inputs!$D$13,0)","v":4.8816568047337281},{"$f":"IF(Z185>0,$V185*Inputs!$D$15,0)","v":3.2544378698224854},{"$f":"IF(AA185>0,$V185*Inputs!$D$17,0)","v":1.6272189349112427},1.6272189349112426E-2,{"$f":"IFERROR(((($D185-$G185)*(Inputs!$V$19/(1-((1+Inputs!$V$19)^(-$I185))))+(($G185*Inputs!$V$19)))/H185),0)","v":76.743340939433821},{"$f":"VLOOKUP(B138,B36:N40,13,FALSE)*$D185/($F185-$E185)","v":35.74666666666667},{"$f":"IF(J174=\"No Tractor\",0,V185)","v":1.6272189349112426E-2},{"$f":"IF(J174=\"No Tractor\",0,((($M185-$P185)*(Inputs!$V$19/(1-((1+Inputs!$V$19)^(-$R185))))+(($P185*Inputs!$V$19)))/(Q185)))","v":60.902484261351596},{"$f":"IF(J185=\"No Tractor\",0,(VLOOKUP($K185,$N$5:$R$15,5,FALSE)*$M185)/($O185-$N185))","v":9.3000000000000007},{"$f":"W185","v":61.454545454545453},{"$f":"$S185","v":8.36},{"$f":"($AG185+$AJ185)","v":45.046666666666667},{"$f":"($AF185+$AI185)","v":137.64582520078542},{"$f":"Inputs!$AA$13+Inputs!$AA$15*(Defaults!$N$29-1)","v":17.670000000000002},{"$f":"S185*Inputs!$V$13","v":14.629999999999999},45.046666666666667,{"$f":"($AF185+$AI185)","v":137.64582520078542},60.902484261351596,0,0,0,{"$f":"IF($J185=AW$180,SUM(($AH185*Inputs!$AA$13)+$AJ185+($S185*Inputs!$V$13)),0)","v":24.143816568047335},{"$f":"IF($J185=AX$180,SUM(($AH185*Inputs!$AA$13)+$AJ185+($S185*Inputs!$V$13)),0)","v":0},{"$f":"IF($J185=AY$180,SUM(($AH185*Inputs!$AA$13)+$AJ185+($S185*Inputs!$V$13)),0)","v":0},{"$f":"IF($J185=AZ$180,SUM(($AH185*Inputs!$AA$13)+$AJ185+($S185*Inputs!$V$13)),0)","v":0},4.8816568047337281,0,0,0,4.8816568047337281,0,0,0,4.8816568047337281,0,0,0]
[null,"Post-Directed Sprayer 2",20,12700,0,1600,5025.3500000000004,25.384615384615383,30,"Tractor 1",{"$f":"IF(J186=\"No Tractor\",0,IF(J186=\"N/A\",0,IF($E$138=2,VLOOKUP($J186,$C$130:$D$133,2,FALSE),0)))","v":"MFWD 190"},{"$f":"IF(J186=\"No Tractor\",0,IF(J186=\"N/A\",0,IF($E$138=2,VLOOKUP($J186,$C$130:$F$133,4,FALSE),0)))","v":190},{"$f":"M175","v":186000},0,16000,18796.96,217.97036056624427,30,8.36,0.65,{"$f":"IF($E$138=2,VLOOKUP($B139,$B$29:$P$43,15,FALSE),0)","v":7.5},{"$f":"IF(E138=2,1/((5280/43560)*U186*C186*T186))","v":8.4615384615384606E-2},{"$f":"IF($E$138=2,1/V186,0)","v":11.81818181818182},"Post-Directed Sprayer 2",{"$f":"IF($Y$180=0,0,IF($E$138=2,IF('Crop 1'!$AC$8>0,1*'Crop 1'!$AC$8,0)))","v":1},{"$f":"IF($Y$180=0,0,IF($E$138=2,IF('Crop 2'!$AC$8>0,1*'Crop 2'!$AC$8,0)))","v":0},{"$f":"IF($Y$180=0,0,IF($E$138=2,IF('Crop 3'!$AC$8>0,1*'Crop 3'!$AC$8,0)))","v":0},{"$f":"IF($E$138=2,IF(Y186>0,$V186*Inputs!$D$13,0),0)","v":25.384615384615383},{"$f":"IF($E$138=2,IF(Z186>0,$V186*Inputs!$D$15,0),0)","v":0},{"$f":"IF($E$138=2,IF(AA186>0,$V186*Inputs!$D$17,0),0)","v":0},8.4615384615384606E-2,{"$f":"IFERROR(((($D186-$G186)*(Inputs!$V$19/(1-((1+Inputs!$V$19)^(-$I186))))+(($G186*Inputs!$V$19)))/H186),0)","v":33.842386640521759},{"$f":"IF($E$138=2,VLOOKUP(B139,B36:N40,13,FALSE)*$D186/($F186-$E186),0)","v":5.953125},{"$f":"IF(J175=\"No Tractor\",0,IF(E138=2,V186,0))","v":8.4615384615384606E-2},{"$f":"IF(J175=\"No Tractor\",0,IF($E138=2,((($M186-$P186)*(Inputs!$V$19/(1-((1+Inputs!$V$19)^(-$R186))))+(($P186*Inputs!$V$19)))/(Q186)),0))","v":60.902484261351596},{"$f":"IF(J186=\"No Tractor\",0,IF(E138=2,(VLOOKUP($K186,$N$5:$R$15,5,FALSE)*$M186)/($O186-$N186),0))","v":9.3000000000000007},{"$f":"IF($E$138=2,W186,0)","v":11.81818181818182},{"$f":"IF($E$138=2,$S186,0)","v":8.36},{"$f":"IF($E$138=2,($AG186+$AJ186),0)","v":15.253125000000001},{"$f":"IF($E$138=2,($AF186+$AI186),0)","v":94.744870901873355},{"$f":"IF($E$138=2,Inputs!$AA$13+Inputs!$AA$15*(Defaults!$N$29-1),0)","v":17.670000000000002},{"$f":"S186*Inputs!$V$13","v":14.629999999999999},15.253125000000001,{"$f":"IF($E$138=2,($AF186+$AI186),0)","v":94.744870901873355},60.902484261351596,0,0,0,{"$f":"IF($J186=AW$180,SUM(($AH186*Inputs!$AA$13)+$AJ186+($S186*Inputs!$V$13)),0)","v":25.041846153846151},{"$f":"IF($J186=AX$180,SUM(($AH186*Inputs!$AA$13)+$AJ186+($S186*Inputs!$V$13)),0)","v":0},{"$f":"IF($J186=AY$180,SUM(($AH186*Inputs!$AA$13)+$AJ186+($S186*Inputs!$V$13)),0)","v":0},{"$f":"IF($J186=AZ$180,SUM(($AH186*Inputs!$AA$13)+$AJ186+($S186*Inputs!$V$13)),0)","v":0},25.384615384615383,0,0,0,25.384615384615383,0,0,0,25.384615384615383,0,0,0]
[null,"Fertilizer Spreader",40,11800,0,1200,3680.48,25.255102040816332,30,"Tractor 1",{"$f":"IF(J187=\"No Tractor\",0,VLOOKUP($J187,$C$130:$D$133,2,FALSE))","v":"MFWD 190"},{"$f":"IF(J187=\"No Tractor\",0,VLOOKUP($J187,$C$130:$F$133,4,FALSE))","v":190},{"$f":"M176","v":186000},0,16000,18796.96,217.97036056624427,30,8.36,0.7,{"$f":"VLOOKUP($B140,$B$29:$P$43,15,FALSE)","v":7},{"$f":"1/((5280/43560)*U187*C187*T187)","v":4.2091836734693883E-2},{"$f":"1/V187","v":23.757575757575754},"Fertilizer Spreader",{"$f":"IF($Y$180=0,0,IF('Crop 1'!$AE$8>0,1*'Crop 1'!$AE$8,0))","v":1},{"$f":"IF($Z$180=0,0,IF('Crop 2'!$AE$8>0,1*'Crop 2'!$AE$8,0))","v":1},{"$f":"IF($AA$180=0,0,IF('Crop 3'!$AE$8>0,1*'Crop 3'!$AE$8,0))","v":1},{"$f":"IF(Y187>0,$V187*Inputs!$D$13,0)","v":12.627551020408164},{"$f":"IF(Z187>0,$V187*Inputs!$D$15,0)","v":8.4183673469387763},{"$f":"IF(AA187>0,$V187*Inputs!$D$17,0)","v":4.2091836734693882},4.2091836734693883E-2,{"$f":"IFERROR(((($D187-$G187)*(Inputs!$V$19/(1-((1+Inputs!$V$19)^(-$I187))))+(($G187*Inputs!$V$19)))/H187),0)","v":32.100566788898369},{"$f":"N41*$D187/($F187-$E187)","v":7.8666666666666663},{"$f":"IF(J176=\"No Tractor\",0,V187)","v":4.2091836734693883E-2},{"$f":"IF(J176=\"No Tractor\",0,((($M187-$P187)*(Inputs!$V$19/(1-((1+Inputs!$V$19)^(-$R187))))+(($P187*Inputs!$V$19)))/(Q187)))","v":60.902484261351596},{"$f":"IF(J187=\"No Tractor\",0,(VLOOKUP($K187,$N$5:$R$15,5,FALSE)*$M187)/($O187-$N187))","v":9.3000000000000007},{"$f":"W187","v":23.757575757575754},{"$f":"$S187","v":8.36},{"$f":"($AG187+$AJ187)","v":17.166666666666668},{"$f":"($AF187+$AI187)","v":93.003051050249965},{"$f":"Inputs!$AA$13+Inputs!$AA$15*(Defaults!$N$28-1)","v":17.670000000000002},{"$f":"S187*Inputs!$V$13","v":14.629999999999999},17.166666666666668,{"$f":"($AF187+$AI187)","v":93.003051050249965},60.902484261351596,0,0,0,{"$f":"IF($J187=AW$180,SUM(($AH187*Inputs!$AA$13)+$AJ187+($S187*Inputs!$V$13)),0)","v":24.483086734693877},{"$f":"IF($J187=AX$180,SUM(($AH187*Inputs!$AA$13)+$AJ187+($S187*Inputs!$V$13)),0)","v":0},{"$f":"IF($J187=AY$180,SUM(($AH187*Inputs!$AA$13)+$AJ187+($S187*Inputs!$V$13)),0)","v":0},{"$f":"IF($J187=AZ$180,SUM(($AH187*Inputs!$AA$13)+$AJ187+($S187*Inputs!$V$13)),0)","v":0},12.627551020408164,0,0,0,12.627551020408164,0,0,0,12.627551020408164,0,0,0]
[null,"Manure Spreader",15,14427.9,0,2000,2877.58,18.333333333333332,30,"Tractor 1",{"$f":"IF(J188=\"No Tractor\",0,VLOOKUP($J188,$C$130:$D$133,2,FALSE))","v":"MFWD 190"},{"$f":"IF(J188=\"No Tractor\",0,VLOOKUP($J188,$C$130:$F$133,4,FALSE))","v":190},{"$f":"M177","v":186000},0,16000,18796.96,217.97036056624427,30,8.36,0.6,{"$f":"VLOOKUP($B141,$B$29:$P$43,15,FALSE)","v":5},{"$f":"1/((5280/43560)*U188*C188*T188)","v":0.18333333333333332},{"$f":"1/V188","v":5.454545454545455},"Manure Spreader",{"$f":"IF($Y$180=0,0,IF('Crop 1'!$AG$8>0,1*'Crop 1'!$AG$8,0))","v":0},{"$f":"IF($Z$180=0,0,IF('Crop 2'!$AG$8>0,1*'Crop 2'!$AG$8,0))","v":0},{"$f":"IF($AA$180=0,0,IF('Crop 3'!$AG$8>0,1*'Crop 3'!$AG$8,0))","v":1},{"$f":"IF(Y188>0,$V188*Inputs!$D$13,0)","v":0},{"$f":"IF(Z188>0,$V188*Inputs!$D$15,0)","v":0},{"$f":"IF(AA188>0,$V188*Inputs!$D$17,0)","v":18.333333333333332},{"$f":"V188","v":0.18333333333333332},{"$f":"IFERROR(((($D188-$G188)*(Inputs!$V$19/(1-((1+Inputs!$V$19)^(-$I188))))+(($G188*Inputs!$V$19)))/H188),0)","v":55.187616837912117},{"$f":"N42*$D188/($F188-$E188)","v":3.6069749999999998},{"$f":"IF(J177=\"No Tractor\",0,V188)","v":0.18333333333333332},{"$f":"IF(J177=\"No Tractor\",0,((($M188-$P188)*(Inputs!$V$19/(1-((1+Inputs!$V$19)^(-$R188))))+(($P188*Inputs!$V$19)))/(Q188)))","v":60.902484261351596},{"$f":"IF(J188=\"No Tractor\",0,(VLOOKUP($K188,$N$5:$R$15,5,FALSE)*$M188)/($O188-$N188))","v":9.3000000000000007},{"$f":"W188","v":5.454545454545455},{"$f":"$S188","v":8.36},{"$f":"($AG188+$AJ188)","v":12.906975000000001},{"$f":"($AF188+$AI188)","v":116.09010109926371},{"$f":"Inputs!$AA$13+Inputs!$AA$15*(Defaults!$N$28-1)","v":17.670000000000002},{"$f":"S188*Inputs!$V$13","v":14.629999999999999},{"$f":"AM188","v":12.906975000000001},{"$f":"($AF188+$AI188)","v":116.09010109926371},60.902484261351596,0,0,0,{"$f":"IF($J188=AW$180,SUM(($AH188*Inputs!$AA$13)+$AJ188+($S188*Inputs!$V$13)),0)","v":26.338999999999999},{"$f":"IF($J188=AX$180,SUM(($AH188*Inputs!$AA$13)+$AJ188+($S188*Inputs!$V$13)),0)","v":0},{"$f":"IF($J188=AY$180,SUM(($AH188*Inputs!$AA$13)+$AJ188+($S188*Inputs!$V$13)),0)","v":0},{"$f":"IF($J188=AZ$180,SUM(($AH188*Inputs!$AA$13)+$AJ188+($S188*Inputs!$V$13)),0)","v":0},0,0,0,0,0,0,0,0,0,0,0,0]
[null,null,null,null,null,null,null,null,null,null,null,null,null,null,null,null,null,null,null,null,null,null,null,null,null,null,null,null,null,null,null,null,null,null,null,null,null,null,null,null,null,null,null,null,{"$f":"IFERROR(AVERAGEIF(AS181:AS188,\">0\"),0)","v":60.902484261351596},0,0,0,25.32749578855211,0,0,0,{"$f":"SUM(BA181:BA188)","v":77.509207825141885},0,0,0,77.509207825141885,0,0,0,77.509207825141885,0,0,0]
[]
[null,null,"From Budgets, Shows implement IF amount in budget is >0"]
[null,null,{"$f":"C204","v":"Cotton"},{"$f":"E204","v":"Soybean"},{"$f":"G204","v":"Est. Pasture or Hay"}]
[null,"Herbicide",{"$f":"IF(C192=\"No Crop\",\"\",IF('Crop 1'!$L$13>0,IF(OR('Crop 1'!$L$14>0,'Crop 1'!$L$15>0,'Crop 1'!$L$16>0),'Crop 1'!$C$13,\"\"),\"\"))","v":"Over-the-Top Sprayer 1"},{"$f":"IF(D192=\"No Crop\",\"\",IF('Crop 2'!$L$13>0,IF(OR('Crop 2'!$L$14>0,'Crop 2'!$L$15>0,'Crop 2'!$L$16>0),'Crop 2'!$C$13,\"\"),\"\"))","v":"Over-the-Top Sprayer 1"},{"$f":"IF(E192=\"No Crop\",\"\",IF('Crop 3'!$L$13>0,IF(OR('Crop 3'!$L$14>0,'Crop 3'!$L$15>0,'Crop 3'!$L$16>0),'Crop 3'!$C$13,\"\"),\"\"))","v":"Over-the-Top Sprayer 1"}]
[null,"Herbicide",{"$f":"IF(C192=\"No Crop\",\"\",IF('Crop 1'!$L$18>0,IF(OR('Crop 1'!$L$19>0,'Crop 1'!$L$20>0,'Crop 1'!$L$21>0),'Crop 1'!$C$18,\"\"),\"\"))","v":"Over-the-Top Sprayer 1"},{"$f":"IF(D192=\"No Crop\",\"\",IF('Crop 2'!$L$18>0,IF(OR('Crop 2'!$L$19>0,'Crop 2'!$L$20>0,'Crop 2'!$L$21>0),'Crop 2'!$C$18,\"\"),\"\"))","v":""},{"$f":"IF(E192=\"No Crop\",\"\",IF('Crop 3'!$L$18>0,IF(OR('Crop 3'!$L$19>0,'Crop 3'!$L$20>0,'Crop 3'!$L$21>0),'Crop 3'!$C$18,\"\"),\"\"))","v":"Over-the-Top Sprayer 1"}]
[null,"Fertilizer",{"$f":"IF(C192=\"No Crop\",\"\",IF('Crop 1'!$L$23>0,IF(OR('Crop 1'!$L$24>0,'Crop 1'!$L$25>0,'Crop 1'!$L$26>0,'Crop 1'!$L$27>0,'Crop 1'!$L$28>0,'Crop 1'!$L$29>0),'Crop 1'!$C$23,\"\"),\"\"))","v":"Fertilizer Spreader"},{"$f":"IF(D192=\"No Crop\",\"\",IF('Crop 2'!$L$23>0,IF(OR('Crop 2'!$L$24>0,'Crop 2'!$L$25>0,'Crop 2'!$L$26>0,'Crop 2'!$L$27>0,'Crop 2'!$L$28>0,'Crop 2'!$L$29>0),'Crop 2'!$C$23,\"\"),\"\"))","v":"Fertilizer Spreader"},{"$f":"IF(E192=\"No Crop\",\"\",IF('Crop 3'!$L$23>0,IF(OR('Crop 3'!$L$24>0,'Crop 3'!$L$25>0,'Crop 3'!$L$26>0,'Crop 3'!$L$27>0,'Crop 3'!$L$28>0,'Crop 3'!$L$29>0),'Crop 3'!$C$23,\"\"),\"\"))","v":"Fertilizer Spreader"}]
[null,"Planting",{"$f":"IF(C192=\"No Crop\",\"\",IF(OR('Crop 1'!$L$31>0,'Crop 1'!$L$32>0),'Crop 1'!$C$31,\"\"))","v":"Row Planter 1"},{"$f":"IF(D192=\"No Crop\",\"\",IF(OR('Crop 2'!$L$31>0,'Crop 2'!$L$32>0),'Crop 2'!$C$31,\"\"))","v":"Row Planter 1"},{"$f":"IF(E192=\"No Crop\",\"\",IF(OR('Crop 3'!$L$31>0,'Crop 3'!$L$32>0),'Crop 3'!$C$31,\"\"))","v":"No-Till Grain Drill 1"}]
[null,"Insecticide or Fertilizer",{"$f":"IF(C192=\"No Crop\",\"\",IF('Crop 1'!$L$33>0,IF(OR('Crop 1'!$L$34>0,'Crop 1'!$L$35>0)=TRUE,'Crop 1'!$C$33,\"\"),\"\"))","v":"Over-the-Top Sprayer 1"},{"$f":"IF(D192=\"No Crop\",\"\",IF('Crop 2'!$L$33>0,IF(OR('Crop 2'!$L$34>0,'Crop 2'!$L$35>0)=TRUE,'Crop 2'!$C$33,\"\"),\"\"))","v":"Over-the-Top Sprayer 1"},{"$f":"IF(E192=\"No Crop\",\"\",IF('Crop 3'!$L$33>0,IF(OR('Crop 3'!$L$34>0,'Crop 3'!$L$35>0)=TRUE,'Crop 3'!$C$33,\"\"),\"\"))","v":""}]
[null,"Defoliant or Fertilizer",{"$f":"IF(C192=\"No Crop\",\"\",IF('Crop 1'!$L$39>0,IF(OR('Crop 1'!$L$40>0,'Crop 1'!$L$41>0)=TRUE,'Crop 1'!$C$39,\"\"),\"\"))","v":"Over-the-Top Sprayer 1"},{"$f":"IF(D192=\"No Crop\",\"\",IF('Crop 2'!$L$39>0,IF(OR('Crop 2'!$L$40>0,'Crop 2'!$L$41>0)=TRUE,'Crop 2'!$C$39,\"\"),\"\"))","v":""},{"$f":"IF(E192=\"No Crop\",\"\",IF('Crop 3'!$L$39>0,IF(OR('Crop 3'!$L$40>0,'Crop 3'!$L$41>0)=TRUE,'Crop 3'!$C$39,\"\"),\"\"))","v":"Manure Spreader"}]
[null,"Herbicide",{"$f":"IF(C192=\"No Crop\",\"\",IF('Crop 1'!$L$48>0,IF(OR('Crop 1'!$L$49>0,'Crop 1'!$L$50>0,'Crop 1'!$L$51>0,'Crop 1'!$L$52>0,'Crop 1'!$L$53>0),'Crop 1'!$C$48,\"\"),\"\"))","v":"Over-the-Top Sprayer 1"},{"$f":"IF(D192=\"No Crop\",\"\",IF('Crop 2'!$L$48>0,IF(OR('Crop 2'!$L$49>0,'Crop 2'!$L$50>0,'Crop 2'!$L$51>0,'Crop 2'!$L$52>0,'Crop 2'!$L$53>0),'Crop 2'!$C$48,\"\"),\"\"))","v":""},{"$f":"IF(E192=\"No Crop\",\"\",IF('Crop 3'!$L$48>0,IF(OR('Crop 3'!$L$49>0,'Crop 3'!$L$50>0,'Crop 3'!$L$51>0,'Crop 3'!$L$52>0,'Crop 3'!$L$53>0),'Crop 3'!$C$48,\"\"),\"\"))","v":""}]
[null,"Herbicide",{"$f":"IF(C192=\"No Crop\",\"\",IF('Crop 1'!$L$55>0,IF(OR('Crop 1'!$L$56>0,'Crop 1'!$L$57>0,'Crop 1'!$L$58>0,'Crop 1'!$L$59>0),'Crop 1'!$C$55,\"\"),\"\"))","v":"Over-the-Top Sprayer 1"},{"$f":"IF(D192=\"No Crop\",\"\",IF('Crop 2'!$L$55>0,IF(OR('Crop 2'!$L$56>0,'Crop 2'!$L$57>0,'Crop 2'!$L$58>0,'Crop 2'!$L$59>0),'Crop 2'!$C$55,\"\"),\"\"))","v":""},{"$f":"IF(E192=\"No Crop\",\"\",IF('Crop 3'!$L$55>0,IF(OR('Crop 3'!$L$56>0,'Crop 3'!$L$57>0,'Crop 3'!$L$58>0,'Crop 3'!$L$59>0),'Crop 3'!$C$55,\"\"),\"\"))","v":""}]
[null,"Herbicide",{"$f":"IF(C192=\"No Crop\",\"\",IF('Crop 1'!$L$61>0,IF(OR('Crop 1'!$L$62>0,'Crop 1'!$L$63>0,'Crop 1'!$L$64>0,'Crop 1'!$L$65>0),'Crop 1'!$C$61,\"\"),\"\"))","v":"Post-Directed Sprayer 2"},{"$f":"IF(D192=\"No Crop\",\"\",IF('Crop 2'!$L$61>0,IF(OR('Crop 2'!$L$62>0,'Crop 2'!$L$63>0,'Crop 2'!$L$64>0,'Crop 2'!$L$65>0),'Crop 2'!$C$61,\"\"),\"\"))","v":""},{"$f":"IF(E192=\"No Crop\",\"\",IF('Crop 3'!$L$61>0,IF(OR('Crop 3'!$L$62>0,'Crop 3'!$L$63>0,'Crop 3'!$L$64>0,'Crop 3'!$L$65>0),'Crop 3'!$C$61,\"\"),\"\"))","v":""}]
[]
[]
[null,"With Tractor Guidance",{"$f":"IF(Inputs!$B$13=\"\",\"No Crop\",Inputs!$B$13)","v":"Cotton"},null,{"$f":"IF(Inputs!$B$15=\"\",\"No Crop\",Inputs!$B$15)","v":"Soybean"},null,{"$f":"IF(Inputs!$B$17=\"\",\"No Crop\",Inputs!$B$17)","v":"Est. Pasture or Hay"}]
[null,"Implement","acres",{"$f":"Inputs!$D$13","v":300},"acres",{"$f":"Inputs!$D$15","v":200},"acres",{"$f":"Inputs!$D$17","v":100},"Acre-Based Hours","Implement",null,null,"Implement Counter",null,null,"Annual Use by crop (hrs)",null,null,"Total \nAcre-Based","Tractor",null,null,"Tractor Use Hours",null,null,null,"Tractor Guidance"]
[null,null,"hrs/acre","annual use hours","hrs/acre","annual use hours","hrs/acre","annual use hours",null,{"$f":"$C$204","v":"Cotton"},{"$f":"$E$204","v":"Soybean"},{"$f":"$G$204","v":"Est. Pasture or Hay"},{"$f":"$C$204","v":"Cotton"},{"$f":"$E$204","v":"Soybean"},{"$f":"$G$204","v":"Est. Pasture or Hay"},{"$f":"$C$204","v":"Cotton"},{"$f":"$E$204","v":"Soybean"},{"$f":"$G$204","v":"Est. Pasture or Hay"},null,{"$f":"$C$204","v":"Cotton"},{"$f":"$E$204","v":"Soybean"},{"$f":"$G$204","v":"Est. Pasture or Hay"},{"$f":"$C$204","v":"Cotton"},{"$f":"$E$204","v":"Soybean"},{"$f":"$G$204","v":"Est. Pasture or Hay"},"Total",{"$f":"$C$204","v":"Cotton"},{"$f":"$E$204","v":"Soybean"},{"$f":"$G$204","v":"Est. Pasture or Hay"}]
[null,{"$f":"CONCATENATE(B134,\" 1\")","v":"Row Planter 1"},{"$f":"V170","v":0.11288975186832539},{"$f":"$D$205*C207*$Y$170","v":33.86692556049762},{"$f":"V170","v":0.11288975186832539},{"$f":"$F$205*E207*$Z$170","v":22.577950373665079},{"$f":"V170","v":0.11288975186832539},{"$f":"$H$205*G207*$AA$170","v":0},{"$f":"SUM(D207+F207+H207)","v":56.444875934162695},{"$f":"IFERROR(VLOOKUP($B$207,$C$193:$C$201,1,FALSE),0)","v":"Row Planter 1"},{"$f":"IFERROR(VLOOKUP($B$207,$D$193:$D$201,1,FALSE),0)","v":"Row Planter 1"},{"$f":"IFERROR(VLOOKUP($B$207,$E$193:$E$201,1,FALSE),0)","v":0},{"$f":"IF(J207=B207,1,0)","v":1},{"$f":"IF(K207=B207,1,0)","v":1},{"$f":"IF(L207=B207,1,0)","v":0},{"$f":"M207*D207","v":33.86692556049762},{"$f":"N207*F207","v":22.577950373665079},{"$f":"O207*H207","v":0},{"$f":"SUM(P207:R207)","v":56.444875934162695},{"$f":"IF(J207=$B$207,$J$170,0)","v":"Tractor 1"},{"$f":"IF(K207=$B$207,$J$170,0)","v":"Tractor 1"},{"$f":"IF(L207=$B$207,$J$170,0)","v":0},{"$f":"IFERROR(VLOOKUP(T207,$N$216:$Z$219,10,FALSE)*(P207/VLOOKUP(T207,$N$216:$Z$219,3,FALSE)),0)","v":33.86692556049762},22.577950373665079,0,{"$f":"SUM(W207:Y207)","v":56.444875934162695},{"$f":"IF(J207=$B$207,$B$159,0)","v":"Sub-meter Receiver 1"},{"$f":"IF(K207=$B$207,$B$159,0)","v":"Sub-meter Receiver 1"},{"$f":"IF(L207=$B$207,$B$159,0)","v":0}]
[null,{"$f":"CONCATENATE(B135,\" 2\")","v":"Row Planter 2"},0,{"$f":"$D$205*C208*$Y$171","v":0},0,{"$f":"$F$205*E208*$Z$171","v":0},0,{"$f":"$H$205*G208*$AA$171","v":0},{"$f":"SUM(H208+F208+D208)","v":0},{"$f":"IFERROR(VLOOKUP($B$208,$C$193:$C$201,1,FALSE),0)","v":0},{"$f":"IFERROR(VLOOKUP($B$208,$D$193:$D$201,1,FALSE),0)","v":0},{"$f":"IFERROR(VLOOKUP($B$208,$E$193:$E$201,1,FALSE),0)","v":0},{"$f":"IF(J208=B208,1,0)","v":0},0,{"$f":"IF(L208=B208,1,0)","v":0},{"$f":"M208*D208","v":0},0,0,{"$f":"SUM(P208:R208)","v":0},{"$f":"IF(J208=$B$208,$J$171,0)","v":0},{"$f":"IF(K208=$B$208,$J$171,0)","v":0},{"$f":"IF(L208=$B$208,$J$171,0)","v":0},0,0,0,{"$f":"SUM(W208:Y208)","v":0},{"$f":"IF(J208=$B$208,$B$160,0)","v":0},{"$f":"IF(K208=$B$208,$B$160,0)","v":0},{"$f":"IF(L208=$B$208,$B$160,0)","v":0}]
[null,{"$f":"CONCATENATE(B136,\" 1\")","v":"No-Till Grain Drill 1"},0.19218136329964919,{"$f":"$D$205*C209*$Y$172","v":0},0.19218136329964919,{"$f":"$F$205*E209*$Z$172","v":0},0.19218136329964919,{"$f":"$H$205*G209*$AA$172","v":19.218136329964921},{"$f":"SUM(D209+F209+H209)","v":19.218136329964921},{"$f":"IFERROR(VLOOKUP($B$209,$C$193:$C$201,1,FALSE),0)","v":0},{"$f":"IFERROR(VLOOKUP($B$209,$D$193:$D$201,1,FALSE),0)","v":0},{"$f":"IFERROR(VLOOKUP($B$209,$E$193:$E$201,1,FALSE),0)","v":"No-Till Grain Drill 1"},{"$f":"IF(J209=B209,1,0)","v":0},0,{"$f":"IF(L209=B209,1,0)","v":1},{"$f":"M209*D209","v":0},0,{"$f":"O209*H209","v":19.218136329964921},19.218136329964921,{"$f":"IF(J209=$B$209,$J$172,0)","v":0},{"$f":"IF(K209=$B$209,$J$172,0)","v":0},{"$f":"IF(L209=$B$209,$J$172,0)","v":"Tractor 1"},0,0,19.218136329964921,19.218136329964921,{"$f":"IF(J209=$B$209,$B$161,0)","v":0},{"$f":"IF(K209=$B$209,$B$161,0)","v":0},{"$f":"IF(L209=$B$209,$B$161,0)","v":"Sub-meter Receiver 1"}]
[null,{"$f":"CONCATENATE(B137,\" 2\")","v":"No-Till Grain Drill 2"},0,{"$f":"$D$205*C210*$Y$173","v":0},0,{"$f":"$F$205*E210*$Z$173","v":0},0,{"$f":"$H$205*G210*$AA$173","v":0},{"$f":"SUM(H210+F210+D210)","v":0},{"$f":"IFERROR(VLOOKUP($B$210,$C$193:$C$201,1,FALSE),0)","v":0},{"$f":"IFERROR(VLOOKUP($B$210,$D$193:$D$201,1,FALSE),0)","v":0},{"$f":"IFERROR(VLOOKUP($B$210,$E$193:$E$201,1,FALSE),0)","v":0},0,0,0,0,0,0,0,{"$f":"IF(J210=$B$210,$J$173,0)","v":0},{"$f":"IF(K210=$B$210,$J$173,0)","v":0},{"$f":"IF(L210=$B$210,$J$173,0)","v":0},0,0,0,0,{"$f":"IF(J210=$B$210,$B$162,0)","v":0},{"$f":"IF(K210=$B$210,$B$162,0)","v":0},{"$f":"IF(L210=$B$210,$B$162,0)","v":0}]
[null,{"$f":"CONCATENATE(B138,\" 1\")","v":"Over-the-Top Sprayer 1"},1.5920349622456142E-2,{"$f":"$D$205*C211*$Y$174","v":62.089363527578953},1.5920349622456142E-2,{"$f":"$F$205*E211*$Z$174","v":9.5522097734736846},1.5920349622456142E-2,{"$f":"$H$205*G211*$AA$174","v":3.1840699244912285},{"$f":"SUM(D211+F211+H211)","v":74.825643225543857},{"$f":"IFERROR(VLOOKUP($B$211,$C$193:$C$201,1,FALSE),0)","v":"Over-the-Top Sprayer 1"},{"$f":"IFERROR(VLOOKUP($B$211,$D$193:$D$201,1,FALSE),0)","v":"Over-the-Top Sprayer 1"},{"$f":"IFERROR(VLOOKUP($B$211,$E$193:$E$201,1,FALSE),0)","v":"Over-the-Top Sprayer 1"},1,{"$f":"IF(K211=B211,1,0)","v":1},1,{"$f":"M211*D211","v":62.089363527578953},{"$f":"N211*F211","v":9.5522097734736846},{"$f":"O211*H211","v":3.1840699244912285},74.825643225543857,{"$f":"IF(J211=$B$211,$J$174,0)","v":"Tractor 1"},{"$f":"IF(K211=$B$211,$J$174,0)","v":"Tractor 1"},{"$f":"IF(L211=$B$211,$J$174,0)","v":"Tractor 1"},62.089363527578953,9.5522097734736846,3.1840699244912285,74.825643225543857,{"$f":"IF(J211=$B$211,$B$163,0)","v":"Sub-meter Receiver 1"},{"$f":"IF(K211=$B$211,$B$163,0)","v":"Sub-meter Receiver 1"},{"$f":"IF(L211=$B$211,$B$163,0)","v":"Sub-meter Receiver 1"}]
[null,{"$f":"CONCATENATE(B139,\" 2\")","v":"Post-Directed Sprayer 2"},8.2785818036771944E-2,{"$f":"$D$205*C212*$Y$175","v":24.835745411031581},8.2785818036771944E-2,{"$f":"$F$205*E212*$Z$175","v":0},8.2785818036771944E-2,{"$f":"$H$205*G212*$AA$175","v":0},{"$f":"SUM(H212+F212+D212)","v":24.835745411031581},{"$f":"IFERROR(VLOOKUP($B$212,$C$193:$C$201,1,FALSE),0)","v":"Post-Directed Sprayer 2"},{"$f":"IFERROR(VLOOKUP($B$212,$D$193:$D$201,1,FALSE),0)","v":0},{"$f":"IFERROR(VLOOKUP($B$212,$E$193:$E$201,1,FALSE),0)","v":0},1,0,0,{"$f":"M212*D212","v":24.835745411031581},0,0,24.835745411031581,{"$f":"IF(J212=$B$212,$J$175,0)","v":"Tractor 1"},{"$f":"IF(K212=$B$212,$J$175,0)","v":0},{"$f":"IF(L212=$B$212,$J$175,0)","v":0},24.835745411031581,0,0,24.835745411031581,{"$f":"IF(J212=$B$212,$B$164,0)","v":"Sub-meter Receiver 1"},{"$f":"IF(K212=$B$212,$B$164,0)","v":0},{"$f":"IF(L212=$B$212,$B$164,0)","v":0}]
[null,{"$f":"B140","v":"Fertilizer Spreader"},4.1181720707067687E-2,{"$f":"$D$205*C213*$Y$176","v":12.354516212120306},4.1181720707067687E-2,{"$f":"$F$205*E213*$Z$176","v":8.2363441414135377},4.1181720707067687E-2,{"$f":"$H$205*G213*$AA$176","v":4.1181720707067688},{"$f":"SUM(D213+F213+H213)","v":24.709032424240611},{"$f":"IFERROR(VLOOKUP($B$213,$C$193:$C$201,1,FALSE),0)","v":"Fertilizer Spreader"},{"$f":"IFERROR(VLOOKUP($B$213,$D$193:$D$201,1,FALSE),0)","v":"Fertilizer Spreader"},{"$f":"IFERROR(VLOOKUP($B$213,$E$193:$E$201,1,FALSE),0)","v":"Fertilizer Spreader"},1,1,1,12.354516212120306,{"$f":"N213*F213","v":8.2363441414135377},4.1181720707067688,24.709032424240611,{"$f":"IF(J213=$B$213,$J$176,0)","v":"Tractor 1"},{"$f":"IF(K213=$B$213,$J$176,0)","v":"Tractor 1"},{"$f":"IF(L213=$B$213,$J$176,0)","v":"Tractor 1"},12.354516212120306,8.2363441414135377,4.1181720707067688,24.709032424240611,{"$f":"IF(J213=$B$213,$B$165,0)","v":"Sub-meter Receiver 1"},{"$f":"IF(K213=$B$213,$B$165,0)","v":"Sub-meter Receiver 1"},{"$f":"IF(L213=$B$213,$B$165,0)","v":"Sub-meter Receiver 1"}]
[null,{"$f":"B141","v":"Manure Spreader"},0.17936927241300588,{"$f":"$D$205*C214*$Y$177","v":0},0.17936927241300588,{"$f":"$F$205*E214*$Z$177","v":0},0.17936927241300588,{"$f":"$H$205*G214*$AA$177","v":17.936927241300587},{"$f":"SUM(D214+F214+H214)","v":17.936927241300587},{"$f":"IFERROR(VLOOKUP($B$214,$C$193:$C$201,1,FALSE),0)","v":0},{"$f":"IFERROR(VLOOKUP($B$214,$D$193:$D$201,1,FALSE),0)","v":0},{"$f":"IFERROR(VLOOKUP($B$214,$E$193:$E$201,1,FALSE),0)","v":"Manure Spreader"},0,0,1,0,0,17.936927241300587,{"$f":"SUM(P214:R214)","v":17.936927241300587},{"$f":"IF(J214=$B$214,$J$177,0)","v":0},{"$f":"IF(K214=$B$214,$J$177,0)","v":0},{"$f":"IF(L214=$B$214,$J$177,0)","v":"Tractor 1"},0,0,17.936927241300587,{"$f":"SUM(W214:Y214)","v":17.936927241300587},{"$f":"IF(J214=$B$214,$B$166,0)","v":0},{"$f":"IF(K214=$B$214,$B$166,0)","v":0},{"$f":"IF(L214=$B$214,$B$166,0)","v":"Sub-meter Receiver 1"}]
[null,"Tractor",{"$f":"C204","v":"Cotton"},{"$f":"E204","v":"Soybean"},{"$f":"G204","v":"Est. Pasture or Hay"},"Acre-Based Hours","User Spec Hours","Wtd. Op. Cost ($/hr)","Total Cap Rec. ($/hr)",null,null,null,null,"Tractor","User Spec Hrs",{"$f":"P206","v":"Cotton"},{"$f":"Q206","v":"Soybean"},{"$f":"R206","v":"Est. Pasture or Hay"},"Total Acre-Based",{"$f":"T206","v":"Cotton"},"Soybean","Est. Pasture or Hay","Cotton","Soybean","Est. Pasture or Hay","User Spec Hrs",{"$f":"COUNTIF($AA$207:$AA$214,$B$221)","v":4},{"$f":"COUNTIF($AB$207:$AB$214,$B$221)","v":3},{"$f":"COUNTIF($AC$207:$AC$214,$B$221)","v":4}]
[null,{"$f":"$C$130","v":"Tractor 1"},{"$f":"P216","v":133.14655071122846},{"$f":"Q216","v":40.366504288552306},{"$f":"R216","v":44.457305566463504},{"$f":"SUM(C216:E216)","v":217.97036056624427},{"$f":"M130","v":217.97036056624427},{"$f":"AW178","v":25.297278924324534},{"$f":"AS178","v":60.902484261351596},null,null,null,null,{"$f":"$C$130","v":"Tractor 1"},{"$f":"M130","v":217.97036056624427},{"$f":"IF($T$207=$N216,$M$207*$P$207,0)+IF($T$208=$N216,$M$208*$P$208,0)+IF($T$209=$N216,$M$209*$P$209,0)+IF($T$210=$N216,$M$210*$P$210,0)+IF($T$211=$N216,$M$211*$P$211,0)+IF($T$212=$N216,$M$212*$P$212,0)+IF($T$213=$N216,$M$213*$P$213,0)+IF($T$214=$N216,$M$214*$P$214,0)","v":133.14655071122846},{"$f":"IF($U$207=$N216,$N$207*$Q$207,0)+IF($U$208=$N216,$N$208*$Q$208,0)+IF($U$209=$N216,$N$209*$Q$209,0)+IF($U$210=$N216,$N$210*$Q$210,0)+IF($U$211=$N216,$N$211*$Q$211,0)+IF($U$212=$N216,$N$212*$Q$212,0)+IF($U$213=$N216,$N$213*$Q$213,0)+IF($U$214=$N216,$N$214*$Q$214,0)","v":40.366504288552306},{"$f":"IF($V$207=$N216,$O$207*$R$207,0)+IF($V$208=$N216,$O$208*$R$208,0)+IF($V$209=$N216,$O$209*$R$209,0)+IF($V$210=$N216,$O$210*$R$210,0)+IF($V$211=$N216,$O$211*$R$211,0)+IF($V$212=$N216,$O$212*$R$212,0)+IF($V$213=$N216,$O$213*$R$213,0)+IF($V$214=$N216,$O$214*$R$214,0)","v":44.457305566463504},{"$f":"R216+Q216+P216","v":217.97036056624427},{"$f":"COUNTIF($T$207:$T$214,$N216)","v":4},{"$f":"COUNTIF($U$207:$U$214,$N216)","v":3},{"$f":"COUNTIF($V$207:$V$214,$N216)","v":4},{"$f":"$O$216*(P216/$S$216)","v":133.14655071122846},{"$f":"$O$216*(Q216/$S$216)","v":40.366504288552306},{"$f":"$O$216*(R216/$S$216)","v":44.457305566463504},{"$f":"SUM(W216:Y216)","v":217.97036056624427},{"$f":"COUNTIF($AA$207:$AA$214,$B$222)","v":0},{"$f":"COUNTIF($AB$207:$AB$214,$B$222)","v":0},{"$f":"COUNTIF($AC$207:$AC$214,$B$222)","v":0}]
[null,{"$f":"IF(E130<2,\"No Tractor\",$C$131)","v":"No Tractor"},{"$f":"IF(B217=\"No Tractor\",0,P217)","v":0},{"$f":"IF(B217=\"No Tractor\",0,Q217)","v":0},{"$f":"IF(B217=\"No Tractor\",0,R217)","v":0},{"$f":"IF(E130<2,0,SUM(C217:E217))","v":0},{"$f":"IF(E130<2,0,M131)","v":0},{"$f":"AX178","v":0},{"$f":"AT178","v":0},null,null,null,null,{"$f":"IF(E130<2,\"No Tractor\",$C$131)","v":"No Tractor"},{"$f":"IF(E130<2,0,M131)","v":0},{"$f":"IF($T$207=$N217,$M$207*$P$207,0)+IF($T$208=$N217,$M$208*$P$208,0)+IF($T$209=$N217,$M$209*$P$209,0)+IF($T$210=$N217,$M$210*$P$210,0)+IF($T$211=$N217,$M$211*$P$211,0)+IF($T$212=$N217,$M$212*$P$212,0)+IF($T$213=$N217,$M$213*$P$213,0)+IF($T$214=$N217,$M$214*$P$214,0)","v":0},{"$f":"IF($U$207=$N217,$N$207*$Q$207,0)+IF($U$208=$N217,$N$208*$Q$208,0)+IF($U$209=$N217,$N$209*$Q$209,0)+IF($U$210=$N217,$N$210*$Q$210,0)+IF($U$211=$N217,$N$211*$Q$211,0)+IF($U$212=$N217,$N$212*$Q$212,0)+IF($U$213=$N217,$N$213*$Q$213,0)+IF($U$214=$N217,$N$214*$Q$214,0)","v":0},{"$f":"IF($V$207=$N217,$O$207*$R$207,0)+IF($V$208=$N217,$O$208*$R$208,0)+IF($V$209=$N217,$O$209*$R$209,0)+IF($V$210=$N217,$O$210*$R$210,0)+IF($V$211=$N217,$O$211*$R$211,0)+IF($V$212=$N217,$O$212*$R$212,0)+IF($V$213=$N217,$O$213*$R$213,0)+IF($V$214=$N217,$O$214*$R$214,0)","v":0},{"$f":"IF(E130<2,0,R217+Q217+P217)","v":0},{"$f":"IF(E130<2,0,COUNTIF($T$207:$T$214,$N217))","v":0},{"$f":"IF(E130<2,0,COUNTIF($U$207:$U$214,$N217))","v":0},{"$f":"IF(E130<2,0,COUNTIF($V$207:$V$214,$N217))","v":0},{"$f":"IF(E130<2,0,$O$217*(P217/$S$217))","v":0},{"$f":"IF(E130<2,0,$O$217*(Q217/$S$217))","v":0},{"$f":"IF(E130<2,0,$O$217*(R217/$S$217))","v":0},{"$f":"IF(E130<2,0,SUM(W217:Y217))","v":0}]
[null,{"$f":"IF(E130<3,\"No Tractor\",$C$132)","v":"No Tractor"},{"$f":"IF(B218=\"No Tractor\",0,P218)","v":0},{"$f":"IF(B218=\"No Tractor\",0,Q218)","v":0},{"$f":"IF(B218=\"No Tractor\",0,R218)","v":0},{"$f":"IF(E130<3,0,SUM(C218:E218))","v":0},{"$f":"IF(E130<3,0,M132)","v":0},{"$f":"AY178","v":0},{"$f":"AU178","v":0},null,null,null,null,{"$f":"IF(E130<3,\"No Tractor\",$C$132)","v":"No Tractor"},{"$f":"IF(E130<3,0,M132)","v":0},{"$f":"IF($T$207=$N218,$M$207*$P$207,0)+IF($T$208=$N218,$M$208*$P$208,0)+IF($T$209=$N218,$M$209*$P$209,0)+IF($T$210=$N218,$M$210*$P$210,0)+IF($T$211=$N218,$M$211*$P$211,0)+IF($T$212=$N218,$M$212*$P$212,0)+IF($T$213=$N218,$M$213*$P$213,0)+IF($T$214=$N218,$M$214*$P$214,0)","v":0},{"$f":"IF($U$207=$N218,$N$207*$Q$207,0)+IF($U$208=$N218,$N$208*$Q$208,0)+IF($U$209=$N218,$N$209*$Q$209,0)+IF($U$210=$N218,$N$210*$Q$210,0)+IF($U$211=$N218,$N$211*$Q$211,0)+IF($U$212=$N218,$N$212*$Q$212,0)+IF($U$213=$N218,$N$213*$Q$213,0)+IF($U$214=$N218,$N$214*$Q$214,0)","v":0},{"$f":"IF($V$207=$N218,$O$207*$R$207,0)+IF($V$208=$N218,$O$208*$R$208,0)+IF($V$209=$N218,$O$209*$R$209,0)+IF($V$210=$N218,$O$210*$R$210,0)+IF($V$211=$N218,$O$211*$R$211,0)+IF($V$212=$N218,$O$212*$R$212,0)+IF($V$213=$N218,$O$213*$R$213,0)+IF($V$214=$N218,$O$214*$R$214,0)","v":0},{"$f":"IF(E130<3,0,R218+Q218+P218)","v":0},{"$f":"IF(E130<3,0,COUNTIF($T$207:$T$214,$N218))","v":0},{"$f":"IF(E130<3,0,COUNTIF($U$207:$U$214,$N218))","v":0},{"$f":"IF(E130<3,0,COUNTIF($V$207:$V$214,$N218))","v":0},{"$f":"IF(E130<3,0,$O$218*(P218/$S$218))","v":0},{"$f":"IF(E130<3,0,$O$218*(Q218/$S$218))","v":0},{"$f":"IF(E130<3,0,$O$218*(R218/$S$218))","v":0},{"$f":"IF(E130<3,0,SUM(W218:Y218))","v":0}]
[null,{"$f":"IF(E130<4,\"No Tractor\",$C$133)","v":"No Tractor"},{"$f":"IF(B219=\"No Tractor\",0,P219)","v":0},{"$f":"IF(B219=\"No Tractor\",0,Q219)","v":0},{"$f":"IF(B219=\"No Tractor\",0,R219)","v":0},{"$f":"IF(E130<4,0,SUM(C219:E219))","v":0},{"$f":"IF(E130<4,0,M133)","v":0},{"$f":"AZ178","v":0},{"$f":"AV178","v":0},null,null,null,null,{"$f":"IF(E130<4,\"No Tractor\",$C$133)","v":"No Tractor"},{"$f":"IF(E130<4,0,M133)","v":0},{"$f":"IF($T$207=$N219,$M$207*$P$207,0)+IF($T$208=$N219,$M$208*$P$208,0)+IF($T$209=$N219,$M$209*$P$209,0)+IF($T$210=$N219,$M$210*$P$210,0)+IF($T$211=$N219,$M$211*$P$211,0)+IF($T$212=$N219,$M$212*$P$212,0)+IF($T$213=$N219,$M$213*$P$213,0)+IF($T$214=$N219,$M$214*$P$214,0)","v":0},{"$f":"IF($U$207=$N219,$N$207*$Q$207,0)+IF($U$208=$N219,$N$208*$Q$208,0)+IF($U$209=$N219,$N$209*$Q$209,0)+IF($U$210=$N219,$N$210*$Q$210,0)+IF($U$211=$N219,$N$211*$Q$211,0)+IF($U$212=$N219,$N$212*$Q$212,0)+IF($U$213=$N219,$N$213*$Q$213,0)+IF($U$214=$N219,$N$214*$Q$214,0)","v":0},{"$f":"IF($V$207=$N219,$O$207*$R$207,0)+IF($V$208=$N219,$O$208*$R$208,0)+IF($V$209=$N219,$O$209*$R$209,0)+IF($V$210=$N219,$O$210*$R$210,0)+IF($V$211=$N219,$O$211*$R$211,0)+IF($V$212=$N219,$O$212*$R$212,0)+IF($V$213=$N219,$O$213*$R$213,0)+IF($V$214=$N219,$O$214*$R$214,0)","v":0},{"$f":"IF(E130<4,0,R219+Q219+P219)","v":0},{"$f":"IF(E130<4,0,COUNTIF($T$207:$T$214,$N219))","v":0},{"$f":"IF(E130<4,0,COUNTIF($U$207:$U$214,$N219))","v":0},{"$f":"IF(E130<4,0,COUNTIF($V$207:$V$214,$N219))","v":0},{"$f":"IF(E130<4,0,$O$219*(P219/$S$219))","v":0},{"$f":"IF(E130<4,0,$O$219*(Q219/$S$219))","v":0},{"$f":"IF(E130<4,0,$O$219*(R219/$S$219))","v":0},{"$f":"IF(E130<4,0,SUM(W219:Y219))","v":0}]
[null,"Tractor Guidance",{"$f":"C204","v":"Cotton"},{"$f":"E204","v":"Soybean"},{"$f":"G204","v":"Est. Pasture or Hay"},"Acre-Based Hours","Wtd. Op. Cost ($/hr)","Total Cap Rec. ($/hr)",null,null,null,null,null,null,"Tractor Guidance",{"$f":"P206","v":"Cotton"},{"$f":"Q206","v":"Soybean"},{"$f":"R206","v":"Est. Pasture or Hay"},"Total Acre-Based"]
[null,{"$f":"Defaults!F9","v":"Sub-meter Receiver 1"},null,null,null,null,null,null,null,null,null,null,null,null,{"$f":"B221","v":"Sub-meter Receiver 1"},{"$f":"IF($AA$207=$O221,$M$207*$P$207,0)+IF($AA$208=$O221,$M$208*$P$208,0)+IF($AA$209=$O221,$M$209*$P$209,0)+IF($AA$210=$O221,$M$210*$P$210,0)+IF($AA$211=$O221,$M$211*$P$211,0)+IF($AA$212=$O221,$M$212*$P$212,0)+IF($AA$213=$O221,$M$213*$P$213,0)+IF($AA$214=$O221,$M$214*$P$214,0)","v":133.14655071122846},{"$f":"IF($AB$207=$O221,$N$207*$Q$207,0)+IF($AB$208=$O221,$N$208*$Q$208,0)+IF($AB$209=$O221,$N$209*$Q$209,0)+IF($AB$210=$O221,$N$210*$Q$210,0)+IF($AB$211=$O221,$N$211*$Q$211,0)+IF($AB$212=$O221,$N$212*$Q$212,0)+IF($AB$213=$O221,$N$213*$Q$213,0)+IF($AB$214=$O221,$N$214*$Q$214,0)","v":40.366504288552306},{"$f":"IF($AC$207=$O221,$O$207*$R$207,0)+IF($AC$208=$O221,$O$208*$R$208,0)+IF($AC$209=$O221,$O$209*$R$209,0)+IF($AC$210=$O221,$O$210*$R$210,0)+IF($AC$211=$O221,$O$211*$R$211,0)+IF($AC$212=$O221,$O$212*$R$212,0)+IF($AC$213=$O221,$O$213*$R$213,0)+IF($AC$214=$O221,$O$214*$R$214,0)","v":44.457305566463504},{"$f":"R221+Q221+P221","v":217.97036056624427}]
[null,{"$f":"Defaults!F10","v":"Sub-meter Receiver 2"},null,null,null,null,null,null,null,null,null,null,null,null,{"$f":"B222","v":"Sub-meter Receiver 2"},{"$f":"IF(E142=1,0,IF($AA$207=$O222,$M$207*$P$207,0)+IF($AA$208=$O222,$M$208*$P$208,0)+IF($AA$209=$O222,$M$209*$P$209,0)+IF($AA$210=$O222,$M$210*$P$210,0)+IF($AA$211=$O222,$M$211*$P$211,0)+IF($AA$212=$O222,$M$212*$P$212,0)+IF($AA$213=$O222,$M$213*$P$213,0)+IF($AA$214=$O222,$M$214*$P$214,0))","v":0},{"$f":"IF(E142=1,0,IF($AB$207=$O222,$N$207*$Q$207,0)+IF($AB$208=$O222,$N$208*$Q$208,0)+IF($AB$209=$O222,$N$209*$Q$209,0)+IF($AB$210=$O222,$N$210*$Q$210,0)+IF($AB$211=$O222,$N$211*$Q$211,0)+IF($AB$212=$O222,$N$212*$Q$212,0)+IF($AB$213=$O222,$N$213*$Q$213,0)+IF($AB$214=$O222,$N$214*$Q$214,0))","v":0},{"$f":"IF(E142=1,0,IF($AC$207=$O222,$O$207*$R$207,0)+IF($AC$208=$O222,$O$208*$R$208,0)+IF($AC$209=$O222,$O$209*$R$209,0)+IF($AC$210=$O222,$O$210*$R$210,0)+IF($AC$211=$O222,$O$211*$R$211,0)+IF($AC$212=$O222,$O$212*$R$212,0)+IF($AC$213=$O222,$O$213*$R$213,0)+IF($AC$214=$O222,$O$214*$R$214,0))","v":0},{"$f":"R222+Q222+P222","v":0}]
[null,"Benchmark without Tractor Guidance",{"$f":"IF(Inputs!$B$13=\"\",\"No Crop\",Inputs!$B$13)","v":"Cotton"},null,{"$f":"IF(Inputs!$B$15=\"\",\"No Crop\",Inputs!$B$15)","v":"Soybean"},null,{"$f":"IF(Inputs!$B$17=\"\",\"No Crop\",Inputs!$B$17)","v":"Est. Pasture or Hay"}]
[null,{"$f":"B205","v":"Implement"},"acres",{"$f":"Inputs!$D$13","v":300},"acres",{"$f":"Inputs!$D$15","v":200},"acres",{"$f":"Inputs!$D$17","v":100},"Acre-Based Hours","Implement",null,null,"Implement Counter",null,null,"Annual Use by crop (hrs)",null,null,"Total \nAcre-Based","Tractor",null,null,"Tractor Use Hours"]
[null,null,"hrs/acre","annual use hours","hrs/acre","annual use hours","hrs/acre","annual use hours",null,{"$f":"$C$204","v":"Cotton"},{"$f":"$E$204","v":"Soybean"},{"$f":"$G$204","v":"Est. Pasture or Hay"},{"$f":"$C$204","v":"Cotton"},{"$f":"$E$204","v":"Soybean"},{"$f":"$G$204","v":"Est. Pasture or Hay"},{"$f":"$C$204","v":"Cotton"},{"$f":"$E$204","v":"Soybean"},{"$f":"$G$204","v":"Est. Pasture or Hay"},null,{"$f":"$C$204","v":"Cotton"},{"$f":"$E$204","v":"Soybean"},{"$f":"$G$204","v":"Est. Pasture or Hay"},{"$f":"$C$204","v":"Cotton"},{"$f":"$E$204","v":"Soybean"},{"$f":"$G$204","v":"Est. Pasture or Hay"},"Total"]
[null,{"$f":"B207","v":"Row Planter 1"},{"$f":"$V$181","v":0.11538461538461536},{"$f":"$D$224*C226*$Y181","v":34.615384615384606},{"$f":"$V$181","v":0.11538461538461536},{"$f":"$F$224*E226*$Z181","v":23.076923076923073},{"$f":"$V$181","v":0.11538461538461536},{"$f":"$H$224*G226*$AA181","v":0},{"$f":"SUM(D226+F226+H226)","v":57.692307692307679},{"$f":"IFERROR(VLOOKUP($B$226,$C$193:$C$201,1,FALSE),0)","v":"Row Planter 1"},{"$f":"IFERROR(VLOOKUP($B$226,$D$193:$D$201,1,FALSE),0)","v":"Row Planter 1"},{"$f":"IFERROR(VLOOKUP($B$226,$E$193:$E$201,1,FALSE),0)","v":0},{"$f":"IF(J226=B226,1,0)","v":1},{"$f":"IF(K226=B226,1,0)","v":1},{"$f":"IF(L226=B226,1,0)","v":0},{"$f":"M226*D226","v":34.615384615384606},{"$f":"N226*F226","v":23.076923076923073},{"$f":"O226*H226","v":0},{"$f":"SUM(P226:R226)","v":57.692307692307679},{"$f":"IF(J226=$B$226,$J$181,0)","v":"Tractor 1"},{"$f":"IF(K226=$B$226,$J$181,0)","v":"Tractor 1"},{"$f":"IF(L226=$B$226,$J$181,0)","v":0},{"$f":"IFERROR(VLOOKUP(T226,$N$235:$Z$238,10,FALSE)*(P226/VLOOKUP(T226,$N$235:$Z$238,3,FALSE)),0)","v":93.224396580850652},62.149597720567101,0,{"$f":"SUM(W226:Y226)","v":155.37399430141775}]
[null,"Row Planter 2",{"$f":"$V$182","v":false},0,{"$f":"$V$182","v":false},0,{"$f":"$V$182","v":false},0,{"$f":"SUM(H227+F227+D227)","v":0},{"$f":"IFERROR(VLOOKUP($B$227,$C$193:$C$201,1,FALSE),0)","v":0},{"$f":"IFERROR(VLOOKUP($B$227,$D$193:$D$201,1,FALSE),0)","v":0},{"$f":"IFERROR(VLOOKUP($B$227,$E$193:$E$201,1,FALSE),0)","v":0},0,0,0,0,0,0,{"$f":"SUM(P227:R227)","v":0},{"$f":"IF(J227=$B$227,$J$182,0)","v":0},{"$f":"IF(K227=$B$226,$J$182,0)","v":0},{"$f":"IF(L227=$B$227,$J$182,0)","v":0},0,0,0,{"$f":"SUM(W227:Y227)","v":0}]
[null,"No-Till Grain Drill 1",{"$f":"$V$183","v":0.19642857142857142},0,{"$f":"$V$183","v":0.19642857142857142},0,{"$f":"$V$183","v":0.19642857142857142},19.642857142857142,{"$f":"SUM(D228+F228+H228)","v":19.642857142857142},{"$f":"IFERROR(VLOOKUP($B$228,$C$193:$C$201,1,FALSE),0)","v":0},{"$f":"IFERROR(VLOOKUP($B$228,$D$193:$D$201,1,FALSE),0)","v":0},{"$f":"IFERROR(VLOOKUP($B$228,$E$193:$E$201,1,FALSE),0)","v":"No-Till Grain Drill 1"},0,0,1,0,0,19.642857142857142,19.642857142857142,{"$f":"IF(J228=$B$228,$J$183,0)","v":0},{"$f":"IF(K228=$B$228,$J$183,0)","v":0},{"$f":"IF(L228=$B$228,$J$183,0)","v":"Tractor 1"},0,0,52.901145678816057,52.901145678816057]
[null,"No-Till Grain Drill 2",{"$f":"$V$184","v":false},0,{"$f":"$V$184","v":false},0,{"$f":"$V$184","v":false},0,{"$f":"SUM(H229+F229+D229)","v":0},{"$f":"IFERROR(VLOOKUP($B$229,$C$193:$C$201,1,FALSE),0)","v":0},{"$f":"IFERROR(VLOOKUP($B$229,$D$193:$D$201,1,FALSE),0)","v":0},{"$f":"IFERROR(VLOOKUP($B$229,$E$193:$E$201,1,FALSE),0)","v":0},0,0,{"$f":"IF(L229=B229,1,0)","v":0},0,0,{"$f":"O229*H229","v":0},0,{"$f":"IF(J229=$B$229,$J$184,0)","v":0},{"$f":"IF(K229=$B$229,$J$184,0)","v":0},{"$f":"IF(L229=$B$229,$J$184,0)","v":0},0,0,0,0]
[null,"Over-the-Top Sprayer 1",{"$f":"$V$185","v":1.6272189349112426E-2},63.461538461538467,{"$f":"$V$185","v":1.6272189349112426E-2},9.7633136094674562,{"$f":"$V$185","v":1.6272189349112426E-2},3.2544378698224854,{"$f":"SUM(D230+F230+H230)","v":76.479289940828409},{"$f":"IFERROR(VLOOKUP($B$230,$C$193:$C$201,1,FALSE),0)","v":"Over-the-Top Sprayer 1"},{"$f":"IFERROR(VLOOKUP($B$230,$D$193:$D$201,1,FALSE),0)","v":"Over-the-Top Sprayer 1"},{"$f":"IFERROR(VLOOKUP($B$230,$E$193:$E$201,1,FALSE),0)","v":"Over-the-Top Sprayer 1"},1,1,1,63.461538461538467,9.7633136094674562,3.2544378698224854,76.479289940828409,{"$f":"IF(J230=$B$230,$J$185,0)","v":"Tractor 1"},{"$f":"IF(K230=$B$230,$J$185,0)","v":"Tractor 1"},{"$f":"IF(L230=$B$230,$J$185,0)","v":"Tractor 1"},170.91139373155957,26.294060574086085,8.7646868580286963,205.97014116367433]
[null,"Post-Directed Sprayer 2",{"$f":"$V$186","v":8.4615384615384606E-2},{"$f":"$D$224*C231*$Y186","v":25.384615384615383},{"$f":"$V$186","v":8.4615384615384606E-2},0,{"$f":"$V$186","v":8.4615384615384606E-2},0,{"$f":"SUM(H231+F231+D231)","v":25.384615384615383},{"$f":"IFERROR(VLOOKUP($B$231,$C$193:$C$201,1,FALSE),0)","v":"Post-Directed Sprayer 2"},{"$f":"IFERROR(VLOOKUP($B$231,$D$193:$D$201,1,FALSE),0)","v":0},{"$f":"IFERROR(VLOOKUP($B$231,$E$193:$E$201,1,FALSE),0)","v":0},1,0,0,{"$f":"M231*D231","v":25.384615384615383},0,0,{"$f":"SUM(P231:R231)","v":25.384615384615383},{"$f":"IF(J231=$B$231,$J$186,0)","v":"Tractor 1"},{"$f":"IF(K231=$B$231,$J$186,0)","v":0},{"$f":"IF(L231=$B$231,$J$186,0)","v":0},68.364557492623817,0,0,68.364557492623817]
[null,"Fertilizer Spreader",{"$f":"$V$187","v":4.2091836734693883E-2},12.627551020408164,{"$f":"$V$187","v":4.2091836734693883E-2},8.4183673469387763,{"$f":"$V$187","v":4.2091836734693883E-2},4.2091836734693882,{"$f":"SUM(D232+F232+H232)","v":25.255102040816332},{"$f":"IFERROR(VLOOKUP($B$232,$C$193:$C$201,1,FALSE),0)","v":"Fertilizer Spreader"},{"$f":"IFERROR(VLOOKUP($B$232,$D$193:$D$201,1,FALSE),0)","v":"Fertilizer Spreader"},{"$f":"IFERROR(VLOOKUP($B$232,$E$193:$E$201,1,FALSE),0)","v":"Fertilizer Spreader"},1,1,1,12.627551020408164,{"$f":"N232*F232","v":8.4183673469387763},4.2091836734693882,25.255102040816332,{"$f":"IF(J232=$B$232,$J$187,0)","v":"Tractor 1"},{"$f":"IF(K232=$B$232,$J$187,0)","v":"Tractor 1"},{"$f":"IF(L232=$B$232,$J$187,0)","v":"Tractor 1"},{"$f":"IFERROR(VLOOKUP(T232,$N$235:$Z$238,10,FALSE)*(P232/VLOOKUP(T232,$N$235:$Z$238,3,FALSE)),0)","v":34.007879364953183},22.671919576635453,11.335959788317727,68.015758729906366]
[null,"Manure Spreader",{"$f":"$V$188","v":0.18333333333333332},0,{"$f":"$V$188","v":0.18333333333333332},0,{"$f":"$V$188","v":0.18333333333333332},18.333333333333332,{"$f":"SUM(D233+F233+H233)","v":18.333333333333332},{"$f":"IFERROR(VLOOKUP($B$233,$C$193:$C$201,1,FALSE),0)","v":0},{"$f":"IFERROR(VLOOKUP($B$233,$D$193:$D$201,1,FALSE),0)","v":0},{"$f":"IFERROR(VLOOKUP($B$233,$E$193:$E$201,1,FALSE),0)","v":"Manure Spreader"},0,0,{"$f":"IF(L233=B233,1,0)","v":1},0,0,{"$f":"O233*H233","v":18.333333333333332},{"$f":"SUM(P233:R233)","v":18.333333333333332},{"$f":"IF(J233=$B$233,$J$188,0)","v":0},{"$f":"IF(K233=$B$233,$J$188,0)","v":0},{"$f":"IF(L233=$B$233,$J$188,0)","v":"Tractor 1"},{"$f":"IFERROR(VLOOKUP(T233,$N$235:$Z$238,10,FALSE)*(P233/VLOOKUP(T233,$N$235:$Z$238,3,FALSE)),0)","v":0},{"$f":"IFERROR(VLOOKUP(U233,$N$235:$Z$238,10,FALSE)*(Q233/VLOOKUP(U233,$N$235:$Z$238,3,FALSE)),0)","v":0},{"$f":"IFERROR(VLOOKUP(V233,$N$235:$Z$238,10,FALSE)*(R233/VLOOKUP(V233,$N$235:$Z$238,3,FALSE)),0)","v":49.374402633561644},{"$f":"SUM(W233:Y233)","v":49.374402633561644}]
[null,{"$f":"B215","v":"Tractor"},{"$f":"$C$223","v":"Cotton"},{"$f":"E223","v":"Soybean"},{"$f":"G223","v":"Est. Pasture or Hay"},"Acre-Based Hours",null,"Wtd. Op. Cost ($/hr)","Total Cap Rec. ($/hr)",null,null,null,null,"Tractor","Benchmark Spec Hrs",{"$f":"P225","v":"Cotton"},{"$f":"Q225","v":"Soybean"},{"$f":"R225","v":"Est. Pasture or Hay"},"Total Acre-Based",{"$f":"T225","v":"Cotton"},"Soybean","Est. Pasture or Hay","Cotton","Soybean","Est. Pasture or Hay","User Spec Hrs"]
[null,{"$f":"B216","v":"Tractor 1"},{"$f":"P235","v":136.08908948194662},{"$f":"Q235","v":41.258604033329306},{"$f":"R235","v":45.439812019482346},{"$f":"SUM(C235:E235)","v":222.78750553475828},null,{"$f":"AW189","v":25.32749578855211},{"$f":"AS189","v":60.902484261351596},null,null,null,null,{"$f":"$C$130","v":"Tractor 1"},{"$f":"VLOOKUP(D100,$B$5:$M$15,12,FALSE)","v":600},{"$f":"IF($T$226=$N235,$M$226*$P$226,0)+IF($T$227=$N235,$M$227*$P$227,0)+IF($T$228=$N235,$M$228*$P$228,0)+IF($T$229=$N235,$M$229*$P$229,0)+IF($T$230=$N235,$M$230*$P$230,0)+IF($T$231=$N235,$M$231*$P$231,0)+IF($T$232=$N235,$M$232*$P$232,0)+IF($T$233=$N235,$M$233*$P$233,0)","v":136.08908948194662},{"$f":"IF($U$226=$N235,$N$226*$Q$226,0)+IF($U$227=$N235,$N$227*$Q$227,0)+IF($U$228=$N235,$N$228*$Q$228,0)+IF($U$229=$N235,$N$229*$Q$229,0)+IF($U$230=$N235,$N$230*$Q$230,0)+IF($U$231=$N235,$N$231*$Q$231,0)+IF($U$232=$N235,$N$232*$Q$232,0)+IF($U$233=$N235,$N$233*$Q$233,0)","v":41.258604033329306},{"$f":"IF($V$226=$N235,$O$226*$R$226,0)+IF($V$227=$N235,$O$227*$R$227,0)+IF($V$228=$N235,$O$228*$R$228,0)+IF($V$229=$N235,$O$229*$R$229,0)+IF($V$230=$N235,$O$230*$R$230,0)+IF($V$231=$N235,$O$231*$R$231,0)+IF($V$232=$N235,$O$232*$R$232,0)+IF($V$233=$N235,$O$233*$R$233,0)","v":45.439812019482346},{"$f":"R235+Q235+P235","v":222.78750553475828},{"$f":"COUNTIF($T$226:$T$233,$N235)","v":4},{"$f":"COUNTIF($U$226:$U$233,$N235)","v":3},{"$f":"COUNTIF($V$226:$V$233,$N235)","v":4},{"$f":"$O$235*(P235/$S$235)","v":366.50822716998721},{"$f":"$O$235*(Q235/$S$235)","v":111.11557787128864},{"$f":"$O$235*(R235/$S$235)","v":122.37619495872411},{"$f":"SUM(W235:Y235)","v":600}]
[null,{"$f":"B217","v":"No Tractor"},{"$f":"IF(B236=\"No Tractor\",0,P236)","v":0},{"$f":"IF(B236=\"No Tractor\",0,Q236)","v":0},{"$f":"IF(B236=\"No Tractor\",0,R236)","v":0},{"$f":"IF(E130<2,0,SUM(C236:E236))","v":0},null,{"$f":"AX189","v":0},{"$f":"AT189","v":0},null,null,null,null,{"$f":"IF(E130<2,\"No Tractor\",$C$131)","v":"No Tractor"},{"$f":"VLOOKUP(D101,$B$5:$M$15,12,FALSE)","v":600},{"$f":"IF($T$226=$N236,$M$226*$P$226,0)+IF($T$227=$N236,$M$227*$P$227,0)+IF($T$228=$N236,$M$228*$P$228,0)+IF($T$229=$N236,$M$229*$P$229,0)+IF($T$230=$N236,$M$230*$P$230,0)+IF($T$231=$N236,$M$231*$P$231,0)+IF($T$232=$N236,$M$232*$P$232,0)+IF($T$233=$N236,$M$233*$P$233,0)","v":0},{"$f":"IF($U$226=$N236,$N$226*$Q$226,0)+IF($U$227=$N236,$N$227*$Q$227,0)+IF($U$228=$N236,$N$228*$Q$228,0)+IF($U$229=$N236,$N$229*$Q$229,0)+IF($U$230=$N236,$N$230*$Q$230,0)+IF($U$231=$N236,$N$231*$Q$231,0)+IF($U$232=$N236,$N$232*$Q$232,0)+IF($U$233=$N236,$N$233*$Q$233,0)","v":0},{"$f":"IF($V$226=$N236,$O$226*$R$226,0)+IF($V$227=$N236,$O$227*$R$227,0)+IF($V$228=$N236,$O$228*$R$228,0)+IF($V$229=$N236,$O$229*$R$229,0)+IF($V$230=$N236,$O$230*$R$230,0)+IF($V$231=$N236,$O$231*$R$231,0)+IF($V$232=$N236,$O$232*$R$232,0)+IF($V$233=$N236,$O$233*$R$233,0)","v":0},{"$f":"IF(E130<2,0,R236+Q236+P236)","v":0},{"$f":"IF(E130<2,0,COUNTIF($T$226:$T$233,$N236))","v":0},{"$f":"IF(E130<2,0,COUNTIF($U$226:$U$233,$N236))","v":0},{"$f":"IF(E130<2,0,COUNTIF($V$226:$V$233,$N236))","v":0},{"$f":"IF(E130<2,0,$O$236*(P236/$S$236))","v":0},{"$f":"IF(E130<2,0,$O$236*(Q236/$S$236))","v":0},{"$f":"IF(E130<2,0,$O$236*(R236/$S$236))","v":0},{"$f":"IF(E130<2,0,SUM(W236:Y236))","v":0}]
[null,{"$f":"B218","v":"No Tractor"},{"$f":"IF(B237=\"No Tractor\",0,P237)","v":0},{"$f":"IF(B237=\"No Tractor\",0,Q237)","v":0},{"$f":"IF(B237=\"No Tractor\",0,R237)","v":0},{"$f":"IF(E130<3,0,SUM(C237:E237))","v":0},null,{"$f":"AY189","v":0},{"$f":"AU189","v":0},null,null,null,null,{"$f":"IF(E130<3,\"No Tractor\",$C$132)","v":"No Tractor"},{"$f":"VLOOKUP(D102,$B$5:$M$15,12,FALSE)","v":600},{"$f":"IF($T$226=$N237,$M$226*$P$226,0)+IF($T$227=$N237,$M$227*$P$227,0)+IF($T$228=$N237,$M$228*$P$228,0)+IF($T$229=$N237,$M$229*$P$229,0)+IF($T$230=$N237,$M$230*$P$230,0)+IF($T$231=$N237,$M$231*$P$231,0)+IF($T$232=$N237,$M$232*$P$232,0)+IF($T$233=$N237,$M$233*$P$233,0)","v":0},{"$f":"IF($U$226=$N237,$N$226*$Q$226,0)+IF($U$227=$N237,$N$227*$Q$227,0)+IF($U$228=$N237,$N$228*$Q$228,0)+IF($U$229=$N237,$N$229*$Q$229,0)+IF($U$230=$N237,$N$230*$Q$230,0)+IF($U$231=$N237,$N$231*$Q$231,0)+IF($U$232=$N237,$N$232*$Q$232,0)+IF($U$233=$N237,$N$233*$Q$233,0)","v":0},{"$f":"IF($V$226=$N237,$O$226*$R$226,0)+IF($V$227=$N237,$O$227*$R$227,0)+IF($V$228=$N237,$O$228*$R$228,0)+IF($V$229=$N237,$O$229*$R$229,0)+IF($V$230=$N237,$O$230*$R$230,0)+IF($V$231=$N237,$O$231*$R$231,0)+IF($V$232=$N237,$O$232*$R$232,0)+IF($V$233=$N237,$O$233*$R$233,0)","v":0},{"$f":"IF(E130<3,0,R237+Q237+P237)","v":0},{"$f":"IF(E130<3,0,COUNTIF($T$226:$T$233,$N237))","v":0},{"$f":"IF(E130<3,0,COUNTIF($U$226:$U$233,$N237))","v":0},{"$f":"IF(E130<3,0,COUNTIF($V$226:$V$233,$N237))","v":0},{"$f":"IF(E130<3,0,$O$237*(P237/$S$237))","v":0},{"$f":"IF(E130<3,0,$O$237*(Q237/$S$237))","v":0},{"$f":"IF(E130<3,0,$O$237*(R237/$S$237))","v":0},{"$f":"IF(E130<3,0,SUM(W237:Y237))","v":0}]
[null,{"$f":"B219","v":"No Tractor"},{"$f":"IF(B238=\"No Tractor\",0,P238)","v":0},{"$f":"IF(B238=\"No Tractor\",0,Q238)","v":0},{"$f":"IF(B238=\"No Tractor\",0,R238)","v":0},{"$f":"IF(E130<4,0,SUM(C238:E238))","v":0},null,{"$f":"AZ189","v":0},{"$f":"AV189","v":0},null,null,null,null,{"$f":"IF(E130<4,\"No Tractor\",$C$133)","v":"No Tractor"},{"$f":"VLOOKUP(D103,$B$5:$M$15,12,FALSE)","v":600},{"$f":"IF($T$226=$N238,$M$226*$P$226,0)+IF($T$227=$N238,$M$227*$P$227,0)+IF($T$228=$N238,$M$228*$P$228,0)+IF($T$229=$N238,$M$229*$P$229,0)+IF($T$230=$N238,$M$230*$P$230,0)+IF($T$231=$N238,$M$231*$P$231,0)+IF($T$232=$N238,$M$232*$P$232,0)+IF($T$233=$N238,$M$233*$P$233,0)","v":0},{"$f":"IF($U$226=$N238,$N$226*$Q$226,0)+IF($U$227=$N238,$N$227*$Q$227,0)+IF($U$228=$N238,$N$228*$Q$228,0)+IF($U$229=$N238,$N$229*$Q$229,0)+IF($U$230=$N238,$N$230*$Q$230,0)+IF($U$231=$N238,$N$231*$Q$231,0)+IF($U$232=$N238,$N$232*$Q$232,0)+IF($U$233=$N238,$N$233*$Q$233,0)","v":0},{"$f":"IF($V$226=$N238,$O$226*$R$226,0)+IF($V$227=$N238,$O$227*$R$227,0)+IF($V$228=$N238,$O$228*$R$228,0)+IF($V$229=$N238,$O$229*$R$229,0)+IF($V$230=$N238,$O$230*$R$230,0)+IF($V$231=$N238,$O$231*$R$231,0)+IF($V$232=$N238,$O$232*$R$232,0)+IF($V$233=$N238,$O$233*$R$233,0)","v":0},{"$f":"IF(E130<4,0,R238+Q238+P238)","v":0},{"$f":"IF(E130<4,0,COUNTIF($T$226:$T$233,$N238))","v":0},{"$f":"IF(E130<4,0,COUNTIF($U$226:$U$233,$N238))","v":0},{"$f":"IF(E130<4,0,COUNTIF($V$226:$V$233,$N238))","v":0},{"$f":"IF(E130<4,0,$O$238*(P238/$S$238))","v":0},{"$f":"IF(E130<4,0,$O$238*(Q238/$S$238))","v":0},{"$f":"IF(E130<4,0,$O$238*(R238/$S$238))","v":0},{"$f":"IF(E130<4,0,SUM(W238:Y238))","v":0}]

{"sheet":"Cotton","index":10,"n_rows":65,"n_cols":23,"rows_kept":65,"cut":false,"hidden":true,"merged":[]}
[]
[]
[null,{"$f":"CONCATENATE(Defaults!$M$5,\" Defaults \")","v":"Cotton Defaults "}]
[]
[]
[]
[]
[]
[]
[]
[null,"Operation/\n   Operating Input","Application\nUnit","Month","Quantity/\n# of trips","MAX"]
[null,"Burndown Weed Control",null,"Spring"]
[null,{"$f":"Defaults!$I$27","v":"Over-the-Top Sprayer 1"},{"$f":"\"\"","v":""},{"$f":"\"\"","v":""},{"$f":"VLOOKUP(B13,Defaults!$I$24:$J$27,2,FALSE)","v":1},{"$f":"\"\"","v":""}]
[null,{"$f":"Defaults!$AH$63","v":"Glyphosate"},{"$f":"VLOOKUP($B14,Defaults!$AL$3:$AQ$17,4,FALSE)","v":"pt"},{"$f":"\"\"","v":""},{"$f":"VLOOKUP($B14,Defaults!$AL$3:$AQ$17,5,FALSE)","v":2},{"$f":"VLOOKUP($B14,Defaults!$AL$3:$AQ$17,6,FALSE)","v":2}]
[null,{"$f":"Defaults!$AH$17","v":"Banvel"},{"$f":"VLOOKUP($B15,Defaults!$AL$3:$AQ$17,4,FALSE)","v":"oz"},{"$f":"\"\"","v":""},{"$f":"VLOOKUP($B15,Defaults!$AL$3:$AQ$17,5,FALSE)","v":8},{"$f":"VLOOKUP($B15,Defaults!$AL$3:$AQ$17,6,FALSE)","v":8}]
[null,{"$f":"\"\"","v":""},{"$f":"\"\"","v":""},{"$f":"\"\"","v":""},{"$f":"\"\"","v":""},{"$f":"\"\"","v":""}]
[null,"Preplant Weed Control",null,"Spring"]
[null,{"$f":"Defaults!$I$27","v":"Over-the-Top Sprayer 1"},{"$f":"\"\"","v":""},{"$f":"\"\"","v":""},{"$f":"VLOOKUP(B18,Defaults!$I$24:$J$27,2,FALSE)","v":1},{"$f":"\"\"","v":""}]
[null,{"$f":"Defaults!$AH$63","v":"Glyphosate"},{"$f":"VLOOKUP($B19,Defaults!$AL$19:$AQ$35,4,FALSE)","v":"pt"},{"$f":"\"\"","v":""},{"$f":"VLOOKUP($B19,Defaults!$AL$19:$AQ$35,5,FALSE)","v":2},{"$f":"VLOOKUP($B19,Defaults!$AL$19:$AQ$35,6,FALSE)","v":2}]
[null,{"$f":"Defaults!$AH$99","v":"Reflex"},{"$f":"VLOOKUP($B20,Defaults!$AL$19:$AQ$35,4,FALSE)","v":"pt"},{"$f":"\"\"","v":""},{"$f":"VLOOKUP($B20,Defaults!$AL$19:$AQ$35,5,FALSE)","v":1},{"$f":"VLOOKUP($B20,Defaults!$AL$19:$AQ$35,6,FALSE)","v":1}]
[null,{"$f":"\"\"","v":""},{"$f":"\"\"","v":""},{"$f":"\"\"","v":""},{"$f":"\"\"","v":""},{"$f":"\"\"","v":""}]
[null,"Field Preparation",null,"Spring"]
[null,{"$f":"Defaults!$I$37","v":"Fertilizer Spreader"},{"$f":"\"\"","v":""},{"$f":"\"\"","v":""},{"$f":"Defaults!$X$14","v":1},{"$f":"\"\"","v":""},"UAEX Budget spec",null,"With rounding"]
[null,{"$f":"Defaults!$T$4","v":"Urea [46-0-0]"},{"$f":"VLOOKUP(B24,Defaults!$T$3:$AE$13,4,FALSE)","v":"lb"},{"$f":"\"\"","v":""},{"$f":"I24","v":122},{"$f":"\"\"","v":""},"N",94,{"$f":"ROUND(N24,0)","v":122},"Use Urea (46-0-0 to add remaining nitrogen",null,null,null,{"$f":"+(H24-V25-V27)/0.46","v":121.8425395372754},"lbs of Urea fertilizer"]
[null,{"$f":"Defaults!$T$5","v":"Diammonium Phosphate [18-46-0]"},{"$f":"VLOOKUP(B25,Defaults!$T$3:$AE$13,4,FALSE)","v":"lb"},{"$f":"\"\"","v":""},{"$f":"I25","v":65},{"$f":"\"\"","v":""},"P205",30,{"$f":"ROUND(N25,0)","v":65},"Use DAP (18-46-0) to add Phosphate",null,null,null,{"$f":"H25/0.46","v":65.217391304347828},"lbs of DAP needed to apply 30 lbs of P2O5 also delivers",null,null,null,null,null,null,{"$f":"+N25*0.18","v":11.739130434782609},"lbs of N"]
[null,{"$f":"Defaults!$T$6","v":"Potash [0-0-60]"},{"$f":"VLOOKUP(B26,Defaults!$T$3:$AE$13,4,FALSE)","v":"lb"},{"$f":"\"\"","v":""},{"$f":"I26","v":100},{"$f":"\"\"","v":""},"K20",60,{"$f":"ROUND(N26,0)","v":100},"Use Potash (0-0-60)",null,null,null,{"$f":"H26/0.6","v":100},"lbs of potash fertilizer"]
[null,{"$f":"Defaults!$T$12","v":"Amm. Sulfate [21-0-0](24% Sulfate)"},{"$f":"VLOOKUP(B27,Defaults!$T$3:$AE$13,4,FALSE)","v":"lb"},{"$f":"\"\"","v":""},{"$f":"I27","v":125},{"$f":"\"\"","v":""},"Sulfur",10,{"$f":"ROUND(N27,0)","v":125},"Use Ammonium Sulfate(21-0-0-24)",null,null,null,{"$f":"H27/0.24/0.3338","v":124.82524465747954},"lbs of Ammonium sulfate to apply 10 pounds of sulfur also delivers ",null,null,null,null,null,null,{"$f":"+N27*0.21","v":26.213301378070703},"lbs of N"]
[null,{"$f":"Defaults!$T$9","v":"Sodium Borate (15% Boron)"},{"$f":"VLOOKUP(B28,Defaults!$T$3:$AE$13,4,FALSE)","v":"lb"},{"$f":"\"\"","v":""},{"$f":"I28","v":7},{"$f":"\"\"","v":""},"Boron",1,{"$f":"ROUND(N28,0)","v":7},"Use Sodium Borate (15% Boron)",null,null,null,{"$f":"H28/0.15","v":6.666666666666667},"lbs of Sodium Borate"]
[null,{"$f":"\"\"","v":""},{"$f":"\"\"","v":""},{"$f":"\"\"","v":""},{"$f":"\"\"","v":""},{"$f":"\"\"","v":""},null,null,null,null,null,null,null,null,"Sulfate","S04",32.064999999999998,null,{"$f":"+Q29/(Q29+Q30*4)","v":0.33379831565359508}]
[null,"Planting, Insecticide, Defoliant, and Growth Regulator Application",null,{"$f":"\"\"","v":""},null,null,null,null,null,null,null,null,null,null,null,null,15.999000000000001]
[null,{"$f":"Defaults!$I$21","v":"Row Planter 1"},{"$f":"\"\"","v":""},{"$f":"\"\"","v":""},{"$f":"VLOOKUP(B31,Defaults!$I$18:$J$21,2,FALSE)","v":1},{"$f":"\"\"","v":""}]
[null,"Seed","ac",{"$f":"\"\"","v":""},{"$f":"VLOOKUP(Defaults!$M$5,Defaults!$M$5:$R$12,6,FALSE)","v":120.03},{"$f":"\"\"","v":""}]
[null,{"$f":"Defaults!$I$41","v":"Over-the-Top Sprayer 1"},{"$f":"\"\"","v":""},{"$f":"\"\"","v":""},{"$f":"Defaults!$X$30","v":3},{"$f":"\"\"","v":""}]
[null,{"$f":"Defaults!T22","v":"Centric"},{"$f":"VLOOKUP(B34,Defaults!$T$21:$AE$29,4,FALSE)","v":"oz"},{"$f":"\"\"","v":""},{"$f":"VLOOKUP(B34,Defaults!$T$21:AE$29,5,FALSE)","v":4},{"$f":"\"\"","v":""}]
[null,{"$f":"Defaults!T23","v":"Diamond"},{"$f":"VLOOKUP(B35,Defaults!$T$21:$AE$29,4,FALSE)","v":"oz"},{"$f":"\"\"","v":""},{"$f":"VLOOKUP(B35,Defaults!$T$21:AE$29,5,FALSE)","v":12},{"$f":"\"\"","v":""}]
[null,{"$f":"Defaults!T24","v":"Transform"},{"$f":"VLOOKUP(B36,Defaults!$T$21:$AE$29,4,FALSE)","v":"oz"},{"$f":"\"\"","v":""},{"$f":"VLOOKUP(B36,Defaults!$T$21:AE$29,5,FALSE)","v":4},{"$f":"\"\"","v":""}]
[null,{"$f":"Defaults!T25","v":"Prevathon"},{"$f":"VLOOKUP(B37,Defaults!$T$21:$AE$29,4,FALSE)","v":"oz"},{"$f":"\"\"","v":""},{"$f":"VLOOKUP(B37,Defaults!$T$21:AE$29,5,FALSE)","v":20},{"$f":"\"\"","v":""}]
[null,{"$f":"\"\"","v":""},{"$f":"\"\"","v":""},{"$f":"\"\"","v":""},{"$f":"\"\"","v":""},{"$f":"\"\"","v":""}]
[null,{"$f":"Defaults!$I$55","v":"Over-the-Top Sprayer 1"},null,{"$f":"\"\"","v":""},{"$f":"VLOOKUP(B39,Defaults!$I$53:$J$55,2,FALSE)","v":2},{"$f":"\"\"","v":""}]
[null,{"$f":"Defaults!$T$39","v":"Dropp"},{"$f":"VLOOKUP(B40,Defaults!$T$38:$Y$41,4,FALSE)","v":"oz"},{"$f":"\"\"","v":""},{"$f":"VLOOKUP(B40,Defaults!$T$38:$Y$41,5,FALSE)","v":2},{"$f":"\"\"","v":""}]
[null,{"$f":"Defaults!$T$40","v":"Folex"},{"$f":"VLOOKUP(B41,Defaults!$T$38:$Y$41,4,FALSE)","v":"oz"},{"$f":"\"\"","v":""},{"$f":"VLOOKUP(B41,Defaults!$T$38:$Y$41,5,FALSE)","v":14},{"$f":"\"\"","v":""}]
[null,{"$f":"Defaults!$T$41","v":"Prep"},{"$f":"VLOOKUP(B42,Defaults!$T$38:$Y$41,4,FALSE)","v":"oz"},{"$f":"\"\"","v":""},{"$f":"VLOOKUP(B42,Defaults!$T$38:$Y$41,5,FALSE)","v":38},{"$f":"\"\"","v":""}]
[null,{"$f":"\"\"","v":""},{"$f":"\"\"","v":""},{"$f":"\"\"","v":""},{"$f":"\"\"","v":""},{"$f":"\"\"","v":""}]
[null,{"$f":"Defaults!$I$60","v":"Over-the-Top Sprayer 1"},null,{"$f":"\"\"","v":""},{"$f":"VLOOKUP(B44,Defaults!$I$58:$K$60,2,FALSE)","v":4},{"$f":"\"\"","v":""}]
[null,{"$f":"Defaults!$T$46","v":"Mepex"},{"$f":"VLOOKUP(B45,Defaults!$T$45:$AE$46,4,FALSE)","v":"oz"},{"$f":"\"\"","v":""},{"$f":"VLOOKUP(B45,Defaults!$T$45:$AE$46,5,FALSE)","v":44},{"$f":"\"\"","v":""}]
[null,{"$f":"\"\"","v":""},{"$f":"\"\"","v":""},{"$f":"\"\"","v":""},{"$f":"\"\"","v":""},{"$f":"\"\"","v":""}]
[null,"Preemergence Weed Control",{"$f":"\"\"","v":""},"At Planting",{"$f":"\"\"","v":""}]
[null,{"$f":"Defaults!$I$27","v":"Over-the-Top Sprayer 1"},{"$f":"\"\"","v":""},{"$f":"\"\"","v":""},{"$f":"VLOOKUP(B48,Defaults!$I$24:$J$27,2,FALSE)","v":1},{"$f":"\"\"","v":""}]
[null,{"$f":"Defaults!$AH$42","v":"Cotoran"},{"$f":"VLOOKUP($B49,Defaults!$AL$37:$AQ$63,4,FALSE)","v":"pt"},{"$f":"\"\"","v":""},{"$f":"VLOOKUP($B49,Defaults!$AL$37:$AQ$63,5,FALSE)","v":1.6},{"$f":"VLOOKUP($B49,Defaults!$AL$37:$AQ$63,6,FALSE)","v":2}]
[null,{"$f":"Defaults!$AH$64","v":"Gramoxone"},{"$f":"VLOOKUP($B50,Defaults!$AL$37:$AQ$63,4,FALSE)","v":"pt"},{"$f":"\"\"","v":""},{"$f":"VLOOKUP($B50,Defaults!$AL$37:$AQ$63,5,FALSE)","v":2},{"$f":"VLOOKUP($B50,Defaults!$AL$37:$AQ$63,6,FALSE)","v":2}]
[null,{"$f":"Defaults!$AH$75","v":"Liberty"},{"$f":"VLOOKUP($B51,Defaults!$AL$37:$AQ$63,4,FALSE)","v":"oz"},{"$f":"\"\"","v":""},{"$f":"VLOOKUP($B51,Defaults!$AL$37:$AQ$63,5,FALSE)","v":32},{"$f":"VLOOKUP($B51,Defaults!$AL$37:$AQ$63,6,FALSE)","v":32}]
[null,{"$f":"Defaults!$AH$48","v":"Dual Magnum"},{"$f":"VLOOKUP($B52,Defaults!$AL$37:$AQ$63,4,FALSE)","v":"pt"},{"$f":"\"\"","v":""},{"$f":"VLOOKUP($B52,Defaults!$AL$37:$AQ$63,5,FALSE)","v":1},{"$f":"VLOOKUP($B52,Defaults!$AL$37:$AQ$63,6,FALSE)","v":1}]
[null,{"$f":"\"\"","v":""},{"$f":"\"\"","v":""},{"$f":"\"\"","v":""},{"$f":"\"\"","v":""},{"$f":"\"\"","v":""}]
[null,"Postemergence Weed Control",{"$f":"\"\"","v":""},"Post Planting",{"$f":"\"\"","v":""}]
[null,{"$f":"Defaults!$I$27","v":"Over-the-Top Sprayer 1"},{"$f":"\"\"","v":""},{"$f":"\"\"","v":""},{"$f":"VLOOKUP(B55,Defaults!$I$24:$J$27,2,FALSE)","v":1},{"$f":"\"\"","v":""}]
[null,{"$f":"Defaults!$AH$63","v":"Glyphosate"},{"$f":"VLOOKUP($B56,Defaults!$AL$63:$AQ$82,4,FALSE)","v":"pt"},{"$f":"\"\"","v":""},{"$f":"VLOOKUP($B56,Defaults!$AL$65:$AQ$82,5,FALSE)","v":2},{"$f":"VLOOKUP($B56,Defaults!$AL$65:$AQ$82,6,FALSE)","v":2}]
[null,{"$f":"\"\"","v":""},{"$f":"\"\"","v":""},{"$f":"\"\"","v":""},{"$f":"\"\"","v":""},{"$f":"\"\"","v":""}]
[null,{"$f":"\"\"","v":""},{"$f":"\"\"","v":""},{"$f":"\"\"","v":""},{"$f":"\"\"","v":""},{"$f":"\"\"","v":""}]
[null,{"$f":"\"\"","v":""},{"$f":"\"\"","v":""},{"$f":"\"\"","v":""},{"$f":"\"\"","v":""},{"$f":"\"\"","v":""}]
[null,"Layby Weed Control",{"$f":"\"\"","v":""},"Summer",{"$f":"\"\"","v":""}]
[null,{"$f":"Defaults!I33","v":"Post-Directed Sprayer 2"},{"$f":"\"\"","v":""},{"$f":"\"\"","v":""},{"$f":"VLOOKUP(B61,Defaults!$I$24:$J$27,2,FALSE)","v":{"$error":"#N/A"}},{"$f":"\"\"","v":""}]
[null,{"$f":"Defaults!$AH$127","v":"Valor"},{"$f":"VLOOKUP($B62,Defaults!$AL$85:$AQ$101,4,FALSE)","v":"oz"},{"$f":"\"\"","v":""},{"$f":"VLOOKUP($B62,Defaults!$AL$85:$AQ$101,5,FALSE)","v":2},{"$f":"VLOOKUP($B62,Defaults!$AL$85:$AQ$101,6,FALSE)","v":2}]
[null,{"$f":"Defaults!$AH$79","v":"MSMA"},{"$f":"VLOOKUP($B63,Defaults!$AL$85:$AQ$101,4,FALSE)","v":"qt"},{"$f":"\"\"","v":""},{"$f":"VLOOKUP($B63,Defaults!$AL$85:$AQ$101,5,FALSE)","v":1.5},{"$f":"VLOOKUP($B63,Defaults!$AL$85:$AQ$101,6,FALSE)","v":1.5}]
[null,{"$f":"\"\"","v":""},{"$f":"\"\"","v":""},{"$f":"\"\"","v":""},{"$f":"\"\"","v":""},{"$f":"\"\"","v":""}]
[null,{"$f":"\"\"","v":""},{"$f":"\"\"","v":""},{"$f":"\"\"","v":""},{"$f":"\"\"","v":""},{"$f":"\"\"","v":""}]

{"sheet":"Corn","index":11,"n_rows":65,"n_cols":23,"rows_kept":65,"cut":false,"hidden":true,"merged":[]}
[]
[]
[null,{"$f":"CONCATENATE(Defaults!$M$6,\" Defaults \")","v":"Corn Defaults "}]
[]
[]
[]
[]
[]
[]
[]
[null,"Operation/\n   Operating Input","Unit","Month","# of trips/\nQuantity","MAX"]
[null,"Burndown Weed Control",null,"Spring"]
[null,{"$f":"Defaults!$I$27","v":"Over-the-Top Sprayer 1"},{"$f":"\"\"","v":""},{"$f":"\"\"","v":""},{"$f":"VLOOKUP(B13,Defaults!$I$24:$J$27,2,FALSE)","v":1},{"$f":"\"\"","v":""}]
[null,{"$f":"Defaults!$AH$63","v":"Glyphosate"},{"$f":"VLOOKUP($B14,Defaults!$AS$3:$AX$7,4,FALSE)","v":"pt"},{"$f":"\"\"","v":""},{"$f":"VLOOKUP($B14,Defaults!$AS$3:$AX$7,5,FALSE)","v":2},{"$f":"VLOOKUP($B14,Defaults!$AS$3:$AX$7,6,FALSE)","v":2}]
[null,{"$f":"\"\"","v":""},{"$f":"\"\"","v":""},{"$f":"\"\"","v":""},{"$f":"\"\"","v":""},{"$f":"\"\"","v":""}]
[null,{"$f":"\"\"","v":""},{"$f":"\"\"","v":""},{"$f":"\"\"","v":""},{"$f":"\"\"","v":""},{"$f":"\"\"","v":""}]
[null,{"$f":"\"\"","v":""},{"$f":"\"\"","v":""},{"$f":"\"\"","v":""},{"$f":"\"\"","v":""}]
[null,{"$f":"\"\"","v":""},{"$f":"\"\"","v":""},{"$f":"\"\"","v":""},{"$f":"\"\"","v":""},{"$f":"\"\"","v":""}]
[null,{"$f":"\"\"","v":""},{"$f":"\"\"","v":""},{"$f":"\"\"","v":""},{"$f":"\"\"","v":""},{"$f":"\"\"","v":""}]
[null,{"$f":"\"\"","v":""},{"$f":"\"\"","v":""},{"$f":"\"\"","v":""},{"$f":"\"\"","v":""},{"$f":"\"\"","v":""}]
[null,{"$f":"\"\"","v":""},{"$f":"\"\"","v":""},{"$f":"\"\"","v":""},{"$f":"\"\"","v":""},{"$f":"\"\"","v":""}]
[null,"Field Preparation",null,"Spring"]
[null,{"$f":"Defaults!$I$37","v":"Fertilizer Spreader"},{"$f":"\"\"","v":""},{"$f":"\"\"","v":""},{"$f":"Defaults!$Y$14","v":2},{"$f":"\"\"","v":""},"UAEX Budget spec",null,"With rounding"]
[null,{"$f":"Defaults!T4","v":"Urea [46-0-0]"},{"$f":"VLOOKUP(B24,Defaults!$T$3:$AE$13,4,FALSE)","v":"lb"},{"$f":"\"\"","v":""},{"$f":"I24","v":300},{"$f":"\"\"","v":""},"N",223,{"$f":"ROUND(N24,-1)","v":300},"Use Urea (46-0-0 to add remaining nitrogen",null,null,null,{"$f":"+(H24-V25-V27)/0.46","v":296.97786048492412},"lbs of Urea fertilizer"]
[null,{"$f":"Defaults!T5","v":"Diammonium Phosphate [18-46-0]"},{"$f":"VLOOKUP(B25,Defaults!$T$3:$AE$13,4,FALSE)","v":"lb"},{"$f":"\"\"","v":""},{"$f":"I25","v":130},{"$f":"\"\"","v":""},"P205",60,{"$f":"ROUND(N25,0)","v":130},"Use DAP (18-46-0) to add Phosphate",null,null,null,{"$f":"+H25/0.46","v":130.43478260869566},"lbs of DAP needed to apply 30 lbs of P2O5 also delivers",null,null,null,null,null,null,{"$f":"+N25*0.18","v":23.478260869565219},"lbs of N"]
[null,{"$f":"Defaults!T6","v":"Potash [0-0-60]"},{"$f":"VLOOKUP(B26,Defaults!$T$3:$AE$13,4,FALSE)","v":"lb"},{"$f":"\"\"","v":""},{"$f":"I26","v":150},{"$f":"\"\"","v":""},"K20",90,{"$f":"ROUND(N26,0)","v":150},"Use Potash (0-0-60)",null,null,null,{"$f":"H26/0.6","v":150},"lbs of potash fertilizer"]
[null,{"$f":"Defaults!T12","v":"Amm. Sulfate [21-0-0](24% Sulfate)"},{"$f":"VLOOKUP(B27,Defaults!$T$3:$AE$13,4,FALSE)","v":"lb"},{"$f":"\"\"","v":""},{"$f":"I27","v":300},{"$f":"\"\"","v":""},"Sulfur",24,{"$f":"ROUND(N27,0)","v":300},"Use Ammonium Sulfate(21-0-0-24)",null,null,null,{"$f":"+H27/0.24/0.3338","v":299.58058717795086},"lbs of Ammonium sulfate to apply 10 pounds of sulfur also delivers ",null,null,null,null,null,null,{"$f":"+N27*0.21","v":62.911923307369676},"lbs of N"]
[null,{"$f":"Defaults!T8","v":"Zinc Sulfate"},{"$f":"VLOOKUP(B28,Defaults!$T$3:$AE$13,4,FALSE)","v":"lb"},{"$f":"\"\"","v":""},{"$f":"I28","v":10},{"$f":"\"\"","v":""},"Zinc Sulfate",10,{"$f":"H28","v":10},"Use Zinc Sulfate"]
[null,{"$f":"\"\"","v":""},{"$f":"\"\"","v":""},{"$f":"\"\"","v":""},{"$f":"\"\"","v":""},{"$f":"\"\"","v":""},null,null,null,null,null,null,null,null,"Sulfate","S04",32.064999999999998,null,{"$f":"+Q29/(Q29+Q30*4)","v":0.33379831565359508}]
[null,"Planting and Insecticide Application",null,{"$f":"\"\"","v":""},null,null,null,null,null,null,null,null,null,null,null,null,15.999000000000001]
[null,{"$f":"Defaults!$I$9","v":"Row Planter 1"},{"$f":"\"\"","v":""},{"$f":"\"\"","v":""},{"$f":"VLOOKUP(B31,Defaults!$I$18:$J$21,2,FALSE)","v":1},{"$f":"\"\"","v":""}]
[null,"Seed","ac",{"$f":"\"\"","v":""},{"$f":"VLOOKUP(Defaults!$M$6,Defaults!$M$5:$R$12,6,FALSE)","v":115},{"$f":"\"\"","v":""}]
[null,{"$f":"Defaults!$I$41","v":"Over-the-Top Sprayer 1"},{"$f":"\"\"","v":""},{"$f":"\"\"","v":""},{"$f":"Defaults!$Y$30","v":1},{"$f":"\"\"","v":""}]
[null,{"$f":"Defaults!T25","v":"Prevathon"},{"$f":"VLOOKUP(B34,Defaults!$T$21:$AE$29,4,FALSE)","v":"oz"},{"$f":"\"\"","v":""},{"$f":"VLOOKUP(B34,Defaults!$T$21:$AE$29,6,FALSE)","v":14},{"$f":"\"\"","v":""}]
[null,{"$f":"\"\"","v":""},{"$f":"\"\"","v":""},{"$f":"\"\"","v":""},{"$f":"\"\"","v":""},{"$f":"\"\"","v":""}]
[null,{"$f":"\"\"","v":""},{"$f":"\"\"","v":""},{"$f":"\"\"","v":""},{"$f":"\"\"","v":""},{"$f":"\"\"","v":""}]
[null,{"$f":"\"\"","v":""},{"$f":"\"\"","v":""},{"$f":"\"\"","v":""},{"$f":"\"\"","v":""},{"$f":"\"\"","v":""}]
[null,{"$f":"\"\"","v":""},{"$f":"\"\"","v":""},{"$f":"\"\"","v":""},{"$f":"\"\"","v":""},{"$f":"\"\"","v":""}]
[null,{"$f":"\"\"","v":""},{"$f":"\"\"","v":""},{"$f":"\"\"","v":""},{"$f":"\"\"","v":""},{"$f":"\"\"","v":""}]
[null,{"$f":"\"\"","v":""},{"$f":"\"\"","v":""},{"$f":"\"\"","v":""},{"$f":"\"\"","v":""},{"$f":"\"\"","v":""}]
[null,{"$f":"\"\"","v":""},{"$f":"\"\"","v":""},{"$f":"\"\"","v":""},{"$f":"\"\"","v":""},{"$f":"\"\"","v":""}]
[null,{"$f":"\"\"","v":""},{"$f":"\"\"","v":""},{"$f":"\"\"","v":""},{"$f":"\"\"","v":""},{"$f":"\"\"","v":""}]
[null,{"$f":"\"\"","v":""},{"$f":"\"\"","v":""},{"$f":"\"\"","v":""},{"$f":"\"\"","v":""},{"$f":"\"\"","v":""}]
[null,{"$f":"\"\"","v":""},{"$f":"\"\"","v":""},{"$f":"\"\"","v":""},{"$f":"\"\"","v":""},{"$f":"\"\"","v":""}]
[null,{"$f":"\"\"","v":""},{"$f":"\"\"","v":""},{"$f":"\"\"","v":""},{"$f":"\"\"","v":""},{"$f":"\"\"","v":""}]
[null,{"$f":"\"\"","v":""},{"$f":"\"\"","v":""},{"$f":"\"\"","v":""},{"$f":"\"\"","v":""},{"$f":"\"\"","v":""}]
[null,"Preemergence Weed Control",{"$f":"\"\"","v":""},"At Planting",{"$f":"\"\"","v":""}]
[null,{"$f":"\"\"","v":""},{"$f":"\"\"","v":""},{"$f":"\"\"","v":""},{"$f":"\"\"","v":""},{"$f":"\"\"","v":""}]
[null,{"$f":"\"\"","v":""},{"$f":"\"\"","v":""},{"$f":"\"\"","v":""},{"$f":"\"\"","v":""},{"$f":"\"\"","v":""}]
[null,{"$f":"\"\"","v":""},{"$f":"\"\"","v":""},{"$f":"\"\"","v":""},{"$f":"\"\"","v":""},{"$f":"\"\"","v":""}]
[null,{"$f":"\"\"","v":""},{"$f":"\"\"","v":""},{"$f":"\"\"","v":""},{"$f":"\"\"","v":""},{"$f":"\"\"","v":""}]
[null,{"$f":"\"\"","v":""},{"$f":"\"\"","v":""},{"$f":"\"\"","v":""},{"$f":"\"\"","v":""},{"$f":"\"\"","v":""}]
[null,{"$f":"\"\"","v":""},{"$f":"\"\"","v":""},{"$f":"\"\"","v":""},{"$f":"\"\"","v":""},{"$f":"\"\"","v":""}]
[null,"Postemergence Weed Control",{"$f":"\"\"","v":""},"Post Planting",{"$f":"\"\"","v":""}]
[null,{"$f":"\"\"","v":""},{"$f":"\"\"","v":""},{"$f":"\"\"","v":""},{"$f":"\"\"","v":""},{"$f":"\"\"","v":""}]
[null,{"$f":"\"\"","v":""},{"$f":"\"\"","v":""},{"$f":"\"\"","v":""},{"$f":"\"\"","v":""},{"$f":"\"\"","v":""}]
[null,{"$f":"\"\"","v":""},{"$f":"\"\"","v":""},{"$f":"\"\"","v":""},{"$f":"\"\"","v":""},{"$f":"\"\"","v":""}]
[null,{"$f":"\"\"","v":""},{"$f":"\"\"","v":""},{"$f":"\"\"","v":""},{"$f":"\"\"","v":""},{"$f":"\"\"","v":""}]
[null,{"$f":"\"\"","v":""},{"$f":"\"\"","v":""},{"$f":"\"\"","v":""},{"$f":"\"\"","v":""},{"$f":"\"\"","v":""}]
[null,{"$f":"\"\"","v":""},{"$f":"\"\"","v":""},{"$f":"\"\"","v":""},{"$f":"\"\"","v":""}]
[null,{"$f":"\"\"","v":""},{"$f":"\"\"","v":""},{"$f":"\"\"","v":""},{"$f":"\"\"","v":""},{"$f":"\"\"","v":""}]
[null,{"$f":"\"\"","v":""},{"$f":"\"\"","v":""},{"$f":"\"\"","v":""},{"$f":"\"\"","v":""},{"$f":"\"\"","v":""}]
[null,{"$f":"\"\"","v":""},{"$f":"\"\"","v":""},{"$f":"\"\"","v":""},{"$f":"\"\"","v":""},{"$f":"\"\"","v":""}]
[null,{"$f":"\"\"","v":""},{"$f":"\"\"","v":""},{"$f":"\"\"","v":""},{"$f":"\"\"","v":""},{"$f":"\"\"","v":""}]
[null,{"$f":"\"\"","v":""},{"$f":"\"\"","v":""},{"$f":"\"\"","v":""},{"$f":"\"\"","v":""},{"$f":"\"\"","v":""}]

{"sheet":"Sorghum","index":12,"n_rows":65,"n_cols":23,"rows_kept":65,"cut":false,"hidden":true,"merged":[]}
[]
[]
[null,{"$f":"CONCATENATE(Defaults!$M$7,\" Defaults \")","v":"Sorghum Defaults "}]
[]
[]
[]
[]
[]
[]
[]
[null,"Operation/\n   Operating Input","Unit","Month","# of trips/\nQuantity","MAX"]
[null,"Burndown Weed Control",null,"Spring"]
[null,{"$f":"Defaults!$I$27","v":"Over-the-Top Sprayer 1"},{"$f":"\"\"","v":""},{"$f":"\"\"","v":""},{"$f":"VLOOKUP(B13,Defaults!$I$24:$J$27,2,FALSE)","v":1},{"$f":"\"\"","v":""}]
[null,{"$f":"Defaults!AH63","v":"Glyphosate"},{"$f":"VLOOKUP($B14,Defaults!$AZ$3:$BE$4,4,FALSE)","v":"pt"},{"$f":"\"\"","v":""},{"$f":"VLOOKUP($B14,Defaults!$AZ$3:$BE$4,5,FALSE)","v":2},{"$f":"VLOOKUP($B14,Defaults!$AZ$3:$BE$4,6,FALSE)","v":2}]
[null,{"$f":"\"\"","v":""},{"$f":"\"\"","v":""},{"$f":"\"\"","v":""},{"$f":"\"\"","v":""},{"$f":"\"\"","v":""}]
[null,{"$f":"\"\"","v":""},{"$f":"\"\"","v":""},{"$f":"\"\"","v":""},{"$f":"\"\"","v":""},{"$f":"\"\"","v":""}]
[null,"Preplant Weed Control",{"$f":"\"\"","v":""},"Spring",{"$f":"\"\"","v":""}]
[null,{"$f":"\"\"","v":""},{"$f":"\"\"","v":""},{"$f":"\"\"","v":""},{"$f":"\"\"","v":""},{"$f":"\"\"","v":""}]
[null,{"$f":"\"\"","v":""},{"$f":"\"\"","v":""},{"$f":"\"\"","v":""},{"$f":"\"\"","v":""},{"$f":"\"\"","v":""}]
[null,{"$f":"\"\"","v":""},{"$f":"\"\"","v":""},{"$f":"\"\"","v":""},{"$f":"\"\"","v":""},{"$f":"\"\"","v":""}]
[null,{"$f":"\"\"","v":""},{"$f":"\"\"","v":""},{"$f":"\"\"","v":""},{"$f":"\"\"","v":""},{"$f":"\"\"","v":""}]
[null,"Field Preparation",null,"Spring"]
[null,{"$f":"Defaults!$I$37","v":"Fertilizer Spreader"},{"$f":"\"\"","v":""},{"$f":"\"\"","v":""},{"$f":"Defaults!$Z$14","v":2},{"$f":"\"\"","v":""},"UAEX Budget spec",null,"With rounding"]
[null,{"$f":"Defaults!T4","v":"Urea [46-0-0]"},{"$f":"VLOOKUP(B24,Defaults!$T$3:$AE$13,4,FALSE)","v":"lb"},{"$f":"\"\"","v":""},{"$f":"I24+H27","v":355},{"$f":"\"\"","v":""},"N",111,{"$f":"ROUND(N24,0)","v":190},"Use Urea (46-0-0 to add remaining nitrogen",null,null,null,{"$f":"+(H24-V25)/0.46","v":190.26465028355386},"lbs of Urea fertilizer"]
[null,{"$f":"Defaults!T5","v":"Diammonium Phosphate [18-46-0]"},{"$f":"VLOOKUP(B25,Defaults!$T$3:$AE$13,4,FALSE)","v":"lb"},{"$f":"\"\"","v":""},{"$f":"I25","v":130},{"$f":"\"\"","v":""},"P205",60,{"$f":"ROUND(N25,0)","v":130},"Use DAP (18-46-0) to add Phosphate",null,null,null,{"$f":"+H25/0.46","v":130.43478260869566},"lbs of DAP needed to apply 30 lbs of P2O5 also delivers",null,null,null,null,null,null,{"$f":"+N25*0.18","v":23.478260869565219},"lbs of N"]
[null,{"$f":"Defaults!T6","v":"Potash [0-0-60]"},{"$f":"VLOOKUP(B26,Defaults!$T$3:$AE$13,4,FALSE)","v":"lb"},{"$f":"\"\"","v":""},{"$f":"I26","v":150},{"$f":"\"\"","v":""},"K20",90,{"$f":"ROUND(N26,0)","v":150},"Use Potash (0-0-60)",null,null,null,{"$f":"H26/0.6","v":150},"lbs of potash fertilizer"]
[null,{"$f":"\"\"","v":""},{"$f":"\"\"","v":""},{"$f":"\"\"","v":""},{"$f":"\"\"","v":""},{"$f":"\"\"","v":""},"Urea",165]
[null,{"$f":"\"\"","v":""},{"$f":"\"\"","v":""},{"$f":"\"\"","v":""},{"$f":"\"\"","v":""},{"$f":"\"\"","v":""}]
[null,{"$f":"\"\"","v":""},{"$f":"\"\"","v":""},{"$f":"\"\"","v":""},{"$f":"\"\"","v":""},{"$f":"\"\"","v":""}]
[null,"Planting and Insecticide Application",null,{"$f":"\"\"","v":""}]
[null,{"$f":"Defaults!$I$9","v":"Row Planter 1"},{"$f":"\"\"","v":""},{"$f":"\"\"","v":""},{"$f":"VLOOKUP(B31,Defaults!$I$18:$J$21,2,FALSE)","v":1},{"$f":"\"\"","v":""}]
[null,"Seed","ac",{"$f":"\"\"","v":""},{"$f":"VLOOKUP(Defaults!$M$7,Defaults!$M$5:$R$12,6,FALSE)","v":23.4},{"$f":"\"\"","v":""}]
[null,{"$f":"Defaults!$I$41","v":"Over-the-Top Sprayer 1"},{"$f":"\"\"","v":""},{"$f":"\"\"","v":""},{"$f":"Defaults!$Z$30","v":1},{"$f":"\"\"","v":""}]
[null,{"$f":"Defaults!T26","v":"Karate"},{"$f":"VLOOKUP(B34,Defaults!$T$21:$AE$29,4,FALSE)","v":"oz"},{"$f":"\"\"","v":""},{"$f":"VLOOKUP(B34,Defaults!$T$21:$AE$29,7,FALSE)","v":1.28},{"$f":"\"\"","v":""}]
[null,{"$f":"Defaults!T27","v":"Sivanto"},{"$f":"VLOOKUP(B35,Defaults!$T$21:$AE$29,4,FALSE)","v":"oz"},{"$f":"\"\"","v":""},{"$f":"VLOOKUP(B35,Defaults!$T$21:$AE$29,7,FALSE)","v":4},{"$f":"\"\"","v":""}]
[null,{"$f":"\"\"","v":""},{"$f":"\"\"","v":""},{"$f":"\"\"","v":""},{"$f":"\"\"","v":""},{"$f":"\"\"","v":""}]
[null,{"$f":"\"\"","v":""},{"$f":"\"\"","v":""},{"$f":"\"\"","v":""},{"$f":"\"\"","v":""},{"$f":"\"\"","v":""}]
[null,{"$f":"\"\"","v":""},{"$f":"\"\"","v":""},{"$f":"\"\"","v":""},{"$f":"\"\"","v":""},{"$f":"\"\"","v":""}]
[null,{"$f":"\"\"","v":""},{"$f":"\"\"","v":""},{"$f":"\"\"","v":""},{"$f":"\"\"","v":""},{"$f":"\"\"","v":""}]
[null,{"$f":"\"\"","v":""},{"$f":"\"\"","v":""},{"$f":"\"\"","v":""},{"$f":"\"\"","v":""},{"$f":"\"\"","v":""}]
[null,{"$f":"\"\"","v":""},{"$f":"\"\"","v":""},{"$f":"\"\"","v":""},{"$f":"\"\"","v":""},{"$f":"\"\"","v":""}]
[null,{"$f":"\"\"","v":""},{"$f":"\"\"","v":""},{"$f":"\"\"","v":""},{"$f":"\"\"","v":""},{"$f":"\"\"","v":""}]
[null,{"$f":"\"\"","v":""},{"$f":"\"\"","v":""},{"$f":"\"\"","v":""},{"$f":"\"\"","v":""},{"$f":"\"\"","v":""}]
[null,{"$f":"\"\"","v":""},{"$f":"\"\"","v":""},{"$f":"\"\"","v":""},{"$f":"\"\"","v":""},{"$f":"\"\"","v":""}]
[null,{"$f":"\"\"","v":""},{"$f":"\"\"","v":""},{"$f":"\"\"","v":""},{"$f":"\"\"","v":""},{"$f":"\"\"","v":""}]
[null,{"$f":"\"\"","v":""},{"$f":"\"\"","v":""},{"$f":"\"\"","v":""},{"$f":"\"\"","v":""},{"$f":"\"\"","v":""}]
[null,"Preemergence Weed Control",{"$f":"\"\"","v":""},"At Planting",{"$f":"\"\"","v":""}]
[null,{"$f":"\"\"","v":""},{"$f":"\"\"","v":""},{"$f":"\"\"","v":""},{"$f":"\"\"","v":""},{"$f":"\"\"","v":""}]
[null,{"$f":"\"\"","v":""},{"$f":"\"\"","v":""},{"$f":"\"\"","v":""},{"$f":"\"\"","v":""},{"$f":"\"\"","v":""}]
[null,{"$f":"\"\"","v":""},{"$f":"\"\"","v":""},{"$f":"\"\"","v":""},{"$f":"\"\"","v":""},{"$f":"\"\"","v":""}]
[null,{"$f":"\"\"","v":""},{"$f":"\"\"","v":""},{"$f":"\"\"","v":""},{"$f":"\"\"","v":""},{"$f":"\"\"","v":""}]
[null,{"$f":"\"\"","v":""},{"$f":"\"\"","v":""},{"$f":"\"\"","v":""},{"$f":"\"\"","v":""},{"$f":"\"\"","v":""}]
[null,{"$f":"\"\"","v":""},{"$f":"\"\"","v":""},{"$f":"\"\"","v":""},{"$f":"\"\"","v":""},{"$f":"\"\"","v":""}]
[null,"Postemergence Weed Control",{"$f":"\"\"","v":""},"Post Planting",{"$f":"\"\"","v":""}]
[null,{"$f":"\"\"","v":""},{"$f":"\"\"","v":""},{"$f":"\"\"","v":""},{"$f":"\"\"","v":""},{"$f":"\"\"","v":""}]
[null,{"$f":"\"\"","v":""},{"$f":"\"\"","v":""},{"$f":"\"\"","v":""},{"$f":"\"\"","v":""},{"$f":"\"\"","v":""}]
[null,{"$f":"\"\"","v":""},{"$f":"\"\"","v":""},{"$f":"\"\"","v":""},{"$f":"\"\"","v":""},{"$f":"\"\"","v":""}]
[null,{"$f":"\"\"","v":""},{"$f":"\"\"","v":""},{"$f":"\"\"","v":""},{"$f":"\"\"","v":""},{"$f":"\"\"","v":""}]
[null,{"$f":"\"\"","v":""},{"$f":"\"\"","v":""},{"$f":"\"\"","v":""},{"$f":"\"\"","v":""},{"$f":"\"\"","v":""}]
[null,{"$f":"\"\"","v":""},{"$f":"\"\"","v":""},{"$f":"\"\"","v":""},{"$f":"\"\"","v":""}]
[null,{"$f":"\"\"","v":""},{"$f":"\"\"","v":""},{"$f":"\"\"","v":""},{"$f":"\"\"","v":""},{"$f":"\"\"","v":""}]
[null,{"$f":"\"\"","v":""},{"$f":"\"\"","v":""},{"$f":"\"\"","v":""},{"$f":"\"\"","v":""},{"$f":"\"\"","v":""}]
[null,{"$f":"\"\"","v":""},{"$f":"\"\"","v":""},{"$f":"\"\"","v":""},{"$f":"\"\"","v":""},{"$f":"\"\"","v":""}]
[null,{"$f":"\"\"","v":""},{"$f":"\"\"","v":""},{"$f":"\"\"","v":""},{"$f":"\"\"","v":""},{"$f":"\"\"","v":""}]
[null,{"$f":"\"\"","v":""},{"$f":"\"\"","v":""},{"$f":"\"\"","v":""},{"$f":"\"\"","v":""},{"$f":"\"\"","v":""}]

{"sheet":"Soybean","index":13,"n_rows":65,"n_cols":15,"rows_kept":65,"cut":false,"hidden":true,"merged":[]}
[]
[]
[null,{"$f":"CONCATENATE(Defaults!$M$8,\" Defaults \")","v":"Soybean Defaults "}]
[]
[]
[]
[]
[]
[]
[]
[null,"Operation/\n   Operating Input","Unit","Month","# of trips/\nQuantity","MAX"]
[null,"Burndown Weed Control",null,"Spring"]
[null,{"$f":"Defaults!$I$27","v":"Over-the-Top Sprayer 1"},{"$f":"\"\"","v":""},{"$f":"\"\"","v":""},{"$f":"VLOOKUP(B13,Defaults!$I$24:$J$27,2,FALSE)","v":1},{"$f":"\"\"","v":""}]
[null,{"$f":"Defaults!AH63","v":"Glyphosate"},{"$f":"VLOOKUP($B14,Defaults!$BG$3:$BL$16,4,FALSE)","v":"pt"},{"$f":"\"\"","v":""},{"$f":"VLOOKUP($B14,Defaults!$BG$3:$BL$16,5,FALSE)","v":2},{"$f":"VLOOKUP($B14,Defaults!$BG$3:$BL$16,6,FALSE)","v":2}]
[null,{"$f":"Defaults!AH3","v":"2,4-D"},{"$f":"VLOOKUP($B15,Defaults!$BG$3:$BL$16,4,FALSE)","v":"oz"},{"$f":"\"\"","v":""},{"$f":"VLOOKUP($B15,Defaults!$BG$3:$BL$16,5,FALSE)","v":32},{"$f":"VLOOKUP($B15,Defaults!$BG$3:$BL$16,6,FALSE)","v":32}]
[null,{"$f":"\"\"","v":""},{"$f":"\"\"","v":""},{"$f":"\"\"","v":""},{"$f":"\"\"","v":""},{"$f":"\"\"","v":""}]
[null,"Preplant Weed Control",{"$f":"\"\"","v":""},"Spring",{"$f":"\"\"","v":""}]
[null,{"$f":"\"\"","v":""},{"$f":"\"\"","v":""},{"$f":"\"\"","v":""},{"$f":"\"\"","v":""},{"$f":"\"\"","v":""}]
[null,{"$f":"\"\"","v":""},{"$f":"\"\"","v":""},{"$f":"\"\"","v":""},{"$f":"\"\"","v":""},{"$f":"\"\"","v":""}]
[null,{"$f":"\"\"","v":""},{"$f":"\"\"","v":""},{"$f":"\"\"","v":""},{"$f":"\"\"","v":""},{"$f":"\"\"","v":""}]
[null,{"$f":"\"\"","v":""},{"$f":"\"\"","v":""},{"$f":"\"\"","v":""},{"$f":"\"\"","v":""},{"$f":"\"\"","v":""}]
[null,"Field Preparation",null,"Spring"]
[null,{"$f":"Defaults!$I$37","v":"Fertilizer Spreader"},{"$f":"\"\"","v":""},{"$f":"\"\"","v":""},{"$f":"Defaults!$AA$14","v":1},{"$f":"\"\"","v":""},"UAEX Budget spec",null,"With rounding"]
[null,{"$f":"Defaults!T7","v":"Triple Superphosphate [0-45-0]"},{"$f":"VLOOKUP(B24,Defaults!$T$3:$AE$13,4,FALSE)","v":"lb"},{"$f":"\"\"","v":""},{"$f":"I24","v":90},{"$f":"\"\"","v":""},"P205",40,{"$f":"ROUND(N24,-1)","v":90},"Use Triple Super Phosphate (0-45-0)",null,null,null,{"$f":"+H24/0.45","v":88.888888888888886},"lbs of triple superphosphate fertilzier"]
[null,{"$f":"Defaults!T6","v":"Potash [0-0-60]"},{"$f":"VLOOKUP(B25,Defaults!$T$3:$AE$13,4,FALSE)","v":"lb"},{"$f":"\"\"","v":""},{"$f":"I25","v":100},{"$f":"\"\"","v":""},"K20",60,{"$f":"ROUND(N25,-1)","v":100},"Use Potash (0-0-60)",null,null,null,{"$f":"H25/0.6","v":100},"lbs of potash fertilizer"]
[null,{"$f":"\"\"","v":""},{"$f":"\"\"","v":""},{"$f":"\"\"","v":""},{"$f":"\"\"","v":""},{"$f":"\"\"","v":""}]
[null,{"$f":"\"\"","v":""},{"$f":"\"\"","v":""},{"$f":"\"\"","v":""},{"$f":"\"\"","v":""},{"$f":"\"\"","v":""}]
[null,{"$f":"\"\"","v":""},{"$f":"\"\"","v":""},{"$f":"\"\"","v":""},{"$f":"\"\"","v":""},{"$f":"\"\"","v":""}]
[null,{"$f":"\"\"","v":""},{"$f":"\"\"","v":""},{"$f":"\"\"","v":""},{"$f":"\"\"","v":""},{"$f":"\"\"","v":""}]
[null,"Planting, Insecticide and Fungicide Application",null,{"$f":"\"\"","v":""}]
[null,{"$f":"Defaults!$I$9","v":"Row Planter 1"},{"$f":"\"\"","v":""},{"$f":"\"\"","v":""},{"$f":"VLOOKUP(B31,Defaults!$I$4:$J$9,2,FALSE)","v":1},{"$f":"\"\"","v":""}]
[null,"Seed","ac",{"$f":"\"\"","v":""},{"$f":"VLOOKUP(Defaults!$M$8,Defaults!$M$5:$R$12,6,FALSE)","v":78.599999999999994},{"$f":"\"\"","v":""}]
[null,{"$f":"Defaults!$I$41","v":"Over-the-Top Sprayer 1"},{"$f":"\"\"","v":""},{"$f":"\"\"","v":""},{"$f":"Defaults!$AA$30","v":1},{"$f":"\"\"","v":""}]
[null,{"$f":"Defaults!T28","v":"Besiege"},{"$f":"VLOOKUP(B34,Defaults!$T$21:$AE$29,4,FALSE)","v":"oz"},{"$f":"\"\"","v":""},{"$f":"VLOOKUP(B34,Defaults!$T$21:$AE$29,8,FALSE)","v":10},{"$f":"\"\"","v":""}]
[null,{"$f":"\"\"","v":""},{"$f":"\"\"","v":""},{"$f":"\"\"","v":""},{"$f":"\"\"","v":""},{"$f":"\"\"","v":""}]
[null,{"$f":"\"\"","v":""},{"$f":"\"\"","v":""},{"$f":"\"\"","v":""},{"$f":"\"\"","v":""},{"$f":"\"\"","v":""}]
[null,{"$f":"\"\"","v":""},{"$f":"\"\"","v":""},{"$f":"\"\"","v":""},{"$f":"\"\"","v":""},{"$f":"\"\"","v":""}]
[null,{"$f":"\"\"","v":""},{"$f":"\"\"","v":""},{"$f":"\"\"","v":""},{"$f":"\"\"","v":""},{"$f":"\"\"","v":""}]
[null,{"$f":"\"\"","v":""},{"$f":"\"\"","v":""},{"$f":"\"\"","v":""},{"$f":"\"\"","v":""},{"$f":"\"\"","v":""}]
[null,{"$f":"\"\"","v":""},{"$f":"\"\"","v":""},{"$f":"\"\"","v":""},{"$f":"\"\"","v":""},{"$f":"\"\"","v":""}]
[null,{"$f":"\"\"","v":""},{"$f":"\"\"","v":""},{"$f":"\"\"","v":""},{"$f":"\"\"","v":""},{"$f":"\"\"","v":""}]
[null,{"$f":"\"\"","v":""},{"$f":"\"\"","v":""},{"$f":"\"\"","v":""},{"$f":"\"\"","v":""},{"$f":"\"\"","v":""}]
[null,{"$f":"\"\"","v":""},{"$f":"\"\"","v":""},{"$f":"\"\"","v":""},{"$f":"\"\"","v":""},{"$f":"\"\"","v":""}]
[null,{"$f":"Defaults!$I$65","v":"Over-the-Top Sprayer 1"},{"$f":"\"\"","v":""},{"$f":"\"\"","v":""},{"$f":"VLOOKUP(B44,Defaults!$I$63:$K$65,2,FALSE)","v":1},{"$f":"\"\"","v":""}]
[null,{"$f":"Defaults!$T$51","v":"Quadris Top"},{"$f":"VLOOKUP(B45,Defaults!$T$50:$AE$51,4,FALSE)","v":"oz"},{"$f":"\"\"","v":""},{"$f":"VLOOKUP(B45,Defaults!$T$50:$AE$51,8,FALSE)","v":7},{"$f":"\"\"","v":""}]
[null,{"$f":"\"\"","v":""},{"$f":"\"\"","v":""},{"$f":"\"\"","v":""},{"$f":"\"\"","v":""},{"$f":"\"\"","v":""}]
[null,"Preemergence Weed Control",{"$f":"\"\"","v":""},"At Planting",{"$f":"\"\"","v":""}]
[null,{"$f":"\"\"","v":""},{"$f":"\"\"","v":""},{"$f":"\"\"","v":""},{"$f":"\"\"","v":""},{"$f":"\"\"","v":""}]
[null,{"$f":"\"\"","v":""},{"$f":"\"\"","v":""},{"$f":"\"\"","v":""},{"$f":"\"\"","v":""},{"$f":"\"\"","v":""}]
[null,{"$f":"\"\"","v":""},{"$f":"\"\"","v":""},{"$f":"\"\"","v":""},{"$f":"\"\"","v":""},{"$f":"\"\"","v":""}]
[null,{"$f":"\"\"","v":""},{"$f":"\"\"","v":""},{"$f":"\"\"","v":""},{"$f":"\"\"","v":""},{"$f":"\"\"","v":""}]
[null,{"$f":"\"\"","v":""},{"$f":"\"\"","v":""},{"$f":"\"\"","v":""},{"$f":"\"\"","v":""},{"$f":"\"\"","v":""}]
[null,{"$f":"\"\"","v":""},{"$f":"\"\"","v":""},{"$f":"\"\"","v":""},{"$f":"\"\"","v":""},{"$f":"\"\"","v":""}]
[null,"Postemergence Weed Control",{"$f":"\"\"","v":""},"Post Planting",{"$f":"\"\"","v":""}]
[null,{"$f":"\"\"","v":""},{"$f":"\"\"","v":""},{"$f":"\"\"","v":""},{"$f":"\"\"","v":""},{"$f":"\"\"","v":""}]
[null,{"$f":"\"\"","v":""},{"$f":"\"\"","v":""},{"$f":"\"\"","v":""},{"$f":"\"\"","v":""},{"$f":"\"\"","v":""}]
[null,{"$f":"\"\"","v":""},{"$f":"\"\"","v":""},{"$f":"\"\"","v":""},{"$f":"\"\"","v":""},{"$f":"\"\"","v":""}]
[null,{"$f":"\"\"","v":""},{"$f":"\"\"","v":""},{"$f":"\"\"","v":""},{"$f":"\"\"","v":""},{"$f":"\"\"","v":""}]
[null,{"$f":"\"\"","v":""},{"$f":"\"\"","v":""},{"$f":"\"\"","v":""},{"$f":"\"\"","v":""},{"$f":"\"\"","v":""}]
[null,{"$f":"\"\"","v":""},{"$f":"\"\"","v":""},{"$f":"\"\"","v":""},{"$f":"\"\"","v":""}]
[null,{"$f":"\"\"","v":""},{"$f":"\"\"","v":""},{"$f":"\"\"","v":""},{"$f":"\"\"","v":""},{"$f":"\"\"","v":""}]
[null,{"$f":"\"\"","v":""},{"$f":"\"\"","v":""},{"$f":"\"\"","v":""},{"$f":"\"\"","v":""},{"$f":"\"\"","v":""}]
[null,{"$f":"\"\"","v":""},{"$f":"\"\"","v":""},{"$f":"\"\"","v":""},{"$f":"\"\"","v":""},{"$f":"\"\"","v":""}]
[null,{"$f":"\"\"","v":""},{"$f":"\"\"","v":""},{"$f":"\"\"","v":""},{"$f":"\"\"","v":""},{"$f":"\"\"","v":""}]
[null,{"$f":"\"\"","v":""},{"$f":"\"\"","v":""},{"$f":"\"\"","v":""},{"$f":"\"\"","v":""},{"$f":"\"\"","v":""}]

{"sheet":"Rice","index":14,"n_rows":65,"n_cols":23,"rows_kept":65,"cut":false,"hidden":true,"merged":[]}
[]
[]
[null,{"$f":"CONCATENATE(Defaults!$M$9,\" Defaults \")","v":"Rice Defaults "}]
[]
[]
[]
[]
[]
[]
[]
[null,"Operation/\n   Operating Input","Unit","Month","# of trips/\nQuantity","MAX"]
[null,"Burndown Weed Control",{"$f":"\"\"","v":""},"Spring",{"$f":"\"\"","v":""}]
[null,{"$f":"\"\"","v":""},{"$f":"\"\"","v":""},{"$f":"\"\"","v":""},{"$f":"\"\"","v":""},{"$f":"\"\"","v":""}]
[null,{"$f":"\"\"","v":""},{"$f":"\"\"","v":""},{"$f":"\"\"","v":""},{"$f":"\"\"","v":""},{"$f":"\"\"","v":""}]
[null,{"$f":"\"\"","v":""},{"$f":"\"\"","v":""},{"$f":"\"\"","v":""},{"$f":"\"\"","v":""},{"$f":"\"\"","v":""}]
[null,{"$f":"\"\"","v":""},{"$f":"\"\"","v":""},{"$f":"\"\"","v":""},{"$f":"\"\"","v":""},{"$f":"\"\"","v":""}]
[null,"Preplant Weed Control",{"$f":"\"\"","v":""},"Spring",{"$f":"\"\"","v":""}]
[null,{"$f":"\"\"","v":""},{"$f":"\"\"","v":""},{"$f":"\"\"","v":""},{"$f":"\"\"","v":""},{"$f":"\"\"","v":""}]
[null,{"$f":"\"\"","v":""},{"$f":"\"\"","v":""},{"$f":"\"\"","v":""},{"$f":"\"\"","v":""},{"$f":"\"\"","v":""}]
[null,{"$f":"\"\"","v":""},{"$f":"\"\"","v":""},{"$f":"\"\"","v":""},{"$f":"\"\"","v":""},{"$f":"\"\"","v":""}]
[null,{"$f":"\"\"","v":""},{"$f":"\"\"","v":""},{"$f":"\"\"","v":""},{"$f":"\"\"","v":""},{"$f":"\"\"","v":""}]
[null,"Field Preparation",null,"Spring"]
[null,{"$f":"Defaults!$I$37","v":"Fertilizer Spreader"},{"$f":"\"\"","v":""},{"$f":"\"\"","v":""},{"$f":"Defaults!$AB$14","v":1},{"$f":"\"\"","v":""},"UAEX Budget spec",null,"With rounding"]
[null,{"$f":"Defaults!T5","v":"Diammonium Phosphate [18-46-0]"},{"$f":"VLOOKUP(B24,Defaults!$T$3:$AE$13,4,FALSE)","v":"lb"},{"$f":"\"\"","v":""},{"$f":"I24","v":87},{"$f":"\"\"","v":""},"P205",40,{"$f":"ROUND(N24,0)","v":87},"Use DAP (18-46-0) to add Phosphate",null,null,null,{"$f":"+H24/0.46","v":86.956521739130437},"lbs of DAP needed to apply 30 lbs of P2O5 also delivers",null,null,null,null,null,null,{"$f":"+N24*0.18","v":15.652173913043478},"lbs of N"]
[null,{"$f":"Defaults!T6","v":"Potash [0-0-60]"},{"$f":"VLOOKUP(B25,Defaults!$T$3:$AE$13,4,FALSE)","v":"lb"},{"$f":"\"\"","v":""},{"$f":"I25","v":100},{"$f":"\"\"","v":""},"K20",60,{"$f":"ROUND(N25,0)","v":100},"Use Potash (0-0-60)",null,null,null,{"$f":"H25/0.6","v":100},"lbs of potash fertilizer"]
[null,{"$f":"\"\"","v":""},{"$f":"\"\"","v":""},{"$f":"\"\"","v":""},{"$f":"\"\"","v":""},{"$f":"\"\"","v":""},"N",152,{"$f":"ROUND(N26,-1)","v":300},"Use Urea (46-0-0 to add remaining nitrogen",null,null,null,{"$f":"+(H26-V24)/0.46","v":296.40831758034028},"lbs of Urea fertilizer"]
[null,{"$f":"\"\"","v":""},{"$f":"\"\"","v":""},{"$f":"\"\"","v":""},{"$f":"\"\"","v":""},{"$f":"\"\"","v":""},"Agrotain",0.46,{"$f":"H27","v":0.46},"Use Agrotain"]
[null,{"$f":"\"\"","v":""},{"$f":"\"\"","v":""},{"$f":"\"\"","v":""},{"$f":"\"\"","v":""},{"$f":"\"\"","v":""}]
[null,{"$f":"\"\"","v":""},{"$f":"\"\"","v":""},{"$f":"\"\"","v":""},{"$f":"\"\"","v":""},{"$f":"\"\"","v":""}]
[null,"Planting",null,{"$f":"\"\"","v":""}]
[null,{"$f":"Defaults!$I$15","v":"No-Till Grain Drill 1"},{"$f":"\"\"","v":""},{"$f":"\"\"","v":""},{"$f":"VLOOKUP(B31,Defaults!$I$12:$J$16,2,FALSE)","v":1},{"$f":"\"\"","v":""}]
[null,"Seed","ac",{"$f":"\"\"","v":""},{"$f":"VLOOKUP(Defaults!$M$9,Defaults!$M$5:$R$12,6,FALSE)","v":74.16},{"$f":"\"\"","v":""}]
[null,{"$f":"Defaults!$I$41","v":"Over-the-Top Sprayer 1"},null,{"$f":"\"\"","v":""},{"$f":"Defaults!$AB$30","v":1},{"$f":"\"\"","v":""}]
[null,{"$f":"Defaults!T26","v":"Karate"},{"$f":"VLOOKUP(B34,Defaults!$T$21:$AE$29,4,FALSE)","v":"oz"},{"$f":"\"\"","v":""},{"$f":"VLOOKUP(B34,Defaults!$T$21:$AE$29,9,FALSE)","v":1.6},{"$f":"\"\"","v":""},"<< What is this about? Is this post flood application??"]
[null,{"$f":"\"\"","v":""},{"$f":"\"\"","v":""},{"$f":"\"\"","v":""},{"$f":"\"\"","v":""},{"$f":"\"\"","v":""}]
[null,{"$f":"\"\"","v":""},{"$f":"\"\"","v":""},{"$f":"\"\"","v":""},{"$f":"\"\"","v":""},{"$f":"\"\"","v":""}]
[null,{"$f":"\"\"","v":""},{"$f":"\"\"","v":""},{"$f":"\"\"","v":""},{"$f":"\"\"","v":""},{"$f":"\"\"","v":""}]
[null,{"$f":"\"\"","v":""},{"$f":"\"\"","v":""},{"$f":"\"\"","v":""},{"$f":"\"\"","v":""},{"$f":"\"\"","v":""}]
[null,{"$f":"\"\"","v":""},{"$f":"\"\"","v":""},{"$f":"\"\"","v":""},{"$f":"\"\"","v":""},{"$f":"\"\"","v":""}]
[null,{"$f":"\"\"","v":""},{"$f":"\"\"","v":""},{"$f":"\"\"","v":""},{"$f":"\"\"","v":""},{"$f":"\"\"","v":""}]
[null,{"$f":"\"\"","v":""},{"$f":"\"\"","v":""},{"$f":"\"\"","v":""},{"$f":"\"\"","v":""},{"$f":"\"\"","v":""}]
[null,{"$f":"\"\"","v":""},{"$f":"\"\"","v":""},{"$f":"\"\"","v":""},{"$f":"\"\"","v":""},{"$f":"\"\"","v":""}]
[null,{"$f":"\"\"","v":""},{"$f":"\"\"","v":""},{"$f":"\"\"","v":""},{"$f":"\"\"","v":""},{"$f":"\"\"","v":""}]
[null,{"$f":"\"\"","v":""},{"$f":"\"\"","v":""},{"$f":"\"\"","v":""},{"$f":"\"\"","v":""},{"$f":"\"\"","v":""}]
[null,{"$f":"\"\"","v":""},{"$f":"\"\"","v":""},{"$f":"\"\"","v":""},{"$f":"\"\"","v":""},{"$f":"\"\"","v":""}]
[null,{"$f":"\"\"","v":""},{"$f":"\"\"","v":""},{"$f":"\"\"","v":""},{"$f":"\"\"","v":""},{"$f":"\"\"","v":""}]
[null,"Preemergence Weed Control",{"$f":"\"\"","v":""},"At Planting",{"$f":"\"\"","v":""}]
[null,{"$f":"\"\"","v":""},{"$f":"\"\"","v":""},{"$f":"\"\"","v":""},{"$f":"\"\"","v":""},{"$f":"\"\"","v":""}]
[null,{"$f":"\"\"","v":""},{"$f":"\"\"","v":""},{"$f":"\"\"","v":""},{"$f":"\"\"","v":""},{"$f":"\"\"","v":""}]
[null,{"$f":"\"\"","v":""},{"$f":"\"\"","v":""},{"$f":"\"\"","v":""},{"$f":"\"\"","v":""},{"$f":"\"\"","v":""}]
[null,{"$f":"\"\"","v":""},{"$f":"\"\"","v":""},{"$f":"\"\"","v":""},{"$f":"\"\"","v":""},{"$f":"\"\"","v":""}]
[null,{"$f":"\"\"","v":""},{"$f":"\"\"","v":""},{"$f":"\"\"","v":""},{"$f":"\"\"","v":""},{"$f":"\"\"","v":""}]
[null,{"$f":"\"\"","v":""},{"$f":"\"\"","v":""},{"$f":"\"\"","v":""},{"$f":"\"\"","v":""},{"$f":"\"\"","v":""}]
[null,"Postemergence Weed Control",{"$f":"\"\"","v":""},"Post Planting",{"$f":"\"\"","v":""}]
[null,{"$f":"\"\"","v":""},{"$f":"\"\"","v":""},{"$f":"\"\"","v":""},{"$f":"\"\"","v":""},{"$f":"\"\"","v":""}]
[null,{"$f":"\"\"","v":""},{"$f":"\"\"","v":""},{"$f":"\"\"","v":""},{"$f":"\"\"","v":""},{"$f":"\"\"","v":""}]
[null,{"$f":"\"\"","v":""},{"$f":"\"\"","v":""},{"$f":"\"\"","v":""},{"$f":"\"\"","v":""},{"$f":"\"\"","v":""}]
[null,{"$f":"\"\"","v":""},{"$f":"\"\"","v":""},{"$f":"\"\"","v":""},{"$f":"\"\"","v":""},{"$f":"\"\"","v":""}]
[null,{"$f":"\"\"","v":""},{"$f":"\"\"","v":""},{"$f":"\"\"","v":""},{"$f":"\"\"","v":""},{"$f":"\"\"","v":""}]
[null,{"$f":"\"\"","v":""},{"$f":"\"\"","v":""},{"$f":"\"\"","v":""},{"$f":"\"\"","v":""}]
[null,{"$f":"\"\"","v":""},{"$f":"\"\"","v":""},{"$f":"\"\"","v":""},{"$f":"\"\"","v":""},{"$f":"\"\"","v":""}]
[null,{"$f":"\"\"","v":""},{"$f":"\"\"","v":""},{"$f":"\"\"","v":""},{"$f":"\"\"","v":""},{"$f":"\"\"","v":""}]
[null,{"$f":"\"\"","v":""},{"$f":"\"\"","v":""},{"$f":"\"\"","v":""},{"$f":"\"\"","v":""},{"$f":"\"\"","v":""}]
[null,{"$f":"\"\"","v":""},{"$f":"\"\"","v":""},{"$f":"\"\"","v":""},{"$f":"\"\"","v":""},{"$f":"\"\"","v":""}]
[null,{"$f":"\"\"","v":""},{"$f":"\"\"","v":""},{"$f":"\"\"","v":""},{"$f":"\"\"","v":""},{"$f":"\"\"","v":""}]

{"sheet":"Peanut","index":15,"n_rows":65,"n_cols":15,"rows_kept":65,"cut":false,"hidden":true,"merged":[]}
[]
[]
[null,{"$f":"CONCATENATE(Defaults!$M$10,\" Defaults \")","v":"Peanut Defaults "}]
[]
[]
[]
[]
[]
[]
[]
[null,"Operation/\n   Operating Input","Unit","Month","# of trips/\nQuantity","MAX"]
[null,{"$f":"\"\"","v":""},{"$f":"\"\"","v":""},{"$f":"\"\"","v":""},{"$f":"\"\"","v":""}]
[null,{"$f":"\"\"","v":""},{"$f":"\"\"","v":""},{"$f":"\"\"","v":""},{"$f":"\"\"","v":""},{"$f":"\"\"","v":""}]
[null,{"$f":"\"\"","v":""},{"$f":"\"\"","v":""},{"$f":"\"\"","v":""},{"$f":"\"\"","v":""},{"$f":"\"\"","v":""}]
[null,{"$f":"\"\"","v":""},{"$f":"\"\"","v":""},{"$f":"\"\"","v":""},{"$f":"\"\"","v":""},{"$f":"\"\"","v":""}]
[null,{"$f":"\"\"","v":""},{"$f":"\"\"","v":""},{"$f":"\"\"","v":""},{"$f":"\"\"","v":""},{"$f":"\"\"","v":""}]
[null,"Preplant Weed Control",{"$f":"\"\"","v":""},"Spring",{"$f":"\"\"","v":""}]
[null,{"$f":"\"\"","v":""},{"$f":"\"\"","v":""},{"$f":"\"\"","v":""},{"$f":"\"\"","v":""},{"$f":"\"\"","v":""}]
[null,{"$f":"\"\"","v":""},{"$f":"\"\"","v":""},{"$f":"\"\"","v":""},{"$f":"\"\"","v":""},{"$f":"\"\"","v":""}]
[null,{"$f":"\"\"","v":""},{"$f":"\"\"","v":""},{"$f":"\"\"","v":""},{"$f":"\"\"","v":""},{"$f":"\"\"","v":""}]
[null,{"$f":"\"\"","v":""},{"$f":"\"\"","v":""},{"$f":"\"\"","v":""},{"$f":"\"\"","v":""},{"$f":"\"\"","v":""}]
[null,"Field Preparation",null,"Spring"]
[null,{"$f":"Defaults!$I$37","v":"Fertilizer Spreader"},{"$f":"\"\"","v":""},{"$f":"\"\"","v":""},{"$f":"Defaults!$AC$14","v":1},{"$f":"\"\"","v":""},"UAEX Budget spec",null,"With rounding"]
[null,{"$f":"Defaults!T7","v":"Triple Superphosphate [0-45-0]"},{"$f":"VLOOKUP(B24,Defaults!$T$3:$AE$13,4,FALSE)","v":"lb"},null,{"$f":"I24","v":65},null,"P205",30,65,"Use Triple Super Phosphate (0-45-0)",null,null,null,{"$f":"+H24/0.45","v":66.666666666666671},"lbs of triple superphosphate fertilzier"]
[null,{"$f":"Defaults!T6","v":"Potash [0-0-60]"},{"$f":"VLOOKUP(B25,Defaults!$T$3:$AE$13,4,FALSE)","v":"lb"},null,{"$f":"I25","v":85},null,"K20",50,85,"Use Potash (0-0-60)",null,null,null,{"$f":"H25/0.6","v":83.333333333333343},"lbs of potash fertilizer"]
[null,{"$f":"\"\"","v":""},{"$f":"\"\"","v":""},null,{"$f":"\"\"","v":""},{"$f":"\"\"","v":""}]
[null,{"$f":"\"\"","v":""},{"$f":"\"\"","v":""},null,{"$f":"\"\"","v":""},{"$f":"\"\"","v":""}]
[null,{"$f":"\"\"","v":""},{"$f":"\"\"","v":""},null,{"$f":"\"\"","v":""},{"$f":"\"\"","v":""}]
[null,{"$f":"\"\"","v":""},{"$f":"\"\"","v":""},{"$f":"\"\"","v":""},{"$f":"\"\"","v":""},{"$f":"\"\"","v":""}]
[null,"Planting, Insecticide, and Inoculant Application",null,{"$f":"\"\"","v":""}]
[null,{"$f":"Defaults!$I$9","v":"Row Planter 1"},{"$f":"\"\"","v":""},{"$f":"\"\"","v":""},{"$f":"VLOOKUP(B31,Defaults!$I$18:$J$21,2,FALSE)","v":1},{"$f":"\"\"","v":""}]
[null,"Seed","ac",{"$f":"\"\"","v":""},{"$f":"VLOOKUP(Defaults!$M$10,Defaults!$M$5:$R$12,6,FALSE)","v":92},{"$f":"\"\"","v":""}]
[null,{"$f":"Defaults!$I$41","v":"Over-the-Top Sprayer 1"},{"$f":"\"\"","v":""},{"$f":"\"\"","v":""},{"$f":"Defaults!$AC$30","v":1},{"$f":"\"\"","v":""}]
[null,{"$f":"Defaults!T29","v":"Admire Pro"},{"$f":"VLOOKUP(B34,Defaults!$T$21:$AE$29,4,FALSE)","v":"oz"},{"$f":"\"\"","v":""},{"$f":"VLOOKUP(B34,Defaults!$T$21:$AE$29,10,FALSE)","v":9},{"$f":"\"\"","v":""}]
[null,{"$f":"\"\"","v":""},{"$f":"\"\"","v":""},{"$f":"\"\"","v":""},{"$f":"\"\"","v":""},{"$f":"\"\"","v":""}]
[null,{"$f":"\"\"","v":""},{"$f":"\"\"","v":""},{"$f":"\"\"","v":""},{"$f":"\"\"","v":""},{"$f":"\"\"","v":""}]
[null,{"$f":"\"\"","v":""},{"$f":"\"\"","v":""},{"$f":"\"\"","v":""},{"$f":"\"\"","v":""},{"$f":"\"\"","v":""}]
[null,{"$f":"\"\"","v":""},{"$f":"\"\"","v":""},{"$f":"\"\"","v":""},{"$f":"\"\"","v":""},{"$f":"\"\"","v":""}]
[null,{"$f":"Defaults!$I$46","v":"Over-the-Top Sprayer 1"},{"$f":"\"\"","v":""},{"$f":"\"\"","v":""},{"$f":"VLOOKUP(B39,Defaults!$I$44:$J$46,2,FALSE)","v":1},{"$f":"\"\"","v":""}]
[null,{"$f":"Defaults!T34","v":"Optimize"},{"$f":"VLOOKUP(B40,Defaults!$T$33:$X$34,4,FALSE)","v":"oz"},{"$f":"\"\"","v":""},{"$f":"VLOOKUP(B40,Defaults!$T$33:$AE$34,10,FALSE)","v":14},{"$f":"\"\"","v":""}]
[null,{"$f":"\"\"","v":""},{"$f":"\"\"","v":""},{"$f":"\"\"","v":""},{"$f":"\"\"","v":""},{"$f":"\"\"","v":""}]
[null,{"$f":"\"\"","v":""},{"$f":"\"\"","v":""},{"$f":"\"\"","v":""},{"$f":"\"\"","v":""},{"$f":"\"\"","v":""}]
[null,{"$f":"\"\"","v":""},{"$f":"\"\"","v":""},{"$f":"\"\"","v":""},{"$f":"\"\"","v":""},{"$f":"\"\"","v":""}]
[null,{"$f":"\"\"","v":""},{"$f":"\"\"","v":""},{"$f":"\"\"","v":""},{"$f":"\"\"","v":""},{"$f":"\"\"","v":""}]
[null,{"$f":"\"\"","v":""},{"$f":"\"\"","v":""},{"$f":"\"\"","v":""},{"$f":"\"\"","v":""},{"$f":"\"\"","v":""}]
[null,{"$f":"\"\"","v":""},{"$f":"\"\"","v":""},{"$f":"\"\"","v":""},{"$f":"\"\"","v":""},{"$f":"\"\"","v":""}]
[null,"Preemergence Weed Control",null,"At Planting"]
[null,{"$f":"Defaults!$I$27","v":"Over-the-Top Sprayer 1"},{"$f":"\"\"","v":""},{"$f":"\"\"","v":""},{"$f":"VLOOKUP(B48,Defaults!$I$24:$J$27,2,FALSE)","v":1},{"$f":"\"\"","v":""}]
[null,{"$f":"Defaults!AH127","v":"Valor"},{"$f":"VLOOKUP($B49,Defaults!$BU$37:$BZ$46,4,FALSE)","v":"oz"},{"$f":"\"\"","v":""},{"$f":"VLOOKUP($B49,Defaults!$BU$37:$BZ$46,5,FALSE)","v":2},{"$f":"VLOOKUP($B49,Defaults!$BU$37:$BZ$46,6,FALSE)","v":3}]
[null,{"$f":"Defaults!AH94","v":"Prowl"},{"$f":"VLOOKUP($B50,Defaults!$BU$37:$BZ$46,4,FALSE)","v":"oz"},{"$f":"\"\"","v":""},{"$f":"VLOOKUP($B50,Defaults!$BU$37:$BZ$46,5,FALSE)","v":2},{"$f":"VLOOKUP($B50,Defaults!$BU$37:$BZ$46,6,FALSE)","v":2}]
[null,{"$f":"\"\"","v":""},{"$f":"\"\"","v":""},{"$f":"\"\"","v":""},{"$f":"\"\"","v":""},{"$f":"\"\"","v":""}]
[null,{"$f":"\"\"","v":""},{"$f":"\"\"","v":""},{"$f":"\"\"","v":""},{"$f":"\"\"","v":""},{"$f":"\"\"","v":""}]
[null,{"$f":"\"\"","v":""},{"$f":"\"\"","v":""},{"$f":"\"\"","v":""},{"$f":"\"\"","v":""},{"$f":"\"\"","v":""}]
[null,"Postemergence Weed Control",{"$f":"\"\"","v":""},"Post Planting",{"$f":"\"\"","v":""}]
[null,{"$f":"\"\"","v":""},{"$f":"\"\"","v":""},{"$f":"\"\"","v":""},{"$f":"\"\"","v":""},{"$f":"\"\"","v":""}]
[null,{"$f":"\"\"","v":""},{"$f":"\"\"","v":""},{"$f":"\"\"","v":""},{"$f":"\"\"","v":""},{"$f":"\"\"","v":""}]
[null,{"$f":"\"\"","v":""},{"$f":"\"\"","v":""},{"$f":"\"\"","v":""},{"$f":"\"\"","v":""},{"$f":"\"\"","v":""}]
[null,{"$f":"\"\"","v":""},{"$f":"\"\"","v":""},{"$f":"\"\"","v":""},{"$f":"\"\"","v":""},{"$f":"\"\"","v":""}]
[null,{"$f":"\"\"","v":""},{"$f":"\"\"","v":""},{"$f":"\"\"","v":""},{"$f":"\"\"","v":""},{"$f":"\"\"","v":""}]
[null,{"$f":"\"\"","v":""},{"$f":"\"\"","v":""},{"$f":"\"\"","v":""},{"$f":"\"\"","v":""}]
[null,{"$f":"\"\"","v":""},{"$f":"\"\"","v":""},{"$f":"\"\"","v":""},{"$f":"\"\"","v":""},{"$f":"\"\"","v":""}]
[null,{"$f":"\"\"","v":""},{"$f":"\"\"","v":""},{"$f":"\"\"","v":""},{"$f":"\"\"","v":""},{"$f":"\"\"","v":""}]
[null,{"$f":"\"\"","v":""},{"$f":"\"\"","v":""},{"$f":"\"\"","v":""},{"$f":"\"\"","v":""},{"$f":"\"\"","v":""}]
[null,{"$f":"\"\"","v":""},{"$f":"\"\"","v":""},{"$f":"\"\"","v":""},{"$f":"\"\"","v":""},{"$f":"\"\"","v":""}]
[null,{"$f":"\"\"","v":""},{"$f":"\"\"","v":""},{"$f":"\"\"","v":""},{"$f":"\"\"","v":""},{"$f":"\"\"","v":""}]

{"sheet":"Wheat","index":16,"n_rows":65,"n_cols":23,"rows_kept":65,"cut":false,"hidden":true,"merged":[]}
[]
[]
[null,{"$f":"CONCATENATE(Defaults!$M$11,\" Defaults \")","v":"Wheat Defaults "}]
[]
[]
[]
[]
[]
[]
[]
[null,"Operation/\n   Operating Input","Unit","Month","# of trips/\nQuantity","MAX"]
[null,{"$f":"\"\"","v":""},{"$f":"\"\"","v":""},{"$f":"\"\"","v":""},{"$f":"\"\"","v":""}]
[null,{"$f":"\"\"","v":""},{"$f":"\"\"","v":""},{"$f":"\"\"","v":""},{"$f":"\"\"","v":""},{"$f":"\"\"","v":""}]
[null,{"$f":"\"\"","v":""},{"$f":"\"\"","v":""},{"$f":"\"\"","v":""},{"$f":"\"\"","v":""},{"$f":"\"\"","v":""}]
[null,{"$f":"\"\"","v":""},{"$f":"\"\"","v":""},{"$f":"\"\"","v":""},{"$f":"\"\"","v":""},{"$f":"\"\"","v":""}]
[null,{"$f":"\"\"","v":""},{"$f":"\"\"","v":""},{"$f":"\"\"","v":""},{"$f":"\"\"","v":""},{"$f":"\"\"","v":""}]
[null,{"$f":"\"\"","v":""},{"$f":"\"\"","v":""},{"$f":"\"\"","v":""},{"$f":"\"\"","v":""}]
[null,{"$f":"\"\"","v":""},{"$f":"\"\"","v":""},{"$f":"\"\"","v":""},{"$f":"\"\"","v":""},{"$f":"\"\"","v":""}]
[null,{"$f":"\"\"","v":""},{"$f":"\"\"","v":""},{"$f":"\"\"","v":""},{"$f":"\"\"","v":""},{"$f":"\"\"","v":""}]
[null,{"$f":"\"\"","v":""},{"$f":"\"\"","v":""},{"$f":"\"\"","v":""},{"$f":"\"\"","v":""},{"$f":"\"\"","v":""}]
[null,{"$f":"\"\"","v":""},{"$f":"\"\"","v":""},{"$f":"\"\"","v":""},{"$f":"\"\"","v":""},{"$f":"\"\"","v":""}]
[null,"Field Preparation",null,"Spring"]
[null,{"$f":"Defaults!$I$37","v":"Fertilizer Spreader"},{"$f":"\"\"","v":""},{"$f":"\"\"","v":""},{"$f":"Defaults!$AD$14","v":2},{"$f":"\"\"","v":""},"UAEX Budget spec",null,"With rounding"]
[null,{"$f":"Defaults!T4","v":"Urea [46-0-0]"},{"$f":"VLOOKUP(B24,Defaults!$T$3:$AE$13,4,FALSE)","v":"lb"},{"$f":"\"\"","v":""},{"$f":"I24+H28","v":225},{"$f":"\"\"","v":""},"N",116,{"$f":"ROUND(N24,0)","v":150},"Use Urea (46-0-0 to add remaining nitrogen",null,null,null,{"$f":"+(H24-V25-V27)/0.46","v":149.76492268102538},"lbs of Urea fertilizer"]
[null,{"$f":"Defaults!T5","v":"Diammonium Phosphate [18-46-0]"},{"$f":"VLOOKUP(B25,Defaults!$T$3:$AE$13,4,FALSE)","v":"lb"},{"$f":"\"\"","v":""},{"$f":"I25","v":87},{"$f":"\"\"","v":""},"P205",40,{"$f":"ROUND(N25,0)","v":87},"Use DAP (18-46-0) to add Phosphate",null,null,null,{"$f":"+H25/0.46","v":86.956521739130437},"lbs of DAP needed to apply 30 lbs of P2O5 also delivers",null,null,null,null,null,null,{"$f":"+N25*0.18","v":15.652173913043478},"lbs of N"]
[null,{"$f":"Defaults!T6","v":"Potash [0-0-60]"},{"$f":"VLOOKUP(B26,Defaults!$T$3:$AE$13,4,FALSE)","v":"lb"},{"$f":"\"\"","v":""},{"$f":"I26","v":133},{"$f":"\"\"","v":""},"K20",80,{"$f":"ROUND(N26,0)","v":133},"Use Potash (0-0-60)",null,null,null,{"$f":"H26/0.6","v":133.33333333333334},"lbs of potash fertilizer"]
[null,{"$f":"Defaults!T12","v":"Amm. Sulfate [21-0-0](24% Sulfate)"},{"$f":"VLOOKUP(B27,Defaults!$T$3:$AE$13,4,FALSE)","v":"lb"},{"$f":"\"\"","v":""},{"$f":"I27+H29","v":200},{"$f":"\"\"","v":""},"Sulfur",12,{"$f":"ROUND(N27,0)","v":150},"Use Ammonium Sulfate(21-0-0-24)",null,null,null,{"$f":"H27/0.24/0.3338","v":149.79029358897543},"lbs of Ammonium sulfate to apply 10 pounds of sulfur also delivers ",null,null,null,null,null,null,{"$f":"+N27*0.21","v":31.455961653684838},"lbs of N"]
[null,{"$f":"\"\"","v":""},{"$f":"\"\"","v":""},{"$f":"\"\"","v":""},{"$f":"\"\"","v":""},{"$f":"\"\"","v":""},"Urea",75]
[null,{"$f":"\"\"","v":""},{"$f":"\"\"","v":""},{"$f":"\"\"","v":""},{"$f":"\"\"","v":""},{"$f":"\"\"","v":""},"Amm. Sulfate",50]
[null,"Planting",null,{"$f":"\"\"","v":""}]
[null,{"$f":"Defaults!$I$15","v":"No-Till Grain Drill 1"},{"$f":"\"\"","v":""},{"$f":"\"\"","v":""},{"$f":"VLOOKUP(B31,Defaults!$I$12:$J$16,2,FALSE)","v":1},{"$f":"\"\"","v":""}]
[null,"Seed","ac",{"$f":"\"\"","v":""},{"$f":"VLOOKUP(Defaults!$M$12,Defaults!$M$5:$R$12,6,FALSE)","v":80},{"$f":"\"\"","v":""}]
[null,{"$f":"\"\"","v":""},{"$f":"\"\"","v":""},{"$f":"\"\"","v":""},{"$f":"\"\"","v":""},{"$f":"\"\"","v":""}]
[null,{"$f":"\"\"","v":""},{"$f":"\"\"","v":""},{"$f":"\"\"","v":""},{"$f":"\"\"","v":""},{"$f":"\"\"","v":""}]
[null,{"$f":"\"\"","v":""},{"$f":"\"\"","v":""},{"$f":"\"\"","v":""},{"$f":"\"\"","v":""},{"$f":"\"\"","v":""}]
[null,{"$f":"\"\"","v":""},{"$f":"\"\"","v":""},{"$f":"\"\"","v":""},{"$f":"\"\"","v":""},{"$f":"\"\"","v":""}]
[null,{"$f":"\"\"","v":""},{"$f":"\"\"","v":""},{"$f":"\"\"","v":""},{"$f":"\"\"","v":""},{"$f":"\"\"","v":""}]
[null,{"$f":"\"\"","v":""},{"$f":"\"\"","v":""},{"$f":"\"\"","v":""},{"$f":"\"\"","v":""},{"$f":"\"\"","v":""}]
[null,{"$f":"\"\"","v":""},{"$f":"\"\"","v":""},{"$f":"\"\"","v":""},{"$f":"\"\"","v":""},{"$f":"\"\"","v":""}]
[null,{"$f":"\"\"","v":""},{"$f":"\"\"","v":""},{"$f":"\"\"","v":""},{"$f":"\"\"","v":""},{"$f":"\"\"","v":""}]
[null,{"$f":"\"\"","v":""},{"$f":"\"\"","v":""},{"$f":"\"\"","v":""},{"$f":"\"\"","v":""},{"$f":"\"\"","v":""}]
[null,{"$f":"\"\"","v":""},{"$f":"\"\"","v":""},{"$f":"\"\"","v":""},{"$f":"\"\"","v":""},{"$f":"\"\"","v":""}]
[null,{"$f":"\"\"","v":""},{"$f":"\"\"","v":""},{"$f":"\"\"","v":""},{"$f":"\"\"","v":""},{"$f":"\"\"","v":""}]
[null,{"$f":"\"\"","v":""},{"$f":"\"\"","v":""},{"$f":"\"\"","v":""},{"$f":"\"\"","v":""},{"$f":"\"\"","v":""}]
[null,{"$f":"\"\"","v":""},{"$f":"\"\"","v":""},{"$f":"\"\"","v":""},{"$f":"\"\"","v":""},{"$f":"\"\"","v":""}]
[null,{"$f":"\"\"","v":""},{"$f":"\"\"","v":""},{"$f":"\"\"","v":""},{"$f":"\"\"","v":""},{"$f":"\"\"","v":""}]
[null,"Preemergence Weed Control",{"$f":"\"\"","v":""},"At Planting",{"$f":"\"\"","v":""}]
[null,{"$f":"\"\"","v":""},{"$f":"\"\"","v":""},{"$f":"\"\"","v":""},{"$f":"\"\"","v":""},{"$f":"\"\"","v":""}]
[null,{"$f":"\"\"","v":""},{"$f":"\"\"","v":""},{"$f":"\"\"","v":""},{"$f":"\"\"","v":""},{"$f":"\"\"","v":""}]
[null,{"$f":"\"\"","v":""},{"$f":"\"\"","v":""},{"$f":"\"\"","v":""},{"$f":"\"\"","v":""},{"$f":"\"\"","v":""}]
[null,{"$f":"\"\"","v":""},{"$f":"\"\"","v":""},{"$f":"\"\"","v":""},{"$f":"\"\"","v":""},{"$f":"\"\"","v":""}]
[null,{"$f":"\"\"","v":""},{"$f":"\"\"","v":""},{"$f":"\"\"","v":""},{"$f":"\"\"","v":""},{"$f":"\"\"","v":""}]
[null,{"$f":"\"\"","v":""},{"$f":"\"\"","v":""},{"$f":"\"\"","v":""},{"$f":"\"\"","v":""},{"$f":"\"\"","v":""}]
[null,{"$f":"\"\"","v":""},{"$f":"\"\"","v":""},{"$f":"\"\"","v":""},{"$f":"\"\"","v":""}]
[null,{"$f":"\"\"","v":""},{"$f":"\"\"","v":""},{"$f":"\"\"","v":""},{"$f":"\"\"","v":""},{"$f":"\"\"","v":""}]
[null,{"$f":"\"\"","v":""},{"$f":"\"\"","v":""},{"$f":"\"\"","v":""},{"$f":"\"\"","v":""},{"$f":"\"\"","v":""}]
[null,{"$f":"\"\"","v":""},{"$f":"\"\"","v":""},{"$f":"\"\"","v":""},{"$f":"\"\"","v":""},{"$f":"\"\"","v":""}]
[null,{"$f":"\"\"","v":""},{"$f":"\"\"","v":""},{"$f":"\"\"","v":""},{"$f":"\"\"","v":""},{"$f":"\"\"","v":""}]
[null,{"$f":"\"\"","v":""},{"$f":"\"\"","v":""},{"$f":"\"\"","v":""},{"$f":"\"\"","v":""},{"$f":"\"\"","v":""}]
[null,{"$f":"\"\"","v":""},{"$f":"\"\"","v":""},{"$f":"\"\"","v":""},{"$f":"\"\"","v":""}]
[null,{"$f":"\"\"","v":""},{"$f":"\"\"","v":""},{"$f":"\"\"","v":""},{"$f":"\"\"","v":""},{"$f":"\"\"","v":""}]
[null,{"$f":"\"\"","v":""},{"$f":"\"\"","v":""},{"$f":"\"\"","v":""},{"$f":"\"\"","v":""},{"$f":"\"\"","v":""}]
[null,{"$f":"\"\"","v":""},{"$f":"\"\"","v":""},{"$f":"\"\"","v":""},{"$f":"\"\"","v":""},{"$f":"\"\"","v":""}]
[null,{"$f":"\"\"","v":""},{"$f":"\"\"","v":""},{"$f":"\"\"","v":""},{"$f":"\"\"","v":""},{"$f":"\"\"","v":""}]
[null,{"$f":"\"\"","v":""},{"$f":"\"\"","v":""},{"$f":"\"\"","v":""},{"$f":"\"\"","v":""},{"$f":"\"\"","v":""}]

{"sheet":"Pasture","index":17,"n_rows":66,"n_cols":23,"rows_kept":66,"cut":false,"hidden":true,"merged":[]}
[]
[]
[null,{"$f":"CONCATENATE(Defaults!$M$12,\" Defaults \")","v":"Est. Pasture or Hay Defaults "}]
[]
[]
[]
[]
[]
[]
[]
[null,"Operation/\n   Operating Input","Unit","Month","# of trips/\nQuantity","MAX"]
[null,"Weed Control",{"$f":"\"\"","v":""},"User Determined",{"$f":"\"\"","v":""}]
[null,{"$f":"Defaults!$I$27","v":"Over-the-Top Sprayer 1"},{"$f":"\"\"","v":""},null,{"$f":"VLOOKUP(B13,Defaults!$I$24:$J$27,2,FALSE)","v":1},{"$f":"\"\"","v":""}]
[null,{"$f":"Defaults!CI4","v":"2,4-D"},{"$f":"VLOOKUP($B15,Defaults!$CI$3:$CN$22,4,FALSE)","v":"pt"},{"$f":"\"\"","v":""},{"$f":"VLOOKUP($B14,Defaults!$CI$3:$CN$22,5,FALSE)","v":1},{"$f":"VLOOKUP($B14,Defaults!$CI$3:$CN$22,6,FALSE)","v":4}]
[null,{"$f":"Defaults!CI5","v":"Banvel"},{"$f":"VLOOKUP($B15,Defaults!$CI$3:$CN$22,4,FALSE)","v":"pt"},{"$f":"\"\"","v":""},{"$f":"VLOOKUP($B15,Defaults!$CI$3:$CN$22,5,FALSE)","v":1},{"$f":"VLOOKUP($B15,Defaults!$CI$3:$CN$22,6,FALSE)","v":8}]
[null,{"$f":"\"\"","v":""},{"$f":"\"\"","v":""},{"$f":"\"\"","v":""},{"$f":"\"\"","v":""},{"$f":"\"\"","v":""}]
[null,"Weed Control",null,{"$f":"\"\"","v":""}]
[null,{"$f":"Defaults!$I$27","v":"Over-the-Top Sprayer 1"},{"$f":"\"\"","v":""},{"$f":"\"\"","v":""},{"$f":"VLOOKUP(B18,Defaults!$I$24:$J$27,2,FALSE)","v":1},{"$f":"\"\"","v":""}]
[null,{"$f":"Defaults!CI7","v":"Grazon P + D"},{"$f":"VLOOKUP($B19,Defaults!$CI$3:$CN$22,4,FALSE)","v":"pt"},{"$f":"\"\"","v":""},{"$f":"VLOOKUP($B19,Defaults!$CI$3:$CN$22,5,FALSE)","v":1},{"$f":"VLOOKUP($B19,Defaults!$CI$3:$CN$22,6,FALSE)","v":4}]
[null,{"$f":"\"\"","v":""},{"$f":"\"\"","v":""},{"$f":"\"\"","v":""},{"$f":"\"\"","v":""},{"$f":"\"\"","v":""}]
[null,{"$f":"\"\"","v":""},{"$f":"\"\"","v":""},{"$f":"\"\"","v":""},{"$f":"\"\"","v":""},{"$f":"\"\"","v":""}]
[null,"Fertility Management",{"$f":"\"\"","v":""},{"$f":"\"\"","v":""},{"$f":"\"\"","v":""}]
[null,{"$f":"Defaults!$I$37","v":"Fertilizer Spreader"},{"$f":"\"\"","v":""},{"$f":"\"\"","v":""},{"$f":"Defaults!$AE$14","v":1},{"$f":"\"\"","v":""}]
[null,{"$f":"Defaults!T4","v":"Urea [46-0-0]"},{"$f":"VLOOKUP($B24,Defaults!$T$3:$AE$13,4,FALSE)","v":"lb"},{"$f":"\"\"","v":""},{"$f":"I25","v":155},{"$f":"\"\"","v":""},"Our Budget Spec",null,"With rounding"]
[null,{"$f":"Defaults!T5","v":"Diammonium Phosphate [18-46-0]"},{"$f":"VLOOKUP($B25,Defaults!$T$3:$AE$13,4,FALSE)","v":"lb"},{"$f":"\"\"","v":""},{"$f":"I26","v":20},{"$f":"\"\"","v":""},"Urea",75,{"$f":"ROUND(N25,0)","v":155},"Use Urea (46-0-0 to add remaining nitrogen",null,null,null,{"$f":"+(H25-V26)/0.46","v":154.5368620037807},"lbs of Urea fertilizer"]
[null,{"$f":"Defaults!T6","v":"Potash [0-0-60]"},{"$f":"VLOOKUP($B26,Defaults!$T$3:$AE$13,4,FALSE)","v":"lb"},{"$f":"\"\"","v":""},{"$f":"I27","v":83},{"$f":"\"\"","v":""},"Phosphate",10,{"$f":"ROUND(N26,-1)","v":20},"Use DAP (18-46-0) to add Phosphate",null,null,null,{"$f":"+H26/0.46","v":21.739130434782609},"lbs of DAP needed to apply 30 lbs of P2O5 also delivers",null,null,null,null,null,null,{"$f":"+N26*0.18","v":3.9130434782608696},"lbs of N"]
[null,{"$f":"\"\"","v":""},{"$f":"\"\"","v":""},{"$f":"\"\"","v":""},{"$f":"\"\"","v":""},{"$f":"\"\"","v":""},"Postash",50,{"$f":"ROUND(N27,0)","v":83},"Use Potash (0-0-60)",null,null,null,{"$f":"H27/0.6","v":83.333333333333343},"lbs of potash fertilizer"]
[null,{"$f":"\"\"","v":""},{"$f":"\"\"","v":""},{"$f":"\"\"","v":""},{"$f":"\"\"","v":""},{"$f":"\"\"","v":""}]
[null,{"$f":"\"\"","v":""},{"$f":"\"\"","v":""},{"$f":"\"\"","v":""},{"$f":"\"\"","v":""},{"$f":"\"\"","v":""}]
[null,"Pasture Management",{"$f":"\"\"","v":""},null,{"$f":"\"\"","v":""}]
[null,{"$f":"Defaults!$I$15","v":"No-Till Grain Drill 1"},{"$f":"\"\"","v":""},{"$f":"\"\"","v":""},{"$f":"VLOOKUP(B31,Defaults!$I$12:$J$16,2,FALSE)","v":1},{"$f":"\"\"","v":""}]
[null,{"$f":"\"Seed\"","v":"Seed"},{"$f":"\"ac\"","v":"ac"},{"$f":"\"\"","v":""},{"$f":"VLOOKUP(Defaults!$M$12,Defaults!$M$5:$R$12,6,FALSE)","v":80},{"$f":"\"\"","v":""}]
[null,{"$f":"\"\"","v":""},{"$f":"\"\"","v":""},{"$f":"\"\"","v":""},{"$f":"\"\"","v":""},{"$f":"\"\"","v":""}]
[null,{"$f":"\"\"","v":""},{"$f":"\"\"","v":""},{"$f":"\"\"","v":""},{"$f":"\"\"","v":""},{"$f":"\"\"","v":""}]
[null,{"$f":"\"\"","v":""},{"$f":"\"\"","v":""},{"$f":"\"\"","v":""},{"$f":"\"\"","v":""},{"$f":"\"\"","v":""}]
[null,{"$f":"\"\"","v":""},{"$f":"\"\"","v":""},{"$f":"\"\"","v":""},{"$f":"\"\"","v":""},{"$f":"\"\"","v":""}]
[null,{"$f":"\"\"","v":""},{"$f":"\"\"","v":""},{"$f":"\"\"","v":""},{"$f":"\"\"","v":""},{"$f":"\"\"","v":""}]
[null,{"$f":"\"\"","v":""},{"$f":"\"\"","v":""},{"$f":"\"\"","v":""},{"$f":"\"\"","v":""},{"$f":"\"\"","v":""}]
[null,{"$f":"Defaults!$I$51","v":"Manure Spreader"},{"$f":"\"\"","v":""},{"$f":"\"\"","v":""},{"$f":"VLOOKUP(B39,Defaults!$I$49:$J$51,2,FALSE)","v":1},{"$f":"\"\"","v":""}]
[null,{"$f":"Defaults!$T$18","v":"Poultry Litter [3-3-3]"},{"$f":"VLOOKUP($B40,Defaults!$T$18:$AE$18,4,FALSE)","v":"ton"},{"$f":"\"\"","v":""},{"$f":"VLOOKUP($B40,Defaults!$T$18:$AE$18,12,FALSE)","v":1},{"$f":"\"\"","v":""}]
[null,{"$f":"\"\"","v":""},{"$f":"\"\"","v":""},{"$f":"\"\"","v":""},{"$f":"\"\"","v":""},{"$f":"\"\"","v":""}]
[null,{"$f":"\"\"","v":""},{"$f":"\"\"","v":""},{"$f":"\"\"","v":""},{"$f":"\"\"","v":""},{"$f":"\"\"","v":""}]
[null,{"$f":"\"\"","v":""},{"$f":"\"\"","v":""},{"$f":"\"\"","v":""},{"$f":"\"\"","v":""},{"$f":"\"\"","v":""}]
[null,{"$f":"\"\"","v":""},{"$f":"\"\"","v":""},{"$f":"\"\"","v":""},{"$f":"\"\"","v":""},{"$f":"\"\"","v":""}]
[null,{"$f":"\"\"","v":""},{"$f":"\"\"","v":""},{"$f":"\"\"","v":""},{"$f":"\"\"","v":""},{"$f":"\"\"","v":""}]
[null,{"$f":"\"\"","v":""},{"$f":"\"\"","v":""},{"$f":"\"\"","v":""},{"$f":"\"\"","v":""},{"$f":"\"\"","v":""}]
[null,{"$f":"\"\"","v":""},{"$f":"\"\"","v":""},{"$f":"\"\"","v":""},{"$f":"\"\"","v":""},{"$f":"\"\"","v":""}]
[null,{"$f":"\"\"","v":""},{"$f":"\"\"","v":""},{"$f":"\"\"","v":""},{"$f":"\"\"","v":""},{"$f":"\"\"","v":""}]
[null,{"$f":"\"\"","v":""},{"$f":"\"\"","v":""},{"$f":"\"\"","v":""},{"$f":"\"\"","v":""},{"$f":"\"\"","v":""}]
[null,{"$f":"\"\"","v":""},{"$f":"\"\"","v":""},{"$f":"\"\"","v":""},{"$f":"\"\"","v":""},{"$f":"\"\"","v":""}]
[null,{"$f":"\"\"","v":""},{"$f":"\"\"","v":""},{"$f":"\"\"","v":""},{"$f":"\"\"","v":""},{"$f":"\"\"","v":""}]
[null,{"$f":"\"\"","v":""},{"$f":"\"\"","v":""},{"$f":"\"\"","v":""},{"$f":"\"\"","v":""},{"$f":"\"\"","v":""}]
[null,{"$f":"\"\"","v":""},{"$f":"\"\"","v":""},{"$f":"\"\"","v":""},{"$f":"\"\"","v":""},{"$f":"\"\"","v":""}]
[null,{"$f":"\"\"","v":""},{"$f":"\"\"","v":""},{"$f":"\"\"","v":""},{"$f":"\"\"","v":""},{"$f":"\"\"","v":""}]
[null,{"$f":"\"\"","v":""},{"$f":"\"\"","v":""},{"$f":"\"\"","v":""},{"$f":"\"\"","v":""},{"$f":"\"\"","v":""}]
[null,{"$f":"\"\"","v":""},{"$f":"\"\"","v":""},{"$f":"\"\"","v":""},{"$f":"\"\"","v":""},{"$f":"\"\"","v":""}]
[null,{"$f":"\"\"","v":""},{"$f":"\"\"","v":""},{"$f":"\"\"","v":""},{"$f":"\"\"","v":""},{"$f":"\"\"","v":""}]
[null,{"$f":"\"\"","v":""},{"$f":"\"\"","v":""},{"$f":"\"\"","v":""},{"$f":"\"\"","v":""},{"$f":"\"\"","v":""}]
[null,{"$f":"\"\"","v":""},{"$f":"\"\"","v":""},{"$f":"\"\"","v":""},{"$f":"\"\"","v":""},{"$f":"\"\"","v":""}]
[null,{"$f":"\"\"","v":""},{"$f":"\"\"","v":""},{"$f":"\"\"","v":""},{"$f":"\"\"","v":""}]
[null,{"$f":"\"\"","v":""},{"$f":"\"\"","v":""},{"$f":"\"\"","v":""},{"$f":"\"\"","v":""},{"$f":"\"\"","v":""}]
[null,{"$f":"\"\"","v":""},{"$f":"\"\"","v":""},{"$f":"\"\"","v":""},{"$f":"\"\"","v":""},{"$f":"\"\"","v":""}]
[null,{"$f":"\"\"","v":""},{"$f":"\"\"","v":""},{"$f":"\"\"","v":""},{"$f":"\"\"","v":""},{"$f":"\"\"","v":""}]
[null,{"$f":"\"\"","v":""},{"$f":"\"\"","v":""},{"$f":"\"\"","v":""},{"$f":"\"\"","v":""},{"$f":"\"\"","v":""}]
[null,{"$f":"\"\"","v":""},{"$f":"\"\"","v":""},{"$f":"\"\"","v":""},{"$f":"\"\"","v":""},{"$f":"\"\"","v":""}]
[null,{"$f":"\"\"","v":""},{"$f":"\"\"","v":""},{"$f":"\"\"","v":""},{"$f":"\"\"","v":""},{"$f":"\"\"","v":""}]

{"sheet":"Product Information","index":18,"n_rows":54,"n_cols":4,"rows_kept":54,"cut":false,"hidden":true,"merged":[[1,2,1,4]]}
[]
[null,null,"Product Information for Tractor Guidance Technology"]
[]
[]
[null,"Product Name ","Manufacturer","Product Features and Details"]
[null,"Receivers"]
[null,"GPS 6000"]
[null,null,"Ag Leader","Single-frequency\nDifferential corrections include GLIDE, WAAS/EGNOS\nGLONASS standard\nGLIDE improved accuracy without subscription-based differential correction\nUp to 10 Hz output\nLED diagnostics\nStablelocTM Technology"]
[null,"GPS 6500"]
[null,null,"Ag Leader","Differential corrections include GLIDE, WAAS/EGNOS, TerraStar and RTK (with Relay)\nGLONASS standard\nGLIDE improved accuracy without subscription-based differential correction\nUp to 20 Hz output\nLED diagnostics\nStablelocTM Technology"]
[null,"StarFireTM 6000"]
[null,null,"John Deere","Differential correction signal levels include: SF1, SF3, Radio RTK and Mobile RTK"]
[null,"StarFireTM RTK"]
[null,null,"John Deere","Provides 1-in., repeatable accuracy\nDealer-owned RTK network benefits producers\nThe base station acts as a local, ground-based reference station\nRTK Extend allows AutoTrac to keep functioning ≤ 15 minutes with Radio or Mobile RTK\nStarFire receiver automatically transitions to RTK Extend when line of sight to the base station\n  is lost or the cellular coverage is limited"]
[null,"Guidance and Steering Systems"]
[null,"SteerCommand© Automated Steering"]
[null,null,"Ag Leader","Access to CORS and RTK networks for sub-inch accuracy with GPS 6500 (with Relay)\nGPS 6500 with SteerCommand supports GLIDE, WAAS/EGNOS, Terra-Star and RTK\nNine-Axis Terrain Compensation for rolling ground, waterways, ditches and over terraces\nInternal compass helps maintain steady heading\nMaximum compatibility with custom installation kits for over 600 different vehicles"]
[null,"OnTrac3TM Assisted Steering"]
[null,null,"Ag Leader","“Lock-n’-Roll” installation\nEasy transfer between vehicles\nAuto-calibration\nGear driven motor\nClutchless, brushless Mechanical Drive Unit\nNine-Axis Terrain Compensation for rolling ground, waterways, ditches and over terraces\nInternal compass \nLED diagnostic lights\nControlled by all current offering Ag Leader displays\nCustom install kits available on over 700 vehicles"]
[null,"L160 Lightbar Steering"]
[null,null,"Ag Leader","Choose between “chase” or “pull” LED modes\nDisplays cross track error, pass number and degree heading\nEasy-to-read display and configurable LED spacing"]
[null,"Autopilot™ Automated Steering"]
[null,null,"Ag Leader","Automatic steering with one-inch repeatability\nIntegrates directly into your vehicle’s hydraulics for clear access to cab control\nUtilizes terrain compensation technology\nPlugs in to many guidance-ready vehicles\nNextSwath End-of-Row Turn, OnSwath Line Acquisition, or Terrain Compensation Technology"]
[null,"Autopilot™ Motor Drive"]
[null,null,"Trimble","Sub-inch accuracy inertias from the NavController III\nEliminates the requirement for an AutoSenseTM or a steering angle sensor\nAutopilot performance without the need for hose installation or special tools\nSimple installation similar to the EZ-Pilot system\nEasy to transfer between vehicles\nAvailable for a large, expanding range of vehicles\nTerrain Compensation Technology"]
[null,"EZ-Pilot® Assisted Steering"]
[null,null,"Trimble","Hands-free guidance for your many farm vehicle types\nIntegrates directly into the steering column for clear access to cab control\nUnrestricted manual steering when assisted steering is not engaged\nUtilizes terrain compensation technology for high accuracy on difficult terrain\nIdeal for both low-accuracy broadacre and high-accuracy row-crop farming applications\nTerrain Compensation Technology"]
[null,"EZ-Steer® Assisted Steering"]
[null,null,"Trimble","Hands-free guidance for many farm vehicle types\nUnrestricted manual steering when assisted steering is not engaged\nUtilizes terrain compensation technology for high accuracy on difficult terrain\nEasy installation and transferability from vehicle to vehicle\nCompatible with any Trimble® display\nIdeal for broadacre farming applications\nTerrain Compensation Technology"]
[null,"AutoTrac™"]
[null,null,"John Deere","Hands-free guidance\nAccuracy, up to +/- 2.5 cm (1 in.) pass to pass with a StarFire™ 3000 Receiver"]
[null,"AutoTrac™ Controller"]
[null,null,"John Deere","Integrate John Deere GreenStar™ with select Case® IH and New Holland® Tractors equipped\n  with factory-installed AFS AccuGuide™ Ready or IntelliSteer™ options"]
[null,"AutoTrac™ RowSense™ - Sprayer"]
[null,null,"John Deere","For late, post-emerge applications\nApproved for 30-in (76 cm) corn\nFor all 4 Series Sprayers"]
[null,"AutoTrac™ Vision Guidance"]
[null,null,"John Deere","Frame-mounted camera\nFor early corn 6 in. (15 cm) or taller in straight 30-in. (76 cm) rows\nApproved for corn, soybeans, cotton\nFor all 4 Series Sprayers"]
[null,"AutoTrac™ Universal"]
[null,null,"John Deere","Retrofit guidance solution for older John Deere vehicles and non-Deere vehicles\nGuidance modes including straight track, AB curves, adaptive curves, circle track, and swap track"]
[null,"iTEC™ Pro"]
[null,null,"John Deere","Works with straight track guidance\nCompatible with the GreenStar™ 3 or GreenStar™ 2 system\nWorks with SF1, SF2, or RTK accuracy levels"]
[null,"Guidance and Auto-Steer Displays"]
[null,"TMX-2050™ Display"]
[null,null,"Trimble","Large 12.1″ (30.8 cm) high-definition color touch-screen display\nAndroid-based operating system allows for custom display\nOne integrated GNSS receiver\nOne integrated camera with support for an additional external camera\nEasy transferability between vehicles\nWorks with CenterPoint RTK, CenterPoint VRS, CenterPoint RTX, OmniSTAR HP/XP,\n  OmniSTAR G2, RangePoint RTX, and SBAS correction services"]
[null,"CFX-750™ Display"]
[null,null,"Trimble","Mid-sized 8.0” color touchscreen\n27 built-in LED lights\nTwo video camera inputs\nOne built-in, dual-frequency GPS receiver\nGLONASS ready\nWorks with CenterPoint RTK, CenterPoint VRS, CenterPoint RTX, OmniSTAR HP/XP,\n  OmniSTAR G2, RangePoint RTX, OmniSTAR VBS, and SBAS correction services"]
[null,"MMX-070 Display "]
[null,null,"Trimble","Compact 7” color touchscreen\nAndroid platform ready for future development\nBuilt-in WiFi and bluetooth\nEasily transfers between vehicles and outside the cab for mapping and scouting tasks\nSBAS correction service\nNot available in all regions"]
[null,"EZ-Guide® 250 System"]
[null,null,"Trimble","Compact 4.3” color screen\n15 built-in LED lights\nOne built-in GPS receiver\nSBAS correction service"]
[null,"GreenStar 3™ 2630"]
[null,null,"John Deere","Designed for integrated functionality\n10.4-inch color touch-screen\nThree video inputs allows easy monitoring of activity outside the cab\nEasily transfer data via USB stick with the USB Data port\nWorks with AutoTrac, John Deere Section Control, AutoTrac RowSense,  iTecTM Pro, \n  Implement Guidance and more\nLock settings with access manager\nISOBUS connectivity\nEnabling Remote Display Access (RDA) and Wireless Data Transfer (WDT) utilizing \n  common AMS and JDLink™ Connect system"]
[null,"GreenStar 2™ 1800"]
[null,null,"John Deere","ISO virtual terminal compatibility\nGreenStar™ Rate ControllerCompatible with SprayStar™ and AccuDepth™\nAbility to upgrade to GS3 Display, StarFire™ 6000 or 3000 Receivers\n"]